{"text_format":"1","workbook":"xlsx","n_sheets":27,"sheets":["Menu","Guide to tool","Notes on data","Summary_Cost","SummaryData","Summary_Outcomes","Graph_current","Dashboard","UserLookups","GraphData","Dashboard_charts_data","Lookup","DataCost","DataOutcome","PHO notes","QA and data update","Tab Code","Named ranges","cost_data","outcome_data","Closest CCG (codes)","Control Log","Sheet1","Sheet2","Sheet3","Sheet4","Sheet5"],"not_rendered":{"charts":5,"images":3,"macros":1,"external_links":12,"defined_names":182,"comments":6,"pivot_tables":0},"unopened":[],"bounds":{"document_bytes":16777216,"sheet_cells":100000,"rows_first":2000,"rows_last":500,"rows_between":2000,"halvings":0,"cell_chars":16384,"cell_head_chars":4096},"cells_cut":0,"cells_raw":0,"read":"whole","date_system":"1900"}

{"sheet":"Menu","index":0,"n_rows":24,"n_cols":12,"rows_kept":24,"cut":false,"hidden":false,"merged":[[1,4,2,12],[22,2,22,11],[8,2,10,12],[11,2,11,3]]}
[]
[null,null,null,null,"National Cardiovascular \nIntelligence Network\n"]
[]
[]
[null,null,"Outcome versus expenditure tool: cardiovascular"]
[]
[]
[]
[null,null,"Compare spending on cardiovascular disease to cardiovascular outcomes by Clinical Commissioning Group.\nTo use this tool complete the drop down fields below and click on “go to chart”. A quadrant chart shows spending in 2012/13 and 2013/14 compared to outcomes in the same year.\n\nYou can then use the buttons in the top menu to choose:\n\n• Summary for outcome data\n• Summary for expenditure data\n• CCG lookups – to see similar CCGs or Strategic Clinical Network (SCN)\n• Dashboard to compare data\n"]
[]
[]
[null,1,"Year required"]
[]
[null,2,"Chosen CCG",null,null,null,null,null,null,null,null,1]
[]
[null,null,{"$f":"\"Select the expenditure and outcome indicators for the quadrant chart using \"&GraphData!B1&\" data\"","v":"Select the expenditure and outcome indicators for the quadrant chart using 2012 - 2013 data"}]
[null,3,"Expenditure",null,null,null,null,null,null,null,null,1]
[]
[null,4,"Outcome",null,null,null,null,null,null,null,null,1]
[]
[null,5,"Go to the chart"]
[]
[null,null,"NCVIN is hosted within the Public Health England Knowledge and Intelligence Team (Northern and Yorkshire). \n\nPlease send your feedback about NCVIN to ncvin@phe.gov.uk   "]
[null,null,"Last updated: Jan 2015                    Gateway number: 2104-639"]

{"sheet":"Guide to tool","index":1,"n_rows":19,"n_cols":6,"rows_kept":19,"cut":false,"hidden":false,"merged":[[22,2,22,13],[20,2,20,13],[1,5,2,15],[8,2,8,15],[13,2,13,15],[18,2,18,15],[19,2,19,15],[21,2,21,15],[9,2,9,15],[14,2,14,15],[17,2,17,15],[11,2,11,15]]}
[]
[null,null,null,null,null,"National Cardiovascular \nIntelligence Network\n"]
[]
[]
[null,null,"Outcome versus expenditure tool: cardiovascular"]
[]
[]
[null,null,"Guide to using the tool"]
[null,null,"This tool allows you to explore the relationship between expenditure on cardiovascular disease services and clinical outcomes. It shows the relative position of the selected Clinical Commissioning Group (CCG) in comparison to other CCGs with populations with similar risk factors for cardiovascular disease and all other CCGs.  "]
[null,null,"You can highlight any CCG on the chart by selecting one of 211 CCGs from the drop down list found under 'Identifying CCGs'. It is also possible to identify which CCG is represented by any particular point by clicking on the point on the chart; the name of the CCG will be shown. "]
[null,null,"The quadrant chart"]
[null,null,"The quadrant chart displays the outcome and expenditure indicators selected in the menu for the chosen CCG. The centre of the chart represents the value for England for the current year's data. The chosen CCG is represented by a red diamond. The position of all other CCGs are represented by grey circles. It is also possible to highlight those CCGs that belong to a similar group as the chosen CCG. These are represented by the blue/green circles. You can select to highlight those CCGs in the same CCG cluster group, the same deprivation decile or the same Strategic Clinical Network. "]
[null,null,"Interpreting the results"]
[null,null,"Caution should be used when interpreting the results of the charts presented in this tool. All the data included in the charts has been standardised using a statistical method called z-scores. Z-scores are a way of standardising data so that two indicators using different scales can be compared against each other. If the marker on the chart showing the CCG of interest is within the dotted line box the position of the CCG in relation to its expenditure and outcomes is not statistically significantly different from England. Any markers outside the box are statistically significantly different from England (using 95% confidence intervals).  \n\n"]
[null,null,"There are a number of factors other than the total amount of expenditure that might impact on the cardiovascular disease clinical outcomes in a CCG. These include how the money is spent (eg whether only the most cost-effective drugs are prescribed), whether systematic care is provided and the nature of other services such as patient education. CCGs should aim to have high outcomes at a low cost.  "]
[]
[null,null,"Next steps"]
[null,null,"The data presented in this tool are summary level indicators of expenditure and outcomes in cardiovascular disease care. More detailed local analysis of these data including at GP practice level might help to explain the relative position of the CCG. Local knowledge of other services relevant to cardiovascular disease care such as patient education might also help explain the relationship between expenditure and outcomes. \n\nA CCG with poor outcomes and/or high expenditure may seek to shift its relative position towards good outcomes and/or lower costs. However, they should consider that it is unlikely to be practical to move from a position of lower outcomes and low costs directly to high outcomes and low costs. It is likely that there will need to be investment in services and that there will be a time delay between this investment and changes in outcomes. This may lead to the CCG initially shifting to a position of high costs with lower outcomes then high costs with high outcomes. Once this position is reached it may be possible to look at the distribution of expenditure and identify areas for cost savings which will not have a detrimental impact on outcomes.    \n\n"]
[null,null,"In order to consider how to move a CCG towards a position of higher outcomes with lower expenditure, a detailed consideration of local services and the cost effectiveness evidence is needed.  This could include considering the cost-effectiveness of prescribing patterns, the skill mix of staff delivering cardiovascular disease care services and the organisation of cardiovascular disease services. A finance department should be able to provide a more detailed breakdown of the spending within the cardiovascular disease programme budget. The cardiovascular disease element of the programme budget does not include spending on services provided directly by GP practices. This is included separately in the primary care element of the programme budgeting data. The cardiovascular disease programme budget data includes prescriptions for cardiovascular disease items issued in primary care. The prescribing lead should be able to provide more detailed data on prescribing.  "]

{"sheet":"Notes on data","index":2,"n_rows":71,"n_cols":8,"rows_kept":71,"cut":false,"hidden":false,"merged":[[70,2,71,14],[52,2,52,15],[67,2,67,15],[33,2,33,13],[41,2,41,15],[36,2,36,14],[38,2,38,13],[40,2,40,14],[61,3,61,6],[62,3,62,6],[63,3,63,6],[64,3,64,6],[56,3,56,6],[57,3,57,6],[58,3,58,6],[59,3,59,6],[1,5,2,15],[8,2,8,15],[15,2,15,15],[32,2,32,15],[11,2,11,15],[12,2,12,11],[16,7,16,10],[60,3,60,6],[53,2,53,8],[21,2,21,13],[23,2,23,14],[26,2,26,14],[28,2,28,13],[29,2,29,14],[48,2,48,15],[43,2,43,15],[44,2,44,12],[45,2,45,10],[46,2,46,8],[22,2,22,15]]}
[]
[null,null,null,null,null,"National Cardiovascular \nIntelligence Network\n"]
[]
[]
[null,null,"Outcome versus expenditure tool: cardiovascular"]
[]
[]
[null,null,"Notes on the data"]
[null,null,"The data has been converted in to z-scores to allow comparisons to be made across indicators measured on different scales. A z-score of less than -1.96 indicates that we can be 95% certain that the measure is significantly lower than the England average. A z-score of more than 1.96 shows that we can be 95% certain that the measure is significantly greater than the England average. This boundary is shown as a dotted line on the chart. If the marker for the CCG is outside the dotted box they are statistically significantly different from the England average. England as a whole is at the intersection of the axis."]
[null,null,"Expenditure data"]
[]
[null,null,"Denominators for expenditure\n\nThe expenditure measure denominator populations vary dependant on the particular measure selected. The majority of expenditure measures use the modelled percentage for total amount of people with cardiovascular disease in that CCG applied to that financial years total QOF GP registered population (all ages) to give a modelled number of people who have cardiovascular disease in each CCG. \n\nThe modelled prevalence percentage of cardiovascular disease are taken from the national general practice profiles. \n\n"]
[null,null,"http://fingertips.phe.org.uk/profile/general-practice/data"]
[]
[null,null,"Prescribing data"]
[null,null,"The cost of prescribed items to treat cardiovascular disease has been provided by the Health and Social Care Information Centre. The data is for the period from April  to March for the year selected. Data are presented as the total net ingredient cost (NIC) per person. Spend is the total number of prescriptions divided by the NIC. The prescribing data only covers items prescribed in primary care linked to a practice, not all primary care prescribing. "]
[null,null,"Detailed prescribing data can be found by practice at ",null,null,null,null,"www.hscic.gov.uk/gpprescribingdata"]
[]
[null,null,"Outcomes data"]
[null,null,"Denominators for outcomes"]
[]
[null,null,"The denominator populations used varies dependant on the outcome measure selected.  "]
[null,null,"The admissions data uses GP registered populations from the QOF list sizes for all people all age groups for the CCG for 2012/13 and 2013/14 as the denominator. "]
[null,null,"http://www.hscic.gov.uk/article/2021/Website-Search?productid=12972&q=qof+data&sort=Relevance&size=10&page=1&area=both#top"]
[]
[null,null,"The denominator for the under 75 mortality data uses the population figure taken from the HSCIC under 75 mortality CCG indicator 1.2 Sept 2013."]
[null,null,"https://indicators.ic.nhs.uk/download/Clinical%20Commissioning%20Group%20Indicators/Data/CCG_1.2_I00754_D_V4.xls"]
[]
[null,null,"The percentage measures use the related QOF denominator populations for each different indicator. "]
[null,null,"http://www.hscic.gov.uk/article/2021/Website-Search?productid=12972&q=qof+data&sort=Relevance&size=10&page=1&area=both#top"]
[]
[null,null,"Hospital Episode Statistics"]
[null,null,"Hospital episode statistics indicators are records of admissions for episodes of diagnosis or procedures linked to cardiovascular disease. This data is collected during a patient's time at hospital and is submitted to allow hospitals to be paid for the care they deliver. The clinical commissioning group is attributed by the home address of the patient recorded in their episode.  \n"]
[null,null,"Further data can be found at http://www.hscic.gov.uk/hes"]
[]
[null,null,"Quality and Outcomes framework"]
[null,null,"The quality and outcomes framework (QOF) were introduced in 2004 as a voluntary incentive scheme for GP practices in the UK, rewarding them for how well they care for patients. The QOF contains groups of indicators, against which GP practices score points according to their level of achievement. NICE's role focuses on the clinical and public health domains in the QOF, which include a number of areas such as coronary heart disease and hypertension. There are a number of measures which are applicable to measuring outcomes such as chronic kidney disease, hypertension, stroke, coronary heart disease and peripheral arterial disease with ideal blood pressure and cholesterol measures. \n\n"]
[]
[null,null,"http://www.hscic.gov.uk/article/2021/Website-Search?productid=12972&q=qof&sort=Relevance&size=10&page=1&area=both#top"]
[]
[null,null,"National general practice profiles - the estimated prevalence of cardiovascular disease and coronary heart disease used in the models"]
[null,null,"The estimated percentage of people with coronary heart disease, cardiovascular disease, hypertension and stroke has been calculated using a model developed at the Department of Primary Care and Social Medicine, Imperial College, London. The model was developed using data from the 2003-2004 Health Surveys for England. The model takes into account age, sex, ethnicity, smoking status and deprivation score. Full details can be found in \n\n\n"]
[]
[null,null,"http://www.apho.org.uk/resource/item.aspx?RID=111141"]
[null,null,"http://www.apho.org.uk/resource/item.aspx?RID=111140"]
[null,null,"http://www.apho.org.uk/resource/item.aspx?RID=111139"]
[null,null,"http://www.apho.org.uk/resource/item.aspx?RID=111138"]
[]
[null,null,"Local authority and Primary Care Trusts results: 2009 mid-year population estimates by age, sex and ethnic group provided by Office of National Statistics, smoking status from Integrated Household Survey 2010/11 provided by dept of Health, IMD 2010 scores provided by the Department for Communities and Local Government. GP practice results: 2011 population by age and sex from Attribution Data Set (ADS) provided by Department of Health, ethnic distribution of population derived from hospital episode statistics by ERPHO, smoking status at Local Authority level from Integrated Household Survey 2010/11 provided by Department of Health, weighted IMD2010 score of practice population provided by Department of Health, ethnic distribution of population derived from hospital episode statistic by PHE eastern region knowledge and intelligence team.\n"]
[]
[null,null,"http://fingertips.phe.org.uk/profile/general-practice/data"]
[null,null,"Comparison clusters commissioning for value closest 10 CCGs"]
[null,null,"The Health and Social Care Information Centre for the commissioning for value programme for CCGs has created the commissioning for value packs which use a group of standardised variables to calculate the most similar CCGs for use as comparators. In the cardiovascular intelligence network the ten most similar CCG’s are used as a comparison to the user selected CCG. \n\nMore information on the methodology for the creation of the classification and the full list of CCGs and their groups can be found at.\n\n\n"]
[null,null,"http://www.rightcare.nhs.uk/index.php/commissioning-for-value"]
[null,null,{"$f":"\"The chosen CCG \"&Lookup!CO3&\" is part of a group of 10 similar CCG's which includes:\"","v":"The chosen CCG NHS Airedale, Wharfedale and Craven is part of a group of 10 similar CCG's which includes:"}]
[]
[null,null,null,{"$f":"Lookup!CO4","v":"NHS Calderdale"}]
[null,null,null,{"$f":"Lookup!CO5","v":"NHS South Kent Coast"}]
[null,null,null,{"$f":"Lookup!CO6","v":"NHS East Staffordshire"}]
[null,null,null,{"$f":"Lookup!CO7","v":"NHS Ashford"}]
[null,null,null,{"$f":"Lookup!CO8","v":"NHS Harrogate and Rural District"}]
[null,null,null,{"$f":"Lookup!CO9","v":"NHS West Essex"}]
[null,null,null,{"$f":"Lookup!CO10","v":"NHS South West Lincolnshire"}]
[null,null,null,{"$f":"Lookup!CO11","v":"NHS Great Yarmouth and Waveney"}]
[null,null,null,{"$f":"Lookup!CO12","v":"NHS South Worcestershire"}]
[]
[null,null,"Deprivation deciles"]
[null,null,"Each CCG has been given an estimated deprivation value based on a population weighted average of the Index of Deprivation 2010 for each Lower Super Output Area (LSOA) lying within the CCG. The CCGs are then sorted by this weighted deprivation value and placed into ten groups of about 21 CCGs ranging from the most deprived to least deprived decile (the least deprived decile contains 22 CCGs).\n\n"]
[null,null,"Use of crude rates in indicators"]
[]
[null,null,"The indicators used HES based indicators. The mortality and admission data are non age standardised.This was chosen as HSCIC prescription costs data are not identifiable at an age and geographically defined level. It would not be appropriate to compare age standardised outcome measures with non age standardised costs so crude rates have been applied."]

{"sheet":"Summary_Cost","index":3,"n_rows":31,"n_cols":13,"rows_kept":31,"cut":false,"hidden":false,"merged":[[20,12,22,12],[9,12,10,12],[11,12,13,12],[14,12,16,12],[23,12,28,12],[17,6,17,7],[17,8,17,9],[17,5,19,5],[17,4,19,4],[16,1,16,9],[10,1,10,3],[4,1,4,9],[8,1,8,9],[9,1,9,9],[13,1,13,6],[6,1,6,2],[48,3,52,5],[30,1,30,9],[24,1,24,3],[20,1,20,3],[21,1,21,3],[22,1,22,3],[23,1,23,3],[28,2,29,11]]}
[null,"Summary of expenditure"]
[]
[null,null,null,null,null,null,null,null,null,null,null,null,"Key facts"]
[]
[null,"Compare spending on cardiovascular care in two Clinical Commissioning Groups (CCGs) to national, sub-national and cardiovascular disease cluster levels of spend. \n\nThe summary expenditure information on this page gives context to any changes in spending levels a CCG may wish to consider after analysing the information in the quadrant chart and considering local factors affecting delivery of cardiovascular disease services.\n\nAn example of the increase/reduction in expenditure require to ensure the CCG is in the highest or lowest 25% of national spend and average (median) spend is also shown.\n",null,null,null,null,null,null,null,null,null,null,"The following statements help to understand the scale of change in expenditure required to move the CCG from its current level. \n\n1)  A summary of the current position of the CCG.  \n2)  The change required to move the CCG into the lowest 25% of CCGs nationally for spend per person with cardiovascular disease or item, if they are not already in this position.  \n3)  The change required to move the CCG out of the highest 25% of CCGs nationally for spend per person with cardiovascular disease or item, if they are not already in this position."]
[]
[null,"Year selection:"]
[]
[null,null,null,null,null,1,null,null,null,null,null,null,{"$f":"B24","v":"NHS Airedale, Wharfedale and Craven"}]
[null,null,null,null,null,null,null,null,null,null,null,1,{"$f":"\"The current \"&LOWER(SummaryData!$D$5)&\" in \"&SummaryData!$E$10&\" CCG is \"&TEXT(E24,\"£0.00\")&\" per person. This ranks the CCG \"&SummaryData!$E$15&\" CCGs.\"&\" The CCGs total spend for this indicator in \"&GraphData!B1&\" was \"&IF(SummaryData!E6=0,\" there was no spend on this item.\",\"around \")&IF(SummaryData!E6=0,\"\",TEXT(SummaryData!$E$6,\"£###,###\")&\".\")","v":"The current spend on anti-arrhythmic drugs in NHS Airedale, Wharfedale and Craven CCG is £1.99 per person. This ranks the CCG 177 of 211 CCGs. The CCGs total spend for this indicator in 2012 - 2013 was around £30,000."}]
[null,"Expenditure category:"]
[null,null,null,null,null,1,null,null,null,null,null,2,{"$f":"\"\"&(SummaryData!$D$5&IF(F12>4,\"\",\" per person with cardiovascular disease\"))&\" in \"&SummaryData!$E$10&\" for this CCG is currently \"&SummaryData!$D$26&\" the lowest 25% nationally. \"&IF(SummaryData!$D$26=\"outside\",\"If the CCG were to change commissioning/ prescribing practices to a level required to enter the lowest 25% of spending CCGs, then the CCG would have to \"&IF(SummaryData!$D$26=\"outside\",\"lower\",\"\")&\" spend by \"&TEXT(SummaryData!$E$26,\"£0.00\")&\" per person with cardiovascular disease, the equivalent of \"&TEXT(MROUND(SummaryData!$G$26,50),\"£##,###\")&\".\")","v":"Spend on anti-arrhythmic drugs per person with cardiovascular disease in NHS Airedale, Wharfedale and Craven for this CCG is currently outside the lowest 25% nationally. If the CCG were to change commissioning/ prescribing practices to a level required to enter the lowest 25% of spending CCGs, then the CCG would have to lower spend by £1.02 per person with cardiovascular disease, the equivalent of £10,700."}]
[]
[null,"Clinical Commissioning Group for Comparison:"]
[null,null,null,null,null,19,null,null,null,null,null,3,{"$f":"\"\"&(SummaryData!$D$5)&IF(F12>4,\"\",\" per person with cardiovascular disease in \"&SummaryData!$E$10)&\" for this CCG is currently \"&SummaryData!$D$27&\" the highest 25% nationally. \"&IF(SummaryData!$D$27=\"within\",\"If the CCG were to change commissioning/ prescribing practices to a level required to leave the highest 25% of spending CCGs, then the CCG would have to \"&IF(SummaryData!$D$27=\"within\",\"lower\",\"\")&\" spend by \"&IF(SummaryData!E27<=0.01,\"less than a £0.01\",TEXT(SummaryData!$E$27,\"£0.00\"))&\" per person with cardiovascular disease, the equivalent of \"&TEXT(MROUND(SummaryData!$G$27,25),\"£##,###\")&\" overall.\",\"\")","v":"Spend on anti-arrhythmic drugs per person with cardiovascular disease in NHS Airedale, Wharfedale and Craven for this CCG is currently within the highest 25% nationally. If the CCG were to change commissioning/ prescribing practices to a level required to leave the highest 25% of spending CCGs, then the CCG would have to lower spend by £0.26 per person with cardiovascular disease, the equivalent of £2,725 overall."}]
[]
[null,{"$f":"INDEX(Lookup_CostName,MATCH(F12,Lookup_CostNo,0))&\" per person with cardiovascular disease*\"","v":"Spend on anti-arrhythmic drugs per person with cardiovascular disease*"}]
[null,null,null,null,"CCG  cost*","England **","Cluster group",null,"Strategic Clinical Network"]
[null,null,null,null,null,null,"Chosen CCG:","Comparator CCG:","Chosen CCG:","Comparator CCG",null,null,{"$f":"B25","v":"NHS Bradford Districts"}]
[null,null,null,null,null,null,{"$f":"(SummaryData!G10)","v":"Closest 10 CCGs"},{"$f":"(SummaryData!G11)","v":"Comparator Closest 10 CCGs"},{"$f":"SummaryData!F10","v":"Yorkshire and Northern"},{"$f":"SummaryData!F11","v":"Yorkshire and Northern"},null,1,{"$f":"\"The current \"&LOWER(SummaryData!D5)&\" in \"&SummaryData!E11&\" CCG is \"&TEXT(SummaryData!D19,\"£0.00\")&\" per person. This ranks the CCG \"&SummaryData!E20&\" CCGs.\"&\" The CCGs total spend for this indicator in \"&GraphData!B1&\" was \"&IF(SummaryData!H6=0,\" there was no spend on this item.\",\"around \")&IF(SummaryData!H6=0,\"\",TEXT(SummaryData!$H$6,\"£###,###\")&\".\")","v":"The current spend on anti-arrhythmic drugs in NHS Bradford Districts CCG is £1.23 per person. This ranks the CCG 97 of 211 CCGs. The CCGs total spend for this indicator in 2012 - 2013 was around £44,500."}]
[null,"CCG which cuts off the lowest 25% of spending",null,null,null,{"$f":"SummaryData!E16","v":0.97130311800753644},{"$f":"SummaryData!G16","v":1.2971682355734673},{"$f":"SummaryData!G21","v":1.0157523142918126},{"$f":"SummaryData!F16","v":0.82007105711794881},{"$f":"SummaryData!F21","v":0.82007105711794881},null,2,{"$f":"\"\"&(SummaryData!$D$5)&\" per person with cardiovascular disease in \"&SummaryData!$E$11&\" CCG is currently \"&SummaryData!$D$29&\" the lowest 25% nationally. \"&IF(SummaryData!$D$29=\"outside\",\"If the CCG were to change commissioning/ prescribing practices to a level required to enter the lowest 25% of spending CCGs, then the CCG would have to \"&IF(SummaryData!$D$29=\"outside\",\"lower\",\"\")&\" spend by \"&IF(SummaryData!E29<=0.01,\"less than a £0.01\",TEXT(SummaryData!$E$29,\"£0.00\"))&\" per person with cardiovascular disease, the equivalent of \"&TEXT(MROUND(SummaryData!$G$29,50),\"£##,###\")&\" overall.\",\"\")","v":"Spend on anti-arrhythmic drugs per person with cardiovascular disease in NHS Bradford Districts CCG is currently outside the lowest 25% nationally. If the CCG were to change commissioning/ prescribing practices to a level required to enter the lowest 25% of spending CCGs, then the CCG would have to lower spend by £0.26 per person with cardiovascular disease, the equivalent of £9,650 overall."}]
[null,"Average (Median) ",null,null,null,{"$f":"SummaryData!E17","v":1.3132318102397522},{"$f":"SummaryData!G17","v":1.4290432319880166},{"$f":"SummaryData!G22","v":1.3186124616278421},{"$f":"SummaryData!F17","v":1.0652821168902622},{"$f":"SummaryData!F22","v":1.0652821168902622}]
[null,"CCG which cuts off the highest 25% of spending",null,null,null,{"$f":"SummaryData!E18","v":1.732885293118422},{"$f":"SummaryData!G18","v":1.8641072328034878},{"$f":"SummaryData!G23","v":1.4655138512265404},{"$f":"SummaryData!F18","v":1.4859836548863374},{"$f":"SummaryData!F23","v":1.4859836548863374}]
[null,{"$f":"INDEX(Lookup_CCGname,Menu_ChosenCCG)","v":"NHS Airedale, Wharfedale and Craven"},null,null,{"$f":"SummaryData!D14","v":1.9946630105145944},{"$f":"SummaryData!E15","v":"177 of 211"},{"$f":"SummaryData!G15","v":"9 of 10"},null,{"$f":"SummaryData!F15","v":"22 of 22"},null,null,3,{"$f":"\"\"&(SummaryData!$D$5)&\" per person with cardiovascular disease in \"&SummaryData!$E$11&\" CCG is currently \"&SummaryData!$D$30&\" the highest 25% nationally. \"&IF(SummaryData!$D$30=\"within\",\"If the CCG were to change commissioning/ prescribing practices to a level required to leave the highest 25% of spending CCGs, then the CCG would have to \"&IF(SummaryData!$D$30=\"within\",\"lower\",\"\")&\" spend by  \"&IF(SummaryData!E30<=0.01,\"less than a £0.01\",TEXT(SummaryData!$E$30,\"£0.00\"))&\" per person with cardiovascular disease, the equivalent of \"&TEXT(MROUND(SummaryData!$G$30,25),\"£##,###\")&\" annually.\",\"\")","v":"Spend on anti-arrhythmic drugs per person with cardiovascular disease in NHS Bradford Districts CCG is currently outside the highest 25% nationally. "}]
[null,{"$f":"INDEX(Lookup_CCGname,F15)","v":"NHS Bradford Districts"},null,null,{"$f":"SummaryData!D19","v":1.233998316895744},{"$f":"SummaryData!E20","v":"97 of 211"},null,{"$f":"SummaryData!G20","v":"5 of 10"},null,{"$f":"SummaryData!F20","v":"14 of 22"}]
[]
[]
[null,"* Numerator",{"$f":"\"Net ingredient cost (all items in section 2 cardiovascular disease BNF) HSCIC GP Practice Prescribing Presentation-level Data \"&GraphData!B1 &\"\"","v":"Net ingredient cost (all items in section 2 cardiovascular disease BNF) HSCIC GP Practice Prescribing Presentation-level Data 2012 - 2013"}]
[null,"* Denominator",{"$f":"IF(F12=13,\"all items prescribed \"&GraphData!B1&\"\", \"The denominator population here is the modelled prevelance of cardiovascular disease \"&ROUND(GraphData!G16,1)&\"% for \"&GraphData_ChosenCCG&\" applied to the total \"&GraphData!B1&\" GP registered population (QOF \"&GraphData!B1&\")\")","v":"The denominator population here is the modelled prevelance of cardiovascular disease 10.3% for NHS Airedale, Wharfedale and Craven applied to the total 2012 - 2013 GP registered population (QOF 2012 - 2013)"}]
[]
[null,"** Note for ranking data, the ideal is to aim for a low value in the ranking system in England/cluster group/Strategic Clinical Network."]

{"sheet":"SummaryData","index":4,"n_rows":215,"n_cols":36,"rows_kept":215,"cut":false,"hidden":true,"merged":[[60,1,61,4],[63,1,64,4],[1,20,1,23],[40,7,41,7],[40,6,41,6],[40,5,41,5],[1,16,1,19]]}
[]
[null,null,null,null,null,null,null,null,null,null,null,null,null,null,null,null,{"$f":"$D$5","v":"Spend on anti-arrhythmic drugs"},null,null,null,{"$f":"$D$33","v":"Under 75 mortality from cardiovascular disease "},null,null,null,{"$f":"C33","v":1},{"$f":"Lookup!S1","v":1},{"$f":"Y2+Z2+AE2","v":0},6,"CHD",5,{"$f":"IF(Z2=2,5,IF(Z2=3,-3,IF(Z2=4,7,-2)))","v":-2},null,null,{"$f":"MAX(AF4:AF215)","v":-3.1145905369237345E-4},"Max",{"$f":"MAX(T4:T215)","v":8.6408363821198009}]
[null,null,null,null,null,null,"rank change indicator",{"$f":"GraphData!AH3","v":-1},null,null,"CCG","CCG name","SCN","Cluster","comparator","Deciles","MATCH value \n(to speed up calculations)","Num","Den","Cost \nValue","MATCH value \n(to speed up calculations)","Num","Den","Cost \nValue","Multiplier","donotdelete",null,2,"stroke",4,null,"Rank value for admissions data",null,{"$f":"MIN(AF4:AF215)","v":-1.1080485879305807E-3},"Min",{"$f":"MIN(T4:T215)","v":0.15530311644983905}]
[null,"Expenditure","No.","Name",null,"Chosen value","Comp value",null,null,null,null,"England",null,null,null,null,null,{"$f":"SUMIF(T5:T215,\">1\",R5:R215)","v":6513693.7499999879},{"$f":"SUM(INDIRECT($D$7))","v":6064249.9462040737},{"$f":"R4/S4","v":1.0741136674416338},null,{"$f":"SUM(INDIRECT($D$34))","v":33086},{"$f":"SUM(INDIRECT($D$35))","v":51740237},{"$f":"IF(H3=-1,(V4/W4),(V4/W4))","v":6.3946363446305821E-4},{"$f":"IF(GraphData!$N$3=-1,10000,1)","v":10000},null,null,1,"CKD",5,null,{"$f":"X4*$H$3","v":-6.3946363446305821E-4},{"$f":"(X4*Y4)*10","v":63.946363446305824}]
[null,"Indicator",{"$f":"Summary_Cost!$F$12","v":1},{"$f":"INDEX(Lookup_CostName,MATCH($C$5,Lookup_CostNo,0))","v":"Spend on anti-arrhythmic drugs"},null,null,null,null,null,null,"00C","NHS Darlington",{"$f":"INDEX(Lookup_SCN,MATCH($K5,Lookup_CCGcode,0))","v":"Northern England"},{"$f":"INDEX(Lookup_Cluster,MATCH($K5,Lookup_CCGcode,0))","v":"No"},{"$f":"INDEX(Lookup_Comparator,MATCH($K5,Lookup_CCGcode,0))","v":"No"},{"$f":"INDEX(Lookup_Decile,MATCH($K5,Lookup_CCGcode,0))","v":4},{"$f":"MATCH($K5,DataCost_CCGcode,0)","v":1},{"$f":"INDEX(INDIRECT($D$6),Q5)","v":15726.8},{"$f":"INDEX(INDIRECT($D$7),Q5)","v":10439.230316120165},{"$f":"IFERROR(R5/S5,0)","v":1.5065095341095038},{"$f":"MATCH($K5,DataCost_CCGcode,0)","v":1},{"$f":"INDEX(INDIRECT($D$34),U5)","v":69},{"$f":"INDEX(INDIRECT($D$35),U5)","v":97489},{"$f":"(V5/W5)","v":7.0777215891023606E-4},{"$f":"IF(GraphData!$N$3=-1,10000,1)","v":10000},null,null,7,"all",8,null,-7.0777215891023606E-4,{"$f":"(X5*Y5)*10","v":70.777215891023602}]
[null,"Numerator",null,{"$f":"\"DataCost_\"&INDEX(Lookup_CostNamedRng,MATCH($C5,Lookup_CostNo,0))&\"_Num\"","v":"DataCost_Ind9_Num"},{"$f":" IFERROR(MROUND(F6,500),0)","v":30000},{"$f":"INDEX(SummaryData_CostNum,MATCH($D$10,SummaryData_CCGcode,0))","v":30248.84},{"$f":"INDEX(SummaryData_CostNum,MATCH($D$11,SummaryData_CCGcode,0))","v":44499.3399999998},{"$f":" IFERROR(MROUND(G6,500),0)","v":44500},null,null,"00D","NHS Durham Dales, Easington and Sedgefield","Northern England","No","No",2,2,{"$f":"INDEX(INDIRECT($D$6),Q6)","v":49508.099999999897},26268.090154211153,1.8847240019869902,2,232,263669,{"$f":"(V6/W6)","v":8.7989107555306082E-4},{"$f":"IF(GraphData!$N$3=-1,10000,1)","v":10000},null,null,null,null,null,null,-8.7989107555306082E-4,87.989107555306077]
[null,"Denominator",null,{"$f":"\"DataCost_\"&INDEX(Lookup_CostNamedRng,MATCH($C5,Lookup_CostNo,0))&\"_Den\"","v":"DataCost_Ind9_Den"},null,{"$f":"INDEX(SummaryData_CostDen,MATCH($D$10,SummaryData_CCGcode,0))","v":15164.887422360249},{"$f":"INDEX(SummaryData_CostDen,MATCH($D$11,SummaryData_CCGcode,0))","v":36061.102669850225},null,null,null,"00F","NHS Gateshead","Northern England","No","No",2,3,31288.44,19309.031352363127,1.620404432984194,3,156,187507,8.3196893982624644E-4,{"$f":"IF(GraphData!$N$3=-1,10000,1)","v":10000},null,null,null,null,null,null,-8.3196893982624644E-4,83.196893982624658]
[null,null,null,null,null,null,null,null,null,null,"00G","NHS Newcastle North and East","Northern England","No","No",4,4,6572.1400000000103,18564.917291443529,0.35400857956038806,4,65,147213,4.4153709251221022E-4,{"$f":"IF(GraphData!$N$3=-1,10000,1)","v":10000},null,null,null,null,null,null,-4.4153709251221022E-4,44.153709251221017]
[null,null,"No.","CCG","CCG name","SCN","Cluster","Deciles",null,null,"00H","NHS Newcastle West","Northern England","No","No",2,5,9900.6300000000101,13433.462007314101,0.73701254334954203,5,92,122516,7.5092232851219434E-4,{"$f":"IF(GraphData!$N$3=-1,10000,1)","v":10000},null,null,null,null,null,null,-7.5092232851219434E-4,75.092232851219435]
[null,"Chosen CCG",{"$f":"Menu_ChosenCCG","v":1},{"$f":"INDEX(Lookup_CCGcode,C10)","v":"02N"},{"$f":"INDEX(Lookup_CCGname,$C10)","v":"NHS Airedale, Wharfedale and Craven"},{"$f":"INDEX(Lookup_SCN,MATCH($D10,Lookup_CCGcode,0))","v":"Yorkshire and Northern"},{"$f":"INDEX(Lookup_Cluster,MATCH($D10,Lookup_CCGcode,0))","v":"Closest 10 CCGs"},{"$f":"INDEX(Lookup_Decile,MATCH($D10,Lookup_CCGcode,0))","v":6},null,null,"00J","NHS North Durham","Northern England","No","No",6,6,40894.229999999901,25705.864229228715,1.5908521742482922,6,175,230194,7.6022832914845735E-4,{"$f":"IF(GraphData!$N$3=-1,10000,1)","v":10000},null,null,null,null,null,null,-7.6022832914845735E-4,76.022832914845736]
[null,"Comparison CCG",{"$f":"Summary_Cost!$F$15","v":19},{"$f":"INDEX(Lookup_CCGcode,C11)","v":"02R"},{"$f":"INDEX(Lookup_CCGname,$C11)","v":"NHS Bradford Districts"},{"$f":"INDEX(Lookup_SCN,MATCH($D11,Lookup_CCGcode,0))","v":"Yorkshire and Northern"},{"$f":"INDEX(Lookup_Comparator,MATCH($D11,Lookup_CCGcode,0))","v":"Comparator Closest 10 CCGs"},{"$f":"INDEX(Lookup_Decile,MATCH($D11,Lookup_CCGcode,0))","v":2},null,null,"00K","NHS Hartlepool and Stockton-On-Tees","Northern England","No","No",3,7,29176.2,29453.966005665723,0.99056948712399917,7,184,269151,6.8363112156373193E-4,{"$f":"IF(GraphData!$N$3=-1,10000,1)","v":10000},null,null,null,null,null,null,-6.8363112156373193E-4,68.363112156373191]
[null,null,null,null,null,null,null,null,null,null,"00L","NHS Northumberland","Northern England","No","No",6,8,45480.579999999798,29405.995795631112,1.5466430831346616,8,208,291073,7.1459736904487872E-4,{"$f":"IF(GraphData!$N$3=-1,10000,1)","v":10000},null,null,null,null,null,null,-7.1459736904487872E-4,71.459736904487869]
[null,null,null,"Cost","Eng Cost","SCN cost","Cluster Cost","Decile Cost",null,null,"00M","NHS South Tees","Northern England","No","No",2,9,39800.309999999903,28326.808842146263,1.4050403708300068,9,204,268563,7.5959830654259892E-4,{"$f":"IF(GraphData!$N$3=-1,10000,1)","v":10000},null,null,null,null,null,null,-7.5959830654259892E-4,75.959830654259889]
[null,"Chosen CCG",null,{"$f":"INDEX(SummaryData_CostValue,MATCH($D$10,SummaryData_CCGcode,0))","v":1.9946630105145944},null,null,null,null,null,null,"00N","NHS South Tyneside","Northern England","No","No",3,10,15718.78,15038.450306629027,1.0452393484367921,10,122,140547,8.6803702675973158E-4,{"$f":"IF(GraphData!$N$3=-1,10000,1)","v":10000},null,null,null,null,null,null,-8.6803702675973158E-4,86.80370267597317]
[null,"CCG rank",null,null,{"$f":"RANK($D14,SummaryData_CostValue,1)&\" of 211\"","v":"177 of 211"},{"$f":"COUNTIF(SummaryData_SCN,$F10)-SUMPRODUCT((SummaryData_SCN=$F10)*(SummaryData_CostValue>$D14))&\" of \"&COUNTIF(SummaryData_SCN,$F10)","v":"22 of 22"},{"$f":"COUNTIF(SummaryData_Cluster,$G10)-SUMPRODUCT((SummaryData_Cluster=$G10)*(SummaryData_CostValue>$D14))&\" of \"&COUNTIF(SummaryData_Cluster,$G10)","v":"9 of 10"},{"$f":"COUNTIF($P$5:$P$215,$H10)-SUMPRODUCT(($P$5:$P$215=$H10)*(SummaryData_CostValue>$D14))&\" of \"&COUNTIF($P$5:$P$215,$H10)","v":"18 of 21"},null,null,"00P","NHS Sunderland","Northern England","No","No",3,11,28367.02,27647.287954036419,1.0260326454862456,11,204,259618,7.8576986187398404E-4,{"$f":"IF(GraphData!$N$3=-1,10000,1)","v":10000},null,null,null,null,null,null,-7.8576986187398404E-4,78.576986187398404]
[null,"<25% of spending (Q1)",null,null,{"$f":"QUARTILE(SummaryData_CostValue,1)","v":0.97130311800753644},{"$f":"QUARTILE(IF(SummaryData_SCN=$F$10,SummaryData_CostValue),1)","v":0.82007105711794881},{"$f":"QUARTILE(IF(SummaryData_Cluster=$G$10,SummaryData_CostValue),1)","v":1.2971682355734673},{"$f":"QUARTILE(IF(SummaryData_Decile=$H$10,SummaryData_CostValue),1)","v":1.1432293529515118},null,null,"00Q","NHS Blackburn with Darwen","Greater Manchester Lancashire and South Cumbria","No","Comparator Closest 10 CCGs",1,12,27075.1,19294.88785153137,1.4032266063599401,12,122,159098,7.6682296446215544E-4,{"$f":"IF(GraphData!$N$3=-1,10000,1)","v":10000},null,null,null,null,null,null,-7.6682296446215544E-4,76.682296446215545]
[null,"Average (Median) ",null,null,{"$f":"QUARTILE(SummaryData_CostValue,2)","v":1.3132318102397522},{"$f":"QUARTILE(IF(SummaryData_SCN=$F$10,SummaryData_CostValue),2)","v":1.0652821168902622},{"$f":"QUARTILE(IF(SummaryData_Cluster=$G$10,SummaryData_CostValue),2)","v":1.4290432319880166},{"$f":"QUARTILE(IF(SummaryData_Decile=$H$10,SummaryData_CostValue),2)","v":1.4752229517706776},null,null,"00R","NHS Blackpool","Greater Manchester Lancashire and South Cumbria","No","No",1,13,12618.01,14943.954333160355,0.84435549779490915,13,166,156790,1.0587409911346386E-3,{"$f":"IF(GraphData!$N$3=-1,10000,1)","v":10000},null,null,null,null,null,null,-1.0587409911346386E-3,105.87409911346386]
[null,">25% of spending (Q2)",null,null,{"$f":"QUARTILE(SummaryData_CostValue,3)","v":1.732885293118422},{"$f":"QUARTILE(IF(SummaryData_SCN=$F$10,SummaryData_CostValue),3)","v":1.4859836548863374},{"$f":"QUARTILE(IF(SummaryData_Cluster=$G$10,SummaryData_CostValue),3)","v":1.8641072328034878},{"$f":"QUARTILE(IF(SummaryData_Decile=$H$10,SummaryData_CostValue),3)","v":1.8201959370131953},null,null,"00T","NHS Bolton","Greater Manchester Lancashire and South Cumbria","No","Comparator Closest 10 CCGs",2,14,83701.489999999802,31304.05973916702,2.6738222038106501,14,210,277783,7.5598578746719565E-4,{"$f":"IF(GraphData!$N$3=-1,10000,1)","v":10000},null,null,null,null,null,null,-7.5598578746719565E-4,75.598578746719568]
[null,"Comparison CCG",null,{"$f":"INDEX(SummaryData_CostValue,MATCH($D$11,SummaryData_CCGcode,0))","v":1.233998316895744},null,null,null,null,null,null,"00V","NHS Bury","Greater Manchester Lancashire and South Cumbria","No","Comparator Closest 10 CCGs",5,15,28948.57,19739.121183104588,1.4665581983851492,15,130,182021,7.1420330621192057E-4,{"$f":"IF(GraphData!$N$3=-1,10000,1)","v":10000},null,null,null,null,null,null,-7.1420330621192057E-4,71.420330621192051]
[null,"CCG rank",null,null,{"$f":"RANK($D19,SummaryData_CostValue,1)&\" of 211\"","v":"97 of 211"},{"$f":"COUNTIF(SummaryData_SCN,$F11)-SUMPRODUCT((SummaryData_SCN=$F11)*(SummaryData_CostValue>$D19))&\" of \"&COUNTIF(SummaryData_SCN,$F11)","v":"14 of 22"},{"$f":"COUNTIF(SummaryData_comparator,$G11)-SUMPRODUCT((SummaryData_comparator=$G11)*(SummaryData_CostValue>$D19))&\" of \"&COUNTIF(SummaryData_comparator,$G11)","v":"5 of 10"},{"$f":"COUNTIF($P$5:$P$215,$H11)-SUMPRODUCT(($P$5:$P$215=$H11)*(SummaryData_CostValue>$D19))&\" of \"&COUNTIF($P$5:$P$215,$H11)","v":"12 of 21"},null,null,"00W","NHS Central Manchester","Greater Manchester Lancashire and South Cumbria","No","No",1,16,13734.78,30451.303735024667,0.45104078694018107,16,96,207508,4.6263276596564951E-4,{"$f":"IF(GraphData!$N$3=-1,10000,1)","v":10000},null,null,null,null,null,null,-4.6263276596564951E-4,46.263276596564957]
[null,"<25% of spending (Q1)",null,null,{"$f":"E16","v":0.97130311800753644},{"$f":"QUARTILE(IF(SummaryData_SCN=$F$11,SummaryData_CostValue),1)","v":0.82007105711794881},{"$f":"QUARTILE(IF(SummaryData_comparator=$G$11,SummaryData_CostValue),1)","v":1.0157523142918126},{"$f":"QUARTILE(IF(SummaryData_Decile=$H$11,SummaryData_CostValue),1)","v":0.62836324003975574},null,null,"00X","NHS Chorley and South Ribble","Greater Manchester Lancashire and South Cumbria","No","No",6,17,32788.69,18013.824409367586,1.8201959370131953,17,109,161506,6.7489752702685969E-4,{"$f":"IF(GraphData!$N$3=-1,10000,1)","v":10000},null,null,null,null,null,null,-6.7489752702685969E-4,67.489752702685962]
[null,"Average (Median) ",null,null,{"$f":"E17","v":1.3132318102397522},{"$f":"QUARTILE(IF(SummaryData_SCN=$F$11,SummaryData_CostValue),2)","v":1.0652821168902622},{"$f":"QUARTILE(IF(SummaryData_comparator=$G$11,SummaryData_CostValue),2)","v":1.3186124616278421},{"$f":"QUARTILE(IF(SummaryData_Decile=$H$11,SummaryData_CostValue),2)","v":1.1092014635492762},null,null,"00Y","NHS Oldham","Greater Manchester Lancashire and South Cumbria","No","Comparator Closest 10 CCGs",2,18,29273.49,26391.499616606419,1.1092014635492762,18,175,226007,7.7431230006150254E-4,{"$f":"IF(GraphData!$N$3=-1,10000,1)","v":10000},null,null,null,null,null,null,-7.7431230006150254E-4,77.431230006150258]
[null,">25% of spending (Q2)",null,null,{"$f":"E18","v":1.732885293118422},{"$f":"QUARTILE(IF(SummaryData_SCN=$F$11,SummaryData_CostValue),3)","v":1.4859836548863374},{"$f":"QUARTILE(IF(SummaryData_comparator=$G$11,SummaryData_CostValue),3)","v":1.4655138512265404},{"$f":"QUARTILE(IF(SummaryData_Decile=$H$11,SummaryData_CostValue),2)","v":1.1092014635492762},null,null,"01A","NHS East Lancashire","Greater Manchester Lancashire and South Cumbria","No","Comparator Closest 10 CCGs",3,19,53837.36,36814.870409286501,1.4623808097507143,19,298,343506,8.6752487583914106E-4,{"$f":"IF(GraphData!$N$3=-1,10000,1)","v":10000},null,null,null,null,null,null,-8.6752487583914106E-4,86.752487583914103]
[null,"Saving",null,null,null,null,null,null,null,null,"01C","NHS Eastern Cheshire","Cheshire and Merseyside","No","No",9,20,39070.699999999997,19423.389798066801,2.01152838954448,20,107,183094,5.8439927032016338E-4,{"$f":"IF(GraphData!$N$3=-1,10000,1)","v":10000},null,null,null,null,null,null,-5.8439927032016338E-4,58.439927032016342]
[null,"Chosen CCG",null,"Where","Difference","Annually",null,null,null,null,"01D","NHS Heywood, Middleton and Rochdale","Greater Manchester Lancashire and South Cumbria","No","Comparator Closest 10 CCGs",2,21,23043.599999999999,23403.96018636171,0.98460259787265803,21,178,208462,8.5387264825243934E-4,{"$f":"IF(GraphData!$N$3=-1,10000,1)","v":10000},null,null,null,null,null,null,-8.5387264825243934E-4,85.387264825243946]
[null,"Lowest 25%",null,{"$f":"IF(E16-$D$14<0,\"outside\",\"within\")","v":"outside"},{"$f":"ABS(E16-$D$14)","v":1.0233598925070579},{"$f":"\"£\"&ROUND((INDEX(SummaryData_CostDen,MATCH($D$10,Lookup_CCGcode,0))*$E26)/1000,0)&\" thousand annually\"","v":"£11 thousand annually"},{"$f":"(INDEX(SummaryData_CostDen,MATCH($D$10,Lookup_CCGcode,0))*$E26)","v":10683.089614161152},null,null,null,"01E","NHS Greater Preston","Greater Manchester Lancashire and South Cumbria","No","No",4,22,31529.25,22881.982861481723,1.3779072465382627,22,138,195492,7.0591123933460198E-4,{"$f":"IF(GraphData!$N$3=-1,10000,1)","v":10000},null,null,null,null,null,null,-7.0591123933460198E-4,70.591123933460196]
[null,"Highest 25%",null,{"$f":"IF(E18-$D$14<0,\"within\",\"outside\")","v":"within"},{"$f":"ABS(E18-$D$14)","v":0.26177771739617239},{"$f":"\"£\"&ROUND((INDEX(SummaryData_CostDen,MATCH($D$10,Lookup_CCGcode,0))*$E27)/1000,0)&\" thousand annually\"","v":"£3 thousand annually"},{"$f":"(INDEX(SummaryData_CostDen,MATCH($D$10,Lookup_CCGcode,0))*$E27)","v":2732.75788352686},null,null,null,"01F","NHS Halton","Cheshire and Merseyside","No","No",2,23,17517.23,13257.060399917544,1.3213509987560255,23,94,120429,7.8054289249267206E-4,{"$f":"IF(GraphData!$N$3=-1,10000,1)","v":10000},null,null,null,null,null,null,-7.8054289249267206E-4,78.054289249267214]
[null,"Comparison CCG",null,null,null,null,null,null,null,null,"01G","NHS Salford","Greater Manchester Lancashire and South Cumbria","No","No",1,24,40143.959999999897,27141.260713898231,1.4790749929845142,24,201,235008,8.5529003267973856E-4,{"$f":"IF(GraphData!$N$3=-1,10000,1)","v":10000},null,null,null,null,null,null,-8.5529003267973856E-4,85.529003267973849]
[null,"Lowest 25%",null,{"$f":"IF(E21-$D$19<0,\"outside\",\"within\")","v":"outside"},{"$f":"ABS(E21-$D$19)","v":0.26269519888820758},{"$f":"\"£\"&ROUND((INDEX(SummaryData_CostDen,MATCH($D$11,Lookup_CCGcode,0))*$E29)/1000,0)&\" thousand annually\"","v":"£10 thousand annually"},{"$f":"(INDEX(SummaryData_CostDen,MATCH($D$11,Lookup_CCGcode,0))*$E29)","v":9671.0897042111046},null,null,null,"01H","NHS Cumbria","Northern England","No","No",5,25,81810.459999999803,47254.327443202303,1.7312797457192148,25,384,472104,8.1338010268923791E-4,{"$f":"IF(GraphData!$N$3=-1,10000,1)","v":10000},null,null,null,null,null,null,-8.1338010268923791E-4,81.338010268923796]
[null,"Highest 25%",null,{"$f":"IF(E23-$D$19<0,\"within\",\"outside\")","v":"outside"},{"$f":"ABS(E23-$D$19)","v":0.49888697622267797},{"$f":"\"£\"&ROUND((INDEX(SummaryData_CostDen,MATCH($D$11,Lookup_CCGcode,0))*$E30)/1000,0)&\" thousand annually\"","v":"£18 thousand annually"},{"$f":"(INDEX(SummaryData_CostDen,MATCH($D$11,Lookup_CCGcode,0))*$E30)","v":18366.459378518684},null,null,null,"01J","NHS Knowsley","Cheshire and Merseyside","No","No",1,26,24685.65,15544.296467863347,1.5880840957347737,26,119,149386,7.965940583454942E-4,{"$f":"IF(GraphData!$N$3=-1,10000,1)","v":10000},null,null,null,null,null,null,-7.965940583454942E-4,79.659405834549418]
[null,null,null,null,null,null,null,null,null,null,"01K","NHS Lancashire North","Greater Manchester Lancashire and South Cumbria","No","No",6,27,21441.67,16327.406808768565,1.3132318102397522,27,115,147300,7.8071961982348944E-4,{"$f":"IF(GraphData!$N$3=-1,10000,1)","v":10000},null,null,null,null,null,null,-7.8071961982348944E-4,78.071961982348938]
[null,"Outcomes","No.","Name",null,"Chosen value","Comp value",null,null,null,"01M","NHS North Manchester","Greater Manchester Lancashire and South Cumbria","No","No",1,28,16042.57,21458.201892744481,0.74761949207982648,28,164,181878,9.0170333960127116E-4,{"$f":"IF(GraphData!$N$3=-1,10000,1)","v":10000},null,null,null,null,null,null,-9.0170333960127116E-4,90.170333960127124]
[null,"Indicator",{"$f":"Summary_Outcomes!F12","v":1},{"$f":"INDEX(Lookup_OutcomeNameLower,MATCH($C$33,Lookup_OutcomeNo,0))","v":"Under 75 mortality from cardiovascular disease "},null,null,null,null,null,null,"01N","NHS South Manchester","Greater Manchester Lancashire and South Cumbria","No","No",1,29,16845.29,20015.990453460618,0.84159162841165192,29,100,158331,6.3158825498481027E-4,{"$f":"IF(GraphData!$N$3=-1,10000,1)","v":10000},null,null,null,null,null,null,-6.3158825498481027E-4,63.158825498481022]
[null,"Numerator",null,{"$f":"\"DataOutcome_\"&INDEX(Lookup_OutcomeNamedRng,MATCH($C33,Lookup_OutcomeNo,0))&\"_Num\"","v":"DataOutcome_Ind1_Num"},null,{"$f":"INDEX(SummaryData_OutcomeNum,MATCH($D$38,SummaryData_CCGcode,0))","v":83},{"$f":"INDEX(SummaryData_OutcomeNum,MATCH($D$39,SummaryData_CCGcode,0))","v":251},null,null,null,"01R","NHS South Cheshire","Cheshire and Merseyside","No","No",8,30,25715.200000000001,17581.630608974359,1.4626174654627282,30,142,161357,8.8003619303779815E-4,{"$f":"IF(GraphData!$N$3=-1,10000,1)","v":10000},null,null,null,null,null,null,-8.8003619303779815E-4,88.003619303779814]
[null,"Denominator",null,{"$f":"\"DataOutcome_\"&INDEX(Lookup_OutcomeNamedRng,MATCH($C33,Lookup_OutcomeNo,0))&\"_Den\"","v":"DataOutcome_Ind1_Den"},null,{"$f":"INDEX(SummaryData_OutcomeDen,MATCH($D$38,SummaryData_CCGcode,0))","v":141517},{"$f":"INDEX(SummaryData_OutcomeDen,MATCH($D$39,SummaryData_CCGcode,0))","v":309647},null,null,null,"01T","NHS South Sefton","Cheshire and Merseyside","No","No",2,31,22546.57,14439.199255121042,1.5614834037284704,31,109,141959,7.6782733042639068E-4,{"$f":"IF(GraphData!$N$3=-1,10000,1)","v":10000},null,null,null,null,null,null,-7.6782733042639068E-4,76.782733042639066]
[null,null,null,null,null,null,null,null,null,null,"01V","NHS Southport and Formby","Cheshire and Merseyside","No","No",7,32,22533.27,10444.871794871795,2.1573524733030562,32,79,107574,7.34378195474743E-4,{"$f":"IF(GraphData!$N$3=-1,10000,1)","v":10000},null,null,null,null,null,null,-7.34378195474743E-4,73.437819547474305]
[null,null,"No.","CCG","CCG name","SCN","Cluster","Deciles",null,null,"01W","NHS Stockport","Greater Manchester Lancashire and South Cumbria","No","No",6,33,47696.97,30593.941248470011,1.5590331959072226,33,184,274507,6.7029256084544296E-4,{"$f":"IF(GraphData!$N$3=-1,10000,1)","v":10000},null,null,null,null,null,null,-6.7029256084544296E-4,67.029256084544301]
[null,"Chosen CCG",{"$f":"Menu_ChosenCCG","v":1},{"$f":"INDEX(Lookup_CCGcode,C38)","v":"02N"},{"$f":"INDEX(Lookup_CCGname,$C38)","v":"NHS Airedale, Wharfedale and Craven"},{"$f":"INDEX(Lookup_SCN,MATCH($D38,Lookup_CCGcode,0))","v":"Yorkshire and Northern"},{"$f":"INDEX(Lookup_Cluster,MATCH($D38,Lookup_CCGcode,0))","v":"Closest 10 CCGs"},{"$f":"INDEX(Lookup_Decile,MATCH($D38,Lookup_CCGcode,0))","v":6},null,null,"01X","NHS St Helens","Cheshire and Merseyside","No","No",3,34,30867.33,18652.681327160491,1.6548467996959531,34,164,177698,9.2291415772828057E-4,{"$f":"IF(GraphData!$N$3=-1,10000,1)","v":10000},null,null,null,null,null,null,-9.2291415772828057E-4,92.291415772828046]
[null,"Comparison CCG",{"$f":"Summary_Cost!$F$15","v":19},{"$f":"INDEX(Lookup_CCGcode,C39)","v":"02R"},{"$f":"INDEX(Lookup_CCGname,$C39)","v":"NHS Bradford Districts"},{"$f":"INDEX(Lookup_SCN,MATCH($D39,Lookup_CCGcode,0))","v":"Yorkshire and Northern"},{"$f":"INDEX(Lookup_Comparator,MATCH($D39,Lookup_CCGcode,0))","v":"Comparator Closest 10 CCGs"},{"$f":"INDEX(Lookup_Decile,MATCH($D39,Lookup_CCGcode,0))","v":2},null,null,"01Y","NHS Tameside and Glossop","East Midlands","No","No",3,35,33603.090000000098,25016.274489478594,1.3432491722191875,35,242,224851,1.0762682843305123E-3,{"$f":"IF(GraphData!$N$3=-1,10000,1)","v":10000},null,null,null,null,null,null,-1.0762682843305123E-3,107.62682843305123]
[null,null,null,null,null,null,null,null,null,null,"02A","NHS Trafford","Greater Manchester Lancashire and South Cumbria","No","No",7,36,27005.06,24262.692921766899,1.1130281410672609,36,149,217504,6.850448727379726E-4,{"$f":"IF(GraphData!$N$3=-1,10000,1)","v":10000},null,null,null,null,null,null,-6.850448727379726E-4,68.504487273797267]
[null,null,null," Outcome","Eng Outcome","SCN  Outcome","Cluster  Outcome","Decile  Outcome",null,null,"02D","NHS Vale Royal","Cheshire and Merseyside","No","No",7,37,8438.6500000000106,10709.886887306242,0.78793082399421177,37,65,94647,6.8676239077836588E-4,{"$f":"IF(GraphData!$N$3=-1,10000,1)","v":10000},null,null,null,null,null,null,-6.8676239077836588E-4,68.676239077836584]
[null,null,null,null,null,null,null,null,null,null,"02E","NHS Warrington","Cheshire and Merseyside","No","No",6,38,22583.72,22761.115954664343,0.99220618378212744,38,126,194652,6.4730904383206958E-4,{"$f":"IF(GraphData!$N$3=-1,10000,1)","v":10000},null,null,null,null,null,null,-6.4730904383206958E-4,64.730904383206962]
[null,"Chosen CCG",null,{"$f":"INDEX(SummaryData_OutcomeValue,MATCH($D$38,SummaryData_CCGcode,0))","v":5.8650197502773521E-4},{"$f":"D43*$H$3","v":-5.8650197502773521E-4},null,null,null,null,null,"02F","NHS West Cheshire","Cheshire and Merseyside","No","No",7,39,37398.5,25154.263183834402,1.4867658705278419,39,154,232979,6.6100378145669781E-4,{"$f":"IF(GraphData!$N$3=-1,10000,1)","v":10000},null,null,null,null,null,null,-6.6100378145669781E-4,66.100378145669779]
[null,"CCG rank",null,{"$f":"RANK($E43,SummaryData_OutcomeValue2)","v":77},{"$f":"RANK($E43,SummaryData_OutcomeValue2)&\" of 211\"","v":"77 of 211"},{"$f":"IF($H$3=1,F61,F62)","v":"5 of 22"},{"$f":"IF(H3=1,G61,G62)","v":"4 of 10"},{"$f":"IF(H3=1,H61,H62)","v":"4 of 21"},null,null,"02G","NHS West Lancashire","Greater Manchester Lancashire and South Cumbria","No","No",6,40,29172.35,10989.007753459613,2.6546846316325343,40,75,102178,7.3401319266378276E-4,{"$f":"IF(GraphData!$N$3=-1,10000,1)","v":10000},null,null,null,null,null,null,-7.3401319266378276E-4,73.401319266378266]
[null,"<25% of outcome (Q1)",null,null,{"$f":"IF(H3=1,QUARTILE(SummaryData_OutcomeValue,1),QUARTILE(SummaryData_OutcomeValue,3)*100)","v":7.6732514744427299E-2},{"$f":"QUARTILE(IF(SummaryData_SCN=$F$10,SummaryData_OutcomeValue),1)","v":6.2589309872622032E-4},{"$f":"QUARTILE(IF(SummaryData_Cluster=$G$10,SummaryData_OutcomeValue),1)","v":5.5191012827332877E-4},{"$f":"QUARTILE(IF(SummaryData_Decile=$H$10,SummaryData_OutcomeValue),1)","v":6.5370603656668142E-4},null,null,"02H","NHS Wigan Borough","Greater Manchester Lancashire and South Cumbria","No","No",3,41,75870.890000000101,32732.680338740945,2.3178942028222078,41,234,297943,7.8538512400022826E-4,{"$f":"IF(GraphData!$N$3=-1,10000,1)","v":10000},null,null,null,null,null,null,-7.8538512400022826E-4,78.538512400022825]
[null,"Average (Median) ",null,null,{"$f":"IF(H3=1,QUARTILE(SummaryData_OutcomeValue,2),QUARTILE(SummaryData_OutcomeValue,2)*100)","v":6.5984823490597158E-2},{"$f":"QUARTILE(IF(SummaryData_SCN=$F$10,SummaryData_OutcomeValue),2)","v":7.4198537972853173E-4},{"$f":"QUARTILE(IF(SummaryData_Cluster=$G$10,SummaryData_OutcomeValue),2)","v":6.7745640162905033E-4},{"$f":"QUARTILE(IF(SummaryData_Decile=$H$10,SummaryData_OutcomeValue),2)","v":6.9298213311282889E-4},null,null,"02M","NHS Fylde & Wyre","Greater Manchester Lancashire and South Cumbria","No","No",8,42,16652.310000000001,12706.357214934411,1.3105494925349428,42,132,132820,9.938262309893088E-4,{"$f":"IF(GraphData!$N$3=-1,10000,1)","v":10000},null,null,null,null,null,null,-9.938262309893088E-4,99.382623098930878]
[null,">25% of outcome (Q2)",null,null,{"$f":"IF(H3=1,QUARTILE(SummaryData_OutcomeValue,3),QUARTILE(SummaryData_OutcomeValue,1)*100)","v":5.2262388150820037E-2},{"$f":"QUARTILE(IF(SummaryData_SCN=$F$10,SummaryData_OutcomeValue),3)","v":7.9761387007700499E-4},{"$f":"QUARTILE(IF(SummaryData_Cluster=$G$10,SummaryData_OutcomeValue),3)","v":7.8157363712725236E-4},{"$f":"QUARTILE(IF(SummaryData_Decile=$H$10,SummaryData_OutcomeValue),3)","v":7.3401319266378276E-4},null,null,"02N","NHS Airedale, Wharfedale and Craven","Yorkshire and Northern","Closest 10 CCGs","No",6,43,30248.84,15164.887422360249,1.9946630105145944,43,83,141517,5.8650197502773521E-4,{"$f":"IF(GraphData!$N$3=-1,10000,1)","v":10000},null,null,null,null,null,null,-5.8650197502773521E-4,58.650197502773523]
[null,"Comparison CCG",null,{"$f":"INDEX(SummaryData_OutcomeValue,MATCH($D$39,SummaryData_CCGcode,0))","v":8.1060045794081653E-4},{"$f":"D48*$H$3","v":-8.1060045794081653E-4},null,null,null,null,null,"02P","NHS Barnsley","Yorkshire and Northern","No","No",3,44,23390.74,24249.491525423731,0.96458682341757995,44,209,231608,9.0238679147525125E-4,{"$f":"IF(GraphData!$N$3=-1,10000,1)","v":10000},null,null,null,null,null,null,-9.0238679147525125E-4,90.238679147525133]
[null,"CCG rank",null,{"$f":"RANK($E48,SummaryData_OutcomeValue2)","v":181},{"$f":"RANK($E48,SummaryData_OutcomeValue2)&\" of 211\"","v":"181 of 211"},{"$f":"IF($H$3=1,F64,F65)","v":"18 of 22"},{"$f":"IF($H$3=1,G64,G65)","v":"7 of 10"},{"$f":"IF($H$3=1,H64,H65)","v":"17 of 21"},null,null,"02Q","NHS Bassetlaw","Yorkshire and Northern","No","No",4,45,15986.14,10835.430784123912,1.4753580469936567,45,82,102615,7.9910344491546071E-4,{"$f":"IF(GraphData!$N$3=-1,10000,1)","v":10000},null,null,null,null,null,null,-7.9910344491546071E-4,79.91034449154607]
[null,"<25% of outcome (Q1)",null,null,{"$f":"E45","v":7.6732514744427299E-2},{"$f":"QUARTILE(IF(SummaryData_SCN=$F$11,SummaryData_OutcomeValue),1)","v":6.2589309872622032E-4},{"$f":"QUARTILE(IF(SummaryData_comparator=$G$11,SummaryData_OutcomeValue),1)","v":7.3620740331410564E-4},{"$f":"QUARTILE(IF(SummaryData_Decile=$H$11,SummaryData_OutcomeValue),1)","v":4.9704334519208462E-4},null,null,"02R","NHS Bradford Districts","Yorkshire and Northern","No","Comparator Closest 10 CCGs",2,46,44499.3399999998,36061.102669850225,1.233998316895744,46,251,309647,8.1060045794081653E-4,{"$f":"IF(GraphData!$N$3=-1,10000,1)","v":10000},null,null,null,null,null,null,-8.1060045794081653E-4,81.060045794081645]
[null,"Average (Median) ",null,null,{"$f":"E46","v":6.5984823490597158E-2},{"$f":"QUARTILE(IF(SummaryData_SCN=$F$11,SummaryData_OutcomeValue),2)","v":7.4198537972853173E-4},{"$f":"QUARTILE(IF(SummaryData_comparator=$G$11,SummaryData_OutcomeValue),2)","v":7.7056763226182904E-4},{"$f":"QUARTILE(IF(SummaryData_Decile=$H$11,SummaryData_OutcomeValue),2)","v":7.5598578746719565E-4},null,null,"02T","NHS Calderdale","Yorkshire and Northern","Closest 10 CCGs","No",5,47,22950.59,23011.710356682423,0.99734394550708949,47,165,199042,8.2897076998824368E-4,{"$f":"IF(GraphData!$N$3=-1,10000,1)","v":10000},null,null,null,null,null,null,-8.2897076998824368E-4,82.89707699882436]
[null,">25% of outcome (Q2)",null,null,{"$f":"E47","v":5.2262388150820037E-2},{"$f":"QUARTILE(IF(SummaryData_SCN=$F$11,SummaryData_OutcomeValue),3)","v":7.9761387007700499E-4},{"$f":"QUARTILE(IF(SummaryData_comparator=$G$11,SummaryData_OutcomeValue),3)","v":8.2247492664135611E-4},{"$f":"QUARTILE(IF(SummaryData_Decile=$H$11,SummaryData_OutcomeValue),2)","v":7.5598578746719565E-4},null,null,"02V","NHS Leeds North","Yorkshire and Northern","No","No",5,48,17681.060000000001,21868.164794007491,0.80852966705487439,48,99,188671,5.2472293039205814E-4,{"$f":"IF(GraphData!$N$3=-1,10000,1)","v":10000},null,null,null,null,null,null,-5.2472293039205814E-4,52.472293039205809]
[null,"Saving",null,null,null,null,null,null,null,null,"02W","NHS Bradford City","Yorkshire and Northern","No","No",1,49,3053.74,19663.095434316794,0.15530311644983905,49,67,116880,5.7323750855578373E-4,{"$f":"IF(GraphData!$N$3=-1,10000,1)","v":10000},null,null,null,null,null,null,-5.7323750855578373E-4,57.323750855578375]
[null,"Chosen CCG",null,"Where","Difference","Annually",null,null,null,null,"02X","NHS Doncaster","Yorkshire and Northern","No","No",2,50,51826.9399999999,29641.082011087747,1.7484834049112363,50,224,284492,7.8736836185200288E-4,{"$f":"IF(GraphData!$N$3=-1,10000,1)","v":10000},null,null,null,null,null,null,-7.8736836185200288E-4,78.736836185200289]
[null,"Lowest 25%",null,{"$f":"IF(E45-$D$43<0,\"outside\",\"within\")","v":"within"},{"$f":"ABS(E45-$D$43)","v":7.6146012769399571E-2},null,null,null,null,null,"02Y","NHS East Riding Of Yorkshire","Yorkshire and Northern","No","No",8,51,39715.049999999901,26662.886506600513,1.4895255241838976,51,207,270065,7.6648214318775112E-4,{"$f":"IF(GraphData!$N$3=-1,10000,1)","v":10000},null,null,null,null,null,null,-7.6648214318775112E-4,76.648214318775118]
[null,"Highest 25%",null,{"$f":"IF(E47-$D$43<0,\"within\",\"outside\")","v":"outside"},{"$f":"ABS(E47-$D$43)","v":5.1675886175792302E-2},null,null,null,null,null,"03A","NHS Greater Huddersfield","Yorkshire and Northern","No","No",5,52,26405.61,25652.915467434173,1.0293414810305423,52,135,223216,6.0479535517167233E-4,{"$f":"IF(GraphData!$N$3=-1,10000,1)","v":10000},null,null,null,null,null,null,-6.0479535517167233E-4,60.479535517167236]
[null,"Comparison CCG",null,null,null,null,null,null,null,null,"03C","NHS Leeds West","Yorkshire and Northern","No","No",5,53,30366.43,42939.559785841768,0.70719006322958533,53,192,337601,5.6871869455362985E-4,{"$f":"IF(GraphData!$N$3=-1,10000,1)","v":10000},null,null,null,null,null,null,-5.6871869455362985E-4,56.871869455362983]
[null,"Lowest 25%",null,{"$f":"IF(E50-$D$48<0,\"outside\",\"within\")","v":"within"},{"$f":"ABS(E50-D48)","v":7.592191428648648E-2},null,null,null,null,null,"03D","NHS Hambleton, Richmondshire and Whitby","Northern England","No","No",9,54,20598.480000000101,12490.944258835942,1.6490730863224361,54,80,127653,6.2669894166216228E-4,{"$f":"IF(GraphData!$N$3=-1,10000,1)","v":10000},null,null,null,null,null,null,-6.2669894166216228E-4,62.669894166216231]
[null,"Highest 25%",null,{"$f":"IF(E52-$D$48<0,\"within\",\"outside\")","v":"outside"},{"$f":"E52-D48","v":5.1451787692879218E-2},null,null,null,null,null,"03E","NHS Harrogate and Rural District","Yorkshire and Northern","Closest 10 CCGs","No",10,55,21048.400000000001,15245.659225338677,1.3806159306654986,55,78,144343,5.4037951268852663E-4,{"$f":"IF(GraphData!$N$3=-1,10000,1)","v":10000},null,null,null,null,null,null,-5.4037951268852663E-4,54.037951268852666]
[null,null,null,null,null,{"$f":"(E48*100)*-1","v":8.1060045794081659E-2},null,null,null,null,"03F","NHS Hull","Yorkshire and Northern","No","No",1,56,19967.490000000002,29552.513739059636,0.67566130503507449,56,199,269479,7.3846199518329812E-4,{"$f":"IF(GraphData!$N$3=-1,10000,1)","v":10000},null,null,null,null,null,null,-7.3846199518329812E-4,73.846199518329811]
[null,"Formulas to change ranking system dependant on indicators polarity on summary outcomes page.",null,null,null,{"$f":"SUMPRODUCT((SummaryData_SCN=$F38)*(SummaryData_OutcomeValue>$D43))+1&\" of \"&COUNTIF(SummaryData_SCN,$F38)","v":"18 of 22"},{"$f":"SUMPRODUCT((SummaryData_Cluster=$G38)*(SummaryData_OutcomeValue>$D43))+1&\" of \"&COUNTIF(SummaryData_Cluster,$G38)","v":"7 of 10"},{"$f":"SUMPRODUCT(($P$5:$P$215=$H38)*(SummaryData_OutcomeValue>$D43))+1&\" of \"&COUNTIF($P$5:$P$215,$H38)","v":"18 of 21"},null,null,"03G","NHS Leeds South and East","Yorkshire and Northern","No","Comparator Closest 10 CCGs",1,57,20593.47,26999.384678494516,0.76273849368141566,57,179,245335,7.2961460859640901E-4,{"$f":"IF(GraphData!$N$3=-1,10000,1)","v":10000},null,null,null,null,null,null,-7.2961460859640901E-4,72.961460859640908]
[null,null,null,null,null,{"$f":"SUMPRODUCT((SummaryData_SCN=$F38)*(SummaryData_OutcomeValue2>$E43))+1&\" of \"&COUNTIF(SummaryData_SCN,$F38)","v":"5 of 22"},{"$f":"SUMPRODUCT((SummaryData_Cluster=$G38)*(SummaryData_OutcomeValue2>$E43))+1&\" of \"&COUNTIF(SummaryData_Cluster,$G38)","v":"4 of 10"},{"$f":"SUMPRODUCT(($P$5:$P$215=$H38)*(SummaryData_OutcomeValue2>$E43))+1&\" of \"&COUNTIF($P$5:$P$215,$H38)","v":"4 of 21"},null,null,"03H","NHS North East Lincolnshire","Yorkshire and Northern","No","No",3,58,17287.259999999998,16168.124579448235,1.0692186292264427,58,122,153818,7.9314514556163781E-4,{"$f":"IF(GraphData!$N$3=-1,10000,1)","v":10000},null,null,null,null,null,null,-7.9314514556163781E-4,79.314514556163786]
[null,null,null,null,null,null,null,null,null,null,"03J","NHS North Kirklees","Yorkshire and Northern","No","Comparator Closest 10 CCGs",3,59,14395.07,20961.620469083158,0.68673459770114931,59,127,174635,7.2723108197096805E-4,{"$f":"IF(GraphData!$N$3=-1,10000,1)","v":10000},null,null,null,null,null,null,-7.2723108197096805E-4,72.723108197096806]
[null,"Formulas to change ranking system dependant on indicators polarity on summary outcomes page.",null,null,null,{"$f":"SUMPRODUCT((SummaryData_SCN=$F39)*(SummaryData_OutcomeValue>$D48))+1&\" of \"&COUNTIF(SummaryData_SCN,$F39)","v":"5 of 22"},{"$f":"SUMPRODUCT((SummaryData_comparator=$G39)*(SummaryData_OutcomeValue>$D48))+1&\" of \"&COUNTIF(SummaryData_comparator,$G39)","v":"4 of 10"},{"$f":"SUMPRODUCT(($P$5:$P$215=$H39)*(SummaryData_OutcomeValue>$D48))+1&\" of \"&COUNTIF($P$5:$P$215,$H39)","v":"5 of 21"},null,null,"03K","NHS North Lincolnshire","Yorkshire and Northern","No","No",5,60,29152.06,16557.062036675768,1.7607024685554047,60,126,155265,8.1151579557530676E-4,{"$f":"IF(GraphData!$N$3=-1,10000,1)","v":10000},null,null,null,null,null,null,-8.1151579557530676E-4,81.151579557530681]
[null,null,null,null,null,{"$f":"SUMPRODUCT((SummaryData_SCN=$F39)*(SummaryData_OutcomeValue2>$E48))+1&\" of \"&COUNTIF(SummaryData_SCN,$F39)","v":"18 of 22"},{"$f":"SUMPRODUCT((SummaryData_comparator=$G39)*(SummaryData_OutcomeValue2>$E48))+1&\" of \"&COUNTIF(SummaryData_comparator,$G39)","v":"7 of 10"},{"$f":"SUMPRODUCT(($P$5:$P$215=$H39)*(SummaryData_OutcomeValue2>$E48))+1&\" of \"&COUNTIF($P$5:$P$215,$H39)","v":"17 of 21"},null,null,"03L","NHS Rotherham","Yorkshire and Northern","No","No",3,61,48405.849999999897,25257.454974904045,1.9164975270903672,61,177,236637,7.4798108495290256E-4,{"$f":"IF(GraphData!$N$3=-1,10000,1)","v":10000},null,null,null,null,null,null,-7.4798108495290256E-4,74.798108495290251]
[null,null,null,null,null,null,null,null,null,null,"03M","NHS Scarborough and Ryedale","Yorkshire and Northern","No","No",4,62,19130.39,10261.896491837444,1.8642158411183318,62,114,105607,1.0794738985105154E-3,{"$f":"IF(GraphData!$N$3=-1,10000,1)","v":10000},null,null,null,null,null,null,-1.0794738985105154E-3,107.94738985105154]
[null,"crude rate",null,null,null,null,null,null,null,null,"03N","NHS Sheffield","Yorkshire and Northern","No","No",3,63,65594.719999999797,61803.355776424069,1.0613456045540817,63,368,533963,6.8918632938986407E-4,{"$f":"IF(GraphData!$N$3=-1,10000,1)","v":10000},null,null,null,null,null,null,-6.8918632938986407E-4,68.918632938986406]
[null,{"$f":"IF(H3=1,D43,D43*100)","v":5.8650197502773518E-2},null,{"$f":"IF(B68>B70,\"higher\",\"lower\")","v":"lower"},null,null,null,null,null,null,"03Q","NHS Vale Of York","Yorkshire and Northern","No","No",9,64,41484.959999999897,34098.962079950674,1.2166047723895972,64,220,313724,7.0125333095332203E-4,{"$f":"IF(GraphData!$N$3=-1,10000,1)","v":10000},null,null,null,null,null,null,{"$f":"X68*$H$3","v":-7.0125333095332203E-4},{"$f":"(X68*Y68)*10","v":70.125333095332195}]
[null,{"$f":"IF(H3=1,D48,D48*100)","v":8.1060045794081659E-2},null,null,null,null,null,null,null,null,"03R","NHS Wakefield",{"$f":"INDEX(Lookup_SCN,MATCH($K69,Lookup_CCGcode,0))","v":"Yorkshire and Northern"},{"$f":"INDEX(Lookup_Cluster,MATCH($K69,Lookup_CCGcode,0))","v":"No"},{"$f":"INDEX(Lookup_Comparator,MATCH($K69,Lookup_CCGcode,0))","v":"No"},{"$f":"INDEX(Lookup_Decile,MATCH($K69,Lookup_CCGcode,0))","v":4},{"$f":"MATCH($K69,DataCost_CCGcode,0)","v":65},{"$f":"INDEX(INDIRECT($D$6),Q69)","v":31310.880000000001},{"$f":"INDEX(INDIRECT($D$7),Q69)","v":36633.970799917741},{"$f":"IFERROR(R69/S69,0)","v":0.85469522730717218},{"$f":"MATCH($K69,DataCost_CCGcode,0)","v":65},{"$f":"INDEX(INDIRECT($D$34),U69)","v":246},{"$f":"INDEX(INDIRECT($D$35),U69)","v":329976},{"$f":"(V69/W69)","v":7.4550876427376535E-4},{"$f":"IF(GraphData!$N$3=-1,10000,1)","v":10000},null,null,null,null,null,null,-7.4550876427376535E-4,74.550876427376537]
[null,{"$f":"E46","v":6.5984823490597158E-2},null,null,null,null,null,null,null,null,"03T","NHS Lincolnshire East","East Midlands","No","No",4,66,53000.1599999998,19598.269168553867,2.7043286090304584,66,240,216597,1.1080485879305807E-3,{"$f":"IF(GraphData!$N$3=-1,10000,1)","v":10000},null,null,null,null,null,null,-1.1080485879305807E-3,110.80485879305806]
[null,null,null,null,null,null,null,null,null,null,"03V","NHS Corby","East Midlands","No","No",3,67,13045.95,8169.4090382387012,1.5969270162548583,67,60,66498,9.0228277542181716E-4,{"$f":"IF(GraphData!$N$3=-1,10000,1)","v":10000},null,null,null,null,null,null,-9.0228277542181716E-4,90.228277542181715]
[null,null,null,null,null,null,null,null,null,null,"03W","NHS East Leicestershire and Rutland","East Midlands","No","No",10,68,47131.859999999899,31421.80235433772,1.4999731545791941,68,163,290534,5.6103588564505359E-4,{"$f":"IF(GraphData!$N$3=-1,10000,1)","v":10000},null,null,null,null,null,null,-5.6103588564505359E-4,56.103588564505358]
[null,null,null,null,null,null,null,null,null,null,"03X","NHS Erewash","East Midlands","No","No",5,69,11173.56,9587.5,1.1654299869621902,69,62,88748,6.9860729255870552E-4,{"$f":"IF(GraphData!$N$3=-1,10000,1)","v":10000},null,null,null,null,null,null,-6.9860729255870552E-4,69.860729255870552]
[null,null,null,null,null,null,null,null,null,null,"03Y","NHS Hardwick","East Midlands","No","No",4,70,15774.05,9439.7307018352858,1.671027542865517,70,81,93198,8.6911736303354147E-4,{"$f":"IF(GraphData!$N$3=-1,10000,1)","v":10000},null,null,null,null,null,null,-8.6911736303354147E-4,86.911736303354147]
[null,null,null,null,null,null,null,null,null,null,"04C","NHS Leicester City","East Midlands","No","No",2,71,36450.989999999903,48616.778006166496,0.74976153284729197,71,228,355505,6.413411907005527E-4,{"$f":"IF(GraphData!$N$3=-1,10000,1)","v":10000},null,null,null,null,null,null,-6.413411907005527E-4,64.134119070055263]
[null,null,null,null,null,null,null,null,null,null,"04D","NHS Lincolnshire West","East Midlands","No","No",6,72,31313.529999999901,22731.262525050101,1.3775534889666621,72,160,207991,7.6926405469467433E-4,{"$f":"IF(GraphData!$N$3=-1,10000,1)","v":10000},null,null,null,null,null,null,-7.6926405469467433E-4,76.926405469467426]
[null,null,null,null,null,null,null,null,null,null,"04E","NHS Mansfield and Ashfield","East Midlands","No","No",3,73,22595.66,18279.405940594061,1.2361266046300006,73,138,170357,8.1006357238035424E-4,{"$f":"IF(GraphData!$N$3=-1,10000,1)","v":10000},null,null,null,null,null,null,-8.1006357238035424E-4,81.00635723803542]
[null,null,null,null,null,null,null,null,null,null,"04F","NHS Milton Keynes","East Midlands","No","No",8,74,21020.880000000001,36043.257676902533,0.58321254389474164,74,118,258291,4.5684905784560824E-4,{"$f":"IF(GraphData!$N$3=-1,10000,1)","v":10000},null,null,null,null,null,null,-4.5684905784560824E-4,45.684905784560826]
[null,null,null,null,null,null,null,null,null,null,"04G","NHS Nene","East Midlands","No","No",7,75,66667.59,70974.168912848152,0.93932188317504128,75,349,591939,5.8958777847041674E-4,{"$f":"IF(GraphData!$N$3=-1,10000,1)","v":10000},null,null,null,null,null,null,-5.8958777847041674E-4,58.958777847041674]
[null,null,null,null,null,null,null,null,null,null,"04H","NHS Newark & Sherwood","East Midlands","No","No",6,76,19587.349999999999,12430.441105186623,1.5757566311807827,76,77,117184,6.5708629164391039E-4,{"$f":"IF(GraphData!$N$3=-1,10000,1)","v":10000},null,null,null,null,null,null,-6.5708629164391039E-4,65.708629164391041]
[null,null,null,null,null,null,null,null,null,null,"04J","NHS North Derbyshire","East Midlands","No","No",7,77,46459.699999999903,26678.683385579938,1.7414540038775592,77,219,262569,8.340664739554174E-4,{"$f":"IF(GraphData!$N$3=-1,10000,1)","v":10000},null,null,null,null,null,null,-8.340664739554174E-4,83.406647395541739]
[null,null,null,null,null,null,null,null,null,null,"04K","NHS Nottingham City","East Midlands","No","No",2,78,27137.37,43187.392690703949,0.62836324003975574,78,185,331829,5.5751607002401836E-4,{"$f":"IF(GraphData!$N$3=-1,10000,1)","v":10000},null,null,null,null,null,null,-5.5751607002401836E-4,55.751607002401833]
[null,null,null,null,null,null,null,null,null,null,"04L","NHS Nottingham North and East","East Midlands","No","No",7,79,22861.38,14435.370094386488,1.5837058454698125,79,98,133229,7.3557558789752984E-4,{"$f":"IF(GraphData!$N$3=-1,10000,1)","v":10000},null,null,null,null,null,null,-7.3557558789752984E-4,73.557558789752989]
[null,null,null,null,null,null,null,null,null,null,"04M","NHS Nottingham West","East Midlands","No","No",9,80,9733.1400000000103,9196.8179139658223,1.0583160492086896,80,67,85218,7.8621887394681876E-4,{"$f":"IF(GraphData!$N$3=-1,10000,1)","v":10000},null,null,null,null,null,null,-7.8621887394681876E-4,78.621887394681877]
[null,null,null,null,null,null,null,null,null,null,"04N","NHS Rushcliffe","East Midlands","No","No",10,81,11444.51,12413.023540201772,0.92197601679678853,81,49,110870,4.4195905114097591E-4,{"$f":"IF(GraphData!$N$3=-1,10000,1)","v":10000},null,null,null,null,null,null,-4.4195905114097591E-4,44.195905114097592]
[null,null,null,null,null,null,null,null,null,null,"04Q","NHS South West Lincolnshire","East Midlands","Closest 10 CCGs","No",8,82,22784.18,12187.482299631833,1.8694738945949714,82,86,117314,7.3307533627700019E-4,{"$f":"IF(GraphData!$N$3=-1,10000,1)","v":10000},null,null,null,null,null,null,-7.3307533627700019E-4,73.307533627700025]
[null,null,null,null,null,null,null,null,null,null,"04R","NHS Southern Derbyshire","East Midlands","No","No",6,83,61797.649999999798,56315.28964862298,1.097351188026978,83,359,492729,7.2859523186173333E-4,{"$f":"IF(GraphData!$N$3=-1,10000,1)","v":10000},null,null,null,null,null,null,-7.2859523186173333E-4,72.859523186173334]
[null,null,null,null,null,null,null,null,null,null,"04V","NHS West Leicestershire","East Midlands","No","No",9,84,43604.959999999897,39377.136185118354,1.1073674783002465,84,213,342411,6.2205945486564396E-4,{"$f":"IF(GraphData!$N$3=-1,10000,1)","v":10000},null,null,null,null,null,null,-6.2205945486564396E-4,62.205945486564396]
[null,null,null,null,null,null,null,null,null,null,"04X","NHS Birmingham South and Central","West Midlands","No","No",1,85,15563.87,30135.980148883373,0.51645474688755688,85,131,231985,5.646916826518956E-4,{"$f":"IF(GraphData!$N$3=-1,10000,1)","v":10000},null,null,null,null,null,null,-5.646916826518956E-4,56.469168265189566]
[null,null,null,null,null,null,null,null,null,null,"04Y","NHS Cannock Chase","West Midlands","No","No",6,86,18593.73,13970.901423299949,1.3308897856075583,86,101,122432,8.2494772608468373E-4,{"$f":"IF(GraphData!$N$3=-1,10000,1)","v":10000},null,null,null,null,null,null,-8.2494772608468373E-4,82.494772608468381]
[null,null,null,null,null,null,null,null,null,null,"05A","NHS Coventry and Rugby","West Midlands","No","No",4,87,41980.800000000003,52573.785109228716,0.79851203242794022,87,255,438013,5.8217450167004174E-4,{"$f":"IF(GraphData!$N$3=-1,10000,1)","v":10000},null,null,null,null,null,null,-5.8217450167004174E-4,58.217450167004174]
[null,null,null,null,null,null,null,null,null,null,"05C","NHS Dudley","West Midlands","No","No",4,88,48301.639999999803,30259.682844786163,1.5962374836431019,88,212,286691,7.3947211457632089E-4,{"$f":"IF(GraphData!$N$3=-1,10000,1)","v":10000},null,null,null,null,null,null,-7.3947211457632089E-4,73.947211457632093]
[null,null,null,null,null,null,null,null,null,null,"05D","NHS East Staffordshire","West Midlands","Closest 10 CCGs","No",6,89,20679.439999999999,14017.84047297998,1.4752229517706776,89,88,124521,7.0670810546012318E-4,{"$f":"IF(GraphData!$N$3=-1,10000,1)","v":10000},null,null,null,null,null,null,-7.0670810546012318E-4,70.670810546012319]
[null,null,null,null,null,null,null,null,null,null,"05F","NHS Herefordshire","West Midlands","No","No",7,90,19243.169999999998,16218.561278863233,1.1864905689926128,90,137,163108,8.3993427667557695E-4,{"$f":"IF(GraphData!$N$3=-1,10000,1)","v":10000},null,null,null,null,null,null,-8.3993427667557695E-4,83.993427667557683]
[null,null,null,null,null,null,null,null,null,null,"05G","NHS North Staffordshire","West Midlands","No","No",7,91,41292.47,20647.001934235977,1.9999257098693146,91,153,194081,7.8833064545215652E-4,{"$f":"IF(GraphData!$N$3=-1,10000,1)","v":10000},null,null,null,null,null,null,-7.8833064545215652E-4,78.833064545215649]
[null,null,null,null,null,null,null,null,null,null,"05H","NHS Warwickshire North","West Midlands","No","No",5,92,20603.78,18848.559166155734,1.0931222815691886,92,129,170027,7.5870302951884115E-4,{"$f":"IF(GraphData!$N$3=-1,10000,1)","v":10000},null,null,null,null,null,null,-7.5870302951884115E-4,75.870302951884113]
[null,null,null,null,null,null,null,null,null,null,"05J","NHS Redditch and Bromsgrove","West Midlands","No","No",8,93,23025.439999999999,17697.231655860862,1.3010758093554464,93,91,158689,5.7344869524667745E-4,{"$f":"IF(GraphData!$N$3=-1,10000,1)","v":10000},null,null,null,null,null,null,-5.7344869524667745E-4,57.344869524667743]
[null,null,null,null,null,null,null,null,null,null,"05L","NHS Sandwell and West Birmingham","West Midlands","No","No",1,94,52788.849999999802,61501.366742596816,0.85833620935512334,94,357,508998,7.0137800148527111E-4,{"$f":"IF(GraphData!$N$3=-1,10000,1)","v":10000},null,null,null,null,null,null,-7.0137800148527111E-4,70.137800148527106]
[null,null,null,null,null,null,null,null,null,null,"05N","NHS Shropshire","West Midlands","No","No",7,95,51401.179999999898,26876.000359679885,1.9125308569765225,95,209,268500,7.7839851024208569E-4,{"$f":"IF(GraphData!$N$3=-1,10000,1)","v":10000},null,null,null,null,null,null,-7.7839851024208569E-4,77.839851024208571]
[null,null,null,null,null,null,null,null,null,null,"05P","NHS Solihull","West Midlands","No","No",8,96,43439.69,23303.40496516534,1.8640919670294969,96,131,216222,6.0585879327727983E-4,{"$f":"IF(GraphData!$N$3=-1,10000,1)","v":10000},null,null,null,null,null,null,-6.0585879327727983E-4,60.585879327727987]
[null,null,null,null,null,null,null,null,null,null,"05Q","NHS South East Staffs and Seisdon Peninsular","West Midlands","No","No",8,97,44388.19,21637.207878354937,2.0514749522929114,97,133,194998,6.8205827752079512E-4,{"$f":"IF(GraphData!$N$3=-1,10000,1)","v":10000},null,null,null,null,null,null,-6.8205827752079512E-4,68.205827752079514]
[null,null,null,null,null,null,null,null,null,null,"05R","NHS South Warwickshire","West Midlands","No","No",10,98,78039.869999999893,26733.066171439743,2.9192263057117538,98,158,248644,6.3544666269847651E-4,{"$f":"IF(GraphData!$N$3=-1,10000,1)","v":10000},null,null,null,null,null,null,-6.3544666269847651E-4,63.544666269847653]
[null,null,null,null,null,null,null,null,null,null,"05T","NHS South Worcestershire","West Midlands","Closest 10 CCGs","No",8,99,35939.299999999901,28313.100268920472,1.2693523372094568,99,173,266891,6.4820469779797748E-4,{"$f":"IF(GraphData!$N$3=-1,10000,1)","v":10000},null,null,null,null,null,null,-6.4820469779797748E-4,64.820469779797747]
[null,null,null,null,null,null,null,null,null,null,"05V","NHS Stafford and Surrounds","West Midlands","No","No",9,100,32949.410000000003,13847.410663099561,2.3794636269294198,100,87,131720,6.6049195262678413E-4,{"$f":"IF(GraphData!$N$3=-1,10000,1)","v":10000},null,null,null,null,null,null,-6.6049195262678413E-4,66.04919526267841]
[null,null,null,null,null,null,null,null,null,null,"05W","NHS Stoke On Trent","West Midlands","No","No",1,101,48163.66,27780.2775024777,1.7337357409660261,101,176,259485,6.7826656646819664E-4,{"$f":"IF(GraphData!$N$3=-1,10000,1)","v":10000},null,null,null,null,null,null,-6.7826656646819664E-4,67.826656646819657]
[null,null,null,null,null,null,null,null,null,null,"05X","NHS Telford and Wrekin","West Midlands","No","No",4,102,14568.15,19170.236255243984,0.75993586130243485,102,108,162753,6.6358223811542648E-4,{"$f":"IF(GraphData!$N$3=-1,10000,1)","v":10000},null,null,null,null,null,null,-6.6358223811542648E-4,66.358223811542643]
[null,null,null,null,null,null,null,null,null,null,"05Y","NHS Walsall","West Midlands","No","Comparator Closest 10 CCGs",2,103,43056.539999999797,26614.53226122769,1.617783080964567,103,207,250474,8.264330828748693E-4,{"$f":"IF(GraphData!$N$3=-1,10000,1)","v":10000},null,null,null,null,null,null,-8.264330828748693E-4,82.643308287486946]
[null,null,null,null,null,null,null,null,null,null,"06A","NHS Wolverhampton","West Midlands","No","No",2,104,34112.46,26196.394781396273,1.3021814751480776,104,174,241836,7.194958566962735E-4,{"$f":"IF(GraphData!$N$3=-1,10000,1)","v":10000},null,null,null,null,null,null,-7.194958566962735E-4,71.949585669627353]
[null,null,null,null,null,null,null,null,null,null,"06D","NHS Wyre Forest","West Midlands","No","No",5,105,10943.07,10266.082671776623,1.0659440752493199,105,104,101691,1.0227060408492393E-3,{"$f":"IF(GraphData!$N$3=-1,10000,1)","v":10000},null,null,null,null,null,null,-1.0227060408492393E-3,102.27060408492393]
[null,null,null,null,null,null,null,null,null,null,"06F","NHS Bedfordshire","East of England","No","No",9,106,59199.149999999703,49645.07105292604,1.192447684018584,106,243,412167,5.8956685033008469E-4,{"$f":"IF(GraphData!$N$3=-1,10000,1)","v":10000},null,null,null,null,null,null,-5.8956685033008469E-4,58.956685033008469]
[null,null,null,null,null,null,null,null,null,null,"06H","NHS Cambridgeshire and Peterborough","East of England","No","No",8,107,94136.409999999494,98248.541947061458,0.9581456185957683,107,432,814696,5.3025913960544791E-4,{"$f":"IF(GraphData!$N$3=-1,10000,1)","v":10000},null,null,null,null,null,null,-5.3025913960544791E-4,53.025913960544798]
[null,null,null,null,null,null,null,null,null,null,"06K","NHS East and North Hertfordshire","East of England","No","No",9,108,85196.629999999597,65483.716146726096,1.3010353567763895,108,318,529320,6.0077080027204713E-4,{"$f":"IF(GraphData!$N$3=-1,10000,1)","v":10000},null,null,null,null,null,null,-6.0077080027204713E-4,60.077080027204708]
[null,null,null,null,null,null,null,null,null,null,"06L","NHS Ipswich and East Suffolk","East of England","No","No",8,109,65512.65,37412.041031540604,1.7511113586336786,109,229,353681,6.4747611548259594E-4,{"$f":"IF(GraphData!$N$3=-1,10000,1)","v":10000},null,null,null,null,null,null,-6.4747611548259594E-4,64.747611548259584]
[null,null,null,null,null,null,null,null,null,null,"06M","NHS Great Yarmouth and Waveney","East of England","Closest 10 CCGs","No",4,110,40700.789999999899,20081.890581717453,2.0267409502297502,110,175,207253,8.4437860971855658E-4,{"$f":"IF(GraphData!$N$3=-1,10000,1)","v":10000},null,null,null,null,null,null,-8.4437860971855658E-4,84.437860971855656]
[null,null,null,null,null,null,null,null,null,null,"06N","NHS Herts Valleys","East of England","No","No",10,{"$f":"MATCH($K115,DataCost_CCGcode,0)","v":111},{"$f":"INDEX(INDIRECT($D$6),Q115)","v":96844.56},69280.159181353039,1.3978686126643023,111,280,564646,4.9588591790254428E-4,{"$f":"IF(GraphData!$N$3=-1,10000,1)","v":10000},null,null,null,null,null,null,-4.9588591790254428E-4,49.588591790254426]
[null,null,null,null,null,null,null,null,null,null,"06P","NHS Luton","East of England","No","No",3,112,21383.86,29521.975779017554,0.72433702134524358,112,139,206139,6.7430229117246125E-4,{"$f":"IF(GraphData!$N$3=-1,10000,1)","v":10000},null,null,null,null,null,null,-6.7430229117246125E-4,67.430229117246114]
[null,null,null,null,null,null,null,null,null,null,"06Q","NHS Mid Essex","East of England","No","No",9,113,70887.779999999795,40316.011829319817,1.7583033832837269,113,212,351360,6.0336976320582881E-4,{"$f":"IF(GraphData!$N$3=-1,10000,1)","v":10000},null,null,null,null,null,null,-6.0336976320582881E-4,60.336976320582885]
[null,null,null,null,null,null,null,null,null,null,"06T","NHS North East Essex","East of England","No","No",6,114,63766.64,30556.915432041958,2.0868153443634023,114,207,298709,6.9298213311282889E-4,{"$f":"IF(GraphData!$N$3=-1,10000,1)","v":10000},null,null,null,null,null,null,-6.9298213311282889E-4,69.298213311282893]
[null,null,null,null,null,null,null,null,null,null,"06V","NHS North Norfolk","East of England","No","No",8,115,40911.300000000097,12992.897946580206,3.1487432725328341,115,122,146392,8.3337887316246786E-4,{"$f":"IF(GraphData!$N$3=-1,10000,1)","v":10000},null,null,null,null,null,null,-8.3337887316246786E-4,83.337887316246793]
[null,null,null,null,null,null,null,null,null,null,"06W","NHS Norwich","East of England","No","No",6,116,25222.55,22062.545835515975,1.1432293529515118,116,95,193153,4.9183807655071366E-4,{"$f":"IF(GraphData!$N$3=-1,10000,1)","v":10000},null,null,null,null,null,null,-4.9183807655071366E-4,49.183807655071369]
[null,null,null,null,null,null,null,null,null,null,"06Y","NHS South Norfolk","East of England","No","No",9,117,46882.139999999803,20647.222222222223,2.2706269877572889,117,139,203227,6.8396423703543329E-4,{"$f":"IF(GraphData!$N$3=-1,10000,1)","v":10000},null,null,null,null,null,null,-6.8396423703543329E-4,68.39642370354332]
[null,null,null,null,null,null,null,null,null,null,"07G","NHS Thurrock","East of England","No","No",6,118,12583.130000000099,19836.86056355061,0.63433071779115424,118,102,154581,6.5984823490597162E-4,{"$f":"IF(GraphData!$N$3=-1,10000,1)","v":10000},null,null,null,null,null,null,-6.5984823490597162E-4,65.984823490597165]
[null,null,null,null,null,null,null,null,null,null,"07H","NHS West Essex","East of England","Closest 10 CCGs","No",8,119,43719.499999999898,31615.195291599783,1.3828635122053556,119,139,272314,5.1044015364615843E-4,{"$f":"IF(GraphData!$N$3=-1,10000,1)","v":10000},null,null,null,null,null,null,-5.1044015364615843E-4,51.044015364615845]
[null,null,null,null,null,null,null,null,null,null,"07J","NHS West Norfolk","East of England","No","No",6,120,26036.05,13753.482587064676,1.8930514388033786,120,96,146855,6.5370603656668142E-4,{"$f":"IF(GraphData!$N$3=-1,10000,1)","v":10000},null,null,null,null,null,null,-6.5370603656668142E-4,65.370603656668152]
[null,null,null,null,null,null,null,null,null,null,"07K","NHS West Suffolk","East of England","No","No",9,121,35508.83,22619.544592030361,1.5698295717461517,121,138,216423,6.3764017687584034E-4,{"$f":"IF(GraphData!$N$3=-1,10000,1)","v":10000},null,null,null,null,null,null,-6.3764017687584034E-4,63.76401768758403]
[null,null,null,null,null,null,null,null,null,null,"07L","NHS Barking and Dagenham","London","No","No",2,122,14250.02,27816.057600869448,0.51229474012717702,122,93,195905,4.747198897424772E-4,{"$f":"IF(GraphData!$N$3=-1,10000,1)","v":10000},null,null,null,null,null,null,-4.747198897424772E-4,47.471988974247722]
[null,null,null,null,null,null,null,null,null,null,"07M","NHS Barnet","London","No","No",7,123,55694.429999999797,48623.317821657656,1.1454263611602526,123,154,361656,4.2581901033025859E-4,{"$f":"IF(GraphData!$N$3=-1,10000,1)","v":10000},null,null,null,null,null,null,-4.2581901033025859E-4,42.581901033025858]
[null,null,null,null,null,null,null,null,null,null,"07N","NHS Bexley","London","No","No",7,124,39360.729999999901,24889.87605572008,1.5813951789829903,124,109,207718,5.2474990130850475E-4,{"$f":"IF(GraphData!$N$3=-1,10000,1)","v":10000},null,null,null,null,null,null,-5.2474990130850475E-4,52.474990130850472]
[null,null,null,null,null,null,null,null,null,null,"07P","NHS Brent","London","No","No",2,125,29604.44,48670.190274841436,0.60826637070500844,125,165,331963,4.9704334519208462E-4,{"$f":"IF(GraphData!$N$3=-1,10000,1)","v":10000},null,null,null,null,null,null,-4.9704334519208462E-4,49.704334519208466]
[null,null,null,null,null,null,null,null,null,null,"07Q","NHS Bromley","London","No","No",8,126,52935.6899999999,34813.904641881956,1.5205329751009027,126,152,304588,4.9903476171090126E-4,{"$f":"IF(GraphData!$N$3=-1,10000,1)","v":10000},null,null,null,null,null,null,-4.9903476171090126E-4,49.903476171090126]
[null,null,null,null,null,null,null,null,null,null,"07R","NHS Camden","London","No","No",4,127,19642.27,37145.095168374814,0.52879848364807402,127,89,244964,3.6331869172613119E-4,{"$f":"IF(GraphData!$N$3=-1,10000,1)","v":10000},null,null,null,null,null,null,-3.6331869172613119E-4,36.331869172613118]
[null,null,null,null,null,null,null,null,null,null,"07T","NHS City and Hackney","London","No","No",1,128,14650.82,42621.20327102804,0.34374487052454855,128,129,271782,4.74645119985871E-4,{"$f":"IF(GraphData!$N$3=-1,10000,1)","v":10000},null,null,null,null,null,null,{"$f":"X132*$H$3","v":-4.74645119985871E-4},{"$f":"(X132*Y132)*10","v":47.464511998587106}]
[null,null,null,null,null,null,null,null,null,null,"07V","NHS Croydon",{"$f":"INDEX(Lookup_SCN,MATCH($K133,Lookup_CCGcode,0))","v":"London"},{"$f":"INDEX(Lookup_Cluster,MATCH($K133,Lookup_CCGcode,0))","v":"No"},{"$f":"INDEX(Lookup_Comparator,MATCH($K133,Lookup_CCGcode,0))","v":"No"},{"$f":"INDEX(Lookup_Decile,MATCH($K133,Lookup_CCGcode,0))","v":5},{"$f":"MATCH($K133,DataCost_CCGcode,0)","v":129},{"$f":"INDEX(INDIRECT($D$6),Q133)","v":38524.059999999801},{"$f":"INDEX(INDIRECT($D$7),Q133)","v":49220.560030686618},{"$f":"IFERROR(R133/S133,0)","v":0.78268227699932569},{"$f":"MATCH($K133,DataCost_CCGcode,0)","v":129},{"$f":"INDEX(INDIRECT($D$34),U133)","v":193},{"$f":"INDEX(INDIRECT($D$35),U133)","v":364234},{"$f":"(V133/W133)","v":5.2987914362744829E-4},{"$f":"IF(GraphData!$N$3=-1,10000,1)","v":10000},null,null,null,null,null,null,-5.2987914362744829E-4,52.987914362744831]
[null,null,null,null,null,null,null,null,null,null,"07W","NHS Ealing","London","No","No",4,130,41201.889999999701,57891.082078954845,0.7117139379741847,130,188,391033,4.8077783716463828E-4,{"$f":"IF(GraphData!$N$3=-1,10000,1)","v":10000},null,null,null,null,null,null,-4.8077783716463828E-4,48.077783716463827]
[null,null,null,null,null,null,null,null,null,null,"07X","NHS Enfield","London","No","No",3,131,30218.179999999898,37651.302115173006,0.80257994551063205,131,140,291610,4.8009327526490859E-4,{"$f":"IF(GraphData!$N$3=-1,10000,1)","v":10000},null,null,null,null,null,null,-4.8009327526490859E-4,48.009327526490857]
[null,null,null,null,null,null,null,null,null,null,"07Y","NHS Hounslow","London","No","No",5,132,26925.26,40855.452240067629,0.65903713026566235,132,145,278565,5.2052483262434259E-4,{"$f":"IF(GraphData!$N$3=-1,10000,1)","v":10000},null,null,null,null,null,null,-5.2052483262434259E-4,52.052483262434265]
[null,null,null,null,null,null,null,null,null,null,"08A","NHS Greenwich","London","No","No",2,133,24307.11,36498.438560760354,0.66597670910044604,133,110,257294,4.2752648720918485E-4,{"$f":"IF(GraphData!$N$3=-1,10000,1)","v":10000},null,null,null,null,null,null,-4.2752648720918485E-4,42.752648720918486]
[null,null,null,null,null,null,null,null,null,null,"08C","NHS Hammersmith and Fulham","London","No","No",3,134,16228.64,29580.645161290326,0.54862359869138488,134,77,195923,3.9301154024795458E-4,{"$f":"IF(GraphData!$N$3=-1,10000,1)","v":10000},null,null,null,null,null,null,-3.9301154024795458E-4,39.301154024795458]
[null,null,null,null,null,null,null,null,null,null,"08D","NHS Haringey","London","No","No",1,135,19872.62,39058.183284063423,0.50879529791413658,135,131,281041,4.6612415982009742E-4,{"$f":"IF(GraphData!$N$3=-1,10000,1)","v":10000},null,null,null,null,null,null,-4.6612415982009742E-4,46.612415982009743]
[null,null,null,null,null,null,null,null,null,null,"08E","NHS Harrow","London","No","No",8,136,32106.959999999999,31114.681229362461,1.0318910151552876,136,116,229868,5.0463744409835211E-4,{"$f":"IF(GraphData!$N$3=-1,10000,1)","v":10000},null,null,null,null,null,null,-5.0463744409835211E-4,50.463744409835208]
[null,null,null,null,null,null,null,null,null,null,"08F","NHS Havering","London","No","No",7,137,20209.77,26732.738959154052,0.75599324225172959,137,133,234166,5.679731472545118E-4,{"$f":"IF(GraphData!$N$3=-1,10000,1)","v":10000},null,null,null,null,null,null,-5.679731472545118E-4,56.79731472545118]
[null,null,null,null,null,null,null,null,null,null,"08G","NHS Hillingdon","London","No","No",6,138,35242.569999999898,35943.674285000627,0.98049436238928689,138,139,270852,5.1319539822486078E-4,{"$f":"IF(GraphData!$N$3=-1,10000,1)","v":10000},null,null,null,null,null,null,-5.1319539822486078E-4,51.319539822486078]
[null,null,null,null,null,null,null,null,null,null,"08H","NHS Islington","London","No","No",1,139,19171.79,30195.099459886707,0.63493051332614936,139,124,221125,5.6076879592990392E-4,{"$f":"IF(GraphData!$N$3=-1,10000,1)","v":10000},null,null,null,null,null,null,-5.6076879592990392E-4,56.076879592990387]
[null,null,null,null,null,null,null,null,null,null,"08J","NHS Kingston","London","No","No",9,140,24084.1,24625.38032454361,0.97801941259749281,140,72,182901,3.9365558416848461E-4,{"$f":"IF(GraphData!$N$3=-1,10000,1)","v":10000},null,null,null,null,null,null,-3.9365558416848461E-4,39.365558416848458]
[null,null,null,null,null,null,null,null,null,null,"08K","NHS Lambeth","London","No","No",2,141,33483.769999999997,58582.05723124517,0.57157040197183762,141,135,362478,3.7243639613990367E-4,{"$f":"IF(GraphData!$N$3=-1,10000,1)","v":10000},null,null,null,null,null,null,-3.7243639613990367E-4,37.243639613990368]
[null,null,null,null,null,null,null,null,null,null,"08L","NHS Lewisham","London","No","No",2,142,22259.83,43188.946759259263,0.51540571535766211,142,123,290423,4.2352017574365664E-4,{"$f":"IF(GraphData!$N$3=-1,10000,1)","v":10000},null,null,null,null,null,null,-4.2352017574365664E-4,42.352017574365668]
[null,null,null,null,null,null,null,null,null,null,"08M","NHS Newham","London","No","No",1,143,13328.2500000001,57639.012421407759,0.23123661284400915,143,157,351062,4.4721445214805362E-4,{"$f":"IF(GraphData!$N$3=-1,10000,1)","v":10000},null,null,null,null,null,null,-4.4721445214805362E-4,44.721445214805364]
[null,null,null,null,null,null,null,null,null,null,"08N","NHS Redbridge","London","No","No",6,144,26084.65,39507.289821501567,0.66024903550340763,144,135,273541,4.9352747851327588E-4,{"$f":"IF(GraphData!$N$3=-1,10000,1)","v":10000},null,null,null,null,null,null,-4.9352747851327588E-4,49.352747851327585]
[null,null,null,null,null,null,null,null,null,null,"08P","NHS Richmond","London","No","No",10,145,30017.09,24123.733460483971,1.2442970342534119,145,74,191362,3.867016440045568E-4,{"$f":"IF(GraphData!$N$3=-1,10000,1)","v":10000},null,null,null,null,null,null,-3.867016440045568E-4,38.670164400455683]
[null,null,null,null,null,null,null,null,null,null,"08Q","NHS Southwark","London","No","No",2,146,17673.580000000002,49848.51272615762,0.35454578348384558,146,115,300400,3.8282290279627166E-4,{"$f":"IF(GraphData!$N$3=-1,10000,1)","v":10000},null,null,null,null,null,null,-3.8282290279627166E-4,38.282290279627162]
[null,null,null,null,null,null,null,null,null,null,"08R","NHS Merton","London","No","No",8,147,31714.48,29568.693999456966,1.0725695223665421,147,86,202697,4.2427860303803215E-4,{"$f":"IF(GraphData!$N$3=-1,10000,1)","v":10000},null,null,null,null,null,null,-4.2427860303803215E-4,42.427860303803222]
[null,null,null,null,null,null,null,null,null,null,"08T","NHS Sutton","London","No","No",8,148,30673.779999999901,21751.251892395481,1.4102075665228193,148,86,172542,4.9842936792201316E-4,{"$f":"IF(GraphData!$N$3=-1,10000,1)","v":10000},null,null,null,null,null,null,-4.9842936792201316E-4,49.842936792201314]
[null,null,null,null,null,null,null,null,null,null,"08V","NHS Tower Hamlets","London","No","No",1,149,11829.46,44591.313857209811,0.265286195376083,149,99,266123,3.7200843219112968E-4,{"$f":"IF(GraphData!$N$3=-1,10000,1)","v":10000},null,null,null,null,null,null,-3.7200843219112968E-4,37.200843219112969]
[null,null,null,null,null,null,null,null,null,null,"08W","NHS Waltham Forest","London","No","No",1,150,18066.450000000099,38869.633714060656,0.46479599300841268,150,130,281356,4.6204808143419723E-4,{"$f":"IF(GraphData!$N$3=-1,10000,1)","v":10000},null,null,null,null,null,null,-4.6204808143419723E-4,46.204808143419726]
[null,null,null,null,null,null,null,null,null,null,"08X","NHS Wandsworth","London","No","No",5,151,32248.04,55692.189892802446,0.57904061704292364,151,140,352542,3.9711580464171645E-4,{"$f":"IF(GraphData!$N$3=-1,10000,1)","v":10000},null,null,null,null,null,null,-3.9711580464171645E-4,39.711580464171647]
[null,null,null,null,null,null,null,null,null,null,"08Y","NHS West London (K&C & Qpp)","London","No","No",3,152,24307.89,28735.574510787756,0.84591626977475121,152,94,214787,4.376428741031813E-4,{"$f":"IF(GraphData!$N$3=-1,10000,1)","v":10000},null,null,null,null,null,null,-4.376428741031813E-4,43.764287410318126]
[null,null,null,null,null,null,null,null,null,null,"09A","NHS Central London (Westminster)","London","No","No",5,153,21222.240000000002,25528.630816682311,0.83131132853908507,153,59,189431,3.1145905369237345E-4,{"$f":"IF(GraphData!$N$3=-1,10000,1)","v":10000},null,null,null,null,null,null,-3.1145905369237345E-4,31.145905369237347]
[null,null,null,null,null,null,null,null,null,null,"09C","NHS Ashford","South East coast","Closest 10 CCGs","No",8,154,15526.9,13182.883560907429,1.1778075660201934,154,54,114405,4.7200734233643636E-4,{"$f":"IF(GraphData!$N$3=-1,10000,1)","v":10000},null,null,null,null,null,null,-4.7200734233643636E-4,47.20073423364363]
[null,null,null,null,null,null,null,null,null,null,"09D","NHS Brighton and Hove","South East coast","No","No",4,155,35527.679999999898,34600.230282095567,1.0268047267414939,155,131,282489,4.637348710923257E-4,{"$f":"IF(GraphData!$N$3=-1,10000,1)","v":10000},null,null,null,null,null,null,-4.637348710923257E-4,46.37348710923257]
[null,null,null,null,null,null,null,null,null,null,"09E","NHS Canterbury and Coastal","South East coast","No","No",7,156,35081.800000000003,21648.12014917851,1.6205471772259756,156,128,193591,6.6118776182777094E-4,{"$f":"IF(GraphData!$N$3=-1,10000,1)","v":10000},null,null,null,null,null,null,-6.6118776182777094E-4,66.118776182777097]
[null,null,null,null,null,null,null,null,null,null,"09F","NHS Eastbourne, Hailsham and Seaford","South East coast","No","No",6,157,100514.74,15256.34124459669,6.5883909115889185,157,122,162587,7.5036749555622533E-4,{"$f":"IF(GraphData!$N$3=-1,10000,1)","v":10000},null,null,null,null,null,null,-7.5036749555622533E-4,75.036749555622535]
[null,null,null,null,null,null,null,null,null,null,"09G","NHS Coastal West Sussex","South East coast","No","No",7,158,115896.65,41428.788006401082,2.7974907202714459,158,310,432060,7.1749294079525997E-4,{"$f":"IF(GraphData!$N$3=-1,10000,1)","v":10000},null,null,null,null,null,null,-7.1749294079525997E-4,71.749294079525995]
[null,null,null,null,null,null,null,null,null,null,"09H","NHS Crawley","South East coast","No","No",7,159,15848.54,15548.253115074518,1.0193132233378903,159,53,118812,4.4608288725044606E-4,{"$f":"IF(GraphData!$N$3=-1,10000,1)","v":10000},null,null,null,null,null,null,-4.4608288725044606E-4,44.608288725044609]
[null,null,null,null,null,null,null,null,null,null,"09J","NHS Dartford, Gravesham and Swanley","South East coast","No","No",7,160,42848.999999999898,27197.678203319952,1.5754653643475136,160,168,228938,7.3382313115341277E-4,{"$f":"IF(GraphData!$N$3=-1,10000,1)","v":10000},null,null,null,null,null,null,-7.3382313115341277E-4,73.382313115341276]
[null,null,null,null,null,null,null,null,null,null,"09L","NHS East Surrey","South East coast","No","No",10,161,21250.27,18574.030172413793,1.1440850371590849,161,76,158889,4.7832134383122811E-4,{"$f":"IF(GraphData!$N$3=-1,10000,1)","v":10000},null,null,null,null,null,null,-4.7832134383122811E-4,47.832134383122813]
[null,null,null,null,null,null,null,null,null,null,"09N","NHS Guildford and Waverley","South East coast","No","No",10,162,55671.849999999897,23167.506702412869,2.4030143042626912,162,83,197585,4.200723739150239E-4,{"$f":"IF(GraphData!$N$3=-1,10000,1)","v":10000},null,null,null,null,null,null,-4.200723739150239E-4,42.007237391502386]
[null,null,null,null,null,null,null,null,null,null,"09P","NHS Hastings and Rother","South East coast","No","No",3,163,129803.48,15022.096734593666,8.6408363821198009,163,136,162484,8.370054897713006E-4,{"$f":"IF(GraphData!$N$3=-1,10000,1)","v":10000},null,null,null,null,null,null,-8.370054897713006E-4,83.700548977130055]
[null,null,null,null,null,null,null,null,null,null,"09W","NHS Medway","South East coast","No","No",5,164,34929.499999999804,32767.388300322436,1.0659836444656803,164,147,268718,5.4704188033551906E-4,{"$f":"IF(GraphData!$N$3=-1,10000,1)","v":10000},null,null,null,null,null,null,-5.4704188033551906E-4,54.704188033551908]
[null,null,null,null,null,null,null,null,null,null,"09X","NHS Horsham and Mid Sussex","South East coast","No","No",10,165,33731.18,23525.765728476821,1.4337973262723607,165,101,206883,4.8819864367782758E-4,{"$f":"IF(GraphData!$N$3=-1,10000,1)","v":10000},null,null,null,null,null,null,-4.8819864367782758E-4,48.819864367782763]
[null,null,null,null,null,null,null,null,null,null,"09Y","NHS North West Surrey","South East coast","No","No",10,166,40705.119999999901,38662.653239929954,1.0528278995079554,166,148,325474,4.5472142168038001E-4,{"$f":"IF(GraphData!$N$3=-1,10000,1)","v":10000},null,null,null,null,null,null,-4.5472142168038001E-4,45.472142168038005]
[null,null,null,null,null,null,null,null,null,null,"10A","NHS South Kent Coast","South East coast","Closest 10 CCGs","No",5,167,33642.9,18204.961071881226,1.8480072474290374,167,144,180510,7.9773973741066974E-4,{"$f":"IF(GraphData!$N$3=-1,10000,1)","v":10000},null,null,null,null,null,null,-7.9773973741066974E-4,79.773973741066982]
[null,null,null,null,null,null,null,null,null,null,"10C","NHS Surrey Heath","South East coast","No","No",10,168,20165.25,9964.7956403269745,2.0236491271724986,168,51,84420,6.0412224591329072E-4,{"$f":"IF(GraphData!$N$3=-1,10000,1)","v":10000},null,null,null,null,null,null,-6.0412224591329072E-4,60.412224591329071]
[null,null,null,null,null,null,null,null,null,null,"10D","NHS Swale","South East coast","No","No",4,169,11809.41,11060.880296174413,1.0676736103983042,169,75,98849,7.5873301702596889E-4,{"$f":"IF(GraphData!$N$3=-1,10000,1)","v":10000},null,null,null,null,null,null,-7.5873301702596889E-4,75.873301702596891]
[null,null,null,null,null,null,null,null,null,null,"10E","NHS Thanet","South East coast","No","No",3,170,28020.21,12414.572204221035,2.2570419293604775,170,115,126347,9.1019177344931021E-4,{"$f":"IF(GraphData!$N$3=-1,10000,1)","v":10000},null,null,null,null,null,null,-9.1019177344931021E-4,91.019177344931009]
[null,null,null,null,null,null,null,null,null,null,"10G","NHS Bracknell and Ascot","Thames","No","No",10,171,19449.29,16836.634272358224,1.1551768414861361,171,56,128357,4.3628317894622029E-4,{"$f":"IF(GraphData!$N$3=-1,10000,1)","v":10000},null,null,null,null,null,null,-4.3628317894622029E-4,43.628317894622029]
[null,null,null,null,null,null,null,null,null,null,"10H","NHS Chiltern","Thames","No","No",10,172,59929.859999999899,35945.175438596496,1.667257407113657,172,146,301514,4.8422295482133498E-4,{"$f":"IF(GraphData!$N$3=-1,10000,1)","v":10000},null,null,null,null,null,null,-4.8422295482133498E-4,48.422295482133499]
[null,null,null,null,null,null,null,null,null,null,"10J","NHS North Hampshire","Wessex","No","No",10,173,53956.07,24918.271435121504,2.1653215448945891,173,120,202739,5.9189401151233854E-4,{"$f":"IF(GraphData!$N$3=-1,10000,1)","v":10000},null,null,null,null,null,null,-5.9189401151233854E-4,59.189401151233852]
[null,null,null,null,null,null,null,null,null,null,"10K","NHS Fareham and Gosport","Wessex","No","No",9,174,58921.02,19838.005923000987,2.9701079951631923,174,123,181865,6.7632584609463064E-4,{"$f":"IF(GraphData!$N$3=-1,10000,1)","v":10000},null,null,null,null,null,null,-6.7632584609463064E-4,67.632584609463066]
[null,null,null,null,null,null,null,null,null,null,"10L","NHS Isle Of Wight","Wessex","No","No",5,175,25745.71,11703.357591796228,2.1998567332546619,175,97,125022,7.7586344803314618E-4,{"$f":"IF(GraphData!$N$3=-1,10000,1)","v":10000},null,null,null,null,null,null,-7.7586344803314618E-4,77.586344803314617]
[null,null,null,null,null,null,null,null,null,null,"10M","NHS Newbury and District","Thames","No","No",10,176,15567.75,12876.667787868595,1.2089890223514763,176,62,106837,5.8032329623632257E-4,{"$f":"IF(GraphData!$N$3=-1,10000,1)","v":10000},null,null,null,null,null,null,-5.8032329623632257E-4,58.032329623632258]
[null,null,null,null,null,null,null,null,null,null,"10N","NHS North & West Reading","Thames","No","No",9,177,20199.64,12110.275970383667,1.6679752013413491,177,45,100177,4.4920490731405411E-4,{"$f":"IF(GraphData!$N$3=-1,10000,1)","v":10000},null,null,null,null,null,null,-4.4920490731405411E-4,44.920490731405415]
[null,null,null,null,null,null,null,null,null,null,"10Q","NHS Oxfordshire","Thames","No","No",9,178,64477.529999999599,78054.586381541929,0.82605690439283419,178,318,641912,4.9539500741534669E-4,{"$f":"IF(GraphData!$N$3=-1,10000,1)","v":10000},null,null,null,null,null,null,-4.9539500741534669E-4,49.539500741534674]
[null,null,null,null,null,null,null,null,null,null,"10R","NHS Portsmouth","Wessex","No","No",4,179,48224.65,25186.277912761772,1.914719204125227,179,163,202952,8.0314557136662861E-4,{"$f":"IF(GraphData!$N$3=-1,10000,1)","v":10000},null,null,null,null,null,null,-8.0314557136662861E-4,80.31455713666287]
[null,null,null,null,null,null,null,null,null,null,"10T","NHS Slough","Thames","No","No",4,180,8169.38,21828.125,0.37425935576234787,180,86,140531,6.1196461990592824E-4,{"$f":"IF(GraphData!$N$3=-1,10000,1)","v":10000},null,null,null,null,null,null,-6.1196461990592824E-4,61.196461990592823]
[null,null,null,null,null,null,null,null,null,null,"10V","NHS South Eastern Hampshire","Wessex","No","No",7,181,60741.169999999896,19133.583592748579,3.1745840869569326,181,115,188463,6.1019934947443265E-4,{"$f":"IF(GraphData!$N$3=-1,10000,1)","v":10000},null,null,null,null,null,null,-6.1019934947443265E-4,61.019934947443268]
[null,null,null,null,null,null,null,null,null,null,"10W","NHS South Reading","Thames","No","No",5,182,10990.36,19374.45191464484,0.56726043391671699,182,60,125233,4.7910694465516277E-4,{"$f":"IF(GraphData!$N$3=-1,10000,1)","v":10000},null,null,null,null,null,null,-4.7910694465516277E-4,47.910694465516279]
[null,null,null,null,null,null,null,null,null,null,"10X","NHS Southampton","Wessex","No","No",4,183,35544.81,32183.29326923077,1.1044491221780293,183,142,250604,5.6663101945699196E-4,{"$f":"IF(GraphData!$N$3=-1,10000,1)","v":10000},null,null,null,null,null,null,-5.6663101945699196E-4,56.663101945699196]
[null,null,null,null,null,null,null,null,null,null,"10Y","NHS Aylesbury Vale","Thames","No","No",10,184,24990.63,22839.234885574406,1.0941973373978673,184,81,186294,4.3479661180714356E-4,{"$f":"IF(GraphData!$N$3=-1,10000,1)","v":10000},null,null,null,null,null,null,-4.3479661180714356E-4,43.479661180714359]
[null,null,null,null,null,null,null,null,null,null,"11A","NHS West Hampshire","Wessex","No","No",10,185,104738.57,51541.832669322714,2.032107990260493,185,279,488689,5.7091524466480726E-4,{"$f":"IF(GraphData!$N$3=-1,10000,1)","v":10000},null,null,null,null,null,null,-5.7091524466480726E-4,57.091524466480728]
[null,null,null,null,null,null,null,null,null,null,"11C","NHS Windsor, Ascot and Maidenhead","Thames","No","No",10,186,16663.53,17009.578970817554,0.97965564159987417,186,75,141411,5.3036892462396846E-4,{"$f":"IF(GraphData!$N$3=-1,10000,1)","v":10000},null,null,null,null,null,null,-5.3036892462396846E-4,53.03689246239685]
[null,null,null,null,null,null,null,null,null,null,"11D","NHS Wokingham","Thames","No","No",10,187,29219.96,18028.326974216674,1.6207804552130161,187,74,144377,5.1254701233575983E-4,{"$f":"IF(GraphData!$N$3=-1,10000,1)","v":10000},null,null,null,null,null,null,-5.1254701233575983E-4,51.254701233575979]
[null,null,null,null,null,null,null,null,null,null,"11E","NHS Bath and North East Somerset","South West","No","No",9,188,29640.49,20319.155478118275,1.4587461586147064,188,84,180799,4.6460433962577225E-4,{"$f":"IF(GraphData!$N$3=-1,10000,1)","v":10000},null,null,null,null,null,null,-4.6460433962577225E-4,46.460433962577227]
[null,null,null,null,null,null,null,null,null,null,"11H","NHS Bristol","South West","No","No",4,189,60398.109999999702,57073.43565525383,1.0582525706850421,189,283,455898,6.20752887707338E-4,{"$f":"IF(GraphData!$N$3=-1,10000,1)","v":10000},null,null,null,null,null,null,-6.20752887707338E-4,62.075288770733799]
[null,null,null,null,null,null,null,null,null,null,"11J","NHS Dorset","Wessex","No","No",7,190,155656.30999999901,67440.880887879059,2.308040878925925,190,446,683941,6.5210303227910009E-4,{"$f":"IF(GraphData!$N$3=-1,10000,1)","v":10000},null,null,null,null,null,null,-6.5210303227910009E-4,65.210303227910003]
[null,null,null,null,null,null,null,null,null,null,"11M","NHS Gloucestershire","South West","No","No",8,191,74202.879999999699,61582.133995037228,1.20494168009799,191,364,564889,6.4437438151566061E-4,{"$f":"IF(GraphData!$N$3=-1,10000,1)","v":10000},null,null,null,null,null,null,-6.4437438151566061E-4,64.437438151566056]
[null,null,null,null,null,null,null,null,null,null,"11N","NHS Kernow","South West","No","No",5,192,95545.659999999698,49472.271438695956,1.93129721400393,192,401,502695,7.9770039487164182E-4,{"$f":"IF(GraphData!$N$3=-1,10000,1)","v":10000},null,null,null,null,null,null,{"$f":"X196*$H$3","v":-7.9770039487164182E-4},{"$f":"(X196*Y196)*10","v":79.770039487164183}]
[null,null,null,null,null,null,null,null,null,null,"11T","NHS North Somerset",{"$f":"INDEX(Lookup_SCN,MATCH($K197,Lookup_CCGcode,0))","v":"South West"},{"$f":"INDEX(Lookup_Cluster,MATCH($K197,Lookup_CCGcode,0))","v":"No"},{"$f":"INDEX(Lookup_Comparator,MATCH($K197,Lookup_CCGcode,0))","v":"No"},{"$f":"INDEX(Lookup_Decile,MATCH($K197,Lookup_CCGcode,0))","v":8},{"$f":"MATCH($K197,DataCost_CCGcode,0)","v":193},{"$f":"INDEX(INDIRECT($D$6),Q197)","v":53916.92},{"$f":"INDEX(INDIRECT($D$7),Q197)","v":19726.101066295781},{"$f":"IFERROR(R197/S197,0)","v":2.733278097825576},{"$f":"MATCH($K197,DataCost_CCGcode,0)","v":193},{"$f":"INDEX(INDIRECT($D$34),U197)","v":134},{"$f":"INDEX(INDIRECT($D$35),U197)","v":191791},{"$f":"(V197/W197)","v":6.9867720591685744E-4},{"$f":"IF(GraphData!$N$3=-1,10000,1)","v":10000},null,null,null,null,null,null,-6.9867720591685744E-4,69.867720591685739]
[null,null,null,null,null,null,null,null,null,null,"11X","NHS Somerset","South West","No","No",7,194,137614.06999999899,50034.400948991701,2.7503890801109354,194,344,492394,6.986275218625735E-4,{"$f":"IF(GraphData!$N$3=-1,10000,1)","v":10000},null,null,null,null,null,null,-6.986275218625735E-4,69.862752186257353]
[null,null,null,null,null,null,null,null,null,null,"12A","NHS South Gloucestershire","South West","No","No",10,195,55584.429999999898,27866.472993329029,1.9946704419072441,195,128,238740,5.3614811091564046E-4,{"$f":"IF(GraphData!$N$3=-1,10000,1)","v":10000},null,null,null,null,null,null,-5.3614811091564046E-4,53.614811091564043]
[null,null,null,null,null,null,null,null,null,null,"12D","NHS Swindon","South West","No","No",8,196,33013.4200000001,25977.288609364081,1.2708570357916296,196,128,208993,6.1246070442550708E-4,{"$f":"IF(GraphData!$N$3=-1,10000,1)","v":10000},null,null,null,null,null,null,-6.1246070442550708E-4,61.24607044255071]
[null,null,null,null,null,null,null,null,null,null,"12F","NHS Wirral","Cheshire and Merseyside","No","No",3,197,35934.019999999997,30422.508038585209,1.1811656012852219,197,234,301039,7.7730792355807721E-4,{"$f":"IF(GraphData!$N$3=-1,10000,1)","v":10000},null,null,null,null,null,null,-7.7730792355807721E-4,77.730792355807722]
[null,null,null,null,null,null,null,null,null,null,"13P","NHS Birmingham Crosscity","West Midlands","No","No",1,198,95435.689999999406,80926.422139248854,1.179289624787621,198,452,685411,6.5945833959478331E-4,{"$f":"IF(GraphData!$N$3=-1,10000,1)","v":10000},null,null,null,null,null,null,-6.5945833959478331E-4,65.945833959478335]
[null,null,null,null,null,null,null,null,null,null,"99A","NHS Liverpool","Cheshire and Merseyside","No","No",1,199,56480.190000000097,50541.963740069259,1.1174910078775404,199,347,463694,7.4833834382157199E-4,{"$f":"IF(GraphData!$N$3=-1,10000,1)","v":10000},null,null,null,null,null,null,-7.4833834382157199E-4,74.833834382157193]
[null,null,null,null,null,null,null,null,null,null,"99C","NHS North Tyneside","Northern England","No","No",5,200,36834.219999999899,21266.442820462176,1.7320348452708179,200,144,196530,7.3271256296748583E-4,{"$f":"IF(GraphData!$N$3=-1,10000,1)","v":10000},null,null,null,null,null,null,-7.3271256296748583E-4,73.271256296748589]
[null,null,null,null,null,null,null,null,null,null,"99D","NHS South Lincolnshire","East Midlands","No","No",9,201,30595.279999999999,14588.676797627873,2.0971936265648718,201,115,142162,8.0893628395773841E-4,{"$f":"IF(GraphData!$N$3=-1,10000,1)","v":10000},null,null,null,null,null,null,-8.0893628395773841E-4,80.893628395773845]
[null,null,null,null,null,null,null,null,null,null,"99E","NHS Basildon and Brentwood","East of England","No","No",7,202,37067.35,28085.119932073867,1.3198216738846187,202,145,243432,5.9564888757435337E-4,{"$f":"IF(GraphData!$N$3=-1,10000,1)","v":10000},null,null,null,null,null,null,-5.9564888757435337E-4,59.564888757435341]
[null,null,null,null,null,null,null,null,null,null,"99F","NHS Castle Point and Rochford","East of England","No","No",9,203,35804.0799999999,16903.470208586659,2.1181496792186536,203,104,162846,6.3864018766196279E-4,{"$f":"IF(GraphData!$N$3=-1,10000,1)","v":10000},null,null,null,null,null,null,-6.3864018766196279E-4,63.864018766196281]
[null,null,null,null,null,null,null,null,null,null,"99G","NHS Southend","East of England","No","No",4,204,29169.119999999999,18371.221161495625,1.5877616269263455,204,136,168658,8.0636554447461727E-4,{"$f":"IF(GraphData!$N$3=-1,10000,1)","v":10000},null,null,null,null,null,null,-8.0636554447461727E-4,80.636554447461734]
[null,null,null,null,null,null,null,null,null,null,"99H","NHS Surrey Downs","South East coast","No","No",10,205,59749.229999999901,30440.473717016415,1.9628219506518294,205,125,266909,4.6832441019223781E-4,{"$f":"IF(GraphData!$N$3=-1,10000,1)","v":10000},null,null,null,null,null,null,-4.6832441019223781E-4,46.832441019223779]
[null,null,null,null,null,null,null,null,null,null,"99J","NHS West Kent","South East coast","No","No",9,206,124837.62,48574.558670820348,2.5700206737028433,206,229,424928,5.3891482792378946E-4,{"$f":"IF(GraphData!$N$3=-1,10000,1)","v":10000},null,null,null,null,null,null,-5.3891482792378946E-4,53.891482792378945]
[null,null,null,null,null,null,null,null,null,null,"99K","NHS High Weald Lewes Havens","South East coast","No","No",9,207,41412.359999999797,15490.748489074847,2.6733608146311765,207,77,150461,5.1176052266035715E-4,{"$f":"IF(GraphData!$N$3=-1,10000,1)","v":10000},null,null,null,null,null,null,-5.1176052266035715E-4,51.176052266035718]
[null,null,null,null,null,null,null,null,null,null,"99M","NHS North East Hampshire and Farnham","Wessex","No","No",10,208,57195.739999999903,25402.506963788303,2.2515785580349759,208,84,203518,4.1273990506982184E-4,{"$f":"IF(GraphData!$N$3=-1,10000,1)","v":10000},null,null,null,null,null,null,-4.1273990506982184E-4,41.273990506982187]
[null,null,null,null,null,null,null,null,null,null,"99N","NHS Wiltshire","South West","No","No",9,209,68587.469999999899,46231.944714814097,1.4835514798931317,209,249,431541,5.7700195346444482E-4,{"$f":"IF(GraphData!$N$3=-1,10000,1)","v":10000},null,null,null,null,null,null,-5.7700195346444482E-4,57.700195346444481]
[null,null,null,null,null,null,null,null,null,null,"99P","NHS Northern, Eastern and Western Devon","South West","No","No",6,210,118909.269999999,83420.819081076086,1.4254147982463701,210,576,813815,7.0777756615447002E-4,{"$f":"IF(GraphData!$N$3=-1,10000,1)","v":10000},null,null,null,null,null,null,-7.0777756615447002E-4,70.777756615447004]
[null,null,null,null,null,null,null,null,null,null,"99Q","NHS South Devon and Torbay","South West","No","No",5,211,34924.849999999802,24036.281179138321,1.4530055518867844,211,227,253816,8.9434866202288269E-4,{"$f":"IF(GraphData!$N$3=-1,10000,1)","v":10000},null,null,null,null,null,null,-8.9434866202288269E-4,89.434866202288262]

{"sheet":"Summary_Outcomes","index":5,"n_rows":53,"n_cols":18,"rows_kept":53,"cut":false,"hidden":false,"merged":[[3,12,5,12],[10,12,11,12],[12,12,14,12],[15,12,16,12],[16,1,16,6],[16,7,16,9],[13,1,13,4],[45,1,45,4],[43,1,43,3],[42,1,42,9],[26,1,26,9],[24,1,24,3],[25,1,25,3],[28,2,28,9],[27,2,27,8],[21,1,21,3],[22,1,22,3],[44,1,44,9],[4,1,4,9],[5,1,5,9],[10,1,10,3],[23,1,23,3],[19,6,20,6],[17,4,20,4],[17,5,20,5],[17,6,17,7],[19,8,20,8],[17,8,17,9],[27,12,28,12],[17,12,18,12],[19,9,20,9],[20,12,21,12],[19,7,20,7],[22,12,24,12],[25,12,26,12],[44,17,46,17],[47,17,49,17],[35,17,38,17],[40,17,43,17],[26,17,28,17],[32,17,33,17],[23,17,25,17],[29,17,31,17],[11,17,13,17],[14,17,16,17],[17,17,18,17],[20,17,22,17],[19,17,19,26]]}
[null,"Summary of clinical outcomes"]
[]
[null,null,null,null,null,null,null,null,null,null,null,null,"Key facts"]
[null,null,null,null,null,null,null,null,null,null,null,null,"The following statements help to understand the scale of change in outcomes required to move the CCG from its current level:\n\n1)  the current position of the CCG.  \n2)  the change required to move the CCG into the highest 50% of CCGs (those with the highest percentage of patients with cardiovascular disease meeting the given outcome), if they are not already in this position.  \n3)  the change required to move the CCG into the highest 25% of CCGs, if they are not already in this position. \n4)  the number of extra patients with cardiovascular disease the CCG would need to have to equal the CCG with the highest outcome value nationally, assuming the total register size stays the same."]
[null,"Compare cardiovascular disease outcomes in two Clinical Commissioning Groups (CCGs) to national cardiovascular disease cluster and regional levels.\n\nThe summary expenditure information on this page gives context to any changes in outcome levels a CCG may wish to consider after analysing the information in the quadrant chart and considering local factors affecting delivery of cardiovascular disease services.\n\nTo use the tool, complete the fields below.\n\nThe current CCG selected on the main menu is NHS Darlington.  If you wish to change this, please return to the main menu.\n"]
[null,{"$f":"\"The current CCG selected on the main menu is \"&B25&\".  If you wish to change this, please return to the main menu.\"","v":"The current CCG selected on the main menu is NHS Airedale, Wharfedale and Craven.  If you wish to change this, please return to the main menu."}]
[null,"Year:"]
[]
[null,null,null,null,null,4]
[null,null,null,null,null,null,null,null,null,null,null,null,{"$f":"B25","v":"NHS Airedale, Wharfedale and Craven"}]
[null,"Outcome category:",null,null,null,null,null,null,null,null,null,1,{"$f":"\"\"&M33&\". This equates to \"&TEXT(SummaryData!$F$34,\"#,##0\")&\" out of \"&TEXT(SummaryData!$F$35,\"#,##0\")&\" people. This ranks the CCG \"&SummaryData!E44&\" CCGs nationally for this indicator.\"","v":"The current crude rate of under 75 mortality from cardiovascular disease  in NHS Airedale, Wharfedale and Craven is 58.7 per 100,000. This equates to 83 out of 141,517 people. This ranks the CCG 77 of 211 CCGs nationally for this indicator."}]
[null,null,null,null,null,1,null,null,null,null,null,null,null,null,null,null,null,{"$f":"IF(SummaryData!$D$43>=SummaryData!$E$46,\"\"&(SummaryData!$D$33)&\" in \"&SummaryData!$E$38&\" is in the top 50% of CCGs in England.\",\"\"&SummaryData!$D$33&\" in \"&SummaryData!$E$38&\" is in the bottom 50% of CCGs in England. In order to achieve a percentage equivalent to that of the median (average) CCG, the CCG would need to increase the number of people by a further \"&MROUND(TEXT((SummaryData!$E$46*SummaryData!$F$35)-SummaryData!$F$34,\"#,##0\"),10)&\" assuming a static population size.\")","v":"Under 75 mortality from cardiovascular disease  in NHS Airedale, Wharfedale and Craven is in the bottom 50% of CCGs in England. In order to achieve a percentage equivalent to that of the median (average) CCG, the CCG would need to increase the number of people by a further 9260 assuming a static population size."}]
[null,null,null,null,null,null,null,null,null,null,null,2,{"$f":"IF(M32=1,R12,R15)","v":"The crude rate of under 75 mortality from cardiovascular disease  in NHS Airedale, Wharfedale and Craven is in the top 50% of CCGs in England."}]
[null,"Clinical Commissioning Group for Comparison:"]
[null,null,null,null,null,3,null,null,null,null,null,null,null,null,null,null,null,{"$f":"IF(SummaryData!$B$68<=SummaryData!$E$46,\"The crude rate of \"&LOWER(SummaryData!$D$33)&\" in \"&SummaryData!$E$38&\" is in the top 50% of CCGs in England.\",\"The crude rate of of \"&LOWER(SummaryData!$D$33)&\" in \"&SummaryData!$E$38&\" is in the bottom 50% of CCGs in England. In order to achieve a crude rate of equivalent to that of the median (average) CCG, the CCG would need to reduce the amount of \"&LOWER(SummaryData!$D$33)&\" by a further \"&TEXT(M48,\"#,##0\")&\" people assuming a static population size.\")","v":"The crude rate of under 75 mortality from cardiovascular disease  in NHS Airedale, Wharfedale and Craven is in the top 50% of CCGs in England."}]
[null,null,null,null,null,null,null,null,null,null,null,3,{"$f":"IF(M32=1,R18,R21)","v":"The crude rate of under 75 mortality from cardiovascular disease  in NHS Airedale, Wharfedale and Craven is higher than those of the top 25% of CCGs in England. In order to achieve a crude rate equivalent to that of the median (average) CCG, the CCG would need to reduce the number of people by a further 10 people assuming a static population size."}]
[null,{"$f":"INDEX(Lookup_OutcomeName,MATCH(F12,Lookup_OutcomeNo,0))","v":"Under 75 mortality from cardiovascular disease "},null,null,null,null,null,{"$f":"IF(M32=1,\"Data in the table below is expressed as a percentage from the QOF register\",\"Data in the table below is the crude rate per 100,000 people\")","v":"Data in the table below is the crude rate per 100,000 people"}]
[null,null,null,null,{"$f":"IF(SummaryData!Y4=1,\"Percentage of people on the QOF register *\",\"crude rate per 100,000 people* \")","v":"crude rate per 100,000 people* "},{"$f":"IF(SummaryData!Y4=1,\"Percentage of people on the QOF register England\",\"crude rate per 100,000 people England \")","v":"crude rate per 100,000 people England "},"Cluster group",null,"Strategic Clinical Network",null,null,4,{"$f":"IF(M32=1,R24,R27)","v":"In order to achieve a crude rate equal to the lowest nationally 31.1 per 100,000, the CCG would need to reduce the number of under 75 mortality from cardiovascular disease  by a further 40 people assuming a static population size."},null,null,null,null,{"$f":"IF(SummaryData!$D$43>=SummaryData!$E$47,\"\"&(SummaryData!$D$33)&\" in \"&SummaryData!$E$38&\" is in the top 25% of CCGs in England.\",\"\"&SummaryData!$D$33&\" in \"&SummaryData!$E$38&\" is lower than those of the top 25% of CCGs in England. In order to become one of highest 25% of CCGs, the CCG would need to increase the number of people with this reading by a further \"&MROUND(TEXT((SummaryData!$E$47*SummaryData!$F$35)-SummaryData!$F$34,\"#,##0\"),10)&\" assuming a static population size.\")","v":"Under 75 mortality from cardiovascular disease  in NHS Airedale, Wharfedale and Craven is lower than those of the top 25% of CCGs in England. In order to become one of highest 25% of CCGs, the CCG would need to increase the number of people with this reading by a further 7310 assuming a static population size."}]
[null,null,null,null,null,null,"Chosen CCG:","Comparator CCG:","Chosen CCG:","Comparator CCG"]
[null,null,null,null,null,null,{"$f":"(SummaryData!$G$38)","v":"Closest 10 CCGs"},{"$f":"(SummaryData!$G$39)","v":"Comparator Closest 10 CCGs"},{"$f":"SummaryData!$F$38","v":"Yorkshire and Northern"},{"$f":"SummaryData!$F$39","v":"Yorkshire and Northern"},null,null,{"$f":"B26","v":"NHS Bradford Districts"}]
[null,null,null,null,null,null,null,null,null,null,null,1,{"$f":"\"\"&M36&\". This equates to \"&TEXT(SummaryData!$G$34,\"#,##0\")&\" out of \"&TEXT(SummaryData!$G$35,\"#,##0\")&\" people. This ranks the CCG \"&SummaryData!E49&\" CCGs nationally for this indicator.\"","v":"The current crude rate of under 75 mortality from cardiovascular disease  in NHS Bradford Districts is 81.1 per 100,000. This equates to 251 out of 309,647 people. This ranks the CCG 181 of 211 CCGs nationally for this indicator."},null,null,null,null,{"$f":"IF(SummaryData!$B$68<=SummaryData!$E$47,\"The crude rate of \"&(LOWER(SummaryData!$D$33))&\" in \"&SummaryData!$E$38&\" is in the top 25% of CCGs in England.\",\"The crude rate of \"&LOWER(SummaryData!$D$33)&\" in \"&SummaryData!$E$38&\" is higher than those of the top 25% of CCGs in England. In order to achieve a crude rate equivalent to that of the median (average) CCG, the CCG would need to reduce the number of people by a further \"&(TEXT(M49,\"#,##0\"))&\" people assuming a static population size.\")","v":"The crude rate of under 75 mortality from cardiovascular disease  in NHS Airedale, Wharfedale and Craven is higher than those of the top 25% of CCGs in England. In order to achieve a crude rate equivalent to that of the median (average) CCG, the CCG would need to reduce the number of people by a further 10 people assuming a static population size."}]
[null,"CCG which cuts off the lowest 25% of outcomes",null,null,null,{"$f":"SummaryData!E45+IF(M32=-1,SummaryData!E45*1000,SummaryData!E45*100)","v":76.809247259171727},{"$f":"IF(GraphData!$AH$3=1,SummaryData!$G$45*100,SummaryData!$G$47*100000)","v":78.157363712725243},{"$f":"IF(GraphData!$AH$3=1,SummaryData!$G$50*100,SummaryData!$G$52*100000)","v":82.247492664135606},{"$f":"IF(GraphData!AH3=1,SummaryData!$F$52*100,SummaryData!$F$50*100000)","v":62.589309872622032},{"$f":"IF(GraphData!AH3=1,SummaryData!$F$47*100,SummaryData!$F$45*100000)","v":62.589309872622032}]
[null,"Average (Median) ",null,null,null,{"$f":"SummaryData!E46+IF(M32=-1,SummaryData!E46*1000,SummaryData!E46*100)","v":66.05080831408776},{"$f":"IF(GraphData!$AH$3=1,SummaryData!$G$46*100,SummaryData!$G$46*100000)","v":67.745640162905033},{"$f":"IF(GraphData!AH3=1,SummaryData!$G$51*100,SummaryData!$G$51*100000)","v":77.056763226182909},{"$f":"IF(GraphData!AH3=1,SummaryData!$F$46*100,SummaryData!$F$46*100000)","v":74.198537972853174},{"$f":"IF(GraphData!AH3=1,SummaryData!$F$51*100,SummaryData!$F$51*100000)","v":74.198537972853174},null,2,{"$f":"IF(M32=1,R30,R33)","v":"The crude rate of under 75 mortality from cardiovascular disease  in NHS Bradford Districts is in the lower 50% of CCGs in England. In order to achieve a crude rate equivalent to that of the median (average) CCG, the CCG would need to reduce the number of under 75 mortality from cardiovascular disease  by a further 45 people assuming a static population size."}]
[null,"CCG which cuts off the highest 25% of outcomes",null,null,null,{"$f":"SummaryData!E47+IF(M32=-1,SummaryData!E47*1000,SummaryData!E47*100)","v":52.314650538970859},{"$f":"IF(GraphData!$AH$3=1,SummaryData!$G$47*100,SummaryData!$G$45*100000)","v":55.191012827332877},{"$f":"IF(GraphData!AH3=1,SummaryData!$G$52*100,SummaryData!$G$50*100000)","v":73.620740331410559},{"$f":"IF(GraphData!AH3=1,SummaryData!$F$50*100,SummaryData!$F$52*100000)","v":79.761387007700492},{"$f":"IF(GraphData!AH3=1,SummaryData!$F$45*100,SummaryData!$F$47*100000)","v":79.761387007700492},null,null,null,null,null,null,null,{"$f":"IF(SummaryData!$B$68=MAX(SummaryData_OutcomeValue),SummaryData!$E$38&\" is currently ranked as the CCG with the highest percentage  of \"&LOWER(SummaryData!$D$33)&\" nationally.\",\"In order to achieve a percentage equal to the \"&M45&\" CCG nationally \"&M41&\", the CCG would need to increase the number of \"&LOWER(SummaryData_OutcomeInd)&\" by a further \"&MROUND(TEXT((MAX(SummaryData_OutcomeValue)*SummaryData!$F$35)-SummaryData!$F$34,\"#,##0\"),10)&\" people assuming a static population size.\")","v":"In order to achieve a percentage equal to the lowest CCG nationally 31.1 per 100,000, the CCG would need to increase the number of under 75 mortality from cardiovascular disease  by a further 70 people assuming a static population size."}]
[null,{"$f":"INDEX(Lookup_CCGname,Menu_ChosenCCG)","v":"NHS Airedale, Wharfedale and Craven"},null,null,{"$f":"IF(M32=-1,SummaryData!D43*100000,SummaryData!D43*100)","v":58.650197502773523},{"$f":"SummaryData!E44","v":"77 of 211"},{"$f":"SummaryData!G44","v":"4 of 10"},null,{"$f":"SummaryData!F44","v":"5 of 22"}]
[null,{"$f":"Summary_Cost!B25","v":"NHS Bradford Districts"},null,null,{"$f":"IF(M32=-1,SummaryData!D48*100000,SummaryData!D48*100)","v":81.06004579408166},{"$f":"SummaryData!E49","v":"181 of 211"},null,{"$f":"SummaryData!G49","v":"7 of 10"},null,{"$f":"SummaryData!F49","v":"18 of 22"},null,3,{"$f":"IF(M32=1,R36,R41)","v":"The crude rate  of under 75 mortality from cardiovascular disease  in NHS Bradford Districts is higher than those of the top 25% of CCGs in England. In order to achieve a crude rate equivalent to that of the median (average) CCG, the CCG would need to reduce the number of under 75 mortality from cardiovascular disease  by a further 90 people assuming a static population size."}]
[null,"Note for ranking data, the ideal is to aim for a low value in the ranking system in England/cluster group/Strategic Clinical Network.",null,null,null,null,null,null,null,null,null,null,null,null,null,null,null,{"$f":"IF(SummaryData!$D$43=MIN(SummaryData_OutcomeValue),SummaryData!$E$38&\" is currently ranked as the CCG with the highest crude rate of \"&LOWER(SummaryData!$D$33)&\" nationally.\",\"In order to achieve a crude rate equal to the \"&M45&\" nationally \"&M41&\", the CCG would need to reduce the number of \"&LOWER(SummaryData_OutcomeInd)&\" by a further \"&MROUND(M50,5)&\" people assuming a static population size.\")","v":"In order to achieve a crude rate equal to the lowest nationally 31.1 per 100,000, the CCG would need to reduce the number of under 75 mortality from cardiovascular disease  by a further 40 people assuming a static population size."}]
[null,"*Numerator",{"$f":"GraphData!AG6","v":"Observed deaths (under 75 mortality cardiovascular disease CCG indicator 1.2) HSCIC Sept 2013 "},null,null,null,null,null,null,null,null,4,{"$f":"IF(M32=1,R45,R48)","v":"In order to achieve a crude rate equal to the lowest nationally 31.1 per 100,000, the CCG would need to reduce the number of under 75 mortality from cardiovascular disease  by a further 155 people assuming a static population size."}]
[null,"*Denominator",{"$f":"GraphData!AJ6","v":"Under 75 population  (under 75 mortality cardiovascular disease CCG indicator 1.2) HSCIC Sept 2013"}]
[null,null,null,null,null,null,null,null,null,null,null,null,null,null,null,null,null,{"$f":"IF(SummaryData!$D$48>=SummaryData!$E$51,\"\"&M39&\" \"&(SummaryData!$D$33)&\" in \"&SummaryData!$E$39&\" is in the top 50% of CCGs in England.\",\"\"&SummaryData!$D$33&\" in \"&SummaryData!$E$39&\" is in the lower 50% of CCGs in England. In order to achieve a percentage equivalent to that of the median (average) CCG, the CCG would need to increase the number of people by a further \"&TEXT((SummaryData!$E$51*SummaryData!$G$35)-SummaryData!$G$34,\"#,##0\")&\" assuming a static population size.\")","v":"Under 75 mortality from cardiovascular disease  in NHS Bradford Districts is in the lower 50% of CCGs in England. In order to achieve a percentage equivalent to that of the median (average) CCG, the CCG would need to increase the number of people by a further 20,181 assuming a static population size."}]
[]
[null,null,null,null,null,null,null,null,null,null,null,null,{"$f":"GraphData!AH3","v":-1}]
[null,null,null,null,null,null,null,null,null,null,null,null,{"$f":"IF(M32=-1,M35,IF(M32=1,M34))","v":"The current crude rate of under 75 mortality from cardiovascular disease  in NHS Airedale, Wharfedale and Craven is 58.7 per 100,000"},null,null,null,null,{"$f":"IF(SummaryData!$B$69<=SummaryData!$E$51,\"The crude rate of \"&LOWER(SummaryData!$D$33)&\" in \"&SummaryData!$E$39&\" is in the top 50% of CCGs in England.\",\"The crude rate of \"&LOWER(SummaryData!$D$33)&\" in \"&SummaryData!$E$39&\" is in the lower 50% of CCGs in England. In order to achieve a crude rate equivalent to that of the median (average) CCG, the CCG would need to reduce the number of \"&LOWER(SummaryData!$D$33)&\" by a further \"&TEXT(M51,\"#,##0\")&\" people assuming a static population size.\")","v":"The crude rate of under 75 mortality from cardiovascular disease  in NHS Bradford Districts is in the lower 50% of CCGs in England. In order to achieve a crude rate equivalent to that of the median (average) CCG, the CCG would need to reduce the number of under 75 mortality from cardiovascular disease  by a further 45 people assuming a static population size."}]
[null,null,null,null,null,null,null,null,null,null,null,null,{"$f":"\"In \"&SummaryData!$E$38&\" \"&LOWER(SummaryData!$D$33)&\"  is \"&ROUND(SummaryData!$D$43*100,1)&\"%\"","v":"In NHS Airedale, Wharfedale and Craven under 75 mortality from cardiovascular disease   is 0.1%"}]
[null,null,null,null,null,null,null,null,null,null,null,null,{"$f":"\"The current crude rate of \"&(LOWER(SummaryData!$D$33))&\" in \"&SummaryData!$E$38&\" is \"&ROUND(E25,1)&\" per 100,000\"","v":"The current crude rate of under 75 mortality from cardiovascular disease  in NHS Airedale, Wharfedale and Craven is 58.7 per 100,000"}]
[null,null,null,null,null,null,null,null,null,null,null,null,{"$f":"IF(M32=-1,M38,IF(M32=1,M37))","v":"The current crude rate of under 75 mortality from cardiovascular disease  in NHS Bradford Districts is 81.1 per 100,000"},null,null,null,null,{"$f":"IF(SummaryData!$D$48>=SummaryData!$E$47,\"\"&SummaryData!$D$33&\" in \"&SummaryData!$E$39&\" is in the top 25% of CCGs in England.\",\"\"&SummaryData!$D$33&\" in \"&SummaryData!$E$39&\" is lower than those of the top 25% of CCGs in England. In order to become one of highest 25% of CCGs, the CCG would need to increase the number of  people with this reading  by \"&MROUND(TEXT((SummaryData!$E$47*SummaryData!$G$35)-SummaryData!$G$34,\"#,##0\"),10)&\" assuming a static population size.\")","v":"Under 75 mortality from cardiovascular disease  in NHS Bradford Districts is lower than those of the top 25% of CCGs in England. In order to become one of highest 25% of CCGs, the CCG would need to increase the number of  people with this reading  by 15930 assuming a static population size."}]
[null,null,null,null,null,null,null,null,null,null,null,null,{"$f":"\"In \"&SummaryData!$E$39&\" \"&LOWER(SummaryData!$D$33)&\"  is \"&ROUND(SummaryData!$D$48*100,1)&\"%\"","v":"In NHS Bradford Districts under 75 mortality from cardiovascular disease   is 0.1%"}]
[null,null,null,null,null,null,null,null,null,null,null,null,{"$f":"\"The current crude rate of \"&(LOWER(SummaryData!$D$33))&\" in \"&SummaryData!$E$39&\" is \"&ROUND(E26,1)&\" per 100,000\"","v":"The current crude rate of under 75 mortality from cardiovascular disease  in NHS Bradford Districts is 81.1 per 100,000"}]
[]
[null,null,null,null,null,null,null,null,null,null,null,null,{"$f":"IF(M32=-1,\"reduce\",\"increase\")","v":"reduce"}]
[null,null,null,null,null,null,null,null,null,null,null,null,{"$f":"IF(M32=1,M42,M44)","v":"31.1 per 100,000"},null,null,null,null,{"$f":"IF(SummaryData!$B$69<=SummaryData!$E$52,\"The crude rate of \"&LOWER(SummaryData!$D$33)&\" in \"&SummaryData!$E$39&\" is in the top 25% of CCGs in England.\",\"The crude rate  of \"&LOWER(SummaryData!$D$33)&\" in \"&SummaryData!$E$39&\" is higher than those of the top 25% of CCGs in England. In order to achieve a crude rate equivalent to that of the median (average) CCG, the CCG would need to reduce the number of \"&LOWER(SummaryData!$D$33)&\" by a further \"&TEXT(M52,\"#,##0\")&\" people assuming a static population size.\")","v":"The crude rate  of under 75 mortality from cardiovascular disease  in NHS Bradford Districts is higher than those of the top 25% of CCGs in England. In order to achieve a crude rate equivalent to that of the median (average) CCG, the CCG would need to reduce the number of under 75 mortality from cardiovascular disease  by a further 90 people assuming a static population size."}]
[null,null,null,null,null,null,null,null,null,null,null,null,{"$f":"TEXT(MAX(SummaryData_OutcomeValue),\"0.0%\")","v":"0.1%"}]
[null,null,null,null,null,null,null,null,null,"Return to chart",null,null,{"$f":"ROUND(MIN(SummaryData_OutcomeValue)*100000,1)","v":31.1}]
[null,null,null,null,null,null,null,null,null,null,null,null,{"$f":"\"\"&M43&\" per 100,000\"","v":"31.1 per 100,000"}]
[null,null,null,null,null,null,null,null,null,null,null,null,{"$f":"IF(M32=1,M47,M46)","v":"lowest"},null,null,null,null,{"$f":"IF(SummaryData!$D$48=MAX(SummaryData_OutcomeValue),SummaryData!$E$39&\" is currently ranked as the CCG with the highest percentage  of \"&(SummaryData!D33)&\" nationally.\",\"In order to achieve a percentage equal to the \"&M45&\" CCG nationally \"&M41&\". The CCG would need to increase the number of people by a further \"&MROUND(TEXT((MAX(SummaryData_OutcomeValue)*SummaryData!$G$35)-SummaryData!$G$34,\"#,##0\"),10)&\" assuming a static population size.\")","v":"In order to achieve a percentage equal to the lowest CCG nationally 31.1 per 100,000. The CCG would need to increase the number of people by a further 90 assuming a static population size."}]
[null,null,null,null,null,null,null,null,null,null,null,null,{"$f":"\"lowest\"","v":"lowest"}]
[null,null,null,null,null,null,null,null,null,null,null,null,{"$f":"\"highest\"","v":"highest"}]
[null,null,null,null,null,null,null,null,null,"Chosen equal median",null,null,{"$f":"MROUND(((E25-F23)/E25)*SummaryData!F34,5)","v":{"$error":"#NUM!"}},null,null,null,null,{"$f":"IF(SummaryData!$D$48=MIN(SummaryData_OutcomeValue),SummaryData!$E$39&\" is currently ranked as the CCG with the highest crude rate of \"&(SummaryData!D33)&\" nationally.\",\"In order to achieve a crude rate equal to the \"&M45&\" nationally \"&M41&\", the CCG would need to reduce the number of \"&LOWER(SummaryData_OutcomeInd)&\" by a further \"&MROUND(M53,5)&\" people assuming a static population size.\")","v":"In order to achieve a crude rate equal to the lowest nationally 31.1 per 100,000, the CCG would need to reduce the number of under 75 mortality from cardiovascular disease  by a further 155 people assuming a static population size."}]
[null,null,null,null,null,null,null,null,null,"Chosen top 25%",null,null,{"$f":"MROUND(((E25-F24)/E25)*SummaryData!F34,5)","v":10}]
[null,null,null,null,null,null,null,null,null,"Chosen equal min value",null,null,{"$f":"MROUND(((E25-(MIN(SummaryData!AG4:AG215)))/E25)*SummaryData!F34,5)","v":40}]
[null,null,null,null,null,null,null,null,null,"Comparator equal median",null,null,{"$f":"MROUND(((E26-F23)/E26)*SummaryData!G34,5)","v":45}]
[null,null,null,null,null,null,null,null,null,"Comparator top 25%",null,null,{"$f":"MROUND(((E26-F24)/E26)*SummaryData!G34,5)","v":90}]
[null,null,null,null,null,null,null,null,null,"Comparator equal min value",null,null,{"$f":"MROUND(((E26-(MIN(SummaryData!AG4:AG215)))/E26)*SummaryData!G34,5)","v":155}]

{"sheet":"Graph_current","index":6,"n_rows":61,"n_cols":16,"rows_kept":61,"cut":false,"hidden":false,"merged":[[20,12,25,17],[16,13,19,18],[4,1,4,2],[4,4,4,10],[59,6,59,7],[12,5,12,9],[11,5,11,9],[23,2,25,2],[34,2,36,2],[41,2,42,2],[14,2,16,2],[17,2,21,2]]}
[null,null,"Selected CCG",27,4]
[null,null,"Comparison area",null,2,{"$f":"IF($E$2=2,\"in the closest 10 CCGs\",IF($E$2=1,GraphData_ChosenCCGSCN&\" Strategic Clinical Network (SCN)\",IF($E$2=3,GraphData_ChosenCCGdecile&IF(GraphData_ChosenCCGdecile<4,CHOOSE(GraphData_ChosenCCGdecile,\"st\",\"nd\",\"rd\"),\"th\")&\" most deprived CCG decile\")))","v":"in the closest 10 CCGs"}]
[null,null,"Highlighted CCG",null,57]
[]
[null,"Outcome versus expenditure tool: cardiovascular\nquadrant chart",null,null,{"$f":"GraphData_CostInd&\" compared to \"&LOWER(GraphData_OutcomeInd)&\" for \"&GraphData_ChosenCCG&\" \"&\"compared with other CCGs in the \"&F2&\"\"","v":"Spend on anti-arrhythmic drugs compared to under 75 mortality from cardiovascular disease  for NHS Airedale, Wharfedale and Craven compared with other CCGs in the in the closest 10 CCGs"}]
[]
[]
[null,null,"Expenditure"]
[]
[null,null,"Outcome"]
[]
[]
[null,null,"Overview"]
[]
[null,null,{"$f":"\"This chart shows the \"&LOWER(GraphData_CostInd)&\" compared to \"&LOWER(GraphData_OutcomeInd)&\" for \"&GraphData_ChosenCCG&\".\"","v":"This chart shows the spend on anti-arrhythmic drugs compared to under 75 mortality from cardiovascular disease  for NHS Airedale, Wharfedale and Craven."}]
[]
[null,null,null,null,null,null,null,null,null,null,null,null,{"$f":"IFERROR(C18,0)","v":"In NHS Airedale, Wharfedale and Craven the spend on anti-arrhythmic drugs was £1.99 per person* and the crude rate of under 75 mortality from cardiovascular disease  was 58.7 Per 100,000. In the 2012/13 QOF, the expected cardiovascular disease prevelance for this CCG is 10.3%. "},{"$f":"IF(M17=0,\"Whoops! please select another outcome this data is not available currently\",\"\")","v":""}]
[null,null,{"$f":"\"In \"&GraphData_ChosenCCG&\" the \"&LOWER(GraphData_CostInd)&\" was \"&TEXT(GraphData!J16,\"£#,##0.00\")&\" per \"&GraphData!P7&\"* and \"&C53&\"\"&LOWER(GraphData!C6)&\" was \"&ROUND(GraphData!N7,1)&\" \"&GraphData!O7&\". In the 2012/13 QOF, the expected cardiovascular disease prevelance for this CCG is \"&ROUND(INDEX(GraphData_DiabPrev,GraphData_ChosenCCGRefnum),1)&\"%. \"","v":"In NHS Airedale, Wharfedale and Craven the spend on anti-arrhythmic drugs was £1.99 per person* and the crude rate of under 75 mortality from cardiovascular disease  was 58.7 Per 100,000. In the 2012/13 QOF, the expected cardiovascular disease prevelance for this CCG is 10.3%. "}]
[]
[]
[]
[]
[null,null,"Comparing with similar CCGs"]
[null,null,"Your chosen CCG can be compared to similar CCGs based on; location, demographic characteristics or deprivation, by selecting a group from the list below:"]
[]
[]
[]
[]
[]
[]
[null,null,{"$f":"IF($E$2=2,\"Your chosen CCG is compared to commissioning for value \"&(GraphData_ChosenCCGcluster)&\":\",IF($E$2=1,\"Your chosen CCG is in the \"&GraphData_ChosenCCGSCN&\" SCN\",IF($E$2=3,\"Your chosen CCG is in the \"&GraphData_ChosenCCGdecile&IF(GraphData_ChosenCCGdecile<4,CHOOSE(GraphData_ChosenCCGdecile,\"st\",\"nd\",\"rd\"),\"th\")&\" most deprived CCG decile\")))","v":"Your chosen CCG is compared to commissioning for value Closest 10 CCGs:"}]
[]
[]
[null,null,"Identifying CCGs"]
[null,null,"To locate any CCG on the chart, make a selection from the list below. The selected CCG will be highlighted on the chart with a dark circle. This will not change your chosen CCG."]
[]
[]
[]
[]
[]
[null,null,"Click on any point in the chart in order to identify the CCG:"]
[null,null,{"$f":"\"Your selected CCG is: \"&CHOOSE($E$1,\"\",\"\",$D$1,INDEX(GraphData_CCGname,$D$1),INDEX(GraphData_CCGname,$D$1),GraphData_ChosenCCG,GraphData_ChosenCCG)","v":"Your selected CCG is: NHS Camden"}]
[]
[]
[]
[]
[null,null,"Brief quadrant chart guide",null,null,null,null,null,null,null,null,null,{"$f":"IF(ISERROR(INDEX(GraphData!C24:C251,SMALL(IF(GraphData!$D$1:$D$228=GraphData_ChosenCCGSCN,ROW(GraphData!$D$1:$D$228)),R47))),\"\",INDEX(GraphData!C24:C251,SMALL(IF(GraphData!$D$1:$D$228=GraphData_ChosenCCGSCN,ROW(GraphData!$D$1:$D$228)),R47)))","v":""},null,null,{"$f":"IF(ISERROR(INDEX(GraphData!C37:C261,SMALL(IF(GraphData!$D$1:$D$228=$M$5,ROW(GraphData!$D$1:$D$228)),R56))),\"\",INDEX(GraphData!C37:C261,SMALL(IF(GraphData!$D$1:$D$228=$M$5,ROW(GraphData!$D$1:$D$228)),R56)))","v":""}]
[null,null,null,null,null,null,null,null,null,null,null,null,{"$f":"IF(ISERROR(INDEX(GraphData!C25:C252,SMALL(IF(GraphData!$D$1:$D$228=GraphData_ChosenCCGSCN,ROW(GraphData!$D$1:$D$228)),R48))),\"\",INDEX(GraphData!C25:C252,SMALL(IF(GraphData!$D$1:$D$228=GraphData_ChosenCCGSCN,ROW(GraphData!$D$1:$D$228)),R48)))","v":""},null,null,{"$f":"IF(ISERROR(INDEX(GraphData!C38:C262,SMALL(IF(GraphData!$D$1:$D$228=$M$5,ROW(GraphData!$D$1:$D$228)),R57))),\"\",INDEX(GraphData!C38:C262,SMALL(IF(GraphData!$D$1:$D$228=$M$5,ROW(GraphData!$D$1:$D$228)),R57)))","v":""}]
[null,null,null,null,null,null,null,null,null,null,null,null,{"$f":"IF(ISERROR(INDEX(GraphData!C26:C253,SMALL(IF(GraphData!$D$1:$D$228=GraphData_ChosenCCGSCN,ROW(GraphData!$D$1:$D$228)),R49))),\"\",INDEX(GraphData!C26:C253,SMALL(IF(GraphData!$D$1:$D$228=GraphData_ChosenCCGSCN,ROW(GraphData!$D$1:$D$228)),R49)))","v":""},null,null,{"$f":"IF(ISERROR(INDEX(GraphData!C39:C263,SMALL(IF(GraphData!$D$1:$D$228=$M$5,ROW(GraphData!$D$1:$D$228)),R58))),\"\",INDEX(GraphData!C39:C263,SMALL(IF(GraphData!$D$1:$D$228=$M$5,ROW(GraphData!$D$1:$D$228)),R58)))","v":""}]
[null,null,null,null,null,null,null,null,null,null,null,null,{"$f":"IF(ISERROR(INDEX(GraphData!C28:C255,SMALL(IF(GraphData!$D$1:$D$228=GraphData_ChosenCCGSCN,ROW(GraphData!$D$1:$D$228)),R50))),\"\",INDEX(GraphData!C28:C255,SMALL(IF(GraphData!$D$1:$D$228=GraphData_ChosenCCGSCN,ROW(GraphData!$D$1:$D$228)),R50)))","v":""},null,null,{"$f":"IF(ISERROR(INDEX(GraphData!C41:C265,SMALL(IF(GraphData!$D$1:$D$228=$M$5,ROW(GraphData!$D$1:$D$228)),R60))),\"\",INDEX(GraphData!C41:C265,SMALL(IF(GraphData!$D$1:$D$228=$M$5,ROW(GraphData!$D$1:$D$228)),R60)))","v":""}]
[null,null,null,null,null,null,null,null,null,null,null,null,{"$f":"IF(ISERROR(INDEX(GraphData!C29:C256,SMALL(IF(GraphData!$D$1:$D$228=GraphData_ChosenCCGSCN,ROW(GraphData!$D$1:$D$228)),R51))),\"\",INDEX(GraphData!C29:C256,SMALL(IF(GraphData!$D$1:$D$228=GraphData_ChosenCCGSCN,ROW(GraphData!$D$1:$D$228)),R51)))","v":""},null,null,{"$f":"IF(ISERROR(INDEX(GraphData!C42:C266,SMALL(IF(GraphData!$D$1:$D$228=$M$5,ROW(GraphData!$D$1:$D$228)),R61))),\"\",INDEX(GraphData!C42:C266,SMALL(IF(GraphData!$D$1:$D$228=$M$5,ROW(GraphData!$D$1:$D$228)),R61)))","v":""}]
[null,null,{"$f":"\"* \"&GraphData!P6&\"\"","v":"* Net ingredient cost (all items in section 2 cardiovascular disease BNF) HSCIC GP Practice Prescribing Presentation-level Data 2012 - 2013"},null,null,null,null,null,null,null,null,null,{"$f":"IF(ISERROR(INDEX(GraphData!C30:C257,SMALL(IF(GraphData!$D$1:$D$228=GraphData_ChosenCCGSCN,ROW(GraphData!$D$1:$D$228)),R52))),\"\",INDEX(GraphData!C30:C257,SMALL(IF(GraphData!$D$1:$D$228=GraphData_ChosenCCGSCN,ROW(GraphData!$D$1:$D$228)),R52)))","v":""}]
[null,null,{"$f":"IF(GraphData!N3=-1,\"the crude rate of \",\"\")","v":"the crude rate of "},null,null,null,null,null,null,null,null,null,{"$f":"IF(ISERROR(INDEX(GraphData!C31:C258,SMALL(IF(GraphData!$D$1:$D$228=GraphData_ChosenCCGSCN,ROW(GraphData!$D$1:$D$228)),R53))),\"\",INDEX(GraphData!C31:C258,SMALL(IF(GraphData!$D$1:$D$228=GraphData_ChosenCCGSCN,ROW(GraphData!$D$1:$D$228)),R53)))","v":""}]
[null,null,null,null,null,null,null,null,null,null,null,null,{"$f":"IF(ISERROR(INDEX(GraphData!C32:C259,SMALL(IF(GraphData!$D$1:$D$228=GraphData_ChosenCCGSCN,ROW(GraphData!$D$1:$D$228)),R54))),\"\",INDEX(GraphData!C32:C259,SMALL(IF(GraphData!$D$1:$D$228=GraphData_ChosenCCGSCN,ROW(GraphData!$D$1:$D$228)),R54)))","v":""}]
[null,null,null,null,null,null,null,null,null,null,null,null,{"$f":"IF(ISERROR(INDEX(GraphData!C33:C260,SMALL(IF(GraphData!$D$1:$D$228=GraphData_ChosenCCGSCN,ROW(GraphData!$D$1:$D$228)),R55))),\"\",INDEX(GraphData!C33:C260,SMALL(IF(GraphData!$D$1:$D$228=GraphData_ChosenCCGSCN,ROW(GraphData!$D$1:$D$228)),R55)))","v":""}]
[null,null,null,null,null,null,null,null,null,null,null,null,{"$f":"IF(ISERROR(INDEX(GraphData!C34:C261,SMALL(IF(GraphData!$D$1:$D$228=GraphData_ChosenCCGSCN,ROW(GraphData!$D$1:$D$228)),R56))),\"\",INDEX(GraphData!C34:C261,SMALL(IF(GraphData!$D$1:$D$228=GraphData_ChosenCCGSCN,ROW(GraphData!$D$1:$D$228)),R56)))","v":""}]
[null,null,null,null,null,null,null,null,null,null,null,null,{"$f":"IF(ISERROR(INDEX(GraphData!C35:C262,SMALL(IF(GraphData!$D$1:$D$228=GraphData_ChosenCCGSCN,ROW(GraphData!$D$1:$D$228)),R57))),\"\",INDEX(GraphData!C35:C262,SMALL(IF(GraphData!$D$1:$D$228=GraphData_ChosenCCGSCN,ROW(GraphData!$D$1:$D$228)),R57)))","v":""}]
[null,null,null,null,null,null,null,null,null,null,null,null,{"$f":"IF(ISERROR(INDEX(GraphData!C36:C263,SMALL(IF(GraphData!$D$1:$D$228=GraphData_ChosenCCGSCN,ROW(GraphData!$D$1:$D$228)),R58))),\"\",INDEX(GraphData!C36:C263,SMALL(IF(GraphData!$D$1:$D$228=GraphData_ChosenCCGSCN,ROW(GraphData!$D$1:$D$228)),R58)))","v":""}]
[null,null,null,null,null,null,null,null,null,null,null,null,{"$f":"IF(ISERROR(INDEX(GraphData!C37:C264,SMALL(IF(GraphData!$D$1:$D$228=GraphData_ChosenCCGSCN,ROW(GraphData!$D$1:$D$228)),R59))),\"\",INDEX(GraphData!C37:C264,SMALL(IF(GraphData!$D$1:$D$228=GraphData_ChosenCCGSCN,ROW(GraphData!$D$1:$D$228)),R59)))","v":""}]
[null,null,null,null,null,null,null,null,null,null,null,null,{"$f":"IF(ISERROR(INDEX(GraphData!C38:C265,SMALL(IF(GraphData!$D$1:$D$228=GraphData_ChosenCCGSCN,ROW(GraphData!$D$1:$D$228)),R60))),\"\",INDEX(GraphData!C38:C265,SMALL(IF(GraphData!$D$1:$D$228=GraphData_ChosenCCGSCN,ROW(GraphData!$D$1:$D$228)),R60)))","v":""}]
[null,null,null,null,null,null,null,null,null,null,null,null,{"$f":"IF(ISERROR(INDEX(GraphData!C39:C266,SMALL(IF(GraphData!$D$1:$D$228=GraphData_ChosenCCGSCN,ROW(GraphData!$D$1:$D$228)),R61))),\"\",INDEX(GraphData!C39:C266,SMALL(IF(GraphData!$D$1:$D$228=GraphData_ChosenCCGSCN,ROW(GraphData!$D$1:$D$228)),R61)))","v":""}]

{"sheet":"Dashboard","index":7,"n_rows":46,"n_cols":25,"rows_kept":46,"cut":false,"hidden":false,"merged":[[18,18,20,18],[0,1,3,7],[9,12,9,17],[9,19,11,20],[10,17,11,18],[12,15,14,16],[12,18,14,18],[12,20,14,20],[14,1,16,1],[15,15,17,16],[15,17,16,17],[15,18,17,18],[15,20,17,20],[22,2,23,2],[22,3,23,5],[22,7,23,9],[22,11,23,13],[38,19,40,20],[29,18,31,18],[29,20,31,20],[32,20,34,20],[35,15,37,16],[35,18,37,18],[26,12,26,17],[26,19,28,20],[27,17,28,18],[29,15,31,16],[32,1,34,1],[4,1,5,2],[4,9,5,11],[4,17,5,18],[38,2,38,4],[38,11,38,13],[32,15,34,16],[32,18,34,18],[38,15,40,17],[18,15,20,16],[40,2,41,2],[40,3,41,5],[40,7,41,9],[40,11,41,13],[20,2,20,4],[20,11,20,13]]}
[null,"Outcomes Versus Expenditure Tool - Cardiovascular Dashboard "]
[]
[]
[]
[null,"Selected CCG",null,null,null,null,null,null,null,"Comparator group",null,null,null,null,null,null,null,"Year"]
[]
[]
[null,null,"Expenditure"]
[]
[null,null,null,null,null,null,null,null,null,null,null,null,"Click here for information of about the graph",null,null,null,null,null,null,{"$f":"IF(Dashboard_charts_data!C4=1,\"Range of costs for for CCGs in the \"&SummaryData!F10&\" SCN\",IF(Dashboard_charts_data!C4=2,\"Range of cost for 10 most similar CCGs\",\"Range of cost for CCGs in a similar Deprivation decile\"))","v":"Range of costs for for CCGs in the Yorkshire and Northern SCN"}]
[null,null,null,null,null,null,null,null,null,null,null,null,null,null,null,null,null,"Range of all CCGs"]
[]
[null,null,null,null,null,null,null,null,null,null,null,null,null,null,null,"Maximum value",null,null,{"$f":"Dashboard_charts_data!$AD$14","v":8.6408363821198009},null,{"$f":"IF(Dashboard_charts_data!C4=1,Dashboard_charts_data!AD16,IF(Dashboard_charts_data!C4=2,Dashboard_charts_data!AD18,Dashboard_charts_data!AD20))","v":1.9946630105145944}]
[]
[null,"Number of CCGs"]
[null,null,null,null,null,null,null,null,null,null,null,null,null,null,null,"Minimum value",null,null,{"$f":"Dashboard_charts_data!$AD$15","v":0.15530311644983905},null,{"$f":"IF(Dashboard_charts_data!C4=1,Dashboard_charts_data!AD17,IF(Dashboard_charts_data!C4=2,Dashboard_charts_data!AD19,Dashboard_charts_data!AD21))","v":0.15530311644983905},null,null,null,{"$f":"\"\"&Dashboard_charts_data!L7&\"\"","v":"rate per 100,000"}]
[]
[]
[null,null,null,null,null,null,null,null,null,null,null,null,null,null,null,"Selected CCG value",null,null,{"$f":"Dashboard_charts_data!AD13","v":1.9946630105145944}]
[]
[null,null,"Below average spending",null,null,null,null,null,null,null,null,"Above average spending"]
[null,null,null,null,null,null,null,null,null,null,null,null,null,null,null,"Difference on 2012/13 cost and the 2013/14 cost *",null,null,null,null,{"$f":"VLOOKUP(Dashboard_charts_data!B2,Dashboard_charts_data!$A$10:$L$220,10,0)-VLOOKUP(Dashboard_charts_data!B2,Dashboard_charts_data!$A$10:$L$220,9,0)","v":-0.23461820143187917}]
[null,null,{"$f":"Dashboard_charts_data!AA31","v":1},{"$f":"\"\"&SummaryData!E10&\" \"&Dashboard_charts_data!AB31&\" in this expenditure\"","v":"NHS Airedale, Wharfedale and Craven is in the highest quartile of its SCN group in this expenditure"},null,null,null,{"$f":"IF(Dashboard_charts_data!C4=1,\"Lower limit of costs for for CCGs in the \"&SummaryData!F10&\" SCN\",IF(Dashboard_charts_data!C4=2,\"Lower limit of cost for 10 most similar CCGs\",\"Lower limit of cost for CCGs in a similar deprivation decile\"))","v":"Lower limit of costs for for CCGs in the Yorkshire and Northern SCN"},null,null,null,{"$f":"IF(Dashboard_charts_data!C4=1,\"Upper limit of costs for for CCGs in the  \"&SummaryData!F10&\" SCN\",IF(Dashboard_charts_data!C4=2,\"Upper limit of cost for 10 most similar CCGs\",\"Upper limit of cost for CCGs in a similar deprivation decile\"))","v":"Upper limit of costs for for CCGs in the  Yorkshire and Northern SCN"}]
[]
[]
[null,null,"Outcomes"]
[null,null,null,null,null,null,null,null,null,null,null,null,"Click here for information of about the graph",null,null,null,null,null,null,{"$f":"IF(Dashboard_charts_data!C4=1,\"Range of percentage outcomes for for CCGs in the \"&SummaryData!F10&\" SCN\",IF(Dashboard_charts_data!C4=2,\"Range of percentage outcomes for 10 most similar CCGs\",\"Range of percentage outcomes for CCGs in a similar Deprivation decile\"))","v":"Range of percentage outcomes for for CCGs in the Yorkshire and Northern SCN"}]
[null,null,null,null,null,null,null,null,null,null,null,null,null,null,null,null,null,"Range of all CCGs"]
[]
[null,null,null,null,null,null,null,null,null,null,null,null,null,null,null,{"$f":"IF(AND(Dashboard_charts_data!C5=1,Dashboard_charts_data!B7<=7),\"Maximum value is the rate per 100,000 people\",\"Maximum value is the rate (percentage)\")","v":"Maximum value is the rate per 100,000 people"},null,null,{"$f":"Dashboard_charts_data!AX14","v":110.80485879305807},null,{"$f":"IF(Dashboard_charts_data!C4=1,Dashboard_charts_data!AX16,IF(Dashboard_charts_data!C4=2,Dashboard_charts_data!AX18,Dashboard_charts_data!AX20))","v":107.94738985105154}]
[]
[]
[null,"Number of CCGs",null,null,null,null,null,null,null,null,null,null,null,null,null,{"$f":"IF(AND(Dashboard_charts_data!C5=1,Dashboard_charts_data!B7<=7),\"Minimum value is the rate per 100,000 people\",\"Minimum value is the rate (percentage)\")","v":"Minimum value is the rate per 100,000 people"},null,null,{"$f":"Dashboard_charts_data!AX15","v":31.145905369237344},null,{"$f":"IF(Dashboard_charts_data!C4=1,Dashboard_charts_data!AX17,IF(Dashboard_charts_data!C4=2,Dashboard_charts_data!AX19,Dashboard_charts_data!AX21))","v":52.472293039205816}]
[]
[]
[null,null,null,null,null,null,null,null,null,null,null,null,null,null,null,"Selected CCG value",null,null,{"$f":"Dashboard_charts_data!AX13","v":58.650197502773523}]
[]
[]
[null,null,"Below average outcomes",null,null,null,null,null,null,null,null,"Above average outcomes",null,null,null,"Difference between \n2012/13 and 2013/14 \noutcomes",null,null,null,{"$f":"IF(AND(Dashboard_charts_data!C5=1,Dashboard_charts_data!B7>=8),VLOOKUP(Dashboard_charts_data!B2,Dashboard_charts_data!$A$10:$L$220,12,0)-VLOOKUP(Dashboard_charts_data!B2,Dashboard_charts_data!$A$10:$L$220,11,0),IF(AND(Dashboard_charts_data!C5=2,Dashboard_charts_data!B7<=8),VLOOKUP(Dashboard_charts_data!B2,Dashboard_charts_data!$A$10:$L$220,12,0)-VLOOKUP(Dashboard_charts_data!B2,Dashboard_charts_data!$A$10:$L$220,11,0),\"There is no 2013/14 data currently available to compare to this outcome\"))","v":"There is no 2013/14 data currently available to compare to this outcome"}]
[]
[null,null,{"$f":"Dashboard_charts_data!AU30","v":3},{"$f":"\"\"&SummaryData!E10&\" \"&Dashboard_charts_data!AV30&\" for this outcome\"","v":"NHS Airedale, Wharfedale and Craven is in the lowest quartile of its SCN group for this outcome"},null,null,null,{"$f":"IF(Dashboard_charts_data!C4=1,\"Lowest \"&Y16&\" for CCGs in the \"&SummaryData!F10&\" SCN\",IF(Dashboard_charts_data!C4=2,\"Lowest \"&Y16&\" for 10 most similar CCGs\",\"Lowest percentile for CCGs in a similar deprivation decile\"))","v":"Lowest rate per 100,000 for CCGs in the Yorkshire and Northern SCN"},null,null,null,{"$f":"IF(Dashboard_charts_data!C4=1,\"Highest \"&Y16&\" for CCGs in the  \"&SummaryData!F10&\" SCN\",IF(Dashboard_charts_data!C4=2,\"Highest \"&Y16&\" for 10 most similar CCGs\",\"Highest percentile CCGs in a similar deprivation decile\"))","v":"Highest rate per 100,000 for CCGs in the  Yorkshire and Northern SCN"}]
[]
[]
[]
[]
[null,"* net ingredient cost"]

{"sheet":"UserLookups","index":8,"n_rows":217,"n_cols":8,"rows_kept":217,"cut":false,"hidden":false,"merged":[]}
["Lookups for each CCG nationally"]
[]
[]
[]
[null,"CCG information"]
["CCG name \n(Organisation Data Service Aug 2013)","CCG \ncode","CCG \nONS code","Commissioning Board Region","Strategic Clinical Network (SCN). \nWhere there's overlap the CCG has been put within the SCN of greates coverage","10 Closest CCGs to the selected CCG (changes on menu selection)","Index of Deprivation 2010 decile \n(using 2012 pop)","2011 Cardiovascular disesase expected prevelance (%)"]
["NHS Airedale, Wharfedale and Craven","02N","E38000001","North","Yorkshire and Northern",{"$f":"VLOOKUP(B7,Lookup!$BJ$3:$BO$213,6,0)","v":"One of the 10 most similar CCGs"},6,10.304]
["NHS Ashford","09C","E38000002","South","South East coast",{"$f":"VLOOKUP(B8,Lookup!$BJ$3:$BO$213,6,0)","v":"One of the 10 most similar CCGs"},8,9.3010000000000002]
["NHS Aylesbury Vale","10Y","E38000003","South","Thames",{"$f":"VLOOKUP(B9,Lookup!$BJ$3:$BO$213,6,0)","v":"Not similar"},10,8.7829999999999995]
["NHS Barking and Dagenham","07L","E38000004","London","London",{"$f":"VLOOKUP(B10,Lookup!$BJ$3:$BO$213,6,0)","v":"Not similar"},2,7.3609999999999998]
["NHS Barnet","07M","E38000005","London","London",{"$f":"VLOOKUP(B11,Lookup!$BJ$3:$BO$213,6,0)","v":"Not similar"},7,7.9509999999999996]
["NHS Barnsley","02P","E38000006","North","Yorkshire and Northern",{"$f":"VLOOKUP(B12,Lookup!$BJ$3:$BO$213,6,0)","v":"Not similar"},3,10.324999999999999]
["NHS Basildon and Brentwood","99E","E38000007","Midlands and East","East of England",{"$f":"VLOOKUP(B13,Lookup!$BJ$3:$BO$213,6,0)","v":"Not similar"},7,9.4220000000000006]
["NHS Bassetlaw","02Q","E38000008","North","Yorkshire and Northern",{"$f":"VLOOKUP(B14,Lookup!$BJ$3:$BO$213,6,0)","v":"Not similar"},4,10.33]
["NHS Bath and North East Somerset","11E","E38000009","South","South West",{"$f":"VLOOKUP(B15,Lookup!$BJ$3:$BO$213,6,0)","v":"Not similar"},9,9.7569999999999997]
["NHS Bedfordshire","06F","E38000010","Midlands and East","East of England",{"$f":"VLOOKUP(B16,Lookup!$BJ$3:$BO$213,6,0)","v":"Not similar"},9,8.9369999999999994]
["NHS Bexley","07N","E38000011","London","London",{"$f":"VLOOKUP(B17,Lookup!$BJ$3:$BO$213,6,0)","v":"Not similar"},7,9.1170000000000009]
["NHS Birmingham Crosscity","13P","E38000012","Midlands and East","West Midlands",{"$f":"VLOOKUP(B18,Lookup!$BJ$3:$BO$213,6,0)","v":"Not similar"},1,9.1059999999999999]
["NHS Birmingham South and Central","04X","E38000013","Midlands and East","West Midlands",{"$f":"VLOOKUP(B19,Lookup!$BJ$3:$BO$213,6,0)","v":"Not similar"},1,8.06]
["NHS Blackburn with Darwen","00Q","E38000014","North","Greater Manchester Lancashire and South Cumbria",{"$f":"VLOOKUP(B20,Lookup!$BJ$3:$BO$213,6,0)","v":"Not similar"},1,8.7829999999999995]
["NHS Blackpool","00R","E38000015","North","Greater Manchester Lancashire and South Cumbria",{"$f":"VLOOKUP(B21,Lookup!$BJ$3:$BO$213,6,0)","v":"Not similar"},1,11.561999999999999]
["NHS Bolton","00T","E38000016","North","Greater Manchester Lancashire and South Cumbria",{"$f":"VLOOKUP(B22,Lookup!$BJ$3:$BO$213,6,0)","v":"Not similar"},2,9.5079999999999991]
["NHS Bracknell and Ascot","10G","E38000017","South","Thames",{"$f":"VLOOKUP(B23,Lookup!$BJ$3:$BO$213,6,0)","v":"Not similar"},10,8.1289999999999996]
["NHS Bradford City","02W","E38000018","North","Yorkshire and Northern",{"$f":"VLOOKUP(B24,Lookup!$BJ$3:$BO$213,6,0)","v":"Not similar"},1,6.0670000000000002]
["NHS Bradford Districts","02R","E38000019","North","Yorkshire and Northern",{"$f":"VLOOKUP(B25,Lookup!$BJ$3:$BO$213,6,0)","v":"Not similar"},2,9.2140000000000004]
["NHS Brent","07P","E38000020","London","London",{"$f":"VLOOKUP(B26,Lookup!$BJ$3:$BO$213,6,0)","v":"Not similar"},2,7.0949999999999998]
["NHS Brighton and Hove","09D","E38000021","South","South East coast",{"$f":"VLOOKUP(B27,Lookup!$BJ$3:$BO$213,6,0)","v":"Not similar"},4,8.6850000000000005]
["NHS Bristol","11H","E38000022","South","South West",{"$f":"VLOOKUP(B28,Lookup!$BJ$3:$BO$213,6,0)","v":"Not similar"},4,8.4700000000000006]
["NHS Bromley","07Q","E38000023","London","London",{"$f":"VLOOKUP(B29,Lookup!$BJ$3:$BO$213,6,0)","v":"Not similar"},8,9.5220000000000002]
["NHS Bury","00V","E38000024","North","Greater Manchester Lancashire and South Cumbria",{"$f":"VLOOKUP(B30,Lookup!$BJ$3:$BO$213,6,0)","v":"Not similar"},5,9.3989999999999991]
["NHS Calderdale","02T","E38000025","North","Yorkshire and Northern",{"$f":"VLOOKUP(B31,Lookup!$BJ$3:$BO$213,6,0)","v":"One of the 10 most similar CCGs"},5,9.3079999999999998]
["NHS Cambridgeshire and Peterborough","06H","E38000026","Midlands and East","East of England",{"$f":"VLOOKUP(B32,Lookup!$BJ$3:$BO$213,6,0)","v":"Not similar"},8,8.9160000000000004]
["NHS Camden","07R","E38000027","London","London",{"$f":"VLOOKUP(B33,Lookup!$BJ$3:$BO$213,6,0)","v":"Not similar"},4,6.83]
["NHS Cannock Chase","04Y","E38000028","Midlands and East","West Midlands",{"$f":"VLOOKUP(B34,Lookup!$BJ$3:$BO$213,6,0)","v":"Not similar"},6,9.4849999999999994]
["NHS Canterbury and Coastal","09E","E38000029","South","South East coast",{"$f":"VLOOKUP(B35,Lookup!$BJ$3:$BO$213,6,0)","v":"Not similar"},7,9.9209999999999994]
["NHS Castle Point and Rochford","99F","E38000030","Midlands and East","East of England",{"$f":"VLOOKUP(B36,Lookup!$BJ$3:$BO$213,6,0)","v":"Not similar"},9,10.691000000000001]
["NHS Central London (Westminster)","09A","E38000031","London","London",{"$f":"VLOOKUP(B37,Lookup!$BJ$3:$BO$213,6,0)","v":"Not similar"},5,7.4569999999999999]
["NHS Central Manchester","00W","E38000032","North","Greater Manchester Lancashire and South Cumbria",{"$f":"VLOOKUP(B38,Lookup!$BJ$3:$BO$213,6,0)","v":"Not similar"},1,7.0949999999999998]
["NHS Chiltern","10H","E38000033","South","Thames",{"$f":"VLOOKUP(B39,Lookup!$BJ$3:$BO$213,6,0)","v":"Not similar"},10,9.1199999999999992]
["NHS Chorley and South Ribble","00X","E38000034","North","Greater Manchester Lancashire and South Cumbria",{"$f":"VLOOKUP(B40,Lookup!$BJ$3:$BO$213,6,0)","v":"Not similar"},6,9.6929999999999996]
["NHS City and Hackney","07T","E38000035","London","London",{"$f":"VLOOKUP(B41,Lookup!$BJ$3:$BO$213,6,0)","v":"Not similar"},1,6.8479999999999999]
["NHS Coastal West Sussex","09G","E38000036","South","South East coast",{"$f":"VLOOKUP(B42,Lookup!$BJ$3:$BO$213,6,0)","v":"Not similar"},7,11.872999999999999]
["NHS Corby","03V","E38000037","Midlands and East","East Midlands",{"$f":"VLOOKUP(B43,Lookup!$BJ$3:$BO$213,6,0)","v":"Not similar"},3,8.6300000000000008]
["NHS Coventry and Rugby","05A","E38000038","Midlands and East","West Midlands",{"$f":"VLOOKUP(B44,Lookup!$BJ$3:$BO$213,6,0)","v":"Not similar"},4,8.9719999999999995]
["NHS Crawley","09H","E38000039","South","South East coast",{"$f":"VLOOKUP(B45,Lookup!$BJ$3:$BO$213,6,0)","v":"Not similar"},7,8.1859999999999999]
["NHS Croydon","07V","E38000040","London","London",{"$f":"VLOOKUP(B46,Lookup!$BJ$3:$BO$213,6,0)","v":"Not similar"},5,7.8209999999999997]
["NHS Cumbria","01H","E38000041","North","Northern England",{"$f":"VLOOKUP(B47,Lookup!$BJ$3:$BO$213,6,0)","v":"Not similar"},5,11.092000000000001]
["NHS Darlington","00C","E38000042","North","Northern England",{"$f":"VLOOKUP(B48,Lookup!$BJ$3:$BO$213,6,0)","v":"Not similar"},4,10.186]
["NHS Dartford, Gravesham and Swanley","09J","E38000043","South","South East coast",{"$f":"VLOOKUP(B49,Lookup!$BJ$3:$BO$213,6,0)","v":"Not similar"},7,9.2170000000000005]
["NHS Doncaster","02X","E38000044","North","Yorkshire and Northern",{"$f":"VLOOKUP(B50,Lookup!$BJ$3:$BO$213,6,0)","v":"Not similar"},2,10.462]
["NHS Dorset","11J","E38000045","South","Wessex",{"$f":"VLOOKUP(B51,Lookup!$BJ$3:$BO$213,6,0)","v":"Not similar"},7,11.443]
["NHS Dudley","05C","E38000046","Midlands and East","West Midlands",{"$f":"VLOOKUP(B52,Lookup!$BJ$3:$BO$213,6,0)","v":"Not similar"},4,10.404999999999999]
["NHS Durham Dales, Easington and Sedgefield","00D","E38000047","North","Northern England",{"$f":"VLOOKUP(B53,Lookup!$BJ$3:$BO$213,6,0)","v":"Not similar"},2,10.959]
["NHS Ealing","07W","E38000048","London","London",{"$f":"VLOOKUP(B54,Lookup!$BJ$3:$BO$213,6,0)","v":"Not similar"},4,7.0419999999999998]
["NHS East and North Hertfordshire","06K","E38000049","Midlands and East","East of England",{"$f":"VLOOKUP(B55,Lookup!$BJ$3:$BO$213,6,0)","v":"Not similar"},9,8.7509999999999994]
["NHS East Lancashire","01A","E38000050","North","Greater Manchester Lancashire and South Cumbria",{"$f":"VLOOKUP(B56,Lookup!$BJ$3:$BO$213,6,0)","v":"Not similar"},3,9.9930000000000003]
["NHS East Leicestershire and Rutland","03W","E38000051","Midlands and East","East Midlands",{"$f":"VLOOKUP(B57,Lookup!$BJ$3:$BO$213,6,0)","v":"Not similar"},10,10.109]
["NHS East Riding Of Yorkshire","02Y","E38000052","North","Yorkshire and Northern",{"$f":"VLOOKUP(B58,Lookup!$BJ$3:$BO$213,6,0)","v":"Not similar"},8,11.287000000000001]
["NHS East Staffordshire","05D","E38000053","Midlands and East","West Midlands",{"$f":"VLOOKUP(B59,Lookup!$BJ$3:$BO$213,6,0)","v":"One of the 10 most similar CCGs"},6,9.641]
["NHS East Surrey","09L","E38000054","South","South East coast",{"$f":"VLOOKUP(B60,Lookup!$BJ$3:$BO$213,6,0)","v":"Not similar"},10,9.2799999999999994]
["NHS Eastbourne, Hailsham and Seaford","09F","E38000055","South","South East coast",{"$f":"VLOOKUP(B61,Lookup!$BJ$3:$BO$213,6,0)","v":"Not similar"},6,12.260999999999999]
["NHS Eastern Cheshire","01C","E38000056","North","Cheshire and Merseyside",{"$f":"VLOOKUP(B62,Lookup!$BJ$3:$BO$213,6,0)","v":"Not similar"},9,10.449]
["NHS Enfield","07X","E38000057","London","London",{"$f":"VLOOKUP(B63,Lookup!$BJ$3:$BO$213,6,0)","v":"Not similar"},3,8.1790000000000003]
["NHS Erewash","03X","E38000058","Midlands and East","East Midlands",{"$f":"VLOOKUP(B64,Lookup!$BJ$3:$BO$213,6,0)","v":"Not similar"},5,10]
["NHS Fareham and Gosport","10K","E38000059","South","Wessex",{"$f":"VLOOKUP(B65,Lookup!$BJ$3:$BO$213,6,0)","v":"Not similar"},9,10.130000000000001]
["NHS Fylde & Wyre","02M","E38000060","North","Greater Manchester Lancashire and South Cumbria",{"$f":"VLOOKUP(B66,Lookup!$BJ$3:$BO$213,6,0)","v":"Not similar"},8,11.891999999999999]
["NHS Gateshead","00F","E38000061","North","Northern England",{"$f":"VLOOKUP(B67,Lookup!$BJ$3:$BO$213,6,0)","v":"Not similar"},2,10.685]
["NHS Gloucestershire","11M","E38000062","South","South West",{"$f":"VLOOKUP(B68,Lookup!$BJ$3:$BO$213,6,0)","v":"Not similar"},8,10.074999999999999]
["NHS Great Yarmouth and Waveney","06M","E38000063","Midlands and East","East of England",{"$f":"VLOOKUP(B69,Lookup!$BJ$3:$BO$213,6,0)","v":"One of the 10 most similar CCGs"},4,11.552]
["NHS Greater Huddersfield","03A","E38000064","North","Yorkshire and Northern",{"$f":"VLOOKUP(B70,Lookup!$BJ$3:$BO$213,6,0)","v":"Not similar"},5,9.3810000000000002]
["NHS Greater Preston","01E","E38000065","North","Greater Manchester Lancashire and South Cumbria",{"$f":"VLOOKUP(B71,Lookup!$BJ$3:$BO$213,6,0)","v":"Not similar"},4,9.2189999999999994]
["NHS Greenwich","08A","E38000066","London","London",{"$f":"VLOOKUP(B72,Lookup!$BJ$3:$BO$213,6,0)","v":"Not similar"},2,7.3650000000000002]
["NHS Guildford and Waverley","09N","E38000067","South","South East coast",{"$f":"VLOOKUP(B73,Lookup!$BJ$3:$BO$213,6,0)","v":"Not similar"},10,9.3249999999999993]
["NHS Halton","01F","E38000068","North","Cheshire and Merseyside",{"$f":"VLOOKUP(B74,Lookup!$BJ$3:$BO$213,6,0)","v":"Not similar"},2,9.702]
["NHS Hambleton, Richmondshire and Whitby","03D","E38000069","North","Northern England",{"$f":"VLOOKUP(B75,Lookup!$BJ$3:$BO$213,6,0)","v":"Not similar"},9,11.374000000000001]
["NHS Hammersmith and Fulham","08C","E38000070","London","London",{"$f":"VLOOKUP(B76,Lookup!$BJ$3:$BO$213,6,0)","v":"Not similar"},3,6.8819999999999997]
["NHS Hardwick","03Y","E38000071","Midlands and East","East Midlands",{"$f":"VLOOKUP(B77,Lookup!$BJ$3:$BO$213,6,0)","v":"Not similar"},4,10.843]
["NHS Haringey","08D","E38000072","London","London",{"$f":"VLOOKUP(B78,Lookup!$BJ$3:$BO$213,6,0)","v":"Not similar"},1,7.4420000000000002]
["NHS Harrogate and Rural District","03E","E38000073","North","Yorkshire and Northern",{"$f":"VLOOKUP(B79,Lookup!$BJ$3:$BO$213,6,0)","v":"One of the 10 most similar CCGs"},10,10.481999999999999]
["NHS Harrow","08E","E38000074","London","London",{"$f":"VLOOKUP(B80,Lookup!$BJ$3:$BO$213,6,0)","v":"Not similar"},8,7.8739999999999997]
["NHS Hartlepool and Stockton-On-Tees","00K","E38000075","North","Northern England",{"$f":"VLOOKUP(B81,Lookup!$BJ$3:$BO$213,6,0)","v":"Not similar"},3,9.8840000000000003]
["NHS Hastings and Rother","09P","E38000076","South","South East coast",{"$f":"VLOOKUP(B82,Lookup!$BJ$3:$BO$213,6,0)","v":"Not similar"},3,12.218999999999999]
["NHS Havering","08F","E38000077","London","London",{"$f":"VLOOKUP(B83,Lookup!$BJ$3:$BO$213,6,0)","v":"Not similar"},7,9.6460000000000008]
["NHS Herefordshire","05F","E38000078","Midlands and East","West Midlands",{"$f":"VLOOKUP(B84,Lookup!$BJ$3:$BO$213,6,0)","v":"Not similar"},7,11.26]
["NHS Herts Valleys","06N","E38000079","Midlands and East","East of England",{"$f":"VLOOKUP(B85,Lookup!$BJ$3:$BO$213,6,0)","v":"Not similar"},10,8.7949999999999999]
["NHS Heywood, Middleton and Rochdale","01D","E38000080","North","Greater Manchester Lancashire and South Cumbria",{"$f":"VLOOKUP(B86,Lookup!$BJ$3:$BO$213,6,0)","v":"Not similar"},2,9.4440000000000008]
["NHS High Weald Lewes Havens","99K","E38000081","South","South East coast",{"$f":"VLOOKUP(B87,Lookup!$BJ$3:$BO$213,6,0)","v":"Not similar"},9,10.755000000000001]
["NHS Hillingdon","08G","E38000082","London","London",{"$f":"VLOOKUP(B88,Lookup!$BJ$3:$BO$213,6,0)","v":"Not similar"},6,8.0069999999999997]
["NHS Horsham and Mid Sussex","09X","E38000083","South","South East coast",{"$f":"VLOOKUP(B89,Lookup!$BJ$3:$BO$213,6,0)","v":"Not similar"},10,9.6639999999999997]
["NHS Hounslow","07Y","E38000084","London","London",{"$f":"VLOOKUP(B90,Lookup!$BJ$3:$BO$213,6,0)","v":"Not similar"},5,7.0979999999999999]
["NHS Hull","03F","E38000085","North","Yorkshire and Northern",{"$f":"VLOOKUP(B91,Lookup!$BJ$3:$BO$213,6,0)","v":"Not similar"},1,9.8260000000000005]
["NHS Ipswich and East Suffolk","06L","E38000086","Midlands and East","East of England",{"$f":"VLOOKUP(B92,Lookup!$BJ$3:$BO$213,6,0)","v":"Not similar"},8,10.430999999999999]
["NHS Isle Of Wight","10L","E38000087","South","Wessex",{"$f":"VLOOKUP(B93,Lookup!$BJ$3:$BO$213,6,0)","v":"Not similar"},5,12.092000000000001]
["NHS Islington","08H","E38000088","London","London",{"$f":"VLOOKUP(B94,Lookup!$BJ$3:$BO$213,6,0)","v":"Not similar"},1,7.5910000000000002]
["NHS Kernow","11N","E38000089","South","South West",{"$f":"VLOOKUP(B95,Lookup!$BJ$3:$BO$213,6,0)","v":"Not similar"},5,11.288]
["NHS Kingston","08J","E38000090","London","London",{"$f":"VLOOKUP(B96,Lookup!$BJ$3:$BO$213,6,0)","v":"Not similar"},9,7.8879999999999999]
["NHS Knowsley","01J","E38000091","North","Cheshire and Merseyside",{"$f":"VLOOKUP(B97,Lookup!$BJ$3:$BO$213,6,0)","v":"Not similar"},1,10.362]
["NHS Lambeth","08K","E38000092","London","London",{"$f":"VLOOKUP(B98,Lookup!$BJ$3:$BO$213,6,0)","v":"Not similar"},2,6.4649999999999999]
["NHS Lancashire North","01K","E38000093","North","Greater Manchester Lancashire and South Cumbria",{"$f":"VLOOKUP(B99,Lookup!$BJ$3:$BO$213,6,0)","v":"Not similar"},6,9.8989999999999991]
["NHS Leeds North","02V","E38000094","North","Yorkshire and Northern",{"$f":"VLOOKUP(B100,Lookup!$BJ$3:$BO$213,6,0)","v":"Not similar"},5,9.3450000000000006]
["NHS Leeds South and East","03G","E38000095","North","Yorkshire and Northern",{"$f":"VLOOKUP(B101,Lookup!$BJ$3:$BO$213,6,0)","v":"Not similar"},1,9.7509999999999994]
["NHS Leeds West","03C","E38000096","North","Yorkshire and Northern",{"$f":"VLOOKUP(B102,Lookup!$BJ$3:$BO$213,6,0)","v":"Not similar"},5,8.4049999999999994]
["NHS Leicester City","04C","E38000097","Midlands and East","East Midlands",{"$f":"VLOOKUP(B103,Lookup!$BJ$3:$BO$213,6,0)","v":"Not similar"},2,7.7839999999999998]
["NHS Lewisham","08L","E38000098","London","London",{"$f":"VLOOKUP(B104,Lookup!$BJ$3:$BO$213,6,0)","v":"Not similar"},2,6.9119999999999999]
["NHS Lincolnshire East","03T","E38000099","Midlands and East","East Midlands",{"$f":"VLOOKUP(B105,Lookup!$BJ$3:$BO$213,6,0)","v":"Not similar"},4,12.364000000000001]
["NHS Lincolnshire West","04D","E38000100","Midlands and East","East Midlands",{"$f":"VLOOKUP(B106,Lookup!$BJ$3:$BO$213,6,0)","v":"Not similar"},6,9.98]
["NHS Liverpool","99A","E38000101","North","Cheshire and Merseyside",{"$f":"VLOOKUP(B107,Lookup!$BJ$3:$BO$213,6,0)","v":"Not similar"},1,9.8179999999999996]
["NHS Luton","06P","E38000102","Midlands and East","East of England",{"$f":"VLOOKUP(B108,Lookup!$BJ$3:$BO$213,6,0)","v":"Not similar"},3,7.3490000000000002]
["NHS Mansfield and Ashfield","04E","E38000103","Midlands and East","East Midlands",{"$f":"VLOOKUP(B109,Lookup!$BJ$3:$BO$213,6,0)","v":"Not similar"},3,10.1]
["NHS Medway","09W","E38000104","South","South East coast",{"$f":"VLOOKUP(B110,Lookup!$BJ$3:$BO$213,6,0)","v":"Not similar"},5,8.6839999999999993]
["NHS Merton","08R","E38000105","London","London",{"$f":"VLOOKUP(B111,Lookup!$BJ$3:$BO$213,6,0)","v":"Not similar"},8,7.3659999999999997]
["NHS Mid Essex","06Q","E38000106","Midlands and East","East of England",{"$f":"VLOOKUP(B112,Lookup!$BJ$3:$BO$213,6,0)","v":"Not similar"},9,9.468]
["NHS Milton Keynes","04F","E38000107","Midlands and East","East Midlands",{"$f":"VLOOKUP(B113,Lookup!$BJ$3:$BO$213,6,0)","v":"Not similar"},8,7.49]
["NHS Nene","04G","E38000108","Midlands and East","East Midlands",{"$f":"VLOOKUP(B114,Lookup!$BJ$3:$BO$213,6,0)","v":"Not similar"},7,8.9039999999999999]
["NHS Newark & Sherwood","04H","E38000109","Midlands and East","East Midlands",{"$f":"VLOOKUP(B115,Lookup!$BJ$3:$BO$213,6,0)","v":"Not similar"},6,10.315]
["NHS Newbury and District","10M","E38000110","South","Thames",{"$f":"VLOOKUP(B116,Lookup!$BJ$3:$BO$213,6,0)","v":"Not similar"},10,8.9190000000000005]
["NHS Newcastle North and East","00G","E38000111","North","Northern England",{"$f":"VLOOKUP(B117,Lookup!$BJ$3:$BO$213,6,0)","v":"Not similar"},4,8.4030000000000005]
["NHS Newcastle West","00H","E38000112","North","Northern England",{"$f":"VLOOKUP(B118,Lookup!$BJ$3:$BO$213,6,0)","v":"Not similar"},2,9.8439999999999994]
["NHS Newham","08M","E38000113","London","London",{"$f":"VLOOKUP(B119,Lookup!$BJ$3:$BO$213,6,0)","v":"Not similar"},1,6.5209999999999999]
["NHS North & West Reading","10N","E38000114","South","Thames",{"$f":"VLOOKUP(B120,Lookup!$BJ$3:$BO$213,6,0)","v":"Not similar"},9,8.9139999999999997]
["NHS North Derbyshire","04J","E38000115","Midlands and East","East Midlands",{"$f":"VLOOKUP(B121,Lookup!$BJ$3:$BO$213,6,0)","v":"Not similar"},7,10.846]
["NHS North Durham","00J","E38000116","North","Northern England",{"$f":"VLOOKUP(B122,Lookup!$BJ$3:$BO$213,6,0)","v":"Not similar"},6,9.7370000000000001]
["NHS North East Essex","06T","E38000117","Midlands and East","East of England",{"$f":"VLOOKUP(B123,Lookup!$BJ$3:$BO$213,6,0)","v":"Not similar"},6,10.867000000000001]
["NHS North East Hampshire and Farnham","99M","E38000118","South","Wessex",{"$f":"VLOOKUP(B124,Lookup!$BJ$3:$BO$213,6,0)","v":"Not similar"},10,8.6159999999999997]
["NHS North East Lincolnshire","03H","E38000119","North","Yorkshire and Northern",{"$f":"VLOOKUP(B125,Lookup!$BJ$3:$BO$213,6,0)","v":"Not similar"},3,10.403]
["NHS North Hampshire","10J","E38000120","South","Wessex",{"$f":"VLOOKUP(B126,Lookup!$BJ$3:$BO$213,6,0)","v":"Not similar"},10,8.7240000000000002]
["NHS North Kirklees","03J","E38000121","North","Yorkshire and Northern",{"$f":"VLOOKUP(B127,Lookup!$BJ$3:$BO$213,6,0)","v":"Not similar"},3,8.9109999999999996]
["NHS North Lincolnshire","03K","E38000122","North","Yorkshire and Northern",{"$f":"VLOOKUP(B128,Lookup!$BJ$3:$BO$213,6,0)","v":"Not similar"},5,10.252000000000001]
["NHS North Manchester","01M","E38000123","North","Greater Manchester Lancashire and South Cumbria",{"$f":"VLOOKUP(B129,Lookup!$BJ$3:$BO$213,6,0)","v":"Not similar"},1,8.8759999999999994]
["NHS North Norfolk","06V","E38000124","Midlands and East","East of England",{"$f":"VLOOKUP(B130,Lookup!$BJ$3:$BO$213,6,0)","v":"Not similar"},8,12.954000000000001]
["NHS North Somerset","11T","E38000125","South","South West",{"$f":"VLOOKUP(B131,Lookup!$BJ$3:$BO$213,6,0)","v":"Not similar"},8,10.785]
["NHS North Staffordshire","05G","E38000126","Midlands and East","West Midlands",{"$f":"VLOOKUP(B132,Lookup!$BJ$3:$BO$213,6,0)","v":"Not similar"},7,10.34]
["NHS North Tyneside","99C","E38000127","North","Northern England",{"$f":"VLOOKUP(B133,Lookup!$BJ$3:$BO$213,6,0)","v":"Not similar"},5,10.125999999999999]
["NHS North West Surrey","09Y","E38000128","South","South East coast",{"$f":"VLOOKUP(B134,Lookup!$BJ$3:$BO$213,6,0)","v":"Not similar"},10,9.1359999999999992]
["NHS Northern, Eastern and Western Devon","99P","E38000129","South","South West",{"$f":"VLOOKUP(B135,Lookup!$BJ$3:$BO$213,6,0)","v":"Not similar"},6,10.817]
["NHS Northumberland","00L","E38000130","North","Northern England",{"$f":"VLOOKUP(B136,Lookup!$BJ$3:$BO$213,6,0)","v":"Not similar"},6,10.941000000000001]
["NHS Norwich","06W","E38000131","Midlands and East","East of England",{"$f":"VLOOKUP(B137,Lookup!$BJ$3:$BO$213,6,0)","v":"Not similar"},6,9.5449999999999999]
["NHS Nottingham City","04K","E38000132","Midlands and East","East Midlands",{"$f":"VLOOKUP(B138,Lookup!$BJ$3:$BO$213,6,0)","v":"Not similar"},2,8.1539999999999999]
["NHS Nottingham North and East","04L","E38000133","Midlands and East","East Midlands",{"$f":"VLOOKUP(B139,Lookup!$BJ$3:$BO$213,6,0)","v":"Not similar"},7,10.065]
["NHS Nottingham West","04M","E38000134","Midlands and East","East Midlands",{"$f":"VLOOKUP(B140,Lookup!$BJ$3:$BO$213,6,0)","v":"Not similar"},9,10.182]
["NHS Oldham","00Y","E38000135","North","Greater Manchester Lancashire and South Cumbria",{"$f":"VLOOKUP(B141,Lookup!$BJ$3:$BO$213,6,0)","v":"Not similar"},2,9.1289999999999996]
["NHS Oxfordshire","10Q","E38000136","South","Thames",{"$f":"VLOOKUP(B142,Lookup!$BJ$3:$BO$213,6,0)","v":"Not similar"},9,8.8849999999999998]
["NHS Portsmouth","10R","E38000137","South","Wessex",{"$f":"VLOOKUP(B143,Lookup!$BJ$3:$BO$213,6,0)","v":"Not similar"},4,8.6430000000000007]
["NHS Redbridge","08N","E38000138","London","London",{"$f":"VLOOKUP(B144,Lookup!$BJ$3:$BO$213,6,0)","v":"Not similar"},6,7.3390000000000004]
["NHS Redditch and Bromsgrove","05J","E38000139","Midlands and East","West Midlands",{"$f":"VLOOKUP(B145,Lookup!$BJ$3:$BO$213,6,0)","v":"Not similar"},8,9.7170000000000005]
["NHS Richmond","08P","E38000140","London","London",{"$f":"VLOOKUP(B146,Lookup!$BJ$3:$BO$213,6,0)","v":"Not similar"},10,8.3889999999999993]
["NHS Rotherham","03L","E38000141","North","Yorkshire and Northern",{"$f":"VLOOKUP(B147,Lookup!$BJ$3:$BO$213,6,0)","v":"Not similar"},3,10.161]
["NHS Rushcliffe","04N","E38000142","Midlands and East","East Midlands",{"$f":"VLOOKUP(B148,Lookup!$BJ$3:$BO$213,6,0)","v":"Not similar"},10,9.8130000000000006]
["NHS Salford","01G","E38000143","North","Greater Manchester Lancashire and South Cumbria",{"$f":"VLOOKUP(B149,Lookup!$BJ$3:$BO$213,6,0)","v":"Not similar"},1,9.2170000000000005]
["NHS Sandwell and West Birmingham","05L","E38000144","Midlands and East","West Midlands",{"$f":"VLOOKUP(B150,Lookup!$BJ$3:$BO$213,6,0)","v":"Not similar"},1,8.7799999999999994]
["NHS Scarborough and Ryedale","03M","E38000145","North","Yorkshire and Northern",{"$f":"VLOOKUP(B151,Lookup!$BJ$3:$BO$213,6,0)","v":"Not similar"},4,11.516]
["NHS Sheffield","03N","E38000146","North","Yorkshire and Northern",{"$f":"VLOOKUP(B152,Lookup!$BJ$3:$BO$213,6,0)","v":"Not similar"},3,9.3569999999999993]
["NHS Shropshire","05N","E38000147","Midlands and East","West Midlands",{"$f":"VLOOKUP(B153,Lookup!$BJ$3:$BO$213,6,0)","v":"Not similar"},7,11.121]
["NHS Slough","10T","E38000148","South","Thames",{"$f":"VLOOKUP(B154,Lookup!$BJ$3:$BO$213,6,0)","v":"Not similar"},4,6.72]
["NHS Solihull","05P","E38000149","Midlands and East","West Midlands",{"$f":"VLOOKUP(B155,Lookup!$BJ$3:$BO$213,6,0)","v":"Not similar"},8,10.191000000000001]
["NHS Somerset","11X","E38000150","South","South West",{"$f":"VLOOKUP(B156,Lookup!$BJ$3:$BO$213,6,0)","v":"Not similar"},7,10.959]
["NHS South Cheshire","01R","E38000151","North","Cheshire and Merseyside",{"$f":"VLOOKUP(B157,Lookup!$BJ$3:$BO$213,6,0)","v":"Not similar"},8,9.984]
["NHS South Devon and Torbay","99Q","E38000152","South","South West",{"$f":"VLOOKUP(B158,Lookup!$BJ$3:$BO$213,6,0)","v":"Not similar"},5,11.907]
["NHS South East Staffs and Seisdon Peninsular","05Q","E38000153","Midlands and East","West Midlands",{"$f":"VLOOKUP(B159,Lookup!$BJ$3:$BO$213,6,0)","v":"Not similar"},8,9.7989999999999995]
["NHS South Eastern Hampshire","10V","E38000154","South","Wessex",{"$f":"VLOOKUP(B160,Lookup!$BJ$3:$BO$213,6,0)","v":"Not similar"},7,10.922000000000001]
["NHS South Gloucestershire","12A","E38000155","South","South West",{"$f":"VLOOKUP(B161,Lookup!$BJ$3:$BO$213,6,0)","v":"Not similar"},10,9.2940000000000005]
["NHS South Kent Coast","10A","E38000156","South","South East coast",{"$f":"VLOOKUP(B162,Lookup!$BJ$3:$BO$213,6,0)","v":"One of the 10 most similar CCGs"},5,11.045999999999999]
["NHS South Lincolnshire","99D","E38000157","Midlands and East","East Midlands",{"$f":"VLOOKUP(B163,Lookup!$BJ$3:$BO$213,6,0)","v":"Not similar"},9,10.792]
["NHS South Manchester","01N","E38000158","North","Greater Manchester Lancashire and South Cumbria",{"$f":"VLOOKUP(B164,Lookup!$BJ$3:$BO$213,6,0)","v":"Not similar"},1,8.3800000000000008]
["NHS South Norfolk","06Y","E38000159","Midlands and East","East of England",{"$f":"VLOOKUP(B165,Lookup!$BJ$3:$BO$213,6,0)","v":"Not similar"},9,10.8]
["NHS South Reading","10W","E38000160","South","Thames",{"$f":"VLOOKUP(B166,Lookup!$BJ$3:$BO$213,6,0)","v":"Not similar"},5,6.8419999999999996]
["NHS South Sefton","01T","E38000161","North","Cheshire and Merseyside",{"$f":"VLOOKUP(B167,Lookup!$BJ$3:$BO$213,6,0)","v":"Not similar"},2,10.74]
["NHS South Tees","00M","E38000162","North","Northern England",{"$f":"VLOOKUP(B168,Lookup!$BJ$3:$BO$213,6,0)","v":"Not similar"},2,10.269]
["NHS South Tyneside","00N","E38000163","North","Northern England",{"$f":"VLOOKUP(B169,Lookup!$BJ$3:$BO$213,6,0)","v":"Not similar"},3,10.273]
["NHS South Warwickshire","05R","E38000164","Midlands and East","West Midlands",{"$f":"VLOOKUP(B170,Lookup!$BJ$3:$BO$213,6,0)","v":"Not similar"},10,10.231]
["NHS South West Lincolnshire","04Q","E38000165","Midlands and East","East Midlands",{"$f":"VLOOKUP(B171,Lookup!$BJ$3:$BO$213,6,0)","v":"One of the 10 most similar CCGs"},8,10.593]
["NHS South Worcestershire","05T","E38000166","Midlands and East","West Midlands",{"$f":"VLOOKUP(B172,Lookup!$BJ$3:$BO$213,6,0)","v":"One of the 10 most similar CCGs"},8,10.412000000000001]
["NHS Southampton","10X","E38000167","South","Wessex",{"$f":"VLOOKUP(B173,Lookup!$BJ$3:$BO$213,6,0)","v":"Not similar"},4,8.32]
["NHS Southend","99G","E38000168","Midlands and East","East of England",{"$f":"VLOOKUP(B174,Lookup!$BJ$3:$BO$213,6,0)","v":"Not similar"},4,10.055999999999999]
["NHS Southern Derbyshire","04R","E38000169","Midlands and East","East Midlands",{"$f":"VLOOKUP(B175,Lookup!$BJ$3:$BO$213,6,0)","v":"Not similar"},6,9.4770000000000003]
["NHS Southport and Formby","01V","E38000170","North","Cheshire and Merseyside",{"$f":"VLOOKUP(B176,Lookup!$BJ$3:$BO$213,6,0)","v":"Not similar"},7,11.7]
["NHS Southwark","08Q","E38000171","London","London",{"$f":"VLOOKUP(B177,Lookup!$BJ$3:$BO$213,6,0)","v":"Not similar"},2,6.5220000000000002]
["NHS St Helens","01X","E38000172","North","Cheshire and Merseyside",{"$f":"VLOOKUP(B178,Lookup!$BJ$3:$BO$213,6,0)","v":"Not similar"},3,10.368]
["NHS Stafford and Surrounds","05V","E38000173","Midlands and East","West Midlands",{"$f":"VLOOKUP(B179,Lookup!$BJ$3:$BO$213,6,0)","v":"Not similar"},9,10.465999999999999]
["NHS Stockport","01W","E38000174","North","Greater Manchester Lancashire and South Cumbria",{"$f":"VLOOKUP(B180,Lookup!$BJ$3:$BO$213,6,0)","v":"Not similar"},6,9.8040000000000003]
["NHS Stoke On Trent","05W","E38000175","Midlands and East","West Midlands",{"$f":"VLOOKUP(B181,Lookup!$BJ$3:$BO$213,6,0)","v":"Not similar"},2,10.09]
["NHS Sunderland","00P","E38000176","North","Northern England",{"$f":"VLOOKUP(B182,Lookup!$BJ$3:$BO$213,6,0)","v":"Not similar"},3,10.269]
["NHS Surrey Downs","99H","E38000177","South","South East coast",{"$f":"VLOOKUP(B183,Lookup!$BJ$3:$BO$213,6,0)","v":"Not similar"},10,9.6259999999999994]
["NHS Surrey Heath","10C","E38000178","South","South East coast",{"$f":"VLOOKUP(B184,Lookup!$BJ$3:$BO$213,6,0)","v":"Not similar"},10,9.1750000000000007]
["NHS Sutton","08T","E38000179","London","London",{"$f":"VLOOKUP(B185,Lookup!$BJ$3:$BO$213,6,0)","v":"Not similar"},8,8.5869999999999997]
["NHS Swale","10D","E38000180","South","South East coast",{"$f":"VLOOKUP(B186,Lookup!$BJ$3:$BO$213,6,0)","v":"Not similar"},4,9.7240000000000002]
["NHS Swindon","12D","E38000181","South","South West",{"$f":"VLOOKUP(B187,Lookup!$BJ$3:$BO$213,6,0)","v":"Not similar"},8,8.5860000000000003]
["NHS Tameside and Glossop","01Y","E38000182","North","East Midlands",{"$f":"VLOOKUP(B188,Lookup!$BJ$3:$BO$213,6,0)","v":"Not similar"},3,9.6470000000000002]
["NHS Telford and Wrekin","05X","E38000183","Midlands and East","West Midlands",{"$f":"VLOOKUP(B189,Lookup!$BJ$3:$BO$213,6,0)","v":"Not similar"},4,9.0579999999999998]
["NHS Thanet","10E","E38000184","South","South East coast",{"$f":"VLOOKUP(B190,Lookup!$BJ$3:$BO$213,6,0)","v":"Not similar"},3,11.419]
["NHS Thurrock","07G","E38000185","Midlands and East","East of England",{"$f":"VLOOKUP(B191,Lookup!$BJ$3:$BO$213,6,0)","v":"Not similar"},6,8.2690000000000001]
["NHS Tower Hamlets","08V","E38000186","London","London",{"$f":"VLOOKUP(B192,Lookup!$BJ$3:$BO$213,6,0)","v":"Not similar"},1,6.4009999999999998]
["NHS Trafford","02A","E38000187","North","Greater Manchester Lancashire and South Cumbria",{"$f":"VLOOKUP(B193,Lookup!$BJ$3:$BO$213,6,0)","v":"Not similar"},7,9.3949999999999996]
["NHS Vale Of York","03Q","E38000188","North","Yorkshire and Northern",{"$f":"VLOOKUP(B194,Lookup!$BJ$3:$BO$213,6,0)","v":"Not similar"},9,9.7309999999999999]
["NHS Vale Royal","02D","E38000189","North","Cheshire and Merseyside",{"$f":"VLOOKUP(B195,Lookup!$BJ$3:$BO$213,6,0)","v":"Not similar"},7,9.548]
["NHS Wakefield","03R","E38000190","North","Yorkshire and Northern",{"$f":"VLOOKUP(B196,Lookup!$BJ$3:$BO$213,6,0)","v":"Not similar"},4,9.7260000000000009]
["NHS Walsall","05Y","E38000191","Midlands and East","West Midlands",{"$f":"VLOOKUP(B197,Lookup!$BJ$3:$BO$213,6,0)","v":"Not similar"},2,10.198]
["NHS Waltham Forest","08W","E38000192","London","London",{"$f":"VLOOKUP(B198,Lookup!$BJ$3:$BO$213,6,0)","v":"Not similar"},1,7.617]
["NHS Wandsworth","08X","E38000193","London","London",{"$f":"VLOOKUP(B199,Lookup!$BJ$3:$BO$213,6,0)","v":"Not similar"},5,6.53]
["NHS Warrington","02E","E38000194","North","Cheshire and Merseyside",{"$f":"VLOOKUP(B200,Lookup!$BJ$3:$BO$213,6,0)","v":"Not similar"},6,9.1760000000000002]
["NHS Warwickshire North","05H","E38000195","Midlands and East","West Midlands",{"$f":"VLOOKUP(B201,Lookup!$BJ$3:$BO$213,6,0)","v":"Not similar"},5,9.7859999999999996]
["NHS West Cheshire","02F","E38000196","North","Cheshire and Merseyside",{"$f":"VLOOKUP(B202,Lookup!$BJ$3:$BO$213,6,0)","v":"Not similar"},7,10.145]
["NHS West Essex","07H","E38000197","Midlands and East","East of England",{"$f":"VLOOKUP(B203,Lookup!$BJ$3:$BO$213,6,0)","v":"One of the 10 most similar CCGs"},8,9.3450000000000006]
["NHS West Hampshire","11A","E38000198","South","Wessex",{"$f":"VLOOKUP(B204,Lookup!$BJ$3:$BO$213,6,0)","v":"Not similar"},10,10.542]
["NHS West Kent","99J","E38000199","South","South East coast",{"$f":"VLOOKUP(B205,Lookup!$BJ$3:$BO$213,6,0)","v":"Not similar"},9,9.6300000000000008]
["NHS West Lancashire","02G","E38000200","North","Greater Manchester Lancashire and South Cumbria",{"$f":"VLOOKUP(B206,Lookup!$BJ$3:$BO$213,6,0)","v":"Not similar"},6,10.189]
["NHS West Leicestershire","04V","E38000201","Midlands and East","East Midlands",{"$f":"VLOOKUP(B207,Lookup!$BJ$3:$BO$213,6,0)","v":"Not similar"},9,9.4209999999999994]
["NHS West London (K&C & Qpp)","08Y","E38000202","London","London",{"$f":"VLOOKUP(B208,Lookup!$BJ$3:$BO$213,6,0)","v":"Not similar"},3,7.9720000000000004]
["NHS West Norfolk","07J","E38000203","Midlands and East","East of England",{"$f":"VLOOKUP(B209,Lookup!$BJ$3:$BO$213,6,0)","v":"Not similar"},6,12.06]
["NHS West Suffolk","07K","E38000204","Midlands and East","East of England",{"$f":"VLOOKUP(B210,Lookup!$BJ$3:$BO$213,6,0)","v":"Not similar"},9,10.54]
["NHS Wigan Borough","02H","E38000205","North","Greater Manchester Lancashire and South Cumbria",{"$f":"VLOOKUP(B211,Lookup!$BJ$3:$BO$213,6,0)","v":"Not similar"},3,9.8010000000000002]
["NHS Wiltshire","99N","E38000206","South","South West",{"$f":"VLOOKUP(B212,Lookup!$BJ$3:$BO$213,6,0)","v":"Not similar"},9,10.273999999999999]
["NHS Windsor, Ascot and Maidenhead","11C","E38000207","South","Thames",{"$f":"VLOOKUP(B213,Lookup!$BJ$3:$BO$213,6,0)","v":"Not similar"},10,8.9779999999999998]
["NHS Wirral","12F","E38000208","North","Cheshire and Merseyside",{"$f":"VLOOKUP(B214,Lookup!$BJ$3:$BO$213,6,0)","v":"Not similar"},3,10.885]
["NHS Wokingham","11D","E38000209","South","Thames",{"$f":"VLOOKUP(B215,Lookup!$BJ$3:$BO$213,6,0)","v":"Not similar"},10,8.6489999999999991]
["NHS Wolverhampton","06A","E38000210","Midlands and East","West Midlands",{"$f":"VLOOKUP(B216,Lookup!$BJ$3:$BO$213,6,0)","v":"Not similar"},1,10.041]
["NHS Wyre Forest","06D","E38000211","Midlands and East","West Midlands",{"$f":"VLOOKUP(B217,Lookup!$BJ$3:$BO$213,6,0)","v":"Not similar"},5,10.959]

{"sheet":"GraphData","index":9,"n_rows":228,"n_cols":50,"rows_kept":228,"cut":false,"hidden":true,"merged":[[5,5,7,10],[12,22,12,26],[12,27,12,31],[12,19,12,20],[12,12,12,16],[12,7,12,11],[0,11,0,13],[2,22,2,27],[1,22,1,27],[3,22,3,28],[0,15,0,28],[3,11,3,13]]}
[null,{"$f":"VLOOKUP(DataCost!A2,Lookup!BT3:BU4,2)","v":"2012 - 2013"},null,null,null,"QA","Change indicator to:",null,null,null,null,"formula for reversing polarity for graph (positive outcomes)",null,null,null,"Formula for changing  C47 Graph  tab outcome population",null,null,null,null,null,null,null,null,null,null,null,null,null,null,"formula cells c25 and c26 in summary outcomes",null,null,null,null,"Numerator",null,"Denominator",null,null,null,null,null,null,"formulas in cells c25 and c26 summary costs"]
[null,null,"Name","RefNum",null,"Cost",null,null,null,null,null,"First selection",{"$f":"Lookup!S1","v":1},{"$f":"IF(M2=2,8,1)","v":1},null,null,"first selection",{"$f":"M2","v":1},{"$f":"IF(R2=1,T2,IF(R2=2,T3,IF(R2=3,T4,T5)))","v":2},{"$f":"IF(AND(R2=1,R3=1),2,IF(AND(R2=1,R3=12),4,IF(AND(R2=1,R3=15),3,1)))","v":2},null,1,{"$f":"Summary_Cost!C28","v":"Net ingredient cost (all items in section 2 cardiovascular disease BNF) HSCIC GP Practice Prescribing Presentation-level Data 2012 - 2013"},null,null,null,null,null,null,null,{"$f":"Q2","v":"first selection"},null,{"$f":"R2","v":1},{"$f":"IF(AND(AG2=1,AG3=1),1,IF(AND(AG2=1,AG3<=7),2,3))","v":1},1,"Observed deaths (under 75 mortality cardiovascular disease CCG indicator 1.2) HSCIC Sept 2013 ",null,"Under 75 population  (under 75 mortality cardiovascular disease CCG indicator 1.2) HSCIC Sept 2013",null,null,null,null,null,null,{"$f":"AE2","v":"first selection"},{"$f":"M2","v":1},{"$f":"IF(AND(AT2=1,AT3=1),3,IF(AND(AT2=1,AT3=12),2,IF(AND(AT2=1,AT3=14),1,4)))","v":3},1,"Net ingredient cost (all items in section 2 cardiovascular disease BNF) HSCIC GP Practice Prescribing Presentation-level Data 2012/13",{"$f":"W2","v":"Net ingredient cost (all items in section 2 cardiovascular disease BNF) HSCIC GP Practice Prescribing Presentation-level Data 2012 - 2013"}]
[null,"Chosen CCG:",{"$f":"INDEX(GraphData_CCGname,D3)","v":"NHS Airedale, Wharfedale and Craven"},{"$f":"Menu!L14","v":1},{"$f":"VLOOKUP(GraphData_ChosenCCGRefnum,$A$18:$B$228,2,0)","v":"02N"},null,null,null,null,null,null,"Second selection",{"$f":"Menu_ChosenOutcome","v":1},{"$f":"IF(AND(M2=1,M3<=7),-1,1)","v":-1},null,null,"second selection",{"$f":"Menu_ChosenCost","v":1},{"$f":"IF(R3=13,2,1)","v":1},{"$f":"IF(AND(R2=2,R3=9),4,1)","v":1},null,2,"The denominator is the number of items prescribed that year",null,null,null,null,null,null,null,{"$f":"Q3","v":"second selection"},null,{"$f":"Summary_Outcomes!F12","v":1},{"$f":"IF(AND(AG2=1,AG3<=7),-1,1)","v":-1},2,"HES admissions data (emergency and elective) extract 2012/13",null,{"$f":"\"GP registered Population all ages (QOF \"&B1&\").\"","v":"GP registered Population all ages (QOF 2012 - 2013)."},null,null,null,null,null,null,{"$f":"AE3","v":"second selection"},{"$f":"Summary_Cost!F12","v":1},{"$f":"IF(AND(AT2=2,AT3=9),2,4)","v":4},2,"Net ingredient cost (all items in section 2 cardiovascular disease BNF) HSCIC GP Practice Prescribing Presentation-level Data 2012/14","All people on the GP register (all ages) QOF 2012/13"]
[null,"Highlight CCG:",{"$f":"INDEX(GraphData_CCGname,$D$4)","v":"NHS Enfield"},{"$f":"Graph_current!$E$3","v":57},null,"Outcome",null,null,null,null,null,"Formula for changing outcomes tab text",null,null,null,null,null,null,null,{"$f":"IF(AND(R2=3,R3=12),3,1)","v":1},null,3,null,null,null,null,null,null,null,null,"Lookup result",null,null,null,3,{"$f":"\"Sum of numerators for CCG (QOF\"&B1&\" )\"","v":"Sum of numerators for CCG (QOF2012 - 2013 )"},null,{"$f":"\"Sum of denominator plus sum of exceptions (QOF \"&B1&\").\"","v":"Sum of denominator plus sum of exceptions (QOF 2012 - 2013)."},null,null,null,null,null,null,"Lookup result",null,{"$f":"IF(AND(AT2=3,AT3=12),1,4)","v":4},3,"17B: Renal problems (Programme Budget Sub Category)  NHS comparators 2012/13","All people over 18 years on the chronic kidney disease (QOF 2012/13)"]
[null,"Cost data:",{"$f":"INDEX(Lookup_CostName,MATCH(D5,Lookup_CostNo,0))","v":"Spend on anti-arrhythmic drugs"},{"$f":"Menu!L17","v":1},null,null,null,null,null,null,null,"First selection",{"$f":"Lookup!S1","v":1},{"$f":"IF(AND(M2=1,M3<=7),2,1)","v":2},null,null,null,null,null,{"$f":"IF(AND(R2=4,R3=1),2,1)","v":1},null,4,null,null,null,null,null,null,null,null,null,null,null,null,null,null,null,null,null,null,null,null,null,null,null,null,{"$f":"IF(AND(AT2=4,AT3=1),3,4)","v":4},4,"Net ingredient cost for the selected items HSCIC GP Practice Prescribing Presentation-level Data 2012/13",{"$f":"AX2","v":"Net ingredient cost (all items in section 2 cardiovascular disease BNF) HSCIC GP Practice Prescribing Presentation-level Data 2012 - 2013"}]
[null,"Outcomes data:",{"$f":"INDEX(Lookup_OutcomeNameLower,MATCH(D6,Lookup_OutcomeNo,0))","v":"Under 75 mortality from cardiovascular disease "},{"$f":"Menu!L19","v":1},null,"To help with QA you can change the outcome and cost indicators from here to update the spreadsheet",null,null,null,null,null,"Second selection",{"$f":"Summary_Outcomes!F12","v":1},null,null,{"$f":"VLOOKUP(S3,V2:AC3,2,0)","v":"Net ingredient cost (all items in section 2 cardiovascular disease BNF) HSCIC GP Practice Prescribing Presentation-level Data 2012 - 2013"},null,null,null,null,null,null,null,null,null,null,null,null,null,null,"text",null,{"$f":"VLOOKUP(AH2,AI2:AO4,2,0)","v":"Observed deaths (under 75 mortality cardiovascular disease CCG indicator 1.2) HSCIC Sept 2013 "},null,null,{"$f":"VLOOKUP(AH2,AI2:AO4,4,0)","v":"Under 75 population  (under 75 mortality cardiovascular disease CCG indicator 1.2) HSCIC Sept 2013"},null,null,null,null,null,null,null,null,"text for cells c25 - 26 summary costs",null,{"$f":"IF(AT2=1,AU2,IF(AT2=2,AU3,IF(AT2=3,AU4,AU5)))","v":3},null,{"$f":"VLOOKUP($AU$6,$AV$2:$AX$5,2,0)","v":"17B: Renal problems (Programme Budget Sub Category)  NHS comparators 2012/13"},{"$f":"VLOOKUP($AU$6,$AV$2:$AX$5,3,0)","v":"All people over 18 years on the chronic kidney disease (QOF 2012/13)"}]
[null,"Comparison group:",{"$f":"INDEX(Lookup_ChartComparison,MATCH(D7,Lookup_OutcomeNo,0))","v":"Commissioning for value most similar 10 CCGs"},{"$f":"Graph_current!E2","v":2},null,null,null,null,null,null,null,null,"Link cell for graph data",{"$f":"IF(AND(M2=1,M3<=7),$N$16*100000,$N$16*100)","v":58.650197502773523},{"$f":"IF(AND(M2=1,M3<=7),\"Per 100,000\",\"%\")","v":"Per 100,000"},{"$f":"IF(R3=13,\"item\",\"person\")","v":"person"}]
[null,"Number of CCGs",{"$f":"COUNTA($B$18:$B$250)","v":211}]
[]
[null,null,null,null,null,null,null,"Current year"]
[null,null,null,null,null,null,null,{"$f":"\"DataCost_\"&INDEX(Lookup_CostNamedRng,MATCH($D5,Lookup_CostNo,0))&\"_Num\"","v":"DataCost_Ind9_Num"},null,null,{"$f":"SUMIF((INDIRECT(H11)),\"<>#N/A\")","v":7967023.7199999858},null,{"$f":"\"DataOutcome_\"&INDEX(Lookup_OutcomeNamedRng,MATCH($D6,Lookup_OutcomeNo,0))&\"_Num\"","v":"DataOutcome_Ind1_Num"}]
[null,null,null,null,null,null,null,{"$f":"\"DataCost_\"&INDEX(Lookup_CostNamedRng,MATCH($D5,Lookup_CostNo,0))&\"_Den\"","v":"DataCost_Ind9_Den"},null,null,{"$f":"SUM(INDIRECT(H12))","v":6064249.9462040737},null,{"$f":"\"DataOutcome_\"&INDEX(Lookup_OutcomeNamedRng,MATCH($D6,Lookup_OutcomeNo,0))&\"_Den\"","v":"DataOutcome_Ind1_Den"}]
[null,null,null,null,null,null,null,{"$f":"C5","v":"Spend on anti-arrhythmic drugs"},null,null,null,null,{"$f":"C6","v":"Under 75 mortality from cardiovascular disease "},null,null,null,null,"All CCGs zscores",null,{"$f":"\"Comparison zscores \"&C7","v":"Comparison zscores Commissioning for value most similar 10 CCGs"}]
[null,"CCG","CCG name \n(Sorted alphabetically as these are used in the drop down box in the menu)","SCN","Cluster","Deciles","2012/13 Modelled Cardio Vascular disease prevalence (%)","MATCH value \n(to speed up calculations)","Cost Value (Num/Denom)","LN(value)","z-score pt1 (LN(CCGvalue)-LN(Engvalue))2","z score final  (LN(CCGvalue)-LN(Engvalue))/Sum of all CCGs for z-score pt1","MATCH value \n(to speed up calculations)","Outcome value (Num/Denom)","LN((value/(1-value)))","z-score pt1","z score final","Cost data","Outcome data","Cost data","Outcome data"]
[null,null,"England",null,null,null,null,null,{"$f":"K11/K12","v":1.3137690218370626},{"$f":"LN(I15)","v":0.27290012214288106},{"$f":"SQRT(SUM($K$18:$K$229)/GraphData_CountCCG)","v":0.53730834895861779},{"$f":"(J15-J$15)/K$15","v":0},null,{"$f":"SUM(INDIRECT(M11))/SUM(INDIRECT(M12))","v":6.3946363446305821E-4},{"$f":"LN((N15/(1-N15)))","v":-7.3542411359614528},{"$f":"SQRT(SUM($P$18:$P$229)/GraphData_CountCCG)","v":0.24885845105325574},{"$f":"(O15-O$15)/P$15","v":0}]
["Chosen CCG >",{"$f":"INDEX(GraphData_CCGcode,D3)","v":"02N"},{"$f":"INDEX(GraphData_CCGname,MATCH(B16,GraphData_CCGcode,0))","v":"NHS Airedale, Wharfedale and Craven"},{"$f":"INDEX(GraphData_SCN,MATCH($B16,GraphData_CCGcode,0))","v":"Yorkshire and Northern"},{"$f":"INDEX(GraphData_Cluster,MATCH($B16,GraphData_CCGcode,0))","v":"Closest 10 CCGs"},{"$f":"INDEX(GraphData_Decile,MATCH($B16,GraphData_CCGcode,0))","v":6},{"$f":"VLOOKUP(B16,B18:G228,6,0)","v":10.304},{"$f":"INDEX(INDIRECT($H$11),MATCH($B16,DataCost_CCGcode,0))","v":30248.84},{"$f":"INDEX(INDIRECT($H$11),MATCH($B16,DataCost_CCGcode,0))/INDEX(INDIRECT($H$12),MATCH($B16,DataCost_CCGcode,0))","v":1.9946630105145944},{"$f":"IFERROR(I16,0)","v":1.9946630105145944},{"$f":"ISNA(L16)","v":false},{"$f":"INDEX(GraphData_CurCostzscore,MATCH($B16,GraphData_CCGcode,0))","v":0.77716081967623807},{"$f":"INDEX(INDIRECT($M$11),MATCH($B16,DataOutcome_CCGcode,0))","v":83},{"$f":"INDEX(INDIRECT($M$11),MATCH($B16,DataOutcome_CCGcode,0))/INDEX(INDIRECT($M$12),MATCH($B16,DataOutcome_CCGcode,0))","v":5.8650197502773521E-4},null,null,{"$f":"INDEX(GraphData_CurOutcomezscore,MATCH($B16,GraphData_CCGcode,0))","v":0.34761412374394163},{"$f":"IF(L16<-3,-2.99,IF(L16>3,2.99,L16))","v":0.77716081967623807},{"$f":"IF(Q16<-3,-2.99,IF(Q16>3,2.99,Q16))","v":0.34761412374394163}]
["Highlight CCG >",{"$f":"INDEX(GraphData_CCGcode,$D$4)","v":"07X"},{"$f":"INDEX(GraphData_CCGname,MATCH(B17,GraphData_CCGcode,0))","v":"NHS Enfield"},{"$f":"INDEX(GraphData_SCN,MATCH($B17,GraphData_CCGcode,0))","v":"London"},{"$f":"INDEX(GraphData_Cluster,MATCH($B17,GraphData_CCGcode,0))","v":"No"},{"$f":"INDEX(GraphData_Decile,MATCH($B17,GraphData_CCGcode,0))","v":3},null,null,{"$f":"INDEX(INDIRECT($H$11),MATCH($B17,DataCost_CCGcode,0))/INDEX(INDIRECT($H$12),MATCH($B17,DataCost_CCGcode,0))","v":0.80257994551063205},null,null,{"$f":"INDEX(GraphData_CurCostzscore,MATCH($B17,GraphData_CCGcode,0))","v":-0.91720877120896338},null,{"$f":"INDEX(INDIRECT($M$11),MATCH($B17,DataOutcome_CCGcode,0))/INDEX(INDIRECT($M$12),MATCH($B17,DataOutcome_CCGcode,0))","v":4.8009327526490859E-4},null,null,{"$f":"INDEX(GraphData_CurOutcomezscore,MATCH($B17,GraphData_CCGcode,0))","v":1.1524977501863787},{"$f":"IF(L17<-3,-2.99,IF(L17>3,2.99,L17))","v":-0.91720877120896338},{"$f":"IF(Q17<-3,-2.99,IF(Q17>3,2.99,Q17))","v":1.1524977501863787}]
[1,{"$f":"Lookup!A3","v":"02N"},{"$f":"Lookup!C3","v":"NHS Airedale, Wharfedale and Craven"},{"$f":"Lookup!D3","v":"Yorkshire and Northern"},{"$f":"Lookup!E3","v":"Closest 10 CCGs"},{"$f":"Lookup!F3","v":6},10.304,{"$f":"MATCH($B18,DataCost_CCGcode,0)","v":43},{"$f":"INDEX(INDIRECT($H$11),$H18)/INDEX(INDIRECT($H$12),$H18)","v":1.9946630105145944},{"$f":"LN(I18)","v":0.69047511903844661},{"$f":"IFERROR((J18-J$15)*(J18-J$15),0)","v":0.17436887803233156},{"$f":"(J18-J$15)/K$15","v":0.77716081967623807},{"$f":"MATCH($B18,DataOutcome_CCGcode,0)","v":43},{"$f":"INDEX(INDIRECT($M$11),$M18)/INDEX(INDIRECT($M$12),$M18)","v":5.8650197502773521E-4},{"$f":"IF(N18=1,5,LN((N18/(1-N18))))","v":-7.4407478483606049},{"$f":"(O18-O$15)*(O18-O$15)","v":7.4834112901096131E-3},{"$f":"(O18-O$15)/P$15","v":-0.34761412374394163},{"$f":"IF(L18<-3,-2.99,IF(L18>3,2.99,L18))","v":0.77716081967623807},{"$f":"IF(Q18<-3,-2.99,IF(Q18>3,2.99,Q18))*$N$3","v":0.34761412374394163},{"$f":"CHOOSE($D$7,IF(D18=$D$16,R18,NA()),IF(E18=$E$16,R18,NA()),IF(F18=$F$16,R18,NA()))","v":0.77716081967623807},{"$f":"CHOOSE($D$7,IF(D18=$D$16,S18,NA()),IF(E18=$E$16,S18,NA()),IF(F18=$F$16,S18,NA()))","v":0.34761412374394163}]
[2,{"$f":"Lookup!A4","v":"09C"},{"$f":"Lookup!C4","v":"NHS Ashford"},{"$f":"Lookup!D4","v":"South East coast"},{"$f":"Lookup!E4","v":"Closest 10 CCGs"},{"$f":"Lookup!F4","v":8},9.3010000000000002,154,{"$f":"INDEX(INDIRECT($H$11),$H19)/INDEX(INDIRECT($H$12),$H19)","v":1.1778075660201934},0.16365471536590509,{"$f":"IFERROR((J19-J$15)*(J19-J$15),0)","v":1.1934558901866947E-2},{"$f":"(J19-J$15)/K$15","v":-0.20331976413303376},154,4.7200734233643636E-4,{"$f":"IF(N19=1,5,LN((N19/(1-N19))))","v":-7.6580438979293071},9.2296118179296727E-2,{"$f":"(O19-O$15)/P$15","v":-1.2207853929896897},-0.20331976413303376,{"$f":"IF(Q19<-3,-2.99,IF(Q19>3,2.99,Q19))*$N$3","v":1.2207853929896897},-0.20331976413303376,{"$f":"CHOOSE($D$7,IF(D19=$D$16,S19,NA()),IF(E19=$E$16,S19,NA()),IF(F19=$F$16,S19,NA()))","v":1.2207853929896897}]
[3,{"$f":"Lookup!A5","v":"10Y"},{"$f":"Lookup!C5","v":"NHS Aylesbury Vale"},{"$f":"Lookup!D5","v":"Thames"},{"$f":"Lookup!E5","v":"No"},{"$f":"Lookup!F5","v":10},8.7829999999999995,184,1.0941973373978673,9.0021069266696271E-2,3.3444747980890387E-2,-0.34036145768185277,184,4.3479661180714356E-4,-7.7401973041161884,0.14896216373668658,-1.5509064149569145,-0.34036145768185277,1.5509064149569145,{"$error":"#N/A"},{"$error":"#N/A"}]
[4,{"$f":"Lookup!A6","v":"07L"},{"$f":"Lookup!C6","v":"NHS Barking and Dagenham"},{"$f":"Lookup!D6","v":"London"},{"$f":"Lookup!E6","v":"No"},{"$f":"Lookup!F6","v":2},7.3609999999999998,122,0.51229474012717702,-0.66885515526287387,0.88690300252159038,-1.7527277944424546,122,4.747198897424772E-4,-7.652310801074897,8.8845525260840802E-2,-1.1977478114643465,-1.7527277944424546,1.1977478114643465,{"$error":"#N/A"},{"$error":"#N/A"}]
[5,{"$f":"Lookup!A7","v":"07M"},{"$f":"Lookup!C7","v":"NHS Barnet"},{"$f":"Lookup!D7","v":"London"},{"$f":"Lookup!E7","v":"No"},{"$f":"Lookup!F7","v":7},7.9509999999999996,123,1.1454263611602526,0.13577693552005815,1.8802768309597522E-2,-0.25520390086732825,123,4.2581901033025859E-4,-7.7610702506554805,0.16550992856272637,-1.6347811897574105,-0.25520390086732825,1.6347811897574105,{"$error":"#N/A"},{"$error":"#N/A"}]
[6,{"$f":"Lookup!A8","v":"02P"},{"$f":"Lookup!C8","v":"NHS Barnsley"},{"$f":"Lookup!D8","v":"Yorkshire and Northern"},{"$f":"Lookup!E8","v":"No"},{"$f":"Lookup!F8","v":3},10.324999999999999,44,0.96458682341757995,-3.6055431592359813E-2,9.5453534183849303E-2,-0.5750060544081288,44,9.0238679147525125E-4,-7.0095645202463892,0.11880196942078962,1.3850307845936995,-0.5750060544081288,-1.3850307845936995,{"$error":"#N/A"},{"$error":"#N/A"}]
[7,{"$f":"Lookup!A9","v":"99E"},{"$f":"Lookup!C9","v":"NHS Basildon and Brentwood"},{"$f":"Lookup!D9","v":"East of England"},{"$f":"Lookup!E9","v":"No"},{"$f":"Lookup!F9","v":7},9.4220000000000006,202,1.3198216738846187,0.27749663193009927,2.1127902223992757E-5,8.5546963789543094E-3,202,5.9564888757435337E-4,-7.4252633529465175,5.0441553054736158E-3,-0.28539202379695738,8.5546963789543094E-3,0.28539202379695738,{"$error":"#N/A"},{"$error":"#N/A"}]
[8,{"$f":"Lookup!A10","v":"02Q"},{"$f":"Lookup!C10","v":"NHS Bassetlaw"},{"$f":"Lookup!D10","v":"Yorkshire and Northern"},{"$f":"Lookup!E10","v":"No"},{"$f":"Lookup!F10","v":4},10.33,45,1.4753580469936567,0.38890070405880522,1.3456135004833031E-2,0.21589201459599552,45,7.9910344491546071E-4,-7.1312207297006864,4.9738101608717271E-2,0.89617372975225973,0.21589201459599552,-0.89617372975225973,{"$error":"#N/A"},{"$error":"#N/A"}]
[9,{"$f":"Lookup!A11","v":"11E"},{"$f":"Lookup!C11","v":"NHS Bath and North East Somerset"},{"$f":"Lookup!D11","v":"South West"},{"$f":"Lookup!E11","v":"No"},{"$f":"Lookup!F11","v":9},9.7569999999999997,188,1.4587461586147064,0.37757727127477164,1.095730555038006E-2,0.1948176486272179,188,4.6460433962577225E-4,-7.6738596848064891,0.10215601676580684,-1.2843387375124258,0.1948176486272179,1.2843387375124258,{"$error":"#N/A"},{"$error":"#N/A"}]
[10,{"$f":"Lookup!A12","v":"06F"},{"$f":"Lookup!C12","v":"NHS Bedfordshire"},{"$f":"Lookup!D12","v":"East of England"},{"$f":"Lookup!E12","v":"No"},{"$f":"Lookup!F12","v":9},8.9369999999999994,106,1.192447684018584,0.17600807197405091,9.3880693859190994E-3,-0.18032857735529539,106,5.8956685033008469E-4,-7.4355327019557489,6.608318701804998E-3,-0.32665784766497519,-0.18032857735529539,0.32665784766497519,{"$error":"#N/A"},{"$error":"#N/A"}]
[11,{"$f":"Lookup!A13","v":"07N"},{"$f":"Lookup!C13","v":"NHS Bexley"},{"$f":"Lookup!D13","v":"London"},{"$f":"Lookup!E13","v":"No"},{"$f":"Lookup!F13","v":7},9.1170000000000009,124,1.5813951789829903,0.45830748207472355,3.4375889116895791E-2,0.34506696255732688,124,5.2474990130850475E-4,-7.5520638997061864,3.9133845855604692E-2,-0.79492081907397039,0.34506696255732688,0.79492081907397039,{"$error":"#N/A"},{"$error":"#N/A"}]
[12,{"$f":"Lookup!A14","v":"13P"},{"$f":"Lookup!C14","v":"NHS Birmingham Crosscity"},{"$f":"Lookup!D14","v":"West Midlands"},{"$f":"Lookup!E14","v":"No"},{"$f":"Lookup!F14","v":1},9.1059999999999999,198,1.179289624787621,0.16491224430320589,1.1661381760316608E-2,-0.2009793409109899,198,6.5945833959478331E-4,-7.3234320816062093,9.4919783026434874E-4,0.12380151939726718,-0.2009793409109899,-0.12380151939726718,{"$error":"#N/A"},{"$error":"#N/A"}]
[13,{"$f":"Lookup!A15","v":"04X"},{"$f":"Lookup!C15","v":"NHS Birmingham South and Central"},{"$f":"Lookup!D15","v":"West Midlands"},{"$f":"Lookup!E15","v":"No"},{"$f":"Lookup!F15","v":1},8.06,85,0.51645474688755688,-0.66076760919298227,0.8717354325378579,-1.7376758301735828,85,5.646916826518956E-4,-7.4786658190035977,1.5481501750138229E-2,-0.49998174671399059,-1.7376758301735828,0.49998174671399059,{"$error":"#N/A"},{"$error":"#N/A"}]
[14,{"$f":"Lookup!A16","v":"00Q"},{"$f":"Lookup!C16","v":"NHS Blackburn with Darwen"},{"$f":"Lookup!D16","v":"Greater Manchester Lancashire and South Cumbria"},{"$f":"Lookup!E16","v":"No"},{"$f":"Lookup!F16","v":1},8.7829999999999995,12,1.4032266063599401,0.33877430365894218,4.3394077904109676E-3,0.12260033115758376,12,7.6682296446215544E-4,-7.1724874816797843,3.3034390844740261E-2,0.73034953610144082,0.12260033115758376,-0.73034953610144082,{"$error":"#N/A"},{"$error":"#N/A"}]
[15,{"$f":"Lookup!A17","v":"00R"},{"$f":"Lookup!C17","v":"NHS Blackpool"},{"$f":"Lookup!D17","v":"Greater Manchester Lancashire and South Cumbria"},{"$f":"Lookup!E17","v":"No"},{"$f":"Lookup!F17","v":1},11.561999999999999,13,0.84435549779490915,-0.1691816671503524,0.19543630842470691,-0.82277111485435261,13,1.0587409911346386E-3,-6.8496155191446686,0.25464701314771993,2.0277616238509588,-0.82277111485435261,-2.0277616238509588,{"$error":"#N/A"},{"$error":"#N/A"}]
[16,{"$f":"Lookup!A18","v":"00T"},{"$f":"Lookup!C18","v":"NHS Bolton"},{"$f":"Lookup!D18","v":"Greater Manchester Lancashire and South Cumbria"},{"$f":"Lookup!E18","v":"No"},{"$f":"Lookup!F18","v":2},9.5079999999999991,14,2.6738222038106501,0.98350898574762335,0.50496495703362321,1.3225345650816822,14,7.5598578746719565E-4,-7.1867317099191999,2.8059407813005009E-2,0.67311126197762072,1.3225345650816822,-0.67311126197762072,{"$error":"#N/A"},{"$error":"#N/A"}]
[17,{"$f":"Lookup!A19","v":"10G"},{"$f":"Lookup!C19","v":"NHS Bracknell and Ascot"},{"$f":"Lookup!D19","v":"Thames"},{"$f":"Lookup!E19","v":"No"},{"$f":"Lookup!F19","v":10},8.1289999999999996,171,1.1551768414861361,0.14425344176549798,1.6549968372120562E-2,-0.23942803164462115,171,4.3628317894622029E-4,-7.7367826540704723,0.14633801307715327,-1.5371851608413152,-0.23942803164462115,1.5371851608413152,{"$error":"#N/A"},{"$error":"#N/A"}]
[18,{"$f":"Lookup!A20","v":"02W"},{"$f":"Lookup!C20","v":"NHS Bradford City"},{"$f":"Lookup!D20","v":"Yorkshire and Northern"},{"$f":"Lookup!E20","v":"No"},{"$f":"Lookup!F20","v":1},6.0670000000000002,49,0.15530311644983905,-1.8623764817407595,4.5594061750928541,-3.9740246136545601,49,5.7323750855578373E-4,-7.4636370251616224,1.1967460573895789E-2,-0.43959081452596077,-2.99,0.43959081452596077,{"$error":"#N/A"},{"$error":"#N/A"}]
[19,{"$f":"Lookup!A21","v":"02R"},{"$f":"Lookup!C21","v":"NHS Bradford Districts"},{"$f":"Lookup!D21","v":"Yorkshire and Northern"},{"$f":"Lookup!E21","v":"No"},{"$f":"Lookup!F21","v":2},9.2140000000000004,46,1.233998316895744,0.21025956154040529,3.9238398325924405E-3,-0.11658214640416877,46,8.1060045794081653E-4,-7.1169243496575261,5.631925706162362E-2,0.95362156800188758,-0.11658214640416877,-0.95362156800188758,{"$error":"#N/A"},{"$error":"#N/A"}]
[20,{"$f":"Lookup!A22","v":"07P"},{"$f":"Lookup!C22","v":"NHS Brent"},{"$f":"Lookup!D22","v":"London"},{"$f":"Lookup!E22","v":"No"},{"$f":"Lookup!F22","v":2},7.0949999999999998,125,0.60826637070500844,-0.49714238324582399,0.59296546010531381,-1.433148222768472,125,4.9704334519208462E-4,-7.6063361550921869,6.3551898670525173E-2,-1.0130056586938481,-1.433148222768472,1.0130056586938481,{"$error":"#N/A"},{"$error":"#N/A"}]
[21,{"$f":"Lookup!A23","v":"09D"},{"$f":"Lookup!C23","v":"NHS Brighton and Hove"},{"$f":"Lookup!D23","v":"South East coast"},{"$f":"Lookup!E23","v":"No"},{"$f":"Lookup!F23","v":4},8.6850000000000005,155,1.0268047267414939,2.645177337539999E-2,6.0736788610217987E-2,-0.45867210000576769,155,4.637348710923257E-4,-7.6757337251269169,0.10335748488831388,-1.291869284747194,-0.45867210000576769,1.291869284747194,{"$error":"#N/A"},{"$error":"#N/A"}]
[22,{"$f":"Lookup!A24","v":"11H"},{"$f":"Lookup!C24","v":"NHS Bristol"},{"$f":"Lookup!D24","v":"South West"},{"$f":"Lookup!E24","v":"No"},{"$f":"Lookup!F24","v":4},8.4700000000000006,189,1.0582525706850421,5.6619029600960519E-2,4.67775109911268E-2,-0.40252695302633013,189,6.20752887707338E-4,-7.3839565359871644,8.8300499868806113E-4,-0.11940683509017141,-0.40252695302633013,0.11940683509017141,{"$error":"#N/A"},{"$error":"#N/A"}]
[23,{"$f":"Lookup!A25","v":"07Q"},{"$f":"Lookup!C25","v":"NHS Bromley"},{"$f":"Lookup!D25","v":"London"},{"$f":"Lookup!E25","v":"No"},{"$f":"Lookup!F25","v":8},9.5220000000000002,126,1.5205329751009027,0.41906091491156783,2.1362977342770997E-2,0.27202404922977236,126,4.9903476171090126E-4,-7.6023356425707957,6.1550884209733314E-2,-0.9969302049390748,0.27202404922977236,0.9969302049390748,{"$error":"#N/A"},{"$error":"#N/A"}]
[24,{"$f":"Lookup!A26","v":"00V"},{"$f":"Lookup!C26","v":"NHS Bury"},{"$f":"Lookup!D26","v":"Greater Manchester Lancashire and South Cumbria"},{"$f":"Lookup!E26","v":"No"},{"$f":"Lookup!F26","v":5},9.3989999999999991,15,1.4665581983851492,0.38291829387476295,1.2103998111225854E-2,0.20475797918478877,15,7.1420330621192057E-4,-7.2436284350915487,1.2235169593734871E-2,0.44448038795448791,0.20475797918478877,-0.44448038795448791,{"$error":"#N/A"},{"$error":"#N/A"}]
[25,{"$f":"Lookup!A27","v":"02T"},{"$f":"Lookup!C27","v":"NHS Calderdale"},{"$f":"Lookup!D27","v":"Yorkshire and Northern"},{"$f":"Lookup!E27","v":"Closest 10 CCGs"},{"$f":"Lookup!F27","v":5},9.3079999999999998,47,0.99734394550708949,-2.6595880639368194E-3,7.593315388926547E-2,-0.5128520908727604,47,8.2897076998824368E-4,-7.0944963482571364,6.7467354739560406E-2,1.0437450952739837,-0.5128520908727604,-1.0437450952739837,-0.5128520908727604,-1.0437450952739837]
[26,{"$f":"Lookup!A28","v":"06H"},{"$f":"Lookup!C28","v":"NHS Cambridgeshire and Peterborough"},{"$f":"Lookup!D28","v":"East of England"},{"$f":"Lookup!E28","v":"No"},{"$f":"Lookup!F28","v":8},8.9160000000000004,107,0.9581456185957683,-4.2755509852947585E-2,9.9638478010685996E-2,-0.58747576248836531,107,5.3025913960544791E-4,-7.5416143284831261,3.5108713275764043E-2,-0.75293079953139863,-0.58747576248836531,0.75293079953139863,{"$error":"#N/A"},{"$error":"#N/A"}]
[27,{"$f":"Lookup!A29","v":"07R"},{"$f":"Lookup!C29","v":"NHS Camden"},{"$f":"Lookup!D29","v":"London"},{"$f":"Lookup!E29","v":"No"},{"$f":"Lookup!F29","v":4},6.83,127,0.52879848364807402,-0.63714785798267126,0.82818732613059765,-1.6937164328255061,127,3.6331869172613119E-4,-7.919866785514702,0.31993237543253511,-2.2728810179414212,-1.6937164328255061,2.2728810179414212,{"$error":"#N/A"},{"$error":"#N/A"}]
[28,{"$f":"Lookup!A30","v":"04Y"},{"$f":"Lookup!C30","v":"NHS Cannock Chase"},{"$f":"Lookup!D30","v":"West Midlands"},{"$f":"Lookup!E30","v":"No"},{"$f":"Lookup!F30","v":6},9.4849999999999994,86,1.3308897856075583,0.28584773028007915,1.6764055647443808E-4,2.4097165365646087E-2,86,8.2494772608468373E-4,-7.0993652477759532,6.4961718378347272E-2,1.0241801598731164,2.4097165365646087E-2,-1.0241801598731164,{"$error":"#N/A"},{"$error":"#N/A"}]
[29,{"$f":"Lookup!A31","v":"09E"},{"$f":"Lookup!C31","v":"NHS Canterbury and Coastal"},{"$f":"Lookup!D31","v":"South East coast"},{"$f":"Lookup!E31","v":"No"},{"$f":"Lookup!F31","v":7},9.9209999999999994,156,1.6205471772259756,0.48276385593470683,4.404278676104631E-2,0.39058342234691196,156,6.6118776182777094E-4,-7.3208112947782542,1.11755428153388E-3,0.13433275438994272,0.39058342234691196,-0.13433275438994272,{"$error":"#N/A"},{"$error":"#N/A"}]
[30,{"$f":"Lookup!A32","v":"99F"},{"$f":"Lookup!C32","v":"NHS Castle Point and Rochford"},{"$f":"Lookup!D32","v":"East of England"},{"$f":"Lookup!E32","v":"No"},{"$f":"Lookup!F32","v":9},10.691000000000001,203,2.1181496792186536,0.75054291475710988,0.2281426373363192,0.88895471946410376,203,6.3864018766196279E-4,-7.3555305045753601,1.6624714225291581E-6,-5.1811325211187876E-3,0.88895471946410376,5.1811325211187876E-3,{"$error":"#N/A"},{"$error":"#N/A"}]
[31,{"$f":"Lookup!A33","v":"09A"},{"$f":"Lookup!C33","v":"NHS Central London (Westminster)"},{"$f":"Lookup!D33","v":"London"},{"$f":"Lookup!E33","v":"No"},{"$f":"Lookup!F33","v":5},7.4569999999999999,153,0.83131132853908507,-0.18475091103995095,0.20944446817331361,-0.85174748181342552,153,3.1145905369237345E-4,-8.0739311696304128,0.51795374456242882,-2.891965414969758,-0.85174748181342552,2.891965414969758,{"$error":"#N/A"},{"$error":"#N/A"}]
[32,{"$f":"Lookup!A34","v":"00W"},{"$f":"Lookup!C34","v":"NHS Central Manchester"},{"$f":"Lookup!D34","v":"Greater Manchester Lancashire and South Cumbria"},{"$f":"Lookup!E34","v":"No"},{"$f":"Lookup!F34","v":1},7.0949999999999998,16,0.45104078694018107,-0.79619750689414903,1.1429697404125994,-1.9897283023967482,16,4.6263276596564951E-4,-7.6781142408452059,0.10489378806704253,-1.301435026670821,-1.9897283023967482,1.301435026670821,{"$error":"#N/A"},{"$error":"#N/A"}]
[33,{"$f":"Lookup!A35","v":"10H"},{"$f":"Lookup!C35","v":"NHS Chiltern"},{"$f":"Lookup!D35","v":"Thames"},{"$f":"Lookup!E35","v":"No"},{"$f":"Lookup!F35","v":10},9.1199999999999992,172,1.667257407113657,0.51118000523365437,5.6777302685752595E-2,0.44346953393260052,172,4.8422295482133498E-4,-7.6324807666285732,7.7417292073775582E-2,-1.1180638209774001,0.44346953393260052,1.1180638209774001,{"$error":"#N/A"},{"$error":"#N/A"}]
[34,{"$f":"Lookup!A36","v":"00X"},{"$f":"Lookup!C36","v":"NHS Chorley and South Ribble"},{"$f":"Lookup!D36","v":"Greater Manchester Lancashire and South Cumbria"},{"$f":"Lookup!E36","v":"No"},{"$f":"Lookup!F36","v":6},9.6929999999999996,17,1.8201959370131953,0.59894415299358761,0.10630471005337648,0.60680990995696904,17,6.7489752702685969E-4,-7.3002745650555001,2.9123907753472195E-3,0.21685649282773942,0.60680990995696904,-0.21685649282773942,{"$error":"#N/A"},{"$error":"#N/A"}]
[35,{"$f":"Lookup!A37","v":"07T"},{"$f":"Lookup!C37","v":"NHS City and Hackney"},{"$f":"Lookup!D37","v":"London"},{"$f":"Lookup!E37","v":"No"},{"$f":"Lookup!F37","v":1},6.8479999999999999,128,0.34374487052454855,-1.0678555522230959,1.7976257783445657,-2.4953188927076186,128,4.74645119985871E-4,-7.6524683911793252,8.8939495754786005E-2,-1.1983810634345375,-2.4953188927076186,1.1983810634345375,{"$error":"#N/A"},{"$error":"#N/A"}]
[36,{"$f":"Lookup!A38","v":"09G"},{"$f":"Lookup!C38","v":"NHS Coastal West Sussex"},{"$f":"Lookup!D38","v":"South East coast"},{"$f":"Lookup!E38","v":"No"},{"$f":"Lookup!F38","v":7},11.872999999999999,158,2.7974907202714459,1.0287228440479306,0.57126798694795777,1.4066833753280488,158,7.1749294079525997E-4,-7.2390296985297331,1.3273675315083061E-2,0.46295971442442363,1.4066833753280488,-0.46295971442442363,{"$error":"#N/A"},{"$error":"#N/A"}]
[37,{"$f":"Lookup!A39","v":"03V"},{"$f":"Lookup!C39","v":"NHS Corby"},{"$f":"Lookup!D39","v":"East Midlands"},{"$f":"Lookup!E39","v":"No"},{"$f":"Lookup!F39","v":3},8.6300000000000008,67,1.5969270162548583,0.46808116765936858,3.8095640528909173E-2,0.36325704950384069,67,9.0228277542181716E-4,-7.0096798987040625,0.1187224462203436,1.384567153733727,0.36325704950384069,-1.384567153733727,{"$error":"#N/A"},{"$error":"#N/A"}]
[38,{"$f":"Lookup!A40","v":"05A"},{"$f":"Lookup!C40","v":"NHS Coventry and Rugby"},{"$f":"Lookup!D40","v":"West Midlands"},{"$f":"Lookup!E40","v":"No"},{"$f":"Lookup!F40","v":4},8.9719999999999995,87,0.79851203242794022,-0.22500524265169852,0.24790975229122336,-0.92666597449973198,87,5.8217450167004174E-4,-7.4481579800939546,8.8203736118086344E-3,-0.37739061597069723,-0.92666597449973198,0.37739061597069723,{"$error":"#N/A"},{"$error":"#N/A"}]
[39,{"$f":"Lookup!A41","v":"09H"},{"$f":"Lookup!C41","v":"NHS Crawley"},{"$f":"Lookup!D41","v":"South East coast"},{"$f":"Lookup!E41","v":"No"},{"$f":"Lookup!F41","v":7},8.1859999999999999,159,1.0193132233378903,1.9129090067848752E-2,6.4399736720427078E-2,-0.472300556220423,159,4.4608288725044606E-4,-7.7145595949465733,0.12982939188541195,-1.4478851630721286,-0.472300556220423,1.4478851630721286,{"$error":"#N/A"},{"$error":"#N/A"}]
[40,{"$f":"Lookup!A42","v":"07V"},{"$f":"Lookup!C42","v":"NHS Croydon"},{"$f":"Lookup!D42","v":"London"},{"$f":"Lookup!E42","v":"No"},{"$f":"Lookup!F42","v":5},7.8209999999999997,129,0.78268227699932569,-0.24502844184239606,0.26824999739185129,-0.96393172558940954,129,5.2987914362744829E-4,-7.5423315887335178,3.5378018424000429E-2,-0.75581300123022011,-0.96393172558940954,0.75581300123022011,{"$error":"#N/A"},{"$error":"#N/A"}]
[41,{"$f":"Lookup!A43","v":"01H"},{"$f":"Lookup!C43","v":"NHS Cumbria"},{"$f":"Lookup!D43","v":"Northern England"},{"$f":"Lookup!E43","v":"No"},{"$f":"Lookup!F43","v":5},11.092000000000001,25,1.7312797457192148,0.54886087244877657,7.6154335709392812E-2,0.51359847811921744,25,8.1338010268923791E-4,-7.1134983156161793,5.7957105547796629E-2,0.96738856698000786,0.51359847811921744,-0.96738856698000786,{"$error":"#N/A"},{"$error":"#N/A"}]
[42,{"$f":"Lookup!A44","v":"00C"},{"$f":"Lookup!C44","v":"NHS Darlington"},{"$f":"Lookup!D44","v":"Northern England"},{"$f":"Lookup!E44","v":"No"},{"$f":"Lookup!F44","v":4},10.186,1,1.5065095341095038,0.40979540821705057,1.8740319349328707E-2,0.25477974861081648,1,7.0777215891023606E-4,-7.2526803027632747,1.0314602839908156E-2,0.40810682847352475,0.25477974861081648,-0.40810682847352475,{"$error":"#N/A"},{"$error":"#N/A"}]
[43,{"$f":"Lookup!A45","v":"09J"},{"$f":"Lookup!C45","v":"NHS Dartford, Gravesham and Swanley"},{"$f":"Lookup!D45","v":"South East coast"},{"$f":"Lookup!E45","v":"No"},{"$f":"Lookup!F45","v":7},9.2170000000000005,160,1.5754653643475136,0.45455069806209447,3.2996931731781913E-2,0.33807510393478679,160,7.3382313115341277E-4,-7.2165084316065702,1.8970297848909499E-2,0.55345801507624026,0.33807510393478679,-0.55345801507624026,{"$error":"#N/A"},{"$error":"#N/A"}]
[44,{"$f":"Lookup!A46","v":"02X"},{"$f":"Lookup!C46","v":"NHS Doncaster"},{"$f":"Lookup!D46","v":"Yorkshire and Northern"},{"$f":"Lookup!E46","v":"No"},{"$f":"Lookup!F46","v":2},10.462,50,1.7484834049112363,0.55874878643320858,8.1709458876564361E-2,0.53200115882126908,50,7.8736836185200288E-4,-7.1460266822910876,4.3353258717248648E-2,0.83667825138800389,0.53200115882126908,-0.83667825138800389,{"$error":"#N/A"},{"$error":"#N/A"}]
[45,{"$f":"Lookup!A47","v":"11J"},{"$f":"Lookup!C47","v":"NHS Dorset"},{"$f":"Lookup!D47","v":"Wessex"},{"$f":"Lookup!E47","v":"No"},{"$f":"Lookup!F47","v":7},11.443,190,2.308040878925925,0.83639906032865585,0.31753105333649562,1.048744057816928,190,6.5210303227910009E-4,-7.3346556678103667,3.835905626972073E-4,7.8701237865113891E-2,1.048744057816928,-7.8701237865113891E-2,{"$error":"#N/A"},{"$error":"#N/A"}]
[46,{"$f":"Lookup!A48","v":"05C"},{"$f":"Lookup!C48","v":"NHS Dudley"},{"$f":"Lookup!D48","v":"West Midlands"},{"$f":"Lookup!E48","v":"No"},{"$f":"Lookup!F48","v":4},10.404999999999999,88,1.5962374836431019,0.46764928723322946,3.7927237303387776E-2,0.36245326443894049,88,7.3947211457632089E-4,-7.2088342393491383,2.1143165582424329E-2,0.58429559453135649,0.36245326443894049,-0.58429559453135649,{"$error":"#N/A"},{"$error":"#N/A"}]
[47,{"$f":"Lookup!A49","v":"00D"},{"$f":"Lookup!C49","v":"NHS Durham Dales, Easington and Sedgefield"},{"$f":"Lookup!D49","v":"Northern England"},{"$f":"Lookup!E49","v":"No"},{"$f":"Lookup!F49","v":2},10.959,2,1.8847240019869902,0.63378139213576878,0.13023529103167952,0.67164649626667527,2,8.7989107555306082E-4,-7.0348321575268082,0.10202209550466323,1.2834966105542904,0.67164649626667527,-1.2834966105542904,{"$error":"#N/A"},{"$error":"#N/A"}]
[48,{"$f":"Lookup!A50","v":"07W"},{"$f":"Lookup!C50","v":"NHS Ealing"},{"$f":"Lookup!D50","v":"London"},{"$f":"Lookup!E50","v":"No"},{"$f":"Lookup!F50","v":4},7.0419999999999998,130,0.7117139379741847,-0.34007922081052772,0.37574367488759269,-1.1408334602308943,130,4.8077783716463828E-4,-7.6396243781052569,8.1443594896509097E-2,-1.1467693419128933,-1.1408334602308943,1.1467693419128933,{"$error":"#N/A"},{"$error":"#N/A"}]
[49,{"$f":"Lookup!A51","v":"06K"},{"$f":"Lookup!C51","v":"NHS East and North Hertfordshire"},{"$f":"Lookup!D51","v":"East of England"},{"$f":"Lookup!E51","v":"No"},{"$f":"Lookup!F51","v":9},8.7509999999999994,108,1.3010353567763895,0.26316037577630169,9.4862659285296076E-5,-1.8126921693021197E-2,108,6.0077080027204713E-4,-7.4166961087714496,3.9006236286974381E-3,-0.2509658504489824,-1.8126921693021197E-2,0.2509658504489824,{"$error":"#N/A"},{"$error":"#N/A"}]
[50,{"$f":"Lookup!A52","v":"01A"},{"$f":"Lookup!C52","v":"NHS East Lancashire"},{"$f":"Lookup!D52","v":"Greater Manchester Lancashire and South Cumbria"},{"$f":"Lookup!E52","v":"No"},{"$f":"Lookup!F52","v":3},9.9930000000000003,19,1.4623808097507143,0.38006579919641492,1.1484482338342313E-2,0.19944911941390195,19,8.6752487583914106E-4,-7.048998469842175,9.3173085219604879E-2,1.226571429772163,0.19944911941390195,-1.226571429772163,{"$error":"#N/A"},{"$error":"#N/A"}]
[51,{"$f":"Lookup!A53","v":"03W"},{"$f":"Lookup!C53","v":"NHS East Leicestershire and Rutland"},{"$f":"Lookup!D53","v":"East Midlands"},{"$f":"Lookup!E53","v":"No"},{"$f":"Lookup!F53","v":10},10.109,68,1.4999731545791941,0.40544721100080816,1.7568730764711223E-2,0.24668719388936119,68,5.6103588564505359E-4,-7.4851644938804949,1.71409256487976E-2,-0.52609568758838121,0.24668719388936119,0.52609568758838121,{"$error":"#N/A"},{"$error":"#N/A"}]
[52,{"$f":"Lookup!A54","v":"02Y"},{"$f":"Lookup!C54","v":"NHS East Riding Of Yorkshire"},{"$f":"Lookup!D54","v":"Yorkshire and Northern"},{"$f":"Lookup!E54","v":"No"},{"$f":"Lookup!F54","v":8},11.287000000000001,51,1.4895255241838976,0.39845762909950333,1.5764687553162248E-2,0.23367868226870306,51,7.6648214318775112E-4,-7.1729323804416678,3.2872864828133161E-2,0.72856177779948039,0.23367868226870306,-0.72856177779948039,{"$error":"#N/A"},{"$error":"#N/A"}]
[53,{"$f":"Lookup!A55","v":"05D"},{"$f":"Lookup!C55","v":"NHS East Staffordshire"},{"$f":"Lookup!D55","v":"West Midlands"},{"$f":"Lookup!E55","v":"Closest 10 CCGs"},{"$f":"Lookup!F55","v":6},9.641,89,1.4752229517706776,0.38880913211203949,1.3434898592030467E-2,0.21572158741587963,89,7.0670810546012318E-4,-7.2541858829421626,1.0011053656754179E-2,0.40205688252024985,0.21572158741587963,-0.40205688252024985,0.21572158741587963,-0.40205688252024985]
[54,{"$f":"Lookup!A56","v":"09L"},{"$f":"Lookup!C56","v":"NHS East Surrey"},{"$f":"Lookup!D56","v":"South East coast"},{"$f":"Lookup!E56","v":"No"},{"$f":"Lookup!F56","v":10},9.2799999999999994,161,1.1440850371590849,0.13460522337605046,1.9125479024927925E-2,-0.25738460799067492,161,4.7832134383122811E-4,-7.6447493481380171,8.4395021342023702E-2,-1.1673632578963353,-0.25738460799067492,1.1673632578963353,{"$error":"#N/A"},{"$error":"#N/A"}]
[55,{"$f":"Lookup!A57","v":"09F"},{"$f":"Lookup!C57","v":"NHS Eastbourne, Hailsham and Seaford"},{"$f":"Lookup!D57","v":"South East coast"},{"$f":"Lookup!E57","v":"No"},{"$f":"Lookup!F57","v":6},12.260999999999999,157,6.5883909115889185,1.885309147468951,2.5998628649529665,3.0009007461937909,157,7.5036749555622533E-4,-7.1941968282046904,2.5614180445341268E-2,0.64311381461790451,2.99,-0.64311381461790451,{"$error":"#N/A"},{"$error":"#N/A"}]
[56,{"$f":"Lookup!A58","v":"01C"},{"$f":"Lookup!C58","v":"NHS Eastern Cheshire"},{"$f":"Lookup!D58","v":"Cheshire and Merseyside"},{"$f":"Lookup!E58","v":"No"},{"$f":"Lookup!F58","v":9},10.449,20,2.01152838954448,0.69889482592704077,0.18147148765215398,0.79283097798461499,20,5.8439927032016338E-4,-7.4443415565869495,8.1180857968914354E-3,-0.36205489604295266,0.79283097798461499,0.36205489604295266,{"$error":"#N/A"},{"$error":"#N/A"}]
[57,{"$f":"Lookup!A59","v":"07X"},{"$f":"Lookup!C59","v":"NHS Enfield"},{"$f":"Lookup!D59","v":"London"},{"$f":"Lookup!E59","v":"No"},{"$f":"Lookup!F59","v":3},8.1790000000000003,131,0.80257994551063205,-0.21992380836576964,0.24287542648199537,-0.91720877120896338,131,4.8009327526490859E-4,-7.6410499409151971,8.2259290598994922E-2,-1.1524977501863787,-0.91720877120896338,1.1524977501863787,{"$error":"#N/A"},{"$error":"#N/A"}]
[58,{"$f":"Lookup!A60","v":"03X"},{"$f":"Lookup!C60","v":"NHS Erewash"},{"$f":"Lookup!D60","v":"East Midlands"},{"$f":"Lookup!E60","v":"No"},{"$f":"Lookup!F60","v":5},10,69,1.1654299869621902,0.15309010644281318,1.4354439862050513E-2,-0.22298186122042812,69,6.9860729255870552E-4,-7.2657229353950363,7.8354718315163316E-3,0.35569698433698582,-0.22298186122042812,-0.35569698433698582,{"$error":"#N/A"},{"$error":"#N/A"}]
[59,{"$f":"Lookup!A61","v":"10K"},{"$f":"Lookup!C61","v":"NHS Fareham and Gosport"},{"$f":"Lookup!D61","v":"Wessex"},{"$f":"Lookup!E61","v":"No"},{"$f":"Lookup!F61","v":9},10.130000000000001,174,2.9701079951631923,1.0885983141613353,0.66536354046217516,1.5181193324082842,174,6.7632584609463064E-4,-7.2981590225484032,3.1452034448741558E-3,0.22535748002806624,1.5181193324082842,-0.22535748002806624,{"$error":"#N/A"},{"$error":"#N/A"}]
[60,{"$f":"Lookup!A62","v":"02M"},{"$f":"Lookup!C62","v":"NHS Fylde & Wyre"},{"$f":"Lookup!D62","v":"Greater Manchester Lancashire and South Cumbria"},{"$f":"Lookup!E62","v":"No"},{"$f":"Lookup!F62","v":8},11.891999999999999,42,1.3105494925349428,0.27044650921466634,6.0202164015024185E-6,-4.5664894896388303E-3,42,9.938262309893088E-4,-6.9129538641046144,0.19473445630285116,1.7732460761897244,-4.5664894896388303E-3,-1.7732460761897244,{"$error":"#N/A"},{"$error":"#N/A"}]
[61,{"$f":"Lookup!A63","v":"00F"},{"$f":"Lookup!C63","v":"NHS Gateshead"},{"$f":"Lookup!D63","v":"Northern England"},{"$f":"Lookup!E63","v":"No"},{"$f":"Lookup!F63","v":2},10.685,3,1.620404432984194,0.48267576807716261,4.4005821627145059E-2,0.39041947950531097,3,8.3196893982624644E-4,-7.0908831345614676,6.935743690139462E-2,1.0582642473476884,0.39041947950531097,-1.0582642473476884,{"$error":"#N/A"},{"$error":"#N/A"}]
[62,{"$f":"Lookup!A64","v":"11M"},{"$f":"Lookup!C64","v":"NHS Gloucestershire"},{"$f":"Lookup!D64","v":"South West"},{"$f":"Lookup!E64","v":"No"},{"$f":"Lookup!F64","v":8},10.074999999999999,191,1.20494168009799,0.18643116751245531,7.4768801148786274E-3,-0.16092985489247513,191,6.4437438151566061E-4,-7.3465860809341015,5.859986747177656E-5,3.0760679394058941E-2,-0.16092985489247513,-3.0760679394058941E-2,{"$error":"#N/A"},{"$error":"#N/A"}]
[63,{"$f":"Lookup!A65","v":"06M"},{"$f":"Lookup!C65","v":"NHS Great Yarmouth and Waveney"},{"$f":"Lookup!D65","v":"East of England"},{"$f":"Lookup!E65","v":"Closest 10 CCGs"},{"$f":"Lookup!F65","v":4},11.552,110,2.0267409502297502,0.70642905971214831,0.18794733970993763,0.80685315686888126,110,8.4437860971855658E-4,-7.0760648389425356,7.7382052223156847E-2,1.1178093243029446,0.80685315686888126,-1.1178093243029446,0.80685315686888126,-1.1178093243029446]
[64,{"$f":"Lookup!A66","v":"03A"},{"$f":"Lookup!C66","v":"NHS Greater Huddersfield"},{"$f":"Lookup!D66","v":"Yorkshire and Northern"},{"$f":"Lookup!E66","v":"No"},{"$f":"Lookup!F66","v":5},9.3810000000000002,52,1.0293414810305423,2.8919258972039154E-2,5.9526661593589082E-2,-0.45407979169449447,52,6.0479535517167233E-4,-7.4100154347518039,3.1107724055553622E-3,-0.22412057358026155,-0.45407979169449447,0.22412057358026155,{"$error":"#N/A"},{"$error":"#N/A"}]
[65,{"$f":"Lookup!A67","v":"01E"},{"$f":"Lookup!C67","v":"NHS Greater Preston"},{"$f":"Lookup!D67","v":"Greater Manchester Lancashire and South Cumbria"},{"$f":"Lookup!E67","v":"No"},{"$f":"Lookup!F67","v":4},9.2189999999999994,{"$f":"MATCH($B82,DataCost_CCGcode,0)","v":22},{"$f":"INDEX(INDIRECT($H$11),$H82)/INDEX(INDIRECT($H$12),$H82)","v":1.3779072465382627},{"$f":"LN(I82)","v":0.32056586012157956},2.2720225770539401E-3,8.871207393497918E-2,{"$f":"MATCH($B82,DataOutcome_CCGcode,0)","v":22},{"$f":"INDEX(INDIRECT($M$11),$M82)/INDEX(INDIRECT($M$12),$M82)","v":7.0591123933460198E-4},-7.255314891184975,{"$f":"(O82-O$15)*(O82-O$15)","v":9.786401905575606E-3},{"$f":"(O82-O$15)/P$15","v":0.39752013386641066},{"$f":"IF(L82<-3,-2.99,IF(L82>3,2.99,L82))","v":8.871207393497918E-2},-0.39752013386641066,{"$f":"CHOOSE($D$7,IF(D82=$D$16,R82,NA()),IF(E82=$E$16,R82,NA()),IF(F82=$F$16,R82,NA()))","v":{"$error":"#N/A"}},{"$f":"CHOOSE($D$7,IF(D82=$D$16,S82,NA()),IF(E82=$E$16,S82,NA()),IF(F82=$F$16,S82,NA()))","v":{"$error":"#N/A"}}]
[66,{"$f":"Lookup!A68","v":"08A"},{"$f":"Lookup!C68","v":"NHS Greenwich"},{"$f":"Lookup!D68","v":"London"},{"$f":"Lookup!E68","v":"No"},{"$f":"Lookup!F68","v":2},7.3650000000000002,133,0.66597670910044604,-0.4065005803739104,{"$f":"IFERROR((J83-J$15)*(J83-J$15),0)","v":0.46158531458030971},{"$f":"(J83-J$15)/K$15","v":-1.2644521601675638},133,4.2752648720918485E-4,{"$f":"IF(N83=1,5,LN((N83/(1-N83))))","v":-7.7570666952200282},0.16226843119198409,-1.6186935085132821,-1.2644521601675638,{"$f":"IF(Q83<-3,-2.99,IF(Q83>3,2.99,Q83))*$N$3","v":1.6186935085132821},{"$error":"#N/A"},{"$error":"#N/A"}]
[67,{"$f":"Lookup!A69","v":"09N"},{"$f":"Lookup!C69","v":"NHS Guildford and Waverley"},{"$f":"Lookup!D69","v":"South East coast"},{"$f":"Lookup!E69","v":"No"},{"$f":"Lookup!F69","v":10},9.3249999999999993,162,2.4030143042626912,0.8767239094052337,0.3646031660638509,1.1237937925823254,162,4.200723739150239E-4,-7.7746633820577209,0.17675486501263102,-1.6894031298390493,1.1237937925823254,1.6894031298390493,{"$error":"#N/A"},{"$error":"#N/A"}]
[68,{"$f":"Lookup!A70","v":"01F"},{"$f":"Lookup!C70","v":"NHS Halton"},{"$f":"Lookup!D70","v":"Cheshire and Merseyside"},{"$f":"Lookup!E70","v":"No"},{"$f":"Lookup!F70","v":2},9.702,23,1.3213509987560255,0.27865469710180535,3.3115132957878442E-5,1.071000473020286E-2,23,7.8054289249267206E-4,-7.1547400166965005,3.9800696587968719E-2,0.80166503657237276,1.071000473020286E-2,-0.80166503657237276,{"$error":"#N/A"},{"$error":"#N/A"}]
[69,{"$f":"Lookup!A71","v":"03D"},{"$f":"Lookup!C71","v":"NHS Hambleton, Richmondshire and Whitby"},{"$f":"Lookup!D71","v":"Northern England"},{"$f":"Lookup!E71","v":"No"},{"$f":"Lookup!F71","v":9},11.374000000000001,54,1.6490730863224361,0.50021336419773621,5.1671310013489166E-2,0.42305920333347041,54,6.2669894166216228E-4,-7.3744173940826903,4.0708139177480086E-4,-8.1075237894652596E-2,0.42305920333347041,8.1075237894652596E-2,{"$error":"#N/A"},{"$error":"#N/A"}]
[70,{"$f":"Lookup!A72","v":"08C"},{"$f":"Lookup!C72","v":"NHS Hammersmith and Fulham"},{"$f":"Lookup!D72","v":"London"},{"$f":"Lookup!E72","v":"No"},{"$f":"Lookup!F72","v":3},6.8819999999999997,134,0.54862359869138488,-0.60034268519639511,0.76255300056978015,-1.625217268690778,134,3.9301154024795458E-4,-7.8412784932380051,0.23720538738292804,-1.9570858663438608,-1.625217268690778,1.9570858663438608,{"$error":"#N/A"},{"$error":"#N/A"}]
[71,{"$f":"Lookup!A73","v":"03Y"},{"$f":"Lookup!C73","v":"NHS Hardwick"},{"$f":"Lookup!D73","v":"East Midlands"},{"$f":"Lookup!E73","v":"No"},{"$f":"Lookup!F73","v":4},10.843,70,1.671027542865517,0.5134387323412799,5.7858822996177263E-2,0.44767331582432668,70,8.6911736303354147E-4,-7.0471628912790178,9.429704835724538E-2,1.2339474242597457,0.44767331582432668,-1.2339474242597457,{"$error":"#N/A"},{"$error":"#N/A"}]
[72,{"$f":"Lookup!A74","v":"08D"},{"$f":"Lookup!C74","v":"NHS Haringey"},{"$f":"Lookup!D74","v":"London"},{"$f":"Lookup!E74","v":"No"},{"$f":"Lookup!F74","v":1},7.4420000000000002,135,0.50879529791413658,-0.67570950851988576,0.8998602313861509,-1.7654846281493879,135,4.6612415982009742E-4,-7.6705922891151239,0.10007805210165749,-1.2712092027205133,-1.7654846281493879,1.2712092027205133,{"$error":"#N/A"},{"$error":"#N/A"}]
[73,{"$f":"Lookup!A75","v":"03E"},{"$f":"Lookup!C75","v":"NHS Harrogate and Rural District"},{"$f":"Lookup!D75","v":"Yorkshire and Northern"},{"$f":"Lookup!E75","v":"Closest 10 CCGs"},{"$f":"Lookup!F75","v":10},10.481999999999999,55,1.3806159306654986,0.32252972616423931,2.463097595316818E-3,9.2367081430146547E-2,55,5.4037951268852663E-4,-7.5226983384097528,2.8377829056707524E-2,-0.67691975794002723,9.2367081430146547E-2,0.67691975794002723,9.2367081430146547E-2,0.67691975794002723]
[74,{"$f":"Lookup!A76","v":"08E"},{"$f":"Lookup!C76","v":"NHS Harrow"},{"$f":"Lookup!D76","v":"London"},{"$f":"Lookup!E76","v":"No"},{"$f":"Lookup!F76","v":8},7.8739999999999997,136,1.0318910151552876,3.1393056013038184E-2,5.8325662990644303E-2,-0.44947573697285537,136,5.0463744409835211E-4,-7.5911655541879339,5.6133179951956547E-2,-0.95204489630042455,-0.44947573697285537,0.95204489630042455,{"$error":"#N/A"},{"$error":"#N/A"}]
[75,{"$f":"Lookup!A77","v":"00K"},{"$f":"Lookup!C77","v":"NHS Hartlepool and Stockton-On-Tees"},{"$f":"Lookup!D77","v":"Northern England"},{"$f":"Lookup!E77","v":"No"},{"$f":"Lookup!F77","v":3},9.8840000000000003,7,0.99056948712399917,-9.4752617211409252E-3,7.9735857412353769E-2,-0.52553693686559466,7,6.8363112156373193E-4,-7.2874082168696779,4.4666390743277311E-3,0.26855796461367776,-0.52553693686559466,-0.26855796461367776,{"$error":"#N/A"},{"$error":"#N/A"}]
[76,{"$f":"Lookup!A78","v":"09P"},{"$f":"Lookup!C78","v":"NHS Hastings and Rother"},{"$f":"Lookup!D78","v":"South East coast"},{"$f":"Lookup!E78","v":"No"},{"$f":"Lookup!F78","v":3},12.218999999999999,163,8.6408363821198009,2.1564993816168974,3.5479461702910626,3.5056206796799403,163,8.370054897713006E-4,-7.0848425726553081,7.2575585911414831E-2,1.0825373306229142,2.99,-1.0825373306229142,{"$error":"#N/A"},{"$error":"#N/A"}]
[77,{"$f":"Lookup!A79","v":"08F"},{"$f":"Lookup!C79","v":"NHS Havering"},{"$f":"Lookup!D79","v":"London"},{"$f":"Lookup!E79","v":"No"},{"$f":"Lookup!F79","v":7},9.6460000000000008,137,0.75599324225172959,-0.27972284166301903,0.30539214012561722,-1.0285024695353502,137,5.679731472545118E-4,-7.4728682818159298,1.4072399733579355E-2,-0.47668522146788878,-1.0285024695353502,0.47668522146788878,{"$error":"#N/A"},{"$error":"#N/A"}]
[78,{"$f":"Lookup!A80","v":"05F"},{"$f":"Lookup!C80","v":"NHS Herefordshire"},{"$f":"Lookup!D80","v":"West Midlands"},{"$f":"Lookup!E80","v":"No"},{"$f":"Lookup!F80","v":7},11.26,90,1.1864905689926128,0.17099984826758008,1.0383665815861347E-2,-0.18964952633399171,90,8.3993427667557695E-4,-7.0813466240217524,7.4471414646807274E-2,1.0965852708024004,-0.18964952633399171,-1.0965852708024004,{"$error":"#N/A"},{"$error":"#N/A"}]
[79,{"$f":"Lookup!A81","v":"06N"},{"$f":"Lookup!C81","v":"NHS Herts Valleys"},{"$f":"Lookup!D81","v":"East of England"},{"$f":"Lookup!E81","v":"No"},{"$f":"Lookup!F81","v":10},8.7949999999999999,111,1.3978686126643023,0.33494865703756249,3.8500206825764988E-3,0.11548031035613084,111,4.9588591790254428E-4,-7.6086686530131313,6.473336143308217E-2,-1.0223784483703591,0.11548031035613084,1.0223784483703591,{"$error":"#N/A"},{"$error":"#N/A"}]
[80,{"$f":"Lookup!A82","v":"01D"},{"$f":"Lookup!C82","v":"NHS Heywood, Middleton and Rochdale"},{"$f":"Lookup!D82","v":"Greater Manchester Lancashire and South Cumbria"},{"$f":"Lookup!E82","v":"No"},{"$f":"Lookup!F82","v":2},9.4440000000000008,21,0.98460259787265803,-1.551717315587273E-2,8.3184536227448563E-2,-0.53678171176336409,21,8.5387264825243934E-4,-7.0648742617167972,8.3733187910122311E-2,1.1627769642539929,-0.53678171176336409,-1.1627769642539929,{"$error":"#N/A"},{"$error":"#N/A"}]
[81,{"$f":"Lookup!A83","v":"99K"},{"$f":"Lookup!C83","v":"NHS High Weald Lewes Havens"},{"$f":"Lookup!D83","v":"South East coast"},{"$f":"Lookup!E83","v":"No"},{"$f":"Lookup!F83","v":9},10.755000000000001,207,2.6733608146311765,0.98333641294469987,0.50471972328824644,1.3222133848817876,207,5.1176052266035715E-4,-7.5771418800063985,4.9684741695790423E-2,-0.89569288525887736,1.3222133848817876,0.89569288525887736,{"$error":"#N/A"},{"$error":"#N/A"}]
[82,{"$f":"Lookup!A84","v":"08G"},{"$f":"Lookup!C84","v":"NHS Hillingdon"},{"$f":"Lookup!D84","v":"London"},{"$f":"Lookup!E84","v":"No"},{"$f":"Lookup!F84","v":6},8.0069999999999997,138,0.98049436238928689,-1.9698383092722871E-2,8.5613885266109746E-2,-0.54456348166318769,138,5.1319539822486078E-4,-7.5743405649610116,4.8443758645931832E-2,-0.88443622496250895,-0.54456348166318769,0.88443622496250895,{"$error":"#N/A"},{"$error":"#N/A"}]
[83,{"$f":"Lookup!A85","v":"09X"},{"$f":"Lookup!C85","v":"NHS Horsham and Mid Sussex"},{"$f":"Lookup!D85","v":"South East coast"},{"$f":"Lookup!E85","v":"No"},{"$f":"Lookup!F85","v":10},9.6639999999999997,165,1.4337973262723607,0.36032639765065888,7.6433536491618713E-3,0.16271155227202916,165,4.8819864367782758E-4,-7.6242998603679419,7.2931714628060057E-2,-1.0851900880340066,0.16271155227202916,1.0851900880340066,{"$error":"#N/A"},{"$error":"#N/A"}]
[84,{"$f":"Lookup!A86","v":"07Y"},{"$f":"Lookup!C86","v":"NHS Hounslow"},{"$f":"Lookup!D86","v":"London"},{"$f":"Lookup!E86","v":"No"},{"$f":"Lookup!F86","v":5},7.0979999999999999,132,0.65903713026566235,-0.41697540271987277,0.47592823980466009,-1.283947152877549,132,5.2052483262434259E-4,-7.5601523015219838,4.2399408102496414E-2,-0.8274228369140898,-1.283947152877549,0.8274228369140898,{"$error":"#N/A"},{"$error":"#N/A"}]
[85,{"$f":"Lookup!A87","v":"03F"},{"$f":"Lookup!C87","v":"NHS Hull"},{"$f":"Lookup!D87","v":"Yorkshire and Northern"},{"$f":"Lookup!E87","v":"No"},{"$f":"Lookup!F87","v":1},9.8260000000000005,56,0.67566130503507449,-0.39206335655029223,0.44217642799572632,-1.2375826282654454,56,7.3846199518329812E-4,-7.2102021847001403,2.0747219480458757E-2,0.57879871329138888,-1.2375826282654454,-0.57879871329138888,{"$error":"#N/A"},{"$error":"#N/A"}]
[86,{"$f":"Lookup!A88","v":"06L"},{"$f":"Lookup!C88","v":"NHS Ipswich and East Suffolk"},{"$f":"Lookup!D88","v":"East of England"},{"$f":"Lookup!E88","v":"No"},{"$f":"Lookup!F88","v":8},10.430999999999999,109,1.7511113586336786,0.56025064844522376,8.2570324966233344E-2,0.53479631734602684,109,6.4747611548259594E-4,-7.3417809665378337,1.5525582206529109E-4,5.0069303939180153E-2,0.53479631734602684,-5.0069303939180153E-2,{"$error":"#N/A"},{"$error":"#N/A"}]
[87,{"$f":"Lookup!A89","v":"10L"},{"$f":"Lookup!C89","v":"NHS Isle Of Wight"},{"$f":"Lookup!D89","v":"Wessex"},{"$f":"Lookup!E89","v":"No"},{"$f":"Lookup!F89","v":5},12.092000000000001,175,2.1998567332546619,0.78839223699590866,0.26573212047564698,0.95939718013339403,175,7.7586344803314618E-4,-7.1607578577090232,3.7435778963307104E-2,0.77748325376751692,0.95939718013339403,-0.77748325376751692,{"$error":"#N/A"},{"$error":"#N/A"}]
[88,{"$f":"Lookup!A90","v":"08H"},{"$f":"Lookup!C90","v":"NHS Islington"},{"$f":"Lookup!D90","v":"London"},{"$f":"Lookup!E90","v":"No"},{"$f":"Lookup!F90","v":1},7.5910000000000002,139,0.63493051332614936,-0.45423971390994317,0.52873234117492818,-1.3533008326822535,139,5.6076879592990392E-4,-7.4856409397714936,1.7265908441317212E-2,-0.52801021325139252,-1.3533008326822535,0.52801021325139252,{"$error":"#N/A"},{"$error":"#N/A"}]
[89,{"$f":"Lookup!A91","v":"11N"},{"$f":"Lookup!C91","v":"NHS Kernow"},{"$f":"Lookup!D91","v":"South West"},{"$f":"Lookup!E91","v":"No"},{"$f":"Lookup!F91","v":5},11.288,192,1.93129721400393,0.65819190874576194,0.14844976082363989,0.71707760981126156,192,7.9770039487164182E-4,-7.1329794573074672,4.895673044077959E-2,0.8891065491950505,0.71707760981126156,-0.8891065491950505,{"$error":"#N/A"},{"$error":"#N/A"}]
[90,{"$f":"Lookup!A92","v":"08J"},{"$f":"Lookup!C92","v":"NHS Kingston"},{"$f":"Lookup!D92","v":"London"},{"$f":"Lookup!E92","v":"No"},{"$f":"Lookup!F92","v":9},7.8879999999999999,140,0.97801941259749281,-2.2225759862624112E-2,8.7099286229527353E-2,-0.54926725515712216,140,3.9365558416848461E-4,-7.8396404497296492,0.23561249380663601,-1.9505036365605319,-0.54926725515712216,1.9505036365605319,{"$error":"#N/A"},{"$error":"#N/A"}]
[91,{"$f":"Lookup!A93","v":"01J"},{"$f":"Lookup!C93","v":"NHS Knowsley"},{"$f":"Lookup!D93","v":"Cheshire and Merseyside"},{"$f":"Lookup!E93","v":"No"},{"$f":"Lookup!F93","v":1},10.362,26,1.5880840957347737,0.46252831843459319,3.5958852828848108E-2,0.352922482331122,26,7.965940583454942E-4,-7.1343684345044531,4.8344004845998899E-2,0.88352515466692705,0.352922482331122,-0.88352515466692705,{"$error":"#N/A"},{"$error":"#N/A"}]
[92,{"$f":"Lookup!A94","v":"08K"},{"$f":"Lookup!C94","v":"NHS Lambeth"},{"$f":"Lookup!D94","v":"London"},{"$f":"Lookup!E94","v":"No"},{"$f":"Lookup!F94","v":2},6.4649999999999999,141,0.57157040197183762,-0.55936761528208745,0.69266958675847634,-1.5489573892496278,141,3.7243639613990367E-4,-7.895071777573774,0.29249778290679501,-2.1732460333307442,-1.5489573892496278,2.1732460333307442,{"$error":"#N/A"},{"$error":"#N/A"}]
[93,{"$f":"Lookup!A95","v":"01K"},{"$f":"Lookup!C95","v":"NHS Lancashire North"},{"$f":"Lookup!D95","v":"Greater Manchester Lancashire and South Cumbria"},{"$f":"Lookup!E95","v":"No"},{"$f":"Lookup!F95","v":6},9.8989999999999991,27,1.3132318102397522,0.27249112980588652,1.6727473172025562E-7,-7.6118738483633703E-4,27,7.8071961982348944E-4,-7.1545134495473706,3.989114872032197E-2,0.80257546235124833,-7.6118738483633703E-4,-0.80257546235124833,{"$error":"#N/A"},{"$error":"#N/A"}]
[94,{"$f":"Lookup!A96","v":"02V"},{"$f":"Lookup!C96","v":"NHS Leeds North"},{"$f":"Lookup!D96","v":"Yorkshire and Northern"},{"$f":"Lookup!E96","v":"No"},{"$f":"Lookup!F96","v":5},9.3450000000000006,48,0.80852966705487439,-0.21253790669275899,0.23565007983983166,-0.90346265747868981,48,5.2472293039205814E-4,-7.5521153256710898,3.9154194953245409E-2,-0.79512746652631017,-0.90346265747868981,0.79512746652631017,{"$error":"#N/A"},{"$error":"#N/A"}]
[95,{"$f":"Lookup!A97","v":"03G"},{"$f":"Lookup!C97","v":"NHS Leeds South and East"},{"$f":"Lookup!D97","v":"Yorkshire and Northern"},{"$f":"Lookup!E97","v":"No"},{"$f":"Lookup!F97","v":1},9.7509999999999994,57,0.76273849368141566,-0.27084004080702095,0.29565336480478599,-1.0119704337439572,57,7.2961460859640901E-4,-7.2222642157504611,1.7417907468378475E-2,0.53032926811373848,-1.0119704337439572,-0.53032926811373848,{"$error":"#N/A"},{"$error":"#N/A"}]
[96,{"$f":"Lookup!A98","v":"03C"},{"$f":"Lookup!C98","v":"NHS Leeds West"},{"$f":"Lookup!D98","v":"Yorkshire and Northern"},{"$f":"Lookup!E98","v":"No"},{"$f":"Lookup!F98","v":5},8.4049999999999994,53,0.70719006322958533,-0.34645581862056057,0.38360178135896789,-1.1527011295540897,53,5.6871869455362985E-4,-7.4715557512807065,1.3762718967504473E-2,-0.47141101627345716,-1.1527011295540897,0.47141101627345716,{"$error":"#N/A"},{"$error":"#N/A"}]
[97,{"$f":"Lookup!A99","v":"04C"},{"$f":"Lookup!C99","v":"NHS Leicester City"},{"$f":"Lookup!D99","v":"East Midlands"},{"$f":"Lookup!E99","v":"No"},{"$f":"Lookup!F99","v":2},7.7839999999999998,71,0.74976153284729197,-0.28800007921418264,0.31460903588239453,-1.0439074740680474,71,6.413411907005527E-4,-7.3513074169317578,8.6067073451943957E-6,1.1788705656884257E-2,-1.0439074740680474,-1.1788705656884257E-2,{"$error":"#N/A"},{"$error":"#N/A"}]
[98,{"$f":"Lookup!A100","v":"08L"},{"$f":"Lookup!C100","v":"NHS Lewisham"},{"$f":"Lookup!D100","v":"London"},{"$f":"Lookup!E100","v":"No"},{"$f":"Lookup!F100","v":2},6.9119999999999999,142,0.51540571535766211,-0.6628008916564353,0.87553638722506844,-1.7414600305631616,142,4.2352017574365664E-4,-7.7664857946403041,0.1699456586092426,-1.6565427331645284,-1.7414600305631616,1.6565427331645284,{"$error":"#N/A"},{"$error":"#N/A"}]
[99,{"$f":"Lookup!A101","v":"03T"},{"$f":"Lookup!C101","v":"NHS Lincolnshire East"},{"$f":"Lookup!D101","v":"East Midlands"},{"$f":"Lookup!E101","v":"No"},{"$f":"Lookup!F101","v":4},12.364000000000001,66,2.7043286090304584,0.99485367780521461,0.52121693653348611,1.3436484972950544,66,1.1080485879305807E-3,-6.8040461767679847,0.30271449312190196,2.2108751254572674,1.3436484972950544,-2.2108751254572674,{"$error":"#N/A"},{"$error":"#N/A"}]
[100,{"$f":"Lookup!A102","v":"04D"},{"$f":"Lookup!C102","v":"NHS Lincolnshire West"},{"$f":"Lookup!D102","v":"East Midlands"},{"$f":"Lookup!E102","v":"No"},{"$f":"Lookup!F102","v":6},9.98,72,1.3775534889666621,0.32030909175686589,2.247610399859737E-3,8.8234194956900172E-2,72,7.6926405469467433E-4,-7.1693067131926016,3.4200740724848189E-2,0.74313097259162475,8.8234194956900172E-2,-0.74313097259162475,{"$error":"#N/A"},{"$error":"#N/A"}]
[101,{"$f":"Lookup!A103","v":"99A"},{"$f":"Lookup!C103","v":"NHS Liverpool"},{"$f":"Lookup!D103","v":"Cheshire and Merseyside"},{"$f":"Lookup!E103","v":"No"},{"$f":"Lookup!F103","v":1},9.8179999999999996,199,1.1174910078775404,0.11108600083119044,2.618380985587453E-2,-0.30115690855224952,199,7.4833834382157199E-4,-7.1969067324597731,2.4754114525229364E-2,0.632224474739699,-0.30115690855224952,-0.632224474739699,{"$error":"#N/A"},{"$error":"#N/A"}]
[102,{"$f":"Lookup!A104","v":"06P"},{"$f":"Lookup!C104","v":"NHS Luton"},{"$f":"Lookup!D104","v":"East of England"},{"$f":"Lookup!E104","v":"No"},{"$f":"Lookup!F104","v":3},7.3490000000000002,112,0.72433702134524358,-0.32249849581187323,0.35449951426243154,-1.1081134680090565,112,6.7430229117246125E-4,-7.3011575146410266,2.8178708524904082E-3,0.21330849362662918,-1.1081134680090565,-0.21330849362662918,{"$error":"#N/A"},{"$error":"#N/A"}]
[103,{"$f":"Lookup!A105","v":"04E"},{"$f":"Lookup!C105","v":"NHS Mansfield and Ashfield"},{"$f":"Lookup!D105","v":"East Midlands"},{"$f":"Lookup!E105","v":"No"},{"$f":"Lookup!F105","v":3},10.1,73,1.2361266046300006,0.21198278472023066,3.7109219986650433E-3,-0.11337500625240073,73,8.1006357238035424E-4,-7.1175874371061676,5.6004973181888018E-2,0.95095705150331133,-0.11337500625240073,-0.95095705150331133,{"$error":"#N/A"},{"$error":"#N/A"}]
[104,{"$f":"Lookup!A106","v":"09W"},{"$f":"Lookup!C106","v":"NHS Medway"},{"$f":"Lookup!D106","v":"South East coast"},{"$f":"Lookup!E106","v":"No"},{"$f":"Lookup!F106","v":5},8.6839999999999993,164,1.0659836444656803,6.3897982723210317E-2,4.3681894281999485E-2,-0.38897988431549124,164,5.4704188033551906E-4,-7.5104380032261284,2.4397461343298697E-2,-0.62765345763262614,-0.38897988431549124,0.62765345763262614,{"$error":"#N/A"},{"$error":"#N/A"}]
[105,{"$f":"Lookup!A107","v":"08R"},{"$f":"Lookup!C107","v":"NHS Merton"},{"$f":"Lookup!D107","v":"London"},{"$f":"Lookup!E107","v":"No"},{"$f":"Lookup!F107","v":8},7.3659999999999997,147,1.0725695223665421,7.0057192438519905E-2,4.11452541310484E-2,-0.37751680221887568,147,4.2427860303803215E-4,-7.7646958672450523,0.16847308643309192,-1.6493501809820483,-0.37751680221887568,1.6493501809820483,{"$error":"#N/A"},{"$error":"#N/A"}]
[106,{"$f":"Lookup!A108","v":"06Q"},{"$f":"Lookup!C108","v":"NHS Mid Essex"},{"$f":"Lookup!D108","v":"East of England"},{"$f":"Lookup!E108","v":"No"},{"$f":"Lookup!F108","v":9},9.468,113,1.7583033832837269,0.56434935734538627,8.4942656700125199E-2,0.54242454219700187,113,6.0336976320582881E-4,-7.4123767913272411,3.3797544248097161E-3,-0.23360932738967871,0.54242454219700187,0.23360932738967871,{"$error":"#N/A"},{"$error":"#N/A"}]
[107,{"$f":"Lookup!A109","v":"04F"},{"$f":"Lookup!C109","v":"NHS Milton Keynes"},{"$f":"Lookup!D109","v":"East Midlands"},{"$f":"Lookup!E109","v":"No"},{"$f":"Lookup!F109","v":8},7.49,74,0.58321254389474164,-0.53920358978315863,0.65951243892405209,-1.5114295422731017,74,4.5684905784560824E-4,-7.6907005573604827,0.11320494224817002,-1.3520112335949066,-1.5114295422731017,1.3520112335949066,{"$error":"#N/A"},{"$error":"#N/A"}]
[108,{"$f":"Lookup!A110","v":"04G"},{"$f":"Lookup!C110","v":"NHS Nene"},{"$f":"Lookup!D110","v":"East Midlands"},{"$f":"Lookup!E110","v":"No"},{"$f":"Lookup!F110","v":7},8.9039999999999999,75,0.93932188317504128,-6.2597064930527621E-2,0.11255836253416979,-0.62440345050221413,75,5.8958777847041674E-4,-7.4354971841604423,6.6025453689164985E-3,-0.32651512478312683,-0.62440345050221413,0.32651512478312683,{"$error":"#N/A"},{"$error":"#N/A"}]
[109,{"$f":"Lookup!A111","v":"04H"},{"$f":"Lookup!C111","v":"NHS Newark & Sherwood"},{"$f":"Lookup!D111","v":"East Midlands"},{"$f":"Lookup!E111","v":"No"},{"$f":"Lookup!F111","v":6},10.315,76,1.5757566311807827,0.45473555767180263,3.3064125613992593E-2,0.33841915146367119,76,6.5708629164391039E-4,-7.3270379039130429,7.4001583387963592E-4,0.10931206850029142,0.33841915146367119,-0.10931206850029142,{"$error":"#N/A"},{"$error":"#N/A"}]
[110,{"$f":"Lookup!A112","v":"10M"},{"$f":"Lookup!C112","v":"NHS Newbury and District"},{"$f":"Lookup!D112","v":"Thames"},{"$f":"Lookup!E112","v":"No"},{"$f":"Lookup!F112","v":10},8.9190000000000005,176,1.2089890223514763,0.18978449165055292,6.9082080321372285E-3,-0.15468888702998643,176,5.8032329623632257E-4,-7.4513447106645758,9.4291042201249953E-3,-0.39019601019031841,-0.15468888702998643,0.39019601019031841,{"$error":"#N/A"},{"$error":"#N/A"}]
[111,{"$f":"Lookup!A113","v":"00G"},{"$f":"Lookup!C113","v":"NHS Newcastle North and East"},{"$f":"Lookup!D113","v":"Northern England"},{"$f":"Lookup!E113","v":"No"},{"$f":"Lookup!F113","v":4},8.4030000000000005,4,0.35400857956038806,-1.0384341300957569,1.7195975210942678,-2.440561838989094,4,4.4153709251221022E-4,-7.724806892100391,0.137318979622823,-1.4890623748985605,-2.440561838989094,1.4890623748985605,{"$error":"#N/A"},{"$error":"#N/A"}]
[112,{"$f":"Lookup!A114","v":"00H"},{"$f":"Lookup!C114","v":"NHS Newcastle West"},{"$f":"Lookup!D114","v":"Northern England"},{"$f":"Lookup!E114","v":"No"},{"$f":"Lookup!F114","v":2},9.8439999999999994,5,0.73701254334954203,-0.30515036746742369,0.33414236853871299,-1.0758263681006468,5,7.5092232851219434E-4,-7.1934571312218321,2.5851496180110383E-2,0.64608617492846543,-1.0758263681006468,-0.64608617492846543,{"$error":"#N/A"},{"$error":"#N/A"}]
[113,{"$f":"Lookup!A115","v":"08M"},{"$f":"Lookup!C115","v":"NHS Newham"},{"$f":"Lookup!D115","v":"London"},{"$f":"Lookup!E115","v":"No"},{"$f":"Lookup!F115","v":1},6.5209999999999999,143,0.23123661284400915,-1.4643137946696014,3.0179121927669668,-3.23317871419541,143,4.4721445214805362E-4,-7.7120250051952919,0.12800929708393688,-1.4377002979789233,-2.99,1.4377002979789233,{"$error":"#N/A"},{"$error":"#N/A"}]
[114,{"$f":"Lookup!A116","v":"10N"},{"$f":"Lookup!C116","v":"NHS North & West Reading"},{"$f":"Lookup!D116","v":"Thames"},{"$f":"Lookup!E116","v":"No"},{"$f":"Lookup!F116","v":9},8.9139999999999997,177,1.6679752013413491,0.51161043652468619,5.6982614192260236E-2,0.44427062197053263,177,4.4920490731405411E-4,-7.7075821047658062,0.12484984023559904,-1.4198471754079125,0.44427062197053263,1.4198471754079125,{"$error":"#N/A"},{"$error":"#N/A"}]
[115,{"$f":"Lookup!A117","v":"04J"},{"$f":"Lookup!C117","v":"NHS North Derbyshire"},{"$f":"Lookup!D117","v":"East Midlands"},{"$f":"Lookup!E117","v":"No"},{"$f":"Lookup!F117","v":7},10.846,77,1.7414540038775592,0.55472039869077427,7.9422668273531005E-2,0.52450381069659935,77,8.340664739554174E-4,-7.0883630392983568,7.0691162285190637E-2,1.068390868535134,0.52450381069659935,-1.068390868535134,{"$error":"#N/A"},{"$error":"#N/A"}]
[116,{"$f":"Lookup!A118","v":"00J"},{"$f":"Lookup!C118","v":"NHS North Durham"},{"$f":"Lookup!D118","v":"Northern England"},{"$f":"Lookup!E118","v":"No"},{"$f":"Lookup!F118","v":6},9.7370000000000001,6,1.5908521742482922,0.46426983130432703,3.6622365584536416E-2,0.35616366195006732,6,7.6022832914845735E-4,-7.1811312192655601,2.9967043258458913E-2,0.69561598556621718,0.35616366195006732,-0.69561598556621718,{"$error":"#N/A"},{"$error":"#N/A"}]
[117,{"$f":"Lookup!A119","v":"06T"},{"$f":"Lookup!C119","v":"NHS North East Essex"},{"$f":"Lookup!D119","v":"East of England"},{"$f":"Lookup!E119","v":"No"},{"$f":"Lookup!F119","v":6},10.867000000000001,114,2.0868153443634023,0.73563914519800999,0.21412740345801515,0.86121688589426326,114,6.9298213311282889E-4,-7.2738131186944832,6.4686659614959559E-3,0.32318780787459761,0.86121688589426326,-0.32318780787459761,{"$error":"#N/A"},{"$error":"#N/A"}]
[118,{"$f":"Lookup!A120","v":"99M"},{"$f":"Lookup!C120","v":"NHS North East Hampshire and Farnham"},{"$f":"Lookup!D120","v":"Wessex"},{"$f":"Lookup!E120","v":"No"},{"$f":"Lookup!F120","v":10},8.6159999999999997,208,2.2515785580349759,0.81163155157206179,0.29023155305480836,1.0026485359353174,208,4.1273990506982184E-4,-7.7922801080926405,0.19187814110574744,-1.7601932756442629,1.0026485359353174,1.7601932756442629,{"$error":"#N/A"},{"$error":"#N/A"}]
[119,{"$f":"Lookup!A121","v":"03H"},{"$f":"Lookup!C121","v":"NHS North East Lincolnshire"},{"$f":"Lookup!D121","v":"Yorkshire and Northern"},{"$f":"Lookup!E121","v":"No"},{"$f":"Lookup!F121","v":3},10.403,58,1.0692186292264427,6.692812864977174E-2,4.2424462103525469E-2,-0.38334039270432552,58,7.9314514556163781E-4,-7.1387108597312947,4.6453299971848244E-2,0.86607577648240919,-0.38334039270432552,-0.86607577648240919,{"$error":"#N/A"},{"$error":"#N/A"}]
[120,{"$f":"Lookup!A122","v":"10J"},{"$f":"Lookup!C122","v":"NHS North Hampshire"},{"$f":"Lookup!D122","v":"Wessex"},{"$f":"Lookup!E122","v":"No"},{"$f":"Lookup!F122","v":10},8.7240000000000002,173,2.1653215448945891,0.77256887000830832,0.2496688575934039,0.92994785737809293,173,5.9189401151233854E-4,-7.4315909044664883,5.9829866877825818E-3,-0.31081833137538351,0.92994785737809293,0.31081833137538351,{"$error":"#N/A"},{"$error":"#N/A"}]
[121,{"$f":"Lookup!A123","v":"03J"},{"$f":"Lookup!C123","v":"NHS North Kirklees"},{"$f":"Lookup!D123","v":"Yorkshire and Northern"},{"$f":"Lookup!E123","v":"No"},{"$f":"Lookup!F123","v":3},8.9109999999999996,59,0.68673459770114931,-0.37580738206874609,0.42082142602047828,-1.2073281672784673,59,7.2723108197096805E-4,-7.2255387783873717,1.6564296845126631E-2,0.51717093403646874,-1.2073281672784673,-0.51717093403646874,{"$error":"#N/A"},{"$error":"#N/A"}]
[122,{"$f":"Lookup!A124","v":"03K"},{"$f":"Lookup!C124","v":"NHS North Lincolnshire"},{"$f":"Lookup!D124","v":"Yorkshire and Northern"},{"$f":"Lookup!E124","v":"No"},{"$f":"Lookup!F124","v":5},10.252000000000001,60,1.7607024685554047,0.56571285927995085,8.5739299029702731E-2,0.54496219480784869,60,8.1151579557530676E-4,-7.1157948612817119,5.6856625908646444E-2,0.95816024599748617,0.54496219480784869,-0.95816024599748617,{"$error":"#N/A"},{"$error":"#N/A"}]
[123,{"$f":"Lookup!A125","v":"01M"},{"$f":"Lookup!C125","v":"NHS North Manchester"},{"$f":"Lookup!D125","v":"Greater Manchester Lancashire and South Cumbria"},{"$f":"Lookup!E125","v":"No"},{"$f":"Lookup!F125","v":1},8.8759999999999994,28,0.74761949207982648,-0.29086113086765863,0.31782675039601377,-1.0492322594711054,28,9.0170333960127116E-4,-7.0103228736744123,0.11827977113453757,1.3819834561834587,-1.0492322594711054,-1.3819834561834587,{"$error":"#N/A"},{"$error":"#N/A"}]
[124,{"$f":"Lookup!A126","v":"06V"},{"$f":"Lookup!C126","v":"NHS North Norfolk"},{"$f":"Lookup!D126","v":"East of England"},{"$f":"Lookup!E126","v":"No"},{"$f":"Lookup!F126","v":8},12.954000000000001,115,3.1487432725328341,1.1470034121307002,0.76405656156752944,1.6268187376614551,115,8.3337887316246786E-4,-7.0891884631478774,7.0252919365620226E-2,1.0650740277928277,1.6268187376614551,-1.0650740277928277,{"$error":"#N/A"},{"$error":"#N/A"}]
[125,{"$f":"Lookup!A127","v":"11T"},{"$f":"Lookup!C127","v":"NHS North Somerset"},{"$f":"Lookup!D127","v":"South West"},{"$f":"Lookup!E127","v":"No"},{"$f":"Lookup!F127","v":8},10.785,193,2.733278097825576,1.0055016572853168,0.53670500929305354,1.3634657577205431,193,6.9867720591685744E-4,-7.2656227951059815,7.8532103359764873E-3,0.35609938292393745,1.3634657577205431,-0.35609938292393745,{"$error":"#N/A"},{"$error":"#N/A"}]
[126,{"$f":"Lookup!A128","v":"05G"},{"$f":"Lookup!C128","v":"NHS North Staffordshire"},{"$f":"Lookup!D128","v":"West Midlands"},{"$f":"Lookup!E128","v":"No"},{"$f":"Lookup!F128","v":7},10.34,91,1.9999257098693146,0.69311003480470756,0.17657637069925985,0.78206473708486901,91,7.8833064545215652E-4,-7.1448043137451354,4.3863782500069358E-2,0.84159015428211403,0.78206473708486901,-0.84159015428211403,{"$error":"#N/A"},{"$error":"#N/A"}]
[127,{"$f":"Lookup!A129","v":"99C"},{"$f":"Lookup!C129","v":"NHS North Tyneside"},{"$f":"Lookup!D129","v":"Northern England"},{"$f":"Lookup!E129","v":"No"},{"$f":"Lookup!F129","v":5},10.125999999999999,200,1.7320348452708179,0.54929692845450728,7.6395194539266617E-2,0.51441003447522016,200,7.3271256296748583E-4,-7.2180240896900187,1.8555083694914005E-2,0.54736757258962276,0.51441003447522016,-0.54736757258962276,{"$error":"#N/A"},{"$error":"#N/A"}]
[128,{"$f":"Lookup!A130","v":"09Y"},{"$f":"Lookup!C130","v":"NHS North West Surrey"},{"$f":"Lookup!D130","v":"South East coast"},{"$f":"Lookup!E130","v":"No"},{"$f":"Lookup!F130","v":10},9.1359999999999992,166,1.0528278995079554,5.1479781530299994E-2,4.9026967236991417E-2,-0.41209175521230235,166,4.5472142168038001E-4,-7.6953707617253464,0.11636942157381411,-1.3707777426087564,-0.41209175521230235,1.3707777426087564,{"$error":"#N/A"},{"$error":"#N/A"}]
[129,{"$f":"Lookup!A131","v":"99P"},{"$f":"Lookup!C131","v":"NHS Northern, Eastern and Western Devon"},{"$f":"Lookup!D131","v":"South West"},{"$f":"Lookup!E131","v":"No"},{"$f":"Lookup!F131","v":6},10.817,{"$f":"MATCH($B146,DataCost_CCGcode,0)","v":210},{"$f":"INDEX(INDIRECT($H$11),$H146)/INDEX(INDIRECT($H$12),$H146)","v":1.4254147982463701},{"$f":"LN(I146)","v":0.35446285785184223},6.6524798563298484E-3,0.1517987499487802,{"$f":"MATCH($B146,DataOutcome_CCGcode,0)","v":210},{"$f":"INDEX(INDIRECT($M$11),$M146)/INDEX(INDIRECT($M$12),$M146)","v":7.0777756615447002E-4},-7.2526726575722078,{"$f":"(O146-O$15)*(O146-O$15)","v":1.0316155802306525E-2},{"$f":"(O146-O$15)/P$15","v":0.40813754951608744},{"$f":"IF(L146<-3,-2.99,IF(L146>3,2.99,L146))","v":0.1517987499487802},-0.40813754951608744,{"$f":"CHOOSE($D$7,IF(D146=$D$16,R146,NA()),IF(E146=$E$16,R146,NA()),IF(F146=$F$16,R146,NA()))","v":{"$error":"#N/A"}},{"$f":"CHOOSE($D$7,IF(D146=$D$16,S146,NA()),IF(E146=$E$16,S146,NA()),IF(F146=$F$16,S146,NA()))","v":{"$error":"#N/A"}}]
[130,{"$f":"Lookup!A132","v":"00L"},{"$f":"Lookup!C132","v":"NHS Northumberland"},{"$f":"Lookup!D132","v":"Northern England"},{"$f":"Lookup!E132","v":"No"},{"$f":"Lookup!F132","v":6},10.941000000000001,8,1.5466430831346616,0.43608682948052352,{"$f":"IFERROR((J147-J$15)*(J147-J$15),0)","v":2.6629901451701372E-2},{"$f":"(J147-J$15)/K$15","v":0.30371146782647651},8,7.1459736904487872E-4,{"$f":"IF(N147=1,5,LN((N147/(1-N147))))","v":-7.2430764412835105},1.2357589342840139E-2,0.44669849148162166,0.30371146782647651,{"$f":"IF(Q147<-3,-2.99,IF(Q147>3,2.99,Q147))*$N$3","v":-0.44669849148162166},{"$error":"#N/A"},{"$error":"#N/A"}]
[131,{"$f":"Lookup!A133","v":"06W"},{"$f":"Lookup!C133","v":"NHS Norwich"},{"$f":"Lookup!D133","v":"East of England"},{"$f":"Lookup!E133","v":"No"},{"$f":"Lookup!F133","v":6},9.5449999999999999,116,1.1432293529515118,0.13385702343362837,1.9332983298670985E-2,-0.25877710439217733,116,4.9183807655071366E-4,-7.6168690492746665,6.8973420851252867E-2,-1.0553304989309416,-0.25877710439217733,1.0553304989309416,{"$error":"#N/A"},{"$error":"#N/A"}]
[132,{"$f":"Lookup!A134","v":"04K"},{"$f":"Lookup!C134","v":"NHS Nottingham City"},{"$f":"Lookup!D134","v":"East Midlands"},{"$f":"Lookup!E134","v":"No"},{"$f":"Lookup!F134","v":2},8.1539999999999999,78,0.62836324003975574,-0.46463687202058329,0.54396081775967808,-1.3726512822533263,78,5.5751607002401836E-4,-7.4914615583503519,1.8829444320587876E-2,-0.55139948757269208,-1.3726512822533263,0.55139948757269208,{"$error":"#N/A"},{"$error":"#N/A"}]
[133,{"$f":"Lookup!A135","v":"04L"},{"$f":"Lookup!C135","v":"NHS Nottingham North and East"},{"$f":"Lookup!D135","v":"East Midlands"},{"$f":"Lookup!E135","v":"No"},{"$f":"Lookup!F135","v":7},10.065,79,1.5837058454698125,0.45976757252963973,3.4919444014047715E-2,0.34778437883746854,79,7.3557558789752984E-4,-7.2141214061821488,1.9633538673425165E-2,0.56304991526817127,0.34778437883746854,-0.56304991526817127,{"$error":"#N/A"},{"$error":"#N/A"}]
[134,{"$f":"Lookup!A136","v":"04M"},{"$f":"Lookup!C136","v":"NHS Nottingham West"},{"$f":"Lookup!D136","v":"East Midlands"},{"$f":"Lookup!E136","v":"No"},{"$f":"Lookup!F136","v":9},10.182,80,1.0583160492086896,5.6679012086829315E-2,4.6751568433871238E-2,-0.40241531789915397,80,7.8621887394681876E-4,-7.1474888106121179,4.2746524037357209E-2,0.83080291014545382,-0.40241531789915397,-0.83080291014545382,{"$error":"#N/A"},{"$error":"#N/A"}]
[135,{"$f":"Lookup!A137","v":"00Y"},{"$f":"Lookup!C137","v":"NHS Oldham"},{"$f":"Lookup!D137","v":"Greater Manchester Lancashire and South Cumbria"},{"$f":"Lookup!E137","v":"No"},{"$f":"Lookup!F137","v":2},9.1289999999999996,18,1.1092014635492762,0.10364035422244178,2.8648869036480968E-2,-0.31501421529832818,18,7.7431230006150254E-4,-7.1627606650678999,3.6664770733616764E-2,0.76943527568841164,-0.31501421529832818,-0.76943527568841164,{"$error":"#N/A"},{"$error":"#N/A"}]
[136,{"$f":"Lookup!A138","v":"10Q"},{"$f":"Lookup!C138","v":"NHS Oxfordshire"},{"$f":"Lookup!D138","v":"Thames"},{"$f":"Lookup!E138","v":"No"},{"$f":"Lookup!F138","v":9},8.8849999999999998,178,0.82605690439283419,-0.19109161631732213,0.2152883333593216,-0.86354835051323342,178,4.9539500741534669E-4,-7.6096596010895903,6.5238592328413586E-2,-1.0263604231526697,-0.86354835051323342,1.0263604231526697,{"$error":"#N/A"},{"$error":"#N/A"}]
[137,{"$f":"Lookup!A139","v":"10R"},{"$f":"Lookup!C139","v":"NHS Portsmouth"},{"$f":"Lookup!D139","v":"Wessex"},{"$f":"Lookup!E139","v":"No"},{"$f":"Lookup!F139","v":4},8.6430000000000007,179,1.914719204125227,0.64957098218180354,0.14188093680246153,0.70103295578593883,179,8.0314557136662861E-4,-7.1261711077901628,5.2015937750052997E-2,0.9164648707167391,0.70103295578593883,-0.9164648707167391,{"$error":"#N/A"},{"$error":"#N/A"}]
[138,{"$f":"Lookup!A140","v":"08N"},{"$f":"Lookup!C140","v":"NHS Redbridge"},{"$f":"Lookup!D140","v":"London"},{"$f":"Lookup!E140","v":"No"},{"$f":"Lookup!F140","v":6},7.3390000000000004,144,0.66024903550340763,-0.41513818861110041,0.47339671706519237,-1.2805278609340436,144,4.9352747851327588E-4,-7.6134383704596118,6.7183206371493637E-2,-1.0415448356330514,-1.2805278609340436,1.0415448356330514,{"$error":"#N/A"},{"$error":"#N/A"}]
[139,{"$f":"Lookup!A141","v":"05J"},{"$f":"Lookup!C141","v":"NHS Redditch and Bromsgrove"},{"$f":"Lookup!D141","v":"West Midlands"},{"$f":"Lookup!E141","v":"No"},{"$f":"Lookup!F141","v":8},9.7170000000000005,93,1.3010758093554464,0.26319146789841141,9.4257967238658554E-5,-1.8069055251582155E-2,93,5.7344869524667745E-4,-7.4632684712460442,1.188695983925871E-2,-0.43810983642769497,-1.8069055251582155E-2,0.43810983642769497,{"$error":"#N/A"},{"$error":"#N/A"}]
[140,{"$f":"Lookup!A142","v":"08P"},{"$f":"Lookup!C142","v":"NHS Richmond"},{"$f":"Lookup!D142","v":"London"},{"$f":"Lookup!E142","v":"No"},{"$f":"Lookup!F142","v":10},8.3889999999999993,145,1.2442970342534119,0.21857073933073312,2.9516818367489161E-3,-0.101113974717583,145,3.867016440045568E-4,-7.8574703315582681,0.25323962330101785,-2.0221503166437542,-0.101113974717583,2.0221503166437542,{"$error":"#N/A"},{"$error":"#N/A"}]
[141,{"$f":"Lookup!A143","v":"03L"},{"$f":"Lookup!C143","v":"NHS Rotherham"},{"$f":"Lookup!D143","v":"Yorkshire and Northern"},{"$f":"Lookup!E143","v":"No"},{"$f":"Lookup!F143","v":3},10.161,61,1.9164975270903672,0.65049931551171658,0.14258115083279524,0.7027607036084178,61,7.4798108495290256E-4,-7.1973846068432756,2.4603970727001559E-2,0.6303042088958829,0.7027607036084178,-0.6303042088958829,{"$error":"#N/A"},{"$error":"#N/A"}]
[142,{"$f":"Lookup!A144","v":"04N"},{"$f":"Lookup!C144","v":"NHS Rushcliffe"},{"$f":"Lookup!D144","v":"East Midlands"},{"$f":"Lookup!E144","v":"No"},{"$f":"Lookup!F144","v":10},9.8130000000000006,81,0.92197601679678853,-8.123606791485366E-2,0.125412441108608,-0.65909303427743582,81,4.4195905114097591E-4,-7.7238512679119431,0.13661164964045885,-1.485222343810995,-0.65909303427743582,1.485222343810995,{"$error":"#N/A"},{"$error":"#N/A"}]
[143,{"$f":"Lookup!A145","v":"01G"},{"$f":"Lookup!C145","v":"NHS Salford"},{"$f":"Lookup!D145","v":"Greater Manchester Lancashire and South Cumbria"},{"$f":"Lookup!E145","v":"No"},{"$f":"Lookup!F145","v":1},9.2170000000000005,24,1.4790749929845142,0.39141688763894772,1.4046223703649656E-2,0.22057495612299621,24,8.5529003267973856E-4,-7.0632142710390893,8.4696636106539616E-2,1.1694473854138219,0.22057495612299621,-1.1694473854138219,{"$error":"#N/A"},{"$error":"#N/A"}]
[144,{"$f":"Lookup!A146","v":"05L"},{"$f":"Lookup!C146","v":"NHS Sandwell and West Birmingham"},{"$f":"Lookup!D146","v":"West Midlands"},{"$f":"Lookup!E146","v":"No"},{"$f":"Lookup!F146","v":1},8.7799999999999994,94,0.85833620935512334,-0.15275940385302575,0.1811860320710601,-0.79220716897643095,94,7.0137800148527111E-4,-7.2617619603901105,8.5523979143551608E-3,0.37161356256915612,-0.79220716897643095,-0.37161356256915612,{"$error":"#N/A"},{"$error":"#N/A"}]
[145,{"$f":"Lookup!A147","v":"03M"},{"$f":"Lookup!C147","v":"NHS Scarborough and Ryedale"},{"$f":"Lookup!D147","v":"Yorkshire and Northern"},{"$f":"Lookup!E147","v":"No"},{"$f":"Lookup!F147","v":4},11.516,62,1.8642158411183318,0.62284050415110292,0.12245827096006025,0.65128409541087073,62,1.0794738985105154E-3,-6.8302014305915568,0.27461761280416735,2.1057741987542604,0.65128409541087073,-2.1057741987542604,{"$error":"#N/A"},{"$error":"#N/A"}]
[146,{"$f":"Lookup!A148","v":"03N"},{"$f":"Lookup!C148","v":"NHS Sheffield"},{"$f":"Lookup!D148","v":"Yorkshire and Northern"},{"$f":"Lookup!E148","v":"No"},{"$f":"Lookup!F148","v":3},9.3569999999999993,63,1.0613456045540817,5.9537541327037376E-2,4.5523590892397429E-2,-0.39709522703187394,63,6.8918632938986407E-4,-7.2793094650558761,5.6147553047016545E-3,0.30110157235343937,-0.39709522703187394,-0.30110157235343937,{"$error":"#N/A"},{"$error":"#N/A"}]
[147,{"$f":"Lookup!A149","v":"05N"},{"$f":"Lookup!C149","v":"NHS Shropshire"},{"$f":"Lookup!D149","v":"West Midlands"},{"$f":"Lookup!E149","v":"No"},{"$f":"Lookup!F149","v":7},11.121,95,1.9125308569765225,0.64842742095520545,0.14102075215328078,0.69890464114349093,95,7.7839851024208569E-4,-7.1574932393465795,3.870973482237685E-2,0.79060162828373937,0.69890464114349093,-0.79060162828373937,{"$error":"#N/A"},{"$error":"#N/A"}]
[148,{"$f":"Lookup!A150","v":"10T"},{"$f":"Lookup!C150","v":"NHS Slough"},{"$f":"Lookup!D150","v":"Thames"},{"$f":"Lookup!E150","v":"No"},{"$f":"Lookup!F150","v":4},6.72,180,0.37425935576234787,-0.9828062572978733,1.5767985113682077,-2.3370312072658037,180,6.1196461990592824E-4,-7.3982239357875912,1.9344866805461598E-3,-0.17673822062295996,-2.3370312072658037,0.17673822062295996,{"$error":"#N/A"},{"$error":"#N/A"}]
[149,{"$f":"Lookup!A151","v":"05P"},{"$f":"Lookup!C151","v":"NHS Solihull"},{"$f":"Lookup!D151","v":"West Midlands"},{"$f":"Lookup!E151","v":"No"},{"$f":"Lookup!F151","v":8},10.191000000000001,96,1.8640919670294969,0.62277405358143179,0.1224117679002677,0.65116042234716365,96,6.0585879327727983E-4,-7.4082575710410801,2.9177752587115882E-3,-0.21705686445853412,0.65116042234716365,0.21705686445853412,{"$error":"#N/A"},{"$error":"#N/A"}]
[150,{"$f":"Lookup!A152","v":"11X"},{"$f":"Lookup!C152","v":"NHS Somerset"},{"$f":"Lookup!D152","v":"South West"},{"$f":"Lookup!E152","v":"No"},{"$f":"Lookup!F152","v":7},10.959,194,2.7503890801109354,1.0117423853473122,0.54588788989704595,1.3750805559534214,194,6.986275218625735E-4,-7.265693958953733,7.8406025560364533E-3,0.35581342177835318,1.3750805559534214,-0.35581342177835318,{"$error":"#N/A"},{"$error":"#N/A"}]
[151,{"$f":"Lookup!A153","v":"01R"},{"$f":"Lookup!C153","v":"NHS South Cheshire"},{"$f":"Lookup!D153","v":"Cheshire and Merseyside"},{"$f":"Lookup!E153","v":"No"},{"$f":"Lookup!F153","v":8},9.984,30,1.4626174654627282,0.38022761516364867,1.1519190758122919E-2,0.19975027975795276,30,8.8003619303779815E-4,-7.0346670992335065,0.10212756495059475,1.2841598723105343,0.19975027975795276,-1.2841598723105343,{"$error":"#N/A"},{"$error":"#N/A"}]
[152,{"$f":"Lookup!A154","v":"99Q"},{"$f":"Lookup!C154","v":"NHS South Devon and Torbay"},{"$f":"Lookup!D154","v":"South West"},{"$f":"Lookup!E154","v":"No"},{"$f":"Lookup!F154","v":5},11.907,211,1.4530055518867844,0.37363420556280352,1.0147355562451898E-2,0.18747909578393832,211,8.9434866202288269E-4,-7.0185201077287438,0.1127086087976274,1.3490441124736594,0.18747909578393832,-1.3490441124736594,{"$error":"#N/A"},{"$error":"#N/A"}]
[153,{"$f":"Lookup!A155","v":"05Q"},{"$f":"Lookup!C155","v":"NHS South East Staffs and Seisdon Peninsular"},{"$f":"Lookup!D155","v":"West Midlands"},{"$f":"Lookup!E155","v":"No"},{"$f":"Lookup!F155","v":8},9.7989999999999995,97,2.0514749522929114,0.71855902336561706,0.19861185623905636,0.82942858060271751,97,6.8205827752079512E-4,-7.2897131618761888,4.1638594395485033E-3,0.2592958921513781,0.82942858060271751,-0.2592958921513781,{"$error":"#N/A"},{"$error":"#N/A"}]
[154,{"$f":"Lookup!A156","v":"10V"},{"$f":"Lookup!C156","v":"NHS South Eastern Hampshire"},{"$f":"Lookup!D156","v":"Wessex"},{"$f":"Lookup!E156","v":"No"},{"$f":"Lookup!F156","v":7},10.922000000000001,181,3.1745840869569326,1.1551766275298621,0.77841183195786345,1.6420301435794957,181,6.1019934947443265E-4,-7.4011144661712267,2.1971090849545035E-3,-0.18835337924587103,1.6420301435794957,0.18835337924587103,{"$error":"#N/A"},{"$error":"#N/A"}]
[155,{"$f":"Lookup!A157","v":"12A"},{"$f":"Lookup!C157","v":"NHS South Gloucestershire"},{"$f":"Lookup!D157","v":"South West"},{"$f":"Lookup!E157","v":"No"},{"$f":"Lookup!F157","v":10},9.2940000000000005,195,1.9946704419072441,0.69047884466967713,0.17437198950711094,0.77716775355552303,195,5.3614811091564046E-4,-7.5305638168397051,3.1089687792094003E-2,-0.70852599191224264,0.77716775355552303,0.70852599191224264,{"$error":"#N/A"},{"$error":"#N/A"}]
[156,{"$f":"Lookup!A158","v":"10A"},{"$f":"Lookup!C158","v":"NHS South Kent Coast"},{"$f":"Lookup!D158","v":"South East coast"},{"$f":"Lookup!E158","v":"Closest 10 CCGs"},{"$f":"Lookup!F158","v":5},11.045999999999999,167,1.8480072474290374,0.6141078949807619,0.1164227442449869,0.63503158567923135,167,7.9773973741066974E-4,-7.1329300992054261,4.8978574990027404E-2,0.88930488725362233,0.63503158567923135,-0.88930488725362233,0.63503158567923135,-0.88930488725362233]
[157,{"$f":"Lookup!A159","v":"99D"},{"$f":"Lookup!C159","v":"NHS South Lincolnshire"},{"$f":"Lookup!D159","v":"East Midlands"},{"$f":"Lookup!E159","v":"No"},{"$f":"Lookup!F159","v":9},10.792,201,2.0971936265648718,0.74060008269048605,0.21874325309623127,0.87044982914201119,201,8.0893628395773841E-4,-7.1189811393718863,5.5347265995322859E-2,0.94535667000201995,0.87044982914201119,-0.94535667000201995,{"$error":"#N/A"},{"$error":"#N/A"}]
[158,{"$f":"Lookup!A160","v":"01N"},{"$f":"Lookup!C160","v":"NHS South Manchester"},{"$f":"Lookup!D160","v":"Greater Manchester Lancashire and South Cumbria"},{"$f":"Lookup!E160","v":"No"},{"$f":"Lookup!F160","v":1},8.3800000000000008,29,0.84159162841165192,-0.17246038427766672,0.19834598067916681,-0.82887322946632347,29,6.3158825498481027E-4,-7.3666410836190162,1.5375870191031103E-4,-4.9827311891890581E-2,-0.82887322946632347,4.9827311891890581E-2,{"$error":"#N/A"},{"$error":"#N/A"}]
[159,{"$f":"Lookup!A161","v":"06Y"},{"$f":"Lookup!C161","v":"NHS South Norfolk"},{"$f":"Lookup!D161","v":"East of England"},{"$f":"Lookup!E161","v":"No"},{"$f":"Lookup!F161","v":9},10.8,117,2.2706269877572889,0.82005599941591956,0.29937955403442834,1.0183275177716979,117,6.8396423703543329E-4,-7.2869207284972664,4.532037261144089E-3,0.27051686281604259,1.0183275177716979,-0.27051686281604259,{"$error":"#N/A"},{"$error":"#N/A"}]
[160,{"$f":"Lookup!A162","v":"10W"},{"$f":"Lookup!C162","v":"NHS South Reading"},{"$f":"Lookup!D162","v":"Thames"},{"$f":"Lookup!E162","v":"No"},{"$f":"Lookup!F162","v":5},6.8419999999999996,182,0.56726043391671699,-0.56693676163199969,0.70532599134870255,-1.5630445449109576,182,4.7910694465516277E-4,-7.6431074972170849,8.3443774665069373E-2,-1.1607657286021389,-1.5630445449109576,1.1607657286021389,{"$error":"#N/A"},{"$error":"#N/A"}]
[161,{"$f":"Lookup!A163","v":"01T"},{"$f":"Lookup!C163","v":"NHS South Sefton"},{"$f":"Lookup!D163","v":"Cheshire and Merseyside"},{"$f":"Lookup!E163","v":"No"},{"$f":"Lookup!F163","v":2},10.74,31,1.5614834037284704,0.44563626926854905,2.9837776523820414E-2,0.32148420448045506,31,7.6782733042639068E-4,-7.1711775580078534,3.3512273573173566E-2,0.73561326601049914,0.32148420448045506,-0.73561326601049914,{"$error":"#N/A"},{"$error":"#N/A"}]
[162,{"$f":"Lookup!A164","v":"00M"},{"$f":"Lookup!C164","v":"NHS South Tees"},{"$f":"Lookup!D164","v":"Northern England"},{"$f":"Lookup!E164","v":"No"},{"$f":"Lookup!F164","v":2},10.269,9,1.4050403708300068,0.34006603605974217,4.511259992287197E-3,0.12500441142788582,9,7.5959830654259892E-4,-7.1819609214879101,2.9680472299049868E-2,0.69228195283058602,0.12500441142788582,-0.69228195283058602,{"$error":"#N/A"},{"$error":"#N/A"}]
[163,{"$f":"Lookup!A165","v":"00N"},{"$f":"Lookup!C165","v":"NHS South Tyneside"},{"$f":"Lookup!D165","v":"Northern England"},{"$f":"Lookup!E165","v":"No"},{"$f":"Lookup!F165","v":3},10.273,10,1.0452393484367921,4.4245900757067511E-2,5.2282752957552629E-2,-0.42555493847988568,10,8.6803702675973158E-4,-7.0484077726673773,9.3534046103765978E-2,1.2289450569176255,-0.42555493847988568,-1.2289450569176255,{"$error":"#N/A"},{"$error":"#N/A"}]
[164,{"$f":"Lookup!A166","v":"05R"},{"$f":"Lookup!C166","v":"NHS South Warwickshire"},{"$f":"Lookup!D166","v":"West Midlands"},{"$f":"Lookup!E166","v":"No"},{"$f":"Lookup!F166","v":10},10.231,98,2.9192263057117538,1.071318617373737,0.63747209352670431,1.4859595924357174,98,6.3544666269847651E-4,-7.3605467518766385,3.9760792069843788E-5,-2.5338162672387383E-2,1.4859595924357174,2.5338162672387383E-2,{"$error":"#N/A"},{"$error":"#N/A"}]
[165,{"$f":"Lookup!A167","v":"04Q"},{"$f":"Lookup!C167","v":"NHS South West Lincolnshire"},{"$f":"Lookup!D167","v":"East Midlands"},{"$f":"Lookup!E167","v":"Closest 10 CCGs"},{"$f":"Lookup!F167","v":8},10.593,82,1.8694738945949714,0.62565705149424711,0.12443745120540466,0.65652605256378505,82,{"$f":"INDEX(INDIRECT($M$11),$M182)/INDEX(INDIRECT($M$12),$M182)","v":7.3307533627700019E-4},-7.2175287391874354,1.8690279431696353E-2,0.54935806357149142,0.65652605256378505,-0.54935806357149142,0.65652605256378505,-0.54935806357149142]
[166,{"$f":"Lookup!A168","v":"05T"},{"$f":"Lookup!C168","v":"NHS South Worcestershire"},{"$f":"Lookup!D168","v":"West Midlands"},{"$f":"Lookup!E168","v":"Closest 10 CCGs"},{"$f":"Lookup!F168","v":8},10.412000000000001,99,1.2693523372094568,0.23850679969000046,1.1829006293478208E-3,-6.4010400209749005E-2,99,6.4820469779797748E-4,-7.3406556049584282,1.8456665263414315E-4,5.45913990283469E-2,-6.4010400209749005E-2,-5.45913990283469E-2,-6.4010400209749005E-2,-5.45913990283469E-2]
[167,{"$f":"Lookup!A169","v":"10X"},{"$f":"Lookup!C169","v":"NHS Southampton"},{"$f":"Lookup!D169","v":"Wessex"},{"$f":"Lookup!E169","v":"No"},{"$f":"Lookup!F169","v":4},8.32,183,1.1044491221780293,9.9346678695755225E-2,3.0120797732354706E-2,-0.32300529813746204,183,5.6663101945699196E-4,-7.4752354337919158,1.4639620107486784E-2,-0.4861972632167923,-0.32300529813746204,0.4861972632167923,{"$error":"#N/A"},{"$error":"#N/A"}]
[168,{"$f":"Lookup!A170","v":"99G"},{"$f":"Lookup!C170","v":"NHS Southend"},{"$f":"Lookup!D170","v":"East of England"},{"$f":"Lookup!E170","v":"No"},{"$f":"Lookup!F170","v":4},10.055999999999999,204,1.5877616269263455,0.46232524256901475,3.5881876248455249E-2,0.35254453200525787,204,8.0636554447461727E-4,-7.1221666983140102,5.3858544609376731E-2,0.93255598379409133,0.35254453200525787,-0.93255598379409133,{"$error":"#N/A"},{"$error":"#N/A"}]
[169,{"$f":"Lookup!A171","v":"04R"},{"$f":"Lookup!C171","v":"NHS Southern Derbyshire"},{"$f":"Lookup!D171","v":"East Midlands"},{"$f":"Lookup!E171","v":"No"},{"$f":"Lookup!F171","v":6},9.4770000000000003,83,1.097351188026978,9.2899264998830458E-2,3.240030857259292E-2,-0.33500476494161802,83,7.2859523186173333E-4,-7.223663356871727,1.7050556392005228E-2,0.52470703139505648,-0.33500476494161802,-0.52470703139505648,{"$error":"#N/A"},{"$error":"#N/A"}]
[170,{"$f":"Lookup!A172","v":"01V"},{"$f":"Lookup!C172","v":"NHS Southport and Formby"},{"$f":"Lookup!D172","v":"Cheshire and Merseyside"},{"$f":"Lookup!E172","v":"No"},{"$f":"Lookup!F172","v":7},11.7,32,2.1573524733030562,0.76888176309896683,0.24599778816549159,0.92308567681364118,32,7.34378195474743E-4,-7.2157517613732267,1.9179306873837999E-2,0.55649857982355333,0.92308567681364118,-0.55649857982355333,{"$error":"#N/A"},{"$error":"#N/A"}]
[171,{"$f":"Lookup!A173","v":"08Q"},{"$f":"Lookup!C173","v":"NHS Southwark"},{"$f":"Lookup!D173","v":"London"},{"$f":"Lookup!E173","v":"No"},{"$f":"Lookup!F173","v":2},6.5220000000000002,146,0.35454578348384558,-1.0369177918882511,1.7156229679168662,-2.4377397384011452,146,3.8282290279627166E-4,-7.8675551743106764,0.2634913019663882,-2.0626747300591948,-2.4377397384011452,2.0626747300591948,{"$error":"#N/A"},{"$error":"#N/A"}]
[172,{"$f":"Lookup!A174","v":"01X"},{"$f":"Lookup!C174","v":"NHS St Helens"},{"$f":"Lookup!D174","v":"Cheshire and Merseyside"},{"$f":"Lookup!E174","v":"No"},{"$f":"Lookup!F174","v":3},10.368,34,1.6548467996959531,0.50370843638478469,5.3272477923189329E-2,0.42956398256093342,34,9.2291415772828057E-4,-6.9870509910259599,0.13482860253774825,1.4754979924588301,0.42956398256093342,-1.4754979924588301,{"$error":"#N/A"},{"$error":"#N/A"}]
[173,{"$f":"Lookup!A175","v":"05V"},{"$f":"Lookup!C175","v":"NHS Stafford and Surrounds"},{"$f":"Lookup!D175","v":"West Midlands"},{"$f":"Lookup!E175","v":"No"},{"$f":"Lookup!F175","v":9},10.465999999999999,100,2.3794636269294198,0.8668750954480835,0.35280626891291594,1.1054638820640195,100,6.6049195262678413E-4,-7.321864907662186,1.0482201588862435E-3,0.13009897056836647,1.1054638820640195,-0.13009897056836647,{"$error":"#N/A"},{"$error":"#N/A"}]
[174,{"$f":"Lookup!A176","v":"01W"},{"$f":"Lookup!C176","v":"NHS Stockport"},{"$f":"Lookup!D176","v":"Greater Manchester Lancashire and South Cumbria"},{"$f":"Lookup!E176","v":"No"},{"$f":"Lookup!F176","v":6},9.8040000000000003,33,1.5590331959072226,0.44406588292606031,2.9297717664484541E-2,0.31856151335620142,33,6.7029256084544296E-4,-7.3071257656010005,2.2198581242025895E-3,0.18932598093833522,0.31856151335620142,-0.18932598093833522,{"$error":"#N/A"},{"$error":"#N/A"}]
[175,{"$f":"Lookup!A177","v":"05W"},{"$f":"Lookup!C177","v":"NHS Stoke On Trent"},{"$f":"Lookup!D177","v":"West Midlands"},{"$f":"Lookup!E177","v":"No"},{"$f":"Lookup!F177","v":1},10.09,101,1.7337357409660261,0.55027846822434623,7.6938746874889066E-2,0.51623680633115976,101,6.7826656646819664E-4,-7.2952916847177356,3.4750378019353912E-3,0.23687944288901006,0.51623680633115976,-0.23687944288901006,{"$error":"#N/A"},{"$error":"#N/A"}]
[176,{"$f":"Lookup!A178","v":"00P"},{"$f":"Lookup!C178","v":"NHS Sunderland"},{"$f":"Lookup!D178","v":"Northern England"},{"$f":"Lookup!E178","v":"No"},{"$f":"Lookup!F178","v":3},10.269,11,1.0260326454862456,2.569956445510423E-2,6.1108115721147875E-2,-0.46007205763113057,11,7.8576986187398404E-4,-7.1480605262655175,4.2510443814587622E-2,0.82850555736928799,-0.46007205763113057,-0.82850555736928799,{"$error":"#N/A"},{"$error":"#N/A"}]
[177,{"$f":"Lookup!A179","v":"99H"},{"$f":"Lookup!C179","v":"NHS Surrey Downs"},{"$f":"Lookup!D179","v":"South East coast"},{"$f":"Lookup!E179","v":"No"},{"$f":"Lookup!F179","v":10},9.6259999999999994,205,1.9628219506518294,0.67438320850704192,0.16118866863649225,0.7472117028188634,205,4.6832441019223781E-4,-7.6658808839080388,9.7119332500211653E-2,-1.2522771343613928,0.7472117028188634,1.2522771343613928,{"$error":"#N/A"},{"$error":"#N/A"}]
[178,{"$f":"Lookup!A180","v":"10C"},{"$f":"Lookup!C180","v":"NHS Surrey Heath"},{"$f":"Lookup!D180","v":"South East coast"},{"$f":"Lookup!E180","v":"No"},{"$f":"Lookup!F180","v":10},9.1750000000000007,168,2.0236491271724986,0.70490238025723673,0.18662595101590237,0.80401180988838017,168,6.0412224591329072E-4,-7.4111296818108787,3.2363066488622365E-3,-0.22859800665259214,0.80401180988838017,0.22859800665259214,{"$error":"#N/A"},{"$error":"#N/A"}]
[179,{"$f":"Lookup!A181","v":"08T"},{"$f":"Lookup!C181","v":"NHS Sutton"},{"$f":"Lookup!D181","v":"London"},{"$f":"Lookup!E181","v":"No"},{"$f":"Lookup!F181","v":8},8.5869999999999997,148,1.4102075665228193,0.34373690385557581,5.0178496434119656E-3,0.13183636891179301,148,4.9842936792201316E-4,-7.6035501141997619,6.2154966630229687E-2,-1.0018103752681358,0.13183636891179301,1.0018103752681358,{"$error":"#N/A"},{"$error":"#N/A"}]
[180,{"$f":"Lookup!A182","v":"10D"},{"$f":"Lookup!C182","v":"NHS Swale"},{"$f":"Lookup!D182","v":"South East coast"},{"$f":"Lookup!E182","v":"No"},{"$f":"Lookup!F182","v":4},9.7240000000000002,169,1.0676736103983042,6.5482085588999928E-2,4.3022241887867171E-2,-0.38603166497577723,169,7.5873301702596889E-4,-7.1831015776727973,2.9288748411236101E-2,0.68769839868541005,-0.38603166497577723,-0.68769839868541005,{"$error":"#N/A"},{"$error":"#N/A"}]
[181,{"$f":"Lookup!A183","v":"12D"},{"$f":"Lookup!C183","v":"NHS Swindon"},{"$f":"Lookup!D183","v":"South West"},{"$f":"Lookup!E183","v":"No"},{"$f":"Lookup!F183","v":8},8.5860000000000003,196,1.2708570357916296,0.23969150420621535,1.1028123052634357E-3,-6.1805512609340384E-2,196,6.1246070442550708E-4,-7.3974131253083693,1.8638206641702685E-3,-0.17348010149624235,-6.1805512609340384E-2,0.17348010149624235,{"$error":"#N/A"},{"$error":"#N/A"}]
[182,{"$f":"Lookup!A184","v":"01Y"},{"$f":"Lookup!C184","v":"NHS Tameside and Glossop"},{"$f":"Lookup!D184","v":"East Midlands"},{"$f":"Lookup!E184","v":"No"},{"$f":"Lookup!F184","v":3},9.6470000000000002,35,1.3432491722191875,0.29509143437437052,4.9245433855545355E-4,4.1300888539140455E-2,35,1.0762682843305123E-3,-6.8331786655647191,0.271506098055947,2.0938106308683335,4.1300888539140455E-2,-2.0938106308683335,{"$error":"#N/A"},{"$error":"#N/A"}]
[183,{"$f":"Lookup!A185","v":"05X"},{"$f":"Lookup!C185","v":"NHS Telford and Wrekin"},{"$f":"Lookup!D185","v":"West Midlands"},{"$f":"Lookup!E185","v":"No"},{"$f":"Lookup!F185","v":4},9.0579999999999998,102,0.75993586130243485,-0.27452124228616387,0.29967015023335714,-1.0188216235426597,102,6.6358223811542648E-4,-7.3171939634501726,1.3724929910805554E-3,0.14886845254594991,-1.0188216235426597,-0.14886845254594991,{"$error":"#N/A"},{"$error":"#N/A"}]
[184,{"$f":"Lookup!A186","v":"10E"},{"$f":"Lookup!C186","v":"NHS Thanet"},{"$f":"Lookup!D186","v":"South East coast"},{"$f":"Lookup!E186","v":"No"},{"$f":"Lookup!F186","v":3},11.419,170,2.2570419293604775,0.8140550751375748,0.29284868315068918,1.0071590252478511,170,9.1019177344931021E-4,-7.0009446343522548,0.12481841804929805,1.4196684907180126,1.0071590252478511,-1.4196684907180126,{"$error":"#N/A"},{"$error":"#N/A"}]
[185,{"$f":"Lookup!A187","v":"07G"},{"$f":"Lookup!C187","v":"NHS Thurrock"},{"$f":"Lookup!D187","v":"East of England"},{"$f":"Lookup!E187","v":"No"},{"$f":"Lookup!F187","v":6},8.2690000000000001,118,0.63433071779115424,-0.45518482365557611,0.53010768829834232,-1.3550598035738555,118,6.5984823490597162E-4,-7.3228406304672919,9.8599174528882553E-4,0.12617817623336863,-1.3550598035738555,-0.12617817623336863,{"$error":"#N/A"},{"$error":"#N/A"}]
[186,{"$f":"Lookup!A188","v":"08V"},{"$f":"Lookup!C188","v":"NHS Tower Hamlets"},{"$f":"Lookup!D188","v":"London"},{"$f":"Lookup!E188","v":"No"},{"$f":"Lookup!F188","v":1},6.4009999999999998,149,0.265286195376083,-1.32694605320627,2.5595077847793068,-2.977519665290679,149,3.7200843219112968E-4,-7.8962219591230749,0.29374321267494952,-2.1778678637103552,-2.977519665290679,2.1778678637103552,{"$error":"#N/A"},{"$error":"#N/A"}]
[187,{"$f":"Lookup!A189","v":"02A"},{"$f":"Lookup!C189","v":"NHS Trafford"},{"$f":"Lookup!D189","v":"Greater Manchester Lancashire and South Cumbria"},{"$f":"Lookup!E189","v":"No"},{"$f":"Lookup!F189","v":7},9.3949999999999996,36,1.1130281410672609,0.10708435595154599,2.7494868317619506E-2,-0.30860448476691327,36,6.850448727379726E-4,-7.2853409345777127,4.7472377507199398E-3,0.27686502544772101,-0.30860448476691327,-0.27686502544772101,{"$error":"#N/A"},{"$error":"#N/A"}]
[188,{"$f":"Lookup!A190","v":"03Q"},{"$f":"Lookup!C190","v":"NHS Vale Of York"},{"$f":"Lookup!D190","v":"Yorkshire and Northern"},{"$f":"Lookup!E190","v":"No"},{"$f":"Lookup!F190","v":9},9.7309999999999999,64,1.2166047723895972,0.19606400562371568,5.9037888017467602E-3,-0.14300190322388442,64,7.0125333095332203E-4,-7.2619398517920075,8.5195270593286885E-3,0.37089873290938707,-0.14300190322388442,-0.37089873290938707,{"$error":"#N/A"},{"$error":"#N/A"}]
[189,{"$f":"Lookup!A191","v":"02D"},{"$f":"Lookup!C191","v":"NHS Vale Royal"},{"$f":"Lookup!D191","v":"Cheshire and Merseyside"},{"$f":"Lookup!E191","v":"No"},{"$f":"Lookup!F191","v":7},9.548,37,0.78793082399421177,-0.23834497978712132,0.26137155424741854,-0.95149294240610671,37,6.8676239077836588E-4,-7.2828351921983403,5.0988088047007833E-3,0.28693397174537427,-0.95149294240610671,-0.28693397174537427,{"$error":"#N/A"},{"$error":"#N/A"}]
[190,{"$f":"Lookup!A192","v":"03R"},{"$f":"Lookup!C192","v":"NHS Wakefield"},{"$f":"Lookup!D192","v":"Yorkshire and Northern"},{"$f":"Lookup!E192","v":"No"},{"$f":"Lookup!F192","v":4},9.7260000000000009,65,0.85469522730717218,-0.15701033288194827,0.18482299933965579,-0.80011869508087619,65,7.4550876427376535E-4,-7.2006978807986926,2.35755312059765E-2,0.616990319247394,-0.80011869508087619,-0.616990319247394,{"$error":"#N/A"},{"$error":"#N/A"}]
[191,{"$f":"Lookup!A193","v":"05Y"},{"$f":"Lookup!C193","v":"NHS Walsall"},{"$f":"Lookup!D193","v":"West Midlands"},{"$f":"Lookup!E193","v":"No"},{"$f":"Lookup!F193","v":2},10.198,103,1.617783080964567,0.48105674349570476,4.3329179013022821E-2,0.38740626635759839,103,8.264330828748693E-4,-7.0975648336727515,6.5882724156600778E-2,1.0314148513034527,0.38740626635759839,-1.0314148513034527,{"$error":"#N/A"},{"$error":"#N/A"}]
[192,{"$f":"Lookup!A194","v":"08W"},{"$f":"Lookup!C194","v":"NHS Waltham Forest"},{"$f":"Lookup!D194","v":"London"},{"$f":"Lookup!E194","v":"No"},{"$f":"Lookup!F194","v":1},7.617,150,0.46479599300841268,-0.76615669437571643,1.0796390679537626,-1.9338184834321703,150,4.6204808143419723E-4,-7.6793794450707553,0.10571492005045635,-1.3065190582566266,-1.9338184834321703,1.3065190582566266,{"$error":"#N/A"},{"$error":"#N/A"}]
[193,{"$f":"Lookup!A195","v":"08X"},{"$f":"Lookup!C195","v":"NHS Wandsworth"},{"$f":"Lookup!D195","v":"London"},{"$f":"Lookup!E195","v":"No"},{"$f":"Lookup!F195","v":5},6.53,{"$f":"MATCH($B210,DataCost_CCGcode,0)","v":151},{"$f":"INDEX(INDIRECT($H$11),$H210)/INDEX(INDIRECT($H$12),$H210)","v":0.57904061704292364},{"$f":"LN(I210)","v":-0.54638265353635995},0.67122426652468159,-1.5247907040103339,{"$f":"MATCH($B210,DataOutcome_CCGcode,0)","v":151},{"$f":"INDEX(INDIRECT($M$11),$M210)/INDEX(INDIRECT($M$12),$M210)","v":3.9711580464171645E-4},-7.8308854257876517,{"$f":"(O210-O$15)*(O210-O$15)","v":0.22718977902392148},{"$f":"(O210-O$15)/P$15","v":-1.9153228986553361},{"$f":"IF(L210<-3,-2.99,IF(L210>3,2.99,L210))","v":-1.5247907040103339},1.9153228986553361,{"$f":"CHOOSE($D$7,IF(D210=$D$16,R210,NA()),IF(E210=$E$16,R210,NA()),IF(F210=$F$16,R210,NA()))","v":{"$error":"#N/A"}},{"$f":"CHOOSE($D$7,IF(D210=$D$16,S210,NA()),IF(E210=$E$16,S210,NA()),IF(F210=$F$16,S210,NA()))","v":{"$error":"#N/A"}}]
[194,{"$f":"Lookup!A196","v":"02E"},{"$f":"Lookup!C196","v":"NHS Warrington"},{"$f":"Lookup!D196","v":"Cheshire and Merseyside"},{"$f":"Lookup!E196","v":"No"},{"$f":"Lookup!F196","v":6},9.1760000000000002,38,0.99220618378212744,-7.8243467398028954E-3,{"$f":"IFERROR((J211-J$15)*(J211-J$15),0)","v":7.8806227429465012E-2},{"$f":"(J211-J$15)/K$15","v":-0.52246437157875747},38,6.4730904383206958E-4,{"$f":"IF(N211=1,5,LN((N211/(1-N211))))","v":-7.342039202247852},1.488871863511075E-4,4.9031622844062359E-2,-0.52246437157875747,{"$f":"IF(Q211<-3,-2.99,IF(Q211>3,2.99,Q211))*$N$3","v":-4.9031622844062359E-2},{"$error":"#N/A"},{"$error":"#N/A"}]
[195,{"$f":"Lookup!A197","v":"05H"},{"$f":"Lookup!C197","v":"NHS Warwickshire North"},{"$f":"Lookup!D197","v":"West Midlands"},{"$f":"Lookup!E197","v":"No"},{"$f":"Lookup!F197","v":5},9.7859999999999996,92,1.0931222815691886,8.9038079944127657E-2,3.3805250561496178E-2,-0.3421909273420094,92,7.5870302951884115E-4,-7.1831411315986946,2.9275211492935868E-2,0.68753945722398935,-0.3421909273420094,-0.68753945722398935,{"$error":"#N/A"},{"$error":"#N/A"}]
[196,{"$f":"Lookup!A198","v":"02F"},{"$f":"Lookup!C198","v":"NHS West Cheshire"},{"$f":"Lookup!D198","v":"Cheshire and Merseyside"},{"$f":"Lookup!E198","v":"No"},{"$f":"Lookup!F198","v":7},10.145,39,1.4867658705278419,0.39660320419218087,1.53024525084958E-2,0.23022735881371373,39,6.6100378145669781E-4,-7.3210897749762296,1.099012735172579E-3,0.13321372388566705,0.23022735881371373,-0.13321372388566705,{"$error":"#N/A"},{"$error":"#N/A"}]
[197,{"$f":"Lookup!A199","v":"07H"},{"$f":"Lookup!C199","v":"NHS West Essex"},{"$f":"Lookup!D199","v":"East of England"},{"$f":"Lookup!E199","v":"Closest 10 CCGs"},{"$f":"Lookup!F199","v":8},9.3450000000000006,119,1.3828635122053556,0.32415635815618998,2.6272017302520264E-3,9.5394452948015809E-2,119,5.1044015364615843E-4,-7.5797265876186888,5.0843688909067708E-2,-0.90607914138701307,9.5394452948015809E-2,0.90607914138701307,9.5394452948015809E-2,0.90607914138701307]
[198,{"$f":"Lookup!A200","v":"11A"},{"$f":"Lookup!C200","v":"NHS West Hampshire"},{"$f":"Lookup!D200","v":"Wessex"},{"$f":"Lookup!E200","v":"No"},{"$f":"Lookup!F200","v":10},10.542,185,2.032107990260493,0.70907367311733471,0.19024736656966432,0.81177512283183728,185,5.7091524466480726E-4,-7.4676987142081854,1.2872622061613459E-2,-0.45591209688294931,0.81177512283183728,0.45591209688294931,{"$error":"#N/A"},{"$error":"#N/A"}]
[199,{"$f":"Lookup!A201","v":"99J"},{"$f":"Lookup!C201","v":"NHS West Kent"},{"$f":"Lookup!D201","v":"South East coast"},{"$f":"Lookup!E201","v":"No"},{"$f":"Lookup!F201","v":9},9.6300000000000008,206,2.5700206737028433,0.94391394311712518,0.45025954793845491,1.2488430940534743,206,5.3891482792378946E-4,-7.525413958141101,2.9300135052945476E-2,-0.68783206459409019,1.2488430940534743,0.68783206459409019,{"$error":"#N/A"},{"$error":"#N/A"}]
[200,{"$f":"Lookup!A202","v":"02G"},{"$f":"Lookup!C202","v":"NHS West Lancashire"},{"$f":"Lookup!D202","v":"Greater Manchester Lancashire and South Cumbria"},{"$f":"Lookup!E202","v":"No"},{"$f":"Lookup!F202","v":6},10.189,40,2.6546846316325343,0.97632586482606043,0.49480777546938248,1.3091658524318883,40,7.3401319266378276E-4,-7.21624927314266,1.9041754204200539E-2,0.55449940411813681,1.3091658524318883,-0.55449940411813681,{"$error":"#N/A"},{"$error":"#N/A"}]
[201,{"$f":"Lookup!A203","v":"04V"},{"$f":"Lookup!C203","v":"NHS West Leicestershire"},{"$f":"Lookup!D203","v":"East Midlands"},{"$f":"Lookup!E203","v":"No"},{"$f":"Lookup!F203","v":9},9.4209999999999994,84,1.1073674783002465,0.10198555735787183,2.9211788455649111E-2,-0.31809400526953779,84,6.2205945486564396E-4,-7.3818526301783667,7.6239461289066921E-4,-0.11095260819977147,-0.31809400526953779,0.11095260819977147,{"$error":"#N/A"},{"$error":"#N/A"}]
[202,{"$f":"Lookup!A204","v":"08Y"},{"$f":"Lookup!C204","v":"NHS West London (K&C & Qpp)"},{"$f":"Lookup!D204","v":"London"},{"$f":"Lookup!E204","v":"No"},{"$f":"Lookup!F204","v":3},7.9720000000000004,152,0.84591626977475121,-0.1673348961714124,0.19380687135018629,-0.81933403634530033,152,4.376428741031813E-4,-7.7336695974323826,0.14396595737419685,-1.5246758141628554,-0.81933403634530033,1.5246758141628554,{"$error":"#N/A"},{"$error":"#N/A"}]
[203,{"$f":"Lookup!A205","v":"07J"},{"$f":"Lookup!C205","v":"NHS West Norfolk"},{"$f":"Lookup!D205","v":"East of England"},{"$f":"Lookup!E205","v":"No"},{"$f":"Lookup!F205","v":6},12.06,120,1.8930514388033786,0.63819004502407628,0.13343672775854956,0.67985156677572678,120,6.5370603656668142E-4,-7.332198873132433,4.8586135062358694E-4,8.8573495236867514E-2,0.67985156677572678,-8.8573495236867514E-2,{"$error":"#N/A"},{"$error":"#N/A"}]
[204,{"$f":"Lookup!A206","v":"07K"},{"$f":"Lookup!C206","v":"NHS West Suffolk"},{"$f":"Lookup!D206","v":"East of England"},{"$f":"Lookup!E206","v":"No"},{"$f":"Lookup!F206","v":9},10.54,121,1.5698295717461517,0.45096706043998147,3.1707834514503361E-2,0.33140549303248346,121,6.3764017687584034E-4,-7.3570985762516523,8.1649650120555165E-6,-1.1482191093394E-2,0.33140549303248346,1.1482191093394E-2,{"$error":"#N/A"},{"$error":"#N/A"}]
[205,{"$f":"Lookup!A207","v":"02H"},{"$f":"Lookup!C207","v":"NHS Wigan Borough"},{"$f":"Lookup!D207","v":"Greater Manchester Lancashire and South Cumbria"},{"$f":"Lookup!E207","v":"No"},{"$f":"Lookup!F207","v":3},9.8010000000000002,41,2.3178942028222078,0.8406591022979566,0.32235025954673147,1.0566725442764393,41,7.8538512400022826E-4,-7.1485506629661524,4.2308570681030409E-2,0.82653601726100356,1.0566725442764393,-0.82653601726100356,{"$error":"#N/A"},{"$error":"#N/A"}]
[206,{"$f":"Lookup!A208","v":"99N"},{"$f":"Lookup!C208","v":"NHS Wiltshire"},{"$f":"Lookup!D208","v":"South West"},{"$f":"Lookup!E208","v":"No"},{"$f":"Lookup!F208","v":9},10.273999999999999,209,1.4835514798931317,0.39443886179352128,1.4771665235866104E-2,0.22619923901461811,209,5.7700195346444482E-4,-7.4570877374251214,1.0577423432626689E-2,-0.41327349353974502,0.22619923901461811,0.41327349353974502,{"$error":"#N/A"},{"$error":"#N/A"}]
[207,{"$f":"Lookup!A209","v":"11C"},{"$f":"Lookup!C209","v":"NHS Windsor, Ascot and Maidenhead"},{"$f":"Lookup!D209","v":"Thames"},{"$f":"Lookup!E209","v":"No"},{"$f":"Lookup!F209","v":10},8.9779999999999998,186,0.97965564159987417,-2.0554155190666345E-2,8.6115412885354556E-2,-0.54615618369285479,186,5.3036892462396846E-4,-7.5414071997562058,3.5031135436421543E-2,-0.75209848410854019,-0.54615618369285479,0.75209848410854019,{"$error":"#N/A"},{"$error":"#N/A"}]
[208,{"$f":"Lookup!A210","v":"12F"},{"$f":"Lookup!C210","v":"NHS Wirral"},{"$f":"Lookup!D210","v":"Cheshire and Merseyside"},{"$f":"Lookup!E210","v":"No"},{"$f":"Lookup!F210","v":3},10.885,197,1.1811656012852219,0.16650174862580802,1.132061388707859E-2,-0.19802106876486966,197,7.7730792355807721E-4,-7.158896377902396,3.8159574501151448E-2,0.78496332847966255,-0.19802106876486966,-0.78496332847966255,{"$error":"#N/A"},{"$error":"#N/A"}]
[209,{"$f":"Lookup!A211","v":"11D"},{"$f":"Lookup!C211","v":"NHS Wokingham"},{"$f":"Lookup!D211","v":"Thames"},{"$f":"Lookup!E211","v":"No"},{"$f":"Lookup!F211","v":10},8.6489999999999991,187,1.6207804552130161,0.48290779571117903,4.41032229575688E-2,0.39085131279892371,187,5.1254701233575983E-4,-7.5756054413624732,4.9002155705676217E-2,-0.88951893923686109,0.39085131279892371,0.88951893923686109,{"$error":"#N/A"},{"$error":"#N/A"}]
[210,{"$f":"Lookup!A212","v":"06A"},{"$f":"Lookup!C212","v":"NHS Wolverhampton"},{"$f":"Lookup!D212","v":"West Midlands"},{"$f":"Lookup!E212","v":"No"},{"$f":"Lookup!F212","v":2},10.041,104,1.3021814751480776,0.26404091590779311,7.8485535115821342E-5,-1.6488123164768231E-2,104,7.194958566962735E-4,-7.2362400354228988,1.3924259728309917E-2,0.47416955317021442,-1.6488123164768231E-2,-0.47416955317021442,{"$error":"#N/A"},{"$error":"#N/A"}]
[211,{"$f":"Lookup!A213","v":"06D"},{"$f":"Lookup!C213","v":"NHS Wyre Forest"},{"$f":"Lookup!D213","v":"West Midlands"},{"$f":"Lookup!E213","v":"No"},{"$f":"Lookup!F213","v":5},10.959,105,1.0659440752493199,6.3860862124796941E-2,4.3697412228908182E-2,-0.38904897052731974,105,{"$f":"INDEX(INDIRECT($M$11),$M228)/INDEX(INDIRECT($M$12),$M228)","v":1.0227060408492393E-3},-6.8842799540425883,0.22086351251057604,1.8884678415775109,-0.38904897052731974,-1.8884678415775109,{"$error":"#N/A"},{"$error":"#N/A"}]

{"sheet":"Dashboard_charts_data","index":10,"n_rows":220,"n_cols":52,"rows_kept":220,"cut":false,"hidden":true,"merged":[[2,16,4,24],[3,34,5,45],[7,4,7,5],[7,6,7,7],[7,11,7,12]]}
["Rank change",null,{"$f":"SummaryData!H3","v":-1}]
["selected ccg",{"$f":"SummaryData!D10","v":"02N"},"menu selection numbers",null,2]
["Selected SCN",{"$f":"SummaryData!F10","v":"Yorkshire and Northern"},{"$f":"SummaryData!H10","v":6},null,null,null,null,null,null,null,null,null,null,null,null,null,"Chart 1 dashboard"]
["Cluster GP","Closest 10 CCGs",1,{"$f":"IF(C4=1,\"SCN group\",IF(C4=2,\"10 closest CCGs\",\"Deprivation decile\"))","v":"SCN group"},null,null,null,null,null,null,null,null,null,null,null,null,null,null,null,null,null,null,null,null,null,null,null,null,null,null,null,null,null,null,"Chart 2 dashboard"]
["selected year",{"$f":"GraphData!B1","v":"2012 - 2013"},{"$f":"DataCost!A2","v":1}]
["cost indicator",{"$f":"SummaryData!C5","v":1},"2012/13 cost numerator",{"$f":"VLOOKUP(B6,Lookup!$BY$3:$CC$15,2,0)","v":19},"2012/13 Cost Denominator",{"$f":"VLOOKUP($B$6,Lookup!$BY$3:$CC$15,3,0)","v":20},"2013/14 cost numerator",{"$f":"VLOOKUP($B$6,Lookup!$BY$3:$CC$15,4,0)","v":45},"2013/14 Cost Denominator",{"$f":"VLOOKUP($B$6,Lookup!$BY$3:$CC$15,5,0)","v":46},null,null,null,null,"Max factor",{"$f":"(AD14-AD15)/20","v":0.42427666328349811},null,null,null,"dashboard_indicator variation_value",null,null,null,null,null,null,null,null,null,null,null,null,null,null,null,null,null,null,null,null,null,null,null,null,null,null,null,null,null,{"$f":"C4","v":1}]
["Outcome indicator 2012/13",{"$f":"Summary_Outcomes!$F$12","v":1},"2012/13 outcome numerator",{"$f":"IF(C5=1,VLOOKUP($B$7,Lookup!$CD$3:$CI$17,3,0),VLOOKUP($B$7,Lookup!$CD$3:$GI$17,7,0))","v":3},"2012/13 outcome Denominator",{"$f":"IF(C5=1,VLOOKUP($B$7,Lookup!$CD$3:$GI$17,4,0),VLOOKUP($B$7,Lookup!$CD$3:$GI$17,8,0))","v":4},"2013/14 Outcome numerator",{"$f":"IF(C5=1,VLOOKUP($B$7,Lookup!$CD$3:$CL$17,5,0),VLOOKUP($B$7,Lookup!$CD$3:$CL$17,9,0))","v":33},"2013/14 Outcome Denominator",{"$f":"IF(C5=1,VLOOKUP($B$7,Lookup!$CD$3:$CM$17,6,0),VLOOKUP($B$7,Lookup!$CD$3:$CM$17,10,0))","v":34},null,{"$f":"IF(AND(C5=1,B7<=7),\"rate per 100,000\",\"percentile\")","v":"rate per 100,000"}]
["Outcome indictor 2013/14",{"$f":"IF(C5=2,Summary_Outcomes!$F$12+39,Summary_Outcomes!$F$12)","v":1},null,null,"Costs",null,"Outcomes",null,"2012/13 data","2013/14 data",null,null,null,null,null,null,null,null,null,null,null,null,null,null,null,null,null,"CCG rank value",{"$f":"VLOOKUP(B2,A9:H220,6,FALSE)","v":5},null,null,null,null,null,"Max factor",{"$f":"(AX14-AX15)/20","v":3.9829476711910368},null,null,null,null,null,null,null,null,null,null,null,"CCG rank value",{"$f":"VLOOKUP(B2,A9:H220,8,FALSE)","v":7}]
["CCG","SCN","10 most similar CCG","Decile","Value_1","Category_1","Value_2","Catergory_2",{"$f":"\"DataCost_\"&INDEX(Lookup_CostNamedRng,MATCH($B6,Lookup_CostNo,0))&\"\"","v":"DataCost_Ind9"},{"$f":"\"DataCost_\"&INDEX(Lookup_CostNamedRng,MATCH($B6,Lookup_CostNo,0))&\"\"","v":"DataCost_Ind9"},{"$f":"\"DataCost_\"&INDEX(Lookup_CostNamedRng,MATCH($B6,Lookup_CostNo,0))&\"_num\"","v":"DataCost_Ind9_num"},{"$f":"\"DataCost_\"&INDEX(Lookup_CostNamedRng,MATCH($B6,Lookup_CostNo,0))&\"_den\"","v":"DataCost_Ind9_den"},null,null,"Min","Max","Count of CCGS 1",null,"Ranking for graph 1",null,"Count of CCGS 2","Red marker for selected CCG","Amber marker for selected CCG","Green marker for selected CCG","selected max","selected min",null,null,"25% change used for CCG marker","Selected measure Max and Min","25% of selected boundary","Previous years cost for selected CCG",null,"Ranking for graph 2","Min","Max","Count of CCGS 1",null,"Ranking for graph 2",null,"Count of CCGS 2","Red marker for selected CCG","Amber marker for selected CCG","Green marker for selected CCG","selected max","selected min",null,null,"25% change used for CCG marker","Selected measure Max and Min","25% of selected boundary","Previous years Outcome for selected CCG"]
["00C",{"$f":"VLOOKUP($A10,SummaryData!$K$5:$M$215,3,0)","v":"Northern England"},{"$f":"VLOOKUP($A10,SummaryData!$K$5:$N$215,4,0)","v":"No"},{"$f":"VLOOKUP($A10,SummaryData!$K$5:$P$215,6,0)","v":4},{"$f":"VLOOKUP(A10,SummaryData!$K$4:$T$215,10,0)","v":1.5065095341095038},{"$f":"IF(E10=$AD$15,1,ROUNDUP(((E10-$AD$15)/($AD$14-$AD$15)*20),0))","v":4},{"$f":"IF(AND($C$5=1,$B$7<=7),VLOOKUP(A10,SummaryData!$K$5:$X$215,14,0)*100000,VLOOKUP(A10,SummaryData!$K$5:$X$215,14,0)*100 )","v":70.777215891023602},{"$f":"IF(G10=$AX$15,1,ROUNDUP(((G10-$AX$15)/($AX$14-$AX$15)*20),0))","v":10},{"$f":"VLOOKUP($A10,cost_data!$A$5:$BB$215,$D$6,0)/VLOOKUP($A10,cost_data!$A$5:$BB$215,$F$6,0)","v":1.5065095341095038},{"$f":"IFERROR(VLOOKUP($A10,cost_data!$A$5:$BB$215,$H$6,0)/VLOOKUP($A10,cost_data!$A$5:$BB$215,$J$6,0),0)","v":1.9725384483995256},{"$f":"IF(AND($C$5=1,$B$7<=7),VLOOKUP($A10,outcome_data!$A$1:$BJ$216,$D$7,0)/VLOOKUP($A10,outcome_data!$A$1:$BJ$216,$F$7,0)*100000,VLOOKUP($A10,outcome_data!$A$1:$BJ$216,$D$7,0)/VLOOKUP($A10,outcome_data!$A$1:$BJ$216,$F$7,0)*100)","v":70.777215891023602},{"$f":"IF(AND($C$5=1,$B$7<=7),VLOOKUP($A10,outcome_data!$A$1:$BJ$216,$H$7,0)/VLOOKUP($A10,outcome_data!$A$1:$BJ$216,$J$7,0)*100000,VLOOKUP($A10,outcome_data!$A$1:$BJ$216,$H$7,0)/VLOOKUP($A10,outcome_data!$A$1:$BJ$216,$J$7,0)*100)","v":{"$error":"#DIV/0!"}},null,1,{"$f":"AD$15+(AD$14-AD$15)/20*(N10-1)","v":0.15530311644983905},{"$f":"O10+$P$6","v":0.57957977973333719},{"$f":"COUNTIF($F$10:$F$220,N10)","v":18},null,1,null,{"$f":"Q10","v":18},{"$f":"IF(AND($AD$13>=$AD$22,$AC$8=$S10),7,-1)","v":-1},{"$f":"IF(AND($AD$13>=$AD$23,$AD$13<=$AD$22,$AC$8=$S10),7,-1)","v":-1},{"$f":"IF(AND($AD$13<=$AD$23,$AC$8=$S10),7,-1)","v":-1},{"$f":"IF($AD$11=S10,5,-1)","v":-1},{"$f":"IF($AD$10=S10,5,-1)","v":5},null,"Lower",{"$f":"AE23","v":2},{"$f":"IF(Dashboard_charts_data!C4=1,AE17,IF(Dashboard_charts_data!C4=2,AE19,AE21))","v":1},{"$f":"(((AD11-AD10)+1)*0.25)","v":1.25},null,null,1,{"$f":"AX$15+(AX$14-AX$15)/20*(AH10-1)","v":31.145905369237344},{"$f":"AI10+$AJ$8","v":35.128853040428382},{"$f":"COUNTIF($H$10:$H$220,AH10)","v":1},null,1,null,{"$f":"AK10","v":1},{"$f":"IF(AND($AX$13>=$AX$22,$AW$8=$AM10),7,-1)","v":-1},{"$f":"IF(AND($AX$13>=$AX$23,$AX$13<$AX$22,$AW$8=$AM10),7,-1)","v":-1},{"$f":"IF(AND($AX$13<=$AX$23,$AW$8=$AM10),7,-1)","v":-1},{"$f":"IF($AX$11=AM10,5,-1)","v":-1},{"$f":"IF($AX$10=AM10,5,-1)","v":-1},null,"Lower",{"$f":"AE23","v":2},{"$f":"IF(C4=1,AY17,IF(C4=2,AY19,AY21))","v":6},{"$f":"(((AX11-AX10)+1)*0.25)","v":3.75}]
["00D",{"$f":"VLOOKUP($A11,SummaryData!$K$5:$M$215,3,0)","v":"Northern England"},{"$f":"VLOOKUP($A11,SummaryData!$K$5:$N$215,4,0)","v":"No"},{"$f":"VLOOKUP($A11,SummaryData!$K$5:$P$215,6,0)","v":2},{"$f":"VLOOKUP(A11,SummaryData!$K$4:$T$215,10,0)","v":1.8847240019869902},{"$f":"IF(E11=$AD$15,1,ROUNDUP(((E11-$AD$15)/($AD$14-$AD$15)*20),0))","v":5},{"$f":"IF(AND($C$5=1,$B$7<=7),VLOOKUP(A11,SummaryData!$K$5:$X$215,14,0)*100000,VLOOKUP(A11,SummaryData!$K$5:$X$215,14,0)*100 )","v":87.989107555306077},{"$f":"IF(G11=$AX$15,1,ROUNDUP(((G11-$AX$15)/($AX$14-$AX$15)*20),0))","v":15},{"$f":"VLOOKUP($A11,cost_data!$A$5:$BB$215,$D$6,0)/VLOOKUP($A11,cost_data!$A$5:$BB$215,$F$6,0)","v":1.8847240019869902},{"$f":"IFERROR(VLOOKUP($A11,cost_data!$A$5:$BB$215,$H$6,0)/VLOOKUP($A11,cost_data!$A$5:$BB$215,$J$6,0),0)","v":1.8334370759855978},{"$f":"IF(AND($C$5=1,$B$7<=7),VLOOKUP($A11,outcome_data!$A$1:$BJ$216,$D$7,0)/VLOOKUP($A11,outcome_data!$A$1:$BJ$216,$F$7,0)*100000,VLOOKUP($A11,outcome_data!$A$1:$BJ$216,$D$7,0)/VLOOKUP($A11,outcome_data!$A$1:$BJ$216,$F$7,0)*100)","v":87.989107555306077},{"$f":"IF(AND($C$5=1,$B$7<=7),VLOOKUP($A11,outcome_data!$A$1:$BJ$216,$H$7,0)/VLOOKUP($A11,outcome_data!$A$1:$BJ$216,$J$7,0)*100000,VLOOKUP($A11,outcome_data!$A$1:$BJ$216,$H$7,0)/VLOOKUP($A11,outcome_data!$A$1:$BJ$216,$J$7,0)*100)","v":{"$error":"#DIV/0!"}},null,2,{"$f":"AD$15+(AD$14-AD$15)/20*(N11-1)","v":0.57957977973333719},1.0038564430168353,{"$f":"COUNTIF($F$10:$F$220,N11)","v":42},null,2,null,{"$f":"Q11","v":42},{"$f":"IF(AND($AD$13>=$AD$22,$AC$8=$S11),7,-1)","v":-1},{"$f":"IF(AND($AD$13>=$AD$23,$AD$13<=$AD$22,$AC$8=$S11),7,-1)","v":-1},{"$f":"IF(AND($AD$13<=$AD$23,$AC$8=$S11),7,-1)","v":-1},-1,-1,null,"Upper",{"$f":"AE22","v":4},{"$f":"IF(Dashboard_charts_data!C4=1,AE16,IF(Dashboard_charts_data!C4=2,AE18,AE20))","v":5},null,null,null,2,35.128853040428382,39.111800711619416,{"$f":"COUNTIF($H$10:$H$220,AH11)","v":5},null,2,null,{"$f":"AK11","v":5},{"$f":"IF(AND($AX$13>=$AX$22,$AW$8=$AM11),7,-1)","v":-1},{"$f":"IF(AND($AX$13>=$AX$23,$AX$13<$AX$22,$AW$8=$AM11),7,-1)","v":-1},{"$f":"IF(AND($AX$13<=$AX$23,$AW$8=$AM11),7,-1)","v":-1},{"$f":"IF($AX$11=AM11,5,-1)","v":-1},-1,null,"Upper",{"$f":"AE22","v":4},{"$f":"IF(C4=1,AY16,IF(C4=2,AY18,AY20))","v":20},null,{"$f":"VLOOKUP(B2,$A$10:$K$220,11,0)","v":58.650197502773523}]
["00F",{"$f":"VLOOKUP($A12,SummaryData!$K$5:$M$215,3,0)","v":"Northern England"},{"$f":"VLOOKUP($A12,SummaryData!$K$5:$N$215,4,0)","v":"No"},{"$f":"VLOOKUP($A12,SummaryData!$K$5:$P$215,6,0)","v":2},{"$f":"VLOOKUP(A12,SummaryData!$K$4:$T$215,10,0)","v":1.620404432984194},4,{"$f":"IF(AND($C$5=1,$B$7<=7),VLOOKUP(A12,SummaryData!$K$5:$X$215,14,0)*100000,VLOOKUP(A12,SummaryData!$K$5:$X$215,14,0)*100 )","v":83.196893982624644},14,{"$f":"VLOOKUP($A12,cost_data!$A$5:$BB$215,$D$6,0)/VLOOKUP($A12,cost_data!$A$5:$BB$215,$F$6,0)","v":1.620404432984194},{"$f":"IFERROR(VLOOKUP($A12,cost_data!$A$5:$BB$215,$H$6,0)/VLOOKUP($A12,cost_data!$A$5:$BB$215,$J$6,0),0)","v":1.6189173180646925},{"$f":"IF(AND($C$5=1,$B$7<=7),VLOOKUP($A12,outcome_data!$A$1:$BJ$216,$D$7,0)/VLOOKUP($A12,outcome_data!$A$1:$BJ$216,$F$7,0)*100000,VLOOKUP($A12,outcome_data!$A$1:$BJ$216,$D$7,0)/VLOOKUP($A12,outcome_data!$A$1:$BJ$216,$F$7,0)*100)","v":83.196893982624644},{"$f":"IF(AND($C$5=1,$B$7<=7),VLOOKUP($A12,outcome_data!$A$1:$BJ$216,$H$7,0)/VLOOKUP($A12,outcome_data!$A$1:$BJ$216,$J$7,0)*100000,VLOOKUP($A12,outcome_data!$A$1:$BJ$216,$H$7,0)/VLOOKUP($A12,outcome_data!$A$1:$BJ$216,$J$7,0)*100)","v":{"$error":"#DIV/0!"}},null,3,1.0038564430168353,1.4281331063003333,59,null,3,null,59,-1,-1,-1,-1,-1,null,null,null,null,null,null,null,3,39.111800711619416,43.094748382810451,9,null,3,null,9,{"$f":"IF(AND($AX$13>=$AX$22,$AW$8=$AM12),7,-1)","v":-1},-1,-1,-1,-1]
["00G",{"$f":"VLOOKUP($A13,SummaryData!$K$5:$M$215,3,0)","v":"Northern England"},{"$f":"VLOOKUP($A13,SummaryData!$K$5:$N$215,4,0)","v":"No"},{"$f":"VLOOKUP($A13,SummaryData!$K$5:$P$215,6,0)","v":4},{"$f":"VLOOKUP(A13,SummaryData!$K$4:$T$215,10,0)","v":0.35400857956038806},1,{"$f":"IF(AND($C$5=1,$B$7<=7),VLOOKUP(A13,SummaryData!$K$5:$X$215,14,0)*100000,VLOOKUP(A13,SummaryData!$K$5:$X$215,14,0)*100 )","v":44.153709251221024},4,{"$f":"VLOOKUP($A13,cost_data!$A$5:$BB$215,$D$6,0)/VLOOKUP($A13,cost_data!$A$5:$BB$215,$F$6,0)","v":0.35400857956038806},{"$f":"IFERROR(VLOOKUP($A13,cost_data!$A$5:$BB$215,$H$6,0)/VLOOKUP($A13,cost_data!$A$5:$BB$215,$J$6,0),0)","v":0.62216351154792615},{"$f":"IF(AND($C$5=1,$B$7<=7),VLOOKUP($A13,outcome_data!$A$1:$BJ$216,$D$7,0)/VLOOKUP($A13,outcome_data!$A$1:$BJ$216,$F$7,0)*100000,VLOOKUP($A13,outcome_data!$A$1:$BJ$216,$D$7,0)/VLOOKUP($A13,outcome_data!$A$1:$BJ$216,$F$7,0)*100)","v":44.153709251221024},{"$f":"IF(AND($C$5=1,$B$7<=7),VLOOKUP($A13,outcome_data!$A$1:$BJ$216,$H$7,0)/VLOOKUP($A13,outcome_data!$A$1:$BJ$216,$J$7,0)*100000,VLOOKUP($A13,outcome_data!$A$1:$BJ$216,$H$7,0)/VLOOKUP($A13,outcome_data!$A$1:$BJ$216,$J$7,0)*100)","v":{"$error":"#DIV/0!"}},null,4,1.4281331063003333,1.8524097695838315,47,null,4,null,47,-1,-1,-1,-1,-1,null,"selected value Cost",null,{"$f":"VLOOKUP(B2,$A$10:$E$220,5,0)","v":1.9946630105145944},{"$f":"IF(AD13=$AD$15,1,ROUNDUP(((AD13-AD$15)/(AD$14-AD$15)*20),0))","v":5},{"$f":"VLOOKUP(B2,$A$10:$I$220,9,0)","v":1.9946630105145944},null,4,43.094748382810451,47.077696054001485,16,null,4,null,16,-1,-1,-1,-1,-1,null,"selected outcome value ",null,{"$f":"VLOOKUP(B2,$A$10:$H$220,7,0)","v":58.650197502773523},{"$f":"IF(AX13=$AX$15,1,ROUNDUP(((AX13-AX$15)/(AX$14-AX$15)*20),0))","v":7}]
["00H",{"$f":"VLOOKUP($A14,SummaryData!$K$5:$M$215,3,0)","v":"Northern England"},{"$f":"VLOOKUP($A14,SummaryData!$K$5:$N$215,4,0)","v":"No"},{"$f":"VLOOKUP($A14,SummaryData!$K$5:$P$215,6,0)","v":2},{"$f":"VLOOKUP(A14,SummaryData!$K$4:$T$215,10,0)","v":0.73701254334954203},2,{"$f":"IF(AND($C$5=1,$B$7<=7),VLOOKUP(A14,SummaryData!$K$5:$X$215,14,0)*100000,VLOOKUP(A14,SummaryData!$K$5:$X$215,14,0)*100 )","v":75.092232851219435},12,{"$f":"VLOOKUP($A14,cost_data!$A$5:$BB$215,$D$6,0)/VLOOKUP($A14,cost_data!$A$5:$BB$215,$F$6,0)","v":0.73701254334954203},{"$f":"IFERROR(VLOOKUP($A14,cost_data!$A$5:$BB$215,$H$6,0)/VLOOKUP($A14,cost_data!$A$5:$BB$215,$J$6,0),0)","v":0.77788623505234988},{"$f":"IF(AND($C$5=1,$B$7<=7),VLOOKUP($A14,outcome_data!$A$1:$BJ$216,$D$7,0)/VLOOKUP($A14,outcome_data!$A$1:$BJ$216,$F$7,0)*100000,VLOOKUP($A14,outcome_data!$A$1:$BJ$216,$D$7,0)/VLOOKUP($A14,outcome_data!$A$1:$BJ$216,$F$7,0)*100)","v":75.092232851219435},{"$f":"IF(AND($C$5=1,$B$7<=7),VLOOKUP($A14,outcome_data!$A$1:$BJ$216,$H$7,0)/VLOOKUP($A14,outcome_data!$A$1:$BJ$216,$J$7,0)*100000,VLOOKUP($A14,outcome_data!$A$1:$BJ$216,$H$7,0)/VLOOKUP($A14,outcome_data!$A$1:$BJ$216,$J$7,0)*100)","v":{"$error":"#DIV/0!"}},null,5,1.8524097695838315,2.2766864328673297,27,null,5,null,27,7,-1,-1,5,-1,null,"Range","Max",{"$f":"MAX(E10:E220)","v":8.6408363821198009},20,null,null,5,47.077696054001493,51.060643725192527,18,null,5,null,18,-1,-1,-1,-1,-1,null,"Range","Max",{"$f":"MAX($G$10:$G$220)","v":110.80485879305807},{"$f":"IF(AX14=$AX$15,1,ROUNDUP(((AX$14-AX$15)/(AX$14-AX$15)*20),0))","v":20}]
["00J",{"$f":"VLOOKUP($A15,SummaryData!$K$5:$M$215,3,0)","v":"Northern England"},{"$f":"VLOOKUP($A15,SummaryData!$K$5:$N$215,4,0)","v":"No"},{"$f":"VLOOKUP($A15,SummaryData!$K$5:$P$215,6,0)","v":6},{"$f":"VLOOKUP(A15,SummaryData!$K$4:$T$215,10,0)","v":1.5908521742482922},4,{"$f":"IF(AND($C$5=1,$B$7<=7),VLOOKUP(A15,SummaryData!$K$5:$X$215,14,0)*100000,VLOOKUP(A15,SummaryData!$K$5:$X$215,14,0)*100 )","v":76.022832914845736},12,{"$f":"VLOOKUP($A15,cost_data!$A$5:$BB$215,$D$6,0)/VLOOKUP($A15,cost_data!$A$5:$BB$215,$F$6,0)","v":1.5908521742482922},{"$f":"IFERROR(VLOOKUP($A15,cost_data!$A$5:$BB$215,$H$6,0)/VLOOKUP($A15,cost_data!$A$5:$BB$215,$J$6,0),0)","v":1.547032032803042},{"$f":"IF(AND($C$5=1,$B$7<=7),VLOOKUP($A15,outcome_data!$A$1:$BJ$216,$D$7,0)/VLOOKUP($A15,outcome_data!$A$1:$BJ$216,$F$7,0)*100000,VLOOKUP($A15,outcome_data!$A$1:$BJ$216,$D$7,0)/VLOOKUP($A15,outcome_data!$A$1:$BJ$216,$F$7,0)*100)","v":76.022832914845736},{"$f":"IF(AND($C$5=1,$B$7<=7),VLOOKUP($A15,outcome_data!$A$1:$BJ$216,$H$7,0)/VLOOKUP($A15,outcome_data!$A$1:$BJ$216,$J$7,0)*100000,VLOOKUP($A15,outcome_data!$A$1:$BJ$216,$H$7,0)/VLOOKUP($A15,outcome_data!$A$1:$BJ$216,$J$7,0)*100)","v":{"$error":"#DIV/0!"}},null,6,2.2766864328673297,2.700963096150828,8,null,6,null,8,-1,-1,-1,-1,-1,null,"Range","Min",{"$f":"MIN(E10:E220)","v":0.15530311644983905},1,null,null,6,51.060643725192527,55.043591396383562,13,null,6,null,13,-1,-1,-1,-1,5,null,"Range","Min",{"$f":"MIN($G$10:$G$220)","v":31.145905369237344},{"$f":"IF(AX15=$AX$15,1,ROUNDUP(((AX15-AX$15)/(AX$14-AX$15)*20),0))","v":1}]
["00K",{"$f":"VLOOKUP($A16,SummaryData!$K$5:$M$215,3,0)","v":"Northern England"},{"$f":"VLOOKUP($A16,SummaryData!$K$5:$N$215,4,0)","v":"No"},{"$f":"VLOOKUP($A16,SummaryData!$K$5:$P$215,6,0)","v":3},{"$f":"VLOOKUP(A16,SummaryData!$K$4:$T$215,10,0)","v":0.99056948712399917},2,{"$f":"IF(AND($C$5=1,$B$7<=7),VLOOKUP(A16,SummaryData!$K$5:$X$215,14,0)*100000,VLOOKUP(A16,SummaryData!$K$5:$X$215,14,0)*100 )","v":68.363112156373191},10,{"$f":"VLOOKUP($A16,cost_data!$A$5:$BB$215,$D$6,0)/VLOOKUP($A16,cost_data!$A$5:$BB$215,$F$6,0)","v":0.99056948712399917},{"$f":"IFERROR(VLOOKUP($A16,cost_data!$A$5:$BB$215,$H$6,0)/VLOOKUP($A16,cost_data!$A$5:$BB$215,$J$6,0),0)","v":0.87823469832791645},{"$f":"IF(AND($C$5=1,$B$7<=7),VLOOKUP($A16,outcome_data!$A$1:$BJ$216,$D$7,0)/VLOOKUP($A16,outcome_data!$A$1:$BJ$216,$F$7,0)*100000,VLOOKUP($A16,outcome_data!$A$1:$BJ$216,$D$7,0)/VLOOKUP($A16,outcome_data!$A$1:$BJ$216,$F$7,0)*100)","v":68.363112156373191},{"$f":"IF(AND($C$5=1,$B$7<=7),VLOOKUP($A16,outcome_data!$A$1:$BJ$216,$H$7,0)/VLOOKUP($A16,outcome_data!$A$1:$BJ$216,$J$7,0)*100000,VLOOKUP($A16,outcome_data!$A$1:$BJ$216,$H$7,0)/VLOOKUP($A16,outcome_data!$A$1:$BJ$216,$J$7,0)*100)","v":{"$error":"#DIV/0!"}},null,7,2.7009630961508275,3.1252397594343257,6,null,7,null,6,-1,-1,-1,-1,-1,null,"SCN","Max",{"$f":"MAX(IF(Dashboard_SCN_data=B3,Dashboard_Value1_Costs))","v":1.9946630105145944},5,null,null,7,55.043591396383562,59.026539067574596,17,null,7,null,17,-1,-1,7,-1,{"$f":"IF($AX$10=AM16,5,-1)","v":-1},null,"SCN","Max",{"$f":"MAX(IF(Dashboard_SCN_data=B3,Dashboard_Value2_Outcomes))","v":107.94738985105154},{"$f":"IF(AX16=$AX$15,1,ROUNDUP(((AX16-$AX$15)/($AX$14-$AX$15)*20),0))","v":20}]
["00L",{"$f":"VLOOKUP($A17,SummaryData!$K$5:$M$215,3,0)","v":"Northern England"},{"$f":"VLOOKUP($A17,SummaryData!$K$5:$N$215,4,0)","v":"No"},{"$f":"VLOOKUP($A17,SummaryData!$K$5:$P$215,6,0)","v":6},{"$f":"VLOOKUP(A17,SummaryData!$K$4:$T$215,10,0)","v":1.5466430831346616},4,{"$f":"IF(AND($C$5=1,$B$7<=7),VLOOKUP(A17,SummaryData!$K$5:$X$215,14,0)*100000,VLOOKUP(A17,SummaryData!$K$5:$X$215,14,0)*100 )","v":71.459736904487869},11,{"$f":"VLOOKUP($A17,cost_data!$A$5:$BB$215,$D$6,0)/VLOOKUP($A17,cost_data!$A$5:$BB$215,$F$6,0)","v":1.5466430831346616},{"$f":"IFERROR(VLOOKUP($A17,cost_data!$A$5:$BB$215,$H$6,0)/VLOOKUP($A17,cost_data!$A$5:$BB$215,$J$6,0),0)","v":1.5066377743758539},{"$f":"IF(AND($C$5=1,$B$7<=7),VLOOKUP($A17,outcome_data!$A$1:$BJ$216,$D$7,0)/VLOOKUP($A17,outcome_data!$A$1:$BJ$216,$F$7,0)*100000,VLOOKUP($A17,outcome_data!$A$1:$BJ$216,$D$7,0)/VLOOKUP($A17,outcome_data!$A$1:$BJ$216,$F$7,0)*100)","v":71.459736904487869},{"$f":"IF(AND($C$5=1,$B$7<=7),VLOOKUP($A17,outcome_data!$A$1:$BJ$216,$H$7,0)/VLOOKUP($A17,outcome_data!$A$1:$BJ$216,$J$7,0)*100000,VLOOKUP($A17,outcome_data!$A$1:$BJ$216,$H$7,0)/VLOOKUP($A17,outcome_data!$A$1:$BJ$216,$J$7,0)*100)","v":{"$error":"#DIV/0!"}},null,8,3.1252397594343257,3.549516422717824,2,null,8,null,2,-1,-1,-1,-1,-1,null,"SCN","Min",{"$f":"MIN(IF(Dashboard_SCN_data=B3,Dashboard_Value1_Costs))","v":0.15530311644983905},1,null,null,8,59.026539067574603,63.009486738765638,13,null,8,null,13,-1,-1,-1,-1,-1,null,"SCN","Min",{"$f":"MIN(IF(Dashboard_SCN_data=B3,Dashboard_Value2_Outcomes))","v":52.472293039205816},6]
["00M",{"$f":"VLOOKUP($A18,SummaryData!$K$5:$M$215,3,0)","v":"Northern England"},{"$f":"VLOOKUP($A18,SummaryData!$K$5:$N$215,4,0)","v":"No"},{"$f":"VLOOKUP($A18,SummaryData!$K$5:$P$215,6,0)","v":2},{"$f":"VLOOKUP(A18,SummaryData!$K$4:$T$215,10,0)","v":1.4050403708300068},3,{"$f":"IF(AND($C$5=1,$B$7<=7),VLOOKUP(A18,SummaryData!$K$5:$X$215,14,0)*100000,VLOOKUP(A18,SummaryData!$K$5:$X$215,14,0)*100 )","v":75.959830654259889},12,{"$f":"VLOOKUP($A18,cost_data!$A$5:$BB$215,$D$6,0)/VLOOKUP($A18,cost_data!$A$5:$BB$215,$F$6,0)","v":1.4050403708300068},{"$f":"IFERROR(VLOOKUP($A18,cost_data!$A$5:$BB$215,$H$6,0)/VLOOKUP($A18,cost_data!$A$5:$BB$215,$J$6,0),0)","v":1.3785953231286643},{"$f":"IF(AND($C$5=1,$B$7<=7),VLOOKUP($A18,outcome_data!$A$1:$BJ$216,$D$7,0)/VLOOKUP($A18,outcome_data!$A$1:$BJ$216,$F$7,0)*100000,VLOOKUP($A18,outcome_data!$A$1:$BJ$216,$D$7,0)/VLOOKUP($A18,outcome_data!$A$1:$BJ$216,$F$7,0)*100)","v":75.959830654259889},{"$f":"IF(AND($C$5=1,$B$7<=7),VLOOKUP($A18,outcome_data!$A$1:$BJ$216,$H$7,0)/VLOOKUP($A18,outcome_data!$A$1:$BJ$216,$J$7,0)*100000,VLOOKUP($A18,outcome_data!$A$1:$BJ$216,$H$7,0)/VLOOKUP($A18,outcome_data!$A$1:$BJ$216,$J$7,0)*100)","v":{"$error":"#DIV/0!"}},null,9,3.549516422717824,3.9737930860013222,0,null,9,null,0,-1,-1,-1,-1,-1,null,"Closest 10","Max",{"$f":"MAX(IF(Dashboard_10similar_code=$B$4,Dashboard_Value1_Costs))","v":2.0267409502297502},5,null,null,9,63.009486738765638,66.992434409956672,18,null,9,null,18,-1,-1,-1,-1,-1,null,"Closest 10","Max",{"$f":"MAX(IF(Dashboard_10similar_code=$B$4,Dashboard_Value2_Outcomes))","v":84.437860971855656},14]
["00N",{"$f":"VLOOKUP($A19,SummaryData!$K$5:$M$215,3,0)","v":"Northern England"},{"$f":"VLOOKUP($A19,SummaryData!$K$5:$N$215,4,0)","v":"No"},{"$f":"VLOOKUP($A19,SummaryData!$K$5:$P$215,6,0)","v":3},{"$f":"VLOOKUP(A19,SummaryData!$K$4:$T$215,10,0)","v":1.0452393484367921},3,{"$f":"IF(AND($C$5=1,$B$7<=7),VLOOKUP(A19,SummaryData!$K$5:$X$215,14,0)*100000,VLOOKUP(A19,SummaryData!$K$5:$X$215,14,0)*100 )","v":86.803702675973156},14,{"$f":"VLOOKUP($A19,cost_data!$A$5:$BB$215,$D$6,0)/VLOOKUP($A19,cost_data!$A$5:$BB$215,$F$6,0)","v":1.0452393484367921},{"$f":"IFERROR(VLOOKUP($A19,cost_data!$A$5:$BB$215,$H$6,0)/VLOOKUP($A19,cost_data!$A$5:$BB$215,$J$6,0),0)","v":1.16116467305944},{"$f":"IF(AND($C$5=1,$B$7<=7),VLOOKUP($A19,outcome_data!$A$1:$BJ$216,$D$7,0)/VLOOKUP($A19,outcome_data!$A$1:$BJ$216,$F$7,0)*100000,VLOOKUP($A19,outcome_data!$A$1:$BJ$216,$D$7,0)/VLOOKUP($A19,outcome_data!$A$1:$BJ$216,$F$7,0)*100)","v":86.803702675973156},{"$f":"IF(AND($C$5=1,$B$7<=7),VLOOKUP($A19,outcome_data!$A$1:$BJ$216,$H$7,0)/VLOOKUP($A19,outcome_data!$A$1:$BJ$216,$J$7,0)*100000,VLOOKUP($A19,outcome_data!$A$1:$BJ$216,$H$7,0)/VLOOKUP($A19,outcome_data!$A$1:$BJ$216,$J$7,0)*100)","v":{"$error":"#DIV/0!"}},null,10,3.9737930860013222,4.3980697492848204,0,null,10,null,0,-1,-1,-1,-1,-1,null,"Closest 10","Min",{"$f":"MIN(IF(Dashboard_10similar_code=$B$4,Dashboard_Value1_Costs))","v":0.99734394550708949},2,null,null,10,66.992434409956672,70.975382081147714,21,null,10,null,21,-1,-1,-1,-1,-1,null,"Closest 10","Min",{"$f":"MIN(IF(Dashboard_10similar_code=$B$4,Dashboard_Value2_Outcomes))","v":47.200734233643637},5]
["00P",{"$f":"VLOOKUP($A20,SummaryData!$K$5:$M$215,3,0)","v":"Northern England"},{"$f":"VLOOKUP($A20,SummaryData!$K$5:$N$215,4,0)","v":"No"},{"$f":"VLOOKUP($A20,SummaryData!$K$5:$P$215,6,0)","v":3},{"$f":"VLOOKUP(A20,SummaryData!$K$4:$T$215,10,0)","v":1.0260326454862456},3,{"$f":"IF(AND($C$5=1,$B$7<=7),VLOOKUP(A20,SummaryData!$K$5:$X$215,14,0)*100000,VLOOKUP(A20,SummaryData!$K$5:$X$215,14,0)*100 )","v":78.576986187398404},12,{"$f":"VLOOKUP($A20,cost_data!$A$5:$BB$215,$D$6,0)/VLOOKUP($A20,cost_data!$A$5:$BB$215,$F$6,0)","v":1.0260326454862456},{"$f":"IFERROR(VLOOKUP($A20,cost_data!$A$5:$BB$215,$H$6,0)/VLOOKUP($A20,cost_data!$A$5:$BB$215,$J$6,0),0)","v":1.2202633119072011},{"$f":"IF(AND($C$5=1,$B$7<=7),VLOOKUP($A20,outcome_data!$A$1:$BJ$216,$D$7,0)/VLOOKUP($A20,outcome_data!$A$1:$BJ$216,$F$7,0)*100000,VLOOKUP($A20,outcome_data!$A$1:$BJ$216,$D$7,0)/VLOOKUP($A20,outcome_data!$A$1:$BJ$216,$F$7,0)*100)","v":78.576986187398404},{"$f":"IF(AND($C$5=1,$B$7<=7),VLOOKUP($A20,outcome_data!$A$1:$BJ$216,$H$7,0)/VLOOKUP($A20,outcome_data!$A$1:$BJ$216,$J$7,0)*100000,VLOOKUP($A20,outcome_data!$A$1:$BJ$216,$H$7,0)/VLOOKUP($A20,outcome_data!$A$1:$BJ$216,$J$7,0)*100)","v":{"$error":"#DIV/0!"}},null,11,4.3980697492848204,4.8223464125683186,0,null,11,null,0,-1,-1,-1,-1,-1,null,"Decile","Max",{"$f":"MAX(IF(Dashbaord_Decile_code=$C$3,Dashboard_Value1_Costs))","v":6.5883909115889185},16,null,null,11,70.975382081147714,74.958329752338756,18,null,11,null,18,-1,-1,-1,-1,-1,null,"Decile","Max",{"$f":"MAX(IF(Dashbaord_Decile_code=$C$3,Dashboard_Value2_Outcomes))","v":82.494772608468367},13]
["00Q",{"$f":"VLOOKUP($A21,SummaryData!$K$5:$M$215,3,0)","v":"Greater Manchester Lancashire and South Cumbria"},{"$f":"VLOOKUP($A21,SummaryData!$K$5:$N$215,4,0)","v":"No"},{"$f":"VLOOKUP($A21,SummaryData!$K$5:$P$215,6,0)","v":1},{"$f":"VLOOKUP(A21,SummaryData!$K$4:$T$215,10,0)","v":1.4032266063599401},3,{"$f":"IF(AND($C$5=1,$B$7<=7),VLOOKUP(A21,SummaryData!$K$5:$X$215,14,0)*100000,VLOOKUP(A21,SummaryData!$K$5:$X$215,14,0)*100 )","v":76.682296446215545},12,{"$f":"VLOOKUP($A21,cost_data!$A$5:$BB$215,$D$6,0)/VLOOKUP($A21,cost_data!$A$5:$BB$215,$F$6,0)","v":1.4032266063599401},{"$f":"IFERROR(VLOOKUP($A21,cost_data!$A$5:$BB$215,$H$6,0)/VLOOKUP($A21,cost_data!$A$5:$BB$215,$J$6,0),0)","v":1.3989485545012443},{"$f":"IF(AND($C$5=1,$B$7<=7),VLOOKUP($A21,outcome_data!$A$1:$BJ$216,$D$7,0)/VLOOKUP($A21,outcome_data!$A$1:$BJ$216,$F$7,0)*100000,VLOOKUP($A21,outcome_data!$A$1:$BJ$216,$D$7,0)/VLOOKUP($A21,outcome_data!$A$1:$BJ$216,$F$7,0)*100)","v":76.682296446215545},{"$f":"IF(AND($C$5=1,$B$7<=7),VLOOKUP($A21,outcome_data!$A$1:$BJ$216,$H$7,0)/VLOOKUP($A21,outcome_data!$A$1:$BJ$216,$J$7,0)*100000,VLOOKUP($A21,outcome_data!$A$1:$BJ$216,$H$7,0)/VLOOKUP($A21,outcome_data!$A$1:$BJ$216,$J$7,0)*100)","v":{"$error":"#DIV/0!"}},null,12,4.8223464125683186,5.2466230758518169,0,null,12,null,{"$f":"Q21","v":0},-1,-1,-1,-1,-1,null,"Decile","Min",{"$f":"MIN(IF(Dashbaord_Decile_code=$C$3,Dashboard_Value1_Costs))","v":0.63433071779115424},2,null,null,12,74.958329752338742,78.941277423529783,22,null,12,null,{"$f":"AK21","v":22},-1,-1,-1,-1,-1,null,"Decile","Min",{"$f":"MIN(IF(Dashbaord_Decile_code=$C$3,Dashboard_Value2_Outcomes))","v":49.183807655071369},5]
["00R",{"$f":"VLOOKUP($A22,SummaryData!$K$5:$M$215,3,0)","v":"Greater Manchester Lancashire and South Cumbria"},{"$f":"VLOOKUP($A22,SummaryData!$K$5:$N$215,4,0)","v":"No"},{"$f":"VLOOKUP($A22,SummaryData!$K$5:$P$215,6,0)","v":1},{"$f":"VLOOKUP(A22,SummaryData!$K$4:$T$215,10,0)","v":0.84435549779490915},2,{"$f":"IF(AND($C$5=1,$B$7<=7),VLOOKUP(A22,SummaryData!$K$5:$X$215,14,0)*100000,VLOOKUP(A22,SummaryData!$K$5:$X$215,14,0)*100 )","v":105.87409911346386},19,{"$f":"VLOOKUP($A22,cost_data!$A$5:$BB$215,$D$6,0)/VLOOKUP($A22,cost_data!$A$5:$BB$215,$F$6,0)","v":0.84435549779490915},{"$f":"IFERROR(VLOOKUP($A22,cost_data!$A$5:$BB$215,$H$6,0)/VLOOKUP($A22,cost_data!$A$5:$BB$215,$J$6,0),0)","v":0.74074966671110221},{"$f":"IF(AND($C$5=1,$B$7<=7),VLOOKUP($A22,outcome_data!$A$1:$BJ$216,$D$7,0)/VLOOKUP($A22,outcome_data!$A$1:$BJ$216,$F$7,0)*100000,VLOOKUP($A22,outcome_data!$A$1:$BJ$216,$D$7,0)/VLOOKUP($A22,outcome_data!$A$1:$BJ$216,$F$7,0)*100)","v":105.87409911346386},{"$f":"IF(AND($C$5=1,$B$7<=7),VLOOKUP($A22,outcome_data!$A$1:$BJ$216,$H$7,0)/VLOOKUP($A22,outcome_data!$A$1:$BJ$216,$J$7,0)*100000,VLOOKUP($A22,outcome_data!$A$1:$BJ$216,$H$7,0)/VLOOKUP($A22,outcome_data!$A$1:$BJ$216,$J$7,0)*100)","v":{"$error":"#DIV/0!"}},null,13,5.246623075851816,5.6708997391353142,0,null,13,null,{"$f":"Q22","v":0},-1,-1,-1,-1,-1,null,null,"upper quartile",{"$f":"IF($C$4=1,SummaryData!F18,IF($C$4=2,SummaryData!G18,SummaryData!H18))","v":1.4859836548863374},{"$f":"IF(AD22=$AD$15,20,ROUNDUP(((AD22-AD$15)/(AD$14-AD$15)*20),0))","v":4},null,null,13,78.941277423529783,82.924225094720825,15,null,13,null,{"$f":"AK22","v":15},-1,-1,-1,-1,-1,{"$f":"C1","v":-1},null,"upper quartile",{"$f":"IF($C$4=1,SummaryData!F47,IF($C$4=2,SummaryData!G47,SummaryData!H47))*AW26","v":79.761387007700492},{"$f":"IF(AX22=$AX$14,20,ROUNDUP(((AX22-AX$15)/(AX$14-AX$15)*20),0))","v":13}]
["00T",{"$f":"VLOOKUP($A23,SummaryData!$K$5:$M$215,3,0)","v":"Greater Manchester Lancashire and South Cumbria"},{"$f":"VLOOKUP($A23,SummaryData!$K$5:$N$215,4,0)","v":"No"},{"$f":"VLOOKUP($A23,SummaryData!$K$5:$P$215,6,0)","v":2},{"$f":"VLOOKUP(A23,SummaryData!$K$4:$T$215,10,0)","v":2.6738222038106501},6,{"$f":"IF(AND($C$5=1,$B$7<=7),VLOOKUP(A23,SummaryData!$K$5:$X$215,14,0)*100000,VLOOKUP(A23,SummaryData!$K$5:$X$215,14,0)*100 )","v":75.598578746719568},12,{"$f":"VLOOKUP($A23,cost_data!$A$5:$BB$215,$D$6,0)/VLOOKUP($A23,cost_data!$A$5:$BB$215,$F$6,0)","v":2.6738222038106501},{"$f":"IFERROR(VLOOKUP($A23,cost_data!$A$5:$BB$215,$H$6,0)/VLOOKUP($A23,cost_data!$A$5:$BB$215,$J$6,0),0)","v":3.16783211500245},{"$f":"IF(AND($C$5=1,$B$7<=7),VLOOKUP($A23,outcome_data!$A$1:$BJ$216,$D$7,0)/VLOOKUP($A23,outcome_data!$A$1:$BJ$216,$F$7,0)*100000,VLOOKUP($A23,outcome_data!$A$1:$BJ$216,$D$7,0)/VLOOKUP($A23,outcome_data!$A$1:$BJ$216,$F$7,0)*100)","v":75.598578746719568},{"$f":"IF(AND($C$5=1,$B$7<=7),VLOOKUP($A23,outcome_data!$A$1:$BJ$216,$H$7,0)/VLOOKUP($A23,outcome_data!$A$1:$BJ$216,$J$7,0)*100000,VLOOKUP($A23,outcome_data!$A$1:$BJ$216,$H$7,0)/VLOOKUP($A23,outcome_data!$A$1:$BJ$216,$J$7,0)*100)","v":{"$error":"#DIV/0!"}},null,14,5.6708997391353142,6.0951764024188124,0,null,14,null,0,-1,-1,-1,-1,-1,null,null,"lower quartile",{"$f":"IF($C$4=1,SummaryData!F16,IF($C$4=2,SummaryData!G16,SummaryData!H16))","v":0.82007105711794881},{"$f":"IF(AD23=$AD$15,1,ROUNDUP(((AD23-AD$15)/(AD$14-AD$15)*20),0))","v":2},null,null,14,82.924225094720825,86.907172765911866,10,null,14,null,10,-1,-1,-1,{"$f":"IF($AX$11=AM23,5,-1)","v":-1},-1,null,null,"lower quartile",{"$f":"IF($C$4=1,SummaryData!F45,IF($C$4=2,SummaryData!G45,SummaryData!H45))*AW26","v":62.589309872622032},{"$f":"IF(AX23=$AX$15,1,ROUNDUP(((AX23-AX$15)/(AX$14-AX$15)*20),0))","v":8}]
["00V",{"$f":"VLOOKUP($A24,SummaryData!$K$5:$M$215,3,0)","v":"Greater Manchester Lancashire and South Cumbria"},{"$f":"VLOOKUP($A24,SummaryData!$K$5:$N$215,4,0)","v":"No"},{"$f":"VLOOKUP($A24,SummaryData!$K$5:$P$215,6,0)","v":5},{"$f":"VLOOKUP(A24,SummaryData!$K$4:$T$215,10,0)","v":1.4665581983851492},4,{"$f":"IF(AND($C$5=1,$B$7<=7),VLOOKUP(A24,SummaryData!$K$5:$X$215,14,0)*100000,VLOOKUP(A24,SummaryData!$K$5:$X$215,14,0)*100 )","v":71.420330621192051},11,{"$f":"VLOOKUP($A24,cost_data!$A$5:$BB$215,$D$6,0)/VLOOKUP($A24,cost_data!$A$5:$BB$215,$F$6,0)","v":1.4665581983851492},{"$f":"IFERROR(VLOOKUP($A24,cost_data!$A$5:$BB$215,$H$6,0)/VLOOKUP($A24,cost_data!$A$5:$BB$215,$J$6,0),0)","v":1.2403421967260551},{"$f":"IF(AND($C$5=1,$B$7<=7),VLOOKUP($A24,outcome_data!$A$1:$BJ$216,$D$7,0)/VLOOKUP($A24,outcome_data!$A$1:$BJ$216,$F$7,0)*100000,VLOOKUP($A24,outcome_data!$A$1:$BJ$216,$D$7,0)/VLOOKUP($A24,outcome_data!$A$1:$BJ$216,$F$7,0)*100)","v":71.420330621192051},{"$f":"IF(AND($C$5=1,$B$7<=7),VLOOKUP($A24,outcome_data!$A$1:$BJ$216,$H$7,0)/VLOOKUP($A24,outcome_data!$A$1:$BJ$216,$J$7,0)*100000,VLOOKUP($A24,outcome_data!$A$1:$BJ$216,$H$7,0)/VLOOKUP($A24,outcome_data!$A$1:$BJ$216,$J$7,0)*100)","v":{"$error":"#DIV/0!"}},null,15,6.0951764024188124,6.5194530657023106,0,null,15,null,0,-1,-1,-1,-1,-1,null,null,"2012/13 value",null,{"$f":"VLOOKUP(B2,A10:M220,9,0)/VLOOKUP(B2,A10:M220,10,0)","v":1.1333024024281264},null,null,15,86.907172765911852,90.890120437102894,7,null,15,null,7,-1,-1,-1,-1,-1]
["00W",{"$f":"VLOOKUP($A25,SummaryData!$K$5:$M$215,3,0)","v":"Greater Manchester Lancashire and South Cumbria"},{"$f":"VLOOKUP($A25,SummaryData!$K$5:$N$215,4,0)","v":"No"},{"$f":"VLOOKUP($A25,SummaryData!$K$5:$P$215,6,0)","v":1},{"$f":"VLOOKUP(A25,SummaryData!$K$4:$T$215,10,0)","v":0.45104078694018107},1,{"$f":"IF(AND($C$5=1,$B$7<=7),VLOOKUP(A25,SummaryData!$K$5:$X$215,14,0)*100000,VLOOKUP(A25,SummaryData!$K$5:$X$215,14,0)*100 )","v":46.26327659656495},4,{"$f":"VLOOKUP($A25,cost_data!$A$5:$BB$215,$D$6,0)/VLOOKUP($A25,cost_data!$A$5:$BB$215,$F$6,0)","v":0.45104078694018107},{"$f":"IFERROR(VLOOKUP($A25,cost_data!$A$5:$BB$215,$H$6,0)/VLOOKUP($A25,cost_data!$A$5:$BB$215,$J$6,0),0)","v":0.43853365888021284},{"$f":"IF(AND($C$5=1,$B$7<=7),VLOOKUP($A25,outcome_data!$A$1:$BJ$216,$D$7,0)/VLOOKUP($A25,outcome_data!$A$1:$BJ$216,$F$7,0)*100000,VLOOKUP($A25,outcome_data!$A$1:$BJ$216,$D$7,0)/VLOOKUP($A25,outcome_data!$A$1:$BJ$216,$F$7,0)*100)","v":46.26327659656495},{"$f":"IF(AND($C$5=1,$B$7<=7),VLOOKUP($A25,outcome_data!$A$1:$BJ$216,$H$7,0)/VLOOKUP($A25,outcome_data!$A$1:$BJ$216,$J$7,0)*100000,VLOOKUP($A25,outcome_data!$A$1:$BJ$216,$H$7,0)/VLOOKUP($A25,outcome_data!$A$1:$BJ$216,$J$7,0)*100)","v":{"$error":"#DIV/0!"}},null,16,6.5194530657023106,6.9437297289858089,1,null,16,null,1,-1,-1,-1,-1,-1,null,null,"2013/14 value",null,{"$f":"VLOOKUP(B2,A10:M221,11,0)/VLOOKUP(B2,A10:M221,12,0)","v":{"$error":"#DIV/0!"}},null,null,16,90.890120437102894,94.873068108293936,2,null,16,null,2,-1,-1,-1,-1,-1]
["00X",{"$f":"VLOOKUP($A26,SummaryData!$K$5:$M$215,3,0)","v":"Greater Manchester Lancashire and South Cumbria"},{"$f":"VLOOKUP($A26,SummaryData!$K$5:$N$215,4,0)","v":"No"},{"$f":"VLOOKUP($A26,SummaryData!$K$5:$P$215,6,0)","v":6},{"$f":"VLOOKUP(A26,SummaryData!$K$4:$T$215,10,0)","v":1.8201959370131953},4,{"$f":"IF(AND($C$5=1,$B$7<=7),VLOOKUP(A26,SummaryData!$K$5:$X$215,14,0)*100000,VLOOKUP(A26,SummaryData!$K$5:$X$215,14,0)*100 )","v":67.489752702685976},10,{"$f":"VLOOKUP($A26,cost_data!$A$5:$BB$215,$D$6,0)/VLOOKUP($A26,cost_data!$A$5:$BB$215,$F$6,0)","v":1.8201959370131953},{"$f":"IFERROR(VLOOKUP($A26,cost_data!$A$5:$BB$215,$H$6,0)/VLOOKUP($A26,cost_data!$A$5:$BB$215,$J$6,0),0)","v":1.6145067851547876},{"$f":"IF(AND($C$5=1,$B$7<=7),VLOOKUP($A26,outcome_data!$A$1:$BJ$216,$D$7,0)/VLOOKUP($A26,outcome_data!$A$1:$BJ$216,$F$7,0)*100000,VLOOKUP($A26,outcome_data!$A$1:$BJ$216,$D$7,0)/VLOOKUP($A26,outcome_data!$A$1:$BJ$216,$F$7,0)*100)","v":67.489752702685976},{"$f":"IF(AND($C$5=1,$B$7<=7),VLOOKUP($A26,outcome_data!$A$1:$BJ$216,$H$7,0)/VLOOKUP($A26,outcome_data!$A$1:$BJ$216,$J$7,0)*100000,VLOOKUP($A26,outcome_data!$A$1:$BJ$216,$H$7,0)/VLOOKUP($A26,outcome_data!$A$1:$BJ$216,$J$7,0)*100)","v":{"$error":"#DIV/0!"}},null,17,6.9437297289858089,7.3680063922693071,0,null,17,null,0,-1,-1,-1,-1,-1,null,null,"difference",null,{"$f":"AE24-AE25","v":{"$error":"#DIV/0!"}},null,null,17,94.873068108293936,98.856015779484977,0,null,17,null,0,-1,-1,-1,-1,-1,null,null,{"$f":"IF(AU22=1,100,100000)","v":100000}]
["00Y",{"$f":"VLOOKUP($A27,SummaryData!$K$5:$M$215,3,0)","v":"Greater Manchester Lancashire and South Cumbria"},{"$f":"VLOOKUP($A27,SummaryData!$K$5:$N$215,4,0)","v":"No"},{"$f":"VLOOKUP($A27,SummaryData!$K$5:$P$215,6,0)","v":2},{"$f":"VLOOKUP(A27,SummaryData!$K$4:$T$215,10,0)","v":1.1092014635492762},3,{"$f":"IF(AND($C$5=1,$B$7<=7),VLOOKUP(A27,SummaryData!$K$5:$X$215,14,0)*100000,VLOOKUP(A27,SummaryData!$K$5:$X$215,14,0)*100 )","v":77.431230006150258},12,{"$f":"VLOOKUP($A27,cost_data!$A$5:$BB$215,$D$6,0)/VLOOKUP($A27,cost_data!$A$5:$BB$215,$F$6,0)","v":1.1092014635492762},{"$f":"IFERROR(VLOOKUP($A27,cost_data!$A$5:$BB$215,$H$6,0)/VLOOKUP($A27,cost_data!$A$5:$BB$215,$J$6,0),0)","v":1.0388819643524092},{"$f":"IF(AND($C$5=1,$B$7<=7),VLOOKUP($A27,outcome_data!$A$1:$BJ$216,$D$7,0)/VLOOKUP($A27,outcome_data!$A$1:$BJ$216,$F$7,0)*100000,VLOOKUP($A27,outcome_data!$A$1:$BJ$216,$D$7,0)/VLOOKUP($A27,outcome_data!$A$1:$BJ$216,$F$7,0)*100)","v":77.431230006150258},{"$f":"IF(AND($C$5=1,$B$7<=7),VLOOKUP($A27,outcome_data!$A$1:$BJ$216,$H$7,0)/VLOOKUP($A27,outcome_data!$A$1:$BJ$216,$J$7,0)*100000,VLOOKUP($A27,outcome_data!$A$1:$BJ$216,$H$7,0)/VLOOKUP($A27,outcome_data!$A$1:$BJ$216,$J$7,0)*100)","v":{"$error":"#DIV/0!"}},null,18,7.3680063922693071,7.7922830555528053,0,null,18,null,0,-1,-1,-1,-1,-1,null,null,null,null,null,null,null,18,98.856015779484963,102.838963450676,2,null,18,null,2,-1,-1,-1,-1,-1,null,3,"highest quartile"]
["01A",{"$f":"VLOOKUP($A28,SummaryData!$K$5:$M$215,3,0)","v":"Greater Manchester Lancashire and South Cumbria"},{"$f":"VLOOKUP($A28,SummaryData!$K$5:$N$215,4,0)","v":"No"},{"$f":"VLOOKUP($A28,SummaryData!$K$5:$P$215,6,0)","v":3},{"$f":"VLOOKUP(A28,SummaryData!$K$4:$T$215,10,0)","v":1.4623808097507143},4,{"$f":"IF(AND($C$5=1,$B$7<=7),VLOOKUP(A28,SummaryData!$K$5:$X$215,14,0)*100000,VLOOKUP(A28,SummaryData!$K$5:$X$215,14,0)*100 )","v":86.752487583914103},14,{"$f":"VLOOKUP($A28,cost_data!$A$5:$BB$215,$D$6,0)/VLOOKUP($A28,cost_data!$A$5:$BB$215,$F$6,0)","v":1.4623808097507143},{"$f":"IFERROR(VLOOKUP($A28,cost_data!$A$5:$BB$215,$H$6,0)/VLOOKUP($A28,cost_data!$A$5:$BB$215,$J$6,0),0)","v":1.6781088521464782},{"$f":"IF(AND($C$5=1,$B$7<=7),VLOOKUP($A28,outcome_data!$A$1:$BJ$216,$D$7,0)/VLOOKUP($A28,outcome_data!$A$1:$BJ$216,$F$7,0)*100000,VLOOKUP($A28,outcome_data!$A$1:$BJ$216,$D$7,0)/VLOOKUP($A28,outcome_data!$A$1:$BJ$216,$F$7,0)*100)","v":86.752487583914103},{"$f":"IF(AND($C$5=1,$B$7<=7),VLOOKUP($A28,outcome_data!$A$1:$BJ$216,$H$7,0)/VLOOKUP($A28,outcome_data!$A$1:$BJ$216,$J$7,0)*100000,VLOOKUP($A28,outcome_data!$A$1:$BJ$216,$H$7,0)/VLOOKUP($A28,outcome_data!$A$1:$BJ$216,$J$7,0)*100)","v":{"$error":"#DIV/0!"}},null,19,7.7922830555528053,8.2165597188363027,0,null,19,null,0,-1,-1,-1,-1,-1,null,3,"lowest quartile",null,null,null,null,19,102.838963450676,106.82191112186705,1,null,19,null,1,-1,-1,-1,{"$f":"IF($AX$11=AM28,5,-1)","v":-1},-1,null,2,"middle"]
["01C",{"$f":"VLOOKUP($A29,SummaryData!$K$5:$M$215,3,0)","v":"Cheshire and Merseyside"},{"$f":"VLOOKUP($A29,SummaryData!$K$5:$N$215,4,0)","v":"No"},{"$f":"VLOOKUP($A29,SummaryData!$K$5:$P$215,6,0)","v":9},{"$f":"VLOOKUP(A29,SummaryData!$K$4:$T$215,10,0)","v":2.01152838954448},5,{"$f":"IF(AND($C$5=1,$B$7<=7),VLOOKUP(A29,SummaryData!$K$5:$X$215,14,0)*100000,VLOOKUP(A29,SummaryData!$K$5:$X$215,14,0)*100 )","v":58.439927032016335},7,{"$f":"VLOOKUP($A29,cost_data!$A$5:$BB$215,$D$6,0)/VLOOKUP($A29,cost_data!$A$5:$BB$215,$F$6,0)","v":2.01152838954448},{"$f":"IFERROR(VLOOKUP($A29,cost_data!$A$5:$BB$215,$H$6,0)/VLOOKUP($A29,cost_data!$A$5:$BB$215,$J$6,0),0)","v":1.8300883529130405},{"$f":"IF(AND($C$5=1,$B$7<=7),VLOOKUP($A29,outcome_data!$A$1:$BJ$216,$D$7,0)/VLOOKUP($A29,outcome_data!$A$1:$BJ$216,$F$7,0)*100000,VLOOKUP($A29,outcome_data!$A$1:$BJ$216,$D$7,0)/VLOOKUP($A29,outcome_data!$A$1:$BJ$216,$F$7,0)*100)","v":58.439927032016335},{"$f":"IF(AND($C$5=1,$B$7<=7),VLOOKUP($A29,outcome_data!$A$1:$BJ$216,$H$7,0)/VLOOKUP($A29,outcome_data!$A$1:$BJ$216,$J$7,0)*100000,VLOOKUP($A29,outcome_data!$A$1:$BJ$216,$H$7,0)/VLOOKUP($A29,outcome_data!$A$1:$BJ$216,$J$7,0)*100)","v":{"$error":"#DIV/0!"}},null,20,8.2165597188363027,8.6408363821198009,1,null,20,null,1,-1,-1,-1,-1,-1,null,2,"middle",null,null,null,null,20,106.82191112186703,110.80485879305807,3,null,20,null,3,-1,-1,{"$f":"IF(AND($AX$13<=$AX$23,$AW$8=$AM29),7,-1)","v":-1},5,-1,null,1,"lowest quartile"]
["01D",{"$f":"VLOOKUP($A30,SummaryData!$K$5:$M$215,3,0)","v":"Greater Manchester Lancashire and South Cumbria"},{"$f":"VLOOKUP($A30,SummaryData!$K$5:$N$215,4,0)","v":"No"},{"$f":"VLOOKUP($A30,SummaryData!$K$5:$P$215,6,0)","v":2},{"$f":"VLOOKUP(A30,SummaryData!$K$4:$T$215,10,0)","v":0.98460259787265803},2,{"$f":"IF(AND($C$5=1,$B$7<=7),VLOOKUP(A30,SummaryData!$K$5:$X$215,14,0)*100000,VLOOKUP(A30,SummaryData!$K$5:$X$215,14,0)*100 )","v":85.387264825243932},14,{"$f":"VLOOKUP($A30,cost_data!$A$5:$BB$215,$D$6,0)/VLOOKUP($A30,cost_data!$A$5:$BB$215,$F$6,0)","v":0.98460259787265803},{"$f":"IFERROR(VLOOKUP($A30,cost_data!$A$5:$BB$215,$H$6,0)/VLOOKUP($A30,cost_data!$A$5:$BB$215,$J$6,0),0)","v":0.98080771958916557},{"$f":"IF(AND($C$5=1,$B$7<=7),VLOOKUP($A30,outcome_data!$A$1:$BJ$216,$D$7,0)/VLOOKUP($A30,outcome_data!$A$1:$BJ$216,$F$7,0)*100000,VLOOKUP($A30,outcome_data!$A$1:$BJ$216,$D$7,0)/VLOOKUP($A30,outcome_data!$A$1:$BJ$216,$F$7,0)*100)","v":85.387264825243932},{"$f":"IF(AND($C$5=1,$B$7<=7),VLOOKUP($A30,outcome_data!$A$1:$BJ$216,$H$7,0)/VLOOKUP($A30,outcome_data!$A$1:$BJ$216,$J$7,0)*100000,VLOOKUP($A30,outcome_data!$A$1:$BJ$216,$H$7,0)/VLOOKUP($A30,outcome_data!$A$1:$BJ$216,$J$7,0)*100)","v":{"$error":"#DIV/0!"}},null,null,null,null,null,null,null,null,null,null,null,null,null,null,null,1,"highest quartile",null,null,null,null,null,null,null,null,null,null,null,null,{"$f":"SUMIF(AP10:AP29,\">0\")","v":0},{"$f":"SUMIF(AQ10:AQ29,\">0\")","v":0},{"$f":"SUMIF(AR10:AR29,\">0\")","v":7},null,null,{"$f":"IF(AP30>1,1,IF(AQ30>1,2,3))","v":3},{"$f":"\"is in the \"&IF(AU30=1,AW27,IF(AU30=2,AW28,AW29))&\" of its \"&D4&\"\"","v":"is in the lowest quartile of its SCN group"}]
["01E",{"$f":"VLOOKUP($A31,SummaryData!$K$5:$M$215,3,0)","v":"Greater Manchester Lancashire and South Cumbria"},{"$f":"VLOOKUP($A31,SummaryData!$K$5:$N$215,4,0)","v":"No"},{"$f":"VLOOKUP($A31,SummaryData!$K$5:$P$215,6,0)","v":4},{"$f":"VLOOKUP(A31,SummaryData!$K$4:$T$215,10,0)","v":1.3779072465382627},3,{"$f":"IF(AND($C$5=1,$B$7<=7),VLOOKUP(A31,SummaryData!$K$5:$X$215,14,0)*100000,VLOOKUP(A31,SummaryData!$K$5:$X$215,14,0)*100 )","v":70.591123933460196},10,{"$f":"VLOOKUP($A31,cost_data!$A$5:$BB$215,$D$6,0)/VLOOKUP($A31,cost_data!$A$5:$BB$215,$F$6,0)","v":1.3779072465382627},{"$f":"IFERROR(VLOOKUP($A31,cost_data!$A$5:$BB$215,$H$6,0)/VLOOKUP($A31,cost_data!$A$5:$BB$215,$J$6,0),0)","v":1.3200039670187613},{"$f":"IF(AND($C$5=1,$B$7<=7),VLOOKUP($A31,outcome_data!$A$1:$BJ$216,$D$7,0)/VLOOKUP($A31,outcome_data!$A$1:$BJ$216,$F$7,0)*100000,VLOOKUP($A31,outcome_data!$A$1:$BJ$216,$D$7,0)/VLOOKUP($A31,outcome_data!$A$1:$BJ$216,$F$7,0)*100)","v":70.591123933460196},{"$f":"IF(AND($C$5=1,$B$7<=7),VLOOKUP($A31,outcome_data!$A$1:$BJ$216,$H$7,0)/VLOOKUP($A31,outcome_data!$A$1:$BJ$216,$J$7,0)*100000,VLOOKUP($A31,outcome_data!$A$1:$BJ$216,$H$7,0)/VLOOKUP($A31,outcome_data!$A$1:$BJ$216,$J$7,0)*100)","v":{"$error":"#DIV/0!"}},null,null,null,null,null,null,null,null,null,{"$f":"SUMIF(V10:V29,\">0\")","v":7},{"$f":"SUMIF(W10:W29,\">0\")","v":0},{"$f":"SUMIF(X10:X29,\">0\")","v":0},null,null,{"$f":"IF(V31>1,1,IF(W31>1,2,3))","v":1},{"$f":"\"is in the \"&IF(AA31=1,AC30,IF(AA31=2,AC29,AC28))&\" of its \"&D4&\"\"","v":"is in the highest quartile of its SCN group"}]
["01F",{"$f":"VLOOKUP($A32,SummaryData!$K$5:$M$215,3,0)","v":"Cheshire and Merseyside"},{"$f":"VLOOKUP($A32,SummaryData!$K$5:$N$215,4,0)","v":"No"},{"$f":"VLOOKUP($A32,SummaryData!$K$5:$P$215,6,0)","v":2},{"$f":"VLOOKUP(A32,SummaryData!$K$4:$T$215,10,0)","v":1.3213509987560255},3,{"$f":"IF(AND($C$5=1,$B$7<=7),VLOOKUP(A32,SummaryData!$K$5:$X$215,14,0)*100000,VLOOKUP(A32,SummaryData!$K$5:$X$215,14,0)*100 )","v":78.0542892492672},12,{"$f":"VLOOKUP($A32,cost_data!$A$5:$BB$215,$D$6,0)/VLOOKUP($A32,cost_data!$A$5:$BB$215,$F$6,0)","v":1.3213509987560255},{"$f":"IFERROR(VLOOKUP($A32,cost_data!$A$5:$BB$215,$H$6,0)/VLOOKUP($A32,cost_data!$A$5:$BB$215,$J$6,0),0)","v":1.0370378851357598},{"$f":"IF(AND($C$5=1,$B$7<=7),VLOOKUP($A32,outcome_data!$A$1:$BJ$216,$D$7,0)/VLOOKUP($A32,outcome_data!$A$1:$BJ$216,$F$7,0)*100000,VLOOKUP($A32,outcome_data!$A$1:$BJ$216,$D$7,0)/VLOOKUP($A32,outcome_data!$A$1:$BJ$216,$F$7,0)*100)","v":78.0542892492672},{"$f":"IF(AND($C$5=1,$B$7<=7),VLOOKUP($A32,outcome_data!$A$1:$BJ$216,$H$7,0)/VLOOKUP($A32,outcome_data!$A$1:$BJ$216,$J$7,0)*100000,VLOOKUP($A32,outcome_data!$A$1:$BJ$216,$H$7,0)/VLOOKUP($A32,outcome_data!$A$1:$BJ$216,$J$7,0)*100)","v":{"$error":"#DIV/0!"}}]
["01G",{"$f":"VLOOKUP($A33,SummaryData!$K$5:$M$215,3,0)","v":"Greater Manchester Lancashire and South Cumbria"},{"$f":"VLOOKUP($A33,SummaryData!$K$5:$N$215,4,0)","v":"No"},{"$f":"VLOOKUP($A33,SummaryData!$K$5:$P$215,6,0)","v":1},{"$f":"VLOOKUP(A33,SummaryData!$K$4:$T$215,10,0)","v":1.4790749929845142},4,{"$f":"IF(AND($C$5=1,$B$7<=7),VLOOKUP(A33,SummaryData!$K$5:$X$215,14,0)*100000,VLOOKUP(A33,SummaryData!$K$5:$X$215,14,0)*100 )","v":85.529003267973863},14,{"$f":"VLOOKUP($A33,cost_data!$A$5:$BB$215,$D$6,0)/VLOOKUP($A33,cost_data!$A$5:$BB$215,$F$6,0)","v":1.4790749929845142},{"$f":"IFERROR(VLOOKUP($A33,cost_data!$A$5:$BB$215,$H$6,0)/VLOOKUP($A33,cost_data!$A$5:$BB$215,$J$6,0),0)","v":1.6047951836937009},{"$f":"IF(AND($C$5=1,$B$7<=7),VLOOKUP($A33,outcome_data!$A$1:$BJ$216,$D$7,0)/VLOOKUP($A33,outcome_data!$A$1:$BJ$216,$F$7,0)*100000,VLOOKUP($A33,outcome_data!$A$1:$BJ$216,$D$7,0)/VLOOKUP($A33,outcome_data!$A$1:$BJ$216,$F$7,0)*100)","v":85.529003267973863},{"$f":"IF(AND($C$5=1,$B$7<=7),VLOOKUP($A33,outcome_data!$A$1:$BJ$216,$H$7,0)/VLOOKUP($A33,outcome_data!$A$1:$BJ$216,$J$7,0)*100000,VLOOKUP($A33,outcome_data!$A$1:$BJ$216,$H$7,0)/VLOOKUP($A33,outcome_data!$A$1:$BJ$216,$J$7,0)*100)","v":{"$error":"#DIV/0!"}}]
["01H",{"$f":"VLOOKUP($A34,SummaryData!$K$5:$M$215,3,0)","v":"Northern England"},{"$f":"VLOOKUP($A34,SummaryData!$K$5:$N$215,4,0)","v":"No"},{"$f":"VLOOKUP($A34,SummaryData!$K$5:$P$215,6,0)","v":5},{"$f":"VLOOKUP(A34,SummaryData!$K$4:$T$215,10,0)","v":1.7312797457192148},4,{"$f":"IF(AND($C$5=1,$B$7<=7),VLOOKUP(A34,SummaryData!$K$5:$X$215,14,0)*100000,VLOOKUP(A34,SummaryData!$K$5:$X$215,14,0)*100 )","v":81.338010268923796},13,{"$f":"VLOOKUP($A34,cost_data!$A$5:$BB$215,$D$6,0)/VLOOKUP($A34,cost_data!$A$5:$BB$215,$F$6,0)","v":1.7312797457192148},{"$f":"IFERROR(VLOOKUP($A34,cost_data!$A$5:$BB$215,$H$6,0)/VLOOKUP($A34,cost_data!$A$5:$BB$215,$J$6,0),0)","v":1.9049980634345105},{"$f":"IF(AND($C$5=1,$B$7<=7),VLOOKUP($A34,outcome_data!$A$1:$BJ$216,$D$7,0)/VLOOKUP($A34,outcome_data!$A$1:$BJ$216,$F$7,0)*100000,VLOOKUP($A34,outcome_data!$A$1:$BJ$216,$D$7,0)/VLOOKUP($A34,outcome_data!$A$1:$BJ$216,$F$7,0)*100)","v":81.338010268923796},{"$f":"IF(AND($C$5=1,$B$7<=7),VLOOKUP($A34,outcome_data!$A$1:$BJ$216,$H$7,0)/VLOOKUP($A34,outcome_data!$A$1:$BJ$216,$J$7,0)*100000,VLOOKUP($A34,outcome_data!$A$1:$BJ$216,$H$7,0)/VLOOKUP($A34,outcome_data!$A$1:$BJ$216,$J$7,0)*100)","v":{"$error":"#DIV/0!"}}]
["01J",{"$f":"VLOOKUP($A35,SummaryData!$K$5:$M$215,3,0)","v":"Cheshire and Merseyside"},{"$f":"VLOOKUP($A35,SummaryData!$K$5:$N$215,4,0)","v":"No"},{"$f":"VLOOKUP($A35,SummaryData!$K$5:$P$215,6,0)","v":1},{"$f":"VLOOKUP(A35,SummaryData!$K$4:$T$215,10,0)","v":1.5880840957347737},4,{"$f":"IF(AND($C$5=1,$B$7<=7),VLOOKUP(A35,SummaryData!$K$5:$X$215,14,0)*100000,VLOOKUP(A35,SummaryData!$K$5:$X$215,14,0)*100 )","v":79.659405834549418},13,{"$f":"VLOOKUP($A35,cost_data!$A$5:$BB$215,$D$6,0)/VLOOKUP($A35,cost_data!$A$5:$BB$215,$F$6,0)","v":1.5880840957347737},{"$f":"IFERROR(VLOOKUP($A35,cost_data!$A$5:$BB$215,$H$6,0)/VLOOKUP($A35,cost_data!$A$5:$BB$215,$J$6,0),0)","v":1.3771063356960282},{"$f":"IF(AND($C$5=1,$B$7<=7),VLOOKUP($A35,outcome_data!$A$1:$BJ$216,$D$7,0)/VLOOKUP($A35,outcome_data!$A$1:$BJ$216,$F$7,0)*100000,VLOOKUP($A35,outcome_data!$A$1:$BJ$216,$D$7,0)/VLOOKUP($A35,outcome_data!$A$1:$BJ$216,$F$7,0)*100)","v":79.659405834549418},{"$f":"IF(AND($C$5=1,$B$7<=7),VLOOKUP($A35,outcome_data!$A$1:$BJ$216,$H$7,0)/VLOOKUP($A35,outcome_data!$A$1:$BJ$216,$J$7,0)*100000,VLOOKUP($A35,outcome_data!$A$1:$BJ$216,$H$7,0)/VLOOKUP($A35,outcome_data!$A$1:$BJ$216,$J$7,0)*100)","v":{"$error":"#DIV/0!"}}]
["01K",{"$f":"VLOOKUP($A36,SummaryData!$K$5:$M$215,3,0)","v":"Greater Manchester Lancashire and South Cumbria"},{"$f":"VLOOKUP($A36,SummaryData!$K$5:$N$215,4,0)","v":"No"},{"$f":"VLOOKUP($A36,SummaryData!$K$5:$P$215,6,0)","v":6},{"$f":"VLOOKUP(A36,SummaryData!$K$4:$T$215,10,0)","v":1.3132318102397522},3,{"$f":"IF(AND($C$5=1,$B$7<=7),VLOOKUP(A36,SummaryData!$K$5:$X$215,14,0)*100000,VLOOKUP(A36,SummaryData!$K$5:$X$215,14,0)*100 )","v":78.071961982348938},12,{"$f":"VLOOKUP($A36,cost_data!$A$5:$BB$215,$D$6,0)/VLOOKUP($A36,cost_data!$A$5:$BB$215,$F$6,0)","v":1.3132318102397522},{"$f":"IFERROR(VLOOKUP($A36,cost_data!$A$5:$BB$215,$H$6,0)/VLOOKUP($A36,cost_data!$A$5:$BB$215,$J$6,0),0)","v":1.1588747234468089},{"$f":"IF(AND($C$5=1,$B$7<=7),VLOOKUP($A36,outcome_data!$A$1:$BJ$216,$D$7,0)/VLOOKUP($A36,outcome_data!$A$1:$BJ$216,$F$7,0)*100000,VLOOKUP($A36,outcome_data!$A$1:$BJ$216,$D$7,0)/VLOOKUP($A36,outcome_data!$A$1:$BJ$216,$F$7,0)*100)","v":78.071961982348938},{"$f":"IF(AND($C$5=1,$B$7<=7),VLOOKUP($A36,outcome_data!$A$1:$BJ$216,$H$7,0)/VLOOKUP($A36,outcome_data!$A$1:$BJ$216,$J$7,0)*100000,VLOOKUP($A36,outcome_data!$A$1:$BJ$216,$H$7,0)/VLOOKUP($A36,outcome_data!$A$1:$BJ$216,$J$7,0)*100)","v":{"$error":"#DIV/0!"}},null,{"$f":"J36/K36","v":1.4843673631627389E-2},{"$f":"L36/M36","v":{"$error":"#DIV/0!"}}]
["01M",{"$f":"VLOOKUP($A37,SummaryData!$K$5:$M$215,3,0)","v":"Greater Manchester Lancashire and South Cumbria"},{"$f":"VLOOKUP($A37,SummaryData!$K$5:$N$215,4,0)","v":"No"},{"$f":"VLOOKUP($A37,SummaryData!$K$5:$P$215,6,0)","v":1},{"$f":"VLOOKUP(A37,SummaryData!$K$4:$T$215,10,0)","v":0.74761949207982648},2,{"$f":"IF(AND($C$5=1,$B$7<=7),VLOOKUP(A37,SummaryData!$K$5:$X$215,14,0)*100000,VLOOKUP(A37,SummaryData!$K$5:$X$215,14,0)*100 )","v":90.17033396012711},15,{"$f":"VLOOKUP($A37,cost_data!$A$5:$BB$215,$D$6,0)/VLOOKUP($A37,cost_data!$A$5:$BB$215,$F$6,0)","v":0.74761949207982648},{"$f":"IFERROR(VLOOKUP($A37,cost_data!$A$5:$BB$215,$H$6,0)/VLOOKUP($A37,cost_data!$A$5:$BB$215,$J$6,0),0)","v":0.60862903427703685},{"$f":"IF(AND($C$5=1,$B$7<=7),VLOOKUP($A37,outcome_data!$A$1:$BJ$216,$D$7,0)/VLOOKUP($A37,outcome_data!$A$1:$BJ$216,$F$7,0)*100000,VLOOKUP($A37,outcome_data!$A$1:$BJ$216,$D$7,0)/VLOOKUP($A37,outcome_data!$A$1:$BJ$216,$F$7,0)*100)","v":90.17033396012711},{"$f":"IF(AND($C$5=1,$B$7<=7),VLOOKUP($A37,outcome_data!$A$1:$BJ$216,$H$7,0)/VLOOKUP($A37,outcome_data!$A$1:$BJ$216,$J$7,0)*100000,VLOOKUP($A37,outcome_data!$A$1:$BJ$216,$H$7,0)/VLOOKUP($A37,outcome_data!$A$1:$BJ$216,$J$7,0)*100)","v":{"$error":"#DIV/0!"}}]
["01N",{"$f":"VLOOKUP($A38,SummaryData!$K$5:$M$215,3,0)","v":"Greater Manchester Lancashire and South Cumbria"},{"$f":"VLOOKUP($A38,SummaryData!$K$5:$N$215,4,0)","v":"No"},{"$f":"VLOOKUP($A38,SummaryData!$K$5:$P$215,6,0)","v":1},{"$f":"VLOOKUP(A38,SummaryData!$K$4:$T$215,10,0)","v":0.84159162841165192},2,{"$f":"IF(AND($C$5=1,$B$7<=7),VLOOKUP(A38,SummaryData!$K$5:$X$215,14,0)*100000,VLOOKUP(A38,SummaryData!$K$5:$X$215,14,0)*100 )","v":63.158825498481029},9,{"$f":"VLOOKUP($A38,cost_data!$A$5:$BB$215,$D$6,0)/VLOOKUP($A38,cost_data!$A$5:$BB$215,$F$6,0)","v":0.84159162841165192},{"$f":"IFERROR(VLOOKUP($A38,cost_data!$A$5:$BB$215,$H$6,0)/VLOOKUP($A38,cost_data!$A$5:$BB$215,$J$6,0),0)","v":0.78354010219973014},{"$f":"IF(AND($C$5=1,$B$7<=7),VLOOKUP($A38,outcome_data!$A$1:$BJ$216,$D$7,0)/VLOOKUP($A38,outcome_data!$A$1:$BJ$216,$F$7,0)*100000,VLOOKUP($A38,outcome_data!$A$1:$BJ$216,$D$7,0)/VLOOKUP($A38,outcome_data!$A$1:$BJ$216,$F$7,0)*100)","v":63.158825498481029},{"$f":"IF(AND($C$5=1,$B$7<=7),VLOOKUP($A38,outcome_data!$A$1:$BJ$216,$H$7,0)/VLOOKUP($A38,outcome_data!$A$1:$BJ$216,$J$7,0)*100000,VLOOKUP($A38,outcome_data!$A$1:$BJ$216,$H$7,0)/VLOOKUP($A38,outcome_data!$A$1:$BJ$216,$J$7,0)*100)","v":{"$error":"#DIV/0!"}}]
["01R",{"$f":"VLOOKUP($A39,SummaryData!$K$5:$M$215,3,0)","v":"Cheshire and Merseyside"},{"$f":"VLOOKUP($A39,SummaryData!$K$5:$N$215,4,0)","v":"No"},{"$f":"VLOOKUP($A39,SummaryData!$K$5:$P$215,6,0)","v":8},{"$f":"VLOOKUP(A39,SummaryData!$K$4:$T$215,10,0)","v":1.4626174654627282},4,{"$f":"IF(AND($C$5=1,$B$7<=7),VLOOKUP(A39,SummaryData!$K$5:$X$215,14,0)*100000,VLOOKUP(A39,SummaryData!$K$5:$X$215,14,0)*100 )","v":88.003619303779814},15,{"$f":"VLOOKUP($A39,cost_data!$A$5:$BB$215,$D$6,0)/VLOOKUP($A39,cost_data!$A$5:$BB$215,$F$6,0)","v":1.4626174654627282},{"$f":"IFERROR(VLOOKUP($A39,cost_data!$A$5:$BB$215,$H$6,0)/VLOOKUP($A39,cost_data!$A$5:$BB$215,$J$6,0),0)","v":1.3130428784766788},{"$f":"IF(AND($C$5=1,$B$7<=7),VLOOKUP($A39,outcome_data!$A$1:$BJ$216,$D$7,0)/VLOOKUP($A39,outcome_data!$A$1:$BJ$216,$F$7,0)*100000,VLOOKUP($A39,outcome_data!$A$1:$BJ$216,$D$7,0)/VLOOKUP($A39,outcome_data!$A$1:$BJ$216,$F$7,0)*100)","v":88.003619303779814},{"$f":"IF(AND($C$5=1,$B$7<=7),VLOOKUP($A39,outcome_data!$A$1:$BJ$216,$H$7,0)/VLOOKUP($A39,outcome_data!$A$1:$BJ$216,$J$7,0)*100000,VLOOKUP($A39,outcome_data!$A$1:$BJ$216,$H$7,0)/VLOOKUP($A39,outcome_data!$A$1:$BJ$216,$J$7,0)*100)","v":{"$error":"#DIV/0!"}}]
["01T",{"$f":"VLOOKUP($A40,SummaryData!$K$5:$M$215,3,0)","v":"Cheshire and Merseyside"},{"$f":"VLOOKUP($A40,SummaryData!$K$5:$N$215,4,0)","v":"No"},{"$f":"VLOOKUP($A40,SummaryData!$K$5:$P$215,6,0)","v":2},{"$f":"VLOOKUP(A40,SummaryData!$K$4:$T$215,10,0)","v":1.5614834037284704},4,{"$f":"IF(AND($C$5=1,$B$7<=7),VLOOKUP(A40,SummaryData!$K$5:$X$215,14,0)*100000,VLOOKUP(A40,SummaryData!$K$5:$X$215,14,0)*100 )","v":76.782733042639066},12,{"$f":"VLOOKUP($A40,cost_data!$A$5:$BB$215,$D$6,0)/VLOOKUP($A40,cost_data!$A$5:$BB$215,$F$6,0)","v":1.5614834037284704},{"$f":"IFERROR(VLOOKUP($A40,cost_data!$A$5:$BB$215,$H$6,0)/VLOOKUP($A40,cost_data!$A$5:$BB$215,$J$6,0),0)","v":1.239248793927606},{"$f":"IF(AND($C$5=1,$B$7<=7),VLOOKUP($A40,outcome_data!$A$1:$BJ$216,$D$7,0)/VLOOKUP($A40,outcome_data!$A$1:$BJ$216,$F$7,0)*100000,VLOOKUP($A40,outcome_data!$A$1:$BJ$216,$D$7,0)/VLOOKUP($A40,outcome_data!$A$1:$BJ$216,$F$7,0)*100)","v":76.782733042639066},{"$f":"IF(AND($C$5=1,$B$7<=7),VLOOKUP($A40,outcome_data!$A$1:$BJ$216,$H$7,0)/VLOOKUP($A40,outcome_data!$A$1:$BJ$216,$J$7,0)*100000,VLOOKUP($A40,outcome_data!$A$1:$BJ$216,$H$7,0)/VLOOKUP($A40,outcome_data!$A$1:$BJ$216,$J$7,0)*100)","v":{"$error":"#DIV/0!"}}]
["01V",{"$f":"VLOOKUP($A41,SummaryData!$K$5:$M$215,3,0)","v":"Cheshire and Merseyside"},{"$f":"VLOOKUP($A41,SummaryData!$K$5:$N$215,4,0)","v":"No"},{"$f":"VLOOKUP($A41,SummaryData!$K$5:$P$215,6,0)","v":7},{"$f":"VLOOKUP(A41,SummaryData!$K$4:$T$215,10,0)","v":2.1573524733030562},5,{"$f":"IF(AND($C$5=1,$B$7<=7),VLOOKUP(A41,SummaryData!$K$5:$X$215,14,0)*100000,VLOOKUP(A41,SummaryData!$K$5:$X$215,14,0)*100 )","v":73.437819547474305},11,{"$f":"VLOOKUP($A41,cost_data!$A$5:$BB$215,$D$6,0)/VLOOKUP($A41,cost_data!$A$5:$BB$215,$F$6,0)","v":2.1573524733030562},{"$f":"IFERROR(VLOOKUP($A41,cost_data!$A$5:$BB$215,$H$6,0)/VLOOKUP($A41,cost_data!$A$5:$BB$215,$J$6,0),0)","v":1.8337963055850801},{"$f":"IF(AND($C$5=1,$B$7<=7),VLOOKUP($A41,outcome_data!$A$1:$BJ$216,$D$7,0)/VLOOKUP($A41,outcome_data!$A$1:$BJ$216,$F$7,0)*100000,VLOOKUP($A41,outcome_data!$A$1:$BJ$216,$D$7,0)/VLOOKUP($A41,outcome_data!$A$1:$BJ$216,$F$7,0)*100)","v":73.437819547474305},{"$f":"IF(AND($C$5=1,$B$7<=7),VLOOKUP($A41,outcome_data!$A$1:$BJ$216,$H$7,0)/VLOOKUP($A41,outcome_data!$A$1:$BJ$216,$J$7,0)*100000,VLOOKUP($A41,outcome_data!$A$1:$BJ$216,$H$7,0)/VLOOKUP($A41,outcome_data!$A$1:$BJ$216,$J$7,0)*100)","v":{"$error":"#DIV/0!"}}]
["01W",{"$f":"VLOOKUP($A42,SummaryData!$K$5:$M$215,3,0)","v":"Greater Manchester Lancashire and South Cumbria"},{"$f":"VLOOKUP($A42,SummaryData!$K$5:$N$215,4,0)","v":"No"},{"$f":"VLOOKUP($A42,SummaryData!$K$5:$P$215,6,0)","v":6},{"$f":"VLOOKUP(A42,SummaryData!$K$4:$T$215,10,0)","v":1.5590331959072226},4,{"$f":"IF(AND($C$5=1,$B$7<=7),VLOOKUP(A42,SummaryData!$K$5:$X$215,14,0)*100000,VLOOKUP(A42,SummaryData!$K$5:$X$215,14,0)*100 )","v":67.029256084544301},10,{"$f":"VLOOKUP($A42,cost_data!$A$5:$BB$215,$D$6,0)/VLOOKUP($A42,cost_data!$A$5:$BB$215,$F$6,0)","v":1.5590331959072226},{"$f":"IFERROR(VLOOKUP($A42,cost_data!$A$5:$BB$215,$H$6,0)/VLOOKUP($A42,cost_data!$A$5:$BB$215,$J$6,0),0)","v":1.5321352985538776},{"$f":"IF(AND($C$5=1,$B$7<=7),VLOOKUP($A42,outcome_data!$A$1:$BJ$216,$D$7,0)/VLOOKUP($A42,outcome_data!$A$1:$BJ$216,$F$7,0)*100000,VLOOKUP($A42,outcome_data!$A$1:$BJ$216,$D$7,0)/VLOOKUP($A42,outcome_data!$A$1:$BJ$216,$F$7,0)*100)","v":67.029256084544301},{"$f":"IF(AND($C$5=1,$B$7<=7),VLOOKUP($A42,outcome_data!$A$1:$BJ$216,$H$7,0)/VLOOKUP($A42,outcome_data!$A$1:$BJ$216,$J$7,0)*100000,VLOOKUP($A42,outcome_data!$A$1:$BJ$216,$H$7,0)/VLOOKUP($A42,outcome_data!$A$1:$BJ$216,$J$7,0)*100)","v":{"$error":"#DIV/0!"}}]
["01X",{"$f":"VLOOKUP($A43,SummaryData!$K$5:$M$215,3,0)","v":"Cheshire and Merseyside"},{"$f":"VLOOKUP($A43,SummaryData!$K$5:$N$215,4,0)","v":"No"},{"$f":"VLOOKUP($A43,SummaryData!$K$5:$P$215,6,0)","v":3},{"$f":"VLOOKUP(A43,SummaryData!$K$4:$T$215,10,0)","v":1.6548467996959531},4,{"$f":"IF(AND($C$5=1,$B$7<=7),VLOOKUP(A43,SummaryData!$K$5:$X$215,14,0)*100000,VLOOKUP(A43,SummaryData!$K$5:$X$215,14,0)*100 )","v":92.29141577282806},16,{"$f":"VLOOKUP($A43,cost_data!$A$5:$BB$215,$D$6,0)/VLOOKUP($A43,cost_data!$A$5:$BB$215,$F$6,0)","v":1.6548467996959531},{"$f":"IFERROR(VLOOKUP($A43,cost_data!$A$5:$BB$215,$H$6,0)/VLOOKUP($A43,cost_data!$A$5:$BB$215,$J$6,0),0)","v":1.4997169980128435},{"$f":"IF(AND($C$5=1,$B$7<=7),VLOOKUP($A43,outcome_data!$A$1:$BJ$216,$D$7,0)/VLOOKUP($A43,outcome_data!$A$1:$BJ$216,$F$7,0)*100000,VLOOKUP($A43,outcome_data!$A$1:$BJ$216,$D$7,0)/VLOOKUP($A43,outcome_data!$A$1:$BJ$216,$F$7,0)*100)","v":92.29141577282806},{"$f":"IF(AND($C$5=1,$B$7<=7),VLOOKUP($A43,outcome_data!$A$1:$BJ$216,$H$7,0)/VLOOKUP($A43,outcome_data!$A$1:$BJ$216,$J$7,0)*100000,VLOOKUP($A43,outcome_data!$A$1:$BJ$216,$H$7,0)/VLOOKUP($A43,outcome_data!$A$1:$BJ$216,$J$7,0)*100)","v":{"$error":"#DIV/0!"}}]
["01Y",{"$f":"VLOOKUP($A44,SummaryData!$K$5:$M$215,3,0)","v":"East Midlands"},{"$f":"VLOOKUP($A44,SummaryData!$K$5:$N$215,4,0)","v":"No"},{"$f":"VLOOKUP($A44,SummaryData!$K$5:$P$215,6,0)","v":3},{"$f":"VLOOKUP(A44,SummaryData!$K$4:$T$215,10,0)","v":1.3432491722191875},3,{"$f":"IF(AND($C$5=1,$B$7<=7),VLOOKUP(A44,SummaryData!$K$5:$X$215,14,0)*100000,VLOOKUP(A44,SummaryData!$K$5:$X$215,14,0)*100 )","v":107.62682843305123},20,{"$f":"VLOOKUP($A44,cost_data!$A$5:$BB$215,$D$6,0)/VLOOKUP($A44,cost_data!$A$5:$BB$215,$F$6,0)","v":1.3432491722191875},{"$f":"IFERROR(VLOOKUP($A44,cost_data!$A$5:$BB$215,$H$6,0)/VLOOKUP($A44,cost_data!$A$5:$BB$215,$J$6,0),0)","v":1.3010841330384508},{"$f":"IF(AND($C$5=1,$B$7<=7),VLOOKUP($A44,outcome_data!$A$1:$BJ$216,$D$7,0)/VLOOKUP($A44,outcome_data!$A$1:$BJ$216,$F$7,0)*100000,VLOOKUP($A44,outcome_data!$A$1:$BJ$216,$D$7,0)/VLOOKUP($A44,outcome_data!$A$1:$BJ$216,$F$7,0)*100)","v":107.62682843305123},{"$f":"IF(AND($C$5=1,$B$7<=7),VLOOKUP($A44,outcome_data!$A$1:$BJ$216,$H$7,0)/VLOOKUP($A44,outcome_data!$A$1:$BJ$216,$J$7,0)*100000,VLOOKUP($A44,outcome_data!$A$1:$BJ$216,$H$7,0)/VLOOKUP($A44,outcome_data!$A$1:$BJ$216,$J$7,0)*100)","v":{"$error":"#DIV/0!"}}]
["02A",{"$f":"VLOOKUP($A45,SummaryData!$K$5:$M$215,3,0)","v":"Greater Manchester Lancashire and South Cumbria"},{"$f":"VLOOKUP($A45,SummaryData!$K$5:$N$215,4,0)","v":"No"},{"$f":"VLOOKUP($A45,SummaryData!$K$5:$P$215,6,0)","v":7},{"$f":"VLOOKUP(A45,SummaryData!$K$4:$T$215,10,0)","v":1.1130281410672609},3,{"$f":"IF(AND($C$5=1,$B$7<=7),VLOOKUP(A45,SummaryData!$K$5:$X$215,14,0)*100000,VLOOKUP(A45,SummaryData!$K$5:$X$215,14,0)*100 )","v":68.504487273797267},10,{"$f":"VLOOKUP($A45,cost_data!$A$5:$BB$215,$D$6,0)/VLOOKUP($A45,cost_data!$A$5:$BB$215,$F$6,0)","v":1.1130281410672609},{"$f":"IFERROR(VLOOKUP($A45,cost_data!$A$5:$BB$215,$H$6,0)/VLOOKUP($A45,cost_data!$A$5:$BB$215,$J$6,0),0)","v":0.94521171297711992},{"$f":"IF(AND($C$5=1,$B$7<=7),VLOOKUP($A45,outcome_data!$A$1:$BJ$216,$D$7,0)/VLOOKUP($A45,outcome_data!$A$1:$BJ$216,$F$7,0)*100000,VLOOKUP($A45,outcome_data!$A$1:$BJ$216,$D$7,0)/VLOOKUP($A45,outcome_data!$A$1:$BJ$216,$F$7,0)*100)","v":68.504487273797267},{"$f":"IF(AND($C$5=1,$B$7<=7),VLOOKUP($A45,outcome_data!$A$1:$BJ$216,$H$7,0)/VLOOKUP($A45,outcome_data!$A$1:$BJ$216,$J$7,0)*100000,VLOOKUP($A45,outcome_data!$A$1:$BJ$216,$H$7,0)/VLOOKUP($A45,outcome_data!$A$1:$BJ$216,$J$7,0)*100)","v":{"$error":"#DIV/0!"}}]
["02D",{"$f":"VLOOKUP($A46,SummaryData!$K$5:$M$215,3,0)","v":"Cheshire and Merseyside"},{"$f":"VLOOKUP($A46,SummaryData!$K$5:$N$215,4,0)","v":"No"},{"$f":"VLOOKUP($A46,SummaryData!$K$5:$P$215,6,0)","v":7},{"$f":"VLOOKUP(A46,SummaryData!$K$4:$T$215,10,0)","v":0.78793082399421177},2,{"$f":"IF(AND($C$5=1,$B$7<=7),VLOOKUP(A46,SummaryData!$K$5:$X$215,14,0)*100000,VLOOKUP(A46,SummaryData!$K$5:$X$215,14,0)*100 )","v":68.676239077836584},10,{"$f":"VLOOKUP($A46,cost_data!$A$5:$BB$215,$D$6,0)/VLOOKUP($A46,cost_data!$A$5:$BB$215,$F$6,0)","v":0.78793082399421177},{"$f":"IFERROR(VLOOKUP($A46,cost_data!$A$5:$BB$215,$H$6,0)/VLOOKUP($A46,cost_data!$A$5:$BB$215,$J$6,0),0)","v":0.75141088355503693},{"$f":"IF(AND($C$5=1,$B$7<=7),VLOOKUP($A46,outcome_data!$A$1:$BJ$216,$D$7,0)/VLOOKUP($A46,outcome_data!$A$1:$BJ$216,$F$7,0)*100000,VLOOKUP($A46,outcome_data!$A$1:$BJ$216,$D$7,0)/VLOOKUP($A46,outcome_data!$A$1:$BJ$216,$F$7,0)*100)","v":68.676239077836584},{"$f":"IF(AND($C$5=1,$B$7<=7),VLOOKUP($A46,outcome_data!$A$1:$BJ$216,$H$7,0)/VLOOKUP($A46,outcome_data!$A$1:$BJ$216,$J$7,0)*100000,VLOOKUP($A46,outcome_data!$A$1:$BJ$216,$H$7,0)/VLOOKUP($A46,outcome_data!$A$1:$BJ$216,$J$7,0)*100)","v":{"$error":"#DIV/0!"}}]
["02E",{"$f":"VLOOKUP($A47,SummaryData!$K$5:$M$215,3,0)","v":"Cheshire and Merseyside"},{"$f":"VLOOKUP($A47,SummaryData!$K$5:$N$215,4,0)","v":"No"},{"$f":"VLOOKUP($A47,SummaryData!$K$5:$P$215,6,0)","v":6},{"$f":"VLOOKUP(A47,SummaryData!$K$4:$T$215,10,0)","v":0.99220618378212744},2,{"$f":"IF(AND($C$5=1,$B$7<=7),VLOOKUP(A47,SummaryData!$K$5:$X$215,14,0)*100000,VLOOKUP(A47,SummaryData!$K$5:$X$215,14,0)*100 )","v":64.730904383206962},9,{"$f":"VLOOKUP($A47,cost_data!$A$5:$BB$215,$D$6,0)/VLOOKUP($A47,cost_data!$A$5:$BB$215,$F$6,0)","v":0.99220618378212744},{"$f":"IFERROR(VLOOKUP($A47,cost_data!$A$5:$BB$215,$H$6,0)/VLOOKUP($A47,cost_data!$A$5:$BB$215,$J$6,0),0)","v":0.71444146543704812},{"$f":"IF(AND($C$5=1,$B$7<=7),VLOOKUP($A47,outcome_data!$A$1:$BJ$216,$D$7,0)/VLOOKUP($A47,outcome_data!$A$1:$BJ$216,$F$7,0)*100000,VLOOKUP($A47,outcome_data!$A$1:$BJ$216,$D$7,0)/VLOOKUP($A47,outcome_data!$A$1:$BJ$216,$F$7,0)*100)","v":64.730904383206962},{"$f":"IF(AND($C$5=1,$B$7<=7),VLOOKUP($A47,outcome_data!$A$1:$BJ$216,$H$7,0)/VLOOKUP($A47,outcome_data!$A$1:$BJ$216,$J$7,0)*100000,VLOOKUP($A47,outcome_data!$A$1:$BJ$216,$H$7,0)/VLOOKUP($A47,outcome_data!$A$1:$BJ$216,$J$7,0)*100)","v":{"$error":"#DIV/0!"}}]
["02F",{"$f":"VLOOKUP($A48,SummaryData!$K$5:$M$215,3,0)","v":"Cheshire and Merseyside"},{"$f":"VLOOKUP($A48,SummaryData!$K$5:$N$215,4,0)","v":"No"},{"$f":"VLOOKUP($A48,SummaryData!$K$5:$P$215,6,0)","v":7},{"$f":"VLOOKUP(A48,SummaryData!$K$4:$T$215,10,0)","v":1.4867658705278419},4,{"$f":"IF(AND($C$5=1,$B$7<=7),VLOOKUP(A48,SummaryData!$K$5:$X$215,14,0)*100000,VLOOKUP(A48,SummaryData!$K$5:$X$215,14,0)*100 )","v":66.100378145669779},9,{"$f":"VLOOKUP($A48,cost_data!$A$5:$BB$215,$D$6,0)/VLOOKUP($A48,cost_data!$A$5:$BB$215,$F$6,0)","v":1.4867658705278419},{"$f":"IFERROR(VLOOKUP($A48,cost_data!$A$5:$BB$215,$H$6,0)/VLOOKUP($A48,cost_data!$A$5:$BB$215,$J$6,0),0)","v":1.2928277925794982},{"$f":"IF(AND($C$5=1,$B$7<=7),VLOOKUP($A48,outcome_data!$A$1:$BJ$216,$D$7,0)/VLOOKUP($A48,outcome_data!$A$1:$BJ$216,$F$7,0)*100000,VLOOKUP($A48,outcome_data!$A$1:$BJ$216,$D$7,0)/VLOOKUP($A48,outcome_data!$A$1:$BJ$216,$F$7,0)*100)","v":66.100378145669779},{"$f":"IF(AND($C$5=1,$B$7<=7),VLOOKUP($A48,outcome_data!$A$1:$BJ$216,$H$7,0)/VLOOKUP($A48,outcome_data!$A$1:$BJ$216,$J$7,0)*100000,VLOOKUP($A48,outcome_data!$A$1:$BJ$216,$H$7,0)/VLOOKUP($A48,outcome_data!$A$1:$BJ$216,$J$7,0)*100)","v":{"$error":"#DIV/0!"}}]
["02G",{"$f":"VLOOKUP($A49,SummaryData!$K$5:$M$215,3,0)","v":"Greater Manchester Lancashire and South Cumbria"},{"$f":"VLOOKUP($A49,SummaryData!$K$5:$N$215,4,0)","v":"No"},{"$f":"VLOOKUP($A49,SummaryData!$K$5:$P$215,6,0)","v":6},{"$f":"VLOOKUP(A49,SummaryData!$K$4:$T$215,10,0)","v":2.6546846316325343},6,{"$f":"IF(AND($C$5=1,$B$7<=7),VLOOKUP(A49,SummaryData!$K$5:$X$215,14,0)*100000,VLOOKUP(A49,SummaryData!$K$5:$X$215,14,0)*100 )","v":73.40131926637828},11,{"$f":"VLOOKUP($A49,cost_data!$A$5:$BB$215,$D$6,0)/VLOOKUP($A49,cost_data!$A$5:$BB$215,$F$6,0)","v":2.6546846316325343},{"$f":"IFERROR(VLOOKUP($A49,cost_data!$A$5:$BB$215,$H$6,0)/VLOOKUP($A49,cost_data!$A$5:$BB$215,$J$6,0),0)","v":2.2037605763109109},{"$f":"IF(AND($C$5=1,$B$7<=7),VLOOKUP($A49,outcome_data!$A$1:$BJ$216,$D$7,0)/VLOOKUP($A49,outcome_data!$A$1:$BJ$216,$F$7,0)*100000,VLOOKUP($A49,outcome_data!$A$1:$BJ$216,$D$7,0)/VLOOKUP($A49,outcome_data!$A$1:$BJ$216,$F$7,0)*100)","v":73.40131926637828},{"$f":"IF(AND($C$5=1,$B$7<=7),VLOOKUP($A49,outcome_data!$A$1:$BJ$216,$H$7,0)/VLOOKUP($A49,outcome_data!$A$1:$BJ$216,$J$7,0)*100000,VLOOKUP($A49,outcome_data!$A$1:$BJ$216,$H$7,0)/VLOOKUP($A49,outcome_data!$A$1:$BJ$216,$J$7,0)*100)","v":{"$error":"#DIV/0!"}}]
["02H",{"$f":"VLOOKUP($A50,SummaryData!$K$5:$M$215,3,0)","v":"Greater Manchester Lancashire and South Cumbria"},{"$f":"VLOOKUP($A50,SummaryData!$K$5:$N$215,4,0)","v":"No"},{"$f":"VLOOKUP($A50,SummaryData!$K$5:$P$215,6,0)","v":3},{"$f":"VLOOKUP(A50,SummaryData!$K$4:$T$215,10,0)","v":2.3178942028222078},6,{"$f":"IF(AND($C$5=1,$B$7<=7),VLOOKUP(A50,SummaryData!$K$5:$X$215,14,0)*100000,VLOOKUP(A50,SummaryData!$K$5:$X$215,14,0)*100 )","v":78.538512400022825},12,{"$f":"VLOOKUP($A50,cost_data!$A$5:$BB$215,$D$6,0)/VLOOKUP($A50,cost_data!$A$5:$BB$215,$F$6,0)","v":2.3178942028222078},{"$f":"IFERROR(VLOOKUP($A50,cost_data!$A$5:$BB$215,$H$6,0)/VLOOKUP($A50,cost_data!$A$5:$BB$215,$J$6,0),0)","v":2.2301669483966449},{"$f":"IF(AND($C$5=1,$B$7<=7),VLOOKUP($A50,outcome_data!$A$1:$BJ$216,$D$7,0)/VLOOKUP($A50,outcome_data!$A$1:$BJ$216,$F$7,0)*100000,VLOOKUP($A50,outcome_data!$A$1:$BJ$216,$D$7,0)/VLOOKUP($A50,outcome_data!$A$1:$BJ$216,$F$7,0)*100)","v":78.538512400022825},{"$f":"IF(AND($C$5=1,$B$7<=7),VLOOKUP($A50,outcome_data!$A$1:$BJ$216,$H$7,0)/VLOOKUP($A50,outcome_data!$A$1:$BJ$216,$J$7,0)*100000,VLOOKUP($A50,outcome_data!$A$1:$BJ$216,$H$7,0)/VLOOKUP($A50,outcome_data!$A$1:$BJ$216,$J$7,0)*100)","v":{"$error":"#DIV/0!"}}]
["02M",{"$f":"VLOOKUP($A51,SummaryData!$K$5:$M$215,3,0)","v":"Greater Manchester Lancashire and South Cumbria"},{"$f":"VLOOKUP($A51,SummaryData!$K$5:$N$215,4,0)","v":"No"},{"$f":"VLOOKUP($A51,SummaryData!$K$5:$P$215,6,0)","v":8},{"$f":"VLOOKUP(A51,SummaryData!$K$4:$T$215,10,0)","v":1.3105494925349428},3,{"$f":"IF(AND($C$5=1,$B$7<=7),VLOOKUP(A51,SummaryData!$K$5:$X$215,14,0)*100000,VLOOKUP(A51,SummaryData!$K$5:$X$215,14,0)*100 )","v":99.382623098930878},18,{"$f":"VLOOKUP($A51,cost_data!$A$5:$BB$215,$D$6,0)/VLOOKUP($A51,cost_data!$A$5:$BB$215,$F$6,0)","v":1.3105494925349428},{"$f":"IFERROR(VLOOKUP($A51,cost_data!$A$5:$BB$215,$H$6,0)/VLOOKUP($A51,cost_data!$A$5:$BB$215,$J$6,0),0)","v":1.1336947896915104},{"$f":"IF(AND($C$5=1,$B$7<=7),VLOOKUP($A51,outcome_data!$A$1:$BJ$216,$D$7,0)/VLOOKUP($A51,outcome_data!$A$1:$BJ$216,$F$7,0)*100000,VLOOKUP($A51,outcome_data!$A$1:$BJ$216,$D$7,0)/VLOOKUP($A51,outcome_data!$A$1:$BJ$216,$F$7,0)*100)","v":99.382623098930878},{"$f":"IF(AND($C$5=1,$B$7<=7),VLOOKUP($A51,outcome_data!$A$1:$BJ$216,$H$7,0)/VLOOKUP($A51,outcome_data!$A$1:$BJ$216,$J$7,0)*100000,VLOOKUP($A51,outcome_data!$A$1:$BJ$216,$H$7,0)/VLOOKUP($A51,outcome_data!$A$1:$BJ$216,$J$7,0)*100)","v":{"$error":"#DIV/0!"}}]
["02N",{"$f":"VLOOKUP($A52,SummaryData!$K$5:$M$215,3,0)","v":"Yorkshire and Northern"},{"$f":"VLOOKUP($A52,SummaryData!$K$5:$N$215,4,0)","v":"Closest 10 CCGs"},{"$f":"VLOOKUP($A52,SummaryData!$K$5:$P$215,6,0)","v":6},{"$f":"VLOOKUP(A52,SummaryData!$K$4:$T$215,10,0)","v":1.9946630105145944},5,{"$f":"IF(AND($C$5=1,$B$7<=7),VLOOKUP(A52,SummaryData!$K$5:$X$215,14,0)*100000,VLOOKUP(A52,SummaryData!$K$5:$X$215,14,0)*100 )","v":58.650197502773523},7,{"$f":"VLOOKUP($A52,cost_data!$A$5:$BB$215,$D$6,0)/VLOOKUP($A52,cost_data!$A$5:$BB$215,$F$6,0)","v":1.9946630105145944},{"$f":"IFERROR(VLOOKUP($A52,cost_data!$A$5:$BB$215,$H$6,0)/VLOOKUP($A52,cost_data!$A$5:$BB$215,$J$6,0),0)","v":1.7600448090827152},{"$f":"IF(AND($C$5=1,$B$7<=7),VLOOKUP($A52,outcome_data!$A$1:$BJ$216,$D$7,0)/VLOOKUP($A52,outcome_data!$A$1:$BJ$216,$F$7,0)*100000,VLOOKUP($A52,outcome_data!$A$1:$BJ$216,$D$7,0)/VLOOKUP($A52,outcome_data!$A$1:$BJ$216,$F$7,0)*100)","v":58.650197502773523},{"$f":"IF(AND($C$5=1,$B$7<=7),VLOOKUP($A52,outcome_data!$A$1:$BJ$216,$H$7,0)/VLOOKUP($A52,outcome_data!$A$1:$BJ$216,$J$7,0)*100000,VLOOKUP($A52,outcome_data!$A$1:$BJ$216,$H$7,0)/VLOOKUP($A52,outcome_data!$A$1:$BJ$216,$J$7,0)*100)","v":{"$error":"#DIV/0!"}}]
["02P",{"$f":"VLOOKUP($A53,SummaryData!$K$5:$M$215,3,0)","v":"Yorkshire and Northern"},{"$f":"VLOOKUP($A53,SummaryData!$K$5:$N$215,4,0)","v":"No"},{"$f":"VLOOKUP($A53,SummaryData!$K$5:$P$215,6,0)","v":3},{"$f":"VLOOKUP(A53,SummaryData!$K$4:$T$215,10,0)","v":0.96458682341757995},2,{"$f":"IF(AND($C$5=1,$B$7<=7),VLOOKUP(A53,SummaryData!$K$5:$X$215,14,0)*100000,VLOOKUP(A53,SummaryData!$K$5:$X$215,14,0)*100 )","v":90.238679147525119},15,{"$f":"VLOOKUP($A53,cost_data!$A$5:$BB$215,$D$6,0)/VLOOKUP($A53,cost_data!$A$5:$BB$215,$F$6,0)","v":0.96458682341757995},{"$f":"IFERROR(VLOOKUP($A53,cost_data!$A$5:$BB$215,$H$6,0)/VLOOKUP($A53,cost_data!$A$5:$BB$215,$J$6,0),0)","v":0.85631548717184591},{"$f":"IF(AND($C$5=1,$B$7<=7),VLOOKUP($A53,outcome_data!$A$1:$BJ$216,$D$7,0)/VLOOKUP($A53,outcome_data!$A$1:$BJ$216,$F$7,0)*100000,VLOOKUP($A53,outcome_data!$A$1:$BJ$216,$D$7,0)/VLOOKUP($A53,outcome_data!$A$1:$BJ$216,$F$7,0)*100)","v":90.238679147525119},{"$f":"IF(AND($C$5=1,$B$7<=7),VLOOKUP($A53,outcome_data!$A$1:$BJ$216,$H$7,0)/VLOOKUP($A53,outcome_data!$A$1:$BJ$216,$J$7,0)*100000,VLOOKUP($A53,outcome_data!$A$1:$BJ$216,$H$7,0)/VLOOKUP($A53,outcome_data!$A$1:$BJ$216,$J$7,0)*100)","v":{"$error":"#DIV/0!"}}]
["02Q",{"$f":"VLOOKUP($A54,SummaryData!$K$5:$M$215,3,0)","v":"Yorkshire and Northern"},{"$f":"VLOOKUP($A54,SummaryData!$K$5:$N$215,4,0)","v":"No"},{"$f":"VLOOKUP($A54,SummaryData!$K$5:$P$215,6,0)","v":4},{"$f":"VLOOKUP(A54,SummaryData!$K$4:$T$215,10,0)","v":1.4753580469936567},4,{"$f":"IF(AND($C$5=1,$B$7<=7),VLOOKUP(A54,SummaryData!$K$5:$X$215,14,0)*100000,VLOOKUP(A54,SummaryData!$K$5:$X$215,14,0)*100 )","v":79.91034449154607},13,{"$f":"VLOOKUP($A54,cost_data!$A$5:$BB$215,$D$6,0)/VLOOKUP($A54,cost_data!$A$5:$BB$215,$F$6,0)","v":1.4753580469936567},{"$f":"IFERROR(VLOOKUP($A54,cost_data!$A$5:$BB$215,$H$6,0)/VLOOKUP($A54,cost_data!$A$5:$BB$215,$J$6,0),0)","v":1.4091015609226298},{"$f":"IF(AND($C$5=1,$B$7<=7),VLOOKUP($A54,outcome_data!$A$1:$BJ$216,$D$7,0)/VLOOKUP($A54,outcome_data!$A$1:$BJ$216,$F$7,0)*100000,VLOOKUP($A54,outcome_data!$A$1:$BJ$216,$D$7,0)/VLOOKUP($A54,outcome_data!$A$1:$BJ$216,$F$7,0)*100)","v":79.91034449154607},{"$f":"IF(AND($C$5=1,$B$7<=7),VLOOKUP($A54,outcome_data!$A$1:$BJ$216,$H$7,0)/VLOOKUP($A54,outcome_data!$A$1:$BJ$216,$J$7,0)*100000,VLOOKUP($A54,outcome_data!$A$1:$BJ$216,$H$7,0)/VLOOKUP($A54,outcome_data!$A$1:$BJ$216,$J$7,0)*100)","v":{"$error":"#DIV/0!"}}]
["02R",{"$f":"VLOOKUP($A55,SummaryData!$K$5:$M$215,3,0)","v":"Yorkshire and Northern"},{"$f":"VLOOKUP($A55,SummaryData!$K$5:$N$215,4,0)","v":"No"},{"$f":"VLOOKUP($A55,SummaryData!$K$5:$P$215,6,0)","v":2},{"$f":"VLOOKUP(A55,SummaryData!$K$4:$T$215,10,0)","v":1.233998316895744},3,{"$f":"IF(AND($C$5=1,$B$7<=7),VLOOKUP(A55,SummaryData!$K$5:$X$215,14,0)*100000,VLOOKUP(A55,SummaryData!$K$5:$X$215,14,0)*100 )","v":81.06004579408166},13,{"$f":"VLOOKUP($A55,cost_data!$A$5:$BB$215,$D$6,0)/VLOOKUP($A55,cost_data!$A$5:$BB$215,$F$6,0)","v":1.233998316895744},{"$f":"IFERROR(VLOOKUP($A55,cost_data!$A$5:$BB$215,$H$6,0)/VLOOKUP($A55,cost_data!$A$5:$BB$215,$J$6,0),0)","v":1.1870009753738311},{"$f":"IF(AND($C$5=1,$B$7<=7),VLOOKUP($A55,outcome_data!$A$1:$BJ$216,$D$7,0)/VLOOKUP($A55,outcome_data!$A$1:$BJ$216,$F$7,0)*100000,VLOOKUP($A55,outcome_data!$A$1:$BJ$216,$D$7,0)/VLOOKUP($A55,outcome_data!$A$1:$BJ$216,$F$7,0)*100)","v":81.06004579408166},{"$f":"IF(AND($C$5=1,$B$7<=7),VLOOKUP($A55,outcome_data!$A$1:$BJ$216,$H$7,0)/VLOOKUP($A55,outcome_data!$A$1:$BJ$216,$J$7,0)*100000,VLOOKUP($A55,outcome_data!$A$1:$BJ$216,$H$7,0)/VLOOKUP($A55,outcome_data!$A$1:$BJ$216,$J$7,0)*100)","v":{"$error":"#DIV/0!"}}]
["02T",{"$f":"VLOOKUP($A56,SummaryData!$K$5:$M$215,3,0)","v":"Yorkshire and Northern"},{"$f":"VLOOKUP($A56,SummaryData!$K$5:$N$215,4,0)","v":"Closest 10 CCGs"},{"$f":"VLOOKUP($A56,SummaryData!$K$5:$P$215,6,0)","v":5},{"$f":"VLOOKUP(A56,SummaryData!$K$4:$T$215,10,0)","v":0.99734394550708949},2,{"$f":"IF(AND($C$5=1,$B$7<=7),VLOOKUP(A56,SummaryData!$K$5:$X$215,14,0)*100000,VLOOKUP(A56,SummaryData!$K$5:$X$215,14,0)*100 )","v":82.897076998824375},13,{"$f":"VLOOKUP($A56,cost_data!$A$5:$BB$215,$D$6,0)/VLOOKUP($A56,cost_data!$A$5:$BB$215,$F$6,0)","v":0.99734394550708949},{"$f":"IFERROR(VLOOKUP($A56,cost_data!$A$5:$BB$215,$H$6,0)/VLOOKUP($A56,cost_data!$A$5:$BB$215,$J$6,0),0)","v":0.92122950499841894},{"$f":"IF(AND($C$5=1,$B$7<=7),VLOOKUP($A56,outcome_data!$A$1:$BJ$216,$D$7,0)/VLOOKUP($A56,outcome_data!$A$1:$BJ$216,$F$7,0)*100000,VLOOKUP($A56,outcome_data!$A$1:$BJ$216,$D$7,0)/VLOOKUP($A56,outcome_data!$A$1:$BJ$216,$F$7,0)*100)","v":82.897076998824375},{"$f":"IF(AND($C$5=1,$B$7<=7),VLOOKUP($A56,outcome_data!$A$1:$BJ$216,$H$7,0)/VLOOKUP($A56,outcome_data!$A$1:$BJ$216,$J$7,0)*100000,VLOOKUP($A56,outcome_data!$A$1:$BJ$216,$H$7,0)/VLOOKUP($A56,outcome_data!$A$1:$BJ$216,$J$7,0)*100)","v":{"$error":"#DIV/0!"}}]
["02V",{"$f":"VLOOKUP($A57,SummaryData!$K$5:$M$215,3,0)","v":"Yorkshire and Northern"},{"$f":"VLOOKUP($A57,SummaryData!$K$5:$N$215,4,0)","v":"No"},{"$f":"VLOOKUP($A57,SummaryData!$K$5:$P$215,6,0)","v":5},{"$f":"VLOOKUP(A57,SummaryData!$K$4:$T$215,10,0)","v":0.80852966705487439},2,{"$f":"IF(AND($C$5=1,$B$7<=7),VLOOKUP(A57,SummaryData!$K$5:$X$215,14,0)*100000,VLOOKUP(A57,SummaryData!$K$5:$X$215,14,0)*100 )","v":52.472293039205816},6,{"$f":"VLOOKUP($A57,cost_data!$A$5:$BB$215,$D$6,0)/VLOOKUP($A57,cost_data!$A$5:$BB$215,$F$6,0)","v":0.80852966705487439},{"$f":"IFERROR(VLOOKUP($A57,cost_data!$A$5:$BB$215,$H$6,0)/VLOOKUP($A57,cost_data!$A$5:$BB$215,$J$6,0),0)","v":0.80932513837386366},{"$f":"IF(AND($C$5=1,$B$7<=7),VLOOKUP($A57,outcome_data!$A$1:$BJ$216,$D$7,0)/VLOOKUP($A57,outcome_data!$A$1:$BJ$216,$F$7,0)*100000,VLOOKUP($A57,outcome_data!$A$1:$BJ$216,$D$7,0)/VLOOKUP($A57,outcome_data!$A$1:$BJ$216,$F$7,0)*100)","v":52.472293039205816},{"$f":"IF(AND($C$5=1,$B$7<=7),VLOOKUP($A57,outcome_data!$A$1:$BJ$216,$H$7,0)/VLOOKUP($A57,outcome_data!$A$1:$BJ$216,$J$7,0)*100000,VLOOKUP($A57,outcome_data!$A$1:$BJ$216,$H$7,0)/VLOOKUP($A57,outcome_data!$A$1:$BJ$216,$J$7,0)*100)","v":{"$error":"#DIV/0!"}}]
["02W",{"$f":"VLOOKUP($A58,SummaryData!$K$5:$M$215,3,0)","v":"Yorkshire and Northern"},{"$f":"VLOOKUP($A58,SummaryData!$K$5:$N$215,4,0)","v":"No"},{"$f":"VLOOKUP($A58,SummaryData!$K$5:$P$215,6,0)","v":1},{"$f":"VLOOKUP(A58,SummaryData!$K$4:$T$215,10,0)","v":0.15530311644983905},1,{"$f":"IF(AND($C$5=1,$B$7<=7),VLOOKUP(A58,SummaryData!$K$5:$X$215,14,0)*100000,VLOOKUP(A58,SummaryData!$K$5:$X$215,14,0)*100 )","v":57.323750855578375},7,{"$f":"VLOOKUP($A58,cost_data!$A$5:$BB$215,$D$6,0)/VLOOKUP($A58,cost_data!$A$5:$BB$215,$F$6,0)","v":0.15530311644983905},{"$f":"IFERROR(VLOOKUP($A58,cost_data!$A$5:$BB$215,$H$6,0)/VLOOKUP($A58,cost_data!$A$5:$BB$215,$J$6,0),0)","v":0.11693018379609667},{"$f":"IF(AND($C$5=1,$B$7<=7),VLOOKUP($A58,outcome_data!$A$1:$BJ$216,$D$7,0)/VLOOKUP($A58,outcome_data!$A$1:$BJ$216,$F$7,0)*100000,VLOOKUP($A58,outcome_data!$A$1:$BJ$216,$D$7,0)/VLOOKUP($A58,outcome_data!$A$1:$BJ$216,$F$7,0)*100)","v":57.323750855578375},{"$f":"IF(AND($C$5=1,$B$7<=7),VLOOKUP($A58,outcome_data!$A$1:$BJ$216,$H$7,0)/VLOOKUP($A58,outcome_data!$A$1:$BJ$216,$J$7,0)*100000,VLOOKUP($A58,outcome_data!$A$1:$BJ$216,$H$7,0)/VLOOKUP($A58,outcome_data!$A$1:$BJ$216,$J$7,0)*100)","v":{"$error":"#DIV/0!"}}]
["02X",{"$f":"VLOOKUP($A59,SummaryData!$K$5:$M$215,3,0)","v":"Yorkshire and Northern"},{"$f":"VLOOKUP($A59,SummaryData!$K$5:$N$215,4,0)","v":"No"},{"$f":"VLOOKUP($A59,SummaryData!$K$5:$P$215,6,0)","v":2},{"$f":"VLOOKUP(A59,SummaryData!$K$4:$T$215,10,0)","v":1.7484834049112363},4,{"$f":"IF(AND($C$5=1,$B$7<=7),VLOOKUP(A59,SummaryData!$K$5:$X$215,14,0)*100000,VLOOKUP(A59,SummaryData!$K$5:$X$215,14,0)*100 )","v":78.736836185200289},12,{"$f":"VLOOKUP($A59,cost_data!$A$5:$BB$215,$D$6,0)/VLOOKUP($A59,cost_data!$A$5:$BB$215,$F$6,0)","v":1.7484834049112363},{"$f":"IFERROR(VLOOKUP($A59,cost_data!$A$5:$BB$215,$H$6,0)/VLOOKUP($A59,cost_data!$A$5:$BB$215,$J$6,0),0)","v":1.5012918196742877},{"$f":"IF(AND($C$5=1,$B$7<=7),VLOOKUP($A59,outcome_data!$A$1:$BJ$216,$D$7,0)/VLOOKUP($A59,outcome_data!$A$1:$BJ$216,$F$7,0)*100000,VLOOKUP($A59,outcome_data!$A$1:$BJ$216,$D$7,0)/VLOOKUP($A59,outcome_data!$A$1:$BJ$216,$F$7,0)*100)","v":78.736836185200289},{"$f":"IF(AND($C$5=1,$B$7<=7),VLOOKUP($A59,outcome_data!$A$1:$BJ$216,$H$7,0)/VLOOKUP($A59,outcome_data!$A$1:$BJ$216,$J$7,0)*100000,VLOOKUP($A59,outcome_data!$A$1:$BJ$216,$H$7,0)/VLOOKUP($A59,outcome_data!$A$1:$BJ$216,$J$7,0)*100)","v":{"$error":"#DIV/0!"}}]
["02Y",{"$f":"VLOOKUP($A60,SummaryData!$K$5:$M$215,3,0)","v":"Yorkshire and Northern"},{"$f":"VLOOKUP($A60,SummaryData!$K$5:$N$215,4,0)","v":"No"},{"$f":"VLOOKUP($A60,SummaryData!$K$5:$P$215,6,0)","v":8},{"$f":"VLOOKUP(A60,SummaryData!$K$4:$T$215,10,0)","v":1.4895255241838976},4,{"$f":"IF(AND($C$5=1,$B$7<=7),VLOOKUP(A60,SummaryData!$K$5:$X$215,14,0)*100000,VLOOKUP(A60,SummaryData!$K$5:$X$215,14,0)*100 )","v":76.648214318775118},12,{"$f":"VLOOKUP($A60,cost_data!$A$5:$BB$215,$D$6,0)/VLOOKUP($A60,cost_data!$A$5:$BB$215,$F$6,0)","v":1.4895255241838976},{"$f":"IFERROR(VLOOKUP($A60,cost_data!$A$5:$BB$215,$H$6,0)/VLOOKUP($A60,cost_data!$A$5:$BB$215,$J$6,0),0)","v":1.1725523233197679},{"$f":"IF(AND($C$5=1,$B$7<=7),VLOOKUP($A60,outcome_data!$A$1:$BJ$216,$D$7,0)/VLOOKUP($A60,outcome_data!$A$1:$BJ$216,$F$7,0)*100000,VLOOKUP($A60,outcome_data!$A$1:$BJ$216,$D$7,0)/VLOOKUP($A60,outcome_data!$A$1:$BJ$216,$F$7,0)*100)","v":76.648214318775118},{"$f":"IF(AND($C$5=1,$B$7<=7),VLOOKUP($A60,outcome_data!$A$1:$BJ$216,$H$7,0)/VLOOKUP($A60,outcome_data!$A$1:$BJ$216,$J$7,0)*100000,VLOOKUP($A60,outcome_data!$A$1:$BJ$216,$H$7,0)/VLOOKUP($A60,outcome_data!$A$1:$BJ$216,$J$7,0)*100)","v":{"$error":"#DIV/0!"}}]
["03A",{"$f":"VLOOKUP($A61,SummaryData!$K$5:$M$215,3,0)","v":"Yorkshire and Northern"},{"$f":"VLOOKUP($A61,SummaryData!$K$5:$N$215,4,0)","v":"No"},{"$f":"VLOOKUP($A61,SummaryData!$K$5:$P$215,6,0)","v":5},{"$f":"VLOOKUP(A61,SummaryData!$K$4:$T$215,10,0)","v":1.0293414810305423},3,{"$f":"IF(AND($C$5=1,$B$7<=7),VLOOKUP(A61,SummaryData!$K$5:$X$215,14,0)*100000,VLOOKUP(A61,SummaryData!$K$5:$X$215,14,0)*100 )","v":60.479535517167236},8,{"$f":"VLOOKUP($A61,cost_data!$A$5:$BB$215,$D$6,0)/VLOOKUP($A61,cost_data!$A$5:$BB$215,$F$6,0)","v":1.0293414810305423},{"$f":"IFERROR(VLOOKUP($A61,cost_data!$A$5:$BB$215,$H$6,0)/VLOOKUP($A61,cost_data!$A$5:$BB$215,$J$6,0),0)","v":0.89561482829016781},{"$f":"IF(AND($C$5=1,$B$7<=7),VLOOKUP($A61,outcome_data!$A$1:$BJ$216,$D$7,0)/VLOOKUP($A61,outcome_data!$A$1:$BJ$216,$F$7,0)*100000,VLOOKUP($A61,outcome_data!$A$1:$BJ$216,$D$7,0)/VLOOKUP($A61,outcome_data!$A$1:$BJ$216,$F$7,0)*100)","v":60.479535517167236},{"$f":"IF(AND($C$5=1,$B$7<=7),VLOOKUP($A61,outcome_data!$A$1:$BJ$216,$H$7,0)/VLOOKUP($A61,outcome_data!$A$1:$BJ$216,$J$7,0)*100000,VLOOKUP($A61,outcome_data!$A$1:$BJ$216,$H$7,0)/VLOOKUP($A61,outcome_data!$A$1:$BJ$216,$J$7,0)*100)","v":{"$error":"#DIV/0!"}}]
["03C",{"$f":"VLOOKUP($A62,SummaryData!$K$5:$M$215,3,0)","v":"Yorkshire and Northern"},{"$f":"VLOOKUP($A62,SummaryData!$K$5:$N$215,4,0)","v":"No"},{"$f":"VLOOKUP($A62,SummaryData!$K$5:$P$215,6,0)","v":5},{"$f":"VLOOKUP(A62,SummaryData!$K$4:$T$215,10,0)","v":0.70719006322958533},2,{"$f":"IF(AND($C$5=1,$B$7<=7),VLOOKUP(A62,SummaryData!$K$5:$X$215,14,0)*100000,VLOOKUP(A62,SummaryData!$K$5:$X$215,14,0)*100 )","v":56.871869455362983},7,{"$f":"VLOOKUP($A62,cost_data!$A$5:$BB$215,$D$6,0)/VLOOKUP($A62,cost_data!$A$5:$BB$215,$F$6,0)","v":0.70719006322958533},{"$f":"IFERROR(VLOOKUP($A62,cost_data!$A$5:$BB$215,$H$6,0)/VLOOKUP($A62,cost_data!$A$5:$BB$215,$J$6,0),0)","v":0.54805420648091774},{"$f":"IF(AND($C$5=1,$B$7<=7),VLOOKUP($A62,outcome_data!$A$1:$BJ$216,$D$7,0)/VLOOKUP($A62,outcome_data!$A$1:$BJ$216,$F$7,0)*100000,VLOOKUP($A62,outcome_data!$A$1:$BJ$216,$D$7,0)/VLOOKUP($A62,outcome_data!$A$1:$BJ$216,$F$7,0)*100)","v":56.871869455362983},{"$f":"IF(AND($C$5=1,$B$7<=7),VLOOKUP($A62,outcome_data!$A$1:$BJ$216,$H$7,0)/VLOOKUP($A62,outcome_data!$A$1:$BJ$216,$J$7,0)*100000,VLOOKUP($A62,outcome_data!$A$1:$BJ$216,$H$7,0)/VLOOKUP($A62,outcome_data!$A$1:$BJ$216,$J$7,0)*100)","v":{"$error":"#DIV/0!"}}]
["03D",{"$f":"VLOOKUP($A63,SummaryData!$K$5:$M$215,3,0)","v":"Northern England"},{"$f":"VLOOKUP($A63,SummaryData!$K$5:$N$215,4,0)","v":"No"},{"$f":"VLOOKUP($A63,SummaryData!$K$5:$P$215,6,0)","v":9},{"$f":"VLOOKUP(A63,SummaryData!$K$4:$T$215,10,0)","v":1.6490730863224361},4,{"$f":"IF(AND($C$5=1,$B$7<=7),VLOOKUP(A63,SummaryData!$K$5:$X$215,14,0)*100000,VLOOKUP(A63,SummaryData!$K$5:$X$215,14,0)*100 )","v":62.669894166216231},8,{"$f":"VLOOKUP($A63,cost_data!$A$5:$BB$215,$D$6,0)/VLOOKUP($A63,cost_data!$A$5:$BB$215,$F$6,0)","v":1.6490730863224361},{"$f":"IFERROR(VLOOKUP($A63,cost_data!$A$5:$BB$215,$H$6,0)/VLOOKUP($A63,cost_data!$A$5:$BB$215,$J$6,0),0)","v":1.8228276269887966},{"$f":"IF(AND($C$5=1,$B$7<=7),VLOOKUP($A63,outcome_data!$A$1:$BJ$216,$D$7,0)/VLOOKUP($A63,outcome_data!$A$1:$BJ$216,$F$7,0)*100000,VLOOKUP($A63,outcome_data!$A$1:$BJ$216,$D$7,0)/VLOOKUP($A63,outcome_data!$A$1:$BJ$216,$F$7,0)*100)","v":62.669894166216231},{"$f":"IF(AND($C$5=1,$B$7<=7),VLOOKUP($A63,outcome_data!$A$1:$BJ$216,$H$7,0)/VLOOKUP($A63,outcome_data!$A$1:$BJ$216,$J$7,0)*100000,VLOOKUP($A63,outcome_data!$A$1:$BJ$216,$H$7,0)/VLOOKUP($A63,outcome_data!$A$1:$BJ$216,$J$7,0)*100)","v":{"$error":"#DIV/0!"}}]
["03E",{"$f":"VLOOKUP($A64,SummaryData!$K$5:$M$215,3,0)","v":"Yorkshire and Northern"},{"$f":"VLOOKUP($A64,SummaryData!$K$5:$N$215,4,0)","v":"Closest 10 CCGs"},{"$f":"VLOOKUP($A64,SummaryData!$K$5:$P$215,6,0)","v":10},{"$f":"VLOOKUP(A64,SummaryData!$K$4:$T$215,10,0)","v":1.3806159306654986},3,{"$f":"IF(AND($C$5=1,$B$7<=7),VLOOKUP(A64,SummaryData!$K$5:$X$215,14,0)*100000,VLOOKUP(A64,SummaryData!$K$5:$X$215,14,0)*100 )","v":54.037951268852666},6,{"$f":"VLOOKUP($A64,cost_data!$A$5:$BB$215,$D$6,0)/VLOOKUP($A64,cost_data!$A$5:$BB$215,$F$6,0)","v":1.3806159306654986},{"$f":"IFERROR(VLOOKUP($A64,cost_data!$A$5:$BB$215,$H$6,0)/VLOOKUP($A64,cost_data!$A$5:$BB$215,$J$6,0),0)","v":1.1872955023395677},{"$f":"IF(AND($C$5=1,$B$7<=7),VLOOKUP($A64,outcome_data!$A$1:$BJ$216,$D$7,0)/VLOOKUP($A64,outcome_data!$A$1:$BJ$216,$F$7,0)*100000,VLOOKUP($A64,outcome_data!$A$1:$BJ$216,$D$7,0)/VLOOKUP($A64,outcome_data!$A$1:$BJ$216,$F$7,0)*100)","v":54.037951268852666},{"$f":"IF(AND($C$5=1,$B$7<=7),VLOOKUP($A64,outcome_data!$A$1:$BJ$216,$H$7,0)/VLOOKUP($A64,outcome_data!$A$1:$BJ$216,$J$7,0)*100000,VLOOKUP($A64,outcome_data!$A$1:$BJ$216,$H$7,0)/VLOOKUP($A64,outcome_data!$A$1:$BJ$216,$J$7,0)*100)","v":{"$error":"#DIV/0!"}}]
["03F",{"$f":"VLOOKUP($A65,SummaryData!$K$5:$M$215,3,0)","v":"Yorkshire and Northern"},{"$f":"VLOOKUP($A65,SummaryData!$K$5:$N$215,4,0)","v":"No"},{"$f":"VLOOKUP($A65,SummaryData!$K$5:$P$215,6,0)","v":1},{"$f":"VLOOKUP(A65,SummaryData!$K$4:$T$215,10,0)","v":0.67566130503507449},2,{"$f":"IF(AND($C$5=1,$B$7<=7),VLOOKUP(A65,SummaryData!$K$5:$X$215,14,0)*100000,VLOOKUP(A65,SummaryData!$K$5:$X$215,14,0)*100 )","v":73.846199518329811},11,{"$f":"VLOOKUP($A65,cost_data!$A$5:$BB$215,$D$6,0)/VLOOKUP($A65,cost_data!$A$5:$BB$215,$F$6,0)","v":0.67566130503507449},{"$f":"IFERROR(VLOOKUP($A65,cost_data!$A$5:$BB$215,$H$6,0)/VLOOKUP($A65,cost_data!$A$5:$BB$215,$J$6,0),0)","v":0.57488145697594106},{"$f":"IF(AND($C$5=1,$B$7<=7),VLOOKUP($A65,outcome_data!$A$1:$BJ$216,$D$7,0)/VLOOKUP($A65,outcome_data!$A$1:$BJ$216,$F$7,0)*100000,VLOOKUP($A65,outcome_data!$A$1:$BJ$216,$D$7,0)/VLOOKUP($A65,outcome_data!$A$1:$BJ$216,$F$7,0)*100)","v":73.846199518329811},{"$f":"IF(AND($C$5=1,$B$7<=7),VLOOKUP($A65,outcome_data!$A$1:$BJ$216,$H$7,0)/VLOOKUP($A65,outcome_data!$A$1:$BJ$216,$J$7,0)*100000,VLOOKUP($A65,outcome_data!$A$1:$BJ$216,$H$7,0)/VLOOKUP($A65,outcome_data!$A$1:$BJ$216,$J$7,0)*100)","v":{"$error":"#DIV/0!"}}]
["03G",{"$f":"VLOOKUP($A66,SummaryData!$K$5:$M$215,3,0)","v":"Yorkshire and Northern"},{"$f":"VLOOKUP($A66,SummaryData!$K$5:$N$215,4,0)","v":"No"},{"$f":"VLOOKUP($A66,SummaryData!$K$5:$P$215,6,0)","v":1},{"$f":"VLOOKUP(A66,SummaryData!$K$4:$T$215,10,0)","v":0.76273849368141566},2,{"$f":"IF(AND($C$5=1,$B$7<=7),VLOOKUP(A66,SummaryData!$K$5:$X$215,14,0)*100000,VLOOKUP(A66,SummaryData!$K$5:$X$215,14,0)*100 )","v":72.961460859640894},11,{"$f":"VLOOKUP($A66,cost_data!$A$5:$BB$215,$D$6,0)/VLOOKUP($A66,cost_data!$A$5:$BB$215,$F$6,0)","v":0.76273849368141566},{"$f":"IFERROR(VLOOKUP($A66,cost_data!$A$5:$BB$215,$H$6,0)/VLOOKUP($A66,cost_data!$A$5:$BB$215,$J$6,0),0)","v":0.514728208082324},{"$f":"IF(AND($C$5=1,$B$7<=7),VLOOKUP($A66,outcome_data!$A$1:$BJ$216,$D$7,0)/VLOOKUP($A66,outcome_data!$A$1:$BJ$216,$F$7,0)*100000,VLOOKUP($A66,outcome_data!$A$1:$BJ$216,$D$7,0)/VLOOKUP($A66,outcome_data!$A$1:$BJ$216,$F$7,0)*100)","v":72.961460859640894},{"$f":"IF(AND($C$5=1,$B$7<=7),VLOOKUP($A66,outcome_data!$A$1:$BJ$216,$H$7,0)/VLOOKUP($A66,outcome_data!$A$1:$BJ$216,$J$7,0)*100000,VLOOKUP($A66,outcome_data!$A$1:$BJ$216,$H$7,0)/VLOOKUP($A66,outcome_data!$A$1:$BJ$216,$J$7,0)*100)","v":{"$error":"#DIV/0!"}}]
["03H",{"$f":"VLOOKUP($A67,SummaryData!$K$5:$M$215,3,0)","v":"Yorkshire and Northern"},{"$f":"VLOOKUP($A67,SummaryData!$K$5:$N$215,4,0)","v":"No"},{"$f":"VLOOKUP($A67,SummaryData!$K$5:$P$215,6,0)","v":3},{"$f":"VLOOKUP(A67,SummaryData!$K$4:$T$215,10,0)","v":1.0692186292264427},3,{"$f":"IF(AND($C$5=1,$B$7<=7),VLOOKUP(A67,SummaryData!$K$5:$X$215,14,0)*100000,VLOOKUP(A67,SummaryData!$K$5:$X$215,14,0)*100 )","v":79.314514556163786},13,{"$f":"VLOOKUP($A67,cost_data!$A$5:$BB$215,$D$6,0)/VLOOKUP($A67,cost_data!$A$5:$BB$215,$F$6,0)","v":1.0692186292264427},{"$f":"IFERROR(VLOOKUP($A67,cost_data!$A$5:$BB$215,$H$6,0)/VLOOKUP($A67,cost_data!$A$5:$BB$215,$J$6,0),0)","v":1.1230287384746587},{"$f":"IF(AND($C$5=1,$B$7<=7),VLOOKUP($A67,outcome_data!$A$1:$BJ$216,$D$7,0)/VLOOKUP($A67,outcome_data!$A$1:$BJ$216,$F$7,0)*100000,VLOOKUP($A67,outcome_data!$A$1:$BJ$216,$D$7,0)/VLOOKUP($A67,outcome_data!$A$1:$BJ$216,$F$7,0)*100)","v":79.314514556163786},{"$f":"IF(AND($C$5=1,$B$7<=7),VLOOKUP($A67,outcome_data!$A$1:$BJ$216,$H$7,0)/VLOOKUP($A67,outcome_data!$A$1:$BJ$216,$J$7,0)*100000,VLOOKUP($A67,outcome_data!$A$1:$BJ$216,$H$7,0)/VLOOKUP($A67,outcome_data!$A$1:$BJ$216,$J$7,0)*100)","v":{"$error":"#DIV/0!"}}]
["03J",{"$f":"VLOOKUP($A68,SummaryData!$K$5:$M$215,3,0)","v":"Yorkshire and Northern"},{"$f":"VLOOKUP($A68,SummaryData!$K$5:$N$215,4,0)","v":"No"},{"$f":"VLOOKUP($A68,SummaryData!$K$5:$P$215,6,0)","v":3},{"$f":"VLOOKUP(A68,SummaryData!$K$4:$T$215,10,0)","v":0.68673459770114931},2,{"$f":"IF(AND($C$5=1,$B$7<=7),VLOOKUP(A68,SummaryData!$K$5:$X$215,14,0)*100000,VLOOKUP(A68,SummaryData!$K$5:$X$215,14,0)*100 )","v":72.723108197096806},11,{"$f":"VLOOKUP($A68,cost_data!$A$5:$BB$215,$D$6,0)/VLOOKUP($A68,cost_data!$A$5:$BB$215,$F$6,0)","v":0.68673459770114931},{"$f":"IFERROR(VLOOKUP($A68,cost_data!$A$5:$BB$215,$H$6,0)/VLOOKUP($A68,cost_data!$A$5:$BB$215,$J$6,0),0)","v":0.51827082895016452},{"$f":"IF(AND($C$5=1,$B$7<=7),VLOOKUP($A68,outcome_data!$A$1:$BJ$216,$D$7,0)/VLOOKUP($A68,outcome_data!$A$1:$BJ$216,$F$7,0)*100000,VLOOKUP($A68,outcome_data!$A$1:$BJ$216,$D$7,0)/VLOOKUP($A68,outcome_data!$A$1:$BJ$216,$F$7,0)*100)","v":72.723108197096806},{"$f":"IF(AND($C$5=1,$B$7<=7),VLOOKUP($A68,outcome_data!$A$1:$BJ$216,$H$7,0)/VLOOKUP($A68,outcome_data!$A$1:$BJ$216,$J$7,0)*100000,VLOOKUP($A68,outcome_data!$A$1:$BJ$216,$H$7,0)/VLOOKUP($A68,outcome_data!$A$1:$BJ$216,$J$7,0)*100)","v":{"$error":"#DIV/0!"}}]
["03K",{"$f":"VLOOKUP($A69,SummaryData!$K$5:$M$215,3,0)","v":"Yorkshire and Northern"},{"$f":"VLOOKUP($A69,SummaryData!$K$5:$N$215,4,0)","v":"No"},{"$f":"VLOOKUP($A69,SummaryData!$K$5:$P$215,6,0)","v":5},{"$f":"VLOOKUP(A69,SummaryData!$K$4:$T$215,10,0)","v":1.7607024685554047},4,{"$f":"IF(AND($C$5=1,$B$7<=7),VLOOKUP(A69,SummaryData!$K$5:$X$215,14,0)*100000,VLOOKUP(A69,SummaryData!$K$5:$X$215,14,0)*100 )","v":81.151579557530681},13,{"$f":"VLOOKUP($A69,cost_data!$A$5:$BB$215,$D$6,0)/VLOOKUP($A69,cost_data!$A$5:$BB$215,$F$6,0)","v":1.7607024685554047},{"$f":"IFERROR(VLOOKUP($A69,cost_data!$A$5:$BB$215,$H$6,0)/VLOOKUP($A69,cost_data!$A$5:$BB$215,$J$6,0),0)","v":1.3460003917904027},{"$f":"IF(AND($C$5=1,$B$7<=7),VLOOKUP($A69,outcome_data!$A$1:$BJ$216,$D$7,0)/VLOOKUP($A69,outcome_data!$A$1:$BJ$216,$F$7,0)*100000,VLOOKUP($A69,outcome_data!$A$1:$BJ$216,$D$7,0)/VLOOKUP($A69,outcome_data!$A$1:$BJ$216,$F$7,0)*100)","v":81.151579557530681},{"$f":"IF(AND($C$5=1,$B$7<=7),VLOOKUP($A69,outcome_data!$A$1:$BJ$216,$H$7,0)/VLOOKUP($A69,outcome_data!$A$1:$BJ$216,$J$7,0)*100000,VLOOKUP($A69,outcome_data!$A$1:$BJ$216,$H$7,0)/VLOOKUP($A69,outcome_data!$A$1:$BJ$216,$J$7,0)*100)","v":{"$error":"#DIV/0!"}}]
["03L",{"$f":"VLOOKUP($A70,SummaryData!$K$5:$M$215,3,0)","v":"Yorkshire and Northern"},{"$f":"VLOOKUP($A70,SummaryData!$K$5:$N$215,4,0)","v":"No"},{"$f":"VLOOKUP($A70,SummaryData!$K$5:$P$215,6,0)","v":3},{"$f":"VLOOKUP(A70,SummaryData!$K$4:$T$215,10,0)","v":1.9164975270903672},5,{"$f":"IF(AND($C$5=1,$B$7<=7),VLOOKUP(A70,SummaryData!$K$5:$X$215,14,0)*100000,VLOOKUP(A70,SummaryData!$K$5:$X$215,14,0)*100 )","v":74.798108495290251},11,{"$f":"VLOOKUP($A70,cost_data!$A$5:$BB$215,$D$6,0)/VLOOKUP($A70,cost_data!$A$5:$BB$215,$F$6,0)","v":1.9164975270903672},{"$f":"IFERROR(VLOOKUP($A70,cost_data!$A$5:$BB$215,$H$6,0)/VLOOKUP($A70,cost_data!$A$5:$BB$215,$J$6,0),0)","v":1.6999922211935785},{"$f":"IF(AND($C$5=1,$B$7<=7),VLOOKUP($A70,outcome_data!$A$1:$BJ$216,$D$7,0)/VLOOKUP($A70,outcome_data!$A$1:$BJ$216,$F$7,0)*100000,VLOOKUP($A70,outcome_data!$A$1:$BJ$216,$D$7,0)/VLOOKUP($A70,outcome_data!$A$1:$BJ$216,$F$7,0)*100)","v":74.798108495290251},{"$f":"IF(AND($C$5=1,$B$7<=7),VLOOKUP($A70,outcome_data!$A$1:$BJ$216,$H$7,0)/VLOOKUP($A70,outcome_data!$A$1:$BJ$216,$J$7,0)*100000,VLOOKUP($A70,outcome_data!$A$1:$BJ$216,$H$7,0)/VLOOKUP($A70,outcome_data!$A$1:$BJ$216,$J$7,0)*100)","v":{"$error":"#DIV/0!"}}]
["03M",{"$f":"VLOOKUP($A71,SummaryData!$K$5:$M$215,3,0)","v":"Yorkshire and Northern"},{"$f":"VLOOKUP($A71,SummaryData!$K$5:$N$215,4,0)","v":"No"},{"$f":"VLOOKUP($A71,SummaryData!$K$5:$P$215,6,0)","v":4},{"$f":"VLOOKUP(A71,SummaryData!$K$4:$T$215,10,0)","v":1.8642158411183318},5,{"$f":"IF(AND($C$5=1,$B$7<=7),VLOOKUP(A71,SummaryData!$K$5:$X$215,14,0)*100000,VLOOKUP(A71,SummaryData!$K$5:$X$215,14,0)*100 )","v":107.94738985105154},20,{"$f":"VLOOKUP($A71,cost_data!$A$5:$BB$215,$D$6,0)/VLOOKUP($A71,cost_data!$A$5:$BB$215,$F$6,0)","v":1.8642158411183318},{"$f":"IFERROR(VLOOKUP($A71,cost_data!$A$5:$BB$215,$H$6,0)/VLOOKUP($A71,cost_data!$A$5:$BB$215,$J$6,0),0)","v":1.6929600161856717},{"$f":"IF(AND($C$5=1,$B$7<=7),VLOOKUP($A71,outcome_data!$A$1:$BJ$216,$D$7,0)/VLOOKUP($A71,outcome_data!$A$1:$BJ$216,$F$7,0)*100000,VLOOKUP($A71,outcome_data!$A$1:$BJ$216,$D$7,0)/VLOOKUP($A71,outcome_data!$A$1:$BJ$216,$F$7,0)*100)","v":107.94738985105154},{"$f":"IF(AND($C$5=1,$B$7<=7),VLOOKUP($A71,outcome_data!$A$1:$BJ$216,$H$7,0)/VLOOKUP($A71,outcome_data!$A$1:$BJ$216,$J$7,0)*100000,VLOOKUP($A71,outcome_data!$A$1:$BJ$216,$H$7,0)/VLOOKUP($A71,outcome_data!$A$1:$BJ$216,$J$7,0)*100)","v":{"$error":"#DIV/0!"}}]
["03N",{"$f":"VLOOKUP($A72,SummaryData!$K$5:$M$215,3,0)","v":"Yorkshire and Northern"},{"$f":"VLOOKUP($A72,SummaryData!$K$5:$N$215,4,0)","v":"No"},{"$f":"VLOOKUP($A72,SummaryData!$K$5:$P$215,6,0)","v":3},{"$f":"VLOOKUP(A72,SummaryData!$K$4:$T$215,10,0)","v":1.0613456045540817},3,{"$f":"IF(AND($C$5=1,$B$7<=7),VLOOKUP(A72,SummaryData!$K$5:$X$215,14,0)*100000,VLOOKUP(A72,SummaryData!$K$5:$X$215,14,0)*100 )","v":68.918632938986406},10,{"$f":"VLOOKUP($A72,cost_data!$A$5:$BB$215,$D$6,0)/VLOOKUP($A72,cost_data!$A$5:$BB$215,$F$6,0)","v":1.0613456045540817},{"$f":"IFERROR(VLOOKUP($A72,cost_data!$A$5:$BB$215,$H$6,0)/VLOOKUP($A72,cost_data!$A$5:$BB$215,$J$6,0),0)","v":0.85644938741073706},{"$f":"IF(AND($C$5=1,$B$7<=7),VLOOKUP($A72,outcome_data!$A$1:$BJ$216,$D$7,0)/VLOOKUP($A72,outcome_data!$A$1:$BJ$216,$F$7,0)*100000,VLOOKUP($A72,outcome_data!$A$1:$BJ$216,$D$7,0)/VLOOKUP($A72,outcome_data!$A$1:$BJ$216,$F$7,0)*100)","v":68.918632938986406},{"$f":"IF(AND($C$5=1,$B$7<=7),VLOOKUP($A72,outcome_data!$A$1:$BJ$216,$H$7,0)/VLOOKUP($A72,outcome_data!$A$1:$BJ$216,$J$7,0)*100000,VLOOKUP($A72,outcome_data!$A$1:$BJ$216,$H$7,0)/VLOOKUP($A72,outcome_data!$A$1:$BJ$216,$J$7,0)*100)","v":{"$error":"#DIV/0!"}}]
["03Q",{"$f":"VLOOKUP($A73,SummaryData!$K$5:$M$215,3,0)","v":"Yorkshire and Northern"},{"$f":"VLOOKUP($A73,SummaryData!$K$5:$N$215,4,0)","v":"No"},{"$f":"VLOOKUP($A73,SummaryData!$K$5:$P$215,6,0)","v":9},{"$f":"VLOOKUP(A73,SummaryData!$K$4:$T$215,10,0)","v":1.2166047723895972},3,{"$f":"IF(AND($C$5=1,$B$7<=7),VLOOKUP(A73,SummaryData!$K$5:$X$215,14,0)*100000,VLOOKUP(A73,SummaryData!$K$5:$X$215,14,0)*100 )","v":70.125333095332209},10,{"$f":"VLOOKUP($A73,cost_data!$A$5:$BB$215,$D$6,0)/VLOOKUP($A73,cost_data!$A$5:$BB$215,$F$6,0)","v":1.2166047723895972},{"$f":"IFERROR(VLOOKUP($A73,cost_data!$A$5:$BB$215,$H$6,0)/VLOOKUP($A73,cost_data!$A$5:$BB$215,$J$6,0),0)","v":1.1245470579313814},{"$f":"IF(AND($C$5=1,$B$7<=7),VLOOKUP($A73,outcome_data!$A$1:$BJ$216,$D$7,0)/VLOOKUP($A73,outcome_data!$A$1:$BJ$216,$F$7,0)*100000,VLOOKUP($A73,outcome_data!$A$1:$BJ$216,$D$7,0)/VLOOKUP($A73,outcome_data!$A$1:$BJ$216,$F$7,0)*100)","v":70.125333095332209},{"$f":"IF(AND($C$5=1,$B$7<=7),VLOOKUP($A73,outcome_data!$A$1:$BJ$216,$H$7,0)/VLOOKUP($A73,outcome_data!$A$1:$BJ$216,$J$7,0)*100000,VLOOKUP($A73,outcome_data!$A$1:$BJ$216,$H$7,0)/VLOOKUP($A73,outcome_data!$A$1:$BJ$216,$J$7,0)*100)","v":{"$error":"#DIV/0!"}}]
["03R",{"$f":"VLOOKUP($A74,SummaryData!$K$5:$M$215,3,0)","v":"Yorkshire and Northern"},{"$f":"VLOOKUP($A74,SummaryData!$K$5:$N$215,4,0)","v":"No"},{"$f":"VLOOKUP($A74,SummaryData!$K$5:$P$215,6,0)","v":4},{"$f":"VLOOKUP(A74,SummaryData!$K$4:$T$215,10,0)","v":0.85469522730717218},{"$f":"IF(E74=$AD$15,1,ROUNDUP(((E74-$AD$15)/($AD$14-$AD$15)*20),0))","v":2},{"$f":"IF(AND($C$5=1,$B$7<=7),VLOOKUP(A74,SummaryData!$K$5:$X$215,14,0)*100000,VLOOKUP(A74,SummaryData!$K$5:$X$215,14,0)*100 )","v":74.550876427376537},{"$f":"IF(G74=$AX$15,1,ROUNDUP(((G74-$AX$15)/($AX$14-$AX$15)*20),0))","v":11},{"$f":"VLOOKUP($A74,cost_data!$A$5:$BB$215,$D$6,0)/VLOOKUP($A74,cost_data!$A$5:$BB$215,$F$6,0)","v":0.85469522730717218},{"$f":"IFERROR(VLOOKUP($A74,cost_data!$A$5:$BB$215,$H$6,0)/VLOOKUP($A74,cost_data!$A$5:$BB$215,$J$6,0),0)","v":0.92648997049977477},{"$f":"IF(AND($C$5=1,$B$7<=7),VLOOKUP($A74,outcome_data!$A$1:$BJ$216,$D$7,0)/VLOOKUP($A74,outcome_data!$A$1:$BJ$216,$F$7,0)*100000,VLOOKUP($A74,outcome_data!$A$1:$BJ$216,$D$7,0)/VLOOKUP($A74,outcome_data!$A$1:$BJ$216,$F$7,0)*100)","v":74.550876427376537},{"$f":"IF(AND($C$5=1,$B$7<=7),VLOOKUP($A74,outcome_data!$A$1:$BJ$216,$H$7,0)/VLOOKUP($A74,outcome_data!$A$1:$BJ$216,$J$7,0)*100000,VLOOKUP($A74,outcome_data!$A$1:$BJ$216,$H$7,0)/VLOOKUP($A74,outcome_data!$A$1:$BJ$216,$J$7,0)*100)","v":{"$error":"#DIV/0!"}}]
["03T",{"$f":"VLOOKUP($A75,SummaryData!$K$5:$M$215,3,0)","v":"East Midlands"},{"$f":"VLOOKUP($A75,SummaryData!$K$5:$N$215,4,0)","v":"No"},{"$f":"VLOOKUP($A75,SummaryData!$K$5:$P$215,6,0)","v":4},{"$f":"VLOOKUP(A75,SummaryData!$K$4:$T$215,10,0)","v":2.7043286090304584},7,{"$f":"IF(AND($C$5=1,$B$7<=7),VLOOKUP(A75,SummaryData!$K$5:$X$215,14,0)*100000,VLOOKUP(A75,SummaryData!$K$5:$X$215,14,0)*100 )","v":110.80485879305807},20,{"$f":"VLOOKUP($A75,cost_data!$A$5:$BB$215,$D$6,0)/VLOOKUP($A75,cost_data!$A$5:$BB$215,$F$6,0)","v":2.7043286090304584},{"$f":"IFERROR(VLOOKUP($A75,cost_data!$A$5:$BB$215,$H$6,0)/VLOOKUP($A75,cost_data!$A$5:$BB$215,$J$6,0),0)","v":2.4987536355533648},{"$f":"IF(AND($C$5=1,$B$7<=7),VLOOKUP($A75,outcome_data!$A$1:$BJ$216,$D$7,0)/VLOOKUP($A75,outcome_data!$A$1:$BJ$216,$F$7,0)*100000,VLOOKUP($A75,outcome_data!$A$1:$BJ$216,$D$7,0)/VLOOKUP($A75,outcome_data!$A$1:$BJ$216,$F$7,0)*100)","v":110.80485879305807},{"$f":"IF(AND($C$5=1,$B$7<=7),VLOOKUP($A75,outcome_data!$A$1:$BJ$216,$H$7,0)/VLOOKUP($A75,outcome_data!$A$1:$BJ$216,$J$7,0)*100000,VLOOKUP($A75,outcome_data!$A$1:$BJ$216,$H$7,0)/VLOOKUP($A75,outcome_data!$A$1:$BJ$216,$J$7,0)*100)","v":{"$error":"#DIV/0!"}}]
["03V",{"$f":"VLOOKUP($A76,SummaryData!$K$5:$M$215,3,0)","v":"East Midlands"},{"$f":"VLOOKUP($A76,SummaryData!$K$5:$N$215,4,0)","v":"No"},{"$f":"VLOOKUP($A76,SummaryData!$K$5:$P$215,6,0)","v":3},{"$f":"VLOOKUP(A76,SummaryData!$K$4:$T$215,10,0)","v":1.5969270162548583},4,{"$f":"IF(AND($C$5=1,$B$7<=7),VLOOKUP(A76,SummaryData!$K$5:$X$215,14,0)*100000,VLOOKUP(A76,SummaryData!$K$5:$X$215,14,0)*100 )","v":90.228277542181715},15,{"$f":"VLOOKUP($A76,cost_data!$A$5:$BB$215,$D$6,0)/VLOOKUP($A76,cost_data!$A$5:$BB$215,$F$6,0)","v":1.5969270162548583},{"$f":"IFERROR(VLOOKUP($A76,cost_data!$A$5:$BB$215,$H$6,0)/VLOOKUP($A76,cost_data!$A$5:$BB$215,$J$6,0),0)","v":0.82165820117463306},{"$f":"IF(AND($C$5=1,$B$7<=7),VLOOKUP($A76,outcome_data!$A$1:$BJ$216,$D$7,0)/VLOOKUP($A76,outcome_data!$A$1:$BJ$216,$F$7,0)*100000,VLOOKUP($A76,outcome_data!$A$1:$BJ$216,$D$7,0)/VLOOKUP($A76,outcome_data!$A$1:$BJ$216,$F$7,0)*100)","v":90.228277542181715},{"$f":"IF(AND($C$5=1,$B$7<=7),VLOOKUP($A76,outcome_data!$A$1:$BJ$216,$H$7,0)/VLOOKUP($A76,outcome_data!$A$1:$BJ$216,$J$7,0)*100000,VLOOKUP($A76,outcome_data!$A$1:$BJ$216,$H$7,0)/VLOOKUP($A76,outcome_data!$A$1:$BJ$216,$J$7,0)*100)","v":{"$error":"#DIV/0!"}}]
["03W",{"$f":"VLOOKUP($A77,SummaryData!$K$5:$M$215,3,0)","v":"East Midlands"},{"$f":"VLOOKUP($A77,SummaryData!$K$5:$N$215,4,0)","v":"No"},{"$f":"VLOOKUP($A77,SummaryData!$K$5:$P$215,6,0)","v":10},{"$f":"VLOOKUP(A77,SummaryData!$K$4:$T$215,10,0)","v":1.4999731545791941},4,{"$f":"IF(AND($C$5=1,$B$7<=7),VLOOKUP(A77,SummaryData!$K$5:$X$215,14,0)*100000,VLOOKUP(A77,SummaryData!$K$5:$X$215,14,0)*100 )","v":56.103588564505358},7,{"$f":"VLOOKUP($A77,cost_data!$A$5:$BB$215,$D$6,0)/VLOOKUP($A77,cost_data!$A$5:$BB$215,$F$6,0)","v":1.4999731545791941},{"$f":"IFERROR(VLOOKUP($A77,cost_data!$A$5:$BB$215,$H$6,0)/VLOOKUP($A77,cost_data!$A$5:$BB$215,$J$6,0),0)","v":1.5656438740277676},{"$f":"IF(AND($C$5=1,$B$7<=7),VLOOKUP($A77,outcome_data!$A$1:$BJ$216,$D$7,0)/VLOOKUP($A77,outcome_data!$A$1:$BJ$216,$F$7,0)*100000,VLOOKUP($A77,outcome_data!$A$1:$BJ$216,$D$7,0)/VLOOKUP($A77,outcome_data!$A$1:$BJ$216,$F$7,0)*100)","v":56.103588564505358},{"$f":"IF(AND($C$5=1,$B$7<=7),VLOOKUP($A77,outcome_data!$A$1:$BJ$216,$H$7,0)/VLOOKUP($A77,outcome_data!$A$1:$BJ$216,$J$7,0)*100000,VLOOKUP($A77,outcome_data!$A$1:$BJ$216,$H$7,0)/VLOOKUP($A77,outcome_data!$A$1:$BJ$216,$J$7,0)*100)","v":{"$error":"#DIV/0!"}}]
["03X",{"$f":"VLOOKUP($A78,SummaryData!$K$5:$M$215,3,0)","v":"East Midlands"},{"$f":"VLOOKUP($A78,SummaryData!$K$5:$N$215,4,0)","v":"No"},{"$f":"VLOOKUP($A78,SummaryData!$K$5:$P$215,6,0)","v":5},{"$f":"VLOOKUP(A78,SummaryData!$K$4:$T$215,10,0)","v":1.1654299869621902},3,{"$f":"IF(AND($C$5=1,$B$7<=7),VLOOKUP(A78,SummaryData!$K$5:$X$215,14,0)*100000,VLOOKUP(A78,SummaryData!$K$5:$X$215,14,0)*100 )","v":69.860729255870552},10,{"$f":"VLOOKUP($A78,cost_data!$A$5:$BB$215,$D$6,0)/VLOOKUP($A78,cost_data!$A$5:$BB$215,$F$6,0)","v":1.1654299869621902},{"$f":"IFERROR(VLOOKUP($A78,cost_data!$A$5:$BB$215,$H$6,0)/VLOOKUP($A78,cost_data!$A$5:$BB$215,$J$6,0),0)","v":0.99077458682347475},{"$f":"IF(AND($C$5=1,$B$7<=7),VLOOKUP($A78,outcome_data!$A$1:$BJ$216,$D$7,0)/VLOOKUP($A78,outcome_data!$A$1:$BJ$216,$F$7,0)*100000,VLOOKUP($A78,outcome_data!$A$1:$BJ$216,$D$7,0)/VLOOKUP($A78,outcome_data!$A$1:$BJ$216,$F$7,0)*100)","v":69.860729255870552},{"$f":"IF(AND($C$5=1,$B$7<=7),VLOOKUP($A78,outcome_data!$A$1:$BJ$216,$H$7,0)/VLOOKUP($A78,outcome_data!$A$1:$BJ$216,$J$7,0)*100000,VLOOKUP($A78,outcome_data!$A$1:$BJ$216,$H$7,0)/VLOOKUP($A78,outcome_data!$A$1:$BJ$216,$J$7,0)*100)","v":{"$error":"#DIV/0!"}}]
["03Y",{"$f":"VLOOKUP($A79,SummaryData!$K$5:$M$215,3,0)","v":"East Midlands"},{"$f":"VLOOKUP($A79,SummaryData!$K$5:$N$215,4,0)","v":"No"},{"$f":"VLOOKUP($A79,SummaryData!$K$5:$P$215,6,0)","v":4},{"$f":"VLOOKUP(A79,SummaryData!$K$4:$T$215,10,0)","v":1.671027542865517},4,{"$f":"IF(AND($C$5=1,$B$7<=7),VLOOKUP(A79,SummaryData!$K$5:$X$215,14,0)*100000,VLOOKUP(A79,SummaryData!$K$5:$X$215,14,0)*100 )","v":86.911736303354147},15,{"$f":"VLOOKUP($A79,cost_data!$A$5:$BB$215,$D$6,0)/VLOOKUP($A79,cost_data!$A$5:$BB$215,$F$6,0)","v":1.671027542865517},{"$f":"IFERROR(VLOOKUP($A79,cost_data!$A$5:$BB$215,$H$6,0)/VLOOKUP($A79,cost_data!$A$5:$BB$215,$J$6,0),0)","v":1.6098637301244254},{"$f":"IF(AND($C$5=1,$B$7<=7),VLOOKUP($A79,outcome_data!$A$1:$BJ$216,$D$7,0)/VLOOKUP($A79,outcome_data!$A$1:$BJ$216,$F$7,0)*100000,VLOOKUP($A79,outcome_data!$A$1:$BJ$216,$D$7,0)/VLOOKUP($A79,outcome_data!$A$1:$BJ$216,$F$7,0)*100)","v":86.911736303354147},{"$f":"IF(AND($C$5=1,$B$7<=7),VLOOKUP($A79,outcome_data!$A$1:$BJ$216,$H$7,0)/VLOOKUP($A79,outcome_data!$A$1:$BJ$216,$J$7,0)*100000,VLOOKUP($A79,outcome_data!$A$1:$BJ$216,$H$7,0)/VLOOKUP($A79,outcome_data!$A$1:$BJ$216,$J$7,0)*100)","v":{"$error":"#DIV/0!"}}]
["04C",{"$f":"VLOOKUP($A80,SummaryData!$K$5:$M$215,3,0)","v":"East Midlands"},{"$f":"VLOOKUP($A80,SummaryData!$K$5:$N$215,4,0)","v":"No"},{"$f":"VLOOKUP($A80,SummaryData!$K$5:$P$215,6,0)","v":2},{"$f":"VLOOKUP(A80,SummaryData!$K$4:$T$215,10,0)","v":0.74976153284729197},2,{"$f":"IF(AND($C$5=1,$B$7<=7),VLOOKUP(A80,SummaryData!$K$5:$X$215,14,0)*100000,VLOOKUP(A80,SummaryData!$K$5:$X$215,14,0)*100 )","v":64.134119070055277},9,{"$f":"VLOOKUP($A80,cost_data!$A$5:$BB$215,$D$6,0)/VLOOKUP($A80,cost_data!$A$5:$BB$215,$F$6,0)","v":0.74976153284729197},{"$f":"IFERROR(VLOOKUP($A80,cost_data!$A$5:$BB$215,$H$6,0)/VLOOKUP($A80,cost_data!$A$5:$BB$215,$J$6,0),0)","v":0.63026108361255295},{"$f":"IF(AND($C$5=1,$B$7<=7),VLOOKUP($A80,outcome_data!$A$1:$BJ$216,$D$7,0)/VLOOKUP($A80,outcome_data!$A$1:$BJ$216,$F$7,0)*100000,VLOOKUP($A80,outcome_data!$A$1:$BJ$216,$D$7,0)/VLOOKUP($A80,outcome_data!$A$1:$BJ$216,$F$7,0)*100)","v":64.134119070055277},{"$f":"IF(AND($C$5=1,$B$7<=7),VLOOKUP($A80,outcome_data!$A$1:$BJ$216,$H$7,0)/VLOOKUP($A80,outcome_data!$A$1:$BJ$216,$J$7,0)*100000,VLOOKUP($A80,outcome_data!$A$1:$BJ$216,$H$7,0)/VLOOKUP($A80,outcome_data!$A$1:$BJ$216,$J$7,0)*100)","v":{"$error":"#DIV/0!"}}]
["04D",{"$f":"VLOOKUP($A81,SummaryData!$K$5:$M$215,3,0)","v":"East Midlands"},{"$f":"VLOOKUP($A81,SummaryData!$K$5:$N$215,4,0)","v":"No"},{"$f":"VLOOKUP($A81,SummaryData!$K$5:$P$215,6,0)","v":6},{"$f":"VLOOKUP(A81,SummaryData!$K$4:$T$215,10,0)","v":1.3775534889666621},3,{"$f":"IF(AND($C$5=1,$B$7<=7),VLOOKUP(A81,SummaryData!$K$5:$X$215,14,0)*100000,VLOOKUP(A81,SummaryData!$K$5:$X$215,14,0)*100 )","v":76.926405469467426},12,{"$f":"VLOOKUP($A81,cost_data!$A$5:$BB$215,$D$6,0)/VLOOKUP($A81,cost_data!$A$5:$BB$215,$F$6,0)","v":1.3775534889666621},{"$f":"IFERROR(VLOOKUP($A81,cost_data!$A$5:$BB$215,$H$6,0)/VLOOKUP($A81,cost_data!$A$5:$BB$215,$J$6,0),0)","v":1.1819376034484861},{"$f":"IF(AND($C$5=1,$B$7<=7),VLOOKUP($A81,outcome_data!$A$1:$BJ$216,$D$7,0)/VLOOKUP($A81,outcome_data!$A$1:$BJ$216,$F$7,0)*100000,VLOOKUP($A81,outcome_data!$A$1:$BJ$216,$D$7,0)/VLOOKUP($A81,outcome_data!$A$1:$BJ$216,$F$7,0)*100)","v":76.926405469467426},{"$f":"IF(AND($C$5=1,$B$7<=7),VLOOKUP($A81,outcome_data!$A$1:$BJ$216,$H$7,0)/VLOOKUP($A81,outcome_data!$A$1:$BJ$216,$J$7,0)*100000,VLOOKUP($A81,outcome_data!$A$1:$BJ$216,$H$7,0)/VLOOKUP($A81,outcome_data!$A$1:$BJ$216,$J$7,0)*100)","v":{"$error":"#DIV/0!"}}]
["04E",{"$f":"VLOOKUP($A82,SummaryData!$K$5:$M$215,3,0)","v":"East Midlands"},{"$f":"VLOOKUP($A82,SummaryData!$K$5:$N$215,4,0)","v":"No"},{"$f":"VLOOKUP($A82,SummaryData!$K$5:$P$215,6,0)","v":3},{"$f":"VLOOKUP(A82,SummaryData!$K$4:$T$215,10,0)","v":1.2361266046300006},3,{"$f":"IF(AND($C$5=1,$B$7<=7),VLOOKUP(A82,SummaryData!$K$5:$X$215,14,0)*100000,VLOOKUP(A82,SummaryData!$K$5:$X$215,14,0)*100 )","v":81.00635723803542},13,{"$f":"VLOOKUP($A82,cost_data!$A$5:$BB$215,$D$6,0)/VLOOKUP($A82,cost_data!$A$5:$BB$215,$F$6,0)","v":1.2361266046300006},{"$f":"IFERROR(VLOOKUP($A82,cost_data!$A$5:$BB$215,$H$6,0)/VLOOKUP($A82,cost_data!$A$5:$BB$215,$J$6,0),0)","v":0.97388124028551626},{"$f":"IF(AND($C$5=1,$B$7<=7),VLOOKUP($A82,outcome_data!$A$1:$BJ$216,$D$7,0)/VLOOKUP($A82,outcome_data!$A$1:$BJ$216,$F$7,0)*100000,VLOOKUP($A82,outcome_data!$A$1:$BJ$216,$D$7,0)/VLOOKUP($A82,outcome_data!$A$1:$BJ$216,$F$7,0)*100)","v":81.00635723803542},{"$f":"IF(AND($C$5=1,$B$7<=7),VLOOKUP($A82,outcome_data!$A$1:$BJ$216,$H$7,0)/VLOOKUP($A82,outcome_data!$A$1:$BJ$216,$J$7,0)*100000,VLOOKUP($A82,outcome_data!$A$1:$BJ$216,$H$7,0)/VLOOKUP($A82,outcome_data!$A$1:$BJ$216,$J$7,0)*100)","v":{"$error":"#DIV/0!"}}]
["04F",{"$f":"VLOOKUP($A83,SummaryData!$K$5:$M$215,3,0)","v":"East Midlands"},{"$f":"VLOOKUP($A83,SummaryData!$K$5:$N$215,4,0)","v":"No"},{"$f":"VLOOKUP($A83,SummaryData!$K$5:$P$215,6,0)","v":8},{"$f":"VLOOKUP(A83,SummaryData!$K$4:$T$215,10,0)","v":0.58321254389474164},2,{"$f":"IF(AND($C$5=1,$B$7<=7),VLOOKUP(A83,SummaryData!$K$5:$X$215,14,0)*100000,VLOOKUP(A83,SummaryData!$K$5:$X$215,14,0)*100 )","v":45.684905784560826},4,{"$f":"VLOOKUP($A83,cost_data!$A$5:$BB$215,$D$6,0)/VLOOKUP($A83,cost_data!$A$5:$BB$215,$F$6,0)","v":0.58321254389474164},{"$f":"IFERROR(VLOOKUP($A83,cost_data!$A$5:$BB$215,$H$6,0)/VLOOKUP($A83,cost_data!$A$5:$BB$215,$J$6,0),0)","v":0.56371564967582311},{"$f":"IF(AND($C$5=1,$B$7<=7),VLOOKUP($A83,outcome_data!$A$1:$BJ$216,$D$7,0)/VLOOKUP($A83,outcome_data!$A$1:$BJ$216,$F$7,0)*100000,VLOOKUP($A83,outcome_data!$A$1:$BJ$216,$D$7,0)/VLOOKUP($A83,outcome_data!$A$1:$BJ$216,$F$7,0)*100)","v":45.684905784560826},{"$f":"IF(AND($C$5=1,$B$7<=7),VLOOKUP($A83,outcome_data!$A$1:$BJ$216,$H$7,0)/VLOOKUP($A83,outcome_data!$A$1:$BJ$216,$J$7,0)*100000,VLOOKUP($A83,outcome_data!$A$1:$BJ$216,$H$7,0)/VLOOKUP($A83,outcome_data!$A$1:$BJ$216,$J$7,0)*100)","v":{"$error":"#DIV/0!"}}]
["04G",{"$f":"VLOOKUP($A84,SummaryData!$K$5:$M$215,3,0)","v":"East Midlands"},{"$f":"VLOOKUP($A84,SummaryData!$K$5:$N$215,4,0)","v":"No"},{"$f":"VLOOKUP($A84,SummaryData!$K$5:$P$215,6,0)","v":7},{"$f":"VLOOKUP(A84,SummaryData!$K$4:$T$215,10,0)","v":0.93932188317504128},2,{"$f":"IF(AND($C$5=1,$B$7<=7),VLOOKUP(A84,SummaryData!$K$5:$X$215,14,0)*100000,VLOOKUP(A84,SummaryData!$K$5:$X$215,14,0)*100 )","v":58.958777847041674},7,{"$f":"VLOOKUP($A84,cost_data!$A$5:$BB$215,$D$6,0)/VLOOKUP($A84,cost_data!$A$5:$BB$215,$F$6,0)","v":0.93932188317504128},{"$f":"IFERROR(VLOOKUP($A84,cost_data!$A$5:$BB$215,$H$6,0)/VLOOKUP($A84,cost_data!$A$5:$BB$215,$J$6,0),0)","v":0.92239433217621813},{"$f":"IF(AND($C$5=1,$B$7<=7),VLOOKUP($A84,outcome_data!$A$1:$BJ$216,$D$7,0)/VLOOKUP($A84,outcome_data!$A$1:$BJ$216,$F$7,0)*100000,VLOOKUP($A84,outcome_data!$A$1:$BJ$216,$D$7,0)/VLOOKUP($A84,outcome_data!$A$1:$BJ$216,$F$7,0)*100)","v":58.958777847041674},{"$f":"IF(AND($C$5=1,$B$7<=7),VLOOKUP($A84,outcome_data!$A$1:$BJ$216,$H$7,0)/VLOOKUP($A84,outcome_data!$A$1:$BJ$216,$J$7,0)*100000,VLOOKUP($A84,outcome_data!$A$1:$BJ$216,$H$7,0)/VLOOKUP($A84,outcome_data!$A$1:$BJ$216,$J$7,0)*100)","v":{"$error":"#DIV/0!"}}]
["04H",{"$f":"VLOOKUP($A85,SummaryData!$K$5:$M$215,3,0)","v":"East Midlands"},{"$f":"VLOOKUP($A85,SummaryData!$K$5:$N$215,4,0)","v":"No"},{"$f":"VLOOKUP($A85,SummaryData!$K$5:$P$215,6,0)","v":6},{"$f":"VLOOKUP(A85,SummaryData!$K$4:$T$215,10,0)","v":1.5757566311807827},4,{"$f":"IF(AND($C$5=1,$B$7<=7),VLOOKUP(A85,SummaryData!$K$5:$X$215,14,0)*100000,VLOOKUP(A85,SummaryData!$K$5:$X$215,14,0)*100 )","v":65.708629164391041},9,{"$f":"VLOOKUP($A85,cost_data!$A$5:$BB$215,$D$6,0)/VLOOKUP($A85,cost_data!$A$5:$BB$215,$F$6,0)","v":1.5757566311807827},{"$f":"IFERROR(VLOOKUP($A85,cost_data!$A$5:$BB$215,$H$6,0)/VLOOKUP($A85,cost_data!$A$5:$BB$215,$J$6,0),0)","v":1.5437183728595012},{"$f":"IF(AND($C$5=1,$B$7<=7),VLOOKUP($A85,outcome_data!$A$1:$BJ$216,$D$7,0)/VLOOKUP($A85,outcome_data!$A$1:$BJ$216,$F$7,0)*100000,VLOOKUP($A85,outcome_data!$A$1:$BJ$216,$D$7,0)/VLOOKUP($A85,outcome_data!$A$1:$BJ$216,$F$7,0)*100)","v":65.708629164391041},{"$f":"IF(AND($C$5=1,$B$7<=7),VLOOKUP($A85,outcome_data!$A$1:$BJ$216,$H$7,0)/VLOOKUP($A85,outcome_data!$A$1:$BJ$216,$J$7,0)*100000,VLOOKUP($A85,outcome_data!$A$1:$BJ$216,$H$7,0)/VLOOKUP($A85,outcome_data!$A$1:$BJ$216,$J$7,0)*100)","v":{"$error":"#DIV/0!"}}]
["04J",{"$f":"VLOOKUP($A86,SummaryData!$K$5:$M$215,3,0)","v":"East Midlands"},{"$f":"VLOOKUP($A86,SummaryData!$K$5:$N$215,4,0)","v":"No"},{"$f":"VLOOKUP($A86,SummaryData!$K$5:$P$215,6,0)","v":7},{"$f":"VLOOKUP(A86,SummaryData!$K$4:$T$215,10,0)","v":1.7414540038775592},4,{"$f":"IF(AND($C$5=1,$B$7<=7),VLOOKUP(A86,SummaryData!$K$5:$X$215,14,0)*100000,VLOOKUP(A86,SummaryData!$K$5:$X$215,14,0)*100 )","v":83.406647395541739},14,{"$f":"VLOOKUP($A86,cost_data!$A$5:$BB$215,$D$6,0)/VLOOKUP($A86,cost_data!$A$5:$BB$215,$F$6,0)","v":1.7414540038775592},{"$f":"IFERROR(VLOOKUP($A86,cost_data!$A$5:$BB$215,$H$6,0)/VLOOKUP($A86,cost_data!$A$5:$BB$215,$J$6,0),0)","v":1.5831286158540601},{"$f":"IF(AND($C$5=1,$B$7<=7),VLOOKUP($A86,outcome_data!$A$1:$BJ$216,$D$7,0)/VLOOKUP($A86,outcome_data!$A$1:$BJ$216,$F$7,0)*100000,VLOOKUP($A86,outcome_data!$A$1:$BJ$216,$D$7,0)/VLOOKUP($A86,outcome_data!$A$1:$BJ$216,$F$7,0)*100)","v":83.406647395541739},{"$f":"IF(AND($C$5=1,$B$7<=7),VLOOKUP($A86,outcome_data!$A$1:$BJ$216,$H$7,0)/VLOOKUP($A86,outcome_data!$A$1:$BJ$216,$J$7,0)*100000,VLOOKUP($A86,outcome_data!$A$1:$BJ$216,$H$7,0)/VLOOKUP($A86,outcome_data!$A$1:$BJ$216,$J$7,0)*100)","v":{"$error":"#DIV/0!"}}]
["04K",{"$f":"VLOOKUP($A87,SummaryData!$K$5:$M$215,3,0)","v":"East Midlands"},{"$f":"VLOOKUP($A87,SummaryData!$K$5:$N$215,4,0)","v":"No"},{"$f":"VLOOKUP($A87,SummaryData!$K$5:$P$215,6,0)","v":2},{"$f":"VLOOKUP(A87,SummaryData!$K$4:$T$215,10,0)","v":0.62836324003975574},2,{"$f":"IF(AND($C$5=1,$B$7<=7),VLOOKUP(A87,SummaryData!$K$5:$X$215,14,0)*100000,VLOOKUP(A87,SummaryData!$K$5:$X$215,14,0)*100 )","v":55.751607002401833},7,{"$f":"VLOOKUP($A87,cost_data!$A$5:$BB$215,$D$6,0)/VLOOKUP($A87,cost_data!$A$5:$BB$215,$F$6,0)","v":0.62836324003975574},{"$f":"IFERROR(VLOOKUP($A87,cost_data!$A$5:$BB$215,$H$6,0)/VLOOKUP($A87,cost_data!$A$5:$BB$215,$J$6,0),0)","v":0.56943735840652066},{"$f":"IF(AND($C$5=1,$B$7<=7),VLOOKUP($A87,outcome_data!$A$1:$BJ$216,$D$7,0)/VLOOKUP($A87,outcome_data!$A$1:$BJ$216,$F$7,0)*100000,VLOOKUP($A87,outcome_data!$A$1:$BJ$216,$D$7,0)/VLOOKUP($A87,outcome_data!$A$1:$BJ$216,$F$7,0)*100)","v":55.751607002401833},{"$f":"IF(AND($C$5=1,$B$7<=7),VLOOKUP($A87,outcome_data!$A$1:$BJ$216,$H$7,0)/VLOOKUP($A87,outcome_data!$A$1:$BJ$216,$J$7,0)*100000,VLOOKUP($A87,outcome_data!$A$1:$BJ$216,$H$7,0)/VLOOKUP($A87,outcome_data!$A$1:$BJ$216,$J$7,0)*100)","v":{"$error":"#DIV/0!"}}]
["04L",{"$f":"VLOOKUP($A88,SummaryData!$K$5:$M$215,3,0)","v":"East Midlands"},{"$f":"VLOOKUP($A88,SummaryData!$K$5:$N$215,4,0)","v":"No"},{"$f":"VLOOKUP($A88,SummaryData!$K$5:$P$215,6,0)","v":7},{"$f":"VLOOKUP(A88,SummaryData!$K$4:$T$215,10,0)","v":1.5837058454698125},4,{"$f":"IF(AND($C$5=1,$B$7<=7),VLOOKUP(A88,SummaryData!$K$5:$X$215,14,0)*100000,VLOOKUP(A88,SummaryData!$K$5:$X$215,14,0)*100 )","v":73.557558789752989},11,{"$f":"VLOOKUP($A88,cost_data!$A$5:$BB$215,$D$6,0)/VLOOKUP($A88,cost_data!$A$5:$BB$215,$F$6,0)","v":1.5837058454698125},{"$f":"IFERROR(VLOOKUP($A88,cost_data!$A$5:$BB$215,$H$6,0)/VLOOKUP($A88,cost_data!$A$5:$BB$215,$J$6,0),0)","v":1.4647298922565606},{"$f":"IF(AND($C$5=1,$B$7<=7),VLOOKUP($A88,outcome_data!$A$1:$BJ$216,$D$7,0)/VLOOKUP($A88,outcome_data!$A$1:$BJ$216,$F$7,0)*100000,VLOOKUP($A88,outcome_data!$A$1:$BJ$216,$D$7,0)/VLOOKUP($A88,outcome_data!$A$1:$BJ$216,$F$7,0)*100)","v":73.557558789752989},{"$f":"IF(AND($C$5=1,$B$7<=7),VLOOKUP($A88,outcome_data!$A$1:$BJ$216,$H$7,0)/VLOOKUP($A88,outcome_data!$A$1:$BJ$216,$J$7,0)*100000,VLOOKUP($A88,outcome_data!$A$1:$BJ$216,$H$7,0)/VLOOKUP($A88,outcome_data!$A$1:$BJ$216,$J$7,0)*100)","v":{"$error":"#DIV/0!"}}]
["04M",{"$f":"VLOOKUP($A89,SummaryData!$K$5:$M$215,3,0)","v":"East Midlands"},{"$f":"VLOOKUP($A89,SummaryData!$K$5:$N$215,4,0)","v":"No"},{"$f":"VLOOKUP($A89,SummaryData!$K$5:$P$215,6,0)","v":9},{"$f":"VLOOKUP(A89,SummaryData!$K$4:$T$215,10,0)","v":1.0583160492086896},3,{"$f":"IF(AND($C$5=1,$B$7<=7),VLOOKUP(A89,SummaryData!$K$5:$X$215,14,0)*100000,VLOOKUP(A89,SummaryData!$K$5:$X$215,14,0)*100 )","v":78.621887394681877},12,{"$f":"VLOOKUP($A89,cost_data!$A$5:$BB$215,$D$6,0)/VLOOKUP($A89,cost_data!$A$5:$BB$215,$F$6,0)","v":1.0583160492086896},{"$f":"IFERROR(VLOOKUP($A89,cost_data!$A$5:$BB$215,$H$6,0)/VLOOKUP($A89,cost_data!$A$5:$BB$215,$J$6,0),0)","v":0.96386222582410463},{"$f":"IF(AND($C$5=1,$B$7<=7),VLOOKUP($A89,outcome_data!$A$1:$BJ$216,$D$7,0)/VLOOKUP($A89,outcome_data!$A$1:$BJ$216,$F$7,0)*100000,VLOOKUP($A89,outcome_data!$A$1:$BJ$216,$D$7,0)/VLOOKUP($A89,outcome_data!$A$1:$BJ$216,$F$7,0)*100)","v":78.621887394681877},{"$f":"IF(AND($C$5=1,$B$7<=7),VLOOKUP($A89,outcome_data!$A$1:$BJ$216,$H$7,0)/VLOOKUP($A89,outcome_data!$A$1:$BJ$216,$J$7,0)*100000,VLOOKUP($A89,outcome_data!$A$1:$BJ$216,$H$7,0)/VLOOKUP($A89,outcome_data!$A$1:$BJ$216,$J$7,0)*100)","v":{"$error":"#DIV/0!"}}]
["04N",{"$f":"VLOOKUP($A90,SummaryData!$K$5:$M$215,3,0)","v":"East Midlands"},{"$f":"VLOOKUP($A90,SummaryData!$K$5:$N$215,4,0)","v":"No"},{"$f":"VLOOKUP($A90,SummaryData!$K$5:$P$215,6,0)","v":10},{"$f":"VLOOKUP(A90,SummaryData!$K$4:$T$215,10,0)","v":0.92197601679678853},2,{"$f":"IF(AND($C$5=1,$B$7<=7),VLOOKUP(A90,SummaryData!$K$5:$X$215,14,0)*100000,VLOOKUP(A90,SummaryData!$K$5:$X$215,14,0)*100 )","v":44.195905114097592},4,{"$f":"VLOOKUP($A90,cost_data!$A$5:$BB$215,$D$6,0)/VLOOKUP($A90,cost_data!$A$5:$BB$215,$F$6,0)","v":0.92197601679678853},{"$f":"IFERROR(VLOOKUP($A90,cost_data!$A$5:$BB$215,$H$6,0)/VLOOKUP($A90,cost_data!$A$5:$BB$215,$J$6,0),0)","v":0.96506710917661309},{"$f":"IF(AND($C$5=1,$B$7<=7),VLOOKUP($A90,outcome_data!$A$1:$BJ$216,$D$7,0)/VLOOKUP($A90,outcome_data!$A$1:$BJ$216,$F$7,0)*100000,VLOOKUP($A90,outcome_data!$A$1:$BJ$216,$D$7,0)/VLOOKUP($A90,outcome_data!$A$1:$BJ$216,$F$7,0)*100)","v":44.195905114097592},{"$f":"IF(AND($C$5=1,$B$7<=7),VLOOKUP($A90,outcome_data!$A$1:$BJ$216,$H$7,0)/VLOOKUP($A90,outcome_data!$A$1:$BJ$216,$J$7,0)*100000,VLOOKUP($A90,outcome_data!$A$1:$BJ$216,$H$7,0)/VLOOKUP($A90,outcome_data!$A$1:$BJ$216,$J$7,0)*100)","v":{"$error":"#DIV/0!"}}]
["04Q",{"$f":"VLOOKUP($A91,SummaryData!$K$5:$M$215,3,0)","v":"East Midlands"},{"$f":"VLOOKUP($A91,SummaryData!$K$5:$N$215,4,0)","v":"Closest 10 CCGs"},{"$f":"VLOOKUP($A91,SummaryData!$K$5:$P$215,6,0)","v":8},{"$f":"VLOOKUP(A91,SummaryData!$K$4:$T$215,10,0)","v":1.8694738945949714},5,{"$f":"IF(AND($C$5=1,$B$7<=7),VLOOKUP(A91,SummaryData!$K$5:$X$215,14,0)*100000,VLOOKUP(A91,SummaryData!$K$5:$X$215,14,0)*100 )","v":73.307533627700025},11,{"$f":"VLOOKUP($A91,cost_data!$A$5:$BB$215,$D$6,0)/VLOOKUP($A91,cost_data!$A$5:$BB$215,$F$6,0)","v":1.8694738945949714},{"$f":"IFERROR(VLOOKUP($A91,cost_data!$A$5:$BB$215,$H$6,0)/VLOOKUP($A91,cost_data!$A$5:$BB$215,$J$6,0),0)","v":1.5683926352726381},{"$f":"IF(AND($C$5=1,$B$7<=7),VLOOKUP($A91,outcome_data!$A$1:$BJ$216,$D$7,0)/VLOOKUP($A91,outcome_data!$A$1:$BJ$216,$F$7,0)*100000,VLOOKUP($A91,outcome_data!$A$1:$BJ$216,$D$7,0)/VLOOKUP($A91,outcome_data!$A$1:$BJ$216,$F$7,0)*100)","v":73.307533627700025},{"$f":"IF(AND($C$5=1,$B$7<=7),VLOOKUP($A91,outcome_data!$A$1:$BJ$216,$H$7,0)/VLOOKUP($A91,outcome_data!$A$1:$BJ$216,$J$7,0)*100000,VLOOKUP($A91,outcome_data!$A$1:$BJ$216,$H$7,0)/VLOOKUP($A91,outcome_data!$A$1:$BJ$216,$J$7,0)*100)","v":{"$error":"#DIV/0!"}}]
["04R",{"$f":"VLOOKUP($A92,SummaryData!$K$5:$M$215,3,0)","v":"East Midlands"},{"$f":"VLOOKUP($A92,SummaryData!$K$5:$N$215,4,0)","v":"No"},{"$f":"VLOOKUP($A92,SummaryData!$K$5:$P$215,6,0)","v":6},{"$f":"VLOOKUP(A92,SummaryData!$K$4:$T$215,10,0)","v":1.097351188026978},3,{"$f":"IF(AND($C$5=1,$B$7<=7),VLOOKUP(A92,SummaryData!$K$5:$X$215,14,0)*100000,VLOOKUP(A92,SummaryData!$K$5:$X$215,14,0)*100 )","v":72.859523186173334},11,{"$f":"VLOOKUP($A92,cost_data!$A$5:$BB$215,$D$6,0)/VLOOKUP($A92,cost_data!$A$5:$BB$215,$F$6,0)","v":1.097351188026978},{"$f":"IFERROR(VLOOKUP($A92,cost_data!$A$5:$BB$215,$H$6,0)/VLOOKUP($A92,cost_data!$A$5:$BB$215,$J$6,0),0)","v":1.1585968325227185},{"$f":"IF(AND($C$5=1,$B$7<=7),VLOOKUP($A92,outcome_data!$A$1:$BJ$216,$D$7,0)/VLOOKUP($A92,outcome_data!$A$1:$BJ$216,$F$7,0)*100000,VLOOKUP($A92,outcome_data!$A$1:$BJ$216,$D$7,0)/VLOOKUP($A92,outcome_data!$A$1:$BJ$216,$F$7,0)*100)","v":72.859523186173334},{"$f":"IF(AND($C$5=1,$B$7<=7),VLOOKUP($A92,outcome_data!$A$1:$BJ$216,$H$7,0)/VLOOKUP($A92,outcome_data!$A$1:$BJ$216,$J$7,0)*100000,VLOOKUP($A92,outcome_data!$A$1:$BJ$216,$H$7,0)/VLOOKUP($A92,outcome_data!$A$1:$BJ$216,$J$7,0)*100)","v":{"$error":"#DIV/0!"}}]
["04V",{"$f":"VLOOKUP($A93,SummaryData!$K$5:$M$215,3,0)","v":"East Midlands"},{"$f":"VLOOKUP($A93,SummaryData!$K$5:$N$215,4,0)","v":"No"},{"$f":"VLOOKUP($A93,SummaryData!$K$5:$P$215,6,0)","v":9},{"$f":"VLOOKUP(A93,SummaryData!$K$4:$T$215,10,0)","v":1.1073674783002465},3,{"$f":"IF(AND($C$5=1,$B$7<=7),VLOOKUP(A93,SummaryData!$K$5:$X$215,14,0)*100000,VLOOKUP(A93,SummaryData!$K$5:$X$215,14,0)*100 )","v":62.205945486564396},8,{"$f":"VLOOKUP($A93,cost_data!$A$5:$BB$215,$D$6,0)/VLOOKUP($A93,cost_data!$A$5:$BB$215,$F$6,0)","v":1.1073674783002465},{"$f":"IFERROR(VLOOKUP($A93,cost_data!$A$5:$BB$215,$H$6,0)/VLOOKUP($A93,cost_data!$A$5:$BB$215,$J$6,0),0)","v":1.0224295301340709},{"$f":"IF(AND($C$5=1,$B$7<=7),VLOOKUP($A93,outcome_data!$A$1:$BJ$216,$D$7,0)/VLOOKUP($A93,outcome_data!$A$1:$BJ$216,$F$7,0)*100000,VLOOKUP($A93,outcome_data!$A$1:$BJ$216,$D$7,0)/VLOOKUP($A93,outcome_data!$A$1:$BJ$216,$F$7,0)*100)","v":62.205945486564396},{"$f":"IF(AND($C$5=1,$B$7<=7),VLOOKUP($A93,outcome_data!$A$1:$BJ$216,$H$7,0)/VLOOKUP($A93,outcome_data!$A$1:$BJ$216,$J$7,0)*100000,VLOOKUP($A93,outcome_data!$A$1:$BJ$216,$H$7,0)/VLOOKUP($A93,outcome_data!$A$1:$BJ$216,$J$7,0)*100)","v":{"$error":"#DIV/0!"}}]
["04X",{"$f":"VLOOKUP($A94,SummaryData!$K$5:$M$215,3,0)","v":"West Midlands"},{"$f":"VLOOKUP($A94,SummaryData!$K$5:$N$215,4,0)","v":"No"},{"$f":"VLOOKUP($A94,SummaryData!$K$5:$P$215,6,0)","v":1},{"$f":"VLOOKUP(A94,SummaryData!$K$4:$T$215,10,0)","v":0.51645474688755688},1,{"$f":"IF(AND($C$5=1,$B$7<=7),VLOOKUP(A94,SummaryData!$K$5:$X$215,14,0)*100000,VLOOKUP(A94,SummaryData!$K$5:$X$215,14,0)*100 )","v":56.469168265189559},7,{"$f":"VLOOKUP($A94,cost_data!$A$5:$BB$215,$D$6,0)/VLOOKUP($A94,cost_data!$A$5:$BB$215,$F$6,0)","v":0.51645474688755688},{"$f":"IFERROR(VLOOKUP($A94,cost_data!$A$5:$BB$215,$H$6,0)/VLOOKUP($A94,cost_data!$A$5:$BB$215,$J$6,0),0)","v":0.51133022063621614},{"$f":"IF(AND($C$5=1,$B$7<=7),VLOOKUP($A94,outcome_data!$A$1:$BJ$216,$D$7,0)/VLOOKUP($A94,outcome_data!$A$1:$BJ$216,$F$7,0)*100000,VLOOKUP($A94,outcome_data!$A$1:$BJ$216,$D$7,0)/VLOOKUP($A94,outcome_data!$A$1:$BJ$216,$F$7,0)*100)","v":56.469168265189559},{"$f":"IF(AND($C$5=1,$B$7<=7),VLOOKUP($A94,outcome_data!$A$1:$BJ$216,$H$7,0)/VLOOKUP($A94,outcome_data!$A$1:$BJ$216,$J$7,0)*100000,VLOOKUP($A94,outcome_data!$A$1:$BJ$216,$H$7,0)/VLOOKUP($A94,outcome_data!$A$1:$BJ$216,$J$7,0)*100)","v":{"$error":"#DIV/0!"}}]
["04Y",{"$f":"VLOOKUP($A95,SummaryData!$K$5:$M$215,3,0)","v":"West Midlands"},{"$f":"VLOOKUP($A95,SummaryData!$K$5:$N$215,4,0)","v":"No"},{"$f":"VLOOKUP($A95,SummaryData!$K$5:$P$215,6,0)","v":6},{"$f":"VLOOKUP(A95,SummaryData!$K$4:$T$215,10,0)","v":1.3308897856075583},3,{"$f":"IF(AND($C$5=1,$B$7<=7),VLOOKUP(A95,SummaryData!$K$5:$X$215,14,0)*100000,VLOOKUP(A95,SummaryData!$K$5:$X$215,14,0)*100 )","v":82.494772608468367},13,{"$f":"VLOOKUP($A95,cost_data!$A$5:$BB$215,$D$6,0)/VLOOKUP($A95,cost_data!$A$5:$BB$215,$F$6,0)","v":1.3308897856075583},{"$f":"IFERROR(VLOOKUP($A95,cost_data!$A$5:$BB$215,$H$6,0)/VLOOKUP($A95,cost_data!$A$5:$BB$215,$J$6,0),0)","v":1.2150627140058332},{"$f":"IF(AND($C$5=1,$B$7<=7),VLOOKUP($A95,outcome_data!$A$1:$BJ$216,$D$7,0)/VLOOKUP($A95,outcome_data!$A$1:$BJ$216,$F$7,0)*100000,VLOOKUP($A95,outcome_data!$A$1:$BJ$216,$D$7,0)/VLOOKUP($A95,outcome_data!$A$1:$BJ$216,$F$7,0)*100)","v":82.494772608468367},{"$f":"IF(AND($C$5=1,$B$7<=7),VLOOKUP($A95,outcome_data!$A$1:$BJ$216,$H$7,0)/VLOOKUP($A95,outcome_data!$A$1:$BJ$216,$J$7,0)*100000,VLOOKUP($A95,outcome_data!$A$1:$BJ$216,$H$7,0)/VLOOKUP($A95,outcome_data!$A$1:$BJ$216,$J$7,0)*100)","v":{"$error":"#DIV/0!"}}]
["05A",{"$f":"VLOOKUP($A96,SummaryData!$K$5:$M$215,3,0)","v":"West Midlands"},{"$f":"VLOOKUP($A96,SummaryData!$K$5:$N$215,4,0)","v":"No"},{"$f":"VLOOKUP($A96,SummaryData!$K$5:$P$215,6,0)","v":4},{"$f":"VLOOKUP(A96,SummaryData!$K$4:$T$215,10,0)","v":0.79851203242794022},2,{"$f":"IF(AND($C$5=1,$B$7<=7),VLOOKUP(A96,SummaryData!$K$5:$X$215,14,0)*100000,VLOOKUP(A96,SummaryData!$K$5:$X$215,14,0)*100 )","v":58.217450167004174},7,{"$f":"VLOOKUP($A96,cost_data!$A$5:$BB$215,$D$6,0)/VLOOKUP($A96,cost_data!$A$5:$BB$215,$F$6,0)","v":0.79851203242794022},{"$f":"IFERROR(VLOOKUP($A96,cost_data!$A$5:$BB$215,$H$6,0)/VLOOKUP($A96,cost_data!$A$5:$BB$215,$J$6,0),0)","v":0.72741816801543147},{"$f":"IF(AND($C$5=1,$B$7<=7),VLOOKUP($A96,outcome_data!$A$1:$BJ$216,$D$7,0)/VLOOKUP($A96,outcome_data!$A$1:$BJ$216,$F$7,0)*100000,VLOOKUP($A96,outcome_data!$A$1:$BJ$216,$D$7,0)/VLOOKUP($A96,outcome_data!$A$1:$BJ$216,$F$7,0)*100)","v":58.217450167004174},{"$f":"IF(AND($C$5=1,$B$7<=7),VLOOKUP($A96,outcome_data!$A$1:$BJ$216,$H$7,0)/VLOOKUP($A96,outcome_data!$A$1:$BJ$216,$J$7,0)*100000,VLOOKUP($A96,outcome_data!$A$1:$BJ$216,$H$7,0)/VLOOKUP($A96,outcome_data!$A$1:$BJ$216,$J$7,0)*100)","v":{"$error":"#DIV/0!"}}]
["05C",{"$f":"VLOOKUP($A97,SummaryData!$K$5:$M$215,3,0)","v":"West Midlands"},{"$f":"VLOOKUP($A97,SummaryData!$K$5:$N$215,4,0)","v":"No"},{"$f":"VLOOKUP($A97,SummaryData!$K$5:$P$215,6,0)","v":4},{"$f":"VLOOKUP(A97,SummaryData!$K$4:$T$215,10,0)","v":1.5962374836431019},4,{"$f":"IF(AND($C$5=1,$B$7<=7),VLOOKUP(A97,SummaryData!$K$5:$X$215,14,0)*100000,VLOOKUP(A97,SummaryData!$K$5:$X$215,14,0)*100 )","v":73.947211457632093},11,{"$f":"VLOOKUP($A97,cost_data!$A$5:$BB$215,$D$6,0)/VLOOKUP($A97,cost_data!$A$5:$BB$215,$F$6,0)","v":1.5962374836431019},{"$f":"IFERROR(VLOOKUP($A97,cost_data!$A$5:$BB$215,$H$6,0)/VLOOKUP($A97,cost_data!$A$5:$BB$215,$J$6,0),0)","v":1.6606561357263259},{"$f":"IF(AND($C$5=1,$B$7<=7),VLOOKUP($A97,outcome_data!$A$1:$BJ$216,$D$7,0)/VLOOKUP($A97,outcome_data!$A$1:$BJ$216,$F$7,0)*100000,VLOOKUP($A97,outcome_data!$A$1:$BJ$216,$D$7,0)/VLOOKUP($A97,outcome_data!$A$1:$BJ$216,$F$7,0)*100)","v":73.947211457632093},{"$f":"IF(AND($C$5=1,$B$7<=7),VLOOKUP($A97,outcome_data!$A$1:$BJ$216,$H$7,0)/VLOOKUP($A97,outcome_data!$A$1:$BJ$216,$J$7,0)*100000,VLOOKUP($A97,outcome_data!$A$1:$BJ$216,$H$7,0)/VLOOKUP($A97,outcome_data!$A$1:$BJ$216,$J$7,0)*100)","v":{"$error":"#DIV/0!"}}]
["05D",{"$f":"VLOOKUP($A98,SummaryData!$K$5:$M$215,3,0)","v":"West Midlands"},{"$f":"VLOOKUP($A98,SummaryData!$K$5:$N$215,4,0)","v":"Closest 10 CCGs"},{"$f":"VLOOKUP($A98,SummaryData!$K$5:$P$215,6,0)","v":6},{"$f":"VLOOKUP(A98,SummaryData!$K$4:$T$215,10,0)","v":1.4752229517706776},4,{"$f":"IF(AND($C$5=1,$B$7<=7),VLOOKUP(A98,SummaryData!$K$5:$X$215,14,0)*100000,VLOOKUP(A98,SummaryData!$K$5:$X$215,14,0)*100 )","v":70.670810546012319},10,{"$f":"VLOOKUP($A98,cost_data!$A$5:$BB$215,$D$6,0)/VLOOKUP($A98,cost_data!$A$5:$BB$215,$F$6,0)","v":1.4752229517706776},{"$f":"IFERROR(VLOOKUP($A98,cost_data!$A$5:$BB$215,$H$6,0)/VLOOKUP($A98,cost_data!$A$5:$BB$215,$J$6,0),0)","v":1.4280065266570943},{"$f":"IF(AND($C$5=1,$B$7<=7),VLOOKUP($A98,outcome_data!$A$1:$BJ$216,$D$7,0)/VLOOKUP($A98,outcome_data!$A$1:$BJ$216,$F$7,0)*100000,VLOOKUP($A98,outcome_data!$A$1:$BJ$216,$D$7,0)/VLOOKUP($A98,outcome_data!$A$1:$BJ$216,$F$7,0)*100)","v":70.670810546012319},{"$f":"IF(AND($C$5=1,$B$7<=7),VLOOKUP($A98,outcome_data!$A$1:$BJ$216,$H$7,0)/VLOOKUP($A98,outcome_data!$A$1:$BJ$216,$J$7,0)*100000,VLOOKUP($A98,outcome_data!$A$1:$BJ$216,$H$7,0)/VLOOKUP($A98,outcome_data!$A$1:$BJ$216,$J$7,0)*100)","v":{"$error":"#DIV/0!"}}]
["05F",{"$f":"VLOOKUP($A99,SummaryData!$K$5:$M$215,3,0)","v":"West Midlands"},{"$f":"VLOOKUP($A99,SummaryData!$K$5:$N$215,4,0)","v":"No"},{"$f":"VLOOKUP($A99,SummaryData!$K$5:$P$215,6,0)","v":7},{"$f":"VLOOKUP(A99,SummaryData!$K$4:$T$215,10,0)","v":1.1864905689926128},3,{"$f":"IF(AND($C$5=1,$B$7<=7),VLOOKUP(A99,SummaryData!$K$5:$X$215,14,0)*100000,VLOOKUP(A99,SummaryData!$K$5:$X$215,14,0)*100 )","v":83.993427667557697},14,{"$f":"VLOOKUP($A99,cost_data!$A$5:$BB$215,$D$6,0)/VLOOKUP($A99,cost_data!$A$5:$BB$215,$F$6,0)","v":1.1864905689926128},{"$f":"IFERROR(VLOOKUP($A99,cost_data!$A$5:$BB$215,$H$6,0)/VLOOKUP($A99,cost_data!$A$5:$BB$215,$J$6,0),0)","v":1.0175624532255112},{"$f":"IF(AND($C$5=1,$B$7<=7),VLOOKUP($A99,outcome_data!$A$1:$BJ$216,$D$7,0)/VLOOKUP($A99,outcome_data!$A$1:$BJ$216,$F$7,0)*100000,VLOOKUP($A99,outcome_data!$A$1:$BJ$216,$D$7,0)/VLOOKUP($A99,outcome_data!$A$1:$BJ$216,$F$7,0)*100)","v":83.993427667557697},{"$f":"IF(AND($C$5=1,$B$7<=7),VLOOKUP($A99,outcome_data!$A$1:$BJ$216,$H$7,0)/VLOOKUP($A99,outcome_data!$A$1:$BJ$216,$J$7,0)*100000,VLOOKUP($A99,outcome_data!$A$1:$BJ$216,$H$7,0)/VLOOKUP($A99,outcome_data!$A$1:$BJ$216,$J$7,0)*100)","v":{"$error":"#DIV/0!"}}]
["05G",{"$f":"VLOOKUP($A100,SummaryData!$K$5:$M$215,3,0)","v":"West Midlands"},{"$f":"VLOOKUP($A100,SummaryData!$K$5:$N$215,4,0)","v":"No"},{"$f":"VLOOKUP($A100,SummaryData!$K$5:$P$215,6,0)","v":7},{"$f":"VLOOKUP(A100,SummaryData!$K$4:$T$215,10,0)","v":1.9999257098693146},5,{"$f":"IF(AND($C$5=1,$B$7<=7),VLOOKUP(A100,SummaryData!$K$5:$X$215,14,0)*100000,VLOOKUP(A100,SummaryData!$K$5:$X$215,14,0)*100 )","v":78.833064545215649},12,{"$f":"VLOOKUP($A100,cost_data!$A$5:$BB$215,$D$6,0)/VLOOKUP($A100,cost_data!$A$5:$BB$215,$F$6,0)","v":1.9999257098693146},{"$f":"IFERROR(VLOOKUP($A100,cost_data!$A$5:$BB$215,$H$6,0)/VLOOKUP($A100,cost_data!$A$5:$BB$215,$J$6,0),0)","v":1.7969355181716211},{"$f":"IF(AND($C$5=1,$B$7<=7),VLOOKUP($A100,outcome_data!$A$1:$BJ$216,$D$7,0)/VLOOKUP($A100,outcome_data!$A$1:$BJ$216,$F$7,0)*100000,VLOOKUP($A100,outcome_data!$A$1:$BJ$216,$D$7,0)/VLOOKUP($A100,outcome_data!$A$1:$BJ$216,$F$7,0)*100)","v":78.833064545215649},{"$f":"IF(AND($C$5=1,$B$7<=7),VLOOKUP($A100,outcome_data!$A$1:$BJ$216,$H$7,0)/VLOOKUP($A100,outcome_data!$A$1:$BJ$216,$J$7,0)*100000,VLOOKUP($A100,outcome_data!$A$1:$BJ$216,$H$7,0)/VLOOKUP($A100,outcome_data!$A$1:$BJ$216,$J$7,0)*100)","v":{"$error":"#DIV/0!"}}]
["05H",{"$f":"VLOOKUP($A101,SummaryData!$K$5:$M$215,3,0)","v":"West Midlands"},{"$f":"VLOOKUP($A101,SummaryData!$K$5:$N$215,4,0)","v":"No"},{"$f":"VLOOKUP($A101,SummaryData!$K$5:$P$215,6,0)","v":5},{"$f":"VLOOKUP(A101,SummaryData!$K$4:$T$215,10,0)","v":1.0931222815691886},3,{"$f":"IF(AND($C$5=1,$B$7<=7),VLOOKUP(A101,SummaryData!$K$5:$X$215,14,0)*100000,VLOOKUP(A101,SummaryData!$K$5:$X$215,14,0)*100 )","v":75.870302951884113},12,{"$f":"VLOOKUP($A101,cost_data!$A$5:$BB$215,$D$6,0)/VLOOKUP($A101,cost_data!$A$5:$BB$215,$F$6,0)","v":1.0931222815691886},{"$f":"IFERROR(VLOOKUP($A101,cost_data!$A$5:$BB$215,$H$6,0)/VLOOKUP($A101,cost_data!$A$5:$BB$215,$J$6,0),0)","v":0.976364556187854},{"$f":"IF(AND($C$5=1,$B$7<=7),VLOOKUP($A101,outcome_data!$A$1:$BJ$216,$D$7,0)/VLOOKUP($A101,outcome_data!$A$1:$BJ$216,$F$7,0)*100000,VLOOKUP($A101,outcome_data!$A$1:$BJ$216,$D$7,0)/VLOOKUP($A101,outcome_data!$A$1:$BJ$216,$F$7,0)*100)","v":75.870302951884113},{"$f":"IF(AND($C$5=1,$B$7<=7),VLOOKUP($A101,outcome_data!$A$1:$BJ$216,$H$7,0)/VLOOKUP($A101,outcome_data!$A$1:$BJ$216,$J$7,0)*100000,VLOOKUP($A101,outcome_data!$A$1:$BJ$216,$H$7,0)/VLOOKUP($A101,outcome_data!$A$1:$BJ$216,$J$7,0)*100)","v":{"$error":"#DIV/0!"}}]
["05J",{"$f":"VLOOKUP($A102,SummaryData!$K$5:$M$215,3,0)","v":"West Midlands"},{"$f":"VLOOKUP($A102,SummaryData!$K$5:$N$215,4,0)","v":"No"},{"$f":"VLOOKUP($A102,SummaryData!$K$5:$P$215,6,0)","v":8},{"$f":"VLOOKUP(A102,SummaryData!$K$4:$T$215,10,0)","v":1.3010758093554464},3,{"$f":"IF(AND($C$5=1,$B$7<=7),VLOOKUP(A102,SummaryData!$K$5:$X$215,14,0)*100000,VLOOKUP(A102,SummaryData!$K$5:$X$215,14,0)*100 )","v":57.344869524667743},7,{"$f":"VLOOKUP($A102,cost_data!$A$5:$BB$215,$D$6,0)/VLOOKUP($A102,cost_data!$A$5:$BB$215,$F$6,0)","v":1.3010758093554464},{"$f":"IFERROR(VLOOKUP($A102,cost_data!$A$5:$BB$215,$H$6,0)/VLOOKUP($A102,cost_data!$A$5:$BB$215,$J$6,0),0)","v":1.4126123223311124},{"$f":"IF(AND($C$5=1,$B$7<=7),VLOOKUP($A102,outcome_data!$A$1:$BJ$216,$D$7,0)/VLOOKUP($A102,outcome_data!$A$1:$BJ$216,$F$7,0)*100000,VLOOKUP($A102,outcome_data!$A$1:$BJ$216,$D$7,0)/VLOOKUP($A102,outcome_data!$A$1:$BJ$216,$F$7,0)*100)","v":57.344869524667743},{"$f":"IF(AND($C$5=1,$B$7<=7),VLOOKUP($A102,outcome_data!$A$1:$BJ$216,$H$7,0)/VLOOKUP($A102,outcome_data!$A$1:$BJ$216,$J$7,0)*100000,VLOOKUP($A102,outcome_data!$A$1:$BJ$216,$H$7,0)/VLOOKUP($A102,outcome_data!$A$1:$BJ$216,$J$7,0)*100)","v":{"$error":"#DIV/0!"}}]
["05L",{"$f":"VLOOKUP($A103,SummaryData!$K$5:$M$215,3,0)","v":"West Midlands"},{"$f":"VLOOKUP($A103,SummaryData!$K$5:$N$215,4,0)","v":"No"},{"$f":"VLOOKUP($A103,SummaryData!$K$5:$P$215,6,0)","v":1},{"$f":"VLOOKUP(A103,SummaryData!$K$4:$T$215,10,0)","v":0.85833620935512334},2,{"$f":"IF(AND($C$5=1,$B$7<=7),VLOOKUP(A103,SummaryData!$K$5:$X$215,14,0)*100000,VLOOKUP(A103,SummaryData!$K$5:$X$215,14,0)*100 )","v":70.137800148527106},10,{"$f":"VLOOKUP($A103,cost_data!$A$5:$BB$215,$D$6,0)/VLOOKUP($A103,cost_data!$A$5:$BB$215,$F$6,0)","v":0.85833620935512334},{"$f":"IFERROR(VLOOKUP($A103,cost_data!$A$5:$BB$215,$H$6,0)/VLOOKUP($A103,cost_data!$A$5:$BB$215,$J$6,0),0)","v":0.80839771737684119},{"$f":"IF(AND($C$5=1,$B$7<=7),VLOOKUP($A103,outcome_data!$A$1:$BJ$216,$D$7,0)/VLOOKUP($A103,outcome_data!$A$1:$BJ$216,$F$7,0)*100000,VLOOKUP($A103,outcome_data!$A$1:$BJ$216,$D$7,0)/VLOOKUP($A103,outcome_data!$A$1:$BJ$216,$F$7,0)*100)","v":70.137800148527106},{"$f":"IF(AND($C$5=1,$B$7<=7),VLOOKUP($A103,outcome_data!$A$1:$BJ$216,$H$7,0)/VLOOKUP($A103,outcome_data!$A$1:$BJ$216,$J$7,0)*100000,VLOOKUP($A103,outcome_data!$A$1:$BJ$216,$H$7,0)/VLOOKUP($A103,outcome_data!$A$1:$BJ$216,$J$7,0)*100)","v":{"$error":"#DIV/0!"}}]
["05N",{"$f":"VLOOKUP($A104,SummaryData!$K$5:$M$215,3,0)","v":"West Midlands"},{"$f":"VLOOKUP($A104,SummaryData!$K$5:$N$215,4,0)","v":"No"},{"$f":"VLOOKUP($A104,SummaryData!$K$5:$P$215,6,0)","v":7},{"$f":"VLOOKUP(A104,SummaryData!$K$4:$T$215,10,0)","v":1.9125308569765225},5,{"$f":"IF(AND($C$5=1,$B$7<=7),VLOOKUP(A104,SummaryData!$K$5:$X$215,14,0)*100000,VLOOKUP(A104,SummaryData!$K$5:$X$215,14,0)*100 )","v":77.839851024208571},12,{"$f":"VLOOKUP($A104,cost_data!$A$5:$BB$215,$D$6,0)/VLOOKUP($A104,cost_data!$A$5:$BB$215,$F$6,0)","v":1.9125308569765225},{"$f":"IFERROR(VLOOKUP($A104,cost_data!$A$5:$BB$215,$H$6,0)/VLOOKUP($A104,cost_data!$A$5:$BB$215,$J$6,0),0)","v":1.5761864054756995},{"$f":"IF(AND($C$5=1,$B$7<=7),VLOOKUP($A104,outcome_data!$A$1:$BJ$216,$D$7,0)/VLOOKUP($A104,outcome_data!$A$1:$BJ$216,$F$7,0)*100000,VLOOKUP($A104,outcome_data!$A$1:$BJ$216,$D$7,0)/VLOOKUP($A104,outcome_data!$A$1:$BJ$216,$F$7,0)*100)","v":77.839851024208571},{"$f":"IF(AND($C$5=1,$B$7<=7),VLOOKUP($A104,outcome_data!$A$1:$BJ$216,$H$7,0)/VLOOKUP($A104,outcome_data!$A$1:$BJ$216,$J$7,0)*100000,VLOOKUP($A104,outcome_data!$A$1:$BJ$216,$H$7,0)/VLOOKUP($A104,outcome_data!$A$1:$BJ$216,$J$7,0)*100)","v":{"$error":"#DIV/0!"}}]
["05P",{"$f":"VLOOKUP($A105,SummaryData!$K$5:$M$215,3,0)","v":"West Midlands"},{"$f":"VLOOKUP($A105,SummaryData!$K$5:$N$215,4,0)","v":"No"},{"$f":"VLOOKUP($A105,SummaryData!$K$5:$P$215,6,0)","v":8},{"$f":"VLOOKUP(A105,SummaryData!$K$4:$T$215,10,0)","v":1.8640919670294969},5,{"$f":"IF(AND($C$5=1,$B$7<=7),VLOOKUP(A105,SummaryData!$K$5:$X$215,14,0)*100000,VLOOKUP(A105,SummaryData!$K$5:$X$215,14,0)*100 )","v":60.58587932772798},8,{"$f":"VLOOKUP($A105,cost_data!$A$5:$BB$215,$D$6,0)/VLOOKUP($A105,cost_data!$A$5:$BB$215,$F$6,0)","v":1.8640919670294969},{"$f":"IFERROR(VLOOKUP($A105,cost_data!$A$5:$BB$215,$H$6,0)/VLOOKUP($A105,cost_data!$A$5:$BB$215,$J$6,0),0)","v":1.7702324851115741},{"$f":"IF(AND($C$5=1,$B$7<=7),VLOOKUP($A105,outcome_data!$A$1:$BJ$216,$D$7,0)/VLOOKUP($A105,outcome_data!$A$1:$BJ$216,$F$7,0)*100000,VLOOKUP($A105,outcome_data!$A$1:$BJ$216,$D$7,0)/VLOOKUP($A105,outcome_data!$A$1:$BJ$216,$F$7,0)*100)","v":60.58587932772798},{"$f":"IF(AND($C$5=1,$B$7<=7),VLOOKUP($A105,outcome_data!$A$1:$BJ$216,$H$7,0)/VLOOKUP($A105,outcome_data!$A$1:$BJ$216,$J$7,0)*100000,VLOOKUP($A105,outcome_data!$A$1:$BJ$216,$H$7,0)/VLOOKUP($A105,outcome_data!$A$1:$BJ$216,$J$7,0)*100)","v":{"$error":"#DIV/0!"}}]
["05Q",{"$f":"VLOOKUP($A106,SummaryData!$K$5:$M$215,3,0)","v":"West Midlands"},{"$f":"VLOOKUP($A106,SummaryData!$K$5:$N$215,4,0)","v":"No"},{"$f":"VLOOKUP($A106,SummaryData!$K$5:$P$215,6,0)","v":8},{"$f":"VLOOKUP(A106,SummaryData!$K$4:$T$215,10,0)","v":2.0514749522929114},5,{"$f":"IF(AND($C$5=1,$B$7<=7),VLOOKUP(A106,SummaryData!$K$5:$X$215,14,0)*100000,VLOOKUP(A106,SummaryData!$K$5:$X$215,14,0)*100 )","v":68.205827752079514},10,{"$f":"VLOOKUP($A106,cost_data!$A$5:$BB$215,$D$6,0)/VLOOKUP($A106,cost_data!$A$5:$BB$215,$F$6,0)","v":2.0514749522929114},{"$f":"IFERROR(VLOOKUP($A106,cost_data!$A$5:$BB$215,$H$6,0)/VLOOKUP($A106,cost_data!$A$5:$BB$215,$J$6,0),0)","v":2.2611625098046262},{"$f":"IF(AND($C$5=1,$B$7<=7),VLOOKUP($A106,outcome_data!$A$1:$BJ$216,$D$7,0)/VLOOKUP($A106,outcome_data!$A$1:$BJ$216,$F$7,0)*100000,VLOOKUP($A106,outcome_data!$A$1:$BJ$216,$D$7,0)/VLOOKUP($A106,outcome_data!$A$1:$BJ$216,$F$7,0)*100)","v":68.205827752079514},{"$f":"IF(AND($C$5=1,$B$7<=7),VLOOKUP($A106,outcome_data!$A$1:$BJ$216,$H$7,0)/VLOOKUP($A106,outcome_data!$A$1:$BJ$216,$J$7,0)*100000,VLOOKUP($A106,outcome_data!$A$1:$BJ$216,$H$7,0)/VLOOKUP($A106,outcome_data!$A$1:$BJ$216,$J$7,0)*100)","v":{"$error":"#DIV/0!"}}]
["05R",{"$f":"VLOOKUP($A107,SummaryData!$K$5:$M$215,3,0)","v":"West Midlands"},{"$f":"VLOOKUP($A107,SummaryData!$K$5:$N$215,4,0)","v":"No"},{"$f":"VLOOKUP($A107,SummaryData!$K$5:$P$215,6,0)","v":10},{"$f":"VLOOKUP(A107,SummaryData!$K$4:$T$215,10,0)","v":2.9192263057117538},7,{"$f":"IF(AND($C$5=1,$B$7<=7),VLOOKUP(A107,SummaryData!$K$5:$X$215,14,0)*100000,VLOOKUP(A107,SummaryData!$K$5:$X$215,14,0)*100 )","v":63.544666269847653},9,{"$f":"VLOOKUP($A107,cost_data!$A$5:$BB$215,$D$6,0)/VLOOKUP($A107,cost_data!$A$5:$BB$215,$F$6,0)","v":2.9192263057117538},{"$f":"IFERROR(VLOOKUP($A107,cost_data!$A$5:$BB$215,$H$6,0)/VLOOKUP($A107,cost_data!$A$5:$BB$215,$J$6,0),0)","v":2.5314063236131372},{"$f":"IF(AND($C$5=1,$B$7<=7),VLOOKUP($A107,outcome_data!$A$1:$BJ$216,$D$7,0)/VLOOKUP($A107,outcome_data!$A$1:$BJ$216,$F$7,0)*100000,VLOOKUP($A107,outcome_data!$A$1:$BJ$216,$D$7,0)/VLOOKUP($A107,outcome_data!$A$1:$BJ$216,$F$7,0)*100)","v":63.544666269847653},{"$f":"IF(AND($C$5=1,$B$7<=7),VLOOKUP($A107,outcome_data!$A$1:$BJ$216,$H$7,0)/VLOOKUP($A107,outcome_data!$A$1:$BJ$216,$J$7,0)*100000,VLOOKUP($A107,outcome_data!$A$1:$BJ$216,$H$7,0)/VLOOKUP($A107,outcome_data!$A$1:$BJ$216,$J$7,0)*100)","v":{"$error":"#DIV/0!"}}]
["05T",{"$f":"VLOOKUP($A108,SummaryData!$K$5:$M$215,3,0)","v":"West Midlands"},{"$f":"VLOOKUP($A108,SummaryData!$K$5:$N$215,4,0)","v":"Closest 10 CCGs"},{"$f":"VLOOKUP($A108,SummaryData!$K$5:$P$215,6,0)","v":8},{"$f":"VLOOKUP(A108,SummaryData!$K$4:$T$215,10,0)","v":1.2693523372094568},3,{"$f":"IF(AND($C$5=1,$B$7<=7),VLOOKUP(A108,SummaryData!$K$5:$X$215,14,0)*100000,VLOOKUP(A108,SummaryData!$K$5:$X$215,14,0)*100 )","v":64.820469779797747},9,{"$f":"VLOOKUP($A108,cost_data!$A$5:$BB$215,$D$6,0)/VLOOKUP($A108,cost_data!$A$5:$BB$215,$F$6,0)","v":1.2693523372094568},{"$f":"IFERROR(VLOOKUP($A108,cost_data!$A$5:$BB$215,$H$6,0)/VLOOKUP($A108,cost_data!$A$5:$BB$215,$J$6,0),0)","v":1.4130882506942595},{"$f":"IF(AND($C$5=1,$B$7<=7),VLOOKUP($A108,outcome_data!$A$1:$BJ$216,$D$7,0)/VLOOKUP($A108,outcome_data!$A$1:$BJ$216,$F$7,0)*100000,VLOOKUP($A108,outcome_data!$A$1:$BJ$216,$D$7,0)/VLOOKUP($A108,outcome_data!$A$1:$BJ$216,$F$7,0)*100)","v":64.820469779797747},{"$f":"IF(AND($C$5=1,$B$7<=7),VLOOKUP($A108,outcome_data!$A$1:$BJ$216,$H$7,0)/VLOOKUP($A108,outcome_data!$A$1:$BJ$216,$J$7,0)*100000,VLOOKUP($A108,outcome_data!$A$1:$BJ$216,$H$7,0)/VLOOKUP($A108,outcome_data!$A$1:$BJ$216,$J$7,0)*100)","v":{"$error":"#DIV/0!"}}]
["05V",{"$f":"VLOOKUP($A109,SummaryData!$K$5:$M$215,3,0)","v":"West Midlands"},{"$f":"VLOOKUP($A109,SummaryData!$K$5:$N$215,4,0)","v":"No"},{"$f":"VLOOKUP($A109,SummaryData!$K$5:$P$215,6,0)","v":9},{"$f":"VLOOKUP(A109,SummaryData!$K$4:$T$215,10,0)","v":2.3794636269294198},6,{"$f":"IF(AND($C$5=1,$B$7<=7),VLOOKUP(A109,SummaryData!$K$5:$X$215,14,0)*100000,VLOOKUP(A109,SummaryData!$K$5:$X$215,14,0)*100 )","v":66.04919526267841},9,{"$f":"VLOOKUP($A109,cost_data!$A$5:$BB$215,$D$6,0)/VLOOKUP($A109,cost_data!$A$5:$BB$215,$F$6,0)","v":2.3794636269294198},{"$f":"IFERROR(VLOOKUP($A109,cost_data!$A$5:$BB$215,$H$6,0)/VLOOKUP($A109,cost_data!$A$5:$BB$215,$J$6,0),0)","v":2.021285437049082},{"$f":"IF(AND($C$5=1,$B$7<=7),VLOOKUP($A109,outcome_data!$A$1:$BJ$216,$D$7,0)/VLOOKUP($A109,outcome_data!$A$1:$BJ$216,$F$7,0)*100000,VLOOKUP($A109,outcome_data!$A$1:$BJ$216,$D$7,0)/VLOOKUP($A109,outcome_data!$A$1:$BJ$216,$F$7,0)*100)","v":66.04919526267841},{"$f":"IF(AND($C$5=1,$B$7<=7),VLOOKUP($A109,outcome_data!$A$1:$BJ$216,$H$7,0)/VLOOKUP($A109,outcome_data!$A$1:$BJ$216,$J$7,0)*100000,VLOOKUP($A109,outcome_data!$A$1:$BJ$216,$H$7,0)/VLOOKUP($A109,outcome_data!$A$1:$BJ$216,$J$7,0)*100)","v":{"$error":"#DIV/0!"}}]
["05W",{"$f":"VLOOKUP($A110,SummaryData!$K$5:$M$215,3,0)","v":"West Midlands"},{"$f":"VLOOKUP($A110,SummaryData!$K$5:$N$215,4,0)","v":"No"},{"$f":"VLOOKUP($A110,SummaryData!$K$5:$P$215,6,0)","v":1},{"$f":"VLOOKUP(A110,SummaryData!$K$4:$T$215,10,0)","v":1.7337357409660261},4,{"$f":"IF(AND($C$5=1,$B$7<=7),VLOOKUP(A110,SummaryData!$K$5:$X$215,14,0)*100000,VLOOKUP(A110,SummaryData!$K$5:$X$215,14,0)*100 )","v":67.826656646819657},10,{"$f":"VLOOKUP($A110,cost_data!$A$5:$BB$215,$D$6,0)/VLOOKUP($A110,cost_data!$A$5:$BB$215,$F$6,0)","v":1.7337357409660261},{"$f":"IFERROR(VLOOKUP($A110,cost_data!$A$5:$BB$215,$H$6,0)/VLOOKUP($A110,cost_data!$A$5:$BB$215,$J$6,0),0)","v":1.3738242783142169},{"$f":"IF(AND($C$5=1,$B$7<=7),VLOOKUP($A110,outcome_data!$A$1:$BJ$216,$D$7,0)/VLOOKUP($A110,outcome_data!$A$1:$BJ$216,$F$7,0)*100000,VLOOKUP($A110,outcome_data!$A$1:$BJ$216,$D$7,0)/VLOOKUP($A110,outcome_data!$A$1:$BJ$216,$F$7,0)*100)","v":67.826656646819657},{"$f":"IF(AND($C$5=1,$B$7<=7),VLOOKUP($A110,outcome_data!$A$1:$BJ$216,$H$7,0)/VLOOKUP($A110,outcome_data!$A$1:$BJ$216,$J$7,0)*100000,VLOOKUP($A110,outcome_data!$A$1:$BJ$216,$H$7,0)/VLOOKUP($A110,outcome_data!$A$1:$BJ$216,$J$7,0)*100)","v":{"$error":"#DIV/0!"}}]
["05X",{"$f":"VLOOKUP($A111,SummaryData!$K$5:$M$215,3,0)","v":"West Midlands"},{"$f":"VLOOKUP($A111,SummaryData!$K$5:$N$215,4,0)","v":"No"},{"$f":"VLOOKUP($A111,SummaryData!$K$5:$P$215,6,0)","v":4},{"$f":"VLOOKUP(A111,SummaryData!$K$4:$T$215,10,0)","v":0.75993586130243485},2,{"$f":"IF(AND($C$5=1,$B$7<=7),VLOOKUP(A111,SummaryData!$K$5:$X$215,14,0)*100000,VLOOKUP(A111,SummaryData!$K$5:$X$215,14,0)*100 )","v":66.358223811542643},9,{"$f":"VLOOKUP($A111,cost_data!$A$5:$BB$215,$D$6,0)/VLOOKUP($A111,cost_data!$A$5:$BB$215,$F$6,0)","v":0.75993586130243485},{"$f":"IFERROR(VLOOKUP($A111,cost_data!$A$5:$BB$215,$H$6,0)/VLOOKUP($A111,cost_data!$A$5:$BB$215,$J$6,0),0)","v":0.71243621362901954},{"$f":"IF(AND($C$5=1,$B$7<=7),VLOOKUP($A111,outcome_data!$A$1:$BJ$216,$D$7,0)/VLOOKUP($A111,outcome_data!$A$1:$BJ$216,$F$7,0)*100000,VLOOKUP($A111,outcome_data!$A$1:$BJ$216,$D$7,0)/VLOOKUP($A111,outcome_data!$A$1:$BJ$216,$F$7,0)*100)","v":66.358223811542643},{"$f":"IF(AND($C$5=1,$B$7<=7),VLOOKUP($A111,outcome_data!$A$1:$BJ$216,$H$7,0)/VLOOKUP($A111,outcome_data!$A$1:$BJ$216,$J$7,0)*100000,VLOOKUP($A111,outcome_data!$A$1:$BJ$216,$H$7,0)/VLOOKUP($A111,outcome_data!$A$1:$BJ$216,$J$7,0)*100)","v":{"$error":"#DIV/0!"}}]
["05Y",{"$f":"VLOOKUP($A112,SummaryData!$K$5:$M$215,3,0)","v":"West Midlands"},{"$f":"VLOOKUP($A112,SummaryData!$K$5:$N$215,4,0)","v":"No"},{"$f":"VLOOKUP($A112,SummaryData!$K$5:$P$215,6,0)","v":2},{"$f":"VLOOKUP(A112,SummaryData!$K$4:$T$215,10,0)","v":1.617783080964567},4,{"$f":"IF(AND($C$5=1,$B$7<=7),VLOOKUP(A112,SummaryData!$K$5:$X$215,14,0)*100000,VLOOKUP(A112,SummaryData!$K$5:$X$215,14,0)*100 )","v":82.643308287486931},13,{"$f":"VLOOKUP($A112,cost_data!$A$5:$BB$215,$D$6,0)/VLOOKUP($A112,cost_data!$A$5:$BB$215,$F$6,0)","v":1.617783080964567},{"$f":"IFERROR(VLOOKUP($A112,cost_data!$A$5:$BB$215,$H$6,0)/VLOOKUP($A112,cost_data!$A$5:$BB$215,$J$6,0),0)","v":1.8912321217199834},{"$f":"IF(AND($C$5=1,$B$7<=7),VLOOKUP($A112,outcome_data!$A$1:$BJ$216,$D$7,0)/VLOOKUP($A112,outcome_data!$A$1:$BJ$216,$F$7,0)*100000,VLOOKUP($A112,outcome_data!$A$1:$BJ$216,$D$7,0)/VLOOKUP($A112,outcome_data!$A$1:$BJ$216,$F$7,0)*100)","v":82.643308287486931},{"$f":"IF(AND($C$5=1,$B$7<=7),VLOOKUP($A112,outcome_data!$A$1:$BJ$216,$H$7,0)/VLOOKUP($A112,outcome_data!$A$1:$BJ$216,$J$7,0)*100000,VLOOKUP($A112,outcome_data!$A$1:$BJ$216,$H$7,0)/VLOOKUP($A112,outcome_data!$A$1:$BJ$216,$J$7,0)*100)","v":{"$error":"#DIV/0!"}}]
["06A",{"$f":"VLOOKUP($A113,SummaryData!$K$5:$M$215,3,0)","v":"West Midlands"},{"$f":"VLOOKUP($A113,SummaryData!$K$5:$N$215,4,0)","v":"No"},{"$f":"VLOOKUP($A113,SummaryData!$K$5:$P$215,6,0)","v":2},{"$f":"VLOOKUP(A113,SummaryData!$K$4:$T$215,10,0)","v":1.3021814751480776},3,{"$f":"IF(AND($C$5=1,$B$7<=7),VLOOKUP(A113,SummaryData!$K$5:$X$215,14,0)*100000,VLOOKUP(A113,SummaryData!$K$5:$X$215,14,0)*100 )","v":71.949585669627353},11,{"$f":"VLOOKUP($A113,cost_data!$A$5:$BB$215,$D$6,0)/VLOOKUP($A113,cost_data!$A$5:$BB$215,$F$6,0)","v":1.3021814751480776},{"$f":"IFERROR(VLOOKUP($A113,cost_data!$A$5:$BB$215,$H$6,0)/VLOOKUP($A113,cost_data!$A$5:$BB$215,$J$6,0),0)","v":1.3427342216809595},{"$f":"IF(AND($C$5=1,$B$7<=7),VLOOKUP($A113,outcome_data!$A$1:$BJ$216,$D$7,0)/VLOOKUP($A113,outcome_data!$A$1:$BJ$216,$F$7,0)*100000,VLOOKUP($A113,outcome_data!$A$1:$BJ$216,$D$7,0)/VLOOKUP($A113,outcome_data!$A$1:$BJ$216,$F$7,0)*100)","v":71.949585669627353},{"$f":"IF(AND($C$5=1,$B$7<=7),VLOOKUP($A113,outcome_data!$A$1:$BJ$216,$H$7,0)/VLOOKUP($A113,outcome_data!$A$1:$BJ$216,$J$7,0)*100000,VLOOKUP($A113,outcome_data!$A$1:$BJ$216,$H$7,0)/VLOOKUP($A113,outcome_data!$A$1:$BJ$216,$J$7,0)*100)","v":{"$error":"#DIV/0!"}}]
["06D",{"$f":"VLOOKUP($A114,SummaryData!$K$5:$M$215,3,0)","v":"West Midlands"},{"$f":"VLOOKUP($A114,SummaryData!$K$5:$N$215,4,0)","v":"No"},{"$f":"VLOOKUP($A114,SummaryData!$K$5:$P$215,6,0)","v":5},{"$f":"VLOOKUP(A114,SummaryData!$K$4:$T$215,10,0)","v":1.0659440752493199},3,{"$f":"IF(AND($C$5=1,$B$7<=7),VLOOKUP(A114,SummaryData!$K$5:$X$215,14,0)*100000,VLOOKUP(A114,SummaryData!$K$5:$X$215,14,0)*100 )","v":102.27060408492393},18,{"$f":"VLOOKUP($A114,cost_data!$A$5:$BB$215,$D$6,0)/VLOOKUP($A114,cost_data!$A$5:$BB$215,$F$6,0)","v":1.0659440752493199},{"$f":"IFERROR(VLOOKUP($A114,cost_data!$A$5:$BB$215,$H$6,0)/VLOOKUP($A114,cost_data!$A$5:$BB$215,$J$6,0),0)","v":1.2866732565984436},{"$f":"IF(AND($C$5=1,$B$7<=7),VLOOKUP($A114,outcome_data!$A$1:$BJ$216,$D$7,0)/VLOOKUP($A114,outcome_data!$A$1:$BJ$216,$F$7,0)*100000,VLOOKUP($A114,outcome_data!$A$1:$BJ$216,$D$7,0)/VLOOKUP($A114,outcome_data!$A$1:$BJ$216,$F$7,0)*100)","v":102.27060408492393},{"$f":"IF(AND($C$5=1,$B$7<=7),VLOOKUP($A114,outcome_data!$A$1:$BJ$216,$H$7,0)/VLOOKUP($A114,outcome_data!$A$1:$BJ$216,$J$7,0)*100000,VLOOKUP($A114,outcome_data!$A$1:$BJ$216,$H$7,0)/VLOOKUP($A114,outcome_data!$A$1:$BJ$216,$J$7,0)*100)","v":{"$error":"#DIV/0!"}}]
["06F",{"$f":"VLOOKUP($A115,SummaryData!$K$5:$M$215,3,0)","v":"East of England"},{"$f":"VLOOKUP($A115,SummaryData!$K$5:$N$215,4,0)","v":"No"},{"$f":"VLOOKUP($A115,SummaryData!$K$5:$P$215,6,0)","v":9},{"$f":"VLOOKUP(A115,SummaryData!$K$4:$T$215,10,0)","v":1.192447684018584},3,{"$f":"IF(AND($C$5=1,$B$7<=7),VLOOKUP(A115,SummaryData!$K$5:$X$215,14,0)*100000,VLOOKUP(A115,SummaryData!$K$5:$X$215,14,0)*100 )","v":58.956685033008469},7,{"$f":"VLOOKUP($A115,cost_data!$A$5:$BB$215,$D$6,0)/VLOOKUP($A115,cost_data!$A$5:$BB$215,$F$6,0)","v":1.192447684018584},{"$f":"IFERROR(VLOOKUP($A115,cost_data!$A$5:$BB$215,$H$6,0)/VLOOKUP($A115,cost_data!$A$5:$BB$215,$J$6,0),0)","v":1.1611187980683522},{"$f":"IF(AND($C$5=1,$B$7<=7),VLOOKUP($A115,outcome_data!$A$1:$BJ$216,$D$7,0)/VLOOKUP($A115,outcome_data!$A$1:$BJ$216,$F$7,0)*100000,VLOOKUP($A115,outcome_data!$A$1:$BJ$216,$D$7,0)/VLOOKUP($A115,outcome_data!$A$1:$BJ$216,$F$7,0)*100)","v":58.956685033008469},{"$f":"IF(AND($C$5=1,$B$7<=7),VLOOKUP($A115,outcome_data!$A$1:$BJ$216,$H$7,0)/VLOOKUP($A115,outcome_data!$A$1:$BJ$216,$J$7,0)*100000,VLOOKUP($A115,outcome_data!$A$1:$BJ$216,$H$7,0)/VLOOKUP($A115,outcome_data!$A$1:$BJ$216,$J$7,0)*100)","v":{"$error":"#DIV/0!"}}]
["06H",{"$f":"VLOOKUP($A116,SummaryData!$K$5:$M$215,3,0)","v":"East of England"},{"$f":"VLOOKUP($A116,SummaryData!$K$5:$N$215,4,0)","v":"No"},{"$f":"VLOOKUP($A116,SummaryData!$K$5:$P$215,6,0)","v":8},{"$f":"VLOOKUP(A116,SummaryData!$K$4:$T$215,10,0)","v":0.9581456185957683},2,{"$f":"IF(AND($C$5=1,$B$7<=7),VLOOKUP(A116,SummaryData!$K$5:$X$215,14,0)*100000,VLOOKUP(A116,SummaryData!$K$5:$X$215,14,0)*100 )","v":53.025913960544791},6,{"$f":"VLOOKUP($A116,cost_data!$A$5:$BB$215,$D$6,0)/VLOOKUP($A116,cost_data!$A$5:$BB$215,$F$6,0)","v":0.9581456185957683},{"$f":"IFERROR(VLOOKUP($A116,cost_data!$A$5:$BB$215,$H$6,0)/VLOOKUP($A116,cost_data!$A$5:$BB$215,$J$6,0),0)","v":1.0008187799256927},{"$f":"IF(AND($C$5=1,$B$7<=7),VLOOKUP($A116,outcome_data!$A$1:$BJ$216,$D$7,0)/VLOOKUP($A116,outcome_data!$A$1:$BJ$216,$F$7,0)*100000,VLOOKUP($A116,outcome_data!$A$1:$BJ$216,$D$7,0)/VLOOKUP($A116,outcome_data!$A$1:$BJ$216,$F$7,0)*100)","v":53.025913960544791},{"$f":"IF(AND($C$5=1,$B$7<=7),VLOOKUP($A116,outcome_data!$A$1:$BJ$216,$H$7,0)/VLOOKUP($A116,outcome_data!$A$1:$BJ$216,$J$7,0)*100000,VLOOKUP($A116,outcome_data!$A$1:$BJ$216,$H$7,0)/VLOOKUP($A116,outcome_data!$A$1:$BJ$216,$J$7,0)*100)","v":{"$error":"#DIV/0!"}}]
["06K",{"$f":"VLOOKUP($A117,SummaryData!$K$5:$M$215,3,0)","v":"East of England"},{"$f":"VLOOKUP($A117,SummaryData!$K$5:$N$215,4,0)","v":"No"},{"$f":"VLOOKUP($A117,SummaryData!$K$5:$P$215,6,0)","v":9},{"$f":"VLOOKUP(A117,SummaryData!$K$4:$T$215,10,0)","v":1.3010353567763895},3,{"$f":"IF(AND($C$5=1,$B$7<=7),VLOOKUP(A117,SummaryData!$K$5:$X$215,14,0)*100000,VLOOKUP(A117,SummaryData!$K$5:$X$215,14,0)*100 )","v":60.077080027204715},8,{"$f":"VLOOKUP($A117,cost_data!$A$5:$BB$215,$D$6,0)/VLOOKUP($A117,cost_data!$A$5:$BB$215,$F$6,0)","v":1.3010353567763895},{"$f":"IFERROR(VLOOKUP($A117,cost_data!$A$5:$BB$215,$H$6,0)/VLOOKUP($A117,cost_data!$A$5:$BB$215,$J$6,0),0)","v":1.14289562698344},{"$f":"IF(AND($C$5=1,$B$7<=7),VLOOKUP($A117,outcome_data!$A$1:$BJ$216,$D$7,0)/VLOOKUP($A117,outcome_data!$A$1:$BJ$216,$F$7,0)*100000,VLOOKUP($A117,outcome_data!$A$1:$BJ$216,$D$7,0)/VLOOKUP($A117,outcome_data!$A$1:$BJ$216,$F$7,0)*100)","v":60.077080027204715},{"$f":"IF(AND($C$5=1,$B$7<=7),VLOOKUP($A117,outcome_data!$A$1:$BJ$216,$H$7,0)/VLOOKUP($A117,outcome_data!$A$1:$BJ$216,$J$7,0)*100000,VLOOKUP($A117,outcome_data!$A$1:$BJ$216,$H$7,0)/VLOOKUP($A117,outcome_data!$A$1:$BJ$216,$J$7,0)*100)","v":{"$error":"#DIV/0!"}}]
["06L",{"$f":"VLOOKUP($A118,SummaryData!$K$5:$M$215,3,0)","v":"East of England"},{"$f":"VLOOKUP($A118,SummaryData!$K$5:$N$215,4,0)","v":"No"},{"$f":"VLOOKUP($A118,SummaryData!$K$5:$P$215,6,0)","v":8},{"$f":"VLOOKUP(A118,SummaryData!$K$4:$T$215,10,0)","v":1.7511113586336786},4,{"$f":"IF(AND($C$5=1,$B$7<=7),VLOOKUP(A118,SummaryData!$K$5:$X$215,14,0)*100000,VLOOKUP(A118,SummaryData!$K$5:$X$215,14,0)*100 )","v":64.747611548259599},9,{"$f":"VLOOKUP($A118,cost_data!$A$5:$BB$215,$D$6,0)/VLOOKUP($A118,cost_data!$A$5:$BB$215,$F$6,0)","v":1.7511113586336786},{"$f":"IFERROR(VLOOKUP($A118,cost_data!$A$5:$BB$215,$H$6,0)/VLOOKUP($A118,cost_data!$A$5:$BB$215,$J$6,0),0)","v":1.6596064283458856},{"$f":"IF(AND($C$5=1,$B$7<=7),VLOOKUP($A118,outcome_data!$A$1:$BJ$216,$D$7,0)/VLOOKUP($A118,outcome_data!$A$1:$BJ$216,$F$7,0)*100000,VLOOKUP($A118,outcome_data!$A$1:$BJ$216,$D$7,0)/VLOOKUP($A118,outcome_data!$A$1:$BJ$216,$F$7,0)*100)","v":64.747611548259599},{"$f":"IF(AND($C$5=1,$B$7<=7),VLOOKUP($A118,outcome_data!$A$1:$BJ$216,$H$7,0)/VLOOKUP($A118,outcome_data!$A$1:$BJ$216,$J$7,0)*100000,VLOOKUP($A118,outcome_data!$A$1:$BJ$216,$H$7,0)/VLOOKUP($A118,outcome_data!$A$1:$BJ$216,$J$7,0)*100)","v":{"$error":"#DIV/0!"}}]
["06M",{"$f":"VLOOKUP($A119,SummaryData!$K$5:$M$215,3,0)","v":"East of England"},{"$f":"VLOOKUP($A119,SummaryData!$K$5:$N$215,4,0)","v":"Closest 10 CCGs"},{"$f":"VLOOKUP($A119,SummaryData!$K$5:$P$215,6,0)","v":4},{"$f":"VLOOKUP(A119,SummaryData!$K$4:$T$215,10,0)","v":2.0267409502297502},5,{"$f":"IF(AND($C$5=1,$B$7<=7),VLOOKUP(A119,SummaryData!$K$5:$X$215,14,0)*100000,VLOOKUP(A119,SummaryData!$K$5:$X$215,14,0)*100 )","v":84.437860971855656},14,{"$f":"VLOOKUP($A119,cost_data!$A$5:$BB$215,$D$6,0)/VLOOKUP($A119,cost_data!$A$5:$BB$215,$F$6,0)","v":2.0267409502297502},{"$f":"IFERROR(VLOOKUP($A119,cost_data!$A$5:$BB$215,$H$6,0)/VLOOKUP($A119,cost_data!$A$5:$BB$215,$J$6,0),0)","v":1.8556374276395942},{"$f":"IF(AND($C$5=1,$B$7<=7),VLOOKUP($A119,outcome_data!$A$1:$BJ$216,$D$7,0)/VLOOKUP($A119,outcome_data!$A$1:$BJ$216,$F$7,0)*100000,VLOOKUP($A119,outcome_data!$A$1:$BJ$216,$D$7,0)/VLOOKUP($A119,outcome_data!$A$1:$BJ$216,$F$7,0)*100)","v":84.437860971855656},{"$f":"IF(AND($C$5=1,$B$7<=7),VLOOKUP($A119,outcome_data!$A$1:$BJ$216,$H$7,0)/VLOOKUP($A119,outcome_data!$A$1:$BJ$216,$J$7,0)*100000,VLOOKUP($A119,outcome_data!$A$1:$BJ$216,$H$7,0)/VLOOKUP($A119,outcome_data!$A$1:$BJ$216,$J$7,0)*100)","v":{"$error":"#DIV/0!"}}]
["06N",{"$f":"VLOOKUP($A120,SummaryData!$K$5:$M$215,3,0)","v":"East of England"},{"$f":"VLOOKUP($A120,SummaryData!$K$5:$N$215,4,0)","v":"No"},{"$f":"VLOOKUP($A120,SummaryData!$K$5:$P$215,6,0)","v":10},{"$f":"VLOOKUP(A120,SummaryData!$K$4:$T$215,10,0)","v":1.3978686126643023},3,{"$f":"IF(AND($C$5=1,$B$7<=7),VLOOKUP(A120,SummaryData!$K$5:$X$215,14,0)*100000,VLOOKUP(A120,SummaryData!$K$5:$X$215,14,0)*100 )","v":49.588591790254426},5,{"$f":"VLOOKUP($A120,cost_data!$A$5:$BB$215,$D$6,0)/VLOOKUP($A120,cost_data!$A$5:$BB$215,$F$6,0)","v":1.3978686126643023},{"$f":"IFERROR(VLOOKUP($A120,cost_data!$A$5:$BB$215,$H$6,0)/VLOOKUP($A120,cost_data!$A$5:$BB$215,$J$6,0),0)","v":1.256883606736374},{"$f":"IF(AND($C$5=1,$B$7<=7),VLOOKUP($A120,outcome_data!$A$1:$BJ$216,$D$7,0)/VLOOKUP($A120,outcome_data!$A$1:$BJ$216,$F$7,0)*100000,VLOOKUP($A120,outcome_data!$A$1:$BJ$216,$D$7,0)/VLOOKUP($A120,outcome_data!$A$1:$BJ$216,$F$7,0)*100)","v":49.588591790254426},{"$f":"IF(AND($C$5=1,$B$7<=7),VLOOKUP($A120,outcome_data!$A$1:$BJ$216,$H$7,0)/VLOOKUP($A120,outcome_data!$A$1:$BJ$216,$J$7,0)*100000,VLOOKUP($A120,outcome_data!$A$1:$BJ$216,$H$7,0)/VLOOKUP($A120,outcome_data!$A$1:$BJ$216,$J$7,0)*100)","v":{"$error":"#DIV/0!"}}]
["06P",{"$f":"VLOOKUP($A121,SummaryData!$K$5:$M$215,3,0)","v":"East of England"},{"$f":"VLOOKUP($A121,SummaryData!$K$5:$N$215,4,0)","v":"No"},{"$f":"VLOOKUP($A121,SummaryData!$K$5:$P$215,6,0)","v":3},{"$f":"VLOOKUP(A121,SummaryData!$K$4:$T$215,10,0)","v":0.72433702134524358},2,{"$f":"IF(AND($C$5=1,$B$7<=7),VLOOKUP(A121,SummaryData!$K$5:$X$215,14,0)*100000,VLOOKUP(A121,SummaryData!$K$5:$X$215,14,0)*100 )","v":67.430229117246128},10,{"$f":"VLOOKUP($A121,cost_data!$A$5:$BB$215,$D$6,0)/VLOOKUP($A121,cost_data!$A$5:$BB$215,$F$6,0)","v":0.72433702134524358},{"$f":"IFERROR(VLOOKUP($A121,cost_data!$A$5:$BB$215,$H$6,0)/VLOOKUP($A121,cost_data!$A$5:$BB$215,$J$6,0),0)","v":0.55500777778625854},{"$f":"IF(AND($C$5=1,$B$7<=7),VLOOKUP($A121,outcome_data!$A$1:$BJ$216,$D$7,0)/VLOOKUP($A121,outcome_data!$A$1:$BJ$216,$F$7,0)*100000,VLOOKUP($A121,outcome_data!$A$1:$BJ$216,$D$7,0)/VLOOKUP($A121,outcome_data!$A$1:$BJ$216,$F$7,0)*100)","v":67.430229117246128},{"$f":"IF(AND($C$5=1,$B$7<=7),VLOOKUP($A121,outcome_data!$A$1:$BJ$216,$H$7,0)/VLOOKUP($A121,outcome_data!$A$1:$BJ$216,$J$7,0)*100000,VLOOKUP($A121,outcome_data!$A$1:$BJ$216,$H$7,0)/VLOOKUP($A121,outcome_data!$A$1:$BJ$216,$J$7,0)*100)","v":{"$error":"#DIV/0!"}}]
["06Q",{"$f":"VLOOKUP($A122,SummaryData!$K$5:$M$215,3,0)","v":"East of England"},{"$f":"VLOOKUP($A122,SummaryData!$K$5:$N$215,4,0)","v":"No"},{"$f":"VLOOKUP($A122,SummaryData!$K$5:$P$215,6,0)","v":9},{"$f":"VLOOKUP(A122,SummaryData!$K$4:$T$215,10,0)","v":1.7583033832837269},4,{"$f":"IF(AND($C$5=1,$B$7<=7),VLOOKUP(A122,SummaryData!$K$5:$X$215,14,0)*100000,VLOOKUP(A122,SummaryData!$K$5:$X$215,14,0)*100 )","v":60.336976320582878},8,{"$f":"VLOOKUP($A122,cost_data!$A$5:$BB$215,$D$6,0)/VLOOKUP($A122,cost_data!$A$5:$BB$215,$F$6,0)","v":1.7583033832837269},{"$f":"IFERROR(VLOOKUP($A122,cost_data!$A$5:$BB$215,$H$6,0)/VLOOKUP($A122,cost_data!$A$5:$BB$215,$J$6,0),0)","v":1.595972713064687},{"$f":"IF(AND($C$5=1,$B$7<=7),VLOOKUP($A122,outcome_data!$A$1:$BJ$216,$D$7,0)/VLOOKUP($A122,outcome_data!$A$1:$BJ$216,$F$7,0)*100000,VLOOKUP($A122,outcome_data!$A$1:$BJ$216,$D$7,0)/VLOOKUP($A122,outcome_data!$A$1:$BJ$216,$F$7,0)*100)","v":60.336976320582878},{"$f":"IF(AND($C$5=1,$B$7<=7),VLOOKUP($A122,outcome_data!$A$1:$BJ$216,$H$7,0)/VLOOKUP($A122,outcome_data!$A$1:$BJ$216,$J$7,0)*100000,VLOOKUP($A122,outcome_data!$A$1:$BJ$216,$H$7,0)/VLOOKUP($A122,outcome_data!$A$1:$BJ$216,$J$7,0)*100)","v":{"$error":"#DIV/0!"}}]
["06T",{"$f":"VLOOKUP($A123,SummaryData!$K$5:$M$215,3,0)","v":"East of England"},{"$f":"VLOOKUP($A123,SummaryData!$K$5:$N$215,4,0)","v":"No"},{"$f":"VLOOKUP($A123,SummaryData!$K$5:$P$215,6,0)","v":6},{"$f":"VLOOKUP(A123,SummaryData!$K$4:$T$215,10,0)","v":2.0868153443634023},5,{"$f":"IF(AND($C$5=1,$B$7<=7),VLOOKUP(A123,SummaryData!$K$5:$X$215,14,0)*100000,VLOOKUP(A123,SummaryData!$K$5:$X$215,14,0)*100 )","v":69.298213311282893},10,{"$f":"VLOOKUP($A123,cost_data!$A$5:$BB$215,$D$6,0)/VLOOKUP($A123,cost_data!$A$5:$BB$215,$F$6,0)","v":2.0868153443634023},{"$f":"IFERROR(VLOOKUP($A123,cost_data!$A$5:$BB$215,$H$6,0)/VLOOKUP($A123,cost_data!$A$5:$BB$215,$J$6,0),0)","v":2.0604278028066623},{"$f":"IF(AND($C$5=1,$B$7<=7),VLOOKUP($A123,outcome_data!$A$1:$BJ$216,$D$7,0)/VLOOKUP($A123,outcome_data!$A$1:$BJ$216,$F$7,0)*100000,VLOOKUP($A123,outcome_data!$A$1:$BJ$216,$D$7,0)/VLOOKUP($A123,outcome_data!$A$1:$BJ$216,$F$7,0)*100)","v":69.298213311282893},{"$f":"IF(AND($C$5=1,$B$7<=7),VLOOKUP($A123,outcome_data!$A$1:$BJ$216,$H$7,0)/VLOOKUP($A123,outcome_data!$A$1:$BJ$216,$J$7,0)*100000,VLOOKUP($A123,outcome_data!$A$1:$BJ$216,$H$7,0)/VLOOKUP($A123,outcome_data!$A$1:$BJ$216,$J$7,0)*100)","v":{"$error":"#DIV/0!"}}]
["06V",{"$f":"VLOOKUP($A124,SummaryData!$K$5:$M$215,3,0)","v":"East of England"},{"$f":"VLOOKUP($A124,SummaryData!$K$5:$N$215,4,0)","v":"No"},{"$f":"VLOOKUP($A124,SummaryData!$K$5:$P$215,6,0)","v":8},{"$f":"VLOOKUP(A124,SummaryData!$K$4:$T$215,10,0)","v":3.1487432725328341},8,{"$f":"IF(AND($C$5=1,$B$7<=7),VLOOKUP(A124,SummaryData!$K$5:$X$215,14,0)*100000,VLOOKUP(A124,SummaryData!$K$5:$X$215,14,0)*100 )","v":83.337887316246793},14,{"$f":"VLOOKUP($A124,cost_data!$A$5:$BB$215,$D$6,0)/VLOOKUP($A124,cost_data!$A$5:$BB$215,$F$6,0)","v":3.1487432725328341},{"$f":"IFERROR(VLOOKUP($A124,cost_data!$A$5:$BB$215,$H$6,0)/VLOOKUP($A124,cost_data!$A$5:$BB$215,$J$6,0),0)","v":2.8500740262914643},{"$f":"IF(AND($C$5=1,$B$7<=7),VLOOKUP($A124,outcome_data!$A$1:$BJ$216,$D$7,0)/VLOOKUP($A124,outcome_data!$A$1:$BJ$216,$F$7,0)*100000,VLOOKUP($A124,outcome_data!$A$1:$BJ$216,$D$7,0)/VLOOKUP($A124,outcome_data!$A$1:$BJ$216,$F$7,0)*100)","v":83.337887316246793},{"$f":"IF(AND($C$5=1,$B$7<=7),VLOOKUP($A124,outcome_data!$A$1:$BJ$216,$H$7,0)/VLOOKUP($A124,outcome_data!$A$1:$BJ$216,$J$7,0)*100000,VLOOKUP($A124,outcome_data!$A$1:$BJ$216,$H$7,0)/VLOOKUP($A124,outcome_data!$A$1:$BJ$216,$J$7,0)*100)","v":{"$error":"#DIV/0!"}}]
["06W",{"$f":"VLOOKUP($A125,SummaryData!$K$5:$M$215,3,0)","v":"East of England"},{"$f":"VLOOKUP($A125,SummaryData!$K$5:$N$215,4,0)","v":"No"},{"$f":"VLOOKUP($A125,SummaryData!$K$5:$P$215,6,0)","v":6},{"$f":"VLOOKUP(A125,SummaryData!$K$4:$T$215,10,0)","v":1.1432293529515118},3,{"$f":"IF(AND($C$5=1,$B$7<=7),VLOOKUP(A125,SummaryData!$K$5:$X$215,14,0)*100000,VLOOKUP(A125,SummaryData!$K$5:$X$215,14,0)*100 )","v":49.183807655071369},5,{"$f":"VLOOKUP($A125,cost_data!$A$5:$BB$215,$D$6,0)/VLOOKUP($A125,cost_data!$A$5:$BB$215,$F$6,0)","v":1.1432293529515118},{"$f":"IFERROR(VLOOKUP($A125,cost_data!$A$5:$BB$215,$H$6,0)/VLOOKUP($A125,cost_data!$A$5:$BB$215,$J$6,0),0)","v":1.0798367182064275},{"$f":"IF(AND($C$5=1,$B$7<=7),VLOOKUP($A125,outcome_data!$A$1:$BJ$216,$D$7,0)/VLOOKUP($A125,outcome_data!$A$1:$BJ$216,$F$7,0)*100000,VLOOKUP($A125,outcome_data!$A$1:$BJ$216,$D$7,0)/VLOOKUP($A125,outcome_data!$A$1:$BJ$216,$F$7,0)*100)","v":49.183807655071369},{"$f":"IF(AND($C$5=1,$B$7<=7),VLOOKUP($A125,outcome_data!$A$1:$BJ$216,$H$7,0)/VLOOKUP($A125,outcome_data!$A$1:$BJ$216,$J$7,0)*100000,VLOOKUP($A125,outcome_data!$A$1:$BJ$216,$H$7,0)/VLOOKUP($A125,outcome_data!$A$1:$BJ$216,$J$7,0)*100)","v":{"$error":"#DIV/0!"}}]
["06Y",{"$f":"VLOOKUP($A126,SummaryData!$K$5:$M$215,3,0)","v":"East of England"},{"$f":"VLOOKUP($A126,SummaryData!$K$5:$N$215,4,0)","v":"No"},{"$f":"VLOOKUP($A126,SummaryData!$K$5:$P$215,6,0)","v":9},{"$f":"VLOOKUP(A126,SummaryData!$K$4:$T$215,10,0)","v":2.2706269877572889},5,{"$f":"IF(AND($C$5=1,$B$7<=7),VLOOKUP(A126,SummaryData!$K$5:$X$215,14,0)*100000,VLOOKUP(A126,SummaryData!$K$5:$X$215,14,0)*100 )","v":68.396423703543334},10,{"$f":"VLOOKUP($A126,cost_data!$A$5:$BB$215,$D$6,0)/VLOOKUP($A126,cost_data!$A$5:$BB$215,$F$6,0)","v":2.2706269877572889},{"$f":"IFERROR(VLOOKUP($A126,cost_data!$A$5:$BB$215,$H$6,0)/VLOOKUP($A126,cost_data!$A$5:$BB$215,$J$6,0),0)","v":1.9363723684411442},{"$f":"IF(AND($C$5=1,$B$7<=7),VLOOKUP($A126,outcome_data!$A$1:$BJ$216,$D$7,0)/VLOOKUP($A126,outcome_data!$A$1:$BJ$216,$F$7,0)*100000,VLOOKUP($A126,outcome_data!$A$1:$BJ$216,$D$7,0)/VLOOKUP($A126,outcome_data!$A$1:$BJ$216,$F$7,0)*100)","v":68.396423703543334},{"$f":"IF(AND($C$5=1,$B$7<=7),VLOOKUP($A126,outcome_data!$A$1:$BJ$216,$H$7,0)/VLOOKUP($A126,outcome_data!$A$1:$BJ$216,$J$7,0)*100000,VLOOKUP($A126,outcome_data!$A$1:$BJ$216,$H$7,0)/VLOOKUP($A126,outcome_data!$A$1:$BJ$216,$J$7,0)*100)","v":{"$error":"#DIV/0!"}}]
["07G",{"$f":"VLOOKUP($A127,SummaryData!$K$5:$M$215,3,0)","v":"East of England"},{"$f":"VLOOKUP($A127,SummaryData!$K$5:$N$215,4,0)","v":"No"},{"$f":"VLOOKUP($A127,SummaryData!$K$5:$P$215,6,0)","v":6},{"$f":"VLOOKUP(A127,SummaryData!$K$4:$T$215,10,0)","v":0.63433071779115424},2,{"$f":"IF(AND($C$5=1,$B$7<=7),VLOOKUP(A127,SummaryData!$K$5:$X$215,14,0)*100000,VLOOKUP(A127,SummaryData!$K$5:$X$215,14,0)*100 )","v":65.984823490597165},9,{"$f":"VLOOKUP($A127,cost_data!$A$5:$BB$215,$D$6,0)/VLOOKUP($A127,cost_data!$A$5:$BB$215,$F$6,0)","v":0.63433071779115424},{"$f":"IFERROR(VLOOKUP($A127,cost_data!$A$5:$BB$215,$H$6,0)/VLOOKUP($A127,cost_data!$A$5:$BB$215,$J$6,0),0)","v":0.5910334161138151},{"$f":"IF(AND($C$5=1,$B$7<=7),VLOOKUP($A127,outcome_data!$A$1:$BJ$216,$D$7,0)/VLOOKUP($A127,outcome_data!$A$1:$BJ$216,$F$7,0)*100000,VLOOKUP($A127,outcome_data!$A$1:$BJ$216,$D$7,0)/VLOOKUP($A127,outcome_data!$A$1:$BJ$216,$F$7,0)*100)","v":65.984823490597165},{"$f":"IF(AND($C$5=1,$B$7<=7),VLOOKUP($A127,outcome_data!$A$1:$BJ$216,$H$7,0)/VLOOKUP($A127,outcome_data!$A$1:$BJ$216,$J$7,0)*100000,VLOOKUP($A127,outcome_data!$A$1:$BJ$216,$H$7,0)/VLOOKUP($A127,outcome_data!$A$1:$BJ$216,$J$7,0)*100)","v":{"$error":"#DIV/0!"}}]
["07H",{"$f":"VLOOKUP($A128,SummaryData!$K$5:$M$215,3,0)","v":"East of England"},{"$f":"VLOOKUP($A128,SummaryData!$K$5:$N$215,4,0)","v":"Closest 10 CCGs"},{"$f":"VLOOKUP($A128,SummaryData!$K$5:$P$215,6,0)","v":8},{"$f":"VLOOKUP(A128,SummaryData!$K$4:$T$215,10,0)","v":1.3828635122053556},3,{"$f":"IF(AND($C$5=1,$B$7<=7),VLOOKUP(A128,SummaryData!$K$5:$X$215,14,0)*100000,VLOOKUP(A128,SummaryData!$K$5:$X$215,14,0)*100 )","v":51.044015364615845},5,{"$f":"VLOOKUP($A128,cost_data!$A$5:$BB$215,$D$6,0)/VLOOKUP($A128,cost_data!$A$5:$BB$215,$F$6,0)","v":1.3828635122053556},{"$f":"IFERROR(VLOOKUP($A128,cost_data!$A$5:$BB$215,$H$6,0)/VLOOKUP($A128,cost_data!$A$5:$BB$215,$J$6,0),0)","v":1.3705059279930307},{"$f":"IF(AND($C$5=1,$B$7<=7),VLOOKUP($A128,outcome_data!$A$1:$BJ$216,$D$7,0)/VLOOKUP($A128,outcome_data!$A$1:$BJ$216,$F$7,0)*100000,VLOOKUP($A128,outcome_data!$A$1:$BJ$216,$D$7,0)/VLOOKUP($A128,outcome_data!$A$1:$BJ$216,$F$7,0)*100)","v":51.044015364615845},{"$f":"IF(AND($C$5=1,$B$7<=7),VLOOKUP($A128,outcome_data!$A$1:$BJ$216,$H$7,0)/VLOOKUP($A128,outcome_data!$A$1:$BJ$216,$J$7,0)*100000,VLOOKUP($A128,outcome_data!$A$1:$BJ$216,$H$7,0)/VLOOKUP($A128,outcome_data!$A$1:$BJ$216,$J$7,0)*100)","v":{"$error":"#DIV/0!"}}]
["07J",{"$f":"VLOOKUP($A129,SummaryData!$K$5:$M$215,3,0)","v":"East of England"},{"$f":"VLOOKUP($A129,SummaryData!$K$5:$N$215,4,0)","v":"No"},{"$f":"VLOOKUP($A129,SummaryData!$K$5:$P$215,6,0)","v":6},{"$f":"VLOOKUP(A129,SummaryData!$K$4:$T$215,10,0)","v":1.8930514388033786},5,{"$f":"IF(AND($C$5=1,$B$7<=7),VLOOKUP(A129,SummaryData!$K$5:$X$215,14,0)*100000,VLOOKUP(A129,SummaryData!$K$5:$X$215,14,0)*100 )","v":65.370603656668138},9,{"$f":"VLOOKUP($A129,cost_data!$A$5:$BB$215,$D$6,0)/VLOOKUP($A129,cost_data!$A$5:$BB$215,$F$6,0)","v":1.8930514388033786},{"$f":"IFERROR(VLOOKUP($A129,cost_data!$A$5:$BB$215,$H$6,0)/VLOOKUP($A129,cost_data!$A$5:$BB$215,$J$6,0),0)","v":1.7349431567726037},{"$f":"IF(AND($C$5=1,$B$7<=7),VLOOKUP($A129,outcome_data!$A$1:$BJ$216,$D$7,0)/VLOOKUP($A129,outcome_data!$A$1:$BJ$216,$F$7,0)*100000,VLOOKUP($A129,outcome_data!$A$1:$BJ$216,$D$7,0)/VLOOKUP($A129,outcome_data!$A$1:$BJ$216,$F$7,0)*100)","v":65.370603656668138},{"$f":"IF(AND($C$5=1,$B$7<=7),VLOOKUP($A129,outcome_data!$A$1:$BJ$216,$H$7,0)/VLOOKUP($A129,outcome_data!$A$1:$BJ$216,$J$7,0)*100000,VLOOKUP($A129,outcome_data!$A$1:$BJ$216,$H$7,0)/VLOOKUP($A129,outcome_data!$A$1:$BJ$216,$J$7,0)*100)","v":{"$error":"#DIV/0!"}}]
["07K",{"$f":"VLOOKUP($A130,SummaryData!$K$5:$M$215,3,0)","v":"East of England"},{"$f":"VLOOKUP($A130,SummaryData!$K$5:$N$215,4,0)","v":"No"},{"$f":"VLOOKUP($A130,SummaryData!$K$5:$P$215,6,0)","v":9},{"$f":"VLOOKUP(A130,SummaryData!$K$4:$T$215,10,0)","v":1.5698295717461517},4,{"$f":"IF(AND($C$5=1,$B$7<=7),VLOOKUP(A130,SummaryData!$K$5:$X$215,14,0)*100000,VLOOKUP(A130,SummaryData!$K$5:$X$215,14,0)*100 )","v":63.764017687584037},9,{"$f":"VLOOKUP($A130,cost_data!$A$5:$BB$215,$D$6,0)/VLOOKUP($A130,cost_data!$A$5:$BB$215,$F$6,0)","v":1.5698295717461517},{"$f":"IFERROR(VLOOKUP($A130,cost_data!$A$5:$BB$215,$H$6,0)/VLOOKUP($A130,cost_data!$A$5:$BB$215,$J$6,0),0)","v":1.6520582114133309},{"$f":"IF(AND($C$5=1,$B$7<=7),VLOOKUP($A130,outcome_data!$A$1:$BJ$216,$D$7,0)/VLOOKUP($A130,outcome_data!$A$1:$BJ$216,$F$7,0)*100000,VLOOKUP($A130,outcome_data!$A$1:$BJ$216,$D$7,0)/VLOOKUP($A130,outcome_data!$A$1:$BJ$216,$F$7,0)*100)","v":63.764017687584037},{"$f":"IF(AND($C$5=1,$B$7<=7),VLOOKUP($A130,outcome_data!$A$1:$BJ$216,$H$7,0)/VLOOKUP($A130,outcome_data!$A$1:$BJ$216,$J$7,0)*100000,VLOOKUP($A130,outcome_data!$A$1:$BJ$216,$H$7,0)/VLOOKUP($A130,outcome_data!$A$1:$BJ$216,$J$7,0)*100)","v":{"$error":"#DIV/0!"}}]
["07L",{"$f":"VLOOKUP($A131,SummaryData!$K$5:$M$215,3,0)","v":"London"},{"$f":"VLOOKUP($A131,SummaryData!$K$5:$N$215,4,0)","v":"No"},{"$f":"VLOOKUP($A131,SummaryData!$K$5:$P$215,6,0)","v":2},{"$f":"VLOOKUP(A131,SummaryData!$K$4:$T$215,10,0)","v":0.51229474012717702},1,{"$f":"IF(AND($C$5=1,$B$7<=7),VLOOKUP(A131,SummaryData!$K$5:$X$215,14,0)*100000,VLOOKUP(A131,SummaryData!$K$5:$X$215,14,0)*100 )","v":47.471988974247722},5,{"$f":"VLOOKUP($A131,cost_data!$A$5:$BB$215,$D$6,0)/VLOOKUP($A131,cost_data!$A$5:$BB$215,$F$6,0)","v":0.51229474012717702},{"$f":"IFERROR(VLOOKUP($A131,cost_data!$A$5:$BB$215,$H$6,0)/VLOOKUP($A131,cost_data!$A$5:$BB$215,$J$6,0),0)","v":0.34697826474673699},{"$f":"IF(AND($C$5=1,$B$7<=7),VLOOKUP($A131,outcome_data!$A$1:$BJ$216,$D$7,0)/VLOOKUP($A131,outcome_data!$A$1:$BJ$216,$F$7,0)*100000,VLOOKUP($A131,outcome_data!$A$1:$BJ$216,$D$7,0)/VLOOKUP($A131,outcome_data!$A$1:$BJ$216,$F$7,0)*100)","v":47.471988974247722},{"$f":"IF(AND($C$5=1,$B$7<=7),VLOOKUP($A131,outcome_data!$A$1:$BJ$216,$H$7,0)/VLOOKUP($A131,outcome_data!$A$1:$BJ$216,$J$7,0)*100000,VLOOKUP($A131,outcome_data!$A$1:$BJ$216,$H$7,0)/VLOOKUP($A131,outcome_data!$A$1:$BJ$216,$J$7,0)*100)","v":{"$error":"#DIV/0!"}}]
["07M",{"$f":"VLOOKUP($A132,SummaryData!$K$5:$M$215,3,0)","v":"London"},{"$f":"VLOOKUP($A132,SummaryData!$K$5:$N$215,4,0)","v":"No"},{"$f":"VLOOKUP($A132,SummaryData!$K$5:$P$215,6,0)","v":7},{"$f":"VLOOKUP(A132,SummaryData!$K$4:$T$215,10,0)","v":1.1454263611602526},3,{"$f":"IF(AND($C$5=1,$B$7<=7),VLOOKUP(A132,SummaryData!$K$5:$X$215,14,0)*100000,VLOOKUP(A132,SummaryData!$K$5:$X$215,14,0)*100 )","v":42.581901033025858},3,{"$f":"VLOOKUP($A132,cost_data!$A$5:$BB$215,$D$6,0)/VLOOKUP($A132,cost_data!$A$5:$BB$215,$F$6,0)","v":1.1454263611602526},{"$f":"IFERROR(VLOOKUP($A132,cost_data!$A$5:$BB$215,$H$6,0)/VLOOKUP($A132,cost_data!$A$5:$BB$215,$J$6,0),0)","v":0.96409091094286559},{"$f":"IF(AND($C$5=1,$B$7<=7),VLOOKUP($A132,outcome_data!$A$1:$BJ$216,$D$7,0)/VLOOKUP($A132,outcome_data!$A$1:$BJ$216,$F$7,0)*100000,VLOOKUP($A132,outcome_data!$A$1:$BJ$216,$D$7,0)/VLOOKUP($A132,outcome_data!$A$1:$BJ$216,$F$7,0)*100)","v":42.581901033025858},{"$f":"IF(AND($C$5=1,$B$7<=7),VLOOKUP($A132,outcome_data!$A$1:$BJ$216,$H$7,0)/VLOOKUP($A132,outcome_data!$A$1:$BJ$216,$J$7,0)*100000,VLOOKUP($A132,outcome_data!$A$1:$BJ$216,$H$7,0)/VLOOKUP($A132,outcome_data!$A$1:$BJ$216,$J$7,0)*100)","v":{"$error":"#DIV/0!"}}]
["07N",{"$f":"VLOOKUP($A133,SummaryData!$K$5:$M$215,3,0)","v":"London"},{"$f":"VLOOKUP($A133,SummaryData!$K$5:$N$215,4,0)","v":"No"},{"$f":"VLOOKUP($A133,SummaryData!$K$5:$P$215,6,0)","v":7},{"$f":"VLOOKUP(A133,SummaryData!$K$4:$T$215,10,0)","v":1.5813951789829903},4,{"$f":"IF(AND($C$5=1,$B$7<=7),VLOOKUP(A133,SummaryData!$K$5:$X$215,14,0)*100000,VLOOKUP(A133,SummaryData!$K$5:$X$215,14,0)*100 )","v":52.474990130850472},6,{"$f":"VLOOKUP($A133,cost_data!$A$5:$BB$215,$D$6,0)/VLOOKUP($A133,cost_data!$A$5:$BB$215,$F$6,0)","v":1.5813951789829903},{"$f":"IFERROR(VLOOKUP($A133,cost_data!$A$5:$BB$215,$H$6,0)/VLOOKUP($A133,cost_data!$A$5:$BB$215,$J$6,0),0)","v":1.4770519730815825},{"$f":"IF(AND($C$5=1,$B$7<=7),VLOOKUP($A133,outcome_data!$A$1:$BJ$216,$D$7,0)/VLOOKUP($A133,outcome_data!$A$1:$BJ$216,$F$7,0)*100000,VLOOKUP($A133,outcome_data!$A$1:$BJ$216,$D$7,0)/VLOOKUP($A133,outcome_data!$A$1:$BJ$216,$F$7,0)*100)","v":52.474990130850472},{"$f":"IF(AND($C$5=1,$B$7<=7),VLOOKUP($A133,outcome_data!$A$1:$BJ$216,$H$7,0)/VLOOKUP($A133,outcome_data!$A$1:$BJ$216,$J$7,0)*100000,VLOOKUP($A133,outcome_data!$A$1:$BJ$216,$H$7,0)/VLOOKUP($A133,outcome_data!$A$1:$BJ$216,$J$7,0)*100)","v":{"$error":"#DIV/0!"}}]
["07P",{"$f":"VLOOKUP($A134,SummaryData!$K$5:$M$215,3,0)","v":"London"},{"$f":"VLOOKUP($A134,SummaryData!$K$5:$N$215,4,0)","v":"No"},{"$f":"VLOOKUP($A134,SummaryData!$K$5:$P$215,6,0)","v":2},{"$f":"VLOOKUP(A134,SummaryData!$K$4:$T$215,10,0)","v":0.60826637070500844},2,{"$f":"IF(AND($C$5=1,$B$7<=7),VLOOKUP(A134,SummaryData!$K$5:$X$215,14,0)*100000,VLOOKUP(A134,SummaryData!$K$5:$X$215,14,0)*100 )","v":49.704334519208466},5,{"$f":"VLOOKUP($A134,cost_data!$A$5:$BB$215,$D$6,0)/VLOOKUP($A134,cost_data!$A$5:$BB$215,$F$6,0)","v":0.60826637070500844},{"$f":"IFERROR(VLOOKUP($A134,cost_data!$A$5:$BB$215,$H$6,0)/VLOOKUP($A134,cost_data!$A$5:$BB$215,$J$6,0),0)","v":0.64278117489268793},{"$f":"IF(AND($C$5=1,$B$7<=7),VLOOKUP($A134,outcome_data!$A$1:$BJ$216,$D$7,0)/VLOOKUP($A134,outcome_data!$A$1:$BJ$216,$F$7,0)*100000,VLOOKUP($A134,outcome_data!$A$1:$BJ$216,$D$7,0)/VLOOKUP($A134,outcome_data!$A$1:$BJ$216,$F$7,0)*100)","v":49.704334519208466},{"$f":"IF(AND($C$5=1,$B$7<=7),VLOOKUP($A134,outcome_data!$A$1:$BJ$216,$H$7,0)/VLOOKUP($A134,outcome_data!$A$1:$BJ$216,$J$7,0)*100000,VLOOKUP($A134,outcome_data!$A$1:$BJ$216,$H$7,0)/VLOOKUP($A134,outcome_data!$A$1:$BJ$216,$J$7,0)*100)","v":{"$error":"#DIV/0!"}}]
["07Q",{"$f":"VLOOKUP($A135,SummaryData!$K$5:$M$215,3,0)","v":"London"},{"$f":"VLOOKUP($A135,SummaryData!$K$5:$N$215,4,0)","v":"No"},{"$f":"VLOOKUP($A135,SummaryData!$K$5:$P$215,6,0)","v":8},{"$f":"VLOOKUP(A135,SummaryData!$K$4:$T$215,10,0)","v":1.5205329751009027},4,{"$f":"IF(AND($C$5=1,$B$7<=7),VLOOKUP(A135,SummaryData!$K$5:$X$215,14,0)*100000,VLOOKUP(A135,SummaryData!$K$5:$X$215,14,0)*100 )","v":49.903476171090126},5,{"$f":"VLOOKUP($A135,cost_data!$A$5:$BB$215,$D$6,0)/VLOOKUP($A135,cost_data!$A$5:$BB$215,$F$6,0)","v":1.5205329751009027},{"$f":"IFERROR(VLOOKUP($A135,cost_data!$A$5:$BB$215,$H$6,0)/VLOOKUP($A135,cost_data!$A$5:$BB$215,$J$6,0),0)","v":1.1321750082679416},{"$f":"IF(AND($C$5=1,$B$7<=7),VLOOKUP($A135,outcome_data!$A$1:$BJ$216,$D$7,0)/VLOOKUP($A135,outcome_data!$A$1:$BJ$216,$F$7,0)*100000,VLOOKUP($A135,outcome_data!$A$1:$BJ$216,$D$7,0)/VLOOKUP($A135,outcome_data!$A$1:$BJ$216,$F$7,0)*100)","v":49.903476171090126},{"$f":"IF(AND($C$5=1,$B$7<=7),VLOOKUP($A135,outcome_data!$A$1:$BJ$216,$H$7,0)/VLOOKUP($A135,outcome_data!$A$1:$BJ$216,$J$7,0)*100000,VLOOKUP($A135,outcome_data!$A$1:$BJ$216,$H$7,0)/VLOOKUP($A135,outcome_data!$A$1:$BJ$216,$J$7,0)*100)","v":{"$error":"#DIV/0!"}}]
["07R",{"$f":"VLOOKUP($A136,SummaryData!$K$5:$M$215,3,0)","v":"London"},{"$f":"VLOOKUP($A136,SummaryData!$K$5:$N$215,4,0)","v":"No"},{"$f":"VLOOKUP($A136,SummaryData!$K$5:$P$215,6,0)","v":4},{"$f":"VLOOKUP(A136,SummaryData!$K$4:$T$215,10,0)","v":0.52879848364807402},1,{"$f":"IF(AND($C$5=1,$B$7<=7),VLOOKUP(A136,SummaryData!$K$5:$X$215,14,0)*100000,VLOOKUP(A136,SummaryData!$K$5:$X$215,14,0)*100 )","v":36.331869172613118},2,{"$f":"VLOOKUP($A136,cost_data!$A$5:$BB$215,$D$6,0)/VLOOKUP($A136,cost_data!$A$5:$BB$215,$F$6,0)","v":0.52879848364807402},{"$f":"IFERROR(VLOOKUP($A136,cost_data!$A$5:$BB$215,$H$6,0)/VLOOKUP($A136,cost_data!$A$5:$BB$215,$J$6,0),0)","v":0.58935371265722414},{"$f":"IF(AND($C$5=1,$B$7<=7),VLOOKUP($A136,outcome_data!$A$1:$BJ$216,$D$7,0)/VLOOKUP($A136,outcome_data!$A$1:$BJ$216,$F$7,0)*100000,VLOOKUP($A136,outcome_data!$A$1:$BJ$216,$D$7,0)/VLOOKUP($A136,outcome_data!$A$1:$BJ$216,$F$7,0)*100)","v":36.331869172613118},{"$f":"IF(AND($C$5=1,$B$7<=7),VLOOKUP($A136,outcome_data!$A$1:$BJ$216,$H$7,0)/VLOOKUP($A136,outcome_data!$A$1:$BJ$216,$J$7,0)*100000,VLOOKUP($A136,outcome_data!$A$1:$BJ$216,$H$7,0)/VLOOKUP($A136,outcome_data!$A$1:$BJ$216,$J$7,0)*100)","v":{"$error":"#DIV/0!"}}]
["07T",{"$f":"VLOOKUP($A137,SummaryData!$K$5:$M$215,3,0)","v":"London"},{"$f":"VLOOKUP($A137,SummaryData!$K$5:$N$215,4,0)","v":"No"},{"$f":"VLOOKUP($A137,SummaryData!$K$5:$P$215,6,0)","v":1},{"$f":"VLOOKUP(A137,SummaryData!$K$4:$T$215,10,0)","v":0.34374487052454855},1,{"$f":"IF(AND($C$5=1,$B$7<=7),VLOOKUP(A137,SummaryData!$K$5:$X$215,14,0)*100000,VLOOKUP(A137,SummaryData!$K$5:$X$215,14,0)*100 )","v":47.464511998587099},5,{"$f":"VLOOKUP($A137,cost_data!$A$5:$BB$215,$D$6,0)/VLOOKUP($A137,cost_data!$A$5:$BB$215,$F$6,0)","v":0.34374487052454855},{"$f":"IFERROR(VLOOKUP($A137,cost_data!$A$5:$BB$215,$H$6,0)/VLOOKUP($A137,cost_data!$A$5:$BB$215,$J$6,0),0)","v":0.31070225425311454},{"$f":"IF(AND($C$5=1,$B$7<=7),VLOOKUP($A137,outcome_data!$A$1:$BJ$216,$D$7,0)/VLOOKUP($A137,outcome_data!$A$1:$BJ$216,$F$7,0)*100000,VLOOKUP($A137,outcome_data!$A$1:$BJ$216,$D$7,0)/VLOOKUP($A137,outcome_data!$A$1:$BJ$216,$F$7,0)*100)","v":47.464511998587099},{"$f":"IF(AND($C$5=1,$B$7<=7),VLOOKUP($A137,outcome_data!$A$1:$BJ$216,$H$7,0)/VLOOKUP($A137,outcome_data!$A$1:$BJ$216,$J$7,0)*100000,VLOOKUP($A137,outcome_data!$A$1:$BJ$216,$H$7,0)/VLOOKUP($A137,outcome_data!$A$1:$BJ$216,$J$7,0)*100)","v":{"$error":"#DIV/0!"}}]
["07V",{"$f":"VLOOKUP($A138,SummaryData!$K$5:$M$215,3,0)","v":"London"},{"$f":"VLOOKUP($A138,SummaryData!$K$5:$N$215,4,0)","v":"No"},{"$f":"VLOOKUP($A138,SummaryData!$K$5:$P$215,6,0)","v":5},{"$f":"VLOOKUP(A138,SummaryData!$K$4:$T$215,10,0)","v":0.78268227699932569},{"$f":"IF(E138=$AD$15,1,ROUNDUP(((E138-$AD$15)/($AD$14-$AD$15)*20),0))","v":2},{"$f":"IF(AND($C$5=1,$B$7<=7),VLOOKUP(A138,SummaryData!$K$5:$X$215,14,0)*100000,VLOOKUP(A138,SummaryData!$K$5:$X$215,14,0)*100 )","v":52.987914362744831},{"$f":"IF(G138=$AX$15,1,ROUNDUP(((G138-$AX$15)/($AX$14-$AX$15)*20),0))","v":6},{"$f":"VLOOKUP($A138,cost_data!$A$5:$BB$215,$D$6,0)/VLOOKUP($A138,cost_data!$A$5:$BB$215,$F$6,0)","v":0.78268227699932569},{"$f":"IFERROR(VLOOKUP($A138,cost_data!$A$5:$BB$215,$H$6,0)/VLOOKUP($A138,cost_data!$A$5:$BB$215,$J$6,0),0)","v":0.70418124688331751},{"$f":"IF(AND($C$5=1,$B$7<=7),VLOOKUP($A138,outcome_data!$A$1:$BJ$216,$D$7,0)/VLOOKUP($A138,outcome_data!$A$1:$BJ$216,$F$7,0)*100000,VLOOKUP($A138,outcome_data!$A$1:$BJ$216,$D$7,0)/VLOOKUP($A138,outcome_data!$A$1:$BJ$216,$F$7,0)*100)","v":52.987914362744831},{"$f":"IF(AND($C$5=1,$B$7<=7),VLOOKUP($A138,outcome_data!$A$1:$BJ$216,$H$7,0)/VLOOKUP($A138,outcome_data!$A$1:$BJ$216,$J$7,0)*100000,VLOOKUP($A138,outcome_data!$A$1:$BJ$216,$H$7,0)/VLOOKUP($A138,outcome_data!$A$1:$BJ$216,$J$7,0)*100)","v":{"$error":"#DIV/0!"}}]
["07W",{"$f":"VLOOKUP($A139,SummaryData!$K$5:$M$215,3,0)","v":"London"},{"$f":"VLOOKUP($A139,SummaryData!$K$5:$N$215,4,0)","v":"No"},{"$f":"VLOOKUP($A139,SummaryData!$K$5:$P$215,6,0)","v":4},{"$f":"VLOOKUP(A139,SummaryData!$K$4:$T$215,10,0)","v":0.7117139379741847},2,{"$f":"IF(AND($C$5=1,$B$7<=7),VLOOKUP(A139,SummaryData!$K$5:$X$215,14,0)*100000,VLOOKUP(A139,SummaryData!$K$5:$X$215,14,0)*100 )","v":48.077783716463827},5,{"$f":"VLOOKUP($A139,cost_data!$A$5:$BB$215,$D$6,0)/VLOOKUP($A139,cost_data!$A$5:$BB$215,$F$6,0)","v":0.7117139379741847},{"$f":"IFERROR(VLOOKUP($A139,cost_data!$A$5:$BB$215,$H$6,0)/VLOOKUP($A139,cost_data!$A$5:$BB$215,$J$6,0),0)","v":0.63870447467413671},{"$f":"IF(AND($C$5=1,$B$7<=7),VLOOKUP($A139,outcome_data!$A$1:$BJ$216,$D$7,0)/VLOOKUP($A139,outcome_data!$A$1:$BJ$216,$F$7,0)*100000,VLOOKUP($A139,outcome_data!$A$1:$BJ$216,$D$7,0)/VLOOKUP($A139,outcome_data!$A$1:$BJ$216,$F$7,0)*100)","v":48.077783716463827},{"$f":"IF(AND($C$5=1,$B$7<=7),VLOOKUP($A139,outcome_data!$A$1:$BJ$216,$H$7,0)/VLOOKUP($A139,outcome_data!$A$1:$BJ$216,$J$7,0)*100000,VLOOKUP($A139,outcome_data!$A$1:$BJ$216,$H$7,0)/VLOOKUP($A139,outcome_data!$A$1:$BJ$216,$J$7,0)*100)","v":{"$error":"#DIV/0!"}}]
["07X",{"$f":"VLOOKUP($A140,SummaryData!$K$5:$M$215,3,0)","v":"London"},{"$f":"VLOOKUP($A140,SummaryData!$K$5:$N$215,4,0)","v":"No"},{"$f":"VLOOKUP($A140,SummaryData!$K$5:$P$215,6,0)","v":3},{"$f":"VLOOKUP(A140,SummaryData!$K$4:$T$215,10,0)","v":0.80257994551063205},2,{"$f":"IF(AND($C$5=1,$B$7<=7),VLOOKUP(A140,SummaryData!$K$5:$X$215,14,0)*100000,VLOOKUP(A140,SummaryData!$K$5:$X$215,14,0)*100 )","v":48.009327526490857},5,{"$f":"VLOOKUP($A140,cost_data!$A$5:$BB$215,$D$6,0)/VLOOKUP($A140,cost_data!$A$5:$BB$215,$F$6,0)","v":0.80257994551063205},{"$f":"IFERROR(VLOOKUP($A140,cost_data!$A$5:$BB$215,$H$6,0)/VLOOKUP($A140,cost_data!$A$5:$BB$215,$J$6,0),0)","v":0.70175576682735574},{"$f":"IF(AND($C$5=1,$B$7<=7),VLOOKUP($A140,outcome_data!$A$1:$BJ$216,$D$7,0)/VLOOKUP($A140,outcome_data!$A$1:$BJ$216,$F$7,0)*100000,VLOOKUP($A140,outcome_data!$A$1:$BJ$216,$D$7,0)/VLOOKUP($A140,outcome_data!$A$1:$BJ$216,$F$7,0)*100)","v":48.009327526490857},{"$f":"IF(AND($C$5=1,$B$7<=7),VLOOKUP($A140,outcome_data!$A$1:$BJ$216,$H$7,0)/VLOOKUP($A140,outcome_data!$A$1:$BJ$216,$J$7,0)*100000,VLOOKUP($A140,outcome_data!$A$1:$BJ$216,$H$7,0)/VLOOKUP($A140,outcome_data!$A$1:$BJ$216,$J$7,0)*100)","v":{"$error":"#DIV/0!"}}]
["07Y",{"$f":"VLOOKUP($A141,SummaryData!$K$5:$M$215,3,0)","v":"London"},{"$f":"VLOOKUP($A141,SummaryData!$K$5:$N$215,4,0)","v":"No"},{"$f":"VLOOKUP($A141,SummaryData!$K$5:$P$215,6,0)","v":5},{"$f":"VLOOKUP(A141,SummaryData!$K$4:$T$215,10,0)","v":0.65903713026566235},2,{"$f":"IF(AND($C$5=1,$B$7<=7),VLOOKUP(A141,SummaryData!$K$5:$X$215,14,0)*100000,VLOOKUP(A141,SummaryData!$K$5:$X$215,14,0)*100 )","v":52.052483262434258},6,{"$f":"VLOOKUP($A141,cost_data!$A$5:$BB$215,$D$6,0)/VLOOKUP($A141,cost_data!$A$5:$BB$215,$F$6,0)","v":0.65903713026566235},{"$f":"IFERROR(VLOOKUP($A141,cost_data!$A$5:$BB$215,$H$6,0)/VLOOKUP($A141,cost_data!$A$5:$BB$215,$J$6,0),0)","v":0.58481986602160729},{"$f":"IF(AND($C$5=1,$B$7<=7),VLOOKUP($A141,outcome_data!$A$1:$BJ$216,$D$7,0)/VLOOKUP($A141,outcome_data!$A$1:$BJ$216,$F$7,0)*100000,VLOOKUP($A141,outcome_data!$A$1:$BJ$216,$D$7,0)/VLOOKUP($A141,outcome_data!$A$1:$BJ$216,$F$7,0)*100)","v":52.052483262434258},{"$f":"IF(AND($C$5=1,$B$7<=7),VLOOKUP($A141,outcome_data!$A$1:$BJ$216,$H$7,0)/VLOOKUP($A141,outcome_data!$A$1:$BJ$216,$J$7,0)*100000,VLOOKUP($A141,outcome_data!$A$1:$BJ$216,$H$7,0)/VLOOKUP($A141,outcome_data!$A$1:$BJ$216,$J$7,0)*100)","v":{"$error":"#DIV/0!"}}]
["08A",{"$f":"VLOOKUP($A142,SummaryData!$K$5:$M$215,3,0)","v":"London"},{"$f":"VLOOKUP($A142,SummaryData!$K$5:$N$215,4,0)","v":"No"},{"$f":"VLOOKUP($A142,SummaryData!$K$5:$P$215,6,0)","v":2},{"$f":"VLOOKUP(A142,SummaryData!$K$4:$T$215,10,0)","v":0.66597670910044604},2,{"$f":"IF(AND($C$5=1,$B$7<=7),VLOOKUP(A142,SummaryData!$K$5:$X$215,14,0)*100000,VLOOKUP(A142,SummaryData!$K$5:$X$215,14,0)*100 )","v":42.752648720918486},3,{"$f":"VLOOKUP($A142,cost_data!$A$5:$BB$215,$D$6,0)/VLOOKUP($A142,cost_data!$A$5:$BB$215,$F$6,0)","v":0.66597670910044604},{"$f":"IFERROR(VLOOKUP($A142,cost_data!$A$5:$BB$215,$H$6,0)/VLOOKUP($A142,cost_data!$A$5:$BB$215,$J$6,0),0)","v":0.51594634130678418},{"$f":"IF(AND($C$5=1,$B$7<=7),VLOOKUP($A142,outcome_data!$A$1:$BJ$216,$D$7,0)/VLOOKUP($A142,outcome_data!$A$1:$BJ$216,$F$7,0)*100000,VLOOKUP($A142,outcome_data!$A$1:$BJ$216,$D$7,0)/VLOOKUP($A142,outcome_data!$A$1:$BJ$216,$F$7,0)*100)","v":42.752648720918486},{"$f":"IF(AND($C$5=1,$B$7<=7),VLOOKUP($A142,outcome_data!$A$1:$BJ$216,$H$7,0)/VLOOKUP($A142,outcome_data!$A$1:$BJ$216,$J$7,0)*100000,VLOOKUP($A142,outcome_data!$A$1:$BJ$216,$H$7,0)/VLOOKUP($A142,outcome_data!$A$1:$BJ$216,$J$7,0)*100)","v":{"$error":"#DIV/0!"}}]
["08C",{"$f":"VLOOKUP($A143,SummaryData!$K$5:$M$215,3,0)","v":"London"},{"$f":"VLOOKUP($A143,SummaryData!$K$5:$N$215,4,0)","v":"No"},{"$f":"VLOOKUP($A143,SummaryData!$K$5:$P$215,6,0)","v":3},{"$f":"VLOOKUP(A143,SummaryData!$K$4:$T$215,10,0)","v":0.54862359869138488},1,{"$f":"IF(AND($C$5=1,$B$7<=7),VLOOKUP(A143,SummaryData!$K$5:$X$215,14,0)*100000,VLOOKUP(A143,SummaryData!$K$5:$X$215,14,0)*100 )","v":39.301154024795458},3,{"$f":"VLOOKUP($A143,cost_data!$A$5:$BB$215,$D$6,0)/VLOOKUP($A143,cost_data!$A$5:$BB$215,$F$6,0)","v":0.54862359869138488},{"$f":"IFERROR(VLOOKUP($A143,cost_data!$A$5:$BB$215,$H$6,0)/VLOOKUP($A143,cost_data!$A$5:$BB$215,$J$6,0),0)","v":0.4772957731938704},{"$f":"IF(AND($C$5=1,$B$7<=7),VLOOKUP($A143,outcome_data!$A$1:$BJ$216,$D$7,0)/VLOOKUP($A143,outcome_data!$A$1:$BJ$216,$F$7,0)*100000,VLOOKUP($A143,outcome_data!$A$1:$BJ$216,$D$7,0)/VLOOKUP($A143,outcome_data!$A$1:$BJ$216,$F$7,0)*100)","v":39.301154024795458},{"$f":"IF(AND($C$5=1,$B$7<=7),VLOOKUP($A143,outcome_data!$A$1:$BJ$216,$H$7,0)/VLOOKUP($A143,outcome_data!$A$1:$BJ$216,$J$7,0)*100000,VLOOKUP($A143,outcome_data!$A$1:$BJ$216,$H$7,0)/VLOOKUP($A143,outcome_data!$A$1:$BJ$216,$J$7,0)*100)","v":{"$error":"#DIV/0!"}}]
["08D",{"$f":"VLOOKUP($A144,SummaryData!$K$5:$M$215,3,0)","v":"London"},{"$f":"VLOOKUP($A144,SummaryData!$K$5:$N$215,4,0)","v":"No"},{"$f":"VLOOKUP($A144,SummaryData!$K$5:$P$215,6,0)","v":1},{"$f":"VLOOKUP(A144,SummaryData!$K$4:$T$215,10,0)","v":0.50879529791413658},1,{"$f":"IF(AND($C$5=1,$B$7<=7),VLOOKUP(A144,SummaryData!$K$5:$X$215,14,0)*100000,VLOOKUP(A144,SummaryData!$K$5:$X$215,14,0)*100 )","v":46.612415982009743},4,{"$f":"VLOOKUP($A144,cost_data!$A$5:$BB$215,$D$6,0)/VLOOKUP($A144,cost_data!$A$5:$BB$215,$F$6,0)","v":0.50879529791413658},{"$f":"IFERROR(VLOOKUP($A144,cost_data!$A$5:$BB$215,$H$6,0)/VLOOKUP($A144,cost_data!$A$5:$BB$215,$J$6,0),0)","v":0.68680935767849782},{"$f":"IF(AND($C$5=1,$B$7<=7),VLOOKUP($A144,outcome_data!$A$1:$BJ$216,$D$7,0)/VLOOKUP($A144,outcome_data!$A$1:$BJ$216,$F$7,0)*100000,VLOOKUP($A144,outcome_data!$A$1:$BJ$216,$D$7,0)/VLOOKUP($A144,outcome_data!$A$1:$BJ$216,$F$7,0)*100)","v":46.612415982009743},{"$f":"IF(AND($C$5=1,$B$7<=7),VLOOKUP($A144,outcome_data!$A$1:$BJ$216,$H$7,0)/VLOOKUP($A144,outcome_data!$A$1:$BJ$216,$J$7,0)*100000,VLOOKUP($A144,outcome_data!$A$1:$BJ$216,$H$7,0)/VLOOKUP($A144,outcome_data!$A$1:$BJ$216,$J$7,0)*100)","v":{"$error":"#DIV/0!"}}]
["08E",{"$f":"VLOOKUP($A145,SummaryData!$K$5:$M$215,3,0)","v":"London"},{"$f":"VLOOKUP($A145,SummaryData!$K$5:$N$215,4,0)","v":"No"},{"$f":"VLOOKUP($A145,SummaryData!$K$5:$P$215,6,0)","v":8},{"$f":"VLOOKUP(A145,SummaryData!$K$4:$T$215,10,0)","v":1.0318910151552876},3,{"$f":"IF(AND($C$5=1,$B$7<=7),VLOOKUP(A145,SummaryData!$K$5:$X$215,14,0)*100000,VLOOKUP(A145,SummaryData!$K$5:$X$215,14,0)*100 )","v":50.463744409835215},5,{"$f":"VLOOKUP($A145,cost_data!$A$5:$BB$215,$D$6,0)/VLOOKUP($A145,cost_data!$A$5:$BB$215,$F$6,0)","v":1.0318910151552876},{"$f":"IFERROR(VLOOKUP($A145,cost_data!$A$5:$BB$215,$H$6,0)/VLOOKUP($A145,cost_data!$A$5:$BB$215,$J$6,0),0)","v":0.90239636471719609},{"$f":"IF(AND($C$5=1,$B$7<=7),VLOOKUP($A145,outcome_data!$A$1:$BJ$216,$D$7,0)/VLOOKUP($A145,outcome_data!$A$1:$BJ$216,$F$7,0)*100000,VLOOKUP($A145,outcome_data!$A$1:$BJ$216,$D$7,0)/VLOOKUP($A145,outcome_data!$A$1:$BJ$216,$F$7,0)*100)","v":50.463744409835215},{"$f":"IF(AND($C$5=1,$B$7<=7),VLOOKUP($A145,outcome_data!$A$1:$BJ$216,$H$7,0)/VLOOKUP($A145,outcome_data!$A$1:$BJ$216,$J$7,0)*100000,VLOOKUP($A145,outcome_data!$A$1:$BJ$216,$H$7,0)/VLOOKUP($A145,outcome_data!$A$1:$BJ$216,$J$7,0)*100)","v":{"$error":"#DIV/0!"}}]
["08F",{"$f":"VLOOKUP($A146,SummaryData!$K$5:$M$215,3,0)","v":"London"},{"$f":"VLOOKUP($A146,SummaryData!$K$5:$N$215,4,0)","v":"No"},{"$f":"VLOOKUP($A146,SummaryData!$K$5:$P$215,6,0)","v":7},{"$f":"VLOOKUP(A146,SummaryData!$K$4:$T$215,10,0)","v":0.75599324225172959},2,{"$f":"IF(AND($C$5=1,$B$7<=7),VLOOKUP(A146,SummaryData!$K$5:$X$215,14,0)*100000,VLOOKUP(A146,SummaryData!$K$5:$X$215,14,0)*100 )","v":56.79731472545118},7,{"$f":"VLOOKUP($A146,cost_data!$A$5:$BB$215,$D$6,0)/VLOOKUP($A146,cost_data!$A$5:$BB$215,$F$6,0)","v":0.75599324225172959},{"$f":"IFERROR(VLOOKUP($A146,cost_data!$A$5:$BB$215,$H$6,0)/VLOOKUP($A146,cost_data!$A$5:$BB$215,$J$6,0),0)","v":0.78511800540720411},{"$f":"IF(AND($C$5=1,$B$7<=7),VLOOKUP($A146,outcome_data!$A$1:$BJ$216,$D$7,0)/VLOOKUP($A146,outcome_data!$A$1:$BJ$216,$F$7,0)*100000,VLOOKUP($A146,outcome_data!$A$1:$BJ$216,$D$7,0)/VLOOKUP($A146,outcome_data!$A$1:$BJ$216,$F$7,0)*100)","v":56.79731472545118},{"$f":"IF(AND($C$5=1,$B$7<=7),VLOOKUP($A146,outcome_data!$A$1:$BJ$216,$H$7,0)/VLOOKUP($A146,outcome_data!$A$1:$BJ$216,$J$7,0)*100000,VLOOKUP($A146,outcome_data!$A$1:$BJ$216,$H$7,0)/VLOOKUP($A146,outcome_data!$A$1:$BJ$216,$J$7,0)*100)","v":{"$error":"#DIV/0!"}}]
["08G",{"$f":"VLOOKUP($A147,SummaryData!$K$5:$M$215,3,0)","v":"London"},{"$f":"VLOOKUP($A147,SummaryData!$K$5:$N$215,4,0)","v":"No"},{"$f":"VLOOKUP($A147,SummaryData!$K$5:$P$215,6,0)","v":6},{"$f":"VLOOKUP(A147,SummaryData!$K$4:$T$215,10,0)","v":0.98049436238928689},2,{"$f":"IF(AND($C$5=1,$B$7<=7),VLOOKUP(A147,SummaryData!$K$5:$X$215,14,0)*100000,VLOOKUP(A147,SummaryData!$K$5:$X$215,14,0)*100 )","v":51.319539822486078},6,{"$f":"VLOOKUP($A147,cost_data!$A$5:$BB$215,$D$6,0)/VLOOKUP($A147,cost_data!$A$5:$BB$215,$F$6,0)","v":0.98049436238928689},{"$f":"IFERROR(VLOOKUP($A147,cost_data!$A$5:$BB$215,$H$6,0)/VLOOKUP($A147,cost_data!$A$5:$BB$215,$J$6,0),0)","v":0.72762314539887063},{"$f":"IF(AND($C$5=1,$B$7<=7),VLOOKUP($A147,outcome_data!$A$1:$BJ$216,$D$7,0)/VLOOKUP($A147,outcome_data!$A$1:$BJ$216,$F$7,0)*100000,VLOOKUP($A147,outcome_data!$A$1:$BJ$216,$D$7,0)/VLOOKUP($A147,outcome_data!$A$1:$BJ$216,$F$7,0)*100)","v":51.319539822486078},{"$f":"IF(AND($C$5=1,$B$7<=7),VLOOKUP($A147,outcome_data!$A$1:$BJ$216,$H$7,0)/VLOOKUP($A147,outcome_data!$A$1:$BJ$216,$J$7,0)*100000,VLOOKUP($A147,outcome_data!$A$1:$BJ$216,$H$7,0)/VLOOKUP($A147,outcome_data!$A$1:$BJ$216,$J$7,0)*100)","v":{"$error":"#DIV/0!"}}]
["08H",{"$f":"VLOOKUP($A148,SummaryData!$K$5:$M$215,3,0)","v":"London"},{"$f":"VLOOKUP($A148,SummaryData!$K$5:$N$215,4,0)","v":"No"},{"$f":"VLOOKUP($A148,SummaryData!$K$5:$P$215,6,0)","v":1},{"$f":"VLOOKUP(A148,SummaryData!$K$4:$T$215,10,0)","v":0.63493051332614936},2,{"$f":"IF(AND($C$5=1,$B$7<=7),VLOOKUP(A148,SummaryData!$K$5:$X$215,14,0)*100000,VLOOKUP(A148,SummaryData!$K$5:$X$215,14,0)*100 )","v":56.076879592990394},7,{"$f":"VLOOKUP($A148,cost_data!$A$5:$BB$215,$D$6,0)/VLOOKUP($A148,cost_data!$A$5:$BB$215,$F$6,0)","v":0.63493051332614936},{"$f":"IFERROR(VLOOKUP($A148,cost_data!$A$5:$BB$215,$H$6,0)/VLOOKUP($A148,cost_data!$A$5:$BB$215,$J$6,0),0)","v":0.55333707810909549},{"$f":"IF(AND($C$5=1,$B$7<=7),VLOOKUP($A148,outcome_data!$A$1:$BJ$216,$D$7,0)/VLOOKUP($A148,outcome_data!$A$1:$BJ$216,$F$7,0)*100000,VLOOKUP($A148,outcome_data!$A$1:$BJ$216,$D$7,0)/VLOOKUP($A148,outcome_data!$A$1:$BJ$216,$F$7,0)*100)","v":56.076879592990394},{"$f":"IF(AND($C$5=1,$B$7<=7),VLOOKUP($A148,outcome_data!$A$1:$BJ$216,$H$7,0)/VLOOKUP($A148,outcome_data!$A$1:$BJ$216,$J$7,0)*100000,VLOOKUP($A148,outcome_data!$A$1:$BJ$216,$H$7,0)/VLOOKUP($A148,outcome_data!$A$1:$BJ$216,$J$7,0)*100)","v":{"$error":"#DIV/0!"}}]
["08J",{"$f":"VLOOKUP($A149,SummaryData!$K$5:$M$215,3,0)","v":"London"},{"$f":"VLOOKUP($A149,SummaryData!$K$5:$N$215,4,0)","v":"No"},{"$f":"VLOOKUP($A149,SummaryData!$K$5:$P$215,6,0)","v":9},{"$f":"VLOOKUP(A149,SummaryData!$K$4:$T$215,10,0)","v":0.97801941259749281},2,{"$f":"IF(AND($C$5=1,$B$7<=7),VLOOKUP(A149,SummaryData!$K$5:$X$215,14,0)*100000,VLOOKUP(A149,SummaryData!$K$5:$X$215,14,0)*100 )","v":39.365558416848458},3,{"$f":"VLOOKUP($A149,cost_data!$A$5:$BB$215,$D$6,0)/VLOOKUP($A149,cost_data!$A$5:$BB$215,$F$6,0)","v":0.97801941259749281},{"$f":"IFERROR(VLOOKUP($A149,cost_data!$A$5:$BB$215,$H$6,0)/VLOOKUP($A149,cost_data!$A$5:$BB$215,$J$6,0),0)","v":0.77269613118193037},{"$f":"IF(AND($C$5=1,$B$7<=7),VLOOKUP($A149,outcome_data!$A$1:$BJ$216,$D$7,0)/VLOOKUP($A149,outcome_data!$A$1:$BJ$216,$F$7,0)*100000,VLOOKUP($A149,outcome_data!$A$1:$BJ$216,$D$7,0)/VLOOKUP($A149,outcome_data!$A$1:$BJ$216,$F$7,0)*100)","v":39.365558416848458},{"$f":"IF(AND($C$5=1,$B$7<=7),VLOOKUP($A149,outcome_data!$A$1:$BJ$216,$H$7,0)/VLOOKUP($A149,outcome_data!$A$1:$BJ$216,$J$7,0)*100000,VLOOKUP($A149,outcome_data!$A$1:$BJ$216,$H$7,0)/VLOOKUP($A149,outcome_data!$A$1:$BJ$216,$J$7,0)*100)","v":{"$error":"#DIV/0!"}}]
["08K",{"$f":"VLOOKUP($A150,SummaryData!$K$5:$M$215,3,0)","v":"London"},{"$f":"VLOOKUP($A150,SummaryData!$K$5:$N$215,4,0)","v":"No"},{"$f":"VLOOKUP($A150,SummaryData!$K$5:$P$215,6,0)","v":2},{"$f":"VLOOKUP(A150,SummaryData!$K$4:$T$215,10,0)","v":0.57157040197183762},1,{"$f":"IF(AND($C$5=1,$B$7<=7),VLOOKUP(A150,SummaryData!$K$5:$X$215,14,0)*100000,VLOOKUP(A150,SummaryData!$K$5:$X$215,14,0)*100 )","v":37.243639613990368},2,{"$f":"VLOOKUP($A150,cost_data!$A$5:$BB$215,$D$6,0)/VLOOKUP($A150,cost_data!$A$5:$BB$215,$F$6,0)","v":0.57157040197183762},{"$f":"IFERROR(VLOOKUP($A150,cost_data!$A$5:$BB$215,$H$6,0)/VLOOKUP($A150,cost_data!$A$5:$BB$215,$J$6,0),0)","v":0.62362121143345339},{"$f":"IF(AND($C$5=1,$B$7<=7),VLOOKUP($A150,outcome_data!$A$1:$BJ$216,$D$7,0)/VLOOKUP($A150,outcome_data!$A$1:$BJ$216,$F$7,0)*100000,VLOOKUP($A150,outcome_data!$A$1:$BJ$216,$D$7,0)/VLOOKUP($A150,outcome_data!$A$1:$BJ$216,$F$7,0)*100)","v":37.243639613990368},{"$f":"IF(AND($C$5=1,$B$7<=7),VLOOKUP($A150,outcome_data!$A$1:$BJ$216,$H$7,0)/VLOOKUP($A150,outcome_data!$A$1:$BJ$216,$J$7,0)*100000,VLOOKUP($A150,outcome_data!$A$1:$BJ$216,$H$7,0)/VLOOKUP($A150,outcome_data!$A$1:$BJ$216,$J$7,0)*100)","v":{"$error":"#DIV/0!"}}]
["08L",{"$f":"VLOOKUP($A151,SummaryData!$K$5:$M$215,3,0)","v":"London"},{"$f":"VLOOKUP($A151,SummaryData!$K$5:$N$215,4,0)","v":"No"},{"$f":"VLOOKUP($A151,SummaryData!$K$5:$P$215,6,0)","v":2},{"$f":"VLOOKUP(A151,SummaryData!$K$4:$T$215,10,0)","v":0.51540571535766211},1,{"$f":"IF(AND($C$5=1,$B$7<=7),VLOOKUP(A151,SummaryData!$K$5:$X$215,14,0)*100000,VLOOKUP(A151,SummaryData!$K$5:$X$215,14,0)*100 )","v":42.352017574365668},3,{"$f":"VLOOKUP($A151,cost_data!$A$5:$BB$215,$D$6,0)/VLOOKUP($A151,cost_data!$A$5:$BB$215,$F$6,0)","v":0.51540571535766211},{"$f":"IFERROR(VLOOKUP($A151,cost_data!$A$5:$BB$215,$H$6,0)/VLOOKUP($A151,cost_data!$A$5:$BB$215,$J$6,0),0)","v":0.50297904885584543},{"$f":"IF(AND($C$5=1,$B$7<=7),VLOOKUP($A151,outcome_data!$A$1:$BJ$216,$D$7,0)/VLOOKUP($A151,outcome_data!$A$1:$BJ$216,$F$7,0)*100000,VLOOKUP($A151,outcome_data!$A$1:$BJ$216,$D$7,0)/VLOOKUP($A151,outcome_data!$A$1:$BJ$216,$F$7,0)*100)","v":42.352017574365668},{"$f":"IF(AND($C$5=1,$B$7<=7),VLOOKUP($A151,outcome_data!$A$1:$BJ$216,$H$7,0)/VLOOKUP($A151,outcome_data!$A$1:$BJ$216,$J$7,0)*100000,VLOOKUP($A151,outcome_data!$A$1:$BJ$216,$H$7,0)/VLOOKUP($A151,outcome_data!$A$1:$BJ$216,$J$7,0)*100)","v":{"$error":"#DIV/0!"}}]
["08M",{"$f":"VLOOKUP($A152,SummaryData!$K$5:$M$215,3,0)","v":"London"},{"$f":"VLOOKUP($A152,SummaryData!$K$5:$N$215,4,0)","v":"No"},{"$f":"VLOOKUP($A152,SummaryData!$K$5:$P$215,6,0)","v":1},{"$f":"VLOOKUP(A152,SummaryData!$K$4:$T$215,10,0)","v":0.23123661284400915},1,{"$f":"IF(AND($C$5=1,$B$7<=7),VLOOKUP(A152,SummaryData!$K$5:$X$215,14,0)*100000,VLOOKUP(A152,SummaryData!$K$5:$X$215,14,0)*100 )","v":44.721445214805364},4,{"$f":"VLOOKUP($A152,cost_data!$A$5:$BB$215,$D$6,0)/VLOOKUP($A152,cost_data!$A$5:$BB$215,$F$6,0)","v":0.23123661284400915},{"$f":"IFERROR(VLOOKUP($A152,cost_data!$A$5:$BB$215,$H$6,0)/VLOOKUP($A152,cost_data!$A$5:$BB$215,$J$6,0),0)","v":0.2894320385456986},{"$f":"IF(AND($C$5=1,$B$7<=7),VLOOKUP($A152,outcome_data!$A$1:$BJ$216,$D$7,0)/VLOOKUP($A152,outcome_data!$A$1:$BJ$216,$F$7,0)*100000,VLOOKUP($A152,outcome_data!$A$1:$BJ$216,$D$7,0)/VLOOKUP($A152,outcome_data!$A$1:$BJ$216,$F$7,0)*100)","v":44.721445214805364},{"$f":"IF(AND($C$5=1,$B$7<=7),VLOOKUP($A152,outcome_data!$A$1:$BJ$216,$H$7,0)/VLOOKUP($A152,outcome_data!$A$1:$BJ$216,$J$7,0)*100000,VLOOKUP($A152,outcome_data!$A$1:$BJ$216,$H$7,0)/VLOOKUP($A152,outcome_data!$A$1:$BJ$216,$J$7,0)*100)","v":{"$error":"#DIV/0!"}}]
["08N",{"$f":"VLOOKUP($A153,SummaryData!$K$5:$M$215,3,0)","v":"London"},{"$f":"VLOOKUP($A153,SummaryData!$K$5:$N$215,4,0)","v":"No"},{"$f":"VLOOKUP($A153,SummaryData!$K$5:$P$215,6,0)","v":6},{"$f":"VLOOKUP(A153,SummaryData!$K$4:$T$215,10,0)","v":0.66024903550340763},2,{"$f":"IF(AND($C$5=1,$B$7<=7),VLOOKUP(A153,SummaryData!$K$5:$X$215,14,0)*100000,VLOOKUP(A153,SummaryData!$K$5:$X$215,14,0)*100 )","v":49.352747851327585},5,{"$f":"VLOOKUP($A153,cost_data!$A$5:$BB$215,$D$6,0)/VLOOKUP($A153,cost_data!$A$5:$BB$215,$F$6,0)","v":0.66024903550340763},{"$f":"IFERROR(VLOOKUP($A153,cost_data!$A$5:$BB$215,$H$6,0)/VLOOKUP($A153,cost_data!$A$5:$BB$215,$J$6,0),0)","v":0.56533638617291115},{"$f":"IF(AND($C$5=1,$B$7<=7),VLOOKUP($A153,outcome_data!$A$1:$BJ$216,$D$7,0)/VLOOKUP($A153,outcome_data!$A$1:$BJ$216,$F$7,0)*100000,VLOOKUP($A153,outcome_data!$A$1:$BJ$216,$D$7,0)/VLOOKUP($A153,outcome_data!$A$1:$BJ$216,$F$7,0)*100)","v":49.352747851327585},{"$f":"IF(AND($C$5=1,$B$7<=7),VLOOKUP($A153,outcome_data!$A$1:$BJ$216,$H$7,0)/VLOOKUP($A153,outcome_data!$A$1:$BJ$216,$J$7,0)*100000,VLOOKUP($A153,outcome_data!$A$1:$BJ$216,$H$7,0)/VLOOKUP($A153,outcome_data!$A$1:$BJ$216,$J$7,0)*100)","v":{"$error":"#DIV/0!"}}]
["08P",{"$f":"VLOOKUP($A154,SummaryData!$K$5:$M$215,3,0)","v":"London"},{"$f":"VLOOKUP($A154,SummaryData!$K$5:$N$215,4,0)","v":"No"},{"$f":"VLOOKUP($A154,SummaryData!$K$5:$P$215,6,0)","v":10},{"$f":"VLOOKUP(A154,SummaryData!$K$4:$T$215,10,0)","v":1.2442970342534119},3,{"$f":"IF(AND($C$5=1,$B$7<=7),VLOOKUP(A154,SummaryData!$K$5:$X$215,14,0)*100000,VLOOKUP(A154,SummaryData!$K$5:$X$215,14,0)*100 )","v":38.670164400455683},2,{"$f":"VLOOKUP($A154,cost_data!$A$5:$BB$215,$D$6,0)/VLOOKUP($A154,cost_data!$A$5:$BB$215,$F$6,0)","v":1.2442970342534119},{"$f":"IFERROR(VLOOKUP($A154,cost_data!$A$5:$BB$215,$H$6,0)/VLOOKUP($A154,cost_data!$A$5:$BB$215,$J$6,0),0)","v":0.88985197579104502},{"$f":"IF(AND($C$5=1,$B$7<=7),VLOOKUP($A154,outcome_data!$A$1:$BJ$216,$D$7,0)/VLOOKUP($A154,outcome_data!$A$1:$BJ$216,$F$7,0)*100000,VLOOKUP($A154,outcome_data!$A$1:$BJ$216,$D$7,0)/VLOOKUP($A154,outcome_data!$A$1:$BJ$216,$F$7,0)*100)","v":38.670164400455683},{"$f":"IF(AND($C$5=1,$B$7<=7),VLOOKUP($A154,outcome_data!$A$1:$BJ$216,$H$7,0)/VLOOKUP($A154,outcome_data!$A$1:$BJ$216,$J$7,0)*100000,VLOOKUP($A154,outcome_data!$A$1:$BJ$216,$H$7,0)/VLOOKUP($A154,outcome_data!$A$1:$BJ$216,$J$7,0)*100)","v":{"$error":"#DIV/0!"}}]
["08Q",{"$f":"VLOOKUP($A155,SummaryData!$K$5:$M$215,3,0)","v":"London"},{"$f":"VLOOKUP($A155,SummaryData!$K$5:$N$215,4,0)","v":"No"},{"$f":"VLOOKUP($A155,SummaryData!$K$5:$P$215,6,0)","v":2},{"$f":"VLOOKUP(A155,SummaryData!$K$4:$T$215,10,0)","v":0.35454578348384558},1,{"$f":"IF(AND($C$5=1,$B$7<=7),VLOOKUP(A155,SummaryData!$K$5:$X$215,14,0)*100000,VLOOKUP(A155,SummaryData!$K$5:$X$215,14,0)*100 )","v":38.282290279627169},2,{"$f":"VLOOKUP($A155,cost_data!$A$5:$BB$215,$D$6,0)/VLOOKUP($A155,cost_data!$A$5:$BB$215,$F$6,0)","v":0.35454578348384558},{"$f":"IFERROR(VLOOKUP($A155,cost_data!$A$5:$BB$215,$H$6,0)/VLOOKUP($A155,cost_data!$A$5:$BB$215,$J$6,0),0)","v":0.32842837326162633},{"$f":"IF(AND($C$5=1,$B$7<=7),VLOOKUP($A155,outcome_data!$A$1:$BJ$216,$D$7,0)/VLOOKUP($A155,outcome_data!$A$1:$BJ$216,$F$7,0)*100000,VLOOKUP($A155,outcome_data!$A$1:$BJ$216,$D$7,0)/VLOOKUP($A155,outcome_data!$A$1:$BJ$216,$F$7,0)*100)","v":38.282290279627169},{"$f":"IF(AND($C$5=1,$B$7<=7),VLOOKUP($A155,outcome_data!$A$1:$BJ$216,$H$7,0)/VLOOKUP($A155,outcome_data!$A$1:$BJ$216,$J$7,0)*100000,VLOOKUP($A155,outcome_data!$A$1:$BJ$216,$H$7,0)/VLOOKUP($A155,outcome_data!$A$1:$BJ$216,$J$7,0)*100)","v":{"$error":"#DIV/0!"}}]
["08R",{"$f":"VLOOKUP($A156,SummaryData!$K$5:$M$215,3,0)","v":"London"},{"$f":"VLOOKUP($A156,SummaryData!$K$5:$N$215,4,0)","v":"No"},{"$f":"VLOOKUP($A156,SummaryData!$K$5:$P$215,6,0)","v":8},{"$f":"VLOOKUP(A156,SummaryData!$K$4:$T$215,10,0)","v":1.0725695223665421},3,{"$f":"IF(AND($C$5=1,$B$7<=7),VLOOKUP(A156,SummaryData!$K$5:$X$215,14,0)*100000,VLOOKUP(A156,SummaryData!$K$5:$X$215,14,0)*100 )","v":42.427860303803214},3,{"$f":"VLOOKUP($A156,cost_data!$A$5:$BB$215,$D$6,0)/VLOOKUP($A156,cost_data!$A$5:$BB$215,$F$6,0)","v":1.0725695223665421},{"$f":"IFERROR(VLOOKUP($A156,cost_data!$A$5:$BB$215,$H$6,0)/VLOOKUP($A156,cost_data!$A$5:$BB$215,$J$6,0),0)","v":0.89350395136457528},{"$f":"IF(AND($C$5=1,$B$7<=7),VLOOKUP($A156,outcome_data!$A$1:$BJ$216,$D$7,0)/VLOOKUP($A156,outcome_data!$A$1:$BJ$216,$F$7,0)*100000,VLOOKUP($A156,outcome_data!$A$1:$BJ$216,$D$7,0)/VLOOKUP($A156,outcome_data!$A$1:$BJ$216,$F$7,0)*100)","v":42.427860303803214},{"$f":"IF(AND($C$5=1,$B$7<=7),VLOOKUP($A156,outcome_data!$A$1:$BJ$216,$H$7,0)/VLOOKUP($A156,outcome_data!$A$1:$BJ$216,$J$7,0)*100000,VLOOKUP($A156,outcome_data!$A$1:$BJ$216,$H$7,0)/VLOOKUP($A156,outcome_data!$A$1:$BJ$216,$J$7,0)*100)","v":{"$error":"#DIV/0!"}}]
["08T",{"$f":"VLOOKUP($A157,SummaryData!$K$5:$M$215,3,0)","v":"London"},{"$f":"VLOOKUP($A157,SummaryData!$K$5:$N$215,4,0)","v":"No"},{"$f":"VLOOKUP($A157,SummaryData!$K$5:$P$215,6,0)","v":8},{"$f":"VLOOKUP(A157,SummaryData!$K$4:$T$215,10,0)","v":1.4102075665228193},3,{"$f":"IF(AND($C$5=1,$B$7<=7),VLOOKUP(A157,SummaryData!$K$5:$X$215,14,0)*100000,VLOOKUP(A157,SummaryData!$K$5:$X$215,14,0)*100 )","v":49.842936792201314},5,{"$f":"VLOOKUP($A157,cost_data!$A$5:$BB$215,$D$6,0)/VLOOKUP($A157,cost_data!$A$5:$BB$215,$F$6,0)","v":1.4102075665228193},{"$f":"IFERROR(VLOOKUP($A157,cost_data!$A$5:$BB$215,$H$6,0)/VLOOKUP($A157,cost_data!$A$5:$BB$215,$J$6,0),0)","v":1.2209417896501111},{"$f":"IF(AND($C$5=1,$B$7<=7),VLOOKUP($A157,outcome_data!$A$1:$BJ$216,$D$7,0)/VLOOKUP($A157,outcome_data!$A$1:$BJ$216,$F$7,0)*100000,VLOOKUP($A157,outcome_data!$A$1:$BJ$216,$D$7,0)/VLOOKUP($A157,outcome_data!$A$1:$BJ$216,$F$7,0)*100)","v":49.842936792201314},{"$f":"IF(AND($C$5=1,$B$7<=7),VLOOKUP($A157,outcome_data!$A$1:$BJ$216,$H$7,0)/VLOOKUP($A157,outcome_data!$A$1:$BJ$216,$J$7,0)*100000,VLOOKUP($A157,outcome_data!$A$1:$BJ$216,$H$7,0)/VLOOKUP($A157,outcome_data!$A$1:$BJ$216,$J$7,0)*100)","v":{"$error":"#DIV/0!"}}]
["08V",{"$f":"VLOOKUP($A158,SummaryData!$K$5:$M$215,3,0)","v":"London"},{"$f":"VLOOKUP($A158,SummaryData!$K$5:$N$215,4,0)","v":"No"},{"$f":"VLOOKUP($A158,SummaryData!$K$5:$P$215,6,0)","v":1},{"$f":"VLOOKUP(A158,SummaryData!$K$4:$T$215,10,0)","v":0.265286195376083},1,{"$f":"IF(AND($C$5=1,$B$7<=7),VLOOKUP(A158,SummaryData!$K$5:$X$215,14,0)*100000,VLOOKUP(A158,SummaryData!$K$5:$X$215,14,0)*100 )","v":37.200843219112969},2,{"$f":"VLOOKUP($A158,cost_data!$A$5:$BB$215,$D$6,0)/VLOOKUP($A158,cost_data!$A$5:$BB$215,$F$6,0)","v":0.265286195376083},{"$f":"IFERROR(VLOOKUP($A158,cost_data!$A$5:$BB$215,$H$6,0)/VLOOKUP($A158,cost_data!$A$5:$BB$215,$J$6,0),0)","v":0.22388341496103231},{"$f":"IF(AND($C$5=1,$B$7<=7),VLOOKUP($A158,outcome_data!$A$1:$BJ$216,$D$7,0)/VLOOKUP($A158,outcome_data!$A$1:$BJ$216,$F$7,0)*100000,VLOOKUP($A158,outcome_data!$A$1:$BJ$216,$D$7,0)/VLOOKUP($A158,outcome_data!$A$1:$BJ$216,$F$7,0)*100)","v":37.200843219112969},{"$f":"IF(AND($C$5=1,$B$7<=7),VLOOKUP($A158,outcome_data!$A$1:$BJ$216,$H$7,0)/VLOOKUP($A158,outcome_data!$A$1:$BJ$216,$J$7,0)*100000,VLOOKUP($A158,outcome_data!$A$1:$BJ$216,$H$7,0)/VLOOKUP($A158,outcome_data!$A$1:$BJ$216,$J$7,0)*100)","v":{"$error":"#DIV/0!"}}]
["08W",{"$f":"VLOOKUP($A159,SummaryData!$K$5:$M$215,3,0)","v":"London"},{"$f":"VLOOKUP($A159,SummaryData!$K$5:$N$215,4,0)","v":"No"},{"$f":"VLOOKUP($A159,SummaryData!$K$5:$P$215,6,0)","v":1},{"$f":"VLOOKUP(A159,SummaryData!$K$4:$T$215,10,0)","v":0.46479599300841268},1,{"$f":"IF(AND($C$5=1,$B$7<=7),VLOOKUP(A159,SummaryData!$K$5:$X$215,14,0)*100000,VLOOKUP(A159,SummaryData!$K$5:$X$215,14,0)*100 )","v":46.204808143419726},4,{"$f":"VLOOKUP($A159,cost_data!$A$5:$BB$215,$D$6,0)/VLOOKUP($A159,cost_data!$A$5:$BB$215,$F$6,0)","v":0.46479599300841268},{"$f":"IFERROR(VLOOKUP($A159,cost_data!$A$5:$BB$215,$H$6,0)/VLOOKUP($A159,cost_data!$A$5:$BB$215,$J$6,0),0)","v":0.53132882890524624},{"$f":"IF(AND($C$5=1,$B$7<=7),VLOOKUP($A159,outcome_data!$A$1:$BJ$216,$D$7,0)/VLOOKUP($A159,outcome_data!$A$1:$BJ$216,$F$7,0)*100000,VLOOKUP($A159,outcome_data!$A$1:$BJ$216,$D$7,0)/VLOOKUP($A159,outcome_data!$A$1:$BJ$216,$F$7,0)*100)","v":46.204808143419726},{"$f":"IF(AND($C$5=1,$B$7<=7),VLOOKUP($A159,outcome_data!$A$1:$BJ$216,$H$7,0)/VLOOKUP($A159,outcome_data!$A$1:$BJ$216,$J$7,0)*100000,VLOOKUP($A159,outcome_data!$A$1:$BJ$216,$H$7,0)/VLOOKUP($A159,outcome_data!$A$1:$BJ$216,$J$7,0)*100)","v":{"$error":"#DIV/0!"}}]
["08X",{"$f":"VLOOKUP($A160,SummaryData!$K$5:$M$215,3,0)","v":"London"},{"$f":"VLOOKUP($A160,SummaryData!$K$5:$N$215,4,0)","v":"No"},{"$f":"VLOOKUP($A160,SummaryData!$K$5:$P$215,6,0)","v":5},{"$f":"VLOOKUP(A160,SummaryData!$K$4:$T$215,10,0)","v":0.57904061704292364},1,{"$f":"IF(AND($C$5=1,$B$7<=7),VLOOKUP(A160,SummaryData!$K$5:$X$215,14,0)*100000,VLOOKUP(A160,SummaryData!$K$5:$X$215,14,0)*100 )","v":39.711580464171647},3,{"$f":"VLOOKUP($A160,cost_data!$A$5:$BB$215,$D$6,0)/VLOOKUP($A160,cost_data!$A$5:$BB$215,$F$6,0)","v":0.57904061704292364},{"$f":"IFERROR(VLOOKUP($A160,cost_data!$A$5:$BB$215,$H$6,0)/VLOOKUP($A160,cost_data!$A$5:$BB$215,$J$6,0),0)","v":0.52671183360526785},{"$f":"IF(AND($C$5=1,$B$7<=7),VLOOKUP($A160,outcome_data!$A$1:$BJ$216,$D$7,0)/VLOOKUP($A160,outcome_data!$A$1:$BJ$216,$F$7,0)*100000,VLOOKUP($A160,outcome_data!$A$1:$BJ$216,$D$7,0)/VLOOKUP($A160,outcome_data!$A$1:$BJ$216,$F$7,0)*100)","v":39.711580464171647},{"$f":"IF(AND($C$5=1,$B$7<=7),VLOOKUP($A160,outcome_data!$A$1:$BJ$216,$H$7,0)/VLOOKUP($A160,outcome_data!$A$1:$BJ$216,$J$7,0)*100000,VLOOKUP($A160,outcome_data!$A$1:$BJ$216,$H$7,0)/VLOOKUP($A160,outcome_data!$A$1:$BJ$216,$J$7,0)*100)","v":{"$error":"#DIV/0!"}}]
["08Y",{"$f":"VLOOKUP($A161,SummaryData!$K$5:$M$215,3,0)","v":"London"},{"$f":"VLOOKUP($A161,SummaryData!$K$5:$N$215,4,0)","v":"No"},{"$f":"VLOOKUP($A161,SummaryData!$K$5:$P$215,6,0)","v":3},{"$f":"VLOOKUP(A161,SummaryData!$K$4:$T$215,10,0)","v":0.84591626977475121},2,{"$f":"IF(AND($C$5=1,$B$7<=7),VLOOKUP(A161,SummaryData!$K$5:$X$215,14,0)*100000,VLOOKUP(A161,SummaryData!$K$5:$X$215,14,0)*100 )","v":43.764287410318133},4,{"$f":"VLOOKUP($A161,cost_data!$A$5:$BB$215,$D$6,0)/VLOOKUP($A161,cost_data!$A$5:$BB$215,$F$6,0)","v":0.84591626977475121},{"$f":"IFERROR(VLOOKUP($A161,cost_data!$A$5:$BB$215,$H$6,0)/VLOOKUP($A161,cost_data!$A$5:$BB$215,$J$6,0),0)","v":0.78843294944112574},{"$f":"IF(AND($C$5=1,$B$7<=7),VLOOKUP($A161,outcome_data!$A$1:$BJ$216,$D$7,0)/VLOOKUP($A161,outcome_data!$A$1:$BJ$216,$F$7,0)*100000,VLOOKUP($A161,outcome_data!$A$1:$BJ$216,$D$7,0)/VLOOKUP($A161,outcome_data!$A$1:$BJ$216,$F$7,0)*100)","v":43.764287410318133},{"$f":"IF(AND($C$5=1,$B$7<=7),VLOOKUP($A161,outcome_data!$A$1:$BJ$216,$H$7,0)/VLOOKUP($A161,outcome_data!$A$1:$BJ$216,$J$7,0)*100000,VLOOKUP($A161,outcome_data!$A$1:$BJ$216,$H$7,0)/VLOOKUP($A161,outcome_data!$A$1:$BJ$216,$J$7,0)*100)","v":{"$error":"#DIV/0!"}}]
["09A",{"$f":"VLOOKUP($A162,SummaryData!$K$5:$M$215,3,0)","v":"London"},{"$f":"VLOOKUP($A162,SummaryData!$K$5:$N$215,4,0)","v":"No"},{"$f":"VLOOKUP($A162,SummaryData!$K$5:$P$215,6,0)","v":5},{"$f":"VLOOKUP(A162,SummaryData!$K$4:$T$215,10,0)","v":0.83131132853908507},2,{"$f":"IF(AND($C$5=1,$B$7<=7),VLOOKUP(A162,SummaryData!$K$5:$X$215,14,0)*100000,VLOOKUP(A162,SummaryData!$K$5:$X$215,14,0)*100 )","v":31.145905369237344},1,{"$f":"VLOOKUP($A162,cost_data!$A$5:$BB$215,$D$6,0)/VLOOKUP($A162,cost_data!$A$5:$BB$215,$F$6,0)","v":0.83131132853908507},{"$f":"IFERROR(VLOOKUP($A162,cost_data!$A$5:$BB$215,$H$6,0)/VLOOKUP($A162,cost_data!$A$5:$BB$215,$J$6,0),0)","v":0.57802628937194256},{"$f":"IF(AND($C$5=1,$B$7<=7),VLOOKUP($A162,outcome_data!$A$1:$BJ$216,$D$7,0)/VLOOKUP($A162,outcome_data!$A$1:$BJ$216,$F$7,0)*100000,VLOOKUP($A162,outcome_data!$A$1:$BJ$216,$D$7,0)/VLOOKUP($A162,outcome_data!$A$1:$BJ$216,$F$7,0)*100)","v":31.145905369237344},{"$f":"IF(AND($C$5=1,$B$7<=7),VLOOKUP($A162,outcome_data!$A$1:$BJ$216,$H$7,0)/VLOOKUP($A162,outcome_data!$A$1:$BJ$216,$J$7,0)*100000,VLOOKUP($A162,outcome_data!$A$1:$BJ$216,$H$7,0)/VLOOKUP($A162,outcome_data!$A$1:$BJ$216,$J$7,0)*100)","v":{"$error":"#DIV/0!"}}]
["09C",{"$f":"VLOOKUP($A163,SummaryData!$K$5:$M$215,3,0)","v":"South East coast"},{"$f":"VLOOKUP($A163,SummaryData!$K$5:$N$215,4,0)","v":"Closest 10 CCGs"},{"$f":"VLOOKUP($A163,SummaryData!$K$5:$P$215,6,0)","v":8},{"$f":"VLOOKUP(A163,SummaryData!$K$4:$T$215,10,0)","v":1.1778075660201934},3,{"$f":"IF(AND($C$5=1,$B$7<=7),VLOOKUP(A163,SummaryData!$K$5:$X$215,14,0)*100000,VLOOKUP(A163,SummaryData!$K$5:$X$215,14,0)*100 )","v":47.200734233643637},5,{"$f":"VLOOKUP($A163,cost_data!$A$5:$BB$215,$D$6,0)/VLOOKUP($A163,cost_data!$A$5:$BB$215,$F$6,0)","v":1.1778075660201934},{"$f":"IFERROR(VLOOKUP($A163,cost_data!$A$5:$BB$215,$H$6,0)/VLOOKUP($A163,cost_data!$A$5:$BB$215,$J$6,0),0)","v":1.0267726427368065},{"$f":"IF(AND($C$5=1,$B$7<=7),VLOOKUP($A163,outcome_data!$A$1:$BJ$216,$D$7,0)/VLOOKUP($A163,outcome_data!$A$1:$BJ$216,$F$7,0)*100000,VLOOKUP($A163,outcome_data!$A$1:$BJ$216,$D$7,0)/VLOOKUP($A163,outcome_data!$A$1:$BJ$216,$F$7,0)*100)","v":47.200734233643637},{"$f":"IF(AND($C$5=1,$B$7<=7),VLOOKUP($A163,outcome_data!$A$1:$BJ$216,$H$7,0)/VLOOKUP($A163,outcome_data!$A$1:$BJ$216,$J$7,0)*100000,VLOOKUP($A163,outcome_data!$A$1:$BJ$216,$H$7,0)/VLOOKUP($A163,outcome_data!$A$1:$BJ$216,$J$7,0)*100)","v":{"$error":"#DIV/0!"}}]
["09D",{"$f":"VLOOKUP($A164,SummaryData!$K$5:$M$215,3,0)","v":"South East coast"},{"$f":"VLOOKUP($A164,SummaryData!$K$5:$N$215,4,0)","v":"No"},{"$f":"VLOOKUP($A164,SummaryData!$K$5:$P$215,6,0)","v":4},{"$f":"VLOOKUP(A164,SummaryData!$K$4:$T$215,10,0)","v":1.0268047267414939},3,{"$f":"IF(AND($C$5=1,$B$7<=7),VLOOKUP(A164,SummaryData!$K$5:$X$215,14,0)*100000,VLOOKUP(A164,SummaryData!$K$5:$X$215,14,0)*100 )","v":46.37348710923257},4,{"$f":"VLOOKUP($A164,cost_data!$A$5:$BB$215,$D$6,0)/VLOOKUP($A164,cost_data!$A$5:$BB$215,$F$6,0)","v":1.0268047267414939},{"$f":"IFERROR(VLOOKUP($A164,cost_data!$A$5:$BB$215,$H$6,0)/VLOOKUP($A164,cost_data!$A$5:$BB$215,$J$6,0),0)","v":0.9791795316704579},{"$f":"IF(AND($C$5=1,$B$7<=7),VLOOKUP($A164,outcome_data!$A$1:$BJ$216,$D$7,0)/VLOOKUP($A164,outcome_data!$A$1:$BJ$216,$F$7,0)*100000,VLOOKUP($A164,outcome_data!$A$1:$BJ$216,$D$7,0)/VLOOKUP($A164,outcome_data!$A$1:$BJ$216,$F$7,0)*100)","v":46.37348710923257},{"$f":"IF(AND($C$5=1,$B$7<=7),VLOOKUP($A164,outcome_data!$A$1:$BJ$216,$H$7,0)/VLOOKUP($A164,outcome_data!$A$1:$BJ$216,$J$7,0)*100000,VLOOKUP($A164,outcome_data!$A$1:$BJ$216,$H$7,0)/VLOOKUP($A164,outcome_data!$A$1:$BJ$216,$J$7,0)*100)","v":{"$error":"#DIV/0!"}}]
["09E",{"$f":"VLOOKUP($A165,SummaryData!$K$5:$M$215,3,0)","v":"South East coast"},{"$f":"VLOOKUP($A165,SummaryData!$K$5:$N$215,4,0)","v":"No"},{"$f":"VLOOKUP($A165,SummaryData!$K$5:$P$215,6,0)","v":7},{"$f":"VLOOKUP(A165,SummaryData!$K$4:$T$215,10,0)","v":1.6205471772259756},4,{"$f":"IF(AND($C$5=1,$B$7<=7),VLOOKUP(A165,SummaryData!$K$5:$X$215,14,0)*100000,VLOOKUP(A165,SummaryData!$K$5:$X$215,14,0)*100 )","v":66.118776182777097},9,{"$f":"VLOOKUP($A165,cost_data!$A$5:$BB$215,$D$6,0)/VLOOKUP($A165,cost_data!$A$5:$BB$215,$F$6,0)","v":1.6205471772259756},{"$f":"IFERROR(VLOOKUP($A165,cost_data!$A$5:$BB$215,$H$6,0)/VLOOKUP($A165,cost_data!$A$5:$BB$215,$J$6,0),0)","v":1.8371899296989629},{"$f":"IF(AND($C$5=1,$B$7<=7),VLOOKUP($A165,outcome_data!$A$1:$BJ$216,$D$7,0)/VLOOKUP($A165,outcome_data!$A$1:$BJ$216,$F$7,0)*100000,VLOOKUP($A165,outcome_data!$A$1:$BJ$216,$D$7,0)/VLOOKUP($A165,outcome_data!$A$1:$BJ$216,$F$7,0)*100)","v":66.118776182777097},{"$f":"IF(AND($C$5=1,$B$7<=7),VLOOKUP($A165,outcome_data!$A$1:$BJ$216,$H$7,0)/VLOOKUP($A165,outcome_data!$A$1:$BJ$216,$J$7,0)*100000,VLOOKUP($A165,outcome_data!$A$1:$BJ$216,$H$7,0)/VLOOKUP($A165,outcome_data!$A$1:$BJ$216,$J$7,0)*100)","v":{"$error":"#DIV/0!"}}]
["09F",{"$f":"VLOOKUP($A166,SummaryData!$K$5:$M$215,3,0)","v":"South East coast"},{"$f":"VLOOKUP($A166,SummaryData!$K$5:$N$215,4,0)","v":"No"},{"$f":"VLOOKUP($A166,SummaryData!$K$5:$P$215,6,0)","v":6},{"$f":"VLOOKUP(A166,SummaryData!$K$4:$T$215,10,0)","v":6.5883909115889185},16,{"$f":"IF(AND($C$5=1,$B$7<=7),VLOOKUP(A166,SummaryData!$K$5:$X$215,14,0)*100000,VLOOKUP(A166,SummaryData!$K$5:$X$215,14,0)*100 )","v":75.036749555622535},12,{"$f":"VLOOKUP($A166,cost_data!$A$5:$BB$215,$D$6,0)/VLOOKUP($A166,cost_data!$A$5:$BB$215,$F$6,0)","v":6.5883909115889185},{"$f":"IFERROR(VLOOKUP($A166,cost_data!$A$5:$BB$215,$H$6,0)/VLOOKUP($A166,cost_data!$A$5:$BB$215,$J$6,0),0)","v":7.2323129814390468},{"$f":"IF(AND($C$5=1,$B$7<=7),VLOOKUP($A166,outcome_data!$A$1:$BJ$216,$D$7,0)/VLOOKUP($A166,outcome_data!$A$1:$BJ$216,$F$7,0)*100000,VLOOKUP($A166,outcome_data!$A$1:$BJ$216,$D$7,0)/VLOOKUP($A166,outcome_data!$A$1:$BJ$216,$F$7,0)*100)","v":75.036749555622535},{"$f":"IF(AND($C$5=1,$B$7<=7),VLOOKUP($A166,outcome_data!$A$1:$BJ$216,$H$7,0)/VLOOKUP($A166,outcome_data!$A$1:$BJ$216,$J$7,0)*100000,VLOOKUP($A166,outcome_data!$A$1:$BJ$216,$H$7,0)/VLOOKUP($A166,outcome_data!$A$1:$BJ$216,$J$7,0)*100)","v":{"$error":"#DIV/0!"}}]
["09G",{"$f":"VLOOKUP($A167,SummaryData!$K$5:$M$215,3,0)","v":"South East coast"},{"$f":"VLOOKUP($A167,SummaryData!$K$5:$N$215,4,0)","v":"No"},{"$f":"VLOOKUP($A167,SummaryData!$K$5:$P$215,6,0)","v":7},{"$f":"VLOOKUP(A167,SummaryData!$K$4:$T$215,10,0)","v":2.7974907202714459},7,{"$f":"IF(AND($C$5=1,$B$7<=7),VLOOKUP(A167,SummaryData!$K$5:$X$215,14,0)*100000,VLOOKUP(A167,SummaryData!$K$5:$X$215,14,0)*100 )","v":71.749294079525995},11,{"$f":"VLOOKUP($A167,cost_data!$A$5:$BB$215,$D$6,0)/VLOOKUP($A167,cost_data!$A$5:$BB$215,$F$6,0)","v":2.7974907202714459},{"$f":"IFERROR(VLOOKUP($A167,cost_data!$A$5:$BB$215,$H$6,0)/VLOOKUP($A167,cost_data!$A$5:$BB$215,$J$6,0),0)","v":2.4876434652755406},{"$f":"IF(AND($C$5=1,$B$7<=7),VLOOKUP($A167,outcome_data!$A$1:$BJ$216,$D$7,0)/VLOOKUP($A167,outcome_data!$A$1:$BJ$216,$F$7,0)*100000,VLOOKUP($A167,outcome_data!$A$1:$BJ$216,$D$7,0)/VLOOKUP($A167,outcome_data!$A$1:$BJ$216,$F$7,0)*100)","v":71.749294079525995},{"$f":"IF(AND($C$5=1,$B$7<=7),VLOOKUP($A167,outcome_data!$A$1:$BJ$216,$H$7,0)/VLOOKUP($A167,outcome_data!$A$1:$BJ$216,$J$7,0)*100000,VLOOKUP($A167,outcome_data!$A$1:$BJ$216,$H$7,0)/VLOOKUP($A167,outcome_data!$A$1:$BJ$216,$J$7,0)*100)","v":{"$error":"#DIV/0!"}}]
["09H",{"$f":"VLOOKUP($A168,SummaryData!$K$5:$M$215,3,0)","v":"South East coast"},{"$f":"VLOOKUP($A168,SummaryData!$K$5:$N$215,4,0)","v":"No"},{"$f":"VLOOKUP($A168,SummaryData!$K$5:$P$215,6,0)","v":7},{"$f":"VLOOKUP(A168,SummaryData!$K$4:$T$215,10,0)","v":1.0193132233378903},3,{"$f":"IF(AND($C$5=1,$B$7<=7),VLOOKUP(A168,SummaryData!$K$5:$X$215,14,0)*100000,VLOOKUP(A168,SummaryData!$K$5:$X$215,14,0)*100 )","v":44.608288725044609},4,{"$f":"VLOOKUP($A168,cost_data!$A$5:$BB$215,$D$6,0)/VLOOKUP($A168,cost_data!$A$5:$BB$215,$F$6,0)","v":1.0193132233378903},{"$f":"IFERROR(VLOOKUP($A168,cost_data!$A$5:$BB$215,$H$6,0)/VLOOKUP($A168,cost_data!$A$5:$BB$215,$J$6,0),0)","v":0.84831791137045676},{"$f":"IF(AND($C$5=1,$B$7<=7),VLOOKUP($A168,outcome_data!$A$1:$BJ$216,$D$7,0)/VLOOKUP($A168,outcome_data!$A$1:$BJ$216,$F$7,0)*100000,VLOOKUP($A168,outcome_data!$A$1:$BJ$216,$D$7,0)/VLOOKUP($A168,outcome_data!$A$1:$BJ$216,$F$7,0)*100)","v":44.608288725044609},{"$f":"IF(AND($C$5=1,$B$7<=7),VLOOKUP($A168,outcome_data!$A$1:$BJ$216,$H$7,0)/VLOOKUP($A168,outcome_data!$A$1:$BJ$216,$J$7,0)*100000,VLOOKUP($A168,outcome_data!$A$1:$BJ$216,$H$7,0)/VLOOKUP($A168,outcome_data!$A$1:$BJ$216,$J$7,0)*100)","v":{"$error":"#DIV/0!"}}]
["09J",{"$f":"VLOOKUP($A169,SummaryData!$K$5:$M$215,3,0)","v":"South East coast"},{"$f":"VLOOKUP($A169,SummaryData!$K$5:$N$215,4,0)","v":"No"},{"$f":"VLOOKUP($A169,SummaryData!$K$5:$P$215,6,0)","v":7},{"$f":"VLOOKUP(A169,SummaryData!$K$4:$T$215,10,0)","v":1.5754653643475136},4,{"$f":"IF(AND($C$5=1,$B$7<=7),VLOOKUP(A169,SummaryData!$K$5:$X$215,14,0)*100000,VLOOKUP(A169,SummaryData!$K$5:$X$215,14,0)*100 )","v":73.382313115341276},11,{"$f":"VLOOKUP($A169,cost_data!$A$5:$BB$215,$D$6,0)/VLOOKUP($A169,cost_data!$A$5:$BB$215,$F$6,0)","v":1.5754653643475136},{"$f":"IFERROR(VLOOKUP($A169,cost_data!$A$5:$BB$215,$H$6,0)/VLOOKUP($A169,cost_data!$A$5:$BB$215,$J$6,0),0)","v":1.2341202832211067},{"$f":"IF(AND($C$5=1,$B$7<=7),VLOOKUP($A169,outcome_data!$A$1:$BJ$216,$D$7,0)/VLOOKUP($A169,outcome_data!$A$1:$BJ$216,$F$7,0)*100000,VLOOKUP($A169,outcome_data!$A$1:$BJ$216,$D$7,0)/VLOOKUP($A169,outcome_data!$A$1:$BJ$216,$F$7,0)*100)","v":73.382313115341276},{"$f":"IF(AND($C$5=1,$B$7<=7),VLOOKUP($A169,outcome_data!$A$1:$BJ$216,$H$7,0)/VLOOKUP($A169,outcome_data!$A$1:$BJ$216,$J$7,0)*100000,VLOOKUP($A169,outcome_data!$A$1:$BJ$216,$H$7,0)/VLOOKUP($A169,outcome_data!$A$1:$BJ$216,$J$7,0)*100)","v":{"$error":"#DIV/0!"}}]
["09L",{"$f":"VLOOKUP($A170,SummaryData!$K$5:$M$215,3,0)","v":"South East coast"},{"$f":"VLOOKUP($A170,SummaryData!$K$5:$N$215,4,0)","v":"No"},{"$f":"VLOOKUP($A170,SummaryData!$K$5:$P$215,6,0)","v":10},{"$f":"VLOOKUP(A170,SummaryData!$K$4:$T$215,10,0)","v":1.1440850371590849},3,{"$f":"IF(AND($C$5=1,$B$7<=7),VLOOKUP(A170,SummaryData!$K$5:$X$215,14,0)*100000,VLOOKUP(A170,SummaryData!$K$5:$X$215,14,0)*100 )","v":47.832134383122813},5,{"$f":"VLOOKUP($A170,cost_data!$A$5:$BB$215,$D$6,0)/VLOOKUP($A170,cost_data!$A$5:$BB$215,$F$6,0)","v":1.1440850371590849},{"$f":"IFERROR(VLOOKUP($A170,cost_data!$A$5:$BB$215,$H$6,0)/VLOOKUP($A170,cost_data!$A$5:$BB$215,$J$6,0),0)","v":1.0642027866725026},{"$f":"IF(AND($C$5=1,$B$7<=7),VLOOKUP($A170,outcome_data!$A$1:$BJ$216,$D$7,0)/VLOOKUP($A170,outcome_data!$A$1:$BJ$216,$F$7,0)*100000,VLOOKUP($A170,outcome_data!$A$1:$BJ$216,$D$7,0)/VLOOKUP($A170,outcome_data!$A$1:$BJ$216,$F$7,0)*100)","v":47.832134383122813},{"$f":"IF(AND($C$5=1,$B$7<=7),VLOOKUP($A170,outcome_data!$A$1:$BJ$216,$H$7,0)/VLOOKUP($A170,outcome_data!$A$1:$BJ$216,$J$7,0)*100000,VLOOKUP($A170,outcome_data!$A$1:$BJ$216,$H$7,0)/VLOOKUP($A170,outcome_data!$A$1:$BJ$216,$J$7,0)*100)","v":{"$error":"#DIV/0!"}}]
["09N",{"$f":"VLOOKUP($A171,SummaryData!$K$5:$M$215,3,0)","v":"South East coast"},{"$f":"VLOOKUP($A171,SummaryData!$K$5:$N$215,4,0)","v":"No"},{"$f":"VLOOKUP($A171,SummaryData!$K$5:$P$215,6,0)","v":10},{"$f":"VLOOKUP(A171,SummaryData!$K$4:$T$215,10,0)","v":2.4030143042626912},6,{"$f":"IF(AND($C$5=1,$B$7<=7),VLOOKUP(A171,SummaryData!$K$5:$X$215,14,0)*100000,VLOOKUP(A171,SummaryData!$K$5:$X$215,14,0)*100 )","v":42.007237391502393},3,{"$f":"VLOOKUP($A171,cost_data!$A$5:$BB$215,$D$6,0)/VLOOKUP($A171,cost_data!$A$5:$BB$215,$F$6,0)","v":2.4030143042626912},{"$f":"IFERROR(VLOOKUP($A171,cost_data!$A$5:$BB$215,$H$6,0)/VLOOKUP($A171,cost_data!$A$5:$BB$215,$J$6,0),0)","v":2.1784552615337955},{"$f":"IF(AND($C$5=1,$B$7<=7),VLOOKUP($A171,outcome_data!$A$1:$BJ$216,$D$7,0)/VLOOKUP($A171,outcome_data!$A$1:$BJ$216,$F$7,0)*100000,VLOOKUP($A171,outcome_data!$A$1:$BJ$216,$D$7,0)/VLOOKUP($A171,outcome_data!$A$1:$BJ$216,$F$7,0)*100)","v":42.007237391502393},{"$f":"IF(AND($C$5=1,$B$7<=7),VLOOKUP($A171,outcome_data!$A$1:$BJ$216,$H$7,0)/VLOOKUP($A171,outcome_data!$A$1:$BJ$216,$J$7,0)*100000,VLOOKUP($A171,outcome_data!$A$1:$BJ$216,$H$7,0)/VLOOKUP($A171,outcome_data!$A$1:$BJ$216,$J$7,0)*100)","v":{"$error":"#DIV/0!"}}]
["09P",{"$f":"VLOOKUP($A172,SummaryData!$K$5:$M$215,3,0)","v":"South East coast"},{"$f":"VLOOKUP($A172,SummaryData!$K$5:$N$215,4,0)","v":"No"},{"$f":"VLOOKUP($A172,SummaryData!$K$5:$P$215,6,0)","v":3},{"$f":"VLOOKUP(A172,SummaryData!$K$4:$T$215,10,0)","v":8.6408363821198009},20,{"$f":"IF(AND($C$5=1,$B$7<=7),VLOOKUP(A172,SummaryData!$K$5:$X$215,14,0)*100000,VLOOKUP(A172,SummaryData!$K$5:$X$215,14,0)*100 )","v":83.700548977130055},14,{"$f":"VLOOKUP($A172,cost_data!$A$5:$BB$215,$D$6,0)/VLOOKUP($A172,cost_data!$A$5:$BB$215,$F$6,0)","v":8.6408363821198009},{"$f":"IFERROR(VLOOKUP($A172,cost_data!$A$5:$BB$215,$H$6,0)/VLOOKUP($A172,cost_data!$A$5:$BB$215,$J$6,0),0)","v":9.9157444736603555},{"$f":"IF(AND($C$5=1,$B$7<=7),VLOOKUP($A172,outcome_data!$A$1:$BJ$216,$D$7,0)/VLOOKUP($A172,outcome_data!$A$1:$BJ$216,$F$7,0)*100000,VLOOKUP($A172,outcome_data!$A$1:$BJ$216,$D$7,0)/VLOOKUP($A172,outcome_data!$A$1:$BJ$216,$F$7,0)*100)","v":83.700548977130055},{"$f":"IF(AND($C$5=1,$B$7<=7),VLOOKUP($A172,outcome_data!$A$1:$BJ$216,$H$7,0)/VLOOKUP($A172,outcome_data!$A$1:$BJ$216,$J$7,0)*100000,VLOOKUP($A172,outcome_data!$A$1:$BJ$216,$H$7,0)/VLOOKUP($A172,outcome_data!$A$1:$BJ$216,$J$7,0)*100)","v":{"$error":"#DIV/0!"}}]
["09W",{"$f":"VLOOKUP($A173,SummaryData!$K$5:$M$215,3,0)","v":"South East coast"},{"$f":"VLOOKUP($A173,SummaryData!$K$5:$N$215,4,0)","v":"No"},{"$f":"VLOOKUP($A173,SummaryData!$K$5:$P$215,6,0)","v":5},{"$f":"VLOOKUP(A173,SummaryData!$K$4:$T$215,10,0)","v":1.0659836444656803},3,{"$f":"IF(AND($C$5=1,$B$7<=7),VLOOKUP(A173,SummaryData!$K$5:$X$215,14,0)*100000,VLOOKUP(A173,SummaryData!$K$5:$X$215,14,0)*100 )","v":54.704188033551908},6,{"$f":"VLOOKUP($A173,cost_data!$A$5:$BB$215,$D$6,0)/VLOOKUP($A173,cost_data!$A$5:$BB$215,$F$6,0)","v":1.0659836444656803},{"$f":"IFERROR(VLOOKUP($A173,cost_data!$A$5:$BB$215,$H$6,0)/VLOOKUP($A173,cost_data!$A$5:$BB$215,$J$6,0),0)","v":0.92746694833846688},{"$f":"IF(AND($C$5=1,$B$7<=7),VLOOKUP($A173,outcome_data!$A$1:$BJ$216,$D$7,0)/VLOOKUP($A173,outcome_data!$A$1:$BJ$216,$F$7,0)*100000,VLOOKUP($A173,outcome_data!$A$1:$BJ$216,$D$7,0)/VLOOKUP($A173,outcome_data!$A$1:$BJ$216,$F$7,0)*100)","v":54.704188033551908},{"$f":"IF(AND($C$5=1,$B$7<=7),VLOOKUP($A173,outcome_data!$A$1:$BJ$216,$H$7,0)/VLOOKUP($A173,outcome_data!$A$1:$BJ$216,$J$7,0)*100000,VLOOKUP($A173,outcome_data!$A$1:$BJ$216,$H$7,0)/VLOOKUP($A173,outcome_data!$A$1:$BJ$216,$J$7,0)*100)","v":{"$error":"#DIV/0!"}}]
["09X",{"$f":"VLOOKUP($A174,SummaryData!$K$5:$M$215,3,0)","v":"South East coast"},{"$f":"VLOOKUP($A174,SummaryData!$K$5:$N$215,4,0)","v":"No"},{"$f":"VLOOKUP($A174,SummaryData!$K$5:$P$215,6,0)","v":10},{"$f":"VLOOKUP(A174,SummaryData!$K$4:$T$215,10,0)","v":1.4337973262723607},4,{"$f":"IF(AND($C$5=1,$B$7<=7),VLOOKUP(A174,SummaryData!$K$5:$X$215,14,0)*100000,VLOOKUP(A174,SummaryData!$K$5:$X$215,14,0)*100 )","v":48.819864367782756},5,{"$f":"VLOOKUP($A174,cost_data!$A$5:$BB$215,$D$6,0)/VLOOKUP($A174,cost_data!$A$5:$BB$215,$F$6,0)","v":1.4337973262723607},{"$f":"IFERROR(VLOOKUP($A174,cost_data!$A$5:$BB$215,$H$6,0)/VLOOKUP($A174,cost_data!$A$5:$BB$215,$J$6,0),0)","v":1.2859819797967817},{"$f":"IF(AND($C$5=1,$B$7<=7),VLOOKUP($A174,outcome_data!$A$1:$BJ$216,$D$7,0)/VLOOKUP($A174,outcome_data!$A$1:$BJ$216,$F$7,0)*100000,VLOOKUP($A174,outcome_data!$A$1:$BJ$216,$D$7,0)/VLOOKUP($A174,outcome_data!$A$1:$BJ$216,$F$7,0)*100)","v":48.819864367782756},{"$f":"IF(AND($C$5=1,$B$7<=7),VLOOKUP($A174,outcome_data!$A$1:$BJ$216,$H$7,0)/VLOOKUP($A174,outcome_data!$A$1:$BJ$216,$J$7,0)*100000,VLOOKUP($A174,outcome_data!$A$1:$BJ$216,$H$7,0)/VLOOKUP($A174,outcome_data!$A$1:$BJ$216,$J$7,0)*100)","v":{"$error":"#DIV/0!"}}]
["09Y",{"$f":"VLOOKUP($A175,SummaryData!$K$5:$M$215,3,0)","v":"South East coast"},{"$f":"VLOOKUP($A175,SummaryData!$K$5:$N$215,4,0)","v":"No"},{"$f":"VLOOKUP($A175,SummaryData!$K$5:$P$215,6,0)","v":10},{"$f":"VLOOKUP(A175,SummaryData!$K$4:$T$215,10,0)","v":1.0528278995079554},3,{"$f":"IF(AND($C$5=1,$B$7<=7),VLOOKUP(A175,SummaryData!$K$5:$X$215,14,0)*100000,VLOOKUP(A175,SummaryData!$K$5:$X$215,14,0)*100 )","v":45.472142168038005},4,{"$f":"VLOOKUP($A175,cost_data!$A$5:$BB$215,$D$6,0)/VLOOKUP($A175,cost_data!$A$5:$BB$215,$F$6,0)","v":1.0528278995079554},{"$f":"IFERROR(VLOOKUP($A175,cost_data!$A$5:$BB$215,$H$6,0)/VLOOKUP($A175,cost_data!$A$5:$BB$215,$J$6,0),0)","v":0.87112144021805338},{"$f":"IF(AND($C$5=1,$B$7<=7),VLOOKUP($A175,outcome_data!$A$1:$BJ$216,$D$7,0)/VLOOKUP($A175,outcome_data!$A$1:$BJ$216,$F$7,0)*100000,VLOOKUP($A175,outcome_data!$A$1:$BJ$216,$D$7,0)/VLOOKUP($A175,outcome_data!$A$1:$BJ$216,$F$7,0)*100)","v":45.472142168038005},{"$f":"IF(AND($C$5=1,$B$7<=7),VLOOKUP($A175,outcome_data!$A$1:$BJ$216,$H$7,0)/VLOOKUP($A175,outcome_data!$A$1:$BJ$216,$J$7,0)*100000,VLOOKUP($A175,outcome_data!$A$1:$BJ$216,$H$7,0)/VLOOKUP($A175,outcome_data!$A$1:$BJ$216,$J$7,0)*100)","v":{"$error":"#DIV/0!"}}]
["10A",{"$f":"VLOOKUP($A176,SummaryData!$K$5:$M$215,3,0)","v":"South East coast"},{"$f":"VLOOKUP($A176,SummaryData!$K$5:$N$215,4,0)","v":"Closest 10 CCGs"},{"$f":"VLOOKUP($A176,SummaryData!$K$5:$P$215,6,0)","v":5},{"$f":"VLOOKUP(A176,SummaryData!$K$4:$T$215,10,0)","v":1.8480072474290374},4,{"$f":"IF(AND($C$5=1,$B$7<=7),VLOOKUP(A176,SummaryData!$K$5:$X$215,14,0)*100000,VLOOKUP(A176,SummaryData!$K$5:$X$215,14,0)*100 )","v":79.773973741066968},13,{"$f":"VLOOKUP($A176,cost_data!$A$5:$BB$215,$D$6,0)/VLOOKUP($A176,cost_data!$A$5:$BB$215,$F$6,0)","v":1.8480072474290374},{"$f":"IFERROR(VLOOKUP($A176,cost_data!$A$5:$BB$215,$H$6,0)/VLOOKUP($A176,cost_data!$A$5:$BB$215,$J$6,0),0)","v":2.1366675989347308},{"$f":"IF(AND($C$5=1,$B$7<=7),VLOOKUP($A176,outcome_data!$A$1:$BJ$216,$D$7,0)/VLOOKUP($A176,outcome_data!$A$1:$BJ$216,$F$7,0)*100000,VLOOKUP($A176,outcome_data!$A$1:$BJ$216,$D$7,0)/VLOOKUP($A176,outcome_data!$A$1:$BJ$216,$F$7,0)*100)","v":79.773973741066968},{"$f":"IF(AND($C$5=1,$B$7<=7),VLOOKUP($A176,outcome_data!$A$1:$BJ$216,$H$7,0)/VLOOKUP($A176,outcome_data!$A$1:$BJ$216,$J$7,0)*100000,VLOOKUP($A176,outcome_data!$A$1:$BJ$216,$H$7,0)/VLOOKUP($A176,outcome_data!$A$1:$BJ$216,$J$7,0)*100)","v":{"$error":"#DIV/0!"}}]
["10C",{"$f":"VLOOKUP($A177,SummaryData!$K$5:$M$215,3,0)","v":"South East coast"},{"$f":"VLOOKUP($A177,SummaryData!$K$5:$N$215,4,0)","v":"No"},{"$f":"VLOOKUP($A177,SummaryData!$K$5:$P$215,6,0)","v":10},{"$f":"VLOOKUP(A177,SummaryData!$K$4:$T$215,10,0)","v":2.0236491271724986},5,{"$f":"IF(AND($C$5=1,$B$7<=7),VLOOKUP(A177,SummaryData!$K$5:$X$215,14,0)*100000,VLOOKUP(A177,SummaryData!$K$5:$X$215,14,0)*100 )","v":60.412224591329071},8,{"$f":"VLOOKUP($A177,cost_data!$A$5:$BB$215,$D$6,0)/VLOOKUP($A177,cost_data!$A$5:$BB$215,$F$6,0)","v":2.0236491271724986},{"$f":"IFERROR(VLOOKUP($A177,cost_data!$A$5:$BB$215,$H$6,0)/VLOOKUP($A177,cost_data!$A$5:$BB$215,$J$6,0),0)","v":1.9063620987587939},{"$f":"IF(AND($C$5=1,$B$7<=7),VLOOKUP($A177,outcome_data!$A$1:$BJ$216,$D$7,0)/VLOOKUP($A177,outcome_data!$A$1:$BJ$216,$F$7,0)*100000,VLOOKUP($A177,outcome_data!$A$1:$BJ$216,$D$7,0)/VLOOKUP($A177,outcome_data!$A$1:$BJ$216,$F$7,0)*100)","v":60.412224591329071},{"$f":"IF(AND($C$5=1,$B$7<=7),VLOOKUP($A177,outcome_data!$A$1:$BJ$216,$H$7,0)/VLOOKUP($A177,outcome_data!$A$1:$BJ$216,$J$7,0)*100000,VLOOKUP($A177,outcome_data!$A$1:$BJ$216,$H$7,0)/VLOOKUP($A177,outcome_data!$A$1:$BJ$216,$J$7,0)*100)","v":{"$error":"#DIV/0!"}}]
["10D",{"$f":"VLOOKUP($A178,SummaryData!$K$5:$M$215,3,0)","v":"South East coast"},{"$f":"VLOOKUP($A178,SummaryData!$K$5:$N$215,4,0)","v":"No"},{"$f":"VLOOKUP($A178,SummaryData!$K$5:$P$215,6,0)","v":4},{"$f":"VLOOKUP(A178,SummaryData!$K$4:$T$215,10,0)","v":1.0676736103983042},3,{"$f":"IF(AND($C$5=1,$B$7<=7),VLOOKUP(A178,SummaryData!$K$5:$X$215,14,0)*100000,VLOOKUP(A178,SummaryData!$K$5:$X$215,14,0)*100 )","v":75.873301702596891},12,{"$f":"VLOOKUP($A178,cost_data!$A$5:$BB$215,$D$6,0)/VLOOKUP($A178,cost_data!$A$5:$BB$215,$F$6,0)","v":1.0676736103983042},{"$f":"IFERROR(VLOOKUP($A178,cost_data!$A$5:$BB$215,$H$6,0)/VLOOKUP($A178,cost_data!$A$5:$BB$215,$J$6,0),0)","v":1.0540089158793018},{"$f":"IF(AND($C$5=1,$B$7<=7),VLOOKUP($A178,outcome_data!$A$1:$BJ$216,$D$7,0)/VLOOKUP($A178,outcome_data!$A$1:$BJ$216,$F$7,0)*100000,VLOOKUP($A178,outcome_data!$A$1:$BJ$216,$D$7,0)/VLOOKUP($A178,outcome_data!$A$1:$BJ$216,$F$7,0)*100)","v":75.873301702596891},{"$f":"IF(AND($C$5=1,$B$7<=7),VLOOKUP($A178,outcome_data!$A$1:$BJ$216,$H$7,0)/VLOOKUP($A178,outcome_data!$A$1:$BJ$216,$J$7,0)*100000,VLOOKUP($A178,outcome_data!$A$1:$BJ$216,$H$7,0)/VLOOKUP($A178,outcome_data!$A$1:$BJ$216,$J$7,0)*100)","v":{"$error":"#DIV/0!"}}]
["10E",{"$f":"VLOOKUP($A179,SummaryData!$K$5:$M$215,3,0)","v":"South East coast"},{"$f":"VLOOKUP($A179,SummaryData!$K$5:$N$215,4,0)","v":"No"},{"$f":"VLOOKUP($A179,SummaryData!$K$5:$P$215,6,0)","v":3},{"$f":"VLOOKUP(A179,SummaryData!$K$4:$T$215,10,0)","v":2.2570419293604775},5,{"$f":"IF(AND($C$5=1,$B$7<=7),VLOOKUP(A179,SummaryData!$K$5:$X$215,14,0)*100000,VLOOKUP(A179,SummaryData!$K$5:$X$215,14,0)*100 )","v":91.019177344931023},16,{"$f":"VLOOKUP($A179,cost_data!$A$5:$BB$215,$D$6,0)/VLOOKUP($A179,cost_data!$A$5:$BB$215,$F$6,0)","v":2.2570419293604775},{"$f":"IFERROR(VLOOKUP($A179,cost_data!$A$5:$BB$215,$H$6,0)/VLOOKUP($A179,cost_data!$A$5:$BB$215,$J$6,0),0)","v":2.0460378774928976},{"$f":"IF(AND($C$5=1,$B$7<=7),VLOOKUP($A179,outcome_data!$A$1:$BJ$216,$D$7,0)/VLOOKUP($A179,outcome_data!$A$1:$BJ$216,$F$7,0)*100000,VLOOKUP($A179,outcome_data!$A$1:$BJ$216,$D$7,0)/VLOOKUP($A179,outcome_data!$A$1:$BJ$216,$F$7,0)*100)","v":91.019177344931023},{"$f":"IF(AND($C$5=1,$B$7<=7),VLOOKUP($A179,outcome_data!$A$1:$BJ$216,$H$7,0)/VLOOKUP($A179,outcome_data!$A$1:$BJ$216,$J$7,0)*100000,VLOOKUP($A179,outcome_data!$A$1:$BJ$216,$H$7,0)/VLOOKUP($A179,outcome_data!$A$1:$BJ$216,$J$7,0)*100)","v":{"$error":"#DIV/0!"}}]
["10G",{"$f":"VLOOKUP($A180,SummaryData!$K$5:$M$215,3,0)","v":"Thames"},{"$f":"VLOOKUP($A180,SummaryData!$K$5:$N$215,4,0)","v":"No"},{"$f":"VLOOKUP($A180,SummaryData!$K$5:$P$215,6,0)","v":10},{"$f":"VLOOKUP(A180,SummaryData!$K$4:$T$215,10,0)","v":1.1551768414861361},3,{"$f":"IF(AND($C$5=1,$B$7<=7),VLOOKUP(A180,SummaryData!$K$5:$X$215,14,0)*100000,VLOOKUP(A180,SummaryData!$K$5:$X$215,14,0)*100 )","v":43.628317894622029},4,{"$f":"VLOOKUP($A180,cost_data!$A$5:$BB$215,$D$6,0)/VLOOKUP($A180,cost_data!$A$5:$BB$215,$F$6,0)","v":1.1551768414861361},{"$f":"IFERROR(VLOOKUP($A180,cost_data!$A$5:$BB$215,$H$6,0)/VLOOKUP($A180,cost_data!$A$5:$BB$215,$J$6,0),0)","v":1.2970468976098066},{"$f":"IF(AND($C$5=1,$B$7<=7),VLOOKUP($A180,outcome_data!$A$1:$BJ$216,$D$7,0)/VLOOKUP($A180,outcome_data!$A$1:$BJ$216,$F$7,0)*100000,VLOOKUP($A180,outcome_data!$A$1:$BJ$216,$D$7,0)/VLOOKUP($A180,outcome_data!$A$1:$BJ$216,$F$7,0)*100)","v":43.628317894622029},{"$f":"IF(AND($C$5=1,$B$7<=7),VLOOKUP($A180,outcome_data!$A$1:$BJ$216,$H$7,0)/VLOOKUP($A180,outcome_data!$A$1:$BJ$216,$J$7,0)*100000,VLOOKUP($A180,outcome_data!$A$1:$BJ$216,$H$7,0)/VLOOKUP($A180,outcome_data!$A$1:$BJ$216,$J$7,0)*100)","v":{"$error":"#DIV/0!"}}]
["10H",{"$f":"VLOOKUP($A181,SummaryData!$K$5:$M$215,3,0)","v":"Thames"},{"$f":"VLOOKUP($A181,SummaryData!$K$5:$N$215,4,0)","v":"No"},{"$f":"VLOOKUP($A181,SummaryData!$K$5:$P$215,6,0)","v":10},{"$f":"VLOOKUP(A181,SummaryData!$K$4:$T$215,10,0)","v":1.667257407113657},4,{"$f":"IF(AND($C$5=1,$B$7<=7),VLOOKUP(A181,SummaryData!$K$5:$X$215,14,0)*100000,VLOOKUP(A181,SummaryData!$K$5:$X$215,14,0)*100 )","v":48.422295482133499},5,{"$f":"VLOOKUP($A181,cost_data!$A$5:$BB$215,$D$6,0)/VLOOKUP($A181,cost_data!$A$5:$BB$215,$F$6,0)","v":1.667257407113657},{"$f":"IFERROR(VLOOKUP($A181,cost_data!$A$5:$BB$215,$H$6,0)/VLOOKUP($A181,cost_data!$A$5:$BB$215,$J$6,0),0)","v":1.4898331411210197},{"$f":"IF(AND($C$5=1,$B$7<=7),VLOOKUP($A181,outcome_data!$A$1:$BJ$216,$D$7,0)/VLOOKUP($A181,outcome_data!$A$1:$BJ$216,$F$7,0)*100000,VLOOKUP($A181,outcome_data!$A$1:$BJ$216,$D$7,0)/VLOOKUP($A181,outcome_data!$A$1:$BJ$216,$F$7,0)*100)","v":48.422295482133499},{"$f":"IF(AND($C$5=1,$B$7<=7),VLOOKUP($A181,outcome_data!$A$1:$BJ$216,$H$7,0)/VLOOKUP($A181,outcome_data!$A$1:$BJ$216,$J$7,0)*100000,VLOOKUP($A181,outcome_data!$A$1:$BJ$216,$H$7,0)/VLOOKUP($A181,outcome_data!$A$1:$BJ$216,$J$7,0)*100)","v":{"$error":"#DIV/0!"}}]
["10J",{"$f":"VLOOKUP($A182,SummaryData!$K$5:$M$215,3,0)","v":"Wessex"},{"$f":"VLOOKUP($A182,SummaryData!$K$5:$N$215,4,0)","v":"No"},{"$f":"VLOOKUP($A182,SummaryData!$K$5:$P$215,6,0)","v":10},{"$f":"VLOOKUP(A182,SummaryData!$K$4:$T$215,10,0)","v":2.1653215448945891},5,{"$f":"IF(AND($C$5=1,$B$7<=7),VLOOKUP(A182,SummaryData!$K$5:$X$215,14,0)*100000,VLOOKUP(A182,SummaryData!$K$5:$X$215,14,0)*100 )","v":59.189401151233852},8,{"$f":"VLOOKUP($A182,cost_data!$A$5:$BB$215,$D$6,0)/VLOOKUP($A182,cost_data!$A$5:$BB$215,$F$6,0)","v":2.1653215448945891},{"$f":"IFERROR(VLOOKUP($A182,cost_data!$A$5:$BB$215,$H$6,0)/VLOOKUP($A182,cost_data!$A$5:$BB$215,$J$6,0),0)","v":1.9819064915576614},{"$f":"IF(AND($C$5=1,$B$7<=7),VLOOKUP($A182,outcome_data!$A$1:$BJ$216,$D$7,0)/VLOOKUP($A182,outcome_data!$A$1:$BJ$216,$F$7,0)*100000,VLOOKUP($A182,outcome_data!$A$1:$BJ$216,$D$7,0)/VLOOKUP($A182,outcome_data!$A$1:$BJ$216,$F$7,0)*100)","v":59.189401151233852},{"$f":"IF(AND($C$5=1,$B$7<=7),VLOOKUP($A182,outcome_data!$A$1:$BJ$216,$H$7,0)/VLOOKUP($A182,outcome_data!$A$1:$BJ$216,$J$7,0)*100000,VLOOKUP($A182,outcome_data!$A$1:$BJ$216,$H$7,0)/VLOOKUP($A182,outcome_data!$A$1:$BJ$216,$J$7,0)*100)","v":{"$error":"#DIV/0!"}}]
["10K",{"$f":"VLOOKUP($A183,SummaryData!$K$5:$M$215,3,0)","v":"Wessex"},{"$f":"VLOOKUP($A183,SummaryData!$K$5:$N$215,4,0)","v":"No"},{"$f":"VLOOKUP($A183,SummaryData!$K$5:$P$215,6,0)","v":9},{"$f":"VLOOKUP(A183,SummaryData!$K$4:$T$215,10,0)","v":2.9701079951631923},7,{"$f":"IF(AND($C$5=1,$B$7<=7),VLOOKUP(A183,SummaryData!$K$5:$X$215,14,0)*100000,VLOOKUP(A183,SummaryData!$K$5:$X$215,14,0)*100 )","v":67.632584609463066},10,{"$f":"VLOOKUP($A183,cost_data!$A$5:$BB$215,$D$6,0)/VLOOKUP($A183,cost_data!$A$5:$BB$215,$F$6,0)","v":2.9701079951631923},{"$f":"IFERROR(VLOOKUP($A183,cost_data!$A$5:$BB$215,$H$6,0)/VLOOKUP($A183,cost_data!$A$5:$BB$215,$J$6,0),0)","v":3.0785615504518966},{"$f":"IF(AND($C$5=1,$B$7<=7),VLOOKUP($A183,outcome_data!$A$1:$BJ$216,$D$7,0)/VLOOKUP($A183,outcome_data!$A$1:$BJ$216,$F$7,0)*100000,VLOOKUP($A183,outcome_data!$A$1:$BJ$216,$D$7,0)/VLOOKUP($A183,outcome_data!$A$1:$BJ$216,$F$7,0)*100)","v":67.632584609463066},{"$f":"IF(AND($C$5=1,$B$7<=7),VLOOKUP($A183,outcome_data!$A$1:$BJ$216,$H$7,0)/VLOOKUP($A183,outcome_data!$A$1:$BJ$216,$J$7,0)*100000,VLOOKUP($A183,outcome_data!$A$1:$BJ$216,$H$7,0)/VLOOKUP($A183,outcome_data!$A$1:$BJ$216,$J$7,0)*100)","v":{"$error":"#DIV/0!"}}]
["10L",{"$f":"VLOOKUP($A184,SummaryData!$K$5:$M$215,3,0)","v":"Wessex"},{"$f":"VLOOKUP($A184,SummaryData!$K$5:$N$215,4,0)","v":"No"},{"$f":"VLOOKUP($A184,SummaryData!$K$5:$P$215,6,0)","v":5},{"$f":"VLOOKUP(A184,SummaryData!$K$4:$T$215,10,0)","v":2.1998567332546619},5,{"$f":"IF(AND($C$5=1,$B$7<=7),VLOOKUP(A184,SummaryData!$K$5:$X$215,14,0)*100000,VLOOKUP(A184,SummaryData!$K$5:$X$215,14,0)*100 )","v":77.586344803314617},12,{"$f":"VLOOKUP($A184,cost_data!$A$5:$BB$215,$D$6,0)/VLOOKUP($A184,cost_data!$A$5:$BB$215,$F$6,0)","v":2.1998567332546619},{"$f":"IFERROR(VLOOKUP($A184,cost_data!$A$5:$BB$215,$H$6,0)/VLOOKUP($A184,cost_data!$A$5:$BB$215,$J$6,0),0)","v":2.0464945900203295},{"$f":"IF(AND($C$5=1,$B$7<=7),VLOOKUP($A184,outcome_data!$A$1:$BJ$216,$D$7,0)/VLOOKUP($A184,outcome_data!$A$1:$BJ$216,$F$7,0)*100000,VLOOKUP($A184,outcome_data!$A$1:$BJ$216,$D$7,0)/VLOOKUP($A184,outcome_data!$A$1:$BJ$216,$F$7,0)*100)","v":77.586344803314617},{"$f":"IF(AND($C$5=1,$B$7<=7),VLOOKUP($A184,outcome_data!$A$1:$BJ$216,$H$7,0)/VLOOKUP($A184,outcome_data!$A$1:$BJ$216,$J$7,0)*100000,VLOOKUP($A184,outcome_data!$A$1:$BJ$216,$H$7,0)/VLOOKUP($A184,outcome_data!$A$1:$BJ$216,$J$7,0)*100)","v":{"$error":"#DIV/0!"}}]
["10M",{"$f":"VLOOKUP($A185,SummaryData!$K$5:$M$215,3,0)","v":"Thames"},{"$f":"VLOOKUP($A185,SummaryData!$K$5:$N$215,4,0)","v":"No"},{"$f":"VLOOKUP($A185,SummaryData!$K$5:$P$215,6,0)","v":10},{"$f":"VLOOKUP(A185,SummaryData!$K$4:$T$215,10,0)","v":1.2089890223514763},3,{"$f":"IF(AND($C$5=1,$B$7<=7),VLOOKUP(A185,SummaryData!$K$5:$X$215,14,0)*100000,VLOOKUP(A185,SummaryData!$K$5:$X$215,14,0)*100 )","v":58.032329623632258},7,{"$f":"VLOOKUP($A185,cost_data!$A$5:$BB$215,$D$6,0)/VLOOKUP($A185,cost_data!$A$5:$BB$215,$F$6,0)","v":1.2089890223514763},{"$f":"IFERROR(VLOOKUP($A185,cost_data!$A$5:$BB$215,$H$6,0)/VLOOKUP($A185,cost_data!$A$5:$BB$215,$J$6,0),0)","v":1.1527294840814846},{"$f":"IF(AND($C$5=1,$B$7<=7),VLOOKUP($A185,outcome_data!$A$1:$BJ$216,$D$7,0)/VLOOKUP($A185,outcome_data!$A$1:$BJ$216,$F$7,0)*100000,VLOOKUP($A185,outcome_data!$A$1:$BJ$216,$D$7,0)/VLOOKUP($A185,outcome_data!$A$1:$BJ$216,$F$7,0)*100)","v":58.032329623632258},{"$f":"IF(AND($C$5=1,$B$7<=7),VLOOKUP($A185,outcome_data!$A$1:$BJ$216,$H$7,0)/VLOOKUP($A185,outcome_data!$A$1:$BJ$216,$J$7,0)*100000,VLOOKUP($A185,outcome_data!$A$1:$BJ$216,$H$7,0)/VLOOKUP($A185,outcome_data!$A$1:$BJ$216,$J$7,0)*100)","v":{"$error":"#DIV/0!"}}]
["10N",{"$f":"VLOOKUP($A186,SummaryData!$K$5:$M$215,3,0)","v":"Thames"},{"$f":"VLOOKUP($A186,SummaryData!$K$5:$N$215,4,0)","v":"No"},{"$f":"VLOOKUP($A186,SummaryData!$K$5:$P$215,6,0)","v":9},{"$f":"VLOOKUP(A186,SummaryData!$K$4:$T$215,10,0)","v":1.6679752013413491},4,{"$f":"IF(AND($C$5=1,$B$7<=7),VLOOKUP(A186,SummaryData!$K$5:$X$215,14,0)*100000,VLOOKUP(A186,SummaryData!$K$5:$X$215,14,0)*100 )","v":44.920490731405408},4,{"$f":"VLOOKUP($A186,cost_data!$A$5:$BB$215,$D$6,0)/VLOOKUP($A186,cost_data!$A$5:$BB$215,$F$6,0)","v":1.6679752013413491},{"$f":"IFERROR(VLOOKUP($A186,cost_data!$A$5:$BB$215,$H$6,0)/VLOOKUP($A186,cost_data!$A$5:$BB$215,$J$6,0),0)","v":1.1260411779948865},{"$f":"IF(AND($C$5=1,$B$7<=7),VLOOKUP($A186,outcome_data!$A$1:$BJ$216,$D$7,0)/VLOOKUP($A186,outcome_data!$A$1:$BJ$216,$F$7,0)*100000,VLOOKUP($A186,outcome_data!$A$1:$BJ$216,$D$7,0)/VLOOKUP($A186,outcome_data!$A$1:$BJ$216,$F$7,0)*100)","v":44.920490731405408},{"$f":"IF(AND($C$5=1,$B$7<=7),VLOOKUP($A186,outcome_data!$A$1:$BJ$216,$H$7,0)/VLOOKUP($A186,outcome_data!$A$1:$BJ$216,$J$7,0)*100000,VLOOKUP($A186,outcome_data!$A$1:$BJ$216,$H$7,0)/VLOOKUP($A186,outcome_data!$A$1:$BJ$216,$J$7,0)*100)","v":{"$error":"#DIV/0!"}}]
["10Q",{"$f":"VLOOKUP($A187,SummaryData!$K$5:$M$215,3,0)","v":"Thames"},{"$f":"VLOOKUP($A187,SummaryData!$K$5:$N$215,4,0)","v":"No"},{"$f":"VLOOKUP($A187,SummaryData!$K$5:$P$215,6,0)","v":9},{"$f":"VLOOKUP(A187,SummaryData!$K$4:$T$215,10,0)","v":0.82605690439283419},2,{"$f":"IF(AND($C$5=1,$B$7<=7),VLOOKUP(A187,SummaryData!$K$5:$X$215,14,0)*100000,VLOOKUP(A187,SummaryData!$K$5:$X$215,14,0)*100 )","v":49.539500741534667},5,{"$f":"VLOOKUP($A187,cost_data!$A$5:$BB$215,$D$6,0)/VLOOKUP($A187,cost_data!$A$5:$BB$215,$F$6,0)","v":0.82605690439283419},{"$f":"IFERROR(VLOOKUP($A187,cost_data!$A$5:$BB$215,$H$6,0)/VLOOKUP($A187,cost_data!$A$5:$BB$215,$J$6,0),0)","v":0.6898749883358245},{"$f":"IF(AND($C$5=1,$B$7<=7),VLOOKUP($A187,outcome_data!$A$1:$BJ$216,$D$7,0)/VLOOKUP($A187,outcome_data!$A$1:$BJ$216,$F$7,0)*100000,VLOOKUP($A187,outcome_data!$A$1:$BJ$216,$D$7,0)/VLOOKUP($A187,outcome_data!$A$1:$BJ$216,$F$7,0)*100)","v":49.539500741534667},{"$f":"IF(AND($C$5=1,$B$7<=7),VLOOKUP($A187,outcome_data!$A$1:$BJ$216,$H$7,0)/VLOOKUP($A187,outcome_data!$A$1:$BJ$216,$J$7,0)*100000,VLOOKUP($A187,outcome_data!$A$1:$BJ$216,$H$7,0)/VLOOKUP($A187,outcome_data!$A$1:$BJ$216,$J$7,0)*100)","v":{"$error":"#DIV/0!"}}]
["10R",{"$f":"VLOOKUP($A188,SummaryData!$K$5:$M$215,3,0)","v":"Wessex"},{"$f":"VLOOKUP($A188,SummaryData!$K$5:$N$215,4,0)","v":"No"},{"$f":"VLOOKUP($A188,SummaryData!$K$5:$P$215,6,0)","v":4},{"$f":"VLOOKUP(A188,SummaryData!$K$4:$T$215,10,0)","v":1.914719204125227},5,{"$f":"IF(AND($C$5=1,$B$7<=7),VLOOKUP(A188,SummaryData!$K$5:$X$215,14,0)*100000,VLOOKUP(A188,SummaryData!$K$5:$X$215,14,0)*100 )","v":80.314557136662856},13,{"$f":"VLOOKUP($A188,cost_data!$A$5:$BB$215,$D$6,0)/VLOOKUP($A188,cost_data!$A$5:$BB$215,$F$6,0)","v":1.914719204125227},{"$f":"IFERROR(VLOOKUP($A188,cost_data!$A$5:$BB$215,$H$6,0)/VLOOKUP($A188,cost_data!$A$5:$BB$215,$J$6,0),0)","v":2.0918062355058509},{"$f":"IF(AND($C$5=1,$B$7<=7),VLOOKUP($A188,outcome_data!$A$1:$BJ$216,$D$7,0)/VLOOKUP($A188,outcome_data!$A$1:$BJ$216,$F$7,0)*100000,VLOOKUP($A188,outcome_data!$A$1:$BJ$216,$D$7,0)/VLOOKUP($A188,outcome_data!$A$1:$BJ$216,$F$7,0)*100)","v":80.314557136662856},{"$f":"IF(AND($C$5=1,$B$7<=7),VLOOKUP($A188,outcome_data!$A$1:$BJ$216,$H$7,0)/VLOOKUP($A188,outcome_data!$A$1:$BJ$216,$J$7,0)*100000,VLOOKUP($A188,outcome_data!$A$1:$BJ$216,$H$7,0)/VLOOKUP($A188,outcome_data!$A$1:$BJ$216,$J$7,0)*100)","v":{"$error":"#DIV/0!"}}]
["10T",{"$f":"VLOOKUP($A189,SummaryData!$K$5:$M$215,3,0)","v":"Thames"},{"$f":"VLOOKUP($A189,SummaryData!$K$5:$N$215,4,0)","v":"No"},{"$f":"VLOOKUP($A189,SummaryData!$K$5:$P$215,6,0)","v":4},{"$f":"VLOOKUP(A189,SummaryData!$K$4:$T$215,10,0)","v":0.37425935576234787},1,{"$f":"IF(AND($C$5=1,$B$7<=7),VLOOKUP(A189,SummaryData!$K$5:$X$215,14,0)*100000,VLOOKUP(A189,SummaryData!$K$5:$X$215,14,0)*100 )","v":61.196461990592823},8,{"$f":"VLOOKUP($A189,cost_data!$A$5:$BB$215,$D$6,0)/VLOOKUP($A189,cost_data!$A$5:$BB$215,$F$6,0)","v":0.37425935576234787},{"$f":"IFERROR(VLOOKUP($A189,cost_data!$A$5:$BB$215,$H$6,0)/VLOOKUP($A189,cost_data!$A$5:$BB$215,$J$6,0),0)","v":0.2479708191643728},{"$f":"IF(AND($C$5=1,$B$7<=7),VLOOKUP($A189,outcome_data!$A$1:$BJ$216,$D$7,0)/VLOOKUP($A189,outcome_data!$A$1:$BJ$216,$F$7,0)*100000,VLOOKUP($A189,outcome_data!$A$1:$BJ$216,$D$7,0)/VLOOKUP($A189,outcome_data!$A$1:$BJ$216,$F$7,0)*100)","v":61.196461990592823},{"$f":"IF(AND($C$5=1,$B$7<=7),VLOOKUP($A189,outcome_data!$A$1:$BJ$216,$H$7,0)/VLOOKUP($A189,outcome_data!$A$1:$BJ$216,$J$7,0)*100000,VLOOKUP($A189,outcome_data!$A$1:$BJ$216,$H$7,0)/VLOOKUP($A189,outcome_data!$A$1:$BJ$216,$J$7,0)*100)","v":{"$error":"#DIV/0!"}}]
["10V",{"$f":"VLOOKUP($A190,SummaryData!$K$5:$M$215,3,0)","v":"Wessex"},{"$f":"VLOOKUP($A190,SummaryData!$K$5:$N$215,4,0)","v":"No"},{"$f":"VLOOKUP($A190,SummaryData!$K$5:$P$215,6,0)","v":7},{"$f":"VLOOKUP(A190,SummaryData!$K$4:$T$215,10,0)","v":3.1745840869569326},8,{"$f":"IF(AND($C$5=1,$B$7<=7),VLOOKUP(A190,SummaryData!$K$5:$X$215,14,0)*100000,VLOOKUP(A190,SummaryData!$K$5:$X$215,14,0)*100 )","v":61.019934947443268},8,{"$f":"VLOOKUP($A190,cost_data!$A$5:$BB$215,$D$6,0)/VLOOKUP($A190,cost_data!$A$5:$BB$215,$F$6,0)","v":3.1745840869569326},{"$f":"IFERROR(VLOOKUP($A190,cost_data!$A$5:$BB$215,$H$6,0)/VLOOKUP($A190,cost_data!$A$5:$BB$215,$J$6,0),0)","v":3.984757259324645},{"$f":"IF(AND($C$5=1,$B$7<=7),VLOOKUP($A190,outcome_data!$A$1:$BJ$216,$D$7,0)/VLOOKUP($A190,outcome_data!$A$1:$BJ$216,$F$7,0)*100000,VLOOKUP($A190,outcome_data!$A$1:$BJ$216,$D$7,0)/VLOOKUP($A190,outcome_data!$A$1:$BJ$216,$F$7,0)*100)","v":61.019934947443268},{"$f":"IF(AND($C$5=1,$B$7<=7),VLOOKUP($A190,outcome_data!$A$1:$BJ$216,$H$7,0)/VLOOKUP($A190,outcome_data!$A$1:$BJ$216,$J$7,0)*100000,VLOOKUP($A190,outcome_data!$A$1:$BJ$216,$H$7,0)/VLOOKUP($A190,outcome_data!$A$1:$BJ$216,$J$7,0)*100)","v":{"$error":"#DIV/0!"}}]
["10W",{"$f":"VLOOKUP($A191,SummaryData!$K$5:$M$215,3,0)","v":"Thames"},{"$f":"VLOOKUP($A191,SummaryData!$K$5:$N$215,4,0)","v":"No"},{"$f":"VLOOKUP($A191,SummaryData!$K$5:$P$215,6,0)","v":5},{"$f":"VLOOKUP(A191,SummaryData!$K$4:$T$215,10,0)","v":0.56726043391671699},1,{"$f":"IF(AND($C$5=1,$B$7<=7),VLOOKUP(A191,SummaryData!$K$5:$X$215,14,0)*100000,VLOOKUP(A191,SummaryData!$K$5:$X$215,14,0)*100 )","v":47.910694465516279},5,{"$f":"VLOOKUP($A191,cost_data!$A$5:$BB$215,$D$6,0)/VLOOKUP($A191,cost_data!$A$5:$BB$215,$F$6,0)","v":0.56726043391671699},{"$f":"IFERROR(VLOOKUP($A191,cost_data!$A$5:$BB$215,$H$6,0)/VLOOKUP($A191,cost_data!$A$5:$BB$215,$J$6,0),0)","v":0.51322121840482104},{"$f":"IF(AND($C$5=1,$B$7<=7),VLOOKUP($A191,outcome_data!$A$1:$BJ$216,$D$7,0)/VLOOKUP($A191,outcome_data!$A$1:$BJ$216,$F$7,0)*100000,VLOOKUP($A191,outcome_data!$A$1:$BJ$216,$D$7,0)/VLOOKUP($A191,outcome_data!$A$1:$BJ$216,$F$7,0)*100)","v":47.910694465516279},{"$f":"IF(AND($C$5=1,$B$7<=7),VLOOKUP($A191,outcome_data!$A$1:$BJ$216,$H$7,0)/VLOOKUP($A191,outcome_data!$A$1:$BJ$216,$J$7,0)*100000,VLOOKUP($A191,outcome_data!$A$1:$BJ$216,$H$7,0)/VLOOKUP($A191,outcome_data!$A$1:$BJ$216,$J$7,0)*100)","v":{"$error":"#DIV/0!"}}]
["10X",{"$f":"VLOOKUP($A192,SummaryData!$K$5:$M$215,3,0)","v":"Wessex"},{"$f":"VLOOKUP($A192,SummaryData!$K$5:$N$215,4,0)","v":"No"},{"$f":"VLOOKUP($A192,SummaryData!$K$5:$P$215,6,0)","v":4},{"$f":"VLOOKUP(A192,SummaryData!$K$4:$T$215,10,0)","v":1.1044491221780293},3,{"$f":"IF(AND($C$5=1,$B$7<=7),VLOOKUP(A192,SummaryData!$K$5:$X$215,14,0)*100000,VLOOKUP(A192,SummaryData!$K$5:$X$215,14,0)*100 )","v":56.663101945699196},7,{"$f":"VLOOKUP($A192,cost_data!$A$5:$BB$215,$D$6,0)/VLOOKUP($A192,cost_data!$A$5:$BB$215,$F$6,0)","v":1.1044491221780293},{"$f":"IFERROR(VLOOKUP($A192,cost_data!$A$5:$BB$215,$H$6,0)/VLOOKUP($A192,cost_data!$A$5:$BB$215,$J$6,0),0)","v":0.95202032149128701},{"$f":"IF(AND($C$5=1,$B$7<=7),VLOOKUP($A192,outcome_data!$A$1:$BJ$216,$D$7,0)/VLOOKUP($A192,outcome_data!$A$1:$BJ$216,$F$7,0)*100000,VLOOKUP($A192,outcome_data!$A$1:$BJ$216,$D$7,0)/VLOOKUP($A192,outcome_data!$A$1:$BJ$216,$F$7,0)*100)","v":56.663101945699196},{"$f":"IF(AND($C$5=1,$B$7<=7),VLOOKUP($A192,outcome_data!$A$1:$BJ$216,$H$7,0)/VLOOKUP($A192,outcome_data!$A$1:$BJ$216,$J$7,0)*100000,VLOOKUP($A192,outcome_data!$A$1:$BJ$216,$H$7,0)/VLOOKUP($A192,outcome_data!$A$1:$BJ$216,$J$7,0)*100)","v":{"$error":"#DIV/0!"}}]
["10Y",{"$f":"VLOOKUP($A193,SummaryData!$K$5:$M$215,3,0)","v":"Thames"},{"$f":"VLOOKUP($A193,SummaryData!$K$5:$N$215,4,0)","v":"No"},{"$f":"VLOOKUP($A193,SummaryData!$K$5:$P$215,6,0)","v":10},{"$f":"VLOOKUP(A193,SummaryData!$K$4:$T$215,10,0)","v":1.0941973373978673},3,{"$f":"IF(AND($C$5=1,$B$7<=7),VLOOKUP(A193,SummaryData!$K$5:$X$215,14,0)*100000,VLOOKUP(A193,SummaryData!$K$5:$X$215,14,0)*100 )","v":43.479661180714359},4,{"$f":"VLOOKUP($A193,cost_data!$A$5:$BB$215,$D$6,0)/VLOOKUP($A193,cost_data!$A$5:$BB$215,$F$6,0)","v":1.0941973373978673},{"$f":"IFERROR(VLOOKUP($A193,cost_data!$A$5:$BB$215,$H$6,0)/VLOOKUP($A193,cost_data!$A$5:$BB$215,$J$6,0),0)","v":0.92856555292659515},{"$f":"IF(AND($C$5=1,$B$7<=7),VLOOKUP($A193,outcome_data!$A$1:$BJ$216,$D$7,0)/VLOOKUP($A193,outcome_data!$A$1:$BJ$216,$F$7,0)*100000,VLOOKUP($A193,outcome_data!$A$1:$BJ$216,$D$7,0)/VLOOKUP($A193,outcome_data!$A$1:$BJ$216,$F$7,0)*100)","v":43.479661180714359},{"$f":"IF(AND($C$5=1,$B$7<=7),VLOOKUP($A193,outcome_data!$A$1:$BJ$216,$H$7,0)/VLOOKUP($A193,outcome_data!$A$1:$BJ$216,$J$7,0)*100000,VLOOKUP($A193,outcome_data!$A$1:$BJ$216,$H$7,0)/VLOOKUP($A193,outcome_data!$A$1:$BJ$216,$J$7,0)*100)","v":{"$error":"#DIV/0!"}}]
["11A",{"$f":"VLOOKUP($A194,SummaryData!$K$5:$M$215,3,0)","v":"Wessex"},{"$f":"VLOOKUP($A194,SummaryData!$K$5:$N$215,4,0)","v":"No"},{"$f":"VLOOKUP($A194,SummaryData!$K$5:$P$215,6,0)","v":10},{"$f":"VLOOKUP(A194,SummaryData!$K$4:$T$215,10,0)","v":2.032107990260493},5,{"$f":"IF(AND($C$5=1,$B$7<=7),VLOOKUP(A194,SummaryData!$K$5:$X$215,14,0)*100000,VLOOKUP(A194,SummaryData!$K$5:$X$215,14,0)*100 )","v":57.091524466480728},7,{"$f":"VLOOKUP($A194,cost_data!$A$5:$BB$215,$D$6,0)/VLOOKUP($A194,cost_data!$A$5:$BB$215,$F$6,0)","v":2.032107990260493},{"$f":"IFERROR(VLOOKUP($A194,cost_data!$A$5:$BB$215,$H$6,0)/VLOOKUP($A194,cost_data!$A$5:$BB$215,$J$6,0),0)","v":1.934401341857876},{"$f":"IF(AND($C$5=1,$B$7<=7),VLOOKUP($A194,outcome_data!$A$1:$BJ$216,$D$7,0)/VLOOKUP($A194,outcome_data!$A$1:$BJ$216,$F$7,0)*100000,VLOOKUP($A194,outcome_data!$A$1:$BJ$216,$D$7,0)/VLOOKUP($A194,outcome_data!$A$1:$BJ$216,$F$7,0)*100)","v":57.091524466480728},{"$f":"IF(AND($C$5=1,$B$7<=7),VLOOKUP($A194,outcome_data!$A$1:$BJ$216,$H$7,0)/VLOOKUP($A194,outcome_data!$A$1:$BJ$216,$J$7,0)*100000,VLOOKUP($A194,outcome_data!$A$1:$BJ$216,$H$7,0)/VLOOKUP($A194,outcome_data!$A$1:$BJ$216,$J$7,0)*100)","v":{"$error":"#DIV/0!"}}]
["11C",{"$f":"VLOOKUP($A195,SummaryData!$K$5:$M$215,3,0)","v":"Thames"},{"$f":"VLOOKUP($A195,SummaryData!$K$5:$N$215,4,0)","v":"No"},{"$f":"VLOOKUP($A195,SummaryData!$K$5:$P$215,6,0)","v":10},{"$f":"VLOOKUP(A195,SummaryData!$K$4:$T$215,10,0)","v":0.97965564159987417},2,{"$f":"IF(AND($C$5=1,$B$7<=7),VLOOKUP(A195,SummaryData!$K$5:$X$215,14,0)*100000,VLOOKUP(A195,SummaryData!$K$5:$X$215,14,0)*100 )","v":53.036892462396843},6,{"$f":"VLOOKUP($A195,cost_data!$A$5:$BB$215,$D$6,0)/VLOOKUP($A195,cost_data!$A$5:$BB$215,$F$6,0)","v":0.97965564159987417},{"$f":"IFERROR(VLOOKUP($A195,cost_data!$A$5:$BB$215,$H$6,0)/VLOOKUP($A195,cost_data!$A$5:$BB$215,$J$6,0),0)","v":0.86349302754836876},{"$f":"IF(AND($C$5=1,$B$7<=7),VLOOKUP($A195,outcome_data!$A$1:$BJ$216,$D$7,0)/VLOOKUP($A195,outcome_data!$A$1:$BJ$216,$F$7,0)*100000,VLOOKUP($A195,outcome_data!$A$1:$BJ$216,$D$7,0)/VLOOKUP($A195,outcome_data!$A$1:$BJ$216,$F$7,0)*100)","v":53.036892462396843},{"$f":"IF(AND($C$5=1,$B$7<=7),VLOOKUP($A195,outcome_data!$A$1:$BJ$216,$H$7,0)/VLOOKUP($A195,outcome_data!$A$1:$BJ$216,$J$7,0)*100000,VLOOKUP($A195,outcome_data!$A$1:$BJ$216,$H$7,0)/VLOOKUP($A195,outcome_data!$A$1:$BJ$216,$J$7,0)*100)","v":{"$error":"#DIV/0!"}}]
["11D",{"$f":"VLOOKUP($A196,SummaryData!$K$5:$M$215,3,0)","v":"Thames"},{"$f":"VLOOKUP($A196,SummaryData!$K$5:$N$215,4,0)","v":"No"},{"$f":"VLOOKUP($A196,SummaryData!$K$5:$P$215,6,0)","v":10},{"$f":"VLOOKUP(A196,SummaryData!$K$4:$T$215,10,0)","v":1.6207804552130161},4,{"$f":"IF(AND($C$5=1,$B$7<=7),VLOOKUP(A196,SummaryData!$K$5:$X$215,14,0)*100000,VLOOKUP(A196,SummaryData!$K$5:$X$215,14,0)*100 )","v":51.254701233575986},6,{"$f":"VLOOKUP($A196,cost_data!$A$5:$BB$215,$D$6,0)/VLOOKUP($A196,cost_data!$A$5:$BB$215,$F$6,0)","v":1.6207804552130161},{"$f":"IFERROR(VLOOKUP($A196,cost_data!$A$5:$BB$215,$H$6,0)/VLOOKUP($A196,cost_data!$A$5:$BB$215,$J$6,0),0)","v":1.4751328594491069},{"$f":"IF(AND($C$5=1,$B$7<=7),VLOOKUP($A196,outcome_data!$A$1:$BJ$216,$D$7,0)/VLOOKUP($A196,outcome_data!$A$1:$BJ$216,$F$7,0)*100000,VLOOKUP($A196,outcome_data!$A$1:$BJ$216,$D$7,0)/VLOOKUP($A196,outcome_data!$A$1:$BJ$216,$F$7,0)*100)","v":51.254701233575986},{"$f":"IF(AND($C$5=1,$B$7<=7),VLOOKUP($A196,outcome_data!$A$1:$BJ$216,$H$7,0)/VLOOKUP($A196,outcome_data!$A$1:$BJ$216,$J$7,0)*100000,VLOOKUP($A196,outcome_data!$A$1:$BJ$216,$H$7,0)/VLOOKUP($A196,outcome_data!$A$1:$BJ$216,$J$7,0)*100)","v":{"$error":"#DIV/0!"}}]
["11E",{"$f":"VLOOKUP($A197,SummaryData!$K$5:$M$215,3,0)","v":"South West"},{"$f":"VLOOKUP($A197,SummaryData!$K$5:$N$215,4,0)","v":"No"},{"$f":"VLOOKUP($A197,SummaryData!$K$5:$P$215,6,0)","v":9},{"$f":"VLOOKUP(A197,SummaryData!$K$4:$T$215,10,0)","v":1.4587461586147064},4,{"$f":"IF(AND($C$5=1,$B$7<=7),VLOOKUP(A197,SummaryData!$K$5:$X$215,14,0)*100000,VLOOKUP(A197,SummaryData!$K$5:$X$215,14,0)*100 )","v":46.460433962577227},4,{"$f":"VLOOKUP($A197,cost_data!$A$5:$BB$215,$D$6,0)/VLOOKUP($A197,cost_data!$A$5:$BB$215,$F$6,0)","v":1.4587461586147064},{"$f":"IFERROR(VLOOKUP($A197,cost_data!$A$5:$BB$215,$H$6,0)/VLOOKUP($A197,cost_data!$A$5:$BB$215,$J$6,0),0)","v":1.4151479031075309},{"$f":"IF(AND($C$5=1,$B$7<=7),VLOOKUP($A197,outcome_data!$A$1:$BJ$216,$D$7,0)/VLOOKUP($A197,outcome_data!$A$1:$BJ$216,$F$7,0)*100000,VLOOKUP($A197,outcome_data!$A$1:$BJ$216,$D$7,0)/VLOOKUP($A197,outcome_data!$A$1:$BJ$216,$F$7,0)*100)","v":46.460433962577227},{"$f":"IF(AND($C$5=1,$B$7<=7),VLOOKUP($A197,outcome_data!$A$1:$BJ$216,$H$7,0)/VLOOKUP($A197,outcome_data!$A$1:$BJ$216,$J$7,0)*100000,VLOOKUP($A197,outcome_data!$A$1:$BJ$216,$H$7,0)/VLOOKUP($A197,outcome_data!$A$1:$BJ$216,$J$7,0)*100)","v":{"$error":"#DIV/0!"}}]
["11H",{"$f":"VLOOKUP($A198,SummaryData!$K$5:$M$215,3,0)","v":"South West"},{"$f":"VLOOKUP($A198,SummaryData!$K$5:$N$215,4,0)","v":"No"},{"$f":"VLOOKUP($A198,SummaryData!$K$5:$P$215,6,0)","v":4},{"$f":"VLOOKUP(A198,SummaryData!$K$4:$T$215,10,0)","v":1.0582525706850421},3,{"$f":"IF(AND($C$5=1,$B$7<=7),VLOOKUP(A198,SummaryData!$K$5:$X$215,14,0)*100000,VLOOKUP(A198,SummaryData!$K$5:$X$215,14,0)*100 )","v":62.075288770733799},8,{"$f":"VLOOKUP($A198,cost_data!$A$5:$BB$215,$D$6,0)/VLOOKUP($A198,cost_data!$A$5:$BB$215,$F$6,0)","v":1.0582525706850421},{"$f":"IFERROR(VLOOKUP($A198,cost_data!$A$5:$BB$215,$H$6,0)/VLOOKUP($A198,cost_data!$A$5:$BB$215,$J$6,0),0)","v":0.96554633137829449},{"$f":"IF(AND($C$5=1,$B$7<=7),VLOOKUP($A198,outcome_data!$A$1:$BJ$216,$D$7,0)/VLOOKUP($A198,outcome_data!$A$1:$BJ$216,$F$7,0)*100000,VLOOKUP($A198,outcome_data!$A$1:$BJ$216,$D$7,0)/VLOOKUP($A198,outcome_data!$A$1:$BJ$216,$F$7,0)*100)","v":62.075288770733799},{"$f":"IF(AND($C$5=1,$B$7<=7),VLOOKUP($A198,outcome_data!$A$1:$BJ$216,$H$7,0)/VLOOKUP($A198,outcome_data!$A$1:$BJ$216,$J$7,0)*100000,VLOOKUP($A198,outcome_data!$A$1:$BJ$216,$H$7,0)/VLOOKUP($A198,outcome_data!$A$1:$BJ$216,$J$7,0)*100)","v":{"$error":"#DIV/0!"}}]
["11J",{"$f":"VLOOKUP($A199,SummaryData!$K$5:$M$215,3,0)","v":"Wessex"},{"$f":"VLOOKUP($A199,SummaryData!$K$5:$N$215,4,0)","v":"No"},{"$f":"VLOOKUP($A199,SummaryData!$K$5:$P$215,6,0)","v":7},{"$f":"VLOOKUP(A199,SummaryData!$K$4:$T$215,10,0)","v":2.308040878925925},6,{"$f":"IF(AND($C$5=1,$B$7<=7),VLOOKUP(A199,SummaryData!$K$5:$X$215,14,0)*100000,VLOOKUP(A199,SummaryData!$K$5:$X$215,14,0)*100 )","v":65.210303227910003},9,{"$f":"VLOOKUP($A199,cost_data!$A$5:$BB$215,$D$6,0)/VLOOKUP($A199,cost_data!$A$5:$BB$215,$F$6,0)","v":2.308040878925925},{"$f":"IFERROR(VLOOKUP($A199,cost_data!$A$5:$BB$215,$H$6,0)/VLOOKUP($A199,cost_data!$A$5:$BB$215,$J$6,0),0)","v":2.3083528876356874},{"$f":"IF(AND($C$5=1,$B$7<=7),VLOOKUP($A199,outcome_data!$A$1:$BJ$216,$D$7,0)/VLOOKUP($A199,outcome_data!$A$1:$BJ$216,$F$7,0)*100000,VLOOKUP($A199,outcome_data!$A$1:$BJ$216,$D$7,0)/VLOOKUP($A199,outcome_data!$A$1:$BJ$216,$F$7,0)*100)","v":65.210303227910003},{"$f":"IF(AND($C$5=1,$B$7<=7),VLOOKUP($A199,outcome_data!$A$1:$BJ$216,$H$7,0)/VLOOKUP($A199,outcome_data!$A$1:$BJ$216,$J$7,0)*100000,VLOOKUP($A199,outcome_data!$A$1:$BJ$216,$H$7,0)/VLOOKUP($A199,outcome_data!$A$1:$BJ$216,$J$7,0)*100)","v":{"$error":"#DIV/0!"}}]
["11M",{"$f":"VLOOKUP($A200,SummaryData!$K$5:$M$215,3,0)","v":"South West"},{"$f":"VLOOKUP($A200,SummaryData!$K$5:$N$215,4,0)","v":"No"},{"$f":"VLOOKUP($A200,SummaryData!$K$5:$P$215,6,0)","v":8},{"$f":"VLOOKUP(A200,SummaryData!$K$4:$T$215,10,0)","v":1.20494168009799},3,{"$f":"IF(AND($C$5=1,$B$7<=7),VLOOKUP(A200,SummaryData!$K$5:$X$215,14,0)*100000,VLOOKUP(A200,SummaryData!$K$5:$X$215,14,0)*100 )","v":64.437438151566056},9,{"$f":"VLOOKUP($A200,cost_data!$A$5:$BB$215,$D$6,0)/VLOOKUP($A200,cost_data!$A$5:$BB$215,$F$6,0)","v":1.20494168009799},{"$f":"IFERROR(VLOOKUP($A200,cost_data!$A$5:$BB$215,$H$6,0)/VLOOKUP($A200,cost_data!$A$5:$BB$215,$J$6,0),0)","v":1.0168667770871094},{"$f":"IF(AND($C$5=1,$B$7<=7),VLOOKUP($A200,outcome_data!$A$1:$BJ$216,$D$7,0)/VLOOKUP($A200,outcome_data!$A$1:$BJ$216,$F$7,0)*100000,VLOOKUP($A200,outcome_data!$A$1:$BJ$216,$D$7,0)/VLOOKUP($A200,outcome_data!$A$1:$BJ$216,$F$7,0)*100)","v":64.437438151566056},{"$f":"IF(AND($C$5=1,$B$7<=7),VLOOKUP($A200,outcome_data!$A$1:$BJ$216,$H$7,0)/VLOOKUP($A200,outcome_data!$A$1:$BJ$216,$J$7,0)*100000,VLOOKUP($A200,outcome_data!$A$1:$BJ$216,$H$7,0)/VLOOKUP($A200,outcome_data!$A$1:$BJ$216,$J$7,0)*100)","v":{"$error":"#DIV/0!"}}]
["11N",{"$f":"VLOOKUP($A201,SummaryData!$K$5:$M$215,3,0)","v":"South West"},{"$f":"VLOOKUP($A201,SummaryData!$K$5:$N$215,4,0)","v":"No"},{"$f":"VLOOKUP($A201,SummaryData!$K$5:$P$215,6,0)","v":5},{"$f":"VLOOKUP(A201,SummaryData!$K$4:$T$215,10,0)","v":1.93129721400393},5,{"$f":"IF(AND($C$5=1,$B$7<=7),VLOOKUP(A201,SummaryData!$K$5:$X$215,14,0)*100000,VLOOKUP(A201,SummaryData!$K$5:$X$215,14,0)*100 )","v":79.770039487164183},13,{"$f":"VLOOKUP($A201,cost_data!$A$5:$BB$215,$D$6,0)/VLOOKUP($A201,cost_data!$A$5:$BB$215,$F$6,0)","v":1.93129721400393},{"$f":"IFERROR(VLOOKUP($A201,cost_data!$A$5:$BB$215,$H$6,0)/VLOOKUP($A201,cost_data!$A$5:$BB$215,$J$6,0),0)","v":1.6796773668866609},{"$f":"IF(AND($C$5=1,$B$7<=7),VLOOKUP($A201,outcome_data!$A$1:$BJ$216,$D$7,0)/VLOOKUP($A201,outcome_data!$A$1:$BJ$216,$F$7,0)*100000,VLOOKUP($A201,outcome_data!$A$1:$BJ$216,$D$7,0)/VLOOKUP($A201,outcome_data!$A$1:$BJ$216,$F$7,0)*100)","v":79.770039487164183},{"$f":"IF(AND($C$5=1,$B$7<=7),VLOOKUP($A201,outcome_data!$A$1:$BJ$216,$H$7,0)/VLOOKUP($A201,outcome_data!$A$1:$BJ$216,$J$7,0)*100000,VLOOKUP($A201,outcome_data!$A$1:$BJ$216,$H$7,0)/VLOOKUP($A201,outcome_data!$A$1:$BJ$216,$J$7,0)*100)","v":{"$error":"#DIV/0!"}}]
["11T",{"$f":"VLOOKUP($A202,SummaryData!$K$5:$M$215,3,0)","v":"South West"},{"$f":"VLOOKUP($A202,SummaryData!$K$5:$N$215,4,0)","v":"No"},{"$f":"VLOOKUP($A202,SummaryData!$K$5:$P$215,6,0)","v":8},{"$f":"VLOOKUP(A202,SummaryData!$K$4:$T$215,10,0)","v":2.733278097825576},{"$f":"IF(E202=$AD$15,1,ROUNDUP(((E202-$AD$15)/($AD$14-$AD$15)*20),0))","v":7},{"$f":"IF(AND($C$5=1,$B$7<=7),VLOOKUP(A202,SummaryData!$K$5:$X$215,14,0)*100000,VLOOKUP(A202,SummaryData!$K$5:$X$215,14,0)*100 )","v":69.867720591685739},{"$f":"IF(G202=$AX$15,1,ROUNDUP(((G202-$AX$15)/($AX$14-$AX$15)*20),0))","v":10},{"$f":"VLOOKUP($A202,cost_data!$A$5:$BB$215,$D$6,0)/VLOOKUP($A202,cost_data!$A$5:$BB$215,$F$6,0)","v":2.733278097825576},{"$f":"IFERROR(VLOOKUP($A202,cost_data!$A$5:$BB$215,$H$6,0)/VLOOKUP($A202,cost_data!$A$5:$BB$215,$J$6,0),0)","v":2.3289023884304494},{"$f":"IF(AND($C$5=1,$B$7<=7),VLOOKUP($A202,outcome_data!$A$1:$BJ$216,$D$7,0)/VLOOKUP($A202,outcome_data!$A$1:$BJ$216,$F$7,0)*100000,VLOOKUP($A202,outcome_data!$A$1:$BJ$216,$D$7,0)/VLOOKUP($A202,outcome_data!$A$1:$BJ$216,$F$7,0)*100)","v":69.867720591685739},{"$f":"IF(AND($C$5=1,$B$7<=7),VLOOKUP($A202,outcome_data!$A$1:$BJ$216,$H$7,0)/VLOOKUP($A202,outcome_data!$A$1:$BJ$216,$J$7,0)*100000,VLOOKUP($A202,outcome_data!$A$1:$BJ$216,$H$7,0)/VLOOKUP($A202,outcome_data!$A$1:$BJ$216,$J$7,0)*100)","v":{"$error":"#DIV/0!"}}]
["11X",{"$f":"VLOOKUP($A203,SummaryData!$K$5:$M$215,3,0)","v":"South West"},{"$f":"VLOOKUP($A203,SummaryData!$K$5:$N$215,4,0)","v":"No"},{"$f":"VLOOKUP($A203,SummaryData!$K$5:$P$215,6,0)","v":7},{"$f":"VLOOKUP(A203,SummaryData!$K$4:$T$215,10,0)","v":2.7503890801109354},7,{"$f":"IF(AND($C$5=1,$B$7<=7),VLOOKUP(A203,SummaryData!$K$5:$X$215,14,0)*100000,VLOOKUP(A203,SummaryData!$K$5:$X$215,14,0)*100 )","v":69.862752186257353},10,{"$f":"VLOOKUP($A203,cost_data!$A$5:$BB$215,$D$6,0)/VLOOKUP($A203,cost_data!$A$5:$BB$215,$F$6,0)","v":2.7503890801109354},{"$f":"IFERROR(VLOOKUP($A203,cost_data!$A$5:$BB$215,$H$6,0)/VLOOKUP($A203,cost_data!$A$5:$BB$215,$J$6,0),0)","v":2.0882334645373613},{"$f":"IF(AND($C$5=1,$B$7<=7),VLOOKUP($A203,outcome_data!$A$1:$BJ$216,$D$7,0)/VLOOKUP($A203,outcome_data!$A$1:$BJ$216,$F$7,0)*100000,VLOOKUP($A203,outcome_data!$A$1:$BJ$216,$D$7,0)/VLOOKUP($A203,outcome_data!$A$1:$BJ$216,$F$7,0)*100)","v":69.862752186257353},{"$f":"IF(AND($C$5=1,$B$7<=7),VLOOKUP($A203,outcome_data!$A$1:$BJ$216,$H$7,0)/VLOOKUP($A203,outcome_data!$A$1:$BJ$216,$J$7,0)*100000,VLOOKUP($A203,outcome_data!$A$1:$BJ$216,$H$7,0)/VLOOKUP($A203,outcome_data!$A$1:$BJ$216,$J$7,0)*100)","v":{"$error":"#DIV/0!"}}]
["12A",{"$f":"VLOOKUP($A204,SummaryData!$K$5:$M$215,3,0)","v":"South West"},{"$f":"VLOOKUP($A204,SummaryData!$K$5:$N$215,4,0)","v":"No"},{"$f":"VLOOKUP($A204,SummaryData!$K$5:$P$215,6,0)","v":10},{"$f":"VLOOKUP(A204,SummaryData!$K$4:$T$215,10,0)","v":1.9946704419072441},5,{"$f":"IF(AND($C$5=1,$B$7<=7),VLOOKUP(A204,SummaryData!$K$5:$X$215,14,0)*100000,VLOOKUP(A204,SummaryData!$K$5:$X$215,14,0)*100 )","v":53.614811091564043},6,{"$f":"VLOOKUP($A204,cost_data!$A$5:$BB$215,$D$6,0)/VLOOKUP($A204,cost_data!$A$5:$BB$215,$F$6,0)","v":1.9946704419072441},{"$f":"IFERROR(VLOOKUP($A204,cost_data!$A$5:$BB$215,$H$6,0)/VLOOKUP($A204,cost_data!$A$5:$BB$215,$J$6,0),0)","v":1.8144329986279952},{"$f":"IF(AND($C$5=1,$B$7<=7),VLOOKUP($A204,outcome_data!$A$1:$BJ$216,$D$7,0)/VLOOKUP($A204,outcome_data!$A$1:$BJ$216,$F$7,0)*100000,VLOOKUP($A204,outcome_data!$A$1:$BJ$216,$D$7,0)/VLOOKUP($A204,outcome_data!$A$1:$BJ$216,$F$7,0)*100)","v":53.614811091564043},{"$f":"IF(AND($C$5=1,$B$7<=7),VLOOKUP($A204,outcome_data!$A$1:$BJ$216,$H$7,0)/VLOOKUP($A204,outcome_data!$A$1:$BJ$216,$J$7,0)*100000,VLOOKUP($A204,outcome_data!$A$1:$BJ$216,$H$7,0)/VLOOKUP($A204,outcome_data!$A$1:$BJ$216,$J$7,0)*100)","v":{"$error":"#DIV/0!"}}]
["12D",{"$f":"VLOOKUP($A205,SummaryData!$K$5:$M$215,3,0)","v":"South West"},{"$f":"VLOOKUP($A205,SummaryData!$K$5:$N$215,4,0)","v":"No"},{"$f":"VLOOKUP($A205,SummaryData!$K$5:$P$215,6,0)","v":8},{"$f":"VLOOKUP(A205,SummaryData!$K$4:$T$215,10,0)","v":1.2708570357916296},3,{"$f":"IF(AND($C$5=1,$B$7<=7),VLOOKUP(A205,SummaryData!$K$5:$X$215,14,0)*100000,VLOOKUP(A205,SummaryData!$K$5:$X$215,14,0)*100 )","v":61.24607044255071},8,{"$f":"VLOOKUP($A205,cost_data!$A$5:$BB$215,$D$6,0)/VLOOKUP($A205,cost_data!$A$5:$BB$215,$F$6,0)","v":1.2708570357916296},{"$f":"IFERROR(VLOOKUP($A205,cost_data!$A$5:$BB$215,$H$6,0)/VLOOKUP($A205,cost_data!$A$5:$BB$215,$J$6,0),0)","v":1.0529804392617936},{"$f":"IF(AND($C$5=1,$B$7<=7),VLOOKUP($A205,outcome_data!$A$1:$BJ$216,$D$7,0)/VLOOKUP($A205,outcome_data!$A$1:$BJ$216,$F$7,0)*100000,VLOOKUP($A205,outcome_data!$A$1:$BJ$216,$D$7,0)/VLOOKUP($A205,outcome_data!$A$1:$BJ$216,$F$7,0)*100)","v":61.24607044255071},{"$f":"IF(AND($C$5=1,$B$7<=7),VLOOKUP($A205,outcome_data!$A$1:$BJ$216,$H$7,0)/VLOOKUP($A205,outcome_data!$A$1:$BJ$216,$J$7,0)*100000,VLOOKUP($A205,outcome_data!$A$1:$BJ$216,$H$7,0)/VLOOKUP($A205,outcome_data!$A$1:$BJ$216,$J$7,0)*100)","v":{"$error":"#DIV/0!"}}]
["12F",{"$f":"VLOOKUP($A206,SummaryData!$K$5:$M$215,3,0)","v":"Cheshire and Merseyside"},{"$f":"VLOOKUP($A206,SummaryData!$K$5:$N$215,4,0)","v":"No"},{"$f":"VLOOKUP($A206,SummaryData!$K$5:$P$215,6,0)","v":3},{"$f":"VLOOKUP(A206,SummaryData!$K$4:$T$215,10,0)","v":1.1811656012852219},3,{"$f":"IF(AND($C$5=1,$B$7<=7),VLOOKUP(A206,SummaryData!$K$5:$X$215,14,0)*100000,VLOOKUP(A206,SummaryData!$K$5:$X$215,14,0)*100 )","v":77.730792355807722},12,{"$f":"VLOOKUP($A206,cost_data!$A$5:$BB$215,$D$6,0)/VLOOKUP($A206,cost_data!$A$5:$BB$215,$F$6,0)","v":1.1811656012852219},{"$f":"IFERROR(VLOOKUP($A206,cost_data!$A$5:$BB$215,$H$6,0)/VLOOKUP($A206,cost_data!$A$5:$BB$215,$J$6,0),0)","v":0.97562695046420578},{"$f":"IF(AND($C$5=1,$B$7<=7),VLOOKUP($A206,outcome_data!$A$1:$BJ$216,$D$7,0)/VLOOKUP($A206,outcome_data!$A$1:$BJ$216,$F$7,0)*100000,VLOOKUP($A206,outcome_data!$A$1:$BJ$216,$D$7,0)/VLOOKUP($A206,outcome_data!$A$1:$BJ$216,$F$7,0)*100)","v":77.730792355807722},{"$f":"IF(AND($C$5=1,$B$7<=7),VLOOKUP($A206,outcome_data!$A$1:$BJ$216,$H$7,0)/VLOOKUP($A206,outcome_data!$A$1:$BJ$216,$J$7,0)*100000,VLOOKUP($A206,outcome_data!$A$1:$BJ$216,$H$7,0)/VLOOKUP($A206,outcome_data!$A$1:$BJ$216,$J$7,0)*100)","v":{"$error":"#DIV/0!"}}]
["13P",{"$f":"VLOOKUP($A207,SummaryData!$K$5:$M$215,3,0)","v":"West Midlands"},{"$f":"VLOOKUP($A207,SummaryData!$K$5:$N$215,4,0)","v":"No"},{"$f":"VLOOKUP($A207,SummaryData!$K$5:$P$215,6,0)","v":1},{"$f":"VLOOKUP(A207,SummaryData!$K$4:$T$215,10,0)","v":1.179289624787621},3,{"$f":"IF(AND($C$5=1,$B$7<=7),VLOOKUP(A207,SummaryData!$K$5:$X$215,14,0)*100000,VLOOKUP(A207,SummaryData!$K$5:$X$215,14,0)*100 )","v":65.945833959478335},9,{"$f":"VLOOKUP($A207,cost_data!$A$5:$BB$215,$D$6,0)/VLOOKUP($A207,cost_data!$A$5:$BB$215,$F$6,0)","v":1.179289624787621},{"$f":"IFERROR(VLOOKUP($A207,cost_data!$A$5:$BB$215,$H$6,0)/VLOOKUP($A207,cost_data!$A$5:$BB$215,$J$6,0),0)","v":1.152307304327695},{"$f":"IF(AND($C$5=1,$B$7<=7),VLOOKUP($A207,outcome_data!$A$1:$BJ$216,$D$7,0)/VLOOKUP($A207,outcome_data!$A$1:$BJ$216,$F$7,0)*100000,VLOOKUP($A207,outcome_data!$A$1:$BJ$216,$D$7,0)/VLOOKUP($A207,outcome_data!$A$1:$BJ$216,$F$7,0)*100)","v":65.945833959478335},{"$f":"IF(AND($C$5=1,$B$7<=7),VLOOKUP($A207,outcome_data!$A$1:$BJ$216,$H$7,0)/VLOOKUP($A207,outcome_data!$A$1:$BJ$216,$J$7,0)*100000,VLOOKUP($A207,outcome_data!$A$1:$BJ$216,$H$7,0)/VLOOKUP($A207,outcome_data!$A$1:$BJ$216,$J$7,0)*100)","v":{"$error":"#DIV/0!"}}]
["99A",{"$f":"VLOOKUP($A208,SummaryData!$K$5:$M$215,3,0)","v":"Cheshire and Merseyside"},{"$f":"VLOOKUP($A208,SummaryData!$K$5:$N$215,4,0)","v":"No"},{"$f":"VLOOKUP($A208,SummaryData!$K$5:$P$215,6,0)","v":1},{"$f":"VLOOKUP(A208,SummaryData!$K$4:$T$215,10,0)","v":1.1174910078775404},3,{"$f":"IF(AND($C$5=1,$B$7<=7),VLOOKUP(A208,SummaryData!$K$5:$X$215,14,0)*100000,VLOOKUP(A208,SummaryData!$K$5:$X$215,14,0)*100 )","v":74.833834382157193},11,{"$f":"VLOOKUP($A208,cost_data!$A$5:$BB$215,$D$6,0)/VLOOKUP($A208,cost_data!$A$5:$BB$215,$F$6,0)","v":1.1174910078775404},{"$f":"IFERROR(VLOOKUP($A208,cost_data!$A$5:$BB$215,$H$6,0)/VLOOKUP($A208,cost_data!$A$5:$BB$215,$J$6,0),0)","v":1.0462553398702119},{"$f":"IF(AND($C$5=1,$B$7<=7),VLOOKUP($A208,outcome_data!$A$1:$BJ$216,$D$7,0)/VLOOKUP($A208,outcome_data!$A$1:$BJ$216,$F$7,0)*100000,VLOOKUP($A208,outcome_data!$A$1:$BJ$216,$D$7,0)/VLOOKUP($A208,outcome_data!$A$1:$BJ$216,$F$7,0)*100)","v":74.833834382157193},{"$f":"IF(AND($C$5=1,$B$7<=7),VLOOKUP($A208,outcome_data!$A$1:$BJ$216,$H$7,0)/VLOOKUP($A208,outcome_data!$A$1:$BJ$216,$J$7,0)*100000,VLOOKUP($A208,outcome_data!$A$1:$BJ$216,$H$7,0)/VLOOKUP($A208,outcome_data!$A$1:$BJ$216,$J$7,0)*100)","v":{"$error":"#DIV/0!"}}]
["99C",{"$f":"VLOOKUP($A209,SummaryData!$K$5:$M$215,3,0)","v":"Northern England"},{"$f":"VLOOKUP($A209,SummaryData!$K$5:$N$215,4,0)","v":"No"},{"$f":"VLOOKUP($A209,SummaryData!$K$5:$P$215,6,0)","v":5},{"$f":"VLOOKUP(A209,SummaryData!$K$4:$T$215,10,0)","v":1.7320348452708179},4,{"$f":"IF(AND($C$5=1,$B$7<=7),VLOOKUP(A209,SummaryData!$K$5:$X$215,14,0)*100000,VLOOKUP(A209,SummaryData!$K$5:$X$215,14,0)*100 )","v":73.271256296748589},11,{"$f":"VLOOKUP($A209,cost_data!$A$5:$BB$215,$D$6,0)/VLOOKUP($A209,cost_data!$A$5:$BB$215,$F$6,0)","v":1.7320348452708179},{"$f":"IFERROR(VLOOKUP($A209,cost_data!$A$5:$BB$215,$H$6,0)/VLOOKUP($A209,cost_data!$A$5:$BB$215,$J$6,0),0)","v":1.8725441652477499},{"$f":"IF(AND($C$5=1,$B$7<=7),VLOOKUP($A209,outcome_data!$A$1:$BJ$216,$D$7,0)/VLOOKUP($A209,outcome_data!$A$1:$BJ$216,$F$7,0)*100000,VLOOKUP($A209,outcome_data!$A$1:$BJ$216,$D$7,0)/VLOOKUP($A209,outcome_data!$A$1:$BJ$216,$F$7,0)*100)","v":73.271256296748589},{"$f":"IF(AND($C$5=1,$B$7<=7),VLOOKUP($A209,outcome_data!$A$1:$BJ$216,$H$7,0)/VLOOKUP($A209,outcome_data!$A$1:$BJ$216,$J$7,0)*100000,VLOOKUP($A209,outcome_data!$A$1:$BJ$216,$H$7,0)/VLOOKUP($A209,outcome_data!$A$1:$BJ$216,$J$7,0)*100)","v":{"$error":"#DIV/0!"}}]
["99D",{"$f":"VLOOKUP($A210,SummaryData!$K$5:$M$215,3,0)","v":"East Midlands"},{"$f":"VLOOKUP($A210,SummaryData!$K$5:$N$215,4,0)","v":"No"},{"$f":"VLOOKUP($A210,SummaryData!$K$5:$P$215,6,0)","v":9},{"$f":"VLOOKUP(A210,SummaryData!$K$4:$T$215,10,0)","v":2.0971936265648718},5,{"$f":"IF(AND($C$5=1,$B$7<=7),VLOOKUP(A210,SummaryData!$K$5:$X$215,14,0)*100000,VLOOKUP(A210,SummaryData!$K$5:$X$215,14,0)*100 )","v":80.893628395773845},13,{"$f":"VLOOKUP($A210,cost_data!$A$5:$BB$215,$D$6,0)/VLOOKUP($A210,cost_data!$A$5:$BB$215,$F$6,0)","v":2.0971936265648718},{"$f":"IFERROR(VLOOKUP($A210,cost_data!$A$5:$BB$215,$H$6,0)/VLOOKUP($A210,cost_data!$A$5:$BB$215,$J$6,0),0)","v":1.9283905732935795},{"$f":"IF(AND($C$5=1,$B$7<=7),VLOOKUP($A210,outcome_data!$A$1:$BJ$216,$D$7,0)/VLOOKUP($A210,outcome_data!$A$1:$BJ$216,$F$7,0)*100000,VLOOKUP($A210,outcome_data!$A$1:$BJ$216,$D$7,0)/VLOOKUP($A210,outcome_data!$A$1:$BJ$216,$F$7,0)*100)","v":80.893628395773845},{"$f":"IF(AND($C$5=1,$B$7<=7),VLOOKUP($A210,outcome_data!$A$1:$BJ$216,$H$7,0)/VLOOKUP($A210,outcome_data!$A$1:$BJ$216,$J$7,0)*100000,VLOOKUP($A210,outcome_data!$A$1:$BJ$216,$H$7,0)/VLOOKUP($A210,outcome_data!$A$1:$BJ$216,$J$7,0)*100)","v":{"$error":"#DIV/0!"}}]
["99E",{"$f":"VLOOKUP($A211,SummaryData!$K$5:$M$215,3,0)","v":"East of England"},{"$f":"VLOOKUP($A211,SummaryData!$K$5:$N$215,4,0)","v":"No"},{"$f":"VLOOKUP($A211,SummaryData!$K$5:$P$215,6,0)","v":7},{"$f":"VLOOKUP(A211,SummaryData!$K$4:$T$215,10,0)","v":1.3198216738846187},3,{"$f":"IF(AND($C$5=1,$B$7<=7),VLOOKUP(A211,SummaryData!$K$5:$X$215,14,0)*100000,VLOOKUP(A211,SummaryData!$K$5:$X$215,14,0)*100 )","v":59.564888757435334},8,{"$f":"VLOOKUP($A211,cost_data!$A$5:$BB$215,$D$6,0)/VLOOKUP($A211,cost_data!$A$5:$BB$215,$F$6,0)","v":1.3198216738846187},{"$f":"IFERROR(VLOOKUP($A211,cost_data!$A$5:$BB$215,$H$6,0)/VLOOKUP($A211,cost_data!$A$5:$BB$215,$J$6,0),0)","v":1.2601237291261391},{"$f":"IF(AND($C$5=1,$B$7<=7),VLOOKUP($A211,outcome_data!$A$1:$BJ$216,$D$7,0)/VLOOKUP($A211,outcome_data!$A$1:$BJ$216,$F$7,0)*100000,VLOOKUP($A211,outcome_data!$A$1:$BJ$216,$D$7,0)/VLOOKUP($A211,outcome_data!$A$1:$BJ$216,$F$7,0)*100)","v":59.564888757435334},{"$f":"IF(AND($C$5=1,$B$7<=7),VLOOKUP($A211,outcome_data!$A$1:$BJ$216,$H$7,0)/VLOOKUP($A211,outcome_data!$A$1:$BJ$216,$J$7,0)*100000,VLOOKUP($A211,outcome_data!$A$1:$BJ$216,$H$7,0)/VLOOKUP($A211,outcome_data!$A$1:$BJ$216,$J$7,0)*100)","v":{"$error":"#DIV/0!"}}]
["99F",{"$f":"VLOOKUP($A212,SummaryData!$K$5:$M$215,3,0)","v":"East of England"},{"$f":"VLOOKUP($A212,SummaryData!$K$5:$N$215,4,0)","v":"No"},{"$f":"VLOOKUP($A212,SummaryData!$K$5:$P$215,6,0)","v":9},{"$f":"VLOOKUP(A212,SummaryData!$K$4:$T$215,10,0)","v":2.1181496792186536},5,{"$f":"IF(AND($C$5=1,$B$7<=7),VLOOKUP(A212,SummaryData!$K$5:$X$215,14,0)*100000,VLOOKUP(A212,SummaryData!$K$5:$X$215,14,0)*100 )","v":63.864018766196281},9,{"$f":"VLOOKUP($A212,cost_data!$A$5:$BB$215,$D$6,0)/VLOOKUP($A212,cost_data!$A$5:$BB$215,$F$6,0)","v":2.1181496792186536},{"$f":"IFERROR(VLOOKUP($A212,cost_data!$A$5:$BB$215,$H$6,0)/VLOOKUP($A212,cost_data!$A$5:$BB$215,$J$6,0),0)","v":2.1143006648064384},{"$f":"IF(AND($C$5=1,$B$7<=7),VLOOKUP($A212,outcome_data!$A$1:$BJ$216,$D$7,0)/VLOOKUP($A212,outcome_data!$A$1:$BJ$216,$F$7,0)*100000,VLOOKUP($A212,outcome_data!$A$1:$BJ$216,$D$7,0)/VLOOKUP($A212,outcome_data!$A$1:$BJ$216,$F$7,0)*100)","v":63.864018766196281},{"$f":"IF(AND($C$5=1,$B$7<=7),VLOOKUP($A212,outcome_data!$A$1:$BJ$216,$H$7,0)/VLOOKUP($A212,outcome_data!$A$1:$BJ$216,$J$7,0)*100000,VLOOKUP($A212,outcome_data!$A$1:$BJ$216,$H$7,0)/VLOOKUP($A212,outcome_data!$A$1:$BJ$216,$J$7,0)*100)","v":{"$error":"#DIV/0!"}}]
["99G",{"$f":"VLOOKUP($A213,SummaryData!$K$5:$M$215,3,0)","v":"East of England"},{"$f":"VLOOKUP($A213,SummaryData!$K$5:$N$215,4,0)","v":"No"},{"$f":"VLOOKUP($A213,SummaryData!$K$5:$P$215,6,0)","v":4},{"$f":"VLOOKUP(A213,SummaryData!$K$4:$T$215,10,0)","v":1.5877616269263455},4,{"$f":"IF(AND($C$5=1,$B$7<=7),VLOOKUP(A213,SummaryData!$K$5:$X$215,14,0)*100000,VLOOKUP(A213,SummaryData!$K$5:$X$215,14,0)*100 )","v":80.636554447461734},13,{"$f":"VLOOKUP($A213,cost_data!$A$5:$BB$215,$D$6,0)/VLOOKUP($A213,cost_data!$A$5:$BB$215,$F$6,0)","v":1.5877616269263455},{"$f":"IFERROR(VLOOKUP($A213,cost_data!$A$5:$BB$215,$H$6,0)/VLOOKUP($A213,cost_data!$A$5:$BB$215,$J$6,0),0)","v":1.6881016714152899},{"$f":"IF(AND($C$5=1,$B$7<=7),VLOOKUP($A213,outcome_data!$A$1:$BJ$216,$D$7,0)/VLOOKUP($A213,outcome_data!$A$1:$BJ$216,$F$7,0)*100000,VLOOKUP($A213,outcome_data!$A$1:$BJ$216,$D$7,0)/VLOOKUP($A213,outcome_data!$A$1:$BJ$216,$F$7,0)*100)","v":80.636554447461734},{"$f":"IF(AND($C$5=1,$B$7<=7),VLOOKUP($A213,outcome_data!$A$1:$BJ$216,$H$7,0)/VLOOKUP($A213,outcome_data!$A$1:$BJ$216,$J$7,0)*100000,VLOOKUP($A213,outcome_data!$A$1:$BJ$216,$H$7,0)/VLOOKUP($A213,outcome_data!$A$1:$BJ$216,$J$7,0)*100)","v":{"$error":"#DIV/0!"}}]
["99H",{"$f":"VLOOKUP($A214,SummaryData!$K$5:$M$215,3,0)","v":"South East coast"},{"$f":"VLOOKUP($A214,SummaryData!$K$5:$N$215,4,0)","v":"No"},{"$f":"VLOOKUP($A214,SummaryData!$K$5:$P$215,6,0)","v":10},{"$f":"VLOOKUP(A214,SummaryData!$K$4:$T$215,10,0)","v":1.9628219506518294},5,{"$f":"IF(AND($C$5=1,$B$7<=7),VLOOKUP(A214,SummaryData!$K$5:$X$215,14,0)*100000,VLOOKUP(A214,SummaryData!$K$5:$X$215,14,0)*100 )","v":46.832441019223779},4,{"$f":"VLOOKUP($A214,cost_data!$A$5:$BB$215,$D$6,0)/VLOOKUP($A214,cost_data!$A$5:$BB$215,$F$6,0)","v":1.9628219506518294},{"$f":"IFERROR(VLOOKUP($A214,cost_data!$A$5:$BB$215,$H$6,0)/VLOOKUP($A214,cost_data!$A$5:$BB$215,$J$6,0),0)","v":1.7489984996381422},{"$f":"IF(AND($C$5=1,$B$7<=7),VLOOKUP($A214,outcome_data!$A$1:$BJ$216,$D$7,0)/VLOOKUP($A214,outcome_data!$A$1:$BJ$216,$F$7,0)*100000,VLOOKUP($A214,outcome_data!$A$1:$BJ$216,$D$7,0)/VLOOKUP($A214,outcome_data!$A$1:$BJ$216,$F$7,0)*100)","v":46.832441019223779},{"$f":"IF(AND($C$5=1,$B$7<=7),VLOOKUP($A214,outcome_data!$A$1:$BJ$216,$H$7,0)/VLOOKUP($A214,outcome_data!$A$1:$BJ$216,$J$7,0)*100000,VLOOKUP($A214,outcome_data!$A$1:$BJ$216,$H$7,0)/VLOOKUP($A214,outcome_data!$A$1:$BJ$216,$J$7,0)*100)","v":{"$error":"#DIV/0!"}}]
["99J",{"$f":"VLOOKUP($A215,SummaryData!$K$5:$M$215,3,0)","v":"South East coast"},{"$f":"VLOOKUP($A215,SummaryData!$K$5:$N$215,4,0)","v":"No"},{"$f":"VLOOKUP($A215,SummaryData!$K$5:$P$215,6,0)","v":9},{"$f":"VLOOKUP(A215,SummaryData!$K$4:$T$215,10,0)","v":2.5700206737028433},6,{"$f":"IF(AND($C$5=1,$B$7<=7),VLOOKUP(A215,SummaryData!$K$5:$X$215,14,0)*100000,VLOOKUP(A215,SummaryData!$K$5:$X$215,14,0)*100 )","v":53.891482792378945},6,{"$f":"VLOOKUP($A215,cost_data!$A$5:$BB$215,$D$6,0)/VLOOKUP($A215,cost_data!$A$5:$BB$215,$F$6,0)","v":2.5700206737028433},{"$f":"IFERROR(VLOOKUP($A215,cost_data!$A$5:$BB$215,$H$6,0)/VLOOKUP($A215,cost_data!$A$5:$BB$215,$J$6,0),0)","v":2.4214422821409824},{"$f":"IF(AND($C$5=1,$B$7<=7),VLOOKUP($A215,outcome_data!$A$1:$BJ$216,$D$7,0)/VLOOKUP($A215,outcome_data!$A$1:$BJ$216,$F$7,0)*100000,VLOOKUP($A215,outcome_data!$A$1:$BJ$216,$D$7,0)/VLOOKUP($A215,outcome_data!$A$1:$BJ$216,$F$7,0)*100)","v":53.891482792378945},{"$f":"IF(AND($C$5=1,$B$7<=7),VLOOKUP($A215,outcome_data!$A$1:$BJ$216,$H$7,0)/VLOOKUP($A215,outcome_data!$A$1:$BJ$216,$J$7,0)*100000,VLOOKUP($A215,outcome_data!$A$1:$BJ$216,$H$7,0)/VLOOKUP($A215,outcome_data!$A$1:$BJ$216,$J$7,0)*100)","v":{"$error":"#DIV/0!"}}]
["99K",{"$f":"VLOOKUP($A216,SummaryData!$K$5:$M$215,3,0)","v":"South East coast"},{"$f":"VLOOKUP($A216,SummaryData!$K$5:$N$215,4,0)","v":"No"},{"$f":"VLOOKUP($A216,SummaryData!$K$5:$P$215,6,0)","v":9},{"$f":"VLOOKUP(A216,SummaryData!$K$4:$T$215,10,0)","v":2.6733608146311765},6,{"$f":"IF(AND($C$5=1,$B$7<=7),VLOOKUP(A216,SummaryData!$K$5:$X$215,14,0)*100000,VLOOKUP(A216,SummaryData!$K$5:$X$215,14,0)*100 )","v":51.176052266035718},6,{"$f":"VLOOKUP($A216,cost_data!$A$5:$BB$215,$D$6,0)/VLOOKUP($A216,cost_data!$A$5:$BB$215,$F$6,0)","v":2.6733608146311765},{"$f":"IFERROR(VLOOKUP($A216,cost_data!$A$5:$BB$215,$H$6,0)/VLOOKUP($A216,cost_data!$A$5:$BB$215,$J$6,0),0)","v":2.6995606781451515},{"$f":"IF(AND($C$5=1,$B$7<=7),VLOOKUP($A216,outcome_data!$A$1:$BJ$216,$D$7,0)/VLOOKUP($A216,outcome_data!$A$1:$BJ$216,$F$7,0)*100000,VLOOKUP($A216,outcome_data!$A$1:$BJ$216,$D$7,0)/VLOOKUP($A216,outcome_data!$A$1:$BJ$216,$F$7,0)*100)","v":51.176052266035718},{"$f":"IF(AND($C$5=1,$B$7<=7),VLOOKUP($A216,outcome_data!$A$1:$BJ$216,$H$7,0)/VLOOKUP($A216,outcome_data!$A$1:$BJ$216,$J$7,0)*100000,VLOOKUP($A216,outcome_data!$A$1:$BJ$216,$H$7,0)/VLOOKUP($A216,outcome_data!$A$1:$BJ$216,$J$7,0)*100)","v":{"$error":"#DIV/0!"}}]
["99M",{"$f":"VLOOKUP($A217,SummaryData!$K$5:$M$215,3,0)","v":"Wessex"},{"$f":"VLOOKUP($A217,SummaryData!$K$5:$N$215,4,0)","v":"No"},{"$f":"VLOOKUP($A217,SummaryData!$K$5:$P$215,6,0)","v":10},{"$f":"VLOOKUP(A217,SummaryData!$K$4:$T$215,10,0)","v":2.2515785580349759},5,{"$f":"IF(AND($C$5=1,$B$7<=7),VLOOKUP(A217,SummaryData!$K$5:$X$215,14,0)*100000,VLOOKUP(A217,SummaryData!$K$5:$X$215,14,0)*100 )","v":41.273990506982187},3,{"$f":"VLOOKUP($A217,cost_data!$A$5:$BB$215,$D$6,0)/VLOOKUP($A217,cost_data!$A$5:$BB$215,$F$6,0)","v":2.2515785580349759},{"$f":"IFERROR(VLOOKUP($A217,cost_data!$A$5:$BB$215,$H$6,0)/VLOOKUP($A217,cost_data!$A$5:$BB$215,$J$6,0),0)","v":2.0796576797953863},{"$f":"IF(AND($C$5=1,$B$7<=7),VLOOKUP($A217,outcome_data!$A$1:$BJ$216,$D$7,0)/VLOOKUP($A217,outcome_data!$A$1:$BJ$216,$F$7,0)*100000,VLOOKUP($A217,outcome_data!$A$1:$BJ$216,$D$7,0)/VLOOKUP($A217,outcome_data!$A$1:$BJ$216,$F$7,0)*100)","v":41.273990506982187},{"$f":"IF(AND($C$5=1,$B$7<=7),VLOOKUP($A217,outcome_data!$A$1:$BJ$216,$H$7,0)/VLOOKUP($A217,outcome_data!$A$1:$BJ$216,$J$7,0)*100000,VLOOKUP($A217,outcome_data!$A$1:$BJ$216,$H$7,0)/VLOOKUP($A217,outcome_data!$A$1:$BJ$216,$J$7,0)*100)","v":{"$error":"#DIV/0!"}}]
["99N",{"$f":"VLOOKUP($A218,SummaryData!$K$5:$M$215,3,0)","v":"South West"},{"$f":"VLOOKUP($A218,SummaryData!$K$5:$N$215,4,0)","v":"No"},{"$f":"VLOOKUP($A218,SummaryData!$K$5:$P$215,6,0)","v":9},{"$f":"VLOOKUP(A218,SummaryData!$K$4:$T$215,10,0)","v":1.4835514798931317},4,{"$f":"IF(AND($C$5=1,$B$7<=7),VLOOKUP(A218,SummaryData!$K$5:$X$215,14,0)*100000,VLOOKUP(A218,SummaryData!$K$5:$X$215,14,0)*100 )","v":57.700195346444481},7,{"$f":"VLOOKUP($A218,cost_data!$A$5:$BB$215,$D$6,0)/VLOOKUP($A218,cost_data!$A$5:$BB$215,$F$6,0)","v":1.4835514798931317},{"$f":"IFERROR(VLOOKUP($A218,cost_data!$A$5:$BB$215,$H$6,0)/VLOOKUP($A218,cost_data!$A$5:$BB$215,$J$6,0),0)","v":1.495661811555046},{"$f":"IF(AND($C$5=1,$B$7<=7),VLOOKUP($A218,outcome_data!$A$1:$BJ$216,$D$7,0)/VLOOKUP($A218,outcome_data!$A$1:$BJ$216,$F$7,0)*100000,VLOOKUP($A218,outcome_data!$A$1:$BJ$216,$D$7,0)/VLOOKUP($A218,outcome_data!$A$1:$BJ$216,$F$7,0)*100)","v":57.700195346444481},{"$f":"IF(AND($C$5=1,$B$7<=7),VLOOKUP($A218,outcome_data!$A$1:$BJ$216,$H$7,0)/VLOOKUP($A218,outcome_data!$A$1:$BJ$216,$J$7,0)*100000,VLOOKUP($A218,outcome_data!$A$1:$BJ$216,$H$7,0)/VLOOKUP($A218,outcome_data!$A$1:$BJ$216,$J$7,0)*100)","v":{"$error":"#DIV/0!"}}]
["99P",{"$f":"VLOOKUP($A219,SummaryData!$K$5:$M$215,3,0)","v":"South West"},{"$f":"VLOOKUP($A219,SummaryData!$K$5:$N$215,4,0)","v":"No"},{"$f":"VLOOKUP($A219,SummaryData!$K$5:$P$215,6,0)","v":6},{"$f":"VLOOKUP(A219,SummaryData!$K$4:$T$215,10,0)","v":1.4254147982463701},3,{"$f":"IF(AND($C$5=1,$B$7<=7),VLOOKUP(A219,SummaryData!$K$5:$X$215,14,0)*100000,VLOOKUP(A219,SummaryData!$K$5:$X$215,14,0)*100 )","v":70.777756615447004},10,{"$f":"VLOOKUP($A219,cost_data!$A$5:$BB$215,$D$6,0)/VLOOKUP($A219,cost_data!$A$5:$BB$215,$F$6,0)","v":1.4254147982463701},{"$f":"IFERROR(VLOOKUP($A219,cost_data!$A$5:$BB$215,$H$6,0)/VLOOKUP($A219,cost_data!$A$5:$BB$215,$J$6,0),0)","v":1.1801397772671149},{"$f":"IF(AND($C$5=1,$B$7<=7),VLOOKUP($A219,outcome_data!$A$1:$BJ$216,$D$7,0)/VLOOKUP($A219,outcome_data!$A$1:$BJ$216,$F$7,0)*100000,VLOOKUP($A219,outcome_data!$A$1:$BJ$216,$D$7,0)/VLOOKUP($A219,outcome_data!$A$1:$BJ$216,$F$7,0)*100)","v":70.777756615447004},{"$f":"IF(AND($C$5=1,$B$7<=7),VLOOKUP($A219,outcome_data!$A$1:$BJ$216,$H$7,0)/VLOOKUP($A219,outcome_data!$A$1:$BJ$216,$J$7,0)*100000,VLOOKUP($A219,outcome_data!$A$1:$BJ$216,$H$7,0)/VLOOKUP($A219,outcome_data!$A$1:$BJ$216,$J$7,0)*100)","v":{"$error":"#DIV/0!"}}]
["99Q",{"$f":"VLOOKUP($A220,SummaryData!$K$5:$M$215,3,0)","v":"South West"},{"$f":"VLOOKUP($A220,SummaryData!$K$5:$N$215,4,0)","v":"No"},{"$f":"VLOOKUP($A220,SummaryData!$K$5:$P$215,6,0)","v":5},{"$f":"VLOOKUP(A220,SummaryData!$K$4:$T$215,10,0)","v":1.4530055518867844},4,{"$f":"IF(AND($C$5=1,$B$7<=7),VLOOKUP(A220,SummaryData!$K$5:$X$215,14,0)*100000,VLOOKUP(A220,SummaryData!$K$5:$X$215,14,0)*100 )","v":89.434866202288262},15,{"$f":"VLOOKUP($A220,cost_data!$A$5:$BB$215,$D$6,0)/VLOOKUP($A220,cost_data!$A$5:$BB$215,$F$6,0)","v":1.4530055518867844},{"$f":"IFERROR(VLOOKUP($A220,cost_data!$A$5:$BB$215,$H$6,0)/VLOOKUP($A220,cost_data!$A$5:$BB$215,$J$6,0),0)","v":1.5686720178565967},{"$f":"IF(AND($C$5=1,$B$7<=7),VLOOKUP($A220,outcome_data!$A$1:$BJ$216,$D$7,0)/VLOOKUP($A220,outcome_data!$A$1:$BJ$216,$F$7,0)*100000,VLOOKUP($A220,outcome_data!$A$1:$BJ$216,$D$7,0)/VLOOKUP($A220,outcome_data!$A$1:$BJ$216,$F$7,0)*100)","v":89.434866202288262},{"$f":"IF(AND($C$5=1,$B$7<=7),VLOOKUP($A220,outcome_data!$A$1:$BJ$216,$H$7,0)/VLOOKUP($A220,outcome_data!$A$1:$BJ$216,$J$7,0)*100000,VLOOKUP($A220,outcome_data!$A$1:$BJ$216,$H$7,0)/VLOOKUP($A220,outcome_data!$A$1:$BJ$216,$J$7,0)*100)","v":{"$error":"#DIV/0!"}}]

{"sheet":"Lookup","index":11,"n_rows":213,"n_cols":93,"rows_kept":213,"cut":false,"hidden":true,"merged":[[0,76,0,80],[0,83,0,86],[0,87,0,90]]}
[null,null,null,null,null,null,null,null,null,null,"Cost data ",null,null,null,null,null,"Outcomes data",null,{"$f":"DataOutcome!A1","v":1},null,null,null,"Comparisons",null,null,null,"Cluster descriptions",null,null,"Profile choice",null,{"$f":"DataOutcome!B1","v":2},"Cost data ALL CVD",null,null,"Outcomes data ALL CVD",null,null,null,"Cost data Stroke/TIA/PAD",null,null,"Outcomes data Stroke/TIA/PAD",null,null,null,"Cost data coronary heart disease",null,null,"Outcomes data coronary heart disease",null,null,null,"Cost data chronic kidney disease",null,null,"Outcomes data chronic kidney disease",null,null,null,null,null,null,null,null,null,null,{"$f":"GraphData!E3","v":"02N"},{"$f":"VLOOKUP(BP1,BP3:BR213,2,0)","v":10.304},{"$f":"VLOOKUP(BP1,BP3:BR213,3,0)","v":4.9560000000000004},null,null,null,null,null,null,"Look up table dashboard cost outcomes",null,null,null,null,null,null,"Look up table dashboard outcomes 2012/13",null,null,null,"Look up table dashboard outcomes 2012/13"]
["CCG code","CCG ONS code","CCG name (ODS Aug 2013)","Strategic Clinical Network","CCG Cluster","ID2010 decile (2012 pop)","Commissioning Board Region","PCT (old)","CCG_comparator",null,"Box no. ","Named Range","Text name",null,null,null,"Box no. ","Named Range","Text name",null,null,null,"Box no. ","Text name",null,null,"Cluster","Description",null,null,null,null,"Box no. ","Named Range","Text name","Box no. ","Named Range","Text name",null,"Box no. ","Named Range","Text name","Box no. ","Named Range","Text name",null,"Box no. ","Named Range","Text name","Box no. ","Named Range","Text name",null,"Box no. ","Named Range","Text name","Box no. ","Named Range","Text name",null,null,"Closest CCG rank",null,null,"Comparator",null,null,null,"Estimated prevalence of CVD (all ages) 2011","Estimated prevalence of CHD (all ages)","Year",null,null,"Estimated population 2012/13 prevalence based on 2011 data","Estimated population 2013/14 prevalence based on 2011 data",null,null,"2012/13 num","2012/13 Denom","2013/14 num","2012/13 Denom",null,null,"2012/13 num","2012/13 Denom","2013/14 num","2012/13 Denom","2012/13 num","2012/13 Denom","2013/14 num","2012/13 Denom"]
["02N","E38000001","NHS Airedale, Wharfedale and Craven","Yorkshire and Northern",{"$f":"VLOOKUP(A3,Lookup!$BJ$3:$BK$226,2,0)","v":"Closest 10 CCGs"},6,"North","5NY",{"$f":"VLOOKUP(A3,Lookup!$BL$3:$BM$226,2,0)","v":"No"},null,1,"Ind9","Spend on anti-arrhythmic drugs",null,null,null,1,{"$f":"IF($S$1=1,AK3,AR3)","v":"Ind1"},{"$f":"IF($S$1=1,AL3,AS3)","v":"Under 75 mortality from cardiovascular disease "},{"$f":"IF($S$1=1,AM3,AT3)","v":"Under 75 mortality from cardiovascular disease "},null,null,1,"Strategic Clinical Networks",null,null,"Purple","An older population living in rural areas and with low deprivation levels.",null,1,"All cardiovascular outcomes and expenditures",null,9,"Ind9","Spend on anti-arrhythmic drugs",1,"Ind1","Under 75 mortality from cardiovascular disease ","Under 75 mortality from cardiovascular disease ",8,"Ind9","Spend on anti-arrhythmic drugs",8,"Ind8","The percentage of patients on the coronary heart disease register who had a blood pressure measurement that was 150/90 or less","The percentage of patients on the coronary heart disease register who had a blood pressure measurement that was 150/90 or less",9,"Ind9","Spend on anti-arrhythmic drugs",1,"Ind1","Under 75 mortality from cardiovascular disease ","Under 75 mortality from cardiovascular disease ",5,"Ind7","Spend on antiplatelet drugs",11,"Ind11","The percentage of patients on the chronic kidney disease register in whom the last blood pressure reading, is 140/85 or less","The percentage of patients on the chronic kidney disease register in whom the last blood pressure reading, is 140/85 or less",null,{"$f":"HLOOKUP(GraphData!$E$3,'Closest CCG (codes)'!$A$1:$HD$212,1,0)","v":"02N"},"Closest 10 CCGs",{"$f":"HLOOKUP(SummaryData!$D$11,'Closest CCG (codes)'!$A$1:$HD$212,1,0)","v":"02R"},"Comparator Closest 10 CCGs",null,"One of the 10 most similar CCGs","02N",{"$f":"VLOOKUP($BP3,[1]prevlence!$B$3:$F$213,3,0)","v":10.304},{"$f":"VLOOKUP($BP3,[1]prevlence!$B$3:$F$213,5,0)","v":4.9560000000000004},"2012 - 2013",1,"2012 - 2013",{"$f":"VLOOKUP(BP3,[2]CCG_AgeSpecificPrevalence!$E$14:$H$225,4,0)/BQ3","v":15164.887422360249},{"$f":"VLOOKUP(BP3,[3]CHD!$E$16:$L$226,8,0)/BQ3","v":15205.357142857143},null,1,19,20,{"$f":"BZ3+26","v":45},{"$f":"CA3+26","v":46},1,"Ind1",3,4,33,34,17,18,47,48,{"$f":"BJ3","v":"02N"},{"$f":"VLOOKUP(CN3,$A$3:$C$213,3,0)","v":"NHS Airedale, Wharfedale and Craven"}]
["09C","E38000002","NHS Ashford","South East coast",{"$f":"VLOOKUP(A4,Lookup!$BJ$3:$BK$226,2,0)","v":"Closest 10 CCGs"},8,"South","5QA",{"$f":"VLOOKUP(A4,Lookup!$BL$3:$BM$226,2,0)","v":"No"},null,2,"Ind5","Spend on anticoagulants and protamine",null,null,null,2,{"$f":"IF($S$1=1,AK4,AR4)","v":"Ind2"},{"$f":"IF($S$1=1,AL4,AS4)","v":"Admissions for stroke (all ages)"},{"$f":"IF($S$1=1,AM4,AT4)","v":"Admissions for stroke (all ages)"},null,null,2,"Commissioning for value most similar 10 CCGs",null,null,"Blue","A very young population with a high proportion of the population from Black and Asian ethnic groups and high levels of deprivation. ",null,2,"Outcomes and expenditures for stroke/transient ischemic attack/peripheral arterial disease ",null,5,"Ind5","Spend on anticoagulants and protamine",2,"Ind2","Admissions for stroke (all ages)","Admissions for stroke (all ages)",4,"Ind5","Spend on anticoagulants and protamine",9,"Ind9","The percentage of patients on the coronary heart disease register who had a cholesterol measurement that was 5.0mmol/l or less","The percentage of patients on the coronary heart disease register who had a cholesterol measurement that was 5.0mmol/l or less",5,"Ind5","Spend on anticoagulants and protamine",3,"Ind3","Admissions for coronary heart disease (all ages)","Admissions for coronary heart disease (all ages)",4,"Ind6","Spend on beta-adrenoceptor blocking drugs",16,{"$f":"\"\"","v":""},{"$f":"\"\"","v":""},{"$f":"\"\"","v":""},1,{"$f":"HLOOKUP(GraphData!$E$3,'Closest CCG (codes)'!$A$1:$HD$212,'Closest CCG (codes)'!HE3+2,0)","v":"02T"},"Closest 10 CCGs",{"$f":"HLOOKUP(SummaryData!$D$11,'Closest CCG (codes)'!$A$1:$HD$212,'Closest CCG (codes)'!HE3+2,0)","v":"00Y"},"Comparator Closest 10 CCGs",null,"One of the 10 most similar CCGs","09C",{"$f":"VLOOKUP($BP4,[1]prevlence!$B$3:$F$213,3,0)","v":9.3010000000000002},{"$f":"VLOOKUP($BP4,[1]prevlence!$B$3:$F$213,5,0)","v":4.2809999999999997},"2013 - 2014",2,"2013 - 2014",{"$f":"VLOOKUP(BP4,[2]CCG_AgeSpecificPrevalence!$E$14:$H$225,4,0)/BQ4","v":13182.883560907429},{"$f":"VLOOKUP(BP4,[3]CHD!$E$16:$L$226,8,0)/BQ4","v":13539.404365122029},null,2,11,12,37,38,2,"Ind2",5,6,35,36,19,20,49,50,{"$f":"BJ4","v":"02T"},{"$f":"VLOOKUP(CN4,$A$3:$C$213,3,0)","v":"NHS Calderdale"}]
["10Y","E38000003","NHS Aylesbury Vale","Thames",{"$f":"VLOOKUP(A5,Lookup!$BJ$3:$BK$226,2,0)","v":"No"},10,"South","5QD",{"$f":"VLOOKUP(A5,Lookup!$BL$3:$BM$226,2,0)","v":"No"},null,3,"Ind11","Spend on antifibrinolytic drugs and haemostatics",null,null,null,3,"Ind3","Admissions for coronary heart disease (all ages)","Admissions for coronary heart disease (all ages)",null,null,3,"CCG deprivation deciles",null,null,"Green","A younger population with a high proportion of the population from Black and Asian ethnic groups and moderate levels of deprivation. ",null,3,"Outcomes and expenditures for coronary heart disease",null,11,"Ind11","Spend on antifibrinolytic drugs and haemostatics",3,"Ind3","Admissions for coronary heart disease (all ages)","Admissions for coronary heart disease (all ages)",9,"Ind11","Spend on antifibrinolytic drugs and haemostatics",10,"Ind10","The percentage of patients on the hypertension register and a blood pressure measurement that was 150/90 or less","The percentage of patients on the hypertension register and a blood pressure measurement that was 150/90 or less",11,"Ind11","Spend on antifibrinolytic drugs and haemostatics",4,"Ind4","Admissions for heart failure (all ages)","Admissions for heart failure (all ages)",6,"Ind8","Spend on diuretics",17,{"$f":"\"\"","v":""},{"$f":"\"\"","v":""},{"$f":"\"\"","v":""},2,{"$f":"HLOOKUP(GraphData!$E$3,'Closest CCG (codes)'!$A$1:$HD$212,'Closest CCG (codes)'!HE4+2,0)","v":"10A"},"Closest 10 CCGs",{"$f":"HLOOKUP(SummaryData!$D$11,'Closest CCG (codes)'!$A$1:$HD$212,'Closest CCG (codes)'!HE4+2,0)","v":"00T"},"Comparator Closest 10 CCGs",null,"One of the 10 most similar CCGs","10Y",{"$f":"VLOOKUP($BP5,[1]prevlence!$B$3:$F$213,3,0)","v":8.7829999999999995},{"$f":"VLOOKUP($BP5,[1]prevlence!$B$3:$F$213,5,0)","v":3.6389999999999998},null,null,null,{"$f":"VLOOKUP(BP5,[2]CCG_AgeSpecificPrevalence!$E$14:$H$225,4,0)/BQ5","v":22839.234885574406},{"$f":"VLOOKUP(BP5,[3]CHD!$E$16:$L$226,8,0)/BQ5","v":23067.289081179551},null,3,23,24,49,50,3,"Ind3",7,8,37,38,21,22,51,52,"10A","NHS South Kent Coast"]
["07L","E38000004","NHS Barking and Dagenham","London",{"$f":"VLOOKUP(A6,Lookup!$BJ$3:$BK$226,2,0)","v":"No"},2,"London","5C2",{"$f":"VLOOKUP(A6,Lookup!$BL$3:$BM$226,2,0)","v":"No"},null,4,"Ind7","Spend on antiplatelet drugs",null,null,null,4,"Ind4","Admissions for heart failure (all ages)","Admissions for heart failure (all ages)",null,null,null,null,null,null,"Yellow","A younger population with a higher than average proportion of the population from Black and Asian ethnic groups and moderate levels of deprivation. ",null,4,"Outcomes and expenditures for chronic kidney disease",null,7,"Ind7","Spend on antiplatelet drugs",4,"Ind4","Admissions for heart failure (all ages)","Admissions for heart failure (all ages)",6,"Ind7","Spend on antiplatelet drugs",11,"Ind11","The percentage of patients on the chronic kidney disease register in whom the last blood pressure measurement that was 140/85 or less","The percentage of patients on the chronic kidney disease register in whom the last blood pressure measurement that was 140/85 or less",7,"Ind7","Spend on antiplatelet drugs",5,"Ind5","Admissions for angiography (all ages)","Admissions for angiography (all ages)",3,"Ind3","Spend on hypertension and heart failure prescriptions",18,{"$f":"\"\"","v":""},{"$f":"\"\"","v":""},{"$f":"\"\"","v":""},3,{"$f":"HLOOKUP(GraphData!$E$3,'Closest CCG (codes)'!$A$1:$HD$212,'Closest CCG (codes)'!HE5+2,0)","v":"05D"},"Closest 10 CCGs",{"$f":"HLOOKUP(SummaryData!$D$11,'Closest CCG (codes)'!$A$1:$HD$212,'Closest CCG (codes)'!HE5+2,0)","v":"01D"},"Comparator Closest 10 CCGs",null,"One of the 10 most similar CCGs","07L",{"$f":"VLOOKUP($BP6,[1]prevlence!$B$3:$F$213,3,0)","v":7.3609999999999998},{"$f":"VLOOKUP($BP6,[1]prevlence!$B$3:$F$213,5,0)","v":3.6949999999999998},null,null,null,{"$f":"VLOOKUP(BP6,[2]CCG_AgeSpecificPrevalence!$E$14:$H$225,4,0)/BQ6","v":27816.057600869448},{"$f":"VLOOKUP(BP6,[3]CHD!$E$16:$L$226,8,0)/BQ6","v":27821.627496264096},null,4,15,16,41,42,4,"Ind4",9,10,39,40,23,24,53,54,"05D","NHS East Staffordshire"]
["07M","E38000005","NHS Barnet","London",{"$f":"VLOOKUP(A7,Lookup!$BJ$3:$BK$226,2,0)","v":"No"},7,"London","5A9",{"$f":"VLOOKUP(A7,Lookup!$BL$3:$BM$226,2,0)","v":"No"},null,5,"Ind6","Spend on beta-adrenoceptor blocking drugs",null,null,null,5,"Ind5","Admissions for angiography (all ages)","Admissions for angiography (all ages)",null,null,null,null,null,null,"Orange","A population with an average age structure, average deprivation levels and a low population density.",null,null,null,null,6,"Ind6","Spend on beta-adrenoceptor blocking drugs",5,"Ind5","Admissions for angiography (all ages)","Admissions for angiography (all ages)",5,"Ind6","Spend on beta-adrenoceptor blocking drugs",12,"Ind12","The percentage of patients on the peripheral arterial disease register in whom the last blood  pressure measurement that was 150/90 or less","The percentage of patients on the peripheral arterial disease register in whom the last blood  pressure measurement that was 150/90 or less",6,"Ind6","Spend on beta-adrenoceptor blocking drugs",6,"Ind6","Admissions for angioplasty (all ages)","Admissions for angioplasty (all ages)",2,"Ind2","Spend on lipid regulators",null,{"$f":"\"\"","v":""},{"$f":"\"\"","v":""},{"$f":"\"\"","v":""},4,{"$f":"HLOOKUP(GraphData!$E$3,'Closest CCG (codes)'!$A$1:$HD$212,'Closest CCG (codes)'!HE6+2,0)","v":"09C"},"Closest 10 CCGs",{"$f":"HLOOKUP(SummaryData!$D$11,'Closest CCG (codes)'!$A$1:$HD$212,'Closest CCG (codes)'!HE6+2,0)","v":"05Y"},"Comparator Closest 10 CCGs",null,"One of the 10 most similar CCGs","07M",{"$f":"VLOOKUP($BP7,[1]prevlence!$B$3:$F$213,3,0)","v":7.9509999999999996},{"$f":"VLOOKUP($BP7,[1]prevlence!$B$3:$F$213,5,0)","v":3.4489999999999998},null,null,null,{"$f":"VLOOKUP(BP7,[2]CCG_AgeSpecificPrevalence!$E$14:$H$225,4,0)/BQ7","v":48623.317821657656},{"$f":"VLOOKUP(BP7,[3]CHD!$E$16:$L$226,8,0)/BQ7","v":48775.87724814489},null,5,13,14,39,40,5,"Ind5",11,12,41,42,25,26,55,56,"09C","NHS Ashford"]
["02P","E38000006","NHS Barnsley","Yorkshire and Northern",{"$f":"VLOOKUP(A8,Lookup!$BJ$3:$BK$226,2,0)","v":"No"},3,"North","5JE",{"$f":"VLOOKUP(A8,Lookup!$BL$3:$BM$226,2,0)","v":"No"},null,6,"Ind8","Spend on diuretics",null,null,null,6,"Ind6","Admissions for angioplasty (all ages)","Admissions for angioplasty (all ages)",null,null,null,null,null,null,null,null,null,null,null,null,8,"Ind8","Spend on diuretics",6,"Ind6","Admissions for angioplasty (all ages)","Admissions for angioplasty (all ages)",7,"Ind8","Spend on diuretics",13,"Ind13","The percentage of patients on the peripheral arterial disease register in whom the last cholesterol measurement that was 5.0mmol/l or less.","The percentage of patients on the peripheral arterial disease register in whom the last cholesterol measurement that was 5.0mmol/l or less.",8,"Ind8","Spend on diuretics",7,"Ind7","Admissions for coronary artery bypass graft (all ages)","Admissions for coronary artery bypass graft (all ages)",null,null,null,null,{"$f":"\"\"","v":""},{"$f":"\"\"","v":""},{"$f":"\"\"","v":""},5,{"$f":"HLOOKUP(GraphData!$E$3,'Closest CCG (codes)'!$A$1:$HD$212,'Closest CCG (codes)'!HE7+2,0)","v":"03E"},"Closest 10 CCGs",{"$f":"HLOOKUP(SummaryData!$D$11,'Closest CCG (codes)'!$A$1:$HD$212,'Closest CCG (codes)'!HE7+2,0)","v":"03J"},"Comparator Closest 10 CCGs",null,"One of the 10 most similar CCGs","02P",{"$f":"VLOOKUP($BP8,[1]prevlence!$B$3:$F$213,3,0)","v":10.324999999999999},{"$f":"VLOOKUP($BP8,[1]prevlence!$B$3:$F$213,5,0)","v":5.5910000000000002},null,null,null,{"$f":"VLOOKUP(BP8,[2]CCG_AgeSpecificPrevalence!$E$14:$H$225,4,0)/BQ8","v":24249.491525423731},{"$f":"VLOOKUP(BP8,[3]CHD!$E$16:$L$226,8,0)/BQ8","v":24449.878934624699},null,6,17,18,43,44,6,"Ind6",13,14,43,44,27,28,57,58,"03E","NHS Harrogate and Rural District"]
["99E","E38000007","NHS Basildon and Brentwood","East of England",{"$f":"VLOOKUP(A9,Lookup!$BJ$3:$BK$226,2,0)","v":"No"},7,"Midlands and East","5PY",{"$f":"VLOOKUP(A9,Lookup!$BL$3:$BM$226,2,0)","v":"No"},null,7,"Ind3","Spend on hypertension and heart failure prescriptions",null,null,null,7,"Ind7","Admissions for coronary artery bypass graft (all ages)","Admissions for coronary artery bypass graft (all ages)",null,null,null,null,null,null,null,null,null,null,null,null,3,"Ind3","Spend on hypertension and heart failure prescriptions",7,"Ind7","Admissions for coronary artery bypass graft (all ages)","Admissions for coronary artery bypass graft (all ages)",3,"Ind3","Spend on hypertension and heart failure prescriptions",14,"Ind14","The percentage of patients on the stroke register who had a blood pressure measurement that was 150/90 or less","The percentage of patients on the stroke register who had a blood pressure measurement that was 150/90 or less",3,"Ind3","Spend on hypertension and heart failure prescriptions",8,"Ind8","The percentage of patients on the coronary heart disease register and blood pressure 150/90 or less","The percentage of patients on the coronary heart disease register and blood pressure 150/90 or less",8,{"$f":"\"\"","v":""},{"$f":"\"\"","v":""},null,{"$f":"\"\"","v":""},{"$f":"\"\"","v":""},{"$f":"\"\"","v":""},6,{"$f":"HLOOKUP(GraphData!$E$3,'Closest CCG (codes)'!$A$1:$HD$212,'Closest CCG (codes)'!HE8+2,0)","v":"07H"},"Closest 10 CCGs",{"$f":"HLOOKUP(SummaryData!$D$11,'Closest CCG (codes)'!$A$1:$HD$212,'Closest CCG (codes)'!HE8+2,0)","v":"00Q"},"Comparator Closest 10 CCGs",null,"One of the 10 most similar CCGs","99E",{"$f":"VLOOKUP($BP9,[1]prevlence!$B$3:$F$213,3,0)","v":9.4220000000000006},{"$f":"VLOOKUP($BP9,[1]prevlence!$B$3:$F$213,5,0)","v":4.2549999999999999},null,null,null,{"$f":"VLOOKUP(BP9,[2]CCG_AgeSpecificPrevalence!$E$14:$H$225,4,0)/BQ9","v":28085.119932073867},{"$f":"VLOOKUP(BP9,[3]CHD!$E$16:$L$226,8,0)/BQ9","v":28409.361069836552},null,7,7,8,33,34,7,"Ind7",15,16,45,46,29,30,59,60,"07H","NHS West Essex"]
["02Q","E38000008","NHS Bassetlaw","Yorkshire and Northern",{"$f":"VLOOKUP(A10,Lookup!$BJ$3:$BK$226,2,0)","v":"No"},4,"North","5ET",{"$f":"VLOOKUP(A10,Lookup!$BL$3:$BM$226,2,0)","v":"No"},null,8,"Ind2","Spend on lipid regulators",null,null,null,8,"Ind8","The percentage of patients on the coronary heart disease register whose last blood pressure measurement was 150/90 or less","The percentage of patients on the coronary heart disease register whose last blood pressure measurement was 150/90 or less",null,null,null,null,null,null,null,null,null,null,null,null,2,"Ind2","Spend on lipid regulators",8,"Ind8","The percentage of patients on the coronary heart disease register whose last blood pressure measurement was 150/90 or less","The percentage of patients on the coronary heart disease register whose last blood pressure measurement was 150/90 or less",2,"Ind2","Spend on lipid regulators",15,"Ind15","The percentage of patients on the stroke register who had a cholesterol measurement that was 5.0 mmol/l or less","The percentage of patients on the stroke register who had a cholesterol measurement that was 5.0 mmol/l or less",2,"Ind2","Spend on lipid regulators",9,"Ind9","The percentage of patients on the coronary heart disease register and cholesterol 5.0mmol/l or less","The percentage of patients on the coronary heart disease register and cholesterol 5.0mmol/l or less",9,{"$f":"\"\"","v":""},{"$f":"\"\"","v":""},null,{"$f":"\"\"","v":""},{"$f":"\"\"","v":""},{"$f":"\"\"","v":""},7,{"$f":"HLOOKUP(GraphData!$E$3,'Closest CCG (codes)'!$A$1:$HD$212,'Closest CCG (codes)'!HE9+2,0)","v":"04Q"},"Closest 10 CCGs",{"$f":"HLOOKUP(SummaryData!$D$11,'Closest CCG (codes)'!$A$1:$HD$212,'Closest CCG (codes)'!HE9+2,0)","v":"01A"},"Comparator Closest 10 CCGs",null,"One of the 10 most similar CCGs","02Q",{"$f":"VLOOKUP($BP10,[1]prevlence!$B$3:$F$213,3,0)","v":10.33},{"$f":"VLOOKUP($BP10,[1]prevlence!$B$3:$F$213,5,0)","v":5.3570000000000002},null,null,null,{"$f":"VLOOKUP(BP10,[2]CCG_AgeSpecificPrevalence!$E$14:$H$225,4,0)/BQ10","v":10835.430784123912},{"$f":"VLOOKUP(BP10,[3]CHD!$E$16:$L$226,8,0)/BQ10","v":10902.613746369796},null,8,5,6,31,32,8,"Ind8",17,18,47,48,31,32,61,62,"04Q","NHS South West Lincolnshire"]
["11E","E38000009","NHS Bath and North East Somerset","South West",{"$f":"VLOOKUP(A11,Lookup!$BJ$3:$BK$226,2,0)","v":"No"},9,"South","5FL",{"$f":"VLOOKUP(A11,Lookup!$BL$3:$BM$226,2,0)","v":"No"},null,9,"Ind4","Spend on nitrates, calcium-channel blockers, and other antianginal drugs",null,null,null,9,"Ind9","The percentage of patients on the coronary heart disease register whose last cholesterol measurement was 5.0mmol/l or less","The percentage of patients on the coronary heart disease register whose last cholesterol measurement was 5.0mmol/l or less",null,null,null,null,null,null,null,null,null,null,null,null,4,"Ind4","Spend on nitrates, calcium-channel blockers, and other antianginal drugs",9,"Ind9","The percentage of patients on the coronary heart disease register whose last cholesterol measurement was 5.0mmol/l or less","The percentage of patients on the coronary heart disease register whose last cholesterol measurement was 5.0mmol/l or less",10,null,null,{"$f":"\"\"","v":""},{"$f":"\"\"","v":""},{"$f":"\"\"","v":""},{"$f":"\"\"","v":""},4,"Ind4","Spend on nitrates, calcium-channel blockers, and other antianginal drugs",10,"Ind10","The percentage of patients on the hypertension register and blood pressure 150/90 or less","The percentage of patients on the hypertension register and blood pressure 150/90 or less",10,{"$f":"\"\"","v":""},{"$f":"\"\"","v":""},null,{"$f":"\"\"","v":""},{"$f":"\"\"","v":""},{"$f":"\"\"","v":""},8,{"$f":"HLOOKUP(GraphData!$E$3,'Closest CCG (codes)'!$A$1:$HD$212,'Closest CCG (codes)'!HE10+2,0)","v":"06M"},"Closest 10 CCGs",{"$f":"HLOOKUP(SummaryData!$D$11,'Closest CCG (codes)'!$A$1:$HD$212,'Closest CCG (codes)'!HE10+2,0)","v":"03G"},"Comparator Closest 10 CCGs",null,"One of the 10 most similar CCGs","11E",{"$f":"VLOOKUP($BP11,[1]prevlence!$B$3:$F$213,3,0)","v":9.7569999999999997},{"$f":"VLOOKUP($BP11,[1]prevlence!$B$3:$F$213,5,0)","v":4.2130000000000001},null,null,null,{"$f":"VLOOKUP(BP11,[2]CCG_AgeSpecificPrevalence!$E$14:$H$225,4,0)/BQ11","v":20319.155478118275},{"$f":"VLOOKUP(BP11,[3]CHD!$E$16:$L$226,8,0)/BQ11","v":20422.875883980734},null,9,9,10,35,36,9,"Ind9",19,20,49,50,null,null,null,null,"06M","NHS Great Yarmouth and Waveney"]
["06F","E38000010","NHS Bedfordshire","East of England",{"$f":"VLOOKUP(A12,Lookup!$BJ$3:$BK$226,2,0)","v":"No"},9,"Midlands and East","5P2",{"$f":"VLOOKUP(A12,Lookup!$BL$3:$BM$226,2,0)","v":"No"},null,10,"Ind10","Spend on positive inotropic drugs",null,null,null,10,"Ind10","The percentage of patients on the hypertension register whose last blood pressure measurement was 150/90 or less","The percentage of patients on the hypertension register whose last blood pressure measurement was 150/90 or less",null,null,null,null,null,null,null,null,null,null,null,null,10,"Ind10","Spend on positive inotropic drugs",10,"Ind10","The percentage of patients on the hypertension register whose last blood pressure measurement was 150/90 or less","The percentage of patients on the hypertension register whose last blood pressure measurement was 150/90 or less",12,{"$f":"\"\"","v":""},{"$f":"\"\"","v":""},{"$f":"\"\"","v":""},{"$f":"\"\"","v":""},{"$f":"\"\"","v":""},{"$f":"\"\"","v":""},10,"Ind10","Spend on positive inotropic drugs",{"$f":"\"\"","v":""},{"$f":"\"\"","v":""},{"$f":"\"\"","v":""},{"$f":"\"\"","v":""},null,{"$f":"\"\"","v":""},{"$f":"\"\"","v":""},null,{"$f":"\"\"","v":""},{"$f":"\"\"","v":""},{"$f":"\"\"","v":""},9,{"$f":"HLOOKUP(GraphData!$E$3,'Closest CCG (codes)'!$A$1:$HD$212,'Closest CCG (codes)'!HE11+2,0)","v":"05T"},"Closest 10 CCGs",{"$f":"HLOOKUP(SummaryData!$D$11,'Closest CCG (codes)'!$A$1:$HD$212,'Closest CCG (codes)'!HE11+2,0)","v":"00V"},"Comparator Closest 10 CCGs",null,"One of the 10 most similar CCGs","06F",{"$f":"VLOOKUP($BP12,[1]prevlence!$B$3:$F$213,3,0)","v":8.9369999999999994},{"$f":"VLOOKUP($BP12,[1]prevlence!$B$3:$F$213,5,0)","v":3.9670000000000001},null,null,null,{"$f":"VLOOKUP(BP12,[2]CCG_AgeSpecificPrevalence!$E$14:$H$225,4,0)/BQ12","v":49645.07105292604},{"$f":"VLOOKUP(BP12,[3]CHD!$E$16:$L$226,8,0)/BQ12","v":50347.208235425758},null,10,21,22,47,48,10,"Ind10",21,22,51,52,null,null,null,null,"05T","NHS South Worcestershire"]
["07N","E38000011","NHS Bexley","London",{"$f":"VLOOKUP(A13,Lookup!$BJ$3:$BK$226,2,0)","v":"No"},7,"London","TAK",{"$f":"VLOOKUP(A13,Lookup!$BL$3:$BM$226,2,0)","v":"No"},null,11,"Ind12","Spend on sympathomimetics",null,null,null,11,"Ind11","The percentage of patients on the chronic kidney disease register whose last blood pressure measurement was 140/85 or less","The percentage of patients on the chronic kidney disease register whose last blood pressure measurement was 140/85 or less",null,null,null,null,null,null,null,null,null,null,null,null,14,"Ind14","Spend on prescribing problems of circulation programme budget category",11,"Ind11","The percentage of patients on the chronic kidney disease register whose last blood pressure measurement was 140/85 or less","The percentage of patients on the chronic kidney disease register whose last blood pressure measurement was 140/85 or less",14,{"$f":"\"\"","v":""},{"$f":"\"\"","v":""},{"$f":"\"\"","v":""},{"$f":"\"\"","v":""},{"$f":"\"\"","v":""},{"$f":"\"\"","v":""},12,"Ind12","Spend on sympathomimetics",{"$f":"\"\"","v":""},{"$f":"\"\"","v":""},{"$f":"\"\"","v":""},{"$f":"\"\"","v":""},null,{"$f":"\"\"","v":""},{"$f":"\"\"","v":""},null,{"$f":"\"\"","v":""},{"$f":"\"\"","v":""},{"$f":"\"\"","v":""},10,{"$f":"HLOOKUP(GraphData!$E$3,'Closest CCG (codes)'!$A$1:$HD$212,'Closest CCG (codes)'!HE12+2,0)","v":"04H"},"No",{"$f":"HLOOKUP(SummaryData!$D$11,'Closest CCG (codes)'!$A$1:$HD$212,'Closest CCG (codes)'!HE12+2,0)","v":"05W"},"No",null,"Not similar","07N",{"$f":"VLOOKUP($BP13,[1]prevlence!$B$3:$F$213,3,0)","v":9.1170000000000009},{"$f":"VLOOKUP($BP13,[1]prevlence!$B$3:$F$213,5,0)","v":4.0979999999999999},null,null,null,{"$f":"VLOOKUP(BP13,[2]CCG_AgeSpecificPrevalence!$E$14:$H$225,4,0)/BQ13","v":24889.87605572008},{"$f":"VLOOKUP(BP13,[3]CHD!$E$16:$L$226,8,0)/BQ13","v":25149.500932324227},null,11,25,26,51,52,11,"Ind11",23,24,53,54]
["13P","E38000012","NHS Birmingham Crosscity","West Midlands",{"$f":"VLOOKUP(A14,Lookup!$BJ$3:$BK$226,2,0)","v":"No"},1,"Midlands and East","5PG",{"$f":"VLOOKUP(A14,Lookup!$BL$3:$BM$226,2,0)","v":"No"},null,12,"Ind1","Total spend on prescribing for cardiovascular disease",null,null,null,12,"Ind12","The percentage of patients on the peripheral arterial disease register whose last blood  pressure measurement was 150/90 or less","The percentage of patients on the peripheral arterial disease register whose last blood  pressure measurement was 150/90 or less",null,null,null,null,null,null,null,null,null,null,null,null,12,"Ind12","Spend on sympathomimetics",12,"Ind12","The percentage of patients on the peripheral arterial disease register whose last blood  pressure measurement was 150/90 or less","The percentage of patients on the peripheral arterial disease register whose last blood  pressure measurement was 150/90 or less",16,{"$f":"\"\"","v":""},{"$f":"\"\"","v":""},{"$f":"\"\"","v":""},{"$f":"\"\"","v":""},{"$f":"\"\"","v":""},{"$f":"\"\"","v":""},1,"Ind1","Total spend on prescribing for cardiovascular disease",{"$f":"\"\"","v":""},{"$f":"\"\"","v":""},{"$f":"\"\"","v":""},{"$f":"\"\"","v":""},null,{"$f":"\"\"","v":""},{"$f":"\"\"","v":""},null,{"$f":"\"\"","v":""},{"$f":"\"\"","v":""},{"$f":"\"\"","v":""},null,{"$f":"HLOOKUP(GraphData!$E$3,'Closest CCG (codes)'!$A$1:$HD$212,'Closest CCG (codes)'!HE13+2,0)","v":"99K"},"No",{"$f":"HLOOKUP(SummaryData!$D$11,'Closest CCG (codes)'!$A$1:$HD$212,'Closest CCG (codes)'!HE13+2,0)","v":"00H"},"No",null,"Not similar","13P",{"$f":"VLOOKUP($BP14,[1]prevlence!$B$3:$F$213,3,0)","v":9.1059999999999999},{"$f":"VLOOKUP($BP14,[1]prevlence!$B$3:$F$213,5,0)","v":4.9169999999999998},null,null,null,{"$f":"VLOOKUP(BP14,[2]CCG_AgeSpecificPrevalence!$E$14:$H$225,4,0)/BQ14","v":80926.422139248854},{"$f":"VLOOKUP(BP14,[3]CHD!$E$16:$L$226,8,0)/BQ14","v":81302.218317592793},null,12,3,4,{"$f":"BZ14+26","v":29},{"$f":"CA14+26","v":30},12,"Ind12",25,26,55,56]
["04X","E38000013","NHS Birmingham South and Central","West Midlands",{"$f":"VLOOKUP(A15,Lookup!$BJ$3:$BK$226,2,0)","v":"No"},1,"Midlands and East","5M1",{"$f":"VLOOKUP(A15,Lookup!$BL$3:$BM$226,2,0)","v":"No"},null,13,"Ind13","Average spend per cardiovascular item",null,null,null,13,"Ind13","The percentage of patients on the peripheral arterial disease register whose last cholesterol measurement was 5.0mmol/l or less.","The percentage of patients on the peripheral arterial disease register whose last cholesterol measurement was 5.0mmol/l or less.",null,null,null,null,null,null,null,null,null,null,null,null,1,"Ind1","Total spend on prescribing for cardiovascular disease",13,"Ind13","The percentage of patients on the peripheral arterial disease register whose last cholesterol measurement was 5.0mmol/l or less.","The percentage of patients on the peripheral arterial disease register whose last cholesterol measurement was 5.0mmol/l or less.",17,{"$f":"\"\"","v":""},{"$f":"\"\"","v":""},{"$f":"\"\"","v":""},{"$f":"\"\"","v":""},{"$f":"\"\"","v":""},{"$f":"\"\"","v":""},{"$f":"\"\"","v":""},{"$f":"\"\"","v":""},{"$f":"\"\"","v":""},{"$f":"\"\"","v":""},{"$f":"\"\"","v":""},{"$f":"\"\"","v":""},{"$f":"\"\"","v":""},null,{"$f":"\"\"","v":""},{"$f":"\"\"","v":""},null,{"$f":"\"\"","v":""},{"$f":"\"\"","v":""},{"$f":"\"\"","v":""},null,{"$f":"HLOOKUP(GraphData!$E$3,'Closest CCG (codes)'!$A$1:$HD$212,'Closest CCG (codes)'!HE14+2,0)","v":"03M"},"No",{"$f":"HLOOKUP(SummaryData!$D$11,'Closest CCG (codes)'!$A$1:$HD$212,'Closest CCG (codes)'!HE14+2,0)","v":"01Y"},"No",null,"Not similar","04X",{"$f":"VLOOKUP($BP15,[1]prevlence!$B$3:$F$213,3,0)","v":8.06},{"$f":"VLOOKUP($BP15,[1]prevlence!$B$3:$F$213,5,0)","v":4.3710000000000004},null,null,null,{"$f":"VLOOKUP(BP15,[2]CCG_AgeSpecificPrevalence!$E$14:$H$225,4,0)/BQ15","v":30135.980148883373},{"$f":"VLOOKUP(BP15,[3]CHD!$E$16:$L$226,8,0)/BQ15","v":30895.533498759305},null,13,27,28,{"$f":"BZ15+26","v":53},{"$f":"CA15+26","v":54},13,"Ind13",27,28,57,58]
["00Q","E38000014","NHS Blackburn with Darwen","Greater Manchester Lancashire and South Cumbria",{"$f":"VLOOKUP(A16,Lookup!$BJ$3:$BK$226,2,0)","v":"No"},1,"North","TAP",{"$f":"VLOOKUP(A16,Lookup!$BL$3:$BM$226,2,0)","v":"Comparator Closest 10 CCGs"},null,14,null,null,null,null,null,14,"Ind14","The percentage of patients on the stroke register whose last blood pressure measurement was 150/90 or less","The percentage of patients on the stroke register whose last blood pressure measurement was 150/90 or less",null,null,null,null,null,null,null,null,null,null,null,null,13,"Ind13","Average spend per cardiovascular item",14,"Ind14","The percentage of patients on the stroke register whose last blood pressure measurement was 150/90 or less","The percentage of patients on the stroke register whose last blood pressure measurement was 150/90 or less",18,{"$f":"\"\"","v":""},{"$f":"\"\"","v":""},{"$f":"\"\"","v":""},{"$f":"\"\"","v":""},{"$f":"\"\"","v":""},{"$f":"\"\"","v":""},{"$f":"\"\"","v":""},{"$f":"\"\"","v":""},{"$f":"\"\"","v":""},{"$f":"\"\"","v":""},{"$f":"\"\"","v":""},{"$f":"\"\"","v":""},{"$f":"\"\"","v":""},null,{"$f":"\"\"","v":""},{"$f":"\"\"","v":""},null,{"$f":"\"\"","v":""},{"$f":"\"\"","v":""},{"$f":"\"\"","v":""},null,{"$f":"HLOOKUP(GraphData!$E$3,'Closest CCG (codes)'!$A$1:$HD$212,'Closest CCG (codes)'!HE15+2,0)","v":"02V"},"No",{"$f":"HLOOKUP(SummaryData!$D$11,'Closest CCG (codes)'!$A$1:$HD$212,'Closest CCG (codes)'!HE15+2,0)","v":"02T"},"No",null,"Not similar","00Q",{"$f":"VLOOKUP($BP16,[1]prevlence!$B$3:$F$213,3,0)","v":8.7829999999999995},{"$f":"VLOOKUP($BP16,[1]prevlence!$B$3:$F$213,5,0)","v":4.8849999999999998},null,null,null,{"$f":"VLOOKUP(BP16,[2]CCG_AgeSpecificPrevalence!$E$14:$H$225,4,0)/BQ16","v":19294.88785153137},{"$f":"VLOOKUP(BP16,[3]CHD!$E$16:$L$226,8,0)/BQ16","v":19278.378686098145},null,null,null,null,null,null,14,"Ind14",29,30,59,60]
["00R","E38000015","NHS Blackpool","Greater Manchester Lancashire and South Cumbria",{"$f":"VLOOKUP(A17,Lookup!$BJ$3:$BK$226,2,0)","v":"No"},1,"North","5HP",{"$f":"VLOOKUP(A17,Lookup!$BL$3:$BM$226,2,0)","v":"No"},null,15,null,null,null,null,null,15,"Ind15","The percentage of patients on the stroke register whose last cholesterol measurement was 5.0 mmol/l or less","The percentage of patients on the stroke register whose last cholesterol measurement was 5.0 mmol/l or less",null,null,null,null,null,null,null,null,null,null,null,null,17,{"$f":"\"\"","v":""},{"$f":"\"\"","v":""},15,"Ind15","The percentage of patients on the stroke register whose last cholesterol measurement was 5.0 mmol/l or less","The percentage of patients on the stroke register whose last cholesterol measurement was 5.0 mmol/l or less",null,{"$f":"\"\"","v":""},{"$f":"\"\"","v":""},{"$f":"\"\"","v":""},{"$f":"\"\"","v":""},{"$f":"\"\"","v":""},{"$f":"\"\"","v":""},{"$f":"\"\"","v":""},{"$f":"\"\"","v":""},{"$f":"\"\"","v":""},{"$f":"\"\"","v":""},{"$f":"\"\"","v":""},{"$f":"\"\"","v":""},{"$f":"\"\"","v":""},null,{"$f":"\"\"","v":""},{"$f":"\"\"","v":""},null,{"$f":"\"\"","v":""},{"$f":"\"\"","v":""},{"$f":"\"\"","v":""},null,{"$f":"HLOOKUP(GraphData!$E$3,'Closest CCG (codes)'!$A$1:$HD$212,'Closest CCG (codes)'!HE16+2,0)","v":"10E"},"No",{"$f":"HLOOKUP(SummaryData!$D$11,'Closest CCG (codes)'!$A$1:$HD$212,'Closest CCG (codes)'!HE16+2,0)","v":"08G"},"No",null,"Not similar","00R",{"$f":"VLOOKUP($BP17,[1]prevlence!$B$3:$F$213,3,0)","v":11.561999999999999},{"$f":"VLOOKUP($BP17,[1]prevlence!$B$3:$F$213,5,0)","v":6.7149999999999999},null,null,null,{"$f":"VLOOKUP(BP17,[2]CCG_AgeSpecificPrevalence!$E$14:$H$225,4,0)/BQ17","v":14943.954333160355},{"$f":"VLOOKUP(BP17,[3]CHD!$E$16:$L$226,8,0)/BQ17","v":14893.790001729805},null,null,null,null,null,null,15,"Ind15",31,32,61,62]
["00T","E38000016","NHS Bolton","Greater Manchester Lancashire and South Cumbria",{"$f":"VLOOKUP(A18,Lookup!$BJ$3:$BK$226,2,0)","v":"No"},2,"North","5HQ",{"$f":"VLOOKUP(A18,Lookup!$BL$3:$BM$226,2,0)","v":"Comparator Closest 10 CCGs"},null,16,null,null,null,null,null,16,{"$f":"IF($S$1=1,AK19,AR18)","v":"Ind17"},"",{"$f":"IF($S$1=1,AM19,AT18)","v":""},null,null,null,null,null,null,null,null,null,null,null,null,18,{"$f":"\"\"","v":""},{"$f":"\"\"","v":""},16,"Ind16",{"$f":"\"\"","v":""},"#",null,{"$f":"\"\"","v":""},{"$f":"\"\"","v":""},{"$f":"\"\"","v":""},{"$f":"\"\"","v":""},{"$f":"\"\"","v":""},{"$f":"\"\"","v":""},{"$f":"\"\"","v":""},{"$f":"\"\"","v":""},{"$f":"\"\"","v":""},{"$f":"\"\"","v":""},{"$f":"\"\"","v":""},{"$f":"\"\"","v":""},{"$f":"\"\"","v":""},null,{"$f":"\"\"","v":""},{"$f":"\"\"","v":""},null,{"$f":"\"\"","v":""},{"$f":"\"\"","v":""},{"$f":"\"\"","v":""},null,{"$f":"HLOOKUP(GraphData!$E$3,'Closest CCG (codes)'!$A$1:$HD$212,'Closest CCG (codes)'!HE17+2,0)","v":"09P"},"No",{"$f":"HLOOKUP(SummaryData!$D$11,'Closest CCG (codes)'!$A$1:$HD$212,'Closest CCG (codes)'!HE17+2,0)","v":"06A"},"No",null,"Not similar","00T",{"$f":"VLOOKUP($BP18,[1]prevlence!$B$3:$F$213,3,0)","v":9.5079999999999991},{"$f":"VLOOKUP($BP18,[1]prevlence!$B$3:$F$213,5,0)","v":5.2380000000000004},null,null,null,{"$f":"VLOOKUP(BP18,[2]CCG_AgeSpecificPrevalence!$E$14:$H$225,4,0)/BQ18","v":31304.05973916702},{"$f":"VLOOKUP(BP18,[3]CHD!$E$16:$L$226,8,0)/BQ18","v":31276.714345814053}]
["10G","E38000017","NHS Bracknell and Ascot","Thames",{"$f":"VLOOKUP(A19,Lookup!$BJ$3:$BK$226,2,0)","v":"No"},10,"South","5QG",{"$f":"VLOOKUP(A19,Lookup!$BL$3:$BM$226,2,0)","v":"No"},null,17,null,null,null,null,null,17,{"$f":"IF($S$1=1,AK20,AR19)","v":"Ind18"},"",{"$f":"IF($S$1=1,AM20,AT19)","v":""},null,null,null,null,null,null,null,null,null,null,null,null,null,null,null,17,"Ind17",{"$f":"\"\"","v":""},{"$f":"\"\"","v":""},null,{"$f":"\"\"","v":""},{"$f":"\"\"","v":""},{"$f":"\"\"","v":""},{"$f":"\"\"","v":""},{"$f":"\"\"","v":""},{"$f":"\"\"","v":""},{"$f":"\"\"","v":""},{"$f":"\"\"","v":""},{"$f":"\"\"","v":""},{"$f":"\"\"","v":""},{"$f":"\"\"","v":""},{"$f":"\"\"","v":""},{"$f":"\"\"","v":""},null,{"$f":"\"\"","v":""},{"$f":"\"\"","v":""},null,{"$f":"\"\"","v":""},{"$f":"\"\"","v":""},{"$f":"\"\"","v":""},null,{"$f":"HLOOKUP(GraphData!$E$3,'Closest CCG (codes)'!$A$1:$HD$212,'Closest CCG (codes)'!HE18+2,0)","v":"05R"},"No",{"$f":"HLOOKUP(SummaryData!$D$11,'Closest CCG (codes)'!$A$1:$HD$212,'Closest CCG (codes)'!HE18+2,0)","v":"03A"},"No",null,"Not similar","10G",{"$f":"VLOOKUP($BP19,[1]prevlence!$B$3:$F$213,3,0)","v":8.1289999999999996},{"$f":"VLOOKUP($BP19,[1]prevlence!$B$3:$F$213,5,0)","v":3.1920000000000002},null,null,null,{"$f":"VLOOKUP(BP19,[2]CCG_AgeSpecificPrevalence!$E$14:$H$225,4,0)/BQ19","v":16836.634272358224},{"$f":"VLOOKUP(BP19,[3]CHD!$E$16:$L$226,8,0)/BQ19","v":16960.265715340141}]
["02W","E38000018","NHS Bradford City","Yorkshire and Northern",{"$f":"VLOOKUP(A20,Lookup!$BJ$3:$BK$226,2,0)","v":"No"},1,"North","5NY",{"$f":"VLOOKUP(A20,Lookup!$BL$3:$BM$226,2,0)","v":"No"},null,18,null,null,null,null,null,18,null,"",null,null,null,null,null,null,null,null,null,null,null,null,null,null,null,null,18,"Ind18",{"$f":"\"\"","v":""},{"$f":"\"\"","v":""},null,{"$f":"\"\"","v":""},{"$f":"\"\"","v":""},{"$f":"\"\"","v":""},{"$f":"\"\"","v":""},{"$f":"\"\"","v":""},{"$f":"\"\"","v":""},{"$f":"\"\"","v":""},{"$f":"\"\"","v":""},{"$f":"\"\"","v":""},{"$f":"\"\"","v":""},{"$f":"\"\"","v":""},{"$f":"\"\"","v":""},{"$f":"\"\"","v":""},null,{"$f":"\"\"","v":""},{"$f":"\"\"","v":""},null,{"$f":"\"\"","v":""},{"$f":"\"\"","v":""},{"$f":"\"\"","v":""},null,{"$f":"HLOOKUP(GraphData!$E$3,'Closest CCG (codes)'!$A$1:$HD$212,'Closest CCG (codes)'!HE19+2,0)","v":"10D"},"No",{"$f":"HLOOKUP(SummaryData!$D$11,'Closest CCG (codes)'!$A$1:$HD$212,'Closest CCG (codes)'!HE19+2,0)","v":"04X"},"No",null,"Not similar","02W",{"$f":"VLOOKUP($BP20,[1]prevlence!$B$3:$F$213,3,0)","v":6.0670000000000002},{"$f":"VLOOKUP($BP20,[1]prevlence!$B$3:$F$213,5,0)","v":3.6240000000000001},null,null,null,{"$f":"VLOOKUP(BP20,[2]CCG_AgeSpecificPrevalence!$E$14:$H$225,4,0)/BQ20","v":19663.095434316794},{"$f":"VLOOKUP(BP20,[3]CHD!$E$16:$L$226,8,0)/BQ20","v":19907.862205373331}]
["02R","E38000019","NHS Bradford Districts","Yorkshire and Northern",{"$f":"VLOOKUP(A21,Lookup!$BJ$3:$BK$226,2,0)","v":"No"},2,"North","5NY",{"$f":"VLOOKUP(A21,Lookup!$BL$3:$BM$226,2,0)","v":"Comparator Closest 10 CCGs"},null,null,null,null,null,null,null,null,null,null,null,null,null,null,null,null,null,null,null,null,null,null,null,null,null,null,null,null,null,null,null,{"$f":"\"\"","v":""},{"$f":"\"\"","v":""},{"$f":"\"\"","v":""},{"$f":"\"\"","v":""},{"$f":"\"\"","v":""},{"$f":"\"\"","v":""},{"$f":"\"\"","v":""},{"$f":"\"\"","v":""},{"$f":"\"\"","v":""},{"$f":"\"\"","v":""},{"$f":"\"\"","v":""},{"$f":"\"\"","v":""},{"$f":"\"\"","v":""},null,{"$f":"\"\"","v":""},{"$f":"\"\"","v":""},null,{"$f":"\"\"","v":""},{"$f":"\"\"","v":""},{"$f":"\"\"","v":""},null,{"$f":"HLOOKUP(GraphData!$E$3,'Closest CCG (codes)'!$A$1:$HD$212,'Closest CCG (codes)'!HE20+2,0)","v":"01A"},"No",{"$f":"HLOOKUP(SummaryData!$D$11,'Closest CCG (codes)'!$A$1:$HD$212,'Closest CCG (codes)'!HE20+2,0)","v":"03L"},"No",null,"Not similar","02R",{"$f":"VLOOKUP($BP21,[1]prevlence!$B$3:$F$213,3,0)","v":9.2140000000000004},{"$f":"VLOOKUP($BP21,[1]prevlence!$B$3:$F$213,5,0)","v":5.0339999999999998},null,null,null,{"$f":"VLOOKUP(BP21,[2]CCG_AgeSpecificPrevalence!$E$14:$H$225,4,0)/BQ21","v":36061.102669850225},{"$f":"VLOOKUP(BP21,[3]CHD!$E$16:$L$226,8,0)/BQ21","v":36314.738441502057}]
["07P","E38000020","NHS Brent","London",{"$f":"VLOOKUP(A22,Lookup!$BJ$3:$BK$226,2,0)","v":"No"},2,"London","5K5",{"$f":"VLOOKUP(A22,Lookup!$BL$3:$BM$226,2,0)","v":"No"},null,null,null,null,null,null,null,null,null,null,null,null,null,null,null,null,null,null,null,null,null,null,null,null,null,null,null,null,null,null,null,{"$f":"\"\"","v":""},{"$f":"\"\"","v":""},{"$f":"\"\"","v":""},{"$f":"\"\"","v":""},{"$f":"\"\"","v":""},{"$f":"\"\"","v":""},null,null,null,{"$f":"\"\"","v":""},{"$f":"\"\"","v":""},{"$f":"\"\"","v":""},{"$f":"\"\"","v":""},null,{"$f":"\"\"","v":""},{"$f":"\"\"","v":""},null,{"$f":"\"\"","v":""},{"$f":"\"\"","v":""},{"$f":"\"\"","v":""},null,{"$f":"HLOOKUP(GraphData!$E$3,'Closest CCG (codes)'!$A$1:$HD$212,'Closest CCG (codes)'!HE21+2,0)","v":"02G"},"No",{"$f":"HLOOKUP(SummaryData!$D$11,'Closest CCG (codes)'!$A$1:$HD$212,'Closest CCG (codes)'!HE21+2,0)","v":"05A"},"No",null,"Not similar","07P",{"$f":"VLOOKUP($BP22,[1]prevlence!$B$3:$F$213,3,0)","v":7.0949999999999998},{"$f":"VLOOKUP($BP22,[1]prevlence!$B$3:$F$213,5,0)","v":3.4830000000000001},null,null,null,{"$f":"VLOOKUP(BP22,[2]CCG_AgeSpecificPrevalence!$E$14:$H$225,4,0)/BQ22","v":48670.190274841436},{"$f":"VLOOKUP(BP22,[3]CHD!$E$16:$L$226,8,0)/BQ22","v":50083.016208597604}]
["09D","E38000021","NHS Brighton and Hove","South East coast",{"$f":"VLOOKUP(A23,Lookup!$BJ$3:$BK$226,2,0)","v":"No"},4,"South","5LQ",{"$f":"VLOOKUP(A23,Lookup!$BL$3:$BM$226,2,0)","v":"No"},null,null,null,null,null,null,null,null,null,null,null,null,null,null,null,null,null,null,null,null,null,null,null,null,null,null,null,null,null,null,null,null,{"$f":"\"\"","v":""},{"$f":"\"\"","v":""},{"$f":"\"\"","v":""},{"$f":"\"\"","v":""},null,null,null,null,{"$f":"\"\"","v":""},{"$f":"\"\"","v":""},{"$f":"\"\"","v":""},{"$f":"\"\"","v":""},null,{"$f":"\"\"","v":""},{"$f":"\"\"","v":""},null,{"$f":"\"\"","v":""},{"$f":"\"\"","v":""},{"$f":"\"\"","v":""},null,{"$f":"HLOOKUP(GraphData!$E$3,'Closest CCG (codes)'!$A$1:$HD$212,'Closest CCG (codes)'!HE22+2,0)","v":"04D"},"No",{"$f":"HLOOKUP(SummaryData!$D$11,'Closest CCG (codes)'!$A$1:$HD$212,'Closest CCG (codes)'!HE22+2,0)","v":"06P"},"No",null,"Not similar","09D",{"$f":"VLOOKUP($BP23,[1]prevlence!$B$3:$F$213,3,0)","v":8.6850000000000005},{"$f":"VLOOKUP($BP23,[1]prevlence!$B$3:$F$213,5,0)","v":4.21},null,null,null,{"$f":"VLOOKUP(BP23,[2]CCG_AgeSpecificPrevalence!$E$14:$H$225,4,0)/BQ23","v":34600.230282095567},{"$f":"VLOOKUP(BP23,[3]CHD!$E$16:$L$226,8,0)/BQ23","v":34942.774899251584}]
["11H","E38000022","NHS Bristol","South West",{"$f":"VLOOKUP(A24,Lookup!$BJ$3:$BK$226,2,0)","v":"No"},4,"South","5QJ",{"$f":"VLOOKUP(A24,Lookup!$BL$3:$BM$226,2,0)","v":"No"},null,null,null,null,null,null,null,null,null,null,null,null,null,null,null,null,null,null,null,null,null,null,null,null,null,null,null,null,null,null,null,null,null,{"$f":"\"\"","v":""},{"$f":"\"\"","v":""},{"$f":"\"\"","v":""},null,null,null,null,{"$f":"\"\"","v":""},{"$f":"\"\"","v":""},{"$f":"\"\"","v":""},{"$f":"\"\"","v":""},null,{"$f":"\"\"","v":""},{"$f":"\"\"","v":""},null,{"$f":"\"\"","v":""},{"$f":"\"\"","v":""},{"$f":"\"\"","v":""},null,{"$f":"HLOOKUP(GraphData!$E$3,'Closest CCG (codes)'!$A$1:$HD$212,'Closest CCG (codes)'!HE23+2,0)","v":"03H"},"No",{"$f":"HLOOKUP(SummaryData!$D$11,'Closest CCG (codes)'!$A$1:$HD$212,'Closest CCG (codes)'!HE23+2,0)","v":"05X"},"No",null,"Not similar","11H",{"$f":"VLOOKUP($BP24,[1]prevlence!$B$3:$F$213,3,0)","v":8.4700000000000006},{"$f":"VLOOKUP($BP24,[1]prevlence!$B$3:$F$213,5,0)","v":4.0570000000000004},null,null,null,{"$f":"VLOOKUP(BP24,[2]CCG_AgeSpecificPrevalence!$E$14:$H$225,4,0)/BQ24","v":57073.43565525383},{"$f":"VLOOKUP(BP24,[3]CHD!$E$16:$L$226,8,0)/BQ24","v":57974.380165289251}]
["07Q","E38000023","NHS Bromley","London",{"$f":"VLOOKUP(A25,Lookup!$BJ$3:$BK$226,2,0)","v":"No"},8,"London","5A7",{"$f":"VLOOKUP(A25,Lookup!$BL$3:$BM$226,2,0)","v":"No"},null,null,null,null,null,null,null,null,null,null,null,null,null,null,null,null,null,null,null,null,null,null,null,null,null,null,null,null,null,null,null,null,null,null,{"$f":"\"\"","v":""},{"$f":"\"\"","v":""},null,null,null,null,null,null,null,null,null,{"$f":"\"\"","v":""},{"$f":"\"\"","v":""},null,{"$f":"\"\"","v":""},{"$f":"\"\"","v":""},{"$f":"\"\"","v":""},null,{"$f":"HLOOKUP(GraphData!$E$3,'Closest CCG (codes)'!$A$1:$HD$212,'Closest CCG (codes)'!HE24+2,0)","v":"01R"},"No",{"$f":"HLOOKUP(SummaryData!$D$11,'Closest CCG (codes)'!$A$1:$HD$212,'Closest CCG (codes)'!HE24+2,0)","v":"00M"},"No",null,"Not similar","07Q",{"$f":"VLOOKUP($BP25,[1]prevlence!$B$3:$F$213,3,0)","v":9.5220000000000002},{"$f":"VLOOKUP($BP25,[1]prevlence!$B$3:$F$213,5,0)","v":4.2030000000000003},null,null,null,{"$f":"VLOOKUP(BP25,[2]CCG_AgeSpecificPrevalence!$E$14:$H$225,4,0)/BQ25","v":34813.904641881956},{"$f":"VLOOKUP(BP25,[3]CHD!$E$16:$L$226,8,0)/BQ25","v":35263.285024154589}]
["00V","E38000024","NHS Bury","Greater Manchester Lancashire and South Cumbria",{"$f":"VLOOKUP(A26,Lookup!$BJ$3:$BK$226,2,0)","v":"No"},5,"North","5JX",{"$f":"VLOOKUP(A26,Lookup!$BL$3:$BM$226,2,0)","v":"Comparator Closest 10 CCGs"},null,null,null,null,null,null,null,null,null,null,null,null,null,null,null,null,null,null,null,null,null,null,null,null,null,null,null,null,null,null,null,null,null,null,{"$f":"\"\"","v":""},null,null,null,null,null,null,null,null,null,null,null,null,null,{"$f":"\"\"","v":""},{"$f":"\"\"","v":""},{"$f":"\"\"","v":""},null,{"$f":"HLOOKUP(GraphData!$E$3,'Closest CCG (codes)'!$A$1:$HD$212,'Closest CCG (codes)'!HE25+2,0)","v":"03K"},"No",{"$f":"HLOOKUP(SummaryData!$D$11,'Closest CCG (codes)'!$A$1:$HD$212,'Closest CCG (codes)'!HE25+2,0)","v":"02A"},"No",null,"Not similar","00V",{"$f":"VLOOKUP($BP26,[1]prevlence!$B$3:$F$213,3,0)","v":9.3989999999999991},{"$f":"VLOOKUP($BP26,[1]prevlence!$B$3:$F$213,5,0)","v":4.7320000000000002},null,null,null,{"$f":"VLOOKUP(BP26,[2]CCG_AgeSpecificPrevalence!$E$14:$H$225,4,0)/BQ26","v":19739.121183104588},{"$f":"VLOOKUP(BP26,[3]CHD!$E$16:$L$226,8,0)/BQ26","v":20939.036067666773}]
["02T","E38000025","NHS Calderdale","Yorkshire and Northern",{"$f":"VLOOKUP(A27,Lookup!$BJ$3:$BK$226,2,0)","v":"Closest 10 CCGs"},5,"North","5J6",{"$f":"VLOOKUP(A27,Lookup!$BL$3:$BM$226,2,0)","v":"No"},null,null,null,null,null,null,null,null,null,null,null,null,null,null,null,null,null,null,null,null,null,null,null,null,null,null,null,null,null,null,null,null,null,null,null,null,null,null,null,null,null,null,null,null,null,null,null,null,null,null,null,null,{"$f":"HLOOKUP(GraphData!$E$3,'Closest CCG (codes)'!$A$1:$HD$212,'Closest CCG (codes)'!HE26+2,0)","v":"02F"},"No",{"$f":"HLOOKUP(SummaryData!$D$11,'Closest CCG (codes)'!$A$1:$HD$212,'Closest CCG (codes)'!HE26+2,0)","v":"01G"},"No",null,"Not similar","02T",{"$f":"VLOOKUP($BP27,[1]prevlence!$B$3:$F$213,3,0)","v":9.3079999999999998},{"$f":"VLOOKUP($BP27,[1]prevlence!$B$3:$F$213,5,0)","v":4.71},null,null,null,{"$f":"VLOOKUP(BP27,[2]CCG_AgeSpecificPrevalence!$E$14:$H$225,4,0)/BQ27","v":23011.710356682423},{"$f":"VLOOKUP(BP27,[3]CHD!$E$16:$L$226,8,0)/BQ27","v":23165.986248388483}]
["06H","E38000026","NHS Cambridgeshire and Peterborough","East of England",{"$f":"VLOOKUP(A28,Lookup!$BJ$3:$BK$226,2,0)","v":"No"},8,"Midlands and East","5PP",{"$f":"VLOOKUP(A28,Lookup!$BL$3:$BM$226,2,0)","v":"No"},null,null,null,null,null,null,null,null,null,null,null,null,null,null,null,null,null,null,null,null,null,null,null,null,null,null,null,null,null,null,null,null,null,null,null,null,null,null,null,null,null,null,null,null,null,null,null,null,null,null,null,null,{"$f":"HLOOKUP(GraphData!$E$3,'Closest CCG (codes)'!$A$1:$HD$212,'Closest CCG (codes)'!HE27+2,0)","v":"06L"},"No",{"$f":"HLOOKUP(SummaryData!$D$11,'Closest CCG (codes)'!$A$1:$HD$212,'Closest CCG (codes)'!HE27+2,0)","v":"02V"},"No",null,"Not similar","06H",{"$f":"VLOOKUP($BP28,[1]prevlence!$B$3:$F$213,3,0)","v":8.9160000000000004},{"$f":"VLOOKUP($BP28,[1]prevlence!$B$3:$F$213,5,0)","v":3.9780000000000002},null,null,null,{"$f":"VLOOKUP(BP28,[2]CCG_AgeSpecificPrevalence!$E$14:$H$225,4,0)/BQ28","v":98248.541947061458},{"$f":"VLOOKUP(BP28,[3]CHD!$E$16:$L$226,8,0)/BQ28","v":99972.184836249435}]
["07R","E38000027","NHS Camden","London",{"$f":"VLOOKUP(A29,Lookup!$BJ$3:$BK$226,2,0)","v":"No"},4,"London","5K7",{"$f":"VLOOKUP(A29,Lookup!$BL$3:$BM$226,2,0)","v":"No"},null,null,null,null,null,null,null,null,null,null,null,null,null,null,null,null,null,null,null,null,null,null,null,null,null,null,null,null,null,null,null,null,null,null,null,null,null,null,null,null,null,null,null,null,null,null,null,null,null,null,null,null,{"$f":"HLOOKUP(GraphData!$E$3,'Closest CCG (codes)'!$A$1:$HD$212,'Closest CCG (codes)'!HE28+2,0)","v":"10Y"},"No",{"$f":"HLOOKUP(SummaryData!$D$11,'Closest CCG (codes)'!$A$1:$HD$212,'Closest CCG (codes)'!HE28+2,0)","v":"00K"},"No",null,"Not similar","07R",{"$f":"VLOOKUP($BP29,[1]prevlence!$B$3:$F$213,3,0)","v":6.83},{"$f":"VLOOKUP($BP29,[1]prevlence!$B$3:$F$213,5,0)","v":2.88},null,null,null,{"$f":"VLOOKUP(BP29,[2]CCG_AgeSpecificPrevalence!$E$14:$H$225,4,0)/BQ29","v":37145.095168374814},{"$f":"VLOOKUP(BP29,[3]CHD!$E$16:$L$226,8,0)/BQ29","v":36681.112737920936}]
["04Y","E38000028","NHS Cannock Chase","West Midlands",{"$f":"VLOOKUP(A30,Lookup!$BJ$3:$BK$226,2,0)","v":"No"},6,"Midlands and East","5PK",{"$f":"VLOOKUP(A30,Lookup!$BL$3:$BM$226,2,0)","v":"No"},null,null,null,null,null,null,null,null,null,null,null,null,null,null,null,null,null,null,null,null,null,null,null,null,null,null,null,null,null,null,null,null,null,null,null,null,null,null,null,null,null,null,null,null,null,null,null,null,null,null,null,null,{"$f":"HLOOKUP(GraphData!$E$3,'Closest CCG (codes)'!$A$1:$HD$212,'Closest CCG (codes)'!HE29+2,0)","v":"05H"},"No",{"$f":"HLOOKUP(SummaryData!$D$11,'Closest CCG (codes)'!$A$1:$HD$212,'Closest CCG (codes)'!HE29+2,0)","v":"01E"},"No",null,"Not similar","04Y",{"$f":"VLOOKUP($BP30,[1]prevlence!$B$3:$F$213,3,0)","v":9.4849999999999994},{"$f":"VLOOKUP($BP30,[1]prevlence!$B$3:$F$213,5,0)","v":4.673},null,null,null,{"$f":"VLOOKUP(BP30,[2]CCG_AgeSpecificPrevalence!$E$14:$H$225,4,0)/BQ30","v":13970.901423299949},{"$f":"VLOOKUP(BP30,[3]CHD!$E$16:$L$226,8,0)/BQ30","v":14036.584080126517}]
["09E","E38000029","NHS Canterbury and Coastal","South East coast",{"$f":"VLOOKUP(A31,Lookup!$BJ$3:$BK$226,2,0)","v":"No"},7,"South","5QA",{"$f":"VLOOKUP(A31,Lookup!$BL$3:$BM$226,2,0)","v":"No"},null,null,null,null,null,null,null,null,null,null,null,null,null,null,null,null,null,null,null,null,null,null,null,null,null,null,null,null,null,null,null,null,null,null,null,null,null,null,null,null,null,null,null,null,null,null,null,null,null,null,null,null,{"$f":"HLOOKUP(GraphData!$E$3,'Closest CCG (codes)'!$A$1:$HD$212,'Closest CCG (codes)'!HE30+2,0)","v":"10M"},"No",{"$f":"HLOOKUP(SummaryData!$D$11,'Closest CCG (codes)'!$A$1:$HD$212,'Closest CCG (codes)'!HE30+2,0)","v":"03R"},"No",null,"Not similar","09E",{"$f":"VLOOKUP($BP31,[1]prevlence!$B$3:$F$213,3,0)","v":9.9209999999999994},{"$f":"VLOOKUP($BP31,[1]prevlence!$B$3:$F$213,5,0)","v":4.79},null,null,null,{"$f":"VLOOKUP(BP31,[2]CCG_AgeSpecificPrevalence!$E$14:$H$225,4,0)/BQ31","v":21648.12014917851},{"$f":"VLOOKUP(BP31,[3]CHD!$E$16:$L$226,8,0)/BQ31","v":21757.08093942143}]
["99F","E38000030","NHS Castle Point and Rochford","East of England",{"$f":"VLOOKUP(A32,Lookup!$BJ$3:$BK$226,2,0)","v":"No"},9,"Midlands and East","5P1",{"$f":"VLOOKUP(A32,Lookup!$BL$3:$BM$226,2,0)","v":"No"},null,null,null,null,null,null,null,null,null,null,null,null,null,null,null,null,null,null,null,null,null,null,null,null,null,null,null,null,null,null,null,null,null,null,null,null,null,null,null,null,null,null,null,null,null,null,null,null,null,null,null,null,{"$f":"HLOOKUP(GraphData!$E$3,'Closest CCG (codes)'!$A$1:$HD$212,'Closest CCG (codes)'!HE31+2,0)","v":"07J"},"No",{"$f":"HLOOKUP(SummaryData!$D$11,'Closest CCG (codes)'!$A$1:$HD$212,'Closest CCG (codes)'!HE31+2,0)","v":"13P"},"No",null,"Not similar","99F",{"$f":"VLOOKUP($BP32,[1]prevlence!$B$3:$F$213,3,0)","v":10.691000000000001},{"$f":"VLOOKUP($BP32,[1]prevlence!$B$3:$F$213,5,0)","v":4.8920000000000003},null,null,null,{"$f":"VLOOKUP(BP32,[2]CCG_AgeSpecificPrevalence!$E$14:$H$225,4,0)/BQ32","v":16903.470208586659},{"$f":"VLOOKUP(BP32,[3]CHD!$E$16:$L$226,8,0)/BQ32","v":16899.635207183612}]
["09A","E38000031","NHS Central London (Westminster)","London",{"$f":"VLOOKUP(A33,Lookup!$BJ$3:$BK$226,2,0)","v":"No"},5,"London","5LC",{"$f":"VLOOKUP(A33,Lookup!$BL$3:$BM$226,2,0)","v":"No"},null,null,null,null,null,null,null,null,null,null,null,null,null,null,null,null,null,null,null,null,null,null,null,null,null,null,null,null,null,null,null,null,null,null,null,null,null,null,null,null,null,null,null,null,null,null,null,null,null,null,null,null,{"$f":"HLOOKUP(GraphData!$E$3,'Closest CCG (codes)'!$A$1:$HD$212,'Closest CCG (codes)'!HE32+2,0)","v":"07K"},"No",{"$f":"HLOOKUP(SummaryData!$D$11,'Closest CCG (codes)'!$A$1:$HD$212,'Closest CCG (codes)'!HE32+2,0)","v":"01M"},"No",null,"Not similar","09A",{"$f":"VLOOKUP($BP33,[1]prevlence!$B$3:$F$213,3,0)","v":7.4569999999999999},{"$f":"VLOOKUP($BP33,[1]prevlence!$B$3:$F$213,5,0)","v":3.2629999999999999},null,null,null,{"$f":"VLOOKUP(BP33,[2]CCG_AgeSpecificPrevalence!$E$14:$H$225,4,0)/BQ33","v":25528.630816682311},{"$f":"VLOOKUP(BP33,[3]CHD!$E$16:$L$226,8,0)/BQ33","v":26634.169236958562}]
["00W","E38000032","NHS Central Manchester","Greater Manchester Lancashire and South Cumbria",{"$f":"VLOOKUP(A34,Lookup!$BJ$3:$BK$226,2,0)","v":"No"},1,"North","5NT",{"$f":"VLOOKUP(A34,Lookup!$BL$3:$BM$226,2,0)","v":"No"},null,null,null,null,null,null,null,null,null,null,null,null,null,null,null,null,null,null,null,null,null,null,null,null,null,null,null,null,null,null,null,null,null,null,null,null,null,null,null,null,null,null,null,null,null,null,null,null,null,null,null,null,{"$f":"HLOOKUP(GraphData!$E$3,'Closest CCG (codes)'!$A$1:$HD$212,'Closest CCG (codes)'!HE33+2,0)","v":"02Q"},"No",{"$f":"HLOOKUP(SummaryData!$D$11,'Closest CCG (codes)'!$A$1:$HD$212,'Closest CCG (codes)'!HE33+2,0)","v":"09H"},"No",null,"Not similar","00W",{"$f":"VLOOKUP($BP34,[1]prevlence!$B$3:$F$213,3,0)","v":7.0949999999999998},{"$f":"VLOOKUP($BP34,[1]prevlence!$B$3:$F$213,5,0)","v":3.4969999999999999},null,null,null,{"$f":"VLOOKUP(BP34,[2]CCG_AgeSpecificPrevalence!$E$14:$H$225,4,0)/BQ34","v":30451.303735024667},{"$f":"VLOOKUP(BP34,[3]CHD!$E$16:$L$226,8,0)/BQ34","v":30092.741367159972}]
["10H","E38000033","NHS Chiltern","Thames",{"$f":"VLOOKUP(A35,Lookup!$BJ$3:$BK$226,2,0)","v":"No"},10,"South","5QD",{"$f":"VLOOKUP(A35,Lookup!$BL$3:$BM$226,2,0)","v":"No"},null,null,null,null,null,null,null,null,null,null,null,null,null,null,null,null,null,null,null,null,null,null,null,null,null,null,null,null,null,null,null,null,null,null,null,null,null,null,null,null,null,null,null,null,null,null,null,null,null,null,null,null,{"$f":"HLOOKUP(GraphData!$E$3,'Closest CCG (codes)'!$A$1:$HD$212,'Closest CCG (codes)'!HE34+2,0)","v":"11T"},"No",{"$f":"HLOOKUP(SummaryData!$D$11,'Closest CCG (codes)'!$A$1:$HD$212,'Closest CCG (codes)'!HE34+2,0)","v":"01F"},"No",null,"Not similar","10H",{"$f":"VLOOKUP($BP35,[1]prevlence!$B$3:$F$213,3,0)","v":9.1199999999999992},{"$f":"VLOOKUP($BP35,[1]prevlence!$B$3:$F$213,5,0)","v":3.871},null,null,null,{"$f":"VLOOKUP(BP35,[2]CCG_AgeSpecificPrevalence!$E$14:$H$225,4,0)/BQ35","v":35945.175438596496},{"$f":"VLOOKUP(BP35,[3]CHD!$E$16:$L$226,8,0)/BQ35","v":36187.280701754389}]
["00X","E38000034","NHS Chorley and South Ribble","Greater Manchester Lancashire and South Cumbria",{"$f":"VLOOKUP(A36,Lookup!$BJ$3:$BK$226,2,0)","v":"No"},6,"North","5NG",{"$f":"VLOOKUP(A36,Lookup!$BL$3:$BM$226,2,0)","v":"No"},null,null,null,null,null,null,null,null,null,null,null,null,null,null,null,null,null,null,null,null,null,null,null,null,null,null,null,null,null,null,null,null,null,null,null,null,null,null,null,null,null,null,null,null,null,null,null,null,null,null,null,null,{"$f":"HLOOKUP(GraphData!$E$3,'Closest CCG (codes)'!$A$1:$HD$212,'Closest CCG (codes)'!HE35+2,0)","v":"00C"},"No",{"$f":"HLOOKUP(SummaryData!$D$11,'Closest CCG (codes)'!$A$1:$HD$212,'Closest CCG (codes)'!HE35+2,0)","v":"02X"},"No",null,"Not similar","00X",{"$f":"VLOOKUP($BP36,[1]prevlence!$B$3:$F$213,3,0)","v":9.6929999999999996},{"$f":"VLOOKUP($BP36,[1]prevlence!$B$3:$F$213,5,0)","v":4.7110000000000003},null,null,null,{"$f":"VLOOKUP(BP36,[2]CCG_AgeSpecificPrevalence!$E$14:$H$225,4,0)/BQ36","v":18013.824409367586},{"$f":"VLOOKUP(BP36,[3]CHD!$E$16:$L$226,8,0)/BQ36","v":18159.806045599918}]
["07T","E38000035","NHS City and Hackney","London",{"$f":"VLOOKUP(A37,Lookup!$BJ$3:$BK$226,2,0)","v":"No"},1,"London","5C3",{"$f":"VLOOKUP(A37,Lookup!$BL$3:$BM$226,2,0)","v":"No"},null,null,null,null,null,null,null,null,null,null,null,null,null,null,null,null,null,null,null,null,null,null,null,null,null,null,null,null,null,null,null,null,null,null,null,null,null,null,null,null,null,null,null,null,null,null,null,null,null,null,null,null,{"$f":"HLOOKUP(GraphData!$E$3,'Closest CCG (codes)'!$A$1:$HD$212,'Closest CCG (codes)'!HE36+2,0)","v":"00L"},"No",{"$f":"HLOOKUP(SummaryData!$D$11,'Closest CCG (codes)'!$A$1:$HD$212,'Closest CCG (codes)'!HE36+2,0)","v":"09W"},"No",null,"Not similar","07T",{"$f":"VLOOKUP($BP37,[1]prevlence!$B$3:$F$213,3,0)","v":6.8479999999999999},{"$f":"VLOOKUP($BP37,[1]prevlence!$B$3:$F$213,5,0)","v":3.23},null,null,null,{"$f":"VLOOKUP(BP37,[2]CCG_AgeSpecificPrevalence!$E$14:$H$225,4,0)/BQ37","v":42621.20327102804},{"$f":"VLOOKUP(BP37,[3]CHD!$E$16:$L$226,8,0)/BQ37","v":41722.838785046733}]
["09G","E38000036","NHS Coastal West Sussex","South East coast",{"$f":"VLOOKUP(A38,Lookup!$BJ$3:$BK$226,2,0)","v":"No"},7,"South","5P6",{"$f":"VLOOKUP(A38,Lookup!$BL$3:$BM$226,2,0)","v":"No"},null,null,null,null,null,null,null,null,null,null,null,null,null,null,null,null,null,null,null,null,null,null,null,null,null,null,null,null,null,null,null,null,null,null,null,null,null,null,null,null,null,null,null,null,null,null,null,null,null,null,null,null,{"$f":"HLOOKUP(GraphData!$E$3,'Closest CCG (codes)'!$A$1:$HD$212,'Closest CCG (codes)'!HE37+2,0)","v":"02Y"},"No",{"$f":"HLOOKUP(SummaryData!$D$11,'Closest CCG (codes)'!$A$1:$HD$212,'Closest CCG (codes)'!HE37+2,0)","v":"04R"},"No",null,"Not similar","09G",{"$f":"VLOOKUP($BP38,[1]prevlence!$B$3:$F$213,3,0)","v":11.872999999999999},{"$f":"VLOOKUP($BP38,[1]prevlence!$B$3:$F$213,5,0)","v":5.8310000000000004},null,null,null,{"$f":"VLOOKUP(BP38,[2]CCG_AgeSpecificPrevalence!$E$14:$H$225,4,0)/BQ38","v":41428.788006401082},{"$f":"VLOOKUP(BP38,[3]CHD!$E$16:$L$226,8,0)/BQ38","v":41635.222774362002}]
["03V","E38000037","NHS Corby","East Midlands",{"$f":"VLOOKUP(A39,Lookup!$BJ$3:$BK$226,2,0)","v":"No"},3,"Midlands and East","5PD",{"$f":"VLOOKUP(A39,Lookup!$BL$3:$BM$226,2,0)","v":"No"},null,null,null,null,null,null,null,null,null,null,null,null,null,null,null,null,null,null,null,null,null,null,null,null,null,null,null,null,null,null,null,null,null,null,null,null,null,null,null,null,null,null,null,null,null,null,null,null,null,null,null,null,{"$f":"HLOOKUP(GraphData!$E$3,'Closest CCG (codes)'!$A$1:$HD$212,'Closest CCG (codes)'!HE38+2,0)","v":"02D"},"No",{"$f":"HLOOKUP(SummaryData!$D$11,'Closest CCG (codes)'!$A$1:$HD$212,'Closest CCG (codes)'!HE38+2,0)","v":"05L"},"No",null,"Not similar","03V",{"$f":"VLOOKUP($BP39,[1]prevlence!$B$3:$F$213,3,0)","v":8.6300000000000008},{"$f":"VLOOKUP($BP39,[1]prevlence!$B$3:$F$213,5,0)","v":4.319},null,null,null,{"$f":"VLOOKUP(BP39,[2]CCG_AgeSpecificPrevalence!$E$14:$H$225,4,0)/BQ39","v":8169.4090382387012},{"$f":"VLOOKUP(BP39,[3]CHD!$E$16:$L$226,8,0)/BQ39","v":8364.6581691772881}]
["05A","E38000038","NHS Coventry and Rugby","West Midlands",{"$f":"VLOOKUP(A40,Lookup!$BJ$3:$BK$226,2,0)","v":"No"},4,"Midlands and East","5MD",{"$f":"VLOOKUP(A40,Lookup!$BL$3:$BM$226,2,0)","v":"No"},null,null,null,null,null,null,null,null,null,null,null,null,null,null,null,null,null,null,null,null,null,null,null,null,null,null,null,null,null,null,null,null,null,null,null,null,null,null,null,null,null,null,null,null,null,null,null,null,null,null,null,null,{"$f":"HLOOKUP(GraphData!$E$3,'Closest CCG (codes)'!$A$1:$HD$212,'Closest CCG (codes)'!HE39+2,0)","v":"05F"},"No",{"$f":"HLOOKUP(SummaryData!$D$11,'Closest CCG (codes)'!$A$1:$HD$212,'Closest CCG (codes)'!HE39+2,0)","v":"02E"},"No",null,"Not similar","05A",{"$f":"VLOOKUP($BP40,[1]prevlence!$B$3:$F$213,3,0)","v":8.9719999999999995},{"$f":"VLOOKUP($BP40,[1]prevlence!$B$3:$F$213,5,0)","v":4.5309999999999997},null,null,null,{"$f":"VLOOKUP(BP40,[2]CCG_AgeSpecificPrevalence!$E$14:$H$225,4,0)/BQ40","v":52573.785109228716},{"$f":"VLOOKUP(BP40,[3]CHD!$E$16:$L$226,8,0)/BQ40","v":53473.918858671423}]
["09H","E38000039","NHS Crawley","South East coast",{"$f":"VLOOKUP(A41,Lookup!$BJ$3:$BK$226,2,0)","v":"No"},7,"South","5P6",{"$f":"VLOOKUP(A41,Lookup!$BL$3:$BM$226,2,0)","v":"No"},null,null,null,null,null,null,null,null,null,null,null,null,null,null,null,null,null,null,null,null,null,null,null,null,null,null,null,null,null,null,null,null,null,null,null,null,null,null,null,null,null,null,null,null,null,null,null,null,null,null,null,null,{"$f":"HLOOKUP(GraphData!$E$3,'Closest CCG (codes)'!$A$1:$HD$212,'Closest CCG (codes)'!HE40+2,0)","v":"06Y"},"No",{"$f":"HLOOKUP(SummaryData!$D$11,'Closest CCG (codes)'!$A$1:$HD$212,'Closest CCG (codes)'!HE40+2,0)","v":"99G"},"No",null,"Not similar","09H",{"$f":"VLOOKUP($BP41,[1]prevlence!$B$3:$F$213,3,0)","v":8.1859999999999999},{"$f":"VLOOKUP($BP41,[1]prevlence!$B$3:$F$213,5,0)","v":3.7170000000000001},null,null,null,{"$f":"VLOOKUP(BP41,[2]CCG_AgeSpecificPrevalence!$E$14:$H$225,4,0)/BQ41","v":15548.253115074518},{"$f":"VLOOKUP(BP41,[3]CHD!$E$16:$L$226,8,0)/BQ41","v":15596.99486928903}]
["07V","E38000040","NHS Croydon","London",{"$f":"VLOOKUP(A42,Lookup!$BJ$3:$BK$226,2,0)","v":"No"},5,"London","5K9",{"$f":"VLOOKUP(A42,Lookup!$BL$3:$BM$226,2,0)","v":"No"},null,null,null,null,null,null,null,null,null,null,null,null,null,null,null,null,null,null,null,null,null,null,null,null,null,null,null,null,null,null,null,null,null,null,null,null,null,null,null,null,null,null,null,null,null,null,null,null,null,null,null,null,{"$f":"HLOOKUP(GraphData!$E$3,'Closest CCG (codes)'!$A$1:$HD$212,'Closest CCG (codes)'!HE41+2,0)","v":"01E"},"No",{"$f":"HLOOKUP(SummaryData!$D$11,'Closest CCG (codes)'!$A$1:$HD$212,'Closest CCG (codes)'!HE41+2,0)","v":"12D"},"No",null,"Not similar","07V",{"$f":"VLOOKUP($BP42,[1]prevlence!$B$3:$F$213,3,0)","v":7.8209999999999997},{"$f":"VLOOKUP($BP42,[1]prevlence!$B$3:$F$213,5,0)","v":3.5990000000000002},null,null,null,{"$f":"VLOOKUP(BP42,[2]CCG_AgeSpecificPrevalence!$E$14:$H$225,4,0)/BQ42","v":49220.560030686618},{"$f":"VLOOKUP(BP42,[3]CHD!$E$16:$L$226,8,0)/BQ42","v":50094.872778417084}]
["01H","E38000041","NHS Cumbria","Northern England",{"$f":"VLOOKUP(A43,Lookup!$BJ$3:$BK$226,2,0)","v":"No"},5,"North","5NE",{"$f":"VLOOKUP(A43,Lookup!$BL$3:$BM$226,2,0)","v":"No"},null,null,null,null,null,null,null,null,null,null,null,null,null,null,null,null,null,null,null,null,null,null,null,null,null,null,null,null,null,null,null,null,null,null,null,null,null,null,null,null,null,null,null,null,null,null,null,null,null,null,null,null,{"$f":"HLOOKUP(GraphData!$E$3,'Closest CCG (codes)'!$A$1:$HD$212,'Closest CCG (codes)'!HE42+2,0)","v":"06T"},"No",{"$f":"HLOOKUP(SummaryData!$D$11,'Closest CCG (codes)'!$A$1:$HD$212,'Closest CCG (codes)'!HE42+2,0)","v":"04F"},"No",null,"Not similar","01H",{"$f":"VLOOKUP($BP43,[1]prevlence!$B$3:$F$213,3,0)","v":11.092000000000001},{"$f":"VLOOKUP($BP43,[1]prevlence!$B$3:$F$213,5,0)","v":5.6669999999999998},null,null,null,{"$f":"VLOOKUP(BP43,[2]CCG_AgeSpecificPrevalence!$E$14:$H$225,4,0)/BQ43","v":47254.327443202303},{"$f":"VLOOKUP(BP43,[3]CHD!$E$16:$L$226,8,0)/BQ43","v":46892.084385142443}]
["00C","E38000042","NHS Darlington","Northern England",{"$f":"VLOOKUP(A44,Lookup!$BJ$3:$BK$226,2,0)","v":"No"},4,"North","5J9",{"$f":"VLOOKUP(A44,Lookup!$BL$3:$BM$226,2,0)","v":"No"},null,null,null,null,null,null,null,null,null,null,null,null,null,null,null,null,null,null,null,null,null,null,null,null,null,null,null,null,null,null,null,null,null,null,null,null,null,null,null,null,null,null,null,null,null,null,null,null,null,null,null,null,{"$f":"HLOOKUP(GraphData!$E$3,'Closest CCG (codes)'!$A$1:$HD$212,'Closest CCG (codes)'!HE43+2,0)","v":"03W"},"No",{"$f":"HLOOKUP(SummaryData!$D$11,'Closest CCG (codes)'!$A$1:$HD$212,'Closest CCG (codes)'!HE43+2,0)","v":"10D"},"No",null,"Not similar","00C",{"$f":"VLOOKUP($BP44,[1]prevlence!$B$3:$F$213,3,0)","v":10.186},{"$f":"VLOOKUP($BP44,[1]prevlence!$B$3:$F$213,5,0)","v":5.367},null,null,null,{"$f":"VLOOKUP(BP44,[2]CCG_AgeSpecificPrevalence!$E$14:$H$225,4,0)/BQ44","v":10439.230316120165},{"$f":"VLOOKUP(BP44,[3]CHD!$E$16:$L$226,8,0)/BQ44","v":10436.186923227961}]
["09J","E38000043","NHS Dartford, Gravesham and Swanley","South East coast",{"$f":"VLOOKUP(A45,Lookup!$BJ$3:$BK$226,2,0)","v":"No"},7,"South","5P9",{"$f":"VLOOKUP(A45,Lookup!$BL$3:$BM$226,2,0)","v":"No"},null,null,null,null,null,null,null,null,null,null,null,null,null,null,null,null,null,null,null,null,null,null,null,null,null,null,null,null,null,null,null,null,null,null,null,null,null,null,null,null,null,null,null,null,null,null,null,null,null,null,null,null,{"$f":"HLOOKUP(GraphData!$E$3,'Closest CCG (codes)'!$A$1:$HD$212,'Closest CCG (codes)'!HE44+2,0)","v":"99D"},"No",{"$f":"HLOOKUP(SummaryData!$D$11,'Closest CCG (codes)'!$A$1:$HD$212,'Closest CCG (codes)'!HE44+2,0)","v":"03F"},"No",null,"Not similar","09J",{"$f":"VLOOKUP($BP45,[1]prevlence!$B$3:$F$213,3,0)","v":9.2170000000000005},{"$f":"VLOOKUP($BP45,[1]prevlence!$B$3:$F$213,5,0)","v":4.3520000000000003},null,null,null,{"$f":"VLOOKUP(BP45,[2]CCG_AgeSpecificPrevalence!$E$14:$H$225,4,0)/BQ45","v":27197.678203319952},{"$f":"VLOOKUP(BP45,[3]CHD!$E$16:$L$226,8,0)/BQ45","v":27377.671693609635}]
["02X","E38000044","NHS Doncaster","Yorkshire and Northern",{"$f":"VLOOKUP(A46,Lookup!$BJ$3:$BK$226,2,0)","v":"No"},2,"North","5N5",{"$f":"VLOOKUP(A46,Lookup!$BL$3:$BM$226,2,0)","v":"No"},null,null,null,null,null,null,null,null,null,null,null,null,null,null,null,null,null,null,null,null,null,null,null,null,null,null,null,null,null,null,null,null,null,null,null,null,null,null,null,null,null,null,null,null,null,null,null,null,null,null,null,null,{"$f":"HLOOKUP(GraphData!$E$3,'Closest CCG (codes)'!$A$1:$HD$212,'Closest CCG (codes)'!HE45+2,0)","v":"03T"},"No",{"$f":"HLOOKUP(SummaryData!$D$11,'Closest CCG (codes)'!$A$1:$HD$212,'Closest CCG (codes)'!HE45+2,0)","v":"03V"},"No",null,"Not similar","02X",{"$f":"VLOOKUP($BP46,[1]prevlence!$B$3:$F$213,3,0)","v":10.462},{"$f":"VLOOKUP($BP46,[1]prevlence!$B$3:$F$213,5,0)","v":5.8410000000000002},null,null,null,{"$f":"VLOOKUP(BP46,[2]CCG_AgeSpecificPrevalence!$E$14:$H$225,4,0)/BQ46","v":29641.082011087747},{"$f":"VLOOKUP(BP46,[3]CHD!$E$16:$L$226,8,0)/BQ46","v":29709.806920282928}]
["11J","E38000045","NHS Dorset","Wessex",{"$f":"VLOOKUP(A47,Lookup!$BJ$3:$BK$226,2,0)","v":"No"},7,"South","5QM",{"$f":"VLOOKUP(A47,Lookup!$BL$3:$BM$226,2,0)","v":"No"},null,null,null,null,null,null,null,null,null,null,null,null,null,null,null,null,null,null,null,null,null,null,null,null,null,null,null,null,null,null,null,null,null,null,null,null,null,null,null,null,null,null,null,null,null,null,null,null,null,null,null,null,{"$f":"HLOOKUP(GraphData!$E$3,'Closest CCG (codes)'!$A$1:$HD$212,'Closest CCG (codes)'!HE46+2,0)","v":"00V"},"No",{"$f":"HLOOKUP(SummaryData!$D$11,'Closest CCG (codes)'!$A$1:$HD$212,'Closest CCG (codes)'!HE46+2,0)","v":"07H"},"No",null,"Not similar","11J",{"$f":"VLOOKUP($BP47,[1]prevlence!$B$3:$F$213,3,0)","v":11.443},{"$f":"VLOOKUP($BP47,[1]prevlence!$B$3:$F$213,5,0)","v":5.6109999999999998},null,null,null,{"$f":"VLOOKUP(BP47,[2]CCG_AgeSpecificPrevalence!$E$14:$H$225,4,0)/BQ47","v":67440.880887879059},{"$f":"VLOOKUP(BP47,[3]CHD!$E$16:$L$226,8,0)/BQ47","v":67983.483352267765}]
["05C","E38000046","NHS Dudley","West Midlands",{"$f":"VLOOKUP(A48,Lookup!$BJ$3:$BK$226,2,0)","v":"No"},4,"Midlands and East","5PE",{"$f":"VLOOKUP(A48,Lookup!$BL$3:$BM$226,2,0)","v":"No"},null,null,null,null,null,null,null,null,null,null,null,null,null,null,null,null,null,null,null,null,null,null,null,null,null,null,null,null,null,null,null,null,null,null,null,null,null,null,null,null,null,null,null,null,null,null,null,null,null,null,null,null,{"$f":"HLOOKUP(GraphData!$E$3,'Closest CCG (codes)'!$A$1:$HD$212,'Closest CCG (codes)'!HE47+2,0)","v":"06D"},"No",{"$f":"HLOOKUP(SummaryData!$D$11,'Closest CCG (codes)'!$A$1:$HD$212,'Closest CCG (codes)'!HE47+2,0)","v":"01W"},"No",null,"Not similar","05C",{"$f":"VLOOKUP($BP48,[1]prevlence!$B$3:$F$213,3,0)","v":10.404999999999999},{"$f":"VLOOKUP($BP48,[1]prevlence!$B$3:$F$213,5,0)","v":5.4569999999999999},null,null,null,{"$f":"VLOOKUP(BP48,[2]CCG_AgeSpecificPrevalence!$E$14:$H$225,4,0)/BQ48","v":30259.682844786163},{"$f":"VLOOKUP(BP48,[3]CHD!$E$16:$L$226,8,0)/BQ48","v":29930.99471407977}]
["00D","E38000047","NHS Durham Dales, Easington and Sedgefield","Northern England",{"$f":"VLOOKUP(A49,Lookup!$BJ$3:$BK$226,2,0)","v":"No"},2,"North","5ND",{"$f":"VLOOKUP(A49,Lookup!$BL$3:$BM$226,2,0)","v":"No"},null,null,null,null,null,null,null,null,null,null,null,null,null,null,null,null,null,null,null,null,null,null,null,null,null,null,null,null,null,null,null,null,null,null,null,null,null,null,null,null,null,null,null,null,null,null,null,null,null,null,null,null,{"$f":"HLOOKUP(GraphData!$E$3,'Closest CCG (codes)'!$A$1:$HD$212,'Closest CCG (codes)'!HE48+2,0)","v":"05J"},"No",{"$f":"HLOOKUP(SummaryData!$D$11,'Closest CCG (codes)'!$A$1:$HD$212,'Closest CCG (codes)'!HE48+2,0)","v":"12F"},"No",null,"Not similar","00D",{"$f":"VLOOKUP($BP49,[1]prevlence!$B$3:$F$213,3,0)","v":10.959},{"$f":"VLOOKUP($BP49,[1]prevlence!$B$3:$F$213,5,0)","v":6.2149999999999999},null,null,null,{"$f":"VLOOKUP(BP49,[2]CCG_AgeSpecificPrevalence!$E$14:$H$225,4,0)/BQ49","v":26268.090154211153},{"$f":"VLOOKUP(BP49,[3]CHD!$E$16:$L$226,8,0)/BQ49","v":26278.583812391644}]
["07W","E38000048","NHS Ealing","London",{"$f":"VLOOKUP(A50,Lookup!$BJ$3:$BK$226,2,0)","v":"No"},4,"London","5HX",{"$f":"VLOOKUP(A50,Lookup!$BL$3:$BM$226,2,0)","v":"No"},null,null,null,null,null,null,null,null,null,null,null,null,null,null,null,null,null,null,null,null,null,null,null,null,null,null,null,null,null,null,null,null,null,null,null,null,null,null,null,null,null,null,null,null,null,null,null,null,null,null,null,null,{"$f":"HLOOKUP(GraphData!$E$3,'Closest CCG (codes)'!$A$1:$HD$212,'Closest CCG (codes)'!HE49+2,0)","v":"03A"},"No",{"$f":"HLOOKUP(SummaryData!$D$11,'Closest CCG (codes)'!$A$1:$HD$212,'Closest CCG (codes)'!HE49+2,0)","v":"06F"},"No",null,"Not similar","07W",{"$f":"VLOOKUP($BP50,[1]prevlence!$B$3:$F$213,3,0)","v":7.0419999999999998},{"$f":"VLOOKUP($BP50,[1]prevlence!$B$3:$F$213,5,0)","v":3.3879999999999999},null,null,null,{"$f":"VLOOKUP(BP50,[2]CCG_AgeSpecificPrevalence!$E$14:$H$225,4,0)/BQ50","v":57891.082078954845},{"$f":"VLOOKUP(BP50,[3]CHD!$E$16:$L$226,8,0)/BQ50","v":57975.717125816533}]
["06K","E38000049","NHS East and North Hertfordshire","East of England",{"$f":"VLOOKUP(A51,Lookup!$BJ$3:$BK$226,2,0)","v":"No"},9,"Midlands and East","5QV",{"$f":"VLOOKUP(A51,Lookup!$BL$3:$BM$226,2,0)","v":"No"},null,null,null,null,null,null,null,null,null,null,null,null,null,null,null,null,null,null,null,null,null,null,null,null,null,null,null,null,null,null,null,null,null,null,null,null,null,null,null,null,null,null,null,null,null,null,null,null,null,null,null,null,{"$f":"HLOOKUP(GraphData!$E$3,'Closest CCG (codes)'!$A$1:$HD$212,'Closest CCG (codes)'!HE50+2,0)","v":"01C"},"No",{"$f":"HLOOKUP(SummaryData!$D$11,'Closest CCG (codes)'!$A$1:$HD$212,'Closest CCG (codes)'!HE50+2,0)","v":"02P"},"No",null,"Not similar","06K",{"$f":"VLOOKUP($BP51,[1]prevlence!$B$3:$F$213,3,0)","v":8.7509999999999994},{"$f":"VLOOKUP($BP51,[1]prevlence!$B$3:$F$213,5,0)","v":3.6850000000000001},null,null,null,{"$f":"VLOOKUP(BP51,[2]CCG_AgeSpecificPrevalence!$E$14:$H$225,4,0)/BQ51","v":65483.716146726096},{"$f":"VLOOKUP(BP51,[3]CHD!$E$16:$L$226,8,0)/BQ51","v":66013.027082619126}]
["01A","E38000050","NHS East Lancashire","Greater Manchester Lancashire and South Cumbria",{"$f":"VLOOKUP(A52,Lookup!$BJ$3:$BK$226,2,0)","v":"No"},3,"North","5NH",{"$f":"VLOOKUP(A52,Lookup!$BL$3:$BM$226,2,0)","v":"Comparator Closest 10 CCGs"},null,null,null,null,null,null,null,null,null,null,null,null,null,null,null,null,null,null,null,null,null,null,null,null,null,null,null,null,null,null,null,null,null,null,null,null,null,null,null,null,null,null,null,null,null,null,null,null,null,null,null,null,{"$f":"HLOOKUP(GraphData!$E$3,'Closest CCG (codes)'!$A$1:$HD$212,'Closest CCG (codes)'!HE51+2,0)","v":"10L"},"No",{"$f":"HLOOKUP(SummaryData!$D$11,'Closest CCG (codes)'!$A$1:$HD$212,'Closest CCG (codes)'!HE51+2,0)","v":"02H"},"No",null,"Not similar","01A",{"$f":"VLOOKUP($BP52,[1]prevlence!$B$3:$F$213,3,0)","v":9.9930000000000003},{"$f":"VLOOKUP($BP52,[1]prevlence!$B$3:$F$213,5,0)","v":5.516},null,null,null,{"$f":"VLOOKUP(BP52,[2]CCG_AgeSpecificPrevalence!$E$14:$H$225,4,0)/BQ52","v":36814.870409286501},{"$f":"VLOOKUP(BP52,[3]CHD!$E$16:$L$226,8,0)/BQ52","v":37186.830781547083}]
["03W","E38000051","NHS East Leicestershire and Rutland","East Midlands",{"$f":"VLOOKUP(A53,Lookup!$BJ$3:$BK$226,2,0)","v":"No"},10,"Midlands and East","5PA",{"$f":"VLOOKUP(A53,Lookup!$BL$3:$BM$226,2,0)","v":"No"},null,null,null,null,null,null,null,null,null,null,null,null,null,null,null,null,null,null,null,null,null,null,null,null,null,null,null,null,null,null,null,null,null,null,null,null,null,null,null,null,null,null,null,null,null,null,null,null,null,null,null,null,{"$f":"HLOOKUP(GraphData!$E$3,'Closest CCG (codes)'!$A$1:$HD$212,'Closest CCG (codes)'!HE52+2,0)","v":"09N"},"No",{"$f":"HLOOKUP(SummaryData!$D$11,'Closest CCG (codes)'!$A$1:$HD$212,'Closest CCG (codes)'!HE52+2,0)","v":"03H"},"No",null,"Not similar","03W",{"$f":"VLOOKUP($BP53,[1]prevlence!$B$3:$F$213,3,0)","v":10.109},{"$f":"VLOOKUP($BP53,[1]prevlence!$B$3:$F$213,5,0)","v":4.375},null,null,null,{"$f":"VLOOKUP(BP53,[2]CCG_AgeSpecificPrevalence!$E$14:$H$225,4,0)/BQ53","v":31421.80235433772},{"$f":"VLOOKUP(BP53,[3]CHD!$E$16:$L$226,8,0)/BQ53","v":31799.485606884955}]
["02Y","E38000052","NHS East Riding Of Yorkshire","Yorkshire and Northern",{"$f":"VLOOKUP(A54,Lookup!$BJ$3:$BK$226,2,0)","v":"No"},8,"North","5NW",{"$f":"VLOOKUP(A54,Lookup!$BL$3:$BM$226,2,0)","v":"No"},null,null,null,null,null,null,null,null,null,null,null,null,null,null,null,null,null,null,null,null,null,null,null,null,null,null,null,null,null,null,null,null,null,null,null,null,null,null,null,null,null,null,null,null,null,null,null,null,null,null,null,null,{"$f":"HLOOKUP(GraphData!$E$3,'Closest CCG (codes)'!$A$1:$HD$212,'Closest CCG (codes)'!HE53+2,0)","v":"04J"},"No",{"$f":"HLOOKUP(SummaryData!$D$11,'Closest CCG (codes)'!$A$1:$HD$212,'Closest CCG (codes)'!HE53+2,0)","v":"08T"},"No",null,"Not similar","02Y",{"$f":"VLOOKUP($BP54,[1]prevlence!$B$3:$F$213,3,0)","v":11.287000000000001},{"$f":"VLOOKUP($BP54,[1]prevlence!$B$3:$F$213,5,0)","v":5.468},null,null,null,{"$f":"VLOOKUP(BP54,[2]CCG_AgeSpecificPrevalence!$E$14:$H$225,4,0)/BQ54","v":26662.886506600513},{"$f":"VLOOKUP(BP54,[3]CHD!$E$16:$L$226,8,0)/BQ54","v":26664.038274120667}]
["05D","E38000053","NHS East Staffordshire","West Midlands",{"$f":"VLOOKUP(A55,Lookup!$BJ$3:$BK$226,2,0)","v":"Closest 10 CCGs"},6,"Midlands and East","5PK",{"$f":"VLOOKUP(A55,Lookup!$BL$3:$BM$226,2,0)","v":"No"},null,null,null,null,null,null,null,null,null,null,null,null,null,null,null,null,null,null,null,null,null,null,null,null,null,null,null,null,null,null,null,null,null,null,null,null,null,null,null,null,null,null,null,null,null,null,null,null,null,null,null,null,{"$f":"HLOOKUP(GraphData!$E$3,'Closest CCG (codes)'!$A$1:$HD$212,'Closest CCG (codes)'!HE54+2,0)","v":"10V"},"No",{"$f":"HLOOKUP(SummaryData!$D$11,'Closest CCG (codes)'!$A$1:$HD$212,'Closest CCG (codes)'!HE54+2,0)","v":"05P"},"No",null,"Not similar","05D",{"$f":"VLOOKUP($BP55,[1]prevlence!$B$3:$F$213,3,0)","v":9.641},{"$f":"VLOOKUP($BP55,[1]prevlence!$B$3:$F$213,5,0)","v":4.5629999999999997},null,null,null,{"$f":"VLOOKUP(BP55,[2]CCG_AgeSpecificPrevalence!$E$14:$H$225,4,0)/BQ55","v":14017.84047297998},{"$f":"VLOOKUP(BP55,[3]CHD!$E$16:$L$226,8,0)/BQ55","v":14142.827507519967}]
["09L","E38000054","NHS East Surrey","South East coast",{"$f":"VLOOKUP(A56,Lookup!$BJ$3:$BK$226,2,0)","v":"No"},10,"South","5P5",{"$f":"VLOOKUP(A56,Lookup!$BL$3:$BM$226,2,0)","v":"No"},null,null,null,null,null,null,null,null,null,null,null,null,null,null,null,null,null,null,null,null,null,null,null,null,null,null,null,null,null,null,null,null,null,null,null,null,null,null,null,null,null,null,null,null,null,null,null,null,null,null,null,null,{"$f":"HLOOKUP(GraphData!$E$3,'Closest CCG (codes)'!$A$1:$HD$212,'Closest CCG (codes)'!HE55+2,0)","v":"03D"},"No",{"$f":"HLOOKUP(SummaryData!$D$11,'Closest CCG (codes)'!$A$1:$HD$212,'Closest CCG (codes)'!HE55+2,0)","v":"05H"},"No",null,"Not similar","09L",{"$f":"VLOOKUP($BP56,[1]prevlence!$B$3:$F$213,3,0)","v":9.2799999999999994},{"$f":"VLOOKUP($BP56,[1]prevlence!$B$3:$F$213,5,0)","v":3.879},null,null,null,{"$f":"VLOOKUP(BP56,[2]CCG_AgeSpecificPrevalence!$E$14:$H$225,4,0)/BQ56","v":18574.030172413793},{"$f":"VLOOKUP(BP56,[3]CHD!$E$16:$L$226,8,0)/BQ56","v":18879.202586206899}]
["09F","E38000055","NHS Eastbourne, Hailsham and Seaford","South East coast",{"$f":"VLOOKUP(A57,Lookup!$BJ$3:$BK$226,2,0)","v":"No"},6,"South","5P7",{"$f":"VLOOKUP(A57,Lookup!$BL$3:$BM$226,2,0)","v":"No"},null,null,null,null,null,null,null,null,null,null,null,null,null,null,null,null,null,null,null,null,null,null,null,null,null,null,null,null,null,null,null,null,null,null,null,null,null,null,null,null,null,null,null,null,null,null,null,null,null,null,null,null,{"$f":"HLOOKUP(GraphData!$E$3,'Closest CCG (codes)'!$A$1:$HD$212,'Closest CCG (codes)'!HE56+2,0)","v":"99E"},"No",{"$f":"HLOOKUP(SummaryData!$D$11,'Closest CCG (codes)'!$A$1:$HD$212,'Closest CCG (codes)'!HE56+2,0)","v":"09J"},"No",null,"Not similar","09F",{"$f":"VLOOKUP($BP57,[1]prevlence!$B$3:$F$213,3,0)","v":12.260999999999999},{"$f":"VLOOKUP($BP57,[1]prevlence!$B$3:$F$213,5,0)","v":6.4160000000000004},null,null,null,{"$f":"VLOOKUP(BP57,[2]CCG_AgeSpecificPrevalence!$E$14:$H$225,4,0)/BQ57","v":15256.34124459669},{"$f":"VLOOKUP(BP57,[3]CHD!$E$16:$L$226,8,0)/BQ57","v":15312.861919908655}]
["01C","E38000056","NHS Eastern Cheshire","Cheshire and Merseyside",{"$f":"VLOOKUP(A58,Lookup!$BJ$3:$BK$226,2,0)","v":"No"},9,"North","5NP",{"$f":"VLOOKUP(A58,Lookup!$BL$3:$BM$226,2,0)","v":"No"},null,null,null,null,null,null,null,null,null,null,null,null,null,null,null,null,null,null,null,null,null,null,null,null,null,null,null,null,null,null,null,null,null,null,null,null,null,null,null,null,null,null,null,null,null,null,null,null,null,null,null,null,{"$f":"HLOOKUP(GraphData!$E$3,'Closest CCG (codes)'!$A$1:$HD$212,'Closest CCG (codes)'!HE57+2,0)","v":"06F"},"No",{"$f":"HLOOKUP(SummaryData!$D$11,'Closest CCG (codes)'!$A$1:$HD$212,'Closest CCG (codes)'!HE57+2,0)","v":"07M"},"No",null,"Not similar","01C",{"$f":"VLOOKUP($BP58,[1]prevlence!$B$3:$F$213,3,0)","v":10.449},{"$f":"VLOOKUP($BP58,[1]prevlence!$B$3:$F$213,5,0)","v":4.6619999999999999},null,null,null,{"$f":"VLOOKUP(BP58,[2]CCG_AgeSpecificPrevalence!$E$14:$H$225,4,0)/BQ58","v":19423.389798066801},{"$f":"VLOOKUP(BP58,[3]CHD!$E$16:$L$226,8,0)/BQ58","v":19565.891472868218}]
["07X","E38000057","NHS Enfield","London",{"$f":"VLOOKUP(A59,Lookup!$BJ$3:$BK$226,2,0)","v":"No"},3,"London","5C1",{"$f":"VLOOKUP(A59,Lookup!$BL$3:$BM$226,2,0)","v":"No"},null,null,null,null,null,null,null,null,null,null,null,null,null,null,null,null,null,null,null,null,null,null,null,null,null,null,null,null,null,null,null,null,null,null,null,null,null,null,null,null,null,null,null,null,null,null,null,null,null,null,null,null,{"$f":"HLOOKUP(GraphData!$E$3,'Closest CCG (codes)'!$A$1:$HD$212,'Closest CCG (codes)'!HE58+2,0)","v":"10H"},"No",{"$f":"HLOOKUP(SummaryData!$D$11,'Closest CCG (codes)'!$A$1:$HD$212,'Closest CCG (codes)'!HE58+2,0)","v":"99E"},"No",null,"Not similar","07X",{"$f":"VLOOKUP($BP59,[1]prevlence!$B$3:$F$213,3,0)","v":8.1790000000000003},{"$f":"VLOOKUP($BP59,[1]prevlence!$B$3:$F$213,5,0)","v":3.774},null,null,null,{"$f":"VLOOKUP(BP59,[2]CCG_AgeSpecificPrevalence!$E$14:$H$225,4,0)/BQ59","v":37651.302115173006},{"$f":"VLOOKUP(BP59,[3]CHD!$E$16:$L$226,8,0)/BQ59","v":38375.473774300037}]
["03X","E38000058","NHS Erewash","East Midlands",{"$f":"VLOOKUP(A60,Lookup!$BJ$3:$BK$226,2,0)","v":"No"},5,"Midlands and East","5N6",{"$f":"VLOOKUP(A60,Lookup!$BL$3:$BM$226,2,0)","v":"No"},null,null,null,null,null,null,null,null,null,null,null,null,null,null,null,null,null,null,null,null,null,null,null,null,null,null,null,null,null,null,null,null,null,null,null,null,null,null,null,null,null,null,null,null,null,null,null,null,null,null,null,null,{"$f":"HLOOKUP(GraphData!$E$3,'Closest CCG (codes)'!$A$1:$HD$212,'Closest CCG (codes)'!HE59+2,0)","v":"03G"},"No",{"$f":"HLOOKUP(SummaryData!$D$11,'Closest CCG (codes)'!$A$1:$HD$212,'Closest CCG (codes)'!HE59+2,0)","v":"10E"},"No",null,"Not similar","03X",{"$f":"VLOOKUP($BP60,[1]prevlence!$B$3:$F$213,3,0)","v":10},{"$f":"VLOOKUP($BP60,[1]prevlence!$B$3:$F$213,5,0)","v":5.0780000000000003},null,null,null,{"$f":"VLOOKUP(BP60,[2]CCG_AgeSpecificPrevalence!$E$14:$H$225,4,0)/BQ60","v":9587.5},{"$f":"VLOOKUP(BP60,[3]CHD!$E$16:$L$226,8,0)/BQ60","v":9705.7999999999993}]
["10K","E38000059","NHS Fareham and Gosport","Wessex",{"$f":"VLOOKUP(A61,Lookup!$BJ$3:$BK$226,2,0)","v":"No"},9,"South","5QC",{"$f":"VLOOKUP(A61,Lookup!$BL$3:$BM$226,2,0)","v":"No"},null,null,null,null,null,null,null,null,null,null,null,null,null,null,null,null,null,null,null,null,null,null,null,null,null,null,null,null,null,null,null,null,null,null,null,null,null,null,null,null,null,null,null,null,null,null,null,null,null,null,null,null,{"$f":"HLOOKUP(GraphData!$E$3,'Closest CCG (codes)'!$A$1:$HD$212,'Closest CCG (codes)'!HE60+2,0)","v":"10J"},"No",{"$f":"HLOOKUP(SummaryData!$D$11,'Closest CCG (codes)'!$A$1:$HD$212,'Closest CCG (codes)'!HE60+2,0)","v":"02N"},"No",null,"Not similar","10K",{"$f":"VLOOKUP($BP61,[1]prevlence!$B$3:$F$213,3,0)","v":10.130000000000001},{"$f":"VLOOKUP($BP61,[1]prevlence!$B$3:$F$213,5,0)","v":4.468},null,null,null,{"$f":"VLOOKUP(BP61,[2]CCG_AgeSpecificPrevalence!$E$14:$H$225,4,0)/BQ61","v":19838.005923000987},{"$f":"VLOOKUP(BP61,[3]CHD!$E$16:$L$226,8,0)/BQ61","v":19900.888450148075}]
["02M","E38000060","NHS Fylde & Wyre","Greater Manchester Lancashire and South Cumbria",{"$f":"VLOOKUP(A62,Lookup!$BJ$3:$BK$226,2,0)","v":"No"},8,"North","5NF",{"$f":"VLOOKUP(A62,Lookup!$BL$3:$BM$226,2,0)","v":"No"},null,null,null,null,null,null,null,null,null,null,null,null,null,null,null,null,null,null,null,null,null,null,null,null,null,null,null,null,null,null,null,null,null,null,null,null,null,null,null,null,null,null,null,null,null,null,null,null,null,null,null,null,{"$f":"HLOOKUP(GraphData!$E$3,'Closest CCG (codes)'!$A$1:$HD$212,'Closest CCG (codes)'!HE61+2,0)","v":"09J"},"No",{"$f":"HLOOKUP(SummaryData!$D$11,'Closest CCG (codes)'!$A$1:$HD$212,'Closest CCG (codes)'!HE61+2,0)","v":"00C"},"No",null,"Not similar","02M",{"$f":"VLOOKUP($BP62,[1]prevlence!$B$3:$F$213,3,0)","v":11.891999999999999},{"$f":"VLOOKUP($BP62,[1]prevlence!$B$3:$F$213,5,0)","v":5.718},null,null,null,{"$f":"VLOOKUP(BP62,[2]CCG_AgeSpecificPrevalence!$E$14:$H$225,4,0)/BQ62","v":12706.357214934411},{"$f":"VLOOKUP(BP62,[3]CHD!$E$16:$L$226,8,0)/BQ62","v":12668.180289270098}]
["00F","E38000061","NHS Gateshead","Northern England",{"$f":"VLOOKUP(A63,Lookup!$BJ$3:$BK$226,2,0)","v":"No"},2,"North","5KF",{"$f":"VLOOKUP(A63,Lookup!$BL$3:$BM$226,2,0)","v":"No"},null,null,null,null,null,null,null,null,null,null,null,null,null,null,null,null,null,null,null,null,null,null,null,null,null,null,null,null,null,null,null,null,null,null,null,null,null,null,null,null,null,null,null,null,null,null,null,null,null,null,null,null,{"$f":"HLOOKUP(GraphData!$E$3,'Closest CCG (codes)'!$A$1:$HD$212,'Closest CCG (codes)'!HE62+2,0)","v":"00X"},"No",{"$f":"HLOOKUP(SummaryData!$D$11,'Closest CCG (codes)'!$A$1:$HD$212,'Closest CCG (codes)'!HE62+2,0)","v":"10H"},"No",null,"Not similar","00F",{"$f":"VLOOKUP($BP63,[1]prevlence!$B$3:$F$213,3,0)","v":10.685},{"$f":"VLOOKUP($BP63,[1]prevlence!$B$3:$F$213,5,0)","v":5.9139999999999997},null,null,null,{"$f":"VLOOKUP(BP63,[2]CCG_AgeSpecificPrevalence!$E$14:$H$225,4,0)/BQ63","v":19309.031352363127},{"$f":"VLOOKUP(BP63,[3]CHD!$E$16:$L$226,8,0)/BQ63","v":19220.87037903603}]
["11M","E38000062","NHS Gloucestershire","South West",{"$f":"VLOOKUP(A64,Lookup!$BJ$3:$BK$226,2,0)","v":"No"},8,"South","5QH",{"$f":"VLOOKUP(A64,Lookup!$BL$3:$BM$226,2,0)","v":"No"},null,null,null,null,null,null,null,null,null,null,null,null,null,null,null,null,null,null,null,null,null,null,null,null,null,null,null,null,null,null,null,null,null,null,null,null,null,null,null,null,null,null,null,null,null,null,null,null,null,null,null,null,{"$f":"HLOOKUP(GraphData!$E$3,'Closest CCG (codes)'!$A$1:$HD$212,'Closest CCG (codes)'!HE63+2,0)","v":"02E"},"No",{"$f":"HLOOKUP(SummaryData!$D$11,'Closest CCG (codes)'!$A$1:$HD$212,'Closest CCG (codes)'!HE63+2,0)","v":"01X"},"No",null,"Not similar","11M",{"$f":"VLOOKUP($BP64,[1]prevlence!$B$3:$F$213,3,0)","v":10.074999999999999},{"$f":"VLOOKUP($BP64,[1]prevlence!$B$3:$F$213,5,0)","v":4.5609999999999999},null,null,null,{"$f":"VLOOKUP(BP64,[2]CCG_AgeSpecificPrevalence!$E$14:$H$225,4,0)/BQ64","v":61582.133995037228},{"$f":"VLOOKUP(BP64,[3]CHD!$E$16:$L$226,8,0)/BQ64","v":62121.687344913153}]
["06M","E38000063","NHS Great Yarmouth and Waveney","East of England",{"$f":"VLOOKUP(A65,Lookup!$BJ$3:$BK$226,2,0)","v":"Closest 10 CCGs"},4,"Midlands and East","5PR",{"$f":"VLOOKUP(A65,Lookup!$BL$3:$BM$226,2,0)","v":"No"},null,null,null,null,null,null,null,null,null,null,null,null,null,null,null,null,null,null,null,null,null,null,null,null,null,null,null,null,null,null,null,null,null,null,null,null,null,null,null,null,null,null,null,null,null,null,null,null,null,null,null,null,{"$f":"HLOOKUP(GraphData!$E$3,'Closest CCG (codes)'!$A$1:$HD$212,'Closest CCG (codes)'!HE64+2,0)","v":"05G"},"No",{"$f":"HLOOKUP(SummaryData!$D$11,'Closest CCG (codes)'!$A$1:$HD$212,'Closest CCG (codes)'!HE64+2,0)","v":"04G"},"No",null,"Not similar","06M",{"$f":"VLOOKUP($BP65,[1]prevlence!$B$3:$F$213,3,0)","v":11.552},{"$f":"VLOOKUP($BP65,[1]prevlence!$B$3:$F$213,5,0)","v":6.1349999999999998},null,null,null,{"$f":"VLOOKUP(BP65,[2]CCG_AgeSpecificPrevalence!$E$14:$H$225,4,0)/BQ65","v":20081.890581717453},{"$f":"VLOOKUP(BP65,[3]CHD!$E$16:$L$226,8,0)/BQ65","v":20201.090720221608}]
["03A","E38000064","NHS Greater Huddersfield","Yorkshire and Northern",{"$f":"VLOOKUP(A66,Lookup!$BJ$3:$BK$226,2,0)","v":"No"},5,"North","5N2",{"$f":"VLOOKUP(A66,Lookup!$BL$3:$BM$226,2,0)","v":"No"},null,null,null,null,null,null,null,null,null,null,null,null,null,null,null,null,null,null,null,null,null,null,null,null,null,null,null,null,null,null,null,null,null,null,null,null,null,null,null,null,null,null,null,null,null,null,null,null,null,null,null,null,{"$f":"HLOOKUP(GraphData!$E$3,'Closest CCG (codes)'!$A$1:$HD$212,'Closest CCG (codes)'!HE65+2,0)","v":"00D"},"No",{"$f":"HLOOKUP(SummaryData!$D$11,'Closest CCG (codes)'!$A$1:$HD$212,'Closest CCG (codes)'!HE65+2,0)","v":"00P"},"No",null,"Not similar","03A",{"$f":"VLOOKUP($BP66,[1]prevlence!$B$3:$F$213,3,0)","v":9.3810000000000002},{"$f":"VLOOKUP($BP66,[1]prevlence!$B$3:$F$213,5,0)","v":4.7300000000000004},null,null,null,{"$f":"VLOOKUP(BP66,[2]CCG_AgeSpecificPrevalence!$E$14:$H$225,4,0)/BQ66","v":25652.915467434173},{"$f":"VLOOKUP(BP66,[3]CHD!$E$16:$L$226,8,0)/BQ66","v":25830.188679245282}]
["01E","E38000065","NHS Greater Preston","Greater Manchester Lancashire and South Cumbria",{"$f":"VLOOKUP(A67,Lookup!$BJ$3:$BK$226,2,0)","v":"No"},4,"North","5NG",{"$f":"VLOOKUP(A67,Lookup!$BL$3:$BM$226,2,0)","v":"No"},null,null,null,null,null,null,null,null,null,null,null,null,null,null,null,null,null,null,null,null,null,null,null,null,null,null,null,null,null,null,null,null,null,null,null,null,null,null,null,null,null,null,null,null,null,null,null,null,null,null,null,null,{"$f":"HLOOKUP(GraphData!$E$3,'Closest CCG (codes)'!$A$1:$HD$212,'Closest CCG (codes)'!HE66+2,0)","v":"10N"},"No",{"$f":"HLOOKUP(SummaryData!$D$11,'Closest CCG (codes)'!$A$1:$HD$212,'Closest CCG (codes)'!HE66+2,0)","v":"08N"},"No",null,"Not similar","01E",{"$f":"VLOOKUP($BP67,[1]prevlence!$B$3:$F$213,3,0)","v":9.2189999999999994},{"$f":"VLOOKUP($BP67,[1]prevlence!$B$3:$F$213,5,0)","v":4.593},null,null,null,{"$f":"VLOOKUP(BP67,[2]CCG_AgeSpecificPrevalence!$E$14:$H$225,4,0)/BQ67","v":22881.982861481723},{"$f":"VLOOKUP(BP67,[3]CHD!$E$16:$L$226,8,0)/BQ67","v":22495.93231369997}]
["08A","E38000066","NHS Greenwich","London",{"$f":"VLOOKUP(A68,Lookup!$BJ$3:$BK$226,2,0)","v":"No"},2,"London","5A8",{"$f":"VLOOKUP(A68,Lookup!$BL$3:$BM$226,2,0)","v":"No"},null,null,null,null,null,null,null,null,null,null,null,null,null,null,null,null,null,null,null,null,null,null,null,null,null,null,null,null,null,null,null,null,null,null,null,null,null,null,null,null,null,null,null,null,null,null,null,null,null,null,null,null,{"$f":"HLOOKUP(GraphData!$E$3,'Closest CCG (codes)'!$A$1:$HD$212,'Closest CCG (codes)'!HE67+2,0)","v":"06Q"},"No",{"$f":"HLOOKUP(SummaryData!$D$11,'Closest CCG (codes)'!$A$1:$HD$212,'Closest CCG (codes)'!HE67+2,0)","v":"09C"},"No",null,"Not similar","08A",{"$f":"VLOOKUP($BP68,[1]prevlence!$B$3:$F$213,3,0)","v":7.3650000000000002},{"$f":"VLOOKUP($BP68,[1]prevlence!$B$3:$F$213,5,0)","v":3.472},null,null,null,{"$f":"VLOOKUP(BP68,[2]CCG_AgeSpecificPrevalence!$E$14:$H$225,4,0)/BQ68","v":36498.438560760354},{"$f":"VLOOKUP(BP68,[3]CHD!$E$16:$L$226,8,0)/BQ68","v":37518.126272912421}]
["09N","E38000067","NHS Guildford and Waverley","South East coast",{"$f":"VLOOKUP(A69,Lookup!$BJ$3:$BK$226,2,0)","v":"No"},10,"South","5P5",{"$f":"VLOOKUP(A69,Lookup!$BL$3:$BM$226,2,0)","v":"No"},null,null,null,null,null,null,null,null,null,null,null,null,null,null,null,null,null,null,null,null,null,null,null,null,null,null,null,null,null,null,null,null,null,null,null,null,null,null,null,null,null,null,null,null,null,null,null,null,null,null,null,null,{"$f":"HLOOKUP(GraphData!$E$3,'Closest CCG (codes)'!$A$1:$HD$212,'Closest CCG (codes)'!HE68+2,0)","v":"99Q"},"No",{"$f":"HLOOKUP(SummaryData!$D$11,'Closest CCG (codes)'!$A$1:$HD$212,'Closest CCG (codes)'!HE68+2,0)","v":"05D"},"No",null,"Not similar","09N",{"$f":"VLOOKUP($BP69,[1]prevlence!$B$3:$F$213,3,0)","v":9.3249999999999993},{"$f":"VLOOKUP($BP69,[1]prevlence!$B$3:$F$213,5,0)","v":3.754},null,null,null,{"$f":"VLOOKUP(BP69,[2]CCG_AgeSpecificPrevalence!$E$14:$H$225,4,0)/BQ69","v":23167.506702412869},{"$f":"VLOOKUP(BP69,[3]CHD!$E$16:$L$226,8,0)/BQ69","v":23513.243967828421}]
["01F","E38000068","NHS Halton","Cheshire and Merseyside",{"$f":"VLOOKUP(A70,Lookup!$BJ$3:$BK$226,2,0)","v":"No"},2,"North","5NM",{"$f":"VLOOKUP(A70,Lookup!$BL$3:$BM$226,2,0)","v":"No"},null,null,null,null,null,null,null,null,null,null,null,null,null,null,null,null,null,null,null,null,null,null,null,null,null,null,null,null,null,null,null,null,null,null,null,null,null,null,null,null,null,null,null,null,null,null,null,null,null,null,null,null,{"$f":"HLOOKUP(GraphData!$E$3,'Closest CCG (codes)'!$A$1:$HD$212,'Closest CCG (codes)'!HE69+2,0)","v":"09L"},"No",{"$f":"HLOOKUP(SummaryData!$D$11,'Closest CCG (codes)'!$A$1:$HD$212,'Closest CCG (codes)'!HE69+2,0)","v":"05J"},"No",null,"Not similar","01F",{"$f":"VLOOKUP($BP70,[1]prevlence!$B$3:$F$213,3,0)","v":9.702},{"$f":"VLOOKUP($BP70,[1]prevlence!$B$3:$F$213,5,0)","v":5.415},null,null,null,{"$f":"VLOOKUP(BP70,[2]CCG_AgeSpecificPrevalence!$E$14:$H$225,4,0)/BQ70","v":13257.060399917544},{"$f":"VLOOKUP(BP70,[3]CHD!$E$16:$L$226,8,0)/BQ70","v":13296.949082663368}]
["03D","E38000069","NHS Hambleton, Richmondshire and Whitby","Northern England",{"$f":"VLOOKUP(A71,Lookup!$BJ$3:$BK$226,2,0)","v":"No"},9,"North","5NV",{"$f":"VLOOKUP(A71,Lookup!$BL$3:$BM$226,2,0)","v":"No"},null,null,null,null,null,null,null,null,null,null,null,null,null,null,null,null,null,null,null,null,null,null,null,null,null,null,null,null,null,null,null,null,null,null,null,null,null,null,null,null,null,null,null,null,null,null,null,null,null,null,null,null,{"$f":"HLOOKUP(GraphData!$E$3,'Closest CCG (codes)'!$A$1:$HD$212,'Closest CCG (codes)'!HE70+2,0)","v":"03Y"},"No",{"$f":"HLOOKUP(SummaryData!$D$11,'Closest CCG (codes)'!$A$1:$HD$212,'Closest CCG (codes)'!HE70+2,0)","v":"00D"},"No",null,"Not similar","03D",{"$f":"VLOOKUP($BP71,[1]prevlence!$B$3:$F$213,3,0)","v":11.374000000000001},{"$f":"VLOOKUP($BP71,[1]prevlence!$B$3:$F$213,5,0)","v":5.3940000000000001},null,null,null,{"$f":"VLOOKUP(BP71,[2]CCG_AgeSpecificPrevalence!$E$14:$H$225,4,0)/BQ71","v":12490.944258835942},{"$f":"VLOOKUP(BP71,[3]CHD!$E$16:$L$226,8,0)/BQ71","v":12511.605415860735}]
["08C","E38000070","NHS Hammersmith and Fulham","London",{"$f":"VLOOKUP(A72,Lookup!$BJ$3:$BK$226,2,0)","v":"No"},3,"London","5H1",{"$f":"VLOOKUP(A72,Lookup!$BL$3:$BM$226,2,0)","v":"No"},null,null,null,null,null,null,null,null,null,null,null,null,null,null,null,null,null,null,null,null,null,null,null,null,null,null,null,null,null,null,null,null,null,null,null,null,null,null,null,null,null,null,null,null,null,null,null,null,null,null,null,null,{"$f":"HLOOKUP(GraphData!$E$3,'Closest CCG (codes)'!$A$1:$HD$212,'Closest CCG (codes)'!HE71+2,0)","v":"03R"},"No",{"$f":"HLOOKUP(SummaryData!$D$11,'Closest CCG (codes)'!$A$1:$HD$212,'Closest CCG (codes)'!HE71+2,0)","v":"02D"},"No",null,"Not similar","08C",{"$f":"VLOOKUP($BP72,[1]prevlence!$B$3:$F$213,3,0)","v":6.8819999999999997},{"$f":"VLOOKUP($BP72,[1]prevlence!$B$3:$F$213,5,0)","v":2.9350000000000001},null,null,null,{"$f":"VLOOKUP(BP72,[2]CCG_AgeSpecificPrevalence!$E$14:$H$225,4,0)/BQ72","v":29580.645161290326},{"$f":"VLOOKUP(BP72,[3]CHD!$E$16:$L$226,8,0)/BQ72","v":29388.695146759663}]
["03Y","E38000071","NHS Hardwick","East Midlands",{"$f":"VLOOKUP(A73,Lookup!$BJ$3:$BK$226,2,0)","v":"No"},4,"Midlands and East","5N6",{"$f":"VLOOKUP(A73,Lookup!$BL$3:$BM$226,2,0)","v":"No"},null,null,null,null,null,null,null,null,null,null,null,null,null,null,null,null,null,null,null,null,null,null,null,null,null,null,null,null,null,null,null,null,null,null,null,null,null,null,null,null,null,null,null,null,null,null,null,null,null,null,null,null,{"$f":"HLOOKUP(GraphData!$E$3,'Closest CCG (codes)'!$A$1:$HD$212,'Closest CCG (codes)'!HE72+2,0)","v":"02P"},"No",{"$f":"HLOOKUP(SummaryData!$D$11,'Closest CCG (codes)'!$A$1:$HD$212,'Closest CCG (codes)'!HE72+2,0)","v":"10N"},"No",null,"Not similar","03Y",{"$f":"VLOOKUP($BP73,[1]prevlence!$B$3:$F$213,3,0)","v":10.843},{"$f":"VLOOKUP($BP73,[1]prevlence!$B$3:$F$213,5,0)","v":5.9260000000000002},null,null,null,{"$f":"VLOOKUP(BP73,[2]CCG_AgeSpecificPrevalence!$E$14:$H$225,4,0)/BQ73","v":9439.7307018352858},{"$f":"VLOOKUP(BP73,[3]CHD!$E$16:$L$226,8,0)/BQ73","v":9422.8534538411877}]
["08D","E38000072","NHS Haringey","London",{"$f":"VLOOKUP(A74,Lookup!$BJ$3:$BK$226,2,0)","v":"No"},1,"London","5C9",{"$f":"VLOOKUP(A74,Lookup!$BL$3:$BM$226,2,0)","v":"No"},null,null,null,null,null,null,null,null,null,null,null,null,null,null,null,null,null,null,null,null,null,null,null,null,null,null,null,null,null,null,null,null,null,null,null,null,null,null,null,null,null,null,null,null,null,null,null,null,null,null,null,null,{"$f":"HLOOKUP(GraphData!$E$3,'Closest CCG (codes)'!$A$1:$HD$212,'Closest CCG (codes)'!HE73+2,0)","v":"05N"},"No",{"$f":"HLOOKUP(SummaryData!$D$11,'Closest CCG (codes)'!$A$1:$HD$212,'Closest CCG (codes)'!HE73+2,0)","v":"07Y"},"No",null,"Not similar","08D",{"$f":"VLOOKUP($BP74,[1]prevlence!$B$3:$F$213,3,0)","v":7.4420000000000002},{"$f":"VLOOKUP($BP74,[1]prevlence!$B$3:$F$213,5,0)","v":3.5019999999999998},null,null,null,{"$f":"VLOOKUP(BP74,[2]CCG_AgeSpecificPrevalence!$E$14:$H$225,4,0)/BQ74","v":39058.183284063423},{"$f":"VLOOKUP(BP74,[3]CHD!$E$16:$L$226,8,0)/BQ74","v":38565.170653050256}]
["03E","E38000073","NHS Harrogate and Rural District","Yorkshire and Northern",{"$f":"VLOOKUP(A75,Lookup!$BJ$3:$BK$226,2,0)","v":"Closest 10 CCGs"},10,"North","5NV",{"$f":"VLOOKUP(A75,Lookup!$BL$3:$BM$226,2,0)","v":"No"},null,null,null,null,null,null,null,null,null,null,null,null,null,null,null,null,null,null,null,null,null,null,null,null,null,null,null,null,null,null,null,null,null,null,null,null,null,null,null,null,null,null,null,null,null,null,null,null,null,null,null,null,{"$f":"HLOOKUP(GraphData!$E$3,'Closest CCG (codes)'!$A$1:$HD$212,'Closest CCG (codes)'!HE74+2,0)","v":"99N"},"No",{"$f":"HLOOKUP(SummaryData!$D$11,'Closest CCG (codes)'!$A$1:$HD$212,'Closest CCG (codes)'!HE74+2,0)","v":"04E"},"No",null,"Not similar","03E",{"$f":"VLOOKUP($BP75,[1]prevlence!$B$3:$F$213,3,0)","v":10.481999999999999},{"$f":"VLOOKUP($BP75,[1]prevlence!$B$3:$F$213,5,0)","v":4.57},null,null,null,{"$f":"VLOOKUP(BP75,[2]CCG_AgeSpecificPrevalence!$E$14:$H$225,4,0)/BQ75","v":15245.659225338677},{"$f":"VLOOKUP(BP75,[3]CHD!$E$16:$L$226,8,0)/BQ75","v":15309.769128029004}]
["08E","E38000074","NHS Harrow","London",{"$f":"VLOOKUP(A76,Lookup!$BJ$3:$BK$226,2,0)","v":"No"},8,"London","5K6",{"$f":"VLOOKUP(A76,Lookup!$BL$3:$BM$226,2,0)","v":"No"},null,null,null,null,null,null,null,null,null,null,null,null,null,null,null,null,null,null,null,null,null,null,null,null,null,null,null,null,null,null,null,null,null,null,null,null,null,null,null,null,null,null,null,null,null,null,null,null,null,null,null,null,{"$f":"HLOOKUP(GraphData!$E$3,'Closest CCG (codes)'!$A$1:$HD$212,'Closest CCG (codes)'!HE75+2,0)","v":"09X"},"No",{"$f":"HLOOKUP(SummaryData!$D$11,'Closest CCG (codes)'!$A$1:$HD$212,'Closest CCG (codes)'!HE75+2,0)","v":"07Q"},"No",null,"Not similar","08E",{"$f":"VLOOKUP($BP76,[1]prevlence!$B$3:$F$213,3,0)","v":7.8739999999999997},{"$f":"VLOOKUP($BP76,[1]prevlence!$B$3:$F$213,5,0)","v":3.6749999999999998},null,null,null,{"$f":"VLOOKUP(BP76,[2]CCG_AgeSpecificPrevalence!$E$14:$H$225,4,0)/BQ76","v":31114.681229362461},{"$f":"VLOOKUP(BP76,[3]CHD!$E$16:$L$226,8,0)/BQ76","v":31898.399796799597}]
["00K","E38000075","NHS Hartlepool and Stockton-On-Tees","Northern England",{"$f":"VLOOKUP(A77,Lookup!$BJ$3:$BK$226,2,0)","v":"No"},3,"North","5E1",{"$f":"VLOOKUP(A77,Lookup!$BL$3:$BM$226,2,0)","v":"No"},null,null,null,null,null,null,null,null,null,null,null,null,null,null,null,null,null,null,null,null,null,null,null,null,null,null,null,null,null,null,null,null,null,null,null,null,null,null,null,null,null,null,null,null,null,null,null,null,null,null,null,null,{"$f":"HLOOKUP(GraphData!$E$3,'Closest CCG (codes)'!$A$1:$HD$212,'Closest CCG (codes)'!HE76+2,0)","v":"04N"},"No",{"$f":"HLOOKUP(SummaryData!$D$11,'Closest CCG (codes)'!$A$1:$HD$212,'Closest CCG (codes)'!HE76+2,0)","v":"05C"},"No",null,"Not similar","00K",{"$f":"VLOOKUP($BP77,[1]prevlence!$B$3:$F$213,3,0)","v":9.8840000000000003},{"$f":"VLOOKUP($BP77,[1]prevlence!$B$3:$F$213,5,0)","v":5.3170000000000002},null,null,null,{"$f":"VLOOKUP(BP77,[2]CCG_AgeSpecificPrevalence!$E$14:$H$225,4,0)/BQ77","v":29453.966005665723},{"$f":"VLOOKUP(BP77,[3]CHD!$E$16:$L$226,8,0)/BQ77","v":29562.120598947793}]
["09P","E38000076","NHS Hastings and Rother","South East coast",{"$f":"VLOOKUP(A78,Lookup!$BJ$3:$BK$226,2,0)","v":"No"},3,"South","5P8",{"$f":"VLOOKUP(A78,Lookup!$BL$3:$BM$226,2,0)","v":"No"},null,null,null,null,null,null,null,null,null,null,null,null,null,null,null,null,null,null,null,null,null,null,null,null,null,null,null,null,null,null,null,null,null,null,null,null,null,null,null,null,null,null,null,null,null,null,null,null,null,null,null,null,{"$f":"HLOOKUP(GraphData!$E$3,'Closest CCG (codes)'!$A$1:$HD$212,'Closest CCG (codes)'!HE77+2,0)","v":"11X"},"No",{"$f":"HLOOKUP(SummaryData!$D$11,'Closest CCG (codes)'!$A$1:$HD$212,'Closest CCG (codes)'!HE77+2,0)","v":"02G"},"No",null,"Not similar","09P",{"$f":"VLOOKUP($BP78,[1]prevlence!$B$3:$F$213,3,0)","v":12.218999999999999},{"$f":"VLOOKUP($BP78,[1]prevlence!$B$3:$F$213,5,0)","v":6.76},null,null,null,{"$f":"VLOOKUP(BP78,[2]CCG_AgeSpecificPrevalence!$E$14:$H$225,4,0)/BQ78","v":15022.096734593666},{"$f":"VLOOKUP(BP78,[3]CHD!$E$16:$L$226,8,0)/BQ78","v":15014.321957607006}]
["08F","E38000077","NHS Havering","London",{"$f":"VLOOKUP(A79,Lookup!$BJ$3:$BK$226,2,0)","v":"No"},7,"London","5A4",{"$f":"VLOOKUP(A79,Lookup!$BL$3:$BM$226,2,0)","v":"No"},null,null,null,null,null,null,null,null,null,null,null,null,null,null,null,null,null,null,null,null,null,null,null,null,null,null,null,null,null,null,null,null,null,null,null,null,null,null,null,null,null,null,null,null,null,null,null,null,null,null,null,null,{"$f":"HLOOKUP(GraphData!$E$3,'Closest CCG (codes)'!$A$1:$HD$212,'Closest CCG (codes)'!HE78+2,0)","v":"02X"},"No",{"$f":"HLOOKUP(SummaryData!$D$11,'Closest CCG (codes)'!$A$1:$HD$212,'Closest CCG (codes)'!HE78+2,0)","v":"06N"},"No",null,"Not similar","08F",{"$f":"VLOOKUP($BP79,[1]prevlence!$B$3:$F$213,3,0)","v":9.6460000000000008},{"$f":"VLOOKUP($BP79,[1]prevlence!$B$3:$F$213,5,0)","v":4.4059999999999997},null,null,null,{"$f":"VLOOKUP(BP79,[2]CCG_AgeSpecificPrevalence!$E$14:$H$225,4,0)/BQ79","v":26732.738959154052},{"$f":"VLOOKUP(BP79,[3]CHD!$E$16:$L$226,8,0)/BQ79","v":25643.686502177065}]
["05F","E38000078","NHS Herefordshire","West Midlands",{"$f":"VLOOKUP(A80,Lookup!$BJ$3:$BK$226,2,0)","v":"No"},7,"Midlands and East","5CN",{"$f":"VLOOKUP(A80,Lookup!$BL$3:$BM$226,2,0)","v":"No"},null,null,null,null,null,null,null,null,null,null,null,null,null,null,null,null,null,null,null,null,null,null,null,null,null,null,null,null,null,null,null,null,null,null,null,null,null,null,null,null,null,null,null,null,null,null,null,null,null,null,null,null,{"$f":"HLOOKUP(GraphData!$E$3,'Closest CCG (codes)'!$A$1:$HD$212,'Closest CCG (codes)'!HE79+2,0)","v":"99G"},"No",{"$f":"HLOOKUP(SummaryData!$D$11,'Closest CCG (codes)'!$A$1:$HD$212,'Closest CCG (codes)'!HE79+2,0)","v":"01T"},"No",null,"Not similar","05F",{"$f":"VLOOKUP($BP80,[1]prevlence!$B$3:$F$213,3,0)","v":11.26},{"$f":"VLOOKUP($BP80,[1]prevlence!$B$3:$F$213,5,0)","v":5.6139999999999999},null,null,null,{"$f":"VLOOKUP(BP80,[2]CCG_AgeSpecificPrevalence!$E$14:$H$225,4,0)/BQ80","v":16218.561278863233},{"$f":"VLOOKUP(BP80,[3]CHD!$E$16:$L$226,8,0)/BQ80","v":16187.566607460036}]
["06N","E38000079","NHS Herts Valleys","East of England",{"$f":"VLOOKUP(A81,Lookup!$BJ$3:$BK$226,2,0)","v":"No"},10,"Midlands and East","5QV",{"$f":"VLOOKUP(A81,Lookup!$BL$3:$BM$226,2,0)","v":"No"},null,null,null,null,null,null,null,null,null,null,null,null,null,null,null,null,null,null,null,null,null,null,null,null,null,null,null,null,null,null,null,null,null,null,null,null,null,null,null,null,null,null,null,null,null,null,null,null,null,null,null,null,{"$f":"HLOOKUP(GraphData!$E$3,'Closest CCG (codes)'!$A$1:$HD$212,'Closest CCG (codes)'!HE80+2,0)","v":"05V"},"No",{"$f":"HLOOKUP(SummaryData!$D$11,'Closest CCG (codes)'!$A$1:$HD$212,'Closest CCG (codes)'!HE80+2,0)","v":"99M"},"No",null,"Not similar","06N",{"$f":"VLOOKUP($BP81,[1]prevlence!$B$3:$F$213,3,0)","v":8.7949999999999999},{"$f":"VLOOKUP($BP81,[1]prevlence!$B$3:$F$213,5,0)","v":3.7370000000000001},null,null,null,{"$f":"VLOOKUP(BP81,[2]CCG_AgeSpecificPrevalence!$E$14:$H$225,4,0)/BQ81","v":69280.159181353039},{"$f":"VLOOKUP(BP81,[3]CHD!$E$16:$L$226,8,0)/BQ81","v":70091.756679931786}]
["01D","E38000080","NHS Heywood, Middleton and Rochdale","Greater Manchester Lancashire and South Cumbria",{"$f":"VLOOKUP(A82,Lookup!$BJ$3:$BK$226,2,0)","v":"No"},2,"North","5NQ",{"$f":"VLOOKUP(A82,Lookup!$BL$3:$BM$226,2,0)","v":"Comparator Closest 10 CCGs"},null,null,null,null,null,null,null,null,null,null,null,null,null,null,null,null,null,null,null,null,null,null,null,null,null,null,null,null,null,null,null,null,null,null,null,null,null,null,null,null,null,null,null,null,null,null,null,null,null,null,null,null,{"$f":"HLOOKUP(GraphData!$E$3,'Closest CCG (codes)'!$A$1:$HD$212,'Closest CCG (codes)'!HE81+2,0)","v":"01Y"},"No",{"$f":"HLOOKUP(SummaryData!$D$11,'Closest CCG (codes)'!$A$1:$HD$212,'Closest CCG (codes)'!HE81+2,0)","v":"04C"},"No",null,"Not similar","01D",{"$f":"VLOOKUP($BP82,[1]prevlence!$B$3:$F$213,3,0)","v":9.4440000000000008},{"$f":"VLOOKUP($BP82,[1]prevlence!$B$3:$F$213,5,0)","v":5.3470000000000004},null,null,null,{"$f":"VLOOKUP(BP82,[2]CCG_AgeSpecificPrevalence!$E$14:$H$225,4,0)/BQ82","v":23403.96018636171},{"$f":"VLOOKUP(BP82,[3]CHD!$E$16:$L$226,8,0)/BQ82","v":23710.080474375263}]
["99K","E38000081","NHS High Weald Lewes Havens","South East coast",{"$f":"VLOOKUP(A83,Lookup!$BJ$3:$BK$226,2,0)","v":"No"},9,"South","5P7",{"$f":"VLOOKUP(A83,Lookup!$BL$3:$BM$226,2,0)","v":"No"},null,null,null,null,null,null,null,null,null,null,null,null,null,null,null,null,null,null,null,null,null,null,null,null,null,null,null,null,null,null,null,null,null,null,null,null,null,null,null,null,null,null,null,null,null,null,null,null,null,null,null,null,{"$f":"HLOOKUP(GraphData!$E$3,'Closest CCG (codes)'!$A$1:$HD$212,'Closest CCG (codes)'!HE82+2,0)","v":"01H"},"No",{"$f":"HLOOKUP(SummaryData!$D$11,'Closest CCG (codes)'!$A$1:$HD$212,'Closest CCG (codes)'!HE82+2,0)","v":"00X"},"No",null,"Not similar","99K",{"$f":"VLOOKUP($BP83,[1]prevlence!$B$3:$F$213,3,0)","v":10.755000000000001},{"$f":"VLOOKUP($BP83,[1]prevlence!$B$3:$F$213,5,0)","v":4.9669999999999996},null,null,null,{"$f":"VLOOKUP(BP83,[2]CCG_AgeSpecificPrevalence!$E$14:$H$225,4,0)/BQ83","v":15490.748489074847},{"$f":"VLOOKUP(BP83,[3]CHD!$E$16:$L$226,8,0)/BQ83","v":15499.488609948859}]
["08G","E38000082","NHS Hillingdon","London",{"$f":"VLOOKUP(A84,Lookup!$BJ$3:$BK$226,2,0)","v":"No"},6,"London","5AT",{"$f":"VLOOKUP(A84,Lookup!$BL$3:$BM$226,2,0)","v":"No"},null,null,null,null,null,null,null,null,null,null,null,null,null,null,null,null,null,null,null,null,null,null,null,null,null,null,null,null,null,null,null,null,null,null,null,null,null,null,null,null,null,null,null,null,null,null,null,null,null,null,null,null,{"$f":"HLOOKUP(GraphData!$E$3,'Closest CCG (codes)'!$A$1:$HD$212,'Closest CCG (codes)'!HE83+2,0)","v":"03L"},"No",{"$f":"HLOOKUP(SummaryData!$D$11,'Closest CCG (codes)'!$A$1:$HD$212,'Closest CCG (codes)'!HE83+2,0)","v":"07N"},"No",null,"Not similar","08G",{"$f":"VLOOKUP($BP84,[1]prevlence!$B$3:$F$213,3,0)","v":8.0069999999999997},{"$f":"VLOOKUP($BP84,[1]prevlence!$B$3:$F$213,5,0)","v":3.6549999999999998},null,null,null,{"$f":"VLOOKUP(BP84,[2]CCG_AgeSpecificPrevalence!$E$14:$H$225,4,0)/BQ84","v":35943.674285000627},{"$f":"VLOOKUP(BP84,[3]CHD!$E$16:$L$226,8,0)/BQ84","v":36891.844635943547}]
["09X","E38000083","NHS Horsham and Mid Sussex","South East coast",{"$f":"VLOOKUP(A85,Lookup!$BJ$3:$BK$226,2,0)","v":"No"},10,"South","5P6",{"$f":"VLOOKUP(A85,Lookup!$BL$3:$BM$226,2,0)","v":"No"},null,null,null,null,null,null,null,null,null,null,null,null,null,null,null,null,null,null,null,null,null,null,null,null,null,null,null,null,null,null,null,null,null,null,null,null,null,null,null,null,null,null,null,null,null,null,null,null,null,null,null,null,{"$f":"HLOOKUP(GraphData!$E$3,'Closest CCG (codes)'!$A$1:$HD$212,'Closest CCG (codes)'!HE84+2,0)","v":"04R"},"No",{"$f":"HLOOKUP(SummaryData!$D$11,'Closest CCG (codes)'!$A$1:$HD$212,'Closest CCG (codes)'!HE84+2,0)","v":"09Y"},"No",null,"Not similar","09X",{"$f":"VLOOKUP($BP85,[1]prevlence!$B$3:$F$213,3,0)","v":9.6639999999999997},{"$f":"VLOOKUP($BP85,[1]prevlence!$B$3:$F$213,5,0)","v":3.9769999999999999},null,null,null,{"$f":"VLOOKUP(BP85,[2]CCG_AgeSpecificPrevalence!$E$14:$H$225,4,0)/BQ85","v":23525.765728476821},{"$f":"VLOOKUP(BP85,[3]CHD!$E$16:$L$226,8,0)/BQ85","v":23661.941225165563}]
["07Y","E38000084","NHS Hounslow","London",{"$f":"VLOOKUP(A86,Lookup!$BJ$3:$BK$226,2,0)","v":"No"},5,"London","5HY",{"$f":"VLOOKUP(A86,Lookup!$BL$3:$BM$226,2,0)","v":"No"},null,null,null,null,null,null,null,null,null,null,null,null,null,null,null,null,null,null,null,null,null,null,null,null,null,null,null,null,null,null,null,null,null,null,null,null,null,null,null,null,null,null,null,null,null,null,null,null,null,null,null,null,{"$f":"HLOOKUP(GraphData!$E$3,'Closest CCG (codes)'!$A$1:$HD$212,'Closest CCG (codes)'!HE85+2,0)","v":"12F"},"No",{"$f":"HLOOKUP(SummaryData!$D$11,'Closest CCG (codes)'!$A$1:$HD$212,'Closest CCG (codes)'!HE85+2,0)","v":"10T"},"No",null,"Not similar","07Y",{"$f":"VLOOKUP($BP86,[1]prevlence!$B$3:$F$213,3,0)","v":7.0979999999999999},{"$f":"VLOOKUP($BP86,[1]prevlence!$B$3:$F$213,5,0)","v":3.3519999999999999},null,null,null,{"$f":"VLOOKUP(BP86,[2]CCG_AgeSpecificPrevalence!$E$14:$H$225,4,0)/BQ86","v":40855.452240067629},{"$f":"VLOOKUP(BP86,[3]CHD!$E$16:$L$226,8,0)/BQ86","v":41169.343477035785}]
["03F","E38000085","NHS Hull","Yorkshire and Northern",{"$f":"VLOOKUP(A87,Lookup!$BJ$3:$BK$226,2,0)","v":"No"},1,"North","5NX",{"$f":"VLOOKUP(A87,Lookup!$BL$3:$BM$226,2,0)","v":"No"},null,null,null,null,null,null,null,null,null,null,null,null,null,null,null,null,null,null,null,null,null,null,null,null,null,null,null,null,null,null,null,null,null,null,null,null,null,null,null,null,null,null,null,null,null,null,null,null,null,null,null,null,{"$f":"HLOOKUP(GraphData!$E$3,'Closest CCG (codes)'!$A$1:$HD$212,'Closest CCG (codes)'!HE86+2,0)","v":"04V"},"No",{"$f":"HLOOKUP(SummaryData!$D$11,'Closest CCG (codes)'!$A$1:$HD$212,'Closest CCG (codes)'!HE86+2,0)","v":"10J"},"No",null,"Not similar","03F",{"$f":"VLOOKUP($BP87,[1]prevlence!$B$3:$F$213,3,0)","v":9.8260000000000005},{"$f":"VLOOKUP($BP87,[1]prevlence!$B$3:$F$213,5,0)","v":5.4960000000000004},null,null,null,{"$f":"VLOOKUP(BP87,[2]CCG_AgeSpecificPrevalence!$E$14:$H$225,4,0)/BQ87","v":29552.513739059636},{"$f":"VLOOKUP(BP87,[3]CHD!$E$16:$L$226,8,0)/BQ87","v":29366.680236108281}]
["06L","E38000086","NHS Ipswich and East Suffolk","East of England",{"$f":"VLOOKUP(A88,Lookup!$BJ$3:$BK$226,2,0)","v":"No"},8,"Midlands and East","5PT",{"$f":"VLOOKUP(A88,Lookup!$BL$3:$BM$226,2,0)","v":"No"},null,null,null,null,null,null,null,null,null,null,null,null,null,null,null,null,null,null,null,null,null,null,null,null,null,null,null,null,null,null,null,null,null,null,null,null,null,null,null,null,null,null,null,null,null,null,null,null,null,null,null,null,{"$f":"HLOOKUP(GraphData!$E$3,'Closest CCG (codes)'!$A$1:$HD$212,'Closest CCG (codes)'!HE87+2,0)","v":"03Q"},"No",{"$f":"HLOOKUP(SummaryData!$D$11,'Closest CCG (codes)'!$A$1:$HD$212,'Closest CCG (codes)'!HE87+2,0)","v":"01J"},"No",null,"Not similar","06L",{"$f":"VLOOKUP($BP88,[1]prevlence!$B$3:$F$213,3,0)","v":10.430999999999999},{"$f":"VLOOKUP($BP88,[1]prevlence!$B$3:$F$213,5,0)","v":4.9189999999999996},null,null,null,{"$f":"VLOOKUP(BP88,[2]CCG_AgeSpecificPrevalence!$E$14:$H$225,4,0)/BQ88","v":37412.041031540604},{"$f":"VLOOKUP(BP88,[3]CHD!$E$16:$L$226,8,0)/BQ88","v":37678.650177355965}]
["10L","E38000087","NHS Isle Of Wight","Wessex",{"$f":"VLOOKUP(A89,Lookup!$BJ$3:$BK$226,2,0)","v":"No"},5,"South","5QT",{"$f":"VLOOKUP(A89,Lookup!$BL$3:$BM$226,2,0)","v":"No"},null,null,null,null,null,null,null,null,null,null,null,null,null,null,null,null,null,null,null,null,null,null,null,null,null,null,null,null,null,null,null,null,null,null,null,null,null,null,null,null,null,null,null,null,null,null,null,null,null,null,null,null,{"$f":"HLOOKUP(GraphData!$E$3,'Closest CCG (codes)'!$A$1:$HD$212,'Closest CCG (codes)'!HE88+2,0)","v":"01X"},"No",{"$f":"HLOOKUP(SummaryData!$D$11,'Closest CCG (codes)'!$A$1:$HD$212,'Closest CCG (codes)'!HE88+2,0)","v":"07G"},"No",null,"Not similar","10L",{"$f":"VLOOKUP($BP89,[1]prevlence!$B$3:$F$213,3,0)","v":12.092000000000001},{"$f":"VLOOKUP($BP89,[1]prevlence!$B$3:$F$213,5,0)","v":6.4020000000000001},null,null,null,{"$f":"VLOOKUP(BP89,[2]CCG_AgeSpecificPrevalence!$E$14:$H$225,4,0)/BQ89","v":11703.357591796228},{"$f":"VLOOKUP(BP89,[3]CHD!$E$16:$L$226,8,0)/BQ89","v":11706.417466093284}]
["08H","E38000088","NHS Islington","London",{"$f":"VLOOKUP(A90,Lookup!$BJ$3:$BK$226,2,0)","v":"No"},1,"London","5K8",{"$f":"VLOOKUP(A90,Lookup!$BL$3:$BM$226,2,0)","v":"No"},null,null,null,null,null,null,null,null,null,null,null,null,null,null,null,null,null,null,null,null,null,null,null,null,null,null,null,null,null,null,null,null,null,null,null,null,null,null,null,null,null,null,null,null,null,null,null,null,null,null,null,null,{"$f":"HLOOKUP(GraphData!$E$3,'Closest CCG (codes)'!$A$1:$HD$212,'Closest CCG (codes)'!HE89+2,0)","v":"05X"},"No",{"$f":"HLOOKUP(SummaryData!$D$11,'Closest CCG (codes)'!$A$1:$HD$212,'Closest CCG (codes)'!HE89+2,0)","v":"01R"},"No",null,"Not similar","08H",{"$f":"VLOOKUP($BP90,[1]prevlence!$B$3:$F$213,3,0)","v":7.5910000000000002},{"$f":"VLOOKUP($BP90,[1]prevlence!$B$3:$F$213,5,0)","v":3.5760000000000001},null,null,null,{"$f":"VLOOKUP(BP90,[2]CCG_AgeSpecificPrevalence!$E$14:$H$225,4,0)/BQ90","v":30195.099459886707},{"$f":"VLOOKUP(BP90,[3]CHD!$E$16:$L$226,8,0)/BQ90","v":30227.506257410088}]
["11N","E38000089","NHS Kernow","South West",{"$f":"VLOOKUP(A91,Lookup!$BJ$3:$BK$226,2,0)","v":"No"},5,"South","5QP",{"$f":"VLOOKUP(A91,Lookup!$BL$3:$BM$226,2,0)","v":"No"},null,null,null,null,null,null,null,null,null,null,null,null,null,null,null,null,null,null,null,null,null,null,null,null,null,null,null,null,null,null,null,null,null,null,null,null,null,null,null,null,null,null,null,null,null,null,null,null,null,null,null,null,{"$f":"HLOOKUP(GraphData!$E$3,'Closest CCG (codes)'!$A$1:$HD$212,'Closest CCG (codes)'!HE90+2,0)","v":"09F"},"No",{"$f":"HLOOKUP(SummaryData!$D$11,'Closest CCG (codes)'!$A$1:$HD$212,'Closest CCG (codes)'!HE90+2,0)","v":"06K"},"No",null,"Not similar","11N",{"$f":"VLOOKUP($BP91,[1]prevlence!$B$3:$F$213,3,0)","v":11.288},{"$f":"VLOOKUP($BP91,[1]prevlence!$B$3:$F$213,5,0)","v":5.99},null,null,null,{"$f":"VLOOKUP(BP91,[2]CCG_AgeSpecificPrevalence!$E$14:$H$225,4,0)/BQ91","v":49472.271438695956},{"$f":"VLOOKUP(BP91,[3]CHD!$E$16:$L$226,8,0)/BQ91","v":49534.727143869597}]
["08J","E38000090","NHS Kingston","London",{"$f":"VLOOKUP(A92,Lookup!$BJ$3:$BK$226,2,0)","v":"No"},9,"London","5A5",{"$f":"VLOOKUP(A92,Lookup!$BL$3:$BM$226,2,0)","v":"No"},null,null,null,null,null,null,null,null,null,null,null,null,null,null,null,null,null,null,null,null,null,null,null,null,null,null,null,null,null,null,null,null,null,null,null,null,null,null,null,null,null,null,null,null,null,null,null,null,null,null,null,null,{"$f":"HLOOKUP(GraphData!$E$3,'Closest CCG (codes)'!$A$1:$HD$212,'Closest CCG (codes)'!HE91+2,0)","v":"05P"},"No",{"$f":"HLOOKUP(SummaryData!$D$11,'Closest CCG (codes)'!$A$1:$HD$212,'Closest CCG (codes)'!HE91+2,0)","v":"03K"},"No",null,"Not similar","08J",{"$f":"VLOOKUP($BP92,[1]prevlence!$B$3:$F$213,3,0)","v":7.8879999999999999},{"$f":"VLOOKUP($BP92,[1]prevlence!$B$3:$F$213,5,0)","v":3.1560000000000001},null,null,null,{"$f":"VLOOKUP(BP92,[2]CCG_AgeSpecificPrevalence!$E$14:$H$225,4,0)/BQ92","v":24625.38032454361},{"$f":"VLOOKUP(BP92,[3]CHD!$E$16:$L$226,8,0)/BQ92","v":24967.292089249495}]
["01J","E38000091","NHS Knowsley","Cheshire and Merseyside",{"$f":"VLOOKUP(A93,Lookup!$BJ$3:$BK$226,2,0)","v":"No"},1,"North","5J4",{"$f":"VLOOKUP(A93,Lookup!$BL$3:$BM$226,2,0)","v":"No"},null,null,null,null,null,null,null,null,null,null,null,null,null,null,null,null,null,null,null,null,null,null,null,null,null,null,null,null,null,null,null,null,null,null,null,null,null,null,null,null,null,null,null,null,null,null,null,null,null,null,null,null,{"$f":"HLOOKUP(GraphData!$E$3,'Closest CCG (codes)'!$A$1:$HD$212,'Closest CCG (codes)'!HE92+2,0)","v":"99J"},"No",{"$f":"HLOOKUP(SummaryData!$D$11,'Closest CCG (codes)'!$A$1:$HD$212,'Closest CCG (codes)'!HE92+2,0)","v":"08F"},"No",null,"Not similar","01J",{"$f":"VLOOKUP($BP93,[1]prevlence!$B$3:$F$213,3,0)","v":10.362},{"$f":"VLOOKUP($BP93,[1]prevlence!$B$3:$F$213,5,0)","v":6.0620000000000003},null,null,null,{"$f":"VLOOKUP(BP93,[2]CCG_AgeSpecificPrevalence!$E$14:$H$225,4,0)/BQ93","v":15544.296467863347},{"$f":"VLOOKUP(BP93,[3]CHD!$E$16:$L$226,8,0)/BQ93","v":15513.703918162517}]
["08K","E38000092","NHS Lambeth","London",{"$f":"VLOOKUP(A94,Lookup!$BJ$3:$BK$226,2,0)","v":"No"},2,"London","5LD",{"$f":"VLOOKUP(A94,Lookup!$BL$3:$BM$226,2,0)","v":"No"},null,null,null,null,null,null,null,null,null,null,null,null,null,null,null,null,null,null,null,null,null,null,null,null,null,null,null,null,null,null,null,null,null,null,null,null,null,null,null,null,null,null,null,null,null,null,null,null,null,null,null,null,{"$f":"HLOOKUP(GraphData!$E$3,'Closest CCG (codes)'!$A$1:$HD$212,'Closest CCG (codes)'!HE93+2,0)","v":"11E"},"No",{"$f":"HLOOKUP(SummaryData!$D$11,'Closest CCG (codes)'!$A$1:$HD$212,'Closest CCG (codes)'!HE93+2,0)","v":"02Q"},"No",null,"Not similar","08K",{"$f":"VLOOKUP($BP94,[1]prevlence!$B$3:$F$213,3,0)","v":6.4649999999999999},{"$f":"VLOOKUP($BP94,[1]prevlence!$B$3:$F$213,5,0)","v":2.6779999999999999},null,null,null,{"$f":"VLOOKUP(BP94,[2]CCG_AgeSpecificPrevalence!$E$14:$H$225,4,0)/BQ94","v":58582.05723124517},{"$f":"VLOOKUP(BP94,[3]CHD!$E$16:$L$226,8,0)/BQ94","v":57302.861562258317}]
["01K","E38000093","NHS Lancashire North","Greater Manchester Lancashire and South Cumbria",{"$f":"VLOOKUP(A95,Lookup!$BJ$3:$BK$226,2,0)","v":"No"},6,"North","5NF",{"$f":"VLOOKUP(A95,Lookup!$BL$3:$BM$226,2,0)","v":"No"},null,null,null,null,null,null,null,null,null,null,null,null,null,null,null,null,null,null,null,null,null,null,null,null,null,null,null,null,null,null,null,null,null,null,null,null,null,null,null,null,null,null,null,null,null,null,null,null,null,null,null,null,{"$f":"HLOOKUP(GraphData!$E$3,'Closest CCG (codes)'!$A$1:$HD$212,'Closest CCG (codes)'!HE94+2,0)","v":"11C"},"No",{"$f":"HLOOKUP(SummaryData!$D$11,'Closest CCG (codes)'!$A$1:$HD$212,'Closest CCG (codes)'!HE94+2,0)","v":"99C"},"No",null,"Not similar","01K",{"$f":"VLOOKUP($BP95,[1]prevlence!$B$3:$F$213,3,0)","v":9.8989999999999991},{"$f":"VLOOKUP($BP95,[1]prevlence!$B$3:$F$213,5,0)","v":4.8390000000000004},null,null,null,{"$f":"VLOOKUP(BP95,[2]CCG_AgeSpecificPrevalence!$E$14:$H$225,4,0)/BQ95","v":16327.406808768565},{"$f":"VLOOKUP(BP95,[3]CHD!$E$16:$L$226,8,0)/BQ95","v":16239.115062127488}]
["02V","E38000094","NHS Leeds North","Yorkshire and Northern",{"$f":"VLOOKUP(A96,Lookup!$BJ$3:$BK$226,2,0)","v":"No"},5,"North","5N1",{"$f":"VLOOKUP(A96,Lookup!$BL$3:$BM$226,2,0)","v":"No"},null,null,null,null,null,null,null,null,null,null,null,null,null,null,null,null,null,null,null,null,null,null,null,null,null,null,null,null,null,null,null,null,null,null,null,null,null,null,null,null,null,null,null,null,null,null,null,null,null,null,null,null,{"$f":"HLOOKUP(GraphData!$E$3,'Closest CCG (codes)'!$A$1:$HD$212,'Closest CCG (codes)'!HE95+2,0)","v":"01T"},"No",{"$f":"HLOOKUP(SummaryData!$D$11,'Closest CCG (codes)'!$A$1:$HD$212,'Closest CCG (codes)'!HE95+2,0)","v":"06T"},"No",null,"Not similar","02V",{"$f":"VLOOKUP($BP96,[1]prevlence!$B$3:$F$213,3,0)","v":9.3450000000000006},{"$f":"VLOOKUP($BP96,[1]prevlence!$B$3:$F$213,5,0)","v":4.484},null,null,null,{"$f":"VLOOKUP(BP96,[2]CCG_AgeSpecificPrevalence!$E$14:$H$225,4,0)/BQ96","v":21868.164794007491},{"$f":"VLOOKUP(BP96,[3]CHD!$E$16:$L$226,8,0)/BQ96","v":21987.80096308186}]
["03G","E38000095","NHS Leeds South and East","Yorkshire and Northern",{"$f":"VLOOKUP(A97,Lookup!$BJ$3:$BK$226,2,0)","v":"No"},1,"North","5N1",{"$f":"VLOOKUP(A97,Lookup!$BL$3:$BM$226,2,0)","v":"Comparator Closest 10 CCGs"},null,null,null,null,null,null,null,null,null,null,null,null,null,null,null,null,null,null,null,null,null,null,null,null,null,null,null,null,null,null,null,null,null,null,null,null,null,null,null,null,null,null,null,null,null,null,null,null,null,null,null,null,{"$f":"HLOOKUP(GraphData!$E$3,'Closest CCG (codes)'!$A$1:$HD$212,'Closest CCG (codes)'!HE96+2,0)","v":"12D"},"No",{"$f":"HLOOKUP(SummaryData!$D$11,'Closest CCG (codes)'!$A$1:$HD$212,'Closest CCG (codes)'!HE96+2,0)","v":"00N"},"No",null,"Not similar","03G",{"$f":"VLOOKUP($BP97,[1]prevlence!$B$3:$F$213,3,0)","v":9.7509999999999994},{"$f":"VLOOKUP($BP97,[1]prevlence!$B$3:$F$213,5,0)","v":5.3029999999999999},null,null,null,{"$f":"VLOOKUP(BP97,[2]CCG_AgeSpecificPrevalence!$E$14:$H$225,4,0)/BQ97","v":26999.384678494516},{"$f":"VLOOKUP(BP97,[3]CHD!$E$16:$L$226,8,0)/BQ97","v":27151.163983181214}]
["03C","E38000096","NHS Leeds West","Yorkshire and Northern",{"$f":"VLOOKUP(A98,Lookup!$BJ$3:$BK$226,2,0)","v":"No"},5,"North","5N1",{"$f":"VLOOKUP(A98,Lookup!$BL$3:$BM$226,2,0)","v":"No"},null,null,null,null,null,null,null,null,null,null,null,null,null,null,null,null,null,null,null,null,null,null,null,null,null,null,null,null,null,null,null,null,null,null,null,null,null,null,null,null,null,null,null,null,null,null,null,null,null,null,null,null,{"$f":"HLOOKUP(GraphData!$E$3,'Closest CCG (codes)'!$A$1:$HD$212,'Closest CCG (codes)'!HE97+2,0)","v":"00T"},"No",{"$f":"HLOOKUP(SummaryData!$D$11,'Closest CCG (codes)'!$A$1:$HD$212,'Closest CCG (codes)'!HE97+2,0)","v":"10A"},"No",null,"Not similar","03C",{"$f":"VLOOKUP($BP98,[1]prevlence!$B$3:$F$213,3,0)","v":8.4049999999999994},{"$f":"VLOOKUP($BP98,[1]prevlence!$B$3:$F$213,5,0)","v":4.0030000000000001},null,null,null,{"$f":"VLOOKUP(BP98,[2]CCG_AgeSpecificPrevalence!$E$14:$H$225,4,0)/BQ98","v":42939.559785841768},{"$f":"VLOOKUP(BP98,[3]CHD!$E$16:$L$226,8,0)/BQ98","v":43288.637715645455}]
["04C","E38000097","NHS Leicester City","East Midlands",{"$f":"VLOOKUP(A99,Lookup!$BJ$3:$BK$226,2,0)","v":"No"},2,"Midlands and East","5PC",{"$f":"VLOOKUP(A99,Lookup!$BL$3:$BM$226,2,0)","v":"No"},null,null,null,null,null,null,null,null,null,null,null,null,null,null,null,null,null,null,null,null,null,null,null,null,null,null,null,null,null,null,null,null,null,null,null,null,null,null,null,null,null,null,null,null,null,null,null,null,null,null,null,null,{"$f":"HLOOKUP(GraphData!$E$3,'Closest CCG (codes)'!$A$1:$HD$212,'Closest CCG (codes)'!HE98+2,0)","v":"99H"},"No",{"$f":"HLOOKUP(SummaryData!$D$11,'Closest CCG (codes)'!$A$1:$HD$212,'Closest CCG (codes)'!HE98+2,0)","v":"04V"},"No",null,"Not similar","04C",{"$f":"VLOOKUP($BP99,[1]prevlence!$B$3:$F$213,3,0)","v":7.7839999999999998},{"$f":"VLOOKUP($BP99,[1]prevlence!$B$3:$F$213,5,0)","v":4.2380000000000004},null,null,null,{"$f":"VLOOKUP(BP99,[2]CCG_AgeSpecificPrevalence!$E$14:$H$225,4,0)/BQ99","v":48616.778006166496},{"$f":"VLOOKUP(BP99,[3]CHD!$E$16:$L$226,8,0)/BQ99","v":48402.87769784173}]
["08L","E38000098","NHS Lewisham","London",{"$f":"VLOOKUP(A100,Lookup!$BJ$3:$BK$226,2,0)","v":"No"},2,"London","5LF",{"$f":"VLOOKUP(A100,Lookup!$BL$3:$BM$226,2,0)","v":"No"},null,null,null,null,null,null,null,null,null,null,null,null,null,null,null,null,null,null,null,null,null,null,null,null,null,null,null,null,null,null,null,null,null,null,null,null,null,null,null,null,null,null,null,null,null,null,null,null,null,null,null,null,{"$f":"HLOOKUP(GraphData!$E$3,'Closest CCG (codes)'!$A$1:$HD$212,'Closest CCG (codes)'!HE99+2,0)","v":"02M"},"No",{"$f":"HLOOKUP(SummaryData!$D$11,'Closest CCG (codes)'!$A$1:$HD$212,'Closest CCG (codes)'!HE99+2,0)","v":"09L"},"No",null,"Not similar","08L",{"$f":"VLOOKUP($BP100,[1]prevlence!$B$3:$F$213,3,0)","v":6.9119999999999999},{"$f":"VLOOKUP($BP100,[1]prevlence!$B$3:$F$213,5,0)","v":2.9780000000000002},null,null,null,{"$f":"VLOOKUP(BP100,[2]CCG_AgeSpecificPrevalence!$E$14:$H$225,4,0)/BQ100","v":43188.946759259263},{"$f":"VLOOKUP(BP100,[3]CHD!$E$16:$L$226,8,0)/BQ100","v":43886.71875}]
["03T","E38000099","NHS Lincolnshire East","East Midlands",{"$f":"VLOOKUP(A101,Lookup!$BJ$3:$BK$226,2,0)","v":"No"},4,"Midlands and East","5N9",{"$f":"VLOOKUP(A101,Lookup!$BL$3:$BM$226,2,0)","v":"No"},null,null,null,null,null,null,null,null,null,null,null,null,null,null,null,null,null,null,null,null,null,null,null,null,null,null,null,null,null,null,null,null,null,null,null,null,null,null,null,null,null,null,null,null,null,null,null,null,null,null,null,null,{"$f":"HLOOKUP(GraphData!$E$3,'Closest CCG (codes)'!$A$1:$HD$212,'Closest CCG (codes)'!HE100+2,0)","v":"05Q"},"No",{"$f":"HLOOKUP(SummaryData!$D$11,'Closest CCG (codes)'!$A$1:$HD$212,'Closest CCG (codes)'!HE100+2,0)","v":"10M"},"No",null,"Not similar","03T",{"$f":"VLOOKUP($BP101,[1]prevlence!$B$3:$F$213,3,0)","v":12.364000000000001},{"$f":"VLOOKUP($BP101,[1]prevlence!$B$3:$F$213,5,0)","v":6.9509999999999996},null,null,null,{"$f":"VLOOKUP(BP101,[2]CCG_AgeSpecificPrevalence!$E$14:$H$225,4,0)/BQ101","v":19598.269168553867},{"$f":"VLOOKUP(BP101,[3]CHD!$E$16:$L$226,8,0)/BQ101","v":19695.891297314785}]
["04D","E38000100","NHS Lincolnshire West","East Midlands",{"$f":"VLOOKUP(A102,Lookup!$BJ$3:$BK$226,2,0)","v":"No"},6,"Midlands and East","5N9",{"$f":"VLOOKUP(A102,Lookup!$BL$3:$BM$226,2,0)","v":"No"},null,null,null,null,null,null,null,null,null,null,null,null,null,null,null,null,null,null,null,null,null,null,null,null,null,null,null,null,null,null,null,null,null,null,null,null,null,null,null,null,null,null,null,null,null,null,null,null,null,null,null,null,{"$f":"HLOOKUP(GraphData!$E$3,'Closest CCG (codes)'!$A$1:$HD$212,'Closest CCG (codes)'!HE101+2,0)","v":"00Y"},"No",{"$f":"HLOOKUP(SummaryData!$D$11,'Closest CCG (codes)'!$A$1:$HD$212,'Closest CCG (codes)'!HE101+2,0)","v":"10Y"},"No",null,"Not similar","04D",{"$f":"VLOOKUP($BP102,[1]prevlence!$B$3:$F$213,3,0)","v":9.98},{"$f":"VLOOKUP($BP102,[1]prevlence!$B$3:$F$213,5,0)","v":4.8019999999999996},null,null,null,{"$f":"VLOOKUP(BP102,[2]CCG_AgeSpecificPrevalence!$E$14:$H$225,4,0)/BQ102","v":22731.262525050101},{"$f":"VLOOKUP(BP102,[3]CHD!$E$16:$L$226,8,0)/BQ102","v":23020.741482965932}]
["99A","E38000101","NHS Liverpool","Cheshire and Merseyside",{"$f":"VLOOKUP(A103,Lookup!$BJ$3:$BK$226,2,0)","v":"No"},1,"North","5NL",{"$f":"VLOOKUP(A103,Lookup!$BL$3:$BM$226,2,0)","v":"No"},null,null,null,null,null,null,null,null,null,null,null,null,null,null,null,null,null,null,null,null,null,null,null,null,null,null,null,null,null,null,null,null,null,null,null,null,null,null,null,null,null,null,null,null,null,null,null,null,null,null,null,null,{"$f":"HLOOKUP(GraphData!$E$3,'Closest CCG (codes)'!$A$1:$HD$212,'Closest CCG (codes)'!HE102+2,0)","v":"05W"},"No",{"$f":"HLOOKUP(SummaryData!$D$11,'Closest CCG (codes)'!$A$1:$HD$212,'Closest CCG (codes)'!HE102+2,0)","v":"11H"},"No",null,"Not similar","99A",{"$f":"VLOOKUP($BP103,[1]prevlence!$B$3:$F$213,3,0)","v":9.8179999999999996},{"$f":"VLOOKUP($BP103,[1]prevlence!$B$3:$F$213,5,0)","v":5.4409999999999998},null,null,null,{"$f":"VLOOKUP(BP103,[2]CCG_AgeSpecificPrevalence!$E$14:$H$225,4,0)/BQ103","v":50541.963740069259},{"$f":"VLOOKUP(BP103,[3]CHD!$E$16:$L$226,8,0)/BQ103","v":50935.73029130169}]
["06P","E38000102","NHS Luton","East of England",{"$f":"VLOOKUP(A104,Lookup!$BJ$3:$BK$226,2,0)","v":"No"},3,"Midlands and East","5GC",{"$f":"VLOOKUP(A104,Lookup!$BL$3:$BM$226,2,0)","v":"No"},null,null,null,null,null,null,null,null,null,null,null,null,null,null,null,null,null,null,null,null,null,null,null,null,null,null,null,null,null,null,null,null,null,null,null,null,null,null,null,null,null,null,null,null,null,null,null,null,null,null,null,null,{"$f":"HLOOKUP(GraphData!$E$3,'Closest CCG (codes)'!$A$1:$HD$212,'Closest CCG (codes)'!HE103+2,0)","v":"01W"},"No",{"$f":"HLOOKUP(SummaryData!$D$11,'Closest CCG (codes)'!$A$1:$HD$212,'Closest CCG (codes)'!HE103+2,0)","v":"04H"},"No",null,"Not similar","06P",{"$f":"VLOOKUP($BP104,[1]prevlence!$B$3:$F$213,3,0)","v":7.3490000000000002},{"$f":"VLOOKUP($BP104,[1]prevlence!$B$3:$F$213,5,0)","v":3.6779999999999999},null,null,null,{"$f":"VLOOKUP(BP104,[2]CCG_AgeSpecificPrevalence!$E$14:$H$225,4,0)/BQ104","v":29521.975779017554},{"$f":"VLOOKUP(BP104,[3]CHD!$E$16:$L$226,8,0)/BQ104","v":29893.454891822017}]
["04E","E38000103","NHS Mansfield and Ashfield","East Midlands",{"$f":"VLOOKUP(A105,Lookup!$BJ$3:$BK$226,2,0)","v":"No"},3,"Midlands and East","5N8",{"$f":"VLOOKUP(A105,Lookup!$BL$3:$BM$226,2,0)","v":"No"},null,null,null,null,null,null,null,null,null,null,null,null,null,null,null,null,null,null,null,null,null,null,null,null,null,null,null,null,null,null,null,null,null,null,null,null,null,null,null,null,null,null,null,null,null,null,null,null,null,null,null,null,{"$f":"HLOOKUP(GraphData!$E$3,'Closest CCG (codes)'!$A$1:$HD$212,'Closest CCG (codes)'!HE104+2,0)","v":"00K"},"No",{"$f":"HLOOKUP(SummaryData!$D$11,'Closest CCG (codes)'!$A$1:$HD$212,'Closest CCG (codes)'!HE104+2,0)","v":"00F"},"No",null,"Not similar","04E",{"$f":"VLOOKUP($BP105,[1]prevlence!$B$3:$F$213,3,0)","v":10.1},{"$f":"VLOOKUP($BP105,[1]prevlence!$B$3:$F$213,5,0)","v":5.4109999999999996},null,null,null,{"$f":"VLOOKUP(BP105,[2]CCG_AgeSpecificPrevalence!$E$14:$H$225,4,0)/BQ105","v":18279.405940594061},{"$f":"VLOOKUP(BP105,[3]CHD!$E$16:$L$226,8,0)/BQ105","v":18426.435643564357}]
["09W","E38000104","NHS Medway","South East coast",{"$f":"VLOOKUP(A106,Lookup!$BJ$3:$BK$226,2,0)","v":"No"},5,"South","5L3",{"$f":"VLOOKUP(A106,Lookup!$BL$3:$BM$226,2,0)","v":"No"},null,null,null,null,null,null,null,null,null,null,null,null,null,null,null,null,null,null,null,null,null,null,null,null,null,null,null,null,null,null,null,null,null,null,null,null,null,null,null,null,null,null,null,null,null,null,null,null,null,null,null,null,{"$f":"HLOOKUP(GraphData!$E$3,'Closest CCG (codes)'!$A$1:$HD$212,'Closest CCG (codes)'!HE105+2,0)","v":"99M"},"No",{"$f":"HLOOKUP(SummaryData!$D$11,'Closest CCG (codes)'!$A$1:$HD$212,'Closest CCG (codes)'!HE105+2,0)","v":"03N"},"No",null,"Not similar","09W",{"$f":"VLOOKUP($BP106,[1]prevlence!$B$3:$F$213,3,0)","v":8.6839999999999993},{"$f":"VLOOKUP($BP106,[1]prevlence!$B$3:$F$213,5,0)","v":4.1040000000000001},null,null,null,{"$f":"VLOOKUP(BP106,[2]CCG_AgeSpecificPrevalence!$E$14:$H$225,4,0)/BQ106","v":32767.388300322436},{"$f":"VLOOKUP(BP106,[3]CHD!$E$16:$L$226,8,0)/BQ106","v":33488.94518654998}]
["08R","E38000105","NHS Merton","London",{"$f":"VLOOKUP(A107,Lookup!$BJ$3:$BK$226,2,0)","v":"No"},8,"London","5M7",{"$f":"VLOOKUP(A107,Lookup!$BL$3:$BM$226,2,0)","v":"No"},null,null,null,null,null,null,null,null,null,null,null,null,null,null,null,null,null,null,null,null,null,null,null,null,null,null,null,null,null,null,null,null,null,null,null,null,null,null,null,null,null,null,null,null,null,null,null,null,null,null,null,null,{"$f":"HLOOKUP(GraphData!$E$3,'Closest CCG (codes)'!$A$1:$HD$212,'Closest CCG (codes)'!HE106+2,0)","v":"09Y"},"No",{"$f":"HLOOKUP(SummaryData!$D$11,'Closest CCG (codes)'!$A$1:$HD$212,'Closest CCG (codes)'!HE106+2,0)","v":"04D"},"No",null,"Not similar","08R",{"$f":"VLOOKUP($BP107,[1]prevlence!$B$3:$F$213,3,0)","v":7.3659999999999997},{"$f":"VLOOKUP($BP107,[1]prevlence!$B$3:$F$213,5,0)","v":2.948},null,null,null,{"$f":"VLOOKUP(BP107,[2]CCG_AgeSpecificPrevalence!$E$14:$H$225,4,0)/BQ107","v":29568.693999456966},{"$f":"VLOOKUP(BP107,[3]CHD!$E$16:$L$226,8,0)/BQ107","v":29505.566114580506}]
["06Q","E38000106","NHS Mid Essex","East of England",{"$f":"VLOOKUP(A108,Lookup!$BJ$3:$BK$226,2,0)","v":"No"},9,"Midlands and East","5PX",{"$f":"VLOOKUP(A108,Lookup!$BL$3:$BM$226,2,0)","v":"No"},null,null,null,null,null,null,null,null,null,null,null,null,null,null,null,null,null,null,null,null,null,null,null,null,null,null,null,null,null,null,null,null,null,null,null,null,null,null,null,null,null,null,null,null,null,null,null,null,null,null,null,null,{"$f":"HLOOKUP(GraphData!$E$3,'Closest CCG (codes)'!$A$1:$HD$212,'Closest CCG (codes)'!HE107+2,0)","v":"00F"},"No",{"$f":"HLOOKUP(SummaryData!$D$11,'Closest CCG (codes)'!$A$1:$HD$212,'Closest CCG (codes)'!HE107+2,0)","v":"08J"},"No",null,"Not similar","06Q",{"$f":"VLOOKUP($BP108,[1]prevlence!$B$3:$F$213,3,0)","v":9.468},{"$f":"VLOOKUP($BP108,[1]prevlence!$B$3:$F$213,5,0)","v":4.173},null,null,null,{"$f":"VLOOKUP(BP108,[2]CCG_AgeSpecificPrevalence!$E$14:$H$225,4,0)/BQ108","v":40316.011829319817},{"$f":"VLOOKUP(BP108,[3]CHD!$E$16:$L$226,8,0)/BQ108","v":39837.241233629065}]
["04F","E38000107","NHS Milton Keynes","East Midlands",{"$f":"VLOOKUP(A109,Lookup!$BJ$3:$BK$226,2,0)","v":"No"},8,"Midlands and East","5CQ",{"$f":"VLOOKUP(A109,Lookup!$BL$3:$BM$226,2,0)","v":"No"},null,null,null,null,null,null,null,null,null,null,null,null,null,null,null,null,null,null,null,null,null,null,null,null,null,null,null,null,null,null,null,null,null,null,null,null,null,null,null,null,null,null,null,null,null,null,null,null,null,null,null,null,{"$f":"HLOOKUP(GraphData!$E$3,'Closest CCG (codes)'!$A$1:$HD$212,'Closest CCG (codes)'!HE108+2,0)","v":"00N"},"No",{"$f":"HLOOKUP(SummaryData!$D$11,'Closest CCG (codes)'!$A$1:$HD$212,'Closest CCG (codes)'!HE108+2,0)","v":"11C"},"No",null,"Not similar","04F",{"$f":"VLOOKUP($BP109,[1]prevlence!$B$3:$F$213,3,0)","v":7.49},{"$f":"VLOOKUP($BP109,[1]prevlence!$B$3:$F$213,5,0)","v":3.2450000000000001},null,null,null,{"$f":"VLOOKUP(BP109,[2]CCG_AgeSpecificPrevalence!$E$14:$H$225,4,0)/BQ109","v":36043.257676902533},{"$f":"VLOOKUP(BP109,[3]CHD!$E$16:$L$226,8,0)/BQ109","v":36725.76769025367}]
["04G","E38000108","NHS Nene","East Midlands",{"$f":"VLOOKUP(A110,Lookup!$BJ$3:$BK$226,2,0)","v":"No"},7,"Midlands and East","5PD",{"$f":"VLOOKUP(A110,Lookup!$BL$3:$BM$226,2,0)","v":"No"},null,null,null,null,null,null,null,null,null,null,null,null,null,null,null,null,null,null,null,null,null,null,null,null,null,null,null,null,null,null,null,null,null,null,null,null,null,null,null,null,null,null,null,null,null,null,null,null,null,null,null,null,{"$f":"HLOOKUP(GraphData!$E$3,'Closest CCG (codes)'!$A$1:$HD$212,'Closest CCG (codes)'!HE109+2,0)","v":"09W"},"No",{"$f":"HLOOKUP(SummaryData!$D$11,'Closest CCG (codes)'!$A$1:$HD$212,'Closest CCG (codes)'!HE109+2,0)","v":"03Y"},"No",null,"Not similar","04G",{"$f":"VLOOKUP($BP110,[1]prevlence!$B$3:$F$213,3,0)","v":8.9039999999999999},{"$f":"VLOOKUP($BP110,[1]prevlence!$B$3:$F$213,5,0)","v":4.1109999999999998},null,null,null,{"$f":"VLOOKUP(BP110,[2]CCG_AgeSpecificPrevalence!$E$14:$H$225,4,0)/BQ110","v":70974.168912848152},{"$f":"VLOOKUP(BP110,[3]CHD!$E$16:$L$226,8,0)/BQ110","v":72019.317160826598}]
["04H","E38000109","NHS Newark & Sherwood","East Midlands",{"$f":"VLOOKUP(A111,Lookup!$BJ$3:$BK$226,2,0)","v":"No"},6,"Midlands and East","5N8",{"$f":"VLOOKUP(A111,Lookup!$BL$3:$BM$226,2,0)","v":"No"},null,null,null,null,null,null,null,null,null,null,null,null,null,null,null,null,null,null,null,null,null,null,null,null,null,null,null,null,null,null,null,null,null,null,null,null,null,null,null,null,null,null,null,null,null,null,null,null,null,null,null,null,{"$f":"HLOOKUP(GraphData!$E$3,'Closest CCG (codes)'!$A$1:$HD$212,'Closest CCG (codes)'!HE110+2,0)","v":"02A"},"No",{"$f":"HLOOKUP(SummaryData!$D$11,'Closest CCG (codes)'!$A$1:$HD$212,'Closest CCG (codes)'!HE110+2,0)","v":"06Q"},"No",null,"Not similar","04H",{"$f":"VLOOKUP($BP111,[1]prevlence!$B$3:$F$213,3,0)","v":10.315},{"$f":"VLOOKUP($BP111,[1]prevlence!$B$3:$F$213,5,0)","v":5.1479999999999997},null,null,null,{"$f":"VLOOKUP(BP111,[2]CCG_AgeSpecificPrevalence!$E$14:$H$225,4,0)/BQ111","v":12430.441105186623},{"$f":"VLOOKUP(BP111,[3]CHD!$E$16:$L$226,8,0)/BQ111","v":12540.959767329134}]
["10M","E38000110","NHS Newbury and District","Thames",{"$f":"VLOOKUP(A112,Lookup!$BJ$3:$BK$226,2,0)","v":"No"},10,"South","5QF",{"$f":"VLOOKUP(A112,Lookup!$BL$3:$BM$226,2,0)","v":"No"},null,null,null,null,null,null,null,null,null,null,null,null,null,null,null,null,null,null,null,null,null,null,null,null,null,null,null,null,null,null,null,null,null,null,null,null,null,null,null,null,null,null,null,null,null,null,null,null,null,null,null,null,{"$f":"HLOOKUP(GraphData!$E$3,'Closest CCG (codes)'!$A$1:$HD$212,'Closest CCG (codes)'!HE111+2,0)","v":"11N"},"No",{"$f":"HLOOKUP(SummaryData!$D$11,'Closest CCG (codes)'!$A$1:$HD$212,'Closest CCG (codes)'!HE111+2,0)","v":"10R"},"No",null,"Not similar","10M",{"$f":"VLOOKUP($BP112,[1]prevlence!$B$3:$F$213,3,0)","v":8.9190000000000005},{"$f":"VLOOKUP($BP112,[1]prevlence!$B$3:$F$213,5,0)","v":3.79},null,null,null,{"$f":"VLOOKUP(BP112,[2]CCG_AgeSpecificPrevalence!$E$14:$H$225,4,0)/BQ112","v":12876.667787868595},{"$f":"VLOOKUP(BP112,[3]CHD!$E$16:$L$226,8,0)/BQ112","v":12966.363942145979}]
["00G","E38000111","NHS Newcastle North and East","Northern England",{"$f":"VLOOKUP(A113,Lookup!$BJ$3:$BK$226,2,0)","v":"No"},4,"North","5D7",{"$f":"VLOOKUP(A113,Lookup!$BL$3:$BM$226,2,0)","v":"No"},null,null,null,null,null,null,null,null,null,null,null,null,null,null,null,null,null,null,null,null,null,null,null,null,null,null,null,null,null,null,null,null,null,null,null,null,null,null,null,null,null,null,null,null,null,null,null,null,null,null,null,null,{"$f":"HLOOKUP(GraphData!$E$3,'Closest CCG (codes)'!$A$1:$HD$212,'Closest CCG (codes)'!HE112+2,0)","v":"04L"},"No",{"$f":"HLOOKUP(SummaryData!$D$11,'Closest CCG (codes)'!$A$1:$HD$212,'Closest CCG (codes)'!HE112+2,0)","v":"12A"},"No",null,"Not similar","00G",{"$f":"VLOOKUP($BP113,[1]prevlence!$B$3:$F$213,3,0)","v":8.4030000000000005},{"$f":"VLOOKUP($BP113,[1]prevlence!$B$3:$F$213,5,0)","v":4.0410000000000004},null,null,null,{"$f":"VLOOKUP(BP113,[2]CCG_AgeSpecificPrevalence!$E$14:$H$225,4,0)/BQ113","v":18564.917291443529},{"$f":"VLOOKUP(BP113,[3]CHD!$E$16:$L$226,8,0)/BQ113","v":19167.678210163034}]
["00H","E38000112","NHS Newcastle West","Northern England",{"$f":"VLOOKUP(A114,Lookup!$BJ$3:$BK$226,2,0)","v":"No"},2,"North","5D7",{"$f":"VLOOKUP(A114,Lookup!$BL$3:$BM$226,2,0)","v":"No"},null,null,null,null,null,null,null,null,null,null,null,null,null,null,null,null,null,null,null,null,null,null,null,null,null,null,null,null,null,null,null,null,null,null,null,null,null,null,null,null,null,null,null,null,null,null,null,null,null,null,null,null,{"$f":"HLOOKUP(GraphData!$E$3,'Closest CCG (codes)'!$A$1:$HD$212,'Closest CCG (codes)'!HE113+2,0)","v":"99C"},"No",{"$f":"HLOOKUP(SummaryData!$D$11,'Closest CCG (codes)'!$A$1:$HD$212,'Closest CCG (codes)'!HE113+2,0)","v":"02F"},"No",null,"Not similar","00H",{"$f":"VLOOKUP($BP114,[1]prevlence!$B$3:$F$213,3,0)","v":9.8439999999999994},{"$f":"VLOOKUP($BP114,[1]prevlence!$B$3:$F$213,5,0)","v":5.484},null,null,null,{"$f":"VLOOKUP(BP114,[2]CCG_AgeSpecificPrevalence!$E$14:$H$225,4,0)/BQ114","v":13433.462007314101},{"$f":"VLOOKUP(BP114,[3]CHD!$E$16:$L$226,8,0)/BQ114","v":13656.135717188135}]
["08M","E38000113","NHS Newham","London",{"$f":"VLOOKUP(A115,Lookup!$BJ$3:$BK$226,2,0)","v":"No"},1,"London","5C5",{"$f":"VLOOKUP(A115,Lookup!$BL$3:$BM$226,2,0)","v":"No"},null,null,null,null,null,null,null,null,null,null,null,null,null,null,null,null,null,null,null,null,null,null,null,null,null,null,null,null,null,null,null,null,null,null,null,null,null,null,null,null,null,null,null,null,null,null,null,null,null,null,null,null,{"$f":"HLOOKUP(GraphData!$E$3,'Closest CCG (codes)'!$A$1:$HD$212,'Closest CCG (codes)'!HE114+2,0)","v":"00M"},"No",{"$f":"HLOOKUP(SummaryData!$D$11,'Closest CCG (codes)'!$A$1:$HD$212,'Closest CCG (codes)'!HE114+2,0)","v":"05T"},"No",null,"Not similar","08M",{"$f":"VLOOKUP($BP115,[1]prevlence!$B$3:$F$213,3,0)","v":6.5209999999999999},{"$f":"VLOOKUP($BP115,[1]prevlence!$B$3:$F$213,5,0)","v":3.367},null,null,null,{"$f":"VLOOKUP(BP115,[2]CCG_AgeSpecificPrevalence!$E$14:$H$225,4,0)/BQ115","v":57639.012421407759},{"$f":"VLOOKUP(BP115,[3]CHD!$E$16:$L$226,8,0)/BQ115","v":55743.137555589637}]
["10N","E38000114","NHS North & West Reading","Thames",{"$f":"VLOOKUP(A116,Lookup!$BJ$3:$BK$226,2,0)","v":"No"},9,"South","5QF",{"$f":"VLOOKUP(A116,Lookup!$BL$3:$BM$226,2,0)","v":"No"},null,null,null,null,null,null,null,null,null,null,null,null,null,null,null,null,null,null,null,null,null,null,null,null,null,null,null,null,null,null,null,null,null,null,null,null,null,null,null,null,null,null,null,null,null,null,null,null,null,null,null,null,{"$f":"HLOOKUP(GraphData!$E$3,'Closest CCG (codes)'!$A$1:$HD$212,'Closest CCG (codes)'!HE115+2,0)","v":"00H"},"No",{"$f":"HLOOKUP(SummaryData!$D$11,'Closest CCG (codes)'!$A$1:$HD$212,'Closest CCG (codes)'!HE115+2,0)","v":"03W"},"No",null,"Not similar","10N",{"$f":"VLOOKUP($BP116,[1]prevlence!$B$3:$F$213,3,0)","v":8.9139999999999997},{"$f":"VLOOKUP($BP116,[1]prevlence!$B$3:$F$213,5,0)","v":3.94},null,null,null,{"$f":"VLOOKUP(BP116,[2]CCG_AgeSpecificPrevalence!$E$14:$H$225,4,0)/BQ116","v":12110.275970383667},{"$f":"VLOOKUP(BP116,[3]CHD!$E$16:$L$226,8,0)/BQ116","v":12238.38905093112}]
["04J","E38000115","NHS North Derbyshire","East Midlands",{"$f":"VLOOKUP(A117,Lookup!$BJ$3:$BK$226,2,0)","v":"No"},7,"Midlands and East","5N6",{"$f":"VLOOKUP(A117,Lookup!$BL$3:$BM$226,2,0)","v":"No"},null,null,null,null,null,null,null,null,null,null,null,null,null,null,null,null,null,null,null,null,null,null,null,null,null,null,null,null,null,null,null,null,null,null,null,null,null,null,null,null,null,null,null,null,null,null,null,null,null,null,null,null,{"$f":"HLOOKUP(GraphData!$E$3,'Closest CCG (codes)'!$A$1:$HD$212,'Closest CCG (codes)'!HE116+2,0)","v":"00P"},"No",{"$f":"HLOOKUP(SummaryData!$D$11,'Closest CCG (codes)'!$A$1:$HD$212,'Closest CCG (codes)'!HE116+2,0)","v":"10G"},"No",null,"Not similar","04J",{"$f":"VLOOKUP($BP117,[1]prevlence!$B$3:$F$213,3,0)","v":10.846},{"$f":"VLOOKUP($BP117,[1]prevlence!$B$3:$F$213,5,0)","v":5.4029999999999996},null,null,null,{"$f":"VLOOKUP(BP117,[2]CCG_AgeSpecificPrevalence!$E$14:$H$225,4,0)/BQ117","v":26678.683385579938},{"$f":"VLOOKUP(BP117,[3]CHD!$E$16:$L$226,8,0)/BQ117","v":26702.378757145492}]
["00J","E38000116","NHS North Durham","Northern England",{"$f":"VLOOKUP(A118,Lookup!$BJ$3:$BK$226,2,0)","v":"No"},6,"North","5ND",{"$f":"VLOOKUP(A118,Lookup!$BL$3:$BM$226,2,0)","v":"No"},null,null,null,null,null,null,null,null,null,null,null,null,null,null,null,null,null,null,null,null,null,null,null,null,null,null,null,null,null,null,null,null,null,null,null,null,null,null,null,null,null,null,null,null,null,null,null,null,null,null,null,null,{"$f":"HLOOKUP(GraphData!$E$3,'Closest CCG (codes)'!$A$1:$HD$212,'Closest CCG (codes)'!HE117+2,0)","v":"09G"},"No",{"$f":"HLOOKUP(SummaryData!$D$11,'Closest CCG (codes)'!$A$1:$HD$212,'Closest CCG (codes)'!HE117+2,0)","v":"05Q"},"No",null,"Not similar","00J",{"$f":"VLOOKUP($BP118,[1]prevlence!$B$3:$F$213,3,0)","v":9.7370000000000001},{"$f":"VLOOKUP($BP118,[1]prevlence!$B$3:$F$213,5,0)","v":4.835},null,null,null,{"$f":"VLOOKUP(BP118,[2]CCG_AgeSpecificPrevalence!$E$14:$H$225,4,0)/BQ118","v":25705.864229228715},{"$f":"VLOOKUP(BP118,[3]CHD!$E$16:$L$226,8,0)/BQ118","v":25865.256239088016}]
["06T","E38000117","NHS North East Essex","East of England",{"$f":"VLOOKUP(A119,Lookup!$BJ$3:$BK$226,2,0)","v":"No"},6,"Midlands and East","5PW",{"$f":"VLOOKUP(A119,Lookup!$BL$3:$BM$226,2,0)","v":"No"},null,null,null,null,null,null,null,null,null,null,null,null,null,null,null,null,null,null,null,null,null,null,null,null,null,null,null,null,null,null,null,null,null,null,null,null,null,null,null,null,null,null,null,null,null,null,null,null,null,null,null,null,{"$f":"HLOOKUP(GraphData!$E$3,'Closest CCG (codes)'!$A$1:$HD$212,'Closest CCG (codes)'!HE118+2,0)","v":"01D"},"No",{"$f":"HLOOKUP(SummaryData!$D$11,'Closest CCG (codes)'!$A$1:$HD$212,'Closest CCG (codes)'!HE118+2,0)","v":"10V"},"No",null,"Not similar","06T",{"$f":"VLOOKUP($BP119,[1]prevlence!$B$3:$F$213,3,0)","v":10.867000000000001},{"$f":"VLOOKUP($BP119,[1]prevlence!$B$3:$F$213,5,0)","v":5.4050000000000002},null,null,null,{"$f":"VLOOKUP(BP119,[2]CCG_AgeSpecificPrevalence!$E$14:$H$225,4,0)/BQ119","v":30556.915432041958},{"$f":"VLOOKUP(BP119,[3]CHD!$E$16:$L$226,8,0)/BQ119","v":30456.51973865832}]
["99M","E38000118","NHS North East Hampshire and Farnham","Wessex",{"$f":"VLOOKUP(A120,Lookup!$BJ$3:$BK$226,2,0)","v":"No"},10,"South","5QC",{"$f":"VLOOKUP(A120,Lookup!$BL$3:$BM$226,2,0)","v":"No"},null,null,null,null,null,null,null,null,null,null,null,null,null,null,null,null,null,null,null,null,null,null,null,null,null,null,null,null,null,null,null,null,null,null,null,null,null,null,null,null,null,null,null,null,null,null,null,null,null,null,null,null,{"$f":"HLOOKUP(GraphData!$E$3,'Closest CCG (codes)'!$A$1:$HD$212,'Closest CCG (codes)'!HE119+2,0)","v":"07Q"},"No",{"$f":"HLOOKUP(SummaryData!$D$11,'Closest CCG (codes)'!$A$1:$HD$212,'Closest CCG (codes)'!HE119+2,0)","v":"06L"},"No",null,"Not similar","99M",{"$f":"VLOOKUP($BP120,[1]prevlence!$B$3:$F$213,3,0)","v":8.6159999999999997},{"$f":"VLOOKUP($BP120,[1]prevlence!$B$3:$F$213,5,0)","v":3.508},null,null,null,{"$f":"VLOOKUP(BP120,[2]CCG_AgeSpecificPrevalence!$E$14:$H$225,4,0)/BQ120","v":25402.506963788303},{"$f":"VLOOKUP(BP120,[3]CHD!$E$16:$L$226,8,0)/BQ120","v":25554.085422469823}]
["03H","E38000119","NHS North East Lincolnshire","Yorkshire and Northern",{"$f":"VLOOKUP(A121,Lookup!$BJ$3:$BK$226,2,0)","v":"No"},3,"North","TAN",{"$f":"VLOOKUP(A121,Lookup!$BL$3:$BM$226,2,0)","v":"No"},null,null,null,null,null,null,null,null,null,null,null,null,null,null,null,null,null,null,null,null,null,null,null,null,null,null,null,null,null,null,null,null,null,null,null,null,null,null,null,null,null,null,null,null,null,null,null,null,null,null,null,null,{"$f":"HLOOKUP(GraphData!$E$3,'Closest CCG (codes)'!$A$1:$HD$212,'Closest CCG (codes)'!HE120+2,0)","v":"02R"},"No",{"$f":"HLOOKUP(SummaryData!$D$11,'Closest CCG (codes)'!$A$1:$HD$212,'Closest CCG (codes)'!HE120+2,0)","v":"99J"},"No",null,"Not similar","03H",{"$f":"VLOOKUP($BP121,[1]prevlence!$B$3:$F$213,3,0)","v":10.403},{"$f":"VLOOKUP($BP121,[1]prevlence!$B$3:$F$213,5,0)","v":5.6769999999999996},null,null,null,{"$f":"VLOOKUP(BP121,[2]CCG_AgeSpecificPrevalence!$E$14:$H$225,4,0)/BQ121","v":16168.124579448235},{"$f":"VLOOKUP(BP121,[3]CHD!$E$16:$L$226,8,0)/BQ121","v":16165.240795924252}]
["10J","E38000120","NHS North Hampshire","Wessex",{"$f":"VLOOKUP(A122,Lookup!$BJ$3:$BK$226,2,0)","v":"No"},10,"South","5QC",{"$f":"VLOOKUP(A122,Lookup!$BL$3:$BM$226,2,0)","v":"No"},null,null,null,null,null,null,null,null,null,null,null,null,null,null,null,null,null,null,null,null,null,null,null,null,null,null,null,null,null,null,null,null,null,null,null,null,null,null,null,null,null,null,null,null,null,null,null,null,null,null,null,null,{"$f":"HLOOKUP(GraphData!$E$3,'Closest CCG (codes)'!$A$1:$HD$212,'Closest CCG (codes)'!HE121+2,0)","v":"03X"},"No",{"$f":"HLOOKUP(SummaryData!$D$11,'Closest CCG (codes)'!$A$1:$HD$212,'Closest CCG (codes)'!HE121+2,0)","v":"04L"},"No",null,"Not similar","10J",{"$f":"VLOOKUP($BP122,[1]prevlence!$B$3:$F$213,3,0)","v":8.7240000000000002},{"$f":"VLOOKUP($BP122,[1]prevlence!$B$3:$F$213,5,0)","v":3.609},null,null,null,{"$f":"VLOOKUP(BP122,[2]CCG_AgeSpecificPrevalence!$E$14:$H$225,4,0)/BQ122","v":24918.271435121504},{"$f":"VLOOKUP(BP122,[3]CHD!$E$16:$L$226,8,0)/BQ122","v":25098.005502063272}]
["03J","E38000121","NHS North Kirklees","Yorkshire and Northern",{"$f":"VLOOKUP(A123,Lookup!$BJ$3:$BK$226,2,0)","v":"No"},3,"North","5N2",{"$f":"VLOOKUP(A123,Lookup!$BL$3:$BM$226,2,0)","v":"Comparator Closest 10 CCGs"},null,null,null,null,null,null,null,null,null,null,null,null,null,null,null,null,null,null,null,null,null,null,null,null,null,null,null,null,null,null,null,null,null,null,null,null,null,null,null,null,null,null,null,null,null,null,null,null,null,null,null,null,{"$f":"HLOOKUP(GraphData!$E$3,'Closest CCG (codes)'!$A$1:$HD$212,'Closest CCG (codes)'!HE122+2,0)","v":"04E"},"No",{"$f":"HLOOKUP(SummaryData!$D$11,'Closest CCG (codes)'!$A$1:$HD$212,'Closest CCG (codes)'!HE122+2,0)","v":"99H"},"No",null,"Not similar","03J",{"$f":"VLOOKUP($BP123,[1]prevlence!$B$3:$F$213,3,0)","v":8.9109999999999996},{"$f":"VLOOKUP($BP123,[1]prevlence!$B$3:$F$213,5,0)","v":4.8630000000000004},null,null,null,{"$f":"VLOOKUP(BP123,[2]CCG_AgeSpecificPrevalence!$E$14:$H$225,4,0)/BQ123","v":20961.620469083158},{"$f":"VLOOKUP(BP123,[3]CHD!$E$16:$L$226,8,0)/BQ123","v":21102.345415778254}]
["03K","E38000122","NHS North Lincolnshire","Yorkshire and Northern",{"$f":"VLOOKUP(A124,Lookup!$BJ$3:$BK$226,2,0)","v":"No"},5,"North","5EF",{"$f":"VLOOKUP(A124,Lookup!$BL$3:$BM$226,2,0)","v":"No"},null,null,null,null,null,null,null,null,null,null,null,null,null,null,null,null,null,null,null,null,null,null,null,null,null,null,null,null,null,null,null,null,null,null,null,null,null,null,null,null,null,null,null,null,null,null,null,null,null,null,null,null,{"$f":"HLOOKUP(GraphData!$E$3,'Closest CCG (codes)'!$A$1:$HD$212,'Closest CCG (codes)'!HE123+2,0)","v":"02H"},"No",{"$f":"HLOOKUP(SummaryData!$D$11,'Closest CCG (codes)'!$A$1:$HD$212,'Closest CCG (codes)'!HE123+2,0)","v":"04Y"},"No",null,"Not similar","03K",{"$f":"VLOOKUP($BP124,[1]prevlence!$B$3:$F$213,3,0)","v":10.252000000000001},{"$f":"VLOOKUP($BP124,[1]prevlence!$B$3:$F$213,5,0)","v":5.226},null,null,null,{"$f":"VLOOKUP(BP124,[2]CCG_AgeSpecificPrevalence!$E$14:$H$225,4,0)/BQ124","v":16557.062036675768},{"$f":"VLOOKUP(BP124,[3]CHD!$E$16:$L$226,8,0)/BQ124","v":16581.837690206787}]
["01M","E38000123","NHS North Manchester","Greater Manchester Lancashire and South Cumbria",{"$f":"VLOOKUP(A125,Lookup!$BJ$3:$BK$226,2,0)","v":"No"},1,"North","5NT",{"$f":"VLOOKUP(A125,Lookup!$BL$3:$BM$226,2,0)","v":"No"},null,null,null,null,null,null,null,null,null,null,null,null,null,null,null,null,null,null,null,null,null,null,null,null,null,null,null,null,null,null,null,null,null,null,null,null,null,null,null,null,null,null,null,null,null,null,null,null,null,null,null,null,{"$f":"HLOOKUP(GraphData!$E$3,'Closest CCG (codes)'!$A$1:$HD$212,'Closest CCG (codes)'!HE124+2,0)","v":"00J"},"No",{"$f":"HLOOKUP(SummaryData!$D$11,'Closest CCG (codes)'!$A$1:$HD$212,'Closest CCG (codes)'!HE124+2,0)","v":"11T"},"No",null,"Not similar","01M",{"$f":"VLOOKUP($BP125,[1]prevlence!$B$3:$F$213,3,0)","v":8.8759999999999994},{"$f":"VLOOKUP($BP125,[1]prevlence!$B$3:$F$213,5,0)","v":4.9950000000000001},null,null,null,{"$f":"VLOOKUP(BP125,[2]CCG_AgeSpecificPrevalence!$E$14:$H$225,4,0)/BQ125","v":21458.201892744481},{"$f":"VLOOKUP(BP125,[3]CHD!$E$16:$L$226,8,0)/BQ125","v":21884.858044164041}]
["06V","E38000124","NHS North Norfolk","East of England",{"$f":"VLOOKUP(A126,Lookup!$BJ$3:$BK$226,2,0)","v":"No"},8,"Midlands and East","5PQ",{"$f":"VLOOKUP(A126,Lookup!$BL$3:$BM$226,2,0)","v":"No"},null,null,null,null,null,null,null,null,null,null,null,null,null,null,null,null,null,null,null,null,null,null,null,null,null,null,null,null,null,null,null,null,null,null,null,null,null,null,null,null,null,null,null,null,null,null,null,null,null,null,null,null,{"$f":"HLOOKUP(GraphData!$E$3,'Closest CCG (codes)'!$A$1:$HD$212,'Closest CCG (codes)'!HE125+2,0)","v":"11M"},"No",{"$f":"HLOOKUP(SummaryData!$D$11,'Closest CCG (codes)'!$A$1:$HD$212,'Closest CCG (codes)'!HE125+2,0)","v":"07W"},"No",null,"Not similar","06V",{"$f":"VLOOKUP($BP126,[1]prevlence!$B$3:$F$213,3,0)","v":12.954000000000001},{"$f":"VLOOKUP($BP126,[1]prevlence!$B$3:$F$213,5,0)","v":6.7119999999999997},null,null,null,{"$f":"VLOOKUP(BP126,[2]CCG_AgeSpecificPrevalence!$E$14:$H$225,4,0)/BQ126","v":12992.897946580206},{"$f":"VLOOKUP(BP126,[3]CHD!$E$16:$L$226,8,0)/BQ126","v":13039.601667438628}]
["11T","E38000125","NHS North Somerset","South West",{"$f":"VLOOKUP(A127,Lookup!$BJ$3:$BK$226,2,0)","v":"No"},8,"South","5M8",{"$f":"VLOOKUP(A127,Lookup!$BL$3:$BM$226,2,0)","v":"No"},null,null,null,null,null,null,null,null,null,null,null,null,null,null,null,null,null,null,null,null,null,null,null,null,null,null,null,null,null,null,null,null,null,null,null,null,null,null,null,null,null,null,null,null,null,null,null,null,null,null,null,null,{"$f":"HLOOKUP(GraphData!$E$3,'Closest CCG (codes)'!$A$1:$HD$212,'Closest CCG (codes)'!HE126+2,0)","v":"12A"},"No",{"$f":"HLOOKUP(SummaryData!$D$11,'Closest CCG (codes)'!$A$1:$HD$212,'Closest CCG (codes)'!HE126+2,0)","v":"03X"},"No",null,"Not similar","11T",{"$f":"VLOOKUP($BP127,[1]prevlence!$B$3:$F$213,3,0)","v":10.785},{"$f":"VLOOKUP($BP127,[1]prevlence!$B$3:$F$213,5,0)","v":5.0369999999999999},null,null,null,{"$f":"VLOOKUP(BP127,[2]CCG_AgeSpecificPrevalence!$E$14:$H$225,4,0)/BQ127","v":19726.101066295781},{"$f":"VLOOKUP(BP127,[3]CHD!$E$16:$L$226,8,0)/BQ127","v":19822.994900324524}]
["05G","E38000126","NHS North Staffordshire","West Midlands",{"$f":"VLOOKUP(A128,Lookup!$BJ$3:$BK$226,2,0)","v":"No"},7,"Midlands and East","5PH",{"$f":"VLOOKUP(A128,Lookup!$BL$3:$BM$226,2,0)","v":"No"},null,null,null,null,null,null,null,null,null,null,null,null,null,null,null,null,null,null,null,null,null,null,null,null,null,null,null,null,null,null,null,null,null,null,null,null,null,null,null,null,null,null,null,null,null,null,null,null,null,null,null,null,{"$f":"HLOOKUP(GraphData!$E$3,'Closest CCG (codes)'!$A$1:$HD$212,'Closest CCG (codes)'!HE127+2,0)","v":"10K"},"No",{"$f":"HLOOKUP(SummaryData!$D$11,'Closest CCG (codes)'!$A$1:$HD$212,'Closest CCG (codes)'!HE127+2,0)","v":"99N"},"No",null,"Not similar","05G",{"$f":"VLOOKUP($BP128,[1]prevlence!$B$3:$F$213,3,0)","v":10.34},{"$f":"VLOOKUP($BP128,[1]prevlence!$B$3:$F$213,5,0)","v":5.0119999999999996},null,null,null,{"$f":"VLOOKUP(BP128,[2]CCG_AgeSpecificPrevalence!$E$14:$H$225,4,0)/BQ128","v":20647.001934235977},{"$f":"VLOOKUP(BP128,[3]CHD!$E$16:$L$226,8,0)/BQ128","v":19648.646034816247}]
["99C","E38000127","NHS North Tyneside","Northern England",{"$f":"VLOOKUP(A129,Lookup!$BJ$3:$BK$226,2,0)","v":"No"},5,"North","5D8",{"$f":"VLOOKUP(A129,Lookup!$BL$3:$BM$226,2,0)","v":"No"},null,null,null,null,null,null,null,null,null,null,null,null,null,null,null,null,null,null,null,null,null,null,null,null,null,null,null,null,null,null,null,null,null,null,null,null,null,null,null,null,null,null,null,null,null,null,null,null,null,null,null,null,{"$f":"HLOOKUP(GraphData!$E$3,'Closest CCG (codes)'!$A$1:$HD$212,'Closest CCG (codes)'!HE128+2,0)","v":"09H"},"No",{"$f":"HLOOKUP(SummaryData!$D$11,'Closest CCG (codes)'!$A$1:$HD$212,'Closest CCG (codes)'!HE128+2,0)","v":"09X"},"No",null,"Not similar","99C",{"$f":"VLOOKUP($BP129,[1]prevlence!$B$3:$F$213,3,0)","v":10.125999999999999},{"$f":"VLOOKUP($BP129,[1]prevlence!$B$3:$F$213,5,0)","v":5.1029999999999998},null,null,null,{"$f":"VLOOKUP(BP129,[2]CCG_AgeSpecificPrevalence!$E$14:$H$225,4,0)/BQ129","v":21266.442820462176},{"$f":"VLOOKUP(BP129,[3]CHD!$E$16:$L$226,8,0)/BQ129","v":21310.29034169465}]
["09Y","E38000128","NHS North West Surrey","South East coast",{"$f":"VLOOKUP(A130,Lookup!$BJ$3:$BK$226,2,0)","v":"No"},10,"South","5P5",{"$f":"VLOOKUP(A130,Lookup!$BL$3:$BM$226,2,0)","v":"No"},null,null,null,null,null,null,null,null,null,null,null,null,null,null,null,null,null,null,null,null,null,null,null,null,null,null,null,null,null,null,null,null,null,null,null,null,null,null,null,null,null,null,null,null,null,null,null,null,null,null,null,null,{"$f":"HLOOKUP(GraphData!$E$3,'Closest CCG (codes)'!$A$1:$HD$212,'Closest CCG (codes)'!HE129+2,0)","v":"09E"},"No",{"$f":"HLOOKUP(SummaryData!$D$11,'Closest CCG (codes)'!$A$1:$HD$212,'Closest CCG (codes)'!HE129+2,0)","v":"99A"},"No",null,"Not similar","09Y",{"$f":"VLOOKUP($BP130,[1]prevlence!$B$3:$F$213,3,0)","v":9.1359999999999992},{"$f":"VLOOKUP($BP130,[1]prevlence!$B$3:$F$213,5,0)","v":3.754},null,null,null,{"$f":"VLOOKUP(BP130,[2]CCG_AgeSpecificPrevalence!$E$14:$H$225,4,0)/BQ130","v":38662.653239929954},{"$f":"VLOOKUP(BP130,[3]CHD!$E$16:$L$226,8,0)/BQ130","v":39105.845008756572}]
["99P","E38000129","NHS Northern, Eastern and Western Devon","South West",{"$f":"VLOOKUP(A131,Lookup!$BJ$3:$BK$226,2,0)","v":"No"},6,"South","5QQ",{"$f":"VLOOKUP(A131,Lookup!$BL$3:$BM$226,2,0)","v":"No"},null,null,null,null,null,null,null,null,null,null,null,null,null,null,null,null,null,null,null,null,null,null,null,null,null,null,null,null,null,null,null,null,null,null,null,null,null,null,null,null,null,null,null,null,null,null,null,null,null,null,null,null,{"$f":"HLOOKUP(GraphData!$E$3,'Closest CCG (codes)'!$A$1:$HD$212,'Closest CCG (codes)'!HE130+2,0)","v":"04G"},"No",{"$f":"HLOOKUP(SummaryData!$D$11,'Closest CCG (codes)'!$A$1:$HD$212,'Closest CCG (codes)'!HE130+2,0)","v":"08R"},"No",null,"Not similar","99P",{"$f":"VLOOKUP($BP131,[1]prevlence!$B$3:$F$213,3,0)","v":10.817},{"$f":"VLOOKUP($BP131,[1]prevlence!$B$3:$F$213,5,0)","v":5.3840000000000003},null,null,null,{"$f":"VLOOKUP(BP131,[2]CCG_AgeSpecificPrevalence!$E$14:$H$225,4,0)/BQ131","v":83420.819081076086},{"$f":"VLOOKUP(BP131,[3]CHD!$E$16:$L$226,8,0)/BQ131","v":83987.796986225381}]
["00L","E38000130","NHS Northumberland","Northern England",{"$f":"VLOOKUP(A132,Lookup!$BJ$3:$BK$226,2,0)","v":"No"},6,"North","TAC",{"$f":"VLOOKUP(A132,Lookup!$BL$3:$BM$226,2,0)","v":"No"},null,null,null,null,null,null,null,null,null,null,null,null,null,null,null,null,null,null,null,null,null,null,null,null,null,null,null,null,null,null,null,null,null,null,null,null,null,null,null,null,null,null,null,null,null,null,null,null,null,null,null,null,{"$f":"HLOOKUP(GraphData!$E$3,'Closest CCG (codes)'!$A$1:$HD$212,'Closest CCG (codes)'!HE131+2,0)","v":"11A"},"No",{"$f":"HLOOKUP(SummaryData!$D$11,'Closest CCG (codes)'!$A$1:$HD$212,'Closest CCG (codes)'!HE131+2,0)","v":"00L"},"No",null,"Not similar","00L",{"$f":"VLOOKUP($BP132,[1]prevlence!$B$3:$F$213,3,0)","v":10.941000000000001},{"$f":"VLOOKUP($BP132,[1]prevlence!$B$3:$F$213,5,0)","v":5.5359999999999996},null,null,null,{"$f":"VLOOKUP(BP132,[2]CCG_AgeSpecificPrevalence!$E$14:$H$225,4,0)/BQ132","v":29405.995795631112},{"$f":"VLOOKUP(BP132,[3]CHD!$E$16:$L$226,8,0)/BQ132","v":29351.978795356914}]
["06W","E38000131","NHS Norwich","East of England",{"$f":"VLOOKUP(A133,Lookup!$BJ$3:$BK$226,2,0)","v":"No"},6,"Midlands and East","5PQ",{"$f":"VLOOKUP(A133,Lookup!$BL$3:$BM$226,2,0)","v":"No"},null,null,null,null,null,null,null,null,null,null,null,null,null,null,null,null,null,null,null,null,null,null,null,null,null,null,null,null,null,null,null,null,null,null,null,null,null,null,null,null,null,null,null,null,null,null,null,null,null,null,null,null,{"$f":"HLOOKUP(GraphData!$E$3,'Closest CCG (codes)'!$A$1:$HD$212,'Closest CCG (codes)'!HE132+2,0)","v":"99F"},"No",{"$f":"HLOOKUP(SummaryData!$D$11,'Closest CCG (codes)'!$A$1:$HD$212,'Closest CCG (codes)'!HE132+2,0)","v":"04J"},"No",null,"Not similar","06W",{"$f":"VLOOKUP($BP133,[1]prevlence!$B$3:$F$213,3,0)","v":9.5449999999999999},{"$f":"VLOOKUP($BP133,[1]prevlence!$B$3:$F$213,5,0)","v":4.593},null,null,null,{"$f":"VLOOKUP(BP133,[2]CCG_AgeSpecificPrevalence!$E$14:$H$225,4,0)/BQ133","v":22062.545835515975},{"$f":"VLOOKUP(BP133,[3]CHD!$E$16:$L$226,8,0)/BQ133","v":22123.205866946046}]
["04K","E38000132","NHS Nottingham City","East Midlands",{"$f":"VLOOKUP(A134,Lookup!$BJ$3:$BK$226,2,0)","v":"No"},2,"Midlands and East","5EM",{"$f":"VLOOKUP(A134,Lookup!$BL$3:$BM$226,2,0)","v":"No"},null,null,null,null,null,null,null,null,null,null,null,null,null,null,null,null,null,null,null,null,null,null,null,null,null,null,null,null,null,null,null,null,null,null,null,null,null,null,null,null,null,null,null,null,null,null,null,null,null,null,null,null,{"$f":"HLOOKUP(GraphData!$E$3,'Closest CCG (codes)'!$A$1:$HD$212,'Closest CCG (codes)'!HE133+2,0)","v":"04Y"},"No",{"$f":"HLOOKUP(SummaryData!$D$11,'Closest CCG (codes)'!$A$1:$HD$212,'Closest CCG (codes)'!HE133+2,0)","v":"11X"},"No",null,"Not similar","04K",{"$f":"VLOOKUP($BP134,[1]prevlence!$B$3:$F$213,3,0)","v":8.1539999999999999},{"$f":"VLOOKUP($BP134,[1]prevlence!$B$3:$F$213,5,0)","v":4.1440000000000001},null,null,null,{"$f":"VLOOKUP(BP134,[2]CCG_AgeSpecificPrevalence!$E$14:$H$225,4,0)/BQ134","v":43187.392690703949},{"$f":"VLOOKUP(BP134,[3]CHD!$E$16:$L$226,8,0)/BQ134","v":43533.603139563405}]
["04L","E38000133","NHS Nottingham North and East","East Midlands",{"$f":"VLOOKUP(A135,Lookup!$BJ$3:$BK$226,2,0)","v":"No"},7,"Midlands and East","5N8",{"$f":"VLOOKUP(A135,Lookup!$BL$3:$BM$226,2,0)","v":"No"},null,null,null,null,null,null,null,null,null,null,null,null,null,null,null,null,null,null,null,null,null,null,null,null,null,null,null,null,null,null,null,null,null,null,null,null,null,null,null,null,null,null,null,null,null,null,null,null,null,null,null,null,{"$f":"HLOOKUP(GraphData!$E$3,'Closest CCG (codes)'!$A$1:$HD$212,'Closest CCG (codes)'!HE134+2,0)","v":"01F"},"No",{"$f":"HLOOKUP(SummaryData!$D$11,'Closest CCG (codes)'!$A$1:$HD$212,'Closest CCG (codes)'!HE134+2,0)","v":"06M"},"No",null,"Not similar","04L",{"$f":"VLOOKUP($BP135,[1]prevlence!$B$3:$F$213,3,0)","v":10.065},{"$f":"VLOOKUP($BP135,[1]prevlence!$B$3:$F$213,5,0)","v":4.8959999999999999},null,null,null,{"$f":"VLOOKUP(BP135,[2]CCG_AgeSpecificPrevalence!$E$14:$H$225,4,0)/BQ135","v":14435.370094386488},{"$f":"VLOOKUP(BP135,[3]CHD!$E$16:$L$226,8,0)/BQ135","v":14626.130153999007}]
["04M","E38000134","NHS Nottingham West","East Midlands",{"$f":"VLOOKUP(A136,Lookup!$BJ$3:$BK$226,2,0)","v":"No"},9,"Midlands and East","5N8",{"$f":"VLOOKUP(A136,Lookup!$BL$3:$BM$226,2,0)","v":"No"},null,null,null,null,null,null,null,null,null,null,null,null,null,null,null,null,null,null,null,null,null,null,null,null,null,null,null,null,null,null,null,null,null,null,null,null,null,null,null,null,null,null,null,null,null,null,null,null,null,null,null,null,{"$f":"HLOOKUP(GraphData!$E$3,'Closest CCG (codes)'!$A$1:$HD$212,'Closest CCG (codes)'!HE135+2,0)","v":"09D"},"No",{"$f":"HLOOKUP(SummaryData!$D$11,'Closest CCG (codes)'!$A$1:$HD$212,'Closest CCG (codes)'!HE135+2,0)","v":"01N"},"No",null,"Not similar","04M",{"$f":"VLOOKUP($BP136,[1]prevlence!$B$3:$F$213,3,0)","v":10.182},{"$f":"VLOOKUP($BP136,[1]prevlence!$B$3:$F$213,5,0)","v":4.7080000000000002},null,null,null,{"$f":"VLOOKUP(BP136,[2]CCG_AgeSpecificPrevalence!$E$14:$H$225,4,0)/BQ136","v":9196.8179139658223},{"$f":"VLOOKUP(BP136,[3]CHD!$E$16:$L$226,8,0)/BQ136","v":9237.7725397760751}]
["00Y","E38000135","NHS Oldham","Greater Manchester Lancashire and South Cumbria",{"$f":"VLOOKUP(A137,Lookup!$BJ$3:$BK$226,2,0)","v":"No"},2,"North","5J5",{"$f":"VLOOKUP(A137,Lookup!$BL$3:$BM$226,2,0)","v":"Comparator Closest 10 CCGs"},null,null,null,null,null,null,null,null,null,null,null,null,null,null,null,null,null,null,null,null,null,null,null,null,null,null,null,null,null,null,null,null,null,null,null,null,null,null,null,null,null,null,null,null,null,null,null,null,null,null,null,null,{"$f":"HLOOKUP(GraphData!$E$3,'Closest CCG (codes)'!$A$1:$HD$212,'Closest CCG (codes)'!HE136+2,0)","v":"05Y"},"No",{"$f":"HLOOKUP(SummaryData!$D$11,'Closest CCG (codes)'!$A$1:$HD$212,'Closest CCG (codes)'!HE136+2,0)","v":"09N"},"No",null,"Not similar","00Y",{"$f":"VLOOKUP($BP137,[1]prevlence!$B$3:$F$213,3,0)","v":9.1289999999999996},{"$f":"VLOOKUP($BP137,[1]prevlence!$B$3:$F$213,5,0)","v":4.9269999999999996},null,null,null,{"$f":"VLOOKUP(BP137,[2]CCG_AgeSpecificPrevalence!$E$14:$H$225,4,0)/BQ137","v":26391.499616606419},{"$f":"VLOOKUP(BP137,[3]CHD!$E$16:$L$226,8,0)/BQ137","v":26616.825501150182}]
["10Q","E38000136","NHS Oxfordshire","Thames",{"$f":"VLOOKUP(A138,Lookup!$BJ$3:$BK$226,2,0)","v":"No"},9,"South","5QE",{"$f":"VLOOKUP(A138,Lookup!$BL$3:$BM$226,2,0)","v":"No"},null,null,null,null,null,null,null,null,null,null,null,null,null,null,null,null,null,null,null,null,null,null,null,null,null,null,null,null,null,null,null,null,null,null,null,null,null,null,null,null,null,null,null,null,null,null,null,null,null,null,null,null,{"$f":"HLOOKUP(GraphData!$E$3,'Closest CCG (codes)'!$A$1:$HD$212,'Closest CCG (codes)'!HE137+2,0)","v":"03V"},"No",{"$f":"HLOOKUP(SummaryData!$D$11,'Closest CCG (codes)'!$A$1:$HD$212,'Closest CCG (codes)'!HE137+2,0)","v":"06D"},"No",null,"Not similar","10Q",{"$f":"VLOOKUP($BP138,[1]prevlence!$B$3:$F$213,3,0)","v":8.8849999999999998},{"$f":"VLOOKUP($BP138,[1]prevlence!$B$3:$F$213,5,0)","v":3.7869999999999999},null,null,null,{"$f":"VLOOKUP(BP138,[2]CCG_AgeSpecificPrevalence!$E$14:$H$225,4,0)/BQ138","v":78054.586381541929},{"$f":"VLOOKUP(BP138,[3]CHD!$E$16:$L$226,8,0)/BQ138","v":78845.357343837924}]
["10R","E38000137","NHS Portsmouth","Wessex",{"$f":"VLOOKUP(A139,Lookup!$BJ$3:$BK$226,2,0)","v":"No"},4,"South","5FE",{"$f":"VLOOKUP(A139,Lookup!$BL$3:$BM$226,2,0)","v":"No"},null,null,null,null,null,null,null,null,null,null,null,null,null,null,null,null,null,null,null,null,null,null,null,null,null,null,null,null,null,null,null,null,null,null,null,null,null,null,null,null,null,null,null,null,null,null,null,null,null,null,null,null,{"$f":"HLOOKUP(GraphData!$E$3,'Closest CCG (codes)'!$A$1:$HD$212,'Closest CCG (codes)'!HE138+2,0)","v":"04M"},"No",{"$f":"HLOOKUP(SummaryData!$D$11,'Closest CCG (codes)'!$A$1:$HD$212,'Closest CCG (codes)'!HE138+2,0)","v":"05R"},"No",null,"Not similar","10R",{"$f":"VLOOKUP($BP139,[1]prevlence!$B$3:$F$213,3,0)","v":8.6430000000000007},{"$f":"VLOOKUP($BP139,[1]prevlence!$B$3:$F$213,5,0)","v":4.18},null,null,null,{"$f":"VLOOKUP(BP139,[2]CCG_AgeSpecificPrevalence!$E$14:$H$225,4,0)/BQ139","v":25186.277912761772},{"$f":"VLOOKUP(BP139,[3]CHD!$E$16:$L$226,8,0)/BQ139","v":25300.474372324421}]
["08N","E38000138","NHS Redbridge","London",{"$f":"VLOOKUP(A140,Lookup!$BJ$3:$BK$226,2,0)","v":"No"},6,"London","5NA",{"$f":"VLOOKUP(A140,Lookup!$BL$3:$BM$226,2,0)","v":"No"},null,null,null,null,null,null,null,null,null,null,null,null,null,null,null,null,null,null,null,null,null,null,null,null,null,null,null,null,null,null,null,null,null,null,null,null,null,null,null,null,null,null,null,null,null,null,null,null,null,null,null,null,{"$f":"HLOOKUP(GraphData!$E$3,'Closest CCG (codes)'!$A$1:$HD$212,'Closest CCG (codes)'!HE139+2,0)","v":"05A"},"No",{"$f":"HLOOKUP(SummaryData!$D$11,'Closest CCG (codes)'!$A$1:$HD$212,'Closest CCG (codes)'!HE139+2,0)","v":"00J"},"No",null,"Not similar","08N",{"$f":"VLOOKUP($BP140,[1]prevlence!$B$3:$F$213,3,0)","v":7.3390000000000004},{"$f":"VLOOKUP($BP140,[1]prevlence!$B$3:$F$213,5,0)","v":3.484},null,null,null,{"$f":"VLOOKUP(BP140,[2]CCG_AgeSpecificPrevalence!$E$14:$H$225,4,0)/BQ140","v":39507.289821501567},{"$f":"VLOOKUP(BP140,[3]CHD!$E$16:$L$226,8,0)/BQ140","v":39372.257800790299}]
["05J","E38000139","NHS Redditch and Bromsgrove","West Midlands",{"$f":"VLOOKUP(A141,Lookup!$BJ$3:$BK$226,2,0)","v":"No"},8,"Midlands and East","5PL",{"$f":"VLOOKUP(A141,Lookup!$BL$3:$BM$226,2,0)","v":"No"},null,null,null,null,null,null,null,null,null,null,null,null,null,null,null,null,null,null,null,null,null,null,null,null,null,null,null,null,null,null,null,null,null,null,null,null,null,null,null,null,null,null,null,null,null,null,null,null,null,null,null,null,{"$f":"HLOOKUP(GraphData!$E$3,'Closest CCG (codes)'!$A$1:$HD$212,'Closest CCG (codes)'!HE140+2,0)","v":"01G"},"No",{"$f":"HLOOKUP(SummaryData!$D$11,'Closest CCG (codes)'!$A$1:$HD$212,'Closest CCG (codes)'!HE140+2,0)","v":"08E"},"No",null,"Not similar","05J",{"$f":"VLOOKUP($BP141,[1]prevlence!$B$3:$F$213,3,0)","v":9.7170000000000005},{"$f":"VLOOKUP($BP141,[1]prevlence!$B$3:$F$213,5,0)","v":4.665},null,null,null,{"$f":"VLOOKUP(BP141,[2]CCG_AgeSpecificPrevalence!$E$14:$H$225,4,0)/BQ141","v":17697.231655860862},{"$f":"VLOOKUP(BP141,[3]CHD!$E$16:$L$226,8,0)/BQ141","v":17729.443243799527}]
["08P","E38000140","NHS Richmond","London",{"$f":"VLOOKUP(A142,Lookup!$BJ$3:$BK$226,2,0)","v":"No"},10,"London","5M6",{"$f":"VLOOKUP(A142,Lookup!$BL$3:$BM$226,2,0)","v":"No"},null,null,null,null,null,null,null,null,null,null,null,null,null,null,null,null,null,null,null,null,null,null,null,null,null,null,null,null,null,null,null,null,null,null,null,null,null,null,null,null,null,null,null,null,null,null,null,null,null,null,null,null,{"$f":"HLOOKUP(GraphData!$E$3,'Closest CCG (codes)'!$A$1:$HD$212,'Closest CCG (codes)'!HE141+2,0)","v":"06K"},"No",{"$f":"HLOOKUP(SummaryData!$D$11,'Closest CCG (codes)'!$A$1:$HD$212,'Closest CCG (codes)'!HE141+2,0)","v":"05G"},"No",null,"Not similar","08P",{"$f":"VLOOKUP($BP142,[1]prevlence!$B$3:$F$213,3,0)","v":8.3889999999999993},{"$f":"VLOOKUP($BP142,[1]prevlence!$B$3:$F$213,5,0)","v":3.4329999999999998},null,null,null,{"$f":"VLOOKUP(BP142,[2]CCG_AgeSpecificPrevalence!$E$14:$H$225,4,0)/BQ142","v":24123.733460483971},{"$f":"VLOOKUP(BP142,[3]CHD!$E$16:$L$226,8,0)/BQ142","v":24615.925616879249}]
["03L","E38000141","NHS Rotherham","Yorkshire and Northern",{"$f":"VLOOKUP(A143,Lookup!$BJ$3:$BK$226,2,0)","v":"No"},3,"North","5H8",{"$f":"VLOOKUP(A143,Lookup!$BL$3:$BM$226,2,0)","v":"No"},null,null,null,null,null,null,null,null,null,null,null,null,null,null,null,null,null,null,null,null,null,null,null,null,null,null,null,null,null,null,null,null,null,null,null,null,null,null,null,null,null,null,null,null,null,null,null,null,null,null,null,null,{"$f":"HLOOKUP(GraphData!$E$3,'Closest CCG (codes)'!$A$1:$HD$212,'Closest CCG (codes)'!HE142+2,0)","v":"08F"},"No",{"$f":"HLOOKUP(SummaryData!$D$11,'Closest CCG (codes)'!$A$1:$HD$212,'Closest CCG (codes)'!HE142+2,0)","v":"11M"},"No",null,"Not similar","03L",{"$f":"VLOOKUP($BP143,[1]prevlence!$B$3:$F$213,3,0)","v":10.161},{"$f":"VLOOKUP($BP143,[1]prevlence!$B$3:$F$213,5,0)","v":5.5019999999999998},null,null,null,{"$f":"VLOOKUP(BP143,[2]CCG_AgeSpecificPrevalence!$E$14:$H$225,4,0)/BQ143","v":25257.454974904045},{"$f":"VLOOKUP(BP143,[3]CHD!$E$16:$L$226,8,0)/BQ143","v":25372.404290916249}]
["04N","E38000142","NHS Rushcliffe","East Midlands",{"$f":"VLOOKUP(A144,Lookup!$BJ$3:$BK$226,2,0)","v":"No"},10,"Midlands and East","5N8",{"$f":"VLOOKUP(A144,Lookup!$BL$3:$BM$226,2,0)","v":"No"},null,null,null,null,null,null,null,null,null,null,null,null,null,null,null,null,null,null,null,null,null,null,null,null,null,null,null,null,null,null,null,null,null,null,null,null,null,null,null,null,null,null,null,null,null,null,null,null,null,null,null,null,{"$f":"HLOOKUP(GraphData!$E$3,'Closest CCG (codes)'!$A$1:$HD$212,'Closest CCG (codes)'!HE143+2,0)","v":"03J"},"No",{"$f":"HLOOKUP(SummaryData!$D$11,'Closest CCG (codes)'!$A$1:$HD$212,'Closest CCG (codes)'!HE143+2,0)","v":"10Q"},"No",null,"Not similar","04N",{"$f":"VLOOKUP($BP144,[1]prevlence!$B$3:$F$213,3,0)","v":9.8130000000000006},{"$f":"VLOOKUP($BP144,[1]prevlence!$B$3:$F$213,5,0)","v":4.0529999999999999},null,null,null,{"$f":"VLOOKUP(BP144,[2]CCG_AgeSpecificPrevalence!$E$14:$H$225,4,0)/BQ144","v":12413.023540201772},{"$f":"VLOOKUP(BP144,[3]CHD!$E$16:$L$226,8,0)/BQ144","v":12515.948231937226}]
["01G","E38000143","NHS Salford","Greater Manchester Lancashire and South Cumbria",{"$f":"VLOOKUP(A145,Lookup!$BJ$3:$BK$226,2,0)","v":"No"},1,"North","5F5",{"$f":"VLOOKUP(A145,Lookup!$BL$3:$BM$226,2,0)","v":"No"},null,null,null,null,null,null,null,null,null,null,null,null,null,null,null,null,null,null,null,null,null,null,null,null,null,null,null,null,null,null,null,null,null,null,null,null,null,null,null,null,null,null,null,null,null,null,null,null,null,null,null,null,{"$f":"HLOOKUP(GraphData!$E$3,'Closest CCG (codes)'!$A$1:$HD$212,'Closest CCG (codes)'!HE144+2,0)","v":"10G"},"No",{"$f":"HLOOKUP(SummaryData!$D$11,'Closest CCG (codes)'!$A$1:$HD$212,'Closest CCG (codes)'!HE144+2,0)","v":"04Q"},"No",null,"Not similar","01G",{"$f":"VLOOKUP($BP145,[1]prevlence!$B$3:$F$213,3,0)","v":9.2170000000000005},{"$f":"VLOOKUP($BP145,[1]prevlence!$B$3:$F$213,5,0)","v":4.9139999999999997},null,null,null,{"$f":"VLOOKUP(BP145,[2]CCG_AgeSpecificPrevalence!$E$14:$H$225,4,0)/BQ145","v":27141.260713898231},{"$f":"VLOOKUP(BP145,[3]CHD!$E$16:$L$226,8,0)/BQ145","v":27534.230226754909}]
["05L","E38000144","NHS Sandwell and West Birmingham","West Midlands",{"$f":"VLOOKUP(A146,Lookup!$BJ$3:$BK$226,2,0)","v":"No"},1,"Midlands and East","5PF",{"$f":"VLOOKUP(A146,Lookup!$BL$3:$BM$226,2,0)","v":"No"},null,null,null,null,null,null,null,null,null,null,null,null,null,null,null,null,null,null,null,null,null,null,null,null,null,null,null,null,null,null,null,null,null,null,null,null,null,null,null,null,null,null,null,null,null,null,null,null,null,null,null,null,{"$f":"HLOOKUP(GraphData!$E$3,'Closest CCG (codes)'!$A$1:$HD$212,'Closest CCG (codes)'!HE145+2,0)","v":"06W"},"No",{"$f":"HLOOKUP(SummaryData!$D$11,'Closest CCG (codes)'!$A$1:$HD$212,'Closest CCG (codes)'!HE145+2,0)","v":"10K"},"No",null,"Not similar","05L",{"$f":"VLOOKUP($BP146,[1]prevlence!$B$3:$F$213,3,0)","v":8.7799999999999994},{"$f":"VLOOKUP($BP146,[1]prevlence!$B$3:$F$213,5,0)","v":5.0190000000000001},null,null,null,{"$f":"VLOOKUP(BP146,[2]CCG_AgeSpecificPrevalence!$E$14:$H$225,4,0)/BQ146","v":61501.366742596816},{"$f":"VLOOKUP(BP146,[3]CHD!$E$16:$L$226,8,0)/BQ146","v":62099.5444191344}]
["03M","E38000145","NHS Scarborough and Ryedale","Yorkshire and Northern",{"$f":"VLOOKUP(A147,Lookup!$BJ$3:$BK$226,2,0)","v":"No"},4,"North","5NV",{"$f":"VLOOKUP(A147,Lookup!$BL$3:$BM$226,2,0)","v":"No"},null,null,null,null,null,null,null,null,null,null,null,null,null,null,null,null,null,null,null,null,null,null,null,null,null,null,null,null,null,null,null,null,null,null,null,null,null,null,null,null,null,null,null,null,null,null,null,null,null,null,null,null,{"$f":"HLOOKUP(GraphData!$E$3,'Closest CCG (codes)'!$A$1:$HD$212,'Closest CCG (codes)'!HE146+2,0)","v":"11D"},"No",{"$f":"HLOOKUP(SummaryData!$D$11,'Closest CCG (codes)'!$A$1:$HD$212,'Closest CCG (codes)'!HE146+2,0)","v":"10X"},"No",null,"Not similar","03M",{"$f":"VLOOKUP($BP147,[1]prevlence!$B$3:$F$213,3,0)","v":11.516},{"$f":"VLOOKUP($BP147,[1]prevlence!$B$3:$F$213,5,0)","v":6.0510000000000002},null,null,null,{"$f":"VLOOKUP(BP147,[2]CCG_AgeSpecificPrevalence!$E$14:$H$225,4,0)/BQ147","v":10261.896491837444},{"$f":"VLOOKUP(BP147,[3]CHD!$E$16:$L$226,8,0)/BQ147","v":10248.263285863148}]
["03N","E38000146","NHS Sheffield","Yorkshire and Northern",{"$f":"VLOOKUP(A148,Lookup!$BJ$3:$BK$226,2,0)","v":"No"},3,"North","5N4",{"$f":"VLOOKUP(A148,Lookup!$BL$3:$BM$226,2,0)","v":"No"},null,null,null,null,null,null,null,null,null,null,null,null,null,null,null,null,null,null,null,null,null,null,null,null,null,null,null,null,null,null,null,null,null,null,null,null,null,null,null,null,null,null,null,null,null,null,null,null,null,null,null,null,{"$f":"HLOOKUP(GraphData!$E$3,'Closest CCG (codes)'!$A$1:$HD$212,'Closest CCG (codes)'!HE147+2,0)","v":"01K"},"No",{"$f":"HLOOKUP(SummaryData!$D$11,'Closest CCG (codes)'!$A$1:$HD$212,'Closest CCG (codes)'!HE147+2,0)","v":"99K"},"No",null,"Not similar","03N",{"$f":"VLOOKUP($BP148,[1]prevlence!$B$3:$F$213,3,0)","v":9.3569999999999993},{"$f":"VLOOKUP($BP148,[1]prevlence!$B$3:$F$213,5,0)","v":4.7110000000000003},null,null,null,{"$f":"VLOOKUP(BP148,[2]CCG_AgeSpecificPrevalence!$E$14:$H$225,4,0)/BQ148","v":61803.355776424069},{"$f":"VLOOKUP(BP148,[3]CHD!$E$16:$L$226,8,0)/BQ148","v":62401.410708560441}]
["05N","E38000147","NHS Shropshire","West Midlands",{"$f":"VLOOKUP(A149,Lookup!$BJ$3:$BK$226,2,0)","v":"No"},7,"Midlands and East","5M2",{"$f":"VLOOKUP(A149,Lookup!$BL$3:$BM$226,2,0)","v":"No"},null,null,null,null,null,null,null,null,null,null,null,null,null,null,null,null,null,null,null,null,null,null,null,null,null,null,null,null,null,null,null,null,null,null,null,null,null,null,null,null,null,null,null,null,null,null,null,null,null,null,null,null,{"$f":"HLOOKUP(GraphData!$E$3,'Closest CCG (codes)'!$A$1:$HD$212,'Closest CCG (codes)'!HE148+2,0)","v":"00Q"},"No",{"$f":"HLOOKUP(SummaryData!$D$11,'Closest CCG (codes)'!$A$1:$HD$212,'Closest CCG (codes)'!HE148+2,0)","v":"10C"},"No",null,"Not similar","05N",{"$f":"VLOOKUP($BP149,[1]prevlence!$B$3:$F$213,3,0)","v":11.121},{"$f":"VLOOKUP($BP149,[1]prevlence!$B$3:$F$213,5,0)","v":5.492},null,null,null,{"$f":"VLOOKUP(BP149,[2]CCG_AgeSpecificPrevalence!$E$14:$H$225,4,0)/BQ149","v":26876.000359679885},{"$f":"VLOOKUP(BP149,[3]CHD!$E$16:$L$226,8,0)/BQ149","v":26993.615682042982}]
["10T","E38000148","NHS Slough","Thames",{"$f":"VLOOKUP(A150,Lookup!$BJ$3:$BK$226,2,0)","v":"No"},4,"South","5QG",{"$f":"VLOOKUP(A150,Lookup!$BL$3:$BM$226,2,0)","v":"No"},null,null,null,null,null,null,null,null,null,null,null,null,null,null,null,null,null,null,null,null,null,null,null,null,null,null,null,null,null,null,null,null,null,null,null,null,null,null,null,null,null,null,null,null,null,null,null,null,null,null,null,null,{"$f":"HLOOKUP(GraphData!$E$3,'Closest CCG (codes)'!$A$1:$HD$212,'Closest CCG (codes)'!HE149+2,0)","v":"06V"},"No",{"$f":"HLOOKUP(SummaryData!$D$11,'Closest CCG (codes)'!$A$1:$HD$212,'Closest CCG (codes)'!HE149+2,0)","v":"06W"},"No",null,"Not similar","10T",{"$f":"VLOOKUP($BP150,[1]prevlence!$B$3:$F$213,3,0)","v":6.72},{"$f":"VLOOKUP($BP150,[1]prevlence!$B$3:$F$213,5,0)","v":3.3109999999999999},null,null,null,{"$f":"VLOOKUP(BP150,[2]CCG_AgeSpecificPrevalence!$E$14:$H$225,4,0)/BQ150","v":21828.125},{"$f":"VLOOKUP(BP150,[3]CHD!$E$16:$L$226,8,0)/BQ150","v":21850.59523809524}]
["05P","E38000149","NHS Solihull","West Midlands",{"$f":"VLOOKUP(A151,Lookup!$BJ$3:$BK$226,2,0)","v":"No"},8,"Midlands and East","5QW",{"$f":"VLOOKUP(A151,Lookup!$BL$3:$BM$226,2,0)","v":"No"},null,null,null,null,null,null,null,null,null,null,null,null,null,null,null,null,null,null,null,null,null,null,null,null,null,null,null,null,null,null,null,null,null,null,null,null,null,null,null,null,null,null,null,null,null,null,null,null,null,null,null,null,{"$f":"HLOOKUP(GraphData!$E$3,'Closest CCG (codes)'!$A$1:$HD$212,'Closest CCG (codes)'!HE150+2,0)","v":"05C"},"No",{"$f":"HLOOKUP(SummaryData!$D$11,'Closest CCG (codes)'!$A$1:$HD$212,'Closest CCG (codes)'!HE150+2,0)","v":"07X"},"No",null,"Not similar","05P",{"$f":"VLOOKUP($BP151,[1]prevlence!$B$3:$F$213,3,0)","v":10.191000000000001},{"$f":"VLOOKUP($BP151,[1]prevlence!$B$3:$F$213,5,0)","v":4.8959999999999999},null,null,null,{"$f":"VLOOKUP(BP151,[2]CCG_AgeSpecificPrevalence!$E$14:$H$225,4,0)/BQ151","v":23303.40496516534},{"$f":"VLOOKUP(BP151,[3]CHD!$E$16:$L$226,8,0)/BQ151","v":23481.503287214207}]
["11X","E38000150","NHS Somerset","South West",{"$f":"VLOOKUP(A152,Lookup!$BJ$3:$BK$226,2,0)","v":"No"},7,"South","5QL",{"$f":"VLOOKUP(A152,Lookup!$BL$3:$BM$226,2,0)","v":"No"},null,null,null,null,null,null,null,null,null,null,null,null,null,null,null,null,null,null,null,null,null,null,null,null,null,null,null,null,null,null,null,null,null,null,null,null,null,null,null,null,null,null,null,null,null,null,null,null,null,null,null,null,{"$f":"HLOOKUP(GraphData!$E$3,'Closest CCG (codes)'!$A$1:$HD$212,'Closest CCG (codes)'!HE151+2,0)","v":"06N"},"No",{"$f":"HLOOKUP(SummaryData!$D$11,'Closest CCG (codes)'!$A$1:$HD$212,'Closest CCG (codes)'!HE151+2,0)","v":"10W"},"No",null,"Not similar","11X",{"$f":"VLOOKUP($BP152,[1]prevlence!$B$3:$F$213,3,0)","v":10.959},{"$f":"VLOOKUP($BP152,[1]prevlence!$B$3:$F$213,5,0)","v":5.3730000000000002},null,null,null,{"$f":"VLOOKUP(BP152,[2]CCG_AgeSpecificPrevalence!$E$14:$H$225,4,0)/BQ152","v":50034.400948991701},{"$f":"VLOOKUP(BP152,[3]CHD!$E$16:$L$226,8,0)/BQ152","v":50338.169541016519}]
["01R","E38000151","NHS South Cheshire","Cheshire and Merseyside",{"$f":"VLOOKUP(A153,Lookup!$BJ$3:$BK$226,2,0)","v":"No"},8,"North","5NP",{"$f":"VLOOKUP(A153,Lookup!$BL$3:$BM$226,2,0)","v":"No"},null,null,null,null,null,null,null,null,null,null,null,null,null,null,null,null,null,null,null,null,null,null,null,null,null,null,null,null,null,null,null,null,null,null,null,null,null,null,null,null,null,null,null,null,null,null,null,null,null,null,null,null,{"$f":"HLOOKUP(GraphData!$E$3,'Closest CCG (codes)'!$A$1:$HD$212,'Closest CCG (codes)'!HE152+2,0)","v":"10C"},"No",{"$f":"HLOOKUP(SummaryData!$D$11,'Closest CCG (codes)'!$A$1:$HD$212,'Closest CCG (codes)'!HE152+2,0)","v":"08P"},"No",null,"Not similar","01R",{"$f":"VLOOKUP($BP153,[1]prevlence!$B$3:$F$213,3,0)","v":9.984},{"$f":"VLOOKUP($BP153,[1]prevlence!$B$3:$F$213,5,0)","v":4.6429999999999998},null,null,null,{"$f":"VLOOKUP(BP153,[2]CCG_AgeSpecificPrevalence!$E$14:$H$225,4,0)/BQ153","v":17581.630608974359},{"$f":"VLOOKUP(BP153,[3]CHD!$E$16:$L$226,8,0)/BQ153","v":17705.629006410258}]
["99Q","E38000152","NHS South Devon and Torbay","South West",{"$f":"VLOOKUP(A154,Lookup!$BJ$3:$BK$226,2,0)","v":"No"},5,"South","TAL",{"$f":"VLOOKUP(A154,Lookup!$BL$3:$BM$226,2,0)","v":"No"},null,null,null,null,null,null,null,null,null,null,null,null,null,null,null,null,null,null,null,null,null,null,null,null,null,null,null,null,null,null,null,null,null,null,null,null,null,null,null,null,null,null,null,null,null,null,null,null,null,null,null,null,{"$f":"HLOOKUP(GraphData!$E$3,'Closest CCG (codes)'!$A$1:$HD$212,'Closest CCG (codes)'!HE153+2,0)","v":"03F"},"No",{"$f":"HLOOKUP(SummaryData!$D$11,'Closest CCG (codes)'!$A$1:$HD$212,'Closest CCG (codes)'!HE153+2,0)","v":"01C"},"No",null,"Not similar","99Q",{"$f":"VLOOKUP($BP154,[1]prevlence!$B$3:$F$213,3,0)","v":11.907},{"$f":"VLOOKUP($BP154,[1]prevlence!$B$3:$F$213,5,0)","v":6.27},null,null,null,{"$f":"VLOOKUP(BP154,[2]CCG_AgeSpecificPrevalence!$E$14:$H$225,4,0)/BQ154","v":24036.281179138321},{"$f":"VLOOKUP(BP154,[3]CHD!$E$16:$L$226,8,0)/BQ154","v":24205.257411606617}]
["05Q","E38000153","NHS South East Staffs and Seisdon Peninsular","West Midlands",{"$f":"VLOOKUP(A155,Lookup!$BJ$3:$BK$226,2,0)","v":"No"},8,"Midlands and East","5PK",{"$f":"VLOOKUP(A155,Lookup!$BL$3:$BM$226,2,0)","v":"No"},null,null,null,null,null,null,null,null,null,null,null,null,null,null,null,null,null,null,null,null,null,null,null,null,null,null,null,null,null,null,null,null,null,null,null,null,null,null,null,null,null,null,null,null,null,null,null,null,null,null,null,null,{"$f":"HLOOKUP(GraphData!$E$3,'Closest CCG (codes)'!$A$1:$HD$212,'Closest CCG (codes)'!HE154+2,0)","v":"08T"},"No",{"$f":"HLOOKUP(SummaryData!$D$11,'Closest CCG (codes)'!$A$1:$HD$212,'Closest CCG (codes)'!HE154+2,0)","v":"11D"},"No",null,"Not similar","05Q",{"$f":"VLOOKUP($BP155,[1]prevlence!$B$3:$F$213,3,0)","v":9.7989999999999995},{"$f":"VLOOKUP($BP155,[1]prevlence!$B$3:$F$213,5,0)","v":4.5439999999999996},null,null,null,{"$f":"VLOOKUP(BP155,[2]CCG_AgeSpecificPrevalence!$E$14:$H$225,4,0)/BQ155","v":21637.207878354937},{"$f":"VLOOKUP(BP155,[3]CHD!$E$16:$L$226,8,0)/BQ155","v":21697.622206347587}]
["10V","E38000154","NHS South Eastern Hampshire","Wessex",{"$f":"VLOOKUP(A156,Lookup!$BJ$3:$BK$226,2,0)","v":"No"},7,"South","5QC",{"$f":"VLOOKUP(A156,Lookup!$BL$3:$BM$226,2,0)","v":"No"},null,null,null,null,null,null,null,null,null,null,null,null,null,null,null,null,null,null,null,null,null,null,null,null,null,null,null,null,null,null,null,null,null,null,null,null,null,null,null,null,null,null,null,null,null,null,null,null,null,null,null,null,{"$f":"HLOOKUP(GraphData!$E$3,'Closest CCG (codes)'!$A$1:$HD$212,'Closest CCG (codes)'!HE155+2,0)","v":"08G"},"No",{"$f":"HLOOKUP(SummaryData!$D$11,'Closest CCG (codes)'!$A$1:$HD$212,'Closest CCG (codes)'!HE155+2,0)","v":"09D"},"No",null,"Not similar","10V",{"$f":"VLOOKUP($BP156,[1]prevlence!$B$3:$F$213,3,0)","v":10.922000000000001},{"$f":"VLOOKUP($BP156,[1]prevlence!$B$3:$F$213,5,0)","v":5.2789999999999999},null,null,null,{"$f":"VLOOKUP(BP156,[2]CCG_AgeSpecificPrevalence!$E$14:$H$225,4,0)/BQ156","v":19133.583592748579},{"$f":"VLOOKUP(BP156,[3]CHD!$E$16:$L$226,8,0)/BQ156","v":19185.130928401391}]
["12A","E38000155","NHS South Gloucestershire","South West",{"$f":"VLOOKUP(A157,Lookup!$BJ$3:$BK$226,2,0)","v":"No"},10,"South","5A3",{"$f":"VLOOKUP(A157,Lookup!$BL$3:$BM$226,2,0)","v":"No"},null,null,null,null,null,null,null,null,null,null,null,null,null,null,null,null,null,null,null,null,null,null,null,null,null,null,null,null,null,null,null,null,null,null,null,null,null,null,null,null,null,null,null,null,null,null,null,null,null,null,null,null,{"$f":"HLOOKUP(GraphData!$E$3,'Closest CCG (codes)'!$A$1:$HD$212,'Closest CCG (codes)'!HE156+2,0)","v":"10R"},"No",{"$f":"HLOOKUP(SummaryData!$D$11,'Closest CCG (codes)'!$A$1:$HD$212,'Closest CCG (codes)'!HE156+2,0)","v":"03T"},"No",null,"Not similar","12A",{"$f":"VLOOKUP($BP157,[1]prevlence!$B$3:$F$213,3,0)","v":9.2940000000000005},{"$f":"VLOOKUP($BP157,[1]prevlence!$B$3:$F$213,5,0)","v":3.9809999999999999},null,null,null,{"$f":"VLOOKUP(BP157,[2]CCG_AgeSpecificPrevalence!$E$14:$H$225,4,0)/BQ157","v":27866.472993329029},{"$f":"VLOOKUP(BP157,[3]CHD!$E$16:$L$226,8,0)/BQ157","v":28052.829782655474}]
["10A","E38000156","NHS South Kent Coast","South East coast",{"$f":"VLOOKUP(A158,Lookup!$BJ$3:$BK$226,2,0)","v":"Closest 10 CCGs"},5,"South","5QA",{"$f":"VLOOKUP(A158,Lookup!$BL$3:$BM$226,2,0)","v":"No"},null,null,null,null,null,null,null,null,null,null,null,null,null,null,null,null,null,null,null,null,null,null,null,null,null,null,null,null,null,null,null,null,null,null,null,null,null,null,null,null,null,null,null,null,null,null,null,null,null,null,null,null,{"$f":"HLOOKUP(GraphData!$E$3,'Closest CCG (codes)'!$A$1:$HD$212,'Closest CCG (codes)'!HE157+2,0)","v":"10Q"},"No",{"$f":"HLOOKUP(SummaryData!$D$11,'Closest CCG (codes)'!$A$1:$HD$212,'Closest CCG (codes)'!HE157+2,0)","v":"00R"},"No",null,"Not similar","10A",{"$f":"VLOOKUP($BP158,[1]prevlence!$B$3:$F$213,3,0)","v":11.045999999999999},{"$f":"VLOOKUP($BP158,[1]prevlence!$B$3:$F$213,5,0)","v":5.8540000000000001},null,null,null,{"$f":"VLOOKUP(BP158,[2]CCG_AgeSpecificPrevalence!$E$14:$H$225,4,0)/BQ158","v":18204.961071881226},{"$f":"VLOOKUP(BP158,[3]CHD!$E$16:$L$226,8,0)/BQ158","v":18273.764258555133}]
["99D","E38000157","NHS South Lincolnshire","East Midlands",{"$f":"VLOOKUP(A159,Lookup!$BJ$3:$BK$226,2,0)","v":"No"},9,"Midlands and East","5N9",{"$f":"VLOOKUP(A159,Lookup!$BL$3:$BM$226,2,0)","v":"No"},null,null,null,null,null,null,null,null,null,null,null,null,null,null,null,null,null,null,null,null,null,null,null,null,null,null,null,null,null,null,null,null,null,null,null,null,null,null,null,null,null,null,null,null,null,null,null,null,null,null,null,null,{"$f":"HLOOKUP(GraphData!$E$3,'Closest CCG (codes)'!$A$1:$HD$212,'Closest CCG (codes)'!HE158+2,0)","v":"03N"},"No",{"$f":"HLOOKUP(SummaryData!$D$11,'Closest CCG (codes)'!$A$1:$HD$212,'Closest CCG (codes)'!HE158+2,0)","v":"09P"},"No",null,"Not similar","99D",{"$f":"VLOOKUP($BP159,[1]prevlence!$B$3:$F$213,3,0)","v":10.792},{"$f":"VLOOKUP($BP159,[1]prevlence!$B$3:$F$213,5,0)","v":5.1219999999999999},null,null,null,{"$f":"VLOOKUP(BP159,[2]CCG_AgeSpecificPrevalence!$E$14:$H$225,4,0)/BQ159","v":14588.676797627873},{"$f":"VLOOKUP(BP159,[3]CHD!$E$16:$L$226,8,0)/BQ159","v":14803.002223869533}]
["01N","E38000158","NHS South Manchester","Greater Manchester Lancashire and South Cumbria",{"$f":"VLOOKUP(A160,Lookup!$BJ$3:$BK$226,2,0)","v":"No"},1,"North","5NT",{"$f":"VLOOKUP(A160,Lookup!$BL$3:$BM$226,2,0)","v":"No"},null,null,null,null,null,null,null,null,null,null,null,null,null,null,null,null,null,null,null,null,null,null,null,null,null,null,null,null,null,null,null,null,null,null,null,null,null,null,null,null,null,null,null,null,null,null,null,null,null,null,null,null,{"$f":"HLOOKUP(GraphData!$E$3,'Closest CCG (codes)'!$A$1:$HD$212,'Closest CCG (codes)'!HE159+2,0)","v":"06A"},"No",{"$f":"HLOOKUP(SummaryData!$D$11,'Closest CCG (codes)'!$A$1:$HD$212,'Closest CCG (codes)'!HE159+2,0)","v":"06H"},"No",null,"Not similar","01N",{"$f":"VLOOKUP($BP160,[1]prevlence!$B$3:$F$213,3,0)","v":8.3800000000000008},{"$f":"VLOOKUP($BP160,[1]prevlence!$B$3:$F$213,5,0)","v":4.3360000000000003},null,null,null,{"$f":"VLOOKUP(BP160,[2]CCG_AgeSpecificPrevalence!$E$14:$H$225,4,0)/BQ160","v":20015.990453460618},{"$f":"VLOOKUP(BP160,[3]CHD!$E$16:$L$226,8,0)/BQ160","v":20190.453460620523}]
["06Y","E38000159","NHS South Norfolk","East of England",{"$f":"VLOOKUP(A161,Lookup!$BJ$3:$BK$226,2,0)","v":"No"},9,"Midlands and East","5PQ",{"$f":"VLOOKUP(A161,Lookup!$BL$3:$BM$226,2,0)","v":"No"},null,null,null,null,null,null,null,null,null,null,null,null,null,null,null,null,null,null,null,null,null,null,null,null,null,null,null,null,null,null,null,null,null,null,null,null,null,null,null,null,null,null,null,null,null,null,null,null,null,null,null,null,{"$f":"HLOOKUP(GraphData!$E$3,'Closest CCG (codes)'!$A$1:$HD$212,'Closest CCG (codes)'!HE160+2,0)","v":"07N"},"No",{"$f":"HLOOKUP(SummaryData!$D$11,'Closest CCG (codes)'!$A$1:$HD$212,'Closest CCG (codes)'!HE160+2,0)","v":"04M"},"No",null,"Not similar","06Y",{"$f":"VLOOKUP($BP161,[1]prevlence!$B$3:$F$213,3,0)","v":10.8},{"$f":"VLOOKUP($BP161,[1]prevlence!$B$3:$F$213,5,0)","v":4.9690000000000003},null,null,null,{"$f":"VLOOKUP(BP161,[2]CCG_AgeSpecificPrevalence!$E$14:$H$225,4,0)/BQ161","v":20647.222222222223},{"$f":"VLOOKUP(BP161,[3]CHD!$E$16:$L$226,8,0)/BQ161","v":21127.129629629628}]
["10W","E38000160","NHS South Reading","Thames",{"$f":"VLOOKUP(A162,Lookup!$BJ$3:$BK$226,2,0)","v":"No"},5,"South","5QF",{"$f":"VLOOKUP(A162,Lookup!$BL$3:$BM$226,2,0)","v":"No"},null,null,null,null,null,null,null,null,null,null,null,null,null,null,null,null,null,null,null,null,null,null,null,null,null,null,null,null,null,null,null,null,null,null,null,null,null,null,null,null,null,null,null,null,null,null,null,null,null,null,null,null,{"$f":"HLOOKUP(GraphData!$E$3,'Closest CCG (codes)'!$A$1:$HD$212,'Closest CCG (codes)'!HE161+2,0)","v":"07G"},"No",{"$f":"HLOOKUP(SummaryData!$D$11,'Closest CCG (codes)'!$A$1:$HD$212,'Closest CCG (codes)'!HE161+2,0)","v":"11N"},"No",null,"Not similar","10W",{"$f":"VLOOKUP($BP162,[1]prevlence!$B$3:$F$213,3,0)","v":6.8419999999999996},{"$f":"VLOOKUP($BP162,[1]prevlence!$B$3:$F$213,5,0)","v":2.9990000000000001},null,null,null,{"$f":"VLOOKUP(BP162,[2]CCG_AgeSpecificPrevalence!$E$14:$H$225,4,0)/BQ162","v":19374.45191464484},{"$f":"VLOOKUP(BP162,[3]CHD!$E$16:$L$226,8,0)/BQ162","v":19518.269511838644}]
["01T","E38000161","NHS South Sefton","Cheshire and Merseyside",{"$f":"VLOOKUP(A163,Lookup!$BJ$3:$BK$226,2,0)","v":"No"},2,"North","5NJ",{"$f":"VLOOKUP(A163,Lookup!$BL$3:$BM$226,2,0)","v":"No"},null,null,null,null,null,null,null,null,null,null,null,null,null,null,null,null,null,null,null,null,null,null,null,null,null,null,null,null,null,null,null,null,null,null,null,null,null,null,null,null,null,null,null,null,null,null,null,null,null,null,null,null,{"$f":"HLOOKUP(GraphData!$E$3,'Closest CCG (codes)'!$A$1:$HD$212,'Closest CCG (codes)'!HE162+2,0)","v":"01V"},"No",{"$f":"HLOOKUP(SummaryData!$D$11,'Closest CCG (codes)'!$A$1:$HD$212,'Closest CCG (codes)'!HE162+2,0)","v":"99Q"},"No",null,"Not similar","01T",{"$f":"VLOOKUP($BP163,[1]prevlence!$B$3:$F$213,3,0)","v":10.74},{"$f":"VLOOKUP($BP163,[1]prevlence!$B$3:$F$213,5,0)","v":5.8049999999999997},null,null,null,{"$f":"VLOOKUP(BP163,[2]CCG_AgeSpecificPrevalence!$E$14:$H$225,4,0)/BQ163","v":14439.199255121042},{"$f":"VLOOKUP(BP163,[3]CHD!$E$16:$L$226,8,0)/BQ163","v":14424.674115456239}]
["00M","E38000162","NHS South Tees","Northern England",{"$f":"VLOOKUP(A164,Lookup!$BJ$3:$BK$226,2,0)","v":"No"},2,"North","5KM",{"$f":"VLOOKUP(A164,Lookup!$BL$3:$BM$226,2,0)","v":"No"},null,null,null,null,null,null,null,null,null,null,null,null,null,null,null,null,null,null,null,null,null,null,null,null,null,null,null,null,null,null,null,null,null,null,null,null,null,null,null,null,null,null,null,null,null,null,null,null,null,null,null,null,{"$f":"HLOOKUP(GraphData!$E$3,'Closest CCG (codes)'!$A$1:$HD$212,'Closest CCG (codes)'!HE163+2,0)","v":"08J"},"No",{"$f":"HLOOKUP(SummaryData!$D$11,'Closest CCG (codes)'!$A$1:$HD$212,'Closest CCG (codes)'!HE163+2,0)","v":"03E"},"No",null,"Not similar","00M",{"$f":"VLOOKUP($BP164,[1]prevlence!$B$3:$F$213,3,0)","v":10.269},{"$f":"VLOOKUP($BP164,[1]prevlence!$B$3:$F$213,5,0)","v":5.718},null,null,null,{"$f":"VLOOKUP(BP164,[2]CCG_AgeSpecificPrevalence!$E$14:$H$225,4,0)/BQ164","v":28326.808842146263},{"$f":"VLOOKUP(BP164,[3]CHD!$E$16:$L$226,8,0)/BQ164","v":28398.870386600447}]
["00N","E38000163","NHS South Tyneside","Northern England",{"$f":"VLOOKUP(A165,Lookup!$BJ$3:$BK$226,2,0)","v":"No"},3,"North","5KG",{"$f":"VLOOKUP(A165,Lookup!$BL$3:$BM$226,2,0)","v":"No"},null,null,null,null,null,null,null,null,null,null,null,null,null,null,null,null,null,null,null,null,null,null,null,null,null,null,null,null,null,null,null,null,null,null,null,null,null,null,null,null,null,null,null,null,null,null,null,null,null,null,null,null,{"$f":"HLOOKUP(GraphData!$E$3,'Closest CCG (codes)'!$A$1:$HD$212,'Closest CCG (codes)'!HE164+2,0)","v":"04F"},"No",{"$f":"HLOOKUP(SummaryData!$D$11,'Closest CCG (codes)'!$A$1:$HD$212,'Closest CCG (codes)'!HE164+2,0)","v":"08W"},"No",null,"Not similar","00N",{"$f":"VLOOKUP($BP165,[1]prevlence!$B$3:$F$213,3,0)","v":10.273},{"$f":"VLOOKUP($BP165,[1]prevlence!$B$3:$F$213,5,0)","v":5.4020000000000001},null,null,null,{"$f":"VLOOKUP(BP165,[2]CCG_AgeSpecificPrevalence!$E$14:$H$225,4,0)/BQ165","v":15038.450306629027},{"$f":"VLOOKUP(BP165,[3]CHD!$E$16:$L$226,8,0)/BQ165","v":15050.423440085662}]
["05R","E38000164","NHS South Warwickshire","West Midlands",{"$f":"VLOOKUP(A166,Lookup!$BJ$3:$BK$226,2,0)","v":"No"},10,"Midlands and East","5PM",{"$f":"VLOOKUP(A166,Lookup!$BL$3:$BM$226,2,0)","v":"No"},null,null,null,null,null,null,null,null,null,null,null,null,null,null,null,null,null,null,null,null,null,null,null,null,null,null,null,null,null,null,null,null,null,null,null,null,null,null,null,null,null,null,null,null,null,null,null,null,null,null,null,null,{"$f":"HLOOKUP(GraphData!$E$3,'Closest CCG (codes)'!$A$1:$HD$212,'Closest CCG (codes)'!HE165+2,0)","v":"11H"},"No",{"$f":"HLOOKUP(SummaryData!$D$11,'Closest CCG (codes)'!$A$1:$HD$212,'Closest CCG (codes)'!HE165+2,0)","v":"99F"},"No",null,"Not similar","05R",{"$f":"VLOOKUP($BP166,[1]prevlence!$B$3:$F$213,3,0)","v":10.231},{"$f":"VLOOKUP($BP166,[1]prevlence!$B$3:$F$213,5,0)","v":4.4889999999999999},null,null,null,{"$f":"VLOOKUP(BP166,[2]CCG_AgeSpecificPrevalence!$E$14:$H$225,4,0)/BQ166","v":26733.066171439743},{"$f":"VLOOKUP(BP166,[3]CHD!$E$16:$L$226,8,0)/BQ166","v":26867.168409735121}]
["04Q","E38000165","NHS South West Lincolnshire","East Midlands",{"$f":"VLOOKUP(A167,Lookup!$BJ$3:$BK$226,2,0)","v":"Closest 10 CCGs"},8,"Midlands and East","5N9",{"$f":"VLOOKUP(A167,Lookup!$BL$3:$BM$226,2,0)","v":"No"},null,null,null,null,null,null,null,null,null,null,null,null,null,null,null,null,null,null,null,null,null,null,null,null,null,null,null,null,null,null,null,null,null,null,null,null,null,null,null,null,null,null,null,null,null,null,null,null,null,null,null,null,{"$f":"HLOOKUP(GraphData!$E$3,'Closest CCG (codes)'!$A$1:$HD$212,'Closest CCG (codes)'!HE166+2,0)","v":"07M"},"No",{"$f":"HLOOKUP(SummaryData!$D$11,'Closest CCG (codes)'!$A$1:$HD$212,'Closest CCG (codes)'!HE166+2,0)","v":"99D"},"No",null,"Not similar","04Q",{"$f":"VLOOKUP($BP167,[1]prevlence!$B$3:$F$213,3,0)","v":10.593},{"$f":"VLOOKUP($BP167,[1]prevlence!$B$3:$F$213,5,0)","v":4.9509999999999996},null,null,null,{"$f":"VLOOKUP(BP167,[2]CCG_AgeSpecificPrevalence!$E$14:$H$225,4,0)/BQ167","v":12187.482299631833},{"$f":"VLOOKUP(BP167,[3]CHD!$E$16:$L$226,8,0)/BQ167","v":12293.401302747097}]
["05T","E38000166","NHS South Worcestershire","West Midlands",{"$f":"VLOOKUP(A168,Lookup!$BJ$3:$BK$226,2,0)","v":"Closest 10 CCGs"},8,"Midlands and East","5PL",{"$f":"VLOOKUP(A168,Lookup!$BL$3:$BM$226,2,0)","v":"No"},null,null,null,null,null,null,null,null,null,null,null,null,null,null,null,null,null,null,null,null,null,null,null,null,null,null,null,null,null,null,null,null,null,null,null,null,null,null,null,null,null,null,null,null,null,null,null,null,null,null,null,null,{"$f":"HLOOKUP(GraphData!$E$3,'Closest CCG (codes)'!$A$1:$HD$212,'Closest CCG (codes)'!HE167+2,0)","v":"08P"},"No",{"$f":"HLOOKUP(SummaryData!$D$11,'Closest CCG (codes)'!$A$1:$HD$212,'Closest CCG (codes)'!HE167+2,0)","v":"01H"},"No",null,"Not similar","05T",{"$f":"VLOOKUP($BP168,[1]prevlence!$B$3:$F$213,3,0)","v":10.412000000000001},{"$f":"VLOOKUP($BP168,[1]prevlence!$B$3:$F$213,5,0)","v":4.99},null,null,null,{"$f":"VLOOKUP(BP168,[2]CCG_AgeSpecificPrevalence!$E$14:$H$225,4,0)/BQ168","v":28313.100268920472},{"$f":"VLOOKUP(BP168,[3]CHD!$E$16:$L$226,8,0)/BQ168","v":28421.628889742602}]
["10X","E38000167","NHS Southampton","Wessex",{"$f":"VLOOKUP(A169,Lookup!$BJ$3:$BK$226,2,0)","v":"No"},4,"South","5L1",{"$f":"VLOOKUP(A169,Lookup!$BL$3:$BM$226,2,0)","v":"No"},null,null,null,null,null,null,null,null,null,null,null,null,null,null,null,null,null,null,null,null,null,null,null,null,null,null,null,null,null,null,null,null,null,null,null,null,null,null,null,null,null,null,null,null,null,null,null,null,null,null,null,null,{"$f":"HLOOKUP(GraphData!$E$3,'Closest CCG (codes)'!$A$1:$HD$212,'Closest CCG (codes)'!HE168+2,0)","v":"00R"},"No",{"$f":"HLOOKUP(SummaryData!$D$11,'Closest CCG (codes)'!$A$1:$HD$212,'Closest CCG (codes)'!HE168+2,0)","v":"07K"},"No",null,"Not similar","10X",{"$f":"VLOOKUP($BP169,[1]prevlence!$B$3:$F$213,3,0)","v":8.32},{"$f":"VLOOKUP($BP169,[1]prevlence!$B$3:$F$213,5,0)","v":4.0359999999999996},null,null,null,{"$f":"VLOOKUP(BP169,[2]CCG_AgeSpecificPrevalence!$E$14:$H$225,4,0)/BQ169","v":32183.29326923077},{"$f":"VLOOKUP(BP169,[3]CHD!$E$16:$L$226,8,0)/BQ169","v":32445.673076923074}]
["99G","E38000168","NHS Southend","East of England",{"$f":"VLOOKUP(A170,Lookup!$BJ$3:$BK$226,2,0)","v":"No"},4,"Midlands and East","5P1",{"$f":"VLOOKUP(A170,Lookup!$BL$3:$BM$226,2,0)","v":"No"},null,null,null,null,null,null,null,null,null,null,null,null,null,null,null,null,null,null,null,null,null,null,null,null,null,null,null,null,null,null,null,null,null,null,null,null,null,null,null,null,null,null,null,null,null,null,null,null,null,null,null,null,{"$f":"HLOOKUP(GraphData!$E$3,'Closest CCG (codes)'!$A$1:$HD$212,'Closest CCG (codes)'!HE169+2,0)","v":"11J"},"No",{"$f":"HLOOKUP(SummaryData!$D$11,'Closest CCG (codes)'!$A$1:$HD$212,'Closest CCG (codes)'!HE169+2,0)","v":"02Y"},"No",null,"Not similar","99G",{"$f":"VLOOKUP($BP170,[1]prevlence!$B$3:$F$213,3,0)","v":10.055999999999999},{"$f":"VLOOKUP($BP170,[1]prevlence!$B$3:$F$213,5,0)","v":5.0599999999999996},null,null,null,{"$f":"VLOOKUP(BP170,[2]CCG_AgeSpecificPrevalence!$E$14:$H$225,4,0)/BQ170","v":18371.221161495625},{"$f":"VLOOKUP(BP170,[3]CHD!$E$16:$L$226,8,0)/BQ170","v":18356.702466189341}]
["04R","E38000169","NHS Southern Derbyshire","East Midlands",{"$f":"VLOOKUP(A171,Lookup!$BJ$3:$BK$226,2,0)","v":"No"},6,"Midlands and East","5N7",{"$f":"VLOOKUP(A171,Lookup!$BL$3:$BM$226,2,0)","v":"No"},null,null,null,null,null,null,null,null,null,null,null,null,null,null,null,null,null,null,null,null,null,null,null,null,null,null,null,null,null,null,null,null,null,null,null,null,null,null,null,null,null,null,null,null,null,null,null,null,null,null,null,null,{"$f":"HLOOKUP(GraphData!$E$3,'Closest CCG (codes)'!$A$1:$HD$212,'Closest CCG (codes)'!HE170+2,0)","v":"01J"},"No",{"$f":"HLOOKUP(SummaryData!$D$11,'Closest CCG (codes)'!$A$1:$HD$212,'Closest CCG (codes)'!HE170+2,0)","v":"06Y"},"No",null,"Not similar","04R",{"$f":"VLOOKUP($BP171,[1]prevlence!$B$3:$F$213,3,0)","v":9.4770000000000003},{"$f":"VLOOKUP($BP171,[1]prevlence!$B$3:$F$213,5,0)","v":4.5609999999999999},null,null,null,{"$f":"VLOOKUP(BP171,[2]CCG_AgeSpecificPrevalence!$E$14:$H$225,4,0)/BQ171","v":56315.28964862298},{"$f":"VLOOKUP(BP171,[3]CHD!$E$16:$L$226,8,0)/BQ171","v":56668.988076395479}]
["01V","E38000170","NHS Southport and Formby","Cheshire and Merseyside",{"$f":"VLOOKUP(A172,Lookup!$BJ$3:$BK$226,2,0)","v":"No"},7,"North","5NJ",{"$f":"VLOOKUP(A172,Lookup!$BL$3:$BM$226,2,0)","v":"No"},null,null,null,null,null,null,null,null,null,null,null,null,null,null,null,null,null,null,null,null,null,null,null,null,null,null,null,null,null,null,null,null,null,null,null,null,null,null,null,null,null,null,null,null,null,null,null,null,null,null,null,null,{"$f":"HLOOKUP(GraphData!$E$3,'Closest CCG (codes)'!$A$1:$HD$212,'Closest CCG (codes)'!HE171+2,0)","v":"10X"},"No",{"$f":"HLOOKUP(SummaryData!$D$11,'Closest CCG (codes)'!$A$1:$HD$212,'Closest CCG (codes)'!HE171+2,0)","v":"11A"},"No",null,"Not similar","01V",{"$f":"VLOOKUP($BP172,[1]prevlence!$B$3:$F$213,3,0)","v":11.7},{"$f":"VLOOKUP($BP172,[1]prevlence!$B$3:$F$213,5,0)","v":5.7229999999999999},null,null,null,{"$f":"VLOOKUP(BP172,[2]CCG_AgeSpecificPrevalence!$E$14:$H$225,4,0)/BQ172","v":10444.871794871795},{"$f":"VLOOKUP(BP172,[3]CHD!$E$16:$L$226,8,0)/BQ172","v":10460.769230769232}]
["08Q","E38000171","NHS Southwark","London",{"$f":"VLOOKUP(A173,Lookup!$BJ$3:$BK$226,2,0)","v":"No"},2,"London","5LE",{"$f":"VLOOKUP(A173,Lookup!$BL$3:$BM$226,2,0)","v":"No"},null,null,null,null,null,null,null,null,null,null,null,null,null,null,null,null,null,null,null,null,null,null,null,null,null,null,null,null,null,null,null,null,null,null,null,null,null,null,null,null,null,null,null,null,null,null,null,null,null,null,null,null,{"$f":"HLOOKUP(GraphData!$E$3,'Closest CCG (codes)'!$A$1:$HD$212,'Closest CCG (codes)'!HE172+2,0)","v":"06H"},"No",{"$f":"HLOOKUP(SummaryData!$D$11,'Closest CCG (codes)'!$A$1:$HD$212,'Closest CCG (codes)'!HE172+2,0)","v":"04N"},"No",null,"Not similar","08Q",{"$f":"VLOOKUP($BP173,[1]prevlence!$B$3:$F$213,3,0)","v":6.5220000000000002},{"$f":"VLOOKUP($BP173,[1]prevlence!$B$3:$F$213,5,0)","v":2.76},null,null,null,{"$f":"VLOOKUP(BP173,[2]CCG_AgeSpecificPrevalence!$E$14:$H$225,4,0)/BQ173","v":49848.51272615762},{"$f":"VLOOKUP(BP173,[3]CHD!$E$16:$L$226,8,0)/BQ173","v":46646.274149034034}]
["01X","E38000172","NHS St Helens","Cheshire and Merseyside",{"$f":"VLOOKUP(A174,Lookup!$BJ$3:$BK$226,2,0)","v":"No"},3,"North","5NM",{"$f":"VLOOKUP(A174,Lookup!$BL$3:$BM$226,2,0)","v":"No"},null,null,null,null,null,null,null,null,null,null,null,null,null,null,null,null,null,null,null,null,null,null,null,null,null,null,null,null,null,null,null,null,null,null,null,null,null,null,null,null,null,null,null,null,null,null,null,null,null,null,null,null,{"$f":"HLOOKUP(GraphData!$E$3,'Closest CCG (codes)'!$A$1:$HD$212,'Closest CCG (codes)'!HE173+2,0)","v":"04X"},"No",{"$f":"HLOOKUP(SummaryData!$D$11,'Closest CCG (codes)'!$A$1:$HD$212,'Closest CCG (codes)'!HE173+2,0)","v":"08A"},"No",null,"Not similar","01X",{"$f":"VLOOKUP($BP174,[1]prevlence!$B$3:$F$213,3,0)","v":10.368},{"$f":"VLOOKUP($BP174,[1]prevlence!$B$3:$F$213,5,0)","v":5.556},null,null,null,{"$f":"VLOOKUP(BP174,[2]CCG_AgeSpecificPrevalence!$E$14:$H$225,4,0)/BQ174","v":18652.681327160491},{"$f":"VLOOKUP(BP174,[3]CHD!$E$16:$L$226,8,0)/BQ174","v":18712.577160493827}]
["05V","E38000173","NHS Stafford and Surrounds","West Midlands",{"$f":"VLOOKUP(A175,Lookup!$BJ$3:$BK$226,2,0)","v":"No"},9,"Midlands and East","5PK",{"$f":"VLOOKUP(A175,Lookup!$BL$3:$BM$226,2,0)","v":"No"},null,null,null,null,null,null,null,null,null,null,null,null,null,null,null,null,null,null,null,null,null,null,null,null,null,null,null,null,null,null,null,null,null,null,null,null,null,null,null,null,null,null,null,null,null,null,null,null,null,null,null,null,{"$f":"HLOOKUP(GraphData!$E$3,'Closest CCG (codes)'!$A$1:$HD$212,'Closest CCG (codes)'!HE174+2,0)","v":"99A"},"No",{"$f":"HLOOKUP(SummaryData!$D$11,'Closest CCG (codes)'!$A$1:$HD$212,'Closest CCG (codes)'!HE174+2,0)","v":"07V"},"No",null,"Not similar","05V",{"$f":"VLOOKUP($BP175,[1]prevlence!$B$3:$F$213,3,0)","v":10.465999999999999},{"$f":"VLOOKUP($BP175,[1]prevlence!$B$3:$F$213,5,0)","v":4.7750000000000004},null,null,null,{"$f":"VLOOKUP(BP175,[2]CCG_AgeSpecificPrevalence!$E$14:$H$225,4,0)/BQ175","v":13847.410663099561},{"$f":"VLOOKUP(BP175,[3]CHD!$E$16:$L$226,8,0)/BQ175","v":13876.743741639595}]
["01W","E38000174","NHS Stockport","Greater Manchester Lancashire and South Cumbria",{"$f":"VLOOKUP(A176,Lookup!$BJ$3:$BK$226,2,0)","v":"No"},6,"North","5F7",{"$f":"VLOOKUP(A176,Lookup!$BL$3:$BM$226,2,0)","v":"No"},null,null,null,null,null,null,null,null,null,null,null,null,null,null,null,null,null,null,null,null,null,null,null,null,null,null,null,null,null,null,null,null,null,null,null,null,null,null,null,null,null,null,null,null,null,null,null,null,null,null,null,null,{"$f":"HLOOKUP(GraphData!$E$3,'Closest CCG (codes)'!$A$1:$HD$212,'Closest CCG (codes)'!HE175+2,0)","v":"10W"},"No",{"$f":"HLOOKUP(SummaryData!$D$11,'Closest CCG (codes)'!$A$1:$HD$212,'Closest CCG (codes)'!HE175+2,0)","v":"09E"},"No",null,"Not similar","01W",{"$f":"VLOOKUP($BP176,[1]prevlence!$B$3:$F$213,3,0)","v":9.8040000000000003},{"$f":"VLOOKUP($BP176,[1]prevlence!$B$3:$F$213,5,0)","v":4.6909999999999998},null,null,null,{"$f":"VLOOKUP(BP176,[2]CCG_AgeSpecificPrevalence!$E$14:$H$225,4,0)/BQ176","v":30593.941248470011},{"$f":"VLOOKUP(BP176,[3]CHD!$E$16:$L$226,8,0)/BQ176","v":30734.394124847}]
["05W","E38000175","NHS Stoke On Trent","West Midlands",{"$f":"VLOOKUP(A177,Lookup!$BJ$3:$BK$226,2,0)","v":"No"},1,"Midlands and East","5PJ",{"$f":"VLOOKUP(A177,Lookup!$BL$3:$BM$226,2,0)","v":"No"},null,null,null,null,null,null,null,null,null,null,null,null,null,null,null,null,null,null,null,null,null,null,null,null,null,null,null,null,null,null,null,null,null,null,null,null,null,null,null,null,null,null,null,null,null,null,null,null,null,null,null,null,{"$f":"HLOOKUP(GraphData!$E$3,'Closest CCG (codes)'!$A$1:$HD$212,'Closest CCG (codes)'!HE176+2,0)","v":"99P"},"No",{"$f":"HLOOKUP(SummaryData!$D$11,'Closest CCG (codes)'!$A$1:$HD$212,'Closest CCG (codes)'!HE176+2,0)","v":"09G"},"No",null,"Not similar","05W",{"$f":"VLOOKUP($BP177,[1]prevlence!$B$3:$F$213,3,0)","v":10.09},{"$f":"VLOOKUP($BP177,[1]prevlence!$B$3:$F$213,5,0)","v":5.61},null,null,null,{"$f":"VLOOKUP(BP177,[2]CCG_AgeSpecificPrevalence!$E$14:$H$225,4,0)/BQ177","v":27780.2775024777},{"$f":"VLOOKUP(BP177,[3]CHD!$E$16:$L$226,8,0)/BQ177","v":27165.708622398415}]
["00P","E38000176","NHS Sunderland","Northern England",{"$f":"VLOOKUP(A178,Lookup!$BJ$3:$BK$226,2,0)","v":"No"},3,"North","5KL",{"$f":"VLOOKUP(A178,Lookup!$BL$3:$BM$226,2,0)","v":"No"},null,null,null,null,null,null,null,null,null,null,null,null,null,null,null,null,null,null,null,null,null,null,null,null,null,null,null,null,null,null,null,null,null,null,null,null,null,null,null,null,null,null,null,null,null,null,null,null,null,null,null,null,{"$f":"HLOOKUP(GraphData!$E$3,'Closest CCG (codes)'!$A$1:$HD$212,'Closest CCG (codes)'!HE177+2,0)","v":"08R"},"No",{"$f":"HLOOKUP(SummaryData!$D$11,'Closest CCG (codes)'!$A$1:$HD$212,'Closest CCG (codes)'!HE177+2,0)","v":"05V"},"No",null,"Not similar","00P",{"$f":"VLOOKUP($BP178,[1]prevlence!$B$3:$F$213,3,0)","v":10.269},{"$f":"VLOOKUP($BP178,[1]prevlence!$B$3:$F$213,5,0)","v":5.6319999999999997},null,null,null,{"$f":"VLOOKUP(BP178,[2]CCG_AgeSpecificPrevalence!$E$14:$H$225,4,0)/BQ178","v":27647.287954036419},{"$f":"VLOOKUP(BP178,[3]CHD!$E$16:$L$226,8,0)/BQ178","v":27603.271983640083}]
["99H","E38000177","NHS Surrey Downs","South East coast",{"$f":"VLOOKUP(A179,Lookup!$BJ$3:$BK$226,2,0)","v":"No"},10,"South","5P5",{"$f":"VLOOKUP(A179,Lookup!$BL$3:$BM$226,2,0)","v":"No"},null,null,null,null,null,null,null,null,null,null,null,null,null,null,null,null,null,null,null,null,null,null,null,null,null,null,null,null,null,null,null,null,null,null,null,null,null,null,null,null,null,null,null,null,null,null,null,null,null,null,null,null,{"$f":"HLOOKUP(GraphData!$E$3,'Closest CCG (codes)'!$A$1:$HD$212,'Closest CCG (codes)'!HE178+2,0)","v":"01M"},"No",{"$f":"HLOOKUP(SummaryData!$D$11,'Closest CCG (codes)'!$A$1:$HD$212,'Closest CCG (codes)'!HE178+2,0)","v":"05N"},"No",null,"Not similar","99H",{"$f":"VLOOKUP($BP179,[1]prevlence!$B$3:$F$213,3,0)","v":9.6259999999999994},{"$f":"VLOOKUP($BP179,[1]prevlence!$B$3:$F$213,5,0)","v":3.9169999999999998},null,null,null,{"$f":"VLOOKUP(BP179,[2]CCG_AgeSpecificPrevalence!$E$14:$H$225,4,0)/BQ179","v":30440.473717016415},{"$f":"VLOOKUP(BP179,[3]CHD!$E$16:$L$226,8,0)/BQ179","v":30896.218574693539}]
["10C","E38000178","NHS Surrey Heath","South East coast",{"$f":"VLOOKUP(A180,Lookup!$BJ$3:$BK$226,2,0)","v":"No"},10,"South","5P5",{"$f":"VLOOKUP(A180,Lookup!$BL$3:$BM$226,2,0)","v":"No"},null,null,null,null,null,null,null,null,null,null,null,null,null,null,null,null,null,null,null,null,null,null,null,null,null,null,null,null,null,null,null,null,null,null,null,null,null,null,null,null,null,null,null,null,null,null,null,null,null,null,null,null,{"$f":"HLOOKUP(GraphData!$E$3,'Closest CCG (codes)'!$A$1:$HD$212,'Closest CCG (codes)'!HE179+2,0)","v":"06P"},"No",{"$f":"HLOOKUP(SummaryData!$D$11,'Closest CCG (codes)'!$A$1:$HD$212,'Closest CCG (codes)'!HE179+2,0)","v":"03Q"},"No",null,"Not similar","10C",{"$f":"VLOOKUP($BP180,[1]prevlence!$B$3:$F$213,3,0)","v":9.1750000000000007},{"$f":"VLOOKUP($BP180,[1]prevlence!$B$3:$F$213,5,0)","v":3.7559999999999998},null,null,null,{"$f":"VLOOKUP(BP180,[2]CCG_AgeSpecificPrevalence!$E$14:$H$225,4,0)/BQ180","v":9964.7956403269745},{"$f":"VLOOKUP(BP180,[3]CHD!$E$16:$L$226,8,0)/BQ180","v":10106.485013623977}]
["08T","E38000179","NHS Sutton","London",{"$f":"VLOOKUP(A181,Lookup!$BJ$3:$BK$226,2,0)","v":"No"},8,"London","5M7",{"$f":"VLOOKUP(A181,Lookup!$BL$3:$BM$226,2,0)","v":"No"},null,null,null,null,null,null,null,null,null,null,null,null,null,null,null,null,null,null,null,null,null,null,null,null,null,null,null,null,null,null,null,null,null,null,null,null,null,null,null,null,null,null,null,null,null,null,null,null,null,null,null,null,{"$f":"HLOOKUP(GraphData!$E$3,'Closest CCG (codes)'!$A$1:$HD$212,'Closest CCG (codes)'!HE180+2,0)","v":"07Y"},"No",{"$f":"HLOOKUP(SummaryData!$D$11,'Closest CCG (codes)'!$A$1:$HD$212,'Closest CCG (codes)'!HE180+2,0)","v":"07J"},"No",null,"Not similar","08T",{"$f":"VLOOKUP($BP181,[1]prevlence!$B$3:$F$213,3,0)","v":8.5869999999999997},{"$f":"VLOOKUP($BP181,[1]prevlence!$B$3:$F$213,5,0)","v":3.847},null,null,null,{"$f":"VLOOKUP(BP181,[2]CCG_AgeSpecificPrevalence!$E$14:$H$225,4,0)/BQ181","v":21751.251892395481},{"$f":"VLOOKUP(BP181,[3]CHD!$E$16:$L$226,8,0)/BQ181","v":21831.605915919412}]
["10D","E38000180","NHS Swale","South East coast",{"$f":"VLOOKUP(A182,Lookup!$BJ$3:$BK$226,2,0)","v":"No"},4,"South","5QA",{"$f":"VLOOKUP(A182,Lookup!$BL$3:$BM$226,2,0)","v":"No"},null,null,null,null,null,null,null,null,null,null,null,null,null,null,null,null,null,null,null,null,null,null,null,null,null,null,null,null,null,null,null,null,null,null,null,null,null,null,null,null,null,null,null,null,null,null,null,null,null,null,null,null,{"$f":"HLOOKUP(GraphData!$E$3,'Closest CCG (codes)'!$A$1:$HD$212,'Closest CCG (codes)'!HE181+2,0)","v":"03C"},"No",{"$f":"HLOOKUP(SummaryData!$D$11,'Closest CCG (codes)'!$A$1:$HD$212,'Closest CCG (codes)'!HE181+2,0)","v":"09F"},"No",null,"Not similar","10D",{"$f":"VLOOKUP($BP182,[1]prevlence!$B$3:$F$213,3,0)","v":9.7240000000000002},{"$f":"VLOOKUP($BP182,[1]prevlence!$B$3:$F$213,5,0)","v":5.1529999999999996},null,null,null,{"$f":"VLOOKUP(BP182,[2]CCG_AgeSpecificPrevalence!$E$14:$H$225,4,0)/BQ182","v":11060.880296174413},{"$f":"VLOOKUP(BP182,[3]CHD!$E$16:$L$226,8,0)/BQ182","v":11052.34471410942}]
["12D","E38000181","NHS Swindon","South West",{"$f":"VLOOKUP(A183,Lookup!$BJ$3:$BK$226,2,0)","v":"No"},8,"South","5K3",{"$f":"VLOOKUP(A183,Lookup!$BL$3:$BM$226,2,0)","v":"No"},null,null,null,null,null,null,null,null,null,null,null,null,null,null,null,null,null,null,null,null,null,null,null,null,null,null,null,null,null,null,null,null,null,null,null,null,null,null,null,null,null,null,null,null,null,null,null,null,null,null,null,null,{"$f":"HLOOKUP(GraphData!$E$3,'Closest CCG (codes)'!$A$1:$HD$212,'Closest CCG (codes)'!HE182+2,0)","v":"01N"},"No",{"$f":"HLOOKUP(SummaryData!$D$11,'Closest CCG (codes)'!$A$1:$HD$212,'Closest CCG (codes)'!HE182+2,0)","v":"11E"},"No",null,"Not similar","12D",{"$f":"VLOOKUP($BP183,[1]prevlence!$B$3:$F$213,3,0)","v":8.5860000000000003},{"$f":"VLOOKUP($BP183,[1]prevlence!$B$3:$F$213,5,0)","v":3.8130000000000002},null,null,null,{"$f":"VLOOKUP(BP183,[2]CCG_AgeSpecificPrevalence!$E$14:$H$225,4,0)/BQ183","v":25977.288609364081},{"$f":"VLOOKUP(BP183,[3]CHD!$E$16:$L$226,8,0)/BQ183","v":26410.784998835312}]
["01Y","E38000182","NHS Tameside and Glossop","East Midlands",{"$f":"VLOOKUP(A184,Lookup!$BJ$3:$BK$226,2,0)","v":"No"},3,"North","5LH",{"$f":"VLOOKUP(A184,Lookup!$BL$3:$BM$226,2,0)","v":"No"},null,null,null,null,null,null,null,null,null,null,null,null,null,null,null,null,null,null,null,null,null,null,null,null,null,null,null,null,null,null,null,null,null,null,null,null,null,null,null,null,null,null,null,null,null,null,null,null,null,null,null,null,{"$f":"HLOOKUP(GraphData!$E$3,'Closest CCG (codes)'!$A$1:$HD$212,'Closest CCG (codes)'!HE183+2,0)","v":"04C"},"No",{"$f":"HLOOKUP(SummaryData!$D$11,'Closest CCG (codes)'!$A$1:$HD$212,'Closest CCG (codes)'!HE183+2,0)","v":"03M"},"No",null,"Not similar","01Y",{"$f":"VLOOKUP($BP184,[1]prevlence!$B$3:$F$213,3,0)","v":9.6470000000000002},{"$f":"VLOOKUP($BP184,[1]prevlence!$B$3:$F$213,5,0)","v":5.266},null,null,null,{"$f":"VLOOKUP(BP184,[2]CCG_AgeSpecificPrevalence!$E$14:$H$225,4,0)/BQ184","v":25016.274489478594},{"$f":"VLOOKUP(BP184,[3]CHD!$E$16:$L$226,8,0)/BQ184","v":24847.931999585362}]
["05X","E38000183","NHS Telford and Wrekin","West Midlands",{"$f":"VLOOKUP(A185,Lookup!$BJ$3:$BK$226,2,0)","v":"No"},4,"Midlands and East","5MK",{"$f":"VLOOKUP(A185,Lookup!$BL$3:$BM$226,2,0)","v":"No"},null,null,null,null,null,null,null,null,null,null,null,null,null,null,null,null,null,null,null,null,null,null,null,null,null,null,null,null,null,null,null,null,null,null,null,null,null,null,null,null,null,null,null,null,null,null,null,null,null,null,null,null,{"$f":"HLOOKUP(GraphData!$E$3,'Closest CCG (codes)'!$A$1:$HD$212,'Closest CCG (codes)'!HE184+2,0)","v":"08N"},"No",{"$f":"HLOOKUP(SummaryData!$D$11,'Closest CCG (codes)'!$A$1:$HD$212,'Closest CCG (codes)'!HE184+2,0)","v":"07L"},"No",null,"Not similar","05X",{"$f":"VLOOKUP($BP185,[1]prevlence!$B$3:$F$213,3,0)","v":9.0579999999999998},{"$f":"VLOOKUP($BP185,[1]prevlence!$B$3:$F$213,5,0)","v":4.5780000000000003},null,null,null,{"$f":"VLOOKUP(BP185,[2]CCG_AgeSpecificPrevalence!$E$14:$H$225,4,0)/BQ185","v":19170.236255243984},{"$f":"VLOOKUP(BP185,[3]CHD!$E$16:$L$226,8,0)/BQ185","v":19353.830867741224}]
["10E","E38000184","NHS Thanet","South East coast",{"$f":"VLOOKUP(A186,Lookup!$BJ$3:$BK$226,2,0)","v":"No"},3,"South","5QA",{"$f":"VLOOKUP(A186,Lookup!$BL$3:$BM$226,2,0)","v":"No"},null,null,null,null,null,null,null,null,null,null,null,null,null,null,null,null,null,null,null,null,null,null,null,null,null,null,null,null,null,null,null,null,null,null,null,null,null,null,null,null,null,null,null,null,null,null,null,null,null,null,null,null,{"$f":"HLOOKUP(GraphData!$E$3,'Closest CCG (codes)'!$A$1:$HD$212,'Closest CCG (codes)'!HE185+2,0)","v":"13P"},"No",{"$f":"HLOOKUP(SummaryData!$D$11,'Closest CCG (codes)'!$A$1:$HD$212,'Closest CCG (codes)'!HE185+2,0)","v":"02M"},"No",null,"Not similar","10E",{"$f":"VLOOKUP($BP186,[1]prevlence!$B$3:$F$213,3,0)","v":11.419},{"$f":"VLOOKUP($BP186,[1]prevlence!$B$3:$F$213,5,0)","v":6.3120000000000003},null,null,null,{"$f":"VLOOKUP(BP186,[2]CCG_AgeSpecificPrevalence!$E$14:$H$225,4,0)/BQ186","v":12414.572204221035},{"$f":"VLOOKUP(BP186,[3]CHD!$E$16:$L$226,8,0)/BQ186","v":12446.011034241177}]
["07G","E38000185","NHS Thurrock","East of England",{"$f":"VLOOKUP(A187,Lookup!$BJ$3:$BK$226,2,0)","v":"No"},6,"Midlands and East","5PY",{"$f":"VLOOKUP(A187,Lookup!$BL$3:$BM$226,2,0)","v":"No"},null,null,null,null,null,null,null,null,null,null,null,null,null,null,null,null,null,null,null,null,null,null,null,null,null,null,null,null,null,null,null,null,null,null,null,null,null,null,null,null,null,null,null,null,null,null,null,null,null,null,null,null,{"$f":"HLOOKUP(GraphData!$E$3,'Closest CCG (codes)'!$A$1:$HD$212,'Closest CCG (codes)'!HE186+2,0)","v":"05L"},"No",{"$f":"HLOOKUP(SummaryData!$D$11,'Closest CCG (codes)'!$A$1:$HD$212,'Closest CCG (codes)'!HE186+2,0)","v":"05F"},"No",null,"Not similar","07G",{"$f":"VLOOKUP($BP187,[1]prevlence!$B$3:$F$213,3,0)","v":8.2690000000000001},{"$f":"VLOOKUP($BP187,[1]prevlence!$B$3:$F$213,5,0)","v":3.8210000000000002},null,null,null,{"$f":"VLOOKUP(BP187,[2]CCG_AgeSpecificPrevalence!$E$14:$H$225,4,0)/BQ187","v":19836.86056355061},{"$f":"VLOOKUP(BP187,[3]CHD!$E$16:$L$226,8,0)/BQ187","v":20077.155641552788}]
["08V","E38000186","NHS Tower Hamlets","London",{"$f":"VLOOKUP(A188,Lookup!$BJ$3:$BK$226,2,0)","v":"No"},1,"London","5C4",{"$f":"VLOOKUP(A188,Lookup!$BL$3:$BM$226,2,0)","v":"No"},null,null,null,null,null,null,null,null,null,null,null,null,null,null,null,null,null,null,null,null,null,null,null,null,null,null,null,null,null,null,null,null,null,null,null,null,null,null,null,null,null,null,null,null,null,null,null,null,null,null,null,null,{"$f":"HLOOKUP(GraphData!$E$3,'Closest CCG (codes)'!$A$1:$HD$212,'Closest CCG (codes)'!HE187+2,0)","v":"07X"},"No",{"$f":"HLOOKUP(SummaryData!$D$11,'Closest CCG (codes)'!$A$1:$HD$212,'Closest CCG (codes)'!HE187+2,0)","v":"10L"},"No",null,"Not similar","08V",{"$f":"VLOOKUP($BP188,[1]prevlence!$B$3:$F$213,3,0)","v":6.4009999999999998},{"$f":"VLOOKUP($BP188,[1]prevlence!$B$3:$F$213,5,0)","v":3.1040000000000001},null,null,null,{"$f":"VLOOKUP(BP188,[2]CCG_AgeSpecificPrevalence!$E$14:$H$225,4,0)/BQ188","v":44591.313857209811},{"$f":"VLOOKUP(BP188,[3]CHD!$E$16:$L$226,8,0)/BQ188","v":44199.343852523045}]
["02A","E38000187","NHS Trafford","Greater Manchester Lancashire and South Cumbria",{"$f":"VLOOKUP(A189,Lookup!$BJ$3:$BK$226,2,0)","v":"No"},7,"North","5NR",{"$f":"VLOOKUP(A189,Lookup!$BL$3:$BM$226,2,0)","v":"No"},null,null,null,null,null,null,null,null,null,null,null,null,null,null,null,null,null,null,null,null,null,null,null,null,null,null,null,null,null,null,null,null,null,null,null,null,null,null,null,null,null,null,null,null,null,null,null,null,null,null,null,null,{"$f":"HLOOKUP(GraphData!$E$3,'Closest CCG (codes)'!$A$1:$HD$212,'Closest CCG (codes)'!HE188+2,0)","v":"08E"},"No",{"$f":"HLOOKUP(SummaryData!$D$11,'Closest CCG (codes)'!$A$1:$HD$212,'Closest CCG (codes)'!HE188+2,0)","v":"03D"},"No",null,"Not similar","02A",{"$f":"VLOOKUP($BP189,[1]prevlence!$B$3:$F$213,3,0)","v":9.3949999999999996},{"$f":"VLOOKUP($BP189,[1]prevlence!$B$3:$F$213,5,0)","v":4.3769999999999998},null,null,null,{"$f":"VLOOKUP(BP189,[2]CCG_AgeSpecificPrevalence!$E$14:$H$225,4,0)/BQ189","v":24262.692921766899},{"$f":"VLOOKUP(BP189,[3]CHD!$E$16:$L$226,8,0)/BQ189","v":25216.60457690261}]
["03Q","E38000188","NHS Vale Of York","Yorkshire and Northern",{"$f":"VLOOKUP(A190,Lookup!$BJ$3:$BK$226,2,0)","v":"No"},9,"North","5NV",{"$f":"VLOOKUP(A190,Lookup!$BL$3:$BM$226,2,0)","v":"No"},null,null,null,null,null,null,null,null,null,null,null,null,null,null,null,null,null,null,null,null,null,null,null,null,null,null,null,null,null,null,null,null,null,null,null,null,null,null,null,null,null,null,null,null,null,null,null,null,null,null,null,null,{"$f":"HLOOKUP(GraphData!$E$3,'Closest CCG (codes)'!$A$1:$HD$212,'Closest CCG (codes)'!HE189+2,0)","v":"07V"},"No",{"$f":"HLOOKUP(SummaryData!$D$11,'Closest CCG (codes)'!$A$1:$HD$212,'Closest CCG (codes)'!HE189+2,0)","v":"01K"},"No",null,"Not similar","03Q",{"$f":"VLOOKUP($BP190,[1]prevlence!$B$3:$F$213,3,0)","v":9.7309999999999999},{"$f":"VLOOKUP($BP190,[1]prevlence!$B$3:$F$213,5,0)","v":4.3280000000000003},null,null,null,{"$f":"VLOOKUP(BP190,[2]CCG_AgeSpecificPrevalence!$E$14:$H$225,4,0)/BQ190","v":34098.962079950674},{"$f":"VLOOKUP(BP190,[3]CHD!$E$16:$L$226,8,0)/BQ190","v":35653.581337991985}]
["02D","E38000189","NHS Vale Royal","Cheshire and Merseyside",{"$f":"VLOOKUP(A191,Lookup!$BJ$3:$BK$226,2,0)","v":"No"},7,"North","5NP",{"$f":"VLOOKUP(A191,Lookup!$BL$3:$BM$226,2,0)","v":"No"},null,null,null,null,null,null,null,null,null,null,null,null,null,null,null,null,null,null,null,null,null,null,null,null,null,null,null,null,null,null,null,null,null,null,null,null,null,null,null,null,null,null,null,null,null,null,null,null,null,null,null,null,{"$f":"HLOOKUP(GraphData!$E$3,'Closest CCG (codes)'!$A$1:$HD$212,'Closest CCG (codes)'!HE190+2,0)","v":"10T"},"No",{"$f":"HLOOKUP(SummaryData!$D$11,'Closest CCG (codes)'!$A$1:$HD$212,'Closest CCG (codes)'!HE190+2,0)","v":"01V"},"No",null,"Not similar","02D",{"$f":"VLOOKUP($BP191,[1]prevlence!$B$3:$F$213,3,0)","v":9.548},{"$f":"VLOOKUP($BP191,[1]prevlence!$B$3:$F$213,5,0)","v":4.4980000000000002},null,null,null,{"$f":"VLOOKUP(BP191,[2]CCG_AgeSpecificPrevalence!$E$14:$H$225,4,0)/BQ191","v":10709.886887306242},{"$f":"VLOOKUP(BP191,[3]CHD!$E$16:$L$226,8,0)/BQ191","v":10731.252618349392}]
["03R","E38000190","NHS Wakefield","Yorkshire and Northern",{"$f":"VLOOKUP(A192,Lookup!$BJ$3:$BK$226,2,0)","v":"No"},4,"North","5N3",{"$f":"VLOOKUP(A192,Lookup!$BL$3:$BM$226,2,0)","v":"No"},null,null,null,null,null,null,null,null,null,null,null,null,null,null,null,null,null,null,null,null,null,null,null,null,null,null,null,null,null,null,null,null,null,null,null,null,null,null,null,null,null,null,null,null,null,null,null,null,null,null,null,null,{"$f":"HLOOKUP(GraphData!$E$3,'Closest CCG (codes)'!$A$1:$HD$212,'Closest CCG (codes)'!HE191+2,0)","v":"07W"},"No",{"$f":"HLOOKUP(SummaryData!$D$11,'Closest CCG (codes)'!$A$1:$HD$212,'Closest CCG (codes)'!HE191+2,0)","v":"00W"},"No",null,"Not similar","03R",{"$f":"VLOOKUP($BP192,[1]prevlence!$B$3:$F$213,3,0)","v":9.7260000000000009},{"$f":"VLOOKUP($BP192,[1]prevlence!$B$3:$F$213,5,0)","v":5.05},null,null,null,{"$f":"VLOOKUP(BP192,[2]CCG_AgeSpecificPrevalence!$E$14:$H$225,4,0)/BQ192","v":36633.970799917741},{"$f":"VLOOKUP(BP192,[3]CHD!$E$16:$L$226,8,0)/BQ192","v":36827.781205017476}]
["05Y","E38000191","NHS Walsall","West Midlands",{"$f":"VLOOKUP(A193,Lookup!$BJ$3:$BK$226,2,0)","v":"No"},2,"Midlands and East","5M3",{"$f":"VLOOKUP(A193,Lookup!$BL$3:$BM$226,2,0)","v":"Comparator Closest 10 CCGs"},null,null,null,null,null,null,null,null,null,null,null,null,null,null,null,null,null,null,null,null,null,null,null,null,null,null,null,null,null,null,null,null,null,null,null,null,null,null,null,null,null,null,null,null,null,null,null,null,null,null,null,null,{"$f":"HLOOKUP(GraphData!$E$3,'Closest CCG (codes)'!$A$1:$HD$212,'Closest CCG (codes)'!HE192+2,0)","v":"08A"},"No",{"$f":"HLOOKUP(SummaryData!$D$11,'Closest CCG (codes)'!$A$1:$HD$212,'Closest CCG (codes)'!HE192+2,0)","v":"07P"},"No",null,"Not similar","05Y",{"$f":"VLOOKUP($BP193,[1]prevlence!$B$3:$F$213,3,0)","v":10.198},{"$f":"VLOOKUP($BP193,[1]prevlence!$B$3:$F$213,5,0)","v":5.8730000000000002},null,null,null,{"$f":"VLOOKUP(BP193,[2]CCG_AgeSpecificPrevalence!$E$14:$H$225,4,0)/BQ193","v":26614.53226122769},{"$f":"VLOOKUP(BP193,[3]CHD!$E$16:$L$226,8,0)/BQ193","v":26781.133555599135}]
["08W","E38000192","NHS Waltham Forest","London",{"$f":"VLOOKUP(A194,Lookup!$BJ$3:$BK$226,2,0)","v":"No"},1,"London","5NC",{"$f":"VLOOKUP(A194,Lookup!$BL$3:$BM$226,2,0)","v":"No"},null,null,null,null,null,null,null,null,null,null,null,null,null,null,null,null,null,null,null,null,null,null,null,null,null,null,null,null,null,null,null,null,null,null,null,null,null,null,null,null,null,null,null,null,null,null,null,null,null,null,null,null,{"$f":"HLOOKUP(GraphData!$E$3,'Closest CCG (codes)'!$A$1:$HD$212,'Closest CCG (codes)'!HE193+2,0)","v":"04K"},"No",{"$f":"HLOOKUP(SummaryData!$D$11,'Closest CCG (codes)'!$A$1:$HD$212,'Closest CCG (codes)'!HE193+2,0)","v":"04K"},"No",null,"Not similar","08W",{"$f":"VLOOKUP($BP194,[1]prevlence!$B$3:$F$213,3,0)","v":7.617},{"$f":"VLOOKUP($BP194,[1]prevlence!$B$3:$F$213,5,0)","v":3.8879999999999999},null,null,null,{"$f":"VLOOKUP(BP194,[2]CCG_AgeSpecificPrevalence!$E$14:$H$225,4,0)/BQ194","v":38869.633714060656},{"$f":"VLOOKUP(BP194,[3]CHD!$E$16:$L$226,8,0)/BQ194","v":38846.527504266771}]
["08X","E38000193","NHS Wandsworth","London",{"$f":"VLOOKUP(A195,Lookup!$BJ$3:$BK$226,2,0)","v":"No"},5,"London","5LG",{"$f":"VLOOKUP(A195,Lookup!$BL$3:$BM$226,2,0)","v":"No"},null,null,null,null,null,null,null,null,null,null,null,null,null,null,null,null,null,null,null,null,null,null,null,null,null,null,null,null,null,null,null,null,null,null,null,null,null,null,null,null,null,null,null,null,null,null,null,null,null,null,null,null,{"$f":"HLOOKUP(GraphData!$E$3,'Closest CCG (codes)'!$A$1:$HD$212,'Closest CCG (codes)'!HE194+2,0)","v":"08W"},"No",{"$f":"HLOOKUP(SummaryData!$D$11,'Closest CCG (codes)'!$A$1:$HD$212,'Closest CCG (codes)'!HE194+2,0)","v":"08D"},"No",null,"Not similar","08X",{"$f":"VLOOKUP($BP195,[1]prevlence!$B$3:$F$213,3,0)","v":6.53},{"$f":"VLOOKUP($BP195,[1]prevlence!$B$3:$F$213,5,0)","v":2.5760000000000001},null,null,null,{"$f":"VLOOKUP(BP195,[2]CCG_AgeSpecificPrevalence!$E$14:$H$225,4,0)/BQ195","v":55692.189892802446},{"$f":"VLOOKUP(BP195,[3]CHD!$E$16:$L$226,8,0)/BQ195","v":57226.186830015315}]
["02E","E38000194","NHS Warrington","Cheshire and Merseyside",{"$f":"VLOOKUP(A196,Lookup!$BJ$3:$BK$226,2,0)","v":"No"},6,"North","5J2",{"$f":"VLOOKUP(A196,Lookup!$BL$3:$BM$226,2,0)","v":"No"},null,null,null,null,null,null,null,null,null,null,null,null,null,null,null,null,null,null,null,null,null,null,null,null,null,null,null,null,null,null,null,null,null,null,null,null,null,null,null,null,null,null,null,null,null,null,null,null,null,null,null,null,{"$f":"HLOOKUP(GraphData!$E$3,'Closest CCG (codes)'!$A$1:$HD$212,'Closest CCG (codes)'!HE195+2,0)","v":"00G"},"No",{"$f":"HLOOKUP(SummaryData!$D$11,'Closest CCG (codes)'!$A$1:$HD$212,'Closest CCG (codes)'!HE195+2,0)","v":"11J"},"No",null,"Not similar","02E",{"$f":"VLOOKUP($BP196,[1]prevlence!$B$3:$F$213,3,0)","v":9.1760000000000002},{"$f":"VLOOKUP($BP196,[1]prevlence!$B$3:$F$213,5,0)","v":4.3019999999999996},null,null,null,{"$f":"VLOOKUP(BP196,[2]CCG_AgeSpecificPrevalence!$E$14:$H$225,4,0)/BQ196","v":22761.115954664343},{"$f":"VLOOKUP(BP196,[3]CHD!$E$16:$L$226,8,0)/BQ196","v":23023.103748910202}]
["05H","E38000195","NHS Warwickshire North","West Midlands",{"$f":"VLOOKUP(A197,Lookup!$BJ$3:$BK$226,2,0)","v":"No"},5,"Midlands and East","5PM",{"$f":"VLOOKUP(A197,Lookup!$BL$3:$BM$226,2,0)","v":"No"},null,null,null,null,null,null,null,null,null,null,null,null,null,null,null,null,null,null,null,null,null,null,null,null,null,null,null,null,null,null,null,null,null,null,null,null,null,null,null,null,null,null,null,null,null,null,null,null,null,null,null,null,{"$f":"HLOOKUP(GraphData!$E$3,'Closest CCG (codes)'!$A$1:$HD$212,'Closest CCG (codes)'!HE196+2,0)","v":"08X"},"No",{"$f":"HLOOKUP(SummaryData!$D$11,'Closest CCG (codes)'!$A$1:$HD$212,'Closest CCG (codes)'!HE196+2,0)","v":"03C"},"No",null,"Not similar","05H",{"$f":"VLOOKUP($BP197,[1]prevlence!$B$3:$F$213,3,0)","v":9.7859999999999996},{"$f":"VLOOKUP($BP197,[1]prevlence!$B$3:$F$213,5,0)","v":4.8440000000000003},null,null,null,{"$f":"VLOOKUP(BP197,[2]CCG_AgeSpecificPrevalence!$E$14:$H$225,4,0)/BQ197","v":18848.559166155734},{"$f":"VLOOKUP(BP197,[3]CHD!$E$16:$L$226,8,0)/BQ197","v":18859.799713876968}]
["02F","E38000196","NHS West Cheshire","Cheshire and Merseyside",{"$f":"VLOOKUP(A198,Lookup!$BJ$3:$BK$226,2,0)","v":"No"},7,"North","5NN",{"$f":"VLOOKUP(A198,Lookup!$BL$3:$BM$226,2,0)","v":"No"},null,null,null,null,null,null,null,null,null,null,null,null,null,null,null,null,null,null,null,null,null,null,null,null,null,null,null,null,null,null,null,null,null,null,null,null,null,null,null,null,null,null,null,null,null,null,null,null,null,null,null,null,{"$f":"HLOOKUP(GraphData!$E$3,'Closest CCG (codes)'!$A$1:$HD$212,'Closest CCG (codes)'!HE197+2,0)","v":"09A"},"No",{"$f":"HLOOKUP(SummaryData!$D$11,'Closest CCG (codes)'!$A$1:$HD$212,'Closest CCG (codes)'!HE197+2,0)","v":"99P"},"No",null,"Not similar","02F",{"$f":"VLOOKUP($BP198,[1]prevlence!$B$3:$F$213,3,0)","v":10.145},{"$f":"VLOOKUP($BP198,[1]prevlence!$B$3:$F$213,5,0)","v":4.7560000000000002},null,null,null,{"$f":"VLOOKUP(BP198,[2]CCG_AgeSpecificPrevalence!$E$14:$H$225,4,0)/BQ198","v":25154.263183834402},{"$f":"VLOOKUP(BP198,[3]CHD!$E$16:$L$226,8,0)/BQ198","v":25321.833415475605}]
["07H","E38000197","NHS West Essex","East of England",{"$f":"VLOOKUP(A199,Lookup!$BJ$3:$BK$226,2,0)","v":"Closest 10 CCGs"},8,"Midlands and East","5PV",{"$f":"VLOOKUP(A199,Lookup!$BL$3:$BM$226,2,0)","v":"No"},null,null,null,null,null,null,null,null,null,null,null,null,null,null,null,null,null,null,null,null,null,null,null,null,null,null,null,null,null,null,null,null,null,null,null,null,null,null,null,null,null,null,null,null,null,null,null,null,null,null,null,null,{"$f":"HLOOKUP(GraphData!$E$3,'Closest CCG (codes)'!$A$1:$HD$212,'Closest CCG (codes)'!HE198+2,0)","v":"08Y"},"No",{"$f":"HLOOKUP(SummaryData!$D$11,'Closest CCG (codes)'!$A$1:$HD$212,'Closest CCG (codes)'!HE198+2,0)","v":"06V"},"No",null,"Not similar","07H",{"$f":"VLOOKUP($BP199,[1]prevlence!$B$3:$F$213,3,0)","v":9.3450000000000006},{"$f":"VLOOKUP($BP199,[1]prevlence!$B$3:$F$213,5,0)","v":4.2},null,null,null,{"$f":"VLOOKUP(BP199,[2]CCG_AgeSpecificPrevalence!$E$14:$H$225,4,0)/BQ199","v":31615.195291599783},{"$f":"VLOOKUP(BP199,[3]CHD!$E$16:$L$226,8,0)/BQ199","v":31605.671482075973}]
["11A","E38000198","NHS West Hampshire","Wessex",{"$f":"VLOOKUP(A200,Lookup!$BJ$3:$BK$226,2,0)","v":"No"},10,"South","5QC",{"$f":"VLOOKUP(A200,Lookup!$BL$3:$BM$226,2,0)","v":"No"},null,null,null,null,null,null,null,null,null,null,null,null,null,null,null,null,null,null,null,null,null,null,null,null,null,null,null,null,null,null,null,null,null,null,null,null,null,null,null,null,null,null,null,null,null,null,null,null,null,null,null,null,{"$f":"HLOOKUP(GraphData!$E$3,'Closest CCG (codes)'!$A$1:$HD$212,'Closest CCG (codes)'!HE199+2,0)","v":"08D"},"No",{"$f":"HLOOKUP(SummaryData!$D$11,'Closest CCG (codes)'!$A$1:$HD$212,'Closest CCG (codes)'!HE199+2,0)","v":"08X"},"No",null,"Not similar","11A",{"$f":"VLOOKUP($BP200,[1]prevlence!$B$3:$F$213,3,0)","v":10.542},{"$f":"VLOOKUP($BP200,[1]prevlence!$B$3:$F$213,5,0)","v":4.5609999999999999},null,null,null,{"$f":"VLOOKUP(BP200,[2]CCG_AgeSpecificPrevalence!$E$14:$H$225,4,0)/BQ200","v":51541.832669322714},{"$f":"VLOOKUP(BP200,[3]CHD!$E$16:$L$226,8,0)/BQ200","v":50914.816922785052}]
["99J","E38000199","NHS West Kent","South East coast",{"$f":"VLOOKUP(A201,Lookup!$BJ$3:$BK$226,2,0)","v":"No"},9,"South","5P9",{"$f":"VLOOKUP(A201,Lookup!$BL$3:$BM$226,2,0)","v":"No"},null,null,null,null,null,null,null,null,null,null,null,null,null,null,null,null,null,null,null,null,null,null,null,null,null,null,null,null,null,null,null,null,null,null,null,null,null,null,null,null,null,null,null,null,null,null,null,null,null,null,null,null,{"$f":"HLOOKUP(GraphData!$E$3,'Closest CCG (codes)'!$A$1:$HD$212,'Closest CCG (codes)'!HE200+2,0)","v":"00W"},"No",{"$f":"HLOOKUP(SummaryData!$D$11,'Closest CCG (codes)'!$A$1:$HD$212,'Closest CCG (codes)'!HE200+2,0)","v":"08V"},"No",null,"Not similar","99J",{"$f":"VLOOKUP($BP201,[1]prevlence!$B$3:$F$213,3,0)","v":9.6300000000000008},{"$f":"VLOOKUP($BP201,[1]prevlence!$B$3:$F$213,5,0)","v":4.1890000000000001},null,null,null,{"$f":"VLOOKUP(BP201,[2]CCG_AgeSpecificPrevalence!$E$14:$H$225,4,0)/BQ201","v":48574.558670820348},{"$f":"VLOOKUP(BP201,[3]CHD!$E$16:$L$226,8,0)/BQ201","v":48736.656282450669}]
["02G","E38000200","NHS West Lancashire","Greater Manchester Lancashire and South Cumbria",{"$f":"VLOOKUP(A202,Lookup!$BJ$3:$BK$226,2,0)","v":"No"},6,"North","5NG",{"$f":"VLOOKUP(A202,Lookup!$BL$3:$BM$226,2,0)","v":"No"},null,null,null,null,null,null,null,null,null,null,null,null,null,null,null,null,null,null,null,null,null,null,null,null,null,null,null,null,null,null,null,null,null,null,null,null,null,null,null,null,null,null,null,null,null,null,null,null,null,null,null,null,{"$f":"HLOOKUP(GraphData!$E$3,'Closest CCG (codes)'!$A$1:$HD$212,'Closest CCG (codes)'!HE201+2,0)","v":"07R"},"No",{"$f":"HLOOKUP(SummaryData!$D$11,'Closest CCG (codes)'!$A$1:$HD$212,'Closest CCG (codes)'!HE201+2,0)","v":"07R"},"No",null,"Not similar","02G",{"$f":"VLOOKUP($BP202,[1]prevlence!$B$3:$F$213,3,0)","v":10.189},{"$f":"VLOOKUP($BP202,[1]prevlence!$B$3:$F$213,5,0)","v":4.9269999999999996},null,null,null,{"$f":"VLOOKUP(BP202,[2]CCG_AgeSpecificPrevalence!$E$14:$H$225,4,0)/BQ202","v":10989.007753459613},{"$f":"VLOOKUP(BP202,[3]CHD!$E$16:$L$226,8,0)/BQ202","v":10986.94670723329}]
["04V","E38000201","NHS West Leicestershire","East Midlands",{"$f":"VLOOKUP(A203,Lookup!$BJ$3:$BK$226,2,0)","v":"No"},9,"Midlands and East","5PA",{"$f":"VLOOKUP(A203,Lookup!$BL$3:$BM$226,2,0)","v":"No"},null,null,null,null,null,null,null,null,null,null,null,null,null,null,null,null,null,null,null,null,null,null,null,null,null,null,null,null,null,null,null,null,null,null,null,null,null,null,null,null,null,null,null,null,null,null,null,null,null,null,null,null,{"$f":"HLOOKUP(GraphData!$E$3,'Closest CCG (codes)'!$A$1:$HD$212,'Closest CCG (codes)'!HE202+2,0)","v":"07P"},"No",{"$f":"HLOOKUP(SummaryData!$D$11,'Closest CCG (codes)'!$A$1:$HD$212,'Closest CCG (codes)'!HE202+2,0)","v":"08Y"},"No",null,"Not similar","04V",{"$f":"VLOOKUP($BP203,[1]prevlence!$B$3:$F$213,3,0)","v":9.4209999999999994},{"$f":"VLOOKUP($BP203,[1]prevlence!$B$3:$F$213,5,0)","v":4.266},null,null,null,{"$f":"VLOOKUP(BP203,[2]CCG_AgeSpecificPrevalence!$E$14:$H$225,4,0)/BQ203","v":39377.136185118354},{"$f":"VLOOKUP(BP203,[3]CHD!$E$16:$L$226,8,0)/BQ203","v":39515.231928669993}]
["08Y","E38000202","NHS West London (K&C & Qpp)","London",{"$f":"VLOOKUP(A204,Lookup!$BJ$3:$BK$226,2,0)","v":"No"},3,"London","5LA",{"$f":"VLOOKUP(A204,Lookup!$BL$3:$BM$226,2,0)","v":"No"},null,null,null,null,null,null,null,null,null,null,null,null,null,null,null,null,null,null,null,null,null,null,null,null,null,null,null,null,null,null,null,null,null,null,null,null,null,null,null,null,null,null,null,null,null,null,null,null,null,null,null,null,{"$f":"HLOOKUP(GraphData!$E$3,'Closest CCG (codes)'!$A$1:$HD$212,'Closest CCG (codes)'!HE203+2,0)","v":"07L"},"No",{"$f":"HLOOKUP(SummaryData!$D$11,'Closest CCG (codes)'!$A$1:$HD$212,'Closest CCG (codes)'!HE203+2,0)","v":"00G"},"No",null,"Not similar","08Y",{"$f":"VLOOKUP($BP204,[1]prevlence!$B$3:$F$213,3,0)","v":7.9720000000000004},{"$f":"VLOOKUP($BP204,[1]prevlence!$B$3:$F$213,5,0)","v":3.7189999999999999},null,null,null,{"$f":"VLOOKUP(BP204,[2]CCG_AgeSpecificPrevalence!$E$14:$H$225,4,0)/BQ204","v":28735.574510787756},{"$f":"VLOOKUP(BP204,[3]CHD!$E$16:$L$226,8,0)/BQ204","v":29551.555444054189}]
["07J","E38000203","NHS West Norfolk","East of England",{"$f":"VLOOKUP(A205,Lookup!$BJ$3:$BK$226,2,0)","v":"No"},6,"Midlands and East","5PQ",{"$f":"VLOOKUP(A205,Lookup!$BL$3:$BM$226,2,0)","v":"No"},null,null,null,null,null,null,null,null,null,null,null,null,null,null,null,null,null,null,null,null,null,null,null,null,null,null,null,null,null,null,null,null,null,null,null,null,null,null,null,null,null,null,null,null,null,null,null,null,null,null,null,null,{"$f":"HLOOKUP(GraphData!$E$3,'Closest CCG (codes)'!$A$1:$HD$212,'Closest CCG (codes)'!HE204+2,0)","v":"08C"},"No",{"$f":"HLOOKUP(SummaryData!$D$11,'Closest CCG (codes)'!$A$1:$HD$212,'Closest CCG (codes)'!HE204+2,0)","v":"08C"},"No",null,"Not similar","07J",{"$f":"VLOOKUP($BP205,[1]prevlence!$B$3:$F$213,3,0)","v":12.06},{"$f":"VLOOKUP($BP205,[1]prevlence!$B$3:$F$213,5,0)","v":6.41},null,null,null,{"$f":"VLOOKUP(BP205,[2]CCG_AgeSpecificPrevalence!$E$14:$H$225,4,0)/BQ205","v":13753.482587064676},{"$f":"VLOOKUP(BP205,[3]CHD!$E$16:$L$226,8,0)/BQ205","v":13866.915422885571}]
["07K","E38000204","NHS West Suffolk","East of England",{"$f":"VLOOKUP(A206,Lookup!$BJ$3:$BK$226,2,0)","v":"No"},9,"Midlands and East","5PT",{"$f":"VLOOKUP(A206,Lookup!$BL$3:$BM$226,2,0)","v":"No"},null,null,null,null,null,null,null,null,null,null,null,null,null,null,null,null,null,null,null,null,null,null,null,null,null,null,null,null,null,null,null,null,null,null,null,null,null,null,null,null,null,null,null,null,null,null,null,null,null,null,null,null,{"$f":"HLOOKUP(GraphData!$E$3,'Closest CCG (codes)'!$A$1:$HD$212,'Closest CCG (codes)'!HE205+2,0)","v":"08V"},"No",{"$f":"HLOOKUP(SummaryData!$D$11,'Closest CCG (codes)'!$A$1:$HD$212,'Closest CCG (codes)'!HE205+2,0)","v":"08L"},"No",null,"Not similar","07K",{"$f":"VLOOKUP($BP206,[1]prevlence!$B$3:$F$213,3,0)","v":10.54},{"$f":"VLOOKUP($BP206,[1]prevlence!$B$3:$F$213,5,0)","v":4.7720000000000002},null,null,null,{"$f":"VLOOKUP(BP206,[2]CCG_AgeSpecificPrevalence!$E$14:$H$225,4,0)/BQ206","v":22619.544592030361},{"$f":"VLOOKUP(BP206,[3]CHD!$E$16:$L$226,8,0)/BQ206","v":22829.032258064519}]
["02H","E38000205","NHS Wigan Borough","Greater Manchester Lancashire and South Cumbria",{"$f":"VLOOKUP(A207,Lookup!$BJ$3:$BK$226,2,0)","v":"No"},3,"North","5HG",{"$f":"VLOOKUP(A207,Lookup!$BL$3:$BM$226,2,0)","v":"No"},null,null,null,null,null,null,null,null,null,null,null,null,null,null,null,null,null,null,null,null,null,null,null,null,null,null,null,null,null,null,null,null,null,null,null,null,null,null,null,null,null,null,null,null,null,null,null,null,null,null,null,null,{"$f":"HLOOKUP(GraphData!$E$3,'Closest CCG (codes)'!$A$1:$HD$212,'Closest CCG (codes)'!HE206+2,0)","v":"08H"},"No",{"$f":"HLOOKUP(SummaryData!$D$11,'Closest CCG (codes)'!$A$1:$HD$212,'Closest CCG (codes)'!HE206+2,0)","v":"09A"},"No",null,"Not similar","02H",{"$f":"VLOOKUP($BP207,[1]prevlence!$B$3:$F$213,3,0)","v":9.8010000000000002},{"$f":"VLOOKUP($BP207,[1]prevlence!$B$3:$F$213,5,0)","v":5.1390000000000002},null,null,null,{"$f":"VLOOKUP(BP207,[2]CCG_AgeSpecificPrevalence!$E$14:$H$225,4,0)/BQ207","v":32732.680338740945},{"$f":"VLOOKUP(BP207,[3]CHD!$E$16:$L$226,8,0)/BQ207","v":32739.822467095193}]
["99N","E38000206","NHS Wiltshire","South West",{"$f":"VLOOKUP(A208,Lookup!$BJ$3:$BK$226,2,0)","v":"No"},9,"South","5QK",{"$f":"VLOOKUP(A208,Lookup!$BL$3:$BM$226,2,0)","v":"No"},null,null,null,null,null,null,null,null,null,null,null,null,null,null,null,null,null,null,null,null,null,null,null,null,null,null,null,null,null,null,null,null,null,null,null,null,null,null,null,null,null,null,null,null,null,null,null,null,null,null,null,null,{"$f":"HLOOKUP(GraphData!$E$3,'Closest CCG (codes)'!$A$1:$HD$212,'Closest CCG (codes)'!HE207+2,0)","v":"08L"},"No",{"$f":"HLOOKUP(SummaryData!$D$11,'Closest CCG (codes)'!$A$1:$HD$212,'Closest CCG (codes)'!HE207+2,0)","v":"08H"},"No",null,"Not similar","99N",{"$f":"VLOOKUP($BP208,[1]prevlence!$B$3:$F$213,3,0)","v":10.273999999999999},{"$f":"VLOOKUP($BP208,[1]prevlence!$B$3:$F$213,5,0)","v":4.6390000000000002},null,null,null,{"$f":"VLOOKUP(BP208,[2]CCG_AgeSpecificPrevalence!$E$14:$H$225,4,0)/BQ208","v":46231.944714814097},{"$f":"VLOOKUP(BP208,[3]CHD!$E$16:$L$226,8,0)/BQ208","v":46545.649211602104}]
["11C","E38000207","NHS Windsor, Ascot and Maidenhead","Thames",{"$f":"VLOOKUP(A209,Lookup!$BJ$3:$BK$226,2,0)","v":"No"},10,"South","5QG",{"$f":"VLOOKUP(A209,Lookup!$BL$3:$BM$226,2,0)","v":"No"},null,null,null,null,null,null,null,null,null,null,null,null,null,null,null,null,null,null,null,null,null,null,null,null,null,null,null,null,null,null,null,null,null,null,null,null,null,null,null,null,null,null,null,null,null,null,null,null,null,null,null,null,{"$f":"HLOOKUP(GraphData!$E$3,'Closest CCG (codes)'!$A$1:$HD$212,'Closest CCG (codes)'!HE208+2,0)","v":"07T"},"No",{"$f":"HLOOKUP(SummaryData!$D$11,'Closest CCG (codes)'!$A$1:$HD$212,'Closest CCG (codes)'!HE208+2,0)","v":"02W"},"No",null,"Not similar","11C",{"$f":"VLOOKUP($BP209,[1]prevlence!$B$3:$F$213,3,0)","v":8.9779999999999998},{"$f":"VLOOKUP($BP209,[1]prevlence!$B$3:$F$213,5,0)","v":3.7130000000000001},null,null,null,{"$f":"VLOOKUP(BP209,[2]CCG_AgeSpecificPrevalence!$E$14:$H$225,4,0)/BQ209","v":17009.578970817554},{"$f":"VLOOKUP(BP209,[3]CHD!$E$16:$L$226,8,0)/BQ209","v":17058.921808866118}]
["12F","E38000208","NHS Wirral","Cheshire and Merseyside",{"$f":"VLOOKUP(A210,Lookup!$BJ$3:$BK$226,2,0)","v":"No"},3,"North","5NK",{"$f":"VLOOKUP(A210,Lookup!$BL$3:$BM$226,2,0)","v":"No"},null,null,null,null,null,null,null,null,null,null,null,null,null,null,null,null,null,null,null,null,null,null,null,null,null,null,null,null,null,null,null,null,null,null,null,null,null,null,null,null,null,null,null,null,null,null,null,null,null,null,null,null,{"$f":"HLOOKUP(GraphData!$E$3,'Closest CCG (codes)'!$A$1:$HD$212,'Closest CCG (codes)'!HE209+2,0)","v":"08Q"},"No",{"$f":"HLOOKUP(SummaryData!$D$11,'Closest CCG (codes)'!$A$1:$HD$212,'Closest CCG (codes)'!HE209+2,0)","v":"07T"},"No",null,"Not similar","12F",{"$f":"VLOOKUP($BP210,[1]prevlence!$B$3:$F$213,3,0)","v":10.885},{"$f":"VLOOKUP($BP210,[1]prevlence!$B$3:$F$213,5,0)","v":5.8070000000000004},null,null,null,{"$f":"VLOOKUP(BP210,[2]CCG_AgeSpecificPrevalence!$E$14:$H$225,4,0)/BQ210","v":30422.508038585209},{"$f":"VLOOKUP(BP210,[3]CHD!$E$16:$L$226,8,0)/BQ210","v":30529.07671107028}]
["11D","E38000209","NHS Wokingham","Thames",{"$f":"VLOOKUP(A211,Lookup!$BJ$3:$BK$226,2,0)","v":"No"},10,"South","5QF",{"$f":"VLOOKUP(A211,Lookup!$BL$3:$BM$226,2,0)","v":"No"},null,null,null,null,null,null,null,null,null,null,null,null,null,null,null,null,null,null,null,null,null,null,null,null,null,null,null,null,null,null,null,null,null,null,null,null,null,null,null,null,null,null,null,null,null,null,null,null,null,null,null,null,{"$f":"HLOOKUP(GraphData!$E$3,'Closest CCG (codes)'!$A$1:$HD$212,'Closest CCG (codes)'!HE210+2,0)","v":"02W"},"No",{"$f":"HLOOKUP(SummaryData!$D$11,'Closest CCG (codes)'!$A$1:$HD$212,'Closest CCG (codes)'!HE210+2,0)","v":"08M"},"No",null,"Not similar","11D",{"$f":"VLOOKUP($BP211,[1]prevlence!$B$3:$F$213,3,0)","v":8.6489999999999991},{"$f":"VLOOKUP($BP211,[1]prevlence!$B$3:$F$213,5,0)","v":3.395},null,null,null,{"$f":"VLOOKUP(BP211,[2]CCG_AgeSpecificPrevalence!$E$14:$H$225,4,0)/BQ211","v":18028.326974216674},{"$f":"VLOOKUP(BP211,[3]CHD!$E$16:$L$226,8,0)/BQ211","v":18132.963348363974}]
["06A","E38000210","NHS Wolverhampton","West Midlands",{"$f":"VLOOKUP(A212,Lookup!$BJ$3:$BK$226,2,0)","v":"No"},2,"Midlands and East","5MV",{"$f":"VLOOKUP(A212,Lookup!$BL$3:$BM$226,2,0)","v":"No"},null,null,null,null,null,null,null,null,null,null,null,null,null,null,null,null,null,null,null,null,null,null,null,null,null,null,null,null,null,null,null,null,null,null,null,null,null,null,null,null,null,null,null,null,null,null,null,null,null,null,null,null,{"$f":"HLOOKUP(GraphData!$E$3,'Closest CCG (codes)'!$A$1:$HD$212,'Closest CCG (codes)'!HE211+2,0)","v":"08M"},"No",{"$f":"HLOOKUP(SummaryData!$D$11,'Closest CCG (codes)'!$A$1:$HD$212,'Closest CCG (codes)'!HE211+2,0)","v":"08Q"},"No",null,"Not similar","06A",{"$f":"VLOOKUP($BP212,[1]prevlence!$B$3:$F$213,3,0)","v":10.041},{"$f":"VLOOKUP($BP212,[1]prevlence!$B$3:$F$213,5,0)","v":5.726},null,null,null,{"$f":"VLOOKUP(BP212,[2]CCG_AgeSpecificPrevalence!$E$14:$H$225,4,0)/BQ212","v":26196.394781396273},{"$f":"VLOOKUP(BP212,[3]CHD!$E$16:$L$226,8,0)/BQ212","v":26119.510008963251}]
["06D","E38000211","NHS Wyre Forest","West Midlands",{"$f":"VLOOKUP(A213,Lookup!$BJ$3:$BK$226,2,0)","v":"No"},5,"Midlands and East","5PL",{"$f":"VLOOKUP(A213,Lookup!$BL$3:$BM$226,2,0)","v":"No"},null,null,null,null,null,null,null,null,null,null,null,null,null,null,null,null,null,null,null,null,null,null,null,null,null,null,null,null,null,null,null,null,null,null,null,null,null,null,null,null,null,null,null,null,null,null,null,null,null,null,null,null,{"$f":"HLOOKUP(GraphData!$E$3,'Closest CCG (codes)'!$A$1:$HD$212,'Closest CCG (codes)'!HE212+2,0)","v":"08K"},"No",{"$f":"HLOOKUP(SummaryData!$D$11,'Closest CCG (codes)'!$A$1:$HD$212,'Closest CCG (codes)'!HE212+2,0)","v":"08K"},"No",null,"Not similar","06D",{"$f":"VLOOKUP($BP213,[1]prevlence!$B$3:$F$213,3,0)","v":10.959},{"$f":"VLOOKUP($BP213,[1]prevlence!$B$3:$F$213,5,0)","v":5.5960000000000001},null,null,null,{"$f":"VLOOKUP(BP213,[2]CCG_AgeSpecificPrevalence!$E$14:$H$225,4,0)/BQ213","v":10266.082671776623},{"$f":"VLOOKUP(BP213,[3]CHD!$E$16:$L$226,8,0)/BQ213","v":10272.561365088055}]

{"sheet":"DataCost","index":12,"n_rows":216,"n_cols":28,"rows_kept":216,"cut":false,"hidden":true,"merged":[[3,24,3,25],[3,26,3,27],[3,28,3,29],[3,30,3,31],[3,18,3,19],[3,20,3,21],[3,22,3,23],[3,0,3,1],[3,14,3,15],[3,16,3,17],[3,2,3,3],[3,4,3,5],[3,6,3,7],[3,8,3,9],[3,10,3,11],[3,12,3,13]]}
["year selected",{"$f":"IF(A2=1,2,28)","v":2},{"$f":"B1+1","v":3},{"$f":"C1+1","v":4},{"$f":"D1+1","v":5},6,7,8,9,10,11,12,13,14,15,16,17,18,19,20,21,22,23,24,25,26,{"$f":"Z1+1","v":27},{"$f":"AA1+1","v":28}]
[{"$f":"DataOutcome!A1","v":1},null,"Total spend per CVD  person (prescibing data) 2012/13",null,null,null,null,{"$f":"G116/H116","v":32.014852249314401}]
[null,null,"Ind1",null,"Ind2",null,"Ind3",null,"Ind4",null,"Ind5",null,"Ind6",null,"Ind7",null,"Ind8",null,"Ind9",null,"Ind10",null,"Ind11",null,"Ind12",null,"Ind13"]
[null,null,{"$f":"INDEX(Lookup_CostName,MATCH(C$3,Lookup_CostNamedRng,0))","v":"Total spend on prescribing for cardiovascular disease"},null,{"$f":"INDEX(Lookup_CostName,MATCH(E$3,Lookup_CostNamedRng,0))","v":"Spend on lipid regulators"},null,{"$f":"INDEX(Lookup_CostName,MATCH(G$3,Lookup_CostNamedRng,0))","v":"Spend on hypertension and heart failure prescriptions"},null,{"$f":"INDEX(Lookup_CostName,MATCH(I$3,Lookup_CostNamedRng,0))","v":"Spend on nitrates, calcium-channel blockers, and other antianginal drugs"},null,{"$f":"INDEX(Lookup_CostName,MATCH(K$3,Lookup_CostNamedRng,0))","v":"Spend on anticoagulants and protamine"},null,{"$f":"INDEX(Lookup_CostName,MATCH(M$3,Lookup_CostNamedRng,0))","v":"Spend on beta-adrenoceptor blocking drugs"},null,{"$f":"INDEX(Lookup_CostName,MATCH(O$3,Lookup_CostNamedRng,0))","v":"Spend on antiplatelet drugs"},null,{"$f":"INDEX(Lookup_CostName,MATCH(Q$3,Lookup_CostNamedRng,0))","v":"Spend on diuretics"},null,{"$f":"INDEX(Lookup_CostName,MATCH(S$3,Lookup_CostNamedRng,0))","v":"Spend on anti-arrhythmic drugs"},null,{"$f":"INDEX(Lookup_CostName,MATCH(U$3,Lookup_CostNamedRng,0))","v":"Spend on positive inotropic drugs"},null,{"$f":"INDEX(Lookup_CostName,MATCH(W$3,Lookup_CostNamedRng,0))","v":"Spend on antifibrinolytic drugs and haemostatics"},null,{"$f":"INDEX(Lookup_CostName,MATCH(Y$3,Lookup_CostNamedRng,0))","v":"Spend on sympathomimetics"},null,{"$f":"INDEX(Lookup_CostName,MATCH(AA$3,Lookup_CostNamedRng,0))","v":"Average spend per cardiovascular item"}]
["CCG Code","CCGName","Total spend","Persons (Modelled CVD number)","NIC total","Persons (Modelled CVD number)","NIC total","Persons (Modelled CVD number)","Total spend","Persons (Modelled CVD number)","NIC total","Persons (Modelled CVD number)","NIC total","Persons (Modelled CVD number)","NIC total","Persons (Modelled CVD number)","NIC total","Persons (Modelled CVD number)","NIC total","Persons (Modelled CVD number)","NIC total","Persons (Modelled CVD number)","NIC total","Persons (Modelled CVD number)","NIC total","Persons (Modelled CVD number)","NIC total","Persons (Modelled CVD number)"]
["00C","NHS Darlington",{"$f":"VLOOKUP($A6,cost_data!$A$5:$BB$215,C$1,0)","v":2028009.95},{"$f":"VLOOKUP($A6,cost_data!$A$5:$BB$215,D$1,0)","v":10439.230316120165},{"$f":"VLOOKUP($A6,cost_data!$A$5:$BB$215,E$1,0)","v":590590.68000000098},{"$f":"VLOOKUP($A6,cost_data!$A$5:$BB$215,F$1,0)","v":10439.230316120165},{"$f":"VLOOKUP($A6,cost_data!$A$5:$BB$215,G$1,0)","v":443090.18},{"$f":"VLOOKUP($A6,cost_data!$A$5:$BB$215,H$1,0)","v":10439.230316120165},{"$f":"VLOOKUP($A6,cost_data!$A$5:$BB$215,I$1,0)","v":347903.09},{"$f":"VLOOKUP($A6,cost_data!$A$5:$BB$215,J$1,0)","v":10439.230316120165},{"$f":"VLOOKUP($A6,cost_data!$A$5:$BB$215,K$1,0)","v":150952.48000000001},{"$f":"VLOOKUP($A6,cost_data!$A$5:$BB$215,L$1,0)","v":10439.230316120165},{"$f":"VLOOKUP($A6,cost_data!$A$5:$BB$215,M$1,0)","v":168140.49},{"$f":"VLOOKUP($A6,cost_data!$A$5:$BB$215,N$1,0)","v":10439.230316120165},{"$f":"VLOOKUP($A6,cost_data!$A$5:$BB$215,O$1,0)","v":128848.41},{"$f":"VLOOKUP($A6,cost_data!$A$5:$BB$215,P$1,0)","v":10439.230316120165},{"$f":"VLOOKUP($A6,cost_data!$A$5:$BB$215,Q$1,0)","v":153294.57},{"$f":"VLOOKUP($A6,cost_data!$A$5:$BB$215,R$1,0)","v":10439.230316120165},{"$f":"VLOOKUP($A6,cost_data!$A$5:$BB$215,S$1,0)","v":15726.8},{"$f":"VLOOKUP($A6,cost_data!$A$5:$BB$215,T$1,0)","v":10439.230316120165},{"$f":"VLOOKUP($A6,cost_data!$A$5:$BB$215,U$1,0)","v":10143.11},{"$f":"VLOOKUP($A6,cost_data!$A$5:$BB$215,V$1,0)","v":10439.230316120165},{"$f":"VLOOKUP($A6,cost_data!$A$5:$BB$215,W$1,0)","v":7624.14},{"$f":"VLOOKUP($A6,cost_data!$A$5:$BB$215,X$1,0)","v":10439.230316120165},{"$f":"VLOOKUP($A6,cost_data!$A$5:$BB$215,Y$1,0)","v":11696},{"$f":"VLOOKUP($A6,cost_data!$A$5:$BB$215,Z$1,0)","v":10439.230316120165},{"$f":"VLOOKUP($A6,cost_data!$A$5:$BB$215,AA$1,0)","v":2028009.95},{"$f":"VLOOKUP($A6,cost_data!$A$5:$BB$215,AB$1,0)","v":703279}]
["00D","NHS Durham Dales, Easington and Sedgefield",{"$f":"VLOOKUP($A7,cost_data!$A$5:$BB$215,C$1,0)","v":6839083.76000001},{"$f":"VLOOKUP($A7,cost_data!$A$5:$BB$215,D$1,0)","v":26268.090154211153},{"$f":"VLOOKUP($A7,cost_data!$A$5:$BB$215,E$1,0)","v":2070388.8299999801},{"$f":"VLOOKUP($A7,cost_data!$A$5:$BB$215,F$1,0)","v":26268.090154211153},{"$f":"VLOOKUP($A7,cost_data!$A$5:$BB$215,G$1,0)","v":1349187.41},{"$f":"VLOOKUP($A7,cost_data!$A$5:$BB$215,H$1,0)","v":26268.090154211153},{"$f":"VLOOKUP($A7,cost_data!$A$5:$BB$215,I$1,0)","v":1376301.28},{"$f":"VLOOKUP($A7,cost_data!$A$5:$BB$215,J$1,0)","v":26268.090154211153},{"$f":"VLOOKUP($A7,cost_data!$A$5:$BB$215,K$1,0)","v":465059.429999999},{"$f":"VLOOKUP($A7,cost_data!$A$5:$BB$215,L$1,0)","v":26268.090154211153},{"$f":"VLOOKUP($A7,cost_data!$A$5:$BB$215,M$1,0)","v":550620.21000000404},{"$f":"VLOOKUP($A7,cost_data!$A$5:$BB$215,N$1,0)","v":26268.090154211153},{"$f":"VLOOKUP($A7,cost_data!$A$5:$BB$215,O$1,0)","v":507643.19999999902},{"$f":"VLOOKUP($A7,cost_data!$A$5:$BB$215,P$1,0)","v":26268.090154211153},{"$f":"VLOOKUP($A7,cost_data!$A$5:$BB$215,Q$1,0)","v":405127.56999999902},{"$f":"VLOOKUP($A7,cost_data!$A$5:$BB$215,R$1,0)","v":26268.090154211153},{"$f":"VLOOKUP($A7,cost_data!$A$5:$BB$215,S$1,0)","v":49508.099999999897},{"$f":"VLOOKUP($A7,cost_data!$A$5:$BB$215,T$1,0)","v":26268.090154211153},{"$f":"VLOOKUP($A7,cost_data!$A$5:$BB$215,U$1,0)","v":28494.41},{"$f":"VLOOKUP($A7,cost_data!$A$5:$BB$215,V$1,0)","v":26268.090154211153},{"$f":"VLOOKUP($A7,cost_data!$A$5:$BB$215,W$1,0)","v":27501.98},{"$f":"VLOOKUP($A7,cost_data!$A$5:$BB$215,X$1,0)","v":26268.090154211153},{"$f":"VLOOKUP($A7,cost_data!$A$5:$BB$215,Y$1,0)","v":9251.34},{"$f":"VLOOKUP($A7,cost_data!$A$5:$BB$215,Z$1,0)","v":26268.090154211153},{"$f":"VLOOKUP($A7,cost_data!$A$5:$BB$215,AA$1,0)","v":6839083.76000001},{"$f":"VLOOKUP($A7,cost_data!$A$5:$BB$215,AB$1,0)","v":2487796}]
["00F","NHS Gateshead",{"$f":"VLOOKUP($A8,cost_data!$A$5:$BB$215,C$1,0)","v":4425509.58},{"$f":"VLOOKUP($A8,cost_data!$A$5:$BB$215,D$1,0)","v":19309.031352363127},{"$f":"VLOOKUP($A8,cost_data!$A$5:$BB$215,E$1,0)","v":1228705.29},{"$f":"VLOOKUP($A8,cost_data!$A$5:$BB$215,F$1,0)","v":19309.031352363127},{"$f":"VLOOKUP($A8,cost_data!$A$5:$BB$215,G$1,0)","v":1008643.82},{"$f":"VLOOKUP($A8,cost_data!$A$5:$BB$215,H$1,0)","v":19309.031352363127},{"$f":"VLOOKUP($A8,cost_data!$A$5:$BB$215,I$1,0)","v":778940.09},{"$f":"VLOOKUP($A8,cost_data!$A$5:$BB$215,J$1,0)","v":19309.031352363127},{"$f":"VLOOKUP($A8,cost_data!$A$5:$BB$215,K$1,0)","v":468855.23000000097},{"$f":"VLOOKUP($A8,cost_data!$A$5:$BB$215,L$1,0)","v":19309.031352363127},{"$f":"VLOOKUP($A8,cost_data!$A$5:$BB$215,M$1,0)","v":265839.94000000099},{"$f":"VLOOKUP($A8,cost_data!$A$5:$BB$215,N$1,0)","v":19309.031352363127},{"$f":"VLOOKUP($A8,cost_data!$A$5:$BB$215,O$1,0)","v":338538.52999999898},{"$f":"VLOOKUP($A8,cost_data!$A$5:$BB$215,P$1,0)","v":19309.031352363127},{"$f":"VLOOKUP($A8,cost_data!$A$5:$BB$215,Q$1,0)","v":237338.200000001},{"$f":"VLOOKUP($A8,cost_data!$A$5:$BB$215,R$1,0)","v":19309.031352363127},{"$f":"VLOOKUP($A8,cost_data!$A$5:$BB$215,S$1,0)","v":31288.44},{"$f":"VLOOKUP($A8,cost_data!$A$5:$BB$215,T$1,0)","v":19309.031352363127},{"$f":"VLOOKUP($A8,cost_data!$A$5:$BB$215,U$1,0)","v":20320.52},{"$f":"VLOOKUP($A8,cost_data!$A$5:$BB$215,V$1,0)","v":19309.031352363127},{"$f":"VLOOKUP($A8,cost_data!$A$5:$BB$215,W$1,0)","v":22886.38},{"$f":"VLOOKUP($A8,cost_data!$A$5:$BB$215,X$1,0)","v":19309.031352363127},{"$f":"VLOOKUP($A8,cost_data!$A$5:$BB$215,Y$1,0)","v":24153.14},{"$f":"VLOOKUP($A8,cost_data!$A$5:$BB$215,Z$1,0)","v":19309.031352363127},{"$f":"VLOOKUP($A8,cost_data!$A$5:$BB$215,AA$1,0)","v":4425509.58},{"$f":"VLOOKUP($A8,cost_data!$A$5:$BB$215,AB$1,0)","v":1492440}]
["00G","NHS Newcastle North and East",{"$f":"VLOOKUP($A9,cost_data!$A$5:$BB$215,C$1,0)","v":2367175.29},{"$f":"VLOOKUP($A9,cost_data!$A$5:$BB$215,D$1,0)","v":18564.917291443529},{"$f":"VLOOKUP($A9,cost_data!$A$5:$BB$215,E$1,0)","v":729886.54999999795},{"$f":"VLOOKUP($A9,cost_data!$A$5:$BB$215,F$1,0)","v":18564.917291443529},{"$f":"VLOOKUP($A9,cost_data!$A$5:$BB$215,G$1,0)","v":496466.65},{"$f":"VLOOKUP($A9,cost_data!$A$5:$BB$215,H$1,0)","v":18564.917291443529},{"$f":"VLOOKUP($A9,cost_data!$A$5:$BB$215,I$1,0)","v":431440.94999999902},{"$f":"VLOOKUP($A9,cost_data!$A$5:$BB$215,J$1,0)","v":18564.917291443529},{"$f":"VLOOKUP($A9,cost_data!$A$5:$BB$215,K$1,0)","v":210584.32000000001},{"$f":"VLOOKUP($A9,cost_data!$A$5:$BB$215,L$1,0)","v":18564.917291443529},{"$f":"VLOOKUP($A9,cost_data!$A$5:$BB$215,M$1,0)","v":153107.51999999999},{"$f":"VLOOKUP($A9,cost_data!$A$5:$BB$215,N$1,0)","v":18564.917291443529},{"$f":"VLOOKUP($A9,cost_data!$A$5:$BB$215,O$1,0)","v":177818.19},{"$f":"VLOOKUP($A9,cost_data!$A$5:$BB$215,P$1,0)","v":18564.917291443529},{"$f":"VLOOKUP($A9,cost_data!$A$5:$BB$215,Q$1,0)","v":137753.81},{"$f":"VLOOKUP($A9,cost_data!$A$5:$BB$215,R$1,0)","v":18564.917291443529},{"$f":"VLOOKUP($A9,cost_data!$A$5:$BB$215,S$1,0)","v":6572.1400000000103},{"$f":"VLOOKUP($A9,cost_data!$A$5:$BB$215,T$1,0)","v":18564.917291443529},{"$f":"VLOOKUP($A9,cost_data!$A$5:$BB$215,U$1,0)","v":10699.98},{"$f":"VLOOKUP($A9,cost_data!$A$5:$BB$215,V$1,0)","v":18564.917291443529},{"$f":"VLOOKUP($A9,cost_data!$A$5:$BB$215,W$1,0)","v":10366.629999999999},{"$f":"VLOOKUP($A9,cost_data!$A$5:$BB$215,X$1,0)","v":18564.917291443529},{"$f":"VLOOKUP($A9,cost_data!$A$5:$BB$215,Y$1,0)","v":2478.5500000000002},{"$f":"VLOOKUP($A9,cost_data!$A$5:$BB$215,Z$1,0)","v":18564.917291443529},{"$f":"VLOOKUP($A9,cost_data!$A$5:$BB$215,AA$1,0)","v":2367175.29},{"$f":"VLOOKUP($A9,cost_data!$A$5:$BB$215,AB$1,0)","v":827315}]
["00H","NHS Newcastle West",{"$f":"VLOOKUP($A10,cost_data!$A$5:$BB$215,C$1,0)","v":2442138.6800000002},{"$f":"VLOOKUP($A10,cost_data!$A$5:$BB$215,D$1,0)","v":13433.462007314101},{"$f":"VLOOKUP($A10,cost_data!$A$5:$BB$215,E$1,0)","v":769436.44999999797},{"$f":"VLOOKUP($A10,cost_data!$A$5:$BB$215,F$1,0)","v":13433.462007314101},{"$f":"VLOOKUP($A10,cost_data!$A$5:$BB$215,G$1,0)","v":480518.46},{"$f":"VLOOKUP($A10,cost_data!$A$5:$BB$215,H$1,0)","v":13433.462007314101},{"$f":"VLOOKUP($A10,cost_data!$A$5:$BB$215,I$1,0)","v":432250.76},{"$f":"VLOOKUP($A10,cost_data!$A$5:$BB$215,J$1,0)","v":13433.462007314101},{"$f":"VLOOKUP($A10,cost_data!$A$5:$BB$215,K$1,0)","v":218699.5},{"$f":"VLOOKUP($A10,cost_data!$A$5:$BB$215,L$1,0)","v":13433.462007314101},{"$f":"VLOOKUP($A10,cost_data!$A$5:$BB$215,M$1,0)","v":158368.85},{"$f":"VLOOKUP($A10,cost_data!$A$5:$BB$215,N$1,0)","v":13433.462007314101},{"$f":"VLOOKUP($A10,cost_data!$A$5:$BB$215,O$1,0)","v":213870.94},{"$f":"VLOOKUP($A10,cost_data!$A$5:$BB$215,P$1,0)","v":13433.462007314101},{"$f":"VLOOKUP($A10,cost_data!$A$5:$BB$215,Q$1,0)","v":135495.64000000001},{"$f":"VLOOKUP($A10,cost_data!$A$5:$BB$215,R$1,0)","v":13433.462007314101},{"$f":"VLOOKUP($A10,cost_data!$A$5:$BB$215,S$1,0)","v":9900.6300000000101},{"$f":"VLOOKUP($A10,cost_data!$A$5:$BB$215,T$1,0)","v":13433.462007314101},{"$f":"VLOOKUP($A10,cost_data!$A$5:$BB$215,U$1,0)","v":10978.29},{"$f":"VLOOKUP($A10,cost_data!$A$5:$BB$215,V$1,0)","v":13433.462007314101},{"$f":"VLOOKUP($A10,cost_data!$A$5:$BB$215,W$1,0)","v":9719.7099999999991},{"$f":"VLOOKUP($A10,cost_data!$A$5:$BB$215,X$1,0)","v":13433.462007314101},{"$f":"VLOOKUP($A10,cost_data!$A$5:$BB$215,Y$1,0)","v":2899.45},{"$f":"VLOOKUP($A10,cost_data!$A$5:$BB$215,Z$1,0)","v":13433.462007314101},{"$f":"VLOOKUP($A10,cost_data!$A$5:$BB$215,AA$1,0)","v":2442138.6800000002},{"$f":"VLOOKUP($A10,cost_data!$A$5:$BB$215,AB$1,0)","v":929869}]
["00J","NHS North Durham",{"$f":"VLOOKUP($A11,cost_data!$A$5:$BB$215,C$1,0)","v":5076173.33},{"$f":"VLOOKUP($A11,cost_data!$A$5:$BB$215,D$1,0)","v":25705.864229228715},{"$f":"VLOOKUP($A11,cost_data!$A$5:$BB$215,E$1,0)","v":1534571.65},{"$f":"VLOOKUP($A11,cost_data!$A$5:$BB$215,F$1,0)","v":25705.864229228715},{"$f":"VLOOKUP($A11,cost_data!$A$5:$BB$215,G$1,0)","v":1112097.3700000001},{"$f":"VLOOKUP($A11,cost_data!$A$5:$BB$215,H$1,0)","v":25705.864229228715},{"$f":"VLOOKUP($A11,cost_data!$A$5:$BB$215,I$1,0)","v":921051.20999999903},{"$f":"VLOOKUP($A11,cost_data!$A$5:$BB$215,J$1,0)","v":25705.864229228715},{"$f":"VLOOKUP($A11,cost_data!$A$5:$BB$215,K$1,0)","v":381947.21},{"$f":"VLOOKUP($A11,cost_data!$A$5:$BB$215,L$1,0)","v":25705.864229228715},{"$f":"VLOOKUP($A11,cost_data!$A$5:$BB$215,M$1,0)","v":356121.36000000202},{"$f":"VLOOKUP($A11,cost_data!$A$5:$BB$215,N$1,0)","v":25705.864229228715},{"$f":"VLOOKUP($A11,cost_data!$A$5:$BB$215,O$1,0)","v":406796.80999999802},{"$f":"VLOOKUP($A11,cost_data!$A$5:$BB$215,P$1,0)","v":25705.864229228715},{"$f":"VLOOKUP($A11,cost_data!$A$5:$BB$215,Q$1,0)","v":267789.36},{"$f":"VLOOKUP($A11,cost_data!$A$5:$BB$215,R$1,0)","v":25705.864229228715},{"$f":"VLOOKUP($A11,cost_data!$A$5:$BB$215,S$1,0)","v":40894.229999999901},{"$f":"VLOOKUP($A11,cost_data!$A$5:$BB$215,T$1,0)","v":25705.864229228715},{"$f":"VLOOKUP($A11,cost_data!$A$5:$BB$215,U$1,0)","v":22881.9},{"$f":"VLOOKUP($A11,cost_data!$A$5:$BB$215,V$1,0)","v":25705.864229228715},{"$f":"VLOOKUP($A11,cost_data!$A$5:$BB$215,W$1,0)","v":22773.119999999999},{"$f":"VLOOKUP($A11,cost_data!$A$5:$BB$215,X$1,0)","v":25705.864229228715},{"$f":"VLOOKUP($A11,cost_data!$A$5:$BB$215,Y$1,0)","v":9249.11},{"$f":"VLOOKUP($A11,cost_data!$A$5:$BB$215,Z$1,0)","v":25705.864229228715},{"$f":"VLOOKUP($A11,cost_data!$A$5:$BB$215,AA$1,0)","v":5076173.33},{"$f":"VLOOKUP($A11,cost_data!$A$5:$BB$215,AB$1,0)","v":1689017}]
["00K","NHS Hartlepool and Stockton-On-Tees",{"$f":"VLOOKUP($A12,cost_data!$A$5:$BB$215,C$1,0)","v":5801824.8899999997},{"$f":"VLOOKUP($A12,cost_data!$A$5:$BB$215,D$1,0)","v":29453.966005665723},{"$f":"VLOOKUP($A12,cost_data!$A$5:$BB$215,E$1,0)","v":1593313.39},{"$f":"VLOOKUP($A12,cost_data!$A$5:$BB$215,F$1,0)","v":29453.966005665723},{"$f":"VLOOKUP($A12,cost_data!$A$5:$BB$215,G$1,0)","v":1136888.69},{"$f":"VLOOKUP($A12,cost_data!$A$5:$BB$215,H$1,0)","v":29453.966005665723},{"$f":"VLOOKUP($A12,cost_data!$A$5:$BB$215,I$1,0)","v":1226387.7},{"$f":"VLOOKUP($A12,cost_data!$A$5:$BB$215,J$1,0)","v":29453.966005665723},{"$f":"VLOOKUP($A12,cost_data!$A$5:$BB$215,K$1,0)","v":542360.68000000005},{"$f":"VLOOKUP($A12,cost_data!$A$5:$BB$215,L$1,0)","v":29453.966005665723},{"$f":"VLOOKUP($A12,cost_data!$A$5:$BB$215,M$1,0)","v":473062.22000000498},{"$f":"VLOOKUP($A12,cost_data!$A$5:$BB$215,N$1,0)","v":29453.966005665723},{"$f":"VLOOKUP($A12,cost_data!$A$5:$BB$215,O$1,0)","v":416910.18},{"$f":"VLOOKUP($A12,cost_data!$A$5:$BB$215,P$1,0)","v":29453.966005665723},{"$f":"VLOOKUP($A12,cost_data!$A$5:$BB$215,Q$1,0)","v":331747.39},{"$f":"VLOOKUP($A12,cost_data!$A$5:$BB$215,R$1,0)","v":29453.966005665723},{"$f":"VLOOKUP($A12,cost_data!$A$5:$BB$215,S$1,0)","v":29176.2},{"$f":"VLOOKUP($A12,cost_data!$A$5:$BB$215,T$1,0)","v":29453.966005665723},{"$f":"VLOOKUP($A12,cost_data!$A$5:$BB$215,U$1,0)","v":27261.959999999901},{"$f":"VLOOKUP($A12,cost_data!$A$5:$BB$215,V$1,0)","v":29453.966005665723},{"$f":"VLOOKUP($A12,cost_data!$A$5:$BB$215,W$1,0)","v":22431.89},{"$f":"VLOOKUP($A12,cost_data!$A$5:$BB$215,X$1,0)","v":29453.966005665723},{"$f":"VLOOKUP($A12,cost_data!$A$5:$BB$215,Y$1,0)","v":2284.59},{"$f":"VLOOKUP($A12,cost_data!$A$5:$BB$215,Z$1,0)","v":29453.966005665723},{"$f":"VLOOKUP($A12,cost_data!$A$5:$BB$215,AA$1,0)","v":5801824.8899999997},{"$f":"VLOOKUP($A12,cost_data!$A$5:$BB$215,AB$1,0)","v":1737851}]
["00L","NHS Northumberland",{"$f":"VLOOKUP($A13,cost_data!$A$5:$BB$215,C$1,0)","v":7763267.0300000003},{"$f":"VLOOKUP($A13,cost_data!$A$5:$BB$215,D$1,0)","v":29405.995795631112},{"$f":"VLOOKUP($A13,cost_data!$A$5:$BB$215,E$1,0)","v":2060897.5300000201},{"$f":"VLOOKUP($A13,cost_data!$A$5:$BB$215,F$1,0)","v":29405.995795631112},{"$f":"VLOOKUP($A13,cost_data!$A$5:$BB$215,G$1,0)","v":1696953.11},{"$f":"VLOOKUP($A13,cost_data!$A$5:$BB$215,H$1,0)","v":29405.995795631112},{"$f":"VLOOKUP($A13,cost_data!$A$5:$BB$215,I$1,0)","v":1658903.22},{"$f":"VLOOKUP($A13,cost_data!$A$5:$BB$215,J$1,0)","v":29405.995795631112},{"$f":"VLOOKUP($A13,cost_data!$A$5:$BB$215,K$1,0)","v":829229.77000000596},{"$f":"VLOOKUP($A13,cost_data!$A$5:$BB$215,L$1,0)","v":29405.995795631112},{"$f":"VLOOKUP($A13,cost_data!$A$5:$BB$215,M$1,0)","v":517929.65},{"$f":"VLOOKUP($A13,cost_data!$A$5:$BB$215,N$1,0)","v":29405.995795631112},{"$f":"VLOOKUP($A13,cost_data!$A$5:$BB$215,O$1,0)","v":487331.03999999602},{"$f":"VLOOKUP($A13,cost_data!$A$5:$BB$215,P$1,0)","v":29405.995795631112},{"$f":"VLOOKUP($A13,cost_data!$A$5:$BB$215,Q$1,0)","v":387023.05999999802},{"$f":"VLOOKUP($A13,cost_data!$A$5:$BB$215,R$1,0)","v":29405.995795631112},{"$f":"VLOOKUP($A13,cost_data!$A$5:$BB$215,S$1,0)","v":45480.579999999798},{"$f":"VLOOKUP($A13,cost_data!$A$5:$BB$215,T$1,0)","v":29405.995795631112},{"$f":"VLOOKUP($A13,cost_data!$A$5:$BB$215,U$1,0)","v":41461.369999999901},{"$f":"VLOOKUP($A13,cost_data!$A$5:$BB$215,V$1,0)","v":29405.995795631112},{"$f":"VLOOKUP($A13,cost_data!$A$5:$BB$215,W$1,0)","v":26312.43},{"$f":"VLOOKUP($A13,cost_data!$A$5:$BB$215,X$1,0)","v":29405.995795631112},{"$f":"VLOOKUP($A13,cost_data!$A$5:$BB$215,Y$1,0)","v":11745.27},{"$f":"VLOOKUP($A13,cost_data!$A$5:$BB$215,Z$1,0)","v":29405.995795631112},{"$f":"VLOOKUP($A13,cost_data!$A$5:$BB$215,AA$1,0)","v":7763267.0300000003},{"$f":"VLOOKUP($A13,cost_data!$A$5:$BB$215,AB$1,0)","v":2504494}]
["00M","NHS South Tees",{"$f":"VLOOKUP($A14,cost_data!$A$5:$BB$215,C$1,0)","v":6072586.2900000103},{"$f":"VLOOKUP($A14,cost_data!$A$5:$BB$215,D$1,0)","v":28326.808842146263},{"$f":"VLOOKUP($A14,cost_data!$A$5:$BB$215,E$1,0)","v":1550035.8300000101},{"$f":"VLOOKUP($A14,cost_data!$A$5:$BB$215,F$1,0)","v":28326.808842146263},{"$f":"VLOOKUP($A14,cost_data!$A$5:$BB$215,G$1,0)","v":1074729.93},{"$f":"VLOOKUP($A14,cost_data!$A$5:$BB$215,H$1,0)","v":28326.808842146263},{"$f":"VLOOKUP($A14,cost_data!$A$5:$BB$215,I$1,0)","v":1222091.3400000001},{"$f":"VLOOKUP($A14,cost_data!$A$5:$BB$215,J$1,0)","v":28326.808842146263},{"$f":"VLOOKUP($A14,cost_data!$A$5:$BB$215,K$1,0)","v":775756.09000000404},{"$f":"VLOOKUP($A14,cost_data!$A$5:$BB$215,L$1,0)","v":28326.808842146263},{"$f":"VLOOKUP($A14,cost_data!$A$5:$BB$215,M$1,0)","v":489292.87000000401},{"$f":"VLOOKUP($A14,cost_data!$A$5:$BB$215,N$1,0)","v":28326.808842146263},{"$f":"VLOOKUP($A14,cost_data!$A$5:$BB$215,O$1,0)","v":483910.40999999898},{"$f":"VLOOKUP($A14,cost_data!$A$5:$BB$215,P$1,0)","v":28326.808842146263},{"$f":"VLOOKUP($A14,cost_data!$A$5:$BB$215,Q$1,0)","v":379232.58999999601},{"$f":"VLOOKUP($A14,cost_data!$A$5:$BB$215,R$1,0)","v":28326.808842146263},{"$f":"VLOOKUP($A14,cost_data!$A$5:$BB$215,S$1,0)","v":39800.309999999903},{"$f":"VLOOKUP($A14,cost_data!$A$5:$BB$215,T$1,0)","v":28326.808842146263},{"$f":"VLOOKUP($A14,cost_data!$A$5:$BB$215,U$1,0)","v":22260.82},{"$f":"VLOOKUP($A14,cost_data!$A$5:$BB$215,V$1,0)","v":28326.808842146263},{"$f":"VLOOKUP($A14,cost_data!$A$5:$BB$215,W$1,0)","v":28216.78},{"$f":"VLOOKUP($A14,cost_data!$A$5:$BB$215,X$1,0)","v":28326.808842146263},{"$f":"VLOOKUP($A14,cost_data!$A$5:$BB$215,Y$1,0)","v":7259.32},{"$f":"VLOOKUP($A14,cost_data!$A$5:$BB$215,Z$1,0)","v":28326.808842146263},{"$f":"VLOOKUP($A14,cost_data!$A$5:$BB$215,AA$1,0)","v":6072586.2900000103},{"$f":"VLOOKUP($A14,cost_data!$A$5:$BB$215,AB$1,0)","v":2009185}]
["00N","NHS South Tyneside",{"$f":"VLOOKUP($A15,cost_data!$A$5:$BB$215,C$1,0)","v":3512930.89},{"$f":"VLOOKUP($A15,cost_data!$A$5:$BB$215,D$1,0)","v":15038.450306629027},{"$f":"VLOOKUP($A15,cost_data!$A$5:$BB$215,E$1,0)","v":1125673.3400000001},{"$f":"VLOOKUP($A15,cost_data!$A$5:$BB$215,F$1,0)","v":15038.450306629027},{"$f":"VLOOKUP($A15,cost_data!$A$5:$BB$215,G$1,0)","v":759703.36},{"$f":"VLOOKUP($A15,cost_data!$A$5:$BB$215,H$1,0)","v":15038.450306629027},{"$f":"VLOOKUP($A15,cost_data!$A$5:$BB$215,I$1,0)","v":626196.34},{"$f":"VLOOKUP($A15,cost_data!$A$5:$BB$215,J$1,0)","v":15038.450306629027},{"$f":"VLOOKUP($A15,cost_data!$A$5:$BB$215,K$1,0)","v":273316.109999999},{"$f":"VLOOKUP($A15,cost_data!$A$5:$BB$215,L$1,0)","v":15038.450306629027},{"$f":"VLOOKUP($A15,cost_data!$A$5:$BB$215,M$1,0)","v":250864.27},{"$f":"VLOOKUP($A15,cost_data!$A$5:$BB$215,N$1,0)","v":15038.450306629027},{"$f":"VLOOKUP($A15,cost_data!$A$5:$BB$215,O$1,0)","v":250743.32},{"$f":"VLOOKUP($A15,cost_data!$A$5:$BB$215,P$1,0)","v":15038.450306629027},{"$f":"VLOOKUP($A15,cost_data!$A$5:$BB$215,Q$1,0)","v":181473.09},{"$f":"VLOOKUP($A15,cost_data!$A$5:$BB$215,R$1,0)","v":15038.450306629027},{"$f":"VLOOKUP($A15,cost_data!$A$5:$BB$215,S$1,0)","v":15718.78},{"$f":"VLOOKUP($A15,cost_data!$A$5:$BB$215,T$1,0)","v":15038.450306629027},{"$f":"VLOOKUP($A15,cost_data!$A$5:$BB$215,U$1,0)","v":15159.56},{"$f":"VLOOKUP($A15,cost_data!$A$5:$BB$215,V$1,0)","v":15038.450306629027},{"$f":"VLOOKUP($A15,cost_data!$A$5:$BB$215,W$1,0)","v":14034.94},{"$f":"VLOOKUP($A15,cost_data!$A$5:$BB$215,X$1,0)","v":15038.450306629027},{"$f":"VLOOKUP($A15,cost_data!$A$5:$BB$215,Y$1,0)","v":47.78},{"$f":"VLOOKUP($A15,cost_data!$A$5:$BB$215,Z$1,0)","v":15038.450306629027},{"$f":"VLOOKUP($A15,cost_data!$A$5:$BB$215,AA$1,0)","v":3512930.89},{"$f":"VLOOKUP($A15,cost_data!$A$5:$BB$215,AB$1,0)","v":1148492}]
["00P","NHS Sunderland",{"$f":"VLOOKUP($A16,cost_data!$A$5:$BB$215,C$1,0)","v":6879664.7000000104},{"$f":"VLOOKUP($A16,cost_data!$A$5:$BB$215,D$1,0)","v":27647.287954036419},{"$f":"VLOOKUP($A16,cost_data!$A$5:$BB$215,E$1,0)","v":2180057.4500000002},{"$f":"VLOOKUP($A16,cost_data!$A$5:$BB$215,F$1,0)","v":27647.287954036419},{"$f":"VLOOKUP($A16,cost_data!$A$5:$BB$215,G$1,0)","v":1682533.09},{"$f":"VLOOKUP($A16,cost_data!$A$5:$BB$215,H$1,0)","v":27647.287954036419},{"$f":"VLOOKUP($A16,cost_data!$A$5:$BB$215,I$1,0)","v":1130876.8899999999},{"$f":"VLOOKUP($A16,cost_data!$A$5:$BB$215,J$1,0)","v":27647.287954036419},{"$f":"VLOOKUP($A16,cost_data!$A$5:$BB$215,K$1,0)","v":386045.37999999902},{"$f":"VLOOKUP($A16,cost_data!$A$5:$BB$215,L$1,0)","v":27647.287954036419},{"$f":"VLOOKUP($A16,cost_data!$A$5:$BB$215,M$1,0)","v":537912.82000000204},{"$f":"VLOOKUP($A16,cost_data!$A$5:$BB$215,N$1,0)","v":27647.287954036419},{"$f":"VLOOKUP($A16,cost_data!$A$5:$BB$215,O$1,0)","v":521119.44999999902},{"$f":"VLOOKUP($A16,cost_data!$A$5:$BB$215,P$1,0)","v":27647.287954036419},{"$f":"VLOOKUP($A16,cost_data!$A$5:$BB$215,Q$1,0)","v":344149.14999999898},{"$f":"VLOOKUP($A16,cost_data!$A$5:$BB$215,R$1,0)","v":27647.287954036419},{"$f":"VLOOKUP($A16,cost_data!$A$5:$BB$215,S$1,0)","v":28367.02},{"$f":"VLOOKUP($A16,cost_data!$A$5:$BB$215,T$1,0)","v":27647.287954036419},{"$f":"VLOOKUP($A16,cost_data!$A$5:$BB$215,U$1,0)","v":24448.529999999901},{"$f":"VLOOKUP($A16,cost_data!$A$5:$BB$215,V$1,0)","v":27647.287954036419},{"$f":"VLOOKUP($A16,cost_data!$A$5:$BB$215,W$1,0)","v":35841.640000000101},{"$f":"VLOOKUP($A16,cost_data!$A$5:$BB$215,X$1,0)","v":27647.287954036419},{"$f":"VLOOKUP($A16,cost_data!$A$5:$BB$215,Y$1,0)","v":8313.2800000000007},{"$f":"VLOOKUP($A16,cost_data!$A$5:$BB$215,Z$1,0)","v":27647.287954036419},{"$f":"VLOOKUP($A16,cost_data!$A$5:$BB$215,AA$1,0)","v":6879664.7000000104},{"$f":"VLOOKUP($A16,cost_data!$A$5:$BB$215,AB$1,0)","v":2386750}]
["00Q","NHS Blackburn with Darwen",{"$f":"VLOOKUP($A17,cost_data!$A$5:$BB$215,C$1,0)","v":3032099.3},{"$f":"VLOOKUP($A17,cost_data!$A$5:$BB$215,D$1,0)","v":19294.88785153137},{"$f":"VLOOKUP($A17,cost_data!$A$5:$BB$215,E$1,0)","v":819805.16999999795},{"$f":"VLOOKUP($A17,cost_data!$A$5:$BB$215,F$1,0)","v":19294.88785153137},{"$f":"VLOOKUP($A17,cost_data!$A$5:$BB$215,G$1,0)","v":747451.32},{"$f":"VLOOKUP($A17,cost_data!$A$5:$BB$215,H$1,0)","v":19294.88785153137},{"$f":"VLOOKUP($A17,cost_data!$A$5:$BB$215,I$1,0)","v":657759.34},{"$f":"VLOOKUP($A17,cost_data!$A$5:$BB$215,J$1,0)","v":19294.88785153137},{"$f":"VLOOKUP($A17,cost_data!$A$5:$BB$215,K$1,0)","v":149560.18},{"$f":"VLOOKUP($A17,cost_data!$A$5:$BB$215,L$1,0)","v":19294.88785153137},{"$f":"VLOOKUP($A17,cost_data!$A$5:$BB$215,M$1,0)","v":226150.19},{"$f":"VLOOKUP($A17,cost_data!$A$5:$BB$215,N$1,0)","v":19294.88785153137},{"$f":"VLOOKUP($A17,cost_data!$A$5:$BB$215,O$1,0)","v":215286.639999999},{"$f":"VLOOKUP($A17,cost_data!$A$5:$BB$215,P$1,0)","v":19294.88785153137},{"$f":"VLOOKUP($A17,cost_data!$A$5:$BB$215,Q$1,0)","v":164937.48000000001},{"$f":"VLOOKUP($A17,cost_data!$A$5:$BB$215,R$1,0)","v":19294.88785153137},{"$f":"VLOOKUP($A17,cost_data!$A$5:$BB$215,S$1,0)","v":27075.1},{"$f":"VLOOKUP($A17,cost_data!$A$5:$BB$215,T$1,0)","v":19294.88785153137},{"$f":"VLOOKUP($A17,cost_data!$A$5:$BB$215,U$1,0)","v":11623.03},{"$f":"VLOOKUP($A17,cost_data!$A$5:$BB$215,V$1,0)","v":19294.88785153137},{"$f":"VLOOKUP($A17,cost_data!$A$5:$BB$215,W$1,0)","v":10037.25},{"$f":"VLOOKUP($A17,cost_data!$A$5:$BB$215,X$1,0)","v":19294.88785153137},{"$f":"VLOOKUP($A17,cost_data!$A$5:$BB$215,Y$1,0)","v":2413.6},{"$f":"VLOOKUP($A17,cost_data!$A$5:$BB$215,Z$1,0)","v":19294.88785153137},{"$f":"VLOOKUP($A17,cost_data!$A$5:$BB$215,AA$1,0)","v":3032099.3},{"$f":"VLOOKUP($A17,cost_data!$A$5:$BB$215,AB$1,0)","v":965782}]
["00R","NHS Blackpool",{"$f":"VLOOKUP($A18,cost_data!$A$5:$BB$215,C$1,0)","v":3948247.06},{"$f":"VLOOKUP($A18,cost_data!$A$5:$BB$215,D$1,0)","v":14943.954333160355},{"$f":"VLOOKUP($A18,cost_data!$A$5:$BB$215,E$1,0)","v":1075634.06},{"$f":"VLOOKUP($A18,cost_data!$A$5:$BB$215,F$1,0)","v":14943.954333160355},{"$f":"VLOOKUP($A18,cost_data!$A$5:$BB$215,G$1,0)","v":891729.27999999898},{"$f":"VLOOKUP($A18,cost_data!$A$5:$BB$215,H$1,0)","v":14943.954333160355},{"$f":"VLOOKUP($A18,cost_data!$A$5:$BB$215,I$1,0)","v":787271.35},{"$f":"VLOOKUP($A18,cost_data!$A$5:$BB$215,J$1,0)","v":14943.954333160355},{"$f":"VLOOKUP($A18,cost_data!$A$5:$BB$215,K$1,0)","v":240181.24},{"$f":"VLOOKUP($A18,cost_data!$A$5:$BB$215,L$1,0)","v":14943.954333160355},{"$f":"VLOOKUP($A18,cost_data!$A$5:$BB$215,M$1,0)","v":359145.070000001},{"$f":"VLOOKUP($A18,cost_data!$A$5:$BB$215,N$1,0)","v":14943.954333160355},{"$f":"VLOOKUP($A18,cost_data!$A$5:$BB$215,O$1,0)","v":299526.95999999897},{"$f":"VLOOKUP($A18,cost_data!$A$5:$BB$215,P$1,0)","v":14943.954333160355},{"$f":"VLOOKUP($A18,cost_data!$A$5:$BB$215,Q$1,0)","v":235292.16999999899},{"$f":"VLOOKUP($A18,cost_data!$A$5:$BB$215,R$1,0)","v":14943.954333160355},{"$f":"VLOOKUP($A18,cost_data!$A$5:$BB$215,S$1,0)","v":12618.01},{"$f":"VLOOKUP($A18,cost_data!$A$5:$BB$215,T$1,0)","v":14943.954333160355},{"$f":"VLOOKUP($A18,cost_data!$A$5:$BB$215,U$1,0)","v":19796.29},{"$f":"VLOOKUP($A18,cost_data!$A$5:$BB$215,V$1,0)","v":14943.954333160355},{"$f":"VLOOKUP($A18,cost_data!$A$5:$BB$215,W$1,0)","v":12231.01},{"$f":"VLOOKUP($A18,cost_data!$A$5:$BB$215,X$1,0)","v":14943.954333160355},{"$f":"VLOOKUP($A18,cost_data!$A$5:$BB$215,Y$1,0)","v":14821.62},{"$f":"VLOOKUP($A18,cost_data!$A$5:$BB$215,Z$1,0)","v":14943.954333160355},{"$f":"VLOOKUP($A18,cost_data!$A$5:$BB$215,AA$1,0)","v":3948247.06},{"$f":"VLOOKUP($A18,cost_data!$A$5:$BB$215,AB$1,0)","v":1452646}]
["00T","NHS Bolton",{"$f":"VLOOKUP($A19,cost_data!$A$5:$BB$215,C$1,0)","v":7062973.79},{"$f":"VLOOKUP($A19,cost_data!$A$5:$BB$215,D$1,0)","v":31304.05973916702},{"$f":"VLOOKUP($A19,cost_data!$A$5:$BB$215,E$1,0)","v":2149118.9100000202},{"$f":"VLOOKUP($A19,cost_data!$A$5:$BB$215,F$1,0)","v":31304.05973916702},{"$f":"VLOOKUP($A19,cost_data!$A$5:$BB$215,G$1,0)","v":1638696.89},{"$f":"VLOOKUP($A19,cost_data!$A$5:$BB$215,H$1,0)","v":31304.05973916702},{"$f":"VLOOKUP($A19,cost_data!$A$5:$BB$215,I$1,0)","v":1488928.71},{"$f":"VLOOKUP($A19,cost_data!$A$5:$BB$215,J$1,0)","v":31304.05973916702},{"$f":"VLOOKUP($A19,cost_data!$A$5:$BB$215,K$1,0)","v":263219.109999999},{"$f":"VLOOKUP($A19,cost_data!$A$5:$BB$215,L$1,0)","v":31304.05973916702},{"$f":"VLOOKUP($A19,cost_data!$A$5:$BB$215,M$1,0)","v":545462.36000000499},{"$f":"VLOOKUP($A19,cost_data!$A$5:$BB$215,N$1,0)","v":31304.05973916702},{"$f":"VLOOKUP($A19,cost_data!$A$5:$BB$215,O$1,0)","v":447005.86999999703},{"$f":"VLOOKUP($A19,cost_data!$A$5:$BB$215,P$1,0)","v":31304.05973916702},{"$f":"VLOOKUP($A19,cost_data!$A$5:$BB$215,Q$1,0)","v":389950.13},{"$f":"VLOOKUP($A19,cost_data!$A$5:$BB$215,R$1,0)","v":31304.05973916702},{"$f":"VLOOKUP($A19,cost_data!$A$5:$BB$215,S$1,0)","v":83701.489999999802},{"$f":"VLOOKUP($A19,cost_data!$A$5:$BB$215,T$1,0)","v":31304.05973916702},{"$f":"VLOOKUP($A19,cost_data!$A$5:$BB$215,U$1,0)","v":17476.560000000001},{"$f":"VLOOKUP($A19,cost_data!$A$5:$BB$215,V$1,0)","v":31304.05973916702},{"$f":"VLOOKUP($A19,cost_data!$A$5:$BB$215,W$1,0)","v":19580.79},{"$f":"VLOOKUP($A19,cost_data!$A$5:$BB$215,X$1,0)","v":31304.05973916702},{"$f":"VLOOKUP($A19,cost_data!$A$5:$BB$215,Y$1,0)","v":19832.97},{"$f":"VLOOKUP($A19,cost_data!$A$5:$BB$215,Z$1,0)","v":31304.05973916702},{"$f":"VLOOKUP($A19,cost_data!$A$5:$BB$215,AA$1,0)","v":7062973.79},{"$f":"VLOOKUP($A19,cost_data!$A$5:$BB$215,AB$1,0)","v":1679843}]
["00V","NHS Bury",{"$f":"VLOOKUP($A20,cost_data!$A$5:$BB$215,C$1,0)","v":3571537.25999999},{"$f":"VLOOKUP($A20,cost_data!$A$5:$BB$215,D$1,0)","v":19739.121183104588},{"$f":"VLOOKUP($A20,cost_data!$A$5:$BB$215,E$1,0)","v":1066731.3999999999},{"$f":"VLOOKUP($A20,cost_data!$A$5:$BB$215,F$1,0)","v":19739.121183104588},{"$f":"VLOOKUP($A20,cost_data!$A$5:$BB$215,G$1,0)","v":735984.79},{"$f":"VLOOKUP($A20,cost_data!$A$5:$BB$215,H$1,0)","v":19739.121183104588},{"$f":"VLOOKUP($A20,cost_data!$A$5:$BB$215,I$1,0)","v":726124.86},{"$f":"VLOOKUP($A20,cost_data!$A$5:$BB$215,J$1,0)","v":19739.121183104588},{"$f":"VLOOKUP($A20,cost_data!$A$5:$BB$215,K$1,0)","v":180912.76},{"$f":"VLOOKUP($A20,cost_data!$A$5:$BB$215,L$1,0)","v":19739.121183104588},{"$f":"VLOOKUP($A20,cost_data!$A$5:$BB$215,M$1,0)","v":293736.04000000202},{"$f":"VLOOKUP($A20,cost_data!$A$5:$BB$215,N$1,0)","v":19739.121183104588},{"$f":"VLOOKUP($A20,cost_data!$A$5:$BB$215,O$1,0)","v":290939.27999999799},{"$f":"VLOOKUP($A20,cost_data!$A$5:$BB$215,P$1,0)","v":19739.121183104588},{"$f":"VLOOKUP($A20,cost_data!$A$5:$BB$215,Q$1,0)","v":211896.43000000101},{"$f":"VLOOKUP($A20,cost_data!$A$5:$BB$215,R$1,0)","v":19739.121183104588},{"$f":"VLOOKUP($A20,cost_data!$A$5:$BB$215,S$1,0)","v":28948.57},{"$f":"VLOOKUP($A20,cost_data!$A$5:$BB$215,T$1,0)","v":19739.121183104588},{"$f":"VLOOKUP($A20,cost_data!$A$5:$BB$215,U$1,0)","v":16585.23},{"$f":"VLOOKUP($A20,cost_data!$A$5:$BB$215,V$1,0)","v":19739.121183104588},{"$f":"VLOOKUP($A20,cost_data!$A$5:$BB$215,W$1,0)","v":15878.5},{"$f":"VLOOKUP($A20,cost_data!$A$5:$BB$215,X$1,0)","v":19739.121183104588},{"$f":"VLOOKUP($A20,cost_data!$A$5:$BB$215,Y$1,0)","v":3799.4},{"$f":"VLOOKUP($A20,cost_data!$A$5:$BB$215,Z$1,0)","v":19739.121183104588},{"$f":"VLOOKUP($A20,cost_data!$A$5:$BB$215,AA$1,0)","v":3571537.25999999},{"$f":"VLOOKUP($A20,cost_data!$A$5:$BB$215,AB$1,0)","v":1012747}]
["00W","NHS Central Manchester",{"$f":"VLOOKUP($A21,cost_data!$A$5:$BB$215,C$1,0)","v":2700361.42},{"$f":"VLOOKUP($A21,cost_data!$A$5:$BB$215,D$1,0)","v":30451.303735024667},{"$f":"VLOOKUP($A21,cost_data!$A$5:$BB$215,E$1,0)","v":715115.71000000101},{"$f":"VLOOKUP($A21,cost_data!$A$5:$BB$215,F$1,0)","v":30451.303735024667},{"$f":"VLOOKUP($A21,cost_data!$A$5:$BB$215,G$1,0)","v":727286.9},{"$f":"VLOOKUP($A21,cost_data!$A$5:$BB$215,H$1,0)","v":30451.303735024667},{"$f":"VLOOKUP($A21,cost_data!$A$5:$BB$215,I$1,0)","v":577779.04},{"$f":"VLOOKUP($A21,cost_data!$A$5:$BB$215,J$1,0)","v":30451.303735024667},{"$f":"VLOOKUP($A21,cost_data!$A$5:$BB$215,K$1,0)","v":92769.029999999897},{"$f":"VLOOKUP($A21,cost_data!$A$5:$BB$215,L$1,0)","v":30451.303735024667},{"$f":"VLOOKUP($A21,cost_data!$A$5:$BB$215,M$1,0)","v":179084.679999999},{"$f":"VLOOKUP($A21,cost_data!$A$5:$BB$215,N$1,0)","v":30451.303735024667},{"$f":"VLOOKUP($A21,cost_data!$A$5:$BB$215,O$1,0)","v":185195.459999999},{"$f":"VLOOKUP($A21,cost_data!$A$5:$BB$215,P$1,0)","v":30451.303735024667},{"$f":"VLOOKUP($A21,cost_data!$A$5:$BB$215,Q$1,0)","v":172371.31},{"$f":"VLOOKUP($A21,cost_data!$A$5:$BB$215,R$1,0)","v":30451.303735024667},{"$f":"VLOOKUP($A21,cost_data!$A$5:$BB$215,S$1,0)","v":13734.78},{"$f":"VLOOKUP($A21,cost_data!$A$5:$BB$215,T$1,0)","v":30451.303735024667},{"$f":"VLOOKUP($A21,cost_data!$A$5:$BB$215,U$1,0)","v":8241.0100000000093},{"$f":"VLOOKUP($A21,cost_data!$A$5:$BB$215,V$1,0)","v":30451.303735024667},{"$f":"VLOOKUP($A21,cost_data!$A$5:$BB$215,W$1,0)","v":17189.29},{"$f":"VLOOKUP($A21,cost_data!$A$5:$BB$215,X$1,0)","v":30451.303735024667},{"$f":"VLOOKUP($A21,cost_data!$A$5:$BB$215,Y$1,0)","v":11594.21},{"$f":"VLOOKUP($A21,cost_data!$A$5:$BB$215,Z$1,0)","v":30451.303735024667},{"$f":"VLOOKUP($A21,cost_data!$A$5:$BB$215,AA$1,0)","v":2700361.42},{"$f":"VLOOKUP($A21,cost_data!$A$5:$BB$215,AB$1,0)","v":834103}]
["00X","NHS Chorley and South Ribble",{"$f":"VLOOKUP($A22,cost_data!$A$5:$BB$215,C$1,0)","v":3528974.03},{"$f":"VLOOKUP($A22,cost_data!$A$5:$BB$215,D$1,0)","v":18013.824409367586},{"$f":"VLOOKUP($A22,cost_data!$A$5:$BB$215,E$1,0)","v":1054599.79},{"$f":"VLOOKUP($A22,cost_data!$A$5:$BB$215,F$1,0)","v":18013.824409367586},{"$f":"VLOOKUP($A22,cost_data!$A$5:$BB$215,G$1,0)","v":758302.30999999901},{"$f":"VLOOKUP($A22,cost_data!$A$5:$BB$215,H$1,0)","v":18013.824409367586},{"$f":"VLOOKUP($A22,cost_data!$A$5:$BB$215,I$1,0)","v":738471.57},{"$f":"VLOOKUP($A22,cost_data!$A$5:$BB$215,J$1,0)","v":18013.824409367586},{"$f":"VLOOKUP($A22,cost_data!$A$5:$BB$215,K$1,0)","v":177618.02},{"$f":"VLOOKUP($A22,cost_data!$A$5:$BB$215,L$1,0)","v":18013.824409367586},{"$f":"VLOOKUP($A22,cost_data!$A$5:$BB$215,M$1,0)","v":287937.35000000102},{"$f":"VLOOKUP($A22,cost_data!$A$5:$BB$215,N$1,0)","v":18013.824409367586},{"$f":"VLOOKUP($A22,cost_data!$A$5:$BB$215,O$1,0)","v":216444.11},{"$f":"VLOOKUP($A22,cost_data!$A$5:$BB$215,P$1,0)","v":18013.824409367586},{"$f":"VLOOKUP($A22,cost_data!$A$5:$BB$215,Q$1,0)","v":218991.99},{"$f":"VLOOKUP($A22,cost_data!$A$5:$BB$215,R$1,0)","v":18013.824409367586},{"$f":"VLOOKUP($A22,cost_data!$A$5:$BB$215,S$1,0)","v":32788.69},{"$f":"VLOOKUP($A22,cost_data!$A$5:$BB$215,T$1,0)","v":18013.824409367586},{"$f":"VLOOKUP($A22,cost_data!$A$5:$BB$215,U$1,0)","v":15016.26},{"$f":"VLOOKUP($A22,cost_data!$A$5:$BB$215,V$1,0)","v":18013.824409367586},{"$f":"VLOOKUP($A22,cost_data!$A$5:$BB$215,W$1,0)","v":10618.5},{"$f":"VLOOKUP($A22,cost_data!$A$5:$BB$215,X$1,0)","v":18013.824409367586},{"$f":"VLOOKUP($A22,cost_data!$A$5:$BB$215,Y$1,0)","v":18163.939999999999},{"$f":"VLOOKUP($A22,cost_data!$A$5:$BB$215,Z$1,0)","v":18013.824409367586},{"$f":"VLOOKUP($A22,cost_data!$A$5:$BB$215,AA$1,0)","v":3528974.03},{"$f":"VLOOKUP($A22,cost_data!$A$5:$BB$215,AB$1,0)","v":1071256}]
["00Y","NHS Oldham",{"$f":"VLOOKUP($A23,cost_data!$A$5:$BB$215,C$1,0)","v":5595787.3699999899},{"$f":"VLOOKUP($A23,cost_data!$A$5:$BB$215,D$1,0)","v":26391.499616606419},{"$f":"VLOOKUP($A23,cost_data!$A$5:$BB$215,E$1,0)","v":1973500.8799999801},{"$f":"VLOOKUP($A23,cost_data!$A$5:$BB$215,F$1,0)","v":26391.499616606419},{"$f":"VLOOKUP($A23,cost_data!$A$5:$BB$215,G$1,0)","v":1468495.75},{"$f":"VLOOKUP($A23,cost_data!$A$5:$BB$215,H$1,0)","v":26391.499616606419},{"$f":"VLOOKUP($A23,cost_data!$A$5:$BB$215,I$1,0)","v":957981.84999999905},{"$f":"VLOOKUP($A23,cost_data!$A$5:$BB$215,J$1,0)","v":26391.499616606419},{"$f":"VLOOKUP($A23,cost_data!$A$5:$BB$215,K$1,0)","v":212197.27},{"$f":"VLOOKUP($A23,cost_data!$A$5:$BB$215,L$1,0)","v":26391.499616606419},{"$f":"VLOOKUP($A23,cost_data!$A$5:$BB$215,M$1,0)","v":307832.67000000097},{"$f":"VLOOKUP($A23,cost_data!$A$5:$BB$215,N$1,0)","v":26391.499616606419},{"$f":"VLOOKUP($A23,cost_data!$A$5:$BB$215,O$1,0)","v":329760.31999999599},{"$f":"VLOOKUP($A23,cost_data!$A$5:$BB$215,P$1,0)","v":26391.499616606419},{"$f":"VLOOKUP($A23,cost_data!$A$5:$BB$215,Q$1,0)","v":272304.50000000099},{"$f":"VLOOKUP($A23,cost_data!$A$5:$BB$215,R$1,0)","v":26391.499616606419},{"$f":"VLOOKUP($A23,cost_data!$A$5:$BB$215,S$1,0)","v":29273.49},{"$f":"VLOOKUP($A23,cost_data!$A$5:$BB$215,T$1,0)","v":26391.499616606419},{"$f":"VLOOKUP($A23,cost_data!$A$5:$BB$215,U$1,0)","v":21404.039999999899},{"$f":"VLOOKUP($A23,cost_data!$A$5:$BB$215,V$1,0)","v":26391.499616606419},{"$f":"VLOOKUP($A23,cost_data!$A$5:$BB$215,W$1,0)","v":18142.53},{"$f":"VLOOKUP($A23,cost_data!$A$5:$BB$215,X$1,0)","v":26391.499616606419},{"$f":"VLOOKUP($A23,cost_data!$A$5:$BB$215,Y$1,0)","v":4894.07},{"$f":"VLOOKUP($A23,cost_data!$A$5:$BB$215,Z$1,0)","v":26391.499616606419},{"$f":"VLOOKUP($A23,cost_data!$A$5:$BB$215,AA$1,0)","v":5595787.3699999899},{"$f":"VLOOKUP($A23,cost_data!$A$5:$BB$215,AB$1,0)","v":1365760}]
["01A","NHS East Lancashire",{"$f":"VLOOKUP($A24,cost_data!$A$5:$BB$215,C$1,0)","v":7409371.5800000401},{"$f":"VLOOKUP($A24,cost_data!$A$5:$BB$215,D$1,0)","v":36814.870409286501},{"$f":"VLOOKUP($A24,cost_data!$A$5:$BB$215,E$1,0)","v":1976826.3300000101},{"$f":"VLOOKUP($A24,cost_data!$A$5:$BB$215,F$1,0)","v":36814.870409286501},{"$f":"VLOOKUP($A24,cost_data!$A$5:$BB$215,G$1,0)","v":1805312.61},{"$f":"VLOOKUP($A24,cost_data!$A$5:$BB$215,H$1,0)","v":36814.870409286501},{"$f":"VLOOKUP($A24,cost_data!$A$5:$BB$215,I$1,0)","v":1517790},{"$f":"VLOOKUP($A24,cost_data!$A$5:$BB$215,J$1,0)","v":36814.870409286501},{"$f":"VLOOKUP($A24,cost_data!$A$5:$BB$215,K$1,0)","v":411553.34},{"$f":"VLOOKUP($A24,cost_data!$A$5:$BB$215,L$1,0)","v":36814.870409286501},{"$f":"VLOOKUP($A24,cost_data!$A$5:$BB$215,M$1,0)","v":583187.54000000597},{"$f":"VLOOKUP($A24,cost_data!$A$5:$BB$215,N$1,0)","v":36814.870409286501},{"$f":"VLOOKUP($A24,cost_data!$A$5:$BB$215,O$1,0)","v":538456.94999999797},{"$f":"VLOOKUP($A24,cost_data!$A$5:$BB$215,P$1,0)","v":36814.870409286501},{"$f":"VLOOKUP($A24,cost_data!$A$5:$BB$215,Q$1,0)","v":455112.36999999499},{"$f":"VLOOKUP($A24,cost_data!$A$5:$BB$215,R$1,0)","v":36814.870409286501},{"$f":"VLOOKUP($A24,cost_data!$A$5:$BB$215,S$1,0)","v":53837.36},{"$f":"VLOOKUP($A24,cost_data!$A$5:$BB$215,T$1,0)","v":36814.870409286501},{"$f":"VLOOKUP($A24,cost_data!$A$5:$BB$215,U$1,0)","v":32588.369999999701},{"$f":"VLOOKUP($A24,cost_data!$A$5:$BB$215,V$1,0)","v":36814.870409286501},{"$f":"VLOOKUP($A24,cost_data!$A$5:$BB$215,W$1,0)","v":21672},{"$f":"VLOOKUP($A24,cost_data!$A$5:$BB$215,X$1,0)","v":36814.870409286501},{"$f":"VLOOKUP($A24,cost_data!$A$5:$BB$215,Y$1,0)","v":13034.71},{"$f":"VLOOKUP($A24,cost_data!$A$5:$BB$215,Z$1,0)","v":36814.870409286501},{"$f":"VLOOKUP($A24,cost_data!$A$5:$BB$215,AA$1,0)","v":7409371.5800000401},{"$f":"VLOOKUP($A24,cost_data!$A$5:$BB$215,AB$1,0)","v":2330977}]
["01C","NHS Eastern Cheshire",{"$f":"VLOOKUP($A25,cost_data!$A$5:$BB$215,C$1,0)","v":4113193.58},{"$f":"VLOOKUP($A25,cost_data!$A$5:$BB$215,D$1,0)","v":19423.389798066801},{"$f":"VLOOKUP($A25,cost_data!$A$5:$BB$215,E$1,0)","v":1241491.27},{"$f":"VLOOKUP($A25,cost_data!$A$5:$BB$215,F$1,0)","v":19423.389798066801},{"$f":"VLOOKUP($A25,cost_data!$A$5:$BB$215,G$1,0)","v":914819.429999999},{"$f":"VLOOKUP($A25,cost_data!$A$5:$BB$215,H$1,0)","v":19423.389798066801},{"$f":"VLOOKUP($A25,cost_data!$A$5:$BB$215,I$1,0)","v":725487.19999999902},{"$f":"VLOOKUP($A25,cost_data!$A$5:$BB$215,J$1,0)","v":19423.389798066801},{"$f":"VLOOKUP($A25,cost_data!$A$5:$BB$215,K$1,0)","v":258917.92},{"$f":"VLOOKUP($A25,cost_data!$A$5:$BB$215,L$1,0)","v":19423.389798066801},{"$f":"VLOOKUP($A25,cost_data!$A$5:$BB$215,M$1,0)","v":319896.76000000199},{"$f":"VLOOKUP($A25,cost_data!$A$5:$BB$215,N$1,0)","v":19423.389798066801},{"$f":"VLOOKUP($A25,cost_data!$A$5:$BB$215,O$1,0)","v":272365.40999999898},{"$f":"VLOOKUP($A25,cost_data!$A$5:$BB$215,P$1,0)","v":19423.389798066801},{"$f":"VLOOKUP($A25,cost_data!$A$5:$BB$215,Q$1,0)","v":301210.63},{"$f":"VLOOKUP($A25,cost_data!$A$5:$BB$215,R$1,0)","v":19423.389798066801},{"$f":"VLOOKUP($A25,cost_data!$A$5:$BB$215,S$1,0)","v":39070.699999999997},{"$f":"VLOOKUP($A25,cost_data!$A$5:$BB$215,T$1,0)","v":19423.389798066801},{"$f":"VLOOKUP($A25,cost_data!$A$5:$BB$215,U$1,0)","v":23939.119999999901},{"$f":"VLOOKUP($A25,cost_data!$A$5:$BB$215,V$1,0)","v":19423.389798066801},{"$f":"VLOOKUP($A25,cost_data!$A$5:$BB$215,W$1,0)","v":13109.54},{"$f":"VLOOKUP($A25,cost_data!$A$5:$BB$215,X$1,0)","v":19423.389798066801},{"$f":"VLOOKUP($A25,cost_data!$A$5:$BB$215,Y$1,0)","v":2867.6},{"$f":"VLOOKUP($A25,cost_data!$A$5:$BB$215,Z$1,0)","v":19423.389798066801},{"$f":"VLOOKUP($A25,cost_data!$A$5:$BB$215,AA$1,0)","v":4113193.58},{"$f":"VLOOKUP($A25,cost_data!$A$5:$BB$215,AB$1,0)","v":1297089}]
["01D","NHS Heywood, Middleton and Rochdale",{"$f":"VLOOKUP($A26,cost_data!$A$5:$BB$215,C$1,0)","v":4516533.7199999904},{"$f":"VLOOKUP($A26,cost_data!$A$5:$BB$215,D$1,0)","v":23403.96018636171},{"$f":"VLOOKUP($A26,cost_data!$A$5:$BB$215,E$1,0)","v":1520918.3899999899},{"$f":"VLOOKUP($A26,cost_data!$A$5:$BB$215,F$1,0)","v":23403.96018636171},{"$f":"VLOOKUP($A26,cost_data!$A$5:$BB$215,G$1,0)","v":1007643.88},{"$f":"VLOOKUP($A26,cost_data!$A$5:$BB$215,H$1,0)","v":23403.96018636171},{"$f":"VLOOKUP($A26,cost_data!$A$5:$BB$215,I$1,0)","v":866885.04},{"$f":"VLOOKUP($A26,cost_data!$A$5:$BB$215,J$1,0)","v":23403.96018636171},{"$f":"VLOOKUP($A26,cost_data!$A$5:$BB$215,K$1,0)","v":156046.43999999901},{"$f":"VLOOKUP($A26,cost_data!$A$5:$BB$215,L$1,0)","v":23403.96018636171},{"$f":"VLOOKUP($A26,cost_data!$A$5:$BB$215,M$1,0)","v":321127.72000000102},{"$f":"VLOOKUP($A26,cost_data!$A$5:$BB$215,N$1,0)","v":23403.96018636171},{"$f":"VLOOKUP($A26,cost_data!$A$5:$BB$215,O$1,0)","v":338516.81999999599},{"$f":"VLOOKUP($A26,cost_data!$A$5:$BB$215,P$1,0)","v":23403.96018636171},{"$f":"VLOOKUP($A26,cost_data!$A$5:$BB$215,Q$1,0)","v":234917.290000001},{"$f":"VLOOKUP($A26,cost_data!$A$5:$BB$215,R$1,0)","v":23403.96018636171},{"$f":"VLOOKUP($A26,cost_data!$A$5:$BB$215,S$1,0)","v":23043.599999999999},{"$f":"VLOOKUP($A26,cost_data!$A$5:$BB$215,T$1,0)","v":23403.96018636171},{"$f":"VLOOKUP($A26,cost_data!$A$5:$BB$215,U$1,0)","v":20898.07},{"$f":"VLOOKUP($A26,cost_data!$A$5:$BB$215,V$1,0)","v":23403.96018636171},{"$f":"VLOOKUP($A26,cost_data!$A$5:$BB$215,W$1,0)","v":19049.330000000002},{"$f":"VLOOKUP($A26,cost_data!$A$5:$BB$215,X$1,0)","v":23403.96018636171},{"$f":"VLOOKUP($A26,cost_data!$A$5:$BB$215,Y$1,0)","v":7487.14},{"$f":"VLOOKUP($A26,cost_data!$A$5:$BB$215,Z$1,0)","v":23403.96018636171},{"$f":"VLOOKUP($A26,cost_data!$A$5:$BB$215,AA$1,0)","v":4516533.7199999904},{"$f":"VLOOKUP($A26,cost_data!$A$5:$BB$215,AB$1,0)","v":1180992}]
["01E","NHS Greater Preston",{"$f":"VLOOKUP($A27,cost_data!$A$5:$BB$215,C$1,0)","v":4133862.6499999901},{"$f":"VLOOKUP($A27,cost_data!$A$5:$BB$215,D$1,0)","v":22881.982861481723},{"$f":"VLOOKUP($A27,cost_data!$A$5:$BB$215,E$1,0)","v":1229945.67},{"$f":"VLOOKUP($A27,cost_data!$A$5:$BB$215,F$1,0)","v":22881.982861481723},{"$f":"VLOOKUP($A27,cost_data!$A$5:$BB$215,G$1,0)","v":902166.24999999895},{"$f":"VLOOKUP($A27,cost_data!$A$5:$BB$215,H$1,0)","v":22881.982861481723},{"$f":"VLOOKUP($A27,cost_data!$A$5:$BB$215,I$1,0)","v":778097.45},{"$f":"VLOOKUP($A27,cost_data!$A$5:$BB$215,J$1,0)","v":22881.982861481723},{"$f":"VLOOKUP($A27,cost_data!$A$5:$BB$215,K$1,0)","v":262665.30999999901},{"$f":"VLOOKUP($A27,cost_data!$A$5:$BB$215,L$1,0)","v":22881.982861481723},{"$f":"VLOOKUP($A27,cost_data!$A$5:$BB$215,M$1,0)","v":346580.96000000299},{"$f":"VLOOKUP($A27,cost_data!$A$5:$BB$215,N$1,0)","v":22881.982861481723},{"$f":"VLOOKUP($A27,cost_data!$A$5:$BB$215,O$1,0)","v":289827.07999999903},{"$f":"VLOOKUP($A27,cost_data!$A$5:$BB$215,P$1,0)","v":22881.982861481723},{"$f":"VLOOKUP($A27,cost_data!$A$5:$BB$215,Q$1,0)","v":253004.62},{"$f":"VLOOKUP($A27,cost_data!$A$5:$BB$215,R$1,0)","v":22881.982861481723},{"$f":"VLOOKUP($A27,cost_data!$A$5:$BB$215,S$1,0)","v":31529.25},{"$f":"VLOOKUP($A27,cost_data!$A$5:$BB$215,T$1,0)","v":22881.982861481723},{"$f":"VLOOKUP($A27,cost_data!$A$5:$BB$215,U$1,0)","v":15564.33},{"$f":"VLOOKUP($A27,cost_data!$A$5:$BB$215,V$1,0)","v":22881.982861481723},{"$f":"VLOOKUP($A27,cost_data!$A$5:$BB$215,W$1,0)","v":13037.71},{"$f":"VLOOKUP($A27,cost_data!$A$5:$BB$215,X$1,0)","v":22881.982861481723},{"$f":"VLOOKUP($A27,cost_data!$A$5:$BB$215,Y$1,0)","v":11444.02},{"$f":"VLOOKUP($A27,cost_data!$A$5:$BB$215,Z$1,0)","v":22881.982861481723},{"$f":"VLOOKUP($A27,cost_data!$A$5:$BB$215,AA$1,0)","v":4133862.6499999901},{"$f":"VLOOKUP($A27,cost_data!$A$5:$BB$215,AB$1,0)","v":1170505}]
["01F","NHS Halton",{"$f":"VLOOKUP($A28,cost_data!$A$5:$BB$215,C$1,0)","v":2827674.29},{"$f":"VLOOKUP($A28,cost_data!$A$5:$BB$215,D$1,0)","v":13257.060399917544},{"$f":"VLOOKUP($A28,cost_data!$A$5:$BB$215,E$1,0)","v":824034.90999999898},{"$f":"VLOOKUP($A28,cost_data!$A$5:$BB$215,F$1,0)","v":13257.060399917544},{"$f":"VLOOKUP($A28,cost_data!$A$5:$BB$215,G$1,0)","v":568705.73},{"$f":"VLOOKUP($A28,cost_data!$A$5:$BB$215,H$1,0)","v":13257.060399917544},{"$f":"VLOOKUP($A28,cost_data!$A$5:$BB$215,I$1,0)","v":688403.29},{"$f":"VLOOKUP($A28,cost_data!$A$5:$BB$215,J$1,0)","v":13257.060399917544},{"$f":"VLOOKUP($A28,cost_data!$A$5:$BB$215,K$1,0)","v":192257.58},{"$f":"VLOOKUP($A28,cost_data!$A$5:$BB$215,L$1,0)","v":13257.060399917544},{"$f":"VLOOKUP($A28,cost_data!$A$5:$BB$215,M$1,0)","v":163801.38},{"$f":"VLOOKUP($A28,cost_data!$A$5:$BB$215,N$1,0)","v":13257.060399917544},{"$f":"VLOOKUP($A28,cost_data!$A$5:$BB$215,O$1,0)","v":182378.15999999901},{"$f":"VLOOKUP($A28,cost_data!$A$5:$BB$215,P$1,0)","v":13257.060399917544},{"$f":"VLOOKUP($A28,cost_data!$A$5:$BB$215,Q$1,0)","v":164674.18},{"$f":"VLOOKUP($A28,cost_data!$A$5:$BB$215,R$1,0)","v":13257.060399917544},{"$f":"VLOOKUP($A28,cost_data!$A$5:$BB$215,S$1,0)","v":17517.23},{"$f":"VLOOKUP($A28,cost_data!$A$5:$BB$215,T$1,0)","v":13257.060399917544},{"$f":"VLOOKUP($A28,cost_data!$A$5:$BB$215,U$1,0)","v":10899.12},{"$f":"VLOOKUP($A28,cost_data!$A$5:$BB$215,V$1,0)","v":13257.060399917544},{"$f":"VLOOKUP($A28,cost_data!$A$5:$BB$215,W$1,0)","v":10182.030000000001},{"$f":"VLOOKUP($A28,cost_data!$A$5:$BB$215,X$1,0)","v":13257.060399917544},{"$f":"VLOOKUP($A28,cost_data!$A$5:$BB$215,Y$1,0)","v":4820.68},{"$f":"VLOOKUP($A28,cost_data!$A$5:$BB$215,Z$1,0)","v":13257.060399917544},{"$f":"VLOOKUP($A28,cost_data!$A$5:$BB$215,AA$1,0)","v":2827674.29},{"$f":"VLOOKUP($A28,cost_data!$A$5:$BB$215,AB$1,0)","v":778237}]
["01G","NHS Salford",{"$f":"VLOOKUP($A29,cost_data!$A$5:$BB$215,C$1,0)","v":4806330.1100000003},{"$f":"VLOOKUP($A29,cost_data!$A$5:$BB$215,D$1,0)","v":27141.260713898231},{"$f":"VLOOKUP($A29,cost_data!$A$5:$BB$215,E$1,0)","v":1249756.3599999901},{"$f":"VLOOKUP($A29,cost_data!$A$5:$BB$215,F$1,0)","v":27141.260713898231},{"$f":"VLOOKUP($A29,cost_data!$A$5:$BB$215,G$1,0)","v":1256147.6100000001},{"$f":"VLOOKUP($A29,cost_data!$A$5:$BB$215,H$1,0)","v":27141.260713898231},{"$f":"VLOOKUP($A29,cost_data!$A$5:$BB$215,I$1,0)","v":967514.13999999897},{"$f":"VLOOKUP($A29,cost_data!$A$5:$BB$215,J$1,0)","v":27141.260713898231},{"$f":"VLOOKUP($A29,cost_data!$A$5:$BB$215,K$1,0)","v":217283.69999999899},{"$f":"VLOOKUP($A29,cost_data!$A$5:$BB$215,L$1,0)","v":27141.260713898231},{"$f":"VLOOKUP($A29,cost_data!$A$5:$BB$215,M$1,0)","v":393745.12000000302},{"$f":"VLOOKUP($A29,cost_data!$A$5:$BB$215,N$1,0)","v":27141.260713898231},{"$f":"VLOOKUP($A29,cost_data!$A$5:$BB$215,O$1,0)","v":366432.86999999802},{"$f":"VLOOKUP($A29,cost_data!$A$5:$BB$215,P$1,0)","v":27141.260713898231},{"$f":"VLOOKUP($A29,cost_data!$A$5:$BB$215,Q$1,0)","v":268323.89},{"$f":"VLOOKUP($A29,cost_data!$A$5:$BB$215,R$1,0)","v":27141.260713898231},{"$f":"VLOOKUP($A29,cost_data!$A$5:$BB$215,S$1,0)","v":40143.959999999897},{"$f":"VLOOKUP($A29,cost_data!$A$5:$BB$215,T$1,0)","v":27141.260713898231},{"$f":"VLOOKUP($A29,cost_data!$A$5:$BB$215,U$1,0)","v":18187.089999999898},{"$f":"VLOOKUP($A29,cost_data!$A$5:$BB$215,V$1,0)","v":27141.260713898231},{"$f":"VLOOKUP($A29,cost_data!$A$5:$BB$215,W$1,0)","v":15321.09},{"$f":"VLOOKUP($A29,cost_data!$A$5:$BB$215,X$1,0)","v":27141.260713898231},{"$f":"VLOOKUP($A29,cost_data!$A$5:$BB$215,Y$1,0)","v":13474.28},{"$f":"VLOOKUP($A29,cost_data!$A$5:$BB$215,Z$1,0)","v":27141.260713898231},{"$f":"VLOOKUP($A29,cost_data!$A$5:$BB$215,AA$1,0)","v":4806330.1100000003},{"$f":"VLOOKUP($A29,cost_data!$A$5:$BB$215,AB$1,0)","v":1740922}]
["01H","NHS Cumbria",{"$f":"VLOOKUP($A30,cost_data!$A$5:$BB$215,C$1,0)","v":11391714.9300001},{"$f":"VLOOKUP($A30,cost_data!$A$5:$BB$215,D$1,0)","v":47254.327443202303},{"$f":"VLOOKUP($A30,cost_data!$A$5:$BB$215,E$1,0)","v":2789189.47000003},{"$f":"VLOOKUP($A30,cost_data!$A$5:$BB$215,F$1,0)","v":47254.327443202303},{"$f":"VLOOKUP($A30,cost_data!$A$5:$BB$215,G$1,0)","v":2795964.09},{"$f":"VLOOKUP($A30,cost_data!$A$5:$BB$215,H$1,0)","v":47254.327443202303},{"$f":"VLOOKUP($A30,cost_data!$A$5:$BB$215,I$1,0)","v":2518148.7299999902},{"$f":"VLOOKUP($A30,cost_data!$A$5:$BB$215,J$1,0)","v":47254.327443202303},{"$f":"VLOOKUP($A30,cost_data!$A$5:$BB$215,K$1,0)","v":906584.65000000305},{"$f":"VLOOKUP($A30,cost_data!$A$5:$BB$215,L$1,0)","v":47254.327443202303},{"$f":"VLOOKUP($A30,cost_data!$A$5:$BB$215,M$1,0)","v":787311.25000001304},{"$f":"VLOOKUP($A30,cost_data!$A$5:$BB$215,N$1,0)","v":47254.327443202303},{"$f":"VLOOKUP($A30,cost_data!$A$5:$BB$215,O$1,0)","v":792870.270000007},{"$f":"VLOOKUP($A30,cost_data!$A$5:$BB$215,P$1,0)","v":47254.327443202303},{"$f":"VLOOKUP($A30,cost_data!$A$5:$BB$215,Q$1,0)","v":619046.20999998902},{"$f":"VLOOKUP($A30,cost_data!$A$5:$BB$215,R$1,0)","v":47254.327443202303},{"$f":"VLOOKUP($A30,cost_data!$A$5:$BB$215,S$1,0)","v":81810.459999999803},{"$f":"VLOOKUP($A30,cost_data!$A$5:$BB$215,T$1,0)","v":47254.327443202303},{"$f":"VLOOKUP($A30,cost_data!$A$5:$BB$215,U$1,0)","v":60470.269999999902},{"$f":"VLOOKUP($A30,cost_data!$A$5:$BB$215,V$1,0)","v":47254.327443202303},{"$f":"VLOOKUP($A30,cost_data!$A$5:$BB$215,W$1,0)","v":29031.1700000001},{"$f":"VLOOKUP($A30,cost_data!$A$5:$BB$215,X$1,0)","v":47254.327443202303},{"$f":"VLOOKUP($A30,cost_data!$A$5:$BB$215,Y$1,0)","v":11288.36},{"$f":"VLOOKUP($A30,cost_data!$A$5:$BB$215,Z$1,0)","v":47254.327443202303},{"$f":"VLOOKUP($A30,cost_data!$A$5:$BB$215,AA$1,0)","v":11391714.9300001},{"$f":"VLOOKUP($A30,cost_data!$A$5:$BB$215,AB$1,0)","v":3575854}]
["01J","NHS Knowsley",{"$f":"VLOOKUP($A31,cost_data!$A$5:$BB$215,C$1,0)","v":4214583.5599999996},{"$f":"VLOOKUP($A31,cost_data!$A$5:$BB$215,D$1,0)","v":15544.296467863347},{"$f":"VLOOKUP($A31,cost_data!$A$5:$BB$215,E$1,0)","v":1431664.1299999901},{"$f":"VLOOKUP($A31,cost_data!$A$5:$BB$215,F$1,0)","v":15544.296467863347},{"$f":"VLOOKUP($A31,cost_data!$A$5:$BB$215,G$1,0)","v":893065.179999999},{"$f":"VLOOKUP($A31,cost_data!$A$5:$BB$215,H$1,0)","v":15544.296467863347},{"$f":"VLOOKUP($A31,cost_data!$A$5:$BB$215,I$1,0)","v":834613.14},{"$f":"VLOOKUP($A31,cost_data!$A$5:$BB$215,J$1,0)","v":15544.296467863347},{"$f":"VLOOKUP($A31,cost_data!$A$5:$BB$215,K$1,0)","v":212351.35},{"$f":"VLOOKUP($A31,cost_data!$A$5:$BB$215,L$1,0)","v":15544.296467863347},{"$f":"VLOOKUP($A31,cost_data!$A$5:$BB$215,M$1,0)","v":265090.35000000102},{"$f":"VLOOKUP($A31,cost_data!$A$5:$BB$215,N$1,0)","v":15544.296467863347},{"$f":"VLOOKUP($A31,cost_data!$A$5:$BB$215,O$1,0)","v":293801.44999999902},{"$f":"VLOOKUP($A31,cost_data!$A$5:$BB$215,P$1,0)","v":15544.296467863347},{"$f":"VLOOKUP($A31,cost_data!$A$5:$BB$215,Q$1,0)","v":212965.03},{"$f":"VLOOKUP($A31,cost_data!$A$5:$BB$215,R$1,0)","v":15544.296467863347},{"$f":"VLOOKUP($A31,cost_data!$A$5:$BB$215,S$1,0)","v":24685.65},{"$f":"VLOOKUP($A31,cost_data!$A$5:$BB$215,T$1,0)","v":15544.296467863347},{"$f":"VLOOKUP($A31,cost_data!$A$5:$BB$215,U$1,0)","v":14952.98},{"$f":"VLOOKUP($A31,cost_data!$A$5:$BB$215,V$1,0)","v":15544.296467863347},{"$f":"VLOOKUP($A31,cost_data!$A$5:$BB$215,W$1,0)","v":11581.56},{"$f":"VLOOKUP($A31,cost_data!$A$5:$BB$215,X$1,0)","v":15544.296467863347},{"$f":"VLOOKUP($A31,cost_data!$A$5:$BB$215,Y$1,0)","v":19812.740000000002},{"$f":"VLOOKUP($A31,cost_data!$A$5:$BB$215,Z$1,0)","v":15544.296467863347},{"$f":"VLOOKUP($A31,cost_data!$A$5:$BB$215,AA$1,0)","v":4214583.5599999996},{"$f":"VLOOKUP($A31,cost_data!$A$5:$BB$215,AB$1,0)","v":1210618}]
["01K","NHS Lancashire North",{"$f":"VLOOKUP($A32,cost_data!$A$5:$BB$215,C$1,0)","v":2960923.43},{"$f":"VLOOKUP($A32,cost_data!$A$5:$BB$215,D$1,0)","v":16327.406808768565},{"$f":"VLOOKUP($A32,cost_data!$A$5:$BB$215,E$1,0)","v":802481.06},{"$f":"VLOOKUP($A32,cost_data!$A$5:$BB$215,F$1,0)","v":16327.406808768565},{"$f":"VLOOKUP($A32,cost_data!$A$5:$BB$215,G$1,0)","v":575821.40999999898},{"$f":"VLOOKUP($A32,cost_data!$A$5:$BB$215,H$1,0)","v":16327.406808768565},{"$f":"VLOOKUP($A32,cost_data!$A$5:$BB$215,I$1,0)","v":679839.37},{"$f":"VLOOKUP($A32,cost_data!$A$5:$BB$215,J$1,0)","v":16327.406808768565},{"$f":"VLOOKUP($A32,cost_data!$A$5:$BB$215,K$1,0)","v":219320.07},{"$f":"VLOOKUP($A32,cost_data!$A$5:$BB$215,L$1,0)","v":16327.406808768565},{"$f":"VLOOKUP($A32,cost_data!$A$5:$BB$215,M$1,0)","v":236889.25},{"$f":"VLOOKUP($A32,cost_data!$A$5:$BB$215,N$1,0)","v":16327.406808768565},{"$f":"VLOOKUP($A32,cost_data!$A$5:$BB$215,O$1,0)","v":206742.16},{"$f":"VLOOKUP($A32,cost_data!$A$5:$BB$215,P$1,0)","v":16327.406808768565},{"$f":"VLOOKUP($A32,cost_data!$A$5:$BB$215,Q$1,0)","v":187592.73},{"$f":"VLOOKUP($A32,cost_data!$A$5:$BB$215,R$1,0)","v":16327.406808768565},{"$f":"VLOOKUP($A32,cost_data!$A$5:$BB$215,S$1,0)","v":21441.67},{"$f":"VLOOKUP($A32,cost_data!$A$5:$BB$215,T$1,0)","v":16327.406808768565},{"$f":"VLOOKUP($A32,cost_data!$A$5:$BB$215,U$1,0)","v":15933.21},{"$f":"VLOOKUP($A32,cost_data!$A$5:$BB$215,V$1,0)","v":16327.406808768565},{"$f":"VLOOKUP($A32,cost_data!$A$5:$BB$215,W$1,0)","v":9976.5400000000009},{"$f":"VLOOKUP($A32,cost_data!$A$5:$BB$215,X$1,0)","v":16327.406808768565},{"$f":"VLOOKUP($A32,cost_data!$A$5:$BB$215,Y$1,0)","v":4885.96},{"$f":"VLOOKUP($A32,cost_data!$A$5:$BB$215,Z$1,0)","v":16327.406808768565},{"$f":"VLOOKUP($A32,cost_data!$A$5:$BB$215,AA$1,0)","v":2960923.43},{"$f":"VLOOKUP($A32,cost_data!$A$5:$BB$215,AB$1,0)","v":947750}]
["01M","NHS North Manchester",{"$f":"VLOOKUP($A33,cost_data!$A$5:$BB$215,C$1,0)","v":3727611.41},{"$f":"VLOOKUP($A33,cost_data!$A$5:$BB$215,D$1,0)","v":21458.201892744481},{"$f":"VLOOKUP($A33,cost_data!$A$5:$BB$215,E$1,0)","v":1177018.68},{"$f":"VLOOKUP($A33,cost_data!$A$5:$BB$215,F$1,0)","v":21458.201892744481},{"$f":"VLOOKUP($A33,cost_data!$A$5:$BB$215,G$1,0)","v":865385.679999999},{"$f":"VLOOKUP($A33,cost_data!$A$5:$BB$215,H$1,0)","v":21458.201892744481},{"$f":"VLOOKUP($A33,cost_data!$A$5:$BB$215,I$1,0)","v":757260.429999999},{"$f":"VLOOKUP($A33,cost_data!$A$5:$BB$215,J$1,0)","v":21458.201892744481},{"$f":"VLOOKUP($A33,cost_data!$A$5:$BB$215,K$1,0)","v":101841.57},{"$f":"VLOOKUP($A33,cost_data!$A$5:$BB$215,L$1,0)","v":21458.201892744481},{"$f":"VLOOKUP($A33,cost_data!$A$5:$BB$215,M$1,0)","v":260303.790000001},{"$f":"VLOOKUP($A33,cost_data!$A$5:$BB$215,N$1,0)","v":21458.201892744481},{"$f":"VLOOKUP($A33,cost_data!$A$5:$BB$215,O$1,0)","v":293752.19999999698},{"$f":"VLOOKUP($A33,cost_data!$A$5:$BB$215,P$1,0)","v":21458.201892744481},{"$f":"VLOOKUP($A33,cost_data!$A$5:$BB$215,Q$1,0)","v":203754.34},{"$f":"VLOOKUP($A33,cost_data!$A$5:$BB$215,R$1,0)","v":21458.201892744481},{"$f":"VLOOKUP($A33,cost_data!$A$5:$BB$215,S$1,0)","v":16042.57},{"$f":"VLOOKUP($A33,cost_data!$A$5:$BB$215,T$1,0)","v":21458.201892744481},{"$f":"VLOOKUP($A33,cost_data!$A$5:$BB$215,U$1,0)","v":13825.74},{"$f":"VLOOKUP($A33,cost_data!$A$5:$BB$215,V$1,0)","v":21458.201892744481},{"$f":"VLOOKUP($A33,cost_data!$A$5:$BB$215,W$1,0)","v":16815.54},{"$f":"VLOOKUP($A33,cost_data!$A$5:$BB$215,X$1,0)","v":21458.201892744481},{"$f":"VLOOKUP($A33,cost_data!$A$5:$BB$215,Y$1,0)","v":21610.87},{"$f":"VLOOKUP($A33,cost_data!$A$5:$BB$215,Z$1,0)","v":21458.201892744481},{"$f":"VLOOKUP($A33,cost_data!$A$5:$BB$215,AA$1,0)","v":3727611.41},{"$f":"VLOOKUP($A33,cost_data!$A$5:$BB$215,AB$1,0)","v":1079752}]
["01N","NHS South Manchester",{"$f":"VLOOKUP($A34,cost_data!$A$5:$BB$215,C$1,0)","v":3177888.61},{"$f":"VLOOKUP($A34,cost_data!$A$5:$BB$215,D$1,0)","v":20015.990453460618},{"$f":"VLOOKUP($A34,cost_data!$A$5:$BB$215,E$1,0)","v":953922.549999999},{"$f":"VLOOKUP($A34,cost_data!$A$5:$BB$215,F$1,0)","v":20015.990453460618},{"$f":"VLOOKUP($A34,cost_data!$A$5:$BB$215,G$1,0)","v":728432.09},{"$f":"VLOOKUP($A34,cost_data!$A$5:$BB$215,H$1,0)","v":20015.990453460618},{"$f":"VLOOKUP($A34,cost_data!$A$5:$BB$215,I$1,0)","v":628671.85},{"$f":"VLOOKUP($A34,cost_data!$A$5:$BB$215,J$1,0)","v":20015.990453460618},{"$f":"VLOOKUP($A34,cost_data!$A$5:$BB$215,K$1,0)","v":147079.9},{"$f":"VLOOKUP($A34,cost_data!$A$5:$BB$215,L$1,0)","v":20015.990453460618},{"$f":"VLOOKUP($A34,cost_data!$A$5:$BB$215,M$1,0)","v":242631.77000000101},{"$f":"VLOOKUP($A34,cost_data!$A$5:$BB$215,N$1,0)","v":20015.990453460618},{"$f":"VLOOKUP($A34,cost_data!$A$5:$BB$215,O$1,0)","v":228513.66999999899},{"$f":"VLOOKUP($A34,cost_data!$A$5:$BB$215,P$1,0)","v":20015.990453460618},{"$f":"VLOOKUP($A34,cost_data!$A$5:$BB$215,Q$1,0)","v":197675.950000001},{"$f":"VLOOKUP($A34,cost_data!$A$5:$BB$215,R$1,0)","v":20015.990453460618},{"$f":"VLOOKUP($A34,cost_data!$A$5:$BB$215,S$1,0)","v":16845.29},{"$f":"VLOOKUP($A34,cost_data!$A$5:$BB$215,T$1,0)","v":20015.990453460618},{"$f":"VLOOKUP($A34,cost_data!$A$5:$BB$215,U$1,0)","v":11092.92},{"$f":"VLOOKUP($A34,cost_data!$A$5:$BB$215,V$1,0)","v":20015.990453460618},{"$f":"VLOOKUP($A34,cost_data!$A$5:$BB$215,W$1,0)","v":9916.9200000000092},{"$f":"VLOOKUP($A34,cost_data!$A$5:$BB$215,X$1,0)","v":20015.990453460618},{"$f":"VLOOKUP($A34,cost_data!$A$5:$BB$215,Y$1,0)","v":13105.7},{"$f":"VLOOKUP($A34,cost_data!$A$5:$BB$215,Z$1,0)","v":20015.990453460618},{"$f":"VLOOKUP($A34,cost_data!$A$5:$BB$215,AA$1,0)","v":3177888.61},{"$f":"VLOOKUP($A34,cost_data!$A$5:$BB$215,AB$1,0)","v":827305}]
["01R","NHS South Cheshire",{"$f":"VLOOKUP($A35,cost_data!$A$5:$BB$215,C$1,0)","v":3613838.41},{"$f":"VLOOKUP($A35,cost_data!$A$5:$BB$215,D$1,0)","v":17581.630608974359},{"$f":"VLOOKUP($A35,cost_data!$A$5:$BB$215,E$1,0)","v":998306.84000000102},{"$f":"VLOOKUP($A35,cost_data!$A$5:$BB$215,F$1,0)","v":17581.630608974359},{"$f":"VLOOKUP($A35,cost_data!$A$5:$BB$215,G$1,0)","v":881260.679999999},{"$f":"VLOOKUP($A35,cost_data!$A$5:$BB$215,H$1,0)","v":17581.630608974359},{"$f":"VLOOKUP($A35,cost_data!$A$5:$BB$215,I$1,0)","v":689834.67000000097},{"$f":"VLOOKUP($A35,cost_data!$A$5:$BB$215,J$1,0)","v":17581.630608974359},{"$f":"VLOOKUP($A35,cost_data!$A$5:$BB$215,K$1,0)","v":244691.38},{"$f":"VLOOKUP($A35,cost_data!$A$5:$BB$215,L$1,0)","v":17581.630608974359},{"$f":"VLOOKUP($A35,cost_data!$A$5:$BB$215,M$1,0)","v":283396.97000000102},{"$f":"VLOOKUP($A35,cost_data!$A$5:$BB$215,N$1,0)","v":17581.630608974359},{"$f":"VLOOKUP($A35,cost_data!$A$5:$BB$215,O$1,0)","v":233931.56999999899},{"$f":"VLOOKUP($A35,cost_data!$A$5:$BB$215,P$1,0)","v":17581.630608974359},{"$f":"VLOOKUP($A35,cost_data!$A$5:$BB$215,Q$1,0)","v":228012.070000001},{"$f":"VLOOKUP($A35,cost_data!$A$5:$BB$215,R$1,0)","v":17581.630608974359},{"$f":"VLOOKUP($A35,cost_data!$A$5:$BB$215,S$1,0)","v":25715.200000000001},{"$f":"VLOOKUP($A35,cost_data!$A$5:$BB$215,T$1,0)","v":17581.630608974359},{"$f":"VLOOKUP($A35,cost_data!$A$5:$BB$215,U$1,0)","v":16239.68},{"$f":"VLOOKUP($A35,cost_data!$A$5:$BB$215,V$1,0)","v":17581.630608974359},{"$f":"VLOOKUP($A35,cost_data!$A$5:$BB$215,W$1,0)","v":12351.1},{"$f":"VLOOKUP($A35,cost_data!$A$5:$BB$215,X$1,0)","v":17581.630608974359},{"$f":"VLOOKUP($A35,cost_data!$A$5:$BB$215,Y$1,0)","v":98.25},{"$f":"VLOOKUP($A35,cost_data!$A$5:$BB$215,Z$1,0)","v":17581.630608974359},{"$f":"VLOOKUP($A35,cost_data!$A$5:$BB$215,AA$1,0)","v":3613838.41},{"$f":"VLOOKUP($A35,cost_data!$A$5:$BB$215,AB$1,0)","v":1035893}]
["01T","NHS South Sefton",{"$f":"VLOOKUP($A36,cost_data!$A$5:$BB$215,C$1,0)","v":4056907.52},{"$f":"VLOOKUP($A36,cost_data!$A$5:$BB$215,D$1,0)","v":14439.199255121042},{"$f":"VLOOKUP($A36,cost_data!$A$5:$BB$215,E$1,0)","v":1325337.2},{"$f":"VLOOKUP($A36,cost_data!$A$5:$BB$215,F$1,0)","v":14439.199255121042},{"$f":"VLOOKUP($A36,cost_data!$A$5:$BB$215,G$1,0)","v":894700.82999999903},{"$f":"VLOOKUP($A36,cost_data!$A$5:$BB$215,H$1,0)","v":14439.199255121042},{"$f":"VLOOKUP($A36,cost_data!$A$5:$BB$215,I$1,0)","v":890590.47999999905},{"$f":"VLOOKUP($A36,cost_data!$A$5:$BB$215,J$1,0)","v":14439.199255121042},{"$f":"VLOOKUP($A36,cost_data!$A$5:$BB$215,K$1,0)","v":175661.51},{"$f":"VLOOKUP($A36,cost_data!$A$5:$BB$215,L$1,0)","v":14439.199255121042},{"$f":"VLOOKUP($A36,cost_data!$A$5:$BB$215,M$1,0)","v":253940.03},{"$f":"VLOOKUP($A36,cost_data!$A$5:$BB$215,N$1,0)","v":14439.199255121042},{"$f":"VLOOKUP($A36,cost_data!$A$5:$BB$215,O$1,0)","v":263341.77999999898},{"$f":"VLOOKUP($A36,cost_data!$A$5:$BB$215,P$1,0)","v":14439.199255121042},{"$f":"VLOOKUP($A36,cost_data!$A$5:$BB$215,Q$1,0)","v":206878.19},{"$f":"VLOOKUP($A36,cost_data!$A$5:$BB$215,R$1,0)","v":14439.199255121042},{"$f":"VLOOKUP($A36,cost_data!$A$5:$BB$215,S$1,0)","v":22546.57},{"$f":"VLOOKUP($A36,cost_data!$A$5:$BB$215,T$1,0)","v":14439.199255121042},{"$f":"VLOOKUP($A36,cost_data!$A$5:$BB$215,U$1,0)","v":15672.3},{"$f":"VLOOKUP($A36,cost_data!$A$5:$BB$215,V$1,0)","v":14439.199255121042},{"$f":"VLOOKUP($A36,cost_data!$A$5:$BB$215,W$1,0)","v":8157.4799999999796},{"$f":"VLOOKUP($A36,cost_data!$A$5:$BB$215,X$1,0)","v":14439.199255121042},{"$f":"VLOOKUP($A36,cost_data!$A$5:$BB$215,Y$1,0)","v":81.150000000000006},{"$f":"VLOOKUP($A36,cost_data!$A$5:$BB$215,Z$1,0)","v":14439.199255121042},{"$f":"VLOOKUP($A36,cost_data!$A$5:$BB$215,AA$1,0)","v":4056907.52},{"$f":"VLOOKUP($A36,cost_data!$A$5:$BB$215,AB$1,0)","v":1095780}]
["01V","NHS Southport and Formby",{"$f":"VLOOKUP($A37,cost_data!$A$5:$BB$215,C$1,0)","v":2990547.95},{"$f":"VLOOKUP($A37,cost_data!$A$5:$BB$215,D$1,0)","v":10444.871794871795},{"$f":"VLOOKUP($A37,cost_data!$A$5:$BB$215,E$1,0)","v":967475.16999999899},{"$f":"VLOOKUP($A37,cost_data!$A$5:$BB$215,F$1,0)","v":10444.871794871795},{"$f":"VLOOKUP($A37,cost_data!$A$5:$BB$215,G$1,0)","v":734991.96999999904},{"$f":"VLOOKUP($A37,cost_data!$A$5:$BB$215,H$1,0)","v":10444.871794871795},{"$f":"VLOOKUP($A37,cost_data!$A$5:$BB$215,I$1,0)","v":579993.30000000005},{"$f":"VLOOKUP($A37,cost_data!$A$5:$BB$215,J$1,0)","v":10444.871794871795},{"$f":"VLOOKUP($A37,cost_data!$A$5:$BB$215,K$1,0)","v":123034.32},{"$f":"VLOOKUP($A37,cost_data!$A$5:$BB$215,L$1,0)","v":10444.871794871795},{"$f":"VLOOKUP($A37,cost_data!$A$5:$BB$215,M$1,0)","v":195381.02999999901},{"$f":"VLOOKUP($A37,cost_data!$A$5:$BB$215,N$1,0)","v":10444.871794871795},{"$f":"VLOOKUP($A37,cost_data!$A$5:$BB$215,O$1,0)","v":181193.87},{"$f":"VLOOKUP($A37,cost_data!$A$5:$BB$215,P$1,0)","v":10444.871794871795},{"$f":"VLOOKUP($A37,cost_data!$A$5:$BB$215,Q$1,0)","v":157189.70000000001},{"$f":"VLOOKUP($A37,cost_data!$A$5:$BB$215,R$1,0)","v":10444.871794871795},{"$f":"VLOOKUP($A37,cost_data!$A$5:$BB$215,S$1,0)","v":22533.27},{"$f":"VLOOKUP($A37,cost_data!$A$5:$BB$215,T$1,0)","v":10444.871794871795},{"$f":"VLOOKUP($A37,cost_data!$A$5:$BB$215,U$1,0)","v":18267.95},{"$f":"VLOOKUP($A37,cost_data!$A$5:$BB$215,V$1,0)","v":10444.871794871795},{"$f":"VLOOKUP($A37,cost_data!$A$5:$BB$215,W$1,0)","v":5303.26},{"$f":"VLOOKUP($A37,cost_data!$A$5:$BB$215,X$1,0)","v":10444.871794871795},{"$f":"VLOOKUP($A37,cost_data!$A$5:$BB$215,Y$1,0)","v":5184.1099999999997},{"$f":"VLOOKUP($A37,cost_data!$A$5:$BB$215,Z$1,0)","v":10444.871794871795},{"$f":"VLOOKUP($A37,cost_data!$A$5:$BB$215,AA$1,0)","v":2990547.95},{"$f":"VLOOKUP($A37,cost_data!$A$5:$BB$215,AB$1,0)","v":884014}]
["01W","NHS Stockport",{"$f":"VLOOKUP($A38,cost_data!$A$5:$BB$215,C$1,0)","v":6746227.7400000198},{"$f":"VLOOKUP($A38,cost_data!$A$5:$BB$215,D$1,0)","v":30593.941248470011},{"$f":"VLOOKUP($A38,cost_data!$A$5:$BB$215,E$1,0)","v":2162009.64},{"$f":"VLOOKUP($A38,cost_data!$A$5:$BB$215,F$1,0)","v":30593.941248470011},{"$f":"VLOOKUP($A38,cost_data!$A$5:$BB$215,G$1,0)","v":1591146},{"$f":"VLOOKUP($A38,cost_data!$A$5:$BB$215,H$1,0)","v":30593.941248470011},{"$f":"VLOOKUP($A38,cost_data!$A$5:$BB$215,I$1,0)","v":1289985.83},{"$f":"VLOOKUP($A38,cost_data!$A$5:$BB$215,J$1,0)","v":30593.941248470011},{"$f":"VLOOKUP($A38,cost_data!$A$5:$BB$215,K$1,0)","v":211051.02999999901},{"$f":"VLOOKUP($A38,cost_data!$A$5:$BB$215,L$1,0)","v":30593.941248470011},{"$f":"VLOOKUP($A38,cost_data!$A$5:$BB$215,M$1,0)","v":504750.080000002},{"$f":"VLOOKUP($A38,cost_data!$A$5:$BB$215,N$1,0)","v":30593.941248470011},{"$f":"VLOOKUP($A38,cost_data!$A$5:$BB$215,O$1,0)","v":449149.19999999698},{"$f":"VLOOKUP($A38,cost_data!$A$5:$BB$215,P$1,0)","v":30593.941248470011},{"$f":"VLOOKUP($A38,cost_data!$A$5:$BB$215,Q$1,0)","v":442605.13},{"$f":"VLOOKUP($A38,cost_data!$A$5:$BB$215,R$1,0)","v":30593.941248470011},{"$f":"VLOOKUP($A38,cost_data!$A$5:$BB$215,S$1,0)","v":47696.97},{"$f":"VLOOKUP($A38,cost_data!$A$5:$BB$215,T$1,0)","v":30593.941248470011},{"$f":"VLOOKUP($A38,cost_data!$A$5:$BB$215,U$1,0)","v":25801.9399999999},{"$f":"VLOOKUP($A38,cost_data!$A$5:$BB$215,V$1,0)","v":30593.941248470011},{"$f":"VLOOKUP($A38,cost_data!$A$5:$BB$215,W$1,0)","v":17131.11},{"$f":"VLOOKUP($A38,cost_data!$A$5:$BB$215,X$1,0)","v":30593.941248470011},{"$f":"VLOOKUP($A38,cost_data!$A$5:$BB$215,Y$1,0)","v":4900.8100000000004},{"$f":"VLOOKUP($A38,cost_data!$A$5:$BB$215,Z$1,0)","v":30593.941248470011},{"$f":"VLOOKUP($A38,cost_data!$A$5:$BB$215,AA$1,0)","v":6746227.7400000198},{"$f":"VLOOKUP($A38,cost_data!$A$5:$BB$215,AB$1,0)","v":1929804}]
["01X","NHS St Helens",{"$f":"VLOOKUP($A39,cost_data!$A$5:$BB$215,C$1,0)","v":4881472.29},{"$f":"VLOOKUP($A39,cost_data!$A$5:$BB$215,D$1,0)","v":18652.681327160491},{"$f":"VLOOKUP($A39,cost_data!$A$5:$BB$215,E$1,0)","v":1529200.23},{"$f":"VLOOKUP($A39,cost_data!$A$5:$BB$215,F$1,0)","v":18652.681327160491},{"$f":"VLOOKUP($A39,cost_data!$A$5:$BB$215,G$1,0)","v":1126931.32},{"$f":"VLOOKUP($A39,cost_data!$A$5:$BB$215,H$1,0)","v":18652.681327160491},{"$f":"VLOOKUP($A39,cost_data!$A$5:$BB$215,I$1,0)","v":973763.32999999903},{"$f":"VLOOKUP($A39,cost_data!$A$5:$BB$215,J$1,0)","v":18652.681327160491},{"$f":"VLOOKUP($A39,cost_data!$A$5:$BB$215,K$1,0)","v":276033.989999999},{"$f":"VLOOKUP($A39,cost_data!$A$5:$BB$215,L$1,0)","v":18652.681327160491},{"$f":"VLOOKUP($A39,cost_data!$A$5:$BB$215,M$1,0)","v":325244.82000000199},{"$f":"VLOOKUP($A39,cost_data!$A$5:$BB$215,N$1,0)","v":18652.681327160491},{"$f":"VLOOKUP($A39,cost_data!$A$5:$BB$215,O$1,0)","v":294561.71999999898},{"$f":"VLOOKUP($A39,cost_data!$A$5:$BB$215,P$1,0)","v":18652.681327160491},{"$f":"VLOOKUP($A39,cost_data!$A$5:$BB$215,Q$1,0)","v":273981.36},{"$f":"VLOOKUP($A39,cost_data!$A$5:$BB$215,R$1,0)","v":18652.681327160491},{"$f":"VLOOKUP($A39,cost_data!$A$5:$BB$215,S$1,0)","v":30867.33},{"$f":"VLOOKUP($A39,cost_data!$A$5:$BB$215,T$1,0)","v":18652.681327160491},{"$f":"VLOOKUP($A39,cost_data!$A$5:$BB$215,U$1,0)","v":17594.54},{"$f":"VLOOKUP($A39,cost_data!$A$5:$BB$215,V$1,0)","v":18652.681327160491},{"$f":"VLOOKUP($A39,cost_data!$A$5:$BB$215,W$1,0)","v":14274.55},{"$f":"VLOOKUP($A39,cost_data!$A$5:$BB$215,X$1,0)","v":18652.681327160491},{"$f":"VLOOKUP($A39,cost_data!$A$5:$BB$215,Y$1,0)","v":19019.099999999999},{"$f":"VLOOKUP($A39,cost_data!$A$5:$BB$215,Z$1,0)","v":18652.681327160491},{"$f":"VLOOKUP($A39,cost_data!$A$5:$BB$215,AA$1,0)","v":4881472.29},{"$f":"VLOOKUP($A39,cost_data!$A$5:$BB$215,AB$1,0)","v":1363203}]
["01Y","NHS Tameside and Glossop",{"$f":"VLOOKUP($A40,cost_data!$A$5:$BB$215,C$1,0)","v":6080322.8000000101},{"$f":"VLOOKUP($A40,cost_data!$A$5:$BB$215,D$1,0)","v":25016.274489478594},{"$f":"VLOOKUP($A40,cost_data!$A$5:$BB$215,E$1,0)","v":1800186.6},{"$f":"VLOOKUP($A40,cost_data!$A$5:$BB$215,F$1,0)","v":25016.274489478594},{"$f":"VLOOKUP($A40,cost_data!$A$5:$BB$215,G$1,0)","v":1397894.67},{"$f":"VLOOKUP($A40,cost_data!$A$5:$BB$215,H$1,0)","v":25016.274489478594},{"$f":"VLOOKUP($A40,cost_data!$A$5:$BB$215,I$1,0)","v":1404976.39},{"$f":"VLOOKUP($A40,cost_data!$A$5:$BB$215,J$1,0)","v":25016.274489478594},{"$f":"VLOOKUP($A40,cost_data!$A$5:$BB$215,K$1,0)","v":236639.80999999901},{"$f":"VLOOKUP($A40,cost_data!$A$5:$BB$215,L$1,0)","v":25016.274489478594},{"$f":"VLOOKUP($A40,cost_data!$A$5:$BB$215,M$1,0)","v":449523.620000005},{"$f":"VLOOKUP($A40,cost_data!$A$5:$BB$215,N$1,0)","v":25016.274489478594},{"$f":"VLOOKUP($A40,cost_data!$A$5:$BB$215,O$1,0)","v":326851.98999999801},{"$f":"VLOOKUP($A40,cost_data!$A$5:$BB$215,P$1,0)","v":25016.274489478594},{"$f":"VLOOKUP($A40,cost_data!$A$5:$BB$215,Q$1,0)","v":387270.25999999902},{"$f":"VLOOKUP($A40,cost_data!$A$5:$BB$215,R$1,0)","v":25016.274489478594},{"$f":"VLOOKUP($A40,cost_data!$A$5:$BB$215,S$1,0)","v":33603.090000000098},{"$f":"VLOOKUP($A40,cost_data!$A$5:$BB$215,T$1,0)","v":25016.274489478594},{"$f":"VLOOKUP($A40,cost_data!$A$5:$BB$215,U$1,0)","v":21853.6899999999},{"$f":"VLOOKUP($A40,cost_data!$A$5:$BB$215,V$1,0)","v":25016.274489478594},{"$f":"VLOOKUP($A40,cost_data!$A$5:$BB$215,W$1,0)","v":19089.830000000002},{"$f":"VLOOKUP($A40,cost_data!$A$5:$BB$215,X$1,0)","v":25016.274489478594},{"$f":"VLOOKUP($A40,cost_data!$A$5:$BB$215,Y$1,0)","v":2432.85},{"$f":"VLOOKUP($A40,cost_data!$A$5:$BB$215,Z$1,0)","v":25016.274489478594},{"$f":"VLOOKUP($A40,cost_data!$A$5:$BB$215,AA$1,0)","v":6080322.8000000101},{"$f":"VLOOKUP($A40,cost_data!$A$5:$BB$215,AB$1,0)","v":1559909}]
["02A","NHS Trafford",{"$f":"VLOOKUP($A41,cost_data!$A$5:$BB$215,C$1,0)","v":5255385.28},{"$f":"VLOOKUP($A41,cost_data!$A$5:$BB$215,D$1,0)","v":24262.692921766899},{"$f":"VLOOKUP($A41,cost_data!$A$5:$BB$215,E$1,0)","v":1757245.4300000099},{"$f":"VLOOKUP($A41,cost_data!$A$5:$BB$215,F$1,0)","v":24262.692921766899},{"$f":"VLOOKUP($A41,cost_data!$A$5:$BB$215,G$1,0)","v":1187022.6000000001},{"$f":"VLOOKUP($A41,cost_data!$A$5:$BB$215,H$1,0)","v":24262.692921766899},{"$f":"VLOOKUP($A41,cost_data!$A$5:$BB$215,I$1,0)","v":915964.12999999896},{"$f":"VLOOKUP($A41,cost_data!$A$5:$BB$215,J$1,0)","v":24262.692921766899},{"$f":"VLOOKUP($A41,cost_data!$A$5:$BB$215,K$1,0)","v":243134.06},{"$f":"VLOOKUP($A41,cost_data!$A$5:$BB$215,L$1,0)","v":24262.692921766899},{"$f":"VLOOKUP($A41,cost_data!$A$5:$BB$215,M$1,0)","v":435545.97000000102},{"$f":"VLOOKUP($A41,cost_data!$A$5:$BB$215,N$1,0)","v":24262.692921766899},{"$f":"VLOOKUP($A41,cost_data!$A$5:$BB$215,O$1,0)","v":316347.56999999803},{"$f":"VLOOKUP($A41,cost_data!$A$5:$BB$215,P$1,0)","v":24262.692921766899},{"$f":"VLOOKUP($A41,cost_data!$A$5:$BB$215,Q$1,0)","v":329546.76999999897},{"$f":"VLOOKUP($A41,cost_data!$A$5:$BB$215,R$1,0)","v":24262.692921766899},{"$f":"VLOOKUP($A41,cost_data!$A$5:$BB$215,S$1,0)","v":27005.06},{"$f":"VLOOKUP($A41,cost_data!$A$5:$BB$215,T$1,0)","v":24262.692921766899},{"$f":"VLOOKUP($A41,cost_data!$A$5:$BB$215,U$1,0)","v":18547.349999999999},{"$f":"VLOOKUP($A41,cost_data!$A$5:$BB$215,V$1,0)","v":24262.692921766899},{"$f":"VLOOKUP($A41,cost_data!$A$5:$BB$215,W$1,0)","v":21051.4},{"$f":"VLOOKUP($A41,cost_data!$A$5:$BB$215,X$1,0)","v":24262.692921766899},{"$f":"VLOOKUP($A41,cost_data!$A$5:$BB$215,Y$1,0)","v":3974.94},{"$f":"VLOOKUP($A41,cost_data!$A$5:$BB$215,Z$1,0)","v":24262.692921766899},{"$f":"VLOOKUP($A41,cost_data!$A$5:$BB$215,AA$1,0)","v":5255385.28},{"$f":"VLOOKUP($A41,cost_data!$A$5:$BB$215,AB$1,0)","v":1470843}]
["02D","NHS Vale Royal",{"$f":"VLOOKUP($A42,cost_data!$A$5:$BB$215,C$1,0)","v":2045601.34},{"$f":"VLOOKUP($A42,cost_data!$A$5:$BB$215,D$1,0)","v":10709.886887306242},{"$f":"VLOOKUP($A42,cost_data!$A$5:$BB$215,E$1,0)","v":553247.400000002},{"$f":"VLOOKUP($A42,cost_data!$A$5:$BB$215,F$1,0)","v":10709.886887306242},{"$f":"VLOOKUP($A42,cost_data!$A$5:$BB$215,G$1,0)","v":513746.299999999},{"$f":"VLOOKUP($A42,cost_data!$A$5:$BB$215,H$1,0)","v":10709.886887306242},{"$f":"VLOOKUP($A42,cost_data!$A$5:$BB$215,I$1,0)","v":392581.91},{"$f":"VLOOKUP($A42,cost_data!$A$5:$BB$215,J$1,0)","v":10709.886887306242},{"$f":"VLOOKUP($A42,cost_data!$A$5:$BB$215,K$1,0)","v":134963.94},{"$f":"VLOOKUP($A42,cost_data!$A$5:$BB$215,L$1,0)","v":10709.886887306242},{"$f":"VLOOKUP($A42,cost_data!$A$5:$BB$215,M$1,0)","v":159870.25},{"$f":"VLOOKUP($A42,cost_data!$A$5:$BB$215,N$1,0)","v":10709.886887306242},{"$f":"VLOOKUP($A42,cost_data!$A$5:$BB$215,O$1,0)","v":129250.32},{"$f":"VLOOKUP($A42,cost_data!$A$5:$BB$215,P$1,0)","v":10709.886887306242},{"$f":"VLOOKUP($A42,cost_data!$A$5:$BB$215,Q$1,0)","v":134265.91},{"$f":"VLOOKUP($A42,cost_data!$A$5:$BB$215,R$1,0)","v":10709.886887306242},{"$f":"VLOOKUP($A42,cost_data!$A$5:$BB$215,S$1,0)","v":8438.6500000000106},{"$f":"VLOOKUP($A42,cost_data!$A$5:$BB$215,T$1,0)","v":10709.886887306242},{"$f":"VLOOKUP($A42,cost_data!$A$5:$BB$215,U$1,0)","v":8453.08},{"$f":"VLOOKUP($A42,cost_data!$A$5:$BB$215,V$1,0)","v":10709.886887306242},{"$f":"VLOOKUP($A42,cost_data!$A$5:$BB$215,W$1,0)","v":7996.95},{"$f":"VLOOKUP($A42,cost_data!$A$5:$BB$215,X$1,0)","v":10709.886887306242},{"$f":"VLOOKUP($A42,cost_data!$A$5:$BB$215,Y$1,0)","v":2786.63},{"$f":"VLOOKUP($A42,cost_data!$A$5:$BB$215,Z$1,0)","v":10709.886887306242},{"$f":"VLOOKUP($A42,cost_data!$A$5:$BB$215,AA$1,0)","v":2045601.34},{"$f":"VLOOKUP($A42,cost_data!$A$5:$BB$215,AB$1,0)","v":755022}]
["02E","NHS Warrington",{"$f":"VLOOKUP($A43,cost_data!$A$5:$BB$215,C$1,0)","v":4350356.71},{"$f":"VLOOKUP($A43,cost_data!$A$5:$BB$215,D$1,0)","v":22761.115954664343},{"$f":"VLOOKUP($A43,cost_data!$A$5:$BB$215,E$1,0)","v":1185945.9099999999},{"$f":"VLOOKUP($A43,cost_data!$A$5:$BB$215,F$1,0)","v":22761.115954664343},{"$f":"VLOOKUP($A43,cost_data!$A$5:$BB$215,G$1,0)","v":1027962.02},{"$f":"VLOOKUP($A43,cost_data!$A$5:$BB$215,H$1,0)","v":22761.115954664343},{"$f":"VLOOKUP($A43,cost_data!$A$5:$BB$215,I$1,0)","v":1003518.53},{"$f":"VLOOKUP($A43,cost_data!$A$5:$BB$215,J$1,0)","v":22761.115954664343},{"$f":"VLOOKUP($A43,cost_data!$A$5:$BB$215,K$1,0)","v":285734.46999999997},{"$f":"VLOOKUP($A43,cost_data!$A$5:$BB$215,L$1,0)","v":22761.115954664343},{"$f":"VLOOKUP($A43,cost_data!$A$5:$BB$215,M$1,0)","v":297293.320000001},{"$f":"VLOOKUP($A43,cost_data!$A$5:$BB$215,N$1,0)","v":22761.115954664343},{"$f":"VLOOKUP($A43,cost_data!$A$5:$BB$215,O$1,0)","v":261028.75},{"$f":"VLOOKUP($A43,cost_data!$A$5:$BB$215,P$1,0)","v":22761.115954664343},{"$f":"VLOOKUP($A43,cost_data!$A$5:$BB$215,Q$1,0)","v":233239.74000000101},{"$f":"VLOOKUP($A43,cost_data!$A$5:$BB$215,R$1,0)","v":22761.115954664343},{"$f":"VLOOKUP($A43,cost_data!$A$5:$BB$215,S$1,0)","v":22583.72},{"$f":"VLOOKUP($A43,cost_data!$A$5:$BB$215,T$1,0)","v":22761.115954664343},{"$f":"VLOOKUP($A43,cost_data!$A$5:$BB$215,U$1,0)","v":19357.64},{"$f":"VLOOKUP($A43,cost_data!$A$5:$BB$215,V$1,0)","v":22761.115954664343},{"$f":"VLOOKUP($A43,cost_data!$A$5:$BB$215,W$1,0)","v":13170.91},{"$f":"VLOOKUP($A43,cost_data!$A$5:$BB$215,X$1,0)","v":22761.115954664343},{"$f":"VLOOKUP($A43,cost_data!$A$5:$BB$215,Y$1,0)","v":442.45},{"$f":"VLOOKUP($A43,cost_data!$A$5:$BB$215,Z$1,0)","v":22761.115954664343},{"$f":"VLOOKUP($A43,cost_data!$A$5:$BB$215,AA$1,0)","v":4350356.71},{"$f":"VLOOKUP($A43,cost_data!$A$5:$BB$215,AB$1,0)","v":996412}]
["02F","NHS West Cheshire",{"$f":"VLOOKUP($A44,cost_data!$A$5:$BB$215,C$1,0)","v":5272505.7700000098},{"$f":"VLOOKUP($A44,cost_data!$A$5:$BB$215,D$1,0)","v":25154.263183834402},{"$f":"VLOOKUP($A44,cost_data!$A$5:$BB$215,E$1,0)","v":1581055.8299999901},{"$f":"VLOOKUP($A44,cost_data!$A$5:$BB$215,F$1,0)","v":25154.263183834402},{"$f":"VLOOKUP($A44,cost_data!$A$5:$BB$215,G$1,0)","v":1153116.53},{"$f":"VLOOKUP($A44,cost_data!$A$5:$BB$215,H$1,0)","v":25154.263183834402},{"$f":"VLOOKUP($A44,cost_data!$A$5:$BB$215,I$1,0)","v":1034528.92},{"$f":"VLOOKUP($A44,cost_data!$A$5:$BB$215,J$1,0)","v":25154.263183834402},{"$f":"VLOOKUP($A44,cost_data!$A$5:$BB$215,K$1,0)","v":399614.05000000098},{"$f":"VLOOKUP($A44,cost_data!$A$5:$BB$215,L$1,0)","v":25154.263183834402},{"$f":"VLOOKUP($A44,cost_data!$A$5:$BB$215,M$1,0)","v":395200.04000000202},{"$f":"VLOOKUP($A44,cost_data!$A$5:$BB$215,N$1,0)","v":25154.263183834402},{"$f":"VLOOKUP($A44,cost_data!$A$5:$BB$215,O$1,0)","v":332648.7},{"$f":"VLOOKUP($A44,cost_data!$A$5:$BB$215,P$1,0)","v":25154.263183834402},{"$f":"VLOOKUP($A44,cost_data!$A$5:$BB$215,Q$1,0)","v":292290.64},{"$f":"VLOOKUP($A44,cost_data!$A$5:$BB$215,R$1,0)","v":25154.263183834402},{"$f":"VLOOKUP($A44,cost_data!$A$5:$BB$215,S$1,0)","v":37398.5},{"$f":"VLOOKUP($A44,cost_data!$A$5:$BB$215,T$1,0)","v":25154.263183834402},{"$f":"VLOOKUP($A44,cost_data!$A$5:$BB$215,U$1,0)","v":29678.199999999899},{"$f":"VLOOKUP($A44,cost_data!$A$5:$BB$215,V$1,0)","v":25154.263183834402},{"$f":"VLOOKUP($A44,cost_data!$A$5:$BB$215,W$1,0)","v":15028.88},{"$f":"VLOOKUP($A44,cost_data!$A$5:$BB$215,X$1,0)","v":25154.263183834402},{"$f":"VLOOKUP($A44,cost_data!$A$5:$BB$215,Y$1,0)","v":1945.48},{"$f":"VLOOKUP($A44,cost_data!$A$5:$BB$215,Z$1,0)","v":25154.263183834402},{"$f":"VLOOKUP($A44,cost_data!$A$5:$BB$215,AA$1,0)","v":5272505.7700000098},{"$f":"VLOOKUP($A44,cost_data!$A$5:$BB$215,AB$1,0)","v":1347537}]
["02G","NHS West Lancashire",{"$f":"VLOOKUP($A45,cost_data!$A$5:$BB$215,C$1,0)","v":2568614.8199999998},{"$f":"VLOOKUP($A45,cost_data!$A$5:$BB$215,D$1,0)","v":10989.007753459613},{"$f":"VLOOKUP($A45,cost_data!$A$5:$BB$215,E$1,0)","v":878403.09000000299},{"$f":"VLOOKUP($A45,cost_data!$A$5:$BB$215,F$1,0)","v":10989.007753459613},{"$f":"VLOOKUP($A45,cost_data!$A$5:$BB$215,G$1,0)","v":597485.27},{"$f":"VLOOKUP($A45,cost_data!$A$5:$BB$215,H$1,0)","v":10989.007753459613},{"$f":"VLOOKUP($A45,cost_data!$A$5:$BB$215,I$1,0)","v":443570.94},{"$f":"VLOOKUP($A45,cost_data!$A$5:$BB$215,J$1,0)","v":10989.007753459613},{"$f":"VLOOKUP($A45,cost_data!$A$5:$BB$215,K$1,0)","v":135468.28},{"$f":"VLOOKUP($A45,cost_data!$A$5:$BB$215,L$1,0)","v":10989.007753459613},{"$f":"VLOOKUP($A45,cost_data!$A$5:$BB$215,M$1,0)","v":150028.4},{"$f":"VLOOKUP($A45,cost_data!$A$5:$BB$215,N$1,0)","v":10989.007753459613},{"$f":"VLOOKUP($A45,cost_data!$A$5:$BB$215,O$1,0)","v":172622.019999999},{"$f":"VLOOKUP($A45,cost_data!$A$5:$BB$215,P$1,0)","v":10989.007753459613},{"$f":"VLOOKUP($A45,cost_data!$A$5:$BB$215,Q$1,0)","v":134663.1},{"$f":"VLOOKUP($A45,cost_data!$A$5:$BB$215,R$1,0)","v":10989.007753459613},{"$f":"VLOOKUP($A45,cost_data!$A$5:$BB$215,S$1,0)","v":29172.35},{"$f":"VLOOKUP($A45,cost_data!$A$5:$BB$215,T$1,0)","v":10989.007753459613},{"$f":"VLOOKUP($A45,cost_data!$A$5:$BB$215,U$1,0)","v":12199.83},{"$f":"VLOOKUP($A45,cost_data!$A$5:$BB$215,V$1,0)","v":10989.007753459613},{"$f":"VLOOKUP($A45,cost_data!$A$5:$BB$215,W$1,0)","v":5538.1899999999896},{"$f":"VLOOKUP($A45,cost_data!$A$5:$BB$215,X$1,0)","v":10989.007753459613},{"$f":"VLOOKUP($A45,cost_data!$A$5:$BB$215,Y$1,0)","v":9463.35},{"$f":"VLOOKUP($A45,cost_data!$A$5:$BB$215,Z$1,0)","v":10989.007753459613},{"$f":"VLOOKUP($A45,cost_data!$A$5:$BB$215,AA$1,0)","v":2568614.8199999998},{"$f":"VLOOKUP($A45,cost_data!$A$5:$BB$215,AB$1,0)","v":637610}]
["02H","NHS Wigan Borough",{"$f":"VLOOKUP($A46,cost_data!$A$5:$BB$215,C$1,0)","v":8149531.8700000197},{"$f":"VLOOKUP($A46,cost_data!$A$5:$BB$215,D$1,0)","v":32732.680338740945},{"$f":"VLOOKUP($A46,cost_data!$A$5:$BB$215,E$1,0)","v":2660142.2099999902},{"$f":"VLOOKUP($A46,cost_data!$A$5:$BB$215,F$1,0)","v":32732.680338740945},{"$f":"VLOOKUP($A46,cost_data!$A$5:$BB$215,G$1,0)","v":1770532.11},{"$f":"VLOOKUP($A46,cost_data!$A$5:$BB$215,H$1,0)","v":32732.680338740945},{"$f":"VLOOKUP($A46,cost_data!$A$5:$BB$215,I$1,0)","v":1692951.64},{"$f":"VLOOKUP($A46,cost_data!$A$5:$BB$215,J$1,0)","v":32732.680338740945},{"$f":"VLOOKUP($A46,cost_data!$A$5:$BB$215,K$1,0)","v":378834.13999999902},{"$f":"VLOOKUP($A46,cost_data!$A$5:$BB$215,L$1,0)","v":32732.680338740945},{"$f":"VLOOKUP($A46,cost_data!$A$5:$BB$215,M$1,0)","v":590364.53000000899},{"$f":"VLOOKUP($A46,cost_data!$A$5:$BB$215,N$1,0)","v":32732.680338740945},{"$f":"VLOOKUP($A46,cost_data!$A$5:$BB$215,O$1,0)","v":489744.809999994},{"$f":"VLOOKUP($A46,cost_data!$A$5:$BB$215,P$1,0)","v":32732.680338740945},{"$f":"VLOOKUP($A46,cost_data!$A$5:$BB$215,Q$1,0)","v":380896.32999999699},{"$f":"VLOOKUP($A46,cost_data!$A$5:$BB$215,R$1,0)","v":32732.680338740945},{"$f":"VLOOKUP($A46,cost_data!$A$5:$BB$215,S$1,0)","v":75870.890000000101},{"$f":"VLOOKUP($A46,cost_data!$A$5:$BB$215,T$1,0)","v":32732.680338740945},{"$f":"VLOOKUP($A46,cost_data!$A$5:$BB$215,U$1,0)","v":29990.059999999801},{"$f":"VLOOKUP($A46,cost_data!$A$5:$BB$215,V$1,0)","v":32732.680338740945},{"$f":"VLOOKUP($A46,cost_data!$A$5:$BB$215,W$1,0)","v":19545.8},{"$f":"VLOOKUP($A46,cost_data!$A$5:$BB$215,X$1,0)","v":32732.680338740945},{"$f":"VLOOKUP($A46,cost_data!$A$5:$BB$215,Y$1,0)","v":60659.35},{"$f":"VLOOKUP($A46,cost_data!$A$5:$BB$215,Z$1,0)","v":32732.680338740945},{"$f":"VLOOKUP($A46,cost_data!$A$5:$BB$215,AA$1,0)","v":8149531.8700000197},{"$f":"VLOOKUP($A46,cost_data!$A$5:$BB$215,AB$1,0)","v":1868738}]
["02M","NHS Fylde & Wyre",{"$f":"VLOOKUP($A47,cost_data!$A$5:$BB$215,C$1,0)","v":3661783.29},{"$f":"VLOOKUP($A47,cost_data!$A$5:$BB$215,D$1,0)","v":12706.357214934411},{"$f":"VLOOKUP($A47,cost_data!$A$5:$BB$215,E$1,0)","v":1053758.1400000099},{"$f":"VLOOKUP($A47,cost_data!$A$5:$BB$215,F$1,0)","v":12706.357214934411},{"$f":"VLOOKUP($A47,cost_data!$A$5:$BB$215,G$1,0)","v":832123.14999999898},{"$f":"VLOOKUP($A47,cost_data!$A$5:$BB$215,H$1,0)","v":12706.357214934411},{"$f":"VLOOKUP($A47,cost_data!$A$5:$BB$215,I$1,0)","v":741730.32},{"$f":"VLOOKUP($A47,cost_data!$A$5:$BB$215,J$1,0)","v":12706.357214934411},{"$f":"VLOOKUP($A47,cost_data!$A$5:$BB$215,K$1,0)","v":187070.16},{"$f":"VLOOKUP($A47,cost_data!$A$5:$BB$215,L$1,0)","v":12706.357214934411},{"$f":"VLOOKUP($A47,cost_data!$A$5:$BB$215,M$1,0)","v":317468.21000000101},{"$f":"VLOOKUP($A47,cost_data!$A$5:$BB$215,N$1,0)","v":12706.357214934411},{"$f":"VLOOKUP($A47,cost_data!$A$5:$BB$215,O$1,0)","v":259770.889999999},{"$f":"VLOOKUP($A47,cost_data!$A$5:$BB$215,P$1,0)","v":12706.357214934411},{"$f":"VLOOKUP($A47,cost_data!$A$5:$BB$215,Q$1,0)","v":220660.48000000001},{"$f":"VLOOKUP($A47,cost_data!$A$5:$BB$215,R$1,0)","v":12706.357214934411},{"$f":"VLOOKUP($A47,cost_data!$A$5:$BB$215,S$1,0)","v":16652.310000000001},{"$f":"VLOOKUP($A47,cost_data!$A$5:$BB$215,T$1,0)","v":12706.357214934411},{"$f":"VLOOKUP($A47,cost_data!$A$5:$BB$215,U$1,0)","v":21360.28},{"$f":"VLOOKUP($A47,cost_data!$A$5:$BB$215,V$1,0)","v":12706.357214934411},{"$f":"VLOOKUP($A47,cost_data!$A$5:$BB$215,W$1,0)","v":8817.5400000000009},{"$f":"VLOOKUP($A47,cost_data!$A$5:$BB$215,X$1,0)","v":12706.357214934411},{"$f":"VLOOKUP($A47,cost_data!$A$5:$BB$215,Y$1,0)","v":2371.81},{"$f":"VLOOKUP($A47,cost_data!$A$5:$BB$215,Z$1,0)","v":12706.357214934411},{"$f":"VLOOKUP($A47,cost_data!$A$5:$BB$215,AA$1,0)","v":3661783.29},{"$f":"VLOOKUP($A47,cost_data!$A$5:$BB$215,AB$1,0)","v":1261915}]
["02N","NHS Airedale, Wharfedale and Craven",{"$f":"VLOOKUP($A48,cost_data!$A$5:$BB$215,C$1,0)","v":3543292.53},{"$f":"VLOOKUP($A48,cost_data!$A$5:$BB$215,D$1,0)","v":15164.887422360249},{"$f":"VLOOKUP($A48,cost_data!$A$5:$BB$215,E$1,0)","v":999243.56000000099},{"$f":"VLOOKUP($A48,cost_data!$A$5:$BB$215,F$1,0)","v":15164.887422360249},{"$f":"VLOOKUP($A48,cost_data!$A$5:$BB$215,G$1,0)","v":885736.09},{"$f":"VLOOKUP($A48,cost_data!$A$5:$BB$215,H$1,0)","v":15164.887422360249},{"$f":"VLOOKUP($A48,cost_data!$A$5:$BB$215,I$1,0)","v":669845.19999999995},{"$f":"VLOOKUP($A48,cost_data!$A$5:$BB$215,J$1,0)","v":15164.887422360249},{"$f":"VLOOKUP($A48,cost_data!$A$5:$BB$215,K$1,0)","v":275304},{"$f":"VLOOKUP($A48,cost_data!$A$5:$BB$215,L$1,0)","v":15164.887422360249},{"$f":"VLOOKUP($A48,cost_data!$A$5:$BB$215,M$1,0)","v":227368.88},{"$f":"VLOOKUP($A48,cost_data!$A$5:$BB$215,N$1,0)","v":15164.887422360249},{"$f":"VLOOKUP($A48,cost_data!$A$5:$BB$215,O$1,0)","v":238911.90999999901},{"$f":"VLOOKUP($A48,cost_data!$A$5:$BB$215,P$1,0)","v":15164.887422360249},{"$f":"VLOOKUP($A48,cost_data!$A$5:$BB$215,Q$1,0)","v":182751.17},{"$f":"VLOOKUP($A48,cost_data!$A$5:$BB$215,R$1,0)","v":15164.887422360249},{"$f":"VLOOKUP($A48,cost_data!$A$5:$BB$215,S$1,0)","v":30248.84},{"$f":"VLOOKUP($A48,cost_data!$A$5:$BB$215,T$1,0)","v":15164.887422360249},{"$f":"VLOOKUP($A48,cost_data!$A$5:$BB$215,U$1,0)","v":18184},{"$f":"VLOOKUP($A48,cost_data!$A$5:$BB$215,V$1,0)","v":15164.887422360249},{"$f":"VLOOKUP($A48,cost_data!$A$5:$BB$215,W$1,0)","v":13183.96},{"$f":"VLOOKUP($A48,cost_data!$A$5:$BB$215,X$1,0)","v":15164.887422360249},{"$f":"VLOOKUP($A48,cost_data!$A$5:$BB$215,Y$1,0)","v":2514.92},{"$f":"VLOOKUP($A48,cost_data!$A$5:$BB$215,Z$1,0)","v":15164.887422360249},{"$f":"VLOOKUP($A48,cost_data!$A$5:$BB$215,AA$1,0)","v":3543292.53},{"$f":"VLOOKUP($A48,cost_data!$A$5:$BB$215,AB$1,0)","v":873508}]
["02P","NHS Barnsley",{"$f":"VLOOKUP($A49,cost_data!$A$5:$BB$215,C$1,0)","v":6222654.6700000204},{"$f":"VLOOKUP($A49,cost_data!$A$5:$BB$215,D$1,0)","v":24249.491525423731},{"$f":"VLOOKUP($A49,cost_data!$A$5:$BB$215,E$1,0)","v":2141503.21999999},{"$f":"VLOOKUP($A49,cost_data!$A$5:$BB$215,F$1,0)","v":24249.491525423731},{"$f":"VLOOKUP($A49,cost_data!$A$5:$BB$215,G$1,0)","v":1301180.6499999999},{"$f":"VLOOKUP($A49,cost_data!$A$5:$BB$215,H$1,0)","v":24249.491525423731},{"$f":"VLOOKUP($A49,cost_data!$A$5:$BB$215,I$1,0)","v":1075431.79},{"$f":"VLOOKUP($A49,cost_data!$A$5:$BB$215,J$1,0)","v":24249.491525423731},{"$f":"VLOOKUP($A49,cost_data!$A$5:$BB$215,K$1,0)","v":276322.93},{"$f":"VLOOKUP($A49,cost_data!$A$5:$BB$215,L$1,0)","v":24249.491525423731},{"$f":"VLOOKUP($A49,cost_data!$A$5:$BB$215,M$1,0)","v":433372.86000000202},{"$f":"VLOOKUP($A49,cost_data!$A$5:$BB$215,N$1,0)","v":24249.491525423731},{"$f":"VLOOKUP($A49,cost_data!$A$5:$BB$215,O$1,0)","v":594789.43000000296},{"$f":"VLOOKUP($A49,cost_data!$A$5:$BB$215,P$1,0)","v":24249.491525423731},{"$f":"VLOOKUP($A49,cost_data!$A$5:$BB$215,Q$1,0)","v":318891.72999999899},{"$f":"VLOOKUP($A49,cost_data!$A$5:$BB$215,R$1,0)","v":24249.491525423731},{"$f":"VLOOKUP($A49,cost_data!$A$5:$BB$215,S$1,0)","v":23390.74},{"$f":"VLOOKUP($A49,cost_data!$A$5:$BB$215,T$1,0)","v":24249.491525423731},{"$f":"VLOOKUP($A49,cost_data!$A$5:$BB$215,U$1,0)","v":26270.78},{"$f":"VLOOKUP($A49,cost_data!$A$5:$BB$215,V$1,0)","v":24249.491525423731},{"$f":"VLOOKUP($A49,cost_data!$A$5:$BB$215,W$1,0)","v":22282.27},{"$f":"VLOOKUP($A49,cost_data!$A$5:$BB$215,X$1,0)","v":24249.491525423731},{"$f":"VLOOKUP($A49,cost_data!$A$5:$BB$215,Y$1,0)","v":9218.27},{"$f":"VLOOKUP($A49,cost_data!$A$5:$BB$215,Z$1,0)","v":24249.491525423731},{"$f":"VLOOKUP($A49,cost_data!$A$5:$BB$215,AA$1,0)","v":6222654.6700000204},{"$f":"VLOOKUP($A49,cost_data!$A$5:$BB$215,AB$1,0)","v":2045956}]
["02Q","NHS Bassetlaw",{"$f":"VLOOKUP($A50,cost_data!$A$5:$BB$215,C$1,0)","v":2256653.25},{"$f":"VLOOKUP($A50,cost_data!$A$5:$BB$215,D$1,0)","v":10835.430784123912},{"$f":"VLOOKUP($A50,cost_data!$A$5:$BB$215,E$1,0)","v":647251.57000000204},{"$f":"VLOOKUP($A50,cost_data!$A$5:$BB$215,F$1,0)","v":10835.430784123912},{"$f":"VLOOKUP($A50,cost_data!$A$5:$BB$215,G$1,0)","v":546546.52999999898},{"$f":"VLOOKUP($A50,cost_data!$A$5:$BB$215,H$1,0)","v":10835.430784123912},{"$f":"VLOOKUP($A50,cost_data!$A$5:$BB$215,I$1,0)","v":415528.11},{"$f":"VLOOKUP($A50,cost_data!$A$5:$BB$215,J$1,0)","v":10835.430784123912},{"$f":"VLOOKUP($A50,cost_data!$A$5:$BB$215,K$1,0)","v":115321.01},{"$f":"VLOOKUP($A50,cost_data!$A$5:$BB$215,L$1,0)","v":10835.430784123912},{"$f":"VLOOKUP($A50,cost_data!$A$5:$BB$215,M$1,0)","v":179643.51999999999},{"$f":"VLOOKUP($A50,cost_data!$A$5:$BB$215,N$1,0)","v":10835.430784123912},{"$f":"VLOOKUP($A50,cost_data!$A$5:$BB$215,O$1,0)","v":191764.25},{"$f":"VLOOKUP($A50,cost_data!$A$5:$BB$215,P$1,0)","v":10835.430784123912},{"$f":"VLOOKUP($A50,cost_data!$A$5:$BB$215,Q$1,0)","v":123390.73},{"$f":"VLOOKUP($A50,cost_data!$A$5:$BB$215,R$1,0)","v":10835.430784123912},{"$f":"VLOOKUP($A50,cost_data!$A$5:$BB$215,S$1,0)","v":15986.14},{"$f":"VLOOKUP($A50,cost_data!$A$5:$BB$215,T$1,0)","v":10835.430784123912},{"$f":"VLOOKUP($A50,cost_data!$A$5:$BB$215,U$1,0)","v":12223.81},{"$f":"VLOOKUP($A50,cost_data!$A$5:$BB$215,V$1,0)","v":10835.430784123912},{"$f":"VLOOKUP($A50,cost_data!$A$5:$BB$215,W$1,0)","v":8832.6799999999894},{"$f":"VLOOKUP($A50,cost_data!$A$5:$BB$215,X$1,0)","v":10835.430784123912},{"$f":"VLOOKUP($A50,cost_data!$A$5:$BB$215,Y$1,0)","v":164.9},{"$f":"VLOOKUP($A50,cost_data!$A$5:$BB$215,Z$1,0)","v":10835.430784123912},{"$f":"VLOOKUP($A50,cost_data!$A$5:$BB$215,AA$1,0)","v":2256653.25},{"$f":"VLOOKUP($A50,cost_data!$A$5:$BB$215,AB$1,0)","v":725164}]
["02R","NHS Bradford Districts",{"$f":"VLOOKUP($A51,cost_data!$A$5:$BB$215,C$1,0)","v":6148382.8300000196},{"$f":"VLOOKUP($A51,cost_data!$A$5:$BB$215,D$1,0)","v":36061.102669850225},{"$f":"VLOOKUP($A51,cost_data!$A$5:$BB$215,E$1,0)","v":1667757.21},{"$f":"VLOOKUP($A51,cost_data!$A$5:$BB$215,F$1,0)","v":36061.102669850225},{"$f":"VLOOKUP($A51,cost_data!$A$5:$BB$215,G$1,0)","v":1528743.63},{"$f":"VLOOKUP($A51,cost_data!$A$5:$BB$215,H$1,0)","v":36061.102669850225},{"$f":"VLOOKUP($A51,cost_data!$A$5:$BB$215,I$1,0)","v":1387764.49},{"$f":"VLOOKUP($A51,cost_data!$A$5:$BB$215,J$1,0)","v":36061.102669850225},{"$f":"VLOOKUP($A51,cost_data!$A$5:$BB$215,K$1,0)","v":228533.75},{"$f":"VLOOKUP($A51,cost_data!$A$5:$BB$215,L$1,0)","v":36061.102669850225},{"$f":"VLOOKUP($A51,cost_data!$A$5:$BB$215,M$1,0)","v":432462.52000000299},{"$f":"VLOOKUP($A51,cost_data!$A$5:$BB$215,N$1,0)","v":36061.102669850225},{"$f":"VLOOKUP($A51,cost_data!$A$5:$BB$215,O$1,0)","v":419543.94999999902},{"$f":"VLOOKUP($A51,cost_data!$A$5:$BB$215,P$1,0)","v":36061.102669850225},{"$f":"VLOOKUP($A51,cost_data!$A$5:$BB$215,Q$1,0)","v":340608.20999999798},{"$f":"VLOOKUP($A51,cost_data!$A$5:$BB$215,R$1,0)","v":36061.102669850225},{"$f":"VLOOKUP($A51,cost_data!$A$5:$BB$215,S$1,0)","v":44499.3399999998},{"$f":"VLOOKUP($A51,cost_data!$A$5:$BB$215,T$1,0)","v":36061.102669850225},{"$f":"VLOOKUP($A51,cost_data!$A$5:$BB$215,U$1,0)","v":27310.279999999901},{"$f":"VLOOKUP($A51,cost_data!$A$5:$BB$215,V$1,0)","v":36061.102669850225},{"$f":"VLOOKUP($A51,cost_data!$A$5:$BB$215,W$1,0)","v":29919.46},{"$f":"VLOOKUP($A51,cost_data!$A$5:$BB$215,X$1,0)","v":36061.102669850225},{"$f":"VLOOKUP($A51,cost_data!$A$5:$BB$215,Y$1,0)","v":41239.99},{"$f":"VLOOKUP($A51,cost_data!$A$5:$BB$215,Z$1,0)","v":36061.102669850225},{"$f":"VLOOKUP($A51,cost_data!$A$5:$BB$215,AA$1,0)","v":6148382.8300000196},{"$f":"VLOOKUP($A51,cost_data!$A$5:$BB$215,AB$1,0)","v":1756669}]
["02T","NHS Calderdale",{"$f":"VLOOKUP($A52,cost_data!$A$5:$BB$215,C$1,0)","v":4403097.2099999897},{"$f":"VLOOKUP($A52,cost_data!$A$5:$BB$215,D$1,0)","v":23011.710356682423},{"$f":"VLOOKUP($A52,cost_data!$A$5:$BB$215,E$1,0)","v":1414529.99},{"$f":"VLOOKUP($A52,cost_data!$A$5:$BB$215,F$1,0)","v":23011.710356682423},{"$f":"VLOOKUP($A52,cost_data!$A$5:$BB$215,G$1,0)","v":986630.65999999898},{"$f":"VLOOKUP($A52,cost_data!$A$5:$BB$215,H$1,0)","v":23011.710356682423},{"$f":"VLOOKUP($A52,cost_data!$A$5:$BB$215,I$1,0)","v":864941.60999999905},{"$f":"VLOOKUP($A52,cost_data!$A$5:$BB$215,J$1,0)","v":23011.710356682423},{"$f":"VLOOKUP($A52,cost_data!$A$5:$BB$215,K$1,0)","v":180780.359999999},{"$f":"VLOOKUP($A52,cost_data!$A$5:$BB$215,L$1,0)","v":23011.710356682423},{"$f":"VLOOKUP($A52,cost_data!$A$5:$BB$215,M$1,0)","v":315038.90000000101},{"$f":"VLOOKUP($A52,cost_data!$A$5:$BB$215,N$1,0)","v":23011.710356682423},{"$f":"VLOOKUP($A52,cost_data!$A$5:$BB$215,O$1,0)","v":377351.739999999},{"$f":"VLOOKUP($A52,cost_data!$A$5:$BB$215,P$1,0)","v":23011.710356682423},{"$f":"VLOOKUP($A52,cost_data!$A$5:$BB$215,Q$1,0)","v":208755.45},{"$f":"VLOOKUP($A52,cost_data!$A$5:$BB$215,R$1,0)","v":23011.710356682423},{"$f":"VLOOKUP($A52,cost_data!$A$5:$BB$215,S$1,0)","v":22950.59},{"$f":"VLOOKUP($A52,cost_data!$A$5:$BB$215,T$1,0)","v":23011.710356682423},{"$f":"VLOOKUP($A52,cost_data!$A$5:$BB$215,U$1,0)","v":18097.96},{"$f":"VLOOKUP($A52,cost_data!$A$5:$BB$215,V$1,0)","v":23011.710356682423},{"$f":"VLOOKUP($A52,cost_data!$A$5:$BB$215,W$1,0)","v":13802.18},{"$f":"VLOOKUP($A52,cost_data!$A$5:$BB$215,X$1,0)","v":23011.710356682423},{"$f":"VLOOKUP($A52,cost_data!$A$5:$BB$215,Y$1,0)","v":204.97},{"$f":"VLOOKUP($A52,cost_data!$A$5:$BB$215,Z$1,0)","v":23011.710356682423},{"$f":"VLOOKUP($A52,cost_data!$A$5:$BB$215,AA$1,0)","v":4403097.2099999897},{"$f":"VLOOKUP($A52,cost_data!$A$5:$BB$215,AB$1,0)","v":1203558}]
["02V","NHS Leeds North",{"$f":"VLOOKUP($A53,cost_data!$A$5:$BB$215,C$1,0)","v":3908792.5999999898},{"$f":"VLOOKUP($A53,cost_data!$A$5:$BB$215,D$1,0)","v":21868.164794007491},{"$f":"VLOOKUP($A53,cost_data!$A$5:$BB$215,E$1,0)","v":1158115.1600000099},{"$f":"VLOOKUP($A53,cost_data!$A$5:$BB$215,F$1,0)","v":21868.164794007491},{"$f":"VLOOKUP($A53,cost_data!$A$5:$BB$215,G$1,0)","v":945107.43},{"$f":"VLOOKUP($A53,cost_data!$A$5:$BB$215,H$1,0)","v":21868.164794007491},{"$f":"VLOOKUP($A53,cost_data!$A$5:$BB$215,I$1,0)","v":654030.96},{"$f":"VLOOKUP($A53,cost_data!$A$5:$BB$215,J$1,0)","v":21868.164794007491},{"$f":"VLOOKUP($A53,cost_data!$A$5:$BB$215,K$1,0)","v":265631.58},{"$f":"VLOOKUP($A53,cost_data!$A$5:$BB$215,L$1,0)","v":21868.164794007491},{"$f":"VLOOKUP($A53,cost_data!$A$5:$BB$215,M$1,0)","v":301885.5},{"$f":"VLOOKUP($A53,cost_data!$A$5:$BB$215,N$1,0)","v":21868.164794007491},{"$f":"VLOOKUP($A53,cost_data!$A$5:$BB$215,O$1,0)","v":302509.61999999901},{"$f":"VLOOKUP($A53,cost_data!$A$5:$BB$215,P$1,0)","v":21868.164794007491},{"$f":"VLOOKUP($A53,cost_data!$A$5:$BB$215,Q$1,0)","v":222372.72},{"$f":"VLOOKUP($A53,cost_data!$A$5:$BB$215,R$1,0)","v":21868.164794007491},{"$f":"VLOOKUP($A53,cost_data!$A$5:$BB$215,S$1,0)","v":17681.060000000001},{"$f":"VLOOKUP($A53,cost_data!$A$5:$BB$215,T$1,0)","v":21868.164794007491},{"$f":"VLOOKUP($A53,cost_data!$A$5:$BB$215,U$1,0)","v":15716.05},{"$f":"VLOOKUP($A53,cost_data!$A$5:$BB$215,V$1,0)","v":21868.164794007491},{"$f":"VLOOKUP($A53,cost_data!$A$5:$BB$215,W$1,0)","v":12380.82},{"$f":"VLOOKUP($A53,cost_data!$A$5:$BB$215,X$1,0)","v":21868.164794007491},{"$f":"VLOOKUP($A53,cost_data!$A$5:$BB$215,Y$1,0)","v":13361.7},{"$f":"VLOOKUP($A53,cost_data!$A$5:$BB$215,Z$1,0)","v":21868.164794007491},{"$f":"VLOOKUP($A53,cost_data!$A$5:$BB$215,AA$1,0)","v":3908792.5999999898},{"$f":"VLOOKUP($A53,cost_data!$A$5:$BB$215,AB$1,0)","v":1097839}]
["02W","NHS Bradford City",{"$f":"VLOOKUP($A54,cost_data!$A$5:$BB$215,C$1,0)","v":1362913.44},{"$f":"VLOOKUP($A54,cost_data!$A$5:$BB$215,D$1,0)","v":19663.095434316794},{"$f":"VLOOKUP($A54,cost_data!$A$5:$BB$215,E$1,0)","v":385388.51},{"$f":"VLOOKUP($A54,cost_data!$A$5:$BB$215,F$1,0)","v":19663.095434316794},{"$f":"VLOOKUP($A54,cost_data!$A$5:$BB$215,G$1,0)","v":345274.82},{"$f":"VLOOKUP($A54,cost_data!$A$5:$BB$215,H$1,0)","v":19663.095434316794},{"$f":"VLOOKUP($A54,cost_data!$A$5:$BB$215,I$1,0)","v":316201.25},{"$f":"VLOOKUP($A54,cost_data!$A$5:$BB$215,J$1,0)","v":19663.095434316794},{"$f":"VLOOKUP($A54,cost_data!$A$5:$BB$215,K$1,0)","v":44649.16},{"$f":"VLOOKUP($A54,cost_data!$A$5:$BB$215,L$1,0)","v":19663.095434316794},{"$f":"VLOOKUP($A54,cost_data!$A$5:$BB$215,M$1,0)","v":83542.709999999803},{"$f":"VLOOKUP($A54,cost_data!$A$5:$BB$215,N$1,0)","v":19663.095434316794},{"$f":"VLOOKUP($A54,cost_data!$A$5:$BB$215,O$1,0)","v":92821.999999999505},{"$f":"VLOOKUP($A54,cost_data!$A$5:$BB$215,P$1,0)","v":19663.095434316794},{"$f":"VLOOKUP($A54,cost_data!$A$5:$BB$215,Q$1,0)","v":70810.759999999995},{"$f":"VLOOKUP($A54,cost_data!$A$5:$BB$215,R$1,0)","v":19663.095434316794},{"$f":"VLOOKUP($A54,cost_data!$A$5:$BB$215,S$1,0)","v":3053.74},{"$f":"VLOOKUP($A54,cost_data!$A$5:$BB$215,T$1,0)","v":19663.095434316794},{"$f":"VLOOKUP($A54,cost_data!$A$5:$BB$215,U$1,0)","v":2870.19},{"$f":"VLOOKUP($A54,cost_data!$A$5:$BB$215,V$1,0)","v":19663.095434316794},{"$f":"VLOOKUP($A54,cost_data!$A$5:$BB$215,W$1,0)","v":13021.57},{"$f":"VLOOKUP($A54,cost_data!$A$5:$BB$215,X$1,0)","v":19663.095434316794},{"$f":"VLOOKUP($A54,cost_data!$A$5:$BB$215,Y$1,0)","v":5278.73},{"$f":"VLOOKUP($A54,cost_data!$A$5:$BB$215,Z$1,0)","v":19663.095434316794},{"$f":"VLOOKUP($A54,cost_data!$A$5:$BB$215,AA$1,0)","v":1362913.44},{"$f":"VLOOKUP($A54,cost_data!$A$5:$BB$215,AB$1,0)","v":507749}]
["02X","NHS Doncaster",{"$f":"VLOOKUP($A55,cost_data!$A$5:$BB$215,C$1,0)","v":7033488.8000000203},{"$f":"VLOOKUP($A55,cost_data!$A$5:$BB$215,D$1,0)","v":29641.082011087747},{"$f":"VLOOKUP($A55,cost_data!$A$5:$BB$215,E$1,0)","v":2238063.6599999899},{"$f":"VLOOKUP($A55,cost_data!$A$5:$BB$215,F$1,0)","v":29641.082011087747},{"$f":"VLOOKUP($A55,cost_data!$A$5:$BB$215,G$1,0)","v":1722723.98},{"$f":"VLOOKUP($A55,cost_data!$A$5:$BB$215,H$1,0)","v":29641.082011087747},{"$f":"VLOOKUP($A55,cost_data!$A$5:$BB$215,I$1,0)","v":1306879.3799999999},{"$f":"VLOOKUP($A55,cost_data!$A$5:$BB$215,J$1,0)","v":29641.082011087747},{"$f":"VLOOKUP($A55,cost_data!$A$5:$BB$215,K$1,0)","v":260895.81999999899},{"$f":"VLOOKUP($A55,cost_data!$A$5:$BB$215,L$1,0)","v":29641.082011087747},{"$f":"VLOOKUP($A55,cost_data!$A$5:$BB$215,M$1,0)","v":464913.09000000299},{"$f":"VLOOKUP($A55,cost_data!$A$5:$BB$215,N$1,0)","v":29641.082011087747},{"$f":"VLOOKUP($A55,cost_data!$A$5:$BB$215,O$1,0)","v":532920.37000000104},{"$f":"VLOOKUP($A55,cost_data!$A$5:$BB$215,P$1,0)","v":29641.082011087747},{"$f":"VLOOKUP($A55,cost_data!$A$5:$BB$215,Q$1,0)","v":352790.07999999699},{"$f":"VLOOKUP($A55,cost_data!$A$5:$BB$215,R$1,0)","v":29641.082011087747},{"$f":"VLOOKUP($A55,cost_data!$A$5:$BB$215,S$1,0)","v":51826.9399999999},{"$f":"VLOOKUP($A55,cost_data!$A$5:$BB$215,T$1,0)","v":29641.082011087747},{"$f":"VLOOKUP($A55,cost_data!$A$5:$BB$215,U$1,0)","v":26702.6099999998},{"$f":"VLOOKUP($A55,cost_data!$A$5:$BB$215,V$1,0)","v":29641.082011087747},{"$f":"VLOOKUP($A55,cost_data!$A$5:$BB$215,W$1,0)","v":44170.73},{"$f":"VLOOKUP($A55,cost_data!$A$5:$BB$215,X$1,0)","v":29641.082011087747},{"$f":"VLOOKUP($A55,cost_data!$A$5:$BB$215,Y$1,0)","v":31602.14},{"$f":"VLOOKUP($A55,cost_data!$A$5:$BB$215,Z$1,0)","v":29641.082011087747},{"$f":"VLOOKUP($A55,cost_data!$A$5:$BB$215,AA$1,0)","v":7033488.8000000203},{"$f":"VLOOKUP($A55,cost_data!$A$5:$BB$215,AB$1,0)","v":2167411}]
["02Y","NHS East Riding Of Yorkshire",{"$f":"VLOOKUP($A56,cost_data!$A$5:$BB$215,C$1,0)","v":7176711.9000000302},{"$f":"VLOOKUP($A56,cost_data!$A$5:$BB$215,D$1,0)","v":26662.886506600513},{"$f":"VLOOKUP($A56,cost_data!$A$5:$BB$215,E$1,0)","v":2000007.3799999801},{"$f":"VLOOKUP($A56,cost_data!$A$5:$BB$215,F$1,0)","v":26662.886506600513},{"$f":"VLOOKUP($A56,cost_data!$A$5:$BB$215,G$1,0)","v":1663601.26},{"$f":"VLOOKUP($A56,cost_data!$A$5:$BB$215,H$1,0)","v":26662.886506600513},{"$f":"VLOOKUP($A56,cost_data!$A$5:$BB$215,I$1,0)","v":1325689.0900000001},{"$f":"VLOOKUP($A56,cost_data!$A$5:$BB$215,J$1,0)","v":26662.886506600513},{"$f":"VLOOKUP($A56,cost_data!$A$5:$BB$215,K$1,0)","v":538663.17000000097},{"$f":"VLOOKUP($A56,cost_data!$A$5:$BB$215,L$1,0)","v":26662.886506600513},{"$f":"VLOOKUP($A56,cost_data!$A$5:$BB$215,M$1,0)","v":582856.95000000403},{"$f":"VLOOKUP($A56,cost_data!$A$5:$BB$215,N$1,0)","v":26662.886506600513},{"$f":"VLOOKUP($A56,cost_data!$A$5:$BB$215,O$1,0)","v":427961.44},{"$f":"VLOOKUP($A56,cost_data!$A$5:$BB$215,P$1,0)","v":26662.886506600513},{"$f":"VLOOKUP($A56,cost_data!$A$5:$BB$215,Q$1,0)","v":531746.60999999603},{"$f":"VLOOKUP($A56,cost_data!$A$5:$BB$215,R$1,0)","v":26662.886506600513},{"$f":"VLOOKUP($A56,cost_data!$A$5:$BB$215,S$1,0)","v":39715.049999999901},{"$f":"VLOOKUP($A56,cost_data!$A$5:$BB$215,T$1,0)","v":26662.886506600513},{"$f":"VLOOKUP($A56,cost_data!$A$5:$BB$215,U$1,0)","v":35747.359999999797},{"$f":"VLOOKUP($A56,cost_data!$A$5:$BB$215,V$1,0)","v":26662.886506600513},{"$f":"VLOOKUP($A56,cost_data!$A$5:$BB$215,W$1,0)","v":18688.18},{"$f":"VLOOKUP($A56,cost_data!$A$5:$BB$215,X$1,0)","v":26662.886506600513},{"$f":"VLOOKUP($A56,cost_data!$A$5:$BB$215,Y$1,0)","v":12035.41},{"$f":"VLOOKUP($A56,cost_data!$A$5:$BB$215,Z$1,0)","v":26662.886506600513},{"$f":"VLOOKUP($A56,cost_data!$A$5:$BB$215,AA$1,0)","v":7176711.9000000302},{"$f":"VLOOKUP($A56,cost_data!$A$5:$BB$215,AB$1,0)","v":2184672}]
["03A","NHS Greater Huddersfield",{"$f":"VLOOKUP($A57,cost_data!$A$5:$BB$215,C$1,0)","v":4264415.26},{"$f":"VLOOKUP($A57,cost_data!$A$5:$BB$215,D$1,0)","v":25652.915467434173},{"$f":"VLOOKUP($A57,cost_data!$A$5:$BB$215,E$1,0)","v":1299477.6200000001},{"$f":"VLOOKUP($A57,cost_data!$A$5:$BB$215,F$1,0)","v":25652.915467434173},{"$f":"VLOOKUP($A57,cost_data!$A$5:$BB$215,G$1,0)","v":1034779.87},{"$f":"VLOOKUP($A57,cost_data!$A$5:$BB$215,H$1,0)","v":25652.915467434173},{"$f":"VLOOKUP($A57,cost_data!$A$5:$BB$215,I$1,0)","v":809711.26},{"$f":"VLOOKUP($A57,cost_data!$A$5:$BB$215,J$1,0)","v":25652.915467434173},{"$f":"VLOOKUP($A57,cost_data!$A$5:$BB$215,K$1,0)","v":158868.43},{"$f":"VLOOKUP($A57,cost_data!$A$5:$BB$215,L$1,0)","v":25652.915467434173},{"$f":"VLOOKUP($A57,cost_data!$A$5:$BB$215,M$1,0)","v":306744.17000000301},{"$f":"VLOOKUP($A57,cost_data!$A$5:$BB$215,N$1,0)","v":25652.915467434173},{"$f":"VLOOKUP($A57,cost_data!$A$5:$BB$215,O$1,0)","v":362329.27},{"$f":"VLOOKUP($A57,cost_data!$A$5:$BB$215,P$1,0)","v":25652.915467434173},{"$f":"VLOOKUP($A57,cost_data!$A$5:$BB$215,Q$1,0)","v":224673.40000000101},{"$f":"VLOOKUP($A57,cost_data!$A$5:$BB$215,R$1,0)","v":25652.915467434173},{"$f":"VLOOKUP($A57,cost_data!$A$5:$BB$215,S$1,0)","v":26405.61},{"$f":"VLOOKUP($A57,cost_data!$A$5:$BB$215,T$1,0)","v":25652.915467434173},{"$f":"VLOOKUP($A57,cost_data!$A$5:$BB$215,U$1,0)","v":19001.97},{"$f":"VLOOKUP($A57,cost_data!$A$5:$BB$215,V$1,0)","v":25652.915467434173},{"$f":"VLOOKUP($A57,cost_data!$A$5:$BB$215,W$1,0)","v":21875.95},{"$f":"VLOOKUP($A57,cost_data!$A$5:$BB$215,X$1,0)","v":25652.915467434173},{"$f":"VLOOKUP($A57,cost_data!$A$5:$BB$215,Y$1,0)","v":547.71},{"$f":"VLOOKUP($A57,cost_data!$A$5:$BB$215,Z$1,0)","v":25652.915467434173},{"$f":"VLOOKUP($A57,cost_data!$A$5:$BB$215,AA$1,0)","v":4264415.26},{"$f":"VLOOKUP($A57,cost_data!$A$5:$BB$215,AB$1,0)","v":1129730}]
["03C","NHS Leeds West",{"$f":"VLOOKUP($A58,cost_data!$A$5:$BB$215,C$1,0)","v":6110541.9800000004},{"$f":"VLOOKUP($A58,cost_data!$A$5:$BB$215,D$1,0)","v":42939.559785841768},{"$f":"VLOOKUP($A58,cost_data!$A$5:$BB$215,E$1,0)","v":1832306.45},{"$f":"VLOOKUP($A58,cost_data!$A$5:$BB$215,F$1,0)","v":42939.559785841768},{"$f":"VLOOKUP($A58,cost_data!$A$5:$BB$215,G$1,0)","v":1380697.82},{"$f":"VLOOKUP($A58,cost_data!$A$5:$BB$215,H$1,0)","v":42939.559785841768},{"$f":"VLOOKUP($A58,cost_data!$A$5:$BB$215,I$1,0)","v":1042085.32},{"$f":"VLOOKUP($A58,cost_data!$A$5:$BB$215,J$1,0)","v":42939.559785841768},{"$f":"VLOOKUP($A58,cost_data!$A$5:$BB$215,K$1,0)","v":487078.58000000298},{"$f":"VLOOKUP($A58,cost_data!$A$5:$BB$215,L$1,0)","v":42939.559785841768},{"$f":"VLOOKUP($A58,cost_data!$A$5:$BB$215,M$1,0)","v":466888.08},{"$f":"VLOOKUP($A58,cost_data!$A$5:$BB$215,N$1,0)","v":42939.559785841768},{"$f":"VLOOKUP($A58,cost_data!$A$5:$BB$215,O$1,0)","v":459076.76},{"$f":"VLOOKUP($A58,cost_data!$A$5:$BB$215,P$1,0)","v":42939.559785841768},{"$f":"VLOOKUP($A58,cost_data!$A$5:$BB$215,Q$1,0)","v":343417.18999999802},{"$f":"VLOOKUP($A58,cost_data!$A$5:$BB$215,R$1,0)","v":42939.559785841768},{"$f":"VLOOKUP($A58,cost_data!$A$5:$BB$215,S$1,0)","v":30366.43},{"$f":"VLOOKUP($A58,cost_data!$A$5:$BB$215,T$1,0)","v":42939.559785841768},{"$f":"VLOOKUP($A58,cost_data!$A$5:$BB$215,U$1,0)","v":24743.32},{"$f":"VLOOKUP($A58,cost_data!$A$5:$BB$215,V$1,0)","v":42939.559785841768},{"$f":"VLOOKUP($A58,cost_data!$A$5:$BB$215,W$1,0)","v":25824.23},{"$f":"VLOOKUP($A58,cost_data!$A$5:$BB$215,X$1,0)","v":42939.559785841768},{"$f":"VLOOKUP($A58,cost_data!$A$5:$BB$215,Y$1,0)","v":18057.8},{"$f":"VLOOKUP($A58,cost_data!$A$5:$BB$215,Z$1,0)","v":42939.559785841768},{"$f":"VLOOKUP($A58,cost_data!$A$5:$BB$215,AA$1,0)","v":6110541.9800000004},{"$f":"VLOOKUP($A58,cost_data!$A$5:$BB$215,AB$1,0)","v":1600872}]
["03D","NHS Hambleton, Richmondshire and Whitby",{"$f":"VLOOKUP($A59,cost_data!$A$5:$BB$215,C$1,0)","v":3109834.87},{"$f":"VLOOKUP($A59,cost_data!$A$5:$BB$215,D$1,0)","v":12490.944258835942},{"$f":"VLOOKUP($A59,cost_data!$A$5:$BB$215,E$1,0)","v":905293.88000000396},{"$f":"VLOOKUP($A59,cost_data!$A$5:$BB$215,F$1,0)","v":12490.944258835942},{"$f":"VLOOKUP($A59,cost_data!$A$5:$BB$215,G$1,0)","v":700317.39},{"$f":"VLOOKUP($A59,cost_data!$A$5:$BB$215,H$1,0)","v":12490.944258835942},{"$f":"VLOOKUP($A59,cost_data!$A$5:$BB$215,I$1,0)","v":540378.38},{"$f":"VLOOKUP($A59,cost_data!$A$5:$BB$215,J$1,0)","v":12490.944258835942},{"$f":"VLOOKUP($A59,cost_data!$A$5:$BB$215,K$1,0)","v":281392.609999999},{"$f":"VLOOKUP($A59,cost_data!$A$5:$BB$215,L$1,0)","v":12490.944258835942},{"$f":"VLOOKUP($A59,cost_data!$A$5:$BB$215,M$1,0)","v":233218.820000001},{"$f":"VLOOKUP($A59,cost_data!$A$5:$BB$215,N$1,0)","v":12490.944258835942},{"$f":"VLOOKUP($A59,cost_data!$A$5:$BB$215,O$1,0)","v":221440.08999999901},{"$f":"VLOOKUP($A59,cost_data!$A$5:$BB$215,P$1,0)","v":12490.944258835942},{"$f":"VLOOKUP($A59,cost_data!$A$5:$BB$215,Q$1,0)","v":173438.62},{"$f":"VLOOKUP($A59,cost_data!$A$5:$BB$215,R$1,0)","v":12490.944258835942},{"$f":"VLOOKUP($A59,cost_data!$A$5:$BB$215,S$1,0)","v":20598.480000000101},{"$f":"VLOOKUP($A59,cost_data!$A$5:$BB$215,T$1,0)","v":12490.944258835942},{"$f":"VLOOKUP($A59,cost_data!$A$5:$BB$215,U$1,0)","v":16674.66},{"$f":"VLOOKUP($A59,cost_data!$A$5:$BB$215,V$1,0)","v":12490.944258835942},{"$f":"VLOOKUP($A59,cost_data!$A$5:$BB$215,W$1,0)","v":11228.23},{"$f":"VLOOKUP($A59,cost_data!$A$5:$BB$215,X$1,0)","v":12490.944258835942},{"$f":"VLOOKUP($A59,cost_data!$A$5:$BB$215,Y$1,0)","v":5832.21},{"$f":"VLOOKUP($A59,cost_data!$A$5:$BB$215,Z$1,0)","v":12490.944258835942},{"$f":"VLOOKUP($A59,cost_data!$A$5:$BB$215,AA$1,0)","v":3109834.87},{"$f":"VLOOKUP($A59,cost_data!$A$5:$BB$215,AB$1,0)","v":1031276}]
["03E","NHS Harrogate and Rural District",{"$f":"VLOOKUP($A60,cost_data!$A$5:$BB$215,C$1,0)","v":3256849.76},{"$f":"VLOOKUP($A60,cost_data!$A$5:$BB$215,D$1,0)","v":15245.659225338677},{"$f":"VLOOKUP($A60,cost_data!$A$5:$BB$215,E$1,0)","v":993917.229999993},{"$f":"VLOOKUP($A60,cost_data!$A$5:$BB$215,F$1,0)","v":15245.659225338677},{"$f":"VLOOKUP($A60,cost_data!$A$5:$BB$215,G$1,0)","v":750510.95},{"$f":"VLOOKUP($A60,cost_data!$A$5:$BB$215,H$1,0)","v":15245.659225338677},{"$f":"VLOOKUP($A60,cost_data!$A$5:$BB$215,I$1,0)","v":543181.46},{"$f":"VLOOKUP($A60,cost_data!$A$5:$BB$215,J$1,0)","v":15245.659225338677},{"$f":"VLOOKUP($A60,cost_data!$A$5:$BB$215,K$1,0)","v":229336.22},{"$f":"VLOOKUP($A60,cost_data!$A$5:$BB$215,L$1,0)","v":15245.659225338677},{"$f":"VLOOKUP($A60,cost_data!$A$5:$BB$215,M$1,0)","v":258530.37},{"$f":"VLOOKUP($A60,cost_data!$A$5:$BB$215,N$1,0)","v":15245.659225338677},{"$f":"VLOOKUP($A60,cost_data!$A$5:$BB$215,O$1,0)","v":266871.07999999903},{"$f":"VLOOKUP($A60,cost_data!$A$5:$BB$215,P$1,0)","v":15245.659225338677},{"$f":"VLOOKUP($A60,cost_data!$A$5:$BB$215,Q$1,0)","v":160587.23000000001},{"$f":"VLOOKUP($A60,cost_data!$A$5:$BB$215,R$1,0)","v":15245.659225338677},{"$f":"VLOOKUP($A60,cost_data!$A$5:$BB$215,S$1,0)","v":21048.400000000001},{"$f":"VLOOKUP($A60,cost_data!$A$5:$BB$215,T$1,0)","v":15245.659225338677},{"$f":"VLOOKUP($A60,cost_data!$A$5:$BB$215,U$1,0)","v":17367.7},{"$f":"VLOOKUP($A60,cost_data!$A$5:$BB$215,V$1,0)","v":15245.659225338677},{"$f":"VLOOKUP($A60,cost_data!$A$5:$BB$215,W$1,0)","v":11374.5},{"$f":"VLOOKUP($A60,cost_data!$A$5:$BB$215,X$1,0)","v":15245.659225338677},{"$f":"VLOOKUP($A60,cost_data!$A$5:$BB$215,Y$1,0)","v":4124.62},{"$f":"VLOOKUP($A60,cost_data!$A$5:$BB$215,Z$1,0)","v":15245.659225338677},{"$f":"VLOOKUP($A60,cost_data!$A$5:$BB$215,AA$1,0)","v":3256849.76},{"$f":"VLOOKUP($A60,cost_data!$A$5:$BB$215,AB$1,0)","v":907301}]
["03F","NHS Hull",{"$f":"VLOOKUP($A61,cost_data!$A$5:$BB$215,C$1,0)","v":5724655.0699999901},{"$f":"VLOOKUP($A61,cost_data!$A$5:$BB$215,D$1,0)","v":29552.513739059636},{"$f":"VLOOKUP($A61,cost_data!$A$5:$BB$215,E$1,0)","v":1680694.69000001},{"$f":"VLOOKUP($A61,cost_data!$A$5:$BB$215,F$1,0)","v":29552.513739059636},{"$f":"VLOOKUP($A61,cost_data!$A$5:$BB$215,G$1,0)","v":1141648.72},{"$f":"VLOOKUP($A61,cost_data!$A$5:$BB$215,H$1,0)","v":29552.513739059636},{"$f":"VLOOKUP($A61,cost_data!$A$5:$BB$215,I$1,0)","v":1074529.1100000001},{"$f":"VLOOKUP($A61,cost_data!$A$5:$BB$215,J$1,0)","v":29552.513739059636},{"$f":"VLOOKUP($A61,cost_data!$A$5:$BB$215,K$1,0)","v":454150.46999999898},{"$f":"VLOOKUP($A61,cost_data!$A$5:$BB$215,L$1,0)","v":29552.513739059636},{"$f":"VLOOKUP($A61,cost_data!$A$5:$BB$215,M$1,0)","v":456758.40000000497},{"$f":"VLOOKUP($A61,cost_data!$A$5:$BB$215,N$1,0)","v":29552.513739059636},{"$f":"VLOOKUP($A61,cost_data!$A$5:$BB$215,O$1,0)","v":366239.11999999901},{"$f":"VLOOKUP($A61,cost_data!$A$5:$BB$215,P$1,0)","v":29552.513739059636},{"$f":"VLOOKUP($A61,cost_data!$A$5:$BB$215,Q$1,0)","v":484358.53999999602},{"$f":"VLOOKUP($A61,cost_data!$A$5:$BB$215,R$1,0)","v":29552.513739059636},{"$f":"VLOOKUP($A61,cost_data!$A$5:$BB$215,S$1,0)","v":19967.490000000002},{"$f":"VLOOKUP($A61,cost_data!$A$5:$BB$215,T$1,0)","v":29552.513739059636},{"$f":"VLOOKUP($A61,cost_data!$A$5:$BB$215,U$1,0)","v":27809.809999999801},{"$f":"VLOOKUP($A61,cost_data!$A$5:$BB$215,V$1,0)","v":29552.513739059636},{"$f":"VLOOKUP($A61,cost_data!$A$5:$BB$215,W$1,0)","v":15707},{"$f":"VLOOKUP($A61,cost_data!$A$5:$BB$215,X$1,0)","v":29552.513739059636},{"$f":"VLOOKUP($A61,cost_data!$A$5:$BB$215,Y$1,0)","v":2756.67},{"$f":"VLOOKUP($A61,cost_data!$A$5:$BB$215,Z$1,0)","v":29552.513739059636},{"$f":"VLOOKUP($A61,cost_data!$A$5:$BB$215,AA$1,0)","v":5724655.0699999901},{"$f":"VLOOKUP($A61,cost_data!$A$5:$BB$215,AB$1,0)","v":1854116}]
["03G","NHS Leeds South and East",{"$f":"VLOOKUP($A62,cost_data!$A$5:$BB$215,C$1,0)","v":5186610.29},{"$f":"VLOOKUP($A62,cost_data!$A$5:$BB$215,D$1,0)","v":26999.384678494516},{"$f":"VLOOKUP($A62,cost_data!$A$5:$BB$215,E$1,0)","v":1365863.88},{"$f":"VLOOKUP($A62,cost_data!$A$5:$BB$215,F$1,0)","v":26999.384678494516},{"$f":"VLOOKUP($A62,cost_data!$A$5:$BB$215,G$1,0)","v":1159459.1599999999},{"$f":"VLOOKUP($A62,cost_data!$A$5:$BB$215,H$1,0)","v":26999.384678494516},{"$f":"VLOOKUP($A62,cost_data!$A$5:$BB$215,I$1,0)","v":942598.99999999895},{"$f":"VLOOKUP($A62,cost_data!$A$5:$BB$215,J$1,0)","v":26999.384678494516},{"$f":"VLOOKUP($A62,cost_data!$A$5:$BB$215,K$1,0)","v":457815.18},{"$f":"VLOOKUP($A62,cost_data!$A$5:$BB$215,L$1,0)","v":26999.384678494516},{"$f":"VLOOKUP($A62,cost_data!$A$5:$BB$215,M$1,0)","v":415994.70000000403},{"$f":"VLOOKUP($A62,cost_data!$A$5:$BB$215,N$1,0)","v":26999.384678494516},{"$f":"VLOOKUP($A62,cost_data!$A$5:$BB$215,O$1,0)","v":441428.62999999902},{"$f":"VLOOKUP($A62,cost_data!$A$5:$BB$215,P$1,0)","v":26999.384678494516},{"$f":"VLOOKUP($A62,cost_data!$A$5:$BB$215,Q$1,0)","v":317475.419999998},{"$f":"VLOOKUP($A62,cost_data!$A$5:$BB$215,R$1,0)","v":26999.384678494516},{"$f":"VLOOKUP($A62,cost_data!$A$5:$BB$215,S$1,0)","v":20593.47},{"$f":"VLOOKUP($A62,cost_data!$A$5:$BB$215,T$1,0)","v":26999.384678494516},{"$f":"VLOOKUP($A62,cost_data!$A$5:$BB$215,U$1,0)","v":22579.059999999899},{"$f":"VLOOKUP($A62,cost_data!$A$5:$BB$215,V$1,0)","v":26999.384678494516},{"$f":"VLOOKUP($A62,cost_data!$A$5:$BB$215,W$1,0)","v":30616.91},{"$f":"VLOOKUP($A62,cost_data!$A$5:$BB$215,X$1,0)","v":26999.384678494516},{"$f":"VLOOKUP($A62,cost_data!$A$5:$BB$215,Y$1,0)","v":12184.88},{"$f":"VLOOKUP($A62,cost_data!$A$5:$BB$215,Z$1,0)","v":26999.384678494516},{"$f":"VLOOKUP($A62,cost_data!$A$5:$BB$215,AA$1,0)","v":5186610.29},{"$f":"VLOOKUP($A62,cost_data!$A$5:$BB$215,AB$1,0)","v":1524139}]
["03H","NHS North East Lincolnshire",{"$f":"VLOOKUP($A63,cost_data!$A$5:$BB$215,C$1,0)","v":3682190.06},{"$f":"VLOOKUP($A63,cost_data!$A$5:$BB$215,D$1,0)","v":16168.124579448235},{"$f":"VLOOKUP($A63,cost_data!$A$5:$BB$215,E$1,0)","v":1161965.3400000001},{"$f":"VLOOKUP($A63,cost_data!$A$5:$BB$215,F$1,0)","v":16168.124579448235},{"$f":"VLOOKUP($A63,cost_data!$A$5:$BB$215,G$1,0)","v":685112.91999999899},{"$f":"VLOOKUP($A63,cost_data!$A$5:$BB$215,H$1,0)","v":16168.124579448235},{"$f":"VLOOKUP($A63,cost_data!$A$5:$BB$215,I$1,0)","v":625715.77},{"$f":"VLOOKUP($A63,cost_data!$A$5:$BB$215,J$1,0)","v":16168.124579448235},{"$f":"VLOOKUP($A63,cost_data!$A$5:$BB$215,K$1,0)","v":464911.69999999902},{"$f":"VLOOKUP($A63,cost_data!$A$5:$BB$215,L$1,0)","v":16168.124579448235},{"$f":"VLOOKUP($A63,cost_data!$A$5:$BB$215,M$1,0)","v":257125.19},{"$f":"VLOOKUP($A63,cost_data!$A$5:$BB$215,N$1,0)","v":16168.124579448235},{"$f":"VLOOKUP($A63,cost_data!$A$5:$BB$215,O$1,0)","v":263762.90999999997},{"$f":"VLOOKUP($A63,cost_data!$A$5:$BB$215,P$1,0)","v":16168.124579448235},{"$f":"VLOOKUP($A63,cost_data!$A$5:$BB$215,Q$1,0)","v":176720.5},{"$f":"VLOOKUP($A63,cost_data!$A$5:$BB$215,R$1,0)","v":16168.124579448235},{"$f":"VLOOKUP($A63,cost_data!$A$5:$BB$215,S$1,0)","v":17287.259999999998},{"$f":"VLOOKUP($A63,cost_data!$A$5:$BB$215,T$1,0)","v":16168.124579448235},{"$f":"VLOOKUP($A63,cost_data!$A$5:$BB$215,U$1,0)","v":16890.12},{"$f":"VLOOKUP($A63,cost_data!$A$5:$BB$215,V$1,0)","v":16168.124579448235},{"$f":"VLOOKUP($A63,cost_data!$A$5:$BB$215,W$1,0)","v":11203.56},{"$f":"VLOOKUP($A63,cost_data!$A$5:$BB$215,X$1,0)","v":16168.124579448235},{"$f":"VLOOKUP($A63,cost_data!$A$5:$BB$215,Y$1,0)","v":1473.59},{"$f":"VLOOKUP($A63,cost_data!$A$5:$BB$215,Z$1,0)","v":16168.124579448235},{"$f":"VLOOKUP($A63,cost_data!$A$5:$BB$215,AA$1,0)","v":3682190.06},{"$f":"VLOOKUP($A63,cost_data!$A$5:$BB$215,AB$1,0)","v":1143168}]
["03J","NHS North Kirklees",{"$f":"VLOOKUP($A64,cost_data!$A$5:$BB$215,C$1,0)","v":3988328.73999999},{"$f":"VLOOKUP($A64,cost_data!$A$5:$BB$215,D$1,0)","v":20961.620469083158},{"$f":"VLOOKUP($A64,cost_data!$A$5:$BB$215,E$1,0)","v":1232868.0900000001},{"$f":"VLOOKUP($A64,cost_data!$A$5:$BB$215,F$1,0)","v":20961.620469083158},{"$f":"VLOOKUP($A64,cost_data!$A$5:$BB$215,G$1,0)","v":1035074.91},{"$f":"VLOOKUP($A64,cost_data!$A$5:$BB$215,H$1,0)","v":20961.620469083158},{"$f":"VLOOKUP($A64,cost_data!$A$5:$BB$215,I$1,0)","v":702409.07999999903},{"$f":"VLOOKUP($A64,cost_data!$A$5:$BB$215,J$1,0)","v":20961.620469083158},{"$f":"VLOOKUP($A64,cost_data!$A$5:$BB$215,K$1,0)","v":207185.49},{"$f":"VLOOKUP($A64,cost_data!$A$5:$BB$215,L$1,0)","v":20961.620469083158},{"$f":"VLOOKUP($A64,cost_data!$A$5:$BB$215,M$1,0)","v":251721.66000000099},{"$f":"VLOOKUP($A64,cost_data!$A$5:$BB$215,N$1,0)","v":20961.620469083158},{"$f":"VLOOKUP($A64,cost_data!$A$5:$BB$215,O$1,0)","v":322088.31999999902},{"$f":"VLOOKUP($A64,cost_data!$A$5:$BB$215,P$1,0)","v":20961.620469083158},{"$f":"VLOOKUP($A64,cost_data!$A$5:$BB$215,Q$1,0)","v":193995.42},{"$f":"VLOOKUP($A64,cost_data!$A$5:$BB$215,R$1,0)","v":20961.620469083158},{"$f":"VLOOKUP($A64,cost_data!$A$5:$BB$215,S$1,0)","v":14395.07},{"$f":"VLOOKUP($A64,cost_data!$A$5:$BB$215,T$1,0)","v":20961.620469083158},{"$f":"VLOOKUP($A64,cost_data!$A$5:$BB$215,U$1,0)","v":11361.06},{"$f":"VLOOKUP($A64,cost_data!$A$5:$BB$215,V$1,0)","v":20961.620469083158},{"$f":"VLOOKUP($A64,cost_data!$A$5:$BB$215,W$1,0)","v":14210.29},{"$f":"VLOOKUP($A64,cost_data!$A$5:$BB$215,X$1,0)","v":20961.620469083158},{"$f":"VLOOKUP($A64,cost_data!$A$5:$BB$215,Y$1,0)","v":2954.85},{"$f":"VLOOKUP($A64,cost_data!$A$5:$BB$215,Z$1,0)","v":20961.620469083158},{"$f":"VLOOKUP($A64,cost_data!$A$5:$BB$215,AA$1,0)","v":3988328.73999999},{"$f":"VLOOKUP($A64,cost_data!$A$5:$BB$215,AB$1,0)","v":1081642}]
["03K","NHS North Lincolnshire",{"$f":"VLOOKUP($A65,cost_data!$A$5:$BB$215,C$1,0)","v":4347481.6300000101},{"$f":"VLOOKUP($A65,cost_data!$A$5:$BB$215,D$1,0)","v":16557.062036675768},{"$f":"VLOOKUP($A65,cost_data!$A$5:$BB$215,E$1,0)","v":1346608.88},{"$f":"VLOOKUP($A65,cost_data!$A$5:$BB$215,F$1,0)","v":16557.062036675768},{"$f":"VLOOKUP($A65,cost_data!$A$5:$BB$215,G$1,0)","v":1134976.31},{"$f":"VLOOKUP($A65,cost_data!$A$5:$BB$215,H$1,0)","v":16557.062036675768},{"$f":"VLOOKUP($A65,cost_data!$A$5:$BB$215,I$1,0)","v":824315.25999999896},{"$f":"VLOOKUP($A65,cost_data!$A$5:$BB$215,J$1,0)","v":16557.062036675768},{"$f":"VLOOKUP($A65,cost_data!$A$5:$BB$215,K$1,0)","v":254916.15999999901},{"$f":"VLOOKUP($A65,cost_data!$A$5:$BB$215,L$1,0)","v":16557.062036675768},{"$f":"VLOOKUP($A65,cost_data!$A$5:$BB$215,M$1,0)","v":246720.489999999},{"$f":"VLOOKUP($A65,cost_data!$A$5:$BB$215,N$1,0)","v":16557.062036675768},{"$f":"VLOOKUP($A65,cost_data!$A$5:$BB$215,O$1,0)","v":236855.48},{"$f":"VLOOKUP($A65,cost_data!$A$5:$BB$215,P$1,0)","v":16557.062036675768},{"$f":"VLOOKUP($A65,cost_data!$A$5:$BB$215,Q$1,0)","v":242927.540000001},{"$f":"VLOOKUP($A65,cost_data!$A$5:$BB$215,R$1,0)","v":16557.062036675768},{"$f":"VLOOKUP($A65,cost_data!$A$5:$BB$215,S$1,0)","v":29152.06},{"$f":"VLOOKUP($A65,cost_data!$A$5:$BB$215,T$1,0)","v":16557.062036675768},{"$f":"VLOOKUP($A65,cost_data!$A$5:$BB$215,U$1,0)","v":17436.13},{"$f":"VLOOKUP($A65,cost_data!$A$5:$BB$215,V$1,0)","v":16557.062036675768},{"$f":"VLOOKUP($A65,cost_data!$A$5:$BB$215,W$1,0)","v":13010.08},{"$f":"VLOOKUP($A65,cost_data!$A$5:$BB$215,X$1,0)","v":16557.062036675768},{"$f":"VLOOKUP($A65,cost_data!$A$5:$BB$215,Y$1,0)","v":563.24},{"$f":"VLOOKUP($A65,cost_data!$A$5:$BB$215,Z$1,0)","v":16557.062036675768},{"$f":"VLOOKUP($A65,cost_data!$A$5:$BB$215,AA$1,0)","v":4347481.6300000101},{"$f":"VLOOKUP($A65,cost_data!$A$5:$BB$215,AB$1,0)","v":1365690}]
["03L","NHS Rotherham",{"$f":"VLOOKUP($A66,cost_data!$A$5:$BB$215,C$1,0)","v":6063859.8800000101},{"$f":"VLOOKUP($A66,cost_data!$A$5:$BB$215,D$1,0)","v":25257.454974904045},{"$f":"VLOOKUP($A66,cost_data!$A$5:$BB$215,E$1,0)","v":1811505.86},{"$f":"VLOOKUP($A66,cost_data!$A$5:$BB$215,F$1,0)","v":25257.454974904045},{"$f":"VLOOKUP($A66,cost_data!$A$5:$BB$215,G$1,0)","v":1393794.59},{"$f":"VLOOKUP($A66,cost_data!$A$5:$BB$215,H$1,0)","v":25257.454974904045},{"$f":"VLOOKUP($A66,cost_data!$A$5:$BB$215,I$1,0)","v":1208666.1599999999},{"$f":"VLOOKUP($A66,cost_data!$A$5:$BB$215,J$1,0)","v":25257.454974904045},{"$f":"VLOOKUP($A66,cost_data!$A$5:$BB$215,K$1,0)","v":381446.00000000099},{"$f":"VLOOKUP($A66,cost_data!$A$5:$BB$215,L$1,0)","v":25257.454974904045},{"$f":"VLOOKUP($A66,cost_data!$A$5:$BB$215,M$1,0)","v":380418.93000000197},{"$f":"VLOOKUP($A66,cost_data!$A$5:$BB$215,N$1,0)","v":25257.454974904045},{"$f":"VLOOKUP($A66,cost_data!$A$5:$BB$215,O$1,0)","v":431507.80999999901},{"$f":"VLOOKUP($A66,cost_data!$A$5:$BB$215,P$1,0)","v":25257.454974904045},{"$f":"VLOOKUP($A66,cost_data!$A$5:$BB$215,Q$1,0)","v":348668.54000000103},{"$f":"VLOOKUP($A66,cost_data!$A$5:$BB$215,R$1,0)","v":25257.454974904045},{"$f":"VLOOKUP($A66,cost_data!$A$5:$BB$215,S$1,0)","v":48405.849999999897},{"$f":"VLOOKUP($A66,cost_data!$A$5:$BB$215,T$1,0)","v":25257.454974904045},{"$f":"VLOOKUP($A66,cost_data!$A$5:$BB$215,U$1,0)","v":24675.0099999999},{"$f":"VLOOKUP($A66,cost_data!$A$5:$BB$215,V$1,0)","v":25257.454974904045},{"$f":"VLOOKUP($A66,cost_data!$A$5:$BB$215,W$1,0)","v":22478.71},{"$f":"VLOOKUP($A66,cost_data!$A$5:$BB$215,X$1,0)","v":25257.454974904045},{"$f":"VLOOKUP($A66,cost_data!$A$5:$BB$215,Y$1,0)","v":12292.42},{"$f":"VLOOKUP($A66,cost_data!$A$5:$BB$215,Z$1,0)","v":25257.454974904045},{"$f":"VLOOKUP($A66,cost_data!$A$5:$BB$215,AA$1,0)","v":6063859.8800000101},{"$f":"VLOOKUP($A66,cost_data!$A$5:$BB$215,AB$1,0)","v":1746627}]
["03M","NHS Scarborough and Ryedale",{"$f":"VLOOKUP($A67,cost_data!$A$5:$BB$215,C$1,0)","v":2733349.46},{"$f":"VLOOKUP($A67,cost_data!$A$5:$BB$215,D$1,0)","v":10261.896491837444},{"$f":"VLOOKUP($A67,cost_data!$A$5:$BB$215,E$1,0)","v":777693.62000000302},{"$f":"VLOOKUP($A67,cost_data!$A$5:$BB$215,F$1,0)","v":10261.896491837444},{"$f":"VLOOKUP($A67,cost_data!$A$5:$BB$215,G$1,0)","v":625907.31000000006},{"$f":"VLOOKUP($A67,cost_data!$A$5:$BB$215,H$1,0)","v":10261.896491837444},{"$f":"VLOOKUP($A67,cost_data!$A$5:$BB$215,I$1,0)","v":535721.21},{"$f":"VLOOKUP($A67,cost_data!$A$5:$BB$215,J$1,0)","v":10261.896491837444},{"$f":"VLOOKUP($A67,cost_data!$A$5:$BB$215,K$1,0)","v":258956.61999999901},{"$f":"VLOOKUP($A67,cost_data!$A$5:$BB$215,L$1,0)","v":10261.896491837444},{"$f":"VLOOKUP($A67,cost_data!$A$5:$BB$215,M$1,0)","v":184277.420000001},{"$f":"VLOOKUP($A67,cost_data!$A$5:$BB$215,N$1,0)","v":10261.896491837444},{"$f":"VLOOKUP($A67,cost_data!$A$5:$BB$215,O$1,0)","v":161472.57999999999},{"$f":"VLOOKUP($A67,cost_data!$A$5:$BB$215,P$1,0)","v":10261.896491837444},{"$f":"VLOOKUP($A67,cost_data!$A$5:$BB$215,Q$1,0)","v":146272.51999999999},{"$f":"VLOOKUP($A67,cost_data!$A$5:$BB$215,R$1,0)","v":10261.896491837444},{"$f":"VLOOKUP($A67,cost_data!$A$5:$BB$215,S$1,0)","v":19130.39},{"$f":"VLOOKUP($A67,cost_data!$A$5:$BB$215,T$1,0)","v":10261.896491837444},{"$f":"VLOOKUP($A67,cost_data!$A$5:$BB$215,U$1,0)","v":15927.56},{"$f":"VLOOKUP($A67,cost_data!$A$5:$BB$215,V$1,0)","v":10261.896491837444},{"$f":"VLOOKUP($A67,cost_data!$A$5:$BB$215,W$1,0)","v":5962.6799999999903},{"$f":"VLOOKUP($A67,cost_data!$A$5:$BB$215,X$1,0)","v":10261.896491837444},{"$f":"VLOOKUP($A67,cost_data!$A$5:$BB$215,Y$1,0)","v":2027.55},{"$f":"VLOOKUP($A67,cost_data!$A$5:$BB$215,Z$1,0)","v":10261.896491837444},{"$f":"VLOOKUP($A67,cost_data!$A$5:$BB$215,AA$1,0)","v":2733349.46},{"$f":"VLOOKUP($A67,cost_data!$A$5:$BB$215,AB$1,0)","v":859219}]
["03N","NHS Sheffield",{"$f":"VLOOKUP($A68,cost_data!$A$5:$BB$215,C$1,0)","v":10178429.859999999},{"$f":"VLOOKUP($A68,cost_data!$A$5:$BB$215,D$1,0)","v":61803.355776424069},{"$f":"VLOOKUP($A68,cost_data!$A$5:$BB$215,E$1,0)","v":2837673.3999999901},{"$f":"VLOOKUP($A68,cost_data!$A$5:$BB$215,F$1,0)","v":61803.355776424069},{"$f":"VLOOKUP($A68,cost_data!$A$5:$BB$215,G$1,0)","v":2204960.7799999998},{"$f":"VLOOKUP($A68,cost_data!$A$5:$BB$215,H$1,0)","v":61803.355776424069},{"$f":"VLOOKUP($A68,cost_data!$A$5:$BB$215,I$1,0)","v":1983178.2},{"$f":"VLOOKUP($A68,cost_data!$A$5:$BB$215,J$1,0)","v":61803.355776424069},{"$f":"VLOOKUP($A68,cost_data!$A$5:$BB$215,K$1,0)","v":707245.51},{"$f":"VLOOKUP($A68,cost_data!$A$5:$BB$215,L$1,0)","v":61803.355776424069},{"$f":"VLOOKUP($A68,cost_data!$A$5:$BB$215,M$1,0)","v":665072.41000001202},{"$f":"VLOOKUP($A68,cost_data!$A$5:$BB$215,N$1,0)","v":61803.355776424069},{"$f":"VLOOKUP($A68,cost_data!$A$5:$BB$215,O$1,0)","v":962976.18000001099},{"$f":"VLOOKUP($A68,cost_data!$A$5:$BB$215,P$1,0)","v":61803.355776424069},{"$f":"VLOOKUP($A68,cost_data!$A$5:$BB$215,Q$1,0)","v":625173.84999999194},{"$f":"VLOOKUP($A68,cost_data!$A$5:$BB$215,R$1,0)","v":61803.355776424069},{"$f":"VLOOKUP($A68,cost_data!$A$5:$BB$215,S$1,0)","v":65594.719999999797},{"$f":"VLOOKUP($A68,cost_data!$A$5:$BB$215,T$1,0)","v":61803.355776424069},{"$f":"VLOOKUP($A68,cost_data!$A$5:$BB$215,U$1,0)","v":59824.949999999699},{"$f":"VLOOKUP($A68,cost_data!$A$5:$BB$215,V$1,0)","v":61803.355776424069},{"$f":"VLOOKUP($A68,cost_data!$A$5:$BB$215,W$1,0)","v":50433.500000000102},{"$f":"VLOOKUP($A68,cost_data!$A$5:$BB$215,X$1,0)","v":61803.355776424069},{"$f":"VLOOKUP($A68,cost_data!$A$5:$BB$215,Y$1,0)","v":16296.36},{"$f":"VLOOKUP($A68,cost_data!$A$5:$BB$215,Z$1,0)","v":61803.355776424069},{"$f":"VLOOKUP($A68,cost_data!$A$5:$BB$215,AA$1,0)","v":10178429.859999999},{"$f":"VLOOKUP($A68,cost_data!$A$5:$BB$215,AB$1,0)","v":3705520}]
["03Q","NHS Vale Of York",{"$f":"VLOOKUP($A69,cost_data!$A$5:$BB$215,C$1,0)","v":6322859.6699999999},{"$f":"VLOOKUP($A69,cost_data!$A$5:$BB$215,D$1,0)","v":34098.962079950674},{"$f":"VLOOKUP($A69,cost_data!$A$5:$BB$215,E$1,0)","v":1741066.8899999899},{"$f":"VLOOKUP($A69,cost_data!$A$5:$BB$215,F$1,0)","v":34098.962079950674},{"$f":"VLOOKUP($A69,cost_data!$A$5:$BB$215,G$1,0)","v":1381002.15},{"$f":"VLOOKUP($A69,cost_data!$A$5:$BB$215,H$1,0)","v":34098.962079950674},{"$f":"VLOOKUP($A69,cost_data!$A$5:$BB$215,I$1,0)","v":1132694.74},{"$f":"VLOOKUP($A69,cost_data!$A$5:$BB$215,J$1,0)","v":34098.962079950674},{"$f":"VLOOKUP($A69,cost_data!$A$5:$BB$215,K$1,0)","v":532731.80000000098},{"$f":"VLOOKUP($A69,cost_data!$A$5:$BB$215,L$1,0)","v":34098.962079950674},{"$f":"VLOOKUP($A69,cost_data!$A$5:$BB$215,M$1,0)","v":475513.17000000301},{"$f":"VLOOKUP($A69,cost_data!$A$5:$BB$215,N$1,0)","v":34098.962079950674},{"$f":"VLOOKUP($A69,cost_data!$A$5:$BB$215,O$1,0)","v":480224.55999999901},{"$f":"VLOOKUP($A69,cost_data!$A$5:$BB$215,P$1,0)","v":34098.962079950674},{"$f":"VLOOKUP($A69,cost_data!$A$5:$BB$215,Q$1,0)","v":460096.93999999901},{"$f":"VLOOKUP($A69,cost_data!$A$5:$BB$215,R$1,0)","v":34098.962079950674},{"$f":"VLOOKUP($A69,cost_data!$A$5:$BB$215,S$1,0)","v":41484.959999999897},{"$f":"VLOOKUP($A69,cost_data!$A$5:$BB$215,T$1,0)","v":34098.962079950674},{"$f":"VLOOKUP($A69,cost_data!$A$5:$BB$215,U$1,0)","v":33989.67},{"$f":"VLOOKUP($A69,cost_data!$A$5:$BB$215,V$1,0)","v":34098.962079950674},{"$f":"VLOOKUP($A69,cost_data!$A$5:$BB$215,W$1,0)","v":32381.34},{"$f":"VLOOKUP($A69,cost_data!$A$5:$BB$215,X$1,0)","v":34098.962079950674},{"$f":"VLOOKUP($A69,cost_data!$A$5:$BB$215,Y$1,0)","v":11673.45},{"$f":"VLOOKUP($A69,cost_data!$A$5:$BB$215,Z$1,0)","v":34098.962079950674},{"$f":"VLOOKUP($A69,cost_data!$A$5:$BB$215,AA$1,0)","v":6322859.6699999999},{"$f":"VLOOKUP($A69,cost_data!$A$5:$BB$215,AB$1,0)","v":1729676}]
["03R","NHS Wakefield",{"$f":"VLOOKUP($A70,cost_data!$A$5:$BB$215,C$1,0)","v":7370500.2800000198},{"$f":"VLOOKUP($A70,cost_data!$A$5:$BB$215,D$1,0)","v":36633.970799917741},{"$f":"VLOOKUP($A70,cost_data!$A$5:$BB$215,E$1,0)","v":2175059.87},{"$f":"VLOOKUP($A70,cost_data!$A$5:$BB$215,F$1,0)","v":36633.970799917741},{"$f":"VLOOKUP($A70,cost_data!$A$5:$BB$215,G$1,0)","v":1456018.99},{"$f":"VLOOKUP($A70,cost_data!$A$5:$BB$215,H$1,0)","v":36633.970799917741},{"$f":"VLOOKUP($A70,cost_data!$A$5:$BB$215,I$1,0)","v":1504155.64},{"$f":"VLOOKUP($A70,cost_data!$A$5:$BB$215,J$1,0)","v":36633.970799917741},{"$f":"VLOOKUP($A70,cost_data!$A$5:$BB$215,K$1,0)","v":504867.99},{"$f":"VLOOKUP($A70,cost_data!$A$5:$BB$215,L$1,0)","v":36633.970799917741},{"$f":"VLOOKUP($A70,cost_data!$A$5:$BB$215,M$1,0)","v":557006.77000000305},{"$f":"VLOOKUP($A70,cost_data!$A$5:$BB$215,N$1,0)","v":36633.970799917741},{"$f":"VLOOKUP($A70,cost_data!$A$5:$BB$215,O$1,0)","v":694260.98000000103},{"$f":"VLOOKUP($A70,cost_data!$A$5:$BB$215,P$1,0)","v":36633.970799917741},{"$f":"VLOOKUP($A70,cost_data!$A$5:$BB$215,Q$1,0)","v":385563.69},{"$f":"VLOOKUP($A70,cost_data!$A$5:$BB$215,R$1,0)","v":36633.970799917741},{"$f":"VLOOKUP($A70,cost_data!$A$5:$BB$215,S$1,0)","v":31310.880000000001},{"$f":"VLOOKUP($A70,cost_data!$A$5:$BB$215,T$1,0)","v":36633.970799917741},{"$f":"VLOOKUP($A70,cost_data!$A$5:$BB$215,U$1,0)","v":29062.82},{"$f":"VLOOKUP($A70,cost_data!$A$5:$BB$215,V$1,0)","v":36633.970799917741},{"$f":"VLOOKUP($A70,cost_data!$A$5:$BB$215,W$1,0)","v":30476.16},{"$f":"VLOOKUP($A70,cost_data!$A$5:$BB$215,X$1,0)","v":36633.970799917741},{"$f":"VLOOKUP($A70,cost_data!$A$5:$BB$215,Y$1,0)","v":2716.49},{"$f":"VLOOKUP($A70,cost_data!$A$5:$BB$215,Z$1,0)","v":36633.970799917741},{"$f":"VLOOKUP($A70,cost_data!$A$5:$BB$215,AA$1,0)","v":7370500.2800000198},{"$f":"VLOOKUP($A70,cost_data!$A$5:$BB$215,AB$1,0)","v":2298562}]
["03T","NHS Lincolnshire East",{"$f":"VLOOKUP($A71,cost_data!$A$5:$BB$215,C$1,0)","v":6408300.1800000202},{"$f":"VLOOKUP($A71,cost_data!$A$5:$BB$215,D$1,0)","v":19598.269168553867},{"$f":"VLOOKUP($A71,cost_data!$A$5:$BB$215,E$1,0)","v":2031736.95},{"$f":"VLOOKUP($A71,cost_data!$A$5:$BB$215,F$1,0)","v":19598.269168553867},{"$f":"VLOOKUP($A71,cost_data!$A$5:$BB$215,G$1,0)","v":1439191.68},{"$f":"VLOOKUP($A71,cost_data!$A$5:$BB$215,H$1,0)","v":19598.269168553867},{"$f":"VLOOKUP($A71,cost_data!$A$5:$BB$215,I$1,0)","v":1139526.6299999999},{"$f":"VLOOKUP($A71,cost_data!$A$5:$BB$215,J$1,0)","v":19598.269168553867},{"$f":"VLOOKUP($A71,cost_data!$A$5:$BB$215,K$1,0)","v":439516.53},{"$f":"VLOOKUP($A71,cost_data!$A$5:$BB$215,L$1,0)","v":19598.269168553867},{"$f":"VLOOKUP($A71,cost_data!$A$5:$BB$215,M$1,0)","v":434693.84000000299},{"$f":"VLOOKUP($A71,cost_data!$A$5:$BB$215,N$1,0)","v":19598.269168553867},{"$f":"VLOOKUP($A71,cost_data!$A$5:$BB$215,O$1,0)","v":445876.760000001},{"$f":"VLOOKUP($A71,cost_data!$A$5:$BB$215,P$1,0)","v":19598.269168553867},{"$f":"VLOOKUP($A71,cost_data!$A$5:$BB$215,Q$1,0)","v":368270.43999999901},{"$f":"VLOOKUP($A71,cost_data!$A$5:$BB$215,R$1,0)","v":19598.269168553867},{"$f":"VLOOKUP($A71,cost_data!$A$5:$BB$215,S$1,0)","v":53000.1599999998},{"$f":"VLOOKUP($A71,cost_data!$A$5:$BB$215,T$1,0)","v":19598.269168553867},{"$f":"VLOOKUP($A71,cost_data!$A$5:$BB$215,U$1,0)","v":32914.21},{"$f":"VLOOKUP($A71,cost_data!$A$5:$BB$215,V$1,0)","v":19598.269168553867},{"$f":"VLOOKUP($A71,cost_data!$A$5:$BB$215,W$1,0)","v":17329.64},{"$f":"VLOOKUP($A71,cost_data!$A$5:$BB$215,X$1,0)","v":19598.269168553867},{"$f":"VLOOKUP($A71,cost_data!$A$5:$BB$215,Y$1,0)","v":6243.34},{"$f":"VLOOKUP($A71,cost_data!$A$5:$BB$215,Z$1,0)","v":19598.269168553867},{"$f":"VLOOKUP($A71,cost_data!$A$5:$BB$215,AA$1,0)","v":6408300.1800000202},{"$f":"VLOOKUP($A71,cost_data!$A$5:$BB$215,AB$1,0)","v":2132855}]
["03V","NHS Corby",{"$f":"VLOOKUP($A72,cost_data!$A$5:$BB$215,C$1,0)","v":1052398.2},{"$f":"VLOOKUP($A72,cost_data!$A$5:$BB$215,D$1,0)","v":8169.4090382387012},{"$f":"VLOOKUP($A72,cost_data!$A$5:$BB$215,E$1,0)","v":270003.40999999997},{"$f":"VLOOKUP($A72,cost_data!$A$5:$BB$215,F$1,0)","v":8169.4090382387012},{"$f":"VLOOKUP($A72,cost_data!$A$5:$BB$215,G$1,0)","v":209240.73},{"$f":"VLOOKUP($A72,cost_data!$A$5:$BB$215,H$1,0)","v":8169.4090382387012},{"$f":"VLOOKUP($A72,cost_data!$A$5:$BB$215,I$1,0)","v":189944.74},{"$f":"VLOOKUP($A72,cost_data!$A$5:$BB$215,J$1,0)","v":8169.4090382387012},{"$f":"VLOOKUP($A72,cost_data!$A$5:$BB$215,K$1,0)","v":119342.93},{"$f":"VLOOKUP($A72,cost_data!$A$5:$BB$215,L$1,0)","v":8169.4090382387012},{"$f":"VLOOKUP($A72,cost_data!$A$5:$BB$215,M$1,0)","v":86258.399999999703},{"$f":"VLOOKUP($A72,cost_data!$A$5:$BB$215,N$1,0)","v":8169.4090382387012},{"$f":"VLOOKUP($A72,cost_data!$A$5:$BB$215,O$1,0)","v":85105.579999999798},{"$f":"VLOOKUP($A72,cost_data!$A$5:$BB$215,P$1,0)","v":8169.4090382387012},{"$f":"VLOOKUP($A72,cost_data!$A$5:$BB$215,Q$1,0)","v":68376.19},{"$f":"VLOOKUP($A72,cost_data!$A$5:$BB$215,R$1,0)","v":8169.4090382387012},{"$f":"VLOOKUP($A72,cost_data!$A$5:$BB$215,S$1,0)","v":13045.95},{"$f":"VLOOKUP($A72,cost_data!$A$5:$BB$215,T$1,0)","v":8169.4090382387012},{"$f":"VLOOKUP($A72,cost_data!$A$5:$BB$215,U$1,0)","v":4433.79},{"$f":"VLOOKUP($A72,cost_data!$A$5:$BB$215,V$1,0)","v":8169.4090382387012},{"$f":"VLOOKUP($A72,cost_data!$A$5:$BB$215,W$1,0)","v":6584.13},{"$f":"VLOOKUP($A72,cost_data!$A$5:$BB$215,X$1,0)","v":8169.4090382387012},{"$f":"VLOOKUP($A72,cost_data!$A$5:$BB$215,Y$1,0)","v":62.35},{"$f":"VLOOKUP($A72,cost_data!$A$5:$BB$215,Z$1,0)","v":8169.4090382387012},{"$f":"VLOOKUP($A72,cost_data!$A$5:$BB$215,AA$1,0)","v":1052398.2},{"$f":"VLOOKUP($A72,cost_data!$A$5:$BB$215,AB$1,0)","v":397597}]
["03W","NHS East Leicestershire and Rutland",{"$f":"VLOOKUP($A73,cost_data!$A$5:$BB$215,C$1,0)","v":6036838.7500000102},{"$f":"VLOOKUP($A73,cost_data!$A$5:$BB$215,D$1,0)","v":31421.80235433772},{"$f":"VLOOKUP($A73,cost_data!$A$5:$BB$215,E$1,0)","v":1800863.8399999801},{"$f":"VLOOKUP($A73,cost_data!$A$5:$BB$215,F$1,0)","v":31421.80235433772},{"$f":"VLOOKUP($A73,cost_data!$A$5:$BB$215,G$1,0)","v":1525178.81},{"$f":"VLOOKUP($A73,cost_data!$A$5:$BB$215,H$1,0)","v":31421.80235433772},{"$f":"VLOOKUP($A73,cost_data!$A$5:$BB$215,I$1,0)","v":973091.53000000096},{"$f":"VLOOKUP($A73,cost_data!$A$5:$BB$215,J$1,0)","v":31421.80235433772},{"$f":"VLOOKUP($A73,cost_data!$A$5:$BB$215,K$1,0)","v":451589.69999999902},{"$f":"VLOOKUP($A73,cost_data!$A$5:$BB$215,L$1,0)","v":31421.80235433772},{"$f":"VLOOKUP($A73,cost_data!$A$5:$BB$215,M$1,0)","v":442870.63000000198},{"$f":"VLOOKUP($A73,cost_data!$A$5:$BB$215,N$1,0)","v":31421.80235433772},{"$f":"VLOOKUP($A73,cost_data!$A$5:$BB$215,O$1,0)","v":386475.26999999798},{"$f":"VLOOKUP($A73,cost_data!$A$5:$BB$215,P$1,0)","v":31421.80235433772},{"$f":"VLOOKUP($A73,cost_data!$A$5:$BB$215,Q$1,0)","v":332730.02999999898},{"$f":"VLOOKUP($A73,cost_data!$A$5:$BB$215,R$1,0)","v":31421.80235433772},{"$f":"VLOOKUP($A73,cost_data!$A$5:$BB$215,S$1,0)","v":47131.859999999899},{"$f":"VLOOKUP($A73,cost_data!$A$5:$BB$215,T$1,0)","v":31421.80235433772},{"$f":"VLOOKUP($A73,cost_data!$A$5:$BB$215,U$1,0)","v":31100.819999999901},{"$f":"VLOOKUP($A73,cost_data!$A$5:$BB$215,V$1,0)","v":31421.80235433772},{"$f":"VLOOKUP($A73,cost_data!$A$5:$BB$215,W$1,0)","v":23298.58},{"$f":"VLOOKUP($A73,cost_data!$A$5:$BB$215,X$1,0)","v":31421.80235433772},{"$f":"VLOOKUP($A73,cost_data!$A$5:$BB$215,Y$1,0)","v":22507.68},{"$f":"VLOOKUP($A73,cost_data!$A$5:$BB$215,Z$1,0)","v":31421.80235433772},{"$f":"VLOOKUP($A73,cost_data!$A$5:$BB$215,AA$1,0)","v":6036838.7500000102},{"$f":"VLOOKUP($A73,cost_data!$A$5:$BB$215,AB$1,0)","v":1822912}]
["03X","NHS Erewash",{"$f":"VLOOKUP($A74,cost_data!$A$5:$BB$215,C$1,0)","v":1738401.58},{"$f":"VLOOKUP($A74,cost_data!$A$5:$BB$215,D$1,0)","v":9587.5},{"$f":"VLOOKUP($A74,cost_data!$A$5:$BB$215,E$1,0)","v":416035.87},{"$f":"VLOOKUP($A74,cost_data!$A$5:$BB$215,F$1,0)","v":9587.5},{"$f":"VLOOKUP($A74,cost_data!$A$5:$BB$215,G$1,0)","v":431784.71},{"$f":"VLOOKUP($A74,cost_data!$A$5:$BB$215,H$1,0)","v":9587.5},{"$f":"VLOOKUP($A74,cost_data!$A$5:$BB$215,I$1,0)","v":392877.03},{"$f":"VLOOKUP($A74,cost_data!$A$5:$BB$215,J$1,0)","v":9587.5},{"$f":"VLOOKUP($A74,cost_data!$A$5:$BB$215,K$1,0)","v":135880.99},{"$f":"VLOOKUP($A74,cost_data!$A$5:$BB$215,L$1,0)","v":9587.5},{"$f":"VLOOKUP($A74,cost_data!$A$5:$BB$215,M$1,0)","v":117344.42},{"$f":"VLOOKUP($A74,cost_data!$A$5:$BB$215,N$1,0)","v":9587.5},{"$f":"VLOOKUP($A74,cost_data!$A$5:$BB$215,O$1,0)","v":118851.12},{"$f":"VLOOKUP($A74,cost_data!$A$5:$BB$215,P$1,0)","v":9587.5},{"$f":"VLOOKUP($A74,cost_data!$A$5:$BB$215,Q$1,0)","v":94540.19},{"$f":"VLOOKUP($A74,cost_data!$A$5:$BB$215,R$1,0)","v":9587.5},{"$f":"VLOOKUP($A74,cost_data!$A$5:$BB$215,S$1,0)","v":11173.56},{"$f":"VLOOKUP($A74,cost_data!$A$5:$BB$215,T$1,0)","v":9587.5},{"$f":"VLOOKUP($A74,cost_data!$A$5:$BB$215,U$1,0)","v":11985.14},{"$f":"VLOOKUP($A74,cost_data!$A$5:$BB$215,V$1,0)","v":9587.5},{"$f":"VLOOKUP($A74,cost_data!$A$5:$BB$215,W$1,0)","v":7468.8499999999904},{"$f":"VLOOKUP($A74,cost_data!$A$5:$BB$215,X$1,0)","v":9587.5},{"$f":"VLOOKUP($A74,cost_data!$A$5:$BB$215,Y$1,0)","v":459.7},{"$f":"VLOOKUP($A74,cost_data!$A$5:$BB$215,Z$1,0)","v":9587.5},{"$f":"VLOOKUP($A74,cost_data!$A$5:$BB$215,AA$1,0)","v":1738401.58},{"$f":"VLOOKUP($A74,cost_data!$A$5:$BB$215,AB$1,0)","v":429060}]
["03Y","NHS Hardwick",{"$f":"VLOOKUP($A75,cost_data!$A$5:$BB$215,C$1,0)","v":2021048.07},{"$f":"VLOOKUP($A75,cost_data!$A$5:$BB$215,D$1,0)","v":9439.7307018352858},{"$f":"VLOOKUP($A75,cost_data!$A$5:$BB$215,E$1,0)","v":376555.25},{"$f":"VLOOKUP($A75,cost_data!$A$5:$BB$215,F$1,0)","v":9439.7307018352858},{"$f":"VLOOKUP($A75,cost_data!$A$5:$BB$215,G$1,0)","v":497606.29},{"$f":"VLOOKUP($A75,cost_data!$A$5:$BB$215,H$1,0)","v":9439.7307018352858},{"$f":"VLOOKUP($A75,cost_data!$A$5:$BB$215,I$1,0)","v":476382.48},{"$f":"VLOOKUP($A75,cost_data!$A$5:$BB$215,J$1,0)","v":9439.7307018352858},{"$f":"VLOOKUP($A75,cost_data!$A$5:$BB$215,K$1,0)","v":173155.20000000001},{"$f":"VLOOKUP($A75,cost_data!$A$5:$BB$215,L$1,0)","v":9439.7307018352858},{"$f":"VLOOKUP($A75,cost_data!$A$5:$BB$215,M$1,0)","v":155897.24},{"$f":"VLOOKUP($A75,cost_data!$A$5:$BB$215,N$1,0)","v":9439.7307018352858},{"$f":"VLOOKUP($A75,cost_data!$A$5:$BB$215,O$1,0)","v":173314.02999999901},{"$f":"VLOOKUP($A75,cost_data!$A$5:$BB$215,P$1,0)","v":9439.7307018352858},{"$f":"VLOOKUP($A75,cost_data!$A$5:$BB$215,Q$1,0)","v":130074.38},{"$f":"VLOOKUP($A75,cost_data!$A$5:$BB$215,R$1,0)","v":9439.7307018352858},{"$f":"VLOOKUP($A75,cost_data!$A$5:$BB$215,S$1,0)","v":15774.05},{"$f":"VLOOKUP($A75,cost_data!$A$5:$BB$215,T$1,0)","v":9439.7307018352858},{"$f":"VLOOKUP($A75,cost_data!$A$5:$BB$215,U$1,0)","v":11827.33},{"$f":"VLOOKUP($A75,cost_data!$A$5:$BB$215,V$1,0)","v":9439.7307018352858},{"$f":"VLOOKUP($A75,cost_data!$A$5:$BB$215,W$1,0)","v":8901.82},{"$f":"VLOOKUP($A75,cost_data!$A$5:$BB$215,X$1,0)","v":9439.7307018352858},{"$f":"VLOOKUP($A75,cost_data!$A$5:$BB$215,Y$1,0)","v":1560},{"$f":"VLOOKUP($A75,cost_data!$A$5:$BB$215,Z$1,0)","v":9439.7307018352858},{"$f":"VLOOKUP($A75,cost_data!$A$5:$BB$215,AA$1,0)","v":2021048.07},{"$f":"VLOOKUP($A75,cost_data!$A$5:$BB$215,AB$1,0)","v":818833}]
["04C","NHS Leicester City",{"$f":"VLOOKUP($A76,cost_data!$A$5:$BB$215,C$1,0)","v":5404941.1900000097},{"$f":"VLOOKUP($A76,cost_data!$A$5:$BB$215,D$1,0)","v":48616.778006166496},{"$f":"VLOOKUP($A76,cost_data!$A$5:$BB$215,E$1,0)","v":1665209.6300000099},{"$f":"VLOOKUP($A76,cost_data!$A$5:$BB$215,F$1,0)","v":48616.778006166496},{"$f":"VLOOKUP($A76,cost_data!$A$5:$BB$215,G$1,0)","v":1293470.92},{"$f":"VLOOKUP($A76,cost_data!$A$5:$BB$215,H$1,0)","v":48616.778006166496},{"$f":"VLOOKUP($A76,cost_data!$A$5:$BB$215,I$1,0)","v":943332.33999999799},{"$f":"VLOOKUP($A76,cost_data!$A$5:$BB$215,J$1,0)","v":48616.778006166496},{"$f":"VLOOKUP($A76,cost_data!$A$5:$BB$215,K$1,0)","v":313551.24999999901},{"$f":"VLOOKUP($A76,cost_data!$A$5:$BB$215,L$1,0)","v":48616.778006166496},{"$f":"VLOOKUP($A76,cost_data!$A$5:$BB$215,M$1,0)","v":368693.42000000703},{"$f":"VLOOKUP($A76,cost_data!$A$5:$BB$215,N$1,0)","v":48616.778006166496},{"$f":"VLOOKUP($A76,cost_data!$A$5:$BB$215,O$1,0)","v":396465.86999999802},{"$f":"VLOOKUP($A76,cost_data!$A$5:$BB$215,P$1,0)","v":48616.778006166496},{"$f":"VLOOKUP($A76,cost_data!$A$5:$BB$215,Q$1,0)","v":305650.20999999897},{"$f":"VLOOKUP($A76,cost_data!$A$5:$BB$215,R$1,0)","v":48616.778006166496},{"$f":"VLOOKUP($A76,cost_data!$A$5:$BB$215,S$1,0)","v":36450.989999999903},{"$f":"VLOOKUP($A76,cost_data!$A$5:$BB$215,T$1,0)","v":48616.778006166496},{"$f":"VLOOKUP($A76,cost_data!$A$5:$BB$215,U$1,0)","v":20837.679999999898},{"$f":"VLOOKUP($A76,cost_data!$A$5:$BB$215,V$1,0)","v":48616.778006166496},{"$f":"VLOOKUP($A76,cost_data!$A$5:$BB$215,W$1,0)","v":36185.08},{"$f":"VLOOKUP($A76,cost_data!$A$5:$BB$215,X$1,0)","v":48616.778006166496},{"$f":"VLOOKUP($A76,cost_data!$A$5:$BB$215,Y$1,0)","v":25093.8},{"$f":"VLOOKUP($A76,cost_data!$A$5:$BB$215,Z$1,0)","v":48616.778006166496},{"$f":"VLOOKUP($A76,cost_data!$A$5:$BB$215,AA$1,0)","v":5404941.1900000097},{"$f":"VLOOKUP($A76,cost_data!$A$5:$BB$215,AB$1,0)","v":1837328}]
["04D","NHS Lincolnshire West",{"$f":"VLOOKUP($A77,cost_data!$A$5:$BB$215,C$1,0)","v":4541505.1100000096},{"$f":"VLOOKUP($A77,cost_data!$A$5:$BB$215,D$1,0)","v":22731.262525050101},{"$f":"VLOOKUP($A77,cost_data!$A$5:$BB$215,E$1,0)","v":1504905.5699999901},{"$f":"VLOOKUP($A77,cost_data!$A$5:$BB$215,F$1,0)","v":22731.262525050101},{"$f":"VLOOKUP($A77,cost_data!$A$5:$BB$215,G$1,0)","v":1066024.54},{"$f":"VLOOKUP($A77,cost_data!$A$5:$BB$215,H$1,0)","v":22731.262525050101},{"$f":"VLOOKUP($A77,cost_data!$A$5:$BB$215,I$1,0)","v":742950.72},{"$f":"VLOOKUP($A77,cost_data!$A$5:$BB$215,J$1,0)","v":22731.262525050101},{"$f":"VLOOKUP($A77,cost_data!$A$5:$BB$215,K$1,0)","v":273425.68},{"$f":"VLOOKUP($A77,cost_data!$A$5:$BB$215,L$1,0)","v":22731.262525050101},{"$f":"VLOOKUP($A77,cost_data!$A$5:$BB$215,M$1,0)","v":288536.580000002},{"$f":"VLOOKUP($A77,cost_data!$A$5:$BB$215,N$1,0)","v":22731.262525050101},{"$f":"VLOOKUP($A77,cost_data!$A$5:$BB$215,O$1,0)","v":329378.799999999},{"$f":"VLOOKUP($A77,cost_data!$A$5:$BB$215,P$1,0)","v":22731.262525050101},{"$f":"VLOOKUP($A77,cost_data!$A$5:$BB$215,Q$1,0)","v":254404.040000001},{"$f":"VLOOKUP($A77,cost_data!$A$5:$BB$215,R$1,0)","v":22731.262525050101},{"$f":"VLOOKUP($A77,cost_data!$A$5:$BB$215,S$1,0)","v":31313.529999999901},{"$f":"VLOOKUP($A77,cost_data!$A$5:$BB$215,T$1,0)","v":22731.262525050101},{"$f":"VLOOKUP($A77,cost_data!$A$5:$BB$215,U$1,0)","v":23474.03},{"$f":"VLOOKUP($A77,cost_data!$A$5:$BB$215,V$1,0)","v":22731.262525050101},{"$f":"VLOOKUP($A77,cost_data!$A$5:$BB$215,W$1,0)","v":17774.330000000002},{"$f":"VLOOKUP($A77,cost_data!$A$5:$BB$215,X$1,0)","v":22731.262525050101},{"$f":"VLOOKUP($A77,cost_data!$A$5:$BB$215,Y$1,0)","v":9317.2900000000009},{"$f":"VLOOKUP($A77,cost_data!$A$5:$BB$215,Z$1,0)","v":22731.262525050101},{"$f":"VLOOKUP($A77,cost_data!$A$5:$BB$215,AA$1,0)","v":4541505.1100000096},{"$f":"VLOOKUP($A77,cost_data!$A$5:$BB$215,AB$1,0)","v":1544605}]
["04E","NHS Mansfield and Ashfield",{"$f":"VLOOKUP($A78,cost_data!$A$5:$BB$215,C$1,0)","v":3217433.1899999902},{"$f":"VLOOKUP($A78,cost_data!$A$5:$BB$215,D$1,0)","v":18279.405940594061},{"$f":"VLOOKUP($A78,cost_data!$A$5:$BB$215,E$1,0)","v":820429.52},{"$f":"VLOOKUP($A78,cost_data!$A$5:$BB$215,F$1,0)","v":18279.405940594061},{"$f":"VLOOKUP($A78,cost_data!$A$5:$BB$215,G$1,0)","v":670864.54},{"$f":"VLOOKUP($A78,cost_data!$A$5:$BB$215,H$1,0)","v":18279.405940594061},{"$f":"VLOOKUP($A78,cost_data!$A$5:$BB$215,I$1,0)","v":691755.43999999901},{"$f":"VLOOKUP($A78,cost_data!$A$5:$BB$215,J$1,0)","v":18279.405940594061},{"$f":"VLOOKUP($A78,cost_data!$A$5:$BB$215,K$1,0)","v":255797.21},{"$f":"VLOOKUP($A78,cost_data!$A$5:$BB$215,L$1,0)","v":18279.405940594061},{"$f":"VLOOKUP($A78,cost_data!$A$5:$BB$215,M$1,0)","v":275125.28999999899},{"$f":"VLOOKUP($A78,cost_data!$A$5:$BB$215,N$1,0)","v":18279.405940594061},{"$f":"VLOOKUP($A78,cost_data!$A$5:$BB$215,O$1,0)","v":249579.559999997},{"$f":"VLOOKUP($A78,cost_data!$A$5:$BB$215,P$1,0)","v":18279.405940594061},{"$f":"VLOOKUP($A78,cost_data!$A$5:$BB$215,Q$1,0)","v":202143.73},{"$f":"VLOOKUP($A78,cost_data!$A$5:$BB$215,R$1,0)","v":18279.405940594061},{"$f":"VLOOKUP($A78,cost_data!$A$5:$BB$215,S$1,0)","v":22595.66},{"$f":"VLOOKUP($A78,cost_data!$A$5:$BB$215,T$1,0)","v":18279.405940594061},{"$f":"VLOOKUP($A78,cost_data!$A$5:$BB$215,U$1,0)","v":16319.98},{"$f":"VLOOKUP($A78,cost_data!$A$5:$BB$215,V$1,0)","v":18279.405940594061},{"$f":"VLOOKUP($A78,cost_data!$A$5:$BB$215,W$1,0)","v":10907.78},{"$f":"VLOOKUP($A78,cost_data!$A$5:$BB$215,X$1,0)","v":18279.405940594061},{"$f":"VLOOKUP($A78,cost_data!$A$5:$BB$215,Y$1,0)","v":1914.48},{"$f":"VLOOKUP($A78,cost_data!$A$5:$BB$215,Z$1,0)","v":18279.405940594061},{"$f":"VLOOKUP($A78,cost_data!$A$5:$BB$215,AA$1,0)","v":3217433.1899999902},{"$f":"VLOOKUP($A78,cost_data!$A$5:$BB$215,AB$1,0)","v":1386799}]
["04F","NHS Milton Keynes",{"$f":"VLOOKUP($A79,cost_data!$A$5:$BB$215,C$1,0)","v":3561951.88},{"$f":"VLOOKUP($A79,cost_data!$A$5:$BB$215,D$1,0)","v":36043.257676902533},{"$f":"VLOOKUP($A79,cost_data!$A$5:$BB$215,E$1,0)","v":1160608.93},{"$f":"VLOOKUP($A79,cost_data!$A$5:$BB$215,F$1,0)","v":36043.257676902533},{"$f":"VLOOKUP($A79,cost_data!$A$5:$BB$215,G$1,0)","v":819417.98999999894},{"$f":"VLOOKUP($A79,cost_data!$A$5:$BB$215,H$1,0)","v":36043.257676902533},{"$f":"VLOOKUP($A79,cost_data!$A$5:$BB$215,I$1,0)","v":601015.57999999996},{"$f":"VLOOKUP($A79,cost_data!$A$5:$BB$215,J$1,0)","v":36043.257676902533},{"$f":"VLOOKUP($A79,cost_data!$A$5:$BB$215,K$1,0)","v":246905.55},{"$f":"VLOOKUP($A79,cost_data!$A$5:$BB$215,L$1,0)","v":36043.257676902533},{"$f":"VLOOKUP($A79,cost_data!$A$5:$BB$215,M$1,0)","v":276476.62999999902},{"$f":"VLOOKUP($A79,cost_data!$A$5:$BB$215,N$1,0)","v":36043.257676902533},{"$f":"VLOOKUP($A79,cost_data!$A$5:$BB$215,O$1,0)","v":171787.46999999901},{"$f":"VLOOKUP($A79,cost_data!$A$5:$BB$215,P$1,0)","v":36043.257676902533},{"$f":"VLOOKUP($A79,cost_data!$A$5:$BB$215,Q$1,0)","v":217771.56000000099},{"$f":"VLOOKUP($A79,cost_data!$A$5:$BB$215,R$1,0)","v":36043.257676902533},{"$f":"VLOOKUP($A79,cost_data!$A$5:$BB$215,S$1,0)","v":21020.880000000001},{"$f":"VLOOKUP($A79,cost_data!$A$5:$BB$215,T$1,0)","v":36043.257676902533},{"$f":"VLOOKUP($A79,cost_data!$A$5:$BB$215,U$1,0)","v":19227.509999999998},{"$f":"VLOOKUP($A79,cost_data!$A$5:$BB$215,V$1,0)","v":36043.257676902533},{"$f":"VLOOKUP($A79,cost_data!$A$5:$BB$215,W$1,0)","v":20115.02},{"$f":"VLOOKUP($A79,cost_data!$A$5:$BB$215,X$1,0)","v":36043.257676902533},{"$f":"VLOOKUP($A79,cost_data!$A$5:$BB$215,Y$1,0)","v":7604.76},{"$f":"VLOOKUP($A79,cost_data!$A$5:$BB$215,Z$1,0)","v":36043.257676902533},{"$f":"VLOOKUP($A79,cost_data!$A$5:$BB$215,AA$1,0)","v":3561951.88},{"$f":"VLOOKUP($A79,cost_data!$A$5:$BB$215,AB$1,0)","v":848049}]
["04G","NHS Nene",{"$f":"VLOOKUP($A80,cost_data!$A$5:$BB$215,C$1,0)","v":10020684.199999999},{"$f":"VLOOKUP($A80,cost_data!$A$5:$BB$215,D$1,0)","v":70974.168912848152},{"$f":"VLOOKUP($A80,cost_data!$A$5:$BB$215,E$1,0)","v":2945458.5},{"$f":"VLOOKUP($A80,cost_data!$A$5:$BB$215,F$1,0)","v":70974.168912848152},{"$f":"VLOOKUP($A80,cost_data!$A$5:$BB$215,G$1,0)","v":2184338.29},{"$f":"VLOOKUP($A80,cost_data!$A$5:$BB$215,H$1,0)","v":70974.168912848152},{"$f":"VLOOKUP($A80,cost_data!$A$5:$BB$215,I$1,0)","v":1530003.5},{"$f":"VLOOKUP($A80,cost_data!$A$5:$BB$215,J$1,0)","v":70974.168912848152},{"$f":"VLOOKUP($A80,cost_data!$A$5:$BB$215,K$1,0)","v":896157.74},{"$f":"VLOOKUP($A80,cost_data!$A$5:$BB$215,L$1,0)","v":70974.168912848152},{"$f":"VLOOKUP($A80,cost_data!$A$5:$BB$215,M$1,0)","v":805623.060000011},{"$f":"VLOOKUP($A80,cost_data!$A$5:$BB$215,N$1,0)","v":70974.168912848152},{"$f":"VLOOKUP($A80,cost_data!$A$5:$BB$215,O$1,0)","v":751583.84000001103},{"$f":"VLOOKUP($A80,cost_data!$A$5:$BB$215,P$1,0)","v":70974.168912848152},{"$f":"VLOOKUP($A80,cost_data!$A$5:$BB$215,Q$1,0)","v":709951.01999999397},{"$f":"VLOOKUP($A80,cost_data!$A$5:$BB$215,R$1,0)","v":70974.168912848152},{"$f":"VLOOKUP($A80,cost_data!$A$5:$BB$215,S$1,0)","v":66667.59},{"$f":"VLOOKUP($A80,cost_data!$A$5:$BB$215,T$1,0)","v":70974.168912848152},{"$f":"VLOOKUP($A80,cost_data!$A$5:$BB$215,U$1,0)","v":55164.899999999798},{"$f":"VLOOKUP($A80,cost_data!$A$5:$BB$215,V$1,0)","v":70974.168912848152},{"$f":"VLOOKUP($A80,cost_data!$A$5:$BB$215,W$1,0)","v":43385.540000000103},{"$f":"VLOOKUP($A80,cost_data!$A$5:$BB$215,X$1,0)","v":70974.168912848152},{"$f":"VLOOKUP($A80,cost_data!$A$5:$BB$215,Y$1,0)","v":32350.22},{"$f":"VLOOKUP($A80,cost_data!$A$5:$BB$215,Z$1,0)","v":70974.168912848152},{"$f":"VLOOKUP($A80,cost_data!$A$5:$BB$215,AA$1,0)","v":10020684.199999999},{"$f":"VLOOKUP($A80,cost_data!$A$5:$BB$215,AB$1,0)","v":4156394}]
["04H","NHS Newark & Sherwood",{"$f":"VLOOKUP($A81,cost_data!$A$5:$BB$215,C$1,0)","v":2456775.73},{"$f":"VLOOKUP($A81,cost_data!$A$5:$BB$215,D$1,0)","v":12430.441105186623},{"$f":"VLOOKUP($A81,cost_data!$A$5:$BB$215,E$1,0)","v":642263.81000000203},{"$f":"VLOOKUP($A81,cost_data!$A$5:$BB$215,F$1,0)","v":12430.441105186623},{"$f":"VLOOKUP($A81,cost_data!$A$5:$BB$215,G$1,0)","v":555891.36999999895},{"$f":"VLOOKUP($A81,cost_data!$A$5:$BB$215,H$1,0)","v":12430.441105186623},{"$f":"VLOOKUP($A81,cost_data!$A$5:$BB$215,I$1,0)","v":526639.64},{"$f":"VLOOKUP($A81,cost_data!$A$5:$BB$215,J$1,0)","v":12430.441105186623},{"$f":"VLOOKUP($A81,cost_data!$A$5:$BB$215,K$1,0)","v":187897.3},{"$f":"VLOOKUP($A81,cost_data!$A$5:$BB$215,L$1,0)","v":12430.441105186623},{"$f":"VLOOKUP($A81,cost_data!$A$5:$BB$215,M$1,0)","v":190005.11},{"$f":"VLOOKUP($A81,cost_data!$A$5:$BB$215,N$1,0)","v":12430.441105186623},{"$f":"VLOOKUP($A81,cost_data!$A$5:$BB$215,O$1,0)","v":172559.079999999},{"$f":"VLOOKUP($A81,cost_data!$A$5:$BB$215,P$1,0)","v":12430.441105186623},{"$f":"VLOOKUP($A81,cost_data!$A$5:$BB$215,Q$1,0)","v":138130.95000000001},{"$f":"VLOOKUP($A81,cost_data!$A$5:$BB$215,R$1,0)","v":12430.441105186623},{"$f":"VLOOKUP($A81,cost_data!$A$5:$BB$215,S$1,0)","v":19587.349999999999},{"$f":"VLOOKUP($A81,cost_data!$A$5:$BB$215,T$1,0)","v":12430.441105186623},{"$f":"VLOOKUP($A81,cost_data!$A$5:$BB$215,U$1,0)","v":11792.93},{"$f":"VLOOKUP($A81,cost_data!$A$5:$BB$215,V$1,0)","v":12430.441105186623},{"$f":"VLOOKUP($A81,cost_data!$A$5:$BB$215,W$1,0)","v":8525.2900000000009},{"$f":"VLOOKUP($A81,cost_data!$A$5:$BB$215,X$1,0)","v":12430.441105186623},{"$f":"VLOOKUP($A81,cost_data!$A$5:$BB$215,Y$1,0)","v":3482.9},{"$f":"VLOOKUP($A81,cost_data!$A$5:$BB$215,Z$1,0)","v":12430.441105186623},{"$f":"VLOOKUP($A81,cost_data!$A$5:$BB$215,AA$1,0)","v":2456775.73},{"$f":"VLOOKUP($A81,cost_data!$A$5:$BB$215,AB$1,0)","v":797617}]
["04J","NHS North Derbyshire",{"$f":"VLOOKUP($A82,cost_data!$A$5:$BB$215,C$1,0)","v":5506604.6600000001},{"$f":"VLOOKUP($A82,cost_data!$A$5:$BB$215,D$1,0)","v":26678.683385579938},{"$f":"VLOOKUP($A82,cost_data!$A$5:$BB$215,E$1,0)","v":1165920.78},{"$f":"VLOOKUP($A82,cost_data!$A$5:$BB$215,F$1,0)","v":26678.683385579938},{"$f":"VLOOKUP($A82,cost_data!$A$5:$BB$215,G$1,0)","v":1356555.42},{"$f":"VLOOKUP($A82,cost_data!$A$5:$BB$215,H$1,0)","v":26678.683385579938},{"$f":"VLOOKUP($A82,cost_data!$A$5:$BB$215,I$1,0)","v":1137740.03},{"$f":"VLOOKUP($A82,cost_data!$A$5:$BB$215,J$1,0)","v":26678.683385579938},{"$f":"VLOOKUP($A82,cost_data!$A$5:$BB$215,K$1,0)","v":484857.89},{"$f":"VLOOKUP($A82,cost_data!$A$5:$BB$215,L$1,0)","v":26678.683385579938},{"$f":"VLOOKUP($A82,cost_data!$A$5:$BB$215,M$1,0)","v":404756.85000000498},{"$f":"VLOOKUP($A82,cost_data!$A$5:$BB$215,N$1,0)","v":26678.683385579938},{"$f":"VLOOKUP($A82,cost_data!$A$5:$BB$215,O$1,0)","v":468815.87},{"$f":"VLOOKUP($A82,cost_data!$A$5:$BB$215,P$1,0)","v":26678.683385579938},{"$f":"VLOOKUP($A82,cost_data!$A$5:$BB$215,Q$1,0)","v":370396.78000000102},{"$f":"VLOOKUP($A82,cost_data!$A$5:$BB$215,R$1,0)","v":26678.683385579938},{"$f":"VLOOKUP($A82,cost_data!$A$5:$BB$215,S$1,0)","v":46459.699999999903},{"$f":"VLOOKUP($A82,cost_data!$A$5:$BB$215,T$1,0)","v":26678.683385579938},{"$f":"VLOOKUP($A82,cost_data!$A$5:$BB$215,U$1,0)","v":32927.359999999899},{"$f":"VLOOKUP($A82,cost_data!$A$5:$BB$215,V$1,0)","v":26678.683385579938},{"$f":"VLOOKUP($A82,cost_data!$A$5:$BB$215,W$1,0)","v":25432.720000000001},{"$f":"VLOOKUP($A82,cost_data!$A$5:$BB$215,X$1,0)","v":26678.683385579938},{"$f":"VLOOKUP($A82,cost_data!$A$5:$BB$215,Y$1,0)","v":12741.26},{"$f":"VLOOKUP($A82,cost_data!$A$5:$BB$215,Z$1,0)","v":26678.683385579938},{"$f":"VLOOKUP($A82,cost_data!$A$5:$BB$215,AA$1,0)","v":5506604.6600000001},{"$f":"VLOOKUP($A82,cost_data!$A$5:$BB$215,AB$1,0)","v":1904443}]
["04K","NHS Nottingham City",{"$f":"VLOOKUP($A83,cost_data!$A$5:$BB$215,C$1,0)","v":4686020.88},{"$f":"VLOOKUP($A83,cost_data!$A$5:$BB$215,D$1,0)","v":43187.392690703949},{"$f":"VLOOKUP($A83,cost_data!$A$5:$BB$215,E$1,0)","v":1387438.9},{"$f":"VLOOKUP($A83,cost_data!$A$5:$BB$215,F$1,0)","v":43187.392690703949},{"$f":"VLOOKUP($A83,cost_data!$A$5:$BB$215,G$1,0)","v":1003905.96},{"$f":"VLOOKUP($A83,cost_data!$A$5:$BB$215,H$1,0)","v":43187.392690703949},{"$f":"VLOOKUP($A83,cost_data!$A$5:$BB$215,I$1,0)","v":943526.95999999903},{"$f":"VLOOKUP($A83,cost_data!$A$5:$BB$215,J$1,0)","v":43187.392690703949},{"$f":"VLOOKUP($A83,cost_data!$A$5:$BB$215,K$1,0)","v":351310.30999999901},{"$f":"VLOOKUP($A83,cost_data!$A$5:$BB$215,L$1,0)","v":43187.392690703949},{"$f":"VLOOKUP($A83,cost_data!$A$5:$BB$215,M$1,0)","v":300354.99000000203},{"$f":"VLOOKUP($A83,cost_data!$A$5:$BB$215,N$1,0)","v":43187.392690703949},{"$f":"VLOOKUP($A83,cost_data!$A$5:$BB$215,O$1,0)","v":366659.07999999798},{"$f":"VLOOKUP($A83,cost_data!$A$5:$BB$215,P$1,0)","v":43187.392690703949},{"$f":"VLOOKUP($A83,cost_data!$A$5:$BB$215,Q$1,0)","v":250066.64},{"$f":"VLOOKUP($A83,cost_data!$A$5:$BB$215,R$1,0)","v":43187.392690703949},{"$f":"VLOOKUP($A83,cost_data!$A$5:$BB$215,S$1,0)","v":27137.37},{"$f":"VLOOKUP($A83,cost_data!$A$5:$BB$215,T$1,0)","v":43187.392690703949},{"$f":"VLOOKUP($A83,cost_data!$A$5:$BB$215,U$1,0)","v":25173.0199999998},{"$f":"VLOOKUP($A83,cost_data!$A$5:$BB$215,V$1,0)","v":43187.392690703949},{"$f":"VLOOKUP($A83,cost_data!$A$5:$BB$215,W$1,0)","v":25492.840000000098},{"$f":"VLOOKUP($A83,cost_data!$A$5:$BB$215,X$1,0)","v":43187.392690703949},{"$f":"VLOOKUP($A83,cost_data!$A$5:$BB$215,Y$1,0)","v":4926.8100000000004},{"$f":"VLOOKUP($A83,cost_data!$A$5:$BB$215,Z$1,0)","v":43187.392690703949},{"$f":"VLOOKUP($A83,cost_data!$A$5:$BB$215,AA$1,0)","v":4686020.88},{"$f":"VLOOKUP($A83,cost_data!$A$5:$BB$215,AB$1,0)","v":1291943}]
["04L","NHS Nottingham North and East",{"$f":"VLOOKUP($A84,cost_data!$A$5:$BB$215,C$1,0)","v":2855763.05},{"$f":"VLOOKUP($A84,cost_data!$A$5:$BB$215,D$1,0)","v":14435.370094386488},{"$f":"VLOOKUP($A84,cost_data!$A$5:$BB$215,E$1,0)","v":880352.270000002},{"$f":"VLOOKUP($A84,cost_data!$A$5:$BB$215,F$1,0)","v":14435.370094386488},{"$f":"VLOOKUP($A84,cost_data!$A$5:$BB$215,G$1,0)","v":666782.82999999903},{"$f":"VLOOKUP($A84,cost_data!$A$5:$BB$215,H$1,0)","v":14435.370094386488},{"$f":"VLOOKUP($A84,cost_data!$A$5:$BB$215,I$1,0)","v":543102.44999999995},{"$f":"VLOOKUP($A84,cost_data!$A$5:$BB$215,J$1,0)","v":14435.370094386488},{"$f":"VLOOKUP($A84,cost_data!$A$5:$BB$215,K$1,0)","v":170501.15},{"$f":"VLOOKUP($A84,cost_data!$A$5:$BB$215,L$1,0)","v":14435.370094386488},{"$f":"VLOOKUP($A84,cost_data!$A$5:$BB$215,M$1,0)","v":178688.42},{"$f":"VLOOKUP($A84,cost_data!$A$5:$BB$215,N$1,0)","v":14435.370094386488},{"$f":"VLOOKUP($A84,cost_data!$A$5:$BB$215,O$1,0)","v":201984.69999999899},{"$f":"VLOOKUP($A84,cost_data!$A$5:$BB$215,P$1,0)","v":14435.370094386488},{"$f":"VLOOKUP($A84,cost_data!$A$5:$BB$215,Q$1,0)","v":158413.07},{"$f":"VLOOKUP($A84,cost_data!$A$5:$BB$215,R$1,0)","v":14435.370094386488},{"$f":"VLOOKUP($A84,cost_data!$A$5:$BB$215,S$1,0)","v":22861.38},{"$f":"VLOOKUP($A84,cost_data!$A$5:$BB$215,T$1,0)","v":14435.370094386488},{"$f":"VLOOKUP($A84,cost_data!$A$5:$BB$215,U$1,0)","v":16379.56},{"$f":"VLOOKUP($A84,cost_data!$A$5:$BB$215,V$1,0)","v":14435.370094386488},{"$f":"VLOOKUP($A84,cost_data!$A$5:$BB$215,W$1,0)","v":11742.16},{"$f":"VLOOKUP($A84,cost_data!$A$5:$BB$215,X$1,0)","v":14435.370094386488},{"$f":"VLOOKUP($A84,cost_data!$A$5:$BB$215,Y$1,0)","v":4955.0600000000004},{"$f":"VLOOKUP($A84,cost_data!$A$5:$BB$215,Z$1,0)","v":14435.370094386488},{"$f":"VLOOKUP($A84,cost_data!$A$5:$BB$215,AA$1,0)","v":2855763.05},{"$f":"VLOOKUP($A84,cost_data!$A$5:$BB$215,AB$1,0)","v":768472}]
["04M","NHS Nottingham West",{"$f":"VLOOKUP($A85,cost_data!$A$5:$BB$215,C$1,0)","v":1639072.44},{"$f":"VLOOKUP($A85,cost_data!$A$5:$BB$215,D$1,0)","v":9196.8179139658223},{"$f":"VLOOKUP($A85,cost_data!$A$5:$BB$215,E$1,0)","v":410161.48},{"$f":"VLOOKUP($A85,cost_data!$A$5:$BB$215,F$1,0)","v":9196.8179139658223},{"$f":"VLOOKUP($A85,cost_data!$A$5:$BB$215,G$1,0)","v":370891.17},{"$f":"VLOOKUP($A85,cost_data!$A$5:$BB$215,H$1,0)","v":9196.8179139658223},{"$f":"VLOOKUP($A85,cost_data!$A$5:$BB$215,I$1,0)","v":370255.33},{"$f":"VLOOKUP($A85,cost_data!$A$5:$BB$215,J$1,0)","v":9196.8179139658223},{"$f":"VLOOKUP($A85,cost_data!$A$5:$BB$215,K$1,0)","v":118182.1},{"$f":"VLOOKUP($A85,cost_data!$A$5:$BB$215,L$1,0)","v":9196.8179139658223},{"$f":"VLOOKUP($A85,cost_data!$A$5:$BB$215,M$1,0)","v":116142.13},{"$f":"VLOOKUP($A85,cost_data!$A$5:$BB$215,N$1,0)","v":9196.8179139658223},{"$f":"VLOOKUP($A85,cost_data!$A$5:$BB$215,O$1,0)","v":128472.24},{"$f":"VLOOKUP($A85,cost_data!$A$5:$BB$215,P$1,0)","v":9196.8179139658223},{"$f":"VLOOKUP($A85,cost_data!$A$5:$BB$215,Q$1,0)","v":97124.099999999904},{"$f":"VLOOKUP($A85,cost_data!$A$5:$BB$215,R$1,0)","v":9196.8179139658223},{"$f":"VLOOKUP($A85,cost_data!$A$5:$BB$215,S$1,0)","v":9733.1400000000103},{"$f":"VLOOKUP($A85,cost_data!$A$5:$BB$215,T$1,0)","v":9196.8179139658223},{"$f":"VLOOKUP($A85,cost_data!$A$5:$BB$215,U$1,0)","v":11022.49},{"$f":"VLOOKUP($A85,cost_data!$A$5:$BB$215,V$1,0)","v":9196.8179139658223},{"$f":"VLOOKUP($A85,cost_data!$A$5:$BB$215,W$1,0)","v":6918.26},{"$f":"VLOOKUP($A85,cost_data!$A$5:$BB$215,X$1,0)","v":9196.8179139658223},{"$f":"VLOOKUP($A85,cost_data!$A$5:$BB$215,Y$1,0)","v":170},{"$f":"VLOOKUP($A85,cost_data!$A$5:$BB$215,Z$1,0)","v":9196.8179139658223},{"$f":"VLOOKUP($A85,cost_data!$A$5:$BB$215,AA$1,0)","v":1639072.44},{"$f":"VLOOKUP($A85,cost_data!$A$5:$BB$215,AB$1,0)","v":411397}]
["04N","NHS Rushcliffe",{"$f":"VLOOKUP($A86,cost_data!$A$5:$BB$215,C$1,0)","v":2288346.12},{"$f":"VLOOKUP($A86,cost_data!$A$5:$BB$215,D$1,0)","v":12413.023540201772},{"$f":"VLOOKUP($A86,cost_data!$A$5:$BB$215,E$1,0)","v":671784.81000000099},{"$f":"VLOOKUP($A86,cost_data!$A$5:$BB$215,F$1,0)","v":12413.023540201772},{"$f":"VLOOKUP($A86,cost_data!$A$5:$BB$215,G$1,0)","v":634988.77},{"$f":"VLOOKUP($A86,cost_data!$A$5:$BB$215,H$1,0)","v":12413.023540201772},{"$f":"VLOOKUP($A86,cost_data!$A$5:$BB$215,I$1,0)","v":407741.47},{"$f":"VLOOKUP($A86,cost_data!$A$5:$BB$215,J$1,0)","v":12413.023540201772},{"$f":"VLOOKUP($A86,cost_data!$A$5:$BB$215,K$1,0)","v":138170.01999999999},{"$f":"VLOOKUP($A86,cost_data!$A$5:$BB$215,L$1,0)","v":12413.023540201772},{"$f":"VLOOKUP($A86,cost_data!$A$5:$BB$215,M$1,0)","v":145650.63},{"$f":"VLOOKUP($A86,cost_data!$A$5:$BB$215,N$1,0)","v":12413.023540201772},{"$f":"VLOOKUP($A86,cost_data!$A$5:$BB$215,O$1,0)","v":156388.209999999},{"$f":"VLOOKUP($A86,cost_data!$A$5:$BB$215,P$1,0)","v":12413.023540201772},{"$f":"VLOOKUP($A86,cost_data!$A$5:$BB$215,Q$1,0)","v":96637.13},{"$f":"VLOOKUP($A86,cost_data!$A$5:$BB$215,R$1,0)","v":12413.023540201772},{"$f":"VLOOKUP($A86,cost_data!$A$5:$BB$215,S$1,0)","v":11444.51},{"$f":"VLOOKUP($A86,cost_data!$A$5:$BB$215,T$1,0)","v":12413.023540201772},{"$f":"VLOOKUP($A86,cost_data!$A$5:$BB$215,U$1,0)","v":12529.86},{"$f":"VLOOKUP($A86,cost_data!$A$5:$BB$215,V$1,0)","v":12413.023540201772},{"$f":"VLOOKUP($A86,cost_data!$A$5:$BB$215,W$1,0)","v":8482.31},{"$f":"VLOOKUP($A86,cost_data!$A$5:$BB$215,X$1,0)","v":12413.023540201772},{"$f":"VLOOKUP($A86,cost_data!$A$5:$BB$215,Y$1,0)","v":4528.3999999999996},{"$f":"VLOOKUP($A86,cost_data!$A$5:$BB$215,Z$1,0)","v":12413.023540201772},{"$f":"VLOOKUP($A86,cost_data!$A$5:$BB$215,AA$1,0)","v":2288346.12},{"$f":"VLOOKUP($A86,cost_data!$A$5:$BB$215,AB$1,0)","v":654096}]
["04Q","NHS South West Lincolnshire",{"$f":"VLOOKUP($A87,cost_data!$A$5:$BB$215,C$1,0)","v":3073036.34},{"$f":"VLOOKUP($A87,cost_data!$A$5:$BB$215,D$1,0)","v":12187.482299631833},{"$f":"VLOOKUP($A87,cost_data!$A$5:$BB$215,E$1,0)","v":834304.96999999904},{"$f":"VLOOKUP($A87,cost_data!$A$5:$BB$215,F$1,0)","v":12187.482299631833},{"$f":"VLOOKUP($A87,cost_data!$A$5:$BB$215,G$1,0)","v":782764.31999999902},{"$f":"VLOOKUP($A87,cost_data!$A$5:$BB$215,H$1,0)","v":12187.482299631833},{"$f":"VLOOKUP($A87,cost_data!$A$5:$BB$215,I$1,0)","v":625560.28},{"$f":"VLOOKUP($A87,cost_data!$A$5:$BB$215,J$1,0)","v":12187.482299631833},{"$f":"VLOOKUP($A87,cost_data!$A$5:$BB$215,K$1,0)","v":190662.04},{"$f":"VLOOKUP($A87,cost_data!$A$5:$BB$215,L$1,0)","v":12187.482299631833},{"$f":"VLOOKUP($A87,cost_data!$A$5:$BB$215,M$1,0)","v":239348.609999999},{"$f":"VLOOKUP($A87,cost_data!$A$5:$BB$215,N$1,0)","v":12187.482299631833},{"$f":"VLOOKUP($A87,cost_data!$A$5:$BB$215,O$1,0)","v":194896.23},{"$f":"VLOOKUP($A87,cost_data!$A$5:$BB$215,P$1,0)","v":12187.482299631833},{"$f":"VLOOKUP($A87,cost_data!$A$5:$BB$215,Q$1,0)","v":150727.64000000001},{"$f":"VLOOKUP($A87,cost_data!$A$5:$BB$215,R$1,0)","v":12187.482299631833},{"$f":"VLOOKUP($A87,cost_data!$A$5:$BB$215,S$1,0)","v":22784.18},{"$f":"VLOOKUP($A87,cost_data!$A$5:$BB$215,T$1,0)","v":12187.482299631833},{"$f":"VLOOKUP($A87,cost_data!$A$5:$BB$215,U$1,0)","v":12710.35},{"$f":"VLOOKUP($A87,cost_data!$A$5:$BB$215,V$1,0)","v":12187.482299631833},{"$f":"VLOOKUP($A87,cost_data!$A$5:$BB$215,W$1,0)","v":11949.17},{"$f":"VLOOKUP($A87,cost_data!$A$5:$BB$215,X$1,0)","v":12187.482299631833},{"$f":"VLOOKUP($A87,cost_data!$A$5:$BB$215,Y$1,0)","v":7328.55},{"$f":"VLOOKUP($A87,cost_data!$A$5:$BB$215,Z$1,0)","v":12187.482299631833},{"$f":"VLOOKUP($A87,cost_data!$A$5:$BB$215,AA$1,0)","v":3073036.34},{"$f":"VLOOKUP($A87,cost_data!$A$5:$BB$215,AB$1,0)","v":1064295}]
["04R","NHS Southern Derbyshire",{"$f":"VLOOKUP($A88,cost_data!$A$5:$BB$215,C$1,0)","v":8916080.9400000405},{"$f":"VLOOKUP($A88,cost_data!$A$5:$BB$215,D$1,0)","v":56315.28964862298},{"$f":"VLOOKUP($A88,cost_data!$A$5:$BB$215,E$1,0)","v":1974055.95000002},{"$f":"VLOOKUP($A88,cost_data!$A$5:$BB$215,F$1,0)","v":56315.28964862298},{"$f":"VLOOKUP($A88,cost_data!$A$5:$BB$215,G$1,0)","v":2144773.88},{"$f":"VLOOKUP($A88,cost_data!$A$5:$BB$215,H$1,0)","v":56315.28964862298},{"$f":"VLOOKUP($A88,cost_data!$A$5:$BB$215,I$1,0)","v":1857912.61},{"$f":"VLOOKUP($A88,cost_data!$A$5:$BB$215,J$1,0)","v":56315.28964862298},{"$f":"VLOOKUP($A88,cost_data!$A$5:$BB$215,K$1,0)","v":910661.37000000104},{"$f":"VLOOKUP($A88,cost_data!$A$5:$BB$215,L$1,0)","v":56315.28964862298},{"$f":"VLOOKUP($A88,cost_data!$A$5:$BB$215,M$1,0)","v":670153.040000004},{"$f":"VLOOKUP($A88,cost_data!$A$5:$BB$215,N$1,0)","v":56315.28964862298},{"$f":"VLOOKUP($A88,cost_data!$A$5:$BB$215,O$1,0)","v":684203.83999999904},{"$f":"VLOOKUP($A88,cost_data!$A$5:$BB$215,P$1,0)","v":56315.28964862298},{"$f":"VLOOKUP($A88,cost_data!$A$5:$BB$215,Q$1,0)","v":489494.51999999501},{"$f":"VLOOKUP($A88,cost_data!$A$5:$BB$215,R$1,0)","v":56315.28964862298},{"$f":"VLOOKUP($A88,cost_data!$A$5:$BB$215,S$1,0)","v":61797.649999999798},{"$f":"VLOOKUP($A88,cost_data!$A$5:$BB$215,T$1,0)","v":56315.28964862298},{"$f":"VLOOKUP($A88,cost_data!$A$5:$BB$215,U$1,0)","v":61404.539999999797},{"$f":"VLOOKUP($A88,cost_data!$A$5:$BB$215,V$1,0)","v":56315.28964862298},{"$f":"VLOOKUP($A88,cost_data!$A$5:$BB$215,W$1,0)","v":45992.71},{"$f":"VLOOKUP($A88,cost_data!$A$5:$BB$215,X$1,0)","v":56315.28964862298},{"$f":"VLOOKUP($A88,cost_data!$A$5:$BB$215,Y$1,0)","v":15630.83},{"$f":"VLOOKUP($A88,cost_data!$A$5:$BB$215,Z$1,0)","v":56315.28964862298},{"$f":"VLOOKUP($A88,cost_data!$A$5:$BB$215,AA$1,0)","v":8916080.9400000405},{"$f":"VLOOKUP($A88,cost_data!$A$5:$BB$215,AB$1,0)","v":2306048}]
["04V","NHS West Leicestershire",{"$f":"VLOOKUP($A89,cost_data!$A$5:$BB$215,C$1,0)","v":6595178.7900000196},{"$f":"VLOOKUP($A89,cost_data!$A$5:$BB$215,D$1,0)","v":39377.136185118354},{"$f":"VLOOKUP($A89,cost_data!$A$5:$BB$215,E$1,0)","v":1984104.5500000101},{"$f":"VLOOKUP($A89,cost_data!$A$5:$BB$215,F$1,0)","v":39377.136185118354},{"$f":"VLOOKUP($A89,cost_data!$A$5:$BB$215,G$1,0)","v":1590380.74},{"$f":"VLOOKUP($A89,cost_data!$A$5:$BB$215,H$1,0)","v":39377.136185118354},{"$f":"VLOOKUP($A89,cost_data!$A$5:$BB$215,I$1,0)","v":1125125.8999999999},{"$f":"VLOOKUP($A89,cost_data!$A$5:$BB$215,J$1,0)","v":39377.136185118354},{"$f":"VLOOKUP($A89,cost_data!$A$5:$BB$215,K$1,0)","v":473247.59},{"$f":"VLOOKUP($A89,cost_data!$A$5:$BB$215,L$1,0)","v":39377.136185118354},{"$f":"VLOOKUP($A89,cost_data!$A$5:$BB$215,M$1,0)","v":501841.94000000198},{"$f":"VLOOKUP($A89,cost_data!$A$5:$BB$215,N$1,0)","v":39377.136185118354},{"$f":"VLOOKUP($A89,cost_data!$A$5:$BB$215,O$1,0)","v":432462.08999999799},{"$f":"VLOOKUP($A89,cost_data!$A$5:$BB$215,P$1,0)","v":39377.136185118354},{"$f":"VLOOKUP($A89,cost_data!$A$5:$BB$215,Q$1,0)","v":376631.60999999603},{"$f":"VLOOKUP($A89,cost_data!$A$5:$BB$215,R$1,0)","v":39377.136185118354},{"$f":"VLOOKUP($A89,cost_data!$A$5:$BB$215,S$1,0)","v":43604.959999999897},{"$f":"VLOOKUP($A89,cost_data!$A$5:$BB$215,T$1,0)","v":39377.136185118354},{"$f":"VLOOKUP($A89,cost_data!$A$5:$BB$215,U$1,0)","v":34095.669999999802},{"$f":"VLOOKUP($A89,cost_data!$A$5:$BB$215,V$1,0)","v":39377.136185118354},{"$f":"VLOOKUP($A89,cost_data!$A$5:$BB$215,W$1,0)","v":26274.61},{"$f":"VLOOKUP($A89,cost_data!$A$5:$BB$215,X$1,0)","v":39377.136185118354},{"$f":"VLOOKUP($A89,cost_data!$A$5:$BB$215,Y$1,0)","v":7409.13},{"$f":"VLOOKUP($A89,cost_data!$A$5:$BB$215,Z$1,0)","v":39377.136185118354},{"$f":"VLOOKUP($A89,cost_data!$A$5:$BB$215,AA$1,0)","v":6595178.7900000196},{"$f":"VLOOKUP($A89,cost_data!$A$5:$BB$215,AB$1,0)","v":2154970}]
["04X","NHS Birmingham South and Central",{"$f":"VLOOKUP($A90,cost_data!$A$5:$BB$215,C$1,0)","v":3471504.06},{"$f":"VLOOKUP($A90,cost_data!$A$5:$BB$215,D$1,0)","v":30135.980148883373},{"$f":"VLOOKUP($A90,cost_data!$A$5:$BB$215,E$1,0)","v":1047382.25000001},{"$f":"VLOOKUP($A90,cost_data!$A$5:$BB$215,F$1,0)","v":30135.980148883373},{"$f":"VLOOKUP($A90,cost_data!$A$5:$BB$215,G$1,0)","v":824329.09},{"$f":"VLOOKUP($A90,cost_data!$A$5:$BB$215,H$1,0)","v":30135.980148883373},{"$f":"VLOOKUP($A90,cost_data!$A$5:$BB$215,I$1,0)","v":692735.13999999897},{"$f":"VLOOKUP($A90,cost_data!$A$5:$BB$215,J$1,0)","v":30135.980148883373},{"$f":"VLOOKUP($A90,cost_data!$A$5:$BB$215,K$1,0)","v":151649.71},{"$f":"VLOOKUP($A90,cost_data!$A$5:$BB$215,L$1,0)","v":30135.980148883373},{"$f":"VLOOKUP($A90,cost_data!$A$5:$BB$215,M$1,0)","v":215689},{"$f":"VLOOKUP($A90,cost_data!$A$5:$BB$215,N$1,0)","v":30135.980148883373},{"$f":"VLOOKUP($A90,cost_data!$A$5:$BB$215,O$1,0)","v":262194.13999999699},{"$f":"VLOOKUP($A90,cost_data!$A$5:$BB$215,P$1,0)","v":30135.980148883373},{"$f":"VLOOKUP($A90,cost_data!$A$5:$BB$215,Q$1,0)","v":221281.22000000099},{"$f":"VLOOKUP($A90,cost_data!$A$5:$BB$215,R$1,0)","v":30135.980148883373},{"$f":"VLOOKUP($A90,cost_data!$A$5:$BB$215,S$1,0)","v":15563.87},{"$f":"VLOOKUP($A90,cost_data!$A$5:$BB$215,T$1,0)","v":30135.980148883373},{"$f":"VLOOKUP($A90,cost_data!$A$5:$BB$215,U$1,0)","v":18501.400000000001},{"$f":"VLOOKUP($A90,cost_data!$A$5:$BB$215,V$1,0)","v":30135.980148883373},{"$f":"VLOOKUP($A90,cost_data!$A$5:$BB$215,W$1,0)","v":18848.240000000002},{"$f":"VLOOKUP($A90,cost_data!$A$5:$BB$215,X$1,0)","v":30135.980148883373},{"$f":"VLOOKUP($A90,cost_data!$A$5:$BB$215,Y$1,0)","v":3330},{"$f":"VLOOKUP($A90,cost_data!$A$5:$BB$215,Z$1,0)","v":30135.980148883373},{"$f":"VLOOKUP($A90,cost_data!$A$5:$BB$215,AA$1,0)","v":3471504.06},{"$f":"VLOOKUP($A90,cost_data!$A$5:$BB$215,AB$1,0)","v":871110}]
["04Y","NHS Cannock Chase",{"$f":"VLOOKUP($A91,cost_data!$A$5:$BB$215,C$1,0)","v":2705297.66},{"$f":"VLOOKUP($A91,cost_data!$A$5:$BB$215,D$1,0)","v":13970.901423299949},{"$f":"VLOOKUP($A91,cost_data!$A$5:$BB$215,E$1,0)","v":726518.07},{"$f":"VLOOKUP($A91,cost_data!$A$5:$BB$215,F$1,0)","v":13970.901423299949},{"$f":"VLOOKUP($A91,cost_data!$A$5:$BB$215,G$1,0)","v":657704.17000000004},{"$f":"VLOOKUP($A91,cost_data!$A$5:$BB$215,H$1,0)","v":13970.901423299949},{"$f":"VLOOKUP($A91,cost_data!$A$5:$BB$215,I$1,0)","v":561801.18999999994},{"$f":"VLOOKUP($A91,cost_data!$A$5:$BB$215,J$1,0)","v":13970.901423299949},{"$f":"VLOOKUP($A91,cost_data!$A$5:$BB$215,K$1,0)","v":181335.53999999899},{"$f":"VLOOKUP($A91,cost_data!$A$5:$BB$215,L$1,0)","v":13970.901423299949},{"$f":"VLOOKUP($A91,cost_data!$A$5:$BB$215,M$1,0)","v":169343.93999999901},{"$f":"VLOOKUP($A91,cost_data!$A$5:$BB$215,N$1,0)","v":13970.901423299949},{"$f":"VLOOKUP($A91,cost_data!$A$5:$BB$215,O$1,0)","v":191860.699999998},{"$f":"VLOOKUP($A91,cost_data!$A$5:$BB$215,P$1,0)","v":13970.901423299949},{"$f":"VLOOKUP($A91,cost_data!$A$5:$BB$215,Q$1,0)","v":161393.39000000001},{"$f":"VLOOKUP($A91,cost_data!$A$5:$BB$215,R$1,0)","v":13970.901423299949},{"$f":"VLOOKUP($A91,cost_data!$A$5:$BB$215,S$1,0)","v":18593.73},{"$f":"VLOOKUP($A91,cost_data!$A$5:$BB$215,T$1,0)","v":13970.901423299949},{"$f":"VLOOKUP($A91,cost_data!$A$5:$BB$215,U$1,0)","v":16488.39},{"$f":"VLOOKUP($A91,cost_data!$A$5:$BB$215,V$1,0)","v":13970.901423299949},{"$f":"VLOOKUP($A91,cost_data!$A$5:$BB$215,W$1,0)","v":9385.59},{"$f":"VLOOKUP($A91,cost_data!$A$5:$BB$215,X$1,0)","v":13970.901423299949},{"$f":"VLOOKUP($A91,cost_data!$A$5:$BB$215,Y$1,0)","v":10872.95},{"$f":"VLOOKUP($A91,cost_data!$A$5:$BB$215,Z$1,0)","v":13970.901423299949},{"$f":"VLOOKUP($A91,cost_data!$A$5:$BB$215,AA$1,0)","v":2705297.66},{"$f":"VLOOKUP($A91,cost_data!$A$5:$BB$215,AB$1,0)","v":807772}]
["05A","NHS Coventry and Rugby",{"$f":"VLOOKUP($A92,cost_data!$A$5:$BB$215,C$1,0)","v":8191265.3700000197},{"$f":"VLOOKUP($A92,cost_data!$A$5:$BB$215,D$1,0)","v":52573.785109228716},{"$f":"VLOOKUP($A92,cost_data!$A$5:$BB$215,E$1,0)","v":2685807.34},{"$f":"VLOOKUP($A92,cost_data!$A$5:$BB$215,F$1,0)","v":52573.785109228716},{"$f":"VLOOKUP($A92,cost_data!$A$5:$BB$215,G$1,0)","v":1801003.16},{"$f":"VLOOKUP($A92,cost_data!$A$5:$BB$215,H$1,0)","v":52573.785109228716},{"$f":"VLOOKUP($A92,cost_data!$A$5:$BB$215,I$1,0)","v":1529648.98},{"$f":"VLOOKUP($A92,cost_data!$A$5:$BB$215,J$1,0)","v":52573.785109228716},{"$f":"VLOOKUP($A92,cost_data!$A$5:$BB$215,K$1,0)","v":538794.66999999795},{"$f":"VLOOKUP($A92,cost_data!$A$5:$BB$215,L$1,0)","v":52573.785109228716},{"$f":"VLOOKUP($A92,cost_data!$A$5:$BB$215,M$1,0)","v":557152.30000000994},{"$f":"VLOOKUP($A92,cost_data!$A$5:$BB$215,N$1,0)","v":52573.785109228716},{"$f":"VLOOKUP($A92,cost_data!$A$5:$BB$215,O$1,0)","v":483386.39},{"$f":"VLOOKUP($A92,cost_data!$A$5:$BB$215,P$1,0)","v":52573.785109228716},{"$f":"VLOOKUP($A92,cost_data!$A$5:$BB$215,Q$1,0)","v":479908.79999999102},{"$f":"VLOOKUP($A92,cost_data!$A$5:$BB$215,R$1,0)","v":52573.785109228716},{"$f":"VLOOKUP($A92,cost_data!$A$5:$BB$215,S$1,0)","v":41980.800000000003},{"$f":"VLOOKUP($A92,cost_data!$A$5:$BB$215,T$1,0)","v":52573.785109228716},{"$f":"VLOOKUP($A92,cost_data!$A$5:$BB$215,U$1,0)","v":38606.829999999602},{"$f":"VLOOKUP($A92,cost_data!$A$5:$BB$215,V$1,0)","v":52573.785109228716},{"$f":"VLOOKUP($A92,cost_data!$A$5:$BB$215,W$1,0)","v":30647.4},{"$f":"VLOOKUP($A92,cost_data!$A$5:$BB$215,X$1,0)","v":52573.785109228716},{"$f":"VLOOKUP($A92,cost_data!$A$5:$BB$215,Y$1,0)","v":4328.7},{"$f":"VLOOKUP($A92,cost_data!$A$5:$BB$215,Z$1,0)","v":52573.785109228716},{"$f":"VLOOKUP($A92,cost_data!$A$5:$BB$215,AA$1,0)","v":8191265.3700000197},{"$f":"VLOOKUP($A92,cost_data!$A$5:$BB$215,AB$1,0)","v":2539639}]
["05C","NHS Dudley",{"$f":"VLOOKUP($A93,cost_data!$A$5:$BB$215,C$1,0)","v":7656483.4800000098},{"$f":"VLOOKUP($A93,cost_data!$A$5:$BB$215,D$1,0)","v":30259.682844786163},{"$f":"VLOOKUP($A93,cost_data!$A$5:$BB$215,E$1,0)","v":2352893.88},{"$f":"VLOOKUP($A93,cost_data!$A$5:$BB$215,F$1,0)","v":30259.682844786163},{"$f":"VLOOKUP($A93,cost_data!$A$5:$BB$215,G$1,0)","v":1944919.56},{"$f":"VLOOKUP($A93,cost_data!$A$5:$BB$215,H$1,0)","v":30259.682844786163},{"$f":"VLOOKUP($A93,cost_data!$A$5:$BB$215,I$1,0)","v":1498733.64},{"$f":"VLOOKUP($A93,cost_data!$A$5:$BB$215,J$1,0)","v":30259.682844786163},{"$f":"VLOOKUP($A93,cost_data!$A$5:$BB$215,K$1,0)","v":223995.56999999899},{"$f":"VLOOKUP($A93,cost_data!$A$5:$BB$215,L$1,0)","v":30259.682844786163},{"$f":"VLOOKUP($A93,cost_data!$A$5:$BB$215,M$1,0)","v":568295.32000000402},{"$f":"VLOOKUP($A93,cost_data!$A$5:$BB$215,N$1,0)","v":30259.682844786163},{"$f":"VLOOKUP($A93,cost_data!$A$5:$BB$215,O$1,0)","v":539726.62999999803},{"$f":"VLOOKUP($A93,cost_data!$A$5:$BB$215,P$1,0)","v":30259.682844786163},{"$f":"VLOOKUP($A93,cost_data!$A$5:$BB$215,Q$1,0)","v":403290.949999996},{"$f":"VLOOKUP($A93,cost_data!$A$5:$BB$215,R$1,0)","v":30259.682844786163},{"$f":"VLOOKUP($A93,cost_data!$A$5:$BB$215,S$1,0)","v":48301.639999999803},{"$f":"VLOOKUP($A93,cost_data!$A$5:$BB$215,T$1,0)","v":30259.682844786163},{"$f":"VLOOKUP($A93,cost_data!$A$5:$BB$215,U$1,0)","v":42679.209999999803},{"$f":"VLOOKUP($A93,cost_data!$A$5:$BB$215,V$1,0)","v":30259.682844786163},{"$f":"VLOOKUP($A93,cost_data!$A$5:$BB$215,W$1,0)","v":19677.96},{"$f":"VLOOKUP($A93,cost_data!$A$5:$BB$215,X$1,0)","v":30259.682844786163},{"$f":"VLOOKUP($A93,cost_data!$A$5:$BB$215,Y$1,0)","v":13969.12},{"$f":"VLOOKUP($A93,cost_data!$A$5:$BB$215,Z$1,0)","v":30259.682844786163},{"$f":"VLOOKUP($A93,cost_data!$A$5:$BB$215,AA$1,0)","v":7656483.4800000098},{"$f":"VLOOKUP($A93,cost_data!$A$5:$BB$215,AB$1,0)","v":1735639}]
["05D","NHS East Staffordshire",{"$f":"VLOOKUP($A94,cost_data!$A$5:$BB$215,C$1,0)","v":2869830.31},{"$f":"VLOOKUP($A94,cost_data!$A$5:$BB$215,D$1,0)","v":14017.84047297998},{"$f":"VLOOKUP($A94,cost_data!$A$5:$BB$215,E$1,0)","v":863314.77999999805},{"$f":"VLOOKUP($A94,cost_data!$A$5:$BB$215,F$1,0)","v":14017.84047297998},{"$f":"VLOOKUP($A94,cost_data!$A$5:$BB$215,G$1,0)","v":702777.02},{"$f":"VLOOKUP($A94,cost_data!$A$5:$BB$215,H$1,0)","v":14017.84047297998},{"$f":"VLOOKUP($A94,cost_data!$A$5:$BB$215,I$1,0)","v":575485.18000000005},{"$f":"VLOOKUP($A94,cost_data!$A$5:$BB$215,J$1,0)","v":14017.84047297998},{"$f":"VLOOKUP($A94,cost_data!$A$5:$BB$215,K$1,0)","v":172625.47},{"$f":"VLOOKUP($A94,cost_data!$A$5:$BB$215,L$1,0)","v":14017.84047297998},{"$f":"VLOOKUP($A94,cost_data!$A$5:$BB$215,M$1,0)","v":188878.06999999899},{"$f":"VLOOKUP($A94,cost_data!$A$5:$BB$215,N$1,0)","v":14017.84047297998},{"$f":"VLOOKUP($A94,cost_data!$A$5:$BB$215,O$1,0)","v":169231.679999999},{"$f":"VLOOKUP($A94,cost_data!$A$5:$BB$215,P$1,0)","v":14017.84047297998},{"$f":"VLOOKUP($A94,cost_data!$A$5:$BB$215,Q$1,0)","v":147098.18},{"$f":"VLOOKUP($A94,cost_data!$A$5:$BB$215,R$1,0)","v":14017.84047297998},{"$f":"VLOOKUP($A94,cost_data!$A$5:$BB$215,S$1,0)","v":20679.439999999999},{"$f":"VLOOKUP($A94,cost_data!$A$5:$BB$215,T$1,0)","v":14017.84047297998},{"$f":"VLOOKUP($A94,cost_data!$A$5:$BB$215,U$1,0)","v":14441.68},{"$f":"VLOOKUP($A94,cost_data!$A$5:$BB$215,V$1,0)","v":14017.84047297998},{"$f":"VLOOKUP($A94,cost_data!$A$5:$BB$215,W$1,0)","v":10032.09},{"$f":"VLOOKUP($A94,cost_data!$A$5:$BB$215,X$1,0)","v":14017.84047297998},{"$f":"VLOOKUP($A94,cost_data!$A$5:$BB$215,Y$1,0)","v":5266.72},{"$f":"VLOOKUP($A94,cost_data!$A$5:$BB$215,Z$1,0)","v":14017.84047297998},{"$f":"VLOOKUP($A94,cost_data!$A$5:$BB$215,AA$1,0)","v":2869830.31},{"$f":"VLOOKUP($A94,cost_data!$A$5:$BB$215,AB$1,0)","v":825593}]
["05F","NHS Herefordshire",{"$f":"VLOOKUP($A95,cost_data!$A$5:$BB$215,C$1,0)","v":3302720.69},{"$f":"VLOOKUP($A95,cost_data!$A$5:$BB$215,D$1,0)","v":16218.561278863233},{"$f":"VLOOKUP($A95,cost_data!$A$5:$BB$215,E$1,0)","v":837778.78000000597},{"$f":"VLOOKUP($A95,cost_data!$A$5:$BB$215,F$1,0)","v":16218.561278863233},{"$f":"VLOOKUP($A95,cost_data!$A$5:$BB$215,G$1,0)","v":830870.1},{"$f":"VLOOKUP($A95,cost_data!$A$5:$BB$215,H$1,0)","v":16218.561278863233},{"$f":"VLOOKUP($A95,cost_data!$A$5:$BB$215,I$1,0)","v":630808.53999999899},{"$f":"VLOOKUP($A95,cost_data!$A$5:$BB$215,J$1,0)","v":16218.561278863233},{"$f":"VLOOKUP($A95,cost_data!$A$5:$BB$215,K$1,0)","v":300380.38},{"$f":"VLOOKUP($A95,cost_data!$A$5:$BB$215,L$1,0)","v":16218.561278863233},{"$f":"VLOOKUP($A95,cost_data!$A$5:$BB$215,M$1,0)","v":229617.85},{"$f":"VLOOKUP($A95,cost_data!$A$5:$BB$215,N$1,0)","v":16218.561278863233},{"$f":"VLOOKUP($A95,cost_data!$A$5:$BB$215,O$1,0)","v":209975.82},{"$f":"VLOOKUP($A95,cost_data!$A$5:$BB$215,P$1,0)","v":16218.561278863233},{"$f":"VLOOKUP($A95,cost_data!$A$5:$BB$215,Q$1,0)","v":201867.38},{"$f":"VLOOKUP($A95,cost_data!$A$5:$BB$215,R$1,0)","v":16218.561278863233},{"$f":"VLOOKUP($A95,cost_data!$A$5:$BB$215,S$1,0)","v":19243.169999999998},{"$f":"VLOOKUP($A95,cost_data!$A$5:$BB$215,T$1,0)","v":16218.561278863233},{"$f":"VLOOKUP($A95,cost_data!$A$5:$BB$215,U$1,0)","v":23140.46},{"$f":"VLOOKUP($A95,cost_data!$A$5:$BB$215,V$1,0)","v":16218.561278863233},{"$f":"VLOOKUP($A95,cost_data!$A$5:$BB$215,W$1,0)","v":14288.16},{"$f":"VLOOKUP($A95,cost_data!$A$5:$BB$215,X$1,0)","v":16218.561278863233},{"$f":"VLOOKUP($A95,cost_data!$A$5:$BB$215,Y$1,0)","v":4750.05},{"$f":"VLOOKUP($A95,cost_data!$A$5:$BB$215,Z$1,0)","v":16218.561278863233},{"$f":"VLOOKUP($A95,cost_data!$A$5:$BB$215,AA$1,0)","v":3302720.69},{"$f":"VLOOKUP($A95,cost_data!$A$5:$BB$215,AB$1,0)","v":1045815}]
["05G","NHS North Staffordshire",{"$f":"VLOOKUP($A96,cost_data!$A$5:$BB$215,C$1,0)","v":5232889.6500000097},{"$f":"VLOOKUP($A96,cost_data!$A$5:$BB$215,D$1,0)","v":20647.001934235977},{"$f":"VLOOKUP($A96,cost_data!$A$5:$BB$215,E$1,0)","v":1441756.1799999899},{"$f":"VLOOKUP($A96,cost_data!$A$5:$BB$215,F$1,0)","v":20647.001934235977},{"$f":"VLOOKUP($A96,cost_data!$A$5:$BB$215,G$1,0)","v":1436512.16},{"$f":"VLOOKUP($A96,cost_data!$A$5:$BB$215,H$1,0)","v":20647.001934235977},{"$f":"VLOOKUP($A96,cost_data!$A$5:$BB$215,I$1,0)","v":1037893.99},{"$f":"VLOOKUP($A96,cost_data!$A$5:$BB$215,J$1,0)","v":20647.001934235977},{"$f":"VLOOKUP($A96,cost_data!$A$5:$BB$215,K$1,0)","v":205745.53},{"$f":"VLOOKUP($A96,cost_data!$A$5:$BB$215,L$1,0)","v":20647.001934235977},{"$f":"VLOOKUP($A96,cost_data!$A$5:$BB$215,M$1,0)","v":395749.31000000099},{"$f":"VLOOKUP($A96,cost_data!$A$5:$BB$215,N$1,0)","v":20647.001934235977},{"$f":"VLOOKUP($A96,cost_data!$A$5:$BB$215,O$1,0)","v":330445.14999999898},{"$f":"VLOOKUP($A96,cost_data!$A$5:$BB$215,P$1,0)","v":20647.001934235977},{"$f":"VLOOKUP($A96,cost_data!$A$5:$BB$215,Q$1,0)","v":284039.65000000002},{"$f":"VLOOKUP($A96,cost_data!$A$5:$BB$215,R$1,0)","v":20647.001934235977},{"$f":"VLOOKUP($A96,cost_data!$A$5:$BB$215,S$1,0)","v":41292.47},{"$f":"VLOOKUP($A96,cost_data!$A$5:$BB$215,T$1,0)","v":20647.001934235977},{"$f":"VLOOKUP($A96,cost_data!$A$5:$BB$215,U$1,0)","v":27108.6899999999},{"$f":"VLOOKUP($A96,cost_data!$A$5:$BB$215,V$1,0)","v":20647.001934235977},{"$f":"VLOOKUP($A96,cost_data!$A$5:$BB$215,W$1,0)","v":15216.78},{"$f":"VLOOKUP($A96,cost_data!$A$5:$BB$215,X$1,0)","v":20647.001934235977},{"$f":"VLOOKUP($A96,cost_data!$A$5:$BB$215,Y$1,0)","v":17129.740000000002},{"$f":"VLOOKUP($A96,cost_data!$A$5:$BB$215,Z$1,0)","v":20647.001934235977},{"$f":"VLOOKUP($A96,cost_data!$A$5:$BB$215,AA$1,0)","v":5232889.6500000097},{"$f":"VLOOKUP($A96,cost_data!$A$5:$BB$215,AB$1,0)","v":1418877}]
["05H","NHS Warwickshire North",{"$f":"VLOOKUP($A97,cost_data!$A$5:$BB$215,C$1,0)","v":4086023.22000001},{"$f":"VLOOKUP($A97,cost_data!$A$5:$BB$215,D$1,0)","v":18848.559166155734},{"$f":"VLOOKUP($A97,cost_data!$A$5:$BB$215,E$1,0)","v":1440911.26999999},{"$f":"VLOOKUP($A97,cost_data!$A$5:$BB$215,F$1,0)","v":18848.559166155734},{"$f":"VLOOKUP($A97,cost_data!$A$5:$BB$215,G$1,0)","v":908054.11999999895},{"$f":"VLOOKUP($A97,cost_data!$A$5:$BB$215,H$1,0)","v":18848.559166155734},{"$f":"VLOOKUP($A97,cost_data!$A$5:$BB$215,I$1,0)","v":662898.77},{"$f":"VLOOKUP($A97,cost_data!$A$5:$BB$215,J$1,0)","v":18848.559166155734},{"$f":"VLOOKUP($A97,cost_data!$A$5:$BB$215,K$1,0)","v":222706.37999999899},{"$f":"VLOOKUP($A97,cost_data!$A$5:$BB$215,L$1,0)","v":18848.559166155734},{"$f":"VLOOKUP($A97,cost_data!$A$5:$BB$215,M$1,0)","v":314549.30000000098},{"$f":"VLOOKUP($A97,cost_data!$A$5:$BB$215,N$1,0)","v":18848.559166155734},{"$f":"VLOOKUP($A97,cost_data!$A$5:$BB$215,O$1,0)","v":246753.69999999899},{"$f":"VLOOKUP($A97,cost_data!$A$5:$BB$215,P$1,0)","v":18848.559166155734},{"$f":"VLOOKUP($A97,cost_data!$A$5:$BB$215,Q$1,0)","v":241399.62000000101},{"$f":"VLOOKUP($A97,cost_data!$A$5:$BB$215,R$1,0)","v":18848.559166155734},{"$f":"VLOOKUP($A97,cost_data!$A$5:$BB$215,S$1,0)","v":20603.78},{"$f":"VLOOKUP($A97,cost_data!$A$5:$BB$215,T$1,0)","v":18848.559166155734},{"$f":"VLOOKUP($A97,cost_data!$A$5:$BB$215,U$1,0)","v":14802.64},{"$f":"VLOOKUP($A97,cost_data!$A$5:$BB$215,V$1,0)","v":18848.559166155734},{"$f":"VLOOKUP($A97,cost_data!$A$5:$BB$215,W$1,0)","v":12100.86},{"$f":"VLOOKUP($A97,cost_data!$A$5:$BB$215,X$1,0)","v":18848.559166155734},{"$f":"VLOOKUP($A97,cost_data!$A$5:$BB$215,Y$1,0)","v":1242.78},{"$f":"VLOOKUP($A97,cost_data!$A$5:$BB$215,Z$1,0)","v":18848.559166155734},{"$f":"VLOOKUP($A97,cost_data!$A$5:$BB$215,AA$1,0)","v":4086023.22000001},{"$f":"VLOOKUP($A97,cost_data!$A$5:$BB$215,AB$1,0)","v":1355263}]
["05J","NHS Redditch and Bromsgrove",{"$f":"VLOOKUP($A98,cost_data!$A$5:$BB$215,C$1,0)","v":3298692.3},{"$f":"VLOOKUP($A98,cost_data!$A$5:$BB$215,D$1,0)","v":17697.231655860862},{"$f":"VLOOKUP($A98,cost_data!$A$5:$BB$215,E$1,0)","v":908838.57},{"$f":"VLOOKUP($A98,cost_data!$A$5:$BB$215,F$1,0)","v":17697.231655860862},{"$f":"VLOOKUP($A98,cost_data!$A$5:$BB$215,G$1,0)","v":790774.9},{"$f":"VLOOKUP($A98,cost_data!$A$5:$BB$215,H$1,0)","v":17697.231655860862},{"$f":"VLOOKUP($A98,cost_data!$A$5:$BB$215,I$1,0)","v":677655.19},{"$f":"VLOOKUP($A98,cost_data!$A$5:$BB$215,J$1,0)","v":17697.231655860862},{"$f":"VLOOKUP($A98,cost_data!$A$5:$BB$215,K$1,0)","v":233916.68999999901},{"$f":"VLOOKUP($A98,cost_data!$A$5:$BB$215,L$1,0)","v":17697.231655860862},{"$f":"VLOOKUP($A98,cost_data!$A$5:$BB$215,M$1,0)","v":232278.94},{"$f":"VLOOKUP($A98,cost_data!$A$5:$BB$215,N$1,0)","v":17697.231655860862},{"$f":"VLOOKUP($A98,cost_data!$A$5:$BB$215,O$1,0)","v":205789.84999999899},{"$f":"VLOOKUP($A98,cost_data!$A$5:$BB$215,P$1,0)","v":17697.231655860862},{"$f":"VLOOKUP($A98,cost_data!$A$5:$BB$215,Q$1,0)","v":194574.5},{"$f":"VLOOKUP($A98,cost_data!$A$5:$BB$215,R$1,0)","v":17697.231655860862},{"$f":"VLOOKUP($A98,cost_data!$A$5:$BB$215,S$1,0)","v":23025.439999999999},{"$f":"VLOOKUP($A98,cost_data!$A$5:$BB$215,T$1,0)","v":17697.231655860862},{"$f":"VLOOKUP($A98,cost_data!$A$5:$BB$215,U$1,0)","v":18205.439999999999},{"$f":"VLOOKUP($A98,cost_data!$A$5:$BB$215,V$1,0)","v":17697.231655860862},{"$f":"VLOOKUP($A98,cost_data!$A$5:$BB$215,W$1,0)","v":9522.08},{"$f":"VLOOKUP($A98,cost_data!$A$5:$BB$215,X$1,0)","v":17697.231655860862},{"$f":"VLOOKUP($A98,cost_data!$A$5:$BB$215,Y$1,0)","v":4110.7},{"$f":"VLOOKUP($A98,cost_data!$A$5:$BB$215,Z$1,0)","v":17697.231655860862},{"$f":"VLOOKUP($A98,cost_data!$A$5:$BB$215,AA$1,0)","v":3298692.3},{"$f":"VLOOKUP($A98,cost_data!$A$5:$BB$215,AB$1,0)","v":725286}]
["05L","NHS Sandwell and West Birmingham",{"$f":"VLOOKUP($A99,cost_data!$A$5:$BB$215,C$1,0)","v":11017145.300000099},{"$f":"VLOOKUP($A99,cost_data!$A$5:$BB$215,D$1,0)","v":61501.366742596816},{"$f":"VLOOKUP($A99,cost_data!$A$5:$BB$215,E$1,0)","v":4032840.6199999098},{"$f":"VLOOKUP($A99,cost_data!$A$5:$BB$215,F$1,0)","v":61501.366742596816},{"$f":"VLOOKUP($A99,cost_data!$A$5:$BB$215,G$1,0)","v":2628802.4999999902},{"$f":"VLOOKUP($A99,cost_data!$A$5:$BB$215,H$1,0)","v":61501.366742596816},{"$f":"VLOOKUP($A99,cost_data!$A$5:$BB$215,I$1,0)","v":1876970.84},{"$f":"VLOOKUP($A99,cost_data!$A$5:$BB$215,J$1,0)","v":61501.366742596816},{"$f":"VLOOKUP($A99,cost_data!$A$5:$BB$215,K$1,0)","v":441954.46999999898},{"$f":"VLOOKUP($A99,cost_data!$A$5:$BB$215,L$1,0)","v":61501.366742596816},{"$f":"VLOOKUP($A99,cost_data!$A$5:$BB$215,M$1,0)","v":561406.38000001002},{"$f":"VLOOKUP($A99,cost_data!$A$5:$BB$215,N$1,0)","v":61501.366742596816},{"$f":"VLOOKUP($A99,cost_data!$A$5:$BB$215,O$1,0)","v":795270.27000001306},{"$f":"VLOOKUP($A99,cost_data!$A$5:$BB$215,P$1,0)","v":61501.366742596816},{"$f":"VLOOKUP($A99,cost_data!$A$5:$BB$215,Q$1,0)","v":528858.20999999798},{"$f":"VLOOKUP($A99,cost_data!$A$5:$BB$215,R$1,0)","v":61501.366742596816},{"$f":"VLOOKUP($A99,cost_data!$A$5:$BB$215,S$1,0)","v":52788.849999999802},{"$f":"VLOOKUP($A99,cost_data!$A$5:$BB$215,T$1,0)","v":61501.366742596816},{"$f":"VLOOKUP($A99,cost_data!$A$5:$BB$215,U$1,0)","v":43846.049999999297},{"$f":"VLOOKUP($A99,cost_data!$A$5:$BB$215,V$1,0)","v":61501.366742596816},{"$f":"VLOOKUP($A99,cost_data!$A$5:$BB$215,W$1,0)","v":40127.379999999997},{"$f":"VLOOKUP($A99,cost_data!$A$5:$BB$215,X$1,0)","v":61501.366742596816},{"$f":"VLOOKUP($A99,cost_data!$A$5:$BB$215,Y$1,0)","v":14279.73},{"$f":"VLOOKUP($A99,cost_data!$A$5:$BB$215,Z$1,0)","v":61501.366742596816},{"$f":"VLOOKUP($A99,cost_data!$A$5:$BB$215,AA$1,0)","v":11017145.300000099},{"$f":"VLOOKUP($A99,cost_data!$A$5:$BB$215,AB$1,0)","v":2584083}]
["05N","NHS Shropshire",{"$f":"VLOOKUP($A100,cost_data!$A$5:$BB$215,C$1,0)","v":7026399.3000000101},{"$f":"VLOOKUP($A100,cost_data!$A$5:$BB$215,D$1,0)","v":26876.000359679885},{"$f":"VLOOKUP($A100,cost_data!$A$5:$BB$215,E$1,0)","v":2552473.0799999698},{"$f":"VLOOKUP($A100,cost_data!$A$5:$BB$215,F$1,0)","v":26876.000359679885},{"$f":"VLOOKUP($A100,cost_data!$A$5:$BB$215,G$1,0)","v":1684266.66},{"$f":"VLOOKUP($A100,cost_data!$A$5:$BB$215,H$1,0)","v":26876.000359679885},{"$f":"VLOOKUP($A100,cost_data!$A$5:$BB$215,I$1,0)","v":1093772.6499999999},{"$f":"VLOOKUP($A100,cost_data!$A$5:$BB$215,J$1,0)","v":26876.000359679885},{"$f":"VLOOKUP($A100,cost_data!$A$5:$BB$215,K$1,0)","v":418676.55},{"$f":"VLOOKUP($A100,cost_data!$A$5:$BB$215,L$1,0)","v":26876.000359679885},{"$f":"VLOOKUP($A100,cost_data!$A$5:$BB$215,M$1,0)","v":410508.09000000497},{"$f":"VLOOKUP($A100,cost_data!$A$5:$BB$215,N$1,0)","v":26876.000359679885},{"$f":"VLOOKUP($A100,cost_data!$A$5:$BB$215,O$1,0)","v":401874.34999999899},{"$f":"VLOOKUP($A100,cost_data!$A$5:$BB$215,P$1,0)","v":26876.000359679885},{"$f":"VLOOKUP($A100,cost_data!$A$5:$BB$215,Q$1,0)","v":344432.03},{"$f":"VLOOKUP($A100,cost_data!$A$5:$BB$215,R$1,0)","v":26876.000359679885},{"$f":"VLOOKUP($A100,cost_data!$A$5:$BB$215,S$1,0)","v":51401.179999999898},{"$f":"VLOOKUP($A100,cost_data!$A$5:$BB$215,T$1,0)","v":26876.000359679885},{"$f":"VLOOKUP($A100,cost_data!$A$5:$BB$215,U$1,0)","v":38474.809999999801},{"$f":"VLOOKUP($A100,cost_data!$A$5:$BB$215,V$1,0)","v":26876.000359679885},{"$f":"VLOOKUP($A100,cost_data!$A$5:$BB$215,W$1,0)","v":22263.77},{"$f":"VLOOKUP($A100,cost_data!$A$5:$BB$215,X$1,0)","v":26876.000359679885},{"$f":"VLOOKUP($A100,cost_data!$A$5:$BB$215,Y$1,0)","v":8161.42},{"$f":"VLOOKUP($A100,cost_data!$A$5:$BB$215,Z$1,0)","v":26876.000359679885},{"$f":"VLOOKUP($A100,cost_data!$A$5:$BB$215,AA$1,0)","v":7026399.3000000101},{"$f":"VLOOKUP($A100,cost_data!$A$5:$BB$215,AB$1,0)","v":1683930}]
["05P","NHS Solihull",{"$f":"VLOOKUP($A101,cost_data!$A$5:$BB$215,C$1,0)","v":4803277.99},{"$f":"VLOOKUP($A101,cost_data!$A$5:$BB$215,D$1,0)","v":23303.40496516534},{"$f":"VLOOKUP($A101,cost_data!$A$5:$BB$215,E$1,0)","v":1408434.79000001},{"$f":"VLOOKUP($A101,cost_data!$A$5:$BB$215,F$1,0)","v":23303.40496516534},{"$f":"VLOOKUP($A101,cost_data!$A$5:$BB$215,G$1,0)","v":1142038.07},{"$f":"VLOOKUP($A101,cost_data!$A$5:$BB$215,H$1,0)","v":23303.40496516534},{"$f":"VLOOKUP($A101,cost_data!$A$5:$BB$215,I$1,0)","v":933962.30999999901},{"$f":"VLOOKUP($A101,cost_data!$A$5:$BB$215,J$1,0)","v":23303.40496516534},{"$f":"VLOOKUP($A101,cost_data!$A$5:$BB$215,K$1,0)","v":224163.18999999901},{"$f":"VLOOKUP($A101,cost_data!$A$5:$BB$215,L$1,0)","v":23303.40496516534},{"$f":"VLOOKUP($A101,cost_data!$A$5:$BB$215,M$1,0)","v":370365.03000000102},{"$f":"VLOOKUP($A101,cost_data!$A$5:$BB$215,N$1,0)","v":23303.40496516534},{"$f":"VLOOKUP($A101,cost_data!$A$5:$BB$215,O$1,0)","v":350372.35999999801},{"$f":"VLOOKUP($A101,cost_data!$A$5:$BB$215,P$1,0)","v":23303.40496516534},{"$f":"VLOOKUP($A101,cost_data!$A$5:$BB$215,Q$1,0)","v":270767.87999999902},{"$f":"VLOOKUP($A101,cost_data!$A$5:$BB$215,R$1,0)","v":23303.40496516534},{"$f":"VLOOKUP($A101,cost_data!$A$5:$BB$215,S$1,0)","v":43439.69},{"$f":"VLOOKUP($A101,cost_data!$A$5:$BB$215,T$1,0)","v":23303.40496516534},{"$f":"VLOOKUP($A101,cost_data!$A$5:$BB$215,U$1,0)","v":26874.889999999901},{"$f":"VLOOKUP($A101,cost_data!$A$5:$BB$215,V$1,0)","v":23303.40496516534},{"$f":"VLOOKUP($A101,cost_data!$A$5:$BB$215,W$1,0)","v":20056.93},{"$f":"VLOOKUP($A101,cost_data!$A$5:$BB$215,X$1,0)","v":23303.40496516534},{"$f":"VLOOKUP($A101,cost_data!$A$5:$BB$215,Y$1,0)","v":12730.85},{"$f":"VLOOKUP($A101,cost_data!$A$5:$BB$215,Z$1,0)","v":23303.40496516534},{"$f":"VLOOKUP($A101,cost_data!$A$5:$BB$215,AA$1,0)","v":4803277.99},{"$f":"VLOOKUP($A101,cost_data!$A$5:$BB$215,AB$1,0)","v":1349684}]
["05Q","NHS South East Staffs and Seisdon Peninsular",{"$f":"VLOOKUP($A102,cost_data!$A$5:$BB$215,C$1,0)","v":4045230.47},{"$f":"VLOOKUP($A102,cost_data!$A$5:$BB$215,D$1,0)","v":21637.207878354937},{"$f":"VLOOKUP($A102,cost_data!$A$5:$BB$215,E$1,0)","v":1186505.08},{"$f":"VLOOKUP($A102,cost_data!$A$5:$BB$215,F$1,0)","v":21637.207878354937},{"$f":"VLOOKUP($A102,cost_data!$A$5:$BB$215,G$1,0)","v":929071.79},{"$f":"VLOOKUP($A102,cost_data!$A$5:$BB$215,H$1,0)","v":21637.207878354937},{"$f":"VLOOKUP($A102,cost_data!$A$5:$BB$215,I$1,0)","v":749125.03},{"$f":"VLOOKUP($A102,cost_data!$A$5:$BB$215,J$1,0)","v":21637.207878354937},{"$f":"VLOOKUP($A102,cost_data!$A$5:$BB$215,K$1,0)","v":269175.34999999899},{"$f":"VLOOKUP($A102,cost_data!$A$5:$BB$215,L$1,0)","v":21637.207878354937},{"$f":"VLOOKUP($A102,cost_data!$A$5:$BB$215,M$1,0)","v":294395.68000000098},{"$f":"VLOOKUP($A102,cost_data!$A$5:$BB$215,N$1,0)","v":21637.207878354937},{"$f":"VLOOKUP($A102,cost_data!$A$5:$BB$215,O$1,0)","v":301083.98999999801},{"$f":"VLOOKUP($A102,cost_data!$A$5:$BB$215,P$1,0)","v":21637.207878354937},{"$f":"VLOOKUP($A102,cost_data!$A$5:$BB$215,Q$1,0)","v":233040.640000001},{"$f":"VLOOKUP($A102,cost_data!$A$5:$BB$215,R$1,0)","v":21637.207878354937},{"$f":"VLOOKUP($A102,cost_data!$A$5:$BB$215,S$1,0)","v":44388.19},{"$f":"VLOOKUP($A102,cost_data!$A$5:$BB$215,T$1,0)","v":21637.207878354937},{"$f":"VLOOKUP($A102,cost_data!$A$5:$BB$215,U$1,0)","v":22513.15},{"$f":"VLOOKUP($A102,cost_data!$A$5:$BB$215,V$1,0)","v":21637.207878354937},{"$f":"VLOOKUP($A102,cost_data!$A$5:$BB$215,W$1,0)","v":13753.95},{"$f":"VLOOKUP($A102,cost_data!$A$5:$BB$215,X$1,0)","v":21637.207878354937},{"$f":"VLOOKUP($A102,cost_data!$A$5:$BB$215,Y$1,0)","v":2177.62},{"$f":"VLOOKUP($A102,cost_data!$A$5:$BB$215,Z$1,0)","v":21637.207878354937},{"$f":"VLOOKUP($A102,cost_data!$A$5:$BB$215,AA$1,0)","v":4045230.47},{"$f":"VLOOKUP($A102,cost_data!$A$5:$BB$215,AB$1,0)","v":1263943}]
["05R","NHS South Warwickshire",{"$f":"VLOOKUP($A103,cost_data!$A$5:$BB$215,C$1,0)","v":5118029.7700000098},{"$f":"VLOOKUP($A103,cost_data!$A$5:$BB$215,D$1,0)","v":26733.066171439743},{"$f":"VLOOKUP($A103,cost_data!$A$5:$BB$215,E$1,0)","v":1525316.6999999899},{"$f":"VLOOKUP($A103,cost_data!$A$5:$BB$215,F$1,0)","v":26733.066171439743},{"$f":"VLOOKUP($A103,cost_data!$A$5:$BB$215,G$1,0)","v":1142209.08},{"$f":"VLOOKUP($A103,cost_data!$A$5:$BB$215,H$1,0)","v":26733.066171439743},{"$f":"VLOOKUP($A103,cost_data!$A$5:$BB$215,I$1,0)","v":858500.55},{"$f":"VLOOKUP($A103,cost_data!$A$5:$BB$215,J$1,0)","v":26733.066171439743},{"$f":"VLOOKUP($A103,cost_data!$A$5:$BB$215,K$1,0)","v":564326.57999999903},{"$f":"VLOOKUP($A103,cost_data!$A$5:$BB$215,L$1,0)","v":26733.066171439743},{"$f":"VLOOKUP($A103,cost_data!$A$5:$BB$215,M$1,0)","v":299999.62000000098},{"$f":"VLOOKUP($A103,cost_data!$A$5:$BB$215,N$1,0)","v":26733.066171439743},{"$f":"VLOOKUP($A103,cost_data!$A$5:$BB$215,O$1,0)","v":310883.50999999902},{"$f":"VLOOKUP($A103,cost_data!$A$5:$BB$215,P$1,0)","v":26733.066171439743},{"$f":"VLOOKUP($A103,cost_data!$A$5:$BB$215,Q$1,0)","v":288470.53999999899},{"$f":"VLOOKUP($A103,cost_data!$A$5:$BB$215,R$1,0)","v":26733.066171439743},{"$f":"VLOOKUP($A103,cost_data!$A$5:$BB$215,S$1,0)","v":78039.869999999893},{"$f":"VLOOKUP($A103,cost_data!$A$5:$BB$215,T$1,0)","v":26733.066171439743},{"$f":"VLOOKUP($A103,cost_data!$A$5:$BB$215,U$1,0)","v":29970.9399999999},{"$f":"VLOOKUP($A103,cost_data!$A$5:$BB$215,V$1,0)","v":26733.066171439743},{"$f":"VLOOKUP($A103,cost_data!$A$5:$BB$215,W$1,0)","v":17406.82},{"$f":"VLOOKUP($A103,cost_data!$A$5:$BB$215,X$1,0)","v":26733.066171439743},{"$f":"VLOOKUP($A103,cost_data!$A$5:$BB$215,Y$1,0)","v":2905.56},{"$f":"VLOOKUP($A103,cost_data!$A$5:$BB$215,Z$1,0)","v":26733.066171439743},{"$f":"VLOOKUP($A103,cost_data!$A$5:$BB$215,AA$1,0)","v":5118029.7700000098},{"$f":"VLOOKUP($A103,cost_data!$A$5:$BB$215,AB$1,0)","v":1537587}]
["05T","NHS South Worcestershire",{"$f":"VLOOKUP($A104,cost_data!$A$5:$BB$215,C$1,0)","v":6347189.2199999997},{"$f":"VLOOKUP($A104,cost_data!$A$5:$BB$215,D$1,0)","v":28313.100268920472},{"$f":"VLOOKUP($A104,cost_data!$A$5:$BB$215,E$1,0)","v":1779218.76999998},{"$f":"VLOOKUP($A104,cost_data!$A$5:$BB$215,F$1,0)","v":28313.100268920472},{"$f":"VLOOKUP($A104,cost_data!$A$5:$BB$215,G$1,0)","v":1606433.83},{"$f":"VLOOKUP($A104,cost_data!$A$5:$BB$215,H$1,0)","v":28313.100268920472},{"$f":"VLOOKUP($A104,cost_data!$A$5:$BB$215,I$1,0)","v":1228641.74},{"$f":"VLOOKUP($A104,cost_data!$A$5:$BB$215,J$1,0)","v":28313.100268920472},{"$f":"VLOOKUP($A104,cost_data!$A$5:$BB$215,K$1,0)","v":540774.18999999994},{"$f":"VLOOKUP($A104,cost_data!$A$5:$BB$215,L$1,0)","v":28313.100268920472},{"$f":"VLOOKUP($A104,cost_data!$A$5:$BB$215,M$1,0)","v":387540.88000000198},{"$f":"VLOOKUP($A104,cost_data!$A$5:$BB$215,N$1,0)","v":28313.100268920472},{"$f":"VLOOKUP($A104,cost_data!$A$5:$BB$215,O$1,0)","v":354243.04999999801},{"$f":"VLOOKUP($A104,cost_data!$A$5:$BB$215,P$1,0)","v":28313.100268920472},{"$f":"VLOOKUP($A104,cost_data!$A$5:$BB$215,Q$1,0)","v":350360.85},{"$f":"VLOOKUP($A104,cost_data!$A$5:$BB$215,R$1,0)","v":28313.100268920472},{"$f":"VLOOKUP($A104,cost_data!$A$5:$BB$215,S$1,0)","v":35939.299999999901},{"$f":"VLOOKUP($A104,cost_data!$A$5:$BB$215,T$1,0)","v":28313.100268920472},{"$f":"VLOOKUP($A104,cost_data!$A$5:$BB$215,U$1,0)","v":34745.300000000003},{"$f":"VLOOKUP($A104,cost_data!$A$5:$BB$215,V$1,0)","v":28313.100268920472},{"$f":"VLOOKUP($A104,cost_data!$A$5:$BB$215,W$1,0)","v":20975.22},{"$f":"VLOOKUP($A104,cost_data!$A$5:$BB$215,X$1,0)","v":28313.100268920472},{"$f":"VLOOKUP($A104,cost_data!$A$5:$BB$215,Y$1,0)","v":8316.09},{"$f":"VLOOKUP($A104,cost_data!$A$5:$BB$215,Z$1,0)","v":28313.100268920472},{"$f":"VLOOKUP($A104,cost_data!$A$5:$BB$215,AA$1,0)","v":6347189.2199999997},{"$f":"VLOOKUP($A104,cost_data!$A$5:$BB$215,AB$1,0)","v":1699583}]
["05V","NHS Stafford and Surrounds",{"$f":"VLOOKUP($A105,cost_data!$A$5:$BB$215,C$1,0)","v":3176396.56},{"$f":"VLOOKUP($A105,cost_data!$A$5:$BB$215,D$1,0)","v":13847.410663099561},{"$f":"VLOOKUP($A105,cost_data!$A$5:$BB$215,E$1,0)","v":874871.020000002},{"$f":"VLOOKUP($A105,cost_data!$A$5:$BB$215,F$1,0)","v":13847.410663099561},{"$f":"VLOOKUP($A105,cost_data!$A$5:$BB$215,G$1,0)","v":797477.47},{"$f":"VLOOKUP($A105,cost_data!$A$5:$BB$215,H$1,0)","v":13847.410663099561},{"$f":"VLOOKUP($A105,cost_data!$A$5:$BB$215,I$1,0)","v":642937.06999999995},{"$f":"VLOOKUP($A105,cost_data!$A$5:$BB$215,J$1,0)","v":13847.410663099561},{"$f":"VLOOKUP($A105,cost_data!$A$5:$BB$215,K$1,0)","v":227819.78},{"$f":"VLOOKUP($A105,cost_data!$A$5:$BB$215,L$1,0)","v":13847.410663099561},{"$f":"VLOOKUP($A105,cost_data!$A$5:$BB$215,M$1,0)","v":200032.85},{"$f":"VLOOKUP($A105,cost_data!$A$5:$BB$215,N$1,0)","v":13847.410663099561},{"$f":"VLOOKUP($A105,cost_data!$A$5:$BB$215,O$1,0)","v":188679.71999999901},{"$f":"VLOOKUP($A105,cost_data!$A$5:$BB$215,P$1,0)","v":13847.410663099561},{"$f":"VLOOKUP($A105,cost_data!$A$5:$BB$215,Q$1,0)","v":169733},{"$f":"VLOOKUP($A105,cost_data!$A$5:$BB$215,R$1,0)","v":13847.410663099561},{"$f":"VLOOKUP($A105,cost_data!$A$5:$BB$215,S$1,0)","v":32949.410000000003},{"$f":"VLOOKUP($A105,cost_data!$A$5:$BB$215,T$1,0)","v":13847.410663099561},{"$f":"VLOOKUP($A105,cost_data!$A$5:$BB$215,U$1,0)","v":16629.25},{"$f":"VLOOKUP($A105,cost_data!$A$5:$BB$215,V$1,0)","v":13847.410663099561},{"$f":"VLOOKUP($A105,cost_data!$A$5:$BB$215,W$1,0)","v":15125.75},{"$f":"VLOOKUP($A105,cost_data!$A$5:$BB$215,X$1,0)","v":13847.410663099561},{"$f":"VLOOKUP($A105,cost_data!$A$5:$BB$215,Y$1,0)","v":10136.94},{"$f":"VLOOKUP($A105,cost_data!$A$5:$BB$215,Z$1,0)","v":13847.410663099561},{"$f":"VLOOKUP($A105,cost_data!$A$5:$BB$215,AA$1,0)","v":3176396.56},{"$f":"VLOOKUP($A105,cost_data!$A$5:$BB$215,AB$1,0)","v":913904}]
["05W","NHS Stoke On Trent",{"$f":"VLOOKUP($A106,cost_data!$A$5:$BB$215,C$1,0)","v":6621695.9800000098},{"$f":"VLOOKUP($A106,cost_data!$A$5:$BB$215,D$1,0)","v":27780.2775024777},{"$f":"VLOOKUP($A106,cost_data!$A$5:$BB$215,E$1,0)","v":1957624.35},{"$f":"VLOOKUP($A106,cost_data!$A$5:$BB$215,F$1,0)","v":27780.2775024777},{"$f":"VLOOKUP($A106,cost_data!$A$5:$BB$215,G$1,0)","v":1825805.71},{"$f":"VLOOKUP($A106,cost_data!$A$5:$BB$215,H$1,0)","v":27780.2775024777},{"$f":"VLOOKUP($A106,cost_data!$A$5:$BB$215,I$1,0)","v":1234524.78},{"$f":"VLOOKUP($A106,cost_data!$A$5:$BB$215,J$1,0)","v":27780.2775024777},{"$f":"VLOOKUP($A106,cost_data!$A$5:$BB$215,K$1,0)","v":241140.889999999},{"$f":"VLOOKUP($A106,cost_data!$A$5:$BB$215,L$1,0)","v":27780.2775024777},{"$f":"VLOOKUP($A106,cost_data!$A$5:$BB$215,M$1,0)","v":466282.50000000501},{"$f":"VLOOKUP($A106,cost_data!$A$5:$BB$215,N$1,0)","v":27780.2775024777},{"$f":"VLOOKUP($A106,cost_data!$A$5:$BB$215,O$1,0)","v":443179.24999999901},{"$f":"VLOOKUP($A106,cost_data!$A$5:$BB$215,P$1,0)","v":27780.2775024777},{"$f":"VLOOKUP($A106,cost_data!$A$5:$BB$215,Q$1,0)","v":332674.8},{"$f":"VLOOKUP($A106,cost_data!$A$5:$BB$215,R$1,0)","v":27780.2775024777},{"$f":"VLOOKUP($A106,cost_data!$A$5:$BB$215,S$1,0)","v":48163.66},{"$f":"VLOOKUP($A106,cost_data!$A$5:$BB$215,T$1,0)","v":27780.2775024777},{"$f":"VLOOKUP($A106,cost_data!$A$5:$BB$215,U$1,0)","v":31220.299999999901},{"$f":"VLOOKUP($A106,cost_data!$A$5:$BB$215,V$1,0)","v":27780.2775024777},{"$f":"VLOOKUP($A106,cost_data!$A$5:$BB$215,W$1,0)","v":19158.91},{"$f":"VLOOKUP($A106,cost_data!$A$5:$BB$215,X$1,0)","v":27780.2775024777},{"$f":"VLOOKUP($A106,cost_data!$A$5:$BB$215,Y$1,0)","v":20124.830000000002},{"$f":"VLOOKUP($A106,cost_data!$A$5:$BB$215,Z$1,0)","v":27780.2775024777},{"$f":"VLOOKUP($A106,cost_data!$A$5:$BB$215,AA$1,0)","v":6621695.9800000098},{"$f":"VLOOKUP($A106,cost_data!$A$5:$BB$215,AB$1,0)","v":1934607}]
["05X","NHS Telford and Wrekin",{"$f":"VLOOKUP($A107,cost_data!$A$5:$BB$215,C$1,0)","v":2980197.16},{"$f":"VLOOKUP($A107,cost_data!$A$5:$BB$215,D$1,0)","v":19170.236255243984},{"$f":"VLOOKUP($A107,cost_data!$A$5:$BB$215,E$1,0)","v":961356.73},{"$f":"VLOOKUP($A107,cost_data!$A$5:$BB$215,F$1,0)","v":19170.236255243984},{"$f":"VLOOKUP($A107,cost_data!$A$5:$BB$215,G$1,0)","v":669039.88},{"$f":"VLOOKUP($A107,cost_data!$A$5:$BB$215,H$1,0)","v":19170.236255243984},{"$f":"VLOOKUP($A107,cost_data!$A$5:$BB$215,I$1,0)","v":541518.82999999996},{"$f":"VLOOKUP($A107,cost_data!$A$5:$BB$215,J$1,0)","v":19170.236255243984},{"$f":"VLOOKUP($A107,cost_data!$A$5:$BB$215,K$1,0)","v":181974.75},{"$f":"VLOOKUP($A107,cost_data!$A$5:$BB$215,L$1,0)","v":19170.236255243984},{"$f":"VLOOKUP($A107,cost_data!$A$5:$BB$215,M$1,0)","v":181924.579999999},{"$f":"VLOOKUP($A107,cost_data!$A$5:$BB$215,N$1,0)","v":19170.236255243984},{"$f":"VLOOKUP($A107,cost_data!$A$5:$BB$215,O$1,0)","v":196560.079999999},{"$f":"VLOOKUP($A107,cost_data!$A$5:$BB$215,P$1,0)","v":19170.236255243984},{"$f":"VLOOKUP($A107,cost_data!$A$5:$BB$215,Q$1,0)","v":202107.61},{"$f":"VLOOKUP($A107,cost_data!$A$5:$BB$215,R$1,0)","v":19170.236255243984},{"$f":"VLOOKUP($A107,cost_data!$A$5:$BB$215,S$1,0)","v":14568.15},{"$f":"VLOOKUP($A107,cost_data!$A$5:$BB$215,T$1,0)","v":19170.236255243984},{"$f":"VLOOKUP($A107,cost_data!$A$5:$BB$215,U$1,0)","v":15840.92},{"$f":"VLOOKUP($A107,cost_data!$A$5:$BB$215,V$1,0)","v":19170.236255243984},{"$f":"VLOOKUP($A107,cost_data!$A$5:$BB$215,W$1,0)","v":14327.76},{"$f":"VLOOKUP($A107,cost_data!$A$5:$BB$215,X$1,0)","v":19170.236255243984},{"$f":"VLOOKUP($A107,cost_data!$A$5:$BB$215,Y$1,0)","v":977.87},{"$f":"VLOOKUP($A107,cost_data!$A$5:$BB$215,Z$1,0)","v":19170.236255243984},{"$f":"VLOOKUP($A107,cost_data!$A$5:$BB$215,AA$1,0)","v":2980197.16},{"$f":"VLOOKUP($A107,cost_data!$A$5:$BB$215,AB$1,0)","v":727288}]
["05Y","NHS Walsall",{"$f":"VLOOKUP($A108,cost_data!$A$5:$BB$215,C$1,0)","v":5764556.4900000002},{"$f":"VLOOKUP($A108,cost_data!$A$5:$BB$215,D$1,0)","v":26614.53226122769},{"$f":"VLOOKUP($A108,cost_data!$A$5:$BB$215,E$1,0)","v":1688697.28},{"$f":"VLOOKUP($A108,cost_data!$A$5:$BB$215,F$1,0)","v":26614.53226122769},{"$f":"VLOOKUP($A108,cost_data!$A$5:$BB$215,G$1,0)","v":1365532.24},{"$f":"VLOOKUP($A108,cost_data!$A$5:$BB$215,H$1,0)","v":26614.53226122769},{"$f":"VLOOKUP($A108,cost_data!$A$5:$BB$215,I$1,0)","v":1117776.8400000001},{"$f":"VLOOKUP($A108,cost_data!$A$5:$BB$215,J$1,0)","v":26614.53226122769},{"$f":"VLOOKUP($A108,cost_data!$A$5:$BB$215,K$1,0)","v":281502.8},{"$f":"VLOOKUP($A108,cost_data!$A$5:$BB$215,L$1,0)","v":26614.53226122769},{"$f":"VLOOKUP($A108,cost_data!$A$5:$BB$215,M$1,0)","v":444050.250000006},{"$f":"VLOOKUP($A108,cost_data!$A$5:$BB$215,N$1,0)","v":26614.53226122769},{"$f":"VLOOKUP($A108,cost_data!$A$5:$BB$215,O$1,0)","v":386399.699999996},{"$f":"VLOOKUP($A108,cost_data!$A$5:$BB$215,P$1,0)","v":26614.53226122769},{"$f":"VLOOKUP($A108,cost_data!$A$5:$BB$215,Q$1,0)","v":372721.24999999697},{"$f":"VLOOKUP($A108,cost_data!$A$5:$BB$215,R$1,0)","v":26614.53226122769},{"$f":"VLOOKUP($A108,cost_data!$A$5:$BB$215,S$1,0)","v":43056.539999999797},{"$f":"VLOOKUP($A108,cost_data!$A$5:$BB$215,T$1,0)","v":26614.53226122769},{"$f":"VLOOKUP($A108,cost_data!$A$5:$BB$215,U$1,0)","v":29457.979999999799},{"$f":"VLOOKUP($A108,cost_data!$A$5:$BB$215,V$1,0)","v":26614.53226122769},{"$f":"VLOOKUP($A108,cost_data!$A$5:$BB$215,W$1,0)","v":21404.14},{"$f":"VLOOKUP($A108,cost_data!$A$5:$BB$215,X$1,0)","v":26614.53226122769},{"$f":"VLOOKUP($A108,cost_data!$A$5:$BB$215,Y$1,0)","v":13957.47},{"$f":"VLOOKUP($A108,cost_data!$A$5:$BB$215,Z$1,0)","v":26614.53226122769},{"$f":"VLOOKUP($A108,cost_data!$A$5:$BB$215,AA$1,0)","v":5764556.4900000002},{"$f":"VLOOKUP($A108,cost_data!$A$5:$BB$215,AB$1,0)","v":1367251}]
["06A","NHS Wolverhampton",{"$f":"VLOOKUP($A109,cost_data!$A$5:$BB$215,C$1,0)","v":5324166.54},{"$f":"VLOOKUP($A109,cost_data!$A$5:$BB$215,D$1,0)","v":26196.394781396273},{"$f":"VLOOKUP($A109,cost_data!$A$5:$BB$215,E$1,0)","v":1513773.3500000101},{"$f":"VLOOKUP($A109,cost_data!$A$5:$BB$215,F$1,0)","v":26196.394781396273},{"$f":"VLOOKUP($A109,cost_data!$A$5:$BB$215,G$1,0)","v":1241184.03},{"$f":"VLOOKUP($A109,cost_data!$A$5:$BB$215,H$1,0)","v":26196.394781396273},{"$f":"VLOOKUP($A109,cost_data!$A$5:$BB$215,I$1,0)","v":1080140.19},{"$f":"VLOOKUP($A109,cost_data!$A$5:$BB$215,J$1,0)","v":26196.394781396273},{"$f":"VLOOKUP($A109,cost_data!$A$5:$BB$215,K$1,0)","v":339894.30999999901},{"$f":"VLOOKUP($A109,cost_data!$A$5:$BB$215,L$1,0)","v":26196.394781396273},{"$f":"VLOOKUP($A109,cost_data!$A$5:$BB$215,M$1,0)","v":348526.24000000302},{"$f":"VLOOKUP($A109,cost_data!$A$5:$BB$215,N$1,0)","v":26196.394781396273},{"$f":"VLOOKUP($A109,cost_data!$A$5:$BB$215,O$1,0)","v":373460.23999999597},{"$f":"VLOOKUP($A109,cost_data!$A$5:$BB$215,P$1,0)","v":26196.394781396273},{"$f":"VLOOKUP($A109,cost_data!$A$5:$BB$215,Q$1,0)","v":340618.83999999799},{"$f":"VLOOKUP($A109,cost_data!$A$5:$BB$215,R$1,0)","v":26196.394781396273},{"$f":"VLOOKUP($A109,cost_data!$A$5:$BB$215,S$1,0)","v":34112.46},{"$f":"VLOOKUP($A109,cost_data!$A$5:$BB$215,T$1,0)","v":26196.394781396273},{"$f":"VLOOKUP($A109,cost_data!$A$5:$BB$215,U$1,0)","v":31182.1799999998},{"$f":"VLOOKUP($A109,cost_data!$A$5:$BB$215,V$1,0)","v":26196.394781396273},{"$f":"VLOOKUP($A109,cost_data!$A$5:$BB$215,W$1,0)","v":18644.400000000001},{"$f":"VLOOKUP($A109,cost_data!$A$5:$BB$215,X$1,0)","v":26196.394781396273},{"$f":"VLOOKUP($A109,cost_data!$A$5:$BB$215,Y$1,0)","v":2630.3},{"$f":"VLOOKUP($A109,cost_data!$A$5:$BB$215,Z$1,0)","v":26196.394781396273},{"$f":"VLOOKUP($A109,cost_data!$A$5:$BB$215,AA$1,0)","v":5324166.54},{"$f":"VLOOKUP($A109,cost_data!$A$5:$BB$215,AB$1,0)","v":1552314}]
["06D","NHS Wyre Forest",{"$f":"VLOOKUP($A110,cost_data!$A$5:$BB$215,C$1,0)","v":2334945.06},{"$f":"VLOOKUP($A110,cost_data!$A$5:$BB$215,D$1,0)","v":10266.082671776623},{"$f":"VLOOKUP($A110,cost_data!$A$5:$BB$215,E$1,0)","v":591979.58000000403},{"$f":"VLOOKUP($A110,cost_data!$A$5:$BB$215,F$1,0)","v":10266.082671776623},{"$f":"VLOOKUP($A110,cost_data!$A$5:$BB$215,G$1,0)","v":573816.05000000005},{"$f":"VLOOKUP($A110,cost_data!$A$5:$BB$215,H$1,0)","v":10266.082671776623},{"$f":"VLOOKUP($A110,cost_data!$A$5:$BB$215,I$1,0)","v":489638.79},{"$f":"VLOOKUP($A110,cost_data!$A$5:$BB$215,J$1,0)","v":10266.082671776623},{"$f":"VLOOKUP($A110,cost_data!$A$5:$BB$215,K$1,0)","v":210921.16},{"$f":"VLOOKUP($A110,cost_data!$A$5:$BB$215,L$1,0)","v":10266.082671776623},{"$f":"VLOOKUP($A110,cost_data!$A$5:$BB$215,M$1,0)","v":149282.1},{"$f":"VLOOKUP($A110,cost_data!$A$5:$BB$215,N$1,0)","v":10266.082671776623},{"$f":"VLOOKUP($A110,cost_data!$A$5:$BB$215,O$1,0)","v":155163.29},{"$f":"VLOOKUP($A110,cost_data!$A$5:$BB$215,P$1,0)","v":10266.082671776623},{"$f":"VLOOKUP($A110,cost_data!$A$5:$BB$215,Q$1,0)","v":127958.23},{"$f":"VLOOKUP($A110,cost_data!$A$5:$BB$215,R$1,0)","v":10266.082671776623},{"$f":"VLOOKUP($A110,cost_data!$A$5:$BB$215,S$1,0)","v":10943.07},{"$f":"VLOOKUP($A110,cost_data!$A$5:$BB$215,T$1,0)","v":10266.082671776623},{"$f":"VLOOKUP($A110,cost_data!$A$5:$BB$215,U$1,0)","v":14286.21},{"$f":"VLOOKUP($A110,cost_data!$A$5:$BB$215,V$1,0)","v":10266.082671776623},{"$f":"VLOOKUP($A110,cost_data!$A$5:$BB$215,W$1,0)","v":6869.5},{"$f":"VLOOKUP($A110,cost_data!$A$5:$BB$215,X$1,0)","v":10266.082671776623},{"$f":"VLOOKUP($A110,cost_data!$A$5:$BB$215,Y$1,0)","v":4087.08},{"$f":"VLOOKUP($A110,cost_data!$A$5:$BB$215,Z$1,0)","v":10266.082671776623},{"$f":"VLOOKUP($A110,cost_data!$A$5:$BB$215,AA$1,0)","v":2334945.06},{"$f":"VLOOKUP($A110,cost_data!$A$5:$BB$215,AB$1,0)","v":561686}]
["06F","NHS Bedfordshire",{"$f":"VLOOKUP($A111,cost_data!$A$5:$BB$215,C$1,0)","v":6747562.0199999996},{"$f":"VLOOKUP($A111,cost_data!$A$5:$BB$215,D$1,0)","v":49645.07105292604},{"$f":"VLOOKUP($A111,cost_data!$A$5:$BB$215,E$1,0)","v":1824424.1299999901},{"$f":"VLOOKUP($A111,cost_data!$A$5:$BB$215,F$1,0)","v":49645.07105292604},{"$f":"VLOOKUP($A111,cost_data!$A$5:$BB$215,G$1,0)","v":1500715.51},{"$f":"VLOOKUP($A111,cost_data!$A$5:$BB$215,H$1,0)","v":49645.07105292604},{"$f":"VLOOKUP($A111,cost_data!$A$5:$BB$215,I$1,0)","v":1223804.74},{"$f":"VLOOKUP($A111,cost_data!$A$5:$BB$215,J$1,0)","v":49645.07105292604},{"$f":"VLOOKUP($A111,cost_data!$A$5:$BB$215,K$1,0)","v":592506.42000000202},{"$f":"VLOOKUP($A111,cost_data!$A$5:$BB$215,L$1,0)","v":49645.07105292604},{"$f":"VLOOKUP($A111,cost_data!$A$5:$BB$215,M$1,0)","v":607616.68000000704},{"$f":"VLOOKUP($A111,cost_data!$A$5:$BB$215,N$1,0)","v":49645.07105292604},{"$f":"VLOOKUP($A111,cost_data!$A$5:$BB$215,O$1,0)","v":394589.229999998},{"$f":"VLOOKUP($A111,cost_data!$A$5:$BB$215,P$1,0)","v":49645.07105292604},{"$f":"VLOOKUP($A111,cost_data!$A$5:$BB$215,Q$1,0)","v":457780.00999999302},{"$f":"VLOOKUP($A111,cost_data!$A$5:$BB$215,R$1,0)","v":49645.07105292604},{"$f":"VLOOKUP($A111,cost_data!$A$5:$BB$215,S$1,0)","v":59199.149999999703},{"$f":"VLOOKUP($A111,cost_data!$A$5:$BB$215,T$1,0)","v":49645.07105292604},{"$f":"VLOOKUP($A111,cost_data!$A$5:$BB$215,U$1,0)","v":37780.519999999698},{"$f":"VLOOKUP($A111,cost_data!$A$5:$BB$215,V$1,0)","v":49645.07105292604},{"$f":"VLOOKUP($A111,cost_data!$A$5:$BB$215,W$1,0)","v":31160.29},{"$f":"VLOOKUP($A111,cost_data!$A$5:$BB$215,X$1,0)","v":49645.07105292604},{"$f":"VLOOKUP($A111,cost_data!$A$5:$BB$215,Y$1,0)","v":17985.34},{"$f":"VLOOKUP($A111,cost_data!$A$5:$BB$215,Z$1,0)","v":49645.07105292604},{"$f":"VLOOKUP($A111,cost_data!$A$5:$BB$215,AA$1,0)","v":6747562.0199999996},{"$f":"VLOOKUP($A111,cost_data!$A$5:$BB$215,AB$1,0)","v":2211145}]
["06H","NHS Cambridgeshire and Peterborough",{"$f":"VLOOKUP($A112,cost_data!$A$5:$BB$215,C$1,0)","v":12621178.2600001},{"$f":"VLOOKUP($A112,cost_data!$A$5:$BB$215,D$1,0)","v":98248.541947061458},{"$f":"VLOOKUP($A112,cost_data!$A$5:$BB$215,E$1,0)","v":2890123.4699999602},{"$f":"VLOOKUP($A112,cost_data!$A$5:$BB$215,F$1,0)","v":98248.541947061458},{"$f":"VLOOKUP($A112,cost_data!$A$5:$BB$215,G$1,0)","v":3097534.95},{"$f":"VLOOKUP($A112,cost_data!$A$5:$BB$215,H$1,0)","v":98248.541947061458},{"$f":"VLOOKUP($A112,cost_data!$A$5:$BB$215,I$1,0)","v":2517874.7999999998},{"$f":"VLOOKUP($A112,cost_data!$A$5:$BB$215,J$1,0)","v":98248.541947061458},{"$f":"VLOOKUP($A112,cost_data!$A$5:$BB$215,K$1,0)","v":1370451.89},{"$f":"VLOOKUP($A112,cost_data!$A$5:$BB$215,L$1,0)","v":98248.541947061458},{"$f":"VLOOKUP($A112,cost_data!$A$5:$BB$215,M$1,0)","v":971351.22000000603},{"$f":"VLOOKUP($A112,cost_data!$A$5:$BB$215,N$1,0)","v":98248.541947061458},{"$f":"VLOOKUP($A112,cost_data!$A$5:$BB$215,O$1,0)","v":635663.17000000901},{"$f":"VLOOKUP($A112,cost_data!$A$5:$BB$215,P$1,0)","v":98248.541947061458},{"$f":"VLOOKUP($A112,cost_data!$A$5:$BB$215,Q$1,0)","v":719231.79999999201},{"$f":"VLOOKUP($A112,cost_data!$A$5:$BB$215,R$1,0)","v":98248.541947061458},{"$f":"VLOOKUP($A112,cost_data!$A$5:$BB$215,S$1,0)","v":94136.409999999494},{"$f":"VLOOKUP($A112,cost_data!$A$5:$BB$215,T$1,0)","v":98248.541947061458},{"$f":"VLOOKUP($A112,cost_data!$A$5:$BB$215,U$1,0)","v":79563.020000000106},{"$f":"VLOOKUP($A112,cost_data!$A$5:$BB$215,V$1,0)","v":98248.541947061458},{"$f":"VLOOKUP($A112,cost_data!$A$5:$BB$215,W$1,0)","v":68240.490000000296},{"$f":"VLOOKUP($A112,cost_data!$A$5:$BB$215,X$1,0)","v":98248.541947061458},{"$f":"VLOOKUP($A112,cost_data!$A$5:$BB$215,Y$1,0)","v":169087.04},{"$f":"VLOOKUP($A112,cost_data!$A$5:$BB$215,Z$1,0)","v":98248.541947061458},{"$f":"VLOOKUP($A112,cost_data!$A$5:$BB$215,AA$1,0)","v":12621178.2600001},{"$f":"VLOOKUP($A112,cost_data!$A$5:$BB$215,AB$1,0)","v":4583035}]
["06K","NHS East and North Hertfordshire",{"$f":"VLOOKUP($A113,cost_data!$A$5:$BB$215,C$1,0)","v":9769088.5800000299},{"$f":"VLOOKUP($A113,cost_data!$A$5:$BB$215,D$1,0)","v":65483.716146726096},{"$f":"VLOOKUP($A113,cost_data!$A$5:$BB$215,E$1,0)","v":2815999.50999997},{"$f":"VLOOKUP($A113,cost_data!$A$5:$BB$215,F$1,0)","v":65483.716146726096},{"$f":"VLOOKUP($A113,cost_data!$A$5:$BB$215,G$1,0)","v":2527808.48},{"$f":"VLOOKUP($A113,cost_data!$A$5:$BB$215,H$1,0)","v":65483.716146726096},{"$f":"VLOOKUP($A113,cost_data!$A$5:$BB$215,I$1,0)","v":1787489.1},{"$f":"VLOOKUP($A113,cost_data!$A$5:$BB$215,J$1,0)","v":65483.716146726096},{"$f":"VLOOKUP($A113,cost_data!$A$5:$BB$215,K$1,0)","v":660796.23000000301},{"$f":"VLOOKUP($A113,cost_data!$A$5:$BB$215,L$1,0)","v":65483.716146726096},{"$f":"VLOOKUP($A113,cost_data!$A$5:$BB$215,M$1,0)","v":668034.62000000803},{"$f":"VLOOKUP($A113,cost_data!$A$5:$BB$215,N$1,0)","v":65483.716146726096},{"$f":"VLOOKUP($A113,cost_data!$A$5:$BB$215,O$1,0)","v":571700.22000000195},{"$f":"VLOOKUP($A113,cost_data!$A$5:$BB$215,P$1,0)","v":65483.716146726096},{"$f":"VLOOKUP($A113,cost_data!$A$5:$BB$215,Q$1,0)","v":538636.79999999295},{"$f":"VLOOKUP($A113,cost_data!$A$5:$BB$215,R$1,0)","v":65483.716146726096},{"$f":"VLOOKUP($A113,cost_data!$A$5:$BB$215,S$1,0)","v":85196.629999999597},{"$f":"VLOOKUP($A113,cost_data!$A$5:$BB$215,T$1,0)","v":65483.716146726096},{"$f":"VLOOKUP($A113,cost_data!$A$5:$BB$215,U$1,0)","v":48314.499999999898},{"$f":"VLOOKUP($A113,cost_data!$A$5:$BB$215,V$1,0)","v":65483.716146726096},{"$f":"VLOOKUP($A113,cost_data!$A$5:$BB$215,W$1,0)","v":36033.89},{"$f":"VLOOKUP($A113,cost_data!$A$5:$BB$215,X$1,0)","v":65483.716146726096},{"$f":"VLOOKUP($A113,cost_data!$A$5:$BB$215,Y$1,0)","v":29078.6},{"$f":"VLOOKUP($A113,cost_data!$A$5:$BB$215,Z$1,0)","v":65483.716146726096},{"$f":"VLOOKUP($A113,cost_data!$A$5:$BB$215,AA$1,0)","v":9769088.5800000299},{"$f":"VLOOKUP($A113,cost_data!$A$5:$BB$215,AB$1,0)","v":3371775}]
["06L","NHS Ipswich and East Suffolk",{"$f":"VLOOKUP($A114,cost_data!$A$5:$BB$215,C$1,0)","v":8017384.0600000201},{"$f":"VLOOKUP($A114,cost_data!$A$5:$BB$215,D$1,0)","v":37412.041031540604},{"$f":"VLOOKUP($A114,cost_data!$A$5:$BB$215,E$1,0)","v":2181019.8899999899},{"$f":"VLOOKUP($A114,cost_data!$A$5:$BB$215,F$1,0)","v":37412.041031540604},{"$f":"VLOOKUP($A114,cost_data!$A$5:$BB$215,G$1,0)","v":1806973.61},{"$f":"VLOOKUP($A114,cost_data!$A$5:$BB$215,H$1,0)","v":37412.041031540604},{"$f":"VLOOKUP($A114,cost_data!$A$5:$BB$215,I$1,0)","v":1649969.59},{"$f":"VLOOKUP($A114,cost_data!$A$5:$BB$215,J$1,0)","v":37412.041031540604},{"$f":"VLOOKUP($A114,cost_data!$A$5:$BB$215,K$1,0)","v":612966.72000000102},{"$f":"VLOOKUP($A114,cost_data!$A$5:$BB$215,L$1,0)","v":37412.041031540604},{"$f":"VLOOKUP($A114,cost_data!$A$5:$BB$215,M$1,0)","v":573883.42000000202},{"$f":"VLOOKUP($A114,cost_data!$A$5:$BB$215,N$1,0)","v":37412.041031540604},{"$f":"VLOOKUP($A114,cost_data!$A$5:$BB$215,O$1,0)","v":481597.08999999799},{"$f":"VLOOKUP($A114,cost_data!$A$5:$BB$215,P$1,0)","v":37412.041031540604},{"$f":"VLOOKUP($A114,cost_data!$A$5:$BB$215,Q$1,0)","v":495428.51999999699},{"$f":"VLOOKUP($A114,cost_data!$A$5:$BB$215,R$1,0)","v":37412.041031540604},{"$f":"VLOOKUP($A114,cost_data!$A$5:$BB$215,S$1,0)","v":65512.65},{"$f":"VLOOKUP($A114,cost_data!$A$5:$BB$215,T$1,0)","v":37412.041031540604},{"$f":"VLOOKUP($A114,cost_data!$A$5:$BB$215,U$1,0)","v":47526.049999999901},{"$f":"VLOOKUP($A114,cost_data!$A$5:$BB$215,V$1,0)","v":37412.041031540604},{"$f":"VLOOKUP($A114,cost_data!$A$5:$BB$215,W$1,0)","v":35662.879999999997},{"$f":"VLOOKUP($A114,cost_data!$A$5:$BB$215,X$1,0)","v":37412.041031540604},{"$f":"VLOOKUP($A114,cost_data!$A$5:$BB$215,Y$1,0)","v":66843.64},{"$f":"VLOOKUP($A114,cost_data!$A$5:$BB$215,Z$1,0)","v":37412.041031540604},{"$f":"VLOOKUP($A114,cost_data!$A$5:$BB$215,AA$1,0)","v":8017384.0600000201},{"$f":"VLOOKUP($A114,cost_data!$A$5:$BB$215,AB$1,0)","v":2281158}]
["06M","NHS Great Yarmouth and Waveney",{"$f":"VLOOKUP($A115,cost_data!$A$5:$BB$215,C$1,0)","v":4319813.07},{"$f":"VLOOKUP($A115,cost_data!$A$5:$BB$215,D$1,0)","v":20081.890581717453},{"$f":"VLOOKUP($A115,cost_data!$A$5:$BB$215,E$1,0)","v":972187.71000000101},{"$f":"VLOOKUP($A115,cost_data!$A$5:$BB$215,F$1,0)","v":20081.890581717453},{"$f":"VLOOKUP($A115,cost_data!$A$5:$BB$215,G$1,0)","v":1025900.01},{"$f":"VLOOKUP($A115,cost_data!$A$5:$BB$215,H$1,0)","v":20081.890581717453},{"$f":"VLOOKUP($A115,cost_data!$A$5:$BB$215,I$1,0)","v":1007446.62},{"$f":"VLOOKUP($A115,cost_data!$A$5:$BB$215,J$1,0)","v":20081.890581717453},{"$f":"VLOOKUP($A115,cost_data!$A$5:$BB$215,K$1,0)","v":263846.17},{"$f":"VLOOKUP($A115,cost_data!$A$5:$BB$215,L$1,0)","v":20081.890581717453},{"$f":"VLOOKUP($A115,cost_data!$A$5:$BB$215,M$1,0)","v":370376.91999999899},{"$f":"VLOOKUP($A115,cost_data!$A$5:$BB$215,N$1,0)","v":20081.890581717453},{"$f":"VLOOKUP($A115,cost_data!$A$5:$BB$215,O$1,0)","v":280923.94999999902},{"$f":"VLOOKUP($A115,cost_data!$A$5:$BB$215,P$1,0)","v":20081.890581717453},{"$f":"VLOOKUP($A115,cost_data!$A$5:$BB$215,Q$1,0)","v":300584.2},{"$f":"VLOOKUP($A115,cost_data!$A$5:$BB$215,R$1,0)","v":20081.890581717453},{"$f":"VLOOKUP($A115,cost_data!$A$5:$BB$215,S$1,0)","v":40700.789999999899},{"$f":"VLOOKUP($A115,cost_data!$A$5:$BB$215,T$1,0)","v":20081.890581717453},{"$f":"VLOOKUP($A115,cost_data!$A$5:$BB$215,U$1,0)","v":28538.619999999901},{"$f":"VLOOKUP($A115,cost_data!$A$5:$BB$215,V$1,0)","v":20081.890581717453},{"$f":"VLOOKUP($A115,cost_data!$A$5:$BB$215,W$1,0)","v":20655.36},{"$f":"VLOOKUP($A115,cost_data!$A$5:$BB$215,X$1,0)","v":20081.890581717453},{"$f":"VLOOKUP($A115,cost_data!$A$5:$BB$215,Y$1,0)","v":8633.52},{"$f":"VLOOKUP($A115,cost_data!$A$5:$BB$215,Z$1,0)","v":20081.890581717453},{"$f":"VLOOKUP($A115,cost_data!$A$5:$BB$215,AA$1,0)","v":4319813.07},{"$f":"VLOOKUP($A115,cost_data!$A$5:$BB$215,AB$1,0)","v":1310029}]
["06N","NHS Herts Valleys",{"$f":"VLOOKUP($A116,cost_data!$A$5:$BB$215,C$1,0)","v":8982060.0700000096},{"$f":"VLOOKUP($A116,cost_data!$A$5:$BB$215,D$1,0)","v":69280.159181353039},{"$f":"VLOOKUP($A116,cost_data!$A$5:$BB$215,E$1,0)","v":2482477.5700000101},{"$f":"VLOOKUP($A116,cost_data!$A$5:$BB$215,F$1,0)","v":69280.159181353039},{"$f":"VLOOKUP($A116,cost_data!$A$5:$BB$215,G$1,0)","v":2217994.06},{"$f":"VLOOKUP($A116,cost_data!$A$5:$BB$215,H$1,0)","v":69280.159181353039},{"$f":"VLOOKUP($A116,cost_data!$A$5:$BB$215,I$1,0)","v":1573820.85},{"$f":"VLOOKUP($A116,cost_data!$A$5:$BB$215,J$1,0)","v":69280.159181353039},{"$f":"VLOOKUP($A116,cost_data!$A$5:$BB$215,K$1,0)","v":667689.58000000205},{"$f":"VLOOKUP($A116,cost_data!$A$5:$BB$215,L$1,0)","v":69280.159181353039},{"$f":"VLOOKUP($A116,cost_data!$A$5:$BB$215,M$1,0)","v":677130.85000000498},{"$f":"VLOOKUP($A116,cost_data!$A$5:$BB$215,N$1,0)","v":69280.159181353039},{"$f":"VLOOKUP($A116,cost_data!$A$5:$BB$215,O$1,0)","v":606193.600000003},{"$f":"VLOOKUP($A116,cost_data!$A$5:$BB$215,P$1,0)","v":69280.159181353039},{"$f":"VLOOKUP($A116,cost_data!$A$5:$BB$215,Q$1,0)","v":559823.23999999405},{"$f":"VLOOKUP($A116,cost_data!$A$5:$BB$215,R$1,0)","v":69280.159181353039},{"$f":"VLOOKUP($A116,cost_data!$A$5:$BB$215,S$1,0)","v":96844.56},{"$f":"VLOOKUP($A116,cost_data!$A$5:$BB$215,T$1,0)","v":69280.159181353039},{"$f":"VLOOKUP($A116,cost_data!$A$5:$BB$215,U$1,0)","v":46446.559999999801},{"$f":"VLOOKUP($A116,cost_data!$A$5:$BB$215,V$1,0)","v":69280.159181353039},{"$f":"VLOOKUP($A116,cost_data!$A$5:$BB$215,W$1,0)","v":38305.940000000097},{"$f":"VLOOKUP($A116,cost_data!$A$5:$BB$215,X$1,0)","v":69280.159181353039},{"$f":"VLOOKUP($A116,cost_data!$A$5:$BB$215,Y$1,0)","v":15333.26},{"$f":"VLOOKUP($A116,cost_data!$A$5:$BB$215,Z$1,0)","v":69280.159181353039},{"$f":"VLOOKUP($A116,cost_data!$A$5:$BB$215,AA$1,0)","v":8982060.0700000096},{"$f":"VLOOKUP($A116,cost_data!$A$5:$BB$215,AB$1,0)","v":2300238}]
["06P","NHS Luton",{"$f":"VLOOKUP($A117,cost_data!$A$5:$BB$215,C$1,0)","v":3386813.32},{"$f":"VLOOKUP($A117,cost_data!$A$5:$BB$215,D$1,0)","v":29521.975779017554},{"$f":"VLOOKUP($A117,cost_data!$A$5:$BB$215,E$1,0)","v":936286.86000001105},{"$f":"VLOOKUP($A117,cost_data!$A$5:$BB$215,F$1,0)","v":29521.975779017554},{"$f":"VLOOKUP($A117,cost_data!$A$5:$BB$215,G$1,0)","v":952750.48999999894},{"$f":"VLOOKUP($A117,cost_data!$A$5:$BB$215,H$1,0)","v":29521.975779017554},{"$f":"VLOOKUP($A117,cost_data!$A$5:$BB$215,I$1,0)","v":628388.88},{"$f":"VLOOKUP($A117,cost_data!$A$5:$BB$215,J$1,0)","v":29521.975779017554},{"$f":"VLOOKUP($A117,cost_data!$A$5:$BB$215,K$1,0)","v":204914.23},{"$f":"VLOOKUP($A117,cost_data!$A$5:$BB$215,L$1,0)","v":29521.975779017554},{"$f":"VLOOKUP($A117,cost_data!$A$5:$BB$215,M$1,0)","v":188551.79},{"$f":"VLOOKUP($A117,cost_data!$A$5:$BB$215,N$1,0)","v":29521.975779017554},{"$f":"VLOOKUP($A117,cost_data!$A$5:$BB$215,O$1,0)","v":206410.49999999901},{"$f":"VLOOKUP($A117,cost_data!$A$5:$BB$215,P$1,0)","v":29521.975779017554},{"$f":"VLOOKUP($A117,cost_data!$A$5:$BB$215,Q$1,0)","v":212866.889999999},{"$f":"VLOOKUP($A117,cost_data!$A$5:$BB$215,R$1,0)","v":29521.975779017554},{"$f":"VLOOKUP($A117,cost_data!$A$5:$BB$215,S$1,0)","v":21383.86},{"$f":"VLOOKUP($A117,cost_data!$A$5:$BB$215,T$1,0)","v":29521.975779017554},{"$f":"VLOOKUP($A117,cost_data!$A$5:$BB$215,U$1,0)","v":13622.55},{"$f":"VLOOKUP($A117,cost_data!$A$5:$BB$215,V$1,0)","v":29521.975779017554},{"$f":"VLOOKUP($A117,cost_data!$A$5:$BB$215,W$1,0)","v":18879},{"$f":"VLOOKUP($A117,cost_data!$A$5:$BB$215,X$1,0)","v":29521.975779017554},{"$f":"VLOOKUP($A117,cost_data!$A$5:$BB$215,Y$1,0)","v":2758.27},{"$f":"VLOOKUP($A117,cost_data!$A$5:$BB$215,Z$1,0)","v":29521.975779017554},{"$f":"VLOOKUP($A117,cost_data!$A$5:$BB$215,AA$1,0)","v":3386813.32},{"$f":"VLOOKUP($A117,cost_data!$A$5:$BB$215,AB$1,0)","v":847588}]
["06Q","NHS Mid Essex",{"$f":"VLOOKUP($A118,cost_data!$A$5:$BB$215,C$1,0)","v":6782674.7199999997},{"$f":"VLOOKUP($A118,cost_data!$A$5:$BB$215,D$1,0)","v":40316.011829319817},{"$f":"VLOOKUP($A118,cost_data!$A$5:$BB$215,E$1,0)","v":2043255.8},{"$f":"VLOOKUP($A118,cost_data!$A$5:$BB$215,F$1,0)","v":40316.011829319817},{"$f":"VLOOKUP($A118,cost_data!$A$5:$BB$215,G$1,0)","v":1702765.52},{"$f":"VLOOKUP($A118,cost_data!$A$5:$BB$215,H$1,0)","v":40316.011829319817},{"$f":"VLOOKUP($A118,cost_data!$A$5:$BB$215,I$1,0)","v":1193672.1200000001},{"$f":"VLOOKUP($A118,cost_data!$A$5:$BB$215,J$1,0)","v":40316.011829319817},{"$f":"VLOOKUP($A118,cost_data!$A$5:$BB$215,K$1,0)","v":488832.299999999},{"$f":"VLOOKUP($A118,cost_data!$A$5:$BB$215,L$1,0)","v":40316.011829319817},{"$f":"VLOOKUP($A118,cost_data!$A$5:$BB$215,M$1,0)","v":471124.77},{"$f":"VLOOKUP($A118,cost_data!$A$5:$BB$215,N$1,0)","v":40316.011829319817},{"$f":"VLOOKUP($A118,cost_data!$A$5:$BB$215,O$1,0)","v":350268.15},{"$f":"VLOOKUP($A118,cost_data!$A$5:$BB$215,P$1,0)","v":40316.011829319817},{"$f":"VLOOKUP($A118,cost_data!$A$5:$BB$215,Q$1,0)","v":395301.77999999601},{"$f":"VLOOKUP($A118,cost_data!$A$5:$BB$215,R$1,0)","v":40316.011829319817},{"$f":"VLOOKUP($A118,cost_data!$A$5:$BB$215,S$1,0)","v":70887.779999999795},{"$f":"VLOOKUP($A118,cost_data!$A$5:$BB$215,T$1,0)","v":40316.011829319817},{"$f":"VLOOKUP($A118,cost_data!$A$5:$BB$215,U$1,0)","v":38703.3299999999},{"$f":"VLOOKUP($A118,cost_data!$A$5:$BB$215,V$1,0)","v":40316.011829319817},{"$f":"VLOOKUP($A118,cost_data!$A$5:$BB$215,W$1,0)","v":20980.95},{"$f":"VLOOKUP($A118,cost_data!$A$5:$BB$215,X$1,0)","v":40316.011829319817},{"$f":"VLOOKUP($A118,cost_data!$A$5:$BB$215,Y$1,0)","v":6882.22},{"$f":"VLOOKUP($A118,cost_data!$A$5:$BB$215,Z$1,0)","v":40316.011829319817},{"$f":"VLOOKUP($A118,cost_data!$A$5:$BB$215,AA$1,0)","v":6782674.7199999997},{"$f":"VLOOKUP($A118,cost_data!$A$5:$BB$215,AB$1,0)","v":2276585}]
["06T","NHS North East Essex",{"$f":"VLOOKUP($A119,cost_data!$A$5:$BB$215,C$1,0)","v":7086521.1400000099},{"$f":"VLOOKUP($A119,cost_data!$A$5:$BB$215,D$1,0)","v":30556.915432041958},{"$f":"VLOOKUP($A119,cost_data!$A$5:$BB$215,E$1,0)","v":1906310.92},{"$f":"VLOOKUP($A119,cost_data!$A$5:$BB$215,F$1,0)","v":30556.915432041958},{"$f":"VLOOKUP($A119,cost_data!$A$5:$BB$215,G$1,0)","v":1913415.58},{"$f":"VLOOKUP($A119,cost_data!$A$5:$BB$215,H$1,0)","v":30556.915432041958},{"$f":"VLOOKUP($A119,cost_data!$A$5:$BB$215,I$1,0)","v":1401155.37},{"$f":"VLOOKUP($A119,cost_data!$A$5:$BB$215,J$1,0)","v":30556.915432041958},{"$f":"VLOOKUP($A119,cost_data!$A$5:$BB$215,K$1,0)","v":389757.17000000097},{"$f":"VLOOKUP($A119,cost_data!$A$5:$BB$215,L$1,0)","v":30556.915432041958},{"$f":"VLOOKUP($A119,cost_data!$A$5:$BB$215,M$1,0)","v":491225.830000002},{"$f":"VLOOKUP($A119,cost_data!$A$5:$BB$215,N$1,0)","v":30556.915432041958},{"$f":"VLOOKUP($A119,cost_data!$A$5:$BB$215,O$1,0)","v":417290.510000001},{"$f":"VLOOKUP($A119,cost_data!$A$5:$BB$215,P$1,0)","v":30556.915432041958},{"$f":"VLOOKUP($A119,cost_data!$A$5:$BB$215,Q$1,0)","v":429731.98999999597},{"$f":"VLOOKUP($A119,cost_data!$A$5:$BB$215,R$1,0)","v":30556.915432041958},{"$f":"VLOOKUP($A119,cost_data!$A$5:$BB$215,S$1,0)","v":63766.64},{"$f":"VLOOKUP($A119,cost_data!$A$5:$BB$215,T$1,0)","v":30556.915432041958},{"$f":"VLOOKUP($A119,cost_data!$A$5:$BB$215,U$1,0)","v":39071.8399999998},{"$f":"VLOOKUP($A119,cost_data!$A$5:$BB$215,V$1,0)","v":30556.915432041958},{"$f":"VLOOKUP($A119,cost_data!$A$5:$BB$215,W$1,0)","v":23390.71},{"$f":"VLOOKUP($A119,cost_data!$A$5:$BB$215,X$1,0)","v":30556.915432041958},{"$f":"VLOOKUP($A119,cost_data!$A$5:$BB$215,Y$1,0)","v":11318.58},{"$f":"VLOOKUP($A119,cost_data!$A$5:$BB$215,Z$1,0)","v":30556.915432041958},{"$f":"VLOOKUP($A119,cost_data!$A$5:$BB$215,AA$1,0)","v":7086521.1400000099},{"$f":"VLOOKUP($A119,cost_data!$A$5:$BB$215,AB$1,0)","v":2391401}]
["06V","NHS North Norfolk",{"$f":"VLOOKUP($A120,cost_data!$A$5:$BB$215,C$1,0)","v":4380003.4000000097},{"$f":"VLOOKUP($A120,cost_data!$A$5:$BB$215,D$1,0)","v":12992.897946580206},{"$f":"VLOOKUP($A120,cost_data!$A$5:$BB$215,E$1,0)","v":1153195.21},{"$f":"VLOOKUP($A120,cost_data!$A$5:$BB$215,F$1,0)","v":12992.897946580206},{"$f":"VLOOKUP($A120,cost_data!$A$5:$BB$215,G$1,0)","v":1301695.52},{"$f":"VLOOKUP($A120,cost_data!$A$5:$BB$215,H$1,0)","v":12992.897946580206},{"$f":"VLOOKUP($A120,cost_data!$A$5:$BB$215,I$1,0)","v":786019.33999999904},{"$f":"VLOOKUP($A120,cost_data!$A$5:$BB$215,J$1,0)","v":12992.897946580206},{"$f":"VLOOKUP($A120,cost_data!$A$5:$BB$215,K$1,0)","v":260659.41},{"$f":"VLOOKUP($A120,cost_data!$A$5:$BB$215,L$1,0)","v":12992.897946580206},{"$f":"VLOOKUP($A120,cost_data!$A$5:$BB$215,M$1,0)","v":273301.52},{"$f":"VLOOKUP($A120,cost_data!$A$5:$BB$215,N$1,0)","v":12992.897946580206},{"$f":"VLOOKUP($A120,cost_data!$A$5:$BB$215,O$1,0)","v":278656.11999999901},{"$f":"VLOOKUP($A120,cost_data!$A$5:$BB$215,P$1,0)","v":12992.897946580206},{"$f":"VLOOKUP($A120,cost_data!$A$5:$BB$215,Q$1,0)","v":234309.05999999901},{"$f":"VLOOKUP($A120,cost_data!$A$5:$BB$215,R$1,0)","v":12992.897946580206},{"$f":"VLOOKUP($A120,cost_data!$A$5:$BB$215,S$1,0)","v":40911.300000000097},{"$f":"VLOOKUP($A120,cost_data!$A$5:$BB$215,T$1,0)","v":12992.897946580206},{"$f":"VLOOKUP($A120,cost_data!$A$5:$BB$215,U$1,0)","v":26102.42},{"$f":"VLOOKUP($A120,cost_data!$A$5:$BB$215,V$1,0)","v":12992.897946580206},{"$f":"VLOOKUP($A120,cost_data!$A$5:$BB$215,W$1,0)","v":17217.599999999999},{"$f":"VLOOKUP($A120,cost_data!$A$5:$BB$215,X$1,0)","v":12992.897946580206},{"$f":"VLOOKUP($A120,cost_data!$A$5:$BB$215,Y$1,0)","v":7935.9},{"$f":"VLOOKUP($A120,cost_data!$A$5:$BB$215,Z$1,0)","v":12992.897946580206},{"$f":"VLOOKUP($A120,cost_data!$A$5:$BB$215,AA$1,0)","v":4380003.4000000097},{"$f":"VLOOKUP($A120,cost_data!$A$5:$BB$215,AB$1,0)","v":1436840}]
["06W","NHS Norwich",{"$f":"VLOOKUP($A121,cost_data!$A$5:$BB$215,C$1,0)","v":3246388.72},{"$f":"VLOOKUP($A121,cost_data!$A$5:$BB$215,D$1,0)","v":22062.545835515975},{"$f":"VLOOKUP($A121,cost_data!$A$5:$BB$215,E$1,0)","v":722504.07000000402},{"$f":"VLOOKUP($A121,cost_data!$A$5:$BB$215,F$1,0)","v":22062.545835515975},{"$f":"VLOOKUP($A121,cost_data!$A$5:$BB$215,G$1,0)","v":908220.85999999905},{"$f":"VLOOKUP($A121,cost_data!$A$5:$BB$215,H$1,0)","v":22062.545835515975},{"$f":"VLOOKUP($A121,cost_data!$A$5:$BB$215,I$1,0)","v":612755.07999999996},{"$f":"VLOOKUP($A121,cost_data!$A$5:$BB$215,J$1,0)","v":22062.545835515975},{"$f":"VLOOKUP($A121,cost_data!$A$5:$BB$215,K$1,0)","v":278671.48},{"$f":"VLOOKUP($A121,cost_data!$A$5:$BB$215,L$1,0)","v":22062.545835515975},{"$f":"VLOOKUP($A121,cost_data!$A$5:$BB$215,M$1,0)","v":239630.06000000099},{"$f":"VLOOKUP($A121,cost_data!$A$5:$BB$215,N$1,0)","v":22062.545835515975},{"$f":"VLOOKUP($A121,cost_data!$A$5:$BB$215,O$1,0)","v":223202.54},{"$f":"VLOOKUP($A121,cost_data!$A$5:$BB$215,P$1,0)","v":22062.545835515975},{"$f":"VLOOKUP($A121,cost_data!$A$5:$BB$215,Q$1,0)","v":190345.63},{"$f":"VLOOKUP($A121,cost_data!$A$5:$BB$215,R$1,0)","v":22062.545835515975},{"$f":"VLOOKUP($A121,cost_data!$A$5:$BB$215,S$1,0)","v":25222.55},{"$f":"VLOOKUP($A121,cost_data!$A$5:$BB$215,T$1,0)","v":22062.545835515975},{"$f":"VLOOKUP($A121,cost_data!$A$5:$BB$215,U$1,0)","v":19874.36},{"$f":"VLOOKUP($A121,cost_data!$A$5:$BB$215,V$1,0)","v":22062.545835515975},{"$f":"VLOOKUP($A121,cost_data!$A$5:$BB$215,W$1,0)","v":16433.86},{"$f":"VLOOKUP($A121,cost_data!$A$5:$BB$215,X$1,0)","v":22062.545835515975},{"$f":"VLOOKUP($A121,cost_data!$A$5:$BB$215,Y$1,0)","v":9528.23},{"$f":"VLOOKUP($A121,cost_data!$A$5:$BB$215,Z$1,0)","v":22062.545835515975},{"$f":"VLOOKUP($A121,cost_data!$A$5:$BB$215,AA$1,0)","v":3246388.72},{"$f":"VLOOKUP($A121,cost_data!$A$5:$BB$215,AB$1,0)","v":874077}]
["06Y","NHS South Norfolk",{"$f":"VLOOKUP($A122,cost_data!$A$5:$BB$215,C$1,0)","v":4909832.72000001},{"$f":"VLOOKUP($A122,cost_data!$A$5:$BB$215,D$1,0)","v":20647.222222222223},{"$f":"VLOOKUP($A122,cost_data!$A$5:$BB$215,E$1,0)","v":1190722.04},{"$f":"VLOOKUP($A122,cost_data!$A$5:$BB$215,F$1,0)","v":20647.222222222223},{"$f":"VLOOKUP($A122,cost_data!$A$5:$BB$215,G$1,0)","v":1382699.57},{"$f":"VLOOKUP($A122,cost_data!$A$5:$BB$215,H$1,0)","v":20647.222222222223},{"$f":"VLOOKUP($A122,cost_data!$A$5:$BB$215,I$1,0)","v":941187.66999999899},{"$f":"VLOOKUP($A122,cost_data!$A$5:$BB$215,J$1,0)","v":20647.222222222223},{"$f":"VLOOKUP($A122,cost_data!$A$5:$BB$215,K$1,0)","v":398093.56000000099},{"$f":"VLOOKUP($A122,cost_data!$A$5:$BB$215,L$1,0)","v":20647.222222222223},{"$f":"VLOOKUP($A122,cost_data!$A$5:$BB$215,M$1,0)","v":345485.65000000101},{"$f":"VLOOKUP($A122,cost_data!$A$5:$BB$215,N$1,0)","v":20647.222222222223},{"$f":"VLOOKUP($A122,cost_data!$A$5:$BB$215,O$1,0)","v":289980.39},{"$f":"VLOOKUP($A122,cost_data!$A$5:$BB$215,P$1,0)","v":20647.222222222223},{"$f":"VLOOKUP($A122,cost_data!$A$5:$BB$215,Q$1,0)","v":254415.79},{"$f":"VLOOKUP($A122,cost_data!$A$5:$BB$215,R$1,0)","v":20647.222222222223},{"$f":"VLOOKUP($A122,cost_data!$A$5:$BB$215,S$1,0)","v":46882.139999999803},{"$f":"VLOOKUP($A122,cost_data!$A$5:$BB$215,T$1,0)","v":20647.222222222223},{"$f":"VLOOKUP($A122,cost_data!$A$5:$BB$215,U$1,0)","v":26439.82},{"$f":"VLOOKUP($A122,cost_data!$A$5:$BB$215,V$1,0)","v":20647.222222222223},{"$f":"VLOOKUP($A122,cost_data!$A$5:$BB$215,W$1,0)","v":21100.99},{"$f":"VLOOKUP($A122,cost_data!$A$5:$BB$215,X$1,0)","v":20647.222222222223},{"$f":"VLOOKUP($A122,cost_data!$A$5:$BB$215,Y$1,0)","v":12825.1},{"$f":"VLOOKUP($A122,cost_data!$A$5:$BB$215,Z$1,0)","v":20647.222222222223},{"$f":"VLOOKUP($A122,cost_data!$A$5:$BB$215,AA$1,0)","v":4909832.72000001},{"$f":"VLOOKUP($A122,cost_data!$A$5:$BB$215,AB$1,0)","v":1554002}]
["07G","NHS Thurrock",{"$f":"VLOOKUP($A123,cost_data!$A$5:$BB$215,C$1,0)","v":2859870.84},{"$f":"VLOOKUP($A123,cost_data!$A$5:$BB$215,D$1,0)","v":19836.86056355061},{"$f":"VLOOKUP($A123,cost_data!$A$5:$BB$215,E$1,0)","v":787019.620000005},{"$f":"VLOOKUP($A123,cost_data!$A$5:$BB$215,F$1,0)","v":19836.86056355061},{"$f":"VLOOKUP($A123,cost_data!$A$5:$BB$215,G$1,0)","v":789780.25999999896},{"$f":"VLOOKUP($A123,cost_data!$A$5:$BB$215,H$1,0)","v":19836.86056355061},{"$f":"VLOOKUP($A123,cost_data!$A$5:$BB$215,I$1,0)","v":489525.35},{"$f":"VLOOKUP($A123,cost_data!$A$5:$BB$215,J$1,0)","v":19836.86056355061},{"$f":"VLOOKUP($A123,cost_data!$A$5:$BB$215,K$1,0)","v":198981.06000000099},{"$f":"VLOOKUP($A123,cost_data!$A$5:$BB$215,L$1,0)","v":19836.86056355061},{"$f":"VLOOKUP($A123,cost_data!$A$5:$BB$215,M$1,0)","v":216816.91000000099},{"$f":"VLOOKUP($A123,cost_data!$A$5:$BB$215,N$1,0)","v":19836.86056355061},{"$f":"VLOOKUP($A123,cost_data!$A$5:$BB$215,O$1,0)","v":167706.569999998},{"$f":"VLOOKUP($A123,cost_data!$A$5:$BB$215,P$1,0)","v":19836.86056355061},{"$f":"VLOOKUP($A123,cost_data!$A$5:$BB$215,Q$1,0)","v":160195.06},{"$f":"VLOOKUP($A123,cost_data!$A$5:$BB$215,R$1,0)","v":19836.86056355061},{"$f":"VLOOKUP($A123,cost_data!$A$5:$BB$215,S$1,0)","v":12583.130000000099},{"$f":"VLOOKUP($A123,cost_data!$A$5:$BB$215,T$1,0)","v":19836.86056355061},{"$f":"VLOOKUP($A123,cost_data!$A$5:$BB$215,U$1,0)","v":11922.31},{"$f":"VLOOKUP($A123,cost_data!$A$5:$BB$215,V$1,0)","v":19836.86056355061},{"$f":"VLOOKUP($A123,cost_data!$A$5:$BB$215,W$1,0)","v":13999.21},{"$f":"VLOOKUP($A123,cost_data!$A$5:$BB$215,X$1,0)","v":19836.86056355061},{"$f":"VLOOKUP($A123,cost_data!$A$5:$BB$215,Y$1,0)","v":11341.36},{"$f":"VLOOKUP($A123,cost_data!$A$5:$BB$215,Z$1,0)","v":19836.86056355061},{"$f":"VLOOKUP($A123,cost_data!$A$5:$BB$215,AA$1,0)","v":2859870.84},{"$f":"VLOOKUP($A123,cost_data!$A$5:$BB$215,AB$1,0)","v":931736}]
["07H","NHS West Essex",{"$f":"VLOOKUP($A124,cost_data!$A$5:$BB$215,C$1,0)","v":5174478.1000000099},{"$f":"VLOOKUP($A124,cost_data!$A$5:$BB$215,D$1,0)","v":31615.195291599783},{"$f":"VLOOKUP($A124,cost_data!$A$5:$BB$215,E$1,0)","v":1630862.8499999901},{"$f":"VLOOKUP($A124,cost_data!$A$5:$BB$215,F$1,0)","v":31615.195291599783},{"$f":"VLOOKUP($A124,cost_data!$A$5:$BB$215,G$1,0)","v":1175305.83},{"$f":"VLOOKUP($A124,cost_data!$A$5:$BB$215,H$1,0)","v":31615.195291599783},{"$f":"VLOOKUP($A124,cost_data!$A$5:$BB$215,I$1,0)","v":981209.87999999896},{"$f":"VLOOKUP($A124,cost_data!$A$5:$BB$215,J$1,0)","v":31615.195291599783},{"$f":"VLOOKUP($A124,cost_data!$A$5:$BB$215,K$1,0)","v":383592.69000000099},{"$f":"VLOOKUP($A124,cost_data!$A$5:$BB$215,L$1,0)","v":31615.195291599783},{"$f":"VLOOKUP($A124,cost_data!$A$5:$BB$215,M$1,0)","v":350354.92000000202},{"$f":"VLOOKUP($A124,cost_data!$A$5:$BB$215,N$1,0)","v":31615.195291599783},{"$f":"VLOOKUP($A124,cost_data!$A$5:$BB$215,O$1,0)","v":268430.83999999799},{"$f":"VLOOKUP($A124,cost_data!$A$5:$BB$215,P$1,0)","v":31615.195291599783},{"$f":"VLOOKUP($A124,cost_data!$A$5:$BB$215,Q$1,0)","v":288379.74999999901},{"$f":"VLOOKUP($A124,cost_data!$A$5:$BB$215,R$1,0)","v":31615.195291599783},{"$f":"VLOOKUP($A124,cost_data!$A$5:$BB$215,S$1,0)","v":43719.499999999898},{"$f":"VLOOKUP($A124,cost_data!$A$5:$BB$215,T$1,0)","v":31615.195291599783},{"$f":"VLOOKUP($A124,cost_data!$A$5:$BB$215,U$1,0)","v":29039.179999999898},{"$f":"VLOOKUP($A124,cost_data!$A$5:$BB$215,V$1,0)","v":31615.195291599783},{"$f":"VLOOKUP($A124,cost_data!$A$5:$BB$215,W$1,0)","v":14101.2},{"$f":"VLOOKUP($A124,cost_data!$A$5:$BB$215,X$1,0)","v":31615.195291599783},{"$f":"VLOOKUP($A124,cost_data!$A$5:$BB$215,Y$1,0)","v":9470.16},{"$f":"VLOOKUP($A124,cost_data!$A$5:$BB$215,Z$1,0)","v":31615.195291599783},{"$f":"VLOOKUP($A124,cost_data!$A$5:$BB$215,AA$1,0)","v":5174478.1000000099},{"$f":"VLOOKUP($A124,cost_data!$A$5:$BB$215,AB$1,0)","v":1795998}]
["07J","NHS West Norfolk",{"$f":"VLOOKUP($A125,cost_data!$A$5:$BB$215,C$1,0)","v":4225914.4500000104},{"$f":"VLOOKUP($A125,cost_data!$A$5:$BB$215,D$1,0)","v":13753.482587064676},{"$f":"VLOOKUP($A125,cost_data!$A$5:$BB$215,E$1,0)","v":1021366.97000001},{"$f":"VLOOKUP($A125,cost_data!$A$5:$BB$215,F$1,0)","v":13753.482587064676},{"$f":"VLOOKUP($A125,cost_data!$A$5:$BB$215,G$1,0)","v":1175759.42},{"$f":"VLOOKUP($A125,cost_data!$A$5:$BB$215,H$1,0)","v":13753.482587064676},{"$f":"VLOOKUP($A125,cost_data!$A$5:$BB$215,I$1,0)","v":902106.75},{"$f":"VLOOKUP($A125,cost_data!$A$5:$BB$215,J$1,0)","v":13753.482587064676},{"$f":"VLOOKUP($A125,cost_data!$A$5:$BB$215,K$1,0)","v":297007.09999999899},{"$f":"VLOOKUP($A125,cost_data!$A$5:$BB$215,L$1,0)","v":13753.482587064676},{"$f":"VLOOKUP($A125,cost_data!$A$5:$BB$215,M$1,0)","v":286570.60000000102},{"$f":"VLOOKUP($A125,cost_data!$A$5:$BB$215,N$1,0)","v":13753.482587064676},{"$f":"VLOOKUP($A125,cost_data!$A$5:$BB$215,O$1,0)","v":245624.06},{"$f":"VLOOKUP($A125,cost_data!$A$5:$BB$215,P$1,0)","v":13753.482587064676},{"$f":"VLOOKUP($A125,cost_data!$A$5:$BB$215,Q$1,0)","v":225935.200000001},{"$f":"VLOOKUP($A125,cost_data!$A$5:$BB$215,R$1,0)","v":13753.482587064676},{"$f":"VLOOKUP($A125,cost_data!$A$5:$BB$215,S$1,0)","v":26036.05},{"$f":"VLOOKUP($A125,cost_data!$A$5:$BB$215,T$1,0)","v":13753.482587064676},{"$f":"VLOOKUP($A125,cost_data!$A$5:$BB$215,U$1,0)","v":25431.779999999901},{"$f":"VLOOKUP($A125,cost_data!$A$5:$BB$215,V$1,0)","v":13753.482587064676},{"$f":"VLOOKUP($A125,cost_data!$A$5:$BB$215,W$1,0)","v":16387.59},{"$f":"VLOOKUP($A125,cost_data!$A$5:$BB$215,X$1,0)","v":13753.482587064676},{"$f":"VLOOKUP($A125,cost_data!$A$5:$BB$215,Y$1,0)","v":3688.93},{"$f":"VLOOKUP($A125,cost_data!$A$5:$BB$215,Z$1,0)","v":13753.482587064676},{"$f":"VLOOKUP($A125,cost_data!$A$5:$BB$215,AA$1,0)","v":4225914.4500000104},{"$f":"VLOOKUP($A125,cost_data!$A$5:$BB$215,AB$1,0)","v":1386964}]
["07K","NHS West Suffolk",{"$f":"VLOOKUP($A126,cost_data!$A$5:$BB$215,C$1,0)","v":5135966.1400000202},{"$f":"VLOOKUP($A126,cost_data!$A$5:$BB$215,D$1,0)","v":22619.544592030361},{"$f":"VLOOKUP($A126,cost_data!$A$5:$BB$215,E$1,0)","v":1509222.77999999},{"$f":"VLOOKUP($A126,cost_data!$A$5:$BB$215,F$1,0)","v":22619.544592030361},{"$f":"VLOOKUP($A126,cost_data!$A$5:$BB$215,G$1,0)","v":1286077.22},{"$f":"VLOOKUP($A126,cost_data!$A$5:$BB$215,H$1,0)","v":22619.544592030361},{"$f":"VLOOKUP($A126,cost_data!$A$5:$BB$215,I$1,0)","v":904765.50999999896},{"$f":"VLOOKUP($A126,cost_data!$A$5:$BB$215,J$1,0)","v":22619.544592030361},{"$f":"VLOOKUP($A126,cost_data!$A$5:$BB$215,K$1,0)","v":455353.97000000102},{"$f":"VLOOKUP($A126,cost_data!$A$5:$BB$215,L$1,0)","v":22619.544592030361},{"$f":"VLOOKUP($A126,cost_data!$A$5:$BB$215,M$1,0)","v":324547.07000000199},{"$f":"VLOOKUP($A126,cost_data!$A$5:$BB$215,N$1,0)","v":22619.544592030361},{"$f":"VLOOKUP($A126,cost_data!$A$5:$BB$215,O$1,0)","v":259112.959999999},{"$f":"VLOOKUP($A126,cost_data!$A$5:$BB$215,P$1,0)","v":22619.544592030361},{"$f":"VLOOKUP($A126,cost_data!$A$5:$BB$215,Q$1,0)","v":282913.69999999902},{"$f":"VLOOKUP($A126,cost_data!$A$5:$BB$215,R$1,0)","v":22619.544592030361},{"$f":"VLOOKUP($A126,cost_data!$A$5:$BB$215,S$1,0)","v":35508.83},{"$f":"VLOOKUP($A126,cost_data!$A$5:$BB$215,T$1,0)","v":22619.544592030361},{"$f":"VLOOKUP($A126,cost_data!$A$5:$BB$215,U$1,0)","v":23499.93},{"$f":"VLOOKUP($A126,cost_data!$A$5:$BB$215,V$1,0)","v":22619.544592030361},{"$f":"VLOOKUP($A126,cost_data!$A$5:$BB$215,W$1,0)","v":17848.400000000001},{"$f":"VLOOKUP($A126,cost_data!$A$5:$BB$215,X$1,0)","v":22619.544592030361},{"$f":"VLOOKUP($A126,cost_data!$A$5:$BB$215,Y$1,0)","v":36987.769999999997},{"$f":"VLOOKUP($A126,cost_data!$A$5:$BB$215,Z$1,0)","v":22619.544592030361},{"$f":"VLOOKUP($A126,cost_data!$A$5:$BB$215,AA$1,0)","v":5135966.1400000202},{"$f":"VLOOKUP($A126,cost_data!$A$5:$BB$215,AB$1,0)","v":1608042}]
["07L","NHS Barking and Dagenham",{"$f":"VLOOKUP($A127,cost_data!$A$5:$BB$215,C$1,0)","v":2915037.6699999901},{"$f":"VLOOKUP($A127,cost_data!$A$5:$BB$215,D$1,0)","v":27816.057600869448},{"$f":"VLOOKUP($A127,cost_data!$A$5:$BB$215,E$1,0)","v":970955.21000000904},{"$f":"VLOOKUP($A127,cost_data!$A$5:$BB$215,F$1,0)","v":27816.057600869448},{"$f":"VLOOKUP($A127,cost_data!$A$5:$BB$215,G$1,0)","v":728442.91},{"$f":"VLOOKUP($A127,cost_data!$A$5:$BB$215,H$1,0)","v":27816.057600869448},{"$f":"VLOOKUP($A127,cost_data!$A$5:$BB$215,I$1,0)","v":536346.51},{"$f":"VLOOKUP($A127,cost_data!$A$5:$BB$215,J$1,0)","v":27816.057600869448},{"$f":"VLOOKUP($A127,cost_data!$A$5:$BB$215,K$1,0)","v":163985.53},{"$f":"VLOOKUP($A127,cost_data!$A$5:$BB$215,L$1,0)","v":27816.057600869448},{"$f":"VLOOKUP($A127,cost_data!$A$5:$BB$215,M$1,0)","v":171309.06999999899},{"$f":"VLOOKUP($A127,cost_data!$A$5:$BB$215,N$1,0)","v":27816.057600869448},{"$f":"VLOOKUP($A127,cost_data!$A$5:$BB$215,O$1,0)","v":162694.21999999799},{"$f":"VLOOKUP($A127,cost_data!$A$5:$BB$215,P$1,0)","v":27816.057600869448},{"$f":"VLOOKUP($A127,cost_data!$A$5:$BB$215,Q$1,0)","v":138114.66},{"$f":"VLOOKUP($A127,cost_data!$A$5:$BB$215,R$1,0)","v":27816.057600869448},{"$f":"VLOOKUP($A127,cost_data!$A$5:$BB$215,S$1,0)","v":14250.02},{"$f":"VLOOKUP($A127,cost_data!$A$5:$BB$215,T$1,0)","v":27816.057600869448},{"$f":"VLOOKUP($A127,cost_data!$A$5:$BB$215,U$1,0)","v":12007.7},{"$f":"VLOOKUP($A127,cost_data!$A$5:$BB$215,V$1,0)","v":27816.057600869448},{"$f":"VLOOKUP($A127,cost_data!$A$5:$BB$215,W$1,0)","v":14886.13},{"$f":"VLOOKUP($A127,cost_data!$A$5:$BB$215,X$1,0)","v":27816.057600869448},{"$f":"VLOOKUP($A127,cost_data!$A$5:$BB$215,Y$1,0)","v":2045.71},{"$f":"VLOOKUP($A127,cost_data!$A$5:$BB$215,Z$1,0)","v":27816.057600869448},{"$f":"VLOOKUP($A127,cost_data!$A$5:$BB$215,AA$1,0)","v":2915037.6699999901},{"$f":"VLOOKUP($A127,cost_data!$A$5:$BB$215,AB$1,0)","v":896063}]
["07M","NHS Barnet",{"$f":"VLOOKUP($A128,cost_data!$A$5:$BB$215,C$1,0)","v":6965491.5199999996},{"$f":"VLOOKUP($A128,cost_data!$A$5:$BB$215,D$1,0)","v":48623.317821657656},{"$f":"VLOOKUP($A128,cost_data!$A$5:$BB$215,E$1,0)","v":2765925.9799999902},{"$f":"VLOOKUP($A128,cost_data!$A$5:$BB$215,F$1,0)","v":48623.317821657656},{"$f":"VLOOKUP($A128,cost_data!$A$5:$BB$215,G$1,0)","v":1482708.26},{"$f":"VLOOKUP($A128,cost_data!$A$5:$BB$215,H$1,0)","v":48623.317821657656},{"$f":"VLOOKUP($A128,cost_data!$A$5:$BB$215,I$1,0)","v":990024.929999999},{"$f":"VLOOKUP($A128,cost_data!$A$5:$BB$215,J$1,0)","v":48623.317821657656},{"$f":"VLOOKUP($A128,cost_data!$A$5:$BB$215,K$1,0)","v":428800.44999999797},{"$f":"VLOOKUP($A128,cost_data!$A$5:$BB$215,L$1,0)","v":48623.317821657656},{"$f":"VLOOKUP($A128,cost_data!$A$5:$BB$215,M$1,0)","v":437040.30000000499},{"$f":"VLOOKUP($A128,cost_data!$A$5:$BB$215,N$1,0)","v":48623.317821657656},{"$f":"VLOOKUP($A128,cost_data!$A$5:$BB$215,O$1,0)","v":347651.37999999698},{"$f":"VLOOKUP($A128,cost_data!$A$5:$BB$215,P$1,0)","v":48623.317821657656},{"$f":"VLOOKUP($A128,cost_data!$A$5:$BB$215,Q$1,0)","v":375918.609999999},{"$f":"VLOOKUP($A128,cost_data!$A$5:$BB$215,R$1,0)","v":48623.317821657656},{"$f":"VLOOKUP($A128,cost_data!$A$5:$BB$215,S$1,0)","v":55694.429999999797},{"$f":"VLOOKUP($A128,cost_data!$A$5:$BB$215,T$1,0)","v":48623.317821657656},{"$f":"VLOOKUP($A128,cost_data!$A$5:$BB$215,U$1,0)","v":25933.979999999901},{"$f":"VLOOKUP($A128,cost_data!$A$5:$BB$215,V$1,0)","v":48623.317821657656},{"$f":"VLOOKUP($A128,cost_data!$A$5:$BB$215,W$1,0)","v":21727.27},{"$f":"VLOOKUP($A128,cost_data!$A$5:$BB$215,X$1,0)","v":48623.317821657656},{"$f":"VLOOKUP($A128,cost_data!$A$5:$BB$215,Y$1,0)","v":34065.93},{"$f":"VLOOKUP($A128,cost_data!$A$5:$BB$215,Z$1,0)","v":48623.317821657656},{"$f":"VLOOKUP($A128,cost_data!$A$5:$BB$215,AA$1,0)","v":6965491.5199999996},{"$f":"VLOOKUP($A128,cost_data!$A$5:$BB$215,AB$1,0)","v":1338718}]
["07N","NHS Bexley",{"$f":"VLOOKUP($A129,cost_data!$A$5:$BB$215,C$1,0)","v":4306958.4300000099},{"$f":"VLOOKUP($A129,cost_data!$A$5:$BB$215,D$1,0)","v":24889.87605572008},{"$f":"VLOOKUP($A129,cost_data!$A$5:$BB$215,E$1,0)","v":1280142.21},{"$f":"VLOOKUP($A129,cost_data!$A$5:$BB$215,F$1,0)","v":24889.87605572008},{"$f":"VLOOKUP($A129,cost_data!$A$5:$BB$215,G$1,0)","v":1113778.6299999999},{"$f":"VLOOKUP($A129,cost_data!$A$5:$BB$215,H$1,0)","v":24889.87605572008},{"$f":"VLOOKUP($A129,cost_data!$A$5:$BB$215,I$1,0)","v":774208.76999999897},{"$f":"VLOOKUP($A129,cost_data!$A$5:$BB$215,J$1,0)","v":24889.87605572008},{"$f":"VLOOKUP($A129,cost_data!$A$5:$BB$215,K$1,0)","v":302648.62999999902},{"$f":"VLOOKUP($A129,cost_data!$A$5:$BB$215,L$1,0)","v":24889.87605572008},{"$f":"VLOOKUP($A129,cost_data!$A$5:$BB$215,M$1,0)","v":282232.88},{"$f":"VLOOKUP($A129,cost_data!$A$5:$BB$215,N$1,0)","v":24889.87605572008},{"$f":"VLOOKUP($A129,cost_data!$A$5:$BB$215,O$1,0)","v":236845.699999998},{"$f":"VLOOKUP($A129,cost_data!$A$5:$BB$215,P$1,0)","v":24889.87605572008},{"$f":"VLOOKUP($A129,cost_data!$A$5:$BB$215,Q$1,0)","v":228975.03},{"$f":"VLOOKUP($A129,cost_data!$A$5:$BB$215,R$1,0)","v":24889.87605572008},{"$f":"VLOOKUP($A129,cost_data!$A$5:$BB$215,S$1,0)","v":39360.729999999901},{"$f":"VLOOKUP($A129,cost_data!$A$5:$BB$215,T$1,0)","v":24889.87605572008},{"$f":"VLOOKUP($A129,cost_data!$A$5:$BB$215,U$1,0)","v":20896.54},{"$f":"VLOOKUP($A129,cost_data!$A$5:$BB$215,V$1,0)","v":24889.87605572008},{"$f":"VLOOKUP($A129,cost_data!$A$5:$BB$215,W$1,0)","v":15744.78},{"$f":"VLOOKUP($A129,cost_data!$A$5:$BB$215,X$1,0)","v":24889.87605572008},{"$f":"VLOOKUP($A129,cost_data!$A$5:$BB$215,Y$1,0)","v":12124.53},{"$f":"VLOOKUP($A129,cost_data!$A$5:$BB$215,Z$1,0)","v":24889.87605572008},{"$f":"VLOOKUP($A129,cost_data!$A$5:$BB$215,AA$1,0)","v":4306958.4300000099},{"$f":"VLOOKUP($A129,cost_data!$A$5:$BB$215,AB$1,0)","v":1027612}]
["07P","NHS Brent",{"$f":"VLOOKUP($A130,cost_data!$A$5:$BB$215,C$1,0)","v":4606310.1399999801},{"$f":"VLOOKUP($A130,cost_data!$A$5:$BB$215,D$1,0)","v":48670.190274841436},{"$f":"VLOOKUP($A130,cost_data!$A$5:$BB$215,E$1,0)","v":1351982.23},{"$f":"VLOOKUP($A130,cost_data!$A$5:$BB$215,F$1,0)","v":48670.190274841436},{"$f":"VLOOKUP($A130,cost_data!$A$5:$BB$215,G$1,0)","v":1395605.86},{"$f":"VLOOKUP($A130,cost_data!$A$5:$BB$215,H$1,0)","v":48670.190274841436},{"$f":"VLOOKUP($A130,cost_data!$A$5:$BB$215,I$1,0)","v":839998.44},{"$f":"VLOOKUP($A130,cost_data!$A$5:$BB$215,J$1,0)","v":48670.190274841436},{"$f":"VLOOKUP($A130,cost_data!$A$5:$BB$215,K$1,0)","v":175396.11},{"$f":"VLOOKUP($A130,cost_data!$A$5:$BB$215,L$1,0)","v":48670.190274841436},{"$f":"VLOOKUP($A130,cost_data!$A$5:$BB$215,M$1,0)","v":261806.329999999},{"$f":"VLOOKUP($A130,cost_data!$A$5:$BB$215,N$1,0)","v":48670.190274841436},{"$f":"VLOOKUP($A130,cost_data!$A$5:$BB$215,O$1,0)","v":255352.03999999899},{"$f":"VLOOKUP($A130,cost_data!$A$5:$BB$215,P$1,0)","v":48670.190274841436},{"$f":"VLOOKUP($A130,cost_data!$A$5:$BB$215,Q$1,0)","v":260795.39},{"$f":"VLOOKUP($A130,cost_data!$A$5:$BB$215,R$1,0)","v":48670.190274841436},{"$f":"VLOOKUP($A130,cost_data!$A$5:$BB$215,S$1,0)","v":29604.44},{"$f":"VLOOKUP($A130,cost_data!$A$5:$BB$215,T$1,0)","v":48670.190274841436},{"$f":"VLOOKUP($A130,cost_data!$A$5:$BB$215,U$1,0)","v":14422.58},{"$f":"VLOOKUP($A130,cost_data!$A$5:$BB$215,V$1,0)","v":48670.190274841436},{"$f":"VLOOKUP($A130,cost_data!$A$5:$BB$215,W$1,0)","v":20324.16},{"$f":"VLOOKUP($A130,cost_data!$A$5:$BB$215,X$1,0)","v":48670.190274841436},{"$f":"VLOOKUP($A130,cost_data!$A$5:$BB$215,Y$1,0)","v":1022.56},{"$f":"VLOOKUP($A130,cost_data!$A$5:$BB$215,Z$1,0)","v":48670.190274841436},{"$f":"VLOOKUP($A130,cost_data!$A$5:$BB$215,AA$1,0)","v":4606310.1399999801},{"$f":"VLOOKUP($A130,cost_data!$A$5:$BB$215,AB$1,0)","v":1273891}]
["07Q","NHS Bromley",{"$f":"VLOOKUP($A131,cost_data!$A$5:$BB$215,C$1,0)","v":6079319.8400000101},{"$f":"VLOOKUP($A131,cost_data!$A$5:$BB$215,D$1,0)","v":34813.904641881956},{"$f":"VLOOKUP($A131,cost_data!$A$5:$BB$215,E$1,0)","v":1907821.59},{"$f":"VLOOKUP($A131,cost_data!$A$5:$BB$215,F$1,0)","v":34813.904641881956},{"$f":"VLOOKUP($A131,cost_data!$A$5:$BB$215,G$1,0)","v":1640052.73},{"$f":"VLOOKUP($A131,cost_data!$A$5:$BB$215,H$1,0)","v":34813.904641881956},{"$f":"VLOOKUP($A131,cost_data!$A$5:$BB$215,I$1,0)","v":903757.65999999898},{"$f":"VLOOKUP($A131,cost_data!$A$5:$BB$215,J$1,0)","v":34813.904641881956},{"$f":"VLOOKUP($A131,cost_data!$A$5:$BB$215,K$1,0)","v":354707.26},{"$f":"VLOOKUP($A131,cost_data!$A$5:$BB$215,L$1,0)","v":34813.904641881956},{"$f":"VLOOKUP($A131,cost_data!$A$5:$BB$215,M$1,0)","v":447231.50000000198},{"$f":"VLOOKUP($A131,cost_data!$A$5:$BB$215,N$1,0)","v":34813.904641881956},{"$f":"VLOOKUP($A131,cost_data!$A$5:$BB$215,O$1,0)","v":353019.17999999702},{"$f":"VLOOKUP($A131,cost_data!$A$5:$BB$215,P$1,0)","v":34813.904641881956},{"$f":"VLOOKUP($A131,cost_data!$A$5:$BB$215,Q$1,0)","v":343622.419999998},{"$f":"VLOOKUP($A131,cost_data!$A$5:$BB$215,R$1,0)","v":34813.904641881956},{"$f":"VLOOKUP($A131,cost_data!$A$5:$BB$215,S$1,0)","v":52935.6899999999},{"$f":"VLOOKUP($A131,cost_data!$A$5:$BB$215,T$1,0)","v":34813.904641881956},{"$f":"VLOOKUP($A131,cost_data!$A$5:$BB$215,U$1,0)","v":26166.679999999898},{"$f":"VLOOKUP($A131,cost_data!$A$5:$BB$215,V$1,0)","v":34813.904641881956},{"$f":"VLOOKUP($A131,cost_data!$A$5:$BB$215,W$1,0)","v":20649.509999999998},{"$f":"VLOOKUP($A131,cost_data!$A$5:$BB$215,X$1,0)","v":34813.904641881956},{"$f":"VLOOKUP($A131,cost_data!$A$5:$BB$215,Y$1,0)","v":29213.07},{"$f":"VLOOKUP($A131,cost_data!$A$5:$BB$215,Z$1,0)","v":34813.904641881956},{"$f":"VLOOKUP($A131,cost_data!$A$5:$BB$215,AA$1,0)","v":6079319.8400000101},{"$f":"VLOOKUP($A131,cost_data!$A$5:$BB$215,AB$1,0)","v":1234371}]
["07R","NHS Camden",{"$f":"VLOOKUP($A132,cost_data!$A$5:$BB$215,C$1,0)","v":2558669.3499999898},{"$f":"VLOOKUP($A132,cost_data!$A$5:$BB$215,D$1,0)","v":37145.095168374814},{"$f":"VLOOKUP($A132,cost_data!$A$5:$BB$215,E$1,0)","v":939448.08999999799},{"$f":"VLOOKUP($A132,cost_data!$A$5:$BB$215,F$1,0)","v":37145.095168374814},{"$f":"VLOOKUP($A132,cost_data!$A$5:$BB$215,G$1,0)","v":555734.36},{"$f":"VLOOKUP($A132,cost_data!$A$5:$BB$215,H$1,0)","v":37145.095168374814},{"$f":"VLOOKUP($A132,cost_data!$A$5:$BB$215,I$1,0)","v":362785.6},{"$f":"VLOOKUP($A132,cost_data!$A$5:$BB$215,J$1,0)","v":37145.095168374814},{"$f":"VLOOKUP($A132,cost_data!$A$5:$BB$215,K$1,0)","v":214848.61},{"$f":"VLOOKUP($A132,cost_data!$A$5:$BB$215,L$1,0)","v":37145.095168374814},{"$f":"VLOOKUP($A132,cost_data!$A$5:$BB$215,M$1,0)","v":152600.72},{"$f":"VLOOKUP($A132,cost_data!$A$5:$BB$215,N$1,0)","v":37145.095168374814},{"$f":"VLOOKUP($A132,cost_data!$A$5:$BB$215,O$1,0)","v":141178.48000000001},{"$f":"VLOOKUP($A132,cost_data!$A$5:$BB$215,P$1,0)","v":37145.095168374814},{"$f":"VLOOKUP($A132,cost_data!$A$5:$BB$215,Q$1,0)","v":139694.49},{"$f":"VLOOKUP($A132,cost_data!$A$5:$BB$215,R$1,0)","v":37145.095168374814},{"$f":"VLOOKUP($A132,cost_data!$A$5:$BB$215,S$1,0)","v":19642.27},{"$f":"VLOOKUP($A132,cost_data!$A$5:$BB$215,T$1,0)","v":37145.095168374814},{"$f":"VLOOKUP($A132,cost_data!$A$5:$BB$215,U$1,0)","v":12243.02},{"$f":"VLOOKUP($A132,cost_data!$A$5:$BB$215,V$1,0)","v":37145.095168374814},{"$f":"VLOOKUP($A132,cost_data!$A$5:$BB$215,W$1,0)","v":14780.86},{"$f":"VLOOKUP($A132,cost_data!$A$5:$BB$215,X$1,0)","v":37145.095168374814},{"$f":"VLOOKUP($A132,cost_data!$A$5:$BB$215,Y$1,0)","v":5712.85},{"$f":"VLOOKUP($A132,cost_data!$A$5:$BB$215,Z$1,0)","v":37145.095168374814},{"$f":"VLOOKUP($A132,cost_data!$A$5:$BB$215,AA$1,0)","v":2558669.3499999898},{"$f":"VLOOKUP($A132,cost_data!$A$5:$BB$215,AB$1,0)","v":544352}]
["07T","NHS City and Hackney",{"$f":"VLOOKUP($A133,cost_data!$A$5:$BB$215,C$1,0)","v":2786636.6099999901},{"$f":"VLOOKUP($A133,cost_data!$A$5:$BB$215,D$1,0)","v":42621.20327102804},{"$f":"VLOOKUP($A133,cost_data!$A$5:$BB$215,E$1,0)","v":809706.66000000294},{"$f":"VLOOKUP($A133,cost_data!$A$5:$BB$215,F$1,0)","v":42621.20327102804},{"$f":"VLOOKUP($A133,cost_data!$A$5:$BB$215,G$1,0)","v":731944.06},{"$f":"VLOOKUP($A133,cost_data!$A$5:$BB$215,H$1,0)","v":42621.20327102804},{"$f":"VLOOKUP($A133,cost_data!$A$5:$BB$215,I$1,0)","v":474413.96},{"$f":"VLOOKUP($A133,cost_data!$A$5:$BB$215,J$1,0)","v":42621.20327102804},{"$f":"VLOOKUP($A133,cost_data!$A$5:$BB$215,K$1,0)","v":222048.640000001},{"$f":"VLOOKUP($A133,cost_data!$A$5:$BB$215,L$1,0)","v":42621.20327102804},{"$f":"VLOOKUP($A133,cost_data!$A$5:$BB$215,M$1,0)","v":184566.36999999799},{"$f":"VLOOKUP($A133,cost_data!$A$5:$BB$215,N$1,0)","v":42621.20327102804},{"$f":"VLOOKUP($A133,cost_data!$A$5:$BB$215,O$1,0)","v":152248.21999999901},{"$f":"VLOOKUP($A133,cost_data!$A$5:$BB$215,P$1,0)","v":42621.20327102804},{"$f":"VLOOKUP($A133,cost_data!$A$5:$BB$215,Q$1,0)","v":167324.67000000001},{"$f":"VLOOKUP($A133,cost_data!$A$5:$BB$215,R$1,0)","v":42621.20327102804},{"$f":"VLOOKUP($A133,cost_data!$A$5:$BB$215,S$1,0)","v":14650.82},{"$f":"VLOOKUP($A133,cost_data!$A$5:$BB$215,T$1,0)","v":42621.20327102804},{"$f":"VLOOKUP($A133,cost_data!$A$5:$BB$215,U$1,0)","v":7850.6800000000103},{"$f":"VLOOKUP($A133,cost_data!$A$5:$BB$215,V$1,0)","v":42621.20327102804},{"$f":"VLOOKUP($A133,cost_data!$A$5:$BB$215,W$1,0)","v":20955.400000000001},{"$f":"VLOOKUP($A133,cost_data!$A$5:$BB$215,X$1,0)","v":42621.20327102804},{"$f":"VLOOKUP($A133,cost_data!$A$5:$BB$215,Y$1,0)","v":927.13},{"$f":"VLOOKUP($A133,cost_data!$A$5:$BB$215,Z$1,0)","v":42621.20327102804},{"$f":"VLOOKUP($A133,cost_data!$A$5:$BB$215,AA$1,0)","v":2786636.6099999901},{"$f":"VLOOKUP($A133,cost_data!$A$5:$BB$215,AB$1,0)","v":758224}]
["07V","NHS Croydon",{"$f":"VLOOKUP($A134,cost_data!$A$5:$BB$215,C$1,0)","v":5114788.5300000198},{"$f":"VLOOKUP($A134,cost_data!$A$5:$BB$215,D$1,0)","v":49220.560030686618},{"$f":"VLOOKUP($A134,cost_data!$A$5:$BB$215,E$1,0)","v":1416215.1100000101},{"$f":"VLOOKUP($A134,cost_data!$A$5:$BB$215,F$1,0)","v":49220.560030686618},{"$f":"VLOOKUP($A134,cost_data!$A$5:$BB$215,G$1,0)","v":1624885.38},{"$f":"VLOOKUP($A134,cost_data!$A$5:$BB$215,H$1,0)","v":49220.560030686618},{"$f":"VLOOKUP($A134,cost_data!$A$5:$BB$215,I$1,0)","v":853654.71999999799},{"$f":"VLOOKUP($A134,cost_data!$A$5:$BB$215,J$1,0)","v":49220.560030686618},{"$f":"VLOOKUP($A134,cost_data!$A$5:$BB$215,K$1,0)","v":111149.63},{"$f":"VLOOKUP($A134,cost_data!$A$5:$BB$215,L$1,0)","v":49220.560030686618},{"$f":"VLOOKUP($A134,cost_data!$A$5:$BB$215,M$1,0)","v":334585.61000000098},{"$f":"VLOOKUP($A134,cost_data!$A$5:$BB$215,N$1,0)","v":49220.560030686618},{"$f":"VLOOKUP($A134,cost_data!$A$5:$BB$215,O$1,0)","v":323956.20999999798},{"$f":"VLOOKUP($A134,cost_data!$A$5:$BB$215,P$1,0)","v":49220.560030686618},{"$f":"VLOOKUP($A134,cost_data!$A$5:$BB$215,Q$1,0)","v":349398.54999999801},{"$f":"VLOOKUP($A134,cost_data!$A$5:$BB$215,R$1,0)","v":49220.560030686618},{"$f":"VLOOKUP($A134,cost_data!$A$5:$BB$215,S$1,0)","v":38524.059999999801},{"$f":"VLOOKUP($A134,cost_data!$A$5:$BB$215,T$1,0)","v":49220.560030686618},{"$f":"VLOOKUP($A134,cost_data!$A$5:$BB$215,U$1,0)","v":24720.719999999899},{"$f":"VLOOKUP($A134,cost_data!$A$5:$BB$215,V$1,0)","v":49220.560030686618},{"$f":"VLOOKUP($A134,cost_data!$A$5:$BB$215,W$1,0)","v":32942.550000000003},{"$f":"VLOOKUP($A134,cost_data!$A$5:$BB$215,X$1,0)","v":49220.560030686618},{"$f":"VLOOKUP($A134,cost_data!$A$5:$BB$215,Y$1,0)","v":4755.99},{"$f":"VLOOKUP($A134,cost_data!$A$5:$BB$215,Z$1,0)","v":49220.560030686618},{"$f":"VLOOKUP($A134,cost_data!$A$5:$BB$215,AA$1,0)","v":5114788.5300000198},{"$f":"VLOOKUP($A134,cost_data!$A$5:$BB$215,AB$1,0)","v":1493270}]
["07W","NHS Ealing",{"$f":"VLOOKUP($A135,cost_data!$A$5:$BB$215,C$1,0)","v":5768547.9699999997},{"$f":"VLOOKUP($A135,cost_data!$A$5:$BB$215,D$1,0)","v":57891.082078954845},{"$f":"VLOOKUP($A135,cost_data!$A$5:$BB$215,E$1,0)","v":1983710.97000003},{"$f":"VLOOKUP($A135,cost_data!$A$5:$BB$215,F$1,0)","v":57891.082078954845},{"$f":"VLOOKUP($A135,cost_data!$A$5:$BB$215,G$1,0)","v":1472789.03},{"$f":"VLOOKUP($A135,cost_data!$A$5:$BB$215,H$1,0)","v":57891.082078954845},{"$f":"VLOOKUP($A135,cost_data!$A$5:$BB$215,I$1,0)","v":1010347.35},{"$f":"VLOOKUP($A135,cost_data!$A$5:$BB$215,J$1,0)","v":57891.082078954845},{"$f":"VLOOKUP($A135,cost_data!$A$5:$BB$215,K$1,0)","v":224671.9},{"$f":"VLOOKUP($A135,cost_data!$A$5:$BB$215,L$1,0)","v":57891.082078954845},{"$f":"VLOOKUP($A135,cost_data!$A$5:$BB$215,M$1,0)","v":330684.010000001},{"$f":"VLOOKUP($A135,cost_data!$A$5:$BB$215,N$1,0)","v":57891.082078954845},{"$f":"VLOOKUP($A135,cost_data!$A$5:$BB$215,O$1,0)","v":352903.419999998},{"$f":"VLOOKUP($A135,cost_data!$A$5:$BB$215,P$1,0)","v":57891.082078954845},{"$f":"VLOOKUP($A135,cost_data!$A$5:$BB$215,Q$1,0)","v":294041.37},{"$f":"VLOOKUP($A135,cost_data!$A$5:$BB$215,R$1,0)","v":57891.082078954845},{"$f":"VLOOKUP($A135,cost_data!$A$5:$BB$215,S$1,0)","v":41201.889999999701},{"$f":"VLOOKUP($A135,cost_data!$A$5:$BB$215,T$1,0)","v":57891.082078954845},{"$f":"VLOOKUP($A135,cost_data!$A$5:$BB$215,U$1,0)","v":19050.0099999999},{"$f":"VLOOKUP($A135,cost_data!$A$5:$BB$215,V$1,0)","v":57891.082078954845},{"$f":"VLOOKUP($A135,cost_data!$A$5:$BB$215,W$1,0)","v":23239.919999999998},{"$f":"VLOOKUP($A135,cost_data!$A$5:$BB$215,X$1,0)","v":57891.082078954845},{"$f":"VLOOKUP($A135,cost_data!$A$5:$BB$215,Y$1,0)","v":15828.85},{"$f":"VLOOKUP($A135,cost_data!$A$5:$BB$215,Z$1,0)","v":57891.082078954845},{"$f":"VLOOKUP($A135,cost_data!$A$5:$BB$215,AA$1,0)","v":5768547.9699999997},{"$f":"VLOOKUP($A135,cost_data!$A$5:$BB$215,AB$1,0)","v":1554671}]
["07X","NHS Enfield",{"$f":"VLOOKUP($A136,cost_data!$A$5:$BB$215,C$1,0)","v":4935925.04},{"$f":"VLOOKUP($A136,cost_data!$A$5:$BB$215,D$1,0)","v":37651.302115173006},{"$f":"VLOOKUP($A136,cost_data!$A$5:$BB$215,E$1,0)","v":1472954.6},{"$f":"VLOOKUP($A136,cost_data!$A$5:$BB$215,F$1,0)","v":37651.302115173006},{"$f":"VLOOKUP($A136,cost_data!$A$5:$BB$215,G$1,0)","v":1257512.02},{"$f":"VLOOKUP($A136,cost_data!$A$5:$BB$215,H$1,0)","v":37651.302115173006},{"$f":"VLOOKUP($A136,cost_data!$A$5:$BB$215,I$1,0)","v":897121.38999999897},{"$f":"VLOOKUP($A136,cost_data!$A$5:$BB$215,J$1,0)","v":37651.302115173006},{"$f":"VLOOKUP($A136,cost_data!$A$5:$BB$215,K$1,0)","v":303551.27},{"$f":"VLOOKUP($A136,cost_data!$A$5:$BB$215,L$1,0)","v":37651.302115173006},{"$f":"VLOOKUP($A136,cost_data!$A$5:$BB$215,M$1,0)","v":336294.44999999902},{"$f":"VLOOKUP($A136,cost_data!$A$5:$BB$215,N$1,0)","v":37651.302115173006},{"$f":"VLOOKUP($A136,cost_data!$A$5:$BB$215,O$1,0)","v":296078.62999999803},{"$f":"VLOOKUP($A136,cost_data!$A$5:$BB$215,P$1,0)","v":37651.302115173006},{"$f":"VLOOKUP($A136,cost_data!$A$5:$BB$215,Q$1,0)","v":286317.34000000003},{"$f":"VLOOKUP($A136,cost_data!$A$5:$BB$215,R$1,0)","v":37651.302115173006},{"$f":"VLOOKUP($A136,cost_data!$A$5:$BB$215,S$1,0)","v":30218.179999999898},{"$f":"VLOOKUP($A136,cost_data!$A$5:$BB$215,T$1,0)","v":37651.302115173006},{"$f":"VLOOKUP($A136,cost_data!$A$5:$BB$215,U$1,0)","v":20524.5799999999},{"$f":"VLOOKUP($A136,cost_data!$A$5:$BB$215,V$1,0)","v":37651.302115173006},{"$f":"VLOOKUP($A136,cost_data!$A$5:$BB$215,W$1,0)","v":23141.4},{"$f":"VLOOKUP($A136,cost_data!$A$5:$BB$215,X$1,0)","v":37651.302115173006},{"$f":"VLOOKUP($A136,cost_data!$A$5:$BB$215,Y$1,0)","v":12211.18},{"$f":"VLOOKUP($A136,cost_data!$A$5:$BB$215,Z$1,0)","v":37651.302115173006},{"$f":"VLOOKUP($A136,cost_data!$A$5:$BB$215,AA$1,0)","v":4935925.04},{"$f":"VLOOKUP($A136,cost_data!$A$5:$BB$215,AB$1,0)","v":1456854}]
["07Y","NHS Hounslow",{"$f":"VLOOKUP($A137,cost_data!$A$5:$BB$215,C$1,0)","v":3940047.8899999899},{"$f":"VLOOKUP($A137,cost_data!$A$5:$BB$215,D$1,0)","v":40855.452240067629},{"$f":"VLOOKUP($A137,cost_data!$A$5:$BB$215,E$1,0)","v":1252310.3},{"$f":"VLOOKUP($A137,cost_data!$A$5:$BB$215,F$1,0)","v":40855.452240067629},{"$f":"VLOOKUP($A137,cost_data!$A$5:$BB$215,G$1,0)","v":1036936.12},{"$f":"VLOOKUP($A137,cost_data!$A$5:$BB$215,H$1,0)","v":40855.452240067629},{"$f":"VLOOKUP($A137,cost_data!$A$5:$BB$215,I$1,0)","v":653359.14},{"$f":"VLOOKUP($A137,cost_data!$A$5:$BB$215,J$1,0)","v":40855.452240067629},{"$f":"VLOOKUP($A137,cost_data!$A$5:$BB$215,K$1,0)","v":195469.43},{"$f":"VLOOKUP($A137,cost_data!$A$5:$BB$215,L$1,0)","v":40855.452240067629},{"$f":"VLOOKUP($A137,cost_data!$A$5:$BB$215,M$1,0)","v":245945.75999999899},{"$f":"VLOOKUP($A137,cost_data!$A$5:$BB$215,N$1,0)","v":40855.452240067629},{"$f":"VLOOKUP($A137,cost_data!$A$5:$BB$215,O$1,0)","v":258856.259999998},{"$f":"VLOOKUP($A137,cost_data!$A$5:$BB$215,P$1,0)","v":40855.452240067629},{"$f":"VLOOKUP($A137,cost_data!$A$5:$BB$215,Q$1,0)","v":228811.67},{"$f":"VLOOKUP($A137,cost_data!$A$5:$BB$215,R$1,0)","v":40855.452240067629},{"$f":"VLOOKUP($A137,cost_data!$A$5:$BB$215,S$1,0)","v":26925.26},{"$f":"VLOOKUP($A137,cost_data!$A$5:$BB$215,T$1,0)","v":40855.452240067629},{"$f":"VLOOKUP($A137,cost_data!$A$5:$BB$215,U$1,0)","v":16157.17},{"$f":"VLOOKUP($A137,cost_data!$A$5:$BB$215,V$1,0)","v":40855.452240067629},{"$f":"VLOOKUP($A137,cost_data!$A$5:$BB$215,W$1,0)","v":19275.810000000001},{"$f":"VLOOKUP($A137,cost_data!$A$5:$BB$215,X$1,0)","v":40855.452240067629},{"$f":"VLOOKUP($A137,cost_data!$A$5:$BB$215,Y$1,0)","v":6000.97},{"$f":"VLOOKUP($A137,cost_data!$A$5:$BB$215,Z$1,0)","v":40855.452240067629},{"$f":"VLOOKUP($A137,cost_data!$A$5:$BB$215,AA$1,0)","v":3940047.8899999899},{"$f":"VLOOKUP($A137,cost_data!$A$5:$BB$215,AB$1,0)","v":1101053}]
["08A","NHS Greenwich",{"$f":"VLOOKUP($A138,cost_data!$A$5:$BB$215,C$1,0)","v":4002525.52},{"$f":"VLOOKUP($A138,cost_data!$A$5:$BB$215,D$1,0)","v":36498.438560760354},{"$f":"VLOOKUP($A138,cost_data!$A$5:$BB$215,E$1,0)","v":1225406.6099999901},{"$f":"VLOOKUP($A138,cost_data!$A$5:$BB$215,F$1,0)","v":36498.438560760354},{"$f":"VLOOKUP($A138,cost_data!$A$5:$BB$215,G$1,0)","v":1044379.95},{"$f":"VLOOKUP($A138,cost_data!$A$5:$BB$215,H$1,0)","v":36498.438560760354},{"$f":"VLOOKUP($A138,cost_data!$A$5:$BB$215,I$1,0)","v":699171.68999999901},{"$f":"VLOOKUP($A138,cost_data!$A$5:$BB$215,J$1,0)","v":36498.438560760354},{"$f":"VLOOKUP($A138,cost_data!$A$5:$BB$215,K$1,0)","v":280409.73},{"$f":"VLOOKUP($A138,cost_data!$A$5:$BB$215,L$1,0)","v":36498.438560760354},{"$f":"VLOOKUP($A138,cost_data!$A$5:$BB$215,M$1,0)","v":238813.30000000101},{"$f":"VLOOKUP($A138,cost_data!$A$5:$BB$215,N$1,0)","v":36498.438560760354},{"$f":"VLOOKUP($A138,cost_data!$A$5:$BB$215,O$1,0)","v":237894.55999999799},{"$f":"VLOOKUP($A138,cost_data!$A$5:$BB$215,P$1,0)","v":36498.438560760354},{"$f":"VLOOKUP($A138,cost_data!$A$5:$BB$215,Q$1,0)","v":211759.81000000099},{"$f":"VLOOKUP($A138,cost_data!$A$5:$BB$215,R$1,0)","v":36498.438560760354},{"$f":"VLOOKUP($A138,cost_data!$A$5:$BB$215,S$1,0)","v":24307.11},{"$f":"VLOOKUP($A138,cost_data!$A$5:$BB$215,T$1,0)","v":36498.438560760354},{"$f":"VLOOKUP($A138,cost_data!$A$5:$BB$215,U$1,0)","v":16248.24},{"$f":"VLOOKUP($A138,cost_data!$A$5:$BB$215,V$1,0)","v":36498.438560760354},{"$f":"VLOOKUP($A138,cost_data!$A$5:$BB$215,W$1,0)","v":20904.8},{"$f":"VLOOKUP($A138,cost_data!$A$5:$BB$215,X$1,0)","v":36498.438560760354},{"$f":"VLOOKUP($A138,cost_data!$A$5:$BB$215,Y$1,0)","v":3229.72},{"$f":"VLOOKUP($A138,cost_data!$A$5:$BB$215,Z$1,0)","v":36498.438560760354},{"$f":"VLOOKUP($A138,cost_data!$A$5:$BB$215,AA$1,0)","v":4002525.52},{"$f":"VLOOKUP($A138,cost_data!$A$5:$BB$215,AB$1,0)","v":1128307}]
["08C","NHS Hammersmith and Fulham",{"$f":"VLOOKUP($A139,cost_data!$A$5:$BB$215,C$1,0)","v":2550883.77999999},{"$f":"VLOOKUP($A139,cost_data!$A$5:$BB$215,D$1,0)","v":29580.645161290326},{"$f":"VLOOKUP($A139,cost_data!$A$5:$BB$215,E$1,0)","v":1016302.20999999},{"$f":"VLOOKUP($A139,cost_data!$A$5:$BB$215,F$1,0)","v":29580.645161290326},{"$f":"VLOOKUP($A139,cost_data!$A$5:$BB$215,G$1,0)","v":559576.03999999899},{"$f":"VLOOKUP($A139,cost_data!$A$5:$BB$215,H$1,0)","v":29580.645161290326},{"$f":"VLOOKUP($A139,cost_data!$A$5:$BB$215,I$1,0)","v":350478.25},{"$f":"VLOOKUP($A139,cost_data!$A$5:$BB$215,J$1,0)","v":29580.645161290326},{"$f":"VLOOKUP($A139,cost_data!$A$5:$BB$215,K$1,0)","v":187680.94},{"$f":"VLOOKUP($A139,cost_data!$A$5:$BB$215,L$1,0)","v":29580.645161290326},{"$f":"VLOOKUP($A139,cost_data!$A$5:$BB$215,M$1,0)","v":123747.58999999901},{"$f":"VLOOKUP($A139,cost_data!$A$5:$BB$215,N$1,0)","v":29580.645161290326},{"$f":"VLOOKUP($A139,cost_data!$A$5:$BB$215,O$1,0)","v":120654.3},{"$f":"VLOOKUP($A139,cost_data!$A$5:$BB$215,P$1,0)","v":29580.645161290326},{"$f":"VLOOKUP($A139,cost_data!$A$5:$BB$215,Q$1,0)","v":146471.79999999999},{"$f":"VLOOKUP($A139,cost_data!$A$5:$BB$215,R$1,0)","v":29580.645161290326},{"$f":"VLOOKUP($A139,cost_data!$A$5:$BB$215,S$1,0)","v":16228.64},{"$f":"VLOOKUP($A139,cost_data!$A$5:$BB$215,T$1,0)","v":29580.645161290326},{"$f":"VLOOKUP($A139,cost_data!$A$5:$BB$215,U$1,0)","v":9446.8399999999892},{"$f":"VLOOKUP($A139,cost_data!$A$5:$BB$215,V$1,0)","v":29580.645161290326},{"$f":"VLOOKUP($A139,cost_data!$A$5:$BB$215,W$1,0)","v":10448.19},{"$f":"VLOOKUP($A139,cost_data!$A$5:$BB$215,X$1,0)","v":29580.645161290326},{"$f":"VLOOKUP($A139,cost_data!$A$5:$BB$215,Y$1,0)","v":9848.98},{"$f":"VLOOKUP($A139,cost_data!$A$5:$BB$215,Z$1,0)","v":29580.645161290326},{"$f":"VLOOKUP($A139,cost_data!$A$5:$BB$215,AA$1,0)","v":2550883.77999999},{"$f":"VLOOKUP($A139,cost_data!$A$5:$BB$215,AB$1,0)","v":601472}]
["08D","NHS Haringey",{"$f":"VLOOKUP($A140,cost_data!$A$5:$BB$215,C$1,0)","v":3659020.8199999901},{"$f":"VLOOKUP($A140,cost_data!$A$5:$BB$215,D$1,0)","v":39058.183284063423},{"$f":"VLOOKUP($A140,cost_data!$A$5:$BB$215,E$1,0)","v":1066921.75000001},{"$f":"VLOOKUP($A140,cost_data!$A$5:$BB$215,F$1,0)","v":39058.183284063423},{"$f":"VLOOKUP($A140,cost_data!$A$5:$BB$215,G$1,0)","v":947945.7},{"$f":"VLOOKUP($A140,cost_data!$A$5:$BB$215,H$1,0)","v":39058.183284063423},{"$f":"VLOOKUP($A140,cost_data!$A$5:$BB$215,I$1,0)","v":657179.93000000005},{"$f":"VLOOKUP($A140,cost_data!$A$5:$BB$215,J$1,0)","v":39058.183284063423},{"$f":"VLOOKUP($A140,cost_data!$A$5:$BB$215,K$1,0)","v":257546.84},{"$f":"VLOOKUP($A140,cost_data!$A$5:$BB$215,L$1,0)","v":39058.183284063423},{"$f":"VLOOKUP($A140,cost_data!$A$5:$BB$215,M$1,0)","v":200893.52999999901},{"$f":"VLOOKUP($A140,cost_data!$A$5:$BB$215,N$1,0)","v":39058.183284063423},{"$f":"VLOOKUP($A140,cost_data!$A$5:$BB$215,O$1,0)","v":237745.07999999699},{"$f":"VLOOKUP($A140,cost_data!$A$5:$BB$215,P$1,0)","v":39058.183284063423},{"$f":"VLOOKUP($A140,cost_data!$A$5:$BB$215,Q$1,0)","v":235821.81},{"$f":"VLOOKUP($A140,cost_data!$A$5:$BB$215,R$1,0)","v":39058.183284063423},{"$f":"VLOOKUP($A140,cost_data!$A$5:$BB$215,S$1,0)","v":19872.62},{"$f":"VLOOKUP($A140,cost_data!$A$5:$BB$215,T$1,0)","v":39058.183284063423},{"$f":"VLOOKUP($A140,cost_data!$A$5:$BB$215,U$1,0)","v":11657.55},{"$f":"VLOOKUP($A140,cost_data!$A$5:$BB$215,V$1,0)","v":39058.183284063423},{"$f":"VLOOKUP($A140,cost_data!$A$5:$BB$215,W$1,0)","v":20466.96},{"$f":"VLOOKUP($A140,cost_data!$A$5:$BB$215,X$1,0)","v":39058.183284063423},{"$f":"VLOOKUP($A140,cost_data!$A$5:$BB$215,Y$1,0)","v":2969.05},{"$f":"VLOOKUP($A140,cost_data!$A$5:$BB$215,Z$1,0)","v":39058.183284063423},{"$f":"VLOOKUP($A140,cost_data!$A$5:$BB$215,AA$1,0)","v":3659020.8199999901},{"$f":"VLOOKUP($A140,cost_data!$A$5:$BB$215,AB$1,0)","v":1063797}]
["08E","NHS Harrow",{"$f":"VLOOKUP($A141,cost_data!$A$5:$BB$215,C$1,0)","v":3974556.1699999901},{"$f":"VLOOKUP($A141,cost_data!$A$5:$BB$215,D$1,0)","v":31114.681229362461},{"$f":"VLOOKUP($A141,cost_data!$A$5:$BB$215,E$1,0)","v":1199442.8},{"$f":"VLOOKUP($A141,cost_data!$A$5:$BB$215,F$1,0)","v":31114.681229362461},{"$f":"VLOOKUP($A141,cost_data!$A$5:$BB$215,G$1,0)","v":1170371.8799999999},{"$f":"VLOOKUP($A141,cost_data!$A$5:$BB$215,H$1,0)","v":31114.681229362461},{"$f":"VLOOKUP($A141,cost_data!$A$5:$BB$215,I$1,0)","v":682213.15},{"$f":"VLOOKUP($A141,cost_data!$A$5:$BB$215,J$1,0)","v":31114.681229362461},{"$f":"VLOOKUP($A141,cost_data!$A$5:$BB$215,K$1,0)","v":175620.3},{"$f":"VLOOKUP($A141,cost_data!$A$5:$BB$215,L$1,0)","v":31114.681229362461},{"$f":"VLOOKUP($A141,cost_data!$A$5:$BB$215,M$1,0)","v":251438.18999999901},{"$f":"VLOOKUP($A141,cost_data!$A$5:$BB$215,N$1,0)","v":31114.681229362461},{"$f":"VLOOKUP($A141,cost_data!$A$5:$BB$215,O$1,0)","v":231270.129999998},{"$f":"VLOOKUP($A141,cost_data!$A$5:$BB$215,P$1,0)","v":31114.681229362461},{"$f":"VLOOKUP($A141,cost_data!$A$5:$BB$215,Q$1,0)","v":200336.29},{"$f":"VLOOKUP($A141,cost_data!$A$5:$BB$215,R$1,0)","v":31114.681229362461},{"$f":"VLOOKUP($A141,cost_data!$A$5:$BB$215,S$1,0)","v":32106.959999999999},{"$f":"VLOOKUP($A141,cost_data!$A$5:$BB$215,T$1,0)","v":31114.681229362461},{"$f":"VLOOKUP($A141,cost_data!$A$5:$BB$215,U$1,0)","v":15780.84},{"$f":"VLOOKUP($A141,cost_data!$A$5:$BB$215,V$1,0)","v":31114.681229362461},{"$f":"VLOOKUP($A141,cost_data!$A$5:$BB$215,W$1,0)","v":15485.49},{"$f":"VLOOKUP($A141,cost_data!$A$5:$BB$215,X$1,0)","v":31114.681229362461},{"$f":"VLOOKUP($A141,cost_data!$A$5:$BB$215,Y$1,0)","v":490.14},{"$f":"VLOOKUP($A141,cost_data!$A$5:$BB$215,Z$1,0)","v":31114.681229362461},{"$f":"VLOOKUP($A141,cost_data!$A$5:$BB$215,AA$1,0)","v":3974556.1699999901},{"$f":"VLOOKUP($A141,cost_data!$A$5:$BB$215,AB$1,0)","v":1245815}]
["08F","NHS Havering",{"$f":"VLOOKUP($A142,cost_data!$A$5:$BB$215,C$1,0)","v":4637522.75},{"$f":"VLOOKUP($A142,cost_data!$A$5:$BB$215,D$1,0)","v":26732.738959154052},{"$f":"VLOOKUP($A142,cost_data!$A$5:$BB$215,E$1,0)","v":1530105.1200000099},{"$f":"VLOOKUP($A142,cost_data!$A$5:$BB$215,F$1,0)","v":26732.738959154052},{"$f":"VLOOKUP($A142,cost_data!$A$5:$BB$215,G$1,0)","v":1057671.57},{"$f":"VLOOKUP($A142,cost_data!$A$5:$BB$215,H$1,0)","v":26732.738959154052},{"$f":"VLOOKUP($A142,cost_data!$A$5:$BB$215,I$1,0)","v":825856.59999999905},{"$f":"VLOOKUP($A142,cost_data!$A$5:$BB$215,J$1,0)","v":26732.738959154052},{"$f":"VLOOKUP($A142,cost_data!$A$5:$BB$215,K$1,0)","v":336833.53000000102},{"$f":"VLOOKUP($A142,cost_data!$A$5:$BB$215,L$1,0)","v":26732.738959154052},{"$f":"VLOOKUP($A142,cost_data!$A$5:$BB$215,M$1,0)","v":290475.39000000199},{"$f":"VLOOKUP($A142,cost_data!$A$5:$BB$215,N$1,0)","v":26732.738959154052},{"$f":"VLOOKUP($A142,cost_data!$A$5:$BB$215,O$1,0)","v":283023.34999999899},{"$f":"VLOOKUP($A142,cost_data!$A$5:$BB$215,P$1,0)","v":26732.738959154052},{"$f":"VLOOKUP($A142,cost_data!$A$5:$BB$215,Q$1,0)","v":239300.46},{"$f":"VLOOKUP($A142,cost_data!$A$5:$BB$215,R$1,0)","v":26732.738959154052},{"$f":"VLOOKUP($A142,cost_data!$A$5:$BB$215,S$1,0)","v":20209.77},{"$f":"VLOOKUP($A142,cost_data!$A$5:$BB$215,T$1,0)","v":26732.738959154052},{"$f":"VLOOKUP($A142,cost_data!$A$5:$BB$215,U$1,0)","v":29645.8199999998},{"$f":"VLOOKUP($A142,cost_data!$A$5:$BB$215,V$1,0)","v":26732.738959154052},{"$f":"VLOOKUP($A142,cost_data!$A$5:$BB$215,W$1,0)","v":16789.09},{"$f":"VLOOKUP($A142,cost_data!$A$5:$BB$215,X$1,0)","v":26732.738959154052},{"$f":"VLOOKUP($A142,cost_data!$A$5:$BB$215,Y$1,0)","v":7612.05},{"$f":"VLOOKUP($A142,cost_data!$A$5:$BB$215,Z$1,0)","v":26732.738959154052},{"$f":"VLOOKUP($A142,cost_data!$A$5:$BB$215,AA$1,0)","v":4637522.75},{"$f":"VLOOKUP($A142,cost_data!$A$5:$BB$215,AB$1,0)","v":1355637}]
["08G","NHS Hillingdon",{"$f":"VLOOKUP($A143,cost_data!$A$5:$BB$215,C$1,0)","v":3895340.49},{"$f":"VLOOKUP($A143,cost_data!$A$5:$BB$215,D$1,0)","v":35943.674285000627},{"$f":"VLOOKUP($A143,cost_data!$A$5:$BB$215,E$1,0)","v":1257403.3899999999},{"$f":"VLOOKUP($A143,cost_data!$A$5:$BB$215,F$1,0)","v":35943.674285000627},{"$f":"VLOOKUP($A143,cost_data!$A$5:$BB$215,G$1,0)","v":993737.96},{"$f":"VLOOKUP($A143,cost_data!$A$5:$BB$215,H$1,0)","v":35943.674285000627},{"$f":"VLOOKUP($A143,cost_data!$A$5:$BB$215,I$1,0)","v":665626.72},{"$f":"VLOOKUP($A143,cost_data!$A$5:$BB$215,J$1,0)","v":35943.674285000627},{"$f":"VLOOKUP($A143,cost_data!$A$5:$BB$215,K$1,0)","v":199845.16999999899},{"$f":"VLOOKUP($A143,cost_data!$A$5:$BB$215,L$1,0)","v":35943.674285000627},{"$f":"VLOOKUP($A143,cost_data!$A$5:$BB$215,M$1,0)","v":260724.13},{"$f":"VLOOKUP($A143,cost_data!$A$5:$BB$215,N$1,0)","v":35943.674285000627},{"$f":"VLOOKUP($A143,cost_data!$A$5:$BB$215,O$1,0)","v":235665.109999999},{"$f":"VLOOKUP($A143,cost_data!$A$5:$BB$215,P$1,0)","v":35943.674285000627},{"$f":"VLOOKUP($A143,cost_data!$A$5:$BB$215,Q$1,0)","v":204975.83},{"$f":"VLOOKUP($A143,cost_data!$A$5:$BB$215,R$1,0)","v":35943.674285000627},{"$f":"VLOOKUP($A143,cost_data!$A$5:$BB$215,S$1,0)","v":35242.569999999898},{"$f":"VLOOKUP($A143,cost_data!$A$5:$BB$215,T$1,0)","v":35943.674285000627},{"$f":"VLOOKUP($A143,cost_data!$A$5:$BB$215,U$1,0)","v":21264.779999999901},{"$f":"VLOOKUP($A143,cost_data!$A$5:$BB$215,V$1,0)","v":35943.674285000627},{"$f":"VLOOKUP($A143,cost_data!$A$5:$BB$215,W$1,0)","v":15796.08},{"$f":"VLOOKUP($A143,cost_data!$A$5:$BB$215,X$1,0)","v":35943.674285000627},{"$f":"VLOOKUP($A143,cost_data!$A$5:$BB$215,Y$1,0)","v":5058.75},{"$f":"VLOOKUP($A143,cost_data!$A$5:$BB$215,Z$1,0)","v":35943.674285000627},{"$f":"VLOOKUP($A143,cost_data!$A$5:$BB$215,AA$1,0)","v":3895340.49},{"$f":"VLOOKUP($A143,cost_data!$A$5:$BB$215,AB$1,0)","v":1270143}]
["08H","NHS Islington",{"$f":"VLOOKUP($A144,cost_data!$A$5:$BB$215,C$1,0)","v":2414627.3999999901},{"$f":"VLOOKUP($A144,cost_data!$A$5:$BB$215,D$1,0)","v":30195.099459886707},{"$f":"VLOOKUP($A144,cost_data!$A$5:$BB$215,E$1,0)","v":713223.13},{"$f":"VLOOKUP($A144,cost_data!$A$5:$BB$215,F$1,0)","v":30195.099459886707},{"$f":"VLOOKUP($A144,cost_data!$A$5:$BB$215,G$1,0)","v":571617.02},{"$f":"VLOOKUP($A144,cost_data!$A$5:$BB$215,H$1,0)","v":30195.099459886707},{"$f":"VLOOKUP($A144,cost_data!$A$5:$BB$215,I$1,0)","v":405777.64},{"$f":"VLOOKUP($A144,cost_data!$A$5:$BB$215,J$1,0)","v":30195.099459886707},{"$f":"VLOOKUP($A144,cost_data!$A$5:$BB$215,K$1,0)","v":226183.3},{"$f":"VLOOKUP($A144,cost_data!$A$5:$BB$215,L$1,0)","v":30195.099459886707},{"$f":"VLOOKUP($A144,cost_data!$A$5:$BB$215,M$1,0)","v":142266.200000001},{"$f":"VLOOKUP($A144,cost_data!$A$5:$BB$215,N$1,0)","v":30195.099459886707},{"$f":"VLOOKUP($A144,cost_data!$A$5:$BB$215,O$1,0)","v":150566.149999999},{"$f":"VLOOKUP($A144,cost_data!$A$5:$BB$215,P$1,0)","v":30195.099459886707},{"$f":"VLOOKUP($A144,cost_data!$A$5:$BB$215,Q$1,0)","v":155944.670000001},{"$f":"VLOOKUP($A144,cost_data!$A$5:$BB$215,R$1,0)","v":30195.099459886707},{"$f":"VLOOKUP($A144,cost_data!$A$5:$BB$215,S$1,0)","v":19171.79},{"$f":"VLOOKUP($A144,cost_data!$A$5:$BB$215,T$1,0)","v":30195.099459886707},{"$f":"VLOOKUP($A144,cost_data!$A$5:$BB$215,U$1,0)","v":9432.17},{"$f":"VLOOKUP($A144,cost_data!$A$5:$BB$215,V$1,0)","v":30195.099459886707},{"$f":"VLOOKUP($A144,cost_data!$A$5:$BB$215,W$1,0)","v":16750.68},{"$f":"VLOOKUP($A144,cost_data!$A$5:$BB$215,X$1,0)","v":30195.099459886707},{"$f":"VLOOKUP($A144,cost_data!$A$5:$BB$215,Y$1,0)","v":3694.65},{"$f":"VLOOKUP($A144,cost_data!$A$5:$BB$215,Z$1,0)","v":30195.099459886707},{"$f":"VLOOKUP($A144,cost_data!$A$5:$BB$215,AA$1,0)","v":2414627.3999999901},{"$f":"VLOOKUP($A144,cost_data!$A$5:$BB$215,AB$1,0)","v":515202}]
["08J","NHS Kingston",{"$f":"VLOOKUP($A145,cost_data!$A$5:$BB$215,C$1,0)","v":2409493.42},{"$f":"VLOOKUP($A145,cost_data!$A$5:$BB$215,D$1,0)","v":24625.38032454361},{"$f":"VLOOKUP($A145,cost_data!$A$5:$BB$215,E$1,0)","v":684593.44000000297},{"$f":"VLOOKUP($A145,cost_data!$A$5:$BB$215,F$1,0)","v":24625.38032454361},{"$f":"VLOOKUP($A145,cost_data!$A$5:$BB$215,G$1,0)","v":709303.87},{"$f":"VLOOKUP($A145,cost_data!$A$5:$BB$215,H$1,0)","v":24625.38032454361},{"$f":"VLOOKUP($A145,cost_data!$A$5:$BB$215,I$1,0)","v":427016.63},{"$f":"VLOOKUP($A145,cost_data!$A$5:$BB$215,J$1,0)","v":24625.38032454361},{"$f":"VLOOKUP($A145,cost_data!$A$5:$BB$215,K$1,0)","v":83840.89},{"$f":"VLOOKUP($A145,cost_data!$A$5:$BB$215,L$1,0)","v":24625.38032454361},{"$f":"VLOOKUP($A145,cost_data!$A$5:$BB$215,M$1,0)","v":155668.82},{"$f":"VLOOKUP($A145,cost_data!$A$5:$BB$215,N$1,0)","v":24625.38032454361},{"$f":"VLOOKUP($A145,cost_data!$A$5:$BB$215,O$1,0)","v":148174.9},{"$f":"VLOOKUP($A145,cost_data!$A$5:$BB$215,P$1,0)","v":24625.38032454361},{"$f":"VLOOKUP($A145,cost_data!$A$5:$BB$215,Q$1,0)","v":143024.28000000099},{"$f":"VLOOKUP($A145,cost_data!$A$5:$BB$215,R$1,0)","v":24625.38032454361},{"$f":"VLOOKUP($A145,cost_data!$A$5:$BB$215,S$1,0)","v":24084.1},{"$f":"VLOOKUP($A145,cost_data!$A$5:$BB$215,T$1,0)","v":24625.38032454361},{"$f":"VLOOKUP($A145,cost_data!$A$5:$BB$215,U$1,0)","v":13665.21},{"$f":"VLOOKUP($A145,cost_data!$A$5:$BB$215,V$1,0)","v":24625.38032454361},{"$f":"VLOOKUP($A145,cost_data!$A$5:$BB$215,W$1,0)","v":9086.19},{"$f":"VLOOKUP($A145,cost_data!$A$5:$BB$215,X$1,0)","v":24625.38032454361},{"$f":"VLOOKUP($A145,cost_data!$A$5:$BB$215,Y$1,0)","v":11035.09},{"$f":"VLOOKUP($A145,cost_data!$A$5:$BB$215,Z$1,0)","v":24625.38032454361},{"$f":"VLOOKUP($A145,cost_data!$A$5:$BB$215,AA$1,0)","v":2409493.42},{"$f":"VLOOKUP($A145,cost_data!$A$5:$BB$215,AB$1,0)","v":697449}]
["08K","NHS Lambeth",{"$f":"VLOOKUP($A146,cost_data!$A$5:$BB$215,C$1,0)","v":3909208.46999999},{"$f":"VLOOKUP($A146,cost_data!$A$5:$BB$215,D$1,0)","v":58582.05723124517},{"$f":"VLOOKUP($A146,cost_data!$A$5:$BB$215,E$1,0)","v":1103742.56},{"$f":"VLOOKUP($A146,cost_data!$A$5:$BB$215,F$1,0)","v":58582.05723124517},{"$f":"VLOOKUP($A146,cost_data!$A$5:$BB$215,G$1,0)","v":1036164.83},{"$f":"VLOOKUP($A146,cost_data!$A$5:$BB$215,H$1,0)","v":58582.05723124517},{"$f":"VLOOKUP($A146,cost_data!$A$5:$BB$215,I$1,0)","v":638102.13},{"$f":"VLOOKUP($A146,cost_data!$A$5:$BB$215,J$1,0)","v":58582.05723124517},{"$f":"VLOOKUP($A146,cost_data!$A$5:$BB$215,K$1,0)","v":330071.49},{"$f":"VLOOKUP($A146,cost_data!$A$5:$BB$215,L$1,0)","v":58582.05723124517},{"$f":"VLOOKUP($A146,cost_data!$A$5:$BB$215,M$1,0)","v":226078.6},{"$f":"VLOOKUP($A146,cost_data!$A$5:$BB$215,N$1,0)","v":58582.05723124517},{"$f":"VLOOKUP($A146,cost_data!$A$5:$BB$215,O$1,0)","v":219835.08999999901},{"$f":"VLOOKUP($A146,cost_data!$A$5:$BB$215,P$1,0)","v":58582.05723124517},{"$f":"VLOOKUP($A146,cost_data!$A$5:$BB$215,Q$1,0)","v":238202.59},{"$f":"VLOOKUP($A146,cost_data!$A$5:$BB$215,R$1,0)","v":58582.05723124517},{"$f":"VLOOKUP($A146,cost_data!$A$5:$BB$215,S$1,0)","v":33483.769999999997},{"$f":"VLOOKUP($A146,cost_data!$A$5:$BB$215,T$1,0)","v":58582.05723124517},{"$f":"VLOOKUP($A146,cost_data!$A$5:$BB$215,U$1,0)","v":13192.64},{"$f":"VLOOKUP($A146,cost_data!$A$5:$BB$215,V$1,0)","v":58582.05723124517},{"$f":"VLOOKUP($A146,cost_data!$A$5:$BB$215,W$1,0)","v":28841.32},{"$f":"VLOOKUP($A146,cost_data!$A$5:$BB$215,X$1,0)","v":58582.05723124517},{"$f":"VLOOKUP($A146,cost_data!$A$5:$BB$215,Y$1,0)","v":41493.449999999997},{"$f":"VLOOKUP($A146,cost_data!$A$5:$BB$215,Z$1,0)","v":58582.05723124517},{"$f":"VLOOKUP($A146,cost_data!$A$5:$BB$215,AA$1,0)","v":3909208.46999999},{"$f":"VLOOKUP($A146,cost_data!$A$5:$BB$215,AB$1,0)","v":1168895}]
["08L","NHS Lewisham",{"$f":"VLOOKUP($A147,cost_data!$A$5:$BB$215,C$1,0)","v":4412083.8899999904},{"$f":"VLOOKUP($A147,cost_data!$A$5:$BB$215,D$1,0)","v":43188.946759259263},{"$f":"VLOOKUP($A147,cost_data!$A$5:$BB$215,E$1,0)","v":1369817.09},{"$f":"VLOOKUP($A147,cost_data!$A$5:$BB$215,F$1,0)","v":43188.946759259263},{"$f":"VLOOKUP($A147,cost_data!$A$5:$BB$215,G$1,0)","v":1142013.69},{"$f":"VLOOKUP($A147,cost_data!$A$5:$BB$215,H$1,0)","v":43188.946759259263},{"$f":"VLOOKUP($A147,cost_data!$A$5:$BB$215,I$1,0)","v":707374.46},{"$f":"VLOOKUP($A147,cost_data!$A$5:$BB$215,J$1,0)","v":43188.946759259263},{"$f":"VLOOKUP($A147,cost_data!$A$5:$BB$215,K$1,0)","v":400284.67},{"$f":"VLOOKUP($A147,cost_data!$A$5:$BB$215,L$1,0)","v":43188.946759259263},{"$f":"VLOOKUP($A147,cost_data!$A$5:$BB$215,M$1,0)","v":233143.25999999899},{"$f":"VLOOKUP($A147,cost_data!$A$5:$BB$215,N$1,0)","v":43188.946759259263},{"$f":"VLOOKUP($A147,cost_data!$A$5:$BB$215,O$1,0)","v":237653.729999998},{"$f":"VLOOKUP($A147,cost_data!$A$5:$BB$215,P$1,0)","v":43188.946759259263},{"$f":"VLOOKUP($A147,cost_data!$A$5:$BB$215,Q$1,0)","v":244946.40000000101},{"$f":"VLOOKUP($A147,cost_data!$A$5:$BB$215,R$1,0)","v":43188.946759259263},{"$f":"VLOOKUP($A147,cost_data!$A$5:$BB$215,S$1,0)","v":22259.83},{"$f":"VLOOKUP($A147,cost_data!$A$5:$BB$215,T$1,0)","v":43188.946759259263},{"$f":"VLOOKUP($A147,cost_data!$A$5:$BB$215,U$1,0)","v":12077.95},{"$f":"VLOOKUP($A147,cost_data!$A$5:$BB$215,V$1,0)","v":43188.946759259263},{"$f":"VLOOKUP($A147,cost_data!$A$5:$BB$215,W$1,0)","v":26408.05},{"$f":"VLOOKUP($A147,cost_data!$A$5:$BB$215,X$1,0)","v":43188.946759259263},{"$f":"VLOOKUP($A147,cost_data!$A$5:$BB$215,Y$1,0)","v":16104.76},{"$f":"VLOOKUP($A147,cost_data!$A$5:$BB$215,Z$1,0)","v":43188.946759259263},{"$f":"VLOOKUP($A147,cost_data!$A$5:$BB$215,AA$1,0)","v":4412083.8899999904},{"$f":"VLOOKUP($A147,cost_data!$A$5:$BB$215,AB$1,0)","v":919946}]
["08M","NHS Newham",{"$f":"VLOOKUP($A148,cost_data!$A$5:$BB$215,C$1,0)","v":4085575.22},{"$f":"VLOOKUP($A148,cost_data!$A$5:$BB$215,D$1,0)","v":57639.012421407759},{"$f":"VLOOKUP($A148,cost_data!$A$5:$BB$215,E$1,0)","v":1288297.4000000099},{"$f":"VLOOKUP($A148,cost_data!$A$5:$BB$215,F$1,0)","v":57639.012421407759},{"$f":"VLOOKUP($A148,cost_data!$A$5:$BB$215,G$1,0)","v":1090669.67},{"$f":"VLOOKUP($A148,cost_data!$A$5:$BB$215,H$1,0)","v":57639.012421407759},{"$f":"VLOOKUP($A148,cost_data!$A$5:$BB$215,I$1,0)","v":764653.00999999896},{"$f":"VLOOKUP($A148,cost_data!$A$5:$BB$215,J$1,0)","v":57639.012421407759},{"$f":"VLOOKUP($A148,cost_data!$A$5:$BB$215,K$1,0)","v":186435.87},{"$f":"VLOOKUP($A148,cost_data!$A$5:$BB$215,L$1,0)","v":57639.012421407759},{"$f":"VLOOKUP($A148,cost_data!$A$5:$BB$215,M$1,0)","v":218068.679999999},{"$f":"VLOOKUP($A148,cost_data!$A$5:$BB$215,N$1,0)","v":57639.012421407759},{"$f":"VLOOKUP($A148,cost_data!$A$5:$BB$215,O$1,0)","v":235300.12999999899},{"$f":"VLOOKUP($A148,cost_data!$A$5:$BB$215,P$1,0)","v":57639.012421407759},{"$f":"VLOOKUP($A148,cost_data!$A$5:$BB$215,Q$1,0)","v":242754.02},{"$f":"VLOOKUP($A148,cost_data!$A$5:$BB$215,R$1,0)","v":57639.012421407759},{"$f":"VLOOKUP($A148,cost_data!$A$5:$BB$215,S$1,0)","v":13328.2500000001},{"$f":"VLOOKUP($A148,cost_data!$A$5:$BB$215,T$1,0)","v":57639.012421407759},{"$f":"VLOOKUP($A148,cost_data!$A$5:$BB$215,U$1,0)","v":10053.48},{"$f":"VLOOKUP($A148,cost_data!$A$5:$BB$215,V$1,0)","v":57639.012421407759},{"$f":"VLOOKUP($A148,cost_data!$A$5:$BB$215,W$1,0)","v":31929.5},{"$f":"VLOOKUP($A148,cost_data!$A$5:$BB$215,X$1,0)","v":57639.012421407759},{"$f":"VLOOKUP($A148,cost_data!$A$5:$BB$215,Y$1,0)","v":4085.21},{"$f":"VLOOKUP($A148,cost_data!$A$5:$BB$215,Z$1,0)","v":57639.012421407759},{"$f":"VLOOKUP($A148,cost_data!$A$5:$BB$215,AA$1,0)","v":4085575.22},{"$f":"VLOOKUP($A148,cost_data!$A$5:$BB$215,AB$1,0)","v":1612803}]
["08N","NHS Redbridge",{"$f":"VLOOKUP($A149,cost_data!$A$5:$BB$215,C$1,0)","v":4401763.5199999996},{"$f":"VLOOKUP($A149,cost_data!$A$5:$BB$215,D$1,0)","v":39507.289821501567},{"$f":"VLOOKUP($A149,cost_data!$A$5:$BB$215,E$1,0)","v":1490295.0800000101},{"$f":"VLOOKUP($A149,cost_data!$A$5:$BB$215,F$1,0)","v":39507.289821501567},{"$f":"VLOOKUP($A149,cost_data!$A$5:$BB$215,G$1,0)","v":1160175.26},{"$f":"VLOOKUP($A149,cost_data!$A$5:$BB$215,H$1,0)","v":39507.289821501567},{"$f":"VLOOKUP($A149,cost_data!$A$5:$BB$215,I$1,0)","v":751846.799999999},{"$f":"VLOOKUP($A149,cost_data!$A$5:$BB$215,J$1,0)","v":39507.289821501567},{"$f":"VLOOKUP($A149,cost_data!$A$5:$BB$215,K$1,0)","v":218679.56999999899},{"$f":"VLOOKUP($A149,cost_data!$A$5:$BB$215,L$1,0)","v":39507.289821501567},{"$f":"VLOOKUP($A149,cost_data!$A$5:$BB$215,M$1,0)","v":259694.33},{"$f":"VLOOKUP($A149,cost_data!$A$5:$BB$215,N$1,0)","v":39507.289821501567},{"$f":"VLOOKUP($A149,cost_data!$A$5:$BB$215,O$1,0)","v":249022.79999999801},{"$f":"VLOOKUP($A149,cost_data!$A$5:$BB$215,P$1,0)","v":39507.289821501567},{"$f":"VLOOKUP($A149,cost_data!$A$5:$BB$215,Q$1,0)","v":196034.91},{"$f":"VLOOKUP($A149,cost_data!$A$5:$BB$215,R$1,0)","v":39507.289821501567},{"$f":"VLOOKUP($A149,cost_data!$A$5:$BB$215,S$1,0)","v":26084.65},{"$f":"VLOOKUP($A149,cost_data!$A$5:$BB$215,T$1,0)","v":39507.289821501567},{"$f":"VLOOKUP($A149,cost_data!$A$5:$BB$215,U$1,0)","v":17333.55},{"$f":"VLOOKUP($A149,cost_data!$A$5:$BB$215,V$1,0)","v":39507.289821501567},{"$f":"VLOOKUP($A149,cost_data!$A$5:$BB$215,W$1,0)","v":21096.87},{"$f":"VLOOKUP($A149,cost_data!$A$5:$BB$215,X$1,0)","v":39507.289821501567},{"$f":"VLOOKUP($A149,cost_data!$A$5:$BB$215,Y$1,0)","v":11499.7},{"$f":"VLOOKUP($A149,cost_data!$A$5:$BB$215,Z$1,0)","v":39507.289821501567},{"$f":"VLOOKUP($A149,cost_data!$A$5:$BB$215,AA$1,0)","v":4401763.5199999996},{"$f":"VLOOKUP($A149,cost_data!$A$5:$BB$215,AB$1,0)","v":1003259}]
["08P","NHS Richmond",{"$f":"VLOOKUP($A150,cost_data!$A$5:$BB$215,C$1,0)","v":2408630.48},{"$f":"VLOOKUP($A150,cost_data!$A$5:$BB$215,D$1,0)","v":24123.733460483971},{"$f":"VLOOKUP($A150,cost_data!$A$5:$BB$215,E$1,0)","v":782277.69999999704},{"$f":"VLOOKUP($A150,cost_data!$A$5:$BB$215,F$1,0)","v":24123.733460483971},{"$f":"VLOOKUP($A150,cost_data!$A$5:$BB$215,G$1,0)","v":601171.19999999902},{"$f":"VLOOKUP($A150,cost_data!$A$5:$BB$215,H$1,0)","v":24123.733460483971},{"$f":"VLOOKUP($A150,cost_data!$A$5:$BB$215,I$1,0)","v":413090.68},{"$f":"VLOOKUP($A150,cost_data!$A$5:$BB$215,J$1,0)","v":24123.733460483971},{"$f":"VLOOKUP($A150,cost_data!$A$5:$BB$215,K$1,0)","v":84473.17},{"$f":"VLOOKUP($A150,cost_data!$A$5:$BB$215,L$1,0)","v":24123.733460483971},{"$f":"VLOOKUP($A150,cost_data!$A$5:$BB$215,M$1,0)","v":171321.4},{"$f":"VLOOKUP($A150,cost_data!$A$5:$BB$215,N$1,0)","v":24123.733460483971},{"$f":"VLOOKUP($A150,cost_data!$A$5:$BB$215,O$1,0)","v":153975.25},{"$f":"VLOOKUP($A150,cost_data!$A$5:$BB$215,P$1,0)","v":24123.733460483971},{"$f":"VLOOKUP($A150,cost_data!$A$5:$BB$215,Q$1,0)","v":141402.76999999999},{"$f":"VLOOKUP($A150,cost_data!$A$5:$BB$215,R$1,0)","v":24123.733460483971},{"$f":"VLOOKUP($A150,cost_data!$A$5:$BB$215,S$1,0)","v":30017.09},{"$f":"VLOOKUP($A150,cost_data!$A$5:$BB$215,T$1,0)","v":24123.733460483971},{"$f":"VLOOKUP($A150,cost_data!$A$5:$BB$215,U$1,0)","v":14190.67},{"$f":"VLOOKUP($A150,cost_data!$A$5:$BB$215,V$1,0)","v":24123.733460483971},{"$f":"VLOOKUP($A150,cost_data!$A$5:$BB$215,W$1,0)","v":14407.52},{"$f":"VLOOKUP($A150,cost_data!$A$5:$BB$215,X$1,0)","v":24123.733460483971},{"$f":"VLOOKUP($A150,cost_data!$A$5:$BB$215,Y$1,0)","v":2303.0300000000002},{"$f":"VLOOKUP($A150,cost_data!$A$5:$BB$215,Z$1,0)","v":24123.733460483971},{"$f":"VLOOKUP($A150,cost_data!$A$5:$BB$215,AA$1,0)","v":2408630.48},{"$f":"VLOOKUP($A150,cost_data!$A$5:$BB$215,AB$1,0)","v":849157}]
["08Q","NHS Southwark",{"$f":"VLOOKUP($A151,cost_data!$A$5:$BB$215,C$1,0)","v":3866621.8599999901},{"$f":"VLOOKUP($A151,cost_data!$A$5:$BB$215,D$1,0)","v":49848.51272615762},{"$f":"VLOOKUP($A151,cost_data!$A$5:$BB$215,E$1,0)","v":1223463.32},{"$f":"VLOOKUP($A151,cost_data!$A$5:$BB$215,F$1,0)","v":49848.51272615762},{"$f":"VLOOKUP($A151,cost_data!$A$5:$BB$215,G$1,0)","v":969386.83},{"$f":"VLOOKUP($A151,cost_data!$A$5:$BB$215,H$1,0)","v":49848.51272615762},{"$f":"VLOOKUP($A151,cost_data!$A$5:$BB$215,I$1,0)","v":593037.65},{"$f":"VLOOKUP($A151,cost_data!$A$5:$BB$215,J$1,0)","v":49848.51272615762},{"$f":"VLOOKUP($A151,cost_data!$A$5:$BB$215,K$1,0)","v":325509.21999999898},{"$f":"VLOOKUP($A151,cost_data!$A$5:$BB$215,L$1,0)","v":49848.51272615762},{"$f":"VLOOKUP($A151,cost_data!$A$5:$BB$215,M$1,0)","v":189779.66},{"$f":"VLOOKUP($A151,cost_data!$A$5:$BB$215,N$1,0)","v":49848.51272615762},{"$f":"VLOOKUP($A151,cost_data!$A$5:$BB$215,O$1,0)","v":218353.93},{"$f":"VLOOKUP($A151,cost_data!$A$5:$BB$215,P$1,0)","v":49848.51272615762},{"$f":"VLOOKUP($A151,cost_data!$A$5:$BB$215,Q$1,0)","v":240494.040000001},{"$f":"VLOOKUP($A151,cost_data!$A$5:$BB$215,R$1,0)","v":49848.51272615762},{"$f":"VLOOKUP($A151,cost_data!$A$5:$BB$215,S$1,0)","v":17673.580000000002},{"$f":"VLOOKUP($A151,cost_data!$A$5:$BB$215,T$1,0)","v":49848.51272615762},{"$f":"VLOOKUP($A151,cost_data!$A$5:$BB$215,U$1,0)","v":11705.47},{"$f":"VLOOKUP($A151,cost_data!$A$5:$BB$215,V$1,0)","v":49848.51272615762},{"$f":"VLOOKUP($A151,cost_data!$A$5:$BB$215,W$1,0)","v":27247.52},{"$f":"VLOOKUP($A151,cost_data!$A$5:$BB$215,X$1,0)","v":49848.51272615762},{"$f":"VLOOKUP($A151,cost_data!$A$5:$BB$215,Y$1,0)","v":49970.64},{"$f":"VLOOKUP($A151,cost_data!$A$5:$BB$215,Z$1,0)","v":49848.51272615762},{"$f":"VLOOKUP($A151,cost_data!$A$5:$BB$215,AA$1,0)","v":3866621.8599999901},{"$f":"VLOOKUP($A151,cost_data!$A$5:$BB$215,AB$1,0)","v":998188}]
["08R","NHS Merton",{"$f":"VLOOKUP($A152,cost_data!$A$5:$BB$215,C$1,0)","v":3011529.62},{"$f":"VLOOKUP($A152,cost_data!$A$5:$BB$215,D$1,0)","v":29568.693999456966},{"$f":"VLOOKUP($A152,cost_data!$A$5:$BB$215,E$1,0)","v":1024804.57},{"$f":"VLOOKUP($A152,cost_data!$A$5:$BB$215,F$1,0)","v":29568.693999456966},{"$f":"VLOOKUP($A152,cost_data!$A$5:$BB$215,G$1,0)","v":838953.73},{"$f":"VLOOKUP($A152,cost_data!$A$5:$BB$215,H$1,0)","v":29568.693999456966},{"$f":"VLOOKUP($A152,cost_data!$A$5:$BB$215,I$1,0)","v":511040.83},{"$f":"VLOOKUP($A152,cost_data!$A$5:$BB$215,J$1,0)","v":29568.693999456966},{"$f":"VLOOKUP($A152,cost_data!$A$5:$BB$215,K$1,0)","v":79939.879999999903},{"$f":"VLOOKUP($A152,cost_data!$A$5:$BB$215,L$1,0)","v":29568.693999456966},{"$f":"VLOOKUP($A152,cost_data!$A$5:$BB$215,M$1,0)","v":168081.81},{"$f":"VLOOKUP($A152,cost_data!$A$5:$BB$215,N$1,0)","v":29568.693999456966},{"$f":"VLOOKUP($A152,cost_data!$A$5:$BB$215,O$1,0)","v":174861.11999999901},{"$f":"VLOOKUP($A152,cost_data!$A$5:$BB$215,P$1,0)","v":29568.693999456966},{"$f":"VLOOKUP($A152,cost_data!$A$5:$BB$215,Q$1,0)","v":152473.22},{"$f":"VLOOKUP($A152,cost_data!$A$5:$BB$215,R$1,0)","v":29568.693999456966},{"$f":"VLOOKUP($A152,cost_data!$A$5:$BB$215,S$1,0)","v":31714.48},{"$f":"VLOOKUP($A152,cost_data!$A$5:$BB$215,T$1,0)","v":29568.693999456966},{"$f":"VLOOKUP($A152,cost_data!$A$5:$BB$215,U$1,0)","v":13542.29},{"$f":"VLOOKUP($A152,cost_data!$A$5:$BB$215,V$1,0)","v":29568.693999456966},{"$f":"VLOOKUP($A152,cost_data!$A$5:$BB$215,W$1,0)","v":12555.1},{"$f":"VLOOKUP($A152,cost_data!$A$5:$BB$215,X$1,0)","v":29568.693999456966},{"$f":"VLOOKUP($A152,cost_data!$A$5:$BB$215,Y$1,0)","v":3562.59},{"$f":"VLOOKUP($A152,cost_data!$A$5:$BB$215,Z$1,0)","v":29568.693999456966},{"$f":"VLOOKUP($A152,cost_data!$A$5:$BB$215,AA$1,0)","v":3011529.62},{"$f":"VLOOKUP($A152,cost_data!$A$5:$BB$215,AB$1,0)","v":814401}]
["08T","NHS Sutton",{"$f":"VLOOKUP($A153,cost_data!$A$5:$BB$215,C$1,0)","v":3015333.25999999},{"$f":"VLOOKUP($A153,cost_data!$A$5:$BB$215,D$1,0)","v":21751.251892395481},{"$f":"VLOOKUP($A153,cost_data!$A$5:$BB$215,E$1,0)","v":990829.50000000396},{"$f":"VLOOKUP($A153,cost_data!$A$5:$BB$215,F$1,0)","v":21751.251892395481},{"$f":"VLOOKUP($A153,cost_data!$A$5:$BB$215,G$1,0)","v":858651.12999999896},{"$f":"VLOOKUP($A153,cost_data!$A$5:$BB$215,H$1,0)","v":21751.251892395481},{"$f":"VLOOKUP($A153,cost_data!$A$5:$BB$215,I$1,0)","v":496238.16},{"$f":"VLOOKUP($A153,cost_data!$A$5:$BB$215,J$1,0)","v":21751.251892395481},{"$f":"VLOOKUP($A153,cost_data!$A$5:$BB$215,K$1,0)","v":76552.22},{"$f":"VLOOKUP($A153,cost_data!$A$5:$BB$215,L$1,0)","v":21751.251892395481},{"$f":"VLOOKUP($A153,cost_data!$A$5:$BB$215,M$1,0)","v":179135.46},{"$f":"VLOOKUP($A153,cost_data!$A$5:$BB$215,N$1,0)","v":21751.251892395481},{"$f":"VLOOKUP($A153,cost_data!$A$5:$BB$215,O$1,0)","v":173726.519999999},{"$f":"VLOOKUP($A153,cost_data!$A$5:$BB$215,P$1,0)","v":21751.251892395481},{"$f":"VLOOKUP($A153,cost_data!$A$5:$BB$215,Q$1,0)","v":178041.4},{"$f":"VLOOKUP($A153,cost_data!$A$5:$BB$215,R$1,0)","v":21751.251892395481},{"$f":"VLOOKUP($A153,cost_data!$A$5:$BB$215,S$1,0)","v":30673.779999999901},{"$f":"VLOOKUP($A153,cost_data!$A$5:$BB$215,T$1,0)","v":21751.251892395481},{"$f":"VLOOKUP($A153,cost_data!$A$5:$BB$215,U$1,0)","v":15812.71},{"$f":"VLOOKUP($A153,cost_data!$A$5:$BB$215,V$1,0)","v":21751.251892395481},{"$f":"VLOOKUP($A153,cost_data!$A$5:$BB$215,W$1,0)","v":13356.15},{"$f":"VLOOKUP($A153,cost_data!$A$5:$BB$215,X$1,0)","v":21751.251892395481},{"$f":"VLOOKUP($A153,cost_data!$A$5:$BB$215,Y$1,0)","v":2316.23},{"$f":"VLOOKUP($A153,cost_data!$A$5:$BB$215,Z$1,0)","v":21751.251892395481},{"$f":"VLOOKUP($A153,cost_data!$A$5:$BB$215,AA$1,0)","v":3015333.25999999},{"$f":"VLOOKUP($A153,cost_data!$A$5:$BB$215,AB$1,0)","v":888000}]
["08V","NHS Tower Hamlets",{"$f":"VLOOKUP($A154,cost_data!$A$5:$BB$215,C$1,0)","v":2915078.67},{"$f":"VLOOKUP($A154,cost_data!$A$5:$BB$215,D$1,0)","v":44591.313857209811},{"$f":"VLOOKUP($A154,cost_data!$A$5:$BB$215,E$1,0)","v":913438.38000000105},{"$f":"VLOOKUP($A154,cost_data!$A$5:$BB$215,F$1,0)","v":44591.313857209811},{"$f":"VLOOKUP($A154,cost_data!$A$5:$BB$215,G$1,0)","v":641719.53},{"$f":"VLOOKUP($A154,cost_data!$A$5:$BB$215,H$1,0)","v":44591.313857209811},{"$f":"VLOOKUP($A154,cost_data!$A$5:$BB$215,I$1,0)","v":562719.66},{"$f":"VLOOKUP($A154,cost_data!$A$5:$BB$215,J$1,0)","v":44591.313857209811},{"$f":"VLOOKUP($A154,cost_data!$A$5:$BB$215,K$1,0)","v":267193.42},{"$f":"VLOOKUP($A154,cost_data!$A$5:$BB$215,L$1,0)","v":44591.313857209811},{"$f":"VLOOKUP($A154,cost_data!$A$5:$BB$215,M$1,0)","v":154475.03},{"$f":"VLOOKUP($A154,cost_data!$A$5:$BB$215,N$1,0)","v":44591.313857209811},{"$f":"VLOOKUP($A154,cost_data!$A$5:$BB$215,O$1,0)","v":164550.66},{"$f":"VLOOKUP($A154,cost_data!$A$5:$BB$215,P$1,0)","v":44591.313857209811},{"$f":"VLOOKUP($A154,cost_data!$A$5:$BB$215,Q$1,0)","v":158810.01999999999},{"$f":"VLOOKUP($A154,cost_data!$A$5:$BB$215,R$1,0)","v":44591.313857209811},{"$f":"VLOOKUP($A154,cost_data!$A$5:$BB$215,S$1,0)","v":11829.46},{"$f":"VLOOKUP($A154,cost_data!$A$5:$BB$215,T$1,0)","v":44591.313857209811},{"$f":"VLOOKUP($A154,cost_data!$A$5:$BB$215,U$1,0)","v":7290.3400000000101},{"$f":"VLOOKUP($A154,cost_data!$A$5:$BB$215,V$1,0)","v":44591.313857209811},{"$f":"VLOOKUP($A154,cost_data!$A$5:$BB$215,W$1,0)","v":22103.09},{"$f":"VLOOKUP($A154,cost_data!$A$5:$BB$215,X$1,0)","v":44591.313857209811},{"$f":"VLOOKUP($A154,cost_data!$A$5:$BB$215,Y$1,0)","v":10949.08},{"$f":"VLOOKUP($A154,cost_data!$A$5:$BB$215,Z$1,0)","v":44591.313857209811},{"$f":"VLOOKUP($A154,cost_data!$A$5:$BB$215,AA$1,0)","v":2915078.67},{"$f":"VLOOKUP($A154,cost_data!$A$5:$BB$215,AB$1,0)","v":1134642}]
["08W","NHS Waltham Forest",{"$f":"VLOOKUP($A155,cost_data!$A$5:$BB$215,C$1,0)","v":4114453.49},{"$f":"VLOOKUP($A155,cost_data!$A$5:$BB$215,D$1,0)","v":38869.633714060656},{"$f":"VLOOKUP($A155,cost_data!$A$5:$BB$215,E$1,0)","v":1243284.24000001},{"$f":"VLOOKUP($A155,cost_data!$A$5:$BB$215,F$1,0)","v":38869.633714060656},{"$f":"VLOOKUP($A155,cost_data!$A$5:$BB$215,G$1,0)","v":1092298.45},{"$f":"VLOOKUP($A155,cost_data!$A$5:$BB$215,H$1,0)","v":38869.633714060656},{"$f":"VLOOKUP($A155,cost_data!$A$5:$BB$215,I$1,0)","v":767134.18999999901},{"$f":"VLOOKUP($A155,cost_data!$A$5:$BB$215,J$1,0)","v":38869.633714060656},{"$f":"VLOOKUP($A155,cost_data!$A$5:$BB$215,K$1,0)","v":275119.59999999899},{"$f":"VLOOKUP($A155,cost_data!$A$5:$BB$215,L$1,0)","v":38869.633714060656},{"$f":"VLOOKUP($A155,cost_data!$A$5:$BB$215,M$1,0)","v":243835.36},{"$f":"VLOOKUP($A155,cost_data!$A$5:$BB$215,N$1,0)","v":38869.633714060656},{"$f":"VLOOKUP($A155,cost_data!$A$5:$BB$215,O$1,0)","v":219947.51999999801},{"$f":"VLOOKUP($A155,cost_data!$A$5:$BB$215,P$1,0)","v":38869.633714060656},{"$f":"VLOOKUP($A155,cost_data!$A$5:$BB$215,Q$1,0)","v":211926.72},{"$f":"VLOOKUP($A155,cost_data!$A$5:$BB$215,R$1,0)","v":38869.633714060656},{"$f":"VLOOKUP($A155,cost_data!$A$5:$BB$215,S$1,0)","v":18066.450000000099},{"$f":"VLOOKUP($A155,cost_data!$A$5:$BB$215,T$1,0)","v":38869.633714060656},{"$f":"VLOOKUP($A155,cost_data!$A$5:$BB$215,U$1,0)","v":16722.8},{"$f":"VLOOKUP($A155,cost_data!$A$5:$BB$215,V$1,0)","v":38869.633714060656},{"$f":"VLOOKUP($A155,cost_data!$A$5:$BB$215,W$1,0)","v":19918.86},{"$f":"VLOOKUP($A155,cost_data!$A$5:$BB$215,X$1,0)","v":38869.633714060656},{"$f":"VLOOKUP($A155,cost_data!$A$5:$BB$215,Y$1,0)","v":6199.3},{"$f":"VLOOKUP($A155,cost_data!$A$5:$BB$215,Z$1,0)","v":38869.633714060656},{"$f":"VLOOKUP($A155,cost_data!$A$5:$BB$215,AA$1,0)","v":4114453.49},{"$f":"VLOOKUP($A155,cost_data!$A$5:$BB$215,AB$1,0)","v":931298}]
["08X","NHS Wandsworth",{"$f":"VLOOKUP($A156,cost_data!$A$5:$BB$215,C$1,0)","v":4061518.14},{"$f":"VLOOKUP($A156,cost_data!$A$5:$BB$215,D$1,0)","v":55692.189892802446},{"$f":"VLOOKUP($A156,cost_data!$A$5:$BB$215,E$1,0)","v":1404760.61},{"$f":"VLOOKUP($A156,cost_data!$A$5:$BB$215,F$1,0)","v":55692.189892802446},{"$f":"VLOOKUP($A156,cost_data!$A$5:$BB$215,G$1,0)","v":1021119.51},{"$f":"VLOOKUP($A156,cost_data!$A$5:$BB$215,H$1,0)","v":55692.189892802446},{"$f":"VLOOKUP($A156,cost_data!$A$5:$BB$215,I$1,0)","v":687711.31999999902},{"$f":"VLOOKUP($A156,cost_data!$A$5:$BB$215,J$1,0)","v":55692.189892802446},{"$f":"VLOOKUP($A156,cost_data!$A$5:$BB$215,K$1,0)","v":213179.139999999},{"$f":"VLOOKUP($A156,cost_data!$A$5:$BB$215,L$1,0)","v":55692.189892802446},{"$f":"VLOOKUP($A156,cost_data!$A$5:$BB$215,M$1,0)","v":207155.74},{"$f":"VLOOKUP($A156,cost_data!$A$5:$BB$215,N$1,0)","v":55692.189892802446},{"$f":"VLOOKUP($A156,cost_data!$A$5:$BB$215,O$1,0)","v":226419.56999999899},{"$f":"VLOOKUP($A156,cost_data!$A$5:$BB$215,P$1,0)","v":55692.189892802446},{"$f":"VLOOKUP($A156,cost_data!$A$5:$BB$215,Q$1,0)","v":214946.7},{"$f":"VLOOKUP($A156,cost_data!$A$5:$BB$215,R$1,0)","v":55692.189892802446},{"$f":"VLOOKUP($A156,cost_data!$A$5:$BB$215,S$1,0)","v":32248.04},{"$f":"VLOOKUP($A156,cost_data!$A$5:$BB$215,T$1,0)","v":55692.189892802446},{"$f":"VLOOKUP($A156,cost_data!$A$5:$BB$215,U$1,0)","v":16977.73},{"$f":"VLOOKUP($A156,cost_data!$A$5:$BB$215,V$1,0)","v":55692.189892802446},{"$f":"VLOOKUP($A156,cost_data!$A$5:$BB$215,W$1,0)","v":23666.66},{"$f":"VLOOKUP($A156,cost_data!$A$5:$BB$215,X$1,0)","v":55692.189892802446},{"$f":"VLOOKUP($A156,cost_data!$A$5:$BB$215,Y$1,0)","v":13333.12},{"$f":"VLOOKUP($A156,cost_data!$A$5:$BB$215,Z$1,0)","v":55692.189892802446},{"$f":"VLOOKUP($A156,cost_data!$A$5:$BB$215,AA$1,0)","v":4061518.14},{"$f":"VLOOKUP($A156,cost_data!$A$5:$BB$215,AB$1,0)","v":1184637}]
["08Y","NHS West London (K&C & Qpp)",{"$f":"VLOOKUP($A157,cost_data!$A$5:$BB$215,C$1,0)","v":3066699.6799999899},{"$f":"VLOOKUP($A157,cost_data!$A$5:$BB$215,D$1,0)","v":28735.574510787756},{"$f":"VLOOKUP($A157,cost_data!$A$5:$BB$215,E$1,0)","v":1202277.56},{"$f":"VLOOKUP($A157,cost_data!$A$5:$BB$215,F$1,0)","v":28735.574510787756},{"$f":"VLOOKUP($A157,cost_data!$A$5:$BB$215,G$1,0)","v":761290.3},{"$f":"VLOOKUP($A157,cost_data!$A$5:$BB$215,H$1,0)","v":28735.574510787756},{"$f":"VLOOKUP($A157,cost_data!$A$5:$BB$215,I$1,0)","v":399779.79},{"$f":"VLOOKUP($A157,cost_data!$A$5:$BB$215,J$1,0)","v":28735.574510787756},{"$f":"VLOOKUP($A157,cost_data!$A$5:$BB$215,K$1,0)","v":151897.97},{"$f":"VLOOKUP($A157,cost_data!$A$5:$BB$215,L$1,0)","v":28735.574510787756},{"$f":"VLOOKUP($A157,cost_data!$A$5:$BB$215,M$1,0)","v":159895.12},{"$f":"VLOOKUP($A157,cost_data!$A$5:$BB$215,N$1,0)","v":28735.574510787756},{"$f":"VLOOKUP($A157,cost_data!$A$5:$BB$215,O$1,0)","v":172857.709999999},{"$f":"VLOOKUP($A157,cost_data!$A$5:$BB$215,P$1,0)","v":28735.574510787756},{"$f":"VLOOKUP($A157,cost_data!$A$5:$BB$215,Q$1,0)","v":163052.35},{"$f":"VLOOKUP($A157,cost_data!$A$5:$BB$215,R$1,0)","v":28735.574510787756},{"$f":"VLOOKUP($A157,cost_data!$A$5:$BB$215,S$1,0)","v":24307.89},{"$f":"VLOOKUP($A157,cost_data!$A$5:$BB$215,T$1,0)","v":28735.574510787756},{"$f":"VLOOKUP($A157,cost_data!$A$5:$BB$215,U$1,0)","v":11623.95},{"$f":"VLOOKUP($A157,cost_data!$A$5:$BB$215,V$1,0)","v":28735.574510787756},{"$f":"VLOOKUP($A157,cost_data!$A$5:$BB$215,W$1,0)","v":11059.63},{"$f":"VLOOKUP($A157,cost_data!$A$5:$BB$215,X$1,0)","v":28735.574510787756},{"$f":"VLOOKUP($A157,cost_data!$A$5:$BB$215,Y$1,0)","v":8657.41},{"$f":"VLOOKUP($A157,cost_data!$A$5:$BB$215,Z$1,0)","v":28735.574510787756},{"$f":"VLOOKUP($A157,cost_data!$A$5:$BB$215,AA$1,0)","v":3066699.6799999899},{"$f":"VLOOKUP($A157,cost_data!$A$5:$BB$215,AB$1,0)","v":605161}]
["09A","NHS Central London (Westminster)",{"$f":"VLOOKUP($A158,cost_data!$A$5:$BB$215,C$1,0)","v":2463472.2599999998},{"$f":"VLOOKUP($A158,cost_data!$A$5:$BB$215,D$1,0)","v":25528.630816682311},{"$f":"VLOOKUP($A158,cost_data!$A$5:$BB$215,E$1,0)","v":963158.79000000202},{"$f":"VLOOKUP($A158,cost_data!$A$5:$BB$215,F$1,0)","v":25528.630816682311},{"$f":"VLOOKUP($A158,cost_data!$A$5:$BB$215,G$1,0)","v":560611.72},{"$f":"VLOOKUP($A158,cost_data!$A$5:$BB$215,H$1,0)","v":25528.630816682311},{"$f":"VLOOKUP($A158,cost_data!$A$5:$BB$215,I$1,0)","v":319918.65000000002},{"$f":"VLOOKUP($A158,cost_data!$A$5:$BB$215,J$1,0)","v":25528.630816682311},{"$f":"VLOOKUP($A158,cost_data!$A$5:$BB$215,K$1,0)","v":168103.25},{"$f":"VLOOKUP($A158,cost_data!$A$5:$BB$215,L$1,0)","v":25528.630816682311},{"$f":"VLOOKUP($A158,cost_data!$A$5:$BB$215,M$1,0)","v":129678.33},{"$f":"VLOOKUP($A158,cost_data!$A$5:$BB$215,N$1,0)","v":25528.630816682311},{"$f":"VLOOKUP($A158,cost_data!$A$5:$BB$215,O$1,0)","v":139439.80999999901},{"$f":"VLOOKUP($A158,cost_data!$A$5:$BB$215,P$1,0)","v":25528.630816682311},{"$f":"VLOOKUP($A158,cost_data!$A$5:$BB$215,Q$1,0)","v":127968.38},{"$f":"VLOOKUP($A158,cost_data!$A$5:$BB$215,R$1,0)","v":25528.630816682311},{"$f":"VLOOKUP($A158,cost_data!$A$5:$BB$215,S$1,0)","v":21222.240000000002},{"$f":"VLOOKUP($A158,cost_data!$A$5:$BB$215,T$1,0)","v":25528.630816682311},{"$f":"VLOOKUP($A158,cost_data!$A$5:$BB$215,U$1,0)","v":10481.65},{"$f":"VLOOKUP($A158,cost_data!$A$5:$BB$215,V$1,0)","v":25528.630816682311},{"$f":"VLOOKUP($A158,cost_data!$A$5:$BB$215,W$1,0)","v":13071.76},{"$f":"VLOOKUP($A158,cost_data!$A$5:$BB$215,X$1,0)","v":25528.630816682311},{"$f":"VLOOKUP($A158,cost_data!$A$5:$BB$215,Y$1,0)","v":9817.68},{"$f":"VLOOKUP($A158,cost_data!$A$5:$BB$215,Z$1,0)","v":25528.630816682311},{"$f":"VLOOKUP($A158,cost_data!$A$5:$BB$215,AA$1,0)","v":2463472.2599999998},{"$f":"VLOOKUP($A158,cost_data!$A$5:$BB$215,AB$1,0)","v":576666}]
["09C","NHS Ashford",{"$f":"VLOOKUP($A159,cost_data!$A$5:$BB$215,C$1,0)","v":2451311.62},{"$f":"VLOOKUP($A159,cost_data!$A$5:$BB$215,D$1,0)","v":13182.883560907429},{"$f":"VLOOKUP($A159,cost_data!$A$5:$BB$215,E$1,0)","v":697717.09000000299},{"$f":"VLOOKUP($A159,cost_data!$A$5:$BB$215,F$1,0)","v":13182.883560907429},{"$f":"VLOOKUP($A159,cost_data!$A$5:$BB$215,G$1,0)","v":591242.51},{"$f":"VLOOKUP($A159,cost_data!$A$5:$BB$215,H$1,0)","v":13182.883560907429},{"$f":"VLOOKUP($A159,cost_data!$A$5:$BB$215,I$1,0)","v":429137.799999999},{"$f":"VLOOKUP($A159,cost_data!$A$5:$BB$215,J$1,0)","v":13182.883560907429},{"$f":"VLOOKUP($A159,cost_data!$A$5:$BB$215,K$1,0)","v":266019.93999999901},{"$f":"VLOOKUP($A159,cost_data!$A$5:$BB$215,L$1,0)","v":13182.883560907429},{"$f":"VLOOKUP($A159,cost_data!$A$5:$BB$215,M$1,0)","v":172012.49},{"$f":"VLOOKUP($A159,cost_data!$A$5:$BB$215,N$1,0)","v":13182.883560907429},{"$f":"VLOOKUP($A159,cost_data!$A$5:$BB$215,O$1,0)","v":113411.3},{"$f":"VLOOKUP($A159,cost_data!$A$5:$BB$215,P$1,0)","v":13182.883560907429},{"$f":"VLOOKUP($A159,cost_data!$A$5:$BB$215,Q$1,0)","v":141384.19},{"$f":"VLOOKUP($A159,cost_data!$A$5:$BB$215,R$1,0)","v":13182.883560907429},{"$f":"VLOOKUP($A159,cost_data!$A$5:$BB$215,S$1,0)","v":15526.9},{"$f":"VLOOKUP($A159,cost_data!$A$5:$BB$215,T$1,0)","v":13182.883560907429},{"$f":"VLOOKUP($A159,cost_data!$A$5:$BB$215,U$1,0)","v":10103.57},{"$f":"VLOOKUP($A159,cost_data!$A$5:$BB$215,V$1,0)","v":13182.883560907429},{"$f":"VLOOKUP($A159,cost_data!$A$5:$BB$215,W$1,0)","v":6314.45},{"$f":"VLOOKUP($A159,cost_data!$A$5:$BB$215,X$1,0)","v":13182.883560907429},{"$f":"VLOOKUP($A159,cost_data!$A$5:$BB$215,Y$1,0)","v":8441.3799999999992},{"$f":"VLOOKUP($A159,cost_data!$A$5:$BB$215,Z$1,0)","v":13182.883560907429},{"$f":"VLOOKUP($A159,cost_data!$A$5:$BB$215,AA$1,0)","v":2451311.62},{"$f":"VLOOKUP($A159,cost_data!$A$5:$BB$215,AB$1,0)","v":656893}]
["09D","NHS Brighton and Hove",{"$f":"VLOOKUP($A160,cost_data!$A$5:$BB$215,C$1,0)","v":4260729.46},{"$f":"VLOOKUP($A160,cost_data!$A$5:$BB$215,D$1,0)","v":34600.230282095567},{"$f":"VLOOKUP($A160,cost_data!$A$5:$BB$215,E$1,0)","v":1222914.29},{"$f":"VLOOKUP($A160,cost_data!$A$5:$BB$215,F$1,0)","v":34600.230282095567},{"$f":"VLOOKUP($A160,cost_data!$A$5:$BB$215,G$1,0)","v":1076503.1299999999},{"$f":"VLOOKUP($A160,cost_data!$A$5:$BB$215,H$1,0)","v":34600.230282095567},{"$f":"VLOOKUP($A160,cost_data!$A$5:$BB$215,I$1,0)","v":626158.35},{"$f":"VLOOKUP($A160,cost_data!$A$5:$BB$215,J$1,0)","v":34600.230282095567},{"$f":"VLOOKUP($A160,cost_data!$A$5:$BB$215,K$1,0)","v":400575.950000001},{"$f":"VLOOKUP($A160,cost_data!$A$5:$BB$215,L$1,0)","v":34600.230282095567},{"$f":"VLOOKUP($A160,cost_data!$A$5:$BB$215,M$1,0)","v":333586.930000005},{"$f":"VLOOKUP($A160,cost_data!$A$5:$BB$215,N$1,0)","v":34600.230282095567},{"$f":"VLOOKUP($A160,cost_data!$A$5:$BB$215,O$1,0)","v":256303.19999999899},{"$f":"VLOOKUP($A160,cost_data!$A$5:$BB$215,P$1,0)","v":34600.230282095567},{"$f":"VLOOKUP($A160,cost_data!$A$5:$BB$215,Q$1,0)","v":262698.78000000003},{"$f":"VLOOKUP($A160,cost_data!$A$5:$BB$215,R$1,0)","v":34600.230282095567},{"$f":"VLOOKUP($A160,cost_data!$A$5:$BB$215,S$1,0)","v":35527.679999999898},{"$f":"VLOOKUP($A160,cost_data!$A$5:$BB$215,T$1,0)","v":34600.230282095567},{"$f":"VLOOKUP($A160,cost_data!$A$5:$BB$215,U$1,0)","v":24329.929999999898},{"$f":"VLOOKUP($A160,cost_data!$A$5:$BB$215,V$1,0)","v":34600.230282095567},{"$f":"VLOOKUP($A160,cost_data!$A$5:$BB$215,W$1,0)","v":16702.05},{"$f":"VLOOKUP($A160,cost_data!$A$5:$BB$215,X$1,0)","v":34600.230282095567},{"$f":"VLOOKUP($A160,cost_data!$A$5:$BB$215,Y$1,0)","v":5416.37},{"$f":"VLOOKUP($A160,cost_data!$A$5:$BB$215,Z$1,0)","v":34600.230282095567},{"$f":"VLOOKUP($A160,cost_data!$A$5:$BB$215,AA$1,0)","v":4260729.46},{"$f":"VLOOKUP($A160,cost_data!$A$5:$BB$215,AB$1,0)","v":1125830}]
["09E","NHS Canterbury and Coastal",{"$f":"VLOOKUP($A161,cost_data!$A$5:$BB$215,C$1,0)","v":4051840.1500000102},{"$f":"VLOOKUP($A161,cost_data!$A$5:$BB$215,D$1,0)","v":21648.12014917851},{"$f":"VLOOKUP($A161,cost_data!$A$5:$BB$215,E$1,0)","v":1144225.94000001},{"$f":"VLOOKUP($A161,cost_data!$A$5:$BB$215,F$1,0)","v":21648.12014917851},{"$f":"VLOOKUP($A161,cost_data!$A$5:$BB$215,G$1,0)","v":988312.12999999896},{"$f":"VLOOKUP($A161,cost_data!$A$5:$BB$215,H$1,0)","v":21648.12014917851},{"$f":"VLOOKUP($A161,cost_data!$A$5:$BB$215,I$1,0)","v":696122.76},{"$f":"VLOOKUP($A161,cost_data!$A$5:$BB$215,J$1,0)","v":21648.12014917851},{"$f":"VLOOKUP($A161,cost_data!$A$5:$BB$215,K$1,0)","v":336569.44999999902},{"$f":"VLOOKUP($A161,cost_data!$A$5:$BB$215,L$1,0)","v":21648.12014917851},{"$f":"VLOOKUP($A161,cost_data!$A$5:$BB$215,M$1,0)","v":303257.55000000098},{"$f":"VLOOKUP($A161,cost_data!$A$5:$BB$215,N$1,0)","v":21648.12014917851},{"$f":"VLOOKUP($A161,cost_data!$A$5:$BB$215,O$1,0)","v":216696.49999999901},{"$f":"VLOOKUP($A161,cost_data!$A$5:$BB$215,P$1,0)","v":21648.12014917851},{"$f":"VLOOKUP($A161,cost_data!$A$5:$BB$215,Q$1,0)","v":254699.44},{"$f":"VLOOKUP($A161,cost_data!$A$5:$BB$215,R$1,0)","v":21648.12014917851},{"$f":"VLOOKUP($A161,cost_data!$A$5:$BB$215,S$1,0)","v":35081.800000000003},{"$f":"VLOOKUP($A161,cost_data!$A$5:$BB$215,T$1,0)","v":21648.12014917851},{"$f":"VLOOKUP($A161,cost_data!$A$5:$BB$215,U$1,0)","v":24098.49},{"$f":"VLOOKUP($A161,cost_data!$A$5:$BB$215,V$1,0)","v":21648.12014917851},{"$f":"VLOOKUP($A161,cost_data!$A$5:$BB$215,W$1,0)","v":11175.55},{"$f":"VLOOKUP($A161,cost_data!$A$5:$BB$215,X$1,0)","v":21648.12014917851},{"$f":"VLOOKUP($A161,cost_data!$A$5:$BB$215,Y$1,0)","v":41600.54},{"$f":"VLOOKUP($A161,cost_data!$A$5:$BB$215,Z$1,0)","v":21648.12014917851},{"$f":"VLOOKUP($A161,cost_data!$A$5:$BB$215,AA$1,0)","v":4051840.1500000102},{"$f":"VLOOKUP($A161,cost_data!$A$5:$BB$215,AB$1,0)","v":1036202}]
["09F","NHS Eastbourne, Hailsham and Seaford",{"$f":"VLOOKUP($A162,cost_data!$A$5:$BB$215,C$1,0)","v":4595386.63},{"$f":"VLOOKUP($A162,cost_data!$A$5:$BB$215,D$1,0)","v":15256.34124459669},{"$f":"VLOOKUP($A162,cost_data!$A$5:$BB$215,E$1,0)","v":1306884.25999999},{"$f":"VLOOKUP($A162,cost_data!$A$5:$BB$215,F$1,0)","v":15256.34124459669},{"$f":"VLOOKUP($A162,cost_data!$A$5:$BB$215,G$1,0)","v":1055241.92},{"$f":"VLOOKUP($A162,cost_data!$A$5:$BB$215,H$1,0)","v":15256.34124459669},{"$f":"VLOOKUP($A162,cost_data!$A$5:$BB$215,I$1,0)","v":744176.34999999905},{"$f":"VLOOKUP($A162,cost_data!$A$5:$BB$215,J$1,0)","v":15256.34124459669},{"$f":"VLOOKUP($A162,cost_data!$A$5:$BB$215,K$1,0)","v":361466.94999999902},{"$f":"VLOOKUP($A162,cost_data!$A$5:$BB$215,L$1,0)","v":15256.34124459669},{"$f":"VLOOKUP($A162,cost_data!$A$5:$BB$215,M$1,0)","v":362427.41000000102},{"$f":"VLOOKUP($A162,cost_data!$A$5:$BB$215,N$1,0)","v":15256.34124459669},{"$f":"VLOOKUP($A162,cost_data!$A$5:$BB$215,O$1,0)","v":324248.20999999897},{"$f":"VLOOKUP($A162,cost_data!$A$5:$BB$215,P$1,0)","v":15256.34124459669},{"$f":"VLOOKUP($A162,cost_data!$A$5:$BB$215,Q$1,0)","v":296818.21000000002},{"$f":"VLOOKUP($A162,cost_data!$A$5:$BB$215,R$1,0)","v":15256.34124459669},{"$f":"VLOOKUP($A162,cost_data!$A$5:$BB$215,S$1,0)","v":100514.74},{"$f":"VLOOKUP($A162,cost_data!$A$5:$BB$215,T$1,0)","v":15256.34124459669},{"$f":"VLOOKUP($A162,cost_data!$A$5:$BB$215,U$1,0)","v":19555.5999999999},{"$f":"VLOOKUP($A162,cost_data!$A$5:$BB$215,V$1,0)","v":15256.34124459669},{"$f":"VLOOKUP($A162,cost_data!$A$5:$BB$215,W$1,0)","v":14213.75},{"$f":"VLOOKUP($A162,cost_data!$A$5:$BB$215,X$1,0)","v":15256.34124459669},{"$f":"VLOOKUP($A162,cost_data!$A$5:$BB$215,Y$1,0)","v":9839.23},{"$f":"VLOOKUP($A162,cost_data!$A$5:$BB$215,Z$1,0)","v":15256.34124459669},{"$f":"VLOOKUP($A162,cost_data!$A$5:$BB$215,AA$1,0)","v":4595386.63},{"$f":"VLOOKUP($A162,cost_data!$A$5:$BB$215,AB$1,0)","v":1208612}]
["09G","NHS Coastal West Sussex",{"$f":"VLOOKUP($A163,cost_data!$A$5:$BB$215,C$1,0)","v":11181315.689999999},{"$f":"VLOOKUP($A163,cost_data!$A$5:$BB$215,D$1,0)","v":41428.788006401082},{"$f":"VLOOKUP($A163,cost_data!$A$5:$BB$215,E$1,0)","v":3140413.4099999401},{"$f":"VLOOKUP($A163,cost_data!$A$5:$BB$215,F$1,0)","v":41428.788006401082},{"$f":"VLOOKUP($A163,cost_data!$A$5:$BB$215,G$1,0)","v":2832987.79},{"$f":"VLOOKUP($A163,cost_data!$A$5:$BB$215,H$1,0)","v":41428.788006401082},{"$f":"VLOOKUP($A163,cost_data!$A$5:$BB$215,I$1,0)","v":1936613.08},{"$f":"VLOOKUP($A163,cost_data!$A$5:$BB$215,J$1,0)","v":41428.788006401082},{"$f":"VLOOKUP($A163,cost_data!$A$5:$BB$215,K$1,0)","v":791794.57000000204},{"$f":"VLOOKUP($A163,cost_data!$A$5:$BB$215,L$1,0)","v":41428.788006401082},{"$f":"VLOOKUP($A163,cost_data!$A$5:$BB$215,M$1,0)","v":926311.34000000905},{"$f":"VLOOKUP($A163,cost_data!$A$5:$BB$215,N$1,0)","v":41428.788006401082},{"$f":"VLOOKUP($A163,cost_data!$A$5:$BB$215,O$1,0)","v":723284.07000000402},{"$f":"VLOOKUP($A163,cost_data!$A$5:$BB$215,P$1,0)","v":41428.788006401082},{"$f":"VLOOKUP($A163,cost_data!$A$5:$BB$215,Q$1,0)","v":610422.489999988},{"$f":"VLOOKUP($A163,cost_data!$A$5:$BB$215,R$1,0)","v":41428.788006401082},{"$f":"VLOOKUP($A163,cost_data!$A$5:$BB$215,S$1,0)","v":115896.65},{"$f":"VLOOKUP($A163,cost_data!$A$5:$BB$215,T$1,0)","v":41428.788006401082},{"$f":"VLOOKUP($A163,cost_data!$A$5:$BB$215,U$1,0)","v":59552.589999999902},{"$f":"VLOOKUP($A163,cost_data!$A$5:$BB$215,V$1,0)","v":41428.788006401082},{"$f":"VLOOKUP($A163,cost_data!$A$5:$BB$215,W$1,0)","v":35512.050000000003},{"$f":"VLOOKUP($A163,cost_data!$A$5:$BB$215,X$1,0)","v":41428.788006401082},{"$f":"VLOOKUP($A163,cost_data!$A$5:$BB$215,Y$1,0)","v":8527.65},{"$f":"VLOOKUP($A163,cost_data!$A$5:$BB$215,Z$1,0)","v":41428.788006401082},{"$f":"VLOOKUP($A163,cost_data!$A$5:$BB$215,AA$1,0)","v":11181315.689999999},{"$f":"VLOOKUP($A163,cost_data!$A$5:$BB$215,AB$1,0)","v":2823410}]
["09H","NHS Crawley",{"$f":"VLOOKUP($A164,cost_data!$A$5:$BB$215,C$1,0)","v":2023596.3},{"$f":"VLOOKUP($A164,cost_data!$A$5:$BB$215,D$1,0)","v":15548.253115074518},{"$f":"VLOOKUP($A164,cost_data!$A$5:$BB$215,E$1,0)","v":606763.27},{"$f":"VLOOKUP($A164,cost_data!$A$5:$BB$215,F$1,0)","v":15548.253115074518},{"$f":"VLOOKUP($A164,cost_data!$A$5:$BB$215,G$1,0)","v":578493},{"$f":"VLOOKUP($A164,cost_data!$A$5:$BB$215,H$1,0)","v":15548.253115074518},{"$f":"VLOOKUP($A164,cost_data!$A$5:$BB$215,I$1,0)","v":288225.61},{"$f":"VLOOKUP($A164,cost_data!$A$5:$BB$215,J$1,0)","v":15548.253115074518},{"$f":"VLOOKUP($A164,cost_data!$A$5:$BB$215,K$1,0)","v":135350.64000000001},{"$f":"VLOOKUP($A164,cost_data!$A$5:$BB$215,L$1,0)","v":15548.253115074518},{"$f":"VLOOKUP($A164,cost_data!$A$5:$BB$215,M$1,0)","v":139861.79},{"$f":"VLOOKUP($A164,cost_data!$A$5:$BB$215,N$1,0)","v":15548.253115074518},{"$f":"VLOOKUP($A164,cost_data!$A$5:$BB$215,O$1,0)","v":118971.5},{"$f":"VLOOKUP($A164,cost_data!$A$5:$BB$215,P$1,0)","v":15548.253115074518},{"$f":"VLOOKUP($A164,cost_data!$A$5:$BB$215,Q$1,0)","v":106638.95},{"$f":"VLOOKUP($A164,cost_data!$A$5:$BB$215,R$1,0)","v":15548.253115074518},{"$f":"VLOOKUP($A164,cost_data!$A$5:$BB$215,S$1,0)","v":15848.54},{"$f":"VLOOKUP($A164,cost_data!$A$5:$BB$215,T$1,0)","v":15548.253115074518},{"$f":"VLOOKUP($A164,cost_data!$A$5:$BB$215,U$1,0)","v":8779.8200000000106},{"$f":"VLOOKUP($A164,cost_data!$A$5:$BB$215,V$1,0)","v":15548.253115074518},{"$f":"VLOOKUP($A164,cost_data!$A$5:$BB$215,W$1,0)","v":7602.65},{"$f":"VLOOKUP($A164,cost_data!$A$5:$BB$215,X$1,0)","v":15548.253115074518},{"$f":"VLOOKUP($A164,cost_data!$A$5:$BB$215,Y$1,0)","v":17060.53},{"$f":"VLOOKUP($A164,cost_data!$A$5:$BB$215,Z$1,0)","v":15548.253115074518},{"$f":"VLOOKUP($A164,cost_data!$A$5:$BB$215,AA$1,0)","v":2023596.3},{"$f":"VLOOKUP($A164,cost_data!$A$5:$BB$215,AB$1,0)","v":584513}]
["09J","NHS Dartford, Gravesham and Swanley",{"$f":"VLOOKUP($A165,cost_data!$A$5:$BB$215,C$1,0)","v":5602738.5500000101},{"$f":"VLOOKUP($A165,cost_data!$A$5:$BB$215,D$1,0)","v":27197.678203319952},{"$f":"VLOOKUP($A165,cost_data!$A$5:$BB$215,E$1,0)","v":1684606.76999999},{"$f":"VLOOKUP($A165,cost_data!$A$5:$BB$215,F$1,0)","v":27197.678203319952},{"$f":"VLOOKUP($A165,cost_data!$A$5:$BB$215,G$1,0)","v":1551852.46},{"$f":"VLOOKUP($A165,cost_data!$A$5:$BB$215,H$1,0)","v":27197.678203319952},{"$f":"VLOOKUP($A165,cost_data!$A$5:$BB$215,I$1,0)","v":899575.81},{"$f":"VLOOKUP($A165,cost_data!$A$5:$BB$215,J$1,0)","v":27197.678203319952},{"$f":"VLOOKUP($A165,cost_data!$A$5:$BB$215,K$1,0)","v":410280.67999999702},{"$f":"VLOOKUP($A165,cost_data!$A$5:$BB$215,L$1,0)","v":27197.678203319952},{"$f":"VLOOKUP($A165,cost_data!$A$5:$BB$215,M$1,0)","v":372903.01000000199},{"$f":"VLOOKUP($A165,cost_data!$A$5:$BB$215,N$1,0)","v":27197.678203319952},{"$f":"VLOOKUP($A165,cost_data!$A$5:$BB$215,O$1,0)","v":293654.25999999902},{"$f":"VLOOKUP($A165,cost_data!$A$5:$BB$215,P$1,0)","v":27197.678203319952},{"$f":"VLOOKUP($A165,cost_data!$A$5:$BB$215,Q$1,0)","v":279348.71999999898},{"$f":"VLOOKUP($A165,cost_data!$A$5:$BB$215,R$1,0)","v":27197.678203319952},{"$f":"VLOOKUP($A165,cost_data!$A$5:$BB$215,S$1,0)","v":42848.999999999898},{"$f":"VLOOKUP($A165,cost_data!$A$5:$BB$215,T$1,0)","v":27197.678203319952},{"$f":"VLOOKUP($A165,cost_data!$A$5:$BB$215,U$1,0)","v":23104.139999999901},{"$f":"VLOOKUP($A165,cost_data!$A$5:$BB$215,V$1,0)","v":27197.678203319952},{"$f":"VLOOKUP($A165,cost_data!$A$5:$BB$215,W$1,0)","v":19032.509999999998},{"$f":"VLOOKUP($A165,cost_data!$A$5:$BB$215,X$1,0)","v":27197.678203319952},{"$f":"VLOOKUP($A165,cost_data!$A$5:$BB$215,Y$1,0)","v":25531.19},{"$f":"VLOOKUP($A165,cost_data!$A$5:$BB$215,Z$1,0)","v":27197.678203319952},{"$f":"VLOOKUP($A165,cost_data!$A$5:$BB$215,AA$1,0)","v":5602738.5500000101},{"$f":"VLOOKUP($A165,cost_data!$A$5:$BB$215,AB$1,0)","v":1390086}]
["09L","NHS East Surrey",{"$f":"VLOOKUP($A166,cost_data!$A$5:$BB$215,C$1,0)","v":2705283.89},{"$f":"VLOOKUP($A166,cost_data!$A$5:$BB$215,D$1,0)","v":18574.030172413793},{"$f":"VLOOKUP($A166,cost_data!$A$5:$BB$215,E$1,0)","v":754675.28000000305},{"$f":"VLOOKUP($A166,cost_data!$A$5:$BB$215,F$1,0)","v":18574.030172413793},{"$f":"VLOOKUP($A166,cost_data!$A$5:$BB$215,G$1,0)","v":754382.27999999898},{"$f":"VLOOKUP($A166,cost_data!$A$5:$BB$215,H$1,0)","v":18574.030172413793},{"$f":"VLOOKUP($A166,cost_data!$A$5:$BB$215,I$1,0)","v":404192.9},{"$f":"VLOOKUP($A166,cost_data!$A$5:$BB$215,J$1,0)","v":18574.030172413793},{"$f":"VLOOKUP($A166,cost_data!$A$5:$BB$215,K$1,0)","v":188332.35},{"$f":"VLOOKUP($A166,cost_data!$A$5:$BB$215,L$1,0)","v":18574.030172413793},{"$f":"VLOOKUP($A166,cost_data!$A$5:$BB$215,M$1,0)","v":207934.02999999901},{"$f":"VLOOKUP($A166,cost_data!$A$5:$BB$215,N$1,0)","v":18574.030172413793},{"$f":"VLOOKUP($A166,cost_data!$A$5:$BB$215,O$1,0)","v":174121.69999999899},{"$f":"VLOOKUP($A166,cost_data!$A$5:$BB$215,P$1,0)","v":18574.030172413793},{"$f":"VLOOKUP($A166,cost_data!$A$5:$BB$215,Q$1,0)","v":167918.34},{"$f":"VLOOKUP($A166,cost_data!$A$5:$BB$215,R$1,0)","v":18574.030172413793},{"$f":"VLOOKUP($A166,cost_data!$A$5:$BB$215,S$1,0)","v":21250.27},{"$f":"VLOOKUP($A166,cost_data!$A$5:$BB$215,T$1,0)","v":18574.030172413793},{"$f":"VLOOKUP($A166,cost_data!$A$5:$BB$215,U$1,0)","v":17292},{"$f":"VLOOKUP($A166,cost_data!$A$5:$BB$215,V$1,0)","v":18574.030172413793},{"$f":"VLOOKUP($A166,cost_data!$A$5:$BB$215,W$1,0)","v":9217.4399999999896},{"$f":"VLOOKUP($A166,cost_data!$A$5:$BB$215,X$1,0)","v":18574.030172413793},{"$f":"VLOOKUP($A166,cost_data!$A$5:$BB$215,Y$1,0)","v":5967.3},{"$f":"VLOOKUP($A166,cost_data!$A$5:$BB$215,Z$1,0)","v":18574.030172413793},{"$f":"VLOOKUP($A166,cost_data!$A$5:$BB$215,AA$1,0)","v":2705283.89},{"$f":"VLOOKUP($A166,cost_data!$A$5:$BB$215,AB$1,0)","v":664029}]
["09N","NHS Guildford and Waverley",{"$f":"VLOOKUP($A167,cost_data!$A$5:$BB$215,C$1,0)","v":3626240.34},{"$f":"VLOOKUP($A167,cost_data!$A$5:$BB$215,D$1,0)","v":23167.506702412869},{"$f":"VLOOKUP($A167,cost_data!$A$5:$BB$215,E$1,0)","v":1109328.1499999999},{"$f":"VLOOKUP($A167,cost_data!$A$5:$BB$215,F$1,0)","v":23167.506702412869},{"$f":"VLOOKUP($A167,cost_data!$A$5:$BB$215,G$1,0)","v":951222.07999999903},{"$f":"VLOOKUP($A167,cost_data!$A$5:$BB$215,H$1,0)","v":23167.506702412869},{"$f":"VLOOKUP($A167,cost_data!$A$5:$BB$215,I$1,0)","v":481867.8},{"$f":"VLOOKUP($A167,cost_data!$A$5:$BB$215,J$1,0)","v":23167.506702412869},{"$f":"VLOOKUP($A167,cost_data!$A$5:$BB$215,K$1,0)","v":284718.39},{"$f":"VLOOKUP($A167,cost_data!$A$5:$BB$215,L$1,0)","v":23167.506702412869},{"$f":"VLOOKUP($A167,cost_data!$A$5:$BB$215,M$1,0)","v":300059.71000000002},{"$f":"VLOOKUP($A167,cost_data!$A$5:$BB$215,N$1,0)","v":23167.506702412869},{"$f":"VLOOKUP($A167,cost_data!$A$5:$BB$215,O$1,0)","v":203990.93999999901},{"$f":"VLOOKUP($A167,cost_data!$A$5:$BB$215,P$1,0)","v":23167.506702412869},{"$f":"VLOOKUP($A167,cost_data!$A$5:$BB$215,Q$1,0)","v":192577.71},{"$f":"VLOOKUP($A167,cost_data!$A$5:$BB$215,R$1,0)","v":23167.506702412869},{"$f":"VLOOKUP($A167,cost_data!$A$5:$BB$215,S$1,0)","v":55671.849999999897},{"$f":"VLOOKUP($A167,cost_data!$A$5:$BB$215,T$1,0)","v":23167.506702412869},{"$f":"VLOOKUP($A167,cost_data!$A$5:$BB$215,U$1,0)","v":21423.33},{"$f":"VLOOKUP($A167,cost_data!$A$5:$BB$215,V$1,0)","v":23167.506702412869},{"$f":"VLOOKUP($A167,cost_data!$A$5:$BB$215,W$1,0)","v":9938.32},{"$f":"VLOOKUP($A167,cost_data!$A$5:$BB$215,X$1,0)","v":23167.506702412869},{"$f":"VLOOKUP($A167,cost_data!$A$5:$BB$215,Y$1,0)","v":15442.06},{"$f":"VLOOKUP($A167,cost_data!$A$5:$BB$215,Z$1,0)","v":23167.506702412869},{"$f":"VLOOKUP($A167,cost_data!$A$5:$BB$215,AA$1,0)","v":3626240.34},{"$f":"VLOOKUP($A167,cost_data!$A$5:$BB$215,AB$1,0)","v":878250}]
["09P","NHS Hastings and Rother",{"$f":"VLOOKUP($A168,cost_data!$A$5:$BB$215,C$1,0)","v":5718427.3000000101},{"$f":"VLOOKUP($A168,cost_data!$A$5:$BB$215,D$1,0)","v":15022.096734593666},{"$f":"VLOOKUP($A168,cost_data!$A$5:$BB$215,E$1,0)","v":2020020.58},{"$f":"VLOOKUP($A168,cost_data!$A$5:$BB$215,F$1,0)","v":15022.096734593666},{"$f":"VLOOKUP($A168,cost_data!$A$5:$BB$215,G$1,0)","v":1445919.87},{"$f":"VLOOKUP($A168,cost_data!$A$5:$BB$215,H$1,0)","v":15022.096734593666},{"$f":"VLOOKUP($A168,cost_data!$A$5:$BB$215,I$1,0)","v":746713.89999999898},{"$f":"VLOOKUP($A168,cost_data!$A$5:$BB$215,J$1,0)","v":15022.096734593666},{"$f":"VLOOKUP($A168,cost_data!$A$5:$BB$215,K$1,0)","v":315151.28999999899},{"$f":"VLOOKUP($A168,cost_data!$A$5:$BB$215,L$1,0)","v":15022.096734593666},{"$f":"VLOOKUP($A168,cost_data!$A$5:$BB$215,M$1,0)","v":351157.24000000401},{"$f":"VLOOKUP($A168,cost_data!$A$5:$BB$215,N$1,0)","v":15022.096734593666},{"$f":"VLOOKUP($A168,cost_data!$A$5:$BB$215,O$1,0)","v":346261.87999999803},{"$f":"VLOOKUP($A168,cost_data!$A$5:$BB$215,P$1,0)","v":15022.096734593666},{"$f":"VLOOKUP($A168,cost_data!$A$5:$BB$215,Q$1,0)","v":317371.26999999897},{"$f":"VLOOKUP($A168,cost_data!$A$5:$BB$215,R$1,0)","v":15022.096734593666},{"$f":"VLOOKUP($A168,cost_data!$A$5:$BB$215,S$1,0)","v":129803.48},{"$f":"VLOOKUP($A168,cost_data!$A$5:$BB$215,T$1,0)","v":15022.096734593666},{"$f":"VLOOKUP($A168,cost_data!$A$5:$BB$215,U$1,0)","v":23284.1699999999},{"$f":"VLOOKUP($A168,cost_data!$A$5:$BB$215,V$1,0)","v":15022.096734593666},{"$f":"VLOOKUP($A168,cost_data!$A$5:$BB$215,W$1,0)","v":14178.57},{"$f":"VLOOKUP($A168,cost_data!$A$5:$BB$215,X$1,0)","v":15022.096734593666},{"$f":"VLOOKUP($A168,cost_data!$A$5:$BB$215,Y$1,0)","v":8565.0499999999993},{"$f":"VLOOKUP($A168,cost_data!$A$5:$BB$215,Z$1,0)","v":15022.096734593666},{"$f":"VLOOKUP($A168,cost_data!$A$5:$BB$215,AA$1,0)","v":5718427.3000000101},{"$f":"VLOOKUP($A168,cost_data!$A$5:$BB$215,AB$1,0)","v":1292781}]
["09W","NHS Medway",{"$f":"VLOOKUP($A169,cost_data!$A$5:$BB$215,C$1,0)","v":5584611.2400000198},{"$f":"VLOOKUP($A169,cost_data!$A$5:$BB$215,D$1,0)","v":32767.388300322436},{"$f":"VLOOKUP($A169,cost_data!$A$5:$BB$215,E$1,0)","v":2030700.49999998},{"$f":"VLOOKUP($A169,cost_data!$A$5:$BB$215,F$1,0)","v":32767.388300322436},{"$f":"VLOOKUP($A169,cost_data!$A$5:$BB$215,G$1,0)","v":1520897.65},{"$f":"VLOOKUP($A169,cost_data!$A$5:$BB$215,H$1,0)","v":32767.388300322436},{"$f":"VLOOKUP($A169,cost_data!$A$5:$BB$215,I$1,0)","v":688984.01},{"$f":"VLOOKUP($A169,cost_data!$A$5:$BB$215,J$1,0)","v":32767.388300322436},{"$f":"VLOOKUP($A169,cost_data!$A$5:$BB$215,K$1,0)","v":375938.91},{"$f":"VLOOKUP($A169,cost_data!$A$5:$BB$215,L$1,0)","v":32767.388300322436},{"$f":"VLOOKUP($A169,cost_data!$A$5:$BB$215,M$1,0)","v":342153.72000000399},{"$f":"VLOOKUP($A169,cost_data!$A$5:$BB$215,N$1,0)","v":32767.388300322436},{"$f":"VLOOKUP($A169,cost_data!$A$5:$BB$215,O$1,0)","v":216887.54999999801},{"$f":"VLOOKUP($A169,cost_data!$A$5:$BB$215,P$1,0)","v":32767.388300322436},{"$f":"VLOOKUP($A169,cost_data!$A$5:$BB$215,Q$1,0)","v":304896.44999999797},{"$f":"VLOOKUP($A169,cost_data!$A$5:$BB$215,R$1,0)","v":32767.388300322436},{"$f":"VLOOKUP($A169,cost_data!$A$5:$BB$215,S$1,0)","v":34929.499999999804},{"$f":"VLOOKUP($A169,cost_data!$A$5:$BB$215,T$1,0)","v":32767.388300322436},{"$f":"VLOOKUP($A169,cost_data!$A$5:$BB$215,U$1,0)","v":25028.399999999801},{"$f":"VLOOKUP($A169,cost_data!$A$5:$BB$215,V$1,0)","v":32767.388300322436},{"$f":"VLOOKUP($A169,cost_data!$A$5:$BB$215,W$1,0)","v":33270.04},{"$f":"VLOOKUP($A169,cost_data!$A$5:$BB$215,X$1,0)","v":32767.388300322436},{"$f":"VLOOKUP($A169,cost_data!$A$5:$BB$215,Y$1,0)","v":10924.51},{"$f":"VLOOKUP($A169,cost_data!$A$5:$BB$215,Z$1,0)","v":32767.388300322436},{"$f":"VLOOKUP($A169,cost_data!$A$5:$BB$215,AA$1,0)","v":5584611.2400000198},{"$f":"VLOOKUP($A169,cost_data!$A$5:$BB$215,AB$1,0)","v":1405275}]
["09X","NHS Horsham and Mid Sussex",{"$f":"VLOOKUP($A170,cost_data!$A$5:$BB$215,C$1,0)","v":3966050.2500000098},{"$f":"VLOOKUP($A170,cost_data!$A$5:$BB$215,D$1,0)","v":23525.765728476821},{"$f":"VLOOKUP($A170,cost_data!$A$5:$BB$215,E$1,0)","v":1165436.45},{"$f":"VLOOKUP($A170,cost_data!$A$5:$BB$215,F$1,0)","v":23525.765728476821},{"$f":"VLOOKUP($A170,cost_data!$A$5:$BB$215,G$1,0)","v":1058009.1100000001},{"$f":"VLOOKUP($A170,cost_data!$A$5:$BB$215,H$1,0)","v":23525.765728476821},{"$f":"VLOOKUP($A170,cost_data!$A$5:$BB$215,I$1,0)","v":560031.57999999996},{"$f":"VLOOKUP($A170,cost_data!$A$5:$BB$215,J$1,0)","v":23525.765728476821},{"$f":"VLOOKUP($A170,cost_data!$A$5:$BB$215,K$1,0)","v":337754.63},{"$f":"VLOOKUP($A170,cost_data!$A$5:$BB$215,L$1,0)","v":23525.765728476821},{"$f":"VLOOKUP($A170,cost_data!$A$5:$BB$215,M$1,0)","v":302113.33000000101},{"$f":"VLOOKUP($A170,cost_data!$A$5:$BB$215,N$1,0)","v":23525.765728476821},{"$f":"VLOOKUP($A170,cost_data!$A$5:$BB$215,O$1,0)","v":209896.609999999},{"$f":"VLOOKUP($A170,cost_data!$A$5:$BB$215,P$1,0)","v":23525.765728476821},{"$f":"VLOOKUP($A170,cost_data!$A$5:$BB$215,Q$1,0)","v":234465.16},{"$f":"VLOOKUP($A170,cost_data!$A$5:$BB$215,R$1,0)","v":23525.765728476821},{"$f":"VLOOKUP($A170,cost_data!$A$5:$BB$215,S$1,0)","v":33731.18},{"$f":"VLOOKUP($A170,cost_data!$A$5:$BB$215,T$1,0)","v":23525.765728476821},{"$f":"VLOOKUP($A170,cost_data!$A$5:$BB$215,U$1,0)","v":24176.880000000001},{"$f":"VLOOKUP($A170,cost_data!$A$5:$BB$215,V$1,0)","v":23525.765728476821},{"$f":"VLOOKUP($A170,cost_data!$A$5:$BB$215,W$1,0)","v":12587.74},{"$f":"VLOOKUP($A170,cost_data!$A$5:$BB$215,X$1,0)","v":23525.765728476821},{"$f":"VLOOKUP($A170,cost_data!$A$5:$BB$215,Y$1,0)","v":25147.58},{"$f":"VLOOKUP($A170,cost_data!$A$5:$BB$215,Z$1,0)","v":23525.765728476821},{"$f":"VLOOKUP($A170,cost_data!$A$5:$BB$215,AA$1,0)","v":3966050.2500000098},{"$f":"VLOOKUP($A170,cost_data!$A$5:$BB$215,AB$1,0)","v":894094}]
["09Y","NHS North West Surrey",{"$f":"VLOOKUP($A171,cost_data!$A$5:$BB$215,C$1,0)","v":5669349.2500000102},{"$f":"VLOOKUP($A171,cost_data!$A$5:$BB$215,D$1,0)","v":38662.653239929954},{"$f":"VLOOKUP($A171,cost_data!$A$5:$BB$215,E$1,0)","v":1776574.71},{"$f":"VLOOKUP($A171,cost_data!$A$5:$BB$215,F$1,0)","v":38662.653239929954},{"$f":"VLOOKUP($A171,cost_data!$A$5:$BB$215,G$1,0)","v":1506817.6},{"$f":"VLOOKUP($A171,cost_data!$A$5:$BB$215,H$1,0)","v":38662.653239929954},{"$f":"VLOOKUP($A171,cost_data!$A$5:$BB$215,I$1,0)","v":742513.14999999898},{"$f":"VLOOKUP($A171,cost_data!$A$5:$BB$215,J$1,0)","v":38662.653239929954},{"$f":"VLOOKUP($A171,cost_data!$A$5:$BB$215,K$1,0)","v":362458.75},{"$f":"VLOOKUP($A171,cost_data!$A$5:$BB$215,L$1,0)","v":38662.653239929954},{"$f":"VLOOKUP($A171,cost_data!$A$5:$BB$215,M$1,0)","v":444558.91000000603},{"$f":"VLOOKUP($A171,cost_data!$A$5:$BB$215,N$1,0)","v":38662.653239929954},{"$f":"VLOOKUP($A171,cost_data!$A$5:$BB$215,O$1,0)","v":381904.87999999902},{"$f":"VLOOKUP($A171,cost_data!$A$5:$BB$215,P$1,0)","v":38662.653239929954},{"$f":"VLOOKUP($A171,cost_data!$A$5:$BB$215,Q$1,0)","v":347777.87999999902},{"$f":"VLOOKUP($A171,cost_data!$A$5:$BB$215,R$1,0)","v":38662.653239929954},{"$f":"VLOOKUP($A171,cost_data!$A$5:$BB$215,S$1,0)","v":40705.119999999901},{"$f":"VLOOKUP($A171,cost_data!$A$5:$BB$215,T$1,0)","v":38662.653239929954},{"$f":"VLOOKUP($A171,cost_data!$A$5:$BB$215,U$1,0)","v":30539.749999999902},{"$f":"VLOOKUP($A171,cost_data!$A$5:$BB$215,V$1,0)","v":38662.653239929954},{"$f":"VLOOKUP($A171,cost_data!$A$5:$BB$215,W$1,0)","v":22506.81},{"$f":"VLOOKUP($A171,cost_data!$A$5:$BB$215,X$1,0)","v":38662.653239929954},{"$f":"VLOOKUP($A171,cost_data!$A$5:$BB$215,Y$1,0)","v":12991.69},{"$f":"VLOOKUP($A171,cost_data!$A$5:$BB$215,Z$1,0)","v":38662.653239929954},{"$f":"VLOOKUP($A171,cost_data!$A$5:$BB$215,AA$1,0)","v":5669349.2500000102},{"$f":"VLOOKUP($A171,cost_data!$A$5:$BB$215,AB$1,0)","v":1208883}]
["10A","NHS South Kent Coast",{"$f":"VLOOKUP($A172,cost_data!$A$5:$BB$215,C$1,0)","v":4951646.99},{"$f":"VLOOKUP($A172,cost_data!$A$5:$BB$215,D$1,0)","v":18204.961071881226},{"$f":"VLOOKUP($A172,cost_data!$A$5:$BB$215,E$1,0)","v":1620539.6199999901},{"$f":"VLOOKUP($A172,cost_data!$A$5:$BB$215,F$1,0)","v":18204.961071881226},{"$f":"VLOOKUP($A172,cost_data!$A$5:$BB$215,G$1,0)","v":1156241.27},{"$f":"VLOOKUP($A172,cost_data!$A$5:$BB$215,H$1,0)","v":18204.961071881226},{"$f":"VLOOKUP($A172,cost_data!$A$5:$BB$215,I$1,0)","v":835500.54},{"$f":"VLOOKUP($A172,cost_data!$A$5:$BB$215,J$1,0)","v":18204.961071881226},{"$f":"VLOOKUP($A172,cost_data!$A$5:$BB$215,K$1,0)","v":365119.820000001},{"$f":"VLOOKUP($A172,cost_data!$A$5:$BB$215,L$1,0)","v":18204.961071881226},{"$f":"VLOOKUP($A172,cost_data!$A$5:$BB$215,M$1,0)","v":329291.37000000098},{"$f":"VLOOKUP($A172,cost_data!$A$5:$BB$215,N$1,0)","v":18204.961071881226},{"$f":"VLOOKUP($A172,cost_data!$A$5:$BB$215,O$1,0)","v":260768.819999998},{"$f":"VLOOKUP($A172,cost_data!$A$5:$BB$215,P$1,0)","v":18204.961071881226},{"$f":"VLOOKUP($A172,cost_data!$A$5:$BB$215,Q$1,0)","v":291798.42},{"$f":"VLOOKUP($A172,cost_data!$A$5:$BB$215,R$1,0)","v":18204.961071881226},{"$f":"VLOOKUP($A172,cost_data!$A$5:$BB$215,S$1,0)","v":33642.9},{"$f":"VLOOKUP($A172,cost_data!$A$5:$BB$215,T$1,0)","v":18204.961071881226},{"$f":"VLOOKUP($A172,cost_data!$A$5:$BB$215,U$1,0)","v":24756.91},{"$f":"VLOOKUP($A172,cost_data!$A$5:$BB$215,V$1,0)","v":18204.961071881226},{"$f":"VLOOKUP($A172,cost_data!$A$5:$BB$215,W$1,0)","v":11484.54},{"$f":"VLOOKUP($A172,cost_data!$A$5:$BB$215,X$1,0)","v":18204.961071881226},{"$f":"VLOOKUP($A172,cost_data!$A$5:$BB$215,Y$1,0)","v":22502.78},{"$f":"VLOOKUP($A172,cost_data!$A$5:$BB$215,Z$1,0)","v":18204.961071881226},{"$f":"VLOOKUP($A172,cost_data!$A$5:$BB$215,AA$1,0)","v":4951646.99},{"$f":"VLOOKUP($A172,cost_data!$A$5:$BB$215,AB$1,0)","v":1092707}]
["10C","NHS Surrey Heath",{"$f":"VLOOKUP($A173,cost_data!$A$5:$BB$215,C$1,0)","v":1647108.57},{"$f":"VLOOKUP($A173,cost_data!$A$5:$BB$215,D$1,0)","v":9964.7956403269745},{"$f":"VLOOKUP($A173,cost_data!$A$5:$BB$215,E$1,0)","v":587510.98000000103},{"$f":"VLOOKUP($A173,cost_data!$A$5:$BB$215,F$1,0)","v":9964.7956403269745},{"$f":"VLOOKUP($A173,cost_data!$A$5:$BB$215,G$1,0)","v":411722.23},{"$f":"VLOOKUP($A173,cost_data!$A$5:$BB$215,H$1,0)","v":9964.7956403269745},{"$f":"VLOOKUP($A173,cost_data!$A$5:$BB$215,I$1,0)","v":210768.47},{"$f":"VLOOKUP($A173,cost_data!$A$5:$BB$215,J$1,0)","v":9964.7956403269745},{"$f":"VLOOKUP($A173,cost_data!$A$5:$BB$215,K$1,0)","v":95953.429999999906},{"$f":"VLOOKUP($A173,cost_data!$A$5:$BB$215,L$1,0)","v":9964.7956403269745},{"$f":"VLOOKUP($A173,cost_data!$A$5:$BB$215,M$1,0)","v":93194.319999999701},{"$f":"VLOOKUP($A173,cost_data!$A$5:$BB$215,N$1,0)","v":9964.7956403269745},{"$f":"VLOOKUP($A173,cost_data!$A$5:$BB$215,O$1,0)","v":104461.44},{"$f":"VLOOKUP($A173,cost_data!$A$5:$BB$215,P$1,0)","v":9964.7956403269745},{"$f":"VLOOKUP($A173,cost_data!$A$5:$BB$215,Q$1,0)","v":105057.09},{"$f":"VLOOKUP($A173,cost_data!$A$5:$BB$215,R$1,0)","v":9964.7956403269745},{"$f":"VLOOKUP($A173,cost_data!$A$5:$BB$215,S$1,0)","v":20165.25},{"$f":"VLOOKUP($A173,cost_data!$A$5:$BB$215,T$1,0)","v":9964.7956403269745},{"$f":"VLOOKUP($A173,cost_data!$A$5:$BB$215,U$1,0)","v":8213.4500000000007},{"$f":"VLOOKUP($A173,cost_data!$A$5:$BB$215,V$1,0)","v":9964.7956403269745},{"$f":"VLOOKUP($A173,cost_data!$A$5:$BB$215,W$1,0)","v":5073.32},{"$f":"VLOOKUP($A173,cost_data!$A$5:$BB$215,X$1,0)","v":9964.7956403269745},{"$f":"VLOOKUP($A173,cost_data!$A$5:$BB$215,Y$1,0)","v":4988.59},{"$f":"VLOOKUP($A173,cost_data!$A$5:$BB$215,Z$1,0)","v":9964.7956403269745},{"$f":"VLOOKUP($A173,cost_data!$A$5:$BB$215,AA$1,0)","v":1647108.57},{"$f":"VLOOKUP($A173,cost_data!$A$5:$BB$215,AB$1,0)","v":338633}]
["10D","NHS Swale",{"$f":"VLOOKUP($A174,cost_data!$A$5:$BB$215,C$1,0)","v":2243362.5799999898},{"$f":"VLOOKUP($A174,cost_data!$A$5:$BB$215,D$1,0)","v":11060.880296174413},{"$f":"VLOOKUP($A174,cost_data!$A$5:$BB$215,E$1,0)","v":773512.31000000203},{"$f":"VLOOKUP($A174,cost_data!$A$5:$BB$215,F$1,0)","v":11060.880296174413},{"$f":"VLOOKUP($A174,cost_data!$A$5:$BB$215,G$1,0)","v":615339.35},{"$f":"VLOOKUP($A174,cost_data!$A$5:$BB$215,H$1,0)","v":11060.880296174413},{"$f":"VLOOKUP($A174,cost_data!$A$5:$BB$215,I$1,0)","v":302999.34999999998},{"$f":"VLOOKUP($A174,cost_data!$A$5:$BB$215,J$1,0)","v":11060.880296174413},{"$f":"VLOOKUP($A174,cost_data!$A$5:$BB$215,K$1,0)","v":140436.69},{"$f":"VLOOKUP($A174,cost_data!$A$5:$BB$215,L$1,0)","v":11060.880296174413},{"$f":"VLOOKUP($A174,cost_data!$A$5:$BB$215,M$1,0)","v":140858.79999999999},{"$f":"VLOOKUP($A174,cost_data!$A$5:$BB$215,N$1,0)","v":11060.880296174413},{"$f":"VLOOKUP($A174,cost_data!$A$5:$BB$215,O$1,0)","v":94691.629999999903},{"$f":"VLOOKUP($A174,cost_data!$A$5:$BB$215,P$1,0)","v":11060.880296174413},{"$f":"VLOOKUP($A174,cost_data!$A$5:$BB$215,Q$1,0)","v":145205.76999999999},{"$f":"VLOOKUP($A174,cost_data!$A$5:$BB$215,R$1,0)","v":11060.880296174413},{"$f":"VLOOKUP($A174,cost_data!$A$5:$BB$215,S$1,0)","v":11809.41},{"$f":"VLOOKUP($A174,cost_data!$A$5:$BB$215,T$1,0)","v":11060.880296174413},{"$f":"VLOOKUP($A174,cost_data!$A$5:$BB$215,U$1,0)","v":10569.95},{"$f":"VLOOKUP($A174,cost_data!$A$5:$BB$215,V$1,0)","v":11060.880296174413},{"$f":"VLOOKUP($A174,cost_data!$A$5:$BB$215,W$1,0)","v":7776.54},{"$f":"VLOOKUP($A174,cost_data!$A$5:$BB$215,X$1,0)","v":11060.880296174413},{"$f":"VLOOKUP($A174,cost_data!$A$5:$BB$215,Y$1,0)","v":162.78},{"$f":"VLOOKUP($A174,cost_data!$A$5:$BB$215,Z$1,0)","v":11060.880296174413},{"$f":"VLOOKUP($A174,cost_data!$A$5:$BB$215,AA$1,0)","v":2243362.5799999898},{"$f":"VLOOKUP($A174,cost_data!$A$5:$BB$215,AB$1,0)","v":527486}]
["10E","NHS Thanet",{"$f":"VLOOKUP($A175,cost_data!$A$5:$BB$215,C$1,0)","v":3529955.33},{"$f":"VLOOKUP($A175,cost_data!$A$5:$BB$215,D$1,0)","v":12414.572204221035},{"$f":"VLOOKUP($A175,cost_data!$A$5:$BB$215,E$1,0)","v":1018216.33},{"$f":"VLOOKUP($A175,cost_data!$A$5:$BB$215,F$1,0)","v":12414.572204221035},{"$f":"VLOOKUP($A175,cost_data!$A$5:$BB$215,G$1,0)","v":884157.46999999904},{"$f":"VLOOKUP($A175,cost_data!$A$5:$BB$215,H$1,0)","v":12414.572204221035},{"$f":"VLOOKUP($A175,cost_data!$A$5:$BB$215,I$1,0)","v":632078.929999999},{"$f":"VLOOKUP($A175,cost_data!$A$5:$BB$215,J$1,0)","v":12414.572204221035},{"$f":"VLOOKUP($A175,cost_data!$A$5:$BB$215,K$1,0)","v":283382.21999999799},{"$f":"VLOOKUP($A175,cost_data!$A$5:$BB$215,L$1,0)","v":12414.572204221035},{"$f":"VLOOKUP($A175,cost_data!$A$5:$BB$215,M$1,0)","v":248636.4},{"$f":"VLOOKUP($A175,cost_data!$A$5:$BB$215,N$1,0)","v":12414.572204221035},{"$f":"VLOOKUP($A175,cost_data!$A$5:$BB$215,O$1,0)","v":178961.30999999901},{"$f":"VLOOKUP($A175,cost_data!$A$5:$BB$215,P$1,0)","v":12414.572204221035},{"$f":"VLOOKUP($A175,cost_data!$A$5:$BB$215,Q$1,0)","v":223365.05},{"$f":"VLOOKUP($A175,cost_data!$A$5:$BB$215,R$1,0)","v":12414.572204221035},{"$f":"VLOOKUP($A175,cost_data!$A$5:$BB$215,S$1,0)","v":28020.21},{"$f":"VLOOKUP($A175,cost_data!$A$5:$BB$215,T$1,0)","v":12414.572204221035},{"$f":"VLOOKUP($A175,cost_data!$A$5:$BB$215,U$1,0)","v":17776.439999999999},{"$f":"VLOOKUP($A175,cost_data!$A$5:$BB$215,V$1,0)","v":12414.572204221035},{"$f":"VLOOKUP($A175,cost_data!$A$5:$BB$215,W$1,0)","v":7940.51},{"$f":"VLOOKUP($A175,cost_data!$A$5:$BB$215,X$1,0)","v":12414.572204221035},{"$f":"VLOOKUP($A175,cost_data!$A$5:$BB$215,Y$1,0)","v":7420.46},{"$f":"VLOOKUP($A175,cost_data!$A$5:$BB$215,Z$1,0)","v":12414.572204221035},{"$f":"VLOOKUP($A175,cost_data!$A$5:$BB$215,AA$1,0)","v":3529955.33},{"$f":"VLOOKUP($A175,cost_data!$A$5:$BB$215,AB$1,0)","v":901724}]
["10G","NHS Bracknell and Ascot",{"$f":"VLOOKUP($A176,cost_data!$A$5:$BB$215,C$1,0)","v":1919582.31},{"$f":"VLOOKUP($A176,cost_data!$A$5:$BB$215,D$1,0)","v":16836.634272358224},{"$f":"VLOOKUP($A176,cost_data!$A$5:$BB$215,E$1,0)","v":602635.43000000005},{"$f":"VLOOKUP($A176,cost_data!$A$5:$BB$215,F$1,0)","v":16836.634272358224},{"$f":"VLOOKUP($A176,cost_data!$A$5:$BB$215,G$1,0)","v":551500.62},{"$f":"VLOOKUP($A176,cost_data!$A$5:$BB$215,H$1,0)","v":16836.634272358224},{"$f":"VLOOKUP($A176,cost_data!$A$5:$BB$215,I$1,0)","v":302203.06},{"$f":"VLOOKUP($A176,cost_data!$A$5:$BB$215,J$1,0)","v":16836.634272358224},{"$f":"VLOOKUP($A176,cost_data!$A$5:$BB$215,K$1,0)","v":67584.600000000093},{"$f":"VLOOKUP($A176,cost_data!$A$5:$BB$215,L$1,0)","v":16836.634272358224},{"$f":"VLOOKUP($A176,cost_data!$A$5:$BB$215,M$1,0)","v":137648.45000000001},{"$f":"VLOOKUP($A176,cost_data!$A$5:$BB$215,N$1,0)","v":16836.634272358224},{"$f":"VLOOKUP($A176,cost_data!$A$5:$BB$215,O$1,0)","v":109577.77999999899},{"$f":"VLOOKUP($A176,cost_data!$A$5:$BB$215,P$1,0)","v":16836.634272358224},{"$f":"VLOOKUP($A176,cost_data!$A$5:$BB$215,Q$1,0)","v":108500.06},{"$f":"VLOOKUP($A176,cost_data!$A$5:$BB$215,R$1,0)","v":16836.634272358224},{"$f":"VLOOKUP($A176,cost_data!$A$5:$BB$215,S$1,0)","v":19449.29},{"$f":"VLOOKUP($A176,cost_data!$A$5:$BB$215,T$1,0)","v":16836.634272358224},{"$f":"VLOOKUP($A176,cost_data!$A$5:$BB$215,U$1,0)","v":8384.4599999999991},{"$f":"VLOOKUP($A176,cost_data!$A$5:$BB$215,V$1,0)","v":16836.634272358224},{"$f":"VLOOKUP($A176,cost_data!$A$5:$BB$215,W$1,0)","v":7133.57},{"$f":"VLOOKUP($A176,cost_data!$A$5:$BB$215,X$1,0)","v":16836.634272358224},{"$f":"VLOOKUP($A176,cost_data!$A$5:$BB$215,Y$1,0)","v":4958.59},{"$f":"VLOOKUP($A176,cost_data!$A$5:$BB$215,Z$1,0)","v":16836.634272358224},{"$f":"VLOOKUP($A176,cost_data!$A$5:$BB$215,AA$1,0)","v":1919582.31},{"$f":"VLOOKUP($A176,cost_data!$A$5:$BB$215,AB$1,0)","v":454784}]
["10H","NHS Chiltern",{"$f":"VLOOKUP($A177,cost_data!$A$5:$BB$215,C$1,0)","v":4833003.0999999996},{"$f":"VLOOKUP($A177,cost_data!$A$5:$BB$215,D$1,0)","v":35945.175438596496},{"$f":"VLOOKUP($A177,cost_data!$A$5:$BB$215,E$1,0)","v":1368570.55},{"$f":"VLOOKUP($A177,cost_data!$A$5:$BB$215,F$1,0)","v":35945.175438596496},{"$f":"VLOOKUP($A177,cost_data!$A$5:$BB$215,G$1,0)","v":1445487.16},{"$f":"VLOOKUP($A177,cost_data!$A$5:$BB$215,H$1,0)","v":35945.175438596496},{"$f":"VLOOKUP($A177,cost_data!$A$5:$BB$215,I$1,0)","v":721215.06999999902},{"$f":"VLOOKUP($A177,cost_data!$A$5:$BB$215,J$1,0)","v":35945.175438596496},{"$f":"VLOOKUP($A177,cost_data!$A$5:$BB$215,K$1,0)","v":287413.78999999899},{"$f":"VLOOKUP($A177,cost_data!$A$5:$BB$215,L$1,0)","v":35945.175438596496},{"$f":"VLOOKUP($A177,cost_data!$A$5:$BB$215,M$1,0)","v":321975.96000000002},{"$f":"VLOOKUP($A177,cost_data!$A$5:$BB$215,N$1,0)","v":35945.175438596496},{"$f":"VLOOKUP($A177,cost_data!$A$5:$BB$215,O$1,0)","v":300637.929999999},{"$f":"VLOOKUP($A177,cost_data!$A$5:$BB$215,P$1,0)","v":35945.175438596496},{"$f":"VLOOKUP($A177,cost_data!$A$5:$BB$215,Q$1,0)","v":263651.84999999899},{"$f":"VLOOKUP($A177,cost_data!$A$5:$BB$215,R$1,0)","v":35945.175438596496},{"$f":"VLOOKUP($A177,cost_data!$A$5:$BB$215,S$1,0)","v":59929.859999999899},{"$f":"VLOOKUP($A177,cost_data!$A$5:$BB$215,T$1,0)","v":35945.175438596496},{"$f":"VLOOKUP($A177,cost_data!$A$5:$BB$215,U$1,0)","v":32029.819999999901},{"$f":"VLOOKUP($A177,cost_data!$A$5:$BB$215,V$1,0)","v":35945.175438596496},{"$f":"VLOOKUP($A177,cost_data!$A$5:$BB$215,W$1,0)","v":14045.25},{"$f":"VLOOKUP($A177,cost_data!$A$5:$BB$215,X$1,0)","v":35945.175438596496},{"$f":"VLOOKUP($A177,cost_data!$A$5:$BB$215,Y$1,0)","v":8145.86},{"$f":"VLOOKUP($A177,cost_data!$A$5:$BB$215,Z$1,0)","v":35945.175438596496},{"$f":"VLOOKUP($A177,cost_data!$A$5:$BB$215,AA$1,0)","v":4833003.0999999996},{"$f":"VLOOKUP($A177,cost_data!$A$5:$BB$215,AB$1,0)","v":1334350}]
["10J","NHS North Hampshire",{"$f":"VLOOKUP($A178,cost_data!$A$5:$BB$215,C$1,0)","v":3132088.25},{"$f":"VLOOKUP($A178,cost_data!$A$5:$BB$215,D$1,0)","v":24918.271435121504},{"$f":"VLOOKUP($A178,cost_data!$A$5:$BB$215,E$1,0)","v":812491.70000000403},{"$f":"VLOOKUP($A178,cost_data!$A$5:$BB$215,F$1,0)","v":24918.271435121504},{"$f":"VLOOKUP($A178,cost_data!$A$5:$BB$215,G$1,0)","v":879401.80999999901},{"$f":"VLOOKUP($A178,cost_data!$A$5:$BB$215,H$1,0)","v":24918.271435121504},{"$f":"VLOOKUP($A178,cost_data!$A$5:$BB$215,I$1,0)","v":486794.32},{"$f":"VLOOKUP($A178,cost_data!$A$5:$BB$215,J$1,0)","v":24918.271435121504},{"$f":"VLOOKUP($A178,cost_data!$A$5:$BB$215,K$1,0)","v":248574.46999999901},{"$f":"VLOOKUP($A178,cost_data!$A$5:$BB$215,L$1,0)","v":24918.271435121504},{"$f":"VLOOKUP($A178,cost_data!$A$5:$BB$215,M$1,0)","v":214656.49},{"$f":"VLOOKUP($A178,cost_data!$A$5:$BB$215,N$1,0)","v":24918.271435121504},{"$f":"VLOOKUP($A178,cost_data!$A$5:$BB$215,O$1,0)","v":197734.739999999},{"$f":"VLOOKUP($A178,cost_data!$A$5:$BB$215,P$1,0)","v":24918.271435121504},{"$f":"VLOOKUP($A178,cost_data!$A$5:$BB$215,Q$1,0)","v":195522.37},{"$f":"VLOOKUP($A178,cost_data!$A$5:$BB$215,R$1,0)","v":24918.271435121504},{"$f":"VLOOKUP($A178,cost_data!$A$5:$BB$215,S$1,0)","v":53956.07},{"$f":"VLOOKUP($A178,cost_data!$A$5:$BB$215,T$1,0)","v":24918.271435121504},{"$f":"VLOOKUP($A178,cost_data!$A$5:$BB$215,U$1,0)","v":18787.490000000002},{"$f":"VLOOKUP($A178,cost_data!$A$5:$BB$215,V$1,0)","v":24918.271435121504},{"$f":"VLOOKUP($A178,cost_data!$A$5:$BB$215,W$1,0)","v":18037.23},{"$f":"VLOOKUP($A178,cost_data!$A$5:$BB$215,X$1,0)","v":24918.271435121504},{"$f":"VLOOKUP($A178,cost_data!$A$5:$BB$215,Y$1,0)","v":6131.56},{"$f":"VLOOKUP($A178,cost_data!$A$5:$BB$215,Z$1,0)","v":24918.271435121504},{"$f":"VLOOKUP($A178,cost_data!$A$5:$BB$215,AA$1,0)","v":3132088.25},{"$f":"VLOOKUP($A178,cost_data!$A$5:$BB$215,AB$1,0)","v":913728}]
["10K","NHS Fareham and Gosport",{"$f":"VLOOKUP($A179,cost_data!$A$5:$BB$215,C$1,0)","v":4434196.1399999997},{"$f":"VLOOKUP($A179,cost_data!$A$5:$BB$215,D$1,0)","v":19838.005923000987},{"$f":"VLOOKUP($A179,cost_data!$A$5:$BB$215,E$1,0)","v":1131413.97},{"$f":"VLOOKUP($A179,cost_data!$A$5:$BB$215,F$1,0)","v":19838.005923000987},{"$f":"VLOOKUP($A179,cost_data!$A$5:$BB$215,G$1,0)","v":1099239.71},{"$f":"VLOOKUP($A179,cost_data!$A$5:$BB$215,H$1,0)","v":19838.005923000987},{"$f":"VLOOKUP($A179,cost_data!$A$5:$BB$215,I$1,0)","v":749075.44},{"$f":"VLOOKUP($A179,cost_data!$A$5:$BB$215,J$1,0)","v":19838.005923000987},{"$f":"VLOOKUP($A179,cost_data!$A$5:$BB$215,K$1,0)","v":397074.5},{"$f":"VLOOKUP($A179,cost_data!$A$5:$BB$215,L$1,0)","v":19838.005923000987},{"$f":"VLOOKUP($A179,cost_data!$A$5:$BB$215,M$1,0)","v":421121.60000000102},{"$f":"VLOOKUP($A179,cost_data!$A$5:$BB$215,N$1,0)","v":19838.005923000987},{"$f":"VLOOKUP($A179,cost_data!$A$5:$BB$215,O$1,0)","v":288197.62},{"$f":"VLOOKUP($A179,cost_data!$A$5:$BB$215,P$1,0)","v":19838.005923000987},{"$f":"VLOOKUP($A179,cost_data!$A$5:$BB$215,Q$1,0)","v":251806.41},{"$f":"VLOOKUP($A179,cost_data!$A$5:$BB$215,R$1,0)","v":19838.005923000987},{"$f":"VLOOKUP($A179,cost_data!$A$5:$BB$215,S$1,0)","v":58921.02},{"$f":"VLOOKUP($A179,cost_data!$A$5:$BB$215,T$1,0)","v":19838.005923000987},{"$f":"VLOOKUP($A179,cost_data!$A$5:$BB$215,U$1,0)","v":19788.060000000001},{"$f":"VLOOKUP($A179,cost_data!$A$5:$BB$215,V$1,0)","v":19838.005923000987},{"$f":"VLOOKUP($A179,cost_data!$A$5:$BB$215,W$1,0)","v":14901.41},{"$f":"VLOOKUP($A179,cost_data!$A$5:$BB$215,X$1,0)","v":19838.005923000987},{"$f":"VLOOKUP($A179,cost_data!$A$5:$BB$215,Y$1,0)","v":2656.4},{"$f":"VLOOKUP($A179,cost_data!$A$5:$BB$215,Z$1,0)","v":19838.005923000987},{"$f":"VLOOKUP($A179,cost_data!$A$5:$BB$215,AA$1,0)","v":4434196.1399999997},{"$f":"VLOOKUP($A179,cost_data!$A$5:$BB$215,AB$1,0)","v":945344}]
["10L","NHS Isle Of Wight",{"$f":"VLOOKUP($A180,cost_data!$A$5:$BB$215,C$1,0)","v":2920415.6099999901},{"$f":"VLOOKUP($A180,cost_data!$A$5:$BB$215,D$1,0)","v":11703.357591796228},{"$f":"VLOOKUP($A180,cost_data!$A$5:$BB$215,E$1,0)","v":999998.00000000303},{"$f":"VLOOKUP($A180,cost_data!$A$5:$BB$215,F$1,0)","v":11703.357591796228},{"$f":"VLOOKUP($A180,cost_data!$A$5:$BB$215,G$1,0)","v":597484.36999999895},{"$f":"VLOOKUP($A180,cost_data!$A$5:$BB$215,H$1,0)","v":11703.357591796228},{"$f":"VLOOKUP($A180,cost_data!$A$5:$BB$215,I$1,0)","v":468386.63},{"$f":"VLOOKUP($A180,cost_data!$A$5:$BB$215,J$1,0)","v":11703.357591796228},{"$f":"VLOOKUP($A180,cost_data!$A$5:$BB$215,K$1,0)","v":188520.55},{"$f":"VLOOKUP($A180,cost_data!$A$5:$BB$215,L$1,0)","v":11703.357591796228},{"$f":"VLOOKUP($A180,cost_data!$A$5:$BB$215,M$1,0)","v":228689.009999998},{"$f":"VLOOKUP($A180,cost_data!$A$5:$BB$215,N$1,0)","v":11703.357591796228},{"$f":"VLOOKUP($A180,cost_data!$A$5:$BB$215,O$1,0)","v":213650.84999999899},{"$f":"VLOOKUP($A180,cost_data!$A$5:$BB$215,P$1,0)","v":11703.357591796228},{"$f":"VLOOKUP($A180,cost_data!$A$5:$BB$215,Q$1,0)","v":178146.39},{"$f":"VLOOKUP($A180,cost_data!$A$5:$BB$215,R$1,0)","v":11703.357591796228},{"$f":"VLOOKUP($A180,cost_data!$A$5:$BB$215,S$1,0)","v":25745.71},{"$f":"VLOOKUP($A180,cost_data!$A$5:$BB$215,T$1,0)","v":11703.357591796228},{"$f":"VLOOKUP($A180,cost_data!$A$5:$BB$215,U$1,0)","v":10424.950000000001},{"$f":"VLOOKUP($A180,cost_data!$A$5:$BB$215,V$1,0)","v":11703.357591796228},{"$f":"VLOOKUP($A180,cost_data!$A$5:$BB$215,W$1,0)","v":8472.27},{"$f":"VLOOKUP($A180,cost_data!$A$5:$BB$215,X$1,0)","v":11703.357591796228},{"$f":"VLOOKUP($A180,cost_data!$A$5:$BB$215,Y$1,0)","v":896.88},{"$f":"VLOOKUP($A180,cost_data!$A$5:$BB$215,Z$1,0)","v":11703.357591796228},{"$f":"VLOOKUP($A180,cost_data!$A$5:$BB$215,AA$1,0)","v":2920415.6099999901},{"$f":"VLOOKUP($A180,cost_data!$A$5:$BB$215,AB$1,0)","v":1021063}]
["10M","NHS Newbury and District",{"$f":"VLOOKUP($A181,cost_data!$A$5:$BB$215,C$1,0)","v":1625461.55},{"$f":"VLOOKUP($A181,cost_data!$A$5:$BB$215,D$1,0)","v":12876.667787868595},{"$f":"VLOOKUP($A181,cost_data!$A$5:$BB$215,E$1,0)","v":480180.70000000199},{"$f":"VLOOKUP($A181,cost_data!$A$5:$BB$215,F$1,0)","v":12876.667787868595},{"$f":"VLOOKUP($A181,cost_data!$A$5:$BB$215,G$1,0)","v":385996.69},{"$f":"VLOOKUP($A181,cost_data!$A$5:$BB$215,H$1,0)","v":12876.667787868595},{"$f":"VLOOKUP($A181,cost_data!$A$5:$BB$215,I$1,0)","v":282131.78000000003},{"$f":"VLOOKUP($A181,cost_data!$A$5:$BB$215,J$1,0)","v":12876.667787868595},{"$f":"VLOOKUP($A181,cost_data!$A$5:$BB$215,K$1,0)","v":141907.65},{"$f":"VLOOKUP($A181,cost_data!$A$5:$BB$215,L$1,0)","v":12876.667787868595},{"$f":"VLOOKUP($A181,cost_data!$A$5:$BB$215,M$1,0)","v":124967.05},{"$f":"VLOOKUP($A181,cost_data!$A$5:$BB$215,N$1,0)","v":12876.667787868595},{"$f":"VLOOKUP($A181,cost_data!$A$5:$BB$215,O$1,0)","v":89665.7399999997},{"$f":"VLOOKUP($A181,cost_data!$A$5:$BB$215,P$1,0)","v":12876.667787868595},{"$f":"VLOOKUP($A181,cost_data!$A$5:$BB$215,Q$1,0)","v":89244.830000000293},{"$f":"VLOOKUP($A181,cost_data!$A$5:$BB$215,R$1,0)","v":12876.667787868595},{"$f":"VLOOKUP($A181,cost_data!$A$5:$BB$215,S$1,0)","v":15567.75},{"$f":"VLOOKUP($A181,cost_data!$A$5:$BB$215,T$1,0)","v":12876.667787868595},{"$f":"VLOOKUP($A181,cost_data!$A$5:$BB$215,U$1,0)","v":8629.9500000000007},{"$f":"VLOOKUP($A181,cost_data!$A$5:$BB$215,V$1,0)","v":12876.667787868595},{"$f":"VLOOKUP($A181,cost_data!$A$5:$BB$215,W$1,0)","v":4939.07},{"$f":"VLOOKUP($A181,cost_data!$A$5:$BB$215,X$1,0)","v":12876.667787868595},{"$f":"VLOOKUP($A181,cost_data!$A$5:$BB$215,Y$1,0)","v":2230.34},{"$f":"VLOOKUP($A181,cost_data!$A$5:$BB$215,Z$1,0)","v":12876.667787868595},{"$f":"VLOOKUP($A181,cost_data!$A$5:$BB$215,AA$1,0)","v":1625461.55},{"$f":"VLOOKUP($A181,cost_data!$A$5:$BB$215,AB$1,0)","v":564325}]
["10N","NHS North & West Reading",{"$f":"VLOOKUP($A182,cost_data!$A$5:$BB$215,C$1,0)","v":1634442.04},{"$f":"VLOOKUP($A182,cost_data!$A$5:$BB$215,D$1,0)","v":12110.275970383667},{"$f":"VLOOKUP($A182,cost_data!$A$5:$BB$215,E$1,0)","v":493324.70000000298},{"$f":"VLOOKUP($A182,cost_data!$A$5:$BB$215,F$1,0)","v":12110.275970383667},{"$f":"VLOOKUP($A182,cost_data!$A$5:$BB$215,G$1,0)","v":410415.18},{"$f":"VLOOKUP($A182,cost_data!$A$5:$BB$215,H$1,0)","v":12110.275970383667},{"$f":"VLOOKUP($A182,cost_data!$A$5:$BB$215,I$1,0)","v":297963.53999999998},{"$f":"VLOOKUP($A182,cost_data!$A$5:$BB$215,J$1,0)","v":12110.275970383667},{"$f":"VLOOKUP($A182,cost_data!$A$5:$BB$215,K$1,0)","v":105018.23},{"$f":"VLOOKUP($A182,cost_data!$A$5:$BB$215,L$1,0)","v":12110.275970383667},{"$f":"VLOOKUP($A182,cost_data!$A$5:$BB$215,M$1,0)","v":111264.7},{"$f":"VLOOKUP($A182,cost_data!$A$5:$BB$215,N$1,0)","v":12110.275970383667},{"$f":"VLOOKUP($A182,cost_data!$A$5:$BB$215,O$1,0)","v":85121.309999999794},{"$f":"VLOOKUP($A182,cost_data!$A$5:$BB$215,P$1,0)","v":12110.275970383667},{"$f":"VLOOKUP($A182,cost_data!$A$5:$BB$215,Q$1,0)","v":97631.690000000104},{"$f":"VLOOKUP($A182,cost_data!$A$5:$BB$215,R$1,0)","v":12110.275970383667},{"$f":"VLOOKUP($A182,cost_data!$A$5:$BB$215,S$1,0)","v":20199.64},{"$f":"VLOOKUP($A182,cost_data!$A$5:$BB$215,T$1,0)","v":12110.275970383667},{"$f":"VLOOKUP($A182,cost_data!$A$5:$BB$215,U$1,0)","v":6900.0700000000097},{"$f":"VLOOKUP($A182,cost_data!$A$5:$BB$215,V$1,0)","v":12110.275970383667},{"$f":"VLOOKUP($A182,cost_data!$A$5:$BB$215,W$1,0)","v":6236.54},{"$f":"VLOOKUP($A182,cost_data!$A$5:$BB$215,X$1,0)","v":12110.275970383667},{"$f":"VLOOKUP($A182,cost_data!$A$5:$BB$215,Y$1,0)","v":366.44},{"$f":"VLOOKUP($A182,cost_data!$A$5:$BB$215,Z$1,0)","v":12110.275970383667},{"$f":"VLOOKUP($A182,cost_data!$A$5:$BB$215,AA$1,0)","v":1634442.04},{"$f":"VLOOKUP($A182,cost_data!$A$5:$BB$215,AB$1,0)","v":535424}]
["10Q","NHS Oxfordshire",{"$f":"VLOOKUP($A183,cost_data!$A$5:$BB$215,C$1,0)","v":9341962.3900000304},{"$f":"VLOOKUP($A183,cost_data!$A$5:$BB$215,D$1,0)","v":78054.586381541929},{"$f":"VLOOKUP($A183,cost_data!$A$5:$BB$215,E$1,0)","v":2554755.1800000099},{"$f":"VLOOKUP($A183,cost_data!$A$5:$BB$215,F$1,0)","v":78054.586381541929},{"$f":"VLOOKUP($A183,cost_data!$A$5:$BB$215,G$1,0)","v":2599524.34},{"$f":"VLOOKUP($A183,cost_data!$A$5:$BB$215,H$1,0)","v":78054.586381541929},{"$f":"VLOOKUP($A183,cost_data!$A$5:$BB$215,I$1,0)","v":1348531.69},{"$f":"VLOOKUP($A183,cost_data!$A$5:$BB$215,J$1,0)","v":78054.586381541929},{"$f":"VLOOKUP($A183,cost_data!$A$5:$BB$215,K$1,0)","v":843720.31000000401},{"$f":"VLOOKUP($A183,cost_data!$A$5:$BB$215,L$1,0)","v":78054.586381541929},{"$f":"VLOOKUP($A183,cost_data!$A$5:$BB$215,M$1,0)","v":643517.88000000501},{"$f":"VLOOKUP($A183,cost_data!$A$5:$BB$215,N$1,0)","v":78054.586381541929},{"$f":"VLOOKUP($A183,cost_data!$A$5:$BB$215,O$1,0)","v":554641.37},{"$f":"VLOOKUP($A183,cost_data!$A$5:$BB$215,P$1,0)","v":78054.586381541929},{"$f":"VLOOKUP($A183,cost_data!$A$5:$BB$215,Q$1,0)","v":606565.19999999297},{"$f":"VLOOKUP($A183,cost_data!$A$5:$BB$215,R$1,0)","v":78054.586381541929},{"$f":"VLOOKUP($A183,cost_data!$A$5:$BB$215,S$1,0)","v":64477.529999999599},{"$f":"VLOOKUP($A183,cost_data!$A$5:$BB$215,T$1,0)","v":78054.586381541929},{"$f":"VLOOKUP($A183,cost_data!$A$5:$BB$215,U$1,0)","v":65775.669999999707},{"$f":"VLOOKUP($A183,cost_data!$A$5:$BB$215,V$1,0)","v":78054.586381541929},{"$f":"VLOOKUP($A183,cost_data!$A$5:$BB$215,W$1,0)","v":42688.650000000103},{"$f":"VLOOKUP($A183,cost_data!$A$5:$BB$215,X$1,0)","v":78054.586381541929},{"$f":"VLOOKUP($A183,cost_data!$A$5:$BB$215,Y$1,0)","v":17764.57},{"$f":"VLOOKUP($A183,cost_data!$A$5:$BB$215,Z$1,0)","v":78054.586381541929},{"$f":"VLOOKUP($A183,cost_data!$A$5:$BB$215,AA$1,0)","v":9341962.3900000304},{"$f":"VLOOKUP($A183,cost_data!$A$5:$BB$215,AB$1,0)","v":3022877}]
["10R","NHS Portsmouth",{"$f":"VLOOKUP($A184,cost_data!$A$5:$BB$215,C$1,0)","v":3700396.27},{"$f":"VLOOKUP($A184,cost_data!$A$5:$BB$215,D$1,0)","v":25186.277912761772},{"$f":"VLOOKUP($A184,cost_data!$A$5:$BB$215,E$1,0)","v":900949.850000003},{"$f":"VLOOKUP($A184,cost_data!$A$5:$BB$215,F$1,0)","v":25186.277912761772},{"$f":"VLOOKUP($A184,cost_data!$A$5:$BB$215,G$1,0)","v":817485.12999999896},{"$f":"VLOOKUP($A184,cost_data!$A$5:$BB$215,H$1,0)","v":25186.277912761772},{"$f":"VLOOKUP($A184,cost_data!$A$5:$BB$215,I$1,0)","v":636628.34},{"$f":"VLOOKUP($A184,cost_data!$A$5:$BB$215,J$1,0)","v":25186.277912761772},{"$f":"VLOOKUP($A184,cost_data!$A$5:$BB$215,K$1,0)","v":380423.36999999802},{"$f":"VLOOKUP($A184,cost_data!$A$5:$BB$215,L$1,0)","v":25186.277912761772},{"$f":"VLOOKUP($A184,cost_data!$A$5:$BB$215,M$1,0)","v":380469.48000000202},{"$f":"VLOOKUP($A184,cost_data!$A$5:$BB$215,N$1,0)","v":25186.277912761772},{"$f":"VLOOKUP($A184,cost_data!$A$5:$BB$215,O$1,0)","v":276010.67999999801},{"$f":"VLOOKUP($A184,cost_data!$A$5:$BB$215,P$1,0)","v":25186.277912761772},{"$f":"VLOOKUP($A184,cost_data!$A$5:$BB$215,Q$1,0)","v":223638.1},{"$f":"VLOOKUP($A184,cost_data!$A$5:$BB$215,R$1,0)","v":25186.277912761772},{"$f":"VLOOKUP($A184,cost_data!$A$5:$BB$215,S$1,0)","v":48224.65},{"$f":"VLOOKUP($A184,cost_data!$A$5:$BB$215,T$1,0)","v":25186.277912761772},{"$f":"VLOOKUP($A184,cost_data!$A$5:$BB$215,U$1,0)","v":18256.09},{"$f":"VLOOKUP($A184,cost_data!$A$5:$BB$215,V$1,0)","v":25186.277912761772},{"$f":"VLOOKUP($A184,cost_data!$A$5:$BB$215,W$1,0)","v":17087.23},{"$f":"VLOOKUP($A184,cost_data!$A$5:$BB$215,X$1,0)","v":25186.277912761772},{"$f":"VLOOKUP($A184,cost_data!$A$5:$BB$215,Y$1,0)","v":1223.3499999999999},{"$f":"VLOOKUP($A184,cost_data!$A$5:$BB$215,Z$1,0)","v":25186.277912761772},{"$f":"VLOOKUP($A184,cost_data!$A$5:$BB$215,AA$1,0)","v":3700396.27},{"$f":"VLOOKUP($A184,cost_data!$A$5:$BB$215,AB$1,0)","v":904321}]
["10T","NHS Slough",{"$f":"VLOOKUP($A185,cost_data!$A$5:$BB$215,C$1,0)","v":2020979.86},{"$f":"VLOOKUP($A185,cost_data!$A$5:$BB$215,D$1,0)","v":21828.125},{"$f":"VLOOKUP($A185,cost_data!$A$5:$BB$215,E$1,0)","v":605086.08000000298},{"$f":"VLOOKUP($A185,cost_data!$A$5:$BB$215,F$1,0)","v":21828.125},{"$f":"VLOOKUP($A185,cost_data!$A$5:$BB$215,G$1,0)","v":620757.98},{"$f":"VLOOKUP($A185,cost_data!$A$5:$BB$215,H$1,0)","v":21828.125},{"$f":"VLOOKUP($A185,cost_data!$A$5:$BB$215,I$1,0)","v":348511.59},{"$f":"VLOOKUP($A185,cost_data!$A$5:$BB$215,J$1,0)","v":21828.125},{"$f":"VLOOKUP($A185,cost_data!$A$5:$BB$215,K$1,0)","v":34879.4},{"$f":"VLOOKUP($A185,cost_data!$A$5:$BB$215,L$1,0)","v":21828.125},{"$f":"VLOOKUP($A185,cost_data!$A$5:$BB$215,M$1,0)","v":124203.08},{"$f":"VLOOKUP($A185,cost_data!$A$5:$BB$215,N$1,0)","v":21828.125},{"$f":"VLOOKUP($A185,cost_data!$A$5:$BB$215,O$1,0)","v":162814.139999999},{"$f":"VLOOKUP($A185,cost_data!$A$5:$BB$215,P$1,0)","v":21828.125},{"$f":"VLOOKUP($A185,cost_data!$A$5:$BB$215,Q$1,0)","v":91512.720000000103},{"$f":"VLOOKUP($A185,cost_data!$A$5:$BB$215,R$1,0)","v":21828.125},{"$f":"VLOOKUP($A185,cost_data!$A$5:$BB$215,S$1,0)","v":8169.38},{"$f":"VLOOKUP($A185,cost_data!$A$5:$BB$215,T$1,0)","v":21828.125},{"$f":"VLOOKUP($A185,cost_data!$A$5:$BB$215,U$1,0)","v":6289.75000000001},{"$f":"VLOOKUP($A185,cost_data!$A$5:$BB$215,V$1,0)","v":21828.125},{"$f":"VLOOKUP($A185,cost_data!$A$5:$BB$215,W$1,0)","v":10804.69},{"$f":"VLOOKUP($A185,cost_data!$A$5:$BB$215,X$1,0)","v":21828.125},{"$f":"VLOOKUP($A185,cost_data!$A$5:$BB$215,Y$1,0)","v":7951.05},{"$f":"VLOOKUP($A185,cost_data!$A$5:$BB$215,Z$1,0)","v":21828.125},{"$f":"VLOOKUP($A185,cost_data!$A$5:$BB$215,AA$1,0)","v":2020979.86},{"$f":"VLOOKUP($A185,cost_data!$A$5:$BB$215,AB$1,0)","v":627733}]
["10V","NHS South Eastern Hampshire",{"$f":"VLOOKUP($A186,cost_data!$A$5:$BB$215,C$1,0)","v":4584611.4000000004},{"$f":"VLOOKUP($A186,cost_data!$A$5:$BB$215,D$1,0)","v":19133.583592748579},{"$f":"VLOOKUP($A186,cost_data!$A$5:$BB$215,E$1,0)","v":1188863.1599999999},{"$f":"VLOOKUP($A186,cost_data!$A$5:$BB$215,F$1,0)","v":19133.583592748579},{"$f":"VLOOKUP($A186,cost_data!$A$5:$BB$215,G$1,0)","v":1106621.08},{"$f":"VLOOKUP($A186,cost_data!$A$5:$BB$215,H$1,0)","v":19133.583592748579},{"$f":"VLOOKUP($A186,cost_data!$A$5:$BB$215,I$1,0)","v":750600.31},{"$f":"VLOOKUP($A186,cost_data!$A$5:$BB$215,J$1,0)","v":19133.583592748579},{"$f":"VLOOKUP($A186,cost_data!$A$5:$BB$215,K$1,0)","v":430790.04999999801},{"$f":"VLOOKUP($A186,cost_data!$A$5:$BB$215,L$1,0)","v":19133.583592748579},{"$f":"VLOOKUP($A186,cost_data!$A$5:$BB$215,M$1,0)","v":432985.44000000198},{"$f":"VLOOKUP($A186,cost_data!$A$5:$BB$215,N$1,0)","v":19133.583592748579},{"$f":"VLOOKUP($A186,cost_data!$A$5:$BB$215,O$1,0)","v":300669.83999999799},{"$f":"VLOOKUP($A186,cost_data!$A$5:$BB$215,P$1,0)","v":19133.583592748579},{"$f":"VLOOKUP($A186,cost_data!$A$5:$BB$215,Q$1,0)","v":273144.99},{"$f":"VLOOKUP($A186,cost_data!$A$5:$BB$215,R$1,0)","v":19133.583592748579},{"$f":"VLOOKUP($A186,cost_data!$A$5:$BB$215,S$1,0)","v":60741.169999999896},{"$f":"VLOOKUP($A186,cost_data!$A$5:$BB$215,T$1,0)","v":19133.583592748579},{"$f":"VLOOKUP($A186,cost_data!$A$5:$BB$215,U$1,0)","v":22217.45},{"$f":"VLOOKUP($A186,cost_data!$A$5:$BB$215,V$1,0)","v":19133.583592748579},{"$f":"VLOOKUP($A186,cost_data!$A$5:$BB$215,W$1,0)","v":15621.56},{"$f":"VLOOKUP($A186,cost_data!$A$5:$BB$215,X$1,0)","v":19133.583592748579},{"$f":"VLOOKUP($A186,cost_data!$A$5:$BB$215,Y$1,0)","v":2356.35},{"$f":"VLOOKUP($A186,cost_data!$A$5:$BB$215,Z$1,0)","v":19133.583592748579},{"$f":"VLOOKUP($A186,cost_data!$A$5:$BB$215,AA$1,0)","v":4584611.4000000004},{"$f":"VLOOKUP($A186,cost_data!$A$5:$BB$215,AB$1,0)","v":1063956}]
["10W","NHS South Reading",{"$f":"VLOOKUP($A187,cost_data!$A$5:$BB$215,C$1,0)","v":1667852.69},{"$f":"VLOOKUP($A187,cost_data!$A$5:$BB$215,D$1,0)","v":19374.45191464484},{"$f":"VLOOKUP($A187,cost_data!$A$5:$BB$215,E$1,0)","v":546130.81000000203},{"$f":"VLOOKUP($A187,cost_data!$A$5:$BB$215,F$1,0)","v":19374.45191464484},{"$f":"VLOOKUP($A187,cost_data!$A$5:$BB$215,G$1,0)","v":400288.41},{"$f":"VLOOKUP($A187,cost_data!$A$5:$BB$215,H$1,0)","v":19374.45191464484},{"$f":"VLOOKUP($A187,cost_data!$A$5:$BB$215,I$1,0)","v":308271.83},{"$f":"VLOOKUP($A187,cost_data!$A$5:$BB$215,J$1,0)","v":19374.45191464484},{"$f":"VLOOKUP($A187,cost_data!$A$5:$BB$215,K$1,0)","v":109213.49},{"$f":"VLOOKUP($A187,cost_data!$A$5:$BB$215,L$1,0)","v":19374.45191464484},{"$f":"VLOOKUP($A187,cost_data!$A$5:$BB$215,M$1,0)","v":108009.82},{"$f":"VLOOKUP($A187,cost_data!$A$5:$BB$215,N$1,0)","v":19374.45191464484},{"$f":"VLOOKUP($A187,cost_data!$A$5:$BB$215,O$1,0)","v":84895.739999999802},{"$f":"VLOOKUP($A187,cost_data!$A$5:$BB$215,P$1,0)","v":19374.45191464484},{"$f":"VLOOKUP($A187,cost_data!$A$5:$BB$215,Q$1,0)","v":87414.430000000095},{"$f":"VLOOKUP($A187,cost_data!$A$5:$BB$215,R$1,0)","v":19374.45191464484},{"$f":"VLOOKUP($A187,cost_data!$A$5:$BB$215,S$1,0)","v":10990.36},{"$f":"VLOOKUP($A187,cost_data!$A$5:$BB$215,T$1,0)","v":19374.45191464484},{"$f":"VLOOKUP($A187,cost_data!$A$5:$BB$215,U$1,0)","v":5723.8300000000099},{"$f":"VLOOKUP($A187,cost_data!$A$5:$BB$215,V$1,0)","v":19374.45191464484},{"$f":"VLOOKUP($A187,cost_data!$A$5:$BB$215,W$1,0)","v":5803.2},{"$f":"VLOOKUP($A187,cost_data!$A$5:$BB$215,X$1,0)","v":19374.45191464484},{"$f":"VLOOKUP($A187,cost_data!$A$5:$BB$215,Y$1,0)","v":1110.77},{"$f":"VLOOKUP($A187,cost_data!$A$5:$BB$215,Z$1,0)","v":19374.45191464484},{"$f":"VLOOKUP($A187,cost_data!$A$5:$BB$215,AA$1,0)","v":1667852.69},{"$f":"VLOOKUP($A187,cost_data!$A$5:$BB$215,AB$1,0)","v":459040}]
["10X","NHS Southampton",{"$f":"VLOOKUP($A188,cost_data!$A$5:$BB$215,C$1,0)","v":3921651.65},{"$f":"VLOOKUP($A188,cost_data!$A$5:$BB$215,D$1,0)","v":32183.29326923077},{"$f":"VLOOKUP($A188,cost_data!$A$5:$BB$215,E$1,0)","v":1180803.49},{"$f":"VLOOKUP($A188,cost_data!$A$5:$BB$215,F$1,0)","v":32183.29326923077},{"$f":"VLOOKUP($A188,cost_data!$A$5:$BB$215,G$1,0)","v":949679.26},{"$f":"VLOOKUP($A188,cost_data!$A$5:$BB$215,H$1,0)","v":32183.29326923077},{"$f":"VLOOKUP($A188,cost_data!$A$5:$BB$215,I$1,0)","v":705520.27999999898},{"$f":"VLOOKUP($A188,cost_data!$A$5:$BB$215,J$1,0)","v":32183.29326923077},{"$f":"VLOOKUP($A188,cost_data!$A$5:$BB$215,K$1,0)","v":267012.859999999},{"$f":"VLOOKUP($A188,cost_data!$A$5:$BB$215,L$1,0)","v":32183.29326923077},{"$f":"VLOOKUP($A188,cost_data!$A$5:$BB$215,M$1,0)","v":277194.78000000201},{"$f":"VLOOKUP($A188,cost_data!$A$5:$BB$215,N$1,0)","v":32183.29326923077},{"$f":"VLOOKUP($A188,cost_data!$A$5:$BB$215,O$1,0)","v":224282.7},{"$f":"VLOOKUP($A188,cost_data!$A$5:$BB$215,P$1,0)","v":32183.29326923077},{"$f":"VLOOKUP($A188,cost_data!$A$5:$BB$215,Q$1,0)","v":237282.34},{"$f":"VLOOKUP($A188,cost_data!$A$5:$BB$215,R$1,0)","v":32183.29326923077},{"$f":"VLOOKUP($A188,cost_data!$A$5:$BB$215,S$1,0)","v":35544.81},{"$f":"VLOOKUP($A188,cost_data!$A$5:$BB$215,T$1,0)","v":32183.29326923077},{"$f":"VLOOKUP($A188,cost_data!$A$5:$BB$215,U$1,0)","v":19286.64},{"$f":"VLOOKUP($A188,cost_data!$A$5:$BB$215,V$1,0)","v":32183.29326923077},{"$f":"VLOOKUP($A188,cost_data!$A$5:$BB$215,W$1,0)","v":14572.05},{"$f":"VLOOKUP($A188,cost_data!$A$5:$BB$215,X$1,0)","v":32183.29326923077},{"$f":"VLOOKUP($A188,cost_data!$A$5:$BB$215,Y$1,0)","v":10472.44},{"$f":"VLOOKUP($A188,cost_data!$A$5:$BB$215,Z$1,0)","v":32183.29326923077},{"$f":"VLOOKUP($A188,cost_data!$A$5:$BB$215,AA$1,0)","v":3921651.65},{"$f":"VLOOKUP($A188,cost_data!$A$5:$BB$215,AB$1,0)","v":892197}]
["10Y","NHS Aylesbury Vale",{"$f":"VLOOKUP($A189,cost_data!$A$5:$BB$215,C$1,0)","v":3307906.1999999899},{"$f":"VLOOKUP($A189,cost_data!$A$5:$BB$215,D$1,0)","v":22839.234885574406},{"$f":"VLOOKUP($A189,cost_data!$A$5:$BB$215,E$1,0)","v":933205.98000000301},{"$f":"VLOOKUP($A189,cost_data!$A$5:$BB$215,F$1,0)","v":22839.234885574406},{"$f":"VLOOKUP($A189,cost_data!$A$5:$BB$215,G$1,0)","v":1036922.05},{"$f":"VLOOKUP($A189,cost_data!$A$5:$BB$215,H$1,0)","v":22839.234885574406},{"$f":"VLOOKUP($A189,cost_data!$A$5:$BB$215,I$1,0)","v":516443.48},{"$f":"VLOOKUP($A189,cost_data!$A$5:$BB$215,J$1,0)","v":22839.234885574406},{"$f":"VLOOKUP($A189,cost_data!$A$5:$BB$215,K$1,0)","v":197922.25},{"$f":"VLOOKUP($A189,cost_data!$A$5:$BB$215,L$1,0)","v":22839.234885574406},{"$f":"VLOOKUP($A189,cost_data!$A$5:$BB$215,M$1,0)","v":230322.049999999},{"$f":"VLOOKUP($A189,cost_data!$A$5:$BB$215,N$1,0)","v":22839.234885574406},{"$f":"VLOOKUP($A189,cost_data!$A$5:$BB$215,O$1,0)","v":171328.4},{"$f":"VLOOKUP($A189,cost_data!$A$5:$BB$215,P$1,0)","v":22839.234885574406},{"$f":"VLOOKUP($A189,cost_data!$A$5:$BB$215,Q$1,0)","v":162629.17000000001},{"$f":"VLOOKUP($A189,cost_data!$A$5:$BB$215,R$1,0)","v":22839.234885574406},{"$f":"VLOOKUP($A189,cost_data!$A$5:$BB$215,S$1,0)","v":24990.63},{"$f":"VLOOKUP($A189,cost_data!$A$5:$BB$215,T$1,0)","v":22839.234885574406},{"$f":"VLOOKUP($A189,cost_data!$A$5:$BB$215,U$1,0)","v":19999.02},{"$f":"VLOOKUP($A189,cost_data!$A$5:$BB$215,V$1,0)","v":22839.234885574406},{"$f":"VLOOKUP($A189,cost_data!$A$5:$BB$215,W$1,0)","v":12164.83},{"$f":"VLOOKUP($A189,cost_data!$A$5:$BB$215,X$1,0)","v":22839.234885574406},{"$f":"VLOOKUP($A189,cost_data!$A$5:$BB$215,Y$1,0)","v":1978.34},{"$f":"VLOOKUP($A189,cost_data!$A$5:$BB$215,Z$1,0)","v":22839.234885574406},{"$f":"VLOOKUP($A189,cost_data!$A$5:$BB$215,AA$1,0)","v":3307906.1999999899},{"$f":"VLOOKUP($A189,cost_data!$A$5:$BB$215,AB$1,0)","v":1023474}]
["11A","NHS West Hampshire",{"$f":"VLOOKUP($A190,cost_data!$A$5:$BB$215,C$1,0)","v":10886732.41},{"$f":"VLOOKUP($A190,cost_data!$A$5:$BB$215,D$1,0)","v":51541.832669322714},{"$f":"VLOOKUP($A190,cost_data!$A$5:$BB$215,E$1,0)","v":2946628.04999997},{"$f":"VLOOKUP($A190,cost_data!$A$5:$BB$215,F$1,0)","v":51541.832669322714},{"$f":"VLOOKUP($A190,cost_data!$A$5:$BB$215,G$1,0)","v":3095523.91},{"$f":"VLOOKUP($A190,cost_data!$A$5:$BB$215,H$1,0)","v":51541.832669322714},{"$f":"VLOOKUP($A190,cost_data!$A$5:$BB$215,I$1,0)","v":1734993.08},{"$f":"VLOOKUP($A190,cost_data!$A$5:$BB$215,J$1,0)","v":51541.832669322714},{"$f":"VLOOKUP($A190,cost_data!$A$5:$BB$215,K$1,0)","v":756739.340000008},{"$f":"VLOOKUP($A190,cost_data!$A$5:$BB$215,L$1,0)","v":51541.832669322714},{"$f":"VLOOKUP($A190,cost_data!$A$5:$BB$215,M$1,0)","v":788555.91000001004},{"$f":"VLOOKUP($A190,cost_data!$A$5:$BB$215,N$1,0)","v":51541.832669322714},{"$f":"VLOOKUP($A190,cost_data!$A$5:$BB$215,O$1,0)","v":703503.84000000195},{"$f":"VLOOKUP($A190,cost_data!$A$5:$BB$215,P$1,0)","v":51541.832669322714},{"$f":"VLOOKUP($A190,cost_data!$A$5:$BB$215,Q$1,0)","v":626171.95999999298},{"$f":"VLOOKUP($A190,cost_data!$A$5:$BB$215,R$1,0)","v":51541.832669322714},{"$f":"VLOOKUP($A190,cost_data!$A$5:$BB$215,S$1,0)","v":104738.57},{"$f":"VLOOKUP($A190,cost_data!$A$5:$BB$215,T$1,0)","v":51541.832669322714},{"$f":"VLOOKUP($A190,cost_data!$A$5:$BB$215,U$1,0)","v":54076.26},{"$f":"VLOOKUP($A190,cost_data!$A$5:$BB$215,V$1,0)","v":51541.832669322714},{"$f":"VLOOKUP($A190,cost_data!$A$5:$BB$215,W$1,0)","v":37941.81},{"$f":"VLOOKUP($A190,cost_data!$A$5:$BB$215,X$1,0)","v":51541.832669322714},{"$f":"VLOOKUP($A190,cost_data!$A$5:$BB$215,Y$1,0)","v":37859.68},{"$f":"VLOOKUP($A190,cost_data!$A$5:$BB$215,Z$1,0)","v":51541.832669322714},{"$f":"VLOOKUP($A190,cost_data!$A$5:$BB$215,AA$1,0)","v":10886732.41},{"$f":"VLOOKUP($A190,cost_data!$A$5:$BB$215,AB$1,0)","v":2663884}]
["11C","NHS Windsor, Ascot and Maidenhead",{"$f":"VLOOKUP($A191,cost_data!$A$5:$BB$215,C$1,0)","v":2196645.16},{"$f":"VLOOKUP($A191,cost_data!$A$5:$BB$215,D$1,0)","v":17009.578970817554},{"$f":"VLOOKUP($A191,cost_data!$A$5:$BB$215,E$1,0)","v":704549.85000000196},{"$f":"VLOOKUP($A191,cost_data!$A$5:$BB$215,F$1,0)","v":17009.578970817554},{"$f":"VLOOKUP($A191,cost_data!$A$5:$BB$215,G$1,0)","v":623401.11},{"$f":"VLOOKUP($A191,cost_data!$A$5:$BB$215,H$1,0)","v":17009.578970817554},{"$f":"VLOOKUP($A191,cost_data!$A$5:$BB$215,I$1,0)","v":338895.03},{"$f":"VLOOKUP($A191,cost_data!$A$5:$BB$215,J$1,0)","v":17009.578970817554},{"$f":"VLOOKUP($A191,cost_data!$A$5:$BB$215,K$1,0)","v":78741.790000000095},{"$f":"VLOOKUP($A191,cost_data!$A$5:$BB$215,L$1,0)","v":17009.578970817554},{"$f":"VLOOKUP($A191,cost_data!$A$5:$BB$215,M$1,0)","v":135796.22},{"$f":"VLOOKUP($A191,cost_data!$A$5:$BB$215,N$1,0)","v":17009.578970817554},{"$f":"VLOOKUP($A191,cost_data!$A$5:$BB$215,O$1,0)","v":146696.68999999901},{"$f":"VLOOKUP($A191,cost_data!$A$5:$BB$215,P$1,0)","v":17009.578970817554},{"$f":"VLOOKUP($A191,cost_data!$A$5:$BB$215,Q$1,0)","v":124466.82},{"$f":"VLOOKUP($A191,cost_data!$A$5:$BB$215,R$1,0)","v":17009.578970817554},{"$f":"VLOOKUP($A191,cost_data!$A$5:$BB$215,S$1,0)","v":16663.53},{"$f":"VLOOKUP($A191,cost_data!$A$5:$BB$215,T$1,0)","v":17009.578970817554},{"$f":"VLOOKUP($A191,cost_data!$A$5:$BB$215,U$1,0)","v":11653.84},{"$f":"VLOOKUP($A191,cost_data!$A$5:$BB$215,V$1,0)","v":17009.578970817554},{"$f":"VLOOKUP($A191,cost_data!$A$5:$BB$215,W$1,0)","v":9310.06},{"$f":"VLOOKUP($A191,cost_data!$A$5:$BB$215,X$1,0)","v":17009.578970817554},{"$f":"VLOOKUP($A191,cost_data!$A$5:$BB$215,Y$1,0)","v":6470.22},{"$f":"VLOOKUP($A191,cost_data!$A$5:$BB$215,Z$1,0)","v":17009.578970817554},{"$f":"VLOOKUP($A191,cost_data!$A$5:$BB$215,AA$1,0)","v":2196645.16},{"$f":"VLOOKUP($A191,cost_data!$A$5:$BB$215,AB$1,0)","v":540612}]
["11D","NHS Wokingham",{"$f":"VLOOKUP($A192,cost_data!$A$5:$BB$215,C$1,0)","v":2265827.59},{"$f":"VLOOKUP($A192,cost_data!$A$5:$BB$215,D$1,0)","v":18028.326974216674},{"$f":"VLOOKUP($A192,cost_data!$A$5:$BB$215,E$1,0)","v":650954.87},{"$f":"VLOOKUP($A192,cost_data!$A$5:$BB$215,F$1,0)","v":18028.326974216674},{"$f":"VLOOKUP($A192,cost_data!$A$5:$BB$215,G$1,0)","v":564361.80000000005},{"$f":"VLOOKUP($A192,cost_data!$A$5:$BB$215,H$1,0)","v":18028.326974216674},{"$f":"VLOOKUP($A192,cost_data!$A$5:$BB$215,I$1,0)","v":443425.44},{"$f":"VLOOKUP($A192,cost_data!$A$5:$BB$215,J$1,0)","v":18028.326974216674},{"$f":"VLOOKUP($A192,cost_data!$A$5:$BB$215,K$1,0)","v":131255.09},{"$f":"VLOOKUP($A192,cost_data!$A$5:$BB$215,L$1,0)","v":18028.326974216674},{"$f":"VLOOKUP($A192,cost_data!$A$5:$BB$215,M$1,0)","v":174814.15999999901},{"$f":"VLOOKUP($A192,cost_data!$A$5:$BB$215,N$1,0)","v":18028.326974216674},{"$f":"VLOOKUP($A192,cost_data!$A$5:$BB$215,O$1,0)","v":120016.96000000001},{"$f":"VLOOKUP($A192,cost_data!$A$5:$BB$215,P$1,0)","v":18028.326974216674},{"$f":"VLOOKUP($A192,cost_data!$A$5:$BB$215,Q$1,0)","v":130733.85},{"$f":"VLOOKUP($A192,cost_data!$A$5:$BB$215,R$1,0)","v":18028.326974216674},{"$f":"VLOOKUP($A192,cost_data!$A$5:$BB$215,S$1,0)","v":29219.96},{"$f":"VLOOKUP($A192,cost_data!$A$5:$BB$215,T$1,0)","v":18028.326974216674},{"$f":"VLOOKUP($A192,cost_data!$A$5:$BB$215,U$1,0)","v":9700.3200000000106},{"$f":"VLOOKUP($A192,cost_data!$A$5:$BB$215,V$1,0)","v":18028.326974216674},{"$f":"VLOOKUP($A192,cost_data!$A$5:$BB$215,W$1,0)","v":7846.8699999999899},{"$f":"VLOOKUP($A192,cost_data!$A$5:$BB$215,X$1,0)","v":18028.326974216674},{"$f":"VLOOKUP($A192,cost_data!$A$5:$BB$215,Y$1,0)","v":3498.27},{"$f":"VLOOKUP($A192,cost_data!$A$5:$BB$215,Z$1,0)","v":18028.326974216674},{"$f":"VLOOKUP($A192,cost_data!$A$5:$BB$215,AA$1,0)","v":2265827.59},{"$f":"VLOOKUP($A192,cost_data!$A$5:$BB$215,AB$1,0)","v":576303}]
["11E","NHS Bath and North East Somerset",{"$f":"VLOOKUP($A193,cost_data!$A$5:$BB$215,C$1,0)","v":3172756.2},{"$f":"VLOOKUP($A193,cost_data!$A$5:$BB$215,D$1,0)","v":20319.155478118275},{"$f":"VLOOKUP($A193,cost_data!$A$5:$BB$215,E$1,0)","v":993592.270000002},{"$f":"VLOOKUP($A193,cost_data!$A$5:$BB$215,F$1,0)","v":20319.155478118275},{"$f":"VLOOKUP($A193,cost_data!$A$5:$BB$215,G$1,0)","v":710271.41},{"$f":"VLOOKUP($A193,cost_data!$A$5:$BB$215,H$1,0)","v":20319.155478118275},{"$f":"VLOOKUP($A193,cost_data!$A$5:$BB$215,I$1,0)","v":593102.17000000004},{"$f":"VLOOKUP($A193,cost_data!$A$5:$BB$215,J$1,0)","v":20319.155478118275},{"$f":"VLOOKUP($A193,cost_data!$A$5:$BB$215,K$1,0)","v":180083.42},{"$f":"VLOOKUP($A193,cost_data!$A$5:$BB$215,L$1,0)","v":20319.155478118275},{"$f":"VLOOKUP($A193,cost_data!$A$5:$BB$215,M$1,0)","v":212467.25999999899},{"$f":"VLOOKUP($A193,cost_data!$A$5:$BB$215,N$1,0)","v":20319.155478118275},{"$f":"VLOOKUP($A193,cost_data!$A$5:$BB$215,O$1,0)","v":219973.03999999899},{"$f":"VLOOKUP($A193,cost_data!$A$5:$BB$215,P$1,0)","v":20319.155478118275},{"$f":"VLOOKUP($A193,cost_data!$A$5:$BB$215,Q$1,0)","v":194091.44000000099},{"$f":"VLOOKUP($A193,cost_data!$A$5:$BB$215,R$1,0)","v":20319.155478118275},{"$f":"VLOOKUP($A193,cost_data!$A$5:$BB$215,S$1,0)","v":29640.49},{"$f":"VLOOKUP($A193,cost_data!$A$5:$BB$215,T$1,0)","v":20319.155478118275},{"$f":"VLOOKUP($A193,cost_data!$A$5:$BB$215,U$1,0)","v":20922.689999999999},{"$f":"VLOOKUP($A193,cost_data!$A$5:$BB$215,V$1,0)","v":20319.155478118275},{"$f":"VLOOKUP($A193,cost_data!$A$5:$BB$215,W$1,0)","v":11418.87},{"$f":"VLOOKUP($A193,cost_data!$A$5:$BB$215,X$1,0)","v":20319.155478118275},{"$f":"VLOOKUP($A193,cost_data!$A$5:$BB$215,Y$1,0)","v":7193.14},{"$f":"VLOOKUP($A193,cost_data!$A$5:$BB$215,Z$1,0)","v":20319.155478118275},{"$f":"VLOOKUP($A193,cost_data!$A$5:$BB$215,AA$1,0)","v":3172756.2},{"$f":"VLOOKUP($A193,cost_data!$A$5:$BB$215,AB$1,0)","v":1141835}]
["11H","NHS Bristol",{"$f":"VLOOKUP($A194,cost_data!$A$5:$BB$215,C$1,0)","v":6830149.7699999902},{"$f":"VLOOKUP($A194,cost_data!$A$5:$BB$215,D$1,0)","v":57073.43565525383},{"$f":"VLOOKUP($A194,cost_data!$A$5:$BB$215,E$1,0)","v":1777450.4100000099},{"$f":"VLOOKUP($A194,cost_data!$A$5:$BB$215,F$1,0)","v":57073.43565525383},{"$f":"VLOOKUP($A194,cost_data!$A$5:$BB$215,G$1,0)","v":1457197.88},{"$f":"VLOOKUP($A194,cost_data!$A$5:$BB$215,H$1,0)","v":57073.43565525383},{"$f":"VLOOKUP($A194,cost_data!$A$5:$BB$215,I$1,0)","v":1133930.8600000001},{"$f":"VLOOKUP($A194,cost_data!$A$5:$BB$215,J$1,0)","v":57073.43565525383},{"$f":"VLOOKUP($A194,cost_data!$A$5:$BB$215,K$1,0)","v":907879.41000000201},{"$f":"VLOOKUP($A194,cost_data!$A$5:$BB$215,L$1,0)","v":57073.43565525383},{"$f":"VLOOKUP($A194,cost_data!$A$5:$BB$215,M$1,0)","v":464505.91000000201},{"$f":"VLOOKUP($A194,cost_data!$A$5:$BB$215,N$1,0)","v":57073.43565525383},{"$f":"VLOOKUP($A194,cost_data!$A$5:$BB$215,O$1,0)","v":498990.759999995},{"$f":"VLOOKUP($A194,cost_data!$A$5:$BB$215,P$1,0)","v":57073.43565525383},{"$f":"VLOOKUP($A194,cost_data!$A$5:$BB$215,Q$1,0)","v":445650.29999999801},{"$f":"VLOOKUP($A194,cost_data!$A$5:$BB$215,R$1,0)","v":57073.43565525383},{"$f":"VLOOKUP($A194,cost_data!$A$5:$BB$215,S$1,0)","v":60398.109999999702},{"$f":"VLOOKUP($A194,cost_data!$A$5:$BB$215,T$1,0)","v":57073.43565525383},{"$f":"VLOOKUP($A194,cost_data!$A$5:$BB$215,U$1,0)","v":35484.119999999901},{"$f":"VLOOKUP($A194,cost_data!$A$5:$BB$215,V$1,0)","v":57073.43565525383},{"$f":"VLOOKUP($A194,cost_data!$A$5:$BB$215,W$1,0)","v":26100.97},{"$f":"VLOOKUP($A194,cost_data!$A$5:$BB$215,X$1,0)","v":57073.43565525383},{"$f":"VLOOKUP($A194,cost_data!$A$5:$BB$215,Y$1,0)","v":22561.040000000001},{"$f":"VLOOKUP($A194,cost_data!$A$5:$BB$215,Z$1,0)","v":57073.43565525383},{"$f":"VLOOKUP($A194,cost_data!$A$5:$BB$215,AA$1,0)","v":6830149.7699999902},{"$f":"VLOOKUP($A194,cost_data!$A$5:$BB$215,AB$1,0)","v":2165262}]
["11J","NHS Dorset",{"$f":"VLOOKUP($A195,cost_data!$A$5:$BB$215,C$1,0)","v":15123384.1100001},{"$f":"VLOOKUP($A195,cost_data!$A$5:$BB$215,D$1,0)","v":67440.880887879059},{"$f":"VLOOKUP($A195,cost_data!$A$5:$BB$215,E$1,0)","v":3791754.85999995},{"$f":"VLOOKUP($A195,cost_data!$A$5:$BB$215,F$1,0)","v":67440.880887879059},{"$f":"VLOOKUP($A195,cost_data!$A$5:$BB$215,G$1,0)","v":4032937.95},{"$f":"VLOOKUP($A195,cost_data!$A$5:$BB$215,H$1,0)","v":67440.880887879059},{"$f":"VLOOKUP($A195,cost_data!$A$5:$BB$215,I$1,0)","v":2678260.8099999898},{"$f":"VLOOKUP($A195,cost_data!$A$5:$BB$215,J$1,0)","v":67440.880887879059},{"$f":"VLOOKUP($A195,cost_data!$A$5:$BB$215,K$1,0)","v":925610.97000000603},{"$f":"VLOOKUP($A195,cost_data!$A$5:$BB$215,L$1,0)","v":67440.880887879059},{"$f":"VLOOKUP($A195,cost_data!$A$5:$BB$215,M$1,0)","v":1366327.8500000101},{"$f":"VLOOKUP($A195,cost_data!$A$5:$BB$215,N$1,0)","v":67440.880887879059},{"$f":"VLOOKUP($A195,cost_data!$A$5:$BB$215,O$1,0)","v":1127146.0500000201},{"$f":"VLOOKUP($A195,cost_data!$A$5:$BB$215,P$1,0)","v":67440.880887879059},{"$f":"VLOOKUP($A195,cost_data!$A$5:$BB$215,Q$1,0)","v":878871.71999999403},{"$f":"VLOOKUP($A195,cost_data!$A$5:$BB$215,R$1,0)","v":67440.880887879059},{"$f":"VLOOKUP($A195,cost_data!$A$5:$BB$215,S$1,0)","v":155656.30999999901},{"$f":"VLOOKUP($A195,cost_data!$A$5:$BB$215,T$1,0)","v":67440.880887879059},{"$f":"VLOOKUP($A195,cost_data!$A$5:$BB$215,U$1,0)","v":88931.940000000206},{"$f":"VLOOKUP($A195,cost_data!$A$5:$BB$215,V$1,0)","v":67440.880887879059},{"$f":"VLOOKUP($A195,cost_data!$A$5:$BB$215,W$1,0)","v":44961.900000000198},{"$f":"VLOOKUP($A195,cost_data!$A$5:$BB$215,X$1,0)","v":67440.880887879059},{"$f":"VLOOKUP($A195,cost_data!$A$5:$BB$215,Y$1,0)","v":32923.75},{"$f":"VLOOKUP($A195,cost_data!$A$5:$BB$215,Z$1,0)","v":67440.880887879059},{"$f":"VLOOKUP($A195,cost_data!$A$5:$BB$215,AA$1,0)","v":15123384.1100001},{"$f":"VLOOKUP($A195,cost_data!$A$5:$BB$215,AB$1,0)","v":4345312}]
["11M","NHS Gloucestershire",{"$f":"VLOOKUP($A196,cost_data!$A$5:$BB$215,C$1,0)","v":11864398.220000001},{"$f":"VLOOKUP($A196,cost_data!$A$5:$BB$215,D$1,0)","v":61582.133995037228},{"$f":"VLOOKUP($A196,cost_data!$A$5:$BB$215,E$1,0)","v":3642856.8899999401},{"$f":"VLOOKUP($A196,cost_data!$A$5:$BB$215,F$1,0)","v":61582.133995037228},{"$f":"VLOOKUP($A196,cost_data!$A$5:$BB$215,G$1,0)","v":2500798.67},{"$f":"VLOOKUP($A196,cost_data!$A$5:$BB$215,H$1,0)","v":61582.133995037228},{"$f":"VLOOKUP($A196,cost_data!$A$5:$BB$215,I$1,0)","v":2057407.93},{"$f":"VLOOKUP($A196,cost_data!$A$5:$BB$215,J$1,0)","v":61582.133995037228},{"$f":"VLOOKUP($A196,cost_data!$A$5:$BB$215,K$1,0)","v":1108382.54000001},{"$f":"VLOOKUP($A196,cost_data!$A$5:$BB$215,L$1,0)","v":61582.133995037228},{"$f":"VLOOKUP($A196,cost_data!$A$5:$BB$215,M$1,0)","v":791094.01000000397},{"$f":"VLOOKUP($A196,cost_data!$A$5:$BB$215,N$1,0)","v":61582.133995037228},{"$f":"VLOOKUP($A196,cost_data!$A$5:$BB$215,O$1,0)","v":760811.89000001096},{"$f":"VLOOKUP($A196,cost_data!$A$5:$BB$215,P$1,0)","v":61582.133995037228},{"$f":"VLOOKUP($A196,cost_data!$A$5:$BB$215,Q$1,0)","v":684727.03999999096},{"$f":"VLOOKUP($A196,cost_data!$A$5:$BB$215,R$1,0)","v":61582.133995037228},{"$f":"VLOOKUP($A196,cost_data!$A$5:$BB$215,S$1,0)","v":74202.879999999699},{"$f":"VLOOKUP($A196,cost_data!$A$5:$BB$215,T$1,0)","v":61582.133995037228},{"$f":"VLOOKUP($A196,cost_data!$A$5:$BB$215,U$1,0)","v":67490.83},{"$f":"VLOOKUP($A196,cost_data!$A$5:$BB$215,V$1,0)","v":61582.133995037228},{"$f":"VLOOKUP($A196,cost_data!$A$5:$BB$215,W$1,0)","v":36938.1000000001},{"$f":"VLOOKUP($A196,cost_data!$A$5:$BB$215,X$1,0)","v":61582.133995037228},{"$f":"VLOOKUP($A196,cost_data!$A$5:$BB$215,Y$1,0)","v":139687.44},{"$f":"VLOOKUP($A196,cost_data!$A$5:$BB$215,Z$1,0)","v":61582.133995037228},{"$f":"VLOOKUP($A196,cost_data!$A$5:$BB$215,AA$1,0)","v":11864398.220000001},{"$f":"VLOOKUP($A196,cost_data!$A$5:$BB$215,AB$1,0)","v":3673744}]
["11N","NHS Kernow",{"$f":"VLOOKUP($A197,cost_data!$A$5:$BB$215,C$1,0)","v":11431565.66},{"$f":"VLOOKUP($A197,cost_data!$A$5:$BB$215,D$1,0)","v":49472.271438695956},{"$f":"VLOOKUP($A197,cost_data!$A$5:$BB$215,E$1,0)","v":3256517.3399999398},{"$f":"VLOOKUP($A197,cost_data!$A$5:$BB$215,F$1,0)","v":49472.271438695956},{"$f":"VLOOKUP($A197,cost_data!$A$5:$BB$215,G$1,0)","v":2699788.22},{"$f":"VLOOKUP($A197,cost_data!$A$5:$BB$215,H$1,0)","v":49472.271438695956},{"$f":"VLOOKUP($A197,cost_data!$A$5:$BB$215,I$1,0)","v":2077134.21999999},{"$f":"VLOOKUP($A197,cost_data!$A$5:$BB$215,J$1,0)","v":49472.271438695956},{"$f":"VLOOKUP($A197,cost_data!$A$5:$BB$215,K$1,0)","v":946320.33000000298},{"$f":"VLOOKUP($A197,cost_data!$A$5:$BB$215,L$1,0)","v":49472.271438695956},{"$f":"VLOOKUP($A197,cost_data!$A$5:$BB$215,M$1,0)","v":847379.51000001002},{"$f":"VLOOKUP($A197,cost_data!$A$5:$BB$215,N$1,0)","v":49472.271438695956},{"$f":"VLOOKUP($A197,cost_data!$A$5:$BB$215,O$1,0)","v":743726.630000012},{"$f":"VLOOKUP($A197,cost_data!$A$5:$BB$215,P$1,0)","v":49472.271438695956},{"$f":"VLOOKUP($A197,cost_data!$A$5:$BB$215,Q$1,0)","v":643071.62999999197},{"$f":"VLOOKUP($A197,cost_data!$A$5:$BB$215,R$1,0)","v":49472.271438695956},{"$f":"VLOOKUP($A197,cost_data!$A$5:$BB$215,S$1,0)","v":95545.659999999698},{"$f":"VLOOKUP($A197,cost_data!$A$5:$BB$215,T$1,0)","v":49472.271438695956},{"$f":"VLOOKUP($A197,cost_data!$A$5:$BB$215,U$1,0)","v":75423.389999999898},{"$f":"VLOOKUP($A197,cost_data!$A$5:$BB$215,V$1,0)","v":49472.271438695956},{"$f":"VLOOKUP($A197,cost_data!$A$5:$BB$215,W$1,0)","v":30505.29},{"$f":"VLOOKUP($A197,cost_data!$A$5:$BB$215,X$1,0)","v":49472.271438695956},{"$f":"VLOOKUP($A197,cost_data!$A$5:$BB$215,Y$1,0)","v":16134.24},{"$f":"VLOOKUP($A197,cost_data!$A$5:$BB$215,Z$1,0)","v":49472.271438695956},{"$f":"VLOOKUP($A197,cost_data!$A$5:$BB$215,AA$1,0)","v":11431565.66},{"$f":"VLOOKUP($A197,cost_data!$A$5:$BB$215,AB$1,0)","v":3717775}]
["11T","NHS North Somerset",{"$f":"VLOOKUP($A198,cost_data!$A$5:$BB$215,C$1,0)","v":4255573.24},{"$f":"VLOOKUP($A198,cost_data!$A$5:$BB$215,D$1,0)","v":19726.101066295781},{"$f":"VLOOKUP($A198,cost_data!$A$5:$BB$215,E$1,0)","v":1239158.82},{"$f":"VLOOKUP($A198,cost_data!$A$5:$BB$215,F$1,0)","v":19726.101066295781},{"$f":"VLOOKUP($A198,cost_data!$A$5:$BB$215,G$1,0)","v":992445.58},{"$f":"VLOOKUP($A198,cost_data!$A$5:$BB$215,H$1,0)","v":19726.101066295781},{"$f":"VLOOKUP($A198,cost_data!$A$5:$BB$215,I$1,0)","v":693404.49},{"$f":"VLOOKUP($A198,cost_data!$A$5:$BB$215,J$1,0)","v":19726.101066295781},{"$f":"VLOOKUP($A198,cost_data!$A$5:$BB$215,K$1,0)","v":381257.49999999901},{"$f":"VLOOKUP($A198,cost_data!$A$5:$BB$215,L$1,0)","v":19726.101066295781},{"$f":"VLOOKUP($A198,cost_data!$A$5:$BB$215,M$1,0)","v":306692.91000000102},{"$f":"VLOOKUP($A198,cost_data!$A$5:$BB$215,N$1,0)","v":19726.101066295781},{"$f":"VLOOKUP($A198,cost_data!$A$5:$BB$215,O$1,0)","v":292794.19999999797},{"$f":"VLOOKUP($A198,cost_data!$A$5:$BB$215,P$1,0)","v":19726.101066295781},{"$f":"VLOOKUP($A198,cost_data!$A$5:$BB$215,Q$1,0)","v":255931.51999999999},{"$f":"VLOOKUP($A198,cost_data!$A$5:$BB$215,R$1,0)","v":19726.101066295781},{"$f":"VLOOKUP($A198,cost_data!$A$5:$BB$215,S$1,0)","v":53916.92},{"$f":"VLOOKUP($A198,cost_data!$A$5:$BB$215,T$1,0)","v":19726.101066295781},{"$f":"VLOOKUP($A198,cost_data!$A$5:$BB$215,U$1,0)","v":27828.569999999901},{"$f":"VLOOKUP($A198,cost_data!$A$5:$BB$215,V$1,0)","v":19726.101066295781},{"$f":"VLOOKUP($A198,cost_data!$A$5:$BB$215,W$1,0)","v":10680.43},{"$f":"VLOOKUP($A198,cost_data!$A$5:$BB$215,X$1,0)","v":19726.101066295781},{"$f":"VLOOKUP($A198,cost_data!$A$5:$BB$215,Y$1,0)","v":1462.3},{"$f":"VLOOKUP($A198,cost_data!$A$5:$BB$215,Z$1,0)","v":19726.101066295781},{"$f":"VLOOKUP($A198,cost_data!$A$5:$BB$215,AA$1,0)","v":4255573.24},{"$f":"VLOOKUP($A198,cost_data!$A$5:$BB$215,AB$1,0)","v":1217713}]
["11X","NHS Somerset",{"$f":"VLOOKUP($A199,cost_data!$A$5:$BB$215,C$1,0)","v":11660706.8600001},{"$f":"VLOOKUP($A199,cost_data!$A$5:$BB$215,D$1,0)","v":50034.400948991701},{"$f":"VLOOKUP($A199,cost_data!$A$5:$BB$215,E$1,0)","v":3279150.9199999799},{"$f":"VLOOKUP($A199,cost_data!$A$5:$BB$215,F$1,0)","v":50034.400948991701},{"$f":"VLOOKUP($A199,cost_data!$A$5:$BB$215,G$1,0)","v":2646271.6},{"$f":"VLOOKUP($A199,cost_data!$A$5:$BB$215,H$1,0)","v":50034.400948991701},{"$f":"VLOOKUP($A199,cost_data!$A$5:$BB$215,I$1,0)","v":1923863.88},{"$f":"VLOOKUP($A199,cost_data!$A$5:$BB$215,J$1,0)","v":50034.400948991701},{"$f":"VLOOKUP($A199,cost_data!$A$5:$BB$215,K$1,0)","v":1546829.99000001},{"$f":"VLOOKUP($A199,cost_data!$A$5:$BB$215,L$1,0)","v":50034.400948991701},{"$f":"VLOOKUP($A199,cost_data!$A$5:$BB$215,M$1,0)","v":730848.71000000997},{"$f":"VLOOKUP($A199,cost_data!$A$5:$BB$215,N$1,0)","v":50034.400948991701},{"$f":"VLOOKUP($A199,cost_data!$A$5:$BB$215,O$1,0)","v":691560.19000000705},{"$f":"VLOOKUP($A199,cost_data!$A$5:$BB$215,P$1,0)","v":50034.400948991701},{"$f":"VLOOKUP($A199,cost_data!$A$5:$BB$215,Q$1,0)","v":604125.119999988},{"$f":"VLOOKUP($A199,cost_data!$A$5:$BB$215,R$1,0)","v":50034.400948991701},{"$f":"VLOOKUP($A199,cost_data!$A$5:$BB$215,S$1,0)","v":137614.06999999899},{"$f":"VLOOKUP($A199,cost_data!$A$5:$BB$215,T$1,0)","v":50034.400948991701},{"$f":"VLOOKUP($A199,cost_data!$A$5:$BB$215,U$1,0)","v":63397.120000000003},{"$f":"VLOOKUP($A199,cost_data!$A$5:$BB$215,V$1,0)","v":50034.400948991701},{"$f":"VLOOKUP($A199,cost_data!$A$5:$BB$215,W$1,0)","v":28847.81},{"$f":"VLOOKUP($A199,cost_data!$A$5:$BB$215,X$1,0)","v":50034.400948991701},{"$f":"VLOOKUP($A199,cost_data!$A$5:$BB$215,Y$1,0)","v":8179.45},{"$f":"VLOOKUP($A199,cost_data!$A$5:$BB$215,Z$1,0)","v":50034.400948991701},{"$f":"VLOOKUP($A199,cost_data!$A$5:$BB$215,AA$1,0)","v":11660706.8600001},{"$f":"VLOOKUP($A199,cost_data!$A$5:$BB$215,AB$1,0)","v":3291798}]
["12A","NHS South Gloucestershire",{"$f":"VLOOKUP($A200,cost_data!$A$5:$BB$215,C$1,0)","v":5080880.05},{"$f":"VLOOKUP($A200,cost_data!$A$5:$BB$215,D$1,0)","v":27866.472993329029},{"$f":"VLOOKUP($A200,cost_data!$A$5:$BB$215,E$1,0)","v":1401551.3199999901},{"$f":"VLOOKUP($A200,cost_data!$A$5:$BB$215,F$1,0)","v":27866.472993329029},{"$f":"VLOOKUP($A200,cost_data!$A$5:$BB$215,G$1,0)","v":1272289.24},{"$f":"VLOOKUP($A200,cost_data!$A$5:$BB$215,H$1,0)","v":27866.472993329029},{"$f":"VLOOKUP($A200,cost_data!$A$5:$BB$215,I$1,0)","v":777004.97},{"$f":"VLOOKUP($A200,cost_data!$A$5:$BB$215,J$1,0)","v":27866.472993329029},{"$f":"VLOOKUP($A200,cost_data!$A$5:$BB$215,K$1,0)","v":525201.549999999},{"$f":"VLOOKUP($A200,cost_data!$A$5:$BB$215,L$1,0)","v":27866.472993329029},{"$f":"VLOOKUP($A200,cost_data!$A$5:$BB$215,M$1,0)","v":335637.91000000102},{"$f":"VLOOKUP($A200,cost_data!$A$5:$BB$215,N$1,0)","v":27866.472993329029},{"$f":"VLOOKUP($A200,cost_data!$A$5:$BB$215,O$1,0)","v":363022.89999999799},{"$f":"VLOOKUP($A200,cost_data!$A$5:$BB$215,P$1,0)","v":27866.472993329029},{"$f":"VLOOKUP($A200,cost_data!$A$5:$BB$215,Q$1,0)","v":296591.84999999899},{"$f":"VLOOKUP($A200,cost_data!$A$5:$BB$215,R$1,0)","v":27866.472993329029},{"$f":"VLOOKUP($A200,cost_data!$A$5:$BB$215,S$1,0)","v":55584.429999999898},{"$f":"VLOOKUP($A200,cost_data!$A$5:$BB$215,T$1,0)","v":27866.472993329029},{"$f":"VLOOKUP($A200,cost_data!$A$5:$BB$215,U$1,0)","v":25345.759999999998},{"$f":"VLOOKUP($A200,cost_data!$A$5:$BB$215,V$1,0)","v":27866.472993329029},{"$f":"VLOOKUP($A200,cost_data!$A$5:$BB$215,W$1,0)","v":14345.37},{"$f":"VLOOKUP($A200,cost_data!$A$5:$BB$215,X$1,0)","v":27866.472993329029},{"$f":"VLOOKUP($A200,cost_data!$A$5:$BB$215,Y$1,0)","v":14304.75},{"$f":"VLOOKUP($A200,cost_data!$A$5:$BB$215,Z$1,0)","v":27866.472993329029},{"$f":"VLOOKUP($A200,cost_data!$A$5:$BB$215,AA$1,0)","v":5080880.05},{"$f":"VLOOKUP($A200,cost_data!$A$5:$BB$215,AB$1,0)","v":1237137}]
["12D","NHS Swindon",{"$f":"VLOOKUP($A201,cost_data!$A$5:$BB$215,C$1,0)","v":3708613.6899999902},{"$f":"VLOOKUP($A201,cost_data!$A$5:$BB$215,D$1,0)","v":25977.288609364081},{"$f":"VLOOKUP($A201,cost_data!$A$5:$BB$215,E$1,0)","v":1079993.8500000001},{"$f":"VLOOKUP($A201,cost_data!$A$5:$BB$215,F$1,0)","v":25977.288609364081},{"$f":"VLOOKUP($A201,cost_data!$A$5:$BB$215,G$1,0)","v":875409.1},{"$f":"VLOOKUP($A201,cost_data!$A$5:$BB$215,H$1,0)","v":25977.288609364081},{"$f":"VLOOKUP($A201,cost_data!$A$5:$BB$215,I$1,0)","v":637849.64},{"$f":"VLOOKUP($A201,cost_data!$A$5:$BB$215,J$1,0)","v":25977.288609364081},{"$f":"VLOOKUP($A201,cost_data!$A$5:$BB$215,K$1,0)","v":300837.28999999998},{"$f":"VLOOKUP($A201,cost_data!$A$5:$BB$215,L$1,0)","v":25977.288609364081},{"$f":"VLOOKUP($A201,cost_data!$A$5:$BB$215,M$1,0)","v":234620.97},{"$f":"VLOOKUP($A201,cost_data!$A$5:$BB$215,N$1,0)","v":25977.288609364081},{"$f":"VLOOKUP($A201,cost_data!$A$5:$BB$215,O$1,0)","v":266927.36999999802},{"$f":"VLOOKUP($A201,cost_data!$A$5:$BB$215,P$1,0)","v":25977.288609364081},{"$f":"VLOOKUP($A201,cost_data!$A$5:$BB$215,Q$1,0)","v":238906.53000000099},{"$f":"VLOOKUP($A201,cost_data!$A$5:$BB$215,R$1,0)","v":25977.288609364081},{"$f":"VLOOKUP($A201,cost_data!$A$5:$BB$215,S$1,0)","v":33013.4200000001},{"$f":"VLOOKUP($A201,cost_data!$A$5:$BB$215,T$1,0)","v":25977.288609364081},{"$f":"VLOOKUP($A201,cost_data!$A$5:$BB$215,U$1,0)","v":20871.36},{"$f":"VLOOKUP($A201,cost_data!$A$5:$BB$215,V$1,0)","v":25977.288609364081},{"$f":"VLOOKUP($A201,cost_data!$A$5:$BB$215,W$1,0)","v":13912.83},{"$f":"VLOOKUP($A201,cost_data!$A$5:$BB$215,X$1,0)","v":25977.288609364081},{"$f":"VLOOKUP($A201,cost_data!$A$5:$BB$215,Y$1,0)","v":6271.33},{"$f":"VLOOKUP($A201,cost_data!$A$5:$BB$215,Z$1,0)","v":25977.288609364081},{"$f":"VLOOKUP($A201,cost_data!$A$5:$BB$215,AA$1,0)","v":3708613.6899999902},{"$f":"VLOOKUP($A201,cost_data!$A$5:$BB$215,AB$1,0)","v":1303506}]
["12F","NHS Wirral",{"$f":"VLOOKUP($A202,cost_data!$A$5:$BB$215,C$1,0)","v":7789042.0900000203},{"$f":"VLOOKUP($A202,cost_data!$A$5:$BB$215,D$1,0)","v":30422.508038585209},{"$f":"VLOOKUP($A202,cost_data!$A$5:$BB$215,E$1,0)","v":2350414.96},{"$f":"VLOOKUP($A202,cost_data!$A$5:$BB$215,F$1,0)","v":30422.508038585209},{"$f":"VLOOKUP($A202,cost_data!$A$5:$BB$215,G$1,0)","v":1909887.17},{"$f":"VLOOKUP($A202,cost_data!$A$5:$BB$215,H$1,0)","v":30422.508038585209},{"$f":"VLOOKUP($A202,cost_data!$A$5:$BB$215,I$1,0)","v":1576119.05},{"$f":"VLOOKUP($A202,cost_data!$A$5:$BB$215,J$1,0)","v":30422.508038585209},{"$f":"VLOOKUP($A202,cost_data!$A$5:$BB$215,K$1,0)","v":648842.93999999994},{"$f":"VLOOKUP($A202,cost_data!$A$5:$BB$215,L$1,0)","v":30422.508038585209},{"$f":"VLOOKUP($A202,cost_data!$A$5:$BB$215,M$1,0)","v":425925.86000000301},{"$f":"VLOOKUP($A202,cost_data!$A$5:$BB$215,N$1,0)","v":30422.508038585209},{"$f":"VLOOKUP($A202,cost_data!$A$5:$BB$215,O$1,0)","v":437591.469999997},{"$f":"VLOOKUP($A202,cost_data!$A$5:$BB$215,P$1,0)","v":30422.508038585209},{"$f":"VLOOKUP($A202,cost_data!$A$5:$BB$215,Q$1,0)","v":337990.68999999901},{"$f":"VLOOKUP($A202,cost_data!$A$5:$BB$215,R$1,0)","v":30422.508038585209},{"$f":"VLOOKUP($A202,cost_data!$A$5:$BB$215,S$1,0)","v":35934.019999999997},{"$f":"VLOOKUP($A202,cost_data!$A$5:$BB$215,T$1,0)","v":30422.508038585209},{"$f":"VLOOKUP($A202,cost_data!$A$5:$BB$215,U$1,0)","v":39413.899999999798},{"$f":"VLOOKUP($A202,cost_data!$A$5:$BB$215,V$1,0)","v":30422.508038585209},{"$f":"VLOOKUP($A202,cost_data!$A$5:$BB$215,W$1,0)","v":23696.62},{"$f":"VLOOKUP($A202,cost_data!$A$5:$BB$215,X$1,0)","v":30422.508038585209},{"$f":"VLOOKUP($A202,cost_data!$A$5:$BB$215,Y$1,0)","v":3225.41},{"$f":"VLOOKUP($A202,cost_data!$A$5:$BB$215,Z$1,0)","v":30422.508038585209},{"$f":"VLOOKUP($A202,cost_data!$A$5:$BB$215,AA$1,0)","v":7789042.0900000203},{"$f":"VLOOKUP($A202,cost_data!$A$5:$BB$215,AB$1,0)","v":1969597}]
["13P","NHS Birmingham Crosscity",{"$f":"VLOOKUP($A203,cost_data!$A$5:$BB$215,C$1,0)","v":13190111.02},{"$f":"VLOOKUP($A203,cost_data!$A$5:$BB$215,D$1,0)","v":80926.422139248854},{"$f":"VLOOKUP($A203,cost_data!$A$5:$BB$215,E$1,0)","v":4004377.9899999499},{"$f":"VLOOKUP($A203,cost_data!$A$5:$BB$215,F$1,0)","v":80926.422139248854},{"$f":"VLOOKUP($A203,cost_data!$A$5:$BB$215,G$1,0)","v":3169128.86},{"$f":"VLOOKUP($A203,cost_data!$A$5:$BB$215,H$1,0)","v":80926.422139248854},{"$f":"VLOOKUP($A203,cost_data!$A$5:$BB$215,I$1,0)","v":2713738.09},{"$f":"VLOOKUP($A203,cost_data!$A$5:$BB$215,J$1,0)","v":80926.422139248854},{"$f":"VLOOKUP($A203,cost_data!$A$5:$BB$215,K$1,0)","v":581962.94000000099},{"$f":"VLOOKUP($A203,cost_data!$A$5:$BB$215,L$1,0)","v":80926.422139248854},{"$f":"VLOOKUP($A203,cost_data!$A$5:$BB$215,M$1,0)","v":835245.83000001602},{"$f":"VLOOKUP($A203,cost_data!$A$5:$BB$215,N$1,0)","v":80926.422139248854},{"$f":"VLOOKUP($A203,cost_data!$A$5:$BB$215,O$1,0)","v":900394.32000002102},{"$f":"VLOOKUP($A203,cost_data!$A$5:$BB$215,P$1,0)","v":80926.422139248854},{"$f":"VLOOKUP($A203,cost_data!$A$5:$BB$215,Q$1,0)","v":743083.76999999001},{"$f":"VLOOKUP($A203,cost_data!$A$5:$BB$215,R$1,0)","v":80926.422139248854},{"$f":"VLOOKUP($A203,cost_data!$A$5:$BB$215,S$1,0)","v":95435.689999999406},{"$f":"VLOOKUP($A203,cost_data!$A$5:$BB$215,T$1,0)","v":80926.422139248854},{"$f":"VLOOKUP($A203,cost_data!$A$5:$BB$215,U$1,0)","v":62188.009999999602},{"$f":"VLOOKUP($A203,cost_data!$A$5:$BB$215,V$1,0)","v":80926.422139248854},{"$f":"VLOOKUP($A203,cost_data!$A$5:$BB$215,W$1,0)","v":65333.380000000303},{"$f":"VLOOKUP($A203,cost_data!$A$5:$BB$215,X$1,0)","v":80926.422139248854},{"$f":"VLOOKUP($A203,cost_data!$A$5:$BB$215,Y$1,0)","v":19158.14},{"$f":"VLOOKUP($A203,cost_data!$A$5:$BB$215,Z$1,0)","v":80926.422139248854},{"$f":"VLOOKUP($A203,cost_data!$A$5:$BB$215,AA$1,0)","v":13190111.02},{"$f":"VLOOKUP($A203,cost_data!$A$5:$BB$215,AB$1,0)","v":3105451}]
["99A","NHS Liverpool",{"$f":"VLOOKUP($A204,cost_data!$A$5:$BB$215,C$1,0)","v":11257109.57},{"$f":"VLOOKUP($A204,cost_data!$A$5:$BB$215,D$1,0)","v":50541.963740069259},{"$f":"VLOOKUP($A204,cost_data!$A$5:$BB$215,E$1,0)","v":3638605.7800000198},{"$f":"VLOOKUP($A204,cost_data!$A$5:$BB$215,F$1,0)","v":50541.963740069259},{"$f":"VLOOKUP($A204,cost_data!$A$5:$BB$215,G$1,0)","v":2419405.33},{"$f":"VLOOKUP($A204,cost_data!$A$5:$BB$215,H$1,0)","v":50541.963740069259},{"$f":"VLOOKUP($A204,cost_data!$A$5:$BB$215,I$1,0)","v":2317412.4199999901},{"$f":"VLOOKUP($A204,cost_data!$A$5:$BB$215,J$1,0)","v":50541.963740069259},{"$f":"VLOOKUP($A204,cost_data!$A$5:$BB$215,K$1,0)","v":687579.34999999905},{"$f":"VLOOKUP($A204,cost_data!$A$5:$BB$215,L$1,0)","v":50541.963740069259},{"$f":"VLOOKUP($A204,cost_data!$A$5:$BB$215,M$1,0)","v":706645.59000001103},{"$f":"VLOOKUP($A204,cost_data!$A$5:$BB$215,N$1,0)","v":50541.963740069259},{"$f":"VLOOKUP($A204,cost_data!$A$5:$BB$215,O$1,0)","v":765780.66000000702},{"$f":"VLOOKUP($A204,cost_data!$A$5:$BB$215,P$1,0)","v":50541.963740069259},{"$f":"VLOOKUP($A204,cost_data!$A$5:$BB$215,Q$1,0)","v":574688.32999999297},{"$f":"VLOOKUP($A204,cost_data!$A$5:$BB$215,R$1,0)","v":50541.963740069259},{"$f":"VLOOKUP($A204,cost_data!$A$5:$BB$215,S$1,0)","v":56480.190000000097},{"$f":"VLOOKUP($A204,cost_data!$A$5:$BB$215,T$1,0)","v":50541.963740069259},{"$f":"VLOOKUP($A204,cost_data!$A$5:$BB$215,U$1,0)","v":39945.369999999697},{"$f":"VLOOKUP($A204,cost_data!$A$5:$BB$215,V$1,0)","v":50541.963740069259},{"$f":"VLOOKUP($A204,cost_data!$A$5:$BB$215,W$1,0)","v":35622.320000000102},{"$f":"VLOOKUP($A204,cost_data!$A$5:$BB$215,X$1,0)","v":50541.963740069259},{"$f":"VLOOKUP($A204,cost_data!$A$5:$BB$215,Y$1,0)","v":14944.23},{"$f":"VLOOKUP($A204,cost_data!$A$5:$BB$215,Z$1,0)","v":50541.963740069259},{"$f":"VLOOKUP($A204,cost_data!$A$5:$BB$215,AA$1,0)","v":11257109.57},{"$f":"VLOOKUP($A204,cost_data!$A$5:$BB$215,AB$1,0)","v":2983548}]
["99C","NHS North Tyneside",{"$f":"VLOOKUP($A205,cost_data!$A$5:$BB$215,C$1,0)","v":4757805.6900000004},{"$f":"VLOOKUP($A205,cost_data!$A$5:$BB$215,D$1,0)","v":21266.442820462176},{"$f":"VLOOKUP($A205,cost_data!$A$5:$BB$215,E$1,0)","v":1355279.99},{"$f":"VLOOKUP($A205,cost_data!$A$5:$BB$215,F$1,0)","v":21266.442820462176},{"$f":"VLOOKUP($A205,cost_data!$A$5:$BB$215,G$1,0)","v":1009881.9},{"$f":"VLOOKUP($A205,cost_data!$A$5:$BB$215,H$1,0)","v":21266.442820462176},{"$f":"VLOOKUP($A205,cost_data!$A$5:$BB$215,I$1,0)","v":963833.74999999895},{"$f":"VLOOKUP($A205,cost_data!$A$5:$BB$215,J$1,0)","v":21266.442820462176},{"$f":"VLOOKUP($A205,cost_data!$A$5:$BB$215,K$1,0)","v":399155.45},{"$f":"VLOOKUP($A205,cost_data!$A$5:$BB$215,L$1,0)","v":21266.442820462176},{"$f":"VLOOKUP($A205,cost_data!$A$5:$BB$215,M$1,0)","v":355732.590000002},{"$f":"VLOOKUP($A205,cost_data!$A$5:$BB$215,N$1,0)","v":21266.442820462176},{"$f":"VLOOKUP($A205,cost_data!$A$5:$BB$215,O$1,0)","v":351250.37999999902},{"$f":"VLOOKUP($A205,cost_data!$A$5:$BB$215,P$1,0)","v":21266.442820462176},{"$f":"VLOOKUP($A205,cost_data!$A$5:$BB$215,Q$1,0)","v":244124.22999999899},{"$f":"VLOOKUP($A205,cost_data!$A$5:$BB$215,R$1,0)","v":21266.442820462176},{"$f":"VLOOKUP($A205,cost_data!$A$5:$BB$215,S$1,0)","v":36834.219999999899},{"$f":"VLOOKUP($A205,cost_data!$A$5:$BB$215,T$1,0)","v":21266.442820462176},{"$f":"VLOOKUP($A205,cost_data!$A$5:$BB$215,U$1,0)","v":19922.37},{"$f":"VLOOKUP($A205,cost_data!$A$5:$BB$215,V$1,0)","v":21266.442820462176},{"$f":"VLOOKUP($A205,cost_data!$A$5:$BB$215,W$1,0)","v":18131.3},{"$f":"VLOOKUP($A205,cost_data!$A$5:$BB$215,X$1,0)","v":21266.442820462176},{"$f":"VLOOKUP($A205,cost_data!$A$5:$BB$215,Y$1,0)","v":3659.51},{"$f":"VLOOKUP($A205,cost_data!$A$5:$BB$215,Z$1,0)","v":21266.442820462176},{"$f":"VLOOKUP($A205,cost_data!$A$5:$BB$215,AA$1,0)","v":4757805.6900000004},{"$f":"VLOOKUP($A205,cost_data!$A$5:$BB$215,AB$1,0)","v":1545225}]
["99D","NHS South Lincolnshire",{"$f":"VLOOKUP($A206,cost_data!$A$5:$BB$215,C$1,0)","v":4303332.2900000103},{"$f":"VLOOKUP($A206,cost_data!$A$5:$BB$215,D$1,0)","v":14588.676797627873},{"$f":"VLOOKUP($A206,cost_data!$A$5:$BB$215,E$1,0)","v":1125207.03},{"$f":"VLOOKUP($A206,cost_data!$A$5:$BB$215,F$1,0)","v":14588.676797627873},{"$f":"VLOOKUP($A206,cost_data!$A$5:$BB$215,G$1,0)","v":1087164.24},{"$f":"VLOOKUP($A206,cost_data!$A$5:$BB$215,H$1,0)","v":14588.676797627873},{"$f":"VLOOKUP($A206,cost_data!$A$5:$BB$215,I$1,0)","v":936574.63},{"$f":"VLOOKUP($A206,cost_data!$A$5:$BB$215,J$1,0)","v":14588.676797627873},{"$f":"VLOOKUP($A206,cost_data!$A$5:$BB$215,K$1,0)","v":402358.09},{"$f":"VLOOKUP($A206,cost_data!$A$5:$BB$215,L$1,0)","v":14588.676797627873},{"$f":"VLOOKUP($A206,cost_data!$A$5:$BB$215,M$1,0)","v":256115.22999999899},{"$f":"VLOOKUP($A206,cost_data!$A$5:$BB$215,N$1,0)","v":14588.676797627873},{"$f":"VLOOKUP($A206,cost_data!$A$5:$BB$215,O$1,0)","v":219506.73},{"$f":"VLOOKUP($A206,cost_data!$A$5:$BB$215,P$1,0)","v":14588.676797627873},{"$f":"VLOOKUP($A206,cost_data!$A$5:$BB$215,Q$1,0)","v":195154.52},{"$f":"VLOOKUP($A206,cost_data!$A$5:$BB$215,R$1,0)","v":14588.676797627873},{"$f":"VLOOKUP($A206,cost_data!$A$5:$BB$215,S$1,0)","v":30595.279999999999},{"$f":"VLOOKUP($A206,cost_data!$A$5:$BB$215,T$1,0)","v":14588.676797627873},{"$f":"VLOOKUP($A206,cost_data!$A$5:$BB$215,U$1,0)","v":21831.4},{"$f":"VLOOKUP($A206,cost_data!$A$5:$BB$215,V$1,0)","v":14588.676797627873},{"$f":"VLOOKUP($A206,cost_data!$A$5:$BB$215,W$1,0)","v":11605.47},{"$f":"VLOOKUP($A206,cost_data!$A$5:$BB$215,X$1,0)","v":14588.676797627873},{"$f":"VLOOKUP($A206,cost_data!$A$5:$BB$215,Y$1,0)","v":17219.669999999998},{"$f":"VLOOKUP($A206,cost_data!$A$5:$BB$215,Z$1,0)","v":14588.676797627873},{"$f":"VLOOKUP($A206,cost_data!$A$5:$BB$215,AA$1,0)","v":4303332.2900000103},{"$f":"VLOOKUP($A206,cost_data!$A$5:$BB$215,AB$1,0)","v":1395487}]
["99E","NHS Basildon and Brentwood",{"$f":"VLOOKUP($A207,cost_data!$A$5:$BB$215,C$1,0)","v":5175537.09},{"$f":"VLOOKUP($A207,cost_data!$A$5:$BB$215,D$1,0)","v":28085.119932073867},{"$f":"VLOOKUP($A207,cost_data!$A$5:$BB$215,E$1,0)","v":1515187.3900000099},{"$f":"VLOOKUP($A207,cost_data!$A$5:$BB$215,F$1,0)","v":28085.119932073867},{"$f":"VLOOKUP($A207,cost_data!$A$5:$BB$215,G$1,0)","v":1426305.82},{"$f":"VLOOKUP($A207,cost_data!$A$5:$BB$215,H$1,0)","v":28085.119932073867},{"$f":"VLOOKUP($A207,cost_data!$A$5:$BB$215,I$1,0)","v":799961.73999999894},{"$f":"VLOOKUP($A207,cost_data!$A$5:$BB$215,J$1,0)","v":28085.119932073867},{"$f":"VLOOKUP($A207,cost_data!$A$5:$BB$215,K$1,0)","v":353244.53},{"$f":"VLOOKUP($A207,cost_data!$A$5:$BB$215,L$1,0)","v":28085.119932073867},{"$f":"VLOOKUP($A207,cost_data!$A$5:$BB$215,M$1,0)","v":371746.41000000201},{"$f":"VLOOKUP($A207,cost_data!$A$5:$BB$215,N$1,0)","v":28085.119932073867},{"$f":"VLOOKUP($A207,cost_data!$A$5:$BB$215,O$1,0)","v":291663.84999999701},{"$f":"VLOOKUP($A207,cost_data!$A$5:$BB$215,P$1,0)","v":28085.119932073867},{"$f":"VLOOKUP($A207,cost_data!$A$5:$BB$215,Q$1,0)","v":330479.81999999803},{"$f":"VLOOKUP($A207,cost_data!$A$5:$BB$215,R$1,0)","v":28085.119932073867},{"$f":"VLOOKUP($A207,cost_data!$A$5:$BB$215,S$1,0)","v":37067.35},{"$f":"VLOOKUP($A207,cost_data!$A$5:$BB$215,T$1,0)","v":28085.119932073867},{"$f":"VLOOKUP($A207,cost_data!$A$5:$BB$215,U$1,0)","v":27605.4399999999},{"$f":"VLOOKUP($A207,cost_data!$A$5:$BB$215,V$1,0)","v":28085.119932073867},{"$f":"VLOOKUP($A207,cost_data!$A$5:$BB$215,W$1,0)","v":15656.44},{"$f":"VLOOKUP($A207,cost_data!$A$5:$BB$215,X$1,0)","v":28085.119932073867},{"$f":"VLOOKUP($A207,cost_data!$A$5:$BB$215,Y$1,0)","v":6618.3},{"$f":"VLOOKUP($A207,cost_data!$A$5:$BB$215,Z$1,0)","v":28085.119932073867},{"$f":"VLOOKUP($A207,cost_data!$A$5:$BB$215,AA$1,0)","v":5175537.09},{"$f":"VLOOKUP($A207,cost_data!$A$5:$BB$215,AB$1,0)","v":1230264}]
["99F","NHS Castle Point and Rochford",{"$f":"VLOOKUP($A208,cost_data!$A$5:$BB$215,C$1,0)","v":3868500.78},{"$f":"VLOOKUP($A208,cost_data!$A$5:$BB$215,D$1,0)","v":16903.470208586659},{"$f":"VLOOKUP($A208,cost_data!$A$5:$BB$215,E$1,0)","v":1183900.1500000099},{"$f":"VLOOKUP($A208,cost_data!$A$5:$BB$215,F$1,0)","v":16903.470208586659},{"$f":"VLOOKUP($A208,cost_data!$A$5:$BB$215,G$1,0)","v":962412.63999999897},{"$f":"VLOOKUP($A208,cost_data!$A$5:$BB$215,H$1,0)","v":16903.470208586659},{"$f":"VLOOKUP($A208,cost_data!$A$5:$BB$215,I$1,0)","v":618983.92000000004},{"$f":"VLOOKUP($A208,cost_data!$A$5:$BB$215,J$1,0)","v":16903.470208586659},{"$f":"VLOOKUP($A208,cost_data!$A$5:$BB$215,K$1,0)","v":340481.57999999903},{"$f":"VLOOKUP($A208,cost_data!$A$5:$BB$215,L$1,0)","v":16903.470208586659},{"$f":"VLOOKUP($A208,cost_data!$A$5:$BB$215,M$1,0)","v":245945.13},{"$f":"VLOOKUP($A208,cost_data!$A$5:$BB$215,N$1,0)","v":16903.470208586659},{"$f":"VLOOKUP($A208,cost_data!$A$5:$BB$215,O$1,0)","v":210016.99999999901},{"$f":"VLOOKUP($A208,cost_data!$A$5:$BB$215,P$1,0)","v":16903.470208586659},{"$f":"VLOOKUP($A208,cost_data!$A$5:$BB$215,Q$1,0)","v":234373.02},{"$f":"VLOOKUP($A208,cost_data!$A$5:$BB$215,R$1,0)","v":16903.470208586659},{"$f":"VLOOKUP($A208,cost_data!$A$5:$BB$215,S$1,0)","v":35804.0799999999},{"$f":"VLOOKUP($A208,cost_data!$A$5:$BB$215,T$1,0)","v":16903.470208586659},{"$f":"VLOOKUP($A208,cost_data!$A$5:$BB$215,U$1,0)","v":19280.71},{"$f":"VLOOKUP($A208,cost_data!$A$5:$BB$215,V$1,0)","v":16903.470208586659},{"$f":"VLOOKUP($A208,cost_data!$A$5:$BB$215,W$1,0)","v":8389.8999999999905},{"$f":"VLOOKUP($A208,cost_data!$A$5:$BB$215,X$1,0)","v":16903.470208586659},{"$f":"VLOOKUP($A208,cost_data!$A$5:$BB$215,Y$1,0)","v":8869.6500000000106},{"$f":"VLOOKUP($A208,cost_data!$A$5:$BB$215,Z$1,0)","v":16903.470208586659},{"$f":"VLOOKUP($A208,cost_data!$A$5:$BB$215,AA$1,0)","v":3868500.78},{"$f":"VLOOKUP($A208,cost_data!$A$5:$BB$215,AB$1,0)","v":923522}]
["99G","NHS Southend",{"$f":"VLOOKUP($A209,cost_data!$A$5:$BB$215,C$1,0)","v":3676842.09},{"$f":"VLOOKUP($A209,cost_data!$A$5:$BB$215,D$1,0)","v":18371.221161495625},{"$f":"VLOOKUP($A209,cost_data!$A$5:$BB$215,E$1,0)","v":1132611.96000001},{"$f":"VLOOKUP($A209,cost_data!$A$5:$BB$215,F$1,0)","v":18371.221161495625},{"$f":"VLOOKUP($A209,cost_data!$A$5:$BB$215,G$1,0)","v":977590.22999999905},{"$f":"VLOOKUP($A209,cost_data!$A$5:$BB$215,H$1,0)","v":18371.221161495625},{"$f":"VLOOKUP($A209,cost_data!$A$5:$BB$215,I$1,0)","v":563411.05000000005},{"$f":"VLOOKUP($A209,cost_data!$A$5:$BB$215,J$1,0)","v":18371.221161495625},{"$f":"VLOOKUP($A209,cost_data!$A$5:$BB$215,K$1,0)","v":308657.49},{"$f":"VLOOKUP($A209,cost_data!$A$5:$BB$215,L$1,0)","v":18371.221161495625},{"$f":"VLOOKUP($A209,cost_data!$A$5:$BB$215,M$1,0)","v":225991.45},{"$f":"VLOOKUP($A209,cost_data!$A$5:$BB$215,N$1,0)","v":18371.221161495625},{"$f":"VLOOKUP($A209,cost_data!$A$5:$BB$215,O$1,0)","v":184050.459999999},{"$f":"VLOOKUP($A209,cost_data!$A$5:$BB$215,P$1,0)","v":18371.221161495625},{"$f":"VLOOKUP($A209,cost_data!$A$5:$BB$215,Q$1,0)","v":226078.58},{"$f":"VLOOKUP($A209,cost_data!$A$5:$BB$215,R$1,0)","v":18371.221161495625},{"$f":"VLOOKUP($A209,cost_data!$A$5:$BB$215,S$1,0)","v":29169.119999999999},{"$f":"VLOOKUP($A209,cost_data!$A$5:$BB$215,T$1,0)","v":18371.221161495625},{"$f":"VLOOKUP($A209,cost_data!$A$5:$BB$215,U$1,0)","v":17150.07},{"$f":"VLOOKUP($A209,cost_data!$A$5:$BB$215,V$1,0)","v":18371.221161495625},{"$f":"VLOOKUP($A209,cost_data!$A$5:$BB$215,W$1,0)","v":9941.1700000000092},{"$f":"VLOOKUP($A209,cost_data!$A$5:$BB$215,X$1,0)","v":18371.221161495625},{"$f":"VLOOKUP($A209,cost_data!$A$5:$BB$215,Y$1,0)","v":2190.5100000000002},{"$f":"VLOOKUP($A209,cost_data!$A$5:$BB$215,Z$1,0)","v":18371.221161495625},{"$f":"VLOOKUP($A209,cost_data!$A$5:$BB$215,AA$1,0)","v":3676842.09},{"$f":"VLOOKUP($A209,cost_data!$A$5:$BB$215,AB$1,0)","v":791348}]
["99H","NHS Surrey Downs",{"$f":"VLOOKUP($A210,cost_data!$A$5:$BB$215,C$1,0)","v":5246132.9200000102},{"$f":"VLOOKUP($A210,cost_data!$A$5:$BB$215,D$1,0)","v":30440.473717016415},{"$f":"VLOOKUP($A210,cost_data!$A$5:$BB$215,E$1,0)","v":1697294.19},{"$f":"VLOOKUP($A210,cost_data!$A$5:$BB$215,F$1,0)","v":30440.473717016415},{"$f":"VLOOKUP($A210,cost_data!$A$5:$BB$215,G$1,0)","v":1374096.48},{"$f":"VLOOKUP($A210,cost_data!$A$5:$BB$215,H$1,0)","v":30440.473717016415},{"$f":"VLOOKUP($A210,cost_data!$A$5:$BB$215,I$1,0)","v":758391.45},{"$f":"VLOOKUP($A210,cost_data!$A$5:$BB$215,J$1,0)","v":30440.473717016415},{"$f":"VLOOKUP($A210,cost_data!$A$5:$BB$215,K$1,0)","v":340102.15999999898},{"$f":"VLOOKUP($A210,cost_data!$A$5:$BB$215,L$1,0)","v":30440.473717016415},{"$f":"VLOOKUP($A210,cost_data!$A$5:$BB$215,M$1,0)","v":337270.32000000298},{"$f":"VLOOKUP($A210,cost_data!$A$5:$BB$215,N$1,0)","v":30440.473717016415},{"$f":"VLOOKUP($A210,cost_data!$A$5:$BB$215,O$1,0)","v":314454.93},{"$f":"VLOOKUP($A210,cost_data!$A$5:$BB$215,P$1,0)","v":30440.473717016415},{"$f":"VLOOKUP($A210,cost_data!$A$5:$BB$215,Q$1,0)","v":300841.46999999898},{"$f":"VLOOKUP($A210,cost_data!$A$5:$BB$215,R$1,0)","v":30440.473717016415},{"$f":"VLOOKUP($A210,cost_data!$A$5:$BB$215,S$1,0)","v":59749.229999999901},{"$f":"VLOOKUP($A210,cost_data!$A$5:$BB$215,T$1,0)","v":30440.473717016415},{"$f":"VLOOKUP($A210,cost_data!$A$5:$BB$215,U$1,0)","v":36170.639999999898},{"$f":"VLOOKUP($A210,cost_data!$A$5:$BB$215,V$1,0)","v":30440.473717016415},{"$f":"VLOOKUP($A210,cost_data!$A$5:$BB$215,W$1,0)","v":19892.61},{"$f":"VLOOKUP($A210,cost_data!$A$5:$BB$215,X$1,0)","v":30440.473717016415},{"$f":"VLOOKUP($A210,cost_data!$A$5:$BB$215,Y$1,0)","v":7869.44},{"$f":"VLOOKUP($A210,cost_data!$A$5:$BB$215,Z$1,0)","v":30440.473717016415},{"$f":"VLOOKUP($A210,cost_data!$A$5:$BB$215,AA$1,0)","v":5246132.9200000102},{"$f":"VLOOKUP($A210,cost_data!$A$5:$BB$215,AB$1,0)","v":1218261}]
["99J","NHS West Kent",{"$f":"VLOOKUP($A211,cost_data!$A$5:$BB$215,C$1,0)","v":9208988.41000003},{"$f":"VLOOKUP($A211,cost_data!$A$5:$BB$215,D$1,0)","v":48574.558670820348},{"$f":"VLOOKUP($A211,cost_data!$A$5:$BB$215,E$1,0)","v":2897786.6699999501},{"$f":"VLOOKUP($A211,cost_data!$A$5:$BB$215,F$1,0)","v":48574.558670820348},{"$f":"VLOOKUP($A211,cost_data!$A$5:$BB$215,G$1,0)","v":2357379.09},{"$f":"VLOOKUP($A211,cost_data!$A$5:$BB$215,H$1,0)","v":48574.558670820348},{"$f":"VLOOKUP($A211,cost_data!$A$5:$BB$215,I$1,0)","v":1435896.88},{"$f":"VLOOKUP($A211,cost_data!$A$5:$BB$215,J$1,0)","v":48574.558670820348},{"$f":"VLOOKUP($A211,cost_data!$A$5:$BB$215,K$1,0)","v":660141.75000000198},{"$f":"VLOOKUP($A211,cost_data!$A$5:$BB$215,L$1,0)","v":48574.558670820348},{"$f":"VLOOKUP($A211,cost_data!$A$5:$BB$215,M$1,0)","v":581499.62000000803},{"$f":"VLOOKUP($A211,cost_data!$A$5:$BB$215,N$1,0)","v":48574.558670820348},{"$f":"VLOOKUP($A211,cost_data!$A$5:$BB$215,O$1,0)","v":473543.53999999701},{"$f":"VLOOKUP($A211,cost_data!$A$5:$BB$215,P$1,0)","v":48574.558670820348},{"$f":"VLOOKUP($A211,cost_data!$A$5:$BB$215,Q$1,0)","v":535385.43999999505},{"$f":"VLOOKUP($A211,cost_data!$A$5:$BB$215,R$1,0)","v":48574.558670820348},{"$f":"VLOOKUP($A211,cost_data!$A$5:$BB$215,S$1,0)","v":124837.62},{"$f":"VLOOKUP($A211,cost_data!$A$5:$BB$215,T$1,0)","v":48574.558670820348},{"$f":"VLOOKUP($A211,cost_data!$A$5:$BB$215,U$1,0)","v":41496.539999999797},{"$f":"VLOOKUP($A211,cost_data!$A$5:$BB$215,V$1,0)","v":48574.558670820348},{"$f":"VLOOKUP($A211,cost_data!$A$5:$BB$215,W$1,0)","v":28543.620000000101},{"$f":"VLOOKUP($A211,cost_data!$A$5:$BB$215,X$1,0)","v":48574.558670820348},{"$f":"VLOOKUP($A211,cost_data!$A$5:$BB$215,Y$1,0)","v":72477.64},{"$f":"VLOOKUP($A211,cost_data!$A$5:$BB$215,Z$1,0)","v":48574.558670820348},{"$f":"VLOOKUP($A211,cost_data!$A$5:$BB$215,AA$1,0)","v":9208988.41000003},{"$f":"VLOOKUP($A211,cost_data!$A$5:$BB$215,AB$1,0)","v":2914789}]
["99K","NHS High Weald Lewes Havens",{"$f":"VLOOKUP($A212,cost_data!$A$5:$BB$215,C$1,0)","v":3691207.0000000098},{"$f":"VLOOKUP($A212,cost_data!$A$5:$BB$215,D$1,0)","v":15490.748489074847},{"$f":"VLOOKUP($A212,cost_data!$A$5:$BB$215,E$1,0)","v":1157366.29},{"$f":"VLOOKUP($A212,cost_data!$A$5:$BB$215,F$1,0)","v":15490.748489074847},{"$f":"VLOOKUP($A212,cost_data!$A$5:$BB$215,G$1,0)","v":1005457.11},{"$f":"VLOOKUP($A212,cost_data!$A$5:$BB$215,H$1,0)","v":15490.748489074847},{"$f":"VLOOKUP($A212,cost_data!$A$5:$BB$215,I$1,0)","v":498839.53},{"$f":"VLOOKUP($A212,cost_data!$A$5:$BB$215,J$1,0)","v":15490.748489074847},{"$f":"VLOOKUP($A212,cost_data!$A$5:$BB$215,K$1,0)","v":287607.81},{"$f":"VLOOKUP($A212,cost_data!$A$5:$BB$215,L$1,0)","v":15490.748489074847},{"$f":"VLOOKUP($A212,cost_data!$A$5:$BB$215,M$1,0)","v":251886.13},{"$f":"VLOOKUP($A212,cost_data!$A$5:$BB$215,N$1,0)","v":15490.748489074847},{"$f":"VLOOKUP($A212,cost_data!$A$5:$BB$215,O$1,0)","v":180053.019999999},{"$f":"VLOOKUP($A212,cost_data!$A$5:$BB$215,P$1,0)","v":15490.748489074847},{"$f":"VLOOKUP($A212,cost_data!$A$5:$BB$215,Q$1,0)","v":219070.42},{"$f":"VLOOKUP($A212,cost_data!$A$5:$BB$215,R$1,0)","v":15490.748489074847},{"$f":"VLOOKUP($A212,cost_data!$A$5:$BB$215,S$1,0)","v":41412.359999999797},{"$f":"VLOOKUP($A212,cost_data!$A$5:$BB$215,T$1,0)","v":15490.748489074847},{"$f":"VLOOKUP($A212,cost_data!$A$5:$BB$215,U$1,0)","v":18721.939999999999},{"$f":"VLOOKUP($A212,cost_data!$A$5:$BB$215,V$1,0)","v":15490.748489074847},{"$f":"VLOOKUP($A212,cost_data!$A$5:$BB$215,W$1,0)","v":10093.33},{"$f":"VLOOKUP($A212,cost_data!$A$5:$BB$215,X$1,0)","v":15490.748489074847},{"$f":"VLOOKUP($A212,cost_data!$A$5:$BB$215,Y$1,0)","v":20699.060000000001},{"$f":"VLOOKUP($A212,cost_data!$A$5:$BB$215,Z$1,0)","v":15490.748489074847},{"$f":"VLOOKUP($A212,cost_data!$A$5:$BB$215,AA$1,0)","v":3691207.0000000098},{"$f":"VLOOKUP($A212,cost_data!$A$5:$BB$215,AB$1,0)","v":944326}]
["99M","NHS North East Hampshire and Farnham",{"$f":"VLOOKUP($A213,cost_data!$A$5:$BB$215,C$1,0)","v":3518457.72},{"$f":"VLOOKUP($A213,cost_data!$A$5:$BB$215,D$1,0)","v":25402.506963788303},{"$f":"VLOOKUP($A213,cost_data!$A$5:$BB$215,E$1,0)","v":1162078.6399999999},{"$f":"VLOOKUP($A213,cost_data!$A$5:$BB$215,F$1,0)","v":25402.506963788303},{"$f":"VLOOKUP($A213,cost_data!$A$5:$BB$215,G$1,0)","v":937528.38999999803},{"$f":"VLOOKUP($A213,cost_data!$A$5:$BB$215,H$1,0)","v":25402.506963788303},{"$f":"VLOOKUP($A213,cost_data!$A$5:$BB$215,I$1,0)","v":471282.16},{"$f":"VLOOKUP($A213,cost_data!$A$5:$BB$215,J$1,0)","v":25402.506963788303},{"$f":"VLOOKUP($A213,cost_data!$A$5:$BB$215,K$1,0)","v":168099.13},{"$f":"VLOOKUP($A213,cost_data!$A$5:$BB$215,L$1,0)","v":25402.506963788303},{"$f":"VLOOKUP($A213,cost_data!$A$5:$BB$215,M$1,0)","v":237352.12},{"$f":"VLOOKUP($A213,cost_data!$A$5:$BB$215,N$1,0)","v":25402.506963788303},{"$f":"VLOOKUP($A213,cost_data!$A$5:$BB$215,O$1,0)","v":214658.52999999799},{"$f":"VLOOKUP($A213,cost_data!$A$5:$BB$215,P$1,0)","v":25402.506963788303},{"$f":"VLOOKUP($A213,cost_data!$A$5:$BB$215,Q$1,0)","v":222052.66000000099},{"$f":"VLOOKUP($A213,cost_data!$A$5:$BB$215,R$1,0)","v":25402.506963788303},{"$f":"VLOOKUP($A213,cost_data!$A$5:$BB$215,S$1,0)","v":57195.739999999903},{"$f":"VLOOKUP($A213,cost_data!$A$5:$BB$215,T$1,0)","v":25402.506963788303},{"$f":"VLOOKUP($A213,cost_data!$A$5:$BB$215,U$1,0)","v":18803.77},{"$f":"VLOOKUP($A213,cost_data!$A$5:$BB$215,V$1,0)","v":25402.506963788303},{"$f":"VLOOKUP($A213,cost_data!$A$5:$BB$215,W$1,0)","v":11975.06},{"$f":"VLOOKUP($A213,cost_data!$A$5:$BB$215,X$1,0)","v":25402.506963788303},{"$f":"VLOOKUP($A213,cost_data!$A$5:$BB$215,Y$1,0)","v":17431.52},{"$f":"VLOOKUP($A213,cost_data!$A$5:$BB$215,Z$1,0)","v":25402.506963788303},{"$f":"VLOOKUP($A213,cost_data!$A$5:$BB$215,AA$1,0)","v":3518457.72},{"$f":"VLOOKUP($A213,cost_data!$A$5:$BB$215,AB$1,0)","v":865864}]
["99N","NHS Wiltshire",{"$f":"VLOOKUP($A214,cost_data!$A$5:$BB$215,C$1,0)","v":8549897.2900000308},{"$f":"VLOOKUP($A214,cost_data!$A$5:$BB$215,D$1,0)","v":46231.944714814097},{"$f":"VLOOKUP($A214,cost_data!$A$5:$BB$215,E$1,0)","v":2673244.7899999698},{"$f":"VLOOKUP($A214,cost_data!$A$5:$BB$215,F$1,0)","v":46231.944714814097},{"$f":"VLOOKUP($A214,cost_data!$A$5:$BB$215,G$1,0)","v":1838938.04},{"$f":"VLOOKUP($A214,cost_data!$A$5:$BB$215,H$1,0)","v":46231.944714814097},{"$f":"VLOOKUP($A214,cost_data!$A$5:$BB$215,I$1,0)","v":1373506.98},{"$f":"VLOOKUP($A214,cost_data!$A$5:$BB$215,J$1,0)","v":46231.944714814097},{"$f":"VLOOKUP($A214,cost_data!$A$5:$BB$215,K$1,0)","v":765150.80000000098},{"$f":"VLOOKUP($A214,cost_data!$A$5:$BB$215,L$1,0)","v":46231.944714814097},{"$f":"VLOOKUP($A214,cost_data!$A$5:$BB$215,M$1,0)","v":620428.06000000401},{"$f":"VLOOKUP($A214,cost_data!$A$5:$BB$215,N$1,0)","v":46231.944714814097},{"$f":"VLOOKUP($A214,cost_data!$A$5:$BB$215,O$1,0)","v":580743.72000000102},{"$f":"VLOOKUP($A214,cost_data!$A$5:$BB$215,P$1,0)","v":46231.944714814097},{"$f":"VLOOKUP($A214,cost_data!$A$5:$BB$215,Q$1,0)","v":510069.42999999499},{"$f":"VLOOKUP($A214,cost_data!$A$5:$BB$215,R$1,0)","v":46231.944714814097},{"$f":"VLOOKUP($A214,cost_data!$A$5:$BB$215,S$1,0)","v":68587.469999999899},{"$f":"VLOOKUP($A214,cost_data!$A$5:$BB$215,T$1,0)","v":46231.944714814097},{"$f":"VLOOKUP($A214,cost_data!$A$5:$BB$215,U$1,0)","v":51862.3},{"$f":"VLOOKUP($A214,cost_data!$A$5:$BB$215,V$1,0)","v":46231.944714814097},{"$f":"VLOOKUP($A214,cost_data!$A$5:$BB$215,W$1,0)","v":29105.89},{"$f":"VLOOKUP($A214,cost_data!$A$5:$BB$215,X$1,0)","v":46231.944714814097},{"$f":"VLOOKUP($A214,cost_data!$A$5:$BB$215,Y$1,0)","v":16299.81},{"$f":"VLOOKUP($A214,cost_data!$A$5:$BB$215,Z$1,0)","v":46231.944714814097},{"$f":"VLOOKUP($A214,cost_data!$A$5:$BB$215,AA$1,0)","v":8549897.2900000308},{"$f":"VLOOKUP($A214,cost_data!$A$5:$BB$215,AB$1,0)","v":2579547}]
["99P","NHS Northern, Eastern and Western Devon",{"$f":"VLOOKUP($A215,cost_data!$A$5:$BB$215,C$1,0)","v":18330830.160000101},{"$f":"VLOOKUP($A215,cost_data!$A$5:$BB$215,D$1,0)","v":83420.819081076086},{"$f":"VLOOKUP($A215,cost_data!$A$5:$BB$215,E$1,0)","v":5066549.5100000901},{"$f":"VLOOKUP($A215,cost_data!$A$5:$BB$215,F$1,0)","v":83420.819081076086},{"$f":"VLOOKUP($A215,cost_data!$A$5:$BB$215,G$1,0)","v":4861146.1900000004},{"$f":"VLOOKUP($A215,cost_data!$A$5:$BB$215,H$1,0)","v":83420.819081076086},{"$f":"VLOOKUP($A215,cost_data!$A$5:$BB$215,I$1,0)","v":2948064.52999999},{"$f":"VLOOKUP($A215,cost_data!$A$5:$BB$215,J$1,0)","v":83420.819081076086},{"$f":"VLOOKUP($A215,cost_data!$A$5:$BB$215,K$1,0)","v":1399876.73},{"$f":"VLOOKUP($A215,cost_data!$A$5:$BB$215,L$1,0)","v":83420.819081076086},{"$f":"VLOOKUP($A215,cost_data!$A$5:$BB$215,M$1,0)","v":1539145.53000001},{"$f":"VLOOKUP($A215,cost_data!$A$5:$BB$215,N$1,0)","v":83420.819081076086},{"$f":"VLOOKUP($A215,cost_data!$A$5:$BB$215,O$1,0)","v":1186405.5900000299},{"$f":"VLOOKUP($A215,cost_data!$A$5:$BB$215,P$1,0)","v":83420.819081076086},{"$f":"VLOOKUP($A215,cost_data!$A$5:$BB$215,Q$1,0)","v":1006936.26},{"$f":"VLOOKUP($A215,cost_data!$A$5:$BB$215,R$1,0)","v":83420.819081076086},{"$f":"VLOOKUP($A215,cost_data!$A$5:$BB$215,S$1,0)","v":118909.269999999},{"$f":"VLOOKUP($A215,cost_data!$A$5:$BB$215,T$1,0)","v":83420.819081076086},{"$f":"VLOOKUP($A215,cost_data!$A$5:$BB$215,U$1,0)","v":113645.62},{"$f":"VLOOKUP($A215,cost_data!$A$5:$BB$215,V$1,0)","v":83420.819081076086},{"$f":"VLOOKUP($A215,cost_data!$A$5:$BB$215,W$1,0)","v":58982.770000000099},{"$f":"VLOOKUP($A215,cost_data!$A$5:$BB$215,X$1,0)","v":83420.819081076086},{"$f":"VLOOKUP($A215,cost_data!$A$5:$BB$215,Y$1,0)","v":31168.16},{"$f":"VLOOKUP($A215,cost_data!$A$5:$BB$215,Z$1,0)","v":83420.819081076086},{"$f":"VLOOKUP($A215,cost_data!$A$5:$BB$215,AA$1,0)","v":18330830.160000101},{"$f":"VLOOKUP($A215,cost_data!$A$5:$BB$215,AB$1,0)","v":5688469}]
["99Q","NHS South Devon and Torbay",{"$f":"VLOOKUP($A216,cost_data!$A$5:$BB$215,C$1,0)","v":6297558.1400000099},{"$f":"VLOOKUP($A216,cost_data!$A$5:$BB$215,D$1,0)","v":24036.281179138321},{"$f":"VLOOKUP($A216,cost_data!$A$5:$BB$215,E$1,0)","v":1922013.05999999},{"$f":"VLOOKUP($A216,cost_data!$A$5:$BB$215,F$1,0)","v":24036.281179138321},{"$f":"VLOOKUP($A216,cost_data!$A$5:$BB$215,G$1,0)","v":1466679.87},{"$f":"VLOOKUP($A216,cost_data!$A$5:$BB$215,H$1,0)","v":24036.281179138321},{"$f":"VLOOKUP($A216,cost_data!$A$5:$BB$215,I$1,0)","v":1205352.3799999999},{"$f":"VLOOKUP($A216,cost_data!$A$5:$BB$215,J$1,0)","v":24036.281179138321},{"$f":"VLOOKUP($A216,cost_data!$A$5:$BB$215,K$1,0)","v":412017.33999999898},{"$f":"VLOOKUP($A216,cost_data!$A$5:$BB$215,L$1,0)","v":24036.281179138321},{"$f":"VLOOKUP($A216,cost_data!$A$5:$BB$215,M$1,0)","v":393614.25},{"$f":"VLOOKUP($A216,cost_data!$A$5:$BB$215,N$1,0)","v":24036.281179138321},{"$f":"VLOOKUP($A216,cost_data!$A$5:$BB$215,O$1,0)","v":422856.18999999802},{"$f":"VLOOKUP($A216,cost_data!$A$5:$BB$215,P$1,0)","v":24036.281179138321},{"$f":"VLOOKUP($A216,cost_data!$A$5:$BB$215,Q$1,0)","v":338152.78999999899},{"$f":"VLOOKUP($A216,cost_data!$A$5:$BB$215,R$1,0)","v":24036.281179138321},{"$f":"VLOOKUP($A216,cost_data!$A$5:$BB$215,S$1,0)","v":34924.849999999802},{"$f":"VLOOKUP($A216,cost_data!$A$5:$BB$215,T$1,0)","v":24036.281179138321},{"$f":"VLOOKUP($A216,cost_data!$A$5:$BB$215,U$1,0)","v":46257.29},{"$f":"VLOOKUP($A216,cost_data!$A$5:$BB$215,V$1,0)","v":24036.281179138321},{"$f":"VLOOKUP($A216,cost_data!$A$5:$BB$215,W$1,0)","v":26133.1500000001},{"$f":"VLOOKUP($A216,cost_data!$A$5:$BB$215,X$1,0)","v":24036.281179138321},{"$f":"VLOOKUP($A216,cost_data!$A$5:$BB$215,Y$1,0)","v":29556.97},{"$f":"VLOOKUP($A216,cost_data!$A$5:$BB$215,Z$1,0)","v":24036.281179138321},{"$f":"VLOOKUP($A216,cost_data!$A$5:$BB$215,AA$1,0)","v":6297558.1400000099},{"$f":"VLOOKUP($A216,cost_data!$A$5:$BB$215,AB$1,0)","v":1692004}]

{"sheet":"DataOutcome","index":13,"n_rows":215,"n_cols":32,"rows_kept":215,"cut":false,"hidden":true,"merged":[[2,0,2,1],[2,14,2,15],[2,16,2,17],[2,2,2,3],[2,4,2,5],[2,6,2,7],[2,8,2,9],[2,10,2,11],[2,12,2,13],[2,28,2,29],[2,30,2,31],[2,18,2,19],[2,20,2,21],[2,22,2,23],[2,24,2,25],[2,26,2,27]]}
[1,{"$f":"IF(A1=1,2,32)","v":2},{"$f":"B1+1","v":3},{"$f":"C1+1","v":4},{"$f":"D1+1","v":5},6,7,8,9,10,11,12,13,14,15,16,17,18,19,20,21,22,23,24,25,26,27,28,29,30,31,32]
[null,null,"Ind1","DM26","Ind2","DM26","Ind3","DM27","Ind4","DM27","Ind5","DM28","Ind6","DM28","Ind7",null,"Ind8",null,"Ind9",null,"Ind10",null,"Ind11",null,"Ind12",null,"Ind13",null,"Ind14",null,"Ind15"]
[null,null,{"$f":"INDEX(Lookup_OutcomeName,MATCH(C$2,Lookup_OutcomeNamedRng,0))","v":"Under 75 mortality from cardiovascular disease "},null,{"$f":"INDEX(Lookup_OutcomeName,MATCH(E$2,Lookup_OutcomeNamedRng,0))","v":"Admissions for stroke (all ages)"},null,{"$f":"INDEX(Lookup_OutcomeName,MATCH(G$2,Lookup_OutcomeNamedRng,0))","v":"Admissions for coronary heart disease (all ages)"},null,{"$f":"INDEX(Lookup_OutcomeName,MATCH(I$2,Lookup_OutcomeNamedRng,0))","v":"Admissions for heart failure (all ages)"},null,{"$f":"INDEX(Lookup_OutcomeName,MATCH(K$2,Lookup_OutcomeNamedRng,0))","v":"Admissions for angiography (all ages)"},null,{"$f":"INDEX(Lookup_OutcomeName,MATCH(M$2,Lookup_OutcomeNamedRng,0))","v":"Admissions for angioplasty (all ages)"},null,{"$f":"INDEX(Lookup_OutcomeName,MATCH(O$2,Lookup_OutcomeNamedRng,0))","v":"Admissions for coronary artery bypass graft (all ages)"},null,{"$f":"INDEX(Lookup_OutcomeName,MATCH(Q$2,Lookup_OutcomeNamedRng,0))","v":"The percentage of patients on the coronary heart disease register whose last blood pressure measurement was 150/90 or less"},null,{"$f":"INDEX(Lookup_OutcomeName,MATCH(S$2,Lookup_OutcomeNamedRng,0))","v":"The percentage of patients on the coronary heart disease register whose last cholesterol measurement was 5.0mmol/l or less"},null,{"$f":"INDEX(Lookup_OutcomeName,MATCH(U$2,Lookup_OutcomeNamedRng,0))","v":"The percentage of patients on the hypertension register whose last blood pressure measurement was 150/90 or less"},null,{"$f":"INDEX(Lookup_OutcomeName,MATCH(W$2,Lookup_OutcomeNamedRng,0))","v":"The percentage of patients on the chronic kidney disease register whose last blood pressure measurement was 140/85 or less"},null,{"$f":"INDEX(Lookup_OutcomeName,MATCH(Y$2,Lookup_OutcomeNamedRng,0))","v":"The percentage of patients on the peripheral arterial disease register whose last blood  pressure measurement was 150/90 or less"},null,{"$f":"INDEX(Lookup_OutcomeName,MATCH(AA$2,Lookup_OutcomeNamedRng,0))","v":"The percentage of patients on the peripheral arterial disease register whose last cholesterol measurement was 5.0mmol/l or less."},null,{"$f":"INDEX(Lookup_OutcomeName,MATCH(AC$2,Lookup_OutcomeNamedRng,0))","v":"The percentage of patients on the stroke register whose last blood pressure measurement was 150/90 or less"},null,{"$f":"INDEX(Lookup_OutcomeName,MATCH(AE$2,Lookup_OutcomeNamedRng,0))","v":"The percentage of patients on the stroke register whose last cholesterol measurement was 5.0 mmol/l or less"}]
["CCG Code","CCGName","Numerator","Denominator","Numerator","Denominator","Numerator","Denominator","Numerator","Denominator","Numerator","Denominator","Numerator","Denominator","Numerator","Denominator","Numerator","Denominator","Numerator","Denominator","Numerator","Denominator","Numerator","Denominator","Numerator","Denominator","Numerator","Denominator","Numerator","Denominator","Numerator","Denominator"]
["00C","NHS Darlington",{"$f":"VLOOKUP($A5,outcome_data!$A$6:$BJ$216,C$1,0)","v":69},{"$f":"VLOOKUP($A5,outcome_data!$A$6:$BJ$216,D$1,0)","v":97489},{"$f":"VLOOKUP($A5,outcome_data!$A$6:$BJ$216,E$1,0)","v":184},{"$f":"VLOOKUP($A5,outcome_data!$A$6:$BJ$216,F$1,0)","v":106334},{"$f":"VLOOKUP($A5,outcome_data!$A$6:$BJ$216,G$1,0)","v":483},{"$f":"VLOOKUP($A5,outcome_data!$A$6:$BJ$216,H$1,0)","v":106334},{"$f":"VLOOKUP($A5,outcome_data!$A$6:$BJ$216,I$1,0)","v":115},{"$f":"VLOOKUP($A5,outcome_data!$A$6:$BJ$216,J$1,0)","v":106334},{"$f":"VLOOKUP($A5,outcome_data!$A$6:$BJ$216,K$1,0)","v":319},{"$f":"VLOOKUP($A5,outcome_data!$A$6:$BJ$216,L$1,0)","v":106334},{"$f":"VLOOKUP($A5,outcome_data!$A$6:$BJ$216,M$1,0)","v":107},{"$f":"VLOOKUP($A5,outcome_data!$A$6:$BJ$216,N$1,0)","v":106334},{"$f":"VLOOKUP($A5,outcome_data!$A$6:$BJ$216,O$1,0)","v":51},{"$f":"VLOOKUP($A5,outcome_data!$A$6:$BJ$216,P$1,0)","v":106334},{"$f":"VLOOKUP($A5,outcome_data!$A$6:$BJ$216,Q$1,0)","v":3799},{"$f":"VLOOKUP($A5,outcome_data!$A$6:$BJ$216,R$1,0)","v":4286},{"$f":"VLOOKUP($A5,outcome_data!$A$6:$BJ$216,S$1,0)","v":3343},{"$f":"VLOOKUP($A5,outcome_data!$A$6:$BJ$216,T$1,0)","v":4286},{"$f":"VLOOKUP($A5,outcome_data!$A$6:$BJ$216,U$1,0)","v":12293},{"$f":"VLOOKUP($A5,outcome_data!$A$6:$BJ$216,V$1,0)","v":15707},{"$f":"VLOOKUP($A5,outcome_data!$A$6:$BJ$216,W$1,0)","v":2773},{"$f":"VLOOKUP($A5,outcome_data!$A$6:$BJ$216,X$1,0)","v":3882},{"$f":"VLOOKUP($A5,outcome_data!$A$6:$BJ$216,Y$1,0)","v":897},{"$f":"VLOOKUP($A5,outcome_data!$A$6:$BJ$216,Z$1,0)","v":1045},{"$f":"VLOOKUP($A5,outcome_data!$A$6:$BJ$216,AA$1,0)","v":757},{"$f":"VLOOKUP($A5,outcome_data!$A$6:$BJ$216,AB$1,0)","v":1045},{"$f":"VLOOKUP($A5,outcome_data!$A$6:$BJ$216,AC$1,0)","v":1881},{"$f":"VLOOKUP($A5,outcome_data!$A$6:$BJ$216,AD$1,0)","v":2136},{"$f":"VLOOKUP($A5,outcome_data!$A$6:$BJ$216,AE$1,0)","v":1571},{"$f":"VLOOKUP($A5,outcome_data!$A$6:$BJ$216,AF$1,0)","v":2136}]
["00D","NHS Durham Dales, Easington and Sedgefield",{"$f":"VLOOKUP($A6,outcome_data!$A$6:$BJ$216,C$1,0)","v":232},{"$f":"VLOOKUP($A6,outcome_data!$A$6:$BJ$216,D$1,0)","v":263669},{"$f":"VLOOKUP($A6,outcome_data!$A$6:$BJ$216,E$1,0)","v":565},{"$f":"VLOOKUP($A6,outcome_data!$A$6:$BJ$216,F$1,0)","v":287872},{"$f":"VLOOKUP($A6,outcome_data!$A$6:$BJ$216,G$1,0)","v":1742},{"$f":"VLOOKUP($A6,outcome_data!$A$6:$BJ$216,H$1,0)","v":287872},{"$f":"VLOOKUP($A6,outcome_data!$A$6:$BJ$216,I$1,0)","v":368},{"$f":"VLOOKUP($A6,outcome_data!$A$6:$BJ$216,J$1,0)","v":287872},{"$f":"VLOOKUP($A6,outcome_data!$A$6:$BJ$216,K$1,0)","v":1198},{"$f":"VLOOKUP($A6,outcome_data!$A$6:$BJ$216,L$1,0)","v":287872},{"$f":"VLOOKUP($A6,outcome_data!$A$6:$BJ$216,M$1,0)","v":387},{"$f":"VLOOKUP($A6,outcome_data!$A$6:$BJ$216,N$1,0)","v":287872},{"$f":"VLOOKUP($A6,outcome_data!$A$6:$BJ$216,O$1,0)","v":145},{"$f":"VLOOKUP($A6,outcome_data!$A$6:$BJ$216,P$1,0)","v":287872},{"$f":"VLOOKUP($A6,outcome_data!$A$6:$BJ$216,Q$1,0)","v":13399},{"$f":"VLOOKUP($A6,outcome_data!$A$6:$BJ$216,R$1,0)","v":15153},{"$f":"VLOOKUP($A6,outcome_data!$A$6:$BJ$216,S$1,0)","v":11430},{"$f":"VLOOKUP($A6,outcome_data!$A$6:$BJ$216,T$1,0)","v":15153},{"$f":"VLOOKUP($A6,outcome_data!$A$6:$BJ$216,U$1,0)","v":37673},{"$f":"VLOOKUP($A6,outcome_data!$A$6:$BJ$216,V$1,0)","v":47897},{"$f":"VLOOKUP($A6,outcome_data!$A$6:$BJ$216,W$1,0)","v":7996},{"$f":"VLOOKUP($A6,outcome_data!$A$6:$BJ$216,X$1,0)","v":11082},{"$f":"VLOOKUP($A6,outcome_data!$A$6:$BJ$216,Y$1,0)","v":2728},{"$f":"VLOOKUP($A6,outcome_data!$A$6:$BJ$216,Z$1,0)","v":3173},{"$f":"VLOOKUP($A6,outcome_data!$A$6:$BJ$216,AA$1,0)","v":2294},{"$f":"VLOOKUP($A6,outcome_data!$A$6:$BJ$216,AB$1,0)","v":3173},{"$f":"VLOOKUP($A6,outcome_data!$A$6:$BJ$216,AC$1,0)","v":5592},{"$f":"VLOOKUP($A6,outcome_data!$A$6:$BJ$216,AD$1,0)","v":6502},{"$f":"VLOOKUP($A6,outcome_data!$A$6:$BJ$216,AE$1,0)","v":4690},{"$f":"VLOOKUP($A6,outcome_data!$A$6:$BJ$216,AF$1,0)","v":6502}]
["00F","NHS Gateshead",{"$f":"VLOOKUP($A7,outcome_data!$A$6:$BJ$216,C$1,0)","v":156},{"$f":"VLOOKUP($A7,outcome_data!$A$6:$BJ$216,D$1,0)","v":187507},{"$f":"VLOOKUP($A7,outcome_data!$A$6:$BJ$216,E$1,0)","v":368},{"$f":"VLOOKUP($A7,outcome_data!$A$6:$BJ$216,F$1,0)","v":206317},{"$f":"VLOOKUP($A7,outcome_data!$A$6:$BJ$216,G$1,0)","v":1018},{"$f":"VLOOKUP($A7,outcome_data!$A$6:$BJ$216,H$1,0)","v":206317},{"$f":"VLOOKUP($A7,outcome_data!$A$6:$BJ$216,I$1,0)","v":254},{"$f":"VLOOKUP($A7,outcome_data!$A$6:$BJ$216,J$1,0)","v":206317},{"$f":"VLOOKUP($A7,outcome_data!$A$6:$BJ$216,K$1,0)","v":788},{"$f":"VLOOKUP($A7,outcome_data!$A$6:$BJ$216,L$1,0)","v":206317},{"$f":"VLOOKUP($A7,outcome_data!$A$6:$BJ$216,M$1,0)","v":368},{"$f":"VLOOKUP($A7,outcome_data!$A$6:$BJ$216,N$1,0)","v":206317},{"$f":"VLOOKUP($A7,outcome_data!$A$6:$BJ$216,O$1,0)","v":27},{"$f":"VLOOKUP($A7,outcome_data!$A$6:$BJ$216,P$1,0)","v":206317},{"$f":"VLOOKUP($A7,outcome_data!$A$6:$BJ$216,Q$1,0)","v":7804},{"$f":"VLOOKUP($A7,outcome_data!$A$6:$BJ$216,R$1,0)","v":8904},{"$f":"VLOOKUP($A7,outcome_data!$A$6:$BJ$216,S$1,0)","v":6763},{"$f":"VLOOKUP($A7,outcome_data!$A$6:$BJ$216,T$1,0)","v":8904},{"$f":"VLOOKUP($A7,outcome_data!$A$6:$BJ$216,U$1,0)","v":25704},{"$f":"VLOOKUP($A7,outcome_data!$A$6:$BJ$216,V$1,0)","v":33455},{"$f":"VLOOKUP($A7,outcome_data!$A$6:$BJ$216,W$1,0)","v":6668},{"$f":"VLOOKUP($A7,outcome_data!$A$6:$BJ$216,X$1,0)","v":9523},{"$f":"VLOOKUP($A7,outcome_data!$A$6:$BJ$216,Y$1,0)","v":1987},{"$f":"VLOOKUP($A7,outcome_data!$A$6:$BJ$216,Z$1,0)","v":2297},{"$f":"VLOOKUP($A7,outcome_data!$A$6:$BJ$216,AA$1,0)","v":1667},{"$f":"VLOOKUP($A7,outcome_data!$A$6:$BJ$216,AB$1,0)","v":2297},{"$f":"VLOOKUP($A7,outcome_data!$A$6:$BJ$216,AC$1,0)","v":3726},{"$f":"VLOOKUP($A7,outcome_data!$A$6:$BJ$216,AD$1,0)","v":4375},{"$f":"VLOOKUP($A7,outcome_data!$A$6:$BJ$216,AE$1,0)","v":3093},{"$f":"VLOOKUP($A7,outcome_data!$A$6:$BJ$216,AF$1,0)","v":4375}]
["00G","NHS Newcastle North and East",{"$f":"VLOOKUP($A8,outcome_data!$A$6:$BJ$216,C$1,0)","v":65},{"$f":"VLOOKUP($A8,outcome_data!$A$6:$BJ$216,D$1,0)","v":147213},{"$f":"VLOOKUP($A8,outcome_data!$A$6:$BJ$216,E$1,0)","v":200},{"$f":"VLOOKUP($A8,outcome_data!$A$6:$BJ$216,F$1,0)","v":156001},{"$f":"VLOOKUP($A8,outcome_data!$A$6:$BJ$216,G$1,0)","v":461},{"$f":"VLOOKUP($A8,outcome_data!$A$6:$BJ$216,H$1,0)","v":156001},{"$f":"VLOOKUP($A8,outcome_data!$A$6:$BJ$216,I$1,0)","v":132},{"$f":"VLOOKUP($A8,outcome_data!$A$6:$BJ$216,J$1,0)","v":156001},{"$f":"VLOOKUP($A8,outcome_data!$A$6:$BJ$216,K$1,0)","v":400},{"$f":"VLOOKUP($A8,outcome_data!$A$6:$BJ$216,L$1,0)","v":156001},{"$f":"VLOOKUP($A8,outcome_data!$A$6:$BJ$216,M$1,0)","v":236},{"$f":"VLOOKUP($A8,outcome_data!$A$6:$BJ$216,N$1,0)","v":156001},{"$f":"VLOOKUP($A8,outcome_data!$A$6:$BJ$216,O$1,0)","v":28},{"$f":"VLOOKUP($A8,outcome_data!$A$6:$BJ$216,P$1,0)","v":156001},{"$f":"VLOOKUP($A8,outcome_data!$A$6:$BJ$216,Q$1,0)","v":4155},{"$f":"VLOOKUP($A8,outcome_data!$A$6:$BJ$216,R$1,0)","v":4585},{"$f":"VLOOKUP($A8,outcome_data!$A$6:$BJ$216,S$1,0)","v":3514},{"$f":"VLOOKUP($A8,outcome_data!$A$6:$BJ$216,T$1,0)","v":4585},{"$f":"VLOOKUP($A8,outcome_data!$A$6:$BJ$216,U$1,0)","v":13814},{"$f":"VLOOKUP($A8,outcome_data!$A$6:$BJ$216,V$1,0)","v":17479},{"$f":"VLOOKUP($A8,outcome_data!$A$6:$BJ$216,W$1,0)","v":5040},{"$f":"VLOOKUP($A8,outcome_data!$A$6:$BJ$216,X$1,0)","v":6629},{"$f":"VLOOKUP($A8,outcome_data!$A$6:$BJ$216,Y$1,0)","v":1164},{"$f":"VLOOKUP($A8,outcome_data!$A$6:$BJ$216,Z$1,0)","v":1317},{"$f":"VLOOKUP($A8,outcome_data!$A$6:$BJ$216,AA$1,0)","v":984},{"$f":"VLOOKUP($A8,outcome_data!$A$6:$BJ$216,AB$1,0)","v":1317},{"$f":"VLOOKUP($A8,outcome_data!$A$6:$BJ$216,AC$1,0)","v":2221},{"$f":"VLOOKUP($A8,outcome_data!$A$6:$BJ$216,AD$1,0)","v":2545},{"$f":"VLOOKUP($A8,outcome_data!$A$6:$BJ$216,AE$1,0)","v":1855},{"$f":"VLOOKUP($A8,outcome_data!$A$6:$BJ$216,AF$1,0)","v":2545}]
["00H","NHS Newcastle West",{"$f":"VLOOKUP($A9,outcome_data!$A$6:$BJ$216,C$1,0)","v":92},{"$f":"VLOOKUP($A9,outcome_data!$A$6:$BJ$216,D$1,0)","v":122516},{"$f":"VLOOKUP($A9,outcome_data!$A$6:$BJ$216,E$1,0)","v":193},{"$f":"VLOOKUP($A9,outcome_data!$A$6:$BJ$216,F$1,0)","v":132239},{"$f":"VLOOKUP($A9,outcome_data!$A$6:$BJ$216,G$1,0)","v":548},{"$f":"VLOOKUP($A9,outcome_data!$A$6:$BJ$216,H$1,0)","v":132239},{"$f":"VLOOKUP($A9,outcome_data!$A$6:$BJ$216,I$1,0)","v":172},{"$f":"VLOOKUP($A9,outcome_data!$A$6:$BJ$216,J$1,0)","v":132239},{"$f":"VLOOKUP($A9,outcome_data!$A$6:$BJ$216,K$1,0)","v":488},{"$f":"VLOOKUP($A9,outcome_data!$A$6:$BJ$216,L$1,0)","v":132239},{"$f":"VLOOKUP($A9,outcome_data!$A$6:$BJ$216,M$1,0)","v":270},{"$f":"VLOOKUP($A9,outcome_data!$A$6:$BJ$216,N$1,0)","v":132239},{"$f":"VLOOKUP($A9,outcome_data!$A$6:$BJ$216,O$1,0)","v":23},{"$f":"VLOOKUP($A9,outcome_data!$A$6:$BJ$216,P$1,0)","v":132239},{"$f":"VLOOKUP($A9,outcome_data!$A$6:$BJ$216,Q$1,0)","v":4684},{"$f":"VLOOKUP($A9,outcome_data!$A$6:$BJ$216,R$1,0)","v":5195},{"$f":"VLOOKUP($A9,outcome_data!$A$6:$BJ$216,S$1,0)","v":3930},{"$f":"VLOOKUP($A9,outcome_data!$A$6:$BJ$216,T$1,0)","v":5195},{"$f":"VLOOKUP($A9,outcome_data!$A$6:$BJ$216,U$1,0)","v":14609},{"$f":"VLOOKUP($A9,outcome_data!$A$6:$BJ$216,V$1,0)","v":18288},{"$f":"VLOOKUP($A9,outcome_data!$A$6:$BJ$216,W$1,0)","v":5328},{"$f":"VLOOKUP($A9,outcome_data!$A$6:$BJ$216,X$1,0)","v":6942},{"$f":"VLOOKUP($A9,outcome_data!$A$6:$BJ$216,Y$1,0)","v":1295},{"$f":"VLOOKUP($A9,outcome_data!$A$6:$BJ$216,Z$1,0)","v":1508},{"$f":"VLOOKUP($A9,outcome_data!$A$6:$BJ$216,AA$1,0)","v":1139},{"$f":"VLOOKUP($A9,outcome_data!$A$6:$BJ$216,AB$1,0)","v":1508},{"$f":"VLOOKUP($A9,outcome_data!$A$6:$BJ$216,AC$1,0)","v":2479},{"$f":"VLOOKUP($A9,outcome_data!$A$6:$BJ$216,AD$1,0)","v":2832},{"$f":"VLOOKUP($A9,outcome_data!$A$6:$BJ$216,AE$1,0)","v":2032},{"$f":"VLOOKUP($A9,outcome_data!$A$6:$BJ$216,AF$1,0)","v":2832}]
["00J","NHS North Durham",{"$f":"VLOOKUP($A10,outcome_data!$A$6:$BJ$216,C$1,0)","v":175},{"$f":"VLOOKUP($A10,outcome_data!$A$6:$BJ$216,D$1,0)","v":230194},{"$f":"VLOOKUP($A10,outcome_data!$A$6:$BJ$216,E$1,0)","v":387},{"$f":"VLOOKUP($A10,outcome_data!$A$6:$BJ$216,F$1,0)","v":250298},{"$f":"VLOOKUP($A10,outcome_data!$A$6:$BJ$216,G$1,0)","v":1364},{"$f":"VLOOKUP($A10,outcome_data!$A$6:$BJ$216,H$1,0)","v":250298},{"$f":"VLOOKUP($A10,outcome_data!$A$6:$BJ$216,I$1,0)","v":334},{"$f":"VLOOKUP($A10,outcome_data!$A$6:$BJ$216,J$1,0)","v":250298},{"$f":"VLOOKUP($A10,outcome_data!$A$6:$BJ$216,K$1,0)","v":919},{"$f":"VLOOKUP($A10,outcome_data!$A$6:$BJ$216,L$1,0)","v":250298},{"$f":"VLOOKUP($A10,outcome_data!$A$6:$BJ$216,M$1,0)","v":323},{"$f":"VLOOKUP($A10,outcome_data!$A$6:$BJ$216,N$1,0)","v":250298},{"$f":"VLOOKUP($A10,outcome_data!$A$6:$BJ$216,O$1,0)","v":79},{"$f":"VLOOKUP($A10,outcome_data!$A$6:$BJ$216,P$1,0)","v":250298},{"$f":"VLOOKUP($A10,outcome_data!$A$6:$BJ$216,Q$1,0)","v":10237},{"$f":"VLOOKUP($A10,outcome_data!$A$6:$BJ$216,R$1,0)","v":11449},{"$f":"VLOOKUP($A10,outcome_data!$A$6:$BJ$216,S$1,0)","v":8372},{"$f":"VLOOKUP($A10,outcome_data!$A$6:$BJ$216,T$1,0)","v":11449},{"$f":"VLOOKUP($A10,outcome_data!$A$6:$BJ$216,U$1,0)","v":30139},{"$f":"VLOOKUP($A10,outcome_data!$A$6:$BJ$216,V$1,0)","v":38381},{"$f":"VLOOKUP($A10,outcome_data!$A$6:$BJ$216,W$1,0)","v":6950},{"$f":"VLOOKUP($A10,outcome_data!$A$6:$BJ$216,X$1,0)","v":9551},{"$f":"VLOOKUP($A10,outcome_data!$A$6:$BJ$216,Y$1,0)","v":1864},{"$f":"VLOOKUP($A10,outcome_data!$A$6:$BJ$216,Z$1,0)","v":2117},{"$f":"VLOOKUP($A10,outcome_data!$A$6:$BJ$216,AA$1,0)","v":1476},{"$f":"VLOOKUP($A10,outcome_data!$A$6:$BJ$216,AB$1,0)","v":2117},{"$f":"VLOOKUP($A10,outcome_data!$A$6:$BJ$216,AC$1,0)","v":4561},{"$f":"VLOOKUP($A10,outcome_data!$A$6:$BJ$216,AD$1,0)","v":5267},{"$f":"VLOOKUP($A10,outcome_data!$A$6:$BJ$216,AE$1,0)","v":3696},{"$f":"VLOOKUP($A10,outcome_data!$A$6:$BJ$216,AF$1,0)","v":5267}]
["00K","NHS Hartlepool and Stockton-On-Tees",{"$f":"VLOOKUP($A11,outcome_data!$A$6:$BJ$216,C$1,0)","v":184},{"$f":"VLOOKUP($A11,outcome_data!$A$6:$BJ$216,D$1,0)","v":269151},{"$f":"VLOOKUP($A11,outcome_data!$A$6:$BJ$216,E$1,0)","v":475},{"$f":"VLOOKUP($A11,outcome_data!$A$6:$BJ$216,F$1,0)","v":291123},{"$f":"VLOOKUP($A11,outcome_data!$A$6:$BJ$216,G$1,0)","v":1409},{"$f":"VLOOKUP($A11,outcome_data!$A$6:$BJ$216,H$1,0)","v":291123},{"$f":"VLOOKUP($A11,outcome_data!$A$6:$BJ$216,I$1,0)","v":250},{"$f":"VLOOKUP($A11,outcome_data!$A$6:$BJ$216,J$1,0)","v":291123},{"$f":"VLOOKUP($A11,outcome_data!$A$6:$BJ$216,K$1,0)","v":1050},{"$f":"VLOOKUP($A11,outcome_data!$A$6:$BJ$216,L$1,0)","v":291123},{"$f":"VLOOKUP($A11,outcome_data!$A$6:$BJ$216,M$1,0)","v":307},{"$f":"VLOOKUP($A11,outcome_data!$A$6:$BJ$216,N$1,0)","v":291123},{"$f":"VLOOKUP($A11,outcome_data!$A$6:$BJ$216,O$1,0)","v":126},{"$f":"VLOOKUP($A11,outcome_data!$A$6:$BJ$216,P$1,0)","v":291123},{"$f":"VLOOKUP($A11,outcome_data!$A$6:$BJ$216,Q$1,0)","v":10868},{"$f":"VLOOKUP($A11,outcome_data!$A$6:$BJ$216,R$1,0)","v":12343},{"$f":"VLOOKUP($A11,outcome_data!$A$6:$BJ$216,S$1,0)","v":9037},{"$f":"VLOOKUP($A11,outcome_data!$A$6:$BJ$216,T$1,0)","v":12343},{"$f":"VLOOKUP($A11,outcome_data!$A$6:$BJ$216,U$1,0)","v":34076},{"$f":"VLOOKUP($A11,outcome_data!$A$6:$BJ$216,V$1,0)","v":43658},{"$f":"VLOOKUP($A11,outcome_data!$A$6:$BJ$216,W$1,0)","v":7143},{"$f":"VLOOKUP($A11,outcome_data!$A$6:$BJ$216,X$1,0)","v":9874},{"$f":"VLOOKUP($A11,outcome_data!$A$6:$BJ$216,Y$1,0)","v":2124},{"$f":"VLOOKUP($A11,outcome_data!$A$6:$BJ$216,Z$1,0)","v":2506},{"$f":"VLOOKUP($A11,outcome_data!$A$6:$BJ$216,AA$1,0)","v":1750},{"$f":"VLOOKUP($A11,outcome_data!$A$6:$BJ$216,AB$1,0)","v":2506},{"$f":"VLOOKUP($A11,outcome_data!$A$6:$BJ$216,AC$1,0)","v":4845},{"$f":"VLOOKUP($A11,outcome_data!$A$6:$BJ$216,AD$1,0)","v":5709},{"$f":"VLOOKUP($A11,outcome_data!$A$6:$BJ$216,AE$1,0)","v":3941},{"$f":"VLOOKUP($A11,outcome_data!$A$6:$BJ$216,AF$1,0)","v":5709}]
["00L","NHS Northumberland",{"$f":"VLOOKUP($A12,outcome_data!$A$6:$BJ$216,C$1,0)","v":208},{"$f":"VLOOKUP($A12,outcome_data!$A$6:$BJ$216,D$1,0)","v":291073},{"$f":"VLOOKUP($A12,outcome_data!$A$6:$BJ$216,E$1,0)","v":662},{"$f":"VLOOKUP($A12,outcome_data!$A$6:$BJ$216,F$1,0)","v":321731},{"$f":"VLOOKUP($A12,outcome_data!$A$6:$BJ$216,G$1,0)","v":2331},{"$f":"VLOOKUP($A12,outcome_data!$A$6:$BJ$216,H$1,0)","v":321731},{"$f":"VLOOKUP($A12,outcome_data!$A$6:$BJ$216,I$1,0)","v":498},{"$f":"VLOOKUP($A12,outcome_data!$A$6:$BJ$216,J$1,0)","v":321731},{"$f":"VLOOKUP($A12,outcome_data!$A$6:$BJ$216,K$1,0)","v":1299},{"$f":"VLOOKUP($A12,outcome_data!$A$6:$BJ$216,L$1,0)","v":321731},{"$f":"VLOOKUP($A12,outcome_data!$A$6:$BJ$216,M$1,0)","v":642},{"$f":"VLOOKUP($A12,outcome_data!$A$6:$BJ$216,N$1,0)","v":321731},{"$f":"VLOOKUP($A12,outcome_data!$A$6:$BJ$216,O$1,0)","v":77},{"$f":"VLOOKUP($A12,outcome_data!$A$6:$BJ$216,P$1,0)","v":321731},{"$f":"VLOOKUP($A12,outcome_data!$A$6:$BJ$216,Q$1,0)","v":14154},{"$f":"VLOOKUP($A12,outcome_data!$A$6:$BJ$216,R$1,0)","v":15786},{"$f":"VLOOKUP($A12,outcome_data!$A$6:$BJ$216,S$1,0)","v":11959},{"$f":"VLOOKUP($A12,outcome_data!$A$6:$BJ$216,T$1,0)","v":15786},{"$f":"VLOOKUP($A12,outcome_data!$A$6:$BJ$216,U$1,0)","v":43457},{"$f":"VLOOKUP($A12,outcome_data!$A$6:$BJ$216,V$1,0)","v":55009},{"$f":"VLOOKUP($A12,outcome_data!$A$6:$BJ$216,W$1,0)","v":12375},{"$f":"VLOOKUP($A12,outcome_data!$A$6:$BJ$216,X$1,0)","v":16806},{"$f":"VLOOKUP($A12,outcome_data!$A$6:$BJ$216,Y$1,0)","v":2643},{"$f":"VLOOKUP($A12,outcome_data!$A$6:$BJ$216,Z$1,0)","v":3051},{"$f":"VLOOKUP($A12,outcome_data!$A$6:$BJ$216,AA$1,0)","v":2216},{"$f":"VLOOKUP($A12,outcome_data!$A$6:$BJ$216,AB$1,0)","v":3051},{"$f":"VLOOKUP($A12,outcome_data!$A$6:$BJ$216,AC$1,0)","v":6749},{"$f":"VLOOKUP($A12,outcome_data!$A$6:$BJ$216,AD$1,0)","v":7772},{"$f":"VLOOKUP($A12,outcome_data!$A$6:$BJ$216,AE$1,0)","v":5566},{"$f":"VLOOKUP($A12,outcome_data!$A$6:$BJ$216,AF$1,0)","v":7772}]
["00M","NHS South Tees",{"$f":"VLOOKUP($A13,outcome_data!$A$6:$BJ$216,C$1,0)","v":204},{"$f":"VLOOKUP($A13,outcome_data!$A$6:$BJ$216,D$1,0)","v":268563},{"$f":"VLOOKUP($A13,outcome_data!$A$6:$BJ$216,E$1,0)","v":586},{"$f":"VLOOKUP($A13,outcome_data!$A$6:$BJ$216,F$1,0)","v":290888},{"$f":"VLOOKUP($A13,outcome_data!$A$6:$BJ$216,G$1,0)","v":996},{"$f":"VLOOKUP($A13,outcome_data!$A$6:$BJ$216,H$1,0)","v":290888},{"$f":"VLOOKUP($A13,outcome_data!$A$6:$BJ$216,I$1,0)","v":308},{"$f":"VLOOKUP($A13,outcome_data!$A$6:$BJ$216,J$1,0)","v":290888},{"$f":"VLOOKUP($A13,outcome_data!$A$6:$BJ$216,K$1,0)","v":1053},{"$f":"VLOOKUP($A13,outcome_data!$A$6:$BJ$216,L$1,0)","v":290888},{"$f":"VLOOKUP($A13,outcome_data!$A$6:$BJ$216,M$1,0)","v":393},{"$f":"VLOOKUP($A13,outcome_data!$A$6:$BJ$216,N$1,0)","v":290888},{"$f":"VLOOKUP($A13,outcome_data!$A$6:$BJ$216,O$1,0)","v":110},{"$f":"VLOOKUP($A13,outcome_data!$A$6:$BJ$216,P$1,0)","v":290888},{"$f":"VLOOKUP($A13,outcome_data!$A$6:$BJ$216,Q$1,0)","v":11121},{"$f":"VLOOKUP($A13,outcome_data!$A$6:$BJ$216,R$1,0)","v":12606},{"$f":"VLOOKUP($A13,outcome_data!$A$6:$BJ$216,S$1,0)","v":9565},{"$f":"VLOOKUP($A13,outcome_data!$A$6:$BJ$216,T$1,0)","v":12606},{"$f":"VLOOKUP($A13,outcome_data!$A$6:$BJ$216,U$1,0)","v":32943},{"$f":"VLOOKUP($A13,outcome_data!$A$6:$BJ$216,V$1,0)","v":43026},{"$f":"VLOOKUP($A13,outcome_data!$A$6:$BJ$216,W$1,0)","v":6921},{"$f":"VLOOKUP($A13,outcome_data!$A$6:$BJ$216,X$1,0)","v":9660},{"$f":"VLOOKUP($A13,outcome_data!$A$6:$BJ$216,Y$1,0)","v":2202},{"$f":"VLOOKUP($A13,outcome_data!$A$6:$BJ$216,Z$1,0)","v":2611},{"$f":"VLOOKUP($A13,outcome_data!$A$6:$BJ$216,AA$1,0)","v":1847},{"$f":"VLOOKUP($A13,outcome_data!$A$6:$BJ$216,AB$1,0)","v":2611},{"$f":"VLOOKUP($A13,outcome_data!$A$6:$BJ$216,AC$1,0)","v":5009},{"$f":"VLOOKUP($A13,outcome_data!$A$6:$BJ$216,AD$1,0)","v":5886},{"$f":"VLOOKUP($A13,outcome_data!$A$6:$BJ$216,AE$1,0)","v":4195},{"$f":"VLOOKUP($A13,outcome_data!$A$6:$BJ$216,AF$1,0)","v":5886}]
["00N","NHS South Tyneside",{"$f":"VLOOKUP($A14,outcome_data!$A$6:$BJ$216,C$1,0)","v":122},{"$f":"VLOOKUP($A14,outcome_data!$A$6:$BJ$216,D$1,0)","v":140547},{"$f":"VLOOKUP($A14,outcome_data!$A$6:$BJ$216,E$1,0)","v":251},{"$f":"VLOOKUP($A14,outcome_data!$A$6:$BJ$216,F$1,0)","v":154490},{"$f":"VLOOKUP($A14,outcome_data!$A$6:$BJ$216,G$1,0)","v":1140},{"$f":"VLOOKUP($A14,outcome_data!$A$6:$BJ$216,H$1,0)","v":154490},{"$f":"VLOOKUP($A14,outcome_data!$A$6:$BJ$216,I$1,0)","v":149},{"$f":"VLOOKUP($A14,outcome_data!$A$6:$BJ$216,J$1,0)","v":154490},{"$f":"VLOOKUP($A14,outcome_data!$A$6:$BJ$216,K$1,0)","v":870},{"$f":"VLOOKUP($A14,outcome_data!$A$6:$BJ$216,L$1,0)","v":154490},{"$f":"VLOOKUP($A14,outcome_data!$A$6:$BJ$216,M$1,0)","v":309},{"$f":"VLOOKUP($A14,outcome_data!$A$6:$BJ$216,N$1,0)","v":154490},{"$f":"VLOOKUP($A14,outcome_data!$A$6:$BJ$216,O$1,0)","v":49},{"$f":"VLOOKUP($A14,outcome_data!$A$6:$BJ$216,P$1,0)","v":154490},{"$f":"VLOOKUP($A14,outcome_data!$A$6:$BJ$216,Q$1,0)","v":6615},{"$f":"VLOOKUP($A14,outcome_data!$A$6:$BJ$216,R$1,0)","v":7516},{"$f":"VLOOKUP($A14,outcome_data!$A$6:$BJ$216,S$1,0)","v":5305},{"$f":"VLOOKUP($A14,outcome_data!$A$6:$BJ$216,T$1,0)","v":7516},{"$f":"VLOOKUP($A14,outcome_data!$A$6:$BJ$216,U$1,0)","v":18908},{"$f":"VLOOKUP($A14,outcome_data!$A$6:$BJ$216,V$1,0)","v":24894},{"$f":"VLOOKUP($A14,outcome_data!$A$6:$BJ$216,W$1,0)","v":2040},{"$f":"VLOOKUP($A14,outcome_data!$A$6:$BJ$216,X$1,0)","v":2806},{"$f":"VLOOKUP($A14,outcome_data!$A$6:$BJ$216,Y$1,0)","v":1353},{"$f":"VLOOKUP($A14,outcome_data!$A$6:$BJ$216,Z$1,0)","v":1583},{"$f":"VLOOKUP($A14,outcome_data!$A$6:$BJ$216,AA$1,0)","v":1070},{"$f":"VLOOKUP($A14,outcome_data!$A$6:$BJ$216,AB$1,0)","v":1583},{"$f":"VLOOKUP($A14,outcome_data!$A$6:$BJ$216,AC$1,0)","v":2935},{"$f":"VLOOKUP($A14,outcome_data!$A$6:$BJ$216,AD$1,0)","v":3483},{"$f":"VLOOKUP($A14,outcome_data!$A$6:$BJ$216,AE$1,0)","v":2342},{"$f":"VLOOKUP($A14,outcome_data!$A$6:$BJ$216,AF$1,0)","v":3483}]
["00P","NHS Sunderland",{"$f":"VLOOKUP($A15,outcome_data!$A$6:$BJ$216,C$1,0)","v":204},{"$f":"VLOOKUP($A15,outcome_data!$A$6:$BJ$216,D$1,0)","v":259618},{"$f":"VLOOKUP($A15,outcome_data!$A$6:$BJ$216,E$1,0)","v":533},{"$f":"VLOOKUP($A15,outcome_data!$A$6:$BJ$216,F$1,0)","v":283910},{"$f":"VLOOKUP($A15,outcome_data!$A$6:$BJ$216,G$1,0)","v":1823},{"$f":"VLOOKUP($A15,outcome_data!$A$6:$BJ$216,H$1,0)","v":283910},{"$f":"VLOOKUP($A15,outcome_data!$A$6:$BJ$216,I$1,0)","v":432},{"$f":"VLOOKUP($A15,outcome_data!$A$6:$BJ$216,J$1,0)","v":283910},{"$f":"VLOOKUP($A15,outcome_data!$A$6:$BJ$216,K$1,0)","v":1457},{"$f":"VLOOKUP($A15,outcome_data!$A$6:$BJ$216,L$1,0)","v":283910},{"$f":"VLOOKUP($A15,outcome_data!$A$6:$BJ$216,M$1,0)","v":444},{"$f":"VLOOKUP($A15,outcome_data!$A$6:$BJ$216,N$1,0)","v":283910},{"$f":"VLOOKUP($A15,outcome_data!$A$6:$BJ$216,O$1,0)","v":148},{"$f":"VLOOKUP($A15,outcome_data!$A$6:$BJ$216,P$1,0)","v":283910},{"$f":"VLOOKUP($A15,outcome_data!$A$6:$BJ$216,Q$1,0)","v":12738},{"$f":"VLOOKUP($A15,outcome_data!$A$6:$BJ$216,R$1,0)","v":14286},{"$f":"VLOOKUP($A15,outcome_data!$A$6:$BJ$216,S$1,0)","v":10896},{"$f":"VLOOKUP($A15,outcome_data!$A$6:$BJ$216,T$1,0)","v":14286},{"$f":"VLOOKUP($A15,outcome_data!$A$6:$BJ$216,U$1,0)","v":36794},{"$f":"VLOOKUP($A15,outcome_data!$A$6:$BJ$216,V$1,0)","v":47161},{"$f":"VLOOKUP($A15,outcome_data!$A$6:$BJ$216,W$1,0)","v":6465},{"$f":"VLOOKUP($A15,outcome_data!$A$6:$BJ$216,X$1,0)","v":8922},{"$f":"VLOOKUP($A15,outcome_data!$A$6:$BJ$216,Y$1,0)","v":2749},{"$f":"VLOOKUP($A15,outcome_data!$A$6:$BJ$216,Z$1,0)","v":3218},{"$f":"VLOOKUP($A15,outcome_data!$A$6:$BJ$216,AA$1,0)","v":2265},{"$f":"VLOOKUP($A15,outcome_data!$A$6:$BJ$216,AB$1,0)","v":3218},{"$f":"VLOOKUP($A15,outcome_data!$A$6:$BJ$216,AC$1,0)","v":5401},{"$f":"VLOOKUP($A15,outcome_data!$A$6:$BJ$216,AD$1,0)","v":6209},{"$f":"VLOOKUP($A15,outcome_data!$A$6:$BJ$216,AE$1,0)","v":4475},{"$f":"VLOOKUP($A15,outcome_data!$A$6:$BJ$216,AF$1,0)","v":6209}]
["00Q","NHS Blackburn with Darwen",{"$f":"VLOOKUP($A16,outcome_data!$A$6:$BJ$216,C$1,0)","v":122},{"$f":"VLOOKUP($A16,outcome_data!$A$6:$BJ$216,D$1,0)","v":159098},{"$f":"VLOOKUP($A16,outcome_data!$A$6:$BJ$216,E$1,0)","v":238},{"$f":"VLOOKUP($A16,outcome_data!$A$6:$BJ$216,F$1,0)","v":169467},{"$f":"VLOOKUP($A16,outcome_data!$A$6:$BJ$216,G$1,0)","v":1126},{"$f":"VLOOKUP($A16,outcome_data!$A$6:$BJ$216,H$1,0)","v":169467},{"$f":"VLOOKUP($A16,outcome_data!$A$6:$BJ$216,I$1,0)","v":192},{"$f":"VLOOKUP($A16,outcome_data!$A$6:$BJ$216,J$1,0)","v":169467},{"$f":"VLOOKUP($A16,outcome_data!$A$6:$BJ$216,K$1,0)","v":678},{"$f":"VLOOKUP($A16,outcome_data!$A$6:$BJ$216,L$1,0)","v":169467},{"$f":"VLOOKUP($A16,outcome_data!$A$6:$BJ$216,M$1,0)","v":283},{"$f":"VLOOKUP($A16,outcome_data!$A$6:$BJ$216,N$1,0)","v":169467},{"$f":"VLOOKUP($A16,outcome_data!$A$6:$BJ$216,O$1,0)","v":83},{"$f":"VLOOKUP($A16,outcome_data!$A$6:$BJ$216,P$1,0)","v":169467},{"$f":"VLOOKUP($A16,outcome_data!$A$6:$BJ$216,Q$1,0)","v":5824},{"$f":"VLOOKUP($A16,outcome_data!$A$6:$BJ$216,R$1,0)","v":6605},{"$f":"VLOOKUP($A16,outcome_data!$A$6:$BJ$216,S$1,0)","v":4705},{"$f":"VLOOKUP($A16,outcome_data!$A$6:$BJ$216,T$1,0)","v":6605},{"$f":"VLOOKUP($A16,outcome_data!$A$6:$BJ$216,U$1,0)","v":15635},{"$f":"VLOOKUP($A16,outcome_data!$A$6:$BJ$216,V$1,0)","v":20696},{"$f":"VLOOKUP($A16,outcome_data!$A$6:$BJ$216,W$1,0)","v":3427},{"$f":"VLOOKUP($A16,outcome_data!$A$6:$BJ$216,X$1,0)","v":4662},{"$f":"VLOOKUP($A16,outcome_data!$A$6:$BJ$216,Y$1,0)","v":1298},{"$f":"VLOOKUP($A16,outcome_data!$A$6:$BJ$216,Z$1,0)","v":1541},{"$f":"VLOOKUP($A16,outcome_data!$A$6:$BJ$216,AA$1,0)","v":1048},{"$f":"VLOOKUP($A16,outcome_data!$A$6:$BJ$216,AB$1,0)","v":1541},{"$f":"VLOOKUP($A16,outcome_data!$A$6:$BJ$216,AC$1,0)","v":2412},{"$f":"VLOOKUP($A16,outcome_data!$A$6:$BJ$216,AD$1,0)","v":2814},{"$f":"VLOOKUP($A16,outcome_data!$A$6:$BJ$216,AE$1,0)","v":1844},{"$f":"VLOOKUP($A16,outcome_data!$A$6:$BJ$216,AF$1,0)","v":2814}]
["00R","NHS Blackpool",{"$f":"VLOOKUP($A17,outcome_data!$A$6:$BJ$216,C$1,0)","v":166},{"$f":"VLOOKUP($A17,outcome_data!$A$6:$BJ$216,D$1,0)","v":156790},{"$f":"VLOOKUP($A17,outcome_data!$A$6:$BJ$216,E$1,0)","v":279},{"$f":"VLOOKUP($A17,outcome_data!$A$6:$BJ$216,F$1,0)","v":172782},{"$f":"VLOOKUP($A17,outcome_data!$A$6:$BJ$216,G$1,0)","v":1138},{"$f":"VLOOKUP($A17,outcome_data!$A$6:$BJ$216,H$1,0)","v":172782},{"$f":"VLOOKUP($A17,outcome_data!$A$6:$BJ$216,I$1,0)","v":233},{"$f":"VLOOKUP($A17,outcome_data!$A$6:$BJ$216,J$1,0)","v":172782},{"$f":"VLOOKUP($A17,outcome_data!$A$6:$BJ$216,K$1,0)","v":680},{"$f":"VLOOKUP($A17,outcome_data!$A$6:$BJ$216,L$1,0)","v":172782},{"$f":"VLOOKUP($A17,outcome_data!$A$6:$BJ$216,M$1,0)","v":250},{"$f":"VLOOKUP($A17,outcome_data!$A$6:$BJ$216,N$1,0)","v":172782},{"$f":"VLOOKUP($A17,outcome_data!$A$6:$BJ$216,O$1,0)","v":139},{"$f":"VLOOKUP($A17,outcome_data!$A$6:$BJ$216,P$1,0)","v":172782},{"$f":"VLOOKUP($A17,outcome_data!$A$6:$BJ$216,Q$1,0)","v":7128},{"$f":"VLOOKUP($A17,outcome_data!$A$6:$BJ$216,R$1,0)","v":8179},{"$f":"VLOOKUP($A17,outcome_data!$A$6:$BJ$216,S$1,0)","v":5818},{"$f":"VLOOKUP($A17,outcome_data!$A$6:$BJ$216,T$1,0)","v":8179},{"$f":"VLOOKUP($A17,outcome_data!$A$6:$BJ$216,U$1,0)","v":22243},{"$f":"VLOOKUP($A17,outcome_data!$A$6:$BJ$216,V$1,0)","v":28684},{"$f":"VLOOKUP($A17,outcome_data!$A$6:$BJ$216,W$1,0)","v":8740},{"$f":"VLOOKUP($A17,outcome_data!$A$6:$BJ$216,X$1,0)","v":11860},{"$f":"VLOOKUP($A17,outcome_data!$A$6:$BJ$216,Y$1,0)","v":1724},{"$f":"VLOOKUP($A17,outcome_data!$A$6:$BJ$216,Z$1,0)","v":1958},{"$f":"VLOOKUP($A17,outcome_data!$A$6:$BJ$216,AA$1,0)","v":1331},{"$f":"VLOOKUP($A17,outcome_data!$A$6:$BJ$216,AB$1,0)","v":1958},{"$f":"VLOOKUP($A17,outcome_data!$A$6:$BJ$216,AC$1,0)","v":3179},{"$f":"VLOOKUP($A17,outcome_data!$A$6:$BJ$216,AD$1,0)","v":3772},{"$f":"VLOOKUP($A17,outcome_data!$A$6:$BJ$216,AE$1,0)","v":2545},{"$f":"VLOOKUP($A17,outcome_data!$A$6:$BJ$216,AF$1,0)","v":3772}]
["00T","NHS Bolton",{"$f":"VLOOKUP($A18,outcome_data!$A$6:$BJ$216,C$1,0)","v":210},{"$f":"VLOOKUP($A18,outcome_data!$A$6:$BJ$216,D$1,0)","v":277783},{"$f":"VLOOKUP($A18,outcome_data!$A$6:$BJ$216,E$1,0)","v":495},{"$f":"VLOOKUP($A18,outcome_data!$A$6:$BJ$216,F$1,0)","v":297639},{"$f":"VLOOKUP($A18,outcome_data!$A$6:$BJ$216,G$1,0)","v":1801},{"$f":"VLOOKUP($A18,outcome_data!$A$6:$BJ$216,H$1,0)","v":297639},{"$f":"VLOOKUP($A18,outcome_data!$A$6:$BJ$216,I$1,0)","v":385},{"$f":"VLOOKUP($A18,outcome_data!$A$6:$BJ$216,J$1,0)","v":297639},{"$f":"VLOOKUP($A18,outcome_data!$A$6:$BJ$216,K$1,0)","v":461},{"$f":"VLOOKUP($A18,outcome_data!$A$6:$BJ$216,L$1,0)","v":297639},{"$f":"VLOOKUP($A18,outcome_data!$A$6:$BJ$216,M$1,0)","v":345},{"$f":"VLOOKUP($A18,outcome_data!$A$6:$BJ$216,N$1,0)","v":297639},{"$f":"VLOOKUP($A18,outcome_data!$A$6:$BJ$216,O$1,0)","v":73},{"$f":"VLOOKUP($A18,outcome_data!$A$6:$BJ$216,P$1,0)","v":297639},{"$f":"VLOOKUP($A18,outcome_data!$A$6:$BJ$216,Q$1,0)","v":9323},{"$f":"VLOOKUP($A18,outcome_data!$A$6:$BJ$216,R$1,0)","v":10419},{"$f":"VLOOKUP($A18,outcome_data!$A$6:$BJ$216,S$1,0)","v":7692},{"$f":"VLOOKUP($A18,outcome_data!$A$6:$BJ$216,T$1,0)","v":10419},{"$f":"VLOOKUP($A18,outcome_data!$A$6:$BJ$216,U$1,0)","v":33084},{"$f":"VLOOKUP($A18,outcome_data!$A$6:$BJ$216,V$1,0)","v":41865},{"$f":"VLOOKUP($A18,outcome_data!$A$6:$BJ$216,W$1,0)","v":9752},{"$f":"VLOOKUP($A18,outcome_data!$A$6:$BJ$216,X$1,0)","v":13112},{"$f":"VLOOKUP($A18,outcome_data!$A$6:$BJ$216,Y$1,0)","v":1594},{"$f":"VLOOKUP($A18,outcome_data!$A$6:$BJ$216,Z$1,0)","v":1835},{"$f":"VLOOKUP($A18,outcome_data!$A$6:$BJ$216,AA$1,0)","v":1273},{"$f":"VLOOKUP($A18,outcome_data!$A$6:$BJ$216,AB$1,0)","v":1835},{"$f":"VLOOKUP($A18,outcome_data!$A$6:$BJ$216,AC$1,0)","v":4430},{"$f":"VLOOKUP($A18,outcome_data!$A$6:$BJ$216,AD$1,0)","v":5073},{"$f":"VLOOKUP($A18,outcome_data!$A$6:$BJ$216,AE$1,0)","v":3574},{"$f":"VLOOKUP($A18,outcome_data!$A$6:$BJ$216,AF$1,0)","v":5073}]
["00V","NHS Bury",{"$f":"VLOOKUP($A19,outcome_data!$A$6:$BJ$216,C$1,0)","v":130},{"$f":"VLOOKUP($A19,outcome_data!$A$6:$BJ$216,D$1,0)","v":182021},{"$f":"VLOOKUP($A19,outcome_data!$A$6:$BJ$216,E$1,0)","v":350},{"$f":"VLOOKUP($A19,outcome_data!$A$6:$BJ$216,F$1,0)","v":185528},{"$f":"VLOOKUP($A19,outcome_data!$A$6:$BJ$216,G$1,0)","v":1111},{"$f":"VLOOKUP($A19,outcome_data!$A$6:$BJ$216,H$1,0)","v":185528},{"$f":"VLOOKUP($A19,outcome_data!$A$6:$BJ$216,I$1,0)","v":224},{"$f":"VLOOKUP($A19,outcome_data!$A$6:$BJ$216,J$1,0)","v":185528},{"$f":"VLOOKUP($A19,outcome_data!$A$6:$BJ$216,K$1,0)","v":571},{"$f":"VLOOKUP($A19,outcome_data!$A$6:$BJ$216,L$1,0)","v":185528},{"$f":"VLOOKUP($A19,outcome_data!$A$6:$BJ$216,M$1,0)","v":223},{"$f":"VLOOKUP($A19,outcome_data!$A$6:$BJ$216,N$1,0)","v":185528},{"$f":"VLOOKUP($A19,outcome_data!$A$6:$BJ$216,O$1,0)","v":77},{"$f":"VLOOKUP($A19,outcome_data!$A$6:$BJ$216,P$1,0)","v":185528},{"$f":"VLOOKUP($A19,outcome_data!$A$6:$BJ$216,Q$1,0)","v":6107},{"$f":"VLOOKUP($A19,outcome_data!$A$6:$BJ$216,R$1,0)","v":6845},{"$f":"VLOOKUP($A19,outcome_data!$A$6:$BJ$216,S$1,0)","v":4959},{"$f":"VLOOKUP($A19,outcome_data!$A$6:$BJ$216,T$1,0)","v":6845},{"$f":"VLOOKUP($A19,outcome_data!$A$6:$BJ$216,U$1,0)","v":19784},{"$f":"VLOOKUP($A19,outcome_data!$A$6:$BJ$216,V$1,0)","v":25218},{"$f":"VLOOKUP($A19,outcome_data!$A$6:$BJ$216,W$1,0)","v":4818},{"$f":"VLOOKUP($A19,outcome_data!$A$6:$BJ$216,X$1,0)","v":6571},{"$f":"VLOOKUP($A19,outcome_data!$A$6:$BJ$216,Y$1,0)","v":1228},{"$f":"VLOOKUP($A19,outcome_data!$A$6:$BJ$216,Z$1,0)","v":1421},{"$f":"VLOOKUP($A19,outcome_data!$A$6:$BJ$216,AA$1,0)","v":986},{"$f":"VLOOKUP($A19,outcome_data!$A$6:$BJ$216,AB$1,0)","v":1421},{"$f":"VLOOKUP($A19,outcome_data!$A$6:$BJ$216,AC$1,0)","v":2978},{"$f":"VLOOKUP($A19,outcome_data!$A$6:$BJ$216,AD$1,0)","v":3440},{"$f":"VLOOKUP($A19,outcome_data!$A$6:$BJ$216,AE$1,0)","v":2360},{"$f":"VLOOKUP($A19,outcome_data!$A$6:$BJ$216,AF$1,0)","v":3440}]
["00W","NHS Central Manchester",{"$f":"VLOOKUP($A20,outcome_data!$A$6:$BJ$216,C$1,0)","v":96},{"$f":"VLOOKUP($A20,outcome_data!$A$6:$BJ$216,D$1,0)","v":207508},{"$f":"VLOOKUP($A20,outcome_data!$A$6:$BJ$216,E$1,0)","v":169},{"$f":"VLOOKUP($A20,outcome_data!$A$6:$BJ$216,F$1,0)","v":216052},{"$f":"VLOOKUP($A20,outcome_data!$A$6:$BJ$216,G$1,0)","v":805},{"$f":"VLOOKUP($A20,outcome_data!$A$6:$BJ$216,H$1,0)","v":216052},{"$f":"VLOOKUP($A20,outcome_data!$A$6:$BJ$216,I$1,0)","v":214},{"$f":"VLOOKUP($A20,outcome_data!$A$6:$BJ$216,J$1,0)","v":216052},{"$f":"VLOOKUP($A20,outcome_data!$A$6:$BJ$216,K$1,0)","v":418},{"$f":"VLOOKUP($A20,outcome_data!$A$6:$BJ$216,L$1,0)","v":216052},{"$f":"VLOOKUP($A20,outcome_data!$A$6:$BJ$216,M$1,0)","v":228},{"$f":"VLOOKUP($A20,outcome_data!$A$6:$BJ$216,N$1,0)","v":216052},{"$f":"VLOOKUP($A20,outcome_data!$A$6:$BJ$216,O$1,0)","v":46},{"$f":"VLOOKUP($A20,outcome_data!$A$6:$BJ$216,P$1,0)","v":216052},{"$f":"VLOOKUP($A20,outcome_data!$A$6:$BJ$216,Q$1,0)","v":3790},{"$f":"VLOOKUP($A20,outcome_data!$A$6:$BJ$216,R$1,0)","v":4477},{"$f":"VLOOKUP($A20,outcome_data!$A$6:$BJ$216,S$1,0)","v":3249},{"$f":"VLOOKUP($A20,outcome_data!$A$6:$BJ$216,T$1,0)","v":4477},{"$f":"VLOOKUP($A20,outcome_data!$A$6:$BJ$216,U$1,0)","v":14013},{"$f":"VLOOKUP($A20,outcome_data!$A$6:$BJ$216,V$1,0)","v":19018},{"$f":"VLOOKUP($A20,outcome_data!$A$6:$BJ$216,W$1,0)","v":2389},{"$f":"VLOOKUP($A20,outcome_data!$A$6:$BJ$216,X$1,0)","v":3538},{"$f":"VLOOKUP($A20,outcome_data!$A$6:$BJ$216,Y$1,0)","v":988},{"$f":"VLOOKUP($A20,outcome_data!$A$6:$BJ$216,Z$1,0)","v":1202},{"$f":"VLOOKUP($A20,outcome_data!$A$6:$BJ$216,AA$1,0)","v":819},{"$f":"VLOOKUP($A20,outcome_data!$A$6:$BJ$216,AB$1,0)","v":1202},{"$f":"VLOOKUP($A20,outcome_data!$A$6:$BJ$216,AC$1,0)","v":1640},{"$f":"VLOOKUP($A20,outcome_data!$A$6:$BJ$216,AD$1,0)","v":1991},{"$f":"VLOOKUP($A20,outcome_data!$A$6:$BJ$216,AE$1,0)","v":1376},{"$f":"VLOOKUP($A20,outcome_data!$A$6:$BJ$216,AF$1,0)","v":1991}]
["00X","NHS Chorley and South Ribble",{"$f":"VLOOKUP($A21,outcome_data!$A$6:$BJ$216,C$1,0)","v":109},{"$f":"VLOOKUP($A21,outcome_data!$A$6:$BJ$216,D$1,0)","v":161506},{"$f":"VLOOKUP($A21,outcome_data!$A$6:$BJ$216,E$1,0)","v":254},{"$f":"VLOOKUP($A21,outcome_data!$A$6:$BJ$216,F$1,0)","v":174608},{"$f":"VLOOKUP($A21,outcome_data!$A$6:$BJ$216,G$1,0)","v":1154},{"$f":"VLOOKUP($A21,outcome_data!$A$6:$BJ$216,H$1,0)","v":174608},{"$f":"VLOOKUP($A21,outcome_data!$A$6:$BJ$216,I$1,0)","v":221},{"$f":"VLOOKUP($A21,outcome_data!$A$6:$BJ$216,J$1,0)","v":174608},{"$f":"VLOOKUP($A21,outcome_data!$A$6:$BJ$216,K$1,0)","v":519},{"$f":"VLOOKUP($A21,outcome_data!$A$6:$BJ$216,L$1,0)","v":174608},{"$f":"VLOOKUP($A21,outcome_data!$A$6:$BJ$216,M$1,0)","v":158},{"$f":"VLOOKUP($A21,outcome_data!$A$6:$BJ$216,N$1,0)","v":174608},{"$f":"VLOOKUP($A21,outcome_data!$A$6:$BJ$216,O$1,0)","v":106},{"$f":"VLOOKUP($A21,outcome_data!$A$6:$BJ$216,P$1,0)","v":174608},{"$f":"VLOOKUP($A21,outcome_data!$A$6:$BJ$216,Q$1,0)","v":6317},{"$f":"VLOOKUP($A21,outcome_data!$A$6:$BJ$216,R$1,0)","v":7095},{"$f":"VLOOKUP($A21,outcome_data!$A$6:$BJ$216,S$1,0)","v":4950},{"$f":"VLOOKUP($A21,outcome_data!$A$6:$BJ$216,T$1,0)","v":7095},{"$f":"VLOOKUP($A21,outcome_data!$A$6:$BJ$216,U$1,0)","v":19219},{"$f":"VLOOKUP($A21,outcome_data!$A$6:$BJ$216,V$1,0)","v":24633},{"$f":"VLOOKUP($A21,outcome_data!$A$6:$BJ$216,W$1,0)","v":5183},{"$f":"VLOOKUP($A21,outcome_data!$A$6:$BJ$216,X$1,0)","v":7025},{"$f":"VLOOKUP($A21,outcome_data!$A$6:$BJ$216,Y$1,0)","v":1358},{"$f":"VLOOKUP($A21,outcome_data!$A$6:$BJ$216,Z$1,0)","v":1550},{"$f":"VLOOKUP($A21,outcome_data!$A$6:$BJ$216,AA$1,0)","v":1018},{"$f":"VLOOKUP($A21,outcome_data!$A$6:$BJ$216,AB$1,0)","v":1550},{"$f":"VLOOKUP($A21,outcome_data!$A$6:$BJ$216,AC$1,0)","v":2733},{"$f":"VLOOKUP($A21,outcome_data!$A$6:$BJ$216,AD$1,0)","v":3155},{"$f":"VLOOKUP($A21,outcome_data!$A$6:$BJ$216,AE$1,0)","v":2054},{"$f":"VLOOKUP($A21,outcome_data!$A$6:$BJ$216,AF$1,0)","v":3155}]
["00Y","NHS Oldham",{"$f":"VLOOKUP($A22,outcome_data!$A$6:$BJ$216,C$1,0)","v":175},{"$f":"VLOOKUP($A22,outcome_data!$A$6:$BJ$216,D$1,0)","v":226007},{"$f":"VLOOKUP($A22,outcome_data!$A$6:$BJ$216,E$1,0)","v":384},{"$f":"VLOOKUP($A22,outcome_data!$A$6:$BJ$216,F$1,0)","v":240928},{"$f":"VLOOKUP($A22,outcome_data!$A$6:$BJ$216,G$1,0)","v":1216},{"$f":"VLOOKUP($A22,outcome_data!$A$6:$BJ$216,H$1,0)","v":240928},{"$f":"VLOOKUP($A22,outcome_data!$A$6:$BJ$216,I$1,0)","v":229},{"$f":"VLOOKUP($A22,outcome_data!$A$6:$BJ$216,J$1,0)","v":240928},{"$f":"VLOOKUP($A22,outcome_data!$A$6:$BJ$216,K$1,0)","v":562},{"$f":"VLOOKUP($A22,outcome_data!$A$6:$BJ$216,L$1,0)","v":240928},{"$f":"VLOOKUP($A22,outcome_data!$A$6:$BJ$216,M$1,0)","v":237},{"$f":"VLOOKUP($A22,outcome_data!$A$6:$BJ$216,N$1,0)","v":240928},{"$f":"VLOOKUP($A22,outcome_data!$A$6:$BJ$216,O$1,0)","v":72},{"$f":"VLOOKUP($A22,outcome_data!$A$6:$BJ$216,P$1,0)","v":240928},{"$f":"VLOOKUP($A22,outcome_data!$A$6:$BJ$216,Q$1,0)","v":7151},{"$f":"VLOOKUP($A22,outcome_data!$A$6:$BJ$216,R$1,0)","v":8192},{"$f":"VLOOKUP($A22,outcome_data!$A$6:$BJ$216,S$1,0)","v":6055},{"$f":"VLOOKUP($A22,outcome_data!$A$6:$BJ$216,T$1,0)","v":8192},{"$f":"VLOOKUP($A22,outcome_data!$A$6:$BJ$216,U$1,0)","v":24794},{"$f":"VLOOKUP($A22,outcome_data!$A$6:$BJ$216,V$1,0)","v":32479},{"$f":"VLOOKUP($A22,outcome_data!$A$6:$BJ$216,W$1,0)","v":4597},{"$f":"VLOOKUP($A22,outcome_data!$A$6:$BJ$216,X$1,0)","v":6540},{"$f":"VLOOKUP($A22,outcome_data!$A$6:$BJ$216,Y$1,0)","v":1702},{"$f":"VLOOKUP($A22,outcome_data!$A$6:$BJ$216,Z$1,0)","v":2024},{"$f":"VLOOKUP($A22,outcome_data!$A$6:$BJ$216,AA$1,0)","v":1416},{"$f":"VLOOKUP($A22,outcome_data!$A$6:$BJ$216,AB$1,0)","v":2024},{"$f":"VLOOKUP($A22,outcome_data!$A$6:$BJ$216,AC$1,0)","v":3556},{"$f":"VLOOKUP($A22,outcome_data!$A$6:$BJ$216,AD$1,0)","v":4176},{"$f":"VLOOKUP($A22,outcome_data!$A$6:$BJ$216,AE$1,0)","v":2870},{"$f":"VLOOKUP($A22,outcome_data!$A$6:$BJ$216,AF$1,0)","v":4176}]
["01A","NHS East Lancashire",{"$f":"VLOOKUP($A23,outcome_data!$A$6:$BJ$216,C$1,0)","v":298},{"$f":"VLOOKUP($A23,outcome_data!$A$6:$BJ$216,D$1,0)","v":343506},{"$f":"VLOOKUP($A23,outcome_data!$A$6:$BJ$216,E$1,0)","v":598},{"$f":"VLOOKUP($A23,outcome_data!$A$6:$BJ$216,F$1,0)","v":367891},{"$f":"VLOOKUP($A23,outcome_data!$A$6:$BJ$216,G$1,0)","v":2370},{"$f":"VLOOKUP($A23,outcome_data!$A$6:$BJ$216,H$1,0)","v":367891},{"$f":"VLOOKUP($A23,outcome_data!$A$6:$BJ$216,I$1,0)","v":439},{"$f":"VLOOKUP($A23,outcome_data!$A$6:$BJ$216,J$1,0)","v":367891},{"$f":"VLOOKUP($A23,outcome_data!$A$6:$BJ$216,K$1,0)","v":1427},{"$f":"VLOOKUP($A23,outcome_data!$A$6:$BJ$216,L$1,0)","v":367891},{"$f":"VLOOKUP($A23,outcome_data!$A$6:$BJ$216,M$1,0)","v":583},{"$f":"VLOOKUP($A23,outcome_data!$A$6:$BJ$216,N$1,0)","v":367891},{"$f":"VLOOKUP($A23,outcome_data!$A$6:$BJ$216,O$1,0)","v":149},{"$f":"VLOOKUP($A23,outcome_data!$A$6:$BJ$216,P$1,0)","v":367891},{"$f":"VLOOKUP($A23,outcome_data!$A$6:$BJ$216,Q$1,0)","v":13671},{"$f":"VLOOKUP($A23,outcome_data!$A$6:$BJ$216,R$1,0)","v":15467},{"$f":"VLOOKUP($A23,outcome_data!$A$6:$BJ$216,S$1,0)","v":11158},{"$f":"VLOOKUP($A23,outcome_data!$A$6:$BJ$216,T$1,0)","v":15467},{"$f":"VLOOKUP($A23,outcome_data!$A$6:$BJ$216,U$1,0)","v":38178},{"$f":"VLOOKUP($A23,outcome_data!$A$6:$BJ$216,V$1,0)","v":50639},{"$f":"VLOOKUP($A23,outcome_data!$A$6:$BJ$216,W$1,0)","v":7593},{"$f":"VLOOKUP($A23,outcome_data!$A$6:$BJ$216,X$1,0)","v":10236},{"$f":"VLOOKUP($A23,outcome_data!$A$6:$BJ$216,Y$1,0)","v":3211},{"$f":"VLOOKUP($A23,outcome_data!$A$6:$BJ$216,Z$1,0)","v":3779},{"$f":"VLOOKUP($A23,outcome_data!$A$6:$BJ$216,AA$1,0)","v":2482},{"$f":"VLOOKUP($A23,outcome_data!$A$6:$BJ$216,AB$1,0)","v":3779},{"$f":"VLOOKUP($A23,outcome_data!$A$6:$BJ$216,AC$1,0)","v":6104},{"$f":"VLOOKUP($A23,outcome_data!$A$6:$BJ$216,AD$1,0)","v":7062},{"$f":"VLOOKUP($A23,outcome_data!$A$6:$BJ$216,AE$1,0)","v":4724},{"$f":"VLOOKUP($A23,outcome_data!$A$6:$BJ$216,AF$1,0)","v":7062}]
["01C","NHS Eastern Cheshire",{"$f":"VLOOKUP($A24,outcome_data!$A$6:$BJ$216,C$1,0)","v":107},{"$f":"VLOOKUP($A24,outcome_data!$A$6:$BJ$216,D$1,0)","v":183094},{"$f":"VLOOKUP($A24,outcome_data!$A$6:$BJ$216,E$1,0)","v":347},{"$f":"VLOOKUP($A24,outcome_data!$A$6:$BJ$216,F$1,0)","v":202955},{"$f":"VLOOKUP($A24,outcome_data!$A$6:$BJ$216,G$1,0)","v":1066},{"$f":"VLOOKUP($A24,outcome_data!$A$6:$BJ$216,H$1,0)","v":202955},{"$f":"VLOOKUP($A24,outcome_data!$A$6:$BJ$216,I$1,0)","v":233},{"$f":"VLOOKUP($A24,outcome_data!$A$6:$BJ$216,J$1,0)","v":202955},{"$f":"VLOOKUP($A24,outcome_data!$A$6:$BJ$216,K$1,0)","v":542},{"$f":"VLOOKUP($A24,outcome_data!$A$6:$BJ$216,L$1,0)","v":202955},{"$f":"VLOOKUP($A24,outcome_data!$A$6:$BJ$216,M$1,0)","v":213},{"$f":"VLOOKUP($A24,outcome_data!$A$6:$BJ$216,N$1,0)","v":202955},{"$f":"VLOOKUP($A24,outcome_data!$A$6:$BJ$216,O$1,0)","v":76},{"$f":"VLOOKUP($A24,outcome_data!$A$6:$BJ$216,P$1,0)","v":202955},{"$f":"VLOOKUP($A24,outcome_data!$A$6:$BJ$216,Q$1,0)","v":6470},{"$f":"VLOOKUP($A24,outcome_data!$A$6:$BJ$216,R$1,0)","v":7342},{"$f":"VLOOKUP($A24,outcome_data!$A$6:$BJ$216,S$1,0)","v":5020},{"$f":"VLOOKUP($A24,outcome_data!$A$6:$BJ$216,T$1,0)","v":7342},{"$f":"VLOOKUP($A24,outcome_data!$A$6:$BJ$216,U$1,0)","v":23037},{"$f":"VLOOKUP($A24,outcome_data!$A$6:$BJ$216,V$1,0)","v":29850},{"$f":"VLOOKUP($A24,outcome_data!$A$6:$BJ$216,W$1,0)","v":5135},{"$f":"VLOOKUP($A24,outcome_data!$A$6:$BJ$216,X$1,0)","v":7353},{"$f":"VLOOKUP($A24,outcome_data!$A$6:$BJ$216,Y$1,0)","v":1305},{"$f":"VLOOKUP($A24,outcome_data!$A$6:$BJ$216,Z$1,0)","v":1539},{"$f":"VLOOKUP($A24,outcome_data!$A$6:$BJ$216,AA$1,0)","v":1022},{"$f":"VLOOKUP($A24,outcome_data!$A$6:$BJ$216,AB$1,0)","v":1539},{"$f":"VLOOKUP($A24,outcome_data!$A$6:$BJ$216,AC$1,0)","v":3544},{"$f":"VLOOKUP($A24,outcome_data!$A$6:$BJ$216,AD$1,0)","v":4183},{"$f":"VLOOKUP($A24,outcome_data!$A$6:$BJ$216,AE$1,0)","v":2653},{"$f":"VLOOKUP($A24,outcome_data!$A$6:$BJ$216,AF$1,0)","v":4183}]
["01D","NHS Heywood, Middleton and Rochdale",{"$f":"VLOOKUP($A25,outcome_data!$A$6:$BJ$216,C$1,0)","v":178},{"$f":"VLOOKUP($A25,outcome_data!$A$6:$BJ$216,D$1,0)","v":208462},{"$f":"VLOOKUP($A25,outcome_data!$A$6:$BJ$216,E$1,0)","v":367},{"$f":"VLOOKUP($A25,outcome_data!$A$6:$BJ$216,F$1,0)","v":221027},{"$f":"VLOOKUP($A25,outcome_data!$A$6:$BJ$216,G$1,0)","v":1400},{"$f":"VLOOKUP($A25,outcome_data!$A$6:$BJ$216,H$1,0)","v":221027},{"$f":"VLOOKUP($A25,outcome_data!$A$6:$BJ$216,I$1,0)","v":242},{"$f":"VLOOKUP($A25,outcome_data!$A$6:$BJ$216,J$1,0)","v":221027},{"$f":"VLOOKUP($A25,outcome_data!$A$6:$BJ$216,K$1,0)","v":670},{"$f":"VLOOKUP($A25,outcome_data!$A$6:$BJ$216,L$1,0)","v":221027},{"$f":"VLOOKUP($A25,outcome_data!$A$6:$BJ$216,M$1,0)","v":290},{"$f":"VLOOKUP($A25,outcome_data!$A$6:$BJ$216,N$1,0)","v":221027},{"$f":"VLOOKUP($A25,outcome_data!$A$6:$BJ$216,O$1,0)","v":74},{"$f":"VLOOKUP($A25,outcome_data!$A$6:$BJ$216,P$1,0)","v":221027},{"$f":"VLOOKUP($A25,outcome_data!$A$6:$BJ$216,Q$1,0)","v":7855},{"$f":"VLOOKUP($A25,outcome_data!$A$6:$BJ$216,R$1,0)","v":8827},{"$f":"VLOOKUP($A25,outcome_data!$A$6:$BJ$216,S$1,0)","v":6494},{"$f":"VLOOKUP($A25,outcome_data!$A$6:$BJ$216,T$1,0)","v":8827},{"$f":"VLOOKUP($A25,outcome_data!$A$6:$BJ$216,U$1,0)","v":24020},{"$f":"VLOOKUP($A25,outcome_data!$A$6:$BJ$216,V$1,0)","v":30594},{"$f":"VLOOKUP($A25,outcome_data!$A$6:$BJ$216,W$1,0)","v":5492},{"$f":"VLOOKUP($A25,outcome_data!$A$6:$BJ$216,X$1,0)","v":7473},{"$f":"VLOOKUP($A25,outcome_data!$A$6:$BJ$216,Y$1,0)","v":1803},{"$f":"VLOOKUP($A25,outcome_data!$A$6:$BJ$216,Z$1,0)","v":2072},{"$f":"VLOOKUP($A25,outcome_data!$A$6:$BJ$216,AA$1,0)","v":1394},{"$f":"VLOOKUP($A25,outcome_data!$A$6:$BJ$216,AB$1,0)","v":2072},{"$f":"VLOOKUP($A25,outcome_data!$A$6:$BJ$216,AC$1,0)","v":3607},{"$f":"VLOOKUP($A25,outcome_data!$A$6:$BJ$216,AD$1,0)","v":4127},{"$f":"VLOOKUP($A25,outcome_data!$A$6:$BJ$216,AE$1,0)","v":2846},{"$f":"VLOOKUP($A25,outcome_data!$A$6:$BJ$216,AF$1,0)","v":4127}]
["01E","NHS Greater Preston",{"$f":"VLOOKUP($A26,outcome_data!$A$6:$BJ$216,C$1,0)","v":138},{"$f":"VLOOKUP($A26,outcome_data!$A$6:$BJ$216,D$1,0)","v":195492},{"$f":"VLOOKUP($A26,outcome_data!$A$6:$BJ$216,E$1,0)","v":276},{"$f":"VLOOKUP($A26,outcome_data!$A$6:$BJ$216,F$1,0)","v":210949},{"$f":"VLOOKUP($A26,outcome_data!$A$6:$BJ$216,G$1,0)","v":1291},{"$f":"VLOOKUP($A26,outcome_data!$A$6:$BJ$216,H$1,0)","v":210949},{"$f":"VLOOKUP($A26,outcome_data!$A$6:$BJ$216,I$1,0)","v":226},{"$f":"VLOOKUP($A26,outcome_data!$A$6:$BJ$216,J$1,0)","v":210949},{"$f":"VLOOKUP($A26,outcome_data!$A$6:$BJ$216,K$1,0)","v":613},{"$f":"VLOOKUP($A26,outcome_data!$A$6:$BJ$216,L$1,0)","v":210949},{"$f":"VLOOKUP($A26,outcome_data!$A$6:$BJ$216,M$1,0)","v":206},{"$f":"VLOOKUP($A26,outcome_data!$A$6:$BJ$216,N$1,0)","v":210949},{"$f":"VLOOKUP($A26,outcome_data!$A$6:$BJ$216,O$1,0)","v":109},{"$f":"VLOOKUP($A26,outcome_data!$A$6:$BJ$216,P$1,0)","v":210949},{"$f":"VLOOKUP($A26,outcome_data!$A$6:$BJ$216,Q$1,0)","v":6633},{"$f":"VLOOKUP($A26,outcome_data!$A$6:$BJ$216,R$1,0)","v":7579},{"$f":"VLOOKUP($A26,outcome_data!$A$6:$BJ$216,S$1,0)","v":5411},{"$f":"VLOOKUP($A26,outcome_data!$A$6:$BJ$216,T$1,0)","v":7579},{"$f":"VLOOKUP($A26,outcome_data!$A$6:$BJ$216,U$1,0)","v":20700},{"$f":"VLOOKUP($A26,outcome_data!$A$6:$BJ$216,V$1,0)","v":27341},{"$f":"VLOOKUP($A26,outcome_data!$A$6:$BJ$216,W$1,0)","v":5409},{"$f":"VLOOKUP($A26,outcome_data!$A$6:$BJ$216,X$1,0)","v":7390},{"$f":"VLOOKUP($A26,outcome_data!$A$6:$BJ$216,Y$1,0)","v":1403},{"$f":"VLOOKUP($A26,outcome_data!$A$6:$BJ$216,Z$1,0)","v":1685},{"$f":"VLOOKUP($A26,outcome_data!$A$6:$BJ$216,AA$1,0)","v":1133},{"$f":"VLOOKUP($A26,outcome_data!$A$6:$BJ$216,AB$1,0)","v":1685},{"$f":"VLOOKUP($A26,outcome_data!$A$6:$BJ$216,AC$1,0)","v":3260},{"$f":"VLOOKUP($A26,outcome_data!$A$6:$BJ$216,AD$1,0)","v":3825},{"$f":"VLOOKUP($A26,outcome_data!$A$6:$BJ$216,AE$1,0)","v":2566},{"$f":"VLOOKUP($A26,outcome_data!$A$6:$BJ$216,AF$1,0)","v":3825}]
["01F","NHS Halton",{"$f":"VLOOKUP($A27,outcome_data!$A$6:$BJ$216,C$1,0)","v":94},{"$f":"VLOOKUP($A27,outcome_data!$A$6:$BJ$216,D$1,0)","v":120429},{"$f":"VLOOKUP($A27,outcome_data!$A$6:$BJ$216,E$1,0)","v":185},{"$f":"VLOOKUP($A27,outcome_data!$A$6:$BJ$216,F$1,0)","v":128620},{"$f":"VLOOKUP($A27,outcome_data!$A$6:$BJ$216,G$1,0)","v":834},{"$f":"VLOOKUP($A27,outcome_data!$A$6:$BJ$216,H$1,0)","v":128620},{"$f":"VLOOKUP($A27,outcome_data!$A$6:$BJ$216,I$1,0)","v":92},{"$f":"VLOOKUP($A27,outcome_data!$A$6:$BJ$216,J$1,0)","v":128620},{"$f":"VLOOKUP($A27,outcome_data!$A$6:$BJ$216,K$1,0)","v":421},{"$f":"VLOOKUP($A27,outcome_data!$A$6:$BJ$216,L$1,0)","v":128620},{"$f":"VLOOKUP($A27,outcome_data!$A$6:$BJ$216,M$1,0)","v":162},{"$f":"VLOOKUP($A27,outcome_data!$A$6:$BJ$216,N$1,0)","v":128620},{"$f":"VLOOKUP($A27,outcome_data!$A$6:$BJ$216,O$1,0)","v":50},{"$f":"VLOOKUP($A27,outcome_data!$A$6:$BJ$216,P$1,0)","v":128620},{"$f":"VLOOKUP($A27,outcome_data!$A$6:$BJ$216,Q$1,0)","v":4995},{"$f":"VLOOKUP($A27,outcome_data!$A$6:$BJ$216,R$1,0)","v":5618},{"$f":"VLOOKUP($A27,outcome_data!$A$6:$BJ$216,S$1,0)","v":4166},{"$f":"VLOOKUP($A27,outcome_data!$A$6:$BJ$216,T$1,0)","v":5618},{"$f":"VLOOKUP($A27,outcome_data!$A$6:$BJ$216,U$1,0)","v":14485},{"$f":"VLOOKUP($A27,outcome_data!$A$6:$BJ$216,V$1,0)","v":19093},{"$f":"VLOOKUP($A27,outcome_data!$A$6:$BJ$216,W$1,0)","v":3301},{"$f":"VLOOKUP($A27,outcome_data!$A$6:$BJ$216,X$1,0)","v":4514},{"$f":"VLOOKUP($A27,outcome_data!$A$6:$BJ$216,Y$1,0)","v":1193},{"$f":"VLOOKUP($A27,outcome_data!$A$6:$BJ$216,Z$1,0)","v":1400},{"$f":"VLOOKUP($A27,outcome_data!$A$6:$BJ$216,AA$1,0)","v":1009},{"$f":"VLOOKUP($A27,outcome_data!$A$6:$BJ$216,AB$1,0)","v":1400},{"$f":"VLOOKUP($A27,outcome_data!$A$6:$BJ$216,AC$1,0)","v":2057},{"$f":"VLOOKUP($A27,outcome_data!$A$6:$BJ$216,AD$1,0)","v":2363},{"$f":"VLOOKUP($A27,outcome_data!$A$6:$BJ$216,AE$1,0)","v":1660},{"$f":"VLOOKUP($A27,outcome_data!$A$6:$BJ$216,AF$1,0)","v":2363}]
["01G","NHS Salford",{"$f":"VLOOKUP($A28,outcome_data!$A$6:$BJ$216,C$1,0)","v":201},{"$f":"VLOOKUP($A28,outcome_data!$A$6:$BJ$216,D$1,0)","v":235008},{"$f":"VLOOKUP($A28,outcome_data!$A$6:$BJ$216,E$1,0)","v":370},{"$f":"VLOOKUP($A28,outcome_data!$A$6:$BJ$216,F$1,0)","v":250161},{"$f":"VLOOKUP($A28,outcome_data!$A$6:$BJ$216,G$1,0)","v":1585},{"$f":"VLOOKUP($A28,outcome_data!$A$6:$BJ$216,H$1,0)","v":250161},{"$f":"VLOOKUP($A28,outcome_data!$A$6:$BJ$216,I$1,0)","v":339},{"$f":"VLOOKUP($A28,outcome_data!$A$6:$BJ$216,J$1,0)","v":250161},{"$f":"VLOOKUP($A28,outcome_data!$A$6:$BJ$216,K$1,0)","v":500},{"$f":"VLOOKUP($A28,outcome_data!$A$6:$BJ$216,L$1,0)","v":250161},{"$f":"VLOOKUP($A28,outcome_data!$A$6:$BJ$216,M$1,0)","v":295},{"$f":"VLOOKUP($A28,outcome_data!$A$6:$BJ$216,N$1,0)","v":250161},{"$f":"VLOOKUP($A28,outcome_data!$A$6:$BJ$216,O$1,0)","v":62},{"$f":"VLOOKUP($A28,outcome_data!$A$6:$BJ$216,P$1,0)","v":250161},{"$f":"VLOOKUP($A28,outcome_data!$A$6:$BJ$216,Q$1,0)","v":8651},{"$f":"VLOOKUP($A28,outcome_data!$A$6:$BJ$216,R$1,0)","v":9587},{"$f":"VLOOKUP($A28,outcome_data!$A$6:$BJ$216,S$1,0)","v":7026},{"$f":"VLOOKUP($A28,outcome_data!$A$6:$BJ$216,T$1,0)","v":9587},{"$f":"VLOOKUP($A28,outcome_data!$A$6:$BJ$216,U$1,0)","v":27616},{"$f":"VLOOKUP($A28,outcome_data!$A$6:$BJ$216,V$1,0)","v":34549},{"$f":"VLOOKUP($A28,outcome_data!$A$6:$BJ$216,W$1,0)","v":5780},{"$f":"VLOOKUP($A28,outcome_data!$A$6:$BJ$216,X$1,0)","v":7548},{"$f":"VLOOKUP($A28,outcome_data!$A$6:$BJ$216,Y$1,0)","v":1894},{"$f":"VLOOKUP($A28,outcome_data!$A$6:$BJ$216,Z$1,0)","v":2137},{"$f":"VLOOKUP($A28,outcome_data!$A$6:$BJ$216,AA$1,0)","v":1503},{"$f":"VLOOKUP($A28,outcome_data!$A$6:$BJ$216,AB$1,0)","v":2137},{"$f":"VLOOKUP($A28,outcome_data!$A$6:$BJ$216,AC$1,0)","v":4019},{"$f":"VLOOKUP($A28,outcome_data!$A$6:$BJ$216,AD$1,0)","v":4489},{"$f":"VLOOKUP($A28,outcome_data!$A$6:$BJ$216,AE$1,0)","v":3188},{"$f":"VLOOKUP($A28,outcome_data!$A$6:$BJ$216,AF$1,0)","v":4489}]
["01H","NHS Cumbria",{"$f":"VLOOKUP($A29,outcome_data!$A$6:$BJ$216,C$1,0)","v":384},{"$f":"VLOOKUP($A29,outcome_data!$A$6:$BJ$216,D$1,0)","v":472104},{"$f":"VLOOKUP($A29,outcome_data!$A$6:$BJ$216,E$1,0)","v":1069},{"$f":"VLOOKUP($A29,outcome_data!$A$6:$BJ$216,F$1,0)","v":524145},{"$f":"VLOOKUP($A29,outcome_data!$A$6:$BJ$216,G$1,0)","v":4802},{"$f":"VLOOKUP($A29,outcome_data!$A$6:$BJ$216,H$1,0)","v":524145},{"$f":"VLOOKUP($A29,outcome_data!$A$6:$BJ$216,I$1,0)","v":768},{"$f":"VLOOKUP($A29,outcome_data!$A$6:$BJ$216,J$1,0)","v":524145},{"$f":"VLOOKUP($A29,outcome_data!$A$6:$BJ$216,K$1,0)","v":2591},{"$f":"VLOOKUP($A29,outcome_data!$A$6:$BJ$216,L$1,0)","v":524145},{"$f":"VLOOKUP($A29,outcome_data!$A$6:$BJ$216,M$1,0)","v":868},{"$f":"VLOOKUP($A29,outcome_data!$A$6:$BJ$216,N$1,0)","v":524145},{"$f":"VLOOKUP($A29,outcome_data!$A$6:$BJ$216,O$1,0)","v":305},{"$f":"VLOOKUP($A29,outcome_data!$A$6:$BJ$216,P$1,0)","v":524145},{"$f":"VLOOKUP($A29,outcome_data!$A$6:$BJ$216,Q$1,0)","v":22058},{"$f":"VLOOKUP($A29,outcome_data!$A$6:$BJ$216,R$1,0)","v":24925},{"$f":"VLOOKUP($A29,outcome_data!$A$6:$BJ$216,S$1,0)","v":17405},{"$f":"VLOOKUP($A29,outcome_data!$A$6:$BJ$216,T$1,0)","v":24925},{"$f":"VLOOKUP($A29,outcome_data!$A$6:$BJ$216,U$1,0)","v":62354},{"$f":"VLOOKUP($A29,outcome_data!$A$6:$BJ$216,V$1,0)","v":80687},{"$f":"VLOOKUP($A29,outcome_data!$A$6:$BJ$216,W$1,0)","v":15286},{"$f":"VLOOKUP($A29,outcome_data!$A$6:$BJ$216,X$1,0)","v":21631},{"$f":"VLOOKUP($A29,outcome_data!$A$6:$BJ$216,Y$1,0)","v":5085},{"$f":"VLOOKUP($A29,outcome_data!$A$6:$BJ$216,Z$1,0)","v":5928},{"$f":"VLOOKUP($A29,outcome_data!$A$6:$BJ$216,AA$1,0)","v":3945},{"$f":"VLOOKUP($A29,outcome_data!$A$6:$BJ$216,AB$1,0)","v":5928},{"$f":"VLOOKUP($A29,outcome_data!$A$6:$BJ$216,AC$1,0)","v":10259},{"$f":"VLOOKUP($A29,outcome_data!$A$6:$BJ$216,AD$1,0)","v":12058},{"$f":"VLOOKUP($A29,outcome_data!$A$6:$BJ$216,AE$1,0)","v":7645},{"$f":"VLOOKUP($A29,outcome_data!$A$6:$BJ$216,AF$1,0)","v":12058}]
["01J","NHS Knowsley",{"$f":"VLOOKUP($A30,outcome_data!$A$6:$BJ$216,C$1,0)","v":119},{"$f":"VLOOKUP($A30,outcome_data!$A$6:$BJ$216,D$1,0)","v":149386},{"$f":"VLOOKUP($A30,outcome_data!$A$6:$BJ$216,E$1,0)","v":208},{"$f":"VLOOKUP($A30,outcome_data!$A$6:$BJ$216,F$1,0)","v":161070},{"$f":"VLOOKUP($A30,outcome_data!$A$6:$BJ$216,G$1,0)","v":1017},{"$f":"VLOOKUP($A30,outcome_data!$A$6:$BJ$216,H$1,0)","v":161070},{"$f":"VLOOKUP($A30,outcome_data!$A$6:$BJ$216,I$1,0)","v":178},{"$f":"VLOOKUP($A30,outcome_data!$A$6:$BJ$216,J$1,0)","v":161070},{"$f":"VLOOKUP($A30,outcome_data!$A$6:$BJ$216,K$1,0)","v":581},{"$f":"VLOOKUP($A30,outcome_data!$A$6:$BJ$216,L$1,0)","v":161070},{"$f":"VLOOKUP($A30,outcome_data!$A$6:$BJ$216,M$1,0)","v":192},{"$f":"VLOOKUP($A30,outcome_data!$A$6:$BJ$216,N$1,0)","v":161070},{"$f":"VLOOKUP($A30,outcome_data!$A$6:$BJ$216,O$1,0)","v":84},{"$f":"VLOOKUP($A30,outcome_data!$A$6:$BJ$216,P$1,0)","v":161070},{"$f":"VLOOKUP($A30,outcome_data!$A$6:$BJ$216,Q$1,0)","v":6646},{"$f":"VLOOKUP($A30,outcome_data!$A$6:$BJ$216,R$1,0)","v":7290},{"$f":"VLOOKUP($A30,outcome_data!$A$6:$BJ$216,S$1,0)","v":5345},{"$f":"VLOOKUP($A30,outcome_data!$A$6:$BJ$216,T$1,0)","v":7290},{"$f":"VLOOKUP($A30,outcome_data!$A$6:$BJ$216,U$1,0)","v":19229},{"$f":"VLOOKUP($A30,outcome_data!$A$6:$BJ$216,V$1,0)","v":23648},{"$f":"VLOOKUP($A30,outcome_data!$A$6:$BJ$216,W$1,0)","v":4339},{"$f":"VLOOKUP($A30,outcome_data!$A$6:$BJ$216,X$1,0)","v":5532},{"$f":"VLOOKUP($A30,outcome_data!$A$6:$BJ$216,Y$1,0)","v":1421},{"$f":"VLOOKUP($A30,outcome_data!$A$6:$BJ$216,Z$1,0)","v":1590},{"$f":"VLOOKUP($A30,outcome_data!$A$6:$BJ$216,AA$1,0)","v":1122},{"$f":"VLOOKUP($A30,outcome_data!$A$6:$BJ$216,AB$1,0)","v":1590},{"$f":"VLOOKUP($A30,outcome_data!$A$6:$BJ$216,AC$1,0)","v":2479},{"$f":"VLOOKUP($A30,outcome_data!$A$6:$BJ$216,AD$1,0)","v":2806},{"$f":"VLOOKUP($A30,outcome_data!$A$6:$BJ$216,AE$1,0)","v":2015},{"$f":"VLOOKUP($A30,outcome_data!$A$6:$BJ$216,AF$1,0)","v":2806}]
["01K","NHS Lancashire North",{"$f":"VLOOKUP($A31,outcome_data!$A$6:$BJ$216,C$1,0)","v":115},{"$f":"VLOOKUP($A31,outcome_data!$A$6:$BJ$216,D$1,0)","v":147300},{"$f":"VLOOKUP($A31,outcome_data!$A$6:$BJ$216,E$1,0)","v":249},{"$f":"VLOOKUP($A31,outcome_data!$A$6:$BJ$216,F$1,0)","v":161625},{"$f":"VLOOKUP($A31,outcome_data!$A$6:$BJ$216,G$1,0)","v":1107},{"$f":"VLOOKUP($A31,outcome_data!$A$6:$BJ$216,H$1,0)","v":161625},{"$f":"VLOOKUP($A31,outcome_data!$A$6:$BJ$216,I$1,0)","v":180},{"$f":"VLOOKUP($A31,outcome_data!$A$6:$BJ$216,J$1,0)","v":161625},{"$f":"VLOOKUP($A31,outcome_data!$A$6:$BJ$216,K$1,0)","v":490},{"$f":"VLOOKUP($A31,outcome_data!$A$6:$BJ$216,L$1,0)","v":161625},{"$f":"VLOOKUP($A31,outcome_data!$A$6:$BJ$216,M$1,0)","v":167},{"$f":"VLOOKUP($A31,outcome_data!$A$6:$BJ$216,N$1,0)","v":161625},{"$f":"VLOOKUP($A31,outcome_data!$A$6:$BJ$216,O$1,0)","v":91},{"$f":"VLOOKUP($A31,outcome_data!$A$6:$BJ$216,P$1,0)","v":161625},{"$f":"VLOOKUP($A31,outcome_data!$A$6:$BJ$216,Q$1,0)","v":5616},{"$f":"VLOOKUP($A31,outcome_data!$A$6:$BJ$216,R$1,0)","v":6491},{"$f":"VLOOKUP($A31,outcome_data!$A$6:$BJ$216,S$1,0)","v":4508},{"$f":"VLOOKUP($A31,outcome_data!$A$6:$BJ$216,T$1,0)","v":6491},{"$f":"VLOOKUP($A31,outcome_data!$A$6:$BJ$216,U$1,0)","v":15605},{"$f":"VLOOKUP($A31,outcome_data!$A$6:$BJ$216,V$1,0)","v":21253},{"$f":"VLOOKUP($A31,outcome_data!$A$6:$BJ$216,W$1,0)","v":5674},{"$f":"VLOOKUP($A31,outcome_data!$A$6:$BJ$216,X$1,0)","v":8148},{"$f":"VLOOKUP($A31,outcome_data!$A$6:$BJ$216,Y$1,0)","v":1388},{"$f":"VLOOKUP($A31,outcome_data!$A$6:$BJ$216,Z$1,0)","v":1667},{"$f":"VLOOKUP($A31,outcome_data!$A$6:$BJ$216,AA$1,0)","v":1110},{"$f":"VLOOKUP($A31,outcome_data!$A$6:$BJ$216,AB$1,0)","v":1667},{"$f":"VLOOKUP($A31,outcome_data!$A$6:$BJ$216,AC$1,0)","v":2531},{"$f":"VLOOKUP($A31,outcome_data!$A$6:$BJ$216,AD$1,0)","v":3087},{"$f":"VLOOKUP($A31,outcome_data!$A$6:$BJ$216,AE$1,0)","v":1915},{"$f":"VLOOKUP($A31,outcome_data!$A$6:$BJ$216,AF$1,0)","v":3087}]
["01M","NHS North Manchester",{"$f":"VLOOKUP($A32,outcome_data!$A$6:$BJ$216,C$1,0)","v":164},{"$f":"VLOOKUP($A32,outcome_data!$A$6:$BJ$216,D$1,0)","v":181878},{"$f":"VLOOKUP($A32,outcome_data!$A$6:$BJ$216,E$1,0)","v":259},{"$f":"VLOOKUP($A32,outcome_data!$A$6:$BJ$216,F$1,0)","v":190463},{"$f":"VLOOKUP($A32,outcome_data!$A$6:$BJ$216,G$1,0)","v":1080},{"$f":"VLOOKUP($A32,outcome_data!$A$6:$BJ$216,H$1,0)","v":190463},{"$f":"VLOOKUP($A32,outcome_data!$A$6:$BJ$216,I$1,0)","v":183},{"$f":"VLOOKUP($A32,outcome_data!$A$6:$BJ$216,J$1,0)","v":190463},{"$f":"VLOOKUP($A32,outcome_data!$A$6:$BJ$216,K$1,0)","v":536},{"$f":"VLOOKUP($A32,outcome_data!$A$6:$BJ$216,L$1,0)","v":190463},{"$f":"VLOOKUP($A32,outcome_data!$A$6:$BJ$216,M$1,0)","v":235},{"$f":"VLOOKUP($A32,outcome_data!$A$6:$BJ$216,N$1,0)","v":190463},{"$f":"VLOOKUP($A32,outcome_data!$A$6:$BJ$216,O$1,0)","v":65},{"$f":"VLOOKUP($A32,outcome_data!$A$6:$BJ$216,P$1,0)","v":190463},{"$f":"VLOOKUP($A32,outcome_data!$A$6:$BJ$216,Q$1,0)","v":5178},{"$f":"VLOOKUP($A32,outcome_data!$A$6:$BJ$216,R$1,0)","v":6015},{"$f":"VLOOKUP($A32,outcome_data!$A$6:$BJ$216,S$1,0)","v":4245},{"$f":"VLOOKUP($A32,outcome_data!$A$6:$BJ$216,T$1,0)","v":6015},{"$f":"VLOOKUP($A32,outcome_data!$A$6:$BJ$216,U$1,0)","v":16709},{"$f":"VLOOKUP($A32,outcome_data!$A$6:$BJ$216,V$1,0)","v":22427},{"$f":"VLOOKUP($A32,outcome_data!$A$6:$BJ$216,W$1,0)","v":3219},{"$f":"VLOOKUP($A32,outcome_data!$A$6:$BJ$216,X$1,0)","v":4674},{"$f":"VLOOKUP($A32,outcome_data!$A$6:$BJ$216,Y$1,0)","v":1450},{"$f":"VLOOKUP($A32,outcome_data!$A$6:$BJ$216,Z$1,0)","v":1728},{"$f":"VLOOKUP($A32,outcome_data!$A$6:$BJ$216,AA$1,0)","v":1170},{"$f":"VLOOKUP($A32,outcome_data!$A$6:$BJ$216,AB$1,0)","v":1728},{"$f":"VLOOKUP($A32,outcome_data!$A$6:$BJ$216,AC$1,0)","v":2514},{"$f":"VLOOKUP($A32,outcome_data!$A$6:$BJ$216,AD$1,0)","v":2962},{"$f":"VLOOKUP($A32,outcome_data!$A$6:$BJ$216,AE$1,0)","v":2049},{"$f":"VLOOKUP($A32,outcome_data!$A$6:$BJ$216,AF$1,0)","v":2962}]
["01N","NHS South Manchester",{"$f":"VLOOKUP($A33,outcome_data!$A$6:$BJ$216,C$1,0)","v":100},{"$f":"VLOOKUP($A33,outcome_data!$A$6:$BJ$216,D$1,0)","v":158331},{"$f":"VLOOKUP($A33,outcome_data!$A$6:$BJ$216,E$1,0)","v":214},{"$f":"VLOOKUP($A33,outcome_data!$A$6:$BJ$216,F$1,0)","v":167734},{"$f":"VLOOKUP($A33,outcome_data!$A$6:$BJ$216,G$1,0)","v":561},{"$f":"VLOOKUP($A33,outcome_data!$A$6:$BJ$216,H$1,0)","v":167734},{"$f":"VLOOKUP($A33,outcome_data!$A$6:$BJ$216,I$1,0)","v":116},{"$f":"VLOOKUP($A33,outcome_data!$A$6:$BJ$216,J$1,0)","v":167734},{"$f":"VLOOKUP($A33,outcome_data!$A$6:$BJ$216,K$1,0)","v":294},{"$f":"VLOOKUP($A33,outcome_data!$A$6:$BJ$216,L$1,0)","v":167734},{"$f":"VLOOKUP($A33,outcome_data!$A$6:$BJ$216,M$1,0)","v":142},{"$f":"VLOOKUP($A33,outcome_data!$A$6:$BJ$216,N$1,0)","v":167734},{"$f":"VLOOKUP($A33,outcome_data!$A$6:$BJ$216,O$1,0)","v":56},{"$f":"VLOOKUP($A33,outcome_data!$A$6:$BJ$216,P$1,0)","v":167734},{"$f":"VLOOKUP($A33,outcome_data!$A$6:$BJ$216,Q$1,0)","v":4410},{"$f":"VLOOKUP($A33,outcome_data!$A$6:$BJ$216,R$1,0)","v":5224},{"$f":"VLOOKUP($A33,outcome_data!$A$6:$BJ$216,S$1,0)","v":3610},{"$f":"VLOOKUP($A33,outcome_data!$A$6:$BJ$216,T$1,0)","v":5224},{"$f":"VLOOKUP($A33,outcome_data!$A$6:$BJ$216,U$1,0)","v":14364},{"$f":"VLOOKUP($A33,outcome_data!$A$6:$BJ$216,V$1,0)","v":19247},{"$f":"VLOOKUP($A33,outcome_data!$A$6:$BJ$216,W$1,0)","v":2637},{"$f":"VLOOKUP($A33,outcome_data!$A$6:$BJ$216,X$1,0)","v":3827},{"$f":"VLOOKUP($A33,outcome_data!$A$6:$BJ$216,Y$1,0)","v":1329},{"$f":"VLOOKUP($A33,outcome_data!$A$6:$BJ$216,Z$1,0)","v":1609},{"$f":"VLOOKUP($A33,outcome_data!$A$6:$BJ$216,AA$1,0)","v":1086},{"$f":"VLOOKUP($A33,outcome_data!$A$6:$BJ$216,AB$1,0)","v":1609},{"$f":"VLOOKUP($A33,outcome_data!$A$6:$BJ$216,AC$1,0)","v":2091},{"$f":"VLOOKUP($A33,outcome_data!$A$6:$BJ$216,AD$1,0)","v":2533},{"$f":"VLOOKUP($A33,outcome_data!$A$6:$BJ$216,AE$1,0)","v":1580},{"$f":"VLOOKUP($A33,outcome_data!$A$6:$BJ$216,AF$1,0)","v":2533}]
["01R","NHS South Cheshire",{"$f":"VLOOKUP($A34,outcome_data!$A$6:$BJ$216,C$1,0)","v":142},{"$f":"VLOOKUP($A34,outcome_data!$A$6:$BJ$216,D$1,0)","v":161357},{"$f":"VLOOKUP($A34,outcome_data!$A$6:$BJ$216,E$1,0)","v":236},{"$f":"VLOOKUP($A34,outcome_data!$A$6:$BJ$216,F$1,0)","v":175535},{"$f":"VLOOKUP($A34,outcome_data!$A$6:$BJ$216,G$1,0)","v":731},{"$f":"VLOOKUP($A34,outcome_data!$A$6:$BJ$216,H$1,0)","v":175535},{"$f":"VLOOKUP($A34,outcome_data!$A$6:$BJ$216,I$1,0)","v":204},{"$f":"VLOOKUP($A34,outcome_data!$A$6:$BJ$216,J$1,0)","v":175535},{"$f":"VLOOKUP($A34,outcome_data!$A$6:$BJ$216,K$1,0)","v":388},{"$f":"VLOOKUP($A34,outcome_data!$A$6:$BJ$216,L$1,0)","v":175535},{"$f":"VLOOKUP($A34,outcome_data!$A$6:$BJ$216,M$1,0)","v":190},{"$f":"VLOOKUP($A34,outcome_data!$A$6:$BJ$216,N$1,0)","v":175535},{"$f":"VLOOKUP($A34,outcome_data!$A$6:$BJ$216,O$1,0)","v":56},{"$f":"VLOOKUP($A34,outcome_data!$A$6:$BJ$216,P$1,0)","v":175535},{"$f":"VLOOKUP($A34,outcome_data!$A$6:$BJ$216,Q$1,0)","v":5941},{"$f":"VLOOKUP($A34,outcome_data!$A$6:$BJ$216,R$1,0)","v":6725},{"$f":"VLOOKUP($A34,outcome_data!$A$6:$BJ$216,S$1,0)","v":4642},{"$f":"VLOOKUP($A34,outcome_data!$A$6:$BJ$216,T$1,0)","v":6725},{"$f":"VLOOKUP($A34,outcome_data!$A$6:$BJ$216,U$1,0)","v":20397},{"$f":"VLOOKUP($A34,outcome_data!$A$6:$BJ$216,V$1,0)","v":27108},{"$f":"VLOOKUP($A34,outcome_data!$A$6:$BJ$216,W$1,0)","v":5349},{"$f":"VLOOKUP($A34,outcome_data!$A$6:$BJ$216,X$1,0)","v":7333},{"$f":"VLOOKUP($A34,outcome_data!$A$6:$BJ$216,Y$1,0)","v":1208},{"$f":"VLOOKUP($A34,outcome_data!$A$6:$BJ$216,Z$1,0)","v":1422},{"$f":"VLOOKUP($A34,outcome_data!$A$6:$BJ$216,AA$1,0)","v":863},{"$f":"VLOOKUP($A34,outcome_data!$A$6:$BJ$216,AB$1,0)","v":1422},{"$f":"VLOOKUP($A34,outcome_data!$A$6:$BJ$216,AC$1,0)","v":3109},{"$f":"VLOOKUP($A34,outcome_data!$A$6:$BJ$216,AD$1,0)","v":3636},{"$f":"VLOOKUP($A34,outcome_data!$A$6:$BJ$216,AE$1,0)","v":2340},{"$f":"VLOOKUP($A34,outcome_data!$A$6:$BJ$216,AF$1,0)","v":3636}]
["01T","NHS South Sefton",{"$f":"VLOOKUP($A35,outcome_data!$A$6:$BJ$216,C$1,0)","v":109},{"$f":"VLOOKUP($A35,outcome_data!$A$6:$BJ$216,D$1,0)","v":141959},{"$f":"VLOOKUP($A35,outcome_data!$A$6:$BJ$216,E$1,0)","v":203},{"$f":"VLOOKUP($A35,outcome_data!$A$6:$BJ$216,F$1,0)","v":155077},{"$f":"VLOOKUP($A35,outcome_data!$A$6:$BJ$216,G$1,0)","v":824},{"$f":"VLOOKUP($A35,outcome_data!$A$6:$BJ$216,H$1,0)","v":155077},{"$f":"VLOOKUP($A35,outcome_data!$A$6:$BJ$216,I$1,0)","v":164},{"$f":"VLOOKUP($A35,outcome_data!$A$6:$BJ$216,J$1,0)","v":155077},{"$f":"VLOOKUP($A35,outcome_data!$A$6:$BJ$216,K$1,0)","v":560},{"$f":"VLOOKUP($A35,outcome_data!$A$6:$BJ$216,L$1,0)","v":155077},{"$f":"VLOOKUP($A35,outcome_data!$A$6:$BJ$216,M$1,0)","v":191},{"$f":"VLOOKUP($A35,outcome_data!$A$6:$BJ$216,N$1,0)","v":155077},{"$f":"VLOOKUP($A35,outcome_data!$A$6:$BJ$216,O$1,0)","v":71},{"$f":"VLOOKUP($A35,outcome_data!$A$6:$BJ$216,P$1,0)","v":155077},{"$f":"VLOOKUP($A35,outcome_data!$A$6:$BJ$216,Q$1,0)","v":5956},{"$f":"VLOOKUP($A35,outcome_data!$A$6:$BJ$216,R$1,0)","v":6808},{"$f":"VLOOKUP($A35,outcome_data!$A$6:$BJ$216,S$1,0)","v":5002},{"$f":"VLOOKUP($A35,outcome_data!$A$6:$BJ$216,T$1,0)","v":6808},{"$f":"VLOOKUP($A35,outcome_data!$A$6:$BJ$216,U$1,0)","v":19016},{"$f":"VLOOKUP($A35,outcome_data!$A$6:$BJ$216,V$1,0)","v":25153},{"$f":"VLOOKUP($A35,outcome_data!$A$6:$BJ$216,W$1,0)","v":4880},{"$f":"VLOOKUP($A35,outcome_data!$A$6:$BJ$216,X$1,0)","v":6718},{"$f":"VLOOKUP($A35,outcome_data!$A$6:$BJ$216,Y$1,0)","v":1270},{"$f":"VLOOKUP($A35,outcome_data!$A$6:$BJ$216,Z$1,0)","v":1529},{"$f":"VLOOKUP($A35,outcome_data!$A$6:$BJ$216,AA$1,0)","v":1049},{"$f":"VLOOKUP($A35,outcome_data!$A$6:$BJ$216,AB$1,0)","v":1529},{"$f":"VLOOKUP($A35,outcome_data!$A$6:$BJ$216,AC$1,0)","v":2576},{"$f":"VLOOKUP($A35,outcome_data!$A$6:$BJ$216,AD$1,0)","v":3052},{"$f":"VLOOKUP($A35,outcome_data!$A$6:$BJ$216,AE$1,0)","v":2109},{"$f":"VLOOKUP($A35,outcome_data!$A$6:$BJ$216,AF$1,0)","v":3052}]
["01V","NHS Southport and Formby",{"$f":"VLOOKUP($A36,outcome_data!$A$6:$BJ$216,C$1,0)","v":79},{"$f":"VLOOKUP($A36,outcome_data!$A$6:$BJ$216,D$1,0)","v":107574},{"$f":"VLOOKUP($A36,outcome_data!$A$6:$BJ$216,E$1,0)","v":201},{"$f":"VLOOKUP($A36,outcome_data!$A$6:$BJ$216,F$1,0)","v":122205},{"$f":"VLOOKUP($A36,outcome_data!$A$6:$BJ$216,G$1,0)","v":720},{"$f":"VLOOKUP($A36,outcome_data!$A$6:$BJ$216,H$1,0)","v":122205},{"$f":"VLOOKUP($A36,outcome_data!$A$6:$BJ$216,I$1,0)","v":173},{"$f":"VLOOKUP($A36,outcome_data!$A$6:$BJ$216,J$1,0)","v":122205},{"$f":"VLOOKUP($A36,outcome_data!$A$6:$BJ$216,K$1,0)","v":310},{"$f":"VLOOKUP($A36,outcome_data!$A$6:$BJ$216,L$1,0)","v":122205},{"$f":"VLOOKUP($A36,outcome_data!$A$6:$BJ$216,M$1,0)","v":149},{"$f":"VLOOKUP($A36,outcome_data!$A$6:$BJ$216,N$1,0)","v":122205},{"$f":"VLOOKUP($A36,outcome_data!$A$6:$BJ$216,O$1,0)","v":59},{"$f":"VLOOKUP($A36,outcome_data!$A$6:$BJ$216,P$1,0)","v":122205},{"$f":"VLOOKUP($A36,outcome_data!$A$6:$BJ$216,Q$1,0)","v":4854},{"$f":"VLOOKUP($A36,outcome_data!$A$6:$BJ$216,R$1,0)","v":5379},{"$f":"VLOOKUP($A36,outcome_data!$A$6:$BJ$216,S$1,0)","v":3939},{"$f":"VLOOKUP($A36,outcome_data!$A$6:$BJ$216,T$1,0)","v":5379},{"$f":"VLOOKUP($A36,outcome_data!$A$6:$BJ$216,U$1,0)","v":15720},{"$f":"VLOOKUP($A36,outcome_data!$A$6:$BJ$216,V$1,0)","v":19977},{"$f":"VLOOKUP($A36,outcome_data!$A$6:$BJ$216,W$1,0)","v":3725},{"$f":"VLOOKUP($A36,outcome_data!$A$6:$BJ$216,X$1,0)","v":4997},{"$f":"VLOOKUP($A36,outcome_data!$A$6:$BJ$216,Y$1,0)","v":867},{"$f":"VLOOKUP($A36,outcome_data!$A$6:$BJ$216,Z$1,0)","v":1007},{"$f":"VLOOKUP($A36,outcome_data!$A$6:$BJ$216,AA$1,0)","v":684},{"$f":"VLOOKUP($A36,outcome_data!$A$6:$BJ$216,AB$1,0)","v":1007},{"$f":"VLOOKUP($A36,outcome_data!$A$6:$BJ$216,AC$1,0)","v":2516},{"$f":"VLOOKUP($A36,outcome_data!$A$6:$BJ$216,AD$1,0)","v":2844},{"$f":"VLOOKUP($A36,outcome_data!$A$6:$BJ$216,AE$1,0)","v":1930},{"$f":"VLOOKUP($A36,outcome_data!$A$6:$BJ$216,AF$1,0)","v":2844}]
["01W","NHS Stockport",{"$f":"VLOOKUP($A37,outcome_data!$A$6:$BJ$216,C$1,0)","v":184},{"$f":"VLOOKUP($A37,outcome_data!$A$6:$BJ$216,D$1,0)","v":274507},{"$f":"VLOOKUP($A37,outcome_data!$A$6:$BJ$216,E$1,0)","v":469},{"$f":"VLOOKUP($A37,outcome_data!$A$6:$BJ$216,F$1,0)","v":299943},{"$f":"VLOOKUP($A37,outcome_data!$A$6:$BJ$216,G$1,0)","v":1926},{"$f":"VLOOKUP($A37,outcome_data!$A$6:$BJ$216,H$1,0)","v":299943},{"$f":"VLOOKUP($A37,outcome_data!$A$6:$BJ$216,I$1,0)","v":340},{"$f":"VLOOKUP($A37,outcome_data!$A$6:$BJ$216,J$1,0)","v":299943},{"$f":"VLOOKUP($A37,outcome_data!$A$6:$BJ$216,K$1,0)","v":733},{"$f":"VLOOKUP($A37,outcome_data!$A$6:$BJ$216,L$1,0)","v":299943},{"$f":"VLOOKUP($A37,outcome_data!$A$6:$BJ$216,M$1,0)","v":347},{"$f":"VLOOKUP($A37,outcome_data!$A$6:$BJ$216,N$1,0)","v":299943},{"$f":"VLOOKUP($A37,outcome_data!$A$6:$BJ$216,O$1,0)","v":116},{"$f":"VLOOKUP($A37,outcome_data!$A$6:$BJ$216,P$1,0)","v":299943},{"$f":"VLOOKUP($A37,outcome_data!$A$6:$BJ$216,Q$1,0)","v":10677},{"$f":"VLOOKUP($A37,outcome_data!$A$6:$BJ$216,R$1,0)","v":11895},{"$f":"VLOOKUP($A37,outcome_data!$A$6:$BJ$216,S$1,0)","v":9052},{"$f":"VLOOKUP($A37,outcome_data!$A$6:$BJ$216,T$1,0)","v":11895},{"$f":"VLOOKUP($A37,outcome_data!$A$6:$BJ$216,U$1,0)","v":33928},{"$f":"VLOOKUP($A37,outcome_data!$A$6:$BJ$216,V$1,0)","v":42457},{"$f":"VLOOKUP($A37,outcome_data!$A$6:$BJ$216,W$1,0)","v":6206},{"$f":"VLOOKUP($A37,outcome_data!$A$6:$BJ$216,X$1,0)","v":8212},{"$f":"VLOOKUP($A37,outcome_data!$A$6:$BJ$216,Y$1,0)","v":1941},{"$f":"VLOOKUP($A37,outcome_data!$A$6:$BJ$216,Z$1,0)","v":2183},{"$f":"VLOOKUP($A37,outcome_data!$A$6:$BJ$216,AA$1,0)","v":1611},{"$f":"VLOOKUP($A37,outcome_data!$A$6:$BJ$216,AB$1,0)","v":2183},{"$f":"VLOOKUP($A37,outcome_data!$A$6:$BJ$216,AC$1,0)","v":5215},{"$f":"VLOOKUP($A37,outcome_data!$A$6:$BJ$216,AD$1,0)","v":5881},{"$f":"VLOOKUP($A37,outcome_data!$A$6:$BJ$216,AE$1,0)","v":4408},{"$f":"VLOOKUP($A37,outcome_data!$A$6:$BJ$216,AF$1,0)","v":5881}]
["01X","NHS St Helens",{"$f":"VLOOKUP($A38,outcome_data!$A$6:$BJ$216,C$1,0)","v":164},{"$f":"VLOOKUP($A38,outcome_data!$A$6:$BJ$216,D$1,0)","v":177698},{"$f":"VLOOKUP($A38,outcome_data!$A$6:$BJ$216,E$1,0)","v":284},{"$f":"VLOOKUP($A38,outcome_data!$A$6:$BJ$216,F$1,0)","v":193391},{"$f":"VLOOKUP($A38,outcome_data!$A$6:$BJ$216,G$1,0)","v":1191},{"$f":"VLOOKUP($A38,outcome_data!$A$6:$BJ$216,H$1,0)","v":193391},{"$f":"VLOOKUP($A38,outcome_data!$A$6:$BJ$216,I$1,0)","v":191},{"$f":"VLOOKUP($A38,outcome_data!$A$6:$BJ$216,J$1,0)","v":193391},{"$f":"VLOOKUP($A38,outcome_data!$A$6:$BJ$216,K$1,0)","v":610},{"$f":"VLOOKUP($A38,outcome_data!$A$6:$BJ$216,L$1,0)","v":193391},{"$f":"VLOOKUP($A38,outcome_data!$A$6:$BJ$216,M$1,0)","v":244},{"$f":"VLOOKUP($A38,outcome_data!$A$6:$BJ$216,N$1,0)","v":193391},{"$f":"VLOOKUP($A38,outcome_data!$A$6:$BJ$216,O$1,0)","v":88},{"$f":"VLOOKUP($A38,outcome_data!$A$6:$BJ$216,P$1,0)","v":193391},{"$f":"VLOOKUP($A38,outcome_data!$A$6:$BJ$216,Q$1,0)","v":8214},{"$f":"VLOOKUP($A38,outcome_data!$A$6:$BJ$216,R$1,0)","v":9110},{"$f":"VLOOKUP($A38,outcome_data!$A$6:$BJ$216,S$1,0)","v":7041},{"$f":"VLOOKUP($A38,outcome_data!$A$6:$BJ$216,T$1,0)","v":9110},{"$f":"VLOOKUP($A38,outcome_data!$A$6:$BJ$216,U$1,0)","v":26799},{"$f":"VLOOKUP($A38,outcome_data!$A$6:$BJ$216,V$1,0)","v":32847},{"$f":"VLOOKUP($A38,outcome_data!$A$6:$BJ$216,W$1,0)","v":5721},{"$f":"VLOOKUP($A38,outcome_data!$A$6:$BJ$216,X$1,0)","v":7314},{"$f":"VLOOKUP($A38,outcome_data!$A$6:$BJ$216,Y$1,0)","v":1494},{"$f":"VLOOKUP($A38,outcome_data!$A$6:$BJ$216,Z$1,0)","v":1685},{"$f":"VLOOKUP($A38,outcome_data!$A$6:$BJ$216,AA$1,0)","v":1282},{"$f":"VLOOKUP($A38,outcome_data!$A$6:$BJ$216,AB$1,0)","v":1685},{"$f":"VLOOKUP($A38,outcome_data!$A$6:$BJ$216,AC$1,0)","v":3396},{"$f":"VLOOKUP($A38,outcome_data!$A$6:$BJ$216,AD$1,0)","v":3817},{"$f":"VLOOKUP($A38,outcome_data!$A$6:$BJ$216,AE$1,0)","v":2836},{"$f":"VLOOKUP($A38,outcome_data!$A$6:$BJ$216,AF$1,0)","v":3817}]
["01Y","NHS Tameside and Glossop",{"$f":"VLOOKUP($A39,outcome_data!$A$6:$BJ$216,C$1,0)","v":242},{"$f":"VLOOKUP($A39,outcome_data!$A$6:$BJ$216,D$1,0)","v":224851},{"$f":"VLOOKUP($A39,outcome_data!$A$6:$BJ$216,E$1,0)","v":359},{"$f":"VLOOKUP($A39,outcome_data!$A$6:$BJ$216,F$1,0)","v":241332},{"$f":"VLOOKUP($A39,outcome_data!$A$6:$BJ$216,G$1,0)","v":2047},{"$f":"VLOOKUP($A39,outcome_data!$A$6:$BJ$216,H$1,0)","v":241332},{"$f":"VLOOKUP($A39,outcome_data!$A$6:$BJ$216,I$1,0)","v":324},{"$f":"VLOOKUP($A39,outcome_data!$A$6:$BJ$216,J$1,0)","v":241332},{"$f":"VLOOKUP($A39,outcome_data!$A$6:$BJ$216,K$1,0)","v":818},{"$f":"VLOOKUP($A39,outcome_data!$A$6:$BJ$216,L$1,0)","v":241332},{"$f":"VLOOKUP($A39,outcome_data!$A$6:$BJ$216,M$1,0)","v":269},{"$f":"VLOOKUP($A39,outcome_data!$A$6:$BJ$216,N$1,0)","v":241332},{"$f":"VLOOKUP($A39,outcome_data!$A$6:$BJ$216,O$1,0)","v":103},{"$f":"VLOOKUP($A39,outcome_data!$A$6:$BJ$216,P$1,0)","v":241332},{"$f":"VLOOKUP($A39,outcome_data!$A$6:$BJ$216,Q$1,0)","v":8944},{"$f":"VLOOKUP($A39,outcome_data!$A$6:$BJ$216,R$1,0)","v":10038},{"$f":"VLOOKUP($A39,outcome_data!$A$6:$BJ$216,S$1,0)","v":7567},{"$f":"VLOOKUP($A39,outcome_data!$A$6:$BJ$216,T$1,0)","v":10038},{"$f":"VLOOKUP($A39,outcome_data!$A$6:$BJ$216,U$1,0)","v":27782},{"$f":"VLOOKUP($A39,outcome_data!$A$6:$BJ$216,V$1,0)","v":35369},{"$f":"VLOOKUP($A39,outcome_data!$A$6:$BJ$216,W$1,0)","v":4568},{"$f":"VLOOKUP($A39,outcome_data!$A$6:$BJ$216,X$1,0)","v":6034},{"$f":"VLOOKUP($A39,outcome_data!$A$6:$BJ$216,Y$1,0)","v":2064},{"$f":"VLOOKUP($A39,outcome_data!$A$6:$BJ$216,Z$1,0)","v":2339},{"$f":"VLOOKUP($A39,outcome_data!$A$6:$BJ$216,AA$1,0)","v":1696},{"$f":"VLOOKUP($A39,outcome_data!$A$6:$BJ$216,AB$1,0)","v":2339},{"$f":"VLOOKUP($A39,outcome_data!$A$6:$BJ$216,AC$1,0)","v":4054},{"$f":"VLOOKUP($A39,outcome_data!$A$6:$BJ$216,AD$1,0)","v":4609},{"$f":"VLOOKUP($A39,outcome_data!$A$6:$BJ$216,AE$1,0)","v":3347},{"$f":"VLOOKUP($A39,outcome_data!$A$6:$BJ$216,AF$1,0)","v":4609}]
["02A","NHS Trafford",{"$f":"VLOOKUP($A40,outcome_data!$A$6:$BJ$216,C$1,0)","v":149},{"$f":"VLOOKUP($A40,outcome_data!$A$6:$BJ$216,D$1,0)","v":217504},{"$f":"VLOOKUP($A40,outcome_data!$A$6:$BJ$216,E$1,0)","v":378},{"$f":"VLOOKUP($A40,outcome_data!$A$6:$BJ$216,F$1,0)","v":227948},{"$f":"VLOOKUP($A40,outcome_data!$A$6:$BJ$216,G$1,0)","v":1072},{"$f":"VLOOKUP($A40,outcome_data!$A$6:$BJ$216,H$1,0)","v":227948},{"$f":"VLOOKUP($A40,outcome_data!$A$6:$BJ$216,I$1,0)","v":192},{"$f":"VLOOKUP($A40,outcome_data!$A$6:$BJ$216,J$1,0)","v":227948},{"$f":"VLOOKUP($A40,outcome_data!$A$6:$BJ$216,K$1,0)","v":523},{"$f":"VLOOKUP($A40,outcome_data!$A$6:$BJ$216,L$1,0)","v":227948},{"$f":"VLOOKUP($A40,outcome_data!$A$6:$BJ$216,M$1,0)","v":212},{"$f":"VLOOKUP($A40,outcome_data!$A$6:$BJ$216,N$1,0)","v":227948},{"$f":"VLOOKUP($A40,outcome_data!$A$6:$BJ$216,O$1,0)","v":111},{"$f":"VLOOKUP($A40,outcome_data!$A$6:$BJ$216,P$1,0)","v":227948},{"$f":"VLOOKUP($A40,outcome_data!$A$6:$BJ$216,Q$1,0)","v":7286},{"$f":"VLOOKUP($A40,outcome_data!$A$6:$BJ$216,R$1,0)","v":8301},{"$f":"VLOOKUP($A40,outcome_data!$A$6:$BJ$216,S$1,0)","v":5920},{"$f":"VLOOKUP($A40,outcome_data!$A$6:$BJ$216,T$1,0)","v":8301},{"$f":"VLOOKUP($A40,outcome_data!$A$6:$BJ$216,U$1,0)","v":23767},{"$f":"VLOOKUP($A40,outcome_data!$A$6:$BJ$216,V$1,0)","v":30787},{"$f":"VLOOKUP($A40,outcome_data!$A$6:$BJ$216,W$1,0)","v":5399},{"$f":"VLOOKUP($A40,outcome_data!$A$6:$BJ$216,X$1,0)","v":7432},{"$f":"VLOOKUP($A40,outcome_data!$A$6:$BJ$216,Y$1,0)","v":1620},{"$f":"VLOOKUP($A40,outcome_data!$A$6:$BJ$216,Z$1,0)","v":1935},{"$f":"VLOOKUP($A40,outcome_data!$A$6:$BJ$216,AA$1,0)","v":1299},{"$f":"VLOOKUP($A40,outcome_data!$A$6:$BJ$216,AB$1,0)","v":1935},{"$f":"VLOOKUP($A40,outcome_data!$A$6:$BJ$216,AC$1,0)","v":3545},{"$f":"VLOOKUP($A40,outcome_data!$A$6:$BJ$216,AD$1,0)","v":4074},{"$f":"VLOOKUP($A40,outcome_data!$A$6:$BJ$216,AE$1,0)","v":2766},{"$f":"VLOOKUP($A40,outcome_data!$A$6:$BJ$216,AF$1,0)","v":4074}]
["02D","NHS Vale Royal",{"$f":"VLOOKUP($A41,outcome_data!$A$6:$BJ$216,C$1,0)","v":65},{"$f":"VLOOKUP($A41,outcome_data!$A$6:$BJ$216,D$1,0)","v":94647},{"$f":"VLOOKUP($A41,outcome_data!$A$6:$BJ$216,E$1,0)","v":133},{"$f":"VLOOKUP($A41,outcome_data!$A$6:$BJ$216,F$1,0)","v":102258},{"$f":"VLOOKUP($A41,outcome_data!$A$6:$BJ$216,G$1,0)","v":439},{"$f":"VLOOKUP($A41,outcome_data!$A$6:$BJ$216,H$1,0)","v":102258},{"$f":"VLOOKUP($A41,outcome_data!$A$6:$BJ$216,I$1,0)","v":105},{"$f":"VLOOKUP($A41,outcome_data!$A$6:$BJ$216,J$1,0)","v":102258},{"$f":"VLOOKUP($A41,outcome_data!$A$6:$BJ$216,K$1,0)","v":212},{"$f":"VLOOKUP($A41,outcome_data!$A$6:$BJ$216,L$1,0)","v":102258},{"$f":"VLOOKUP($A41,outcome_data!$A$6:$BJ$216,M$1,0)","v":124},{"$f":"VLOOKUP($A41,outcome_data!$A$6:$BJ$216,N$1,0)","v":102258},{"$f":"VLOOKUP($A41,outcome_data!$A$6:$BJ$216,O$1,0)","v":41},{"$f":"VLOOKUP($A41,outcome_data!$A$6:$BJ$216,P$1,0)","v":102258},{"$f":"VLOOKUP($A41,outcome_data!$A$6:$BJ$216,Q$1,0)","v":3365},{"$f":"VLOOKUP($A41,outcome_data!$A$6:$BJ$216,R$1,0)","v":3793},{"$f":"VLOOKUP($A41,outcome_data!$A$6:$BJ$216,S$1,0)","v":2687},{"$f":"VLOOKUP($A41,outcome_data!$A$6:$BJ$216,T$1,0)","v":3793},{"$f":"VLOOKUP($A41,outcome_data!$A$6:$BJ$216,U$1,0)","v":12092},{"$f":"VLOOKUP($A41,outcome_data!$A$6:$BJ$216,V$1,0)","v":15381},{"$f":"VLOOKUP($A41,outcome_data!$A$6:$BJ$216,W$1,0)","v":3252},{"$f":"VLOOKUP($A41,outcome_data!$A$6:$BJ$216,X$1,0)","v":4259},{"$f":"VLOOKUP($A41,outcome_data!$A$6:$BJ$216,Y$1,0)","v":713},{"$f":"VLOOKUP($A41,outcome_data!$A$6:$BJ$216,Z$1,0)","v":821},{"$f":"VLOOKUP($A41,outcome_data!$A$6:$BJ$216,AA$1,0)","v":547},{"$f":"VLOOKUP($A41,outcome_data!$A$6:$BJ$216,AB$1,0)","v":821},{"$f":"VLOOKUP($A41,outcome_data!$A$6:$BJ$216,AC$1,0)","v":1615},{"$f":"VLOOKUP($A41,outcome_data!$A$6:$BJ$216,AD$1,0)","v":1874},{"$f":"VLOOKUP($A41,outcome_data!$A$6:$BJ$216,AE$1,0)","v":1201},{"$f":"VLOOKUP($A41,outcome_data!$A$6:$BJ$216,AF$1,0)","v":1874}]
["02E","NHS Warrington",{"$f":"VLOOKUP($A42,outcome_data!$A$6:$BJ$216,C$1,0)","v":126},{"$f":"VLOOKUP($A42,outcome_data!$A$6:$BJ$216,D$1,0)","v":194652},{"$f":"VLOOKUP($A42,outcome_data!$A$6:$BJ$216,E$1,0)","v":275},{"$f":"VLOOKUP($A42,outcome_data!$A$6:$BJ$216,F$1,0)","v":208856},{"$f":"VLOOKUP($A42,outcome_data!$A$6:$BJ$216,G$1,0)","v":1226},{"$f":"VLOOKUP($A42,outcome_data!$A$6:$BJ$216,H$1,0)","v":208856},{"$f":"VLOOKUP($A42,outcome_data!$A$6:$BJ$216,I$1,0)","v":186},{"$f":"VLOOKUP($A42,outcome_data!$A$6:$BJ$216,J$1,0)","v":208856},{"$f":"VLOOKUP($A42,outcome_data!$A$6:$BJ$216,K$1,0)","v":601},{"$f":"VLOOKUP($A42,outcome_data!$A$6:$BJ$216,L$1,0)","v":208856},{"$f":"VLOOKUP($A42,outcome_data!$A$6:$BJ$216,M$1,0)","v":244},{"$f":"VLOOKUP($A42,outcome_data!$A$6:$BJ$216,N$1,0)","v":208856},{"$f":"VLOOKUP($A42,outcome_data!$A$6:$BJ$216,O$1,0)","v":74},{"$f":"VLOOKUP($A42,outcome_data!$A$6:$BJ$216,P$1,0)","v":208856},{"$f":"VLOOKUP($A42,outcome_data!$A$6:$BJ$216,Q$1,0)","v":6996},{"$f":"VLOOKUP($A42,outcome_data!$A$6:$BJ$216,R$1,0)","v":7882},{"$f":"VLOOKUP($A42,outcome_data!$A$6:$BJ$216,S$1,0)","v":5839},{"$f":"VLOOKUP($A42,outcome_data!$A$6:$BJ$216,T$1,0)","v":7882},{"$f":"VLOOKUP($A42,outcome_data!$A$6:$BJ$216,U$1,0)","v":21295},{"$f":"VLOOKUP($A42,outcome_data!$A$6:$BJ$216,V$1,0)","v":28228},{"$f":"VLOOKUP($A42,outcome_data!$A$6:$BJ$216,W$1,0)","v":5097},{"$f":"VLOOKUP($A42,outcome_data!$A$6:$BJ$216,X$1,0)","v":6938},{"$f":"VLOOKUP($A42,outcome_data!$A$6:$BJ$216,Y$1,0)","v":1711},{"$f":"VLOOKUP($A42,outcome_data!$A$6:$BJ$216,Z$1,0)","v":1942},{"$f":"VLOOKUP($A42,outcome_data!$A$6:$BJ$216,AA$1,0)","v":1433},{"$f":"VLOOKUP($A42,outcome_data!$A$6:$BJ$216,AB$1,0)","v":1942},{"$f":"VLOOKUP($A42,outcome_data!$A$6:$BJ$216,AC$1,0)","v":3079},{"$f":"VLOOKUP($A42,outcome_data!$A$6:$BJ$216,AD$1,0)","v":3583},{"$f":"VLOOKUP($A42,outcome_data!$A$6:$BJ$216,AE$1,0)","v":2512},{"$f":"VLOOKUP($A42,outcome_data!$A$6:$BJ$216,AF$1,0)","v":3583}]
["02F","NHS West Cheshire",{"$f":"VLOOKUP($A43,outcome_data!$A$6:$BJ$216,C$1,0)","v":154},{"$f":"VLOOKUP($A43,outcome_data!$A$6:$BJ$216,D$1,0)","v":232979},{"$f":"VLOOKUP($A43,outcome_data!$A$6:$BJ$216,E$1,0)","v":393},{"$f":"VLOOKUP($A43,outcome_data!$A$6:$BJ$216,F$1,0)","v":255190},{"$f":"VLOOKUP($A43,outcome_data!$A$6:$BJ$216,G$1,0)","v":1273},{"$f":"VLOOKUP($A43,outcome_data!$A$6:$BJ$216,H$1,0)","v":255190},{"$f":"VLOOKUP($A43,outcome_data!$A$6:$BJ$216,I$1,0)","v":300},{"$f":"VLOOKUP($A43,outcome_data!$A$6:$BJ$216,J$1,0)","v":255190},{"$f":"VLOOKUP($A43,outcome_data!$A$6:$BJ$216,K$1,0)","v":885},{"$f":"VLOOKUP($A43,outcome_data!$A$6:$BJ$216,L$1,0)","v":255190},{"$f":"VLOOKUP($A43,outcome_data!$A$6:$BJ$216,M$1,0)","v":303},{"$f":"VLOOKUP($A43,outcome_data!$A$6:$BJ$216,N$1,0)","v":255190},{"$f":"VLOOKUP($A43,outcome_data!$A$6:$BJ$216,O$1,0)","v":75},{"$f":"VLOOKUP($A43,outcome_data!$A$6:$BJ$216,P$1,0)","v":255190},{"$f":"VLOOKUP($A43,outcome_data!$A$6:$BJ$216,Q$1,0)","v":8334},{"$f":"VLOOKUP($A43,outcome_data!$A$6:$BJ$216,R$1,0)","v":9244},{"$f":"VLOOKUP($A43,outcome_data!$A$6:$BJ$216,S$1,0)","v":7068},{"$f":"VLOOKUP($A43,outcome_data!$A$6:$BJ$216,T$1,0)","v":9244},{"$f":"VLOOKUP($A43,outcome_data!$A$6:$BJ$216,U$1,0)","v":29067},{"$f":"VLOOKUP($A43,outcome_data!$A$6:$BJ$216,V$1,0)","v":36581},{"$f":"VLOOKUP($A43,outcome_data!$A$6:$BJ$216,W$1,0)","v":5747},{"$f":"VLOOKUP($A43,outcome_data!$A$6:$BJ$216,X$1,0)","v":7601},{"$f":"VLOOKUP($A43,outcome_data!$A$6:$BJ$216,Y$1,0)","v":1782},{"$f":"VLOOKUP($A43,outcome_data!$A$6:$BJ$216,Z$1,0)","v":2023},{"$f":"VLOOKUP($A43,outcome_data!$A$6:$BJ$216,AA$1,0)","v":1455},{"$f":"VLOOKUP($A43,outcome_data!$A$6:$BJ$216,AB$1,0)","v":2023},{"$f":"VLOOKUP($A43,outcome_data!$A$6:$BJ$216,AC$1,0)","v":4472},{"$f":"VLOOKUP($A43,outcome_data!$A$6:$BJ$216,AD$1,0)","v":5083},{"$f":"VLOOKUP($A43,outcome_data!$A$6:$BJ$216,AE$1,0)","v":3648},{"$f":"VLOOKUP($A43,outcome_data!$A$6:$BJ$216,AF$1,0)","v":5083}]
["02G","NHS West Lancashire",{"$f":"VLOOKUP($A44,outcome_data!$A$6:$BJ$216,C$1,0)","v":75},{"$f":"VLOOKUP($A44,outcome_data!$A$6:$BJ$216,D$1,0)","v":102178},{"$f":"VLOOKUP($A44,outcome_data!$A$6:$BJ$216,E$1,0)","v":148},{"$f":"VLOOKUP($A44,outcome_data!$A$6:$BJ$216,F$1,0)","v":111967},{"$f":"VLOOKUP($A44,outcome_data!$A$6:$BJ$216,G$1,0)","v":560},{"$f":"VLOOKUP($A44,outcome_data!$A$6:$BJ$216,H$1,0)","v":111967},{"$f":"VLOOKUP($A44,outcome_data!$A$6:$BJ$216,I$1,0)","v":129},{"$f":"VLOOKUP($A44,outcome_data!$A$6:$BJ$216,J$1,0)","v":111967},{"$f":"VLOOKUP($A44,outcome_data!$A$6:$BJ$216,K$1,0)","v":227},{"$f":"VLOOKUP($A44,outcome_data!$A$6:$BJ$216,L$1,0)","v":111967},{"$f":"VLOOKUP($A44,outcome_data!$A$6:$BJ$216,M$1,0)","v":127},{"$f":"VLOOKUP($A44,outcome_data!$A$6:$BJ$216,N$1,0)","v":111967},{"$f":"VLOOKUP($A44,outcome_data!$A$6:$BJ$216,O$1,0)","v":63},{"$f":"VLOOKUP($A44,outcome_data!$A$6:$BJ$216,P$1,0)","v":111967},{"$f":"VLOOKUP($A44,outcome_data!$A$6:$BJ$216,Q$1,0)","v":3924},{"$f":"VLOOKUP($A44,outcome_data!$A$6:$BJ$216,R$1,0)","v":4399},{"$f":"VLOOKUP($A44,outcome_data!$A$6:$BJ$216,S$1,0)","v":3166},{"$f":"VLOOKUP($A44,outcome_data!$A$6:$BJ$216,T$1,0)","v":4399},{"$f":"VLOOKUP($A44,outcome_data!$A$6:$BJ$216,U$1,0)","v":13658},{"$f":"VLOOKUP($A44,outcome_data!$A$6:$BJ$216,V$1,0)","v":17178},{"$f":"VLOOKUP($A44,outcome_data!$A$6:$BJ$216,W$1,0)","v":2756},{"$f":"VLOOKUP($A44,outcome_data!$A$6:$BJ$216,X$1,0)","v":3678},{"$f":"VLOOKUP($A44,outcome_data!$A$6:$BJ$216,Y$1,0)","v":755},{"$f":"VLOOKUP($A44,outcome_data!$A$6:$BJ$216,Z$1,0)","v":866},{"$f":"VLOOKUP($A44,outcome_data!$A$6:$BJ$216,AA$1,0)","v":582},{"$f":"VLOOKUP($A44,outcome_data!$A$6:$BJ$216,AB$1,0)","v":866},{"$f":"VLOOKUP($A44,outcome_data!$A$6:$BJ$216,AC$1,0)","v":1917},{"$f":"VLOOKUP($A44,outcome_data!$A$6:$BJ$216,AD$1,0)","v":2192},{"$f":"VLOOKUP($A44,outcome_data!$A$6:$BJ$216,AE$1,0)","v":1474},{"$f":"VLOOKUP($A44,outcome_data!$A$6:$BJ$216,AF$1,0)","v":2192}]
["02H","NHS Wigan Borough",{"$f":"VLOOKUP($A45,outcome_data!$A$6:$BJ$216,C$1,0)","v":234},{"$f":"VLOOKUP($A45,outcome_data!$A$6:$BJ$216,D$1,0)","v":297943},{"$f":"VLOOKUP($A45,outcome_data!$A$6:$BJ$216,E$1,0)","v":535},{"$f":"VLOOKUP($A45,outcome_data!$A$6:$BJ$216,F$1,0)","v":320813},{"$f":"VLOOKUP($A45,outcome_data!$A$6:$BJ$216,G$1,0)","v":1898},{"$f":"VLOOKUP($A45,outcome_data!$A$6:$BJ$216,H$1,0)","v":320813},{"$f":"VLOOKUP($A45,outcome_data!$A$6:$BJ$216,I$1,0)","v":447},{"$f":"VLOOKUP($A45,outcome_data!$A$6:$BJ$216,J$1,0)","v":320813},{"$f":"VLOOKUP($A45,outcome_data!$A$6:$BJ$216,K$1,0)","v":798},{"$f":"VLOOKUP($A45,outcome_data!$A$6:$BJ$216,L$1,0)","v":320813},{"$f":"VLOOKUP($A45,outcome_data!$A$6:$BJ$216,M$1,0)","v":373},{"$f":"VLOOKUP($A45,outcome_data!$A$6:$BJ$216,N$1,0)","v":320813},{"$f":"VLOOKUP($A45,outcome_data!$A$6:$BJ$216,O$1,0)","v":125},{"$f":"VLOOKUP($A45,outcome_data!$A$6:$BJ$216,P$1,0)","v":320813},{"$f":"VLOOKUP($A45,outcome_data!$A$6:$BJ$216,Q$1,0)","v":12785},{"$f":"VLOOKUP($A45,outcome_data!$A$6:$BJ$216,R$1,0)","v":14152},{"$f":"VLOOKUP($A45,outcome_data!$A$6:$BJ$216,S$1,0)","v":10658},{"$f":"VLOOKUP($A45,outcome_data!$A$6:$BJ$216,T$1,0)","v":14152},{"$f":"VLOOKUP($A45,outcome_data!$A$6:$BJ$216,U$1,0)","v":41103},{"$f":"VLOOKUP($A45,outcome_data!$A$6:$BJ$216,V$1,0)","v":51176},{"$f":"VLOOKUP($A45,outcome_data!$A$6:$BJ$216,W$1,0)","v":11184},{"$f":"VLOOKUP($A45,outcome_data!$A$6:$BJ$216,X$1,0)","v":14519},{"$f":"VLOOKUP($A45,outcome_data!$A$6:$BJ$216,Y$1,0)","v":2254},{"$f":"VLOOKUP($A45,outcome_data!$A$6:$BJ$216,Z$1,0)","v":2542},{"$f":"VLOOKUP($A45,outcome_data!$A$6:$BJ$216,AA$1,0)","v":1819},{"$f":"VLOOKUP($A45,outcome_data!$A$6:$BJ$216,AB$1,0)","v":2542},{"$f":"VLOOKUP($A45,outcome_data!$A$6:$BJ$216,AC$1,0)","v":5226},{"$f":"VLOOKUP($A45,outcome_data!$A$6:$BJ$216,AD$1,0)","v":6008},{"$f":"VLOOKUP($A45,outcome_data!$A$6:$BJ$216,AE$1,0)","v":4120},{"$f":"VLOOKUP($A45,outcome_data!$A$6:$BJ$216,AF$1,0)","v":6009}]
["02M","NHS Fylde & Wyre",{"$f":"VLOOKUP($A46,outcome_data!$A$6:$BJ$216,C$1,0)","v":132},{"$f":"VLOOKUP($A46,outcome_data!$A$6:$BJ$216,D$1,0)","v":132820},{"$f":"VLOOKUP($A46,outcome_data!$A$6:$BJ$216,E$1,0)","v":280},{"$f":"VLOOKUP($A46,outcome_data!$A$6:$BJ$216,F$1,0)","v":151104},{"$f":"VLOOKUP($A46,outcome_data!$A$6:$BJ$216,G$1,0)","v":1052},{"$f":"VLOOKUP($A46,outcome_data!$A$6:$BJ$216,H$1,0)","v":151104},{"$f":"VLOOKUP($A46,outcome_data!$A$6:$BJ$216,I$1,0)","v":232},{"$f":"VLOOKUP($A46,outcome_data!$A$6:$BJ$216,J$1,0)","v":151104},{"$f":"VLOOKUP($A46,outcome_data!$A$6:$BJ$216,K$1,0)","v":702},{"$f":"VLOOKUP($A46,outcome_data!$A$6:$BJ$216,L$1,0)","v":151104},{"$f":"VLOOKUP($A46,outcome_data!$A$6:$BJ$216,M$1,0)","v":200},{"$f":"VLOOKUP($A46,outcome_data!$A$6:$BJ$216,N$1,0)","v":151104},{"$f":"VLOOKUP($A46,outcome_data!$A$6:$BJ$216,O$1,0)","v":142},{"$f":"VLOOKUP($A46,outcome_data!$A$6:$BJ$216,P$1,0)","v":151104},{"$f":"VLOOKUP($A46,outcome_data!$A$6:$BJ$216,Q$1,0)","v":6984},{"$f":"VLOOKUP($A46,outcome_data!$A$6:$BJ$216,R$1,0)","v":7914},{"$f":"VLOOKUP($A46,outcome_data!$A$6:$BJ$216,S$1,0)","v":5648},{"$f":"VLOOKUP($A46,outcome_data!$A$6:$BJ$216,T$1,0)","v":7914},{"$f":"VLOOKUP($A46,outcome_data!$A$6:$BJ$216,U$1,0)","v":19581},{"$f":"VLOOKUP($A46,outcome_data!$A$6:$BJ$216,V$1,0)","v":25572},{"$f":"VLOOKUP($A46,outcome_data!$A$6:$BJ$216,W$1,0)","v":7412},{"$f":"VLOOKUP($A46,outcome_data!$A$6:$BJ$216,X$1,0)","v":10479},{"$f":"VLOOKUP($A46,outcome_data!$A$6:$BJ$216,Y$1,0)","v":1385},{"$f":"VLOOKUP($A46,outcome_data!$A$6:$BJ$216,Z$1,0)","v":1645},{"$f":"VLOOKUP($A46,outcome_data!$A$6:$BJ$216,AA$1,0)","v":1063},{"$f":"VLOOKUP($A46,outcome_data!$A$6:$BJ$216,AB$1,0)","v":1645},{"$f":"VLOOKUP($A46,outcome_data!$A$6:$BJ$216,AC$1,0)","v":3132},{"$f":"VLOOKUP($A46,outcome_data!$A$6:$BJ$216,AD$1,0)","v":3688},{"$f":"VLOOKUP($A46,outcome_data!$A$6:$BJ$216,AE$1,0)","v":2389},{"$f":"VLOOKUP($A46,outcome_data!$A$6:$BJ$216,AF$1,0)","v":3688}]
["02N","NHS Airedale, Wharfedale and Craven",{"$f":"VLOOKUP($A47,outcome_data!$A$6:$BJ$216,C$1,0)","v":83},{"$f":"VLOOKUP($A47,outcome_data!$A$6:$BJ$216,D$1,0)","v":141517},{"$f":"VLOOKUP($A47,outcome_data!$A$6:$BJ$216,E$1,0)","v":235},{"$f":"VLOOKUP($A47,outcome_data!$A$6:$BJ$216,F$1,0)","v":156259},{"$f":"VLOOKUP($A47,outcome_data!$A$6:$BJ$216,G$1,0)","v":1105},{"$f":"VLOOKUP($A47,outcome_data!$A$6:$BJ$216,H$1,0)","v":156259},{"$f":"VLOOKUP($A47,outcome_data!$A$6:$BJ$216,I$1,0)","v":201},{"$f":"VLOOKUP($A47,outcome_data!$A$6:$BJ$216,J$1,0)","v":156259},{"$f":"VLOOKUP($A47,outcome_data!$A$6:$BJ$216,K$1,0)","v":524},{"$f":"VLOOKUP($A47,outcome_data!$A$6:$BJ$216,L$1,0)","v":156259},{"$f":"VLOOKUP($A47,outcome_data!$A$6:$BJ$216,M$1,0)","v":213},{"$f":"VLOOKUP($A47,outcome_data!$A$6:$BJ$216,N$1,0)","v":156259},{"$f":"VLOOKUP($A47,outcome_data!$A$6:$BJ$216,O$1,0)","v":38},{"$f":"VLOOKUP($A47,outcome_data!$A$6:$BJ$216,P$1,0)","v":156259},{"$f":"VLOOKUP($A47,outcome_data!$A$6:$BJ$216,Q$1,0)","v":5662},{"$f":"VLOOKUP($A47,outcome_data!$A$6:$BJ$216,R$1,0)","v":6423},{"$f":"VLOOKUP($A47,outcome_data!$A$6:$BJ$216,S$1,0)","v":4641},{"$f":"VLOOKUP($A47,outcome_data!$A$6:$BJ$216,T$1,0)","v":6423},{"$f":"VLOOKUP($A47,outcome_data!$A$6:$BJ$216,U$1,0)","v":17285},{"$f":"VLOOKUP($A47,outcome_data!$A$6:$BJ$216,V$1,0)","v":22959},{"$f":"VLOOKUP($A47,outcome_data!$A$6:$BJ$216,W$1,0)","v":3817},{"$f":"VLOOKUP($A47,outcome_data!$A$6:$BJ$216,X$1,0)","v":5436},{"$f":"VLOOKUP($A47,outcome_data!$A$6:$BJ$216,Y$1,0)","v":1070},{"$f":"VLOOKUP($A47,outcome_data!$A$6:$BJ$216,Z$1,0)","v":1259},{"$f":"VLOOKUP($A47,outcome_data!$A$6:$BJ$216,AA$1,0)","v":834},{"$f":"VLOOKUP($A47,outcome_data!$A$6:$BJ$216,AB$1,0)","v":1259},{"$f":"VLOOKUP($A47,outcome_data!$A$6:$BJ$216,AC$1,0)","v":2938},{"$f":"VLOOKUP($A47,outcome_data!$A$6:$BJ$216,AD$1,0)","v":3483},{"$f":"VLOOKUP($A47,outcome_data!$A$6:$BJ$216,AE$1,0)","v":2246},{"$f":"VLOOKUP($A47,outcome_data!$A$6:$BJ$216,AF$1,0)","v":3483}]
["02P","NHS Barnsley",{"$f":"VLOOKUP($A48,outcome_data!$A$6:$BJ$216,C$1,0)","v":209},{"$f":"VLOOKUP($A48,outcome_data!$A$6:$BJ$216,D$1,0)","v":231608},{"$f":"VLOOKUP($A48,outcome_data!$A$6:$BJ$216,E$1,0)","v":605},{"$f":"VLOOKUP($A48,outcome_data!$A$6:$BJ$216,F$1,0)","v":250376},{"$f":"VLOOKUP($A48,outcome_data!$A$6:$BJ$216,G$1,0)","v":1948},{"$f":"VLOOKUP($A48,outcome_data!$A$6:$BJ$216,H$1,0)","v":250376},{"$f":"VLOOKUP($A48,outcome_data!$A$6:$BJ$216,I$1,0)","v":346},{"$f":"VLOOKUP($A48,outcome_data!$A$6:$BJ$216,J$1,0)","v":250376},{"$f":"VLOOKUP($A48,outcome_data!$A$6:$BJ$216,K$1,0)","v":709},{"$f":"VLOOKUP($A48,outcome_data!$A$6:$BJ$216,L$1,0)","v":250376},{"$f":"VLOOKUP($A48,outcome_data!$A$6:$BJ$216,M$1,0)","v":240},{"$f":"VLOOKUP($A48,outcome_data!$A$6:$BJ$216,N$1,0)","v":250376},{"$f":"VLOOKUP($A48,outcome_data!$A$6:$BJ$216,O$1,0)","v":85},{"$f":"VLOOKUP($A48,outcome_data!$A$6:$BJ$216,P$1,0)","v":250376},{"$f":"VLOOKUP($A48,outcome_data!$A$6:$BJ$216,Q$1,0)","v":10665},{"$f":"VLOOKUP($A48,outcome_data!$A$6:$BJ$216,R$1,0)","v":12087},{"$f":"VLOOKUP($A48,outcome_data!$A$6:$BJ$216,S$1,0)","v":8840},{"$f":"VLOOKUP($A48,outcome_data!$A$6:$BJ$216,T$1,0)","v":12087},{"$f":"VLOOKUP($A48,outcome_data!$A$6:$BJ$216,U$1,0)","v":30134},{"$f":"VLOOKUP($A48,outcome_data!$A$6:$BJ$216,V$1,0)","v":39471},{"$f":"VLOOKUP($A48,outcome_data!$A$6:$BJ$216,W$1,0)","v":8759},{"$f":"VLOOKUP($A48,outcome_data!$A$6:$BJ$216,X$1,0)","v":11969},{"$f":"VLOOKUP($A48,outcome_data!$A$6:$BJ$216,Y$1,0)","v":2480},{"$f":"VLOOKUP($A48,outcome_data!$A$6:$BJ$216,Z$1,0)","v":2859},{"$f":"VLOOKUP($A48,outcome_data!$A$6:$BJ$216,AA$1,0)","v":2064},{"$f":"VLOOKUP($A48,outcome_data!$A$6:$BJ$216,AB$1,0)","v":2859},{"$f":"VLOOKUP($A48,outcome_data!$A$6:$BJ$216,AC$1,0)","v":4423},{"$f":"VLOOKUP($A48,outcome_data!$A$6:$BJ$216,AD$1,0)","v":5151},{"$f":"VLOOKUP($A48,outcome_data!$A$6:$BJ$216,AE$1,0)","v":3640},{"$f":"VLOOKUP($A48,outcome_data!$A$6:$BJ$216,AF$1,0)","v":5151}]
["02Q","NHS Bassetlaw",{"$f":"VLOOKUP($A49,outcome_data!$A$6:$BJ$216,C$1,0)","v":82},{"$f":"VLOOKUP($A49,outcome_data!$A$6:$BJ$216,D$1,0)","v":102615},{"$f":"VLOOKUP($A49,outcome_data!$A$6:$BJ$216,E$1,0)","v":150},{"$f":"VLOOKUP($A49,outcome_data!$A$6:$BJ$216,F$1,0)","v":111930},{"$f":"VLOOKUP($A49,outcome_data!$A$6:$BJ$216,G$1,0)","v":517},{"$f":"VLOOKUP($A49,outcome_data!$A$6:$BJ$216,H$1,0)","v":111930},{"$f":"VLOOKUP($A49,outcome_data!$A$6:$BJ$216,I$1,0)","v":139},{"$f":"VLOOKUP($A49,outcome_data!$A$6:$BJ$216,J$1,0)","v":111930},{"$f":"VLOOKUP($A49,outcome_data!$A$6:$BJ$216,K$1,0)","v":287},{"$f":"VLOOKUP($A49,outcome_data!$A$6:$BJ$216,L$1,0)","v":111930},{"$f":"VLOOKUP($A49,outcome_data!$A$6:$BJ$216,M$1,0)","v":104},{"$f":"VLOOKUP($A49,outcome_data!$A$6:$BJ$216,N$1,0)","v":111930},{"$f":"VLOOKUP($A49,outcome_data!$A$6:$BJ$216,O$1,0)","v":35},{"$f":"VLOOKUP($A49,outcome_data!$A$6:$BJ$216,P$1,0)","v":111930},{"$f":"VLOOKUP($A49,outcome_data!$A$6:$BJ$216,Q$1,0)","v":3917},{"$f":"VLOOKUP($A49,outcome_data!$A$6:$BJ$216,R$1,0)","v":4405},{"$f":"VLOOKUP($A49,outcome_data!$A$6:$BJ$216,S$1,0)","v":3260},{"$f":"VLOOKUP($A49,outcome_data!$A$6:$BJ$216,T$1,0)","v":4405},{"$f":"VLOOKUP($A49,outcome_data!$A$6:$BJ$216,U$1,0)","v":13454},{"$f":"VLOOKUP($A49,outcome_data!$A$6:$BJ$216,V$1,0)","v":16435},{"$f":"VLOOKUP($A49,outcome_data!$A$6:$BJ$216,W$1,0)","v":4615},{"$f":"VLOOKUP($A49,outcome_data!$A$6:$BJ$216,X$1,0)","v":6164},{"$f":"VLOOKUP($A49,outcome_data!$A$6:$BJ$216,Y$1,0)","v":811},{"$f":"VLOOKUP($A49,outcome_data!$A$6:$BJ$216,Z$1,0)","v":926},{"$f":"VLOOKUP($A49,outcome_data!$A$6:$BJ$216,AA$1,0)","v":662},{"$f":"VLOOKUP($A49,outcome_data!$A$6:$BJ$216,AB$1,0)","v":926},{"$f":"VLOOKUP($A49,outcome_data!$A$6:$BJ$216,AC$1,0)","v":1911},{"$f":"VLOOKUP($A49,outcome_data!$A$6:$BJ$216,AD$1,0)","v":2166},{"$f":"VLOOKUP($A49,outcome_data!$A$6:$BJ$216,AE$1,0)","v":1514},{"$f":"VLOOKUP($A49,outcome_data!$A$6:$BJ$216,AF$1,0)","v":2166}]
["02R","NHS Bradford Districts",{"$f":"VLOOKUP($A50,outcome_data!$A$6:$BJ$216,C$1,0)","v":251},{"$f":"VLOOKUP($A50,outcome_data!$A$6:$BJ$216,D$1,0)","v":309647},{"$f":"VLOOKUP($A50,outcome_data!$A$6:$BJ$216,E$1,0)","v":470},{"$f":"VLOOKUP($A50,outcome_data!$A$6:$BJ$216,F$1,0)","v":332267},{"$f":"VLOOKUP($A50,outcome_data!$A$6:$BJ$216,G$1,0)","v":1879},{"$f":"VLOOKUP($A50,outcome_data!$A$6:$BJ$216,H$1,0)","v":332267},{"$f":"VLOOKUP($A50,outcome_data!$A$6:$BJ$216,I$1,0)","v":450},{"$f":"VLOOKUP($A50,outcome_data!$A$6:$BJ$216,J$1,0)","v":332267},{"$f":"VLOOKUP($A50,outcome_data!$A$6:$BJ$216,K$1,0)","v":606},{"$f":"VLOOKUP($A50,outcome_data!$A$6:$BJ$216,L$1,0)","v":332267},{"$f":"VLOOKUP($A50,outcome_data!$A$6:$BJ$216,M$1,0)","v":387},{"$f":"VLOOKUP($A50,outcome_data!$A$6:$BJ$216,N$1,0)","v":332267},{"$f":"VLOOKUP($A50,outcome_data!$A$6:$BJ$216,O$1,0)","v":81},{"$f":"VLOOKUP($A50,outcome_data!$A$6:$BJ$216,P$1,0)","v":332267},{"$f":"VLOOKUP($A50,outcome_data!$A$6:$BJ$216,Q$1,0)","v":10485},{"$f":"VLOOKUP($A50,outcome_data!$A$6:$BJ$216,R$1,0)","v":11886},{"$f":"VLOOKUP($A50,outcome_data!$A$6:$BJ$216,S$1,0)","v":8850},{"$f":"VLOOKUP($A50,outcome_data!$A$6:$BJ$216,T$1,0)","v":11886},{"$f":"VLOOKUP($A50,outcome_data!$A$6:$BJ$216,U$1,0)","v":33337},{"$f":"VLOOKUP($A50,outcome_data!$A$6:$BJ$216,V$1,0)","v":43572},{"$f":"VLOOKUP($A50,outcome_data!$A$6:$BJ$216,W$1,0)","v":7715},{"$f":"VLOOKUP($A50,outcome_data!$A$6:$BJ$216,X$1,0)","v":10994},{"$f":"VLOOKUP($A50,outcome_data!$A$6:$BJ$216,Y$1,0)","v":2637},{"$f":"VLOOKUP($A50,outcome_data!$A$6:$BJ$216,Z$1,0)","v":3058},{"$f":"VLOOKUP($A50,outcome_data!$A$6:$BJ$216,AA$1,0)","v":2230},{"$f":"VLOOKUP($A50,outcome_data!$A$6:$BJ$216,AB$1,0)","v":3058},{"$f":"VLOOKUP($A50,outcome_data!$A$6:$BJ$216,AC$1,0)","v":5079},{"$f":"VLOOKUP($A50,outcome_data!$A$6:$BJ$216,AD$1,0)","v":5987},{"$f":"VLOOKUP($A50,outcome_data!$A$6:$BJ$216,AE$1,0)","v":4150},{"$f":"VLOOKUP($A50,outcome_data!$A$6:$BJ$216,AF$1,0)","v":5987}]
["02T","NHS Calderdale",{"$f":"VLOOKUP($A51,outcome_data!$A$6:$BJ$216,C$1,0)","v":165},{"$f":"VLOOKUP($A51,outcome_data!$A$6:$BJ$216,D$1,0)","v":199042},{"$f":"VLOOKUP($A51,outcome_data!$A$6:$BJ$216,E$1,0)","v":284},{"$f":"VLOOKUP($A51,outcome_data!$A$6:$BJ$216,F$1,0)","v":214193},{"$f":"VLOOKUP($A51,outcome_data!$A$6:$BJ$216,G$1,0)","v":937},{"$f":"VLOOKUP($A51,outcome_data!$A$6:$BJ$216,H$1,0)","v":214193},{"$f":"VLOOKUP($A51,outcome_data!$A$6:$BJ$216,I$1,0)","v":278},{"$f":"VLOOKUP($A51,outcome_data!$A$6:$BJ$216,J$1,0)","v":214193},{"$f":"VLOOKUP($A51,outcome_data!$A$6:$BJ$216,K$1,0)","v":573},{"$f":"VLOOKUP($A51,outcome_data!$A$6:$BJ$216,L$1,0)","v":214193},{"$f":"VLOOKUP($A51,outcome_data!$A$6:$BJ$216,M$1,0)","v":265},{"$f":"VLOOKUP($A51,outcome_data!$A$6:$BJ$216,N$1,0)","v":214193},{"$f":"VLOOKUP($A51,outcome_data!$A$6:$BJ$216,O$1,0)","v":48},{"$f":"VLOOKUP($A51,outcome_data!$A$6:$BJ$216,P$1,0)","v":214193},{"$f":"VLOOKUP($A51,outcome_data!$A$6:$BJ$216,Q$1,0)","v":7352},{"$f":"VLOOKUP($A51,outcome_data!$A$6:$BJ$216,R$1,0)","v":8353},{"$f":"VLOOKUP($A51,outcome_data!$A$6:$BJ$216,S$1,0)","v":6252},{"$f":"VLOOKUP($A51,outcome_data!$A$6:$BJ$216,T$1,0)","v":8353},{"$f":"VLOOKUP($A51,outcome_data!$A$6:$BJ$216,U$1,0)","v":22260},{"$f":"VLOOKUP($A51,outcome_data!$A$6:$BJ$216,V$1,0)","v":28579},{"$f":"VLOOKUP($A51,outcome_data!$A$6:$BJ$216,W$1,0)","v":5380},{"$f":"VLOOKUP($A51,outcome_data!$A$6:$BJ$216,X$1,0)","v":7539},{"$f":"VLOOKUP($A51,outcome_data!$A$6:$BJ$216,Y$1,0)","v":1496},{"$f":"VLOOKUP($A51,outcome_data!$A$6:$BJ$216,Z$1,0)","v":1754},{"$f":"VLOOKUP($A51,outcome_data!$A$6:$BJ$216,AA$1,0)","v":1192},{"$f":"VLOOKUP($A51,outcome_data!$A$6:$BJ$216,AB$1,0)","v":1754},{"$f":"VLOOKUP($A51,outcome_data!$A$6:$BJ$216,AC$1,0)","v":3350},{"$f":"VLOOKUP($A51,outcome_data!$A$6:$BJ$216,AD$1,0)","v":3899},{"$f":"VLOOKUP($A51,outcome_data!$A$6:$BJ$216,AE$1,0)","v":2831},{"$f":"VLOOKUP($A51,outcome_data!$A$6:$BJ$216,AF$1,0)","v":3899}]
["02V","NHS Leeds North",{"$f":"VLOOKUP($A52,outcome_data!$A$6:$BJ$216,C$1,0)","v":99},{"$f":"VLOOKUP($A52,outcome_data!$A$6:$BJ$216,D$1,0)","v":188671},{"$f":"VLOOKUP($A52,outcome_data!$A$6:$BJ$216,E$1,0)","v":287},{"$f":"VLOOKUP($A52,outcome_data!$A$6:$BJ$216,F$1,0)","v":204358},{"$f":"VLOOKUP($A52,outcome_data!$A$6:$BJ$216,G$1,0)","v":731},{"$f":"VLOOKUP($A52,outcome_data!$A$6:$BJ$216,H$1,0)","v":204358},{"$f":"VLOOKUP($A52,outcome_data!$A$6:$BJ$216,I$1,0)","v":242},{"$f":"VLOOKUP($A52,outcome_data!$A$6:$BJ$216,J$1,0)","v":204358},{"$f":"VLOOKUP($A52,outcome_data!$A$6:$BJ$216,K$1,0)","v":420},{"$f":"VLOOKUP($A52,outcome_data!$A$6:$BJ$216,L$1,0)","v":204358},{"$f":"VLOOKUP($A52,outcome_data!$A$6:$BJ$216,M$1,0)","v":219},{"$f":"VLOOKUP($A52,outcome_data!$A$6:$BJ$216,N$1,0)","v":204358},{"$f":"VLOOKUP($A52,outcome_data!$A$6:$BJ$216,O$1,0)","v":39},{"$f":"VLOOKUP($A52,outcome_data!$A$6:$BJ$216,P$1,0)","v":204358},{"$f":"VLOOKUP($A52,outcome_data!$A$6:$BJ$216,Q$1,0)","v":6093},{"$f":"VLOOKUP($A52,outcome_data!$A$6:$BJ$216,R$1,0)","v":6842},{"$f":"VLOOKUP($A52,outcome_data!$A$6:$BJ$216,S$1,0)","v":4968},{"$f":"VLOOKUP($A52,outcome_data!$A$6:$BJ$216,T$1,0)","v":6842},{"$f":"VLOOKUP($A52,outcome_data!$A$6:$BJ$216,U$1,0)","v":19863},{"$f":"VLOOKUP($A52,outcome_data!$A$6:$BJ$216,V$1,0)","v":25597},{"$f":"VLOOKUP($A52,outcome_data!$A$6:$BJ$216,W$1,0)","v":4696},{"$f":"VLOOKUP($A52,outcome_data!$A$6:$BJ$216,X$1,0)","v":6492},{"$f":"VLOOKUP($A52,outcome_data!$A$6:$BJ$216,Y$1,0)","v":1181},{"$f":"VLOOKUP($A52,outcome_data!$A$6:$BJ$216,Z$1,0)","v":1356},{"$f":"VLOOKUP($A52,outcome_data!$A$6:$BJ$216,AA$1,0)","v":924},{"$f":"VLOOKUP($A52,outcome_data!$A$6:$BJ$216,AB$1,0)","v":1356},{"$f":"VLOOKUP($A52,outcome_data!$A$6:$BJ$216,AC$1,0)","v":2989},{"$f":"VLOOKUP($A52,outcome_data!$A$6:$BJ$216,AD$1,0)","v":3450},{"$f":"VLOOKUP($A52,outcome_data!$A$6:$BJ$216,AE$1,0)","v":2376},{"$f":"VLOOKUP($A52,outcome_data!$A$6:$BJ$216,AF$1,0)","v":3450}]
["02W","NHS Bradford City",{"$f":"VLOOKUP($A53,outcome_data!$A$6:$BJ$216,C$1,0)","v":67},{"$f":"VLOOKUP($A53,outcome_data!$A$6:$BJ$216,D$1,0)","v":116880},{"$f":"VLOOKUP($A53,outcome_data!$A$6:$BJ$216,E$1,0)","v":80},{"$f":"VLOOKUP($A53,outcome_data!$A$6:$BJ$216,F$1,0)","v":119296},{"$f":"VLOOKUP($A53,outcome_data!$A$6:$BJ$216,G$1,0)","v":514},{"$f":"VLOOKUP($A53,outcome_data!$A$6:$BJ$216,H$1,0)","v":119296},{"$f":"VLOOKUP($A53,outcome_data!$A$6:$BJ$216,I$1,0)","v":63},{"$f":"VLOOKUP($A53,outcome_data!$A$6:$BJ$216,J$1,0)","v":119296},{"$f":"VLOOKUP($A53,outcome_data!$A$6:$BJ$216,K$1,0)","v":142},{"$f":"VLOOKUP($A53,outcome_data!$A$6:$BJ$216,L$1,0)","v":119296},{"$f":"VLOOKUP($A53,outcome_data!$A$6:$BJ$216,M$1,0)","v":90},{"$f":"VLOOKUP($A53,outcome_data!$A$6:$BJ$216,N$1,0)","v":119296},{"$f":"VLOOKUP($A53,outcome_data!$A$6:$BJ$216,O$1,0)","v":26},{"$f":"VLOOKUP($A53,outcome_data!$A$6:$BJ$216,P$1,0)","v":119296},{"$f":"VLOOKUP($A53,outcome_data!$A$6:$BJ$216,Q$1,0)","v":2404},{"$f":"VLOOKUP($A53,outcome_data!$A$6:$BJ$216,R$1,0)","v":2797},{"$f":"VLOOKUP($A53,outcome_data!$A$6:$BJ$216,S$1,0)","v":2026},{"$f":"VLOOKUP($A53,outcome_data!$A$6:$BJ$216,T$1,0)","v":2797},{"$f":"VLOOKUP($A53,outcome_data!$A$6:$BJ$216,U$1,0)","v":7817},{"$f":"VLOOKUP($A53,outcome_data!$A$6:$BJ$216,V$1,0)","v":10464},{"$f":"VLOOKUP($A53,outcome_data!$A$6:$BJ$216,W$1,0)","v":1556},{"$f":"VLOOKUP($A53,outcome_data!$A$6:$BJ$216,X$1,0)","v":2241},{"$f":"VLOOKUP($A53,outcome_data!$A$6:$BJ$216,Y$1,0)","v":574},{"$f":"VLOOKUP($A53,outcome_data!$A$6:$BJ$216,Z$1,0)","v":697},{"$f":"VLOOKUP($A53,outcome_data!$A$6:$BJ$216,AA$1,0)","v":503},{"$f":"VLOOKUP($A53,outcome_data!$A$6:$BJ$216,AB$1,0)","v":697},{"$f":"VLOOKUP($A53,outcome_data!$A$6:$BJ$216,AC$1,0)","v":876},{"$f":"VLOOKUP($A53,outcome_data!$A$6:$BJ$216,AD$1,0)","v":1031},{"$f":"VLOOKUP($A53,outcome_data!$A$6:$BJ$216,AE$1,0)","v":757},{"$f":"VLOOKUP($A53,outcome_data!$A$6:$BJ$216,AF$1,0)","v":1031}]
["02X","NHS Doncaster",{"$f":"VLOOKUP($A54,outcome_data!$A$6:$BJ$216,C$1,0)","v":224},{"$f":"VLOOKUP($A54,outcome_data!$A$6:$BJ$216,D$1,0)","v":284492},{"$f":"VLOOKUP($A54,outcome_data!$A$6:$BJ$216,E$1,0)","v":381},{"$f":"VLOOKUP($A54,outcome_data!$A$6:$BJ$216,F$1,0)","v":310105},{"$f":"VLOOKUP($A54,outcome_data!$A$6:$BJ$216,G$1,0)","v":1355},{"$f":"VLOOKUP($A54,outcome_data!$A$6:$BJ$216,H$1,0)","v":310105},{"$f":"VLOOKUP($A54,outcome_data!$A$6:$BJ$216,I$1,0)","v":380},{"$f":"VLOOKUP($A54,outcome_data!$A$6:$BJ$216,J$1,0)","v":310105},{"$f":"VLOOKUP($A54,outcome_data!$A$6:$BJ$216,K$1,0)","v":808},{"$f":"VLOOKUP($A54,outcome_data!$A$6:$BJ$216,L$1,0)","v":310105},{"$f":"VLOOKUP($A54,outcome_data!$A$6:$BJ$216,M$1,0)","v":273},{"$f":"VLOOKUP($A54,outcome_data!$A$6:$BJ$216,N$1,0)","v":310105},{"$f":"VLOOKUP($A54,outcome_data!$A$6:$BJ$216,O$1,0)","v":88},{"$f":"VLOOKUP($A54,outcome_data!$A$6:$BJ$216,P$1,0)","v":310105},{"$f":"VLOOKUP($A54,outcome_data!$A$6:$BJ$216,Q$1,0)","v":11328},{"$f":"VLOOKUP($A54,outcome_data!$A$6:$BJ$216,R$1,0)","v":12649},{"$f":"VLOOKUP($A54,outcome_data!$A$6:$BJ$216,S$1,0)","v":9735},{"$f":"VLOOKUP($A54,outcome_data!$A$6:$BJ$216,T$1,0)","v":12649},{"$f":"VLOOKUP($A54,outcome_data!$A$6:$BJ$216,U$1,0)","v":37752},{"$f":"VLOOKUP($A54,outcome_data!$A$6:$BJ$216,V$1,0)","v":46893},{"$f":"VLOOKUP($A54,outcome_data!$A$6:$BJ$216,W$1,0)","v":12161},{"$f":"VLOOKUP($A54,outcome_data!$A$6:$BJ$216,X$1,0)","v":15891},{"$f":"VLOOKUP($A54,outcome_data!$A$6:$BJ$216,Y$1,0)","v":2357},{"$f":"VLOOKUP($A54,outcome_data!$A$6:$BJ$216,Z$1,0)","v":2698},{"$f":"VLOOKUP($A54,outcome_data!$A$6:$BJ$216,AA$1,0)","v":2015},{"$f":"VLOOKUP($A54,outcome_data!$A$6:$BJ$216,AB$1,0)","v":2698},{"$f":"VLOOKUP($A54,outcome_data!$A$6:$BJ$216,AC$1,0)","v":5525},{"$f":"VLOOKUP($A54,outcome_data!$A$6:$BJ$216,AD$1,0)","v":6314},{"$f":"VLOOKUP($A54,outcome_data!$A$6:$BJ$216,AE$1,0)","v":4658},{"$f":"VLOOKUP($A54,outcome_data!$A$6:$BJ$216,AF$1,0)","v":6314}]
["02Y","NHS East Riding Of Yorkshire",{"$f":"VLOOKUP($A55,outcome_data!$A$6:$BJ$216,C$1,0)","v":207},{"$f":"VLOOKUP($A55,outcome_data!$A$6:$BJ$216,D$1,0)","v":270065},{"$f":"VLOOKUP($A55,outcome_data!$A$6:$BJ$216,E$1,0)","v":529},{"$f":"VLOOKUP($A55,outcome_data!$A$6:$BJ$216,F$1,0)","v":300944},{"$f":"VLOOKUP($A55,outcome_data!$A$6:$BJ$216,G$1,0)","v":2195},{"$f":"VLOOKUP($A55,outcome_data!$A$6:$BJ$216,H$1,0)","v":300944},{"$f":"VLOOKUP($A55,outcome_data!$A$6:$BJ$216,I$1,0)","v":368},{"$f":"VLOOKUP($A55,outcome_data!$A$6:$BJ$216,J$1,0)","v":300944},{"$f":"VLOOKUP($A55,outcome_data!$A$6:$BJ$216,K$1,0)","v":1162},{"$f":"VLOOKUP($A55,outcome_data!$A$6:$BJ$216,L$1,0)","v":300944},{"$f":"VLOOKUP($A55,outcome_data!$A$6:$BJ$216,M$1,0)","v":537},{"$f":"VLOOKUP($A55,outcome_data!$A$6:$BJ$216,N$1,0)","v":300944},{"$f":"VLOOKUP($A55,outcome_data!$A$6:$BJ$216,O$1,0)","v":104},{"$f":"VLOOKUP($A55,outcome_data!$A$6:$BJ$216,P$1,0)","v":300944},{"$f":"VLOOKUP($A55,outcome_data!$A$6:$BJ$216,Q$1,0)","v":12749},{"$f":"VLOOKUP($A55,outcome_data!$A$6:$BJ$216,R$1,0)","v":14447},{"$f":"VLOOKUP($A55,outcome_data!$A$6:$BJ$216,S$1,0)","v":10421},{"$f":"VLOOKUP($A55,outcome_data!$A$6:$BJ$216,T$1,0)","v":14447},{"$f":"VLOOKUP($A55,outcome_data!$A$6:$BJ$216,U$1,0)","v":38013},{"$f":"VLOOKUP($A55,outcome_data!$A$6:$BJ$216,V$1,0)","v":49095},{"$f":"VLOOKUP($A55,outcome_data!$A$6:$BJ$216,W$1,0)","v":8911},{"$f":"VLOOKUP($A55,outcome_data!$A$6:$BJ$216,X$1,0)","v":12452},{"$f":"VLOOKUP($A55,outcome_data!$A$6:$BJ$216,Y$1,0)","v":1904},{"$f":"VLOOKUP($A55,outcome_data!$A$6:$BJ$216,Z$1,0)","v":2244},{"$f":"VLOOKUP($A55,outcome_data!$A$6:$BJ$216,AA$1,0)","v":1498},{"$f":"VLOOKUP($A55,outcome_data!$A$6:$BJ$216,AB$1,0)","v":2244},{"$f":"VLOOKUP($A55,outcome_data!$A$6:$BJ$216,AC$1,0)","v":5375},{"$f":"VLOOKUP($A55,outcome_data!$A$6:$BJ$216,AD$1,0)","v":6230},{"$f":"VLOOKUP($A55,outcome_data!$A$6:$BJ$216,AE$1,0)","v":4185},{"$f":"VLOOKUP($A55,outcome_data!$A$6:$BJ$216,AF$1,0)","v":6230}]
["03A","NHS Greater Huddersfield",{"$f":"VLOOKUP($A56,outcome_data!$A$6:$BJ$216,C$1,0)","v":135},{"$f":"VLOOKUP($A56,outcome_data!$A$6:$BJ$216,D$1,0)","v":223216},{"$f":"VLOOKUP($A56,outcome_data!$A$6:$BJ$216,E$1,0)","v":342},{"$f":"VLOOKUP($A56,outcome_data!$A$6:$BJ$216,F$1,0)","v":240650},{"$f":"VLOOKUP($A56,outcome_data!$A$6:$BJ$216,G$1,0)","v":970},{"$f":"VLOOKUP($A56,outcome_data!$A$6:$BJ$216,H$1,0)","v":240650},{"$f":"VLOOKUP($A56,outcome_data!$A$6:$BJ$216,I$1,0)","v":294},{"$f":"VLOOKUP($A56,outcome_data!$A$6:$BJ$216,J$1,0)","v":240650},{"$f":"VLOOKUP($A56,outcome_data!$A$6:$BJ$216,K$1,0)","v":535},{"$f":"VLOOKUP($A56,outcome_data!$A$6:$BJ$216,L$1,0)","v":240650},{"$f":"VLOOKUP($A56,outcome_data!$A$6:$BJ$216,M$1,0)","v":296},{"$f":"VLOOKUP($A56,outcome_data!$A$6:$BJ$216,N$1,0)","v":240650},{"$f":"VLOOKUP($A56,outcome_data!$A$6:$BJ$216,O$1,0)","v":59},{"$f":"VLOOKUP($A56,outcome_data!$A$6:$BJ$216,P$1,0)","v":240650},{"$f":"VLOOKUP($A56,outcome_data!$A$6:$BJ$216,Q$1,0)","v":7620},{"$f":"VLOOKUP($A56,outcome_data!$A$6:$BJ$216,R$1,0)","v":8749},{"$f":"VLOOKUP($A56,outcome_data!$A$6:$BJ$216,S$1,0)","v":6234},{"$f":"VLOOKUP($A56,outcome_data!$A$6:$BJ$216,T$1,0)","v":8735},{"$f":"VLOOKUP($A56,outcome_data!$A$6:$BJ$216,U$1,0)","v":23747},{"$f":"VLOOKUP($A56,outcome_data!$A$6:$BJ$216,V$1,0)","v":30912},{"$f":"VLOOKUP($A56,outcome_data!$A$6:$BJ$216,W$1,0)","v":5060},{"$f":"VLOOKUP($A56,outcome_data!$A$6:$BJ$216,X$1,0)","v":7315},{"$f":"VLOOKUP($A56,outcome_data!$A$6:$BJ$216,Y$1,0)","v":1512},{"$f":"VLOOKUP($A56,outcome_data!$A$6:$BJ$216,Z$1,0)","v":1813},{"$f":"VLOOKUP($A56,outcome_data!$A$6:$BJ$216,AA$1,0)","v":1205},{"$f":"VLOOKUP($A56,outcome_data!$A$6:$BJ$216,AB$1,0)","v":1812},{"$f":"VLOOKUP($A56,outcome_data!$A$6:$BJ$216,AC$1,0)","v":3517},{"$f":"VLOOKUP($A56,outcome_data!$A$6:$BJ$216,AD$1,0)","v":4164},{"$f":"VLOOKUP($A56,outcome_data!$A$6:$BJ$216,AE$1,0)","v":2808},{"$f":"VLOOKUP($A56,outcome_data!$A$6:$BJ$216,AF$1,0)","v":4155}]
["03C","NHS Leeds West",{"$f":"VLOOKUP($A57,outcome_data!$A$6:$BJ$216,C$1,0)","v":192},{"$f":"VLOOKUP($A57,outcome_data!$A$6:$BJ$216,D$1,0)","v":337601},{"$f":"VLOOKUP($A57,outcome_data!$A$6:$BJ$216,E$1,0)","v":456},{"$f":"VLOOKUP($A57,outcome_data!$A$6:$BJ$216,F$1,0)","v":360907},{"$f":"VLOOKUP($A57,outcome_data!$A$6:$BJ$216,G$1,0)","v":1056},{"$f":"VLOOKUP($A57,outcome_data!$A$6:$BJ$216,H$1,0)","v":360907},{"$f":"VLOOKUP($A57,outcome_data!$A$6:$BJ$216,I$1,0)","v":385},{"$f":"VLOOKUP($A57,outcome_data!$A$6:$BJ$216,J$1,0)","v":360907},{"$f":"VLOOKUP($A57,outcome_data!$A$6:$BJ$216,K$1,0)","v":624},{"$f":"VLOOKUP($A57,outcome_data!$A$6:$BJ$216,L$1,0)","v":360907},{"$f":"VLOOKUP($A57,outcome_data!$A$6:$BJ$216,M$1,0)","v":333},{"$f":"VLOOKUP($A57,outcome_data!$A$6:$BJ$216,N$1,0)","v":360907},{"$f":"VLOOKUP($A57,outcome_data!$A$6:$BJ$216,O$1,0)","v":84},{"$f":"VLOOKUP($A57,outcome_data!$A$6:$BJ$216,P$1,0)","v":360907},{"$f":"VLOOKUP($A57,outcome_data!$A$6:$BJ$216,Q$1,0)","v":9821},{"$f":"VLOOKUP($A57,outcome_data!$A$6:$BJ$216,R$1,0)","v":11063},{"$f":"VLOOKUP($A57,outcome_data!$A$6:$BJ$216,S$1,0)","v":8223},{"$f":"VLOOKUP($A57,outcome_data!$A$6:$BJ$216,T$1,0)","v":11063},{"$f":"VLOOKUP($A57,outcome_data!$A$6:$BJ$216,U$1,0)","v":30618},{"$f":"VLOOKUP($A57,outcome_data!$A$6:$BJ$216,V$1,0)","v":39439},{"$f":"VLOOKUP($A57,outcome_data!$A$6:$BJ$216,W$1,0)","v":6820},{"$f":"VLOOKUP($A57,outcome_data!$A$6:$BJ$216,X$1,0)","v":9587},{"$f":"VLOOKUP($A57,outcome_data!$A$6:$BJ$216,Y$1,0)","v":2145},{"$f":"VLOOKUP($A57,outcome_data!$A$6:$BJ$216,Z$1,0)","v":2514},{"$f":"VLOOKUP($A57,outcome_data!$A$6:$BJ$216,AA$1,0)","v":1743},{"$f":"VLOOKUP($A57,outcome_data!$A$6:$BJ$216,AB$1,0)","v":2514},{"$f":"VLOOKUP($A57,outcome_data!$A$6:$BJ$216,AC$1,0)","v":4639},{"$f":"VLOOKUP($A57,outcome_data!$A$6:$BJ$216,AD$1,0)","v":5368},{"$f":"VLOOKUP($A57,outcome_data!$A$6:$BJ$216,AE$1,0)","v":3742},{"$f":"VLOOKUP($A57,outcome_data!$A$6:$BJ$216,AF$1,0)","v":5368}]
["03D","NHS Hambleton, Richmondshire and Whitby",{"$f":"VLOOKUP($A58,outcome_data!$A$6:$BJ$216,C$1,0)","v":80},{"$f":"VLOOKUP($A58,outcome_data!$A$6:$BJ$216,D$1,0)","v":127653},{"$f":"VLOOKUP($A58,outcome_data!$A$6:$BJ$216,E$1,0)","v":366},{"$f":"VLOOKUP($A58,outcome_data!$A$6:$BJ$216,F$1,0)","v":142072},{"$f":"VLOOKUP($A58,outcome_data!$A$6:$BJ$216,G$1,0)","v":612},{"$f":"VLOOKUP($A58,outcome_data!$A$6:$BJ$216,H$1,0)","v":142072},{"$f":"VLOOKUP($A58,outcome_data!$A$6:$BJ$216,I$1,0)","v":151},{"$f":"VLOOKUP($A58,outcome_data!$A$6:$BJ$216,J$1,0)","v":142072},{"$f":"VLOOKUP($A58,outcome_data!$A$6:$BJ$216,K$1,0)","v":507},{"$f":"VLOOKUP($A58,outcome_data!$A$6:$BJ$216,L$1,0)","v":142072},{"$f":"VLOOKUP($A58,outcome_data!$A$6:$BJ$216,M$1,0)","v":174},{"$f":"VLOOKUP($A58,outcome_data!$A$6:$BJ$216,N$1,0)","v":142072},{"$f":"VLOOKUP($A58,outcome_data!$A$6:$BJ$216,O$1,0)","v":67},{"$f":"VLOOKUP($A58,outcome_data!$A$6:$BJ$216,P$1,0)","v":142072},{"$f":"VLOOKUP($A58,outcome_data!$A$6:$BJ$216,Q$1,0)","v":5356},{"$f":"VLOOKUP($A58,outcome_data!$A$6:$BJ$216,R$1,0)","v":5994},{"$f":"VLOOKUP($A58,outcome_data!$A$6:$BJ$216,S$1,0)","v":4493},{"$f":"VLOOKUP($A58,outcome_data!$A$6:$BJ$216,T$1,0)","v":5994},{"$f":"VLOOKUP($A58,outcome_data!$A$6:$BJ$216,U$1,0)","v":17812},{"$f":"VLOOKUP($A58,outcome_data!$A$6:$BJ$216,V$1,0)","v":22162},{"$f":"VLOOKUP($A58,outcome_data!$A$6:$BJ$216,W$1,0)","v":3037},{"$f":"VLOOKUP($A58,outcome_data!$A$6:$BJ$216,X$1,0)","v":4256},{"$f":"VLOOKUP($A58,outcome_data!$A$6:$BJ$216,Y$1,0)","v":964},{"$f":"VLOOKUP($A58,outcome_data!$A$6:$BJ$216,Z$1,0)","v":1137},{"$f":"VLOOKUP($A58,outcome_data!$A$6:$BJ$216,AA$1,0)","v":774},{"$f":"VLOOKUP($A58,outcome_data!$A$6:$BJ$216,AB$1,0)","v":1137},{"$f":"VLOOKUP($A58,outcome_data!$A$6:$BJ$216,AC$1,0)","v":2858},{"$f":"VLOOKUP($A58,outcome_data!$A$6:$BJ$216,AD$1,0)","v":3279},{"$f":"VLOOKUP($A58,outcome_data!$A$6:$BJ$216,AE$1,0)","v":2270},{"$f":"VLOOKUP($A58,outcome_data!$A$6:$BJ$216,AF$1,0)","v":3279}]
["03E","NHS Harrogate and Rural District",{"$f":"VLOOKUP($A59,outcome_data!$A$6:$BJ$216,C$1,0)","v":78},{"$f":"VLOOKUP($A59,outcome_data!$A$6:$BJ$216,D$1,0)","v":144343},{"$f":"VLOOKUP($A59,outcome_data!$A$6:$BJ$216,E$1,0)","v":287},{"$f":"VLOOKUP($A59,outcome_data!$A$6:$BJ$216,F$1,0)","v":159805},{"$f":"VLOOKUP($A59,outcome_data!$A$6:$BJ$216,G$1,0)","v":1022},{"$f":"VLOOKUP($A59,outcome_data!$A$6:$BJ$216,H$1,0)","v":159805},{"$f":"VLOOKUP($A59,outcome_data!$A$6:$BJ$216,I$1,0)","v":148},{"$f":"VLOOKUP($A59,outcome_data!$A$6:$BJ$216,J$1,0)","v":159805},{"$f":"VLOOKUP($A59,outcome_data!$A$6:$BJ$216,K$1,0)","v":550},{"$f":"VLOOKUP($A59,outcome_data!$A$6:$BJ$216,L$1,0)","v":159805},{"$f":"VLOOKUP($A59,outcome_data!$A$6:$BJ$216,M$1,0)","v":227},{"$f":"VLOOKUP($A59,outcome_data!$A$6:$BJ$216,N$1,0)","v":159805},{"$f":"VLOOKUP($A59,outcome_data!$A$6:$BJ$216,O$1,0)","v":28},{"$f":"VLOOKUP($A59,outcome_data!$A$6:$BJ$216,P$1,0)","v":159805},{"$f":"VLOOKUP($A59,outcome_data!$A$6:$BJ$216,Q$1,0)","v":5775},{"$f":"VLOOKUP($A59,outcome_data!$A$6:$BJ$216,R$1,0)","v":6399},{"$f":"VLOOKUP($A59,outcome_data!$A$6:$BJ$216,S$1,0)","v":4549},{"$f":"VLOOKUP($A59,outcome_data!$A$6:$BJ$216,T$1,0)","v":6399},{"$f":"VLOOKUP($A59,outcome_data!$A$6:$BJ$216,U$1,0)","v":18611},{"$f":"VLOOKUP($A59,outcome_data!$A$6:$BJ$216,V$1,0)","v":23586},{"$f":"VLOOKUP($A59,outcome_data!$A$6:$BJ$216,W$1,0)","v":3945},{"$f":"VLOOKUP($A59,outcome_data!$A$6:$BJ$216,X$1,0)","v":5382},{"$f":"VLOOKUP($A59,outcome_data!$A$6:$BJ$216,Y$1,0)","v":1080},{"$f":"VLOOKUP($A59,outcome_data!$A$6:$BJ$216,Z$1,0)","v":1236},{"$f":"VLOOKUP($A59,outcome_data!$A$6:$BJ$216,AA$1,0)","v":823},{"$f":"VLOOKUP($A59,outcome_data!$A$6:$BJ$216,AB$1,0)","v":1236},{"$f":"VLOOKUP($A59,outcome_data!$A$6:$BJ$216,AC$1,0)","v":2898},{"$f":"VLOOKUP($A59,outcome_data!$A$6:$BJ$216,AD$1,0)","v":3335},{"$f":"VLOOKUP($A59,outcome_data!$A$6:$BJ$216,AE$1,0)","v":2191},{"$f":"VLOOKUP($A59,outcome_data!$A$6:$BJ$216,AF$1,0)","v":3335}]
["03F","NHS Hull",{"$f":"VLOOKUP($A60,outcome_data!$A$6:$BJ$216,C$1,0)","v":199},{"$f":"VLOOKUP($A60,outcome_data!$A$6:$BJ$216,D$1,0)","v":269479},{"$f":"VLOOKUP($A60,outcome_data!$A$6:$BJ$216,E$1,0)","v":353},{"$f":"VLOOKUP($A60,outcome_data!$A$6:$BJ$216,F$1,0)","v":290383},{"$f":"VLOOKUP($A60,outcome_data!$A$6:$BJ$216,G$1,0)","v":1952},{"$f":"VLOOKUP($A60,outcome_data!$A$6:$BJ$216,H$1,0)","v":290383},{"$f":"VLOOKUP($A60,outcome_data!$A$6:$BJ$216,I$1,0)","v":321},{"$f":"VLOOKUP($A60,outcome_data!$A$6:$BJ$216,J$1,0)","v":290383},{"$f":"VLOOKUP($A60,outcome_data!$A$6:$BJ$216,K$1,0)","v":1013},{"$f":"VLOOKUP($A60,outcome_data!$A$6:$BJ$216,L$1,0)","v":290383},{"$f":"VLOOKUP($A60,outcome_data!$A$6:$BJ$216,M$1,0)","v":483},{"$f":"VLOOKUP($A60,outcome_data!$A$6:$BJ$216,N$1,0)","v":290383},{"$f":"VLOOKUP($A60,outcome_data!$A$6:$BJ$216,O$1,0)","v":70},{"$f":"VLOOKUP($A60,outcome_data!$A$6:$BJ$216,P$1,0)","v":290383},{"$f":"VLOOKUP($A60,outcome_data!$A$6:$BJ$216,Q$1,0)","v":9888},{"$f":"VLOOKUP($A60,outcome_data!$A$6:$BJ$216,R$1,0)","v":11368},{"$f":"VLOOKUP($A60,outcome_data!$A$6:$BJ$216,S$1,0)","v":7856},{"$f":"VLOOKUP($A60,outcome_data!$A$6:$BJ$216,T$1,0)","v":11368},{"$f":"VLOOKUP($A60,outcome_data!$A$6:$BJ$216,U$1,0)","v":31092},{"$f":"VLOOKUP($A60,outcome_data!$A$6:$BJ$216,V$1,0)","v":40119},{"$f":"VLOOKUP($A60,outcome_data!$A$6:$BJ$216,W$1,0)","v":6806},{"$f":"VLOOKUP($A60,outcome_data!$A$6:$BJ$216,X$1,0)","v":9684},{"$f":"VLOOKUP($A60,outcome_data!$A$6:$BJ$216,Y$1,0)","v":1488},{"$f":"VLOOKUP($A60,outcome_data!$A$6:$BJ$216,Z$1,0)","v":1752},{"$f":"VLOOKUP($A60,outcome_data!$A$6:$BJ$216,AA$1,0)","v":1153},{"$f":"VLOOKUP($A60,outcome_data!$A$6:$BJ$216,AB$1,0)","v":1752},{"$f":"VLOOKUP($A60,outcome_data!$A$6:$BJ$216,AC$1,0)","v":3885},{"$f":"VLOOKUP($A60,outcome_data!$A$6:$BJ$216,AD$1,0)","v":4593},{"$f":"VLOOKUP($A60,outcome_data!$A$6:$BJ$216,AE$1,0)","v":2951},{"$f":"VLOOKUP($A60,outcome_data!$A$6:$BJ$216,AF$1,0)","v":4593}]
["03G","NHS Leeds South and East",{"$f":"VLOOKUP($A61,outcome_data!$A$6:$BJ$216,C$1,0)","v":179},{"$f":"VLOOKUP($A61,outcome_data!$A$6:$BJ$216,D$1,0)","v":245335},{"$f":"VLOOKUP($A61,outcome_data!$A$6:$BJ$216,E$1,0)","v":390},{"$f":"VLOOKUP($A61,outcome_data!$A$6:$BJ$216,F$1,0)","v":263271},{"$f":"VLOOKUP($A61,outcome_data!$A$6:$BJ$216,G$1,0)","v":885},{"$f":"VLOOKUP($A61,outcome_data!$A$6:$BJ$216,H$1,0)","v":263271},{"$f":"VLOOKUP($A61,outcome_data!$A$6:$BJ$216,I$1,0)","v":371},{"$f":"VLOOKUP($A61,outcome_data!$A$6:$BJ$216,J$1,0)","v":263271},{"$f":"VLOOKUP($A61,outcome_data!$A$6:$BJ$216,K$1,0)","v":516},{"$f":"VLOOKUP($A61,outcome_data!$A$6:$BJ$216,L$1,0)","v":263271},{"$f":"VLOOKUP($A61,outcome_data!$A$6:$BJ$216,M$1,0)","v":295},{"$f":"VLOOKUP($A61,outcome_data!$A$6:$BJ$216,N$1,0)","v":263271},{"$f":"VLOOKUP($A61,outcome_data!$A$6:$BJ$216,O$1,0)","v":59},{"$f":"VLOOKUP($A61,outcome_data!$A$6:$BJ$216,P$1,0)","v":263271},{"$f":"VLOOKUP($A61,outcome_data!$A$6:$BJ$216,Q$1,0)","v":8964},{"$f":"VLOOKUP($A61,outcome_data!$A$6:$BJ$216,R$1,0)","v":10009},{"$f":"VLOOKUP($A61,outcome_data!$A$6:$BJ$216,S$1,0)","v":7324},{"$f":"VLOOKUP($A61,outcome_data!$A$6:$BJ$216,T$1,0)","v":10009},{"$f":"VLOOKUP($A61,outcome_data!$A$6:$BJ$216,U$1,0)","v":26794},{"$f":"VLOOKUP($A61,outcome_data!$A$6:$BJ$216,V$1,0)","v":34505},{"$f":"VLOOKUP($A61,outcome_data!$A$6:$BJ$216,W$1,0)","v":6246},{"$f":"VLOOKUP($A61,outcome_data!$A$6:$BJ$216,X$1,0)","v":8350},{"$f":"VLOOKUP($A61,outcome_data!$A$6:$BJ$216,Y$1,0)","v":1949},{"$f":"VLOOKUP($A61,outcome_data!$A$6:$BJ$216,Z$1,0)","v":2272},{"$f":"VLOOKUP($A61,outcome_data!$A$6:$BJ$216,AA$1,0)","v":1588},{"$f":"VLOOKUP($A61,outcome_data!$A$6:$BJ$216,AB$1,0)","v":2272},{"$f":"VLOOKUP($A61,outcome_data!$A$6:$BJ$216,AC$1,0)","v":4229},{"$f":"VLOOKUP($A61,outcome_data!$A$6:$BJ$216,AD$1,0)","v":4864},{"$f":"VLOOKUP($A61,outcome_data!$A$6:$BJ$216,AE$1,0)","v":3306},{"$f":"VLOOKUP($A61,outcome_data!$A$6:$BJ$216,AF$1,0)","v":4864}]
["03H","NHS North East Lincolnshire",{"$f":"VLOOKUP($A62,outcome_data!$A$6:$BJ$216,C$1,0)","v":122},{"$f":"VLOOKUP($A62,outcome_data!$A$6:$BJ$216,D$1,0)","v":153818},{"$f":"VLOOKUP($A62,outcome_data!$A$6:$BJ$216,E$1,0)","v":220},{"$f":"VLOOKUP($A62,outcome_data!$A$6:$BJ$216,F$1,0)","v":168197},{"$f":"VLOOKUP($A62,outcome_data!$A$6:$BJ$216,G$1,0)","v":1060},{"$f":"VLOOKUP($A62,outcome_data!$A$6:$BJ$216,H$1,0)","v":168197},{"$f":"VLOOKUP($A62,outcome_data!$A$6:$BJ$216,I$1,0)","v":199},{"$f":"VLOOKUP($A62,outcome_data!$A$6:$BJ$216,J$1,0)","v":168197},{"$f":"VLOOKUP($A62,outcome_data!$A$6:$BJ$216,K$1,0)","v":632},{"$f":"VLOOKUP($A62,outcome_data!$A$6:$BJ$216,L$1,0)","v":168197},{"$f":"VLOOKUP($A62,outcome_data!$A$6:$BJ$216,M$1,0)","v":218},{"$f":"VLOOKUP($A62,outcome_data!$A$6:$BJ$216,N$1,0)","v":168197},{"$f":"VLOOKUP($A62,outcome_data!$A$6:$BJ$216,O$1,0)","v":42},{"$f":"VLOOKUP($A62,outcome_data!$A$6:$BJ$216,P$1,0)","v":168197},{"$f":"VLOOKUP($A62,outcome_data!$A$6:$BJ$216,Q$1,0)","v":6263},{"$f":"VLOOKUP($A62,outcome_data!$A$6:$BJ$216,R$1,0)","v":6866},{"$f":"VLOOKUP($A62,outcome_data!$A$6:$BJ$216,S$1,0)","v":5303},{"$f":"VLOOKUP($A62,outcome_data!$A$6:$BJ$216,T$1,0)","v":6866},{"$f":"VLOOKUP($A62,outcome_data!$A$6:$BJ$216,U$1,0)","v":21727},{"$f":"VLOOKUP($A62,outcome_data!$A$6:$BJ$216,V$1,0)","v":26881},{"$f":"VLOOKUP($A62,outcome_data!$A$6:$BJ$216,W$1,0)","v":5559},{"$f":"VLOOKUP($A62,outcome_data!$A$6:$BJ$216,X$1,0)","v":7312},{"$f":"VLOOKUP($A62,outcome_data!$A$6:$BJ$216,Y$1,0)","v":1263},{"$f":"VLOOKUP($A62,outcome_data!$A$6:$BJ$216,Z$1,0)","v":1413},{"$f":"VLOOKUP($A62,outcome_data!$A$6:$BJ$216,AA$1,0)","v":1088},{"$f":"VLOOKUP($A62,outcome_data!$A$6:$BJ$216,AB$1,0)","v":1413},{"$f":"VLOOKUP($A62,outcome_data!$A$6:$BJ$216,AC$1,0)","v":3134},{"$f":"VLOOKUP($A62,outcome_data!$A$6:$BJ$216,AD$1,0)","v":3536},{"$f":"VLOOKUP($A62,outcome_data!$A$6:$BJ$216,AE$1,0)","v":2552},{"$f":"VLOOKUP($A62,outcome_data!$A$6:$BJ$216,AF$1,0)","v":3536}]
["03J","NHS North Kirklees",{"$f":"VLOOKUP($A63,outcome_data!$A$6:$BJ$216,C$1,0)","v":127},{"$f":"VLOOKUP($A63,outcome_data!$A$6:$BJ$216,D$1,0)","v":174635},{"$f":"VLOOKUP($A63,outcome_data!$A$6:$BJ$216,E$1,0)","v":268},{"$f":"VLOOKUP($A63,outcome_data!$A$6:$BJ$216,F$1,0)","v":186789},{"$f":"VLOOKUP($A63,outcome_data!$A$6:$BJ$216,G$1,0)","v":984},{"$f":"VLOOKUP($A63,outcome_data!$A$6:$BJ$216,H$1,0)","v":186789},{"$f":"VLOOKUP($A63,outcome_data!$A$6:$BJ$216,I$1,0)","v":227},{"$f":"VLOOKUP($A63,outcome_data!$A$6:$BJ$216,J$1,0)","v":186789},{"$f":"VLOOKUP($A63,outcome_data!$A$6:$BJ$216,K$1,0)","v":469},{"$f":"VLOOKUP($A63,outcome_data!$A$6:$BJ$216,L$1,0)","v":186789},{"$f":"VLOOKUP($A63,outcome_data!$A$6:$BJ$216,M$1,0)","v":198},{"$f":"VLOOKUP($A63,outcome_data!$A$6:$BJ$216,N$1,0)","v":186789},{"$f":"VLOOKUP($A63,outcome_data!$A$6:$BJ$216,O$1,0)","v":66},{"$f":"VLOOKUP($A63,outcome_data!$A$6:$BJ$216,P$1,0)","v":186789},{"$f":"VLOOKUP($A63,outcome_data!$A$6:$BJ$216,Q$1,0)","v":6532},{"$f":"VLOOKUP($A63,outcome_data!$A$6:$BJ$216,R$1,0)","v":7395},{"$f":"VLOOKUP($A63,outcome_data!$A$6:$BJ$216,S$1,0)","v":5519},{"$f":"VLOOKUP($A63,outcome_data!$A$6:$BJ$216,T$1,0)","v":7395},{"$f":"VLOOKUP($A63,outcome_data!$A$6:$BJ$216,U$1,0)","v":20754},{"$f":"VLOOKUP($A63,outcome_data!$A$6:$BJ$216,V$1,0)","v":26892},{"$f":"VLOOKUP($A63,outcome_data!$A$6:$BJ$216,W$1,0)","v":4807},{"$f":"VLOOKUP($A63,outcome_data!$A$6:$BJ$216,X$1,0)","v":6835},{"$f":"VLOOKUP($A63,outcome_data!$A$6:$BJ$216,Y$1,0)","v":1118},{"$f":"VLOOKUP($A63,outcome_data!$A$6:$BJ$216,Z$1,0)","v":1289},{"$f":"VLOOKUP($A63,outcome_data!$A$6:$BJ$216,AA$1,0)","v":892},{"$f":"VLOOKUP($A63,outcome_data!$A$6:$BJ$216,AB$1,0)","v":1289},{"$f":"VLOOKUP($A63,outcome_data!$A$6:$BJ$216,AC$1,0)","v":2535},{"$f":"VLOOKUP($A63,outcome_data!$A$6:$BJ$216,AD$1,0)","v":2969},{"$f":"VLOOKUP($A63,outcome_data!$A$6:$BJ$216,AE$1,0)","v":2079},{"$f":"VLOOKUP($A63,outcome_data!$A$6:$BJ$216,AF$1,0)","v":2969}]
["03K","NHS North Lincolnshire",{"$f":"VLOOKUP($A64,outcome_data!$A$6:$BJ$216,C$1,0)","v":126},{"$f":"VLOOKUP($A64,outcome_data!$A$6:$BJ$216,D$1,0)","v":155265},{"$f":"VLOOKUP($A64,outcome_data!$A$6:$BJ$216,E$1,0)","v":186},{"$f":"VLOOKUP($A64,outcome_data!$A$6:$BJ$216,F$1,0)","v":169743},{"$f":"VLOOKUP($A64,outcome_data!$A$6:$BJ$216,G$1,0)","v":1353},{"$f":"VLOOKUP($A64,outcome_data!$A$6:$BJ$216,H$1,0)","v":169743},{"$f":"VLOOKUP($A64,outcome_data!$A$6:$BJ$216,I$1,0)","v":197},{"$f":"VLOOKUP($A64,outcome_data!$A$6:$BJ$216,J$1,0)","v":169743},{"$f":"VLOOKUP($A64,outcome_data!$A$6:$BJ$216,K$1,0)","v":758},{"$f":"VLOOKUP($A64,outcome_data!$A$6:$BJ$216,L$1,0)","v":169743},{"$f":"VLOOKUP($A64,outcome_data!$A$6:$BJ$216,M$1,0)","v":310},{"$f":"VLOOKUP($A64,outcome_data!$A$6:$BJ$216,N$1,0)","v":169743},{"$f":"VLOOKUP($A64,outcome_data!$A$6:$BJ$216,O$1,0)","v":61},{"$f":"VLOOKUP($A64,outcome_data!$A$6:$BJ$216,P$1,0)","v":169743},{"$f":"VLOOKUP($A64,outcome_data!$A$6:$BJ$216,Q$1,0)","v":6955},{"$f":"VLOOKUP($A64,outcome_data!$A$6:$BJ$216,R$1,0)","v":7766},{"$f":"VLOOKUP($A64,outcome_data!$A$6:$BJ$216,S$1,0)","v":5555},{"$f":"VLOOKUP($A64,outcome_data!$A$6:$BJ$216,T$1,0)","v":7766},{"$f":"VLOOKUP($A64,outcome_data!$A$6:$BJ$216,U$1,0)","v":22257},{"$f":"VLOOKUP($A64,outcome_data!$A$6:$BJ$216,V$1,0)","v":28337},{"$f":"VLOOKUP($A64,outcome_data!$A$6:$BJ$216,W$1,0)","v":4781},{"$f":"VLOOKUP($A64,outcome_data!$A$6:$BJ$216,X$1,0)","v":6470},{"$f":"VLOOKUP($A64,outcome_data!$A$6:$BJ$216,Y$1,0)","v":950},{"$f":"VLOOKUP($A64,outcome_data!$A$6:$BJ$216,Z$1,0)","v":1103},{"$f":"VLOOKUP($A64,outcome_data!$A$6:$BJ$216,AA$1,0)","v":742},{"$f":"VLOOKUP($A64,outcome_data!$A$6:$BJ$216,AB$1,0)","v":1103},{"$f":"VLOOKUP($A64,outcome_data!$A$6:$BJ$216,AC$1,0)","v":2929},{"$f":"VLOOKUP($A64,outcome_data!$A$6:$BJ$216,AD$1,0)","v":3362},{"$f":"VLOOKUP($A64,outcome_data!$A$6:$BJ$216,AE$1,0)","v":2337},{"$f":"VLOOKUP($A64,outcome_data!$A$6:$BJ$216,AF$1,0)","v":3362}]
["03L","NHS Rotherham",{"$f":"VLOOKUP($A65,outcome_data!$A$6:$BJ$216,C$1,0)","v":177},{"$f":"VLOOKUP($A65,outcome_data!$A$6:$BJ$216,D$1,0)","v":236637},{"$f":"VLOOKUP($A65,outcome_data!$A$6:$BJ$216,E$1,0)","v":392},{"$f":"VLOOKUP($A65,outcome_data!$A$6:$BJ$216,F$1,0)","v":256641},{"$f":"VLOOKUP($A65,outcome_data!$A$6:$BJ$216,G$1,0)","v":1303},{"$f":"VLOOKUP($A65,outcome_data!$A$6:$BJ$216,H$1,0)","v":256641},{"$f":"VLOOKUP($A65,outcome_data!$A$6:$BJ$216,I$1,0)","v":297},{"$f":"VLOOKUP($A65,outcome_data!$A$6:$BJ$216,J$1,0)","v":256641},{"$f":"VLOOKUP($A65,outcome_data!$A$6:$BJ$216,K$1,0)","v":647},{"$f":"VLOOKUP($A65,outcome_data!$A$6:$BJ$216,L$1,0)","v":256641},{"$f":"VLOOKUP($A65,outcome_data!$A$6:$BJ$216,M$1,0)","v":193},{"$f":"VLOOKUP($A65,outcome_data!$A$6:$BJ$216,N$1,0)","v":256641},{"$f":"VLOOKUP($A65,outcome_data!$A$6:$BJ$216,O$1,0)","v":90},{"$f":"VLOOKUP($A65,outcome_data!$A$6:$BJ$216,P$1,0)","v":256641},{"$f":"VLOOKUP($A65,outcome_data!$A$6:$BJ$216,Q$1,0)","v":10206},{"$f":"VLOOKUP($A65,outcome_data!$A$6:$BJ$216,R$1,0)","v":11393},{"$f":"VLOOKUP($A65,outcome_data!$A$6:$BJ$216,S$1,0)","v":8589},{"$f":"VLOOKUP($A65,outcome_data!$A$6:$BJ$216,T$1,0)","v":11393},{"$f":"VLOOKUP($A65,outcome_data!$A$6:$BJ$216,U$1,0)","v":31919},{"$f":"VLOOKUP($A65,outcome_data!$A$6:$BJ$216,V$1,0)","v":40453},{"$f":"VLOOKUP($A65,outcome_data!$A$6:$BJ$216,W$1,0)","v":7375},{"$f":"VLOOKUP($A65,outcome_data!$A$6:$BJ$216,X$1,0)","v":10297},{"$f":"VLOOKUP($A65,outcome_data!$A$6:$BJ$216,Y$1,0)","v":1908},{"$f":"VLOOKUP($A65,outcome_data!$A$6:$BJ$216,Z$1,0)","v":2196},{"$f":"VLOOKUP($A65,outcome_data!$A$6:$BJ$216,AA$1,0)","v":1622},{"$f":"VLOOKUP($A65,outcome_data!$A$6:$BJ$216,AB$1,0)","v":2196},{"$f":"VLOOKUP($A65,outcome_data!$A$6:$BJ$216,AC$1,0)","v":4682},{"$f":"VLOOKUP($A65,outcome_data!$A$6:$BJ$216,AD$1,0)","v":5369},{"$f":"VLOOKUP($A65,outcome_data!$A$6:$BJ$216,AE$1,0)","v":3879},{"$f":"VLOOKUP($A65,outcome_data!$A$6:$BJ$216,AF$1,0)","v":5369}]
["03M","NHS Scarborough and Ryedale",{"$f":"VLOOKUP($A66,outcome_data!$A$6:$BJ$216,C$1,0)","v":114},{"$f":"VLOOKUP($A66,outcome_data!$A$6:$BJ$216,D$1,0)","v":105607},{"$f":"VLOOKUP($A66,outcome_data!$A$6:$BJ$216,E$1,0)","v":233},{"$f":"VLOOKUP($A66,outcome_data!$A$6:$BJ$216,F$1,0)","v":118176},{"$f":"VLOOKUP($A66,outcome_data!$A$6:$BJ$216,G$1,0)","v":898},{"$f":"VLOOKUP($A66,outcome_data!$A$6:$BJ$216,H$1,0)","v":118176},{"$f":"VLOOKUP($A66,outcome_data!$A$6:$BJ$216,I$1,0)","v":158},{"$f":"VLOOKUP($A66,outcome_data!$A$6:$BJ$216,J$1,0)","v":118176},{"$f":"VLOOKUP($A66,outcome_data!$A$6:$BJ$216,K$1,0)","v":421},{"$f":"VLOOKUP($A66,outcome_data!$A$6:$BJ$216,L$1,0)","v":118176},{"$f":"VLOOKUP($A66,outcome_data!$A$6:$BJ$216,M$1,0)","v":171},{"$f":"VLOOKUP($A66,outcome_data!$A$6:$BJ$216,N$1,0)","v":118176},{"$f":"VLOOKUP($A66,outcome_data!$A$6:$BJ$216,O$1,0)","v":40},{"$f":"VLOOKUP($A66,outcome_data!$A$6:$BJ$216,P$1,0)","v":118176},{"$f":"VLOOKUP($A66,outcome_data!$A$6:$BJ$216,Q$1,0)","v":5067},{"$f":"VLOOKUP($A66,outcome_data!$A$6:$BJ$216,R$1,0)","v":5777},{"$f":"VLOOKUP($A66,outcome_data!$A$6:$BJ$216,S$1,0)","v":4213},{"$f":"VLOOKUP($A66,outcome_data!$A$6:$BJ$216,T$1,0)","v":5777},{"$f":"VLOOKUP($A66,outcome_data!$A$6:$BJ$216,U$1,0)","v":14318},{"$f":"VLOOKUP($A66,outcome_data!$A$6:$BJ$216,V$1,0)","v":18649},{"$f":"VLOOKUP($A66,outcome_data!$A$6:$BJ$216,W$1,0)","v":2746},{"$f":"VLOOKUP($A66,outcome_data!$A$6:$BJ$216,X$1,0)","v":4052},{"$f":"VLOOKUP($A66,outcome_data!$A$6:$BJ$216,Y$1,0)","v":916},{"$f":"VLOOKUP($A66,outcome_data!$A$6:$BJ$216,Z$1,0)","v":1081},{"$f":"VLOOKUP($A66,outcome_data!$A$6:$BJ$216,AA$1,0)","v":703},{"$f":"VLOOKUP($A66,outcome_data!$A$6:$BJ$216,AB$1,0)","v":1081},{"$f":"VLOOKUP($A66,outcome_data!$A$6:$BJ$216,AC$1,0)","v":2253},{"$f":"VLOOKUP($A66,outcome_data!$A$6:$BJ$216,AD$1,0)","v":2704},{"$f":"VLOOKUP($A66,outcome_data!$A$6:$BJ$216,AE$1,0)","v":1815},{"$f":"VLOOKUP($A66,outcome_data!$A$6:$BJ$216,AF$1,0)","v":2704}]
["03N","NHS Sheffield",{"$f":"VLOOKUP($A67,outcome_data!$A$6:$BJ$216,C$1,0)","v":368},{"$f":"VLOOKUP($A67,outcome_data!$A$6:$BJ$216,D$1,0)","v":533963},{"$f":"VLOOKUP($A67,outcome_data!$A$6:$BJ$216,E$1,0)","v":870},{"$f":"VLOOKUP($A67,outcome_data!$A$6:$BJ$216,F$1,0)","v":578294},{"$f":"VLOOKUP($A67,outcome_data!$A$6:$BJ$216,G$1,0)","v":3359},{"$f":"VLOOKUP($A67,outcome_data!$A$6:$BJ$216,H$1,0)","v":578294},{"$f":"VLOOKUP($A67,outcome_data!$A$6:$BJ$216,I$1,0)","v":823},{"$f":"VLOOKUP($A67,outcome_data!$A$6:$BJ$216,J$1,0)","v":578294},{"$f":"VLOOKUP($A67,outcome_data!$A$6:$BJ$216,K$1,0)","v":1119},{"$f":"VLOOKUP($A67,outcome_data!$A$6:$BJ$216,L$1,0)","v":578294},{"$f":"VLOOKUP($A67,outcome_data!$A$6:$BJ$216,M$1,0)","v":547},{"$f":"VLOOKUP($A67,outcome_data!$A$6:$BJ$216,N$1,0)","v":578294},{"$f":"VLOOKUP($A67,outcome_data!$A$6:$BJ$216,O$1,0)","v":157},{"$f":"VLOOKUP($A67,outcome_data!$A$6:$BJ$216,P$1,0)","v":578294},{"$f":"VLOOKUP($A67,outcome_data!$A$6:$BJ$216,Q$1,0)","v":19363},{"$f":"VLOOKUP($A67,outcome_data!$A$6:$BJ$216,R$1,0)","v":21862},{"$f":"VLOOKUP($A67,outcome_data!$A$6:$BJ$216,S$1,0)","v":15851},{"$f":"VLOOKUP($A67,outcome_data!$A$6:$BJ$216,T$1,0)","v":21862},{"$f":"VLOOKUP($A67,outcome_data!$A$6:$BJ$216,U$1,0)","v":58549},{"$f":"VLOOKUP($A67,outcome_data!$A$6:$BJ$216,V$1,0)","v":75968},{"$f":"VLOOKUP($A67,outcome_data!$A$6:$BJ$216,W$1,0)","v":15335},{"$f":"VLOOKUP($A67,outcome_data!$A$6:$BJ$216,X$1,0)","v":21757},{"$f":"VLOOKUP($A67,outcome_data!$A$6:$BJ$216,Y$1,0)","v":3575},{"$f":"VLOOKUP($A67,outcome_data!$A$6:$BJ$216,Z$1,0)","v":4206},{"$f":"VLOOKUP($A67,outcome_data!$A$6:$BJ$216,AA$1,0)","v":2988},{"$f":"VLOOKUP($A67,outcome_data!$A$6:$BJ$216,AB$1,0)","v":4206},{"$f":"VLOOKUP($A67,outcome_data!$A$6:$BJ$216,AC$1,0)","v":10327},{"$f":"VLOOKUP($A67,outcome_data!$A$6:$BJ$216,AD$1,0)","v":11977},{"$f":"VLOOKUP($A67,outcome_data!$A$6:$BJ$216,AE$1,0)","v":8148},{"$f":"VLOOKUP($A67,outcome_data!$A$6:$BJ$216,AF$1,0)","v":11977}]
["03Q","NHS Vale Of York",{"$f":"VLOOKUP($A68,outcome_data!$A$6:$BJ$216,C$1,0)","v":220},{"$f":"VLOOKUP($A68,outcome_data!$A$6:$BJ$216,D$1,0)","v":313724},{"$f":"VLOOKUP($A68,outcome_data!$A$6:$BJ$216,E$1,0)","v":456},{"$f":"VLOOKUP($A68,outcome_data!$A$6:$BJ$216,F$1,0)","v":331817},{"$f":"VLOOKUP($A68,outcome_data!$A$6:$BJ$216,G$1,0)","v":1607},{"$f":"VLOOKUP($A68,outcome_data!$A$6:$BJ$216,H$1,0)","v":331817},{"$f":"VLOOKUP($A68,outcome_data!$A$6:$BJ$216,I$1,0)","v":356},{"$f":"VLOOKUP($A68,outcome_data!$A$6:$BJ$216,J$1,0)","v":331817},{"$f":"VLOOKUP($A68,outcome_data!$A$6:$BJ$216,K$1,0)","v":916},{"$f":"VLOOKUP($A68,outcome_data!$A$6:$BJ$216,L$1,0)","v":331817},{"$f":"VLOOKUP($A68,outcome_data!$A$6:$BJ$216,M$1,0)","v":407},{"$f":"VLOOKUP($A68,outcome_data!$A$6:$BJ$216,N$1,0)","v":331817},{"$f":"VLOOKUP($A68,outcome_data!$A$6:$BJ$216,O$1,0)","v":123},{"$f":"VLOOKUP($A68,outcome_data!$A$6:$BJ$216,P$1,0)","v":331817},{"$f":"VLOOKUP($A68,outcome_data!$A$6:$BJ$216,Q$1,0)","v":10769},{"$f":"VLOOKUP($A68,outcome_data!$A$6:$BJ$216,R$1,0)","v":12230},{"$f":"VLOOKUP($A68,outcome_data!$A$6:$BJ$216,S$1,0)","v":8862},{"$f":"VLOOKUP($A68,outcome_data!$A$6:$BJ$216,T$1,0)","v":12230},{"$f":"VLOOKUP($A68,outcome_data!$A$6:$BJ$216,U$1,0)","v":34879},{"$f":"VLOOKUP($A68,outcome_data!$A$6:$BJ$216,V$1,0)","v":45326},{"$f":"VLOOKUP($A68,outcome_data!$A$6:$BJ$216,W$1,0)","v":7216},{"$f":"VLOOKUP($A68,outcome_data!$A$6:$BJ$216,X$1,0)","v":10444},{"$f":"VLOOKUP($A68,outcome_data!$A$6:$BJ$216,Y$1,0)","v":2288},{"$f":"VLOOKUP($A68,outcome_data!$A$6:$BJ$216,Z$1,0)","v":2643},{"$f":"VLOOKUP($A68,outcome_data!$A$6:$BJ$216,AA$1,0)","v":1849},{"$f":"VLOOKUP($A68,outcome_data!$A$6:$BJ$216,AB$1,0)","v":2643},{"$f":"VLOOKUP($A68,outcome_data!$A$6:$BJ$216,AC$1,0)","v":5561},{"$f":"VLOOKUP($A68,outcome_data!$A$6:$BJ$216,AD$1,0)","v":6556},{"$f":"VLOOKUP($A68,outcome_data!$A$6:$BJ$216,AE$1,0)","v":4286},{"$f":"VLOOKUP($A68,outcome_data!$A$6:$BJ$216,AF$1,0)","v":6556}]
["03R","NHS Wakefield",{"$f":"VLOOKUP($A69,outcome_data!$A$6:$BJ$216,C$1,0)","v":246},{"$f":"VLOOKUP($A69,outcome_data!$A$6:$BJ$216,D$1,0)","v":329976},{"$f":"VLOOKUP($A69,outcome_data!$A$6:$BJ$216,E$1,0)","v":599},{"$f":"VLOOKUP($A69,outcome_data!$A$6:$BJ$216,F$1,0)","v":356302},{"$f":"VLOOKUP($A69,outcome_data!$A$6:$BJ$216,G$1,0)","v":1869},{"$f":"VLOOKUP($A69,outcome_data!$A$6:$BJ$216,H$1,0)","v":356302},{"$f":"VLOOKUP($A69,outcome_data!$A$6:$BJ$216,I$1,0)","v":498},{"$f":"VLOOKUP($A69,outcome_data!$A$6:$BJ$216,J$1,0)","v":356302},{"$f":"VLOOKUP($A69,outcome_data!$A$6:$BJ$216,K$1,0)","v":801},{"$f":"VLOOKUP($A69,outcome_data!$A$6:$BJ$216,L$1,0)","v":356302},{"$f":"VLOOKUP($A69,outcome_data!$A$6:$BJ$216,M$1,0)","v":420},{"$f":"VLOOKUP($A69,outcome_data!$A$6:$BJ$216,N$1,0)","v":356302},{"$f":"VLOOKUP($A69,outcome_data!$A$6:$BJ$216,O$1,0)","v":150},{"$f":"VLOOKUP($A69,outcome_data!$A$6:$BJ$216,P$1,0)","v":356302},{"$f":"VLOOKUP($A69,outcome_data!$A$6:$BJ$216,Q$1,0)","v":14003},{"$f":"VLOOKUP($A69,outcome_data!$A$6:$BJ$216,R$1,0)","v":15612},{"$f":"VLOOKUP($A69,outcome_data!$A$6:$BJ$216,S$1,0)","v":11462},{"$f":"VLOOKUP($A69,outcome_data!$A$6:$BJ$216,T$1,0)","v":15612},{"$f":"VLOOKUP($A69,outcome_data!$A$6:$BJ$216,U$1,0)","v":42216},{"$f":"VLOOKUP($A69,outcome_data!$A$6:$BJ$216,V$1,0)","v":53858},{"$f":"VLOOKUP($A69,outcome_data!$A$6:$BJ$216,W$1,0)","v":9081},{"$f":"VLOOKUP($A69,outcome_data!$A$6:$BJ$216,X$1,0)","v":12075},{"$f":"VLOOKUP($A69,outcome_data!$A$6:$BJ$216,Y$1,0)","v":2600},{"$f":"VLOOKUP($A69,outcome_data!$A$6:$BJ$216,Z$1,0)","v":2988},{"$f":"VLOOKUP($A69,outcome_data!$A$6:$BJ$216,AA$1,0)","v":2129},{"$f":"VLOOKUP($A69,outcome_data!$A$6:$BJ$216,AB$1,0)","v":2988},{"$f":"VLOOKUP($A69,outcome_data!$A$6:$BJ$216,AC$1,0)","v":6535},{"$f":"VLOOKUP($A69,outcome_data!$A$6:$BJ$216,AD$1,0)","v":7433},{"$f":"VLOOKUP($A69,outcome_data!$A$6:$BJ$216,AE$1,0)","v":5231},{"$f":"VLOOKUP($A69,outcome_data!$A$6:$BJ$216,AF$1,0)","v":7433}]
["03T","NHS Lincolnshire East",{"$f":"VLOOKUP($A70,outcome_data!$A$6:$BJ$216,C$1,0)","v":240},{"$f":"VLOOKUP($A70,outcome_data!$A$6:$BJ$216,D$1,0)","v":216597},{"$f":"VLOOKUP($A70,outcome_data!$A$6:$BJ$216,E$1,0)","v":497},{"$f":"VLOOKUP($A70,outcome_data!$A$6:$BJ$216,F$1,0)","v":242313},{"$f":"VLOOKUP($A70,outcome_data!$A$6:$BJ$216,G$1,0)","v":1897},{"$f":"VLOOKUP($A70,outcome_data!$A$6:$BJ$216,H$1,0)","v":242313},{"$f":"VLOOKUP($A70,outcome_data!$A$6:$BJ$216,I$1,0)","v":440},{"$f":"VLOOKUP($A70,outcome_data!$A$6:$BJ$216,J$1,0)","v":242313},{"$f":"VLOOKUP($A70,outcome_data!$A$6:$BJ$216,K$1,0)","v":1014},{"$f":"VLOOKUP($A70,outcome_data!$A$6:$BJ$216,L$1,0)","v":242313},{"$f":"VLOOKUP($A70,outcome_data!$A$6:$BJ$216,M$1,0)","v":433},{"$f":"VLOOKUP($A70,outcome_data!$A$6:$BJ$216,N$1,0)","v":242313},{"$f":"VLOOKUP($A70,outcome_data!$A$6:$BJ$216,O$1,0)","v":116},{"$f":"VLOOKUP($A70,outcome_data!$A$6:$BJ$216,P$1,0)","v":242313},{"$f":"VLOOKUP($A70,outcome_data!$A$6:$BJ$216,Q$1,0)","v":11153},{"$f":"VLOOKUP($A70,outcome_data!$A$6:$BJ$216,R$1,0)","v":12702},{"$f":"VLOOKUP($A70,outcome_data!$A$6:$BJ$216,S$1,0)","v":9038},{"$f":"VLOOKUP($A70,outcome_data!$A$6:$BJ$216,T$1,0)","v":12702},{"$f":"VLOOKUP($A70,outcome_data!$A$6:$BJ$216,U$1,0)","v":32837},{"$f":"VLOOKUP($A70,outcome_data!$A$6:$BJ$216,V$1,0)","v":41992},{"$f":"VLOOKUP($A70,outcome_data!$A$6:$BJ$216,W$1,0)","v":10728},{"$f":"VLOOKUP($A70,outcome_data!$A$6:$BJ$216,X$1,0)","v":14754},{"$f":"VLOOKUP($A70,outcome_data!$A$6:$BJ$216,Y$1,0)","v":1843},{"$f":"VLOOKUP($A70,outcome_data!$A$6:$BJ$216,Z$1,0)","v":2166},{"$f":"VLOOKUP($A70,outcome_data!$A$6:$BJ$216,AA$1,0)","v":1428},{"$f":"VLOOKUP($A70,outcome_data!$A$6:$BJ$216,AB$1,0)","v":2166},{"$f":"VLOOKUP($A70,outcome_data!$A$6:$BJ$216,AC$1,0)","v":5195},{"$f":"VLOOKUP($A70,outcome_data!$A$6:$BJ$216,AD$1,0)","v":6052},{"$f":"VLOOKUP($A70,outcome_data!$A$6:$BJ$216,AE$1,0)","v":4043},{"$f":"VLOOKUP($A70,outcome_data!$A$6:$BJ$216,AF$1,0)","v":6052}]
["03V","NHS Corby",{"$f":"VLOOKUP($A71,outcome_data!$A$6:$BJ$216,C$1,0)","v":60},{"$f":"VLOOKUP($A71,outcome_data!$A$6:$BJ$216,D$1,0)","v":66498},{"$f":"VLOOKUP($A71,outcome_data!$A$6:$BJ$216,E$1,0)","v":150},{"$f":"VLOOKUP($A71,outcome_data!$A$6:$BJ$216,F$1,0)","v":70502},{"$f":"VLOOKUP($A71,outcome_data!$A$6:$BJ$216,G$1,0)","v":589},{"$f":"VLOOKUP($A71,outcome_data!$A$6:$BJ$216,H$1,0)","v":70502},{"$f":"VLOOKUP($A71,outcome_data!$A$6:$BJ$216,I$1,0)","v":75},{"$f":"VLOOKUP($A71,outcome_data!$A$6:$BJ$216,J$1,0)","v":70502},{"$f":"VLOOKUP($A71,outcome_data!$A$6:$BJ$216,K$1,0)","v":502},{"$f":"VLOOKUP($A71,outcome_data!$A$6:$BJ$216,L$1,0)","v":70502},{"$f":"VLOOKUP($A71,outcome_data!$A$6:$BJ$216,M$1,0)","v":286},{"$f":"VLOOKUP($A71,outcome_data!$A$6:$BJ$216,N$1,0)","v":70502},{"$f":"VLOOKUP($A71,outcome_data!$A$6:$BJ$216,O$1,0)","v":10},{"$f":"VLOOKUP($A71,outcome_data!$A$6:$BJ$216,P$1,0)","v":70502},{"$f":"VLOOKUP($A71,outcome_data!$A$6:$BJ$216,Q$1,0)","v":2131},{"$f":"VLOOKUP($A71,outcome_data!$A$6:$BJ$216,R$1,0)","v":2369},{"$f":"VLOOKUP($A71,outcome_data!$A$6:$BJ$216,S$1,0)","v":1747},{"$f":"VLOOKUP($A71,outcome_data!$A$6:$BJ$216,T$1,0)","v":2369},{"$f":"VLOOKUP($A71,outcome_data!$A$6:$BJ$216,U$1,0)","v":6786},{"$f":"VLOOKUP($A71,outcome_data!$A$6:$BJ$216,V$1,0)","v":8387},{"$f":"VLOOKUP($A71,outcome_data!$A$6:$BJ$216,W$1,0)","v":1782},{"$f":"VLOOKUP($A71,outcome_data!$A$6:$BJ$216,X$1,0)","v":2278},{"$f":"VLOOKUP($A71,outcome_data!$A$6:$BJ$216,Y$1,0)","v":463},{"$f":"VLOOKUP($A71,outcome_data!$A$6:$BJ$216,Z$1,0)","v":542},{"$f":"VLOOKUP($A71,outcome_data!$A$6:$BJ$216,AA$1,0)","v":387},{"$f":"VLOOKUP($A71,outcome_data!$A$6:$BJ$216,AB$1,0)","v":542},{"$f":"VLOOKUP($A71,outcome_data!$A$6:$BJ$216,AC$1,0)","v":1098},{"$f":"VLOOKUP($A71,outcome_data!$A$6:$BJ$216,AD$1,0)","v":1248},{"$f":"VLOOKUP($A71,outcome_data!$A$6:$BJ$216,AE$1,0)","v":886},{"$f":"VLOOKUP($A71,outcome_data!$A$6:$BJ$216,AF$1,0)","v":1248}]
["03W","NHS East Leicestershire and Rutland",{"$f":"VLOOKUP($A72,outcome_data!$A$6:$BJ$216,C$1,0)","v":163},{"$f":"VLOOKUP($A72,outcome_data!$A$6:$BJ$216,D$1,0)","v":290534},{"$f":"VLOOKUP($A72,outcome_data!$A$6:$BJ$216,E$1,0)","v":565},{"$f":"VLOOKUP($A72,outcome_data!$A$6:$BJ$216,F$1,0)","v":317643},{"$f":"VLOOKUP($A72,outcome_data!$A$6:$BJ$216,G$1,0)","v":1315},{"$f":"VLOOKUP($A72,outcome_data!$A$6:$BJ$216,H$1,0)","v":317643},{"$f":"VLOOKUP($A72,outcome_data!$A$6:$BJ$216,I$1,0)","v":412},{"$f":"VLOOKUP($A72,outcome_data!$A$6:$BJ$216,J$1,0)","v":317643},{"$f":"VLOOKUP($A72,outcome_data!$A$6:$BJ$216,K$1,0)","v":1115},{"$f":"VLOOKUP($A72,outcome_data!$A$6:$BJ$216,L$1,0)","v":317643},{"$f":"VLOOKUP($A72,outcome_data!$A$6:$BJ$216,M$1,0)","v":517},{"$f":"VLOOKUP($A72,outcome_data!$A$6:$BJ$216,N$1,0)","v":317643},{"$f":"VLOOKUP($A72,outcome_data!$A$6:$BJ$216,O$1,0)","v":83},{"$f":"VLOOKUP($A72,outcome_data!$A$6:$BJ$216,P$1,0)","v":317643},{"$f":"VLOOKUP($A72,outcome_data!$A$6:$BJ$216,Q$1,0)","v":9487},{"$f":"VLOOKUP($A72,outcome_data!$A$6:$BJ$216,R$1,0)","v":10837},{"$f":"VLOOKUP($A72,outcome_data!$A$6:$BJ$216,S$1,0)","v":8084},{"$f":"VLOOKUP($A72,outcome_data!$A$6:$BJ$216,T$1,0)","v":10837},{"$f":"VLOOKUP($A72,outcome_data!$A$6:$BJ$216,U$1,0)","v":35607},{"$f":"VLOOKUP($A72,outcome_data!$A$6:$BJ$216,V$1,0)","v":46917},{"$f":"VLOOKUP($A72,outcome_data!$A$6:$BJ$216,W$1,0)","v":7895},{"$f":"VLOOKUP($A72,outcome_data!$A$6:$BJ$216,X$1,0)","v":10999},{"$f":"VLOOKUP($A72,outcome_data!$A$6:$BJ$216,Y$1,0)","v":1431},{"$f":"VLOOKUP($A72,outcome_data!$A$6:$BJ$216,Z$1,0)","v":1685},{"$f":"VLOOKUP($A72,outcome_data!$A$6:$BJ$216,AA$1,0)","v":1186},{"$f":"VLOOKUP($A72,outcome_data!$A$6:$BJ$216,AB$1,0)","v":1685},{"$f":"VLOOKUP($A72,outcome_data!$A$6:$BJ$216,AC$1,0)","v":4764},{"$f":"VLOOKUP($A72,outcome_data!$A$6:$BJ$216,AD$1,0)","v":5587},{"$f":"VLOOKUP($A72,outcome_data!$A$6:$BJ$216,AE$1,0)","v":3992},{"$f":"VLOOKUP($A72,outcome_data!$A$6:$BJ$216,AF$1,0)","v":5587}]
["03X","NHS Erewash",{"$f":"VLOOKUP($A73,outcome_data!$A$6:$BJ$216,C$1,0)","v":62},{"$f":"VLOOKUP($A73,outcome_data!$A$6:$BJ$216,D$1,0)","v":88748},{"$f":"VLOOKUP($A73,outcome_data!$A$6:$BJ$216,E$1,0)","v":162},{"$f":"VLOOKUP($A73,outcome_data!$A$6:$BJ$216,F$1,0)","v":95875},{"$f":"VLOOKUP($A73,outcome_data!$A$6:$BJ$216,G$1,0)","v":455},{"$f":"VLOOKUP($A73,outcome_data!$A$6:$BJ$216,H$1,0)","v":95875},{"$f":"VLOOKUP($A73,outcome_data!$A$6:$BJ$216,I$1,0)","v":122},{"$f":"VLOOKUP($A73,outcome_data!$A$6:$BJ$216,J$1,0)","v":95875},{"$f":"VLOOKUP($A73,outcome_data!$A$6:$BJ$216,K$1,0)","v":252},{"$f":"VLOOKUP($A73,outcome_data!$A$6:$BJ$216,L$1,0)","v":95875},{"$f":"VLOOKUP($A73,outcome_data!$A$6:$BJ$216,M$1,0)","v":125},{"$f":"VLOOKUP($A73,outcome_data!$A$6:$BJ$216,N$1,0)","v":95875},{"$f":"VLOOKUP($A73,outcome_data!$A$6:$BJ$216,O$1,0)","v":25},{"$f":"VLOOKUP($A73,outcome_data!$A$6:$BJ$216,P$1,0)","v":95875},{"$f":"VLOOKUP($A73,outcome_data!$A$6:$BJ$216,Q$1,0)","v":3162},{"$f":"VLOOKUP($A73,outcome_data!$A$6:$BJ$216,R$1,0)","v":3570},{"$f":"VLOOKUP($A73,outcome_data!$A$6:$BJ$216,S$1,0)","v":2536},{"$f":"VLOOKUP($A73,outcome_data!$A$6:$BJ$216,T$1,0)","v":3639},{"$f":"VLOOKUP($A73,outcome_data!$A$6:$BJ$216,U$1,0)","v":11876},{"$f":"VLOOKUP($A73,outcome_data!$A$6:$BJ$216,V$1,0)","v":15146},{"$f":"VLOOKUP($A73,outcome_data!$A$6:$BJ$216,W$1,0)","v":3783},{"$f":"VLOOKUP($A73,outcome_data!$A$6:$BJ$216,X$1,0)","v":5449},{"$f":"VLOOKUP($A73,outcome_data!$A$6:$BJ$216,Y$1,0)","v":619},{"$f":"VLOOKUP($A73,outcome_data!$A$6:$BJ$216,Z$1,0)","v":723},{"$f":"VLOOKUP($A73,outcome_data!$A$6:$BJ$216,AA$1,0)","v":511},{"$f":"VLOOKUP($A73,outcome_data!$A$6:$BJ$216,AB$1,0)","v":743},{"$f":"VLOOKUP($A73,outcome_data!$A$6:$BJ$216,AC$1,0)","v":1630},{"$f":"VLOOKUP($A73,outcome_data!$A$6:$BJ$216,AD$1,0)","v":1906},{"$f":"VLOOKUP($A73,outcome_data!$A$6:$BJ$216,AE$1,0)","v":1249},{"$f":"VLOOKUP($A73,outcome_data!$A$6:$BJ$216,AF$1,0)","v":1934}]
["03Y","NHS Hardwick",{"$f":"VLOOKUP($A74,outcome_data!$A$6:$BJ$216,C$1,0)","v":81},{"$f":"VLOOKUP($A74,outcome_data!$A$6:$BJ$216,D$1,0)","v":93198},{"$f":"VLOOKUP($A74,outcome_data!$A$6:$BJ$216,E$1,0)","v":183},{"$f":"VLOOKUP($A74,outcome_data!$A$6:$BJ$216,F$1,0)","v":102355},{"$f":"VLOOKUP($A74,outcome_data!$A$6:$BJ$216,G$1,0)","v":611},{"$f":"VLOOKUP($A74,outcome_data!$A$6:$BJ$216,H$1,0)","v":102355},{"$f":"VLOOKUP($A74,outcome_data!$A$6:$BJ$216,I$1,0)","v":157},{"$f":"VLOOKUP($A74,outcome_data!$A$6:$BJ$216,J$1,0)","v":102355},{"$f":"VLOOKUP($A74,outcome_data!$A$6:$BJ$216,K$1,0)","v":270},{"$f":"VLOOKUP($A74,outcome_data!$A$6:$BJ$216,L$1,0)","v":102355},{"$f":"VLOOKUP($A74,outcome_data!$A$6:$BJ$216,M$1,0)","v":135},{"$f":"VLOOKUP($A74,outcome_data!$A$6:$BJ$216,N$1,0)","v":102355},{"$f":"VLOOKUP($A74,outcome_data!$A$6:$BJ$216,O$1,0)","v":24},{"$f":"VLOOKUP($A74,outcome_data!$A$6:$BJ$216,P$1,0)","v":102355},{"$f":"VLOOKUP($A74,outcome_data!$A$6:$BJ$216,Q$1,0)","v":4259},{"$f":"VLOOKUP($A74,outcome_data!$A$6:$BJ$216,R$1,0)","v":4860},{"$f":"VLOOKUP($A74,outcome_data!$A$6:$BJ$216,S$1,0)","v":3430},{"$f":"VLOOKUP($A74,outcome_data!$A$6:$BJ$216,T$1,0)","v":4860},{"$f":"VLOOKUP($A74,outcome_data!$A$6:$BJ$216,U$1,0)","v":13554},{"$f":"VLOOKUP($A74,outcome_data!$A$6:$BJ$216,V$1,0)","v":17906},{"$f":"VLOOKUP($A74,outcome_data!$A$6:$BJ$216,W$1,0)","v":3092},{"$f":"VLOOKUP($A74,outcome_data!$A$6:$BJ$216,X$1,0)","v":4556},{"$f":"VLOOKUP($A74,outcome_data!$A$6:$BJ$216,Y$1,0)","v":792},{"$f":"VLOOKUP($A74,outcome_data!$A$6:$BJ$216,Z$1,0)","v":914},{"$f":"VLOOKUP($A74,outcome_data!$A$6:$BJ$216,AA$1,0)","v":749},{"$f":"VLOOKUP($A74,outcome_data!$A$6:$BJ$216,AB$1,0)","v":932},{"$f":"VLOOKUP($A74,outcome_data!$A$6:$BJ$216,AC$1,0)","v":1915},{"$f":"VLOOKUP($A74,outcome_data!$A$6:$BJ$216,AD$1,0)","v":2251},{"$f":"VLOOKUP($A74,outcome_data!$A$6:$BJ$216,AE$1,0)","v":1645},{"$f":"VLOOKUP($A74,outcome_data!$A$6:$BJ$216,AF$1,0)","v":2251}]
["04C","NHS Leicester City",{"$f":"VLOOKUP($A75,outcome_data!$A$6:$BJ$216,C$1,0)","v":228},{"$f":"VLOOKUP($A75,outcome_data!$A$6:$BJ$216,D$1,0)","v":355505},{"$f":"VLOOKUP($A75,outcome_data!$A$6:$BJ$216,E$1,0)","v":321},{"$f":"VLOOKUP($A75,outcome_data!$A$6:$BJ$216,F$1,0)","v":378433},{"$f":"VLOOKUP($A75,outcome_data!$A$6:$BJ$216,G$1,0)","v":1232},{"$f":"VLOOKUP($A75,outcome_data!$A$6:$BJ$216,H$1,0)","v":378433},{"$f":"VLOOKUP($A75,outcome_data!$A$6:$BJ$216,I$1,0)","v":461},{"$f":"VLOOKUP($A75,outcome_data!$A$6:$BJ$216,J$1,0)","v":378433},{"$f":"VLOOKUP($A75,outcome_data!$A$6:$BJ$216,K$1,0)","v":1096},{"$f":"VLOOKUP($A75,outcome_data!$A$6:$BJ$216,L$1,0)","v":378433},{"$f":"VLOOKUP($A75,outcome_data!$A$6:$BJ$216,M$1,0)","v":506},{"$f":"VLOOKUP($A75,outcome_data!$A$6:$BJ$216,N$1,0)","v":378433},{"$f":"VLOOKUP($A75,outcome_data!$A$6:$BJ$216,O$1,0)","v":88},{"$f":"VLOOKUP($A75,outcome_data!$A$6:$BJ$216,P$1,0)","v":378433},{"$f":"VLOOKUP($A75,outcome_data!$A$6:$BJ$216,Q$1,0)","v":8698},{"$f":"VLOOKUP($A75,outcome_data!$A$6:$BJ$216,R$1,0)","v":10022},{"$f":"VLOOKUP($A75,outcome_data!$A$6:$BJ$216,S$1,0)","v":7399},{"$f":"VLOOKUP($A75,outcome_data!$A$6:$BJ$216,T$1,0)","v":10022},{"$f":"VLOOKUP($A75,outcome_data!$A$6:$BJ$216,U$1,0)","v":33197},{"$f":"VLOOKUP($A75,outcome_data!$A$6:$BJ$216,V$1,0)","v":43233},{"$f":"VLOOKUP($A75,outcome_data!$A$6:$BJ$216,W$1,0)","v":6194},{"$f":"VLOOKUP($A75,outcome_data!$A$6:$BJ$216,X$1,0)","v":8602},{"$f":"VLOOKUP($A75,outcome_data!$A$6:$BJ$216,Y$1,0)","v":1211},{"$f":"VLOOKUP($A75,outcome_data!$A$6:$BJ$216,Z$1,0)","v":1440},{"$f":"VLOOKUP($A75,outcome_data!$A$6:$BJ$216,AA$1,0)","v":1002},{"$f":"VLOOKUP($A75,outcome_data!$A$6:$BJ$216,AB$1,0)","v":1440},{"$f":"VLOOKUP($A75,outcome_data!$A$6:$BJ$216,AC$1,0)","v":3763},{"$f":"VLOOKUP($A75,outcome_data!$A$6:$BJ$216,AD$1,0)","v":4442},{"$f":"VLOOKUP($A75,outcome_data!$A$6:$BJ$216,AE$1,0)","v":3173},{"$f":"VLOOKUP($A75,outcome_data!$A$6:$BJ$216,AF$1,0)","v":4442}]
["04D","NHS Lincolnshire West",{"$f":"VLOOKUP($A76,outcome_data!$A$6:$BJ$216,C$1,0)","v":160},{"$f":"VLOOKUP($A76,outcome_data!$A$6:$BJ$216,D$1,0)","v":207991},{"$f":"VLOOKUP($A76,outcome_data!$A$6:$BJ$216,E$1,0)","v":279},{"$f":"VLOOKUP($A76,outcome_data!$A$6:$BJ$216,F$1,0)","v":226858},{"$f":"VLOOKUP($A76,outcome_data!$A$6:$BJ$216,G$1,0)","v":1162},{"$f":"VLOOKUP($A76,outcome_data!$A$6:$BJ$216,H$1,0)","v":226858},{"$f":"VLOOKUP($A76,outcome_data!$A$6:$BJ$216,I$1,0)","v":246},{"$f":"VLOOKUP($A76,outcome_data!$A$6:$BJ$216,J$1,0)","v":226858},{"$f":"VLOOKUP($A76,outcome_data!$A$6:$BJ$216,K$1,0)","v":703},{"$f":"VLOOKUP($A76,outcome_data!$A$6:$BJ$216,L$1,0)","v":226858},{"$f":"VLOOKUP($A76,outcome_data!$A$6:$BJ$216,M$1,0)","v":385},{"$f":"VLOOKUP($A76,outcome_data!$A$6:$BJ$216,N$1,0)","v":226858},{"$f":"VLOOKUP($A76,outcome_data!$A$6:$BJ$216,O$1,0)","v":77},{"$f":"VLOOKUP($A76,outcome_data!$A$6:$BJ$216,P$1,0)","v":226858},{"$f":"VLOOKUP($A76,outcome_data!$A$6:$BJ$216,Q$1,0)","v":8143},{"$f":"VLOOKUP($A76,outcome_data!$A$6:$BJ$216,R$1,0)","v":9141},{"$f":"VLOOKUP($A76,outcome_data!$A$6:$BJ$216,S$1,0)","v":6766},{"$f":"VLOOKUP($A76,outcome_data!$A$6:$BJ$216,T$1,0)","v":9141},{"$f":"VLOOKUP($A76,outcome_data!$A$6:$BJ$216,U$1,0)","v":24577},{"$f":"VLOOKUP($A76,outcome_data!$A$6:$BJ$216,V$1,0)","v":31541},{"$f":"VLOOKUP($A76,outcome_data!$A$6:$BJ$216,W$1,0)","v":7893},{"$f":"VLOOKUP($A76,outcome_data!$A$6:$BJ$216,X$1,0)","v":10854},{"$f":"VLOOKUP($A76,outcome_data!$A$6:$BJ$216,Y$1,0)","v":1353},{"$f":"VLOOKUP($A76,outcome_data!$A$6:$BJ$216,Z$1,0)","v":1594},{"$f":"VLOOKUP($A76,outcome_data!$A$6:$BJ$216,AA$1,0)","v":1113},{"$f":"VLOOKUP($A76,outcome_data!$A$6:$BJ$216,AB$1,0)","v":1594},{"$f":"VLOOKUP($A76,outcome_data!$A$6:$BJ$216,AC$1,0)","v":3681},{"$f":"VLOOKUP($A76,outcome_data!$A$6:$BJ$216,AD$1,0)","v":4300},{"$f":"VLOOKUP($A76,outcome_data!$A$6:$BJ$216,AE$1,0)","v":2990},{"$f":"VLOOKUP($A76,outcome_data!$A$6:$BJ$216,AF$1,0)","v":4300}]
["04E","NHS Mansfield and Ashfield",{"$f":"VLOOKUP($A77,outcome_data!$A$6:$BJ$216,C$1,0)","v":138},{"$f":"VLOOKUP($A77,outcome_data!$A$6:$BJ$216,D$1,0)","v":170357},{"$f":"VLOOKUP($A77,outcome_data!$A$6:$BJ$216,E$1,0)","v":294},{"$f":"VLOOKUP($A77,outcome_data!$A$6:$BJ$216,F$1,0)","v":184622},{"$f":"VLOOKUP($A77,outcome_data!$A$6:$BJ$216,G$1,0)","v":957},{"$f":"VLOOKUP($A77,outcome_data!$A$6:$BJ$216,H$1,0)","v":184622},{"$f":"VLOOKUP($A77,outcome_data!$A$6:$BJ$216,I$1,0)","v":231},{"$f":"VLOOKUP($A77,outcome_data!$A$6:$BJ$216,J$1,0)","v":184622},{"$f":"VLOOKUP($A77,outcome_data!$A$6:$BJ$216,K$1,0)","v":588},{"$f":"VLOOKUP($A77,outcome_data!$A$6:$BJ$216,L$1,0)","v":184622},{"$f":"VLOOKUP($A77,outcome_data!$A$6:$BJ$216,M$1,0)","v":347},{"$f":"VLOOKUP($A77,outcome_data!$A$6:$BJ$216,N$1,0)","v":184622},{"$f":"VLOOKUP($A77,outcome_data!$A$6:$BJ$216,O$1,0)","v":64},{"$f":"VLOOKUP($A77,outcome_data!$A$6:$BJ$216,P$1,0)","v":184622},{"$f":"VLOOKUP($A77,outcome_data!$A$6:$BJ$216,Q$1,0)","v":7013},{"$f":"VLOOKUP($A77,outcome_data!$A$6:$BJ$216,R$1,0)","v":7856},{"$f":"VLOOKUP($A77,outcome_data!$A$6:$BJ$216,S$1,0)","v":5553},{"$f":"VLOOKUP($A77,outcome_data!$A$6:$BJ$216,T$1,0)","v":7856},{"$f":"VLOOKUP($A77,outcome_data!$A$6:$BJ$216,U$1,0)","v":23044},{"$f":"VLOOKUP($A77,outcome_data!$A$6:$BJ$216,V$1,0)","v":28747},{"$f":"VLOOKUP($A77,outcome_data!$A$6:$BJ$216,W$1,0)","v":5563},{"$f":"VLOOKUP($A77,outcome_data!$A$6:$BJ$216,X$1,0)","v":7413},{"$f":"VLOOKUP($A77,outcome_data!$A$6:$BJ$216,Y$1,0)","v":963},{"$f":"VLOOKUP($A77,outcome_data!$A$6:$BJ$216,Z$1,0)","v":1124},{"$f":"VLOOKUP($A77,outcome_data!$A$6:$BJ$216,AA$1,0)","v":778},{"$f":"VLOOKUP($A77,outcome_data!$A$6:$BJ$216,AB$1,0)","v":1124},{"$f":"VLOOKUP($A77,outcome_data!$A$6:$BJ$216,AC$1,0)","v":3001},{"$f":"VLOOKUP($A77,outcome_data!$A$6:$BJ$216,AD$1,0)","v":3401},{"$f":"VLOOKUP($A77,outcome_data!$A$6:$BJ$216,AE$1,0)","v":2370},{"$f":"VLOOKUP($A77,outcome_data!$A$6:$BJ$216,AF$1,0)","v":3401}]
["04F","NHS Milton Keynes",{"$f":"VLOOKUP($A78,outcome_data!$A$6:$BJ$216,C$1,0)","v":118},{"$f":"VLOOKUP($A78,outcome_data!$A$6:$BJ$216,D$1,0)","v":258291},{"$f":"VLOOKUP($A78,outcome_data!$A$6:$BJ$216,E$1,0)","v":261},{"$f":"VLOOKUP($A78,outcome_data!$A$6:$BJ$216,F$1,0)","v":269964},{"$f":"VLOOKUP($A78,outcome_data!$A$6:$BJ$216,G$1,0)","v":1365},{"$f":"VLOOKUP($A78,outcome_data!$A$6:$BJ$216,H$1,0)","v":269964},{"$f":"VLOOKUP($A78,outcome_data!$A$6:$BJ$216,I$1,0)","v":234},{"$f":"VLOOKUP($A78,outcome_data!$A$6:$BJ$216,J$1,0)","v":269964},{"$f":"VLOOKUP($A78,outcome_data!$A$6:$BJ$216,K$1,0)","v":612},{"$f":"VLOOKUP($A78,outcome_data!$A$6:$BJ$216,L$1,0)","v":269964},{"$f":"VLOOKUP($A78,outcome_data!$A$6:$BJ$216,M$1,0)","v":294},{"$f":"VLOOKUP($A78,outcome_data!$A$6:$BJ$216,N$1,0)","v":269964},{"$f":"VLOOKUP($A78,outcome_data!$A$6:$BJ$216,O$1,0)","v":53},{"$f":"VLOOKUP($A78,outcome_data!$A$6:$BJ$216,P$1,0)","v":269964},{"$f":"VLOOKUP($A78,outcome_data!$A$6:$BJ$216,Q$1,0)","v":5428},{"$f":"VLOOKUP($A78,outcome_data!$A$6:$BJ$216,R$1,0)","v":6393},{"$f":"VLOOKUP($A78,outcome_data!$A$6:$BJ$216,S$1,0)","v":4540},{"$f":"VLOOKUP($A78,outcome_data!$A$6:$BJ$216,T$1,0)","v":6393},{"$f":"VLOOKUP($A78,outcome_data!$A$6:$BJ$216,U$1,0)","v":23259},{"$f":"VLOOKUP($A78,outcome_data!$A$6:$BJ$216,V$1,0)","v":31964},{"$f":"VLOOKUP($A78,outcome_data!$A$6:$BJ$216,W$1,0)","v":3498},{"$f":"VLOOKUP($A78,outcome_data!$A$6:$BJ$216,X$1,0)","v":5263},{"$f":"VLOOKUP($A78,outcome_data!$A$6:$BJ$216,Y$1,0)","v":1038},{"$f":"VLOOKUP($A78,outcome_data!$A$6:$BJ$216,Z$1,0)","v":1235},{"$f":"VLOOKUP($A78,outcome_data!$A$6:$BJ$216,AA$1,0)","v":814},{"$f":"VLOOKUP($A78,outcome_data!$A$6:$BJ$216,AB$1,0)","v":1235},{"$f":"VLOOKUP($A78,outcome_data!$A$6:$BJ$216,AC$1,0)","v":2308},{"$f":"VLOOKUP($A78,outcome_data!$A$6:$BJ$216,AD$1,0)","v":2827},{"$f":"VLOOKUP($A78,outcome_data!$A$6:$BJ$216,AE$1,0)","v":1864},{"$f":"VLOOKUP($A78,outcome_data!$A$6:$BJ$216,AF$1,0)","v":2827}]
["04G","NHS Nene",{"$f":"VLOOKUP($A79,outcome_data!$A$6:$BJ$216,C$1,0)","v":349},{"$f":"VLOOKUP($A79,outcome_data!$A$6:$BJ$216,D$1,0)","v":591939},{"$f":"VLOOKUP($A79,outcome_data!$A$6:$BJ$216,E$1,0)","v":918},{"$f":"VLOOKUP($A79,outcome_data!$A$6:$BJ$216,F$1,0)","v":631954},{"$f":"VLOOKUP($A79,outcome_data!$A$6:$BJ$216,G$1,0)","v":3434},{"$f":"VLOOKUP($A79,outcome_data!$A$6:$BJ$216,H$1,0)","v":631954},{"$f":"VLOOKUP($A79,outcome_data!$A$6:$BJ$216,I$1,0)","v":647},{"$f":"VLOOKUP($A79,outcome_data!$A$6:$BJ$216,J$1,0)","v":631954},{"$f":"VLOOKUP($A79,outcome_data!$A$6:$BJ$216,K$1,0)","v":2658},{"$f":"VLOOKUP($A79,outcome_data!$A$6:$BJ$216,L$1,0)","v":631954},{"$f":"VLOOKUP($A79,outcome_data!$A$6:$BJ$216,M$1,0)","v":1385},{"$f":"VLOOKUP($A79,outcome_data!$A$6:$BJ$216,N$1,0)","v":631954},{"$f":"VLOOKUP($A79,outcome_data!$A$6:$BJ$216,O$1,0)","v":177},{"$f":"VLOOKUP($A79,outcome_data!$A$6:$BJ$216,P$1,0)","v":631954},{"$f":"VLOOKUP($A79,outcome_data!$A$6:$BJ$216,Q$1,0)","v":17385},{"$f":"VLOOKUP($A79,outcome_data!$A$6:$BJ$216,R$1,0)","v":19746},{"$f":"VLOOKUP($A79,outcome_data!$A$6:$BJ$216,S$1,0)","v":14161},{"$f":"VLOOKUP($A79,outcome_data!$A$6:$BJ$216,T$1,0)","v":19746},{"$f":"VLOOKUP($A79,outcome_data!$A$6:$BJ$216,U$1,0)","v":67986},{"$f":"VLOOKUP($A79,outcome_data!$A$6:$BJ$216,V$1,0)","v":88525},{"$f":"VLOOKUP($A79,outcome_data!$A$6:$BJ$216,W$1,0)","v":15299},{"$f":"VLOOKUP($A79,outcome_data!$A$6:$BJ$216,X$1,0)","v":20989},{"$f":"VLOOKUP($A79,outcome_data!$A$6:$BJ$216,Y$1,0)","v":3325},{"$f":"VLOOKUP($A79,outcome_data!$A$6:$BJ$216,Z$1,0)","v":3882},{"$f":"VLOOKUP($A79,outcome_data!$A$6:$BJ$216,AA$1,0)","v":2654},{"$f":"VLOOKUP($A79,outcome_data!$A$6:$BJ$216,AB$1,0)","v":3882},{"$f":"VLOOKUP($A79,outcome_data!$A$6:$BJ$216,AC$1,0)","v":8679},{"$f":"VLOOKUP($A79,outcome_data!$A$6:$BJ$216,AD$1,0)","v":10167},{"$f":"VLOOKUP($A79,outcome_data!$A$6:$BJ$216,AE$1,0)","v":6821},{"$f":"VLOOKUP($A79,outcome_data!$A$6:$BJ$216,AF$1,0)","v":10167}]
["04H","NHS Newark & Sherwood",{"$f":"VLOOKUP($A80,outcome_data!$A$6:$BJ$216,C$1,0)","v":77},{"$f":"VLOOKUP($A80,outcome_data!$A$6:$BJ$216,D$1,0)","v":117184},{"$f":"VLOOKUP($A80,outcome_data!$A$6:$BJ$216,E$1,0)","v":223},{"$f":"VLOOKUP($A80,outcome_data!$A$6:$BJ$216,F$1,0)","v":128220},{"$f":"VLOOKUP($A80,outcome_data!$A$6:$BJ$216,G$1,0)","v":657},{"$f":"VLOOKUP($A80,outcome_data!$A$6:$BJ$216,H$1,0)","v":128220},{"$f":"VLOOKUP($A80,outcome_data!$A$6:$BJ$216,I$1,0)","v":121},{"$f":"VLOOKUP($A80,outcome_data!$A$6:$BJ$216,J$1,0)","v":128220},{"$f":"VLOOKUP($A80,outcome_data!$A$6:$BJ$216,K$1,0)","v":401},{"$f":"VLOOKUP($A80,outcome_data!$A$6:$BJ$216,L$1,0)","v":128220},{"$f":"VLOOKUP($A80,outcome_data!$A$6:$BJ$216,M$1,0)","v":213},{"$f":"VLOOKUP($A80,outcome_data!$A$6:$BJ$216,N$1,0)","v":128220},{"$f":"VLOOKUP($A80,outcome_data!$A$6:$BJ$216,O$1,0)","v":54},{"$f":"VLOOKUP($A80,outcome_data!$A$6:$BJ$216,P$1,0)","v":128220},{"$f":"VLOOKUP($A80,outcome_data!$A$6:$BJ$216,Q$1,0)","v":4547},{"$f":"VLOOKUP($A80,outcome_data!$A$6:$BJ$216,R$1,0)","v":5180},{"$f":"VLOOKUP($A80,outcome_data!$A$6:$BJ$216,S$1,0)","v":3745},{"$f":"VLOOKUP($A80,outcome_data!$A$6:$BJ$216,T$1,0)","v":5180},{"$f":"VLOOKUP($A80,outcome_data!$A$6:$BJ$216,U$1,0)","v":14239},{"$f":"VLOOKUP($A80,outcome_data!$A$6:$BJ$216,V$1,0)","v":18794},{"$f":"VLOOKUP($A80,outcome_data!$A$6:$BJ$216,W$1,0)","v":3886},{"$f":"VLOOKUP($A80,outcome_data!$A$6:$BJ$216,X$1,0)","v":5518},{"$f":"VLOOKUP($A80,outcome_data!$A$6:$BJ$216,Y$1,0)","v":869},{"$f":"VLOOKUP($A80,outcome_data!$A$6:$BJ$216,Z$1,0)","v":1036},{"$f":"VLOOKUP($A80,outcome_data!$A$6:$BJ$216,AA$1,0)","v":717},{"$f":"VLOOKUP($A80,outcome_data!$A$6:$BJ$216,AB$1,0)","v":1036},{"$f":"VLOOKUP($A80,outcome_data!$A$6:$BJ$216,AC$1,0)","v":2061},{"$f":"VLOOKUP($A80,outcome_data!$A$6:$BJ$216,AD$1,0)","v":2439},{"$f":"VLOOKUP($A80,outcome_data!$A$6:$BJ$216,AE$1,0)","v":1604},{"$f":"VLOOKUP($A80,outcome_data!$A$6:$BJ$216,AF$1,0)","v":2439}]
["04J","NHS North Derbyshire",{"$f":"VLOOKUP($A81,outcome_data!$A$6:$BJ$216,C$1,0)","v":219},{"$f":"VLOOKUP($A81,outcome_data!$A$6:$BJ$216,D$1,0)","v":262569},{"$f":"VLOOKUP($A81,outcome_data!$A$6:$BJ$216,E$1,0)","v":465},{"$f":"VLOOKUP($A81,outcome_data!$A$6:$BJ$216,F$1,0)","v":289357},{"$f":"VLOOKUP($A81,outcome_data!$A$6:$BJ$216,G$1,0)","v":1685},{"$f":"VLOOKUP($A81,outcome_data!$A$6:$BJ$216,H$1,0)","v":289357},{"$f":"VLOOKUP($A81,outcome_data!$A$6:$BJ$216,I$1,0)","v":337},{"$f":"VLOOKUP($A81,outcome_data!$A$6:$BJ$216,J$1,0)","v":289357},{"$f":"VLOOKUP($A81,outcome_data!$A$6:$BJ$216,K$1,0)","v":676},{"$f":"VLOOKUP($A81,outcome_data!$A$6:$BJ$216,L$1,0)","v":289357},{"$f":"VLOOKUP($A81,outcome_data!$A$6:$BJ$216,M$1,0)","v":281},{"$f":"VLOOKUP($A81,outcome_data!$A$6:$BJ$216,N$1,0)","v":289357},{"$f":"VLOOKUP($A81,outcome_data!$A$6:$BJ$216,O$1,0)","v":72},{"$f":"VLOOKUP($A81,outcome_data!$A$6:$BJ$216,P$1,0)","v":289357},{"$f":"VLOOKUP($A81,outcome_data!$A$6:$BJ$216,Q$1,0)","v":10684},{"$f":"VLOOKUP($A81,outcome_data!$A$6:$BJ$216,R$1,0)","v":12161},{"$f":"VLOOKUP($A81,outcome_data!$A$6:$BJ$216,S$1,0)","v":8941},{"$f":"VLOOKUP($A81,outcome_data!$A$6:$BJ$216,T$1,0)","v":12210},{"$f":"VLOOKUP($A81,outcome_data!$A$6:$BJ$216,U$1,0)","v":35009},{"$f":"VLOOKUP($A81,outcome_data!$A$6:$BJ$216,V$1,0)","v":46401},{"$f":"VLOOKUP($A81,outcome_data!$A$6:$BJ$216,W$1,0)","v":10010},{"$f":"VLOOKUP($A81,outcome_data!$A$6:$BJ$216,X$1,0)","v":14539},{"$f":"VLOOKUP($A81,outcome_data!$A$6:$BJ$216,Y$1,0)","v":1931},{"$f":"VLOOKUP($A81,outcome_data!$A$6:$BJ$216,Z$1,0)","v":2296},{"$f":"VLOOKUP($A81,outcome_data!$A$6:$BJ$216,AA$1,0)","v":1725},{"$f":"VLOOKUP($A81,outcome_data!$A$6:$BJ$216,AB$1,0)","v":2359},{"$f":"VLOOKUP($A81,outcome_data!$A$6:$BJ$216,AC$1,0)","v":5557},{"$f":"VLOOKUP($A81,outcome_data!$A$6:$BJ$216,AD$1,0)","v":6532},{"$f":"VLOOKUP($A81,outcome_data!$A$6:$BJ$216,AE$1,0)","v":4457},{"$f":"VLOOKUP($A81,outcome_data!$A$6:$BJ$216,AF$1,0)","v":6579}]
["04K","NHS Nottingham City",{"$f":"VLOOKUP($A82,outcome_data!$A$6:$BJ$216,C$1,0)","v":185},{"$f":"VLOOKUP($A82,outcome_data!$A$6:$BJ$216,D$1,0)","v":331829},{"$f":"VLOOKUP($A82,outcome_data!$A$6:$BJ$216,E$1,0)","v":381},{"$f":"VLOOKUP($A82,outcome_data!$A$6:$BJ$216,F$1,0)","v":352150},{"$f":"VLOOKUP($A82,outcome_data!$A$6:$BJ$216,G$1,0)","v":1137},{"$f":"VLOOKUP($A82,outcome_data!$A$6:$BJ$216,H$1,0)","v":352150},{"$f":"VLOOKUP($A82,outcome_data!$A$6:$BJ$216,I$1,0)","v":376},{"$f":"VLOOKUP($A82,outcome_data!$A$6:$BJ$216,J$1,0)","v":352150},{"$f":"VLOOKUP($A82,outcome_data!$A$6:$BJ$216,K$1,0)","v":561},{"$f":"VLOOKUP($A82,outcome_data!$A$6:$BJ$216,L$1,0)","v":352150},{"$f":"VLOOKUP($A82,outcome_data!$A$6:$BJ$216,M$1,0)","v":328},{"$f":"VLOOKUP($A82,outcome_data!$A$6:$BJ$216,N$1,0)","v":352150},{"$f":"VLOOKUP($A82,outcome_data!$A$6:$BJ$216,O$1,0)","v":35},{"$f":"VLOOKUP($A82,outcome_data!$A$6:$BJ$216,P$1,0)","v":352150},{"$f":"VLOOKUP($A82,outcome_data!$A$6:$BJ$216,Q$1,0)","v":8389},{"$f":"VLOOKUP($A82,outcome_data!$A$6:$BJ$216,R$1,0)","v":9509},{"$f":"VLOOKUP($A82,outcome_data!$A$6:$BJ$216,S$1,0)","v":6574},{"$f":"VLOOKUP($A82,outcome_data!$A$6:$BJ$216,T$1,0)","v":9509},{"$f":"VLOOKUP($A82,outcome_data!$A$6:$BJ$216,U$1,0)","v":28175},{"$f":"VLOOKUP($A82,outcome_data!$A$6:$BJ$216,V$1,0)","v":36580},{"$f":"VLOOKUP($A82,outcome_data!$A$6:$BJ$216,W$1,0)","v":8347},{"$f":"VLOOKUP($A82,outcome_data!$A$6:$BJ$216,X$1,0)","v":11623},{"$f":"VLOOKUP($A82,outcome_data!$A$6:$BJ$216,Y$1,0)","v":1523},{"$f":"VLOOKUP($A82,outcome_data!$A$6:$BJ$216,Z$1,0)","v":1781},{"$f":"VLOOKUP($A82,outcome_data!$A$6:$BJ$216,AA$1,0)","v":1139},{"$f":"VLOOKUP($A82,outcome_data!$A$6:$BJ$216,AB$1,0)","v":1781},{"$f":"VLOOKUP($A82,outcome_data!$A$6:$BJ$216,AC$1,0)","v":4013},{"$f":"VLOOKUP($A82,outcome_data!$A$6:$BJ$216,AD$1,0)","v":4705},{"$f":"VLOOKUP($A82,outcome_data!$A$6:$BJ$216,AE$1,0)","v":3075},{"$f":"VLOOKUP($A82,outcome_data!$A$6:$BJ$216,AF$1,0)","v":4705}]
["04L","NHS Nottingham North and East",{"$f":"VLOOKUP($A83,outcome_data!$A$6:$BJ$216,C$1,0)","v":98},{"$f":"VLOOKUP($A83,outcome_data!$A$6:$BJ$216,D$1,0)","v":133229},{"$f":"VLOOKUP($A83,outcome_data!$A$6:$BJ$216,E$1,0)","v":217},{"$f":"VLOOKUP($A83,outcome_data!$A$6:$BJ$216,F$1,0)","v":145292},{"$f":"VLOOKUP($A83,outcome_data!$A$6:$BJ$216,G$1,0)","v":649},{"$f":"VLOOKUP($A83,outcome_data!$A$6:$BJ$216,H$1,0)","v":145292},{"$f":"VLOOKUP($A83,outcome_data!$A$6:$BJ$216,I$1,0)","v":155},{"$f":"VLOOKUP($A83,outcome_data!$A$6:$BJ$216,J$1,0)","v":145292},{"$f":"VLOOKUP($A83,outcome_data!$A$6:$BJ$216,K$1,0)","v":302},{"$f":"VLOOKUP($A83,outcome_data!$A$6:$BJ$216,L$1,0)","v":145292},{"$f":"VLOOKUP($A83,outcome_data!$A$6:$BJ$216,M$1,0)","v":190},{"$f":"VLOOKUP($A83,outcome_data!$A$6:$BJ$216,N$1,0)","v":145292},{"$f":"VLOOKUP($A83,outcome_data!$A$6:$BJ$216,O$1,0)","v":37},{"$f":"VLOOKUP($A83,outcome_data!$A$6:$BJ$216,P$1,0)","v":145292},{"$f":"VLOOKUP($A83,outcome_data!$A$6:$BJ$216,Q$1,0)","v":4988},{"$f":"VLOOKUP($A83,outcome_data!$A$6:$BJ$216,R$1,0)","v":5582},{"$f":"VLOOKUP($A83,outcome_data!$A$6:$BJ$216,S$1,0)","v":3982},{"$f":"VLOOKUP($A83,outcome_data!$A$6:$BJ$216,T$1,0)","v":5582},{"$f":"VLOOKUP($A83,outcome_data!$A$6:$BJ$216,U$1,0)","v":16829},{"$f":"VLOOKUP($A83,outcome_data!$A$6:$BJ$216,V$1,0)","v":21695},{"$f":"VLOOKUP($A83,outcome_data!$A$6:$BJ$216,W$1,0)","v":7049},{"$f":"VLOOKUP($A83,outcome_data!$A$6:$BJ$216,X$1,0)","v":9960},{"$f":"VLOOKUP($A83,outcome_data!$A$6:$BJ$216,Y$1,0)","v":746},{"$f":"VLOOKUP($A83,outcome_data!$A$6:$BJ$216,Z$1,0)","v":872},{"$f":"VLOOKUP($A83,outcome_data!$A$6:$BJ$216,AA$1,0)","v":616},{"$f":"VLOOKUP($A83,outcome_data!$A$6:$BJ$216,AB$1,0)","v":872},{"$f":"VLOOKUP($A83,outcome_data!$A$6:$BJ$216,AC$1,0)","v":2505},{"$f":"VLOOKUP($A83,outcome_data!$A$6:$BJ$216,AD$1,0)","v":2885},{"$f":"VLOOKUP($A83,outcome_data!$A$6:$BJ$216,AE$1,0)","v":1967},{"$f":"VLOOKUP($A83,outcome_data!$A$6:$BJ$216,AF$1,0)","v":2885}]
["04M","NHS Nottingham West",{"$f":"VLOOKUP($A84,outcome_data!$A$6:$BJ$216,C$1,0)","v":67},{"$f":"VLOOKUP($A84,outcome_data!$A$6:$BJ$216,D$1,0)","v":85218},{"$f":"VLOOKUP($A84,outcome_data!$A$6:$BJ$216,E$1,0)","v":153},{"$f":"VLOOKUP($A84,outcome_data!$A$6:$BJ$216,F$1,0)","v":93642},{"$f":"VLOOKUP($A84,outcome_data!$A$6:$BJ$216,G$1,0)","v":361},{"$f":"VLOOKUP($A84,outcome_data!$A$6:$BJ$216,H$1,0)","v":93642},{"$f":"VLOOKUP($A84,outcome_data!$A$6:$BJ$216,I$1,0)","v":113},{"$f":"VLOOKUP($A84,outcome_data!$A$6:$BJ$216,J$1,0)","v":93642},{"$f":"VLOOKUP($A84,outcome_data!$A$6:$BJ$216,K$1,0)","v":174},{"$f":"VLOOKUP($A84,outcome_data!$A$6:$BJ$216,L$1,0)","v":93642},{"$f":"VLOOKUP($A84,outcome_data!$A$6:$BJ$216,M$1,0)","v":110},{"$f":"VLOOKUP($A84,outcome_data!$A$6:$BJ$216,N$1,0)","v":93642},{"$f":"VLOOKUP($A84,outcome_data!$A$6:$BJ$216,O$1,0)","v":17},{"$f":"VLOOKUP($A84,outcome_data!$A$6:$BJ$216,P$1,0)","v":93642},{"$f":"VLOOKUP($A84,outcome_data!$A$6:$BJ$216,Q$1,0)","v":3279},{"$f":"VLOOKUP($A84,outcome_data!$A$6:$BJ$216,R$1,0)","v":3728},{"$f":"VLOOKUP($A84,outcome_data!$A$6:$BJ$216,S$1,0)","v":2652},{"$f":"VLOOKUP($A84,outcome_data!$A$6:$BJ$216,T$1,0)","v":3728},{"$f":"VLOOKUP($A84,outcome_data!$A$6:$BJ$216,U$1,0)","v":11045},{"$f":"VLOOKUP($A84,outcome_data!$A$6:$BJ$216,V$1,0)","v":13994},{"$f":"VLOOKUP($A84,outcome_data!$A$6:$BJ$216,W$1,0)","v":3658},{"$f":"VLOOKUP($A84,outcome_data!$A$6:$BJ$216,X$1,0)","v":5161},{"$f":"VLOOKUP($A84,outcome_data!$A$6:$BJ$216,Y$1,0)","v":486},{"$f":"VLOOKUP($A84,outcome_data!$A$6:$BJ$216,Z$1,0)","v":564},{"$f":"VLOOKUP($A84,outcome_data!$A$6:$BJ$216,AA$1,0)","v":400},{"$f":"VLOOKUP($A84,outcome_data!$A$6:$BJ$216,AB$1,0)","v":564},{"$f":"VLOOKUP($A84,outcome_data!$A$6:$BJ$216,AC$1,0)","v":1644},{"$f":"VLOOKUP($A84,outcome_data!$A$6:$BJ$216,AD$1,0)","v":1906},{"$f":"VLOOKUP($A84,outcome_data!$A$6:$BJ$216,AE$1,0)","v":1273},{"$f":"VLOOKUP($A84,outcome_data!$A$6:$BJ$216,AF$1,0)","v":1906}]
["04N","NHS Rushcliffe",{"$f":"VLOOKUP($A85,outcome_data!$A$6:$BJ$216,C$1,0)","v":49},{"$f":"VLOOKUP($A85,outcome_data!$A$6:$BJ$216,D$1,0)","v":110870},{"$f":"VLOOKUP($A85,outcome_data!$A$6:$BJ$216,E$1,0)","v":173},{"$f":"VLOOKUP($A85,outcome_data!$A$6:$BJ$216,F$1,0)","v":121809},{"$f":"VLOOKUP($A85,outcome_data!$A$6:$BJ$216,G$1,0)","v":536},{"$f":"VLOOKUP($A85,outcome_data!$A$6:$BJ$216,H$1,0)","v":121809},{"$f":"VLOOKUP($A85,outcome_data!$A$6:$BJ$216,I$1,0)","v":114},{"$f":"VLOOKUP($A85,outcome_data!$A$6:$BJ$216,J$1,0)","v":121809},{"$f":"VLOOKUP($A85,outcome_data!$A$6:$BJ$216,K$1,0)","v":232},{"$f":"VLOOKUP($A85,outcome_data!$A$6:$BJ$216,L$1,0)","v":121809},{"$f":"VLOOKUP($A85,outcome_data!$A$6:$BJ$216,M$1,0)","v":157},{"$f":"VLOOKUP($A85,outcome_data!$A$6:$BJ$216,N$1,0)","v":121809},{"$f":"VLOOKUP($A85,outcome_data!$A$6:$BJ$216,O$1,0)","v":22},{"$f":"VLOOKUP($A85,outcome_data!$A$6:$BJ$216,P$1,0)","v":121809},{"$f":"VLOOKUP($A85,outcome_data!$A$6:$BJ$216,Q$1,0)","v":3974},{"$f":"VLOOKUP($A85,outcome_data!$A$6:$BJ$216,R$1,0)","v":4397},{"$f":"VLOOKUP($A85,outcome_data!$A$6:$BJ$216,S$1,0)","v":3190},{"$f":"VLOOKUP($A85,outcome_data!$A$6:$BJ$216,T$1,0)","v":4397},{"$f":"VLOOKUP($A85,outcome_data!$A$6:$BJ$216,U$1,0)","v":13683},{"$f":"VLOOKUP($A85,outcome_data!$A$6:$BJ$216,V$1,0)","v":17211},{"$f":"VLOOKUP($A85,outcome_data!$A$6:$BJ$216,W$1,0)","v":4919},{"$f":"VLOOKUP($A85,outcome_data!$A$6:$BJ$216,X$1,0)","v":6874},{"$f":"VLOOKUP($A85,outcome_data!$A$6:$BJ$216,Y$1,0)","v":620},{"$f":"VLOOKUP($A85,outcome_data!$A$6:$BJ$216,Z$1,0)","v":716},{"$f":"VLOOKUP($A85,outcome_data!$A$6:$BJ$216,AA$1,0)","v":501},{"$f":"VLOOKUP($A85,outcome_data!$A$6:$BJ$216,AB$1,0)","v":716},{"$f":"VLOOKUP($A85,outcome_data!$A$6:$BJ$216,AC$1,0)","v":2062},{"$f":"VLOOKUP($A85,outcome_data!$A$6:$BJ$216,AD$1,0)","v":2379},{"$f":"VLOOKUP($A85,outcome_data!$A$6:$BJ$216,AE$1,0)","v":1553},{"$f":"VLOOKUP($A85,outcome_data!$A$6:$BJ$216,AF$1,0)","v":2379}]
["04Q","NHS South West Lincolnshire",{"$f":"VLOOKUP($A86,outcome_data!$A$6:$BJ$216,C$1,0)","v":86},{"$f":"VLOOKUP($A86,outcome_data!$A$6:$BJ$216,D$1,0)","v":117314},{"$f":"VLOOKUP($A86,outcome_data!$A$6:$BJ$216,E$1,0)","v":209},{"$f":"VLOOKUP($A86,outcome_data!$A$6:$BJ$216,F$1,0)","v":129102},{"$f":"VLOOKUP($A86,outcome_data!$A$6:$BJ$216,G$1,0)","v":888},{"$f":"VLOOKUP($A86,outcome_data!$A$6:$BJ$216,H$1,0)","v":129102},{"$f":"VLOOKUP($A86,outcome_data!$A$6:$BJ$216,I$1,0)","v":159},{"$f":"VLOOKUP($A86,outcome_data!$A$6:$BJ$216,J$1,0)","v":129102},{"$f":"VLOOKUP($A86,outcome_data!$A$6:$BJ$216,K$1,0)","v":532},{"$f":"VLOOKUP($A86,outcome_data!$A$6:$BJ$216,L$1,0)","v":129102},{"$f":"VLOOKUP($A86,outcome_data!$A$6:$BJ$216,M$1,0)","v":198},{"$f":"VLOOKUP($A86,outcome_data!$A$6:$BJ$216,N$1,0)","v":129102},{"$f":"VLOOKUP($A86,outcome_data!$A$6:$BJ$216,O$1,0)","v":56},{"$f":"VLOOKUP($A86,outcome_data!$A$6:$BJ$216,P$1,0)","v":129102},{"$f":"VLOOKUP($A86,outcome_data!$A$6:$BJ$216,Q$1,0)","v":4924},{"$f":"VLOOKUP($A86,outcome_data!$A$6:$BJ$216,R$1,0)","v":5602},{"$f":"VLOOKUP($A86,outcome_data!$A$6:$BJ$216,S$1,0)","v":4068},{"$f":"VLOOKUP($A86,outcome_data!$A$6:$BJ$216,T$1,0)","v":5591},{"$f":"VLOOKUP($A86,outcome_data!$A$6:$BJ$216,U$1,0)","v":16560},{"$f":"VLOOKUP($A86,outcome_data!$A$6:$BJ$216,V$1,0)","v":21246},{"$f":"VLOOKUP($A86,outcome_data!$A$6:$BJ$216,W$1,0)","v":4429},{"$f":"VLOOKUP($A86,outcome_data!$A$6:$BJ$216,X$1,0)","v":6335},{"$f":"VLOOKUP($A86,outcome_data!$A$6:$BJ$216,Y$1,0)","v":947},{"$f":"VLOOKUP($A86,outcome_data!$A$6:$BJ$216,Z$1,0)","v":1148},{"$f":"VLOOKUP($A86,outcome_data!$A$6:$BJ$216,AA$1,0)","v":753},{"$f":"VLOOKUP($A86,outcome_data!$A$6:$BJ$216,AB$1,0)","v":1148},{"$f":"VLOOKUP($A86,outcome_data!$A$6:$BJ$216,AC$1,0)","v":2232},{"$f":"VLOOKUP($A86,outcome_data!$A$6:$BJ$216,AD$1,0)","v":2648},{"$f":"VLOOKUP($A86,outcome_data!$A$6:$BJ$216,AE$1,0)","v":1799},{"$f":"VLOOKUP($A86,outcome_data!$A$6:$BJ$216,AF$1,0)","v":2643}]
["04R","NHS Southern Derbyshire",{"$f":"VLOOKUP($A87,outcome_data!$A$6:$BJ$216,C$1,0)","v":359},{"$f":"VLOOKUP($A87,outcome_data!$A$6:$BJ$216,D$1,0)","v":492729},{"$f":"VLOOKUP($A87,outcome_data!$A$6:$BJ$216,E$1,0)","v":792},{"$f":"VLOOKUP($A87,outcome_data!$A$6:$BJ$216,F$1,0)","v":533700},{"$f":"VLOOKUP($A87,outcome_data!$A$6:$BJ$216,G$1,0)","v":2405},{"$f":"VLOOKUP($A87,outcome_data!$A$6:$BJ$216,H$1,0)","v":533700},{"$f":"VLOOKUP($A87,outcome_data!$A$6:$BJ$216,I$1,0)","v":611},{"$f":"VLOOKUP($A87,outcome_data!$A$6:$BJ$216,J$1,0)","v":533700},{"$f":"VLOOKUP($A87,outcome_data!$A$6:$BJ$216,K$1,0)","v":1593},{"$f":"VLOOKUP($A87,outcome_data!$A$6:$BJ$216,L$1,0)","v":533700},{"$f":"VLOOKUP($A87,outcome_data!$A$6:$BJ$216,M$1,0)","v":691},{"$f":"VLOOKUP($A87,outcome_data!$A$6:$BJ$216,N$1,0)","v":533700},{"$f":"VLOOKUP($A87,outcome_data!$A$6:$BJ$216,O$1,0)","v":164},{"$f":"VLOOKUP($A87,outcome_data!$A$6:$BJ$216,P$1,0)","v":533700},{"$f":"VLOOKUP($A87,outcome_data!$A$6:$BJ$216,Q$1,0)","v":16467},{"$f":"VLOOKUP($A87,outcome_data!$A$6:$BJ$216,R$1,0)","v":18674},{"$f":"VLOOKUP($A87,outcome_data!$A$6:$BJ$216,S$1,0)","v":13176},{"$f":"VLOOKUP($A87,outcome_data!$A$6:$BJ$216,T$1,0)","v":18755},{"$f":"VLOOKUP($A87,outcome_data!$A$6:$BJ$216,U$1,0)","v":57780},{"$f":"VLOOKUP($A87,outcome_data!$A$6:$BJ$216,V$1,0)","v":74895},{"$f":"VLOOKUP($A87,outcome_data!$A$6:$BJ$216,W$1,0)","v":13579},{"$f":"VLOOKUP($A87,outcome_data!$A$6:$BJ$216,X$1,0)","v":19526},{"$f":"VLOOKUP($A87,outcome_data!$A$6:$BJ$216,Y$1,0)","v":2795},{"$f":"VLOOKUP($A87,outcome_data!$A$6:$BJ$216,Z$1,0)","v":3300},{"$f":"VLOOKUP($A87,outcome_data!$A$6:$BJ$216,AA$1,0)","v":2343},{"$f":"VLOOKUP($A87,outcome_data!$A$6:$BJ$216,AB$1,0)","v":3371},{"$f":"VLOOKUP($A87,outcome_data!$A$6:$BJ$216,AC$1,0)","v":8014},{"$f":"VLOOKUP($A87,outcome_data!$A$6:$BJ$216,AD$1,0)","v":9349},{"$f":"VLOOKUP($A87,outcome_data!$A$6:$BJ$216,AE$1,0)","v":6262},{"$f":"VLOOKUP($A87,outcome_data!$A$6:$BJ$216,AF$1,0)","v":9470}]
["04V","NHS West Leicestershire",{"$f":"VLOOKUP($A88,outcome_data!$A$6:$BJ$216,C$1,0)","v":213},{"$f":"VLOOKUP($A88,outcome_data!$A$6:$BJ$216,D$1,0)","v":342411},{"$f":"VLOOKUP($A88,outcome_data!$A$6:$BJ$216,E$1,0)","v":597},{"$f":"VLOOKUP($A88,outcome_data!$A$6:$BJ$216,F$1,0)","v":370972},{"$f":"VLOOKUP($A88,outcome_data!$A$6:$BJ$216,G$1,0)","v":1420},{"$f":"VLOOKUP($A88,outcome_data!$A$6:$BJ$216,H$1,0)","v":370972},{"$f":"VLOOKUP($A88,outcome_data!$A$6:$BJ$216,I$1,0)","v":532},{"$f":"VLOOKUP($A88,outcome_data!$A$6:$BJ$216,J$1,0)","v":370972},{"$f":"VLOOKUP($A88,outcome_data!$A$6:$BJ$216,K$1,0)","v":1132},{"$f":"VLOOKUP($A88,outcome_data!$A$6:$BJ$216,L$1,0)","v":370972},{"$f":"VLOOKUP($A88,outcome_data!$A$6:$BJ$216,M$1,0)","v":491},{"$f":"VLOOKUP($A88,outcome_data!$A$6:$BJ$216,N$1,0)","v":370972},{"$f":"VLOOKUP($A88,outcome_data!$A$6:$BJ$216,O$1,0)","v":104},{"$f":"VLOOKUP($A88,outcome_data!$A$6:$BJ$216,P$1,0)","v":370972},{"$f":"VLOOKUP($A88,outcome_data!$A$6:$BJ$216,Q$1,0)","v":10348},{"$f":"VLOOKUP($A88,outcome_data!$A$6:$BJ$216,R$1,0)","v":11749},{"$f":"VLOOKUP($A88,outcome_data!$A$6:$BJ$216,S$1,0)","v":8897},{"$f":"VLOOKUP($A88,outcome_data!$A$6:$BJ$216,T$1,0)","v":11749},{"$f":"VLOOKUP($A88,outcome_data!$A$6:$BJ$216,U$1,0)","v":41108},{"$f":"VLOOKUP($A88,outcome_data!$A$6:$BJ$216,V$1,0)","v":52767},{"$f":"VLOOKUP($A88,outcome_data!$A$6:$BJ$216,W$1,0)","v":9100},{"$f":"VLOOKUP($A88,outcome_data!$A$6:$BJ$216,X$1,0)","v":12835},{"$f":"VLOOKUP($A88,outcome_data!$A$6:$BJ$216,Y$1,0)","v":1968},{"$f":"VLOOKUP($A88,outcome_data!$A$6:$BJ$216,Z$1,0)","v":2279},{"$f":"VLOOKUP($A88,outcome_data!$A$6:$BJ$216,AA$1,0)","v":1630},{"$f":"VLOOKUP($A88,outcome_data!$A$6:$BJ$216,AB$1,0)","v":2279},{"$f":"VLOOKUP($A88,outcome_data!$A$6:$BJ$216,AC$1,0)","v":5074},{"$f":"VLOOKUP($A88,outcome_data!$A$6:$BJ$216,AD$1,0)","v":5968},{"$f":"VLOOKUP($A88,outcome_data!$A$6:$BJ$216,AE$1,0)","v":4292},{"$f":"VLOOKUP($A88,outcome_data!$A$6:$BJ$216,AF$1,0)","v":5968}]
["04X","NHS Birmingham South and Central",{"$f":"VLOOKUP($A89,outcome_data!$A$6:$BJ$216,C$1,0)","v":131},{"$f":"VLOOKUP($A89,outcome_data!$A$6:$BJ$216,D$1,0)","v":231985},{"$f":"VLOOKUP($A89,outcome_data!$A$6:$BJ$216,E$1,0)","v":268},{"$f":"VLOOKUP($A89,outcome_data!$A$6:$BJ$216,F$1,0)","v":242896},{"$f":"VLOOKUP($A89,outcome_data!$A$6:$BJ$216,G$1,0)","v":826},{"$f":"VLOOKUP($A89,outcome_data!$A$6:$BJ$216,H$1,0)","v":242896},{"$f":"VLOOKUP($A89,outcome_data!$A$6:$BJ$216,I$1,0)","v":303},{"$f":"VLOOKUP($A89,outcome_data!$A$6:$BJ$216,J$1,0)","v":242896},{"$f":"VLOOKUP($A89,outcome_data!$A$6:$BJ$216,K$1,0)","v":535},{"$f":"VLOOKUP($A89,outcome_data!$A$6:$BJ$216,L$1,0)","v":242896},{"$f":"VLOOKUP($A89,outcome_data!$A$6:$BJ$216,M$1,0)","v":301},{"$f":"VLOOKUP($A89,outcome_data!$A$6:$BJ$216,N$1,0)","v":242896},{"$f":"VLOOKUP($A89,outcome_data!$A$6:$BJ$216,O$1,0)","v":74},{"$f":"VLOOKUP($A89,outcome_data!$A$6:$BJ$216,P$1,0)","v":242896},{"$f":"VLOOKUP($A89,outcome_data!$A$6:$BJ$216,Q$1,0)","v":5825},{"$f":"VLOOKUP($A89,outcome_data!$A$6:$BJ$216,R$1,0)","v":6617},{"$f":"VLOOKUP($A89,outcome_data!$A$6:$BJ$216,S$1,0)","v":4789},{"$f":"VLOOKUP($A89,outcome_data!$A$6:$BJ$216,T$1,0)","v":6617},{"$f":"VLOOKUP($A89,outcome_data!$A$6:$BJ$216,U$1,0)","v":21952},{"$f":"VLOOKUP($A89,outcome_data!$A$6:$BJ$216,V$1,0)","v":28314},{"$f":"VLOOKUP($A89,outcome_data!$A$6:$BJ$216,W$1,0)","v":5446},{"$f":"VLOOKUP($A89,outcome_data!$A$6:$BJ$216,X$1,0)","v":7632},{"$f":"VLOOKUP($A89,outcome_data!$A$6:$BJ$216,Y$1,0)","v":1203},{"$f":"VLOOKUP($A89,outcome_data!$A$6:$BJ$216,Z$1,0)","v":1422},{"$f":"VLOOKUP($A89,outcome_data!$A$6:$BJ$216,AA$1,0)","v":941},{"$f":"VLOOKUP($A89,outcome_data!$A$6:$BJ$216,AB$1,0)","v":1422},{"$f":"VLOOKUP($A89,outcome_data!$A$6:$BJ$216,AC$1,0)","v":2816},{"$f":"VLOOKUP($A89,outcome_data!$A$6:$BJ$216,AD$1,0)","v":3322},{"$f":"VLOOKUP($A89,outcome_data!$A$6:$BJ$216,AE$1,0)","v":2272},{"$f":"VLOOKUP($A89,outcome_data!$A$6:$BJ$216,AF$1,0)","v":3322}]
["04Y","NHS Cannock Chase",{"$f":"VLOOKUP($A90,outcome_data!$A$6:$BJ$216,C$1,0)","v":101},{"$f":"VLOOKUP($A90,outcome_data!$A$6:$BJ$216,D$1,0)","v":122432},{"$f":"VLOOKUP($A90,outcome_data!$A$6:$BJ$216,E$1,0)","v":252},{"$f":"VLOOKUP($A90,outcome_data!$A$6:$BJ$216,F$1,0)","v":132514},{"$f":"VLOOKUP($A90,outcome_data!$A$6:$BJ$216,G$1,0)","v":792},{"$f":"VLOOKUP($A90,outcome_data!$A$6:$BJ$216,H$1,0)","v":132514},{"$f":"VLOOKUP($A90,outcome_data!$A$6:$BJ$216,I$1,0)","v":161},{"$f":"VLOOKUP($A90,outcome_data!$A$6:$BJ$216,J$1,0)","v":132514},{"$f":"VLOOKUP($A90,outcome_data!$A$6:$BJ$216,K$1,0)","v":453},{"$f":"VLOOKUP($A90,outcome_data!$A$6:$BJ$216,L$1,0)","v":132514},{"$f":"VLOOKUP($A90,outcome_data!$A$6:$BJ$216,M$1,0)","v":203},{"$f":"VLOOKUP($A90,outcome_data!$A$6:$BJ$216,N$1,0)","v":132514},{"$f":"VLOOKUP($A90,outcome_data!$A$6:$BJ$216,O$1,0)","v":56},{"$f":"VLOOKUP($A90,outcome_data!$A$6:$BJ$216,P$1,0)","v":132514},{"$f":"VLOOKUP($A90,outcome_data!$A$6:$BJ$216,Q$1,0)","v":4749},{"$f":"VLOOKUP($A90,outcome_data!$A$6:$BJ$216,R$1,0)","v":5439},{"$f":"VLOOKUP($A90,outcome_data!$A$6:$BJ$216,S$1,0)","v":3932},{"$f":"VLOOKUP($A90,outcome_data!$A$6:$BJ$216,T$1,0)","v":5439},{"$f":"VLOOKUP($A90,outcome_data!$A$6:$BJ$216,U$1,0)","v":16233},{"$f":"VLOOKUP($A90,outcome_data!$A$6:$BJ$216,V$1,0)","v":20882},{"$f":"VLOOKUP($A90,outcome_data!$A$6:$BJ$216,W$1,0)","v":3137},{"$f":"VLOOKUP($A90,outcome_data!$A$6:$BJ$216,X$1,0)","v":4261},{"$f":"VLOOKUP($A90,outcome_data!$A$6:$BJ$216,Y$1,0)","v":800},{"$f":"VLOOKUP($A90,outcome_data!$A$6:$BJ$216,Z$1,0)","v":933},{"$f":"VLOOKUP($A90,outcome_data!$A$6:$BJ$216,AA$1,0)","v":635},{"$f":"VLOOKUP($A90,outcome_data!$A$6:$BJ$216,AB$1,0)","v":933},{"$f":"VLOOKUP($A90,outcome_data!$A$6:$BJ$216,AC$1,0)","v":2110},{"$f":"VLOOKUP($A90,outcome_data!$A$6:$BJ$216,AD$1,0)","v":2497},{"$f":"VLOOKUP($A90,outcome_data!$A$6:$BJ$216,AE$1,0)","v":1718},{"$f":"VLOOKUP($A90,outcome_data!$A$6:$BJ$216,AF$1,0)","v":2497}]
["05A","NHS Coventry and Rugby",{"$f":"VLOOKUP($A91,outcome_data!$A$6:$BJ$216,C$1,0)","v":255},{"$f":"VLOOKUP($A91,outcome_data!$A$6:$BJ$216,D$1,0)","v":438013},{"$f":"VLOOKUP($A91,outcome_data!$A$6:$BJ$216,E$1,0)","v":469},{"$f":"VLOOKUP($A91,outcome_data!$A$6:$BJ$216,F$1,0)","v":471692},{"$f":"VLOOKUP($A91,outcome_data!$A$6:$BJ$216,G$1,0)","v":1253},{"$f":"VLOOKUP($A91,outcome_data!$A$6:$BJ$216,H$1,0)","v":471692},{"$f":"VLOOKUP($A91,outcome_data!$A$6:$BJ$216,I$1,0)","v":601},{"$f":"VLOOKUP($A91,outcome_data!$A$6:$BJ$216,J$1,0)","v":471692},{"$f":"VLOOKUP($A91,outcome_data!$A$6:$BJ$216,K$1,0)","v":780},{"$f":"VLOOKUP($A91,outcome_data!$A$6:$BJ$216,L$1,0)","v":471692},{"$f":"VLOOKUP($A91,outcome_data!$A$6:$BJ$216,M$1,0)","v":506},{"$f":"VLOOKUP($A91,outcome_data!$A$6:$BJ$216,N$1,0)","v":471692},{"$f":"VLOOKUP($A91,outcome_data!$A$6:$BJ$216,O$1,0)","v":110},{"$f":"VLOOKUP($A91,outcome_data!$A$6:$BJ$216,P$1,0)","v":471692},{"$f":"VLOOKUP($A91,outcome_data!$A$6:$BJ$216,Q$1,0)","v":11686},{"$f":"VLOOKUP($A91,outcome_data!$A$6:$BJ$216,R$1,0)","v":13088},{"$f":"VLOOKUP($A91,outcome_data!$A$6:$BJ$216,S$1,0)","v":9871},{"$f":"VLOOKUP($A91,outcome_data!$A$6:$BJ$216,T$1,0)","v":13088},{"$f":"VLOOKUP($A91,outcome_data!$A$6:$BJ$216,U$1,0)","v":51693},{"$f":"VLOOKUP($A91,outcome_data!$A$6:$BJ$216,V$1,0)","v":65226},{"$f":"VLOOKUP($A91,outcome_data!$A$6:$BJ$216,W$1,0)","v":10242},{"$f":"VLOOKUP($A91,outcome_data!$A$6:$BJ$216,X$1,0)","v":14096},{"$f":"VLOOKUP($A91,outcome_data!$A$6:$BJ$216,Y$1,0)","v":2646},{"$f":"VLOOKUP($A91,outcome_data!$A$6:$BJ$216,Z$1,0)","v":2986},{"$f":"VLOOKUP($A91,outcome_data!$A$6:$BJ$216,AA$1,0)","v":2229},{"$f":"VLOOKUP($A91,outcome_data!$A$6:$BJ$216,AB$1,0)","v":2986},{"$f":"VLOOKUP($A91,outcome_data!$A$6:$BJ$216,AC$1,0)","v":6357},{"$f":"VLOOKUP($A91,outcome_data!$A$6:$BJ$216,AD$1,0)","v":7328},{"$f":"VLOOKUP($A91,outcome_data!$A$6:$BJ$216,AE$1,0)","v":5308},{"$f":"VLOOKUP($A91,outcome_data!$A$6:$BJ$216,AF$1,0)","v":7328}]
["05C","NHS Dudley",{"$f":"VLOOKUP($A92,outcome_data!$A$6:$BJ$216,C$1,0)","v":212},{"$f":"VLOOKUP($A92,outcome_data!$A$6:$BJ$216,D$1,0)","v":286691},{"$f":"VLOOKUP($A92,outcome_data!$A$6:$BJ$216,E$1,0)","v":507},{"$f":"VLOOKUP($A92,outcome_data!$A$6:$BJ$216,F$1,0)","v":314852},{"$f":"VLOOKUP($A92,outcome_data!$A$6:$BJ$216,G$1,0)","v":1572},{"$f":"VLOOKUP($A92,outcome_data!$A$6:$BJ$216,H$1,0)","v":314852},{"$f":"VLOOKUP($A92,outcome_data!$A$6:$BJ$216,I$1,0)","v":429},{"$f":"VLOOKUP($A92,outcome_data!$A$6:$BJ$216,J$1,0)","v":314852},{"$f":"VLOOKUP($A92,outcome_data!$A$6:$BJ$216,K$1,0)","v":975},{"$f":"VLOOKUP($A92,outcome_data!$A$6:$BJ$216,L$1,0)","v":314852},{"$f":"VLOOKUP($A92,outcome_data!$A$6:$BJ$216,M$1,0)","v":322},{"$f":"VLOOKUP($A92,outcome_data!$A$6:$BJ$216,N$1,0)","v":314852},{"$f":"VLOOKUP($A92,outcome_data!$A$6:$BJ$216,O$1,0)","v":110},{"$f":"VLOOKUP($A92,outcome_data!$A$6:$BJ$216,P$1,0)","v":314852},{"$f":"VLOOKUP($A92,outcome_data!$A$6:$BJ$216,Q$1,0)","v":11587},{"$f":"VLOOKUP($A92,outcome_data!$A$6:$BJ$216,R$1,0)","v":12968},{"$f":"VLOOKUP($A92,outcome_data!$A$6:$BJ$216,S$1,0)","v":9645},{"$f":"VLOOKUP($A92,outcome_data!$A$6:$BJ$216,T$1,0)","v":12968},{"$f":"VLOOKUP($A92,outcome_data!$A$6:$BJ$216,U$1,0)","v":43486},{"$f":"VLOOKUP($A92,outcome_data!$A$6:$BJ$216,V$1,0)","v":54606},{"$f":"VLOOKUP($A92,outcome_data!$A$6:$BJ$216,W$1,0)","v":11029},{"$f":"VLOOKUP($A92,outcome_data!$A$6:$BJ$216,X$1,0)","v":15172},{"$f":"VLOOKUP($A92,outcome_data!$A$6:$BJ$216,Y$1,0)","v":2065},{"$f":"VLOOKUP($A92,outcome_data!$A$6:$BJ$216,Z$1,0)","v":2345},{"$f":"VLOOKUP($A92,outcome_data!$A$6:$BJ$216,AA$1,0)","v":1620},{"$f":"VLOOKUP($A92,outcome_data!$A$6:$BJ$216,AB$1,0)","v":2345},{"$f":"VLOOKUP($A92,outcome_data!$A$6:$BJ$216,AC$1,0)","v":5419},{"$f":"VLOOKUP($A92,outcome_data!$A$6:$BJ$216,AD$1,0)","v":6251},{"$f":"VLOOKUP($A92,outcome_data!$A$6:$BJ$216,AE$1,0)","v":4429},{"$f":"VLOOKUP($A92,outcome_data!$A$6:$BJ$216,AF$1,0)","v":6251}]
["05D","NHS East Staffordshire",{"$f":"VLOOKUP($A93,outcome_data!$A$6:$BJ$216,C$1,0)","v":88},{"$f":"VLOOKUP($A93,outcome_data!$A$6:$BJ$216,D$1,0)","v":124521},{"$f":"VLOOKUP($A93,outcome_data!$A$6:$BJ$216,E$1,0)","v":206},{"$f":"VLOOKUP($A93,outcome_data!$A$6:$BJ$216,F$1,0)","v":135146},{"$f":"VLOOKUP($A93,outcome_data!$A$6:$BJ$216,G$1,0)","v":851},{"$f":"VLOOKUP($A93,outcome_data!$A$6:$BJ$216,H$1,0)","v":135146},{"$f":"VLOOKUP($A93,outcome_data!$A$6:$BJ$216,I$1,0)","v":151},{"$f":"VLOOKUP($A93,outcome_data!$A$6:$BJ$216,J$1,0)","v":135146},{"$f":"VLOOKUP($A93,outcome_data!$A$6:$BJ$216,K$1,0)","v":523},{"$f":"VLOOKUP($A93,outcome_data!$A$6:$BJ$216,L$1,0)","v":135146},{"$f":"VLOOKUP($A93,outcome_data!$A$6:$BJ$216,M$1,0)","v":228},{"$f":"VLOOKUP($A93,outcome_data!$A$6:$BJ$216,N$1,0)","v":135146},{"$f":"VLOOKUP($A93,outcome_data!$A$6:$BJ$216,O$1,0)","v":32},{"$f":"VLOOKUP($A93,outcome_data!$A$6:$BJ$216,P$1,0)","v":135146},{"$f":"VLOOKUP($A93,outcome_data!$A$6:$BJ$216,Q$1,0)","v":4062},{"$f":"VLOOKUP($A93,outcome_data!$A$6:$BJ$216,R$1,0)","v":4613},{"$f":"VLOOKUP($A93,outcome_data!$A$6:$BJ$216,S$1,0)","v":3420},{"$f":"VLOOKUP($A93,outcome_data!$A$6:$BJ$216,T$1,0)","v":4613},{"$f":"VLOOKUP($A93,outcome_data!$A$6:$BJ$216,U$1,0)","v":14394},{"$f":"VLOOKUP($A93,outcome_data!$A$6:$BJ$216,V$1,0)","v":18629},{"$f":"VLOOKUP($A93,outcome_data!$A$6:$BJ$216,W$1,0)","v":3091},{"$f":"VLOOKUP($A93,outcome_data!$A$6:$BJ$216,X$1,0)","v":4427},{"$f":"VLOOKUP($A93,outcome_data!$A$6:$BJ$216,Y$1,0)","v":667},{"$f":"VLOOKUP($A93,outcome_data!$A$6:$BJ$216,Z$1,0)","v":775},{"$f":"VLOOKUP($A93,outcome_data!$A$6:$BJ$216,AA$1,0)","v":540},{"$f":"VLOOKUP($A93,outcome_data!$A$6:$BJ$216,AB$1,0)","v":775},{"$f":"VLOOKUP($A93,outcome_data!$A$6:$BJ$216,AC$1,0)","v":1948},{"$f":"VLOOKUP($A93,outcome_data!$A$6:$BJ$216,AD$1,0)","v":2301},{"$f":"VLOOKUP($A93,outcome_data!$A$6:$BJ$216,AE$1,0)","v":1538},{"$f":"VLOOKUP($A93,outcome_data!$A$6:$BJ$216,AF$1,0)","v":2301}]
["05F","NHS Herefordshire",{"$f":"VLOOKUP($A94,outcome_data!$A$6:$BJ$216,C$1,0)","v":137},{"$f":"VLOOKUP($A94,outcome_data!$A$6:$BJ$216,D$1,0)","v":163108},{"$f":"VLOOKUP($A94,outcome_data!$A$6:$BJ$216,E$1,0)","v":310},{"$f":"VLOOKUP($A94,outcome_data!$A$6:$BJ$216,F$1,0)","v":182621},{"$f":"VLOOKUP($A94,outcome_data!$A$6:$BJ$216,G$1,0)","v":1071},{"$f":"VLOOKUP($A94,outcome_data!$A$6:$BJ$216,H$1,0)","v":182621},{"$f":"VLOOKUP($A94,outcome_data!$A$6:$BJ$216,I$1,0)","v":180},{"$f":"VLOOKUP($A94,outcome_data!$A$6:$BJ$216,J$1,0)","v":182621},{"$f":"VLOOKUP($A94,outcome_data!$A$6:$BJ$216,K$1,0)","v":484},{"$f":"VLOOKUP($A94,outcome_data!$A$6:$BJ$216,L$1,0)","v":182621},{"$f":"VLOOKUP($A94,outcome_data!$A$6:$BJ$216,M$1,0)","v":233},{"$f":"VLOOKUP($A94,outcome_data!$A$6:$BJ$216,N$1,0)","v":182621},{"$f":"VLOOKUP($A94,outcome_data!$A$6:$BJ$216,O$1,0)","v":64},{"$f":"VLOOKUP($A94,outcome_data!$A$6:$BJ$216,P$1,0)","v":182621},{"$f":"VLOOKUP($A94,outcome_data!$A$6:$BJ$216,Q$1,0)","v":5583},{"$f":"VLOOKUP($A94,outcome_data!$A$6:$BJ$216,R$1,0)","v":6388},{"$f":"VLOOKUP($A94,outcome_data!$A$6:$BJ$216,S$1,0)","v":4392},{"$f":"VLOOKUP($A94,outcome_data!$A$6:$BJ$216,T$1,0)","v":6388},{"$f":"VLOOKUP($A94,outcome_data!$A$6:$BJ$216,U$1,0)","v":22089},{"$f":"VLOOKUP($A94,outcome_data!$A$6:$BJ$216,V$1,0)","v":29000},{"$f":"VLOOKUP($A94,outcome_data!$A$6:$BJ$216,W$1,0)","v":5298},{"$f":"VLOOKUP($A94,outcome_data!$A$6:$BJ$216,X$1,0)","v":7841},{"$f":"VLOOKUP($A94,outcome_data!$A$6:$BJ$216,Y$1,0)","v":1090},{"$f":"VLOOKUP($A94,outcome_data!$A$6:$BJ$216,Z$1,0)","v":1300},{"$f":"VLOOKUP($A94,outcome_data!$A$6:$BJ$216,AA$1,0)","v":806},{"$f":"VLOOKUP($A94,outcome_data!$A$6:$BJ$216,AB$1,0)","v":1300},{"$f":"VLOOKUP($A94,outcome_data!$A$6:$BJ$216,AC$1,0)","v":3388},{"$f":"VLOOKUP($A94,outcome_data!$A$6:$BJ$216,AD$1,0)","v":4028},{"$f":"VLOOKUP($A94,outcome_data!$A$6:$BJ$216,AE$1,0)","v":2493},{"$f":"VLOOKUP($A94,outcome_data!$A$6:$BJ$216,AF$1,0)","v":4028}]
["05G","NHS North Staffordshire",{"$f":"VLOOKUP($A95,outcome_data!$A$6:$BJ$216,C$1,0)","v":153},{"$f":"VLOOKUP($A95,outcome_data!$A$6:$BJ$216,D$1,0)","v":194081},{"$f":"VLOOKUP($A95,outcome_data!$A$6:$BJ$216,E$1,0)","v":504},{"$f":"VLOOKUP($A95,outcome_data!$A$6:$BJ$216,F$1,0)","v":213490},{"$f":"VLOOKUP($A95,outcome_data!$A$6:$BJ$216,G$1,0)","v":1012},{"$f":"VLOOKUP($A95,outcome_data!$A$6:$BJ$216,H$1,0)","v":213490},{"$f":"VLOOKUP($A95,outcome_data!$A$6:$BJ$216,I$1,0)","v":392},{"$f":"VLOOKUP($A95,outcome_data!$A$6:$BJ$216,J$1,0)","v":213490},{"$f":"VLOOKUP($A95,outcome_data!$A$6:$BJ$216,K$1,0)","v":582},{"$f":"VLOOKUP($A95,outcome_data!$A$6:$BJ$216,L$1,0)","v":213490},{"$f":"VLOOKUP($A95,outcome_data!$A$6:$BJ$216,M$1,0)","v":327},{"$f":"VLOOKUP($A95,outcome_data!$A$6:$BJ$216,N$1,0)","v":213490},{"$f":"VLOOKUP($A95,outcome_data!$A$6:$BJ$216,O$1,0)","v":78},{"$f":"VLOOKUP($A95,outcome_data!$A$6:$BJ$216,P$1,0)","v":213490},{"$f":"VLOOKUP($A95,outcome_data!$A$6:$BJ$216,Q$1,0)","v":7613},{"$f":"VLOOKUP($A95,outcome_data!$A$6:$BJ$216,R$1,0)","v":8710},{"$f":"VLOOKUP($A95,outcome_data!$A$6:$BJ$216,S$1,0)","v":6436},{"$f":"VLOOKUP($A95,outcome_data!$A$6:$BJ$216,T$1,0)","v":8710},{"$f":"VLOOKUP($A95,outcome_data!$A$6:$BJ$216,U$1,0)","v":27512},{"$f":"VLOOKUP($A95,outcome_data!$A$6:$BJ$216,V$1,0)","v":35700},{"$f":"VLOOKUP($A95,outcome_data!$A$6:$BJ$216,W$1,0)","v":5370},{"$f":"VLOOKUP($A95,outcome_data!$A$6:$BJ$216,X$1,0)","v":7649},{"$f":"VLOOKUP($A95,outcome_data!$A$6:$BJ$216,Y$1,0)","v":1319},{"$f":"VLOOKUP($A95,outcome_data!$A$6:$BJ$216,Z$1,0)","v":1608},{"$f":"VLOOKUP($A95,outcome_data!$A$6:$BJ$216,AA$1,0)","v":1148},{"$f":"VLOOKUP($A95,outcome_data!$A$6:$BJ$216,AB$1,0)","v":1608},{"$f":"VLOOKUP($A95,outcome_data!$A$6:$BJ$216,AC$1,0)","v":4243},{"$f":"VLOOKUP($A95,outcome_data!$A$6:$BJ$216,AD$1,0)","v":4970},{"$f":"VLOOKUP($A95,outcome_data!$A$6:$BJ$216,AE$1,0)","v":3548},{"$f":"VLOOKUP($A95,outcome_data!$A$6:$BJ$216,AF$1,0)","v":4970}]
["05H","NHS Warwickshire North",{"$f":"VLOOKUP($A96,outcome_data!$A$6:$BJ$216,C$1,0)","v":129},{"$f":"VLOOKUP($A96,outcome_data!$A$6:$BJ$216,D$1,0)","v":170027},{"$f":"VLOOKUP($A96,outcome_data!$A$6:$BJ$216,E$1,0)","v":312},{"$f":"VLOOKUP($A96,outcome_data!$A$6:$BJ$216,F$1,0)","v":184452},{"$f":"VLOOKUP($A96,outcome_data!$A$6:$BJ$216,G$1,0)","v":840},{"$f":"VLOOKUP($A96,outcome_data!$A$6:$BJ$216,H$1,0)","v":184452},{"$f":"VLOOKUP($A96,outcome_data!$A$6:$BJ$216,I$1,0)","v":271},{"$f":"VLOOKUP($A96,outcome_data!$A$6:$BJ$216,J$1,0)","v":184452},{"$f":"VLOOKUP($A96,outcome_data!$A$6:$BJ$216,K$1,0)","v":419},{"$f":"VLOOKUP($A96,outcome_data!$A$6:$BJ$216,L$1,0)","v":184452},{"$f":"VLOOKUP($A96,outcome_data!$A$6:$BJ$216,M$1,0)","v":221},{"$f":"VLOOKUP($A96,outcome_data!$A$6:$BJ$216,N$1,0)","v":184452},{"$f":"VLOOKUP($A96,outcome_data!$A$6:$BJ$216,O$1,0)","v":43},{"$f":"VLOOKUP($A96,outcome_data!$A$6:$BJ$216,P$1,0)","v":184452},{"$f":"VLOOKUP($A96,outcome_data!$A$6:$BJ$216,Q$1,0)","v":5270},{"$f":"VLOOKUP($A96,outcome_data!$A$6:$BJ$216,R$1,0)","v":6063},{"$f":"VLOOKUP($A96,outcome_data!$A$6:$BJ$216,S$1,0)","v":4272},{"$f":"VLOOKUP($A96,outcome_data!$A$6:$BJ$216,T$1,0)","v":6063},{"$f":"VLOOKUP($A96,outcome_data!$A$6:$BJ$216,U$1,0)","v":22605},{"$f":"VLOOKUP($A96,outcome_data!$A$6:$BJ$216,V$1,0)","v":28729},{"$f":"VLOOKUP($A96,outcome_data!$A$6:$BJ$216,W$1,0)","v":5927},{"$f":"VLOOKUP($A96,outcome_data!$A$6:$BJ$216,X$1,0)","v":8256},{"$f":"VLOOKUP($A96,outcome_data!$A$6:$BJ$216,Y$1,0)","v":1008},{"$f":"VLOOKUP($A96,outcome_data!$A$6:$BJ$216,Z$1,0)","v":1176},{"$f":"VLOOKUP($A96,outcome_data!$A$6:$BJ$216,AA$1,0)","v":771},{"$f":"VLOOKUP($A96,outcome_data!$A$6:$BJ$216,AB$1,0)","v":1176},{"$f":"VLOOKUP($A96,outcome_data!$A$6:$BJ$216,AC$1,0)","v":2604},{"$f":"VLOOKUP($A96,outcome_data!$A$6:$BJ$216,AD$1,0)","v":3057},{"$f":"VLOOKUP($A96,outcome_data!$A$6:$BJ$216,AE$1,0)","v":2074},{"$f":"VLOOKUP($A96,outcome_data!$A$6:$BJ$216,AF$1,0)","v":3057}]
["05J","NHS Redditch and Bromsgrove",{"$f":"VLOOKUP($A97,outcome_data!$A$6:$BJ$216,C$1,0)","v":91},{"$f":"VLOOKUP($A97,outcome_data!$A$6:$BJ$216,D$1,0)","v":158689},{"$f":"VLOOKUP($A97,outcome_data!$A$6:$BJ$216,E$1,0)","v":310},{"$f":"VLOOKUP($A97,outcome_data!$A$6:$BJ$216,F$1,0)","v":171964},{"$f":"VLOOKUP($A97,outcome_data!$A$6:$BJ$216,G$1,0)","v":965},{"$f":"VLOOKUP($A97,outcome_data!$A$6:$BJ$216,H$1,0)","v":171964},{"$f":"VLOOKUP($A97,outcome_data!$A$6:$BJ$216,I$1,0)","v":214},{"$f":"VLOOKUP($A97,outcome_data!$A$6:$BJ$216,J$1,0)","v":171964},{"$f":"VLOOKUP($A97,outcome_data!$A$6:$BJ$216,K$1,0)","v":429},{"$f":"VLOOKUP($A97,outcome_data!$A$6:$BJ$216,L$1,0)","v":171964},{"$f":"VLOOKUP($A97,outcome_data!$A$6:$BJ$216,M$1,0)","v":227},{"$f":"VLOOKUP($A97,outcome_data!$A$6:$BJ$216,N$1,0)","v":171964},{"$f":"VLOOKUP($A97,outcome_data!$A$6:$BJ$216,O$1,0)","v":43},{"$f":"VLOOKUP($A97,outcome_data!$A$6:$BJ$216,P$1,0)","v":171964},{"$f":"VLOOKUP($A97,outcome_data!$A$6:$BJ$216,Q$1,0)","v":5413},{"$f":"VLOOKUP($A97,outcome_data!$A$6:$BJ$216,R$1,0)","v":6093},{"$f":"VLOOKUP($A97,outcome_data!$A$6:$BJ$216,S$1,0)","v":4325},{"$f":"VLOOKUP($A97,outcome_data!$A$6:$BJ$216,T$1,0)","v":6093},{"$f":"VLOOKUP($A97,outcome_data!$A$6:$BJ$216,U$1,0)","v":19075},{"$f":"VLOOKUP($A97,outcome_data!$A$6:$BJ$216,V$1,0)","v":24678},{"$f":"VLOOKUP($A97,outcome_data!$A$6:$BJ$216,W$1,0)","v":5015},{"$f":"VLOOKUP($A97,outcome_data!$A$6:$BJ$216,X$1,0)","v":7059},{"$f":"VLOOKUP($A97,outcome_data!$A$6:$BJ$216,Y$1,0)","v":879},{"$f":"VLOOKUP($A97,outcome_data!$A$6:$BJ$216,Z$1,0)","v":1031},{"$f":"VLOOKUP($A97,outcome_data!$A$6:$BJ$216,AA$1,0)","v":705},{"$f":"VLOOKUP($A97,outcome_data!$A$6:$BJ$216,AB$1,0)","v":1031},{"$f":"VLOOKUP($A97,outcome_data!$A$6:$BJ$216,AC$1,0)","v":2781},{"$f":"VLOOKUP($A97,outcome_data!$A$6:$BJ$216,AD$1,0)","v":3256},{"$f":"VLOOKUP($A97,outcome_data!$A$6:$BJ$216,AE$1,0)","v":2147},{"$f":"VLOOKUP($A97,outcome_data!$A$6:$BJ$216,AF$1,0)","v":3256}]
["05L","NHS Sandwell and West Birmingham",{"$f":"VLOOKUP($A98,outcome_data!$A$6:$BJ$216,C$1,0)","v":357},{"$f":"VLOOKUP($A98,outcome_data!$A$6:$BJ$216,D$1,0)","v":508998},{"$f":"VLOOKUP($A98,outcome_data!$A$6:$BJ$216,E$1,0)","v":592},{"$f":"VLOOKUP($A98,outcome_data!$A$6:$BJ$216,F$1,0)","v":539982},{"$f":"VLOOKUP($A98,outcome_data!$A$6:$BJ$216,G$1,0)","v":2413},{"$f":"VLOOKUP($A98,outcome_data!$A$6:$BJ$216,H$1,0)","v":539982},{"$f":"VLOOKUP($A98,outcome_data!$A$6:$BJ$216,I$1,0)","v":798},{"$f":"VLOOKUP($A98,outcome_data!$A$6:$BJ$216,J$1,0)","v":539982},{"$f":"VLOOKUP($A98,outcome_data!$A$6:$BJ$216,K$1,0)","v":1690},{"$f":"VLOOKUP($A98,outcome_data!$A$6:$BJ$216,L$1,0)","v":539982},{"$f":"VLOOKUP($A98,outcome_data!$A$6:$BJ$216,M$1,0)","v":739},{"$f":"VLOOKUP($A98,outcome_data!$A$6:$BJ$216,N$1,0)","v":539982},{"$f":"VLOOKUP($A98,outcome_data!$A$6:$BJ$216,O$1,0)","v":216},{"$f":"VLOOKUP($A98,outcome_data!$A$6:$BJ$216,P$1,0)","v":539982},{"$f":"VLOOKUP($A98,outcome_data!$A$6:$BJ$216,Q$1,0)","v":14346},{"$f":"VLOOKUP($A98,outcome_data!$A$6:$BJ$216,R$1,0)","v":16466},{"$f":"VLOOKUP($A98,outcome_data!$A$6:$BJ$216,S$1,0)","v":11934},{"$f":"VLOOKUP($A98,outcome_data!$A$6:$BJ$216,T$1,0)","v":16462},{"$f":"VLOOKUP($A98,outcome_data!$A$6:$BJ$216,U$1,0)","v":58480},{"$f":"VLOOKUP($A98,outcome_data!$A$6:$BJ$216,V$1,0)","v":75421},{"$f":"VLOOKUP($A98,outcome_data!$A$6:$BJ$216,W$1,0)","v":13198},{"$f":"VLOOKUP($A98,outcome_data!$A$6:$BJ$216,X$1,0)","v":18153},{"$f":"VLOOKUP($A98,outcome_data!$A$6:$BJ$216,Y$1,0)","v":2413},{"$f":"VLOOKUP($A98,outcome_data!$A$6:$BJ$216,Z$1,0)","v":2794},{"$f":"VLOOKUP($A98,outcome_data!$A$6:$BJ$216,AA$1,0)","v":1941},{"$f":"VLOOKUP($A98,outcome_data!$A$6:$BJ$216,AB$1,0)","v":2794},{"$f":"VLOOKUP($A98,outcome_data!$A$6:$BJ$216,AC$1,0)","v":6471},{"$f":"VLOOKUP($A98,outcome_data!$A$6:$BJ$216,AD$1,0)","v":7550},{"$f":"VLOOKUP($A98,outcome_data!$A$6:$BJ$216,AE$1,0)","v":5182},{"$f":"VLOOKUP($A98,outcome_data!$A$6:$BJ$216,AF$1,0)","v":7550}]
["05N","NHS Shropshire",{"$f":"VLOOKUP($A99,outcome_data!$A$6:$BJ$216,C$1,0)","v":209},{"$f":"VLOOKUP($A99,outcome_data!$A$6:$BJ$216,D$1,0)","v":268500},{"$f":"VLOOKUP($A99,outcome_data!$A$6:$BJ$216,E$1,0)","v":613},{"$f":"VLOOKUP($A99,outcome_data!$A$6:$BJ$216,F$1,0)","v":298888},{"$f":"VLOOKUP($A99,outcome_data!$A$6:$BJ$216,G$1,0)","v":1655},{"$f":"VLOOKUP($A99,outcome_data!$A$6:$BJ$216,H$1,0)","v":298888},{"$f":"VLOOKUP($A99,outcome_data!$A$6:$BJ$216,I$1,0)","v":382},{"$f":"VLOOKUP($A99,outcome_data!$A$6:$BJ$216,J$1,0)","v":298888},{"$f":"VLOOKUP($A99,outcome_data!$A$6:$BJ$216,K$1,0)","v":931},{"$f":"VLOOKUP($A99,outcome_data!$A$6:$BJ$216,L$1,0)","v":298888},{"$f":"VLOOKUP($A99,outcome_data!$A$6:$BJ$216,M$1,0)","v":351},{"$f":"VLOOKUP($A99,outcome_data!$A$6:$BJ$216,N$1,0)","v":298888},{"$f":"VLOOKUP($A99,outcome_data!$A$6:$BJ$216,O$1,0)","v":113},{"$f":"VLOOKUP($A99,outcome_data!$A$6:$BJ$216,P$1,0)","v":298888},{"$f":"VLOOKUP($A99,outcome_data!$A$6:$BJ$216,Q$1,0)","v":9792},{"$f":"VLOOKUP($A99,outcome_data!$A$6:$BJ$216,R$1,0)","v":11295},{"$f":"VLOOKUP($A99,outcome_data!$A$6:$BJ$216,S$1,0)","v":8209},{"$f":"VLOOKUP($A99,outcome_data!$A$6:$BJ$216,T$1,0)","v":11295},{"$f":"VLOOKUP($A99,outcome_data!$A$6:$BJ$216,U$1,0)","v":35144},{"$f":"VLOOKUP($A99,outcome_data!$A$6:$BJ$216,V$1,0)","v":46332},{"$f":"VLOOKUP($A99,outcome_data!$A$6:$BJ$216,W$1,0)","v":10106},{"$f":"VLOOKUP($A99,outcome_data!$A$6:$BJ$216,X$1,0)","v":14615},{"$f":"VLOOKUP($A99,outcome_data!$A$6:$BJ$216,Y$1,0)","v":2759},{"$f":"VLOOKUP($A99,outcome_data!$A$6:$BJ$216,Z$1,0)","v":3268},{"$f":"VLOOKUP($A99,outcome_data!$A$6:$BJ$216,AA$1,0)","v":2395},{"$f":"VLOOKUP($A99,outcome_data!$A$6:$BJ$216,AB$1,0)","v":3268},{"$f":"VLOOKUP($A99,outcome_data!$A$6:$BJ$216,AC$1,0)","v":5678},{"$f":"VLOOKUP($A99,outcome_data!$A$6:$BJ$216,AD$1,0)","v":6689},{"$f":"VLOOKUP($A99,outcome_data!$A$6:$BJ$216,AE$1,0)","v":4618},{"$f":"VLOOKUP($A99,outcome_data!$A$6:$BJ$216,AF$1,0)","v":6689}]
["05P","NHS Solihull",{"$f":"VLOOKUP($A100,outcome_data!$A$6:$BJ$216,C$1,0)","v":131},{"$f":"VLOOKUP($A100,outcome_data!$A$6:$BJ$216,D$1,0)","v":216222},{"$f":"VLOOKUP($A100,outcome_data!$A$6:$BJ$216,E$1,0)","v":292},{"$f":"VLOOKUP($A100,outcome_data!$A$6:$BJ$216,F$1,0)","v":237485},{"$f":"VLOOKUP($A100,outcome_data!$A$6:$BJ$216,G$1,0)","v":1193},{"$f":"VLOOKUP($A100,outcome_data!$A$6:$BJ$216,H$1,0)","v":237485},{"$f":"VLOOKUP($A100,outcome_data!$A$6:$BJ$216,I$1,0)","v":308},{"$f":"VLOOKUP($A100,outcome_data!$A$6:$BJ$216,J$1,0)","v":237485},{"$f":"VLOOKUP($A100,outcome_data!$A$6:$BJ$216,K$1,0)","v":912},{"$f":"VLOOKUP($A100,outcome_data!$A$6:$BJ$216,L$1,0)","v":237485},{"$f":"VLOOKUP($A100,outcome_data!$A$6:$BJ$216,M$1,0)","v":431},{"$f":"VLOOKUP($A100,outcome_data!$A$6:$BJ$216,N$1,0)","v":237485},{"$f":"VLOOKUP($A100,outcome_data!$A$6:$BJ$216,O$1,0)","v":142},{"$f":"VLOOKUP($A100,outcome_data!$A$6:$BJ$216,P$1,0)","v":237485},{"$f":"VLOOKUP($A100,outcome_data!$A$6:$BJ$216,Q$1,0)","v":7299},{"$f":"VLOOKUP($A100,outcome_data!$A$6:$BJ$216,R$1,0)","v":8462},{"$f":"VLOOKUP($A100,outcome_data!$A$6:$BJ$216,S$1,0)","v":6329},{"$f":"VLOOKUP($A100,outcome_data!$A$6:$BJ$216,T$1,0)","v":8462},{"$f":"VLOOKUP($A100,outcome_data!$A$6:$BJ$216,U$1,0)","v":27692},{"$f":"VLOOKUP($A100,outcome_data!$A$6:$BJ$216,V$1,0)","v":36371},{"$f":"VLOOKUP($A100,outcome_data!$A$6:$BJ$216,W$1,0)","v":5191},{"$f":"VLOOKUP($A100,outcome_data!$A$6:$BJ$216,X$1,0)","v":7598},{"$f":"VLOOKUP($A100,outcome_data!$A$6:$BJ$216,Y$1,0)","v":1176},{"$f":"VLOOKUP($A100,outcome_data!$A$6:$BJ$216,Z$1,0)","v":1405},{"$f":"VLOOKUP($A100,outcome_data!$A$6:$BJ$216,AA$1,0)","v":1029},{"$f":"VLOOKUP($A100,outcome_data!$A$6:$BJ$216,AB$1,0)","v":1405},{"$f":"VLOOKUP($A100,outcome_data!$A$6:$BJ$216,AC$1,0)","v":3724},{"$f":"VLOOKUP($A100,outcome_data!$A$6:$BJ$216,AD$1,0)","v":4392},{"$f":"VLOOKUP($A100,outcome_data!$A$6:$BJ$216,AE$1,0)","v":3055},{"$f":"VLOOKUP($A100,outcome_data!$A$6:$BJ$216,AF$1,0)","v":4392}]
["05Q","NHS South East Staffs and Seisdon Peninsular",{"$f":"VLOOKUP($A101,outcome_data!$A$6:$BJ$216,C$1,0)","v":133},{"$f":"VLOOKUP($A101,outcome_data!$A$6:$BJ$216,D$1,0)","v":194998},{"$f":"VLOOKUP($A101,outcome_data!$A$6:$BJ$216,E$1,0)","v":392},{"$f":"VLOOKUP($A101,outcome_data!$A$6:$BJ$216,F$1,0)","v":212023},{"$f":"VLOOKUP($A101,outcome_data!$A$6:$BJ$216,G$1,0)","v":1112},{"$f":"VLOOKUP($A101,outcome_data!$A$6:$BJ$216,H$1,0)","v":212023},{"$f":"VLOOKUP($A101,outcome_data!$A$6:$BJ$216,I$1,0)","v":270},{"$f":"VLOOKUP($A101,outcome_data!$A$6:$BJ$216,J$1,0)","v":212023},{"$f":"VLOOKUP($A101,outcome_data!$A$6:$BJ$216,K$1,0)","v":717},{"$f":"VLOOKUP($A101,outcome_data!$A$6:$BJ$216,L$1,0)","v":212023},{"$f":"VLOOKUP($A101,outcome_data!$A$6:$BJ$216,M$1,0)","v":358},{"$f":"VLOOKUP($A101,outcome_data!$A$6:$BJ$216,N$1,0)","v":212023},{"$f":"VLOOKUP($A101,outcome_data!$A$6:$BJ$216,O$1,0)","v":83},{"$f":"VLOOKUP($A101,outcome_data!$A$6:$BJ$216,P$1,0)","v":212023},{"$f":"VLOOKUP($A101,outcome_data!$A$6:$BJ$216,Q$1,0)","v":6841},{"$f":"VLOOKUP($A101,outcome_data!$A$6:$BJ$216,R$1,0)","v":7724},{"$f":"VLOOKUP($A101,outcome_data!$A$6:$BJ$216,S$1,0)","v":5592},{"$f":"VLOOKUP($A101,outcome_data!$A$6:$BJ$216,T$1,0)","v":7724},{"$f":"VLOOKUP($A101,outcome_data!$A$6:$BJ$216,U$1,0)","v":23562},{"$f":"VLOOKUP($A101,outcome_data!$A$6:$BJ$216,V$1,0)","v":31149},{"$f":"VLOOKUP($A101,outcome_data!$A$6:$BJ$216,W$1,0)","v":5002},{"$f":"VLOOKUP($A101,outcome_data!$A$6:$BJ$216,X$1,0)","v":7109},{"$f":"VLOOKUP($A101,outcome_data!$A$6:$BJ$216,Y$1,0)","v":1090},{"$f":"VLOOKUP($A101,outcome_data!$A$6:$BJ$216,Z$1,0)","v":1276},{"$f":"VLOOKUP($A101,outcome_data!$A$6:$BJ$216,AA$1,0)","v":835},{"$f":"VLOOKUP($A101,outcome_data!$A$6:$BJ$216,AB$1,0)","v":1276},{"$f":"VLOOKUP($A101,outcome_data!$A$6:$BJ$216,AC$1,0)","v":3348},{"$f":"VLOOKUP($A101,outcome_data!$A$6:$BJ$216,AD$1,0)","v":3903},{"$f":"VLOOKUP($A101,outcome_data!$A$6:$BJ$216,AE$1,0)","v":2653},{"$f":"VLOOKUP($A101,outcome_data!$A$6:$BJ$216,AF$1,0)","v":3903}]
["05R","NHS South Warwickshire",{"$f":"VLOOKUP($A102,outcome_data!$A$6:$BJ$216,C$1,0)","v":158},{"$f":"VLOOKUP($A102,outcome_data!$A$6:$BJ$216,D$1,0)","v":248644},{"$f":"VLOOKUP($A102,outcome_data!$A$6:$BJ$216,E$1,0)","v":377},{"$f":"VLOOKUP($A102,outcome_data!$A$6:$BJ$216,F$1,0)","v":273506},{"$f":"VLOOKUP($A102,outcome_data!$A$6:$BJ$216,G$1,0)","v":1072},{"$f":"VLOOKUP($A102,outcome_data!$A$6:$BJ$216,H$1,0)","v":273506},{"$f":"VLOOKUP($A102,outcome_data!$A$6:$BJ$216,I$1,0)","v":231},{"$f":"VLOOKUP($A102,outcome_data!$A$6:$BJ$216,J$1,0)","v":273506},{"$f":"VLOOKUP($A102,outcome_data!$A$6:$BJ$216,K$1,0)","v":583},{"$f":"VLOOKUP($A102,outcome_data!$A$6:$BJ$216,L$1,0)","v":273506},{"$f":"VLOOKUP($A102,outcome_data!$A$6:$BJ$216,M$1,0)","v":283},{"$f":"VLOOKUP($A102,outcome_data!$A$6:$BJ$216,N$1,0)","v":273506},{"$f":"VLOOKUP($A102,outcome_data!$A$6:$BJ$216,O$1,0)","v":74},{"$f":"VLOOKUP($A102,outcome_data!$A$6:$BJ$216,P$1,0)","v":273506},{"$f":"VLOOKUP($A102,outcome_data!$A$6:$BJ$216,Q$1,0)","v":7797},{"$f":"VLOOKUP($A102,outcome_data!$A$6:$BJ$216,R$1,0)","v":8659},{"$f":"VLOOKUP($A102,outcome_data!$A$6:$BJ$216,S$1,0)","v":6159},{"$f":"VLOOKUP($A102,outcome_data!$A$6:$BJ$216,T$1,0)","v":8659},{"$f":"VLOOKUP($A102,outcome_data!$A$6:$BJ$216,U$1,0)","v":31702},{"$f":"VLOOKUP($A102,outcome_data!$A$6:$BJ$216,V$1,0)","v":39654},{"$f":"VLOOKUP($A102,outcome_data!$A$6:$BJ$216,W$1,0)","v":8061},{"$f":"VLOOKUP($A102,outcome_data!$A$6:$BJ$216,X$1,0)","v":11507},{"$f":"VLOOKUP($A102,outcome_data!$A$6:$BJ$216,Y$1,0)","v":1347},{"$f":"VLOOKUP($A102,outcome_data!$A$6:$BJ$216,Z$1,0)","v":1539},{"$f":"VLOOKUP($A102,outcome_data!$A$6:$BJ$216,AA$1,0)","v":1043},{"$f":"VLOOKUP($A102,outcome_data!$A$6:$BJ$216,AB$1,0)","v":1539},{"$f":"VLOOKUP($A102,outcome_data!$A$6:$BJ$216,AC$1,0)","v":4263},{"$f":"VLOOKUP($A102,outcome_data!$A$6:$BJ$216,AD$1,0)","v":4903},{"$f":"VLOOKUP($A102,outcome_data!$A$6:$BJ$216,AE$1,0)","v":3205},{"$f":"VLOOKUP($A102,outcome_data!$A$6:$BJ$216,AF$1,0)","v":4903}]
["05T","NHS South Worcestershire",{"$f":"VLOOKUP($A103,outcome_data!$A$6:$BJ$216,C$1,0)","v":173},{"$f":"VLOOKUP($A103,outcome_data!$A$6:$BJ$216,D$1,0)","v":266891},{"$f":"VLOOKUP($A103,outcome_data!$A$6:$BJ$216,E$1,0)","v":555},{"$f":"VLOOKUP($A103,outcome_data!$A$6:$BJ$216,F$1,0)","v":294796},{"$f":"VLOOKUP($A103,outcome_data!$A$6:$BJ$216,G$1,0)","v":1233},{"$f":"VLOOKUP($A103,outcome_data!$A$6:$BJ$216,H$1,0)","v":294796},{"$f":"VLOOKUP($A103,outcome_data!$A$6:$BJ$216,I$1,0)","v":310},{"$f":"VLOOKUP($A103,outcome_data!$A$6:$BJ$216,J$1,0)","v":294796},{"$f":"VLOOKUP($A103,outcome_data!$A$6:$BJ$216,K$1,0)","v":635},{"$f":"VLOOKUP($A103,outcome_data!$A$6:$BJ$216,L$1,0)","v":294796},{"$f":"VLOOKUP($A103,outcome_data!$A$6:$BJ$216,M$1,0)","v":362},{"$f":"VLOOKUP($A103,outcome_data!$A$6:$BJ$216,N$1,0)","v":294796},{"$f":"VLOOKUP($A103,outcome_data!$A$6:$BJ$216,O$1,0)","v":67},{"$f":"VLOOKUP($A103,outcome_data!$A$6:$BJ$216,P$1,0)","v":294796},{"$f":"VLOOKUP($A103,outcome_data!$A$6:$BJ$216,Q$1,0)","v":8610},{"$f":"VLOOKUP($A103,outcome_data!$A$6:$BJ$216,R$1,0)","v":9839},{"$f":"VLOOKUP($A103,outcome_data!$A$6:$BJ$216,S$1,0)","v":7195},{"$f":"VLOOKUP($A103,outcome_data!$A$6:$BJ$216,T$1,0)","v":9839},{"$f":"VLOOKUP($A103,outcome_data!$A$6:$BJ$216,U$1,0)","v":32810},{"$f":"VLOOKUP($A103,outcome_data!$A$6:$BJ$216,V$1,0)","v":42418},{"$f":"VLOOKUP($A103,outcome_data!$A$6:$BJ$216,W$1,0)","v":8754},{"$f":"VLOOKUP($A103,outcome_data!$A$6:$BJ$216,X$1,0)","v":12359},{"$f":"VLOOKUP($A103,outcome_data!$A$6:$BJ$216,Y$1,0)","v":1501},{"$f":"VLOOKUP($A103,outcome_data!$A$6:$BJ$216,Z$1,0)","v":1770},{"$f":"VLOOKUP($A103,outcome_data!$A$6:$BJ$216,AA$1,0)","v":1239},{"$f":"VLOOKUP($A103,outcome_data!$A$6:$BJ$216,AB$1,0)","v":1770},{"$f":"VLOOKUP($A103,outcome_data!$A$6:$BJ$216,AC$1,0)","v":4541},{"$f":"VLOOKUP($A103,outcome_data!$A$6:$BJ$216,AD$1,0)","v":5368},{"$f":"VLOOKUP($A103,outcome_data!$A$6:$BJ$216,AE$1,0)","v":3579},{"$f":"VLOOKUP($A103,outcome_data!$A$6:$BJ$216,AF$1,0)","v":5368}]
["05V","NHS Stafford and Surrounds",{"$f":"VLOOKUP($A104,outcome_data!$A$6:$BJ$216,C$1,0)","v":87},{"$f":"VLOOKUP($A104,outcome_data!$A$6:$BJ$216,D$1,0)","v":131720},{"$f":"VLOOKUP($A104,outcome_data!$A$6:$BJ$216,E$1,0)","v":369},{"$f":"VLOOKUP($A104,outcome_data!$A$6:$BJ$216,F$1,0)","v":144927},{"$f":"VLOOKUP($A104,outcome_data!$A$6:$BJ$216,G$1,0)","v":724},{"$f":"VLOOKUP($A104,outcome_data!$A$6:$BJ$216,H$1,0)","v":144927},{"$f":"VLOOKUP($A104,outcome_data!$A$6:$BJ$216,I$1,0)","v":179},{"$f":"VLOOKUP($A104,outcome_data!$A$6:$BJ$216,J$1,0)","v":144927},{"$f":"VLOOKUP($A104,outcome_data!$A$6:$BJ$216,K$1,0)","v":464},{"$f":"VLOOKUP($A104,outcome_data!$A$6:$BJ$216,L$1,0)","v":144927},{"$f":"VLOOKUP($A104,outcome_data!$A$6:$BJ$216,M$1,0)","v":172},{"$f":"VLOOKUP($A104,outcome_data!$A$6:$BJ$216,N$1,0)","v":144927},{"$f":"VLOOKUP($A104,outcome_data!$A$6:$BJ$216,O$1,0)","v":49},{"$f":"VLOOKUP($A104,outcome_data!$A$6:$BJ$216,P$1,0)","v":144927},{"$f":"VLOOKUP($A104,outcome_data!$A$6:$BJ$216,Q$1,0)","v":4817},{"$f":"VLOOKUP($A104,outcome_data!$A$6:$BJ$216,R$1,0)","v":5496},{"$f":"VLOOKUP($A104,outcome_data!$A$6:$BJ$216,S$1,0)","v":4026},{"$f":"VLOOKUP($A104,outcome_data!$A$6:$BJ$216,T$1,0)","v":5496},{"$f":"VLOOKUP($A104,outcome_data!$A$6:$BJ$216,U$1,0)","v":16595},{"$f":"VLOOKUP($A104,outcome_data!$A$6:$BJ$216,V$1,0)","v":21888},{"$f":"VLOOKUP($A104,outcome_data!$A$6:$BJ$216,W$1,0)","v":3242},{"$f":"VLOOKUP($A104,outcome_data!$A$6:$BJ$216,X$1,0)","v":4849},{"$f":"VLOOKUP($A104,outcome_data!$A$6:$BJ$216,Y$1,0)","v":862},{"$f":"VLOOKUP($A104,outcome_data!$A$6:$BJ$216,Z$1,0)","v":996},{"$f":"VLOOKUP($A104,outcome_data!$A$6:$BJ$216,AA$1,0)","v":671},{"$f":"VLOOKUP($A104,outcome_data!$A$6:$BJ$216,AB$1,0)","v":996},{"$f":"VLOOKUP($A104,outcome_data!$A$6:$BJ$216,AC$1,0)","v":2456},{"$f":"VLOOKUP($A104,outcome_data!$A$6:$BJ$216,AD$1,0)","v":2917},{"$f":"VLOOKUP($A104,outcome_data!$A$6:$BJ$216,AE$1,0)","v":1973},{"$f":"VLOOKUP($A104,outcome_data!$A$6:$BJ$216,AF$1,0)","v":2917}]
["05W","NHS Stoke On Trent",{"$f":"VLOOKUP($A105,outcome_data!$A$6:$BJ$216,C$1,0)","v":176},{"$f":"VLOOKUP($A105,outcome_data!$A$6:$BJ$216,D$1,0)","v":259485},{"$f":"VLOOKUP($A105,outcome_data!$A$6:$BJ$216,E$1,0)","v":583},{"$f":"VLOOKUP($A105,outcome_data!$A$6:$BJ$216,F$1,0)","v":280303},{"$f":"VLOOKUP($A105,outcome_data!$A$6:$BJ$216,G$1,0)","v":1068},{"$f":"VLOOKUP($A105,outcome_data!$A$6:$BJ$216,H$1,0)","v":280303},{"$f":"VLOOKUP($A105,outcome_data!$A$6:$BJ$216,I$1,0)","v":399},{"$f":"VLOOKUP($A105,outcome_data!$A$6:$BJ$216,J$1,0)","v":280303},{"$f":"VLOOKUP($A105,outcome_data!$A$6:$BJ$216,K$1,0)","v":653},{"$f":"VLOOKUP($A105,outcome_data!$A$6:$BJ$216,L$1,0)","v":280303},{"$f":"VLOOKUP($A105,outcome_data!$A$6:$BJ$216,M$1,0)","v":349},{"$f":"VLOOKUP($A105,outcome_data!$A$6:$BJ$216,N$1,0)","v":280303},{"$f":"VLOOKUP($A105,outcome_data!$A$6:$BJ$216,O$1,0)","v":72},{"$f":"VLOOKUP($A105,outcome_data!$A$6:$BJ$216,P$1,0)","v":280303},{"$f":"VLOOKUP($A105,outcome_data!$A$6:$BJ$216,Q$1,0)","v":9898},{"$f":"VLOOKUP($A105,outcome_data!$A$6:$BJ$216,R$1,0)","v":11133},{"$f":"VLOOKUP($A105,outcome_data!$A$6:$BJ$216,S$1,0)","v":8464},{"$f":"VLOOKUP($A105,outcome_data!$A$6:$BJ$216,T$1,0)","v":11133},{"$f":"VLOOKUP($A105,outcome_data!$A$6:$BJ$216,U$1,0)","v":36369},{"$f":"VLOOKUP($A105,outcome_data!$A$6:$BJ$216,V$1,0)","v":46291},{"$f":"VLOOKUP($A105,outcome_data!$A$6:$BJ$216,W$1,0)","v":6365},{"$f":"VLOOKUP($A105,outcome_data!$A$6:$BJ$216,X$1,0)","v":8505},{"$f":"VLOOKUP($A105,outcome_data!$A$6:$BJ$216,Y$1,0)","v":2248},{"$f":"VLOOKUP($A105,outcome_data!$A$6:$BJ$216,Z$1,0)","v":2591},{"$f":"VLOOKUP($A105,outcome_data!$A$6:$BJ$216,AA$1,0)","v":1862},{"$f":"VLOOKUP($A105,outcome_data!$A$6:$BJ$216,AB$1,0)","v":2591},{"$f":"VLOOKUP($A105,outcome_data!$A$6:$BJ$216,AC$1,0)","v":4992},{"$f":"VLOOKUP($A105,outcome_data!$A$6:$BJ$216,AD$1,0)","v":5714},{"$f":"VLOOKUP($A105,outcome_data!$A$6:$BJ$216,AE$1,0)","v":4159},{"$f":"VLOOKUP($A105,outcome_data!$A$6:$BJ$216,AF$1,0)","v":5714}]
["05X","NHS Telford and Wrekin",{"$f":"VLOOKUP($A106,outcome_data!$A$6:$BJ$216,C$1,0)","v":108},{"$f":"VLOOKUP($A106,outcome_data!$A$6:$BJ$216,D$1,0)","v":162753},{"$f":"VLOOKUP($A106,outcome_data!$A$6:$BJ$216,E$1,0)","v":292},{"$f":"VLOOKUP($A106,outcome_data!$A$6:$BJ$216,F$1,0)","v":173644},{"$f":"VLOOKUP($A106,outcome_data!$A$6:$BJ$216,G$1,0)","v":934},{"$f":"VLOOKUP($A106,outcome_data!$A$6:$BJ$216,H$1,0)","v":173644},{"$f":"VLOOKUP($A106,outcome_data!$A$6:$BJ$216,I$1,0)","v":177},{"$f":"VLOOKUP($A106,outcome_data!$A$6:$BJ$216,J$1,0)","v":173644},{"$f":"VLOOKUP($A106,outcome_data!$A$6:$BJ$216,K$1,0)","v":572},{"$f":"VLOOKUP($A106,outcome_data!$A$6:$BJ$216,L$1,0)","v":173644},{"$f":"VLOOKUP($A106,outcome_data!$A$6:$BJ$216,M$1,0)","v":230},{"$f":"VLOOKUP($A106,outcome_data!$A$6:$BJ$216,N$1,0)","v":173644},{"$f":"VLOOKUP($A106,outcome_data!$A$6:$BJ$216,O$1,0)","v":70},{"$f":"VLOOKUP($A106,outcome_data!$A$6:$BJ$216,P$1,0)","v":173644},{"$f":"VLOOKUP($A106,outcome_data!$A$6:$BJ$216,Q$1,0)","v":4698},{"$f":"VLOOKUP($A106,outcome_data!$A$6:$BJ$216,R$1,0)","v":5444},{"$f":"VLOOKUP($A106,outcome_data!$A$6:$BJ$216,S$1,0)","v":3978},{"$f":"VLOOKUP($A106,outcome_data!$A$6:$BJ$216,T$1,0)","v":5444},{"$f":"VLOOKUP($A106,outcome_data!$A$6:$BJ$216,U$1,0)","v":18370},{"$f":"VLOOKUP($A106,outcome_data!$A$6:$BJ$216,V$1,0)","v":23947},{"$f":"VLOOKUP($A106,outcome_data!$A$6:$BJ$216,W$1,0)","v":4172},{"$f":"VLOOKUP($A106,outcome_data!$A$6:$BJ$216,X$1,0)","v":6031},{"$f":"VLOOKUP($A106,outcome_data!$A$6:$BJ$216,Y$1,0)","v":1229},{"$f":"VLOOKUP($A106,outcome_data!$A$6:$BJ$216,Z$1,0)","v":1481},{"$f":"VLOOKUP($A106,outcome_data!$A$6:$BJ$216,AA$1,0)","v":1012},{"$f":"VLOOKUP($A106,outcome_data!$A$6:$BJ$216,AB$1,0)","v":1481},{"$f":"VLOOKUP($A106,outcome_data!$A$6:$BJ$216,AC$1,0)","v":2273},{"$f":"VLOOKUP($A106,outcome_data!$A$6:$BJ$216,AD$1,0)","v":2733},{"$f":"VLOOKUP($A106,outcome_data!$A$6:$BJ$216,AE$1,0)","v":1854},{"$f":"VLOOKUP($A106,outcome_data!$A$6:$BJ$216,AF$1,0)","v":2733}]
["05Y","NHS Walsall",{"$f":"VLOOKUP($A107,outcome_data!$A$6:$BJ$216,C$1,0)","v":207},{"$f":"VLOOKUP($A107,outcome_data!$A$6:$BJ$216,D$1,0)","v":250474},{"$f":"VLOOKUP($A107,outcome_data!$A$6:$BJ$216,E$1,0)","v":438},{"$f":"VLOOKUP($A107,outcome_data!$A$6:$BJ$216,F$1,0)","v":271415},{"$f":"VLOOKUP($A107,outcome_data!$A$6:$BJ$216,G$1,0)","v":1698},{"$f":"VLOOKUP($A107,outcome_data!$A$6:$BJ$216,H$1,0)","v":271415},{"$f":"VLOOKUP($A107,outcome_data!$A$6:$BJ$216,I$1,0)","v":363},{"$f":"VLOOKUP($A107,outcome_data!$A$6:$BJ$216,J$1,0)","v":271415},{"$f":"VLOOKUP($A107,outcome_data!$A$6:$BJ$216,K$1,0)","v":1117},{"$f":"VLOOKUP($A107,outcome_data!$A$6:$BJ$216,L$1,0)","v":271415},{"$f":"VLOOKUP($A107,outcome_data!$A$6:$BJ$216,M$1,0)","v":376},{"$f":"VLOOKUP($A107,outcome_data!$A$6:$BJ$216,N$1,0)","v":271415},{"$f":"VLOOKUP($A107,outcome_data!$A$6:$BJ$216,O$1,0)","v":127},{"$f":"VLOOKUP($A107,outcome_data!$A$6:$BJ$216,P$1,0)","v":271415},{"$f":"VLOOKUP($A107,outcome_data!$A$6:$BJ$216,Q$1,0)","v":9652},{"$f":"VLOOKUP($A107,outcome_data!$A$6:$BJ$216,R$1,0)","v":10807},{"$f":"VLOOKUP($A107,outcome_data!$A$6:$BJ$216,S$1,0)","v":7705},{"$f":"VLOOKUP($A107,outcome_data!$A$6:$BJ$216,T$1,0)","v":10807},{"$f":"VLOOKUP($A107,outcome_data!$A$6:$BJ$216,U$1,0)","v":33567},{"$f":"VLOOKUP($A107,outcome_data!$A$6:$BJ$216,V$1,0)","v":42007},{"$f":"VLOOKUP($A107,outcome_data!$A$6:$BJ$216,W$1,0)","v":7979},{"$f":"VLOOKUP($A107,outcome_data!$A$6:$BJ$216,X$1,0)","v":10608},{"$f":"VLOOKUP($A107,outcome_data!$A$6:$BJ$216,Y$1,0)","v":1550},{"$f":"VLOOKUP($A107,outcome_data!$A$6:$BJ$216,Z$1,0)","v":1760},{"$f":"VLOOKUP($A107,outcome_data!$A$6:$BJ$216,AA$1,0)","v":1188},{"$f":"VLOOKUP($A107,outcome_data!$A$6:$BJ$216,AB$1,0)","v":1760},{"$f":"VLOOKUP($A107,outcome_data!$A$6:$BJ$216,AC$1,0)","v":4177},{"$f":"VLOOKUP($A107,outcome_data!$A$6:$BJ$216,AD$1,0)","v":4784},{"$f":"VLOOKUP($A107,outcome_data!$A$6:$BJ$216,AE$1,0)","v":3237},{"$f":"VLOOKUP($A107,outcome_data!$A$6:$BJ$216,AF$1,0)","v":4784}]
["06A","NHS Wolverhampton",{"$f":"VLOOKUP($A108,outcome_data!$A$6:$BJ$216,C$1,0)","v":174},{"$f":"VLOOKUP($A108,outcome_data!$A$6:$BJ$216,D$1,0)","v":241836},{"$f":"VLOOKUP($A108,outcome_data!$A$6:$BJ$216,E$1,0)","v":528},{"$f":"VLOOKUP($A108,outcome_data!$A$6:$BJ$216,F$1,0)","v":263038},{"$f":"VLOOKUP($A108,outcome_data!$A$6:$BJ$216,G$1,0)","v":993},{"$f":"VLOOKUP($A108,outcome_data!$A$6:$BJ$216,H$1,0)","v":263038},{"$f":"VLOOKUP($A108,outcome_data!$A$6:$BJ$216,I$1,0)","v":410},{"$f":"VLOOKUP($A108,outcome_data!$A$6:$BJ$216,J$1,0)","v":263038},{"$f":"VLOOKUP($A108,outcome_data!$A$6:$BJ$216,K$1,0)","v":630},{"$f":"VLOOKUP($A108,outcome_data!$A$6:$BJ$216,L$1,0)","v":263038},{"$f":"VLOOKUP($A108,outcome_data!$A$6:$BJ$216,M$1,0)","v":272},{"$f":"VLOOKUP($A108,outcome_data!$A$6:$BJ$216,N$1,0)","v":263038},{"$f":"VLOOKUP($A108,outcome_data!$A$6:$BJ$216,O$1,0)","v":90},{"$f":"VLOOKUP($A108,outcome_data!$A$6:$BJ$216,P$1,0)","v":263038},{"$f":"VLOOKUP($A108,outcome_data!$A$6:$BJ$216,Q$1,0)","v":8457},{"$f":"VLOOKUP($A108,outcome_data!$A$6:$BJ$216,R$1,0)","v":9754},{"$f":"VLOOKUP($A108,outcome_data!$A$6:$BJ$216,S$1,0)","v":6726},{"$f":"VLOOKUP($A108,outcome_data!$A$6:$BJ$216,T$1,0)","v":9754},{"$f":"VLOOKUP($A108,outcome_data!$A$6:$BJ$216,U$1,0)","v":31493},{"$f":"VLOOKUP($A108,outcome_data!$A$6:$BJ$216,V$1,0)","v":41019},{"$f":"VLOOKUP($A108,outcome_data!$A$6:$BJ$216,W$1,0)","v":7082},{"$f":"VLOOKUP($A108,outcome_data!$A$6:$BJ$216,X$1,0)","v":10186},{"$f":"VLOOKUP($A108,outcome_data!$A$6:$BJ$216,Y$1,0)","v":1546},{"$f":"VLOOKUP($A108,outcome_data!$A$6:$BJ$216,Z$1,0)","v":1830},{"$f":"VLOOKUP($A108,outcome_data!$A$6:$BJ$216,AA$1,0)","v":1217},{"$f":"VLOOKUP($A108,outcome_data!$A$6:$BJ$216,AB$1,0)","v":1830},{"$f":"VLOOKUP($A108,outcome_data!$A$6:$BJ$216,AC$1,0)","v":3922},{"$f":"VLOOKUP($A108,outcome_data!$A$6:$BJ$216,AD$1,0)","v":4689},{"$f":"VLOOKUP($A108,outcome_data!$A$6:$BJ$216,AE$1,0)","v":3115},{"$f":"VLOOKUP($A108,outcome_data!$A$6:$BJ$216,AF$1,0)","v":4689}]
["06D","NHS Wyre Forest",{"$f":"VLOOKUP($A109,outcome_data!$A$6:$BJ$216,C$1,0)","v":104},{"$f":"VLOOKUP($A109,outcome_data!$A$6:$BJ$216,D$1,0)","v":101691},{"$f":"VLOOKUP($A109,outcome_data!$A$6:$BJ$216,E$1,0)","v":191},{"$f":"VLOOKUP($A109,outcome_data!$A$6:$BJ$216,F$1,0)","v":112506},{"$f":"VLOOKUP($A109,outcome_data!$A$6:$BJ$216,G$1,0)","v":433},{"$f":"VLOOKUP($A109,outcome_data!$A$6:$BJ$216,H$1,0)","v":112506},{"$f":"VLOOKUP($A109,outcome_data!$A$6:$BJ$216,I$1,0)","v":103},{"$f":"VLOOKUP($A109,outcome_data!$A$6:$BJ$216,J$1,0)","v":112506},{"$f":"VLOOKUP($A109,outcome_data!$A$6:$BJ$216,K$1,0)","v":254},{"$f":"VLOOKUP($A109,outcome_data!$A$6:$BJ$216,L$1,0)","v":112506},{"$f":"VLOOKUP($A109,outcome_data!$A$6:$BJ$216,M$1,0)","v":148},{"$f":"VLOOKUP($A109,outcome_data!$A$6:$BJ$216,N$1,0)","v":112506},{"$f":"VLOOKUP($A109,outcome_data!$A$6:$BJ$216,O$1,0)","v":23},{"$f":"VLOOKUP($A109,outcome_data!$A$6:$BJ$216,P$1,0)","v":112506},{"$f":"VLOOKUP($A109,outcome_data!$A$6:$BJ$216,Q$1,0)","v":3792},{"$f":"VLOOKUP($A109,outcome_data!$A$6:$BJ$216,R$1,0)","v":4356},{"$f":"VLOOKUP($A109,outcome_data!$A$6:$BJ$216,S$1,0)","v":3186},{"$f":"VLOOKUP($A109,outcome_data!$A$6:$BJ$216,T$1,0)","v":4356},{"$f":"VLOOKUP($A109,outcome_data!$A$6:$BJ$216,U$1,0)","v":14787},{"$f":"VLOOKUP($A109,outcome_data!$A$6:$BJ$216,V$1,0)","v":19303},{"$f":"VLOOKUP($A109,outcome_data!$A$6:$BJ$216,W$1,0)","v":3869},{"$f":"VLOOKUP($A109,outcome_data!$A$6:$BJ$216,X$1,0)","v":5577},{"$f":"VLOOKUP($A109,outcome_data!$A$6:$BJ$216,Y$1,0)","v":743},{"$f":"VLOOKUP($A109,outcome_data!$A$6:$BJ$216,Z$1,0)","v":931},{"$f":"VLOOKUP($A109,outcome_data!$A$6:$BJ$216,AA$1,0)","v":627},{"$f":"VLOOKUP($A109,outcome_data!$A$6:$BJ$216,AB$1,0)","v":931},{"$f":"VLOOKUP($A109,outcome_data!$A$6:$BJ$216,AC$1,0)","v":2420},{"$f":"VLOOKUP($A109,outcome_data!$A$6:$BJ$216,AD$1,0)","v":2837},{"$f":"VLOOKUP($A109,outcome_data!$A$6:$BJ$216,AE$1,0)","v":1887},{"$f":"VLOOKUP($A109,outcome_data!$A$6:$BJ$216,AF$1,0)","v":2837}]
["06F","NHS Bedfordshire",{"$f":"VLOOKUP($A110,outcome_data!$A$6:$BJ$216,C$1,0)","v":243},{"$f":"VLOOKUP($A110,outcome_data!$A$6:$BJ$216,D$1,0)","v":412167},{"$f":"VLOOKUP($A110,outcome_data!$A$6:$BJ$216,E$1,0)","v":576},{"$f":"VLOOKUP($A110,outcome_data!$A$6:$BJ$216,F$1,0)","v":443678},{"$f":"VLOOKUP($A110,outcome_data!$A$6:$BJ$216,G$1,0)","v":2249},{"$f":"VLOOKUP($A110,outcome_data!$A$6:$BJ$216,H$1,0)","v":443678},{"$f":"VLOOKUP($A110,outcome_data!$A$6:$BJ$216,I$1,0)","v":476},{"$f":"VLOOKUP($A110,outcome_data!$A$6:$BJ$216,J$1,0)","v":443678},{"$f":"VLOOKUP($A110,outcome_data!$A$6:$BJ$216,K$1,0)","v":1380},{"$f":"VLOOKUP($A110,outcome_data!$A$6:$BJ$216,L$1,0)","v":443678},{"$f":"VLOOKUP($A110,outcome_data!$A$6:$BJ$216,M$1,0)","v":563},{"$f":"VLOOKUP($A110,outcome_data!$A$6:$BJ$216,N$1,0)","v":443678},{"$f":"VLOOKUP($A110,outcome_data!$A$6:$BJ$216,O$1,0)","v":187},{"$f":"VLOOKUP($A110,outcome_data!$A$6:$BJ$216,P$1,0)","v":443678},{"$f":"VLOOKUP($A110,outcome_data!$A$6:$BJ$216,Q$1,0)","v":12072},{"$f":"VLOOKUP($A110,outcome_data!$A$6:$BJ$216,R$1,0)","v":13659},{"$f":"VLOOKUP($A110,outcome_data!$A$6:$BJ$216,S$1,0)","v":9812},{"$f":"VLOOKUP($A110,outcome_data!$A$6:$BJ$216,T$1,0)","v":13659},{"$f":"VLOOKUP($A110,outcome_data!$A$6:$BJ$216,U$1,0)","v":46952},{"$f":"VLOOKUP($A110,outcome_data!$A$6:$BJ$216,V$1,0)","v":60155},{"$f":"VLOOKUP($A110,outcome_data!$A$6:$BJ$216,W$1,0)","v":8677},{"$f":"VLOOKUP($A110,outcome_data!$A$6:$BJ$216,X$1,0)","v":12568},{"$f":"VLOOKUP($A110,outcome_data!$A$6:$BJ$216,Y$1,0)","v":1852},{"$f":"VLOOKUP($A110,outcome_data!$A$6:$BJ$216,Z$1,0)","v":2185},{"$f":"VLOOKUP($A110,outcome_data!$A$6:$BJ$216,AA$1,0)","v":1490},{"$f":"VLOOKUP($A110,outcome_data!$A$6:$BJ$216,AB$1,0)","v":2185},{"$f":"VLOOKUP($A110,outcome_data!$A$6:$BJ$216,AC$1,0)","v":5550},{"$f":"VLOOKUP($A110,outcome_data!$A$6:$BJ$216,AD$1,0)","v":6543},{"$f":"VLOOKUP($A110,outcome_data!$A$6:$BJ$216,AE$1,0)","v":4361},{"$f":"VLOOKUP($A110,outcome_data!$A$6:$BJ$216,AF$1,0)","v":6543}]
["06H","NHS Cambridgeshire and Peterborough",{"$f":"VLOOKUP($A111,outcome_data!$A$6:$BJ$216,C$1,0)","v":432},{"$f":"VLOOKUP($A111,outcome_data!$A$6:$BJ$216,D$1,0)","v":814696},{"$f":"VLOOKUP($A111,outcome_data!$A$6:$BJ$216,E$1,0)","v":1036},{"$f":"VLOOKUP($A111,outcome_data!$A$6:$BJ$216,F$1,0)","v":875984},{"$f":"VLOOKUP($A111,outcome_data!$A$6:$BJ$216,G$1,0)","v":4356},{"$f":"VLOOKUP($A111,outcome_data!$A$6:$BJ$216,H$1,0)","v":875984},{"$f":"VLOOKUP($A111,outcome_data!$A$6:$BJ$216,I$1,0)","v":906},{"$f":"VLOOKUP($A111,outcome_data!$A$6:$BJ$216,J$1,0)","v":875984},{"$f":"VLOOKUP($A111,outcome_data!$A$6:$BJ$216,K$1,0)","v":2239},{"$f":"VLOOKUP($A111,outcome_data!$A$6:$BJ$216,L$1,0)","v":875984},{"$f":"VLOOKUP($A111,outcome_data!$A$6:$BJ$216,M$1,0)","v":906},{"$f":"VLOOKUP($A111,outcome_data!$A$6:$BJ$216,N$1,0)","v":875984},{"$f":"VLOOKUP($A111,outcome_data!$A$6:$BJ$216,O$1,0)","v":339},{"$f":"VLOOKUP($A111,outcome_data!$A$6:$BJ$216,P$1,0)","v":875984},{"$f":"VLOOKUP($A111,outcome_data!$A$6:$BJ$216,Q$1,0)","v":22673},{"$f":"VLOOKUP($A111,outcome_data!$A$6:$BJ$216,R$1,0)","v":25888},{"$f":"VLOOKUP($A111,outcome_data!$A$6:$BJ$216,S$1,0)","v":18151},{"$f":"VLOOKUP($A111,outcome_data!$A$6:$BJ$216,T$1,0)","v":25888},{"$f":"VLOOKUP($A111,outcome_data!$A$6:$BJ$216,U$1,0)","v":87550},{"$f":"VLOOKUP($A111,outcome_data!$A$6:$BJ$216,V$1,0)","v":112990},{"$f":"VLOOKUP($A111,outcome_data!$A$6:$BJ$216,W$1,0)","v":17478},{"$f":"VLOOKUP($A111,outcome_data!$A$6:$BJ$216,X$1,0)","v":24792},{"$f":"VLOOKUP($A111,outcome_data!$A$6:$BJ$216,Y$1,0)","v":4501},{"$f":"VLOOKUP($A111,outcome_data!$A$6:$BJ$216,Z$1,0)","v":5229},{"$f":"VLOOKUP($A111,outcome_data!$A$6:$BJ$216,AA$1,0)","v":3455},{"$f":"VLOOKUP($A111,outcome_data!$A$6:$BJ$216,AB$1,0)","v":5229},{"$f":"VLOOKUP($A111,outcome_data!$A$6:$BJ$216,AC$1,0)","v":10813},{"$f":"VLOOKUP($A111,outcome_data!$A$6:$BJ$216,AD$1,0)","v":12794},{"$f":"VLOOKUP($A111,outcome_data!$A$6:$BJ$216,AE$1,0)","v":8367},{"$f":"VLOOKUP($A111,outcome_data!$A$6:$BJ$216,AF$1,0)","v":12794}]
["06K","NHS East and North Hertfordshire",{"$f":"VLOOKUP($A112,outcome_data!$A$6:$BJ$216,C$1,0)","v":318},{"$f":"VLOOKUP($A112,outcome_data!$A$6:$BJ$216,D$1,0)","v":529320},{"$f":"VLOOKUP($A112,outcome_data!$A$6:$BJ$216,E$1,0)","v":632},{"$f":"VLOOKUP($A112,outcome_data!$A$6:$BJ$216,F$1,0)","v":573048},{"$f":"VLOOKUP($A112,outcome_data!$A$6:$BJ$216,G$1,0)","v":2955},{"$f":"VLOOKUP($A112,outcome_data!$A$6:$BJ$216,H$1,0)","v":573048},{"$f":"VLOOKUP($A112,outcome_data!$A$6:$BJ$216,I$1,0)","v":485},{"$f":"VLOOKUP($A112,outcome_data!$A$6:$BJ$216,J$1,0)","v":573048},{"$f":"VLOOKUP($A112,outcome_data!$A$6:$BJ$216,K$1,0)","v":2167},{"$f":"VLOOKUP($A112,outcome_data!$A$6:$BJ$216,L$1,0)","v":573048},{"$f":"VLOOKUP($A112,outcome_data!$A$6:$BJ$216,M$1,0)","v":754},{"$f":"VLOOKUP($A112,outcome_data!$A$6:$BJ$216,N$1,0)","v":573048},{"$f":"VLOOKUP($A112,outcome_data!$A$6:$BJ$216,O$1,0)","v":180},{"$f":"VLOOKUP($A112,outcome_data!$A$6:$BJ$216,P$1,0)","v":573048},{"$f":"VLOOKUP($A112,outcome_data!$A$6:$BJ$216,Q$1,0)","v":15001},{"$f":"VLOOKUP($A112,outcome_data!$A$6:$BJ$216,R$1,0)","v":17003},{"$f":"VLOOKUP($A112,outcome_data!$A$6:$BJ$216,S$1,0)","v":12353},{"$f":"VLOOKUP($A112,outcome_data!$A$6:$BJ$216,T$1,0)","v":17003},{"$f":"VLOOKUP($A112,outcome_data!$A$6:$BJ$216,U$1,0)","v":58882},{"$f":"VLOOKUP($A112,outcome_data!$A$6:$BJ$216,V$1,0)","v":75531},{"$f":"VLOOKUP($A112,outcome_data!$A$6:$BJ$216,W$1,0)","v":11411},{"$f":"VLOOKUP($A112,outcome_data!$A$6:$BJ$216,X$1,0)","v":15689},{"$f":"VLOOKUP($A112,outcome_data!$A$6:$BJ$216,Y$1,0)","v":2498},{"$f":"VLOOKUP($A112,outcome_data!$A$6:$BJ$216,Z$1,0)","v":2910},{"$f":"VLOOKUP($A112,outcome_data!$A$6:$BJ$216,AA$1,0)","v":2015},{"$f":"VLOOKUP($A112,outcome_data!$A$6:$BJ$216,AB$1,0)","v":2910},{"$f":"VLOOKUP($A112,outcome_data!$A$6:$BJ$216,AC$1,0)","v":7428},{"$f":"VLOOKUP($A112,outcome_data!$A$6:$BJ$216,AD$1,0)","v":8694},{"$f":"VLOOKUP($A112,outcome_data!$A$6:$BJ$216,AE$1,0)","v":5768},{"$f":"VLOOKUP($A112,outcome_data!$A$6:$BJ$216,AF$1,0)","v":8694}]
["06L","NHS Ipswich and East Suffolk",{"$f":"VLOOKUP($A113,outcome_data!$A$6:$BJ$216,C$1,0)","v":229},{"$f":"VLOOKUP($A113,outcome_data!$A$6:$BJ$216,D$1,0)","v":353681},{"$f":"VLOOKUP($A113,outcome_data!$A$6:$BJ$216,E$1,0)","v":702},{"$f":"VLOOKUP($A113,outcome_data!$A$6:$BJ$216,F$1,0)","v":390245},{"$f":"VLOOKUP($A113,outcome_data!$A$6:$BJ$216,G$1,0)","v":2303},{"$f":"VLOOKUP($A113,outcome_data!$A$6:$BJ$216,H$1,0)","v":390245},{"$f":"VLOOKUP($A113,outcome_data!$A$6:$BJ$216,I$1,0)","v":449},{"$f":"VLOOKUP($A113,outcome_data!$A$6:$BJ$216,J$1,0)","v":390245},{"$f":"VLOOKUP($A113,outcome_data!$A$6:$BJ$216,K$1,0)","v":1174},{"$f":"VLOOKUP($A113,outcome_data!$A$6:$BJ$216,L$1,0)","v":390245},{"$f":"VLOOKUP($A113,outcome_data!$A$6:$BJ$216,M$1,0)","v":432},{"$f":"VLOOKUP($A113,outcome_data!$A$6:$BJ$216,N$1,0)","v":390245},{"$f":"VLOOKUP($A113,outcome_data!$A$6:$BJ$216,O$1,0)","v":191},{"$f":"VLOOKUP($A113,outcome_data!$A$6:$BJ$216,P$1,0)","v":390245},{"$f":"VLOOKUP($A113,outcome_data!$A$6:$BJ$216,Q$1,0)","v":12991},{"$f":"VLOOKUP($A113,outcome_data!$A$6:$BJ$216,R$1,0)","v":14793},{"$f":"VLOOKUP($A113,outcome_data!$A$6:$BJ$216,S$1,0)","v":10385},{"$f":"VLOOKUP($A113,outcome_data!$A$6:$BJ$216,T$1,0)","v":14793},{"$f":"VLOOKUP($A113,outcome_data!$A$6:$BJ$216,U$1,0)","v":42725},{"$f":"VLOOKUP($A113,outcome_data!$A$6:$BJ$216,V$1,0)","v":55149},{"$f":"VLOOKUP($A113,outcome_data!$A$6:$BJ$216,W$1,0)","v":10094},{"$f":"VLOOKUP($A113,outcome_data!$A$6:$BJ$216,X$1,0)","v":14446},{"$f":"VLOOKUP($A113,outcome_data!$A$6:$BJ$216,Y$1,0)","v":1798},{"$f":"VLOOKUP($A113,outcome_data!$A$6:$BJ$216,Z$1,0)","v":2187},{"$f":"VLOOKUP($A113,outcome_data!$A$6:$BJ$216,AA$1,0)","v":1400},{"$f":"VLOOKUP($A113,outcome_data!$A$6:$BJ$216,AB$1,0)","v":2187},{"$f":"VLOOKUP($A113,outcome_data!$A$6:$BJ$216,AC$1,0)","v":6555},{"$f":"VLOOKUP($A113,outcome_data!$A$6:$BJ$216,AD$1,0)","v":7646},{"$f":"VLOOKUP($A113,outcome_data!$A$6:$BJ$216,AE$1,0)","v":4978},{"$f":"VLOOKUP($A113,outcome_data!$A$6:$BJ$216,AF$1,0)","v":7646}]
["06M","NHS Great Yarmouth and Waveney",{"$f":"VLOOKUP($A114,outcome_data!$A$6:$BJ$216,C$1,0)","v":175},{"$f":"VLOOKUP($A114,outcome_data!$A$6:$BJ$216,D$1,0)","v":207253},{"$f":"VLOOKUP($A114,outcome_data!$A$6:$BJ$216,E$1,0)","v":441},{"$f":"VLOOKUP($A114,outcome_data!$A$6:$BJ$216,F$1,0)","v":231986},{"$f":"VLOOKUP($A114,outcome_data!$A$6:$BJ$216,G$1,0)","v":1586},{"$f":"VLOOKUP($A114,outcome_data!$A$6:$BJ$216,H$1,0)","v":231986},{"$f":"VLOOKUP($A114,outcome_data!$A$6:$BJ$216,I$1,0)","v":348},{"$f":"VLOOKUP($A114,outcome_data!$A$6:$BJ$216,J$1,0)","v":231986},{"$f":"VLOOKUP($A114,outcome_data!$A$6:$BJ$216,K$1,0)","v":666},{"$f":"VLOOKUP($A114,outcome_data!$A$6:$BJ$216,L$1,0)","v":231986},{"$f":"VLOOKUP($A114,outcome_data!$A$6:$BJ$216,M$1,0)","v":349},{"$f":"VLOOKUP($A114,outcome_data!$A$6:$BJ$216,N$1,0)","v":231986},{"$f":"VLOOKUP($A114,outcome_data!$A$6:$BJ$216,O$1,0)","v":103},{"$f":"VLOOKUP($A114,outcome_data!$A$6:$BJ$216,P$1,0)","v":231986},{"$f":"VLOOKUP($A114,outcome_data!$A$6:$BJ$216,Q$1,0)","v":8506},{"$f":"VLOOKUP($A114,outcome_data!$A$6:$BJ$216,R$1,0)","v":9723},{"$f":"VLOOKUP($A114,outcome_data!$A$6:$BJ$216,S$1,0)","v":6937},{"$f":"VLOOKUP($A114,outcome_data!$A$6:$BJ$216,T$1,0)","v":9723},{"$f":"VLOOKUP($A114,outcome_data!$A$6:$BJ$216,U$1,0)","v":29866},{"$f":"VLOOKUP($A114,outcome_data!$A$6:$BJ$216,V$1,0)","v":38978},{"$f":"VLOOKUP($A114,outcome_data!$A$6:$BJ$216,W$1,0)","v":7974},{"$f":"VLOOKUP($A114,outcome_data!$A$6:$BJ$216,X$1,0)","v":11119},{"$f":"VLOOKUP($A114,outcome_data!$A$6:$BJ$216,Y$1,0)","v":1764},{"$f":"VLOOKUP($A114,outcome_data!$A$6:$BJ$216,Z$1,0)","v":2102},{"$f":"VLOOKUP($A114,outcome_data!$A$6:$BJ$216,AA$1,0)","v":1351},{"$f":"VLOOKUP($A114,outcome_data!$A$6:$BJ$216,AB$1,0)","v":2102},{"$f":"VLOOKUP($A114,outcome_data!$A$6:$BJ$216,AC$1,0)","v":4237},{"$f":"VLOOKUP($A114,outcome_data!$A$6:$BJ$216,AD$1,0)","v":4931},{"$f":"VLOOKUP($A114,outcome_data!$A$6:$BJ$216,AE$1,0)","v":3332},{"$f":"VLOOKUP($A114,outcome_data!$A$6:$BJ$216,AF$1,0)","v":4931}]
["06N","NHS Herts Valleys",{"$f":"VLOOKUP($A115,outcome_data!$A$6:$BJ$216,C$1,0)","v":280},{"$f":"VLOOKUP($A115,outcome_data!$A$6:$BJ$216,D$1,0)","v":564646},{"$f":"VLOOKUP($A115,outcome_data!$A$6:$BJ$216,E$1,0)","v":793},{"$f":"VLOOKUP($A115,outcome_data!$A$6:$BJ$216,F$1,0)","v":609319},{"$f":"VLOOKUP($A115,outcome_data!$A$6:$BJ$216,G$1,0)","v":2313},{"$f":"VLOOKUP($A115,outcome_data!$A$6:$BJ$216,H$1,0)","v":609319},{"$f":"VLOOKUP($A115,outcome_data!$A$6:$BJ$216,I$1,0)","v":522},{"$f":"VLOOKUP($A115,outcome_data!$A$6:$BJ$216,J$1,0)","v":609319},{"$f":"VLOOKUP($A115,outcome_data!$A$6:$BJ$216,K$1,0)","v":1921},{"$f":"VLOOKUP($A115,outcome_data!$A$6:$BJ$216,L$1,0)","v":609319},{"$f":"VLOOKUP($A115,outcome_data!$A$6:$BJ$216,M$1,0)","v":628},{"$f":"VLOOKUP($A115,outcome_data!$A$6:$BJ$216,N$1,0)","v":609319},{"$f":"VLOOKUP($A115,outcome_data!$A$6:$BJ$216,O$1,0)","v":210},{"$f":"VLOOKUP($A115,outcome_data!$A$6:$BJ$216,P$1,0)","v":609319},{"$f":"VLOOKUP($A115,outcome_data!$A$6:$BJ$216,Q$1,0)","v":14221},{"$f":"VLOOKUP($A115,outcome_data!$A$6:$BJ$216,R$1,0)","v":16026},{"$f":"VLOOKUP($A115,outcome_data!$A$6:$BJ$216,S$1,0)","v":11749},{"$f":"VLOOKUP($A115,outcome_data!$A$6:$BJ$216,T$1,0)","v":16026},{"$f":"VLOOKUP($A115,outcome_data!$A$6:$BJ$216,U$1,0)","v":59038},{"$f":"VLOOKUP($A115,outcome_data!$A$6:$BJ$216,V$1,0)","v":75499},{"$f":"VLOOKUP($A115,outcome_data!$A$6:$BJ$216,W$1,0)","v":12422},{"$f":"VLOOKUP($A115,outcome_data!$A$6:$BJ$216,X$1,0)","v":17411},{"$f":"VLOOKUP($A115,outcome_data!$A$6:$BJ$216,Y$1,0)","v":3019},{"$f":"VLOOKUP($A115,outcome_data!$A$6:$BJ$216,Z$1,0)","v":3442},{"$f":"VLOOKUP($A115,outcome_data!$A$6:$BJ$216,AA$1,0)","v":2390},{"$f":"VLOOKUP($A115,outcome_data!$A$6:$BJ$216,AB$1,0)","v":3442},{"$f":"VLOOKUP($A115,outcome_data!$A$6:$BJ$216,AC$1,0)","v":8066},{"$f":"VLOOKUP($A115,outcome_data!$A$6:$BJ$216,AD$1,0)","v":9377},{"$f":"VLOOKUP($A115,outcome_data!$A$6:$BJ$216,AE$1,0)","v":6396},{"$f":"VLOOKUP($A115,outcome_data!$A$6:$BJ$216,AF$1,0)","v":9377}]
["06P","NHS Luton",{"$f":"VLOOKUP($A116,outcome_data!$A$6:$BJ$216,C$1,0)","v":139},{"$f":"VLOOKUP($A116,outcome_data!$A$6:$BJ$216,D$1,0)","v":206139},{"$f":"VLOOKUP($A116,outcome_data!$A$6:$BJ$216,E$1,0)","v":178},{"$f":"VLOOKUP($A116,outcome_data!$A$6:$BJ$216,F$1,0)","v":216957},{"$f":"VLOOKUP($A116,outcome_data!$A$6:$BJ$216,G$1,0)","v":1381},{"$f":"VLOOKUP($A116,outcome_data!$A$6:$BJ$216,H$1,0)","v":216957},{"$f":"VLOOKUP($A116,outcome_data!$A$6:$BJ$216,I$1,0)","v":226},{"$f":"VLOOKUP($A116,outcome_data!$A$6:$BJ$216,J$1,0)","v":216957},{"$f":"VLOOKUP($A116,outcome_data!$A$6:$BJ$216,K$1,0)","v":686},{"$f":"VLOOKUP($A116,outcome_data!$A$6:$BJ$216,L$1,0)","v":216957},{"$f":"VLOOKUP($A116,outcome_data!$A$6:$BJ$216,M$1,0)","v":270},{"$f":"VLOOKUP($A116,outcome_data!$A$6:$BJ$216,N$1,0)","v":216957},{"$f":"VLOOKUP($A116,outcome_data!$A$6:$BJ$216,O$1,0)","v":93},{"$f":"VLOOKUP($A116,outcome_data!$A$6:$BJ$216,P$1,0)","v":216957},{"$f":"VLOOKUP($A116,outcome_data!$A$6:$BJ$216,Q$1,0)","v":4608},{"$f":"VLOOKUP($A116,outcome_data!$A$6:$BJ$216,R$1,0)","v":5505},{"$f":"VLOOKUP($A116,outcome_data!$A$6:$BJ$216,S$1,0)","v":3862},{"$f":"VLOOKUP($A116,outcome_data!$A$6:$BJ$216,T$1,0)","v":5505},{"$f":"VLOOKUP($A116,outcome_data!$A$6:$BJ$216,U$1,0)","v":18870},{"$f":"VLOOKUP($A116,outcome_data!$A$6:$BJ$216,V$1,0)","v":25688},{"$f":"VLOOKUP($A116,outcome_data!$A$6:$BJ$216,W$1,0)","v":2627},{"$f":"VLOOKUP($A116,outcome_data!$A$6:$BJ$216,X$1,0)","v":4034},{"$f":"VLOOKUP($A116,outcome_data!$A$6:$BJ$216,Y$1,0)","v":727},{"$f":"VLOOKUP($A116,outcome_data!$A$6:$BJ$216,Z$1,0)","v":906},{"$f":"VLOOKUP($A116,outcome_data!$A$6:$BJ$216,AA$1,0)","v":583},{"$f":"VLOOKUP($A116,outcome_data!$A$6:$BJ$216,AB$1,0)","v":906},{"$f":"VLOOKUP($A116,outcome_data!$A$6:$BJ$216,AC$1,0)","v":2071},{"$f":"VLOOKUP($A116,outcome_data!$A$6:$BJ$216,AD$1,0)","v":2520},{"$f":"VLOOKUP($A116,outcome_data!$A$6:$BJ$216,AE$1,0)","v":1662},{"$f":"VLOOKUP($A116,outcome_data!$A$6:$BJ$216,AF$1,0)","v":2520}]
["06Q","NHS Mid Essex",{"$f":"VLOOKUP($A117,outcome_data!$A$6:$BJ$216,C$1,0)","v":212},{"$f":"VLOOKUP($A117,outcome_data!$A$6:$BJ$216,D$1,0)","v":351360},{"$f":"VLOOKUP($A117,outcome_data!$A$6:$BJ$216,E$1,0)","v":480},{"$f":"VLOOKUP($A117,outcome_data!$A$6:$BJ$216,F$1,0)","v":381712},{"$f":"VLOOKUP($A117,outcome_data!$A$6:$BJ$216,G$1,0)","v":2043},{"$f":"VLOOKUP($A117,outcome_data!$A$6:$BJ$216,H$1,0)","v":381712},{"$f":"VLOOKUP($A117,outcome_data!$A$6:$BJ$216,I$1,0)","v":417},{"$f":"VLOOKUP($A117,outcome_data!$A$6:$BJ$216,J$1,0)","v":381712},{"$f":"VLOOKUP($A117,outcome_data!$A$6:$BJ$216,K$1,0)","v":1086},{"$f":"VLOOKUP($A117,outcome_data!$A$6:$BJ$216,L$1,0)","v":381712},{"$f":"VLOOKUP($A117,outcome_data!$A$6:$BJ$216,M$1,0)","v":413},{"$f":"VLOOKUP($A117,outcome_data!$A$6:$BJ$216,N$1,0)","v":381712},{"$f":"VLOOKUP($A117,outcome_data!$A$6:$BJ$216,O$1,0)","v":135},{"$f":"VLOOKUP($A117,outcome_data!$A$6:$BJ$216,P$1,0)","v":381712},{"$f":"VLOOKUP($A117,outcome_data!$A$6:$BJ$216,Q$1,0)","v":10561},{"$f":"VLOOKUP($A117,outcome_data!$A$6:$BJ$216,R$1,0)","v":12075},{"$f":"VLOOKUP($A117,outcome_data!$A$6:$BJ$216,S$1,0)","v":8473},{"$f":"VLOOKUP($A117,outcome_data!$A$6:$BJ$216,T$1,0)","v":12075},{"$f":"VLOOKUP($A117,outcome_data!$A$6:$BJ$216,U$1,0)","v":39767},{"$f":"VLOOKUP($A117,outcome_data!$A$6:$BJ$216,V$1,0)","v":51929},{"$f":"VLOOKUP($A117,outcome_data!$A$6:$BJ$216,W$1,0)","v":9410},{"$f":"VLOOKUP($A117,outcome_data!$A$6:$BJ$216,X$1,0)","v":13871},{"$f":"VLOOKUP($A117,outcome_data!$A$6:$BJ$216,Y$1,0)","v":1473},{"$f":"VLOOKUP($A117,outcome_data!$A$6:$BJ$216,Z$1,0)","v":1746},{"$f":"VLOOKUP($A117,outcome_data!$A$6:$BJ$216,AA$1,0)","v":1079},{"$f":"VLOOKUP($A117,outcome_data!$A$6:$BJ$216,AB$1,0)","v":1746},{"$f":"VLOOKUP($A117,outcome_data!$A$6:$BJ$216,AC$1,0)","v":5004},{"$f":"VLOOKUP($A117,outcome_data!$A$6:$BJ$216,AD$1,0)","v":5994},{"$f":"VLOOKUP($A117,outcome_data!$A$6:$BJ$216,AE$1,0)","v":3736},{"$f":"VLOOKUP($A117,outcome_data!$A$6:$BJ$216,AF$1,0)","v":5994}]
["06T","NHS North East Essex",{"$f":"VLOOKUP($A118,outcome_data!$A$6:$BJ$216,C$1,0)","v":207},{"$f":"VLOOKUP($A118,outcome_data!$A$6:$BJ$216,D$1,0)","v":298709},{"$f":"VLOOKUP($A118,outcome_data!$A$6:$BJ$216,E$1,0)","v":484},{"$f":"VLOOKUP($A118,outcome_data!$A$6:$BJ$216,F$1,0)","v":332062},{"$f":"VLOOKUP($A118,outcome_data!$A$6:$BJ$216,G$1,0)","v":1718},{"$f":"VLOOKUP($A118,outcome_data!$A$6:$BJ$216,H$1,0)","v":332062},{"$f":"VLOOKUP($A118,outcome_data!$A$6:$BJ$216,I$1,0)","v":467},{"$f":"VLOOKUP($A118,outcome_data!$A$6:$BJ$216,J$1,0)","v":332062},{"$f":"VLOOKUP($A118,outcome_data!$A$6:$BJ$216,K$1,0)","v":1023},{"$f":"VLOOKUP($A118,outcome_data!$A$6:$BJ$216,L$1,0)","v":332062},{"$f":"VLOOKUP($A118,outcome_data!$A$6:$BJ$216,M$1,0)","v":415},{"$f":"VLOOKUP($A118,outcome_data!$A$6:$BJ$216,N$1,0)","v":332062},{"$f":"VLOOKUP($A118,outcome_data!$A$6:$BJ$216,O$1,0)","v":118},{"$f":"VLOOKUP($A118,outcome_data!$A$6:$BJ$216,P$1,0)","v":332062},{"$f":"VLOOKUP($A118,outcome_data!$A$6:$BJ$216,Q$1,0)","v":11088},{"$f":"VLOOKUP($A118,outcome_data!$A$6:$BJ$216,R$1,0)","v":12485},{"$f":"VLOOKUP($A118,outcome_data!$A$6:$BJ$216,S$1,0)","v":9118},{"$f":"VLOOKUP($A118,outcome_data!$A$6:$BJ$216,T$1,0)","v":12485},{"$f":"VLOOKUP($A118,outcome_data!$A$6:$BJ$216,U$1,0)","v":40855},{"$f":"VLOOKUP($A118,outcome_data!$A$6:$BJ$216,V$1,0)","v":52500},{"$f":"VLOOKUP($A118,outcome_data!$A$6:$BJ$216,W$1,0)","v":10631},{"$f":"VLOOKUP($A118,outcome_data!$A$6:$BJ$216,X$1,0)","v":14820},{"$f":"VLOOKUP($A118,outcome_data!$A$6:$BJ$216,Y$1,0)","v":1812},{"$f":"VLOOKUP($A118,outcome_data!$A$6:$BJ$216,Z$1,0)","v":2132},{"$f":"VLOOKUP($A118,outcome_data!$A$6:$BJ$216,AA$1,0)","v":1476},{"$f":"VLOOKUP($A118,outcome_data!$A$6:$BJ$216,AB$1,0)","v":2132},{"$f":"VLOOKUP($A118,outcome_data!$A$6:$BJ$216,AC$1,0)","v":5361},{"$f":"VLOOKUP($A118,outcome_data!$A$6:$BJ$216,AD$1,0)","v":6206},{"$f":"VLOOKUP($A118,outcome_data!$A$6:$BJ$216,AE$1,0)","v":4144},{"$f":"VLOOKUP($A118,outcome_data!$A$6:$BJ$216,AF$1,0)","v":6206}]
["06V","NHS North Norfolk",{"$f":"VLOOKUP($A119,outcome_data!$A$6:$BJ$216,C$1,0)","v":122},{"$f":"VLOOKUP($A119,outcome_data!$A$6:$BJ$216,D$1,0)","v":146392},{"$f":"VLOOKUP($A119,outcome_data!$A$6:$BJ$216,E$1,0)","v":477},{"$f":"VLOOKUP($A119,outcome_data!$A$6:$BJ$216,F$1,0)","v":168310},{"$f":"VLOOKUP($A119,outcome_data!$A$6:$BJ$216,G$1,0)","v":1104},{"$f":"VLOOKUP($A119,outcome_data!$A$6:$BJ$216,H$1,0)","v":168310},{"$f":"VLOOKUP($A119,outcome_data!$A$6:$BJ$216,I$1,0)","v":287},{"$f":"VLOOKUP($A119,outcome_data!$A$6:$BJ$216,J$1,0)","v":168310},{"$f":"VLOOKUP($A119,outcome_data!$A$6:$BJ$216,K$1,0)","v":531},{"$f":"VLOOKUP($A119,outcome_data!$A$6:$BJ$216,L$1,0)","v":168310},{"$f":"VLOOKUP($A119,outcome_data!$A$6:$BJ$216,M$1,0)","v":290},{"$f":"VLOOKUP($A119,outcome_data!$A$6:$BJ$216,N$1,0)","v":168310},{"$f":"VLOOKUP($A119,outcome_data!$A$6:$BJ$216,O$1,0)","v":91},{"$f":"VLOOKUP($A119,outcome_data!$A$6:$BJ$216,P$1,0)","v":168310},{"$f":"VLOOKUP($A119,outcome_data!$A$6:$BJ$216,Q$1,0)","v":6748},{"$f":"VLOOKUP($A119,outcome_data!$A$6:$BJ$216,R$1,0)","v":7638},{"$f":"VLOOKUP($A119,outcome_data!$A$6:$BJ$216,S$1,0)","v":5381},{"$f":"VLOOKUP($A119,outcome_data!$A$6:$BJ$216,T$1,0)","v":7638},{"$f":"VLOOKUP($A119,outcome_data!$A$6:$BJ$216,U$1,0)","v":22399},{"$f":"VLOOKUP($A119,outcome_data!$A$6:$BJ$216,V$1,0)","v":28710},{"$f":"VLOOKUP($A119,outcome_data!$A$6:$BJ$216,W$1,0)","v":5968},{"$f":"VLOOKUP($A119,outcome_data!$A$6:$BJ$216,X$1,0)","v":8556},{"$f":"VLOOKUP($A119,outcome_data!$A$6:$BJ$216,Y$1,0)","v":1046},{"$f":"VLOOKUP($A119,outcome_data!$A$6:$BJ$216,Z$1,0)","v":1237},{"$f":"VLOOKUP($A119,outcome_data!$A$6:$BJ$216,AA$1,0)","v":851},{"$f":"VLOOKUP($A119,outcome_data!$A$6:$BJ$216,AB$1,0)","v":1237},{"$f":"VLOOKUP($A119,outcome_data!$A$6:$BJ$216,AC$1,0)","v":3540},{"$f":"VLOOKUP($A119,outcome_data!$A$6:$BJ$216,AD$1,0)","v":4183},{"$f":"VLOOKUP($A119,outcome_data!$A$6:$BJ$216,AE$1,0)","v":2646},{"$f":"VLOOKUP($A119,outcome_data!$A$6:$BJ$216,AF$1,0)","v":4183}]
["06W","NHS Norwich",{"$f":"VLOOKUP($A120,outcome_data!$A$6:$BJ$216,C$1,0)","v":95},{"$f":"VLOOKUP($A120,outcome_data!$A$6:$BJ$216,D$1,0)","v":193153},{"$f":"VLOOKUP($A120,outcome_data!$A$6:$BJ$216,E$1,0)","v":403},{"$f":"VLOOKUP($A120,outcome_data!$A$6:$BJ$216,F$1,0)","v":210587},{"$f":"VLOOKUP($A120,outcome_data!$A$6:$BJ$216,G$1,0)","v":864},{"$f":"VLOOKUP($A120,outcome_data!$A$6:$BJ$216,H$1,0)","v":210587},{"$f":"VLOOKUP($A120,outcome_data!$A$6:$BJ$216,I$1,0)","v":191},{"$f":"VLOOKUP($A120,outcome_data!$A$6:$BJ$216,J$1,0)","v":210587},{"$f":"VLOOKUP($A120,outcome_data!$A$6:$BJ$216,K$1,0)","v":416},{"$f":"VLOOKUP($A120,outcome_data!$A$6:$BJ$216,L$1,0)","v":210587},{"$f":"VLOOKUP($A120,outcome_data!$A$6:$BJ$216,M$1,0)","v":244},{"$f":"VLOOKUP($A120,outcome_data!$A$6:$BJ$216,N$1,0)","v":210587},{"$f":"VLOOKUP($A120,outcome_data!$A$6:$BJ$216,O$1,0)","v":48},{"$f":"VLOOKUP($A120,outcome_data!$A$6:$BJ$216,P$1,0)","v":210587},{"$f":"VLOOKUP($A120,outcome_data!$A$6:$BJ$216,Q$1,0)","v":5533},{"$f":"VLOOKUP($A120,outcome_data!$A$6:$BJ$216,R$1,0)","v":6320},{"$f":"VLOOKUP($A120,outcome_data!$A$6:$BJ$216,S$1,0)","v":4558},{"$f":"VLOOKUP($A120,outcome_data!$A$6:$BJ$216,T$1,0)","v":6320},{"$f":"VLOOKUP($A120,outcome_data!$A$6:$BJ$216,U$1,0)","v":19996},{"$f":"VLOOKUP($A120,outcome_data!$A$6:$BJ$216,V$1,0)","v":25247},{"$f":"VLOOKUP($A120,outcome_data!$A$6:$BJ$216,W$1,0)","v":4269},{"$f":"VLOOKUP($A120,outcome_data!$A$6:$BJ$216,X$1,0)","v":6094},{"$f":"VLOOKUP($A120,outcome_data!$A$6:$BJ$216,Y$1,0)","v":1075},{"$f":"VLOOKUP($A120,outcome_data!$A$6:$BJ$216,Z$1,0)","v":1279},{"$f":"VLOOKUP($A120,outcome_data!$A$6:$BJ$216,AA$1,0)","v":862},{"$f":"VLOOKUP($A120,outcome_data!$A$6:$BJ$216,AB$1,0)","v":1279},{"$f":"VLOOKUP($A120,outcome_data!$A$6:$BJ$216,AC$1,0)","v":2972},{"$f":"VLOOKUP($A120,outcome_data!$A$6:$BJ$216,AD$1,0)","v":3501},{"$f":"VLOOKUP($A120,outcome_data!$A$6:$BJ$216,AE$1,0)","v":2337},{"$f":"VLOOKUP($A120,outcome_data!$A$6:$BJ$216,AF$1,0)","v":3501}]
["06Y","NHS South Norfolk",{"$f":"VLOOKUP($A121,outcome_data!$A$6:$BJ$216,C$1,0)","v":139},{"$f":"VLOOKUP($A121,outcome_data!$A$6:$BJ$216,D$1,0)","v":203227},{"$f":"VLOOKUP($A121,outcome_data!$A$6:$BJ$216,E$1,0)","v":456},{"$f":"VLOOKUP($A121,outcome_data!$A$6:$BJ$216,F$1,0)","v":222990},{"$f":"VLOOKUP($A121,outcome_data!$A$6:$BJ$216,G$1,0)","v":1127},{"$f":"VLOOKUP($A121,outcome_data!$A$6:$BJ$216,H$1,0)","v":222990},{"$f":"VLOOKUP($A121,outcome_data!$A$6:$BJ$216,I$1,0)","v":283},{"$f":"VLOOKUP($A121,outcome_data!$A$6:$BJ$216,J$1,0)","v":222990},{"$f":"VLOOKUP($A121,outcome_data!$A$6:$BJ$216,K$1,0)","v":566},{"$f":"VLOOKUP($A121,outcome_data!$A$6:$BJ$216,L$1,0)","v":222990},{"$f":"VLOOKUP($A121,outcome_data!$A$6:$BJ$216,M$1,0)","v":316},{"$f":"VLOOKUP($A121,outcome_data!$A$6:$BJ$216,N$1,0)","v":222990},{"$f":"VLOOKUP($A121,outcome_data!$A$6:$BJ$216,O$1,0)","v":79},{"$f":"VLOOKUP($A121,outcome_data!$A$6:$BJ$216,P$1,0)","v":222990},{"$f":"VLOOKUP($A121,outcome_data!$A$6:$BJ$216,Q$1,0)","v":7314},{"$f":"VLOOKUP($A121,outcome_data!$A$6:$BJ$216,R$1,0)","v":8131},{"$f":"VLOOKUP($A121,outcome_data!$A$6:$BJ$216,S$1,0)","v":6063},{"$f":"VLOOKUP($A121,outcome_data!$A$6:$BJ$216,T$1,0)","v":8107},{"$f":"VLOOKUP($A121,outcome_data!$A$6:$BJ$216,U$1,0)","v":27154},{"$f":"VLOOKUP($A121,outcome_data!$A$6:$BJ$216,V$1,0)","v":34486},{"$f":"VLOOKUP($A121,outcome_data!$A$6:$BJ$216,W$1,0)","v":5791},{"$f":"VLOOKUP($A121,outcome_data!$A$6:$BJ$216,X$1,0)","v":8168},{"$f":"VLOOKUP($A121,outcome_data!$A$6:$BJ$216,Y$1,0)","v":1185},{"$f":"VLOOKUP($A121,outcome_data!$A$6:$BJ$216,Z$1,0)","v":1386},{"$f":"VLOOKUP($A121,outcome_data!$A$6:$BJ$216,AA$1,0)","v":981},{"$f":"VLOOKUP($A121,outcome_data!$A$6:$BJ$216,AB$1,0)","v":1385},{"$f":"VLOOKUP($A121,outcome_data!$A$6:$BJ$216,AC$1,0)","v":3708},{"$f":"VLOOKUP($A121,outcome_data!$A$6:$BJ$216,AD$1,0)","v":4331},{"$f":"VLOOKUP($A121,outcome_data!$A$6:$BJ$216,AE$1,0)","v":2932},{"$f":"VLOOKUP($A121,outcome_data!$A$6:$BJ$216,AF$1,0)","v":4321}]
["07G","NHS Thurrock",{"$f":"VLOOKUP($A122,outcome_data!$A$6:$BJ$216,C$1,0)","v":102},{"$f":"VLOOKUP($A122,outcome_data!$A$6:$BJ$216,D$1,0)","v":154581},{"$f":"VLOOKUP($A122,outcome_data!$A$6:$BJ$216,E$1,0)","v":229},{"$f":"VLOOKUP($A122,outcome_data!$A$6:$BJ$216,F$1,0)","v":164031},{"$f":"VLOOKUP($A122,outcome_data!$A$6:$BJ$216,G$1,0)","v":564},{"$f":"VLOOKUP($A122,outcome_data!$A$6:$BJ$216,H$1,0)","v":164031},{"$f":"VLOOKUP($A122,outcome_data!$A$6:$BJ$216,I$1,0)","v":125},{"$f":"VLOOKUP($A122,outcome_data!$A$6:$BJ$216,J$1,0)","v":164031},{"$f":"VLOOKUP($A122,outcome_data!$A$6:$BJ$216,K$1,0)","v":380},{"$f":"VLOOKUP($A122,outcome_data!$A$6:$BJ$216,L$1,0)","v":164031},{"$f":"VLOOKUP($A122,outcome_data!$A$6:$BJ$216,M$1,0)","v":128},{"$f":"VLOOKUP($A122,outcome_data!$A$6:$BJ$216,N$1,0)","v":164031},{"$f":"VLOOKUP($A122,outcome_data!$A$6:$BJ$216,O$1,0)","v":54},{"$f":"VLOOKUP($A122,outcome_data!$A$6:$BJ$216,P$1,0)","v":164031},{"$f":"VLOOKUP($A122,outcome_data!$A$6:$BJ$216,Q$1,0)","v":4001},{"$f":"VLOOKUP($A122,outcome_data!$A$6:$BJ$216,R$1,0)","v":4524},{"$f":"VLOOKUP($A122,outcome_data!$A$6:$BJ$216,S$1,0)","v":3107},{"$f":"VLOOKUP($A122,outcome_data!$A$6:$BJ$216,T$1,0)","v":4524},{"$f":"VLOOKUP($A122,outcome_data!$A$6:$BJ$216,U$1,0)","v":18380},{"$f":"VLOOKUP($A122,outcome_data!$A$6:$BJ$216,V$1,0)","v":23350},{"$f":"VLOOKUP($A122,outcome_data!$A$6:$BJ$216,W$1,0)","v":4293},{"$f":"VLOOKUP($A122,outcome_data!$A$6:$BJ$216,X$1,0)","v":5804},{"$f":"VLOOKUP($A122,outcome_data!$A$6:$BJ$216,Y$1,0)","v":699},{"$f":"VLOOKUP($A122,outcome_data!$A$6:$BJ$216,Z$1,0)","v":814},{"$f":"VLOOKUP($A122,outcome_data!$A$6:$BJ$216,AA$1,0)","v":494},{"$f":"VLOOKUP($A122,outcome_data!$A$6:$BJ$216,AB$1,0)","v":814},{"$f":"VLOOKUP($A122,outcome_data!$A$6:$BJ$216,AC$1,0)","v":2045},{"$f":"VLOOKUP($A122,outcome_data!$A$6:$BJ$216,AD$1,0)","v":2384},{"$f":"VLOOKUP($A122,outcome_data!$A$6:$BJ$216,AE$1,0)","v":1534},{"$f":"VLOOKUP($A122,outcome_data!$A$6:$BJ$216,AF$1,0)","v":2384}]
["07H","NHS West Essex",{"$f":"VLOOKUP($A123,outcome_data!$A$6:$BJ$216,C$1,0)","v":139},{"$f":"VLOOKUP($A123,outcome_data!$A$6:$BJ$216,D$1,0)","v":272314},{"$f":"VLOOKUP($A123,outcome_data!$A$6:$BJ$216,E$1,0)","v":379},{"$f":"VLOOKUP($A123,outcome_data!$A$6:$BJ$216,F$1,0)","v":295444},{"$f":"VLOOKUP($A123,outcome_data!$A$6:$BJ$216,G$1,0)","v":1647},{"$f":"VLOOKUP($A123,outcome_data!$A$6:$BJ$216,H$1,0)","v":295444},{"$f":"VLOOKUP($A123,outcome_data!$A$6:$BJ$216,I$1,0)","v":258},{"$f":"VLOOKUP($A123,outcome_data!$A$6:$BJ$216,J$1,0)","v":295444},{"$f":"VLOOKUP($A123,outcome_data!$A$6:$BJ$216,K$1,0)","v":967},{"$f":"VLOOKUP($A123,outcome_data!$A$6:$BJ$216,L$1,0)","v":295444},{"$f":"VLOOKUP($A123,outcome_data!$A$6:$BJ$216,M$1,0)","v":355},{"$f":"VLOOKUP($A123,outcome_data!$A$6:$BJ$216,N$1,0)","v":295444},{"$f":"VLOOKUP($A123,outcome_data!$A$6:$BJ$216,O$1,0)","v":84},{"$f":"VLOOKUP($A123,outcome_data!$A$6:$BJ$216,P$1,0)","v":295444},{"$f":"VLOOKUP($A123,outcome_data!$A$6:$BJ$216,Q$1,0)","v":7818},{"$f":"VLOOKUP($A123,outcome_data!$A$6:$BJ$216,R$1,0)","v":8947},{"$f":"VLOOKUP($A123,outcome_data!$A$6:$BJ$216,S$1,0)","v":6346},{"$f":"VLOOKUP($A123,outcome_data!$A$6:$BJ$216,T$1,0)","v":8947},{"$f":"VLOOKUP($A123,outcome_data!$A$6:$BJ$216,U$1,0)","v":30886},{"$f":"VLOOKUP($A123,outcome_data!$A$6:$BJ$216,V$1,0)","v":40773},{"$f":"VLOOKUP($A123,outcome_data!$A$6:$BJ$216,W$1,0)","v":5712},{"$f":"VLOOKUP($A123,outcome_data!$A$6:$BJ$216,X$1,0)","v":7953},{"$f":"VLOOKUP($A123,outcome_data!$A$6:$BJ$216,Y$1,0)","v":1358},{"$f":"VLOOKUP($A123,outcome_data!$A$6:$BJ$216,Z$1,0)","v":1609},{"$f":"VLOOKUP($A123,outcome_data!$A$6:$BJ$216,AA$1,0)","v":1063},{"$f":"VLOOKUP($A123,outcome_data!$A$6:$BJ$216,AB$1,0)","v":1609},{"$f":"VLOOKUP($A123,outcome_data!$A$6:$BJ$216,AC$1,0)","v":3846},{"$f":"VLOOKUP($A123,outcome_data!$A$6:$BJ$216,AD$1,0)","v":4563},{"$f":"VLOOKUP($A123,outcome_data!$A$6:$BJ$216,AE$1,0)","v":2975},{"$f":"VLOOKUP($A123,outcome_data!$A$6:$BJ$216,AF$1,0)","v":4563}]
["07J","NHS West Norfolk",{"$f":"VLOOKUP($A124,outcome_data!$A$6:$BJ$216,C$1,0)","v":96},{"$f":"VLOOKUP($A124,outcome_data!$A$6:$BJ$216,D$1,0)","v":146855},{"$f":"VLOOKUP($A124,outcome_data!$A$6:$BJ$216,E$1,0)","v":325},{"$f":"VLOOKUP($A124,outcome_data!$A$6:$BJ$216,F$1,0)","v":165867},{"$f":"VLOOKUP($A124,outcome_data!$A$6:$BJ$216,G$1,0)","v":1373},{"$f":"VLOOKUP($A124,outcome_data!$A$6:$BJ$216,H$1,0)","v":165867},{"$f":"VLOOKUP($A124,outcome_data!$A$6:$BJ$216,I$1,0)","v":238},{"$f":"VLOOKUP($A124,outcome_data!$A$6:$BJ$216,J$1,0)","v":165867},{"$f":"VLOOKUP($A124,outcome_data!$A$6:$BJ$216,K$1,0)","v":468},{"$f":"VLOOKUP($A124,outcome_data!$A$6:$BJ$216,L$1,0)","v":165867},{"$f":"VLOOKUP($A124,outcome_data!$A$6:$BJ$216,M$1,0)","v":266},{"$f":"VLOOKUP($A124,outcome_data!$A$6:$BJ$216,N$1,0)","v":165867},{"$f":"VLOOKUP($A124,outcome_data!$A$6:$BJ$216,O$1,0)","v":111},{"$f":"VLOOKUP($A124,outcome_data!$A$6:$BJ$216,P$1,0)","v":165867},{"$f":"VLOOKUP($A124,outcome_data!$A$6:$BJ$216,Q$1,0)","v":6784},{"$f":"VLOOKUP($A124,outcome_data!$A$6:$BJ$216,R$1,0)","v":7857},{"$f":"VLOOKUP($A124,outcome_data!$A$6:$BJ$216,S$1,0)","v":5673},{"$f":"VLOOKUP($A124,outcome_data!$A$6:$BJ$216,T$1,0)","v":7857},{"$f":"VLOOKUP($A124,outcome_data!$A$6:$BJ$216,U$1,0)","v":23274},{"$f":"VLOOKUP($A124,outcome_data!$A$6:$BJ$216,V$1,0)","v":30431},{"$f":"VLOOKUP($A124,outcome_data!$A$6:$BJ$216,W$1,0)","v":5024},{"$f":"VLOOKUP($A124,outcome_data!$A$6:$BJ$216,X$1,0)","v":7208},{"$f":"VLOOKUP($A124,outcome_data!$A$6:$BJ$216,Y$1,0)","v":1013},{"$f":"VLOOKUP($A124,outcome_data!$A$6:$BJ$216,Z$1,0)","v":1180},{"$f":"VLOOKUP($A124,outcome_data!$A$6:$BJ$216,AA$1,0)","v":815},{"$f":"VLOOKUP($A124,outcome_data!$A$6:$BJ$216,AB$1,0)","v":1180},{"$f":"VLOOKUP($A124,outcome_data!$A$6:$BJ$216,AC$1,0)","v":3369},{"$f":"VLOOKUP($A124,outcome_data!$A$6:$BJ$216,AD$1,0)","v":4005},{"$f":"VLOOKUP($A124,outcome_data!$A$6:$BJ$216,AE$1,0)","v":2752},{"$f":"VLOOKUP($A124,outcome_data!$A$6:$BJ$216,AF$1,0)","v":4005}]
["07K","NHS West Suffolk",{"$f":"VLOOKUP($A125,outcome_data!$A$6:$BJ$216,C$1,0)","v":138},{"$f":"VLOOKUP($A125,outcome_data!$A$6:$BJ$216,D$1,0)","v":216423},{"$f":"VLOOKUP($A125,outcome_data!$A$6:$BJ$216,E$1,0)","v":379},{"$f":"VLOOKUP($A125,outcome_data!$A$6:$BJ$216,F$1,0)","v":238410},{"$f":"VLOOKUP($A125,outcome_data!$A$6:$BJ$216,G$1,0)","v":1426},{"$f":"VLOOKUP($A125,outcome_data!$A$6:$BJ$216,H$1,0)","v":238410},{"$f":"VLOOKUP($A125,outcome_data!$A$6:$BJ$216,I$1,0)","v":326},{"$f":"VLOOKUP($A125,outcome_data!$A$6:$BJ$216,J$1,0)","v":238410},{"$f":"VLOOKUP($A125,outcome_data!$A$6:$BJ$216,K$1,0)","v":665},{"$f":"VLOOKUP($A125,outcome_data!$A$6:$BJ$216,L$1,0)","v":238410},{"$f":"VLOOKUP($A125,outcome_data!$A$6:$BJ$216,M$1,0)","v":323},{"$f":"VLOOKUP($A125,outcome_data!$A$6:$BJ$216,N$1,0)","v":238410},{"$f":"VLOOKUP($A125,outcome_data!$A$6:$BJ$216,O$1,0)","v":109},{"$f":"VLOOKUP($A125,outcome_data!$A$6:$BJ$216,P$1,0)","v":238410},{"$f":"VLOOKUP($A125,outcome_data!$A$6:$BJ$216,Q$1,0)","v":7305},{"$f":"VLOOKUP($A125,outcome_data!$A$6:$BJ$216,R$1,0)","v":8267},{"$f":"VLOOKUP($A125,outcome_data!$A$6:$BJ$216,S$1,0)","v":5828},{"$f":"VLOOKUP($A125,outcome_data!$A$6:$BJ$216,T$1,0)","v":8267},{"$f":"VLOOKUP($A125,outcome_data!$A$6:$BJ$216,U$1,0)","v":27116},{"$f":"VLOOKUP($A125,outcome_data!$A$6:$BJ$216,V$1,0)","v":34794},{"$f":"VLOOKUP($A125,outcome_data!$A$6:$BJ$216,W$1,0)","v":4591},{"$f":"VLOOKUP($A125,outcome_data!$A$6:$BJ$216,X$1,0)","v":6515},{"$f":"VLOOKUP($A125,outcome_data!$A$6:$BJ$216,Y$1,0)","v":1259},{"$f":"VLOOKUP($A125,outcome_data!$A$6:$BJ$216,Z$1,0)","v":1468},{"$f":"VLOOKUP($A125,outcome_data!$A$6:$BJ$216,AA$1,0)","v":970},{"$f":"VLOOKUP($A125,outcome_data!$A$6:$BJ$216,AB$1,0)","v":1468},{"$f":"VLOOKUP($A125,outcome_data!$A$6:$BJ$216,AC$1,0)","v":3619},{"$f":"VLOOKUP($A125,outcome_data!$A$6:$BJ$216,AD$1,0)","v":4234},{"$f":"VLOOKUP($A125,outcome_data!$A$6:$BJ$216,AE$1,0)","v":2796},{"$f":"VLOOKUP($A125,outcome_data!$A$6:$BJ$216,AF$1,0)","v":4234}]
["07L","NHS Barking and Dagenham",{"$f":"VLOOKUP($A126,outcome_data!$A$6:$BJ$216,C$1,0)","v":93},{"$f":"VLOOKUP($A126,outcome_data!$A$6:$BJ$216,D$1,0)","v":195905},{"$f":"VLOOKUP($A126,outcome_data!$A$6:$BJ$216,E$1,0)","v":189},{"$f":"VLOOKUP($A126,outcome_data!$A$6:$BJ$216,F$1,0)","v":204754},{"$f":"VLOOKUP($A126,outcome_data!$A$6:$BJ$216,G$1,0)","v":872},{"$f":"VLOOKUP($A126,outcome_data!$A$6:$BJ$216,H$1,0)","v":204754},{"$f":"VLOOKUP($A126,outcome_data!$A$6:$BJ$216,I$1,0)","v":225},{"$f":"VLOOKUP($A126,outcome_data!$A$6:$BJ$216,J$1,0)","v":204754},{"$f":"VLOOKUP($A126,outcome_data!$A$6:$BJ$216,K$1,0)","v":521},{"$f":"VLOOKUP($A126,outcome_data!$A$6:$BJ$216,L$1,0)","v":204754},{"$f":"VLOOKUP($A126,outcome_data!$A$6:$BJ$216,M$1,0)","v":191},{"$f":"VLOOKUP($A126,outcome_data!$A$6:$BJ$216,N$1,0)","v":204754},{"$f":"VLOOKUP($A126,outcome_data!$A$6:$BJ$216,O$1,0)","v":66},{"$f":"VLOOKUP($A126,outcome_data!$A$6:$BJ$216,P$1,0)","v":204754},{"$f":"VLOOKUP($A126,outcome_data!$A$6:$BJ$216,Q$1,0)","v":3941},{"$f":"VLOOKUP($A126,outcome_data!$A$6:$BJ$216,R$1,0)","v":4463},{"$f":"VLOOKUP($A126,outcome_data!$A$6:$BJ$216,S$1,0)","v":3334},{"$f":"VLOOKUP($A126,outcome_data!$A$6:$BJ$216,T$1,0)","v":4463},{"$f":"VLOOKUP($A126,outcome_data!$A$6:$BJ$216,U$1,0)","v":19046},{"$f":"VLOOKUP($A126,outcome_data!$A$6:$BJ$216,V$1,0)","v":24626},{"$f":"VLOOKUP($A126,outcome_data!$A$6:$BJ$216,W$1,0)","v":3074},{"$f":"VLOOKUP($A126,outcome_data!$A$6:$BJ$216,X$1,0)","v":4188},{"$f":"VLOOKUP($A126,outcome_data!$A$6:$BJ$216,Y$1,0)","v":679},{"$f":"VLOOKUP($A126,outcome_data!$A$6:$BJ$216,Z$1,0)","v":759},{"$f":"VLOOKUP($A126,outcome_data!$A$6:$BJ$216,AA$1,0)","v":533},{"$f":"VLOOKUP($A126,outcome_data!$A$6:$BJ$216,AB$1,0)","v":759},{"$f":"VLOOKUP($A126,outcome_data!$A$6:$BJ$216,AC$1,0)","v":1636},{"$f":"VLOOKUP($A126,outcome_data!$A$6:$BJ$216,AD$1,0)","v":1911},{"$f":"VLOOKUP($A126,outcome_data!$A$6:$BJ$216,AE$1,0)","v":1379},{"$f":"VLOOKUP($A126,outcome_data!$A$6:$BJ$216,AF$1,0)","v":1911}]
["07M","NHS Barnet",{"$f":"VLOOKUP($A127,outcome_data!$A$6:$BJ$216,C$1,0)","v":154},{"$f":"VLOOKUP($A127,outcome_data!$A$6:$BJ$216,D$1,0)","v":361656},{"$f":"VLOOKUP($A127,outcome_data!$A$6:$BJ$216,E$1,0)","v":587},{"$f":"VLOOKUP($A127,outcome_data!$A$6:$BJ$216,F$1,0)","v":386604},{"$f":"VLOOKUP($A127,outcome_data!$A$6:$BJ$216,G$1,0)","v":1553},{"$f":"VLOOKUP($A127,outcome_data!$A$6:$BJ$216,H$1,0)","v":386604},{"$f":"VLOOKUP($A127,outcome_data!$A$6:$BJ$216,I$1,0)","v":418},{"$f":"VLOOKUP($A127,outcome_data!$A$6:$BJ$216,J$1,0)","v":386604},{"$f":"VLOOKUP($A127,outcome_data!$A$6:$BJ$216,K$1,0)","v":961},{"$f":"VLOOKUP($A127,outcome_data!$A$6:$BJ$216,L$1,0)","v":386604},{"$f":"VLOOKUP($A127,outcome_data!$A$6:$BJ$216,M$1,0)","v":402},{"$f":"VLOOKUP($A127,outcome_data!$A$6:$BJ$216,N$1,0)","v":386604},{"$f":"VLOOKUP($A127,outcome_data!$A$6:$BJ$216,O$1,0)","v":90},{"$f":"VLOOKUP($A127,outcome_data!$A$6:$BJ$216,P$1,0)","v":386604},{"$f":"VLOOKUP($A127,outcome_data!$A$6:$BJ$216,Q$1,0)","v":9133},{"$f":"VLOOKUP($A127,outcome_data!$A$6:$BJ$216,R$1,0)","v":10441},{"$f":"VLOOKUP($A127,outcome_data!$A$6:$BJ$216,S$1,0)","v":7597},{"$f":"VLOOKUP($A127,outcome_data!$A$6:$BJ$216,T$1,0)","v":10441},{"$f":"VLOOKUP($A127,outcome_data!$A$6:$BJ$216,U$1,0)","v":34679},{"$f":"VLOOKUP($A127,outcome_data!$A$6:$BJ$216,V$1,0)","v":45575},{"$f":"VLOOKUP($A127,outcome_data!$A$6:$BJ$216,W$1,0)","v":6346},{"$f":"VLOOKUP($A127,outcome_data!$A$6:$BJ$216,X$1,0)","v":8804},{"$f":"VLOOKUP($A127,outcome_data!$A$6:$BJ$216,Y$1,0)","v":1453},{"$f":"VLOOKUP($A127,outcome_data!$A$6:$BJ$216,Z$1,0)","v":1666},{"$f":"VLOOKUP($A127,outcome_data!$A$6:$BJ$216,AA$1,0)","v":1132},{"$f":"VLOOKUP($A127,outcome_data!$A$6:$BJ$216,AB$1,0)","v":1666},{"$f":"VLOOKUP($A127,outcome_data!$A$6:$BJ$216,AC$1,0)","v":4189},{"$f":"VLOOKUP($A127,outcome_data!$A$6:$BJ$216,AD$1,0)","v":4925},{"$f":"VLOOKUP($A127,outcome_data!$A$6:$BJ$216,AE$1,0)","v":3344},{"$f":"VLOOKUP($A127,outcome_data!$A$6:$BJ$216,AF$1,0)","v":4925}]
["07N","NHS Bexley",{"$f":"VLOOKUP($A128,outcome_data!$A$6:$BJ$216,C$1,0)","v":109},{"$f":"VLOOKUP($A128,outcome_data!$A$6:$BJ$216,D$1,0)","v":207718},{"$f":"VLOOKUP($A128,outcome_data!$A$6:$BJ$216,E$1,0)","v":330},{"$f":"VLOOKUP($A128,outcome_data!$A$6:$BJ$216,F$1,0)","v":226921},{"$f":"VLOOKUP($A128,outcome_data!$A$6:$BJ$216,G$1,0)","v":956},{"$f":"VLOOKUP($A128,outcome_data!$A$6:$BJ$216,H$1,0)","v":226921},{"$f":"VLOOKUP($A128,outcome_data!$A$6:$BJ$216,I$1,0)","v":217},{"$f":"VLOOKUP($A128,outcome_data!$A$6:$BJ$216,J$1,0)","v":226921},{"$f":"VLOOKUP($A128,outcome_data!$A$6:$BJ$216,K$1,0)","v":588},{"$f":"VLOOKUP($A128,outcome_data!$A$6:$BJ$216,L$1,0)","v":226921},{"$f":"VLOOKUP($A128,outcome_data!$A$6:$BJ$216,M$1,0)","v":295},{"$f":"VLOOKUP($A128,outcome_data!$A$6:$BJ$216,N$1,0)","v":226921},{"$f":"VLOOKUP($A128,outcome_data!$A$6:$BJ$216,O$1,0)","v":72},{"$f":"VLOOKUP($A128,outcome_data!$A$6:$BJ$216,P$1,0)","v":226921},{"$f":"VLOOKUP($A128,outcome_data!$A$6:$BJ$216,Q$1,0)","v":5866},{"$f":"VLOOKUP($A128,outcome_data!$A$6:$BJ$216,R$1,0)","v":6707},{"$f":"VLOOKUP($A128,outcome_data!$A$6:$BJ$216,S$1,0)","v":4780},{"$f":"VLOOKUP($A128,outcome_data!$A$6:$BJ$216,T$1,0)","v":6707},{"$f":"VLOOKUP($A128,outcome_data!$A$6:$BJ$216,U$1,0)","v":25175},{"$f":"VLOOKUP($A128,outcome_data!$A$6:$BJ$216,V$1,0)","v":32034},{"$f":"VLOOKUP($A128,outcome_data!$A$6:$BJ$216,W$1,0)","v":4582},{"$f":"VLOOKUP($A128,outcome_data!$A$6:$BJ$216,X$1,0)","v":6429},{"$f":"VLOOKUP($A128,outcome_data!$A$6:$BJ$216,Y$1,0)","v":985},{"$f":"VLOOKUP($A128,outcome_data!$A$6:$BJ$216,Z$1,0)","v":1151},{"$f":"VLOOKUP($A128,outcome_data!$A$6:$BJ$216,AA$1,0)","v":783},{"$f":"VLOOKUP($A128,outcome_data!$A$6:$BJ$216,AB$1,0)","v":1151},{"$f":"VLOOKUP($A128,outcome_data!$A$6:$BJ$216,AC$1,0)","v":2984},{"$f":"VLOOKUP($A128,outcome_data!$A$6:$BJ$216,AD$1,0)","v":3470},{"$f":"VLOOKUP($A128,outcome_data!$A$6:$BJ$216,AE$1,0)","v":2325},{"$f":"VLOOKUP($A128,outcome_data!$A$6:$BJ$216,AF$1,0)","v":3470}]
["07P","NHS Brent",{"$f":"VLOOKUP($A129,outcome_data!$A$6:$BJ$216,C$1,0)","v":165},{"$f":"VLOOKUP($A129,outcome_data!$A$6:$BJ$216,D$1,0)","v":331963},{"$f":"VLOOKUP($A129,outcome_data!$A$6:$BJ$216,E$1,0)","v":415},{"$f":"VLOOKUP($A129,outcome_data!$A$6:$BJ$216,F$1,0)","v":345315},{"$f":"VLOOKUP($A129,outcome_data!$A$6:$BJ$216,G$1,0)","v":1508},{"$f":"VLOOKUP($A129,outcome_data!$A$6:$BJ$216,H$1,0)","v":345315},{"$f":"VLOOKUP($A129,outcome_data!$A$6:$BJ$216,I$1,0)","v":372},{"$f":"VLOOKUP($A129,outcome_data!$A$6:$BJ$216,J$1,0)","v":345315},{"$f":"VLOOKUP($A129,outcome_data!$A$6:$BJ$216,K$1,0)","v":1157},{"$f":"VLOOKUP($A129,outcome_data!$A$6:$BJ$216,L$1,0)","v":345315},{"$f":"VLOOKUP($A129,outcome_data!$A$6:$BJ$216,M$1,0)","v":414},{"$f":"VLOOKUP($A129,outcome_data!$A$6:$BJ$216,N$1,0)","v":345315},{"$f":"VLOOKUP($A129,outcome_data!$A$6:$BJ$216,O$1,0)","v":94},{"$f":"VLOOKUP($A129,outcome_data!$A$6:$BJ$216,P$1,0)","v":345315},{"$f":"VLOOKUP($A129,outcome_data!$A$6:$BJ$216,Q$1,0)","v":6687},{"$f":"VLOOKUP($A129,outcome_data!$A$6:$BJ$216,R$1,0)","v":7601},{"$f":"VLOOKUP($A129,outcome_data!$A$6:$BJ$216,S$1,0)","v":5598},{"$f":"VLOOKUP($A129,outcome_data!$A$6:$BJ$216,T$1,0)","v":7601},{"$f":"VLOOKUP($A129,outcome_data!$A$6:$BJ$216,U$1,0)","v":32558},{"$f":"VLOOKUP($A129,outcome_data!$A$6:$BJ$216,V$1,0)","v":42762},{"$f":"VLOOKUP($A129,outcome_data!$A$6:$BJ$216,W$1,0)","v":4373},{"$f":"VLOOKUP($A129,outcome_data!$A$6:$BJ$216,X$1,0)","v":6031},{"$f":"VLOOKUP($A129,outcome_data!$A$6:$BJ$216,Y$1,0)","v":1050},{"$f":"VLOOKUP($A129,outcome_data!$A$6:$BJ$216,Z$1,0)","v":1221},{"$f":"VLOOKUP($A129,outcome_data!$A$6:$BJ$216,AA$1,0)","v":840},{"$f":"VLOOKUP($A129,outcome_data!$A$6:$BJ$216,AB$1,0)","v":1221},{"$f":"VLOOKUP($A129,outcome_data!$A$6:$BJ$216,AC$1,0)","v":3065},{"$f":"VLOOKUP($A129,outcome_data!$A$6:$BJ$216,AD$1,0)","v":3645},{"$f":"VLOOKUP($A129,outcome_data!$A$6:$BJ$216,AE$1,0)","v":2531},{"$f":"VLOOKUP($A129,outcome_data!$A$6:$BJ$216,AF$1,0)","v":3645}]
["07Q","NHS Bromley",{"$f":"VLOOKUP($A130,outcome_data!$A$6:$BJ$216,C$1,0)","v":152},{"$f":"VLOOKUP($A130,outcome_data!$A$6:$BJ$216,D$1,0)","v":304588},{"$f":"VLOOKUP($A130,outcome_data!$A$6:$BJ$216,E$1,0)","v":473},{"$f":"VLOOKUP($A130,outcome_data!$A$6:$BJ$216,F$1,0)","v":331498},{"$f":"VLOOKUP($A130,outcome_data!$A$6:$BJ$216,G$1,0)","v":1811},{"$f":"VLOOKUP($A130,outcome_data!$A$6:$BJ$216,H$1,0)","v":331498},{"$f":"VLOOKUP($A130,outcome_data!$A$6:$BJ$216,I$1,0)","v":376},{"$f":"VLOOKUP($A130,outcome_data!$A$6:$BJ$216,J$1,0)","v":331498},{"$f":"VLOOKUP($A130,outcome_data!$A$6:$BJ$216,K$1,0)","v":1278},{"$f":"VLOOKUP($A130,outcome_data!$A$6:$BJ$216,L$1,0)","v":331498},{"$f":"VLOOKUP($A130,outcome_data!$A$6:$BJ$216,M$1,0)","v":431},{"$f":"VLOOKUP($A130,outcome_data!$A$6:$BJ$216,N$1,0)","v":331498},{"$f":"VLOOKUP($A130,outcome_data!$A$6:$BJ$216,O$1,0)","v":130},{"$f":"VLOOKUP($A130,outcome_data!$A$6:$BJ$216,P$1,0)","v":331498},{"$f":"VLOOKUP($A130,outcome_data!$A$6:$BJ$216,Q$1,0)","v":8815},{"$f":"VLOOKUP($A130,outcome_data!$A$6:$BJ$216,R$1,0)","v":10165},{"$f":"VLOOKUP($A130,outcome_data!$A$6:$BJ$216,S$1,0)","v":7401},{"$f":"VLOOKUP($A130,outcome_data!$A$6:$BJ$216,T$1,0)","v":10165},{"$f":"VLOOKUP($A130,outcome_data!$A$6:$BJ$216,U$1,0)","v":34045},{"$f":"VLOOKUP($A130,outcome_data!$A$6:$BJ$216,V$1,0)","v":46028},{"$f":"VLOOKUP($A130,outcome_data!$A$6:$BJ$216,W$1,0)","v":6878},{"$f":"VLOOKUP($A130,outcome_data!$A$6:$BJ$216,X$1,0)","v":10183},{"$f":"VLOOKUP($A130,outcome_data!$A$6:$BJ$216,Y$1,0)","v":1371},{"$f":"VLOOKUP($A130,outcome_data!$A$6:$BJ$216,Z$1,0)","v":1642},{"$f":"VLOOKUP($A130,outcome_data!$A$6:$BJ$216,AA$1,0)","v":1096},{"$f":"VLOOKUP($A130,outcome_data!$A$6:$BJ$216,AB$1,0)","v":1642},{"$f":"VLOOKUP($A130,outcome_data!$A$6:$BJ$216,AC$1,0)","v":4260},{"$f":"VLOOKUP($A130,outcome_data!$A$6:$BJ$216,AD$1,0)","v":5122},{"$f":"VLOOKUP($A130,outcome_data!$A$6:$BJ$216,AE$1,0)","v":3438},{"$f":"VLOOKUP($A130,outcome_data!$A$6:$BJ$216,AF$1,0)","v":5122}]
["07R","NHS Camden",{"$f":"VLOOKUP($A131,outcome_data!$A$6:$BJ$216,C$1,0)","v":89},{"$f":"VLOOKUP($A131,outcome_data!$A$6:$BJ$216,D$1,0)","v":244964},{"$f":"VLOOKUP($A131,outcome_data!$A$6:$BJ$216,E$1,0)","v":256},{"$f":"VLOOKUP($A131,outcome_data!$A$6:$BJ$216,F$1,0)","v":253701},{"$f":"VLOOKUP($A131,outcome_data!$A$6:$BJ$216,G$1,0)","v":537},{"$f":"VLOOKUP($A131,outcome_data!$A$6:$BJ$216,H$1,0)","v":253701},{"$f":"VLOOKUP($A131,outcome_data!$A$6:$BJ$216,I$1,0)","v":203},{"$f":"VLOOKUP($A131,outcome_data!$A$6:$BJ$216,J$1,0)","v":253701},{"$f":"VLOOKUP($A131,outcome_data!$A$6:$BJ$216,K$1,0)","v":388},{"$f":"VLOOKUP($A131,outcome_data!$A$6:$BJ$216,L$1,0)","v":253701},{"$f":"VLOOKUP($A131,outcome_data!$A$6:$BJ$216,M$1,0)","v":185},{"$f":"VLOOKUP($A131,outcome_data!$A$6:$BJ$216,N$1,0)","v":253701},{"$f":"VLOOKUP($A131,outcome_data!$A$6:$BJ$216,O$1,0)","v":40},{"$f":"VLOOKUP($A131,outcome_data!$A$6:$BJ$216,P$1,0)","v":253701},{"$f":"VLOOKUP($A131,outcome_data!$A$6:$BJ$216,Q$1,0)","v":3664},{"$f":"VLOOKUP($A131,outcome_data!$A$6:$BJ$216,R$1,0)","v":4153},{"$f":"VLOOKUP($A131,outcome_data!$A$6:$BJ$216,S$1,0)","v":2946},{"$f":"VLOOKUP($A131,outcome_data!$A$6:$BJ$216,T$1,0)","v":4153},{"$f":"VLOOKUP($A131,outcome_data!$A$6:$BJ$216,U$1,0)","v":15986},{"$f":"VLOOKUP($A131,outcome_data!$A$6:$BJ$216,V$1,0)","v":20885},{"$f":"VLOOKUP($A131,outcome_data!$A$6:$BJ$216,W$1,0)","v":3323},{"$f":"VLOOKUP($A131,outcome_data!$A$6:$BJ$216,X$1,0)","v":4527},{"$f":"VLOOKUP($A131,outcome_data!$A$6:$BJ$216,Y$1,0)","v":911},{"$f":"VLOOKUP($A131,outcome_data!$A$6:$BJ$216,Z$1,0)","v":1045},{"$f":"VLOOKUP($A131,outcome_data!$A$6:$BJ$216,AA$1,0)","v":742},{"$f":"VLOOKUP($A131,outcome_data!$A$6:$BJ$216,AB$1,0)","v":1045},{"$f":"VLOOKUP($A131,outcome_data!$A$6:$BJ$216,AC$1,0)","v":2020},{"$f":"VLOOKUP($A131,outcome_data!$A$6:$BJ$216,AD$1,0)","v":2349},{"$f":"VLOOKUP($A131,outcome_data!$A$6:$BJ$216,AE$1,0)","v":1499},{"$f":"VLOOKUP($A131,outcome_data!$A$6:$BJ$216,AF$1,0)","v":2349}]
["07T","NHS City and Hackney",{"$f":"VLOOKUP($A132,outcome_data!$A$6:$BJ$216,C$1,0)","v":129},{"$f":"VLOOKUP($A132,outcome_data!$A$6:$BJ$216,D$1,0)","v":271782},{"$f":"VLOOKUP($A132,outcome_data!$A$6:$BJ$216,E$1,0)","v":348},{"$f":"VLOOKUP($A132,outcome_data!$A$6:$BJ$216,F$1,0)","v":291870},{"$f":"VLOOKUP($A132,outcome_data!$A$6:$BJ$216,G$1,0)","v":849},{"$f":"VLOOKUP($A132,outcome_data!$A$6:$BJ$216,H$1,0)","v":291870},{"$f":"VLOOKUP($A132,outcome_data!$A$6:$BJ$216,I$1,0)","v":310},{"$f":"VLOOKUP($A132,outcome_data!$A$6:$BJ$216,J$1,0)","v":291870},{"$f":"VLOOKUP($A132,outcome_data!$A$6:$BJ$216,K$1,0)","v":460},{"$f":"VLOOKUP($A132,outcome_data!$A$6:$BJ$216,L$1,0)","v":291870},{"$f":"VLOOKUP($A132,outcome_data!$A$6:$BJ$216,M$1,0)","v":210},{"$f":"VLOOKUP($A132,outcome_data!$A$6:$BJ$216,N$1,0)","v":291870},{"$f":"VLOOKUP($A132,outcome_data!$A$6:$BJ$216,O$1,0)","v":48},{"$f":"VLOOKUP($A132,outcome_data!$A$6:$BJ$216,P$1,0)","v":291870},{"$f":"VLOOKUP($A132,outcome_data!$A$6:$BJ$216,Q$1,0)","v":4094},{"$f":"VLOOKUP($A132,outcome_data!$A$6:$BJ$216,R$1,0)","v":4583},{"$f":"VLOOKUP($A132,outcome_data!$A$6:$BJ$216,S$1,0)","v":3402},{"$f":"VLOOKUP($A132,outcome_data!$A$6:$BJ$216,T$1,0)","v":4583},{"$f":"VLOOKUP($A132,outcome_data!$A$6:$BJ$216,U$1,0)","v":20929},{"$f":"VLOOKUP($A132,outcome_data!$A$6:$BJ$216,V$1,0)","v":27185},{"$f":"VLOOKUP($A132,outcome_data!$A$6:$BJ$216,W$1,0)","v":2974},{"$f":"VLOOKUP($A132,outcome_data!$A$6:$BJ$216,X$1,0)","v":4078},{"$f":"VLOOKUP($A132,outcome_data!$A$6:$BJ$216,Y$1,0)","v":861},{"$f":"VLOOKUP($A132,outcome_data!$A$6:$BJ$216,Z$1,0)","v":980},{"$f":"VLOOKUP($A132,outcome_data!$A$6:$BJ$216,AA$1,0)","v":691},{"$f":"VLOOKUP($A132,outcome_data!$A$6:$BJ$216,AB$1,0)","v":980},{"$f":"VLOOKUP($A132,outcome_data!$A$6:$BJ$216,AC$1,0)","v":2120},{"$f":"VLOOKUP($A132,outcome_data!$A$6:$BJ$216,AD$1,0)","v":2449},{"$f":"VLOOKUP($A132,outcome_data!$A$6:$BJ$216,AE$1,0)","v":1742},{"$f":"VLOOKUP($A132,outcome_data!$A$6:$BJ$216,AF$1,0)","v":2449}]
["07V","NHS Croydon",{"$f":"VLOOKUP($A133,outcome_data!$A$6:$BJ$216,C$1,0)","v":193},{"$f":"VLOOKUP($A133,outcome_data!$A$6:$BJ$216,D$1,0)","v":364234},{"$f":"VLOOKUP($A133,outcome_data!$A$6:$BJ$216,E$1,0)","v":613},{"$f":"VLOOKUP($A133,outcome_data!$A$6:$BJ$216,F$1,0)","v":384954},{"$f":"VLOOKUP($A133,outcome_data!$A$6:$BJ$216,G$1,0)","v":1969},{"$f":"VLOOKUP($A133,outcome_data!$A$6:$BJ$216,H$1,0)","v":384954},{"$f":"VLOOKUP($A133,outcome_data!$A$6:$BJ$216,I$1,0)","v":356},{"$f":"VLOOKUP($A133,outcome_data!$A$6:$BJ$216,J$1,0)","v":384954},{"$f":"VLOOKUP($A133,outcome_data!$A$6:$BJ$216,K$1,0)","v":1693},{"$f":"VLOOKUP($A133,outcome_data!$A$6:$BJ$216,L$1,0)","v":384954},{"$f":"VLOOKUP($A133,outcome_data!$A$6:$BJ$216,M$1,0)","v":580},{"$f":"VLOOKUP($A133,outcome_data!$A$6:$BJ$216,N$1,0)","v":384954},{"$f":"VLOOKUP($A133,outcome_data!$A$6:$BJ$216,O$1,0)","v":149},{"$f":"VLOOKUP($A133,outcome_data!$A$6:$BJ$216,P$1,0)","v":384954},{"$f":"VLOOKUP($A133,outcome_data!$A$6:$BJ$216,Q$1,0)","v":7782},{"$f":"VLOOKUP($A133,outcome_data!$A$6:$BJ$216,R$1,0)","v":8845},{"$f":"VLOOKUP($A133,outcome_data!$A$6:$BJ$216,S$1,0)","v":6263},{"$f":"VLOOKUP($A133,outcome_data!$A$6:$BJ$216,T$1,0)","v":8845},{"$f":"VLOOKUP($A133,outcome_data!$A$6:$BJ$216,U$1,0)","v":36386},{"$f":"VLOOKUP($A133,outcome_data!$A$6:$BJ$216,V$1,0)","v":47026},{"$f":"VLOOKUP($A133,outcome_data!$A$6:$BJ$216,W$1,0)","v":7185},{"$f":"VLOOKUP($A133,outcome_data!$A$6:$BJ$216,X$1,0)","v":10040},{"$f":"VLOOKUP($A133,outcome_data!$A$6:$BJ$216,Y$1,0)","v":1302},{"$f":"VLOOKUP($A133,outcome_data!$A$6:$BJ$216,Z$1,0)","v":1503},{"$f":"VLOOKUP($A133,outcome_data!$A$6:$BJ$216,AA$1,0)","v":1000},{"$f":"VLOOKUP($A133,outcome_data!$A$6:$BJ$216,AB$1,0)","v":1503},{"$f":"VLOOKUP($A133,outcome_data!$A$6:$BJ$216,AC$1,0)","v":3874},{"$f":"VLOOKUP($A133,outcome_data!$A$6:$BJ$216,AD$1,0)","v":4562},{"$f":"VLOOKUP($A133,outcome_data!$A$6:$BJ$216,AE$1,0)","v":3079},{"$f":"VLOOKUP($A133,outcome_data!$A$6:$BJ$216,AF$1,0)","v":4562}]
["07W","NHS Ealing",{"$f":"VLOOKUP($A134,outcome_data!$A$6:$BJ$216,C$1,0)","v":188},{"$f":"VLOOKUP($A134,outcome_data!$A$6:$BJ$216,D$1,0)","v":391033},{"$f":"VLOOKUP($A134,outcome_data!$A$6:$BJ$216,E$1,0)","v":443},{"$f":"VLOOKUP($A134,outcome_data!$A$6:$BJ$216,F$1,0)","v":407669},{"$f":"VLOOKUP($A134,outcome_data!$A$6:$BJ$216,G$1,0)","v":2203},{"$f":"VLOOKUP($A134,outcome_data!$A$6:$BJ$216,H$1,0)","v":407669},{"$f":"VLOOKUP($A134,outcome_data!$A$6:$BJ$216,I$1,0)","v":431},{"$f":"VLOOKUP($A134,outcome_data!$A$6:$BJ$216,J$1,0)","v":407669},{"$f":"VLOOKUP($A134,outcome_data!$A$6:$BJ$216,K$1,0)","v":1635},{"$f":"VLOOKUP($A134,outcome_data!$A$6:$BJ$216,L$1,0)","v":407669},{"$f":"VLOOKUP($A134,outcome_data!$A$6:$BJ$216,M$1,0)","v":560},{"$f":"VLOOKUP($A134,outcome_data!$A$6:$BJ$216,N$1,0)","v":407669},{"$f":"VLOOKUP($A134,outcome_data!$A$6:$BJ$216,O$1,0)","v":149},{"$f":"VLOOKUP($A134,outcome_data!$A$6:$BJ$216,P$1,0)","v":407669},{"$f":"VLOOKUP($A134,outcome_data!$A$6:$BJ$216,Q$1,0)","v":8794},{"$f":"VLOOKUP($A134,outcome_data!$A$6:$BJ$216,R$1,0)","v":10090},{"$f":"VLOOKUP($A134,outcome_data!$A$6:$BJ$216,S$1,0)","v":7421},{"$f":"VLOOKUP($A134,outcome_data!$A$6:$BJ$216,T$1,0)","v":10090},{"$f":"VLOOKUP($A134,outcome_data!$A$6:$BJ$216,U$1,0)","v":35971},{"$f":"VLOOKUP($A134,outcome_data!$A$6:$BJ$216,V$1,0)","v":46743},{"$f":"VLOOKUP($A134,outcome_data!$A$6:$BJ$216,W$1,0)","v":5334},{"$f":"VLOOKUP($A134,outcome_data!$A$6:$BJ$216,X$1,0)","v":7502},{"$f":"VLOOKUP($A134,outcome_data!$A$6:$BJ$216,Y$1,0)","v":1206},{"$f":"VLOOKUP($A134,outcome_data!$A$6:$BJ$216,Z$1,0)","v":1369},{"$f":"VLOOKUP($A134,outcome_data!$A$6:$BJ$216,AA$1,0)","v":1021},{"$f":"VLOOKUP($A134,outcome_data!$A$6:$BJ$216,AB$1,0)","v":1369},{"$f":"VLOOKUP($A134,outcome_data!$A$6:$BJ$216,AC$1,0)","v":3312},{"$f":"VLOOKUP($A134,outcome_data!$A$6:$BJ$216,AD$1,0)","v":3872},{"$f":"VLOOKUP($A134,outcome_data!$A$6:$BJ$216,AE$1,0)","v":2761},{"$f":"VLOOKUP($A134,outcome_data!$A$6:$BJ$216,AF$1,0)","v":3872}]
["07X","NHS Enfield",{"$f":"VLOOKUP($A135,outcome_data!$A$6:$BJ$216,C$1,0)","v":140},{"$f":"VLOOKUP($A135,outcome_data!$A$6:$BJ$216,D$1,0)","v":291610},{"$f":"VLOOKUP($A135,outcome_data!$A$6:$BJ$216,E$1,0)","v":559},{"$f":"VLOOKUP($A135,outcome_data!$A$6:$BJ$216,F$1,0)","v":307950},{"$f":"VLOOKUP($A135,outcome_data!$A$6:$BJ$216,G$1,0)","v":1634},{"$f":"VLOOKUP($A135,outcome_data!$A$6:$BJ$216,H$1,0)","v":307950},{"$f":"VLOOKUP($A135,outcome_data!$A$6:$BJ$216,I$1,0)","v":346},{"$f":"VLOOKUP($A135,outcome_data!$A$6:$BJ$216,J$1,0)","v":307950},{"$f":"VLOOKUP($A135,outcome_data!$A$6:$BJ$216,K$1,0)","v":1073},{"$f":"VLOOKUP($A135,outcome_data!$A$6:$BJ$216,L$1,0)","v":307950},{"$f":"VLOOKUP($A135,outcome_data!$A$6:$BJ$216,M$1,0)","v":365},{"$f":"VLOOKUP($A135,outcome_data!$A$6:$BJ$216,N$1,0)","v":307950},{"$f":"VLOOKUP($A135,outcome_data!$A$6:$BJ$216,O$1,0)","v":101},{"$f":"VLOOKUP($A135,outcome_data!$A$6:$BJ$216,P$1,0)","v":307950},{"$f":"VLOOKUP($A135,outcome_data!$A$6:$BJ$216,Q$1,0)","v":6709},{"$f":"VLOOKUP($A135,outcome_data!$A$6:$BJ$216,R$1,0)","v":7702},{"$f":"VLOOKUP($A135,outcome_data!$A$6:$BJ$216,S$1,0)","v":5608},{"$f":"VLOOKUP($A135,outcome_data!$A$6:$BJ$216,T$1,0)","v":7702},{"$f":"VLOOKUP($A135,outcome_data!$A$6:$BJ$216,U$1,0)","v":31565},{"$f":"VLOOKUP($A135,outcome_data!$A$6:$BJ$216,V$1,0)","v":41041},{"$f":"VLOOKUP($A135,outcome_data!$A$6:$BJ$216,W$1,0)","v":4774},{"$f":"VLOOKUP($A135,outcome_data!$A$6:$BJ$216,X$1,0)","v":6585},{"$f":"VLOOKUP($A135,outcome_data!$A$6:$BJ$216,Y$1,0)","v":1087},{"$f":"VLOOKUP($A135,outcome_data!$A$6:$BJ$216,Z$1,0)","v":1279},{"$f":"VLOOKUP($A135,outcome_data!$A$6:$BJ$216,AA$1,0)","v":891},{"$f":"VLOOKUP($A135,outcome_data!$A$6:$BJ$216,AB$1,0)","v":1279},{"$f":"VLOOKUP($A135,outcome_data!$A$6:$BJ$216,AC$1,0)","v":3170},{"$f":"VLOOKUP($A135,outcome_data!$A$6:$BJ$216,AD$1,0)","v":3740},{"$f":"VLOOKUP($A135,outcome_data!$A$6:$BJ$216,AE$1,0)","v":2538},{"$f":"VLOOKUP($A135,outcome_data!$A$6:$BJ$216,AF$1,0)","v":3740}]
["07Y","NHS Hounslow",{"$f":"VLOOKUP($A136,outcome_data!$A$6:$BJ$216,C$1,0)","v":145},{"$f":"VLOOKUP($A136,outcome_data!$A$6:$BJ$216,D$1,0)","v":278565},{"$f":"VLOOKUP($A136,outcome_data!$A$6:$BJ$216,E$1,0)","v":334},{"$f":"VLOOKUP($A136,outcome_data!$A$6:$BJ$216,F$1,0)","v":289992},{"$f":"VLOOKUP($A136,outcome_data!$A$6:$BJ$216,G$1,0)","v":1267},{"$f":"VLOOKUP($A136,outcome_data!$A$6:$BJ$216,H$1,0)","v":289992},{"$f":"VLOOKUP($A136,outcome_data!$A$6:$BJ$216,I$1,0)","v":216},{"$f":"VLOOKUP($A136,outcome_data!$A$6:$BJ$216,J$1,0)","v":289992},{"$f":"VLOOKUP($A136,outcome_data!$A$6:$BJ$216,K$1,0)","v":720},{"$f":"VLOOKUP($A136,outcome_data!$A$6:$BJ$216,L$1,0)","v":289992},{"$f":"VLOOKUP($A136,outcome_data!$A$6:$BJ$216,M$1,0)","v":356},{"$f":"VLOOKUP($A136,outcome_data!$A$6:$BJ$216,N$1,0)","v":289992},{"$f":"VLOOKUP($A136,outcome_data!$A$6:$BJ$216,O$1,0)","v":88},{"$f":"VLOOKUP($A136,outcome_data!$A$6:$BJ$216,P$1,0)","v":289992},{"$f":"VLOOKUP($A136,outcome_data!$A$6:$BJ$216,Q$1,0)","v":5785},{"$f":"VLOOKUP($A136,outcome_data!$A$6:$BJ$216,R$1,0)","v":6580},{"$f":"VLOOKUP($A136,outcome_data!$A$6:$BJ$216,S$1,0)","v":4796},{"$f":"VLOOKUP($A136,outcome_data!$A$6:$BJ$216,T$1,0)","v":6580},{"$f":"VLOOKUP($A136,outcome_data!$A$6:$BJ$216,U$1,0)","v":25054},{"$f":"VLOOKUP($A136,outcome_data!$A$6:$BJ$216,V$1,0)","v":32090},{"$f":"VLOOKUP($A136,outcome_data!$A$6:$BJ$216,W$1,0)","v":5332},{"$f":"VLOOKUP($A136,outcome_data!$A$6:$BJ$216,X$1,0)","v":7171},{"$f":"VLOOKUP($A136,outcome_data!$A$6:$BJ$216,Y$1,0)","v":779},{"$f":"VLOOKUP($A136,outcome_data!$A$6:$BJ$216,Z$1,0)","v":881},{"$f":"VLOOKUP($A136,outcome_data!$A$6:$BJ$216,AA$1,0)","v":610},{"$f":"VLOOKUP($A136,outcome_data!$A$6:$BJ$216,AB$1,0)","v":881},{"$f":"VLOOKUP($A136,outcome_data!$A$6:$BJ$216,AC$1,0)","v":2418},{"$f":"VLOOKUP($A136,outcome_data!$A$6:$BJ$216,AD$1,0)","v":2814},{"$f":"VLOOKUP($A136,outcome_data!$A$6:$BJ$216,AE$1,0)","v":1947},{"$f":"VLOOKUP($A136,outcome_data!$A$6:$BJ$216,AF$1,0)","v":2814}]
["08A","NHS Greenwich",{"$f":"VLOOKUP($A137,outcome_data!$A$6:$BJ$216,C$1,0)","v":110},{"$f":"VLOOKUP($A137,outcome_data!$A$6:$BJ$216,D$1,0)","v":257294},{"$f":"VLOOKUP($A137,outcome_data!$A$6:$BJ$216,E$1,0)","v":330},{"$f":"VLOOKUP($A137,outcome_data!$A$6:$BJ$216,F$1,0)","v":268811},{"$f":"VLOOKUP($A137,outcome_data!$A$6:$BJ$216,G$1,0)","v":956},{"$f":"VLOOKUP($A137,outcome_data!$A$6:$BJ$216,H$1,0)","v":268811},{"$f":"VLOOKUP($A137,outcome_data!$A$6:$BJ$216,I$1,0)","v":245},{"$f":"VLOOKUP($A137,outcome_data!$A$6:$BJ$216,J$1,0)","v":268811},{"$f":"VLOOKUP($A137,outcome_data!$A$6:$BJ$216,K$1,0)","v":662},{"$f":"VLOOKUP($A137,outcome_data!$A$6:$BJ$216,L$1,0)","v":268811},{"$f":"VLOOKUP($A137,outcome_data!$A$6:$BJ$216,M$1,0)","v":281},{"$f":"VLOOKUP($A137,outcome_data!$A$6:$BJ$216,N$1,0)","v":268811},{"$f":"VLOOKUP($A137,outcome_data!$A$6:$BJ$216,O$1,0)","v":54},{"$f":"VLOOKUP($A137,outcome_data!$A$6:$BJ$216,P$1,0)","v":268811},{"$f":"VLOOKUP($A137,outcome_data!$A$6:$BJ$216,Q$1,0)","v":5172},{"$f":"VLOOKUP($A137,outcome_data!$A$6:$BJ$216,R$1,0)","v":5814},{"$f":"VLOOKUP($A137,outcome_data!$A$6:$BJ$216,S$1,0)","v":4105},{"$f":"VLOOKUP($A137,outcome_data!$A$6:$BJ$216,T$1,0)","v":5814},{"$f":"VLOOKUP($A137,outcome_data!$A$6:$BJ$216,U$1,0)","v":24954},{"$f":"VLOOKUP($A137,outcome_data!$A$6:$BJ$216,V$1,0)","v":32523},{"$f":"VLOOKUP($A137,outcome_data!$A$6:$BJ$216,W$1,0)","v":4924},{"$f":"VLOOKUP($A137,outcome_data!$A$6:$BJ$216,X$1,0)","v":6821},{"$f":"VLOOKUP($A137,outcome_data!$A$6:$BJ$216,Y$1,0)","v":1095},{"$f":"VLOOKUP($A137,outcome_data!$A$6:$BJ$216,Z$1,0)","v":1215},{"$f":"VLOOKUP($A137,outcome_data!$A$6:$BJ$216,AA$1,0)","v":812},{"$f":"VLOOKUP($A137,outcome_data!$A$6:$BJ$216,AB$1,0)","v":1215},{"$f":"VLOOKUP($A137,outcome_data!$A$6:$BJ$216,AC$1,0)","v":2382},{"$f":"VLOOKUP($A137,outcome_data!$A$6:$BJ$216,AD$1,0)","v":2770},{"$f":"VLOOKUP($A137,outcome_data!$A$6:$BJ$216,AE$1,0)","v":1848},{"$f":"VLOOKUP($A137,outcome_data!$A$6:$BJ$216,AF$1,0)","v":2770}]
["08C","NHS Hammersmith and Fulham",{"$f":"VLOOKUP($A138,outcome_data!$A$6:$BJ$216,C$1,0)","v":77},{"$f":"VLOOKUP($A138,outcome_data!$A$6:$BJ$216,D$1,0)","v":195923},{"$f":"VLOOKUP($A138,outcome_data!$A$6:$BJ$216,E$1,0)","v":153},{"$f":"VLOOKUP($A138,outcome_data!$A$6:$BJ$216,F$1,0)","v":203574},{"$f":"VLOOKUP($A138,outcome_data!$A$6:$BJ$216,G$1,0)","v":563},{"$f":"VLOOKUP($A138,outcome_data!$A$6:$BJ$216,H$1,0)","v":203574},{"$f":"VLOOKUP($A138,outcome_data!$A$6:$BJ$216,I$1,0)","v":182},{"$f":"VLOOKUP($A138,outcome_data!$A$6:$BJ$216,J$1,0)","v":203574},{"$f":"VLOOKUP($A138,outcome_data!$A$6:$BJ$216,K$1,0)","v":417},{"$f":"VLOOKUP($A138,outcome_data!$A$6:$BJ$216,L$1,0)","v":203574},{"$f":"VLOOKUP($A138,outcome_data!$A$6:$BJ$216,M$1,0)","v":157},{"$f":"VLOOKUP($A138,outcome_data!$A$6:$BJ$216,N$1,0)","v":203574},{"$f":"VLOOKUP($A138,outcome_data!$A$6:$BJ$216,O$1,0)","v":55},{"$f":"VLOOKUP($A138,outcome_data!$A$6:$BJ$216,P$1,0)","v":203574},{"$f":"VLOOKUP($A138,outcome_data!$A$6:$BJ$216,Q$1,0)","v":2978},{"$f":"VLOOKUP($A138,outcome_data!$A$6:$BJ$216,R$1,0)","v":3467},{"$f":"VLOOKUP($A138,outcome_data!$A$6:$BJ$216,S$1,0)","v":2419},{"$f":"VLOOKUP($A138,outcome_data!$A$6:$BJ$216,T$1,0)","v":3465},{"$f":"VLOOKUP($A138,outcome_data!$A$6:$BJ$216,U$1,0)","v":13806},{"$f":"VLOOKUP($A138,outcome_data!$A$6:$BJ$216,V$1,0)","v":18564},{"$f":"VLOOKUP($A138,outcome_data!$A$6:$BJ$216,W$1,0)","v":2157},{"$f":"VLOOKUP($A138,outcome_data!$A$6:$BJ$216,X$1,0)","v":3134},{"$f":"VLOOKUP($A138,outcome_data!$A$6:$BJ$216,Y$1,0)","v":631},{"$f":"VLOOKUP($A138,outcome_data!$A$6:$BJ$216,Z$1,0)","v":733},{"$f":"VLOOKUP($A138,outcome_data!$A$6:$BJ$216,AA$1,0)","v":488},{"$f":"VLOOKUP($A138,outcome_data!$A$6:$BJ$216,AB$1,0)","v":732},{"$f":"VLOOKUP($A138,outcome_data!$A$6:$BJ$216,AC$1,0)","v":1573},{"$f":"VLOOKUP($A138,outcome_data!$A$6:$BJ$216,AD$1,0)","v":1872},{"$f":"VLOOKUP($A138,outcome_data!$A$6:$BJ$216,AE$1,0)","v":1275},{"$f":"VLOOKUP($A138,outcome_data!$A$6:$BJ$216,AF$1,0)","v":1873}]
["08D","NHS Haringey",{"$f":"VLOOKUP($A139,outcome_data!$A$6:$BJ$216,C$1,0)","v":131},{"$f":"VLOOKUP($A139,outcome_data!$A$6:$BJ$216,D$1,0)","v":281041},{"$f":"VLOOKUP($A139,outcome_data!$A$6:$BJ$216,E$1,0)","v":423},{"$f":"VLOOKUP($A139,outcome_data!$A$6:$BJ$216,F$1,0)","v":290671},{"$f":"VLOOKUP($A139,outcome_data!$A$6:$BJ$216,G$1,0)","v":1110},{"$f":"VLOOKUP($A139,outcome_data!$A$6:$BJ$216,H$1,0)","v":290671},{"$f":"VLOOKUP($A139,outcome_data!$A$6:$BJ$216,I$1,0)","v":328},{"$f":"VLOOKUP($A139,outcome_data!$A$6:$BJ$216,J$1,0)","v":290671},{"$f":"VLOOKUP($A139,outcome_data!$A$6:$BJ$216,K$1,0)","v":636},{"$f":"VLOOKUP($A139,outcome_data!$A$6:$BJ$216,L$1,0)","v":290671},{"$f":"VLOOKUP($A139,outcome_data!$A$6:$BJ$216,M$1,0)","v":235},{"$f":"VLOOKUP($A139,outcome_data!$A$6:$BJ$216,N$1,0)","v":290671},{"$f":"VLOOKUP($A139,outcome_data!$A$6:$BJ$216,O$1,0)","v":67},{"$f":"VLOOKUP($A139,outcome_data!$A$6:$BJ$216,P$1,0)","v":290671},{"$f":"VLOOKUP($A139,outcome_data!$A$6:$BJ$216,Q$1,0)","v":4118},{"$f":"VLOOKUP($A139,outcome_data!$A$6:$BJ$216,R$1,0)","v":4761},{"$f":"VLOOKUP($A139,outcome_data!$A$6:$BJ$216,S$1,0)","v":3366},{"$f":"VLOOKUP($A139,outcome_data!$A$6:$BJ$216,T$1,0)","v":4761},{"$f":"VLOOKUP($A139,outcome_data!$A$6:$BJ$216,U$1,0)","v":22933},{"$f":"VLOOKUP($A139,outcome_data!$A$6:$BJ$216,V$1,0)","v":30759},{"$f":"VLOOKUP($A139,outcome_data!$A$6:$BJ$216,W$1,0)","v":2992},{"$f":"VLOOKUP($A139,outcome_data!$A$6:$BJ$216,X$1,0)","v":4239},{"$f":"VLOOKUP($A139,outcome_data!$A$6:$BJ$216,Y$1,0)","v":810},{"$f":"VLOOKUP($A139,outcome_data!$A$6:$BJ$216,Z$1,0)","v":961},{"$f":"VLOOKUP($A139,outcome_data!$A$6:$BJ$216,AA$1,0)","v":663},{"$f":"VLOOKUP($A139,outcome_data!$A$6:$BJ$216,AB$1,0)","v":961},{"$f":"VLOOKUP($A139,outcome_data!$A$6:$BJ$216,AC$1,0)","v":2079},{"$f":"VLOOKUP($A139,outcome_data!$A$6:$BJ$216,AD$1,0)","v":2463},{"$f":"VLOOKUP($A139,outcome_data!$A$6:$BJ$216,AE$1,0)","v":1609},{"$f":"VLOOKUP($A139,outcome_data!$A$6:$BJ$216,AF$1,0)","v":2463}]
["08E","NHS Harrow",{"$f":"VLOOKUP($A140,outcome_data!$A$6:$BJ$216,C$1,0)","v":116},{"$f":"VLOOKUP($A140,outcome_data!$A$6:$BJ$216,D$1,0)","v":229868},{"$f":"VLOOKUP($A140,outcome_data!$A$6:$BJ$216,E$1,0)","v":310},{"$f":"VLOOKUP($A140,outcome_data!$A$6:$BJ$216,F$1,0)","v":244997},{"$f":"VLOOKUP($A140,outcome_data!$A$6:$BJ$216,G$1,0)","v":1472},{"$f":"VLOOKUP($A140,outcome_data!$A$6:$BJ$216,H$1,0)","v":244997},{"$f":"VLOOKUP($A140,outcome_data!$A$6:$BJ$216,I$1,0)","v":254},{"$f":"VLOOKUP($A140,outcome_data!$A$6:$BJ$216,J$1,0)","v":244997},{"$f":"VLOOKUP($A140,outcome_data!$A$6:$BJ$216,K$1,0)","v":1010},{"$f":"VLOOKUP($A140,outcome_data!$A$6:$BJ$216,L$1,0)","v":244997},{"$f":"VLOOKUP($A140,outcome_data!$A$6:$BJ$216,M$1,0)","v":456},{"$f":"VLOOKUP($A140,outcome_data!$A$6:$BJ$216,N$1,0)","v":244997},{"$f":"VLOOKUP($A140,outcome_data!$A$6:$BJ$216,O$1,0)","v":96},{"$f":"VLOOKUP($A140,outcome_data!$A$6:$BJ$216,P$1,0)","v":244997},{"$f":"VLOOKUP($A140,outcome_data!$A$6:$BJ$216,Q$1,0)","v":6308},{"$f":"VLOOKUP($A140,outcome_data!$A$6:$BJ$216,R$1,0)","v":7119},{"$f":"VLOOKUP($A140,outcome_data!$A$6:$BJ$216,S$1,0)","v":5397},{"$f":"VLOOKUP($A140,outcome_data!$A$6:$BJ$216,T$1,0)","v":7119},{"$f":"VLOOKUP($A140,outcome_data!$A$6:$BJ$216,U$1,0)","v":25558},{"$f":"VLOOKUP($A140,outcome_data!$A$6:$BJ$216,V$1,0)","v":32598},{"$f":"VLOOKUP($A140,outcome_data!$A$6:$BJ$216,W$1,0)","v":4104},{"$f":"VLOOKUP($A140,outcome_data!$A$6:$BJ$216,X$1,0)","v":5597},{"$f":"VLOOKUP($A140,outcome_data!$A$6:$BJ$216,Y$1,0)","v":1119},{"$f":"VLOOKUP($A140,outcome_data!$A$6:$BJ$216,Z$1,0)","v":1280},{"$f":"VLOOKUP($A140,outcome_data!$A$6:$BJ$216,AA$1,0)","v":919},{"$f":"VLOOKUP($A140,outcome_data!$A$6:$BJ$216,AB$1,0)","v":1280},{"$f":"VLOOKUP($A140,outcome_data!$A$6:$BJ$216,AC$1,0)","v":2651},{"$f":"VLOOKUP($A140,outcome_data!$A$6:$BJ$216,AD$1,0)","v":3095},{"$f":"VLOOKUP($A140,outcome_data!$A$6:$BJ$216,AE$1,0)","v":2132},{"$f":"VLOOKUP($A140,outcome_data!$A$6:$BJ$216,AF$1,0)","v":3095}]
["08F","NHS Havering",{"$f":"VLOOKUP($A141,outcome_data!$A$6:$BJ$216,C$1,0)","v":133},{"$f":"VLOOKUP($A141,outcome_data!$A$6:$BJ$216,D$1,0)","v":234166},{"$f":"VLOOKUP($A141,outcome_data!$A$6:$BJ$216,E$1,0)","v":347},{"$f":"VLOOKUP($A141,outcome_data!$A$6:$BJ$216,F$1,0)","v":257864},{"$f":"VLOOKUP($A141,outcome_data!$A$6:$BJ$216,G$1,0)","v":1282},{"$f":"VLOOKUP($A141,outcome_data!$A$6:$BJ$216,H$1,0)","v":257864},{"$f":"VLOOKUP($A141,outcome_data!$A$6:$BJ$216,I$1,0)","v":339},{"$f":"VLOOKUP($A141,outcome_data!$A$6:$BJ$216,J$1,0)","v":257864},{"$f":"VLOOKUP($A141,outcome_data!$A$6:$BJ$216,K$1,0)","v":707},{"$f":"VLOOKUP($A141,outcome_data!$A$6:$BJ$216,L$1,0)","v":257864},{"$f":"VLOOKUP($A141,outcome_data!$A$6:$BJ$216,M$1,0)","v":301},{"$f":"VLOOKUP($A141,outcome_data!$A$6:$BJ$216,N$1,0)","v":257864},{"$f":"VLOOKUP($A141,outcome_data!$A$6:$BJ$216,O$1,0)","v":104},{"$f":"VLOOKUP($A141,outcome_data!$A$6:$BJ$216,P$1,0)","v":257864},{"$f":"VLOOKUP($A141,outcome_data!$A$6:$BJ$216,Q$1,0)","v":7098},{"$f":"VLOOKUP($A141,outcome_data!$A$6:$BJ$216,R$1,0)","v":7969},{"$f":"VLOOKUP($A141,outcome_data!$A$6:$BJ$216,S$1,0)","v":5846},{"$f":"VLOOKUP($A141,outcome_data!$A$6:$BJ$216,T$1,0)","v":7969},{"$f":"VLOOKUP($A141,outcome_data!$A$6:$BJ$216,U$1,0)","v":28850},{"$f":"VLOOKUP($A141,outcome_data!$A$6:$BJ$216,V$1,0)","v":36024},{"$f":"VLOOKUP($A141,outcome_data!$A$6:$BJ$216,W$1,0)","v":5861},{"$f":"VLOOKUP($A141,outcome_data!$A$6:$BJ$216,X$1,0)","v":7715},{"$f":"VLOOKUP($A141,outcome_data!$A$6:$BJ$216,Y$1,0)","v":1212},{"$f":"VLOOKUP($A141,outcome_data!$A$6:$BJ$216,Z$1,0)","v":1399},{"$f":"VLOOKUP($A141,outcome_data!$A$6:$BJ$216,AA$1,0)","v":957},{"$f":"VLOOKUP($A141,outcome_data!$A$6:$BJ$216,AB$1,0)","v":1399},{"$f":"VLOOKUP($A141,outcome_data!$A$6:$BJ$216,AC$1,0)","v":3385},{"$f":"VLOOKUP($A141,outcome_data!$A$6:$BJ$216,AD$1,0)","v":3901},{"$f":"VLOOKUP($A141,outcome_data!$A$6:$BJ$216,AE$1,0)","v":2711},{"$f":"VLOOKUP($A141,outcome_data!$A$6:$BJ$216,AF$1,0)","v":3901}]
["08G","NHS Hillingdon",{"$f":"VLOOKUP($A142,outcome_data!$A$6:$BJ$216,C$1,0)","v":139},{"$f":"VLOOKUP($A142,outcome_data!$A$6:$BJ$216,D$1,0)","v":270852},{"$f":"VLOOKUP($A142,outcome_data!$A$6:$BJ$216,E$1,0)","v":498},{"$f":"VLOOKUP($A142,outcome_data!$A$6:$BJ$216,F$1,0)","v":287801},{"$f":"VLOOKUP($A142,outcome_data!$A$6:$BJ$216,G$1,0)","v":1260},{"$f":"VLOOKUP($A142,outcome_data!$A$6:$BJ$216,H$1,0)","v":287801},{"$f":"VLOOKUP($A142,outcome_data!$A$6:$BJ$216,I$1,0)","v":291},{"$f":"VLOOKUP($A142,outcome_data!$A$6:$BJ$216,J$1,0)","v":287801},{"$f":"VLOOKUP($A142,outcome_data!$A$6:$BJ$216,K$1,0)","v":712},{"$f":"VLOOKUP($A142,outcome_data!$A$6:$BJ$216,L$1,0)","v":287801},{"$f":"VLOOKUP($A142,outcome_data!$A$6:$BJ$216,M$1,0)","v":352},{"$f":"VLOOKUP($A142,outcome_data!$A$6:$BJ$216,N$1,0)","v":287801},{"$f":"VLOOKUP($A142,outcome_data!$A$6:$BJ$216,O$1,0)","v":85},{"$f":"VLOOKUP($A142,outcome_data!$A$6:$BJ$216,P$1,0)","v":287801},{"$f":"VLOOKUP($A142,outcome_data!$A$6:$BJ$216,Q$1,0)","v":5987},{"$f":"VLOOKUP($A142,outcome_data!$A$6:$BJ$216,R$1,0)","v":6932},{"$f":"VLOOKUP($A142,outcome_data!$A$6:$BJ$216,S$1,0)","v":4957},{"$f":"VLOOKUP($A142,outcome_data!$A$6:$BJ$216,T$1,0)","v":6932},{"$f":"VLOOKUP($A142,outcome_data!$A$6:$BJ$216,U$1,0)","v":28039},{"$f":"VLOOKUP($A142,outcome_data!$A$6:$BJ$216,V$1,0)","v":36455},{"$f":"VLOOKUP($A142,outcome_data!$A$6:$BJ$216,W$1,0)","v":5080},{"$f":"VLOOKUP($A142,outcome_data!$A$6:$BJ$216,X$1,0)","v":7090},{"$f":"VLOOKUP($A142,outcome_data!$A$6:$BJ$216,Y$1,0)","v":1210},{"$f":"VLOOKUP($A142,outcome_data!$A$6:$BJ$216,Z$1,0)","v":1387},{"$f":"VLOOKUP($A142,outcome_data!$A$6:$BJ$216,AA$1,0)","v":995},{"$f":"VLOOKUP($A142,outcome_data!$A$6:$BJ$216,AB$1,0)","v":1387},{"$f":"VLOOKUP($A142,outcome_data!$A$6:$BJ$216,AC$1,0)","v":2726},{"$f":"VLOOKUP($A142,outcome_data!$A$6:$BJ$216,AD$1,0)","v":3260},{"$f":"VLOOKUP($A142,outcome_data!$A$6:$BJ$216,AE$1,0)","v":2229},{"$f":"VLOOKUP($A142,outcome_data!$A$6:$BJ$216,AF$1,0)","v":3260}]
["08H","NHS Islington",{"$f":"VLOOKUP($A143,outcome_data!$A$6:$BJ$216,C$1,0)","v":124},{"$f":"VLOOKUP($A143,outcome_data!$A$6:$BJ$216,D$1,0)","v":221125},{"$f":"VLOOKUP($A143,outcome_data!$A$6:$BJ$216,E$1,0)","v":245},{"$f":"VLOOKUP($A143,outcome_data!$A$6:$BJ$216,F$1,0)","v":229211},{"$f":"VLOOKUP($A143,outcome_data!$A$6:$BJ$216,G$1,0)","v":551},{"$f":"VLOOKUP($A143,outcome_data!$A$6:$BJ$216,H$1,0)","v":229211},{"$f":"VLOOKUP($A143,outcome_data!$A$6:$BJ$216,I$1,0)","v":198},{"$f":"VLOOKUP($A143,outcome_data!$A$6:$BJ$216,J$1,0)","v":229211},{"$f":"VLOOKUP($A143,outcome_data!$A$6:$BJ$216,K$1,0)","v":286},{"$f":"VLOOKUP($A143,outcome_data!$A$6:$BJ$216,L$1,0)","v":229211},{"$f":"VLOOKUP($A143,outcome_data!$A$6:$BJ$216,M$1,0)","v":170},{"$f":"VLOOKUP($A143,outcome_data!$A$6:$BJ$216,N$1,0)","v":229211},{"$f":"VLOOKUP($A143,outcome_data!$A$6:$BJ$216,O$1,0)","v":42},{"$f":"VLOOKUP($A143,outcome_data!$A$6:$BJ$216,P$1,0)","v":229211},{"$f":"VLOOKUP($A143,outcome_data!$A$6:$BJ$216,Q$1,0)","v":3368},{"$f":"VLOOKUP($A143,outcome_data!$A$6:$BJ$216,R$1,0)","v":3892},{"$f":"VLOOKUP($A143,outcome_data!$A$6:$BJ$216,S$1,0)","v":2716},{"$f":"VLOOKUP($A143,outcome_data!$A$6:$BJ$216,T$1,0)","v":3892},{"$f":"VLOOKUP($A143,outcome_data!$A$6:$BJ$216,U$1,0)","v":15690},{"$f":"VLOOKUP($A143,outcome_data!$A$6:$BJ$216,V$1,0)","v":20982},{"$f":"VLOOKUP($A143,outcome_data!$A$6:$BJ$216,W$1,0)","v":2402},{"$f":"VLOOKUP($A143,outcome_data!$A$6:$BJ$216,X$1,0)","v":3363},{"$f":"VLOOKUP($A143,outcome_data!$A$6:$BJ$216,Y$1,0)","v":851},{"$f":"VLOOKUP($A143,outcome_data!$A$6:$BJ$216,Z$1,0)","v":1014},{"$f":"VLOOKUP($A143,outcome_data!$A$6:$BJ$216,AA$1,0)","v":689},{"$f":"VLOOKUP($A143,outcome_data!$A$6:$BJ$216,AB$1,0)","v":1014},{"$f":"VLOOKUP($A143,outcome_data!$A$6:$BJ$216,AC$1,0)","v":1926},{"$f":"VLOOKUP($A143,outcome_data!$A$6:$BJ$216,AD$1,0)","v":2317},{"$f":"VLOOKUP($A143,outcome_data!$A$6:$BJ$216,AE$1,0)","v":1528},{"$f":"VLOOKUP($A143,outcome_data!$A$6:$BJ$216,AF$1,0)","v":2317}]
["08J","NHS Kingston",{"$f":"VLOOKUP($A144,outcome_data!$A$6:$BJ$216,C$1,0)","v":72},{"$f":"VLOOKUP($A144,outcome_data!$A$6:$BJ$216,D$1,0)","v":182901},{"$f":"VLOOKUP($A144,outcome_data!$A$6:$BJ$216,E$1,0)","v":288},{"$f":"VLOOKUP($A144,outcome_data!$A$6:$BJ$216,F$1,0)","v":194245},{"$f":"VLOOKUP($A144,outcome_data!$A$6:$BJ$216,G$1,0)","v":820},{"$f":"VLOOKUP($A144,outcome_data!$A$6:$BJ$216,H$1,0)","v":194245},{"$f":"VLOOKUP($A144,outcome_data!$A$6:$BJ$216,I$1,0)","v":173},{"$f":"VLOOKUP($A144,outcome_data!$A$6:$BJ$216,J$1,0)","v":194245},{"$f":"VLOOKUP($A144,outcome_data!$A$6:$BJ$216,K$1,0)","v":591},{"$f":"VLOOKUP($A144,outcome_data!$A$6:$BJ$216,L$1,0)","v":194245},{"$f":"VLOOKUP($A144,outcome_data!$A$6:$BJ$216,M$1,0)","v":194},{"$f":"VLOOKUP($A144,outcome_data!$A$6:$BJ$216,N$1,0)","v":194245},{"$f":"VLOOKUP($A144,outcome_data!$A$6:$BJ$216,O$1,0)","v":61},{"$f":"VLOOKUP($A144,outcome_data!$A$6:$BJ$216,P$1,0)","v":194245},{"$f":"VLOOKUP($A144,outcome_data!$A$6:$BJ$216,Q$1,0)","v":3876},{"$f":"VLOOKUP($A144,outcome_data!$A$6:$BJ$216,R$1,0)","v":4428},{"$f":"VLOOKUP($A144,outcome_data!$A$6:$BJ$216,S$1,0)","v":3185},{"$f":"VLOOKUP($A144,outcome_data!$A$6:$BJ$216,T$1,0)","v":4428},{"$f":"VLOOKUP($A144,outcome_data!$A$6:$BJ$216,U$1,0)","v":16167},{"$f":"VLOOKUP($A144,outcome_data!$A$6:$BJ$216,V$1,0)","v":20733},{"$f":"VLOOKUP($A144,outcome_data!$A$6:$BJ$216,W$1,0)","v":2801},{"$f":"VLOOKUP($A144,outcome_data!$A$6:$BJ$216,X$1,0)","v":3948},{"$f":"VLOOKUP($A144,outcome_data!$A$6:$BJ$216,Y$1,0)","v":560},{"$f":"VLOOKUP($A144,outcome_data!$A$6:$BJ$216,Z$1,0)","v":661},{"$f":"VLOOKUP($A144,outcome_data!$A$6:$BJ$216,AA$1,0)","v":429},{"$f":"VLOOKUP($A144,outcome_data!$A$6:$BJ$216,AB$1,0)","v":661},{"$f":"VLOOKUP($A144,outcome_data!$A$6:$BJ$216,AC$1,0)","v":1697},{"$f":"VLOOKUP($A144,outcome_data!$A$6:$BJ$216,AD$1,0)","v":1968},{"$f":"VLOOKUP($A144,outcome_data!$A$6:$BJ$216,AE$1,0)","v":1259},{"$f":"VLOOKUP($A144,outcome_data!$A$6:$BJ$216,AF$1,0)","v":1968}]
["08K","NHS Lambeth",{"$f":"VLOOKUP($A145,outcome_data!$A$6:$BJ$216,C$1,0)","v":135},{"$f":"VLOOKUP($A145,outcome_data!$A$6:$BJ$216,D$1,0)","v":362478},{"$f":"VLOOKUP($A145,outcome_data!$A$6:$BJ$216,E$1,0)","v":447},{"$f":"VLOOKUP($A145,outcome_data!$A$6:$BJ$216,F$1,0)","v":378733},{"$f":"VLOOKUP($A145,outcome_data!$A$6:$BJ$216,G$1,0)","v":861},{"$f":"VLOOKUP($A145,outcome_data!$A$6:$BJ$216,H$1,0)","v":378733},{"$f":"VLOOKUP($A145,outcome_data!$A$6:$BJ$216,I$1,0)","v":315},{"$f":"VLOOKUP($A145,outcome_data!$A$6:$BJ$216,J$1,0)","v":378733},{"$f":"VLOOKUP($A145,outcome_data!$A$6:$BJ$216,K$1,0)","v":703},{"$f":"VLOOKUP($A145,outcome_data!$A$6:$BJ$216,L$1,0)","v":378733},{"$f":"VLOOKUP($A145,outcome_data!$A$6:$BJ$216,M$1,0)","v":288},{"$f":"VLOOKUP($A145,outcome_data!$A$6:$BJ$216,N$1,0)","v":378733},{"$f":"VLOOKUP($A145,outcome_data!$A$6:$BJ$216,O$1,0)","v":54},{"$f":"VLOOKUP($A145,outcome_data!$A$6:$BJ$216,P$1,0)","v":378733},{"$f":"VLOOKUP($A145,outcome_data!$A$6:$BJ$216,Q$1,0)","v":4441},{"$f":"VLOOKUP($A145,outcome_data!$A$6:$BJ$216,R$1,0)","v":5064},{"$f":"VLOOKUP($A145,outcome_data!$A$6:$BJ$216,S$1,0)","v":3668},{"$f":"VLOOKUP($A145,outcome_data!$A$6:$BJ$216,T$1,0)","v":5064},{"$f":"VLOOKUP($A145,outcome_data!$A$6:$BJ$216,U$1,0)","v":26144},{"$f":"VLOOKUP($A145,outcome_data!$A$6:$BJ$216,V$1,0)","v":34805},{"$f":"VLOOKUP($A145,outcome_data!$A$6:$BJ$216,W$1,0)","v":4147},{"$f":"VLOOKUP($A145,outcome_data!$A$6:$BJ$216,X$1,0)","v":5867},{"$f":"VLOOKUP($A145,outcome_data!$A$6:$BJ$216,Y$1,0)","v":1098},{"$f":"VLOOKUP($A145,outcome_data!$A$6:$BJ$216,Z$1,0)","v":1262},{"$f":"VLOOKUP($A145,outcome_data!$A$6:$BJ$216,AA$1,0)","v":872},{"$f":"VLOOKUP($A145,outcome_data!$A$6:$BJ$216,AB$1,0)","v":1262},{"$f":"VLOOKUP($A145,outcome_data!$A$6:$BJ$216,AC$1,0)","v":2835},{"$f":"VLOOKUP($A145,outcome_data!$A$6:$BJ$216,AD$1,0)","v":3355},{"$f":"VLOOKUP($A145,outcome_data!$A$6:$BJ$216,AE$1,0)","v":2241},{"$f":"VLOOKUP($A145,outcome_data!$A$6:$BJ$216,AF$1,0)","v":3355}]
["08L","NHS Lewisham",{"$f":"VLOOKUP($A146,outcome_data!$A$6:$BJ$216,C$1,0)","v":123},{"$f":"VLOOKUP($A146,outcome_data!$A$6:$BJ$216,D$1,0)","v":290423},{"$f":"VLOOKUP($A146,outcome_data!$A$6:$BJ$216,E$1,0)","v":419},{"$f":"VLOOKUP($A146,outcome_data!$A$6:$BJ$216,F$1,0)","v":298522},{"$f":"VLOOKUP($A146,outcome_data!$A$6:$BJ$216,G$1,0)","v":885},{"$f":"VLOOKUP($A146,outcome_data!$A$6:$BJ$216,H$1,0)","v":298522},{"$f":"VLOOKUP($A146,outcome_data!$A$6:$BJ$216,I$1,0)","v":300},{"$f":"VLOOKUP($A146,outcome_data!$A$6:$BJ$216,J$1,0)","v":298522},{"$f":"VLOOKUP($A146,outcome_data!$A$6:$BJ$216,K$1,0)","v":573},{"$f":"VLOOKUP($A146,outcome_data!$A$6:$BJ$216,L$1,0)","v":298522},{"$f":"VLOOKUP($A146,outcome_data!$A$6:$BJ$216,M$1,0)","v":228},{"$f":"VLOOKUP($A146,outcome_data!$A$6:$BJ$216,N$1,0)","v":298522},{"$f":"VLOOKUP($A146,outcome_data!$A$6:$BJ$216,O$1,0)","v":59},{"$f":"VLOOKUP($A146,outcome_data!$A$6:$BJ$216,P$1,0)","v":298522},{"$f":"VLOOKUP($A146,outcome_data!$A$6:$BJ$216,Q$1,0)","v":4521},{"$f":"VLOOKUP($A146,outcome_data!$A$6:$BJ$216,R$1,0)","v":5223},{"$f":"VLOOKUP($A146,outcome_data!$A$6:$BJ$216,S$1,0)","v":3612},{"$f":"VLOOKUP($A146,outcome_data!$A$6:$BJ$216,T$1,0)","v":5223},{"$f":"VLOOKUP($A146,outcome_data!$A$6:$BJ$216,U$1,0)","v":23534},{"$f":"VLOOKUP($A146,outcome_data!$A$6:$BJ$216,V$1,0)","v":32709},{"$f":"VLOOKUP($A146,outcome_data!$A$6:$BJ$216,W$1,0)","v":3293},{"$f":"VLOOKUP($A146,outcome_data!$A$6:$BJ$216,X$1,0)","v":4756},{"$f":"VLOOKUP($A146,outcome_data!$A$6:$BJ$216,Y$1,0)","v":1278},{"$f":"VLOOKUP($A146,outcome_data!$A$6:$BJ$216,Z$1,0)","v":1533},{"$f":"VLOOKUP($A146,outcome_data!$A$6:$BJ$216,AA$1,0)","v":996},{"$f":"VLOOKUP($A146,outcome_data!$A$6:$BJ$216,AB$1,0)","v":1533},{"$f":"VLOOKUP($A146,outcome_data!$A$6:$BJ$216,AC$1,0)","v":2616},{"$f":"VLOOKUP($A146,outcome_data!$A$6:$BJ$216,AD$1,0)","v":3208},{"$f":"VLOOKUP($A146,outcome_data!$A$6:$BJ$216,AE$1,0)","v":2086},{"$f":"VLOOKUP($A146,outcome_data!$A$6:$BJ$216,AF$1,0)","v":3208}]
["08M","NHS Newham",{"$f":"VLOOKUP($A147,outcome_data!$A$6:$BJ$216,C$1,0)","v":157},{"$f":"VLOOKUP($A147,outcome_data!$A$6:$BJ$216,D$1,0)","v":351062},{"$f":"VLOOKUP($A147,outcome_data!$A$6:$BJ$216,E$1,0)","v":386},{"$f":"VLOOKUP($A147,outcome_data!$A$6:$BJ$216,F$1,0)","v":375864},{"$f":"VLOOKUP($A147,outcome_data!$A$6:$BJ$216,G$1,0)","v":1429},{"$f":"VLOOKUP($A147,outcome_data!$A$6:$BJ$216,H$1,0)","v":375864},{"$f":"VLOOKUP($A147,outcome_data!$A$6:$BJ$216,I$1,0)","v":341},{"$f":"VLOOKUP($A147,outcome_data!$A$6:$BJ$216,J$1,0)","v":375864},{"$f":"VLOOKUP($A147,outcome_data!$A$6:$BJ$216,K$1,0)","v":920},{"$f":"VLOOKUP($A147,outcome_data!$A$6:$BJ$216,L$1,0)","v":375864},{"$f":"VLOOKUP($A147,outcome_data!$A$6:$BJ$216,M$1,0)","v":315},{"$f":"VLOOKUP($A147,outcome_data!$A$6:$BJ$216,N$1,0)","v":375864},{"$f":"VLOOKUP($A147,outcome_data!$A$6:$BJ$216,O$1,0)","v":91},{"$f":"VLOOKUP($A147,outcome_data!$A$6:$BJ$216,P$1,0)","v":375864},{"$f":"VLOOKUP($A147,outcome_data!$A$6:$BJ$216,Q$1,0)","v":6081},{"$f":"VLOOKUP($A147,outcome_data!$A$6:$BJ$216,R$1,0)","v":6747},{"$f":"VLOOKUP($A147,outcome_data!$A$6:$BJ$216,S$1,0)","v":5012},{"$f":"VLOOKUP($A147,outcome_data!$A$6:$BJ$216,T$1,0)","v":6747},{"$f":"VLOOKUP($A147,outcome_data!$A$6:$BJ$216,U$1,0)","v":29521},{"$f":"VLOOKUP($A147,outcome_data!$A$6:$BJ$216,V$1,0)","v":37647},{"$f":"VLOOKUP($A147,outcome_data!$A$6:$BJ$216,W$1,0)","v":4333},{"$f":"VLOOKUP($A147,outcome_data!$A$6:$BJ$216,X$1,0)","v":5795},{"$f":"VLOOKUP($A147,outcome_data!$A$6:$BJ$216,Y$1,0)","v":820},{"$f":"VLOOKUP($A147,outcome_data!$A$6:$BJ$216,Z$1,0)","v":936},{"$f":"VLOOKUP($A147,outcome_data!$A$6:$BJ$216,AA$1,0)","v":655},{"$f":"VLOOKUP($A147,outcome_data!$A$6:$BJ$216,AB$1,0)","v":936},{"$f":"VLOOKUP($A147,outcome_data!$A$6:$BJ$216,AC$1,0)","v":2387},{"$f":"VLOOKUP($A147,outcome_data!$A$6:$BJ$216,AD$1,0)","v":2765},{"$f":"VLOOKUP($A147,outcome_data!$A$6:$BJ$216,AE$1,0)","v":1914},{"$f":"VLOOKUP($A147,outcome_data!$A$6:$BJ$216,AF$1,0)","v":2765}]
["08N","NHS Redbridge",{"$f":"VLOOKUP($A148,outcome_data!$A$6:$BJ$216,C$1,0)","v":135},{"$f":"VLOOKUP($A148,outcome_data!$A$6:$BJ$216,D$1,0)","v":273541},{"$f":"VLOOKUP($A148,outcome_data!$A$6:$BJ$216,E$1,0)","v":310},{"$f":"VLOOKUP($A148,outcome_data!$A$6:$BJ$216,F$1,0)","v":289944},{"$f":"VLOOKUP($A148,outcome_data!$A$6:$BJ$216,G$1,0)","v":1570},{"$f":"VLOOKUP($A148,outcome_data!$A$6:$BJ$216,H$1,0)","v":289944},{"$f":"VLOOKUP($A148,outcome_data!$A$6:$BJ$216,I$1,0)","v":337},{"$f":"VLOOKUP($A148,outcome_data!$A$6:$BJ$216,J$1,0)","v":289944},{"$f":"VLOOKUP($A148,outcome_data!$A$6:$BJ$216,K$1,0)","v":980},{"$f":"VLOOKUP($A148,outcome_data!$A$6:$BJ$216,L$1,0)","v":289944},{"$f":"VLOOKUP($A148,outcome_data!$A$6:$BJ$216,M$1,0)","v":338},{"$f":"VLOOKUP($A148,outcome_data!$A$6:$BJ$216,N$1,0)","v":289944},{"$f":"VLOOKUP($A148,outcome_data!$A$6:$BJ$216,O$1,0)","v":110},{"$f":"VLOOKUP($A148,outcome_data!$A$6:$BJ$216,P$1,0)","v":289944},{"$f":"VLOOKUP($A148,outcome_data!$A$6:$BJ$216,Q$1,0)","v":6839},{"$f":"VLOOKUP($A148,outcome_data!$A$6:$BJ$216,R$1,0)","v":7851},{"$f":"VLOOKUP($A148,outcome_data!$A$6:$BJ$216,S$1,0)","v":5738},{"$f":"VLOOKUP($A148,outcome_data!$A$6:$BJ$216,T$1,0)","v":7851},{"$f":"VLOOKUP($A148,outcome_data!$A$6:$BJ$216,U$1,0)","v":27294},{"$f":"VLOOKUP($A148,outcome_data!$A$6:$BJ$216,V$1,0)","v":35023},{"$f":"VLOOKUP($A148,outcome_data!$A$6:$BJ$216,W$1,0)","v":5034},{"$f":"VLOOKUP($A148,outcome_data!$A$6:$BJ$216,X$1,0)","v":7047},{"$f":"VLOOKUP($A148,outcome_data!$A$6:$BJ$216,Y$1,0)","v":780},{"$f":"VLOOKUP($A148,outcome_data!$A$6:$BJ$216,Z$1,0)","v":907},{"$f":"VLOOKUP($A148,outcome_data!$A$6:$BJ$216,AA$1,0)","v":656},{"$f":"VLOOKUP($A148,outcome_data!$A$6:$BJ$216,AB$1,0)","v":907},{"$f":"VLOOKUP($A148,outcome_data!$A$6:$BJ$216,AC$1,0)","v":2728},{"$f":"VLOOKUP($A148,outcome_data!$A$6:$BJ$216,AD$1,0)","v":3164},{"$f":"VLOOKUP($A148,outcome_data!$A$6:$BJ$216,AE$1,0)","v":2153},{"$f":"VLOOKUP($A148,outcome_data!$A$6:$BJ$216,AF$1,0)","v":3164}]
["08P","NHS Richmond",{"$f":"VLOOKUP($A149,outcome_data!$A$6:$BJ$216,C$1,0)","v":74},{"$f":"VLOOKUP($A149,outcome_data!$A$6:$BJ$216,D$1,0)","v":191362},{"$f":"VLOOKUP($A149,outcome_data!$A$6:$BJ$216,E$1,0)","v":262},{"$f":"VLOOKUP($A149,outcome_data!$A$6:$BJ$216,F$1,0)","v":202374},{"$f":"VLOOKUP($A149,outcome_data!$A$6:$BJ$216,G$1,0)","v":697},{"$f":"VLOOKUP($A149,outcome_data!$A$6:$BJ$216,H$1,0)","v":202374},{"$f":"VLOOKUP($A149,outcome_data!$A$6:$BJ$216,I$1,0)","v":126},{"$f":"VLOOKUP($A149,outcome_data!$A$6:$BJ$216,J$1,0)","v":202374},{"$f":"VLOOKUP($A149,outcome_data!$A$6:$BJ$216,K$1,0)","v":428},{"$f":"VLOOKUP($A149,outcome_data!$A$6:$BJ$216,L$1,0)","v":202374},{"$f":"VLOOKUP($A149,outcome_data!$A$6:$BJ$216,M$1,0)","v":166},{"$f":"VLOOKUP($A149,outcome_data!$A$6:$BJ$216,N$1,0)","v":202374},{"$f":"VLOOKUP($A149,outcome_data!$A$6:$BJ$216,O$1,0)","v":46},{"$f":"VLOOKUP($A149,outcome_data!$A$6:$BJ$216,P$1,0)","v":202374},{"$f":"VLOOKUP($A149,outcome_data!$A$6:$BJ$216,Q$1,0)","v":3462},{"$f":"VLOOKUP($A149,outcome_data!$A$6:$BJ$216,R$1,0)","v":3936},{"$f":"VLOOKUP($A149,outcome_data!$A$6:$BJ$216,S$1,0)","v":2811},{"$f":"VLOOKUP($A149,outcome_data!$A$6:$BJ$216,T$1,0)","v":3936},{"$f":"VLOOKUP($A149,outcome_data!$A$6:$BJ$216,U$1,0)","v":16374},{"$f":"VLOOKUP($A149,outcome_data!$A$6:$BJ$216,V$1,0)","v":20928},{"$f":"VLOOKUP($A149,outcome_data!$A$6:$BJ$216,W$1,0)","v":3015},{"$f":"VLOOKUP($A149,outcome_data!$A$6:$BJ$216,X$1,0)","v":4178},{"$f":"VLOOKUP($A149,outcome_data!$A$6:$BJ$216,Y$1,0)","v":628},{"$f":"VLOOKUP($A149,outcome_data!$A$6:$BJ$216,Z$1,0)","v":714},{"$f":"VLOOKUP($A149,outcome_data!$A$6:$BJ$216,AA$1,0)","v":497},{"$f":"VLOOKUP($A149,outcome_data!$A$6:$BJ$216,AB$1,0)","v":714},{"$f":"VLOOKUP($A149,outcome_data!$A$6:$BJ$216,AC$1,0)","v":1939},{"$f":"VLOOKUP($A149,outcome_data!$A$6:$BJ$216,AD$1,0)","v":2254},{"$f":"VLOOKUP($A149,outcome_data!$A$6:$BJ$216,AE$1,0)","v":1500},{"$f":"VLOOKUP($A149,outcome_data!$A$6:$BJ$216,AF$1,0)","v":2254}]
["08Q","NHS Southwark",{"$f":"VLOOKUP($A150,outcome_data!$A$6:$BJ$216,C$1,0)","v":115},{"$f":"VLOOKUP($A150,outcome_data!$A$6:$BJ$216,D$1,0)","v":300400},{"$f":"VLOOKUP($A150,outcome_data!$A$6:$BJ$216,E$1,0)","v":352},{"$f":"VLOOKUP($A150,outcome_data!$A$6:$BJ$216,F$1,0)","v":325112},{"$f":"VLOOKUP($A150,outcome_data!$A$6:$BJ$216,G$1,0)","v":780},{"$f":"VLOOKUP($A150,outcome_data!$A$6:$BJ$216,H$1,0)","v":325112},{"$f":"VLOOKUP($A150,outcome_data!$A$6:$BJ$216,I$1,0)","v":292},{"$f":"VLOOKUP($A150,outcome_data!$A$6:$BJ$216,J$1,0)","v":325112},{"$f":"VLOOKUP($A150,outcome_data!$A$6:$BJ$216,K$1,0)","v":639},{"$f":"VLOOKUP($A150,outcome_data!$A$6:$BJ$216,L$1,0)","v":325112},{"$f":"VLOOKUP($A150,outcome_data!$A$6:$BJ$216,M$1,0)","v":233},{"$f":"VLOOKUP($A150,outcome_data!$A$6:$BJ$216,N$1,0)","v":325112},{"$f":"VLOOKUP($A150,outcome_data!$A$6:$BJ$216,O$1,0)","v":51},{"$f":"VLOOKUP($A150,outcome_data!$A$6:$BJ$216,P$1,0)","v":325112},{"$f":"VLOOKUP($A150,outcome_data!$A$6:$BJ$216,Q$1,0)","v":4115},{"$f":"VLOOKUP($A150,outcome_data!$A$6:$BJ$216,R$1,0)","v":4687},{"$f":"VLOOKUP($A150,outcome_data!$A$6:$BJ$216,S$1,0)","v":3458},{"$f":"VLOOKUP($A150,outcome_data!$A$6:$BJ$216,T$1,0)","v":4687},{"$f":"VLOOKUP($A150,outcome_data!$A$6:$BJ$216,U$1,0)","v":24180},{"$f":"VLOOKUP($A150,outcome_data!$A$6:$BJ$216,V$1,0)","v":32346},{"$f":"VLOOKUP($A150,outcome_data!$A$6:$BJ$216,W$1,0)","v":3728},{"$f":"VLOOKUP($A150,outcome_data!$A$6:$BJ$216,X$1,0)","v":5222},{"$f":"VLOOKUP($A150,outcome_data!$A$6:$BJ$216,Y$1,0)","v":1073},{"$f":"VLOOKUP($A150,outcome_data!$A$6:$BJ$216,Z$1,0)","v":1255},{"$f":"VLOOKUP($A150,outcome_data!$A$6:$BJ$216,AA$1,0)","v":903},{"$f":"VLOOKUP($A150,outcome_data!$A$6:$BJ$216,AB$1,0)","v":1255},{"$f":"VLOOKUP($A150,outcome_data!$A$6:$BJ$216,AC$1,0)","v":2309},{"$f":"VLOOKUP($A150,outcome_data!$A$6:$BJ$216,AD$1,0)","v":2759},{"$f":"VLOOKUP($A150,outcome_data!$A$6:$BJ$216,AE$1,0)","v":1887},{"$f":"VLOOKUP($A150,outcome_data!$A$6:$BJ$216,AF$1,0)","v":2759}]
["08R","NHS Merton",{"$f":"VLOOKUP($A151,outcome_data!$A$6:$BJ$216,C$1,0)","v":86},{"$f":"VLOOKUP($A151,outcome_data!$A$6:$BJ$216,D$1,0)","v":202697},{"$f":"VLOOKUP($A151,outcome_data!$A$6:$BJ$216,E$1,0)","v":299},{"$f":"VLOOKUP($A151,outcome_data!$A$6:$BJ$216,F$1,0)","v":217803},{"$f":"VLOOKUP($A151,outcome_data!$A$6:$BJ$216,G$1,0)","v":721},{"$f":"VLOOKUP($A151,outcome_data!$A$6:$BJ$216,H$1,0)","v":217803},{"$f":"VLOOKUP($A151,outcome_data!$A$6:$BJ$216,I$1,0)","v":175},{"$f":"VLOOKUP($A151,outcome_data!$A$6:$BJ$216,J$1,0)","v":217803},{"$f":"VLOOKUP($A151,outcome_data!$A$6:$BJ$216,K$1,0)","v":580},{"$f":"VLOOKUP($A151,outcome_data!$A$6:$BJ$216,L$1,0)","v":217803},{"$f":"VLOOKUP($A151,outcome_data!$A$6:$BJ$216,M$1,0)","v":245},{"$f":"VLOOKUP($A151,outcome_data!$A$6:$BJ$216,N$1,0)","v":217803},{"$f":"VLOOKUP($A151,outcome_data!$A$6:$BJ$216,O$1,0)","v":55},{"$f":"VLOOKUP($A151,outcome_data!$A$6:$BJ$216,P$1,0)","v":217803},{"$f":"VLOOKUP($A151,outcome_data!$A$6:$BJ$216,Q$1,0)","v":4038},{"$f":"VLOOKUP($A151,outcome_data!$A$6:$BJ$216,R$1,0)","v":4631},{"$f":"VLOOKUP($A151,outcome_data!$A$6:$BJ$216,S$1,0)","v":3357},{"$f":"VLOOKUP($A151,outcome_data!$A$6:$BJ$216,T$1,0)","v":4631},{"$f":"VLOOKUP($A151,outcome_data!$A$6:$BJ$216,U$1,0)","v":17560},{"$f":"VLOOKUP($A151,outcome_data!$A$6:$BJ$216,V$1,0)","v":23021},{"$f":"VLOOKUP($A151,outcome_data!$A$6:$BJ$216,W$1,0)","v":3523},{"$f":"VLOOKUP($A151,outcome_data!$A$6:$BJ$216,X$1,0)","v":4796},{"$f":"VLOOKUP($A151,outcome_data!$A$6:$BJ$216,Y$1,0)","v":768},{"$f":"VLOOKUP($A151,outcome_data!$A$6:$BJ$216,Z$1,0)","v":890},{"$f":"VLOOKUP($A151,outcome_data!$A$6:$BJ$216,AA$1,0)","v":620},{"$f":"VLOOKUP($A151,outcome_data!$A$6:$BJ$216,AB$1,0)","v":890},{"$f":"VLOOKUP($A151,outcome_data!$A$6:$BJ$216,AC$1,0)","v":1898},{"$f":"VLOOKUP($A151,outcome_data!$A$6:$BJ$216,AD$1,0)","v":2221},{"$f":"VLOOKUP($A151,outcome_data!$A$6:$BJ$216,AE$1,0)","v":1560},{"$f":"VLOOKUP($A151,outcome_data!$A$6:$BJ$216,AF$1,0)","v":2221}]
["08T","NHS Sutton",{"$f":"VLOOKUP($A152,outcome_data!$A$6:$BJ$216,C$1,0)","v":86},{"$f":"VLOOKUP($A152,outcome_data!$A$6:$BJ$216,D$1,0)","v":172542},{"$f":"VLOOKUP($A152,outcome_data!$A$6:$BJ$216,E$1,0)","v":329},{"$f":"VLOOKUP($A152,outcome_data!$A$6:$BJ$216,F$1,0)","v":186778},{"$f":"VLOOKUP($A152,outcome_data!$A$6:$BJ$216,G$1,0)","v":864},{"$f":"VLOOKUP($A152,outcome_data!$A$6:$BJ$216,H$1,0)","v":186778},{"$f":"VLOOKUP($A152,outcome_data!$A$6:$BJ$216,I$1,0)","v":165},{"$f":"VLOOKUP($A152,outcome_data!$A$6:$BJ$216,J$1,0)","v":186778},{"$f":"VLOOKUP($A152,outcome_data!$A$6:$BJ$216,K$1,0)","v":547},{"$f":"VLOOKUP($A152,outcome_data!$A$6:$BJ$216,L$1,0)","v":186778},{"$f":"VLOOKUP($A152,outcome_data!$A$6:$BJ$216,M$1,0)","v":238},{"$f":"VLOOKUP($A152,outcome_data!$A$6:$BJ$216,N$1,0)","v":186778},{"$f":"VLOOKUP($A152,outcome_data!$A$6:$BJ$216,O$1,0)","v":68},{"$f":"VLOOKUP($A152,outcome_data!$A$6:$BJ$216,P$1,0)","v":186778},{"$f":"VLOOKUP($A152,outcome_data!$A$6:$BJ$216,Q$1,0)","v":4255},{"$f":"VLOOKUP($A152,outcome_data!$A$6:$BJ$216,R$1,0)","v":4876},{"$f":"VLOOKUP($A152,outcome_data!$A$6:$BJ$216,S$1,0)","v":3399},{"$f":"VLOOKUP($A152,outcome_data!$A$6:$BJ$216,T$1,0)","v":4876},{"$f":"VLOOKUP($A152,outcome_data!$A$6:$BJ$216,U$1,0)","v":17476},{"$f":"VLOOKUP($A152,outcome_data!$A$6:$BJ$216,V$1,0)","v":22904},{"$f":"VLOOKUP($A152,outcome_data!$A$6:$BJ$216,W$1,0)","v":3720},{"$f":"VLOOKUP($A152,outcome_data!$A$6:$BJ$216,X$1,0)","v":5213},{"$f":"VLOOKUP($A152,outcome_data!$A$6:$BJ$216,Y$1,0)","v":723},{"$f":"VLOOKUP($A152,outcome_data!$A$6:$BJ$216,Z$1,0)","v":842},{"$f":"VLOOKUP($A152,outcome_data!$A$6:$BJ$216,AA$1,0)","v":563},{"$f":"VLOOKUP($A152,outcome_data!$A$6:$BJ$216,AB$1,0)","v":842},{"$f":"VLOOKUP($A152,outcome_data!$A$6:$BJ$216,AC$1,0)","v":1996},{"$f":"VLOOKUP($A152,outcome_data!$A$6:$BJ$216,AD$1,0)","v":2363},{"$f":"VLOOKUP($A152,outcome_data!$A$6:$BJ$216,AE$1,0)","v":1571},{"$f":"VLOOKUP($A152,outcome_data!$A$6:$BJ$216,AF$1,0)","v":2363}]
["08V","NHS Tower Hamlets",{"$f":"VLOOKUP($A153,outcome_data!$A$6:$BJ$216,C$1,0)","v":99},{"$f":"VLOOKUP($A153,outcome_data!$A$6:$BJ$216,D$1,0)","v":266123},{"$f":"VLOOKUP($A153,outcome_data!$A$6:$BJ$216,E$1,0)","v":281},{"$f":"VLOOKUP($A153,outcome_data!$A$6:$BJ$216,F$1,0)","v":285429},{"$f":"VLOOKUP($A153,outcome_data!$A$6:$BJ$216,G$1,0)","v":997},{"$f":"VLOOKUP($A153,outcome_data!$A$6:$BJ$216,H$1,0)","v":285429},{"$f":"VLOOKUP($A153,outcome_data!$A$6:$BJ$216,I$1,0)","v":231},{"$f":"VLOOKUP($A153,outcome_data!$A$6:$BJ$216,J$1,0)","v":285429},{"$f":"VLOOKUP($A153,outcome_data!$A$6:$BJ$216,K$1,0)","v":674},{"$f":"VLOOKUP($A153,outcome_data!$A$6:$BJ$216,L$1,0)","v":285429},{"$f":"VLOOKUP($A153,outcome_data!$A$6:$BJ$216,M$1,0)","v":281},{"$f":"VLOOKUP($A153,outcome_data!$A$6:$BJ$216,N$1,0)","v":285429},{"$f":"VLOOKUP($A153,outcome_data!$A$6:$BJ$216,O$1,0)","v":60},{"$f":"VLOOKUP($A153,outcome_data!$A$6:$BJ$216,P$1,0)","v":285429},{"$f":"VLOOKUP($A153,outcome_data!$A$6:$BJ$216,Q$1,0)","v":4509},{"$f":"VLOOKUP($A153,outcome_data!$A$6:$BJ$216,R$1,0)","v":4907},{"$f":"VLOOKUP($A153,outcome_data!$A$6:$BJ$216,S$1,0)","v":3994},{"$f":"VLOOKUP($A153,outcome_data!$A$6:$BJ$216,T$1,0)","v":4907},{"$f":"VLOOKUP($A153,outcome_data!$A$6:$BJ$216,U$1,0)","v":18054},{"$f":"VLOOKUP($A153,outcome_data!$A$6:$BJ$216,V$1,0)","v":22350},{"$f":"VLOOKUP($A153,outcome_data!$A$6:$BJ$216,W$1,0)","v":3432},{"$f":"VLOOKUP($A153,outcome_data!$A$6:$BJ$216,X$1,0)","v":4389},{"$f":"VLOOKUP($A153,outcome_data!$A$6:$BJ$216,Y$1,0)","v":945},{"$f":"VLOOKUP($A153,outcome_data!$A$6:$BJ$216,Z$1,0)","v":1050},{"$f":"VLOOKUP($A153,outcome_data!$A$6:$BJ$216,AA$1,0)","v":806},{"$f":"VLOOKUP($A153,outcome_data!$A$6:$BJ$216,AB$1,0)","v":1050},{"$f":"VLOOKUP($A153,outcome_data!$A$6:$BJ$216,AC$1,0)","v":1898},{"$f":"VLOOKUP($A153,outcome_data!$A$6:$BJ$216,AD$1,0)","v":2145},{"$f":"VLOOKUP($A153,outcome_data!$A$6:$BJ$216,AE$1,0)","v":1604},{"$f":"VLOOKUP($A153,outcome_data!$A$6:$BJ$216,AF$1,0)","v":2145}]
["08W","NHS Waltham Forest",{"$f":"VLOOKUP($A154,outcome_data!$A$6:$BJ$216,C$1,0)","v":130},{"$f":"VLOOKUP($A154,outcome_data!$A$6:$BJ$216,D$1,0)","v":281356},{"$f":"VLOOKUP($A154,outcome_data!$A$6:$BJ$216,E$1,0)","v":431},{"$f":"VLOOKUP($A154,outcome_data!$A$6:$BJ$216,F$1,0)","v":296070},{"$f":"VLOOKUP($A154,outcome_data!$A$6:$BJ$216,G$1,0)","v":1177},{"$f":"VLOOKUP($A154,outcome_data!$A$6:$BJ$216,H$1,0)","v":296070},{"$f":"VLOOKUP($A154,outcome_data!$A$6:$BJ$216,I$1,0)","v":233},{"$f":"VLOOKUP($A154,outcome_data!$A$6:$BJ$216,J$1,0)","v":296070},{"$f":"VLOOKUP($A154,outcome_data!$A$6:$BJ$216,K$1,0)","v":778},{"$f":"VLOOKUP($A154,outcome_data!$A$6:$BJ$216,L$1,0)","v":296070},{"$f":"VLOOKUP($A154,outcome_data!$A$6:$BJ$216,M$1,0)","v":251},{"$f":"VLOOKUP($A154,outcome_data!$A$6:$BJ$216,N$1,0)","v":296070},{"$f":"VLOOKUP($A154,outcome_data!$A$6:$BJ$216,O$1,0)","v":103},{"$f":"VLOOKUP($A154,outcome_data!$A$6:$BJ$216,P$1,0)","v":296070},{"$f":"VLOOKUP($A154,outcome_data!$A$6:$BJ$216,Q$1,0)","v":5143},{"$f":"VLOOKUP($A154,outcome_data!$A$6:$BJ$216,R$1,0)","v":5932},{"$f":"VLOOKUP($A154,outcome_data!$A$6:$BJ$216,S$1,0)","v":4385},{"$f":"VLOOKUP($A154,outcome_data!$A$6:$BJ$216,T$1,0)","v":5925},{"$f":"VLOOKUP($A154,outcome_data!$A$6:$BJ$216,U$1,0)","v":25050},{"$f":"VLOOKUP($A154,outcome_data!$A$6:$BJ$216,V$1,0)","v":32459},{"$f":"VLOOKUP($A154,outcome_data!$A$6:$BJ$216,W$1,0)","v":4588},{"$f":"VLOOKUP($A154,outcome_data!$A$6:$BJ$216,X$1,0)","v":6239},{"$f":"VLOOKUP($A154,outcome_data!$A$6:$BJ$216,Y$1,0)","v":750},{"$f":"VLOOKUP($A154,outcome_data!$A$6:$BJ$216,Z$1,0)","v":886},{"$f":"VLOOKUP($A154,outcome_data!$A$6:$BJ$216,AA$1,0)","v":616},{"$f":"VLOOKUP($A154,outcome_data!$A$6:$BJ$216,AB$1,0)","v":885},{"$f":"VLOOKUP($A154,outcome_data!$A$6:$BJ$216,AC$1,0)","v":2282},{"$f":"VLOOKUP($A154,outcome_data!$A$6:$BJ$216,AD$1,0)","v":2691},{"$f":"VLOOKUP($A154,outcome_data!$A$6:$BJ$216,AE$1,0)","v":1818},{"$f":"VLOOKUP($A154,outcome_data!$A$6:$BJ$216,AF$1,0)","v":2687}]
["08X","NHS Wandsworth",{"$f":"VLOOKUP($A155,outcome_data!$A$6:$BJ$216,C$1,0)","v":140},{"$f":"VLOOKUP($A155,outcome_data!$A$6:$BJ$216,D$1,0)","v":352542},{"$f":"VLOOKUP($A155,outcome_data!$A$6:$BJ$216,E$1,0)","v":317},{"$f":"VLOOKUP($A155,outcome_data!$A$6:$BJ$216,F$1,0)","v":363670},{"$f":"VLOOKUP($A155,outcome_data!$A$6:$BJ$216,G$1,0)","v":959},{"$f":"VLOOKUP($A155,outcome_data!$A$6:$BJ$216,H$1,0)","v":363670},{"$f":"VLOOKUP($A155,outcome_data!$A$6:$BJ$216,I$1,0)","v":343},{"$f":"VLOOKUP($A155,outcome_data!$A$6:$BJ$216,J$1,0)","v":363670},{"$f":"VLOOKUP($A155,outcome_data!$A$6:$BJ$216,K$1,0)","v":782},{"$f":"VLOOKUP($A155,outcome_data!$A$6:$BJ$216,L$1,0)","v":363670},{"$f":"VLOOKUP($A155,outcome_data!$A$6:$BJ$216,M$1,0)","v":316},{"$f":"VLOOKUP($A155,outcome_data!$A$6:$BJ$216,N$1,0)","v":363670},{"$f":"VLOOKUP($A155,outcome_data!$A$6:$BJ$216,O$1,0)","v":54},{"$f":"VLOOKUP($A155,outcome_data!$A$6:$BJ$216,P$1,0)","v":363670},{"$f":"VLOOKUP($A155,outcome_data!$A$6:$BJ$216,Q$1,0)","v":4785},{"$f":"VLOOKUP($A155,outcome_data!$A$6:$BJ$216,R$1,0)","v":5444},{"$f":"VLOOKUP($A155,outcome_data!$A$6:$BJ$216,S$1,0)","v":4056},{"$f":"VLOOKUP($A155,outcome_data!$A$6:$BJ$216,T$1,0)","v":5443},{"$f":"VLOOKUP($A155,outcome_data!$A$6:$BJ$216,U$1,0)","v":23730},{"$f":"VLOOKUP($A155,outcome_data!$A$6:$BJ$216,V$1,0)","v":31267},{"$f":"VLOOKUP($A155,outcome_data!$A$6:$BJ$216,W$1,0)","v":3413},{"$f":"VLOOKUP($A155,outcome_data!$A$6:$BJ$216,X$1,0)","v":4821},{"$f":"VLOOKUP($A155,outcome_data!$A$6:$BJ$216,Y$1,0)","v":964},{"$f":"VLOOKUP($A155,outcome_data!$A$6:$BJ$216,Z$1,0)","v":1122},{"$f":"VLOOKUP($A155,outcome_data!$A$6:$BJ$216,AA$1,0)","v":802},{"$f":"VLOOKUP($A155,outcome_data!$A$6:$BJ$216,AB$1,0)","v":1123},{"$f":"VLOOKUP($A155,outcome_data!$A$6:$BJ$216,AC$1,0)","v":2420},{"$f":"VLOOKUP($A155,outcome_data!$A$6:$BJ$216,AD$1,0)","v":2864},{"$f":"VLOOKUP($A155,outcome_data!$A$6:$BJ$216,AE$1,0)","v":2020},{"$f":"VLOOKUP($A155,outcome_data!$A$6:$BJ$216,AF$1,0)","v":2863}]
["08Y","NHS West London (K&C & Qpp)",{"$f":"VLOOKUP($A156,outcome_data!$A$6:$BJ$216,C$1,0)","v":94},{"$f":"VLOOKUP($A156,outcome_data!$A$6:$BJ$216,D$1,0)","v":214787},{"$f":"VLOOKUP($A156,outcome_data!$A$6:$BJ$216,E$1,0)","v":292},{"$f":"VLOOKUP($A156,outcome_data!$A$6:$BJ$216,F$1,0)","v":229080},{"$f":"VLOOKUP($A156,outcome_data!$A$6:$BJ$216,G$1,0)","v":809},{"$f":"VLOOKUP($A156,outcome_data!$A$6:$BJ$216,H$1,0)","v":229080},{"$f":"VLOOKUP($A156,outcome_data!$A$6:$BJ$216,I$1,0)","v":212},{"$f":"VLOOKUP($A156,outcome_data!$A$6:$BJ$216,J$1,0)","v":229080},{"$f":"VLOOKUP($A156,outcome_data!$A$6:$BJ$216,K$1,0)","v":588},{"$f":"VLOOKUP($A156,outcome_data!$A$6:$BJ$216,L$1,0)","v":229080},{"$f":"VLOOKUP($A156,outcome_data!$A$6:$BJ$216,M$1,0)","v":227},{"$f":"VLOOKUP($A156,outcome_data!$A$6:$BJ$216,N$1,0)","v":229080},{"$f":"VLOOKUP($A156,outcome_data!$A$6:$BJ$216,O$1,0)","v":47},{"$f":"VLOOKUP($A156,outcome_data!$A$6:$BJ$216,P$1,0)","v":229080},{"$f":"VLOOKUP($A156,outcome_data!$A$6:$BJ$216,Q$1,0)","v":3928},{"$f":"VLOOKUP($A156,outcome_data!$A$6:$BJ$216,R$1,0)","v":4492},{"$f":"VLOOKUP($A156,outcome_data!$A$6:$BJ$216,S$1,0)","v":3197},{"$f":"VLOOKUP($A156,outcome_data!$A$6:$BJ$216,T$1,0)","v":4493},{"$f":"VLOOKUP($A156,outcome_data!$A$6:$BJ$216,U$1,0)","v":16907},{"$f":"VLOOKUP($A156,outcome_data!$A$6:$BJ$216,V$1,0)","v":22030},{"$f":"VLOOKUP($A156,outcome_data!$A$6:$BJ$216,W$1,0)","v":2581},{"$f":"VLOOKUP($A156,outcome_data!$A$6:$BJ$216,X$1,0)","v":3566},{"$f":"VLOOKUP($A156,outcome_data!$A$6:$BJ$216,Y$1,0)","v":759},{"$f":"VLOOKUP($A156,outcome_data!$A$6:$BJ$216,Z$1,0)","v":872},{"$f":"VLOOKUP($A156,outcome_data!$A$6:$BJ$216,AA$1,0)","v":613},{"$f":"VLOOKUP($A156,outcome_data!$A$6:$BJ$216,AB$1,0)","v":871},{"$f":"VLOOKUP($A156,outcome_data!$A$6:$BJ$216,AC$1,0)","v":2122},{"$f":"VLOOKUP($A156,outcome_data!$A$6:$BJ$216,AD$1,0)","v":2535},{"$f":"VLOOKUP($A156,outcome_data!$A$6:$BJ$216,AE$1,0)","v":1665},{"$f":"VLOOKUP($A156,outcome_data!$A$6:$BJ$216,AF$1,0)","v":2537}]
["09A","NHS Central London (Westminster)",{"$f":"VLOOKUP($A157,outcome_data!$A$6:$BJ$216,C$1,0)","v":59},{"$f":"VLOOKUP($A157,outcome_data!$A$6:$BJ$216,D$1,0)","v":189431},{"$f":"VLOOKUP($A157,outcome_data!$A$6:$BJ$216,E$1,0)","v":231},{"$f":"VLOOKUP($A157,outcome_data!$A$6:$BJ$216,F$1,0)","v":190367},{"$f":"VLOOKUP($A157,outcome_data!$A$6:$BJ$216,G$1,0)","v":565},{"$f":"VLOOKUP($A157,outcome_data!$A$6:$BJ$216,H$1,0)","v":190367},{"$f":"VLOOKUP($A157,outcome_data!$A$6:$BJ$216,I$1,0)","v":148},{"$f":"VLOOKUP($A157,outcome_data!$A$6:$BJ$216,J$1,0)","v":190367},{"$f":"VLOOKUP($A157,outcome_data!$A$6:$BJ$216,K$1,0)","v":419},{"$f":"VLOOKUP($A157,outcome_data!$A$6:$BJ$216,L$1,0)","v":190367},{"$f":"VLOOKUP($A157,outcome_data!$A$6:$BJ$216,M$1,0)","v":185},{"$f":"VLOOKUP($A157,outcome_data!$A$6:$BJ$216,N$1,0)","v":190367},{"$f":"VLOOKUP($A157,outcome_data!$A$6:$BJ$216,O$1,0)","v":25},{"$f":"VLOOKUP($A157,outcome_data!$A$6:$BJ$216,P$1,0)","v":190367},{"$f":"VLOOKUP($A157,outcome_data!$A$6:$BJ$216,Q$1,0)","v":3300},{"$f":"VLOOKUP($A157,outcome_data!$A$6:$BJ$216,R$1,0)","v":3781},{"$f":"VLOOKUP($A157,outcome_data!$A$6:$BJ$216,S$1,0)","v":2630},{"$f":"VLOOKUP($A157,outcome_data!$A$6:$BJ$216,T$1,0)","v":3781},{"$f":"VLOOKUP($A157,outcome_data!$A$6:$BJ$216,U$1,0)","v":12157},{"$f":"VLOOKUP($A157,outcome_data!$A$6:$BJ$216,V$1,0)","v":16015},{"$f":"VLOOKUP($A157,outcome_data!$A$6:$BJ$216,W$1,0)","v":1812},{"$f":"VLOOKUP($A157,outcome_data!$A$6:$BJ$216,X$1,0)","v":2519},{"$f":"VLOOKUP($A157,outcome_data!$A$6:$BJ$216,Y$1,0)","v":593},{"$f":"VLOOKUP($A157,outcome_data!$A$6:$BJ$216,Z$1,0)","v":680},{"$f":"VLOOKUP($A157,outcome_data!$A$6:$BJ$216,AA$1,0)","v":464},{"$f":"VLOOKUP($A157,outcome_data!$A$6:$BJ$216,AB$1,0)","v":681},{"$f":"VLOOKUP($A157,outcome_data!$A$6:$BJ$216,AC$1,0)","v":1673},{"$f":"VLOOKUP($A157,outcome_data!$A$6:$BJ$216,AD$1,0)","v":1957},{"$f":"VLOOKUP($A157,outcome_data!$A$6:$BJ$216,AE$1,0)","v":1313},{"$f":"VLOOKUP($A157,outcome_data!$A$6:$BJ$216,AF$1,0)","v":1957}]
["09C","NHS Ashford",{"$f":"VLOOKUP($A158,outcome_data!$A$6:$BJ$216,C$1,0)","v":54},{"$f":"VLOOKUP($A158,outcome_data!$A$6:$BJ$216,D$1,0)","v":114405},{"$f":"VLOOKUP($A158,outcome_data!$A$6:$BJ$216,E$1,0)","v":209},{"$f":"VLOOKUP($A158,outcome_data!$A$6:$BJ$216,F$1,0)","v":122614},{"$f":"VLOOKUP($A158,outcome_data!$A$6:$BJ$216,G$1,0)","v":583},{"$f":"VLOOKUP($A158,outcome_data!$A$6:$BJ$216,H$1,0)","v":122614},{"$f":"VLOOKUP($A158,outcome_data!$A$6:$BJ$216,I$1,0)","v":124},{"$f":"VLOOKUP($A158,outcome_data!$A$6:$BJ$216,J$1,0)","v":122614},{"$f":"VLOOKUP($A158,outcome_data!$A$6:$BJ$216,K$1,0)","v":407},{"$f":"VLOOKUP($A158,outcome_data!$A$6:$BJ$216,L$1,0)","v":122614},{"$f":"VLOOKUP($A158,outcome_data!$A$6:$BJ$216,M$1,0)","v":124},{"$f":"VLOOKUP($A158,outcome_data!$A$6:$BJ$216,N$1,0)","v":122614},{"$f":"VLOOKUP($A158,outcome_data!$A$6:$BJ$216,O$1,0)","v":56},{"$f":"VLOOKUP($A158,outcome_data!$A$6:$BJ$216,P$1,0)","v":122614},{"$f":"VLOOKUP($A158,outcome_data!$A$6:$BJ$216,Q$1,0)","v":3469},{"$f":"VLOOKUP($A158,outcome_data!$A$6:$BJ$216,R$1,0)","v":3864},{"$f":"VLOOKUP($A158,outcome_data!$A$6:$BJ$216,S$1,0)","v":2798},{"$f":"VLOOKUP($A158,outcome_data!$A$6:$BJ$216,T$1,0)","v":3864},{"$f":"VLOOKUP($A158,outcome_data!$A$6:$BJ$216,U$1,0)","v":13766},{"$f":"VLOOKUP($A158,outcome_data!$A$6:$BJ$216,V$1,0)","v":17367},{"$f":"VLOOKUP($A158,outcome_data!$A$6:$BJ$216,W$1,0)","v":3307},{"$f":"VLOOKUP($A158,outcome_data!$A$6:$BJ$216,X$1,0)","v":4517},{"$f":"VLOOKUP($A158,outcome_data!$A$6:$BJ$216,Y$1,0)","v":666},{"$f":"VLOOKUP($A158,outcome_data!$A$6:$BJ$216,Z$1,0)","v":761},{"$f":"VLOOKUP($A158,outcome_data!$A$6:$BJ$216,AA$1,0)","v":537},{"$f":"VLOOKUP($A158,outcome_data!$A$6:$BJ$216,AB$1,0)","v":761},{"$f":"VLOOKUP($A158,outcome_data!$A$6:$BJ$216,AC$1,0)","v":1927},{"$f":"VLOOKUP($A158,outcome_data!$A$6:$BJ$216,AD$1,0)","v":2202},{"$f":"VLOOKUP($A158,outcome_data!$A$6:$BJ$216,AE$1,0)","v":1551},{"$f":"VLOOKUP($A158,outcome_data!$A$6:$BJ$216,AF$1,0)","v":2202}]
["09D","NHS Brighton and Hove",{"$f":"VLOOKUP($A159,outcome_data!$A$6:$BJ$216,C$1,0)","v":131},{"$f":"VLOOKUP($A159,outcome_data!$A$6:$BJ$216,D$1,0)","v":282489},{"$f":"VLOOKUP($A159,outcome_data!$A$6:$BJ$216,E$1,0)","v":378},{"$f":"VLOOKUP($A159,outcome_data!$A$6:$BJ$216,F$1,0)","v":300503},{"$f":"VLOOKUP($A159,outcome_data!$A$6:$BJ$216,G$1,0)","v":1158},{"$f":"VLOOKUP($A159,outcome_data!$A$6:$BJ$216,H$1,0)","v":300503},{"$f":"VLOOKUP($A159,outcome_data!$A$6:$BJ$216,I$1,0)","v":272},{"$f":"VLOOKUP($A159,outcome_data!$A$6:$BJ$216,J$1,0)","v":300503},{"$f":"VLOOKUP($A159,outcome_data!$A$6:$BJ$216,K$1,0)","v":1039},{"$f":"VLOOKUP($A159,outcome_data!$A$6:$BJ$216,L$1,0)","v":300503},{"$f":"VLOOKUP($A159,outcome_data!$A$6:$BJ$216,M$1,0)","v":358},{"$f":"VLOOKUP($A159,outcome_data!$A$6:$BJ$216,N$1,0)","v":300503},{"$f":"VLOOKUP($A159,outcome_data!$A$6:$BJ$216,O$1,0)","v":61},{"$f":"VLOOKUP($A159,outcome_data!$A$6:$BJ$216,P$1,0)","v":300503},{"$f":"VLOOKUP($A159,outcome_data!$A$6:$BJ$216,Q$1,0)","v":6003},{"$f":"VLOOKUP($A159,outcome_data!$A$6:$BJ$216,R$1,0)","v":6956},{"$f":"VLOOKUP($A159,outcome_data!$A$6:$BJ$216,S$1,0)","v":4510},{"$f":"VLOOKUP($A159,outcome_data!$A$6:$BJ$216,T$1,0)","v":6956},{"$f":"VLOOKUP($A159,outcome_data!$A$6:$BJ$216,U$1,0)","v":22603},{"$f":"VLOOKUP($A159,outcome_data!$A$6:$BJ$216,V$1,0)","v":30121},{"$f":"VLOOKUP($A159,outcome_data!$A$6:$BJ$216,W$1,0)","v":6588},{"$f":"VLOOKUP($A159,outcome_data!$A$6:$BJ$216,X$1,0)","v":9155},{"$f":"VLOOKUP($A159,outcome_data!$A$6:$BJ$216,Y$1,0)","v":1265},{"$f":"VLOOKUP($A159,outcome_data!$A$6:$BJ$216,Z$1,0)","v":1523},{"$f":"VLOOKUP($A159,outcome_data!$A$6:$BJ$216,AA$1,0)","v":956},{"$f":"VLOOKUP($A159,outcome_data!$A$6:$BJ$216,AB$1,0)","v":1523},{"$f":"VLOOKUP($A159,outcome_data!$A$6:$BJ$216,AC$1,0)","v":3113},{"$f":"VLOOKUP($A159,outcome_data!$A$6:$BJ$216,AD$1,0)","v":3815},{"$f":"VLOOKUP($A159,outcome_data!$A$6:$BJ$216,AE$1,0)","v":2359},{"$f":"VLOOKUP($A159,outcome_data!$A$6:$BJ$216,AF$1,0)","v":3815}]
["09E","NHS Canterbury and Coastal",{"$f":"VLOOKUP($A160,outcome_data!$A$6:$BJ$216,C$1,0)","v":128},{"$f":"VLOOKUP($A160,outcome_data!$A$6:$BJ$216,D$1,0)","v":193591},{"$f":"VLOOKUP($A160,outcome_data!$A$6:$BJ$216,E$1,0)","v":335},{"$f":"VLOOKUP($A160,outcome_data!$A$6:$BJ$216,F$1,0)","v":214771},{"$f":"VLOOKUP($A160,outcome_data!$A$6:$BJ$216,G$1,0)","v":1171},{"$f":"VLOOKUP($A160,outcome_data!$A$6:$BJ$216,H$1,0)","v":214771},{"$f":"VLOOKUP($A160,outcome_data!$A$6:$BJ$216,I$1,0)","v":259},{"$f":"VLOOKUP($A160,outcome_data!$A$6:$BJ$216,J$1,0)","v":214771},{"$f":"VLOOKUP($A160,outcome_data!$A$6:$BJ$216,K$1,0)","v":693},{"$f":"VLOOKUP($A160,outcome_data!$A$6:$BJ$216,L$1,0)","v":214771},{"$f":"VLOOKUP($A160,outcome_data!$A$6:$BJ$216,M$1,0)","v":189},{"$f":"VLOOKUP($A160,outcome_data!$A$6:$BJ$216,N$1,0)","v":214771},{"$f":"VLOOKUP($A160,outcome_data!$A$6:$BJ$216,O$1,0)","v":88},{"$f":"VLOOKUP($A160,outcome_data!$A$6:$BJ$216,P$1,0)","v":214771},{"$f":"VLOOKUP($A160,outcome_data!$A$6:$BJ$216,Q$1,0)","v":6251},{"$f":"VLOOKUP($A160,outcome_data!$A$6:$BJ$216,R$1,0)","v":7160},{"$f":"VLOOKUP($A160,outcome_data!$A$6:$BJ$216,S$1,0)","v":5254},{"$f":"VLOOKUP($A160,outcome_data!$A$6:$BJ$216,T$1,0)","v":7160},{"$f":"VLOOKUP($A160,outcome_data!$A$6:$BJ$216,U$1,0)","v":22952},{"$f":"VLOOKUP($A160,outcome_data!$A$6:$BJ$216,V$1,0)","v":28902},{"$f":"VLOOKUP($A160,outcome_data!$A$6:$BJ$216,W$1,0)","v":5634},{"$f":"VLOOKUP($A160,outcome_data!$A$6:$BJ$216,X$1,0)","v":7847},{"$f":"VLOOKUP($A160,outcome_data!$A$6:$BJ$216,Y$1,0)","v":1080},{"$f":"VLOOKUP($A160,outcome_data!$A$6:$BJ$216,Z$1,0)","v":1246},{"$f":"VLOOKUP($A160,outcome_data!$A$6:$BJ$216,AA$1,0)","v":919},{"$f":"VLOOKUP($A160,outcome_data!$A$6:$BJ$216,AB$1,0)","v":1246},{"$f":"VLOOKUP($A160,outcome_data!$A$6:$BJ$216,AC$1,0)","v":3399},{"$f":"VLOOKUP($A160,outcome_data!$A$6:$BJ$216,AD$1,0)","v":3990},{"$f":"VLOOKUP($A160,outcome_data!$A$6:$BJ$216,AE$1,0)","v":2816},{"$f":"VLOOKUP($A160,outcome_data!$A$6:$BJ$216,AF$1,0)","v":3990}]
["09F","NHS Eastbourne, Hailsham and Seaford",{"$f":"VLOOKUP($A161,outcome_data!$A$6:$BJ$216,C$1,0)","v":122},{"$f":"VLOOKUP($A161,outcome_data!$A$6:$BJ$216,D$1,0)","v":162587},{"$f":"VLOOKUP($A161,outcome_data!$A$6:$BJ$216,E$1,0)","v":377},{"$f":"VLOOKUP($A161,outcome_data!$A$6:$BJ$216,F$1,0)","v":187058},{"$f":"VLOOKUP($A161,outcome_data!$A$6:$BJ$216,G$1,0)","v":1197},{"$f":"VLOOKUP($A161,outcome_data!$A$6:$BJ$216,H$1,0)","v":187058},{"$f":"VLOOKUP($A161,outcome_data!$A$6:$BJ$216,I$1,0)","v":212},{"$f":"VLOOKUP($A161,outcome_data!$A$6:$BJ$216,J$1,0)","v":187058},{"$f":"VLOOKUP($A161,outcome_data!$A$6:$BJ$216,K$1,0)","v":866},{"$f":"VLOOKUP($A161,outcome_data!$A$6:$BJ$216,L$1,0)","v":187058},{"$f":"VLOOKUP($A161,outcome_data!$A$6:$BJ$216,M$1,0)","v":320},{"$f":"VLOOKUP($A161,outcome_data!$A$6:$BJ$216,N$1,0)","v":187058},{"$f":"VLOOKUP($A161,outcome_data!$A$6:$BJ$216,O$1,0)","v":82},{"$f":"VLOOKUP($A161,outcome_data!$A$6:$BJ$216,P$1,0)","v":187058},{"$f":"VLOOKUP($A161,outcome_data!$A$6:$BJ$216,Q$1,0)","v":7142},{"$f":"VLOOKUP($A161,outcome_data!$A$6:$BJ$216,R$1,0)","v":8284},{"$f":"VLOOKUP($A161,outcome_data!$A$6:$BJ$216,S$1,0)","v":6008},{"$f":"VLOOKUP($A161,outcome_data!$A$6:$BJ$216,T$1,0)","v":8284},{"$f":"VLOOKUP($A161,outcome_data!$A$6:$BJ$216,U$1,0)","v":25083},{"$f":"VLOOKUP($A161,outcome_data!$A$6:$BJ$216,V$1,0)","v":32838},{"$f":"VLOOKUP($A161,outcome_data!$A$6:$BJ$216,W$1,0)","v":6926},{"$f":"VLOOKUP($A161,outcome_data!$A$6:$BJ$216,X$1,0)","v":9839},{"$f":"VLOOKUP($A161,outcome_data!$A$6:$BJ$216,Y$1,0)","v":1324},{"$f":"VLOOKUP($A161,outcome_data!$A$6:$BJ$216,Z$1,0)","v":1569},{"$f":"VLOOKUP($A161,outcome_data!$A$6:$BJ$216,AA$1,0)","v":1028},{"$f":"VLOOKUP($A161,outcome_data!$A$6:$BJ$216,AB$1,0)","v":1569},{"$f":"VLOOKUP($A161,outcome_data!$A$6:$BJ$216,AC$1,0)","v":4042},{"$f":"VLOOKUP($A161,outcome_data!$A$6:$BJ$216,AD$1,0)","v":4780},{"$f":"VLOOKUP($A161,outcome_data!$A$6:$BJ$216,AE$1,0)","v":3192},{"$f":"VLOOKUP($A161,outcome_data!$A$6:$BJ$216,AF$1,0)","v":4780}]
["09G","NHS Coastal West Sussex",{"$f":"VLOOKUP($A162,outcome_data!$A$6:$BJ$216,C$1,0)","v":310},{"$f":"VLOOKUP($A162,outcome_data!$A$6:$BJ$216,D$1,0)","v":432060},{"$f":"VLOOKUP($A162,outcome_data!$A$6:$BJ$216,E$1,0)","v":967},{"$f":"VLOOKUP($A162,outcome_data!$A$6:$BJ$216,F$1,0)","v":491884},{"$f":"VLOOKUP($A162,outcome_data!$A$6:$BJ$216,G$1,0)","v":3038},{"$f":"VLOOKUP($A162,outcome_data!$A$6:$BJ$216,H$1,0)","v":491884},{"$f":"VLOOKUP($A162,outcome_data!$A$6:$BJ$216,I$1,0)","v":800},{"$f":"VLOOKUP($A162,outcome_data!$A$6:$BJ$216,J$1,0)","v":491884},{"$f":"VLOOKUP($A162,outcome_data!$A$6:$BJ$216,K$1,0)","v":2470},{"$f":"VLOOKUP($A162,outcome_data!$A$6:$BJ$216,L$1,0)","v":491884},{"$f":"VLOOKUP($A162,outcome_data!$A$6:$BJ$216,M$1,0)","v":797},{"$f":"VLOOKUP($A162,outcome_data!$A$6:$BJ$216,N$1,0)","v":491884},{"$f":"VLOOKUP($A162,outcome_data!$A$6:$BJ$216,O$1,0)","v":230},{"$f":"VLOOKUP($A162,outcome_data!$A$6:$BJ$216,P$1,0)","v":491884},{"$f":"VLOOKUP($A162,outcome_data!$A$6:$BJ$216,Q$1,0)","v":18160},{"$f":"VLOOKUP($A162,outcome_data!$A$6:$BJ$216,R$1,0)","v":21147},{"$f":"VLOOKUP($A162,outcome_data!$A$6:$BJ$216,S$1,0)","v":14317},{"$f":"VLOOKUP($A162,outcome_data!$A$6:$BJ$216,T$1,0)","v":21147},{"$f":"VLOOKUP($A162,outcome_data!$A$6:$BJ$216,U$1,0)","v":57708},{"$f":"VLOOKUP($A162,outcome_data!$A$6:$BJ$216,V$1,0)","v":77857},{"$f":"VLOOKUP($A162,outcome_data!$A$6:$BJ$216,W$1,0)","v":12405},{"$f":"VLOOKUP($A162,outcome_data!$A$6:$BJ$216,X$1,0)","v":18679},{"$f":"VLOOKUP($A162,outcome_data!$A$6:$BJ$216,Y$1,0)","v":2923},{"$f":"VLOOKUP($A162,outcome_data!$A$6:$BJ$216,Z$1,0)","v":3544},{"$f":"VLOOKUP($A162,outcome_data!$A$6:$BJ$216,AA$1,0)","v":2249},{"$f":"VLOOKUP($A162,outcome_data!$A$6:$BJ$216,AB$1,0)","v":3544},{"$f":"VLOOKUP($A162,outcome_data!$A$6:$BJ$216,AC$1,0)","v":8853},{"$f":"VLOOKUP($A162,outcome_data!$A$6:$BJ$216,AD$1,0)","v":10710},{"$f":"VLOOKUP($A162,outcome_data!$A$6:$BJ$216,AE$1,0)","v":6674},{"$f":"VLOOKUP($A162,outcome_data!$A$6:$BJ$216,AF$1,0)","v":10710}]
["09H","NHS Crawley",{"$f":"VLOOKUP($A163,outcome_data!$A$6:$BJ$216,C$1,0)","v":53},{"$f":"VLOOKUP($A163,outcome_data!$A$6:$BJ$216,D$1,0)","v":118812},{"$f":"VLOOKUP($A163,outcome_data!$A$6:$BJ$216,E$1,0)","v":151},{"$f":"VLOOKUP($A163,outcome_data!$A$6:$BJ$216,F$1,0)","v":127278},{"$f":"VLOOKUP($A163,outcome_data!$A$6:$BJ$216,G$1,0)","v":505},{"$f":"VLOOKUP($A163,outcome_data!$A$6:$BJ$216,H$1,0)","v":127278},{"$f":"VLOOKUP($A163,outcome_data!$A$6:$BJ$216,I$1,0)","v":96},{"$f":"VLOOKUP($A163,outcome_data!$A$6:$BJ$216,J$1,0)","v":127278},{"$f":"VLOOKUP($A163,outcome_data!$A$6:$BJ$216,K$1,0)","v":349},{"$f":"VLOOKUP($A163,outcome_data!$A$6:$BJ$216,L$1,0)","v":127278},{"$f":"VLOOKUP($A163,outcome_data!$A$6:$BJ$216,M$1,0)","v":168},{"$f":"VLOOKUP($A163,outcome_data!$A$6:$BJ$216,N$1,0)","v":127278},{"$f":"VLOOKUP($A163,outcome_data!$A$6:$BJ$216,O$1,0)","v":48},{"$f":"VLOOKUP($A163,outcome_data!$A$6:$BJ$216,P$1,0)","v":127278},{"$f":"VLOOKUP($A163,outcome_data!$A$6:$BJ$216,Q$1,0)","v":3248},{"$f":"VLOOKUP($A163,outcome_data!$A$6:$BJ$216,R$1,0)","v":3668},{"$f":"VLOOKUP($A163,outcome_data!$A$6:$BJ$216,S$1,0)","v":2570},{"$f":"VLOOKUP($A163,outcome_data!$A$6:$BJ$216,T$1,0)","v":3668},{"$f":"VLOOKUP($A163,outcome_data!$A$6:$BJ$216,U$1,0)","v":11663},{"$f":"VLOOKUP($A163,outcome_data!$A$6:$BJ$216,V$1,0)","v":14914},{"$f":"VLOOKUP($A163,outcome_data!$A$6:$BJ$216,W$1,0)","v":3196},{"$f":"VLOOKUP($A163,outcome_data!$A$6:$BJ$216,X$1,0)","v":4497},{"$f":"VLOOKUP($A163,outcome_data!$A$6:$BJ$216,Y$1,0)","v":485},{"$f":"VLOOKUP($A163,outcome_data!$A$6:$BJ$216,Z$1,0)","v":562},{"$f":"VLOOKUP($A163,outcome_data!$A$6:$BJ$216,AA$1,0)","v":364},{"$f":"VLOOKUP($A163,outcome_data!$A$6:$BJ$216,AB$1,0)","v":562},{"$f":"VLOOKUP($A163,outcome_data!$A$6:$BJ$216,AC$1,0)","v":1540},{"$f":"VLOOKUP($A163,outcome_data!$A$6:$BJ$216,AD$1,0)","v":1805},{"$f":"VLOOKUP($A163,outcome_data!$A$6:$BJ$216,AE$1,0)","v":1181},{"$f":"VLOOKUP($A163,outcome_data!$A$6:$BJ$216,AF$1,0)","v":1805}]
["09J","NHS Dartford, Gravesham and Swanley",{"$f":"VLOOKUP($A164,outcome_data!$A$6:$BJ$216,C$1,0)","v":168},{"$f":"VLOOKUP($A164,outcome_data!$A$6:$BJ$216,D$1,0)","v":228938},{"$f":"VLOOKUP($A164,outcome_data!$A$6:$BJ$216,E$1,0)","v":275},{"$f":"VLOOKUP($A164,outcome_data!$A$6:$BJ$216,F$1,0)","v":250681},{"$f":"VLOOKUP($A164,outcome_data!$A$6:$BJ$216,G$1,0)","v":1066},{"$f":"VLOOKUP($A164,outcome_data!$A$6:$BJ$216,H$1,0)","v":250681},{"$f":"VLOOKUP($A164,outcome_data!$A$6:$BJ$216,I$1,0)","v":171},{"$f":"VLOOKUP($A164,outcome_data!$A$6:$BJ$216,J$1,0)","v":250681},{"$f":"VLOOKUP($A164,outcome_data!$A$6:$BJ$216,K$1,0)","v":686},{"$f":"VLOOKUP($A164,outcome_data!$A$6:$BJ$216,L$1,0)","v":250681},{"$f":"VLOOKUP($A164,outcome_data!$A$6:$BJ$216,M$1,0)","v":340},{"$f":"VLOOKUP($A164,outcome_data!$A$6:$BJ$216,N$1,0)","v":250681},{"$f":"VLOOKUP($A164,outcome_data!$A$6:$BJ$216,O$1,0)","v":63},{"$f":"VLOOKUP($A164,outcome_data!$A$6:$BJ$216,P$1,0)","v":250681},{"$f":"VLOOKUP($A164,outcome_data!$A$6:$BJ$216,Q$1,0)","v":6528},{"$f":"VLOOKUP($A164,outcome_data!$A$6:$BJ$216,R$1,0)","v":7510},{"$f":"VLOOKUP($A164,outcome_data!$A$6:$BJ$216,S$1,0)","v":5428},{"$f":"VLOOKUP($A164,outcome_data!$A$6:$BJ$216,T$1,0)","v":7510},{"$f":"VLOOKUP($A164,outcome_data!$A$6:$BJ$216,U$1,0)","v":28599},{"$f":"VLOOKUP($A164,outcome_data!$A$6:$BJ$216,V$1,0)","v":37005},{"$f":"VLOOKUP($A164,outcome_data!$A$6:$BJ$216,W$1,0)","v":10552},{"$f":"VLOOKUP($A164,outcome_data!$A$6:$BJ$216,X$1,0)","v":15272},{"$f":"VLOOKUP($A164,outcome_data!$A$6:$BJ$216,Y$1,0)","v":1162},{"$f":"VLOOKUP($A164,outcome_data!$A$6:$BJ$216,Z$1,0)","v":1360},{"$f":"VLOOKUP($A164,outcome_data!$A$6:$BJ$216,AA$1,0)","v":918},{"$f":"VLOOKUP($A164,outcome_data!$A$6:$BJ$216,AB$1,0)","v":1360},{"$f":"VLOOKUP($A164,outcome_data!$A$6:$BJ$216,AC$1,0)","v":3269},{"$f":"VLOOKUP($A164,outcome_data!$A$6:$BJ$216,AD$1,0)","v":3890},{"$f":"VLOOKUP($A164,outcome_data!$A$6:$BJ$216,AE$1,0)","v":2553},{"$f":"VLOOKUP($A164,outcome_data!$A$6:$BJ$216,AF$1,0)","v":3890}]
["09L","NHS East Surrey",{"$f":"VLOOKUP($A165,outcome_data!$A$6:$BJ$216,C$1,0)","v":76},{"$f":"VLOOKUP($A165,outcome_data!$A$6:$BJ$216,D$1,0)","v":158889},{"$f":"VLOOKUP($A165,outcome_data!$A$6:$BJ$216,E$1,0)","v":212},{"$f":"VLOOKUP($A165,outcome_data!$A$6:$BJ$216,F$1,0)","v":172367},{"$f":"VLOOKUP($A165,outcome_data!$A$6:$BJ$216,G$1,0)","v":729},{"$f":"VLOOKUP($A165,outcome_data!$A$6:$BJ$216,H$1,0)","v":172367},{"$f":"VLOOKUP($A165,outcome_data!$A$6:$BJ$216,I$1,0)","v":178},{"$f":"VLOOKUP($A165,outcome_data!$A$6:$BJ$216,J$1,0)","v":172367},{"$f":"VLOOKUP($A165,outcome_data!$A$6:$BJ$216,K$1,0)","v":534},{"$f":"VLOOKUP($A165,outcome_data!$A$6:$BJ$216,L$1,0)","v":172367},{"$f":"VLOOKUP($A165,outcome_data!$A$6:$BJ$216,M$1,0)","v":245},{"$f":"VLOOKUP($A165,outcome_data!$A$6:$BJ$216,N$1,0)","v":172367},{"$f":"VLOOKUP($A165,outcome_data!$A$6:$BJ$216,O$1,0)","v":76},{"$f":"VLOOKUP($A165,outcome_data!$A$6:$BJ$216,P$1,0)","v":172367},{"$f":"VLOOKUP($A165,outcome_data!$A$6:$BJ$216,Q$1,0)","v":4358},{"$f":"VLOOKUP($A165,outcome_data!$A$6:$BJ$216,R$1,0)","v":5035},{"$f":"VLOOKUP($A165,outcome_data!$A$6:$BJ$216,S$1,0)","v":3432},{"$f":"VLOOKUP($A165,outcome_data!$A$6:$BJ$216,T$1,0)","v":5035},{"$f":"VLOOKUP($A165,outcome_data!$A$6:$BJ$216,U$1,0)","v":16023},{"$f":"VLOOKUP($A165,outcome_data!$A$6:$BJ$216,V$1,0)","v":21321},{"$f":"VLOOKUP($A165,outcome_data!$A$6:$BJ$216,W$1,0)","v":3684},{"$f":"VLOOKUP($A165,outcome_data!$A$6:$BJ$216,X$1,0)","v":5308},{"$f":"VLOOKUP($A165,outcome_data!$A$6:$BJ$216,Y$1,0)","v":752},{"$f":"VLOOKUP($A165,outcome_data!$A$6:$BJ$216,Z$1,0)","v":907},{"$f":"VLOOKUP($A165,outcome_data!$A$6:$BJ$216,AA$1,0)","v":565},{"$f":"VLOOKUP($A165,outcome_data!$A$6:$BJ$216,AB$1,0)","v":907},{"$f":"VLOOKUP($A165,outcome_data!$A$6:$BJ$216,AC$1,0)","v":2313},{"$f":"VLOOKUP($A165,outcome_data!$A$6:$BJ$216,AD$1,0)","v":2769},{"$f":"VLOOKUP($A165,outcome_data!$A$6:$BJ$216,AE$1,0)","v":1673},{"$f":"VLOOKUP($A165,outcome_data!$A$6:$BJ$216,AF$1,0)","v":2769}]
["09N","NHS Guildford and Waverley",{"$f":"VLOOKUP($A166,outcome_data!$A$6:$BJ$216,C$1,0)","v":83},{"$f":"VLOOKUP($A166,outcome_data!$A$6:$BJ$216,D$1,0)","v":197585},{"$f":"VLOOKUP($A166,outcome_data!$A$6:$BJ$216,E$1,0)","v":296},{"$f":"VLOOKUP($A166,outcome_data!$A$6:$BJ$216,F$1,0)","v":216037},{"$f":"VLOOKUP($A166,outcome_data!$A$6:$BJ$216,G$1,0)","v":824},{"$f":"VLOOKUP($A166,outcome_data!$A$6:$BJ$216,H$1,0)","v":216037},{"$f":"VLOOKUP($A166,outcome_data!$A$6:$BJ$216,I$1,0)","v":137},{"$f":"VLOOKUP($A166,outcome_data!$A$6:$BJ$216,J$1,0)","v":216037},{"$f":"VLOOKUP($A166,outcome_data!$A$6:$BJ$216,K$1,0)","v":615},{"$f":"VLOOKUP($A166,outcome_data!$A$6:$BJ$216,L$1,0)","v":216037},{"$f":"VLOOKUP($A166,outcome_data!$A$6:$BJ$216,M$1,0)","v":241},{"$f":"VLOOKUP($A166,outcome_data!$A$6:$BJ$216,N$1,0)","v":216037},{"$f":"VLOOKUP($A166,outcome_data!$A$6:$BJ$216,O$1,0)","v":44},{"$f":"VLOOKUP($A166,outcome_data!$A$6:$BJ$216,P$1,0)","v":216037},{"$f":"VLOOKUP($A166,outcome_data!$A$6:$BJ$216,Q$1,0)","v":4997},{"$f":"VLOOKUP($A166,outcome_data!$A$6:$BJ$216,R$1,0)","v":5728},{"$f":"VLOOKUP($A166,outcome_data!$A$6:$BJ$216,S$1,0)","v":4157},{"$f":"VLOOKUP($A166,outcome_data!$A$6:$BJ$216,T$1,0)","v":5728},{"$f":"VLOOKUP($A166,outcome_data!$A$6:$BJ$216,U$1,0)","v":20892},{"$f":"VLOOKUP($A166,outcome_data!$A$6:$BJ$216,V$1,0)","v":27072},{"$f":"VLOOKUP($A166,outcome_data!$A$6:$BJ$216,W$1,0)","v":4811},{"$f":"VLOOKUP($A166,outcome_data!$A$6:$BJ$216,X$1,0)","v":6720},{"$f":"VLOOKUP($A166,outcome_data!$A$6:$BJ$216,Y$1,0)","v":790},{"$f":"VLOOKUP($A166,outcome_data!$A$6:$BJ$216,Z$1,0)","v":935},{"$f":"VLOOKUP($A166,outcome_data!$A$6:$BJ$216,AA$1,0)","v":617},{"$f":"VLOOKUP($A166,outcome_data!$A$6:$BJ$216,AB$1,0)","v":935},{"$f":"VLOOKUP($A166,outcome_data!$A$6:$BJ$216,AC$1,0)","v":2687},{"$f":"VLOOKUP($A166,outcome_data!$A$6:$BJ$216,AD$1,0)","v":3151},{"$f":"VLOOKUP($A166,outcome_data!$A$6:$BJ$216,AE$1,0)","v":2100},{"$f":"VLOOKUP($A166,outcome_data!$A$6:$BJ$216,AF$1,0)","v":3151}]
["09P","NHS Hastings and Rother",{"$f":"VLOOKUP($A167,outcome_data!$A$6:$BJ$216,C$1,0)","v":136},{"$f":"VLOOKUP($A167,outcome_data!$A$6:$BJ$216,D$1,0)","v":162484},{"$f":"VLOOKUP($A167,outcome_data!$A$6:$BJ$216,E$1,0)","v":416},{"$f":"VLOOKUP($A167,outcome_data!$A$6:$BJ$216,F$1,0)","v":183555},{"$f":"VLOOKUP($A167,outcome_data!$A$6:$BJ$216,G$1,0)","v":1160},{"$f":"VLOOKUP($A167,outcome_data!$A$6:$BJ$216,H$1,0)","v":183555},{"$f":"VLOOKUP($A167,outcome_data!$A$6:$BJ$216,I$1,0)","v":286},{"$f":"VLOOKUP($A167,outcome_data!$A$6:$BJ$216,J$1,0)","v":183555},{"$f":"VLOOKUP($A167,outcome_data!$A$6:$BJ$216,K$1,0)","v":901},{"$f":"VLOOKUP($A167,outcome_data!$A$6:$BJ$216,L$1,0)","v":183555},{"$f":"VLOOKUP($A167,outcome_data!$A$6:$BJ$216,M$1,0)","v":424},{"$f":"VLOOKUP($A167,outcome_data!$A$6:$BJ$216,N$1,0)","v":183555},{"$f":"VLOOKUP($A167,outcome_data!$A$6:$BJ$216,O$1,0)","v":80},{"$f":"VLOOKUP($A167,outcome_data!$A$6:$BJ$216,P$1,0)","v":183555},{"$f":"VLOOKUP($A167,outcome_data!$A$6:$BJ$216,Q$1,0)","v":6761},{"$f":"VLOOKUP($A167,outcome_data!$A$6:$BJ$216,R$1,0)","v":7586},{"$f":"VLOOKUP($A167,outcome_data!$A$6:$BJ$216,S$1,0)","v":5651},{"$f":"VLOOKUP($A167,outcome_data!$A$6:$BJ$216,T$1,0)","v":7586},{"$f":"VLOOKUP($A167,outcome_data!$A$6:$BJ$216,U$1,0)","v":24658},{"$f":"VLOOKUP($A167,outcome_data!$A$6:$BJ$216,V$1,0)","v":31585},{"$f":"VLOOKUP($A167,outcome_data!$A$6:$BJ$216,W$1,0)","v":4865},{"$f":"VLOOKUP($A167,outcome_data!$A$6:$BJ$216,X$1,0)","v":6762},{"$f":"VLOOKUP($A167,outcome_data!$A$6:$BJ$216,Y$1,0)","v":1218},{"$f":"VLOOKUP($A167,outcome_data!$A$6:$BJ$216,Z$1,0)","v":1400},{"$f":"VLOOKUP($A167,outcome_data!$A$6:$BJ$216,AA$1,0)","v":968},{"$f":"VLOOKUP($A167,outcome_data!$A$6:$BJ$216,AB$1,0)","v":1400},{"$f":"VLOOKUP($A167,outcome_data!$A$6:$BJ$216,AC$1,0)","v":3837},{"$f":"VLOOKUP($A167,outcome_data!$A$6:$BJ$216,AD$1,0)","v":4483},{"$f":"VLOOKUP($A167,outcome_data!$A$6:$BJ$216,AE$1,0)","v":3057},{"$f":"VLOOKUP($A167,outcome_data!$A$6:$BJ$216,AF$1,0)","v":4483}]
["09W","NHS Medway",{"$f":"VLOOKUP($A168,outcome_data!$A$6:$BJ$216,C$1,0)","v":147},{"$f":"VLOOKUP($A168,outcome_data!$A$6:$BJ$216,D$1,0)","v":268718},{"$f":"VLOOKUP($A168,outcome_data!$A$6:$BJ$216,E$1,0)","v":273},{"$f":"VLOOKUP($A168,outcome_data!$A$6:$BJ$216,F$1,0)","v":284552},{"$f":"VLOOKUP($A168,outcome_data!$A$6:$BJ$216,G$1,0)","v":1087},{"$f":"VLOOKUP($A168,outcome_data!$A$6:$BJ$216,H$1,0)","v":284552},{"$f":"VLOOKUP($A168,outcome_data!$A$6:$BJ$216,I$1,0)","v":237},{"$f":"VLOOKUP($A168,outcome_data!$A$6:$BJ$216,J$1,0)","v":284552},{"$f":"VLOOKUP($A168,outcome_data!$A$6:$BJ$216,K$1,0)","v":677},{"$f":"VLOOKUP($A168,outcome_data!$A$6:$BJ$216,L$1,0)","v":284552},{"$f":"VLOOKUP($A168,outcome_data!$A$6:$BJ$216,M$1,0)","v":242},{"$f":"VLOOKUP($A168,outcome_data!$A$6:$BJ$216,N$1,0)","v":284552},{"$f":"VLOOKUP($A168,outcome_data!$A$6:$BJ$216,O$1,0)","v":78},{"$f":"VLOOKUP($A168,outcome_data!$A$6:$BJ$216,P$1,0)","v":284552},{"$f":"VLOOKUP($A168,outcome_data!$A$6:$BJ$216,Q$1,0)","v":7078},{"$f":"VLOOKUP($A168,outcome_data!$A$6:$BJ$216,R$1,0)","v":7993},{"$f":"VLOOKUP($A168,outcome_data!$A$6:$BJ$216,S$1,0)","v":6138},{"$f":"VLOOKUP($A168,outcome_data!$A$6:$BJ$216,T$1,0)","v":7993},{"$f":"VLOOKUP($A168,outcome_data!$A$6:$BJ$216,U$1,0)","v":32336},{"$f":"VLOOKUP($A168,outcome_data!$A$6:$BJ$216,V$1,0)","v":40826},{"$f":"VLOOKUP($A168,outcome_data!$A$6:$BJ$216,W$1,0)","v":6475},{"$f":"VLOOKUP($A168,outcome_data!$A$6:$BJ$216,X$1,0)","v":8692},{"$f":"VLOOKUP($A168,outcome_data!$A$6:$BJ$216,Y$1,0)","v":1229},{"$f":"VLOOKUP($A168,outcome_data!$A$6:$BJ$216,Z$1,0)","v":1421},{"$f":"VLOOKUP($A168,outcome_data!$A$6:$BJ$216,AA$1,0)","v":1008},{"$f":"VLOOKUP($A168,outcome_data!$A$6:$BJ$216,AB$1,0)","v":1421},{"$f":"VLOOKUP($A168,outcome_data!$A$6:$BJ$216,AC$1,0)","v":3195},{"$f":"VLOOKUP($A168,outcome_data!$A$6:$BJ$216,AD$1,0)","v":3725},{"$f":"VLOOKUP($A168,outcome_data!$A$6:$BJ$216,AE$1,0)","v":2736},{"$f":"VLOOKUP($A168,outcome_data!$A$6:$BJ$216,AF$1,0)","v":3725}]
["09X","NHS Horsham and Mid Sussex",{"$f":"VLOOKUP($A169,outcome_data!$A$6:$BJ$216,C$1,0)","v":101},{"$f":"VLOOKUP($A169,outcome_data!$A$6:$BJ$216,D$1,0)","v":206883},{"$f":"VLOOKUP($A169,outcome_data!$A$6:$BJ$216,E$1,0)","v":347},{"$f":"VLOOKUP($A169,outcome_data!$A$6:$BJ$216,F$1,0)","v":227353},{"$f":"VLOOKUP($A169,outcome_data!$A$6:$BJ$216,G$1,0)","v":1094},{"$f":"VLOOKUP($A169,outcome_data!$A$6:$BJ$216,H$1,0)","v":227353},{"$f":"VLOOKUP($A169,outcome_data!$A$6:$BJ$216,I$1,0)","v":209},{"$f":"VLOOKUP($A169,outcome_data!$A$6:$BJ$216,J$1,0)","v":227353},{"$f":"VLOOKUP($A169,outcome_data!$A$6:$BJ$216,K$1,0)","v":858},{"$f":"VLOOKUP($A169,outcome_data!$A$6:$BJ$216,L$1,0)","v":227353},{"$f":"VLOOKUP($A169,outcome_data!$A$6:$BJ$216,M$1,0)","v":325},{"$f":"VLOOKUP($A169,outcome_data!$A$6:$BJ$216,N$1,0)","v":227353},{"$f":"VLOOKUP($A169,outcome_data!$A$6:$BJ$216,O$1,0)","v":89},{"$f":"VLOOKUP($A169,outcome_data!$A$6:$BJ$216,P$1,0)","v":227353},{"$f":"VLOOKUP($A169,outcome_data!$A$6:$BJ$216,Q$1,0)","v":5917},{"$f":"VLOOKUP($A169,outcome_data!$A$6:$BJ$216,R$1,0)","v":6826},{"$f":"VLOOKUP($A169,outcome_data!$A$6:$BJ$216,S$1,0)","v":4664},{"$f":"VLOOKUP($A169,outcome_data!$A$6:$BJ$216,T$1,0)","v":6826},{"$f":"VLOOKUP($A169,outcome_data!$A$6:$BJ$216,U$1,0)","v":23998},{"$f":"VLOOKUP($A169,outcome_data!$A$6:$BJ$216,V$1,0)","v":31330},{"$f":"VLOOKUP($A169,outcome_data!$A$6:$BJ$216,W$1,0)","v":5146},{"$f":"VLOOKUP($A169,outcome_data!$A$6:$BJ$216,X$1,0)","v":7514},{"$f":"VLOOKUP($A169,outcome_data!$A$6:$BJ$216,Y$1,0)","v":922},{"$f":"VLOOKUP($A169,outcome_data!$A$6:$BJ$216,Z$1,0)","v":1073},{"$f":"VLOOKUP($A169,outcome_data!$A$6:$BJ$216,AA$1,0)","v":661},{"$f":"VLOOKUP($A169,outcome_data!$A$6:$BJ$216,AB$1,0)","v":1073},{"$f":"VLOOKUP($A169,outcome_data!$A$6:$BJ$216,AC$1,0)","v":3377},{"$f":"VLOOKUP($A169,outcome_data!$A$6:$BJ$216,AD$1,0)","v":4023},{"$f":"VLOOKUP($A169,outcome_data!$A$6:$BJ$216,AE$1,0)","v":2436},{"$f":"VLOOKUP($A169,outcome_data!$A$6:$BJ$216,AF$1,0)","v":4023}]
["09Y","NHS North West Surrey",{"$f":"VLOOKUP($A170,outcome_data!$A$6:$BJ$216,C$1,0)","v":148},{"$f":"VLOOKUP($A170,outcome_data!$A$6:$BJ$216,D$1,0)","v":325474},{"$f":"VLOOKUP($A170,outcome_data!$A$6:$BJ$216,E$1,0)","v":536},{"$f":"VLOOKUP($A170,outcome_data!$A$6:$BJ$216,F$1,0)","v":353222},{"$f":"VLOOKUP($A170,outcome_data!$A$6:$BJ$216,G$1,0)","v":1558},{"$f":"VLOOKUP($A170,outcome_data!$A$6:$BJ$216,H$1,0)","v":353222},{"$f":"VLOOKUP($A170,outcome_data!$A$6:$BJ$216,I$1,0)","v":368},{"$f":"VLOOKUP($A170,outcome_data!$A$6:$BJ$216,J$1,0)","v":353222},{"$f":"VLOOKUP($A170,outcome_data!$A$6:$BJ$216,K$1,0)","v":1218},{"$f":"VLOOKUP($A170,outcome_data!$A$6:$BJ$216,L$1,0)","v":353222},{"$f":"VLOOKUP($A170,outcome_data!$A$6:$BJ$216,M$1,0)","v":497},{"$f":"VLOOKUP($A170,outcome_data!$A$6:$BJ$216,N$1,0)","v":353222},{"$f":"VLOOKUP($A170,outcome_data!$A$6:$BJ$216,O$1,0)","v":138},{"$f":"VLOOKUP($A170,outcome_data!$A$6:$BJ$216,P$1,0)","v":353222},{"$f":"VLOOKUP($A170,outcome_data!$A$6:$BJ$216,Q$1,0)","v":8087},{"$f":"VLOOKUP($A170,outcome_data!$A$6:$BJ$216,R$1,0)","v":9302},{"$f":"VLOOKUP($A170,outcome_data!$A$6:$BJ$216,S$1,0)","v":6729},{"$f":"VLOOKUP($A170,outcome_data!$A$6:$BJ$216,T$1,0)","v":9302},{"$f":"VLOOKUP($A170,outcome_data!$A$6:$BJ$216,U$1,0)","v":34420},{"$f":"VLOOKUP($A170,outcome_data!$A$6:$BJ$216,V$1,0)","v":44859},{"$f":"VLOOKUP($A170,outcome_data!$A$6:$BJ$216,W$1,0)","v":8525},{"$f":"VLOOKUP($A170,outcome_data!$A$6:$BJ$216,X$1,0)","v":11716},{"$f":"VLOOKUP($A170,outcome_data!$A$6:$BJ$216,Y$1,0)","v":1416},{"$f":"VLOOKUP($A170,outcome_data!$A$6:$BJ$216,Z$1,0)","v":1675},{"$f":"VLOOKUP($A170,outcome_data!$A$6:$BJ$216,AA$1,0)","v":1132},{"$f":"VLOOKUP($A170,outcome_data!$A$6:$BJ$216,AB$1,0)","v":1675},{"$f":"VLOOKUP($A170,outcome_data!$A$6:$BJ$216,AC$1,0)","v":4549},{"$f":"VLOOKUP($A170,outcome_data!$A$6:$BJ$216,AD$1,0)","v":5333},{"$f":"VLOOKUP($A170,outcome_data!$A$6:$BJ$216,AE$1,0)","v":3584},{"$f":"VLOOKUP($A170,outcome_data!$A$6:$BJ$216,AF$1,0)","v":5333}]
["10A","NHS South Kent Coast",{"$f":"VLOOKUP($A171,outcome_data!$A$6:$BJ$216,C$1,0)","v":144},{"$f":"VLOOKUP($A171,outcome_data!$A$6:$BJ$216,D$1,0)","v":180510},{"$f":"VLOOKUP($A171,outcome_data!$A$6:$BJ$216,E$1,0)","v":414},{"$f":"VLOOKUP($A171,outcome_data!$A$6:$BJ$216,F$1,0)","v":201092},{"$f":"VLOOKUP($A171,outcome_data!$A$6:$BJ$216,G$1,0)","v":1157},{"$f":"VLOOKUP($A171,outcome_data!$A$6:$BJ$216,H$1,0)","v":201092},{"$f":"VLOOKUP($A171,outcome_data!$A$6:$BJ$216,I$1,0)","v":231},{"$f":"VLOOKUP($A171,outcome_data!$A$6:$BJ$216,J$1,0)","v":201092},{"$f":"VLOOKUP($A171,outcome_data!$A$6:$BJ$216,K$1,0)","v":767},{"$f":"VLOOKUP($A171,outcome_data!$A$6:$BJ$216,L$1,0)","v":201092},{"$f":"VLOOKUP($A171,outcome_data!$A$6:$BJ$216,M$1,0)","v":240},{"$f":"VLOOKUP($A171,outcome_data!$A$6:$BJ$216,N$1,0)","v":201092},{"$f":"VLOOKUP($A171,outcome_data!$A$6:$BJ$216,O$1,0)","v":114},{"$f":"VLOOKUP($A171,outcome_data!$A$6:$BJ$216,P$1,0)","v":201092},{"$f":"VLOOKUP($A171,outcome_data!$A$6:$BJ$216,Q$1,0)","v":6633},{"$f":"VLOOKUP($A171,outcome_data!$A$6:$BJ$216,R$1,0)","v":7638},{"$f":"VLOOKUP($A171,outcome_data!$A$6:$BJ$216,S$1,0)","v":5648},{"$f":"VLOOKUP($A171,outcome_data!$A$6:$BJ$216,T$1,0)","v":7638},{"$f":"VLOOKUP($A171,outcome_data!$A$6:$BJ$216,U$1,0)","v":24825},{"$f":"VLOOKUP($A171,outcome_data!$A$6:$BJ$216,V$1,0)","v":31968},{"$f":"VLOOKUP($A171,outcome_data!$A$6:$BJ$216,W$1,0)","v":5879},{"$f":"VLOOKUP($A171,outcome_data!$A$6:$BJ$216,X$1,0)","v":8330},{"$f":"VLOOKUP($A171,outcome_data!$A$6:$BJ$216,Y$1,0)","v":1143},{"$f":"VLOOKUP($A171,outcome_data!$A$6:$BJ$216,Z$1,0)","v":1349},{"$f":"VLOOKUP($A171,outcome_data!$A$6:$BJ$216,AA$1,0)","v":923},{"$f":"VLOOKUP($A171,outcome_data!$A$6:$BJ$216,AB$1,0)","v":1349},{"$f":"VLOOKUP($A171,outcome_data!$A$6:$BJ$216,AC$1,0)","v":3519},{"$f":"VLOOKUP($A171,outcome_data!$A$6:$BJ$216,AD$1,0)","v":4124},{"$f":"VLOOKUP($A171,outcome_data!$A$6:$BJ$216,AE$1,0)","v":2904},{"$f":"VLOOKUP($A171,outcome_data!$A$6:$BJ$216,AF$1,0)","v":4124}]
["10C","NHS Surrey Heath",{"$f":"VLOOKUP($A172,outcome_data!$A$6:$BJ$216,C$1,0)","v":51},{"$f":"VLOOKUP($A172,outcome_data!$A$6:$BJ$216,D$1,0)","v":84420},{"$f":"VLOOKUP($A172,outcome_data!$A$6:$BJ$216,E$1,0)","v":129},{"$f":"VLOOKUP($A172,outcome_data!$A$6:$BJ$216,F$1,0)","v":91427},{"$f":"VLOOKUP($A172,outcome_data!$A$6:$BJ$216,G$1,0)","v":580},{"$f":"VLOOKUP($A172,outcome_data!$A$6:$BJ$216,H$1,0)","v":91427},{"$f":"VLOOKUP($A172,outcome_data!$A$6:$BJ$216,I$1,0)","v":80},{"$f":"VLOOKUP($A172,outcome_data!$A$6:$BJ$216,J$1,0)","v":91427},{"$f":"VLOOKUP($A172,outcome_data!$A$6:$BJ$216,K$1,0)","v":443},{"$f":"VLOOKUP($A172,outcome_data!$A$6:$BJ$216,L$1,0)","v":91427},{"$f":"VLOOKUP($A172,outcome_data!$A$6:$BJ$216,M$1,0)","v":168},{"$f":"VLOOKUP($A172,outcome_data!$A$6:$BJ$216,N$1,0)","v":91427},{"$f":"VLOOKUP($A172,outcome_data!$A$6:$BJ$216,O$1,0)","v":47},{"$f":"VLOOKUP($A172,outcome_data!$A$6:$BJ$216,P$1,0)","v":91427},{"$f":"VLOOKUP($A172,outcome_data!$A$6:$BJ$216,Q$1,0)","v":2302},{"$f":"VLOOKUP($A172,outcome_data!$A$6:$BJ$216,R$1,0)","v":2633},{"$f":"VLOOKUP($A172,outcome_data!$A$6:$BJ$216,S$1,0)","v":2057},{"$f":"VLOOKUP($A172,outcome_data!$A$6:$BJ$216,T$1,0)","v":2587},{"$f":"VLOOKUP($A172,outcome_data!$A$6:$BJ$216,U$1,0)","v":9162},{"$f":"VLOOKUP($A172,outcome_data!$A$6:$BJ$216,V$1,0)","v":11948},{"$f":"VLOOKUP($A172,outcome_data!$A$6:$BJ$216,W$1,0)","v":2219},{"$f":"VLOOKUP($A172,outcome_data!$A$6:$BJ$216,X$1,0)","v":3102},{"$f":"VLOOKUP($A172,outcome_data!$A$6:$BJ$216,Y$1,0)","v":374},{"$f":"VLOOKUP($A172,outcome_data!$A$6:$BJ$216,Z$1,0)","v":451},{"$f":"VLOOKUP($A172,outcome_data!$A$6:$BJ$216,AA$1,0)","v":325},{"$f":"VLOOKUP($A172,outcome_data!$A$6:$BJ$216,AB$1,0)","v":439},{"$f":"VLOOKUP($A172,outcome_data!$A$6:$BJ$216,AC$1,0)","v":1181},{"$f":"VLOOKUP($A172,outcome_data!$A$6:$BJ$216,AD$1,0)","v":1399},{"$f":"VLOOKUP($A172,outcome_data!$A$6:$BJ$216,AE$1,0)","v":1009},{"$f":"VLOOKUP($A172,outcome_data!$A$6:$BJ$216,AF$1,0)","v":1363}]
["10D","NHS Swale",{"$f":"VLOOKUP($A173,outcome_data!$A$6:$BJ$216,C$1,0)","v":75},{"$f":"VLOOKUP($A173,outcome_data!$A$6:$BJ$216,D$1,0)","v":98849},{"$f":"VLOOKUP($A173,outcome_data!$A$6:$BJ$216,E$1,0)","v":169},{"$f":"VLOOKUP($A173,outcome_data!$A$6:$BJ$216,F$1,0)","v":107556},{"$f":"VLOOKUP($A173,outcome_data!$A$6:$BJ$216,G$1,0)","v":445},{"$f":"VLOOKUP($A173,outcome_data!$A$6:$BJ$216,H$1,0)","v":107556},{"$f":"VLOOKUP($A173,outcome_data!$A$6:$BJ$216,I$1,0)","v":106},{"$f":"VLOOKUP($A173,outcome_data!$A$6:$BJ$216,J$1,0)","v":107556},{"$f":"VLOOKUP($A173,outcome_data!$A$6:$BJ$216,K$1,0)","v":262},{"$f":"VLOOKUP($A173,outcome_data!$A$6:$BJ$216,L$1,0)","v":107556},{"$f":"VLOOKUP($A173,outcome_data!$A$6:$BJ$216,M$1,0)","v":93},{"$f":"VLOOKUP($A173,outcome_data!$A$6:$BJ$216,N$1,0)","v":107556},{"$f":"VLOOKUP($A173,outcome_data!$A$6:$BJ$216,O$1,0)","v":35},{"$f":"VLOOKUP($A173,outcome_data!$A$6:$BJ$216,P$1,0)","v":107556},{"$f":"VLOOKUP($A173,outcome_data!$A$6:$BJ$216,Q$1,0)","v":2957},{"$f":"VLOOKUP($A173,outcome_data!$A$6:$BJ$216,R$1,0)","v":3284},{"$f":"VLOOKUP($A173,outcome_data!$A$6:$BJ$216,S$1,0)","v":2464},{"$f":"VLOOKUP($A173,outcome_data!$A$6:$BJ$216,T$1,0)","v":3284},{"$f":"VLOOKUP($A173,outcome_data!$A$6:$BJ$216,U$1,0)","v":12338},{"$f":"VLOOKUP($A173,outcome_data!$A$6:$BJ$216,V$1,0)","v":15718},{"$f":"VLOOKUP($A173,outcome_data!$A$6:$BJ$216,W$1,0)","v":2744},{"$f":"VLOOKUP($A173,outcome_data!$A$6:$BJ$216,X$1,0)","v":3631},{"$f":"VLOOKUP($A173,outcome_data!$A$6:$BJ$216,Y$1,0)","v":543},{"$f":"VLOOKUP($A173,outcome_data!$A$6:$BJ$216,Z$1,0)","v":626},{"$f":"VLOOKUP($A173,outcome_data!$A$6:$BJ$216,AA$1,0)","v":432},{"$f":"VLOOKUP($A173,outcome_data!$A$6:$BJ$216,AB$1,0)","v":626},{"$f":"VLOOKUP($A173,outcome_data!$A$6:$BJ$216,AC$1,0)","v":1337},{"$f":"VLOOKUP($A173,outcome_data!$A$6:$BJ$216,AD$1,0)","v":1527},{"$f":"VLOOKUP($A173,outcome_data!$A$6:$BJ$216,AE$1,0)","v":1091},{"$f":"VLOOKUP($A173,outcome_data!$A$6:$BJ$216,AF$1,0)","v":1527}]
["10E","NHS Thanet",{"$f":"VLOOKUP($A174,outcome_data!$A$6:$BJ$216,C$1,0)","v":115},{"$f":"VLOOKUP($A174,outcome_data!$A$6:$BJ$216,D$1,0)","v":126347},{"$f":"VLOOKUP($A174,outcome_data!$A$6:$BJ$216,E$1,0)","v":243},{"$f":"VLOOKUP($A174,outcome_data!$A$6:$BJ$216,F$1,0)","v":141762},{"$f":"VLOOKUP($A174,outcome_data!$A$6:$BJ$216,G$1,0)","v":897},{"$f":"VLOOKUP($A174,outcome_data!$A$6:$BJ$216,H$1,0)","v":141762},{"$f":"VLOOKUP($A174,outcome_data!$A$6:$BJ$216,I$1,0)","v":205},{"$f":"VLOOKUP($A174,outcome_data!$A$6:$BJ$216,J$1,0)","v":141762},{"$f":"VLOOKUP($A174,outcome_data!$A$6:$BJ$216,K$1,0)","v":580},{"$f":"VLOOKUP($A174,outcome_data!$A$6:$BJ$216,L$1,0)","v":141762},{"$f":"VLOOKUP($A174,outcome_data!$A$6:$BJ$216,M$1,0)","v":179},{"$f":"VLOOKUP($A174,outcome_data!$A$6:$BJ$216,N$1,0)","v":141762},{"$f":"VLOOKUP($A174,outcome_data!$A$6:$BJ$216,O$1,0)","v":80},{"$f":"VLOOKUP($A174,outcome_data!$A$6:$BJ$216,P$1,0)","v":141762},{"$f":"VLOOKUP($A174,outcome_data!$A$6:$BJ$216,Q$1,0)","v":4556},{"$f":"VLOOKUP($A174,outcome_data!$A$6:$BJ$216,R$1,0)","v":5349},{"$f":"VLOOKUP($A174,outcome_data!$A$6:$BJ$216,S$1,0)","v":3864},{"$f":"VLOOKUP($A174,outcome_data!$A$6:$BJ$216,T$1,0)","v":5349},{"$f":"VLOOKUP($A174,outcome_data!$A$6:$BJ$216,U$1,0)","v":16855},{"$f":"VLOOKUP($A174,outcome_data!$A$6:$BJ$216,V$1,0)","v":22657},{"$f":"VLOOKUP($A174,outcome_data!$A$6:$BJ$216,W$1,0)","v":4211},{"$f":"VLOOKUP($A174,outcome_data!$A$6:$BJ$216,X$1,0)","v":6110},{"$f":"VLOOKUP($A174,outcome_data!$A$6:$BJ$216,Y$1,0)","v":957},{"$f":"VLOOKUP($A174,outcome_data!$A$6:$BJ$216,Z$1,0)","v":1143},{"$f":"VLOOKUP($A174,outcome_data!$A$6:$BJ$216,AA$1,0)","v":800},{"$f":"VLOOKUP($A174,outcome_data!$A$6:$BJ$216,AB$1,0)","v":1143},{"$f":"VLOOKUP($A174,outcome_data!$A$6:$BJ$216,AC$1,0)","v":2288},{"$f":"VLOOKUP($A174,outcome_data!$A$6:$BJ$216,AD$1,0)","v":2790},{"$f":"VLOOKUP($A174,outcome_data!$A$6:$BJ$216,AE$1,0)","v":1927},{"$f":"VLOOKUP($A174,outcome_data!$A$6:$BJ$216,AF$1,0)","v":2790}]
["10G","NHS Bracknell and Ascot",{"$f":"VLOOKUP($A175,outcome_data!$A$6:$BJ$216,C$1,0)","v":56},{"$f":"VLOOKUP($A175,outcome_data!$A$6:$BJ$216,D$1,0)","v":128357},{"$f":"VLOOKUP($A175,outcome_data!$A$6:$BJ$216,E$1,0)","v":184},{"$f":"VLOOKUP($A175,outcome_data!$A$6:$BJ$216,F$1,0)","v":136865},{"$f":"VLOOKUP($A175,outcome_data!$A$6:$BJ$216,G$1,0)","v":540},{"$f":"VLOOKUP($A175,outcome_data!$A$6:$BJ$216,H$1,0)","v":136865},{"$f":"VLOOKUP($A175,outcome_data!$A$6:$BJ$216,I$1,0)","v":117},{"$f":"VLOOKUP($A175,outcome_data!$A$6:$BJ$216,J$1,0)","v":136865},{"$f":"VLOOKUP($A175,outcome_data!$A$6:$BJ$216,K$1,0)","v":399},{"$f":"VLOOKUP($A175,outcome_data!$A$6:$BJ$216,L$1,0)","v":136865},{"$f":"VLOOKUP($A175,outcome_data!$A$6:$BJ$216,M$1,0)","v":159},{"$f":"VLOOKUP($A175,outcome_data!$A$6:$BJ$216,N$1,0)","v":136865},{"$f":"VLOOKUP($A175,outcome_data!$A$6:$BJ$216,O$1,0)","v":43},{"$f":"VLOOKUP($A175,outcome_data!$A$6:$BJ$216,P$1,0)","v":136865},{"$f":"VLOOKUP($A175,outcome_data!$A$6:$BJ$216,Q$1,0)","v":2977},{"$f":"VLOOKUP($A175,outcome_data!$A$6:$BJ$216,R$1,0)","v":3411},{"$f":"VLOOKUP($A175,outcome_data!$A$6:$BJ$216,S$1,0)","v":2411},{"$f":"VLOOKUP($A175,outcome_data!$A$6:$BJ$216,T$1,0)","v":3411},{"$f":"VLOOKUP($A175,outcome_data!$A$6:$BJ$216,U$1,0)","v":11965},{"$f":"VLOOKUP($A175,outcome_data!$A$6:$BJ$216,V$1,0)","v":15450},{"$f":"VLOOKUP($A175,outcome_data!$A$6:$BJ$216,W$1,0)","v":2168},{"$f":"VLOOKUP($A175,outcome_data!$A$6:$BJ$216,X$1,0)","v":3029},{"$f":"VLOOKUP($A175,outcome_data!$A$6:$BJ$216,Y$1,0)","v":523},{"$f":"VLOOKUP($A175,outcome_data!$A$6:$BJ$216,Z$1,0)","v":603},{"$f":"VLOOKUP($A175,outcome_data!$A$6:$BJ$216,AA$1,0)","v":421},{"$f":"VLOOKUP($A175,outcome_data!$A$6:$BJ$216,AB$1,0)","v":603},{"$f":"VLOOKUP($A175,outcome_data!$A$6:$BJ$216,AC$1,0)","v":1489},{"$f":"VLOOKUP($A175,outcome_data!$A$6:$BJ$216,AD$1,0)","v":1782},{"$f":"VLOOKUP($A175,outcome_data!$A$6:$BJ$216,AE$1,0)","v":1182},{"$f":"VLOOKUP($A175,outcome_data!$A$6:$BJ$216,AF$1,0)","v":1782}]
["10H","NHS Chiltern",{"$f":"VLOOKUP($A176,outcome_data!$A$6:$BJ$216,C$1,0)","v":146},{"$f":"VLOOKUP($A176,outcome_data!$A$6:$BJ$216,D$1,0)","v":301514},{"$f":"VLOOKUP($A176,outcome_data!$A$6:$BJ$216,E$1,0)","v":461},{"$f":"VLOOKUP($A176,outcome_data!$A$6:$BJ$216,F$1,0)","v":327820},{"$f":"VLOOKUP($A176,outcome_data!$A$6:$BJ$216,G$1,0)","v":1244},{"$f":"VLOOKUP($A176,outcome_data!$A$6:$BJ$216,H$1,0)","v":327820},{"$f":"VLOOKUP($A176,outcome_data!$A$6:$BJ$216,I$1,0)","v":279},{"$f":"VLOOKUP($A176,outcome_data!$A$6:$BJ$216,J$1,0)","v":327820},{"$f":"VLOOKUP($A176,outcome_data!$A$6:$BJ$216,K$1,0)","v":921},{"$f":"VLOOKUP($A176,outcome_data!$A$6:$BJ$216,L$1,0)","v":327820},{"$f":"VLOOKUP($A176,outcome_data!$A$6:$BJ$216,M$1,0)","v":430},{"$f":"VLOOKUP($A176,outcome_data!$A$6:$BJ$216,N$1,0)","v":327820},{"$f":"VLOOKUP($A176,outcome_data!$A$6:$BJ$216,O$1,0)","v":107},{"$f":"VLOOKUP($A176,outcome_data!$A$6:$BJ$216,P$1,0)","v":327820},{"$f":"VLOOKUP($A176,outcome_data!$A$6:$BJ$216,Q$1,0)","v":8330},{"$f":"VLOOKUP($A176,outcome_data!$A$6:$BJ$216,R$1,0)","v":9464},{"$f":"VLOOKUP($A176,outcome_data!$A$6:$BJ$216,S$1,0)","v":6916},{"$f":"VLOOKUP($A176,outcome_data!$A$6:$BJ$216,T$1,0)","v":9464},{"$f":"VLOOKUP($A176,outcome_data!$A$6:$BJ$216,U$1,0)","v":33265},{"$f":"VLOOKUP($A176,outcome_data!$A$6:$BJ$216,V$1,0)","v":42758},{"$f":"VLOOKUP($A176,outcome_data!$A$6:$BJ$216,W$1,0)","v":6306},{"$f":"VLOOKUP($A176,outcome_data!$A$6:$BJ$216,X$1,0)","v":8884},{"$f":"VLOOKUP($A176,outcome_data!$A$6:$BJ$216,Y$1,0)","v":1536},{"$f":"VLOOKUP($A176,outcome_data!$A$6:$BJ$216,Z$1,0)","v":1757},{"$f":"VLOOKUP($A176,outcome_data!$A$6:$BJ$216,AA$1,0)","v":1173},{"$f":"VLOOKUP($A176,outcome_data!$A$6:$BJ$216,AB$1,0)","v":1757},{"$f":"VLOOKUP($A176,outcome_data!$A$6:$BJ$216,AC$1,0)","v":4584},{"$f":"VLOOKUP($A176,outcome_data!$A$6:$BJ$216,AD$1,0)","v":5312},{"$f":"VLOOKUP($A176,outcome_data!$A$6:$BJ$216,AE$1,0)","v":3478},{"$f":"VLOOKUP($A176,outcome_data!$A$6:$BJ$216,AF$1,0)","v":5312}]
["10J","NHS North Hampshire",{"$f":"VLOOKUP($A177,outcome_data!$A$6:$BJ$216,C$1,0)","v":120},{"$f":"VLOOKUP($A177,outcome_data!$A$6:$BJ$216,D$1,0)","v":202739},{"$f":"VLOOKUP($A177,outcome_data!$A$6:$BJ$216,E$1,0)","v":328},{"$f":"VLOOKUP($A177,outcome_data!$A$6:$BJ$216,F$1,0)","v":217387},{"$f":"VLOOKUP($A177,outcome_data!$A$6:$BJ$216,G$1,0)","v":735},{"$f":"VLOOKUP($A177,outcome_data!$A$6:$BJ$216,H$1,0)","v":217387},{"$f":"VLOOKUP($A177,outcome_data!$A$6:$BJ$216,I$1,0)","v":166},{"$f":"VLOOKUP($A177,outcome_data!$A$6:$BJ$216,J$1,0)","v":217387},{"$f":"VLOOKUP($A177,outcome_data!$A$6:$BJ$216,K$1,0)","v":597},{"$f":"VLOOKUP($A177,outcome_data!$A$6:$BJ$216,L$1,0)","v":217387},{"$f":"VLOOKUP($A177,outcome_data!$A$6:$BJ$216,M$1,0)","v":209},{"$f":"VLOOKUP($A177,outcome_data!$A$6:$BJ$216,N$1,0)","v":217387},{"$f":"VLOOKUP($A177,outcome_data!$A$6:$BJ$216,O$1,0)","v":44},{"$f":"VLOOKUP($A177,outcome_data!$A$6:$BJ$216,P$1,0)","v":217387},{"$f":"VLOOKUP($A177,outcome_data!$A$6:$BJ$216,Q$1,0)","v":4990},{"$f":"VLOOKUP($A177,outcome_data!$A$6:$BJ$216,R$1,0)","v":5689},{"$f":"VLOOKUP($A177,outcome_data!$A$6:$BJ$216,S$1,0)","v":4175},{"$f":"VLOOKUP($A177,outcome_data!$A$6:$BJ$216,T$1,0)","v":5689},{"$f":"VLOOKUP($A177,outcome_data!$A$6:$BJ$216,U$1,0)","v":20598},{"$f":"VLOOKUP($A177,outcome_data!$A$6:$BJ$216,V$1,0)","v":26267},{"$f":"VLOOKUP($A177,outcome_data!$A$6:$BJ$216,W$1,0)","v":4956},{"$f":"VLOOKUP($A177,outcome_data!$A$6:$BJ$216,X$1,0)","v":7213},{"$f":"VLOOKUP($A177,outcome_data!$A$6:$BJ$216,Y$1,0)","v":1000},{"$f":"VLOOKUP($A177,outcome_data!$A$6:$BJ$216,Z$1,0)","v":1174},{"$f":"VLOOKUP($A177,outcome_data!$A$6:$BJ$216,AA$1,0)","v":805},{"$f":"VLOOKUP($A177,outcome_data!$A$6:$BJ$216,AB$1,0)","v":1174},{"$f":"VLOOKUP($A177,outcome_data!$A$6:$BJ$216,AC$1,0)","v":2522},{"$f":"VLOOKUP($A177,outcome_data!$A$6:$BJ$216,AD$1,0)","v":2958},{"$f":"VLOOKUP($A177,outcome_data!$A$6:$BJ$216,AE$1,0)","v":1959},{"$f":"VLOOKUP($A177,outcome_data!$A$6:$BJ$216,AF$1,0)","v":2958}]
["10K","NHS Fareham and Gosport",{"$f":"VLOOKUP($A178,outcome_data!$A$6:$BJ$216,C$1,0)","v":123},{"$f":"VLOOKUP($A178,outcome_data!$A$6:$BJ$216,D$1,0)","v":181865},{"$f":"VLOOKUP($A178,outcome_data!$A$6:$BJ$216,E$1,0)","v":436},{"$f":"VLOOKUP($A178,outcome_data!$A$6:$BJ$216,F$1,0)","v":200959},{"$f":"VLOOKUP($A178,outcome_data!$A$6:$BJ$216,G$1,0)","v":733},{"$f":"VLOOKUP($A178,outcome_data!$A$6:$BJ$216,H$1,0)","v":200959},{"$f":"VLOOKUP($A178,outcome_data!$A$6:$BJ$216,I$1,0)","v":183},{"$f":"VLOOKUP($A178,outcome_data!$A$6:$BJ$216,J$1,0)","v":200959},{"$f":"VLOOKUP($A178,outcome_data!$A$6:$BJ$216,K$1,0)","v":529},{"$f":"VLOOKUP($A178,outcome_data!$A$6:$BJ$216,L$1,0)","v":200959},{"$f":"VLOOKUP($A178,outcome_data!$A$6:$BJ$216,M$1,0)","v":276},{"$f":"VLOOKUP($A178,outcome_data!$A$6:$BJ$216,N$1,0)","v":200959},{"$f":"VLOOKUP($A178,outcome_data!$A$6:$BJ$216,O$1,0)","v":63},{"$f":"VLOOKUP($A178,outcome_data!$A$6:$BJ$216,P$1,0)","v":200959},{"$f":"VLOOKUP($A178,outcome_data!$A$6:$BJ$216,Q$1,0)","v":6375},{"$f":"VLOOKUP($A178,outcome_data!$A$6:$BJ$216,R$1,0)","v":7186},{"$f":"VLOOKUP($A178,outcome_data!$A$6:$BJ$216,S$1,0)","v":5278},{"$f":"VLOOKUP($A178,outcome_data!$A$6:$BJ$216,T$1,0)","v":7186},{"$f":"VLOOKUP($A178,outcome_data!$A$6:$BJ$216,U$1,0)","v":23701},{"$f":"VLOOKUP($A178,outcome_data!$A$6:$BJ$216,V$1,0)","v":30282},{"$f":"VLOOKUP($A178,outcome_data!$A$6:$BJ$216,W$1,0)","v":4426},{"$f":"VLOOKUP($A178,outcome_data!$A$6:$BJ$216,X$1,0)","v":6287},{"$f":"VLOOKUP($A178,outcome_data!$A$6:$BJ$216,Y$1,0)","v":1113},{"$f":"VLOOKUP($A178,outcome_data!$A$6:$BJ$216,Z$1,0)","v":1325},{"$f":"VLOOKUP($A178,outcome_data!$A$6:$BJ$216,AA$1,0)","v":892},{"$f":"VLOOKUP($A178,outcome_data!$A$6:$BJ$216,AB$1,0)","v":1325},{"$f":"VLOOKUP($A178,outcome_data!$A$6:$BJ$216,AC$1,0)","v":3123},{"$f":"VLOOKUP($A178,outcome_data!$A$6:$BJ$216,AD$1,0)","v":3629},{"$f":"VLOOKUP($A178,outcome_data!$A$6:$BJ$216,AE$1,0)","v":2383},{"$f":"VLOOKUP($A178,outcome_data!$A$6:$BJ$216,AF$1,0)","v":3629}]
["10L","NHS Isle Of Wight",{"$f":"VLOOKUP($A179,outcome_data!$A$6:$BJ$216,C$1,0)","v":97},{"$f":"VLOOKUP($A179,outcome_data!$A$6:$BJ$216,D$1,0)","v":125022},{"$f":"VLOOKUP($A179,outcome_data!$A$6:$BJ$216,E$1,0)","v":358},{"$f":"VLOOKUP($A179,outcome_data!$A$6:$BJ$216,F$1,0)","v":141517},{"$f":"VLOOKUP($A179,outcome_data!$A$6:$BJ$216,G$1,0)","v":715},{"$f":"VLOOKUP($A179,outcome_data!$A$6:$BJ$216,H$1,0)","v":141517},{"$f":"VLOOKUP($A179,outcome_data!$A$6:$BJ$216,I$1,0)","v":195},{"$f":"VLOOKUP($A179,outcome_data!$A$6:$BJ$216,J$1,0)","v":141517},{"$f":"VLOOKUP($A179,outcome_data!$A$6:$BJ$216,K$1,0)","v":254},{"$f":"VLOOKUP($A179,outcome_data!$A$6:$BJ$216,L$1,0)","v":141517},{"$f":"VLOOKUP($A179,outcome_data!$A$6:$BJ$216,M$1,0)","v":161},{"$f":"VLOOKUP($A179,outcome_data!$A$6:$BJ$216,N$1,0)","v":141517},{"$f":"VLOOKUP($A179,outcome_data!$A$6:$BJ$216,O$1,0)","v":43},{"$f":"VLOOKUP($A179,outcome_data!$A$6:$BJ$216,P$1,0)","v":141517},{"$f":"VLOOKUP($A179,outcome_data!$A$6:$BJ$216,Q$1,0)","v":5020},{"$f":"VLOOKUP($A179,outcome_data!$A$6:$BJ$216,R$1,0)","v":5660},{"$f":"VLOOKUP($A179,outcome_data!$A$6:$BJ$216,S$1,0)","v":3891},{"$f":"VLOOKUP($A179,outcome_data!$A$6:$BJ$216,T$1,0)","v":5660},{"$f":"VLOOKUP($A179,outcome_data!$A$6:$BJ$216,U$1,0)","v":19332},{"$f":"VLOOKUP($A179,outcome_data!$A$6:$BJ$216,V$1,0)","v":23836},{"$f":"VLOOKUP($A179,outcome_data!$A$6:$BJ$216,W$1,0)","v":3722},{"$f":"VLOOKUP($A179,outcome_data!$A$6:$BJ$216,X$1,0)","v":5101},{"$f":"VLOOKUP($A179,outcome_data!$A$6:$BJ$216,Y$1,0)","v":1054},{"$f":"VLOOKUP($A179,outcome_data!$A$6:$BJ$216,Z$1,0)","v":1215},{"$f":"VLOOKUP($A179,outcome_data!$A$6:$BJ$216,AA$1,0)","v":814},{"$f":"VLOOKUP($A179,outcome_data!$A$6:$BJ$216,AB$1,0)","v":1215},{"$f":"VLOOKUP($A179,outcome_data!$A$6:$BJ$216,AC$1,0)","v":2816},{"$f":"VLOOKUP($A179,outcome_data!$A$6:$BJ$216,AD$1,0)","v":3281},{"$f":"VLOOKUP($A179,outcome_data!$A$6:$BJ$216,AE$1,0)","v":2111},{"$f":"VLOOKUP($A179,outcome_data!$A$6:$BJ$216,AF$1,0)","v":3281}]
["10M","NHS Newbury and District",{"$f":"VLOOKUP($A180,outcome_data!$A$6:$BJ$216,C$1,0)","v":62},{"$f":"VLOOKUP($A180,outcome_data!$A$6:$BJ$216,D$1,0)","v":106837},{"$f":"VLOOKUP($A180,outcome_data!$A$6:$BJ$216,E$1,0)","v":126},{"$f":"VLOOKUP($A180,outcome_data!$A$6:$BJ$216,F$1,0)","v":114847},{"$f":"VLOOKUP($A180,outcome_data!$A$6:$BJ$216,G$1,0)","v":401},{"$f":"VLOOKUP($A180,outcome_data!$A$6:$BJ$216,H$1,0)","v":114847},{"$f":"VLOOKUP($A180,outcome_data!$A$6:$BJ$216,I$1,0)","v":94},{"$f":"VLOOKUP($A180,outcome_data!$A$6:$BJ$216,J$1,0)","v":114847},{"$f":"VLOOKUP($A180,outcome_data!$A$6:$BJ$216,K$1,0)","v":292},{"$f":"VLOOKUP($A180,outcome_data!$A$6:$BJ$216,L$1,0)","v":114847},{"$f":"VLOOKUP($A180,outcome_data!$A$6:$BJ$216,M$1,0)","v":120},{"$f":"VLOOKUP($A180,outcome_data!$A$6:$BJ$216,N$1,0)","v":114847},{"$f":"VLOOKUP($A180,outcome_data!$A$6:$BJ$216,O$1,0)","v":32},{"$f":"VLOOKUP($A180,outcome_data!$A$6:$BJ$216,P$1,0)","v":114847},{"$f":"VLOOKUP($A180,outcome_data!$A$6:$BJ$216,Q$1,0)","v":2568},{"$f":"VLOOKUP($A180,outcome_data!$A$6:$BJ$216,R$1,0)","v":2845},{"$f":"VLOOKUP($A180,outcome_data!$A$6:$BJ$216,S$1,0)","v":2137},{"$f":"VLOOKUP($A180,outcome_data!$A$6:$BJ$216,T$1,0)","v":2845},{"$f":"VLOOKUP($A180,outcome_data!$A$6:$BJ$216,U$1,0)","v":11270},{"$f":"VLOOKUP($A180,outcome_data!$A$6:$BJ$216,V$1,0)","v":14136},{"$f":"VLOOKUP($A180,outcome_data!$A$6:$BJ$216,W$1,0)","v":2394},{"$f":"VLOOKUP($A180,outcome_data!$A$6:$BJ$216,X$1,0)","v":3310},{"$f":"VLOOKUP($A180,outcome_data!$A$6:$BJ$216,Y$1,0)","v":482},{"$f":"VLOOKUP($A180,outcome_data!$A$6:$BJ$216,Z$1,0)","v":557},{"$f":"VLOOKUP($A180,outcome_data!$A$6:$BJ$216,AA$1,0)","v":377},{"$f":"VLOOKUP($A180,outcome_data!$A$6:$BJ$216,AB$1,0)","v":557},{"$f":"VLOOKUP($A180,outcome_data!$A$6:$BJ$216,AC$1,0)","v":1349},{"$f":"VLOOKUP($A180,outcome_data!$A$6:$BJ$216,AD$1,0)","v":1559},{"$f":"VLOOKUP($A180,outcome_data!$A$6:$BJ$216,AE$1,0)","v":1063},{"$f":"VLOOKUP($A180,outcome_data!$A$6:$BJ$216,AF$1,0)","v":1559}]
["10N","NHS North & West Reading",{"$f":"VLOOKUP($A181,outcome_data!$A$6:$BJ$216,C$1,0)","v":45},{"$f":"VLOOKUP($A181,outcome_data!$A$6:$BJ$216,D$1,0)","v":100177},{"$f":"VLOOKUP($A181,outcome_data!$A$6:$BJ$216,E$1,0)","v":143},{"$f":"VLOOKUP($A181,outcome_data!$A$6:$BJ$216,F$1,0)","v":107951},{"$f":"VLOOKUP($A181,outcome_data!$A$6:$BJ$216,G$1,0)","v":374},{"$f":"VLOOKUP($A181,outcome_data!$A$6:$BJ$216,H$1,0)","v":107951},{"$f":"VLOOKUP($A181,outcome_data!$A$6:$BJ$216,I$1,0)","v":83},{"$f":"VLOOKUP($A181,outcome_data!$A$6:$BJ$216,J$1,0)","v":107951},{"$f":"VLOOKUP($A181,outcome_data!$A$6:$BJ$216,K$1,0)","v":283},{"$f":"VLOOKUP($A181,outcome_data!$A$6:$BJ$216,L$1,0)","v":107951},{"$f":"VLOOKUP($A181,outcome_data!$A$6:$BJ$216,M$1,0)","v":117},{"$f":"VLOOKUP($A181,outcome_data!$A$6:$BJ$216,N$1,0)","v":107951},{"$f":"VLOOKUP($A181,outcome_data!$A$6:$BJ$216,O$1,0)","v":21},{"$f":"VLOOKUP($A181,outcome_data!$A$6:$BJ$216,P$1,0)","v":107951},{"$f":"VLOOKUP($A181,outcome_data!$A$6:$BJ$216,Q$1,0)","v":2400},{"$f":"VLOOKUP($A181,outcome_data!$A$6:$BJ$216,R$1,0)","v":2690},{"$f":"VLOOKUP($A181,outcome_data!$A$6:$BJ$216,S$1,0)","v":2030},{"$f":"VLOOKUP($A181,outcome_data!$A$6:$BJ$216,T$1,0)","v":2690},{"$f":"VLOOKUP($A181,outcome_data!$A$6:$BJ$216,U$1,0)","v":11339},{"$f":"VLOOKUP($A181,outcome_data!$A$6:$BJ$216,V$1,0)","v":14239},{"$f":"VLOOKUP($A181,outcome_data!$A$6:$BJ$216,W$1,0)","v":2547},{"$f":"VLOOKUP($A181,outcome_data!$A$6:$BJ$216,X$1,0)","v":3495},{"$f":"VLOOKUP($A181,outcome_data!$A$6:$BJ$216,Y$1,0)","v":407},{"$f":"VLOOKUP($A181,outcome_data!$A$6:$BJ$216,Z$1,0)","v":471},{"$f":"VLOOKUP($A181,outcome_data!$A$6:$BJ$216,AA$1,0)","v":356},{"$f":"VLOOKUP($A181,outcome_data!$A$6:$BJ$216,AB$1,0)","v":471},{"$f":"VLOOKUP($A181,outcome_data!$A$6:$BJ$216,AC$1,0)","v":1296},{"$f":"VLOOKUP($A181,outcome_data!$A$6:$BJ$216,AD$1,0)","v":1464},{"$f":"VLOOKUP($A181,outcome_data!$A$6:$BJ$216,AE$1,0)","v":1036},{"$f":"VLOOKUP($A181,outcome_data!$A$6:$BJ$216,AF$1,0)","v":1464}]
["10Q","NHS Oxfordshire",{"$f":"VLOOKUP($A182,outcome_data!$A$6:$BJ$216,C$1,0)","v":318},{"$f":"VLOOKUP($A182,outcome_data!$A$6:$BJ$216,D$1,0)","v":641912},{"$f":"VLOOKUP($A182,outcome_data!$A$6:$BJ$216,E$1,0)","v":981},{"$f":"VLOOKUP($A182,outcome_data!$A$6:$BJ$216,F$1,0)","v":693515},{"$f":"VLOOKUP($A182,outcome_data!$A$6:$BJ$216,G$1,0)","v":2281},{"$f":"VLOOKUP($A182,outcome_data!$A$6:$BJ$216,H$1,0)","v":693515},{"$f":"VLOOKUP($A182,outcome_data!$A$6:$BJ$216,I$1,0)","v":552},{"$f":"VLOOKUP($A182,outcome_data!$A$6:$BJ$216,J$1,0)","v":693515},{"$f":"VLOOKUP($A182,outcome_data!$A$6:$BJ$216,K$1,0)","v":1207},{"$f":"VLOOKUP($A182,outcome_data!$A$6:$BJ$216,L$1,0)","v":693515},{"$f":"VLOOKUP($A182,outcome_data!$A$6:$BJ$216,M$1,0)","v":847},{"$f":"VLOOKUP($A182,outcome_data!$A$6:$BJ$216,N$1,0)","v":693515},{"$f":"VLOOKUP($A182,outcome_data!$A$6:$BJ$216,O$1,0)","v":147},{"$f":"VLOOKUP($A182,outcome_data!$A$6:$BJ$216,P$1,0)","v":693515},{"$f":"VLOOKUP($A182,outcome_data!$A$6:$BJ$216,Q$1,0)","v":16088},{"$f":"VLOOKUP($A182,outcome_data!$A$6:$BJ$216,R$1,0)","v":18109},{"$f":"VLOOKUP($A182,outcome_data!$A$6:$BJ$216,S$1,0)","v":13776},{"$f":"VLOOKUP($A182,outcome_data!$A$6:$BJ$216,T$1,0)","v":18109},{"$f":"VLOOKUP($A182,outcome_data!$A$6:$BJ$216,U$1,0)","v":64990},{"$f":"VLOOKUP($A182,outcome_data!$A$6:$BJ$216,V$1,0)","v":83175},{"$f":"VLOOKUP($A182,outcome_data!$A$6:$BJ$216,W$1,0)","v":15576},{"$f":"VLOOKUP($A182,outcome_data!$A$6:$BJ$216,X$1,0)","v":21462},{"$f":"VLOOKUP($A182,outcome_data!$A$6:$BJ$216,Y$1,0)","v":3128},{"$f":"VLOOKUP($A182,outcome_data!$A$6:$BJ$216,Z$1,0)","v":3621},{"$f":"VLOOKUP($A182,outcome_data!$A$6:$BJ$216,AA$1,0)","v":2629},{"$f":"VLOOKUP($A182,outcome_data!$A$6:$BJ$216,AB$1,0)","v":3621},{"$f":"VLOOKUP($A182,outcome_data!$A$6:$BJ$216,AC$1,0)","v":9735},{"$f":"VLOOKUP($A182,outcome_data!$A$6:$BJ$216,AD$1,0)","v":11283},{"$f":"VLOOKUP($A182,outcome_data!$A$6:$BJ$216,AE$1,0)","v":7952},{"$f":"VLOOKUP($A182,outcome_data!$A$6:$BJ$216,AF$1,0)","v":11283}]
["10R","NHS Portsmouth",{"$f":"VLOOKUP($A183,outcome_data!$A$6:$BJ$216,C$1,0)","v":163},{"$f":"VLOOKUP($A183,outcome_data!$A$6:$BJ$216,D$1,0)","v":202952},{"$f":"VLOOKUP($A183,outcome_data!$A$6:$BJ$216,E$1,0)","v":353},{"$f":"VLOOKUP($A183,outcome_data!$A$6:$BJ$216,F$1,0)","v":217685},{"$f":"VLOOKUP($A183,outcome_data!$A$6:$BJ$216,G$1,0)","v":657},{"$f":"VLOOKUP($A183,outcome_data!$A$6:$BJ$216,H$1,0)","v":217685},{"$f":"VLOOKUP($A183,outcome_data!$A$6:$BJ$216,I$1,0)","v":157},{"$f":"VLOOKUP($A183,outcome_data!$A$6:$BJ$216,J$1,0)","v":217685},{"$f":"VLOOKUP($A183,outcome_data!$A$6:$BJ$216,K$1,0)","v":488},{"$f":"VLOOKUP($A183,outcome_data!$A$6:$BJ$216,L$1,0)","v":217685},{"$f":"VLOOKUP($A183,outcome_data!$A$6:$BJ$216,M$1,0)","v":249},{"$f":"VLOOKUP($A183,outcome_data!$A$6:$BJ$216,N$1,0)","v":217685},{"$f":"VLOOKUP($A183,outcome_data!$A$6:$BJ$216,O$1,0)","v":49},{"$f":"VLOOKUP($A183,outcome_data!$A$6:$BJ$216,P$1,0)","v":217685},{"$f":"VLOOKUP($A183,outcome_data!$A$6:$BJ$216,Q$1,0)","v":5854},{"$f":"VLOOKUP($A183,outcome_data!$A$6:$BJ$216,R$1,0)","v":6495},{"$f":"VLOOKUP($A183,outcome_data!$A$6:$BJ$216,S$1,0)","v":4751},{"$f":"VLOOKUP($A183,outcome_data!$A$6:$BJ$216,T$1,0)","v":6495},{"$f":"VLOOKUP($A183,outcome_data!$A$6:$BJ$216,U$1,0)","v":21090},{"$f":"VLOOKUP($A183,outcome_data!$A$6:$BJ$216,V$1,0)","v":25989},{"$f":"VLOOKUP($A183,outcome_data!$A$6:$BJ$216,W$1,0)","v":4362},{"$f":"VLOOKUP($A183,outcome_data!$A$6:$BJ$216,X$1,0)","v":5686},{"$f":"VLOOKUP($A183,outcome_data!$A$6:$BJ$216,Y$1,0)","v":1216},{"$f":"VLOOKUP($A183,outcome_data!$A$6:$BJ$216,Z$1,0)","v":1372},{"$f":"VLOOKUP($A183,outcome_data!$A$6:$BJ$216,AA$1,0)","v":966},{"$f":"VLOOKUP($A183,outcome_data!$A$6:$BJ$216,AB$1,0)","v":1372},{"$f":"VLOOKUP($A183,outcome_data!$A$6:$BJ$216,AC$1,0)","v":2837},{"$f":"VLOOKUP($A183,outcome_data!$A$6:$BJ$216,AD$1,0)","v":3234},{"$f":"VLOOKUP($A183,outcome_data!$A$6:$BJ$216,AE$1,0)","v":2224},{"$f":"VLOOKUP($A183,outcome_data!$A$6:$BJ$216,AF$1,0)","v":3234}]
["10T","NHS Slough",{"$f":"VLOOKUP($A184,outcome_data!$A$6:$BJ$216,C$1,0)","v":86},{"$f":"VLOOKUP($A184,outcome_data!$A$6:$BJ$216,D$1,0)","v":140531},{"$f":"VLOOKUP($A184,outcome_data!$A$6:$BJ$216,E$1,0)","v":178},{"$f":"VLOOKUP($A184,outcome_data!$A$6:$BJ$216,F$1,0)","v":146685},{"$f":"VLOOKUP($A184,outcome_data!$A$6:$BJ$216,G$1,0)","v":700},{"$f":"VLOOKUP($A184,outcome_data!$A$6:$BJ$216,H$1,0)","v":146685},{"$f":"VLOOKUP($A184,outcome_data!$A$6:$BJ$216,I$1,0)","v":149},{"$f":"VLOOKUP($A184,outcome_data!$A$6:$BJ$216,J$1,0)","v":146685},{"$f":"VLOOKUP($A184,outcome_data!$A$6:$BJ$216,K$1,0)","v":477},{"$f":"VLOOKUP($A184,outcome_data!$A$6:$BJ$216,L$1,0)","v":146685},{"$f":"VLOOKUP($A184,outcome_data!$A$6:$BJ$216,M$1,0)","v":209},{"$f":"VLOOKUP($A184,outcome_data!$A$6:$BJ$216,N$1,0)","v":146685},{"$f":"VLOOKUP($A184,outcome_data!$A$6:$BJ$216,O$1,0)","v":67},{"$f":"VLOOKUP($A184,outcome_data!$A$6:$BJ$216,P$1,0)","v":146685},{"$f":"VLOOKUP($A184,outcome_data!$A$6:$BJ$216,Q$1,0)","v":3397},{"$f":"VLOOKUP($A184,outcome_data!$A$6:$BJ$216,R$1,0)","v":3809},{"$f":"VLOOKUP($A184,outcome_data!$A$6:$BJ$216,S$1,0)","v":2772},{"$f":"VLOOKUP($A184,outcome_data!$A$6:$BJ$216,T$1,0)","v":3809},{"$f":"VLOOKUP($A184,outcome_data!$A$6:$BJ$216,U$1,0)","v":12439},{"$f":"VLOOKUP($A184,outcome_data!$A$6:$BJ$216,V$1,0)","v":15671},{"$f":"VLOOKUP($A184,outcome_data!$A$6:$BJ$216,W$1,0)","v":2562},{"$f":"VLOOKUP($A184,outcome_data!$A$6:$BJ$216,X$1,0)","v":3389},{"$f":"VLOOKUP($A184,outcome_data!$A$6:$BJ$216,Y$1,0)","v":739},{"$f":"VLOOKUP($A184,outcome_data!$A$6:$BJ$216,Z$1,0)","v":822},{"$f":"VLOOKUP($A184,outcome_data!$A$6:$BJ$216,AA$1,0)","v":619},{"$f":"VLOOKUP($A184,outcome_data!$A$6:$BJ$216,AB$1,0)","v":822},{"$f":"VLOOKUP($A184,outcome_data!$A$6:$BJ$216,AC$1,0)","v":1391},{"$f":"VLOOKUP($A184,outcome_data!$A$6:$BJ$216,AD$1,0)","v":1588},{"$f":"VLOOKUP($A184,outcome_data!$A$6:$BJ$216,AE$1,0)","v":1128},{"$f":"VLOOKUP($A184,outcome_data!$A$6:$BJ$216,AF$1,0)","v":1588}]
["10V","NHS South Eastern Hampshire",{"$f":"VLOOKUP($A185,outcome_data!$A$6:$BJ$216,C$1,0)","v":115},{"$f":"VLOOKUP($A185,outcome_data!$A$6:$BJ$216,D$1,0)","v":188463},{"$f":"VLOOKUP($A185,outcome_data!$A$6:$BJ$216,E$1,0)","v":436},{"$f":"VLOOKUP($A185,outcome_data!$A$6:$BJ$216,F$1,0)","v":208977},{"$f":"VLOOKUP($A185,outcome_data!$A$6:$BJ$216,G$1,0)","v":877},{"$f":"VLOOKUP($A185,outcome_data!$A$6:$BJ$216,H$1,0)","v":208977},{"$f":"VLOOKUP($A185,outcome_data!$A$6:$BJ$216,I$1,0)","v":203},{"$f":"VLOOKUP($A185,outcome_data!$A$6:$BJ$216,J$1,0)","v":208977},{"$f":"VLOOKUP($A185,outcome_data!$A$6:$BJ$216,K$1,0)","v":608},{"$f":"VLOOKUP($A185,outcome_data!$A$6:$BJ$216,L$1,0)","v":208977},{"$f":"VLOOKUP($A185,outcome_data!$A$6:$BJ$216,M$1,0)","v":310},{"$f":"VLOOKUP($A185,outcome_data!$A$6:$BJ$216,N$1,0)","v":208977},{"$f":"VLOOKUP($A185,outcome_data!$A$6:$BJ$216,O$1,0)","v":53},{"$f":"VLOOKUP($A185,outcome_data!$A$6:$BJ$216,P$1,0)","v":208977},{"$f":"VLOOKUP($A185,outcome_data!$A$6:$BJ$216,Q$1,0)","v":7040},{"$f":"VLOOKUP($A185,outcome_data!$A$6:$BJ$216,R$1,0)","v":7961},{"$f":"VLOOKUP($A185,outcome_data!$A$6:$BJ$216,S$1,0)","v":5714},{"$f":"VLOOKUP($A185,outcome_data!$A$6:$BJ$216,T$1,0)","v":7960},{"$f":"VLOOKUP($A185,outcome_data!$A$6:$BJ$216,U$1,0)","v":24484},{"$f":"VLOOKUP($A185,outcome_data!$A$6:$BJ$216,V$1,0)","v":31710},{"$f":"VLOOKUP($A185,outcome_data!$A$6:$BJ$216,W$1,0)","v":4748},{"$f":"VLOOKUP($A185,outcome_data!$A$6:$BJ$216,X$1,0)","v":6582},{"$f":"VLOOKUP($A185,outcome_data!$A$6:$BJ$216,Y$1,0)","v":1433},{"$f":"VLOOKUP($A185,outcome_data!$A$6:$BJ$216,Z$1,0)","v":1686},{"$f":"VLOOKUP($A185,outcome_data!$A$6:$BJ$216,AA$1,0)","v":1120},{"$f":"VLOOKUP($A185,outcome_data!$A$6:$BJ$216,AB$1,0)","v":1688},{"$f":"VLOOKUP($A185,outcome_data!$A$6:$BJ$216,AC$1,0)","v":3398},{"$f":"VLOOKUP($A185,outcome_data!$A$6:$BJ$216,AD$1,0)","v":3959},{"$f":"VLOOKUP($A185,outcome_data!$A$6:$BJ$216,AE$1,0)","v":2603},{"$f":"VLOOKUP($A185,outcome_data!$A$6:$BJ$216,AF$1,0)","v":3959}]
["10W","NHS South Reading",{"$f":"VLOOKUP($A186,outcome_data!$A$6:$BJ$216,C$1,0)","v":60},{"$f":"VLOOKUP($A186,outcome_data!$A$6:$BJ$216,D$1,0)","v":125233},{"$f":"VLOOKUP($A186,outcome_data!$A$6:$BJ$216,E$1,0)","v":123},{"$f":"VLOOKUP($A186,outcome_data!$A$6:$BJ$216,F$1,0)","v":132560},{"$f":"VLOOKUP($A186,outcome_data!$A$6:$BJ$216,G$1,0)","v":315},{"$f":"VLOOKUP($A186,outcome_data!$A$6:$BJ$216,H$1,0)","v":132560},{"$f":"VLOOKUP($A186,outcome_data!$A$6:$BJ$216,I$1,0)","v":71},{"$f":"VLOOKUP($A186,outcome_data!$A$6:$BJ$216,J$1,0)","v":132560},{"$f":"VLOOKUP($A186,outcome_data!$A$6:$BJ$216,K$1,0)","v":218},{"$f":"VLOOKUP($A186,outcome_data!$A$6:$BJ$216,L$1,0)","v":132560},{"$f":"VLOOKUP($A186,outcome_data!$A$6:$BJ$216,M$1,0)","v":113},{"$f":"VLOOKUP($A186,outcome_data!$A$6:$BJ$216,N$1,0)","v":132560},{"$f":"VLOOKUP($A186,outcome_data!$A$6:$BJ$216,O$1,0)","v":22},{"$f":"VLOOKUP($A186,outcome_data!$A$6:$BJ$216,P$1,0)","v":132560},{"$f":"VLOOKUP($A186,outcome_data!$A$6:$BJ$216,Q$1,0)","v":2046},{"$f":"VLOOKUP($A186,outcome_data!$A$6:$BJ$216,R$1,0)","v":2299},{"$f":"VLOOKUP($A186,outcome_data!$A$6:$BJ$216,S$1,0)","v":1723},{"$f":"VLOOKUP($A186,outcome_data!$A$6:$BJ$216,T$1,0)","v":2299},{"$f":"VLOOKUP($A186,outcome_data!$A$6:$BJ$216,U$1,0)","v":10475},{"$f":"VLOOKUP($A186,outcome_data!$A$6:$BJ$216,V$1,0)","v":13479},{"$f":"VLOOKUP($A186,outcome_data!$A$6:$BJ$216,W$1,0)","v":2422},{"$f":"VLOOKUP($A186,outcome_data!$A$6:$BJ$216,X$1,0)","v":3289},{"$f":"VLOOKUP($A186,outcome_data!$A$6:$BJ$216,Y$1,0)","v":341},{"$f":"VLOOKUP($A186,outcome_data!$A$6:$BJ$216,Z$1,0)","v":391},{"$f":"VLOOKUP($A186,outcome_data!$A$6:$BJ$216,AA$1,0)","v":275},{"$f":"VLOOKUP($A186,outcome_data!$A$6:$BJ$216,AB$1,0)","v":387},{"$f":"VLOOKUP($A186,outcome_data!$A$6:$BJ$216,AC$1,0)","v":951},{"$f":"VLOOKUP($A186,outcome_data!$A$6:$BJ$216,AD$1,0)","v":1119},{"$f":"VLOOKUP($A186,outcome_data!$A$6:$BJ$216,AE$1,0)","v":791},{"$f":"VLOOKUP($A186,outcome_data!$A$6:$BJ$216,AF$1,0)","v":1119}]
["10X","NHS Southampton",{"$f":"VLOOKUP($A187,outcome_data!$A$6:$BJ$216,C$1,0)","v":142},{"$f":"VLOOKUP($A187,outcome_data!$A$6:$BJ$216,D$1,0)","v":250604},{"$f":"VLOOKUP($A187,outcome_data!$A$6:$BJ$216,E$1,0)","v":332},{"$f":"VLOOKUP($A187,outcome_data!$A$6:$BJ$216,F$1,0)","v":267765},{"$f":"VLOOKUP($A187,outcome_data!$A$6:$BJ$216,G$1,0)","v":748},{"$f":"VLOOKUP($A187,outcome_data!$A$6:$BJ$216,H$1,0)","v":267765},{"$f":"VLOOKUP($A187,outcome_data!$A$6:$BJ$216,I$1,0)","v":256},{"$f":"VLOOKUP($A187,outcome_data!$A$6:$BJ$216,J$1,0)","v":267765},{"$f":"VLOOKUP($A187,outcome_data!$A$6:$BJ$216,K$1,0)","v":377},{"$f":"VLOOKUP($A187,outcome_data!$A$6:$BJ$216,L$1,0)","v":267765},{"$f":"VLOOKUP($A187,outcome_data!$A$6:$BJ$216,M$1,0)","v":244},{"$f":"VLOOKUP($A187,outcome_data!$A$6:$BJ$216,N$1,0)","v":267765},{"$f":"VLOOKUP($A187,outcome_data!$A$6:$BJ$216,O$1,0)","v":86},{"$f":"VLOOKUP($A187,outcome_data!$A$6:$BJ$216,P$1,0)","v":267765},{"$f":"VLOOKUP($A187,outcome_data!$A$6:$BJ$216,Q$1,0)","v":6224},{"$f":"VLOOKUP($A187,outcome_data!$A$6:$BJ$216,R$1,0)","v":7057},{"$f":"VLOOKUP($A187,outcome_data!$A$6:$BJ$216,S$1,0)","v":5169},{"$f":"VLOOKUP($A187,outcome_data!$A$6:$BJ$216,T$1,0)","v":7057},{"$f":"VLOOKUP($A187,outcome_data!$A$6:$BJ$216,U$1,0)","v":22194},{"$f":"VLOOKUP($A187,outcome_data!$A$6:$BJ$216,V$1,0)","v":29011},{"$f":"VLOOKUP($A187,outcome_data!$A$6:$BJ$216,W$1,0)","v":5585},{"$f":"VLOOKUP($A187,outcome_data!$A$6:$BJ$216,X$1,0)","v":7845},{"$f":"VLOOKUP($A187,outcome_data!$A$6:$BJ$216,Y$1,0)","v":1392},{"$f":"VLOOKUP($A187,outcome_data!$A$6:$BJ$216,Z$1,0)","v":1651},{"$f":"VLOOKUP($A187,outcome_data!$A$6:$BJ$216,AA$1,0)","v":1078},{"$f":"VLOOKUP($A187,outcome_data!$A$6:$BJ$216,AB$1,0)","v":1651},{"$f":"VLOOKUP($A187,outcome_data!$A$6:$BJ$216,AC$1,0)","v":3374},{"$f":"VLOOKUP($A187,outcome_data!$A$6:$BJ$216,AD$1,0)","v":3962},{"$f":"VLOOKUP($A187,outcome_data!$A$6:$BJ$216,AE$1,0)","v":2665},{"$f":"VLOOKUP($A187,outcome_data!$A$6:$BJ$216,AF$1,0)","v":3962}]
["10Y","NHS Aylesbury Vale",{"$f":"VLOOKUP($A188,outcome_data!$A$6:$BJ$216,C$1,0)","v":81},{"$f":"VLOOKUP($A188,outcome_data!$A$6:$BJ$216,D$1,0)","v":186294},{"$f":"VLOOKUP($A188,outcome_data!$A$6:$BJ$216,E$1,0)","v":244},{"$f":"VLOOKUP($A188,outcome_data!$A$6:$BJ$216,F$1,0)","v":200597},{"$f":"VLOOKUP($A188,outcome_data!$A$6:$BJ$216,G$1,0)","v":834},{"$f":"VLOOKUP($A188,outcome_data!$A$6:$BJ$216,H$1,0)","v":200597},{"$f":"VLOOKUP($A188,outcome_data!$A$6:$BJ$216,I$1,0)","v":176},{"$f":"VLOOKUP($A188,outcome_data!$A$6:$BJ$216,J$1,0)","v":200597},{"$f":"VLOOKUP($A188,outcome_data!$A$6:$BJ$216,K$1,0)","v":595},{"$f":"VLOOKUP($A188,outcome_data!$A$6:$BJ$216,L$1,0)","v":200597},{"$f":"VLOOKUP($A188,outcome_data!$A$6:$BJ$216,M$1,0)","v":302},{"$f":"VLOOKUP($A188,outcome_data!$A$6:$BJ$216,N$1,0)","v":200597},{"$f":"VLOOKUP($A188,outcome_data!$A$6:$BJ$216,O$1,0)","v":39},{"$f":"VLOOKUP($A188,outcome_data!$A$6:$BJ$216,P$1,0)","v":200597},{"$f":"VLOOKUP($A188,outcome_data!$A$6:$BJ$216,Q$1,0)","v":5714},{"$f":"VLOOKUP($A188,outcome_data!$A$6:$BJ$216,R$1,0)","v":6425},{"$f":"VLOOKUP($A188,outcome_data!$A$6:$BJ$216,S$1,0)","v":4656},{"$f":"VLOOKUP($A188,outcome_data!$A$6:$BJ$216,T$1,0)","v":6425},{"$f":"VLOOKUP($A188,outcome_data!$A$6:$BJ$216,U$1,0)","v":20370},{"$f":"VLOOKUP($A188,outcome_data!$A$6:$BJ$216,V$1,0)","v":26550},{"$f":"VLOOKUP($A188,outcome_data!$A$6:$BJ$216,W$1,0)","v":3523},{"$f":"VLOOKUP($A188,outcome_data!$A$6:$BJ$216,X$1,0)","v":4866},{"$f":"VLOOKUP($A188,outcome_data!$A$6:$BJ$216,Y$1,0)","v":990},{"$f":"VLOOKUP($A188,outcome_data!$A$6:$BJ$216,Z$1,0)","v":1192},{"$f":"VLOOKUP($A188,outcome_data!$A$6:$BJ$216,AA$1,0)","v":739},{"$f":"VLOOKUP($A188,outcome_data!$A$6:$BJ$216,AB$1,0)","v":1192},{"$f":"VLOOKUP($A188,outcome_data!$A$6:$BJ$216,AC$1,0)","v":2548},{"$f":"VLOOKUP($A188,outcome_data!$A$6:$BJ$216,AD$1,0)","v":3003},{"$f":"VLOOKUP($A188,outcome_data!$A$6:$BJ$216,AE$1,0)","v":1961},{"$f":"VLOOKUP($A188,outcome_data!$A$6:$BJ$216,AF$1,0)","v":3003}]
["11A","NHS West Hampshire",{"$f":"VLOOKUP($A189,outcome_data!$A$6:$BJ$216,C$1,0)","v":279},{"$f":"VLOOKUP($A189,outcome_data!$A$6:$BJ$216,D$1,0)","v":488689},{"$f":"VLOOKUP($A189,outcome_data!$A$6:$BJ$216,E$1,0)","v":944},{"$f":"VLOOKUP($A189,outcome_data!$A$6:$BJ$216,F$1,0)","v":543354},{"$f":"VLOOKUP($A189,outcome_data!$A$6:$BJ$216,G$1,0)","v":2425},{"$f":"VLOOKUP($A189,outcome_data!$A$6:$BJ$216,H$1,0)","v":543354},{"$f":"VLOOKUP($A189,outcome_data!$A$6:$BJ$216,I$1,0)","v":610},{"$f":"VLOOKUP($A189,outcome_data!$A$6:$BJ$216,J$1,0)","v":543354},{"$f":"VLOOKUP($A189,outcome_data!$A$6:$BJ$216,K$1,0)","v":1472},{"$f":"VLOOKUP($A189,outcome_data!$A$6:$BJ$216,L$1,0)","v":543354},{"$f":"VLOOKUP($A189,outcome_data!$A$6:$BJ$216,M$1,0)","v":742},{"$f":"VLOOKUP($A189,outcome_data!$A$6:$BJ$216,N$1,0)","v":543354},{"$f":"VLOOKUP($A189,outcome_data!$A$6:$BJ$216,O$1,0)","v":235},{"$f":"VLOOKUP($A189,outcome_data!$A$6:$BJ$216,P$1,0)","v":543354},{"$f":"VLOOKUP($A189,outcome_data!$A$6:$BJ$216,Q$1,0)","v":16221},{"$f":"VLOOKUP($A189,outcome_data!$A$6:$BJ$216,R$1,0)","v":18573},{"$f":"VLOOKUP($A189,outcome_data!$A$6:$BJ$216,S$1,0)","v":13270},{"$f":"VLOOKUP($A189,outcome_data!$A$6:$BJ$216,T$1,0)","v":18573},{"$f":"VLOOKUP($A189,outcome_data!$A$6:$BJ$216,U$1,0)","v":59452},{"$f":"VLOOKUP($A189,outcome_data!$A$6:$BJ$216,V$1,0)","v":78123},{"$f":"VLOOKUP($A189,outcome_data!$A$6:$BJ$216,W$1,0)","v":12658},{"$f":"VLOOKUP($A189,outcome_data!$A$6:$BJ$216,X$1,0)","v":18531},{"$f":"VLOOKUP($A189,outcome_data!$A$6:$BJ$216,Y$1,0)","v":2805},{"$f":"VLOOKUP($A189,outcome_data!$A$6:$BJ$216,Z$1,0)","v":3302},{"$f":"VLOOKUP($A189,outcome_data!$A$6:$BJ$216,AA$1,0)","v":2220},{"$f":"VLOOKUP($A189,outcome_data!$A$6:$BJ$216,AB$1,0)","v":3302},{"$f":"VLOOKUP($A189,outcome_data!$A$6:$BJ$216,AC$1,0)","v":9317},{"$f":"VLOOKUP($A189,outcome_data!$A$6:$BJ$216,AD$1,0)","v":11065},{"$f":"VLOOKUP($A189,outcome_data!$A$6:$BJ$216,AE$1,0)","v":6966},{"$f":"VLOOKUP($A189,outcome_data!$A$6:$BJ$216,AF$1,0)","v":11065}]
["11C","NHS Windsor, Ascot and Maidenhead",{"$f":"VLOOKUP($A190,outcome_data!$A$6:$BJ$216,C$1,0)","v":75},{"$f":"VLOOKUP($A190,outcome_data!$A$6:$BJ$216,D$1,0)","v":141411},{"$f":"VLOOKUP($A190,outcome_data!$A$6:$BJ$216,E$1,0)","v":198},{"$f":"VLOOKUP($A190,outcome_data!$A$6:$BJ$216,F$1,0)","v":152712},{"$f":"VLOOKUP($A190,outcome_data!$A$6:$BJ$216,G$1,0)","v":528},{"$f":"VLOOKUP($A190,outcome_data!$A$6:$BJ$216,H$1,0)","v":152712},{"$f":"VLOOKUP($A190,outcome_data!$A$6:$BJ$216,I$1,0)","v":131},{"$f":"VLOOKUP($A190,outcome_data!$A$6:$BJ$216,J$1,0)","v":152712},{"$f":"VLOOKUP($A190,outcome_data!$A$6:$BJ$216,K$1,0)","v":404},{"$f":"VLOOKUP($A190,outcome_data!$A$6:$BJ$216,L$1,0)","v":152712},{"$f":"VLOOKUP($A190,outcome_data!$A$6:$BJ$216,M$1,0)","v":163},{"$f":"VLOOKUP($A190,outcome_data!$A$6:$BJ$216,N$1,0)","v":152712},{"$f":"VLOOKUP($A190,outcome_data!$A$6:$BJ$216,O$1,0)","v":44},{"$f":"VLOOKUP($A190,outcome_data!$A$6:$BJ$216,P$1,0)","v":152712},{"$f":"VLOOKUP($A190,outcome_data!$A$6:$BJ$216,Q$1,0)","v":3532},{"$f":"VLOOKUP($A190,outcome_data!$A$6:$BJ$216,R$1,0)","v":3978},{"$f":"VLOOKUP($A190,outcome_data!$A$6:$BJ$216,S$1,0)","v":2824},{"$f":"VLOOKUP($A190,outcome_data!$A$6:$BJ$216,T$1,0)","v":3978},{"$f":"VLOOKUP($A190,outcome_data!$A$6:$BJ$216,U$1,0)","v":13152},{"$f":"VLOOKUP($A190,outcome_data!$A$6:$BJ$216,V$1,0)","v":16686},{"$f":"VLOOKUP($A190,outcome_data!$A$6:$BJ$216,W$1,0)","v":3093},{"$f":"VLOOKUP($A190,outcome_data!$A$6:$BJ$216,X$1,0)","v":4187},{"$f":"VLOOKUP($A190,outcome_data!$A$6:$BJ$216,Y$1,0)","v":637},{"$f":"VLOOKUP($A190,outcome_data!$A$6:$BJ$216,Z$1,0)","v":719},{"$f":"VLOOKUP($A190,outcome_data!$A$6:$BJ$216,AA$1,0)","v":469},{"$f":"VLOOKUP($A190,outcome_data!$A$6:$BJ$216,AB$1,0)","v":719},{"$f":"VLOOKUP($A190,outcome_data!$A$6:$BJ$216,AC$1,0)","v":1954},{"$f":"VLOOKUP($A190,outcome_data!$A$6:$BJ$216,AD$1,0)","v":2239},{"$f":"VLOOKUP($A190,outcome_data!$A$6:$BJ$216,AE$1,0)","v":1476},{"$f":"VLOOKUP($A190,outcome_data!$A$6:$BJ$216,AF$1,0)","v":2239}]
["11D","NHS Wokingham",{"$f":"VLOOKUP($A191,outcome_data!$A$6:$BJ$216,C$1,0)","v":74},{"$f":"VLOOKUP($A191,outcome_data!$A$6:$BJ$216,D$1,0)","v":144377},{"$f":"VLOOKUP($A191,outcome_data!$A$6:$BJ$216,E$1,0)","v":207},{"$f":"VLOOKUP($A191,outcome_data!$A$6:$BJ$216,F$1,0)","v":155927},{"$f":"VLOOKUP($A191,outcome_data!$A$6:$BJ$216,G$1,0)","v":568},{"$f":"VLOOKUP($A191,outcome_data!$A$6:$BJ$216,H$1,0)","v":155927},{"$f":"VLOOKUP($A191,outcome_data!$A$6:$BJ$216,I$1,0)","v":117},{"$f":"VLOOKUP($A191,outcome_data!$A$6:$BJ$216,J$1,0)","v":155927},{"$f":"VLOOKUP($A191,outcome_data!$A$6:$BJ$216,K$1,0)","v":402},{"$f":"VLOOKUP($A191,outcome_data!$A$6:$BJ$216,L$1,0)","v":155927},{"$f":"VLOOKUP($A191,outcome_data!$A$6:$BJ$216,M$1,0)","v":186},{"$f":"VLOOKUP($A191,outcome_data!$A$6:$BJ$216,N$1,0)","v":155927},{"$f":"VLOOKUP($A191,outcome_data!$A$6:$BJ$216,O$1,0)","v":39},{"$f":"VLOOKUP($A191,outcome_data!$A$6:$BJ$216,P$1,0)","v":155927},{"$f":"VLOOKUP($A191,outcome_data!$A$6:$BJ$216,Q$1,0)","v":3530},{"$f":"VLOOKUP($A191,outcome_data!$A$6:$BJ$216,R$1,0)","v":3908},{"$f":"VLOOKUP($A191,outcome_data!$A$6:$BJ$216,S$1,0)","v":2881},{"$f":"VLOOKUP($A191,outcome_data!$A$6:$BJ$216,T$1,0)","v":3908},{"$f":"VLOOKUP($A191,outcome_data!$A$6:$BJ$216,U$1,0)","v":15046},{"$f":"VLOOKUP($A191,outcome_data!$A$6:$BJ$216,V$1,0)","v":18811},{"$f":"VLOOKUP($A191,outcome_data!$A$6:$BJ$216,W$1,0)","v":3472},{"$f":"VLOOKUP($A191,outcome_data!$A$6:$BJ$216,X$1,0)","v":4690},{"$f":"VLOOKUP($A191,outcome_data!$A$6:$BJ$216,Y$1,0)","v":554},{"$f":"VLOOKUP($A191,outcome_data!$A$6:$BJ$216,Z$1,0)","v":646},{"$f":"VLOOKUP($A191,outcome_data!$A$6:$BJ$216,AA$1,0)","v":441},{"$f":"VLOOKUP($A191,outcome_data!$A$6:$BJ$216,AB$1,0)","v":646},{"$f":"VLOOKUP($A191,outcome_data!$A$6:$BJ$216,AC$1,0)","v":1805},{"$f":"VLOOKUP($A191,outcome_data!$A$6:$BJ$216,AD$1,0)","v":2108},{"$f":"VLOOKUP($A191,outcome_data!$A$6:$BJ$216,AE$1,0)","v":1446},{"$f":"VLOOKUP($A191,outcome_data!$A$6:$BJ$216,AF$1,0)","v":2108}]
["11E","NHS Bath and North East Somerset",{"$f":"VLOOKUP($A192,outcome_data!$A$6:$BJ$216,C$1,0)","v":84},{"$f":"VLOOKUP($A192,outcome_data!$A$6:$BJ$216,D$1,0)","v":180799},{"$f":"VLOOKUP($A192,outcome_data!$A$6:$BJ$216,E$1,0)","v":354},{"$f":"VLOOKUP($A192,outcome_data!$A$6:$BJ$216,F$1,0)","v":198254},{"$f":"VLOOKUP($A192,outcome_data!$A$6:$BJ$216,G$1,0)","v":808},{"$f":"VLOOKUP($A192,outcome_data!$A$6:$BJ$216,H$1,0)","v":198254},{"$f":"VLOOKUP($A192,outcome_data!$A$6:$BJ$216,I$1,0)","v":206},{"$f":"VLOOKUP($A192,outcome_data!$A$6:$BJ$216,J$1,0)","v":198254},{"$f":"VLOOKUP($A192,outcome_data!$A$6:$BJ$216,K$1,0)","v":564},{"$f":"VLOOKUP($A192,outcome_data!$A$6:$BJ$216,L$1,0)","v":198254},{"$f":"VLOOKUP($A192,outcome_data!$A$6:$BJ$216,M$1,0)","v":220},{"$f":"VLOOKUP($A192,outcome_data!$A$6:$BJ$216,N$1,0)","v":198254},{"$f":"VLOOKUP($A192,outcome_data!$A$6:$BJ$216,O$1,0)","v":44},{"$f":"VLOOKUP($A192,outcome_data!$A$6:$BJ$216,P$1,0)","v":198254},{"$f":"VLOOKUP($A192,outcome_data!$A$6:$BJ$216,Q$1,0)","v":5136},{"$f":"VLOOKUP($A192,outcome_data!$A$6:$BJ$216,R$1,0)","v":5824},{"$f":"VLOOKUP($A192,outcome_data!$A$6:$BJ$216,S$1,0)","v":4247},{"$f":"VLOOKUP($A192,outcome_data!$A$6:$BJ$216,T$1,0)","v":5824},{"$f":"VLOOKUP($A192,outcome_data!$A$6:$BJ$216,U$1,0)","v":19702},{"$f":"VLOOKUP($A192,outcome_data!$A$6:$BJ$216,V$1,0)","v":25395},{"$f":"VLOOKUP($A192,outcome_data!$A$6:$BJ$216,W$1,0)","v":3655},{"$f":"VLOOKUP($A192,outcome_data!$A$6:$BJ$216,X$1,0)","v":5232},{"$f":"VLOOKUP($A192,outcome_data!$A$6:$BJ$216,Y$1,0)","v":972},{"$f":"VLOOKUP($A192,outcome_data!$A$6:$BJ$216,Z$1,0)","v":1134},{"$f":"VLOOKUP($A192,outcome_data!$A$6:$BJ$216,AA$1,0)","v":791},{"$f":"VLOOKUP($A192,outcome_data!$A$6:$BJ$216,AB$1,0)","v":1134},{"$f":"VLOOKUP($A192,outcome_data!$A$6:$BJ$216,AC$1,0)","v":2964},{"$f":"VLOOKUP($A192,outcome_data!$A$6:$BJ$216,AD$1,0)","v":3488},{"$f":"VLOOKUP($A192,outcome_data!$A$6:$BJ$216,AE$1,0)","v":2273},{"$f":"VLOOKUP($A192,outcome_data!$A$6:$BJ$216,AF$1,0)","v":3488}]
["11H","NHS Bristol",{"$f":"VLOOKUP($A193,outcome_data!$A$6:$BJ$216,C$1,0)","v":283},{"$f":"VLOOKUP($A193,outcome_data!$A$6:$BJ$216,D$1,0)","v":455898},{"$f":"VLOOKUP($A193,outcome_data!$A$6:$BJ$216,E$1,0)","v":554},{"$f":"VLOOKUP($A193,outcome_data!$A$6:$BJ$216,F$1,0)","v":483412},{"$f":"VLOOKUP($A193,outcome_data!$A$6:$BJ$216,G$1,0)","v":1690},{"$f":"VLOOKUP($A193,outcome_data!$A$6:$BJ$216,H$1,0)","v":483412},{"$f":"VLOOKUP($A193,outcome_data!$A$6:$BJ$216,I$1,0)","v":441},{"$f":"VLOOKUP($A193,outcome_data!$A$6:$BJ$216,J$1,0)","v":483412},{"$f":"VLOOKUP($A193,outcome_data!$A$6:$BJ$216,K$1,0)","v":1118},{"$f":"VLOOKUP($A193,outcome_data!$A$6:$BJ$216,L$1,0)","v":483412},{"$f":"VLOOKUP($A193,outcome_data!$A$6:$BJ$216,M$1,0)","v":545},{"$f":"VLOOKUP($A193,outcome_data!$A$6:$BJ$216,N$1,0)","v":483412},{"$f":"VLOOKUP($A193,outcome_data!$A$6:$BJ$216,O$1,0)","v":126},{"$f":"VLOOKUP($A193,outcome_data!$A$6:$BJ$216,P$1,0)","v":483412},{"$f":"VLOOKUP($A193,outcome_data!$A$6:$BJ$216,Q$1,0)","v":10258},{"$f":"VLOOKUP($A193,outcome_data!$A$6:$BJ$216,R$1,0)","v":11774},{"$f":"VLOOKUP($A193,outcome_data!$A$6:$BJ$216,S$1,0)","v":8380},{"$f":"VLOOKUP($A193,outcome_data!$A$6:$BJ$216,T$1,0)","v":11774},{"$f":"VLOOKUP($A193,outcome_data!$A$6:$BJ$216,U$1,0)","v":39349},{"$f":"VLOOKUP($A193,outcome_data!$A$6:$BJ$216,V$1,0)","v":52724},{"$f":"VLOOKUP($A193,outcome_data!$A$6:$BJ$216,W$1,0)","v":11480},{"$f":"VLOOKUP($A193,outcome_data!$A$6:$BJ$216,X$1,0)","v":16541},{"$f":"VLOOKUP($A193,outcome_data!$A$6:$BJ$216,Y$1,0)","v":2411},{"$f":"VLOOKUP($A193,outcome_data!$A$6:$BJ$216,Z$1,0)","v":2895},{"$f":"VLOOKUP($A193,outcome_data!$A$6:$BJ$216,AA$1,0)","v":1968},{"$f":"VLOOKUP($A193,outcome_data!$A$6:$BJ$216,AB$1,0)","v":2895},{"$f":"VLOOKUP($A193,outcome_data!$A$6:$BJ$216,AC$1,0)","v":6402},{"$f":"VLOOKUP($A193,outcome_data!$A$6:$BJ$216,AD$1,0)","v":7500},{"$f":"VLOOKUP($A193,outcome_data!$A$6:$BJ$216,AE$1,0)","v":5035},{"$f":"VLOOKUP($A193,outcome_data!$A$6:$BJ$216,AF$1,0)","v":7500}]
["11J","NHS Dorset",{"$f":"VLOOKUP($A194,outcome_data!$A$6:$BJ$216,C$1,0)","v":446},{"$f":"VLOOKUP($A194,outcome_data!$A$6:$BJ$216,D$1,0)","v":683941},{"$f":"VLOOKUP($A194,outcome_data!$A$6:$BJ$216,E$1,0)","v":1366},{"$f":"VLOOKUP($A194,outcome_data!$A$6:$BJ$216,F$1,0)","v":771726},{"$f":"VLOOKUP($A194,outcome_data!$A$6:$BJ$216,G$1,0)","v":5754},{"$f":"VLOOKUP($A194,outcome_data!$A$6:$BJ$216,H$1,0)","v":771726},{"$f":"VLOOKUP($A194,outcome_data!$A$6:$BJ$216,I$1,0)","v":950},{"$f":"VLOOKUP($A194,outcome_data!$A$6:$BJ$216,J$1,0)","v":771726},{"$f":"VLOOKUP($A194,outcome_data!$A$6:$BJ$216,K$1,0)","v":3768},{"$f":"VLOOKUP($A194,outcome_data!$A$6:$BJ$216,L$1,0)","v":771726},{"$f":"VLOOKUP($A194,outcome_data!$A$6:$BJ$216,M$1,0)","v":1978},{"$f":"VLOOKUP($A194,outcome_data!$A$6:$BJ$216,N$1,0)","v":771726},{"$f":"VLOOKUP($A194,outcome_data!$A$6:$BJ$216,O$1,0)","v":142},{"$f":"VLOOKUP($A194,outcome_data!$A$6:$BJ$216,P$1,0)","v":771726},{"$f":"VLOOKUP($A194,outcome_data!$A$6:$BJ$216,Q$1,0)","v":28034},{"$f":"VLOOKUP($A194,outcome_data!$A$6:$BJ$216,R$1,0)","v":32100},{"$f":"VLOOKUP($A194,outcome_data!$A$6:$BJ$216,S$1,0)","v":21942},{"$f":"VLOOKUP($A194,outcome_data!$A$6:$BJ$216,T$1,0)","v":32100},{"$f":"VLOOKUP($A194,outcome_data!$A$6:$BJ$216,U$1,0)","v":91185},{"$f":"VLOOKUP($A194,outcome_data!$A$6:$BJ$216,V$1,0)","v":118080},{"$f":"VLOOKUP($A194,outcome_data!$A$6:$BJ$216,W$1,0)","v":24098},{"$f":"VLOOKUP($A194,outcome_data!$A$6:$BJ$216,X$1,0)","v":34563},{"$f":"VLOOKUP($A194,outcome_data!$A$6:$BJ$216,Y$1,0)","v":4559},{"$f":"VLOOKUP($A194,outcome_data!$A$6:$BJ$216,Z$1,0)","v":5348},{"$f":"VLOOKUP($A194,outcome_data!$A$6:$BJ$216,AA$1,0)","v":3472},{"$f":"VLOOKUP($A194,outcome_data!$A$6:$BJ$216,AB$1,0)","v":5348},{"$f":"VLOOKUP($A194,outcome_data!$A$6:$BJ$216,AC$1,0)","v":14531},{"$f":"VLOOKUP($A194,outcome_data!$A$6:$BJ$216,AD$1,0)","v":17242},{"$f":"VLOOKUP($A194,outcome_data!$A$6:$BJ$216,AE$1,0)","v":10827},{"$f":"VLOOKUP($A194,outcome_data!$A$6:$BJ$216,AF$1,0)","v":17242}]
["11M","NHS Gloucestershire",{"$f":"VLOOKUP($A195,outcome_data!$A$6:$BJ$216,C$1,0)","v":364},{"$f":"VLOOKUP($A195,outcome_data!$A$6:$BJ$216,D$1,0)","v":564889},{"$f":"VLOOKUP($A195,outcome_data!$A$6:$BJ$216,E$1,0)","v":1021},{"$f":"VLOOKUP($A195,outcome_data!$A$6:$BJ$216,F$1,0)","v":620440},{"$f":"VLOOKUP($A195,outcome_data!$A$6:$BJ$216,G$1,0)","v":2823},{"$f":"VLOOKUP($A195,outcome_data!$A$6:$BJ$216,H$1,0)","v":620440},{"$f":"VLOOKUP($A195,outcome_data!$A$6:$BJ$216,I$1,0)","v":647},{"$f":"VLOOKUP($A195,outcome_data!$A$6:$BJ$216,J$1,0)","v":620440},{"$f":"VLOOKUP($A195,outcome_data!$A$6:$BJ$216,K$1,0)","v":2413},{"$f":"VLOOKUP($A195,outcome_data!$A$6:$BJ$216,L$1,0)","v":620440},{"$f":"VLOOKUP($A195,outcome_data!$A$6:$BJ$216,M$1,0)","v":770},{"$f":"VLOOKUP($A195,outcome_data!$A$6:$BJ$216,N$1,0)","v":620440},{"$f":"VLOOKUP($A195,outcome_data!$A$6:$BJ$216,O$1,0)","v":270},{"$f":"VLOOKUP($A195,outcome_data!$A$6:$BJ$216,P$1,0)","v":620440},{"$f":"VLOOKUP($A195,outcome_data!$A$6:$BJ$216,Q$1,0)","v":17745},{"$f":"VLOOKUP($A195,outcome_data!$A$6:$BJ$216,R$1,0)","v":19963},{"$f":"VLOOKUP($A195,outcome_data!$A$6:$BJ$216,S$1,0)","v":14352},{"$f":"VLOOKUP($A195,outcome_data!$A$6:$BJ$216,T$1,0)","v":19963},{"$f":"VLOOKUP($A195,outcome_data!$A$6:$BJ$216,U$1,0)","v":66807},{"$f":"VLOOKUP($A195,outcome_data!$A$6:$BJ$216,V$1,0)","v":85553},{"$f":"VLOOKUP($A195,outcome_data!$A$6:$BJ$216,W$1,0)","v":21320},{"$f":"VLOOKUP($A195,outcome_data!$A$6:$BJ$216,X$1,0)","v":29811},{"$f":"VLOOKUP($A195,outcome_data!$A$6:$BJ$216,Y$1,0)","v":3154},{"$f":"VLOOKUP($A195,outcome_data!$A$6:$BJ$216,Z$1,0)","v":3643},{"$f":"VLOOKUP($A195,outcome_data!$A$6:$BJ$216,AA$1,0)","v":2491},{"$f":"VLOOKUP($A195,outcome_data!$A$6:$BJ$216,AB$1,0)","v":3643},{"$f":"VLOOKUP($A195,outcome_data!$A$6:$BJ$216,AC$1,0)","v":9878},{"$f":"VLOOKUP($A195,outcome_data!$A$6:$BJ$216,AD$1,0)","v":11559},{"$f":"VLOOKUP($A195,outcome_data!$A$6:$BJ$216,AE$1,0)","v":7563},{"$f":"VLOOKUP($A195,outcome_data!$A$6:$BJ$216,AF$1,0)","v":11559}]
["11N","NHS Kernow",{"$f":"VLOOKUP($A196,outcome_data!$A$6:$BJ$216,C$1,0)","v":401},{"$f":"VLOOKUP($A196,outcome_data!$A$6:$BJ$216,D$1,0)","v":502695},{"$f":"VLOOKUP($A196,outcome_data!$A$6:$BJ$216,E$1,0)","v":1406},{"$f":"VLOOKUP($A196,outcome_data!$A$6:$BJ$216,F$1,0)","v":558443},{"$f":"VLOOKUP($A196,outcome_data!$A$6:$BJ$216,G$1,0)","v":3171},{"$f":"VLOOKUP($A196,outcome_data!$A$6:$BJ$216,H$1,0)","v":558443},{"$f":"VLOOKUP($A196,outcome_data!$A$6:$BJ$216,I$1,0)","v":712},{"$f":"VLOOKUP($A196,outcome_data!$A$6:$BJ$216,J$1,0)","v":558443},{"$f":"VLOOKUP($A196,outcome_data!$A$6:$BJ$216,K$1,0)","v":2246},{"$f":"VLOOKUP($A196,outcome_data!$A$6:$BJ$216,L$1,0)","v":558443},{"$f":"VLOOKUP($A196,outcome_data!$A$6:$BJ$216,M$1,0)","v":952},{"$f":"VLOOKUP($A196,outcome_data!$A$6:$BJ$216,N$1,0)","v":558443},{"$f":"VLOOKUP($A196,outcome_data!$A$6:$BJ$216,O$1,0)","v":261},{"$f":"VLOOKUP($A196,outcome_data!$A$6:$BJ$216,P$1,0)","v":558443},{"$f":"VLOOKUP($A196,outcome_data!$A$6:$BJ$216,Q$1,0)","v":19771},{"$f":"VLOOKUP($A196,outcome_data!$A$6:$BJ$216,R$1,0)","v":22394},{"$f":"VLOOKUP($A196,outcome_data!$A$6:$BJ$216,S$1,0)","v":16278},{"$f":"VLOOKUP($A196,outcome_data!$A$6:$BJ$216,T$1,0)","v":22394},{"$f":"VLOOKUP($A196,outcome_data!$A$6:$BJ$216,U$1,0)","v":65949},{"$f":"VLOOKUP($A196,outcome_data!$A$6:$BJ$216,V$1,0)","v":83403},{"$f":"VLOOKUP($A196,outcome_data!$A$6:$BJ$216,W$1,0)","v":16406},{"$f":"VLOOKUP($A196,outcome_data!$A$6:$BJ$216,X$1,0)","v":23474},{"$f":"VLOOKUP($A196,outcome_data!$A$6:$BJ$216,Y$1,0)","v":3618},{"$f":"VLOOKUP($A196,outcome_data!$A$6:$BJ$216,Z$1,0)","v":4174},{"$f":"VLOOKUP($A196,outcome_data!$A$6:$BJ$216,AA$1,0)","v":2904},{"$f":"VLOOKUP($A196,outcome_data!$A$6:$BJ$216,AB$1,0)","v":4174},{"$f":"VLOOKUP($A196,outcome_data!$A$6:$BJ$216,AC$1,0)","v":11070},{"$f":"VLOOKUP($A196,outcome_data!$A$6:$BJ$216,AD$1,0)","v":13055},{"$f":"VLOOKUP($A196,outcome_data!$A$6:$BJ$216,AE$1,0)","v":8635},{"$f":"VLOOKUP($A196,outcome_data!$A$6:$BJ$216,AF$1,0)","v":13055}]
["11T","NHS North Somerset",{"$f":"VLOOKUP($A197,outcome_data!$A$6:$BJ$216,C$1,0)","v":134},{"$f":"VLOOKUP($A197,outcome_data!$A$6:$BJ$216,D$1,0)","v":191791},{"$f":"VLOOKUP($A197,outcome_data!$A$6:$BJ$216,E$1,0)","v":398},{"$f":"VLOOKUP($A197,outcome_data!$A$6:$BJ$216,F$1,0)","v":212746},{"$f":"VLOOKUP($A197,outcome_data!$A$6:$BJ$216,G$1,0)","v":1274},{"$f":"VLOOKUP($A197,outcome_data!$A$6:$BJ$216,H$1,0)","v":212746},{"$f":"VLOOKUP($A197,outcome_data!$A$6:$BJ$216,I$1,0)","v":257},{"$f":"VLOOKUP($A197,outcome_data!$A$6:$BJ$216,J$1,0)","v":212746},{"$f":"VLOOKUP($A197,outcome_data!$A$6:$BJ$216,K$1,0)","v":748},{"$f":"VLOOKUP($A197,outcome_data!$A$6:$BJ$216,L$1,0)","v":212746},{"$f":"VLOOKUP($A197,outcome_data!$A$6:$BJ$216,M$1,0)","v":361},{"$f":"VLOOKUP($A197,outcome_data!$A$6:$BJ$216,N$1,0)","v":212746},{"$f":"VLOOKUP($A197,outcome_data!$A$6:$BJ$216,O$1,0)","v":94},{"$f":"VLOOKUP($A197,outcome_data!$A$6:$BJ$216,P$1,0)","v":212746},{"$f":"VLOOKUP($A197,outcome_data!$A$6:$BJ$216,Q$1,0)","v":6973},{"$f":"VLOOKUP($A197,outcome_data!$A$6:$BJ$216,R$1,0)","v":7961},{"$f":"VLOOKUP($A197,outcome_data!$A$6:$BJ$216,S$1,0)","v":5469},{"$f":"VLOOKUP($A197,outcome_data!$A$6:$BJ$216,T$1,0)","v":7961},{"$f":"VLOOKUP($A197,outcome_data!$A$6:$BJ$216,U$1,0)","v":24976},{"$f":"VLOOKUP($A197,outcome_data!$A$6:$BJ$216,V$1,0)","v":32927},{"$f":"VLOOKUP($A197,outcome_data!$A$6:$BJ$216,W$1,0)","v":6051},{"$f":"VLOOKUP($A197,outcome_data!$A$6:$BJ$216,X$1,0)","v":8419},{"$f":"VLOOKUP($A197,outcome_data!$A$6:$BJ$216,Y$1,0)","v":1343},{"$f":"VLOOKUP($A197,outcome_data!$A$6:$BJ$216,Z$1,0)","v":1581},{"$f":"VLOOKUP($A197,outcome_data!$A$6:$BJ$216,AA$1,0)","v":1058},{"$f":"VLOOKUP($A197,outcome_data!$A$6:$BJ$216,AB$1,0)","v":1581},{"$f":"VLOOKUP($A197,outcome_data!$A$6:$BJ$216,AC$1,0)","v":4106},{"$f":"VLOOKUP($A197,outcome_data!$A$6:$BJ$216,AD$1,0)","v":4801},{"$f":"VLOOKUP($A197,outcome_data!$A$6:$BJ$216,AE$1,0)","v":3105},{"$f":"VLOOKUP($A197,outcome_data!$A$6:$BJ$216,AF$1,0)","v":4801}]
["11X","NHS Somerset",{"$f":"VLOOKUP($A198,outcome_data!$A$6:$BJ$216,C$1,0)","v":344},{"$f":"VLOOKUP($A198,outcome_data!$A$6:$BJ$216,D$1,0)","v":492394},{"$f":"VLOOKUP($A198,outcome_data!$A$6:$BJ$216,E$1,0)","v":1214},{"$f":"VLOOKUP($A198,outcome_data!$A$6:$BJ$216,F$1,0)","v":548327},{"$f":"VLOOKUP($A198,outcome_data!$A$6:$BJ$216,G$1,0)","v":2744},{"$f":"VLOOKUP($A198,outcome_data!$A$6:$BJ$216,H$1,0)","v":548327},{"$f":"VLOOKUP($A198,outcome_data!$A$6:$BJ$216,I$1,0)","v":805},{"$f":"VLOOKUP($A198,outcome_data!$A$6:$BJ$216,J$1,0)","v":548327},{"$f":"VLOOKUP($A198,outcome_data!$A$6:$BJ$216,K$1,0)","v":1881},{"$f":"VLOOKUP($A198,outcome_data!$A$6:$BJ$216,L$1,0)","v":548327},{"$f":"VLOOKUP($A198,outcome_data!$A$6:$BJ$216,M$1,0)","v":654},{"$f":"VLOOKUP($A198,outcome_data!$A$6:$BJ$216,N$1,0)","v":548327},{"$f":"VLOOKUP($A198,outcome_data!$A$6:$BJ$216,O$1,0)","v":212},{"$f":"VLOOKUP($A198,outcome_data!$A$6:$BJ$216,P$1,0)","v":548327},{"$f":"VLOOKUP($A198,outcome_data!$A$6:$BJ$216,Q$1,0)","v":18671},{"$f":"VLOOKUP($A198,outcome_data!$A$6:$BJ$216,R$1,0)","v":21160},{"$f":"VLOOKUP($A198,outcome_data!$A$6:$BJ$216,S$1,0)","v":15625},{"$f":"VLOOKUP($A198,outcome_data!$A$6:$BJ$216,T$1,0)","v":21160},{"$f":"VLOOKUP($A198,outcome_data!$A$6:$BJ$216,U$1,0)","v":69069},{"$f":"VLOOKUP($A198,outcome_data!$A$6:$BJ$216,V$1,0)","v":87354},{"$f":"VLOOKUP($A198,outcome_data!$A$6:$BJ$216,W$1,0)","v":17246},{"$f":"VLOOKUP($A198,outcome_data!$A$6:$BJ$216,X$1,0)","v":23672},{"$f":"VLOOKUP($A198,outcome_data!$A$6:$BJ$216,Y$1,0)","v":3798},{"$f":"VLOOKUP($A198,outcome_data!$A$6:$BJ$216,Z$1,0)","v":4376},{"$f":"VLOOKUP($A198,outcome_data!$A$6:$BJ$216,AA$1,0)","v":3171},{"$f":"VLOOKUP($A198,outcome_data!$A$6:$BJ$216,AB$1,0)","v":4376},{"$f":"VLOOKUP($A198,outcome_data!$A$6:$BJ$216,AC$1,0)","v":10343},{"$f":"VLOOKUP($A198,outcome_data!$A$6:$BJ$216,AD$1,0)","v":12016},{"$f":"VLOOKUP($A198,outcome_data!$A$6:$BJ$216,AE$1,0)","v":8495},{"$f":"VLOOKUP($A198,outcome_data!$A$6:$BJ$216,AF$1,0)","v":12016}]
["12A","NHS South Gloucestershire",{"$f":"VLOOKUP($A199,outcome_data!$A$6:$BJ$216,C$1,0)","v":128},{"$f":"VLOOKUP($A199,outcome_data!$A$6:$BJ$216,D$1,0)","v":238740},{"$f":"VLOOKUP($A199,outcome_data!$A$6:$BJ$216,E$1,0)","v":315},{"$f":"VLOOKUP($A199,outcome_data!$A$6:$BJ$216,F$1,0)","v":258991},{"$f":"VLOOKUP($A199,outcome_data!$A$6:$BJ$216,G$1,0)","v":955},{"$f":"VLOOKUP($A199,outcome_data!$A$6:$BJ$216,H$1,0)","v":258991},{"$f":"VLOOKUP($A199,outcome_data!$A$6:$BJ$216,I$1,0)","v":254},{"$f":"VLOOKUP($A199,outcome_data!$A$6:$BJ$216,J$1,0)","v":258991},{"$f":"VLOOKUP($A199,outcome_data!$A$6:$BJ$216,K$1,0)","v":597},{"$f":"VLOOKUP($A199,outcome_data!$A$6:$BJ$216,L$1,0)","v":258991},{"$f":"VLOOKUP($A199,outcome_data!$A$6:$BJ$216,M$1,0)","v":231},{"$f":"VLOOKUP($A199,outcome_data!$A$6:$BJ$216,N$1,0)","v":258991},{"$f":"VLOOKUP($A199,outcome_data!$A$6:$BJ$216,O$1,0)","v":68},{"$f":"VLOOKUP($A199,outcome_data!$A$6:$BJ$216,P$1,0)","v":258991},{"$f":"VLOOKUP($A199,outcome_data!$A$6:$BJ$216,Q$1,0)","v":7005},{"$f":"VLOOKUP($A199,outcome_data!$A$6:$BJ$216,R$1,0)","v":7816},{"$f":"VLOOKUP($A199,outcome_data!$A$6:$BJ$216,S$1,0)","v":5806},{"$f":"VLOOKUP($A199,outcome_data!$A$6:$BJ$216,T$1,0)","v":7816},{"$f":"VLOOKUP($A199,outcome_data!$A$6:$BJ$216,U$1,0)","v":27969},{"$f":"VLOOKUP($A199,outcome_data!$A$6:$BJ$216,V$1,0)","v":36122},{"$f":"VLOOKUP($A199,outcome_data!$A$6:$BJ$216,W$1,0)","v":7579},{"$f":"VLOOKUP($A199,outcome_data!$A$6:$BJ$216,X$1,0)","v":10372},{"$f":"VLOOKUP($A199,outcome_data!$A$6:$BJ$216,Y$1,0)","v":1441},{"$f":"VLOOKUP($A199,outcome_data!$A$6:$BJ$216,Z$1,0)","v":1658},{"$f":"VLOOKUP($A199,outcome_data!$A$6:$BJ$216,AA$1,0)","v":1180},{"$f":"VLOOKUP($A199,outcome_data!$A$6:$BJ$216,AB$1,0)","v":1658},{"$f":"VLOOKUP($A199,outcome_data!$A$6:$BJ$216,AC$1,0)","v":3854},{"$f":"VLOOKUP($A199,outcome_data!$A$6:$BJ$216,AD$1,0)","v":4392},{"$f":"VLOOKUP($A199,outcome_data!$A$6:$BJ$216,AE$1,0)","v":3074},{"$f":"VLOOKUP($A199,outcome_data!$A$6:$BJ$216,AF$1,0)","v":4392}]
["12D","NHS Swindon",{"$f":"VLOOKUP($A200,outcome_data!$A$6:$BJ$216,C$1,0)","v":128},{"$f":"VLOOKUP($A200,outcome_data!$A$6:$BJ$216,D$1,0)","v":208993},{"$f":"VLOOKUP($A200,outcome_data!$A$6:$BJ$216,E$1,0)","v":283},{"$f":"VLOOKUP($A200,outcome_data!$A$6:$BJ$216,F$1,0)","v":223041},{"$f":"VLOOKUP($A200,outcome_data!$A$6:$BJ$216,G$1,0)","v":872},{"$f":"VLOOKUP($A200,outcome_data!$A$6:$BJ$216,H$1,0)","v":223041},{"$f":"VLOOKUP($A200,outcome_data!$A$6:$BJ$216,I$1,0)","v":207},{"$f":"VLOOKUP($A200,outcome_data!$A$6:$BJ$216,J$1,0)","v":223041},{"$f":"VLOOKUP($A200,outcome_data!$A$6:$BJ$216,K$1,0)","v":684},{"$f":"VLOOKUP($A200,outcome_data!$A$6:$BJ$216,L$1,0)","v":223041},{"$f":"VLOOKUP($A200,outcome_data!$A$6:$BJ$216,M$1,0)","v":281},{"$f":"VLOOKUP($A200,outcome_data!$A$6:$BJ$216,N$1,0)","v":223041},{"$f":"VLOOKUP($A200,outcome_data!$A$6:$BJ$216,O$1,0)","v":47},{"$f":"VLOOKUP($A200,outcome_data!$A$6:$BJ$216,P$1,0)","v":223041},{"$f":"VLOOKUP($A200,outcome_data!$A$6:$BJ$216,Q$1,0)","v":5612},{"$f":"VLOOKUP($A200,outcome_data!$A$6:$BJ$216,R$1,0)","v":6301},{"$f":"VLOOKUP($A200,outcome_data!$A$6:$BJ$216,S$1,0)","v":4491},{"$f":"VLOOKUP($A200,outcome_data!$A$6:$BJ$216,T$1,0)","v":6301},{"$f":"VLOOKUP($A200,outcome_data!$A$6:$BJ$216,U$1,0)","v":23713},{"$f":"VLOOKUP($A200,outcome_data!$A$6:$BJ$216,V$1,0)","v":30346},{"$f":"VLOOKUP($A200,outcome_data!$A$6:$BJ$216,W$1,0)","v":2935},{"$f":"VLOOKUP($A200,outcome_data!$A$6:$BJ$216,X$1,0)","v":4118},{"$f":"VLOOKUP($A200,outcome_data!$A$6:$BJ$216,Y$1,0)","v":1127},{"$f":"VLOOKUP($A200,outcome_data!$A$6:$BJ$216,Z$1,0)","v":1326},{"$f":"VLOOKUP($A200,outcome_data!$A$6:$BJ$216,AA$1,0)","v":889},{"$f":"VLOOKUP($A200,outcome_data!$A$6:$BJ$216,AB$1,0)","v":1326},{"$f":"VLOOKUP($A200,outcome_data!$A$6:$BJ$216,AC$1,0)","v":2859},{"$f":"VLOOKUP($A200,outcome_data!$A$6:$BJ$216,AD$1,0)","v":3307},{"$f":"VLOOKUP($A200,outcome_data!$A$6:$BJ$216,AE$1,0)","v":2257},{"$f":"VLOOKUP($A200,outcome_data!$A$6:$BJ$216,AF$1,0)","v":3307}]
["12F","NHS Wirral",{"$f":"VLOOKUP($A201,outcome_data!$A$6:$BJ$216,C$1,0)","v":234},{"$f":"VLOOKUP($A201,outcome_data!$A$6:$BJ$216,D$1,0)","v":301039},{"$f":"VLOOKUP($A201,outcome_data!$A$6:$BJ$216,E$1,0)","v":617},{"$f":"VLOOKUP($A201,outcome_data!$A$6:$BJ$216,F$1,0)","v":331149},{"$f":"VLOOKUP($A201,outcome_data!$A$6:$BJ$216,G$1,0)","v":1951},{"$f":"VLOOKUP($A201,outcome_data!$A$6:$BJ$216,H$1,0)","v":331149},{"$f":"VLOOKUP($A201,outcome_data!$A$6:$BJ$216,I$1,0)","v":446},{"$f":"VLOOKUP($A201,outcome_data!$A$6:$BJ$216,J$1,0)","v":331149},{"$f":"VLOOKUP($A201,outcome_data!$A$6:$BJ$216,K$1,0)","v":1578},{"$f":"VLOOKUP($A201,outcome_data!$A$6:$BJ$216,L$1,0)","v":331149},{"$f":"VLOOKUP($A201,outcome_data!$A$6:$BJ$216,M$1,0)","v":338},{"$f":"VLOOKUP($A201,outcome_data!$A$6:$BJ$216,N$1,0)","v":331149},{"$f":"VLOOKUP($A201,outcome_data!$A$6:$BJ$216,O$1,0)","v":141},{"$f":"VLOOKUP($A201,outcome_data!$A$6:$BJ$216,P$1,0)","v":331149},{"$f":"VLOOKUP($A201,outcome_data!$A$6:$BJ$216,Q$1,0)","v":11800},{"$f":"VLOOKUP($A201,outcome_data!$A$6:$BJ$216,R$1,0)","v":13458},{"$f":"VLOOKUP($A201,outcome_data!$A$6:$BJ$216,S$1,0)","v":9287},{"$f":"VLOOKUP($A201,outcome_data!$A$6:$BJ$216,T$1,0)","v":13427},{"$f":"VLOOKUP($A201,outcome_data!$A$6:$BJ$216,U$1,0)","v":38633},{"$f":"VLOOKUP($A201,outcome_data!$A$6:$BJ$216,V$1,0)","v":50226},{"$f":"VLOOKUP($A201,outcome_data!$A$6:$BJ$216,W$1,0)","v":9753},{"$f":"VLOOKUP($A201,outcome_data!$A$6:$BJ$216,X$1,0)","v":13369},{"$f":"VLOOKUP($A201,outcome_data!$A$6:$BJ$216,Y$1,0)","v":2547},{"$f":"VLOOKUP($A201,outcome_data!$A$6:$BJ$216,Z$1,0)","v":2988},{"$f":"VLOOKUP($A201,outcome_data!$A$6:$BJ$216,AA$1,0)","v":1914},{"$f":"VLOOKUP($A201,outcome_data!$A$6:$BJ$216,AB$1,0)","v":2982},{"$f":"VLOOKUP($A201,outcome_data!$A$6:$BJ$216,AC$1,0)","v":6152},{"$f":"VLOOKUP($A201,outcome_data!$A$6:$BJ$216,AD$1,0)","v":7239},{"$f":"VLOOKUP($A201,outcome_data!$A$6:$BJ$216,AE$1,0)","v":4849},{"$f":"VLOOKUP($A201,outcome_data!$A$6:$BJ$216,AF$1,0)","v":7234}]
["13P","NHS Birmingham Crosscity",{"$f":"VLOOKUP($A202,outcome_data!$A$6:$BJ$216,C$1,0)","v":452},{"$f":"VLOOKUP($A202,outcome_data!$A$6:$BJ$216,D$1,0)","v":685411},{"$f":"VLOOKUP($A202,outcome_data!$A$6:$BJ$216,E$1,0)","v":974},{"$f":"VLOOKUP($A202,outcome_data!$A$6:$BJ$216,F$1,0)","v":736916},{"$f":"VLOOKUP($A202,outcome_data!$A$6:$BJ$216,G$1,0)","v":3192},{"$f":"VLOOKUP($A202,outcome_data!$A$6:$BJ$216,H$1,0)","v":736916},{"$f":"VLOOKUP($A202,outcome_data!$A$6:$BJ$216,I$1,0)","v":921},{"$f":"VLOOKUP($A202,outcome_data!$A$6:$BJ$216,J$1,0)","v":736916},{"$f":"VLOOKUP($A202,outcome_data!$A$6:$BJ$216,K$1,0)","v":2115},{"$f":"VLOOKUP($A202,outcome_data!$A$6:$BJ$216,L$1,0)","v":736916},{"$f":"VLOOKUP($A202,outcome_data!$A$6:$BJ$216,M$1,0)","v":1190},{"$f":"VLOOKUP($A202,outcome_data!$A$6:$BJ$216,N$1,0)","v":736916},{"$f":"VLOOKUP($A202,outcome_data!$A$6:$BJ$216,O$1,0)","v":276},{"$f":"VLOOKUP($A202,outcome_data!$A$6:$BJ$216,P$1,0)","v":736916},{"$f":"VLOOKUP($A202,outcome_data!$A$6:$BJ$216,Q$1,0)","v":20218},{"$f":"VLOOKUP($A202,outcome_data!$A$6:$BJ$216,R$1,0)","v":23191},{"$f":"VLOOKUP($A202,outcome_data!$A$6:$BJ$216,S$1,0)","v":17182},{"$f":"VLOOKUP($A202,outcome_data!$A$6:$BJ$216,T$1,0)","v":23186},{"$f":"VLOOKUP($A202,outcome_data!$A$6:$BJ$216,U$1,0)","v":72657},{"$f":"VLOOKUP($A202,outcome_data!$A$6:$BJ$216,V$1,0)","v":94715},{"$f":"VLOOKUP($A202,outcome_data!$A$6:$BJ$216,W$1,0)","v":16350},{"$f":"VLOOKUP($A202,outcome_data!$A$6:$BJ$216,X$1,0)","v":23569},{"$f":"VLOOKUP($A202,outcome_data!$A$6:$BJ$216,Y$1,0)","v":4016},{"$f":"VLOOKUP($A202,outcome_data!$A$6:$BJ$216,Z$1,0)","v":4680},{"$f":"VLOOKUP($A202,outcome_data!$A$6:$BJ$216,AA$1,0)","v":3341},{"$f":"VLOOKUP($A202,outcome_data!$A$6:$BJ$216,AB$1,0)","v":4678},{"$f":"VLOOKUP($A202,outcome_data!$A$6:$BJ$216,AC$1,0)","v":9626},{"$f":"VLOOKUP($A202,outcome_data!$A$6:$BJ$216,AD$1,0)","v":11405},{"$f":"VLOOKUP($A202,outcome_data!$A$6:$BJ$216,AE$1,0)","v":8056},{"$f":"VLOOKUP($A202,outcome_data!$A$6:$BJ$216,AF$1,0)","v":11404}]
["99A","NHS Liverpool",{"$f":"VLOOKUP($A203,outcome_data!$A$6:$BJ$216,C$1,0)","v":347},{"$f":"VLOOKUP($A203,outcome_data!$A$6:$BJ$216,D$1,0)","v":463694},{"$f":"VLOOKUP($A203,outcome_data!$A$6:$BJ$216,E$1,0)","v":632},{"$f":"VLOOKUP($A203,outcome_data!$A$6:$BJ$216,F$1,0)","v":496221},{"$f":"VLOOKUP($A203,outcome_data!$A$6:$BJ$216,G$1,0)","v":2439},{"$f":"VLOOKUP($A203,outcome_data!$A$6:$BJ$216,H$1,0)","v":496221},{"$f":"VLOOKUP($A203,outcome_data!$A$6:$BJ$216,I$1,0)","v":430},{"$f":"VLOOKUP($A203,outcome_data!$A$6:$BJ$216,J$1,0)","v":496221},{"$f":"VLOOKUP($A203,outcome_data!$A$6:$BJ$216,K$1,0)","v":1626},{"$f":"VLOOKUP($A203,outcome_data!$A$6:$BJ$216,L$1,0)","v":496221},{"$f":"VLOOKUP($A203,outcome_data!$A$6:$BJ$216,M$1,0)","v":509},{"$f":"VLOOKUP($A203,outcome_data!$A$6:$BJ$216,N$1,0)","v":496221},{"$f":"VLOOKUP($A203,outcome_data!$A$6:$BJ$216,O$1,0)","v":188},{"$f":"VLOOKUP($A203,outcome_data!$A$6:$BJ$216,P$1,0)","v":496221},{"$f":"VLOOKUP($A203,outcome_data!$A$6:$BJ$216,Q$1,0)","v":16354},{"$f":"VLOOKUP($A203,outcome_data!$A$6:$BJ$216,R$1,0)","v":18775},{"$f":"VLOOKUP($A203,outcome_data!$A$6:$BJ$216,S$1,0)","v":13546},{"$f":"VLOOKUP($A203,outcome_data!$A$6:$BJ$216,T$1,0)","v":18775},{"$f":"VLOOKUP($A203,outcome_data!$A$6:$BJ$216,U$1,0)","v":51195},{"$f":"VLOOKUP($A203,outcome_data!$A$6:$BJ$216,V$1,0)","v":66803},{"$f":"VLOOKUP($A203,outcome_data!$A$6:$BJ$216,W$1,0)","v":14079},{"$f":"VLOOKUP($A203,outcome_data!$A$6:$BJ$216,X$1,0)","v":19357},{"$f":"VLOOKUP($A203,outcome_data!$A$6:$BJ$216,Y$1,0)","v":3692},{"$f":"VLOOKUP($A203,outcome_data!$A$6:$BJ$216,Z$1,0)","v":4318},{"$f":"VLOOKUP($A203,outcome_data!$A$6:$BJ$216,AA$1,0)","v":2988},{"$f":"VLOOKUP($A203,outcome_data!$A$6:$BJ$216,AB$1,0)","v":4318},{"$f":"VLOOKUP($A203,outcome_data!$A$6:$BJ$216,AC$1,0)","v":7269},{"$f":"VLOOKUP($A203,outcome_data!$A$6:$BJ$216,AD$1,0)","v":8615},{"$f":"VLOOKUP($A203,outcome_data!$A$6:$BJ$216,AE$1,0)","v":6007},{"$f":"VLOOKUP($A203,outcome_data!$A$6:$BJ$216,AF$1,0)","v":8615}]
["99C","NHS North Tyneside",{"$f":"VLOOKUP($A204,outcome_data!$A$6:$BJ$216,C$1,0)","v":144},{"$f":"VLOOKUP($A204,outcome_data!$A$6:$BJ$216,D$1,0)","v":196530},{"$f":"VLOOKUP($A204,outcome_data!$A$6:$BJ$216,E$1,0)","v":452},{"$f":"VLOOKUP($A204,outcome_data!$A$6:$BJ$216,F$1,0)","v":215344},{"$f":"VLOOKUP($A204,outcome_data!$A$6:$BJ$216,G$1,0)","v":1276},{"$f":"VLOOKUP($A204,outcome_data!$A$6:$BJ$216,H$1,0)","v":215344},{"$f":"VLOOKUP($A204,outcome_data!$A$6:$BJ$216,I$1,0)","v":279},{"$f":"VLOOKUP($A204,outcome_data!$A$6:$BJ$216,J$1,0)","v":215344},{"$f":"VLOOKUP($A204,outcome_data!$A$6:$BJ$216,K$1,0)","v":709},{"$f":"VLOOKUP($A204,outcome_data!$A$6:$BJ$216,L$1,0)","v":215344},{"$f":"VLOOKUP($A204,outcome_data!$A$6:$BJ$216,M$1,0)","v":387},{"$f":"VLOOKUP($A204,outcome_data!$A$6:$BJ$216,N$1,0)","v":215344},{"$f":"VLOOKUP($A204,outcome_data!$A$6:$BJ$216,O$1,0)","v":37},{"$f":"VLOOKUP($A204,outcome_data!$A$6:$BJ$216,P$1,0)","v":215344},{"$f":"VLOOKUP($A204,outcome_data!$A$6:$BJ$216,Q$1,0)","v":8546},{"$f":"VLOOKUP($A204,outcome_data!$A$6:$BJ$216,R$1,0)","v":9698},{"$f":"VLOOKUP($A204,outcome_data!$A$6:$BJ$216,S$1,0)","v":7134},{"$f":"VLOOKUP($A204,outcome_data!$A$6:$BJ$216,T$1,0)","v":9698},{"$f":"VLOOKUP($A204,outcome_data!$A$6:$BJ$216,U$1,0)","v":25513},{"$f":"VLOOKUP($A204,outcome_data!$A$6:$BJ$216,V$1,0)","v":33122},{"$f":"VLOOKUP($A204,outcome_data!$A$6:$BJ$216,W$1,0)","v":7210},{"$f":"VLOOKUP($A204,outcome_data!$A$6:$BJ$216,X$1,0)","v":10164},{"$f":"VLOOKUP($A204,outcome_data!$A$6:$BJ$216,Y$1,0)","v":1769},{"$f":"VLOOKUP($A204,outcome_data!$A$6:$BJ$216,Z$1,0)","v":2094},{"$f":"VLOOKUP($A204,outcome_data!$A$6:$BJ$216,AA$1,0)","v":1457},{"$f":"VLOOKUP($A204,outcome_data!$A$6:$BJ$216,AB$1,0)","v":2094},{"$f":"VLOOKUP($A204,outcome_data!$A$6:$BJ$216,AC$1,0)","v":4337},{"$f":"VLOOKUP($A204,outcome_data!$A$6:$BJ$216,AD$1,0)","v":5129},{"$f":"VLOOKUP($A204,outcome_data!$A$6:$BJ$216,AE$1,0)","v":3579},{"$f":"VLOOKUP($A204,outcome_data!$A$6:$BJ$216,AF$1,0)","v":5129}]
["99D","NHS South Lincolnshire",{"$f":"VLOOKUP($A205,outcome_data!$A$6:$BJ$216,C$1,0)","v":115},{"$f":"VLOOKUP($A205,outcome_data!$A$6:$BJ$216,D$1,0)","v":142162},{"$f":"VLOOKUP($A205,outcome_data!$A$6:$BJ$216,E$1,0)","v":269},{"$f":"VLOOKUP($A205,outcome_data!$A$6:$BJ$216,F$1,0)","v":157441},{"$f":"VLOOKUP($A205,outcome_data!$A$6:$BJ$216,G$1,0)","v":1071},{"$f":"VLOOKUP($A205,outcome_data!$A$6:$BJ$216,H$1,0)","v":157441},{"$f":"VLOOKUP($A205,outcome_data!$A$6:$BJ$216,I$1,0)","v":212},{"$f":"VLOOKUP($A205,outcome_data!$A$6:$BJ$216,J$1,0)","v":157441},{"$f":"VLOOKUP($A205,outcome_data!$A$6:$BJ$216,K$1,0)","v":523},{"$f":"VLOOKUP($A205,outcome_data!$A$6:$BJ$216,L$1,0)","v":157441},{"$f":"VLOOKUP($A205,outcome_data!$A$6:$BJ$216,M$1,0)","v":193},{"$f":"VLOOKUP($A205,outcome_data!$A$6:$BJ$216,N$1,0)","v":157441},{"$f":"VLOOKUP($A205,outcome_data!$A$6:$BJ$216,O$1,0)","v":84},{"$f":"VLOOKUP($A205,outcome_data!$A$6:$BJ$216,P$1,0)","v":157441},{"$f":"VLOOKUP($A205,outcome_data!$A$6:$BJ$216,Q$1,0)","v":5734},{"$f":"VLOOKUP($A205,outcome_data!$A$6:$BJ$216,R$1,0)","v":6455},{"$f":"VLOOKUP($A205,outcome_data!$A$6:$BJ$216,S$1,0)","v":4758},{"$f":"VLOOKUP($A205,outcome_data!$A$6:$BJ$216,T$1,0)","v":6455},{"$f":"VLOOKUP($A205,outcome_data!$A$6:$BJ$216,U$1,0)","v":21591},{"$f":"VLOOKUP($A205,outcome_data!$A$6:$BJ$216,V$1,0)","v":26655},{"$f":"VLOOKUP($A205,outcome_data!$A$6:$BJ$216,W$1,0)","v":5127},{"$f":"VLOOKUP($A205,outcome_data!$A$6:$BJ$216,X$1,0)","v":6986},{"$f":"VLOOKUP($A205,outcome_data!$A$6:$BJ$216,Y$1,0)","v":917},{"$f":"VLOOKUP($A205,outcome_data!$A$6:$BJ$216,Z$1,0)","v":1047},{"$f":"VLOOKUP($A205,outcome_data!$A$6:$BJ$216,AA$1,0)","v":725},{"$f":"VLOOKUP($A205,outcome_data!$A$6:$BJ$216,AB$1,0)","v":1047},{"$f":"VLOOKUP($A205,outcome_data!$A$6:$BJ$216,AC$1,0)","v":2712},{"$f":"VLOOKUP($A205,outcome_data!$A$6:$BJ$216,AD$1,0)","v":3140},{"$f":"VLOOKUP($A205,outcome_data!$A$6:$BJ$216,AE$1,0)","v":2202},{"$f":"VLOOKUP($A205,outcome_data!$A$6:$BJ$216,AF$1,0)","v":3140}]
["99E","NHS Basildon and Brentwood",{"$f":"VLOOKUP($A206,outcome_data!$A$6:$BJ$216,C$1,0)","v":145},{"$f":"VLOOKUP($A206,outcome_data!$A$6:$BJ$216,D$1,0)","v":243432},{"$f":"VLOOKUP($A206,outcome_data!$A$6:$BJ$216,E$1,0)","v":404},{"$f":"VLOOKUP($A206,outcome_data!$A$6:$BJ$216,F$1,0)","v":264618},{"$f":"VLOOKUP($A206,outcome_data!$A$6:$BJ$216,G$1,0)","v":1092},{"$f":"VLOOKUP($A206,outcome_data!$A$6:$BJ$216,H$1,0)","v":264618},{"$f":"VLOOKUP($A206,outcome_data!$A$6:$BJ$216,I$1,0)","v":267},{"$f":"VLOOKUP($A206,outcome_data!$A$6:$BJ$216,J$1,0)","v":264618},{"$f":"VLOOKUP($A206,outcome_data!$A$6:$BJ$216,K$1,0)","v":665},{"$f":"VLOOKUP($A206,outcome_data!$A$6:$BJ$216,L$1,0)","v":264618},{"$f":"VLOOKUP($A206,outcome_data!$A$6:$BJ$216,M$1,0)","v":310},{"$f":"VLOOKUP($A206,outcome_data!$A$6:$BJ$216,N$1,0)","v":264618},{"$f":"VLOOKUP($A206,outcome_data!$A$6:$BJ$216,O$1,0)","v":83},{"$f":"VLOOKUP($A206,outcome_data!$A$6:$BJ$216,P$1,0)","v":264618},{"$f":"VLOOKUP($A206,outcome_data!$A$6:$BJ$216,Q$1,0)","v":7675},{"$f":"VLOOKUP($A206,outcome_data!$A$6:$BJ$216,R$1,0)","v":8602},{"$f":"VLOOKUP($A206,outcome_data!$A$6:$BJ$216,S$1,0)","v":6165},{"$f":"VLOOKUP($A206,outcome_data!$A$6:$BJ$216,T$1,0)","v":8595},{"$f":"VLOOKUP($A206,outcome_data!$A$6:$BJ$216,U$1,0)","v":31179},{"$f":"VLOOKUP($A206,outcome_data!$A$6:$BJ$216,V$1,0)","v":39733},{"$f":"VLOOKUP($A206,outcome_data!$A$6:$BJ$216,W$1,0)","v":7722},{"$f":"VLOOKUP($A206,outcome_data!$A$6:$BJ$216,X$1,0)","v":10554},{"$f":"VLOOKUP($A206,outcome_data!$A$6:$BJ$216,Y$1,0)","v":1134},{"$f":"VLOOKUP($A206,outcome_data!$A$6:$BJ$216,Z$1,0)","v":1306},{"$f":"VLOOKUP($A206,outcome_data!$A$6:$BJ$216,AA$1,0)","v":852},{"$f":"VLOOKUP($A206,outcome_data!$A$6:$BJ$216,AB$1,0)","v":1305},{"$f":"VLOOKUP($A206,outcome_data!$A$6:$BJ$216,AC$1,0)","v":4002},{"$f":"VLOOKUP($A206,outcome_data!$A$6:$BJ$216,AD$1,0)","v":4643},{"$f":"VLOOKUP($A206,outcome_data!$A$6:$BJ$216,AE$1,0)","v":2960},{"$f":"VLOOKUP($A206,outcome_data!$A$6:$BJ$216,AF$1,0)","v":4639}]
["99F","NHS Castle Point and Rochford",{"$f":"VLOOKUP($A207,outcome_data!$A$6:$BJ$216,C$1,0)","v":104},{"$f":"VLOOKUP($A207,outcome_data!$A$6:$BJ$216,D$1,0)","v":162846},{"$f":"VLOOKUP($A207,outcome_data!$A$6:$BJ$216,E$1,0)","v":309},{"$f":"VLOOKUP($A207,outcome_data!$A$6:$BJ$216,F$1,0)","v":180715},{"$f":"VLOOKUP($A207,outcome_data!$A$6:$BJ$216,G$1,0)","v":1172},{"$f":"VLOOKUP($A207,outcome_data!$A$6:$BJ$216,H$1,0)","v":180715},{"$f":"VLOOKUP($A207,outcome_data!$A$6:$BJ$216,I$1,0)","v":247},{"$f":"VLOOKUP($A207,outcome_data!$A$6:$BJ$216,J$1,0)","v":180715},{"$f":"VLOOKUP($A207,outcome_data!$A$6:$BJ$216,K$1,0)","v":774},{"$f":"VLOOKUP($A207,outcome_data!$A$6:$BJ$216,L$1,0)","v":180715},{"$f":"VLOOKUP($A207,outcome_data!$A$6:$BJ$216,M$1,0)","v":238},{"$f":"VLOOKUP($A207,outcome_data!$A$6:$BJ$216,N$1,0)","v":180715},{"$f":"VLOOKUP($A207,outcome_data!$A$6:$BJ$216,O$1,0)","v":65},{"$f":"VLOOKUP($A207,outcome_data!$A$6:$BJ$216,P$1,0)","v":180715},{"$f":"VLOOKUP($A207,outcome_data!$A$6:$BJ$216,Q$1,0)","v":5752},{"$f":"VLOOKUP($A207,outcome_data!$A$6:$BJ$216,R$1,0)","v":6716},{"$f":"VLOOKUP($A207,outcome_data!$A$6:$BJ$216,S$1,0)","v":4773},{"$f":"VLOOKUP($A207,outcome_data!$A$6:$BJ$216,T$1,0)","v":6716},{"$f":"VLOOKUP($A207,outcome_data!$A$6:$BJ$216,U$1,0)","v":23485},{"$f":"VLOOKUP($A207,outcome_data!$A$6:$BJ$216,V$1,0)","v":30729},{"$f":"VLOOKUP($A207,outcome_data!$A$6:$BJ$216,W$1,0)","v":4099},{"$f":"VLOOKUP($A207,outcome_data!$A$6:$BJ$216,X$1,0)","v":5913},{"$f":"VLOOKUP($A207,outcome_data!$A$6:$BJ$216,Y$1,0)","v":878},{"$f":"VLOOKUP($A207,outcome_data!$A$6:$BJ$216,Z$1,0)","v":1062},{"$f":"VLOOKUP($A207,outcome_data!$A$6:$BJ$216,AA$1,0)","v":688},{"$f":"VLOOKUP($A207,outcome_data!$A$6:$BJ$216,AB$1,0)","v":1062},{"$f":"VLOOKUP($A207,outcome_data!$A$6:$BJ$216,AC$1,0)","v":2534},{"$f":"VLOOKUP($A207,outcome_data!$A$6:$BJ$216,AD$1,0)","v":3059},{"$f":"VLOOKUP($A207,outcome_data!$A$6:$BJ$216,AE$1,0)","v":2097},{"$f":"VLOOKUP($A207,outcome_data!$A$6:$BJ$216,AF$1,0)","v":3059}]
["99G","NHS Southend",{"$f":"VLOOKUP($A208,outcome_data!$A$6:$BJ$216,C$1,0)","v":136},{"$f":"VLOOKUP($A208,outcome_data!$A$6:$BJ$216,D$1,0)","v":168658},{"$f":"VLOOKUP($A208,outcome_data!$A$6:$BJ$216,E$1,0)","v":308},{"$f":"VLOOKUP($A208,outcome_data!$A$6:$BJ$216,F$1,0)","v":184741},{"$f":"VLOOKUP($A208,outcome_data!$A$6:$BJ$216,G$1,0)","v":1095},{"$f":"VLOOKUP($A208,outcome_data!$A$6:$BJ$216,H$1,0)","v":184741},{"$f":"VLOOKUP($A208,outcome_data!$A$6:$BJ$216,I$1,0)","v":225},{"$f":"VLOOKUP($A208,outcome_data!$A$6:$BJ$216,J$1,0)","v":184741},{"$f":"VLOOKUP($A208,outcome_data!$A$6:$BJ$216,K$1,0)","v":711},{"$f":"VLOOKUP($A208,outcome_data!$A$6:$BJ$216,L$1,0)","v":184741},{"$f":"VLOOKUP($A208,outcome_data!$A$6:$BJ$216,M$1,0)","v":239},{"$f":"VLOOKUP($A208,outcome_data!$A$6:$BJ$216,N$1,0)","v":184741},{"$f":"VLOOKUP($A208,outcome_data!$A$6:$BJ$216,O$1,0)","v":48},{"$f":"VLOOKUP($A208,outcome_data!$A$6:$BJ$216,P$1,0)","v":184741},{"$f":"VLOOKUP($A208,outcome_data!$A$6:$BJ$216,Q$1,0)","v":5381},{"$f":"VLOOKUP($A208,outcome_data!$A$6:$BJ$216,R$1,0)","v":6190},{"$f":"VLOOKUP($A208,outcome_data!$A$6:$BJ$216,S$1,0)","v":4188},{"$f":"VLOOKUP($A208,outcome_data!$A$6:$BJ$216,T$1,0)","v":6190},{"$f":"VLOOKUP($A208,outcome_data!$A$6:$BJ$216,U$1,0)","v":21343},{"$f":"VLOOKUP($A208,outcome_data!$A$6:$BJ$216,V$1,0)","v":28077},{"$f":"VLOOKUP($A208,outcome_data!$A$6:$BJ$216,W$1,0)","v":4111},{"$f":"VLOOKUP($A208,outcome_data!$A$6:$BJ$216,X$1,0)","v":5592},{"$f":"VLOOKUP($A208,outcome_data!$A$6:$BJ$216,Y$1,0)","v":807},{"$f":"VLOOKUP($A208,outcome_data!$A$6:$BJ$216,Z$1,0)","v":966},{"$f":"VLOOKUP($A208,outcome_data!$A$6:$BJ$216,AA$1,0)","v":614},{"$f":"VLOOKUP($A208,outcome_data!$A$6:$BJ$216,AB$1,0)","v":966},{"$f":"VLOOKUP($A208,outcome_data!$A$6:$BJ$216,AC$1,0)","v":2620},{"$f":"VLOOKUP($A208,outcome_data!$A$6:$BJ$216,AD$1,0)","v":3071},{"$f":"VLOOKUP($A208,outcome_data!$A$6:$BJ$216,AE$1,0)","v":1992},{"$f":"VLOOKUP($A208,outcome_data!$A$6:$BJ$216,AF$1,0)","v":3071}]
["99H","NHS Surrey Downs",{"$f":"VLOOKUP($A209,outcome_data!$A$6:$BJ$216,C$1,0)","v":125},{"$f":"VLOOKUP($A209,outcome_data!$A$6:$BJ$216,D$1,0)","v":266909},{"$f":"VLOOKUP($A209,outcome_data!$A$6:$BJ$216,E$1,0)","v":386},{"$f":"VLOOKUP($A209,outcome_data!$A$6:$BJ$216,F$1,0)","v":293020},{"$f":"VLOOKUP($A209,outcome_data!$A$6:$BJ$216,G$1,0)","v":1199},{"$f":"VLOOKUP($A209,outcome_data!$A$6:$BJ$216,H$1,0)","v":293020},{"$f":"VLOOKUP($A209,outcome_data!$A$6:$BJ$216,I$1,0)","v":247},{"$f":"VLOOKUP($A209,outcome_data!$A$6:$BJ$216,J$1,0)","v":293020},{"$f":"VLOOKUP($A209,outcome_data!$A$6:$BJ$216,K$1,0)","v":824},{"$f":"VLOOKUP($A209,outcome_data!$A$6:$BJ$216,L$1,0)","v":293020},{"$f":"VLOOKUP($A209,outcome_data!$A$6:$BJ$216,M$1,0)","v":341},{"$f":"VLOOKUP($A209,outcome_data!$A$6:$BJ$216,N$1,0)","v":293020},{"$f":"VLOOKUP($A209,outcome_data!$A$6:$BJ$216,O$1,0)","v":80},{"$f":"VLOOKUP($A209,outcome_data!$A$6:$BJ$216,P$1,0)","v":293020},{"$f":"VLOOKUP($A209,outcome_data!$A$6:$BJ$216,Q$1,0)","v":7578},{"$f":"VLOOKUP($A209,outcome_data!$A$6:$BJ$216,R$1,0)","v":8846},{"$f":"VLOOKUP($A209,outcome_data!$A$6:$BJ$216,S$1,0)","v":6172},{"$f":"VLOOKUP($A209,outcome_data!$A$6:$BJ$216,T$1,0)","v":8846},{"$f":"VLOOKUP($A209,outcome_data!$A$6:$BJ$216,U$1,0)","v":30377},{"$f":"VLOOKUP($A209,outcome_data!$A$6:$BJ$216,V$1,0)","v":40511},{"$f":"VLOOKUP($A209,outcome_data!$A$6:$BJ$216,W$1,0)","v":6300},{"$f":"VLOOKUP($A209,outcome_data!$A$6:$BJ$216,X$1,0)","v":9118},{"$f":"VLOOKUP($A209,outcome_data!$A$6:$BJ$216,Y$1,0)","v":1141},{"$f":"VLOOKUP($A209,outcome_data!$A$6:$BJ$216,Z$1,0)","v":1356},{"$f":"VLOOKUP($A209,outcome_data!$A$6:$BJ$216,AA$1,0)","v":923},{"$f":"VLOOKUP($A209,outcome_data!$A$6:$BJ$216,AB$1,0)","v":1356},{"$f":"VLOOKUP($A209,outcome_data!$A$6:$BJ$216,AC$1,0)","v":4106},{"$f":"VLOOKUP($A209,outcome_data!$A$6:$BJ$216,AD$1,0)","v":4924},{"$f":"VLOOKUP($A209,outcome_data!$A$6:$BJ$216,AE$1,0)","v":3202},{"$f":"VLOOKUP($A209,outcome_data!$A$6:$BJ$216,AF$1,0)","v":4924}]
["99J","NHS West Kent",{"$f":"VLOOKUP($A210,outcome_data!$A$6:$BJ$216,C$1,0)","v":229},{"$f":"VLOOKUP($A210,outcome_data!$A$6:$BJ$216,D$1,0)","v":424928},{"$f":"VLOOKUP($A210,outcome_data!$A$6:$BJ$216,E$1,0)","v":612},{"$f":"VLOOKUP($A210,outcome_data!$A$6:$BJ$216,F$1,0)","v":467773},{"$f":"VLOOKUP($A210,outcome_data!$A$6:$BJ$216,G$1,0)","v":1748},{"$f":"VLOOKUP($A210,outcome_data!$A$6:$BJ$216,H$1,0)","v":467773},{"$f":"VLOOKUP($A210,outcome_data!$A$6:$BJ$216,I$1,0)","v":435},{"$f":"VLOOKUP($A210,outcome_data!$A$6:$BJ$216,J$1,0)","v":467773},{"$f":"VLOOKUP($A210,outcome_data!$A$6:$BJ$216,K$1,0)","v":1366},{"$f":"VLOOKUP($A210,outcome_data!$A$6:$BJ$216,L$1,0)","v":467773},{"$f":"VLOOKUP($A210,outcome_data!$A$6:$BJ$216,M$1,0)","v":474},{"$f":"VLOOKUP($A210,outcome_data!$A$6:$BJ$216,N$1,0)","v":467773},{"$f":"VLOOKUP($A210,outcome_data!$A$6:$BJ$216,O$1,0)","v":121},{"$f":"VLOOKUP($A210,outcome_data!$A$6:$BJ$216,P$1,0)","v":467773},{"$f":"VLOOKUP($A210,outcome_data!$A$6:$BJ$216,Q$1,0)","v":11679},{"$f":"VLOOKUP($A210,outcome_data!$A$6:$BJ$216,R$1,0)","v":13396},{"$f":"VLOOKUP($A210,outcome_data!$A$6:$BJ$216,S$1,0)","v":9640},{"$f":"VLOOKUP($A210,outcome_data!$A$6:$BJ$216,T$1,0)","v":13396},{"$f":"VLOOKUP($A210,outcome_data!$A$6:$BJ$216,U$1,0)","v":48020},{"$f":"VLOOKUP($A210,outcome_data!$A$6:$BJ$216,V$1,0)","v":62061},{"$f":"VLOOKUP($A210,outcome_data!$A$6:$BJ$216,W$1,0)","v":11553},{"$f":"VLOOKUP($A210,outcome_data!$A$6:$BJ$216,X$1,0)","v":16405},{"$f":"VLOOKUP($A210,outcome_data!$A$6:$BJ$216,Y$1,0)","v":2133},{"$f":"VLOOKUP($A210,outcome_data!$A$6:$BJ$216,Z$1,0)","v":2501},{"$f":"VLOOKUP($A210,outcome_data!$A$6:$BJ$216,AA$1,0)","v":1676},{"$f":"VLOOKUP($A210,outcome_data!$A$6:$BJ$216,AB$1,0)","v":2501},{"$f":"VLOOKUP($A210,outcome_data!$A$6:$BJ$216,AC$1,0)","v":7008},{"$f":"VLOOKUP($A210,outcome_data!$A$6:$BJ$216,AD$1,0)","v":8263},{"$f":"VLOOKUP($A210,outcome_data!$A$6:$BJ$216,AE$1,0)","v":5488},{"$f":"VLOOKUP($A210,outcome_data!$A$6:$BJ$216,AF$1,0)","v":8263}]
["99K","NHS High Weald Lewes Havens",{"$f":"VLOOKUP($A211,outcome_data!$A$6:$BJ$216,C$1,0)","v":77},{"$f":"VLOOKUP($A211,outcome_data!$A$6:$BJ$216,D$1,0)","v":150461},{"$f":"VLOOKUP($A211,outcome_data!$A$6:$BJ$216,E$1,0)","v":305},{"$f":"VLOOKUP($A211,outcome_data!$A$6:$BJ$216,F$1,0)","v":166603},{"$f":"VLOOKUP($A211,outcome_data!$A$6:$BJ$216,G$1,0)","v":815},{"$f":"VLOOKUP($A211,outcome_data!$A$6:$BJ$216,H$1,0)","v":166603},{"$f":"VLOOKUP($A211,outcome_data!$A$6:$BJ$216,I$1,0)","v":171},{"$f":"VLOOKUP($A211,outcome_data!$A$6:$BJ$216,J$1,0)","v":166603},{"$f":"VLOOKUP($A211,outcome_data!$A$6:$BJ$216,K$1,0)","v":707},{"$f":"VLOOKUP($A211,outcome_data!$A$6:$BJ$216,L$1,0)","v":166603},{"$f":"VLOOKUP($A211,outcome_data!$A$6:$BJ$216,M$1,0)","v":259},{"$f":"VLOOKUP($A211,outcome_data!$A$6:$BJ$216,N$1,0)","v":166603},{"$f":"VLOOKUP($A211,outcome_data!$A$6:$BJ$216,O$1,0)","v":52},{"$f":"VLOOKUP($A211,outcome_data!$A$6:$BJ$216,P$1,0)","v":166603},{"$f":"VLOOKUP($A211,outcome_data!$A$6:$BJ$216,Q$1,0)","v":4712},{"$f":"VLOOKUP($A211,outcome_data!$A$6:$BJ$216,R$1,0)","v":5410},{"$f":"VLOOKUP($A211,outcome_data!$A$6:$BJ$216,S$1,0)","v":3715},{"$f":"VLOOKUP($A211,outcome_data!$A$6:$BJ$216,T$1,0)","v":5410},{"$f":"VLOOKUP($A211,outcome_data!$A$6:$BJ$216,U$1,0)","v":18155},{"$f":"VLOOKUP($A211,outcome_data!$A$6:$BJ$216,V$1,0)","v":24305},{"$f":"VLOOKUP($A211,outcome_data!$A$6:$BJ$216,W$1,0)","v":4719},{"$f":"VLOOKUP($A211,outcome_data!$A$6:$BJ$216,X$1,0)","v":6763},{"$f":"VLOOKUP($A211,outcome_data!$A$6:$BJ$216,Y$1,0)","v":928},{"$f":"VLOOKUP($A211,outcome_data!$A$6:$BJ$216,Z$1,0)","v":1082},{"$f":"VLOOKUP($A211,outcome_data!$A$6:$BJ$216,AA$1,0)","v":659},{"$f":"VLOOKUP($A211,outcome_data!$A$6:$BJ$216,AB$1,0)","v":1082},{"$f":"VLOOKUP($A211,outcome_data!$A$6:$BJ$216,AC$1,0)","v":2826},{"$f":"VLOOKUP($A211,outcome_data!$A$6:$BJ$216,AD$1,0)","v":3342},{"$f":"VLOOKUP($A211,outcome_data!$A$6:$BJ$216,AE$1,0)","v":2091},{"$f":"VLOOKUP($A211,outcome_data!$A$6:$BJ$216,AF$1,0)","v":3342}]
["99M","NHS North East Hampshire and Farnham",{"$f":"VLOOKUP($A212,outcome_data!$A$6:$BJ$216,C$1,0)","v":84},{"$f":"VLOOKUP($A212,outcome_data!$A$6:$BJ$216,D$1,0)","v":203518},{"$f":"VLOOKUP($A212,outcome_data!$A$6:$BJ$216,E$1,0)","v":275},{"$f":"VLOOKUP($A212,outcome_data!$A$6:$BJ$216,F$1,0)","v":218868},{"$f":"VLOOKUP($A212,outcome_data!$A$6:$BJ$216,G$1,0)","v":1293},{"$f":"VLOOKUP($A212,outcome_data!$A$6:$BJ$216,H$1,0)","v":218868},{"$f":"VLOOKUP($A212,outcome_data!$A$6:$BJ$216,I$1,0)","v":185},{"$f":"VLOOKUP($A212,outcome_data!$A$6:$BJ$216,J$1,0)","v":218868},{"$f":"VLOOKUP($A212,outcome_data!$A$6:$BJ$216,K$1,0)","v":922},{"$f":"VLOOKUP($A212,outcome_data!$A$6:$BJ$216,L$1,0)","v":218868},{"$f":"VLOOKUP($A212,outcome_data!$A$6:$BJ$216,M$1,0)","v":380},{"$f":"VLOOKUP($A212,outcome_data!$A$6:$BJ$216,N$1,0)","v":218868},{"$f":"VLOOKUP($A212,outcome_data!$A$6:$BJ$216,O$1,0)","v":83},{"$f":"VLOOKUP($A212,outcome_data!$A$6:$BJ$216,P$1,0)","v":218868},{"$f":"VLOOKUP($A212,outcome_data!$A$6:$BJ$216,Q$1,0)","v":5038},{"$f":"VLOOKUP($A212,outcome_data!$A$6:$BJ$216,R$1,0)","v":5733},{"$f":"VLOOKUP($A212,outcome_data!$A$6:$BJ$216,S$1,0)","v":4416},{"$f":"VLOOKUP($A212,outcome_data!$A$6:$BJ$216,T$1,0)","v":5733},{"$f":"VLOOKUP($A212,outcome_data!$A$6:$BJ$216,U$1,0)","v":21637},{"$f":"VLOOKUP($A212,outcome_data!$A$6:$BJ$216,V$1,0)","v":27900},{"$f":"VLOOKUP($A212,outcome_data!$A$6:$BJ$216,W$1,0)","v":4635},{"$f":"VLOOKUP($A212,outcome_data!$A$6:$BJ$216,X$1,0)","v":6395},{"$f":"VLOOKUP($A212,outcome_data!$A$6:$BJ$216,Y$1,0)","v":948},{"$f":"VLOOKUP($A212,outcome_data!$A$6:$BJ$216,Z$1,0)","v":1097},{"$f":"VLOOKUP($A212,outcome_data!$A$6:$BJ$216,AA$1,0)","v":777},{"$f":"VLOOKUP($A212,outcome_data!$A$6:$BJ$216,AB$1,0)","v":1097},{"$f":"VLOOKUP($A212,outcome_data!$A$6:$BJ$216,AC$1,0)","v":2636},{"$f":"VLOOKUP($A212,outcome_data!$A$6:$BJ$216,AD$1,0)","v":3085},{"$f":"VLOOKUP($A212,outcome_data!$A$6:$BJ$216,AE$1,0)","v":2204},{"$f":"VLOOKUP($A212,outcome_data!$A$6:$BJ$216,AF$1,0)","v":3085}]
["99N","NHS Wiltshire",{"$f":"VLOOKUP($A213,outcome_data!$A$6:$BJ$216,C$1,0)","v":249},{"$f":"VLOOKUP($A213,outcome_data!$A$6:$BJ$216,D$1,0)","v":431541},{"$f":"VLOOKUP($A213,outcome_data!$A$6:$BJ$216,E$1,0)","v":917},{"$f":"VLOOKUP($A213,outcome_data!$A$6:$BJ$216,F$1,0)","v":474987},{"$f":"VLOOKUP($A213,outcome_data!$A$6:$BJ$216,G$1,0)","v":2410},{"$f":"VLOOKUP($A213,outcome_data!$A$6:$BJ$216,H$1,0)","v":474987},{"$f":"VLOOKUP($A213,outcome_data!$A$6:$BJ$216,I$1,0)","v":502},{"$f":"VLOOKUP($A213,outcome_data!$A$6:$BJ$216,J$1,0)","v":474987},{"$f":"VLOOKUP($A213,outcome_data!$A$6:$BJ$216,K$1,0)","v":1647},{"$f":"VLOOKUP($A213,outcome_data!$A$6:$BJ$216,L$1,0)","v":474987},{"$f":"VLOOKUP($A213,outcome_data!$A$6:$BJ$216,M$1,0)","v":757},{"$f":"VLOOKUP($A213,outcome_data!$A$6:$BJ$216,N$1,0)","v":474987},{"$f":"VLOOKUP($A213,outcome_data!$A$6:$BJ$216,O$1,0)","v":166},{"$f":"VLOOKUP($A213,outcome_data!$A$6:$BJ$216,P$1,0)","v":474987},{"$f":"VLOOKUP($A213,outcome_data!$A$6:$BJ$216,Q$1,0)","v":13815},{"$f":"VLOOKUP($A213,outcome_data!$A$6:$BJ$216,R$1,0)","v":15612},{"$f":"VLOOKUP($A213,outcome_data!$A$6:$BJ$216,S$1,0)","v":11303},{"$f":"VLOOKUP($A213,outcome_data!$A$6:$BJ$216,T$1,0)","v":15612},{"$f":"VLOOKUP($A213,outcome_data!$A$6:$BJ$216,U$1,0)","v":53705},{"$f":"VLOOKUP($A213,outcome_data!$A$6:$BJ$216,V$1,0)","v":69405},{"$f":"VLOOKUP($A213,outcome_data!$A$6:$BJ$216,W$1,0)","v":9019},{"$f":"VLOOKUP($A213,outcome_data!$A$6:$BJ$216,X$1,0)","v":12708},{"$f":"VLOOKUP($A213,outcome_data!$A$6:$BJ$216,Y$1,0)","v":2368},{"$f":"VLOOKUP($A213,outcome_data!$A$6:$BJ$216,Z$1,0)","v":2747},{"$f":"VLOOKUP($A213,outcome_data!$A$6:$BJ$216,AA$1,0)","v":1861},{"$f":"VLOOKUP($A213,outcome_data!$A$6:$BJ$216,AB$1,0)","v":2747},{"$f":"VLOOKUP($A213,outcome_data!$A$6:$BJ$216,AC$1,0)","v":7987},{"$f":"VLOOKUP($A213,outcome_data!$A$6:$BJ$216,AD$1,0)","v":9305},{"$f":"VLOOKUP($A213,outcome_data!$A$6:$BJ$216,AE$1,0)","v":6156},{"$f":"VLOOKUP($A213,outcome_data!$A$6:$BJ$216,AF$1,0)","v":9305}]
["99P","NHS Northern, Eastern and Western Devon",{"$f":"VLOOKUP($A214,outcome_data!$A$6:$BJ$216,C$1,0)","v":576},{"$f":"VLOOKUP($A214,outcome_data!$A$6:$BJ$216,D$1,0)","v":813815},{"$f":"VLOOKUP($A214,outcome_data!$A$6:$BJ$216,E$1,0)","v":1923},{"$f":"VLOOKUP($A214,outcome_data!$A$6:$BJ$216,F$1,0)","v":902363},{"$f":"VLOOKUP($A214,outcome_data!$A$6:$BJ$216,G$1,0)","v":5050},{"$f":"VLOOKUP($A214,outcome_data!$A$6:$BJ$216,H$1,0)","v":902363},{"$f":"VLOOKUP($A214,outcome_data!$A$6:$BJ$216,I$1,0)","v":1227},{"$f":"VLOOKUP($A214,outcome_data!$A$6:$BJ$216,J$1,0)","v":902363},{"$f":"VLOOKUP($A214,outcome_data!$A$6:$BJ$216,K$1,0)","v":3367},{"$f":"VLOOKUP($A214,outcome_data!$A$6:$BJ$216,L$1,0)","v":902363},{"$f":"VLOOKUP($A214,outcome_data!$A$6:$BJ$216,M$1,0)","v":1379},{"$f":"VLOOKUP($A214,outcome_data!$A$6:$BJ$216,N$1,0)","v":902363},{"$f":"VLOOKUP($A214,outcome_data!$A$6:$BJ$216,O$1,0)","v":483},{"$f":"VLOOKUP($A214,outcome_data!$A$6:$BJ$216,P$1,0)","v":902363},{"$f":"VLOOKUP($A214,outcome_data!$A$6:$BJ$216,Q$1,0)","v":30049},{"$f":"VLOOKUP($A214,outcome_data!$A$6:$BJ$216,R$1,0)","v":34166},{"$f":"VLOOKUP($A214,outcome_data!$A$6:$BJ$216,S$1,0)","v":24747},{"$f":"VLOOKUP($A214,outcome_data!$A$6:$BJ$216,T$1,0)","v":34166},{"$f":"VLOOKUP($A214,outcome_data!$A$6:$BJ$216,U$1,0)","v":104163},{"$f":"VLOOKUP($A214,outcome_data!$A$6:$BJ$216,V$1,0)","v":133424},{"$f":"VLOOKUP($A214,outcome_data!$A$6:$BJ$216,W$1,0)","v":25629},{"$f":"VLOOKUP($A214,outcome_data!$A$6:$BJ$216,X$1,0)","v":36752},{"$f":"VLOOKUP($A214,outcome_data!$A$6:$BJ$216,Y$1,0)","v":5612},{"$f":"VLOOKUP($A214,outcome_data!$A$6:$BJ$216,Z$1,0)","v":6559},{"$f":"VLOOKUP($A214,outcome_data!$A$6:$BJ$216,AA$1,0)","v":4495},{"$f":"VLOOKUP($A214,outcome_data!$A$6:$BJ$216,AB$1,0)","v":6559},{"$f":"VLOOKUP($A214,outcome_data!$A$6:$BJ$216,AC$1,0)","v":15815},{"$f":"VLOOKUP($A214,outcome_data!$A$6:$BJ$216,AD$1,0)","v":18460},{"$f":"VLOOKUP($A214,outcome_data!$A$6:$BJ$216,AE$1,0)","v":12311},{"$f":"VLOOKUP($A214,outcome_data!$A$6:$BJ$216,AF$1,0)","v":18460}]
["99Q","NHS South Devon and Torbay",{"$f":"VLOOKUP($A215,outcome_data!$A$6:$BJ$216,C$1,0)","v":227},{"$f":"VLOOKUP($A215,outcome_data!$A$6:$BJ$216,D$1,0)","v":253816},{"$f":"VLOOKUP($A215,outcome_data!$A$6:$BJ$216,E$1,0)","v":779},{"$f":"VLOOKUP($A215,outcome_data!$A$6:$BJ$216,F$1,0)","v":286200},{"$f":"VLOOKUP($A215,outcome_data!$A$6:$BJ$216,G$1,0)","v":1321},{"$f":"VLOOKUP($A215,outcome_data!$A$6:$BJ$216,H$1,0)","v":286200},{"$f":"VLOOKUP($A215,outcome_data!$A$6:$BJ$216,I$1,0)","v":509},{"$f":"VLOOKUP($A215,outcome_data!$A$6:$BJ$216,J$1,0)","v":286200},{"$f":"VLOOKUP($A215,outcome_data!$A$6:$BJ$216,K$1,0)","v":874},{"$f":"VLOOKUP($A215,outcome_data!$A$6:$BJ$216,L$1,0)","v":286200},{"$f":"VLOOKUP($A215,outcome_data!$A$6:$BJ$216,M$1,0)","v":435},{"$f":"VLOOKUP($A215,outcome_data!$A$6:$BJ$216,N$1,0)","v":286200},{"$f":"VLOOKUP($A215,outcome_data!$A$6:$BJ$216,O$1,0)","v":115},{"$f":"VLOOKUP($A215,outcome_data!$A$6:$BJ$216,P$1,0)","v":286200},{"$f":"VLOOKUP($A215,outcome_data!$A$6:$BJ$216,Q$1,0)","v":9866},{"$f":"VLOOKUP($A215,outcome_data!$A$6:$BJ$216,R$1,0)","v":11361},{"$f":"VLOOKUP($A215,outcome_data!$A$6:$BJ$216,S$1,0)","v":8123},{"$f":"VLOOKUP($A215,outcome_data!$A$6:$BJ$216,T$1,0)","v":11361},{"$f":"VLOOKUP($A215,outcome_data!$A$6:$BJ$216,U$1,0)","v":35806},{"$f":"VLOOKUP($A215,outcome_data!$A$6:$BJ$216,V$1,0)","v":46892},{"$f":"VLOOKUP($A215,outcome_data!$A$6:$BJ$216,W$1,0)","v":8244},{"$f":"VLOOKUP($A215,outcome_data!$A$6:$BJ$216,X$1,0)","v":12422},{"$f":"VLOOKUP($A215,outcome_data!$A$6:$BJ$216,Y$1,0)","v":2083},{"$f":"VLOOKUP($A215,outcome_data!$A$6:$BJ$216,Z$1,0)","v":2465},{"$f":"VLOOKUP($A215,outcome_data!$A$6:$BJ$216,AA$1,0)","v":1683},{"$f":"VLOOKUP($A215,outcome_data!$A$6:$BJ$216,AB$1,0)","v":2465},{"$f":"VLOOKUP($A215,outcome_data!$A$6:$BJ$216,AC$1,0)","v":5842},{"$f":"VLOOKUP($A215,outcome_data!$A$6:$BJ$216,AD$1,0)","v":6957},{"$f":"VLOOKUP($A215,outcome_data!$A$6:$BJ$216,AE$1,0)","v":4592},{"$f":"VLOOKUP($A215,outcome_data!$A$6:$BJ$216,AF$1,0)","v":6957}]

{"sheet":"PHO notes","index":14,"n_rows":93,"n_cols":4,"rows_kept":93,"cut":false,"hidden":true,"merged":[[17,1,17,12],[15,1,15,12],[14,1,14,12],[13,1,13,12],[1,1,1,12],[35,1,35,12],[86,3,86,14],[87,3,87,14],[44,2,44,16],[46,1,47,1],[44,1,45,1],[50,1,51,1],[48,1,49,1],[46,2,46,16],[48,2,48,16],[50,2,50,16]]}
["Notes for PHE users"]
[null,"This page summarises the aim of the DOVE tool and includes notes on what data was used, and how that data has been used."]
[]
[null,"Introduction"]
[null,"Cost and outcomes data"]
[null,"Chart data calculations"]
[null,"Cost and outcomes data"]
[null,"CCG clusters"]
[null,"CCG deprivation deciles"]
[null,"Specialist Clinical Networks"]
[null,"Summary data calculations"]
[]
[null,"Introduction"]
[null,"The aim of this tool is to allow a user to compare expenditure and outcomes in diabetes care at a CCG level.  It creates one chart showing expenditure versus outcomes in 2012/13. Further summary data is available for the year 2012/13, giving examples of the scale of change in expenditure or outcomes require for the PCT to change its ranking/position within all CCGs."]
[null,"Unless otherwise stated, all files are in the folder R:\\Completed_Work\\Diabetes\\DOVE tool\\Update 1213"]
[null,"Files include this file, the DOVE tool for practices and any supporting data files."]
[]
[null,"This workbook contains five types of worksheet:"]
[]
[null,null,"Worksheets intended for the end user"]
[]
[null,null,"Guidance intended for anyone updating or working on the tool"]
[]
[null,null,"Lookups"]
[]
[null,null,"Calculations"]
[]
[null,null,"Data"]
[]
[null,"In everything apart from the worksheet intended for the end user, the text is colour coded to help identify what does what:"]
[null,"Red","Calculations"]
[null,"Teal","Lookups and IF statements"]
[null,"Grey","Inputted data"]
[null,"Black","Text and fixed values"]
[]
[null,"The workbook also uses a number of named ranges. These will always start with the worksheet containing the range. A comprehensive list can be found in the worksheet 'Named ranges'."]
[]
[null,"Cost and Outcomes data"]
[null,"Base data for the cost and outcome indicators is held in four worksheets. "]
[null,"DataCost",null,"Current cost (expenditure) data"]
[null,"DataOutcome",null,"Current outcome (expenditure) data"]
[null,"PrevDataCost",null,"Previous cost (expenditure) data"]
[null,"PrevdDataOutcome",null,"Previous outcome (expenditure) data"]
[]
[null,"Current cost data","The prescribing data was obtained from the Health and Social Care Information Centre (www.hscic.gov.uk/gpprescribingdata). An extract of the data can be found in:"]
[null,null,"R:\\Completed_Work\\Diabetes\\DOVE tool\\Update 1213\\CCG diabetes prescribing data 2012-13.xlsx"]
[null,"Previous cost data","Previous prescribing data can be obtained from www.hscic.gov.uk/gpprescribingdata. An extract of the data can be found in:"]
[null,null,"R:\\Completed_Work\\Diabetes\\DOVE tool\\Update 1213\\CCG diabetes prescribing data 2011-12.xlsx"]
[null,"Current Outcome data","Data around diabetes outcomes and the number of people registered with diabetes was downloaded from the Health and Social Care Information Centre Website (www.hscic.gov.uk/catalogue/PUB12262/qof-12-13-data-tab-ccg.zip - CCG - Clinical - qof-12-13-data-tab-ccg-diab.xlsx). An extract of the data can be found in:"]
[null,null,"R:\\Completed_Work\\Diabetes\\DOVE tool\\Update 1213\\CCG_QOF_1213diab.xlsx"]
[null,"Previous Outcome data","Data around diabetes outcomes and the number of people registered with diabetes was downloaded by practice from the Health and Social Care Information Centre Website (www.hscic.gov.uk/catalogue/PUB08715/QOF-11-12-data-tabs-pracs-diab-mel.xls) and aggregated up to CCG level using the practice to CCG lookups at the NHS England website."]
[null,null,"R:\\Completed_Work\\Diabetes\\DOVE tool\\Update 1213\\CCG_QOF_1112diab.xlsx"]
[null,"Cost data"]
[null,"Currently cost data for the DOVE tool includes:"]
[null,"Total spend on prescribing"]
[null,"Spend on non-insulin anti-diabetic drugs"]
[null,"Spend on insulin items"]
[null,"Spend on blood glucose testing items"]
[null,"Average spend per item on all diabetic items"]
[null,"Average spend per item on non-insulin anti-diabetic drugs"]
[null,"Average spend per item on insulin"]
[null,"Average spend per item on testing items"]
[]
[null,"Outcome data"]
[null,"Currently outcome data for the DOVE tool includes:"]
[null,"People with diabetes with a HbA1c of 59mmol/mol or less"]
[null,"People with diabetes with a HbA1c of 59mmol/mol or less (including exceptions)"]
[null,"People with diabetes with a HbA1c of 64mmol/mol or less"]
[null,"People with diabetes with a HbA1c of 64mmol/mol or less (including exceptions)"]
[null,"People with diabetes with a HbA1c of 75mmol/mol or less"]
[null,"People with diabetes with a HbA1c of 75mmol/mol or less (including exceptions)"]
[]
[null,"Chart data calculations"]
[null,"Comments boxes give additional information for the data in GraphData. "]
[]
[null,"Both cost and outcome data for the chart are calculated in the worksheet 'GraphData'."]
[null,"The data shown in the charts is determined by the drop down menus on the menu of the tool.  The values created by these menus feed into a number of look ups that select the correct data for the charts. "]
[]
[null,"For cost the calculation produces either the spend per person on the QOF register or the average spend per item prescribed.  "]
[null,"For outcome the calculation produces a percentage of people on the QOF register, aged 17 or above for the chosen indicator.  "]
[]
[null,"For each chosen indicator there is a calculation for the z score in the current year and a calculation for the z score for the previous year, for every CCG in England."]
[null,"For the data a log transformation has been applied to ensure that the distribution of the variable is normal and goes from -infinity to +infinity."]
[null,"Z-scores of the transformed values are calculated using the (transformed) values.  These are the values that are plotted on the charts."]
[]
[null,"The order of calculation is:"]
[null,"MATCH value ",null,"Checks the CCG code for that row and returns the position of the code in the relevant data worksheet. Usually MATCH would be placed in the same formula as INDEX to create an INDEX-MATCH formula lookup, but this method speeds up the calculation slightly. It's not noticeable for CCGs, but will speed up the practice DOVE tool immensely."]
[null,"Cost/outcome Value",null,"Takes the position of the CCG code from MATCH value and looks for that row under the relevant data column for both the numerator and denominator, producing at crude rate (cost) or percentage (outcome)."]
[null,"Log transformation",null,"Applied to the values. Cost data is a straight LN(value). Outcome uses LN((value/(1-value)))."]
[null,"z score pt1",null,"(Log trans for the CCG - sum of all Log trans)2"]
[null,"z score final",null,"(Log trans for the CCG - sum of all Log trans)/Sum of all CCGs for z-score PT1"]
[]
[null,"Summary data calculations"]

{"sheet":"QA and data update","index":15,"n_rows":10,"n_cols":1,"rows_kept":10,"cut":false,"hidden":true,"merged":[[2,0,2,13],[3,0,3,13]]}
[]
["Guide to QA"]
["Once the formula in this worksheet have been QAd, the only QA that needs to be done is to check that the numerator and denominator data in the four data worksheets agrees with the published figures. If changes are made to the formula, the formula will need to be checked again."]
["The easiest way to do this is to take one cost and one outcome indicator, calculate the z scores using the same method here (see the PHE notes), and check if these agree with those in the GraphData and SummaryData worksheets. You have the option in both of these worksheets to select indictors on the sheet, so you don't need to return to the Menu to select new indicators. Once you confirm the formulae produce correct results for one set of data they should be correct for all data selected (if the data is correct)."]
[]
["To update the data"]
["If the number of sites, codes/names and indicators remain the same in the data update, it will just be a matter of changing the data in the four data worksheets."]
["If the number of sites, codes/names remain the same but the indicators change, you will need to change the indicator names in the Lookup worksheet (columns K to T)."]
["If the number of sites remain the same but codes or names change, you will need to update these in the Lookup worksheet and the Data worksheets."]
["If the number of sites changes ou will need to make sure that all the lookups and named ranges point to ALL the new rows to avoid problems."]

{"sheet":"Tab Code","index":16,"n_rows":53,"n_cols":2,"rows_kept":53,"cut":false,"hidden":true,"merged":[]}
[]
[null,"Right click on relevant chart tab and select view code"]
[]
[null,"Copy and paste this code into the blank window (code apllies to both charts)"]
[]
[]
[null,"Dim MyChart As New Class1"]
[]
[null,"Private Sub Worksheet_Activate()"]
[null,"    Set MyChart.Ch = ActiveSheet.ChartObjects(1).Chart"]
[null,"End Sub"]
[]
[]
[null,"Save"]
[]
[null,"The go to 'ThisWorkbook'"]
[]
[]
[]
[]
[]
[]
[]
[]
[]
[]
[]
[]
[]
[]
[]
[]
[]
[]
[]
[]
[]
[]
[]
[]
[]
[]
[]
[]
[null,"Delete the apostrophe in front of each line of code. The code will change from greeen to black. Save."]
[]
[null,"Save the whole workbook, close and reopen."]
[]
[null,"Save"]
[]
[null,"The go to Class Module 'Class 1'"]
[null,"Where the VBA below appears"]
[null,"This code allows Excel to return the number of the point within the series selected, which can then be used to name the point selected on the chart."]

{"sheet":"Named ranges","index":17,"n_rows":132,"n_cols":6,"rows_kept":132,"cut":false,"hidden":true,"merged":[]}
[null,"Worksheet name","Worksheet description","Named Range","Range","Description"]
[null,"Menu","Menu page","Menu_ChosenCCG","Menu!$M$12","Selection for the chosen CCG"]
[null,"Menu","Menu page","Menu_ChosenCost","Menu!$M$15","Selection for the chosen expenditure indicator"]
[null,"Menu","Menu page","Menu_ChosenOutcome","Menu!$M$17","Selection for the chosen outcome indicator"]
[null,"GraphData","Calculated data for the chart","GraphData_ChosenCCG","GraphData!$C$3","The name of the CCG chosen on the menu"]
[null,"GraphData","Calculated data for the chart","GraphData_ChosenCCGcluster","GraphData!$E$16","The cluster for the chosen CCG"]
[null,"GraphData","Calculated data for the chart","GraphData_ChosenCCGdecile","GraphData!$F$16","The deprivation decile for the chosen CCG"]
[null,"GraphData","Calculated data for the chart","GraphData_ChosenCCGSCN","GraphData!$D$16","The SCN for the chosen CCG"]
[null,"GraphData","Calculated data for the chart","GraphData_Comparison","GraphData!$C$7","The group chosen to compare to (SCN, cluster, dep decile)"]
[null,"GraphData","Calculated data for the chart","GraphData_CostInd","GraphData!$C$5","The name of the Expenditure indicator chosen"]
[null,"GraphData","Calculated data for the chart","GraphData_OutcomeInd","GraphData!$C$6","The name of the Outcome indicator chosen"]
[null,"GraphData","Calculated data for the chart","GraphData_CountCCG","GraphData!$C$8","The number of CCGs (included to help with practice version of DOVE)"]
[null,"GraphData","Calculated data for the chart","GraphData_CCGcode","GraphData!$B$18:$B$228","All CCG codes"]
[null,"GraphData","Calculated data for the chart","GraphData_CCGname","GraphData!$C$18:$C$228","All CCG names"]
[null,"GraphData","Calculated data for the chart","GraphData_Cluster","GraphData!$E$18:$E$228","CCG clusters for each CCG"]
[null,"GraphData","Calculated data for the chart","GraphData_Decile","GraphData!$F$18:$F$228","Deprivation decile for each CCG"]
[null,"GraphData","Calculated data for the chart","GraphData_SCN","GraphData!$D$18:$D$228","SCNs for each CCG"]
[null,"GraphData","Calculated data for the chart","GraphData_DiabPrev","GraphData!$G$18:$G$228","QOF diabetes prevelance for each CCG"]
[null,"GraphData","Calculated data for the chart","GraphData_CurCostVal","GraphData!$G$18:$G$228","Calculated current cost value for each CCG"]
[null,"GraphData","Calculated data for the chart","GraphData_CurCostzscore","GraphData!$O$18:$O$228","Calculated current cost z-score for each CCG"]
[null,"GraphData","Calculated data for the chart","GraphData_CurOutcomeVal","GraphData!$K$18:$K$228","Calculated current outcome value for each CCG"]
[null,"GraphData","Calculated data for the chart","GraphData_CurOutcomezscore","GraphData!$P$18:$P$228","Calculated current outcome z-score for each CCG"]
[null,"GraphData","Calculated data for the chart","GraphData_PrevCostzscore","GraphData!$AB$18:$AB$228","Calculated previous cost z-score for each CCG"]
[null,"GraphData","Calculated data for the chart","GraphData_PrevOutcomezscore","GraphData!$AC$18:$AC$228","Calculated previous outcome z-score for each CCG"]
[null,"SummaryData","Calculated data for the summaries","SummaryData_CostInd","SummaryData!$D$5","Value for CCG for chosen cost indicator"]
[null,"SummaryData","Calculated data for the summaries","SummaryData_OutcomeInd","SummaryData!$D$33","Value for CCG for chosen outcome indicator"]
[null,"SummaryData","Calculated data for the summaries","SummaryData_CCGcode","SummaryData!$K$5:$K$215","All CCG codes"]
[null,"SummaryData","Calculated data for the summaries","SummaryData_SCN","SummaryData!$M$5:$M$215","SCNs for each CCG"]
[null,"SummaryData","Calculated data for the summaries","SummaryData_Cluster","SummaryData!$N$5:$N$215","CCG clusters for each CCG"]
[null,"SummaryData","Calculated data for the summaries","SummaryData_Decile","SummaryData!$O$5:$O$215","Deprivation decile for each CCG"]
[null,"SummaryData","Calculated data for the summaries","SummaryData_CostDen","SummaryData!$Q$5:$Q$215","Cost denominator data for the chosen indicator"]
[null,"SummaryData","Calculated data for the summaries","SummaryData_CostNum","SummaryData!$P$5:$P$215","Cost numerator data for the chosen indicator"]
[null,"SummaryData","Calculated data for the summaries","SummaryData_CostValue","SummaryData!$R$5:$R$215","Cost calculated value for the chosen indicator"]
[null,"SummaryData","Calculated data for the summaries","SummaryData_OutcomeDen","SummaryData!$T$5:$T$215","Outcome denominator data for the chosen indicator"]
[null,"SummaryData","Calculated data for the summaries","SummaryData_OutcomeNum","SummaryData!$S$5:$S$215","Outcome numerator data for the chosen indicator"]
[null,"SummaryData","Calculated data for the summaries","SummaryData_OutcomeValue","SummaryData!$U$5:$U$215","Outcome calculated value for the chosen indicator"]
[null,"Lookup","Main lookup worksheet","Lookup_CCGinfo","Lookup!$A$3:$H$213","All the CCG related columns in the Lookup worksheet"]
[null,"Lookup","Main lookup worksheet","Lookup_CCGcode","Lookup!$A$3:$A$213","CCG codes for each CCG"]
[null,"Lookup","Main lookup worksheet","Lookup_CCGname","Lookup!$C$3:$C$213","CCG names for each CCG"]
[null,"Lookup","Main lookup worksheet","Lookup_Cluster","Lookup!$F$3:$F$213","CCG clusters for each CCG"]
[null,"Lookup","Main lookup worksheet","Lookup_Region","Lookup!$D$3:$D$213","The PHE Region for each CCG"]
[null,"Lookup","Main lookup worksheet","Lookup_SCN","Lookup!$E$3:$E$213","The SCN for each CCG"]
[null,"Lookup","Main lookup worksheet","Lookup_Decile","Lookup!$H$3:$H$213","The deprivation decile each CCG has been alloted to using the IMD 2010"]
[null,"Lookup","Main lookup worksheet","Lookup_ChartClusterNames","Lookup!$AA$3:$AA$7","The six CCG cluster names"]
[null,"Lookup","Main lookup worksheet","Lookup_ChartClusterDesc","Lookup!$AB$3:$AB$7","The six CCG cluster descriptions"]
[null,"Lookup","Main lookup worksheet","Lookup_ChartComparison","Lookup!$X$3:$X$5","The three CCG comparison types (SCN, decile, cluster)"]
[null,"Lookup","Main lookup worksheet","Lookup_CostNo","Lookup!$K$3:$K$22","Numbers used to identify selected cost indicator from the menu or summary sheets"]
[null,"Lookup","Main lookup worksheet","Lookup_CostName","Lookup!$M$3:$M$22","The actual names for the cost related indicators chosen for the tool"]
[null,"Lookup","Main lookup worksheet","Lookup_CostNamedRng","Lookup!$L$3:$L$22","The names for the cost related indicator named ranges"]
[null,"Lookup","Main lookup worksheet","Lookup_CostNameLower","Lookup!$N$3:$N$22","Lower case version of cost indcator names"]
[null,"Lookup","Main lookup worksheet","Lookup_CostUnits","Lookup!$N$3:$N$22","Units used for the cost indicators"]
[null,"Lookup","Main lookup worksheet","Lookup_OutcomeNo","Lookup!$Q$3:$Q$22","Numbers used to identify selected outcome indicator from the menu or summary sheets"]
[null,"Lookup","Main lookup worksheet","Lookup_OutcomeName","Lookup!$S$3:$S$22","The actual names for the outcome related indicators chosen for the tool"]
[null,"Lookup","Main lookup worksheet","Lookup_OutcomeNamedRng","Lookup!$R$3:$R$22","The names for the outcome related indicator named ranges"]
[null,"Lookup","Main lookup worksheet","Lookup_OutcomeNameLower","Lookup!$T$3:$T$22","Lower case version of outcome indcator names"]
[null,"Lookup","Main lookup worksheet","Lookup_OutcomeUnits","Lookup!$T$3:$T$22","Units used for the outcome indicators"]
[null,"DataCost","Current cost data","DataCost_CCGcode","DataCost!$A$5:$A$215","CCG codes"]
[null,"DataCost","Current cost data","DataCost_Ind1_Den","DataCost!$G$5:$G$216","Denominator data for Indicator 1"]
[null,"DataCost","Current cost data","DataCost_Ind1_Num","DataCost!$F$5:$F$216","Numerator data for Indicator 1"]
[null,"DataCost","Current cost data","DataCost_Ind2_Den","DataCost!$I$5:$I$216","Denominator data for Indicator 2"]
[null,"DataCost","Current cost data","DataCost_Ind2_Num","DataCost!$H$5:$H$216","Numerator data for Indicator 2"]
[null,"DataCost","Current cost data","DataCost_Ind3_Den","DataCost!$K$5:$K$216","Denominator data for Indicator 3"]
[null,"DataCost","Current cost data","DataCost_Ind3_Num","DataCost!$J$5:$J$216","Numerator data for Indicator 3"]
[null,"DataCost","Current cost data","DataCost_Ind4_Den","DataCost!$M$5:$M$216","Denominator data for Indicator 4"]
[null,"DataCost","Current cost data","DataCost_Ind4_Num","DataCost!$L$5:$L$216","Numerator data for Indicator 4"]
[null,"DataCost","Current cost data","DataCost_Ind5_Den","DataCost!$O$5:$O$216","Denominator data for Indicator 5"]
[null,"DataCost","Current cost data","DataCost_Ind5_Num","DataCost!$N$5:$N$216","Numerator data for Indicator 5"]
[null,"DataCost","Current cost data","DataCost_Ind6_Den","DataCost!$Q$5:$Q$216","Denominator data for Indicator 6"]
[null,"DataCost","Current cost data","DataCost_Ind6_Num","DataCost!$P$5:$P$216","Numerator data for Indicator 6"]
[null,"DataCost","Current cost data","DataCost_Ind7_Den","DataCost!$S$5:$S$216","Denominator data for Indicator 7"]
[null,"DataCost","Current cost data","DataCost_Ind7_Num","DataCost!$R$5:$R$216","Numerator data for Indicator 7"]
[null,"DataCost","Current cost data","DataCost_Ind8_Den","DataCost!$U$5:$U$216","Denominator data for Indicator 8"]
[null,"DataCost","Current cost data","DataCost_Ind8_Num","DataCost!$T$5:$T$216","Numerator data for Indicator 8"]
[null,"DataCost","Current cost data","DataCost_Ind9_Den","DataCost!$v$5:$v$217","Denominator data for Indicator 9"]
[null,"DataCost","Current cost data","DataCost_Ind9_Num","DataCost!$w$5:$w$217","Numerator data for Indicator 9"]
[null,"DataCost","Current cost data","DataCost_Ind10_Den","DataCost!$x$5:$x$218","Denominator data for Indicator 10"]
[null,"DataCost","Current cost data","DataCost_Ind10_Num","DataCost!$y$5:$y$218","Numerator data for Indicator 10"]
[null,"DataCost","Current cost data","DataCost_Ind11_Den","DataCost!$z$5:$z$217","Denominator data for Indicator 11"]
[null,"DataCost","Current cost data","DataCost_Ind11_Num","DataCost!$aa$5:$aa$217","Numerator data for Indicator 11"]
[null,"DataCost","Current cost data","DataCost_Ind12_Den","DataCost!$ab$5:$ab$218","Denominator data for Indicator 12"]
[null,"DataCost","Current cost data","DataCost_Ind12_Num","DataCost!$ac$5:$ac$218","Numerator data for Indicator 12"]
[null,"DataCost","Current cost data","DataCost_Ind13_Den","DataCost!$ad$5:$ad$219","Denominator data for Indicator 13"]
[null,"DataCost","Current cost data","DataCost_Ind13_Num","DataCost!$ae$5:$ae$218","Numerator data for Indicator 13"]
[null,"DataOutcome","Current outcome data","DataOutcome_CCGcode","DataOutcome!$A$5:$A$215","CCG codes"]
[null,"DataOutcome","Current outcome data","DataOutcome_Ind1_Den","DataOutcome!$G$5:$G$216","Denominator data for Indicator 1"]
[null,"DataOutcome","Current outcome data","DataOutcome_Ind1_Num","DataOutcome!$F$5:$F$216","Numerator data for Indicator 1"]
[null,"DataOutcome","Current outcome data","DataOutcome_Ind2_Den","DataOutcome!$I$5:$I$216","Denominator data for Indicator 2"]
[null,"DataOutcome","Current outcome data","DataOutcome_Ind2_Num","DataOutcome!$H$5:$H$216","Numerator data for Indicator 2"]
[null,"DataOutcome","Current outcome data","DataOutcome_Ind3_Den","DataOutcome!$K$5:$K$216","Denominator data for Indicator 3"]
[null,"DataOutcome","Current outcome data","DataOutcome_Ind3_Num","DataOutcome!$J$5:$J$216","Numerator data for Indicator 3"]
[null,"DataOutcome","Current outcome data","DataOutcome_Ind4_Den","DataOutcome!$M$5:$M$216","Denominator data for Indicator 4"]
[null,"DataOutcome","Current outcome data","DataOutcome_Ind4_Num","DataOutcome!$L$5:$L$216","Numerator data for Indicator 4"]
[null,"DataOutcome","Current outcome data","DataOutcome_Ind5_Den","DataOutcome!$O$5:$O$216","Denominator data for Indicator 5"]
[null,"DataOutcome","Current outcome data","DataOutcome_Ind5_Num","DataOutcome!$N$5:$N$216","Numerator data for Indicator 5"]
[null,"DataOutcome","Current outcome data","DataOutcome_Ind6_Den","DataOutcome!$Q$5:$Q$216","Denominator data for Indicator 6"]
[null,"DataOutcome","Current outcome data","DataOutcome_Ind6_Num","DataOutcome!$P$5:$P$216","Numerator data for Indicator 6"]
[null,"DataOutcome","Current outcome data","DataOutcome_Ind7_Den","DataOutcome!$S$5:$S$216","Denominator data for Indicator 7"]
[null,"DataOutcome","Current outcome data","DataOutcome_Ind7_Num","DataOutcome!$R$5:$R$216","Numerator data for Indicator 7"]
[null,"DataOutcome","Current outcome data","DataOutcome_Ind8_Den","DataOutcome!$U$5:$U$216","Denominator data for Indicator 8"]
[null,"DataOutcome","Current outcome data","DataOutcome_Ind8_Num","DataOutcome!$T$5:$T$216","Numerator data for Indicator 8"]
[null,"PrevDataCost","Previous cost data","PrevDataCost_Ind1_Den","PrevDataCost!$G$5:$G$216","Denominator data for Indicator 1"]
[null,"PrevDataCost","Previous cost data","PrevDataCost_Ind1_Num","PrevDataCost!$F$5:$F$216","Numerator data for Indicator 1"]
[null,"PrevDataCost","Previous cost data","PrevDataCost_Ind2_Den","PrevDataCost!$I$5:$I$216","Denominator data for Indicator 2"]
[null,"PrevDataCost","Previous cost data","PrevDataCost_Ind2_Num","PrevDataCost!$H$5:$H$216","Numerator data for Indicator 2"]
[null,"PrevDataCost","Previous cost data","PrevDataCost_Ind3_Den","PrevDataCost!$K$5:$K$216","Denominator data for Indicator 3"]
[null,"PrevDataCost","Previous cost data","PrevDataCost_Ind3_Num","PrevDataCost!$J$5:$J$216","Numerator data for Indicator 3"]
[null,"PrevDataCost","Previous cost data","PrevDataCost_Ind4_Den","PrevDataCost!$M$5:$M$216","Denominator data for Indicator 4"]
[null,"PrevDataCost","Previous cost data","PrevDataCost_Ind4_Num","PrevDataCost!$L$5:$L$216","Numerator data for Indicator 4"]
[null,"PrevDataCost","Previous cost data","PrevDataCost_Ind5_Den","PrevDataCost!$O$5:$O$216","Denominator data for Indicator 5"]
[null,"PrevDataCost","Previous cost data","PrevDataCost_Ind5_Num","PrevDataCost!$N$5:$N$216","Numerator data for Indicator 5"]
[null,"PrevDataCost","Previous cost data","PrevDataCost_Ind6_Den","PrevDataCost!$Q$5:$Q$216","Denominator data for Indicator 6"]
[null,"PrevDataCost","Previous cost data","PrevDataCost_Ind6_Num","PrevDataCost!$P$5:$P$216","Numerator data for Indicator 6"]
[null,"PrevDataCost","Previous cost data","PrevDataCost_Ind7_Den","PrevDataCost!$S$5:$S$216","Denominator data for Indicator 7"]
[null,"PrevDataCost","Previous cost data","PrevDataCost_Ind7_Num","PrevDataCost!$R$5:$R$216","Numerator data for Indicator 7"]
[null,"PrevDataCost","Previous cost data","PrevDataCost_Ind8_Den","PrevDataCost!$U$5:$U$216","Denominator data for Indicator 8"]
[null,"PrevDataCost","Previous cost data","PrevDataCost_Ind8_Num","PrevDataCost!$T$5:$T$216","Numerator data for Indicator 8"]
[null,"PrevDataOutcome","Previous outcome data","PrevDataOutcome_Ind1_Den","PrevDataOutcome!$G$5:$G$216","Denominator data for Indicator 1"]
[null,"PrevDataOutcome","Previous outcome data","PrevDataOutcome_Ind1_Num","PrevDataOutcome!$F$5:$F$216","Numerator data for Indicator 1"]
[null,"PrevDataOutcome","Previous outcome data","PrevDataOutcome_Ind2_Den","PrevDataOutcome!$I$5:$I$216","Denominator data for Indicator 2"]
[null,"PrevDataOutcome","Previous outcome data","PrevDataOutcome_Ind2_Num","PrevDataOutcome!$H$5:$H$216","Numerator data for Indicator 2"]
[null,"PrevDataOutcome","Previous outcome data","PrevDataOutcome_Ind3_Den","PrevDataOutcome!$K$5:$K$216","Denominator data for Indicator 3"]
[null,"PrevDataOutcome","Previous outcome data","PrevDataOutcome_Ind3_Num","PrevDataOutcome!$J$5:$J$216","Numerator data for Indicator 3"]
[null,"PrevDataOutcome","Previous outcome data","PrevDataOutcome_Ind4_Den","PrevDataOutcome!$M$5:$M$216","Denominator data for Indicator 4"]
[null,"PrevDataOutcome","Previous outcome data","PrevDataOutcome_Ind4_Num","PrevDataOutcome!$L$5:$L$216","Numerator data for Indicator 4"]
[null,"PrevDataOutcome","Previous outcome data","PrevDataOutcome_Ind5_Den","PrevDataOutcome!$O$5:$O$216","Denominator data for Indicator 5"]
[null,"PrevDataOutcome","Previous outcome data","PrevDataOutcome_Ind5_Num","PrevDataOutcome!$N$5:$N$216","Numerator data for Indicator 5"]
[null,"PrevDataOutcome","Previous outcome data","PrevDataOutcome_Ind6_Den","PrevDataOutcome!$Q$5:$Q$216","Denominator data for Indicator 6"]
[null,"PrevDataOutcome","Previous outcome data","PrevDataOutcome_Ind6_Num","PrevDataOutcome!$P$5:$P$216","Numerator data for Indicator 6"]
[null,"PrevDataOutcome","Previous outcome data","PrevDataOutcome_Ind7_Den","PrevDataOutcome!$S$5:$S$216","Denominator data for Indicator 7"]
[null,"PrevDataOutcome","Previous outcome data","PrevDataOutcome_Ind7_Num","PrevDataOutcome!$R$5:$R$216","Numerator data for Indicator 7"]
[null,"PrevDataOutcome","Previous outcome data","PrevDataOutcome_Ind8_Den","PrevDataOutcome!$U$5:$U$216","Denominator data for Indicator 8"]
[null,"PrevDataOutcome","Previous outcome data","PrevDataOutcome_Ind8_Num","PrevDataOutcome!$T$5:$T$216","Numerator data for Indicator 8"]

{"sheet":"cost_data","index":18,"n_rows":215,"n_cols":54,"rows_kept":215,"cut":false,"hidden":true,"merged":[[2,40,2,41],[2,52,2,53],[2,42,2,43],[2,44,2,45],[2,46,2,47],[2,48,2,49],[2,50,2,51],[2,30,2,31],[2,32,2,33],[2,34,2,35],[2,36,2,37],[2,38,2,39],[2,20,2,21],[2,22,2,23],[2,24,2,25],[2,26,2,27],[2,28,2,29],[2,10,2,11],[2,12,2,13],[2,14,2,15],[2,16,2,17],[2,18,2,19],[2,0,2,1],[2,2,2,3],[2,4,2,5],[2,6,2,7],[2,8,2,9]]}
["www.hscic.gov.uk/gpprescribingdata",null,3,{"$f":"C1+1","v":4},{"$f":"D1+1","v":5},6,7,8,9,10,11,12,13,14,15,16,17,18,19,20,21,22,23,24,25,26,27,28,29,30,31,32,33,34,35,36,37,38,39,40,41,42,43,44,45,46,47,48,49,50,51,52,53,54]
[null,null,"Ind1",null,"Ind2",null,"Ind3",null,"Ind4",null,"Ind5",null,"Ind6",null,"Ind7",null,"Ind8",null,"Ind9",null,"Ind10",null,"Ind11",null,"Ind12",null,"Ind13",null,"Ind1",null,"Ind2",null,"Ind3",null,"Ind4",null,"Ind5",null,"Ind6",null,"Ind7",null,"Ind8",null,"Ind9",null,"Ind10",null,"Ind11",null,"Ind12",null,"Ind13"]
["R:\\WIP\\Will M\\CVHIN\\CVD_DOVE _TOOL_Datasets\\Prescribing_data",null,"Total spend on prescribing for CVD",null,"Spend on lipid regulators",null,"Spend on hypertension and heart failure prescriptions",null,"Spend on nitrates, calcium-channel blockers, and other antianginal drugs",null,"Spend on anticoagulants and protamine",null,"Spend on beta-adrenoceptor blocking drugs",null,"Spend on antiplatelet drugs",null,"Spend on diuretics",null,"Spend on anti-arrhythmic drugs",null,"Spend on positive inotropic drugs",null,"Spend on antifibrinolytic drugs and haemostatics",null,"Spend on sympathomimetics",null,"Average spend per cardiovascular item",null,"Total spend on prescribing for CVD",null,"Spend on lipid regulators",null,"Spend on hypertension and heart failure prescriptions",null,"Spend on nitrates, calcium-channel blockers, and other antianginal drugs",null,"Spend on anticoagulants and protamine",null,"Spend on beta-adrenoceptor blocking drugs",null,"Spend on antiplatelet drugs",null,"Spend on diuretics",null,"Spend on anti-arrhythmic drugs",null,"Spend on positive inotropic drugs",null,"Spend on antifibrinolytic drugs and haemostatics",null,"Spend on sympathomimetics",null,"Average spend per cardiovascular item"]
["CCG Code","CCGName","Total spend 2012/13","Persons (Modelled CVD number) 2012/13","Total spend 2012/13","Persons (Modelled CVD number) 2012/13","Total spend 2012/13","Persons (Modelled CVD number) 2012/13","Total spend 2012/13","Persons (Modelled CVD number) 2012/13","Total spend 2012/13","Persons (Modelled CVD number) 2012/13","Total spend 2012/13","Persons (Modelled CVD number) 2012/13","Total spend 2012/13","Persons (Modelled CVD number) 2012/13","Total spend 2012/13","Persons (Modelled CVD number) 2012/13","Total spend 2012/13","Persons (Modelled CVD number) 2012/13","Total spend 2012/13","Persons (Modelled CVD number) 2012/13","Total spend 2012/13","Persons (Modelled CVD number) 2012/13","Total spend 2012/13","Persons (Modelled CVD number) 2012/13","Average spend per item 2012/13","Number of Items 2012/13","Total spend on prescribing for CVD 2013/14","Persons (Modelled CVD number) 2013/14","NIC total 2013/14",{"$f":"AD4","v":"Persons (Modelled CVD number) 2013/14"},"NIC total 2013/14",{"$f":"AF4","v":"Persons (Modelled CVD number) 2013/14"},"NIC total 2013/14",{"$f":"AH4","v":"Persons (Modelled CVD number) 2013/14"},"NIC total 2013/14",{"$f":"AF4","v":"Persons (Modelled CVD number) 2013/14"},"NIC total 2013/14",{"$f":"AD4","v":"Persons (Modelled CVD number) 2013/14"},"NIC total 2013/14",{"$f":"AD4","v":"Persons (Modelled CVD number) 2013/14"},"NIC total 2013/14",{"$f":"AD4","v":"Persons (Modelled CVD number) 2013/14"},"NIC total 2013/14",{"$f":"AD4","v":"Persons (Modelled CVD number) 2013/14"},"NIC total 2013/14",{"$f":"AD4","v":"Persons (Modelled CVD number) 2013/14"},"NIC total 2013/14",{"$f":"AV4","v":"Persons (Modelled CVD number) 2013/14"},"NIC total 2013/14",{"$f":"AV4","v":"Persons (Modelled CVD number) 2013/14"},"Average spend per item 2013/14","Number of items 2013/14"]
["00C","NHS Darlington",{"$f":"VLOOKUP($A5,[4]CVD_All_prescriptions!$A$10:$D$223,4,0)","v":2028009.95},{"$f":"VLOOKUP($A5,Lookup!$BP$3:$BW$213,7,0)","v":10439.230316120165},{"$f":"VLOOKUP($A5,[4]Lipid_regulators!$A$14:$D$227,4,0)","v":590590.68000000098},{"$f":"D5","v":10439.230316120165},{"$f":"VLOOKUP($A5,[4]HyperandHeartfailure!$A$13:$D$226,4,0)","v":443090.18},{"$f":"D5","v":10439.230316120165},{"$f":"VLOOKUP($A5,[4]Nit_Calc_Antianginal!$A$13:$D$226,4,0)","v":347903.09},{"$f":"D5","v":10439.230316120165},{"$f":"VLOOKUP($A5,[4]Anti_coagulants!$A$15:$D$227,4,0)","v":150952.48000000001},{"$f":"D5","v":10439.230316120165},{"$f":"VLOOKUP($A5,[4]Beta_Adrenorecepter!$A$13:$D$226,4,0)","v":168140.49},{"$f":"D5","v":10439.230316120165},{"$f":"VLOOKUP($A5,[4]Anti_platelet!$A$13:$D$226,4,0)","v":128848.41},{"$f":"D5","v":10439.230316120165},{"$f":"VLOOKUP($A5,[4]Diuretics!$A$11:$D$224,4,0)","v":153294.57},{"$f":"P5","v":10439.230316120165},{"$f":"VLOOKUP($A5,[4]Anti_arrhythmic_drugs!$A$13:$D$226,4,0)","v":15726.8},{"$f":"P5","v":10439.230316120165},{"$f":"VLOOKUP($A5,[4]Positive_Intotropic!$A$13:$D$226,4,0)","v":10143.11},{"$f":"P5","v":10439.230316120165},{"$f":"VLOOKUP($A5,[4]anti_fibrinolytic!$A$13:$D$226,4,0)","v":7624.14},{"$f":"V5","v":10439.230316120165},{"$f":"VLOOKUP($A5,[4]sympathomimetics!$A$11:$D$223,4,0)","v":11696},{"$f":"X5","v":10439.230316120165},{"$f":"VLOOKUP($A5,[4]CVD_All_prescriptions!$A$10:$D$223,4,0)","v":2028009.95},{"$f":"VLOOKUP($A5,[4]CVD_All_prescriptions!$A$10:$D$223,3,0)","v":703279},{"$f":"VLOOKUP($A5,[5]CVD_All_prescriptions!$A$10:$C$392,3,0)","v":1978027.9510605},{"$f":"VLOOKUP($A5,Lookup!$BP$3:$BW$213,8,0)","v":10436.186923227961},{"$f":"VLOOKUP($A5,[5]Lipid_regulators!$A$12:$C$345,3,0)","v":423087.860352755},{"$f":"AD5","v":10436.186923227961},{"$f":"VLOOKUP($A5,[5]HyperandHeartfailure!$A$12:$C$356,3,0)","v":325557.04969400901},{"$f":"AD5","v":10436.186923227961},{"$f":"VLOOKUP($A5,[5]Nit_Calc_Antianginal!$A$12:$C$345,3,0)","v":400977.24964753498},{"$f":"AD5","v":10436.186923227961},{"$f":"VLOOKUP($A5,[5]Anti_coagulants!$A$11:$C$325,3,0)","v":230429.24013117701},{"$f":"AD5","v":10436.186923227961},{"$f":"VLOOKUP($A5,[5]Beta_Adrenorecepter!$A$11:$C$352,3,0)","v":197365.22002097999},{"$f":"AD5","v":10436.186923227961},{"$f":"VLOOKUP($A5,[5]Anti_platelet!$A$12:$C$335,3,0)","v":164768.63017816801},{"$f":"AD5","v":10436.186923227961},{"$f":"VLOOKUP($A5,[5]Diuretics!$A$12:$C$353,3,0)","v":192607.141144186},{"$f":"AD5","v":10436.186923227961},{"$f":"VLOOKUP($A5,[5]Anti_arrhythmic_drugs!$A$11:$C$271,3,0)","v":20585.779960751501},{"$f":"AD5","v":10436.186923227961},{"$f":"VLOOKUP($A5,[5]Positive_Intotropic!$A$12:$C$297,3,0)","v":8799.6799775213003},{"$f":"AT5","v":10436.186923227961},{"$f":"VLOOKUP($A5,[5]anti_fibrinolytic!$A$11:$C$287,3,0)","v":5816.9400041103399},{"$f":"AP5","v":10436.186923227961},{"$f":"VLOOKUP($A5,[5]sympathomimetics!$A$11:$C$223,3,0)","v":8033.1599493026697},{"$f":"AP5","v":10436.186923227961},{"$f":"VLOOKUP($A5,[5]CVD_All_prescriptions!$A$10:$C$392,3,0)","v":1978027.9510605},{"$f":"VLOOKUP($A5,[5]CVD_All_prescriptions!$A$10:$C$392,2,0)","v":713291}]
["00D","NHS Durham Dales, Easington and Sedgefield",{"$f":"VLOOKUP($A6,[4]CVD_All_prescriptions!$A$10:$D$223,4,0)","v":6839083.76000001},{"$f":"VLOOKUP($A6,Lookup!$BP$3:$BW$213,7,0)","v":26268.090154211153},{"$f":"VLOOKUP($A6,[4]Lipid_regulators!$A$14:$D$227,4,0)","v":2070388.8299999801},{"$f":"D6","v":26268.090154211153},{"$f":"VLOOKUP($A6,[4]HyperandHeartfailure!$A$13:$D$226,4,0)","v":1349187.41},{"$f":"D6","v":26268.090154211153},{"$f":"VLOOKUP($A6,[4]Nit_Calc_Antianginal!$A$13:$D$226,4,0)","v":1376301.28},{"$f":"D6","v":26268.090154211153},{"$f":"VLOOKUP($A6,[4]Anti_coagulants!$A$15:$D$227,4,0)","v":465059.429999999},{"$f":"D6","v":26268.090154211153},{"$f":"VLOOKUP($A6,[4]Beta_Adrenorecepter!$A$13:$D$226,4,0)","v":550620.21000000404},{"$f":"D6","v":26268.090154211153},{"$f":"VLOOKUP($A6,[4]Anti_platelet!$A$13:$D$226,4,0)","v":507643.19999999902},{"$f":"D6","v":26268.090154211153},{"$f":"VLOOKUP($A6,[4]Diuretics!$A$11:$D$224,4,0)","v":405127.56999999902},{"$f":"P6","v":26268.090154211153},{"$f":"VLOOKUP($A6,[4]Anti_arrhythmic_drugs!$A$13:$D$226,4,0)","v":49508.099999999897},{"$f":"P6","v":26268.090154211153},{"$f":"VLOOKUP($A6,[4]Positive_Intotropic!$A$13:$D$226,4,0)","v":28494.41},{"$f":"P6","v":26268.090154211153},{"$f":"VLOOKUP($A6,[4]anti_fibrinolytic!$A$13:$D$226,4,0)","v":27501.98},{"$f":"V6","v":26268.090154211153},{"$f":"VLOOKUP($A6,[4]sympathomimetics!$A$11:$D$223,4,0)","v":9251.34},{"$f":"X6","v":26268.090154211153},{"$f":"VLOOKUP($A6,[4]CVD_All_prescriptions!$A$10:$D$223,4,0)","v":6839083.76000001},{"$f":"VLOOKUP($A6,[4]CVD_All_prescriptions!$A$10:$D$223,3,0)","v":2487796},{"$f":"VLOOKUP($A6,[5]CVD_All_prescriptions!$A$10:$C$392,3,0)","v":6783943.5720154596},{"$f":"VLOOKUP($A6,Lookup!$BP$3:$BW$213,8,0)","v":26278.583812391644},{"$f":"VLOOKUP($A6,[5]Lipid_regulators!$A$12:$C$345,3,0)","v":1523120.6816060799},{"$f":"AD6","v":26278.583812391644},{"$f":"VLOOKUP($A6,[5]HyperandHeartfailure!$A$12:$C$356,3,0)","v":1055943.75984439},{"$f":"AD6","v":26278.583812391644},{"$f":"VLOOKUP($A6,[5]Nit_Calc_Antianginal!$A$12:$C$345,3,0)","v":1624185.8684324101},{"$f":"AD6","v":26278.583812391644},{"$f":"VLOOKUP($A6,[5]Anti_coagulants!$A$11:$C$325,3,0)","v":663019.37963226403},{"$f":"AD6","v":26278.583812391644},{"$f":"VLOOKUP($A6,[5]Beta_Adrenorecepter!$A$11:$C$352,3,0)","v":669117.02076018404},{"$f":"AD6","v":26278.583812391644},{"$f":"VLOOKUP($A6,[5]Anti_platelet!$A$12:$C$335,3,0)","v":597253.04965256201},{"$f":"AD6","v":26278.583812391644},{"$f":"VLOOKUP($A6,[5]Diuretics!$A$12:$C$353,3,0)","v":553509.90223541495},{"$f":"AD6","v":26278.583812391644},{"$f":"VLOOKUP($A6,[5]Anti_arrhythmic_drugs!$A$11:$C$271,3,0)","v":48180.1298660338},{"$f":"AD6","v":26278.583812391644},{"$f":"VLOOKUP($A6,[5]Positive_Intotropic!$A$12:$C$297,3,0)","v":23955.000009872001},{"$f":"AT6","v":26278.583812391644},{"$f":"VLOOKUP($A6,[5]anti_fibrinolytic!$A$11:$C$287,3,0)","v":18999.889970183402},{"$f":"AP6","v":26278.583812391644},{"$f":"VLOOKUP($A6,[5]sympathomimetics!$A$11:$C$223,3,0)","v":6658.8900060653696},{"$f":"AP6","v":26278.583812391644},{"$f":"VLOOKUP($A6,[5]CVD_All_prescriptions!$A$10:$C$392,3,0)","v":6783943.5720154596},{"$f":"VLOOKUP($A6,[5]CVD_All_prescriptions!$A$10:$C$392,2,0)","v":2594595}]
["00F","NHS Gateshead",{"$f":"VLOOKUP($A7,[4]CVD_All_prescriptions!$A$10:$D$223,4,0)","v":4425509.58},{"$f":"VLOOKUP($A7,Lookup!$BP$3:$BW$213,7,0)","v":19309.031352363127},{"$f":"VLOOKUP($A7,[4]Lipid_regulators!$A$14:$D$227,4,0)","v":1228705.29},19309.031352363127,{"$f":"VLOOKUP($A7,[4]HyperandHeartfailure!$A$13:$D$226,4,0)","v":1008643.82},19309.031352363127,{"$f":"VLOOKUP($A7,[4]Nit_Calc_Antianginal!$A$13:$D$226,4,0)","v":778940.09},19309.031352363127,{"$f":"VLOOKUP($A7,[4]Anti_coagulants!$A$15:$D$227,4,0)","v":468855.23000000097},19309.031352363127,{"$f":"VLOOKUP($A7,[4]Beta_Adrenorecepter!$A$13:$D$226,4,0)","v":265839.94000000099},19309.031352363127,{"$f":"VLOOKUP($A7,[4]Anti_platelet!$A$13:$D$226,4,0)","v":338538.52999999898},19309.031352363127,{"$f":"VLOOKUP($A7,[4]Diuretics!$A$11:$D$224,4,0)","v":237338.200000001},19309.031352363127,{"$f":"VLOOKUP($A7,[4]Anti_arrhythmic_drugs!$A$13:$D$226,4,0)","v":31288.44},19309.031352363127,{"$f":"VLOOKUP($A7,[4]Positive_Intotropic!$A$13:$D$226,4,0)","v":20320.52},19309.031352363127,{"$f":"VLOOKUP($A7,[4]anti_fibrinolytic!$A$13:$D$226,4,0)","v":22886.38},19309.031352363127,{"$f":"VLOOKUP($A7,[4]sympathomimetics!$A$11:$D$223,4,0)","v":24153.14},19309.031352363127,{"$f":"VLOOKUP($A7,[4]CVD_All_prescriptions!$A$10:$D$223,4,0)","v":4425509.58},{"$f":"VLOOKUP($A7,[4]CVD_All_prescriptions!$A$10:$D$223,3,0)","v":1492440},{"$f":"VLOOKUP($A7,[5]CVD_All_prescriptions!$A$10:$C$392,3,0)","v":4369538.17246411},{"$f":"VLOOKUP($A7,Lookup!$BP$3:$BW$213,8,0)","v":19220.87037903603},{"$f":"VLOOKUP($A7,[5]Lipid_regulators!$A$12:$C$345,3,0)","v":995811.34216825699},19220.87037903603,{"$f":"VLOOKUP($A7,[5]HyperandHeartfailure!$A$12:$C$356,3,0)","v":710485.41961921798},19220.87037903603,{"$f":"VLOOKUP($A7,[5]Nit_Calc_Antianginal!$A$12:$C$345,3,0)","v":919426.76971404301},19220.87037903603,{"$f":"VLOOKUP($A7,[5]Anti_coagulants!$A$11:$C$325,3,0)","v":633287.54986722802},19220.87037903603,{"$f":"VLOOKUP($A7,[5]Beta_Adrenorecepter!$A$11:$C$352,3,0)","v":340382.79060163698},19220.87037903603,{"$f":"VLOOKUP($A7,[5]Anti_platelet!$A$12:$C$335,3,0)","v":386706.67988165503},19220.87037903603,{"$f":"VLOOKUP($A7,[5]Diuretics!$A$12:$C$353,3,0)","v":290779.39069239801},19220.87037903603,{"$f":"VLOOKUP($A7,[5]Anti_arrhythmic_drugs!$A$11:$C$271,3,0)","v":31116.9999248981},19220.87037903603,{"$f":"VLOOKUP($A7,[5]Positive_Intotropic!$A$12:$C$297,3,0)","v":17110.679997205702},19220.87037903603,{"$f":"VLOOKUP($A7,[5]anti_fibrinolytic!$A$11:$C$287,3,0)","v":16769.389988184001},19220.87037903603,{"$f":"VLOOKUP($A7,[5]sympathomimetics!$A$11:$C$223,3,0)","v":27661.160009384199},19220.87037903603,{"$f":"VLOOKUP($A7,[5]CVD_All_prescriptions!$A$10:$C$392,3,0)","v":4369538.17246411},{"$f":"VLOOKUP($A7,[5]CVD_All_prescriptions!$A$10:$C$392,2,0)","v":1556663}]
["00G","NHS Newcastle North and East",{"$f":"VLOOKUP($A8,[4]CVD_All_prescriptions!$A$10:$D$223,4,0)","v":2367175.29},{"$f":"VLOOKUP($A8,Lookup!$BP$3:$BW$213,7,0)","v":18564.917291443529},{"$f":"VLOOKUP($A8,[4]Lipid_regulators!$A$14:$D$227,4,0)","v":729886.54999999795},18564.917291443529,{"$f":"VLOOKUP($A8,[4]HyperandHeartfailure!$A$13:$D$226,4,0)","v":496466.65},18564.917291443529,{"$f":"VLOOKUP($A8,[4]Nit_Calc_Antianginal!$A$13:$D$226,4,0)","v":431440.94999999902},18564.917291443529,{"$f":"VLOOKUP($A8,[4]Anti_coagulants!$A$15:$D$227,4,0)","v":210584.32000000001},18564.917291443529,{"$f":"VLOOKUP($A8,[4]Beta_Adrenorecepter!$A$13:$D$226,4,0)","v":153107.51999999999},18564.917291443529,{"$f":"VLOOKUP($A8,[4]Anti_platelet!$A$13:$D$226,4,0)","v":177818.19},18564.917291443529,{"$f":"VLOOKUP($A8,[4]Diuretics!$A$11:$D$224,4,0)","v":137753.81},18564.917291443529,{"$f":"VLOOKUP($A8,[4]Anti_arrhythmic_drugs!$A$13:$D$226,4,0)","v":6572.1400000000103},18564.917291443529,{"$f":"VLOOKUP($A8,[4]Positive_Intotropic!$A$13:$D$226,4,0)","v":10699.98},18564.917291443529,{"$f":"VLOOKUP($A8,[4]anti_fibrinolytic!$A$13:$D$226,4,0)","v":10366.629999999999},18564.917291443529,{"$f":"VLOOKUP($A8,[4]sympathomimetics!$A$11:$D$223,4,0)","v":2478.5500000000002},18564.917291443529,{"$f":"VLOOKUP($A8,[4]CVD_All_prescriptions!$A$10:$D$223,4,0)","v":2367175.29},{"$f":"VLOOKUP($A8,[4]CVD_All_prescriptions!$A$10:$D$223,3,0)","v":827315},{"$f":"VLOOKUP($A8,[5]CVD_All_prescriptions!$A$10:$C$392,3,0)","v":2408136.5797482301},{"$f":"VLOOKUP($A8,Lookup!$BP$3:$BW$213,8,0)","v":19167.678210163034},{"$f":"VLOOKUP($A8,[5]Lipid_regulators!$A$12:$C$345,3,0)","v":547398.96020674706},19167.678210163034,{"$f":"VLOOKUP($A8,[5]HyperandHeartfailure!$A$12:$C$356,3,0)","v":379064.57960030402},19167.678210163034,{"$f":"VLOOKUP($A8,[5]Nit_Calc_Antianginal!$A$12:$C$345,3,0)","v":512915.92969362403},19167.678210163034,{"$f":"VLOOKUP($A8,[5]Anti_coagulants!$A$11:$C$325,3,0)","v":370568.819402266},19167.678210163034,{"$f":"VLOOKUP($A8,[5]Beta_Adrenorecepter!$A$11:$C$352,3,0)","v":195391.90989538099},19167.678210163034,{"$f":"VLOOKUP($A8,[5]Anti_platelet!$A$12:$C$335,3,0)","v":200900.31043303799},19167.678210163034,{"$f":"VLOOKUP($A8,[5]Diuretics!$A$12:$C$353,3,0)","v":170353.84052224501},19167.678210163034,{"$f":"VLOOKUP($A8,[5]Anti_arrhythmic_drugs!$A$11:$C$271,3,0)","v":11925.4299834557},19167.678210163034,{"$f":"VLOOKUP($A8,[5]Positive_Intotropic!$A$12:$C$297,3,0)","v":9197.58997870237},19167.678210163034,{"$f":"VLOOKUP($A8,[5]anti_fibrinolytic!$A$11:$C$287,3,0)","v":7712.8200139999399},19167.678210163034,{"$f":"VLOOKUP($A8,[5]sympathomimetics!$A$11:$C$223,3,0)","v":2706.3900184631302},19167.678210163034,{"$f":"VLOOKUP($A8,[5]CVD_All_prescriptions!$A$10:$C$392,3,0)","v":2408136.5797482301},{"$f":"VLOOKUP($A8,[5]CVD_All_prescriptions!$A$10:$C$392,2,0)","v":852649}]
["00H","NHS Newcastle West",{"$f":"VLOOKUP($A9,[4]CVD_All_prescriptions!$A$10:$D$223,4,0)","v":2442138.6800000002},{"$f":"VLOOKUP($A9,Lookup!$BP$3:$BW$213,7,0)","v":13433.462007314101},{"$f":"VLOOKUP($A9,[4]Lipid_regulators!$A$14:$D$227,4,0)","v":769436.44999999797},13433.462007314101,{"$f":"VLOOKUP($A9,[4]HyperandHeartfailure!$A$13:$D$226,4,0)","v":480518.46},13433.462007314101,{"$f":"VLOOKUP($A9,[4]Nit_Calc_Antianginal!$A$13:$D$226,4,0)","v":432250.76},13433.462007314101,{"$f":"VLOOKUP($A9,[4]Anti_coagulants!$A$15:$D$227,4,0)","v":218699.5},13433.462007314101,{"$f":"VLOOKUP($A9,[4]Beta_Adrenorecepter!$A$13:$D$226,4,0)","v":158368.85},13433.462007314101,{"$f":"VLOOKUP($A9,[4]Anti_platelet!$A$13:$D$226,4,0)","v":213870.94},13433.462007314101,{"$f":"VLOOKUP($A9,[4]Diuretics!$A$11:$D$224,4,0)","v":135495.64000000001},13433.462007314101,{"$f":"VLOOKUP($A9,[4]Anti_arrhythmic_drugs!$A$13:$D$226,4,0)","v":9900.6300000000101},13433.462007314101,{"$f":"VLOOKUP($A9,[4]Positive_Intotropic!$A$13:$D$226,4,0)","v":10978.29},13433.462007314101,{"$f":"VLOOKUP($A9,[4]anti_fibrinolytic!$A$13:$D$226,4,0)","v":9719.7099999999991},13433.462007314101,{"$f":"VLOOKUP($A9,[4]sympathomimetics!$A$11:$D$223,4,0)","v":2899.45},13433.462007314101,{"$f":"VLOOKUP($A9,[4]CVD_All_prescriptions!$A$10:$D$223,4,0)","v":2442138.6800000002},{"$f":"VLOOKUP($A9,[4]CVD_All_prescriptions!$A$10:$D$223,3,0)","v":929869},{"$f":"VLOOKUP($A9,[5]CVD_All_prescriptions!$A$10:$C$392,3,0)","v":2528277.1714706598},{"$f":"VLOOKUP($A9,Lookup!$BP$3:$BW$213,8,0)","v":13656.135717188135},{"$f":"VLOOKUP($A9,[5]Lipid_regulators!$A$12:$C$345,3,0)","v":584169.58063066006},13656.135717188135,{"$f":"VLOOKUP($A9,[5]HyperandHeartfailure!$A$12:$C$356,3,0)","v":372656.08003471798},13656.135717188135,{"$f":"VLOOKUP($A9,[5]Nit_Calc_Antianginal!$A$12:$C$345,3,0)","v":542501.70997571899},13656.135717188135,{"$f":"VLOOKUP($A9,[5]Anti_coagulants!$A$11:$C$325,3,0)","v":376373.98957872402},13656.135717188135,{"$f":"VLOOKUP($A9,[5]Beta_Adrenorecepter!$A$11:$C$352,3,0)","v":206773.460247785},13656.135717188135,{"$f":"VLOOKUP($A9,[5]Anti_platelet!$A$12:$C$335,3,0)","v":236418.980167642},13656.135717188135,{"$f":"VLOOKUP($A9,[5]Diuretics!$A$12:$C$353,3,0)","v":175989.28088878101},13656.135717188135,{"$f":"VLOOKUP($A9,[5]Anti_arrhythmic_drugs!$A$11:$C$271,3,0)","v":10622.9199984074},13656.135717188135,{"$f":"VLOOKUP($A9,[5]Positive_Intotropic!$A$12:$C$297,3,0)","v":9603.3799959421194},13656.135717188135,{"$f":"VLOOKUP($A9,[5]anti_fibrinolytic!$A$11:$C$287,3,0)","v":8010.3999986648596},13656.135717188135,{"$f":"VLOOKUP($A9,[5]sympathomimetics!$A$11:$C$223,3,0)","v":5157.3899536132803},13656.135717188135,{"$f":"VLOOKUP($A9,[5]CVD_All_prescriptions!$A$10:$C$392,3,0)","v":2528277.1714706598},{"$f":"VLOOKUP($A9,[5]CVD_All_prescriptions!$A$10:$C$392,2,0)","v":968295}]
["00J","NHS North Durham",{"$f":"VLOOKUP($A10,[4]CVD_All_prescriptions!$A$10:$D$223,4,0)","v":5076173.33},{"$f":"VLOOKUP($A10,Lookup!$BP$3:$BW$213,7,0)","v":25705.864229228715},{"$f":"VLOOKUP($A10,[4]Lipid_regulators!$A$14:$D$227,4,0)","v":1534571.65},25705.864229228715,{"$f":"VLOOKUP($A10,[4]HyperandHeartfailure!$A$13:$D$226,4,0)","v":1112097.3700000001},25705.864229228715,{"$f":"VLOOKUP($A10,[4]Nit_Calc_Antianginal!$A$13:$D$226,4,0)","v":921051.20999999903},25705.864229228715,{"$f":"VLOOKUP($A10,[4]Anti_coagulants!$A$15:$D$227,4,0)","v":381947.21},25705.864229228715,{"$f":"VLOOKUP($A10,[4]Beta_Adrenorecepter!$A$13:$D$226,4,0)","v":356121.36000000202},25705.864229228715,{"$f":"VLOOKUP($A10,[4]Anti_platelet!$A$13:$D$226,4,0)","v":406796.80999999802},25705.864229228715,{"$f":"VLOOKUP($A10,[4]Diuretics!$A$11:$D$224,4,0)","v":267789.36},25705.864229228715,{"$f":"VLOOKUP($A10,[4]Anti_arrhythmic_drugs!$A$13:$D$226,4,0)","v":40894.229999999901},25705.864229228715,{"$f":"VLOOKUP($A10,[4]Positive_Intotropic!$A$13:$D$226,4,0)","v":22881.9},25705.864229228715,{"$f":"VLOOKUP($A10,[4]anti_fibrinolytic!$A$13:$D$226,4,0)","v":22773.119999999999},25705.864229228715,{"$f":"VLOOKUP($A10,[4]sympathomimetics!$A$11:$D$223,4,0)","v":9249.11},25705.864229228715,{"$f":"VLOOKUP($A10,[4]CVD_All_prescriptions!$A$10:$D$223,4,0)","v":5076173.33},{"$f":"VLOOKUP($A10,[4]CVD_All_prescriptions!$A$10:$D$223,3,0)","v":1689017},{"$f":"VLOOKUP($A10,[5]CVD_All_prescriptions!$A$10:$C$392,3,0)","v":5114352.6443343898},{"$f":"VLOOKUP($A10,Lookup!$BP$3:$BW$213,8,0)","v":25865.256239088016},{"$f":"VLOOKUP($A10,[5]Lipid_regulators!$A$12:$C$345,3,0)","v":1201160.17191495},25865.256239088016,{"$f":"VLOOKUP($A10,[5]HyperandHeartfailure!$A$12:$C$356,3,0)","v":852544.19944861496},25865.256239088016,{"$f":"VLOOKUP($A10,[5]Nit_Calc_Antianginal!$A$12:$C$345,3,0)","v":1159853.8102660801},25865.256239088016,{"$f":"VLOOKUP($A10,[5]Anti_coagulants!$A$11:$C$325,3,0)","v":487490.40038241399},25865.256239088016,{"$f":"VLOOKUP($A10,[5]Beta_Adrenorecepter!$A$11:$C$352,3,0)","v":461459.35073726601},25865.256239088016,{"$f":"VLOOKUP($A10,[5]Anti_platelet!$A$12:$C$335,3,0)","v":481667.400603652},25865.256239088016,{"$f":"VLOOKUP($A10,[5]Diuretics!$A$12:$C$353,3,0)","v":390246.31105711102},25865.256239088016,{"$f":"VLOOKUP($A10,[5]Anti_arrhythmic_drugs!$A$11:$C$271,3,0)","v":40014.379938527898},25865.256239088016,{"$f":"VLOOKUP($A10,[5]Positive_Intotropic!$A$12:$C$297,3,0)","v":18116.890012100299},25865.256239088016,{"$f":"VLOOKUP($A10,[5]anti_fibrinolytic!$A$11:$C$287,3,0)","v":16164.899990916299},25865.256239088016,{"$f":"VLOOKUP($A10,[5]sympathomimetics!$A$11:$C$223,3,0)","v":5634.8299827575702},25865.256239088016,{"$f":"VLOOKUP($A10,[5]CVD_All_prescriptions!$A$10:$C$392,3,0)","v":5114352.6443343898},{"$f":"VLOOKUP($A10,[5]CVD_All_prescriptions!$A$10:$C$392,2,0)","v":1774891}]
["00K","NHS Hartlepool and Stockton-On-Tees",{"$f":"VLOOKUP($A11,[4]CVD_All_prescriptions!$A$10:$D$223,4,0)","v":5801824.8899999997},{"$f":"VLOOKUP($A11,Lookup!$BP$3:$BW$213,7,0)","v":29453.966005665723},{"$f":"VLOOKUP($A11,[4]Lipid_regulators!$A$14:$D$227,4,0)","v":1593313.39},29453.966005665723,{"$f":"VLOOKUP($A11,[4]HyperandHeartfailure!$A$13:$D$226,4,0)","v":1136888.69},29453.966005665723,{"$f":"VLOOKUP($A11,[4]Nit_Calc_Antianginal!$A$13:$D$226,4,0)","v":1226387.7},29453.966005665723,{"$f":"VLOOKUP($A11,[4]Anti_coagulants!$A$15:$D$227,4,0)","v":542360.68000000005},29453.966005665723,{"$f":"VLOOKUP($A11,[4]Beta_Adrenorecepter!$A$13:$D$226,4,0)","v":473062.22000000498},29453.966005665723,{"$f":"VLOOKUP($A11,[4]Anti_platelet!$A$13:$D$226,4,0)","v":416910.18},29453.966005665723,{"$f":"VLOOKUP($A11,[4]Diuretics!$A$11:$D$224,4,0)","v":331747.39},29453.966005665723,{"$f":"VLOOKUP($A11,[4]Anti_arrhythmic_drugs!$A$13:$D$226,4,0)","v":29176.2},29453.966005665723,{"$f":"VLOOKUP($A11,[4]Positive_Intotropic!$A$13:$D$226,4,0)","v":27261.959999999901},29453.966005665723,{"$f":"VLOOKUP($A11,[4]anti_fibrinolytic!$A$13:$D$226,4,0)","v":22431.89},29453.966005665723,{"$f":"VLOOKUP($A11,[4]sympathomimetics!$A$11:$D$223,4,0)","v":2284.59},29453.966005665723,{"$f":"VLOOKUP($A11,[4]CVD_All_prescriptions!$A$10:$D$223,4,0)","v":5801824.8899999997},{"$f":"VLOOKUP($A11,[4]CVD_All_prescriptions!$A$10:$D$223,3,0)","v":1737851},{"$f":"VLOOKUP($A11,[5]CVD_All_prescriptions!$A$10:$C$392,3,0)","v":5942883.6532499203},{"$f":"VLOOKUP($A11,Lookup!$BP$3:$BW$213,8,0)","v":29562.120598947793},{"$f":"VLOOKUP($A11,[5]Lipid_regulators!$A$12:$C$345,3,0)","v":1234517.9309812901},29562.120598947793,{"$f":"VLOOKUP($A11,[5]HyperandHeartfailure!$A$12:$C$356,3,0)","v":931545.580580018},29562.120598947793,{"$f":"VLOOKUP($A11,[5]Nit_Calc_Antianginal!$A$12:$C$345,3,0)","v":1481484.9993811499},29562.120598947793,{"$f":"VLOOKUP($A11,[5]Anti_coagulants!$A$11:$C$325,3,0)","v":685146.59969188296},29562.120598947793,{"$f":"VLOOKUP($A11,[5]Beta_Adrenorecepter!$A$11:$C$352,3,0)","v":556431.68041254196},29562.120598947793,{"$f":"VLOOKUP($A11,[5]Anti_platelet!$A$12:$C$335,3,0)","v":527046.359855633},29562.120598947793,{"$f":"VLOOKUP($A11,[5]Diuretics!$A$12:$C$353,3,0)","v":456803.15228124702},29562.120598947793,{"$f":"VLOOKUP($A11,[5]Anti_arrhythmic_drugs!$A$11:$C$271,3,0)","v":25962.480066150401},29562.120598947793,{"$f":"VLOOKUP($A11,[5]Positive_Intotropic!$A$12:$C$297,3,0)","v":22526.469976782799},29562.120598947793,{"$f":"VLOOKUP($A11,[5]anti_fibrinolytic!$A$11:$C$287,3,0)","v":19746.0900008678},29562.120598947793,{"$f":"VLOOKUP($A11,[5]sympathomimetics!$A$11:$C$223,3,0)","v":1672.3100223541301},29562.120598947793,{"$f":"VLOOKUP($A11,[5]CVD_All_prescriptions!$A$10:$C$392,3,0)","v":5942883.6532499203},{"$f":"VLOOKUP($A11,[5]CVD_All_prescriptions!$A$10:$C$392,2,0)","v":1771672}]
["00L","NHS Northumberland",{"$f":"VLOOKUP($A12,[4]CVD_All_prescriptions!$A$10:$D$223,4,0)","v":7763267.0300000003},{"$f":"VLOOKUP($A12,Lookup!$BP$3:$BW$213,7,0)","v":29405.995795631112},{"$f":"VLOOKUP($A12,[4]Lipid_regulators!$A$14:$D$227,4,0)","v":2060897.5300000201},29405.995795631112,{"$f":"VLOOKUP($A12,[4]HyperandHeartfailure!$A$13:$D$226,4,0)","v":1696953.11},29405.995795631112,{"$f":"VLOOKUP($A12,[4]Nit_Calc_Antianginal!$A$13:$D$226,4,0)","v":1658903.22},29405.995795631112,{"$f":"VLOOKUP($A12,[4]Anti_coagulants!$A$15:$D$227,4,0)","v":829229.77000000596},29405.995795631112,{"$f":"VLOOKUP($A12,[4]Beta_Adrenorecepter!$A$13:$D$226,4,0)","v":517929.65},29405.995795631112,{"$f":"VLOOKUP($A12,[4]Anti_platelet!$A$13:$D$226,4,0)","v":487331.03999999602},29405.995795631112,{"$f":"VLOOKUP($A12,[4]Diuretics!$A$11:$D$224,4,0)","v":387023.05999999802},29405.995795631112,{"$f":"VLOOKUP($A12,[4]Anti_arrhythmic_drugs!$A$13:$D$226,4,0)","v":45480.579999999798},29405.995795631112,{"$f":"VLOOKUP($A12,[4]Positive_Intotropic!$A$13:$D$226,4,0)","v":41461.369999999901},29405.995795631112,{"$f":"VLOOKUP($A12,[4]anti_fibrinolytic!$A$13:$D$226,4,0)","v":26312.43},29405.995795631112,{"$f":"VLOOKUP($A12,[4]sympathomimetics!$A$11:$D$223,4,0)","v":11745.27},29405.995795631112,{"$f":"VLOOKUP($A12,[4]CVD_All_prescriptions!$A$10:$D$223,4,0)","v":7763267.0300000003},{"$f":"VLOOKUP($A12,[4]CVD_All_prescriptions!$A$10:$D$223,3,0)","v":2504494},{"$f":"VLOOKUP($A12,[5]CVD_All_prescriptions!$A$10:$C$392,3,0)","v":7698607.3839175701},{"$f":"VLOOKUP($A12,Lookup!$BP$3:$BW$213,8,0)","v":29351.978795356914},{"$f":"VLOOKUP($A12,[5]Lipid_regulators!$A$12:$C$345,3,0)","v":1609756.1920368499},29351.978795356914,{"$f":"VLOOKUP($A12,[5]HyperandHeartfailure!$A$12:$C$356,3,0)","v":1179357.96046002},29351.978795356914,{"$f":"VLOOKUP($A12,[5]Nit_Calc_Antianginal!$A$12:$C$345,3,0)","v":1878180.6209789801},29351.978795356914,{"$f":"VLOOKUP($A12,[5]Anti_coagulants!$A$11:$C$325,3,0)","v":1240840.18909501},29351.978795356914,{"$f":"VLOOKUP($A12,[5]Beta_Adrenorecepter!$A$11:$C$352,3,0)","v":640085.16049969394},29351.978795356914,{"$f":"VLOOKUP($A12,[5]Anti_platelet!$A$12:$C$335,3,0)","v":537183.31943611603},29351.978795356914,{"$f":"VLOOKUP($A12,[5]Diuretics!$A$12:$C$353,3,0)","v":501151.871533003},29351.978795356914,{"$f":"VLOOKUP($A12,[5]Anti_arrhythmic_drugs!$A$11:$C$271,3,0)","v":44222.800005763798},29351.978795356914,{"$f":"VLOOKUP($A12,[5]Positive_Intotropic!$A$12:$C$297,3,0)","v":34820.899994529798},29351.978795356914,{"$f":"VLOOKUP($A12,[5]anti_fibrinolytic!$A$11:$C$287,3,0)","v":19529.7999615669},29351.978795356914,{"$f":"VLOOKUP($A12,[5]sympathomimetics!$A$11:$C$223,3,0)","v":13478.569916037801},29351.978795356914,{"$f":"VLOOKUP($A12,[5]CVD_All_prescriptions!$A$10:$C$392,3,0)","v":7698607.3839175701},{"$f":"VLOOKUP($A12,[5]CVD_All_prescriptions!$A$10:$C$392,2,0)","v":2497108}]
["00M","NHS South Tees",{"$f":"VLOOKUP($A13,[4]CVD_All_prescriptions!$A$10:$D$223,4,0)","v":6072586.2900000103},{"$f":"VLOOKUP($A13,Lookup!$BP$3:$BW$213,7,0)","v":28326.808842146263},{"$f":"VLOOKUP($A13,[4]Lipid_regulators!$A$14:$D$227,4,0)","v":1550035.8300000101},28326.808842146263,{"$f":"VLOOKUP($A13,[4]HyperandHeartfailure!$A$13:$D$226,4,0)","v":1074729.93},28326.808842146263,{"$f":"VLOOKUP($A13,[4]Nit_Calc_Antianginal!$A$13:$D$226,4,0)","v":1222091.3400000001},28326.808842146263,{"$f":"VLOOKUP($A13,[4]Anti_coagulants!$A$15:$D$227,4,0)","v":775756.09000000404},28326.808842146263,{"$f":"VLOOKUP($A13,[4]Beta_Adrenorecepter!$A$13:$D$226,4,0)","v":489292.87000000401},28326.808842146263,{"$f":"VLOOKUP($A13,[4]Anti_platelet!$A$13:$D$226,4,0)","v":483910.40999999898},28326.808842146263,{"$f":"VLOOKUP($A13,[4]Diuretics!$A$11:$D$224,4,0)","v":379232.58999999601},28326.808842146263,{"$f":"VLOOKUP($A13,[4]Anti_arrhythmic_drugs!$A$13:$D$226,4,0)","v":39800.309999999903},28326.808842146263,{"$f":"VLOOKUP($A13,[4]Positive_Intotropic!$A$13:$D$226,4,0)","v":22260.82},28326.808842146263,{"$f":"VLOOKUP($A13,[4]anti_fibrinolytic!$A$13:$D$226,4,0)","v":28216.78},28326.808842146263,{"$f":"VLOOKUP($A13,[4]sympathomimetics!$A$11:$D$223,4,0)","v":7259.32},28326.808842146263,{"$f":"VLOOKUP($A13,[4]CVD_All_prescriptions!$A$10:$D$223,4,0)","v":6072586.2900000103},{"$f":"VLOOKUP($A13,[4]CVD_All_prescriptions!$A$10:$D$223,3,0)","v":2009185},{"$f":"VLOOKUP($A13,[5]CVD_All_prescriptions!$A$10:$C$392,3,0)","v":6061111.2229806399},{"$f":"VLOOKUP($A13,Lookup!$BP$3:$BW$213,8,0)","v":28398.870386600447},{"$f":"VLOOKUP($A13,[5]Lipid_regulators!$A$12:$C$345,3,0)","v":1134399.5303024501},28398.870386600447,{"$f":"VLOOKUP($A13,[5]HyperandHeartfailure!$A$12:$C$356,3,0)","v":864555.24045496096},28398.870386600447,{"$f":"VLOOKUP($A13,[5]Nit_Calc_Antianginal!$A$12:$C$345,3,0)","v":1324053.7596380301},28398.870386600447,{"$f":"VLOOKUP($A13,[5]Anti_coagulants!$A$11:$C$325,3,0)","v":976120.74907357199},28398.870386600447,{"$f":"VLOOKUP($A13,[5]Beta_Adrenorecepter!$A$11:$C$352,3,0)","v":566133.35070693097},28398.870386600447,{"$f":"VLOOKUP($A13,[5]Anti_platelet!$A$12:$C$335,3,0)","v":570484.61000263703},28398.870386600447,{"$f":"VLOOKUP($A13,[5]Diuretics!$A$12:$C$353,3,0)","v":535111.57285371399},28398.870386600447,{"$f":"VLOOKUP($A13,[5]Anti_arrhythmic_drugs!$A$11:$C$271,3,0)","v":39150.549897104502},28398.870386600447,{"$f":"VLOOKUP($A13,[5]Positive_Intotropic!$A$12:$C$297,3,0)","v":17943.360008806001},28398.870386600447,{"$f":"VLOOKUP($A13,[5]anti_fibrinolytic!$A$11:$C$287,3,0)","v":21500.700002193498},28398.870386600447,{"$f":"VLOOKUP($A13,[5]sympathomimetics!$A$11:$C$223,3,0)","v":11657.8000402451},28398.870386600447,{"$f":"VLOOKUP($A13,[5]CVD_All_prescriptions!$A$10:$C$392,3,0)","v":6061111.2229806399},{"$f":"VLOOKUP($A13,[5]CVD_All_prescriptions!$A$10:$C$392,2,0)","v":2051763}]
["00N","NHS South Tyneside",{"$f":"VLOOKUP($A14,[4]CVD_All_prescriptions!$A$10:$D$223,4,0)","v":3512930.89},{"$f":"VLOOKUP($A14,Lookup!$BP$3:$BW$213,7,0)","v":15038.450306629027},{"$f":"VLOOKUP($A14,[4]Lipid_regulators!$A$14:$D$227,4,0)","v":1125673.3400000001},15038.450306629027,{"$f":"VLOOKUP($A14,[4]HyperandHeartfailure!$A$13:$D$226,4,0)","v":759703.36},15038.450306629027,{"$f":"VLOOKUP($A14,[4]Nit_Calc_Antianginal!$A$13:$D$226,4,0)","v":626196.34},15038.450306629027,{"$f":"VLOOKUP($A14,[4]Anti_coagulants!$A$15:$D$227,4,0)","v":273316.109999999},15038.450306629027,{"$f":"VLOOKUP($A14,[4]Beta_Adrenorecepter!$A$13:$D$226,4,0)","v":250864.27},15038.450306629027,{"$f":"VLOOKUP($A14,[4]Anti_platelet!$A$13:$D$226,4,0)","v":250743.32},15038.450306629027,{"$f":"VLOOKUP($A14,[4]Diuretics!$A$11:$D$224,4,0)","v":181473.09},15038.450306629027,{"$f":"VLOOKUP($A14,[4]Anti_arrhythmic_drugs!$A$13:$D$226,4,0)","v":15718.78},15038.450306629027,{"$f":"VLOOKUP($A14,[4]Positive_Intotropic!$A$13:$D$226,4,0)","v":15159.56},15038.450306629027,{"$f":"VLOOKUP($A14,[4]anti_fibrinolytic!$A$13:$D$226,4,0)","v":14034.94},15038.450306629027,{"$f":"VLOOKUP($A14,[4]sympathomimetics!$A$11:$D$223,4,0)","v":47.78},15038.450306629027,{"$f":"VLOOKUP($A14,[4]CVD_All_prescriptions!$A$10:$D$223,4,0)","v":3512930.89},{"$f":"VLOOKUP($A14,[4]CVD_All_prescriptions!$A$10:$D$223,3,0)","v":1148492},{"$f":"VLOOKUP($A14,[5]CVD_All_prescriptions!$A$10:$C$392,3,0)","v":3432190.3909234898},{"$f":"VLOOKUP($A14,Lookup!$BP$3:$BW$213,8,0)","v":15050.423440085662},{"$f":"VLOOKUP($A14,[5]Lipid_regulators!$A$12:$C$345,3,0)","v":872906.48050308996},15050.423440085662,{"$f":"VLOOKUP($A14,[5]HyperandHeartfailure!$A$12:$C$356,3,0)","v":548870.81947836303},15050.423440085662,{"$f":"VLOOKUP($A14,[5]Nit_Calc_Antianginal!$A$12:$C$345,3,0)","v":837433.22946495598},15050.423440085662,{"$f":"VLOOKUP($A14,[5]Anti_coagulants!$A$11:$C$325,3,0)","v":351785.04015629698},15050.423440085662,{"$f":"VLOOKUP($A14,[5]Beta_Adrenorecepter!$A$11:$C$352,3,0)","v":299791.67020301498},15050.423440085662,{"$f":"VLOOKUP($A14,[5]Anti_platelet!$A$12:$C$335,3,0)","v":249454.010452032},15050.423440085662,{"$f":"VLOOKUP($A14,[5]Diuretics!$A$12:$C$353,3,0)","v":227214.610597249},15050.423440085662,{"$f":"VLOOKUP($A14,[5]Anti_arrhythmic_drugs!$A$11:$C$271,3,0)","v":17476.020013213201},15050.423440085662,{"$f":"VLOOKUP($A14,[5]Positive_Intotropic!$A$12:$C$297,3,0)","v":13287.2199713886},15050.423440085662,{"$f":"VLOOKUP($A14,[5]anti_fibrinolytic!$A$11:$C$287,3,0)","v":9340.0799894332904},15050.423440085662,{"$f":"VLOOKUP($A14,[5]sympathomimetics!$A$11:$C$223,3,0)","v":4631.2100944518997},15050.423440085662,{"$f":"VLOOKUP($A14,[5]CVD_All_prescriptions!$A$10:$C$392,3,0)","v":3432190.3909234898},{"$f":"VLOOKUP($A14,[5]CVD_All_prescriptions!$A$10:$C$392,2,0)","v":1173168}]
["00P","NHS Sunderland",{"$f":"VLOOKUP($A15,[4]CVD_All_prescriptions!$A$10:$D$223,4,0)","v":6879664.7000000104},{"$f":"VLOOKUP($A15,Lookup!$BP$3:$BW$213,7,0)","v":27647.287954036419},{"$f":"VLOOKUP($A15,[4]Lipid_regulators!$A$14:$D$227,4,0)","v":2180057.4500000002},27647.287954036419,{"$f":"VLOOKUP($A15,[4]HyperandHeartfailure!$A$13:$D$226,4,0)","v":1682533.09},27647.287954036419,{"$f":"VLOOKUP($A15,[4]Nit_Calc_Antianginal!$A$13:$D$226,4,0)","v":1130876.8899999999},27647.287954036419,{"$f":"VLOOKUP($A15,[4]Anti_coagulants!$A$15:$D$227,4,0)","v":386045.37999999902},27647.287954036419,{"$f":"VLOOKUP($A15,[4]Beta_Adrenorecepter!$A$13:$D$226,4,0)","v":537912.82000000204},27647.287954036419,{"$f":"VLOOKUP($A15,[4]Anti_platelet!$A$13:$D$226,4,0)","v":521119.44999999902},27647.287954036419,{"$f":"VLOOKUP($A15,[4]Diuretics!$A$11:$D$224,4,0)","v":344149.14999999898},27647.287954036419,{"$f":"VLOOKUP($A15,[4]Anti_arrhythmic_drugs!$A$13:$D$226,4,0)","v":28367.02},27647.287954036419,{"$f":"VLOOKUP($A15,[4]Positive_Intotropic!$A$13:$D$226,4,0)","v":24448.529999999901},27647.287954036419,{"$f":"VLOOKUP($A15,[4]anti_fibrinolytic!$A$13:$D$226,4,0)","v":35841.640000000101},27647.287954036419,{"$f":"VLOOKUP($A15,[4]sympathomimetics!$A$11:$D$223,4,0)","v":8313.2800000000007},27647.287954036419,{"$f":"VLOOKUP($A15,[4]CVD_All_prescriptions!$A$10:$D$223,4,0)","v":6879664.7000000104},{"$f":"VLOOKUP($A15,[4]CVD_All_prescriptions!$A$10:$D$223,3,0)","v":2386750},{"$f":"VLOOKUP($A15,[5]CVD_All_prescriptions!$A$10:$C$392,3,0)","v":6611381.2546937},{"$f":"VLOOKUP($A15,Lookup!$BP$3:$BW$213,8,0)","v":27603.271983640083},{"$f":"VLOOKUP($A15,[5]Lipid_regulators!$A$12:$C$345,3,0)","v":1667053.4808517599},27603.271983640083,{"$f":"VLOOKUP($A15,[5]HyperandHeartfailure!$A$12:$C$356,3,0)","v":1191868.28990696},27603.271983640083,{"$f":"VLOOKUP($A15,[5]Nit_Calc_Antianginal!$A$12:$C$345,3,0)","v":1499465.60952541},27603.271983640083,{"$f":"VLOOKUP($A15,[5]Anti_coagulants!$A$11:$C$325,3,0)","v":566297.88137257099},27603.271983640083,{"$f":"VLOOKUP($A15,[5]Beta_Adrenorecepter!$A$11:$C$352,3,0)","v":609552.46026175295},27603.271983640083,{"$f":"VLOOKUP($A15,[5]Anti_platelet!$A$12:$C$335,3,0)","v":521907.46010852},27603.271983640083,{"$f":"VLOOKUP($A15,[5]Diuretics!$A$12:$C$353,3,0)","v":467130.21268509899},27603.271983640083,{"$f":"VLOOKUP($A15,[5]Anti_arrhythmic_drugs!$A$11:$C$271,3,0)","v":33683.260090231903},27603.271983640083,{"$f":"VLOOKUP($A15,[5]Positive_Intotropic!$A$12:$C$297,3,0)","v":21484.839996665702},27603.271983640083,{"$f":"VLOOKUP($A15,[5]anti_fibrinolytic!$A$11:$C$287,3,0)","v":26514.749854445501},27603.271983640083,{"$f":"VLOOKUP($A15,[5]sympathomimetics!$A$11:$C$223,3,0)","v":6423.0100402832004},27603.271983640083,{"$f":"VLOOKUP($A15,[5]CVD_All_prescriptions!$A$10:$C$392,3,0)","v":6611381.2546937},{"$f":"VLOOKUP($A15,[5]CVD_All_prescriptions!$A$10:$C$392,2,0)","v":2499584}]
["00Q","NHS Blackburn with Darwen",{"$f":"VLOOKUP($A16,[4]CVD_All_prescriptions!$A$10:$D$223,4,0)","v":3032099.3},{"$f":"VLOOKUP($A16,Lookup!$BP$3:$BW$213,7,0)","v":19294.88785153137},{"$f":"VLOOKUP($A16,[4]Lipid_regulators!$A$14:$D$227,4,0)","v":819805.16999999795},19294.88785153137,{"$f":"VLOOKUP($A16,[4]HyperandHeartfailure!$A$13:$D$226,4,0)","v":747451.32},19294.88785153137,{"$f":"VLOOKUP($A16,[4]Nit_Calc_Antianginal!$A$13:$D$226,4,0)","v":657759.34},19294.88785153137,{"$f":"VLOOKUP($A16,[4]Anti_coagulants!$A$15:$D$227,4,0)","v":149560.18},19294.88785153137,{"$f":"VLOOKUP($A16,[4]Beta_Adrenorecepter!$A$13:$D$226,4,0)","v":226150.19},19294.88785153137,{"$f":"VLOOKUP($A16,[4]Anti_platelet!$A$13:$D$226,4,0)","v":215286.639999999},19294.88785153137,{"$f":"VLOOKUP($A16,[4]Diuretics!$A$11:$D$224,4,0)","v":164937.48000000001},19294.88785153137,{"$f":"VLOOKUP($A16,[4]Anti_arrhythmic_drugs!$A$13:$D$226,4,0)","v":27075.1},19294.88785153137,{"$f":"VLOOKUP($A16,[4]Positive_Intotropic!$A$13:$D$226,4,0)","v":11623.03},19294.88785153137,{"$f":"VLOOKUP($A16,[4]anti_fibrinolytic!$A$13:$D$226,4,0)","v":10037.25},19294.88785153137,{"$f":"VLOOKUP($A16,[4]sympathomimetics!$A$11:$D$223,4,0)","v":2413.6},19294.88785153137,{"$f":"VLOOKUP($A16,[4]CVD_All_prescriptions!$A$10:$D$223,4,0)","v":3032099.3},{"$f":"VLOOKUP($A16,[4]CVD_All_prescriptions!$A$10:$D$223,3,0)","v":965782},{"$f":"VLOOKUP($A16,[5]CVD_All_prescriptions!$A$10:$C$392,3,0)","v":2907486.8911449802},{"$f":"VLOOKUP($A16,Lookup!$BP$3:$BW$213,8,0)","v":19278.378686098145},{"$f":"VLOOKUP($A16,[5]Lipid_regulators!$A$12:$C$345,3,0)","v":660855.32029195898},19278.378686098145,{"$f":"VLOOKUP($A16,[5]HyperandHeartfailure!$A$12:$C$356,3,0)","v":518030.86007745599},19278.378686098145,{"$f":"VLOOKUP($A16,[5]Nit_Calc_Antianginal!$A$12:$C$345,3,0)","v":766528.73969584703},19278.378686098145,{"$f":"VLOOKUP($A16,[5]Anti_coagulants!$A$11:$C$325,3,0)","v":204185.77011765499},19278.378686098145,{"$f":"VLOOKUP($A16,[5]Beta_Adrenorecepter!$A$11:$C$352,3,0)","v":266805.71016305703},19278.378686098145,{"$f":"VLOOKUP($A16,[5]Anti_platelet!$A$12:$C$335,3,0)","v":237852.540016115},19278.378686098145,{"$f":"VLOOKUP($A16,[5]Diuretics!$A$12:$C$353,3,0)","v":207230.25083214001},19278.378686098145,{"$f":"VLOOKUP($A16,[5]Anti_arrhythmic_drugs!$A$11:$C$271,3,0)","v":26969.459996044599},19278.378686098145,{"$f":"VLOOKUP($A16,[5]Positive_Intotropic!$A$12:$C$297,3,0)","v":9153.7199773192406},19278.378686098145,{"$f":"VLOOKUP($A16,[5]anti_fibrinolytic!$A$11:$C$287,3,0)","v":8964.7999813556708},19278.378686098145,{"$f":"VLOOKUP($A16,[5]sympathomimetics!$A$11:$C$223,3,0)","v":855.71999603137397},19278.378686098145,{"$f":"VLOOKUP($A16,[5]CVD_All_prescriptions!$A$10:$C$392,3,0)","v":2907486.8911449802},{"$f":"VLOOKUP($A16,[5]CVD_All_prescriptions!$A$10:$C$392,2,0)","v":976496}]
["00R","NHS Blackpool",{"$f":"VLOOKUP($A17,[4]CVD_All_prescriptions!$A$10:$D$223,4,0)","v":3948247.06},{"$f":"VLOOKUP($A17,Lookup!$BP$3:$BW$213,7,0)","v":14943.954333160355},{"$f":"VLOOKUP($A17,[4]Lipid_regulators!$A$14:$D$227,4,0)","v":1075634.06},14943.954333160355,{"$f":"VLOOKUP($A17,[4]HyperandHeartfailure!$A$13:$D$226,4,0)","v":891729.27999999898},14943.954333160355,{"$f":"VLOOKUP($A17,[4]Nit_Calc_Antianginal!$A$13:$D$226,4,0)","v":787271.35},14943.954333160355,{"$f":"VLOOKUP($A17,[4]Anti_coagulants!$A$15:$D$227,4,0)","v":240181.24},14943.954333160355,{"$f":"VLOOKUP($A17,[4]Beta_Adrenorecepter!$A$13:$D$226,4,0)","v":359145.070000001},14943.954333160355,{"$f":"VLOOKUP($A17,[4]Anti_platelet!$A$13:$D$226,4,0)","v":299526.95999999897},14943.954333160355,{"$f":"VLOOKUP($A17,[4]Diuretics!$A$11:$D$224,4,0)","v":235292.16999999899},14943.954333160355,{"$f":"VLOOKUP($A17,[4]Anti_arrhythmic_drugs!$A$13:$D$226,4,0)","v":12618.01},14943.954333160355,{"$f":"VLOOKUP($A17,[4]Positive_Intotropic!$A$13:$D$226,4,0)","v":19796.29},14943.954333160355,{"$f":"VLOOKUP($A17,[4]anti_fibrinolytic!$A$13:$D$226,4,0)","v":12231.01},14943.954333160355,{"$f":"VLOOKUP($A17,[4]sympathomimetics!$A$11:$D$223,4,0)","v":14821.62},14943.954333160355,{"$f":"VLOOKUP($A17,[4]CVD_All_prescriptions!$A$10:$D$223,4,0)","v":3948247.06},{"$f":"VLOOKUP($A17,[4]CVD_All_prescriptions!$A$10:$D$223,3,0)","v":1452646},{"$f":"VLOOKUP($A17,[5]CVD_All_prescriptions!$A$10:$C$392,3,0)","v":3701668.6909428099},{"$f":"VLOOKUP($A17,Lookup!$BP$3:$BW$213,8,0)","v":14893.790001729805},{"$f":"VLOOKUP($A17,[5]Lipid_regulators!$A$12:$C$345,3,0)","v":813351.99979179399},14893.790001729805,{"$f":"VLOOKUP($A17,[5]HyperandHeartfailure!$A$12:$C$356,3,0)","v":685343.21001556504},14893.790001729805,{"$f":"VLOOKUP($A17,[5]Nit_Calc_Antianginal!$A$12:$C$345,3,0)","v":813153.67941555404},14893.790001729805,{"$f":"VLOOKUP($A17,[5]Anti_coagulants!$A$11:$C$325,3,0)","v":282566.79062498402},14893.790001729805,{"$f":"VLOOKUP($A17,[5]Beta_Adrenorecepter!$A$11:$C$352,3,0)","v":426140.68987609399},14893.790001729805,{"$f":"VLOOKUP($A17,[5]Anti_platelet!$A$12:$C$335,3,0)","v":324297.67007314798},14893.790001729805,{"$f":"VLOOKUP($A17,[5]Diuretics!$A$12:$C$353,3,0)","v":305693.62118113402},14893.790001729805,{"$f":"VLOOKUP($A17,[5]Anti_arrhythmic_drugs!$A$11:$C$271,3,0)","v":11032.569979846499},14893.790001729805,{"$f":"VLOOKUP($A17,[5]Positive_Intotropic!$A$12:$C$297,3,0)","v":16527.439960863401},14893.790001729805,{"$f":"VLOOKUP($A17,[5]anti_fibrinolytic!$A$11:$C$287,3,0)","v":8195.2200093269294},14893.790001729805,{"$f":"VLOOKUP($A17,[5]sympathomimetics!$A$11:$C$223,3,0)","v":15365.8000144958},14893.790001729805,{"$f":"VLOOKUP($A17,[5]CVD_All_prescriptions!$A$10:$C$392,3,0)","v":3701668.6909428099},{"$f":"VLOOKUP($A17,[5]CVD_All_prescriptions!$A$10:$C$392,2,0)","v":1476496}]
["00T","NHS Bolton",{"$f":"VLOOKUP($A18,[4]CVD_All_prescriptions!$A$10:$D$223,4,0)","v":7062973.79},{"$f":"VLOOKUP($A18,Lookup!$BP$3:$BW$213,7,0)","v":31304.05973916702},{"$f":"VLOOKUP($A18,[4]Lipid_regulators!$A$14:$D$227,4,0)","v":2149118.9100000202},31304.05973916702,{"$f":"VLOOKUP($A18,[4]HyperandHeartfailure!$A$13:$D$226,4,0)","v":1638696.89},31304.05973916702,{"$f":"VLOOKUP($A18,[4]Nit_Calc_Antianginal!$A$13:$D$226,4,0)","v":1488928.71},31304.05973916702,{"$f":"VLOOKUP($A18,[4]Anti_coagulants!$A$15:$D$227,4,0)","v":263219.109999999},31304.05973916702,{"$f":"VLOOKUP($A18,[4]Beta_Adrenorecepter!$A$13:$D$226,4,0)","v":545462.36000000499},31304.05973916702,{"$f":"VLOOKUP($A18,[4]Anti_platelet!$A$13:$D$226,4,0)","v":447005.86999999703},31304.05973916702,{"$f":"VLOOKUP($A18,[4]Diuretics!$A$11:$D$224,4,0)","v":389950.13},31304.05973916702,{"$f":"VLOOKUP($A18,[4]Anti_arrhythmic_drugs!$A$13:$D$226,4,0)","v":83701.489999999802},31304.05973916702,{"$f":"VLOOKUP($A18,[4]Positive_Intotropic!$A$13:$D$226,4,0)","v":17476.560000000001},31304.05973916702,{"$f":"VLOOKUP($A18,[4]anti_fibrinolytic!$A$13:$D$226,4,0)","v":19580.79},31304.05973916702,{"$f":"VLOOKUP($A18,[4]sympathomimetics!$A$11:$D$223,4,0)","v":19832.97},31304.05973916702,{"$f":"VLOOKUP($A18,[4]CVD_All_prescriptions!$A$10:$D$223,4,0)","v":7062973.79},{"$f":"VLOOKUP($A18,[4]CVD_All_prescriptions!$A$10:$D$223,3,0)","v":1679843},{"$f":"VLOOKUP($A18,[5]CVD_All_prescriptions!$A$10:$C$392,3,0)","v":6566037.9637658801},{"$f":"VLOOKUP($A18,Lookup!$BP$3:$BW$213,8,0)","v":31276.714345814053},{"$f":"VLOOKUP($A18,[5]Lipid_regulators!$A$12:$C$345,3,0)","v":1615992.16094014},31276.714345814053,{"$f":"VLOOKUP($A18,[5]HyperandHeartfailure!$A$12:$C$356,3,0)","v":1162735.1900036},31276.714345814053,{"$f":"VLOOKUP($A18,[5]Nit_Calc_Antianginal!$A$12:$C$345,3,0)","v":1488262.309011},31276.714345814053,{"$f":"VLOOKUP($A18,[5]Anti_coagulants!$A$11:$C$325,3,0)","v":507489.60956212098},31276.714345814053,{"$f":"VLOOKUP($A18,[5]Beta_Adrenorecepter!$A$11:$C$352,3,0)","v":671610.43082727899},31276.714345814053,{"$f":"VLOOKUP($A18,[5]Anti_platelet!$A$12:$C$335,3,0)","v":494140.029722868},31276.714345814053,{"$f":"VLOOKUP($A18,[5]Diuretics!$A$12:$C$353,3,0)","v":477340.61332183698},31276.714345814053,{"$f":"VLOOKUP($A18,[5]Anti_arrhythmic_drugs!$A$11:$C$271,3,0)","v":99079.380156427593},31276.714345814053,{"$f":"VLOOKUP($A18,[5]Positive_Intotropic!$A$12:$C$297,3,0)","v":14161.459992706799},31276.714345814053,{"$f":"VLOOKUP($A18,[5]anti_fibrinolytic!$A$11:$C$287,3,0)","v":14995.7300355434},31276.714345814053,{"$f":"VLOOKUP($A18,[5]sympathomimetics!$A$11:$C$223,3,0)","v":20231.050192356099},31276.714345814053,{"$f":"VLOOKUP($A18,[5]CVD_All_prescriptions!$A$10:$C$392,3,0)","v":6566037.9637658801},{"$f":"VLOOKUP($A18,[5]CVD_All_prescriptions!$A$10:$C$392,2,0)","v":1697946}]
["00V","NHS Bury",{"$f":"VLOOKUP($A19,[4]CVD_All_prescriptions!$A$10:$D$223,4,0)","v":3571537.25999999},{"$f":"VLOOKUP($A19,Lookup!$BP$3:$BW$213,7,0)","v":19739.121183104588},{"$f":"VLOOKUP($A19,[4]Lipid_regulators!$A$14:$D$227,4,0)","v":1066731.3999999999},19739.121183104588,{"$f":"VLOOKUP($A19,[4]HyperandHeartfailure!$A$13:$D$226,4,0)","v":735984.79},19739.121183104588,{"$f":"VLOOKUP($A19,[4]Nit_Calc_Antianginal!$A$13:$D$226,4,0)","v":726124.86},19739.121183104588,{"$f":"VLOOKUP($A19,[4]Anti_coagulants!$A$15:$D$227,4,0)","v":180912.76},19739.121183104588,{"$f":"VLOOKUP($A19,[4]Beta_Adrenorecepter!$A$13:$D$226,4,0)","v":293736.04000000202},19739.121183104588,{"$f":"VLOOKUP($A19,[4]Anti_platelet!$A$13:$D$226,4,0)","v":290939.27999999799},19739.121183104588,{"$f":"VLOOKUP($A19,[4]Diuretics!$A$11:$D$224,4,0)","v":211896.43000000101},19739.121183104588,{"$f":"VLOOKUP($A19,[4]Anti_arrhythmic_drugs!$A$13:$D$226,4,0)","v":28948.57},19739.121183104588,{"$f":"VLOOKUP($A19,[4]Positive_Intotropic!$A$13:$D$226,4,0)","v":16585.23},19739.121183104588,{"$f":"VLOOKUP($A19,[4]anti_fibrinolytic!$A$13:$D$226,4,0)","v":15878.5},19739.121183104588,{"$f":"VLOOKUP($A19,[4]sympathomimetics!$A$11:$D$223,4,0)","v":3799.4},19739.121183104588,{"$f":"VLOOKUP($A19,[4]CVD_All_prescriptions!$A$10:$D$223,4,0)","v":3571537.25999999},{"$f":"VLOOKUP($A19,[4]CVD_All_prescriptions!$A$10:$D$223,3,0)","v":1012747},{"$f":"VLOOKUP($A19,[5]CVD_All_prescriptions!$A$10:$C$392,3,0)","v":3469891.1831700699},{"$f":"VLOOKUP($A19,Lookup!$BP$3:$BW$213,8,0)","v":20939.036067666773},{"$f":"VLOOKUP($A19,[5]Lipid_regulators!$A$12:$C$345,3,0)","v":808850.87069787795},20939.036067666773,{"$f":"VLOOKUP($A19,[5]HyperandHeartfailure!$A$12:$C$356,3,0)","v":612484.76049110305},20939.036067666773,{"$f":"VLOOKUP($A19,[5]Nit_Calc_Antianginal!$A$12:$C$345,3,0)","v":762146.12983131397},20939.036067666773,{"$f":"VLOOKUP($A19,[5]Anti_coagulants!$A$11:$C$325,3,0)","v":253527.81006709501},20939.036067666773,{"$f":"VLOOKUP($A19,[5]Beta_Adrenorecepter!$A$11:$C$352,3,0)","v":352575.23027711199},20939.036067666773,{"$f":"VLOOKUP($A19,[5]Anti_platelet!$A$12:$C$335,3,0)","v":322855.680075582},20939.036067666773,{"$f":"VLOOKUP($A19,[5]Diuretics!$A$12:$C$353,3,0)","v":301959.38172859699},20939.036067666773,{"$f":"VLOOKUP($A19,[5]Anti_arrhythmic_drugs!$A$11:$C$271,3,0)","v":25971.569993495901},20939.036067666773,{"$f":"VLOOKUP($A19,[5]Positive_Intotropic!$A$12:$C$297,3,0)","v":13735.5899914727},20939.036067666773,{"$f":"VLOOKUP($A19,[5]anti_fibrinolytic!$A$11:$C$287,3,0)","v":11423.700021147701},20939.036067666773,{"$f":"VLOOKUP($A19,[5]sympathomimetics!$A$11:$C$223,3,0)","v":4360.4599952697799},20939.036067666773,{"$f":"VLOOKUP($A19,[5]CVD_All_prescriptions!$A$10:$C$392,3,0)","v":3469891.1831700699},{"$f":"VLOOKUP($A19,[5]CVD_All_prescriptions!$A$10:$C$392,2,0)","v":1030513}]
["00W","NHS Central Manchester",{"$f":"VLOOKUP($A20,[4]CVD_All_prescriptions!$A$10:$D$223,4,0)","v":2700361.42},{"$f":"VLOOKUP($A20,Lookup!$BP$3:$BW$213,7,0)","v":30451.303735024667},{"$f":"VLOOKUP($A20,[4]Lipid_regulators!$A$14:$D$227,4,0)","v":715115.71000000101},30451.303735024667,{"$f":"VLOOKUP($A20,[4]HyperandHeartfailure!$A$13:$D$226,4,0)","v":727286.9},30451.303735024667,{"$f":"VLOOKUP($A20,[4]Nit_Calc_Antianginal!$A$13:$D$226,4,0)","v":577779.04},30451.303735024667,{"$f":"VLOOKUP($A20,[4]Anti_coagulants!$A$15:$D$227,4,0)","v":92769.029999999897},30451.303735024667,{"$f":"VLOOKUP($A20,[4]Beta_Adrenorecepter!$A$13:$D$226,4,0)","v":179084.679999999},30451.303735024667,{"$f":"VLOOKUP($A20,[4]Anti_platelet!$A$13:$D$226,4,0)","v":185195.459999999},30451.303735024667,{"$f":"VLOOKUP($A20,[4]Diuretics!$A$11:$D$224,4,0)","v":172371.31},30451.303735024667,{"$f":"VLOOKUP($A20,[4]Anti_arrhythmic_drugs!$A$13:$D$226,4,0)","v":13734.78},30451.303735024667,{"$f":"VLOOKUP($A20,[4]Positive_Intotropic!$A$13:$D$226,4,0)","v":8241.0100000000093},30451.303735024667,{"$f":"VLOOKUP($A20,[4]anti_fibrinolytic!$A$13:$D$226,4,0)","v":17189.29},30451.303735024667,{"$f":"VLOOKUP($A20,[4]sympathomimetics!$A$11:$D$223,4,0)","v":11594.21},30451.303735024667,{"$f":"VLOOKUP($A20,[4]CVD_All_prescriptions!$A$10:$D$223,4,0)","v":2700361.42},{"$f":"VLOOKUP($A20,[4]CVD_All_prescriptions!$A$10:$D$223,3,0)","v":834103},{"$f":"VLOOKUP($A20,[5]CVD_All_prescriptions!$A$10:$C$392,3,0)","v":2569558.4916971298},{"$f":"VLOOKUP($A20,Lookup!$BP$3:$BW$213,8,0)","v":30092.741367159972},{"$f":"VLOOKUP($A20,[5]Lipid_regulators!$A$12:$C$345,3,0)","v":538876.58061364898},30092.741367159972,{"$f":"VLOOKUP($A20,[5]HyperandHeartfailure!$A$12:$C$356,3,0)","v":534136.97050894797},30092.741367159972,{"$f":"VLOOKUP($A20,[5]Nit_Calc_Antianginal!$A$12:$C$345,3,0)","v":611174.128719158},30092.741367159972,{"$f":"VLOOKUP($A20,[5]Anti_coagulants!$A$11:$C$325,3,0)","v":146746.69005607799},30092.741367159972,{"$f":"VLOOKUP($A20,[5]Beta_Adrenorecepter!$A$11:$C$352,3,0)","v":225823.710326714},30092.741367159972,{"$f":"VLOOKUP($A20,[5]Anti_platelet!$A$12:$C$335,3,0)","v":215158.17006538401},30092.741367159972,{"$f":"VLOOKUP($A20,[5]Diuretics!$A$12:$C$353,3,0)","v":237003.96137013999},30092.741367159972,{"$f":"VLOOKUP($A20,[5]Anti_arrhythmic_drugs!$A$11:$C$271,3,0)","v":13196.6799774766},30092.741367159972,{"$f":"VLOOKUP($A20,[5]Positive_Intotropic!$A$12:$C$297,3,0)","v":6720.7699908763198},30092.741367159972,{"$f":"VLOOKUP($A20,[5]anti_fibrinolytic!$A$11:$C$287,3,0)","v":19192.489996075601},30092.741367159972,{"$f":"VLOOKUP($A20,[5]sympathomimetics!$A$11:$C$223,3,0)","v":21528.3400726318},30092.741367159972,{"$f":"VLOOKUP($A20,[5]CVD_All_prescriptions!$A$10:$C$392,3,0)","v":2569558.4916971298},{"$f":"VLOOKUP($A20,[5]CVD_All_prescriptions!$A$10:$C$392,2,0)","v":880706}]
["00X","NHS Chorley and South Ribble",{"$f":"VLOOKUP($A21,[4]CVD_All_prescriptions!$A$10:$D$223,4,0)","v":3528974.03},{"$f":"VLOOKUP($A21,Lookup!$BP$3:$BW$213,7,0)","v":18013.824409367586},{"$f":"VLOOKUP($A21,[4]Lipid_regulators!$A$14:$D$227,4,0)","v":1054599.79},18013.824409367586,{"$f":"VLOOKUP($A21,[4]HyperandHeartfailure!$A$13:$D$226,4,0)","v":758302.30999999901},18013.824409367586,{"$f":"VLOOKUP($A21,[4]Nit_Calc_Antianginal!$A$13:$D$226,4,0)","v":738471.57},18013.824409367586,{"$f":"VLOOKUP($A21,[4]Anti_coagulants!$A$15:$D$227,4,0)","v":177618.02},18013.824409367586,{"$f":"VLOOKUP($A21,[4]Beta_Adrenorecepter!$A$13:$D$226,4,0)","v":287937.35000000102},18013.824409367586,{"$f":"VLOOKUP($A21,[4]Anti_platelet!$A$13:$D$226,4,0)","v":216444.11},18013.824409367586,{"$f":"VLOOKUP($A21,[4]Diuretics!$A$11:$D$224,4,0)","v":218991.99},18013.824409367586,{"$f":"VLOOKUP($A21,[4]Anti_arrhythmic_drugs!$A$13:$D$226,4,0)","v":32788.69},18013.824409367586,{"$f":"VLOOKUP($A21,[4]Positive_Intotropic!$A$13:$D$226,4,0)","v":15016.26},18013.824409367586,{"$f":"VLOOKUP($A21,[4]anti_fibrinolytic!$A$13:$D$226,4,0)","v":10618.5},18013.824409367586,{"$f":"VLOOKUP($A21,[4]sympathomimetics!$A$11:$D$223,4,0)","v":18163.939999999999},18013.824409367586,{"$f":"VLOOKUP($A21,[4]CVD_All_prescriptions!$A$10:$D$223,4,0)","v":3528974.03},{"$f":"VLOOKUP($A21,[4]CVD_All_prescriptions!$A$10:$D$223,3,0)","v":1071256},{"$f":"VLOOKUP($A21,[5]CVD_All_prescriptions!$A$10:$C$392,3,0)","v":3337070.35132132},{"$f":"VLOOKUP($A21,Lookup!$BP$3:$BW$213,8,0)","v":18159.806045599918},{"$f":"VLOOKUP($A21,[5]Lipid_regulators!$A$12:$C$345,3,0)","v":840363.21058727801},18159.806045599918,{"$f":"VLOOKUP($A21,[5]HyperandHeartfailure!$A$12:$C$356,3,0)","v":576585.46028607001},18159.806045599918,{"$f":"VLOOKUP($A21,[5]Nit_Calc_Antianginal!$A$12:$C$345,3,0)","v":745077.41922929895},18159.806045599918,{"$f":"VLOOKUP($A21,[5]Anti_coagulants!$A$11:$C$325,3,0)","v":266529.97993130598},18159.806045599918,{"$f":"VLOOKUP($A21,[5]Beta_Adrenorecepter!$A$11:$C$352,3,0)","v":322227.95993056899},18159.806045599918,{"$f":"VLOOKUP($A21,[5]Anti_platelet!$A$12:$C$335,3,0)","v":237200.25985179699},18159.806045599918,{"$f":"VLOOKUP($A21,[5]Diuretics!$A$12:$C$353,3,0)","v":288984.30135375098},18159.806045599918,{"$f":"VLOOKUP($A21,[5]Anti_arrhythmic_drugs!$A$11:$C$271,3,0)","v":29319.130077716},18159.806045599918,{"$f":"VLOOKUP($A21,[5]Positive_Intotropic!$A$12:$C$297,3,0)","v":12844.219987615899},18159.806045599918,{"$f":"VLOOKUP($A21,[5]anti_fibrinolytic!$A$11:$C$287,3,0)","v":8527.7300188541394},18159.806045599918,{"$f":"VLOOKUP($A21,[5]sympathomimetics!$A$11:$C$223,3,0)","v":9410.6800670623797},18159.806045599918,{"$f":"VLOOKUP($A21,[5]CVD_All_prescriptions!$A$10:$C$392,3,0)","v":3337070.35132132},{"$f":"VLOOKUP($A21,[5]CVD_All_prescriptions!$A$10:$C$392,2,0)","v":1071729}]
["00Y","NHS Oldham",{"$f":"VLOOKUP($A22,[4]CVD_All_prescriptions!$A$10:$D$223,4,0)","v":5595787.3699999899},{"$f":"VLOOKUP($A22,Lookup!$BP$3:$BW$213,7,0)","v":26391.499616606419},{"$f":"VLOOKUP($A22,[4]Lipid_regulators!$A$14:$D$227,4,0)","v":1973500.8799999801},26391.499616606419,{"$f":"VLOOKUP($A22,[4]HyperandHeartfailure!$A$13:$D$226,4,0)","v":1468495.75},26391.499616606419,{"$f":"VLOOKUP($A22,[4]Nit_Calc_Antianginal!$A$13:$D$226,4,0)","v":957981.84999999905},26391.499616606419,{"$f":"VLOOKUP($A22,[4]Anti_coagulants!$A$15:$D$227,4,0)","v":212197.27},26391.499616606419,{"$f":"VLOOKUP($A22,[4]Beta_Adrenorecepter!$A$13:$D$226,4,0)","v":307832.67000000097},26391.499616606419,{"$f":"VLOOKUP($A22,[4]Anti_platelet!$A$13:$D$226,4,0)","v":329760.31999999599},26391.499616606419,{"$f":"VLOOKUP($A22,[4]Diuretics!$A$11:$D$224,4,0)","v":272304.50000000099},26391.499616606419,{"$f":"VLOOKUP($A22,[4]Anti_arrhythmic_drugs!$A$13:$D$226,4,0)","v":29273.49},26391.499616606419,{"$f":"VLOOKUP($A22,[4]Positive_Intotropic!$A$13:$D$226,4,0)","v":21404.039999999899},26391.499616606419,{"$f":"VLOOKUP($A22,[4]anti_fibrinolytic!$A$13:$D$226,4,0)","v":18142.53},26391.499616606419,{"$f":"VLOOKUP($A22,[4]sympathomimetics!$A$11:$D$223,4,0)","v":4894.07},26391.499616606419,{"$f":"VLOOKUP($A22,[4]CVD_All_prescriptions!$A$10:$D$223,4,0)","v":5595787.3699999899},{"$f":"VLOOKUP($A22,[4]CVD_All_prescriptions!$A$10:$D$223,3,0)","v":1365760},{"$f":"VLOOKUP($A22,[5]CVD_All_prescriptions!$A$10:$C$392,3,0)","v":4988190.8111227099},{"$f":"VLOOKUP($A22,Lookup!$BP$3:$BW$213,8,0)","v":26616.825501150182},{"$f":"VLOOKUP($A22,[5]Lipid_regulators!$A$12:$C$345,3,0)","v":1455197.1491419701},26616.825501150182,{"$f":"VLOOKUP($A22,[5]HyperandHeartfailure!$A$12:$C$356,3,0)","v":1069385.8605971499},26616.825501150182,{"$f":"VLOOKUP($A22,[5]Nit_Calc_Antianginal!$A$12:$C$345,3,0)","v":968575.19879317703},26616.825501150182,{"$f":"VLOOKUP($A22,[5]Anti_coagulants!$A$11:$C$325,3,0)","v":310420.33097221499},26616.825501150182,{"$f":"VLOOKUP($A22,[5]Beta_Adrenorecepter!$A$11:$C$352,3,0)","v":393146.46022365597},26616.825501150182,{"$f":"VLOOKUP($A22,[5]Anti_platelet!$A$12:$C$335,3,0)","v":369315.66995612899},26616.825501150182,{"$f":"VLOOKUP($A22,[5]Diuretics!$A$12:$C$353,3,0)","v":352345.97147727199},26616.825501150182,{"$f":"VLOOKUP($A22,[5]Anti_arrhythmic_drugs!$A$11:$C$271,3,0)","v":27651.7399614602},26616.825501150182,{"$f":"VLOOKUP($A22,[5]Positive_Intotropic!$A$12:$C$297,3,0)","v":17616.5399703607},26616.825501150182,{"$f":"VLOOKUP($A22,[5]anti_fibrinolytic!$A$11:$C$287,3,0)","v":13971.650048613499},26616.825501150182,{"$f":"VLOOKUP($A22,[5]sympathomimetics!$A$11:$C$223,3,0)","v":10564.239980697599},26616.825501150182,{"$f":"VLOOKUP($A22,[5]CVD_All_prescriptions!$A$10:$C$392,3,0)","v":4988190.8111227099},{"$f":"VLOOKUP($A22,[5]CVD_All_prescriptions!$A$10:$C$392,2,0)","v":1397149}]
["01A","NHS East Lancashire",{"$f":"VLOOKUP($A23,[4]CVD_All_prescriptions!$A$10:$D$223,4,0)","v":7409371.5800000401},{"$f":"VLOOKUP($A23,Lookup!$BP$3:$BW$213,7,0)","v":36814.870409286501},{"$f":"VLOOKUP($A23,[4]Lipid_regulators!$A$14:$D$227,4,0)","v":1976826.3300000101},36814.870409286501,{"$f":"VLOOKUP($A23,[4]HyperandHeartfailure!$A$13:$D$226,4,0)","v":1805312.61},36814.870409286501,{"$f":"VLOOKUP($A23,[4]Nit_Calc_Antianginal!$A$13:$D$226,4,0)","v":1517790},36814.870409286501,{"$f":"VLOOKUP($A23,[4]Anti_coagulants!$A$15:$D$227,4,0)","v":411553.34},36814.870409286501,{"$f":"VLOOKUP($A23,[4]Beta_Adrenorecepter!$A$13:$D$226,4,0)","v":583187.54000000597},36814.870409286501,{"$f":"VLOOKUP($A23,[4]Anti_platelet!$A$13:$D$226,4,0)","v":538456.94999999797},36814.870409286501,{"$f":"VLOOKUP($A23,[4]Diuretics!$A$11:$D$224,4,0)","v":455112.36999999499},36814.870409286501,{"$f":"VLOOKUP($A23,[4]Anti_arrhythmic_drugs!$A$13:$D$226,4,0)","v":53837.36},36814.870409286501,{"$f":"VLOOKUP($A23,[4]Positive_Intotropic!$A$13:$D$226,4,0)","v":32588.369999999701},36814.870409286501,{"$f":"VLOOKUP($A23,[4]anti_fibrinolytic!$A$13:$D$226,4,0)","v":21672},36814.870409286501,{"$f":"VLOOKUP($A23,[4]sympathomimetics!$A$11:$D$223,4,0)","v":13034.71},36814.870409286501,{"$f":"VLOOKUP($A23,[4]CVD_All_prescriptions!$A$10:$D$223,4,0)","v":7409371.5800000401},{"$f":"VLOOKUP($A23,[4]CVD_All_prescriptions!$A$10:$D$223,3,0)","v":2330977},{"$f":"VLOOKUP($A23,[5]CVD_All_prescriptions!$A$10:$C$392,3,0)","v":7059398.9030590802},{"$f":"VLOOKUP($A23,Lookup!$BP$3:$BW$213,8,0)","v":37186.830781547083},{"$f":"VLOOKUP($A23,[5]Lipid_regulators!$A$12:$C$345,3,0)","v":1529127.36070549},37186.830781547083,{"$f":"VLOOKUP($A23,[5]HyperandHeartfailure!$A$12:$C$356,3,0)","v":1260252.5107561599},37186.830781547083,{"$f":"VLOOKUP($A23,[5]Nit_Calc_Antianginal!$A$12:$C$345,3,0)","v":1725794.0581515101},37186.830781547083,{"$f":"VLOOKUP($A23,[5]Anti_coagulants!$A$11:$C$325,3,0)","v":546175.47071971698},37186.830781547083,{"$f":"VLOOKUP($A23,[5]Beta_Adrenorecepter!$A$11:$C$352,3,0)","v":688050.68029968406},37186.830781547083,{"$f":"VLOOKUP($A23,[5]Anti_platelet!$A$12:$C$335,3,0)","v":590557.54043346597},37186.830781547083,{"$f":"VLOOKUP($A23,[5]Diuretics!$A$12:$C$353,3,0)","v":594753.08225376904},37186.830781547083,{"$f":"VLOOKUP($A23,[5]Anti_arrhythmic_drugs!$A$11:$C$271,3,0)","v":62403.549917787299},37186.830781547083,{"$f":"VLOOKUP($A23,[5]Positive_Intotropic!$A$12:$C$297,3,0)","v":27944.149923548099},37186.830781547083,{"$f":"VLOOKUP($A23,[5]anti_fibrinolytic!$A$11:$C$287,3,0)","v":18724.6900074482},37186.830781547083,{"$f":"VLOOKUP($A23,[5]sympathomimetics!$A$11:$C$223,3,0)","v":15615.809890508701},37186.830781547083,{"$f":"VLOOKUP($A23,[5]CVD_All_prescriptions!$A$10:$C$392,3,0)","v":7059398.9030590802},{"$f":"VLOOKUP($A23,[5]CVD_All_prescriptions!$A$10:$C$392,2,0)","v":2394487}]
["01C","NHS Eastern Cheshire",{"$f":"VLOOKUP($A24,[4]CVD_All_prescriptions!$A$10:$D$223,4,0)","v":4113193.58},{"$f":"VLOOKUP($A24,Lookup!$BP$3:$BW$213,7,0)","v":19423.389798066801},{"$f":"VLOOKUP($A24,[4]Lipid_regulators!$A$14:$D$227,4,0)","v":1241491.27},19423.389798066801,{"$f":"VLOOKUP($A24,[4]HyperandHeartfailure!$A$13:$D$226,4,0)","v":914819.429999999},19423.389798066801,{"$f":"VLOOKUP($A24,[4]Nit_Calc_Antianginal!$A$13:$D$226,4,0)","v":725487.19999999902},19423.389798066801,{"$f":"VLOOKUP($A24,[4]Anti_coagulants!$A$15:$D$227,4,0)","v":258917.92},19423.389798066801,{"$f":"VLOOKUP($A24,[4]Beta_Adrenorecepter!$A$13:$D$226,4,0)","v":319896.76000000199},19423.389798066801,{"$f":"VLOOKUP($A24,[4]Anti_platelet!$A$13:$D$226,4,0)","v":272365.40999999898},19423.389798066801,{"$f":"VLOOKUP($A24,[4]Diuretics!$A$11:$D$224,4,0)","v":301210.63},19423.389798066801,{"$f":"VLOOKUP($A24,[4]Anti_arrhythmic_drugs!$A$13:$D$226,4,0)","v":39070.699999999997},19423.389798066801,{"$f":"VLOOKUP($A24,[4]Positive_Intotropic!$A$13:$D$226,4,0)","v":23939.119999999901},19423.389798066801,{"$f":"VLOOKUP($A24,[4]anti_fibrinolytic!$A$13:$D$226,4,0)","v":13109.54},19423.389798066801,{"$f":"VLOOKUP($A24,[4]sympathomimetics!$A$11:$D$223,4,0)","v":2867.6},19423.389798066801,{"$f":"VLOOKUP($A24,[4]CVD_All_prescriptions!$A$10:$D$223,4,0)","v":4113193.58},{"$f":"VLOOKUP($A24,[4]CVD_All_prescriptions!$A$10:$D$223,3,0)","v":1297089},{"$f":"VLOOKUP($A24,[5]CVD_All_prescriptions!$A$10:$C$392,3,0)","v":3928409.0032413602},{"$f":"VLOOKUP($A24,Lookup!$BP$3:$BW$213,8,0)","v":19565.891472868218},{"$f":"VLOOKUP($A24,[5]Lipid_regulators!$A$12:$C$345,3,0)","v":931218.55047527305},19565.891472868218,{"$f":"VLOOKUP($A24,[5]HyperandHeartfailure!$A$12:$C$356,3,0)","v":714705.20035757904},19565.891472868218,{"$f":"VLOOKUP($A24,[5]Nit_Calc_Antianginal!$A$12:$C$345,3,0)","v":717905.69002082897},19565.891472868218,{"$f":"VLOOKUP($A24,[5]Anti_coagulants!$A$11:$C$325,3,0)","v":372435.65979228902},19565.891472868218,{"$f":"VLOOKUP($A24,[5]Beta_Adrenorecepter!$A$11:$C$352,3,0)","v":389547.580416793},19565.891472868218,{"$f":"VLOOKUP($A24,[5]Anti_platelet!$A$12:$C$335,3,0)","v":332631.29022825102},19565.891472868218,{"$f":"VLOOKUP($A24,[5]Diuretics!$A$12:$C$353,3,0)","v":399155.05182873498},19565.891472868218,{"$f":"VLOOKUP($A24,[5]Anti_arrhythmic_drugs!$A$11:$C$271,3,0)","v":35807.310098856702},19565.891472868218,{"$f":"VLOOKUP($A24,[5]Positive_Intotropic!$A$12:$C$297,3,0)","v":18670.159995585698},19565.891472868218,{"$f":"VLOOKUP($A24,[5]anti_fibrinolytic!$A$11:$C$287,3,0)","v":10496.0200102329},19565.891472868218,{"$f":"VLOOKUP($A24,[5]sympathomimetics!$A$11:$C$223,3,0)","v":5836.4900169372604},19565.891472868218,{"$f":"VLOOKUP($A24,[5]CVD_All_prescriptions!$A$10:$C$392,3,0)","v":3928409.0032413602},{"$f":"VLOOKUP($A24,[5]CVD_All_prescriptions!$A$10:$C$392,2,0)","v":1322105}]
["01D","NHS Heywood, Middleton and Rochdale",{"$f":"VLOOKUP($A25,[4]CVD_All_prescriptions!$A$10:$D$223,4,0)","v":4516533.7199999904},{"$f":"VLOOKUP($A25,Lookup!$BP$3:$BW$213,7,0)","v":23403.96018636171},{"$f":"VLOOKUP($A25,[4]Lipid_regulators!$A$14:$D$227,4,0)","v":1520918.3899999899},23403.96018636171,{"$f":"VLOOKUP($A25,[4]HyperandHeartfailure!$A$13:$D$226,4,0)","v":1007643.88},23403.96018636171,{"$f":"VLOOKUP($A25,[4]Nit_Calc_Antianginal!$A$13:$D$226,4,0)","v":866885.04},23403.96018636171,{"$f":"VLOOKUP($A25,[4]Anti_coagulants!$A$15:$D$227,4,0)","v":156046.43999999901},23403.96018636171,{"$f":"VLOOKUP($A25,[4]Beta_Adrenorecepter!$A$13:$D$226,4,0)","v":321127.72000000102},23403.96018636171,{"$f":"VLOOKUP($A25,[4]Anti_platelet!$A$13:$D$226,4,0)","v":338516.81999999599},23403.96018636171,{"$f":"VLOOKUP($A25,[4]Diuretics!$A$11:$D$224,4,0)","v":234917.290000001},23403.96018636171,{"$f":"VLOOKUP($A25,[4]Anti_arrhythmic_drugs!$A$13:$D$226,4,0)","v":23043.599999999999},23403.96018636171,{"$f":"VLOOKUP($A25,[4]Positive_Intotropic!$A$13:$D$226,4,0)","v":20898.07},23403.96018636171,{"$f":"VLOOKUP($A25,[4]anti_fibrinolytic!$A$13:$D$226,4,0)","v":19049.330000000002},23403.96018636171,{"$f":"VLOOKUP($A25,[4]sympathomimetics!$A$11:$D$223,4,0)","v":7487.14},23403.96018636171,{"$f":"VLOOKUP($A25,[4]CVD_All_prescriptions!$A$10:$D$223,4,0)","v":4516533.7199999904},{"$f":"VLOOKUP($A25,[4]CVD_All_prescriptions!$A$10:$D$223,3,0)","v":1180992},{"$f":"VLOOKUP($A25,[5]CVD_All_prescriptions!$A$10:$C$392,3,0)","v":4356846.0911154002},{"$f":"VLOOKUP($A25,Lookup!$BP$3:$BW$213,8,0)","v":23710.080474375263},{"$f":"VLOOKUP($A25,[5]Lipid_regulators!$A$12:$C$345,3,0)","v":1158748.1397887601},23710.080474375263,{"$f":"VLOOKUP($A25,[5]HyperandHeartfailure!$A$12:$C$356,3,0)","v":768474.01023453497},23710.080474375263,{"$f":"VLOOKUP($A25,[5]Nit_Calc_Antianginal!$A$12:$C$345,3,0)","v":983075.38903960597},23710.080474375263,{"$f":"VLOOKUP($A25,[5]Anti_coagulants!$A$11:$C$325,3,0)","v":253890.220228374},23710.080474375263,{"$f":"VLOOKUP($A25,[5]Beta_Adrenorecepter!$A$11:$C$352,3,0)","v":398557.05027125799},23710.080474375263,{"$f":"VLOOKUP($A25,[5]Anti_platelet!$A$12:$C$335,3,0)","v":397433.70971649903},23710.080474375263,{"$f":"VLOOKUP($A25,[5]Diuretics!$A$12:$C$353,3,0)","v":334479.251818255},23710.080474375263,{"$f":"VLOOKUP($A25,[5]Anti_arrhythmic_drugs!$A$11:$C$271,3,0)","v":23255.029961347602},23710.080474375263,{"$f":"VLOOKUP($A25,[5]Positive_Intotropic!$A$12:$C$297,3,0)","v":17172.219972312501},23710.080474375263,{"$f":"VLOOKUP($A25,[5]anti_fibrinolytic!$A$11:$C$287,3,0)","v":15786.679970622101},23710.080474375263,{"$f":"VLOOKUP($A25,[5]sympathomimetics!$A$11:$C$223,3,0)","v":5974.39011383057},23710.080474375263,{"$f":"VLOOKUP($A25,[5]CVD_All_prescriptions!$A$10:$C$392,3,0)","v":4356846.0911154002},{"$f":"VLOOKUP($A25,[5]CVD_All_prescriptions!$A$10:$C$392,2,0)","v":1218430}]
["01E","NHS Greater Preston",{"$f":"VLOOKUP($A26,[4]CVD_All_prescriptions!$A$10:$D$223,4,0)","v":4133862.6499999901},{"$f":"VLOOKUP($A26,Lookup!$BP$3:$BW$213,7,0)","v":22881.982861481723},{"$f":"VLOOKUP($A26,[4]Lipid_regulators!$A$14:$D$227,4,0)","v":1229945.67},22881.982861481723,{"$f":"VLOOKUP($A26,[4]HyperandHeartfailure!$A$13:$D$226,4,0)","v":902166.24999999895},22881.982861481723,{"$f":"VLOOKUP($A26,[4]Nit_Calc_Antianginal!$A$13:$D$226,4,0)","v":778097.45},22881.982861481723,{"$f":"VLOOKUP($A26,[4]Anti_coagulants!$A$15:$D$227,4,0)","v":262665.30999999901},22881.982861481723,{"$f":"VLOOKUP($A26,[4]Beta_Adrenorecepter!$A$13:$D$226,4,0)","v":346580.96000000299},22881.982861481723,{"$f":"VLOOKUP($A26,[4]Anti_platelet!$A$13:$D$226,4,0)","v":289827.07999999903},22881.982861481723,{"$f":"VLOOKUP($A26,[4]Diuretics!$A$11:$D$224,4,0)","v":253004.62},22881.982861481723,{"$f":"VLOOKUP($A26,[4]Anti_arrhythmic_drugs!$A$13:$D$226,4,0)","v":31529.25},22881.982861481723,{"$f":"VLOOKUP($A26,[4]Positive_Intotropic!$A$13:$D$226,4,0)","v":15564.33},22881.982861481723,{"$f":"VLOOKUP($A26,[4]anti_fibrinolytic!$A$13:$D$226,4,0)","v":13037.71},22881.982861481723,{"$f":"VLOOKUP($A26,[4]sympathomimetics!$A$11:$D$223,4,0)","v":11444.02},22881.982861481723,{"$f":"VLOOKUP($A26,[4]CVD_All_prescriptions!$A$10:$D$223,4,0)","v":4133862.6499999901},{"$f":"VLOOKUP($A26,[4]CVD_All_prescriptions!$A$10:$D$223,3,0)","v":1170505},{"$f":"VLOOKUP($A26,[5]CVD_All_prescriptions!$A$10:$C$392,3,0)","v":3801675.8313553701},{"$f":"VLOOKUP($A26,Lookup!$BP$3:$BW$213,8,0)","v":22495.93231369997},{"$f":"VLOOKUP($A26,[5]Lipid_regulators!$A$12:$C$345,3,0)","v":935581.06017094105},22495.93231369997,{"$f":"VLOOKUP($A26,[5]HyperandHeartfailure!$A$12:$C$356,3,0)","v":673947.12988834095},22495.93231369997,{"$f":"VLOOKUP($A26,[5]Nit_Calc_Antianginal!$A$12:$C$345,3,0)","v":778213.68936944799},22495.93231369997,{"$f":"VLOOKUP($A26,[5]Anti_coagulants!$A$11:$C$325,3,0)","v":347508.16008526098},22495.93231369997,{"$f":"VLOOKUP($A26,[5]Beta_Adrenorecepter!$A$11:$C$352,3,0)","v":363981.24035040301},22495.93231369997,{"$f":"VLOOKUP($A26,[5]Anti_platelet!$A$12:$C$335,3,0)","v":305987.00987392297},22495.93231369997,{"$f":"VLOOKUP($A26,[5]Diuretics!$A$12:$C$353,3,0)","v":326200.42163550103},22495.93231369997,{"$f":"VLOOKUP($A26,[5]Anti_arrhythmic_drugs!$A$11:$C$271,3,0)","v":29694.719895869501},22495.93231369997,{"$f":"VLOOKUP($A26,[5]Positive_Intotropic!$A$12:$C$297,3,0)","v":13345.669982433301},22495.93231369997,{"$f":"VLOOKUP($A26,[5]anti_fibrinolytic!$A$11:$C$287,3,0)","v":11242.6500022411},22495.93231369997,{"$f":"VLOOKUP($A26,[5]sympathomimetics!$A$11:$C$223,3,0)","v":15974.0801010132},22495.93231369997,{"$f":"VLOOKUP($A26,[5]CVD_All_prescriptions!$A$10:$C$392,3,0)","v":3801675.8313553701},{"$f":"VLOOKUP($A26,[5]CVD_All_prescriptions!$A$10:$C$392,2,0)","v":1198383}]
["01F","NHS Halton",{"$f":"VLOOKUP($A27,[4]CVD_All_prescriptions!$A$10:$D$223,4,0)","v":2827674.29},{"$f":"VLOOKUP($A27,Lookup!$BP$3:$BW$213,7,0)","v":13257.060399917544},{"$f":"VLOOKUP($A27,[4]Lipid_regulators!$A$14:$D$227,4,0)","v":824034.90999999898},13257.060399917544,{"$f":"VLOOKUP($A27,[4]HyperandHeartfailure!$A$13:$D$226,4,0)","v":568705.73},13257.060399917544,{"$f":"VLOOKUP($A27,[4]Nit_Calc_Antianginal!$A$13:$D$226,4,0)","v":688403.29},13257.060399917544,{"$f":"VLOOKUP($A27,[4]Anti_coagulants!$A$15:$D$227,4,0)","v":192257.58},13257.060399917544,{"$f":"VLOOKUP($A27,[4]Beta_Adrenorecepter!$A$13:$D$226,4,0)","v":163801.38},13257.060399917544,{"$f":"VLOOKUP($A27,[4]Anti_platelet!$A$13:$D$226,4,0)","v":182378.15999999901},13257.060399917544,{"$f":"VLOOKUP($A27,[4]Diuretics!$A$11:$D$224,4,0)","v":164674.18},13257.060399917544,{"$f":"VLOOKUP($A27,[4]Anti_arrhythmic_drugs!$A$13:$D$226,4,0)","v":17517.23},13257.060399917544,{"$f":"VLOOKUP($A27,[4]Positive_Intotropic!$A$13:$D$226,4,0)","v":10899.12},13257.060399917544,{"$f":"VLOOKUP($A27,[4]anti_fibrinolytic!$A$13:$D$226,4,0)","v":10182.030000000001},13257.060399917544,{"$f":"VLOOKUP($A27,[4]sympathomimetics!$A$11:$D$223,4,0)","v":4820.68},13257.060399917544,{"$f":"VLOOKUP($A27,[4]CVD_All_prescriptions!$A$10:$D$223,4,0)","v":2827674.29},{"$f":"VLOOKUP($A27,[4]CVD_All_prescriptions!$A$10:$D$223,3,0)","v":778237},{"$f":"VLOOKUP($A27,[5]CVD_All_prescriptions!$A$10:$C$392,3,0)","v":2706574.3916517999},{"$f":"VLOOKUP($A27,Lookup!$BP$3:$BW$213,8,0)","v":13296.949082663368},{"$f":"VLOOKUP($A27,[5]Lipid_regulators!$A$12:$C$345,3,0)","v":619883.520054452},13296.949082663368,{"$f":"VLOOKUP($A27,[5]HyperandHeartfailure!$A$12:$C$356,3,0)","v":447581.02044540999},13296.949082663368,{"$f":"VLOOKUP($A27,[5]Nit_Calc_Antianginal!$A$12:$C$345,3,0)","v":668786.87957387394},13296.949082663368,{"$f":"VLOOKUP($A27,[5]Anti_coagulants!$A$11:$C$325,3,0)","v":263211.53006681101},13296.949082663368,{"$f":"VLOOKUP($A27,[5]Beta_Adrenorecepter!$A$11:$C$352,3,0)","v":205628.220459267},13296.949082663368,{"$f":"VLOOKUP($A27,[5]Anti_platelet!$A$12:$C$335,3,0)","v":231517.31016753099},13296.949082663368,{"$f":"VLOOKUP($A27,[5]Diuretics!$A$12:$C$353,3,0)","v":224365.50083385399},13296.949082663368,{"$f":"VLOOKUP($A27,[5]Anti_arrhythmic_drugs!$A$11:$C$271,3,0)","v":13789.4399554431},13296.949082663368,{"$f":"VLOOKUP($A27,[5]Positive_Intotropic!$A$12:$C$297,3,0)","v":9615.1199898719806},13296.949082663368,{"$f":"VLOOKUP($A27,[5]anti_fibrinolytic!$A$11:$C$287,3,0)","v":9760.0600337982196},13296.949082663368,{"$f":"VLOOKUP($A27,[5]sympathomimetics!$A$11:$C$223,3,0)","v":12435.790071487399},13296.949082663368,{"$f":"VLOOKUP($A27,[5]CVD_All_prescriptions!$A$10:$C$392,3,0)","v":2706574.3916517999},{"$f":"VLOOKUP($A27,[5]CVD_All_prescriptions!$A$10:$C$392,2,0)","v":785845}]
["01G","NHS Salford",{"$f":"VLOOKUP($A28,[4]CVD_All_prescriptions!$A$10:$D$223,4,0)","v":4806330.1100000003},{"$f":"VLOOKUP($A28,Lookup!$BP$3:$BW$213,7,0)","v":27141.260713898231},{"$f":"VLOOKUP($A28,[4]Lipid_regulators!$A$14:$D$227,4,0)","v":1249756.3599999901},27141.260713898231,{"$f":"VLOOKUP($A28,[4]HyperandHeartfailure!$A$13:$D$226,4,0)","v":1256147.6100000001},27141.260713898231,{"$f":"VLOOKUP($A28,[4]Nit_Calc_Antianginal!$A$13:$D$226,4,0)","v":967514.13999999897},27141.260713898231,{"$f":"VLOOKUP($A28,[4]Anti_coagulants!$A$15:$D$227,4,0)","v":217283.69999999899},27141.260713898231,{"$f":"VLOOKUP($A28,[4]Beta_Adrenorecepter!$A$13:$D$226,4,0)","v":393745.12000000302},27141.260713898231,{"$f":"VLOOKUP($A28,[4]Anti_platelet!$A$13:$D$226,4,0)","v":366432.86999999802},27141.260713898231,{"$f":"VLOOKUP($A28,[4]Diuretics!$A$11:$D$224,4,0)","v":268323.89},27141.260713898231,{"$f":"VLOOKUP($A28,[4]Anti_arrhythmic_drugs!$A$13:$D$226,4,0)","v":40143.959999999897},27141.260713898231,{"$f":"VLOOKUP($A28,[4]Positive_Intotropic!$A$13:$D$226,4,0)","v":18187.089999999898},27141.260713898231,{"$f":"VLOOKUP($A28,[4]anti_fibrinolytic!$A$13:$D$226,4,0)","v":15321.09},27141.260713898231,{"$f":"VLOOKUP($A28,[4]sympathomimetics!$A$11:$D$223,4,0)","v":13474.28},27141.260713898231,{"$f":"VLOOKUP($A28,[4]CVD_All_prescriptions!$A$10:$D$223,4,0)","v":4806330.1100000003},{"$f":"VLOOKUP($A28,[4]CVD_All_prescriptions!$A$10:$D$223,3,0)","v":1740922},{"$f":"VLOOKUP($A28,[5]CVD_All_prescriptions!$A$10:$C$392,3,0)","v":4510686.85311657},{"$f":"VLOOKUP($A28,Lookup!$BP$3:$BW$213,8,0)","v":27534.230226754909},{"$f":"VLOOKUP($A28,[5]Lipid_regulators!$A$12:$C$345,3,0)","v":926223.19043405401},27534.230226754909,{"$f":"VLOOKUP($A28,[5]HyperandHeartfailure!$A$12:$C$356,3,0)","v":925541.68010137195},27534.230226754909,{"$f":"VLOOKUP($A28,[5]Nit_Calc_Antianginal!$A$12:$C$345,3,0)","v":993294.26956421905},27534.230226754909,{"$f":"VLOOKUP($A28,[5]Anti_coagulants!$A$11:$C$325,3,0)","v":378001.75027715799},27534.230226754909,{"$f":"VLOOKUP($A28,[5]Beta_Adrenorecepter!$A$11:$C$352,3,0)","v":460171.98064862902},27534.230226754909,{"$f":"VLOOKUP($A28,[5]Anti_platelet!$A$12:$C$335,3,0)","v":417306.260678783},27534.230226754909,{"$f":"VLOOKUP($A28,[5]Diuretics!$A$12:$C$353,3,0)","v":330418.91131393198},27534.230226754909,{"$f":"VLOOKUP($A28,[5]Anti_arrhythmic_drugs!$A$11:$C$271,3,0)","v":44186.800054609797},27534.230226754909,{"$f":"VLOOKUP($A28,[5]Positive_Intotropic!$A$12:$C$297,3,0)","v":14799.300012663},27534.230226754909,{"$f":"VLOOKUP($A28,[5]anti_fibrinolytic!$A$11:$C$287,3,0)","v":17717.000030875199},27534.230226754909,{"$f":"VLOOKUP($A28,[5]sympathomimetics!$A$11:$C$223,3,0)","v":3025.7100002765701},27534.230226754909,{"$f":"VLOOKUP($A28,[5]CVD_All_prescriptions!$A$10:$C$392,3,0)","v":4510686.85311657},{"$f":"VLOOKUP($A28,[5]CVD_All_prescriptions!$A$10:$C$392,2,0)","v":1782706}]
["01H","NHS Cumbria",{"$f":"VLOOKUP($A29,[4]CVD_All_prescriptions!$A$10:$D$223,4,0)","v":11391714.9300001},{"$f":"VLOOKUP($A29,Lookup!$BP$3:$BW$213,7,0)","v":47254.327443202303},{"$f":"VLOOKUP($A29,[4]Lipid_regulators!$A$14:$D$227,4,0)","v":2789189.47000003},47254.327443202303,{"$f":"VLOOKUP($A29,[4]HyperandHeartfailure!$A$13:$D$226,4,0)","v":2795964.09},47254.327443202303,{"$f":"VLOOKUP($A29,[4]Nit_Calc_Antianginal!$A$13:$D$226,4,0)","v":2518148.7299999902},47254.327443202303,{"$f":"VLOOKUP($A29,[4]Anti_coagulants!$A$15:$D$227,4,0)","v":906584.65000000305},47254.327443202303,{"$f":"VLOOKUP($A29,[4]Beta_Adrenorecepter!$A$13:$D$226,4,0)","v":787311.25000001304},47254.327443202303,{"$f":"VLOOKUP($A29,[4]Anti_platelet!$A$13:$D$226,4,0)","v":792870.270000007},47254.327443202303,{"$f":"VLOOKUP($A29,[4]Diuretics!$A$11:$D$224,4,0)","v":619046.20999998902},47254.327443202303,{"$f":"VLOOKUP($A29,[4]Anti_arrhythmic_drugs!$A$13:$D$226,4,0)","v":81810.459999999803},47254.327443202303,{"$f":"VLOOKUP($A29,[4]Positive_Intotropic!$A$13:$D$226,4,0)","v":60470.269999999902},47254.327443202303,{"$f":"VLOOKUP($A29,[4]anti_fibrinolytic!$A$13:$D$226,4,0)","v":29031.1700000001},47254.327443202303,{"$f":"VLOOKUP($A29,[4]sympathomimetics!$A$11:$D$223,4,0)","v":11288.36},47254.327443202303,{"$f":"VLOOKUP($A29,[4]CVD_All_prescriptions!$A$10:$D$223,4,0)","v":11391714.9300001},{"$f":"VLOOKUP($A29,[4]CVD_All_prescriptions!$A$10:$D$223,3,0)","v":3575854},{"$f":"VLOOKUP($A29,[5]CVD_All_prescriptions!$A$10:$C$392,3,0)","v":10738617.004052799},{"$f":"VLOOKUP($A29,Lookup!$BP$3:$BW$213,8,0)","v":46892.084385142443},{"$f":"VLOOKUP($A29,[5]Lipid_regulators!$A$12:$C$345,3,0)","v":2139168.54172963},46892.084385142443,{"$f":"VLOOKUP($A29,[5]HyperandHeartfailure!$A$12:$C$356,3,0)","v":2055301.48012221},46892.084385142443,{"$f":"VLOOKUP($A29,[5]Nit_Calc_Antianginal!$A$12:$C$345,3,0)","v":2626035.9873398398},46892.084385142443,{"$f":"VLOOKUP($A29,[5]Anti_coagulants!$A$11:$C$325,3,0)","v":1205796.8512234199},46892.084385142443,{"$f":"VLOOKUP($A29,[5]Beta_Adrenorecepter!$A$11:$C$352,3,0)","v":921251.88035789505},46892.084385142443,{"$f":"VLOOKUP($A29,[5]Anti_platelet!$A$12:$C$335,3,0)","v":841132.339610992},46892.084385142443,{"$f":"VLOOKUP($A29,[5]Diuretics!$A$12:$C$353,3,0)","v":774293.51364756399},46892.084385142443,{"$f":"VLOOKUP($A29,[5]Anti_arrhythmic_drugs!$A$11:$C$271,3,0)","v":89329.329944104},46892.084385142443,{"$f":"VLOOKUP($A29,[5]Positive_Intotropic!$A$12:$C$297,3,0)","v":48261.859971284903},46892.084385142443,{"$f":"VLOOKUP($A29,[5]anti_fibrinolytic!$A$11:$C$287,3,0)","v":26812.649991989099},46892.084385142443,{"$f":"VLOOKUP($A29,[5]sympathomimetics!$A$11:$C$223,3,0)","v":11232.5701138973},46892.084385142443,{"$f":"VLOOKUP($A29,[5]CVD_All_prescriptions!$A$10:$C$392,3,0)","v":10738617.004052799},{"$f":"VLOOKUP($A29,[5]CVD_All_prescriptions!$A$10:$C$392,2,0)","v":3643859}]
["01J","NHS Knowsley",{"$f":"VLOOKUP($A30,[4]CVD_All_prescriptions!$A$10:$D$223,4,0)","v":4214583.5599999996},{"$f":"VLOOKUP($A30,Lookup!$BP$3:$BW$213,7,0)","v":15544.296467863347},{"$f":"VLOOKUP($A30,[4]Lipid_regulators!$A$14:$D$227,4,0)","v":1431664.1299999901},15544.296467863347,{"$f":"VLOOKUP($A30,[4]HyperandHeartfailure!$A$13:$D$226,4,0)","v":893065.179999999},15544.296467863347,{"$f":"VLOOKUP($A30,[4]Nit_Calc_Antianginal!$A$13:$D$226,4,0)","v":834613.14},15544.296467863347,{"$f":"VLOOKUP($A30,[4]Anti_coagulants!$A$15:$D$227,4,0)","v":212351.35},15544.296467863347,{"$f":"VLOOKUP($A30,[4]Beta_Adrenorecepter!$A$13:$D$226,4,0)","v":265090.35000000102},15544.296467863347,{"$f":"VLOOKUP($A30,[4]Anti_platelet!$A$13:$D$226,4,0)","v":293801.44999999902},15544.296467863347,{"$f":"VLOOKUP($A30,[4]Diuretics!$A$11:$D$224,4,0)","v":212965.03},15544.296467863347,{"$f":"VLOOKUP($A30,[4]Anti_arrhythmic_drugs!$A$13:$D$226,4,0)","v":24685.65},15544.296467863347,{"$f":"VLOOKUP($A30,[4]Positive_Intotropic!$A$13:$D$226,4,0)","v":14952.98},15544.296467863347,{"$f":"VLOOKUP($A30,[4]anti_fibrinolytic!$A$13:$D$226,4,0)","v":11581.56},15544.296467863347,{"$f":"VLOOKUP($A30,[4]sympathomimetics!$A$11:$D$223,4,0)","v":19812.740000000002},15544.296467863347,{"$f":"VLOOKUP($A30,[4]CVD_All_prescriptions!$A$10:$D$223,4,0)","v":4214583.5599999996},{"$f":"VLOOKUP($A30,[4]CVD_All_prescriptions!$A$10:$D$223,3,0)","v":1210618},{"$f":"VLOOKUP($A30,[5]CVD_All_prescriptions!$A$10:$C$392,3,0)","v":3738517.15057236},{"$f":"VLOOKUP($A30,Lookup!$BP$3:$BW$213,8,0)","v":15513.703918162517},{"$f":"VLOOKUP($A30,[5]Lipid_regulators!$A$12:$C$345,3,0)","v":1000873.2499522},15513.703918162517,{"$f":"VLOOKUP($A30,[5]HyperandHeartfailure!$A$12:$C$356,3,0)","v":645600.47032558196},15513.703918162517,{"$f":"VLOOKUP($A30,[5]Nit_Calc_Antianginal!$A$12:$C$345,3,0)","v":811724.73932491196},15513.703918162517,{"$f":"VLOOKUP($A30,[5]Anti_coagulants!$A$11:$C$325,3,0)","v":322789.88978019397},15513.703918162517,{"$f":"VLOOKUP($A30,[5]Beta_Adrenorecepter!$A$11:$C$352,3,0)","v":313542.94038257003},15513.703918162517,{"$f":"VLOOKUP($A30,[5]Anti_platelet!$A$12:$C$335,3,0)","v":305622.269708095},15513.703918162517,{"$f":"VLOOKUP($A30,[5]Diuretics!$A$12:$C$353,3,0)","v":267326.24112804199},15513.703918162517,{"$f":"VLOOKUP($A30,[5]Anti_arrhythmic_drugs!$A$11:$C$271,3,0)","v":21364.019955813899},15513.703918162517,{"$f":"VLOOKUP($A30,[5]Positive_Intotropic!$A$12:$C$297,3,0)","v":12185.5199814141},15513.703918162517,{"$f":"VLOOKUP($A30,[5]anti_fibrinolytic!$A$11:$C$287,3,0)","v":10499.8100144565},15513.703918162517,{"$f":"VLOOKUP($A30,[5]sympathomimetics!$A$11:$C$223,3,0)","v":26988.000019073501},15513.703918162517,{"$f":"VLOOKUP($A30,[5]CVD_All_prescriptions!$A$10:$C$392,3,0)","v":3738517.15057236},{"$f":"VLOOKUP($A30,[5]CVD_All_prescriptions!$A$10:$C$392,2,0)","v":1216868}]
["01K","NHS Lancashire North",{"$f":"VLOOKUP($A31,[4]CVD_All_prescriptions!$A$10:$D$223,4,0)","v":2960923.43},{"$f":"VLOOKUP($A31,Lookup!$BP$3:$BW$213,7,0)","v":16327.406808768565},{"$f":"VLOOKUP($A31,[4]Lipid_regulators!$A$14:$D$227,4,0)","v":802481.06},16327.406808768565,{"$f":"VLOOKUP($A31,[4]HyperandHeartfailure!$A$13:$D$226,4,0)","v":575821.40999999898},16327.406808768565,{"$f":"VLOOKUP($A31,[4]Nit_Calc_Antianginal!$A$13:$D$226,4,0)","v":679839.37},16327.406808768565,{"$f":"VLOOKUP($A31,[4]Anti_coagulants!$A$15:$D$227,4,0)","v":219320.07},16327.406808768565,{"$f":"VLOOKUP($A31,[4]Beta_Adrenorecepter!$A$13:$D$226,4,0)","v":236889.25},16327.406808768565,{"$f":"VLOOKUP($A31,[4]Anti_platelet!$A$13:$D$226,4,0)","v":206742.16},16327.406808768565,{"$f":"VLOOKUP($A31,[4]Diuretics!$A$11:$D$224,4,0)","v":187592.73},16327.406808768565,{"$f":"VLOOKUP($A31,[4]Anti_arrhythmic_drugs!$A$13:$D$226,4,0)","v":21441.67},16327.406808768565,{"$f":"VLOOKUP($A31,[4]Positive_Intotropic!$A$13:$D$226,4,0)","v":15933.21},16327.406808768565,{"$f":"VLOOKUP($A31,[4]anti_fibrinolytic!$A$13:$D$226,4,0)","v":9976.5400000000009},16327.406808768565,{"$f":"VLOOKUP($A31,[4]sympathomimetics!$A$11:$D$223,4,0)","v":4885.96},16327.406808768565,{"$f":"VLOOKUP($A31,[4]CVD_All_prescriptions!$A$10:$D$223,4,0)","v":2960923.43},{"$f":"VLOOKUP($A31,[4]CVD_All_prescriptions!$A$10:$D$223,3,0)","v":947750},{"$f":"VLOOKUP($A31,[5]CVD_All_prescriptions!$A$10:$C$392,3,0)","v":2944613.09998444},{"$f":"VLOOKUP($A31,Lookup!$BP$3:$BW$213,8,0)","v":16239.115062127488},{"$f":"VLOOKUP($A31,[5]Lipid_regulators!$A$12:$C$345,3,0)","v":646925.17951190495},16239.115062127488,{"$f":"VLOOKUP($A31,[5]HyperandHeartfailure!$A$12:$C$356,3,0)","v":455066.70961144601},16239.115062127488,{"$f":"VLOOKUP($A31,[5]Nit_Calc_Antianginal!$A$12:$C$345,3,0)","v":774871.91991867905},16239.115062127488,{"$f":"VLOOKUP($A31,[5]Anti_coagulants!$A$11:$C$325,3,0)","v":245931.54031201801},16239.115062127488,{"$f":"VLOOKUP($A31,[5]Beta_Adrenorecepter!$A$11:$C$352,3,0)","v":310956.220109744},16239.115062127488,{"$f":"VLOOKUP($A31,[5]Anti_platelet!$A$12:$C$335,3,0)","v":214054.88965352299},16239.115062127488,{"$f":"VLOOKUP($A31,[5]Diuretics!$A$12:$C$353,3,0)","v":250185.02097194601},16239.115062127488,{"$f":"VLOOKUP($A31,[5]Anti_arrhythmic_drugs!$A$11:$C$271,3,0)","v":18819.099976643902},16239.115062127488,{"$f":"VLOOKUP($A31,[5]Positive_Intotropic!$A$12:$C$297,3,0)","v":13857.689962238101},16239.115062127488,{"$f":"VLOOKUP($A31,[5]anti_fibrinolytic!$A$11:$C$287,3,0)","v":9082.4899942874908},16239.115062127488,{"$f":"VLOOKUP($A31,[5]sympathomimetics!$A$11:$C$223,3,0)","v":4862.3399620056198},16239.115062127488,{"$f":"VLOOKUP($A31,[5]CVD_All_prescriptions!$A$10:$C$392,3,0)","v":2944613.09998444},{"$f":"VLOOKUP($A31,[5]CVD_All_prescriptions!$A$10:$C$392,2,0)","v":979775}]
["01M","NHS North Manchester",{"$f":"VLOOKUP($A32,[4]CVD_All_prescriptions!$A$10:$D$223,4,0)","v":3727611.41},{"$f":"VLOOKUP($A32,Lookup!$BP$3:$BW$213,7,0)","v":21458.201892744481},{"$f":"VLOOKUP($A32,[4]Lipid_regulators!$A$14:$D$227,4,0)","v":1177018.68},21458.201892744481,{"$f":"VLOOKUP($A32,[4]HyperandHeartfailure!$A$13:$D$226,4,0)","v":865385.679999999},21458.201892744481,{"$f":"VLOOKUP($A32,[4]Nit_Calc_Antianginal!$A$13:$D$226,4,0)","v":757260.429999999},21458.201892744481,{"$f":"VLOOKUP($A32,[4]Anti_coagulants!$A$15:$D$227,4,0)","v":101841.57},21458.201892744481,{"$f":"VLOOKUP($A32,[4]Beta_Adrenorecepter!$A$13:$D$226,4,0)","v":260303.790000001},21458.201892744481,{"$f":"VLOOKUP($A32,[4]Anti_platelet!$A$13:$D$226,4,0)","v":293752.19999999698},21458.201892744481,{"$f":"VLOOKUP($A32,[4]Diuretics!$A$11:$D$224,4,0)","v":203754.34},21458.201892744481,{"$f":"VLOOKUP($A32,[4]Anti_arrhythmic_drugs!$A$13:$D$226,4,0)","v":16042.57},21458.201892744481,{"$f":"VLOOKUP($A32,[4]Positive_Intotropic!$A$13:$D$226,4,0)","v":13825.74},21458.201892744481,{"$f":"VLOOKUP($A32,[4]anti_fibrinolytic!$A$13:$D$226,4,0)","v":16815.54},21458.201892744481,{"$f":"VLOOKUP($A32,[4]sympathomimetics!$A$11:$D$223,4,0)","v":21610.87},21458.201892744481,{"$f":"VLOOKUP($A32,[4]CVD_All_prescriptions!$A$10:$D$223,4,0)","v":3727611.41},{"$f":"VLOOKUP($A32,[4]CVD_All_prescriptions!$A$10:$D$223,3,0)","v":1079752},{"$f":"VLOOKUP($A32,[5]CVD_All_prescriptions!$A$10:$C$392,3,0)","v":3533159.83331866},{"$f":"VLOOKUP($A32,Lookup!$BP$3:$BW$213,8,0)","v":21884.858044164041},{"$f":"VLOOKUP($A32,[5]Lipid_regulators!$A$12:$C$345,3,0)","v":877213.26157456602},21884.858044164041,{"$f":"VLOOKUP($A32,[5]HyperandHeartfailure!$A$12:$C$356,3,0)","v":663192.65999363398},21884.858044164041,{"$f":"VLOOKUP($A32,[5]Nit_Calc_Antianginal!$A$12:$C$345,3,0)","v":768190.89962424303},21884.858044164041,{"$f":"VLOOKUP($A32,[5]Anti_coagulants!$A$11:$C$325,3,0)","v":205502.92007088501},21884.858044164041,{"$f":"VLOOKUP($A32,[5]Beta_Adrenorecepter!$A$11:$C$352,3,0)","v":327001.36055810802},21884.858044164041,{"$f":"VLOOKUP($A32,[5]Anti_platelet!$A$12:$C$335,3,0)","v":332559.200018704},21884.858044164041,{"$f":"VLOOKUP($A32,[5]Diuretics!$A$12:$C$353,3,0)","v":305695.21138859499},21884.858044164041,{"$f":"VLOOKUP($A32,[5]Anti_arrhythmic_drugs!$A$11:$C$271,3,0)","v":13319.760016709601},21884.858044164041,{"$f":"VLOOKUP($A32,[5]Positive_Intotropic!$A$12:$C$297,3,0)","v":11438.759985521399},21884.858044164041,{"$f":"VLOOKUP($A32,[5]anti_fibrinolytic!$A$11:$C$287,3,0)","v":12216.4300048351},21884.858044164041,{"$f":"VLOOKUP($A32,[5]sympathomimetics!$A$11:$C$223,3,0)","v":16829.370082855199},21884.858044164041,{"$f":"VLOOKUP($A32,[5]CVD_All_prescriptions!$A$10:$C$392,3,0)","v":3533159.83331866},{"$f":"VLOOKUP($A32,[5]CVD_All_prescriptions!$A$10:$C$392,2,0)","v":1089344}]
["01N","NHS South Manchester",{"$f":"VLOOKUP($A33,[4]CVD_All_prescriptions!$A$10:$D$223,4,0)","v":3177888.61},{"$f":"VLOOKUP($A33,Lookup!$BP$3:$BW$213,7,0)","v":20015.990453460618},{"$f":"VLOOKUP($A33,[4]Lipid_regulators!$A$14:$D$227,4,0)","v":953922.549999999},20015.990453460618,{"$f":"VLOOKUP($A33,[4]HyperandHeartfailure!$A$13:$D$226,4,0)","v":728432.09},20015.990453460618,{"$f":"VLOOKUP($A33,[4]Nit_Calc_Antianginal!$A$13:$D$226,4,0)","v":628671.85},20015.990453460618,{"$f":"VLOOKUP($A33,[4]Anti_coagulants!$A$15:$D$227,4,0)","v":147079.9},20015.990453460618,{"$f":"VLOOKUP($A33,[4]Beta_Adrenorecepter!$A$13:$D$226,4,0)","v":242631.77000000101},20015.990453460618,{"$f":"VLOOKUP($A33,[4]Anti_platelet!$A$13:$D$226,4,0)","v":228513.66999999899},20015.990453460618,{"$f":"VLOOKUP($A33,[4]Diuretics!$A$11:$D$224,4,0)","v":197675.950000001},20015.990453460618,{"$f":"VLOOKUP($A33,[4]Anti_arrhythmic_drugs!$A$13:$D$226,4,0)","v":16845.29},20015.990453460618,{"$f":"VLOOKUP($A33,[4]Positive_Intotropic!$A$13:$D$226,4,0)","v":11092.92},20015.990453460618,{"$f":"VLOOKUP($A33,[4]anti_fibrinolytic!$A$13:$D$226,4,0)","v":9916.9200000000092},20015.990453460618,{"$f":"VLOOKUP($A33,[4]sympathomimetics!$A$11:$D$223,4,0)","v":13105.7},20015.990453460618,{"$f":"VLOOKUP($A33,[4]CVD_All_prescriptions!$A$10:$D$223,4,0)","v":3177888.61},{"$f":"VLOOKUP($A33,[4]CVD_All_prescriptions!$A$10:$D$223,3,0)","v":827305},{"$f":"VLOOKUP($A33,[5]CVD_All_prescriptions!$A$10:$C$392,3,0)","v":2945985.6124972398},{"$f":"VLOOKUP($A33,Lookup!$BP$3:$BW$213,8,0)","v":20190.453460620523},{"$f":"VLOOKUP($A33,[5]Lipid_regulators!$A$12:$C$345,3,0)","v":668796.51046645502},20190.453460620523,{"$f":"VLOOKUP($A33,[5]HyperandHeartfailure!$A$12:$C$356,3,0)","v":559897.70035383897},20190.453460620523,{"$f":"VLOOKUP($A33,[5]Nit_Calc_Antianginal!$A$12:$C$345,3,0)","v":634439.21016374195},20190.453460620523,{"$f":"VLOOKUP($A33,[5]Anti_coagulants!$A$11:$C$325,3,0)","v":213006.810248286},20190.453460620523,{"$f":"VLOOKUP($A33,[5]Beta_Adrenorecepter!$A$11:$C$352,3,0)","v":307700.57984942902},20190.453460620523,{"$f":"VLOOKUP($A33,[5]Anti_platelet!$A$12:$C$335,3,0)","v":248344.97002235099},20190.453460620523,{"$f":"VLOOKUP($A33,[5]Diuretics!$A$12:$C$353,3,0)","v":265853.93133978499},20190.453460620523,{"$f":"VLOOKUP($A33,[5]Anti_arrhythmic_drugs!$A$11:$C$271,3,0)","v":15820.0299679935},20190.453460620523,{"$f":"VLOOKUP($A33,[5]Positive_Intotropic!$A$12:$C$297,3,0)","v":9353.5399875640906},20190.453460620523,{"$f":"VLOOKUP($A33,[5]anti_fibrinolytic!$A$11:$C$287,3,0)","v":8255.7999979257602},20190.453460620523,{"$f":"VLOOKUP($A33,[5]sympathomimetics!$A$11:$C$223,3,0)","v":14516.5300998688},20190.453460620523,{"$f":"VLOOKUP($A33,[5]CVD_All_prescriptions!$A$10:$C$392,3,0)","v":2945985.6124972398},{"$f":"VLOOKUP($A33,[5]CVD_All_prescriptions!$A$10:$C$392,2,0)","v":846924}]
["01R","NHS South Cheshire",{"$f":"VLOOKUP($A34,[4]CVD_All_prescriptions!$A$10:$D$223,4,0)","v":3613838.41},{"$f":"VLOOKUP($A34,Lookup!$BP$3:$BW$213,7,0)","v":17581.630608974359},{"$f":"VLOOKUP($A34,[4]Lipid_regulators!$A$14:$D$227,4,0)","v":998306.84000000102},17581.630608974359,{"$f":"VLOOKUP($A34,[4]HyperandHeartfailure!$A$13:$D$226,4,0)","v":881260.679999999},17581.630608974359,{"$f":"VLOOKUP($A34,[4]Nit_Calc_Antianginal!$A$13:$D$226,4,0)","v":689834.67000000097},17581.630608974359,{"$f":"VLOOKUP($A34,[4]Anti_coagulants!$A$15:$D$227,4,0)","v":244691.38},17581.630608974359,{"$f":"VLOOKUP($A34,[4]Beta_Adrenorecepter!$A$13:$D$226,4,0)","v":283396.97000000102},17581.630608974359,{"$f":"VLOOKUP($A34,[4]Anti_platelet!$A$13:$D$226,4,0)","v":233931.56999999899},17581.630608974359,{"$f":"VLOOKUP($A34,[4]Diuretics!$A$11:$D$224,4,0)","v":228012.070000001},17581.630608974359,{"$f":"VLOOKUP($A34,[4]Anti_arrhythmic_drugs!$A$13:$D$226,4,0)","v":25715.200000000001},17581.630608974359,{"$f":"VLOOKUP($A34,[4]Positive_Intotropic!$A$13:$D$226,4,0)","v":16239.68},17581.630608974359,{"$f":"VLOOKUP($A34,[4]anti_fibrinolytic!$A$13:$D$226,4,0)","v":12351.1},17581.630608974359,{"$f":"VLOOKUP($A34,[4]sympathomimetics!$A$11:$D$223,4,0)","v":98.25},17581.630608974359,{"$f":"VLOOKUP($A34,[4]CVD_All_prescriptions!$A$10:$D$223,4,0)","v":3613838.41},{"$f":"VLOOKUP($A34,[4]CVD_All_prescriptions!$A$10:$D$223,3,0)","v":1035893},{"$f":"VLOOKUP($A34,[5]CVD_All_prescriptions!$A$10:$C$392,3,0)","v":3380952.0613815198},{"$f":"VLOOKUP($A34,Lookup!$BP$3:$BW$213,8,0)","v":17705.629006410258},{"$f":"VLOOKUP($A34,[5]Lipid_regulators!$A$12:$C$345,3,0)","v":802078.65044385905},17705.629006410258,{"$f":"VLOOKUP($A34,[5]HyperandHeartfailure!$A$12:$C$356,3,0)","v":645488.38007053698},17705.629006410258,{"$f":"VLOOKUP($A34,[5]Nit_Calc_Antianginal!$A$12:$C$345,3,0)","v":670693.34000466799},17705.629006410258,{"$f":"VLOOKUP($A34,[5]Anti_coagulants!$A$11:$C$325,3,0)","v":324780.33004954498},17705.629006410258,{"$f":"VLOOKUP($A34,[5]Beta_Adrenorecepter!$A$11:$C$352,3,0)","v":335105.290231049},17705.629006410258,{"$f":"VLOOKUP($A34,[5]Anti_platelet!$A$12:$C$335,3,0)","v":235137.24986718601},17705.629006410258,{"$f":"VLOOKUP($A34,[5]Diuretics!$A$12:$C$353,3,0)","v":320644.36060084798},17705.629006410258,{"$f":"VLOOKUP($A34,[5]Anti_arrhythmic_drugs!$A$11:$C$271,3,0)","v":23248.250075817101},17705.629006410258,{"$f":"VLOOKUP($A34,[5]Positive_Intotropic!$A$12:$C$297,3,0)","v":13327.8699977994},17705.629006410258,{"$f":"VLOOKUP($A34,[5]anti_fibrinolytic!$A$11:$C$287,3,0)","v":9395.1400146484393},17705.629006410258,{"$f":"VLOOKUP($A34,[5]sympathomimetics!$A$11:$C$223,3,0)","v":1053.2000255584701},17705.629006410258,{"$f":"VLOOKUP($A34,[5]CVD_All_prescriptions!$A$10:$C$392,3,0)","v":3380952.0613815198},{"$f":"VLOOKUP($A34,[5]CVD_All_prescriptions!$A$10:$C$392,2,0)","v":1061064}]
["01T","NHS South Sefton",{"$f":"VLOOKUP($A35,[4]CVD_All_prescriptions!$A$10:$D$223,4,0)","v":4056907.52},{"$f":"VLOOKUP($A35,Lookup!$BP$3:$BW$213,7,0)","v":14439.199255121042},{"$f":"VLOOKUP($A35,[4]Lipid_regulators!$A$14:$D$227,4,0)","v":1325337.2},14439.199255121042,{"$f":"VLOOKUP($A35,[4]HyperandHeartfailure!$A$13:$D$226,4,0)","v":894700.82999999903},14439.199255121042,{"$f":"VLOOKUP($A35,[4]Nit_Calc_Antianginal!$A$13:$D$226,4,0)","v":890590.47999999905},14439.199255121042,{"$f":"VLOOKUP($A35,[4]Anti_coagulants!$A$15:$D$227,4,0)","v":175661.51},14439.199255121042,{"$f":"VLOOKUP($A35,[4]Beta_Adrenorecepter!$A$13:$D$226,4,0)","v":253940.03},14439.199255121042,{"$f":"VLOOKUP($A35,[4]Anti_platelet!$A$13:$D$226,4,0)","v":263341.77999999898},14439.199255121042,{"$f":"VLOOKUP($A35,[4]Diuretics!$A$11:$D$224,4,0)","v":206878.19},14439.199255121042,{"$f":"VLOOKUP($A35,[4]Anti_arrhythmic_drugs!$A$13:$D$226,4,0)","v":22546.57},14439.199255121042,{"$f":"VLOOKUP($A35,[4]Positive_Intotropic!$A$13:$D$226,4,0)","v":15672.3},14439.199255121042,{"$f":"VLOOKUP($A35,[4]anti_fibrinolytic!$A$13:$D$226,4,0)","v":8157.4799999999796},14439.199255121042,{"$f":"VLOOKUP($A35,[4]sympathomimetics!$A$11:$D$223,4,0)","v":81.150000000000006},14439.199255121042,{"$f":"VLOOKUP($A35,[4]CVD_All_prescriptions!$A$10:$D$223,4,0)","v":4056907.52},{"$f":"VLOOKUP($A35,[4]CVD_All_prescriptions!$A$10:$D$223,3,0)","v":1095780},{"$f":"VLOOKUP($A35,[5]CVD_All_prescriptions!$A$10:$C$392,3,0)","v":3682953.2119632899},{"$f":"VLOOKUP($A35,Lookup!$BP$3:$BW$213,8,0)","v":14424.674115456239},{"$f":"VLOOKUP($A35,[5]Lipid_regulators!$A$12:$C$345,3,0)","v":1005990.9501275501},14424.674115456239,{"$f":"VLOOKUP($A35,[5]HyperandHeartfailure!$A$12:$C$356,3,0)","v":648414.94017616694},14424.674115456239,{"$f":"VLOOKUP($A35,[5]Nit_Calc_Antianginal!$A$12:$C$345,3,0)","v":903705.34927860601},14424.674115456239,{"$f":"VLOOKUP($A35,[5]Anti_coagulants!$A$11:$C$325,3,0)","v":228212.17054415299},14424.674115456239,{"$f":"VLOOKUP($A35,[5]Beta_Adrenorecepter!$A$11:$C$352,3,0)","v":296472.03043359501},14424.674115456239,{"$f":"VLOOKUP($A35,[5]Anti_platelet!$A$12:$C$335,3,0)","v":287991.40039926802},14424.674115456239,{"$f":"VLOOKUP($A35,[5]Diuretics!$A$12:$C$353,3,0)","v":273874.34101478802},14424.674115456239,{"$f":"VLOOKUP($A35,[5]Anti_arrhythmic_drugs!$A$11:$C$271,3,0)","v":17875.760000377901},14424.674115456239,{"$f":"VLOOKUP($A35,[5]Positive_Intotropic!$A$12:$C$297,3,0)","v":13077.349964991199},14424.674115456239,{"$f":"VLOOKUP($A35,[5]anti_fibrinolytic!$A$11:$C$287,3,0)","v":6999.98001372814},14424.674115456239,{"$f":"VLOOKUP($A35,[5]sympathomimetics!$A$11:$C$223,3,0)","v":338.94001007080101},14424.674115456239,{"$f":"VLOOKUP($A35,[5]CVD_All_prescriptions!$A$10:$C$392,3,0)","v":3682953.2119632899},{"$f":"VLOOKUP($A35,[5]CVD_All_prescriptions!$A$10:$C$392,2,0)","v":1107300}]
["01V","NHS Southport and Formby",{"$f":"VLOOKUP($A36,[4]CVD_All_prescriptions!$A$10:$D$223,4,0)","v":2990547.95},{"$f":"VLOOKUP($A36,Lookup!$BP$3:$BW$213,7,0)","v":10444.871794871795},{"$f":"VLOOKUP($A36,[4]Lipid_regulators!$A$14:$D$227,4,0)","v":967475.16999999899},10444.871794871795,{"$f":"VLOOKUP($A36,[4]HyperandHeartfailure!$A$13:$D$226,4,0)","v":734991.96999999904},10444.871794871795,{"$f":"VLOOKUP($A36,[4]Nit_Calc_Antianginal!$A$13:$D$226,4,0)","v":579993.30000000005},10444.871794871795,{"$f":"VLOOKUP($A36,[4]Anti_coagulants!$A$15:$D$227,4,0)","v":123034.32},10444.871794871795,{"$f":"VLOOKUP($A36,[4]Beta_Adrenorecepter!$A$13:$D$226,4,0)","v":195381.02999999901},10444.871794871795,{"$f":"VLOOKUP($A36,[4]Anti_platelet!$A$13:$D$226,4,0)","v":181193.87},10444.871794871795,{"$f":"VLOOKUP($A36,[4]Diuretics!$A$11:$D$224,4,0)","v":157189.70000000001},10444.871794871795,{"$f":"VLOOKUP($A36,[4]Anti_arrhythmic_drugs!$A$13:$D$226,4,0)","v":22533.27},10444.871794871795,{"$f":"VLOOKUP($A36,[4]Positive_Intotropic!$A$13:$D$226,4,0)","v":18267.95},10444.871794871795,{"$f":"VLOOKUP($A36,[4]anti_fibrinolytic!$A$13:$D$226,4,0)","v":5303.26},10444.871794871795,{"$f":"VLOOKUP($A36,[4]sympathomimetics!$A$11:$D$223,4,0)","v":5184.1099999999997},10444.871794871795,{"$f":"VLOOKUP($A36,[4]CVD_All_prescriptions!$A$10:$D$223,4,0)","v":2990547.95},{"$f":"VLOOKUP($A36,[4]CVD_All_prescriptions!$A$10:$D$223,3,0)","v":884014},{"$f":"VLOOKUP($A36,[5]CVD_All_prescriptions!$A$10:$C$392,3,0)","v":2653081.0008729598},{"$f":"VLOOKUP($A36,Lookup!$BP$3:$BW$213,8,0)","v":10460.769230769232},{"$f":"VLOOKUP($A36,[5]Lipid_regulators!$A$12:$C$345,3,0)","v":731538.67006067897},10460.769230769232,{"$f":"VLOOKUP($A36,[5]HyperandHeartfailure!$A$12:$C$356,3,0)","v":519847.860009439},10460.769230769232,{"$f":"VLOOKUP($A36,[5]Nit_Calc_Antianginal!$A$12:$C$345,3,0)","v":580553.87989374995},10460.769230769232,{"$f":"VLOOKUP($A36,[5]Anti_coagulants!$A$11:$C$325,3,0)","v":160221.08035588299},10460.769230769232,{"$f":"VLOOKUP($A36,[5]Beta_Adrenorecepter!$A$11:$C$352,3,0)","v":239441.30009150499},10460.769230769232,{"$f":"VLOOKUP($A36,[5]Anti_platelet!$A$12:$C$335,3,0)","v":184638.06003582501},10460.769230769232,{"$f":"VLOOKUP($A36,[5]Diuretics!$A$12:$C$353,3,0)","v":190208.60049912299},10460.769230769232,{"$f":"VLOOKUP($A36,[5]Anti_arrhythmic_drugs!$A$11:$C$271,3,0)","v":19182.919968962698},10460.769230769232,{"$f":"VLOOKUP($A36,[5]Positive_Intotropic!$A$12:$C$297,3,0)","v":15303.839941144},10460.769230769232,{"$f":"VLOOKUP($A36,[5]anti_fibrinolytic!$A$11:$C$287,3,0)","v":4952.10002183914},10460.769230769232,{"$f":"VLOOKUP($A36,[5]sympathomimetics!$A$11:$C$223,3,0)","v":7192.6899948120099},10460.769230769232,{"$f":"VLOOKUP($A36,[5]CVD_All_prescriptions!$A$10:$C$392,3,0)","v":2653081.0008729598},{"$f":"VLOOKUP($A36,[5]CVD_All_prescriptions!$A$10:$C$392,2,0)","v":910466}]
["01W","NHS Stockport",{"$f":"VLOOKUP($A37,[4]CVD_All_prescriptions!$A$10:$D$223,4,0)","v":6746227.7400000198},{"$f":"VLOOKUP($A37,Lookup!$BP$3:$BW$213,7,0)","v":30593.941248470011},{"$f":"VLOOKUP($A37,[4]Lipid_regulators!$A$14:$D$227,4,0)","v":2162009.64},30593.941248470011,{"$f":"VLOOKUP($A37,[4]HyperandHeartfailure!$A$13:$D$226,4,0)","v":1591146},30593.941248470011,{"$f":"VLOOKUP($A37,[4]Nit_Calc_Antianginal!$A$13:$D$226,4,0)","v":1289985.83},30593.941248470011,{"$f":"VLOOKUP($A37,[4]Anti_coagulants!$A$15:$D$227,4,0)","v":211051.02999999901},30593.941248470011,{"$f":"VLOOKUP($A37,[4]Beta_Adrenorecepter!$A$13:$D$226,4,0)","v":504750.080000002},30593.941248470011,{"$f":"VLOOKUP($A37,[4]Anti_platelet!$A$13:$D$226,4,0)","v":449149.19999999698},30593.941248470011,{"$f":"VLOOKUP($A37,[4]Diuretics!$A$11:$D$224,4,0)","v":442605.13},30593.941248470011,{"$f":"VLOOKUP($A37,[4]Anti_arrhythmic_drugs!$A$13:$D$226,4,0)","v":47696.97},30593.941248470011,{"$f":"VLOOKUP($A37,[4]Positive_Intotropic!$A$13:$D$226,4,0)","v":25801.9399999999},30593.941248470011,{"$f":"VLOOKUP($A37,[4]anti_fibrinolytic!$A$13:$D$226,4,0)","v":17131.11},30593.941248470011,{"$f":"VLOOKUP($A37,[4]sympathomimetics!$A$11:$D$223,4,0)","v":4900.8100000000004},30593.941248470011,{"$f":"VLOOKUP($A37,[4]CVD_All_prescriptions!$A$10:$D$223,4,0)","v":6746227.7400000198},{"$f":"VLOOKUP($A37,[4]CVD_All_prescriptions!$A$10:$D$223,3,0)","v":1929804},{"$f":"VLOOKUP($A37,[5]CVD_All_prescriptions!$A$10:$C$392,3,0)","v":6247299.3524633599},{"$f":"VLOOKUP($A37,Lookup!$BP$3:$BW$213,8,0)","v":30734.394124847},{"$f":"VLOOKUP($A37,[5]Lipid_regulators!$A$12:$C$345,3,0)","v":1581712.71056398},30734.394124847,{"$f":"VLOOKUP($A37,[5]HyperandHeartfailure!$A$12:$C$356,3,0)","v":1086581.33063896},30734.394124847,{"$f":"VLOOKUP($A37,[5]Nit_Calc_Antianginal!$A$12:$C$345,3,0)","v":1371847.27866606},30734.394124847,{"$f":"VLOOKUP($A37,[5]Anti_coagulants!$A$11:$C$325,3,0)","v":358537.60007806099},30734.394124847,{"$f":"VLOOKUP($A37,[5]Beta_Adrenorecepter!$A$11:$C$352,3,0)","v":643696.24028003204},30734.394124847,{"$f":"VLOOKUP($A37,[5]Anti_platelet!$A$12:$C$335,3,0)","v":522809.40977152402},30734.394124847,{"$f":"VLOOKUP($A37,[5]Diuretics!$A$12:$C$353,3,0)","v":593586.13233730197},30734.394124847,{"$f":"VLOOKUP($A37,[5]Anti_arrhythmic_drugs!$A$11:$C$271,3,0)","v":47089.250118345},30734.394124847,{"$f":"VLOOKUP($A37,[5]Positive_Intotropic!$A$12:$C$297,3,0)","v":20626.929969843499},30734.394124847,{"$f":"VLOOKUP($A37,[5]anti_fibrinolytic!$A$11:$C$287,3,0)","v":14099.290011286699},30734.394124847,{"$f":"VLOOKUP($A37,[5]sympathomimetics!$A$11:$C$223,3,0)","v":6713.18002796173},30734.394124847,{"$f":"VLOOKUP($A37,[5]CVD_All_prescriptions!$A$10:$C$392,3,0)","v":6247299.3524633599},{"$f":"VLOOKUP($A37,[5]CVD_All_prescriptions!$A$10:$C$392,2,0)","v":1974779}]
["01X","NHS St Helens",{"$f":"VLOOKUP($A38,[4]CVD_All_prescriptions!$A$10:$D$223,4,0)","v":4881472.29},{"$f":"VLOOKUP($A38,Lookup!$BP$3:$BW$213,7,0)","v":18652.681327160491},{"$f":"VLOOKUP($A38,[4]Lipid_regulators!$A$14:$D$227,4,0)","v":1529200.23},18652.681327160491,{"$f":"VLOOKUP($A38,[4]HyperandHeartfailure!$A$13:$D$226,4,0)","v":1126931.32},18652.681327160491,{"$f":"VLOOKUP($A38,[4]Nit_Calc_Antianginal!$A$13:$D$226,4,0)","v":973763.32999999903},18652.681327160491,{"$f":"VLOOKUP($A38,[4]Anti_coagulants!$A$15:$D$227,4,0)","v":276033.989999999},18652.681327160491,{"$f":"VLOOKUP($A38,[4]Beta_Adrenorecepter!$A$13:$D$226,4,0)","v":325244.82000000199},18652.681327160491,{"$f":"VLOOKUP($A38,[4]Anti_platelet!$A$13:$D$226,4,0)","v":294561.71999999898},18652.681327160491,{"$f":"VLOOKUP($A38,[4]Diuretics!$A$11:$D$224,4,0)","v":273981.36},18652.681327160491,{"$f":"VLOOKUP($A38,[4]Anti_arrhythmic_drugs!$A$13:$D$226,4,0)","v":30867.33},18652.681327160491,{"$f":"VLOOKUP($A38,[4]Positive_Intotropic!$A$13:$D$226,4,0)","v":17594.54},18652.681327160491,{"$f":"VLOOKUP($A38,[4]anti_fibrinolytic!$A$13:$D$226,4,0)","v":14274.55},18652.681327160491,{"$f":"VLOOKUP($A38,[4]sympathomimetics!$A$11:$D$223,4,0)","v":19019.099999999999},18652.681327160491,{"$f":"VLOOKUP($A38,[4]CVD_All_prescriptions!$A$10:$D$223,4,0)","v":4881472.29},{"$f":"VLOOKUP($A38,[4]CVD_All_prescriptions!$A$10:$D$223,3,0)","v":1363203},{"$f":"VLOOKUP($A38,[5]CVD_All_prescriptions!$A$10:$C$392,3,0)","v":4409223.9437291101},{"$f":"VLOOKUP($A38,Lookup!$BP$3:$BW$213,8,0)","v":18712.577160493827},{"$f":"VLOOKUP($A38,[5]Lipid_regulators!$A$12:$C$345,3,0)","v":1129570.62099559},18712.577160493827,{"$f":"VLOOKUP($A38,[5]HyperandHeartfailure!$A$12:$C$356,3,0)","v":821808.39073843497},18712.577160493827,{"$f":"VLOOKUP($A38,[5]Nit_Calc_Antianginal!$A$12:$C$345,3,0)","v":962525.43969610299},18712.577160493827,{"$f":"VLOOKUP($A38,[5]Anti_coagulants!$A$11:$C$325,3,0)","v":356715.47010135697},18712.577160493827,{"$f":"VLOOKUP($A38,[5]Beta_Adrenorecepter!$A$11:$C$352,3,0)","v":389009.31039188599},18712.577160493827,{"$f":"VLOOKUP($A38,[5]Anti_platelet!$A$12:$C$335,3,0)","v":333877.65991579002},18712.577160493827,{"$f":"VLOOKUP($A38,[5]Diuretics!$A$12:$C$353,3,0)","v":341605.491918271},18712.577160493827,{"$f":"VLOOKUP($A38,[5]Anti_arrhythmic_drugs!$A$11:$C$271,3,0)","v":28063.570044219501},18712.577160493827,{"$f":"VLOOKUP($A38,[5]Positive_Intotropic!$A$12:$C$297,3,0)","v":14869.5899705142},18712.577160493827,{"$f":"VLOOKUP($A38,[5]anti_fibrinolytic!$A$11:$C$287,3,0)","v":13290.7199995518},18712.577160493827,{"$f":"VLOOKUP($A38,[5]sympathomimetics!$A$11:$C$223,3,0)","v":17887.679957389799},18712.577160493827,{"$f":"VLOOKUP($A38,[5]CVD_All_prescriptions!$A$10:$C$392,3,0)","v":4409223.9437291101},{"$f":"VLOOKUP($A38,[5]CVD_All_prescriptions!$A$10:$C$392,2,0)","v":1360034}]
["01Y","NHS Tameside and Glossop",{"$f":"VLOOKUP($A39,[4]CVD_All_prescriptions!$A$10:$D$223,4,0)","v":6080322.8000000101},{"$f":"VLOOKUP($A39,Lookup!$BP$3:$BW$213,7,0)","v":25016.274489478594},{"$f":"VLOOKUP($A39,[4]Lipid_regulators!$A$14:$D$227,4,0)","v":1800186.6},25016.274489478594,{"$f":"VLOOKUP($A39,[4]HyperandHeartfailure!$A$13:$D$226,4,0)","v":1397894.67},25016.274489478594,{"$f":"VLOOKUP($A39,[4]Nit_Calc_Antianginal!$A$13:$D$226,4,0)","v":1404976.39},25016.274489478594,{"$f":"VLOOKUP($A39,[4]Anti_coagulants!$A$15:$D$227,4,0)","v":236639.80999999901},25016.274489478594,{"$f":"VLOOKUP($A39,[4]Beta_Adrenorecepter!$A$13:$D$226,4,0)","v":449523.620000005},25016.274489478594,{"$f":"VLOOKUP($A39,[4]Anti_platelet!$A$13:$D$226,4,0)","v":326851.98999999801},25016.274489478594,{"$f":"VLOOKUP($A39,[4]Diuretics!$A$11:$D$224,4,0)","v":387270.25999999902},25016.274489478594,{"$f":"VLOOKUP($A39,[4]Anti_arrhythmic_drugs!$A$13:$D$226,4,0)","v":33603.090000000098},25016.274489478594,{"$f":"VLOOKUP($A39,[4]Positive_Intotropic!$A$13:$D$226,4,0)","v":21853.6899999999},25016.274489478594,{"$f":"VLOOKUP($A39,[4]anti_fibrinolytic!$A$13:$D$226,4,0)","v":19089.830000000002},25016.274489478594,{"$f":"VLOOKUP($A39,[4]sympathomimetics!$A$11:$D$223,4,0)","v":2432.85},25016.274489478594,{"$f":"VLOOKUP($A39,[4]CVD_All_prescriptions!$A$10:$D$223,4,0)","v":6080322.8000000101},{"$f":"VLOOKUP($A39,[4]CVD_All_prescriptions!$A$10:$D$223,3,0)","v":1559909},{"$f":"VLOOKUP($A39,[5]CVD_All_prescriptions!$A$10:$C$392,3,0)","v":5679753.9740002602},{"$f":"VLOOKUP($A39,Lookup!$BP$3:$BW$213,8,0)","v":24847.931999585362},{"$f":"VLOOKUP($A39,[5]Lipid_regulators!$A$12:$C$345,3,0)","v":1307359.84103155},24847.931999585362,{"$f":"VLOOKUP($A39,[5]HyperandHeartfailure!$A$12:$C$356,3,0)","v":1112277.8208024499},24847.931999585362,{"$f":"VLOOKUP($A39,[5]Nit_Calc_Antianginal!$A$12:$C$345,3,0)","v":1408465.53932974},24847.931999585362,{"$f":"VLOOKUP($A39,[5]Anti_coagulants!$A$11:$C$325,3,0)","v":374529.40991258202},24847.931999585362,{"$f":"VLOOKUP($A39,[5]Beta_Adrenorecepter!$A$11:$C$352,3,0)","v":538888.39024937002},24847.931999585362,{"$f":"VLOOKUP($A39,[5]Anti_platelet!$A$12:$C$335,3,0)","v":394351.99013329501},24847.931999585362,{"$f":"VLOOKUP($A39,[5]Diuretics!$A$12:$C$353,3,0)","v":478158.312466025},24847.931999585362,{"$f":"VLOOKUP($A39,[5]Anti_arrhythmic_drugs!$A$11:$C$271,3,0)","v":32329.250063478899},24847.931999585362,{"$f":"VLOOKUP($A39,[5]Positive_Intotropic!$A$12:$C$297,3,0)","v":18253.029994443099},24847.931999585362,{"$f":"VLOOKUP($A39,[5]anti_fibrinolytic!$A$11:$C$287,3,0)","v":14875.410017788399},24847.931999585362,{"$f":"VLOOKUP($A39,[5]sympathomimetics!$A$11:$C$223,3,0)","v":264.97999954223599},24847.931999585362,{"$f":"VLOOKUP($A39,[5]CVD_All_prescriptions!$A$10:$C$392,3,0)","v":5679753.9740002602},{"$f":"VLOOKUP($A39,[5]CVD_All_prescriptions!$A$10:$C$392,2,0)","v":1561114}]
["02A","NHS Trafford",{"$f":"VLOOKUP($A40,[4]CVD_All_prescriptions!$A$10:$D$223,4,0)","v":5255385.28},{"$f":"VLOOKUP($A40,Lookup!$BP$3:$BW$213,7,0)","v":24262.692921766899},{"$f":"VLOOKUP($A40,[4]Lipid_regulators!$A$14:$D$227,4,0)","v":1757245.4300000099},24262.692921766899,{"$f":"VLOOKUP($A40,[4]HyperandHeartfailure!$A$13:$D$226,4,0)","v":1187022.6000000001},24262.692921766899,{"$f":"VLOOKUP($A40,[4]Nit_Calc_Antianginal!$A$13:$D$226,4,0)","v":915964.12999999896},24262.692921766899,{"$f":"VLOOKUP($A40,[4]Anti_coagulants!$A$15:$D$227,4,0)","v":243134.06},24262.692921766899,{"$f":"VLOOKUP($A40,[4]Beta_Adrenorecepter!$A$13:$D$226,4,0)","v":435545.97000000102},24262.692921766899,{"$f":"VLOOKUP($A40,[4]Anti_platelet!$A$13:$D$226,4,0)","v":316347.56999999803},24262.692921766899,{"$f":"VLOOKUP($A40,[4]Diuretics!$A$11:$D$224,4,0)","v":329546.76999999897},24262.692921766899,{"$f":"VLOOKUP($A40,[4]Anti_arrhythmic_drugs!$A$13:$D$226,4,0)","v":27005.06},24262.692921766899,{"$f":"VLOOKUP($A40,[4]Positive_Intotropic!$A$13:$D$226,4,0)","v":18547.349999999999},24262.692921766899,{"$f":"VLOOKUP($A40,[4]anti_fibrinolytic!$A$13:$D$226,4,0)","v":21051.4},24262.692921766899,{"$f":"VLOOKUP($A40,[4]sympathomimetics!$A$11:$D$223,4,0)","v":3974.94},24262.692921766899,{"$f":"VLOOKUP($A40,[4]CVD_All_prescriptions!$A$10:$D$223,4,0)","v":5255385.28},{"$f":"VLOOKUP($A40,[4]CVD_All_prescriptions!$A$10:$D$223,3,0)","v":1470843},{"$f":"VLOOKUP($A40,[5]CVD_All_prescriptions!$A$10:$C$392,3,0)","v":4701523.6145596299},{"$f":"VLOOKUP($A40,Lookup!$BP$3:$BW$213,8,0)","v":25216.60457690261},{"$f":"VLOOKUP($A40,[5]Lipid_regulators!$A$12:$C$345,3,0)","v":1262718.38173299},25216.60457690261,{"$f":"VLOOKUP($A40,[5]HyperandHeartfailure!$A$12:$C$356,3,0)","v":852331.90036444401},25216.60457690261,{"$f":"VLOOKUP($A40,[5]Nit_Calc_Antianginal!$A$12:$C$345,3,0)","v":918659.659621611},25216.60457690261,{"$f":"VLOOKUP($A40,[5]Anti_coagulants!$A$11:$C$325,3,0)","v":357347.14042824501},25216.60457690261,{"$f":"VLOOKUP($A40,[5]Beta_Adrenorecepter!$A$11:$C$352,3,0)","v":497690.55071930599},25216.60457690261,{"$f":"VLOOKUP($A40,[5]Anti_platelet!$A$12:$C$335,3,0)","v":344429.28984411102},25216.60457690261,{"$f":"VLOOKUP($A40,[5]Diuretics!$A$12:$C$353,3,0)","v":405505.13176891999},25216.60457690261,{"$f":"VLOOKUP($A40,[5]Anti_arrhythmic_drugs!$A$11:$C$271,3,0)","v":23835.030007600799},25216.60457690261,{"$f":"VLOOKUP($A40,[5]Positive_Intotropic!$A$12:$C$297,3,0)","v":14984.959991052699},25216.60457690261,{"$f":"VLOOKUP($A40,[5]anti_fibrinolytic!$A$11:$C$287,3,0)","v":16031.5199972391},25216.60457690261,{"$f":"VLOOKUP($A40,[5]sympathomimetics!$A$11:$C$223,3,0)","v":7990.0500841140702},25216.60457690261,{"$f":"VLOOKUP($A40,[5]CVD_All_prescriptions!$A$10:$C$392,3,0)","v":4701523.6145596299},{"$f":"VLOOKUP($A40,[5]CVD_All_prescriptions!$A$10:$C$392,2,0)","v":1495129}]
["02D","NHS Vale Royal",{"$f":"VLOOKUP($A41,[4]CVD_All_prescriptions!$A$10:$D$223,4,0)","v":2045601.34},{"$f":"VLOOKUP($A41,Lookup!$BP$3:$BW$213,7,0)","v":10709.886887306242},{"$f":"VLOOKUP($A41,[4]Lipid_regulators!$A$14:$D$227,4,0)","v":553247.400000002},10709.886887306242,{"$f":"VLOOKUP($A41,[4]HyperandHeartfailure!$A$13:$D$226,4,0)","v":513746.299999999},10709.886887306242,{"$f":"VLOOKUP($A41,[4]Nit_Calc_Antianginal!$A$13:$D$226,4,0)","v":392581.91},10709.886887306242,{"$f":"VLOOKUP($A41,[4]Anti_coagulants!$A$15:$D$227,4,0)","v":134963.94},10709.886887306242,{"$f":"VLOOKUP($A41,[4]Beta_Adrenorecepter!$A$13:$D$226,4,0)","v":159870.25},10709.886887306242,{"$f":"VLOOKUP($A41,[4]Anti_platelet!$A$13:$D$226,4,0)","v":129250.32},10709.886887306242,{"$f":"VLOOKUP($A41,[4]Diuretics!$A$11:$D$224,4,0)","v":134265.91},10709.886887306242,{"$f":"VLOOKUP($A41,[4]Anti_arrhythmic_drugs!$A$13:$D$226,4,0)","v":8438.6500000000106},10709.886887306242,{"$f":"VLOOKUP($A41,[4]Positive_Intotropic!$A$13:$D$226,4,0)","v":8453.08},10709.886887306242,{"$f":"VLOOKUP($A41,[4]anti_fibrinolytic!$A$13:$D$226,4,0)","v":7996.95},10709.886887306242,{"$f":"VLOOKUP($A41,[4]sympathomimetics!$A$11:$D$223,4,0)","v":2786.63},10709.886887306242,{"$f":"VLOOKUP($A41,[4]CVD_All_prescriptions!$A$10:$D$223,4,0)","v":2045601.34},{"$f":"VLOOKUP($A41,[4]CVD_All_prescriptions!$A$10:$D$223,3,0)","v":755022},{"$f":"VLOOKUP($A41,[5]CVD_All_prescriptions!$A$10:$C$392,3,0)","v":1936776.19112448},{"$f":"VLOOKUP($A41,Lookup!$BP$3:$BW$213,8,0)","v":10731.252618349392},{"$f":"VLOOKUP($A41,[5]Lipid_regulators!$A$12:$C$345,3,0)","v":440150.00010147702},10731.252618349392,{"$f":"VLOOKUP($A41,[5]HyperandHeartfailure!$A$12:$C$356,3,0)","v":356187.29016625899},10731.252618349392,{"$f":"VLOOKUP($A41,[5]Nit_Calc_Antianginal!$A$12:$C$345,3,0)","v":374086.509772241},10731.252618349392,{"$f":"VLOOKUP($A41,[5]Anti_coagulants!$A$11:$C$325,3,0)","v":202978.06030170599},10731.252618349392,{"$f":"VLOOKUP($A41,[5]Beta_Adrenorecepter!$A$11:$C$352,3,0)","v":204441.83035069701},10731.252618349392,{"$f":"VLOOKUP($A41,[5]Anti_platelet!$A$12:$C$335,3,0)","v":138397.970029891},10731.252618349392,{"$f":"VLOOKUP($A41,[5]Diuretics!$A$12:$C$353,3,0)","v":191077.01040008699},10731.252618349392,{"$f":"VLOOKUP($A41,[5]Anti_arrhythmic_drugs!$A$11:$C$271,3,0)","v":8063.5800116062201},10731.252618349392,{"$f":"VLOOKUP($A41,[5]Positive_Intotropic!$A$12:$C$297,3,0)","v":6994.7300021648398},10731.252618349392,{"$f":"VLOOKUP($A41,[5]anti_fibrinolytic!$A$11:$C$287,3,0)","v":7008.9999892711603},10731.252618349392,{"$f":"VLOOKUP($A41,[5]sympathomimetics!$A$11:$C$223,3,0)","v":7390.2099990844699},10731.252618349392,{"$f":"VLOOKUP($A41,[5]CVD_All_prescriptions!$A$10:$C$392,3,0)","v":1936776.19112448},{"$f":"VLOOKUP($A41,[5]CVD_All_prescriptions!$A$10:$C$392,2,0)","v":762772}]
["02E","NHS Warrington",{"$f":"VLOOKUP($A42,[4]CVD_All_prescriptions!$A$10:$D$223,4,0)","v":4350356.71},{"$f":"VLOOKUP($A42,Lookup!$BP$3:$BW$213,7,0)","v":22761.115954664343},{"$f":"VLOOKUP($A42,[4]Lipid_regulators!$A$14:$D$227,4,0)","v":1185945.9099999999},22761.115954664343,{"$f":"VLOOKUP($A42,[4]HyperandHeartfailure!$A$13:$D$226,4,0)","v":1027962.02},22761.115954664343,{"$f":"VLOOKUP($A42,[4]Nit_Calc_Antianginal!$A$13:$D$226,4,0)","v":1003518.53},22761.115954664343,{"$f":"VLOOKUP($A42,[4]Anti_coagulants!$A$15:$D$227,4,0)","v":285734.46999999997},22761.115954664343,{"$f":"VLOOKUP($A42,[4]Beta_Adrenorecepter!$A$13:$D$226,4,0)","v":297293.320000001},22761.115954664343,{"$f":"VLOOKUP($A42,[4]Anti_platelet!$A$13:$D$226,4,0)","v":261028.75},22761.115954664343,{"$f":"VLOOKUP($A42,[4]Diuretics!$A$11:$D$224,4,0)","v":233239.74000000101},22761.115954664343,{"$f":"VLOOKUP($A42,[4]Anti_arrhythmic_drugs!$A$13:$D$226,4,0)","v":22583.72},22761.115954664343,{"$f":"VLOOKUP($A42,[4]Positive_Intotropic!$A$13:$D$226,4,0)","v":19357.64},22761.115954664343,{"$f":"VLOOKUP($A42,[4]anti_fibrinolytic!$A$13:$D$226,4,0)","v":13170.91},22761.115954664343,{"$f":"VLOOKUP($A42,[4]sympathomimetics!$A$11:$D$223,4,0)","v":442.45},22761.115954664343,{"$f":"VLOOKUP($A42,[4]CVD_All_prescriptions!$A$10:$D$223,4,0)","v":4350356.71},{"$f":"VLOOKUP($A42,[4]CVD_All_prescriptions!$A$10:$D$223,3,0)","v":996412},{"$f":"VLOOKUP($A42,[5]CVD_All_prescriptions!$A$10:$C$392,3,0)","v":3966788.1017144499},{"$f":"VLOOKUP($A42,Lookup!$BP$3:$BW$213,8,0)","v":23023.103748910202},{"$f":"VLOOKUP($A42,[5]Lipid_regulators!$A$12:$C$345,3,0)","v":924909.89953634096},23023.103748910202,{"$f":"VLOOKUP($A42,[5]HyperandHeartfailure!$A$12:$C$356,3,0)","v":694225.62067520595},23023.103748910202,{"$f":"VLOOKUP($A42,[5]Nit_Calc_Antianginal!$A$12:$C$345,3,0)","v":920408.53997862304},23023.103748910202,{"$f":"VLOOKUP($A42,[5]Anti_coagulants!$A$11:$C$325,3,0)","v":370732.81073978503},23023.103748910202,{"$f":"VLOOKUP($A42,[5]Beta_Adrenorecepter!$A$11:$C$352,3,0)","v":376776.26999026502},23023.103748910202,{"$f":"VLOOKUP($A42,[5]Anti_platelet!$A$12:$C$335,3,0)","v":332965.39978532499},23023.103748910202,{"$f":"VLOOKUP($A42,[5]Diuretics!$A$12:$C$353,3,0)","v":302511.31103414297},23023.103748910202,{"$f":"VLOOKUP($A42,[5]Anti_arrhythmic_drugs!$A$11:$C$271,3,0)","v":16448.659981280602},23023.103748910202,{"$f":"VLOOKUP($A42,[5]Positive_Intotropic!$A$12:$C$297,3,0)","v":15912.949980020499},23023.103748910202,{"$f":"VLOOKUP($A42,[5]anti_fibrinolytic!$A$11:$C$287,3,0)","v":11242.0000121593},23023.103748910202,{"$f":"VLOOKUP($A42,[5]sympathomimetics!$A$11:$C$223,3,0)","v":611.64000129699696},23023.103748910202,{"$f":"VLOOKUP($A42,[5]CVD_All_prescriptions!$A$10:$C$392,3,0)","v":3966788.1017144499},{"$f":"VLOOKUP($A42,[5]CVD_All_prescriptions!$A$10:$C$392,2,0)","v":1020514}]
["02F","NHS West Cheshire",{"$f":"VLOOKUP($A43,[4]CVD_All_prescriptions!$A$10:$D$223,4,0)","v":5272505.7700000098},{"$f":"VLOOKUP($A43,Lookup!$BP$3:$BW$213,7,0)","v":25154.263183834402},{"$f":"VLOOKUP($A43,[4]Lipid_regulators!$A$14:$D$227,4,0)","v":1581055.8299999901},25154.263183834402,{"$f":"VLOOKUP($A43,[4]HyperandHeartfailure!$A$13:$D$226,4,0)","v":1153116.53},25154.263183834402,{"$f":"VLOOKUP($A43,[4]Nit_Calc_Antianginal!$A$13:$D$226,4,0)","v":1034528.92},25154.263183834402,{"$f":"VLOOKUP($A43,[4]Anti_coagulants!$A$15:$D$227,4,0)","v":399614.05000000098},25154.263183834402,{"$f":"VLOOKUP($A43,[4]Beta_Adrenorecepter!$A$13:$D$226,4,0)","v":395200.04000000202},25154.263183834402,{"$f":"VLOOKUP($A43,[4]Anti_platelet!$A$13:$D$226,4,0)","v":332648.7},25154.263183834402,{"$f":"VLOOKUP($A43,[4]Diuretics!$A$11:$D$224,4,0)","v":292290.64},25154.263183834402,{"$f":"VLOOKUP($A43,[4]Anti_arrhythmic_drugs!$A$13:$D$226,4,0)","v":37398.5},25154.263183834402,{"$f":"VLOOKUP($A43,[4]Positive_Intotropic!$A$13:$D$226,4,0)","v":29678.199999999899},25154.263183834402,{"$f":"VLOOKUP($A43,[4]anti_fibrinolytic!$A$13:$D$226,4,0)","v":15028.88},25154.263183834402,{"$f":"VLOOKUP($A43,[4]sympathomimetics!$A$11:$D$223,4,0)","v":1945.48},25154.263183834402,{"$f":"VLOOKUP($A43,[4]CVD_All_prescriptions!$A$10:$D$223,4,0)","v":5272505.7700000098},{"$f":"VLOOKUP($A43,[4]CVD_All_prescriptions!$A$10:$D$223,3,0)","v":1347537},{"$f":"VLOOKUP($A43,[5]CVD_All_prescriptions!$A$10:$C$392,3,0)","v":5025835.52209247},{"$f":"VLOOKUP($A43,Lookup!$BP$3:$BW$213,8,0)","v":25321.833415475605},{"$f":"VLOOKUP($A43,[5]Lipid_regulators!$A$12:$C$345,3,0)","v":1313172.8103328501},25321.833415475605,{"$f":"VLOOKUP($A43,[5]HyperandHeartfailure!$A$12:$C$356,3,0)","v":845907.39011547295},25321.833415475605,{"$f":"VLOOKUP($A43,[5]Nit_Calc_Antianginal!$A$12:$C$345,3,0)","v":989892.29928216303},25321.833415475605,{"$f":"VLOOKUP($A43,[5]Anti_coagulants!$A$11:$C$325,3,0)","v":574328.400785506},25321.833415475605,{"$f":"VLOOKUP($A43,[5]Beta_Adrenorecepter!$A$11:$C$352,3,0)","v":435245.78032210498},25321.833415475605,{"$f":"VLOOKUP($A43,[5]Anti_platelet!$A$12:$C$335,3,0)","v":382375.17962527298},25321.833415475605,{"$f":"VLOOKUP($A43,[5]Diuretics!$A$12:$C$353,3,0)","v":411827.31163132202},25321.833415475605,{"$f":"VLOOKUP($A43,[5]Anti_arrhythmic_drugs!$A$11:$C$271,3,0)","v":32736.7699985951},25321.833415475605,{"$f":"VLOOKUP($A43,[5]Positive_Intotropic!$A$12:$C$297,3,0)","v":24952.5099937618},25321.833415475605,{"$f":"VLOOKUP($A43,[5]anti_fibrinolytic!$A$11:$C$287,3,0)","v":12826.020019531299},25321.833415475605,{"$f":"VLOOKUP($A43,[5]sympathomimetics!$A$11:$C$223,3,0)","v":2571.0499858856201},25321.833415475605,{"$f":"VLOOKUP($A43,[5]CVD_All_prescriptions!$A$10:$C$392,3,0)","v":5025835.52209247},{"$f":"VLOOKUP($A43,[5]CVD_All_prescriptions!$A$10:$C$392,2,0)","v":1374137}]
["02G","NHS West Lancashire",{"$f":"VLOOKUP($A44,[4]CVD_All_prescriptions!$A$10:$D$223,4,0)","v":2568614.8199999998},{"$f":"VLOOKUP($A44,Lookup!$BP$3:$BW$213,7,0)","v":10989.007753459613},{"$f":"VLOOKUP($A44,[4]Lipid_regulators!$A$14:$D$227,4,0)","v":878403.09000000299},10989.007753459613,{"$f":"VLOOKUP($A44,[4]HyperandHeartfailure!$A$13:$D$226,4,0)","v":597485.27},10989.007753459613,{"$f":"VLOOKUP($A44,[4]Nit_Calc_Antianginal!$A$13:$D$226,4,0)","v":443570.94},10989.007753459613,{"$f":"VLOOKUP($A44,[4]Anti_coagulants!$A$15:$D$227,4,0)","v":135468.28},10989.007753459613,{"$f":"VLOOKUP($A44,[4]Beta_Adrenorecepter!$A$13:$D$226,4,0)","v":150028.4},10989.007753459613,{"$f":"VLOOKUP($A44,[4]Anti_platelet!$A$13:$D$226,4,0)","v":172622.019999999},10989.007753459613,{"$f":"VLOOKUP($A44,[4]Diuretics!$A$11:$D$224,4,0)","v":134663.1},10989.007753459613,{"$f":"VLOOKUP($A44,[4]Anti_arrhythmic_drugs!$A$13:$D$226,4,0)","v":29172.35},10989.007753459613,{"$f":"VLOOKUP($A44,[4]Positive_Intotropic!$A$13:$D$226,4,0)","v":12199.83},10989.007753459613,{"$f":"VLOOKUP($A44,[4]anti_fibrinolytic!$A$13:$D$226,4,0)","v":5538.1899999999896},10989.007753459613,{"$f":"VLOOKUP($A44,[4]sympathomimetics!$A$11:$D$223,4,0)","v":9463.35},10989.007753459613,{"$f":"VLOOKUP($A44,[4]CVD_All_prescriptions!$A$10:$D$223,4,0)","v":2568614.8199999998},{"$f":"VLOOKUP($A44,[4]CVD_All_prescriptions!$A$10:$D$223,3,0)","v":637610},{"$f":"VLOOKUP($A44,[5]CVD_All_prescriptions!$A$10:$C$392,3,0)","v":2284631.0914820302},{"$f":"VLOOKUP($A44,Lookup!$BP$3:$BW$213,8,0)","v":10986.94670723329},{"$f":"VLOOKUP($A44,[5]Lipid_regulators!$A$12:$C$345,3,0)","v":646858.090676822},10986.94670723329,{"$f":"VLOOKUP($A44,[5]HyperandHeartfailure!$A$12:$C$356,3,0)","v":468210.44049998402},10986.94670723329,{"$f":"VLOOKUP($A44,[5]Nit_Calc_Antianginal!$A$12:$C$345,3,0)","v":444549.52960088098},10986.94670723329,{"$f":"VLOOKUP($A44,[5]Anti_coagulants!$A$11:$C$325,3,0)","v":163107.72017636499},10986.94670723329,{"$f":"VLOOKUP($A44,[5]Beta_Adrenorecepter!$A$11:$C$352,3,0)","v":180273.15008309099},10986.94670723329,{"$f":"VLOOKUP($A44,[5]Anti_platelet!$A$12:$C$335,3,0)","v":168277.45987960699},10986.94670723329,{"$f":"VLOOKUP($A44,[5]Diuretics!$A$12:$C$353,3,0)","v":172228.96059109599},10986.94670723329,{"$f":"VLOOKUP($A44,[5]Anti_arrhythmic_drugs!$A$11:$C$271,3,0)","v":24212.600007429701},10986.94670723329,{"$f":"VLOOKUP($A44,[5]Positive_Intotropic!$A$12:$C$297,3,0)","v":9958.8099966347199},10986.94670723329,{"$f":"VLOOKUP($A44,[5]anti_fibrinolytic!$A$11:$C$287,3,0)","v":5126.36000132561},10986.94670723329,{"$f":"VLOOKUP($A44,[5]sympathomimetics!$A$11:$C$223,3,0)","v":1827.96996879578},10986.94670723329,{"$f":"VLOOKUP($A44,[5]CVD_All_prescriptions!$A$10:$C$392,3,0)","v":2284631.0914820302},{"$f":"VLOOKUP($A44,[5]CVD_All_prescriptions!$A$10:$C$392,2,0)","v":660171}]
["02H","NHS Wigan Borough",{"$f":"VLOOKUP($A45,[4]CVD_All_prescriptions!$A$10:$D$223,4,0)","v":8149531.8700000197},{"$f":"VLOOKUP($A45,Lookup!$BP$3:$BW$213,7,0)","v":32732.680338740945},{"$f":"VLOOKUP($A45,[4]Lipid_regulators!$A$14:$D$227,4,0)","v":2660142.2099999902},32732.680338740945,{"$f":"VLOOKUP($A45,[4]HyperandHeartfailure!$A$13:$D$226,4,0)","v":1770532.11},32732.680338740945,{"$f":"VLOOKUP($A45,[4]Nit_Calc_Antianginal!$A$13:$D$226,4,0)","v":1692951.64},32732.680338740945,{"$f":"VLOOKUP($A45,[4]Anti_coagulants!$A$15:$D$227,4,0)","v":378834.13999999902},32732.680338740945,{"$f":"VLOOKUP($A45,[4]Beta_Adrenorecepter!$A$13:$D$226,4,0)","v":590364.53000000899},32732.680338740945,{"$f":"VLOOKUP($A45,[4]Anti_platelet!$A$13:$D$226,4,0)","v":489744.809999994},32732.680338740945,{"$f":"VLOOKUP($A45,[4]Diuretics!$A$11:$D$224,4,0)","v":380896.32999999699},32732.680338740945,{"$f":"VLOOKUP($A45,[4]Anti_arrhythmic_drugs!$A$13:$D$226,4,0)","v":75870.890000000101},32732.680338740945,{"$f":"VLOOKUP($A45,[4]Positive_Intotropic!$A$13:$D$226,4,0)","v":29990.059999999801},32732.680338740945,{"$f":"VLOOKUP($A45,[4]anti_fibrinolytic!$A$13:$D$226,4,0)","v":19545.8},32732.680338740945,{"$f":"VLOOKUP($A45,[4]sympathomimetics!$A$11:$D$223,4,0)","v":60659.35},32732.680338740945,{"$f":"VLOOKUP($A45,[4]CVD_All_prescriptions!$A$10:$D$223,4,0)","v":8149531.8700000197},{"$f":"VLOOKUP($A45,[4]CVD_All_prescriptions!$A$10:$D$223,3,0)","v":1868738},{"$f":"VLOOKUP($A45,[5]CVD_All_prescriptions!$A$10:$C$392,3,0)","v":7293702.71763366},{"$f":"VLOOKUP($A45,Lookup!$BP$3:$BW$213,8,0)","v":32739.822467095193},{"$f":"VLOOKUP($A45,[5]Lipid_regulators!$A$12:$C$345,3,0)","v":1859353.531348},32739.822467095193,{"$f":"VLOOKUP($A45,[5]HyperandHeartfailure!$A$12:$C$356,3,0)","v":1302696.69076785},32739.822467095193,{"$f":"VLOOKUP($A45,[5]Nit_Calc_Antianginal!$A$12:$C$345,3,0)","v":1683775.63920413},32739.822467095193,{"$f":"VLOOKUP($A45,[5]Anti_coagulants!$A$11:$C$325,3,0)","v":534143.13122910995},32739.822467095193,{"$f":"VLOOKUP($A45,[5]Beta_Adrenorecepter!$A$11:$C$352,3,0)","v":700839.97069762601},32739.822467095193,{"$f":"VLOOKUP($A45,[5]Anti_platelet!$A$12:$C$335,3,0)","v":544152.01056408905},32739.822467095193,{"$f":"VLOOKUP($A45,[5]Diuretics!$A$12:$C$353,3,0)","v":489780.773345038},32739.822467095193,{"$f":"VLOOKUP($A45,[5]Anti_arrhythmic_drugs!$A$11:$C$271,3,0)","v":73015.269962489605},32739.822467095193,{"$f":"VLOOKUP($A45,[5]Positive_Intotropic!$A$12:$C$297,3,0)","v":24850.639938995198},32739.822467095193,{"$f":"VLOOKUP($A45,[5]anti_fibrinolytic!$A$11:$C$287,3,0)","v":14890.310010790799},32739.822467095193,{"$f":"VLOOKUP($A45,[5]sympathomimetics!$A$11:$C$223,3,0)","v":66076.750565528899},32739.822467095193,{"$f":"VLOOKUP($A45,[5]CVD_All_prescriptions!$A$10:$C$392,3,0)","v":7293702.71763366},{"$f":"VLOOKUP($A45,[5]CVD_All_prescriptions!$A$10:$C$392,2,0)","v":1868837}]
["02M","NHS Fylde & Wyre",{"$f":"VLOOKUP($A46,[4]CVD_All_prescriptions!$A$10:$D$223,4,0)","v":3661783.29},{"$f":"VLOOKUP($A46,Lookup!$BP$3:$BW$213,7,0)","v":12706.357214934411},{"$f":"VLOOKUP($A46,[4]Lipid_regulators!$A$14:$D$227,4,0)","v":1053758.1400000099},12706.357214934411,{"$f":"VLOOKUP($A46,[4]HyperandHeartfailure!$A$13:$D$226,4,0)","v":832123.14999999898},12706.357214934411,{"$f":"VLOOKUP($A46,[4]Nit_Calc_Antianginal!$A$13:$D$226,4,0)","v":741730.32},12706.357214934411,{"$f":"VLOOKUP($A46,[4]Anti_coagulants!$A$15:$D$227,4,0)","v":187070.16},12706.357214934411,{"$f":"VLOOKUP($A46,[4]Beta_Adrenorecepter!$A$13:$D$226,4,0)","v":317468.21000000101},12706.357214934411,{"$f":"VLOOKUP($A46,[4]Anti_platelet!$A$13:$D$226,4,0)","v":259770.889999999},12706.357214934411,{"$f":"VLOOKUP($A46,[4]Diuretics!$A$11:$D$224,4,0)","v":220660.48000000001},12706.357214934411,{"$f":"VLOOKUP($A46,[4]Anti_arrhythmic_drugs!$A$13:$D$226,4,0)","v":16652.310000000001},12706.357214934411,{"$f":"VLOOKUP($A46,[4]Positive_Intotropic!$A$13:$D$226,4,0)","v":21360.28},12706.357214934411,{"$f":"VLOOKUP($A46,[4]anti_fibrinolytic!$A$13:$D$226,4,0)","v":8817.5400000000009},12706.357214934411,{"$f":"VLOOKUP($A46,[4]sympathomimetics!$A$11:$D$223,4,0)","v":2371.81},12706.357214934411,{"$f":"VLOOKUP($A46,[4]CVD_All_prescriptions!$A$10:$D$223,4,0)","v":3661783.29},{"$f":"VLOOKUP($A46,[4]CVD_All_prescriptions!$A$10:$D$223,3,0)","v":1261915},{"$f":"VLOOKUP($A46,[5]CVD_All_prescriptions!$A$10:$C$392,3,0)","v":3357407.8522329298},{"$f":"VLOOKUP($A46,Lookup!$BP$3:$BW$213,8,0)","v":12668.180289270098},{"$f":"VLOOKUP($A46,[5]Lipid_regulators!$A$12:$C$345,3,0)","v":798954.02041958296},12668.180289270098,{"$f":"VLOOKUP($A46,[5]HyperandHeartfailure!$A$12:$C$356,3,0)","v":644427.97020324296},12668.180289270098,{"$f":"VLOOKUP($A46,[5]Nit_Calc_Antianginal!$A$12:$C$345,3,0)","v":742509.14978890098},12668.180289270098,{"$f":"VLOOKUP($A46,[5]Anti_coagulants!$A$11:$C$325,3,0)","v":222754.540437877},12668.180289270098,{"$f":"VLOOKUP($A46,[5]Beta_Adrenorecepter!$A$11:$C$352,3,0)","v":362522.37991814298},12668.180289270098,{"$f":"VLOOKUP($A46,[5]Anti_platelet!$A$12:$C$335,3,0)","v":267468.35013934202},12668.180289270098,{"$f":"VLOOKUP($A46,[5]Diuretics!$A$12:$C$353,3,0)","v":276597.34139043099},12668.180289270098,{"$f":"VLOOKUP($A46,[5]Anti_arrhythmic_drugs!$A$11:$C$271,3,0)","v":14361.8499888182},12668.180289270098,{"$f":"VLOOKUP($A46,[5]Positive_Intotropic!$A$12:$C$297,3,0)","v":16319.739984035499},12668.180289270098,{"$f":"VLOOKUP($A46,[5]anti_fibrinolytic!$A$11:$C$287,3,0)","v":7015.2199959754898},12668.180289270098,{"$f":"VLOOKUP($A46,[5]sympathomimetics!$A$11:$C$223,3,0)","v":4477.2899665832501},12668.180289270098,{"$f":"VLOOKUP($A46,[5]CVD_All_prescriptions!$A$10:$C$392,3,0)","v":3357407.8522329298},{"$f":"VLOOKUP($A46,[5]CVD_All_prescriptions!$A$10:$C$392,2,0)","v":1263180}]
["02N","NHS Airedale, Wharfedale and Craven",{"$f":"VLOOKUP($A47,[4]CVD_All_prescriptions!$A$10:$D$223,4,0)","v":3543292.53},{"$f":"VLOOKUP($A47,Lookup!$BP$3:$BW$213,7,0)","v":15164.887422360249},{"$f":"VLOOKUP($A47,[4]Lipid_regulators!$A$14:$D$227,4,0)","v":999243.56000000099},15164.887422360249,{"$f":"VLOOKUP($A47,[4]HyperandHeartfailure!$A$13:$D$226,4,0)","v":885736.09},15164.887422360249,{"$f":"VLOOKUP($A47,[4]Nit_Calc_Antianginal!$A$13:$D$226,4,0)","v":669845.19999999995},15164.887422360249,{"$f":"VLOOKUP($A47,[4]Anti_coagulants!$A$15:$D$227,4,0)","v":275304},15164.887422360249,{"$f":"VLOOKUP($A47,[4]Beta_Adrenorecepter!$A$13:$D$226,4,0)","v":227368.88},15164.887422360249,{"$f":"VLOOKUP($A47,[4]Anti_platelet!$A$13:$D$226,4,0)","v":238911.90999999901},15164.887422360249,{"$f":"VLOOKUP($A47,[4]Diuretics!$A$11:$D$224,4,0)","v":182751.17},15164.887422360249,{"$f":"VLOOKUP($A47,[4]Anti_arrhythmic_drugs!$A$13:$D$226,4,0)","v":30248.84},15164.887422360249,{"$f":"VLOOKUP($A47,[4]Positive_Intotropic!$A$13:$D$226,4,0)","v":18184},15164.887422360249,{"$f":"VLOOKUP($A47,[4]anti_fibrinolytic!$A$13:$D$226,4,0)","v":13183.96},15164.887422360249,{"$f":"VLOOKUP($A47,[4]sympathomimetics!$A$11:$D$223,4,0)","v":2514.92},15164.887422360249,{"$f":"VLOOKUP($A47,[4]CVD_All_prescriptions!$A$10:$D$223,4,0)","v":3543292.53},{"$f":"VLOOKUP($A47,[4]CVD_All_prescriptions!$A$10:$D$223,3,0)","v":873508},{"$f":"VLOOKUP($A47,[5]CVD_All_prescriptions!$A$10:$C$392,3,0)","v":3279776.9991939999},{"$f":"VLOOKUP($A47,Lookup!$BP$3:$BW$213,8,0)","v":15205.357142857143},{"$f":"VLOOKUP($A47,[5]Lipid_regulators!$A$12:$C$345,3,0)","v":750129.68040458905},15205.357142857143,{"$f":"VLOOKUP($A47,[5]HyperandHeartfailure!$A$12:$C$356,3,0)","v":616973.57047714305},15205.357142857143,{"$f":"VLOOKUP($A47,[5]Nit_Calc_Antianginal!$A$12:$C$345,3,0)","v":742679.12898387003},15205.357142857143,{"$f":"VLOOKUP($A47,[5]Anti_coagulants!$A$11:$C$325,3,0)","v":364613.889716506},15205.357142857143,{"$f":"VLOOKUP($A47,[5]Beta_Adrenorecepter!$A$11:$C$352,3,0)","v":251698.95990979701},15205.357142857143,{"$f":"VLOOKUP($A47,[5]Anti_platelet!$A$12:$C$335,3,0)","v":273287.25931425398},15205.357142857143,{"$f":"VLOOKUP($A47,[5]Diuretics!$A$12:$C$353,3,0)","v":225251.710492849},15205.357142857143,{"$f":"VLOOKUP($A47,[5]Anti_arrhythmic_drugs!$A$11:$C$271,3,0)","v":26762.109909534502},15205.357142857143,{"$f":"VLOOKUP($A47,[5]Positive_Intotropic!$A$12:$C$297,3,0)","v":14825.9399949908},15205.357142857143,{"$f":"VLOOKUP($A47,[5]anti_fibrinolytic!$A$11:$C$287,3,0)","v":9464.7599639892596},15205.357142857143,{"$f":"VLOOKUP($A47,[5]sympathomimetics!$A$11:$C$223,3,0)","v":4089.9900264739999},15205.357142857143,{"$f":"VLOOKUP($A47,[5]CVD_All_prescriptions!$A$10:$C$392,3,0)","v":3279776.9991939999},{"$f":"VLOOKUP($A47,[5]CVD_All_prescriptions!$A$10:$C$392,2,0)","v":918253}]
["02P","NHS Barnsley",{"$f":"VLOOKUP($A48,[4]CVD_All_prescriptions!$A$10:$D$223,4,0)","v":6222654.6700000204},{"$f":"VLOOKUP($A48,Lookup!$BP$3:$BW$213,7,0)","v":24249.491525423731},{"$f":"VLOOKUP($A48,[4]Lipid_regulators!$A$14:$D$227,4,0)","v":2141503.21999999},24249.491525423731,{"$f":"VLOOKUP($A48,[4]HyperandHeartfailure!$A$13:$D$226,4,0)","v":1301180.6499999999},24249.491525423731,{"$f":"VLOOKUP($A48,[4]Nit_Calc_Antianginal!$A$13:$D$226,4,0)","v":1075431.79},24249.491525423731,{"$f":"VLOOKUP($A48,[4]Anti_coagulants!$A$15:$D$227,4,0)","v":276322.93},24249.491525423731,{"$f":"VLOOKUP($A48,[4]Beta_Adrenorecepter!$A$13:$D$226,4,0)","v":433372.86000000202},24249.491525423731,{"$f":"VLOOKUP($A48,[4]Anti_platelet!$A$13:$D$226,4,0)","v":594789.43000000296},24249.491525423731,{"$f":"VLOOKUP($A48,[4]Diuretics!$A$11:$D$224,4,0)","v":318891.72999999899},24249.491525423731,{"$f":"VLOOKUP($A48,[4]Anti_arrhythmic_drugs!$A$13:$D$226,4,0)","v":23390.74},24249.491525423731,{"$f":"VLOOKUP($A48,[4]Positive_Intotropic!$A$13:$D$226,4,0)","v":26270.78},24249.491525423731,{"$f":"VLOOKUP($A48,[4]anti_fibrinolytic!$A$13:$D$226,4,0)","v":22282.27},24249.491525423731,{"$f":"VLOOKUP($A48,[4]sympathomimetics!$A$11:$D$223,4,0)","v":9218.27},24249.491525423731,{"$f":"VLOOKUP($A48,[4]CVD_All_prescriptions!$A$10:$D$223,4,0)","v":6222654.6700000204},{"$f":"VLOOKUP($A48,[4]CVD_All_prescriptions!$A$10:$D$223,3,0)","v":2045956},{"$f":"VLOOKUP($A48,[5]CVD_All_prescriptions!$A$10:$C$392,3,0)","v":5986344.01096531},{"$f":"VLOOKUP($A48,Lookup!$BP$3:$BW$213,8,0)","v":24449.878934624699},{"$f":"VLOOKUP($A48,[5]Lipid_regulators!$A$12:$C$345,3,0)","v":1594227.21002148},24449.878934624699,{"$f":"VLOOKUP($A48,[5]HyperandHeartfailure!$A$12:$C$356,3,0)","v":1053340.8300040399},24449.878934624699,{"$f":"VLOOKUP($A48,[5]Nit_Calc_Antianginal!$A$12:$C$345,3,0)","v":1265053.8792568899},24449.878934624699,{"$f":"VLOOKUP($A48,[5]Anti_coagulants!$A$11:$C$325,3,0)","v":384575.03044131398},24449.878934624699,{"$f":"VLOOKUP($A48,[5]Beta_Adrenorecepter!$A$11:$C$352,3,0)","v":528761.45027629705},24449.878934624699,{"$f":"VLOOKUP($A48,[5]Anti_platelet!$A$12:$C$335,3,0)","v":683099.18898719398},24449.878934624699,{"$f":"VLOOKUP($A48,[5]Diuretics!$A$12:$C$353,3,0)","v":407845.36190652999},24449.878934624699,{"$f":"VLOOKUP($A48,[5]Anti_arrhythmic_drugs!$A$11:$C$271,3,0)","v":20936.809991195802},24449.878934624699,{"$f":"VLOOKUP($A48,[5]Positive_Intotropic!$A$12:$C$297,3,0)","v":21299.0599777848},24449.878934624699,{"$f":"VLOOKUP($A48,[5]anti_fibrinolytic!$A$11:$C$287,3,0)","v":17832.690014839201},24449.878934624699,{"$f":"VLOOKUP($A48,[5]sympathomimetics!$A$11:$C$223,3,0)","v":9372.5000877380407},24449.878934624699,{"$f":"VLOOKUP($A48,[5]CVD_All_prescriptions!$A$10:$C$392,3,0)","v":5986344.01096531},{"$f":"VLOOKUP($A48,[5]CVD_All_prescriptions!$A$10:$C$392,2,0)","v":2100258}]
["02Q","NHS Bassetlaw",{"$f":"VLOOKUP($A49,[4]CVD_All_prescriptions!$A$10:$D$223,4,0)","v":2256653.25},{"$f":"VLOOKUP($A49,Lookup!$BP$3:$BW$213,7,0)","v":10835.430784123912},{"$f":"VLOOKUP($A49,[4]Lipid_regulators!$A$14:$D$227,4,0)","v":647251.57000000204},10835.430784123912,{"$f":"VLOOKUP($A49,[4]HyperandHeartfailure!$A$13:$D$226,4,0)","v":546546.52999999898},10835.430784123912,{"$f":"VLOOKUP($A49,[4]Nit_Calc_Antianginal!$A$13:$D$226,4,0)","v":415528.11},10835.430784123912,{"$f":"VLOOKUP($A49,[4]Anti_coagulants!$A$15:$D$227,4,0)","v":115321.01},10835.430784123912,{"$f":"VLOOKUP($A49,[4]Beta_Adrenorecepter!$A$13:$D$226,4,0)","v":179643.51999999999},10835.430784123912,{"$f":"VLOOKUP($A49,[4]Anti_platelet!$A$13:$D$226,4,0)","v":191764.25},10835.430784123912,{"$f":"VLOOKUP($A49,[4]Diuretics!$A$11:$D$224,4,0)","v":123390.73},10835.430784123912,{"$f":"VLOOKUP($A49,[4]Anti_arrhythmic_drugs!$A$13:$D$226,4,0)","v":15986.14},10835.430784123912,{"$f":"VLOOKUP($A49,[4]Positive_Intotropic!$A$13:$D$226,4,0)","v":12223.81},10835.430784123912,{"$f":"VLOOKUP($A49,[4]anti_fibrinolytic!$A$13:$D$226,4,0)","v":8832.6799999999894},10835.430784123912,{"$f":"VLOOKUP($A49,[4]sympathomimetics!$A$11:$D$223,4,0)","v":164.9},10835.430784123912,{"$f":"VLOOKUP($A49,[4]CVD_All_prescriptions!$A$10:$D$223,4,0)","v":2256653.25},{"$f":"VLOOKUP($A49,[4]CVD_All_prescriptions!$A$10:$D$223,3,0)","v":725164},{"$f":"VLOOKUP($A49,[5]CVD_All_prescriptions!$A$10:$C$392,3,0)","v":2206653.6210056399},{"$f":"VLOOKUP($A49,Lookup!$BP$3:$BW$213,8,0)","v":10902.613746369796},{"$f":"VLOOKUP($A49,[5]Lipid_regulators!$A$12:$C$345,3,0)","v":534671.77034387004},10902.613746369796,{"$f":"VLOOKUP($A49,[5]HyperandHeartfailure!$A$12:$C$356,3,0)","v":428346.35989507998},10902.613746369796,{"$f":"VLOOKUP($A49,[5]Nit_Calc_Antianginal!$A$12:$C$345,3,0)","v":448061.78981979197},10902.613746369796,{"$f":"VLOOKUP($A49,[5]Anti_coagulants!$A$11:$C$325,3,0)","v":207209.23020726399},10902.613746369796,{"$f":"VLOOKUP($A49,[5]Beta_Adrenorecepter!$A$11:$C$352,3,0)","v":203130.55043494701},10902.613746369796,{"$f":"VLOOKUP($A49,[5]Anti_platelet!$A$12:$C$335,3,0)","v":194597.59986425901},10902.613746369796,{"$f":"VLOOKUP($A49,[5]Diuretics!$A$12:$C$353,3,0)","v":156147.74033518101},10902.613746369796,{"$f":"VLOOKUP($A49,[5]Anti_arrhythmic_drugs!$A$11:$C$271,3,0)","v":15362.890048146201},10902.613746369796,{"$f":"VLOOKUP($A49,[5]Positive_Intotropic!$A$12:$C$297,3,0)","v":10608.6300012469},10902.613746369796,{"$f":"VLOOKUP($A49,[5]anti_fibrinolytic!$A$11:$C$287,3,0)","v":6220.5600472688702},10902.613746369796,{"$f":"VLOOKUP($A49,[5]sympathomimetics!$A$11:$C$223,3,0)","v":2296.5000085830702},10902.613746369796,{"$f":"VLOOKUP($A49,[5]CVD_All_prescriptions!$A$10:$C$392,3,0)","v":2206653.6210056399},{"$f":"VLOOKUP($A49,[5]CVD_All_prescriptions!$A$10:$C$392,2,0)","v":745436}]
["02R","NHS Bradford Districts",{"$f":"VLOOKUP($A50,[4]CVD_All_prescriptions!$A$10:$D$223,4,0)","v":6148382.8300000196},{"$f":"VLOOKUP($A50,Lookup!$BP$3:$BW$213,7,0)","v":36061.102669850225},{"$f":"VLOOKUP($A50,[4]Lipid_regulators!$A$14:$D$227,4,0)","v":1667757.21},36061.102669850225,{"$f":"VLOOKUP($A50,[4]HyperandHeartfailure!$A$13:$D$226,4,0)","v":1528743.63},36061.102669850225,{"$f":"VLOOKUP($A50,[4]Nit_Calc_Antianginal!$A$13:$D$226,4,0)","v":1387764.49},36061.102669850225,{"$f":"VLOOKUP($A50,[4]Anti_coagulants!$A$15:$D$227,4,0)","v":228533.75},36061.102669850225,{"$f":"VLOOKUP($A50,[4]Beta_Adrenorecepter!$A$13:$D$226,4,0)","v":432462.52000000299},36061.102669850225,{"$f":"VLOOKUP($A50,[4]Anti_platelet!$A$13:$D$226,4,0)","v":419543.94999999902},36061.102669850225,{"$f":"VLOOKUP($A50,[4]Diuretics!$A$11:$D$224,4,0)","v":340608.20999999798},36061.102669850225,{"$f":"VLOOKUP($A50,[4]Anti_arrhythmic_drugs!$A$13:$D$226,4,0)","v":44499.3399999998},36061.102669850225,{"$f":"VLOOKUP($A50,[4]Positive_Intotropic!$A$13:$D$226,4,0)","v":27310.279999999901},36061.102669850225,{"$f":"VLOOKUP($A50,[4]anti_fibrinolytic!$A$13:$D$226,4,0)","v":29919.46},36061.102669850225,{"$f":"VLOOKUP($A50,[4]sympathomimetics!$A$11:$D$223,4,0)","v":41239.99},36061.102669850225,{"$f":"VLOOKUP($A50,[4]CVD_All_prescriptions!$A$10:$D$223,4,0)","v":6148382.8300000196},{"$f":"VLOOKUP($A50,[4]CVD_All_prescriptions!$A$10:$D$223,3,0)","v":1756669},{"$f":"VLOOKUP($A50,[5]CVD_All_prescriptions!$A$10:$C$392,3,0)","v":5672382.8138968498},{"$f":"VLOOKUP($A50,Lookup!$BP$3:$BW$213,8,0)","v":36314.738441502057},{"$f":"VLOOKUP($A50,[5]Lipid_regulators!$A$12:$C$345,3,0)","v":1232300.9113838701},36314.738441502057,{"$f":"VLOOKUP($A50,[5]HyperandHeartfailure!$A$12:$C$356,3,0)","v":1057219.97025655},36314.738441502057,{"$f":"VLOOKUP($A50,[5]Nit_Calc_Antianginal!$A$12:$C$345,3,0)","v":1419866.5403285299},36314.738441502057,{"$f":"VLOOKUP($A50,[5]Anti_coagulants!$A$11:$C$325,3,0)","v":425749.72977192898},36314.738441502057,{"$f":"VLOOKUP($A50,[5]Beta_Adrenorecepter!$A$11:$C$352,3,0)","v":538729.55006385595},36314.738441502057,{"$f":"VLOOKUP($A50,[5]Anti_platelet!$A$12:$C$335,3,0)","v":395142.490214538},36314.738441502057,{"$f":"VLOOKUP($A50,[5]Diuretics!$A$12:$C$353,3,0)","v":475400.901855951},36314.738441502057,{"$f":"VLOOKUP($A50,[5]Anti_arrhythmic_drugs!$A$11:$C$271,3,0)","v":43105.629950508497},36314.738441502057,{"$f":"VLOOKUP($A50,[5]Positive_Intotropic!$A$12:$C$297,3,0)","v":23138.410009309599},36314.738441502057,{"$f":"VLOOKUP($A50,[5]anti_fibrinolytic!$A$11:$C$287,3,0)","v":24945.7799572945},36314.738441502057,{"$f":"VLOOKUP($A50,[5]sympathomimetics!$A$11:$C$223,3,0)","v":36782.900104522698},36314.738441502057,{"$f":"VLOOKUP($A50,[5]CVD_All_prescriptions!$A$10:$C$392,3,0)","v":5672382.8138968498},{"$f":"VLOOKUP($A50,[5]CVD_All_prescriptions!$A$10:$C$392,2,0)","v":1820113}]
["02T","NHS Calderdale",{"$f":"VLOOKUP($A51,[4]CVD_All_prescriptions!$A$10:$D$223,4,0)","v":4403097.2099999897},{"$f":"VLOOKUP($A51,Lookup!$BP$3:$BW$213,7,0)","v":23011.710356682423},{"$f":"VLOOKUP($A51,[4]Lipid_regulators!$A$14:$D$227,4,0)","v":1414529.99},23011.710356682423,{"$f":"VLOOKUP($A51,[4]HyperandHeartfailure!$A$13:$D$226,4,0)","v":986630.65999999898},23011.710356682423,{"$f":"VLOOKUP($A51,[4]Nit_Calc_Antianginal!$A$13:$D$226,4,0)","v":864941.60999999905},23011.710356682423,{"$f":"VLOOKUP($A51,[4]Anti_coagulants!$A$15:$D$227,4,0)","v":180780.359999999},23011.710356682423,{"$f":"VLOOKUP($A51,[4]Beta_Adrenorecepter!$A$13:$D$226,4,0)","v":315038.90000000101},23011.710356682423,{"$f":"VLOOKUP($A51,[4]Anti_platelet!$A$13:$D$226,4,0)","v":377351.739999999},23011.710356682423,{"$f":"VLOOKUP($A51,[4]Diuretics!$A$11:$D$224,4,0)","v":208755.45},23011.710356682423,{"$f":"VLOOKUP($A51,[4]Anti_arrhythmic_drugs!$A$13:$D$226,4,0)","v":22950.59},23011.710356682423,{"$f":"VLOOKUP($A51,[4]Positive_Intotropic!$A$13:$D$226,4,0)","v":18097.96},23011.710356682423,{"$f":"VLOOKUP($A51,[4]anti_fibrinolytic!$A$13:$D$226,4,0)","v":13802.18},23011.710356682423,{"$f":"VLOOKUP($A51,[4]sympathomimetics!$A$11:$D$223,4,0)","v":204.97},23011.710356682423,{"$f":"VLOOKUP($A51,[4]CVD_All_prescriptions!$A$10:$D$223,4,0)","v":4403097.2099999897},{"$f":"VLOOKUP($A51,[4]CVD_All_prescriptions!$A$10:$D$223,3,0)","v":1203558},{"$f":"VLOOKUP($A51,[5]CVD_All_prescriptions!$A$10:$C$392,3,0)","v":4125869.63352765},{"$f":"VLOOKUP($A51,Lookup!$BP$3:$BW$213,8,0)","v":23165.986248388483},{"$f":"VLOOKUP($A51,[5]Lipid_regulators!$A$12:$C$345,3,0)","v":1111712.81121839},23165.986248388483,{"$f":"VLOOKUP($A51,[5]HyperandHeartfailure!$A$12:$C$356,3,0)","v":759227.91052825004},23165.986248388483,{"$f":"VLOOKUP($A51,[5]Nit_Calc_Antianginal!$A$12:$C$345,3,0)","v":885965.21994388697},23165.986248388483,{"$f":"VLOOKUP($A51,[5]Anti_coagulants!$A$11:$C$325,3,0)","v":275808.59047073103},23165.986248388483,{"$f":"VLOOKUP($A51,[5]Beta_Adrenorecepter!$A$11:$C$352,3,0)","v":362604.21039501601},23165.986248388483,{"$f":"VLOOKUP($A51,[5]Anti_platelet!$A$12:$C$335,3,0)","v":409295.87985022401},23165.986248388483,{"$f":"VLOOKUP($A51,[5]Diuretics!$A$12:$C$353,3,0)","v":271121.38103359198},23165.986248388483,{"$f":"VLOOKUP($A51,[5]Anti_arrhythmic_drugs!$A$11:$C$271,3,0)","v":21341.190044403102},23165.986248388483,{"$f":"VLOOKUP($A51,[5]Positive_Intotropic!$A$12:$C$297,3,0)","v":14830.759972281799},23165.986248388483,{"$f":"VLOOKUP($A51,[5]anti_fibrinolytic!$A$11:$C$287,3,0)","v":11660.610006332399},23165.986248388483,{"$f":"VLOOKUP($A51,[5]sympathomimetics!$A$11:$C$223,3,0)","v":2281.8700637817401},23165.986248388483,{"$f":"VLOOKUP($A51,[5]CVD_All_prescriptions!$A$10:$C$392,3,0)","v":4125869.63352765},{"$f":"VLOOKUP($A51,[5]CVD_All_prescriptions!$A$10:$C$392,2,0)","v":1238735}]
["02V","NHS Leeds North",{"$f":"VLOOKUP($A52,[4]CVD_All_prescriptions!$A$10:$D$223,4,0)","v":3908792.5999999898},{"$f":"VLOOKUP($A52,Lookup!$BP$3:$BW$213,7,0)","v":21868.164794007491},{"$f":"VLOOKUP($A52,[4]Lipid_regulators!$A$14:$D$227,4,0)","v":1158115.1600000099},21868.164794007491,{"$f":"VLOOKUP($A52,[4]HyperandHeartfailure!$A$13:$D$226,4,0)","v":945107.43},21868.164794007491,{"$f":"VLOOKUP($A52,[4]Nit_Calc_Antianginal!$A$13:$D$226,4,0)","v":654030.96},21868.164794007491,{"$f":"VLOOKUP($A52,[4]Anti_coagulants!$A$15:$D$227,4,0)","v":265631.58},21868.164794007491,{"$f":"VLOOKUP($A52,[4]Beta_Adrenorecepter!$A$13:$D$226,4,0)","v":301885.5},21868.164794007491,{"$f":"VLOOKUP($A52,[4]Anti_platelet!$A$13:$D$226,4,0)","v":302509.61999999901},21868.164794007491,{"$f":"VLOOKUP($A52,[4]Diuretics!$A$11:$D$224,4,0)","v":222372.72},21868.164794007491,{"$f":"VLOOKUP($A52,[4]Anti_arrhythmic_drugs!$A$13:$D$226,4,0)","v":17681.060000000001},21868.164794007491,{"$f":"VLOOKUP($A52,[4]Positive_Intotropic!$A$13:$D$226,4,0)","v":15716.05},21868.164794007491,{"$f":"VLOOKUP($A52,[4]anti_fibrinolytic!$A$13:$D$226,4,0)","v":12380.82},21868.164794007491,{"$f":"VLOOKUP($A52,[4]sympathomimetics!$A$11:$D$223,4,0)","v":13361.7},21868.164794007491,{"$f":"VLOOKUP($A52,[4]CVD_All_prescriptions!$A$10:$D$223,4,0)","v":3908792.5999999898},{"$f":"VLOOKUP($A52,[4]CVD_All_prescriptions!$A$10:$D$223,3,0)","v":1097839},{"$f":"VLOOKUP($A52,[5]CVD_All_prescriptions!$A$10:$C$392,3,0)","v":3630282.9138026},{"$f":"VLOOKUP($A52,Lookup!$BP$3:$BW$213,8,0)","v":21987.80096308186},{"$f":"VLOOKUP($A52,[5]Lipid_regulators!$A$12:$C$345,3,0)","v":875289.91107656795},21987.80096308186,{"$f":"VLOOKUP($A52,[5]HyperandHeartfailure!$A$12:$C$356,3,0)","v":709590.00002415502},21987.80096308186,{"$f":"VLOOKUP($A52,[5]Nit_Calc_Antianginal!$A$12:$C$345,3,0)","v":665501.92002905905},21987.80096308186,{"$f":"VLOOKUP($A52,[5]Anti_coagulants!$A$11:$C$325,3,0)","v":333158.05088425399},21987.80096308186,{"$f":"VLOOKUP($A52,[5]Beta_Adrenorecepter!$A$11:$C$352,3,0)","v":341204.26046053303},21987.80096308186,{"$f":"VLOOKUP($A52,[5]Anti_platelet!$A$12:$C$335,3,0)","v":356711.42971763201},21987.80096308186,{"$f":"VLOOKUP($A52,[5]Diuretics!$A$12:$C$353,3,0)","v":283916.12138213997},21987.80096308186,{"$f":"VLOOKUP($A52,[5]Anti_arrhythmic_drugs!$A$11:$C$271,3,0)","v":17795.2800569832},21987.80096308186,{"$f":"VLOOKUP($A52,[5]Positive_Intotropic!$A$12:$C$297,3,0)","v":13358.5399720967},21987.80096308186,{"$f":"VLOOKUP($A52,[5]anti_fibrinolytic!$A$11:$C$287,3,0)","v":11709.8499672413},21987.80096308186,{"$f":"VLOOKUP($A52,[5]sympathomimetics!$A$11:$C$223,3,0)","v":22047.550231933601},21987.80096308186,{"$f":"VLOOKUP($A52,[5]CVD_All_prescriptions!$A$10:$C$392,3,0)","v":3630282.9138026},{"$f":"VLOOKUP($A52,[5]CVD_All_prescriptions!$A$10:$C$392,2,0)","v":1126031}]
["02W","NHS Bradford City",{"$f":"VLOOKUP($A53,[4]CVD_All_prescriptions!$A$10:$D$223,4,0)","v":1362913.44},{"$f":"VLOOKUP($A53,Lookup!$BP$3:$BW$213,7,0)","v":19663.095434316794},{"$f":"VLOOKUP($A53,[4]Lipid_regulators!$A$14:$D$227,4,0)","v":385388.51},19663.095434316794,{"$f":"VLOOKUP($A53,[4]HyperandHeartfailure!$A$13:$D$226,4,0)","v":345274.82},19663.095434316794,{"$f":"VLOOKUP($A53,[4]Nit_Calc_Antianginal!$A$13:$D$226,4,0)","v":316201.25},19663.095434316794,{"$f":"VLOOKUP($A53,[4]Anti_coagulants!$A$15:$D$227,4,0)","v":44649.16},19663.095434316794,{"$f":"VLOOKUP($A53,[4]Beta_Adrenorecepter!$A$13:$D$226,4,0)","v":83542.709999999803},19663.095434316794,{"$f":"VLOOKUP($A53,[4]Anti_platelet!$A$13:$D$226,4,0)","v":92821.999999999505},19663.095434316794,{"$f":"VLOOKUP($A53,[4]Diuretics!$A$11:$D$224,4,0)","v":70810.759999999995},19663.095434316794,{"$f":"VLOOKUP($A53,[4]Anti_arrhythmic_drugs!$A$13:$D$226,4,0)","v":3053.74},19663.095434316794,{"$f":"VLOOKUP($A53,[4]Positive_Intotropic!$A$13:$D$226,4,0)","v":2870.19},19663.095434316794,{"$f":"VLOOKUP($A53,[4]anti_fibrinolytic!$A$13:$D$226,4,0)","v":13021.57},19663.095434316794,{"$f":"VLOOKUP($A53,[4]sympathomimetics!$A$11:$D$223,4,0)","v":5278.73},19663.095434316794,{"$f":"VLOOKUP($A53,[4]CVD_All_prescriptions!$A$10:$D$223,4,0)","v":1362913.44},{"$f":"VLOOKUP($A53,[4]CVD_All_prescriptions!$A$10:$D$223,3,0)","v":507749},{"$f":"VLOOKUP($A53,[5]CVD_All_prescriptions!$A$10:$C$392,3,0)","v":1249919.7901232301},{"$f":"VLOOKUP($A53,Lookup!$BP$3:$BW$213,8,0)","v":19907.862205373331},{"$f":"VLOOKUP($A53,[5]Lipid_regulators!$A$12:$C$345,3,0)","v":278583.30046945799},19907.862205373331,{"$f":"VLOOKUP($A53,[5]HyperandHeartfailure!$A$12:$C$356,3,0)","v":261386.90986178801},19907.862205373331,{"$f":"VLOOKUP($A53,[5]Nit_Calc_Antianginal!$A$12:$C$345,3,0)","v":330229.85955990897},19907.862205373331,{"$f":"VLOOKUP($A53,[5]Anti_coagulants!$A$11:$C$325,3,0)","v":63481.999865453698},19907.862205373331,{"$f":"VLOOKUP($A53,[5]Beta_Adrenorecepter!$A$11:$C$352,3,0)","v":105823.22016394101},19907.862205373331,{"$f":"VLOOKUP($A53,[5]Anti_platelet!$A$12:$C$335,3,0)","v":88399.509861558705},19907.862205373331,{"$f":"VLOOKUP($A53,[5]Diuretics!$A$12:$C$353,3,0)","v":95144.370402924702},19907.862205373331,{"$f":"VLOOKUP($A53,[5]Anti_arrhythmic_drugs!$A$11:$C$271,3,0)","v":2327.8299866616699},19907.862205373331,{"$f":"VLOOKUP($A53,[5]Positive_Intotropic!$A$12:$C$297,3,0)","v":2485.4800061881501},19907.862205373331,{"$f":"VLOOKUP($A53,[5]anti_fibrinolytic!$A$11:$C$287,3,0)","v":12125.239923715601},19907.862205373331,{"$f":"VLOOKUP($A53,[5]sympathomimetics!$A$11:$C$223,3,0)","v":9932.0700216293299},19907.862205373331,{"$f":"VLOOKUP($A53,[5]CVD_All_prescriptions!$A$10:$C$392,3,0)","v":1249919.7901232301},{"$f":"VLOOKUP($A53,[5]CVD_All_prescriptions!$A$10:$C$392,2,0)","v":528447}]
["02X","NHS Doncaster",{"$f":"VLOOKUP($A54,[4]CVD_All_prescriptions!$A$10:$D$223,4,0)","v":7033488.8000000203},{"$f":"VLOOKUP($A54,Lookup!$BP$3:$BW$213,7,0)","v":29641.082011087747},{"$f":"VLOOKUP($A54,[4]Lipid_regulators!$A$14:$D$227,4,0)","v":2238063.6599999899},29641.082011087747,{"$f":"VLOOKUP($A54,[4]HyperandHeartfailure!$A$13:$D$226,4,0)","v":1722723.98},29641.082011087747,{"$f":"VLOOKUP($A54,[4]Nit_Calc_Antianginal!$A$13:$D$226,4,0)","v":1306879.3799999999},29641.082011087747,{"$f":"VLOOKUP($A54,[4]Anti_coagulants!$A$15:$D$227,4,0)","v":260895.81999999899},29641.082011087747,{"$f":"VLOOKUP($A54,[4]Beta_Adrenorecepter!$A$13:$D$226,4,0)","v":464913.09000000299},29641.082011087747,{"$f":"VLOOKUP($A54,[4]Anti_platelet!$A$13:$D$226,4,0)","v":532920.37000000104},29641.082011087747,{"$f":"VLOOKUP($A54,[4]Diuretics!$A$11:$D$224,4,0)","v":352790.07999999699},29641.082011087747,{"$f":"VLOOKUP($A54,[4]Anti_arrhythmic_drugs!$A$13:$D$226,4,0)","v":51826.9399999999},29641.082011087747,{"$f":"VLOOKUP($A54,[4]Positive_Intotropic!$A$13:$D$226,4,0)","v":26702.6099999998},29641.082011087747,{"$f":"VLOOKUP($A54,[4]anti_fibrinolytic!$A$13:$D$226,4,0)","v":44170.73},29641.082011087747,{"$f":"VLOOKUP($A54,[4]sympathomimetics!$A$11:$D$223,4,0)","v":31602.14},29641.082011087747,{"$f":"VLOOKUP($A54,[4]CVD_All_prescriptions!$A$10:$D$223,4,0)","v":7033488.8000000203},{"$f":"VLOOKUP($A54,[4]CVD_All_prescriptions!$A$10:$D$223,3,0)","v":2167411},{"$f":"VLOOKUP($A54,[5]CVD_All_prescriptions!$A$10:$C$392,3,0)","v":6742708.63164471},{"$f":"VLOOKUP($A54,Lookup!$BP$3:$BW$213,8,0)","v":29709.806920282928},{"$f":"VLOOKUP($A54,[5]Lipid_regulators!$A$12:$C$345,3,0)","v":1765810.5006302299},29709.806920282928,{"$f":"VLOOKUP($A54,[5]HyperandHeartfailure!$A$12:$C$356,3,0)","v":1319150.1311182501},29709.806920282928,{"$f":"VLOOKUP($A54,[5]Nit_Calc_Antianginal!$A$12:$C$345,3,0)","v":1485619.1388312699},29709.806920282928,{"$f":"VLOOKUP($A54,[5]Anti_coagulants!$A$11:$C$325,3,0)","v":456576.34930151701},29709.806920282928,{"$f":"VLOOKUP($A54,[5]Beta_Adrenorecepter!$A$11:$C$352,3,0)","v":566260.99063860299},29709.806920282928,{"$f":"VLOOKUP($A54,[5]Anti_platelet!$A$12:$C$335,3,0)","v":571993.61965323205},29709.806920282928,{"$f":"VLOOKUP($A54,[5]Diuretics!$A$12:$C$353,3,0)","v":430116.27150189102},29709.806920282928,{"$f":"VLOOKUP($A54,[5]Anti_arrhythmic_drugs!$A$11:$C$271,3,0)","v":44603.0900935233},29709.806920282928,{"$f":"VLOOKUP($A54,[5]Positive_Intotropic!$A$12:$C$297,3,0)","v":22989.8799867444},29709.806920282928,{"$f":"VLOOKUP($A54,[5]anti_fibrinolytic!$A$11:$C$287,3,0)","v":29749.429969787601},29709.806920282928,{"$f":"VLOOKUP($A54,[5]sympathomimetics!$A$11:$C$223,3,0)","v":49839.229919671998},29709.806920282928,{"$f":"VLOOKUP($A54,[5]CVD_All_prescriptions!$A$10:$C$392,3,0)","v":6742708.63164471},{"$f":"VLOOKUP($A54,[5]CVD_All_prescriptions!$A$10:$C$392,2,0)","v":2198569}]
["02Y","NHS East Riding Of Yorkshire",{"$f":"VLOOKUP($A55,[4]CVD_All_prescriptions!$A$10:$D$223,4,0)","v":7176711.9000000302},{"$f":"VLOOKUP($A55,Lookup!$BP$3:$BW$213,7,0)","v":26662.886506600513},{"$f":"VLOOKUP($A55,[4]Lipid_regulators!$A$14:$D$227,4,0)","v":2000007.3799999801},26662.886506600513,{"$f":"VLOOKUP($A55,[4]HyperandHeartfailure!$A$13:$D$226,4,0)","v":1663601.26},26662.886506600513,{"$f":"VLOOKUP($A55,[4]Nit_Calc_Antianginal!$A$13:$D$226,4,0)","v":1325689.0900000001},26662.886506600513,{"$f":"VLOOKUP($A55,[4]Anti_coagulants!$A$15:$D$227,4,0)","v":538663.17000000097},26662.886506600513,{"$f":"VLOOKUP($A55,[4]Beta_Adrenorecepter!$A$13:$D$226,4,0)","v":582856.95000000403},26662.886506600513,{"$f":"VLOOKUP($A55,[4]Anti_platelet!$A$13:$D$226,4,0)","v":427961.44},26662.886506600513,{"$f":"VLOOKUP($A55,[4]Diuretics!$A$11:$D$224,4,0)","v":531746.60999999603},26662.886506600513,{"$f":"VLOOKUP($A55,[4]Anti_arrhythmic_drugs!$A$13:$D$226,4,0)","v":39715.049999999901},26662.886506600513,{"$f":"VLOOKUP($A55,[4]Positive_Intotropic!$A$13:$D$226,4,0)","v":35747.359999999797},26662.886506600513,{"$f":"VLOOKUP($A55,[4]anti_fibrinolytic!$A$13:$D$226,4,0)","v":18688.18},26662.886506600513,{"$f":"VLOOKUP($A55,[4]sympathomimetics!$A$11:$D$223,4,0)","v":12035.41},26662.886506600513,{"$f":"VLOOKUP($A55,[4]CVD_All_prescriptions!$A$10:$D$223,4,0)","v":7176711.9000000302},{"$f":"VLOOKUP($A55,[4]CVD_All_prescriptions!$A$10:$D$223,3,0)","v":2184672},{"$f":"VLOOKUP($A55,[5]CVD_All_prescriptions!$A$10:$C$392,3,0)","v":6983331.3145513805},{"$f":"VLOOKUP($A55,Lookup!$BP$3:$BW$213,8,0)","v":26664.038274120667},{"$f":"VLOOKUP($A55,[5]Lipid_regulators!$A$12:$C$345,3,0)","v":1524549.1102096401},26664.038274120667,{"$f":"VLOOKUP($A55,[5]HyperandHeartfailure!$A$12:$C$356,3,0)","v":1411476.5905758201},26664.038274120667,{"$f":"VLOOKUP($A55,[5]Nit_Calc_Antianginal!$A$12:$C$345,3,0)","v":1431586.6604673699},26664.038274120667,{"$f":"VLOOKUP($A55,[5]Anti_coagulants!$A$11:$C$325,3,0)","v":708880.56010701496},26664.038274120667,{"$f":"VLOOKUP($A55,[5]Beta_Adrenorecepter!$A$11:$C$352,3,0)","v":641654.26060184801},26664.038274120667,{"$f":"VLOOKUP($A55,[5]Anti_platelet!$A$12:$C$335,3,0)","v":520145.53012041003},26664.038274120667,{"$f":"VLOOKUP($A55,[5]Diuretics!$A$12:$C$353,3,0)","v":654981.91236642003},26664.038274120667,{"$f":"VLOOKUP($A55,[5]Anti_arrhythmic_drugs!$A$11:$C$271,3,0)","v":31264.9800274074},26664.038274120667,{"$f":"VLOOKUP($A55,[5]Positive_Intotropic!$A$12:$C$297,3,0)","v":29478.0399942398},26664.038274120667,{"$f":"VLOOKUP($A55,[5]anti_fibrinolytic!$A$11:$C$287,3,0)","v":15603.980021536399},26664.038274120667,{"$f":"VLOOKUP($A55,[5]sympathomimetics!$A$11:$C$223,3,0)","v":13709.6900596619},26664.038274120667,{"$f":"VLOOKUP($A55,[5]CVD_All_prescriptions!$A$10:$C$392,3,0)","v":6983331.3145513805},{"$f":"VLOOKUP($A55,[5]CVD_All_prescriptions!$A$10:$C$392,2,0)","v":2235044}]
["03A","NHS Greater Huddersfield",{"$f":"VLOOKUP($A56,[4]CVD_All_prescriptions!$A$10:$D$223,4,0)","v":4264415.26},{"$f":"VLOOKUP($A56,Lookup!$BP$3:$BW$213,7,0)","v":25652.915467434173},{"$f":"VLOOKUP($A56,[4]Lipid_regulators!$A$14:$D$227,4,0)","v":1299477.6200000001},25652.915467434173,{"$f":"VLOOKUP($A56,[4]HyperandHeartfailure!$A$13:$D$226,4,0)","v":1034779.87},25652.915467434173,{"$f":"VLOOKUP($A56,[4]Nit_Calc_Antianginal!$A$13:$D$226,4,0)","v":809711.26},25652.915467434173,{"$f":"VLOOKUP($A56,[4]Anti_coagulants!$A$15:$D$227,4,0)","v":158868.43},25652.915467434173,{"$f":"VLOOKUP($A56,[4]Beta_Adrenorecepter!$A$13:$D$226,4,0)","v":306744.17000000301},25652.915467434173,{"$f":"VLOOKUP($A56,[4]Anti_platelet!$A$13:$D$226,4,0)","v":362329.27},25652.915467434173,{"$f":"VLOOKUP($A56,[4]Diuretics!$A$11:$D$224,4,0)","v":224673.40000000101},25652.915467434173,{"$f":"VLOOKUP($A56,[4]Anti_arrhythmic_drugs!$A$13:$D$226,4,0)","v":26405.61},25652.915467434173,{"$f":"VLOOKUP($A56,[4]Positive_Intotropic!$A$13:$D$226,4,0)","v":19001.97},25652.915467434173,{"$f":"VLOOKUP($A56,[4]anti_fibrinolytic!$A$13:$D$226,4,0)","v":21875.95},25652.915467434173,{"$f":"VLOOKUP($A56,[4]sympathomimetics!$A$11:$D$223,4,0)","v":547.71},25652.915467434173,{"$f":"VLOOKUP($A56,[4]CVD_All_prescriptions!$A$10:$D$223,4,0)","v":4264415.26},{"$f":"VLOOKUP($A56,[4]CVD_All_prescriptions!$A$10:$D$223,3,0)","v":1129730},{"$f":"VLOOKUP($A56,[5]CVD_All_prescriptions!$A$10:$C$392,3,0)","v":4099538.2719467799},{"$f":"VLOOKUP($A56,Lookup!$BP$3:$BW$213,8,0)","v":25830.188679245282},{"$f":"VLOOKUP($A56,[5]Lipid_regulators!$A$12:$C$345,3,0)","v":1052821.5809774101},25830.188679245282,{"$f":"VLOOKUP($A56,[5]HyperandHeartfailure!$A$12:$C$356,3,0)","v":802088.58040656894},25830.188679245282,{"$f":"VLOOKUP($A56,[5]Nit_Calc_Antianginal!$A$12:$C$345,3,0)","v":851651.189276919},25830.188679245282,{"$f":"VLOOKUP($A56,[5]Anti_coagulants!$A$11:$C$325,3,0)","v":250173.68028878199},25830.188679245282,{"$f":"VLOOKUP($A56,[5]Beta_Adrenorecepter!$A$11:$C$352,3,0)","v":360426.62032839702},25830.188679245282,{"$f":"VLOOKUP($A56,[5]Anti_platelet!$A$12:$C$335,3,0)","v":414995.22991935199},25830.188679245282,{"$f":"VLOOKUP($A56,[5]Diuretics!$A$12:$C$353,3,0)","v":310169.57074154197},25830.188679245282,{"$f":"VLOOKUP($A56,[5]Anti_arrhythmic_drugs!$A$11:$C$271,3,0)","v":23133.8999986649},25830.188679245282,{"$f":"VLOOKUP($A56,[5]Positive_Intotropic!$A$12:$C$297,3,0)","v":16055.9799826294},25830.188679245282,{"$f":"VLOOKUP($A56,[5]anti_fibrinolytic!$A$11:$C$287,3,0)","v":18000.440026521701},25830.188679245282,{"$f":"VLOOKUP($A56,[5]sympathomimetics!$A$11:$C$223,3,0)","v":{"$error":"#N/A"}},25830.188679245282,{"$f":"VLOOKUP($A56,[5]CVD_All_prescriptions!$A$10:$C$392,3,0)","v":4099538.2719467799},{"$f":"VLOOKUP($A56,[5]CVD_All_prescriptions!$A$10:$C$392,2,0)","v":1191411}]
["03C","NHS Leeds West",{"$f":"VLOOKUP($A57,[4]CVD_All_prescriptions!$A$10:$D$223,4,0)","v":6110541.9800000004},{"$f":"VLOOKUP($A57,Lookup!$BP$3:$BW$213,7,0)","v":42939.559785841768},{"$f":"VLOOKUP($A57,[4]Lipid_regulators!$A$14:$D$227,4,0)","v":1832306.45},42939.559785841768,{"$f":"VLOOKUP($A57,[4]HyperandHeartfailure!$A$13:$D$226,4,0)","v":1380697.82},42939.559785841768,{"$f":"VLOOKUP($A57,[4]Nit_Calc_Antianginal!$A$13:$D$226,4,0)","v":1042085.32},42939.559785841768,{"$f":"VLOOKUP($A57,[4]Anti_coagulants!$A$15:$D$227,4,0)","v":487078.58000000298},42939.559785841768,{"$f":"VLOOKUP($A57,[4]Beta_Adrenorecepter!$A$13:$D$226,4,0)","v":466888.08},42939.559785841768,{"$f":"VLOOKUP($A57,[4]Anti_platelet!$A$13:$D$226,4,0)","v":459076.76},42939.559785841768,{"$f":"VLOOKUP($A57,[4]Diuretics!$A$11:$D$224,4,0)","v":343417.18999999802},42939.559785841768,{"$f":"VLOOKUP($A57,[4]Anti_arrhythmic_drugs!$A$13:$D$226,4,0)","v":30366.43},42939.559785841768,{"$f":"VLOOKUP($A57,[4]Positive_Intotropic!$A$13:$D$226,4,0)","v":24743.32},42939.559785841768,{"$f":"VLOOKUP($A57,[4]anti_fibrinolytic!$A$13:$D$226,4,0)","v":25824.23},42939.559785841768,{"$f":"VLOOKUP($A57,[4]sympathomimetics!$A$11:$D$223,4,0)","v":18057.8},42939.559785841768,{"$f":"VLOOKUP($A57,[4]CVD_All_prescriptions!$A$10:$D$223,4,0)","v":6110541.9800000004},{"$f":"VLOOKUP($A57,[4]CVD_All_prescriptions!$A$10:$D$223,3,0)","v":1600872},{"$f":"VLOOKUP($A57,[5]CVD_All_prescriptions!$A$10:$C$392,3,0)","v":5777912.4024831103},{"$f":"VLOOKUP($A57,Lookup!$BP$3:$BW$213,8,0)","v":43288.637715645455},{"$f":"VLOOKUP($A57,[5]Lipid_regulators!$A$12:$C$345,3,0)","v":1436529.4805115501},43288.637715645455,{"$f":"VLOOKUP($A57,[5]HyperandHeartfailure!$A$12:$C$356,3,0)","v":1052760.3604005601},43288.637715645455,{"$f":"VLOOKUP($A57,[5]Nit_Calc_Antianginal!$A$12:$C$345,3,0)","v":1087346.14972392},43288.637715645455,{"$f":"VLOOKUP($A57,[5]Anti_coagulants!$A$11:$C$325,3,0)","v":584797.18997269904},43288.637715645455,{"$f":"VLOOKUP($A57,[5]Beta_Adrenorecepter!$A$11:$C$352,3,0)","v":539628.11006412702},43288.637715645455,{"$f":"VLOOKUP($A57,[5]Anti_platelet!$A$12:$C$335,3,0)","v":544856.36044527602},43288.637715645455,{"$f":"VLOOKUP($A57,[5]Diuretics!$A$12:$C$353,3,0)","v":452105.41121885902},43288.637715645455,{"$f":"VLOOKUP($A57,[5]Anti_arrhythmic_drugs!$A$11:$C$271,3,0)","v":23724.519992887999},43288.637715645455,{"$f":"VLOOKUP($A57,[5]Positive_Intotropic!$A$12:$C$297,3,0)","v":19505.109971284899},43288.637715645455,{"$f":"VLOOKUP($A57,[5]anti_fibrinolytic!$A$11:$C$287,3,0)","v":16244.609974622699},43288.637715645455,{"$f":"VLOOKUP($A57,[5]sympathomimetics!$A$11:$C$223,3,0)","v":20415.1002073288},43288.637715645455,{"$f":"VLOOKUP($A57,[5]CVD_All_prescriptions!$A$10:$C$392,3,0)","v":5777912.4024831103},{"$f":"VLOOKUP($A57,[5]CVD_All_prescriptions!$A$10:$C$392,2,0)","v":1641266}]
["03D","NHS Hambleton, Richmondshire and Whitby",{"$f":"VLOOKUP($A58,[4]CVD_All_prescriptions!$A$10:$D$223,4,0)","v":3109834.87},{"$f":"VLOOKUP($A58,Lookup!$BP$3:$BW$213,7,0)","v":12490.944258835942},{"$f":"VLOOKUP($A58,[4]Lipid_regulators!$A$14:$D$227,4,0)","v":905293.88000000396},12490.944258835942,{"$f":"VLOOKUP($A58,[4]HyperandHeartfailure!$A$13:$D$226,4,0)","v":700317.39},12490.944258835942,{"$f":"VLOOKUP($A58,[4]Nit_Calc_Antianginal!$A$13:$D$226,4,0)","v":540378.38},12490.944258835942,{"$f":"VLOOKUP($A58,[4]Anti_coagulants!$A$15:$D$227,4,0)","v":281392.609999999},12490.944258835942,{"$f":"VLOOKUP($A58,[4]Beta_Adrenorecepter!$A$13:$D$226,4,0)","v":233218.820000001},12490.944258835942,{"$f":"VLOOKUP($A58,[4]Anti_platelet!$A$13:$D$226,4,0)","v":221440.08999999901},12490.944258835942,{"$f":"VLOOKUP($A58,[4]Diuretics!$A$11:$D$224,4,0)","v":173438.62},12490.944258835942,{"$f":"VLOOKUP($A58,[4]Anti_arrhythmic_drugs!$A$13:$D$226,4,0)","v":20598.480000000101},12490.944258835942,{"$f":"VLOOKUP($A58,[4]Positive_Intotropic!$A$13:$D$226,4,0)","v":16674.66},12490.944258835942,{"$f":"VLOOKUP($A58,[4]anti_fibrinolytic!$A$13:$D$226,4,0)","v":11228.23},12490.944258835942,{"$f":"VLOOKUP($A58,[4]sympathomimetics!$A$11:$D$223,4,0)","v":5832.21},12490.944258835942,{"$f":"VLOOKUP($A58,[4]CVD_All_prescriptions!$A$10:$D$223,4,0)","v":3109834.87},{"$f":"VLOOKUP($A58,[4]CVD_All_prescriptions!$A$10:$D$223,3,0)","v":1031276},{"$f":"VLOOKUP($A58,[5]CVD_All_prescriptions!$A$10:$C$392,3,0)","v":3123258.6225398802},{"$f":"VLOOKUP($A58,Lookup!$BP$3:$BW$213,8,0)","v":12511.605415860735},{"$f":"VLOOKUP($A58,[5]Lipid_regulators!$A$12:$C$345,3,0)","v":657163.77007329499},12511.605415860735,{"$f":"VLOOKUP($A58,[5]HyperandHeartfailure!$A$12:$C$356,3,0)","v":545206.54068714404},12511.605415860735,{"$f":"VLOOKUP($A58,[5]Nit_Calc_Antianginal!$A$12:$C$345,3,0)","v":644904.36996719195},12511.605415860735,{"$f":"VLOOKUP($A58,[5]Anti_coagulants!$A$11:$C$325,3,0)","v":436526.05025053001},12511.605415860735,{"$f":"VLOOKUP($A58,[5]Beta_Adrenorecepter!$A$11:$C$352,3,0)","v":260708.53037971299},12511.605415860735,{"$f":"VLOOKUP($A58,[5]Anti_platelet!$A$12:$C$335,3,0)","v":275378.35984790302},12511.605415860735,{"$f":"VLOOKUP($A58,[5]Diuretics!$A$12:$C$353,3,0)","v":252194.891250163},12511.605415860735,{"$f":"VLOOKUP($A58,[5]Anti_arrhythmic_drugs!$A$11:$C$271,3,0)","v":22806.500010013599},12511.605415860735,{"$f":"VLOOKUP($A58,[5]Positive_Intotropic!$A$12:$C$297,3,0)","v":13801.940016627301},12511.605415860735,{"$f":"VLOOKUP($A58,[5]anti_fibrinolytic!$A$11:$C$287,3,0)","v":10184.100021362299},12511.605415860735,{"$f":"VLOOKUP($A58,[5]sympathomimetics!$A$11:$C$223,3,0)","v":4383.5700359344501},12511.605415860735,{"$f":"VLOOKUP($A58,[5]CVD_All_prescriptions!$A$10:$C$392,3,0)","v":3123258.6225398802},{"$f":"VLOOKUP($A58,[5]CVD_All_prescriptions!$A$10:$C$392,2,0)","v":1052263}]
["03E","NHS Harrogate and Rural District",{"$f":"VLOOKUP($A59,[4]CVD_All_prescriptions!$A$10:$D$223,4,0)","v":3256849.76},{"$f":"VLOOKUP($A59,Lookup!$BP$3:$BW$213,7,0)","v":15245.659225338677},{"$f":"VLOOKUP($A59,[4]Lipid_regulators!$A$14:$D$227,4,0)","v":993917.229999993},15245.659225338677,{"$f":"VLOOKUP($A59,[4]HyperandHeartfailure!$A$13:$D$226,4,0)","v":750510.95},15245.659225338677,{"$f":"VLOOKUP($A59,[4]Nit_Calc_Antianginal!$A$13:$D$226,4,0)","v":543181.46},15245.659225338677,{"$f":"VLOOKUP($A59,[4]Anti_coagulants!$A$15:$D$227,4,0)","v":229336.22},15245.659225338677,{"$f":"VLOOKUP($A59,[4]Beta_Adrenorecepter!$A$13:$D$226,4,0)","v":258530.37},15245.659225338677,{"$f":"VLOOKUP($A59,[4]Anti_platelet!$A$13:$D$226,4,0)","v":266871.07999999903},15245.659225338677,{"$f":"VLOOKUP($A59,[4]Diuretics!$A$11:$D$224,4,0)","v":160587.23000000001},15245.659225338677,{"$f":"VLOOKUP($A59,[4]Anti_arrhythmic_drugs!$A$13:$D$226,4,0)","v":21048.400000000001},15245.659225338677,{"$f":"VLOOKUP($A59,[4]Positive_Intotropic!$A$13:$D$226,4,0)","v":17367.7},15245.659225338677,{"$f":"VLOOKUP($A59,[4]anti_fibrinolytic!$A$13:$D$226,4,0)","v":11374.5},15245.659225338677,{"$f":"VLOOKUP($A59,[4]sympathomimetics!$A$11:$D$223,4,0)","v":4124.62},15245.659225338677,{"$f":"VLOOKUP($A59,[4]CVD_All_prescriptions!$A$10:$D$223,4,0)","v":3256849.76},{"$f":"VLOOKUP($A59,[4]CVD_All_prescriptions!$A$10:$D$223,3,0)","v":907301},{"$f":"VLOOKUP($A59,[5]CVD_All_prescriptions!$A$10:$C$392,3,0)","v":3155006.9315821701},{"$f":"VLOOKUP($A59,Lookup!$BP$3:$BW$213,8,0)","v":15309.769128029004},{"$f":"VLOOKUP($A59,[5]Lipid_regulators!$A$12:$C$345,3,0)","v":780743.95097875595},15309.769128029004,{"$f":"VLOOKUP($A59,[5]HyperandHeartfailure!$A$12:$C$356,3,0)","v":560153.07988649595},15309.769128029004,{"$f":"VLOOKUP($A59,[5]Nit_Calc_Antianginal!$A$12:$C$345,3,0)","v":612445.70944628096},15309.769128029004,{"$f":"VLOOKUP($A59,[5]Anti_coagulants!$A$11:$C$325,3,0)","v":334235.38040828699},15309.769128029004,{"$f":"VLOOKUP($A59,[5]Beta_Adrenorecepter!$A$11:$C$352,3,0)","v":308285.26030938298},15309.769128029004,{"$f":"VLOOKUP($A59,[5]Anti_platelet!$A$12:$C$335,3,0)","v":302573.18973141903},15309.769128029004,{"$f":"VLOOKUP($A59,[5]Diuretics!$A$12:$C$353,3,0)","v":211435.260825276},15309.769128029004,{"$f":"VLOOKUP($A59,[5]Anti_arrhythmic_drugs!$A$11:$C$271,3,0)","v":18177.220027566},15309.769128029004,{"$f":"VLOOKUP($A59,[5]Positive_Intotropic!$A$12:$C$297,3,0)","v":13930.379967749101},15309.769128029004,{"$f":"VLOOKUP($A59,[5]anti_fibrinolytic!$A$11:$C$287,3,0)","v":8220.9900064468402},15309.769128029004,{"$f":"VLOOKUP($A59,[5]sympathomimetics!$A$11:$C$223,3,0)","v":4806.5099945068396},15309.769128029004,{"$f":"VLOOKUP($A59,[5]CVD_All_prescriptions!$A$10:$C$392,3,0)","v":3155006.9315821701},{"$f":"VLOOKUP($A59,[5]CVD_All_prescriptions!$A$10:$C$392,2,0)","v":921467}]
["03F","NHS Hull",{"$f":"VLOOKUP($A60,[4]CVD_All_prescriptions!$A$10:$D$223,4,0)","v":5724655.0699999901},{"$f":"VLOOKUP($A60,Lookup!$BP$3:$BW$213,7,0)","v":29552.513739059636},{"$f":"VLOOKUP($A60,[4]Lipid_regulators!$A$14:$D$227,4,0)","v":1680694.69000001},29552.513739059636,{"$f":"VLOOKUP($A60,[4]HyperandHeartfailure!$A$13:$D$226,4,0)","v":1141648.72},29552.513739059636,{"$f":"VLOOKUP($A60,[4]Nit_Calc_Antianginal!$A$13:$D$226,4,0)","v":1074529.1100000001},29552.513739059636,{"$f":"VLOOKUP($A60,[4]Anti_coagulants!$A$15:$D$227,4,0)","v":454150.46999999898},29552.513739059636,{"$f":"VLOOKUP($A60,[4]Beta_Adrenorecepter!$A$13:$D$226,4,0)","v":456758.40000000497},29552.513739059636,{"$f":"VLOOKUP($A60,[4]Anti_platelet!$A$13:$D$226,4,0)","v":366239.11999999901},29552.513739059636,{"$f":"VLOOKUP($A60,[4]Diuretics!$A$11:$D$224,4,0)","v":484358.53999999602},29552.513739059636,{"$f":"VLOOKUP($A60,[4]Anti_arrhythmic_drugs!$A$13:$D$226,4,0)","v":19967.490000000002},29552.513739059636,{"$f":"VLOOKUP($A60,[4]Positive_Intotropic!$A$13:$D$226,4,0)","v":27809.809999999801},29552.513739059636,{"$f":"VLOOKUP($A60,[4]anti_fibrinolytic!$A$13:$D$226,4,0)","v":15707},29552.513739059636,{"$f":"VLOOKUP($A60,[4]sympathomimetics!$A$11:$D$223,4,0)","v":2756.67},29552.513739059636,{"$f":"VLOOKUP($A60,[4]CVD_All_prescriptions!$A$10:$D$223,4,0)","v":5724655.0699999901},{"$f":"VLOOKUP($A60,[4]CVD_All_prescriptions!$A$10:$D$223,3,0)","v":1854116},{"$f":"VLOOKUP($A60,[5]CVD_All_prescriptions!$A$10:$C$392,3,0)","v":5562951.4878752204},{"$f":"VLOOKUP($A60,Lookup!$BP$3:$BW$213,8,0)","v":29366.680236108281},{"$f":"VLOOKUP($A60,[5]Lipid_regulators!$A$12:$C$345,3,0)","v":1340746.70233938},29366.680236108281,{"$f":"VLOOKUP($A60,[5]HyperandHeartfailure!$A$12:$C$356,3,0)","v":917320.54033950705},29366.680236108281,{"$f":"VLOOKUP($A60,[5]Nit_Calc_Antianginal!$A$12:$C$345,3,0)","v":1150803.19931574},29366.680236108281,{"$f":"VLOOKUP($A60,[5]Anti_coagulants!$A$11:$C$325,3,0)","v":575135.68210766499},29366.680236108281,{"$f":"VLOOKUP($A60,[5]Beta_Adrenorecepter!$A$11:$C$352,3,0)","v":532724.02067569597},29366.680236108281,{"$f":"VLOOKUP($A60,[5]Anti_platelet!$A$12:$C$335,3,0)","v":422193.35001588601},29366.680236108281,{"$f":"VLOOKUP($A60,[5]Diuretics!$A$12:$C$353,3,0)","v":565851.51317542},29366.680236108281,{"$f":"VLOOKUP($A60,[5]Anti_arrhythmic_drugs!$A$11:$C$271,3,0)","v":16882.359920680501},29366.680236108281,{"$f":"VLOOKUP($A60,[5]Positive_Intotropic!$A$12:$C$297,3,0)","v":23414.3899493963},29366.680236108281,{"$f":"VLOOKUP($A60,[5]anti_fibrinolytic!$A$11:$C$287,3,0)","v":13528.370022356499},29366.680236108281,{"$f":"VLOOKUP($A60,[5]sympathomimetics!$A$11:$C$223,3,0)","v":4344.9600133895901},29366.680236108281,{"$f":"VLOOKUP($A60,[5]CVD_All_prescriptions!$A$10:$C$392,3,0)","v":5562951.4878752204},{"$f":"VLOOKUP($A60,[5]CVD_All_prescriptions!$A$10:$C$392,2,0)","v":1924621}]
["03G","NHS Leeds South and East",{"$f":"VLOOKUP($A61,[4]CVD_All_prescriptions!$A$10:$D$223,4,0)","v":5186610.29},{"$f":"VLOOKUP($A61,Lookup!$BP$3:$BW$213,7,0)","v":26999.384678494516},{"$f":"VLOOKUP($A61,[4]Lipid_regulators!$A$14:$D$227,4,0)","v":1365863.88},26999.384678494516,{"$f":"VLOOKUP($A61,[4]HyperandHeartfailure!$A$13:$D$226,4,0)","v":1159459.1599999999},26999.384678494516,{"$f":"VLOOKUP($A61,[4]Nit_Calc_Antianginal!$A$13:$D$226,4,0)","v":942598.99999999895},26999.384678494516,{"$f":"VLOOKUP($A61,[4]Anti_coagulants!$A$15:$D$227,4,0)","v":457815.18},26999.384678494516,{"$f":"VLOOKUP($A61,[4]Beta_Adrenorecepter!$A$13:$D$226,4,0)","v":415994.70000000403},26999.384678494516,{"$f":"VLOOKUP($A61,[4]Anti_platelet!$A$13:$D$226,4,0)","v":441428.62999999902},26999.384678494516,{"$f":"VLOOKUP($A61,[4]Diuretics!$A$11:$D$224,4,0)","v":317475.419999998},26999.384678494516,{"$f":"VLOOKUP($A61,[4]Anti_arrhythmic_drugs!$A$13:$D$226,4,0)","v":20593.47},26999.384678494516,{"$f":"VLOOKUP($A61,[4]Positive_Intotropic!$A$13:$D$226,4,0)","v":22579.059999999899},26999.384678494516,{"$f":"VLOOKUP($A61,[4]anti_fibrinolytic!$A$13:$D$226,4,0)","v":30616.91},26999.384678494516,{"$f":"VLOOKUP($A61,[4]sympathomimetics!$A$11:$D$223,4,0)","v":12184.88},26999.384678494516,{"$f":"VLOOKUP($A61,[4]CVD_All_prescriptions!$A$10:$D$223,4,0)","v":5186610.29},{"$f":"VLOOKUP($A61,[4]CVD_All_prescriptions!$A$10:$D$223,3,0)","v":1524139},{"$f":"VLOOKUP($A61,[5]CVD_All_prescriptions!$A$10:$C$392,3,0)","v":4834222.3021164397},{"$f":"VLOOKUP($A61,Lookup!$BP$3:$BW$213,8,0)","v":27151.163983181214},{"$f":"VLOOKUP($A61,[5]Lipid_regulators!$A$12:$C$345,3,0)","v":1044971.73038846},27151.163983181214,{"$f":"VLOOKUP($A61,[5]HyperandHeartfailure!$A$12:$C$356,3,0)","v":881918.11939309502},27151.163983181214,{"$f":"VLOOKUP($A61,[5]Nit_Calc_Antianginal!$A$12:$C$345,3,0)","v":935133.98935395502},27151.163983181214,{"$f":"VLOOKUP($A61,[5]Anti_coagulants!$A$11:$C$325,3,0)","v":538018.87078887201},27151.163983181214,{"$f":"VLOOKUP($A61,[5]Beta_Adrenorecepter!$A$11:$C$352,3,0)","v":480015.65048664802},27151.163983181214,{"$f":"VLOOKUP($A61,[5]Anti_platelet!$A$12:$C$335,3,0)","v":503785.52034585201},27151.163983181214,{"$f":"VLOOKUP($A61,[5]Diuretics!$A$12:$C$353,3,0)","v":387366.88143350201},27151.163983181214,{"$f":"VLOOKUP($A61,[5]Anti_arrhythmic_drugs!$A$11:$C$271,3,0)","v":13975.469984412201},27151.163983181214,{"$f":"VLOOKUP($A61,[5]Positive_Intotropic!$A$12:$C$297,3,0)","v":18285.209998130798},27151.163983181214,{"$f":"VLOOKUP($A61,[5]anti_fibrinolytic!$A$11:$C$287,3,0)","v":19762.529991269101},27151.163983181214,{"$f":"VLOOKUP($A61,[5]sympathomimetics!$A$11:$C$223,3,0)","v":10972.4199523926},27151.163983181214,{"$f":"VLOOKUP($A61,[5]CVD_All_prescriptions!$A$10:$C$392,3,0)","v":4834222.3021164397},{"$f":"VLOOKUP($A61,[5]CVD_All_prescriptions!$A$10:$C$392,2,0)","v":1571704}]
["03H","NHS North East Lincolnshire",{"$f":"VLOOKUP($A62,[4]CVD_All_prescriptions!$A$10:$D$223,4,0)","v":3682190.06},{"$f":"VLOOKUP($A62,Lookup!$BP$3:$BW$213,7,0)","v":16168.124579448235},{"$f":"VLOOKUP($A62,[4]Lipid_regulators!$A$14:$D$227,4,0)","v":1161965.3400000001},16168.124579448235,{"$f":"VLOOKUP($A62,[4]HyperandHeartfailure!$A$13:$D$226,4,0)","v":685112.91999999899},16168.124579448235,{"$f":"VLOOKUP($A62,[4]Nit_Calc_Antianginal!$A$13:$D$226,4,0)","v":625715.77},16168.124579448235,{"$f":"VLOOKUP($A62,[4]Anti_coagulants!$A$15:$D$227,4,0)","v":464911.69999999902},16168.124579448235,{"$f":"VLOOKUP($A62,[4]Beta_Adrenorecepter!$A$13:$D$226,4,0)","v":257125.19},16168.124579448235,{"$f":"VLOOKUP($A62,[4]Anti_platelet!$A$13:$D$226,4,0)","v":263762.90999999997},16168.124579448235,{"$f":"VLOOKUP($A62,[4]Diuretics!$A$11:$D$224,4,0)","v":176720.5},16168.124579448235,{"$f":"VLOOKUP($A62,[4]Anti_arrhythmic_drugs!$A$13:$D$226,4,0)","v":17287.259999999998},16168.124579448235,{"$f":"VLOOKUP($A62,[4]Positive_Intotropic!$A$13:$D$226,4,0)","v":16890.12},16168.124579448235,{"$f":"VLOOKUP($A62,[4]anti_fibrinolytic!$A$13:$D$226,4,0)","v":11203.56},16168.124579448235,{"$f":"VLOOKUP($A62,[4]sympathomimetics!$A$11:$D$223,4,0)","v":1473.59},16168.124579448235,{"$f":"VLOOKUP($A62,[4]CVD_All_prescriptions!$A$10:$D$223,4,0)","v":3682190.06},{"$f":"VLOOKUP($A62,[4]CVD_All_prescriptions!$A$10:$D$223,3,0)","v":1143168},{"$f":"VLOOKUP($A62,[5]CVD_All_prescriptions!$A$10:$C$392,3,0)","v":3619256.3904422298},{"$f":"VLOOKUP($A62,Lookup!$BP$3:$BW$213,8,0)","v":16165.240795924252},{"$f":"VLOOKUP($A62,[5]Lipid_regulators!$A$12:$C$345,3,0)","v":911915.538986873},16165.240795924252,{"$f":"VLOOKUP($A62,[5]HyperandHeartfailure!$A$12:$C$356,3,0)","v":593635.66979455901},16165.240795924252,{"$f":"VLOOKUP($A62,[5]Nit_Calc_Antianginal!$A$12:$C$345,3,0)","v":705086.18940836203},16165.240795924252,{"$f":"VLOOKUP($A62,[5]Anti_coagulants!$A$11:$C$325,3,0)","v":536024.53110654699},16165.240795924252,{"$f":"VLOOKUP($A62,[5]Beta_Adrenorecepter!$A$11:$C$352,3,0)","v":311779.20022084599},16165.240795924252,{"$f":"VLOOKUP($A62,[5]Anti_platelet!$A$12:$C$335,3,0)","v":299939.24027396698},16165.240795924252,{"$f":"VLOOKUP($A62,[5]Diuretics!$A$12:$C$353,3,0)","v":218471.420685694},16165.240795924252,{"$f":"VLOOKUP($A62,[5]Anti_arrhythmic_drugs!$A$11:$C$271,3,0)","v":18154.029978185899},16165.240795924252,{"$f":"VLOOKUP($A62,[5]Positive_Intotropic!$A$12:$C$297,3,0)","v":14372.8099818379},16165.240795924252,{"$f":"VLOOKUP($A62,[5]anti_fibrinolytic!$A$11:$C$287,3,0)","v":8089.4400132894498},16165.240795924252,{"$f":"VLOOKUP($A62,[5]sympathomimetics!$A$11:$C$223,3,0)","v":1788.3199920654299},16165.240795924252,{"$f":"VLOOKUP($A62,[5]CVD_All_prescriptions!$A$10:$C$392,3,0)","v":3619256.3904422298},{"$f":"VLOOKUP($A62,[5]CVD_All_prescriptions!$A$10:$C$392,2,0)","v":1190062}]
["03J","NHS North Kirklees",{"$f":"VLOOKUP($A63,[4]CVD_All_prescriptions!$A$10:$D$223,4,0)","v":3988328.73999999},{"$f":"VLOOKUP($A63,Lookup!$BP$3:$BW$213,7,0)","v":20961.620469083158},{"$f":"VLOOKUP($A63,[4]Lipid_regulators!$A$14:$D$227,4,0)","v":1232868.0900000001},20961.620469083158,{"$f":"VLOOKUP($A63,[4]HyperandHeartfailure!$A$13:$D$226,4,0)","v":1035074.91},20961.620469083158,{"$f":"VLOOKUP($A63,[4]Nit_Calc_Antianginal!$A$13:$D$226,4,0)","v":702409.07999999903},20961.620469083158,{"$f":"VLOOKUP($A63,[4]Anti_coagulants!$A$15:$D$227,4,0)","v":207185.49},20961.620469083158,{"$f":"VLOOKUP($A63,[4]Beta_Adrenorecepter!$A$13:$D$226,4,0)","v":251721.66000000099},20961.620469083158,{"$f":"VLOOKUP($A63,[4]Anti_platelet!$A$13:$D$226,4,0)","v":322088.31999999902},20961.620469083158,{"$f":"VLOOKUP($A63,[4]Diuretics!$A$11:$D$224,4,0)","v":193995.42},20961.620469083158,{"$f":"VLOOKUP($A63,[4]Anti_arrhythmic_drugs!$A$13:$D$226,4,0)","v":14395.07},20961.620469083158,{"$f":"VLOOKUP($A63,[4]Positive_Intotropic!$A$13:$D$226,4,0)","v":11361.06},20961.620469083158,{"$f":"VLOOKUP($A63,[4]anti_fibrinolytic!$A$13:$D$226,4,0)","v":14210.29},20961.620469083158,{"$f":"VLOOKUP($A63,[4]sympathomimetics!$A$11:$D$223,4,0)","v":2954.85},20961.620469083158,{"$f":"VLOOKUP($A63,[4]CVD_All_prescriptions!$A$10:$D$223,4,0)","v":3988328.73999999},{"$f":"VLOOKUP($A63,[4]CVD_All_prescriptions!$A$10:$D$223,3,0)","v":1081642},{"$f":"VLOOKUP($A63,[5]CVD_All_prescriptions!$A$10:$C$392,3,0)","v":3917610.7214001101},{"$f":"VLOOKUP($A63,Lookup!$BP$3:$BW$213,8,0)","v":21102.345415778254},{"$f":"VLOOKUP($A63,[5]Lipid_regulators!$A$12:$C$345,3,0)","v":992827.10023860598},21102.345415778254,{"$f":"VLOOKUP($A63,[5]HyperandHeartfailure!$A$12:$C$356,3,0)","v":725966.74959498597},21102.345415778254,{"$f":"VLOOKUP($A63,[5]Nit_Calc_Antianginal!$A$12:$C$345,3,0)","v":892842.90022605704},21102.345415778254,{"$f":"VLOOKUP($A63,[5]Anti_coagulants!$A$11:$C$325,3,0)","v":296397.58086883998},21102.345415778254,{"$f":"VLOOKUP($A63,[5]Beta_Adrenorecepter!$A$11:$C$352,3,0)","v":309414.69031071698},21102.345415778254,{"$f":"VLOOKUP($A63,[5]Anti_platelet!$A$12:$C$335,3,0)","v":420627.96975867299},21102.345415778254,{"$f":"VLOOKUP($A63,[5]Diuretics!$A$12:$C$353,3,0)","v":248369.91034853499},21102.345415778254,{"$f":"VLOOKUP($A63,[5]Anti_arrhythmic_drugs!$A$11:$C$271,3,0)","v":10936.7300514281},21102.345415778254,{"$f":"VLOOKUP($A63,[5]Positive_Intotropic!$A$12:$C$297,3,0)","v":9621.9800033867396},21102.345415778254,{"$f":"VLOOKUP($A63,[5]anti_fibrinolytic!$A$11:$C$287,3,0)","v":9926.6499921679497},21102.345415778254,{"$f":"VLOOKUP($A63,[5]sympathomimetics!$A$11:$C$223,3,0)","v":549.46000671386696},21102.345415778254,{"$f":"VLOOKUP($A63,[5]CVD_All_prescriptions!$A$10:$C$392,3,0)","v":3917610.7214001101},{"$f":"VLOOKUP($A63,[5]CVD_All_prescriptions!$A$10:$C$392,2,0)","v":1119613}]
["03K","NHS North Lincolnshire",{"$f":"VLOOKUP($A64,[4]CVD_All_prescriptions!$A$10:$D$223,4,0)","v":4347481.6300000101},{"$f":"VLOOKUP($A64,Lookup!$BP$3:$BW$213,7,0)","v":16557.062036675768},{"$f":"VLOOKUP($A64,[4]Lipid_regulators!$A$14:$D$227,4,0)","v":1346608.88},16557.062036675768,{"$f":"VLOOKUP($A64,[4]HyperandHeartfailure!$A$13:$D$226,4,0)","v":1134976.31},16557.062036675768,{"$f":"VLOOKUP($A64,[4]Nit_Calc_Antianginal!$A$13:$D$226,4,0)","v":824315.25999999896},16557.062036675768,{"$f":"VLOOKUP($A64,[4]Anti_coagulants!$A$15:$D$227,4,0)","v":254916.15999999901},16557.062036675768,{"$f":"VLOOKUP($A64,[4]Beta_Adrenorecepter!$A$13:$D$226,4,0)","v":246720.489999999},16557.062036675768,{"$f":"VLOOKUP($A64,[4]Anti_platelet!$A$13:$D$226,4,0)","v":236855.48},16557.062036675768,{"$f":"VLOOKUP($A64,[4]Diuretics!$A$11:$D$224,4,0)","v":242927.540000001},16557.062036675768,{"$f":"VLOOKUP($A64,[4]Anti_arrhythmic_drugs!$A$13:$D$226,4,0)","v":29152.06},16557.062036675768,{"$f":"VLOOKUP($A64,[4]Positive_Intotropic!$A$13:$D$226,4,0)","v":17436.13},16557.062036675768,{"$f":"VLOOKUP($A64,[4]anti_fibrinolytic!$A$13:$D$226,4,0)","v":13010.08},16557.062036675768,{"$f":"VLOOKUP($A64,[4]sympathomimetics!$A$11:$D$223,4,0)","v":563.24},16557.062036675768,{"$f":"VLOOKUP($A64,[4]CVD_All_prescriptions!$A$10:$D$223,4,0)","v":4347481.6300000101},{"$f":"VLOOKUP($A64,[4]CVD_All_prescriptions!$A$10:$D$223,3,0)","v":1365690},{"$f":"VLOOKUP($A64,[5]CVD_All_prescriptions!$A$10:$C$392,3,0)","v":4187992.4709997601},{"$f":"VLOOKUP($A64,Lookup!$BP$3:$BW$213,8,0)","v":16581.837690206787},{"$f":"VLOOKUP($A64,[5]Lipid_regulators!$A$12:$C$345,3,0)","v":1060502.17970859},16581.837690206787,{"$f":"VLOOKUP($A64,[5]HyperandHeartfailure!$A$12:$C$356,3,0)","v":950038.599514917},16581.837690206787,{"$f":"VLOOKUP($A64,[5]Nit_Calc_Antianginal!$A$12:$C$345,3,0)","v":895774.53898160195},16581.837690206787,{"$f":"VLOOKUP($A64,[5]Anti_coagulants!$A$11:$C$325,3,0)","v":344881.32114045299},16581.837690206787,{"$f":"VLOOKUP($A64,[5]Beta_Adrenorecepter!$A$11:$C$352,3,0)","v":274844.20049937099},16581.837690206787,{"$f":"VLOOKUP($A64,[5]Anti_platelet!$A$12:$C$335,3,0)","v":304477.47989115899},16581.837690206787,{"$f":"VLOOKUP($A64,[5]Diuretics!$A$12:$C$353,3,0)","v":308107.491217256},16581.837690206787,{"$f":"VLOOKUP($A64,[5]Anti_arrhythmic_drugs!$A$11:$C$271,3,0)","v":22319.160027623198},16581.837690206787,{"$f":"VLOOKUP($A64,[5]Positive_Intotropic!$A$12:$C$297,3,0)","v":14623.31002184},16581.837690206787,{"$f":"VLOOKUP($A64,[5]anti_fibrinolytic!$A$11:$C$287,3,0)","v":11653.5799963474},16581.837690206787,{"$f":"VLOOKUP($A64,[5]sympathomimetics!$A$11:$C$223,3,0)","v":770.61000061035202},16581.837690206787,{"$f":"VLOOKUP($A64,[5]CVD_All_prescriptions!$A$10:$C$392,3,0)","v":4187992.4709997601},{"$f":"VLOOKUP($A64,[5]CVD_All_prescriptions!$A$10:$C$392,2,0)","v":1393873}]
["03L","NHS Rotherham",{"$f":"VLOOKUP($A65,[4]CVD_All_prescriptions!$A$10:$D$223,4,0)","v":6063859.8800000101},{"$f":"VLOOKUP($A65,Lookup!$BP$3:$BW$213,7,0)","v":25257.454974904045},{"$f":"VLOOKUP($A65,[4]Lipid_regulators!$A$14:$D$227,4,0)","v":1811505.86},25257.454974904045,{"$f":"VLOOKUP($A65,[4]HyperandHeartfailure!$A$13:$D$226,4,0)","v":1393794.59},25257.454974904045,{"$f":"VLOOKUP($A65,[4]Nit_Calc_Antianginal!$A$13:$D$226,4,0)","v":1208666.1599999999},25257.454974904045,{"$f":"VLOOKUP($A65,[4]Anti_coagulants!$A$15:$D$227,4,0)","v":381446.00000000099},25257.454974904045,{"$f":"VLOOKUP($A65,[4]Beta_Adrenorecepter!$A$13:$D$226,4,0)","v":380418.93000000197},25257.454974904045,{"$f":"VLOOKUP($A65,[4]Anti_platelet!$A$13:$D$226,4,0)","v":431507.80999999901},25257.454974904045,{"$f":"VLOOKUP($A65,[4]Diuretics!$A$11:$D$224,4,0)","v":348668.54000000103},25257.454974904045,{"$f":"VLOOKUP($A65,[4]Anti_arrhythmic_drugs!$A$13:$D$226,4,0)","v":48405.849999999897},25257.454974904045,{"$f":"VLOOKUP($A65,[4]Positive_Intotropic!$A$13:$D$226,4,0)","v":24675.0099999999},25257.454974904045,{"$f":"VLOOKUP($A65,[4]anti_fibrinolytic!$A$13:$D$226,4,0)","v":22478.71},25257.454974904045,{"$f":"VLOOKUP($A65,[4]sympathomimetics!$A$11:$D$223,4,0)","v":12292.42},25257.454974904045,{"$f":"VLOOKUP($A65,[4]CVD_All_prescriptions!$A$10:$D$223,4,0)","v":6063859.8800000101},{"$f":"VLOOKUP($A65,[4]CVD_All_prescriptions!$A$10:$D$223,3,0)","v":1746627},{"$f":"VLOOKUP($A65,[5]CVD_All_prescriptions!$A$10:$C$392,3,0)","v":5666721.8125523897},{"$f":"VLOOKUP($A65,Lookup!$BP$3:$BW$213,8,0)","v":25372.404290916249},{"$f":"VLOOKUP($A65,[5]Lipid_regulators!$A$12:$C$345,3,0)","v":1336811.9908940301},25372.404290916249,{"$f":"VLOOKUP($A65,[5]HyperandHeartfailure!$A$12:$C$356,3,0)","v":1076935.13029576},25372.404290916249,{"$f":"VLOOKUP($A65,[5]Nit_Calc_Antianginal!$A$12:$C$345,3,0)","v":1262218.39935249},25372.404290916249,{"$f":"VLOOKUP($A65,[5]Anti_coagulants!$A$11:$C$325,3,0)","v":526069.05097800505},25372.404290916249,{"$f":"VLOOKUP($A65,[5]Beta_Adrenorecepter!$A$11:$C$352,3,0)","v":457516.09024163702},25372.404290916249,{"$f":"VLOOKUP($A65,[5]Anti_platelet!$A$12:$C$335,3,0)","v":472580.95954855898},25372.404290916249,{"$f":"VLOOKUP($A65,[5]Diuretics!$A$12:$C$353,3,0)","v":438143.85123743099},25372.404290916249,{"$f":"VLOOKUP($A65,[5]Anti_arrhythmic_drugs!$A$11:$C$271,3,0)","v":43132.889927536198},25372.404290916249,{"$f":"VLOOKUP($A65,[5]Positive_Intotropic!$A$12:$C$297,3,0)","v":20523.3999468088},25372.404290916249,{"$f":"VLOOKUP($A65,[5]anti_fibrinolytic!$A$11:$C$287,3,0)","v":17720.570014715198},25372.404290916249,{"$f":"VLOOKUP($A65,[5]sympathomimetics!$A$11:$C$223,3,0)","v":15069.4801154137},25372.404290916249,{"$f":"VLOOKUP($A65,[5]CVD_All_prescriptions!$A$10:$C$392,3,0)","v":5666721.8125523897},{"$f":"VLOOKUP($A65,[5]CVD_All_prescriptions!$A$10:$C$392,2,0)","v":1815661}]
["03M","NHS Scarborough and Ryedale",{"$f":"VLOOKUP($A66,[4]CVD_All_prescriptions!$A$10:$D$223,4,0)","v":2733349.46},{"$f":"VLOOKUP($A66,Lookup!$BP$3:$BW$213,7,0)","v":10261.896491837444},{"$f":"VLOOKUP($A66,[4]Lipid_regulators!$A$14:$D$227,4,0)","v":777693.62000000302},10261.896491837444,{"$f":"VLOOKUP($A66,[4]HyperandHeartfailure!$A$13:$D$226,4,0)","v":625907.31000000006},10261.896491837444,{"$f":"VLOOKUP($A66,[4]Nit_Calc_Antianginal!$A$13:$D$226,4,0)","v":535721.21},10261.896491837444,{"$f":"VLOOKUP($A66,[4]Anti_coagulants!$A$15:$D$227,4,0)","v":258956.61999999901},10261.896491837444,{"$f":"VLOOKUP($A66,[4]Beta_Adrenorecepter!$A$13:$D$226,4,0)","v":184277.420000001},10261.896491837444,{"$f":"VLOOKUP($A66,[4]Anti_platelet!$A$13:$D$226,4,0)","v":161472.57999999999},10261.896491837444,{"$f":"VLOOKUP($A66,[4]Diuretics!$A$11:$D$224,4,0)","v":146272.51999999999},10261.896491837444,{"$f":"VLOOKUP($A66,[4]Anti_arrhythmic_drugs!$A$13:$D$226,4,0)","v":19130.39},10261.896491837444,{"$f":"VLOOKUP($A66,[4]Positive_Intotropic!$A$13:$D$226,4,0)","v":15927.56},10261.896491837444,{"$f":"VLOOKUP($A66,[4]anti_fibrinolytic!$A$13:$D$226,4,0)","v":5962.6799999999903},10261.896491837444,{"$f":"VLOOKUP($A66,[4]sympathomimetics!$A$11:$D$223,4,0)","v":2027.55},10261.896491837444,{"$f":"VLOOKUP($A66,[4]CVD_All_prescriptions!$A$10:$D$223,4,0)","v":2733349.46},{"$f":"VLOOKUP($A66,[4]CVD_All_prescriptions!$A$10:$D$223,3,0)","v":859219},{"$f":"VLOOKUP($A66,[5]CVD_All_prescriptions!$A$10:$C$392,3,0)","v":2737125.0309478501},{"$f":"VLOOKUP($A66,Lookup!$BP$3:$BW$213,8,0)","v":10248.263285863148},{"$f":"VLOOKUP($A66,[5]Lipid_regulators!$A$12:$C$345,3,0)","v":576579.57048520399},10248.263285863148,{"$f":"VLOOKUP($A66,[5]HyperandHeartfailure!$A$12:$C$356,3,0)","v":480998.47976429801},10248.263285863148,{"$f":"VLOOKUP($A66,[5]Nit_Calc_Antianginal!$A$12:$C$345,3,0)","v":631254.24960575998},10248.263285863148,{"$f":"VLOOKUP($A66,[5]Anti_coagulants!$A$11:$C$325,3,0)","v":402909.97002832597},10248.263285863148,{"$f":"VLOOKUP($A66,[5]Beta_Adrenorecepter!$A$11:$C$352,3,0)","v":217878.23023699201},10248.263285863148,{"$f":"VLOOKUP($A66,[5]Anti_platelet!$A$12:$C$335,3,0)","v":195662.859977663},10248.263285863148,{"$f":"VLOOKUP($A66,[5]Diuretics!$A$12:$C$353,3,0)","v":192433.00086717299},10248.263285863148,{"$f":"VLOOKUP($A66,[5]Anti_arrhythmic_drugs!$A$11:$C$271,3,0)","v":17349.899978309899},10248.263285863148,{"$f":"VLOOKUP($A66,[5]Positive_Intotropic!$A$12:$C$297,3,0)","v":13210.3699886501},10248.263285863148,{"$f":"VLOOKUP($A66,[5]anti_fibrinolytic!$A$11:$C$287,3,0)","v":5006.2799974679901},10248.263285863148,{"$f":"VLOOKUP($A66,[5]sympathomimetics!$A$11:$C$223,3,0)","v":3842.1200180053702},10248.263285863148,{"$f":"VLOOKUP($A66,[5]CVD_All_prescriptions!$A$10:$C$392,3,0)","v":2737125.0309478501},{"$f":"VLOOKUP($A66,[5]CVD_All_prescriptions!$A$10:$C$392,2,0)","v":893593}]
["03N","NHS Sheffield",{"$f":"VLOOKUP($A67,[4]CVD_All_prescriptions!$A$10:$D$223,4,0)","v":10178429.859999999},{"$f":"VLOOKUP($A67,Lookup!$BP$3:$BW$213,7,0)","v":61803.355776424069},{"$f":"VLOOKUP($A67,[4]Lipid_regulators!$A$14:$D$227,4,0)","v":2837673.3999999901},61803.355776424069,{"$f":"VLOOKUP($A67,[4]HyperandHeartfailure!$A$13:$D$226,4,0)","v":2204960.7799999998},61803.355776424069,{"$f":"VLOOKUP($A67,[4]Nit_Calc_Antianginal!$A$13:$D$226,4,0)","v":1983178.2},61803.355776424069,{"$f":"VLOOKUP($A67,[4]Anti_coagulants!$A$15:$D$227,4,0)","v":707245.51},61803.355776424069,{"$f":"VLOOKUP($A67,[4]Beta_Adrenorecepter!$A$13:$D$226,4,0)","v":665072.41000001202},61803.355776424069,{"$f":"VLOOKUP($A67,[4]Anti_platelet!$A$13:$D$226,4,0)","v":962976.18000001099},61803.355776424069,{"$f":"VLOOKUP($A67,[4]Diuretics!$A$11:$D$224,4,0)","v":625173.84999999194},61803.355776424069,{"$f":"VLOOKUP($A67,[4]Anti_arrhythmic_drugs!$A$13:$D$226,4,0)","v":65594.719999999797},61803.355776424069,{"$f":"VLOOKUP($A67,[4]Positive_Intotropic!$A$13:$D$226,4,0)","v":59824.949999999699},61803.355776424069,{"$f":"VLOOKUP($A67,[4]anti_fibrinolytic!$A$13:$D$226,4,0)","v":50433.500000000102},61803.355776424069,{"$f":"VLOOKUP($A67,[4]sympathomimetics!$A$11:$D$223,4,0)","v":16296.36},61803.355776424069,{"$f":"VLOOKUP($A67,[4]CVD_All_prescriptions!$A$10:$D$223,4,0)","v":10178429.859999999},{"$f":"VLOOKUP($A67,[4]CVD_All_prescriptions!$A$10:$D$223,3,0)","v":3705520},{"$f":"VLOOKUP($A67,[5]CVD_All_prescriptions!$A$10:$C$392,3,0)","v":9898322.8528985605},{"$f":"VLOOKUP($A67,Lookup!$BP$3:$BW$213,8,0)","v":62401.410708560441},{"$f":"VLOOKUP($A67,[5]Lipid_regulators!$A$12:$C$345,3,0)","v":2262821.3522964702},62401.410708560441,{"$f":"VLOOKUP($A67,[5]HyperandHeartfailure!$A$12:$C$356,3,0)","v":1798324.43044571},62401.410708560441,{"$f":"VLOOKUP($A67,[5]Nit_Calc_Antianginal!$A$12:$C$345,3,0)","v":2040698.7794550101},62401.410708560441,{"$f":"VLOOKUP($A67,[5]Anti_coagulants!$A$11:$C$325,3,0)","v":985134.16833214497},62401.410708560441,{"$f":"VLOOKUP($A67,[5]Beta_Adrenorecepter!$A$11:$C$352,3,0)","v":781290.77042716695},62401.410708560441,{"$f":"VLOOKUP($A67,[5]Anti_platelet!$A$12:$C$335,3,0)","v":1046772.73037831},62401.410708560441,{"$f":"VLOOKUP($A67,[5]Diuretics!$A$12:$C$353,3,0)","v":819731.77159697202},62401.410708560441,{"$f":"VLOOKUP($A67,[5]Anti_arrhythmic_drugs!$A$11:$C$271,3,0)","v":53443.649974912398},62401.410708560441,{"$f":"VLOOKUP($A67,[5]Positive_Intotropic!$A$12:$C$297,3,0)","v":48353.109986700103},62401.410708560441,{"$f":"VLOOKUP($A67,[5]anti_fibrinolytic!$A$11:$C$287,3,0)","v":48692.070002794302},62401.410708560441,{"$f":"VLOOKUP($A67,[5]sympathomimetics!$A$11:$C$223,3,0)","v":13060.0200023651},62401.410708560441,{"$f":"VLOOKUP($A67,[5]CVD_All_prescriptions!$A$10:$C$392,3,0)","v":9898322.8528985605},{"$f":"VLOOKUP($A67,[5]CVD_All_prescriptions!$A$10:$C$392,2,0)","v":3800337}]
["03Q","NHS Vale Of York",{"$f":"VLOOKUP($A68,[4]CVD_All_prescriptions!$A$10:$D$223,4,0)","v":6322859.6699999999},{"$f":"VLOOKUP($A68,Lookup!$BP$3:$BW$213,7,0)","v":34098.962079950674},{"$f":"VLOOKUP($A68,[4]Lipid_regulators!$A$14:$D$227,4,0)","v":1741066.8899999899},34098.962079950674,{"$f":"VLOOKUP($A68,[4]HyperandHeartfailure!$A$13:$D$226,4,0)","v":1381002.15},34098.962079950674,{"$f":"VLOOKUP($A68,[4]Nit_Calc_Antianginal!$A$13:$D$226,4,0)","v":1132694.74},34098.962079950674,{"$f":"VLOOKUP($A68,[4]Anti_coagulants!$A$15:$D$227,4,0)","v":532731.80000000098},34098.962079950674,{"$f":"VLOOKUP($A68,[4]Beta_Adrenorecepter!$A$13:$D$226,4,0)","v":475513.17000000301},34098.962079950674,{"$f":"VLOOKUP($A68,[4]Anti_platelet!$A$13:$D$226,4,0)","v":480224.55999999901},34098.962079950674,{"$f":"VLOOKUP($A68,[4]Diuretics!$A$11:$D$224,4,0)","v":460096.93999999901},34098.962079950674,{"$f":"VLOOKUP($A68,[4]Anti_arrhythmic_drugs!$A$13:$D$226,4,0)","v":41484.959999999897},34098.962079950674,{"$f":"VLOOKUP($A68,[4]Positive_Intotropic!$A$13:$D$226,4,0)","v":33989.67},34098.962079950674,{"$f":"VLOOKUP($A68,[4]anti_fibrinolytic!$A$13:$D$226,4,0)","v":32381.34},34098.962079950674,{"$f":"VLOOKUP($A68,[4]sympathomimetics!$A$11:$D$223,4,0)","v":11673.45},34098.962079950674,{"$f":"VLOOKUP($A68,[4]CVD_All_prescriptions!$A$10:$D$223,4,0)","v":6322859.6699999999},{"$f":"VLOOKUP($A68,[4]CVD_All_prescriptions!$A$10:$D$223,3,0)","v":1729676},{"$f":"VLOOKUP($A68,[5]CVD_All_prescriptions!$A$10:$C$392,3,0)","v":6096985.9741278701},{"$f":"VLOOKUP($A68,Lookup!$BP$3:$BW$213,8,0)","v":35653.581337991985},{"$f":"VLOOKUP($A68,[5]Lipid_regulators!$A$12:$C$345,3,0)","v":1276947.5904544599},35653.581337991985,{"$f":"VLOOKUP($A68,[5]HyperandHeartfailure!$A$12:$C$356,3,0)","v":1064328.0293671801},35653.581337991985,{"$f":"VLOOKUP($A68,[5]Nit_Calc_Antianginal!$A$12:$C$345,3,0)","v":1277929.38003963},35653.581337991985,{"$f":"VLOOKUP($A68,[5]Anti_coagulants!$A$11:$C$325,3,0)","v":692244.32088988996},35653.581337991985,{"$f":"VLOOKUP($A68,[5]Beta_Adrenorecepter!$A$11:$C$352,3,0)","v":585633.13030505204},35653.581337991985,{"$f":"VLOOKUP($A68,[5]Anti_platelet!$A$12:$C$335,3,0)","v":531675.20963500405},35653.581337991985,{"$f":"VLOOKUP($A68,[5]Diuretics!$A$12:$C$353,3,0)","v":563416.18331238604},35653.581337991985,{"$f":"VLOOKUP($A68,[5]Anti_arrhythmic_drugs!$A$11:$C$271,3,0)","v":40094.129998356097},35653.581337991985,{"$f":"VLOOKUP($A68,[5]Positive_Intotropic!$A$12:$C$297,3,0)","v":28807.020023375801},35653.581337991985,{"$f":"VLOOKUP($A68,[5]anti_fibrinolytic!$A$11:$C$287,3,0)","v":21407.739994049101},35653.581337991985,{"$f":"VLOOKUP($A68,[5]sympathomimetics!$A$11:$C$223,3,0)","v":14503.240108489999},35653.581337991985,{"$f":"VLOOKUP($A68,[5]CVD_All_prescriptions!$A$10:$C$392,3,0)","v":6096985.9741278701},{"$f":"VLOOKUP($A68,[5]CVD_All_prescriptions!$A$10:$C$392,2,0)","v":1820413}]
["03R","NHS Wakefield",{"$f":"VLOOKUP($A69,[4]CVD_All_prescriptions!$A$10:$D$223,4,0)","v":7370500.2800000198},{"$f":"VLOOKUP($A69,Lookup!$BP$3:$BW$213,7,0)","v":36633.970799917741},{"$f":"VLOOKUP($A69,[4]Lipid_regulators!$A$14:$D$227,4,0)","v":2175059.87},36633.970799917741,{"$f":"VLOOKUP($A69,[4]HyperandHeartfailure!$A$13:$D$226,4,0)","v":1456018.99},36633.970799917741,{"$f":"VLOOKUP($A69,[4]Nit_Calc_Antianginal!$A$13:$D$226,4,0)","v":1504155.64},36633.970799917741,{"$f":"VLOOKUP($A69,[4]Anti_coagulants!$A$15:$D$227,4,0)","v":504867.99},36633.970799917741,{"$f":"VLOOKUP($A69,[4]Beta_Adrenorecepter!$A$13:$D$226,4,0)","v":557006.77000000305},36633.970799917741,{"$f":"VLOOKUP($A69,[4]Anti_platelet!$A$13:$D$226,4,0)","v":694260.98000000103},36633.970799917741,{"$f":"VLOOKUP($A69,[4]Diuretics!$A$11:$D$224,4,0)","v":385563.69},36633.970799917741,{"$f":"VLOOKUP($A69,[4]Anti_arrhythmic_drugs!$A$13:$D$226,4,0)","v":31310.880000000001},36633.970799917741,{"$f":"VLOOKUP($A69,[4]Positive_Intotropic!$A$13:$D$226,4,0)","v":29062.82},36633.970799917741,{"$f":"VLOOKUP($A69,[4]anti_fibrinolytic!$A$13:$D$226,4,0)","v":30476.16},36633.970799917741,{"$f":"VLOOKUP($A69,[4]sympathomimetics!$A$11:$D$223,4,0)","v":2716.49},36633.970799917741,{"$f":"VLOOKUP($A69,[4]CVD_All_prescriptions!$A$10:$D$223,4,0)","v":7370500.2800000198},{"$f":"VLOOKUP($A69,[4]CVD_All_prescriptions!$A$10:$D$223,3,0)","v":2298562},{"$f":"VLOOKUP($A69,[5]CVD_All_prescriptions!$A$10:$C$392,3,0)","v":7540913.1543127},{"$f":"VLOOKUP($A69,Lookup!$BP$3:$BW$213,8,0)","v":36827.781205017476},{"$f":"VLOOKUP($A69,[5]Lipid_regulators!$A$12:$C$345,3,0)","v":1750936.8619240499},36827.781205017476,{"$f":"VLOOKUP($A69,[5]HyperandHeartfailure!$A$12:$C$356,3,0)","v":1247045.4801300501},36827.781205017476,{"$f":"VLOOKUP($A69,[5]Nit_Calc_Antianginal!$A$12:$C$345,3,0)","v":1811833.23930156},36827.781205017476,{"$f":"VLOOKUP($A69,[5]Anti_coagulants!$A$11:$C$325,3,0)","v":695043.30097709596},36827.781205017476,{"$f":"VLOOKUP($A69,[5]Beta_Adrenorecepter!$A$11:$C$352,3,0)","v":652991.37024845195},36827.781205017476,{"$f":"VLOOKUP($A69,[5]Anti_platelet!$A$12:$C$335,3,0)","v":776763.82938984002},36827.781205017476,{"$f":"VLOOKUP($A69,[5]Diuretics!$A$12:$C$353,3,0)","v":518070.632383905},36827.781205017476,{"$f":"VLOOKUP($A69,[5]Anti_arrhythmic_drugs!$A$11:$C$271,3,0)","v":34120.569922208801},36827.781205017476,{"$f":"VLOOKUP($A69,[5]Positive_Intotropic!$A$12:$C$297,3,0)","v":25647.249977469401},36827.781205017476,{"$f":"VLOOKUP($A69,[5]anti_fibrinolytic!$A$11:$C$287,3,0)","v":24159.720010757399},36827.781205017476,{"$f":"VLOOKUP($A69,[5]sympathomimetics!$A$11:$C$223,3,0)","v":4300.9000473022497},36827.781205017476,{"$f":"VLOOKUP($A69,[5]CVD_All_prescriptions!$A$10:$C$392,3,0)","v":7540913.1543127},{"$f":"VLOOKUP($A69,[5]CVD_All_prescriptions!$A$10:$C$392,2,0)","v":2323362}]
["03T","NHS Lincolnshire East",{"$f":"VLOOKUP($A70,[4]CVD_All_prescriptions!$A$10:$D$223,4,0)","v":6408300.1800000202},{"$f":"VLOOKUP($A70,Lookup!$BP$3:$BW$213,7,0)","v":19598.269168553867},{"$f":"VLOOKUP($A70,[4]Lipid_regulators!$A$14:$D$227,4,0)","v":2031736.95},{"$f":"D70","v":19598.269168553867},{"$f":"VLOOKUP($A70,[4]HyperandHeartfailure!$A$13:$D$226,4,0)","v":1439191.68},{"$f":"D70","v":19598.269168553867},{"$f":"VLOOKUP($A70,[4]Nit_Calc_Antianginal!$A$13:$D$226,4,0)","v":1139526.6299999999},{"$f":"D70","v":19598.269168553867},{"$f":"VLOOKUP($A70,[4]Anti_coagulants!$A$15:$D$227,4,0)","v":439516.53},{"$f":"D70","v":19598.269168553867},{"$f":"VLOOKUP($A70,[4]Beta_Adrenorecepter!$A$13:$D$226,4,0)","v":434693.84000000299},{"$f":"D70","v":19598.269168553867},{"$f":"VLOOKUP($A70,[4]Anti_platelet!$A$13:$D$226,4,0)","v":445876.760000001},{"$f":"D70","v":19598.269168553867},{"$f":"VLOOKUP($A70,[4]Diuretics!$A$11:$D$224,4,0)","v":368270.43999999901},{"$f":"P70","v":19598.269168553867},{"$f":"VLOOKUP($A70,[4]Anti_arrhythmic_drugs!$A$13:$D$226,4,0)","v":53000.1599999998},{"$f":"P70","v":19598.269168553867},{"$f":"VLOOKUP($A70,[4]Positive_Intotropic!$A$13:$D$226,4,0)","v":32914.21},{"$f":"P70","v":19598.269168553867},{"$f":"VLOOKUP($A70,[4]anti_fibrinolytic!$A$13:$D$226,4,0)","v":17329.64},{"$f":"V70","v":19598.269168553867},{"$f":"VLOOKUP($A70,[4]sympathomimetics!$A$11:$D$223,4,0)","v":6243.34},{"$f":"X70","v":19598.269168553867},{"$f":"VLOOKUP($A70,[4]CVD_All_prescriptions!$A$10:$D$223,4,0)","v":6408300.1800000202},{"$f":"VLOOKUP($A70,[4]CVD_All_prescriptions!$A$10:$D$223,3,0)","v":2132855},{"$f":"VLOOKUP($A70,[5]CVD_All_prescriptions!$A$10:$C$392,3,0)","v":6157231.5203178702},{"$f":"VLOOKUP($A70,Lookup!$BP$3:$BW$213,8,0)","v":19695.891297314785},{"$f":"VLOOKUP($A70,[5]Lipid_regulators!$A$12:$C$345,3,0)","v":1499255.82932931},{"$f":"AD70","v":19695.891297314785},{"$f":"VLOOKUP($A70,[5]HyperandHeartfailure!$A$12:$C$356,3,0)","v":1182233.6099566501},{"$f":"AD70","v":19695.891297314785},{"$f":"VLOOKUP($A70,[5]Nit_Calc_Antianginal!$A$12:$C$345,3,0)","v":1250501.07951031},{"$f":"AD70","v":19695.891297314785},{"$f":"VLOOKUP($A70,[5]Anti_coagulants!$A$11:$C$325,3,0)","v":647768.39989101898},{"$f":"AD70","v":19695.891297314785},{"$f":"VLOOKUP($A70,[5]Beta_Adrenorecepter!$A$11:$C$352,3,0)","v":497884.93003952497},{"$f":"AD70","v":19695.891297314785},{"$f":"VLOOKUP($A70,[5]Anti_platelet!$A$12:$C$335,3,0)","v":485791.43997298199},{"$f":"AD70","v":19695.891297314785},{"$f":"VLOOKUP($A70,[5]Diuretics!$A$12:$C$353,3,0)","v":494797.77161130297},{"$f":"AD70","v":19695.891297314785},{"$f":"VLOOKUP($A70,[5]Anti_arrhythmic_drugs!$A$11:$C$271,3,0)","v":49215.179984629198},{"$f":"AD70","v":19695.891297314785},{"$f":"VLOOKUP($A70,[5]Positive_Intotropic!$A$12:$C$297,3,0)","v":26693.709980964701},{"$f":"AT70","v":19695.891297314785},{"$f":"VLOOKUP($A70,[5]anti_fibrinolytic!$A$11:$C$287,3,0)","v":13433.8999857903},{"$f":"AP70","v":19695.891297314785},{"$f":"VLOOKUP($A70,[5]sympathomimetics!$A$11:$C$223,3,0)","v":9655.6700553894007},{"$f":"AP70","v":19695.891297314785},{"$f":"VLOOKUP($A70,[5]CVD_All_prescriptions!$A$10:$C$392,3,0)","v":6157231.5203178702},{"$f":"VLOOKUP($A70,[5]CVD_All_prescriptions!$A$10:$C$392,2,0)","v":2196421}]
["03V","NHS Corby",{"$f":"VLOOKUP($A71,[4]CVD_All_prescriptions!$A$10:$D$223,4,0)","v":1052398.2},{"$f":"VLOOKUP($A71,Lookup!$BP$3:$BW$213,7,0)","v":8169.4090382387012},{"$f":"VLOOKUP($A71,[4]Lipid_regulators!$A$14:$D$227,4,0)","v":270003.40999999997},8169.4090382387012,{"$f":"VLOOKUP($A71,[4]HyperandHeartfailure!$A$13:$D$226,4,0)","v":209240.73},8169.4090382387012,{"$f":"VLOOKUP($A71,[4]Nit_Calc_Antianginal!$A$13:$D$226,4,0)","v":189944.74},8169.4090382387012,{"$f":"VLOOKUP($A71,[4]Anti_coagulants!$A$15:$D$227,4,0)","v":119342.93},8169.4090382387012,{"$f":"VLOOKUP($A71,[4]Beta_Adrenorecepter!$A$13:$D$226,4,0)","v":86258.399999999703},8169.4090382387012,{"$f":"VLOOKUP($A71,[4]Anti_platelet!$A$13:$D$226,4,0)","v":85105.579999999798},8169.4090382387012,{"$f":"VLOOKUP($A71,[4]Diuretics!$A$11:$D$224,4,0)","v":68376.19},8169.4090382387012,{"$f":"VLOOKUP($A71,[4]Anti_arrhythmic_drugs!$A$13:$D$226,4,0)","v":13045.95},8169.4090382387012,{"$f":"VLOOKUP($A71,[4]Positive_Intotropic!$A$13:$D$226,4,0)","v":4433.79},8169.4090382387012,{"$f":"VLOOKUP($A71,[4]anti_fibrinolytic!$A$13:$D$226,4,0)","v":6584.13},8169.4090382387012,{"$f":"VLOOKUP($A71,[4]sympathomimetics!$A$11:$D$223,4,0)","v":62.35},8169.4090382387012,{"$f":"VLOOKUP($A71,[4]CVD_All_prescriptions!$A$10:$D$223,4,0)","v":1052398.2},{"$f":"VLOOKUP($A71,[4]CVD_All_prescriptions!$A$10:$D$223,3,0)","v":397597},{"$f":"VLOOKUP($A71,[5]CVD_All_prescriptions!$A$10:$C$392,3,0)","v":1035898.07993703},{"$f":"VLOOKUP($A71,Lookup!$BP$3:$BW$213,8,0)","v":8364.6581691772881},{"$f":"VLOOKUP($A71,[5]Lipid_regulators!$A$12:$C$345,3,0)","v":210902.52007019499},8364.6581691772881,{"$f":"VLOOKUP($A71,[5]HyperandHeartfailure!$A$12:$C$356,3,0)","v":171354.76980201199},8364.6581691772881,{"$f":"VLOOKUP($A71,[5]Nit_Calc_Antianginal!$A$12:$C$345,3,0)","v":192601.84004193501},8364.6581691772881,{"$f":"VLOOKUP($A71,[5]Anti_coagulants!$A$11:$C$325,3,0)","v":132040.130011678},8364.6581691772881,{"$f":"VLOOKUP($A71,[5]Beta_Adrenorecepter!$A$11:$C$352,3,0)","v":113578.44992345601},8364.6581691772881,{"$f":"VLOOKUP($A71,[5]Anti_platelet!$A$12:$C$335,3,0)","v":90805.489990830407},8364.6581691772881,{"$f":"VLOOKUP($A71,[5]Diuretics!$A$12:$C$353,3,0)","v":101414.62022258301},8364.6581691772881,{"$f":"VLOOKUP($A71,[5]Anti_arrhythmic_drugs!$A$11:$C$271,3,0)","v":6872.8899847269104},8364.6581691772881,{"$f":"VLOOKUP($A71,[5]Positive_Intotropic!$A$12:$C$297,3,0)","v":3457.8599997758902},8364.6581691772881,{"$f":"VLOOKUP($A71,[5]anti_fibrinolytic!$A$11:$C$287,3,0)","v":7223.4299271106702},8364.6581691772881,{"$f":"VLOOKUP($A71,[5]sympathomimetics!$A$11:$C$223,3,0)","v":5646.0799627304104},8364.6581691772881,{"$f":"VLOOKUP($A71,[5]CVD_All_prescriptions!$A$10:$C$392,3,0)","v":1035898.07993703},{"$f":"VLOOKUP($A71,[5]CVD_All_prescriptions!$A$10:$C$392,2,0)","v":410310}]
["03W","NHS East Leicestershire and Rutland",{"$f":"VLOOKUP($A72,[4]CVD_All_prescriptions!$A$10:$D$223,4,0)","v":6036838.7500000102},{"$f":"VLOOKUP($A72,Lookup!$BP$3:$BW$213,7,0)","v":31421.80235433772},{"$f":"VLOOKUP($A72,[4]Lipid_regulators!$A$14:$D$227,4,0)","v":1800863.8399999801},31421.80235433772,{"$f":"VLOOKUP($A72,[4]HyperandHeartfailure!$A$13:$D$226,4,0)","v":1525178.81},31421.80235433772,{"$f":"VLOOKUP($A72,[4]Nit_Calc_Antianginal!$A$13:$D$226,4,0)","v":973091.53000000096},31421.80235433772,{"$f":"VLOOKUP($A72,[4]Anti_coagulants!$A$15:$D$227,4,0)","v":451589.69999999902},31421.80235433772,{"$f":"VLOOKUP($A72,[4]Beta_Adrenorecepter!$A$13:$D$226,4,0)","v":442870.63000000198},31421.80235433772,{"$f":"VLOOKUP($A72,[4]Anti_platelet!$A$13:$D$226,4,0)","v":386475.26999999798},31421.80235433772,{"$f":"VLOOKUP($A72,[4]Diuretics!$A$11:$D$224,4,0)","v":332730.02999999898},31421.80235433772,{"$f":"VLOOKUP($A72,[4]Anti_arrhythmic_drugs!$A$13:$D$226,4,0)","v":47131.859999999899},31421.80235433772,{"$f":"VLOOKUP($A72,[4]Positive_Intotropic!$A$13:$D$226,4,0)","v":31100.819999999901},31421.80235433772,{"$f":"VLOOKUP($A72,[4]anti_fibrinolytic!$A$13:$D$226,4,0)","v":23298.58},31421.80235433772,{"$f":"VLOOKUP($A72,[4]sympathomimetics!$A$11:$D$223,4,0)","v":22507.68},31421.80235433772,{"$f":"VLOOKUP($A72,[4]CVD_All_prescriptions!$A$10:$D$223,4,0)","v":6036838.7500000102},{"$f":"VLOOKUP($A72,[4]CVD_All_prescriptions!$A$10:$D$223,3,0)","v":1822912},{"$f":"VLOOKUP($A72,[5]CVD_All_prescriptions!$A$10:$C$392,3,0)","v":5899046.9923126297},{"$f":"VLOOKUP($A72,Lookup!$BP$3:$BW$213,8,0)","v":31799.485606884955},{"$f":"VLOOKUP($A72,[5]Lipid_regulators!$A$12:$C$345,3,0)","v":1478734.9607929101},31799.485606884955,{"$f":"VLOOKUP($A72,[5]HyperandHeartfailure!$A$12:$C$356,3,0)","v":1219673.8600264399},31799.485606884955,{"$f":"VLOOKUP($A72,[5]Nit_Calc_Antianginal!$A$12:$C$345,3,0)","v":1117499.5291980701},31799.485606884955,{"$f":"VLOOKUP($A72,[5]Anti_coagulants!$A$11:$C$325,3,0)","v":566755.26108794694},31799.485606884955,{"$f":"VLOOKUP($A72,[5]Beta_Adrenorecepter!$A$11:$C$352,3,0)","v":509319.61058225099},31799.485606884955,{"$f":"VLOOKUP($A72,[5]Anti_platelet!$A$12:$C$335,3,0)","v":428155.48954486498},31799.485606884955,{"$f":"VLOOKUP($A72,[5]Diuretics!$A$12:$C$353,3,0)","v":458336.31109483499},31799.485606884955,{"$f":"VLOOKUP($A72,[5]Anti_arrhythmic_drugs!$A$11:$C$271,3,0)","v":49786.669837653601},31799.485606884955,{"$f":"VLOOKUP($A72,[5]Positive_Intotropic!$A$12:$C$297,3,0)","v":25677.8599761724},31799.485606884955,{"$f":"VLOOKUP($A72,[5]anti_fibrinolytic!$A$11:$C$287,3,0)","v":18250.8500339985},31799.485606884955,{"$f":"VLOOKUP($A72,[5]sympathomimetics!$A$11:$C$223,3,0)","v":26856.5901374817},31799.485606884955,{"$f":"VLOOKUP($A72,[5]CVD_All_prescriptions!$A$10:$C$392,3,0)","v":5899046.9923126297},{"$f":"VLOOKUP($A72,[5]CVD_All_prescriptions!$A$10:$C$392,2,0)","v":1881403}]
["03X","NHS Erewash",{"$f":"VLOOKUP($A73,[4]CVD_All_prescriptions!$A$10:$D$223,4,0)","v":1738401.58},{"$f":"VLOOKUP($A73,Lookup!$BP$3:$BW$213,7,0)","v":9587.5},{"$f":"VLOOKUP($A73,[4]Lipid_regulators!$A$14:$D$227,4,0)","v":416035.87},9587.5,{"$f":"VLOOKUP($A73,[4]HyperandHeartfailure!$A$13:$D$226,4,0)","v":431784.71},9587.5,{"$f":"VLOOKUP($A73,[4]Nit_Calc_Antianginal!$A$13:$D$226,4,0)","v":392877.03},9587.5,{"$f":"VLOOKUP($A73,[4]Anti_coagulants!$A$15:$D$227,4,0)","v":135880.99},9587.5,{"$f":"VLOOKUP($A73,[4]Beta_Adrenorecepter!$A$13:$D$226,4,0)","v":117344.42},9587.5,{"$f":"VLOOKUP($A73,[4]Anti_platelet!$A$13:$D$226,4,0)","v":118851.12},9587.5,{"$f":"VLOOKUP($A73,[4]Diuretics!$A$11:$D$224,4,0)","v":94540.19},9587.5,{"$f":"VLOOKUP($A73,[4]Anti_arrhythmic_drugs!$A$13:$D$226,4,0)","v":11173.56},9587.5,{"$f":"VLOOKUP($A73,[4]Positive_Intotropic!$A$13:$D$226,4,0)","v":11985.14},9587.5,{"$f":"VLOOKUP($A73,[4]anti_fibrinolytic!$A$13:$D$226,4,0)","v":7468.8499999999904},9587.5,{"$f":"VLOOKUP($A73,[4]sympathomimetics!$A$11:$D$223,4,0)","v":459.7},9587.5,{"$f":"VLOOKUP($A73,[4]CVD_All_prescriptions!$A$10:$D$223,4,0)","v":1738401.58},{"$f":"VLOOKUP($A73,[4]CVD_All_prescriptions!$A$10:$D$223,3,0)","v":429060},{"$f":"VLOOKUP($A73,[5]CVD_All_prescriptions!$A$10:$C$392,3,0)","v":1694732.78969695},{"$f":"VLOOKUP($A73,Lookup!$BP$3:$BW$213,8,0)","v":9705.7999999999993},{"$f":"VLOOKUP($A73,[5]Lipid_regulators!$A$12:$C$345,3,0)","v":348099.88939225703},9705.7999999999993,{"$f":"VLOOKUP($A73,[5]HyperandHeartfailure!$A$12:$C$356,3,0)","v":328168.07020786399},9705.7999999999993,{"$f":"VLOOKUP($A73,[5]Nit_Calc_Antianginal!$A$12:$C$345,3,0)","v":428523.869455993},9705.7999999999993,{"$f":"VLOOKUP($A73,[5]Anti_coagulants!$A$11:$C$325,3,0)","v":181860.83007733501},9705.7999999999993,{"$f":"VLOOKUP($A73,[5]Beta_Adrenorecepter!$A$11:$C$352,3,0)","v":142622.710329592},9705.7999999999993,{"$f":"VLOOKUP($A73,[5]Anti_platelet!$A$12:$C$335,3,0)","v":116871.27003973701},9705.7999999999993,{"$f":"VLOOKUP($A73,[5]Diuretics!$A$12:$C$353,3,0)","v":123077.55021387299},9705.7999999999993,{"$f":"VLOOKUP($A73,[5]Anti_arrhythmic_drugs!$A$11:$C$271,3,0)","v":9616.2599847912807},9705.7999999999993,{"$f":"VLOOKUP($A73,[5]Positive_Intotropic!$A$12:$C$297,3,0)","v":9464.3899811506308},9705.7999999999993,{"$f":"VLOOKUP($A73,[5]anti_fibrinolytic!$A$11:$C$287,3,0)","v":6089.8500168323499},9705.7999999999993,{"$f":"VLOOKUP($A73,[5]sympathomimetics!$A$11:$C$223,3,0)","v":338.099997520447},9705.7999999999993,{"$f":"VLOOKUP($A73,[5]CVD_All_prescriptions!$A$10:$C$392,3,0)","v":1694732.78969695},{"$f":"VLOOKUP($A73,[5]CVD_All_prescriptions!$A$10:$C$392,2,0)","v":432381}]
["03Y","NHS Hardwick",{"$f":"VLOOKUP($A74,[4]CVD_All_prescriptions!$A$10:$D$223,4,0)","v":2021048.07},{"$f":"VLOOKUP($A74,Lookup!$BP$3:$BW$213,7,0)","v":9439.7307018352858},{"$f":"VLOOKUP($A74,[4]Lipid_regulators!$A$14:$D$227,4,0)","v":376555.25},9439.7307018352858,{"$f":"VLOOKUP($A74,[4]HyperandHeartfailure!$A$13:$D$226,4,0)","v":497606.29},9439.7307018352858,{"$f":"VLOOKUP($A74,[4]Nit_Calc_Antianginal!$A$13:$D$226,4,0)","v":476382.48},9439.7307018352858,{"$f":"VLOOKUP($A74,[4]Anti_coagulants!$A$15:$D$227,4,0)","v":173155.20000000001},9439.7307018352858,{"$f":"VLOOKUP($A74,[4]Beta_Adrenorecepter!$A$13:$D$226,4,0)","v":155897.24},9439.7307018352858,{"$f":"VLOOKUP($A74,[4]Anti_platelet!$A$13:$D$226,4,0)","v":173314.02999999901},9439.7307018352858,{"$f":"VLOOKUP($A74,[4]Diuretics!$A$11:$D$224,4,0)","v":130074.38},9439.7307018352858,{"$f":"VLOOKUP($A74,[4]Anti_arrhythmic_drugs!$A$13:$D$226,4,0)","v":15774.05},9439.7307018352858,{"$f":"VLOOKUP($A74,[4]Positive_Intotropic!$A$13:$D$226,4,0)","v":11827.33},9439.7307018352858,{"$f":"VLOOKUP($A74,[4]anti_fibrinolytic!$A$13:$D$226,4,0)","v":8901.82},9439.7307018352858,{"$f":"VLOOKUP($A74,[4]sympathomimetics!$A$11:$D$223,4,0)","v":1560},9439.7307018352858,{"$f":"VLOOKUP($A74,[4]CVD_All_prescriptions!$A$10:$D$223,4,0)","v":2021048.07},{"$f":"VLOOKUP($A74,[4]CVD_All_prescriptions!$A$10:$D$223,3,0)","v":818833},{"$f":"VLOOKUP($A74,[5]CVD_All_prescriptions!$A$10:$C$392,3,0)","v":2045505.1896069499},{"$f":"VLOOKUP($A74,Lookup!$BP$3:$BW$213,8,0)","v":9422.8534538411877},{"$f":"VLOOKUP($A74,[5]Lipid_regulators!$A$12:$C$345,3,0)","v":326176.879653215},9422.8534538411877,{"$f":"VLOOKUP($A74,[5]HyperandHeartfailure!$A$12:$C$356,3,0)","v":378053.06994561898},9422.8534538411877,{"$f":"VLOOKUP($A74,[5]Nit_Calc_Antianginal!$A$12:$C$345,3,0)","v":550869.47922378802},9422.8534538411877,{"$f":"VLOOKUP($A74,[5]Anti_coagulants!$A$11:$C$325,3,0)","v":202990.38041371101},9422.8534538411877,{"$f":"VLOOKUP($A74,[5]Beta_Adrenorecepter!$A$11:$C$352,3,0)","v":198135.789898872},9422.8534538411877,{"$f":"VLOOKUP($A74,[5]Anti_platelet!$A$12:$C$335,3,0)","v":186326.30019789899},9422.8534538411877,{"$f":"VLOOKUP($A74,[5]Diuretics!$A$12:$C$353,3,0)","v":166873.33018097299},9422.8534538411877,{"$f":"VLOOKUP($A74,[5]Anti_arrhythmic_drugs!$A$11:$C$271,3,0)","v":15169.510009616601},9422.8534538411877,{"$f":"VLOOKUP($A74,[5]Positive_Intotropic!$A$12:$C$297,3,0)","v":9305.8900045156497},9422.8534538411877,{"$f":"VLOOKUP($A74,[5]anti_fibrinolytic!$A$11:$C$287,3,0)","v":7505.3599864244497},9422.8534538411877,{"$f":"VLOOKUP($A74,[5]sympathomimetics!$A$11:$C$223,3,0)","v":4099.2000923156702},9422.8534538411877,{"$f":"VLOOKUP($A74,[5]CVD_All_prescriptions!$A$10:$C$392,3,0)","v":2045505.1896069499},{"$f":"VLOOKUP($A74,[5]CVD_All_prescriptions!$A$10:$C$392,2,0)","v":826203}]
["04C","NHS Leicester City",{"$f":"VLOOKUP($A75,[4]CVD_All_prescriptions!$A$10:$D$223,4,0)","v":5404941.1900000097},{"$f":"VLOOKUP($A75,Lookup!$BP$3:$BW$213,7,0)","v":48616.778006166496},{"$f":"VLOOKUP($A75,[4]Lipid_regulators!$A$14:$D$227,4,0)","v":1665209.6300000099},48616.778006166496,{"$f":"VLOOKUP($A75,[4]HyperandHeartfailure!$A$13:$D$226,4,0)","v":1293470.92},48616.778006166496,{"$f":"VLOOKUP($A75,[4]Nit_Calc_Antianginal!$A$13:$D$226,4,0)","v":943332.33999999799},48616.778006166496,{"$f":"VLOOKUP($A75,[4]Anti_coagulants!$A$15:$D$227,4,0)","v":313551.24999999901},48616.778006166496,{"$f":"VLOOKUP($A75,[4]Beta_Adrenorecepter!$A$13:$D$226,4,0)","v":368693.42000000703},48616.778006166496,{"$f":"VLOOKUP($A75,[4]Anti_platelet!$A$13:$D$226,4,0)","v":396465.86999999802},48616.778006166496,{"$f":"VLOOKUP($A75,[4]Diuretics!$A$11:$D$224,4,0)","v":305650.20999999897},48616.778006166496,{"$f":"VLOOKUP($A75,[4]Anti_arrhythmic_drugs!$A$13:$D$226,4,0)","v":36450.989999999903},48616.778006166496,{"$f":"VLOOKUP($A75,[4]Positive_Intotropic!$A$13:$D$226,4,0)","v":20837.679999999898},48616.778006166496,{"$f":"VLOOKUP($A75,[4]anti_fibrinolytic!$A$13:$D$226,4,0)","v":36185.08},48616.778006166496,{"$f":"VLOOKUP($A75,[4]sympathomimetics!$A$11:$D$223,4,0)","v":25093.8},48616.778006166496,{"$f":"VLOOKUP($A75,[4]CVD_All_prescriptions!$A$10:$D$223,4,0)","v":5404941.1900000097},{"$f":"VLOOKUP($A75,[4]CVD_All_prescriptions!$A$10:$D$223,3,0)","v":1837328},{"$f":"VLOOKUP($A75,[5]CVD_All_prescriptions!$A$10:$C$392,3,0)","v":5101161.4642454302},{"$f":"VLOOKUP($A75,Lookup!$BP$3:$BW$213,8,0)","v":48402.87769784173},{"$f":"VLOOKUP($A75,[5]Lipid_regulators!$A$12:$C$345,3,0)","v":1239717.49175316},48402.87769784173,{"$f":"VLOOKUP($A75,[5]HyperandHeartfailure!$A$12:$C$356,3,0)","v":1045290.19067908},48402.87769784173,{"$f":"VLOOKUP($A75,[5]Nit_Calc_Antianginal!$A$12:$C$345,3,0)","v":1054352.7092356801},48402.87769784173,{"$f":"VLOOKUP($A75,[5]Anti_coagulants!$A$11:$C$325,3,0)","v":399657.22135337401},48402.87769784173,{"$f":"VLOOKUP($A75,[5]Beta_Adrenorecepter!$A$11:$C$352,3,0)","v":421964.24011804198},48402.87769784173,{"$f":"VLOOKUP($A75,[5]Anti_platelet!$A$12:$C$335,3,0)","v":453618.49005410803},48402.87769784173,{"$f":"VLOOKUP($A75,[5]Diuretics!$A$12:$C$353,3,0)","v":386129.48098100699},48402.87769784173,{"$f":"VLOOKUP($A75,[5]Anti_arrhythmic_drugs!$A$11:$C$271,3,0)","v":30506.450147807602},48402.87769784173,{"$f":"VLOOKUP($A75,[5]Positive_Intotropic!$A$12:$C$297,3,0)","v":17719.4099620581},48402.87769784173,{"$f":"VLOOKUP($A75,[5]anti_fibrinolytic!$A$11:$C$287,3,0)","v":28403.1099143028},48402.87769784173,{"$f":"VLOOKUP($A75,[5]sympathomimetics!$A$11:$C$223,3,0)","v":23802.670046806299},48402.87769784173,{"$f":"VLOOKUP($A75,[5]CVD_All_prescriptions!$A$10:$C$392,3,0)","v":5101161.4642454302},{"$f":"VLOOKUP($A75,[5]CVD_All_prescriptions!$A$10:$C$392,2,0)","v":1906696}]
["04D","NHS Lincolnshire West",{"$f":"VLOOKUP($A76,[4]CVD_All_prescriptions!$A$10:$D$223,4,0)","v":4541505.1100000096},{"$f":"VLOOKUP($A76,Lookup!$BP$3:$BW$213,7,0)","v":22731.262525050101},{"$f":"VLOOKUP($A76,[4]Lipid_regulators!$A$14:$D$227,4,0)","v":1504905.5699999901},22731.262525050101,{"$f":"VLOOKUP($A76,[4]HyperandHeartfailure!$A$13:$D$226,4,0)","v":1066024.54},22731.262525050101,{"$f":"VLOOKUP($A76,[4]Nit_Calc_Antianginal!$A$13:$D$226,4,0)","v":742950.72},22731.262525050101,{"$f":"VLOOKUP($A76,[4]Anti_coagulants!$A$15:$D$227,4,0)","v":273425.68},22731.262525050101,{"$f":"VLOOKUP($A76,[4]Beta_Adrenorecepter!$A$13:$D$226,4,0)","v":288536.580000002},22731.262525050101,{"$f":"VLOOKUP($A76,[4]Anti_platelet!$A$13:$D$226,4,0)","v":329378.799999999},22731.262525050101,{"$f":"VLOOKUP($A76,[4]Diuretics!$A$11:$D$224,4,0)","v":254404.040000001},22731.262525050101,{"$f":"VLOOKUP($A76,[4]Anti_arrhythmic_drugs!$A$13:$D$226,4,0)","v":31313.529999999901},22731.262525050101,{"$f":"VLOOKUP($A76,[4]Positive_Intotropic!$A$13:$D$226,4,0)","v":23474.03},22731.262525050101,{"$f":"VLOOKUP($A76,[4]anti_fibrinolytic!$A$13:$D$226,4,0)","v":17774.330000000002},22731.262525050101,{"$f":"VLOOKUP($A76,[4]sympathomimetics!$A$11:$D$223,4,0)","v":9317.2900000000009},22731.262525050101,{"$f":"VLOOKUP($A76,[4]CVD_All_prescriptions!$A$10:$D$223,4,0)","v":4541505.1100000096},{"$f":"VLOOKUP($A76,[4]CVD_All_prescriptions!$A$10:$D$223,3,0)","v":1544605},{"$f":"VLOOKUP($A76,[5]CVD_All_prescriptions!$A$10:$C$392,3,0)","v":4319106.3925375203},{"$f":"VLOOKUP($A76,Lookup!$BP$3:$BW$213,8,0)","v":23020.741482965932},{"$f":"VLOOKUP($A76,[5]Lipid_regulators!$A$12:$C$345,3,0)","v":1123496.94175558},23020.741482965932,{"$f":"VLOOKUP($A76,[5]HyperandHeartfailure!$A$12:$C$356,3,0)","v":839398.15986150503},23020.741482965932,{"$f":"VLOOKUP($A76,[5]Nit_Calc_Antianginal!$A$12:$C$345,3,0)","v":791024.809104532},23020.741482965932,{"$f":"VLOOKUP($A76,[5]Anti_coagulants!$A$11:$C$325,3,0)","v":448523.33989494998},23020.741482965932,{"$f":"VLOOKUP($A76,[5]Beta_Adrenorecepter!$A$11:$C$352,3,0)","v":342178.230238244},23020.741482965932,{"$f":"VLOOKUP($A76,[5]Anti_platelet!$A$12:$C$335,3,0)","v":340389.12018272298},23020.741482965932,{"$f":"VLOOKUP($A76,[5]Diuretics!$A$12:$C$353,3,0)","v":351938.38155977399},23020.741482965932,{"$f":"VLOOKUP($A76,[5]Anti_arrhythmic_drugs!$A$11:$C$271,3,0)","v":27209.080017983899},23020.741482965932,{"$f":"VLOOKUP($A76,[5]Positive_Intotropic!$A$12:$C$297,3,0)","v":19378.339990407199},23020.741482965932,{"$f":"VLOOKUP($A76,[5]anti_fibrinolytic!$A$11:$C$287,3,0)","v":21499.779902219801},23020.741482965932,{"$f":"VLOOKUP($A76,[5]sympathomimetics!$A$11:$C$223,3,0)","v":14070.2100296021},23020.741482965932,{"$f":"VLOOKUP($A76,[5]CVD_All_prescriptions!$A$10:$C$392,3,0)","v":4319106.3925375203},{"$f":"VLOOKUP($A76,[5]CVD_All_prescriptions!$A$10:$C$392,2,0)","v":1596987}]
["04E","NHS Mansfield and Ashfield",{"$f":"VLOOKUP($A77,[4]CVD_All_prescriptions!$A$10:$D$223,4,0)","v":3217433.1899999902},{"$f":"VLOOKUP($A77,Lookup!$BP$3:$BW$213,7,0)","v":18279.405940594061},{"$f":"VLOOKUP($A77,[4]Lipid_regulators!$A$14:$D$227,4,0)","v":820429.52},18279.405940594061,{"$f":"VLOOKUP($A77,[4]HyperandHeartfailure!$A$13:$D$226,4,0)","v":670864.54},18279.405940594061,{"$f":"VLOOKUP($A77,[4]Nit_Calc_Antianginal!$A$13:$D$226,4,0)","v":691755.43999999901},18279.405940594061,{"$f":"VLOOKUP($A77,[4]Anti_coagulants!$A$15:$D$227,4,0)","v":255797.21},18279.405940594061,{"$f":"VLOOKUP($A77,[4]Beta_Adrenorecepter!$A$13:$D$226,4,0)","v":275125.28999999899},18279.405940594061,{"$f":"VLOOKUP($A77,[4]Anti_platelet!$A$13:$D$226,4,0)","v":249579.559999997},18279.405940594061,{"$f":"VLOOKUP($A77,[4]Diuretics!$A$11:$D$224,4,0)","v":202143.73},18279.405940594061,{"$f":"VLOOKUP($A77,[4]Anti_arrhythmic_drugs!$A$13:$D$226,4,0)","v":22595.66},18279.405940594061,{"$f":"VLOOKUP($A77,[4]Positive_Intotropic!$A$13:$D$226,4,0)","v":16319.98},18279.405940594061,{"$f":"VLOOKUP($A77,[4]anti_fibrinolytic!$A$13:$D$226,4,0)","v":10907.78},18279.405940594061,{"$f":"VLOOKUP($A77,[4]sympathomimetics!$A$11:$D$223,4,0)","v":1914.48},18279.405940594061,{"$f":"VLOOKUP($A77,[4]CVD_All_prescriptions!$A$10:$D$223,4,0)","v":3217433.1899999902},{"$f":"VLOOKUP($A77,[4]CVD_All_prescriptions!$A$10:$D$223,3,0)","v":1386799},{"$f":"VLOOKUP($A77,[5]CVD_All_prescriptions!$A$10:$C$392,3,0)","v":3167537.4224317102},{"$f":"VLOOKUP($A77,Lookup!$BP$3:$BW$213,8,0)","v":18426.435643564357},{"$f":"VLOOKUP($A77,[5]Lipid_regulators!$A$12:$C$345,3,0)","v":670249.02102005505},18426.435643564357,{"$f":"VLOOKUP($A77,[5]HyperandHeartfailure!$A$12:$C$356,3,0)","v":558681.53034117795},18426.435643564357,{"$f":"VLOOKUP($A77,[5]Nit_Calc_Antianginal!$A$12:$C$345,3,0)","v":686345.42946022702},18426.435643564357,{"$f":"VLOOKUP($A77,[5]Anti_coagulants!$A$11:$C$325,3,0)","v":330750.75014099502},18426.435643564357,{"$f":"VLOOKUP($A77,[5]Beta_Adrenorecepter!$A$11:$C$352,3,0)","v":357897.47027984302},18426.435643564357,{"$f":"VLOOKUP($A77,[5]Anti_platelet!$A$12:$C$335,3,0)","v":257382.75020999799},18426.435643564357,{"$f":"VLOOKUP($A77,[5]Diuretics!$A$12:$C$353,3,0)","v":264677.95097004302},18426.435643564357,{"$f":"VLOOKUP($A77,[5]Anti_arrhythmic_drugs!$A$11:$C$271,3,0)","v":17945.1599985957},18426.435643564357,{"$f":"VLOOKUP($A77,[5]Positive_Intotropic!$A$12:$C$297,3,0)","v":13275.4899852574},18426.435643564357,{"$f":"VLOOKUP($A77,[5]anti_fibrinolytic!$A$11:$C$287,3,0)","v":8981.1200264692307},18426.435643564357,{"$f":"VLOOKUP($A77,[5]sympathomimetics!$A$11:$C$223,3,0)","v":1350.74999904633},18426.435643564357,{"$f":"VLOOKUP($A77,[5]CVD_All_prescriptions!$A$10:$C$392,3,0)","v":3167537.4224317102},{"$f":"VLOOKUP($A77,[5]CVD_All_prescriptions!$A$10:$C$392,2,0)","v":1389434}]
["04F","NHS Milton Keynes",{"$f":"VLOOKUP($A78,[4]CVD_All_prescriptions!$A$10:$D$223,4,0)","v":3561951.88},{"$f":"VLOOKUP($A78,Lookup!$BP$3:$BW$213,7,0)","v":36043.257676902533},{"$f":"VLOOKUP($A78,[4]Lipid_regulators!$A$14:$D$227,4,0)","v":1160608.93},36043.257676902533,{"$f":"VLOOKUP($A78,[4]HyperandHeartfailure!$A$13:$D$226,4,0)","v":819417.98999999894},36043.257676902533,{"$f":"VLOOKUP($A78,[4]Nit_Calc_Antianginal!$A$13:$D$226,4,0)","v":601015.57999999996},36043.257676902533,{"$f":"VLOOKUP($A78,[4]Anti_coagulants!$A$15:$D$227,4,0)","v":246905.55},36043.257676902533,{"$f":"VLOOKUP($A78,[4]Beta_Adrenorecepter!$A$13:$D$226,4,0)","v":276476.62999999902},36043.257676902533,{"$f":"VLOOKUP($A78,[4]Anti_platelet!$A$13:$D$226,4,0)","v":171787.46999999901},36043.257676902533,{"$f":"VLOOKUP($A78,[4]Diuretics!$A$11:$D$224,4,0)","v":217771.56000000099},36043.257676902533,{"$f":"VLOOKUP($A78,[4]Anti_arrhythmic_drugs!$A$13:$D$226,4,0)","v":21020.880000000001},36043.257676902533,{"$f":"VLOOKUP($A78,[4]Positive_Intotropic!$A$13:$D$226,4,0)","v":19227.509999999998},36043.257676902533,{"$f":"VLOOKUP($A78,[4]anti_fibrinolytic!$A$13:$D$226,4,0)","v":20115.02},36043.257676902533,{"$f":"VLOOKUP($A78,[4]sympathomimetics!$A$11:$D$223,4,0)","v":7604.76},36043.257676902533,{"$f":"VLOOKUP($A78,[4]CVD_All_prescriptions!$A$10:$D$223,4,0)","v":3561951.88},{"$f":"VLOOKUP($A78,[4]CVD_All_prescriptions!$A$10:$D$223,3,0)","v":848049},{"$f":"VLOOKUP($A78,[5]CVD_All_prescriptions!$A$10:$C$392,3,0)","v":3665367.0524540702},{"$f":"VLOOKUP($A78,Lookup!$BP$3:$BW$213,8,0)","v":36725.76769025367},{"$f":"VLOOKUP($A78,[5]Lipid_regulators!$A$12:$C$345,3,0)","v":909236.81109790504},36725.76769025367,{"$f":"VLOOKUP($A78,[5]HyperandHeartfailure!$A$12:$C$356,3,0)","v":676952.25928698503},36725.76769025367,{"$f":"VLOOKUP($A78,[5]Nit_Calc_Antianginal!$A$12:$C$345,3,0)","v":722926.57928113604},36725.76769025367,{"$f":"VLOOKUP($A78,[5]Anti_coagulants!$A$11:$C$325,3,0)","v":411237.39136801701},36725.76769025367,{"$f":"VLOOKUP($A78,[5]Beta_Adrenorecepter!$A$11:$C$352,3,0)","v":363015.66021594399},36725.76769025367,{"$f":"VLOOKUP($A78,[5]Anti_platelet!$A$12:$C$335,3,0)","v":207322.65995497999},36725.76769025367,{"$f":"VLOOKUP($A78,[5]Diuretics!$A$12:$C$353,3,0)","v":305181.84134505701},36725.76769025367,{"$f":"VLOOKUP($A78,[5]Anti_arrhythmic_drugs!$A$11:$C$271,3,0)","v":20702.8899933547},36725.76769025367,{"$f":"VLOOKUP($A78,[5]Positive_Intotropic!$A$12:$C$297,3,0)","v":15777.6999745965},36725.76769025367,{"$f":"VLOOKUP($A78,[5]anti_fibrinolytic!$A$11:$C$287,3,0)","v":16051.499949216801},36725.76769025367,{"$f":"VLOOKUP($A78,[5]sympathomimetics!$A$11:$C$223,3,0)","v":16961.759986877401},36725.76769025367,{"$f":"VLOOKUP($A78,[5]CVD_All_prescriptions!$A$10:$C$392,3,0)","v":3665367.0524540702},{"$f":"VLOOKUP($A78,[5]CVD_All_prescriptions!$A$10:$C$392,2,0)","v":884411}]
["04G","NHS Nene",{"$f":"VLOOKUP($A79,[4]CVD_All_prescriptions!$A$10:$D$223,4,0)","v":10020684.199999999},{"$f":"VLOOKUP($A79,Lookup!$BP$3:$BW$213,7,0)","v":70974.168912848152},{"$f":"VLOOKUP($A79,[4]Lipid_regulators!$A$14:$D$227,4,0)","v":2945458.5},70974.168912848152,{"$f":"VLOOKUP($A79,[4]HyperandHeartfailure!$A$13:$D$226,4,0)","v":2184338.29},70974.168912848152,{"$f":"VLOOKUP($A79,[4]Nit_Calc_Antianginal!$A$13:$D$226,4,0)","v":1530003.5},70974.168912848152,{"$f":"VLOOKUP($A79,[4]Anti_coagulants!$A$15:$D$227,4,0)","v":896157.74},70974.168912848152,{"$f":"VLOOKUP($A79,[4]Beta_Adrenorecepter!$A$13:$D$226,4,0)","v":805623.060000011},70974.168912848152,{"$f":"VLOOKUP($A79,[4]Anti_platelet!$A$13:$D$226,4,0)","v":751583.84000001103},70974.168912848152,{"$f":"VLOOKUP($A79,[4]Diuretics!$A$11:$D$224,4,0)","v":709951.01999999397},70974.168912848152,{"$f":"VLOOKUP($A79,[4]Anti_arrhythmic_drugs!$A$13:$D$226,4,0)","v":66667.59},70974.168912848152,{"$f":"VLOOKUP($A79,[4]Positive_Intotropic!$A$13:$D$226,4,0)","v":55164.899999999798},70974.168912848152,{"$f":"VLOOKUP($A79,[4]anti_fibrinolytic!$A$13:$D$226,4,0)","v":43385.540000000103},70974.168912848152,{"$f":"VLOOKUP($A79,[4]sympathomimetics!$A$11:$D$223,4,0)","v":32350.22},70974.168912848152,{"$f":"VLOOKUP($A79,[4]CVD_All_prescriptions!$A$10:$D$223,4,0)","v":10020684.199999999},{"$f":"VLOOKUP($A79,[4]CVD_All_prescriptions!$A$10:$D$223,3,0)","v":4156394},{"$f":"VLOOKUP($A79,[5]CVD_All_prescriptions!$A$10:$C$392,3,0)","v":9844971.9648815896},{"$f":"VLOOKUP($A79,Lookup!$BP$3:$BW$213,8,0)","v":72019.317160826598},{"$f":"VLOOKUP($A79,[5]Lipid_regulators!$A$12:$C$345,3,0)","v":2241266.9406822501},72019.317160826598,{"$f":"VLOOKUP($A79,[5]HyperandHeartfailure!$A$12:$C$356,3,0)","v":1844641.5510927299},72019.317160826598,{"$f":"VLOOKUP($A79,[5]Nit_Calc_Antianginal!$A$12:$C$345,3,0)","v":1660022.9686531001},72019.317160826598,{"$f":"VLOOKUP($A79,[5]Anti_coagulants!$A$11:$C$325,3,0)","v":1213820.1293850199},72019.317160826598,{"$f":"VLOOKUP($A79,[5]Beta_Adrenorecepter!$A$11:$C$352,3,0)","v":994804.80102676898},72019.317160826598,{"$f":"VLOOKUP($A79,[5]Anti_platelet!$A$12:$C$335,3,0)","v":731427.15100795601},72019.317160826598,{"$f":"VLOOKUP($A79,[5]Diuretics!$A$12:$C$353,3,0)","v":985277.14315200597},72019.317160826598,{"$f":"VLOOKUP($A79,[5]Anti_arrhythmic_drugs!$A$11:$C$271,3,0)","v":66430.209956347899},72019.317160826598,{"$f":"VLOOKUP($A79,[5]Positive_Intotropic!$A$12:$C$297,3,0)","v":45397.809966191599},72019.317160826598,{"$f":"VLOOKUP($A79,[5]anti_fibrinolytic!$A$11:$C$287,3,0)","v":31338.420043468501},72019.317160826598,{"$f":"VLOOKUP($A79,[5]sympathomimetics!$A$11:$C$223,3,0)","v":30544.8399157524},72019.317160826598,{"$f":"VLOOKUP($A79,[5]CVD_All_prescriptions!$A$10:$C$392,3,0)","v":9844971.9648815896},{"$f":"VLOOKUP($A79,[5]CVD_All_prescriptions!$A$10:$C$392,2,0)","v":4253341}]
["04H","NHS Newark & Sherwood",{"$f":"VLOOKUP($A80,[4]CVD_All_prescriptions!$A$10:$D$223,4,0)","v":2456775.73},{"$f":"VLOOKUP($A80,Lookup!$BP$3:$BW$213,7,0)","v":12430.441105186623},{"$f":"VLOOKUP($A80,[4]Lipid_regulators!$A$14:$D$227,4,0)","v":642263.81000000203},12430.441105186623,{"$f":"VLOOKUP($A80,[4]HyperandHeartfailure!$A$13:$D$226,4,0)","v":555891.36999999895},12430.441105186623,{"$f":"VLOOKUP($A80,[4]Nit_Calc_Antianginal!$A$13:$D$226,4,0)","v":526639.64},12430.441105186623,{"$f":"VLOOKUP($A80,[4]Anti_coagulants!$A$15:$D$227,4,0)","v":187897.3},12430.441105186623,{"$f":"VLOOKUP($A80,[4]Beta_Adrenorecepter!$A$13:$D$226,4,0)","v":190005.11},12430.441105186623,{"$f":"VLOOKUP($A80,[4]Anti_platelet!$A$13:$D$226,4,0)","v":172559.079999999},12430.441105186623,{"$f":"VLOOKUP($A80,[4]Diuretics!$A$11:$D$224,4,0)","v":138130.95000000001},12430.441105186623,{"$f":"VLOOKUP($A80,[4]Anti_arrhythmic_drugs!$A$13:$D$226,4,0)","v":19587.349999999999},12430.441105186623,{"$f":"VLOOKUP($A80,[4]Positive_Intotropic!$A$13:$D$226,4,0)","v":11792.93},12430.441105186623,{"$f":"VLOOKUP($A80,[4]anti_fibrinolytic!$A$13:$D$226,4,0)","v":8525.2900000000009},12430.441105186623,{"$f":"VLOOKUP($A80,[4]sympathomimetics!$A$11:$D$223,4,0)","v":3482.9},12430.441105186623,{"$f":"VLOOKUP($A80,[4]CVD_All_prescriptions!$A$10:$D$223,4,0)","v":2456775.73},{"$f":"VLOOKUP($A80,[4]CVD_All_prescriptions!$A$10:$D$223,3,0)","v":797617},{"$f":"VLOOKUP($A80,[5]CVD_All_prescriptions!$A$10:$C$392,3,0)","v":2366440.861424},{"$f":"VLOOKUP($A80,Lookup!$BP$3:$BW$213,8,0)","v":12540.959767329134},{"$f":"VLOOKUP($A80,[5]Lipid_regulators!$A$12:$C$345,3,0)","v":509859.58996123099},12540.959767329134,{"$f":"VLOOKUP($A80,[5]HyperandHeartfailure!$A$12:$C$356,3,0)","v":448184.31019038003},12540.959767329134,{"$f":"VLOOKUP($A80,[5]Nit_Calc_Antianginal!$A$12:$C$345,3,0)","v":506307.53993135702},12540.959767329134,{"$f":"VLOOKUP($A80,[5]Anti_coagulants!$A$11:$C$325,3,0)","v":247334.45028650801},12540.959767329134,{"$f":"VLOOKUP($A80,[5]Beta_Adrenorecepter!$A$11:$C$352,3,0)","v":229399.320297748},12540.959767329134,{"$f":"VLOOKUP($A80,[5]Anti_platelet!$A$12:$C$335,3,0)","v":181254.550085425},12540.959767329134,{"$f":"VLOOKUP($A80,[5]Diuretics!$A$12:$C$353,3,0)","v":201146.890648842},12540.959767329134,{"$f":"VLOOKUP($A80,[5]Anti_arrhythmic_drugs!$A$11:$C$271,3,0)","v":19359.710006117799},12540.959767329134,{"$f":"VLOOKUP($A80,[5]Positive_Intotropic!$A$12:$C$297,3,0)","v":10359.4599868655},12540.959767329134,{"$f":"VLOOKUP($A80,[5]anti_fibrinolytic!$A$11:$C$287,3,0)","v":6938.3300304412796},12540.959767329134,{"$f":"VLOOKUP($A80,[5]sympathomimetics!$A$11:$C$223,3,0)","v":6296.7099990844699},12540.959767329134,{"$f":"VLOOKUP($A80,[5]CVD_All_prescriptions!$A$10:$C$392,3,0)","v":2366440.861424},{"$f":"VLOOKUP($A80,[5]CVD_All_prescriptions!$A$10:$C$392,2,0)","v":822209}]
["04J","NHS North Derbyshire",{"$f":"VLOOKUP($A81,[4]CVD_All_prescriptions!$A$10:$D$223,4,0)","v":5506604.6600000001},{"$f":"VLOOKUP($A81,Lookup!$BP$3:$BW$213,7,0)","v":26678.683385579938},{"$f":"VLOOKUP($A81,[4]Lipid_regulators!$A$14:$D$227,4,0)","v":1165920.78},26678.683385579938,{"$f":"VLOOKUP($A81,[4]HyperandHeartfailure!$A$13:$D$226,4,0)","v":1356555.42},26678.683385579938,{"$f":"VLOOKUP($A81,[4]Nit_Calc_Antianginal!$A$13:$D$226,4,0)","v":1137740.03},26678.683385579938,{"$f":"VLOOKUP($A81,[4]Anti_coagulants!$A$15:$D$227,4,0)","v":484857.89},26678.683385579938,{"$f":"VLOOKUP($A81,[4]Beta_Adrenorecepter!$A$13:$D$226,4,0)","v":404756.85000000498},26678.683385579938,{"$f":"VLOOKUP($A81,[4]Anti_platelet!$A$13:$D$226,4,0)","v":468815.87},26678.683385579938,{"$f":"VLOOKUP($A81,[4]Diuretics!$A$11:$D$224,4,0)","v":370396.78000000102},26678.683385579938,{"$f":"VLOOKUP($A81,[4]Anti_arrhythmic_drugs!$A$13:$D$226,4,0)","v":46459.699999999903},26678.683385579938,{"$f":"VLOOKUP($A81,[4]Positive_Intotropic!$A$13:$D$226,4,0)","v":32927.359999999899},26678.683385579938,{"$f":"VLOOKUP($A81,[4]anti_fibrinolytic!$A$13:$D$226,4,0)","v":25432.720000000001},26678.683385579938,{"$f":"VLOOKUP($A81,[4]sympathomimetics!$A$11:$D$223,4,0)","v":12741.26},26678.683385579938,{"$f":"VLOOKUP($A81,[4]CVD_All_prescriptions!$A$10:$D$223,4,0)","v":5506604.6600000001},{"$f":"VLOOKUP($A81,[4]CVD_All_prescriptions!$A$10:$D$223,3,0)","v":1904443},{"$f":"VLOOKUP($A81,[5]CVD_All_prescriptions!$A$10:$C$392,3,0)","v":5565864.7822397798},{"$f":"VLOOKUP($A81,Lookup!$BP$3:$BW$213,8,0)","v":26702.378757145492},{"$f":"VLOOKUP($A81,[5]Lipid_regulators!$A$12:$C$345,3,0)","v":991989.69153633004},26702.378757145492,{"$f":"VLOOKUP($A81,[5]HyperandHeartfailure!$A$12:$C$356,3,0)","v":1057618.1697541701},26702.378757145492,{"$f":"VLOOKUP($A81,[5]Nit_Calc_Antianginal!$A$12:$C$345,3,0)","v":1332514.83927032},26702.378757145492,{"$f":"VLOOKUP($A81,[5]Anti_coagulants!$A$11:$C$325,3,0)","v":585349.22940048599},26702.378757145492,{"$f":"VLOOKUP($A81,[5]Beta_Adrenorecepter!$A$11:$C$352,3,0)","v":536503.40058447002},26702.378757145492,{"$f":"VLOOKUP($A81,[5]Anti_platelet!$A$12:$C$335,3,0)","v":512920.950320512},26702.378757145492,{"$f":"VLOOKUP($A81,[5]Diuretics!$A$12:$C$353,3,0)","v":451719.61151664},26702.378757145492,{"$f":"VLOOKUP($A81,[5]Anti_arrhythmic_drugs!$A$11:$C$271,3,0)","v":42273.299921810598},26702.378757145492,{"$f":"VLOOKUP($A81,[5]Positive_Intotropic!$A$12:$C$297,3,0)","v":28112.179947599801},26702.378757145492,{"$f":"VLOOKUP($A81,[5]anti_fibrinolytic!$A$11:$C$287,3,0)","v":17263.230018615701},26702.378757145492,{"$f":"VLOOKUP($A81,[5]sympathomimetics!$A$11:$C$223,3,0)","v":9600.1799688339197},26702.378757145492,{"$f":"VLOOKUP($A81,[5]CVD_All_prescriptions!$A$10:$C$392,3,0)","v":5565864.7822397798},{"$f":"VLOOKUP($A81,[5]CVD_All_prescriptions!$A$10:$C$392,2,0)","v":1932547}]
["04K","NHS Nottingham City",{"$f":"VLOOKUP($A82,[4]CVD_All_prescriptions!$A$10:$D$223,4,0)","v":4686020.88},{"$f":"VLOOKUP($A82,Lookup!$BP$3:$BW$213,7,0)","v":43187.392690703949},{"$f":"VLOOKUP($A82,[4]Lipid_regulators!$A$14:$D$227,4,0)","v":1387438.9},43187.392690703949,{"$f":"VLOOKUP($A82,[4]HyperandHeartfailure!$A$13:$D$226,4,0)","v":1003905.96},43187.392690703949,{"$f":"VLOOKUP($A82,[4]Nit_Calc_Antianginal!$A$13:$D$226,4,0)","v":943526.95999999903},43187.392690703949,{"$f":"VLOOKUP($A82,[4]Anti_coagulants!$A$15:$D$227,4,0)","v":351310.30999999901},43187.392690703949,{"$f":"VLOOKUP($A82,[4]Beta_Adrenorecepter!$A$13:$D$226,4,0)","v":300354.99000000203},43187.392690703949,{"$f":"VLOOKUP($A82,[4]Anti_platelet!$A$13:$D$226,4,0)","v":366659.07999999798},43187.392690703949,{"$f":"VLOOKUP($A82,[4]Diuretics!$A$11:$D$224,4,0)","v":250066.64},43187.392690703949,{"$f":"VLOOKUP($A82,[4]Anti_arrhythmic_drugs!$A$13:$D$226,4,0)","v":27137.37},43187.392690703949,{"$f":"VLOOKUP($A82,[4]Positive_Intotropic!$A$13:$D$226,4,0)","v":25173.0199999998},43187.392690703949,{"$f":"VLOOKUP($A82,[4]anti_fibrinolytic!$A$13:$D$226,4,0)","v":25492.840000000098},43187.392690703949,{"$f":"VLOOKUP($A82,[4]sympathomimetics!$A$11:$D$223,4,0)","v":4926.8100000000004},43187.392690703949,{"$f":"VLOOKUP($A82,[4]CVD_All_prescriptions!$A$10:$D$223,4,0)","v":4686020.88},{"$f":"VLOOKUP($A82,[4]CVD_All_prescriptions!$A$10:$D$223,3,0)","v":1291943},{"$f":"VLOOKUP($A82,[5]CVD_All_prescriptions!$A$10:$C$392,3,0)","v":4413974.5704410505},{"$f":"VLOOKUP($A82,Lookup!$BP$3:$BW$213,8,0)","v":43533.603139563405},{"$f":"VLOOKUP($A82,[5]Lipid_regulators!$A$12:$C$345,3,0)","v":1089061.41969601},43533.603139563405,{"$f":"VLOOKUP($A82,[5]HyperandHeartfailure!$A$12:$C$356,3,0)","v":816730.33993197198},43533.603139563405,{"$f":"VLOOKUP($A82,[5]Nit_Calc_Antianginal!$A$12:$C$345,3,0)","v":962665.78926792694},43533.603139563405,{"$f":"VLOOKUP($A82,[5]Anti_coagulants!$A$11:$C$325,3,0)","v":396043.460341923},43533.603139563405,{"$f":"VLOOKUP($A82,[5]Beta_Adrenorecepter!$A$11:$C$352,3,0)","v":379097.25020896603},43533.603139563405,{"$f":"VLOOKUP($A82,[5]Anti_platelet!$A$12:$C$335,3,0)","v":361024.93010613101},43533.603139563405,{"$f":"VLOOKUP($A82,[5]Diuretics!$A$12:$C$353,3,0)","v":337633.62087851},43533.603139563405,{"$f":"VLOOKUP($A82,[5]Anti_arrhythmic_drugs!$A$11:$C$271,3,0)","v":24789.659973710801},43533.603139563405,{"$f":"VLOOKUP($A82,[5]Positive_Intotropic!$A$12:$C$297,3,0)","v":21354.2299821302},43533.603139563405,{"$f":"VLOOKUP($A82,[5]anti_fibrinolytic!$A$11:$C$287,3,0)","v":22773.560032367699},43533.603139563405,{"$f":"VLOOKUP($A82,[5]sympathomimetics!$A$11:$C$223,3,0)","v":2800.3100214004498},43533.603139563405,{"$f":"VLOOKUP($A82,[5]CVD_All_prescriptions!$A$10:$C$392,3,0)","v":4413974.5704410505},{"$f":"VLOOKUP($A82,[5]CVD_All_prescriptions!$A$10:$C$392,2,0)","v":1340960}]
["04L","NHS Nottingham North and East",{"$f":"VLOOKUP($A83,[4]CVD_All_prescriptions!$A$10:$D$223,4,0)","v":2855763.05},{"$f":"VLOOKUP($A83,Lookup!$BP$3:$BW$213,7,0)","v":14435.370094386488},{"$f":"VLOOKUP($A83,[4]Lipid_regulators!$A$14:$D$227,4,0)","v":880352.270000002},14435.370094386488,{"$f":"VLOOKUP($A83,[4]HyperandHeartfailure!$A$13:$D$226,4,0)","v":666782.82999999903},14435.370094386488,{"$f":"VLOOKUP($A83,[4]Nit_Calc_Antianginal!$A$13:$D$226,4,0)","v":543102.44999999995},14435.370094386488,{"$f":"VLOOKUP($A83,[4]Anti_coagulants!$A$15:$D$227,4,0)","v":170501.15},14435.370094386488,{"$f":"VLOOKUP($A83,[4]Beta_Adrenorecepter!$A$13:$D$226,4,0)","v":178688.42},14435.370094386488,{"$f":"VLOOKUP($A83,[4]Anti_platelet!$A$13:$D$226,4,0)","v":201984.69999999899},14435.370094386488,{"$f":"VLOOKUP($A83,[4]Diuretics!$A$11:$D$224,4,0)","v":158413.07},14435.370094386488,{"$f":"VLOOKUP($A83,[4]Anti_arrhythmic_drugs!$A$13:$D$226,4,0)","v":22861.38},14435.370094386488,{"$f":"VLOOKUP($A83,[4]Positive_Intotropic!$A$13:$D$226,4,0)","v":16379.56},14435.370094386488,{"$f":"VLOOKUP($A83,[4]anti_fibrinolytic!$A$13:$D$226,4,0)","v":11742.16},14435.370094386488,{"$f":"VLOOKUP($A83,[4]sympathomimetics!$A$11:$D$223,4,0)","v":4955.0600000000004},14435.370094386488,{"$f":"VLOOKUP($A83,[4]CVD_All_prescriptions!$A$10:$D$223,4,0)","v":2855763.05},{"$f":"VLOOKUP($A83,[4]CVD_All_prescriptions!$A$10:$D$223,3,0)","v":768472},{"$f":"VLOOKUP($A83,[5]CVD_All_prescriptions!$A$10:$C$392,3,0)","v":2695200.55224226},{"$f":"VLOOKUP($A83,Lookup!$BP$3:$BW$213,8,0)","v":14626.130153999007},{"$f":"VLOOKUP($A83,[5]Lipid_regulators!$A$12:$C$345,3,0)","v":714315.63058602798},14626.130153999007,{"$f":"VLOOKUP($A83,[5]HyperandHeartfailure!$A$12:$C$356,3,0)","v":527669.300123155},14626.130153999007,{"$f":"VLOOKUP($A83,[5]Nit_Calc_Antianginal!$A$12:$C$345,3,0)","v":552469.62986515497},14626.130153999007,{"$f":"VLOOKUP($A83,[5]Anti_coagulants!$A$11:$C$325,3,0)","v":227083.83038693701},14626.130153999007,{"$f":"VLOOKUP($A83,[5]Beta_Adrenorecepter!$A$11:$C$352,3,0)","v":214678.75026822099},14626.130153999007,{"$f":"VLOOKUP($A83,[5]Anti_platelet!$A$12:$C$335,3,0)","v":193466.59000559201},14626.130153999007,{"$f":"VLOOKUP($A83,[5]Diuretics!$A$12:$C$353,3,0)","v":203467.420715407},14626.130153999007,{"$f":"VLOOKUP($A83,[5]Anti_arrhythmic_drugs!$A$11:$C$271,3,0)","v":21423.330044597398},14626.130153999007,{"$f":"VLOOKUP($A83,[5]Positive_Intotropic!$A$12:$C$297,3,0)","v":14494.9299964905},14626.130153999007,{"$f":"VLOOKUP($A83,[5]anti_fibrinolytic!$A$11:$C$287,3,0)","v":13639.670033931699},14626.130153999007,{"$f":"VLOOKUP($A83,[5]sympathomimetics!$A$11:$C$223,3,0)","v":12491.4702167511},14626.130153999007,{"$f":"VLOOKUP($A83,[5]CVD_All_prescriptions!$A$10:$C$392,3,0)","v":2695200.55224226},{"$f":"VLOOKUP($A83,[5]CVD_All_prescriptions!$A$10:$C$392,2,0)","v":779217}]
["04M","NHS Nottingham West",{"$f":"VLOOKUP($A84,[4]CVD_All_prescriptions!$A$10:$D$223,4,0)","v":1639072.44},{"$f":"VLOOKUP($A84,Lookup!$BP$3:$BW$213,7,0)","v":9196.8179139658223},{"$f":"VLOOKUP($A84,[4]Lipid_regulators!$A$14:$D$227,4,0)","v":410161.48},9196.8179139658223,{"$f":"VLOOKUP($A84,[4]HyperandHeartfailure!$A$13:$D$226,4,0)","v":370891.17},9196.8179139658223,{"$f":"VLOOKUP($A84,[4]Nit_Calc_Antianginal!$A$13:$D$226,4,0)","v":370255.33},9196.8179139658223,{"$f":"VLOOKUP($A84,[4]Anti_coagulants!$A$15:$D$227,4,0)","v":118182.1},9196.8179139658223,{"$f":"VLOOKUP($A84,[4]Beta_Adrenorecepter!$A$13:$D$226,4,0)","v":116142.13},9196.8179139658223,{"$f":"VLOOKUP($A84,[4]Anti_platelet!$A$13:$D$226,4,0)","v":128472.24},9196.8179139658223,{"$f":"VLOOKUP($A84,[4]Diuretics!$A$11:$D$224,4,0)","v":97124.099999999904},9196.8179139658223,{"$f":"VLOOKUP($A84,[4]Anti_arrhythmic_drugs!$A$13:$D$226,4,0)","v":9733.1400000000103},9196.8179139658223,{"$f":"VLOOKUP($A84,[4]Positive_Intotropic!$A$13:$D$226,4,0)","v":11022.49},9196.8179139658223,{"$f":"VLOOKUP($A84,[4]anti_fibrinolytic!$A$13:$D$226,4,0)","v":6918.26},9196.8179139658223,{"$f":"VLOOKUP($A84,[4]sympathomimetics!$A$11:$D$223,4,0)","v":170},9196.8179139658223,{"$f":"VLOOKUP($A84,[4]CVD_All_prescriptions!$A$10:$D$223,4,0)","v":1639072.44},{"$f":"VLOOKUP($A84,[4]CVD_All_prescriptions!$A$10:$D$223,3,0)","v":411397},{"$f":"VLOOKUP($A84,[5]CVD_All_prescriptions!$A$10:$C$392,3,0)","v":1583542.8201848699},{"$f":"VLOOKUP($A84,Lookup!$BP$3:$BW$213,8,0)","v":9237.7725397760751},{"$f":"VLOOKUP($A84,[5]Lipid_regulators!$A$12:$C$345,3,0)","v":328865.15992754698},9237.7725397760751,{"$f":"VLOOKUP($A84,[5]HyperandHeartfailure!$A$12:$C$356,3,0)","v":315029.59998828202},9237.7725397760751,{"$f":"VLOOKUP($A84,[5]Nit_Calc_Antianginal!$A$12:$C$345,3,0)","v":371887.21994829201},9237.7725397760751,{"$f":"VLOOKUP($A84,[5]Anti_coagulants!$A$11:$C$325,3,0)","v":139520.74990735899},9237.7725397760751,{"$f":"VLOOKUP($A84,[5]Beta_Adrenorecepter!$A$11:$C$352,3,0)","v":139012.47013354301},9237.7725397760751,{"$f":"VLOOKUP($A84,[5]Anti_platelet!$A$12:$C$335,3,0)","v":117088.319988787},9237.7725397760751,{"$f":"VLOOKUP($A84,[5]Diuretics!$A$12:$C$353,3,0)","v":148782.64030242001},9237.7725397760751,{"$f":"VLOOKUP($A84,[5]Anti_arrhythmic_drugs!$A$11:$C$271,3,0)","v":8903.9400018453598},9237.7725397760751,{"$f":"VLOOKUP($A84,[5]Positive_Intotropic!$A$12:$C$297,3,0)","v":8704.2499970197696},9237.7725397760751,{"$f":"VLOOKUP($A84,[5]anti_fibrinolytic!$A$11:$C$287,3,0)","v":5389.6799888610803},9237.7725397760751,{"$f":"VLOOKUP($A84,[5]sympathomimetics!$A$11:$C$223,3,0)","v":358.790000915527},9237.7725397760751,{"$f":"VLOOKUP($A84,[5]CVD_All_prescriptions!$A$10:$C$392,3,0)","v":1583542.8201848699},{"$f":"VLOOKUP($A84,[5]CVD_All_prescriptions!$A$10:$C$392,2,0)","v":420402}]
["04N","NHS Rushcliffe",{"$f":"VLOOKUP($A85,[4]CVD_All_prescriptions!$A$10:$D$223,4,0)","v":2288346.12},{"$f":"VLOOKUP($A85,Lookup!$BP$3:$BW$213,7,0)","v":12413.023540201772},{"$f":"VLOOKUP($A85,[4]Lipid_regulators!$A$14:$D$227,4,0)","v":671784.81000000099},12413.023540201772,{"$f":"VLOOKUP($A85,[4]HyperandHeartfailure!$A$13:$D$226,4,0)","v":634988.77},12413.023540201772,{"$f":"VLOOKUP($A85,[4]Nit_Calc_Antianginal!$A$13:$D$226,4,0)","v":407741.47},12413.023540201772,{"$f":"VLOOKUP($A85,[4]Anti_coagulants!$A$15:$D$227,4,0)","v":138170.01999999999},12413.023540201772,{"$f":"VLOOKUP($A85,[4]Beta_Adrenorecepter!$A$13:$D$226,4,0)","v":145650.63},12413.023540201772,{"$f":"VLOOKUP($A85,[4]Anti_platelet!$A$13:$D$226,4,0)","v":156388.209999999},12413.023540201772,{"$f":"VLOOKUP($A85,[4]Diuretics!$A$11:$D$224,4,0)","v":96637.13},12413.023540201772,{"$f":"VLOOKUP($A85,[4]Anti_arrhythmic_drugs!$A$13:$D$226,4,0)","v":11444.51},12413.023540201772,{"$f":"VLOOKUP($A85,[4]Positive_Intotropic!$A$13:$D$226,4,0)","v":12529.86},12413.023540201772,{"$f":"VLOOKUP($A85,[4]anti_fibrinolytic!$A$13:$D$226,4,0)","v":8482.31},12413.023540201772,{"$f":"VLOOKUP($A85,[4]sympathomimetics!$A$11:$D$223,4,0)","v":4528.3999999999996},12413.023540201772,{"$f":"VLOOKUP($A85,[4]CVD_All_prescriptions!$A$10:$D$223,4,0)","v":2288346.12},{"$f":"VLOOKUP($A85,[4]CVD_All_prescriptions!$A$10:$D$223,3,0)","v":654096},{"$f":"VLOOKUP($A85,[5]CVD_All_prescriptions!$A$10:$C$392,3,0)","v":2189568.5213906602},{"$f":"VLOOKUP($A85,Lookup!$BP$3:$BW$213,8,0)","v":12515.948231937226},{"$f":"VLOOKUP($A85,[5]Lipid_regulators!$A$12:$C$345,3,0)","v":557850.99011427199},12515.948231937226,{"$f":"VLOOKUP($A85,[5]HyperandHeartfailure!$A$12:$C$356,3,0)","v":551039.64094847406},12515.948231937226,{"$f":"VLOOKUP($A85,[5]Nit_Calc_Antianginal!$A$12:$C$345,3,0)","v":421913.15022918599},12515.948231937226,{"$f":"VLOOKUP($A85,[5]Anti_coagulants!$A$11:$C$325,3,0)","v":163413.41985493901},12515.948231937226,{"$f":"VLOOKUP($A85,[5]Beta_Adrenorecepter!$A$11:$C$352,3,0)","v":175351.54006004299},12515.948231937226,{"$f":"VLOOKUP($A85,[5]Anti_platelet!$A$12:$C$335,3,0)","v":148421.87010712901},12515.948231937226,{"$f":"VLOOKUP($A85,[5]Diuretics!$A$12:$C$353,3,0)","v":140289.68005502201},12515.948231937226,{"$f":"VLOOKUP($A85,[5]Anti_arrhythmic_drugs!$A$11:$C$271,3,0)","v":12078.7299787998},12515.948231937226,{"$f":"VLOOKUP($A85,[5]Positive_Intotropic!$A$12:$C$297,3,0)","v":10524.609983086601},12515.948231937226,{"$f":"VLOOKUP($A85,[5]anti_fibrinolytic!$A$11:$C$287,3,0)","v":6417.8300316333798},12515.948231937226,{"$f":"VLOOKUP($A85,[5]sympathomimetics!$A$11:$C$223,3,0)","v":2267.0600280761701},12515.948231937226,{"$f":"VLOOKUP($A85,[5]CVD_All_prescriptions!$A$10:$C$392,3,0)","v":2189568.5213906602},{"$f":"VLOOKUP($A85,[5]CVD_All_prescriptions!$A$10:$C$392,2,0)","v":685628}]
["04Q","NHS South West Lincolnshire",{"$f":"VLOOKUP($A86,[4]CVD_All_prescriptions!$A$10:$D$223,4,0)","v":3073036.34},{"$f":"VLOOKUP($A86,Lookup!$BP$3:$BW$213,7,0)","v":12187.482299631833},{"$f":"VLOOKUP($A86,[4]Lipid_regulators!$A$14:$D$227,4,0)","v":834304.96999999904},12187.482299631833,{"$f":"VLOOKUP($A86,[4]HyperandHeartfailure!$A$13:$D$226,4,0)","v":782764.31999999902},12187.482299631833,{"$f":"VLOOKUP($A86,[4]Nit_Calc_Antianginal!$A$13:$D$226,4,0)","v":625560.28},12187.482299631833,{"$f":"VLOOKUP($A86,[4]Anti_coagulants!$A$15:$D$227,4,0)","v":190662.04},12187.482299631833,{"$f":"VLOOKUP($A86,[4]Beta_Adrenorecepter!$A$13:$D$226,4,0)","v":239348.609999999},12187.482299631833,{"$f":"VLOOKUP($A86,[4]Anti_platelet!$A$13:$D$226,4,0)","v":194896.23},12187.482299631833,{"$f":"VLOOKUP($A86,[4]Diuretics!$A$11:$D$224,4,0)","v":150727.64000000001},12187.482299631833,{"$f":"VLOOKUP($A86,[4]Anti_arrhythmic_drugs!$A$13:$D$226,4,0)","v":22784.18},12187.482299631833,{"$f":"VLOOKUP($A86,[4]Positive_Intotropic!$A$13:$D$226,4,0)","v":12710.35},12187.482299631833,{"$f":"VLOOKUP($A86,[4]anti_fibrinolytic!$A$13:$D$226,4,0)","v":11949.17},12187.482299631833,{"$f":"VLOOKUP($A86,[4]sympathomimetics!$A$11:$D$223,4,0)","v":7328.55},12187.482299631833,{"$f":"VLOOKUP($A86,[4]CVD_All_prescriptions!$A$10:$D$223,4,0)","v":3073036.34},{"$f":"VLOOKUP($A86,[4]CVD_All_prescriptions!$A$10:$D$223,3,0)","v":1064295},{"$f":"VLOOKUP($A86,[5]CVD_All_prescriptions!$A$10:$C$392,3,0)","v":2896661.56209938},{"$f":"VLOOKUP($A86,Lookup!$BP$3:$BW$213,8,0)","v":12293.401302747097},{"$f":"VLOOKUP($A86,[5]Lipid_regulators!$A$12:$C$345,3,0)","v":659272.58015298797},12293.401302747097,{"$f":"VLOOKUP($A86,[5]HyperandHeartfailure!$A$12:$C$356,3,0)","v":593547.54066902399},12293.401302747097,{"$f":"VLOOKUP($A86,[5]Nit_Calc_Antianginal!$A$12:$C$345,3,0)","v":624116.09991079604},12293.401302747097,{"$f":"VLOOKUP($A86,[5]Anti_coagulants!$A$11:$C$325,3,0)","v":279914.86067390401},12293.401302747097,{"$f":"VLOOKUP($A86,[5]Beta_Adrenorecepter!$A$11:$C$352,3,0)","v":264868.16019892698},12293.401302747097,{"$f":"VLOOKUP($A86,[5]Anti_platelet!$A$12:$C$335,3,0)","v":215163.650084391},12293.401302747097,{"$f":"VLOOKUP($A86,[5]Diuretics!$A$12:$C$353,3,0)","v":203363.76034769401},12293.401302747097,{"$f":"VLOOKUP($A86,[5]Anti_arrhythmic_drugs!$A$11:$C$271,3,0)","v":19280.880065679601},12293.401302747097,{"$f":"VLOOKUP($A86,[5]Positive_Intotropic!$A$12:$C$297,3,0)","v":10757.3999763131},12293.401302747097,{"$f":"VLOOKUP($A86,[5]anti_fibrinolytic!$A$11:$C$287,3,0)","v":9444.48006772995},12293.401302747097,{"$f":"VLOOKUP($A86,[5]sympathomimetics!$A$11:$C$223,3,0)","v":16932.1499519348},12293.401302747097,{"$f":"VLOOKUP($A86,[5]CVD_All_prescriptions!$A$10:$C$392,3,0)","v":2896661.56209938},{"$f":"VLOOKUP($A86,[5]CVD_All_prescriptions!$A$10:$C$392,2,0)","v":1119327}]
["04R","NHS Southern Derbyshire",{"$f":"VLOOKUP($A87,[4]CVD_All_prescriptions!$A$10:$D$223,4,0)","v":8916080.9400000405},{"$f":"VLOOKUP($A87,Lookup!$BP$3:$BW$213,7,0)","v":56315.28964862298},{"$f":"VLOOKUP($A87,[4]Lipid_regulators!$A$14:$D$227,4,0)","v":1974055.95000002},56315.28964862298,{"$f":"VLOOKUP($A87,[4]HyperandHeartfailure!$A$13:$D$226,4,0)","v":2144773.88},56315.28964862298,{"$f":"VLOOKUP($A87,[4]Nit_Calc_Antianginal!$A$13:$D$226,4,0)","v":1857912.61},56315.28964862298,{"$f":"VLOOKUP($A87,[4]Anti_coagulants!$A$15:$D$227,4,0)","v":910661.37000000104},56315.28964862298,{"$f":"VLOOKUP($A87,[4]Beta_Adrenorecepter!$A$13:$D$226,4,0)","v":670153.040000004},56315.28964862298,{"$f":"VLOOKUP($A87,[4]Anti_platelet!$A$13:$D$226,4,0)","v":684203.83999999904},56315.28964862298,{"$f":"VLOOKUP($A87,[4]Diuretics!$A$11:$D$224,4,0)","v":489494.51999999501},56315.28964862298,{"$f":"VLOOKUP($A87,[4]Anti_arrhythmic_drugs!$A$13:$D$226,4,0)","v":61797.649999999798},56315.28964862298,{"$f":"VLOOKUP($A87,[4]Positive_Intotropic!$A$13:$D$226,4,0)","v":61404.539999999797},56315.28964862298,{"$f":"VLOOKUP($A87,[4]anti_fibrinolytic!$A$13:$D$226,4,0)","v":45992.71},56315.28964862298,{"$f":"VLOOKUP($A87,[4]sympathomimetics!$A$11:$D$223,4,0)","v":15630.83},56315.28964862298,{"$f":"VLOOKUP($A87,[4]CVD_All_prescriptions!$A$10:$D$223,4,0)","v":8916080.9400000405},{"$f":"VLOOKUP($A87,[4]CVD_All_prescriptions!$A$10:$D$223,3,0)","v":2306048},{"$f":"VLOOKUP($A87,[5]CVD_All_prescriptions!$A$10:$C$392,3,0)","v":8696955.8321155105},{"$f":"VLOOKUP($A87,Lookup!$BP$3:$BW$213,8,0)","v":56668.988076395479},{"$f":"VLOOKUP($A87,[5]Lipid_regulators!$A$12:$C$345,3,0)","v":1552097.0197648599},56668.988076395479,{"$f":"VLOOKUP($A87,[5]HyperandHeartfailure!$A$12:$C$356,3,0)","v":1603369.29100816},56668.988076395479,{"$f":"VLOOKUP($A87,[5]Nit_Calc_Antianginal!$A$12:$C$345,3,0)","v":2148562.8093867502},56668.988076395479,{"$f":"VLOOKUP($A87,[5]Anti_coagulants!$A$11:$C$325,3,0)","v":1047485.10931599},56668.988076395479,{"$f":"VLOOKUP($A87,[5]Beta_Adrenorecepter!$A$11:$C$352,3,0)","v":817107.94044409704},56668.988076395479,{"$f":"VLOOKUP($A87,[5]Anti_platelet!$A$12:$C$335,3,0)","v":729370.77081866597},56668.988076395479,{"$f":"VLOOKUP($A87,[5]Diuretics!$A$12:$C$353,3,0)","v":641068.00148241199},56668.988076395479,{"$f":"VLOOKUP($A87,[5]Anti_arrhythmic_drugs!$A$11:$C$271,3,0)","v":65656.510087579503},56668.988076395479,{"$f":"VLOOKUP($A87,[5]Positive_Intotropic!$A$12:$C$297,3,0)","v":52069.239930987402},56668.988076395479,{"$f":"VLOOKUP($A87,[5]anti_fibrinolytic!$A$11:$C$287,3,0)","v":36938.589828133598},56668.988076395479,{"$f":"VLOOKUP($A87,[5]sympathomimetics!$A$11:$C$223,3,0)","v":3230.5500478744498},56668.988076395479,{"$f":"VLOOKUP($A87,[5]CVD_All_prescriptions!$A$10:$C$392,3,0)","v":8696955.8321155105},{"$f":"VLOOKUP($A87,[5]CVD_All_prescriptions!$A$10:$C$392,2,0)","v":2340220}]
["04V","NHS West Leicestershire",{"$f":"VLOOKUP($A88,[4]CVD_All_prescriptions!$A$10:$D$223,4,0)","v":6595178.7900000196},{"$f":"VLOOKUP($A88,Lookup!$BP$3:$BW$213,7,0)","v":39377.136185118354},{"$f":"VLOOKUP($A88,[4]Lipid_regulators!$A$14:$D$227,4,0)","v":1984104.5500000101},39377.136185118354,{"$f":"VLOOKUP($A88,[4]HyperandHeartfailure!$A$13:$D$226,4,0)","v":1590380.74},39377.136185118354,{"$f":"VLOOKUP($A88,[4]Nit_Calc_Antianginal!$A$13:$D$226,4,0)","v":1125125.8999999999},39377.136185118354,{"$f":"VLOOKUP($A88,[4]Anti_coagulants!$A$15:$D$227,4,0)","v":473247.59},39377.136185118354,{"$f":"VLOOKUP($A88,[4]Beta_Adrenorecepter!$A$13:$D$226,4,0)","v":501841.94000000198},39377.136185118354,{"$f":"VLOOKUP($A88,[4]Anti_platelet!$A$13:$D$226,4,0)","v":432462.08999999799},39377.136185118354,{"$f":"VLOOKUP($A88,[4]Diuretics!$A$11:$D$224,4,0)","v":376631.60999999603},39377.136185118354,{"$f":"VLOOKUP($A88,[4]Anti_arrhythmic_drugs!$A$13:$D$226,4,0)","v":43604.959999999897},39377.136185118354,{"$f":"VLOOKUP($A88,[4]Positive_Intotropic!$A$13:$D$226,4,0)","v":34095.669999999802},39377.136185118354,{"$f":"VLOOKUP($A88,[4]anti_fibrinolytic!$A$13:$D$226,4,0)","v":26274.61},39377.136185118354,{"$f":"VLOOKUP($A88,[4]sympathomimetics!$A$11:$D$223,4,0)","v":7409.13},39377.136185118354,{"$f":"VLOOKUP($A88,[4]CVD_All_prescriptions!$A$10:$D$223,4,0)","v":6595178.7900000196},{"$f":"VLOOKUP($A88,[4]CVD_All_prescriptions!$A$10:$D$223,3,0)","v":2154970},{"$f":"VLOOKUP($A88,[5]CVD_All_prescriptions!$A$10:$C$392,3,0)","v":6225503.9545476502},{"$f":"VLOOKUP($A88,Lookup!$BP$3:$BW$213,8,0)","v":39515.231928669993},{"$f":"VLOOKUP($A88,[5]Lipid_regulators!$A$12:$C$345,3,0)","v":1516087.2609081001},39515.231928669993,{"$f":"VLOOKUP($A88,[5]HyperandHeartfailure!$A$12:$C$356,3,0)","v":1251402.2106898499},39515.231928669993,{"$f":"VLOOKUP($A88,[5]Nit_Calc_Antianginal!$A$12:$C$345,3,0)","v":1234730.68943492},39515.231928669993,{"$f":"VLOOKUP($A88,[5]Anti_coagulants!$A$11:$C$325,3,0)","v":573818.49180579197},39515.231928669993,{"$f":"VLOOKUP($A88,[5]Beta_Adrenorecepter!$A$11:$C$352,3,0)","v":569858.80037785298},39515.231928669993,{"$f":"VLOOKUP($A88,[5]Anti_platelet!$A$12:$C$335,3,0)","v":477407.68980091799},39515.231928669993,{"$f":"VLOOKUP($A88,[5]Diuretics!$A$12:$C$353,3,0)","v":503647.68140398001},39515.231928669993,{"$f":"VLOOKUP($A88,[5]Anti_arrhythmic_drugs!$A$11:$C$271,3,0)","v":40401.540013968901},39515.231928669993,{"$f":"VLOOKUP($A88,[5]Positive_Intotropic!$A$12:$C$297,3,0)","v":28247.589975297498},39515.231928669993,{"$f":"VLOOKUP($A88,[5]anti_fibrinolytic!$A$11:$C$287,3,0)","v":21784.710067391399},39515.231928669993,{"$f":"VLOOKUP($A88,[5]sympathomimetics!$A$11:$C$223,3,0)","v":8117.2900695800799},39515.231928669993,{"$f":"VLOOKUP($A88,[5]CVD_All_prescriptions!$A$10:$C$392,3,0)","v":6225503.9545476502},{"$f":"VLOOKUP($A88,[5]CVD_All_prescriptions!$A$10:$C$392,2,0)","v":2214075}]
["04X","NHS Birmingham South and Central",{"$f":"VLOOKUP($A89,[4]CVD_All_prescriptions!$A$10:$D$223,4,0)","v":3471504.06},{"$f":"VLOOKUP($A89,Lookup!$BP$3:$BW$213,7,0)","v":30135.980148883373},{"$f":"VLOOKUP($A89,[4]Lipid_regulators!$A$14:$D$227,4,0)","v":1047382.25000001},30135.980148883373,{"$f":"VLOOKUP($A89,[4]HyperandHeartfailure!$A$13:$D$226,4,0)","v":824329.09},30135.980148883373,{"$f":"VLOOKUP($A89,[4]Nit_Calc_Antianginal!$A$13:$D$226,4,0)","v":692735.13999999897},30135.980148883373,{"$f":"VLOOKUP($A89,[4]Anti_coagulants!$A$15:$D$227,4,0)","v":151649.71},30135.980148883373,{"$f":"VLOOKUP($A89,[4]Beta_Adrenorecepter!$A$13:$D$226,4,0)","v":215689},30135.980148883373,{"$f":"VLOOKUP($A89,[4]Anti_platelet!$A$13:$D$226,4,0)","v":262194.13999999699},30135.980148883373,{"$f":"VLOOKUP($A89,[4]Diuretics!$A$11:$D$224,4,0)","v":221281.22000000099},30135.980148883373,{"$f":"VLOOKUP($A89,[4]Anti_arrhythmic_drugs!$A$13:$D$226,4,0)","v":15563.87},30135.980148883373,{"$f":"VLOOKUP($A89,[4]Positive_Intotropic!$A$13:$D$226,4,0)","v":18501.400000000001},30135.980148883373,{"$f":"VLOOKUP($A89,[4]anti_fibrinolytic!$A$13:$D$226,4,0)","v":18848.240000000002},30135.980148883373,{"$f":"VLOOKUP($A89,[4]sympathomimetics!$A$11:$D$223,4,0)","v":3330},30135.980148883373,{"$f":"VLOOKUP($A89,[4]CVD_All_prescriptions!$A$10:$D$223,4,0)","v":3471504.06},{"$f":"VLOOKUP($A89,[4]CVD_All_prescriptions!$A$10:$D$223,3,0)","v":871110},{"$f":"VLOOKUP($A89,[5]CVD_All_prescriptions!$A$10:$C$392,3,0)","v":3333390.5517644198},{"$f":"VLOOKUP($A89,Lookup!$BP$3:$BW$213,8,0)","v":30895.533498759305},{"$f":"VLOOKUP($A89,[5]Lipid_regulators!$A$12:$C$345,3,0)","v":821588.27045157598},30895.533498759305,{"$f":"VLOOKUP($A89,[5]HyperandHeartfailure!$A$12:$C$356,3,0)","v":649058.10046635603},30895.533498759305,{"$f":"VLOOKUP($A89,[5]Nit_Calc_Antianginal!$A$12:$C$345,3,0)","v":705016.639149472},30895.533498759305,{"$f":"VLOOKUP($A89,[5]Anti_coagulants!$A$11:$C$325,3,0)","v":236365.10016575799},30895.533498759305,{"$f":"VLOOKUP($A89,[5]Beta_Adrenorecepter!$A$11:$C$352,3,0)","v":263132.04016046203},30895.533498759305,{"$f":"VLOOKUP($A89,[5]Anti_platelet!$A$12:$C$335,3,0)","v":273627.56036308},30895.533498759305,{"$f":"VLOOKUP($A89,[5]Diuretics!$A$12:$C$353,3,0)","v":333728.46107825998},30895.533498759305,{"$f":"VLOOKUP($A89,[5]Anti_arrhythmic_drugs!$A$11:$C$271,3,0)","v":15797.819960594201},30895.533498759305,{"$f":"VLOOKUP($A89,[5]Positive_Intotropic!$A$12:$C$297,3,0)","v":15933.6599725857},30895.533498759305,{"$f":"VLOOKUP($A89,[5]anti_fibrinolytic!$A$11:$C$287,3,0)","v":14288.820024967201},30895.533498759305,{"$f":"VLOOKUP($A89,[5]sympathomimetics!$A$11:$C$223,3,0)","v":4854.0799713134802},30895.533498759305,{"$f":"VLOOKUP($A89,[5]CVD_All_prescriptions!$A$10:$C$392,3,0)","v":3333390.5517644198},{"$f":"VLOOKUP($A89,[5]CVD_All_prescriptions!$A$10:$C$392,2,0)","v":896192}]
["04Y","NHS Cannock Chase",{"$f":"VLOOKUP($A90,[4]CVD_All_prescriptions!$A$10:$D$223,4,0)","v":2705297.66},{"$f":"VLOOKUP($A90,Lookup!$BP$3:$BW$213,7,0)","v":13970.901423299949},{"$f":"VLOOKUP($A90,[4]Lipid_regulators!$A$14:$D$227,4,0)","v":726518.07},13970.901423299949,{"$f":"VLOOKUP($A90,[4]HyperandHeartfailure!$A$13:$D$226,4,0)","v":657704.17000000004},13970.901423299949,{"$f":"VLOOKUP($A90,[4]Nit_Calc_Antianginal!$A$13:$D$226,4,0)","v":561801.18999999994},13970.901423299949,{"$f":"VLOOKUP($A90,[4]Anti_coagulants!$A$15:$D$227,4,0)","v":181335.53999999899},13970.901423299949,{"$f":"VLOOKUP($A90,[4]Beta_Adrenorecepter!$A$13:$D$226,4,0)","v":169343.93999999901},13970.901423299949,{"$f":"VLOOKUP($A90,[4]Anti_platelet!$A$13:$D$226,4,0)","v":191860.699999998},13970.901423299949,{"$f":"VLOOKUP($A90,[4]Diuretics!$A$11:$D$224,4,0)","v":161393.39000000001},13970.901423299949,{"$f":"VLOOKUP($A90,[4]Anti_arrhythmic_drugs!$A$13:$D$226,4,0)","v":18593.73},13970.901423299949,{"$f":"VLOOKUP($A90,[4]Positive_Intotropic!$A$13:$D$226,4,0)","v":16488.39},13970.901423299949,{"$f":"VLOOKUP($A90,[4]anti_fibrinolytic!$A$13:$D$226,4,0)","v":9385.59},13970.901423299949,{"$f":"VLOOKUP($A90,[4]sympathomimetics!$A$11:$D$223,4,0)","v":10872.95},13970.901423299949,{"$f":"VLOOKUP($A90,[4]CVD_All_prescriptions!$A$10:$D$223,4,0)","v":2705297.66},{"$f":"VLOOKUP($A90,[4]CVD_All_prescriptions!$A$10:$D$223,3,0)","v":807772},{"$f":"VLOOKUP($A90,[5]CVD_All_prescriptions!$A$10:$C$392,3,0)","v":2596213.7009439999},{"$f":"VLOOKUP($A90,Lookup!$BP$3:$BW$213,8,0)","v":14036.584080126517},{"$f":"VLOOKUP($A90,[5]Lipid_regulators!$A$12:$C$345,3,0)","v":562164.44984190201},14036.584080126517,{"$f":"VLOOKUP($A90,[5]HyperandHeartfailure!$A$12:$C$356,3,0)","v":548463.69057170302},14036.584080126517,{"$f":"VLOOKUP($A90,[5]Nit_Calc_Antianginal!$A$12:$C$345,3,0)","v":592176.09895776201},14036.584080126517,{"$f":"VLOOKUP($A90,[5]Anti_coagulants!$A$11:$C$325,3,0)","v":259076.920833543},14036.584080126517,{"$f":"VLOOKUP($A90,[5]Beta_Adrenorecepter!$A$11:$C$352,3,0)","v":182144.470099792},14036.584080126517,{"$f":"VLOOKUP($A90,[5]Anti_platelet!$A$12:$C$335,3,0)","v":202767.72031479701},14036.584080126517,{"$f":"VLOOKUP($A90,[5]Diuretics!$A$12:$C$353,3,0)","v":196193.25046213},14036.584080126517,{"$f":"VLOOKUP($A90,[5]Anti_arrhythmic_drugs!$A$11:$C$271,3,0)","v":17055.329947769598},14036.584080126517,{"$f":"VLOOKUP($A90,[5]Positive_Intotropic!$A$12:$C$297,3,0)","v":13985.059983819699},14036.584080126517,{"$f":"VLOOKUP($A90,[5]anti_fibrinolytic!$A$11:$C$287,3,0)","v":8229.0000385046005},14036.584080126517,{"$f":"VLOOKUP($A90,[5]sympathomimetics!$A$11:$C$223,3,0)","v":13957.7098922729},14036.584080126517,{"$f":"VLOOKUP($A90,[5]CVD_All_prescriptions!$A$10:$C$392,3,0)","v":2596213.7009439999},{"$f":"VLOOKUP($A90,[5]CVD_All_prescriptions!$A$10:$C$392,2,0)","v":826011}]
["05A","NHS Coventry and Rugby",{"$f":"VLOOKUP($A91,[4]CVD_All_prescriptions!$A$10:$D$223,4,0)","v":8191265.3700000197},{"$f":"VLOOKUP($A91,Lookup!$BP$3:$BW$213,7,0)","v":52573.785109228716},{"$f":"VLOOKUP($A91,[4]Lipid_regulators!$A$14:$D$227,4,0)","v":2685807.34},52573.785109228716,{"$f":"VLOOKUP($A91,[4]HyperandHeartfailure!$A$13:$D$226,4,0)","v":1801003.16},52573.785109228716,{"$f":"VLOOKUP($A91,[4]Nit_Calc_Antianginal!$A$13:$D$226,4,0)","v":1529648.98},52573.785109228716,{"$f":"VLOOKUP($A91,[4]Anti_coagulants!$A$15:$D$227,4,0)","v":538794.66999999795},52573.785109228716,{"$f":"VLOOKUP($A91,[4]Beta_Adrenorecepter!$A$13:$D$226,4,0)","v":557152.30000000994},52573.785109228716,{"$f":"VLOOKUP($A91,[4]Anti_platelet!$A$13:$D$226,4,0)","v":483386.39},52573.785109228716,{"$f":"VLOOKUP($A91,[4]Diuretics!$A$11:$D$224,4,0)","v":479908.79999999102},52573.785109228716,{"$f":"VLOOKUP($A91,[4]Anti_arrhythmic_drugs!$A$13:$D$226,4,0)","v":41980.800000000003},52573.785109228716,{"$f":"VLOOKUP($A91,[4]Positive_Intotropic!$A$13:$D$226,4,0)","v":38606.829999999602},52573.785109228716,{"$f":"VLOOKUP($A91,[4]anti_fibrinolytic!$A$13:$D$226,4,0)","v":30647.4},52573.785109228716,{"$f":"VLOOKUP($A91,[4]sympathomimetics!$A$11:$D$223,4,0)","v":4328.7},52573.785109228716,{"$f":"VLOOKUP($A91,[4]CVD_All_prescriptions!$A$10:$D$223,4,0)","v":8191265.3700000197},{"$f":"VLOOKUP($A91,[4]CVD_All_prescriptions!$A$10:$D$223,3,0)","v":2539639},{"$f":"VLOOKUP($A91,[5]CVD_All_prescriptions!$A$10:$C$392,3,0)","v":7755072.84821878},{"$f":"VLOOKUP($A91,Lookup!$BP$3:$BW$213,8,0)","v":53473.918858671423},{"$f":"VLOOKUP($A91,[5]Lipid_regulators!$A$12:$C$345,3,0)","v":2101196.7797033},53473.918858671423,{"$f":"VLOOKUP($A91,[5]HyperandHeartfailure!$A$12:$C$356,3,0)","v":1475537.8298513701},53473.918858671423,{"$f":"VLOOKUP($A91,[5]Nit_Calc_Antianginal!$A$12:$C$345,3,0)","v":1514477.75743513},53473.918858671423,{"$f":"VLOOKUP($A91,[5]Anti_coagulants!$A$11:$C$325,3,0)","v":662455.79956231604},53473.918858671423,{"$f":"VLOOKUP($A91,[5]Beta_Adrenorecepter!$A$11:$C$352,3,0)","v":667908.86039637798},53473.918858671423,{"$f":"VLOOKUP($A91,[5]Anti_platelet!$A$12:$C$335,3,0)","v":502616.90956073999},53473.918858671423,{"$f":"VLOOKUP($A91,[5]Diuretics!$A$12:$C$353,3,0)","v":727861.32163345802},53473.918858671423,{"$f":"VLOOKUP($A91,[5]Anti_arrhythmic_drugs!$A$11:$C$271,3,0)","v":38897.900092780597},53473.918858671423,{"$f":"VLOOKUP($A91,[5]Positive_Intotropic!$A$12:$C$297,3,0)","v":32591.769970476598},53473.918858671423,{"$f":"VLOOKUP($A91,[5]anti_fibrinolytic!$A$11:$C$287,3,0)","v":25294.050051093102},53473.918858671423,{"$f":"VLOOKUP($A91,[5]sympathomimetics!$A$11:$C$223,3,0)","v":6233.8699617385901},53473.918858671423,{"$f":"VLOOKUP($A91,[5]CVD_All_prescriptions!$A$10:$C$392,3,0)","v":7755072.84821878},{"$f":"VLOOKUP($A91,[5]CVD_All_prescriptions!$A$10:$C$392,2,0)","v":2585127}]
["05C","NHS Dudley",{"$f":"VLOOKUP($A92,[4]CVD_All_prescriptions!$A$10:$D$223,4,0)","v":7656483.4800000098},{"$f":"VLOOKUP($A92,Lookup!$BP$3:$BW$213,7,0)","v":30259.682844786163},{"$f":"VLOOKUP($A92,[4]Lipid_regulators!$A$14:$D$227,4,0)","v":2352893.88},30259.682844786163,{"$f":"VLOOKUP($A92,[4]HyperandHeartfailure!$A$13:$D$226,4,0)","v":1944919.56},30259.682844786163,{"$f":"VLOOKUP($A92,[4]Nit_Calc_Antianginal!$A$13:$D$226,4,0)","v":1498733.64},30259.682844786163,{"$f":"VLOOKUP($A92,[4]Anti_coagulants!$A$15:$D$227,4,0)","v":223995.56999999899},30259.682844786163,{"$f":"VLOOKUP($A92,[4]Beta_Adrenorecepter!$A$13:$D$226,4,0)","v":568295.32000000402},30259.682844786163,{"$f":"VLOOKUP($A92,[4]Anti_platelet!$A$13:$D$226,4,0)","v":539726.62999999803},30259.682844786163,{"$f":"VLOOKUP($A92,[4]Diuretics!$A$11:$D$224,4,0)","v":403290.949999996},30259.682844786163,{"$f":"VLOOKUP($A92,[4]Anti_arrhythmic_drugs!$A$13:$D$226,4,0)","v":48301.639999999803},30259.682844786163,{"$f":"VLOOKUP($A92,[4]Positive_Intotropic!$A$13:$D$226,4,0)","v":42679.209999999803},30259.682844786163,{"$f":"VLOOKUP($A92,[4]anti_fibrinolytic!$A$13:$D$226,4,0)","v":19677.96},30259.682844786163,{"$f":"VLOOKUP($A92,[4]sympathomimetics!$A$11:$D$223,4,0)","v":13969.12},30259.682844786163,{"$f":"VLOOKUP($A92,[4]CVD_All_prescriptions!$A$10:$D$223,4,0)","v":7656483.4800000098},{"$f":"VLOOKUP($A92,[4]CVD_All_prescriptions!$A$10:$D$223,3,0)","v":1735639},{"$f":"VLOOKUP($A92,[5]CVD_All_prescriptions!$A$10:$C$392,3,0)","v":7201926.58126684},{"$f":"VLOOKUP($A92,Lookup!$BP$3:$BW$213,8,0)","v":29930.99471407977},{"$f":"VLOOKUP($A92,[5]Lipid_regulators!$A$12:$C$345,3,0)","v":1905174.4606522201},29930.99471407977,{"$f":"VLOOKUP($A92,[5]HyperandHeartfailure!$A$12:$C$356,3,0)","v":1443372.59116291},29930.99471407977,{"$f":"VLOOKUP($A92,[5]Nit_Calc_Antianginal!$A$12:$C$345,3,0)","v":1495829.01897791},29930.99471407977,{"$f":"VLOOKUP($A92,[5]Anti_coagulants!$A$11:$C$325,3,0)","v":616133.24850786501},29930.99471407977,{"$f":"VLOOKUP($A92,[5]Beta_Adrenorecepter!$A$11:$C$352,3,0)","v":583234.29023639904},29930.99471407977,{"$f":"VLOOKUP($A92,[5]Anti_platelet!$A$12:$C$335,3,0)","v":531042.40054709499},29930.99471407977,{"$f":"VLOOKUP($A92,[5]Diuretics!$A$12:$C$353,3,0)","v":509908.89103891002},29930.99471407977,{"$f":"VLOOKUP($A92,[5]Anti_arrhythmic_drugs!$A$11:$C$271,3,0)","v":49705.090020328797},29930.99471407977,{"$f":"VLOOKUP($A92,[5]Positive_Intotropic!$A$12:$C$297,3,0)","v":35678.559998057797},29930.99471407977,{"$f":"VLOOKUP($A92,[5]anti_fibrinolytic!$A$11:$C$287,3,0)","v":18619.5299973488},29930.99471407977,{"$f":"VLOOKUP($A92,[5]sympathomimetics!$A$11:$C$223,3,0)","v":13228.5001277924},29930.99471407977,{"$f":"VLOOKUP($A92,[5]CVD_All_prescriptions!$A$10:$C$392,3,0)","v":7201926.58126684},{"$f":"VLOOKUP($A92,[5]CVD_All_prescriptions!$A$10:$C$392,2,0)","v":1732981}]
["05D","NHS East Staffordshire",{"$f":"VLOOKUP($A93,[4]CVD_All_prescriptions!$A$10:$D$223,4,0)","v":2869830.31},{"$f":"VLOOKUP($A93,Lookup!$BP$3:$BW$213,7,0)","v":14017.84047297998},{"$f":"VLOOKUP($A93,[4]Lipid_regulators!$A$14:$D$227,4,0)","v":863314.77999999805},14017.84047297998,{"$f":"VLOOKUP($A93,[4]HyperandHeartfailure!$A$13:$D$226,4,0)","v":702777.02},14017.84047297998,{"$f":"VLOOKUP($A93,[4]Nit_Calc_Antianginal!$A$13:$D$226,4,0)","v":575485.18000000005},14017.84047297998,{"$f":"VLOOKUP($A93,[4]Anti_coagulants!$A$15:$D$227,4,0)","v":172625.47},14017.84047297998,{"$f":"VLOOKUP($A93,[4]Beta_Adrenorecepter!$A$13:$D$226,4,0)","v":188878.06999999899},14017.84047297998,{"$f":"VLOOKUP($A93,[4]Anti_platelet!$A$13:$D$226,4,0)","v":169231.679999999},14017.84047297998,{"$f":"VLOOKUP($A93,[4]Diuretics!$A$11:$D$224,4,0)","v":147098.18},14017.84047297998,{"$f":"VLOOKUP($A93,[4]Anti_arrhythmic_drugs!$A$13:$D$226,4,0)","v":20679.439999999999},14017.84047297998,{"$f":"VLOOKUP($A93,[4]Positive_Intotropic!$A$13:$D$226,4,0)","v":14441.68},14017.84047297998,{"$f":"VLOOKUP($A93,[4]anti_fibrinolytic!$A$13:$D$226,4,0)","v":10032.09},14017.84047297998,{"$f":"VLOOKUP($A93,[4]sympathomimetics!$A$11:$D$223,4,0)","v":5266.72},14017.84047297998,{"$f":"VLOOKUP($A93,[4]CVD_All_prescriptions!$A$10:$D$223,4,0)","v":2869830.31},{"$f":"VLOOKUP($A93,[4]CVD_All_prescriptions!$A$10:$D$223,3,0)","v":825593},{"$f":"VLOOKUP($A93,[5]CVD_All_prescriptions!$A$10:$C$392,3,0)","v":2655348.2517266301},{"$f":"VLOOKUP($A93,Lookup!$BP$3:$BW$213,8,0)","v":14142.827507519967},{"$f":"VLOOKUP($A93,[5]Lipid_regulators!$A$12:$C$345,3,0)","v":665438.85037744802},14142.827507519967,{"$f":"VLOOKUP($A93,[5]HyperandHeartfailure!$A$12:$C$356,3,0)","v":569679.89042879594},14142.827507519967,{"$f":"VLOOKUP($A93,[5]Nit_Calc_Antianginal!$A$12:$C$345,3,0)","v":584200.15997239901},14142.827507519967,{"$f":"VLOOKUP($A93,[5]Anti_coagulants!$A$11:$C$325,3,0)","v":198937.75998529},14142.827507519967,{"$f":"VLOOKUP($A93,[5]Beta_Adrenorecepter!$A$11:$C$352,3,0)","v":230003.95028202201},14142.827507519967,{"$f":"VLOOKUP($A93,[5]Anti_platelet!$A$12:$C$335,3,0)","v":184295.15006738901},14142.827507519967,{"$f":"VLOOKUP($A93,[5]Diuretics!$A$12:$C$353,3,0)","v":176343.39062589401},14142.827507519967,{"$f":"VLOOKUP($A93,[5]Anti_arrhythmic_drugs!$A$11:$C$271,3,0)","v":20196.049986123999},14142.827507519967,{"$f":"VLOOKUP($A93,[5]Positive_Intotropic!$A$12:$C$297,3,0)","v":12485.719981551199},14142.827507519967,{"$f":"VLOOKUP($A93,[5]anti_fibrinolytic!$A$11:$C$287,3,0)","v":6913.8799960613296},14142.827507519967,{"$f":"VLOOKUP($A93,[5]sympathomimetics!$A$11:$C$223,3,0)","v":6853.4500236511203},14142.827507519967,{"$f":"VLOOKUP($A93,[5]CVD_All_prescriptions!$A$10:$C$392,3,0)","v":2655348.2517266301},{"$f":"VLOOKUP($A93,[5]CVD_All_prescriptions!$A$10:$C$392,2,0)","v":832640}]
["05F","NHS Herefordshire",{"$f":"VLOOKUP($A94,[4]CVD_All_prescriptions!$A$10:$D$223,4,0)","v":3302720.69},{"$f":"VLOOKUP($A94,Lookup!$BP$3:$BW$213,7,0)","v":16218.561278863233},{"$f":"VLOOKUP($A94,[4]Lipid_regulators!$A$14:$D$227,4,0)","v":837778.78000000597},16218.561278863233,{"$f":"VLOOKUP($A94,[4]HyperandHeartfailure!$A$13:$D$226,4,0)","v":830870.1},16218.561278863233,{"$f":"VLOOKUP($A94,[4]Nit_Calc_Antianginal!$A$13:$D$226,4,0)","v":630808.53999999899},16218.561278863233,{"$f":"VLOOKUP($A94,[4]Anti_coagulants!$A$15:$D$227,4,0)","v":300380.38},16218.561278863233,{"$f":"VLOOKUP($A94,[4]Beta_Adrenorecepter!$A$13:$D$226,4,0)","v":229617.85},16218.561278863233,{"$f":"VLOOKUP($A94,[4]Anti_platelet!$A$13:$D$226,4,0)","v":209975.82},16218.561278863233,{"$f":"VLOOKUP($A94,[4]Diuretics!$A$11:$D$224,4,0)","v":201867.38},16218.561278863233,{"$f":"VLOOKUP($A94,[4]Anti_arrhythmic_drugs!$A$13:$D$226,4,0)","v":19243.169999999998},16218.561278863233,{"$f":"VLOOKUP($A94,[4]Positive_Intotropic!$A$13:$D$226,4,0)","v":23140.46},16218.561278863233,{"$f":"VLOOKUP($A94,[4]anti_fibrinolytic!$A$13:$D$226,4,0)","v":14288.16},16218.561278863233,{"$f":"VLOOKUP($A94,[4]sympathomimetics!$A$11:$D$223,4,0)","v":4750.05},16218.561278863233,{"$f":"VLOOKUP($A94,[4]CVD_All_prescriptions!$A$10:$D$223,4,0)","v":3302720.69},{"$f":"VLOOKUP($A94,[4]CVD_All_prescriptions!$A$10:$D$223,3,0)","v":1045815},{"$f":"VLOOKUP($A94,[5]CVD_All_prescriptions!$A$10:$C$392,3,0)","v":3304337.8816406201},{"$f":"VLOOKUP($A94,Lookup!$BP$3:$BW$213,8,0)","v":16187.566607460036},{"$f":"VLOOKUP($A94,[5]Lipid_regulators!$A$12:$C$345,3,0)","v":698536.42094492901},16187.566607460036,{"$f":"VLOOKUP($A94,[5]HyperandHeartfailure!$A$12:$C$356,3,0)","v":658463.64036221802},16187.566607460036,{"$f":"VLOOKUP($A94,[5]Nit_Calc_Antianginal!$A$12:$C$345,3,0)","v":627653.23909410101},16187.566607460036,{"$f":"VLOOKUP($A94,[5]Anti_coagulants!$A$11:$C$325,3,0)","v":487467.60020312999},16187.566607460036,{"$f":"VLOOKUP($A94,[5]Beta_Adrenorecepter!$A$11:$C$352,3,0)","v":274664.55041539302},16187.566607460036,{"$f":"VLOOKUP($A94,[5]Anti_platelet!$A$12:$C$335,3,0)","v":236442.77994137601},16187.566607460036,{"$f":"VLOOKUP($A94,[5]Diuretics!$A$12:$C$353,3,0)","v":266471.31073336297},16187.566607460036,{"$f":"VLOOKUP($A94,[5]Anti_arrhythmic_drugs!$A$11:$C$271,3,0)","v":16471.859988838401},16187.566607460036,{"$f":"VLOOKUP($A94,[5]Positive_Intotropic!$A$12:$C$297,3,0)","v":20551.3799975365},16187.566607460036,{"$f":"VLOOKUP($A94,[5]anti_fibrinolytic!$A$11:$C$287,3,0)","v":11119.0299600363},16187.566607460036,{"$f":"VLOOKUP($A94,[5]sympathomimetics!$A$11:$C$223,3,0)","v":6496.0699996948197},16187.566607460036,{"$f":"VLOOKUP($A94,[5]CVD_All_prescriptions!$A$10:$C$392,3,0)","v":3304337.8816406201},{"$f":"VLOOKUP($A94,[5]CVD_All_prescriptions!$A$10:$C$392,2,0)","v":1072873}]
["05G","NHS North Staffordshire",{"$f":"VLOOKUP($A95,[4]CVD_All_prescriptions!$A$10:$D$223,4,0)","v":5232889.6500000097},{"$f":"VLOOKUP($A95,Lookup!$BP$3:$BW$213,7,0)","v":20647.001934235977},{"$f":"VLOOKUP($A95,[4]Lipid_regulators!$A$14:$D$227,4,0)","v":1441756.1799999899},20647.001934235977,{"$f":"VLOOKUP($A95,[4]HyperandHeartfailure!$A$13:$D$226,4,0)","v":1436512.16},20647.001934235977,{"$f":"VLOOKUP($A95,[4]Nit_Calc_Antianginal!$A$13:$D$226,4,0)","v":1037893.99},20647.001934235977,{"$f":"VLOOKUP($A95,[4]Anti_coagulants!$A$15:$D$227,4,0)","v":205745.53},20647.001934235977,{"$f":"VLOOKUP($A95,[4]Beta_Adrenorecepter!$A$13:$D$226,4,0)","v":395749.31000000099},20647.001934235977,{"$f":"VLOOKUP($A95,[4]Anti_platelet!$A$13:$D$226,4,0)","v":330445.14999999898},20647.001934235977,{"$f":"VLOOKUP($A95,[4]Diuretics!$A$11:$D$224,4,0)","v":284039.65000000002},20647.001934235977,{"$f":"VLOOKUP($A95,[4]Anti_arrhythmic_drugs!$A$13:$D$226,4,0)","v":41292.47},20647.001934235977,{"$f":"VLOOKUP($A95,[4]Positive_Intotropic!$A$13:$D$226,4,0)","v":27108.6899999999},20647.001934235977,{"$f":"VLOOKUP($A95,[4]anti_fibrinolytic!$A$13:$D$226,4,0)","v":15216.78},20647.001934235977,{"$f":"VLOOKUP($A95,[4]sympathomimetics!$A$11:$D$223,4,0)","v":17129.740000000002},20647.001934235977,{"$f":"VLOOKUP($A95,[4]CVD_All_prescriptions!$A$10:$D$223,4,0)","v":5232889.6500000097},{"$f":"VLOOKUP($A95,[4]CVD_All_prescriptions!$A$10:$D$223,3,0)","v":1418877},{"$f":"VLOOKUP($A95,[5]CVD_All_prescriptions!$A$10:$C$392,3,0)","v":4864947.2835621201},{"$f":"VLOOKUP($A95,Lookup!$BP$3:$BW$213,8,0)","v":19648.646034816247},{"$f":"VLOOKUP($A95,[5]Lipid_regulators!$A$12:$C$345,3,0)","v":1113101.73028015},19648.646034816247,{"$f":"VLOOKUP($A95,[5]HyperandHeartfailure!$A$12:$C$356,3,0)","v":1081085.1202058999},19648.646034816247,{"$f":"VLOOKUP($A95,[5]Nit_Calc_Antianginal!$A$12:$C$345,3,0)","v":1013817.29992297},19648.646034816247,{"$f":"VLOOKUP($A95,[5]Anti_coagulants!$A$11:$C$325,3,0)","v":349424.430809855},19648.646034816247,{"$f":"VLOOKUP($A95,[5]Beta_Adrenorecepter!$A$11:$C$352,3,0)","v":471070.21070534003},19648.646034816247,{"$f":"VLOOKUP($A95,[5]Anti_platelet!$A$12:$C$335,3,0)","v":338851.11057631701},19648.646034816247,{"$f":"VLOOKUP($A95,[5]Diuretics!$A$12:$C$353,3,0)","v":404301.29107439501},19648.646034816247,{"$f":"VLOOKUP($A95,[5]Anti_arrhythmic_drugs!$A$11:$C$271,3,0)","v":35307.3499439433},19648.646034816247,{"$f":"VLOOKUP($A95,[5]Positive_Intotropic!$A$12:$C$297,3,0)","v":23282.9099713266},19648.646034816247,{"$f":"VLOOKUP($A95,[5]anti_fibrinolytic!$A$11:$C$287,3,0)","v":15166.6000208855},19648.646034816247,{"$f":"VLOOKUP($A95,[5]sympathomimetics!$A$11:$C$223,3,0)","v":19539.230051040598},19648.646034816247,{"$f":"VLOOKUP($A95,[5]CVD_All_prescriptions!$A$10:$C$392,3,0)","v":4864947.2835621201},{"$f":"VLOOKUP($A95,[5]CVD_All_prescriptions!$A$10:$C$392,2,0)","v":1453403}]
["05H","NHS Warwickshire North",{"$f":"VLOOKUP($A96,[4]CVD_All_prescriptions!$A$10:$D$223,4,0)","v":4086023.22000001},{"$f":"VLOOKUP($A96,Lookup!$BP$3:$BW$213,7,0)","v":18848.559166155734},{"$f":"VLOOKUP($A96,[4]Lipid_regulators!$A$14:$D$227,4,0)","v":1440911.26999999},18848.559166155734,{"$f":"VLOOKUP($A96,[4]HyperandHeartfailure!$A$13:$D$226,4,0)","v":908054.11999999895},18848.559166155734,{"$f":"VLOOKUP($A96,[4]Nit_Calc_Antianginal!$A$13:$D$226,4,0)","v":662898.77},18848.559166155734,{"$f":"VLOOKUP($A96,[4]Anti_coagulants!$A$15:$D$227,4,0)","v":222706.37999999899},18848.559166155734,{"$f":"VLOOKUP($A96,[4]Beta_Adrenorecepter!$A$13:$D$226,4,0)","v":314549.30000000098},18848.559166155734,{"$f":"VLOOKUP($A96,[4]Anti_platelet!$A$13:$D$226,4,0)","v":246753.69999999899},18848.559166155734,{"$f":"VLOOKUP($A96,[4]Diuretics!$A$11:$D$224,4,0)","v":241399.62000000101},18848.559166155734,{"$f":"VLOOKUP($A96,[4]Anti_arrhythmic_drugs!$A$13:$D$226,4,0)","v":20603.78},18848.559166155734,{"$f":"VLOOKUP($A96,[4]Positive_Intotropic!$A$13:$D$226,4,0)","v":14802.64},18848.559166155734,{"$f":"VLOOKUP($A96,[4]anti_fibrinolytic!$A$13:$D$226,4,0)","v":12100.86},18848.559166155734,{"$f":"VLOOKUP($A96,[4]sympathomimetics!$A$11:$D$223,4,0)","v":1242.78},18848.559166155734,{"$f":"VLOOKUP($A96,[4]CVD_All_prescriptions!$A$10:$D$223,4,0)","v":4086023.22000001},{"$f":"VLOOKUP($A96,[4]CVD_All_prescriptions!$A$10:$D$223,3,0)","v":1355263},{"$f":"VLOOKUP($A96,[5]CVD_All_prescriptions!$A$10:$C$392,3,0)","v":3934555.61200085},{"$f":"VLOOKUP($A96,Lookup!$BP$3:$BW$213,8,0)","v":18859.799713876968},{"$f":"VLOOKUP($A96,[5]Lipid_regulators!$A$12:$C$345,3,0)","v":1128614.57098907},18859.799713876968,{"$f":"VLOOKUP($A96,[5]HyperandHeartfailure!$A$12:$C$356,3,0)","v":784040.42021040595},18859.799713876968,{"$f":"VLOOKUP($A96,[5]Nit_Calc_Antianginal!$A$12:$C$345,3,0)","v":670162.06975653803},18859.799713876968,{"$f":"VLOOKUP($A96,[5]Anti_coagulants!$A$11:$C$325,3,0)","v":291185.54049508303},18859.799713876968,{"$f":"VLOOKUP($A96,[5]Beta_Adrenorecepter!$A$11:$C$352,3,0)","v":375589.63009431999},18859.799713876968,{"$f":"VLOOKUP($A96,[5]Anti_platelet!$A$12:$C$335,3,0)","v":254499.36987400099},18859.799713876968,{"$f":"VLOOKUP($A96,[5]Diuretics!$A$12:$C$353,3,0)","v":383236.56071358902},18859.799713876968,{"$f":"VLOOKUP($A96,[5]Anti_arrhythmic_drugs!$A$11:$C$271,3,0)","v":18414.039977431301},18859.799713876968,{"$f":"VLOOKUP($A96,[5]Positive_Intotropic!$A$12:$C$297,3,0)","v":12536.309972286201},18859.799713876968,{"$f":"VLOOKUP($A96,[5]anti_fibrinolytic!$A$11:$C$287,3,0)","v":11433.449999570799},18859.799713876968,{"$f":"VLOOKUP($A96,[5]sympathomimetics!$A$11:$C$223,3,0)","v":4843.6499185562097},18859.799713876968,{"$f":"VLOOKUP($A96,[5]CVD_All_prescriptions!$A$10:$C$392,3,0)","v":3934555.61200085},{"$f":"VLOOKUP($A96,[5]CVD_All_prescriptions!$A$10:$C$392,2,0)","v":1394629}]
["05J","NHS Redditch and Bromsgrove",{"$f":"VLOOKUP($A97,[4]CVD_All_prescriptions!$A$10:$D$223,4,0)","v":3298692.3},{"$f":"VLOOKUP($A97,Lookup!$BP$3:$BW$213,7,0)","v":17697.231655860862},{"$f":"VLOOKUP($A97,[4]Lipid_regulators!$A$14:$D$227,4,0)","v":908838.57},17697.231655860862,{"$f":"VLOOKUP($A97,[4]HyperandHeartfailure!$A$13:$D$226,4,0)","v":790774.9},17697.231655860862,{"$f":"VLOOKUP($A97,[4]Nit_Calc_Antianginal!$A$13:$D$226,4,0)","v":677655.19},17697.231655860862,{"$f":"VLOOKUP($A97,[4]Anti_coagulants!$A$15:$D$227,4,0)","v":233916.68999999901},17697.231655860862,{"$f":"VLOOKUP($A97,[4]Beta_Adrenorecepter!$A$13:$D$226,4,0)","v":232278.94},17697.231655860862,{"$f":"VLOOKUP($A97,[4]Anti_platelet!$A$13:$D$226,4,0)","v":205789.84999999899},17697.231655860862,{"$f":"VLOOKUP($A97,[4]Diuretics!$A$11:$D$224,4,0)","v":194574.5},17697.231655860862,{"$f":"VLOOKUP($A97,[4]Anti_arrhythmic_drugs!$A$13:$D$226,4,0)","v":23025.439999999999},17697.231655860862,{"$f":"VLOOKUP($A97,[4]Positive_Intotropic!$A$13:$D$226,4,0)","v":18205.439999999999},17697.231655860862,{"$f":"VLOOKUP($A97,[4]anti_fibrinolytic!$A$13:$D$226,4,0)","v":9522.08},17697.231655860862,{"$f":"VLOOKUP($A97,[4]sympathomimetics!$A$11:$D$223,4,0)","v":4110.7},17697.231655860862,{"$f":"VLOOKUP($A97,[4]CVD_All_prescriptions!$A$10:$D$223,4,0)","v":3298692.3},{"$f":"VLOOKUP($A97,[4]CVD_All_prescriptions!$A$10:$D$223,3,0)","v":725286},{"$f":"VLOOKUP($A97,[5]CVD_All_prescriptions!$A$10:$C$392,3,0)","v":3135209.9213568699},{"$f":"VLOOKUP($A97,Lookup!$BP$3:$BW$213,8,0)","v":17729.443243799527},{"$f":"VLOOKUP($A97,[5]Lipid_regulators!$A$12:$C$345,3,0)","v":705003.13005191099},17729.443243799527,{"$f":"VLOOKUP($A97,[5]HyperandHeartfailure!$A$12:$C$356,3,0)","v":574065.70029363001},17729.443243799527,{"$f":"VLOOKUP($A97,[5]Nit_Calc_Antianginal!$A$12:$C$345,3,0)","v":695395.20962929702},17729.443243799527,{"$f":"VLOOKUP($A97,[5]Anti_coagulants!$A$11:$C$325,3,0)","v":348741.18018716603},17729.443243799527,{"$f":"VLOOKUP($A97,[5]Beta_Adrenorecepter!$A$11:$C$352,3,0)","v":273302.51021429902},17729.443243799527,{"$f":"VLOOKUP($A97,[5]Anti_platelet!$A$12:$C$335,3,0)","v":212047.109992832},17729.443243799527,{"$f":"VLOOKUP($A97,[5]Diuretics!$A$12:$C$353,3,0)","v":277114.14096091699},17729.443243799527,{"$f":"VLOOKUP($A97,[5]Anti_arrhythmic_drugs!$A$11:$C$271,3,0)","v":25044.829994261301},17729.443243799527,{"$f":"VLOOKUP($A97,[5]Positive_Intotropic!$A$12:$C$297,3,0)","v":14453.3199875355},17729.443243799527,{"$f":"VLOOKUP($A97,[5]anti_fibrinolytic!$A$11:$C$287,3,0)","v":7678.1100523471796},17729.443243799527,{"$f":"VLOOKUP($A97,[5]sympathomimetics!$A$11:$C$223,3,0)","v":2364.6799926757799},17729.443243799527,{"$f":"VLOOKUP($A97,[5]CVD_All_prescriptions!$A$10:$C$392,3,0)","v":3135209.9213568699},{"$f":"VLOOKUP($A97,[5]CVD_All_prescriptions!$A$10:$C$392,2,0)","v":748480}]
["05L","NHS Sandwell and West Birmingham",{"$f":"VLOOKUP($A98,[4]CVD_All_prescriptions!$A$10:$D$223,4,0)","v":11017145.300000099},{"$f":"VLOOKUP($A98,Lookup!$BP$3:$BW$213,7,0)","v":61501.366742596816},{"$f":"VLOOKUP($A98,[4]Lipid_regulators!$A$14:$D$227,4,0)","v":4032840.6199999098},61501.366742596816,{"$f":"VLOOKUP($A98,[4]HyperandHeartfailure!$A$13:$D$226,4,0)","v":2628802.4999999902},61501.366742596816,{"$f":"VLOOKUP($A98,[4]Nit_Calc_Antianginal!$A$13:$D$226,4,0)","v":1876970.84},61501.366742596816,{"$f":"VLOOKUP($A98,[4]Anti_coagulants!$A$15:$D$227,4,0)","v":441954.46999999898},61501.366742596816,{"$f":"VLOOKUP($A98,[4]Beta_Adrenorecepter!$A$13:$D$226,4,0)","v":561406.38000001002},61501.366742596816,{"$f":"VLOOKUP($A98,[4]Anti_platelet!$A$13:$D$226,4,0)","v":795270.27000001306},61501.366742596816,{"$f":"VLOOKUP($A98,[4]Diuretics!$A$11:$D$224,4,0)","v":528858.20999999798},61501.366742596816,{"$f":"VLOOKUP($A98,[4]Anti_arrhythmic_drugs!$A$13:$D$226,4,0)","v":52788.849999999802},61501.366742596816,{"$f":"VLOOKUP($A98,[4]Positive_Intotropic!$A$13:$D$226,4,0)","v":43846.049999999297},61501.366742596816,{"$f":"VLOOKUP($A98,[4]anti_fibrinolytic!$A$13:$D$226,4,0)","v":40127.379999999997},61501.366742596816,{"$f":"VLOOKUP($A98,[4]sympathomimetics!$A$11:$D$223,4,0)","v":14279.73},61501.366742596816,{"$f":"VLOOKUP($A98,[4]CVD_All_prescriptions!$A$10:$D$223,4,0)","v":11017145.300000099},{"$f":"VLOOKUP($A98,[4]CVD_All_prescriptions!$A$10:$D$223,3,0)","v":2584083},{"$f":"VLOOKUP($A98,[5]CVD_All_prescriptions!$A$10:$C$392,3,0)","v":9879301.4520491809},{"$f":"VLOOKUP($A98,Lookup!$BP$3:$BW$213,8,0)","v":62099.5444191344},{"$f":"VLOOKUP($A98,[5]Lipid_regulators!$A$12:$C$345,3,0)","v":2948636.3593673902},62099.5444191344,{"$f":"VLOOKUP($A98,[5]HyperandHeartfailure!$A$12:$C$356,3,0)","v":2038199.42142654},62099.5444191344,{"$f":"VLOOKUP($A98,[5]Nit_Calc_Antianginal!$A$12:$C$345,3,0)","v":1845703.31883374},62099.5444191344,{"$f":"VLOOKUP($A98,[5]Anti_coagulants!$A$11:$C$325,3,0)","v":779765.45904402097},62099.5444191344,{"$f":"VLOOKUP($A98,[5]Beta_Adrenorecepter!$A$11:$C$352,3,0)","v":620852.35040374496},62099.5444191344,{"$f":"VLOOKUP($A98,[5]Anti_platelet!$A$12:$C$335,3,0)","v":814311.91061151004},62099.5444191344,{"$f":"VLOOKUP($A98,[5]Diuretics!$A$12:$C$353,3,0)","v":701372.98239468003},62099.5444191344,{"$f":"VLOOKUP($A98,[5]Anti_arrhythmic_drugs!$A$11:$C$271,3,0)","v":50201.129958570004},62099.5444191344,{"$f":"VLOOKUP($A98,[5]Positive_Intotropic!$A$12:$C$297,3,0)","v":37064.009871542497},62099.5444191344,{"$f":"VLOOKUP($A98,[5]anti_fibrinolytic!$A$11:$C$287,3,0)","v":31835.9201039076},62099.5444191344,{"$f":"VLOOKUP($A98,[5]sympathomimetics!$A$11:$C$223,3,0)","v":11358.5900335312},62099.5444191344,{"$f":"VLOOKUP($A98,[5]CVD_All_prescriptions!$A$10:$C$392,3,0)","v":9879301.4520491809},{"$f":"VLOOKUP($A98,[5]CVD_All_prescriptions!$A$10:$C$392,2,0)","v":2660183}]
["05N","NHS Shropshire",{"$f":"VLOOKUP($A99,[4]CVD_All_prescriptions!$A$10:$D$223,4,0)","v":7026399.3000000101},{"$f":"VLOOKUP($A99,Lookup!$BP$3:$BW$213,7,0)","v":26876.000359679885},{"$f":"VLOOKUP($A99,[4]Lipid_regulators!$A$14:$D$227,4,0)","v":2552473.0799999698},26876.000359679885,{"$f":"VLOOKUP($A99,[4]HyperandHeartfailure!$A$13:$D$226,4,0)","v":1684266.66},26876.000359679885,{"$f":"VLOOKUP($A99,[4]Nit_Calc_Antianginal!$A$13:$D$226,4,0)","v":1093772.6499999999},26876.000359679885,{"$f":"VLOOKUP($A99,[4]Anti_coagulants!$A$15:$D$227,4,0)","v":418676.55},26876.000359679885,{"$f":"VLOOKUP($A99,[4]Beta_Adrenorecepter!$A$13:$D$226,4,0)","v":410508.09000000497},26876.000359679885,{"$f":"VLOOKUP($A99,[4]Anti_platelet!$A$13:$D$226,4,0)","v":401874.34999999899},26876.000359679885,{"$f":"VLOOKUP($A99,[4]Diuretics!$A$11:$D$224,4,0)","v":344432.03},26876.000359679885,{"$f":"VLOOKUP($A99,[4]Anti_arrhythmic_drugs!$A$13:$D$226,4,0)","v":51401.179999999898},26876.000359679885,{"$f":"VLOOKUP($A99,[4]Positive_Intotropic!$A$13:$D$226,4,0)","v":38474.809999999801},26876.000359679885,{"$f":"VLOOKUP($A99,[4]anti_fibrinolytic!$A$13:$D$226,4,0)","v":22263.77},26876.000359679885,{"$f":"VLOOKUP($A99,[4]sympathomimetics!$A$11:$D$223,4,0)","v":8161.42},26876.000359679885,{"$f":"VLOOKUP($A99,[4]CVD_All_prescriptions!$A$10:$D$223,4,0)","v":7026399.3000000101},{"$f":"VLOOKUP($A99,[4]CVD_All_prescriptions!$A$10:$D$223,3,0)","v":1683930},{"$f":"VLOOKUP($A99,[5]CVD_All_prescriptions!$A$10:$C$392,3,0)","v":6520615.3243851401},{"$f":"VLOOKUP($A99,Lookup!$BP$3:$BW$213,8,0)","v":26993.615682042982},{"$f":"VLOOKUP($A99,[5]Lipid_regulators!$A$12:$C$345,3,0)","v":2034348.43163617},26993.615682042982,{"$f":"VLOOKUP($A99,[5]HyperandHeartfailure!$A$12:$C$356,3,0)","v":1370837.8206165701},26993.615682042982,{"$f":"VLOOKUP($A99,[5]Nit_Calc_Antianginal!$A$12:$C$345,3,0)","v":1147236.4196729399},26993.615682042982,{"$f":"VLOOKUP($A99,[5]Anti_coagulants!$A$11:$C$325,3,0)","v":532970.469945975},26993.615682042982,{"$f":"VLOOKUP($A99,[5]Beta_Adrenorecepter!$A$11:$C$352,3,0)","v":465141.11049290001},26993.615682042982,{"$f":"VLOOKUP($A99,[5]Anti_platelet!$A$12:$C$335,3,0)","v":408052.67070023698},26993.615682042982,{"$f":"VLOOKUP($A99,[5]Diuretics!$A$12:$C$353,3,0)","v":460652.16124010098},26993.615682042982,{"$f":"VLOOKUP($A99,[5]Anti_arrhythmic_drugs!$A$11:$C$271,3,0)","v":42546.9700726718},26993.615682042982,{"$f":"VLOOKUP($A99,[5]Positive_Intotropic!$A$12:$C$297,3,0)","v":33045.419982641899},26993.615682042982,{"$f":"VLOOKUP($A99,[5]anti_fibrinolytic!$A$11:$C$287,3,0)","v":18906.470062017401},26993.615682042982,{"$f":"VLOOKUP($A99,[5]sympathomimetics!$A$11:$C$223,3,0)","v":6863.9399633407602},26993.615682042982,{"$f":"VLOOKUP($A99,[5]CVD_All_prescriptions!$A$10:$C$392,3,0)","v":6520615.3243851401},{"$f":"VLOOKUP($A99,[5]CVD_All_prescriptions!$A$10:$C$392,2,0)","v":1746857}]
["05P","NHS Solihull",{"$f":"VLOOKUP($A100,[4]CVD_All_prescriptions!$A$10:$D$223,4,0)","v":4803277.99},{"$f":"VLOOKUP($A100,Lookup!$BP$3:$BW$213,7,0)","v":23303.40496516534},{"$f":"VLOOKUP($A100,[4]Lipid_regulators!$A$14:$D$227,4,0)","v":1408434.79000001},23303.40496516534,{"$f":"VLOOKUP($A100,[4]HyperandHeartfailure!$A$13:$D$226,4,0)","v":1142038.07},23303.40496516534,{"$f":"VLOOKUP($A100,[4]Nit_Calc_Antianginal!$A$13:$D$226,4,0)","v":933962.30999999901},23303.40496516534,{"$f":"VLOOKUP($A100,[4]Anti_coagulants!$A$15:$D$227,4,0)","v":224163.18999999901},23303.40496516534,{"$f":"VLOOKUP($A100,[4]Beta_Adrenorecepter!$A$13:$D$226,4,0)","v":370365.03000000102},23303.40496516534,{"$f":"VLOOKUP($A100,[4]Anti_platelet!$A$13:$D$226,4,0)","v":350372.35999999801},23303.40496516534,{"$f":"VLOOKUP($A100,[4]Diuretics!$A$11:$D$224,4,0)","v":270767.87999999902},23303.40496516534,{"$f":"VLOOKUP($A100,[4]Anti_arrhythmic_drugs!$A$13:$D$226,4,0)","v":43439.69},23303.40496516534,{"$f":"VLOOKUP($A100,[4]Positive_Intotropic!$A$13:$D$226,4,0)","v":26874.889999999901},23303.40496516534,{"$f":"VLOOKUP($A100,[4]anti_fibrinolytic!$A$13:$D$226,4,0)","v":20056.93},23303.40496516534,{"$f":"VLOOKUP($A100,[4]sympathomimetics!$A$11:$D$223,4,0)","v":12730.85},23303.40496516534,{"$f":"VLOOKUP($A100,[4]CVD_All_prescriptions!$A$10:$D$223,4,0)","v":4803277.99},{"$f":"VLOOKUP($A100,[4]CVD_All_prescriptions!$A$10:$D$223,3,0)","v":1349684},{"$f":"VLOOKUP($A100,[5]CVD_All_prescriptions!$A$10:$C$392,3,0)","v":4577516.6921810498},{"$f":"VLOOKUP($A100,Lookup!$BP$3:$BW$213,8,0)","v":23481.503287214207},{"$f":"VLOOKUP($A100,[5]Lipid_regulators!$A$12:$C$345,3,0)","v":1186971.7520268001},23481.503287214207,{"$f":"VLOOKUP($A100,[5]HyperandHeartfailure!$A$12:$C$356,3,0)","v":875752.18022114004},23481.503287214207,{"$f":"VLOOKUP($A100,[5]Nit_Calc_Antianginal!$A$12:$C$345,3,0)","v":917582.48981129401},23481.503287214207,{"$f":"VLOOKUP($A100,[5]Anti_coagulants!$A$11:$C$325,3,0)","v":332979.12948884099},23481.503287214207,{"$f":"VLOOKUP($A100,[5]Beta_Adrenorecepter!$A$11:$C$352,3,0)","v":447024.43003058399},23481.503287214207,{"$f":"VLOOKUP($A100,[5]Anti_platelet!$A$12:$C$335,3,0)","v":334142.97994471702},23481.503287214207,{"$f":"VLOOKUP($A100,[5]Diuretics!$A$12:$C$353,3,0)","v":388393.44077860599},23481.503287214207,{"$f":"VLOOKUP($A100,[5]Anti_arrhythmic_drugs!$A$11:$C$271,3,0)","v":41567.719918280804},23481.503287214207,{"$f":"VLOOKUP($A100,[5]Positive_Intotropic!$A$12:$C$297,3,0)","v":22073.449967704699},23481.503287214207,{"$f":"VLOOKUP($A100,[5]anti_fibrinolytic!$A$11:$C$287,3,0)","v":15524.5300091505},23481.503287214207,{"$f":"VLOOKUP($A100,[5]sympathomimetics!$A$11:$C$223,3,0)","v":15504.589983940101},23481.503287214207,{"$f":"VLOOKUP($A100,[5]CVD_All_prescriptions!$A$10:$C$392,3,0)","v":4577516.6921810498},{"$f":"VLOOKUP($A100,[5]CVD_All_prescriptions!$A$10:$C$392,2,0)","v":1359983}]
["05Q","NHS South East Staffs and Seisdon Peninsular",{"$f":"VLOOKUP($A101,[4]CVD_All_prescriptions!$A$10:$D$223,4,0)","v":4045230.47},{"$f":"VLOOKUP($A101,Lookup!$BP$3:$BW$213,7,0)","v":21637.207878354937},{"$f":"VLOOKUP($A101,[4]Lipid_regulators!$A$14:$D$227,4,0)","v":1186505.08},21637.207878354937,{"$f":"VLOOKUP($A101,[4]HyperandHeartfailure!$A$13:$D$226,4,0)","v":929071.79},21637.207878354937,{"$f":"VLOOKUP($A101,[4]Nit_Calc_Antianginal!$A$13:$D$226,4,0)","v":749125.03},21637.207878354937,{"$f":"VLOOKUP($A101,[4]Anti_coagulants!$A$15:$D$227,4,0)","v":269175.34999999899},21637.207878354937,{"$f":"VLOOKUP($A101,[4]Beta_Adrenorecepter!$A$13:$D$226,4,0)","v":294395.68000000098},21637.207878354937,{"$f":"VLOOKUP($A101,[4]Anti_platelet!$A$13:$D$226,4,0)","v":301083.98999999801},21637.207878354937,{"$f":"VLOOKUP($A101,[4]Diuretics!$A$11:$D$224,4,0)","v":233040.640000001},21637.207878354937,{"$f":"VLOOKUP($A101,[4]Anti_arrhythmic_drugs!$A$13:$D$226,4,0)","v":44388.19},21637.207878354937,{"$f":"VLOOKUP($A101,[4]Positive_Intotropic!$A$13:$D$226,4,0)","v":22513.15},21637.207878354937,{"$f":"VLOOKUP($A101,[4]anti_fibrinolytic!$A$13:$D$226,4,0)","v":13753.95},21637.207878354937,{"$f":"VLOOKUP($A101,[4]sympathomimetics!$A$11:$D$223,4,0)","v":2177.62},21637.207878354937,{"$f":"VLOOKUP($A101,[4]CVD_All_prescriptions!$A$10:$D$223,4,0)","v":4045230.47},{"$f":"VLOOKUP($A101,[4]CVD_All_prescriptions!$A$10:$D$223,3,0)","v":1263943},{"$f":"VLOOKUP($A101,[5]CVD_All_prescriptions!$A$10:$C$392,3,0)","v":3920396.8516129898},{"$f":"VLOOKUP($A101,Lookup!$BP$3:$BW$213,8,0)","v":21697.622206347587},{"$f":"VLOOKUP($A101,[5]Lipid_regulators!$A$12:$C$345,3,0)","v":969701.47036308097},21697.622206347587,{"$f":"VLOOKUP($A101,[5]HyperandHeartfailure!$A$12:$C$356,3,0)","v":741812.17048090696},21697.622206347587,{"$f":"VLOOKUP($A101,[5]Nit_Calc_Antianginal!$A$12:$C$345,3,0)","v":772706.40942744899},21697.622206347587,{"$f":"VLOOKUP($A101,[5]Anti_coagulants!$A$11:$C$325,3,0)","v":365303.749931067},21697.622206347587,{"$f":"VLOOKUP($A101,[5]Beta_Adrenorecepter!$A$11:$C$352,3,0)","v":352346.040605649},21697.622206347587,{"$f":"VLOOKUP($A101,[5]Anti_platelet!$A$12:$C$335,3,0)","v":311951.58023613697},21697.622206347587,{"$f":"VLOOKUP($A101,[5]Diuretics!$A$12:$C$353,3,0)","v":326103.020692766},21697.622206347587,{"$f":"VLOOKUP($A101,[5]Anti_arrhythmic_drugs!$A$11:$C$271,3,0)","v":49061.8498848975},21697.622206347587,{"$f":"VLOOKUP($A101,[5]Positive_Intotropic!$A$12:$C$297,3,0)","v":19281.7599965632},21697.622206347587,{"$f":"VLOOKUP($A101,[5]anti_fibrinolytic!$A$11:$C$287,3,0)","v":10793.6300039291},21697.622206347587,{"$f":"VLOOKUP($A101,[5]sympathomimetics!$A$11:$C$223,3,0)","v":1335.1699905395501},21697.622206347587,{"$f":"VLOOKUP($A101,[5]CVD_All_prescriptions!$A$10:$C$392,3,0)","v":3920396.8516129898},{"$f":"VLOOKUP($A101,[5]CVD_All_prescriptions!$A$10:$C$392,2,0)","v":1301110}]
["05R","NHS South Warwickshire",{"$f":"VLOOKUP($A102,[4]CVD_All_prescriptions!$A$10:$D$223,4,0)","v":5118029.7700000098},{"$f":"VLOOKUP($A102,Lookup!$BP$3:$BW$213,7,0)","v":26733.066171439743},{"$f":"VLOOKUP($A102,[4]Lipid_regulators!$A$14:$D$227,4,0)","v":1525316.6999999899},26733.066171439743,{"$f":"VLOOKUP($A102,[4]HyperandHeartfailure!$A$13:$D$226,4,0)","v":1142209.08},26733.066171439743,{"$f":"VLOOKUP($A102,[4]Nit_Calc_Antianginal!$A$13:$D$226,4,0)","v":858500.55},26733.066171439743,{"$f":"VLOOKUP($A102,[4]Anti_coagulants!$A$15:$D$227,4,0)","v":564326.57999999903},26733.066171439743,{"$f":"VLOOKUP($A102,[4]Beta_Adrenorecepter!$A$13:$D$226,4,0)","v":299999.62000000098},26733.066171439743,{"$f":"VLOOKUP($A102,[4]Anti_platelet!$A$13:$D$226,4,0)","v":310883.50999999902},26733.066171439743,{"$f":"VLOOKUP($A102,[4]Diuretics!$A$11:$D$224,4,0)","v":288470.53999999899},26733.066171439743,{"$f":"VLOOKUP($A102,[4]Anti_arrhythmic_drugs!$A$13:$D$226,4,0)","v":78039.869999999893},26733.066171439743,{"$f":"VLOOKUP($A102,[4]Positive_Intotropic!$A$13:$D$226,4,0)","v":29970.9399999999},26733.066171439743,{"$f":"VLOOKUP($A102,[4]anti_fibrinolytic!$A$13:$D$226,4,0)","v":17406.82},26733.066171439743,{"$f":"VLOOKUP($A102,[4]sympathomimetics!$A$11:$D$223,4,0)","v":2905.56},26733.066171439743,{"$f":"VLOOKUP($A102,[4]CVD_All_prescriptions!$A$10:$D$223,4,0)","v":5118029.7700000098},{"$f":"VLOOKUP($A102,[4]CVD_All_prescriptions!$A$10:$D$223,3,0)","v":1537587},{"$f":"VLOOKUP($A102,[5]CVD_All_prescriptions!$A$10:$C$392,3,0)","v":5028746.8417097703},{"$f":"VLOOKUP($A102,Lookup!$BP$3:$BW$213,8,0)","v":26867.168409735121},{"$f":"VLOOKUP($A102,[5]Lipid_regulators!$A$12:$C$345,3,0)","v":1189568.7908071},26867.168409735121,{"$f":"VLOOKUP($A102,[5]HyperandHeartfailure!$A$12:$C$356,3,0)","v":968110.92066898895},26867.168409735121,{"$f":"VLOOKUP($A102,[5]Nit_Calc_Antianginal!$A$12:$C$345,3,0)","v":885409.758936167},26867.168409735121,{"$f":"VLOOKUP($A102,[5]Anti_coagulants!$A$11:$C$325,3,0)","v":777791.38988345896},26867.168409735121,{"$f":"VLOOKUP($A102,[5]Beta_Adrenorecepter!$A$11:$C$352,3,0)","v":350268.08022308402},26867.168409735121,{"$f":"VLOOKUP($A102,[5]Anti_platelet!$A$12:$C$335,3,0)","v":321431.99977818102},26867.168409735121,{"$f":"VLOOKUP($A102,[5]Diuretics!$A$12:$C$353,3,0)","v":420235.98141843802},26867.168409735121,{"$f":"VLOOKUP($A102,[5]Anti_arrhythmic_drugs!$A$11:$C$271,3,0)","v":68011.7200099826},26867.168409735121,{"$f":"VLOOKUP($A102,[5]Positive_Intotropic!$A$12:$C$297,3,0)","v":25374.8099732995},26867.168409735121,{"$f":"VLOOKUP($A102,[5]anti_fibrinolytic!$A$11:$C$287,3,0)","v":13116.8500063419},26867.168409735121,{"$f":"VLOOKUP($A102,[5]sympathomimetics!$A$11:$C$223,3,0)","v":9426.5400047302192},26867.168409735121,{"$f":"VLOOKUP($A102,[5]CVD_All_prescriptions!$A$10:$C$392,3,0)","v":5028746.8417097703},{"$f":"VLOOKUP($A102,[5]CVD_All_prescriptions!$A$10:$C$392,2,0)","v":1574399}]
["05T","NHS South Worcestershire",{"$f":"VLOOKUP($A103,[4]CVD_All_prescriptions!$A$10:$D$223,4,0)","v":6347189.2199999997},{"$f":"VLOOKUP($A103,Lookup!$BP$3:$BW$213,7,0)","v":28313.100268920472},{"$f":"VLOOKUP($A103,[4]Lipid_regulators!$A$14:$D$227,4,0)","v":1779218.76999998},28313.100268920472,{"$f":"VLOOKUP($A103,[4]HyperandHeartfailure!$A$13:$D$226,4,0)","v":1606433.83},28313.100268920472,{"$f":"VLOOKUP($A103,[4]Nit_Calc_Antianginal!$A$13:$D$226,4,0)","v":1228641.74},28313.100268920472,{"$f":"VLOOKUP($A103,[4]Anti_coagulants!$A$15:$D$227,4,0)","v":540774.18999999994},28313.100268920472,{"$f":"VLOOKUP($A103,[4]Beta_Adrenorecepter!$A$13:$D$226,4,0)","v":387540.88000000198},28313.100268920472,{"$f":"VLOOKUP($A103,[4]Anti_platelet!$A$13:$D$226,4,0)","v":354243.04999999801},28313.100268920472,{"$f":"VLOOKUP($A103,[4]Diuretics!$A$11:$D$224,4,0)","v":350360.85},28313.100268920472,{"$f":"VLOOKUP($A103,[4]Anti_arrhythmic_drugs!$A$13:$D$226,4,0)","v":35939.299999999901},28313.100268920472,{"$f":"VLOOKUP($A103,[4]Positive_Intotropic!$A$13:$D$226,4,0)","v":34745.300000000003},28313.100268920472,{"$f":"VLOOKUP($A103,[4]anti_fibrinolytic!$A$13:$D$226,4,0)","v":20975.22},28313.100268920472,{"$f":"VLOOKUP($A103,[4]sympathomimetics!$A$11:$D$223,4,0)","v":8316.09},28313.100268920472,{"$f":"VLOOKUP($A103,[4]CVD_All_prescriptions!$A$10:$D$223,4,0)","v":6347189.2199999997},{"$f":"VLOOKUP($A103,[4]CVD_All_prescriptions!$A$10:$D$223,3,0)","v":1699583},{"$f":"VLOOKUP($A103,[5]CVD_All_prescriptions!$A$10:$C$392,3,0)","v":6148306.4429963697},{"$f":"VLOOKUP($A103,Lookup!$BP$3:$BW$213,8,0)","v":28421.628889742602},{"$f":"VLOOKUP($A103,[5]Lipid_regulators!$A$12:$C$345,3,0)","v":1429332.7411388799},28421.628889742602,{"$f":"VLOOKUP($A103,[5]HyperandHeartfailure!$A$12:$C$356,3,0)","v":1331577.06058238},28421.628889742602,{"$f":"VLOOKUP($A103,[5]Nit_Calc_Antianginal!$A$12:$C$345,3,0)","v":1265107.20944845},28421.628889742602,{"$f":"VLOOKUP($A103,[5]Anti_coagulants!$A$11:$C$325,3,0)","v":748081.10058882798},28421.628889742602,{"$f":"VLOOKUP($A103,[5]Beta_Adrenorecepter!$A$11:$C$352,3,0)","v":444564.73052582098},28421.628889742602,{"$f":"VLOOKUP($A103,[5]Anti_platelet!$A$12:$C$335,3,0)","v":378080.01030555402},28421.628889742602,{"$f":"VLOOKUP($A103,[5]Diuretics!$A$12:$C$353,3,0)","v":453643.74057638599},28421.628889742602,{"$f":"VLOOKUP($A103,[5]Anti_arrhythmic_drugs!$A$11:$C$271,3,0)","v":40162.2698496878},28421.628889742602,{"$f":"VLOOKUP($A103,[5]Positive_Intotropic!$A$12:$C$297,3,0)","v":30503.310002222701},28421.628889742602,{"$f":"VLOOKUP($A103,[5]anti_fibrinolytic!$A$11:$C$287,3,0)","v":17861.250001549699},28421.628889742602,{"$f":"VLOOKUP($A103,[5]sympathomimetics!$A$11:$C$223,3,0)","v":9393.0199766159094},28421.628889742602,{"$f":"VLOOKUP($A103,[5]CVD_All_prescriptions!$A$10:$C$392,3,0)","v":6148306.4429963697},{"$f":"VLOOKUP($A103,[5]CVD_All_prescriptions!$A$10:$C$392,2,0)","v":1778500}]
["05V","NHS Stafford and Surrounds",{"$f":"VLOOKUP($A104,[4]CVD_All_prescriptions!$A$10:$D$223,4,0)","v":3176396.56},{"$f":"VLOOKUP($A104,Lookup!$BP$3:$BW$213,7,0)","v":13847.410663099561},{"$f":"VLOOKUP($A104,[4]Lipid_regulators!$A$14:$D$227,4,0)","v":874871.020000002},13847.410663099561,{"$f":"VLOOKUP($A104,[4]HyperandHeartfailure!$A$13:$D$226,4,0)","v":797477.47},13847.410663099561,{"$f":"VLOOKUP($A104,[4]Nit_Calc_Antianginal!$A$13:$D$226,4,0)","v":642937.06999999995},13847.410663099561,{"$f":"VLOOKUP($A104,[4]Anti_coagulants!$A$15:$D$227,4,0)","v":227819.78},13847.410663099561,{"$f":"VLOOKUP($A104,[4]Beta_Adrenorecepter!$A$13:$D$226,4,0)","v":200032.85},13847.410663099561,{"$f":"VLOOKUP($A104,[4]Anti_platelet!$A$13:$D$226,4,0)","v":188679.71999999901},13847.410663099561,{"$f":"VLOOKUP($A104,[4]Diuretics!$A$11:$D$224,4,0)","v":169733},13847.410663099561,{"$f":"VLOOKUP($A104,[4]Anti_arrhythmic_drugs!$A$13:$D$226,4,0)","v":32949.410000000003},13847.410663099561,{"$f":"VLOOKUP($A104,[4]Positive_Intotropic!$A$13:$D$226,4,0)","v":16629.25},13847.410663099561,{"$f":"VLOOKUP($A104,[4]anti_fibrinolytic!$A$13:$D$226,4,0)","v":15125.75},13847.410663099561,{"$f":"VLOOKUP($A104,[4]sympathomimetics!$A$11:$D$223,4,0)","v":10136.94},13847.410663099561,{"$f":"VLOOKUP($A104,[4]CVD_All_prescriptions!$A$10:$D$223,4,0)","v":3176396.56},{"$f":"VLOOKUP($A104,[4]CVD_All_prescriptions!$A$10:$D$223,3,0)","v":913904},{"$f":"VLOOKUP($A104,[5]CVD_All_prescriptions!$A$10:$C$392,3,0)","v":3078447.8735499098},{"$f":"VLOOKUP($A104,Lookup!$BP$3:$BW$213,8,0)","v":13876.743741639595},{"$f":"VLOOKUP($A104,[5]Lipid_regulators!$A$12:$C$345,3,0)","v":711012.75077003206},13876.743741639595,{"$f":"VLOOKUP($A104,[5]HyperandHeartfailure!$A$12:$C$356,3,0)","v":665903.15075284196},13876.743741639595,{"$f":"VLOOKUP($A104,[5]Nit_Calc_Antianginal!$A$12:$C$345,3,0)","v":663396.53023785399},13876.743741639595,{"$f":"VLOOKUP($A104,[5]Anti_coagulants!$A$11:$C$325,3,0)","v":322021.86051741202},13876.743741639595,{"$f":"VLOOKUP($A104,[5]Beta_Adrenorecepter!$A$11:$C$352,3,0)","v":230129.16029179099},13876.743741639595,{"$f":"VLOOKUP($A104,[5]Anti_platelet!$A$12:$C$335,3,0)","v":195172.459929228},13876.743741639595,{"$f":"VLOOKUP($A104,[5]Diuretics!$A$12:$C$353,3,0)","v":224972.16095915399},13876.743741639595,{"$f":"VLOOKUP($A104,[5]Anti_arrhythmic_drugs!$A$11:$C$271,3,0)","v":28048.8600386381},13876.743741639595,{"$f":"VLOOKUP($A104,[5]Positive_Intotropic!$A$12:$C$297,3,0)","v":13571.200005024701},13876.743741639595,{"$f":"VLOOKUP($A104,[5]anti_fibrinolytic!$A$11:$C$287,3,0)","v":12710.4800410271},13876.743741639595,{"$f":"VLOOKUP($A104,[5]sympathomimetics!$A$11:$C$223,3,0)","v":11509.2600069046},13876.743741639595,{"$f":"VLOOKUP($A104,[5]CVD_All_prescriptions!$A$10:$C$392,3,0)","v":3078447.8735499098},{"$f":"VLOOKUP($A104,[5]CVD_All_prescriptions!$A$10:$C$392,2,0)","v":918987}]
["05W","NHS Stoke On Trent",{"$f":"VLOOKUP($A105,[4]CVD_All_prescriptions!$A$10:$D$223,4,0)","v":6621695.9800000098},{"$f":"VLOOKUP($A105,Lookup!$BP$3:$BW$213,7,0)","v":27780.2775024777},{"$f":"VLOOKUP($A105,[4]Lipid_regulators!$A$14:$D$227,4,0)","v":1957624.35},27780.2775024777,{"$f":"VLOOKUP($A105,[4]HyperandHeartfailure!$A$13:$D$226,4,0)","v":1825805.71},27780.2775024777,{"$f":"VLOOKUP($A105,[4]Nit_Calc_Antianginal!$A$13:$D$226,4,0)","v":1234524.78},27780.2775024777,{"$f":"VLOOKUP($A105,[4]Anti_coagulants!$A$15:$D$227,4,0)","v":241140.889999999},27780.2775024777,{"$f":"VLOOKUP($A105,[4]Beta_Adrenorecepter!$A$13:$D$226,4,0)","v":466282.50000000501},27780.2775024777,{"$f":"VLOOKUP($A105,[4]Anti_platelet!$A$13:$D$226,4,0)","v":443179.24999999901},27780.2775024777,{"$f":"VLOOKUP($A105,[4]Diuretics!$A$11:$D$224,4,0)","v":332674.8},27780.2775024777,{"$f":"VLOOKUP($A105,[4]Anti_arrhythmic_drugs!$A$13:$D$226,4,0)","v":48163.66},27780.2775024777,{"$f":"VLOOKUP($A105,[4]Positive_Intotropic!$A$13:$D$226,4,0)","v":31220.299999999901},27780.2775024777,{"$f":"VLOOKUP($A105,[4]anti_fibrinolytic!$A$13:$D$226,4,0)","v":19158.91},27780.2775024777,{"$f":"VLOOKUP($A105,[4]sympathomimetics!$A$11:$D$223,4,0)","v":20124.830000000002},27780.2775024777,{"$f":"VLOOKUP($A105,[4]CVD_All_prescriptions!$A$10:$D$223,4,0)","v":6621695.9800000098},{"$f":"VLOOKUP($A105,[4]CVD_All_prescriptions!$A$10:$D$223,3,0)","v":1934607},{"$f":"VLOOKUP($A105,[5]CVD_All_prescriptions!$A$10:$C$392,3,0)","v":5928248.4039305001},{"$f":"VLOOKUP($A105,Lookup!$BP$3:$BW$213,8,0)","v":27165.708622398415},{"$f":"VLOOKUP($A105,[5]Lipid_regulators!$A$12:$C$345,3,0)","v":1409311.4516529101},27165.708622398415,{"$f":"VLOOKUP($A105,[5]HyperandHeartfailure!$A$12:$C$356,3,0)","v":1351593.0506225501},27165.708622398415,{"$f":"VLOOKUP($A105,[5]Nit_Calc_Antianginal!$A$12:$C$345,3,0)","v":1208144.35961464},27165.708622398415,{"$f":"VLOOKUP($A105,[5]Anti_coagulants!$A$11:$C$325,3,0)","v":358430.72058021999},27165.708622398415,{"$f":"VLOOKUP($A105,[5]Beta_Adrenorecepter!$A$11:$C$352,3,0)","v":563423.11018913996},27165.708622398415,{"$f":"VLOOKUP($A105,[5]Anti_platelet!$A$12:$C$335,3,0)","v":439927.340036601},27165.708622398415,{"$f":"VLOOKUP($A105,[5]Diuretics!$A$12:$C$353,3,0)","v":490279.68125720299},27165.708622398415,{"$f":"VLOOKUP($A105,[5]Anti_arrhythmic_drugs!$A$11:$C$271,3,0)","v":37320.910043060801},27165.708622398415,{"$f":"VLOOKUP($A105,[5]Positive_Intotropic!$A$12:$C$297,3,0)","v":26463.419973373399},27165.708622398415,{"$f":"VLOOKUP($A105,[5]anti_fibrinolytic!$A$11:$C$287,3,0)","v":16475.460013627999},27165.708622398415,{"$f":"VLOOKUP($A105,[5]sympathomimetics!$A$11:$C$223,3,0)","v":23269.699934959401},27165.708622398415,{"$f":"VLOOKUP($A105,[5]CVD_All_prescriptions!$A$10:$C$392,3,0)","v":5928248.4039305001},{"$f":"VLOOKUP($A105,[5]CVD_All_prescriptions!$A$10:$C$392,2,0)","v":1961028}]
["05X","NHS Telford and Wrekin",{"$f":"VLOOKUP($A106,[4]CVD_All_prescriptions!$A$10:$D$223,4,0)","v":2980197.16},{"$f":"VLOOKUP($A106,Lookup!$BP$3:$BW$213,7,0)","v":19170.236255243984},{"$f":"VLOOKUP($A106,[4]Lipid_regulators!$A$14:$D$227,4,0)","v":961356.73},19170.236255243984,{"$f":"VLOOKUP($A106,[4]HyperandHeartfailure!$A$13:$D$226,4,0)","v":669039.88},19170.236255243984,{"$f":"VLOOKUP($A106,[4]Nit_Calc_Antianginal!$A$13:$D$226,4,0)","v":541518.82999999996},19170.236255243984,{"$f":"VLOOKUP($A106,[4]Anti_coagulants!$A$15:$D$227,4,0)","v":181974.75},19170.236255243984,{"$f":"VLOOKUP($A106,[4]Beta_Adrenorecepter!$A$13:$D$226,4,0)","v":181924.579999999},19170.236255243984,{"$f":"VLOOKUP($A106,[4]Anti_platelet!$A$13:$D$226,4,0)","v":196560.079999999},19170.236255243984,{"$f":"VLOOKUP($A106,[4]Diuretics!$A$11:$D$224,4,0)","v":202107.61},19170.236255243984,{"$f":"VLOOKUP($A106,[4]Anti_arrhythmic_drugs!$A$13:$D$226,4,0)","v":14568.15},19170.236255243984,{"$f":"VLOOKUP($A106,[4]Positive_Intotropic!$A$13:$D$226,4,0)","v":15840.92},19170.236255243984,{"$f":"VLOOKUP($A106,[4]anti_fibrinolytic!$A$13:$D$226,4,0)","v":14327.76},19170.236255243984,{"$f":"VLOOKUP($A106,[4]sympathomimetics!$A$11:$D$223,4,0)","v":977.87},19170.236255243984,{"$f":"VLOOKUP($A106,[4]CVD_All_prescriptions!$A$10:$D$223,4,0)","v":2980197.16},{"$f":"VLOOKUP($A106,[4]CVD_All_prescriptions!$A$10:$D$223,3,0)","v":727288},{"$f":"VLOOKUP($A106,[5]CVD_All_prescriptions!$A$10:$C$392,3,0)","v":2919614.2608846002},{"$f":"VLOOKUP($A106,Lookup!$BP$3:$BW$213,8,0)","v":19353.830867741224},{"$f":"VLOOKUP($A106,[5]Lipid_regulators!$A$12:$C$345,3,0)","v":769653.490881145},19353.830867741224,{"$f":"VLOOKUP($A106,[5]HyperandHeartfailure!$A$12:$C$356,3,0)","v":570660.22981254803},19353.830867741224,{"$f":"VLOOKUP($A106,[5]Nit_Calc_Antianginal!$A$12:$C$345,3,0)","v":562708.92949456},19353.830867741224,{"$f":"VLOOKUP($A106,[5]Anti_coagulants!$A$11:$C$325,3,0)","v":267514.300055295},19353.830867741224,{"$f":"VLOOKUP($A106,[5]Beta_Adrenorecepter!$A$11:$C$352,3,0)","v":228406.35020858},19353.830867741224,{"$f":"VLOOKUP($A106,[5]Anti_platelet!$A$12:$C$335,3,0)","v":201154.05994536},19353.830867741224,{"$f":"VLOOKUP($A106,[5]Diuretics!$A$12:$C$353,3,0)","v":279879.22051249398},19353.830867741224,{"$f":"VLOOKUP($A106,[5]Anti_arrhythmic_drugs!$A$11:$C$271,3,0)","v":13788.36998263},19353.830867741224,{"$f":"VLOOKUP($A106,[5]Positive_Intotropic!$A$12:$C$297,3,0)","v":14020.319977909299},19353.830867741224,{"$f":"VLOOKUP($A106,[5]anti_fibrinolytic!$A$11:$C$287,3,0)","v":11134.5700006485},19353.830867741224,{"$f":"VLOOKUP($A106,[5]sympathomimetics!$A$11:$C$223,3,0)","v":694.42001342773403},19353.830867741224,{"$f":"VLOOKUP($A106,[5]CVD_All_prescriptions!$A$10:$C$392,3,0)","v":2919614.2608846002},{"$f":"VLOOKUP($A106,[5]CVD_All_prescriptions!$A$10:$C$392,2,0)","v":752271}]
["05Y","NHS Walsall",{"$f":"VLOOKUP($A107,[4]CVD_All_prescriptions!$A$10:$D$223,4,0)","v":5764556.4900000002},{"$f":"VLOOKUP($A107,Lookup!$BP$3:$BW$213,7,0)","v":26614.53226122769},{"$f":"VLOOKUP($A107,[4]Lipid_regulators!$A$14:$D$227,4,0)","v":1688697.28},26614.53226122769,{"$f":"VLOOKUP($A107,[4]HyperandHeartfailure!$A$13:$D$226,4,0)","v":1365532.24},26614.53226122769,{"$f":"VLOOKUP($A107,[4]Nit_Calc_Antianginal!$A$13:$D$226,4,0)","v":1117776.8400000001},26614.53226122769,{"$f":"VLOOKUP($A107,[4]Anti_coagulants!$A$15:$D$227,4,0)","v":281502.8},26614.53226122769,{"$f":"VLOOKUP($A107,[4]Beta_Adrenorecepter!$A$13:$D$226,4,0)","v":444050.250000006},26614.53226122769,{"$f":"VLOOKUP($A107,[4]Anti_platelet!$A$13:$D$226,4,0)","v":386399.699999996},26614.53226122769,{"$f":"VLOOKUP($A107,[4]Diuretics!$A$11:$D$224,4,0)","v":372721.24999999697},26614.53226122769,{"$f":"VLOOKUP($A107,[4]Anti_arrhythmic_drugs!$A$13:$D$226,4,0)","v":43056.539999999797},26614.53226122769,{"$f":"VLOOKUP($A107,[4]Positive_Intotropic!$A$13:$D$226,4,0)","v":29457.979999999799},26614.53226122769,{"$f":"VLOOKUP($A107,[4]anti_fibrinolytic!$A$13:$D$226,4,0)","v":21404.14},26614.53226122769,{"$f":"VLOOKUP($A107,[4]sympathomimetics!$A$11:$D$223,4,0)","v":13957.47},26614.53226122769,{"$f":"VLOOKUP($A107,[4]CVD_All_prescriptions!$A$10:$D$223,4,0)","v":5764556.4900000002},{"$f":"VLOOKUP($A107,[4]CVD_All_prescriptions!$A$10:$D$223,3,0)","v":1367251},{"$f":"VLOOKUP($A107,[5]CVD_All_prescriptions!$A$10:$C$392,3,0)","v":5534256.6023452999},{"$f":"VLOOKUP($A107,Lookup!$BP$3:$BW$213,8,0)","v":26781.133555599135},{"$f":"VLOOKUP($A107,[5]Lipid_regulators!$A$12:$C$345,3,0)","v":1369888.8305126},26781.133555599135,{"$f":"VLOOKUP($A107,[5]HyperandHeartfailure!$A$12:$C$356,3,0)","v":1119678.0303857999},26781.133555599135,{"$f":"VLOOKUP($A107,[5]Nit_Calc_Antianginal!$A$12:$C$345,3,0)","v":1162920.70798062},26781.133555599135,{"$f":"VLOOKUP($A107,[5]Anti_coagulants!$A$11:$C$325,3,0)","v":391650.58021481102},26781.133555599135,{"$f":"VLOOKUP($A107,[5]Beta_Adrenorecepter!$A$11:$C$352,3,0)","v":481292.39012809802},26781.133555599135,{"$f":"VLOOKUP($A107,[5]Anti_platelet!$A$12:$C$335,3,0)","v":406068.030768767},26781.133555599135,{"$f":"VLOOKUP($A107,[5]Diuretics!$A$12:$C$353,3,0)","v":493849.032372549},26781.133555599135,{"$f":"VLOOKUP($A107,[5]Anti_arrhythmic_drugs!$A$11:$C$271,3,0)","v":50649.340036422},26781.133555599135,{"$f":"VLOOKUP($A107,[5]Positive_Intotropic!$A$12:$C$297,3,0)","v":25478.159957557898},26781.133555599135,{"$f":"VLOOKUP($A107,[5]anti_fibrinolytic!$A$11:$C$287,3,0)","v":20662.919974803899},26781.133555599135,{"$f":"VLOOKUP($A107,[5]sympathomimetics!$A$11:$C$223,3,0)","v":12118.580013275099},26781.133555599135,{"$f":"VLOOKUP($A107,[5]CVD_All_prescriptions!$A$10:$C$392,3,0)","v":5534256.6023452999},{"$f":"VLOOKUP($A107,[5]CVD_All_prescriptions!$A$10:$C$392,2,0)","v":1428437}]
["06A","NHS Wolverhampton",{"$f":"VLOOKUP($A108,[4]CVD_All_prescriptions!$A$10:$D$223,4,0)","v":5324166.54},{"$f":"VLOOKUP($A108,Lookup!$BP$3:$BW$213,7,0)","v":26196.394781396273},{"$f":"VLOOKUP($A108,[4]Lipid_regulators!$A$14:$D$227,4,0)","v":1513773.3500000101},26196.394781396273,{"$f":"VLOOKUP($A108,[4]HyperandHeartfailure!$A$13:$D$226,4,0)","v":1241184.03},26196.394781396273,{"$f":"VLOOKUP($A108,[4]Nit_Calc_Antianginal!$A$13:$D$226,4,0)","v":1080140.19},26196.394781396273,{"$f":"VLOOKUP($A108,[4]Anti_coagulants!$A$15:$D$227,4,0)","v":339894.30999999901},26196.394781396273,{"$f":"VLOOKUP($A108,[4]Beta_Adrenorecepter!$A$13:$D$226,4,0)","v":348526.24000000302},26196.394781396273,{"$f":"VLOOKUP($A108,[4]Anti_platelet!$A$13:$D$226,4,0)","v":373460.23999999597},26196.394781396273,{"$f":"VLOOKUP($A108,[4]Diuretics!$A$11:$D$224,4,0)","v":340618.83999999799},26196.394781396273,{"$f":"VLOOKUP($A108,[4]Anti_arrhythmic_drugs!$A$13:$D$226,4,0)","v":34112.46},26196.394781396273,{"$f":"VLOOKUP($A108,[4]Positive_Intotropic!$A$13:$D$226,4,0)","v":31182.1799999998},26196.394781396273,{"$f":"VLOOKUP($A108,[4]anti_fibrinolytic!$A$13:$D$226,4,0)","v":18644.400000000001},26196.394781396273,{"$f":"VLOOKUP($A108,[4]sympathomimetics!$A$11:$D$223,4,0)","v":2630.3},26196.394781396273,{"$f":"VLOOKUP($A108,[4]CVD_All_prescriptions!$A$10:$D$223,4,0)","v":5324166.54},{"$f":"VLOOKUP($A108,[4]CVD_All_prescriptions!$A$10:$D$223,3,0)","v":1552314},{"$f":"VLOOKUP($A108,[5]CVD_All_prescriptions!$A$10:$C$392,3,0)","v":4946174.7557022003},{"$f":"VLOOKUP($A108,Lookup!$BP$3:$BW$213,8,0)","v":26119.510008963251},{"$f":"VLOOKUP($A108,[5]Lipid_regulators!$A$12:$C$345,3,0)","v":1149884.12218106},26119.510008963251,{"$f":"VLOOKUP($A108,[5]HyperandHeartfailure!$A$12:$C$356,3,0)","v":1020798.83062126},26119.510008963251,{"$f":"VLOOKUP($A108,[5]Nit_Calc_Antianginal!$A$12:$C$345,3,0)","v":1060623.62954146},26119.510008963251,{"$f":"VLOOKUP($A108,[5]Anti_coagulants!$A$11:$C$325,3,0)","v":468117.41085115098},26119.510008963251,{"$f":"VLOOKUP($A108,[5]Beta_Adrenorecepter!$A$11:$C$352,3,0)","v":384648.20054493099},26119.510008963251,{"$f":"VLOOKUP($A108,[5]Anti_platelet!$A$12:$C$335,3,0)","v":357589.390829671},26119.510008963251,{"$f":"VLOOKUP($A108,[5]Diuretics!$A$12:$C$353,3,0)","v":420887.55122624303},26119.510008963251,{"$f":"VLOOKUP($A108,[5]Anti_arrhythmic_drugs!$A$11:$C$271,3,0)","v":35071.559942573302},26119.510008963251,{"$f":"VLOOKUP($A108,[5]Positive_Intotropic!$A$12:$C$297,3,0)","v":26277.0799445212},26119.510008963251,{"$f":"VLOOKUP($A108,[5]anti_fibrinolytic!$A$11:$C$287,3,0)","v":16539.5699927807},26119.510008963251,{"$f":"VLOOKUP($A108,[5]sympathomimetics!$A$11:$C$223,3,0)","v":5737.4100265502902},26119.510008963251,{"$f":"VLOOKUP($A108,[5]CVD_All_prescriptions!$A$10:$C$392,3,0)","v":4946174.7557022003},{"$f":"VLOOKUP($A108,[5]CVD_All_prescriptions!$A$10:$C$392,2,0)","v":1603736}]
["06D","NHS Wyre Forest",{"$f":"VLOOKUP($A109,[4]CVD_All_prescriptions!$A$10:$D$223,4,0)","v":2334945.06},{"$f":"VLOOKUP($A109,Lookup!$BP$3:$BW$213,7,0)","v":10266.082671776623},{"$f":"VLOOKUP($A109,[4]Lipid_regulators!$A$14:$D$227,4,0)","v":591979.58000000403},10266.082671776623,{"$f":"VLOOKUP($A109,[4]HyperandHeartfailure!$A$13:$D$226,4,0)","v":573816.05000000005},10266.082671776623,{"$f":"VLOOKUP($A109,[4]Nit_Calc_Antianginal!$A$13:$D$226,4,0)","v":489638.79},10266.082671776623,{"$f":"VLOOKUP($A109,[4]Anti_coagulants!$A$15:$D$227,4,0)","v":210921.16},10266.082671776623,{"$f":"VLOOKUP($A109,[4]Beta_Adrenorecepter!$A$13:$D$226,4,0)","v":149282.1},10266.082671776623,{"$f":"VLOOKUP($A109,[4]Anti_platelet!$A$13:$D$226,4,0)","v":155163.29},10266.082671776623,{"$f":"VLOOKUP($A109,[4]Diuretics!$A$11:$D$224,4,0)","v":127958.23},10266.082671776623,{"$f":"VLOOKUP($A109,[4]Anti_arrhythmic_drugs!$A$13:$D$226,4,0)","v":10943.07},10266.082671776623,{"$f":"VLOOKUP($A109,[4]Positive_Intotropic!$A$13:$D$226,4,0)","v":14286.21},10266.082671776623,{"$f":"VLOOKUP($A109,[4]anti_fibrinolytic!$A$13:$D$226,4,0)","v":6869.5},10266.082671776623,{"$f":"VLOOKUP($A109,[4]sympathomimetics!$A$11:$D$223,4,0)","v":4087.08},10266.082671776623,{"$f":"VLOOKUP($A109,[4]CVD_All_prescriptions!$A$10:$D$223,4,0)","v":2334945.06},{"$f":"VLOOKUP($A109,[4]CVD_All_prescriptions!$A$10:$D$223,3,0)","v":561686},{"$f":"VLOOKUP($A109,[5]CVD_All_prescriptions!$A$10:$C$392,3,0)","v":2301920.1311603198},{"$f":"VLOOKUP($A109,Lookup!$BP$3:$BW$213,8,0)","v":10272.561365088055},{"$f":"VLOOKUP($A109,[5]Lipid_regulators!$A$12:$C$345,3,0)","v":493107.30069145601},10272.561365088055,{"$f":"VLOOKUP($A109,[5]HyperandHeartfailure!$A$12:$C$356,3,0)","v":436584.01011669601},10272.561365088055,{"$f":"VLOOKUP($A109,[5]Nit_Calc_Antianginal!$A$12:$C$345,3,0)","v":507241.07960322499},10272.561365088055,{"$f":"VLOOKUP($A109,[5]Anti_coagulants!$A$11:$C$325,3,0)","v":299417.14079016401},10272.561365088055,{"$f":"VLOOKUP($A109,[5]Beta_Adrenorecepter!$A$11:$C$352,3,0)","v":177943.79995098701},10272.561365088055,{"$f":"VLOOKUP($A109,[5]Anti_platelet!$A$12:$C$335,3,0)","v":162651.930041015},10272.561365088055,{"$f":"VLOOKUP($A109,[5]Diuretics!$A$12:$C$353,3,0)","v":187277.91001144101},10272.561365088055,{"$f":"VLOOKUP($A109,[5]Anti_arrhythmic_drugs!$A$11:$C$271,3,0)","v":13217.429985225201},10272.561365088055,{"$f":"VLOOKUP($A109,[5]Positive_Intotropic!$A$12:$C$297,3,0)","v":12399.580041110499},10272.561365088055,{"$f":"VLOOKUP($A109,[5]anti_fibrinolytic!$A$11:$C$287,3,0)","v":6465.0599944591504},10272.561365088055,{"$f":"VLOOKUP($A109,[5]sympathomimetics!$A$11:$C$223,3,0)","v":5614.8899345397904},10272.561365088055,{"$f":"VLOOKUP($A109,[5]CVD_All_prescriptions!$A$10:$C$392,3,0)","v":2301920.1311603198},{"$f":"VLOOKUP($A109,[5]CVD_All_prescriptions!$A$10:$C$392,2,0)","v":589157}]
["06F","NHS Bedfordshire",{"$f":"VLOOKUP($A110,[4]CVD_All_prescriptions!$A$10:$D$223,4,0)","v":6747562.0199999996},{"$f":"VLOOKUP($A110,Lookup!$BP$3:$BW$213,7,0)","v":49645.07105292604},{"$f":"VLOOKUP($A110,[4]Lipid_regulators!$A$14:$D$227,4,0)","v":1824424.1299999901},49645.07105292604,{"$f":"VLOOKUP($A110,[4]HyperandHeartfailure!$A$13:$D$226,4,0)","v":1500715.51},49645.07105292604,{"$f":"VLOOKUP($A110,[4]Nit_Calc_Antianginal!$A$13:$D$226,4,0)","v":1223804.74},49645.07105292604,{"$f":"VLOOKUP($A110,[4]Anti_coagulants!$A$15:$D$227,4,0)","v":592506.42000000202},49645.07105292604,{"$f":"VLOOKUP($A110,[4]Beta_Adrenorecepter!$A$13:$D$226,4,0)","v":607616.68000000704},49645.07105292604,{"$f":"VLOOKUP($A110,[4]Anti_platelet!$A$13:$D$226,4,0)","v":394589.229999998},49645.07105292604,{"$f":"VLOOKUP($A110,[4]Diuretics!$A$11:$D$224,4,0)","v":457780.00999999302},49645.07105292604,{"$f":"VLOOKUP($A110,[4]Anti_arrhythmic_drugs!$A$13:$D$226,4,0)","v":59199.149999999703},49645.07105292604,{"$f":"VLOOKUP($A110,[4]Positive_Intotropic!$A$13:$D$226,4,0)","v":37780.519999999698},49645.07105292604,{"$f":"VLOOKUP($A110,[4]anti_fibrinolytic!$A$13:$D$226,4,0)","v":31160.29},49645.07105292604,{"$f":"VLOOKUP($A110,[4]sympathomimetics!$A$11:$D$223,4,0)","v":17985.34},49645.07105292604,{"$f":"VLOOKUP($A110,[4]CVD_All_prescriptions!$A$10:$D$223,4,0)","v":6747562.0199999996},{"$f":"VLOOKUP($A110,[4]CVD_All_prescriptions!$A$10:$D$223,3,0)","v":2211145},{"$f":"VLOOKUP($A110,[5]CVD_All_prescriptions!$A$10:$C$392,3,0)","v":6672094.4944976503},{"$f":"VLOOKUP($A110,Lookup!$BP$3:$BW$213,8,0)","v":50347.208235425758},{"$f":"VLOOKUP($A110,[5]Lipid_regulators!$A$12:$C$345,3,0)","v":1401320.2220181001},50347.208235425758,{"$f":"VLOOKUP($A110,[5]HyperandHeartfailure!$A$12:$C$356,3,0)","v":1280730.18020793},50347.208235425758,{"$f":"VLOOKUP($A110,[5]Nit_Calc_Antianginal!$A$12:$C$345,3,0)","v":1287532.5686023601},50347.208235425758,{"$f":"VLOOKUP($A110,[5]Anti_coagulants!$A$11:$C$325,3,0)","v":742491.37153451703},50347.208235425758,{"$f":"VLOOKUP($A110,[5]Beta_Adrenorecepter!$A$11:$C$352,3,0)","v":729507.19059830904},50347.208235425758,{"$f":"VLOOKUP($A110,[5]Anti_platelet!$A$12:$C$335,3,0)","v":477887.839879949},50347.208235425758,{"$f":"VLOOKUP($A110,[5]Diuretics!$A$12:$C$353,3,0)","v":624147.58161949599},50347.208235425758,{"$f":"VLOOKUP($A110,[5]Anti_arrhythmic_drugs!$A$11:$C$271,3,0)","v":58459.089912414602},50347.208235425758,{"$f":"VLOOKUP($A110,[5]Positive_Intotropic!$A$12:$C$297,3,0)","v":30190.469960048798},50347.208235425758,{"$f":"VLOOKUP($A110,[5]anti_fibrinolytic!$A$11:$C$287,3,0)","v":24699.220048904401},50347.208235425758,{"$f":"VLOOKUP($A110,[5]sympathomimetics!$A$11:$C$223,3,0)","v":15128.7601156235},50347.208235425758,{"$f":"VLOOKUP($A110,[5]CVD_All_prescriptions!$A$10:$C$392,3,0)","v":6672094.4944976503},{"$f":"VLOOKUP($A110,[5]CVD_All_prescriptions!$A$10:$C$392,2,0)","v":2298590}]
["06H","NHS Cambridgeshire and Peterborough",{"$f":"VLOOKUP($A111,[4]CVD_All_prescriptions!$A$10:$D$223,4,0)","v":12621178.2600001},{"$f":"VLOOKUP($A111,Lookup!$BP$3:$BW$213,7,0)","v":98248.541947061458},{"$f":"VLOOKUP($A111,[4]Lipid_regulators!$A$14:$D$227,4,0)","v":2890123.4699999602},98248.541947061458,{"$f":"VLOOKUP($A111,[4]HyperandHeartfailure!$A$13:$D$226,4,0)","v":3097534.95},98248.541947061458,{"$f":"VLOOKUP($A111,[4]Nit_Calc_Antianginal!$A$13:$D$226,4,0)","v":2517874.7999999998},98248.541947061458,{"$f":"VLOOKUP($A111,[4]Anti_coagulants!$A$15:$D$227,4,0)","v":1370451.89},98248.541947061458,{"$f":"VLOOKUP($A111,[4]Beta_Adrenorecepter!$A$13:$D$226,4,0)","v":971351.22000000603},98248.541947061458,{"$f":"VLOOKUP($A111,[4]Anti_platelet!$A$13:$D$226,4,0)","v":635663.17000000901},98248.541947061458,{"$f":"VLOOKUP($A111,[4]Diuretics!$A$11:$D$224,4,0)","v":719231.79999999201},98248.541947061458,{"$f":"VLOOKUP($A111,[4]Anti_arrhythmic_drugs!$A$13:$D$226,4,0)","v":94136.409999999494},98248.541947061458,{"$f":"VLOOKUP($A111,[4]Positive_Intotropic!$A$13:$D$226,4,0)","v":79563.020000000106},98248.541947061458,{"$f":"VLOOKUP($A111,[4]anti_fibrinolytic!$A$13:$D$226,4,0)","v":68240.490000000296},98248.541947061458,{"$f":"VLOOKUP($A111,[4]sympathomimetics!$A$11:$D$223,4,0)","v":169087.04},98248.541947061458,{"$f":"VLOOKUP($A111,[4]CVD_All_prescriptions!$A$10:$D$223,4,0)","v":12621178.2600001},{"$f":"VLOOKUP($A111,[4]CVD_All_prescriptions!$A$10:$D$223,3,0)","v":4583035},{"$f":"VLOOKUP($A111,[5]CVD_All_prescriptions!$A$10:$C$392,3,0)","v":12193360.3592833},{"$f":"VLOOKUP($A111,Lookup!$BP$3:$BW$213,8,0)","v":99972.184836249435},{"$f":"VLOOKUP($A111,[5]Lipid_regulators!$A$12:$C$345,3,0)","v":2342158.0726701301},99972.184836249435,{"$f":"VLOOKUP($A111,[5]HyperandHeartfailure!$A$12:$C$356,3,0)","v":2435808.70014871},99972.184836249435,{"$f":"VLOOKUP($A111,[5]Nit_Calc_Antianginal!$A$12:$C$345,3,0)","v":2584436.2477369201},99972.184836249435,{"$f":"VLOOKUP($A111,[5]Anti_coagulants!$A$11:$C$325,3,0)","v":1607631.1036541199},99972.184836249435,{"$f":"VLOOKUP($A111,[5]Beta_Adrenorecepter!$A$11:$C$352,3,0)","v":1160114.7907720001},99972.184836249435,{"$f":"VLOOKUP($A111,[5]Anti_platelet!$A$12:$C$335,3,0)","v":678054.25087007298},99972.184836249435,{"$f":"VLOOKUP($A111,[5]Diuretics!$A$12:$C$353,3,0)","v":972652.34279980301},99972.184836249435,{"$f":"VLOOKUP($A111,[5]Anti_arrhythmic_drugs!$A$11:$C$271,3,0)","v":100054.040054321},99972.184836249435,{"$f":"VLOOKUP($A111,[5]Positive_Intotropic!$A$12:$C$297,3,0)","v":68388.539920926094},99972.184836249435,{"$f":"VLOOKUP($A111,[5]anti_fibrinolytic!$A$11:$C$287,3,0)","v":51688.3700467944},99972.184836249435,{"$f":"VLOOKUP($A111,[5]sympathomimetics!$A$11:$C$223,3,0)","v":186613.90060949299},99972.184836249435,{"$f":"VLOOKUP($A111,[5]CVD_All_prescriptions!$A$10:$C$392,3,0)","v":12193360.3592833},{"$f":"VLOOKUP($A111,[5]CVD_All_prescriptions!$A$10:$C$392,2,0)","v":4736648}]
["06K","NHS East and North Hertfordshire",{"$f":"VLOOKUP($A112,[4]CVD_All_prescriptions!$A$10:$D$223,4,0)","v":9769088.5800000299},{"$f":"VLOOKUP($A112,Lookup!$BP$3:$BW$213,7,0)","v":65483.716146726096},{"$f":"VLOOKUP($A112,[4]Lipid_regulators!$A$14:$D$227,4,0)","v":2815999.50999997},65483.716146726096,{"$f":"VLOOKUP($A112,[4]HyperandHeartfailure!$A$13:$D$226,4,0)","v":2527808.48},65483.716146726096,{"$f":"VLOOKUP($A112,[4]Nit_Calc_Antianginal!$A$13:$D$226,4,0)","v":1787489.1},65483.716146726096,{"$f":"VLOOKUP($A112,[4]Anti_coagulants!$A$15:$D$227,4,0)","v":660796.23000000301},65483.716146726096,{"$f":"VLOOKUP($A112,[4]Beta_Adrenorecepter!$A$13:$D$226,4,0)","v":668034.62000000803},65483.716146726096,{"$f":"VLOOKUP($A112,[4]Anti_platelet!$A$13:$D$226,4,0)","v":571700.22000000195},65483.716146726096,{"$f":"VLOOKUP($A112,[4]Diuretics!$A$11:$D$224,4,0)","v":538636.79999999295},65483.716146726096,{"$f":"VLOOKUP($A112,[4]Anti_arrhythmic_drugs!$A$13:$D$226,4,0)","v":85196.629999999597},65483.716146726096,{"$f":"VLOOKUP($A112,[4]Positive_Intotropic!$A$13:$D$226,4,0)","v":48314.499999999898},65483.716146726096,{"$f":"VLOOKUP($A112,[4]anti_fibrinolytic!$A$13:$D$226,4,0)","v":36033.89},65483.716146726096,{"$f":"VLOOKUP($A112,[4]sympathomimetics!$A$11:$D$223,4,0)","v":29078.6},65483.716146726096,{"$f":"VLOOKUP($A112,[4]CVD_All_prescriptions!$A$10:$D$223,4,0)","v":9769088.5800000299},{"$f":"VLOOKUP($A112,[4]CVD_All_prescriptions!$A$10:$D$223,3,0)","v":3371775},{"$f":"VLOOKUP($A112,[5]CVD_All_prescriptions!$A$10:$C$392,3,0)","v":9314481.3649574406},{"$f":"VLOOKUP($A112,Lookup!$BP$3:$BW$213,8,0)","v":66013.027082619126},{"$f":"VLOOKUP($A112,[5]Lipid_regulators!$A$12:$C$345,3,0)","v":2268236.7201340501},66013.027082619126,{"$f":"VLOOKUP($A112,[5]HyperandHeartfailure!$A$12:$C$356,3,0)","v":1898300.44076545},66013.027082619126,{"$f":"VLOOKUP($A112,[5]Nit_Calc_Antianginal!$A$12:$C$345,3,0)","v":1826156.22888014},66013.027082619126,{"$f":"VLOOKUP($A112,[5]Anti_coagulants!$A$11:$C$325,3,0)","v":973082.67168243194},66013.027082619126,{"$f":"VLOOKUP($A112,[5]Beta_Adrenorecepter!$A$11:$C$352,3,0)","v":793340.56029704202},66013.027082619126,{"$f":"VLOOKUP($A112,[5]Anti_platelet!$A$12:$C$335,3,0)","v":632628.74048246106},66013.027082619126,{"$f":"VLOOKUP($A112,[5]Diuretics!$A$12:$C$353,3,0)","v":743167.112665936},66013.027082619126,{"$f":"VLOOKUP($A112,[5]Anti_arrhythmic_drugs!$A$11:$C$271,3,0)","v":75445.999976664796},66013.027082619126,{"$f":"VLOOKUP($A112,[5]Positive_Intotropic!$A$12:$C$297,3,0)","v":39284.939992979198},66013.027082619126,{"$f":"VLOOKUP($A112,[5]anti_fibrinolytic!$A$11:$C$287,3,0)","v":29588.5100787878},66013.027082619126,{"$f":"VLOOKUP($A112,[5]sympathomimetics!$A$11:$C$223,3,0)","v":35249.440001487703},66013.027082619126,{"$f":"VLOOKUP($A112,[5]CVD_All_prescriptions!$A$10:$C$392,3,0)","v":9314481.3649574406},{"$f":"VLOOKUP($A112,[5]CVD_All_prescriptions!$A$10:$C$392,2,0)","v":3492783}]
["06L","NHS Ipswich and East Suffolk",{"$f":"VLOOKUP($A113,[4]CVD_All_prescriptions!$A$10:$D$223,4,0)","v":8017384.0600000201},{"$f":"VLOOKUP($A113,Lookup!$BP$3:$BW$213,7,0)","v":37412.041031540604},{"$f":"VLOOKUP($A113,[4]Lipid_regulators!$A$14:$D$227,4,0)","v":2181019.8899999899},37412.041031540604,{"$f":"VLOOKUP($A113,[4]HyperandHeartfailure!$A$13:$D$226,4,0)","v":1806973.61},37412.041031540604,{"$f":"VLOOKUP($A113,[4]Nit_Calc_Antianginal!$A$13:$D$226,4,0)","v":1649969.59},37412.041031540604,{"$f":"VLOOKUP($A113,[4]Anti_coagulants!$A$15:$D$227,4,0)","v":612966.72000000102},37412.041031540604,{"$f":"VLOOKUP($A113,[4]Beta_Adrenorecepter!$A$13:$D$226,4,0)","v":573883.42000000202},37412.041031540604,{"$f":"VLOOKUP($A113,[4]Anti_platelet!$A$13:$D$226,4,0)","v":481597.08999999799},37412.041031540604,{"$f":"VLOOKUP($A113,[4]Diuretics!$A$11:$D$224,4,0)","v":495428.51999999699},37412.041031540604,{"$f":"VLOOKUP($A113,[4]Anti_arrhythmic_drugs!$A$13:$D$226,4,0)","v":65512.65},37412.041031540604,{"$f":"VLOOKUP($A113,[4]Positive_Intotropic!$A$13:$D$226,4,0)","v":47526.049999999901},37412.041031540604,{"$f":"VLOOKUP($A113,[4]anti_fibrinolytic!$A$13:$D$226,4,0)","v":35662.879999999997},37412.041031540604,{"$f":"VLOOKUP($A113,[4]sympathomimetics!$A$11:$D$223,4,0)","v":66843.64},37412.041031540604,{"$f":"VLOOKUP($A113,[4]CVD_All_prescriptions!$A$10:$D$223,4,0)","v":8017384.0600000201},{"$f":"VLOOKUP($A113,[4]CVD_All_prescriptions!$A$10:$D$223,3,0)","v":2281158},{"$f":"VLOOKUP($A113,[5]CVD_All_prescriptions!$A$10:$C$392,3,0)","v":7777310.5140387099},{"$f":"VLOOKUP($A113,Lookup!$BP$3:$BW$213,8,0)","v":37678.650177355965},{"$f":"VLOOKUP($A113,[5]Lipid_regulators!$A$12:$C$345,3,0)","v":1854343.83076334},37678.650177355965,{"$f":"VLOOKUP($A113,[5]HyperandHeartfailure!$A$12:$C$356,3,0)","v":1509363.6706705401},37678.650177355965,{"$f":"VLOOKUP($A113,[5]Nit_Calc_Antianginal!$A$12:$C$345,3,0)","v":1671202.6287107801},37678.650177355965,{"$f":"VLOOKUP($A113,[5]Anti_coagulants!$A$11:$C$325,3,0)","v":768434.33058819198},37678.650177355965,{"$f":"VLOOKUP($A113,[5]Beta_Adrenorecepter!$A$11:$C$352,3,0)","v":643575.77045047295},37678.650177355965,{"$f":"VLOOKUP($A113,[5]Anti_platelet!$A$12:$C$335,3,0)","v":474760.57003988302},37678.650177355965,{"$f":"VLOOKUP($A113,[5]Diuretics!$A$12:$C$353,3,0)","v":645210.71274320805},37678.650177355965,{"$f":"VLOOKUP($A113,[5]Anti_arrhythmic_drugs!$A$11:$C$271,3,0)","v":62531.7300457358},37678.650177355965,{"$f":"VLOOKUP($A113,[5]Positive_Intotropic!$A$12:$C$297,3,0)","v":39298.419942796201},37678.650177355965,{"$f":"VLOOKUP($A113,[5]anti_fibrinolytic!$A$11:$C$287,3,0)","v":30922.029872417501},37678.650177355965,{"$f":"VLOOKUP($A113,[5]sympathomimetics!$A$11:$C$223,3,0)","v":77666.820211350903},37678.650177355965,{"$f":"VLOOKUP($A113,[5]CVD_All_prescriptions!$A$10:$C$392,3,0)","v":7777310.5140387099},{"$f":"VLOOKUP($A113,[5]CVD_All_prescriptions!$A$10:$C$392,2,0)","v":2358298}]
["06M","NHS Great Yarmouth and Waveney",{"$f":"VLOOKUP($A114,[4]CVD_All_prescriptions!$A$10:$D$223,4,0)","v":4319813.07},{"$f":"VLOOKUP($A114,Lookup!$BP$3:$BW$213,7,0)","v":20081.890581717453},{"$f":"VLOOKUP($A114,[4]Lipid_regulators!$A$14:$D$227,4,0)","v":972187.71000000101},20081.890581717453,{"$f":"VLOOKUP($A114,[4]HyperandHeartfailure!$A$13:$D$226,4,0)","v":1025900.01},20081.890581717453,{"$f":"VLOOKUP($A114,[4]Nit_Calc_Antianginal!$A$13:$D$226,4,0)","v":1007446.62},20081.890581717453,{"$f":"VLOOKUP($A114,[4]Anti_coagulants!$A$15:$D$227,4,0)","v":263846.17},20081.890581717453,{"$f":"VLOOKUP($A114,[4]Beta_Adrenorecepter!$A$13:$D$226,4,0)","v":370376.91999999899},20081.890581717453,{"$f":"VLOOKUP($A114,[4]Anti_platelet!$A$13:$D$226,4,0)","v":280923.94999999902},20081.890581717453,{"$f":"VLOOKUP($A114,[4]Diuretics!$A$11:$D$224,4,0)","v":300584.2},20081.890581717453,{"$f":"VLOOKUP($A114,[4]Anti_arrhythmic_drugs!$A$13:$D$226,4,0)","v":40700.789999999899},20081.890581717453,{"$f":"VLOOKUP($A114,[4]Positive_Intotropic!$A$13:$D$226,4,0)","v":28538.619999999901},20081.890581717453,{"$f":"VLOOKUP($A114,[4]anti_fibrinolytic!$A$13:$D$226,4,0)","v":20655.36},20081.890581717453,{"$f":"VLOOKUP($A114,[4]sympathomimetics!$A$11:$D$223,4,0)","v":8633.52},20081.890581717453,{"$f":"VLOOKUP($A114,[4]CVD_All_prescriptions!$A$10:$D$223,4,0)","v":4319813.07},{"$f":"VLOOKUP($A114,[4]CVD_All_prescriptions!$A$10:$D$223,3,0)","v":1310029},{"$f":"VLOOKUP($A114,[5]CVD_All_prescriptions!$A$10:$C$392,3,0)","v":4128390.6222397699},{"$f":"VLOOKUP($A114,Lookup!$BP$3:$BW$213,8,0)","v":20201.090720221608},{"$f":"VLOOKUP($A114,[5]Lipid_regulators!$A$12:$C$345,3,0)","v":795795.610366754},20201.090720221608,{"$f":"VLOOKUP($A114,[5]HyperandHeartfailure!$A$12:$C$356,3,0)","v":794276.54032807797},20201.090720221608,{"$f":"VLOOKUP($A114,[5]Nit_Calc_Antianginal!$A$12:$C$345,3,0)","v":994074.55008073198},20201.090720221608,{"$f":"VLOOKUP($A114,[5]Anti_coagulants!$A$11:$C$325,3,0)","v":332457.97973407601},20201.090720221608,{"$f":"VLOOKUP($A114,[5]Beta_Adrenorecepter!$A$11:$C$352,3,0)","v":435998.370213199},20201.090720221608,{"$f":"VLOOKUP($A114,[5]Anti_platelet!$A$12:$C$335,3,0)","v":307502.30029141298},20201.090720221608,{"$f":"VLOOKUP($A114,[5]Diuretics!$A$12:$C$353,3,0)","v":375582.13129481702},20201.090720221608,{"$f":"VLOOKUP($A114,[5]Anti_arrhythmic_drugs!$A$11:$C$271,3,0)","v":37485.900019586101},20201.090720221608,{"$f":"VLOOKUP($A114,[5]Positive_Intotropic!$A$12:$C$297,3,0)","v":23166.9099321701},20201.090720221608,{"$f":"VLOOKUP($A114,[5]anti_fibrinolytic!$A$11:$C$287,3,0)","v":17022.9399967194},20201.090720221608,{"$f":"VLOOKUP($A114,[5]sympathomimetics!$A$11:$C$223,3,0)","v":15027.3899822235},20201.090720221608,{"$f":"VLOOKUP($A114,[5]CVD_All_prescriptions!$A$10:$C$392,3,0)","v":4128390.6222397699},{"$f":"VLOOKUP($A114,[5]CVD_All_prescriptions!$A$10:$C$392,2,0)","v":1334753}]
["06N","NHS Herts Valleys",{"$f":"VLOOKUP($A115,[4]CVD_All_prescriptions!$A$10:$D$223,4,0)","v":8982060.0700000096},{"$f":"VLOOKUP($A115,Lookup!$BP$3:$BW$213,7,0)","v":69280.159181353039},{"$f":"VLOOKUP($A115,[4]Lipid_regulators!$A$14:$D$227,4,0)","v":2482477.5700000101},69280.159181353039,{"$f":"VLOOKUP($A115,[4]HyperandHeartfailure!$A$13:$D$226,4,0)","v":2217994.06},69280.159181353039,{"$f":"VLOOKUP($A115,[4]Nit_Calc_Antianginal!$A$13:$D$226,4,0)","v":1573820.85},69280.159181353039,{"$f":"VLOOKUP($A115,[4]Anti_coagulants!$A$15:$D$227,4,0)","v":667689.58000000205},69280.159181353039,{"$f":"VLOOKUP($A115,[4]Beta_Adrenorecepter!$A$13:$D$226,4,0)","v":677130.85000000498},69280.159181353039,{"$f":"VLOOKUP($A115,[4]Anti_platelet!$A$13:$D$226,4,0)","v":606193.600000003},69280.159181353039,{"$f":"VLOOKUP($A115,[4]Diuretics!$A$11:$D$224,4,0)","v":559823.23999999405},69280.159181353039,{"$f":"VLOOKUP($A115,[4]Anti_arrhythmic_drugs!$A$13:$D$226,4,0)","v":96844.56},69280.159181353039,{"$f":"VLOOKUP($A115,[4]Positive_Intotropic!$A$13:$D$226,4,0)","v":46446.559999999801},69280.159181353039,{"$f":"VLOOKUP($A115,[4]anti_fibrinolytic!$A$13:$D$226,4,0)","v":38305.940000000097},69280.159181353039,{"$f":"VLOOKUP($A115,[4]sympathomimetics!$A$11:$D$223,4,0)","v":15333.26},69280.159181353039,{"$f":"VLOOKUP($A115,[4]CVD_All_prescriptions!$A$10:$D$223,4,0)","v":8982060.0700000096},{"$f":"VLOOKUP($A115,[4]CVD_All_prescriptions!$A$10:$D$223,3,0)","v":2300238},{"$f":"VLOOKUP($A115,[5]CVD_All_prescriptions!$A$10:$C$392,3,0)","v":8635044.4375618193},{"$f":"VLOOKUP($A115,Lookup!$BP$3:$BW$213,8,0)","v":70091.756679931786},{"$f":"VLOOKUP($A115,[5]Lipid_regulators!$A$12:$C$345,3,0)","v":1896953.6524294401},70091.756679931786,{"$f":"VLOOKUP($A115,[5]HyperandHeartfailure!$A$12:$C$356,3,0)","v":1673659.0308104199},70091.756679931786,{"$f":"VLOOKUP($A115,[5]Nit_Calc_Antianginal!$A$12:$C$345,3,0)","v":1643739.1296067501},70091.756679931786,{"$f":"VLOOKUP($A115,[5]Anti_coagulants!$A$11:$C$325,3,0)","v":987283.06058024603},70091.756679931786,{"$f":"VLOOKUP($A115,[5]Beta_Adrenorecepter!$A$11:$C$352,3,0)","v":789985.89087673998},70091.756679931786,{"$f":"VLOOKUP($A115,[5]Anti_platelet!$A$12:$C$335,3,0)","v":694365.40011116897},70091.756679931786,{"$f":"VLOOKUP($A115,[5]Diuretics!$A$12:$C$353,3,0)","v":767210.32307813305},70091.756679931786,{"$f":"VLOOKUP($A115,[5]Anti_arrhythmic_drugs!$A$11:$C$271,3,0)","v":88097.179938361005},70091.756679931786,{"$f":"VLOOKUP($A115,[5]Positive_Intotropic!$A$12:$C$297,3,0)","v":38727.160014793299},70091.756679931786,{"$f":"VLOOKUP($A115,[5]anti_fibrinolytic!$A$11:$C$287,3,0)","v":35275.880085706704},70091.756679931786,{"$f":"VLOOKUP($A115,[5]sympathomimetics!$A$11:$C$223,3,0)","v":19747.7300300598},70091.756679931786,{"$f":"VLOOKUP($A115,[5]CVD_All_prescriptions!$A$10:$C$392,3,0)","v":8635044.4375618193},{"$f":"VLOOKUP($A115,[5]CVD_All_prescriptions!$A$10:$C$392,2,0)","v":2411242}]
["06P","NHS Luton",{"$f":"VLOOKUP($A116,[4]CVD_All_prescriptions!$A$10:$D$223,4,0)","v":3386813.32},{"$f":"VLOOKUP($A116,Lookup!$BP$3:$BW$213,7,0)","v":29521.975779017554},{"$f":"VLOOKUP($A116,[4]Lipid_regulators!$A$14:$D$227,4,0)","v":936286.86000001105},29521.975779017554,{"$f":"VLOOKUP($A116,[4]HyperandHeartfailure!$A$13:$D$226,4,0)","v":952750.48999999894},29521.975779017554,{"$f":"VLOOKUP($A116,[4]Nit_Calc_Antianginal!$A$13:$D$226,4,0)","v":628388.88},29521.975779017554,{"$f":"VLOOKUP($A116,[4]Anti_coagulants!$A$15:$D$227,4,0)","v":204914.23},29521.975779017554,{"$f":"VLOOKUP($A116,[4]Beta_Adrenorecepter!$A$13:$D$226,4,0)","v":188551.79},29521.975779017554,{"$f":"VLOOKUP($A116,[4]Anti_platelet!$A$13:$D$226,4,0)","v":206410.49999999901},29521.975779017554,{"$f":"VLOOKUP($A116,[4]Diuretics!$A$11:$D$224,4,0)","v":212866.889999999},29521.975779017554,{"$f":"VLOOKUP($A116,[4]Anti_arrhythmic_drugs!$A$13:$D$226,4,0)","v":21383.86},29521.975779017554,{"$f":"VLOOKUP($A116,[4]Positive_Intotropic!$A$13:$D$226,4,0)","v":13622.55},29521.975779017554,{"$f":"VLOOKUP($A116,[4]anti_fibrinolytic!$A$13:$D$226,4,0)","v":18879},29521.975779017554,{"$f":"VLOOKUP($A116,[4]sympathomimetics!$A$11:$D$223,4,0)","v":2758.27},29521.975779017554,{"$f":"VLOOKUP($A116,[4]CVD_All_prescriptions!$A$10:$D$223,4,0)","v":3386813.32},{"$f":"VLOOKUP($A116,[4]CVD_All_prescriptions!$A$10:$D$223,3,0)","v":847588},{"$f":"VLOOKUP($A116,[5]CVD_All_prescriptions!$A$10:$C$392,3,0)","v":3295271.5442637699},{"$f":"VLOOKUP($A116,Lookup!$BP$3:$BW$213,8,0)","v":29893.454891822017},{"$f":"VLOOKUP($A116,[5]Lipid_regulators!$A$12:$C$345,3,0)","v":782427.34161748702},29893.454891822017,{"$f":"VLOOKUP($A116,[5]HyperandHeartfailure!$A$12:$C$356,3,0)","v":722910.01024520397},29893.454891822017,{"$f":"VLOOKUP($A116,[5]Nit_Calc_Antianginal!$A$12:$C$345,3,0)","v":696216.70960854704},29893.454891822017,{"$f":"VLOOKUP($A116,[5]Anti_coagulants!$A$11:$C$325,3,0)","v":303433.38077858801},29893.454891822017,{"$f":"VLOOKUP($A116,[5]Beta_Adrenorecepter!$A$11:$C$352,3,0)","v":228812.55003194901},29893.454891822017,{"$f":"VLOOKUP($A116,[5]Anti_platelet!$A$12:$C$335,3,0)","v":237559.77050491801},29893.454891822017,{"$f":"VLOOKUP($A116,[5]Diuretics!$A$12:$C$353,3,0)","v":278403.09146453103},29893.454891822017,{"$f":"VLOOKUP($A116,[5]Anti_arrhythmic_drugs!$A$11:$C$271,3,0)","v":16591.099969863899},29893.454891822017,{"$f":"VLOOKUP($A116,[5]Positive_Intotropic!$A$12:$C$297,3,0)","v":11481.8999882638},29893.454891822017,{"$f":"VLOOKUP($A116,[5]anti_fibrinolytic!$A$11:$C$287,3,0)","v":13628.240046978},29893.454891822017,{"$f":"VLOOKUP($A116,[5]sympathomimetics!$A$11:$C$223,3,0)","v":3807.4500074386601},29893.454891822017,{"$f":"VLOOKUP($A116,[5]CVD_All_prescriptions!$A$10:$C$392,3,0)","v":3295271.5442637699},{"$f":"VLOOKUP($A116,[5]CVD_All_prescriptions!$A$10:$C$392,2,0)","v":874513}]
["06Q","NHS Mid Essex",{"$f":"VLOOKUP($A117,[4]CVD_All_prescriptions!$A$10:$D$223,4,0)","v":6782674.7199999997},{"$f":"VLOOKUP($A117,Lookup!$BP$3:$BW$213,7,0)","v":40316.011829319817},{"$f":"VLOOKUP($A117,[4]Lipid_regulators!$A$14:$D$227,4,0)","v":2043255.8},40316.011829319817,{"$f":"VLOOKUP($A117,[4]HyperandHeartfailure!$A$13:$D$226,4,0)","v":1702765.52},40316.011829319817,{"$f":"VLOOKUP($A117,[4]Nit_Calc_Antianginal!$A$13:$D$226,4,0)","v":1193672.1200000001},40316.011829319817,{"$f":"VLOOKUP($A117,[4]Anti_coagulants!$A$15:$D$227,4,0)","v":488832.299999999},40316.011829319817,{"$f":"VLOOKUP($A117,[4]Beta_Adrenorecepter!$A$13:$D$226,4,0)","v":471124.77},40316.011829319817,{"$f":"VLOOKUP($A117,[4]Anti_platelet!$A$13:$D$226,4,0)","v":350268.15},40316.011829319817,{"$f":"VLOOKUP($A117,[4]Diuretics!$A$11:$D$224,4,0)","v":395301.77999999601},40316.011829319817,{"$f":"VLOOKUP($A117,[4]Anti_arrhythmic_drugs!$A$13:$D$226,4,0)","v":70887.779999999795},40316.011829319817,{"$f":"VLOOKUP($A117,[4]Positive_Intotropic!$A$13:$D$226,4,0)","v":38703.3299999999},40316.011829319817,{"$f":"VLOOKUP($A117,[4]anti_fibrinolytic!$A$13:$D$226,4,0)","v":20980.95},40316.011829319817,{"$f":"VLOOKUP($A117,[4]sympathomimetics!$A$11:$D$223,4,0)","v":6882.22},40316.011829319817,{"$f":"VLOOKUP($A117,[4]CVD_All_prescriptions!$A$10:$D$223,4,0)","v":6782674.7199999997},{"$f":"VLOOKUP($A117,[4]CVD_All_prescriptions!$A$10:$D$223,3,0)","v":2276585},{"$f":"VLOOKUP($A117,[5]CVD_All_prescriptions!$A$10:$C$392,3,0)","v":6565601.6944403304},{"$f":"VLOOKUP($A117,Lookup!$BP$3:$BW$213,8,0)","v":39837.241233629065},{"$f":"VLOOKUP($A117,[5]Lipid_regulators!$A$12:$C$345,3,0)","v":1533497.5505941899},39837.241233629065,{"$f":"VLOOKUP($A117,[5]HyperandHeartfailure!$A$12:$C$356,3,0)","v":1393149.4696508499},39837.241233629065,{"$f":"VLOOKUP($A117,[5]Nit_Calc_Antianginal!$A$12:$C$345,3,0)","v":1233655.9196603501},39837.241233629065,{"$f":"VLOOKUP($A117,[5]Anti_coagulants!$A$11:$C$325,3,0)","v":760328.13059257006},39837.241233629065,{"$f":"VLOOKUP($A117,[5]Beta_Adrenorecepter!$A$11:$C$352,3,0)","v":596846.57055945694},39837.241233629065,{"$f":"VLOOKUP($A117,[5]Anti_platelet!$A$12:$C$335,3,0)","v":372644.71063229098},39837.241233629065,{"$f":"VLOOKUP($A117,[5]Diuretics!$A$12:$C$353,3,0)","v":550898.23281556705},39837.241233629065,{"$f":"VLOOKUP($A117,[5]Anti_arrhythmic_drugs!$A$11:$C$271,3,0)","v":63579.149972647399},39837.241233629065,{"$f":"VLOOKUP($A117,[5]Positive_Intotropic!$A$12:$C$297,3,0)","v":31466.1700296253},39837.241233629065,{"$f":"VLOOKUP($A117,[5]anti_fibrinolytic!$A$11:$C$287,3,0)","v":19348.999948084402},39837.241233629065,{"$f":"VLOOKUP($A117,[5]sympathomimetics!$A$11:$C$223,3,0)","v":10186.7899847031},39837.241233629065,{"$f":"VLOOKUP($A117,[5]CVD_All_prescriptions!$A$10:$C$392,3,0)","v":6565601.6944403304},{"$f":"VLOOKUP($A117,[5]CVD_All_prescriptions!$A$10:$C$392,2,0)","v":2341364}]
["06T","NHS North East Essex",{"$f":"VLOOKUP($A118,[4]CVD_All_prescriptions!$A$10:$D$223,4,0)","v":7086521.1400000099},{"$f":"VLOOKUP($A118,Lookup!$BP$3:$BW$213,7,0)","v":30556.915432041958},{"$f":"VLOOKUP($A118,[4]Lipid_regulators!$A$14:$D$227,4,0)","v":1906310.92},30556.915432041958,{"$f":"VLOOKUP($A118,[4]HyperandHeartfailure!$A$13:$D$226,4,0)","v":1913415.58},30556.915432041958,{"$f":"VLOOKUP($A118,[4]Nit_Calc_Antianginal!$A$13:$D$226,4,0)","v":1401155.37},30556.915432041958,{"$f":"VLOOKUP($A118,[4]Anti_coagulants!$A$15:$D$227,4,0)","v":389757.17000000097},30556.915432041958,{"$f":"VLOOKUP($A118,[4]Beta_Adrenorecepter!$A$13:$D$226,4,0)","v":491225.830000002},30556.915432041958,{"$f":"VLOOKUP($A118,[4]Anti_platelet!$A$13:$D$226,4,0)","v":417290.510000001},30556.915432041958,{"$f":"VLOOKUP($A118,[4]Diuretics!$A$11:$D$224,4,0)","v":429731.98999999597},30556.915432041958,{"$f":"VLOOKUP($A118,[4]Anti_arrhythmic_drugs!$A$13:$D$226,4,0)","v":63766.64},30556.915432041958,{"$f":"VLOOKUP($A118,[4]Positive_Intotropic!$A$13:$D$226,4,0)","v":39071.8399999998},30556.915432041958,{"$f":"VLOOKUP($A118,[4]anti_fibrinolytic!$A$13:$D$226,4,0)","v":23390.71},30556.915432041958,{"$f":"VLOOKUP($A118,[4]sympathomimetics!$A$11:$D$223,4,0)","v":11318.58},30556.915432041958,{"$f":"VLOOKUP($A118,[4]CVD_All_prescriptions!$A$10:$D$223,4,0)","v":7086521.1400000099},{"$f":"VLOOKUP($A118,[4]CVD_All_prescriptions!$A$10:$D$223,3,0)","v":2391401},{"$f":"VLOOKUP($A118,[5]CVD_All_prescriptions!$A$10:$C$392,3,0)","v":6488593.8764833799},{"$f":"VLOOKUP($A118,Lookup!$BP$3:$BW$213,8,0)","v":30456.51973865832},{"$f":"VLOOKUP($A118,[5]Lipid_regulators!$A$12:$C$345,3,0)","v":1421734.2114405399},30456.51973865832,{"$f":"VLOOKUP($A118,[5]HyperandHeartfailure!$A$12:$C$356,3,0)","v":1411680.5002860699},30456.51973865832,{"$f":"VLOOKUP($A118,[5]Nit_Calc_Antianginal!$A$12:$C$345,3,0)","v":1412842.45912141},30456.51973865832,{"$f":"VLOOKUP($A118,[5]Anti_coagulants!$A$11:$C$325,3,0)","v":502826.90127606702},30456.51973865832,{"$f":"VLOOKUP($A118,[5]Beta_Adrenorecepter!$A$11:$C$352,3,0)","v":598221.67102679599},30456.51973865832,{"$f":"VLOOKUP($A118,[5]Anti_platelet!$A$12:$C$335,3,0)","v":443039.21054868802},30456.51973865832,{"$f":"VLOOKUP($A118,[5]Diuretics!$A$12:$C$353,3,0)","v":574471.97262708796},30456.51973865832,{"$f":"VLOOKUP($A118,[5]Anti_arrhythmic_drugs!$A$11:$C$271,3,0)","v":62753.460046261498},30456.51973865832,{"$f":"VLOOKUP($A118,[5]Positive_Intotropic!$A$12:$C$297,3,0)","v":32379.2699683309},30456.51973865832,{"$f":"VLOOKUP($A118,[5]anti_fibrinolytic!$A$11:$C$287,3,0)","v":18866.870003461801},30456.51973865832,{"$f":"VLOOKUP($A118,[5]sympathomimetics!$A$11:$C$223,3,0)","v":9738.6501398086493},30456.51973865832,{"$f":"VLOOKUP($A118,[5]CVD_All_prescriptions!$A$10:$C$392,3,0)","v":6488593.8764833799},{"$f":"VLOOKUP($A118,[5]CVD_All_prescriptions!$A$10:$C$392,2,0)","v":2446194}]
["06V","NHS North Norfolk",{"$f":"VLOOKUP($A119,[4]CVD_All_prescriptions!$A$10:$D$223,4,0)","v":4380003.4000000097},{"$f":"VLOOKUP($A119,Lookup!$BP$3:$BW$213,7,0)","v":12992.897946580206},{"$f":"VLOOKUP($A119,[4]Lipid_regulators!$A$14:$D$227,4,0)","v":1153195.21},12992.897946580206,{"$f":"VLOOKUP($A119,[4]HyperandHeartfailure!$A$13:$D$226,4,0)","v":1301695.52},12992.897946580206,{"$f":"VLOOKUP($A119,[4]Nit_Calc_Antianginal!$A$13:$D$226,4,0)","v":786019.33999999904},12992.897946580206,{"$f":"VLOOKUP($A119,[4]Anti_coagulants!$A$15:$D$227,4,0)","v":260659.41},12992.897946580206,{"$f":"VLOOKUP($A119,[4]Beta_Adrenorecepter!$A$13:$D$226,4,0)","v":273301.52},12992.897946580206,{"$f":"VLOOKUP($A119,[4]Anti_platelet!$A$13:$D$226,4,0)","v":278656.11999999901},12992.897946580206,{"$f":"VLOOKUP($A119,[4]Diuretics!$A$11:$D$224,4,0)","v":234309.05999999901},12992.897946580206,{"$f":"VLOOKUP($A119,[4]Anti_arrhythmic_drugs!$A$13:$D$226,4,0)","v":40911.300000000097},12992.897946580206,{"$f":"VLOOKUP($A119,[4]Positive_Intotropic!$A$13:$D$226,4,0)","v":26102.42},12992.897946580206,{"$f":"VLOOKUP($A119,[4]anti_fibrinolytic!$A$13:$D$226,4,0)","v":17217.599999999999},12992.897946580206,{"$f":"VLOOKUP($A119,[4]sympathomimetics!$A$11:$D$223,4,0)","v":7935.9},12992.897946580206,{"$f":"VLOOKUP($A119,[4]CVD_All_prescriptions!$A$10:$D$223,4,0)","v":4380003.4000000097},{"$f":"VLOOKUP($A119,[4]CVD_All_prescriptions!$A$10:$D$223,3,0)","v":1436840},{"$f":"VLOOKUP($A119,[5]CVD_All_prescriptions!$A$10:$C$392,3,0)","v":4128599.7011503899},{"$f":"VLOOKUP($A119,Lookup!$BP$3:$BW$213,8,0)","v":13039.601667438628},{"$f":"VLOOKUP($A119,[5]Lipid_regulators!$A$12:$C$345,3,0)","v":993761.73939478397},13039.601667438628,{"$f":"VLOOKUP($A119,[5]HyperandHeartfailure!$A$12:$C$356,3,0)","v":1035262.0305062199},13039.601667438628,{"$f":"VLOOKUP($A119,[5]Nit_Calc_Antianginal!$A$12:$C$345,3,0)","v":790502.73916473996},13039.601667438628,{"$f":"VLOOKUP($A119,[5]Anti_coagulants!$A$11:$C$325,3,0)","v":320473.04100638599},13039.601667438628,{"$f":"VLOOKUP($A119,[5]Beta_Adrenorecepter!$A$11:$C$352,3,0)","v":310141.66010347003},13039.601667438628,{"$f":"VLOOKUP($A119,[5]Anti_platelet!$A$12:$C$335,3,0)","v":282714.03979599499},13039.601667438628,{"$f":"VLOOKUP($A119,[5]Diuretics!$A$12:$C$353,3,0)","v":310417.82117205899},13039.601667438628,{"$f":"VLOOKUP($A119,[5]Anti_arrhythmic_drugs!$A$11:$C$271,3,0)","v":37163.830025553703},13039.601667438628,{"$f":"VLOOKUP($A119,[5]Positive_Intotropic!$A$12:$C$297,3,0)","v":22913.850021660299},13039.601667438628,{"$f":"VLOOKUP($A119,[5]anti_fibrinolytic!$A$11:$C$287,3,0)","v":13667.4800355434},13039.601667438628,{"$f":"VLOOKUP($A119,[5]sympathomimetics!$A$11:$C$223,3,0)","v":11581.4699239731},13039.601667438628,{"$f":"VLOOKUP($A119,[5]CVD_All_prescriptions!$A$10:$C$392,3,0)","v":4128599.7011503899},{"$f":"VLOOKUP($A119,[5]CVD_All_prescriptions!$A$10:$C$392,2,0)","v":1497182}]
["06W","NHS Norwich",{"$f":"VLOOKUP($A120,[4]CVD_All_prescriptions!$A$10:$D$223,4,0)","v":3246388.72},{"$f":"VLOOKUP($A120,Lookup!$BP$3:$BW$213,7,0)","v":22062.545835515975},{"$f":"VLOOKUP($A120,[4]Lipid_regulators!$A$14:$D$227,4,0)","v":722504.07000000402},22062.545835515975,{"$f":"VLOOKUP($A120,[4]HyperandHeartfailure!$A$13:$D$226,4,0)","v":908220.85999999905},22062.545835515975,{"$f":"VLOOKUP($A120,[4]Nit_Calc_Antianginal!$A$13:$D$226,4,0)","v":612755.07999999996},22062.545835515975,{"$f":"VLOOKUP($A120,[4]Anti_coagulants!$A$15:$D$227,4,0)","v":278671.48},22062.545835515975,{"$f":"VLOOKUP($A120,[4]Beta_Adrenorecepter!$A$13:$D$226,4,0)","v":239630.06000000099},22062.545835515975,{"$f":"VLOOKUP($A120,[4]Anti_platelet!$A$13:$D$226,4,0)","v":223202.54},22062.545835515975,{"$f":"VLOOKUP($A120,[4]Diuretics!$A$11:$D$224,4,0)","v":190345.63},22062.545835515975,{"$f":"VLOOKUP($A120,[4]Anti_arrhythmic_drugs!$A$13:$D$226,4,0)","v":25222.55},22062.545835515975,{"$f":"VLOOKUP($A120,[4]Positive_Intotropic!$A$13:$D$226,4,0)","v":19874.36},22062.545835515975,{"$f":"VLOOKUP($A120,[4]anti_fibrinolytic!$A$13:$D$226,4,0)","v":16433.86},22062.545835515975,{"$f":"VLOOKUP($A120,[4]sympathomimetics!$A$11:$D$223,4,0)","v":9528.23},22062.545835515975,{"$f":"VLOOKUP($A120,[4]CVD_All_prescriptions!$A$10:$D$223,4,0)","v":3246388.72},{"$f":"VLOOKUP($A120,[4]CVD_All_prescriptions!$A$10:$D$223,3,0)","v":874077},{"$f":"VLOOKUP($A120,[5]CVD_All_prescriptions!$A$10:$C$392,3,0)","v":3060085.3627782301},{"$f":"VLOOKUP($A120,Lookup!$BP$3:$BW$213,8,0)","v":22123.205866946046},{"$f":"VLOOKUP($A120,[5]Lipid_regulators!$A$12:$C$345,3,0)","v":613682.07116922701},22123.205866946046,{"$f":"VLOOKUP($A120,[5]HyperandHeartfailure!$A$12:$C$356,3,0)","v":701812.38031013298},22123.205866946046,{"$f":"VLOOKUP($A120,[5]Nit_Calc_Antianginal!$A$12:$C$345,3,0)","v":608889.08931122697},22123.205866946046,{"$f":"VLOOKUP($A120,[5]Anti_coagulants!$A$11:$C$325,3,0)","v":338878.21041204798},22123.205866946046,{"$f":"VLOOKUP($A120,[5]Beta_Adrenorecepter!$A$11:$C$352,3,0)","v":282283.42042145901},22123.205866946046,{"$f":"VLOOKUP($A120,[5]Anti_platelet!$A$12:$C$335,3,0)","v":207762.47000849599},22123.205866946046,{"$f":"VLOOKUP($A120,[5]Diuretics!$A$12:$C$353,3,0)","v":247779.58109573301},22123.205866946046,{"$f":"VLOOKUP($A120,[5]Anti_arrhythmic_drugs!$A$11:$C$271,3,0)","v":23889.450019568201},22123.205866946046,{"$f":"VLOOKUP($A120,[5]Positive_Intotropic!$A$12:$C$297,3,0)","v":17516.969984531399},22123.205866946046,{"$f":"VLOOKUP($A120,[5]anti_fibrinolytic!$A$11:$C$287,3,0)","v":14284.1200931072},22123.205866946046,{"$f":"VLOOKUP($A120,[5]sympathomimetics!$A$11:$C$223,3,0)","v":3307.5999526977498},22123.205866946046,{"$f":"VLOOKUP($A120,[5]CVD_All_prescriptions!$A$10:$C$392,3,0)","v":3060085.3627782301},{"$f":"VLOOKUP($A120,[5]CVD_All_prescriptions!$A$10:$C$392,2,0)","v":903516}]
["06Y","NHS South Norfolk",{"$f":"VLOOKUP($A121,[4]CVD_All_prescriptions!$A$10:$D$223,4,0)","v":4909832.72000001},{"$f":"VLOOKUP($A121,Lookup!$BP$3:$BW$213,7,0)","v":20647.222222222223},{"$f":"VLOOKUP($A121,[4]Lipid_regulators!$A$14:$D$227,4,0)","v":1190722.04},20647.222222222223,{"$f":"VLOOKUP($A121,[4]HyperandHeartfailure!$A$13:$D$226,4,0)","v":1382699.57},20647.222222222223,{"$f":"VLOOKUP($A121,[4]Nit_Calc_Antianginal!$A$13:$D$226,4,0)","v":941187.66999999899},20647.222222222223,{"$f":"VLOOKUP($A121,[4]Anti_coagulants!$A$15:$D$227,4,0)","v":398093.56000000099},20647.222222222223,{"$f":"VLOOKUP($A121,[4]Beta_Adrenorecepter!$A$13:$D$226,4,0)","v":345485.65000000101},20647.222222222223,{"$f":"VLOOKUP($A121,[4]Anti_platelet!$A$13:$D$226,4,0)","v":289980.39},20647.222222222223,{"$f":"VLOOKUP($A121,[4]Diuretics!$A$11:$D$224,4,0)","v":254415.79},20647.222222222223,{"$f":"VLOOKUP($A121,[4]Anti_arrhythmic_drugs!$A$13:$D$226,4,0)","v":46882.139999999803},20647.222222222223,{"$f":"VLOOKUP($A121,[4]Positive_Intotropic!$A$13:$D$226,4,0)","v":26439.82},20647.222222222223,{"$f":"VLOOKUP($A121,[4]anti_fibrinolytic!$A$13:$D$226,4,0)","v":21100.99},20647.222222222223,{"$f":"VLOOKUP($A121,[4]sympathomimetics!$A$11:$D$223,4,0)","v":12825.1},20647.222222222223,{"$f":"VLOOKUP($A121,[4]CVD_All_prescriptions!$A$10:$D$223,4,0)","v":4909832.72000001},{"$f":"VLOOKUP($A121,[4]CVD_All_prescriptions!$A$10:$D$223,3,0)","v":1554002},{"$f":"VLOOKUP($A121,[5]CVD_All_prescriptions!$A$10:$C$392,3,0)","v":4540003.1631717999},{"$f":"VLOOKUP($A121,Lookup!$BP$3:$BW$213,8,0)","v":21127.129629629628},{"$f":"VLOOKUP($A121,[5]Lipid_regulators!$A$12:$C$345,3,0)","v":944822.32029664505},21127.129629629628,{"$f":"VLOOKUP($A121,[5]HyperandHeartfailure!$A$12:$C$356,3,0)","v":1088447.0906809},21127.129629629628,{"$f":"VLOOKUP($A121,[5]Nit_Calc_Antianginal!$A$12:$C$345,3,0)","v":951673.339456797},21127.129629629628,{"$f":"VLOOKUP($A121,[5]Anti_coagulants!$A$11:$C$325,3,0)","v":433514.081157565},21127.129629629628,{"$f":"VLOOKUP($A121,[5]Beta_Adrenorecepter!$A$11:$C$352,3,0)","v":383071.960136473},21127.129629629628,{"$f":"VLOOKUP($A121,[5]Anti_platelet!$A$12:$C$335,3,0)","v":296628.04019981599},21127.129629629628,{"$f":"VLOOKUP($A121,[5]Diuretics!$A$12:$C$353,3,0)","v":343352.06111314899},21127.129629629628,{"$f":"VLOOKUP($A121,[5]Anti_arrhythmic_drugs!$A$11:$C$271,3,0)","v":40909.990039288998},21127.129629629628,{"$f":"VLOOKUP($A121,[5]Positive_Intotropic!$A$12:$C$297,3,0)","v":22764.3399919271},21127.129629629628,{"$f":"VLOOKUP($A121,[5]anti_fibrinolytic!$A$11:$C$287,3,0)","v":16817.9800276756},21127.129629629628,{"$f":"VLOOKUP($A121,[5]sympathomimetics!$A$11:$C$223,3,0)","v":18001.960071563699},21127.129629629628,{"$f":"VLOOKUP($A121,[5]CVD_All_prescriptions!$A$10:$C$392,3,0)","v":4540003.1631717999},{"$f":"VLOOKUP($A121,[5]CVD_All_prescriptions!$A$10:$C$392,2,0)","v":1589511}]
["07G","NHS Thurrock",{"$f":"VLOOKUP($A122,[4]CVD_All_prescriptions!$A$10:$D$223,4,0)","v":2859870.84},{"$f":"VLOOKUP($A122,Lookup!$BP$3:$BW$213,7,0)","v":19836.86056355061},{"$f":"VLOOKUP($A122,[4]Lipid_regulators!$A$14:$D$227,4,0)","v":787019.620000005},19836.86056355061,{"$f":"VLOOKUP($A122,[4]HyperandHeartfailure!$A$13:$D$226,4,0)","v":789780.25999999896},19836.86056355061,{"$f":"VLOOKUP($A122,[4]Nit_Calc_Antianginal!$A$13:$D$226,4,0)","v":489525.35},19836.86056355061,{"$f":"VLOOKUP($A122,[4]Anti_coagulants!$A$15:$D$227,4,0)","v":198981.06000000099},19836.86056355061,{"$f":"VLOOKUP($A122,[4]Beta_Adrenorecepter!$A$13:$D$226,4,0)","v":216816.91000000099},19836.86056355061,{"$f":"VLOOKUP($A122,[4]Anti_platelet!$A$13:$D$226,4,0)","v":167706.569999998},19836.86056355061,{"$f":"VLOOKUP($A122,[4]Diuretics!$A$11:$D$224,4,0)","v":160195.06},19836.86056355061,{"$f":"VLOOKUP($A122,[4]Anti_arrhythmic_drugs!$A$13:$D$226,4,0)","v":12583.130000000099},19836.86056355061,{"$f":"VLOOKUP($A122,[4]Positive_Intotropic!$A$13:$D$226,4,0)","v":11922.31},19836.86056355061,{"$f":"VLOOKUP($A122,[4]anti_fibrinolytic!$A$13:$D$226,4,0)","v":13999.21},19836.86056355061,{"$f":"VLOOKUP($A122,[4]sympathomimetics!$A$11:$D$223,4,0)","v":11341.36},19836.86056355061,{"$f":"VLOOKUP($A122,[4]CVD_All_prescriptions!$A$10:$D$223,4,0)","v":2859870.84},{"$f":"VLOOKUP($A122,[4]CVD_All_prescriptions!$A$10:$D$223,3,0)","v":931736},{"$f":"VLOOKUP($A122,[5]CVD_All_prescriptions!$A$10:$C$392,3,0)","v":2633954.07226132},{"$f":"VLOOKUP($A122,Lookup!$BP$3:$BW$213,8,0)","v":20077.155641552788},{"$f":"VLOOKUP($A122,[5]Lipid_regulators!$A$12:$C$345,3,0)","v":559506.79054887604},20077.155641552788,{"$f":"VLOOKUP($A122,[5]HyperandHeartfailure!$A$12:$C$356,3,0)","v":585269.93026744598},20077.155641552788,{"$f":"VLOOKUP($A122,[5]Nit_Calc_Antianginal!$A$12:$C$345,3,0)","v":543616.65933939803},20077.155641552788,{"$f":"VLOOKUP($A122,[5]Anti_coagulants!$A$11:$C$325,3,0)","v":238694.55066689799},20077.155641552788,{"$f":"VLOOKUP($A122,[5]Beta_Adrenorecepter!$A$11:$C$352,3,0)","v":246871.76041755499},20077.155641552788,{"$f":"VLOOKUP($A122,[5]Anti_platelet!$A$12:$C$335,3,0)","v":169218.460390113},20077.155641552788,{"$f":"VLOOKUP($A122,[5]Diuretics!$A$12:$C$353,3,0)","v":233504.99070010701},20077.155641552788,{"$f":"VLOOKUP($A122,[5]Anti_arrhythmic_drugs!$A$11:$C$271,3,0)","v":11866.269884675699},20077.155641552788,{"$f":"VLOOKUP($A122,[5]Positive_Intotropic!$A$12:$C$297,3,0)","v":10214.679976731501},20077.155641552788,{"$f":"VLOOKUP($A122,[5]anti_fibrinolytic!$A$11:$C$287,3,0)","v":11617.489961028101},20077.155641552788,{"$f":"VLOOKUP($A122,[5]sympathomimetics!$A$11:$C$223,3,0)","v":23572.490108490001},20077.155641552788,{"$f":"VLOOKUP($A122,[5]CVD_All_prescriptions!$A$10:$C$392,3,0)","v":2633954.07226132},{"$f":"VLOOKUP($A122,[5]CVD_All_prescriptions!$A$10:$C$392,2,0)","v":951327}]
["07H","NHS West Essex",{"$f":"VLOOKUP($A123,[4]CVD_All_prescriptions!$A$10:$D$223,4,0)","v":5174478.1000000099},{"$f":"VLOOKUP($A123,Lookup!$BP$3:$BW$213,7,0)","v":31615.195291599783},{"$f":"VLOOKUP($A123,[4]Lipid_regulators!$A$14:$D$227,4,0)","v":1630862.8499999901},31615.195291599783,{"$f":"VLOOKUP($A123,[4]HyperandHeartfailure!$A$13:$D$226,4,0)","v":1175305.83},31615.195291599783,{"$f":"VLOOKUP($A123,[4]Nit_Calc_Antianginal!$A$13:$D$226,4,0)","v":981209.87999999896},31615.195291599783,{"$f":"VLOOKUP($A123,[4]Anti_coagulants!$A$15:$D$227,4,0)","v":383592.69000000099},31615.195291599783,{"$f":"VLOOKUP($A123,[4]Beta_Adrenorecepter!$A$13:$D$226,4,0)","v":350354.92000000202},31615.195291599783,{"$f":"VLOOKUP($A123,[4]Anti_platelet!$A$13:$D$226,4,0)","v":268430.83999999799},31615.195291599783,{"$f":"VLOOKUP($A123,[4]Diuretics!$A$11:$D$224,4,0)","v":288379.74999999901},31615.195291599783,{"$f":"VLOOKUP($A123,[4]Anti_arrhythmic_drugs!$A$13:$D$226,4,0)","v":43719.499999999898},31615.195291599783,{"$f":"VLOOKUP($A123,[4]Positive_Intotropic!$A$13:$D$226,4,0)","v":29039.179999999898},31615.195291599783,{"$f":"VLOOKUP($A123,[4]anti_fibrinolytic!$A$13:$D$226,4,0)","v":14101.2},31615.195291599783,{"$f":"VLOOKUP($A123,[4]sympathomimetics!$A$11:$D$223,4,0)","v":9470.16},31615.195291599783,{"$f":"VLOOKUP($A123,[4]CVD_All_prescriptions!$A$10:$D$223,4,0)","v":5174478.1000000099},{"$f":"VLOOKUP($A123,[4]CVD_All_prescriptions!$A$10:$D$223,3,0)","v":1795998},{"$f":"VLOOKUP($A123,[5]CVD_All_prescriptions!$A$10:$C$392,3,0)","v":4986252.6029025698},{"$f":"VLOOKUP($A123,Lookup!$BP$3:$BW$213,8,0)","v":31605.671482075973},{"$f":"VLOOKUP($A123,[5]Lipid_regulators!$A$12:$C$345,3,0)","v":1253447.75060324},31605.671482075973,{"$f":"VLOOKUP($A123,[5]HyperandHeartfailure!$A$12:$C$356,3,0)","v":965487.63994066406},31605.671482075973,{"$f":"VLOOKUP($A123,[5]Nit_Calc_Antianginal!$A$12:$C$345,3,0)","v":1030803.3396489701},31605.671482075973,{"$f":"VLOOKUP($A123,[5]Anti_coagulants!$A$11:$C$325,3,0)","v":544711.81058663898},31605.671482075973,{"$f":"VLOOKUP($A123,[5]Beta_Adrenorecepter!$A$11:$C$352,3,0)","v":410547.20019886602},31605.671482075973,{"$f":"VLOOKUP($A123,[5]Anti_platelet!$A$12:$C$335,3,0)","v":277125.12060188502},31605.671482075973,{"$f":"VLOOKUP($A123,[5]Diuretics!$A$12:$C$353,3,0)","v":410708.50130271498},31605.671482075973,{"$f":"VLOOKUP($A123,[5]Anti_arrhythmic_drugs!$A$11:$C$271,3,0)","v":43315.760124385401},31605.671482075973,{"$f":"VLOOKUP($A123,[5]Positive_Intotropic!$A$12:$C$297,3,0)","v":23774.1599899307},31605.671482075973,{"$f":"VLOOKUP($A123,[5]anti_fibrinolytic!$A$11:$C$287,3,0)","v":11999.159966453901},31605.671482075973,{"$f":"VLOOKUP($A123,[5]sympathomimetics!$A$11:$C$223,3,0)","v":14332.1599388123},31605.671482075973,{"$f":"VLOOKUP($A123,[5]CVD_All_prescriptions!$A$10:$C$392,3,0)","v":4986252.6029025698},{"$f":"VLOOKUP($A123,[5]CVD_All_prescriptions!$A$10:$C$392,2,0)","v":1830863}]
["07J","NHS West Norfolk",{"$f":"VLOOKUP($A124,[4]CVD_All_prescriptions!$A$10:$D$223,4,0)","v":4225914.4500000104},{"$f":"VLOOKUP($A124,Lookup!$BP$3:$BW$213,7,0)","v":13753.482587064676},{"$f":"VLOOKUP($A124,[4]Lipid_regulators!$A$14:$D$227,4,0)","v":1021366.97000001},13753.482587064676,{"$f":"VLOOKUP($A124,[4]HyperandHeartfailure!$A$13:$D$226,4,0)","v":1175759.42},13753.482587064676,{"$f":"VLOOKUP($A124,[4]Nit_Calc_Antianginal!$A$13:$D$226,4,0)","v":902106.75},13753.482587064676,{"$f":"VLOOKUP($A124,[4]Anti_coagulants!$A$15:$D$227,4,0)","v":297007.09999999899},13753.482587064676,{"$f":"VLOOKUP($A124,[4]Beta_Adrenorecepter!$A$13:$D$226,4,0)","v":286570.60000000102},13753.482587064676,{"$f":"VLOOKUP($A124,[4]Anti_platelet!$A$13:$D$226,4,0)","v":245624.06},13753.482587064676,{"$f":"VLOOKUP($A124,[4]Diuretics!$A$11:$D$224,4,0)","v":225935.200000001},13753.482587064676,{"$f":"VLOOKUP($A124,[4]Anti_arrhythmic_drugs!$A$13:$D$226,4,0)","v":26036.05},13753.482587064676,{"$f":"VLOOKUP($A124,[4]Positive_Intotropic!$A$13:$D$226,4,0)","v":25431.779999999901},13753.482587064676,{"$f":"VLOOKUP($A124,[4]anti_fibrinolytic!$A$13:$D$226,4,0)","v":16387.59},13753.482587064676,{"$f":"VLOOKUP($A124,[4]sympathomimetics!$A$11:$D$223,4,0)","v":3688.93},13753.482587064676,{"$f":"VLOOKUP($A124,[4]CVD_All_prescriptions!$A$10:$D$223,4,0)","v":4225914.4500000104},{"$f":"VLOOKUP($A124,[4]CVD_All_prescriptions!$A$10:$D$223,3,0)","v":1386964},{"$f":"VLOOKUP($A124,[5]CVD_All_prescriptions!$A$10:$C$392,3,0)","v":4015627.0641369498},{"$f":"VLOOKUP($A124,Lookup!$BP$3:$BW$213,8,0)","v":13866.915422885571},{"$f":"VLOOKUP($A124,[5]Lipid_regulators!$A$12:$C$345,3,0)","v":770471.92138016201},13866.915422885571,{"$f":"VLOOKUP($A124,[5]HyperandHeartfailure!$A$12:$C$356,3,0)","v":900424.18029370904},13866.915422885571,{"$f":"VLOOKUP($A124,[5]Nit_Calc_Antianginal!$A$12:$C$345,3,0)","v":874244.86957401002},13866.915422885571,{"$f":"VLOOKUP($A124,[5]Anti_coagulants!$A$11:$C$325,3,0)","v":482644.53155764902},13866.915422885571,{"$f":"VLOOKUP($A124,[5]Beta_Adrenorecepter!$A$11:$C$352,3,0)","v":324542.73044520599},13866.915422885571,{"$f":"VLOOKUP($A124,[5]Anti_platelet!$A$12:$C$335,3,0)","v":245042.18018314199},13866.915422885571,{"$f":"VLOOKUP($A124,[5]Diuretics!$A$12:$C$353,3,0)","v":350630.92059201002},13866.915422885571,{"$f":"VLOOKUP($A124,[5]Anti_arrhythmic_drugs!$A$11:$C$271,3,0)","v":24058.310018479799},13866.915422885571,{"$f":"VLOOKUP($A124,[5]Positive_Intotropic!$A$12:$C$297,3,0)","v":22046.010021448099},13866.915422885571,{"$f":"VLOOKUP($A124,[5]anti_fibrinolytic!$A$11:$C$287,3,0)","v":14147.9800040722},13866.915422885571,{"$f":"VLOOKUP($A124,[5]sympathomimetics!$A$11:$C$223,3,0)","v":7373.4300670623797},13866.915422885571,{"$f":"VLOOKUP($A124,[5]CVD_All_prescriptions!$A$10:$C$392,3,0)","v":4015627.0641369498},{"$f":"VLOOKUP($A124,[5]CVD_All_prescriptions!$A$10:$C$392,2,0)","v":1405989}]
["07K","NHS West Suffolk",{"$f":"VLOOKUP($A125,[4]CVD_All_prescriptions!$A$10:$D$223,4,0)","v":5135966.1400000202},{"$f":"VLOOKUP($A125,Lookup!$BP$3:$BW$213,7,0)","v":22619.544592030361},{"$f":"VLOOKUP($A125,[4]Lipid_regulators!$A$14:$D$227,4,0)","v":1509222.77999999},22619.544592030361,{"$f":"VLOOKUP($A125,[4]HyperandHeartfailure!$A$13:$D$226,4,0)","v":1286077.22},22619.544592030361,{"$f":"VLOOKUP($A125,[4]Nit_Calc_Antianginal!$A$13:$D$226,4,0)","v":904765.50999999896},22619.544592030361,{"$f":"VLOOKUP($A125,[4]Anti_coagulants!$A$15:$D$227,4,0)","v":455353.97000000102},22619.544592030361,{"$f":"VLOOKUP($A125,[4]Beta_Adrenorecepter!$A$13:$D$226,4,0)","v":324547.07000000199},22619.544592030361,{"$f":"VLOOKUP($A125,[4]Anti_platelet!$A$13:$D$226,4,0)","v":259112.959999999},22619.544592030361,{"$f":"VLOOKUP($A125,[4]Diuretics!$A$11:$D$224,4,0)","v":282913.69999999902},22619.544592030361,{"$f":"VLOOKUP($A125,[4]Anti_arrhythmic_drugs!$A$13:$D$226,4,0)","v":35508.83},22619.544592030361,{"$f":"VLOOKUP($A125,[4]Positive_Intotropic!$A$13:$D$226,4,0)","v":23499.93},22619.544592030361,{"$f":"VLOOKUP($A125,[4]anti_fibrinolytic!$A$13:$D$226,4,0)","v":17848.400000000001},22619.544592030361,{"$f":"VLOOKUP($A125,[4]sympathomimetics!$A$11:$D$223,4,0)","v":36987.769999999997},22619.544592030361,{"$f":"VLOOKUP($A125,[4]CVD_All_prescriptions!$A$10:$D$223,4,0)","v":5135966.1400000202},{"$f":"VLOOKUP($A125,[4]CVD_All_prescriptions!$A$10:$D$223,3,0)","v":1608042},{"$f":"VLOOKUP($A125,[5]CVD_All_prescriptions!$A$10:$C$392,3,0)","v":5024065.1517536398},{"$f":"VLOOKUP($A125,Lookup!$BP$3:$BW$213,8,0)","v":22829.032258064519},{"$f":"VLOOKUP($A125,[5]Lipid_regulators!$A$12:$C$345,3,0)","v":1319640.51041549},22829.032258064519,{"$f":"VLOOKUP($A125,[5]HyperandHeartfailure!$A$12:$C$356,3,0)","v":1125417.9801778099},22829.032258064519,{"$f":"VLOOKUP($A125,[5]Nit_Calc_Antianginal!$A$12:$C$345,3,0)","v":906462.14987650502},22829.032258064519,{"$f":"VLOOKUP($A125,[5]Anti_coagulants!$A$11:$C$325,3,0)","v":550084.23083436501},22829.032258064519,{"$f":"VLOOKUP($A125,[5]Beta_Adrenorecepter!$A$11:$C$352,3,0)","v":368421.53032785701},22829.032258064519,{"$f":"VLOOKUP($A125,[5]Anti_platelet!$A$12:$C$335,3,0)","v":266880.11048124701},22829.032258064519,{"$f":"VLOOKUP($A125,[5]Diuretics!$A$12:$C$353,3,0)","v":353937.51040127903},22829.032258064519,{"$f":"VLOOKUP($A125,[5]Anti_arrhythmic_drugs!$A$11:$C$271,3,0)","v":37714.890200555303},22829.032258064519,{"$f":"VLOOKUP($A125,[5]Positive_Intotropic!$A$12:$C$297,3,0)","v":19555.529965817899},22829.032258064519,{"$f":"VLOOKUP($A125,[5]anti_fibrinolytic!$A$11:$C$287,3,0)","v":13518.0099674463},22829.032258064519,{"$f":"VLOOKUP($A125,[5]sympathomimetics!$A$11:$C$223,3,0)","v":62176.6991052628},22829.032258064519,{"$f":"VLOOKUP($A125,[5]CVD_All_prescriptions!$A$10:$C$392,3,0)","v":5024065.1517536398},{"$f":"VLOOKUP($A125,[5]CVD_All_prescriptions!$A$10:$C$392,2,0)","v":1678496}]
["07L","NHS Barking and Dagenham",{"$f":"VLOOKUP($A126,[4]CVD_All_prescriptions!$A$10:$D$223,4,0)","v":2915037.6699999901},{"$f":"VLOOKUP($A126,Lookup!$BP$3:$BW$213,7,0)","v":27816.057600869448},{"$f":"VLOOKUP($A126,[4]Lipid_regulators!$A$14:$D$227,4,0)","v":970955.21000000904},27816.057600869448,{"$f":"VLOOKUP($A126,[4]HyperandHeartfailure!$A$13:$D$226,4,0)","v":728442.91},27816.057600869448,{"$f":"VLOOKUP($A126,[4]Nit_Calc_Antianginal!$A$13:$D$226,4,0)","v":536346.51},27816.057600869448,{"$f":"VLOOKUP($A126,[4]Anti_coagulants!$A$15:$D$227,4,0)","v":163985.53},27816.057600869448,{"$f":"VLOOKUP($A126,[4]Beta_Adrenorecepter!$A$13:$D$226,4,0)","v":171309.06999999899},27816.057600869448,{"$f":"VLOOKUP($A126,[4]Anti_platelet!$A$13:$D$226,4,0)","v":162694.21999999799},27816.057600869448,{"$f":"VLOOKUP($A126,[4]Diuretics!$A$11:$D$224,4,0)","v":138114.66},27816.057600869448,{"$f":"VLOOKUP($A126,[4]Anti_arrhythmic_drugs!$A$13:$D$226,4,0)","v":14250.02},27816.057600869448,{"$f":"VLOOKUP($A126,[4]Positive_Intotropic!$A$13:$D$226,4,0)","v":12007.7},27816.057600869448,{"$f":"VLOOKUP($A126,[4]anti_fibrinolytic!$A$13:$D$226,4,0)","v":14886.13},27816.057600869448,{"$f":"VLOOKUP($A126,[4]sympathomimetics!$A$11:$D$223,4,0)","v":2045.71},27816.057600869448,{"$f":"VLOOKUP($A126,[4]CVD_All_prescriptions!$A$10:$D$223,4,0)","v":2915037.6699999901},{"$f":"VLOOKUP($A126,[4]CVD_All_prescriptions!$A$10:$D$223,3,0)","v":896063},{"$f":"VLOOKUP($A126,[5]CVD_All_prescriptions!$A$10:$C$392,3,0)","v":2633221.59175508},{"$f":"VLOOKUP($A126,Lookup!$BP$3:$BW$213,8,0)","v":27821.627496264096},{"$f":"VLOOKUP($A126,[5]Lipid_regulators!$A$12:$C$345,3,0)","v":715942.78040915704},27821.627496264096,{"$f":"VLOOKUP($A126,[5]HyperandHeartfailure!$A$12:$C$356,3,0)","v":568826.67009949696},27821.627496264096,{"$f":"VLOOKUP($A126,[5]Nit_Calc_Antianginal!$A$12:$C$345,3,0)","v":565487.05953742599},27821.627496264096,{"$f":"VLOOKUP($A126,[5]Anti_coagulants!$A$11:$C$325,3,0)","v":200971.12082135701},27821.627496264096,{"$f":"VLOOKUP($A126,[5]Beta_Adrenorecepter!$A$11:$C$352,3,0)","v":189543.65014002501},27821.627496264096,{"$f":"VLOOKUP($A126,[5]Anti_platelet!$A$12:$C$335,3,0)","v":167183.120457754},27821.627496264096,{"$f":"VLOOKUP($A126,[5]Diuretics!$A$12:$C$353,3,0)","v":185976.58022438001},27821.627496264096,{"$f":"VLOOKUP($A126,[5]Anti_arrhythmic_drugs!$A$11:$C$271,3,0)","v":9653.5000310838204},27821.627496264096,{"$f":"VLOOKUP($A126,[5]Positive_Intotropic!$A$12:$C$297,3,0)","v":9971.9100090861302},27821.627496264096,{"$f":"VLOOKUP($A126,[5]anti_fibrinolytic!$A$11:$C$287,3,0)","v":18392.6100175381},27821.627496264096,{"$f":"VLOOKUP($A126,[5]sympathomimetics!$A$11:$C$223,3,0)","v":1272.5900077819799},27821.627496264096,{"$f":"VLOOKUP($A126,[5]CVD_All_prescriptions!$A$10:$C$392,3,0)","v":2633221.59175508},{"$f":"VLOOKUP($A126,[5]CVD_All_prescriptions!$A$10:$C$392,2,0)","v":918682}]
["07M","NHS Barnet",{"$f":"VLOOKUP($A127,[4]CVD_All_prescriptions!$A$10:$D$223,4,0)","v":6965491.5199999996},{"$f":"VLOOKUP($A127,Lookup!$BP$3:$BW$213,7,0)","v":48623.317821657656},{"$f":"VLOOKUP($A127,[4]Lipid_regulators!$A$14:$D$227,4,0)","v":2765925.9799999902},48623.317821657656,{"$f":"VLOOKUP($A127,[4]HyperandHeartfailure!$A$13:$D$226,4,0)","v":1482708.26},48623.317821657656,{"$f":"VLOOKUP($A127,[4]Nit_Calc_Antianginal!$A$13:$D$226,4,0)","v":990024.929999999},48623.317821657656,{"$f":"VLOOKUP($A127,[4]Anti_coagulants!$A$15:$D$227,4,0)","v":428800.44999999797},48623.317821657656,{"$f":"VLOOKUP($A127,[4]Beta_Adrenorecepter!$A$13:$D$226,4,0)","v":437040.30000000499},48623.317821657656,{"$f":"VLOOKUP($A127,[4]Anti_platelet!$A$13:$D$226,4,0)","v":347651.37999999698},48623.317821657656,{"$f":"VLOOKUP($A127,[4]Diuretics!$A$11:$D$224,4,0)","v":375918.609999999},48623.317821657656,{"$f":"VLOOKUP($A127,[4]Anti_arrhythmic_drugs!$A$13:$D$226,4,0)","v":55694.429999999797},48623.317821657656,{"$f":"VLOOKUP($A127,[4]Positive_Intotropic!$A$13:$D$226,4,0)","v":25933.979999999901},48623.317821657656,{"$f":"VLOOKUP($A127,[4]anti_fibrinolytic!$A$13:$D$226,4,0)","v":21727.27},48623.317821657656,{"$f":"VLOOKUP($A127,[4]sympathomimetics!$A$11:$D$223,4,0)","v":34065.93},48623.317821657656,{"$f":"VLOOKUP($A127,[4]CVD_All_prescriptions!$A$10:$D$223,4,0)","v":6965491.5199999996},{"$f":"VLOOKUP($A127,[4]CVD_All_prescriptions!$A$10:$D$223,3,0)","v":1338718},{"$f":"VLOOKUP($A127,[5]CVD_All_prescriptions!$A$10:$C$392,3,0)","v":6307804.2926330203},{"$f":"VLOOKUP($A127,Lookup!$BP$3:$BW$213,8,0)","v":48775.87724814489},{"$f":"VLOOKUP($A127,[5]Lipid_regulators!$A$12:$C$345,3,0)","v":2153150.01003533},48775.87724814489,{"$f":"VLOOKUP($A127,[5]HyperandHeartfailure!$A$12:$C$356,3,0)","v":1127360.2106353601},48775.87724814489,{"$f":"VLOOKUP($A127,[5]Nit_Calc_Antianginal!$A$12:$C$345,3,0)","v":1025238.66902786},48775.87724814489,{"$f":"VLOOKUP($A127,[5]Anti_coagulants!$A$11:$C$325,3,0)","v":529165.341226727},48775.87724814489,{"$f":"VLOOKUP($A127,[5]Beta_Adrenorecepter!$A$11:$C$352,3,0)","v":519037.48008283199},48775.87724814489,{"$f":"VLOOKUP($A127,[5]Anti_platelet!$A$12:$C$335,3,0)","v":350690.01998566103},48775.87724814489,{"$f":"VLOOKUP($A127,[5]Diuretics!$A$12:$C$353,3,0)","v":491300.59175687301},48775.87724814489,{"$f":"VLOOKUP($A127,[5]Anti_arrhythmic_drugs!$A$11:$C$271,3,0)","v":47024.379928201401},48775.87724814489,{"$f":"VLOOKUP($A127,[5]Positive_Intotropic!$A$12:$C$297,3,0)","v":21455.689982563301},48775.87724814489,{"$f":"VLOOKUP($A127,[5]anti_fibrinolytic!$A$11:$C$287,3,0)","v":19360.880035042799},48775.87724814489,{"$f":"VLOOKUP($A127,[5]sympathomimetics!$A$11:$C$223,3,0)","v":24021.019936561599},48775.87724814489,{"$f":"VLOOKUP($A127,[5]CVD_All_prescriptions!$A$10:$C$392,3,0)","v":6307804.2926330203},{"$f":"VLOOKUP($A127,[5]CVD_All_prescriptions!$A$10:$C$392,2,0)","v":1381809}]
["07N","NHS Bexley",{"$f":"VLOOKUP($A128,[4]CVD_All_prescriptions!$A$10:$D$223,4,0)","v":4306958.4300000099},{"$f":"VLOOKUP($A128,Lookup!$BP$3:$BW$213,7,0)","v":24889.87605572008},{"$f":"VLOOKUP($A128,[4]Lipid_regulators!$A$14:$D$227,4,0)","v":1280142.21},24889.87605572008,{"$f":"VLOOKUP($A128,[4]HyperandHeartfailure!$A$13:$D$226,4,0)","v":1113778.6299999999},24889.87605572008,{"$f":"VLOOKUP($A128,[4]Nit_Calc_Antianginal!$A$13:$D$226,4,0)","v":774208.76999999897},24889.87605572008,{"$f":"VLOOKUP($A128,[4]Anti_coagulants!$A$15:$D$227,4,0)","v":302648.62999999902},24889.87605572008,{"$f":"VLOOKUP($A128,[4]Beta_Adrenorecepter!$A$13:$D$226,4,0)","v":282232.88},24889.87605572008,{"$f":"VLOOKUP($A128,[4]Anti_platelet!$A$13:$D$226,4,0)","v":236845.699999998},24889.87605572008,{"$f":"VLOOKUP($A128,[4]Diuretics!$A$11:$D$224,4,0)","v":228975.03},24889.87605572008,{"$f":"VLOOKUP($A128,[4]Anti_arrhythmic_drugs!$A$13:$D$226,4,0)","v":39360.729999999901},24889.87605572008,{"$f":"VLOOKUP($A128,[4]Positive_Intotropic!$A$13:$D$226,4,0)","v":20896.54},24889.87605572008,{"$f":"VLOOKUP($A128,[4]anti_fibrinolytic!$A$13:$D$226,4,0)","v":15744.78},24889.87605572008,{"$f":"VLOOKUP($A128,[4]sympathomimetics!$A$11:$D$223,4,0)","v":12124.53},24889.87605572008,{"$f":"VLOOKUP($A128,[4]CVD_All_prescriptions!$A$10:$D$223,4,0)","v":4306958.4300000099},{"$f":"VLOOKUP($A128,[4]CVD_All_prescriptions!$A$10:$D$223,3,0)","v":1027612},{"$f":"VLOOKUP($A128,[5]CVD_All_prescriptions!$A$10:$C$392,3,0)","v":3952996.6440087599},{"$f":"VLOOKUP($A128,Lookup!$BP$3:$BW$213,8,0)","v":25149.500932324227},{"$f":"VLOOKUP($A128,[5]Lipid_regulators!$A$12:$C$345,3,0)","v":1028437.83062029},25149.500932324227,{"$f":"VLOOKUP($A128,[5]HyperandHeartfailure!$A$12:$C$356,3,0)","v":791629.099856794},25149.500932324227,{"$f":"VLOOKUP($A128,[5]Nit_Calc_Antianginal!$A$12:$C$345,3,0)","v":792950.31943516398},25149.500932324227,{"$f":"VLOOKUP($A128,[5]Anti_coagulants!$A$11:$C$325,3,0)","v":331840.48111176502},25149.500932324227,{"$f":"VLOOKUP($A128,[5]Beta_Adrenorecepter!$A$11:$C$352,3,0)","v":343522.91048362898},25149.500932324227,{"$f":"VLOOKUP($A128,[5]Anti_platelet!$A$12:$C$335,3,0)","v":244200.59051019},25149.500932324227,{"$f":"VLOOKUP($A128,[5]Diuretics!$A$12:$C$353,3,0)","v":340476.812054865},25149.500932324227,{"$f":"VLOOKUP($A128,[5]Anti_arrhythmic_drugs!$A$11:$C$271,3,0)","v":37147.119974106601},25149.500932324227,{"$f":"VLOOKUP($A128,[5]Positive_Intotropic!$A$12:$C$297,3,0)","v":17496.5300054252},25149.500932324227,{"$f":"VLOOKUP($A128,[5]anti_fibrinolytic!$A$11:$C$287,3,0)","v":15471.819980263699},25149.500932324227,{"$f":"VLOOKUP($A128,[5]sympathomimetics!$A$11:$C$223,3,0)","v":9823.1299762725794},25149.500932324227,{"$f":"VLOOKUP($A128,[5]CVD_All_prescriptions!$A$10:$C$392,3,0)","v":3952996.6440087599},{"$f":"VLOOKUP($A128,[5]CVD_All_prescriptions!$A$10:$C$392,2,0)","v":1055489}]
["07P","NHS Brent",{"$f":"VLOOKUP($A129,[4]CVD_All_prescriptions!$A$10:$D$223,4,0)","v":4606310.1399999801},{"$f":"VLOOKUP($A129,Lookup!$BP$3:$BW$213,7,0)","v":48670.190274841436},{"$f":"VLOOKUP($A129,[4]Lipid_regulators!$A$14:$D$227,4,0)","v":1351982.23},48670.190274841436,{"$f":"VLOOKUP($A129,[4]HyperandHeartfailure!$A$13:$D$226,4,0)","v":1395605.86},48670.190274841436,{"$f":"VLOOKUP($A129,[4]Nit_Calc_Antianginal!$A$13:$D$226,4,0)","v":839998.44},48670.190274841436,{"$f":"VLOOKUP($A129,[4]Anti_coagulants!$A$15:$D$227,4,0)","v":175396.11},48670.190274841436,{"$f":"VLOOKUP($A129,[4]Beta_Adrenorecepter!$A$13:$D$226,4,0)","v":261806.329999999},48670.190274841436,{"$f":"VLOOKUP($A129,[4]Anti_platelet!$A$13:$D$226,4,0)","v":255352.03999999899},48670.190274841436,{"$f":"VLOOKUP($A129,[4]Diuretics!$A$11:$D$224,4,0)","v":260795.39},48670.190274841436,{"$f":"VLOOKUP($A129,[4]Anti_arrhythmic_drugs!$A$13:$D$226,4,0)","v":29604.44},48670.190274841436,{"$f":"VLOOKUP($A129,[4]Positive_Intotropic!$A$13:$D$226,4,0)","v":14422.58},48670.190274841436,{"$f":"VLOOKUP($A129,[4]anti_fibrinolytic!$A$13:$D$226,4,0)","v":20324.16},48670.190274841436,{"$f":"VLOOKUP($A129,[4]sympathomimetics!$A$11:$D$223,4,0)","v":1022.56},48670.190274841436,{"$f":"VLOOKUP($A129,[4]CVD_All_prescriptions!$A$10:$D$223,4,0)","v":4606310.1399999801},{"$f":"VLOOKUP($A129,[4]CVD_All_prescriptions!$A$10:$D$223,3,0)","v":1273891},{"$f":"VLOOKUP($A129,[5]CVD_All_prescriptions!$A$10:$C$392,3,0)","v":4204411.6512947502},{"$f":"VLOOKUP($A129,Lookup!$BP$3:$BW$213,8,0)","v":50083.016208597604},{"$f":"VLOOKUP($A129,[5]Lipid_regulators!$A$12:$C$345,3,0)","v":1018284.2204375},50083.016208597604,{"$f":"VLOOKUP($A129,[5]HyperandHeartfailure!$A$12:$C$356,3,0)","v":952944.73001788603},50083.016208597604,{"$f":"VLOOKUP($A129,[5]Nit_Calc_Antianginal!$A$12:$C$345,3,0)","v":878217.669749305},50083.016208597604,{"$f":"VLOOKUP($A129,[5]Anti_coagulants!$A$11:$C$325,3,0)","v":243080.98007905501},50083.016208597604,{"$f":"VLOOKUP($A129,[5]Beta_Adrenorecepter!$A$11:$C$352,3,0)","v":304898.59011590498},50083.016208597604,{"$f":"VLOOKUP($A129,[5]Anti_platelet!$A$12:$C$335,3,0)","v":278956.650560454},50083.016208597604,{"$f":"VLOOKUP($A129,[5]Diuretics!$A$12:$C$353,3,0)","v":464361.64044021798},50083.016208597604,{"$f":"VLOOKUP($A129,[5]Anti_arrhythmic_drugs!$A$11:$C$271,3,0)","v":32192.420000731901},50083.016208597604,{"$f":"VLOOKUP($A129,[5]Positive_Intotropic!$A$12:$C$297,3,0)","v":12009.699985057099},50083.016208597604,{"$f":"VLOOKUP($A129,[5]anti_fibrinolytic!$A$11:$C$287,3,0)","v":16167.4599542618},50083.016208597604,{"$f":"VLOOKUP($A129,[5]sympathomimetics!$A$11:$C$223,3,0)","v":3297.5899543762198},50083.016208597604,{"$f":"VLOOKUP($A129,[5]CVD_All_prescriptions!$A$10:$C$392,3,0)","v":4204411.6512947502},{"$f":"VLOOKUP($A129,[5]CVD_All_prescriptions!$A$10:$C$392,2,0)","v":1347792}]
["07Q","NHS Bromley",{"$f":"VLOOKUP($A130,[4]CVD_All_prescriptions!$A$10:$D$223,4,0)","v":6079319.8400000101},{"$f":"VLOOKUP($A130,Lookup!$BP$3:$BW$213,7,0)","v":34813.904641881956},{"$f":"VLOOKUP($A130,[4]Lipid_regulators!$A$14:$D$227,4,0)","v":1907821.59},34813.904641881956,{"$f":"VLOOKUP($A130,[4]HyperandHeartfailure!$A$13:$D$226,4,0)","v":1640052.73},34813.904641881956,{"$f":"VLOOKUP($A130,[4]Nit_Calc_Antianginal!$A$13:$D$226,4,0)","v":903757.65999999898},34813.904641881956,{"$f":"VLOOKUP($A130,[4]Anti_coagulants!$A$15:$D$227,4,0)","v":354707.26},34813.904641881956,{"$f":"VLOOKUP($A130,[4]Beta_Adrenorecepter!$A$13:$D$226,4,0)","v":447231.50000000198},34813.904641881956,{"$f":"VLOOKUP($A130,[4]Anti_platelet!$A$13:$D$226,4,0)","v":353019.17999999702},34813.904641881956,{"$f":"VLOOKUP($A130,[4]Diuretics!$A$11:$D$224,4,0)","v":343622.419999998},34813.904641881956,{"$f":"VLOOKUP($A130,[4]Anti_arrhythmic_drugs!$A$13:$D$226,4,0)","v":52935.6899999999},34813.904641881956,{"$f":"VLOOKUP($A130,[4]Positive_Intotropic!$A$13:$D$226,4,0)","v":26166.679999999898},34813.904641881956,{"$f":"VLOOKUP($A130,[4]anti_fibrinolytic!$A$13:$D$226,4,0)","v":20649.509999999998},34813.904641881956,{"$f":"VLOOKUP($A130,[4]sympathomimetics!$A$11:$D$223,4,0)","v":29213.07},34813.904641881956,{"$f":"VLOOKUP($A130,[4]CVD_All_prescriptions!$A$10:$D$223,4,0)","v":6079319.8400000101},{"$f":"VLOOKUP($A130,[4]CVD_All_prescriptions!$A$10:$D$223,3,0)","v":1234371},{"$f":"VLOOKUP($A130,[5]CVD_All_prescriptions!$A$10:$C$392,3,0)","v":5495533.1848134203},{"$f":"VLOOKUP($A130,Lookup!$BP$3:$BW$213,8,0)","v":35263.285024154589},{"$f":"VLOOKUP($A130,[5]Lipid_regulators!$A$12:$C$345,3,0)","v":1465158.37082157},35263.285024154589,{"$f":"VLOOKUP($A130,[5]HyperandHeartfailure!$A$12:$C$356,3,0)","v":1225498.98044845},35263.285024154589,{"$f":"VLOOKUP($A130,[5]Nit_Calc_Antianginal!$A$12:$C$345,3,0)","v":915288.38938299206},35263.285024154589,{"$f":"VLOOKUP($A130,[5]Anti_coagulants!$A$11:$C$325,3,0)","v":449234.07089382398},35263.285024154589,{"$f":"VLOOKUP($A130,[5]Beta_Adrenorecepter!$A$11:$C$352,3,0)","v":490026.50028189301},35263.285024154589,{"$f":"VLOOKUP($A130,[5]Anti_platelet!$A$12:$C$335,3,0)","v":354342.99034632702},35263.285024154589,{"$f":"VLOOKUP($A130,[5]Diuretics!$A$12:$C$353,3,0)","v":468752.50240917498},35263.285024154589,{"$f":"VLOOKUP($A130,[5]Anti_arrhythmic_drugs!$A$11:$C$271,3,0)","v":39924.210013777003},35263.285024154589,{"$f":"VLOOKUP($A130,[5]Positive_Intotropic!$A$12:$C$297,3,0)","v":21307.16998142},35263.285024154589,{"$f":"VLOOKUP($A130,[5]anti_fibrinolytic!$A$11:$C$287,3,0)","v":19785.5299232006},35263.285024154589,{"$f":"VLOOKUP($A130,[5]sympathomimetics!$A$11:$C$223,3,0)","v":45940.070316895799},35263.285024154589,{"$f":"VLOOKUP($A130,[5]CVD_All_prescriptions!$A$10:$C$392,3,0)","v":5495533.1848134203},{"$f":"VLOOKUP($A130,[5]CVD_All_prescriptions!$A$10:$C$392,2,0)","v":1259787}]
["07R","NHS Camden",{"$f":"VLOOKUP($A131,[4]CVD_All_prescriptions!$A$10:$D$223,4,0)","v":2558669.3499999898},{"$f":"VLOOKUP($A131,Lookup!$BP$3:$BW$213,7,0)","v":37145.095168374814},{"$f":"VLOOKUP($A131,[4]Lipid_regulators!$A$14:$D$227,4,0)","v":939448.08999999799},37145.095168374814,{"$f":"VLOOKUP($A131,[4]HyperandHeartfailure!$A$13:$D$226,4,0)","v":555734.36},37145.095168374814,{"$f":"VLOOKUP($A131,[4]Nit_Calc_Antianginal!$A$13:$D$226,4,0)","v":362785.6},37145.095168374814,{"$f":"VLOOKUP($A131,[4]Anti_coagulants!$A$15:$D$227,4,0)","v":214848.61},37145.095168374814,{"$f":"VLOOKUP($A131,[4]Beta_Adrenorecepter!$A$13:$D$226,4,0)","v":152600.72},37145.095168374814,{"$f":"VLOOKUP($A131,[4]Anti_platelet!$A$13:$D$226,4,0)","v":141178.48000000001},37145.095168374814,{"$f":"VLOOKUP($A131,[4]Diuretics!$A$11:$D$224,4,0)","v":139694.49},37145.095168374814,{"$f":"VLOOKUP($A131,[4]Anti_arrhythmic_drugs!$A$13:$D$226,4,0)","v":19642.27},37145.095168374814,{"$f":"VLOOKUP($A131,[4]Positive_Intotropic!$A$13:$D$226,4,0)","v":12243.02},37145.095168374814,{"$f":"VLOOKUP($A131,[4]anti_fibrinolytic!$A$13:$D$226,4,0)","v":14780.86},37145.095168374814,{"$f":"VLOOKUP($A131,[4]sympathomimetics!$A$11:$D$223,4,0)","v":5712.85},37145.095168374814,{"$f":"VLOOKUP($A131,[4]CVD_All_prescriptions!$A$10:$D$223,4,0)","v":2558669.3499999898},{"$f":"VLOOKUP($A131,[4]CVD_All_prescriptions!$A$10:$D$223,3,0)","v":544352},{"$f":"VLOOKUP($A131,[5]CVD_All_prescriptions!$A$10:$C$392,3,0)","v":2390630.9118481898},{"$f":"VLOOKUP($A131,Lookup!$BP$3:$BW$213,8,0)","v":36681.112737920936},{"$f":"VLOOKUP($A131,[5]Lipid_regulators!$A$12:$C$345,3,0)","v":765804.93009841396},36681.112737920936,{"$f":"VLOOKUP($A131,[5]HyperandHeartfailure!$A$12:$C$356,3,0)","v":419169.45029364497},36681.112737920936,{"$f":"VLOOKUP($A131,[5]Nit_Calc_Antianginal!$A$12:$C$345,3,0)","v":373904.58004473202},36681.112737920936,{"$f":"VLOOKUP($A131,[5]Anti_coagulants!$A$11:$C$325,3,0)","v":259832.110270679},36681.112737920936,{"$f":"VLOOKUP($A131,[5]Beta_Adrenorecepter!$A$11:$C$352,3,0)","v":190378.920056045},36681.112737920936,{"$f":"VLOOKUP($A131,[5]Anti_platelet!$A$12:$C$335,3,0)","v":146172.380411744},36681.112737920936,{"$f":"VLOOKUP($A131,[5]Diuretics!$A$12:$C$353,3,0)","v":186310.81061807301},36681.112737920936,{"$f":"VLOOKUP($A131,[5]Anti_arrhythmic_drugs!$A$11:$C$271,3,0)","v":21618.149976491899},36681.112737920936,{"$f":"VLOOKUP($A131,[5]Positive_Intotropic!$A$12:$C$297,3,0)","v":10247.4499804974},36681.112737920936,{"$f":"VLOOKUP($A131,[5]anti_fibrinolytic!$A$11:$C$287,3,0)","v":11222.2299742699},36681.112737920936,{"$f":"VLOOKUP($A131,[5]sympathomimetics!$A$11:$C$223,3,0)","v":5969.9001235961896},36681.112737920936,{"$f":"VLOOKUP($A131,[5]CVD_All_prescriptions!$A$10:$C$392,3,0)","v":2390630.9118481898},{"$f":"VLOOKUP($A131,[5]CVD_All_prescriptions!$A$10:$C$392,2,0)","v":548011}]
["07T","NHS City and Hackney",{"$f":"VLOOKUP($A132,[4]CVD_All_prescriptions!$A$10:$D$223,4,0)","v":2786636.6099999901},{"$f":"VLOOKUP($A132,Lookup!$BP$3:$BW$213,7,0)","v":42621.20327102804},{"$f":"VLOOKUP($A132,[4]Lipid_regulators!$A$14:$D$227,4,0)","v":809706.66000000294},42621.20327102804,{"$f":"VLOOKUP($A132,[4]HyperandHeartfailure!$A$13:$D$226,4,0)","v":731944.06},42621.20327102804,{"$f":"VLOOKUP($A132,[4]Nit_Calc_Antianginal!$A$13:$D$226,4,0)","v":474413.96},42621.20327102804,{"$f":"VLOOKUP($A132,[4]Anti_coagulants!$A$15:$D$227,4,0)","v":222048.640000001},42621.20327102804,{"$f":"VLOOKUP($A132,[4]Beta_Adrenorecepter!$A$13:$D$226,4,0)","v":184566.36999999799},42621.20327102804,{"$f":"VLOOKUP($A132,[4]Anti_platelet!$A$13:$D$226,4,0)","v":152248.21999999901},42621.20327102804,{"$f":"VLOOKUP($A132,[4]Diuretics!$A$11:$D$224,4,0)","v":167324.67000000001},42621.20327102804,{"$f":"VLOOKUP($A132,[4]Anti_arrhythmic_drugs!$A$13:$D$226,4,0)","v":14650.82},42621.20327102804,{"$f":"VLOOKUP($A132,[4]Positive_Intotropic!$A$13:$D$226,4,0)","v":7850.6800000000103},42621.20327102804,{"$f":"VLOOKUP($A132,[4]anti_fibrinolytic!$A$13:$D$226,4,0)","v":20955.400000000001},42621.20327102804,{"$f":"VLOOKUP($A132,[4]sympathomimetics!$A$11:$D$223,4,0)","v":927.13},42621.20327102804,{"$f":"VLOOKUP($A132,[4]CVD_All_prescriptions!$A$10:$D$223,4,0)","v":2786636.6099999901},{"$f":"VLOOKUP($A132,[4]CVD_All_prescriptions!$A$10:$D$223,3,0)","v":758224},{"$f":"VLOOKUP($A132,[5]CVD_All_prescriptions!$A$10:$C$392,3,0)","v":2557559.52252331},{"$f":"VLOOKUP($A132,Lookup!$BP$3:$BW$213,8,0)","v":41722.838785046733},{"$f":"VLOOKUP($A132,[5]Lipid_regulators!$A$12:$C$345,3,0)","v":564397.140592888},41722.838785046733,{"$f":"VLOOKUP($A132,[5]HyperandHeartfailure!$A$12:$C$356,3,0)","v":590111.70025400806},41722.838785046733,{"$f":"VLOOKUP($A132,[5]Nit_Calc_Antianginal!$A$12:$C$345,3,0)","v":502872.03969417501},41722.838785046733,{"$f":"VLOOKUP($A132,[5]Anti_coagulants!$A$11:$C$325,3,0)","v":262261.55067604},41722.838785046733,{"$f":"VLOOKUP($A132,[5]Beta_Adrenorecepter!$A$11:$C$352,3,0)","v":209271.40005292001},41722.838785046733,{"$f":"VLOOKUP($A132,[5]Anti_platelet!$A$12:$C$335,3,0)","v":148949.31014736},41722.838785046733,{"$f":"VLOOKUP($A132,[5]Diuretics!$A$12:$C$353,3,0)","v":237849.82091349401},41722.838785046733,{"$f":"VLOOKUP($A132,[5]Anti_arrhythmic_drugs!$A$11:$C$271,3,0)","v":12963.3800643533},41722.838785046733,{"$f":"VLOOKUP($A132,[5]Positive_Intotropic!$A$12:$C$297,3,0)","v":6862.1299891173803},41722.838785046733,{"$f":"VLOOKUP($A132,[5]anti_fibrinolytic!$A$11:$C$287,3,0)","v":17460.6900477409},41722.838785046733,{"$f":"VLOOKUP($A132,[5]sympathomimetics!$A$11:$C$223,3,0)","v":4560.3600912094098},41722.838785046733,{"$f":"VLOOKUP($A132,[5]CVD_All_prescriptions!$A$10:$C$392,3,0)","v":2557559.52252331},{"$f":"VLOOKUP($A132,[5]CVD_All_prescriptions!$A$10:$C$392,2,0)","v":777077}]
["07V","NHS Croydon",{"$f":"VLOOKUP($A133,[4]CVD_All_prescriptions!$A$10:$D$223,4,0)","v":5114788.5300000198},{"$f":"VLOOKUP($A133,Lookup!$BP$3:$BW$213,7,0)","v":49220.560030686618},{"$f":"VLOOKUP($A133,[4]Lipid_regulators!$A$14:$D$227,4,0)","v":1416215.1100000101},49220.560030686618,{"$f":"VLOOKUP($A133,[4]HyperandHeartfailure!$A$13:$D$226,4,0)","v":1624885.38},49220.560030686618,{"$f":"VLOOKUP($A133,[4]Nit_Calc_Antianginal!$A$13:$D$226,4,0)","v":853654.71999999799},49220.560030686618,{"$f":"VLOOKUP($A133,[4]Anti_coagulants!$A$15:$D$227,4,0)","v":111149.63},49220.560030686618,{"$f":"VLOOKUP($A133,[4]Beta_Adrenorecepter!$A$13:$D$226,4,0)","v":334585.61000000098},49220.560030686618,{"$f":"VLOOKUP($A133,[4]Anti_platelet!$A$13:$D$226,4,0)","v":323956.20999999798},49220.560030686618,{"$f":"VLOOKUP($A133,[4]Diuretics!$A$11:$D$224,4,0)","v":349398.54999999801},49220.560030686618,{"$f":"VLOOKUP($A133,[4]Anti_arrhythmic_drugs!$A$13:$D$226,4,0)","v":38524.059999999801},49220.560030686618,{"$f":"VLOOKUP($A133,[4]Positive_Intotropic!$A$13:$D$226,4,0)","v":24720.719999999899},49220.560030686618,{"$f":"VLOOKUP($A133,[4]anti_fibrinolytic!$A$13:$D$226,4,0)","v":32942.550000000003},49220.560030686618,{"$f":"VLOOKUP($A133,[4]sympathomimetics!$A$11:$D$223,4,0)","v":4755.99},49220.560030686618,{"$f":"VLOOKUP($A133,[4]CVD_All_prescriptions!$A$10:$D$223,4,0)","v":5114788.5300000198},{"$f":"VLOOKUP($A133,[4]CVD_All_prescriptions!$A$10:$D$223,3,0)","v":1493270},{"$f":"VLOOKUP($A133,[5]CVD_All_prescriptions!$A$10:$C$392,3,0)","v":4569931.2438934697},{"$f":"VLOOKUP($A133,Lookup!$BP$3:$BW$213,8,0)","v":50094.872778417084},{"$f":"VLOOKUP($A133,[5]Lipid_regulators!$A$12:$C$345,3,0)","v":1066729.94159279},50094.872778417084,{"$f":"VLOOKUP($A133,[5]HyperandHeartfailure!$A$12:$C$356,3,0)","v":1071959.12090158},50094.872778417084,{"$f":"VLOOKUP($A133,[5]Nit_Calc_Antianginal!$A$12:$C$345,3,0)","v":929058.96900326002},50094.872778417084,{"$f":"VLOOKUP($A133,[5]Anti_coagulants!$A$11:$C$325,3,0)","v":146353.61989623299},50094.872778417084,{"$f":"VLOOKUP($A133,[5]Beta_Adrenorecepter!$A$11:$C$352,3,0)","v":388672.67047331098},50094.872778417084,{"$f":"VLOOKUP($A133,[5]Anti_platelet!$A$12:$C$335,3,0)","v":340472.61051339703},50094.872778417084,{"$f":"VLOOKUP($A133,[5]Diuretics!$A$12:$C$353,3,0)","v":535882.94155163702},50094.872778417084,{"$f":"VLOOKUP($A133,[5]Anti_arrhythmic_drugs!$A$11:$C$271,3,0)","v":35275.8699755669},50094.872778417084,{"$f":"VLOOKUP($A133,[5]Positive_Intotropic!$A$12:$C$297,3,0)","v":20613.510002016999},50094.872778417084,{"$f":"VLOOKUP($A133,[5]anti_fibrinolytic!$A$11:$C$287,3,0)","v":27292.120040059101},50094.872778417084,{"$f":"VLOOKUP($A133,[5]sympathomimetics!$A$11:$C$223,3,0)","v":7619.8699436187699},50094.872778417084,{"$f":"VLOOKUP($A133,[5]CVD_All_prescriptions!$A$10:$C$392,3,0)","v":4569931.2438934697},{"$f":"VLOOKUP($A133,[5]CVD_All_prescriptions!$A$10:$C$392,2,0)","v":1523691}]
["07W","NHS Ealing",{"$f":"VLOOKUP($A134,[4]CVD_All_prescriptions!$A$10:$D$223,4,0)","v":5768547.9699999997},{"$f":"VLOOKUP($A134,Lookup!$BP$3:$BW$213,7,0)","v":57891.082078954845},{"$f":"VLOOKUP($A134,[4]Lipid_regulators!$A$14:$D$227,4,0)","v":1983710.97000003},{"$f":"D134","v":57891.082078954845},{"$f":"VLOOKUP($A134,[4]HyperandHeartfailure!$A$13:$D$226,4,0)","v":1472789.03},{"$f":"D134","v":57891.082078954845},{"$f":"VLOOKUP($A134,[4]Nit_Calc_Antianginal!$A$13:$D$226,4,0)","v":1010347.35},{"$f":"D134","v":57891.082078954845},{"$f":"VLOOKUP($A134,[4]Anti_coagulants!$A$15:$D$227,4,0)","v":224671.9},{"$f":"D134","v":57891.082078954845},{"$f":"VLOOKUP($A134,[4]Beta_Adrenorecepter!$A$13:$D$226,4,0)","v":330684.010000001},{"$f":"D134","v":57891.082078954845},{"$f":"VLOOKUP($A134,[4]Anti_platelet!$A$13:$D$226,4,0)","v":352903.419999998},{"$f":"D134","v":57891.082078954845},{"$f":"VLOOKUP($A134,[4]Diuretics!$A$11:$D$224,4,0)","v":294041.37},{"$f":"P134","v":57891.082078954845},{"$f":"VLOOKUP($A134,[4]Anti_arrhythmic_drugs!$A$13:$D$226,4,0)","v":41201.889999999701},{"$f":"P134","v":57891.082078954845},{"$f":"VLOOKUP($A134,[4]Positive_Intotropic!$A$13:$D$226,4,0)","v":19050.0099999999},{"$f":"P134","v":57891.082078954845},{"$f":"VLOOKUP($A134,[4]anti_fibrinolytic!$A$13:$D$226,4,0)","v":23239.919999999998},{"$f":"V134","v":57891.082078954845},{"$f":"VLOOKUP($A134,[4]sympathomimetics!$A$11:$D$223,4,0)","v":15828.85},{"$f":"X134","v":57891.082078954845},{"$f":"VLOOKUP($A134,[4]CVD_All_prescriptions!$A$10:$D$223,4,0)","v":5768547.9699999997},{"$f":"VLOOKUP($A134,[4]CVD_All_prescriptions!$A$10:$D$223,3,0)","v":1554671},{"$f":"VLOOKUP($A134,[5]CVD_All_prescriptions!$A$10:$C$392,3,0)","v":5127012.6227429798},{"$f":"VLOOKUP($A134,Lookup!$BP$3:$BW$213,8,0)","v":57975.717125816533},{"$f":"VLOOKUP($A134,[5]Lipid_regulators!$A$12:$C$345,3,0)","v":1441053.2511801},{"$f":"AD134","v":57975.717125816533},{"$f":"VLOOKUP($A134,[5]HyperandHeartfailure!$A$12:$C$356,3,0)","v":1046011.65015534},{"$f":"AD134","v":57975.717125816533},{"$f":"VLOOKUP($A134,[5]Nit_Calc_Antianginal!$A$12:$C$345,3,0)","v":1064183.57884267},{"$f":"AD134","v":57975.717125816533},{"$f":"VLOOKUP($A134,[5]Anti_coagulants!$A$11:$C$325,3,0)","v":305944.19038686901},{"$f":"AD134","v":57975.717125816533},{"$f":"VLOOKUP($A134,[5]Beta_Adrenorecepter!$A$11:$C$352,3,0)","v":388678.60017658398},{"$f":"AD134","v":57975.717125816533},{"$f":"VLOOKUP($A134,[5]Anti_platelet!$A$12:$C$335,3,0)","v":374350.93009572302},{"$f":"AD134","v":57975.717125816533},{"$f":"VLOOKUP($A134,[5]Diuretics!$A$12:$C$353,3,0)","v":419638.641885661},{"$f":"AD134","v":57975.717125816533},{"$f":"VLOOKUP($A134,[5]Anti_arrhythmic_drugs!$A$11:$C$271,3,0)","v":37029.349950700998},{"$f":"AD134","v":57975.717125816533},{"$f":"VLOOKUP($A134,[5]Positive_Intotropic!$A$12:$C$297,3,0)","v":16184.189993746601},{"$f":"AT134","v":57975.717125816533},{"$f":"VLOOKUP($A134,[5]anti_fibrinolytic!$A$11:$C$287,3,0)","v":19968.970040679},{"$f":"AP134","v":57975.717125816533},{"$f":"VLOOKUP($A134,[5]sympathomimetics!$A$11:$C$223,3,0)","v":13969.270034909199},{"$f":"AP134","v":57975.717125816533},{"$f":"VLOOKUP($A134,[5]CVD_All_prescriptions!$A$10:$C$392,3,0)","v":5127012.6227429798},{"$f":"VLOOKUP($A134,[5]CVD_All_prescriptions!$A$10:$C$392,2,0)","v":1636899}]
["07X","NHS Enfield",{"$f":"VLOOKUP($A135,[4]CVD_All_prescriptions!$A$10:$D$223,4,0)","v":4935925.04},{"$f":"VLOOKUP($A135,Lookup!$BP$3:$BW$213,7,0)","v":37651.302115173006},{"$f":"VLOOKUP($A135,[4]Lipid_regulators!$A$14:$D$227,4,0)","v":1472954.6},37651.302115173006,{"$f":"VLOOKUP($A135,[4]HyperandHeartfailure!$A$13:$D$226,4,0)","v":1257512.02},37651.302115173006,{"$f":"VLOOKUP($A135,[4]Nit_Calc_Antianginal!$A$13:$D$226,4,0)","v":897121.38999999897},37651.302115173006,{"$f":"VLOOKUP($A135,[4]Anti_coagulants!$A$15:$D$227,4,0)","v":303551.27},37651.302115173006,{"$f":"VLOOKUP($A135,[4]Beta_Adrenorecepter!$A$13:$D$226,4,0)","v":336294.44999999902},37651.302115173006,{"$f":"VLOOKUP($A135,[4]Anti_platelet!$A$13:$D$226,4,0)","v":296078.62999999803},37651.302115173006,{"$f":"VLOOKUP($A135,[4]Diuretics!$A$11:$D$224,4,0)","v":286317.34000000003},37651.302115173006,{"$f":"VLOOKUP($A135,[4]Anti_arrhythmic_drugs!$A$13:$D$226,4,0)","v":30218.179999999898},37651.302115173006,{"$f":"VLOOKUP($A135,[4]Positive_Intotropic!$A$13:$D$226,4,0)","v":20524.5799999999},37651.302115173006,{"$f":"VLOOKUP($A135,[4]anti_fibrinolytic!$A$13:$D$226,4,0)","v":23141.4},37651.302115173006,{"$f":"VLOOKUP($A135,[4]sympathomimetics!$A$11:$D$223,4,0)","v":12211.18},37651.302115173006,{"$f":"VLOOKUP($A135,[4]CVD_All_prescriptions!$A$10:$D$223,4,0)","v":4935925.04},{"$f":"VLOOKUP($A135,[4]CVD_All_prescriptions!$A$10:$D$223,3,0)","v":1456854},{"$f":"VLOOKUP($A135,[5]CVD_All_prescriptions!$A$10:$C$392,3,0)","v":4776548.8549008602},{"$f":"VLOOKUP($A135,Lookup!$BP$3:$BW$213,8,0)","v":38375.473774300037},{"$f":"VLOOKUP($A135,[5]Lipid_regulators!$A$12:$C$345,3,0)","v":1238017.26181949},38375.473774300037,{"$f":"VLOOKUP($A135,[5]HyperandHeartfailure!$A$12:$C$356,3,0)","v":971747.14020749205},38375.473774300037,{"$f":"VLOOKUP($A135,[5]Nit_Calc_Antianginal!$A$12:$C$345,3,0)","v":981867.64957132598},38375.473774300037,{"$f":"VLOOKUP($A135,[5]Anti_coagulants!$A$11:$C$325,3,0)","v":383990.98149178602},38375.473774300037,{"$f":"VLOOKUP($A135,[5]Beta_Adrenorecepter!$A$11:$C$352,3,0)","v":407054.34033262701},38375.473774300037,{"$f":"VLOOKUP($A135,[5]Anti_platelet!$A$12:$C$335,3,0)","v":317826.34021056403},38375.473774300037,{"$f":"VLOOKUP($A135,[5]Diuretics!$A$12:$C$353,3,0)","v":391905.16113606503},38375.473774300037,{"$f":"VLOOKUP($A135,[5]Anti_arrhythmic_drugs!$A$11:$C$271,3,0)","v":26930.210025847002},38375.473774300037,{"$f":"VLOOKUP($A135,[5]Positive_Intotropic!$A$12:$C$297,3,0)","v":17346.689975798101},38375.473774300037,{"$f":"VLOOKUP($A135,[5]anti_fibrinolytic!$A$11:$C$287,3,0)","v":21280.270047426198},38375.473774300037,{"$f":"VLOOKUP($A135,[5]sympathomimetics!$A$11:$C$223,3,0)","v":18582.810082435601},38375.473774300037,{"$f":"VLOOKUP($A135,[5]CVD_All_prescriptions!$A$10:$C$392,3,0)","v":4776548.8549008602},{"$f":"VLOOKUP($A135,[5]CVD_All_prescriptions!$A$10:$C$392,2,0)","v":1572990}]
["07Y","NHS Hounslow",{"$f":"VLOOKUP($A136,[4]CVD_All_prescriptions!$A$10:$D$223,4,0)","v":3940047.8899999899},{"$f":"VLOOKUP($A136,Lookup!$BP$3:$BW$213,7,0)","v":40855.452240067629},{"$f":"VLOOKUP($A136,[4]Lipid_regulators!$A$14:$D$227,4,0)","v":1252310.3},40855.452240067629,{"$f":"VLOOKUP($A136,[4]HyperandHeartfailure!$A$13:$D$226,4,0)","v":1036936.12},40855.452240067629,{"$f":"VLOOKUP($A136,[4]Nit_Calc_Antianginal!$A$13:$D$226,4,0)","v":653359.14},40855.452240067629,{"$f":"VLOOKUP($A136,[4]Anti_coagulants!$A$15:$D$227,4,0)","v":195469.43},40855.452240067629,{"$f":"VLOOKUP($A136,[4]Beta_Adrenorecepter!$A$13:$D$226,4,0)","v":245945.75999999899},40855.452240067629,{"$f":"VLOOKUP($A136,[4]Anti_platelet!$A$13:$D$226,4,0)","v":258856.259999998},40855.452240067629,{"$f":"VLOOKUP($A136,[4]Diuretics!$A$11:$D$224,4,0)","v":228811.67},40855.452240067629,{"$f":"VLOOKUP($A136,[4]Anti_arrhythmic_drugs!$A$13:$D$226,4,0)","v":26925.26},40855.452240067629,{"$f":"VLOOKUP($A136,[4]Positive_Intotropic!$A$13:$D$226,4,0)","v":16157.17},40855.452240067629,{"$f":"VLOOKUP($A136,[4]anti_fibrinolytic!$A$13:$D$226,4,0)","v":19275.810000000001},40855.452240067629,{"$f":"VLOOKUP($A136,[4]sympathomimetics!$A$11:$D$223,4,0)","v":6000.97},40855.452240067629,{"$f":"VLOOKUP($A136,[4]CVD_All_prescriptions!$A$10:$D$223,4,0)","v":3940047.8899999899},{"$f":"VLOOKUP($A136,[4]CVD_All_prescriptions!$A$10:$D$223,3,0)","v":1101053},{"$f":"VLOOKUP($A136,[5]CVD_All_prescriptions!$A$10:$C$392,3,0)","v":3546397.7130045602},{"$f":"VLOOKUP($A136,Lookup!$BP$3:$BW$213,8,0)","v":41169.343477035785},{"$f":"VLOOKUP($A136,[5]Lipid_regulators!$A$12:$C$345,3,0)","v":973717.62099726498},41169.343477035785,{"$f":"VLOOKUP($A136,[5]HyperandHeartfailure!$A$12:$C$356,3,0)","v":730619.63021214295},41169.343477035785,{"$f":"VLOOKUP($A136,[5]Nit_Calc_Antianginal!$A$12:$C$345,3,0)","v":690031.46943184698},41169.343477035785,{"$f":"VLOOKUP($A136,[5]Anti_coagulants!$A$11:$C$325,3,0)","v":210091.93019060799},41169.343477035785,{"$f":"VLOOKUP($A136,[5]Beta_Adrenorecepter!$A$11:$C$352,3,0)","v":287039.99036794202},41169.343477035785,{"$f":"VLOOKUP($A136,[5]Anti_platelet!$A$12:$C$335,3,0)","v":261792.81030723499},41169.343477035785,{"$f":"VLOOKUP($A136,[5]Diuretics!$A$12:$C$353,3,0)","v":328013.07142659603},41169.343477035785,{"$f":"VLOOKUP($A136,[5]Anti_arrhythmic_drugs!$A$11:$C$271,3,0)","v":24076.6499364376},41169.343477035785,{"$f":"VLOOKUP($A136,[5]Positive_Intotropic!$A$12:$C$297,3,0)","v":13155.4600155354},41169.343477035785,{"$f":"VLOOKUP($A136,[5]anti_fibrinolytic!$A$11:$C$287,3,0)","v":16701.410034000899},41169.343477035785,{"$f":"VLOOKUP($A136,[5]sympathomimetics!$A$11:$C$223,3,0)","v":11157.670084953301},41169.343477035785,{"$f":"VLOOKUP($A136,[5]CVD_All_prescriptions!$A$10:$C$392,3,0)","v":3546397.7130045602},{"$f":"VLOOKUP($A136,[5]CVD_All_prescriptions!$A$10:$C$392,2,0)","v":1152225}]
["08A","NHS Greenwich",{"$f":"VLOOKUP($A137,[4]CVD_All_prescriptions!$A$10:$D$223,4,0)","v":4002525.52},{"$f":"VLOOKUP($A137,Lookup!$BP$3:$BW$213,7,0)","v":36498.438560760354},{"$f":"VLOOKUP($A137,[4]Lipid_regulators!$A$14:$D$227,4,0)","v":1225406.6099999901},36498.438560760354,{"$f":"VLOOKUP($A137,[4]HyperandHeartfailure!$A$13:$D$226,4,0)","v":1044379.95},36498.438560760354,{"$f":"VLOOKUP($A137,[4]Nit_Calc_Antianginal!$A$13:$D$226,4,0)","v":699171.68999999901},36498.438560760354,{"$f":"VLOOKUP($A137,[4]Anti_coagulants!$A$15:$D$227,4,0)","v":280409.73},36498.438560760354,{"$f":"VLOOKUP($A137,[4]Beta_Adrenorecepter!$A$13:$D$226,4,0)","v":238813.30000000101},36498.438560760354,{"$f":"VLOOKUP($A137,[4]Anti_platelet!$A$13:$D$226,4,0)","v":237894.55999999799},36498.438560760354,{"$f":"VLOOKUP($A137,[4]Diuretics!$A$11:$D$224,4,0)","v":211759.81000000099},36498.438560760354,{"$f":"VLOOKUP($A137,[4]Anti_arrhythmic_drugs!$A$13:$D$226,4,0)","v":24307.11},36498.438560760354,{"$f":"VLOOKUP($A137,[4]Positive_Intotropic!$A$13:$D$226,4,0)","v":16248.24},36498.438560760354,{"$f":"VLOOKUP($A137,[4]anti_fibrinolytic!$A$13:$D$226,4,0)","v":20904.8},36498.438560760354,{"$f":"VLOOKUP($A137,[4]sympathomimetics!$A$11:$D$223,4,0)","v":3229.72},36498.438560760354,{"$f":"VLOOKUP($A137,[4]CVD_All_prescriptions!$A$10:$D$223,4,0)","v":4002525.52},{"$f":"VLOOKUP($A137,[4]CVD_All_prescriptions!$A$10:$D$223,3,0)","v":1128307},{"$f":"VLOOKUP($A137,[5]CVD_All_prescriptions!$A$10:$C$392,3,0)","v":3700645.6940723401},{"$f":"VLOOKUP($A137,Lookup!$BP$3:$BW$213,8,0)","v":37518.126272912421},{"$f":"VLOOKUP($A137,[5]Lipid_regulators!$A$12:$C$345,3,0)","v":957035.75205485197},37518.126272912421,{"$f":"VLOOKUP($A137,[5]HyperandHeartfailure!$A$12:$C$356,3,0)","v":792923.57060149102},37518.126272912421,{"$f":"VLOOKUP($A137,[5]Nit_Calc_Antianginal!$A$12:$C$345,3,0)","v":725883.28914972395},37518.126272912421,{"$f":"VLOOKUP($A137,[5]Anti_coagulants!$A$11:$C$325,3,0)","v":341495.67026274698},37518.126272912421,{"$f":"VLOOKUP($A137,[5]Beta_Adrenorecepter!$A$11:$C$352,3,0)","v":284046.80020093499},37518.126272912421,{"$f":"VLOOKUP($A137,[5]Anti_platelet!$A$12:$C$335,3,0)","v":240030.55012980799},37518.126272912421,{"$f":"VLOOKUP($A137,[5]Diuretics!$A$12:$C$353,3,0)","v":304150.58158663998},37518.126272912421,{"$f":"VLOOKUP($A137,[5]Anti_arrhythmic_drugs!$A$11:$C$271,3,0)","v":19357.339983195099},37518.126272912421,{"$f":"VLOOKUP($A137,[5]Positive_Intotropic!$A$12:$C$297,3,0)","v":13120.9699961767},37518.126272912421,{"$f":"VLOOKUP($A137,[5]anti_fibrinolytic!$A$11:$C$287,3,0)","v":19522.530053973202},37518.126272912421,{"$f":"VLOOKUP($A137,[5]sympathomimetics!$A$11:$C$223,3,0)","v":3078.6400527954102},37518.126272912421,{"$f":"VLOOKUP($A137,[5]CVD_All_prescriptions!$A$10:$C$392,3,0)","v":3700645.6940723401},{"$f":"VLOOKUP($A137,[5]CVD_All_prescriptions!$A$10:$C$392,2,0)","v":1175643}]
["08C","NHS Hammersmith and Fulham",{"$f":"VLOOKUP($A138,[4]CVD_All_prescriptions!$A$10:$D$223,4,0)","v":2550883.77999999},{"$f":"VLOOKUP($A138,Lookup!$BP$3:$BW$213,7,0)","v":29580.645161290326},{"$f":"VLOOKUP($A138,[4]Lipid_regulators!$A$14:$D$227,4,0)","v":1016302.20999999},29580.645161290326,{"$f":"VLOOKUP($A138,[4]HyperandHeartfailure!$A$13:$D$226,4,0)","v":559576.03999999899},29580.645161290326,{"$f":"VLOOKUP($A138,[4]Nit_Calc_Antianginal!$A$13:$D$226,4,0)","v":350478.25},29580.645161290326,{"$f":"VLOOKUP($A138,[4]Anti_coagulants!$A$15:$D$227,4,0)","v":187680.94},29580.645161290326,{"$f":"VLOOKUP($A138,[4]Beta_Adrenorecepter!$A$13:$D$226,4,0)","v":123747.58999999901},29580.645161290326,{"$f":"VLOOKUP($A138,[4]Anti_platelet!$A$13:$D$226,4,0)","v":120654.3},29580.645161290326,{"$f":"VLOOKUP($A138,[4]Diuretics!$A$11:$D$224,4,0)","v":146471.79999999999},29580.645161290326,{"$f":"VLOOKUP($A138,[4]Anti_arrhythmic_drugs!$A$13:$D$226,4,0)","v":16228.64},29580.645161290326,{"$f":"VLOOKUP($A138,[4]Positive_Intotropic!$A$13:$D$226,4,0)","v":9446.8399999999892},29580.645161290326,{"$f":"VLOOKUP($A138,[4]anti_fibrinolytic!$A$13:$D$226,4,0)","v":10448.19},29580.645161290326,{"$f":"VLOOKUP($A138,[4]sympathomimetics!$A$11:$D$223,4,0)","v":9848.98},29580.645161290326,{"$f":"VLOOKUP($A138,[4]CVD_All_prescriptions!$A$10:$D$223,4,0)","v":2550883.77999999},{"$f":"VLOOKUP($A138,[4]CVD_All_prescriptions!$A$10:$D$223,3,0)","v":601472},{"$f":"VLOOKUP($A138,[5]CVD_All_prescriptions!$A$10:$C$392,3,0)","v":2302950.39132402},{"$f":"VLOOKUP($A138,Lookup!$BP$3:$BW$213,8,0)","v":29388.695146759663},{"$f":"VLOOKUP($A138,[5]Lipid_regulators!$A$12:$C$345,3,0)","v":788933.52063456201},29388.695146759663,{"$f":"VLOOKUP($A138,[5]HyperandHeartfailure!$A$12:$C$356,3,0)","v":412599.55014362902},29388.695146759663,{"$f":"VLOOKUP($A138,[5]Nit_Calc_Antianginal!$A$12:$C$345,3,0)","v":354056.96996024298},29388.695146759663,{"$f":"VLOOKUP($A138,[5]Anti_coagulants!$A$11:$C$325,3,0)","v":249087.369919583},29388.695146759663,{"$f":"VLOOKUP($A138,[5]Beta_Adrenorecepter!$A$11:$C$352,3,0)","v":144456.56006799499},29388.695146759663,{"$f":"VLOOKUP($A138,[5]Anti_platelet!$A$12:$C$335,3,0)","v":124975.349990189},29388.695146759663,{"$f":"VLOOKUP($A138,[5]Diuretics!$A$12:$C$353,3,0)","v":190211.55058943501},29388.695146759663,{"$f":"VLOOKUP($A138,[5]Anti_arrhythmic_drugs!$A$11:$C$271,3,0)","v":14027.0999732316},29388.695146759663,{"$f":"VLOOKUP($A138,[5]Positive_Intotropic!$A$12:$C$297,3,0)","v":8047.0199880748996},29388.695146759663,{"$f":"VLOOKUP($A138,[5]anti_fibrinolytic!$A$11:$C$287,3,0)","v":7815.6399958133698},29388.695146759663,{"$f":"VLOOKUP($A138,[5]sympathomimetics!$A$11:$C$223,3,0)","v":8739.7600612640399},29388.695146759663,{"$f":"VLOOKUP($A138,[5]CVD_All_prescriptions!$A$10:$C$392,3,0)","v":2302950.39132402},{"$f":"VLOOKUP($A138,[5]CVD_All_prescriptions!$A$10:$C$392,2,0)","v":613399}]
["08D","NHS Haringey",{"$f":"VLOOKUP($A139,[4]CVD_All_prescriptions!$A$10:$D$223,4,0)","v":3659020.8199999901},{"$f":"VLOOKUP($A139,Lookup!$BP$3:$BW$213,7,0)","v":39058.183284063423},{"$f":"VLOOKUP($A139,[4]Lipid_regulators!$A$14:$D$227,4,0)","v":1066921.75000001},39058.183284063423,{"$f":"VLOOKUP($A139,[4]HyperandHeartfailure!$A$13:$D$226,4,0)","v":947945.7},39058.183284063423,{"$f":"VLOOKUP($A139,[4]Nit_Calc_Antianginal!$A$13:$D$226,4,0)","v":657179.93000000005},39058.183284063423,{"$f":"VLOOKUP($A139,[4]Anti_coagulants!$A$15:$D$227,4,0)","v":257546.84},39058.183284063423,{"$f":"VLOOKUP($A139,[4]Beta_Adrenorecepter!$A$13:$D$226,4,0)","v":200893.52999999901},39058.183284063423,{"$f":"VLOOKUP($A139,[4]Anti_platelet!$A$13:$D$226,4,0)","v":237745.07999999699},39058.183284063423,{"$f":"VLOOKUP($A139,[4]Diuretics!$A$11:$D$224,4,0)","v":235821.81},39058.183284063423,{"$f":"VLOOKUP($A139,[4]Anti_arrhythmic_drugs!$A$13:$D$226,4,0)","v":19872.62},39058.183284063423,{"$f":"VLOOKUP($A139,[4]Positive_Intotropic!$A$13:$D$226,4,0)","v":11657.55},39058.183284063423,{"$f":"VLOOKUP($A139,[4]anti_fibrinolytic!$A$13:$D$226,4,0)","v":20466.96},39058.183284063423,{"$f":"VLOOKUP($A139,[4]sympathomimetics!$A$11:$D$223,4,0)","v":2969.05},39058.183284063423,{"$f":"VLOOKUP($A139,[4]CVD_All_prescriptions!$A$10:$D$223,4,0)","v":3659020.8199999901},{"$f":"VLOOKUP($A139,[4]CVD_All_prescriptions!$A$10:$D$223,3,0)","v":1063797},{"$f":"VLOOKUP($A139,[5]CVD_All_prescriptions!$A$10:$C$392,3,0)","v":3454824.98251421},{"$f":"VLOOKUP($A139,Lookup!$BP$3:$BW$213,8,0)","v":38565.170653050256},{"$f":"VLOOKUP($A139,[5]Lipid_regulators!$A$12:$C$345,3,0)","v":866233.829785701},38565.170653050256,{"$f":"VLOOKUP($A139,[5]HyperandHeartfailure!$A$12:$C$356,3,0)","v":720600.34976941301},38565.170653050256,{"$f":"VLOOKUP($A139,[5]Nit_Calc_Antianginal!$A$12:$C$345,3,0)","v":671003.29026204301},38565.170653050256,{"$f":"VLOOKUP($A139,[5]Anti_coagulants!$A$11:$C$325,3,0)","v":309952.461087793},38565.170653050256,{"$f":"VLOOKUP($A139,[5]Beta_Adrenorecepter!$A$11:$C$352,3,0)","v":247382.060190082},38565.170653050256,{"$f":"VLOOKUP($A139,[5]Anti_platelet!$A$12:$C$335,3,0)","v":232393.83041293899},38565.170653050256,{"$f":"VLOOKUP($A139,[5]Diuretics!$A$12:$C$353,3,0)","v":344539.02079144103},38565.170653050256,{"$f":"VLOOKUP($A139,[5]Anti_arrhythmic_drugs!$A$11:$C$271,3,0)","v":26486.9200849831},38565.170653050256,{"$f":"VLOOKUP($A139,[5]Positive_Intotropic!$A$12:$C$297,3,0)","v":9899.0300079286098},38565.170653050256,{"$f":"VLOOKUP($A139,[5]anti_fibrinolytic!$A$11:$C$287,3,0)","v":19539.400063753099},38565.170653050256,{"$f":"VLOOKUP($A139,[5]sympathomimetics!$A$11:$C$223,3,0)","v":6794.79005813599},38565.170653050256,{"$f":"VLOOKUP($A139,[5]CVD_All_prescriptions!$A$10:$C$392,3,0)","v":3454824.98251421},{"$f":"VLOOKUP($A139,[5]CVD_All_prescriptions!$A$10:$C$392,2,0)","v":1099705}]
["08E","NHS Harrow",{"$f":"VLOOKUP($A140,[4]CVD_All_prescriptions!$A$10:$D$223,4,0)","v":3974556.1699999901},{"$f":"VLOOKUP($A140,Lookup!$BP$3:$BW$213,7,0)","v":31114.681229362461},{"$f":"VLOOKUP($A140,[4]Lipid_regulators!$A$14:$D$227,4,0)","v":1199442.8},31114.681229362461,{"$f":"VLOOKUP($A140,[4]HyperandHeartfailure!$A$13:$D$226,4,0)","v":1170371.8799999999},31114.681229362461,{"$f":"VLOOKUP($A140,[4]Nit_Calc_Antianginal!$A$13:$D$226,4,0)","v":682213.15},31114.681229362461,{"$f":"VLOOKUP($A140,[4]Anti_coagulants!$A$15:$D$227,4,0)","v":175620.3},31114.681229362461,{"$f":"VLOOKUP($A140,[4]Beta_Adrenorecepter!$A$13:$D$226,4,0)","v":251438.18999999901},31114.681229362461,{"$f":"VLOOKUP($A140,[4]Anti_platelet!$A$13:$D$226,4,0)","v":231270.129999998},31114.681229362461,{"$f":"VLOOKUP($A140,[4]Diuretics!$A$11:$D$224,4,0)","v":200336.29},31114.681229362461,{"$f":"VLOOKUP($A140,[4]Anti_arrhythmic_drugs!$A$13:$D$226,4,0)","v":32106.959999999999},31114.681229362461,{"$f":"VLOOKUP($A140,[4]Positive_Intotropic!$A$13:$D$226,4,0)","v":15780.84},31114.681229362461,{"$f":"VLOOKUP($A140,[4]anti_fibrinolytic!$A$13:$D$226,4,0)","v":15485.49},31114.681229362461,{"$f":"VLOOKUP($A140,[4]sympathomimetics!$A$11:$D$223,4,0)","v":490.14},31114.681229362461,{"$f":"VLOOKUP($A140,[4]CVD_All_prescriptions!$A$10:$D$223,4,0)","v":3974556.1699999901},{"$f":"VLOOKUP($A140,[4]CVD_All_prescriptions!$A$10:$D$223,3,0)","v":1245815},{"$f":"VLOOKUP($A140,[5]CVD_All_prescriptions!$A$10:$C$392,3,0)","v":3509630.5909994501},{"$f":"VLOOKUP($A140,Lookup!$BP$3:$BW$213,8,0)","v":31898.399796799597},{"$f":"VLOOKUP($A140,[5]Lipid_regulators!$A$12:$C$345,3,0)","v":881008.35030826903},31898.399796799597,{"$f":"VLOOKUP($A140,[5]HyperandHeartfailure!$A$12:$C$356,3,0)","v":778488.89047147299},31898.399796799597,{"$f":"VLOOKUP($A140,[5]Nit_Calc_Antianginal!$A$12:$C$345,3,0)","v":703204.37006604695},31898.399796799597,{"$f":"VLOOKUP($A140,[5]Anti_coagulants!$A$11:$C$325,3,0)","v":223257.21012650401},31898.399796799597,{"$f":"VLOOKUP($A140,[5]Beta_Adrenorecepter!$A$11:$C$352,3,0)","v":286621.30006164301},31898.399796799597,{"$f":"VLOOKUP($A140,[5]Anti_platelet!$A$12:$C$335,3,0)","v":270551.13959303498},31898.399796799597,{"$f":"VLOOKUP($A140,[5]Diuretics!$A$12:$C$353,3,0)","v":311066.57031974202},31898.399796799597,{"$f":"VLOOKUP($A140,[5]Anti_arrhythmic_drugs!$A$11:$C$271,3,0)","v":28785.000016927701},31898.399796799597,{"$f":"VLOOKUP($A140,[5]Positive_Intotropic!$A$12:$C$297,3,0)","v":13412.4800155759},31898.399796799597,{"$f":"VLOOKUP($A140,[5]anti_fibrinolytic!$A$11:$C$287,3,0)","v":12270.790022373199},31898.399796799597,{"$f":"VLOOKUP($A140,[5]sympathomimetics!$A$11:$C$223,3,0)","v":964.48999786376999},31898.399796799597,{"$f":"VLOOKUP($A140,[5]CVD_All_prescriptions!$A$10:$C$392,3,0)","v":3509630.5909994501},{"$f":"VLOOKUP($A140,[5]CVD_All_prescriptions!$A$10:$C$392,2,0)","v":1253070}]
["08F","NHS Havering",{"$f":"VLOOKUP($A141,[4]CVD_All_prescriptions!$A$10:$D$223,4,0)","v":4637522.75},{"$f":"VLOOKUP($A141,Lookup!$BP$3:$BW$213,7,0)","v":26732.738959154052},{"$f":"VLOOKUP($A141,[4]Lipid_regulators!$A$14:$D$227,4,0)","v":1530105.1200000099},26732.738959154052,{"$f":"VLOOKUP($A141,[4]HyperandHeartfailure!$A$13:$D$226,4,0)","v":1057671.57},26732.738959154052,{"$f":"VLOOKUP($A141,[4]Nit_Calc_Antianginal!$A$13:$D$226,4,0)","v":825856.59999999905},26732.738959154052,{"$f":"VLOOKUP($A141,[4]Anti_coagulants!$A$15:$D$227,4,0)","v":336833.53000000102},26732.738959154052,{"$f":"VLOOKUP($A141,[4]Beta_Adrenorecepter!$A$13:$D$226,4,0)","v":290475.39000000199},26732.738959154052,{"$f":"VLOOKUP($A141,[4]Anti_platelet!$A$13:$D$226,4,0)","v":283023.34999999899},26732.738959154052,{"$f":"VLOOKUP($A141,[4]Diuretics!$A$11:$D$224,4,0)","v":239300.46},26732.738959154052,{"$f":"VLOOKUP($A141,[4]Anti_arrhythmic_drugs!$A$13:$D$226,4,0)","v":20209.77},26732.738959154052,{"$f":"VLOOKUP($A141,[4]Positive_Intotropic!$A$13:$D$226,4,0)","v":29645.8199999998},26732.738959154052,{"$f":"VLOOKUP($A141,[4]anti_fibrinolytic!$A$13:$D$226,4,0)","v":16789.09},26732.738959154052,{"$f":"VLOOKUP($A141,[4]sympathomimetics!$A$11:$D$223,4,0)","v":7612.05},26732.738959154052,{"$f":"VLOOKUP($A141,[4]CVD_All_prescriptions!$A$10:$D$223,4,0)","v":4637522.75},{"$f":"VLOOKUP($A141,[4]CVD_All_prescriptions!$A$10:$D$223,3,0)","v":1355637},{"$f":"VLOOKUP($A141,[5]CVD_All_prescriptions!$A$10:$C$392,3,0)","v":4284385.0047427304},{"$f":"VLOOKUP($A141,Lookup!$BP$3:$BW$213,8,0)","v":25643.686502177065},{"$f":"VLOOKUP($A141,[5]Lipid_regulators!$A$12:$C$345,3,0)","v":1114626.60156749},25643.686502177065,{"$f":"VLOOKUP($A141,[5]HyperandHeartfailure!$A$12:$C$356,3,0)","v":828418.11028505105},25643.686502177065,{"$f":"VLOOKUP($A141,[5]Nit_Calc_Antianginal!$A$12:$C$345,3,0)","v":889841.62953257596},25643.686502177065,{"$f":"VLOOKUP($A141,[5]Anti_coagulants!$A$11:$C$325,3,0)","v":434793.33138692402},25643.686502177065,{"$f":"VLOOKUP($A141,[5]Beta_Adrenorecepter!$A$11:$C$352,3,0)","v":327291.43038550002},25643.686502177065,{"$f":"VLOOKUP($A141,[5]Anti_platelet!$A$12:$C$335,3,0)","v":288670.29006786598},25643.686502177065,{"$f":"VLOOKUP($A141,[5]Diuretics!$A$12:$C$353,3,0)","v":332216.31151819602},25643.686502177065,{"$f":"VLOOKUP($A141,[5]Anti_arrhythmic_drugs!$A$11:$C$271,3,0)","v":20133.319997876901},25643.686502177065,{"$f":"VLOOKUP($A141,[5]Positive_Intotropic!$A$12:$C$297,3,0)","v":25219.749982751899},25643.686502177065,{"$f":"VLOOKUP($A141,[5]anti_fibrinolytic!$A$11:$C$287,3,0)","v":15145.530017733599},25643.686502177065,{"$f":"VLOOKUP($A141,[5]sympathomimetics!$A$11:$C$223,3,0)","v":8028.7000007629404},25643.686502177065,{"$f":"VLOOKUP($A141,[5]CVD_All_prescriptions!$A$10:$C$392,3,0)","v":4284385.0047427304},{"$f":"VLOOKUP($A141,[5]CVD_All_prescriptions!$A$10:$C$392,2,0)","v":1413238}]
["08G","NHS Hillingdon",{"$f":"VLOOKUP($A142,[4]CVD_All_prescriptions!$A$10:$D$223,4,0)","v":3895340.49},{"$f":"VLOOKUP($A142,Lookup!$BP$3:$BW$213,7,0)","v":35943.674285000627},{"$f":"VLOOKUP($A142,[4]Lipid_regulators!$A$14:$D$227,4,0)","v":1257403.3899999999},35943.674285000627,{"$f":"VLOOKUP($A142,[4]HyperandHeartfailure!$A$13:$D$226,4,0)","v":993737.96},35943.674285000627,{"$f":"VLOOKUP($A142,[4]Nit_Calc_Antianginal!$A$13:$D$226,4,0)","v":665626.72},35943.674285000627,{"$f":"VLOOKUP($A142,[4]Anti_coagulants!$A$15:$D$227,4,0)","v":199845.16999999899},35943.674285000627,{"$f":"VLOOKUP($A142,[4]Beta_Adrenorecepter!$A$13:$D$226,4,0)","v":260724.13},35943.674285000627,{"$f":"VLOOKUP($A142,[4]Anti_platelet!$A$13:$D$226,4,0)","v":235665.109999999},35943.674285000627,{"$f":"VLOOKUP($A142,[4]Diuretics!$A$11:$D$224,4,0)","v":204975.83},35943.674285000627,{"$f":"VLOOKUP($A142,[4]Anti_arrhythmic_drugs!$A$13:$D$226,4,0)","v":35242.569999999898},35943.674285000627,{"$f":"VLOOKUP($A142,[4]Positive_Intotropic!$A$13:$D$226,4,0)","v":21264.779999999901},35943.674285000627,{"$f":"VLOOKUP($A142,[4]anti_fibrinolytic!$A$13:$D$226,4,0)","v":15796.08},35943.674285000627,{"$f":"VLOOKUP($A142,[4]sympathomimetics!$A$11:$D$223,4,0)","v":5058.75},35943.674285000627,{"$f":"VLOOKUP($A142,[4]CVD_All_prescriptions!$A$10:$D$223,4,0)","v":3895340.49},{"$f":"VLOOKUP($A142,[4]CVD_All_prescriptions!$A$10:$D$223,3,0)","v":1270143},{"$f":"VLOOKUP($A142,[5]CVD_All_prescriptions!$A$10:$C$392,3,0)","v":3682141.3009935198},{"$f":"VLOOKUP($A142,Lookup!$BP$3:$BW$213,8,0)","v":36891.844635943547},{"$f":"VLOOKUP($A142,[5]Lipid_regulators!$A$12:$C$345,3,0)","v":977727.12013778102},36891.844635943547,{"$f":"VLOOKUP($A142,[5]HyperandHeartfailure!$A$12:$C$356,3,0)","v":781053.53002707998},36891.844635943547,{"$f":"VLOOKUP($A142,[5]Nit_Calc_Antianginal!$A$12:$C$345,3,0)","v":692193.53971156501},36891.844635943547,{"$f":"VLOOKUP($A142,[5]Anti_coagulants!$A$11:$C$325,3,0)","v":283318.70024958299},36891.844635943547,{"$f":"VLOOKUP($A142,[5]Beta_Adrenorecepter!$A$11:$C$352,3,0)","v":304731.75019045197},36891.844635943547,{"$f":"VLOOKUP($A142,[5]Anti_platelet!$A$12:$C$335,3,0)","v":274236.48973047698},36891.844635943547,{"$f":"VLOOKUP($A142,[5]Diuretics!$A$12:$C$353,3,0)","v":300960.26090994501},36891.844635943547,{"$f":"VLOOKUP($A142,[5]Anti_arrhythmic_drugs!$A$11:$C$271,3,0)","v":26843.360033571698},36891.844635943547,{"$f":"VLOOKUP($A142,[5]Positive_Intotropic!$A$12:$C$297,3,0)","v":18091.549999967199},36891.844635943547,{"$f":"VLOOKUP($A142,[5]anti_fibrinolytic!$A$11:$C$287,3,0)","v":13626.8499977589},36891.844635943547,{"$f":"VLOOKUP($A142,[5]sympathomimetics!$A$11:$C$223,3,0)","v":9358.1500053405798},36891.844635943547,{"$f":"VLOOKUP($A142,[5]CVD_All_prescriptions!$A$10:$C$392,3,0)","v":3682141.3009935198},{"$f":"VLOOKUP($A142,[5]CVD_All_prescriptions!$A$10:$C$392,2,0)","v":1295441}]
["08H","NHS Islington",{"$f":"VLOOKUP($A143,[4]CVD_All_prescriptions!$A$10:$D$223,4,0)","v":2414627.3999999901},{"$f":"VLOOKUP($A143,Lookup!$BP$3:$BW$213,7,0)","v":30195.099459886707},{"$f":"VLOOKUP($A143,[4]Lipid_regulators!$A$14:$D$227,4,0)","v":713223.13},30195.099459886707,{"$f":"VLOOKUP($A143,[4]HyperandHeartfailure!$A$13:$D$226,4,0)","v":571617.02},30195.099459886707,{"$f":"VLOOKUP($A143,[4]Nit_Calc_Antianginal!$A$13:$D$226,4,0)","v":405777.64},30195.099459886707,{"$f":"VLOOKUP($A143,[4]Anti_coagulants!$A$15:$D$227,4,0)","v":226183.3},30195.099459886707,{"$f":"VLOOKUP($A143,[4]Beta_Adrenorecepter!$A$13:$D$226,4,0)","v":142266.200000001},30195.099459886707,{"$f":"VLOOKUP($A143,[4]Anti_platelet!$A$13:$D$226,4,0)","v":150566.149999999},30195.099459886707,{"$f":"VLOOKUP($A143,[4]Diuretics!$A$11:$D$224,4,0)","v":155944.670000001},30195.099459886707,{"$f":"VLOOKUP($A143,[4]Anti_arrhythmic_drugs!$A$13:$D$226,4,0)","v":19171.79},30195.099459886707,{"$f":"VLOOKUP($A143,[4]Positive_Intotropic!$A$13:$D$226,4,0)","v":9432.17},30195.099459886707,{"$f":"VLOOKUP($A143,[4]anti_fibrinolytic!$A$13:$D$226,4,0)","v":16750.68},30195.099459886707,{"$f":"VLOOKUP($A143,[4]sympathomimetics!$A$11:$D$223,4,0)","v":3694.65},30195.099459886707,{"$f":"VLOOKUP($A143,[4]CVD_All_prescriptions!$A$10:$D$223,4,0)","v":2414627.3999999901},{"$f":"VLOOKUP($A143,[4]CVD_All_prescriptions!$A$10:$D$223,3,0)","v":515202},{"$f":"VLOOKUP($A143,[5]CVD_All_prescriptions!$A$10:$C$392,3,0)","v":2297870.0335425902},{"$f":"VLOOKUP($A143,Lookup!$BP$3:$BW$213,8,0)","v":30227.506257410088},{"$f":"VLOOKUP($A143,[5]Lipid_regulators!$A$12:$C$345,3,0)","v":559026.82043808699},30227.506257410088,{"$f":"VLOOKUP($A143,[5]HyperandHeartfailure!$A$12:$C$356,3,0)","v":443038.11013099598},30227.506257410088,{"$f":"VLOOKUP($A143,[5]Nit_Calc_Antianginal!$A$12:$C$345,3,0)","v":409589.560745642},30227.506257410088,{"$f":"VLOOKUP($A143,[5]Anti_coagulants!$A$11:$C$325,3,0)","v":290603.82096883701},30227.506257410088,{"$f":"VLOOKUP($A143,[5]Beta_Adrenorecepter!$A$11:$C$352,3,0)","v":186242.320234135},30227.506257410088,{"$f":"VLOOKUP($A143,[5]Anti_platelet!$A$12:$C$335,3,0)","v":158852.69009587201},30227.506257410088,{"$f":"VLOOKUP($A143,[5]Diuretics!$A$12:$C$353,3,0)","v":207342.030925378},30227.506257410088,{"$f":"VLOOKUP($A143,[5]Anti_arrhythmic_drugs!$A$11:$C$271,3,0)","v":16725.999990999699},30227.506257410088,{"$f":"VLOOKUP($A143,[5]Positive_Intotropic!$A$12:$C$297,3,0)","v":8593.2099725007993},30227.506257410088,{"$f":"VLOOKUP($A143,[5]anti_fibrinolytic!$A$11:$C$287,3,0)","v":16590.520013630401},30227.506257410088,{"$f":"VLOOKUP($A143,[5]sympathomimetics!$A$11:$C$223,3,0)","v":1264.9500265121501},30227.506257410088,{"$f":"VLOOKUP($A143,[5]CVD_All_prescriptions!$A$10:$C$392,3,0)","v":2297870.0335425902},{"$f":"VLOOKUP($A143,[5]CVD_All_prescriptions!$A$10:$C$392,2,0)","v":534200}]
["08J","NHS Kingston",{"$f":"VLOOKUP($A144,[4]CVD_All_prescriptions!$A$10:$D$223,4,0)","v":2409493.42},{"$f":"VLOOKUP($A144,Lookup!$BP$3:$BW$213,7,0)","v":24625.38032454361},{"$f":"VLOOKUP($A144,[4]Lipid_regulators!$A$14:$D$227,4,0)","v":684593.44000000297},24625.38032454361,{"$f":"VLOOKUP($A144,[4]HyperandHeartfailure!$A$13:$D$226,4,0)","v":709303.87},24625.38032454361,{"$f":"VLOOKUP($A144,[4]Nit_Calc_Antianginal!$A$13:$D$226,4,0)","v":427016.63},24625.38032454361,{"$f":"VLOOKUP($A144,[4]Anti_coagulants!$A$15:$D$227,4,0)","v":83840.89},24625.38032454361,{"$f":"VLOOKUP($A144,[4]Beta_Adrenorecepter!$A$13:$D$226,4,0)","v":155668.82},24625.38032454361,{"$f":"VLOOKUP($A144,[4]Anti_platelet!$A$13:$D$226,4,0)","v":148174.9},24625.38032454361,{"$f":"VLOOKUP($A144,[4]Diuretics!$A$11:$D$224,4,0)","v":143024.28000000099},24625.38032454361,{"$f":"VLOOKUP($A144,[4]Anti_arrhythmic_drugs!$A$13:$D$226,4,0)","v":24084.1},24625.38032454361,{"$f":"VLOOKUP($A144,[4]Positive_Intotropic!$A$13:$D$226,4,0)","v":13665.21},24625.38032454361,{"$f":"VLOOKUP($A144,[4]anti_fibrinolytic!$A$13:$D$226,4,0)","v":9086.19},24625.38032454361,{"$f":"VLOOKUP($A144,[4]sympathomimetics!$A$11:$D$223,4,0)","v":11035.09},24625.38032454361,{"$f":"VLOOKUP($A144,[4]CVD_All_prescriptions!$A$10:$D$223,4,0)","v":2409493.42},{"$f":"VLOOKUP($A144,[4]CVD_All_prescriptions!$A$10:$D$223,3,0)","v":697449},{"$f":"VLOOKUP($A144,[5]CVD_All_prescriptions!$A$10:$C$392,3,0)","v":2178902.3809179799},{"$f":"VLOOKUP($A144,Lookup!$BP$3:$BW$213,8,0)","v":24967.292089249495},{"$f":"VLOOKUP($A144,[5]Lipid_regulators!$A$12:$C$345,3,0)","v":518908.26004027599},24967.292089249495,{"$f":"VLOOKUP($A144,[5]HyperandHeartfailure!$A$12:$C$356,3,0)","v":513569.13011717802},24967.292089249495,{"$f":"VLOOKUP($A144,[5]Nit_Calc_Antianginal!$A$12:$C$345,3,0)","v":444845.66995535803},24967.292089249495,{"$f":"VLOOKUP($A144,[5]Anti_coagulants!$A$11:$C$325,3,0)","v":103259.11973406401},24967.292089249495,{"$f":"VLOOKUP($A144,[5]Beta_Adrenorecepter!$A$11:$C$352,3,0)","v":187368.89013806},24967.292089249495,{"$f":"VLOOKUP($A144,[5]Anti_platelet!$A$12:$C$335,3,0)","v":151989.800028481},24967.292089249495,{"$f":"VLOOKUP($A144,[5]Diuretics!$A$12:$C$353,3,0)","v":208166.46071803599},24967.292089249495,{"$f":"VLOOKUP($A144,[5]Anti_arrhythmic_drugs!$A$11:$C$271,3,0)","v":19292.130003452301},24967.292089249495,{"$f":"VLOOKUP($A144,[5]Positive_Intotropic!$A$12:$C$297,3,0)","v":11113.279997006101},24967.292089249495,{"$f":"VLOOKUP($A144,[5]anti_fibrinolytic!$A$11:$C$287,3,0)","v":8502.3400161266309},24967.292089249495,{"$f":"VLOOKUP($A144,[5]sympathomimetics!$A$11:$C$223,3,0)","v":11887.3001699448},24967.292089249495,{"$f":"VLOOKUP($A144,[5]CVD_All_prescriptions!$A$10:$C$392,3,0)","v":2178902.3809179799},{"$f":"VLOOKUP($A144,[5]CVD_All_prescriptions!$A$10:$C$392,2,0)","v":713577}]
["08K","NHS Lambeth",{"$f":"VLOOKUP($A145,[4]CVD_All_prescriptions!$A$10:$D$223,4,0)","v":3909208.46999999},{"$f":"VLOOKUP($A145,Lookup!$BP$3:$BW$213,7,0)","v":58582.05723124517},{"$f":"VLOOKUP($A145,[4]Lipid_regulators!$A$14:$D$227,4,0)","v":1103742.56},58582.05723124517,{"$f":"VLOOKUP($A145,[4]HyperandHeartfailure!$A$13:$D$226,4,0)","v":1036164.83},58582.05723124517,{"$f":"VLOOKUP($A145,[4]Nit_Calc_Antianginal!$A$13:$D$226,4,0)","v":638102.13},58582.05723124517,{"$f":"VLOOKUP($A145,[4]Anti_coagulants!$A$15:$D$227,4,0)","v":330071.49},58582.05723124517,{"$f":"VLOOKUP($A145,[4]Beta_Adrenorecepter!$A$13:$D$226,4,0)","v":226078.6},58582.05723124517,{"$f":"VLOOKUP($A145,[4]Anti_platelet!$A$13:$D$226,4,0)","v":219835.08999999901},58582.05723124517,{"$f":"VLOOKUP($A145,[4]Diuretics!$A$11:$D$224,4,0)","v":238202.59},58582.05723124517,{"$f":"VLOOKUP($A145,[4]Anti_arrhythmic_drugs!$A$13:$D$226,4,0)","v":33483.769999999997},58582.05723124517,{"$f":"VLOOKUP($A145,[4]Positive_Intotropic!$A$13:$D$226,4,0)","v":13192.64},58582.05723124517,{"$f":"VLOOKUP($A145,[4]anti_fibrinolytic!$A$13:$D$226,4,0)","v":28841.32},58582.05723124517,{"$f":"VLOOKUP($A145,[4]sympathomimetics!$A$11:$D$223,4,0)","v":41493.449999999997},58582.05723124517,{"$f":"VLOOKUP($A145,[4]CVD_All_prescriptions!$A$10:$D$223,4,0)","v":3909208.46999999},{"$f":"VLOOKUP($A145,[4]CVD_All_prescriptions!$A$10:$D$223,3,0)","v":1168895},{"$f":"VLOOKUP($A145,[5]CVD_All_prescriptions!$A$10:$C$392,3,0)","v":3719825.0828128499},{"$f":"VLOOKUP($A145,Lookup!$BP$3:$BW$213,8,0)","v":57302.861562258317},{"$f":"VLOOKUP($A145,[5]Lipid_regulators!$A$12:$C$345,3,0)","v":883891.40097542095},57302.861562258317,{"$f":"VLOOKUP($A145,[5]HyperandHeartfailure!$A$12:$C$356,3,0)","v":814052.60974131897},57302.861562258317,{"$f":"VLOOKUP($A145,[5]Nit_Calc_Antianginal!$A$12:$C$345,3,0)","v":686960.13890553999},57302.861562258317,{"$f":"VLOOKUP($A145,[5]Anti_coagulants!$A$11:$C$325,3,0)","v":364512.67041751702},57302.861562258317,{"$f":"VLOOKUP($A145,[5]Beta_Adrenorecepter!$A$11:$C$352,3,0)","v":267401.70033890399},57302.861562258317,{"$f":"VLOOKUP($A145,[5]Anti_platelet!$A$12:$C$335,3,0)","v":217901.05049157899},57302.861562258317,{"$f":"VLOOKUP($A145,[5]Diuretics!$A$12:$C$353,3,0)","v":384017.441747904},57302.861562258317,{"$f":"VLOOKUP($A145,[5]Anti_arrhythmic_drugs!$A$11:$C$271,3,0)","v":35735.279946059003},57302.861562258317,{"$f":"VLOOKUP($A145,[5]Positive_Intotropic!$A$12:$C$297,3,0)","v":11262.6200148836},57302.861562258317,{"$f":"VLOOKUP($A145,[5]anti_fibrinolytic!$A$11:$C$287,3,0)","v":23563.800013542201},57302.861562258317,{"$f":"VLOOKUP($A145,[5]sympathomimetics!$A$11:$C$223,3,0)","v":30526.370220184301},57302.861562258317,{"$f":"VLOOKUP($A145,[5]CVD_All_prescriptions!$A$10:$C$392,3,0)","v":3719825.0828128499},{"$f":"VLOOKUP($A145,[5]CVD_All_prescriptions!$A$10:$C$392,2,0)","v":1239048}]
["08L","NHS Lewisham",{"$f":"VLOOKUP($A146,[4]CVD_All_prescriptions!$A$10:$D$223,4,0)","v":4412083.8899999904},{"$f":"VLOOKUP($A146,Lookup!$BP$3:$BW$213,7,0)","v":43188.946759259263},{"$f":"VLOOKUP($A146,[4]Lipid_regulators!$A$14:$D$227,4,0)","v":1369817.09},43188.946759259263,{"$f":"VLOOKUP($A146,[4]HyperandHeartfailure!$A$13:$D$226,4,0)","v":1142013.69},43188.946759259263,{"$f":"VLOOKUP($A146,[4]Nit_Calc_Antianginal!$A$13:$D$226,4,0)","v":707374.46},43188.946759259263,{"$f":"VLOOKUP($A146,[4]Anti_coagulants!$A$15:$D$227,4,0)","v":400284.67},43188.946759259263,{"$f":"VLOOKUP($A146,[4]Beta_Adrenorecepter!$A$13:$D$226,4,0)","v":233143.25999999899},43188.946759259263,{"$f":"VLOOKUP($A146,[4]Anti_platelet!$A$13:$D$226,4,0)","v":237653.729999998},43188.946759259263,{"$f":"VLOOKUP($A146,[4]Diuretics!$A$11:$D$224,4,0)","v":244946.40000000101},43188.946759259263,{"$f":"VLOOKUP($A146,[4]Anti_arrhythmic_drugs!$A$13:$D$226,4,0)","v":22259.83},43188.946759259263,{"$f":"VLOOKUP($A146,[4]Positive_Intotropic!$A$13:$D$226,4,0)","v":12077.95},43188.946759259263,{"$f":"VLOOKUP($A146,[4]anti_fibrinolytic!$A$13:$D$226,4,0)","v":26408.05},43188.946759259263,{"$f":"VLOOKUP($A146,[4]sympathomimetics!$A$11:$D$223,4,0)","v":16104.76},43188.946759259263,{"$f":"VLOOKUP($A146,[4]CVD_All_prescriptions!$A$10:$D$223,4,0)","v":4412083.8899999904},{"$f":"VLOOKUP($A146,[4]CVD_All_prescriptions!$A$10:$D$223,3,0)","v":919946},{"$f":"VLOOKUP($A146,[5]CVD_All_prescriptions!$A$10:$C$392,3,0)","v":4041360.2423260999},{"$f":"VLOOKUP($A146,Lookup!$BP$3:$BW$213,8,0)","v":43886.71875},{"$f":"VLOOKUP($A146,[5]Lipid_regulators!$A$12:$C$345,3,0)","v":1076787.47149125},43886.71875,{"$f":"VLOOKUP($A146,[5]HyperandHeartfailure!$A$12:$C$356,3,0)","v":878721.68003458495},43886.71875,{"$f":"VLOOKUP($A146,[5]Nit_Calc_Antianginal!$A$12:$C$345,3,0)","v":738193.908793226},43886.71875,{"$f":"VLOOKUP($A146,[5]Anti_coagulants!$A$11:$C$325,3,0)","v":458786.04006955598},43886.71875,{"$f":"VLOOKUP($A146,[5]Beta_Adrenorecepter!$A$11:$C$352,3,0)","v":268702.62998260203},43886.71875,{"$f":"VLOOKUP($A146,[5]Anti_platelet!$A$12:$C$335,3,0)","v":221766.710095093},43886.71875,{"$f":"VLOOKUP($A146,[5]Diuretics!$A$12:$C$353,3,0)","v":326191.52189493598},43886.71875,{"$f":"VLOOKUP($A146,[5]Anti_arrhythmic_drugs!$A$11:$C$271,3,0)","v":22074.100054278999},43886.71875,{"$f":"VLOOKUP($A146,[5]Positive_Intotropic!$A$12:$C$297,3,0)","v":9812.1100038587992},43886.71875,{"$f":"VLOOKUP($A146,[5]anti_fibrinolytic!$A$11:$C$287,3,0)","v":23580.9300050735},43886.71875,{"$f":"VLOOKUP($A146,[5]sympathomimetics!$A$11:$C$223,3,0)","v":16667.539901733398},43886.71875,{"$f":"VLOOKUP($A146,[5]CVD_All_prescriptions!$A$10:$C$392,3,0)","v":4041360.2423260999},{"$f":"VLOOKUP($A146,[5]CVD_All_prescriptions!$A$10:$C$392,2,0)","v":879971}]
["08M","NHS Newham",{"$f":"VLOOKUP($A147,[4]CVD_All_prescriptions!$A$10:$D$223,4,0)","v":4085575.22},{"$f":"VLOOKUP($A147,Lookup!$BP$3:$BW$213,7,0)","v":57639.012421407759},{"$f":"VLOOKUP($A147,[4]Lipid_regulators!$A$14:$D$227,4,0)","v":1288297.4000000099},57639.012421407759,{"$f":"VLOOKUP($A147,[4]HyperandHeartfailure!$A$13:$D$226,4,0)","v":1090669.67},57639.012421407759,{"$f":"VLOOKUP($A147,[4]Nit_Calc_Antianginal!$A$13:$D$226,4,0)","v":764653.00999999896},57639.012421407759,{"$f":"VLOOKUP($A147,[4]Anti_coagulants!$A$15:$D$227,4,0)","v":186435.87},57639.012421407759,{"$f":"VLOOKUP($A147,[4]Beta_Adrenorecepter!$A$13:$D$226,4,0)","v":218068.679999999},57639.012421407759,{"$f":"VLOOKUP($A147,[4]Anti_platelet!$A$13:$D$226,4,0)","v":235300.12999999899},57639.012421407759,{"$f":"VLOOKUP($A147,[4]Diuretics!$A$11:$D$224,4,0)","v":242754.02},57639.012421407759,{"$f":"VLOOKUP($A147,[4]Anti_arrhythmic_drugs!$A$13:$D$226,4,0)","v":13328.2500000001},57639.012421407759,{"$f":"VLOOKUP($A147,[4]Positive_Intotropic!$A$13:$D$226,4,0)","v":10053.48},57639.012421407759,{"$f":"VLOOKUP($A147,[4]anti_fibrinolytic!$A$13:$D$226,4,0)","v":31929.5},57639.012421407759,{"$f":"VLOOKUP($A147,[4]sympathomimetics!$A$11:$D$223,4,0)","v":4085.21},57639.012421407759,{"$f":"VLOOKUP($A147,[4]CVD_All_prescriptions!$A$10:$D$223,4,0)","v":4085575.22},{"$f":"VLOOKUP($A147,[4]CVD_All_prescriptions!$A$10:$D$223,3,0)","v":1612803},{"$f":"VLOOKUP($A147,[5]CVD_All_prescriptions!$A$10:$C$392,3,0)","v":3682404.3813280701},{"$f":"VLOOKUP($A147,Lookup!$BP$3:$BW$213,8,0)","v":55743.137555589637},{"$f":"VLOOKUP($A147,[5]Lipid_regulators!$A$12:$C$345,3,0)","v":919128.70085827995},55743.137555589637,{"$f":"VLOOKUP($A147,[5]HyperandHeartfailure!$A$12:$C$356,3,0)","v":818183.75990876195},55743.137555589637,{"$f":"VLOOKUP($A147,[5]Nit_Calc_Antianginal!$A$12:$C$345,3,0)","v":806255.12914200104},55743.137555589637,{"$f":"VLOOKUP($A147,[5]Anti_coagulants!$A$11:$C$325,3,0)","v":215859.92018453201},55743.137555589637,{"$f":"VLOOKUP($A147,[5]Beta_Adrenorecepter!$A$11:$C$352,3,0)","v":259533.07029440999},55743.137555589637,{"$f":"VLOOKUP($A147,[5]Anti_platelet!$A$12:$C$335,3,0)","v":241731.66012648901},55743.137555589637,{"$f":"VLOOKUP($A147,[5]Diuretics!$A$12:$C$353,3,0)","v":365946.05085405702},55743.137555589637,{"$f":"VLOOKUP($A147,[5]Anti_arrhythmic_drugs!$A$11:$C$271,3,0)","v":16133.849937647599},55743.137555589637,{"$f":"VLOOKUP($A147,[5]Positive_Intotropic!$A$12:$C$297,3,0)","v":8158.0500059202304},55743.137555589637,{"$f":"VLOOKUP($A147,[5]anti_fibrinolytic!$A$11:$C$287,3,0)","v":28626.179997623},55743.137555589637,{"$f":"VLOOKUP($A147,[5]sympathomimetics!$A$11:$C$223,3,0)","v":2848.0100183486902},55743.137555589637,{"$f":"VLOOKUP($A147,[5]CVD_All_prescriptions!$A$10:$C$392,3,0)","v":3682404.3813280701},{"$f":"VLOOKUP($A147,[5]CVD_All_prescriptions!$A$10:$C$392,2,0)","v":1718572}]
["08N","NHS Redbridge",{"$f":"VLOOKUP($A148,[4]CVD_All_prescriptions!$A$10:$D$223,4,0)","v":4401763.5199999996},{"$f":"VLOOKUP($A148,Lookup!$BP$3:$BW$213,7,0)","v":39507.289821501567},{"$f":"VLOOKUP($A148,[4]Lipid_regulators!$A$14:$D$227,4,0)","v":1490295.0800000101},39507.289821501567,{"$f":"VLOOKUP($A148,[4]HyperandHeartfailure!$A$13:$D$226,4,0)","v":1160175.26},39507.289821501567,{"$f":"VLOOKUP($A148,[4]Nit_Calc_Antianginal!$A$13:$D$226,4,0)","v":751846.799999999},39507.289821501567,{"$f":"VLOOKUP($A148,[4]Anti_coagulants!$A$15:$D$227,4,0)","v":218679.56999999899},39507.289821501567,{"$f":"VLOOKUP($A148,[4]Beta_Adrenorecepter!$A$13:$D$226,4,0)","v":259694.33},39507.289821501567,{"$f":"VLOOKUP($A148,[4]Anti_platelet!$A$13:$D$226,4,0)","v":249022.79999999801},39507.289821501567,{"$f":"VLOOKUP($A148,[4]Diuretics!$A$11:$D$224,4,0)","v":196034.91},39507.289821501567,{"$f":"VLOOKUP($A148,[4]Anti_arrhythmic_drugs!$A$13:$D$226,4,0)","v":26084.65},39507.289821501567,{"$f":"VLOOKUP($A148,[4]Positive_Intotropic!$A$13:$D$226,4,0)","v":17333.55},39507.289821501567,{"$f":"VLOOKUP($A148,[4]anti_fibrinolytic!$A$13:$D$226,4,0)","v":21096.87},39507.289821501567,{"$f":"VLOOKUP($A148,[4]sympathomimetics!$A$11:$D$223,4,0)","v":11499.7},39507.289821501567,{"$f":"VLOOKUP($A148,[4]CVD_All_prescriptions!$A$10:$D$223,4,0)","v":4401763.5199999996},{"$f":"VLOOKUP($A148,[4]CVD_All_prescriptions!$A$10:$D$223,3,0)","v":1003259},{"$f":"VLOOKUP($A148,[5]CVD_All_prescriptions!$A$10:$C$392,3,0)","v":4021263.0443939101},{"$f":"VLOOKUP($A148,Lookup!$BP$3:$BW$213,8,0)","v":39372.257800790299},{"$f":"VLOOKUP($A148,[5]Lipid_regulators!$A$12:$C$345,3,0)","v":1107786.8816617101},39372.257800790299,{"$f":"VLOOKUP($A148,[5]HyperandHeartfailure!$A$12:$C$356,3,0)","v":912324.53045759001},39372.257800790299,{"$f":"VLOOKUP($A148,[5]Nit_Calc_Antianginal!$A$12:$C$345,3,0)","v":829867.66010048997},39372.257800790299,{"$f":"VLOOKUP($A148,[5]Anti_coagulants!$A$11:$C$325,3,0)","v":275557.31091417401},39372.257800790299,{"$f":"VLOOKUP($A148,[5]Beta_Adrenorecepter!$A$11:$C$352,3,0)","v":292965.810123801},39372.257800790299,{"$f":"VLOOKUP($A148,[5]Anti_platelet!$A$12:$C$335,3,0)","v":251780.75044420001},39372.257800790299,{"$f":"VLOOKUP($A148,[5]Diuretics!$A$12:$C$353,3,0)","v":283612.90078769601},39372.257800790299,{"$f":"VLOOKUP($A148,[5]Anti_arrhythmic_drugs!$A$11:$C$271,3,0)","v":22258.569940566998},39372.257800790299,{"$f":"VLOOKUP($A148,[5]Positive_Intotropic!$A$12:$C$297,3,0)","v":14679.719983622401},39372.257800790299,{"$f":"VLOOKUP($A148,[5]anti_fibrinolytic!$A$11:$C$287,3,0)","v":19643.650023698799},39372.257800790299,{"$f":"VLOOKUP($A148,[5]sympathomimetics!$A$11:$C$223,3,0)","v":10785.2599563599},39372.257800790299,{"$f":"VLOOKUP($A148,[5]CVD_All_prescriptions!$A$10:$C$392,3,0)","v":4021263.0443939101},{"$f":"VLOOKUP($A148,[5]CVD_All_prescriptions!$A$10:$C$392,2,0)","v":1054971}]
["08P","NHS Richmond",{"$f":"VLOOKUP($A149,[4]CVD_All_prescriptions!$A$10:$D$223,4,0)","v":2408630.48},{"$f":"VLOOKUP($A149,Lookup!$BP$3:$BW$213,7,0)","v":24123.733460483971},{"$f":"VLOOKUP($A149,[4]Lipid_regulators!$A$14:$D$227,4,0)","v":782277.69999999704},24123.733460483971,{"$f":"VLOOKUP($A149,[4]HyperandHeartfailure!$A$13:$D$226,4,0)","v":601171.19999999902},24123.733460483971,{"$f":"VLOOKUP($A149,[4]Nit_Calc_Antianginal!$A$13:$D$226,4,0)","v":413090.68},24123.733460483971,{"$f":"VLOOKUP($A149,[4]Anti_coagulants!$A$15:$D$227,4,0)","v":84473.17},24123.733460483971,{"$f":"VLOOKUP($A149,[4]Beta_Adrenorecepter!$A$13:$D$226,4,0)","v":171321.4},24123.733460483971,{"$f":"VLOOKUP($A149,[4]Anti_platelet!$A$13:$D$226,4,0)","v":153975.25},24123.733460483971,{"$f":"VLOOKUP($A149,[4]Diuretics!$A$11:$D$224,4,0)","v":141402.76999999999},24123.733460483971,{"$f":"VLOOKUP($A149,[4]Anti_arrhythmic_drugs!$A$13:$D$226,4,0)","v":30017.09},24123.733460483971,{"$f":"VLOOKUP($A149,[4]Positive_Intotropic!$A$13:$D$226,4,0)","v":14190.67},24123.733460483971,{"$f":"VLOOKUP($A149,[4]anti_fibrinolytic!$A$13:$D$226,4,0)","v":14407.52},24123.733460483971,{"$f":"VLOOKUP($A149,[4]sympathomimetics!$A$11:$D$223,4,0)","v":2303.0300000000002},24123.733460483971,{"$f":"VLOOKUP($A149,[4]CVD_All_prescriptions!$A$10:$D$223,4,0)","v":2408630.48},{"$f":"VLOOKUP($A149,[4]CVD_All_prescriptions!$A$10:$D$223,3,0)","v":849157},{"$f":"VLOOKUP($A149,[5]CVD_All_prescriptions!$A$10:$C$392,3,0)","v":2206425.0918465699},{"$f":"VLOOKUP($A149,Lookup!$BP$3:$BW$213,8,0)","v":24615.925616879249},{"$f":"VLOOKUP($A149,[5]Lipid_regulators!$A$12:$C$345,3,0)","v":628810.39078046405},24615.925616879249,{"$f":"VLOOKUP($A149,[5]HyperandHeartfailure!$A$12:$C$356,3,0)","v":455662.41990442597},24615.925616879249,{"$f":"VLOOKUP($A149,[5]Nit_Calc_Antianginal!$A$12:$C$345,3,0)","v":407671.48991648102},24615.925616879249,{"$f":"VLOOKUP($A149,[5]Anti_coagulants!$A$11:$C$325,3,0)","v":114233.769924946},24615.925616879249,{"$f":"VLOOKUP($A149,[5]Beta_Adrenorecepter!$A$11:$C$352,3,0)","v":204837.19028590599},24615.925616879249,{"$f":"VLOOKUP($A149,[5]Anti_platelet!$A$12:$C$335,3,0)","v":160831.700501218},24615.925616879249,{"$f":"VLOOKUP($A149,[5]Diuretics!$A$12:$C$353,3,0)","v":189251.12049433601},24615.925616879249,{"$f":"VLOOKUP($A149,[5]Anti_arrhythmic_drugs!$A$11:$C$271,3,0)","v":21904.530046105399},24615.925616879249,{"$f":"VLOOKUP($A149,[5]Positive_Intotropic!$A$12:$C$297,3,0)","v":11486.789989769501},24615.925616879249,{"$f":"VLOOKUP($A149,[5]anti_fibrinolytic!$A$11:$C$287,3,0)","v":9295.8500084876996},24615.925616879249,{"$f":"VLOOKUP($A149,[5]sympathomimetics!$A$11:$C$223,3,0)","v":2432.8399944305402},24615.925616879249,{"$f":"VLOOKUP($A149,[5]CVD_All_prescriptions!$A$10:$C$392,3,0)","v":2206425.0918465699},{"$f":"VLOOKUP($A149,[5]CVD_All_prescriptions!$A$10:$C$392,2,0)","v":863495}]
["08Q","NHS Southwark",{"$f":"VLOOKUP($A150,[4]CVD_All_prescriptions!$A$10:$D$223,4,0)","v":3866621.8599999901},{"$f":"VLOOKUP($A150,Lookup!$BP$3:$BW$213,7,0)","v":49848.51272615762},{"$f":"VLOOKUP($A150,[4]Lipid_regulators!$A$14:$D$227,4,0)","v":1223463.32},49848.51272615762,{"$f":"VLOOKUP($A150,[4]HyperandHeartfailure!$A$13:$D$226,4,0)","v":969386.83},49848.51272615762,{"$f":"VLOOKUP($A150,[4]Nit_Calc_Antianginal!$A$13:$D$226,4,0)","v":593037.65},49848.51272615762,{"$f":"VLOOKUP($A150,[4]Anti_coagulants!$A$15:$D$227,4,0)","v":325509.21999999898},49848.51272615762,{"$f":"VLOOKUP($A150,[4]Beta_Adrenorecepter!$A$13:$D$226,4,0)","v":189779.66},49848.51272615762,{"$f":"VLOOKUP($A150,[4]Anti_platelet!$A$13:$D$226,4,0)","v":218353.93},49848.51272615762,{"$f":"VLOOKUP($A150,[4]Diuretics!$A$11:$D$224,4,0)","v":240494.040000001},49848.51272615762,{"$f":"VLOOKUP($A150,[4]Anti_arrhythmic_drugs!$A$13:$D$226,4,0)","v":17673.580000000002},49848.51272615762,{"$f":"VLOOKUP($A150,[4]Positive_Intotropic!$A$13:$D$226,4,0)","v":11705.47},49848.51272615762,{"$f":"VLOOKUP($A150,[4]anti_fibrinolytic!$A$13:$D$226,4,0)","v":27247.52},49848.51272615762,{"$f":"VLOOKUP($A150,[4]sympathomimetics!$A$11:$D$223,4,0)","v":49970.64},49848.51272615762,{"$f":"VLOOKUP($A150,[4]CVD_All_prescriptions!$A$10:$D$223,4,0)","v":3866621.8599999901},{"$f":"VLOOKUP($A150,[4]CVD_All_prescriptions!$A$10:$D$223,3,0)","v":998188},{"$f":"VLOOKUP($A150,[5]CVD_All_prescriptions!$A$10:$C$392,3,0)","v":3538494.0024511698},{"$f":"VLOOKUP($A150,Lookup!$BP$3:$BW$213,8,0)","v":46646.274149034034},{"$f":"VLOOKUP($A150,[5]Lipid_regulators!$A$12:$C$345,3,0)","v":918311.47083082097},46646.274149034034,{"$f":"VLOOKUP($A150,[5]HyperandHeartfailure!$A$12:$C$356,3,0)","v":763188.51961353398},46646.274149034034,{"$f":"VLOOKUP($A150,[5]Nit_Calc_Antianginal!$A$12:$C$345,3,0)","v":615561.23954817699},46646.274149034034,{"$f":"VLOOKUP($A150,[5]Anti_coagulants!$A$11:$C$325,3,0)","v":366587.63038639002},46646.274149034034,{"$f":"VLOOKUP($A150,[5]Beta_Adrenorecepter!$A$11:$C$352,3,0)","v":224631.050260827},46646.274149034034,{"$f":"VLOOKUP($A150,[5]Anti_platelet!$A$12:$C$335,3,0)","v":215303.11019650099},46646.274149034034,{"$f":"VLOOKUP($A150,[5]Diuretics!$A$12:$C$353,3,0)","v":337775.30165749002},46646.274149034034,{"$f":"VLOOKUP($A150,[5]Anti_arrhythmic_drugs!$A$11:$C$271,3,0)","v":15319.9599374831},46646.274149034034,{"$f":"VLOOKUP($A150,[5]Positive_Intotropic!$A$12:$C$297,3,0)","v":10434.4899935871},46646.274149034034,{"$f":"VLOOKUP($A150,[5]anti_fibrinolytic!$A$11:$C$287,3,0)","v":21320.2600625753},46646.274149034034,{"$f":"VLOOKUP($A150,[5]sympathomimetics!$A$11:$C$223,3,0)","v":50060.969963789001},46646.274149034034,{"$f":"VLOOKUP($A150,[5]CVD_All_prescriptions!$A$10:$C$392,3,0)","v":3538494.0024511698},{"$f":"VLOOKUP($A150,[5]CVD_All_prescriptions!$A$10:$C$392,2,0)","v":1045436}]
["08R","NHS Merton",{"$f":"VLOOKUP($A151,[4]CVD_All_prescriptions!$A$10:$D$223,4,0)","v":3011529.62},{"$f":"VLOOKUP($A151,Lookup!$BP$3:$BW$213,7,0)","v":29568.693999456966},{"$f":"VLOOKUP($A151,[4]Lipid_regulators!$A$14:$D$227,4,0)","v":1024804.57},29568.693999456966,{"$f":"VLOOKUP($A151,[4]HyperandHeartfailure!$A$13:$D$226,4,0)","v":838953.73},29568.693999456966,{"$f":"VLOOKUP($A151,[4]Nit_Calc_Antianginal!$A$13:$D$226,4,0)","v":511040.83},29568.693999456966,{"$f":"VLOOKUP($A151,[4]Anti_coagulants!$A$15:$D$227,4,0)","v":79939.879999999903},29568.693999456966,{"$f":"VLOOKUP($A151,[4]Beta_Adrenorecepter!$A$13:$D$226,4,0)","v":168081.81},29568.693999456966,{"$f":"VLOOKUP($A151,[4]Anti_platelet!$A$13:$D$226,4,0)","v":174861.11999999901},29568.693999456966,{"$f":"VLOOKUP($A151,[4]Diuretics!$A$11:$D$224,4,0)","v":152473.22},29568.693999456966,{"$f":"VLOOKUP($A151,[4]Anti_arrhythmic_drugs!$A$13:$D$226,4,0)","v":31714.48},29568.693999456966,{"$f":"VLOOKUP($A151,[4]Positive_Intotropic!$A$13:$D$226,4,0)","v":13542.29},29568.693999456966,{"$f":"VLOOKUP($A151,[4]anti_fibrinolytic!$A$13:$D$226,4,0)","v":12555.1},29568.693999456966,{"$f":"VLOOKUP($A151,[4]sympathomimetics!$A$11:$D$223,4,0)","v":3562.59},29568.693999456966,{"$f":"VLOOKUP($A151,[4]CVD_All_prescriptions!$A$10:$D$223,4,0)","v":3011529.62},{"$f":"VLOOKUP($A151,[4]CVD_All_prescriptions!$A$10:$D$223,3,0)","v":814401},{"$f":"VLOOKUP($A151,[5]CVD_All_prescriptions!$A$10:$C$392,3,0)","v":2747381.5313740098},{"$f":"VLOOKUP($A151,Lookup!$BP$3:$BW$213,8,0)","v":29505.566114580506},{"$f":"VLOOKUP($A151,[5]Lipid_regulators!$A$12:$C$345,3,0)","v":848501.66024756397},29505.566114580506,{"$f":"VLOOKUP($A151,[5]HyperandHeartfailure!$A$12:$C$356,3,0)","v":562277.81034535205},29505.566114580506,{"$f":"VLOOKUP($A151,[5]Nit_Calc_Antianginal!$A$12:$C$345,3,0)","v":550117.759546794},29505.566114580506,{"$f":"VLOOKUP($A151,[5]Anti_coagulants!$A$11:$C$325,3,0)","v":120187.08989796},29505.566114580506,{"$f":"VLOOKUP($A151,[5]Beta_Adrenorecepter!$A$11:$C$352,3,0)","v":197310.09024898001},29505.566114580506,{"$f":"VLOOKUP($A151,[5]Anti_platelet!$A$12:$C$335,3,0)","v":187835.240302563},29505.566114580506,{"$f":"VLOOKUP($A151,[5]Diuretics!$A$12:$C$353,3,0)","v":229748.74080460501},29505.566114580506,{"$f":"VLOOKUP($A151,[5]Anti_arrhythmic_drugs!$A$11:$C$271,3,0)","v":26363.339910626401},29505.566114580506,{"$f":"VLOOKUP($A151,[5]Positive_Intotropic!$A$12:$C$297,3,0)","v":10600.8400006294},29505.566114580506,{"$f":"VLOOKUP($A151,[5]anti_fibrinolytic!$A$11:$C$287,3,0)","v":10744.070016145701},29505.566114580506,{"$f":"VLOOKUP($A151,[5]sympathomimetics!$A$11:$C$223,3,0)","v":3694.8900527954102},29505.566114580506,{"$f":"VLOOKUP($A151,[5]CVD_All_prescriptions!$A$10:$C$392,3,0)","v":2747381.5313740098},{"$f":"VLOOKUP($A151,[5]CVD_All_prescriptions!$A$10:$C$392,2,0)","v":834389}]
["08T","NHS Sutton",{"$f":"VLOOKUP($A152,[4]CVD_All_prescriptions!$A$10:$D$223,4,0)","v":3015333.25999999},{"$f":"VLOOKUP($A152,Lookup!$BP$3:$BW$213,7,0)","v":21751.251892395481},{"$f":"VLOOKUP($A152,[4]Lipid_regulators!$A$14:$D$227,4,0)","v":990829.50000000396},21751.251892395481,{"$f":"VLOOKUP($A152,[4]HyperandHeartfailure!$A$13:$D$226,4,0)","v":858651.12999999896},21751.251892395481,{"$f":"VLOOKUP($A152,[4]Nit_Calc_Antianginal!$A$13:$D$226,4,0)","v":496238.16},21751.251892395481,{"$f":"VLOOKUP($A152,[4]Anti_coagulants!$A$15:$D$227,4,0)","v":76552.22},21751.251892395481,{"$f":"VLOOKUP($A152,[4]Beta_Adrenorecepter!$A$13:$D$226,4,0)","v":179135.46},21751.251892395481,{"$f":"VLOOKUP($A152,[4]Anti_platelet!$A$13:$D$226,4,0)","v":173726.519999999},21751.251892395481,{"$f":"VLOOKUP($A152,[4]Diuretics!$A$11:$D$224,4,0)","v":178041.4},21751.251892395481,{"$f":"VLOOKUP($A152,[4]Anti_arrhythmic_drugs!$A$13:$D$226,4,0)","v":30673.779999999901},21751.251892395481,{"$f":"VLOOKUP($A152,[4]Positive_Intotropic!$A$13:$D$226,4,0)","v":15812.71},21751.251892395481,{"$f":"VLOOKUP($A152,[4]anti_fibrinolytic!$A$13:$D$226,4,0)","v":13356.15},21751.251892395481,{"$f":"VLOOKUP($A152,[4]sympathomimetics!$A$11:$D$223,4,0)","v":2316.23},21751.251892395481,{"$f":"VLOOKUP($A152,[4]CVD_All_prescriptions!$A$10:$D$223,4,0)","v":3015333.25999999},{"$f":"VLOOKUP($A152,[4]CVD_All_prescriptions!$A$10:$D$223,3,0)","v":888000},{"$f":"VLOOKUP($A152,[5]CVD_All_prescriptions!$A$10:$C$392,3,0)","v":2803172.5627041799},{"$f":"VLOOKUP($A152,Lookup!$BP$3:$BW$213,8,0)","v":21831.605915919412},{"$f":"VLOOKUP($A152,[5]Lipid_regulators!$A$12:$C$345,3,0)","v":821269.28121826099},21831.605915919412,{"$f":"VLOOKUP($A152,[5]HyperandHeartfailure!$A$12:$C$356,3,0)","v":597973.11020366102},21831.605915919412,{"$f":"VLOOKUP($A152,[5]Nit_Calc_Antianginal!$A$12:$C$345,3,0)","v":549976.20032842504},21831.605915919412,{"$f":"VLOOKUP($A152,[5]Anti_coagulants!$A$11:$C$325,3,0)","v":114472.35011147},21831.605915919412,{"$f":"VLOOKUP($A152,[5]Beta_Adrenorecepter!$A$11:$C$352,3,0)","v":207132.28046846401},21831.605915919412,{"$f":"VLOOKUP($A152,[5]Anti_platelet!$A$12:$C$335,3,0)","v":190624.92001502999},21831.605915919412,{"$f":"VLOOKUP($A152,[5]Diuretics!$A$12:$C$353,3,0)","v":263818.06032292498},21831.605915919412,{"$f":"VLOOKUP($A152,[5]Anti_arrhythmic_drugs!$A$11:$C$271,3,0)","v":26655.119997918599},21831.605915919412,{"$f":"VLOOKUP($A152,[5]Positive_Intotropic!$A$12:$C$297,3,0)","v":13245.2400131747},21831.605915919412,{"$f":"VLOOKUP($A152,[5]anti_fibrinolytic!$A$11:$C$287,3,0)","v":11768.080009520099},21831.605915919412,{"$f":"VLOOKUP($A152,[5]sympathomimetics!$A$11:$C$223,3,0)","v":6230.7200155258197},21831.605915919412,{"$f":"VLOOKUP($A152,[5]CVD_All_prescriptions!$A$10:$C$392,3,0)","v":2803172.5627041799},{"$f":"VLOOKUP($A152,[5]CVD_All_prescriptions!$A$10:$C$392,2,0)","v":926773}]
["08V","NHS Tower Hamlets",{"$f":"VLOOKUP($A153,[4]CVD_All_prescriptions!$A$10:$D$223,4,0)","v":2915078.67},{"$f":"VLOOKUP($A153,Lookup!$BP$3:$BW$213,7,0)","v":44591.313857209811},{"$f":"VLOOKUP($A153,[4]Lipid_regulators!$A$14:$D$227,4,0)","v":913438.38000000105},44591.313857209811,{"$f":"VLOOKUP($A153,[4]HyperandHeartfailure!$A$13:$D$226,4,0)","v":641719.53},44591.313857209811,{"$f":"VLOOKUP($A153,[4]Nit_Calc_Antianginal!$A$13:$D$226,4,0)","v":562719.66},44591.313857209811,{"$f":"VLOOKUP($A153,[4]Anti_coagulants!$A$15:$D$227,4,0)","v":267193.42},44591.313857209811,{"$f":"VLOOKUP($A153,[4]Beta_Adrenorecepter!$A$13:$D$226,4,0)","v":154475.03},44591.313857209811,{"$f":"VLOOKUP($A153,[4]Anti_platelet!$A$13:$D$226,4,0)","v":164550.66},44591.313857209811,{"$f":"VLOOKUP($A153,[4]Diuretics!$A$11:$D$224,4,0)","v":158810.01999999999},44591.313857209811,{"$f":"VLOOKUP($A153,[4]Anti_arrhythmic_drugs!$A$13:$D$226,4,0)","v":11829.46},44591.313857209811,{"$f":"VLOOKUP($A153,[4]Positive_Intotropic!$A$13:$D$226,4,0)","v":7290.3400000000101},44591.313857209811,{"$f":"VLOOKUP($A153,[4]anti_fibrinolytic!$A$13:$D$226,4,0)","v":22103.09},44591.313857209811,{"$f":"VLOOKUP($A153,[4]sympathomimetics!$A$11:$D$223,4,0)","v":10949.08},44591.313857209811,{"$f":"VLOOKUP($A153,[4]CVD_All_prescriptions!$A$10:$D$223,4,0)","v":2915078.67},{"$f":"VLOOKUP($A153,[4]CVD_All_prescriptions!$A$10:$D$223,3,0)","v":1134642},{"$f":"VLOOKUP($A153,[5]CVD_All_prescriptions!$A$10:$C$392,3,0)","v":2684103.7212903299},{"$f":"VLOOKUP($A153,Lookup!$BP$3:$BW$213,8,0)","v":44199.343852523045},{"$f":"VLOOKUP($A153,[5]Lipid_regulators!$A$12:$C$345,3,0)","v":692728.73010972096},44199.343852523045,{"$f":"VLOOKUP($A153,[5]HyperandHeartfailure!$A$12:$C$356,3,0)","v":501651.32001094503},44199.343852523045,{"$f":"VLOOKUP($A153,[5]Nit_Calc_Antianginal!$A$12:$C$345,3,0)","v":582706.24997597199},44199.343852523045,{"$f":"VLOOKUP($A153,[5]Anti_coagulants!$A$11:$C$325,3,0)","v":275657.78015953302},44199.343852523045,{"$f":"VLOOKUP($A153,[5]Beta_Adrenorecepter!$A$11:$C$352,3,0)","v":187150.76002931601},44199.343852523045,{"$f":"VLOOKUP($A153,[5]Anti_platelet!$A$12:$C$335,3,0)","v":171381.46011159601},44199.343852523045,{"$f":"VLOOKUP($A153,[5]Diuretics!$A$12:$C$353,3,0)","v":231915.15090703199},44199.343852523045,{"$f":"VLOOKUP($A153,[5]Anti_arrhythmic_drugs!$A$11:$C$271,3,0)","v":9895.5000407397692},44199.343852523045,{"$f":"VLOOKUP($A153,[5]Positive_Intotropic!$A$12:$C$297,3,0)","v":5974.6399979293301},44199.343852523045,{"$f":"VLOOKUP($A153,[5]anti_fibrinolytic!$A$11:$C$287,3,0)","v":20681.479989886298},44199.343852523045,{"$f":"VLOOKUP($A153,[5]sympathomimetics!$A$11:$C$223,3,0)","v":4360.6499576568604},44199.343852523045,{"$f":"VLOOKUP($A153,[5]CVD_All_prescriptions!$A$10:$C$392,3,0)","v":2684103.7212903299},{"$f":"VLOOKUP($A153,[5]CVD_All_prescriptions!$A$10:$C$392,2,0)","v":1232049}]
["08W","NHS Waltham Forest",{"$f":"VLOOKUP($A154,[4]CVD_All_prescriptions!$A$10:$D$223,4,0)","v":4114453.49},{"$f":"VLOOKUP($A154,Lookup!$BP$3:$BW$213,7,0)","v":38869.633714060656},{"$f":"VLOOKUP($A154,[4]Lipid_regulators!$A$14:$D$227,4,0)","v":1243284.24000001},38869.633714060656,{"$f":"VLOOKUP($A154,[4]HyperandHeartfailure!$A$13:$D$226,4,0)","v":1092298.45},38869.633714060656,{"$f":"VLOOKUP($A154,[4]Nit_Calc_Antianginal!$A$13:$D$226,4,0)","v":767134.18999999901},38869.633714060656,{"$f":"VLOOKUP($A154,[4]Anti_coagulants!$A$15:$D$227,4,0)","v":275119.59999999899},38869.633714060656,{"$f":"VLOOKUP($A154,[4]Beta_Adrenorecepter!$A$13:$D$226,4,0)","v":243835.36},38869.633714060656,{"$f":"VLOOKUP($A154,[4]Anti_platelet!$A$13:$D$226,4,0)","v":219947.51999999801},38869.633714060656,{"$f":"VLOOKUP($A154,[4]Diuretics!$A$11:$D$224,4,0)","v":211926.72},38869.633714060656,{"$f":"VLOOKUP($A154,[4]Anti_arrhythmic_drugs!$A$13:$D$226,4,0)","v":18066.450000000099},38869.633714060656,{"$f":"VLOOKUP($A154,[4]Positive_Intotropic!$A$13:$D$226,4,0)","v":16722.8},38869.633714060656,{"$f":"VLOOKUP($A154,[4]anti_fibrinolytic!$A$13:$D$226,4,0)","v":19918.86},38869.633714060656,{"$f":"VLOOKUP($A154,[4]sympathomimetics!$A$11:$D$223,4,0)","v":6199.3},38869.633714060656,{"$f":"VLOOKUP($A154,[4]CVD_All_prescriptions!$A$10:$D$223,4,0)","v":4114453.49},{"$f":"VLOOKUP($A154,[4]CVD_All_prescriptions!$A$10:$D$223,3,0)","v":931298},{"$f":"VLOOKUP($A154,[5]CVD_All_prescriptions!$A$10:$C$392,3,0)","v":3797559.7623512801},{"$f":"VLOOKUP($A154,Lookup!$BP$3:$BW$213,8,0)","v":38846.527504266771},{"$f":"VLOOKUP($A154,[5]Lipid_regulators!$A$12:$C$345,3,0)","v":919005.69136758102},38846.527504266771,{"$f":"VLOOKUP($A154,[5]HyperandHeartfailure!$A$12:$C$356,3,0)","v":852568.130185924},38846.527504266771,{"$f":"VLOOKUP($A154,[5]Nit_Calc_Antianginal!$A$12:$C$345,3,0)","v":840324.65955090499},38846.527504266771,{"$f":"VLOOKUP($A154,[5]Anti_coagulants!$A$11:$C$325,3,0)","v":329002.600573793},38846.527504266771,{"$f":"VLOOKUP($A154,[5]Beta_Adrenorecepter!$A$11:$C$352,3,0)","v":280853.28020773799},38846.527504266771,{"$f":"VLOOKUP($A154,[5]Anti_platelet!$A$12:$C$335,3,0)","v":209046.73030818999},38846.527504266771,{"$f":"VLOOKUP($A154,[5]Diuretics!$A$12:$C$353,3,0)","v":308954.450173989},38846.527504266771,{"$f":"VLOOKUP($A154,[5]Anti_arrhythmic_drugs!$A$11:$C$271,3,0)","v":20640.2799658775},38846.527504266771,{"$f":"VLOOKUP($A154,[5]Positive_Intotropic!$A$12:$C$297,3,0)","v":13020.239996016},38846.527504266771,{"$f":"VLOOKUP($A154,[5]anti_fibrinolytic!$A$11:$C$287,3,0)","v":18307.389991283399},38846.527504266771,{"$f":"VLOOKUP($A154,[5]sympathomimetics!$A$11:$C$223,3,0)","v":5836.3100299835196},38846.527504266771,{"$f":"VLOOKUP($A154,[5]CVD_All_prescriptions!$A$10:$C$392,3,0)","v":3797559.7623512801},{"$f":"VLOOKUP($A154,[5]CVD_All_prescriptions!$A$10:$C$392,2,0)","v":952970}]
["08X","NHS Wandsworth",{"$f":"VLOOKUP($A155,[4]CVD_All_prescriptions!$A$10:$D$223,4,0)","v":4061518.14},{"$f":"VLOOKUP($A155,Lookup!$BP$3:$BW$213,7,0)","v":55692.189892802446},{"$f":"VLOOKUP($A155,[4]Lipid_regulators!$A$14:$D$227,4,0)","v":1404760.61},55692.189892802446,{"$f":"VLOOKUP($A155,[4]HyperandHeartfailure!$A$13:$D$226,4,0)","v":1021119.51},55692.189892802446,{"$f":"VLOOKUP($A155,[4]Nit_Calc_Antianginal!$A$13:$D$226,4,0)","v":687711.31999999902},55692.189892802446,{"$f":"VLOOKUP($A155,[4]Anti_coagulants!$A$15:$D$227,4,0)","v":213179.139999999},55692.189892802446,{"$f":"VLOOKUP($A155,[4]Beta_Adrenorecepter!$A$13:$D$226,4,0)","v":207155.74},55692.189892802446,{"$f":"VLOOKUP($A155,[4]Anti_platelet!$A$13:$D$226,4,0)","v":226419.56999999899},55692.189892802446,{"$f":"VLOOKUP($A155,[4]Diuretics!$A$11:$D$224,4,0)","v":214946.7},55692.189892802446,{"$f":"VLOOKUP($A155,[4]Anti_arrhythmic_drugs!$A$13:$D$226,4,0)","v":32248.04},55692.189892802446,{"$f":"VLOOKUP($A155,[4]Positive_Intotropic!$A$13:$D$226,4,0)","v":16977.73},55692.189892802446,{"$f":"VLOOKUP($A155,[4]anti_fibrinolytic!$A$13:$D$226,4,0)","v":23666.66},55692.189892802446,{"$f":"VLOOKUP($A155,[4]sympathomimetics!$A$11:$D$223,4,0)","v":13333.12},55692.189892802446,{"$f":"VLOOKUP($A155,[4]CVD_All_prescriptions!$A$10:$D$223,4,0)","v":4061518.14},{"$f":"VLOOKUP($A155,[4]CVD_All_prescriptions!$A$10:$D$223,3,0)","v":1184637},{"$f":"VLOOKUP($A155,[5]CVD_All_prescriptions!$A$10:$C$392,3,0)","v":3902241.9721705001},{"$f":"VLOOKUP($A155,Lookup!$BP$3:$BW$213,8,0)","v":57226.186830015315},{"$f":"VLOOKUP($A155,[5]Lipid_regulators!$A$12:$C$345,3,0)","v":1152298.14059678},57226.186830015315,{"$f":"VLOOKUP($A155,[5]HyperandHeartfailure!$A$12:$C$356,3,0)","v":773930.06022147799},57226.186830015315,{"$f":"VLOOKUP($A155,[5]Nit_Calc_Antianginal!$A$12:$C$345,3,0)","v":752272.30957898498},57226.186830015315,{"$f":"VLOOKUP($A155,[5]Anti_coagulants!$A$11:$C$325,3,0)","v":306102.670162661},57226.186830015315,{"$f":"VLOOKUP($A155,[5]Beta_Adrenorecepter!$A$11:$C$352,3,0)","v":259794.50001807499},57226.186830015315,{"$f":"VLOOKUP($A155,[5]Anti_platelet!$A$12:$C$335,3,0)","v":254452.93003134101},57226.186830015315,{"$f":"VLOOKUP($A155,[5]Diuretics!$A$12:$C$353,3,0)","v":318581.431638423},57226.186830015315,{"$f":"VLOOKUP($A155,[5]Anti_arrhythmic_drugs!$A$11:$C$271,3,0)","v":30141.709795474999},57226.186830015315,{"$f":"VLOOKUP($A155,[5]Positive_Intotropic!$A$12:$C$297,3,0)","v":20119.780138671402},57226.186830015315,{"$f":"VLOOKUP($A155,[5]anti_fibrinolytic!$A$11:$C$287,3,0)","v":18695.969971418399},57226.186830015315,{"$f":"VLOOKUP($A155,[5]sympathomimetics!$A$11:$C$223,3,0)","v":15852.470017194701},57226.186830015315,{"$f":"VLOOKUP($A155,[5]CVD_All_prescriptions!$A$10:$C$392,3,0)","v":3902241.9721705001},{"$f":"VLOOKUP($A155,[5]CVD_All_prescriptions!$A$10:$C$392,2,0)","v":1252693}]
["08Y","NHS West London (K&C & Qpp)",{"$f":"VLOOKUP($A156,[4]CVD_All_prescriptions!$A$10:$D$223,4,0)","v":3066699.6799999899},{"$f":"VLOOKUP($A156,Lookup!$BP$3:$BW$213,7,0)","v":28735.574510787756},{"$f":"VLOOKUP($A156,[4]Lipid_regulators!$A$14:$D$227,4,0)","v":1202277.56},28735.574510787756,{"$f":"VLOOKUP($A156,[4]HyperandHeartfailure!$A$13:$D$226,4,0)","v":761290.3},28735.574510787756,{"$f":"VLOOKUP($A156,[4]Nit_Calc_Antianginal!$A$13:$D$226,4,0)","v":399779.79},28735.574510787756,{"$f":"VLOOKUP($A156,[4]Anti_coagulants!$A$15:$D$227,4,0)","v":151897.97},28735.574510787756,{"$f":"VLOOKUP($A156,[4]Beta_Adrenorecepter!$A$13:$D$226,4,0)","v":159895.12},28735.574510787756,{"$f":"VLOOKUP($A156,[4]Anti_platelet!$A$13:$D$226,4,0)","v":172857.709999999},28735.574510787756,{"$f":"VLOOKUP($A156,[4]Diuretics!$A$11:$D$224,4,0)","v":163052.35},28735.574510787756,{"$f":"VLOOKUP($A156,[4]Anti_arrhythmic_drugs!$A$13:$D$226,4,0)","v":24307.89},28735.574510787756,{"$f":"VLOOKUP($A156,[4]Positive_Intotropic!$A$13:$D$226,4,0)","v":11623.95},28735.574510787756,{"$f":"VLOOKUP($A156,[4]anti_fibrinolytic!$A$13:$D$226,4,0)","v":11059.63},28735.574510787756,{"$f":"VLOOKUP($A156,[4]sympathomimetics!$A$11:$D$223,4,0)","v":8657.41},28735.574510787756,{"$f":"VLOOKUP($A156,[4]CVD_All_prescriptions!$A$10:$D$223,4,0)","v":3066699.6799999899},{"$f":"VLOOKUP($A156,[4]CVD_All_prescriptions!$A$10:$D$223,3,0)","v":605161},{"$f":"VLOOKUP($A156,[5]CVD_All_prescriptions!$A$10:$C$392,3,0)","v":2808837.2310481798},{"$f":"VLOOKUP($A156,Lookup!$BP$3:$BW$213,8,0)","v":29551.555444054189},{"$f":"VLOOKUP($A156,[5]Lipid_regulators!$A$12:$C$345,3,0)","v":947938.88041534298},29551.555444054189,{"$f":"VLOOKUP($A156,[5]HyperandHeartfailure!$A$12:$C$356,3,0)","v":516811.32016232802},29551.555444054189,{"$f":"VLOOKUP($A156,[5]Nit_Calc_Antianginal!$A$12:$C$345,3,0)","v":423583.30984516401},29551.555444054189,{"$f":"VLOOKUP($A156,[5]Anti_coagulants!$A$11:$C$325,3,0)","v":262406.69972667802},29551.555444054189,{"$f":"VLOOKUP($A156,[5]Beta_Adrenorecepter!$A$11:$C$352,3,0)","v":199363.27997045999},29551.555444054189,{"$f":"VLOOKUP($A156,[5]Anti_platelet!$A$12:$C$335,3,0)","v":166981.03022239401},29551.555444054189,{"$f":"VLOOKUP($A156,[5]Diuretics!$A$12:$C$353,3,0)","v":237450.33069812899},29551.555444054189,{"$f":"VLOOKUP($A156,[5]Anti_arrhythmic_drugs!$A$11:$C$271,3,0)","v":23299.420019328601},29551.555444054189,{"$f":"VLOOKUP($A156,[5]Positive_Intotropic!$A$12:$C$297,3,0)","v":10067.440000534099},29551.555444054189,{"$f":"VLOOKUP($A156,[5]anti_fibrinolytic!$A$11:$C$287,3,0)","v":9311.8600251674707},29551.555444054189,{"$f":"VLOOKUP($A156,[5]sympathomimetics!$A$11:$C$223,3,0)","v":11623.659962654099},29551.555444054189,{"$f":"VLOOKUP($A156,[5]CVD_All_prescriptions!$A$10:$C$392,3,0)","v":2808837.2310481798},{"$f":"VLOOKUP($A156,[5]CVD_All_prescriptions!$A$10:$C$392,2,0)","v":642906}]
["09A","NHS Central London (Westminster)",{"$f":"VLOOKUP($A157,[4]CVD_All_prescriptions!$A$10:$D$223,4,0)","v":2463472.2599999998},{"$f":"VLOOKUP($A157,Lookup!$BP$3:$BW$213,7,0)","v":25528.630816682311},{"$f":"VLOOKUP($A157,[4]Lipid_regulators!$A$14:$D$227,4,0)","v":963158.79000000202},25528.630816682311,{"$f":"VLOOKUP($A157,[4]HyperandHeartfailure!$A$13:$D$226,4,0)","v":560611.72},25528.630816682311,{"$f":"VLOOKUP($A157,[4]Nit_Calc_Antianginal!$A$13:$D$226,4,0)","v":319918.65000000002},25528.630816682311,{"$f":"VLOOKUP($A157,[4]Anti_coagulants!$A$15:$D$227,4,0)","v":168103.25},25528.630816682311,{"$f":"VLOOKUP($A157,[4]Beta_Adrenorecepter!$A$13:$D$226,4,0)","v":129678.33},25528.630816682311,{"$f":"VLOOKUP($A157,[4]Anti_platelet!$A$13:$D$226,4,0)","v":139439.80999999901},25528.630816682311,{"$f":"VLOOKUP($A157,[4]Diuretics!$A$11:$D$224,4,0)","v":127968.38},25528.630816682311,{"$f":"VLOOKUP($A157,[4]Anti_arrhythmic_drugs!$A$13:$D$226,4,0)","v":21222.240000000002},25528.630816682311,{"$f":"VLOOKUP($A157,[4]Positive_Intotropic!$A$13:$D$226,4,0)","v":10481.65},25528.630816682311,{"$f":"VLOOKUP($A157,[4]anti_fibrinolytic!$A$13:$D$226,4,0)","v":13071.76},25528.630816682311,{"$f":"VLOOKUP($A157,[4]sympathomimetics!$A$11:$D$223,4,0)","v":9817.68},25528.630816682311,{"$f":"VLOOKUP($A157,[4]CVD_All_prescriptions!$A$10:$D$223,4,0)","v":2463472.2599999998},{"$f":"VLOOKUP($A157,[4]CVD_All_prescriptions!$A$10:$D$223,3,0)","v":576666},{"$f":"VLOOKUP($A157,[5]CVD_All_prescriptions!$A$10:$C$392,3,0)","v":2298431.6614734898},{"$f":"VLOOKUP($A157,Lookup!$BP$3:$BW$213,8,0)","v":26634.169236958562},{"$f":"VLOOKUP($A157,[5]Lipid_regulators!$A$12:$C$345,3,0)","v":780769.25028797996},26634.169236958562,{"$f":"VLOOKUP($A157,[5]HyperandHeartfailure!$A$12:$C$356,3,0)","v":406960.94034481002},26634.169236958562,{"$f":"VLOOKUP($A157,[5]Nit_Calc_Antianginal!$A$12:$C$345,3,0)","v":330973.90973497898},26634.169236958562,{"$f":"VLOOKUP($A157,[5]Anti_coagulants!$A$11:$C$325,3,0)","v":275623.259699605},26634.169236958562,{"$f":"VLOOKUP($A157,[5]Beta_Adrenorecepter!$A$11:$C$352,3,0)","v":158752.13043750799},26634.169236958562,{"$f":"VLOOKUP($A157,[5]Anti_platelet!$A$12:$C$335,3,0)","v":139632.56016857899},26634.169236958562,{"$f":"VLOOKUP($A157,[5]Diuretics!$A$12:$C$353,3,0)","v":162963.54077962},26634.169236958562,{"$f":"VLOOKUP($A157,[5]Anti_arrhythmic_drugs!$A$11:$C$271,3,0)","v":15395.250014543501},26634.169236958562,{"$f":"VLOOKUP($A157,[5]Positive_Intotropic!$A$12:$C$297,3,0)","v":8799.6599938571508},26634.169236958562,{"$f":"VLOOKUP($A157,[5]anti_fibrinolytic!$A$11:$C$287,3,0)","v":11974.5099914074},26634.169236958562,{"$f":"VLOOKUP($A157,[5]sympathomimetics!$A$11:$C$223,3,0)","v":6586.6500205993698},26634.169236958562,{"$f":"VLOOKUP($A157,[5]CVD_All_prescriptions!$A$10:$C$392,3,0)","v":2298431.6614734898},{"$f":"VLOOKUP($A157,[5]CVD_All_prescriptions!$A$10:$C$392,2,0)","v":596257}]
["09C","NHS Ashford",{"$f":"VLOOKUP($A158,[4]CVD_All_prescriptions!$A$10:$D$223,4,0)","v":2451311.62},{"$f":"VLOOKUP($A158,Lookup!$BP$3:$BW$213,7,0)","v":13182.883560907429},{"$f":"VLOOKUP($A158,[4]Lipid_regulators!$A$14:$D$227,4,0)","v":697717.09000000299},13182.883560907429,{"$f":"VLOOKUP($A158,[4]HyperandHeartfailure!$A$13:$D$226,4,0)","v":591242.51},13182.883560907429,{"$f":"VLOOKUP($A158,[4]Nit_Calc_Antianginal!$A$13:$D$226,4,0)","v":429137.799999999},13182.883560907429,{"$f":"VLOOKUP($A158,[4]Anti_coagulants!$A$15:$D$227,4,0)","v":266019.93999999901},13182.883560907429,{"$f":"VLOOKUP($A158,[4]Beta_Adrenorecepter!$A$13:$D$226,4,0)","v":172012.49},13182.883560907429,{"$f":"VLOOKUP($A158,[4]Anti_platelet!$A$13:$D$226,4,0)","v":113411.3},13182.883560907429,{"$f":"VLOOKUP($A158,[4]Diuretics!$A$11:$D$224,4,0)","v":141384.19},13182.883560907429,{"$f":"VLOOKUP($A158,[4]Anti_arrhythmic_drugs!$A$13:$D$226,4,0)","v":15526.9},13182.883560907429,{"$f":"VLOOKUP($A158,[4]Positive_Intotropic!$A$13:$D$226,4,0)","v":10103.57},13182.883560907429,{"$f":"VLOOKUP($A158,[4]anti_fibrinolytic!$A$13:$D$226,4,0)","v":6314.45},13182.883560907429,{"$f":"VLOOKUP($A158,[4]sympathomimetics!$A$11:$D$223,4,0)","v":8441.3799999999992},13182.883560907429,{"$f":"VLOOKUP($A158,[4]CVD_All_prescriptions!$A$10:$D$223,4,0)","v":2451311.62},{"$f":"VLOOKUP($A158,[4]CVD_All_prescriptions!$A$10:$D$223,3,0)","v":656893},{"$f":"VLOOKUP($A158,[5]CVD_All_prescriptions!$A$10:$C$392,3,0)","v":2348783.3108246201},{"$f":"VLOOKUP($A158,Lookup!$BP$3:$BW$213,8,0)","v":13539.404365122029},{"$f":"VLOOKUP($A158,[5]Lipid_regulators!$A$12:$C$345,3,0)","v":512279.220468938},13539.404365122029,{"$f":"VLOOKUP($A158,[5]HyperandHeartfailure!$A$12:$C$356,3,0)","v":456196.88026702398},13539.404365122029,{"$f":"VLOOKUP($A158,[5]Nit_Calc_Antianginal!$A$12:$C$345,3,0)","v":440285.38960126002},13539.404365122029,{"$f":"VLOOKUP($A158,[5]Anti_coagulants!$A$11:$C$325,3,0)","v":403977.83968088601},13539.404365122029,{"$f":"VLOOKUP($A158,[5]Beta_Adrenorecepter!$A$11:$C$352,3,0)","v":194982.029926777},13539.404365122029,{"$f":"VLOOKUP($A158,[5]Anti_platelet!$A$12:$C$335,3,0)","v":116240.26007306601},13539.404365122029,{"$f":"VLOOKUP($A158,[5]Diuretics!$A$12:$C$353,3,0)","v":187321.54080596601},13539.404365122029,{"$f":"VLOOKUP($A158,[5]Anti_arrhythmic_drugs!$A$11:$C$271,3,0)","v":13901.8900010586},13539.404365122029,{"$f":"VLOOKUP($A158,[5]Positive_Intotropic!$A$12:$C$297,3,0)","v":8590.14996422082},13539.404365122029,{"$f":"VLOOKUP($A158,[5]anti_fibrinolytic!$A$11:$C$287,3,0)","v":5399.58000230789},13539.404365122029,{"$f":"VLOOKUP($A158,[5]sympathomimetics!$A$11:$C$223,3,0)","v":9608.5300331115704},13539.404365122029,{"$f":"VLOOKUP($A158,[5]CVD_All_prescriptions!$A$10:$C$392,3,0)","v":2348783.3108246201},{"$f":"VLOOKUP($A158,[5]CVD_All_prescriptions!$A$10:$C$392,2,0)","v":675436}]
["09D","NHS Brighton and Hove",{"$f":"VLOOKUP($A159,[4]CVD_All_prescriptions!$A$10:$D$223,4,0)","v":4260729.46},{"$f":"VLOOKUP($A159,Lookup!$BP$3:$BW$213,7,0)","v":34600.230282095567},{"$f":"VLOOKUP($A159,[4]Lipid_regulators!$A$14:$D$227,4,0)","v":1222914.29},34600.230282095567,{"$f":"VLOOKUP($A159,[4]HyperandHeartfailure!$A$13:$D$226,4,0)","v":1076503.1299999999},34600.230282095567,{"$f":"VLOOKUP($A159,[4]Nit_Calc_Antianginal!$A$13:$D$226,4,0)","v":626158.35},34600.230282095567,{"$f":"VLOOKUP($A159,[4]Anti_coagulants!$A$15:$D$227,4,0)","v":400575.950000001},34600.230282095567,{"$f":"VLOOKUP($A159,[4]Beta_Adrenorecepter!$A$13:$D$226,4,0)","v":333586.930000005},34600.230282095567,{"$f":"VLOOKUP($A159,[4]Anti_platelet!$A$13:$D$226,4,0)","v":256303.19999999899},34600.230282095567,{"$f":"VLOOKUP($A159,[4]Diuretics!$A$11:$D$224,4,0)","v":262698.78000000003},34600.230282095567,{"$f":"VLOOKUP($A159,[4]Anti_arrhythmic_drugs!$A$13:$D$226,4,0)","v":35527.679999999898},34600.230282095567,{"$f":"VLOOKUP($A159,[4]Positive_Intotropic!$A$13:$D$226,4,0)","v":24329.929999999898},34600.230282095567,{"$f":"VLOOKUP($A159,[4]anti_fibrinolytic!$A$13:$D$226,4,0)","v":16702.05},34600.230282095567,{"$f":"VLOOKUP($A159,[4]sympathomimetics!$A$11:$D$223,4,0)","v":5416.37},34600.230282095567,{"$f":"VLOOKUP($A159,[4]CVD_All_prescriptions!$A$10:$D$223,4,0)","v":4260729.46},{"$f":"VLOOKUP($A159,[4]CVD_All_prescriptions!$A$10:$D$223,3,0)","v":1125830},{"$f":"VLOOKUP($A159,[5]CVD_All_prescriptions!$A$10:$C$392,3,0)","v":3978353.7620991901},{"$f":"VLOOKUP($A159,Lookup!$BP$3:$BW$213,8,0)","v":34942.774899251584},{"$f":"VLOOKUP($A159,[5]Lipid_regulators!$A$12:$C$345,3,0)","v":1013696.0509729401},34942.774899251584,{"$f":"VLOOKUP($A159,[5]HyperandHeartfailure!$A$12:$C$356,3,0)","v":765553.46973880404},34942.774899251584,{"$f":"VLOOKUP($A159,[5]Nit_Calc_Antianginal!$A$12:$C$345,3,0)","v":623077.48003742099},34942.774899251584,{"$f":"VLOOKUP($A159,[5]Anti_coagulants!$A$11:$C$325,3,0)","v":500603.89970575302},34942.774899251584,{"$f":"VLOOKUP($A159,[5]Beta_Adrenorecepter!$A$11:$C$352,3,0)","v":395835.79021542898},34942.774899251584,{"$f":"VLOOKUP($A159,[5]Anti_platelet!$A$12:$C$335,3,0)","v":253369.510044992},34942.774899251584,{"$f":"VLOOKUP($A159,[5]Diuretics!$A$12:$C$353,3,0)","v":336246.22132234799},34942.774899251584,{"$f":"VLOOKUP($A159,[5]Anti_arrhythmic_drugs!$A$11:$C$271,3,0)","v":34215.249961115398},34942.774899251584,{"$f":"VLOOKUP($A159,[5]Positive_Intotropic!$A$12:$C$297,3,0)","v":19994.679992064801},34942.774899251584,{"$f":"VLOOKUP($A159,[5]anti_fibrinolytic!$A$11:$C$287,3,0)","v":14774.850041150999},34942.774899251584,{"$f":"VLOOKUP($A159,[5]sympathomimetics!$A$11:$C$223,3,0)","v":20986.560067176801},34942.774899251584,{"$f":"VLOOKUP($A159,[5]CVD_All_prescriptions!$A$10:$C$392,3,0)","v":3978353.7620991901},{"$f":"VLOOKUP($A159,[5]CVD_All_prescriptions!$A$10:$C$392,2,0)","v":1156717}]
["09E","NHS Canterbury and Coastal",{"$f":"VLOOKUP($A160,[4]CVD_All_prescriptions!$A$10:$D$223,4,0)","v":4051840.1500000102},{"$f":"VLOOKUP($A160,Lookup!$BP$3:$BW$213,7,0)","v":21648.12014917851},{"$f":"VLOOKUP($A160,[4]Lipid_regulators!$A$14:$D$227,4,0)","v":1144225.94000001},21648.12014917851,{"$f":"VLOOKUP($A160,[4]HyperandHeartfailure!$A$13:$D$226,4,0)","v":988312.12999999896},21648.12014917851,{"$f":"VLOOKUP($A160,[4]Nit_Calc_Antianginal!$A$13:$D$226,4,0)","v":696122.76},21648.12014917851,{"$f":"VLOOKUP($A160,[4]Anti_coagulants!$A$15:$D$227,4,0)","v":336569.44999999902},21648.12014917851,{"$f":"VLOOKUP($A160,[4]Beta_Adrenorecepter!$A$13:$D$226,4,0)","v":303257.55000000098},21648.12014917851,{"$f":"VLOOKUP($A160,[4]Anti_platelet!$A$13:$D$226,4,0)","v":216696.49999999901},21648.12014917851,{"$f":"VLOOKUP($A160,[4]Diuretics!$A$11:$D$224,4,0)","v":254699.44},21648.12014917851,{"$f":"VLOOKUP($A160,[4]Anti_arrhythmic_drugs!$A$13:$D$226,4,0)","v":35081.800000000003},21648.12014917851,{"$f":"VLOOKUP($A160,[4]Positive_Intotropic!$A$13:$D$226,4,0)","v":24098.49},21648.12014917851,{"$f":"VLOOKUP($A160,[4]anti_fibrinolytic!$A$13:$D$226,4,0)","v":11175.55},21648.12014917851,{"$f":"VLOOKUP($A160,[4]sympathomimetics!$A$11:$D$223,4,0)","v":41600.54},21648.12014917851,{"$f":"VLOOKUP($A160,[4]CVD_All_prescriptions!$A$10:$D$223,4,0)","v":4051840.1500000102},{"$f":"VLOOKUP($A160,[4]CVD_All_prescriptions!$A$10:$D$223,3,0)","v":1036202},{"$f":"VLOOKUP($A160,[5]CVD_All_prescriptions!$A$10:$C$392,3,0)","v":3924109.4320233501},{"$f":"VLOOKUP($A160,Lookup!$BP$3:$BW$213,8,0)","v":21757.08093942143},{"$f":"VLOOKUP($A160,[5]Lipid_regulators!$A$12:$C$345,3,0)","v":852383.04099649005},21757.08093942143,{"$f":"VLOOKUP($A160,[5]HyperandHeartfailure!$A$12:$C$356,3,0)","v":764961.60037868097},21757.08093942143,{"$f":"VLOOKUP($A160,[5]Nit_Calc_Antianginal!$A$12:$C$345,3,0)","v":727316.999102153},21757.08093942143,{"$f":"VLOOKUP($A160,[5]Anti_coagulants!$A$11:$C$325,3,0)","v":583298.149806645},21757.08093942143,{"$f":"VLOOKUP($A160,[5]Beta_Adrenorecepter!$A$11:$C$352,3,0)","v":342776.50038349401},21757.08093942143,{"$f":"VLOOKUP($A160,[5]Anti_platelet!$A$12:$C$335,3,0)","v":210159.150329556},21757.08093942143,{"$f":"VLOOKUP($A160,[5]Diuretics!$A$12:$C$353,3,0)","v":330446.93100008398},21757.08093942143,{"$f":"VLOOKUP($A160,[5]Anti_arrhythmic_drugs!$A$11:$C$271,3,0)","v":39971.890001550302},21757.08093942143,{"$f":"VLOOKUP($A160,[5]Positive_Intotropic!$A$12:$C$297,3,0)","v":19556.8299835324},21757.08093942143,{"$f":"VLOOKUP($A160,[5]anti_fibrinolytic!$A$11:$C$287,3,0)","v":9888.0000133514404},21757.08093942143,{"$f":"VLOOKUP($A160,[5]sympathomimetics!$A$11:$C$223,3,0)","v":43350.340027809099},21757.08093942143,{"$f":"VLOOKUP($A160,[5]CVD_All_prescriptions!$A$10:$C$392,3,0)","v":3924109.4320233501},{"$f":"VLOOKUP($A160,[5]CVD_All_prescriptions!$A$10:$C$392,2,0)","v":1040733}]
["09F","NHS Eastbourne, Hailsham and Seaford",{"$f":"VLOOKUP($A161,[4]CVD_All_prescriptions!$A$10:$D$223,4,0)","v":4595386.63},{"$f":"VLOOKUP($A161,Lookup!$BP$3:$BW$213,7,0)","v":15256.34124459669},{"$f":"VLOOKUP($A161,[4]Lipid_regulators!$A$14:$D$227,4,0)","v":1306884.25999999},15256.34124459669,{"$f":"VLOOKUP($A161,[4]HyperandHeartfailure!$A$13:$D$226,4,0)","v":1055241.92},15256.34124459669,{"$f":"VLOOKUP($A161,[4]Nit_Calc_Antianginal!$A$13:$D$226,4,0)","v":744176.34999999905},15256.34124459669,{"$f":"VLOOKUP($A161,[4]Anti_coagulants!$A$15:$D$227,4,0)","v":361466.94999999902},15256.34124459669,{"$f":"VLOOKUP($A161,[4]Beta_Adrenorecepter!$A$13:$D$226,4,0)","v":362427.41000000102},15256.34124459669,{"$f":"VLOOKUP($A161,[4]Anti_platelet!$A$13:$D$226,4,0)","v":324248.20999999897},15256.34124459669,{"$f":"VLOOKUP($A161,[4]Diuretics!$A$11:$D$224,4,0)","v":296818.21000000002},15256.34124459669,{"$f":"VLOOKUP($A161,[4]Anti_arrhythmic_drugs!$A$13:$D$226,4,0)","v":100514.74},15256.34124459669,{"$f":"VLOOKUP($A161,[4]Positive_Intotropic!$A$13:$D$226,4,0)","v":19555.5999999999},15256.34124459669,{"$f":"VLOOKUP($A161,[4]anti_fibrinolytic!$A$13:$D$226,4,0)","v":14213.75},15256.34124459669,{"$f":"VLOOKUP($A161,[4]sympathomimetics!$A$11:$D$223,4,0)","v":9839.23},15256.34124459669,{"$f":"VLOOKUP($A161,[4]CVD_All_prescriptions!$A$10:$D$223,4,0)","v":4595386.63},{"$f":"VLOOKUP($A161,[4]CVD_All_prescriptions!$A$10:$D$223,3,0)","v":1208612},{"$f":"VLOOKUP($A161,[5]CVD_All_prescriptions!$A$10:$C$392,3,0)","v":4659349.0527532604},{"$f":"VLOOKUP($A161,Lookup!$BP$3:$BW$213,8,0)","v":15312.861919908655},{"$f":"VLOOKUP($A161,[5]Lipid_regulators!$A$12:$C$345,3,0)","v":1061904.1405008601},15312.861919908655,{"$f":"VLOOKUP($A161,[5]HyperandHeartfailure!$A$12:$C$356,3,0)","v":821579.21036677796},15312.861919908655,{"$f":"VLOOKUP($A161,[5]Nit_Calc_Antianginal!$A$12:$C$345,3,0)","v":807119.32998588705},15312.861919908655,{"$f":"VLOOKUP($A161,[5]Anti_coagulants!$A$11:$C$325,3,0)","v":584293.96989134001},15312.861919908655,{"$f":"VLOOKUP($A161,[5]Beta_Adrenorecepter!$A$11:$C$352,3,0)","v":429226.04024274601},15312.861919908655,{"$f":"VLOOKUP($A161,[5]Anti_platelet!$A$12:$C$335,3,0)","v":333583.46014441003},15312.861919908655,{"$f":"VLOOKUP($A161,[5]Diuretics!$A$12:$C$353,3,0)","v":463805.24146440602},15312.861919908655,{"$f":"VLOOKUP($A161,[5]Anti_arrhythmic_drugs!$A$11:$C$271,3,0)","v":110747.41004633901},15312.861919908655,{"$f":"VLOOKUP($A161,[5]Positive_Intotropic!$A$12:$C$297,3,0)","v":15483.9299995825},15312.861919908655,{"$f":"VLOOKUP($A161,[5]anti_fibrinolytic!$A$11:$C$287,3,0)","v":16209.7500292063},15312.861919908655,{"$f":"VLOOKUP($A161,[5]sympathomimetics!$A$11:$C$223,3,0)","v":15396.570081710801},15312.861919908655,{"$f":"VLOOKUP($A161,[5]CVD_All_prescriptions!$A$10:$C$392,3,0)","v":4659349.0527532604},{"$f":"VLOOKUP($A161,[5]CVD_All_prescriptions!$A$10:$C$392,2,0)","v":1228736}]
["09G","NHS Coastal West Sussex",{"$f":"VLOOKUP($A162,[4]CVD_All_prescriptions!$A$10:$D$223,4,0)","v":11181315.689999999},{"$f":"VLOOKUP($A162,Lookup!$BP$3:$BW$213,7,0)","v":41428.788006401082},{"$f":"VLOOKUP($A162,[4]Lipid_regulators!$A$14:$D$227,4,0)","v":3140413.4099999401},41428.788006401082,{"$f":"VLOOKUP($A162,[4]HyperandHeartfailure!$A$13:$D$226,4,0)","v":2832987.79},41428.788006401082,{"$f":"VLOOKUP($A162,[4]Nit_Calc_Antianginal!$A$13:$D$226,4,0)","v":1936613.08},41428.788006401082,{"$f":"VLOOKUP($A162,[4]Anti_coagulants!$A$15:$D$227,4,0)","v":791794.57000000204},41428.788006401082,{"$f":"VLOOKUP($A162,[4]Beta_Adrenorecepter!$A$13:$D$226,4,0)","v":926311.34000000905},41428.788006401082,{"$f":"VLOOKUP($A162,[4]Anti_platelet!$A$13:$D$226,4,0)","v":723284.07000000402},41428.788006401082,{"$f":"VLOOKUP($A162,[4]Diuretics!$A$11:$D$224,4,0)","v":610422.489999988},41428.788006401082,{"$f":"VLOOKUP($A162,[4]Anti_arrhythmic_drugs!$A$13:$D$226,4,0)","v":115896.65},41428.788006401082,{"$f":"VLOOKUP($A162,[4]Positive_Intotropic!$A$13:$D$226,4,0)","v":59552.589999999902},41428.788006401082,{"$f":"VLOOKUP($A162,[4]anti_fibrinolytic!$A$13:$D$226,4,0)","v":35512.050000000003},41428.788006401082,{"$f":"VLOOKUP($A162,[4]sympathomimetics!$A$11:$D$223,4,0)","v":8527.65},41428.788006401082,{"$f":"VLOOKUP($A162,[4]CVD_All_prescriptions!$A$10:$D$223,4,0)","v":11181315.689999999},{"$f":"VLOOKUP($A162,[4]CVD_All_prescriptions!$A$10:$D$223,3,0)","v":2823410},{"$f":"VLOOKUP($A162,[5]CVD_All_prescriptions!$A$10:$C$392,3,0)","v":10695826.064597201},{"$f":"VLOOKUP($A162,Lookup!$BP$3:$BW$213,8,0)","v":41635.222774362002},{"$f":"VLOOKUP($A162,[5]Lipid_regulators!$A$12:$C$345,3,0)","v":2476898.9202397801},41635.222774362002,{"$f":"VLOOKUP($A162,[5]HyperandHeartfailure!$A$12:$C$356,3,0)","v":2121326.1011516498},41635.222774362002,{"$f":"VLOOKUP($A162,[5]Nit_Calc_Antianginal!$A$12:$C$345,3,0)","v":1983407.5199146301},41635.222774362002,{"$f":"VLOOKUP($A162,[5]Anti_coagulants!$A$11:$C$325,3,0)","v":1044850.41083157},41635.222774362002,{"$f":"VLOOKUP($A162,[5]Beta_Adrenorecepter!$A$11:$C$352,3,0)","v":1118285.1901809899},41635.222774362002,{"$f":"VLOOKUP($A162,[5]Anti_platelet!$A$12:$C$335,3,0)","v":878876.95021313406},41635.222774362002,{"$f":"VLOOKUP($A162,[5]Diuretics!$A$12:$C$353,3,0)","v":877367.64227625704},41635.222774362002,{"$f":"VLOOKUP($A162,[5]Anti_arrhythmic_drugs!$A$11:$C$271,3,0)","v":103573.589859933},41635.222774362002,{"$f":"VLOOKUP($A162,[5]Positive_Intotropic!$A$12:$C$297,3,0)","v":49556.3799868524},41635.222774362002,{"$f":"VLOOKUP($A162,[5]anti_fibrinolytic!$A$11:$C$287,3,0)","v":35509.349925994902},41635.222774362002,{"$f":"VLOOKUP($A162,[5]sympathomimetics!$A$11:$C$223,3,0)","v":6174.0100164413498},41635.222774362002,{"$f":"VLOOKUP($A162,[5]CVD_All_prescriptions!$A$10:$C$392,3,0)","v":10695826.064597201},{"$f":"VLOOKUP($A162,[5]CVD_All_prescriptions!$A$10:$C$392,2,0)","v":2918913}]
["09H","NHS Crawley",{"$f":"VLOOKUP($A163,[4]CVD_All_prescriptions!$A$10:$D$223,4,0)","v":2023596.3},{"$f":"VLOOKUP($A163,Lookup!$BP$3:$BW$213,7,0)","v":15548.253115074518},{"$f":"VLOOKUP($A163,[4]Lipid_regulators!$A$14:$D$227,4,0)","v":606763.27},15548.253115074518,{"$f":"VLOOKUP($A163,[4]HyperandHeartfailure!$A$13:$D$226,4,0)","v":578493},15548.253115074518,{"$f":"VLOOKUP($A163,[4]Nit_Calc_Antianginal!$A$13:$D$226,4,0)","v":288225.61},15548.253115074518,{"$f":"VLOOKUP($A163,[4]Anti_coagulants!$A$15:$D$227,4,0)","v":135350.64000000001},15548.253115074518,{"$f":"VLOOKUP($A163,[4]Beta_Adrenorecepter!$A$13:$D$226,4,0)","v":139861.79},15548.253115074518,{"$f":"VLOOKUP($A163,[4]Anti_platelet!$A$13:$D$226,4,0)","v":118971.5},15548.253115074518,{"$f":"VLOOKUP($A163,[4]Diuretics!$A$11:$D$224,4,0)","v":106638.95},15548.253115074518,{"$f":"VLOOKUP($A163,[4]Anti_arrhythmic_drugs!$A$13:$D$226,4,0)","v":15848.54},15548.253115074518,{"$f":"VLOOKUP($A163,[4]Positive_Intotropic!$A$13:$D$226,4,0)","v":8779.8200000000106},15548.253115074518,{"$f":"VLOOKUP($A163,[4]anti_fibrinolytic!$A$13:$D$226,4,0)","v":7602.65},15548.253115074518,{"$f":"VLOOKUP($A163,[4]sympathomimetics!$A$11:$D$223,4,0)","v":17060.53},15548.253115074518,{"$f":"VLOOKUP($A163,[4]CVD_All_prescriptions!$A$10:$D$223,4,0)","v":2023596.3},{"$f":"VLOOKUP($A163,[4]CVD_All_prescriptions!$A$10:$D$223,3,0)","v":584513},{"$f":"VLOOKUP($A163,[5]CVD_All_prescriptions!$A$10:$C$392,3,0)","v":1900976.4992327399},{"$f":"VLOOKUP($A163,Lookup!$BP$3:$BW$213,8,0)","v":15596.99486928903},{"$f":"VLOOKUP($A163,[5]Lipid_regulators!$A$12:$C$345,3,0)","v":465913.05890813499},15596.99486928903,{"$f":"VLOOKUP($A163,[5]HyperandHeartfailure!$A$12:$C$356,3,0)","v":464271.53991776699},15596.99486928903,{"$f":"VLOOKUP($A163,[5]Nit_Calc_Antianginal!$A$12:$C$345,3,0)","v":312720.78951942897},15596.99486928903,{"$f":"VLOOKUP($A163,[5]Anti_coagulants!$A$11:$C$325,3,0)","v":169114.07976454499},15596.99486928903,{"$f":"VLOOKUP($A163,[5]Beta_Adrenorecepter!$A$11:$C$352,3,0)","v":176220.27029654401},15596.99486928903,{"$f":"VLOOKUP($A163,[5]Anti_platelet!$A$12:$C$335,3,0)","v":116191.800160885},15596.99486928903,{"$f":"VLOOKUP($A163,[5]Diuretics!$A$12:$C$353,3,0)","v":152418.01063543599},15596.99486928903,{"$f":"VLOOKUP($A163,[5]Anti_arrhythmic_drugs!$A$11:$C$271,3,0)","v":13231.210111171},15596.99486928903,{"$f":"VLOOKUP($A163,[5]Positive_Intotropic!$A$12:$C$297,3,0)","v":7592.61999714375},15596.99486928903,{"$f":"VLOOKUP($A163,[5]anti_fibrinolytic!$A$11:$C$287,3,0)","v":6910.3399896621704},15596.99486928903,{"$f":"VLOOKUP($A163,[5]sympathomimetics!$A$11:$C$223,3,0)","v":16392.779932022098},15596.99486928903,{"$f":"VLOOKUP($A163,[5]CVD_All_prescriptions!$A$10:$C$392,3,0)","v":1900976.4992327399},{"$f":"VLOOKUP($A163,[5]CVD_All_prescriptions!$A$10:$C$392,2,0)","v":607518}]
["09J","NHS Dartford, Gravesham and Swanley",{"$f":"VLOOKUP($A164,[4]CVD_All_prescriptions!$A$10:$D$223,4,0)","v":5602738.5500000101},{"$f":"VLOOKUP($A164,Lookup!$BP$3:$BW$213,7,0)","v":27197.678203319952},{"$f":"VLOOKUP($A164,[4]Lipid_regulators!$A$14:$D$227,4,0)","v":1684606.76999999},27197.678203319952,{"$f":"VLOOKUP($A164,[4]HyperandHeartfailure!$A$13:$D$226,4,0)","v":1551852.46},27197.678203319952,{"$f":"VLOOKUP($A164,[4]Nit_Calc_Antianginal!$A$13:$D$226,4,0)","v":899575.81},27197.678203319952,{"$f":"VLOOKUP($A164,[4]Anti_coagulants!$A$15:$D$227,4,0)","v":410280.67999999702},27197.678203319952,{"$f":"VLOOKUP($A164,[4]Beta_Adrenorecepter!$A$13:$D$226,4,0)","v":372903.01000000199},27197.678203319952,{"$f":"VLOOKUP($A164,[4]Anti_platelet!$A$13:$D$226,4,0)","v":293654.25999999902},27197.678203319952,{"$f":"VLOOKUP($A164,[4]Diuretics!$A$11:$D$224,4,0)","v":279348.71999999898},27197.678203319952,{"$f":"VLOOKUP($A164,[4]Anti_arrhythmic_drugs!$A$13:$D$226,4,0)","v":42848.999999999898},27197.678203319952,{"$f":"VLOOKUP($A164,[4]Positive_Intotropic!$A$13:$D$226,4,0)","v":23104.139999999901},27197.678203319952,{"$f":"VLOOKUP($A164,[4]anti_fibrinolytic!$A$13:$D$226,4,0)","v":19032.509999999998},27197.678203319952,{"$f":"VLOOKUP($A164,[4]sympathomimetics!$A$11:$D$223,4,0)","v":25531.19},27197.678203319952,{"$f":"VLOOKUP($A164,[4]CVD_All_prescriptions!$A$10:$D$223,4,0)","v":5602738.5500000101},{"$f":"VLOOKUP($A164,[4]CVD_All_prescriptions!$A$10:$D$223,3,0)","v":1390086},{"$f":"VLOOKUP($A164,[5]CVD_All_prescriptions!$A$10:$C$392,3,0)","v":5149698.0812026802},{"$f":"VLOOKUP($A164,Lookup!$BP$3:$BW$213,8,0)","v":27377.671693609635},{"$f":"VLOOKUP($A164,[5]Lipid_regulators!$A$12:$C$345,3,0)","v":1352980.90040189},27377.671693609635,{"$f":"VLOOKUP($A164,[5]HyperandHeartfailure!$A$12:$C$356,3,0)","v":1120807.4497738199},27377.671693609635,{"$f":"VLOOKUP($A164,[5]Nit_Calc_Antianginal!$A$12:$C$345,3,0)","v":924792.31945169705},27377.671693609635,{"$f":"VLOOKUP($A164,[5]Anti_coagulants!$A$11:$C$325,3,0)","v":599005.05059588002},27377.671693609635,{"$f":"VLOOKUP($A164,[5]Beta_Adrenorecepter!$A$11:$C$352,3,0)","v":418564.840506181},27377.671693609635,{"$f":"VLOOKUP($A164,[5]Anti_platelet!$A$12:$C$335,3,0)","v":287447.93995107699},27377.671693609635,{"$f":"VLOOKUP($A164,[5]Diuretics!$A$12:$C$353,3,0)","v":361521.09063763899},27377.671693609635,{"$f":"VLOOKUP($A164,[5]Anti_arrhythmic_drugs!$A$11:$C$271,3,0)","v":33787.339944451996},27377.671693609635,{"$f":"VLOOKUP($A164,[5]Positive_Intotropic!$A$12:$C$297,3,0)","v":18647.3699927628},27377.671693609635,{"$f":"VLOOKUP($A164,[5]anti_fibrinolytic!$A$11:$C$287,3,0)","v":16038.479988098101},27377.671693609635,{"$f":"VLOOKUP($A164,[5]sympathomimetics!$A$11:$C$223,3,0)","v":16087.299959182699},27377.671693609635,{"$f":"VLOOKUP($A164,[5]CVD_All_prescriptions!$A$10:$C$392,3,0)","v":5149698.0812026802},{"$f":"VLOOKUP($A164,[5]CVD_All_prescriptions!$A$10:$C$392,2,0)","v":1426971}]
["09L","NHS East Surrey",{"$f":"VLOOKUP($A165,[4]CVD_All_prescriptions!$A$10:$D$223,4,0)","v":2705283.89},{"$f":"VLOOKUP($A165,Lookup!$BP$3:$BW$213,7,0)","v":18574.030172413793},{"$f":"VLOOKUP($A165,[4]Lipid_regulators!$A$14:$D$227,4,0)","v":754675.28000000305},18574.030172413793,{"$f":"VLOOKUP($A165,[4]HyperandHeartfailure!$A$13:$D$226,4,0)","v":754382.27999999898},18574.030172413793,{"$f":"VLOOKUP($A165,[4]Nit_Calc_Antianginal!$A$13:$D$226,4,0)","v":404192.9},18574.030172413793,{"$f":"VLOOKUP($A165,[4]Anti_coagulants!$A$15:$D$227,4,0)","v":188332.35},18574.030172413793,{"$f":"VLOOKUP($A165,[4]Beta_Adrenorecepter!$A$13:$D$226,4,0)","v":207934.02999999901},18574.030172413793,{"$f":"VLOOKUP($A165,[4]Anti_platelet!$A$13:$D$226,4,0)","v":174121.69999999899},18574.030172413793,{"$f":"VLOOKUP($A165,[4]Diuretics!$A$11:$D$224,4,0)","v":167918.34},18574.030172413793,{"$f":"VLOOKUP($A165,[4]Anti_arrhythmic_drugs!$A$13:$D$226,4,0)","v":21250.27},18574.030172413793,{"$f":"VLOOKUP($A165,[4]Positive_Intotropic!$A$13:$D$226,4,0)","v":17292},18574.030172413793,{"$f":"VLOOKUP($A165,[4]anti_fibrinolytic!$A$13:$D$226,4,0)","v":9217.4399999999896},18574.030172413793,{"$f":"VLOOKUP($A165,[4]sympathomimetics!$A$11:$D$223,4,0)","v":5967.3},18574.030172413793,{"$f":"VLOOKUP($A165,[4]CVD_All_prescriptions!$A$10:$D$223,4,0)","v":2705283.89},{"$f":"VLOOKUP($A165,[4]CVD_All_prescriptions!$A$10:$D$223,3,0)","v":664029},{"$f":"VLOOKUP($A165,[5]CVD_All_prescriptions!$A$10:$C$392,3,0)","v":2581797.8219590401},{"$f":"VLOOKUP($A165,Lookup!$BP$3:$BW$213,8,0)","v":18879.202586206899},{"$f":"VLOOKUP($A165,[5]Lipid_regulators!$A$12:$C$345,3,0)","v":555377.71034830797},18879.202586206899,{"$f":"VLOOKUP($A165,[5]HyperandHeartfailure!$A$12:$C$356,3,0)","v":587010.14010751201},18879.202586206899,{"$f":"VLOOKUP($A165,[5]Nit_Calc_Antianginal!$A$12:$C$345,3,0)","v":425200.98984369601},18879.202586206899,{"$f":"VLOOKUP($A165,[5]Anti_coagulants!$A$11:$C$325,3,0)","v":292513.53013411199},18879.202586206899,{"$f":"VLOOKUP($A165,[5]Beta_Adrenorecepter!$A$11:$C$352,3,0)","v":242875.98033050401},18879.202586206899,{"$f":"VLOOKUP($A165,[5]Anti_platelet!$A$12:$C$335,3,0)","v":181682.58014072501},18879.202586206899,{"$f":"VLOOKUP($A165,[5]Diuretics!$A$12:$C$353,3,0)","v":249000.21104302999},18879.202586206899,{"$f":"VLOOKUP($A165,[5]Anti_arrhythmic_drugs!$A$11:$C$271,3,0)","v":20091.300002396099},18879.202586206899,{"$f":"VLOOKUP($A165,[5]Positive_Intotropic!$A$12:$C$297,3,0)","v":14455.750003159001},18879.202586206899,{"$f":"VLOOKUP($A165,[5]anti_fibrinolytic!$A$11:$C$287,3,0)","v":7797.2700049877203},18879.202586206899,{"$f":"VLOOKUP($A165,[5]sympathomimetics!$A$11:$C$223,3,0)","v":5792.3600006103497},18879.202586206899,{"$f":"VLOOKUP($A165,[5]CVD_All_prescriptions!$A$10:$C$392,3,0)","v":2581797.8219590401},{"$f":"VLOOKUP($A165,[5]CVD_All_prescriptions!$A$10:$C$392,2,0)","v":687442}]
["09N","NHS Guildford and Waverley",{"$f":"VLOOKUP($A166,[4]CVD_All_prescriptions!$A$10:$D$223,4,0)","v":3626240.34},{"$f":"VLOOKUP($A166,Lookup!$BP$3:$BW$213,7,0)","v":23167.506702412869},{"$f":"VLOOKUP($A166,[4]Lipid_regulators!$A$14:$D$227,4,0)","v":1109328.1499999999},23167.506702412869,{"$f":"VLOOKUP($A166,[4]HyperandHeartfailure!$A$13:$D$226,4,0)","v":951222.07999999903},23167.506702412869,{"$f":"VLOOKUP($A166,[4]Nit_Calc_Antianginal!$A$13:$D$226,4,0)","v":481867.8},23167.506702412869,{"$f":"VLOOKUP($A166,[4]Anti_coagulants!$A$15:$D$227,4,0)","v":284718.39},23167.506702412869,{"$f":"VLOOKUP($A166,[4]Beta_Adrenorecepter!$A$13:$D$226,4,0)","v":300059.71000000002},23167.506702412869,{"$f":"VLOOKUP($A166,[4]Anti_platelet!$A$13:$D$226,4,0)","v":203990.93999999901},23167.506702412869,{"$f":"VLOOKUP($A166,[4]Diuretics!$A$11:$D$224,4,0)","v":192577.71},23167.506702412869,{"$f":"VLOOKUP($A166,[4]Anti_arrhythmic_drugs!$A$13:$D$226,4,0)","v":55671.849999999897},23167.506702412869,{"$f":"VLOOKUP($A166,[4]Positive_Intotropic!$A$13:$D$226,4,0)","v":21423.33},23167.506702412869,{"$f":"VLOOKUP($A166,[4]anti_fibrinolytic!$A$13:$D$226,4,0)","v":9938.32},23167.506702412869,{"$f":"VLOOKUP($A166,[4]sympathomimetics!$A$11:$D$223,4,0)","v":15442.06},23167.506702412869,{"$f":"VLOOKUP($A166,[4]CVD_All_prescriptions!$A$10:$D$223,4,0)","v":3626240.34},{"$f":"VLOOKUP($A166,[4]CVD_All_prescriptions!$A$10:$D$223,3,0)","v":878250},{"$f":"VLOOKUP($A166,[5]CVD_All_prescriptions!$A$10:$C$392,3,0)","v":3521756.1711133998},{"$f":"VLOOKUP($A166,Lookup!$BP$3:$BW$213,8,0)","v":23513.243967828421},{"$f":"VLOOKUP($A166,[5]Lipid_regulators!$A$12:$C$345,3,0)","v":836921.16983640206},23513.243967828421,{"$f":"VLOOKUP($A166,[5]HyperandHeartfailure!$A$12:$C$356,3,0)","v":763286.41046906996},23513.243967828421,{"$f":"VLOOKUP($A166,[5]Nit_Calc_Antianginal!$A$12:$C$345,3,0)","v":533764.69953060197},23513.243967828421,{"$f":"VLOOKUP($A166,[5]Anti_coagulants!$A$11:$C$325,3,0)","v":438250.96014976501},23513.243967828421,{"$f":"VLOOKUP($A166,[5]Beta_Adrenorecepter!$A$11:$C$352,3,0)","v":352520.41014862101},23513.243967828421,{"$f":"VLOOKUP($A166,[5]Anti_platelet!$A$12:$C$335,3,0)","v":200574.75982591501},23513.243967828421,{"$f":"VLOOKUP($A166,[5]Diuretics!$A$12:$C$353,3,0)","v":298187.061004624},23513.243967828421,{"$f":"VLOOKUP($A166,[5]Anti_arrhythmic_drugs!$A$11:$C$271,3,0)","v":51222.550037443601},23513.243967828421,{"$f":"VLOOKUP($A166,[5]Positive_Intotropic!$A$12:$C$297,3,0)","v":17533.050020217899},23513.243967828421,{"$f":"VLOOKUP($A166,[5]anti_fibrinolytic!$A$11:$C$287,3,0)","v":9658.9300620555896},23513.243967828421,{"$f":"VLOOKUP($A166,[5]sympathomimetics!$A$11:$C$223,3,0)","v":19836.170028686502},23513.243967828421,{"$f":"VLOOKUP($A166,[5]CVD_All_prescriptions!$A$10:$C$392,3,0)","v":3521756.1711133998},{"$f":"VLOOKUP($A166,[5]CVD_All_prescriptions!$A$10:$C$392,2,0)","v":890939}]
["09P","NHS Hastings and Rother",{"$f":"VLOOKUP($A167,[4]CVD_All_prescriptions!$A$10:$D$223,4,0)","v":5718427.3000000101},{"$f":"VLOOKUP($A167,Lookup!$BP$3:$BW$213,7,0)","v":15022.096734593666},{"$f":"VLOOKUP($A167,[4]Lipid_regulators!$A$14:$D$227,4,0)","v":2020020.58},15022.096734593666,{"$f":"VLOOKUP($A167,[4]HyperandHeartfailure!$A$13:$D$226,4,0)","v":1445919.87},15022.096734593666,{"$f":"VLOOKUP($A167,[4]Nit_Calc_Antianginal!$A$13:$D$226,4,0)","v":746713.89999999898},15022.096734593666,{"$f":"VLOOKUP($A167,[4]Anti_coagulants!$A$15:$D$227,4,0)","v":315151.28999999899},15022.096734593666,{"$f":"VLOOKUP($A167,[4]Beta_Adrenorecepter!$A$13:$D$226,4,0)","v":351157.24000000401},15022.096734593666,{"$f":"VLOOKUP($A167,[4]Anti_platelet!$A$13:$D$226,4,0)","v":346261.87999999803},15022.096734593666,{"$f":"VLOOKUP($A167,[4]Diuretics!$A$11:$D$224,4,0)","v":317371.26999999897},15022.096734593666,{"$f":"VLOOKUP($A167,[4]Anti_arrhythmic_drugs!$A$13:$D$226,4,0)","v":129803.48},15022.096734593666,{"$f":"VLOOKUP($A167,[4]Positive_Intotropic!$A$13:$D$226,4,0)","v":23284.1699999999},15022.096734593666,{"$f":"VLOOKUP($A167,[4]anti_fibrinolytic!$A$13:$D$226,4,0)","v":14178.57},15022.096734593666,{"$f":"VLOOKUP($A167,[4]sympathomimetics!$A$11:$D$223,4,0)","v":8565.0499999999993},15022.096734593666,{"$f":"VLOOKUP($A167,[4]CVD_All_prescriptions!$A$10:$D$223,4,0)","v":5718427.3000000101},{"$f":"VLOOKUP($A167,[4]CVD_All_prescriptions!$A$10:$D$223,3,0)","v":1292781},{"$f":"VLOOKUP($A167,[5]CVD_All_prescriptions!$A$10:$C$392,3,0)","v":5473668.7924282998},{"$f":"VLOOKUP($A167,Lookup!$BP$3:$BW$213,8,0)","v":15014.321957607006},{"$f":"VLOOKUP($A167,[5]Lipid_regulators!$A$12:$C$345,3,0)","v":1655508.67018447},15014.321957607006,{"$f":"VLOOKUP($A167,[5]HyperandHeartfailure!$A$12:$C$356,3,0)","v":1106535.40040903},15014.321957607006,{"$f":"VLOOKUP($A167,[5]Nit_Calc_Antianginal!$A$12:$C$345,3,0)","v":768079.50975343597},15014.321957607006,{"$f":"VLOOKUP($A167,[5]Anti_coagulants!$A$11:$C$325,3,0)","v":553193.82033272798},15014.321957607006,{"$f":"VLOOKUP($A167,[5]Beta_Adrenorecepter!$A$11:$C$352,3,0)","v":389202.42012619198},15014.321957607006,{"$f":"VLOOKUP($A167,[5]Anti_platelet!$A$12:$C$335,3,0)","v":364689.230283488},15014.321957607006,{"$f":"VLOOKUP($A167,[5]Diuretics!$A$12:$C$353,3,0)","v":449244.861321654},15014.321957607006,{"$f":"VLOOKUP($A167,[5]Anti_arrhythmic_drugs!$A$11:$C$271,3,0)","v":148878.179976899},15014.321957607006,{"$f":"VLOOKUP($A167,[5]Positive_Intotropic!$A$12:$C$297,3,0)","v":18706.609980769499},15014.321957607006,{"$f":"VLOOKUP($A167,[5]anti_fibrinolytic!$A$11:$C$287,3,0)","v":11907.079993724799},15014.321957607006,{"$f":"VLOOKUP($A167,[5]sympathomimetics!$A$11:$C$223,3,0)","v":7683.2900646925},15014.321957607006,{"$f":"VLOOKUP($A167,[5]CVD_All_prescriptions!$A$10:$C$392,3,0)","v":5473668.7924282998},{"$f":"VLOOKUP($A167,[5]CVD_All_prescriptions!$A$10:$C$392,2,0)","v":1321469}]
["09W","NHS Medway",{"$f":"VLOOKUP($A168,[4]CVD_All_prescriptions!$A$10:$D$223,4,0)","v":5584611.2400000198},{"$f":"VLOOKUP($A168,Lookup!$BP$3:$BW$213,7,0)","v":32767.388300322436},{"$f":"VLOOKUP($A168,[4]Lipid_regulators!$A$14:$D$227,4,0)","v":2030700.49999998},32767.388300322436,{"$f":"VLOOKUP($A168,[4]HyperandHeartfailure!$A$13:$D$226,4,0)","v":1520897.65},32767.388300322436,{"$f":"VLOOKUP($A168,[4]Nit_Calc_Antianginal!$A$13:$D$226,4,0)","v":688984.01},32767.388300322436,{"$f":"VLOOKUP($A168,[4]Anti_coagulants!$A$15:$D$227,4,0)","v":375938.91},32767.388300322436,{"$f":"VLOOKUP($A168,[4]Beta_Adrenorecepter!$A$13:$D$226,4,0)","v":342153.72000000399},32767.388300322436,{"$f":"VLOOKUP($A168,[4]Anti_platelet!$A$13:$D$226,4,0)","v":216887.54999999801},32767.388300322436,{"$f":"VLOOKUP($A168,[4]Diuretics!$A$11:$D$224,4,0)","v":304896.44999999797},32767.388300322436,{"$f":"VLOOKUP($A168,[4]Anti_arrhythmic_drugs!$A$13:$D$226,4,0)","v":34929.499999999804},32767.388300322436,{"$f":"VLOOKUP($A168,[4]Positive_Intotropic!$A$13:$D$226,4,0)","v":25028.399999999801},32767.388300322436,{"$f":"VLOOKUP($A168,[4]anti_fibrinolytic!$A$13:$D$226,4,0)","v":33270.04},32767.388300322436,{"$f":"VLOOKUP($A168,[4]sympathomimetics!$A$11:$D$223,4,0)","v":10924.51},32767.388300322436,{"$f":"VLOOKUP($A168,[4]CVD_All_prescriptions!$A$10:$D$223,4,0)","v":5584611.2400000198},{"$f":"VLOOKUP($A168,[4]CVD_All_prescriptions!$A$10:$D$223,3,0)","v":1405275},{"$f":"VLOOKUP($A168,[5]CVD_All_prescriptions!$A$10:$C$392,3,0)","v":5235038.1334852204},{"$f":"VLOOKUP($A168,Lookup!$BP$3:$BW$213,8,0)","v":33488.94518654998},{"$f":"VLOOKUP($A168,[5]Lipid_regulators!$A$12:$C$345,3,0)","v":1577226.9399343999},33488.94518654998,{"$f":"VLOOKUP($A168,[5]HyperandHeartfailure!$A$12:$C$356,3,0)","v":1083911.5007138799},33488.94518654998,{"$f":"VLOOKUP($A168,[5]Nit_Calc_Antianginal!$A$12:$C$345,3,0)","v":810637.919452662},33488.94518654998,{"$f":"VLOOKUP($A168,[5]Anti_coagulants!$A$11:$C$325,3,0)","v":602414.17010420596},33488.94518654998,{"$f":"VLOOKUP($A168,[5]Beta_Adrenorecepter!$A$11:$C$352,3,0)","v":414110.52032867097},33488.94518654998,{"$f":"VLOOKUP($A168,[5]Anti_platelet!$A$12:$C$335,3,0)","v":220290.90055587899},33488.94518654998,{"$f":"VLOOKUP($A168,[5]Diuretics!$A$12:$C$353,3,0)","v":437971.792635024},33488.94518654998,{"$f":"VLOOKUP($A168,[5]Anti_arrhythmic_drugs!$A$11:$C$271,3,0)","v":31059.8897952437},33488.94518654998,{"$f":"VLOOKUP($A168,[5]Positive_Intotropic!$A$12:$C$297,3,0)","v":21134.819998800798},33488.94518654998,{"$f":"VLOOKUP($A168,[5]anti_fibrinolytic!$A$11:$C$287,3,0)","v":22874.3099370003},33488.94518654998,{"$f":"VLOOKUP($A168,[5]sympathomimetics!$A$11:$C$223,3,0)","v":13405.370029449499},33488.94518654998,{"$f":"VLOOKUP($A168,[5]CVD_All_prescriptions!$A$10:$C$392,3,0)","v":5235038.1334852204},{"$f":"VLOOKUP($A168,[5]CVD_All_prescriptions!$A$10:$C$392,2,0)","v":1447704}]
["09X","NHS Horsham and Mid Sussex",{"$f":"VLOOKUP($A169,[4]CVD_All_prescriptions!$A$10:$D$223,4,0)","v":3966050.2500000098},{"$f":"VLOOKUP($A169,Lookup!$BP$3:$BW$213,7,0)","v":23525.765728476821},{"$f":"VLOOKUP($A169,[4]Lipid_regulators!$A$14:$D$227,4,0)","v":1165436.45},23525.765728476821,{"$f":"VLOOKUP($A169,[4]HyperandHeartfailure!$A$13:$D$226,4,0)","v":1058009.1100000001},23525.765728476821,{"$f":"VLOOKUP($A169,[4]Nit_Calc_Antianginal!$A$13:$D$226,4,0)","v":560031.57999999996},23525.765728476821,{"$f":"VLOOKUP($A169,[4]Anti_coagulants!$A$15:$D$227,4,0)","v":337754.63},23525.765728476821,{"$f":"VLOOKUP($A169,[4]Beta_Adrenorecepter!$A$13:$D$226,4,0)","v":302113.33000000101},23525.765728476821,{"$f":"VLOOKUP($A169,[4]Anti_platelet!$A$13:$D$226,4,0)","v":209896.609999999},23525.765728476821,{"$f":"VLOOKUP($A169,[4]Diuretics!$A$11:$D$224,4,0)","v":234465.16},23525.765728476821,{"$f":"VLOOKUP($A169,[4]Anti_arrhythmic_drugs!$A$13:$D$226,4,0)","v":33731.18},23525.765728476821,{"$f":"VLOOKUP($A169,[4]Positive_Intotropic!$A$13:$D$226,4,0)","v":24176.880000000001},23525.765728476821,{"$f":"VLOOKUP($A169,[4]anti_fibrinolytic!$A$13:$D$226,4,0)","v":12587.74},23525.765728476821,{"$f":"VLOOKUP($A169,[4]sympathomimetics!$A$11:$D$223,4,0)","v":25147.58},23525.765728476821,{"$f":"VLOOKUP($A169,[4]CVD_All_prescriptions!$A$10:$D$223,4,0)","v":3966050.2500000098},{"$f":"VLOOKUP($A169,[4]CVD_All_prescriptions!$A$10:$D$223,3,0)","v":894094},{"$f":"VLOOKUP($A169,[5]CVD_All_prescriptions!$A$10:$C$392,3,0)","v":3839659.2624500399},{"$f":"VLOOKUP($A169,Lookup!$BP$3:$BW$213,8,0)","v":23661.941225165563},{"$f":"VLOOKUP($A169,[5]Lipid_regulators!$A$12:$C$345,3,0)","v":918708.96063697303},23661.941225165563,{"$f":"VLOOKUP($A169,[5]HyperandHeartfailure!$A$12:$C$356,3,0)","v":838784.130120605},23661.941225165563,{"$f":"VLOOKUP($A169,[5]Nit_Calc_Antianginal!$A$12:$C$345,3,0)","v":594496.80937764002},23661.941225165563,{"$f":"VLOOKUP($A169,[5]Anti_coagulants!$A$11:$C$325,3,0)","v":470429.18993556499},23661.941225165563,{"$f":"VLOOKUP($A169,[5]Beta_Adrenorecepter!$A$11:$C$352,3,0)","v":341324.670454651},23661.941225165563,{"$f":"VLOOKUP($A169,[5]Anti_platelet!$A$12:$C$335,3,0)","v":222041.10025256901},23661.941225165563,{"$f":"VLOOKUP($A169,[5]Diuretics!$A$12:$C$353,3,0)","v":337850.70152983099},23661.941225165563,{"$f":"VLOOKUP($A169,[5]Anti_arrhythmic_drugs!$A$11:$C$271,3,0)","v":30428.8300225735},23661.941225165563,{"$f":"VLOOKUP($A169,[5]Positive_Intotropic!$A$12:$C$297,3,0)","v":19913.279972612901},23661.941225165563,{"$f":"VLOOKUP($A169,[5]anti_fibrinolytic!$A$11:$C$287,3,0)","v":9567.4799897670691},23661.941225165563,{"$f":"VLOOKUP($A169,[5]sympathomimetics!$A$11:$C$223,3,0)","v":30914.110157251402},23661.941225165563,{"$f":"VLOOKUP($A169,[5]CVD_All_prescriptions!$A$10:$C$392,3,0)","v":3839659.2624500399},{"$f":"VLOOKUP($A169,[5]CVD_All_prescriptions!$A$10:$C$392,2,0)","v":915253}]
["09Y","NHS North West Surrey",{"$f":"VLOOKUP($A170,[4]CVD_All_prescriptions!$A$10:$D$223,4,0)","v":5669349.2500000102},{"$f":"VLOOKUP($A170,Lookup!$BP$3:$BW$213,7,0)","v":38662.653239929954},{"$f":"VLOOKUP($A170,[4]Lipid_regulators!$A$14:$D$227,4,0)","v":1776574.71},38662.653239929954,{"$f":"VLOOKUP($A170,[4]HyperandHeartfailure!$A$13:$D$226,4,0)","v":1506817.6},38662.653239929954,{"$f":"VLOOKUP($A170,[4]Nit_Calc_Antianginal!$A$13:$D$226,4,0)","v":742513.14999999898},38662.653239929954,{"$f":"VLOOKUP($A170,[4]Anti_coagulants!$A$15:$D$227,4,0)","v":362458.75},38662.653239929954,{"$f":"VLOOKUP($A170,[4]Beta_Adrenorecepter!$A$13:$D$226,4,0)","v":444558.91000000603},38662.653239929954,{"$f":"VLOOKUP($A170,[4]Anti_platelet!$A$13:$D$226,4,0)","v":381904.87999999902},38662.653239929954,{"$f":"VLOOKUP($A170,[4]Diuretics!$A$11:$D$224,4,0)","v":347777.87999999902},38662.653239929954,{"$f":"VLOOKUP($A170,[4]Anti_arrhythmic_drugs!$A$13:$D$226,4,0)","v":40705.119999999901},38662.653239929954,{"$f":"VLOOKUP($A170,[4]Positive_Intotropic!$A$13:$D$226,4,0)","v":30539.749999999902},38662.653239929954,{"$f":"VLOOKUP($A170,[4]anti_fibrinolytic!$A$13:$D$226,4,0)","v":22506.81},38662.653239929954,{"$f":"VLOOKUP($A170,[4]sympathomimetics!$A$11:$D$223,4,0)","v":12991.69},38662.653239929954,{"$f":"VLOOKUP($A170,[4]CVD_All_prescriptions!$A$10:$D$223,4,0)","v":5669349.2500000102},{"$f":"VLOOKUP($A170,[4]CVD_All_prescriptions!$A$10:$D$223,3,0)","v":1208883},{"$f":"VLOOKUP($A170,[5]CVD_All_prescriptions!$A$10:$C$392,3,0)","v":5249335.1536167804},{"$f":"VLOOKUP($A170,Lookup!$BP$3:$BW$213,8,0)","v":39105.845008756572},{"$f":"VLOOKUP($A170,[5]Lipid_regulators!$A$12:$C$345,3,0)","v":1382096.05088713},39105.845008756572,{"$f":"VLOOKUP($A170,[5]HyperandHeartfailure!$A$12:$C$356,3,0)","v":1137895.4904527101},39105.845008756572,{"$f":"VLOOKUP($A170,[5]Nit_Calc_Antianginal!$A$12:$C$345,3,0)","v":810319.60929733503},39105.845008756572,{"$f":"VLOOKUP($A170,[5]Anti_coagulants!$A$11:$C$325,3,0)","v":445169.60139842302},39105.845008756572,{"$f":"VLOOKUP($A170,[5]Beta_Adrenorecepter!$A$11:$C$352,3,0)","v":510706.70029278501},39105.845008756572,{"$f":"VLOOKUP($A170,[5]Anti_platelet!$A$12:$C$335,3,0)","v":374367.40031232301},39105.845008756572,{"$f":"VLOOKUP($A170,[5]Diuretics!$A$12:$C$353,3,0)","v":494007.51101747202},39105.845008756572,{"$f":"VLOOKUP($A170,[5]Anti_arrhythmic_drugs!$A$11:$C$271,3,0)","v":34065.940024971998},39105.845008756572,{"$f":"VLOOKUP($A170,[5]Positive_Intotropic!$A$12:$C$297,3,0)","v":25693.939969304902},39105.845008756572,{"$f":"VLOOKUP($A170,[5]anti_fibrinolytic!$A$11:$C$287,3,0)","v":17952.3100059032},39105.845008756572,{"$f":"VLOOKUP($A170,[5]sympathomimetics!$A$11:$C$223,3,0)","v":17060.5999584198},39105.845008756572,{"$f":"VLOOKUP($A170,[5]CVD_All_prescriptions!$A$10:$C$392,3,0)","v":5249335.1536167804},{"$f":"VLOOKUP($A170,[5]CVD_All_prescriptions!$A$10:$C$392,2,0)","v":1267318}]
["10A","NHS South Kent Coast",{"$f":"VLOOKUP($A171,[4]CVD_All_prescriptions!$A$10:$D$223,4,0)","v":4951646.99},{"$f":"VLOOKUP($A171,Lookup!$BP$3:$BW$213,7,0)","v":18204.961071881226},{"$f":"VLOOKUP($A171,[4]Lipid_regulators!$A$14:$D$227,4,0)","v":1620539.6199999901},18204.961071881226,{"$f":"VLOOKUP($A171,[4]HyperandHeartfailure!$A$13:$D$226,4,0)","v":1156241.27},18204.961071881226,{"$f":"VLOOKUP($A171,[4]Nit_Calc_Antianginal!$A$13:$D$226,4,0)","v":835500.54},18204.961071881226,{"$f":"VLOOKUP($A171,[4]Anti_coagulants!$A$15:$D$227,4,0)","v":365119.820000001},18204.961071881226,{"$f":"VLOOKUP($A171,[4]Beta_Adrenorecepter!$A$13:$D$226,4,0)","v":329291.37000000098},18204.961071881226,{"$f":"VLOOKUP($A171,[4]Anti_platelet!$A$13:$D$226,4,0)","v":260768.819999998},18204.961071881226,{"$f":"VLOOKUP($A171,[4]Diuretics!$A$11:$D$224,4,0)","v":291798.42},18204.961071881226,{"$f":"VLOOKUP($A171,[4]Anti_arrhythmic_drugs!$A$13:$D$226,4,0)","v":33642.9},18204.961071881226,{"$f":"VLOOKUP($A171,[4]Positive_Intotropic!$A$13:$D$226,4,0)","v":24756.91},18204.961071881226,{"$f":"VLOOKUP($A171,[4]anti_fibrinolytic!$A$13:$D$226,4,0)","v":11484.54},18204.961071881226,{"$f":"VLOOKUP($A171,[4]sympathomimetics!$A$11:$D$223,4,0)","v":22502.78},18204.961071881226,{"$f":"VLOOKUP($A171,[4]CVD_All_prescriptions!$A$10:$D$223,4,0)","v":4951646.99},{"$f":"VLOOKUP($A171,[4]CVD_All_prescriptions!$A$10:$D$223,3,0)","v":1092707},{"$f":"VLOOKUP($A171,[5]CVD_All_prescriptions!$A$10:$C$392,3,0)","v":4679122.3831433496},{"$f":"VLOOKUP($A171,Lookup!$BP$3:$BW$213,8,0)","v":18273.764258555133},{"$f":"VLOOKUP($A171,[5]Lipid_regulators!$A$12:$C$345,3,0)","v":1243349.2609053899},18273.764258555133,{"$f":"VLOOKUP($A171,[5]HyperandHeartfailure!$A$12:$C$356,3,0)","v":903886.93055112695},18273.764258555133,{"$f":"VLOOKUP($A171,[5]Nit_Calc_Antianginal!$A$12:$C$345,3,0)","v":861618.69980335201},18273.764258555133,{"$f":"VLOOKUP($A171,[5]Anti_coagulants!$A$11:$C$325,3,0)","v":584588.19924965303},18273.764258555133,{"$f":"VLOOKUP($A171,[5]Beta_Adrenorecepter!$A$11:$C$352,3,0)","v":380526.56043356698},18273.764258555133,{"$f":"VLOOKUP($A171,[5]Anti_platelet!$A$12:$C$335,3,0)","v":255563.83051616},18273.764258555133,{"$f":"VLOOKUP($A171,[5]Diuretics!$A$12:$C$353,3,0)","v":360229.251799285},18273.764258555133,{"$f":"VLOOKUP($A171,[5]Anti_arrhythmic_drugs!$A$11:$C$271,3,0)","v":39044.960001826301},18273.764258555133,{"$f":"VLOOKUP($A171,[5]Positive_Intotropic!$A$12:$C$297,3,0)","v":19981.459976673101},18273.764258555133,{"$f":"VLOOKUP($A171,[5]anti_fibrinolytic!$A$11:$C$287,3,0)","v":10815.899979829799},18273.764258555133,{"$f":"VLOOKUP($A171,[5]sympathomimetics!$A$11:$C$223,3,0)","v":19517.329926490798},18273.764258555133,{"$f":"VLOOKUP($A171,[5]CVD_All_prescriptions!$A$10:$C$392,3,0)","v":4679122.3831433496},{"$f":"VLOOKUP($A171,[5]CVD_All_prescriptions!$A$10:$C$392,2,0)","v":1115079}]
["10C","NHS Surrey Heath",{"$f":"VLOOKUP($A172,[4]CVD_All_prescriptions!$A$10:$D$223,4,0)","v":1647108.57},{"$f":"VLOOKUP($A172,Lookup!$BP$3:$BW$213,7,0)","v":9964.7956403269745},{"$f":"VLOOKUP($A172,[4]Lipid_regulators!$A$14:$D$227,4,0)","v":587510.98000000103},9964.7956403269745,{"$f":"VLOOKUP($A172,[4]HyperandHeartfailure!$A$13:$D$226,4,0)","v":411722.23},9964.7956403269745,{"$f":"VLOOKUP($A172,[4]Nit_Calc_Antianginal!$A$13:$D$226,4,0)","v":210768.47},9964.7956403269745,{"$f":"VLOOKUP($A172,[4]Anti_coagulants!$A$15:$D$227,4,0)","v":95953.429999999906},9964.7956403269745,{"$f":"VLOOKUP($A172,[4]Beta_Adrenorecepter!$A$13:$D$226,4,0)","v":93194.319999999701},9964.7956403269745,{"$f":"VLOOKUP($A172,[4]Anti_platelet!$A$13:$D$226,4,0)","v":104461.44},9964.7956403269745,{"$f":"VLOOKUP($A172,[4]Diuretics!$A$11:$D$224,4,0)","v":105057.09},9964.7956403269745,{"$f":"VLOOKUP($A172,[4]Anti_arrhythmic_drugs!$A$13:$D$226,4,0)","v":20165.25},9964.7956403269745,{"$f":"VLOOKUP($A172,[4]Positive_Intotropic!$A$13:$D$226,4,0)","v":8213.4500000000007},9964.7956403269745,{"$f":"VLOOKUP($A172,[4]anti_fibrinolytic!$A$13:$D$226,4,0)","v":5073.32},9964.7956403269745,{"$f":"VLOOKUP($A172,[4]sympathomimetics!$A$11:$D$223,4,0)","v":4988.59},9964.7956403269745,{"$f":"VLOOKUP($A172,[4]CVD_All_prescriptions!$A$10:$D$223,4,0)","v":1647108.57},{"$f":"VLOOKUP($A172,[4]CVD_All_prescriptions!$A$10:$D$223,3,0)","v":338633},{"$f":"VLOOKUP($A172,[5]CVD_All_prescriptions!$A$10:$C$392,3,0)","v":1551773.30131096},{"$f":"VLOOKUP($A172,Lookup!$BP$3:$BW$213,8,0)","v":10106.485013623977},{"$f":"VLOOKUP($A172,[5]Lipid_regulators!$A$12:$C$345,3,0)","v":444211.60083562101},10106.485013623977,{"$f":"VLOOKUP($A172,[5]HyperandHeartfailure!$A$12:$C$356,3,0)","v":324793.31967401499},10106.485013623977,{"$f":"VLOOKUP($A172,[5]Nit_Calc_Antianginal!$A$12:$C$345,3,0)","v":238295.72988522099},10106.485013623977,{"$f":"VLOOKUP($A172,[5]Anti_coagulants!$A$11:$C$325,3,0)","v":130830.449881673},10106.485013623977,{"$f":"VLOOKUP($A172,[5]Beta_Adrenorecepter!$A$11:$C$352,3,0)","v":117952.84013021},10106.485013623977,{"$f":"VLOOKUP($A172,[5]Anti_platelet!$A$12:$C$335,3,0)","v":111290.540193558},10106.485013623977,{"$f":"VLOOKUP($A172,[5]Diuretics!$A$12:$C$353,3,0)","v":147895.37064862301},10106.485013623977,{"$f":"VLOOKUP($A172,[5]Anti_arrhythmic_drugs!$A$11:$C$271,3,0)","v":19266.619981646501},10106.485013623977,{"$f":"VLOOKUP($A172,[5]Positive_Intotropic!$A$12:$C$297,3,0)","v":6631.30001580715},10106.485013623977,{"$f":"VLOOKUP($A172,[5]anti_fibrinolytic!$A$11:$C$287,3,0)","v":3505.1700105667101},10106.485013623977,{"$f":"VLOOKUP($A172,[5]sympathomimetics!$A$11:$C$223,3,0)","v":7100.3600540161096},10106.485013623977,{"$f":"VLOOKUP($A172,[5]CVD_All_prescriptions!$A$10:$C$392,3,0)","v":1551773.30131096},{"$f":"VLOOKUP($A172,[5]CVD_All_prescriptions!$A$10:$C$392,2,0)","v":349844}]
["10D","NHS Swale",{"$f":"VLOOKUP($A173,[4]CVD_All_prescriptions!$A$10:$D$223,4,0)","v":2243362.5799999898},{"$f":"VLOOKUP($A173,Lookup!$BP$3:$BW$213,7,0)","v":11060.880296174413},{"$f":"VLOOKUP($A173,[4]Lipid_regulators!$A$14:$D$227,4,0)","v":773512.31000000203},11060.880296174413,{"$f":"VLOOKUP($A173,[4]HyperandHeartfailure!$A$13:$D$226,4,0)","v":615339.35},11060.880296174413,{"$f":"VLOOKUP($A173,[4]Nit_Calc_Antianginal!$A$13:$D$226,4,0)","v":302999.34999999998},11060.880296174413,{"$f":"VLOOKUP($A173,[4]Anti_coagulants!$A$15:$D$227,4,0)","v":140436.69},11060.880296174413,{"$f":"VLOOKUP($A173,[4]Beta_Adrenorecepter!$A$13:$D$226,4,0)","v":140858.79999999999},11060.880296174413,{"$f":"VLOOKUP($A173,[4]Anti_platelet!$A$13:$D$226,4,0)","v":94691.629999999903},11060.880296174413,{"$f":"VLOOKUP($A173,[4]Diuretics!$A$11:$D$224,4,0)","v":145205.76999999999},11060.880296174413,{"$f":"VLOOKUP($A173,[4]Anti_arrhythmic_drugs!$A$13:$D$226,4,0)","v":11809.41},11060.880296174413,{"$f":"VLOOKUP($A173,[4]Positive_Intotropic!$A$13:$D$226,4,0)","v":10569.95},11060.880296174413,{"$f":"VLOOKUP($A173,[4]anti_fibrinolytic!$A$13:$D$226,4,0)","v":7776.54},11060.880296174413,{"$f":"VLOOKUP($A173,[4]sympathomimetics!$A$11:$D$223,4,0)","v":162.78},11060.880296174413,{"$f":"VLOOKUP($A173,[4]CVD_All_prescriptions!$A$10:$D$223,4,0)","v":2243362.5799999898},{"$f":"VLOOKUP($A173,[4]CVD_All_prescriptions!$A$10:$D$223,3,0)","v":527486},{"$f":"VLOOKUP($A173,[5]CVD_All_prescriptions!$A$10:$C$392,3,0)","v":2078701.2009769999},{"$f":"VLOOKUP($A173,Lookup!$BP$3:$BW$213,8,0)","v":11052.34471410942},{"$f":"VLOOKUP($A173,[5]Lipid_regulators!$A$12:$C$345,3,0)","v":583474.95013411297},11052.34471410942,{"$f":"VLOOKUP($A173,[5]HyperandHeartfailure!$A$12:$C$356,3,0)","v":448273.52002947801},11052.34471410942,{"$f":"VLOOKUP($A173,[5]Nit_Calc_Antianginal!$A$12:$C$345,3,0)","v":348523.449528731},11052.34471410942,{"$f":"VLOOKUP($A173,[5]Anti_coagulants!$A$11:$C$325,3,0)","v":209384.52026534101},11052.34471410942,{"$f":"VLOOKUP($A173,[5]Beta_Adrenorecepter!$A$11:$C$352,3,0)","v":172661.59010080999},11052.34471410942,{"$f":"VLOOKUP($A173,[5]Anti_platelet!$A$12:$C$335,3,0)","v":95009.270133674101},11052.34471410942,{"$f":"VLOOKUP($A173,[5]Diuretics!$A$12:$C$353,3,0)","v":193394.53092393299},11052.34471410942,{"$f":"VLOOKUP($A173,[5]Anti_arrhythmic_drugs!$A$11:$C$271,3,0)","v":11649.269870042801},11052.34471410942,{"$f":"VLOOKUP($A173,[5]Positive_Intotropic!$A$12:$C$297,3,0)","v":8788.8399937450904},11052.34471410942,{"$f":"VLOOKUP($A173,[5]anti_fibrinolytic!$A$11:$C$287,3,0)","v":6591.6100032329596},11052.34471410942,{"$f":"VLOOKUP($A173,[5]sympathomimetics!$A$11:$C$223,3,0)","v":949.64999389648403},11052.34471410942,{"$f":"VLOOKUP($A173,[5]CVD_All_prescriptions!$A$10:$C$392,3,0)","v":2078701.2009769999},{"$f":"VLOOKUP($A173,[5]CVD_All_prescriptions!$A$10:$C$392,2,0)","v":547912}]
["10E","NHS Thanet",{"$f":"VLOOKUP($A174,[4]CVD_All_prescriptions!$A$10:$D$223,4,0)","v":3529955.33},{"$f":"VLOOKUP($A174,Lookup!$BP$3:$BW$213,7,0)","v":12414.572204221035},{"$f":"VLOOKUP($A174,[4]Lipid_regulators!$A$14:$D$227,4,0)","v":1018216.33},12414.572204221035,{"$f":"VLOOKUP($A174,[4]HyperandHeartfailure!$A$13:$D$226,4,0)","v":884157.46999999904},12414.572204221035,{"$f":"VLOOKUP($A174,[4]Nit_Calc_Antianginal!$A$13:$D$226,4,0)","v":632078.929999999},12414.572204221035,{"$f":"VLOOKUP($A174,[4]Anti_coagulants!$A$15:$D$227,4,0)","v":283382.21999999799},12414.572204221035,{"$f":"VLOOKUP($A174,[4]Beta_Adrenorecepter!$A$13:$D$226,4,0)","v":248636.4},12414.572204221035,{"$f":"VLOOKUP($A174,[4]Anti_platelet!$A$13:$D$226,4,0)","v":178961.30999999901},12414.572204221035,{"$f":"VLOOKUP($A174,[4]Diuretics!$A$11:$D$224,4,0)","v":223365.05},12414.572204221035,{"$f":"VLOOKUP($A174,[4]Anti_arrhythmic_drugs!$A$13:$D$226,4,0)","v":28020.21},12414.572204221035,{"$f":"VLOOKUP($A174,[4]Positive_Intotropic!$A$13:$D$226,4,0)","v":17776.439999999999},12414.572204221035,{"$f":"VLOOKUP($A174,[4]anti_fibrinolytic!$A$13:$D$226,4,0)","v":7940.51},12414.572204221035,{"$f":"VLOOKUP($A174,[4]sympathomimetics!$A$11:$D$223,4,0)","v":7420.46},12414.572204221035,{"$f":"VLOOKUP($A174,[4]CVD_All_prescriptions!$A$10:$D$223,4,0)","v":3529955.33},{"$f":"VLOOKUP($A174,[4]CVD_All_prescriptions!$A$10:$D$223,3,0)","v":901724},{"$f":"VLOOKUP($A174,[5]CVD_All_prescriptions!$A$10:$C$392,3,0)","v":3319273.8211809802},{"$f":"VLOOKUP($A174,Lookup!$BP$3:$BW$213,8,0)","v":12446.011034241177},{"$f":"VLOOKUP($A174,[5]Lipid_regulators!$A$12:$C$345,3,0)","v":749720.51038309897},12446.011034241177,{"$f":"VLOOKUP($A174,[5]HyperandHeartfailure!$A$12:$C$356,3,0)","v":669523.000228822},12446.011034241177,{"$f":"VLOOKUP($A174,[5]Nit_Calc_Antianginal!$A$12:$C$345,3,0)","v":670069.22918035102},12446.011034241177,{"$f":"VLOOKUP($A174,[5]Anti_coagulants!$A$11:$C$325,3,0)","v":416875.48983472597},12446.011034241177,{"$f":"VLOOKUP($A174,[5]Beta_Adrenorecepter!$A$11:$C$352,3,0)","v":278838.90023583203},12446.011034241177,{"$f":"VLOOKUP($A174,[5]Anti_platelet!$A$12:$C$335,3,0)","v":184234.730030715},12446.011034241177,{"$f":"VLOOKUP($A174,[5]Diuretics!$A$12:$C$353,3,0)","v":289453.441260755},12446.011034241177,{"$f":"VLOOKUP($A174,[5]Anti_arrhythmic_drugs!$A$11:$C$271,3,0)","v":25465.009999752001},12446.011034241177,{"$f":"VLOOKUP($A174,[5]Positive_Intotropic!$A$12:$C$297,3,0)","v":13966.840008974101},12446.011034241177,{"$f":"VLOOKUP($A174,[5]anti_fibrinolytic!$A$11:$C$287,3,0)","v":5184.0100085735303},12446.011034241177,{"$f":"VLOOKUP($A174,[5]sympathomimetics!$A$11:$C$223,3,0)","v":15942.660009384201},12446.011034241177,{"$f":"VLOOKUP($A174,[5]CVD_All_prescriptions!$A$10:$C$392,3,0)","v":3319273.8211809802},{"$f":"VLOOKUP($A174,[5]CVD_All_prescriptions!$A$10:$C$392,2,0)","v":917488}]
["10G","NHS Bracknell and Ascot",{"$f":"VLOOKUP($A175,[4]CVD_All_prescriptions!$A$10:$D$223,4,0)","v":1919582.31},{"$f":"VLOOKUP($A175,Lookup!$BP$3:$BW$213,7,0)","v":16836.634272358224},{"$f":"VLOOKUP($A175,[4]Lipid_regulators!$A$14:$D$227,4,0)","v":602635.43000000005},16836.634272358224,{"$f":"VLOOKUP($A175,[4]HyperandHeartfailure!$A$13:$D$226,4,0)","v":551500.62},16836.634272358224,{"$f":"VLOOKUP($A175,[4]Nit_Calc_Antianginal!$A$13:$D$226,4,0)","v":302203.06},16836.634272358224,{"$f":"VLOOKUP($A175,[4]Anti_coagulants!$A$15:$D$227,4,0)","v":67584.600000000093},16836.634272358224,{"$f":"VLOOKUP($A175,[4]Beta_Adrenorecepter!$A$13:$D$226,4,0)","v":137648.45000000001},16836.634272358224,{"$f":"VLOOKUP($A175,[4]Anti_platelet!$A$13:$D$226,4,0)","v":109577.77999999899},16836.634272358224,{"$f":"VLOOKUP($A175,[4]Diuretics!$A$11:$D$224,4,0)","v":108500.06},16836.634272358224,{"$f":"VLOOKUP($A175,[4]Anti_arrhythmic_drugs!$A$13:$D$226,4,0)","v":19449.29},16836.634272358224,{"$f":"VLOOKUP($A175,[4]Positive_Intotropic!$A$13:$D$226,4,0)","v":8384.4599999999991},16836.634272358224,{"$f":"VLOOKUP($A175,[4]anti_fibrinolytic!$A$13:$D$226,4,0)","v":7133.57},16836.634272358224,{"$f":"VLOOKUP($A175,[4]sympathomimetics!$A$11:$D$223,4,0)","v":4958.59},16836.634272358224,{"$f":"VLOOKUP($A175,[4]CVD_All_prescriptions!$A$10:$D$223,4,0)","v":1919582.31},{"$f":"VLOOKUP($A175,[4]CVD_All_prescriptions!$A$10:$D$223,3,0)","v":454784},{"$f":"VLOOKUP($A175,[5]CVD_All_prescriptions!$A$10:$C$392,3,0)","v":1743916.7007307201},{"$f":"VLOOKUP($A175,Lookup!$BP$3:$BW$213,8,0)","v":16960.265715340141},{"$f":"VLOOKUP($A175,[5]Lipid_regulators!$A$12:$C$345,3,0)","v":443090.57022088801},16960.265715340141,{"$f":"VLOOKUP($A175,[5]HyperandHeartfailure!$A$12:$C$356,3,0)","v":402597.520134844},16960.265715340141,{"$f":"VLOOKUP($A175,[5]Nit_Calc_Antianginal!$A$12:$C$345,3,0)","v":314918.18989014602},16960.265715340141,{"$f":"VLOOKUP($A175,[5]Anti_coagulants!$A$11:$C$325,3,0)","v":115768.630193114},16960.265715340141,{"$f":"VLOOKUP($A175,[5]Beta_Adrenorecepter!$A$11:$C$352,3,0)","v":162167.02004104899},16960.265715340141,{"$f":"VLOOKUP($A175,[5]Anti_platelet!$A$12:$C$335,3,0)","v":108977.94012582301},16960.265715340141,{"$f":"VLOOKUP($A175,[5]Diuretics!$A$12:$C$353,3,0)","v":153899.32012110899},16960.265715340141,{"$f":"VLOOKUP($A175,[5]Anti_arrhythmic_drugs!$A$11:$C$271,3,0)","v":21998.260028719898},16960.265715340141,{"$f":"VLOOKUP($A175,[5]Positive_Intotropic!$A$12:$C$297,3,0)","v":6839.43998342752},16960.265715340141,{"$f":"VLOOKUP($A175,[5]anti_fibrinolytic!$A$11:$C$287,3,0)","v":6736.8000199794797},16960.265715340141,{"$f":"VLOOKUP($A175,[5]sympathomimetics!$A$11:$C$223,3,0)","v":6923.0099716186496},16960.265715340141,{"$f":"VLOOKUP($A175,[5]CVD_All_prescriptions!$A$10:$C$392,3,0)","v":1743916.7007307201},{"$f":"VLOOKUP($A175,[5]CVD_All_prescriptions!$A$10:$C$392,2,0)","v":462960}]
["10H","NHS Chiltern",{"$f":"VLOOKUP($A176,[4]CVD_All_prescriptions!$A$10:$D$223,4,0)","v":4833003.0999999996},{"$f":"VLOOKUP($A176,Lookup!$BP$3:$BW$213,7,0)","v":35945.175438596496},{"$f":"VLOOKUP($A176,[4]Lipid_regulators!$A$14:$D$227,4,0)","v":1368570.55},35945.175438596496,{"$f":"VLOOKUP($A176,[4]HyperandHeartfailure!$A$13:$D$226,4,0)","v":1445487.16},35945.175438596496,{"$f":"VLOOKUP($A176,[4]Nit_Calc_Antianginal!$A$13:$D$226,4,0)","v":721215.06999999902},35945.175438596496,{"$f":"VLOOKUP($A176,[4]Anti_coagulants!$A$15:$D$227,4,0)","v":287413.78999999899},35945.175438596496,{"$f":"VLOOKUP($A176,[4]Beta_Adrenorecepter!$A$13:$D$226,4,0)","v":321975.96000000002},35945.175438596496,{"$f":"VLOOKUP($A176,[4]Anti_platelet!$A$13:$D$226,4,0)","v":300637.929999999},35945.175438596496,{"$f":"VLOOKUP($A176,[4]Diuretics!$A$11:$D$224,4,0)","v":263651.84999999899},35945.175438596496,{"$f":"VLOOKUP($A176,[4]Anti_arrhythmic_drugs!$A$13:$D$226,4,0)","v":59929.859999999899},35945.175438596496,{"$f":"VLOOKUP($A176,[4]Positive_Intotropic!$A$13:$D$226,4,0)","v":32029.819999999901},35945.175438596496,{"$f":"VLOOKUP($A176,[4]anti_fibrinolytic!$A$13:$D$226,4,0)","v":14045.25},35945.175438596496,{"$f":"VLOOKUP($A176,[4]sympathomimetics!$A$11:$D$223,4,0)","v":8145.86},35945.175438596496,{"$f":"VLOOKUP($A176,[4]CVD_All_prescriptions!$A$10:$D$223,4,0)","v":4833003.0999999996},{"$f":"VLOOKUP($A176,[4]CVD_All_prescriptions!$A$10:$D$223,3,0)","v":1334350},{"$f":"VLOOKUP($A176,[5]CVD_All_prescriptions!$A$10:$C$392,3,0)","v":4605183.4199269405},{"$f":"VLOOKUP($A176,Lookup!$BP$3:$BW$213,8,0)","v":36187.280701754389},{"$f":"VLOOKUP($A176,[5]Lipid_regulators!$A$12:$C$345,3,0)","v":1068897.3704543801},36187.280701754389,{"$f":"VLOOKUP($A176,[5]HyperandHeartfailure!$A$12:$C$356,3,0)","v":1007775.6502516899},36187.280701754389,{"$f":"VLOOKUP($A176,[5]Nit_Calc_Antianginal!$A$12:$C$345,3,0)","v":827453.41951101995},36187.280701754389,{"$f":"VLOOKUP($A176,[5]Anti_coagulants!$A$11:$C$325,3,0)","v":551206.51900473202},36187.280701754389,{"$f":"VLOOKUP($A176,[5]Beta_Adrenorecepter!$A$11:$C$352,3,0)","v":382782.33026211697},36187.280701754389,{"$f":"VLOOKUP($A176,[5]Anti_platelet!$A$12:$C$335,3,0)","v":325157.68959311198},36187.280701754389,{"$f":"VLOOKUP($A176,[5]Diuretics!$A$12:$C$353,3,0)","v":342584.83078675001},36187.280701754389,{"$f":"VLOOKUP($A176,[5]Anti_arrhythmic_drugs!$A$11:$C$271,3,0)","v":53913.010076522798},36187.280701754389,{"$f":"VLOOKUP($A176,[5]Positive_Intotropic!$A$12:$C$297,3,0)","v":27558.1999777034},36187.280701754389,{"$f":"VLOOKUP($A176,[5]anti_fibrinolytic!$A$11:$C$287,3,0)","v":12447.6500194073},36187.280701754389,{"$f":"VLOOKUP($A176,[5]sympathomimetics!$A$11:$C$223,3,0)","v":5406.7499895095798},36187.280701754389,{"$f":"VLOOKUP($A176,[5]CVD_All_prescriptions!$A$10:$C$392,3,0)","v":4605183.4199269405},{"$f":"VLOOKUP($A176,[5]CVD_All_prescriptions!$A$10:$C$392,2,0)","v":1373064}]
["10J","NHS North Hampshire",{"$f":"VLOOKUP($A177,[4]CVD_All_prescriptions!$A$10:$D$223,4,0)","v":3132088.25},{"$f":"VLOOKUP($A177,Lookup!$BP$3:$BW$213,7,0)","v":24918.271435121504},{"$f":"VLOOKUP($A177,[4]Lipid_regulators!$A$14:$D$227,4,0)","v":812491.70000000403},24918.271435121504,{"$f":"VLOOKUP($A177,[4]HyperandHeartfailure!$A$13:$D$226,4,0)","v":879401.80999999901},24918.271435121504,{"$f":"VLOOKUP($A177,[4]Nit_Calc_Antianginal!$A$13:$D$226,4,0)","v":486794.32},24918.271435121504,{"$f":"VLOOKUP($A177,[4]Anti_coagulants!$A$15:$D$227,4,0)","v":248574.46999999901},24918.271435121504,{"$f":"VLOOKUP($A177,[4]Beta_Adrenorecepter!$A$13:$D$226,4,0)","v":214656.49},24918.271435121504,{"$f":"VLOOKUP($A177,[4]Anti_platelet!$A$13:$D$226,4,0)","v":197734.739999999},24918.271435121504,{"$f":"VLOOKUP($A177,[4]Diuretics!$A$11:$D$224,4,0)","v":195522.37},24918.271435121504,{"$f":"VLOOKUP($A177,[4]Anti_arrhythmic_drugs!$A$13:$D$226,4,0)","v":53956.07},24918.271435121504,{"$f":"VLOOKUP($A177,[4]Positive_Intotropic!$A$13:$D$226,4,0)","v":18787.490000000002},24918.271435121504,{"$f":"VLOOKUP($A177,[4]anti_fibrinolytic!$A$13:$D$226,4,0)","v":18037.23},24918.271435121504,{"$f":"VLOOKUP($A177,[4]sympathomimetics!$A$11:$D$223,4,0)","v":6131.56},24918.271435121504,{"$f":"VLOOKUP($A177,[4]CVD_All_prescriptions!$A$10:$D$223,4,0)","v":3132088.25},{"$f":"VLOOKUP($A177,[4]CVD_All_prescriptions!$A$10:$D$223,3,0)","v":913728},{"$f":"VLOOKUP($A177,[5]CVD_All_prescriptions!$A$10:$C$392,3,0)","v":3088541.5122165},{"$f":"VLOOKUP($A177,Lookup!$BP$3:$BW$213,8,0)","v":25098.005502063272},{"$f":"VLOOKUP($A177,[5]Lipid_regulators!$A$12:$C$345,3,0)","v":666336.83033394802},25098.005502063272,{"$f":"VLOOKUP($A177,[5]HyperandHeartfailure!$A$12:$C$356,3,0)","v":679473.98037581902},25098.005502063272,{"$f":"VLOOKUP($A177,[5]Nit_Calc_Antianginal!$A$12:$C$345,3,0)","v":510216.76945599902},25098.005502063272,{"$f":"VLOOKUP($A177,[5]Anti_coagulants!$A$11:$C$325,3,0)","v":374392.05053152097},25098.005502063272,{"$f":"VLOOKUP($A177,[5]Beta_Adrenorecepter!$A$11:$C$352,3,0)","v":283226.00002437801},25098.005502063272,{"$f":"VLOOKUP($A177,[5]Anti_platelet!$A$12:$C$335,3,0)","v":211056.28043404201},25098.005502063272,{"$f":"VLOOKUP($A177,[5]Diuretics!$A$12:$C$353,3,0)","v":271465.89093252498},25098.005502063272,{"$f":"VLOOKUP($A177,[5]Anti_arrhythmic_drugs!$A$11:$C$271,3,0)","v":49741.900029689103},25098.005502063272,{"$f":"VLOOKUP($A177,[5]Positive_Intotropic!$A$12:$C$297,3,0)","v":16934.790023967598},25098.005502063272,{"$f":"VLOOKUP($A177,[5]anti_fibrinolytic!$A$11:$C$287,3,0)","v":13716.2100255489},25098.005502063272,{"$f":"VLOOKUP($A177,[5]sympathomimetics!$A$11:$C$223,3,0)","v":11980.810049057},25098.005502063272,{"$f":"VLOOKUP($A177,[5]CVD_All_prescriptions!$A$10:$C$392,3,0)","v":3088541.5122165},{"$f":"VLOOKUP($A177,[5]CVD_All_prescriptions!$A$10:$C$392,2,0)","v":966953}]
["10K","NHS Fareham and Gosport",{"$f":"VLOOKUP($A178,[4]CVD_All_prescriptions!$A$10:$D$223,4,0)","v":4434196.1399999997},{"$f":"VLOOKUP($A178,Lookup!$BP$3:$BW$213,7,0)","v":19838.005923000987},{"$f":"VLOOKUP($A178,[4]Lipid_regulators!$A$14:$D$227,4,0)","v":1131413.97},19838.005923000987,{"$f":"VLOOKUP($A178,[4]HyperandHeartfailure!$A$13:$D$226,4,0)","v":1099239.71},19838.005923000987,{"$f":"VLOOKUP($A178,[4]Nit_Calc_Antianginal!$A$13:$D$226,4,0)","v":749075.44},19838.005923000987,{"$f":"VLOOKUP($A178,[4]Anti_coagulants!$A$15:$D$227,4,0)","v":397074.5},19838.005923000987,{"$f":"VLOOKUP($A178,[4]Beta_Adrenorecepter!$A$13:$D$226,4,0)","v":421121.60000000102},19838.005923000987,{"$f":"VLOOKUP($A178,[4]Anti_platelet!$A$13:$D$226,4,0)","v":288197.62},19838.005923000987,{"$f":"VLOOKUP($A178,[4]Diuretics!$A$11:$D$224,4,0)","v":251806.41},19838.005923000987,{"$f":"VLOOKUP($A178,[4]Anti_arrhythmic_drugs!$A$13:$D$226,4,0)","v":58921.02},19838.005923000987,{"$f":"VLOOKUP($A178,[4]Positive_Intotropic!$A$13:$D$226,4,0)","v":19788.060000000001},19838.005923000987,{"$f":"VLOOKUP($A178,[4]anti_fibrinolytic!$A$13:$D$226,4,0)","v":14901.41},19838.005923000987,{"$f":"VLOOKUP($A178,[4]sympathomimetics!$A$11:$D$223,4,0)","v":2656.4},19838.005923000987,{"$f":"VLOOKUP($A178,[4]CVD_All_prescriptions!$A$10:$D$223,4,0)","v":4434196.1399999997},{"$f":"VLOOKUP($A178,[4]CVD_All_prescriptions!$A$10:$D$223,3,0)","v":945344},{"$f":"VLOOKUP($A178,[5]CVD_All_prescriptions!$A$10:$C$392,3,0)","v":4422898.5210037204},{"$f":"VLOOKUP($A178,Lookup!$BP$3:$BW$213,8,0)","v":19900.888450148075},{"$f":"VLOOKUP($A178,[5]Lipid_regulators!$A$12:$C$345,3,0)","v":940170.81915175903},19900.888450148075,{"$f":"VLOOKUP($A178,[5]HyperandHeartfailure!$A$12:$C$356,3,0)","v":808180.10030528903},19900.888450148075,{"$f":"VLOOKUP($A178,[5]Nit_Calc_Antianginal!$A$12:$C$345,3,0)","v":761166.71971714497},19900.888450148075,{"$f":"VLOOKUP($A178,[5]Anti_coagulants!$A$11:$C$325,3,0)","v":688304.11969214701},19900.888450148075,{"$f":"VLOOKUP($A178,[5]Beta_Adrenorecepter!$A$11:$C$352,3,0)","v":481429.530602813},19900.888450148075,{"$f":"VLOOKUP($A178,[5]Anti_platelet!$A$12:$C$335,3,0)","v":290959.419899464},19900.888450148075,{"$f":"VLOOKUP($A178,[5]Diuretics!$A$12:$C$353,3,0)","v":358909.191723764},19900.888450148075,{"$f":"VLOOKUP($A178,[5]Anti_arrhythmic_drugs!$A$11:$C$271,3,0)","v":61266.110002458103},19900.888450148075,{"$f":"VLOOKUP($A178,[5]Positive_Intotropic!$A$12:$C$297,3,0)","v":16200.8899872005},19900.888450148075,{"$f":"VLOOKUP($A178,[5]anti_fibrinolytic!$A$11:$C$287,3,0)","v":11475.8599872589},19900.888450148075,{"$f":"VLOOKUP($A178,[5]sympathomimetics!$A$11:$C$223,3,0)","v":4835.7599344253504},19900.888450148075,{"$f":"VLOOKUP($A178,[5]CVD_All_prescriptions!$A$10:$C$392,3,0)","v":4422898.5210037204},{"$f":"VLOOKUP($A178,[5]CVD_All_prescriptions!$A$10:$C$392,2,0)","v":951526}]
["10L","NHS Isle Of Wight",{"$f":"VLOOKUP($A179,[4]CVD_All_prescriptions!$A$10:$D$223,4,0)","v":2920415.6099999901},{"$f":"VLOOKUP($A179,Lookup!$BP$3:$BW$213,7,0)","v":11703.357591796228},{"$f":"VLOOKUP($A179,[4]Lipid_regulators!$A$14:$D$227,4,0)","v":999998.00000000303},11703.357591796228,{"$f":"VLOOKUP($A179,[4]HyperandHeartfailure!$A$13:$D$226,4,0)","v":597484.36999999895},11703.357591796228,{"$f":"VLOOKUP($A179,[4]Nit_Calc_Antianginal!$A$13:$D$226,4,0)","v":468386.63},11703.357591796228,{"$f":"VLOOKUP($A179,[4]Anti_coagulants!$A$15:$D$227,4,0)","v":188520.55},11703.357591796228,{"$f":"VLOOKUP($A179,[4]Beta_Adrenorecepter!$A$13:$D$226,4,0)","v":228689.009999998},11703.357591796228,{"$f":"VLOOKUP($A179,[4]Anti_platelet!$A$13:$D$226,4,0)","v":213650.84999999899},11703.357591796228,{"$f":"VLOOKUP($A179,[4]Diuretics!$A$11:$D$224,4,0)","v":178146.39},11703.357591796228,{"$f":"VLOOKUP($A179,[4]Anti_arrhythmic_drugs!$A$13:$D$226,4,0)","v":25745.71},11703.357591796228,{"$f":"VLOOKUP($A179,[4]Positive_Intotropic!$A$13:$D$226,4,0)","v":10424.950000000001},11703.357591796228,{"$f":"VLOOKUP($A179,[4]anti_fibrinolytic!$A$13:$D$226,4,0)","v":8472.27},11703.357591796228,{"$f":"VLOOKUP($A179,[4]sympathomimetics!$A$11:$D$223,4,0)","v":896.88},11703.357591796228,{"$f":"VLOOKUP($A179,[4]CVD_All_prescriptions!$A$10:$D$223,4,0)","v":2920415.6099999901},{"$f":"VLOOKUP($A179,[4]CVD_All_prescriptions!$A$10:$D$223,3,0)","v":1021063},{"$f":"VLOOKUP($A179,[5]CVD_All_prescriptions!$A$10:$C$392,3,0)","v":2893229.91231531},{"$f":"VLOOKUP($A179,Lookup!$BP$3:$BW$213,8,0)","v":11706.417466093284},{"$f":"VLOOKUP($A179,[5]Lipid_regulators!$A$12:$C$345,3,0)","v":834122.78118694597},11706.417466093284,{"$f":"VLOOKUP($A179,[5]HyperandHeartfailure!$A$12:$C$356,3,0)","v":535013.78985402698},11706.417466093284,{"$f":"VLOOKUP($A179,[5]Nit_Calc_Antianginal!$A$12:$C$345,3,0)","v":495747.16975653201},11706.417466093284,{"$f":"VLOOKUP($A179,[5]Anti_coagulants!$A$11:$C$325,3,0)","v":260326.98007952399},11706.417466093284,{"$f":"VLOOKUP($A179,[5]Beta_Adrenorecepter!$A$11:$C$352,3,0)","v":268360.92020638299},11706.417466093284,{"$f":"VLOOKUP($A179,[5]Anti_platelet!$A$12:$C$335,3,0)","v":216462.58029693001},11706.417466093284,{"$f":"VLOOKUP($A179,[5]Diuretics!$A$12:$C$353,3,0)","v":236140.050859107},11706.417466093284,{"$f":"VLOOKUP($A179,[5]Anti_arrhythmic_drugs!$A$11:$C$271,3,0)","v":23957.120012879401},11706.417466093284,{"$f":"VLOOKUP($A179,[5]Positive_Intotropic!$A$12:$C$297,3,0)","v":9466.6099949479103},11706.417466093284,{"$f":"VLOOKUP($A179,[5]anti_fibrinolytic!$A$11:$C$287,3,0)","v":7060.8500151634198},11706.417466093284,{"$f":"VLOOKUP($A179,[5]sympathomimetics!$A$11:$C$223,3,0)","v":6571.0600528716996},11706.417466093284,{"$f":"VLOOKUP($A179,[5]CVD_All_prescriptions!$A$10:$C$392,3,0)","v":2893229.91231531},{"$f":"VLOOKUP($A179,[5]CVD_All_prescriptions!$A$10:$C$392,2,0)","v":1048034}]
["10M","NHS Newbury and District",{"$f":"VLOOKUP($A180,[4]CVD_All_prescriptions!$A$10:$D$223,4,0)","v":1625461.55},{"$f":"VLOOKUP($A180,Lookup!$BP$3:$BW$213,7,0)","v":12876.667787868595},{"$f":"VLOOKUP($A180,[4]Lipid_regulators!$A$14:$D$227,4,0)","v":480180.70000000199},12876.667787868595,{"$f":"VLOOKUP($A180,[4]HyperandHeartfailure!$A$13:$D$226,4,0)","v":385996.69},12876.667787868595,{"$f":"VLOOKUP($A180,[4]Nit_Calc_Antianginal!$A$13:$D$226,4,0)","v":282131.78000000003},12876.667787868595,{"$f":"VLOOKUP($A180,[4]Anti_coagulants!$A$15:$D$227,4,0)","v":141907.65},12876.667787868595,{"$f":"VLOOKUP($A180,[4]Beta_Adrenorecepter!$A$13:$D$226,4,0)","v":124967.05},12876.667787868595,{"$f":"VLOOKUP($A180,[4]Anti_platelet!$A$13:$D$226,4,0)","v":89665.7399999997},12876.667787868595,{"$f":"VLOOKUP($A180,[4]Diuretics!$A$11:$D$224,4,0)","v":89244.830000000293},12876.667787868595,{"$f":"VLOOKUP($A180,[4]Anti_arrhythmic_drugs!$A$13:$D$226,4,0)","v":15567.75},12876.667787868595,{"$f":"VLOOKUP($A180,[4]Positive_Intotropic!$A$13:$D$226,4,0)","v":8629.9500000000007},12876.667787868595,{"$f":"VLOOKUP($A180,[4]anti_fibrinolytic!$A$13:$D$226,4,0)","v":4939.07},12876.667787868595,{"$f":"VLOOKUP($A180,[4]sympathomimetics!$A$11:$D$223,4,0)","v":2230.34},12876.667787868595,{"$f":"VLOOKUP($A180,[4]CVD_All_prescriptions!$A$10:$D$223,4,0)","v":1625461.55},{"$f":"VLOOKUP($A180,[4]CVD_All_prescriptions!$A$10:$D$223,3,0)","v":564325},{"$f":"VLOOKUP($A180,[5]CVD_All_prescriptions!$A$10:$C$392,3,0)","v":1621331.45089754},{"$f":"VLOOKUP($A180,Lookup!$BP$3:$BW$213,8,0)","v":12966.363942145979},{"$f":"VLOOKUP($A180,[5]Lipid_regulators!$A$12:$C$345,3,0)","v":386566.64046669001},12966.363942145979,{"$f":"VLOOKUP($A180,[5]HyperandHeartfailure!$A$12:$C$356,3,0)","v":335515.48997127998},12966.363942145979,{"$f":"VLOOKUP($A180,[5]Nit_Calc_Antianginal!$A$12:$C$345,3,0)","v":287133.190018058},12966.363942145979,{"$f":"VLOOKUP($A180,[5]Anti_coagulants!$A$11:$C$325,3,0)","v":207126.34010267301},12966.363942145979,{"$f":"VLOOKUP($A180,[5]Beta_Adrenorecepter!$A$11:$C$352,3,0)","v":144809.950158536},12966.363942145979,{"$f":"VLOOKUP($A180,[5]Anti_platelet!$A$12:$C$335,3,0)","v":97177.940051644997},12966.363942145979,{"$f":"VLOOKUP($A180,[5]Diuretics!$A$12:$C$353,3,0)","v":127960.220171154},12966.363942145979,{"$f":"VLOOKUP($A180,[5]Anti_arrhythmic_drugs!$A$11:$C$271,3,0)","v":14946.7100174427},12966.363942145979,{"$f":"VLOOKUP($A180,[5]Positive_Intotropic!$A$12:$C$297,3,0)","v":7020.6799815893201},12966.363942145979,{"$f":"VLOOKUP($A180,[5]anti_fibrinolytic!$A$11:$C$287,3,0)","v":3704.5200114250201},12966.363942145979,{"$f":"VLOOKUP($A180,[5]sympathomimetics!$A$11:$C$223,3,0)","v":9369.7699470520001},12966.363942145979,{"$f":"VLOOKUP($A180,[5]CVD_All_prescriptions!$A$10:$C$392,3,0)","v":1621331.45089754},{"$f":"VLOOKUP($A180,[5]CVD_All_prescriptions!$A$10:$C$392,2,0)","v":576939}]
["10N","NHS North & West Reading",{"$f":"VLOOKUP($A181,[4]CVD_All_prescriptions!$A$10:$D$223,4,0)","v":1634442.04},{"$f":"VLOOKUP($A181,Lookup!$BP$3:$BW$213,7,0)","v":12110.275970383667},{"$f":"VLOOKUP($A181,[4]Lipid_regulators!$A$14:$D$227,4,0)","v":493324.70000000298},12110.275970383667,{"$f":"VLOOKUP($A181,[4]HyperandHeartfailure!$A$13:$D$226,4,0)","v":410415.18},12110.275970383667,{"$f":"VLOOKUP($A181,[4]Nit_Calc_Antianginal!$A$13:$D$226,4,0)","v":297963.53999999998},12110.275970383667,{"$f":"VLOOKUP($A181,[4]Anti_coagulants!$A$15:$D$227,4,0)","v":105018.23},12110.275970383667,{"$f":"VLOOKUP($A181,[4]Beta_Adrenorecepter!$A$13:$D$226,4,0)","v":111264.7},12110.275970383667,{"$f":"VLOOKUP($A181,[4]Anti_platelet!$A$13:$D$226,4,0)","v":85121.309999999794},12110.275970383667,{"$f":"VLOOKUP($A181,[4]Diuretics!$A$11:$D$224,4,0)","v":97631.690000000104},12110.275970383667,{"$f":"VLOOKUP($A181,[4]Anti_arrhythmic_drugs!$A$13:$D$226,4,0)","v":20199.64},12110.275970383667,{"$f":"VLOOKUP($A181,[4]Positive_Intotropic!$A$13:$D$226,4,0)","v":6900.0700000000097},12110.275970383667,{"$f":"VLOOKUP($A181,[4]anti_fibrinolytic!$A$13:$D$226,4,0)","v":6236.54},12110.275970383667,{"$f":"VLOOKUP($A181,[4]sympathomimetics!$A$11:$D$223,4,0)","v":366.44},12110.275970383667,{"$f":"VLOOKUP($A181,[4]CVD_All_prescriptions!$A$10:$D$223,4,0)","v":1634442.04},{"$f":"VLOOKUP($A181,[4]CVD_All_prescriptions!$A$10:$D$223,3,0)","v":535424},{"$f":"VLOOKUP($A181,[5]CVD_All_prescriptions!$A$10:$C$392,3,0)","v":1580372.9506588301},{"$f":"VLOOKUP($A181,Lookup!$BP$3:$BW$213,8,0)","v":12238.38905093112},{"$f":"VLOOKUP($A181,[5]Lipid_regulators!$A$12:$C$345,3,0)","v":396175.98028248502},12238.38905093112,{"$f":"VLOOKUP($A181,[5]HyperandHeartfailure!$A$12:$C$356,3,0)","v":331849.06022346002},12238.38905093112,{"$f":"VLOOKUP($A181,[5]Nit_Calc_Antianginal!$A$12:$C$345,3,0)","v":299181.80966705101},12238.38905093112,{"$f":"VLOOKUP($A181,[5]Anti_coagulants!$A$11:$C$325,3,0)","v":180844.39988651901},12238.38905093112,{"$f":"VLOOKUP($A181,[5]Beta_Adrenorecepter!$A$11:$C$352,3,0)","v":128981.180182695},12238.38905093112,{"$f":"VLOOKUP($A181,[5]Anti_platelet!$A$12:$C$335,3,0)","v":82166.480040311799},12238.38905093112,{"$f":"VLOOKUP($A181,[5]Diuretics!$A$12:$C$353,3,0)","v":135907.03033661799},12238.38905093112,{"$f":"VLOOKUP($A181,[5]Anti_arrhythmic_drugs!$A$11:$C$271,3,0)","v":13780.9300236702},12238.38905093112,{"$f":"VLOOKUP($A181,[5]Positive_Intotropic!$A$12:$C$297,3,0)","v":5621.8099902868298},12238.38905093112,{"$f":"VLOOKUP($A181,[5]anti_fibrinolytic!$A$11:$C$287,3,0)","v":4629.5000138282803},12238.38905093112,{"$f":"VLOOKUP($A181,[5]sympathomimetics!$A$11:$C$223,3,0)","v":1234.77001190186},12238.38905093112,{"$f":"VLOOKUP($A181,[5]CVD_All_prescriptions!$A$10:$C$392,3,0)","v":1580372.9506588301},{"$f":"VLOOKUP($A181,[5]CVD_All_prescriptions!$A$10:$C$392,2,0)","v":553016}]
["10Q","NHS Oxfordshire",{"$f":"VLOOKUP($A182,[4]CVD_All_prescriptions!$A$10:$D$223,4,0)","v":9341962.3900000304},{"$f":"VLOOKUP($A182,Lookup!$BP$3:$BW$213,7,0)","v":78054.586381541929},{"$f":"VLOOKUP($A182,[4]Lipid_regulators!$A$14:$D$227,4,0)","v":2554755.1800000099},78054.586381541929,{"$f":"VLOOKUP($A182,[4]HyperandHeartfailure!$A$13:$D$226,4,0)","v":2599524.34},78054.586381541929,{"$f":"VLOOKUP($A182,[4]Nit_Calc_Antianginal!$A$13:$D$226,4,0)","v":1348531.69},78054.586381541929,{"$f":"VLOOKUP($A182,[4]Anti_coagulants!$A$15:$D$227,4,0)","v":843720.31000000401},78054.586381541929,{"$f":"VLOOKUP($A182,[4]Beta_Adrenorecepter!$A$13:$D$226,4,0)","v":643517.88000000501},78054.586381541929,{"$f":"VLOOKUP($A182,[4]Anti_platelet!$A$13:$D$226,4,0)","v":554641.37},78054.586381541929,{"$f":"VLOOKUP($A182,[4]Diuretics!$A$11:$D$224,4,0)","v":606565.19999999297},78054.586381541929,{"$f":"VLOOKUP($A182,[4]Anti_arrhythmic_drugs!$A$13:$D$226,4,0)","v":64477.529999999599},78054.586381541929,{"$f":"VLOOKUP($A182,[4]Positive_Intotropic!$A$13:$D$226,4,0)","v":65775.669999999707},78054.586381541929,{"$f":"VLOOKUP($A182,[4]anti_fibrinolytic!$A$13:$D$226,4,0)","v":42688.650000000103},78054.586381541929,{"$f":"VLOOKUP($A182,[4]sympathomimetics!$A$11:$D$223,4,0)","v":17764.57},78054.586381541929,{"$f":"VLOOKUP($A182,[4]CVD_All_prescriptions!$A$10:$D$223,4,0)","v":9341962.3900000304},{"$f":"VLOOKUP($A182,[4]CVD_All_prescriptions!$A$10:$D$223,3,0)","v":3022877},{"$f":"VLOOKUP($A182,[5]CVD_All_prescriptions!$A$10:$C$392,3,0)","v":9276587.7447133698},{"$f":"VLOOKUP($A182,Lookup!$BP$3:$BW$213,8,0)","v":78845.357343837924},{"$f":"VLOOKUP($A182,[5]Lipid_regulators!$A$12:$C$345,3,0)","v":2011943.36070055},78845.357343837924,{"$f":"VLOOKUP($A182,[5]HyperandHeartfailure!$A$12:$C$356,3,0)","v":2066675.31968101},78845.357343837924,{"$f":"VLOOKUP($A182,[5]Nit_Calc_Antianginal!$A$12:$C$345,3,0)","v":1544361.2100905499},78845.357343837924,{"$f":"VLOOKUP($A182,[5]Anti_coagulants!$A$11:$C$325,3,0)","v":1169939.4607042701},78845.357343837924,{"$f":"VLOOKUP($A182,[5]Beta_Adrenorecepter!$A$11:$C$352,3,0)","v":774013.21045060502},78845.357343837924,{"$f":"VLOOKUP($A182,[5]Anti_platelet!$A$12:$C$335,3,0)","v":641630.40002524899},78845.357343837924,{"$f":"VLOOKUP($A182,[5]Diuretics!$A$12:$C$353,3,0)","v":896110.05288693297},78845.357343837924,{"$f":"VLOOKUP($A182,[5]Anti_arrhythmic_drugs!$A$11:$C$271,3,0)","v":54393.439977914102},78845.357343837924,{"$f":"VLOOKUP($A182,[5]Positive_Intotropic!$A$12:$C$297,3,0)","v":55093.239986062101},78845.357343837924,{"$f":"VLOOKUP($A182,[5]anti_fibrinolytic!$A$11:$C$287,3,0)","v":34670.200074434302},78845.357343837924,{"$f":"VLOOKUP($A182,[5]sympathomimetics!$A$11:$C$223,3,0)","v":27757.850135803201},78845.357343837924,{"$f":"VLOOKUP($A182,[5]CVD_All_prescriptions!$A$10:$C$392,3,0)","v":9276587.7447133698},{"$f":"VLOOKUP($A182,[5]CVD_All_prescriptions!$A$10:$C$392,2,0)","v":3108909}]
["10R","NHS Portsmouth",{"$f":"VLOOKUP($A183,[4]CVD_All_prescriptions!$A$10:$D$223,4,0)","v":3700396.27},{"$f":"VLOOKUP($A183,Lookup!$BP$3:$BW$213,7,0)","v":25186.277912761772},{"$f":"VLOOKUP($A183,[4]Lipid_regulators!$A$14:$D$227,4,0)","v":900949.850000003},25186.277912761772,{"$f":"VLOOKUP($A183,[4]HyperandHeartfailure!$A$13:$D$226,4,0)","v":817485.12999999896},25186.277912761772,{"$f":"VLOOKUP($A183,[4]Nit_Calc_Antianginal!$A$13:$D$226,4,0)","v":636628.34},25186.277912761772,{"$f":"VLOOKUP($A183,[4]Anti_coagulants!$A$15:$D$227,4,0)","v":380423.36999999802},25186.277912761772,{"$f":"VLOOKUP($A183,[4]Beta_Adrenorecepter!$A$13:$D$226,4,0)","v":380469.48000000202},25186.277912761772,{"$f":"VLOOKUP($A183,[4]Anti_platelet!$A$13:$D$226,4,0)","v":276010.67999999801},25186.277912761772,{"$f":"VLOOKUP($A183,[4]Diuretics!$A$11:$D$224,4,0)","v":223638.1},25186.277912761772,{"$f":"VLOOKUP($A183,[4]Anti_arrhythmic_drugs!$A$13:$D$226,4,0)","v":48224.65},25186.277912761772,{"$f":"VLOOKUP($A183,[4]Positive_Intotropic!$A$13:$D$226,4,0)","v":18256.09},25186.277912761772,{"$f":"VLOOKUP($A183,[4]anti_fibrinolytic!$A$13:$D$226,4,0)","v":17087.23},25186.277912761772,{"$f":"VLOOKUP($A183,[4]sympathomimetics!$A$11:$D$223,4,0)","v":1223.3499999999999},25186.277912761772,{"$f":"VLOOKUP($A183,[4]CVD_All_prescriptions!$A$10:$D$223,4,0)","v":3700396.27},{"$f":"VLOOKUP($A183,[4]CVD_All_prescriptions!$A$10:$D$223,3,0)","v":904321},{"$f":"VLOOKUP($A183,[5]CVD_All_prescriptions!$A$10:$C$392,3,0)","v":3783529.8928116402},{"$f":"VLOOKUP($A183,Lookup!$BP$3:$BW$213,8,0)","v":25300.474372324421},{"$f":"VLOOKUP($A183,[5]Lipid_regulators!$A$12:$C$345,3,0)","v":752267.281223848},25300.474372324421,{"$f":"VLOOKUP($A183,[5]HyperandHeartfailure!$A$12:$C$356,3,0)","v":622806.70974185294},25300.474372324421,{"$f":"VLOOKUP($A183,[5]Nit_Calc_Antianginal!$A$12:$C$345,3,0)","v":667125.53952090396},25300.474372324421,{"$f":"VLOOKUP($A183,[5]Anti_coagulants!$A$11:$C$325,3,0)","v":611271.36982948298},25300.474372324421,{"$f":"VLOOKUP($A183,[5]Beta_Adrenorecepter!$A$11:$C$352,3,0)","v":431480.26047770702},25300.474372324421,{"$f":"VLOOKUP($A183,[5]Anti_platelet!$A$12:$C$335,3,0)","v":288475.56044034299},25300.474372324421,{"$f":"VLOOKUP($A183,[5]Diuretics!$A$12:$C$353,3,0)","v":319047.12147851998},25300.474372324421,{"$f":"VLOOKUP($A183,[5]Anti_arrhythmic_drugs!$A$11:$C$271,3,0)","v":52923.690053284197},25300.474372324421,{"$f":"VLOOKUP($A183,[5]Positive_Intotropic!$A$12:$C$297,3,0)","v":15029.6600228772},25300.474372324421,{"$f":"VLOOKUP($A183,[5]anti_fibrinolytic!$A$11:$C$287,3,0)","v":18064.840045094501},25300.474372324421,{"$f":"VLOOKUP($A183,[5]sympathomimetics!$A$11:$C$223,3,0)","v":5037.8599777221698},25300.474372324421,{"$f":"VLOOKUP($A183,[5]CVD_All_prescriptions!$A$10:$C$392,3,0)","v":3783529.8928116402},{"$f":"VLOOKUP($A183,[5]CVD_All_prescriptions!$A$10:$C$392,2,0)","v":914217}]
["10T","NHS Slough",{"$f":"VLOOKUP($A184,[4]CVD_All_prescriptions!$A$10:$D$223,4,0)","v":2020979.86},{"$f":"VLOOKUP($A184,Lookup!$BP$3:$BW$213,7,0)","v":21828.125},{"$f":"VLOOKUP($A184,[4]Lipid_regulators!$A$14:$D$227,4,0)","v":605086.08000000298},21828.125,{"$f":"VLOOKUP($A184,[4]HyperandHeartfailure!$A$13:$D$226,4,0)","v":620757.98},21828.125,{"$f":"VLOOKUP($A184,[4]Nit_Calc_Antianginal!$A$13:$D$226,4,0)","v":348511.59},21828.125,{"$f":"VLOOKUP($A184,[4]Anti_coagulants!$A$15:$D$227,4,0)","v":34879.4},21828.125,{"$f":"VLOOKUP($A184,[4]Beta_Adrenorecepter!$A$13:$D$226,4,0)","v":124203.08},21828.125,{"$f":"VLOOKUP($A184,[4]Anti_platelet!$A$13:$D$226,4,0)","v":162814.139999999},21828.125,{"$f":"VLOOKUP($A184,[4]Diuretics!$A$11:$D$224,4,0)","v":91512.720000000103},21828.125,{"$f":"VLOOKUP($A184,[4]Anti_arrhythmic_drugs!$A$13:$D$226,4,0)","v":8169.38},21828.125,{"$f":"VLOOKUP($A184,[4]Positive_Intotropic!$A$13:$D$226,4,0)","v":6289.75000000001},21828.125,{"$f":"VLOOKUP($A184,[4]anti_fibrinolytic!$A$13:$D$226,4,0)","v":10804.69},21828.125,{"$f":"VLOOKUP($A184,[4]sympathomimetics!$A$11:$D$223,4,0)","v":7951.05},21828.125,{"$f":"VLOOKUP($A184,[4]CVD_All_prescriptions!$A$10:$D$223,4,0)","v":2020979.86},{"$f":"VLOOKUP($A184,[4]CVD_All_prescriptions!$A$10:$D$223,3,0)","v":627733},{"$f":"VLOOKUP($A184,[5]CVD_All_prescriptions!$A$10:$C$392,3,0)","v":1739126.62088257},{"$f":"VLOOKUP($A184,Lookup!$BP$3:$BW$213,8,0)","v":21850.59523809524},{"$f":"VLOOKUP($A184,[5]Lipid_regulators!$A$12:$C$345,3,0)","v":444846.32043671602},21850.59523809524,{"$f":"VLOOKUP($A184,[5]HyperandHeartfailure!$A$12:$C$356,3,0)","v":415829.03032499598},21850.59523809524,{"$f":"VLOOKUP($A184,[5]Nit_Calc_Antianginal!$A$12:$C$345,3,0)","v":356704.029665276},21850.59523809524,{"$f":"VLOOKUP($A184,[5]Anti_coagulants!$A$11:$C$325,3,0)","v":55462.569898575501},21850.59523809524,{"$f":"VLOOKUP($A184,[5]Beta_Adrenorecepter!$A$11:$C$352,3,0)","v":136172.66000020501},21850.59523809524,{"$f":"VLOOKUP($A184,[5]Anti_platelet!$A$12:$C$335,3,0)","v":180544.890041426},21850.59523809524,{"$f":"VLOOKUP($A184,[5]Diuretics!$A$12:$C$353,3,0)","v":121913.36043801899},21850.59523809524,{"$f":"VLOOKUP($A184,[5]Anti_arrhythmic_drugs!$A$11:$C$271,3,0)","v":5418.3100004196203},21850.59523809524,{"$f":"VLOOKUP($A184,[5]Positive_Intotropic!$A$12:$C$297,3,0)","v":5129.7999972104999},21850.59523809524,{"$f":"VLOOKUP($A184,[5]anti_fibrinolytic!$A$11:$C$287,3,0)","v":7890.7700147628802},21850.59523809524,{"$f":"VLOOKUP($A184,[5]sympathomimetics!$A$11:$C$223,3,0)","v":9214.8800649642908},21850.59523809524,{"$f":"VLOOKUP($A184,[5]CVD_All_prescriptions!$A$10:$C$392,3,0)","v":1739126.62088257},{"$f":"VLOOKUP($A184,[5]CVD_All_prescriptions!$A$10:$C$392,2,0)","v":661584}]
["10V","NHS South Eastern Hampshire",{"$f":"VLOOKUP($A185,[4]CVD_All_prescriptions!$A$10:$D$223,4,0)","v":4584611.4000000004},{"$f":"VLOOKUP($A185,Lookup!$BP$3:$BW$213,7,0)","v":19133.583592748579},{"$f":"VLOOKUP($A185,[4]Lipid_regulators!$A$14:$D$227,4,0)","v":1188863.1599999999},19133.583592748579,{"$f":"VLOOKUP($A185,[4]HyperandHeartfailure!$A$13:$D$226,4,0)","v":1106621.08},19133.583592748579,{"$f":"VLOOKUP($A185,[4]Nit_Calc_Antianginal!$A$13:$D$226,4,0)","v":750600.31},19133.583592748579,{"$f":"VLOOKUP($A185,[4]Anti_coagulants!$A$15:$D$227,4,0)","v":430790.04999999801},19133.583592748579,{"$f":"VLOOKUP($A185,[4]Beta_Adrenorecepter!$A$13:$D$226,4,0)","v":432985.44000000198},19133.583592748579,{"$f":"VLOOKUP($A185,[4]Anti_platelet!$A$13:$D$226,4,0)","v":300669.83999999799},19133.583592748579,{"$f":"VLOOKUP($A185,[4]Diuretics!$A$11:$D$224,4,0)","v":273144.99},19133.583592748579,{"$f":"VLOOKUP($A185,[4]Anti_arrhythmic_drugs!$A$13:$D$226,4,0)","v":60741.169999999896},19133.583592748579,{"$f":"VLOOKUP($A185,[4]Positive_Intotropic!$A$13:$D$226,4,0)","v":22217.45},19133.583592748579,{"$f":"VLOOKUP($A185,[4]anti_fibrinolytic!$A$13:$D$226,4,0)","v":15621.56},19133.583592748579,{"$f":"VLOOKUP($A185,[4]sympathomimetics!$A$11:$D$223,4,0)","v":2356.35},19133.583592748579,{"$f":"VLOOKUP($A185,[4]CVD_All_prescriptions!$A$10:$D$223,4,0)","v":4584611.4000000004},{"$f":"VLOOKUP($A185,[4]CVD_All_prescriptions!$A$10:$D$223,3,0)","v":1063956},{"$f":"VLOOKUP($A185,[5]CVD_All_prescriptions!$A$10:$C$392,3,0)","v":4588179.13168386},{"$f":"VLOOKUP($A185,Lookup!$BP$3:$BW$213,8,0)","v":19185.130928401391},{"$f":"VLOOKUP($A185,[5]Lipid_regulators!$A$12:$C$345,3,0)","v":977746.69976472901},19185.130928401391,{"$f":"VLOOKUP($A185,[5]HyperandHeartfailure!$A$12:$C$356,3,0)","v":814098.01000812696},19185.130928401391,{"$f":"VLOOKUP($A185,[5]Nit_Calc_Antianginal!$A$12:$C$345,3,0)","v":788940.39982801699},19185.130928401391,{"$f":"VLOOKUP($A185,[5]Anti_coagulants!$A$11:$C$325,3,0)","v":726997.35992696905},19185.130928401391,{"$f":"VLOOKUP($A185,[5]Beta_Adrenorecepter!$A$11:$C$352,3,0)","v":464509.25048813201},19185.130928401391,{"$f":"VLOOKUP($A185,[5]Anti_platelet!$A$12:$C$335,3,0)","v":303937.67062833899},19185.130928401391,{"$f":"VLOOKUP($A185,[5]Diuretics!$A$12:$C$353,3,0)","v":397318.62117481203},19185.130928401391,{"$f":"VLOOKUP($A185,[5]Anti_arrhythmic_drugs!$A$11:$C$271,3,0)","v":76448.089738041206},19185.130928401391,{"$f":"VLOOKUP($A185,[5]Positive_Intotropic!$A$12:$C$297,3,0)","v":18937.660031080199},19185.130928401391,{"$f":"VLOOKUP($A185,[5]anti_fibrinolytic!$A$11:$C$287,3,0)","v":13758.800062894799},19185.130928401391,{"$f":"VLOOKUP($A185,[5]sympathomimetics!$A$11:$C$223,3,0)","v":5486.5700327158002},19185.130928401391,{"$f":"VLOOKUP($A185,[5]CVD_All_prescriptions!$A$10:$C$392,3,0)","v":4588179.13168386},{"$f":"VLOOKUP($A185,[5]CVD_All_prescriptions!$A$10:$C$392,2,0)","v":1089947}]
["10W","NHS South Reading",{"$f":"VLOOKUP($A186,[4]CVD_All_prescriptions!$A$10:$D$223,4,0)","v":1667852.69},{"$f":"VLOOKUP($A186,Lookup!$BP$3:$BW$213,7,0)","v":19374.45191464484},{"$f":"VLOOKUP($A186,[4]Lipid_regulators!$A$14:$D$227,4,0)","v":546130.81000000203},19374.45191464484,{"$f":"VLOOKUP($A186,[4]HyperandHeartfailure!$A$13:$D$226,4,0)","v":400288.41},19374.45191464484,{"$f":"VLOOKUP($A186,[4]Nit_Calc_Antianginal!$A$13:$D$226,4,0)","v":308271.83},19374.45191464484,{"$f":"VLOOKUP($A186,[4]Anti_coagulants!$A$15:$D$227,4,0)","v":109213.49},19374.45191464484,{"$f":"VLOOKUP($A186,[4]Beta_Adrenorecepter!$A$13:$D$226,4,0)","v":108009.82},19374.45191464484,{"$f":"VLOOKUP($A186,[4]Anti_platelet!$A$13:$D$226,4,0)","v":84895.739999999802},19374.45191464484,{"$f":"VLOOKUP($A186,[4]Diuretics!$A$11:$D$224,4,0)","v":87414.430000000095},19374.45191464484,{"$f":"VLOOKUP($A186,[4]Anti_arrhythmic_drugs!$A$13:$D$226,4,0)","v":10990.36},19374.45191464484,{"$f":"VLOOKUP($A186,[4]Positive_Intotropic!$A$13:$D$226,4,0)","v":5723.8300000000099},19374.45191464484,{"$f":"VLOOKUP($A186,[4]anti_fibrinolytic!$A$13:$D$226,4,0)","v":5803.2},19374.45191464484,{"$f":"VLOOKUP($A186,[4]sympathomimetics!$A$11:$D$223,4,0)","v":1110.77},19374.45191464484,{"$f":"VLOOKUP($A186,[4]CVD_All_prescriptions!$A$10:$D$223,4,0)","v":1667852.69},{"$f":"VLOOKUP($A186,[4]CVD_All_prescriptions!$A$10:$D$223,3,0)","v":459040},{"$f":"VLOOKUP($A186,[5]CVD_All_prescriptions!$A$10:$C$392,3,0)","v":1604203.5808651},{"$f":"VLOOKUP($A186,Lookup!$BP$3:$BW$213,8,0)","v":19518.269511838644},{"$f":"VLOOKUP($A186,[5]Lipid_regulators!$A$12:$C$345,3,0)","v":438283.40063629998},19518.269511838644,{"$f":"VLOOKUP($A186,[5]HyperandHeartfailure!$A$12:$C$356,3,0)","v":334115.53971260798},19518.269511838644,{"$f":"VLOOKUP($A186,[5]Nit_Calc_Antianginal!$A$12:$C$345,3,0)","v":311493.65988635999},19518.269511838644,{"$f":"VLOOKUP($A186,[5]Anti_coagulants!$A$11:$C$325,3,0)","v":149821.89973841599},19518.269511838644,{"$f":"VLOOKUP($A186,[5]Beta_Adrenorecepter!$A$11:$C$352,3,0)","v":128705.490153402},19518.269511838644,{"$f":"VLOOKUP($A186,[5]Anti_platelet!$A$12:$C$335,3,0)","v":90725.760083392306},19518.269511838644,{"$f":"VLOOKUP($A186,[5]Diuretics!$A$12:$C$353,3,0)","v":131631.09058490401},19518.269511838644,{"$f":"VLOOKUP($A186,[5]Anti_arrhythmic_drugs!$A$11:$C$271,3,0)","v":10017.1900600195},19518.269511838644,{"$f":"VLOOKUP($A186,[5]Positive_Intotropic!$A$12:$C$297,3,0)","v":4697.83998915553},19518.269511838644,{"$f":"VLOOKUP($A186,[5]anti_fibrinolytic!$A$11:$C$287,3,0)","v":4711.7100205421402},19518.269511838644,{"$f":"VLOOKUP($A186,[5]sympathomimetics!$A$11:$C$223,3,0)","v":{"$error":"#N/A"}},19518.269511838644,{"$f":"VLOOKUP($A186,[5]CVD_All_prescriptions!$A$10:$C$392,3,0)","v":1604203.5808651},{"$f":"VLOOKUP($A186,[5]CVD_All_prescriptions!$A$10:$C$392,2,0)","v":475173}]
["10X","NHS Southampton",{"$f":"VLOOKUP($A187,[4]CVD_All_prescriptions!$A$10:$D$223,4,0)","v":3921651.65},{"$f":"VLOOKUP($A187,Lookup!$BP$3:$BW$213,7,0)","v":32183.29326923077},{"$f":"VLOOKUP($A187,[4]Lipid_regulators!$A$14:$D$227,4,0)","v":1180803.49},32183.29326923077,{"$f":"VLOOKUP($A187,[4]HyperandHeartfailure!$A$13:$D$226,4,0)","v":949679.26},32183.29326923077,{"$f":"VLOOKUP($A187,[4]Nit_Calc_Antianginal!$A$13:$D$226,4,0)","v":705520.27999999898},32183.29326923077,{"$f":"VLOOKUP($A187,[4]Anti_coagulants!$A$15:$D$227,4,0)","v":267012.859999999},32183.29326923077,{"$f":"VLOOKUP($A187,[4]Beta_Adrenorecepter!$A$13:$D$226,4,0)","v":277194.78000000201},32183.29326923077,{"$f":"VLOOKUP($A187,[4]Anti_platelet!$A$13:$D$226,4,0)","v":224282.7},32183.29326923077,{"$f":"VLOOKUP($A187,[4]Diuretics!$A$11:$D$224,4,0)","v":237282.34},32183.29326923077,{"$f":"VLOOKUP($A187,[4]Anti_arrhythmic_drugs!$A$13:$D$226,4,0)","v":35544.81},32183.29326923077,{"$f":"VLOOKUP($A187,[4]Positive_Intotropic!$A$13:$D$226,4,0)","v":19286.64},32183.29326923077,{"$f":"VLOOKUP($A187,[4]anti_fibrinolytic!$A$13:$D$226,4,0)","v":14572.05},32183.29326923077,{"$f":"VLOOKUP($A187,[4]sympathomimetics!$A$11:$D$223,4,0)","v":10472.44},32183.29326923077,{"$f":"VLOOKUP($A187,[4]CVD_All_prescriptions!$A$10:$D$223,4,0)","v":3921651.65},{"$f":"VLOOKUP($A187,[4]CVD_All_prescriptions!$A$10:$D$223,3,0)","v":892197},{"$f":"VLOOKUP($A187,[5]CVD_All_prescriptions!$A$10:$C$392,3,0)","v":3817892.8428515899},{"$f":"VLOOKUP($A187,Lookup!$BP$3:$BW$213,8,0)","v":32445.673076923074},{"$f":"VLOOKUP($A187,[5]Lipid_regulators!$A$12:$C$345,3,0)","v":1040804.18067411},32445.673076923074,{"$f":"VLOOKUP($A187,[5]HyperandHeartfailure!$A$12:$C$356,3,0)","v":728354.03048871504},32445.673076923074,{"$f":"VLOOKUP($A187,[5]Nit_Calc_Antianginal!$A$12:$C$345,3,0)","v":709428.699178115},32445.673076923074,{"$f":"VLOOKUP($A187,[5]Anti_coagulants!$A$11:$C$325,3,0)","v":384728.65019956202},32445.673076923074,{"$f":"VLOOKUP($A187,[5]Beta_Adrenorecepter!$A$11:$C$352,3,0)","v":337948.89005754702},32445.673076923074,{"$f":"VLOOKUP($A187,[5]Anti_platelet!$A$12:$C$335,3,0)","v":226490.23003196699},32445.673076923074,{"$f":"VLOOKUP($A187,[5]Diuretics!$A$12:$C$353,3,0)","v":318580.94201691402},32445.673076923074,{"$f":"VLOOKUP($A187,[5]Anti_arrhythmic_drugs!$A$11:$C$271,3,0)","v":30888.940113693501},32445.673076923074,{"$f":"VLOOKUP($A187,[5]Positive_Intotropic!$A$12:$C$297,3,0)","v":15563.2799635381},32445.673076923074,{"$f":"VLOOKUP($A187,[5]anti_fibrinolytic!$A$11:$C$287,3,0)","v":11736.9900280237},32445.673076923074,{"$f":"VLOOKUP($A187,[5]sympathomimetics!$A$11:$C$223,3,0)","v":13368.010099411},32445.673076923074,{"$f":"VLOOKUP($A187,[5]CVD_All_prescriptions!$A$10:$C$392,3,0)","v":3817892.8428515899},{"$f":"VLOOKUP($A187,[5]CVD_All_prescriptions!$A$10:$C$392,2,0)","v":914589}]
["10Y","NHS Aylesbury Vale",{"$f":"VLOOKUP($A188,[4]CVD_All_prescriptions!$A$10:$D$223,4,0)","v":3307906.1999999899},{"$f":"VLOOKUP($A188,Lookup!$BP$3:$BW$213,7,0)","v":22839.234885574406},{"$f":"VLOOKUP($A188,[4]Lipid_regulators!$A$14:$D$227,4,0)","v":933205.98000000301},22839.234885574406,{"$f":"VLOOKUP($A188,[4]HyperandHeartfailure!$A$13:$D$226,4,0)","v":1036922.05},22839.234885574406,{"$f":"VLOOKUP($A188,[4]Nit_Calc_Antianginal!$A$13:$D$226,4,0)","v":516443.48},22839.234885574406,{"$f":"VLOOKUP($A188,[4]Anti_coagulants!$A$15:$D$227,4,0)","v":197922.25},22839.234885574406,{"$f":"VLOOKUP($A188,[4]Beta_Adrenorecepter!$A$13:$D$226,4,0)","v":230322.049999999},22839.234885574406,{"$f":"VLOOKUP($A188,[4]Anti_platelet!$A$13:$D$226,4,0)","v":171328.4},22839.234885574406,{"$f":"VLOOKUP($A188,[4]Diuretics!$A$11:$D$224,4,0)","v":162629.17000000001},22839.234885574406,{"$f":"VLOOKUP($A188,[4]Anti_arrhythmic_drugs!$A$13:$D$226,4,0)","v":24990.63},22839.234885574406,{"$f":"VLOOKUP($A188,[4]Positive_Intotropic!$A$13:$D$226,4,0)","v":19999.02},22839.234885574406,{"$f":"VLOOKUP($A188,[4]anti_fibrinolytic!$A$13:$D$226,4,0)","v":12164.83},22839.234885574406,{"$f":"VLOOKUP($A188,[4]sympathomimetics!$A$11:$D$223,4,0)","v":1978.34},22839.234885574406,{"$f":"VLOOKUP($A188,[4]CVD_All_prescriptions!$A$10:$D$223,4,0)","v":3307906.1999999899},{"$f":"VLOOKUP($A188,[4]CVD_All_prescriptions!$A$10:$D$223,3,0)","v":1023474},{"$f":"VLOOKUP($A188,[5]CVD_All_prescriptions!$A$10:$C$392,3,0)","v":3031270.2116757799},{"$f":"VLOOKUP($A188,Lookup!$BP$3:$BW$213,8,0)","v":23067.289081179551},{"$f":"VLOOKUP($A188,[5]Lipid_regulators!$A$12:$C$345,3,0)","v":735686.04029059398},23067.289081179551,{"$f":"VLOOKUP($A188,[5]HyperandHeartfailure!$A$12:$C$356,3,0)","v":678636.14096522296},23067.289081179551,{"$f":"VLOOKUP($A188,[5]Nit_Calc_Antianginal!$A$12:$C$345,3,0)","v":614301.71945968305},23067.289081179551,{"$f":"VLOOKUP($A188,[5]Anti_coagulants!$A$11:$C$325,3,0)","v":291007.45016819198},23067.289081179551,{"$f":"VLOOKUP($A188,[5]Beta_Adrenorecepter!$A$11:$C$352,3,0)","v":264511.28001165402},23067.289081179551,{"$f":"VLOOKUP($A188,[5]Anti_platelet!$A$12:$C$335,3,0)","v":183857.10996884099},23067.289081179551,{"$f":"VLOOKUP($A188,[5]Diuretics!$A$12:$C$353,3,0)","v":211731.99079607401},23067.289081179551,{"$f":"VLOOKUP($A188,[5]Anti_arrhythmic_drugs!$A$11:$C$271,3,0)","v":21419.4900401831},23067.289081179551,{"$f":"VLOOKUP($A188,[5]Positive_Intotropic!$A$12:$C$297,3,0)","v":17567.859998345401},23067.289081179551,{"$f":"VLOOKUP($A188,[5]anti_fibrinolytic!$A$11:$C$287,3,0)","v":9072.33001208305},23067.289081179551,{"$f":"VLOOKUP($A188,[5]sympathomimetics!$A$11:$C$223,3,0)","v":3478.7999649047902},23067.289081179551,{"$f":"VLOOKUP($A188,[5]CVD_All_prescriptions!$A$10:$C$392,3,0)","v":3031270.2116757799},{"$f":"VLOOKUP($A188,[5]CVD_All_prescriptions!$A$10:$C$392,2,0)","v":1052273}]
["11A","NHS West Hampshire",{"$f":"VLOOKUP($A189,[4]CVD_All_prescriptions!$A$10:$D$223,4,0)","v":10886732.41},{"$f":"VLOOKUP($A189,Lookup!$BP$3:$BW$213,7,0)","v":51541.832669322714},{"$f":"VLOOKUP($A189,[4]Lipid_regulators!$A$14:$D$227,4,0)","v":2946628.04999997},51541.832669322714,{"$f":"VLOOKUP($A189,[4]HyperandHeartfailure!$A$13:$D$226,4,0)","v":3095523.91},51541.832669322714,{"$f":"VLOOKUP($A189,[4]Nit_Calc_Antianginal!$A$13:$D$226,4,0)","v":1734993.08},51541.832669322714,{"$f":"VLOOKUP($A189,[4]Anti_coagulants!$A$15:$D$227,4,0)","v":756739.340000008},51541.832669322714,{"$f":"VLOOKUP($A189,[4]Beta_Adrenorecepter!$A$13:$D$226,4,0)","v":788555.91000001004},51541.832669322714,{"$f":"VLOOKUP($A189,[4]Anti_platelet!$A$13:$D$226,4,0)","v":703503.84000000195},51541.832669322714,{"$f":"VLOOKUP($A189,[4]Diuretics!$A$11:$D$224,4,0)","v":626171.95999999298},51541.832669322714,{"$f":"VLOOKUP($A189,[4]Anti_arrhythmic_drugs!$A$13:$D$226,4,0)","v":104738.57},51541.832669322714,{"$f":"VLOOKUP($A189,[4]Positive_Intotropic!$A$13:$D$226,4,0)","v":54076.26},51541.832669322714,{"$f":"VLOOKUP($A189,[4]anti_fibrinolytic!$A$13:$D$226,4,0)","v":37941.81},51541.832669322714,{"$f":"VLOOKUP($A189,[4]sympathomimetics!$A$11:$D$223,4,0)","v":37859.68},51541.832669322714,{"$f":"VLOOKUP($A189,[4]CVD_All_prescriptions!$A$10:$D$223,4,0)","v":10886732.41},{"$f":"VLOOKUP($A189,[4]CVD_All_prescriptions!$A$10:$D$223,3,0)","v":2663884},{"$f":"VLOOKUP($A189,[5]CVD_All_prescriptions!$A$10:$C$392,3,0)","v":10278457.0235999},{"$f":"VLOOKUP($A189,Lookup!$BP$3:$BW$213,8,0)","v":50914.816922785052},{"$f":"VLOOKUP($A189,[5]Lipid_regulators!$A$12:$C$345,3,0)","v":2375054.4107793602},50914.816922785052,{"$f":"VLOOKUP($A189,[5]HyperandHeartfailure!$A$12:$C$356,3,0)","v":2282217.2302645198},50914.816922785052,{"$f":"VLOOKUP($A189,[5]Nit_Calc_Antianginal!$A$12:$C$345,3,0)","v":1755845.0486306399},50914.816922785052,{"$f":"VLOOKUP($A189,[5]Anti_coagulants!$A$11:$C$325,3,0)","v":1201496.0593409699},50914.816922785052,{"$f":"VLOOKUP($A189,[5]Beta_Adrenorecepter!$A$11:$C$352,3,0)","v":920539.90062548604},50914.816922785052,{"$f":"VLOOKUP($A189,[5]Anti_platelet!$A$12:$C$335,3,0)","v":669819.96089587396},50914.816922785052,{"$f":"VLOOKUP($A189,[5]Diuretics!$A$12:$C$353,3,0)","v":850506.76292545302},50914.816922785052,{"$f":"VLOOKUP($A189,[5]Anti_arrhythmic_drugs!$A$11:$C$271,3,0)","v":98489.690175883501},50914.816922785052,{"$f":"VLOOKUP($A189,[5]Positive_Intotropic!$A$12:$C$297,3,0)","v":45273.099999256403},50914.816922785052,{"$f":"VLOOKUP($A189,[5]anti_fibrinolytic!$A$11:$C$287,3,0)","v":32861.170006752},50914.816922785052,{"$f":"VLOOKUP($A189,[5]sympathomimetics!$A$11:$C$223,3,0)","v":46353.689955711401},50914.816922785052,{"$f":"VLOOKUP($A189,[5]CVD_All_prescriptions!$A$10:$C$392,3,0)","v":10278457.0235999},{"$f":"VLOOKUP($A189,[5]CVD_All_prescriptions!$A$10:$C$392,2,0)","v":2695532}]
["11C","NHS Windsor, Ascot and Maidenhead",{"$f":"VLOOKUP($A190,[4]CVD_All_prescriptions!$A$10:$D$223,4,0)","v":2196645.16},{"$f":"VLOOKUP($A190,Lookup!$BP$3:$BW$213,7,0)","v":17009.578970817554},{"$f":"VLOOKUP($A190,[4]Lipid_regulators!$A$14:$D$227,4,0)","v":704549.85000000196},17009.578970817554,{"$f":"VLOOKUP($A190,[4]HyperandHeartfailure!$A$13:$D$226,4,0)","v":623401.11},17009.578970817554,{"$f":"VLOOKUP($A190,[4]Nit_Calc_Antianginal!$A$13:$D$226,4,0)","v":338895.03},17009.578970817554,{"$f":"VLOOKUP($A190,[4]Anti_coagulants!$A$15:$D$227,4,0)","v":78741.790000000095},17009.578970817554,{"$f":"VLOOKUP($A190,[4]Beta_Adrenorecepter!$A$13:$D$226,4,0)","v":135796.22},17009.578970817554,{"$f":"VLOOKUP($A190,[4]Anti_platelet!$A$13:$D$226,4,0)","v":146696.68999999901},17009.578970817554,{"$f":"VLOOKUP($A190,[4]Diuretics!$A$11:$D$224,4,0)","v":124466.82},17009.578970817554,{"$f":"VLOOKUP($A190,[4]Anti_arrhythmic_drugs!$A$13:$D$226,4,0)","v":16663.53},17009.578970817554,{"$f":"VLOOKUP($A190,[4]Positive_Intotropic!$A$13:$D$226,4,0)","v":11653.84},17009.578970817554,{"$f":"VLOOKUP($A190,[4]anti_fibrinolytic!$A$13:$D$226,4,0)","v":9310.06},17009.578970817554,{"$f":"VLOOKUP($A190,[4]sympathomimetics!$A$11:$D$223,4,0)","v":6470.22},17009.578970817554,{"$f":"VLOOKUP($A190,[4]CVD_All_prescriptions!$A$10:$D$223,4,0)","v":2196645.16},{"$f":"VLOOKUP($A190,[4]CVD_All_prescriptions!$A$10:$D$223,3,0)","v":540612},{"$f":"VLOOKUP($A190,[5]CVD_All_prescriptions!$A$10:$C$392,3,0)","v":1952978.5819927801},{"$f":"VLOOKUP($A190,Lookup!$BP$3:$BW$213,8,0)","v":17058.921808866118},{"$f":"VLOOKUP($A190,[5]Lipid_regulators!$A$12:$C$345,3,0)","v":532770.96031589096},17058.921808866118,{"$f":"VLOOKUP($A190,[5]HyperandHeartfailure!$A$12:$C$356,3,0)","v":431131.44016498298},17058.921808866118,{"$f":"VLOOKUP($A190,[5]Nit_Calc_Antianginal!$A$12:$C$345,3,0)","v":350995.02033102501},17058.921808866118,{"$f":"VLOOKUP($A190,[5]Anti_coagulants!$A$11:$C$325,3,0)","v":117080.26996437801},17058.921808866118,{"$f":"VLOOKUP($A190,[5]Beta_Adrenorecepter!$A$11:$C$352,3,0)","v":157752.210386455},17058.921808866118,{"$f":"VLOOKUP($A190,[5]Anti_platelet!$A$12:$C$335,3,0)","v":151182.840134889},17058.921808866118,{"$f":"VLOOKUP($A190,[5]Diuretics!$A$12:$C$353,3,0)","v":175810.91058765401},17058.921808866118,{"$f":"VLOOKUP($A190,[5]Anti_arrhythmic_drugs!$A$11:$C$271,3,0)","v":14730.2600394487},17058.921808866118,{"$f":"VLOOKUP($A190,[5]Positive_Intotropic!$A$12:$C$297,3,0)","v":9817.2699959576094},17058.921808866118,{"$f":"VLOOKUP($A190,[5]anti_fibrinolytic!$A$11:$C$287,3,0)","v":7369.2700061798096},17058.921808866118,{"$f":"VLOOKUP($A190,[5]sympathomimetics!$A$11:$C$223,3,0)","v":4338.1300659179697},17058.921808866118,{"$f":"VLOOKUP($A190,[5]CVD_All_prescriptions!$A$10:$C$392,3,0)","v":1952978.5819927801},{"$f":"VLOOKUP($A190,[5]CVD_All_prescriptions!$A$10:$C$392,2,0)","v":554349}]
["11D","NHS Wokingham",{"$f":"VLOOKUP($A191,[4]CVD_All_prescriptions!$A$10:$D$223,4,0)","v":2265827.59},{"$f":"VLOOKUP($A191,Lookup!$BP$3:$BW$213,7,0)","v":18028.326974216674},{"$f":"VLOOKUP($A191,[4]Lipid_regulators!$A$14:$D$227,4,0)","v":650954.87},18028.326974216674,{"$f":"VLOOKUP($A191,[4]HyperandHeartfailure!$A$13:$D$226,4,0)","v":564361.80000000005},18028.326974216674,{"$f":"VLOOKUP($A191,[4]Nit_Calc_Antianginal!$A$13:$D$226,4,0)","v":443425.44},18028.326974216674,{"$f":"VLOOKUP($A191,[4]Anti_coagulants!$A$15:$D$227,4,0)","v":131255.09},18028.326974216674,{"$f":"VLOOKUP($A191,[4]Beta_Adrenorecepter!$A$13:$D$226,4,0)","v":174814.15999999901},18028.326974216674,{"$f":"VLOOKUP($A191,[4]Anti_platelet!$A$13:$D$226,4,0)","v":120016.96000000001},18028.326974216674,{"$f":"VLOOKUP($A191,[4]Diuretics!$A$11:$D$224,4,0)","v":130733.85},18028.326974216674,{"$f":"VLOOKUP($A191,[4]Anti_arrhythmic_drugs!$A$13:$D$226,4,0)","v":29219.96},18028.326974216674,{"$f":"VLOOKUP($A191,[4]Positive_Intotropic!$A$13:$D$226,4,0)","v":9700.3200000000106},18028.326974216674,{"$f":"VLOOKUP($A191,[4]anti_fibrinolytic!$A$13:$D$226,4,0)","v":7846.8699999999899},18028.326974216674,{"$f":"VLOOKUP($A191,[4]sympathomimetics!$A$11:$D$223,4,0)","v":3498.27},18028.326974216674,{"$f":"VLOOKUP($A191,[4]CVD_All_prescriptions!$A$10:$D$223,4,0)","v":2265827.59},{"$f":"VLOOKUP($A191,[4]CVD_All_prescriptions!$A$10:$D$223,3,0)","v":576303},{"$f":"VLOOKUP($A191,[5]CVD_All_prescriptions!$A$10:$C$392,3,0)","v":2188546.34024351},{"$f":"VLOOKUP($A191,Lookup!$BP$3:$BW$213,8,0)","v":18132.963348363974},{"$f":"VLOOKUP($A191,[5]Lipid_regulators!$A$12:$C$345,3,0)","v":519256.44015322602},18132.963348363974,{"$f":"VLOOKUP($A191,[5]HyperandHeartfailure!$A$12:$C$356,3,0)","v":439359.36967660498},18132.963348363974,{"$f":"VLOOKUP($A191,[5]Nit_Calc_Antianginal!$A$12:$C$345,3,0)","v":448429.62965562899},18132.963348363974,{"$f":"VLOOKUP($A191,[5]Anti_coagulants!$A$11:$C$325,3,0)","v":235008.78980584099},18132.963348363974,{"$f":"VLOOKUP($A191,[5]Beta_Adrenorecepter!$A$11:$C$352,3,0)","v":198166.09028100999},18132.963348363974,{"$f":"VLOOKUP($A191,[5]Anti_platelet!$A$12:$C$335,3,0)","v":121621.77015385},18132.963348363974,{"$f":"VLOOKUP($A191,[5]Diuretics!$A$12:$C$353,3,0)","v":173833.370367467},18132.963348363974,{"$f":"VLOOKUP($A191,[5]Anti_arrhythmic_drugs!$A$11:$C$271,3,0)","v":26748.530074358001},18132.963348363974,{"$f":"VLOOKUP($A191,[5]Positive_Intotropic!$A$12:$C$297,3,0)","v":8117.0300064459398},18132.963348363974,{"$f":"VLOOKUP($A191,[5]anti_fibrinolytic!$A$11:$C$287,3,0)","v":6570.2000205516797},18132.963348363974,{"$f":"VLOOKUP($A191,[5]sympathomimetics!$A$11:$C$223,3,0)","v":11435.1200485229},18132.963348363974,{"$f":"VLOOKUP($A191,[5]CVD_All_prescriptions!$A$10:$C$392,3,0)","v":2188546.34024351},{"$f":"VLOOKUP($A191,[5]CVD_All_prescriptions!$A$10:$C$392,2,0)","v":586648}]
["11E","NHS Bath and North East Somerset",{"$f":"VLOOKUP($A192,[4]CVD_All_prescriptions!$A$10:$D$223,4,0)","v":3172756.2},{"$f":"VLOOKUP($A192,Lookup!$BP$3:$BW$213,7,0)","v":20319.155478118275},{"$f":"VLOOKUP($A192,[4]Lipid_regulators!$A$14:$D$227,4,0)","v":993592.270000002},20319.155478118275,{"$f":"VLOOKUP($A192,[4]HyperandHeartfailure!$A$13:$D$226,4,0)","v":710271.41},20319.155478118275,{"$f":"VLOOKUP($A192,[4]Nit_Calc_Antianginal!$A$13:$D$226,4,0)","v":593102.17000000004},20319.155478118275,{"$f":"VLOOKUP($A192,[4]Anti_coagulants!$A$15:$D$227,4,0)","v":180083.42},20319.155478118275,{"$f":"VLOOKUP($A192,[4]Beta_Adrenorecepter!$A$13:$D$226,4,0)","v":212467.25999999899},20319.155478118275,{"$f":"VLOOKUP($A192,[4]Anti_platelet!$A$13:$D$226,4,0)","v":219973.03999999899},20319.155478118275,{"$f":"VLOOKUP($A192,[4]Diuretics!$A$11:$D$224,4,0)","v":194091.44000000099},20319.155478118275,{"$f":"VLOOKUP($A192,[4]Anti_arrhythmic_drugs!$A$13:$D$226,4,0)","v":29640.49},20319.155478118275,{"$f":"VLOOKUP($A192,[4]Positive_Intotropic!$A$13:$D$226,4,0)","v":20922.689999999999},20319.155478118275,{"$f":"VLOOKUP($A192,[4]anti_fibrinolytic!$A$13:$D$226,4,0)","v":11418.87},20319.155478118275,{"$f":"VLOOKUP($A192,[4]sympathomimetics!$A$11:$D$223,4,0)","v":7193.14},20319.155478118275,{"$f":"VLOOKUP($A192,[4]CVD_All_prescriptions!$A$10:$D$223,4,0)","v":3172756.2},{"$f":"VLOOKUP($A192,[4]CVD_All_prescriptions!$A$10:$D$223,3,0)","v":1141835},{"$f":"VLOOKUP($A192,[5]CVD_All_prescriptions!$A$10:$C$392,3,0)","v":3078058.5304144798},{"$f":"VLOOKUP($A192,Lookup!$BP$3:$BW$213,8,0)","v":20422.875883980734},{"$f":"VLOOKUP($A192,[5]Lipid_regulators!$A$12:$C$345,3,0)","v":781827.70027995901},20422.875883980734,{"$f":"VLOOKUP($A192,[5]HyperandHeartfailure!$A$12:$C$356,3,0)","v":563255.64003859495},20422.875883980734,{"$f":"VLOOKUP($A192,[5]Nit_Calc_Antianginal!$A$12:$C$345,3,0)","v":618560.79945451801},20422.875883980734,{"$f":"VLOOKUP($A192,[5]Anti_coagulants!$A$11:$C$325,3,0)","v":334108.95003827702},20422.875883980734,{"$f":"VLOOKUP($A192,[5]Beta_Adrenorecepter!$A$11:$C$352,3,0)","v":246560.980090458},20422.875883980734,{"$f":"VLOOKUP($A192,[5]Anti_platelet!$A$12:$C$335,3,0)","v":226550.149928581},20422.875883980734,{"$f":"VLOOKUP($A192,[5]Diuretics!$A$12:$C$353,3,0)","v":245844.84060613799},20422.875883980734,{"$f":"VLOOKUP($A192,[5]Anti_arrhythmic_drugs!$A$11:$C$271,3,0)","v":28901.3899826407},20422.875883980734,{"$f":"VLOOKUP($A192,[5]Positive_Intotropic!$A$12:$C$297,3,0)","v":17584.980015680201},20422.875883980734,{"$f":"VLOOKUP($A192,[5]anti_fibrinolytic!$A$11:$C$287,3,0)","v":10147.479993581799},20422.875883980734,{"$f":"VLOOKUP($A192,[5]sympathomimetics!$A$11:$C$223,3,0)","v":4709.2199859619104},20422.875883980734,{"$f":"VLOOKUP($A192,[5]CVD_All_prescriptions!$A$10:$C$392,3,0)","v":3078058.5304144798},{"$f":"VLOOKUP($A192,[5]CVD_All_prescriptions!$A$10:$C$392,2,0)","v":1174667}]
["11H","NHS Bristol",{"$f":"VLOOKUP($A193,[4]CVD_All_prescriptions!$A$10:$D$223,4,0)","v":6830149.7699999902},{"$f":"VLOOKUP($A193,Lookup!$BP$3:$BW$213,7,0)","v":57073.43565525383},{"$f":"VLOOKUP($A193,[4]Lipid_regulators!$A$14:$D$227,4,0)","v":1777450.4100000099},57073.43565525383,{"$f":"VLOOKUP($A193,[4]HyperandHeartfailure!$A$13:$D$226,4,0)","v":1457197.88},57073.43565525383,{"$f":"VLOOKUP($A193,[4]Nit_Calc_Antianginal!$A$13:$D$226,4,0)","v":1133930.8600000001},57073.43565525383,{"$f":"VLOOKUP($A193,[4]Anti_coagulants!$A$15:$D$227,4,0)","v":907879.41000000201},57073.43565525383,{"$f":"VLOOKUP($A193,[4]Beta_Adrenorecepter!$A$13:$D$226,4,0)","v":464505.91000000201},57073.43565525383,{"$f":"VLOOKUP($A193,[4]Anti_platelet!$A$13:$D$226,4,0)","v":498990.759999995},57073.43565525383,{"$f":"VLOOKUP($A193,[4]Diuretics!$A$11:$D$224,4,0)","v":445650.29999999801},57073.43565525383,{"$f":"VLOOKUP($A193,[4]Anti_arrhythmic_drugs!$A$13:$D$226,4,0)","v":60398.109999999702},57073.43565525383,{"$f":"VLOOKUP($A193,[4]Positive_Intotropic!$A$13:$D$226,4,0)","v":35484.119999999901},57073.43565525383,{"$f":"VLOOKUP($A193,[4]anti_fibrinolytic!$A$13:$D$226,4,0)","v":26100.97},57073.43565525383,{"$f":"VLOOKUP($A193,[4]sympathomimetics!$A$11:$D$223,4,0)","v":22561.040000000001},57073.43565525383,{"$f":"VLOOKUP($A193,[4]CVD_All_prescriptions!$A$10:$D$223,4,0)","v":6830149.7699999902},{"$f":"VLOOKUP($A193,[4]CVD_All_prescriptions!$A$10:$D$223,3,0)","v":2165262},{"$f":"VLOOKUP($A193,[5]CVD_All_prescriptions!$A$10:$C$392,3,0)","v":7324941.4843654996},{"$f":"VLOOKUP($A193,Lookup!$BP$3:$BW$213,8,0)","v":57974.380165289251},{"$f":"VLOOKUP($A193,[5]Lipid_regulators!$A$12:$C$345,3,0)","v":1517897.5230244},57974.380165289251,{"$f":"VLOOKUP($A193,[5]HyperandHeartfailure!$A$12:$C$356,3,0)","v":1170481.52022373},57974.380165289251,{"$f":"VLOOKUP($A193,[5]Nit_Calc_Antianginal!$A$12:$C$345,3,0)","v":1145355.6087739801},57974.380165289251,{"$f":"VLOOKUP($A193,[5]Anti_coagulants!$A$11:$C$325,3,0)","v":1659518.0401949601},57974.380165289251,{"$f":"VLOOKUP($A193,[5]Beta_Adrenorecepter!$A$11:$C$352,3,0)","v":541000.95046254201},57974.380165289251,{"$f":"VLOOKUP($A193,[5]Anti_platelet!$A$12:$C$335,3,0)","v":517672.10017242702},57974.380165289251,{"$f":"VLOOKUP($A193,[5]Diuretics!$A$12:$C$353,3,0)","v":648984.95133880503},57974.380165289251,{"$f":"VLOOKUP($A193,[5]Anti_arrhythmic_drugs!$A$11:$C$271,3,0)","v":55976.950082525596},57974.380165289251,{"$f":"VLOOKUP($A193,[5]Positive_Intotropic!$A$12:$C$297,3,0)","v":28552.349974885601},57974.380165289251,{"$f":"VLOOKUP($A193,[5]anti_fibrinolytic!$A$11:$C$287,3,0)","v":21020.539986789201},57974.380165289251,{"$f":"VLOOKUP($A193,[5]sympathomimetics!$A$11:$C$223,3,0)","v":18480.950130462599},57974.380165289251,{"$f":"VLOOKUP($A193,[5]CVD_All_prescriptions!$A$10:$C$392,3,0)","v":7324941.4843654996},{"$f":"VLOOKUP($A193,[5]CVD_All_prescriptions!$A$10:$C$392,2,0)","v":2273861}]
["11J","NHS Dorset",{"$f":"VLOOKUP($A194,[4]CVD_All_prescriptions!$A$10:$D$223,4,0)","v":15123384.1100001},{"$f":"VLOOKUP($A194,Lookup!$BP$3:$BW$213,7,0)","v":67440.880887879059},{"$f":"VLOOKUP($A194,[4]Lipid_regulators!$A$14:$D$227,4,0)","v":3791754.85999995},67440.880887879059,{"$f":"VLOOKUP($A194,[4]HyperandHeartfailure!$A$13:$D$226,4,0)","v":4032937.95},67440.880887879059,{"$f":"VLOOKUP($A194,[4]Nit_Calc_Antianginal!$A$13:$D$226,4,0)","v":2678260.8099999898},67440.880887879059,{"$f":"VLOOKUP($A194,[4]Anti_coagulants!$A$15:$D$227,4,0)","v":925610.97000000603},67440.880887879059,{"$f":"VLOOKUP($A194,[4]Beta_Adrenorecepter!$A$13:$D$226,4,0)","v":1366327.8500000101},67440.880887879059,{"$f":"VLOOKUP($A194,[4]Anti_platelet!$A$13:$D$226,4,0)","v":1127146.0500000201},67440.880887879059,{"$f":"VLOOKUP($A194,[4]Diuretics!$A$11:$D$224,4,0)","v":878871.71999999403},67440.880887879059,{"$f":"VLOOKUP($A194,[4]Anti_arrhythmic_drugs!$A$13:$D$226,4,0)","v":155656.30999999901},67440.880887879059,{"$f":"VLOOKUP($A194,[4]Positive_Intotropic!$A$13:$D$226,4,0)","v":88931.940000000206},67440.880887879059,{"$f":"VLOOKUP($A194,[4]anti_fibrinolytic!$A$13:$D$226,4,0)","v":44961.900000000198},67440.880887879059,{"$f":"VLOOKUP($A194,[4]sympathomimetics!$A$11:$D$223,4,0)","v":32923.75},67440.880887879059,{"$f":"VLOOKUP($A194,[4]CVD_All_prescriptions!$A$10:$D$223,4,0)","v":15123384.1100001},{"$f":"VLOOKUP($A194,[4]CVD_All_prescriptions!$A$10:$D$223,3,0)","v":4345312},{"$f":"VLOOKUP($A194,[5]CVD_All_prescriptions!$A$10:$C$392,3,0)","v":14830353.036417101},{"$f":"VLOOKUP($A194,Lookup!$BP$3:$BW$213,8,0)","v":67983.483352267765},{"$f":"VLOOKUP($A194,[5]Lipid_regulators!$A$12:$C$345,3,0)","v":3072119.6024531499},67983.483352267765,{"$f":"VLOOKUP($A194,[5]HyperandHeartfailure!$A$12:$C$356,3,0)","v":3099620.7392740101},67983.483352267765,{"$f":"VLOOKUP($A194,[5]Nit_Calc_Antianginal!$A$12:$C$345,3,0)","v":3219922.3877568501},67983.483352267765,{"$f":"VLOOKUP($A194,[5]Anti_coagulants!$A$11:$C$325,3,0)","v":1193100.5112546601},67983.483352267765,{"$f":"VLOOKUP($A194,[5]Beta_Adrenorecepter!$A$11:$C$352,3,0)","v":1588875.94207209},67983.483352267765,{"$f":"VLOOKUP($A194,[5]Anti_platelet!$A$12:$C$335,3,0)","v":1244578.1000609901},67983.483352267765,{"$f":"VLOOKUP($A194,[5]Diuretics!$A$12:$C$353,3,0)","v":1117398.6738154199},67983.483352267765,{"$f":"VLOOKUP($A194,[5]Anti_arrhythmic_drugs!$A$11:$C$271,3,0)","v":156929.87010773999},67983.483352267765,{"$f":"VLOOKUP($A194,[5]Positive_Intotropic!$A$12:$C$297,3,0)","v":74789.249905958801},67983.483352267765,{"$f":"VLOOKUP($A194,[5]anti_fibrinolytic!$A$11:$C$287,3,0)","v":37397.730010986299},67983.483352267765,{"$f":"VLOOKUP($A194,[5]sympathomimetics!$A$11:$C$223,3,0)","v":25620.2297052145},67983.483352267765,{"$f":"VLOOKUP($A194,[5]CVD_All_prescriptions!$A$10:$C$392,3,0)","v":14830353.036417101},{"$f":"VLOOKUP($A194,[5]CVD_All_prescriptions!$A$10:$C$392,2,0)","v":4481381}]
["11M","NHS Gloucestershire",{"$f":"VLOOKUP($A195,[4]CVD_All_prescriptions!$A$10:$D$223,4,0)","v":11864398.220000001},{"$f":"VLOOKUP($A195,Lookup!$BP$3:$BW$213,7,0)","v":61582.133995037228},{"$f":"VLOOKUP($A195,[4]Lipid_regulators!$A$14:$D$227,4,0)","v":3642856.8899999401},61582.133995037228,{"$f":"VLOOKUP($A195,[4]HyperandHeartfailure!$A$13:$D$226,4,0)","v":2500798.67},61582.133995037228,{"$f":"VLOOKUP($A195,[4]Nit_Calc_Antianginal!$A$13:$D$226,4,0)","v":2057407.93},61582.133995037228,{"$f":"VLOOKUP($A195,[4]Anti_coagulants!$A$15:$D$227,4,0)","v":1108382.54000001},61582.133995037228,{"$f":"VLOOKUP($A195,[4]Beta_Adrenorecepter!$A$13:$D$226,4,0)","v":791094.01000000397},61582.133995037228,{"$f":"VLOOKUP($A195,[4]Anti_platelet!$A$13:$D$226,4,0)","v":760811.89000001096},61582.133995037228,{"$f":"VLOOKUP($A195,[4]Diuretics!$A$11:$D$224,4,0)","v":684727.03999999096},61582.133995037228,{"$f":"VLOOKUP($A195,[4]Anti_arrhythmic_drugs!$A$13:$D$226,4,0)","v":74202.879999999699},61582.133995037228,{"$f":"VLOOKUP($A195,[4]Positive_Intotropic!$A$13:$D$226,4,0)","v":67490.83},61582.133995037228,{"$f":"VLOOKUP($A195,[4]anti_fibrinolytic!$A$13:$D$226,4,0)","v":36938.1000000001},61582.133995037228,{"$f":"VLOOKUP($A195,[4]sympathomimetics!$A$11:$D$223,4,0)","v":139687.44},61582.133995037228,{"$f":"VLOOKUP($A195,[4]CVD_All_prescriptions!$A$10:$D$223,4,0)","v":11864398.220000001},{"$f":"VLOOKUP($A195,[4]CVD_All_prescriptions!$A$10:$D$223,3,0)","v":3673744},{"$f":"VLOOKUP($A195,[5]CVD_All_prescriptions!$A$10:$C$392,3,0)","v":11614477.407837201},{"$f":"VLOOKUP($A195,Lookup!$BP$3:$BW$213,8,0)","v":62121.687344913153},{"$f":"VLOOKUP($A195,[5]Lipid_regulators!$A$12:$C$345,3,0)","v":2880686.4424551898},62121.687344913153,{"$f":"VLOOKUP($A195,[5]HyperandHeartfailure!$A$12:$C$356,3,0)","v":2028050.29049194},62121.687344913153,{"$f":"VLOOKUP($A195,[5]Nit_Calc_Antianginal!$A$12:$C$345,3,0)","v":2233134.4186602901},62121.687344913153,{"$f":"VLOOKUP($A195,[5]Anti_coagulants!$A$11:$C$325,3,0)","v":1638366.6115159399},62121.687344913153,{"$f":"VLOOKUP($A195,[5]Beta_Adrenorecepter!$A$11:$C$352,3,0)","v":884164.52073027205},62121.687344913153,{"$f":"VLOOKUP($A195,[5]Anti_platelet!$A$12:$C$335,3,0)","v":775851.36061289499},62121.687344913153,{"$f":"VLOOKUP($A195,[5]Diuretics!$A$12:$C$353,3,0)","v":885127.71320229},62121.687344913153,{"$f":"VLOOKUP($A195,[5]Anti_arrhythmic_drugs!$A$11:$C$271,3,0)","v":63169.479997634902},62121.687344913153,{"$f":"VLOOKUP($A195,[5]Positive_Intotropic!$A$12:$C$297,3,0)","v":57090.820008166098},62121.687344913153,{"$f":"VLOOKUP($A195,[5]anti_fibrinolytic!$A$11:$C$287,3,0)","v":30824.430049061801},62121.687344913153,{"$f":"VLOOKUP($A195,[5]sympathomimetics!$A$11:$C$223,3,0)","v":138011.32011351001},62121.687344913153,{"$f":"VLOOKUP($A195,[5]CVD_All_prescriptions!$A$10:$C$392,3,0)","v":11614477.407837201},{"$f":"VLOOKUP($A195,[5]CVD_All_prescriptions!$A$10:$C$392,2,0)","v":3760917}]
["11N","NHS Kernow",{"$f":"VLOOKUP($A196,[4]CVD_All_prescriptions!$A$10:$D$223,4,0)","v":11431565.66},{"$f":"VLOOKUP($A196,Lookup!$BP$3:$BW$213,7,0)","v":49472.271438695956},{"$f":"VLOOKUP($A196,[4]Lipid_regulators!$A$14:$D$227,4,0)","v":3256517.3399999398},49472.271438695956,{"$f":"VLOOKUP($A196,[4]HyperandHeartfailure!$A$13:$D$226,4,0)","v":2699788.22},49472.271438695956,{"$f":"VLOOKUP($A196,[4]Nit_Calc_Antianginal!$A$13:$D$226,4,0)","v":2077134.21999999},49472.271438695956,{"$f":"VLOOKUP($A196,[4]Anti_coagulants!$A$15:$D$227,4,0)","v":946320.33000000298},49472.271438695956,{"$f":"VLOOKUP($A196,[4]Beta_Adrenorecepter!$A$13:$D$226,4,0)","v":847379.51000001002},49472.271438695956,{"$f":"VLOOKUP($A196,[4]Anti_platelet!$A$13:$D$226,4,0)","v":743726.630000012},49472.271438695956,{"$f":"VLOOKUP($A196,[4]Diuretics!$A$11:$D$224,4,0)","v":643071.62999999197},49472.271438695956,{"$f":"VLOOKUP($A196,[4]Anti_arrhythmic_drugs!$A$13:$D$226,4,0)","v":95545.659999999698},49472.271438695956,{"$f":"VLOOKUP($A196,[4]Positive_Intotropic!$A$13:$D$226,4,0)","v":75423.389999999898},49472.271438695956,{"$f":"VLOOKUP($A196,[4]anti_fibrinolytic!$A$13:$D$226,4,0)","v":30505.29},49472.271438695956,{"$f":"VLOOKUP($A196,[4]sympathomimetics!$A$11:$D$223,4,0)","v":16134.24},49472.271438695956,{"$f":"VLOOKUP($A196,[4]CVD_All_prescriptions!$A$10:$D$223,4,0)","v":11431565.66},{"$f":"VLOOKUP($A196,[4]CVD_All_prescriptions!$A$10:$D$223,3,0)","v":3717775},{"$f":"VLOOKUP($A196,[5]CVD_All_prescriptions!$A$10:$C$392,3,0)","v":10953784.4744797},{"$f":"VLOOKUP($A196,Lookup!$BP$3:$BW$213,8,0)","v":49534.727143869597},{"$f":"VLOOKUP($A196,[5]Lipid_regulators!$A$12:$C$345,3,0)","v":2692449.79054621},49534.727143869597,{"$f":"VLOOKUP($A196,[5]HyperandHeartfailure!$A$12:$C$356,3,0)","v":2017378.2601473001},49534.727143869597,{"$f":"VLOOKUP($A196,[5]Nit_Calc_Antianginal!$A$12:$C$345,3,0)","v":2082888.8195478499},49534.727143869597,{"$f":"VLOOKUP($A196,[5]Anti_coagulants!$A$11:$C$325,3,0)","v":1362911.1504198301},49534.727143869597,{"$f":"VLOOKUP($A196,[5]Beta_Adrenorecepter!$A$11:$C$352,3,0)","v":989906.09067126899},49534.727143869597,{"$f":"VLOOKUP($A196,[5]Anti_platelet!$A$12:$C$335,3,0)","v":776085.14970439498},49534.727143869597,{"$f":"VLOOKUP($A196,[5]Diuretics!$A$12:$C$353,3,0)","v":827503.28341972805},49534.727143869597,{"$f":"VLOOKUP($A196,[5]Anti_arrhythmic_drugs!$A$11:$C$271,3,0)","v":83202.360058464095},49534.727143869597,{"$f":"VLOOKUP($A196,[5]Positive_Intotropic!$A$12:$C$297,3,0)","v":62068.629961803599},49534.727143869597,{"$f":"VLOOKUP($A196,[5]anti_fibrinolytic!$A$11:$C$287,3,0)","v":25199.029969930602},49534.727143869597,{"$f":"VLOOKUP($A196,[5]sympathomimetics!$A$11:$C$223,3,0)","v":34191.910032942898},49534.727143869597,{"$f":"VLOOKUP($A196,[5]CVD_All_prescriptions!$A$10:$C$392,3,0)","v":10953784.4744797},{"$f":"VLOOKUP($A196,[5]CVD_All_prescriptions!$A$10:$C$392,2,0)","v":3826492}]
["11T","NHS North Somerset",{"$f":"VLOOKUP($A197,[4]CVD_All_prescriptions!$A$10:$D$223,4,0)","v":4255573.24},{"$f":"VLOOKUP($A197,Lookup!$BP$3:$BW$213,7,0)","v":19726.101066295781},{"$f":"VLOOKUP($A197,[4]Lipid_regulators!$A$14:$D$227,4,0)","v":1239158.82},19726.101066295781,{"$f":"VLOOKUP($A197,[4]HyperandHeartfailure!$A$13:$D$226,4,0)","v":992445.58},19726.101066295781,{"$f":"VLOOKUP($A197,[4]Nit_Calc_Antianginal!$A$13:$D$226,4,0)","v":693404.49},19726.101066295781,{"$f":"VLOOKUP($A197,[4]Anti_coagulants!$A$15:$D$227,4,0)","v":381257.49999999901},19726.101066295781,{"$f":"VLOOKUP($A197,[4]Beta_Adrenorecepter!$A$13:$D$226,4,0)","v":306692.91000000102},19726.101066295781,{"$f":"VLOOKUP($A197,[4]Anti_platelet!$A$13:$D$226,4,0)","v":292794.19999999797},19726.101066295781,{"$f":"VLOOKUP($A197,[4]Diuretics!$A$11:$D$224,4,0)","v":255931.51999999999},19726.101066295781,{"$f":"VLOOKUP($A197,[4]Anti_arrhythmic_drugs!$A$13:$D$226,4,0)","v":53916.92},19726.101066295781,{"$f":"VLOOKUP($A197,[4]Positive_Intotropic!$A$13:$D$226,4,0)","v":27828.569999999901},19726.101066295781,{"$f":"VLOOKUP($A197,[4]anti_fibrinolytic!$A$13:$D$226,4,0)","v":10680.43},19726.101066295781,{"$f":"VLOOKUP($A197,[4]sympathomimetics!$A$11:$D$223,4,0)","v":1462.3},19726.101066295781,{"$f":"VLOOKUP($A197,[4]CVD_All_prescriptions!$A$10:$D$223,4,0)","v":4255573.24},{"$f":"VLOOKUP($A197,[4]CVD_All_prescriptions!$A$10:$D$223,3,0)","v":1217713},{"$f":"VLOOKUP($A197,[5]CVD_All_prescriptions!$A$10:$C$392,3,0)","v":4329020.5043900302},{"$f":"VLOOKUP($A197,Lookup!$BP$3:$BW$213,8,0)","v":19822.994900324524},{"$f":"VLOOKUP($A197,[5]Lipid_regulators!$A$12:$C$345,3,0)","v":1049292.2414785801},19822.994900324524,{"$f":"VLOOKUP($A197,[5]HyperandHeartfailure!$A$12:$C$356,3,0)","v":772958.70021153195},19822.994900324524,{"$f":"VLOOKUP($A197,[5]Nit_Calc_Antianginal!$A$12:$C$345,3,0)","v":717098.04001569701},19822.994900324524,{"$f":"VLOOKUP($A197,[5]Anti_coagulants!$A$11:$C$325,3,0)","v":714261.30115625996},19822.994900324524,{"$f":"VLOOKUP($A197,[5]Beta_Adrenorecepter!$A$11:$C$352,3,0)","v":349737.12022545899},19822.994900324524,{"$f":"VLOOKUP($A197,[5]Anti_platelet!$A$12:$C$335,3,0)","v":289847.360133318},19822.994900324524,{"$f":"VLOOKUP($A197,[5]Diuretics!$A$12:$C$353,3,0)","v":353916.79104901903},19822.994900324524,{"$f":"VLOOKUP($A197,[5]Anti_arrhythmic_drugs!$A$11:$C$271,3,0)","v":46165.820169210398},19822.994900324524,{"$f":"VLOOKUP($A197,[5]Positive_Intotropic!$A$12:$C$297,3,0)","v":21494.409986563001},19822.994900324524,{"$f":"VLOOKUP($A197,[5]anti_fibrinolytic!$A$11:$C$287,3,0)","v":8425.6900190114993},19822.994900324524,{"$f":"VLOOKUP($A197,[5]sympathomimetics!$A$11:$C$223,3,0)","v":5823.0299453735397},19822.994900324524,{"$f":"VLOOKUP($A197,[5]CVD_All_prescriptions!$A$10:$C$392,3,0)","v":4329020.5043900302},{"$f":"VLOOKUP($A197,[5]CVD_All_prescriptions!$A$10:$C$392,2,0)","v":1268892}]
["11X","NHS Somerset",{"$f":"VLOOKUP($A198,[4]CVD_All_prescriptions!$A$10:$D$223,4,0)","v":11660706.8600001},{"$f":"VLOOKUP($A198,Lookup!$BP$3:$BW$213,7,0)","v":50034.400948991701},{"$f":"VLOOKUP($A198,[4]Lipid_regulators!$A$14:$D$227,4,0)","v":3279150.9199999799},{"$f":"D198","v":50034.400948991701},{"$f":"VLOOKUP($A198,[4]HyperandHeartfailure!$A$13:$D$226,4,0)","v":2646271.6},{"$f":"D198","v":50034.400948991701},{"$f":"VLOOKUP($A198,[4]Nit_Calc_Antianginal!$A$13:$D$226,4,0)","v":1923863.88},{"$f":"D198","v":50034.400948991701},{"$f":"VLOOKUP($A198,[4]Anti_coagulants!$A$15:$D$227,4,0)","v":1546829.99000001},{"$f":"D198","v":50034.400948991701},{"$f":"VLOOKUP($A198,[4]Beta_Adrenorecepter!$A$13:$D$226,4,0)","v":730848.71000000997},{"$f":"D198","v":50034.400948991701},{"$f":"VLOOKUP($A198,[4]Anti_platelet!$A$13:$D$226,4,0)","v":691560.19000000705},{"$f":"D198","v":50034.400948991701},{"$f":"VLOOKUP($A198,[4]Diuretics!$A$11:$D$224,4,0)","v":604125.119999988},{"$f":"P198","v":50034.400948991701},{"$f":"VLOOKUP($A198,[4]Anti_arrhythmic_drugs!$A$13:$D$226,4,0)","v":137614.06999999899},{"$f":"P198","v":50034.400948991701},{"$f":"VLOOKUP($A198,[4]Positive_Intotropic!$A$13:$D$226,4,0)","v":63397.120000000003},{"$f":"P198","v":50034.400948991701},{"$f":"VLOOKUP($A198,[4]anti_fibrinolytic!$A$13:$D$226,4,0)","v":28847.81},{"$f":"V198","v":50034.400948991701},{"$f":"VLOOKUP($A198,[4]sympathomimetics!$A$11:$D$223,4,0)","v":8179.45},{"$f":"X198","v":50034.400948991701},{"$f":"VLOOKUP($A198,[4]CVD_All_prescriptions!$A$10:$D$223,4,0)","v":11660706.8600001},{"$f":"VLOOKUP($A198,[4]CVD_All_prescriptions!$A$10:$D$223,3,0)","v":3291798},{"$f":"VLOOKUP($A198,[5]CVD_All_prescriptions!$A$10:$C$392,3,0)","v":11816853.984581601},{"$f":"VLOOKUP($A198,Lookup!$BP$3:$BW$213,8,0)","v":50338.169541016519},{"$f":"VLOOKUP($A198,[5]Lipid_regulators!$A$12:$C$345,3,0)","v":2623431.3432396399},{"$f":"AD198","v":50338.169541016519},{"$f":"VLOOKUP($A198,[5]HyperandHeartfailure!$A$12:$C$356,3,0)","v":1945690.8707419301},{"$f":"AD198","v":50338.169541016519},{"$f":"VLOOKUP($A198,[5]Nit_Calc_Antianginal!$A$12:$C$345,3,0)","v":2012602.5489439201},{"$f":"AD198","v":50338.169541016519},{"$f":"VLOOKUP($A198,[5]Anti_coagulants!$A$11:$C$325,3,0)","v":2698410.6180843101},{"$f":"AD198","v":50338.169541016519},{"$f":"VLOOKUP($A198,[5]Beta_Adrenorecepter!$A$11:$C$352,3,0)","v":866980.45074199105},{"$f":"AD198","v":50338.169541016519},{"$f":"VLOOKUP($A198,[5]Anti_platelet!$A$12:$C$335,3,0)","v":683245.86060312402},{"$f":"AD198","v":50338.169541016519},{"$f":"VLOOKUP($A198,[5]Diuretics!$A$12:$C$353,3,0)","v":799597.11210851395},{"$f":"AD198","v":50338.169541016519},{"$f":"VLOOKUP($A198,[5]Anti_arrhythmic_drugs!$A$11:$C$271,3,0)","v":105117.850179106},{"$f":"AD198","v":50338.169541016519},{"$f":"VLOOKUP($A198,[5]Positive_Intotropic!$A$12:$C$297,3,0)","v":52938.069932147897},{"$f":"AT198","v":50338.169541016519},{"$f":"VLOOKUP($A198,[5]anti_fibrinolytic!$A$11:$C$287,3,0)","v":24330.160058975202},{"$f":"AP198","v":50338.169541016519},{"$f":"VLOOKUP($A198,[5]sympathomimetics!$A$11:$C$223,3,0)","v":4509.0999479293796},{"$f":"AP198","v":50338.169541016519},{"$f":"VLOOKUP($A198,[5]CVD_All_prescriptions!$A$10:$C$392,3,0)","v":11816853.984581601},{"$f":"VLOOKUP($A198,[5]CVD_All_prescriptions!$A$10:$C$392,2,0)","v":3346278}]
["12A","NHS South Gloucestershire",{"$f":"VLOOKUP($A199,[4]CVD_All_prescriptions!$A$10:$D$223,4,0)","v":5080880.05},{"$f":"VLOOKUP($A199,Lookup!$BP$3:$BW$213,7,0)","v":27866.472993329029},{"$f":"VLOOKUP($A199,[4]Lipid_regulators!$A$14:$D$227,4,0)","v":1401551.3199999901},27866.472993329029,{"$f":"VLOOKUP($A199,[4]HyperandHeartfailure!$A$13:$D$226,4,0)","v":1272289.24},27866.472993329029,{"$f":"VLOOKUP($A199,[4]Nit_Calc_Antianginal!$A$13:$D$226,4,0)","v":777004.97},27866.472993329029,{"$f":"VLOOKUP($A199,[4]Anti_coagulants!$A$15:$D$227,4,0)","v":525201.549999999},27866.472993329029,{"$f":"VLOOKUP($A199,[4]Beta_Adrenorecepter!$A$13:$D$226,4,0)","v":335637.91000000102},27866.472993329029,{"$f":"VLOOKUP($A199,[4]Anti_platelet!$A$13:$D$226,4,0)","v":363022.89999999799},27866.472993329029,{"$f":"VLOOKUP($A199,[4]Diuretics!$A$11:$D$224,4,0)","v":296591.84999999899},27866.472993329029,{"$f":"VLOOKUP($A199,[4]Anti_arrhythmic_drugs!$A$13:$D$226,4,0)","v":55584.429999999898},27866.472993329029,{"$f":"VLOOKUP($A199,[4]Positive_Intotropic!$A$13:$D$226,4,0)","v":25345.759999999998},27866.472993329029,{"$f":"VLOOKUP($A199,[4]anti_fibrinolytic!$A$13:$D$226,4,0)","v":14345.37},27866.472993329029,{"$f":"VLOOKUP($A199,[4]sympathomimetics!$A$11:$D$223,4,0)","v":14304.75},27866.472993329029,{"$f":"VLOOKUP($A199,[4]CVD_All_prescriptions!$A$10:$D$223,4,0)","v":5080880.05},{"$f":"VLOOKUP($A199,[4]CVD_All_prescriptions!$A$10:$D$223,3,0)","v":1237137},{"$f":"VLOOKUP($A199,[5]CVD_All_prescriptions!$A$10:$C$392,3,0)","v":5121767.1746641798},{"$f":"VLOOKUP($A199,Lookup!$BP$3:$BW$213,8,0)","v":28052.829782655474},{"$f":"VLOOKUP($A199,[5]Lipid_regulators!$A$12:$C$345,3,0)","v":1137116.64225311},28052.829782655474,{"$f":"VLOOKUP($A199,[5]HyperandHeartfailure!$A$12:$C$356,3,0)","v":983857.58015158004},28052.829782655474,{"$f":"VLOOKUP($A199,[5]Nit_Calc_Antianginal!$A$12:$C$345,3,0)","v":789252.48015739},28052.829782655474,{"$f":"VLOOKUP($A199,[5]Anti_coagulants!$A$11:$C$325,3,0)","v":972987.00991156697},28052.829782655474,{"$f":"VLOOKUP($A199,[5]Beta_Adrenorecepter!$A$11:$C$352,3,0)","v":398786.60048062401},28052.829782655474,{"$f":"VLOOKUP($A199,[5]Anti_platelet!$A$12:$C$335,3,0)","v":358325.29999936698},28052.829782655474,{"$f":"VLOOKUP($A199,[5]Diuretics!$A$12:$C$353,3,0)","v":380072.241581537},28052.829782655474,{"$f":"VLOOKUP($A199,[5]Anti_arrhythmic_drugs!$A$11:$C$271,3,0)","v":50899.980062544302},28052.829782655474,{"$f":"VLOOKUP($A199,[5]Positive_Intotropic!$A$12:$C$297,3,0)","v":20733.639994770299},28052.829782655474,{"$f":"VLOOKUP($A199,[5]anti_fibrinolytic!$A$11:$C$287,3,0)","v":11630.5700191259},28052.829782655474,{"$f":"VLOOKUP($A199,[5]sympathomimetics!$A$11:$C$223,3,0)","v":18105.130052566499},28052.829782655474,{"$f":"VLOOKUP($A199,[5]CVD_All_prescriptions!$A$10:$C$392,3,0)","v":5121767.1746641798},{"$f":"VLOOKUP($A199,[5]CVD_All_prescriptions!$A$10:$C$392,2,0)","v":1261545}]
["12D","NHS Swindon",{"$f":"VLOOKUP($A200,[4]CVD_All_prescriptions!$A$10:$D$223,4,0)","v":3708613.6899999902},{"$f":"VLOOKUP($A200,Lookup!$BP$3:$BW$213,7,0)","v":25977.288609364081},{"$f":"VLOOKUP($A200,[4]Lipid_regulators!$A$14:$D$227,4,0)","v":1079993.8500000001},25977.288609364081,{"$f":"VLOOKUP($A200,[4]HyperandHeartfailure!$A$13:$D$226,4,0)","v":875409.1},25977.288609364081,{"$f":"VLOOKUP($A200,[4]Nit_Calc_Antianginal!$A$13:$D$226,4,0)","v":637849.64},25977.288609364081,{"$f":"VLOOKUP($A200,[4]Anti_coagulants!$A$15:$D$227,4,0)","v":300837.28999999998},25977.288609364081,{"$f":"VLOOKUP($A200,[4]Beta_Adrenorecepter!$A$13:$D$226,4,0)","v":234620.97},25977.288609364081,{"$f":"VLOOKUP($A200,[4]Anti_platelet!$A$13:$D$226,4,0)","v":266927.36999999802},25977.288609364081,{"$f":"VLOOKUP($A200,[4]Diuretics!$A$11:$D$224,4,0)","v":238906.53000000099},25977.288609364081,{"$f":"VLOOKUP($A200,[4]Anti_arrhythmic_drugs!$A$13:$D$226,4,0)","v":33013.4200000001},25977.288609364081,{"$f":"VLOOKUP($A200,[4]Positive_Intotropic!$A$13:$D$226,4,0)","v":20871.36},25977.288609364081,{"$f":"VLOOKUP($A200,[4]anti_fibrinolytic!$A$13:$D$226,4,0)","v":13912.83},25977.288609364081,{"$f":"VLOOKUP($A200,[4]sympathomimetics!$A$11:$D$223,4,0)","v":6271.33},25977.288609364081,{"$f":"VLOOKUP($A200,[4]CVD_All_prescriptions!$A$10:$D$223,4,0)","v":3708613.6899999902},{"$f":"VLOOKUP($A200,[4]CVD_All_prescriptions!$A$10:$D$223,3,0)","v":1303506},{"$f":"VLOOKUP($A200,[5]CVD_All_prescriptions!$A$10:$C$392,3,0)","v":3592493.2228589002},{"$f":"VLOOKUP($A200,Lookup!$BP$3:$BW$213,8,0)","v":26410.784998835312},{"$f":"VLOOKUP($A200,[5]Lipid_regulators!$A$12:$C$345,3,0)","v":894317.82033652102},26410.784998835312,{"$f":"VLOOKUP($A200,[5]HyperandHeartfailure!$A$12:$C$356,3,0)","v":746599.32068430597},26410.784998835312,{"$f":"VLOOKUP($A200,[5]Nit_Calc_Antianginal!$A$12:$C$345,3,0)","v":659383.59965673101},26410.784998835312,{"$f":"VLOOKUP($A200,[5]Anti_coagulants!$A$11:$C$325,3,0)","v":390832.40067112399},26410.784998835312,{"$f":"VLOOKUP($A200,[5]Beta_Adrenorecepter!$A$11:$C$352,3,0)","v":274145.020167012},26410.784998835312,{"$f":"VLOOKUP($A200,[5]Anti_platelet!$A$12:$C$335,3,0)","v":262512.35002483398},26410.784998835312,{"$f":"VLOOKUP($A200,[5]Diuretics!$A$12:$C$353,3,0)","v":299722.19146397698},26410.784998835312,{"$f":"VLOOKUP($A200,[5]Anti_arrhythmic_drugs!$A$11:$C$271,3,0)","v":27810.039989322398},26410.784998835312,{"$f":"VLOOKUP($A200,[5]Positive_Intotropic!$A$12:$C$297,3,0)","v":17321.949989676501},26410.784998835312,{"$f":"VLOOKUP($A200,[5]anti_fibrinolytic!$A$11:$C$287,3,0)","v":11253.2699762583},26410.784998835312,{"$f":"VLOOKUP($A200,[5]sympathomimetics!$A$11:$C$223,3,0)","v":8595.2598991394007},26410.784998835312,{"$f":"VLOOKUP($A200,[5]CVD_All_prescriptions!$A$10:$C$392,3,0)","v":3592493.2228589002},{"$f":"VLOOKUP($A200,[5]CVD_All_prescriptions!$A$10:$C$392,2,0)","v":1356365}]
["12F","NHS Wirral",{"$f":"VLOOKUP($A201,[4]CVD_All_prescriptions!$A$10:$D$223,4,0)","v":7789042.0900000203},{"$f":"VLOOKUP($A201,Lookup!$BP$3:$BW$213,7,0)","v":30422.508038585209},{"$f":"VLOOKUP($A201,[4]Lipid_regulators!$A$14:$D$227,4,0)","v":2350414.96},30422.508038585209,{"$f":"VLOOKUP($A201,[4]HyperandHeartfailure!$A$13:$D$226,4,0)","v":1909887.17},30422.508038585209,{"$f":"VLOOKUP($A201,[4]Nit_Calc_Antianginal!$A$13:$D$226,4,0)","v":1576119.05},30422.508038585209,{"$f":"VLOOKUP($A201,[4]Anti_coagulants!$A$15:$D$227,4,0)","v":648842.93999999994},30422.508038585209,{"$f":"VLOOKUP($A201,[4]Beta_Adrenorecepter!$A$13:$D$226,4,0)","v":425925.86000000301},30422.508038585209,{"$f":"VLOOKUP($A201,[4]Anti_platelet!$A$13:$D$226,4,0)","v":437591.469999997},30422.508038585209,{"$f":"VLOOKUP($A201,[4]Diuretics!$A$11:$D$224,4,0)","v":337990.68999999901},30422.508038585209,{"$f":"VLOOKUP($A201,[4]Anti_arrhythmic_drugs!$A$13:$D$226,4,0)","v":35934.019999999997},30422.508038585209,{"$f":"VLOOKUP($A201,[4]Positive_Intotropic!$A$13:$D$226,4,0)","v":39413.899999999798},30422.508038585209,{"$f":"VLOOKUP($A201,[4]anti_fibrinolytic!$A$13:$D$226,4,0)","v":23696.62},30422.508038585209,{"$f":"VLOOKUP($A201,[4]sympathomimetics!$A$11:$D$223,4,0)","v":3225.41},30422.508038585209,{"$f":"VLOOKUP($A201,[4]CVD_All_prescriptions!$A$10:$D$223,4,0)","v":7789042.0900000203},{"$f":"VLOOKUP($A201,[4]CVD_All_prescriptions!$A$10:$D$223,3,0)","v":1969597},{"$f":"VLOOKUP($A201,[5]CVD_All_prescriptions!$A$10:$C$392,3,0)","v":7033815.3355571702},{"$f":"VLOOKUP($A201,Lookup!$BP$3:$BW$213,8,0)","v":30529.07671107028},{"$f":"VLOOKUP($A201,[5]Lipid_regulators!$A$12:$C$345,3,0)","v":1808075.7324966199},30529.07671107028,{"$f":"VLOOKUP($A201,[5]HyperandHeartfailure!$A$12:$C$356,3,0)","v":1189563.9506739699},30529.07671107028,{"$f":"VLOOKUP($A201,[5]Nit_Calc_Antianginal!$A$12:$C$345,3,0)","v":1592957.7895171901},30529.07671107028,{"$f":"VLOOKUP($A201,[5]Anti_coagulants!$A$11:$C$325,3,0)","v":828074.380226076},30529.07671107028,{"$f":"VLOOKUP($A201,[5]Beta_Adrenorecepter!$A$11:$C$352,3,0)","v":546036.06023357098},30529.07671107028,{"$f":"VLOOKUP($A201,[5]Anti_platelet!$A$12:$C$335,3,0)","v":543588.11027252697},30529.07671107028,{"$f":"VLOOKUP($A201,[5]Diuretics!$A$12:$C$353,3,0)","v":438998.74210515601},30529.07671107028,{"$f":"VLOOKUP($A201,[5]Anti_arrhythmic_drugs!$A$11:$C$271,3,0)","v":29784.990012109301},30529.07671107028,{"$f":"VLOOKUP($A201,[5]Positive_Intotropic!$A$12:$C$297,3,0)","v":30616.5599764586},30529.07671107028,{"$f":"VLOOKUP($A201,[5]anti_fibrinolytic!$A$11:$C$287,3,0)","v":17757.789953350999},30529.07671107028,{"$f":"VLOOKUP($A201,[5]sympathomimetics!$A$11:$C$223,3,0)","v":8340.2300901413},30529.07671107028,{"$f":"VLOOKUP($A201,[5]CVD_All_prescriptions!$A$10:$C$392,3,0)","v":7033815.3355571702},{"$f":"VLOOKUP($A201,[5]CVD_All_prescriptions!$A$10:$C$392,2,0)","v":1992879}]
["13P","NHS Birmingham Crosscity",{"$f":"VLOOKUP($A202,[4]CVD_All_prescriptions!$A$10:$D$223,4,0)","v":13190111.02},{"$f":"VLOOKUP($A202,Lookup!$BP$3:$BW$213,7,0)","v":80926.422139248854},{"$f":"VLOOKUP($A202,[4]Lipid_regulators!$A$14:$D$227,4,0)","v":4004377.9899999499},80926.422139248854,{"$f":"VLOOKUP($A202,[4]HyperandHeartfailure!$A$13:$D$226,4,0)","v":3169128.86},80926.422139248854,{"$f":"VLOOKUP($A202,[4]Nit_Calc_Antianginal!$A$13:$D$226,4,0)","v":2713738.09},80926.422139248854,{"$f":"VLOOKUP($A202,[4]Anti_coagulants!$A$15:$D$227,4,0)","v":581962.94000000099},80926.422139248854,{"$f":"VLOOKUP($A202,[4]Beta_Adrenorecepter!$A$13:$D$226,4,0)","v":835245.83000001602},80926.422139248854,{"$f":"VLOOKUP($A202,[4]Anti_platelet!$A$13:$D$226,4,0)","v":900394.32000002102},80926.422139248854,{"$f":"VLOOKUP($A202,[4]Diuretics!$A$11:$D$224,4,0)","v":743083.76999999001},80926.422139248854,{"$f":"VLOOKUP($A202,[4]Anti_arrhythmic_drugs!$A$13:$D$226,4,0)","v":95435.689999999406},80926.422139248854,{"$f":"VLOOKUP($A202,[4]Positive_Intotropic!$A$13:$D$226,4,0)","v":62188.009999999602},80926.422139248854,{"$f":"VLOOKUP($A202,[4]anti_fibrinolytic!$A$13:$D$226,4,0)","v":65333.380000000303},80926.422139248854,{"$f":"VLOOKUP($A202,[4]sympathomimetics!$A$11:$D$223,4,0)","v":19158.14},80926.422139248854,{"$f":"VLOOKUP($A202,[4]CVD_All_prescriptions!$A$10:$D$223,4,0)","v":13190111.02},{"$f":"VLOOKUP($A202,[4]CVD_All_prescriptions!$A$10:$D$223,3,0)","v":3105451},{"$f":"VLOOKUP($A202,[5]CVD_All_prescriptions!$A$10:$C$392,3,0)","v":12423468.0375538},{"$f":"VLOOKUP($A202,Lookup!$BP$3:$BW$213,8,0)","v":81302.218317592793},{"$f":"VLOOKUP($A202,[5]Lipid_regulators!$A$12:$C$345,3,0)","v":3256931.65339074},81302.218317592793,{"$f":"VLOOKUP($A202,[5]HyperandHeartfailure!$A$12:$C$356,3,0)","v":2424670.87108636},81302.218317592793,{"$f":"VLOOKUP($A202,[5]Nit_Calc_Antianginal!$A$12:$C$345,3,0)","v":2718338.4868505602},81302.218317592793,{"$f":"VLOOKUP($A202,[5]Anti_coagulants!$A$11:$C$325,3,0)","v":905145.70058142999},81302.218317592793,{"$f":"VLOOKUP($A202,[5]Beta_Adrenorecepter!$A$11:$C$352,3,0)","v":975289.32068315102},81302.218317592793,{"$f":"VLOOKUP($A202,[5]Anti_platelet!$A$12:$C$335,3,0)","v":919963.96106283704},81302.218317592793,{"$f":"VLOOKUP($A202,[5]Diuretics!$A$12:$C$353,3,0)","v":1000513.35394062},81302.218317592793,{"$f":"VLOOKUP($A202,[5]Anti_arrhythmic_drugs!$A$11:$C$271,3,0)","v":93685.140025407105},81302.218317592793,{"$f":"VLOOKUP($A202,[5]Positive_Intotropic!$A$12:$C$297,3,0)","v":52011.609921105199},81302.218317592793,{"$f":"VLOOKUP($A202,[5]anti_fibrinolytic!$A$11:$C$287,3,0)","v":50119.660050988197},81302.218317592793,{"$f":"VLOOKUP($A202,[5]sympathomimetics!$A$11:$C$223,3,0)","v":26694.679962158199},81302.218317592793,{"$f":"VLOOKUP($A202,[5]CVD_All_prescriptions!$A$10:$C$392,3,0)","v":12423468.0375538},{"$f":"VLOOKUP($A202,[5]CVD_All_prescriptions!$A$10:$C$392,2,0)","v":3152156}]
["99A","NHS Liverpool",{"$f":"VLOOKUP($A203,[4]CVD_All_prescriptions!$A$10:$D$223,4,0)","v":11257109.57},{"$f":"VLOOKUP($A203,Lookup!$BP$3:$BW$213,7,0)","v":50541.963740069259},{"$f":"VLOOKUP($A203,[4]Lipid_regulators!$A$14:$D$227,4,0)","v":3638605.7800000198},50541.963740069259,{"$f":"VLOOKUP($A203,[4]HyperandHeartfailure!$A$13:$D$226,4,0)","v":2419405.33},50541.963740069259,{"$f":"VLOOKUP($A203,[4]Nit_Calc_Antianginal!$A$13:$D$226,4,0)","v":2317412.4199999901},50541.963740069259,{"$f":"VLOOKUP($A203,[4]Anti_coagulants!$A$15:$D$227,4,0)","v":687579.34999999905},50541.963740069259,{"$f":"VLOOKUP($A203,[4]Beta_Adrenorecepter!$A$13:$D$226,4,0)","v":706645.59000001103},50541.963740069259,{"$f":"VLOOKUP($A203,[4]Anti_platelet!$A$13:$D$226,4,0)","v":765780.66000000702},50541.963740069259,{"$f":"VLOOKUP($A203,[4]Diuretics!$A$11:$D$224,4,0)","v":574688.32999999297},50541.963740069259,{"$f":"VLOOKUP($A203,[4]Anti_arrhythmic_drugs!$A$13:$D$226,4,0)","v":56480.190000000097},50541.963740069259,{"$f":"VLOOKUP($A203,[4]Positive_Intotropic!$A$13:$D$226,4,0)","v":39945.369999999697},50541.963740069259,{"$f":"VLOOKUP($A203,[4]anti_fibrinolytic!$A$13:$D$226,4,0)","v":35622.320000000102},50541.963740069259,{"$f":"VLOOKUP($A203,[4]sympathomimetics!$A$11:$D$223,4,0)","v":14944.23},50541.963740069259,{"$f":"VLOOKUP($A203,[4]CVD_All_prescriptions!$A$10:$D$223,4,0)","v":11257109.57},{"$f":"VLOOKUP($A203,[4]CVD_All_prescriptions!$A$10:$D$223,3,0)","v":2983548},{"$f":"VLOOKUP($A203,[5]CVD_All_prescriptions!$A$10:$C$392,3,0)","v":10335532.246299701},{"$f":"VLOOKUP($A203,Lookup!$BP$3:$BW$213,8,0)","v":50935.73029130169},{"$f":"VLOOKUP($A203,[5]Lipid_regulators!$A$12:$C$345,3,0)","v":2695079.8620088301},50935.73029130169,{"$f":"VLOOKUP($A203,[5]HyperandHeartfailure!$A$12:$C$356,3,0)","v":1875027.5001409401},50935.73029130169,{"$f":"VLOOKUP($A203,[5]Nit_Calc_Antianginal!$A$12:$C$345,3,0)","v":2330183.1569940201},50935.73029130169,{"$f":"VLOOKUP($A203,[5]Anti_coagulants!$A$11:$C$325,3,0)","v":839479.67193931295},50935.73029130169,{"$f":"VLOOKUP($A203,[5]Beta_Adrenorecepter!$A$11:$C$352,3,0)","v":880574.43104495504},50935.73029130169,{"$f":"VLOOKUP($A203,[5]Anti_platelet!$A$12:$C$335,3,0)","v":850191.02999741596},50935.73029130169,{"$f":"VLOOKUP($A203,[5]Diuretics!$A$12:$C$353,3,0)","v":727795.43419429695},50935.73029130169,{"$f":"VLOOKUP($A203,[5]Anti_arrhythmic_drugs!$A$11:$C$271,3,0)","v":53291.779807463303},50935.73029130169,{"$f":"VLOOKUP($A203,[5]Positive_Intotropic!$A$12:$C$297,3,0)","v":34048.049940370001},50935.73029130169,{"$f":"VLOOKUP($A203,[5]anti_fibrinolytic!$A$11:$C$287,3,0)","v":26669.6200289726},50935.73029130169,{"$f":"VLOOKUP($A203,[5]sympathomimetics!$A$11:$C$223,3,0)","v":23191.710203170798},50935.73029130169,{"$f":"VLOOKUP($A203,[5]CVD_All_prescriptions!$A$10:$C$392,3,0)","v":10335532.246299701},{"$f":"VLOOKUP($A203,[5]CVD_All_prescriptions!$A$10:$C$392,2,0)","v":3049112}]
["99C","NHS North Tyneside",{"$f":"VLOOKUP($A204,[4]CVD_All_prescriptions!$A$10:$D$223,4,0)","v":4757805.6900000004},{"$f":"VLOOKUP($A204,Lookup!$BP$3:$BW$213,7,0)","v":21266.442820462176},{"$f":"VLOOKUP($A204,[4]Lipid_regulators!$A$14:$D$227,4,0)","v":1355279.99},21266.442820462176,{"$f":"VLOOKUP($A204,[4]HyperandHeartfailure!$A$13:$D$226,4,0)","v":1009881.9},21266.442820462176,{"$f":"VLOOKUP($A204,[4]Nit_Calc_Antianginal!$A$13:$D$226,4,0)","v":963833.74999999895},21266.442820462176,{"$f":"VLOOKUP($A204,[4]Anti_coagulants!$A$15:$D$227,4,0)","v":399155.45},21266.442820462176,{"$f":"VLOOKUP($A204,[4]Beta_Adrenorecepter!$A$13:$D$226,4,0)","v":355732.590000002},21266.442820462176,{"$f":"VLOOKUP($A204,[4]Anti_platelet!$A$13:$D$226,4,0)","v":351250.37999999902},21266.442820462176,{"$f":"VLOOKUP($A204,[4]Diuretics!$A$11:$D$224,4,0)","v":244124.22999999899},21266.442820462176,{"$f":"VLOOKUP($A204,[4]Anti_arrhythmic_drugs!$A$13:$D$226,4,0)","v":36834.219999999899},21266.442820462176,{"$f":"VLOOKUP($A204,[4]Positive_Intotropic!$A$13:$D$226,4,0)","v":19922.37},21266.442820462176,{"$f":"VLOOKUP($A204,[4]anti_fibrinolytic!$A$13:$D$226,4,0)","v":18131.3},21266.442820462176,{"$f":"VLOOKUP($A204,[4]sympathomimetics!$A$11:$D$223,4,0)","v":3659.51},21266.442820462176,{"$f":"VLOOKUP($A204,[4]CVD_All_prescriptions!$A$10:$D$223,4,0)","v":4757805.6900000004},{"$f":"VLOOKUP($A204,[4]CVD_All_prescriptions!$A$10:$D$223,3,0)","v":1545225},{"$f":"VLOOKUP($A204,[5]CVD_All_prescriptions!$A$10:$C$392,3,0)","v":4663478.4105733698},{"$f":"VLOOKUP($A204,Lookup!$BP$3:$BW$213,8,0)","v":21310.29034169465},{"$f":"VLOOKUP($A204,[5]Lipid_regulators!$A$12:$C$345,3,0)","v":1016252.40082058},21310.29034169465,{"$f":"VLOOKUP($A204,[5]HyperandHeartfailure!$A$12:$C$356,3,0)","v":736978.14958059799},21310.29034169465,{"$f":"VLOOKUP($A204,[5]Nit_Calc_Antianginal!$A$12:$C$345,3,0)","v":1144123.1297839901},21310.29034169465,{"$f":"VLOOKUP($A204,[5]Anti_coagulants!$A$11:$C$325,3,0)","v":611721.36930577504},21310.29034169465,{"$f":"VLOOKUP($A204,[5]Beta_Adrenorecepter!$A$11:$C$352,3,0)","v":416197.52004691202},21310.29034169465,{"$f":"VLOOKUP($A204,[5]Anti_platelet!$A$12:$C$335,3,0)","v":349690.94999866199},21310.29034169465,{"$f":"VLOOKUP($A204,[5]Diuretics!$A$12:$C$353,3,0)","v":309071.26113196497},21310.29034169465,{"$f":"VLOOKUP($A204,[5]Anti_arrhythmic_drugs!$A$11:$C$271,3,0)","v":39904.459839075796},21310.29034169465,{"$f":"VLOOKUP($A204,[5]Positive_Intotropic!$A$12:$C$297,3,0)","v":16720.259992532399},21310.29034169465,{"$f":"VLOOKUP($A204,[5]anti_fibrinolytic!$A$11:$C$287,3,0)","v":15497.720038414},21310.29034169465,{"$f":"VLOOKUP($A204,[5]sympathomimetics!$A$11:$C$223,3,0)","v":7321.1900348663303},21310.29034169465,{"$f":"VLOOKUP($A204,[5]CVD_All_prescriptions!$A$10:$C$392,3,0)","v":4663478.4105733698},{"$f":"VLOOKUP($A204,[5]CVD_All_prescriptions!$A$10:$C$392,2,0)","v":1572993}]
["99D","NHS South Lincolnshire",{"$f":"VLOOKUP($A205,[4]CVD_All_prescriptions!$A$10:$D$223,4,0)","v":4303332.2900000103},{"$f":"VLOOKUP($A205,Lookup!$BP$3:$BW$213,7,0)","v":14588.676797627873},{"$f":"VLOOKUP($A205,[4]Lipid_regulators!$A$14:$D$227,4,0)","v":1125207.03},14588.676797627873,{"$f":"VLOOKUP($A205,[4]HyperandHeartfailure!$A$13:$D$226,4,0)","v":1087164.24},14588.676797627873,{"$f":"VLOOKUP($A205,[4]Nit_Calc_Antianginal!$A$13:$D$226,4,0)","v":936574.63},14588.676797627873,{"$f":"VLOOKUP($A205,[4]Anti_coagulants!$A$15:$D$227,4,0)","v":402358.09},14588.676797627873,{"$f":"VLOOKUP($A205,[4]Beta_Adrenorecepter!$A$13:$D$226,4,0)","v":256115.22999999899},14588.676797627873,{"$f":"VLOOKUP($A205,[4]Anti_platelet!$A$13:$D$226,4,0)","v":219506.73},14588.676797627873,{"$f":"VLOOKUP($A205,[4]Diuretics!$A$11:$D$224,4,0)","v":195154.52},14588.676797627873,{"$f":"VLOOKUP($A205,[4]Anti_arrhythmic_drugs!$A$13:$D$226,4,0)","v":30595.279999999999},14588.676797627873,{"$f":"VLOOKUP($A205,[4]Positive_Intotropic!$A$13:$D$226,4,0)","v":21831.4},14588.676797627873,{"$f":"VLOOKUP($A205,[4]anti_fibrinolytic!$A$13:$D$226,4,0)","v":11605.47},14588.676797627873,{"$f":"VLOOKUP($A205,[4]sympathomimetics!$A$11:$D$223,4,0)","v":17219.669999999998},14588.676797627873,{"$f":"VLOOKUP($A205,[4]CVD_All_prescriptions!$A$10:$D$223,4,0)","v":4303332.2900000103},{"$f":"VLOOKUP($A205,[4]CVD_All_prescriptions!$A$10:$D$223,3,0)","v":1395487},{"$f":"VLOOKUP($A205,[5]CVD_All_prescriptions!$A$10:$C$392,3,0)","v":4169926.3529391699},{"$f":"VLOOKUP($A205,Lookup!$BP$3:$BW$213,8,0)","v":14803.002223869533},{"$f":"VLOOKUP($A205,[5]Lipid_regulators!$A$12:$C$345,3,0)","v":833885.75093549502},14803.002223869533,{"$f":"VLOOKUP($A205,[5]HyperandHeartfailure!$A$12:$C$356,3,0)","v":958002.43041054904},14803.002223869533,{"$f":"VLOOKUP($A205,[5]Nit_Calc_Antianginal!$A$12:$C$345,3,0)","v":989751.44950526999},14803.002223869533,{"$f":"VLOOKUP($A205,[5]Anti_coagulants!$A$11:$C$325,3,0)","v":515434.36027413601},14803.002223869533,{"$f":"VLOOKUP($A205,[5]Beta_Adrenorecepter!$A$11:$C$352,3,0)","v":287282.75053978001},14803.002223869533,{"$f":"VLOOKUP($A205,[5]Anti_platelet!$A$12:$C$335,3,0)","v":242256.59057393699},14803.002223869533,{"$f":"VLOOKUP($A205,[5]Diuretics!$A$12:$C$353,3,0)","v":267676.850722045},14803.002223869533,{"$f":"VLOOKUP($A205,[5]Anti_arrhythmic_drugs!$A$11:$C$271,3,0)","v":28545.9699449539},14803.002223869533,{"$f":"VLOOKUP($A205,[5]Positive_Intotropic!$A$12:$C$297,3,0)","v":17560.129923522501},14803.002223869533,{"$f":"VLOOKUP($A205,[5]anti_fibrinolytic!$A$11:$C$287,3,0)","v":9839.8100196123105},14803.002223869533,{"$f":"VLOOKUP($A205,[5]sympathomimetics!$A$11:$C$223,3,0)","v":19690.2600898743},14803.002223869533,{"$f":"VLOOKUP($A205,[5]CVD_All_prescriptions!$A$10:$C$392,3,0)","v":4169926.3529391699},{"$f":"VLOOKUP($A205,[5]CVD_All_prescriptions!$A$10:$C$392,2,0)","v":1451981}]
["99E","NHS Basildon and Brentwood",{"$f":"VLOOKUP($A206,[4]CVD_All_prescriptions!$A$10:$D$223,4,0)","v":5175537.09},{"$f":"VLOOKUP($A206,Lookup!$BP$3:$BW$213,7,0)","v":28085.119932073867},{"$f":"VLOOKUP($A206,[4]Lipid_regulators!$A$14:$D$227,4,0)","v":1515187.3900000099},28085.119932073867,{"$f":"VLOOKUP($A206,[4]HyperandHeartfailure!$A$13:$D$226,4,0)","v":1426305.82},28085.119932073867,{"$f":"VLOOKUP($A206,[4]Nit_Calc_Antianginal!$A$13:$D$226,4,0)","v":799961.73999999894},28085.119932073867,{"$f":"VLOOKUP($A206,[4]Anti_coagulants!$A$15:$D$227,4,0)","v":353244.53},28085.119932073867,{"$f":"VLOOKUP($A206,[4]Beta_Adrenorecepter!$A$13:$D$226,4,0)","v":371746.41000000201},28085.119932073867,{"$f":"VLOOKUP($A206,[4]Anti_platelet!$A$13:$D$226,4,0)","v":291663.84999999701},28085.119932073867,{"$f":"VLOOKUP($A206,[4]Diuretics!$A$11:$D$224,4,0)","v":330479.81999999803},28085.119932073867,{"$f":"VLOOKUP($A206,[4]Anti_arrhythmic_drugs!$A$13:$D$226,4,0)","v":37067.35},28085.119932073867,{"$f":"VLOOKUP($A206,[4]Positive_Intotropic!$A$13:$D$226,4,0)","v":27605.4399999999},28085.119932073867,{"$f":"VLOOKUP($A206,[4]anti_fibrinolytic!$A$13:$D$226,4,0)","v":15656.44},28085.119932073867,{"$f":"VLOOKUP($A206,[4]sympathomimetics!$A$11:$D$223,4,0)","v":6618.3},28085.119932073867,{"$f":"VLOOKUP($A206,[4]CVD_All_prescriptions!$A$10:$D$223,4,0)","v":5175537.09},{"$f":"VLOOKUP($A206,[4]CVD_All_prescriptions!$A$10:$D$223,3,0)","v":1230264},{"$f":"VLOOKUP($A206,[5]CVD_All_prescriptions!$A$10:$C$392,3,0)","v":4709472.9332705298},{"$f":"VLOOKUP($A206,Lookup!$BP$3:$BW$213,8,0)","v":28409.361069836552},{"$f":"VLOOKUP($A206,[5]Lipid_regulators!$A$12:$C$345,3,0)","v":1064149.38050558},28409.361069836552,{"$f":"VLOOKUP($A206,[5]HyperandHeartfailure!$A$12:$C$356,3,0)","v":1027069.49986985},28409.361069836552,{"$f":"VLOOKUP($A206,[5]Nit_Calc_Antianginal!$A$12:$C$345,3,0)","v":885143.14902457595},28409.361069836552,{"$f":"VLOOKUP($A206,[5]Anti_coagulants!$A$11:$C$325,3,0)","v":497601.01126176101},28409.361069836552,{"$f":"VLOOKUP($A206,[5]Beta_Adrenorecepter!$A$11:$C$352,3,0)","v":421340.140378237},28409.361069836552,{"$f":"VLOOKUP($A206,[5]Anti_platelet!$A$12:$C$335,3,0)","v":311377.25028943998},28409.361069836552,{"$f":"VLOOKUP($A206,[5]Diuretics!$A$12:$C$353,3,0)","v":423534.28189894598},28409.361069836552,{"$f":"VLOOKUP($A206,[5]Anti_arrhythmic_drugs!$A$11:$C$271,3,0)","v":35799.3100134134},28409.361069836552,{"$f":"VLOOKUP($A206,[5]Positive_Intotropic!$A$12:$C$297,3,0)","v":23137.809982806401},28409.361069836552,{"$f":"VLOOKUP($A206,[5]anti_fibrinolytic!$A$11:$C$287,3,0)","v":14915.4000031948},28409.361069836552,{"$f":"VLOOKUP($A206,[5]sympathomimetics!$A$11:$C$223,3,0)","v":5405.7000427246103},28409.361069836552,{"$f":"VLOOKUP($A206,[5]CVD_All_prescriptions!$A$10:$C$392,3,0)","v":4709472.9332705298},{"$f":"VLOOKUP($A206,[5]CVD_All_prescriptions!$A$10:$C$392,2,0)","v":1253280}]
["99F","NHS Castle Point and Rochford",{"$f":"VLOOKUP($A207,[4]CVD_All_prescriptions!$A$10:$D$223,4,0)","v":3868500.78},{"$f":"VLOOKUP($A207,Lookup!$BP$3:$BW$213,7,0)","v":16903.470208586659},{"$f":"VLOOKUP($A207,[4]Lipid_regulators!$A$14:$D$227,4,0)","v":1183900.1500000099},16903.470208586659,{"$f":"VLOOKUP($A207,[4]HyperandHeartfailure!$A$13:$D$226,4,0)","v":962412.63999999897},16903.470208586659,{"$f":"VLOOKUP($A207,[4]Nit_Calc_Antianginal!$A$13:$D$226,4,0)","v":618983.92000000004},16903.470208586659,{"$f":"VLOOKUP($A207,[4]Anti_coagulants!$A$15:$D$227,4,0)","v":340481.57999999903},16903.470208586659,{"$f":"VLOOKUP($A207,[4]Beta_Adrenorecepter!$A$13:$D$226,4,0)","v":245945.13},16903.470208586659,{"$f":"VLOOKUP($A207,[4]Anti_platelet!$A$13:$D$226,4,0)","v":210016.99999999901},16903.470208586659,{"$f":"VLOOKUP($A207,[4]Diuretics!$A$11:$D$224,4,0)","v":234373.02},16903.470208586659,{"$f":"VLOOKUP($A207,[4]Anti_arrhythmic_drugs!$A$13:$D$226,4,0)","v":35804.0799999999},16903.470208586659,{"$f":"VLOOKUP($A207,[4]Positive_Intotropic!$A$13:$D$226,4,0)","v":19280.71},16903.470208586659,{"$f":"VLOOKUP($A207,[4]anti_fibrinolytic!$A$13:$D$226,4,0)","v":8389.8999999999905},16903.470208586659,{"$f":"VLOOKUP($A207,[4]sympathomimetics!$A$11:$D$223,4,0)","v":8869.6500000000106},16903.470208586659,{"$f":"VLOOKUP($A207,[4]CVD_All_prescriptions!$A$10:$D$223,4,0)","v":3868500.78},{"$f":"VLOOKUP($A207,[4]CVD_All_prescriptions!$A$10:$D$223,3,0)","v":923522},{"$f":"VLOOKUP($A207,[5]CVD_All_prescriptions!$A$10:$C$392,3,0)","v":3891817.7626424199},{"$f":"VLOOKUP($A207,Lookup!$BP$3:$BW$213,8,0)","v":16899.635207183612},{"$f":"VLOOKUP($A207,[5]Lipid_regulators!$A$12:$C$345,3,0)","v":959485.90152001404},16899.635207183612,{"$f":"VLOOKUP($A207,[5]HyperandHeartfailure!$A$12:$C$356,3,0)","v":783873.84012283804},16899.635207183612,{"$f":"VLOOKUP($A207,[5]Nit_Calc_Antianginal!$A$12:$C$345,3,0)","v":639053.14947210299},16899.635207183612,{"$f":"VLOOKUP($A207,[5]Anti_coagulants!$A$11:$C$325,3,0)","v":614772.51067641005},16899.635207183612,{"$f":"VLOOKUP($A207,[5]Beta_Adrenorecepter!$A$11:$C$352,3,0)","v":302758.570031084},16899.635207183612,{"$f":"VLOOKUP($A207,[5]Anti_platelet!$A$12:$C$335,3,0)","v":221745.13004438599},16899.635207183612,{"$f":"VLOOKUP($A207,[5]Diuretics!$A$12:$C$353,3,0)","v":300972.48087233299},16899.635207183612,{"$f":"VLOOKUP($A207,[5]Anti_arrhythmic_drugs!$A$11:$C$271,3,0)","v":35730.909953534603},16899.635207183612,{"$f":"VLOOKUP($A207,[5]Positive_Intotropic!$A$12:$C$297,3,0)","v":17930.349954653499},16899.635207183612,{"$f":"VLOOKUP($A207,[5]anti_fibrinolytic!$A$11:$C$287,3,0)","v":9088.5399706363696},16899.635207183612,{"$f":"VLOOKUP($A207,[5]sympathomimetics!$A$11:$C$223,3,0)","v":6378.4800243377704},16899.635207183612,{"$f":"VLOOKUP($A207,[5]CVD_All_prescriptions!$A$10:$C$392,3,0)","v":3891817.7626424199},{"$f":"VLOOKUP($A207,[5]CVD_All_prescriptions!$A$10:$C$392,2,0)","v":970938}]
["99G","NHS Southend",{"$f":"VLOOKUP($A208,[4]CVD_All_prescriptions!$A$10:$D$223,4,0)","v":3676842.09},{"$f":"VLOOKUP($A208,Lookup!$BP$3:$BW$213,7,0)","v":18371.221161495625},{"$f":"VLOOKUP($A208,[4]Lipid_regulators!$A$14:$D$227,4,0)","v":1132611.96000001},18371.221161495625,{"$f":"VLOOKUP($A208,[4]HyperandHeartfailure!$A$13:$D$226,4,0)","v":977590.22999999905},18371.221161495625,{"$f":"VLOOKUP($A208,[4]Nit_Calc_Antianginal!$A$13:$D$226,4,0)","v":563411.05000000005},18371.221161495625,{"$f":"VLOOKUP($A208,[4]Anti_coagulants!$A$15:$D$227,4,0)","v":308657.49},18371.221161495625,{"$f":"VLOOKUP($A208,[4]Beta_Adrenorecepter!$A$13:$D$226,4,0)","v":225991.45},18371.221161495625,{"$f":"VLOOKUP($A208,[4]Anti_platelet!$A$13:$D$226,4,0)","v":184050.459999999},18371.221161495625,{"$f":"VLOOKUP($A208,[4]Diuretics!$A$11:$D$224,4,0)","v":226078.58},18371.221161495625,{"$f":"VLOOKUP($A208,[4]Anti_arrhythmic_drugs!$A$13:$D$226,4,0)","v":29169.119999999999},18371.221161495625,{"$f":"VLOOKUP($A208,[4]Positive_Intotropic!$A$13:$D$226,4,0)","v":17150.07},18371.221161495625,{"$f":"VLOOKUP($A208,[4]anti_fibrinolytic!$A$13:$D$226,4,0)","v":9941.1700000000092},18371.221161495625,{"$f":"VLOOKUP($A208,[4]sympathomimetics!$A$11:$D$223,4,0)","v":2190.5100000000002},18371.221161495625,{"$f":"VLOOKUP($A208,[4]CVD_All_prescriptions!$A$10:$D$223,4,0)","v":3676842.09},{"$f":"VLOOKUP($A208,[4]CVD_All_prescriptions!$A$10:$D$223,3,0)","v":791348},{"$f":"VLOOKUP($A208,[5]CVD_All_prescriptions!$A$10:$C$392,3,0)","v":3513107.0512247402},{"$f":"VLOOKUP($A208,Lookup!$BP$3:$BW$213,8,0)","v":18356.702466189341},{"$f":"VLOOKUP($A208,[5]Lipid_regulators!$A$12:$C$345,3,0)","v":872245.53000903304},18356.702466189341,{"$f":"VLOOKUP($A208,[5]HyperandHeartfailure!$A$12:$C$356,3,0)","v":729734.93993184704},18356.702466189341,{"$f":"VLOOKUP($A208,[5]Nit_Calc_Antianginal!$A$12:$C$345,3,0)","v":559966.05921065796},18356.702466189341,{"$f":"VLOOKUP($A208,[5]Anti_coagulants!$A$11:$C$325,3,0)","v":534187.49060279096},18356.702466189341,{"$f":"VLOOKUP($A208,[5]Beta_Adrenorecepter!$A$11:$C$352,3,0)","v":272850.59030517598},18356.702466189341,{"$f":"VLOOKUP($A208,[5]Anti_platelet!$A$12:$C$335,3,0)","v":202505.94032337901},18356.702466189341,{"$f":"VLOOKUP($A208,[5]Diuretics!$A$12:$C$353,3,0)","v":281664.34069560497},18356.702466189341,{"$f":"VLOOKUP($A208,[5]Anti_arrhythmic_drugs!$A$11:$C$271,3,0)","v":30987.9801148474},18356.702466189341,{"$f":"VLOOKUP($A208,[5]Positive_Intotropic!$A$12:$C$297,3,0)","v":14184.379973039},18356.702466189341,{"$f":"VLOOKUP($A208,[5]anti_fibrinolytic!$A$11:$C$287,3,0)","v":9364.2699756622296},18356.702466189341,{"$f":"VLOOKUP($A208,[5]sympathomimetics!$A$11:$C$223,3,0)","v":5415.5300827026404},18356.702466189341,{"$f":"VLOOKUP($A208,[5]CVD_All_prescriptions!$A$10:$C$392,3,0)","v":3513107.0512247402},{"$f":"VLOOKUP($A208,[5]CVD_All_prescriptions!$A$10:$C$392,2,0)","v":802339}]
["99H","NHS Surrey Downs",{"$f":"VLOOKUP($A209,[4]CVD_All_prescriptions!$A$10:$D$223,4,0)","v":5246132.9200000102},{"$f":"VLOOKUP($A209,Lookup!$BP$3:$BW$213,7,0)","v":30440.473717016415},{"$f":"VLOOKUP($A209,[4]Lipid_regulators!$A$14:$D$227,4,0)","v":1697294.19},30440.473717016415,{"$f":"VLOOKUP($A209,[4]HyperandHeartfailure!$A$13:$D$226,4,0)","v":1374096.48},30440.473717016415,{"$f":"VLOOKUP($A209,[4]Nit_Calc_Antianginal!$A$13:$D$226,4,0)","v":758391.45},30440.473717016415,{"$f":"VLOOKUP($A209,[4]Anti_coagulants!$A$15:$D$227,4,0)","v":340102.15999999898},30440.473717016415,{"$f":"VLOOKUP($A209,[4]Beta_Adrenorecepter!$A$13:$D$226,4,0)","v":337270.32000000298},30440.473717016415,{"$f":"VLOOKUP($A209,[4]Anti_platelet!$A$13:$D$226,4,0)","v":314454.93},30440.473717016415,{"$f":"VLOOKUP($A209,[4]Diuretics!$A$11:$D$224,4,0)","v":300841.46999999898},30440.473717016415,{"$f":"VLOOKUP($A209,[4]Anti_arrhythmic_drugs!$A$13:$D$226,4,0)","v":59749.229999999901},30440.473717016415,{"$f":"VLOOKUP($A209,[4]Positive_Intotropic!$A$13:$D$226,4,0)","v":36170.639999999898},30440.473717016415,{"$f":"VLOOKUP($A209,[4]anti_fibrinolytic!$A$13:$D$226,4,0)","v":19892.61},30440.473717016415,{"$f":"VLOOKUP($A209,[4]sympathomimetics!$A$11:$D$223,4,0)","v":7869.44},30440.473717016415,{"$f":"VLOOKUP($A209,[4]CVD_All_prescriptions!$A$10:$D$223,4,0)","v":5246132.9200000102},{"$f":"VLOOKUP($A209,[4]CVD_All_prescriptions!$A$10:$D$223,3,0)","v":1218261},{"$f":"VLOOKUP($A209,[5]CVD_All_prescriptions!$A$10:$C$392,3,0)","v":5023924.2146884901},{"$f":"VLOOKUP($A209,Lookup!$BP$3:$BW$213,8,0)","v":30896.218574693539},{"$f":"VLOOKUP($A209,[5]Lipid_regulators!$A$12:$C$345,3,0)","v":1356954.53104195},30896.218574693539,{"$f":"VLOOKUP($A209,[5]HyperandHeartfailure!$A$12:$C$356,3,0)","v":1089373.1304826101},30896.218574693539,{"$f":"VLOOKUP($A209,[5]Nit_Calc_Antianginal!$A$12:$C$345,3,0)","v":827720.02013522398},30896.218574693539,{"$f":"VLOOKUP($A209,[5]Anti_coagulants!$A$11:$C$325,3,0)","v":482754.15082275902},30896.218574693539,{"$f":"VLOOKUP($A209,[5]Beta_Adrenorecepter!$A$11:$C$352,3,0)","v":397739.95044791698},30896.218574693539,{"$f":"VLOOKUP($A209,[5]Anti_platelet!$A$12:$C$335,3,0)","v":333752.480229259},30896.218574693539,{"$f":"VLOOKUP($A209,[5]Diuretics!$A$12:$C$353,3,0)","v":421059.68156483799},30896.218574693539,{"$f":"VLOOKUP($A209,[5]Anti_arrhythmic_drugs!$A$11:$C$271,3,0)","v":54037.439931631103},30896.218574693539,{"$f":"VLOOKUP($A209,[5]Positive_Intotropic!$A$12:$C$297,3,0)","v":30319.9199664146},30896.218574693539,{"$f":"VLOOKUP($A209,[5]anti_fibrinolytic!$A$11:$C$287,3,0)","v":12764.630048990201},30896.218574693539,{"$f":"VLOOKUP($A209,[5]sympathomimetics!$A$11:$C$223,3,0)","v":17448.280016899102},30896.218574693539,{"$f":"VLOOKUP($A209,[5]CVD_All_prescriptions!$A$10:$C$392,3,0)","v":5023924.2146884901},{"$f":"VLOOKUP($A209,[5]CVD_All_prescriptions!$A$10:$C$392,2,0)","v":1252798}]
["99J","NHS West Kent",{"$f":"VLOOKUP($A210,[4]CVD_All_prescriptions!$A$10:$D$223,4,0)","v":9208988.41000003},{"$f":"VLOOKUP($A210,Lookup!$BP$3:$BW$213,7,0)","v":48574.558670820348},{"$f":"VLOOKUP($A210,[4]Lipid_regulators!$A$14:$D$227,4,0)","v":2897786.6699999501},48574.558670820348,{"$f":"VLOOKUP($A210,[4]HyperandHeartfailure!$A$13:$D$226,4,0)","v":2357379.09},48574.558670820348,{"$f":"VLOOKUP($A210,[4]Nit_Calc_Antianginal!$A$13:$D$226,4,0)","v":1435896.88},48574.558670820348,{"$f":"VLOOKUP($A210,[4]Anti_coagulants!$A$15:$D$227,4,0)","v":660141.75000000198},48574.558670820348,{"$f":"VLOOKUP($A210,[4]Beta_Adrenorecepter!$A$13:$D$226,4,0)","v":581499.62000000803},48574.558670820348,{"$f":"VLOOKUP($A210,[4]Anti_platelet!$A$13:$D$226,4,0)","v":473543.53999999701},48574.558670820348,{"$f":"VLOOKUP($A210,[4]Diuretics!$A$11:$D$224,4,0)","v":535385.43999999505},48574.558670820348,{"$f":"VLOOKUP($A210,[4]Anti_arrhythmic_drugs!$A$13:$D$226,4,0)","v":124837.62},48574.558670820348,{"$f":"VLOOKUP($A210,[4]Positive_Intotropic!$A$13:$D$226,4,0)","v":41496.539999999797},48574.558670820348,{"$f":"VLOOKUP($A210,[4]anti_fibrinolytic!$A$13:$D$226,4,0)","v":28543.620000000101},48574.558670820348,{"$f":"VLOOKUP($A210,[4]sympathomimetics!$A$11:$D$223,4,0)","v":72477.64},48574.558670820348,{"$f":"VLOOKUP($A210,[4]CVD_All_prescriptions!$A$10:$D$223,4,0)","v":9208988.41000003},{"$f":"VLOOKUP($A210,[4]CVD_All_prescriptions!$A$10:$D$223,3,0)","v":2914789},{"$f":"VLOOKUP($A210,[5]CVD_All_prescriptions!$A$10:$C$392,3,0)","v":8841901.2455072794},{"$f":"VLOOKUP($A210,Lookup!$BP$3:$BW$213,8,0)","v":48736.656282450669},{"$f":"VLOOKUP($A210,[5]Lipid_regulators!$A$12:$C$345,3,0)","v":2414445.8097399799},48736.656282450669,{"$f":"VLOOKUP($A210,[5]HyperandHeartfailure!$A$12:$C$356,3,0)","v":1843390.31118278},48736.656282450669,{"$f":"VLOOKUP($A210,[5]Nit_Calc_Antianginal!$A$12:$C$345,3,0)","v":1493102.4305195799},48736.656282450669,{"$f":"VLOOKUP($A210,[5]Anti_coagulants!$A$11:$C$325,3,0)","v":1003297.17044485},48736.656282450669,{"$f":"VLOOKUP($A210,[5]Beta_Adrenorecepter!$A$11:$C$352,3,0)","v":673672.06056222296},48736.656282450669,{"$f":"VLOOKUP($A210,[5]Anti_platelet!$A$12:$C$335,3,0)","v":462836.00016486301},48736.656282450669,{"$f":"VLOOKUP($A210,[5]Diuretics!$A$12:$C$353,3,0)","v":691243.36263898795},48736.656282450669,{"$f":"VLOOKUP($A210,[5]Anti_arrhythmic_drugs!$A$11:$C$271,3,0)","v":118013.00021249799},48736.656282450669,{"$f":"VLOOKUP($A210,[5]Positive_Intotropic!$A$12:$C$297,3,0)","v":33690.049979329102},48736.656282450669,{"$f":"VLOOKUP($A210,[5]anti_fibrinolytic!$A$11:$C$287,3,0)","v":24636.430070400202},48736.656282450669,{"$f":"VLOOKUP($A210,[5]sympathomimetics!$A$11:$C$223,3,0)","v":83312.219991684004},48736.656282450669,{"$f":"VLOOKUP($A210,[5]CVD_All_prescriptions!$A$10:$C$392,3,0)","v":8841901.2455072794},{"$f":"VLOOKUP($A210,[5]CVD_All_prescriptions!$A$10:$C$392,2,0)","v":2991379}]
["99K","NHS High Weald Lewes Havens",{"$f":"VLOOKUP($A211,[4]CVD_All_prescriptions!$A$10:$D$223,4,0)","v":3691207.0000000098},{"$f":"VLOOKUP($A211,Lookup!$BP$3:$BW$213,7,0)","v":15490.748489074847},{"$f":"VLOOKUP($A211,[4]Lipid_regulators!$A$14:$D$227,4,0)","v":1157366.29},15490.748489074847,{"$f":"VLOOKUP($A211,[4]HyperandHeartfailure!$A$13:$D$226,4,0)","v":1005457.11},15490.748489074847,{"$f":"VLOOKUP($A211,[4]Nit_Calc_Antianginal!$A$13:$D$226,4,0)","v":498839.53},15490.748489074847,{"$f":"VLOOKUP($A211,[4]Anti_coagulants!$A$15:$D$227,4,0)","v":287607.81},15490.748489074847,{"$f":"VLOOKUP($A211,[4]Beta_Adrenorecepter!$A$13:$D$226,4,0)","v":251886.13},15490.748489074847,{"$f":"VLOOKUP($A211,[4]Anti_platelet!$A$13:$D$226,4,0)","v":180053.019999999},15490.748489074847,{"$f":"VLOOKUP($A211,[4]Diuretics!$A$11:$D$224,4,0)","v":219070.42},15490.748489074847,{"$f":"VLOOKUP($A211,[4]Anti_arrhythmic_drugs!$A$13:$D$226,4,0)","v":41412.359999999797},15490.748489074847,{"$f":"VLOOKUP($A211,[4]Positive_Intotropic!$A$13:$D$226,4,0)","v":18721.939999999999},15490.748489074847,{"$f":"VLOOKUP($A211,[4]anti_fibrinolytic!$A$13:$D$226,4,0)","v":10093.33},15490.748489074847,{"$f":"VLOOKUP($A211,[4]sympathomimetics!$A$11:$D$223,4,0)","v":20699.060000000001},15490.748489074847,{"$f":"VLOOKUP($A211,[4]CVD_All_prescriptions!$A$10:$D$223,4,0)","v":3691207.0000000098},{"$f":"VLOOKUP($A211,[4]CVD_All_prescriptions!$A$10:$D$223,3,0)","v":944326},{"$f":"VLOOKUP($A211,[5]CVD_All_prescriptions!$A$10:$C$392,3,0)","v":3372885.6608150401},{"$f":"VLOOKUP($A211,Lookup!$BP$3:$BW$213,8,0)","v":15499.488609948859},{"$f":"VLOOKUP($A211,[5]Lipid_regulators!$A$12:$C$345,3,0)","v":864096.25898709905},15499.488609948859,{"$f":"VLOOKUP($A211,[5]HyperandHeartfailure!$A$12:$C$356,3,0)","v":754917.68985893601},15499.488609948859,{"$f":"VLOOKUP($A211,[5]Nit_Calc_Antianginal!$A$12:$C$345,3,0)","v":499414.15961852699},15499.488609948859,{"$f":"VLOOKUP($A211,[5]Anti_coagulants!$A$11:$C$325,3,0)","v":399900.56013631099},15499.488609948859,{"$f":"VLOOKUP($A211,[5]Beta_Adrenorecepter!$A$11:$C$352,3,0)","v":279520.14027756499},15499.488609948859,{"$f":"VLOOKUP($A211,[5]Anti_platelet!$A$12:$C$335,3,0)","v":185071.420422405},15499.488609948859,{"$f":"VLOOKUP($A211,[5]Diuretics!$A$12:$C$353,3,0)","v":301747.451330051},15499.488609948859,{"$f":"VLOOKUP($A211,[5]Anti_arrhythmic_drugs!$A$11:$C$271,3,0)","v":41841.809982776598},15499.488609948859,{"$f":"VLOOKUP($A211,[5]Positive_Intotropic!$A$12:$C$297,3,0)","v":15204.9300168231},15499.488609948859,{"$f":"VLOOKUP($A211,[5]anti_fibrinolytic!$A$11:$C$287,3,0)","v":8711.5699737071991},15499.488609948859,{"$f":"VLOOKUP($A211,[5]sympathomimetics!$A$11:$C$223,3,0)","v":22459.6702108383},15499.488609948859,{"$f":"VLOOKUP($A211,[5]CVD_All_prescriptions!$A$10:$C$392,3,0)","v":3372885.6608150401},{"$f":"VLOOKUP($A211,[5]CVD_All_prescriptions!$A$10:$C$392,2,0)","v":947389}]
["99M","NHS North East Hampshire and Farnham",{"$f":"VLOOKUP($A212,[4]CVD_All_prescriptions!$A$10:$D$223,4,0)","v":3518457.72},{"$f":"VLOOKUP($A212,Lookup!$BP$3:$BW$213,7,0)","v":25402.506963788303},{"$f":"VLOOKUP($A212,[4]Lipid_regulators!$A$14:$D$227,4,0)","v":1162078.6399999999},25402.506963788303,{"$f":"VLOOKUP($A212,[4]HyperandHeartfailure!$A$13:$D$226,4,0)","v":937528.38999999803},25402.506963788303,{"$f":"VLOOKUP($A212,[4]Nit_Calc_Antianginal!$A$13:$D$226,4,0)","v":471282.16},25402.506963788303,{"$f":"VLOOKUP($A212,[4]Anti_coagulants!$A$15:$D$227,4,0)","v":168099.13},25402.506963788303,{"$f":"VLOOKUP($A212,[4]Beta_Adrenorecepter!$A$13:$D$226,4,0)","v":237352.12},25402.506963788303,{"$f":"VLOOKUP($A212,[4]Anti_platelet!$A$13:$D$226,4,0)","v":214658.52999999799},25402.506963788303,{"$f":"VLOOKUP($A212,[4]Diuretics!$A$11:$D$224,4,0)","v":222052.66000000099},25402.506963788303,{"$f":"VLOOKUP($A212,[4]Anti_arrhythmic_drugs!$A$13:$D$226,4,0)","v":57195.739999999903},25402.506963788303,{"$f":"VLOOKUP($A212,[4]Positive_Intotropic!$A$13:$D$226,4,0)","v":18803.77},25402.506963788303,{"$f":"VLOOKUP($A212,[4]anti_fibrinolytic!$A$13:$D$226,4,0)","v":11975.06},25402.506963788303,{"$f":"VLOOKUP($A212,[4]sympathomimetics!$A$11:$D$223,4,0)","v":17431.52},25402.506963788303,{"$f":"VLOOKUP($A212,[4]CVD_All_prescriptions!$A$10:$D$223,4,0)","v":3518457.72},{"$f":"VLOOKUP($A212,[4]CVD_All_prescriptions!$A$10:$D$223,3,0)","v":865864},{"$f":"VLOOKUP($A212,[5]CVD_All_prescriptions!$A$10:$C$392,3,0)","v":3441012.26318696},{"$f":"VLOOKUP($A212,Lookup!$BP$3:$BW$213,8,0)","v":25554.085422469823},{"$f":"VLOOKUP($A212,[5]Lipid_regulators!$A$12:$C$345,3,0)","v":939487.46087765705},25554.085422469823,{"$f":"VLOOKUP($A212,[5]HyperandHeartfailure!$A$12:$C$356,3,0)","v":786567.04017995996},25554.085422469823,{"$f":"VLOOKUP($A212,[5]Nit_Calc_Antianginal!$A$12:$C$345,3,0)","v":548054.81954823795},25554.085422469823,{"$f":"VLOOKUP($A212,[5]Anti_coagulants!$A$11:$C$325,3,0)","v":256014.28098804899},25554.085422469823,{"$f":"VLOOKUP($A212,[5]Beta_Adrenorecepter!$A$11:$C$352,3,0)","v":298938.990162812},25554.085422469823,{"$f":"VLOOKUP($A212,[5]Anti_platelet!$A$12:$C$335,3,0)","v":195144.50023099},25554.085422469823,{"$f":"VLOOKUP($A212,[5]Diuretics!$A$12:$C$353,3,0)","v":314446.88103168498},25554.085422469823,{"$f":"VLOOKUP($A212,[5]Anti_arrhythmic_drugs!$A$11:$C$271,3,0)","v":53143.749998986699},25554.085422469823,{"$f":"VLOOKUP($A212,[5]Positive_Intotropic!$A$12:$C$297,3,0)","v":16509.330007016699},25554.085422469823,{"$f":"VLOOKUP($A212,[5]anti_fibrinolytic!$A$11:$C$287,3,0)","v":9813.6599830389005},25554.085422469823,{"$f":"VLOOKUP($A212,[5]sympathomimetics!$A$11:$C$223,3,0)","v":22891.550178527799},25554.085422469823,{"$f":"VLOOKUP($A212,[5]CVD_All_prescriptions!$A$10:$C$392,3,0)","v":3441012.26318696},{"$f":"VLOOKUP($A212,[5]CVD_All_prescriptions!$A$10:$C$392,2,0)","v":901668}]
["99N","NHS Wiltshire",{"$f":"VLOOKUP($A213,[4]CVD_All_prescriptions!$A$10:$D$223,4,0)","v":8549897.2900000308},{"$f":"VLOOKUP($A213,Lookup!$BP$3:$BW$213,7,0)","v":46231.944714814097},{"$f":"VLOOKUP($A213,[4]Lipid_regulators!$A$14:$D$227,4,0)","v":2673244.7899999698},46231.944714814097,{"$f":"VLOOKUP($A213,[4]HyperandHeartfailure!$A$13:$D$226,4,0)","v":1838938.04},46231.944714814097,{"$f":"VLOOKUP($A213,[4]Nit_Calc_Antianginal!$A$13:$D$226,4,0)","v":1373506.98},46231.944714814097,{"$f":"VLOOKUP($A213,[4]Anti_coagulants!$A$15:$D$227,4,0)","v":765150.80000000098},46231.944714814097,{"$f":"VLOOKUP($A213,[4]Beta_Adrenorecepter!$A$13:$D$226,4,0)","v":620428.06000000401},46231.944714814097,{"$f":"VLOOKUP($A213,[4]Anti_platelet!$A$13:$D$226,4,0)","v":580743.72000000102},46231.944714814097,{"$f":"VLOOKUP($A213,[4]Diuretics!$A$11:$D$224,4,0)","v":510069.42999999499},46231.944714814097,{"$f":"VLOOKUP($A213,[4]Anti_arrhythmic_drugs!$A$13:$D$226,4,0)","v":68587.469999999899},46231.944714814097,{"$f":"VLOOKUP($A213,[4]Positive_Intotropic!$A$13:$D$226,4,0)","v":51862.3},46231.944714814097,{"$f":"VLOOKUP($A213,[4]anti_fibrinolytic!$A$13:$D$226,4,0)","v":29105.89},46231.944714814097,{"$f":"VLOOKUP($A213,[4]sympathomimetics!$A$11:$D$223,4,0)","v":16299.81},46231.944714814097,{"$f":"VLOOKUP($A213,[4]CVD_All_prescriptions!$A$10:$D$223,4,0)","v":8549897.2900000308},{"$f":"VLOOKUP($A213,[4]CVD_All_prescriptions!$A$10:$D$223,3,0)","v":2579547},{"$f":"VLOOKUP($A213,[5]CVD_All_prescriptions!$A$10:$C$392,3,0)","v":8565056.9529199693},{"$f":"VLOOKUP($A213,Lookup!$BP$3:$BW$213,8,0)","v":46545.649211602104},{"$f":"VLOOKUP($A213,[5]Lipid_regulators!$A$12:$C$345,3,0)","v":2149911.7601118302},46545.649211602104,{"$f":"VLOOKUP($A213,[5]HyperandHeartfailure!$A$12:$C$356,3,0)","v":1564207.4197505},46545.649211602104,{"$f":"VLOOKUP($A213,[5]Nit_Calc_Antianginal!$A$12:$C$345,3,0)","v":1471853.4991298199},46545.649211602104,{"$f":"VLOOKUP($A213,[5]Anti_coagulants!$A$11:$C$325,3,0)","v":1247993.92000229},46545.649211602104,{"$f":"VLOOKUP($A213,[5]Beta_Adrenorecepter!$A$11:$C$352,3,0)","v":712275.33094853},46545.649211602104,{"$f":"VLOOKUP($A213,[5]Anti_platelet!$A$12:$C$335,3,0)","v":585945.67999310396},46545.649211602104,{"$f":"VLOOKUP($A213,[5]Diuretics!$A$12:$C$353,3,0)","v":668962.71295599302},46545.649211602104,{"$f":"VLOOKUP($A213,[5]Anti_arrhythmic_drugs!$A$11:$C$271,3,0)","v":69616.550019830494},46545.649211602104,{"$f":"VLOOKUP($A213,[5]Positive_Intotropic!$A$12:$C$297,3,0)","v":43834.059958443002},46545.649211602104,{"$f":"VLOOKUP($A213,[5]anti_fibrinolytic!$A$11:$C$287,3,0)","v":27266.400032758698},46545.649211602104,{"$f":"VLOOKUP($A213,[5]sympathomimetics!$A$11:$C$223,3,0)","v":23189.620016872901},46545.649211602104,{"$f":"VLOOKUP($A213,[5]CVD_All_prescriptions!$A$10:$C$392,3,0)","v":8565056.9529199693},{"$f":"VLOOKUP($A213,[5]CVD_All_prescriptions!$A$10:$C$392,2,0)","v":2634187}]
["99P","NHS Northern, Eastern and Western Devon",{"$f":"VLOOKUP($A214,[4]CVD_All_prescriptions!$A$10:$D$223,4,0)","v":18330830.160000101},{"$f":"VLOOKUP($A214,Lookup!$BP$3:$BW$213,7,0)","v":83420.819081076086},{"$f":"VLOOKUP($A214,[4]Lipid_regulators!$A$14:$D$227,4,0)","v":5066549.5100000901},83420.819081076086,{"$f":"VLOOKUP($A214,[4]HyperandHeartfailure!$A$13:$D$226,4,0)","v":4861146.1900000004},83420.819081076086,{"$f":"VLOOKUP($A214,[4]Nit_Calc_Antianginal!$A$13:$D$226,4,0)","v":2948064.52999999},83420.819081076086,{"$f":"VLOOKUP($A214,[4]Anti_coagulants!$A$15:$D$227,4,0)","v":1399876.73},83420.819081076086,{"$f":"VLOOKUP($A214,[4]Beta_Adrenorecepter!$A$13:$D$226,4,0)","v":1539145.53000001},83420.819081076086,{"$f":"VLOOKUP($A214,[4]Anti_platelet!$A$13:$D$226,4,0)","v":1186405.5900000299},83420.819081076086,{"$f":"VLOOKUP($A214,[4]Diuretics!$A$11:$D$224,4,0)","v":1006936.26},83420.819081076086,{"$f":"VLOOKUP($A214,[4]Anti_arrhythmic_drugs!$A$13:$D$226,4,0)","v":118909.269999999},83420.819081076086,{"$f":"VLOOKUP($A214,[4]Positive_Intotropic!$A$13:$D$226,4,0)","v":113645.62},83420.819081076086,{"$f":"VLOOKUP($A214,[4]anti_fibrinolytic!$A$13:$D$226,4,0)","v":58982.770000000099},83420.819081076086,{"$f":"VLOOKUP($A214,[4]sympathomimetics!$A$11:$D$223,4,0)","v":31168.16},83420.819081076086,{"$f":"VLOOKUP($A214,[4]CVD_All_prescriptions!$A$10:$D$223,4,0)","v":18330830.160000101},{"$f":"VLOOKUP($A214,[4]CVD_All_prescriptions!$A$10:$D$223,3,0)","v":5688469},{"$f":"VLOOKUP($A214,[5]CVD_All_prescriptions!$A$10:$C$392,3,0)","v":17365688.9763644},{"$f":"VLOOKUP($A214,Lookup!$BP$3:$BW$213,8,0)","v":83987.796986225381},{"$f":"VLOOKUP($A214,[5]Lipid_regulators!$A$12:$C$345,3,0)","v":4158596.9417708898},83987.796986225381,{"$f":"VLOOKUP($A214,[5]HyperandHeartfailure!$A$12:$C$356,3,0)","v":3449675.8202724801},83987.796986225381,{"$f":"VLOOKUP($A214,[5]Nit_Calc_Antianginal!$A$12:$C$345,3,0)","v":3064583.2191752},83987.796986225381,{"$f":"VLOOKUP($A214,[5]Anti_coagulants!$A$11:$C$325,3,0)","v":1999650.0599211899},83987.796986225381,{"$f":"VLOOKUP($A214,[5]Beta_Adrenorecepter!$A$11:$C$352,3,0)","v":1845575.17072176},83987.796986225381,{"$f":"VLOOKUP($A214,[5]Anti_platelet!$A$12:$C$335,3,0)","v":1125818.8411699999},83987.796986225381,{"$f":"VLOOKUP($A214,[5]Diuretics!$A$12:$C$353,3,0)","v":1444844.1832894799},83987.796986225381,{"$f":"VLOOKUP($A214,[5]Anti_arrhythmic_drugs!$A$11:$C$271,3,0)","v":99117.340028479695},83987.796986225381,{"$f":"VLOOKUP($A214,[5]Positive_Intotropic!$A$12:$C$297,3,0)","v":92705.950036581606},83987.796986225381,{"$f":"VLOOKUP($A214,[5]anti_fibrinolytic!$A$11:$C$287,3,0)","v":50265.790033817299},83987.796986225381,{"$f":"VLOOKUP($A214,[5]sympathomimetics!$A$11:$C$223,3,0)","v":34807.259944438898},83987.796986225381,{"$f":"VLOOKUP($A214,[5]CVD_All_prescriptions!$A$10:$C$392,3,0)","v":17365688.9763644},{"$f":"VLOOKUP($A214,[5]CVD_All_prescriptions!$A$10:$C$392,2,0)","v":5811923}]
["99Q","NHS South Devon and Torbay",{"$f":"VLOOKUP($A215,[4]CVD_All_prescriptions!$A$10:$D$223,4,0)","v":6297558.1400000099},{"$f":"VLOOKUP($A215,Lookup!$BP$3:$BW$213,7,0)","v":24036.281179138321},{"$f":"VLOOKUP($A215,[4]Lipid_regulators!$A$14:$D$227,4,0)","v":1922013.05999999},24036.281179138321,{"$f":"VLOOKUP($A215,[4]HyperandHeartfailure!$A$13:$D$226,4,0)","v":1466679.87},24036.281179138321,{"$f":"VLOOKUP($A215,[4]Nit_Calc_Antianginal!$A$13:$D$226,4,0)","v":1205352.3799999999},24036.281179138321,{"$f":"VLOOKUP($A215,[4]Anti_coagulants!$A$15:$D$227,4,0)","v":412017.33999999898},24036.281179138321,{"$f":"VLOOKUP($A215,[4]Beta_Adrenorecepter!$A$13:$D$226,4,0)","v":393614.25},24036.281179138321,{"$f":"VLOOKUP($A215,[4]Anti_platelet!$A$13:$D$226,4,0)","v":422856.18999999802},24036.281179138321,{"$f":"VLOOKUP($A215,[4]Diuretics!$A$11:$D$224,4,0)","v":338152.78999999899},24036.281179138321,{"$f":"VLOOKUP($A215,[4]Anti_arrhythmic_drugs!$A$13:$D$226,4,0)","v":34924.849999999802},24036.281179138321,{"$f":"VLOOKUP($A215,[4]Positive_Intotropic!$A$13:$D$226,4,0)","v":46257.29},24036.281179138321,{"$f":"VLOOKUP($A215,[4]anti_fibrinolytic!$A$13:$D$226,4,0)","v":26133.1500000001},24036.281179138321,{"$f":"VLOOKUP($A215,[4]sympathomimetics!$A$11:$D$223,4,0)","v":29556.97},24036.281179138321,{"$f":"VLOOKUP($A215,[4]CVD_All_prescriptions!$A$10:$D$223,4,0)","v":6297558.1400000099},{"$f":"VLOOKUP($A215,[4]CVD_All_prescriptions!$A$10:$D$223,3,0)","v":1692004},{"$f":"VLOOKUP($A215,[5]CVD_All_prescriptions!$A$10:$C$392,3,0)","v":6253243.8323918497},{"$f":"VLOOKUP($A215,Lookup!$BP$3:$BW$213,8,0)","v":24205.257411606617},{"$f":"VLOOKUP($A215,[5]Lipid_regulators!$A$12:$C$345,3,0)","v":1681041.90080144},24205.257411606617,{"$f":"VLOOKUP($A215,[5]HyperandHeartfailure!$A$12:$C$356,3,0)","v":1069537.9704687099},24205.257411606617,{"$f":"VLOOKUP($A215,[5]Nit_Calc_Antianginal!$A$12:$C$345,3,0)","v":1272251.8195235999},24205.257411606617,{"$f":"VLOOKUP($A215,[5]Anti_coagulants!$A$11:$C$325,3,0)","v":684131.51002481999},24205.257411606617,{"$f":"VLOOKUP($A215,[5]Beta_Adrenorecepter!$A$11:$C$352,3,0)","v":495766.88040634198},24205.257411606617,{"$f":"VLOOKUP($A215,[5]Anti_platelet!$A$12:$C$335,3,0)","v":450517.83011931402},24205.257411606617,{"$f":"VLOOKUP($A215,[5]Diuretics!$A$12:$C$353,3,0)","v":459225.94111251802},24205.257411606617,{"$f":"VLOOKUP($A215,[5]Anti_arrhythmic_drugs!$A$11:$C$271,3,0)","v":37970.109986603296},24205.257411606617,{"$f":"VLOOKUP($A215,[5]Positive_Intotropic!$A$12:$C$297,3,0)","v":37468.669962175198},24205.257411606617,{"$f":"VLOOKUP($A215,[5]anti_fibrinolytic!$A$11:$C$287,3,0)","v":20490.3499464989},24205.257411606617,{"$f":"VLOOKUP($A215,[5]sympathomimetics!$A$11:$C$223,3,0)","v":44840.8500398248},24205.257411606617,{"$f":"VLOOKUP($A215,[5]CVD_All_prescriptions!$A$10:$C$392,3,0)","v":6253243.8323918497},{"$f":"VLOOKUP($A215,[5]CVD_All_prescriptions!$A$10:$C$392,2,0)","v":1729833}]

{"sheet":"outcome_data","index":19,"n_rows":216,"n_cols":66,"rows_kept":216,"cut":false,"hidden":true,"merged":[[3,22,3,23],[3,0,3,1],[3,2,3,3],[3,4,3,5],[3,6,3,7],[3,8,3,9],[3,10,3,11],[3,12,3,13],[3,14,3,15],[3,16,3,17],[3,18,3,19],[3,20,3,21],[3,46,3,47],[3,24,3,25],[3,26,3,27],[3,28,3,29],[3,30,3,31],[3,32,3,33],[3,34,3,35],[3,36,3,37],[3,38,3,39],[3,40,3,41],[3,42,3,43],[3,44,3,45],[3,60,3,61],[3,48,3,49],[3,50,3,51],[3,52,3,53],[3,54,3,55],[3,56,3,57],[3,58,3,59]]}
[null,null,3,4,5,6,7,8,9,10,11,12,13,14,15,16,17,18,19,20,21,22,23,24,25,26,27,28,29,30,31,32,33,34,35,36,37,38,39,40,41,42,43,44,45,46,47,48,49,50,51,52,53,54,55,56,57,58,59,60,61,62,63,64,65,66]
[null,null,"Year 2012/13","Year 2012/13","Year 2012/13","Year 2012/13","Year 2012/13","Year 2012/13","Year 2012/13","Year 2012/13","Year 2012/13","Year 2012/13","Year 2012/13","Year 2012/13","Year 2012/13","Year 2012/13","Year 2012/13","Year 2012/13","Year 2012/13","Year 2012/13","Year 2012/13","Year 2012/13","Year 2012/13","Year 2012/13","Year 2012/13","Year 2012/13","Year 2012/13","Year 2012/13","Year 2012/13","Year 2012/13","Year 2012/13","Year 2012/13","Year 2013/14","Year 2013/14","Year 2013/14","Year 2013/14","Year 2013/14","Year 2013/14","Year 2013/14","Year 2013/14","Year 2013/14","Year 2013/14","Year 2013/14","Year 2013/14","Year 2013/14","Year 2013/14","Year 2013/14","Year 2013/14","Year 2013/14","Year 2013/14","Year 2013/14","Year 2013/14","Year 2013/14","Year 2013/14","Year 2013/14","Year 2013/14","Year 2013/14","Year 2013/14","Year 2013/14","Year 2013/14","Year 2013/14","Year 2013/14"]
[null,null,"Ind1","DM26","Ind2","DM26","Ind3","DM27","Ind4","DM27","Ind5","DM28","Ind6","DM28","Ind7",null,"Ind8",null,"Ind9",null,"Ind10",null,"Ind11",null,"Ind12",null,"Ind13",null,"Ind14",null,"Ind15",null,"Ind1","DM26","Ind2","DM26","Ind3","DM27","Ind4","DM27","Ind5","DM28","Ind6","DM28","Ind7",null,"Ind8",null,"Ind9",null,"Ind10",null,"Ind11",null,"Ind12",null,"Ind13",null,"Ind14",null,"Ind15"]
[null,null,"Under 75 mortality from cardiovascular disease ",null,"Admissions for stroke (all ages)",null,"Admissions for coronary heart disease (all ages)",null,"Admissions for heart failure (all ages)",null,"Admissions for angiography (all ages)",null,"Admissions for angioplasty (all ages)",null,"Admissions for coronary artery bypass graft (all ages)",null,"The percentage of patients on the coronary heart disease register and blood pressure 150/90 or less",null,"The percentage of patients on the coronary heart disease register and cholesterol 5.0mmol/l or less",null,"The percentage of patients on the hypertension register and blood pressure 150/90 or less",null,"The percentage of patients on the chronic kidney disease register in whom the last blood pressure reading is 140/85 or less",null,"The percentage of patients on the peripheral arterial disease register in whom the last blood  pressure reading  is 150/90 or less",null,"The percentage of patients on the peripheral arterial disease register in whom the last  measured total cholesterol is 5.0mmol/l or less.",null,"The percentage of patients stroke register and blood pressure 150/90 or less",null,"The percentage of people on the stroke register and a cholesterol 5.0 mmol/l or less",null,"Under 75 mortality from cardiovascular disease ",null,"Admissions for stroke (all ages)",null,"Admissions for coronary heart disease (all ages)",null,"Admissions for heart failure (all ages)",null,"Admissions for angiography (all ages)",null,"Admissions for angioplasty (all ages)",null,"Admissions for coronary artery bypass graft (all ages)",null,"The percentage of patients on the coronary heart disease register and blood pressure 150/90 or less",null,"The percentage of patients on the coronary heart disease register and cholesterol 5.0mmol/l or less",null,"The percentage of patients on the hypertension register and blood pressure 150/90 or less",null,"The percentage of patients on the chronic kidney disease register in whom the last blood pressure reading is 140/85 or less",null,"The percentage of patients on the peripheral arterial disease register in whom the last blood  pressure reading  is 150/90 or less",null,"The percentage of patients on the peripheral arterial disease register in whom the last  measured total cholesterol is 5.0mmol/l or less.",null,"The percentage of patients stroke register and blood pressure 150/90 or less",null,"The percentage of people on the stroke register and a cholesterol 5.0 mmol/l or less"]
["CCG Code","CCGName","Numerator","Denominator","Numerator","Denominator","Numerator","Denominator","Numerator","Denominator","Numerator","Denominator","Numerator","Denominator","Numerator","Denominator","Numerator","Denominator","Numerator","Denominator","Numerator","Denominator","Numerator","Denominator","Numerator","Denominator","Numerator","Denominator","Numerator","Denominator","Numerator","Denominator","Numerator","Denominator","Numerator","Denominator","Numerator","Denominator","Numerator","Denominator","Numerator","Denominator","Numerator","Denominator","Numerator","Denominator","Numerator","Denominator","Numerator","Denominator","Numerator","Denominator","Numerator","Denominator","Numerator","Denominator","Numerator","Denominator","Numerator","Denominator","Numerator","Denominator"]
["00C","NHS Darlington",{"$f":"VLOOKUP($A6,'[6]201314'!$C$19:$J$256,8,0)","v":69},{"$f":"VLOOKUP($A6,'[6]201314'!$C$19:$J$256,7,0)","v":97489},{"$f":"VLOOKUP($A6,[7]Data!$A$6:$H$228,4,0)","v":184},{"$f":"VLOOKUP(A6,[3]CHD!$E$15:$H$226,4,0)","v":106334},{"$f":"VLOOKUP($A6,[7]Data!$A$6:$H$228,3,0)","v":483},{"$f":"F6","v":106334},{"$f":"VLOOKUP($A6,[7]Data!$A$6:$H$228,5,0)","v":115},{"$f":"F6","v":106334},{"$f":"VLOOKUP($A6,[7]Data!$A$6:$H$228,6,0)","v":319},{"$f":"F6","v":106334},{"$f":"VLOOKUP($A6,[7]Data!$A$6:$H$228,7,0)","v":107},{"$f":"F6","v":106334},{"$f":"VLOOKUP($A6,[7]Data!$A$6:$H$228,8,0)","v":51},{"$f":"F6","v":106334},{"$f":"VLOOKUP($A6,[8]CHD06!$E$15:$O$225,5,0)","v":3799},{"$f":"VLOOKUP($A6,[8]CHD06!$E$15:$O$225,10,0)","v":4286},{"$f":"VLOOKUP($A6,[8]CHD08!$E$15:$O$225,5,0)","v":3343},{"$f":"VLOOKUP($A6,[8]CHD08!$E$15:$O$225,10,0)","v":4286},{"$f":"VLOOKUP($A6,[9]BP05!$E$14:$O$225,5,0)","v":12293},{"$f":"VLOOKUP($A6,[9]BP05!$E$14:$O$225,10,0)","v":15707},{"$f":"VLOOKUP($A6,[10]CKD03!$E$14:$O$225,5,0)","v":2773},{"$f":"VLOOKUP($A6,[10]CKD03!$E$14:$O$225,10,0)","v":3882},{"$f":"VLOOKUP($A6,[11]PAD03!$E$14:$O$225,5,0)","v":897},{"$f":"VLOOKUP($A6,[11]PAD03!$E$14:$O$225,10,0)","v":1045},{"$f":"VLOOKUP($A6,[11]PAD04!$E$14:$O$225,5,0)","v":757},{"$f":"VLOOKUP($A6,[11]PAD04!$E$14:$O$225,10,0)","v":1045},{"$f":"VLOOKUP($A6,[12]STROKE06!$E$14:$O$225,5,0)","v":1881},{"$f":"VLOOKUP($A6,[12]STROKE06!$E$14:$O$225,10,0)","v":2136},{"$f":"VLOOKUP($A6,[12]STROKE08!$E$14:$O$225,5,0)","v":1571},{"$f":"VLOOKUP($A6,[12]STROKE08!$E$14:$O$225,10,0)","v":2136},null,null,null,null,null,null,null,null,null,null,null,null,null,null,{"$f":"VLOOKUP($A6,[3]CHD!$E$14:$BS$226,29,0)","v":3876},{"$f":"VLOOKUP($A6,[3]CHD!$E$14:$BS$226,34,0)","v":4269},{"$f":"VLOOKUP($A6,[3]CHD!$E$14:$BS$226,37,0)","v":3280},{"$f":"VLOOKUP($A6,[3]CHD!$E$14:$BS$226,42,0)","v":4269},{"$f":"VLOOKUP($A6,[3]HYP!$E$14:$BK$226,29,0)","v":13012},{"$f":"VLOOKUP($A6,[3]HYP!$E$14:$BK$226,34,0)","v":15983},{"$f":"VLOOKUP($A6,[3]CKD!$E$14:$BG$230,33,0)","v":1866},{"$f":"VLOOKUP($A6,[3]CKD!$E$14:$BG$230,38,0)","v":2421},{"$f":"VLOOKUP(A6,[3]PAD!$E$14:$BC$226,29,0)","v":916},{"$f":"VLOOKUP($A6,[3]PAD!$E$14:$BC$226,34,0)","v":1034},{"$f":"VLOOKUP($A6,[3]PAD!$E$14:$BC$226,37,0)","v":755},{"$f":"VLOOKUP($A6,[3]PAD!$E$14:$BC$226,42,0)","v":1034},{"$f":"VLOOKUP($A6,[3]STIA!$E$14:$CA$230,37,0)","v":1942},{"$f":"VLOOKUP($A6,[3]STIA!$E$14:$CA$230,42,0)","v":2213},{"$f":"VLOOKUP($A6,[3]STIA!$E$14:$CA$230,53,0)","v":1194},{"$f":"VLOOKUP($A6,[3]STIA!$E$14:$CA$230,58,0)","v":1625}]
["00D","NHS Durham Dales, Easington and Sedgefield",{"$f":"VLOOKUP($A7,'[6]201314'!$C$19:$J$256,8,0)","v":232},{"$f":"VLOOKUP($A7,'[6]201314'!$C$19:$J$256,7,0)","v":263669},{"$f":"VLOOKUP($A7,[7]Data!$A$6:$H$228,4,0)","v":565},{"$f":"VLOOKUP(A7,[3]CHD!$E$15:$H$226,4,0)","v":287872},{"$f":"VLOOKUP($A7,[7]Data!$A$6:$H$228,3,0)","v":1742},{"$f":"F7","v":287872},{"$f":"VLOOKUP($A7,[7]Data!$A$6:$H$228,5,0)","v":368},{"$f":"F7","v":287872},{"$f":"VLOOKUP($A7,[7]Data!$A$6:$H$228,6,0)","v":1198},{"$f":"F7","v":287872},{"$f":"VLOOKUP($A7,[7]Data!$A$6:$H$228,7,0)","v":387},{"$f":"F7","v":287872},{"$f":"VLOOKUP($A7,[7]Data!$A$6:$H$228,8,0)","v":145},{"$f":"F7","v":287872},{"$f":"VLOOKUP($A7,[8]CHD06!$E$15:$O$225,5,0)","v":13399},{"$f":"VLOOKUP($A7,[8]CHD06!$E$15:$O$225,10,0)","v":15153},{"$f":"VLOOKUP($A7,[8]CHD08!$E$15:$O$225,5,0)","v":11430},{"$f":"VLOOKUP($A7,[8]CHD08!$E$15:$O$225,10,0)","v":15153},{"$f":"VLOOKUP($A7,[9]BP05!$E$14:$O$225,5,0)","v":37673},{"$f":"VLOOKUP($A7,[9]BP05!$E$14:$O$225,10,0)","v":47897},{"$f":"VLOOKUP($A7,[10]CKD03!$E$14:$O$225,5,0)","v":7996},{"$f":"VLOOKUP($A7,[10]CKD03!$E$14:$O$225,10,0)","v":11082},{"$f":"VLOOKUP($A7,[11]PAD03!$E$14:$O$225,5,0)","v":2728},{"$f":"VLOOKUP($A7,[11]PAD03!$E$14:$O$225,10,0)","v":3173},{"$f":"VLOOKUP($A7,[11]PAD04!$E$14:$O$225,5,0)","v":2294},{"$f":"VLOOKUP($A7,[11]PAD04!$E$14:$O$225,10,0)","v":3173},{"$f":"VLOOKUP($A7,[12]STROKE06!$E$14:$O$225,5,0)","v":5592},{"$f":"VLOOKUP($A7,[12]STROKE06!$E$14:$O$225,10,0)","v":6502},{"$f":"VLOOKUP($A7,[12]STROKE08!$E$14:$O$225,5,0)","v":4690},{"$f":"VLOOKUP($A7,[12]STROKE08!$E$14:$O$225,10,0)","v":6502},null,null,null,null,null,null,null,null,null,null,null,null,null,null,{"$f":"VLOOKUP($A7,[3]CHD!$E$14:$BS$226,29,0)","v":13680},{"$f":"VLOOKUP($A7,[3]CHD!$E$14:$BS$226,34,0)","v":15123},{"$f":"VLOOKUP($A7,[3]CHD!$E$14:$BS$226,37,0)","v":11352},{"$f":"VLOOKUP($A7,[3]CHD!$E$14:$BS$226,42,0)","v":15123},{"$f":"VLOOKUP($A7,[3]HYP!$E$14:$BK$226,29,0)","v":39968},{"$f":"VLOOKUP($A7,[3]HYP!$E$14:$BK$226,34,0)","v":48794},{"$f":"VLOOKUP($A7,[3]CKD!$E$14:$BG$230,33,0)","v":7596},{"$f":"VLOOKUP($A7,[3]CKD!$E$14:$BG$230,38,0)","v":9810},{"$f":"VLOOKUP(A7,[3]PAD!$E$14:$BC$226,29,0)","v":2796},{"$f":"VLOOKUP($A7,[3]PAD!$E$14:$BC$226,34,0)","v":3164},{"$f":"VLOOKUP($A7,[3]PAD!$E$14:$BC$226,37,0)","v":2254},{"$f":"VLOOKUP($A7,[3]PAD!$E$14:$BC$226,42,0)","v":3164},{"$f":"VLOOKUP($A7,[3]STIA!$E$14:$CA$230,37,0)","v":5818},{"$f":"VLOOKUP($A7,[3]STIA!$E$14:$CA$230,42,0)","v":6643},{"$f":"VLOOKUP($A7,[3]STIA!$E$14:$CA$230,53,0)","v":3002},{"$f":"VLOOKUP($A7,[3]STIA!$E$14:$CA$230,58,0)","v":4196}]
["00F","NHS Gateshead",{"$f":"VLOOKUP($A8,'[6]201314'!$C$19:$J$256,8,0)","v":156},{"$f":"VLOOKUP($A8,'[6]201314'!$C$19:$J$256,7,0)","v":187507},{"$f":"VLOOKUP($A8,[7]Data!$A$6:$H$228,4,0)","v":368},{"$f":"VLOOKUP(A8,[3]CHD!$E$15:$H$226,4,0)","v":206317},{"$f":"VLOOKUP($A8,[7]Data!$A$6:$H$228,3,0)","v":1018},206317,{"$f":"VLOOKUP($A8,[7]Data!$A$6:$H$228,5,0)","v":254},206317,{"$f":"VLOOKUP($A8,[7]Data!$A$6:$H$228,6,0)","v":788},206317,{"$f":"VLOOKUP($A8,[7]Data!$A$6:$H$228,7,0)","v":368},206317,{"$f":"VLOOKUP($A8,[7]Data!$A$6:$H$228,8,0)","v":27},206317,{"$f":"VLOOKUP($A8,[8]CHD06!$E$15:$O$225,5,0)","v":7804},{"$f":"VLOOKUP($A8,[8]CHD06!$E$15:$O$225,10,0)","v":8904},{"$f":"VLOOKUP($A8,[8]CHD08!$E$15:$O$225,5,0)","v":6763},{"$f":"VLOOKUP($A8,[8]CHD08!$E$15:$O$225,10,0)","v":8904},{"$f":"VLOOKUP($A8,[9]BP05!$E$14:$O$225,5,0)","v":25704},{"$f":"VLOOKUP($A8,[9]BP05!$E$14:$O$225,10,0)","v":33455},{"$f":"VLOOKUP($A8,[10]CKD03!$E$14:$O$225,5,0)","v":6668},{"$f":"VLOOKUP($A8,[10]CKD03!$E$14:$O$225,10,0)","v":9523},{"$f":"VLOOKUP($A8,[11]PAD03!$E$14:$O$225,5,0)","v":1987},{"$f":"VLOOKUP($A8,[11]PAD03!$E$14:$O$225,10,0)","v":2297},{"$f":"VLOOKUP($A8,[11]PAD04!$E$14:$O$225,5,0)","v":1667},{"$f":"VLOOKUP($A8,[11]PAD04!$E$14:$O$225,10,0)","v":2297},{"$f":"VLOOKUP($A8,[12]STROKE06!$E$14:$O$225,5,0)","v":3726},{"$f":"VLOOKUP($A8,[12]STROKE06!$E$14:$O$225,10,0)","v":4375},{"$f":"VLOOKUP($A8,[12]STROKE08!$E$14:$O$225,5,0)","v":3093},{"$f":"VLOOKUP($A8,[12]STROKE08!$E$14:$O$225,10,0)","v":4375},null,null,null,null,null,null,null,null,null,null,null,null,null,null,{"$f":"VLOOKUP($A8,[3]CHD!$E$14:$BS$226,29,0)","v":7731},{"$f":"VLOOKUP($A8,[3]CHD!$E$14:$BS$226,34,0)","v":8728},{"$f":"VLOOKUP($A8,[3]CHD!$E$14:$BS$226,37,0)","v":6658},{"$f":"VLOOKUP($A8,[3]CHD!$E$14:$BS$226,42,0)","v":8728},{"$f":"VLOOKUP($A8,[3]HYP!$E$14:$BK$226,29,0)","v":26510},{"$f":"VLOOKUP($A8,[3]HYP!$E$14:$BK$226,34,0)","v":33484},{"$f":"VLOOKUP($A8,[3]CKD!$E$14:$BG$230,33,0)","v":7142},{"$f":"VLOOKUP($A8,[3]CKD!$E$14:$BG$230,38,0)","v":9439},{"$f":"VLOOKUP(A8,[3]PAD!$E$14:$BC$226,29,0)","v":1912},{"$f":"VLOOKUP($A8,[3]PAD!$E$14:$BC$226,34,0)","v":2207},{"$f":"VLOOKUP($A8,[3]PAD!$E$14:$BC$226,37,0)","v":1637},{"$f":"VLOOKUP($A8,[3]PAD!$E$14:$BC$226,42,0)","v":2207},{"$f":"VLOOKUP($A8,[3]STIA!$E$14:$CA$230,37,0)","v":3774},{"$f":"VLOOKUP($A8,[3]STIA!$E$14:$CA$230,42,0)","v":4408},{"$f":"VLOOKUP($A8,[3]STIA!$E$14:$CA$230,53,0)","v":1758},{"$f":"VLOOKUP($A8,[3]STIA!$E$14:$CA$230,58,0)","v":2448}]
["00G","NHS Newcastle North and East",{"$f":"VLOOKUP($A9,'[6]201314'!$C$19:$J$256,8,0)","v":65},{"$f":"VLOOKUP($A9,'[6]201314'!$C$19:$J$256,7,0)","v":147213},{"$f":"VLOOKUP($A9,[7]Data!$A$6:$H$228,4,0)","v":200},{"$f":"VLOOKUP(A9,[3]CHD!$E$15:$H$226,4,0)","v":156001},{"$f":"VLOOKUP($A9,[7]Data!$A$6:$H$228,3,0)","v":461},156001,{"$f":"VLOOKUP($A9,[7]Data!$A$6:$H$228,5,0)","v":132},156001,{"$f":"VLOOKUP($A9,[7]Data!$A$6:$H$228,6,0)","v":400},156001,{"$f":"VLOOKUP($A9,[7]Data!$A$6:$H$228,7,0)","v":236},156001,{"$f":"VLOOKUP($A9,[7]Data!$A$6:$H$228,8,0)","v":28},156001,{"$f":"VLOOKUP($A9,[8]CHD06!$E$15:$O$225,5,0)","v":4155},{"$f":"VLOOKUP($A9,[8]CHD06!$E$15:$O$225,10,0)","v":4585},{"$f":"VLOOKUP($A9,[8]CHD08!$E$15:$O$225,5,0)","v":3514},{"$f":"VLOOKUP($A9,[8]CHD08!$E$15:$O$225,10,0)","v":4585},{"$f":"VLOOKUP($A9,[9]BP05!$E$14:$O$225,5,0)","v":13814},{"$f":"VLOOKUP($A9,[9]BP05!$E$14:$O$225,10,0)","v":17479},{"$f":"VLOOKUP($A9,[10]CKD03!$E$14:$O$225,5,0)","v":5040},{"$f":"VLOOKUP($A9,[10]CKD03!$E$14:$O$225,10,0)","v":6629},{"$f":"VLOOKUP($A9,[11]PAD03!$E$14:$O$225,5,0)","v":1164},{"$f":"VLOOKUP($A9,[11]PAD03!$E$14:$O$225,10,0)","v":1317},{"$f":"VLOOKUP($A9,[11]PAD04!$E$14:$O$225,5,0)","v":984},{"$f":"VLOOKUP($A9,[11]PAD04!$E$14:$O$225,10,0)","v":1317},{"$f":"VLOOKUP($A9,[12]STROKE06!$E$14:$O$225,5,0)","v":2221},{"$f":"VLOOKUP($A9,[12]STROKE06!$E$14:$O$225,10,0)","v":2545},{"$f":"VLOOKUP($A9,[12]STROKE08!$E$14:$O$225,5,0)","v":1855},{"$f":"VLOOKUP($A9,[12]STROKE08!$E$14:$O$225,10,0)","v":2545},null,null,null,null,null,null,null,null,null,null,null,null,null,null,{"$f":"VLOOKUP($A9,[3]CHD!$E$14:$BS$226,29,0)","v":4081},{"$f":"VLOOKUP($A9,[3]CHD!$E$14:$BS$226,34,0)","v":4493},{"$f":"VLOOKUP($A9,[3]CHD!$E$14:$BS$226,37,0)","v":3348},{"$f":"VLOOKUP($A9,[3]CHD!$E$14:$BS$226,42,0)","v":4493},{"$f":"VLOOKUP($A9,[3]HYP!$E$14:$BK$226,29,0)","v":14509},{"$f":"VLOOKUP($A9,[3]HYP!$E$14:$BK$226,34,0)","v":17860},{"$f":"VLOOKUP($A9,[3]CKD!$E$14:$BG$230,33,0)","v":4784},{"$f":"VLOOKUP($A9,[3]CKD!$E$14:$BG$230,38,0)","v":6046},{"$f":"VLOOKUP(A9,[3]PAD!$E$14:$BC$226,29,0)","v":1188},{"$f":"VLOOKUP($A9,[3]PAD!$E$14:$BC$226,34,0)","v":1316},{"$f":"VLOOKUP($A9,[3]PAD!$E$14:$BC$226,37,0)","v":968},{"$f":"VLOOKUP($A9,[3]PAD!$E$14:$BC$226,42,0)","v":1316},{"$f":"VLOOKUP($A9,[3]STIA!$E$14:$CA$230,37,0)","v":2240},{"$f":"VLOOKUP($A9,[3]STIA!$E$14:$CA$230,42,0)","v":2570},{"$f":"VLOOKUP($A9,[3]STIA!$E$14:$CA$230,53,0)","v":1277},{"$f":"VLOOKUP($A9,[3]STIA!$E$14:$CA$230,58,0)","v":1811}]
["00H","NHS Newcastle West",{"$f":"VLOOKUP($A10,'[6]201314'!$C$19:$J$256,8,0)","v":92},{"$f":"VLOOKUP($A10,'[6]201314'!$C$19:$J$256,7,0)","v":122516},{"$f":"VLOOKUP($A10,[7]Data!$A$6:$H$228,4,0)","v":193},{"$f":"VLOOKUP(A10,[3]CHD!$E$15:$H$226,4,0)","v":132239},{"$f":"VLOOKUP($A10,[7]Data!$A$6:$H$228,3,0)","v":548},132239,{"$f":"VLOOKUP($A10,[7]Data!$A$6:$H$228,5,0)","v":172},132239,{"$f":"VLOOKUP($A10,[7]Data!$A$6:$H$228,6,0)","v":488},132239,{"$f":"VLOOKUP($A10,[7]Data!$A$6:$H$228,7,0)","v":270},132239,{"$f":"VLOOKUP($A10,[7]Data!$A$6:$H$228,8,0)","v":23},132239,{"$f":"VLOOKUP($A10,[8]CHD06!$E$15:$O$225,5,0)","v":4684},{"$f":"VLOOKUP($A10,[8]CHD06!$E$15:$O$225,10,0)","v":5195},{"$f":"VLOOKUP($A10,[8]CHD08!$E$15:$O$225,5,0)","v":3930},{"$f":"VLOOKUP($A10,[8]CHD08!$E$15:$O$225,10,0)","v":5195},{"$f":"VLOOKUP($A10,[9]BP05!$E$14:$O$225,5,0)","v":14609},{"$f":"VLOOKUP($A10,[9]BP05!$E$14:$O$225,10,0)","v":18288},{"$f":"VLOOKUP($A10,[10]CKD03!$E$14:$O$225,5,0)","v":5328},{"$f":"VLOOKUP($A10,[10]CKD03!$E$14:$O$225,10,0)","v":6942},{"$f":"VLOOKUP($A10,[11]PAD03!$E$14:$O$225,5,0)","v":1295},{"$f":"VLOOKUP($A10,[11]PAD03!$E$14:$O$225,10,0)","v":1508},{"$f":"VLOOKUP($A10,[11]PAD04!$E$14:$O$225,5,0)","v":1139},{"$f":"VLOOKUP($A10,[11]PAD04!$E$14:$O$225,10,0)","v":1508},{"$f":"VLOOKUP($A10,[12]STROKE06!$E$14:$O$225,5,0)","v":2479},{"$f":"VLOOKUP($A10,[12]STROKE06!$E$14:$O$225,10,0)","v":2832},{"$f":"VLOOKUP($A10,[12]STROKE08!$E$14:$O$225,5,0)","v":2032},{"$f":"VLOOKUP($A10,[12]STROKE08!$E$14:$O$225,10,0)","v":2832},null,null,null,null,null,null,null,null,null,null,null,null,null,null,{"$f":"VLOOKUP($A10,[3]CHD!$E$14:$BS$226,29,0)","v":4615},{"$f":"VLOOKUP($A10,[3]CHD!$E$14:$BS$226,34,0)","v":5104},{"$f":"VLOOKUP($A10,[3]CHD!$E$14:$BS$226,37,0)","v":3914},{"$f":"VLOOKUP($A10,[3]CHD!$E$14:$BS$226,42,0)","v":5104},{"$f":"VLOOKUP($A10,[3]HYP!$E$14:$BK$226,29,0)","v":14836},{"$f":"VLOOKUP($A10,[3]HYP!$E$14:$BK$226,34,0)","v":18341},{"$f":"VLOOKUP($A10,[3]CKD!$E$14:$BG$230,33,0)","v":4694},{"$f":"VLOOKUP($A10,[3]CKD!$E$14:$BG$230,38,0)","v":5924},{"$f":"VLOOKUP(A10,[3]PAD!$E$14:$BC$226,29,0)","v":1277},{"$f":"VLOOKUP($A10,[3]PAD!$E$14:$BC$226,34,0)","v":1455},{"$f":"VLOOKUP($A10,[3]PAD!$E$14:$BC$226,37,0)","v":1068},{"$f":"VLOOKUP($A10,[3]PAD!$E$14:$BC$226,42,0)","v":1455},{"$f":"VLOOKUP($A10,[3]STIA!$E$14:$CA$230,37,0)","v":2499},{"$f":"VLOOKUP($A10,[3]STIA!$E$14:$CA$230,42,0)","v":2858},{"$f":"VLOOKUP($A10,[3]STIA!$E$14:$CA$230,53,0)","v":1627},{"$f":"VLOOKUP($A10,[3]STIA!$E$14:$CA$230,58,0)","v":2176}]
["00J","NHS North Durham",{"$f":"VLOOKUP($A11,'[6]201314'!$C$19:$J$256,8,0)","v":175},{"$f":"VLOOKUP($A11,'[6]201314'!$C$19:$J$256,7,0)","v":230194},{"$f":"VLOOKUP($A11,[7]Data!$A$6:$H$228,4,0)","v":387},{"$f":"VLOOKUP(A11,[3]CHD!$E$15:$H$226,4,0)","v":250298},{"$f":"VLOOKUP($A11,[7]Data!$A$6:$H$228,3,0)","v":1364},250298,{"$f":"VLOOKUP($A11,[7]Data!$A$6:$H$228,5,0)","v":334},250298,{"$f":"VLOOKUP($A11,[7]Data!$A$6:$H$228,6,0)","v":919},250298,{"$f":"VLOOKUP($A11,[7]Data!$A$6:$H$228,7,0)","v":323},250298,{"$f":"VLOOKUP($A11,[7]Data!$A$6:$H$228,8,0)","v":79},250298,{"$f":"VLOOKUP($A11,[8]CHD06!$E$15:$O$225,5,0)","v":10237},{"$f":"VLOOKUP($A11,[8]CHD06!$E$15:$O$225,10,0)","v":11449},{"$f":"VLOOKUP($A11,[8]CHD08!$E$15:$O$225,5,0)","v":8372},{"$f":"VLOOKUP($A11,[8]CHD08!$E$15:$O$225,10,0)","v":11449},{"$f":"VLOOKUP($A11,[9]BP05!$E$14:$O$225,5,0)","v":30139},{"$f":"VLOOKUP($A11,[9]BP05!$E$14:$O$225,10,0)","v":38381},{"$f":"VLOOKUP($A11,[10]CKD03!$E$14:$O$225,5,0)","v":6950},{"$f":"VLOOKUP($A11,[10]CKD03!$E$14:$O$225,10,0)","v":9551},{"$f":"VLOOKUP($A11,[11]PAD03!$E$14:$O$225,5,0)","v":1864},{"$f":"VLOOKUP($A11,[11]PAD03!$E$14:$O$225,10,0)","v":2117},{"$f":"VLOOKUP($A11,[11]PAD04!$E$14:$O$225,5,0)","v":1476},{"$f":"VLOOKUP($A11,[11]PAD04!$E$14:$O$225,10,0)","v":2117},{"$f":"VLOOKUP($A11,[12]STROKE06!$E$14:$O$225,5,0)","v":4561},{"$f":"VLOOKUP($A11,[12]STROKE06!$E$14:$O$225,10,0)","v":5267},{"$f":"VLOOKUP($A11,[12]STROKE08!$E$14:$O$225,5,0)","v":3696},{"$f":"VLOOKUP($A11,[12]STROKE08!$E$14:$O$225,10,0)","v":5267},null,null,null,null,null,null,null,null,null,null,null,null,null,null,{"$f":"VLOOKUP($A11,[3]CHD!$E$14:$BS$226,29,0)","v":10146},{"$f":"VLOOKUP($A11,[3]CHD!$E$14:$BS$226,34,0)","v":11316},{"$f":"VLOOKUP($A11,[3]CHD!$E$14:$BS$226,37,0)","v":8229},{"$f":"VLOOKUP($A11,[3]CHD!$E$14:$BS$226,42,0)","v":11316},{"$f":"VLOOKUP($A11,[3]HYP!$E$14:$BK$226,29,0)","v":31141},{"$f":"VLOOKUP($A11,[3]HYP!$E$14:$BK$226,34,0)","v":38790},{"$f":"VLOOKUP($A11,[3]CKD!$E$14:$BG$230,33,0)","v":6562},{"$f":"VLOOKUP($A11,[3]CKD!$E$14:$BG$230,38,0)","v":8564},{"$f":"VLOOKUP(A11,[3]PAD!$E$14:$BC$226,29,0)","v":1842},{"$f":"VLOOKUP($A11,[3]PAD!$E$14:$BC$226,34,0)","v":2124},{"$f":"VLOOKUP($A11,[3]PAD!$E$14:$BC$226,37,0)","v":1469},{"$f":"VLOOKUP($A11,[3]PAD!$E$14:$BC$226,42,0)","v":2124},{"$f":"VLOOKUP($A11,[3]STIA!$E$14:$CA$230,37,0)","v":4631},{"$f":"VLOOKUP($A11,[3]STIA!$E$14:$CA$230,42,0)","v":5339},{"$f":"VLOOKUP($A11,[3]STIA!$E$14:$CA$230,53,0)","v":2491},{"$f":"VLOOKUP($A11,[3]STIA!$E$14:$CA$230,58,0)","v":3511}]
["00K","NHS Hartlepool and Stockton-On-Tees",{"$f":"VLOOKUP($A12,'[6]201314'!$C$19:$J$256,8,0)","v":184},{"$f":"VLOOKUP($A12,'[6]201314'!$C$19:$J$256,7,0)","v":269151},{"$f":"VLOOKUP($A12,[7]Data!$A$6:$H$228,4,0)","v":475},{"$f":"VLOOKUP(A12,[3]CHD!$E$15:$H$226,4,0)","v":291123},{"$f":"VLOOKUP($A12,[7]Data!$A$6:$H$228,3,0)","v":1409},291123,{"$f":"VLOOKUP($A12,[7]Data!$A$6:$H$228,5,0)","v":250},291123,{"$f":"VLOOKUP($A12,[7]Data!$A$6:$H$228,6,0)","v":1050},291123,{"$f":"VLOOKUP($A12,[7]Data!$A$6:$H$228,7,0)","v":307},291123,{"$f":"VLOOKUP($A12,[7]Data!$A$6:$H$228,8,0)","v":126},291123,{"$f":"VLOOKUP($A12,[8]CHD06!$E$15:$O$225,5,0)","v":10868},{"$f":"VLOOKUP($A12,[8]CHD06!$E$15:$O$225,10,0)","v":12343},{"$f":"VLOOKUP($A12,[8]CHD08!$E$15:$O$225,5,0)","v":9037},{"$f":"VLOOKUP($A12,[8]CHD08!$E$15:$O$225,10,0)","v":12343},{"$f":"VLOOKUP($A12,[9]BP05!$E$14:$O$225,5,0)","v":34076},{"$f":"VLOOKUP($A12,[9]BP05!$E$14:$O$225,10,0)","v":43658},{"$f":"VLOOKUP($A12,[10]CKD03!$E$14:$O$225,5,0)","v":7143},{"$f":"VLOOKUP($A12,[10]CKD03!$E$14:$O$225,10,0)","v":9874},{"$f":"VLOOKUP($A12,[11]PAD03!$E$14:$O$225,5,0)","v":2124},{"$f":"VLOOKUP($A12,[11]PAD03!$E$14:$O$225,10,0)","v":2506},{"$f":"VLOOKUP($A12,[11]PAD04!$E$14:$O$225,5,0)","v":1750},{"$f":"VLOOKUP($A12,[11]PAD04!$E$14:$O$225,10,0)","v":2506},{"$f":"VLOOKUP($A12,[12]STROKE06!$E$14:$O$225,5,0)","v":4845},{"$f":"VLOOKUP($A12,[12]STROKE06!$E$14:$O$225,10,0)","v":5709},{"$f":"VLOOKUP($A12,[12]STROKE08!$E$14:$O$225,5,0)","v":3941},{"$f":"VLOOKUP($A12,[12]STROKE08!$E$14:$O$225,10,0)","v":5709},null,null,null,null,null,null,null,null,null,null,null,null,null,null,{"$f":"VLOOKUP($A12,[3]CHD!$E$14:$BS$226,29,0)","v":10807},{"$f":"VLOOKUP($A12,[3]CHD!$E$14:$BS$226,34,0)","v":12182},{"$f":"VLOOKUP($A12,[3]CHD!$E$14:$BS$226,37,0)","v":9050},{"$f":"VLOOKUP($A12,[3]CHD!$E$14:$BS$226,42,0)","v":12182},{"$f":"VLOOKUP($A12,[3]HYP!$E$14:$BK$226,29,0)","v":35040},{"$f":"VLOOKUP($A12,[3]HYP!$E$14:$BK$226,34,0)","v":44124},{"$f":"VLOOKUP($A12,[3]CKD!$E$14:$BG$230,33,0)","v":6775},{"$f":"VLOOKUP($A12,[3]CKD!$E$14:$BG$230,38,0)","v":8829},{"$f":"VLOOKUP(A12,[3]PAD!$E$14:$BC$226,29,0)","v":2058},{"$f":"VLOOKUP($A12,[3]PAD!$E$14:$BC$226,34,0)","v":2396},{"$f":"VLOOKUP($A12,[3]PAD!$E$14:$BC$226,37,0)","v":1697},{"$f":"VLOOKUP($A12,[3]PAD!$E$14:$BC$226,42,0)","v":2396},{"$f":"VLOOKUP($A12,[3]STIA!$E$14:$CA$230,37,0)","v":5005},{"$f":"VLOOKUP($A12,[3]STIA!$E$14:$CA$230,42,0)","v":5890},{"$f":"VLOOKUP($A12,[3]STIA!$E$14:$CA$230,53,0)","v":2902},{"$f":"VLOOKUP($A12,[3]STIA!$E$14:$CA$230,58,0)","v":4267}]
["00L","NHS Northumberland",{"$f":"VLOOKUP($A13,'[6]201314'!$C$19:$J$256,8,0)","v":208},{"$f":"VLOOKUP($A13,'[6]201314'!$C$19:$J$256,7,0)","v":291073},{"$f":"VLOOKUP($A13,[7]Data!$A$6:$H$228,4,0)","v":662},{"$f":"VLOOKUP(A13,[3]CHD!$E$15:$H$226,4,0)","v":321731},{"$f":"VLOOKUP($A13,[7]Data!$A$6:$H$228,3,0)","v":2331},321731,{"$f":"VLOOKUP($A13,[7]Data!$A$6:$H$228,5,0)","v":498},321731,{"$f":"VLOOKUP($A13,[7]Data!$A$6:$H$228,6,0)","v":1299},321731,{"$f":"VLOOKUP($A13,[7]Data!$A$6:$H$228,7,0)","v":642},321731,{"$f":"VLOOKUP($A13,[7]Data!$A$6:$H$228,8,0)","v":77},321731,{"$f":"VLOOKUP($A13,[8]CHD06!$E$15:$O$225,5,0)","v":14154},{"$f":"VLOOKUP($A13,[8]CHD06!$E$15:$O$225,10,0)","v":15786},{"$f":"VLOOKUP($A13,[8]CHD08!$E$15:$O$225,5,0)","v":11959},{"$f":"VLOOKUP($A13,[8]CHD08!$E$15:$O$225,10,0)","v":15786},{"$f":"VLOOKUP($A13,[9]BP05!$E$14:$O$225,5,0)","v":43457},{"$f":"VLOOKUP($A13,[9]BP05!$E$14:$O$225,10,0)","v":55009},{"$f":"VLOOKUP($A13,[10]CKD03!$E$14:$O$225,5,0)","v":12375},{"$f":"VLOOKUP($A13,[10]CKD03!$E$14:$O$225,10,0)","v":16806},{"$f":"VLOOKUP($A13,[11]PAD03!$E$14:$O$225,5,0)","v":2643},{"$f":"VLOOKUP($A13,[11]PAD03!$E$14:$O$225,10,0)","v":3051},{"$f":"VLOOKUP($A13,[11]PAD04!$E$14:$O$225,5,0)","v":2216},{"$f":"VLOOKUP($A13,[11]PAD04!$E$14:$O$225,10,0)","v":3051},{"$f":"VLOOKUP($A13,[12]STROKE06!$E$14:$O$225,5,0)","v":6749},{"$f":"VLOOKUP($A13,[12]STROKE06!$E$14:$O$225,10,0)","v":7772},{"$f":"VLOOKUP($A13,[12]STROKE08!$E$14:$O$225,5,0)","v":5566},{"$f":"VLOOKUP($A13,[12]STROKE08!$E$14:$O$225,10,0)","v":7772},null,null,null,null,null,null,null,null,null,null,null,null,null,null,{"$f":"VLOOKUP($A13,[3]CHD!$E$14:$BS$226,29,0)","v":14055},{"$f":"VLOOKUP($A13,[3]CHD!$E$14:$BS$226,34,0)","v":15522},{"$f":"VLOOKUP($A13,[3]CHD!$E$14:$BS$226,37,0)","v":11615},{"$f":"VLOOKUP($A13,[3]CHD!$E$14:$BS$226,42,0)","v":15522},{"$f":"VLOOKUP($A13,[3]HYP!$E$14:$BK$226,29,0)","v":45458},{"$f":"VLOOKUP($A13,[3]HYP!$E$14:$BK$226,34,0)","v":55414},{"$f":"VLOOKUP($A13,[3]CKD!$E$14:$BG$230,33,0)","v":12434},{"$f":"VLOOKUP($A13,[3]CKD!$E$14:$BG$230,38,0)","v":15735},{"$f":"VLOOKUP(A13,[3]PAD!$E$14:$BC$226,29,0)","v":2669},{"$f":"VLOOKUP($A13,[3]PAD!$E$14:$BC$226,34,0)","v":3032},{"$f":"VLOOKUP($A13,[3]PAD!$E$14:$BC$226,37,0)","v":2148},{"$f":"VLOOKUP($A13,[3]PAD!$E$14:$BC$226,42,0)","v":3032},{"$f":"VLOOKUP($A13,[3]STIA!$E$14:$CA$230,37,0)","v":6852},{"$f":"VLOOKUP($A13,[3]STIA!$E$14:$CA$230,42,0)","v":7784},{"$f":"VLOOKUP($A13,[3]STIA!$E$14:$CA$230,53,0)","v":4010},{"$f":"VLOOKUP($A13,[3]STIA!$E$14:$CA$230,58,0)","v":5625}]
["00M","NHS South Tees",{"$f":"VLOOKUP($A14,'[6]201314'!$C$19:$J$256,8,0)","v":204},{"$f":"VLOOKUP($A14,'[6]201314'!$C$19:$J$256,7,0)","v":268563},{"$f":"VLOOKUP($A14,[7]Data!$A$6:$H$228,4,0)","v":586},{"$f":"VLOOKUP(A14,[3]CHD!$E$15:$H$226,4,0)","v":290888},{"$f":"VLOOKUP($A14,[7]Data!$A$6:$H$228,3,0)","v":996},290888,{"$f":"VLOOKUP($A14,[7]Data!$A$6:$H$228,5,0)","v":308},290888,{"$f":"VLOOKUP($A14,[7]Data!$A$6:$H$228,6,0)","v":1053},290888,{"$f":"VLOOKUP($A14,[7]Data!$A$6:$H$228,7,0)","v":393},290888,{"$f":"VLOOKUP($A14,[7]Data!$A$6:$H$228,8,0)","v":110},290888,{"$f":"VLOOKUP($A14,[8]CHD06!$E$15:$O$225,5,0)","v":11121},{"$f":"VLOOKUP($A14,[8]CHD06!$E$15:$O$225,10,0)","v":12606},{"$f":"VLOOKUP($A14,[8]CHD08!$E$15:$O$225,5,0)","v":9565},{"$f":"VLOOKUP($A14,[8]CHD08!$E$15:$O$225,10,0)","v":12606},{"$f":"VLOOKUP($A14,[9]BP05!$E$14:$O$225,5,0)","v":32943},{"$f":"VLOOKUP($A14,[9]BP05!$E$14:$O$225,10,0)","v":43026},{"$f":"VLOOKUP($A14,[10]CKD03!$E$14:$O$225,5,0)","v":6921},{"$f":"VLOOKUP($A14,[10]CKD03!$E$14:$O$225,10,0)","v":9660},{"$f":"VLOOKUP($A14,[11]PAD03!$E$14:$O$225,5,0)","v":2202},{"$f":"VLOOKUP($A14,[11]PAD03!$E$14:$O$225,10,0)","v":2611},{"$f":"VLOOKUP($A14,[11]PAD04!$E$14:$O$225,5,0)","v":1847},{"$f":"VLOOKUP($A14,[11]PAD04!$E$14:$O$225,10,0)","v":2611},{"$f":"VLOOKUP($A14,[12]STROKE06!$E$14:$O$225,5,0)","v":5009},{"$f":"VLOOKUP($A14,[12]STROKE06!$E$14:$O$225,10,0)","v":5886},{"$f":"VLOOKUP($A14,[12]STROKE08!$E$14:$O$225,5,0)","v":4195},{"$f":"VLOOKUP($A14,[12]STROKE08!$E$14:$O$225,10,0)","v":5886},null,null,null,null,null,null,null,null,null,null,null,null,null,null,{"$f":"VLOOKUP($A14,[3]CHD!$E$14:$BS$226,29,0)","v":11152},{"$f":"VLOOKUP($A14,[3]CHD!$E$14:$BS$226,34,0)","v":12511},{"$f":"VLOOKUP($A14,[3]CHD!$E$14:$BS$226,37,0)","v":9444},{"$f":"VLOOKUP($A14,[3]CHD!$E$14:$BS$226,42,0)","v":12511},{"$f":"VLOOKUP($A14,[3]HYP!$E$14:$BK$226,29,0)","v":34109},{"$f":"VLOOKUP($A14,[3]HYP!$E$14:$BK$226,34,0)","v":43376},{"$f":"VLOOKUP($A14,[3]CKD!$E$14:$BG$230,33,0)","v":6264},{"$f":"VLOOKUP($A14,[3]CKD!$E$14:$BG$230,38,0)","v":8311},{"$f":"VLOOKUP(A14,[3]PAD!$E$14:$BC$226,29,0)","v":2187},{"$f":"VLOOKUP($A14,[3]PAD!$E$14:$BC$226,34,0)","v":2564},{"$f":"VLOOKUP($A14,[3]PAD!$E$14:$BC$226,37,0)","v":1801},{"$f":"VLOOKUP($A14,[3]PAD!$E$14:$BC$226,42,0)","v":2564},{"$f":"VLOOKUP($A14,[3]STIA!$E$14:$CA$230,37,0)","v":5103},{"$f":"VLOOKUP($A14,[3]STIA!$E$14:$CA$230,42,0)","v":6015},{"$f":"VLOOKUP($A14,[3]STIA!$E$14:$CA$230,53,0)","v":2917},{"$f":"VLOOKUP($A14,[3]STIA!$E$14:$CA$230,58,0)","v":4176}]
["00N","NHS South Tyneside",{"$f":"VLOOKUP($A15,'[6]201314'!$C$19:$J$256,8,0)","v":122},{"$f":"VLOOKUP($A15,'[6]201314'!$C$19:$J$256,7,0)","v":140547},{"$f":"VLOOKUP($A15,[7]Data!$A$6:$H$228,4,0)","v":251},{"$f":"VLOOKUP(A15,[3]CHD!$E$15:$H$226,4,0)","v":154490},{"$f":"VLOOKUP($A15,[7]Data!$A$6:$H$228,3,0)","v":1140},154490,{"$f":"VLOOKUP($A15,[7]Data!$A$6:$H$228,5,0)","v":149},154490,{"$f":"VLOOKUP($A15,[7]Data!$A$6:$H$228,6,0)","v":870},154490,{"$f":"VLOOKUP($A15,[7]Data!$A$6:$H$228,7,0)","v":309},154490,{"$f":"VLOOKUP($A15,[7]Data!$A$6:$H$228,8,0)","v":49},154490,{"$f":"VLOOKUP($A15,[8]CHD06!$E$15:$O$225,5,0)","v":6615},{"$f":"VLOOKUP($A15,[8]CHD06!$E$15:$O$225,10,0)","v":7516},{"$f":"VLOOKUP($A15,[8]CHD08!$E$15:$O$225,5,0)","v":5305},{"$f":"VLOOKUP($A15,[8]CHD08!$E$15:$O$225,10,0)","v":7516},{"$f":"VLOOKUP($A15,[9]BP05!$E$14:$O$225,5,0)","v":18908},{"$f":"VLOOKUP($A15,[9]BP05!$E$14:$O$225,10,0)","v":24894},{"$f":"VLOOKUP($A15,[10]CKD03!$E$14:$O$225,5,0)","v":2040},{"$f":"VLOOKUP($A15,[10]CKD03!$E$14:$O$225,10,0)","v":2806},{"$f":"VLOOKUP($A15,[11]PAD03!$E$14:$O$225,5,0)","v":1353},{"$f":"VLOOKUP($A15,[11]PAD03!$E$14:$O$225,10,0)","v":1583},{"$f":"VLOOKUP($A15,[11]PAD04!$E$14:$O$225,5,0)","v":1070},{"$f":"VLOOKUP($A15,[11]PAD04!$E$14:$O$225,10,0)","v":1583},{"$f":"VLOOKUP($A15,[12]STROKE06!$E$14:$O$225,5,0)","v":2935},{"$f":"VLOOKUP($A15,[12]STROKE06!$E$14:$O$225,10,0)","v":3483},{"$f":"VLOOKUP($A15,[12]STROKE08!$E$14:$O$225,5,0)","v":2342},{"$f":"VLOOKUP($A15,[12]STROKE08!$E$14:$O$225,10,0)","v":3483},null,null,null,null,null,null,null,null,null,null,null,null,null,null,{"$f":"VLOOKUP($A15,[3]CHD!$E$14:$BS$226,29,0)","v":6645},{"$f":"VLOOKUP($A15,[3]CHD!$E$14:$BS$226,34,0)","v":7365},{"$f":"VLOOKUP($A15,[3]CHD!$E$14:$BS$226,37,0)","v":5307},{"$f":"VLOOKUP($A15,[3]CHD!$E$14:$BS$226,42,0)","v":7365},{"$f":"VLOOKUP($A15,[3]HYP!$E$14:$BK$226,29,0)","v":19696},{"$f":"VLOOKUP($A15,[3]HYP!$E$14:$BK$226,34,0)","v":24875},{"$f":"VLOOKUP($A15,[3]CKD!$E$14:$BG$230,33,0)","v":2249},{"$f":"VLOOKUP($A15,[3]CKD!$E$14:$BG$230,38,0)","v":2929},{"$f":"VLOOKUP(A15,[3]PAD!$E$14:$BC$226,29,0)","v":1346},{"$f":"VLOOKUP($A15,[3]PAD!$E$14:$BC$226,34,0)","v":1574},{"$f":"VLOOKUP($A15,[3]PAD!$E$14:$BC$226,37,0)","v":1083},{"$f":"VLOOKUP($A15,[3]PAD!$E$14:$BC$226,42,0)","v":1574},{"$f":"VLOOKUP($A15,[3]STIA!$E$14:$CA$230,37,0)","v":2976},{"$f":"VLOOKUP($A15,[3]STIA!$E$14:$CA$230,42,0)","v":3448},{"$f":"VLOOKUP($A15,[3]STIA!$E$14:$CA$230,53,0)","v":1583},{"$f":"VLOOKUP($A15,[3]STIA!$E$14:$CA$230,58,0)","v":2268}]
["00P","NHS Sunderland",{"$f":"VLOOKUP($A16,'[6]201314'!$C$19:$J$256,8,0)","v":204},{"$f":"VLOOKUP($A16,'[6]201314'!$C$19:$J$256,7,0)","v":259618},{"$f":"VLOOKUP($A16,[7]Data!$A$6:$H$228,4,0)","v":533},{"$f":"VLOOKUP(A16,[3]CHD!$E$15:$H$226,4,0)","v":283910},{"$f":"VLOOKUP($A16,[7]Data!$A$6:$H$228,3,0)","v":1823},283910,{"$f":"VLOOKUP($A16,[7]Data!$A$6:$H$228,5,0)","v":432},283910,{"$f":"VLOOKUP($A16,[7]Data!$A$6:$H$228,6,0)","v":1457},283910,{"$f":"VLOOKUP($A16,[7]Data!$A$6:$H$228,7,0)","v":444},283910,{"$f":"VLOOKUP($A16,[7]Data!$A$6:$H$228,8,0)","v":148},283910,{"$f":"VLOOKUP($A16,[8]CHD06!$E$15:$O$225,5,0)","v":12738},{"$f":"VLOOKUP($A16,[8]CHD06!$E$15:$O$225,10,0)","v":14286},{"$f":"VLOOKUP($A16,[8]CHD08!$E$15:$O$225,5,0)","v":10896},{"$f":"VLOOKUP($A16,[8]CHD08!$E$15:$O$225,10,0)","v":14286},{"$f":"VLOOKUP($A16,[9]BP05!$E$14:$O$225,5,0)","v":36794},{"$f":"VLOOKUP($A16,[9]BP05!$E$14:$O$225,10,0)","v":47161},{"$f":"VLOOKUP($A16,[10]CKD03!$E$14:$O$225,5,0)","v":6465},{"$f":"VLOOKUP($A16,[10]CKD03!$E$14:$O$225,10,0)","v":8922},{"$f":"VLOOKUP($A16,[11]PAD03!$E$14:$O$225,5,0)","v":2749},{"$f":"VLOOKUP($A16,[11]PAD03!$E$14:$O$225,10,0)","v":3218},{"$f":"VLOOKUP($A16,[11]PAD04!$E$14:$O$225,5,0)","v":2265},{"$f":"VLOOKUP($A16,[11]PAD04!$E$14:$O$225,10,0)","v":3218},{"$f":"VLOOKUP($A16,[12]STROKE06!$E$14:$O$225,5,0)","v":5401},{"$f":"VLOOKUP($A16,[12]STROKE06!$E$14:$O$225,10,0)","v":6209},{"$f":"VLOOKUP($A16,[12]STROKE08!$E$14:$O$225,5,0)","v":4475},{"$f":"VLOOKUP($A16,[12]STROKE08!$E$14:$O$225,10,0)","v":6209},null,null,null,null,null,null,null,null,null,null,null,null,null,null,{"$f":"VLOOKUP($A16,[3]CHD!$E$14:$BS$226,29,0)","v":12610},{"$f":"VLOOKUP($A16,[3]CHD!$E$14:$BS$226,34,0)","v":14060},{"$f":"VLOOKUP($A16,[3]CHD!$E$14:$BS$226,37,0)","v":10545},{"$f":"VLOOKUP($A16,[3]CHD!$E$14:$BS$226,42,0)","v":14060},{"$f":"VLOOKUP($A16,[3]HYP!$E$14:$BK$226,29,0)","v":37330},{"$f":"VLOOKUP($A16,[3]HYP!$E$14:$BK$226,34,0)","v":47120},{"$f":"VLOOKUP($A16,[3]CKD!$E$14:$BG$230,33,0)","v":7095},{"$f":"VLOOKUP($A16,[3]CKD!$E$14:$BG$230,38,0)","v":9187},{"$f":"VLOOKUP(A16,[3]PAD!$E$14:$BC$226,29,0)","v":2722},{"$f":"VLOOKUP($A16,[3]PAD!$E$14:$BC$226,34,0)","v":3198},{"$f":"VLOOKUP($A16,[3]PAD!$E$14:$BC$226,37,0)","v":2238},{"$f":"VLOOKUP($A16,[3]PAD!$E$14:$BC$226,42,0)","v":3198},{"$f":"VLOOKUP($A16,[3]STIA!$E$14:$CA$230,37,0)","v":5291},{"$f":"VLOOKUP($A16,[3]STIA!$E$14:$CA$230,42,0)","v":6164},{"$f":"VLOOKUP($A16,[3]STIA!$E$14:$CA$230,53,0)","v":2604},{"$f":"VLOOKUP($A16,[3]STIA!$E$14:$CA$230,58,0)","v":3709}]
["00Q","NHS Blackburn with Darwen",{"$f":"VLOOKUP($A17,'[6]201314'!$C$19:$J$256,8,0)","v":122},{"$f":"VLOOKUP($A17,'[6]201314'!$C$19:$J$256,7,0)","v":159098},{"$f":"VLOOKUP($A17,[7]Data!$A$6:$H$228,4,0)","v":238},{"$f":"VLOOKUP(A17,[3]CHD!$E$15:$H$226,4,0)","v":169467},{"$f":"VLOOKUP($A17,[7]Data!$A$6:$H$228,3,0)","v":1126},169467,{"$f":"VLOOKUP($A17,[7]Data!$A$6:$H$228,5,0)","v":192},169467,{"$f":"VLOOKUP($A17,[7]Data!$A$6:$H$228,6,0)","v":678},169467,{"$f":"VLOOKUP($A17,[7]Data!$A$6:$H$228,7,0)","v":283},169467,{"$f":"VLOOKUP($A17,[7]Data!$A$6:$H$228,8,0)","v":83},169467,{"$f":"VLOOKUP($A17,[8]CHD06!$E$15:$O$225,5,0)","v":5824},{"$f":"VLOOKUP($A17,[8]CHD06!$E$15:$O$225,10,0)","v":6605},{"$f":"VLOOKUP($A17,[8]CHD08!$E$15:$O$225,5,0)","v":4705},{"$f":"VLOOKUP($A17,[8]CHD08!$E$15:$O$225,10,0)","v":6605},{"$f":"VLOOKUP($A17,[9]BP05!$E$14:$O$225,5,0)","v":15635},{"$f":"VLOOKUP($A17,[9]BP05!$E$14:$O$225,10,0)","v":20696},{"$f":"VLOOKUP($A17,[10]CKD03!$E$14:$O$225,5,0)","v":3427},{"$f":"VLOOKUP($A17,[10]CKD03!$E$14:$O$225,10,0)","v":4662},{"$f":"VLOOKUP($A17,[11]PAD03!$E$14:$O$225,5,0)","v":1298},{"$f":"VLOOKUP($A17,[11]PAD03!$E$14:$O$225,10,0)","v":1541},{"$f":"VLOOKUP($A17,[11]PAD04!$E$14:$O$225,5,0)","v":1048},{"$f":"VLOOKUP($A17,[11]PAD04!$E$14:$O$225,10,0)","v":1541},{"$f":"VLOOKUP($A17,[12]STROKE06!$E$14:$O$225,5,0)","v":2412},{"$f":"VLOOKUP($A17,[12]STROKE06!$E$14:$O$225,10,0)","v":2814},{"$f":"VLOOKUP($A17,[12]STROKE08!$E$14:$O$225,5,0)","v":1844},{"$f":"VLOOKUP($A17,[12]STROKE08!$E$14:$O$225,10,0)","v":2814},null,null,null,null,null,null,null,null,null,null,null,null,null,null,{"$f":"VLOOKUP($A17,[3]CHD!$E$14:$BS$226,29,0)","v":5694},{"$f":"VLOOKUP($A17,[3]CHD!$E$14:$BS$226,34,0)","v":6415},{"$f":"VLOOKUP($A17,[3]CHD!$E$14:$BS$226,37,0)","v":4750},{"$f":"VLOOKUP($A17,[3]CHD!$E$14:$BS$226,42,0)","v":6415},{"$f":"VLOOKUP($A17,[3]HYP!$E$14:$BK$226,29,0)","v":16711},{"$f":"VLOOKUP($A17,[3]HYP!$E$14:$BK$226,34,0)","v":20902},{"$f":"VLOOKUP($A17,[3]CKD!$E$14:$BG$230,33,0)","v":3790},{"$f":"VLOOKUP($A17,[3]CKD!$E$14:$BG$230,38,0)","v":4761},{"$f":"VLOOKUP(A17,[3]PAD!$E$14:$BC$226,29,0)","v":1290},{"$f":"VLOOKUP($A17,[3]PAD!$E$14:$BC$226,34,0)","v":1473},{"$f":"VLOOKUP($A17,[3]PAD!$E$14:$BC$226,37,0)","v":1069},{"$f":"VLOOKUP($A17,[3]PAD!$E$14:$BC$226,42,0)","v":1473},{"$f":"VLOOKUP($A17,[3]STIA!$E$14:$CA$230,37,0)","v":2486},{"$f":"VLOOKUP($A17,[3]STIA!$E$14:$CA$230,42,0)","v":2857},{"$f":"VLOOKUP($A17,[3]STIA!$E$14:$CA$230,53,0)","v":1178},{"$f":"VLOOKUP($A17,[3]STIA!$E$14:$CA$230,58,0)","v":1653}]
["00R","NHS Blackpool",{"$f":"VLOOKUP($A18,'[6]201314'!$C$19:$J$256,8,0)","v":166},{"$f":"VLOOKUP($A18,'[6]201314'!$C$19:$J$256,7,0)","v":156790},{"$f":"VLOOKUP($A18,[7]Data!$A$6:$H$228,4,0)","v":279},{"$f":"VLOOKUP(A18,[3]CHD!$E$15:$H$226,4,0)","v":172782},{"$f":"VLOOKUP($A18,[7]Data!$A$6:$H$228,3,0)","v":1138},172782,{"$f":"VLOOKUP($A18,[7]Data!$A$6:$H$228,5,0)","v":233},172782,{"$f":"VLOOKUP($A18,[7]Data!$A$6:$H$228,6,0)","v":680},172782,{"$f":"VLOOKUP($A18,[7]Data!$A$6:$H$228,7,0)","v":250},172782,{"$f":"VLOOKUP($A18,[7]Data!$A$6:$H$228,8,0)","v":139},172782,{"$f":"VLOOKUP($A18,[8]CHD06!$E$15:$O$225,5,0)","v":7128},{"$f":"VLOOKUP($A18,[8]CHD06!$E$15:$O$225,10,0)","v":8179},{"$f":"VLOOKUP($A18,[8]CHD08!$E$15:$O$225,5,0)","v":5818},{"$f":"VLOOKUP($A18,[8]CHD08!$E$15:$O$225,10,0)","v":8179},{"$f":"VLOOKUP($A18,[9]BP05!$E$14:$O$225,5,0)","v":22243},{"$f":"VLOOKUP($A18,[9]BP05!$E$14:$O$225,10,0)","v":28684},{"$f":"VLOOKUP($A18,[10]CKD03!$E$14:$O$225,5,0)","v":8740},{"$f":"VLOOKUP($A18,[10]CKD03!$E$14:$O$225,10,0)","v":11860},{"$f":"VLOOKUP($A18,[11]PAD03!$E$14:$O$225,5,0)","v":1724},{"$f":"VLOOKUP($A18,[11]PAD03!$E$14:$O$225,10,0)","v":1958},{"$f":"VLOOKUP($A18,[11]PAD04!$E$14:$O$225,5,0)","v":1331},{"$f":"VLOOKUP($A18,[11]PAD04!$E$14:$O$225,10,0)","v":1958},{"$f":"VLOOKUP($A18,[12]STROKE06!$E$14:$O$225,5,0)","v":3179},{"$f":"VLOOKUP($A18,[12]STROKE06!$E$14:$O$225,10,0)","v":3772},{"$f":"VLOOKUP($A18,[12]STROKE08!$E$14:$O$225,5,0)","v":2545},{"$f":"VLOOKUP($A18,[12]STROKE08!$E$14:$O$225,10,0)","v":3772},null,null,null,null,null,null,null,null,null,null,null,null,null,null,{"$f":"VLOOKUP($A18,[3]CHD!$E$14:$BS$226,29,0)","v":7180},{"$f":"VLOOKUP($A18,[3]CHD!$E$14:$BS$226,34,0)","v":8149},{"$f":"VLOOKUP($A18,[3]CHD!$E$14:$BS$226,37,0)","v":5900},{"$f":"VLOOKUP($A18,[3]CHD!$E$14:$BS$226,42,0)","v":8149},{"$f":"VLOOKUP($A18,[3]HYP!$E$14:$BK$226,29,0)","v":24149},{"$f":"VLOOKUP($A18,[3]HYP!$E$14:$BK$226,34,0)","v":30099},{"$f":"VLOOKUP($A18,[3]CKD!$E$14:$BG$230,33,0)","v":8868},{"$f":"VLOOKUP($A18,[3]CKD!$E$14:$BG$230,38,0)","v":11309},{"$f":"VLOOKUP(A18,[3]PAD!$E$14:$BC$226,29,0)","v":1693},{"$f":"VLOOKUP($A18,[3]PAD!$E$14:$BC$226,34,0)","v":1986},{"$f":"VLOOKUP($A18,[3]PAD!$E$14:$BC$226,37,0)","v":1388},{"$f":"VLOOKUP($A18,[3]PAD!$E$14:$BC$226,42,0)","v":1986},{"$f":"VLOOKUP($A18,[3]STIA!$E$14:$CA$230,37,0)","v":3305},{"$f":"VLOOKUP($A18,[3]STIA!$E$14:$CA$230,42,0)","v":3838},{"$f":"VLOOKUP($A18,[3]STIA!$E$14:$CA$230,53,0)","v":1756},{"$f":"VLOOKUP($A18,[3]STIA!$E$14:$CA$230,58,0)","v":2578}]
["00T","NHS Bolton",{"$f":"VLOOKUP($A19,'[6]201314'!$C$19:$J$256,8,0)","v":210},{"$f":"VLOOKUP($A19,'[6]201314'!$C$19:$J$256,7,0)","v":277783},{"$f":"VLOOKUP($A19,[7]Data!$A$6:$H$228,4,0)","v":495},{"$f":"VLOOKUP(A19,[3]CHD!$E$15:$H$226,4,0)","v":297639},{"$f":"VLOOKUP($A19,[7]Data!$A$6:$H$228,3,0)","v":1801},297639,{"$f":"VLOOKUP($A19,[7]Data!$A$6:$H$228,5,0)","v":385},297639,{"$f":"VLOOKUP($A19,[7]Data!$A$6:$H$228,6,0)","v":461},297639,{"$f":"VLOOKUP($A19,[7]Data!$A$6:$H$228,7,0)","v":345},297639,{"$f":"VLOOKUP($A19,[7]Data!$A$6:$H$228,8,0)","v":73},297639,{"$f":"VLOOKUP($A19,[8]CHD06!$E$15:$O$225,5,0)","v":9323},{"$f":"VLOOKUP($A19,[8]CHD06!$E$15:$O$225,10,0)","v":10419},{"$f":"VLOOKUP($A19,[8]CHD08!$E$15:$O$225,5,0)","v":7692},{"$f":"VLOOKUP($A19,[8]CHD08!$E$15:$O$225,10,0)","v":10419},{"$f":"VLOOKUP($A19,[9]BP05!$E$14:$O$225,5,0)","v":33084},{"$f":"VLOOKUP($A19,[9]BP05!$E$14:$O$225,10,0)","v":41865},{"$f":"VLOOKUP($A19,[10]CKD03!$E$14:$O$225,5,0)","v":9752},{"$f":"VLOOKUP($A19,[10]CKD03!$E$14:$O$225,10,0)","v":13112},{"$f":"VLOOKUP($A19,[11]PAD03!$E$14:$O$225,5,0)","v":1594},{"$f":"VLOOKUP($A19,[11]PAD03!$E$14:$O$225,10,0)","v":1835},{"$f":"VLOOKUP($A19,[11]PAD04!$E$14:$O$225,5,0)","v":1273},{"$f":"VLOOKUP($A19,[11]PAD04!$E$14:$O$225,10,0)","v":1835},{"$f":"VLOOKUP($A19,[12]STROKE06!$E$14:$O$225,5,0)","v":4430},{"$f":"VLOOKUP($A19,[12]STROKE06!$E$14:$O$225,10,0)","v":5073},{"$f":"VLOOKUP($A19,[12]STROKE08!$E$14:$O$225,5,0)","v":3574},{"$f":"VLOOKUP($A19,[12]STROKE08!$E$14:$O$225,10,0)","v":5073},null,null,null,null,null,null,null,null,null,null,null,null,null,null,{"$f":"VLOOKUP($A19,[3]CHD!$E$14:$BS$226,29,0)","v":9302},{"$f":"VLOOKUP($A19,[3]CHD!$E$14:$BS$226,34,0)","v":10230},{"$f":"VLOOKUP($A19,[3]CHD!$E$14:$BS$226,37,0)","v":7489},{"$f":"VLOOKUP($A19,[3]CHD!$E$14:$BS$226,42,0)","v":10226},{"$f":"VLOOKUP($A19,[3]HYP!$E$14:$BK$226,29,0)","v":34179},{"$f":"VLOOKUP($A19,[3]HYP!$E$14:$BK$226,34,0)","v":42078},{"$f":"VLOOKUP($A19,[3]CKD!$E$14:$BG$230,33,0)","v":10098},{"$f":"VLOOKUP($A19,[3]CKD!$E$14:$BG$230,38,0)","v":12762},{"$f":"VLOOKUP(A19,[3]PAD!$E$14:$BC$226,29,0)","v":1577},{"$f":"VLOOKUP($A19,[3]PAD!$E$14:$BC$226,34,0)","v":1804},{"$f":"VLOOKUP($A19,[3]PAD!$E$14:$BC$226,37,0)","v":1209},{"$f":"VLOOKUP($A19,[3]PAD!$E$14:$BC$226,42,0)","v":1804},{"$f":"VLOOKUP($A19,[3]STIA!$E$14:$CA$230,37,0)","v":4558},{"$f":"VLOOKUP($A19,[3]STIA!$E$14:$CA$230,42,0)","v":5174},{"$f":"VLOOKUP($A19,[3]STIA!$E$14:$CA$230,53,0)","v":2263},{"$f":"VLOOKUP($A19,[3]STIA!$E$14:$CA$230,58,0)","v":3360}]
["00V","NHS Bury",{"$f":"VLOOKUP($A20,'[6]201314'!$C$19:$J$256,8,0)","v":130},{"$f":"VLOOKUP($A20,'[6]201314'!$C$19:$J$256,7,0)","v":182021},{"$f":"VLOOKUP($A20,[7]Data!$A$6:$H$228,4,0)","v":350},{"$f":"VLOOKUP(A20,[3]CHD!$E$15:$H$226,4,0)","v":185528},{"$f":"VLOOKUP($A20,[7]Data!$A$6:$H$228,3,0)","v":1111},185528,{"$f":"VLOOKUP($A20,[7]Data!$A$6:$H$228,5,0)","v":224},185528,{"$f":"VLOOKUP($A20,[7]Data!$A$6:$H$228,6,0)","v":571},185528,{"$f":"VLOOKUP($A20,[7]Data!$A$6:$H$228,7,0)","v":223},185528,{"$f":"VLOOKUP($A20,[7]Data!$A$6:$H$228,8,0)","v":77},185528,{"$f":"VLOOKUP($A20,[8]CHD06!$E$15:$O$225,5,0)","v":6107},{"$f":"VLOOKUP($A20,[8]CHD06!$E$15:$O$225,10,0)","v":6845},{"$f":"VLOOKUP($A20,[8]CHD08!$E$15:$O$225,5,0)","v":4959},{"$f":"VLOOKUP($A20,[8]CHD08!$E$15:$O$225,10,0)","v":6845},{"$f":"VLOOKUP($A20,[9]BP05!$E$14:$O$225,5,0)","v":19784},{"$f":"VLOOKUP($A20,[9]BP05!$E$14:$O$225,10,0)","v":25218},{"$f":"VLOOKUP($A20,[10]CKD03!$E$14:$O$225,5,0)","v":4818},{"$f":"VLOOKUP($A20,[10]CKD03!$E$14:$O$225,10,0)","v":6571},{"$f":"VLOOKUP($A20,[11]PAD03!$E$14:$O$225,5,0)","v":1228},{"$f":"VLOOKUP($A20,[11]PAD03!$E$14:$O$225,10,0)","v":1421},{"$f":"VLOOKUP($A20,[11]PAD04!$E$14:$O$225,5,0)","v":986},{"$f":"VLOOKUP($A20,[11]PAD04!$E$14:$O$225,10,0)","v":1421},{"$f":"VLOOKUP($A20,[12]STROKE06!$E$14:$O$225,5,0)","v":2978},{"$f":"VLOOKUP($A20,[12]STROKE06!$E$14:$O$225,10,0)","v":3440},{"$f":"VLOOKUP($A20,[12]STROKE08!$E$14:$O$225,5,0)","v":2360},{"$f":"VLOOKUP($A20,[12]STROKE08!$E$14:$O$225,10,0)","v":3440},null,null,null,null,null,null,null,null,null,null,null,null,null,null,{"$f":"VLOOKUP($A20,[3]CHD!$E$14:$BS$226,29,0)","v":6363},{"$f":"VLOOKUP($A20,[3]CHD!$E$14:$BS$226,34,0)","v":7041},{"$f":"VLOOKUP($A20,[3]CHD!$E$14:$BS$226,37,0)","v":5153},{"$f":"VLOOKUP($A20,[3]CHD!$E$14:$BS$226,42,0)","v":6960},{"$f":"VLOOKUP($A20,[3]HYP!$E$14:$BK$226,29,0)","v":21076},{"$f":"VLOOKUP($A20,[3]HYP!$E$14:$BK$226,34,0)","v":26374},{"$f":"VLOOKUP($A20,[3]CKD!$E$14:$BG$230,33,0)","v":5364},{"$f":"VLOOKUP($A20,[3]CKD!$E$14:$BG$230,38,0)","v":6795},{"$f":"VLOOKUP(A20,[3]PAD!$E$14:$BC$226,29,0)","v":1285},{"$f":"VLOOKUP($A20,[3]PAD!$E$14:$BC$226,34,0)","v":1490},{"$f":"VLOOKUP($A20,[3]PAD!$E$14:$BC$226,37,0)","v":1034},{"$f":"VLOOKUP($A20,[3]PAD!$E$14:$BC$226,42,0)","v":1470},{"$f":"VLOOKUP($A20,[3]STIA!$E$14:$CA$230,37,0)","v":3138},{"$f":"VLOOKUP($A20,[3]STIA!$E$14:$CA$230,42,0)","v":3646},{"$f":"VLOOKUP($A20,[3]STIA!$E$14:$CA$230,53,0)","v":1755},{"$f":"VLOOKUP($A20,[3]STIA!$E$14:$CA$230,58,0)","v":2556}]
["00W","NHS Central Manchester",{"$f":"VLOOKUP($A21,'[6]201314'!$C$19:$J$256,8,0)","v":96},{"$f":"VLOOKUP($A21,'[6]201314'!$C$19:$J$256,7,0)","v":207508},{"$f":"VLOOKUP($A21,[7]Data!$A$6:$H$228,4,0)","v":169},{"$f":"VLOOKUP(A21,[3]CHD!$E$15:$H$226,4,0)","v":216052},{"$f":"VLOOKUP($A21,[7]Data!$A$6:$H$228,3,0)","v":805},216052,{"$f":"VLOOKUP($A21,[7]Data!$A$6:$H$228,5,0)","v":214},216052,{"$f":"VLOOKUP($A21,[7]Data!$A$6:$H$228,6,0)","v":418},216052,{"$f":"VLOOKUP($A21,[7]Data!$A$6:$H$228,7,0)","v":228},216052,{"$f":"VLOOKUP($A21,[7]Data!$A$6:$H$228,8,0)","v":46},216052,{"$f":"VLOOKUP($A21,[8]CHD06!$E$15:$O$225,5,0)","v":3790},{"$f":"VLOOKUP($A21,[8]CHD06!$E$15:$O$225,10,0)","v":4477},{"$f":"VLOOKUP($A21,[8]CHD08!$E$15:$O$225,5,0)","v":3249},{"$f":"VLOOKUP($A21,[8]CHD08!$E$15:$O$225,10,0)","v":4477},{"$f":"VLOOKUP($A21,[9]BP05!$E$14:$O$225,5,0)","v":14013},{"$f":"VLOOKUP($A21,[9]BP05!$E$14:$O$225,10,0)","v":19018},{"$f":"VLOOKUP($A21,[10]CKD03!$E$14:$O$225,5,0)","v":2389},{"$f":"VLOOKUP($A21,[10]CKD03!$E$14:$O$225,10,0)","v":3538},{"$f":"VLOOKUP($A21,[11]PAD03!$E$14:$O$225,5,0)","v":988},{"$f":"VLOOKUP($A21,[11]PAD03!$E$14:$O$225,10,0)","v":1202},{"$f":"VLOOKUP($A21,[11]PAD04!$E$14:$O$225,5,0)","v":819},{"$f":"VLOOKUP($A21,[11]PAD04!$E$14:$O$225,10,0)","v":1202},{"$f":"VLOOKUP($A21,[12]STROKE06!$E$14:$O$225,5,0)","v":1640},{"$f":"VLOOKUP($A21,[12]STROKE06!$E$14:$O$225,10,0)","v":1991},{"$f":"VLOOKUP($A21,[12]STROKE08!$E$14:$O$225,5,0)","v":1376},{"$f":"VLOOKUP($A21,[12]STROKE08!$E$14:$O$225,10,0)","v":1991},null,null,null,null,null,null,null,null,null,null,null,null,null,null,{"$f":"VLOOKUP($A21,[3]CHD!$E$14:$BS$226,29,0)","v":3561},{"$f":"VLOOKUP($A21,[3]CHD!$E$14:$BS$226,34,0)","v":4133},{"$f":"VLOOKUP($A21,[3]CHD!$E$14:$BS$226,37,0)","v":3030},{"$f":"VLOOKUP($A21,[3]CHD!$E$14:$BS$226,42,0)","v":4156},{"$f":"VLOOKUP($A21,[3]HYP!$E$14:$BK$226,29,0)","v":13982},{"$f":"VLOOKUP($A21,[3]HYP!$E$14:$BK$226,34,0)","v":18572},{"$f":"VLOOKUP($A21,[3]CKD!$E$14:$BG$230,33,0)","v":2651},{"$f":"VLOOKUP($A21,[3]CKD!$E$14:$BG$230,38,0)","v":3745},{"$f":"VLOOKUP(A21,[3]PAD!$E$14:$BC$226,29,0)","v":938},{"$f":"VLOOKUP($A21,[3]PAD!$E$14:$BC$226,34,0)","v":1151},{"$f":"VLOOKUP($A21,[3]PAD!$E$14:$BC$226,37,0)","v":751},{"$f":"VLOOKUP($A21,[3]PAD!$E$14:$BC$226,42,0)","v":1151},{"$f":"VLOOKUP($A21,[3]STIA!$E$14:$CA$230,37,0)","v":1639},{"$f":"VLOOKUP($A21,[3]STIA!$E$14:$CA$230,42,0)","v":1989},{"$f":"VLOOKUP($A21,[3]STIA!$E$14:$CA$230,53,0)","v":803},{"$f":"VLOOKUP($A21,[3]STIA!$E$14:$CA$230,58,0)","v":1186}]
["00X","NHS Chorley and South Ribble",{"$f":"VLOOKUP($A22,'[6]201314'!$C$19:$J$256,8,0)","v":109},{"$f":"VLOOKUP($A22,'[6]201314'!$C$19:$J$256,7,0)","v":161506},{"$f":"VLOOKUP($A22,[7]Data!$A$6:$H$228,4,0)","v":254},{"$f":"VLOOKUP(A22,[3]CHD!$E$15:$H$226,4,0)","v":174608},{"$f":"VLOOKUP($A22,[7]Data!$A$6:$H$228,3,0)","v":1154},174608,{"$f":"VLOOKUP($A22,[7]Data!$A$6:$H$228,5,0)","v":221},174608,{"$f":"VLOOKUP($A22,[7]Data!$A$6:$H$228,6,0)","v":519},174608,{"$f":"VLOOKUP($A22,[7]Data!$A$6:$H$228,7,0)","v":158},174608,{"$f":"VLOOKUP($A22,[7]Data!$A$6:$H$228,8,0)","v":106},174608,{"$f":"VLOOKUP($A22,[8]CHD06!$E$15:$O$225,5,0)","v":6317},{"$f":"VLOOKUP($A22,[8]CHD06!$E$15:$O$225,10,0)","v":7095},{"$f":"VLOOKUP($A22,[8]CHD08!$E$15:$O$225,5,0)","v":4950},{"$f":"VLOOKUP($A22,[8]CHD08!$E$15:$O$225,10,0)","v":7095},{"$f":"VLOOKUP($A22,[9]BP05!$E$14:$O$225,5,0)","v":19219},{"$f":"VLOOKUP($A22,[9]BP05!$E$14:$O$225,10,0)","v":24633},{"$f":"VLOOKUP($A22,[10]CKD03!$E$14:$O$225,5,0)","v":5183},{"$f":"VLOOKUP($A22,[10]CKD03!$E$14:$O$225,10,0)","v":7025},{"$f":"VLOOKUP($A22,[11]PAD03!$E$14:$O$225,5,0)","v":1358},{"$f":"VLOOKUP($A22,[11]PAD03!$E$14:$O$225,10,0)","v":1550},{"$f":"VLOOKUP($A22,[11]PAD04!$E$14:$O$225,5,0)","v":1018},{"$f":"VLOOKUP($A22,[11]PAD04!$E$14:$O$225,10,0)","v":1550},{"$f":"VLOOKUP($A22,[12]STROKE06!$E$14:$O$225,5,0)","v":2733},{"$f":"VLOOKUP($A22,[12]STROKE06!$E$14:$O$225,10,0)","v":3155},{"$f":"VLOOKUP($A22,[12]STROKE08!$E$14:$O$225,5,0)","v":2054},{"$f":"VLOOKUP($A22,[12]STROKE08!$E$14:$O$225,10,0)","v":3155},null,null,null,null,null,null,null,null,null,null,null,null,null,null,{"$f":"VLOOKUP($A22,[3]CHD!$E$14:$BS$226,29,0)","v":6561},{"$f":"VLOOKUP($A22,[3]CHD!$E$14:$BS$226,34,0)","v":7207},{"$f":"VLOOKUP($A22,[3]CHD!$E$14:$BS$226,37,0)","v":5178},{"$f":"VLOOKUP($A22,[3]CHD!$E$14:$BS$226,42,0)","v":7207},{"$f":"VLOOKUP($A22,[3]HYP!$E$14:$BK$226,29,0)","v":20903},{"$f":"VLOOKUP($A22,[3]HYP!$E$14:$BK$226,34,0)","v":25829},{"$f":"VLOOKUP($A22,[3]CKD!$E$14:$BG$230,33,0)","v":6087},{"$f":"VLOOKUP($A22,[3]CKD!$E$14:$BG$230,38,0)","v":7696},{"$f":"VLOOKUP(A22,[3]PAD!$E$14:$BC$226,29,0)","v":1375},{"$f":"VLOOKUP($A22,[3]PAD!$E$14:$BC$226,34,0)","v":1564},{"$f":"VLOOKUP($A22,[3]PAD!$E$14:$BC$226,37,0)","v":1050},{"$f":"VLOOKUP($A22,[3]PAD!$E$14:$BC$226,42,0)","v":1564},{"$f":"VLOOKUP($A22,[3]STIA!$E$14:$CA$230,37,0)","v":2993},{"$f":"VLOOKUP($A22,[3]STIA!$E$14:$CA$230,42,0)","v":3418},{"$f":"VLOOKUP($A22,[3]STIA!$E$14:$CA$230,53,0)","v":1490},{"$f":"VLOOKUP($A22,[3]STIA!$E$14:$CA$230,58,0)","v":2236}]
["00Y","NHS Oldham",{"$f":"VLOOKUP($A23,'[6]201314'!$C$19:$J$256,8,0)","v":175},{"$f":"VLOOKUP($A23,'[6]201314'!$C$19:$J$256,7,0)","v":226007},{"$f":"VLOOKUP($A23,[7]Data!$A$6:$H$228,4,0)","v":384},{"$f":"VLOOKUP(A23,[3]CHD!$E$15:$H$226,4,0)","v":240928},{"$f":"VLOOKUP($A23,[7]Data!$A$6:$H$228,3,0)","v":1216},240928,{"$f":"VLOOKUP($A23,[7]Data!$A$6:$H$228,5,0)","v":229},240928,{"$f":"VLOOKUP($A23,[7]Data!$A$6:$H$228,6,0)","v":562},240928,{"$f":"VLOOKUP($A23,[7]Data!$A$6:$H$228,7,0)","v":237},240928,{"$f":"VLOOKUP($A23,[7]Data!$A$6:$H$228,8,0)","v":72},240928,{"$f":"VLOOKUP($A23,[8]CHD06!$E$15:$O$225,5,0)","v":7151},{"$f":"VLOOKUP($A23,[8]CHD06!$E$15:$O$225,10,0)","v":8192},{"$f":"VLOOKUP($A23,[8]CHD08!$E$15:$O$225,5,0)","v":6055},{"$f":"VLOOKUP($A23,[8]CHD08!$E$15:$O$225,10,0)","v":8192},{"$f":"VLOOKUP($A23,[9]BP05!$E$14:$O$225,5,0)","v":24794},{"$f":"VLOOKUP($A23,[9]BP05!$E$14:$O$225,10,0)","v":32479},{"$f":"VLOOKUP($A23,[10]CKD03!$E$14:$O$225,5,0)","v":4597},{"$f":"VLOOKUP($A23,[10]CKD03!$E$14:$O$225,10,0)","v":6540},{"$f":"VLOOKUP($A23,[11]PAD03!$E$14:$O$225,5,0)","v":1702},{"$f":"VLOOKUP($A23,[11]PAD03!$E$14:$O$225,10,0)","v":2024},{"$f":"VLOOKUP($A23,[11]PAD04!$E$14:$O$225,5,0)","v":1416},{"$f":"VLOOKUP($A23,[11]PAD04!$E$14:$O$225,10,0)","v":2024},{"$f":"VLOOKUP($A23,[12]STROKE06!$E$14:$O$225,5,0)","v":3556},{"$f":"VLOOKUP($A23,[12]STROKE06!$E$14:$O$225,10,0)","v":4176},{"$f":"VLOOKUP($A23,[12]STROKE08!$E$14:$O$225,5,0)","v":2870},{"$f":"VLOOKUP($A23,[12]STROKE08!$E$14:$O$225,10,0)","v":4176},null,null,null,null,null,null,null,null,null,null,null,null,null,null,{"$f":"VLOOKUP($A23,[3]CHD!$E$14:$BS$226,29,0)","v":7239},{"$f":"VLOOKUP($A23,[3]CHD!$E$14:$BS$226,34,0)","v":8086},{"$f":"VLOOKUP($A23,[3]CHD!$E$14:$BS$226,37,0)","v":5920},{"$f":"VLOOKUP($A23,[3]CHD!$E$14:$BS$226,42,0)","v":8088},{"$f":"VLOOKUP($A23,[3]HYP!$E$14:$BK$226,29,0)","v":25969},{"$f":"VLOOKUP($A23,[3]HYP!$E$14:$BK$226,34,0)","v":32825},{"$f":"VLOOKUP($A23,[3]CKD!$E$14:$BG$230,33,0)","v":4938},{"$f":"VLOOKUP($A23,[3]CKD!$E$14:$BG$230,38,0)","v":6512},{"$f":"VLOOKUP(A23,[3]PAD!$E$14:$BC$226,29,0)","v":1676},{"$f":"VLOOKUP($A23,[3]PAD!$E$14:$BC$226,34,0)","v":1972},{"$f":"VLOOKUP($A23,[3]PAD!$E$14:$BC$226,37,0)","v":1325},{"$f":"VLOOKUP($A23,[3]PAD!$E$14:$BC$226,42,0)","v":1972},{"$f":"VLOOKUP($A23,[3]STIA!$E$14:$CA$230,37,0)","v":3696},{"$f":"VLOOKUP($A23,[3]STIA!$E$14:$CA$230,42,0)","v":4244},{"$f":"VLOOKUP($A23,[3]STIA!$E$14:$CA$230,53,0)","v":1904},{"$f":"VLOOKUP($A23,[3]STIA!$E$14:$CA$230,58,0)","v":2745}]
["01A","NHS East Lancashire",{"$f":"VLOOKUP($A24,'[6]201314'!$C$19:$J$256,8,0)","v":298},{"$f":"VLOOKUP($A24,'[6]201314'!$C$19:$J$256,7,0)","v":343506},{"$f":"VLOOKUP($A24,[7]Data!$A$6:$H$228,4,0)","v":598},{"$f":"VLOOKUP(A24,[3]CHD!$E$15:$H$226,4,0)","v":367891},{"$f":"VLOOKUP($A24,[7]Data!$A$6:$H$228,3,0)","v":2370},367891,{"$f":"VLOOKUP($A24,[7]Data!$A$6:$H$228,5,0)","v":439},367891,{"$f":"VLOOKUP($A24,[7]Data!$A$6:$H$228,6,0)","v":1427},367891,{"$f":"VLOOKUP($A24,[7]Data!$A$6:$H$228,7,0)","v":583},367891,{"$f":"VLOOKUP($A24,[7]Data!$A$6:$H$228,8,0)","v":149},367891,{"$f":"VLOOKUP($A24,[8]CHD06!$E$15:$O$225,5,0)","v":13671},{"$f":"VLOOKUP($A24,[8]CHD06!$E$15:$O$225,10,0)","v":15467},{"$f":"VLOOKUP($A24,[8]CHD08!$E$15:$O$225,5,0)","v":11158},{"$f":"VLOOKUP($A24,[8]CHD08!$E$15:$O$225,10,0)","v":15467},{"$f":"VLOOKUP($A24,[9]BP05!$E$14:$O$225,5,0)","v":38178},{"$f":"VLOOKUP($A24,[9]BP05!$E$14:$O$225,10,0)","v":50639},{"$f":"VLOOKUP($A24,[10]CKD03!$E$14:$O$225,5,0)","v":7593},{"$f":"VLOOKUP($A24,[10]CKD03!$E$14:$O$225,10,0)","v":10236},{"$f":"VLOOKUP($A24,[11]PAD03!$E$14:$O$225,5,0)","v":3211},{"$f":"VLOOKUP($A24,[11]PAD03!$E$14:$O$225,10,0)","v":3779},{"$f":"VLOOKUP($A24,[11]PAD04!$E$14:$O$225,5,0)","v":2482},{"$f":"VLOOKUP($A24,[11]PAD04!$E$14:$O$225,10,0)","v":3779},{"$f":"VLOOKUP($A24,[12]STROKE06!$E$14:$O$225,5,0)","v":6104},{"$f":"VLOOKUP($A24,[12]STROKE06!$E$14:$O$225,10,0)","v":7062},{"$f":"VLOOKUP($A24,[12]STROKE08!$E$14:$O$225,5,0)","v":4724},{"$f":"VLOOKUP($A24,[12]STROKE08!$E$14:$O$225,10,0)","v":7062},null,null,null,null,null,null,null,null,null,null,null,null,null,null,{"$f":"VLOOKUP($A24,[3]CHD!$E$14:$BS$226,29,0)","v":13742},{"$f":"VLOOKUP($A24,[3]CHD!$E$14:$BS$226,34,0)","v":15347},{"$f":"VLOOKUP($A24,[3]CHD!$E$14:$BS$226,37,0)","v":11449},{"$f":"VLOOKUP($A24,[3]CHD!$E$14:$BS$226,42,0)","v":15347},{"$f":"VLOOKUP($A24,[3]HYP!$E$14:$BK$226,29,0)","v":40381},{"$f":"VLOOKUP($A24,[3]HYP!$E$14:$BK$226,34,0)","v":51189},{"$f":"VLOOKUP($A24,[3]CKD!$E$14:$BG$230,33,0)","v":8294},{"$f":"VLOOKUP($A24,[3]CKD!$E$14:$BG$230,38,0)","v":10601},{"$f":"VLOOKUP(A24,[3]PAD!$E$14:$BC$226,29,0)","v":3349},{"$f":"VLOOKUP($A24,[3]PAD!$E$14:$BC$226,34,0)","v":3820},{"$f":"VLOOKUP($A24,[3]PAD!$E$14:$BC$226,37,0)","v":2709},{"$f":"VLOOKUP($A24,[3]PAD!$E$14:$BC$226,42,0)","v":3820},{"$f":"VLOOKUP($A24,[3]STIA!$E$14:$CA$230,37,0)","v":6341},{"$f":"VLOOKUP($A24,[3]STIA!$E$14:$CA$230,42,0)","v":7297},{"$f":"VLOOKUP($A24,[3]STIA!$E$14:$CA$230,53,0)","v":3123},{"$f":"VLOOKUP($A24,[3]STIA!$E$14:$CA$230,58,0)","v":4401}]
["01C","NHS Eastern Cheshire",{"$f":"VLOOKUP($A25,'[6]201314'!$C$19:$J$256,8,0)","v":107},{"$f":"VLOOKUP($A25,'[6]201314'!$C$19:$J$256,7,0)","v":183094},{"$f":"VLOOKUP($A25,[7]Data!$A$6:$H$228,4,0)","v":347},{"$f":"VLOOKUP(A25,[3]CHD!$E$15:$H$226,4,0)","v":202955},{"$f":"VLOOKUP($A25,[7]Data!$A$6:$H$228,3,0)","v":1066},202955,{"$f":"VLOOKUP($A25,[7]Data!$A$6:$H$228,5,0)","v":233},202955,{"$f":"VLOOKUP($A25,[7]Data!$A$6:$H$228,6,0)","v":542},202955,{"$f":"VLOOKUP($A25,[7]Data!$A$6:$H$228,7,0)","v":213},202955,{"$f":"VLOOKUP($A25,[7]Data!$A$6:$H$228,8,0)","v":76},202955,{"$f":"VLOOKUP($A25,[8]CHD06!$E$15:$O$225,5,0)","v":6470},{"$f":"VLOOKUP($A25,[8]CHD06!$E$15:$O$225,10,0)","v":7342},{"$f":"VLOOKUP($A25,[8]CHD08!$E$15:$O$225,5,0)","v":5020},{"$f":"VLOOKUP($A25,[8]CHD08!$E$15:$O$225,10,0)","v":7342},{"$f":"VLOOKUP($A25,[9]BP05!$E$14:$O$225,5,0)","v":23037},{"$f":"VLOOKUP($A25,[9]BP05!$E$14:$O$225,10,0)","v":29850},{"$f":"VLOOKUP($A25,[10]CKD03!$E$14:$O$225,5,0)","v":5135},{"$f":"VLOOKUP($A25,[10]CKD03!$E$14:$O$225,10,0)","v":7353},{"$f":"VLOOKUP($A25,[11]PAD03!$E$14:$O$225,5,0)","v":1305},{"$f":"VLOOKUP($A25,[11]PAD03!$E$14:$O$225,10,0)","v":1539},{"$f":"VLOOKUP($A25,[11]PAD04!$E$14:$O$225,5,0)","v":1022},{"$f":"VLOOKUP($A25,[11]PAD04!$E$14:$O$225,10,0)","v":1539},{"$f":"VLOOKUP($A25,[12]STROKE06!$E$14:$O$225,5,0)","v":3544},{"$f":"VLOOKUP($A25,[12]STROKE06!$E$14:$O$225,10,0)","v":4183},{"$f":"VLOOKUP($A25,[12]STROKE08!$E$14:$O$225,5,0)","v":2653},{"$f":"VLOOKUP($A25,[12]STROKE08!$E$14:$O$225,10,0)","v":4183},null,null,null,null,null,null,null,null,null,null,null,null,null,null,{"$f":"VLOOKUP($A25,[3]CHD!$E$14:$BS$226,29,0)","v":6549},{"$f":"VLOOKUP($A25,[3]CHD!$E$14:$BS$226,34,0)","v":7301},{"$f":"VLOOKUP($A25,[3]CHD!$E$14:$BS$226,37,0)","v":5003},{"$f":"VLOOKUP($A25,[3]CHD!$E$14:$BS$226,42,0)","v":7287},{"$f":"VLOOKUP($A25,[3]HYP!$E$14:$BK$226,29,0)","v":23982},{"$f":"VLOOKUP($A25,[3]HYP!$E$14:$BK$226,34,0)","v":30181},{"$f":"VLOOKUP($A25,[3]CKD!$E$14:$BG$230,33,0)","v":5559},{"$f":"VLOOKUP($A25,[3]CKD!$E$14:$BG$230,38,0)","v":7408},{"$f":"VLOOKUP(A25,[3]PAD!$E$14:$BC$226,29,0)","v":1300},{"$f":"VLOOKUP($A25,[3]PAD!$E$14:$BC$226,34,0)","v":1502},{"$f":"VLOOKUP($A25,[3]PAD!$E$14:$BC$226,37,0)","v":993},{"$f":"VLOOKUP($A25,[3]PAD!$E$14:$BC$226,42,0)","v":1497},{"$f":"VLOOKUP($A25,[3]STIA!$E$14:$CA$230,37,0)","v":3615},{"$f":"VLOOKUP($A25,[3]STIA!$E$14:$CA$230,42,0)","v":4270},{"$f":"VLOOKUP($A25,[3]STIA!$E$14:$CA$230,53,0)","v":1708},{"$f":"VLOOKUP($A25,[3]STIA!$E$14:$CA$230,58,0)","v":2763}]
["01D","NHS Heywood, Middleton and Rochdale",{"$f":"VLOOKUP($A26,'[6]201314'!$C$19:$J$256,8,0)","v":178},{"$f":"VLOOKUP($A26,'[6]201314'!$C$19:$J$256,7,0)","v":208462},{"$f":"VLOOKUP($A26,[7]Data!$A$6:$H$228,4,0)","v":367},{"$f":"VLOOKUP(A26,[3]CHD!$E$15:$H$226,4,0)","v":221027},{"$f":"VLOOKUP($A26,[7]Data!$A$6:$H$228,3,0)","v":1400},221027,{"$f":"VLOOKUP($A26,[7]Data!$A$6:$H$228,5,0)","v":242},221027,{"$f":"VLOOKUP($A26,[7]Data!$A$6:$H$228,6,0)","v":670},221027,{"$f":"VLOOKUP($A26,[7]Data!$A$6:$H$228,7,0)","v":290},221027,{"$f":"VLOOKUP($A26,[7]Data!$A$6:$H$228,8,0)","v":74},221027,{"$f":"VLOOKUP($A26,[8]CHD06!$E$15:$O$225,5,0)","v":7855},{"$f":"VLOOKUP($A26,[8]CHD06!$E$15:$O$225,10,0)","v":8827},{"$f":"VLOOKUP($A26,[8]CHD08!$E$15:$O$225,5,0)","v":6494},{"$f":"VLOOKUP($A26,[8]CHD08!$E$15:$O$225,10,0)","v":8827},{"$f":"VLOOKUP($A26,[9]BP05!$E$14:$O$225,5,0)","v":24020},{"$f":"VLOOKUP($A26,[9]BP05!$E$14:$O$225,10,0)","v":30594},{"$f":"VLOOKUP($A26,[10]CKD03!$E$14:$O$225,5,0)","v":5492},{"$f":"VLOOKUP($A26,[10]CKD03!$E$14:$O$225,10,0)","v":7473},{"$f":"VLOOKUP($A26,[11]PAD03!$E$14:$O$225,5,0)","v":1803},{"$f":"VLOOKUP($A26,[11]PAD03!$E$14:$O$225,10,0)","v":2072},{"$f":"VLOOKUP($A26,[11]PAD04!$E$14:$O$225,5,0)","v":1394},{"$f":"VLOOKUP($A26,[11]PAD04!$E$14:$O$225,10,0)","v":2072},{"$f":"VLOOKUP($A26,[12]STROKE06!$E$14:$O$225,5,0)","v":3607},{"$f":"VLOOKUP($A26,[12]STROKE06!$E$14:$O$225,10,0)","v":4127},{"$f":"VLOOKUP($A26,[12]STROKE08!$E$14:$O$225,5,0)","v":2846},{"$f":"VLOOKUP($A26,[12]STROKE08!$E$14:$O$225,10,0)","v":4127},null,null,null,null,null,null,null,null,null,null,null,null,null,null,{"$f":"VLOOKUP($A26,[3]CHD!$E$14:$BS$226,29,0)","v":7863},{"$f":"VLOOKUP($A26,[3]CHD!$E$14:$BS$226,34,0)","v":8740},{"$f":"VLOOKUP($A26,[3]CHD!$E$14:$BS$226,37,0)","v":6358},{"$f":"VLOOKUP($A26,[3]CHD!$E$14:$BS$226,42,0)","v":8741},{"$f":"VLOOKUP($A26,[3]HYP!$E$14:$BK$226,29,0)","v":25114},{"$f":"VLOOKUP($A26,[3]HYP!$E$14:$BK$226,34,0)","v":31218},{"$f":"VLOOKUP($A26,[3]CKD!$E$14:$BG$230,33,0)","v":6033},{"$f":"VLOOKUP($A26,[3]CKD!$E$14:$BG$230,38,0)","v":7561},{"$f":"VLOOKUP(A26,[3]PAD!$E$14:$BC$226,29,0)","v":1858},{"$f":"VLOOKUP($A26,[3]PAD!$E$14:$BC$226,34,0)","v":2104},{"$f":"VLOOKUP($A26,[3]PAD!$E$14:$BC$226,37,0)","v":1403},{"$f":"VLOOKUP($A26,[3]PAD!$E$14:$BC$226,42,0)","v":2104},{"$f":"VLOOKUP($A26,[3]STIA!$E$14:$CA$230,37,0)","v":3670},{"$f":"VLOOKUP($A26,[3]STIA!$E$14:$CA$230,42,0)","v":4197},{"$f":"VLOOKUP($A26,[3]STIA!$E$14:$CA$230,53,0)","v":1955},{"$f":"VLOOKUP($A26,[3]STIA!$E$14:$CA$230,58,0)","v":2883}]
["01E","NHS Greater Preston",{"$f":"VLOOKUP($A27,'[6]201314'!$C$19:$J$256,8,0)","v":138},{"$f":"VLOOKUP($A27,'[6]201314'!$C$19:$J$256,7,0)","v":195492},{"$f":"VLOOKUP($A27,[7]Data!$A$6:$H$228,4,0)","v":276},{"$f":"VLOOKUP(A27,[3]CHD!$E$15:$H$226,4,0)","v":210949},{"$f":"VLOOKUP($A27,[7]Data!$A$6:$H$228,3,0)","v":1291},210949,{"$f":"VLOOKUP($A27,[7]Data!$A$6:$H$228,5,0)","v":226},210949,{"$f":"VLOOKUP($A27,[7]Data!$A$6:$H$228,6,0)","v":613},210949,{"$f":"VLOOKUP($A27,[7]Data!$A$6:$H$228,7,0)","v":206},210949,{"$f":"VLOOKUP($A27,[7]Data!$A$6:$H$228,8,0)","v":109},210949,{"$f":"VLOOKUP($A27,[8]CHD06!$E$15:$O$225,5,0)","v":6633},{"$f":"VLOOKUP($A27,[8]CHD06!$E$15:$O$225,10,0)","v":7579},{"$f":"VLOOKUP($A27,[8]CHD08!$E$15:$O$225,5,0)","v":5411},{"$f":"VLOOKUP($A27,[8]CHD08!$E$15:$O$225,10,0)","v":7579},{"$f":"VLOOKUP($A27,[9]BP05!$E$14:$O$225,5,0)","v":20700},{"$f":"VLOOKUP($A27,[9]BP05!$E$14:$O$225,10,0)","v":27341},{"$f":"VLOOKUP($A27,[10]CKD03!$E$14:$O$225,5,0)","v":5409},{"$f":"VLOOKUP($A27,[10]CKD03!$E$14:$O$225,10,0)","v":7390},{"$f":"VLOOKUP($A27,[11]PAD03!$E$14:$O$225,5,0)","v":1403},{"$f":"VLOOKUP($A27,[11]PAD03!$E$14:$O$225,10,0)","v":1685},{"$f":"VLOOKUP($A27,[11]PAD04!$E$14:$O$225,5,0)","v":1133},{"$f":"VLOOKUP($A27,[11]PAD04!$E$14:$O$225,10,0)","v":1685},{"$f":"VLOOKUP($A27,[12]STROKE06!$E$14:$O$225,5,0)","v":3260},{"$f":"VLOOKUP($A27,[12]STROKE06!$E$14:$O$225,10,0)","v":3825},{"$f":"VLOOKUP($A27,[12]STROKE08!$E$14:$O$225,5,0)","v":2566},{"$f":"VLOOKUP($A27,[12]STROKE08!$E$14:$O$225,10,0)","v":3825},null,null,null,null,null,null,null,null,null,null,null,null,null,null,{"$f":"VLOOKUP($A27,[3]CHD!$E$14:$BS$226,29,0)","v":6456},{"$f":"VLOOKUP($A27,[3]CHD!$E$14:$BS$226,34,0)","v":7265},{"$f":"VLOOKUP($A27,[3]CHD!$E$14:$BS$226,37,0)","v":5196},{"$f":"VLOOKUP($A27,[3]CHD!$E$14:$BS$226,42,0)","v":7265},{"$f":"VLOOKUP($A27,[3]HYP!$E$14:$BK$226,29,0)","v":21502},{"$f":"VLOOKUP($A27,[3]HYP!$E$14:$BK$226,34,0)","v":27175},{"$f":"VLOOKUP($A27,[3]CKD!$E$14:$BG$230,33,0)","v":5817},{"$f":"VLOOKUP($A27,[3]CKD!$E$14:$BG$230,38,0)","v":7583},{"$f":"VLOOKUP(A27,[3]PAD!$E$14:$BC$226,29,0)","v":1395},{"$f":"VLOOKUP($A27,[3]PAD!$E$14:$BC$226,34,0)","v":1640},{"$f":"VLOOKUP($A27,[3]PAD!$E$14:$BC$226,37,0)","v":1091},{"$f":"VLOOKUP($A27,[3]PAD!$E$14:$BC$226,42,0)","v":1640},{"$f":"VLOOKUP($A27,[3]STIA!$E$14:$CA$230,37,0)","v":3262},{"$f":"VLOOKUP($A27,[3]STIA!$E$14:$CA$230,42,0)","v":3786},{"$f":"VLOOKUP($A27,[3]STIA!$E$14:$CA$230,53,0)","v":1600},{"$f":"VLOOKUP($A27,[3]STIA!$E$14:$CA$230,58,0)","v":2414}]
["01F","NHS Halton",{"$f":"VLOOKUP($A28,'[6]201314'!$C$19:$J$256,8,0)","v":94},{"$f":"VLOOKUP($A28,'[6]201314'!$C$19:$J$256,7,0)","v":120429},{"$f":"VLOOKUP($A28,[7]Data!$A$6:$H$228,4,0)","v":185},{"$f":"VLOOKUP(A28,[3]CHD!$E$15:$H$226,4,0)","v":128620},{"$f":"VLOOKUP($A28,[7]Data!$A$6:$H$228,3,0)","v":834},128620,{"$f":"VLOOKUP($A28,[7]Data!$A$6:$H$228,5,0)","v":92},128620,{"$f":"VLOOKUP($A28,[7]Data!$A$6:$H$228,6,0)","v":421},128620,{"$f":"VLOOKUP($A28,[7]Data!$A$6:$H$228,7,0)","v":162},128620,{"$f":"VLOOKUP($A28,[7]Data!$A$6:$H$228,8,0)","v":50},128620,{"$f":"VLOOKUP($A28,[8]CHD06!$E$15:$O$225,5,0)","v":4995},{"$f":"VLOOKUP($A28,[8]CHD06!$E$15:$O$225,10,0)","v":5618},{"$f":"VLOOKUP($A28,[8]CHD08!$E$15:$O$225,5,0)","v":4166},{"$f":"VLOOKUP($A28,[8]CHD08!$E$15:$O$225,10,0)","v":5618},{"$f":"VLOOKUP($A28,[9]BP05!$E$14:$O$225,5,0)","v":14485},{"$f":"VLOOKUP($A28,[9]BP05!$E$14:$O$225,10,0)","v":19093},{"$f":"VLOOKUP($A28,[10]CKD03!$E$14:$O$225,5,0)","v":3301},{"$f":"VLOOKUP($A28,[10]CKD03!$E$14:$O$225,10,0)","v":4514},{"$f":"VLOOKUP($A28,[11]PAD03!$E$14:$O$225,5,0)","v":1193},{"$f":"VLOOKUP($A28,[11]PAD03!$E$14:$O$225,10,0)","v":1400},{"$f":"VLOOKUP($A28,[11]PAD04!$E$14:$O$225,5,0)","v":1009},{"$f":"VLOOKUP($A28,[11]PAD04!$E$14:$O$225,10,0)","v":1400},{"$f":"VLOOKUP($A28,[12]STROKE06!$E$14:$O$225,5,0)","v":2057},{"$f":"VLOOKUP($A28,[12]STROKE06!$E$14:$O$225,10,0)","v":2363},{"$f":"VLOOKUP($A28,[12]STROKE08!$E$14:$O$225,5,0)","v":1660},{"$f":"VLOOKUP($A28,[12]STROKE08!$E$14:$O$225,10,0)","v":2363},null,null,null,null,null,null,null,null,null,null,null,null,null,null,{"$f":"VLOOKUP($A28,[3]CHD!$E$14:$BS$226,29,0)","v":4891},{"$f":"VLOOKUP($A28,[3]CHD!$E$14:$BS$226,34,0)","v":5563},{"$f":"VLOOKUP($A28,[3]CHD!$E$14:$BS$226,37,0)","v":4066},{"$f":"VLOOKUP($A28,[3]CHD!$E$14:$BS$226,42,0)","v":5563},{"$f":"VLOOKUP($A28,[3]HYP!$E$14:$BK$226,29,0)","v":14814},{"$f":"VLOOKUP($A28,[3]HYP!$E$14:$BK$226,34,0)","v":19332},{"$f":"VLOOKUP($A28,[3]CKD!$E$14:$BG$230,33,0)","v":3293},{"$f":"VLOOKUP($A28,[3]CKD!$E$14:$BG$230,38,0)","v":4397},{"$f":"VLOOKUP(A28,[3]PAD!$E$14:$BC$226,29,0)","v":1117},{"$f":"VLOOKUP($A28,[3]PAD!$E$14:$BC$226,34,0)","v":1329},{"$f":"VLOOKUP($A28,[3]PAD!$E$14:$BC$226,37,0)","v":963},{"$f":"VLOOKUP($A28,[3]PAD!$E$14:$BC$226,42,0)","v":1329},{"$f":"VLOOKUP($A28,[3]STIA!$E$14:$CA$230,37,0)","v":2032},{"$f":"VLOOKUP($A28,[3]STIA!$E$14:$CA$230,42,0)","v":2390},{"$f":"VLOOKUP($A28,[3]STIA!$E$14:$CA$230,53,0)","v":1002},{"$f":"VLOOKUP($A28,[3]STIA!$E$14:$CA$230,58,0)","v":1397}]
["01G","NHS Salford",{"$f":"VLOOKUP($A29,'[6]201314'!$C$19:$J$256,8,0)","v":201},{"$f":"VLOOKUP($A29,'[6]201314'!$C$19:$J$256,7,0)","v":235008},{"$f":"VLOOKUP($A29,[7]Data!$A$6:$H$228,4,0)","v":370},{"$f":"VLOOKUP(A29,[3]CHD!$E$15:$H$226,4,0)","v":250161},{"$f":"VLOOKUP($A29,[7]Data!$A$6:$H$228,3,0)","v":1585},250161,{"$f":"VLOOKUP($A29,[7]Data!$A$6:$H$228,5,0)","v":339},250161,{"$f":"VLOOKUP($A29,[7]Data!$A$6:$H$228,6,0)","v":500},250161,{"$f":"VLOOKUP($A29,[7]Data!$A$6:$H$228,7,0)","v":295},250161,{"$f":"VLOOKUP($A29,[7]Data!$A$6:$H$228,8,0)","v":62},250161,{"$f":"VLOOKUP($A29,[8]CHD06!$E$15:$O$225,5,0)","v":8651},{"$f":"VLOOKUP($A29,[8]CHD06!$E$15:$O$225,10,0)","v":9587},{"$f":"VLOOKUP($A29,[8]CHD08!$E$15:$O$225,5,0)","v":7026},{"$f":"VLOOKUP($A29,[8]CHD08!$E$15:$O$225,10,0)","v":9587},{"$f":"VLOOKUP($A29,[9]BP05!$E$14:$O$225,5,0)","v":27616},{"$f":"VLOOKUP($A29,[9]BP05!$E$14:$O$225,10,0)","v":34549},{"$f":"VLOOKUP($A29,[10]CKD03!$E$14:$O$225,5,0)","v":5780},{"$f":"VLOOKUP($A29,[10]CKD03!$E$14:$O$225,10,0)","v":7548},{"$f":"VLOOKUP($A29,[11]PAD03!$E$14:$O$225,5,0)","v":1894},{"$f":"VLOOKUP($A29,[11]PAD03!$E$14:$O$225,10,0)","v":2137},{"$f":"VLOOKUP($A29,[11]PAD04!$E$14:$O$225,5,0)","v":1503},{"$f":"VLOOKUP($A29,[11]PAD04!$E$14:$O$225,10,0)","v":2137},{"$f":"VLOOKUP($A29,[12]STROKE06!$E$14:$O$225,5,0)","v":4019},{"$f":"VLOOKUP($A29,[12]STROKE06!$E$14:$O$225,10,0)","v":4489},{"$f":"VLOOKUP($A29,[12]STROKE08!$E$14:$O$225,5,0)","v":3188},{"$f":"VLOOKUP($A29,[12]STROKE08!$E$14:$O$225,10,0)","v":4489},null,null,null,null,null,null,null,null,null,null,null,null,null,null,{"$f":"VLOOKUP($A29,[3]CHD!$E$14:$BS$226,29,0)","v":8391},{"$f":"VLOOKUP($A29,[3]CHD!$E$14:$BS$226,34,0)","v":9291},{"$f":"VLOOKUP($A29,[3]CHD!$E$14:$BS$226,37,0)","v":7068},{"$f":"VLOOKUP($A29,[3]CHD!$E$14:$BS$226,42,0)","v":9243},{"$f":"VLOOKUP($A29,[3]HYP!$E$14:$BK$226,29,0)","v":27443},{"$f":"VLOOKUP($A29,[3]HYP!$E$14:$BK$226,34,0)","v":34100},{"$f":"VLOOKUP($A29,[3]CKD!$E$14:$BG$230,33,0)","v":5787},{"$f":"VLOOKUP($A29,[3]CKD!$E$14:$BG$230,38,0)","v":7259},{"$f":"VLOOKUP(A29,[3]PAD!$E$14:$BC$226,29,0)","v":1853},{"$f":"VLOOKUP($A29,[3]PAD!$E$14:$BC$226,34,0)","v":2105},{"$f":"VLOOKUP($A29,[3]PAD!$E$14:$BC$226,37,0)","v":1535},{"$f":"VLOOKUP($A29,[3]PAD!$E$14:$BC$226,42,0)","v":2091},{"$f":"VLOOKUP($A29,[3]STIA!$E$14:$CA$230,37,0)","v":3911},{"$f":"VLOOKUP($A29,[3]STIA!$E$14:$CA$230,42,0)","v":4473},{"$f":"VLOOKUP($A29,[3]STIA!$E$14:$CA$230,53,0)","v":2219},{"$f":"VLOOKUP($A29,[3]STIA!$E$14:$CA$230,58,0)","v":3045}]
["01H","NHS Cumbria",{"$f":"VLOOKUP($A30,'[6]201314'!$C$19:$J$256,8,0)","v":384},{"$f":"VLOOKUP($A30,'[6]201314'!$C$19:$J$256,7,0)","v":472104},{"$f":"VLOOKUP($A30,[7]Data!$A$6:$H$228,4,0)","v":1069},{"$f":"VLOOKUP(A30,[3]CHD!$E$15:$H$226,4,0)","v":524145},{"$f":"VLOOKUP($A30,[7]Data!$A$6:$H$228,3,0)","v":4802},524145,{"$f":"VLOOKUP($A30,[7]Data!$A$6:$H$228,5,0)","v":768},524145,{"$f":"VLOOKUP($A30,[7]Data!$A$6:$H$228,6,0)","v":2591},524145,{"$f":"VLOOKUP($A30,[7]Data!$A$6:$H$228,7,0)","v":868},524145,{"$f":"VLOOKUP($A30,[7]Data!$A$6:$H$228,8,0)","v":305},524145,{"$f":"VLOOKUP($A30,[8]CHD06!$E$15:$O$225,5,0)","v":22058},{"$f":"VLOOKUP($A30,[8]CHD06!$E$15:$O$225,10,0)","v":24925},{"$f":"VLOOKUP($A30,[8]CHD08!$E$15:$O$225,5,0)","v":17405},{"$f":"VLOOKUP($A30,[8]CHD08!$E$15:$O$225,10,0)","v":24925},{"$f":"VLOOKUP($A30,[9]BP05!$E$14:$O$225,5,0)","v":62354},{"$f":"VLOOKUP($A30,[9]BP05!$E$14:$O$225,10,0)","v":80687},{"$f":"VLOOKUP($A30,[10]CKD03!$E$14:$O$225,5,0)","v":15286},{"$f":"VLOOKUP($A30,[10]CKD03!$E$14:$O$225,10,0)","v":21631},{"$f":"VLOOKUP($A30,[11]PAD03!$E$14:$O$225,5,0)","v":5085},{"$f":"VLOOKUP($A30,[11]PAD03!$E$14:$O$225,10,0)","v":5928},{"$f":"VLOOKUP($A30,[11]PAD04!$E$14:$O$225,5,0)","v":3945},{"$f":"VLOOKUP($A30,[11]PAD04!$E$14:$O$225,10,0)","v":5928},{"$f":"VLOOKUP($A30,[12]STROKE06!$E$14:$O$225,5,0)","v":10259},{"$f":"VLOOKUP($A30,[12]STROKE06!$E$14:$O$225,10,0)","v":12058},{"$f":"VLOOKUP($A30,[12]STROKE08!$E$14:$O$225,5,0)","v":7645},{"$f":"VLOOKUP($A30,[12]STROKE08!$E$14:$O$225,10,0)","v":12058},null,null,null,null,null,null,null,null,null,null,null,null,null,null,{"$f":"VLOOKUP($A30,[3]CHD!$E$14:$BS$226,29,0)","v":22045},{"$f":"VLOOKUP($A30,[3]CHD!$E$14:$BS$226,34,0)","v":24710},{"$f":"VLOOKUP($A30,[3]CHD!$E$14:$BS$226,37,0)","v":17135},{"$f":"VLOOKUP($A30,[3]CHD!$E$14:$BS$226,42,0)","v":24680},{"$f":"VLOOKUP($A30,[3]HYP!$E$14:$BK$226,29,0)","v":64635},{"$f":"VLOOKUP($A30,[3]HYP!$E$14:$BK$226,34,0)","v":81470},{"$f":"VLOOKUP($A30,[3]CKD!$E$14:$BG$230,33,0)","v":15448},{"$f":"VLOOKUP($A30,[3]CKD!$E$14:$BG$230,38,0)","v":20735},{"$f":"VLOOKUP(A30,[3]PAD!$E$14:$BC$226,29,0)","v":5070},{"$f":"VLOOKUP($A30,[3]PAD!$E$14:$BC$226,34,0)","v":5873},{"$f":"VLOOKUP($A30,[3]PAD!$E$14:$BC$226,37,0)","v":3894},{"$f":"VLOOKUP($A30,[3]PAD!$E$14:$BC$226,42,0)","v":5861},{"$f":"VLOOKUP($A30,[3]STIA!$E$14:$CA$230,37,0)","v":10439},{"$f":"VLOOKUP($A30,[3]STIA!$E$14:$CA$230,42,0)","v":12244},{"$f":"VLOOKUP($A30,[3]STIA!$E$14:$CA$230,53,0)","v":5112},{"$f":"VLOOKUP($A30,[3]STIA!$E$14:$CA$230,58,0)","v":8115}]
["01J","NHS Knowsley",{"$f":"VLOOKUP($A31,'[6]201314'!$C$19:$J$256,8,0)","v":119},{"$f":"VLOOKUP($A31,'[6]201314'!$C$19:$J$256,7,0)","v":149386},{"$f":"VLOOKUP($A31,[7]Data!$A$6:$H$228,4,0)","v":208},{"$f":"VLOOKUP(A31,[3]CHD!$E$15:$H$226,4,0)","v":161070},{"$f":"VLOOKUP($A31,[7]Data!$A$6:$H$228,3,0)","v":1017},161070,{"$f":"VLOOKUP($A31,[7]Data!$A$6:$H$228,5,0)","v":178},161070,{"$f":"VLOOKUP($A31,[7]Data!$A$6:$H$228,6,0)","v":581},161070,{"$f":"VLOOKUP($A31,[7]Data!$A$6:$H$228,7,0)","v":192},161070,{"$f":"VLOOKUP($A31,[7]Data!$A$6:$H$228,8,0)","v":84},161070,{"$f":"VLOOKUP($A31,[8]CHD06!$E$15:$O$225,5,0)","v":6646},{"$f":"VLOOKUP($A31,[8]CHD06!$E$15:$O$225,10,0)","v":7290},{"$f":"VLOOKUP($A31,[8]CHD08!$E$15:$O$225,5,0)","v":5345},{"$f":"VLOOKUP($A31,[8]CHD08!$E$15:$O$225,10,0)","v":7290},{"$f":"VLOOKUP($A31,[9]BP05!$E$14:$O$225,5,0)","v":19229},{"$f":"VLOOKUP($A31,[9]BP05!$E$14:$O$225,10,0)","v":23648},{"$f":"VLOOKUP($A31,[10]CKD03!$E$14:$O$225,5,0)","v":4339},{"$f":"VLOOKUP($A31,[10]CKD03!$E$14:$O$225,10,0)","v":5532},{"$f":"VLOOKUP($A31,[11]PAD03!$E$14:$O$225,5,0)","v":1421},{"$f":"VLOOKUP($A31,[11]PAD03!$E$14:$O$225,10,0)","v":1590},{"$f":"VLOOKUP($A31,[11]PAD04!$E$14:$O$225,5,0)","v":1122},{"$f":"VLOOKUP($A31,[11]PAD04!$E$14:$O$225,10,0)","v":1590},{"$f":"VLOOKUP($A31,[12]STROKE06!$E$14:$O$225,5,0)","v":2479},{"$f":"VLOOKUP($A31,[12]STROKE06!$E$14:$O$225,10,0)","v":2806},{"$f":"VLOOKUP($A31,[12]STROKE08!$E$14:$O$225,5,0)","v":2015},{"$f":"VLOOKUP($A31,[12]STROKE08!$E$14:$O$225,10,0)","v":2806},null,null,null,null,null,null,null,null,null,null,null,null,null,null,{"$f":"VLOOKUP($A31,[3]CHD!$E$14:$BS$226,29,0)","v":6523},{"$f":"VLOOKUP($A31,[3]CHD!$E$14:$BS$226,34,0)","v":7145},{"$f":"VLOOKUP($A31,[3]CHD!$E$14:$BS$226,37,0)","v":5294},{"$f":"VLOOKUP($A31,[3]CHD!$E$14:$BS$226,42,0)","v":7117},{"$f":"VLOOKUP($A31,[3]HYP!$E$14:$BK$226,29,0)","v":19307},{"$f":"VLOOKUP($A31,[3]HYP!$E$14:$BK$226,34,0)","v":23541},{"$f":"VLOOKUP($A31,[3]CKD!$E$14:$BG$230,33,0)","v":4435},{"$f":"VLOOKUP($A31,[3]CKD!$E$14:$BG$230,38,0)","v":5426},{"$f":"VLOOKUP(A31,[3]PAD!$E$14:$BC$226,29,0)","v":1412},{"$f":"VLOOKUP($A31,[3]PAD!$E$14:$BC$226,34,0)","v":1583},{"$f":"VLOOKUP($A31,[3]PAD!$E$14:$BC$226,37,0)","v":1157},{"$f":"VLOOKUP($A31,[3]PAD!$E$14:$BC$226,42,0)","v":1566},{"$f":"VLOOKUP($A31,[3]STIA!$E$14:$CA$230,37,0)","v":2498},{"$f":"VLOOKUP($A31,[3]STIA!$E$14:$CA$230,42,0)","v":2820},{"$f":"VLOOKUP($A31,[3]STIA!$E$14:$CA$230,53,0)","v":1228},{"$f":"VLOOKUP($A31,[3]STIA!$E$14:$CA$230,58,0)","v":1694}]
["01K","NHS Lancashire North",{"$f":"VLOOKUP($A32,'[6]201314'!$C$19:$J$256,8,0)","v":115},{"$f":"VLOOKUP($A32,'[6]201314'!$C$19:$J$256,7,0)","v":147300},{"$f":"VLOOKUP($A32,[7]Data!$A$6:$H$228,4,0)","v":249},{"$f":"VLOOKUP(A32,[3]CHD!$E$15:$H$226,4,0)","v":161625},{"$f":"VLOOKUP($A32,[7]Data!$A$6:$H$228,3,0)","v":1107},161625,{"$f":"VLOOKUP($A32,[7]Data!$A$6:$H$228,5,0)","v":180},161625,{"$f":"VLOOKUP($A32,[7]Data!$A$6:$H$228,6,0)","v":490},161625,{"$f":"VLOOKUP($A32,[7]Data!$A$6:$H$228,7,0)","v":167},161625,{"$f":"VLOOKUP($A32,[7]Data!$A$6:$H$228,8,0)","v":91},161625,{"$f":"VLOOKUP($A32,[8]CHD06!$E$15:$O$225,5,0)","v":5616},{"$f":"VLOOKUP($A32,[8]CHD06!$E$15:$O$225,10,0)","v":6491},{"$f":"VLOOKUP($A32,[8]CHD08!$E$15:$O$225,5,0)","v":4508},{"$f":"VLOOKUP($A32,[8]CHD08!$E$15:$O$225,10,0)","v":6491},{"$f":"VLOOKUP($A32,[9]BP05!$E$14:$O$225,5,0)","v":15605},{"$f":"VLOOKUP($A32,[9]BP05!$E$14:$O$225,10,0)","v":21253},{"$f":"VLOOKUP($A32,[10]CKD03!$E$14:$O$225,5,0)","v":5674},{"$f":"VLOOKUP($A32,[10]CKD03!$E$14:$O$225,10,0)","v":8148},{"$f":"VLOOKUP($A32,[11]PAD03!$E$14:$O$225,5,0)","v":1388},{"$f":"VLOOKUP($A32,[11]PAD03!$E$14:$O$225,10,0)","v":1667},{"$f":"VLOOKUP($A32,[11]PAD04!$E$14:$O$225,5,0)","v":1110},{"$f":"VLOOKUP($A32,[11]PAD04!$E$14:$O$225,10,0)","v":1667},{"$f":"VLOOKUP($A32,[12]STROKE06!$E$14:$O$225,5,0)","v":2531},{"$f":"VLOOKUP($A32,[12]STROKE06!$E$14:$O$225,10,0)","v":3087},{"$f":"VLOOKUP($A32,[12]STROKE08!$E$14:$O$225,5,0)","v":1915},{"$f":"VLOOKUP($A32,[12]STROKE08!$E$14:$O$225,10,0)","v":3087},null,null,null,null,null,null,null,null,null,null,null,null,null,null,{"$f":"VLOOKUP($A32,[3]CHD!$E$14:$BS$226,29,0)","v":5666},{"$f":"VLOOKUP($A32,[3]CHD!$E$14:$BS$226,34,0)","v":6426},{"$f":"VLOOKUP($A32,[3]CHD!$E$14:$BS$226,37,0)","v":4426},{"$f":"VLOOKUP($A32,[3]CHD!$E$14:$BS$226,42,0)","v":6426},{"$f":"VLOOKUP($A32,[3]HYP!$E$14:$BK$226,29,0)","v":16798},{"$f":"VLOOKUP($A32,[3]HYP!$E$14:$BK$226,34,0)","v":21526},{"$f":"VLOOKUP($A32,[3]CKD!$E$14:$BG$230,33,0)","v":5823},{"$f":"VLOOKUP($A32,[3]CKD!$E$14:$BG$230,38,0)","v":7766},{"$f":"VLOOKUP(A32,[3]PAD!$E$14:$BC$226,29,0)","v":1397},{"$f":"VLOOKUP($A32,[3]PAD!$E$14:$BC$226,34,0)","v":1652},{"$f":"VLOOKUP($A32,[3]PAD!$E$14:$BC$226,37,0)","v":1045},{"$f":"VLOOKUP($A32,[3]PAD!$E$14:$BC$226,42,0)","v":1652},{"$f":"VLOOKUP($A32,[3]STIA!$E$14:$CA$230,37,0)","v":2529},{"$f":"VLOOKUP($A32,[3]STIA!$E$14:$CA$230,42,0)","v":3019},{"$f":"VLOOKUP($A32,[3]STIA!$E$14:$CA$230,53,0)","v":1281},{"$f":"VLOOKUP($A32,[3]STIA!$E$14:$CA$230,58,0)","v":2088}]
["01M","NHS North Manchester",{"$f":"VLOOKUP($A33,'[6]201314'!$C$19:$J$256,8,0)","v":164},{"$f":"VLOOKUP($A33,'[6]201314'!$C$19:$J$256,7,0)","v":181878},{"$f":"VLOOKUP($A33,[7]Data!$A$6:$H$228,4,0)","v":259},{"$f":"VLOOKUP(A33,[3]CHD!$E$15:$H$226,4,0)","v":190463},{"$f":"VLOOKUP($A33,[7]Data!$A$6:$H$228,3,0)","v":1080},190463,{"$f":"VLOOKUP($A33,[7]Data!$A$6:$H$228,5,0)","v":183},190463,{"$f":"VLOOKUP($A33,[7]Data!$A$6:$H$228,6,0)","v":536},190463,{"$f":"VLOOKUP($A33,[7]Data!$A$6:$H$228,7,0)","v":235},190463,{"$f":"VLOOKUP($A33,[7]Data!$A$6:$H$228,8,0)","v":65},190463,{"$f":"VLOOKUP($A33,[8]CHD06!$E$15:$O$225,5,0)","v":5178},{"$f":"VLOOKUP($A33,[8]CHD06!$E$15:$O$225,10,0)","v":6015},{"$f":"VLOOKUP($A33,[8]CHD08!$E$15:$O$225,5,0)","v":4245},{"$f":"VLOOKUP($A33,[8]CHD08!$E$15:$O$225,10,0)","v":6015},{"$f":"VLOOKUP($A33,[9]BP05!$E$14:$O$225,5,0)","v":16709},{"$f":"VLOOKUP($A33,[9]BP05!$E$14:$O$225,10,0)","v":22427},{"$f":"VLOOKUP($A33,[10]CKD03!$E$14:$O$225,5,0)","v":3219},{"$f":"VLOOKUP($A33,[10]CKD03!$E$14:$O$225,10,0)","v":4674},{"$f":"VLOOKUP($A33,[11]PAD03!$E$14:$O$225,5,0)","v":1450},{"$f":"VLOOKUP($A33,[11]PAD03!$E$14:$O$225,10,0)","v":1728},{"$f":"VLOOKUP($A33,[11]PAD04!$E$14:$O$225,5,0)","v":1170},{"$f":"VLOOKUP($A33,[11]PAD04!$E$14:$O$225,10,0)","v":1728},{"$f":"VLOOKUP($A33,[12]STROKE06!$E$14:$O$225,5,0)","v":2514},{"$f":"VLOOKUP($A33,[12]STROKE06!$E$14:$O$225,10,0)","v":2962},{"$f":"VLOOKUP($A33,[12]STROKE08!$E$14:$O$225,5,0)","v":2049},{"$f":"VLOOKUP($A33,[12]STROKE08!$E$14:$O$225,10,0)","v":2962},null,null,null,null,null,null,null,null,null,null,null,null,null,null,{"$f":"VLOOKUP($A33,[3]CHD!$E$14:$BS$226,29,0)","v":5020},{"$f":"VLOOKUP($A33,[3]CHD!$E$14:$BS$226,34,0)","v":5855},{"$f":"VLOOKUP($A33,[3]CHD!$E$14:$BS$226,37,0)","v":3992},{"$f":"VLOOKUP($A33,[3]CHD!$E$14:$BS$226,42,0)","v":5859},{"$f":"VLOOKUP($A33,[3]HYP!$E$14:$BK$226,29,0)","v":16866},{"$f":"VLOOKUP($A33,[3]HYP!$E$14:$BK$226,34,0)","v":22437},{"$f":"VLOOKUP($A33,[3]CKD!$E$14:$BG$230,33,0)","v":3785},{"$f":"VLOOKUP($A33,[3]CKD!$E$14:$BG$230,38,0)","v":5046},{"$f":"VLOOKUP(A33,[3]PAD!$E$14:$BC$226,29,0)","v":1446},{"$f":"VLOOKUP($A33,[3]PAD!$E$14:$BC$226,34,0)","v":1738},{"$f":"VLOOKUP($A33,[3]PAD!$E$14:$BC$226,37,0)","v":1115},{"$f":"VLOOKUP($A33,[3]PAD!$E$14:$BC$226,42,0)","v":1738},{"$f":"VLOOKUP($A33,[3]STIA!$E$14:$CA$230,37,0)","v":2487},{"$f":"VLOOKUP($A33,[3]STIA!$E$14:$CA$230,42,0)","v":2976},{"$f":"VLOOKUP($A33,[3]STIA!$E$14:$CA$230,53,0)","v":1178},{"$f":"VLOOKUP($A33,[3]STIA!$E$14:$CA$230,58,0)","v":1763}]
["01N","NHS South Manchester",{"$f":"VLOOKUP($A34,'[6]201314'!$C$19:$J$256,8,0)","v":100},{"$f":"VLOOKUP($A34,'[6]201314'!$C$19:$J$256,7,0)","v":158331},{"$f":"VLOOKUP($A34,[7]Data!$A$6:$H$228,4,0)","v":214},{"$f":"VLOOKUP(A34,[3]CHD!$E$15:$H$226,4,0)","v":167734},{"$f":"VLOOKUP($A34,[7]Data!$A$6:$H$228,3,0)","v":561},167734,{"$f":"VLOOKUP($A34,[7]Data!$A$6:$H$228,5,0)","v":116},167734,{"$f":"VLOOKUP($A34,[7]Data!$A$6:$H$228,6,0)","v":294},167734,{"$f":"VLOOKUP($A34,[7]Data!$A$6:$H$228,7,0)","v":142},167734,{"$f":"VLOOKUP($A34,[7]Data!$A$6:$H$228,8,0)","v":56},167734,{"$f":"VLOOKUP($A34,[8]CHD06!$E$15:$O$225,5,0)","v":4410},{"$f":"VLOOKUP($A34,[8]CHD06!$E$15:$O$225,10,0)","v":5224},{"$f":"VLOOKUP($A34,[8]CHD08!$E$15:$O$225,5,0)","v":3610},{"$f":"VLOOKUP($A34,[8]CHD08!$E$15:$O$225,10,0)","v":5224},{"$f":"VLOOKUP($A34,[9]BP05!$E$14:$O$225,5,0)","v":14364},{"$f":"VLOOKUP($A34,[9]BP05!$E$14:$O$225,10,0)","v":19247},{"$f":"VLOOKUP($A34,[10]CKD03!$E$14:$O$225,5,0)","v":2637},{"$f":"VLOOKUP($A34,[10]CKD03!$E$14:$O$225,10,0)","v":3827},{"$f":"VLOOKUP($A34,[11]PAD03!$E$14:$O$225,5,0)","v":1329},{"$f":"VLOOKUP($A34,[11]PAD03!$E$14:$O$225,10,0)","v":1609},{"$f":"VLOOKUP($A34,[11]PAD04!$E$14:$O$225,5,0)","v":1086},{"$f":"VLOOKUP($A34,[11]PAD04!$E$14:$O$225,10,0)","v":1609},{"$f":"VLOOKUP($A34,[12]STROKE06!$E$14:$O$225,5,0)","v":2091},{"$f":"VLOOKUP($A34,[12]STROKE06!$E$14:$O$225,10,0)","v":2533},{"$f":"VLOOKUP($A34,[12]STROKE08!$E$14:$O$225,5,0)","v":1580},{"$f":"VLOOKUP($A34,[12]STROKE08!$E$14:$O$225,10,0)","v":2533},null,null,null,null,null,null,null,null,null,null,null,null,null,null,{"$f":"VLOOKUP($A34,[3]CHD!$E$14:$BS$226,29,0)","v":4293},{"$f":"VLOOKUP($A34,[3]CHD!$E$14:$BS$226,34,0)","v":5098},{"$f":"VLOOKUP($A34,[3]CHD!$E$14:$BS$226,37,0)","v":3435},{"$f":"VLOOKUP($A34,[3]CHD!$E$14:$BS$226,42,0)","v":5079},{"$f":"VLOOKUP($A34,[3]HYP!$E$14:$BK$226,29,0)","v":14220},{"$f":"VLOOKUP($A34,[3]HYP!$E$14:$BK$226,34,0)","v":19188},{"$f":"VLOOKUP($A34,[3]CKD!$E$14:$BG$230,33,0)","v":2708},{"$f":"VLOOKUP($A34,[3]CKD!$E$14:$BG$230,38,0)","v":3742},{"$f":"VLOOKUP(A34,[3]PAD!$E$14:$BC$226,29,0)","v":1257},{"$f":"VLOOKUP($A34,[3]PAD!$E$14:$BC$226,34,0)","v":1535},{"$f":"VLOOKUP($A34,[3]PAD!$E$14:$BC$226,37,0)","v":1029},{"$f":"VLOOKUP($A34,[3]PAD!$E$14:$BC$226,42,0)","v":1533},{"$f":"VLOOKUP($A34,[3]STIA!$E$14:$CA$230,37,0)","v":2034},{"$f":"VLOOKUP($A34,[3]STIA!$E$14:$CA$230,42,0)","v":2544},{"$f":"VLOOKUP($A34,[3]STIA!$E$14:$CA$230,53,0)","v":918},{"$f":"VLOOKUP($A34,[3]STIA!$E$14:$CA$230,58,0)","v":1503}]
["01R","NHS South Cheshire",{"$f":"VLOOKUP($A35,'[6]201314'!$C$19:$J$256,8,0)","v":142},{"$f":"VLOOKUP($A35,'[6]201314'!$C$19:$J$256,7,0)","v":161357},{"$f":"VLOOKUP($A35,[7]Data!$A$6:$H$228,4,0)","v":236},{"$f":"VLOOKUP(A35,[3]CHD!$E$15:$H$226,4,0)","v":175535},{"$f":"VLOOKUP($A35,[7]Data!$A$6:$H$228,3,0)","v":731},175535,{"$f":"VLOOKUP($A35,[7]Data!$A$6:$H$228,5,0)","v":204},175535,{"$f":"VLOOKUP($A35,[7]Data!$A$6:$H$228,6,0)","v":388},175535,{"$f":"VLOOKUP($A35,[7]Data!$A$6:$H$228,7,0)","v":190},175535,{"$f":"VLOOKUP($A35,[7]Data!$A$6:$H$228,8,0)","v":56},175535,{"$f":"VLOOKUP($A35,[8]CHD06!$E$15:$O$225,5,0)","v":5941},{"$f":"VLOOKUP($A35,[8]CHD06!$E$15:$O$225,10,0)","v":6725},{"$f":"VLOOKUP($A35,[8]CHD08!$E$15:$O$225,5,0)","v":4642},{"$f":"VLOOKUP($A35,[8]CHD08!$E$15:$O$225,10,0)","v":6725},{"$f":"VLOOKUP($A35,[9]BP05!$E$14:$O$225,5,0)","v":20397},{"$f":"VLOOKUP($A35,[9]BP05!$E$14:$O$225,10,0)","v":27108},{"$f":"VLOOKUP($A35,[10]CKD03!$E$14:$O$225,5,0)","v":5349},{"$f":"VLOOKUP($A35,[10]CKD03!$E$14:$O$225,10,0)","v":7333},{"$f":"VLOOKUP($A35,[11]PAD03!$E$14:$O$225,5,0)","v":1208},{"$f":"VLOOKUP($A35,[11]PAD03!$E$14:$O$225,10,0)","v":1422},{"$f":"VLOOKUP($A35,[11]PAD04!$E$14:$O$225,5,0)","v":863},{"$f":"VLOOKUP($A35,[11]PAD04!$E$14:$O$225,10,0)","v":1422},{"$f":"VLOOKUP($A35,[12]STROKE06!$E$14:$O$225,5,0)","v":3109},{"$f":"VLOOKUP($A35,[12]STROKE06!$E$14:$O$225,10,0)","v":3636},{"$f":"VLOOKUP($A35,[12]STROKE08!$E$14:$O$225,5,0)","v":2340},{"$f":"VLOOKUP($A35,[12]STROKE08!$E$14:$O$225,10,0)","v":3636},null,null,null,null,null,null,null,null,null,null,null,null,null,null,{"$f":"VLOOKUP($A35,[3]CHD!$E$14:$BS$226,29,0)","v":5946},{"$f":"VLOOKUP($A35,[3]CHD!$E$14:$BS$226,34,0)","v":6631},{"$f":"VLOOKUP($A35,[3]CHD!$E$14:$BS$226,37,0)","v":4843},{"$f":"VLOOKUP($A35,[3]CHD!$E$14:$BS$226,42,0)","v":6631},{"$f":"VLOOKUP($A35,[3]HYP!$E$14:$BK$226,29,0)","v":21745},{"$f":"VLOOKUP($A35,[3]HYP!$E$14:$BK$226,34,0)","v":27628},{"$f":"VLOOKUP($A35,[3]CKD!$E$14:$BG$230,33,0)","v":5370},{"$f":"VLOOKUP($A35,[3]CKD!$E$14:$BG$230,38,0)","v":7014},{"$f":"VLOOKUP(A35,[3]PAD!$E$14:$BC$226,29,0)","v":1186},{"$f":"VLOOKUP($A35,[3]PAD!$E$14:$BC$226,34,0)","v":1381},{"$f":"VLOOKUP($A35,[3]PAD!$E$14:$BC$226,37,0)","v":923},{"$f":"VLOOKUP($A35,[3]PAD!$E$14:$BC$226,42,0)","v":1381},{"$f":"VLOOKUP($A35,[3]STIA!$E$14:$CA$230,37,0)","v":3201},{"$f":"VLOOKUP($A35,[3]STIA!$E$14:$CA$230,42,0)","v":3708},{"$f":"VLOOKUP($A35,[3]STIA!$E$14:$CA$230,53,0)","v":1628},{"$f":"VLOOKUP($A35,[3]STIA!$E$14:$CA$230,58,0)","v":2442}]
["01T","NHS South Sefton",{"$f":"VLOOKUP($A36,'[6]201314'!$C$19:$J$256,8,0)","v":109},{"$f":"VLOOKUP($A36,'[6]201314'!$C$19:$J$256,7,0)","v":141959},{"$f":"VLOOKUP($A36,[7]Data!$A$6:$H$228,4,0)","v":203},{"$f":"VLOOKUP(A36,[3]CHD!$E$15:$H$226,4,0)","v":155077},{"$f":"VLOOKUP($A36,[7]Data!$A$6:$H$228,3,0)","v":824},155077,{"$f":"VLOOKUP($A36,[7]Data!$A$6:$H$228,5,0)","v":164},155077,{"$f":"VLOOKUP($A36,[7]Data!$A$6:$H$228,6,0)","v":560},155077,{"$f":"VLOOKUP($A36,[7]Data!$A$6:$H$228,7,0)","v":191},155077,{"$f":"VLOOKUP($A36,[7]Data!$A$6:$H$228,8,0)","v":71},155077,{"$f":"VLOOKUP($A36,[8]CHD06!$E$15:$O$225,5,0)","v":5956},{"$f":"VLOOKUP($A36,[8]CHD06!$E$15:$O$225,10,0)","v":6808},{"$f":"VLOOKUP($A36,[8]CHD08!$E$15:$O$225,5,0)","v":5002},{"$f":"VLOOKUP($A36,[8]CHD08!$E$15:$O$225,10,0)","v":6808},{"$f":"VLOOKUP($A36,[9]BP05!$E$14:$O$225,5,0)","v":19016},{"$f":"VLOOKUP($A36,[9]BP05!$E$14:$O$225,10,0)","v":25153},{"$f":"VLOOKUP($A36,[10]CKD03!$E$14:$O$225,5,0)","v":4880},{"$f":"VLOOKUP($A36,[10]CKD03!$E$14:$O$225,10,0)","v":6718},{"$f":"VLOOKUP($A36,[11]PAD03!$E$14:$O$225,5,0)","v":1270},{"$f":"VLOOKUP($A36,[11]PAD03!$E$14:$O$225,10,0)","v":1529},{"$f":"VLOOKUP($A36,[11]PAD04!$E$14:$O$225,5,0)","v":1049},{"$f":"VLOOKUP($A36,[11]PAD04!$E$14:$O$225,10,0)","v":1529},{"$f":"VLOOKUP($A36,[12]STROKE06!$E$14:$O$225,5,0)","v":2576},{"$f":"VLOOKUP($A36,[12]STROKE06!$E$14:$O$225,10,0)","v":3052},{"$f":"VLOOKUP($A36,[12]STROKE08!$E$14:$O$225,5,0)","v":2109},{"$f":"VLOOKUP($A36,[12]STROKE08!$E$14:$O$225,10,0)","v":3052},null,null,null,null,null,null,null,null,null,null,null,null,null,null,{"$f":"VLOOKUP($A36,[3]CHD!$E$14:$BS$226,29,0)","v":5810},{"$f":"VLOOKUP($A36,[3]CHD!$E$14:$BS$226,34,0)","v":6665},{"$f":"VLOOKUP($A36,[3]CHD!$E$14:$BS$226,37,0)","v":4865},{"$f":"VLOOKUP($A36,[3]CHD!$E$14:$BS$226,42,0)","v":6665},{"$f":"VLOOKUP($A36,[3]HYP!$E$14:$BK$226,29,0)","v":19211},{"$f":"VLOOKUP($A36,[3]HYP!$E$14:$BK$226,34,0)","v":25200},{"$f":"VLOOKUP($A36,[3]CKD!$E$14:$BG$230,33,0)","v":5339},{"$f":"VLOOKUP($A36,[3]CKD!$E$14:$BG$230,38,0)","v":7080},{"$f":"VLOOKUP(A36,[3]PAD!$E$14:$BC$226,29,0)","v":1250},{"$f":"VLOOKUP($A36,[3]PAD!$E$14:$BC$226,34,0)","v":1510},{"$f":"VLOOKUP($A36,[3]PAD!$E$14:$BC$226,37,0)","v":1018},{"$f":"VLOOKUP($A36,[3]PAD!$E$14:$BC$226,42,0)","v":1510},{"$f":"VLOOKUP($A36,[3]STIA!$E$14:$CA$230,37,0)","v":2512},{"$f":"VLOOKUP($A36,[3]STIA!$E$14:$CA$230,42,0)","v":3016},{"$f":"VLOOKUP($A36,[3]STIA!$E$14:$CA$230,53,0)","v":1217},{"$f":"VLOOKUP($A36,[3]STIA!$E$14:$CA$230,58,0)","v":1771}]
["01V","NHS Southport and Formby",{"$f":"VLOOKUP($A37,'[6]201314'!$C$19:$J$256,8,0)","v":79},{"$f":"VLOOKUP($A37,'[6]201314'!$C$19:$J$256,7,0)","v":107574},{"$f":"VLOOKUP($A37,[7]Data!$A$6:$H$228,4,0)","v":201},{"$f":"VLOOKUP(A37,[3]CHD!$E$15:$H$226,4,0)","v":122205},{"$f":"VLOOKUP($A37,[7]Data!$A$6:$H$228,3,0)","v":720},122205,{"$f":"VLOOKUP($A37,[7]Data!$A$6:$H$228,5,0)","v":173},122205,{"$f":"VLOOKUP($A37,[7]Data!$A$6:$H$228,6,0)","v":310},122205,{"$f":"VLOOKUP($A37,[7]Data!$A$6:$H$228,7,0)","v":149},122205,{"$f":"VLOOKUP($A37,[7]Data!$A$6:$H$228,8,0)","v":59},122205,{"$f":"VLOOKUP($A37,[8]CHD06!$E$15:$O$225,5,0)","v":4854},{"$f":"VLOOKUP($A37,[8]CHD06!$E$15:$O$225,10,0)","v":5379},{"$f":"VLOOKUP($A37,[8]CHD08!$E$15:$O$225,5,0)","v":3939},{"$f":"VLOOKUP($A37,[8]CHD08!$E$15:$O$225,10,0)","v":5379},{"$f":"VLOOKUP($A37,[9]BP05!$E$14:$O$225,5,0)","v":15720},{"$f":"VLOOKUP($A37,[9]BP05!$E$14:$O$225,10,0)","v":19977},{"$f":"VLOOKUP($A37,[10]CKD03!$E$14:$O$225,5,0)","v":3725},{"$f":"VLOOKUP($A37,[10]CKD03!$E$14:$O$225,10,0)","v":4997},{"$f":"VLOOKUP($A37,[11]PAD03!$E$14:$O$225,5,0)","v":867},{"$f":"VLOOKUP($A37,[11]PAD03!$E$14:$O$225,10,0)","v":1007},{"$f":"VLOOKUP($A37,[11]PAD04!$E$14:$O$225,5,0)","v":684},{"$f":"VLOOKUP($A37,[11]PAD04!$E$14:$O$225,10,0)","v":1007},{"$f":"VLOOKUP($A37,[12]STROKE06!$E$14:$O$225,5,0)","v":2516},{"$f":"VLOOKUP($A37,[12]STROKE06!$E$14:$O$225,10,0)","v":2844},{"$f":"VLOOKUP($A37,[12]STROKE08!$E$14:$O$225,5,0)","v":1930},{"$f":"VLOOKUP($A37,[12]STROKE08!$E$14:$O$225,10,0)","v":2844},null,null,null,null,null,null,null,null,null,null,null,null,null,null,{"$f":"VLOOKUP($A37,[3]CHD!$E$14:$BS$226,29,0)","v":4732},{"$f":"VLOOKUP($A37,[3]CHD!$E$14:$BS$226,34,0)","v":5241},{"$f":"VLOOKUP($A37,[3]CHD!$E$14:$BS$226,37,0)","v":3871},{"$f":"VLOOKUP($A37,[3]CHD!$E$14:$BS$226,42,0)","v":5241},{"$f":"VLOOKUP($A37,[3]HYP!$E$14:$BK$226,29,0)","v":16375},{"$f":"VLOOKUP($A37,[3]HYP!$E$14:$BK$226,34,0)","v":20099},{"$f":"VLOOKUP($A37,[3]CKD!$E$14:$BG$230,33,0)","v":4123},{"$f":"VLOOKUP($A37,[3]CKD!$E$14:$BG$230,38,0)","v":5255},{"$f":"VLOOKUP(A37,[3]PAD!$E$14:$BC$226,29,0)","v":879},{"$f":"VLOOKUP($A37,[3]PAD!$E$14:$BC$226,34,0)","v":1007},{"$f":"VLOOKUP($A37,[3]PAD!$E$14:$BC$226,37,0)","v":733},{"$f":"VLOOKUP($A37,[3]PAD!$E$14:$BC$226,42,0)","v":1007},{"$f":"VLOOKUP($A37,[3]STIA!$E$14:$CA$230,37,0)","v":2471},{"$f":"VLOOKUP($A37,[3]STIA!$E$14:$CA$230,42,0)","v":2840},{"$f":"VLOOKUP($A37,[3]STIA!$E$14:$CA$230,53,0)","v":1404},{"$f":"VLOOKUP($A37,[3]STIA!$E$14:$CA$230,58,0)","v":2017}]
["01W","NHS Stockport",{"$f":"VLOOKUP($A38,'[6]201314'!$C$19:$J$256,8,0)","v":184},{"$f":"VLOOKUP($A38,'[6]201314'!$C$19:$J$256,7,0)","v":274507},{"$f":"VLOOKUP($A38,[7]Data!$A$6:$H$228,4,0)","v":469},{"$f":"VLOOKUP(A38,[3]CHD!$E$15:$H$226,4,0)","v":299943},{"$f":"VLOOKUP($A38,[7]Data!$A$6:$H$228,3,0)","v":1926},299943,{"$f":"VLOOKUP($A38,[7]Data!$A$6:$H$228,5,0)","v":340},299943,{"$f":"VLOOKUP($A38,[7]Data!$A$6:$H$228,6,0)","v":733},299943,{"$f":"VLOOKUP($A38,[7]Data!$A$6:$H$228,7,0)","v":347},299943,{"$f":"VLOOKUP($A38,[7]Data!$A$6:$H$228,8,0)","v":116},299943,{"$f":"VLOOKUP($A38,[8]CHD06!$E$15:$O$225,5,0)","v":10677},{"$f":"VLOOKUP($A38,[8]CHD06!$E$15:$O$225,10,0)","v":11895},{"$f":"VLOOKUP($A38,[8]CHD08!$E$15:$O$225,5,0)","v":9052},{"$f":"VLOOKUP($A38,[8]CHD08!$E$15:$O$225,10,0)","v":11895},{"$f":"VLOOKUP($A38,[9]BP05!$E$14:$O$225,5,0)","v":33928},{"$f":"VLOOKUP($A38,[9]BP05!$E$14:$O$225,10,0)","v":42457},{"$f":"VLOOKUP($A38,[10]CKD03!$E$14:$O$225,5,0)","v":6206},{"$f":"VLOOKUP($A38,[10]CKD03!$E$14:$O$225,10,0)","v":8212},{"$f":"VLOOKUP($A38,[11]PAD03!$E$14:$O$225,5,0)","v":1941},{"$f":"VLOOKUP($A38,[11]PAD03!$E$14:$O$225,10,0)","v":2183},{"$f":"VLOOKUP($A38,[11]PAD04!$E$14:$O$225,5,0)","v":1611},{"$f":"VLOOKUP($A38,[11]PAD04!$E$14:$O$225,10,0)","v":2183},{"$f":"VLOOKUP($A38,[12]STROKE06!$E$14:$O$225,5,0)","v":5215},{"$f":"VLOOKUP($A38,[12]STROKE06!$E$14:$O$225,10,0)","v":5881},{"$f":"VLOOKUP($A38,[12]STROKE08!$E$14:$O$225,5,0)","v":4408},{"$f":"VLOOKUP($A38,[12]STROKE08!$E$14:$O$225,10,0)","v":5881},null,null,null,null,null,null,null,null,null,null,null,null,null,null,{"$f":"VLOOKUP($A38,[3]CHD!$E$14:$BS$226,29,0)","v":10786},{"$f":"VLOOKUP($A38,[3]CHD!$E$14:$BS$226,34,0)","v":11788},{"$f":"VLOOKUP($A38,[3]CHD!$E$14:$BS$226,37,0)","v":9140},{"$f":"VLOOKUP($A38,[3]CHD!$E$14:$BS$226,42,0)","v":11685},{"$f":"VLOOKUP($A38,[3]HYP!$E$14:$BK$226,29,0)","v":35554},{"$f":"VLOOKUP($A38,[3]HYP!$E$14:$BK$226,34,0)","v":42788},{"$f":"VLOOKUP($A38,[3]CKD!$E$14:$BG$230,33,0)","v":6463},{"$f":"VLOOKUP($A38,[3]CKD!$E$14:$BG$230,38,0)","v":7973},{"$f":"VLOOKUP(A38,[3]PAD!$E$14:$BC$226,29,0)","v":1980},{"$f":"VLOOKUP($A38,[3]PAD!$E$14:$BC$226,34,0)","v":2202},{"$f":"VLOOKUP($A38,[3]PAD!$E$14:$BC$226,37,0)","v":1652},{"$f":"VLOOKUP($A38,[3]PAD!$E$14:$BC$226,42,0)","v":2189},{"$f":"VLOOKUP($A38,[3]STIA!$E$14:$CA$230,37,0)","v":5302},{"$f":"VLOOKUP($A38,[3]STIA!$E$14:$CA$230,42,0)","v":5989},{"$f":"VLOOKUP($A38,[3]STIA!$E$14:$CA$230,53,0)","v":3071},{"$f":"VLOOKUP($A38,[3]STIA!$E$14:$CA$230,58,0)","v":4049}]
["01X","NHS St Helens",{"$f":"VLOOKUP($A39,'[6]201314'!$C$19:$J$256,8,0)","v":164},{"$f":"VLOOKUP($A39,'[6]201314'!$C$19:$J$256,7,0)","v":177698},{"$f":"VLOOKUP($A39,[7]Data!$A$6:$H$228,4,0)","v":284},{"$f":"VLOOKUP(A39,[3]CHD!$E$15:$H$226,4,0)","v":193391},{"$f":"VLOOKUP($A39,[7]Data!$A$6:$H$228,3,0)","v":1191},193391,{"$f":"VLOOKUP($A39,[7]Data!$A$6:$H$228,5,0)","v":191},193391,{"$f":"VLOOKUP($A39,[7]Data!$A$6:$H$228,6,0)","v":610},193391,{"$f":"VLOOKUP($A39,[7]Data!$A$6:$H$228,7,0)","v":244},193391,{"$f":"VLOOKUP($A39,[7]Data!$A$6:$H$228,8,0)","v":88},193391,{"$f":"VLOOKUP($A39,[8]CHD06!$E$15:$O$225,5,0)","v":8214},{"$f":"VLOOKUP($A39,[8]CHD06!$E$15:$O$225,10,0)","v":9110},{"$f":"VLOOKUP($A39,[8]CHD08!$E$15:$O$225,5,0)","v":7041},{"$f":"VLOOKUP($A39,[8]CHD08!$E$15:$O$225,10,0)","v":9110},{"$f":"VLOOKUP($A39,[9]BP05!$E$14:$O$225,5,0)","v":26799},{"$f":"VLOOKUP($A39,[9]BP05!$E$14:$O$225,10,0)","v":32847},{"$f":"VLOOKUP($A39,[10]CKD03!$E$14:$O$225,5,0)","v":5721},{"$f":"VLOOKUP($A39,[10]CKD03!$E$14:$O$225,10,0)","v":7314},{"$f":"VLOOKUP($A39,[11]PAD03!$E$14:$O$225,5,0)","v":1494},{"$f":"VLOOKUP($A39,[11]PAD03!$E$14:$O$225,10,0)","v":1685},{"$f":"VLOOKUP($A39,[11]PAD04!$E$14:$O$225,5,0)","v":1282},{"$f":"VLOOKUP($A39,[11]PAD04!$E$14:$O$225,10,0)","v":1685},{"$f":"VLOOKUP($A39,[12]STROKE06!$E$14:$O$225,5,0)","v":3396},{"$f":"VLOOKUP($A39,[12]STROKE06!$E$14:$O$225,10,0)","v":3817},{"$f":"VLOOKUP($A39,[12]STROKE08!$E$14:$O$225,5,0)","v":2836},{"$f":"VLOOKUP($A39,[12]STROKE08!$E$14:$O$225,10,0)","v":3817},null,null,null,null,null,null,null,null,null,null,null,null,null,null,{"$f":"VLOOKUP($A39,[3]CHD!$E$14:$BS$226,29,0)","v":8078},{"$f":"VLOOKUP($A39,[3]CHD!$E$14:$BS$226,34,0)","v":8952},{"$f":"VLOOKUP($A39,[3]CHD!$E$14:$BS$226,37,0)","v":6876},{"$f":"VLOOKUP($A39,[3]CHD!$E$14:$BS$226,42,0)","v":8952},{"$f":"VLOOKUP($A39,[3]HYP!$E$14:$BK$226,29,0)","v":26968},{"$f":"VLOOKUP($A39,[3]HYP!$E$14:$BK$226,34,0)","v":33175},{"$f":"VLOOKUP($A39,[3]CKD!$E$14:$BG$230,33,0)","v":5737},{"$f":"VLOOKUP($A39,[3]CKD!$E$14:$BG$230,38,0)","v":7098},{"$f":"VLOOKUP(A39,[3]PAD!$E$14:$BC$226,29,0)","v":1495},{"$f":"VLOOKUP($A39,[3]PAD!$E$14:$BC$226,34,0)","v":1681},{"$f":"VLOOKUP($A39,[3]PAD!$E$14:$BC$226,37,0)","v":1266},{"$f":"VLOOKUP($A39,[3]PAD!$E$14:$BC$226,42,0)","v":1681},{"$f":"VLOOKUP($A39,[3]STIA!$E$14:$CA$230,37,0)","v":3410},{"$f":"VLOOKUP($A39,[3]STIA!$E$14:$CA$230,42,0)","v":3841},{"$f":"VLOOKUP($A39,[3]STIA!$E$14:$CA$230,53,0)","v":1906},{"$f":"VLOOKUP($A39,[3]STIA!$E$14:$CA$230,58,0)","v":2539}]
["01Y","NHS Tameside and Glossop",{"$f":"VLOOKUP($A40,'[6]201314'!$C$19:$J$256,8,0)","v":242},{"$f":"VLOOKUP($A40,'[6]201314'!$C$19:$J$256,7,0)","v":224851},{"$f":"VLOOKUP($A40,[7]Data!$A$6:$H$228,4,0)","v":359},{"$f":"VLOOKUP(A40,[3]CHD!$E$15:$H$226,4,0)","v":241332},{"$f":"VLOOKUP($A40,[7]Data!$A$6:$H$228,3,0)","v":2047},241332,{"$f":"VLOOKUP($A40,[7]Data!$A$6:$H$228,5,0)","v":324},241332,{"$f":"VLOOKUP($A40,[7]Data!$A$6:$H$228,6,0)","v":818},241332,{"$f":"VLOOKUP($A40,[7]Data!$A$6:$H$228,7,0)","v":269},241332,{"$f":"VLOOKUP($A40,[7]Data!$A$6:$H$228,8,0)","v":103},241332,{"$f":"VLOOKUP($A40,[8]CHD06!$E$15:$O$225,5,0)","v":8944},{"$f":"VLOOKUP($A40,[8]CHD06!$E$15:$O$225,10,0)","v":10038},{"$f":"VLOOKUP($A40,[8]CHD08!$E$15:$O$225,5,0)","v":7567},{"$f":"VLOOKUP($A40,[8]CHD08!$E$15:$O$225,10,0)","v":10038},{"$f":"VLOOKUP($A40,[9]BP05!$E$14:$O$225,5,0)","v":27782},{"$f":"VLOOKUP($A40,[9]BP05!$E$14:$O$225,10,0)","v":35369},{"$f":"VLOOKUP($A40,[10]CKD03!$E$14:$O$225,5,0)","v":4568},{"$f":"VLOOKUP($A40,[10]CKD03!$E$14:$O$225,10,0)","v":6034},{"$f":"VLOOKUP($A40,[11]PAD03!$E$14:$O$225,5,0)","v":2064},{"$f":"VLOOKUP($A40,[11]PAD03!$E$14:$O$225,10,0)","v":2339},{"$f":"VLOOKUP($A40,[11]PAD04!$E$14:$O$225,5,0)","v":1696},{"$f":"VLOOKUP($A40,[11]PAD04!$E$14:$O$225,10,0)","v":2339},{"$f":"VLOOKUP($A40,[12]STROKE06!$E$14:$O$225,5,0)","v":4054},{"$f":"VLOOKUP($A40,[12]STROKE06!$E$14:$O$225,10,0)","v":4609},{"$f":"VLOOKUP($A40,[12]STROKE08!$E$14:$O$225,5,0)","v":3347},{"$f":"VLOOKUP($A40,[12]STROKE08!$E$14:$O$225,10,0)","v":4609},null,null,null,null,null,null,null,null,null,null,null,null,null,null,{"$f":"VLOOKUP($A40,[3]CHD!$E$14:$BS$226,29,0)","v":8944},{"$f":"VLOOKUP($A40,[3]CHD!$E$14:$BS$226,34,0)","v":9942},{"$f":"VLOOKUP($A40,[3]CHD!$E$14:$BS$226,37,0)","v":7420},{"$f":"VLOOKUP($A40,[3]CHD!$E$14:$BS$226,42,0)","v":9938},{"$f":"VLOOKUP($A40,[3]HYP!$E$14:$BK$226,29,0)","v":28749},{"$f":"VLOOKUP($A40,[3]HYP!$E$14:$BK$226,34,0)","v":35755},{"$f":"VLOOKUP($A40,[3]CKD!$E$14:$BG$230,33,0)","v":4719},{"$f":"VLOOKUP($A40,[3]CKD!$E$14:$BG$230,38,0)","v":5896},{"$f":"VLOOKUP(A40,[3]PAD!$E$14:$BC$226,29,0)","v":2014},{"$f":"VLOOKUP($A40,[3]PAD!$E$14:$BC$226,34,0)","v":2282},{"$f":"VLOOKUP($A40,[3]PAD!$E$14:$BC$226,37,0)","v":1638},{"$f":"VLOOKUP($A40,[3]PAD!$E$14:$BC$226,42,0)","v":2284},{"$f":"VLOOKUP($A40,[3]STIA!$E$14:$CA$230,37,0)","v":4185},{"$f":"VLOOKUP($A40,[3]STIA!$E$14:$CA$230,42,0)","v":4736},{"$f":"VLOOKUP($A40,[3]STIA!$E$14:$CA$230,53,0)","v":2087},{"$f":"VLOOKUP($A40,[3]STIA!$E$14:$CA$230,58,0)","v":2913}]
["02A","NHS Trafford",{"$f":"VLOOKUP($A41,'[6]201314'!$C$19:$J$256,8,0)","v":149},{"$f":"VLOOKUP($A41,'[6]201314'!$C$19:$J$256,7,0)","v":217504},{"$f":"VLOOKUP($A41,[7]Data!$A$6:$H$228,4,0)","v":378},{"$f":"VLOOKUP(A41,[3]CHD!$E$15:$H$226,4,0)","v":227948},{"$f":"VLOOKUP($A41,[7]Data!$A$6:$H$228,3,0)","v":1072},227948,{"$f":"VLOOKUP($A41,[7]Data!$A$6:$H$228,5,0)","v":192},227948,{"$f":"VLOOKUP($A41,[7]Data!$A$6:$H$228,6,0)","v":523},227948,{"$f":"VLOOKUP($A41,[7]Data!$A$6:$H$228,7,0)","v":212},227948,{"$f":"VLOOKUP($A41,[7]Data!$A$6:$H$228,8,0)","v":111},227948,{"$f":"VLOOKUP($A41,[8]CHD06!$E$15:$O$225,5,0)","v":7286},{"$f":"VLOOKUP($A41,[8]CHD06!$E$15:$O$225,10,0)","v":8301},{"$f":"VLOOKUP($A41,[8]CHD08!$E$15:$O$225,5,0)","v":5920},{"$f":"VLOOKUP($A41,[8]CHD08!$E$15:$O$225,10,0)","v":8301},{"$f":"VLOOKUP($A41,[9]BP05!$E$14:$O$225,5,0)","v":23767},{"$f":"VLOOKUP($A41,[9]BP05!$E$14:$O$225,10,0)","v":30787},{"$f":"VLOOKUP($A41,[10]CKD03!$E$14:$O$225,5,0)","v":5399},{"$f":"VLOOKUP($A41,[10]CKD03!$E$14:$O$225,10,0)","v":7432},{"$f":"VLOOKUP($A41,[11]PAD03!$E$14:$O$225,5,0)","v":1620},{"$f":"VLOOKUP($A41,[11]PAD03!$E$14:$O$225,10,0)","v":1935},{"$f":"VLOOKUP($A41,[11]PAD04!$E$14:$O$225,5,0)","v":1299},{"$f":"VLOOKUP($A41,[11]PAD04!$E$14:$O$225,10,0)","v":1935},{"$f":"VLOOKUP($A41,[12]STROKE06!$E$14:$O$225,5,0)","v":3545},{"$f":"VLOOKUP($A41,[12]STROKE06!$E$14:$O$225,10,0)","v":4074},{"$f":"VLOOKUP($A41,[12]STROKE08!$E$14:$O$225,5,0)","v":2766},{"$f":"VLOOKUP($A41,[12]STROKE08!$E$14:$O$225,10,0)","v":4074},null,null,null,null,null,null,null,null,null,null,null,null,null,null,{"$f":"VLOOKUP($A41,[3]CHD!$E$14:$BS$226,29,0)","v":7526},{"$f":"VLOOKUP($A41,[3]CHD!$E$14:$BS$226,34,0)","v":8417},{"$f":"VLOOKUP($A41,[3]CHD!$E$14:$BS$226,37,0)","v":6151},{"$f":"VLOOKUP($A41,[3]CHD!$E$14:$BS$226,42,0)","v":8320},{"$f":"VLOOKUP($A41,[3]HYP!$E$14:$BK$226,29,0)","v":25458},{"$f":"VLOOKUP($A41,[3]HYP!$E$14:$BK$226,34,0)","v":31889},{"$f":"VLOOKUP($A41,[3]CKD!$E$14:$BG$230,33,0)","v":5952},{"$f":"VLOOKUP($A41,[3]CKD!$E$14:$BG$230,38,0)","v":7729},{"$f":"VLOOKUP(A41,[3]PAD!$E$14:$BC$226,29,0)","v":1607},{"$f":"VLOOKUP($A41,[3]PAD!$E$14:$BC$226,34,0)","v":1868},{"$f":"VLOOKUP($A41,[3]PAD!$E$14:$BC$226,37,0)","v":1318},{"$f":"VLOOKUP($A41,[3]PAD!$E$14:$BC$226,42,0)","v":1850},{"$f":"VLOOKUP($A41,[3]STIA!$E$14:$CA$230,37,0)","v":3687},{"$f":"VLOOKUP($A41,[3]STIA!$E$14:$CA$230,42,0)","v":4260},{"$f":"VLOOKUP($A41,[3]STIA!$E$14:$CA$230,53,0)","v":1979},{"$f":"VLOOKUP($A41,[3]STIA!$E$14:$CA$230,58,0)","v":2840}]
["02D","NHS Vale Royal",{"$f":"VLOOKUP($A42,'[6]201314'!$C$19:$J$256,8,0)","v":65},{"$f":"VLOOKUP($A42,'[6]201314'!$C$19:$J$256,7,0)","v":94647},{"$f":"VLOOKUP($A42,[7]Data!$A$6:$H$228,4,0)","v":133},{"$f":"VLOOKUP(A42,[3]CHD!$E$15:$H$226,4,0)","v":102258},{"$f":"VLOOKUP($A42,[7]Data!$A$6:$H$228,3,0)","v":439},102258,{"$f":"VLOOKUP($A42,[7]Data!$A$6:$H$228,5,0)","v":105},102258,{"$f":"VLOOKUP($A42,[7]Data!$A$6:$H$228,6,0)","v":212},102258,{"$f":"VLOOKUP($A42,[7]Data!$A$6:$H$228,7,0)","v":124},102258,{"$f":"VLOOKUP($A42,[7]Data!$A$6:$H$228,8,0)","v":41},102258,{"$f":"VLOOKUP($A42,[8]CHD06!$E$15:$O$225,5,0)","v":3365},{"$f":"VLOOKUP($A42,[8]CHD06!$E$15:$O$225,10,0)","v":3793},{"$f":"VLOOKUP($A42,[8]CHD08!$E$15:$O$225,5,0)","v":2687},{"$f":"VLOOKUP($A42,[8]CHD08!$E$15:$O$225,10,0)","v":3793},{"$f":"VLOOKUP($A42,[9]BP05!$E$14:$O$225,5,0)","v":12092},{"$f":"VLOOKUP($A42,[9]BP05!$E$14:$O$225,10,0)","v":15381},{"$f":"VLOOKUP($A42,[10]CKD03!$E$14:$O$225,5,0)","v":3252},{"$f":"VLOOKUP($A42,[10]CKD03!$E$14:$O$225,10,0)","v":4259},{"$f":"VLOOKUP($A42,[11]PAD03!$E$14:$O$225,5,0)","v":713},{"$f":"VLOOKUP($A42,[11]PAD03!$E$14:$O$225,10,0)","v":821},{"$f":"VLOOKUP($A42,[11]PAD04!$E$14:$O$225,5,0)","v":547},{"$f":"VLOOKUP($A42,[11]PAD04!$E$14:$O$225,10,0)","v":821},{"$f":"VLOOKUP($A42,[12]STROKE06!$E$14:$O$225,5,0)","v":1615},{"$f":"VLOOKUP($A42,[12]STROKE06!$E$14:$O$225,10,0)","v":1874},{"$f":"VLOOKUP($A42,[12]STROKE08!$E$14:$O$225,5,0)","v":1201},{"$f":"VLOOKUP($A42,[12]STROKE08!$E$14:$O$225,10,0)","v":1874},null,null,null,null,null,null,null,null,null,null,null,null,null,null,{"$f":"VLOOKUP($A42,[3]CHD!$E$14:$BS$226,29,0)","v":3365},{"$f":"VLOOKUP($A42,[3]CHD!$E$14:$BS$226,34,0)","v":3755},{"$f":"VLOOKUP($A42,[3]CHD!$E$14:$BS$226,37,0)","v":2729},{"$f":"VLOOKUP($A42,[3]CHD!$E$14:$BS$226,42,0)","v":3755},{"$f":"VLOOKUP($A42,[3]HYP!$E$14:$BK$226,29,0)","v":12886},{"$f":"VLOOKUP($A42,[3]HYP!$E$14:$BK$226,34,0)","v":15767},{"$f":"VLOOKUP($A42,[3]CKD!$E$14:$BG$230,33,0)","v":3309},{"$f":"VLOOKUP($A42,[3]CKD!$E$14:$BG$230,38,0)","v":4128},{"$f":"VLOOKUP(A42,[3]PAD!$E$14:$BC$226,29,0)","v":696},{"$f":"VLOOKUP($A42,[3]PAD!$E$14:$BC$226,34,0)","v":793},{"$f":"VLOOKUP($A42,[3]PAD!$E$14:$BC$226,37,0)","v":566},{"$f":"VLOOKUP($A42,[3]PAD!$E$14:$BC$226,42,0)","v":793},{"$f":"VLOOKUP($A42,[3]STIA!$E$14:$CA$230,37,0)","v":1590},{"$f":"VLOOKUP($A42,[3]STIA!$E$14:$CA$230,42,0)","v":1888},{"$f":"VLOOKUP($A42,[3]STIA!$E$14:$CA$230,53,0)","v":843},{"$f":"VLOOKUP($A42,[3]STIA!$E$14:$CA$230,58,0)","v":1224}]
["02E","NHS Warrington",{"$f":"VLOOKUP($A43,'[6]201314'!$C$19:$J$256,8,0)","v":126},{"$f":"VLOOKUP($A43,'[6]201314'!$C$19:$J$256,7,0)","v":194652},{"$f":"VLOOKUP($A43,[7]Data!$A$6:$H$228,4,0)","v":275},{"$f":"VLOOKUP(A43,[3]CHD!$E$15:$H$226,4,0)","v":208856},{"$f":"VLOOKUP($A43,[7]Data!$A$6:$H$228,3,0)","v":1226},208856,{"$f":"VLOOKUP($A43,[7]Data!$A$6:$H$228,5,0)","v":186},208856,{"$f":"VLOOKUP($A43,[7]Data!$A$6:$H$228,6,0)","v":601},208856,{"$f":"VLOOKUP($A43,[7]Data!$A$6:$H$228,7,0)","v":244},208856,{"$f":"VLOOKUP($A43,[7]Data!$A$6:$H$228,8,0)","v":74},208856,{"$f":"VLOOKUP($A43,[8]CHD06!$E$15:$O$225,5,0)","v":6996},{"$f":"VLOOKUP($A43,[8]CHD06!$E$15:$O$225,10,0)","v":7882},{"$f":"VLOOKUP($A43,[8]CHD08!$E$15:$O$225,5,0)","v":5839},{"$f":"VLOOKUP($A43,[8]CHD08!$E$15:$O$225,10,0)","v":7882},{"$f":"VLOOKUP($A43,[9]BP05!$E$14:$O$225,5,0)","v":21295},{"$f":"VLOOKUP($A43,[9]BP05!$E$14:$O$225,10,0)","v":28228},{"$f":"VLOOKUP($A43,[10]CKD03!$E$14:$O$225,5,0)","v":5097},{"$f":"VLOOKUP($A43,[10]CKD03!$E$14:$O$225,10,0)","v":6938},{"$f":"VLOOKUP($A43,[11]PAD03!$E$14:$O$225,5,0)","v":1711},{"$f":"VLOOKUP($A43,[11]PAD03!$E$14:$O$225,10,0)","v":1942},{"$f":"VLOOKUP($A43,[11]PAD04!$E$14:$O$225,5,0)","v":1433},{"$f":"VLOOKUP($A43,[11]PAD04!$E$14:$O$225,10,0)","v":1942},{"$f":"VLOOKUP($A43,[12]STROKE06!$E$14:$O$225,5,0)","v":3079},{"$f":"VLOOKUP($A43,[12]STROKE06!$E$14:$O$225,10,0)","v":3583},{"$f":"VLOOKUP($A43,[12]STROKE08!$E$14:$O$225,5,0)","v":2512},{"$f":"VLOOKUP($A43,[12]STROKE08!$E$14:$O$225,10,0)","v":3583},null,null,null,null,null,null,null,null,null,null,null,null,null,null,{"$f":"VLOOKUP($A43,[3]CHD!$E$14:$BS$226,29,0)","v":6986},{"$f":"VLOOKUP($A43,[3]CHD!$E$14:$BS$226,34,0)","v":7891},{"$f":"VLOOKUP($A43,[3]CHD!$E$14:$BS$226,37,0)","v":5772},{"$f":"VLOOKUP($A43,[3]CHD!$E$14:$BS$226,42,0)","v":7857},{"$f":"VLOOKUP($A43,[3]HYP!$E$14:$BK$226,29,0)","v":22036},{"$f":"VLOOKUP($A43,[3]HYP!$E$14:$BK$226,34,0)","v":28628},{"$f":"VLOOKUP($A43,[3]CKD!$E$14:$BG$230,33,0)","v":4489},{"$f":"VLOOKUP($A43,[3]CKD!$E$14:$BG$230,38,0)","v":5945},{"$f":"VLOOKUP(A43,[3]PAD!$E$14:$BC$226,29,0)","v":1584},{"$f":"VLOOKUP($A43,[3]PAD!$E$14:$BC$226,34,0)","v":1805},{"$f":"VLOOKUP($A43,[3]PAD!$E$14:$BC$226,37,0)","v":1350},{"$f":"VLOOKUP($A43,[3]PAD!$E$14:$BC$226,42,0)","v":1800},{"$f":"VLOOKUP($A43,[3]STIA!$E$14:$CA$230,37,0)","v":3092},{"$f":"VLOOKUP($A43,[3]STIA!$E$14:$CA$230,42,0)","v":3613},{"$f":"VLOOKUP($A43,[3]STIA!$E$14:$CA$230,53,0)","v":1605},{"$f":"VLOOKUP($A43,[3]STIA!$E$14:$CA$230,58,0)","v":2293}]
["02F","NHS West Cheshire",{"$f":"VLOOKUP($A44,'[6]201314'!$C$19:$J$256,8,0)","v":154},{"$f":"VLOOKUP($A44,'[6]201314'!$C$19:$J$256,7,0)","v":232979},{"$f":"VLOOKUP($A44,[7]Data!$A$6:$H$228,4,0)","v":393},{"$f":"VLOOKUP(A44,[3]CHD!$E$15:$H$226,4,0)","v":255190},{"$f":"VLOOKUP($A44,[7]Data!$A$6:$H$228,3,0)","v":1273},255190,{"$f":"VLOOKUP($A44,[7]Data!$A$6:$H$228,5,0)","v":300},255190,{"$f":"VLOOKUP($A44,[7]Data!$A$6:$H$228,6,0)","v":885},255190,{"$f":"VLOOKUP($A44,[7]Data!$A$6:$H$228,7,0)","v":303},255190,{"$f":"VLOOKUP($A44,[7]Data!$A$6:$H$228,8,0)","v":75},255190,{"$f":"VLOOKUP($A44,[8]CHD06!$E$15:$O$225,5,0)","v":8334},{"$f":"VLOOKUP($A44,[8]CHD06!$E$15:$O$225,10,0)","v":9244},{"$f":"VLOOKUP($A44,[8]CHD08!$E$15:$O$225,5,0)","v":7068},{"$f":"VLOOKUP($A44,[8]CHD08!$E$15:$O$225,10,0)","v":9244},{"$f":"VLOOKUP($A44,[9]BP05!$E$14:$O$225,5,0)","v":29067},{"$f":"VLOOKUP($A44,[9]BP05!$E$14:$O$225,10,0)","v":36581},{"$f":"VLOOKUP($A44,[10]CKD03!$E$14:$O$225,5,0)","v":5747},{"$f":"VLOOKUP($A44,[10]CKD03!$E$14:$O$225,10,0)","v":7601},{"$f":"VLOOKUP($A44,[11]PAD03!$E$14:$O$225,5,0)","v":1782},{"$f":"VLOOKUP($A44,[11]PAD03!$E$14:$O$225,10,0)","v":2023},{"$f":"VLOOKUP($A44,[11]PAD04!$E$14:$O$225,5,0)","v":1455},{"$f":"VLOOKUP($A44,[11]PAD04!$E$14:$O$225,10,0)","v":2023},{"$f":"VLOOKUP($A44,[12]STROKE06!$E$14:$O$225,5,0)","v":4472},{"$f":"VLOOKUP($A44,[12]STROKE06!$E$14:$O$225,10,0)","v":5083},{"$f":"VLOOKUP($A44,[12]STROKE08!$E$14:$O$225,5,0)","v":3648},{"$f":"VLOOKUP($A44,[12]STROKE08!$E$14:$O$225,10,0)","v":5083},null,null,null,null,null,null,null,null,null,null,null,null,null,null,{"$f":"VLOOKUP($A44,[3]CHD!$E$14:$BS$226,29,0)","v":8302},{"$f":"VLOOKUP($A44,[3]CHD!$E$14:$BS$226,34,0)","v":9127},{"$f":"VLOOKUP($A44,[3]CHD!$E$14:$BS$226,37,0)","v":6956},{"$f":"VLOOKUP($A44,[3]CHD!$E$14:$BS$226,42,0)","v":9082},{"$f":"VLOOKUP($A44,[3]HYP!$E$14:$BK$226,29,0)","v":30173},{"$f":"VLOOKUP($A44,[3]HYP!$E$14:$BK$226,34,0)","v":36572},{"$f":"VLOOKUP($A44,[3]CKD!$E$14:$BG$230,33,0)","v":6175},{"$f":"VLOOKUP($A44,[3]CKD!$E$14:$BG$230,38,0)","v":7626},{"$f":"VLOOKUP(A44,[3]PAD!$E$14:$BC$226,29,0)","v":1734},{"$f":"VLOOKUP($A44,[3]PAD!$E$14:$BC$226,34,0)","v":1956},{"$f":"VLOOKUP($A44,[3]PAD!$E$14:$BC$226,37,0)","v":1436},{"$f":"VLOOKUP($A44,[3]PAD!$E$14:$BC$226,42,0)","v":1943},{"$f":"VLOOKUP($A44,[3]STIA!$E$14:$CA$230,37,0)","v":4543},{"$f":"VLOOKUP($A44,[3]STIA!$E$14:$CA$230,42,0)","v":5146},{"$f":"VLOOKUP($A44,[3]STIA!$E$14:$CA$230,53,0)","v":2377},{"$f":"VLOOKUP($A44,[3]STIA!$E$14:$CA$230,58,0)","v":3335}]
["02G","NHS West Lancashire",{"$f":"VLOOKUP($A45,'[6]201314'!$C$19:$J$256,8,0)","v":75},{"$f":"VLOOKUP($A45,'[6]201314'!$C$19:$J$256,7,0)","v":102178},{"$f":"VLOOKUP($A45,[7]Data!$A$6:$H$228,4,0)","v":148},{"$f":"VLOOKUP(A45,[3]CHD!$E$15:$H$226,4,0)","v":111967},{"$f":"VLOOKUP($A45,[7]Data!$A$6:$H$228,3,0)","v":560},111967,{"$f":"VLOOKUP($A45,[7]Data!$A$6:$H$228,5,0)","v":129},111967,{"$f":"VLOOKUP($A45,[7]Data!$A$6:$H$228,6,0)","v":227},111967,{"$f":"VLOOKUP($A45,[7]Data!$A$6:$H$228,7,0)","v":127},111967,{"$f":"VLOOKUP($A45,[7]Data!$A$6:$H$228,8,0)","v":63},111967,{"$f":"VLOOKUP($A45,[8]CHD06!$E$15:$O$225,5,0)","v":3924},{"$f":"VLOOKUP($A45,[8]CHD06!$E$15:$O$225,10,0)","v":4399},{"$f":"VLOOKUP($A45,[8]CHD08!$E$15:$O$225,5,0)","v":3166},{"$f":"VLOOKUP($A45,[8]CHD08!$E$15:$O$225,10,0)","v":4399},{"$f":"VLOOKUP($A45,[9]BP05!$E$14:$O$225,5,0)","v":13658},{"$f":"VLOOKUP($A45,[9]BP05!$E$14:$O$225,10,0)","v":17178},{"$f":"VLOOKUP($A45,[10]CKD03!$E$14:$O$225,5,0)","v":2756},{"$f":"VLOOKUP($A45,[10]CKD03!$E$14:$O$225,10,0)","v":3678},{"$f":"VLOOKUP($A45,[11]PAD03!$E$14:$O$225,5,0)","v":755},{"$f":"VLOOKUP($A45,[11]PAD03!$E$14:$O$225,10,0)","v":866},{"$f":"VLOOKUP($A45,[11]PAD04!$E$14:$O$225,5,0)","v":582},{"$f":"VLOOKUP($A45,[11]PAD04!$E$14:$O$225,10,0)","v":866},{"$f":"VLOOKUP($A45,[12]STROKE06!$E$14:$O$225,5,0)","v":1917},{"$f":"VLOOKUP($A45,[12]STROKE06!$E$14:$O$225,10,0)","v":2192},{"$f":"VLOOKUP($A45,[12]STROKE08!$E$14:$O$225,5,0)","v":1474},{"$f":"VLOOKUP($A45,[12]STROKE08!$E$14:$O$225,10,0)","v":2192},null,null,null,null,null,null,null,null,null,null,null,null,null,null,{"$f":"VLOOKUP($A45,[3]CHD!$E$14:$BS$226,29,0)","v":3850},{"$f":"VLOOKUP($A45,[3]CHD!$E$14:$BS$226,34,0)","v":4351},{"$f":"VLOOKUP($A45,[3]CHD!$E$14:$BS$226,37,0)","v":3134},{"$f":"VLOOKUP($A45,[3]CHD!$E$14:$BS$226,42,0)","v":4351},{"$f":"VLOOKUP($A45,[3]HYP!$E$14:$BK$226,29,0)","v":13873},{"$f":"VLOOKUP($A45,[3]HYP!$E$14:$BK$226,34,0)","v":17279},{"$f":"VLOOKUP($A45,[3]CKD!$E$14:$BG$230,33,0)","v":2836},{"$f":"VLOOKUP($A45,[3]CKD!$E$14:$BG$230,38,0)","v":3713},{"$f":"VLOOKUP(A45,[3]PAD!$E$14:$BC$226,29,0)","v":753},{"$f":"VLOOKUP($A45,[3]PAD!$E$14:$BC$226,34,0)","v":861},{"$f":"VLOOKUP($A45,[3]PAD!$E$14:$BC$226,37,0)","v":605},{"$f":"VLOOKUP($A45,[3]PAD!$E$14:$BC$226,42,0)","v":861},{"$f":"VLOOKUP($A45,[3]STIA!$E$14:$CA$230,37,0)","v":1927},{"$f":"VLOOKUP($A45,[3]STIA!$E$14:$CA$230,42,0)","v":2202},{"$f":"VLOOKUP($A45,[3]STIA!$E$14:$CA$230,53,0)","v":973},{"$f":"VLOOKUP($A45,[3]STIA!$E$14:$CA$230,58,0)","v":1424}]
["02H","NHS Wigan Borough",{"$f":"VLOOKUP($A46,'[6]201314'!$C$19:$J$256,8,0)","v":234},{"$f":"VLOOKUP($A46,'[6]201314'!$C$19:$J$256,7,0)","v":297943},{"$f":"VLOOKUP($A46,[7]Data!$A$6:$H$228,4,0)","v":535},{"$f":"VLOOKUP(A46,[3]CHD!$E$15:$H$226,4,0)","v":320813},{"$f":"VLOOKUP($A46,[7]Data!$A$6:$H$228,3,0)","v":1898},320813,{"$f":"VLOOKUP($A46,[7]Data!$A$6:$H$228,5,0)","v":447},320813,{"$f":"VLOOKUP($A46,[7]Data!$A$6:$H$228,6,0)","v":798},320813,{"$f":"VLOOKUP($A46,[7]Data!$A$6:$H$228,7,0)","v":373},320813,{"$f":"VLOOKUP($A46,[7]Data!$A$6:$H$228,8,0)","v":125},320813,{"$f":"VLOOKUP($A46,[8]CHD06!$E$15:$O$225,5,0)","v":12785},{"$f":"VLOOKUP($A46,[8]CHD06!$E$15:$O$225,10,0)","v":14152},{"$f":"VLOOKUP($A46,[8]CHD08!$E$15:$O$225,5,0)","v":10658},{"$f":"VLOOKUP($A46,[8]CHD08!$E$15:$O$225,10,0)","v":14152},{"$f":"VLOOKUP($A46,[9]BP05!$E$14:$O$225,5,0)","v":41103},{"$f":"VLOOKUP($A46,[9]BP05!$E$14:$O$225,10,0)","v":51176},{"$f":"VLOOKUP($A46,[10]CKD03!$E$14:$O$225,5,0)","v":11184},{"$f":"VLOOKUP($A46,[10]CKD03!$E$14:$O$225,10,0)","v":14519},{"$f":"VLOOKUP($A46,[11]PAD03!$E$14:$O$225,5,0)","v":2254},{"$f":"VLOOKUP($A46,[11]PAD03!$E$14:$O$225,10,0)","v":2542},{"$f":"VLOOKUP($A46,[11]PAD04!$E$14:$O$225,5,0)","v":1819},{"$f":"VLOOKUP($A46,[11]PAD04!$E$14:$O$225,10,0)","v":2542},{"$f":"VLOOKUP($A46,[12]STROKE06!$E$14:$O$225,5,0)","v":5226},{"$f":"VLOOKUP($A46,[12]STROKE06!$E$14:$O$225,10,0)","v":6008},{"$f":"VLOOKUP($A46,[12]STROKE08!$E$14:$O$225,5,0)","v":4120},{"$f":"VLOOKUP($A46,[12]STROKE08!$E$14:$O$225,10,0)","v":6009},null,null,null,null,null,null,null,null,null,null,null,null,null,null,{"$f":"VLOOKUP($A46,[3]CHD!$E$14:$BS$226,29,0)","v":12689},{"$f":"VLOOKUP($A46,[3]CHD!$E$14:$BS$226,34,0)","v":13909},{"$f":"VLOOKUP($A46,[3]CHD!$E$14:$BS$226,37,0)","v":10627},{"$f":"VLOOKUP($A46,[3]CHD!$E$14:$BS$226,42,0)","v":13887},{"$f":"VLOOKUP($A46,[3]HYP!$E$14:$BK$226,29,0)","v":42177},{"$f":"VLOOKUP($A46,[3]HYP!$E$14:$BK$226,34,0)","v":51002},{"$f":"VLOOKUP($A46,[3]CKD!$E$14:$BG$230,33,0)","v":11176},{"$f":"VLOOKUP($A46,[3]CKD!$E$14:$BG$230,38,0)","v":13839},{"$f":"VLOOKUP(A46,[3]PAD!$E$14:$BC$226,29,0)","v":2192},{"$f":"VLOOKUP($A46,[3]PAD!$E$14:$BC$226,34,0)","v":2480},{"$f":"VLOOKUP($A46,[3]PAD!$E$14:$BC$226,37,0)","v":1786},{"$f":"VLOOKUP($A46,[3]PAD!$E$14:$BC$226,42,0)","v":2476},{"$f":"VLOOKUP($A46,[3]STIA!$E$14:$CA$230,37,0)","v":5246},{"$f":"VLOOKUP($A46,[3]STIA!$E$14:$CA$230,42,0)","v":6031},{"$f":"VLOOKUP($A46,[3]STIA!$E$14:$CA$230,53,0)","v":2748},{"$f":"VLOOKUP($A46,[3]STIA!$E$14:$CA$230,58,0)","v":3834}]
["02M","NHS Fylde & Wyre",{"$f":"VLOOKUP($A47,'[6]201314'!$C$19:$J$256,8,0)","v":132},{"$f":"VLOOKUP($A47,'[6]201314'!$C$19:$J$256,7,0)","v":132820},{"$f":"VLOOKUP($A47,[7]Data!$A$6:$H$228,4,0)","v":280},{"$f":"VLOOKUP(A47,[3]CHD!$E$15:$H$226,4,0)","v":151104},{"$f":"VLOOKUP($A47,[7]Data!$A$6:$H$228,3,0)","v":1052},151104,{"$f":"VLOOKUP($A47,[7]Data!$A$6:$H$228,5,0)","v":232},151104,{"$f":"VLOOKUP($A47,[7]Data!$A$6:$H$228,6,0)","v":702},151104,{"$f":"VLOOKUP($A47,[7]Data!$A$6:$H$228,7,0)","v":200},151104,{"$f":"VLOOKUP($A47,[7]Data!$A$6:$H$228,8,0)","v":142},151104,{"$f":"VLOOKUP($A47,[8]CHD06!$E$15:$O$225,5,0)","v":6984},{"$f":"VLOOKUP($A47,[8]CHD06!$E$15:$O$225,10,0)","v":7914},{"$f":"VLOOKUP($A47,[8]CHD08!$E$15:$O$225,5,0)","v":5648},{"$f":"VLOOKUP($A47,[8]CHD08!$E$15:$O$225,10,0)","v":7914},{"$f":"VLOOKUP($A47,[9]BP05!$E$14:$O$225,5,0)","v":19581},{"$f":"VLOOKUP($A47,[9]BP05!$E$14:$O$225,10,0)","v":25572},{"$f":"VLOOKUP($A47,[10]CKD03!$E$14:$O$225,5,0)","v":7412},{"$f":"VLOOKUP($A47,[10]CKD03!$E$14:$O$225,10,0)","v":10479},{"$f":"VLOOKUP($A47,[11]PAD03!$E$14:$O$225,5,0)","v":1385},{"$f":"VLOOKUP($A47,[11]PAD03!$E$14:$O$225,10,0)","v":1645},{"$f":"VLOOKUP($A47,[11]PAD04!$E$14:$O$225,5,0)","v":1063},{"$f":"VLOOKUP($A47,[11]PAD04!$E$14:$O$225,10,0)","v":1645},{"$f":"VLOOKUP($A47,[12]STROKE06!$E$14:$O$225,5,0)","v":3132},{"$f":"VLOOKUP($A47,[12]STROKE06!$E$14:$O$225,10,0)","v":3688},{"$f":"VLOOKUP($A47,[12]STROKE08!$E$14:$O$225,5,0)","v":2389},{"$f":"VLOOKUP($A47,[12]STROKE08!$E$14:$O$225,10,0)","v":3688},null,null,null,null,null,null,null,null,null,null,null,null,null,null,{"$f":"VLOOKUP($A47,[3]CHD!$E$14:$BS$226,29,0)","v":7004},{"$f":"VLOOKUP($A47,[3]CHD!$E$14:$BS$226,34,0)","v":7837},{"$f":"VLOOKUP($A47,[3]CHD!$E$14:$BS$226,37,0)","v":5763},{"$f":"VLOOKUP($A47,[3]CHD!$E$14:$BS$226,42,0)","v":7837},{"$f":"VLOOKUP($A47,[3]HYP!$E$14:$BK$226,29,0)","v":20631},{"$f":"VLOOKUP($A47,[3]HYP!$E$14:$BK$226,34,0)","v":25830},{"$f":"VLOOKUP($A47,[3]CKD!$E$14:$BG$230,33,0)","v":7090},{"$f":"VLOOKUP($A47,[3]CKD!$E$14:$BG$230,38,0)","v":9222},{"$f":"VLOOKUP(A47,[3]PAD!$E$14:$BC$226,29,0)","v":1405},{"$f":"VLOOKUP($A47,[3]PAD!$E$14:$BC$226,34,0)","v":1627},{"$f":"VLOOKUP($A47,[3]PAD!$E$14:$BC$226,37,0)","v":1119},{"$f":"VLOOKUP($A47,[3]PAD!$E$14:$BC$226,42,0)","v":1627},{"$f":"VLOOKUP($A47,[3]STIA!$E$14:$CA$230,37,0)","v":3227},{"$f":"VLOOKUP($A47,[3]STIA!$E$14:$CA$230,42,0)","v":3739},{"$f":"VLOOKUP($A47,[3]STIA!$E$14:$CA$230,53,0)","v":1843},{"$f":"VLOOKUP($A47,[3]STIA!$E$14:$CA$230,58,0)","v":2729}]
["02N","NHS Airedale, Wharfedale and Craven",{"$f":"VLOOKUP($A48,'[6]201314'!$C$19:$J$256,8,0)","v":83},{"$f":"VLOOKUP($A48,'[6]201314'!$C$19:$J$256,7,0)","v":141517},{"$f":"VLOOKUP($A48,[7]Data!$A$6:$H$228,4,0)","v":235},{"$f":"VLOOKUP(A48,[3]CHD!$E$15:$H$226,4,0)","v":156259},{"$f":"VLOOKUP($A48,[7]Data!$A$6:$H$228,3,0)","v":1105},156259,{"$f":"VLOOKUP($A48,[7]Data!$A$6:$H$228,5,0)","v":201},156259,{"$f":"VLOOKUP($A48,[7]Data!$A$6:$H$228,6,0)","v":524},156259,{"$f":"VLOOKUP($A48,[7]Data!$A$6:$H$228,7,0)","v":213},156259,{"$f":"VLOOKUP($A48,[7]Data!$A$6:$H$228,8,0)","v":38},156259,{"$f":"VLOOKUP($A48,[8]CHD06!$E$15:$O$225,5,0)","v":5662},{"$f":"VLOOKUP($A48,[8]CHD06!$E$15:$O$225,10,0)","v":6423},{"$f":"VLOOKUP($A48,[8]CHD08!$E$15:$O$225,5,0)","v":4641},{"$f":"VLOOKUP($A48,[8]CHD08!$E$15:$O$225,10,0)","v":6423},{"$f":"VLOOKUP($A48,[9]BP05!$E$14:$O$225,5,0)","v":17285},{"$f":"VLOOKUP($A48,[9]BP05!$E$14:$O$225,10,0)","v":22959},{"$f":"VLOOKUP($A48,[10]CKD03!$E$14:$O$225,5,0)","v":3817},{"$f":"VLOOKUP($A48,[10]CKD03!$E$14:$O$225,10,0)","v":5436},{"$f":"VLOOKUP($A48,[11]PAD03!$E$14:$O$225,5,0)","v":1070},{"$f":"VLOOKUP($A48,[11]PAD03!$E$14:$O$225,10,0)","v":1259},{"$f":"VLOOKUP($A48,[11]PAD04!$E$14:$O$225,5,0)","v":834},{"$f":"VLOOKUP($A48,[11]PAD04!$E$14:$O$225,10,0)","v":1259},{"$f":"VLOOKUP($A48,[12]STROKE06!$E$14:$O$225,5,0)","v":2938},{"$f":"VLOOKUP($A48,[12]STROKE06!$E$14:$O$225,10,0)","v":3483},{"$f":"VLOOKUP($A48,[12]STROKE08!$E$14:$O$225,5,0)","v":2246},{"$f":"VLOOKUP($A48,[12]STROKE08!$E$14:$O$225,10,0)","v":3483},null,null,null,null,null,null,null,null,null,null,null,null,null,null,{"$f":"VLOOKUP($A48,[3]CHD!$E$14:$BS$226,29,0)","v":5514},{"$f":"VLOOKUP($A48,[3]CHD!$E$14:$BS$226,34,0)","v":6342},{"$f":"VLOOKUP($A48,[3]CHD!$E$14:$BS$226,37,0)","v":4342},{"$f":"VLOOKUP($A48,[3]CHD!$E$14:$BS$226,42,0)","v":6342},{"$f":"VLOOKUP($A48,[3]HYP!$E$14:$BK$226,29,0)","v":17903},{"$f":"VLOOKUP($A48,[3]HYP!$E$14:$BK$226,34,0)","v":23285},{"$f":"VLOOKUP($A48,[3]CKD!$E$14:$BG$230,33,0)","v":2942},{"$f":"VLOOKUP($A48,[3]CKD!$E$14:$BG$230,38,0)","v":4025},{"$f":"VLOOKUP(A48,[3]PAD!$E$14:$BC$226,29,0)","v":1028},{"$f":"VLOOKUP($A48,[3]PAD!$E$14:$BC$226,34,0)","v":1232},{"$f":"VLOOKUP($A48,[3]PAD!$E$14:$BC$226,37,0)","v":808},{"$f":"VLOOKUP($A48,[3]PAD!$E$14:$BC$226,42,0)","v":1232},{"$f":"VLOOKUP($A48,[3]STIA!$E$14:$CA$230,37,0)","v":2986},{"$f":"VLOOKUP($A48,[3]STIA!$E$14:$CA$230,42,0)","v":3557},{"$f":"VLOOKUP($A48,[3]STIA!$E$14:$CA$230,53,0)","v":1500},{"$f":"VLOOKUP($A48,[3]STIA!$E$14:$CA$230,58,0)","v":2410}]
["02P","NHS Barnsley",{"$f":"VLOOKUP($A49,'[6]201314'!$C$19:$J$256,8,0)","v":209},{"$f":"VLOOKUP($A49,'[6]201314'!$C$19:$J$256,7,0)","v":231608},{"$f":"VLOOKUP($A49,[7]Data!$A$6:$H$228,4,0)","v":605},{"$f":"VLOOKUP(A49,[3]CHD!$E$15:$H$226,4,0)","v":250376},{"$f":"VLOOKUP($A49,[7]Data!$A$6:$H$228,3,0)","v":1948},250376,{"$f":"VLOOKUP($A49,[7]Data!$A$6:$H$228,5,0)","v":346},250376,{"$f":"VLOOKUP($A49,[7]Data!$A$6:$H$228,6,0)","v":709},250376,{"$f":"VLOOKUP($A49,[7]Data!$A$6:$H$228,7,0)","v":240},250376,{"$f":"VLOOKUP($A49,[7]Data!$A$6:$H$228,8,0)","v":85},250376,{"$f":"VLOOKUP($A49,[8]CHD06!$E$15:$O$225,5,0)","v":10665},{"$f":"VLOOKUP($A49,[8]CHD06!$E$15:$O$225,10,0)","v":12087},{"$f":"VLOOKUP($A49,[8]CHD08!$E$15:$O$225,5,0)","v":8840},{"$f":"VLOOKUP($A49,[8]CHD08!$E$15:$O$225,10,0)","v":12087},{"$f":"VLOOKUP($A49,[9]BP05!$E$14:$O$225,5,0)","v":30134},{"$f":"VLOOKUP($A49,[9]BP05!$E$14:$O$225,10,0)","v":39471},{"$f":"VLOOKUP($A49,[10]CKD03!$E$14:$O$225,5,0)","v":8759},{"$f":"VLOOKUP($A49,[10]CKD03!$E$14:$O$225,10,0)","v":11969},{"$f":"VLOOKUP($A49,[11]PAD03!$E$14:$O$225,5,0)","v":2480},{"$f":"VLOOKUP($A49,[11]PAD03!$E$14:$O$225,10,0)","v":2859},{"$f":"VLOOKUP($A49,[11]PAD04!$E$14:$O$225,5,0)","v":2064},{"$f":"VLOOKUP($A49,[11]PAD04!$E$14:$O$225,10,0)","v":2859},{"$f":"VLOOKUP($A49,[12]STROKE06!$E$14:$O$225,5,0)","v":4423},{"$f":"VLOOKUP($A49,[12]STROKE06!$E$14:$O$225,10,0)","v":5151},{"$f":"VLOOKUP($A49,[12]STROKE08!$E$14:$O$225,5,0)","v":3640},{"$f":"VLOOKUP($A49,[12]STROKE08!$E$14:$O$225,10,0)","v":5151},null,null,null,null,null,null,null,null,null,null,null,null,null,null,{"$f":"VLOOKUP($A49,[3]CHD!$E$14:$BS$226,29,0)","v":10356},{"$f":"VLOOKUP($A49,[3]CHD!$E$14:$BS$226,34,0)","v":11905},{"$f":"VLOOKUP($A49,[3]CHD!$E$14:$BS$226,37,0)","v":8584},{"$f":"VLOOKUP($A49,[3]CHD!$E$14:$BS$226,42,0)","v":11905},{"$f":"VLOOKUP($A49,[3]HYP!$E$14:$BK$226,29,0)","v":30403},{"$f":"VLOOKUP($A49,[3]HYP!$E$14:$BK$226,34,0)","v":39498},{"$f":"VLOOKUP($A49,[3]CKD!$E$14:$BG$230,33,0)","v":8173},{"$f":"VLOOKUP($A49,[3]CKD!$E$14:$BG$230,38,0)","v":10942},{"$f":"VLOOKUP(A49,[3]PAD!$E$14:$BC$226,29,0)","v":2422},{"$f":"VLOOKUP($A49,[3]PAD!$E$14:$BC$226,34,0)","v":2836},{"$f":"VLOOKUP($A49,[3]PAD!$E$14:$BC$226,37,0)","v":1995},{"$f":"VLOOKUP($A49,[3]PAD!$E$14:$BC$226,42,0)","v":2836},{"$f":"VLOOKUP($A49,[3]STIA!$E$14:$CA$230,37,0)","v":4423},{"$f":"VLOOKUP($A49,[3]STIA!$E$14:$CA$230,42,0)","v":5222},{"$f":"VLOOKUP($A49,[3]STIA!$E$14:$CA$230,53,0)","v":2447},{"$f":"VLOOKUP($A49,[3]STIA!$E$14:$CA$230,58,0)","v":3571}]
["02Q","NHS Bassetlaw",{"$f":"VLOOKUP($A50,'[6]201314'!$C$19:$J$256,8,0)","v":82},{"$f":"VLOOKUP($A50,'[6]201314'!$C$19:$J$256,7,0)","v":102615},{"$f":"VLOOKUP($A50,[7]Data!$A$6:$H$228,4,0)","v":150},{"$f":"VLOOKUP(A50,[3]CHD!$E$15:$H$226,4,0)","v":111930},{"$f":"VLOOKUP($A50,[7]Data!$A$6:$H$228,3,0)","v":517},111930,{"$f":"VLOOKUP($A50,[7]Data!$A$6:$H$228,5,0)","v":139},111930,{"$f":"VLOOKUP($A50,[7]Data!$A$6:$H$228,6,0)","v":287},111930,{"$f":"VLOOKUP($A50,[7]Data!$A$6:$H$228,7,0)","v":104},111930,{"$f":"VLOOKUP($A50,[7]Data!$A$6:$H$228,8,0)","v":35},111930,{"$f":"VLOOKUP($A50,[8]CHD06!$E$15:$O$225,5,0)","v":3917},{"$f":"VLOOKUP($A50,[8]CHD06!$E$15:$O$225,10,0)","v":4405},{"$f":"VLOOKUP($A50,[8]CHD08!$E$15:$O$225,5,0)","v":3260},{"$f":"VLOOKUP($A50,[8]CHD08!$E$15:$O$225,10,0)","v":4405},{"$f":"VLOOKUP($A50,[9]BP05!$E$14:$O$225,5,0)","v":13454},{"$f":"VLOOKUP($A50,[9]BP05!$E$14:$O$225,10,0)","v":16435},{"$f":"VLOOKUP($A50,[10]CKD03!$E$14:$O$225,5,0)","v":4615},{"$f":"VLOOKUP($A50,[10]CKD03!$E$14:$O$225,10,0)","v":6164},{"$f":"VLOOKUP($A50,[11]PAD03!$E$14:$O$225,5,0)","v":811},{"$f":"VLOOKUP($A50,[11]PAD03!$E$14:$O$225,10,0)","v":926},{"$f":"VLOOKUP($A50,[11]PAD04!$E$14:$O$225,5,0)","v":662},{"$f":"VLOOKUP($A50,[11]PAD04!$E$14:$O$225,10,0)","v":926},{"$f":"VLOOKUP($A50,[12]STROKE06!$E$14:$O$225,5,0)","v":1911},{"$f":"VLOOKUP($A50,[12]STROKE06!$E$14:$O$225,10,0)","v":2166},{"$f":"VLOOKUP($A50,[12]STROKE08!$E$14:$O$225,5,0)","v":1514},{"$f":"VLOOKUP($A50,[12]STROKE08!$E$14:$O$225,10,0)","v":2166},null,null,null,null,null,null,null,null,null,null,null,null,null,null,{"$f":"VLOOKUP($A50,[3]CHD!$E$14:$BS$226,29,0)","v":3835},{"$f":"VLOOKUP($A50,[3]CHD!$E$14:$BS$226,34,0)","v":4327},{"$f":"VLOOKUP($A50,[3]CHD!$E$14:$BS$226,37,0)","v":3128},{"$f":"VLOOKUP($A50,[3]CHD!$E$14:$BS$226,42,0)","v":4327},{"$f":"VLOOKUP($A50,[3]HYP!$E$14:$BK$226,29,0)","v":13699},{"$f":"VLOOKUP($A50,[3]HYP!$E$14:$BK$226,34,0)","v":16605},{"$f":"VLOOKUP($A50,[3]CKD!$E$14:$BG$230,33,0)","v":4678},{"$f":"VLOOKUP($A50,[3]CKD!$E$14:$BG$230,38,0)","v":6110},{"$f":"VLOOKUP(A50,[3]PAD!$E$14:$BC$226,29,0)","v":806},{"$f":"VLOOKUP($A50,[3]PAD!$E$14:$BC$226,34,0)","v":940},{"$f":"VLOOKUP($A50,[3]PAD!$E$14:$BC$226,37,0)","v":657},{"$f":"VLOOKUP($A50,[3]PAD!$E$14:$BC$226,42,0)","v":940},{"$f":"VLOOKUP($A50,[3]STIA!$E$14:$CA$230,37,0)","v":1895},{"$f":"VLOOKUP($A50,[3]STIA!$E$14:$CA$230,42,0)","v":2201},{"$f":"VLOOKUP($A50,[3]STIA!$E$14:$CA$230,53,0)","v":1079},{"$f":"VLOOKUP($A50,[3]STIA!$E$14:$CA$230,58,0)","v":1598}]
["02R","NHS Bradford Districts",{"$f":"VLOOKUP($A51,'[6]201314'!$C$19:$J$256,8,0)","v":251},{"$f":"VLOOKUP($A51,'[6]201314'!$C$19:$J$256,7,0)","v":309647},{"$f":"VLOOKUP($A51,[7]Data!$A$6:$H$228,4,0)","v":470},{"$f":"VLOOKUP(A51,[3]CHD!$E$15:$H$226,4,0)","v":332267},{"$f":"VLOOKUP($A51,[7]Data!$A$6:$H$228,3,0)","v":1879},332267,{"$f":"VLOOKUP($A51,[7]Data!$A$6:$H$228,5,0)","v":450},332267,{"$f":"VLOOKUP($A51,[7]Data!$A$6:$H$228,6,0)","v":606},332267,{"$f":"VLOOKUP($A51,[7]Data!$A$6:$H$228,7,0)","v":387},332267,{"$f":"VLOOKUP($A51,[7]Data!$A$6:$H$228,8,0)","v":81},332267,{"$f":"VLOOKUP($A51,[8]CHD06!$E$15:$O$225,5,0)","v":10485},{"$f":"VLOOKUP($A51,[8]CHD06!$E$15:$O$225,10,0)","v":11886},{"$f":"VLOOKUP($A51,[8]CHD08!$E$15:$O$225,5,0)","v":8850},{"$f":"VLOOKUP($A51,[8]CHD08!$E$15:$O$225,10,0)","v":11886},{"$f":"VLOOKUP($A51,[9]BP05!$E$14:$O$225,5,0)","v":33337},{"$f":"VLOOKUP($A51,[9]BP05!$E$14:$O$225,10,0)","v":43572},{"$f":"VLOOKUP($A51,[10]CKD03!$E$14:$O$225,5,0)","v":7715},{"$f":"VLOOKUP($A51,[10]CKD03!$E$14:$O$225,10,0)","v":10994},{"$f":"VLOOKUP($A51,[11]PAD03!$E$14:$O$225,5,0)","v":2637},{"$f":"VLOOKUP($A51,[11]PAD03!$E$14:$O$225,10,0)","v":3058},{"$f":"VLOOKUP($A51,[11]PAD04!$E$14:$O$225,5,0)","v":2230},{"$f":"VLOOKUP($A51,[11]PAD04!$E$14:$O$225,10,0)","v":3058},{"$f":"VLOOKUP($A51,[12]STROKE06!$E$14:$O$225,5,0)","v":5079},{"$f":"VLOOKUP($A51,[12]STROKE06!$E$14:$O$225,10,0)","v":5987},{"$f":"VLOOKUP($A51,[12]STROKE08!$E$14:$O$225,5,0)","v":4150},{"$f":"VLOOKUP($A51,[12]STROKE08!$E$14:$O$225,10,0)","v":5987},null,null,null,null,null,null,null,null,null,null,null,null,null,null,{"$f":"VLOOKUP($A51,[3]CHD!$E$14:$BS$226,29,0)","v":10419},{"$f":"VLOOKUP($A51,[3]CHD!$E$14:$BS$226,34,0)","v":11702},{"$f":"VLOOKUP($A51,[3]CHD!$E$14:$BS$226,37,0)","v":8517},{"$f":"VLOOKUP($A51,[3]CHD!$E$14:$BS$226,42,0)","v":11702},{"$f":"VLOOKUP($A51,[3]HYP!$E$14:$BK$226,29,0)","v":34678},{"$f":"VLOOKUP($A51,[3]HYP!$E$14:$BK$226,34,0)","v":43974},{"$f":"VLOOKUP($A51,[3]CKD!$E$14:$BG$230,33,0)","v":6086},{"$f":"VLOOKUP($A51,[3]CKD!$E$14:$BG$230,38,0)","v":8106},{"$f":"VLOOKUP(A51,[3]PAD!$E$14:$BC$226,29,0)","v":2519},{"$f":"VLOOKUP($A51,[3]PAD!$E$14:$BC$226,34,0)","v":2945},{"$f":"VLOOKUP($A51,[3]PAD!$E$14:$BC$226,37,0)","v":2095},{"$f":"VLOOKUP($A51,[3]PAD!$E$14:$BC$226,42,0)","v":2945},{"$f":"VLOOKUP($A51,[3]STIA!$E$14:$CA$230,37,0)","v":5189},{"$f":"VLOOKUP($A51,[3]STIA!$E$14:$CA$230,42,0)","v":6049},{"$f":"VLOOKUP($A51,[3]STIA!$E$14:$CA$230,53,0)","v":2770},{"$f":"VLOOKUP($A51,[3]STIA!$E$14:$CA$230,58,0)","v":4012}]
["02T","NHS Calderdale",{"$f":"VLOOKUP($A52,'[6]201314'!$C$19:$J$256,8,0)","v":165},{"$f":"VLOOKUP($A52,'[6]201314'!$C$19:$J$256,7,0)","v":199042},{"$f":"VLOOKUP($A52,[7]Data!$A$6:$H$228,4,0)","v":284},{"$f":"VLOOKUP(A52,[3]CHD!$E$15:$H$226,4,0)","v":214193},{"$f":"VLOOKUP($A52,[7]Data!$A$6:$H$228,3,0)","v":937},214193,{"$f":"VLOOKUP($A52,[7]Data!$A$6:$H$228,5,0)","v":278},214193,{"$f":"VLOOKUP($A52,[7]Data!$A$6:$H$228,6,0)","v":573},214193,{"$f":"VLOOKUP($A52,[7]Data!$A$6:$H$228,7,0)","v":265},214193,{"$f":"VLOOKUP($A52,[7]Data!$A$6:$H$228,8,0)","v":48},214193,{"$f":"VLOOKUP($A52,[8]CHD06!$E$15:$O$225,5,0)","v":7352},{"$f":"VLOOKUP($A52,[8]CHD06!$E$15:$O$225,10,0)","v":8353},{"$f":"VLOOKUP($A52,[8]CHD08!$E$15:$O$225,5,0)","v":6252},{"$f":"VLOOKUP($A52,[8]CHD08!$E$15:$O$225,10,0)","v":8353},{"$f":"VLOOKUP($A52,[9]BP05!$E$14:$O$225,5,0)","v":22260},{"$f":"VLOOKUP($A52,[9]BP05!$E$14:$O$225,10,0)","v":28579},{"$f":"VLOOKUP($A52,[10]CKD03!$E$14:$O$225,5,0)","v":5380},{"$f":"VLOOKUP($A52,[10]CKD03!$E$14:$O$225,10,0)","v":7539},{"$f":"VLOOKUP($A52,[11]PAD03!$E$14:$O$225,5,0)","v":1496},{"$f":"VLOOKUP($A52,[11]PAD03!$E$14:$O$225,10,0)","v":1754},{"$f":"VLOOKUP($A52,[11]PAD04!$E$14:$O$225,5,0)","v":1192},{"$f":"VLOOKUP($A52,[11]PAD04!$E$14:$O$225,10,0)","v":1754},{"$f":"VLOOKUP($A52,[12]STROKE06!$E$14:$O$225,5,0)","v":3350},{"$f":"VLOOKUP($A52,[12]STROKE06!$E$14:$O$225,10,0)","v":3899},{"$f":"VLOOKUP($A52,[12]STROKE08!$E$14:$O$225,5,0)","v":2831},{"$f":"VLOOKUP($A52,[12]STROKE08!$E$14:$O$225,10,0)","v":3899},null,null,null,null,null,null,null,null,null,null,null,null,null,null,{"$f":"VLOOKUP($A52,[3]CHD!$E$14:$BS$226,29,0)","v":7354},{"$f":"VLOOKUP($A52,[3]CHD!$E$14:$BS$226,34,0)","v":8220},{"$f":"VLOOKUP($A52,[3]CHD!$E$14:$BS$226,37,0)","v":6277},{"$f":"VLOOKUP($A52,[3]CHD!$E$14:$BS$226,42,0)","v":8220},{"$f":"VLOOKUP($A52,[3]HYP!$E$14:$BK$226,29,0)","v":23136},{"$f":"VLOOKUP($A52,[3]HYP!$E$14:$BK$226,34,0)","v":29218},{"$f":"VLOOKUP($A52,[3]CKD!$E$14:$BG$230,33,0)","v":5249},{"$f":"VLOOKUP($A52,[3]CKD!$E$14:$BG$230,38,0)","v":6930},{"$f":"VLOOKUP(A52,[3]PAD!$E$14:$BC$226,29,0)","v":1495},{"$f":"VLOOKUP($A52,[3]PAD!$E$14:$BC$226,34,0)","v":1742},{"$f":"VLOOKUP($A52,[3]PAD!$E$14:$BC$226,37,0)","v":1223},{"$f":"VLOOKUP($A52,[3]PAD!$E$14:$BC$226,42,0)","v":1742},{"$f":"VLOOKUP($A52,[3]STIA!$E$14:$CA$230,37,0)","v":3445},{"$f":"VLOOKUP($A52,[3]STIA!$E$14:$CA$230,42,0)","v":3926},{"$f":"VLOOKUP($A52,[3]STIA!$E$14:$CA$230,53,0)","v":2009},{"$f":"VLOOKUP($A52,[3]STIA!$E$14:$CA$230,58,0)","v":2699}]
["02V","NHS Leeds North",{"$f":"VLOOKUP($A53,'[6]201314'!$C$19:$J$256,8,0)","v":99},{"$f":"VLOOKUP($A53,'[6]201314'!$C$19:$J$256,7,0)","v":188671},{"$f":"VLOOKUP($A53,[7]Data!$A$6:$H$228,4,0)","v":287},{"$f":"VLOOKUP(A53,[3]CHD!$E$15:$H$226,4,0)","v":204358},{"$f":"VLOOKUP($A53,[7]Data!$A$6:$H$228,3,0)","v":731},204358,{"$f":"VLOOKUP($A53,[7]Data!$A$6:$H$228,5,0)","v":242},204358,{"$f":"VLOOKUP($A53,[7]Data!$A$6:$H$228,6,0)","v":420},204358,{"$f":"VLOOKUP($A53,[7]Data!$A$6:$H$228,7,0)","v":219},204358,{"$f":"VLOOKUP($A53,[7]Data!$A$6:$H$228,8,0)","v":39},204358,{"$f":"VLOOKUP($A53,[8]CHD06!$E$15:$O$225,5,0)","v":6093},{"$f":"VLOOKUP($A53,[8]CHD06!$E$15:$O$225,10,0)","v":6842},{"$f":"VLOOKUP($A53,[8]CHD08!$E$15:$O$225,5,0)","v":4968},{"$f":"VLOOKUP($A53,[8]CHD08!$E$15:$O$225,10,0)","v":6842},{"$f":"VLOOKUP($A53,[9]BP05!$E$14:$O$225,5,0)","v":19863},{"$f":"VLOOKUP($A53,[9]BP05!$E$14:$O$225,10,0)","v":25597},{"$f":"VLOOKUP($A53,[10]CKD03!$E$14:$O$225,5,0)","v":4696},{"$f":"VLOOKUP($A53,[10]CKD03!$E$14:$O$225,10,0)","v":6492},{"$f":"VLOOKUP($A53,[11]PAD03!$E$14:$O$225,5,0)","v":1181},{"$f":"VLOOKUP($A53,[11]PAD03!$E$14:$O$225,10,0)","v":1356},{"$f":"VLOOKUP($A53,[11]PAD04!$E$14:$O$225,5,0)","v":924},{"$f":"VLOOKUP($A53,[11]PAD04!$E$14:$O$225,10,0)","v":1356},{"$f":"VLOOKUP($A53,[12]STROKE06!$E$14:$O$225,5,0)","v":2989},{"$f":"VLOOKUP($A53,[12]STROKE06!$E$14:$O$225,10,0)","v":3450},{"$f":"VLOOKUP($A53,[12]STROKE08!$E$14:$O$225,5,0)","v":2376},{"$f":"VLOOKUP($A53,[12]STROKE08!$E$14:$O$225,10,0)","v":3450},null,null,null,null,null,null,null,null,null,null,null,null,null,null,{"$f":"VLOOKUP($A53,[3]CHD!$E$14:$BS$226,29,0)","v":6009},{"$f":"VLOOKUP($A53,[3]CHD!$E$14:$BS$226,34,0)","v":6721},{"$f":"VLOOKUP($A53,[3]CHD!$E$14:$BS$226,37,0)","v":4909},{"$f":"VLOOKUP($A53,[3]CHD!$E$14:$BS$226,42,0)","v":6721},{"$f":"VLOOKUP($A53,[3]HYP!$E$14:$BK$226,29,0)","v":21191},{"$f":"VLOOKUP($A53,[3]HYP!$E$14:$BK$226,34,0)","v":26586},{"$f":"VLOOKUP($A53,[3]CKD!$E$14:$BG$230,33,0)","v":4027},{"$f":"VLOOKUP($A53,[3]CKD!$E$14:$BG$230,38,0)","v":5284},{"$f":"VLOOKUP(A53,[3]PAD!$E$14:$BC$226,29,0)","v":1151},{"$f":"VLOOKUP($A53,[3]PAD!$E$14:$BC$226,34,0)","v":1322},{"$f":"VLOOKUP($A53,[3]PAD!$E$14:$BC$226,37,0)","v":916},{"$f":"VLOOKUP($A53,[3]PAD!$E$14:$BC$226,42,0)","v":1322},{"$f":"VLOOKUP($A53,[3]STIA!$E$14:$CA$230,37,0)","v":3055},{"$f":"VLOOKUP($A53,[3]STIA!$E$14:$CA$230,42,0)","v":3520},{"$f":"VLOOKUP($A53,[3]STIA!$E$14:$CA$230,53,0)","v":1509},{"$f":"VLOOKUP($A53,[3]STIA!$E$14:$CA$230,58,0)","v":2208}]
["02W","NHS Bradford City",{"$f":"VLOOKUP($A54,'[6]201314'!$C$19:$J$256,8,0)","v":67},{"$f":"VLOOKUP($A54,'[6]201314'!$C$19:$J$256,7,0)","v":116880},{"$f":"VLOOKUP($A54,[7]Data!$A$6:$H$228,4,0)","v":80},{"$f":"VLOOKUP(A54,[3]CHD!$E$15:$H$226,4,0)","v":119296},{"$f":"VLOOKUP($A54,[7]Data!$A$6:$H$228,3,0)","v":514},119296,{"$f":"VLOOKUP($A54,[7]Data!$A$6:$H$228,5,0)","v":63},119296,{"$f":"VLOOKUP($A54,[7]Data!$A$6:$H$228,6,0)","v":142},119296,{"$f":"VLOOKUP($A54,[7]Data!$A$6:$H$228,7,0)","v":90},119296,{"$f":"VLOOKUP($A54,[7]Data!$A$6:$H$228,8,0)","v":26},119296,{"$f":"VLOOKUP($A54,[8]CHD06!$E$15:$O$225,5,0)","v":2404},{"$f":"VLOOKUP($A54,[8]CHD06!$E$15:$O$225,10,0)","v":2797},{"$f":"VLOOKUP($A54,[8]CHD08!$E$15:$O$225,5,0)","v":2026},{"$f":"VLOOKUP($A54,[8]CHD08!$E$15:$O$225,10,0)","v":2797},{"$f":"VLOOKUP($A54,[9]BP05!$E$14:$O$225,5,0)","v":7817},{"$f":"VLOOKUP($A54,[9]BP05!$E$14:$O$225,10,0)","v":10464},{"$f":"VLOOKUP($A54,[10]CKD03!$E$14:$O$225,5,0)","v":1556},{"$f":"VLOOKUP($A54,[10]CKD03!$E$14:$O$225,10,0)","v":2241},{"$f":"VLOOKUP($A54,[11]PAD03!$E$14:$O$225,5,0)","v":574},{"$f":"VLOOKUP($A54,[11]PAD03!$E$14:$O$225,10,0)","v":697},{"$f":"VLOOKUP($A54,[11]PAD04!$E$14:$O$225,5,0)","v":503},{"$f":"VLOOKUP($A54,[11]PAD04!$E$14:$O$225,10,0)","v":697},{"$f":"VLOOKUP($A54,[12]STROKE06!$E$14:$O$225,5,0)","v":876},{"$f":"VLOOKUP($A54,[12]STROKE06!$E$14:$O$225,10,0)","v":1031},{"$f":"VLOOKUP($A54,[12]STROKE08!$E$14:$O$225,5,0)","v":757},{"$f":"VLOOKUP($A54,[12]STROKE08!$E$14:$O$225,10,0)","v":1031},null,null,null,null,null,null,null,null,null,null,null,null,null,null,{"$f":"VLOOKUP($A54,[3]CHD!$E$14:$BS$226,29,0)","v":2405},{"$f":"VLOOKUP($A54,[3]CHD!$E$14:$BS$226,34,0)","v":2831},{"$f":"VLOOKUP($A54,[3]CHD!$E$14:$BS$226,37,0)","v":2040},{"$f":"VLOOKUP($A54,[3]CHD!$E$14:$BS$226,42,0)","v":2831},{"$f":"VLOOKUP($A54,[3]HYP!$E$14:$BK$226,29,0)","v":8181},{"$f":"VLOOKUP($A54,[3]HYP!$E$14:$BK$226,34,0)","v":10595},{"$f":"VLOOKUP($A54,[3]CKD!$E$14:$BG$230,33,0)","v":1053},{"$f":"VLOOKUP($A54,[3]CKD!$E$14:$BG$230,38,0)","v":1455},{"$f":"VLOOKUP(A54,[3]PAD!$E$14:$BC$226,29,0)","v":530},{"$f":"VLOOKUP($A54,[3]PAD!$E$14:$BC$226,34,0)","v":626},{"$f":"VLOOKUP($A54,[3]PAD!$E$14:$BC$226,37,0)","v":472},{"$f":"VLOOKUP($A54,[3]PAD!$E$14:$BC$226,42,0)","v":626},{"$f":"VLOOKUP($A54,[3]STIA!$E$14:$CA$230,37,0)","v":863},{"$f":"VLOOKUP($A54,[3]STIA!$E$14:$CA$230,42,0)","v":1050},{"$f":"VLOOKUP($A54,[3]STIA!$E$14:$CA$230,53,0)","v":499},{"$f":"VLOOKUP($A54,[3]STIA!$E$14:$CA$230,58,0)","v":686}]
["02X","NHS Doncaster",{"$f":"VLOOKUP($A55,'[6]201314'!$C$19:$J$256,8,0)","v":224},{"$f":"VLOOKUP($A55,'[6]201314'!$C$19:$J$256,7,0)","v":284492},{"$f":"VLOOKUP($A55,[7]Data!$A$6:$H$228,4,0)","v":381},{"$f":"VLOOKUP(A55,[3]CHD!$E$15:$H$226,4,0)","v":310105},{"$f":"VLOOKUP($A55,[7]Data!$A$6:$H$228,3,0)","v":1355},310105,{"$f":"VLOOKUP($A55,[7]Data!$A$6:$H$228,5,0)","v":380},310105,{"$f":"VLOOKUP($A55,[7]Data!$A$6:$H$228,6,0)","v":808},310105,{"$f":"VLOOKUP($A55,[7]Data!$A$6:$H$228,7,0)","v":273},310105,{"$f":"VLOOKUP($A55,[7]Data!$A$6:$H$228,8,0)","v":88},310105,{"$f":"VLOOKUP($A55,[8]CHD06!$E$15:$O$225,5,0)","v":11328},{"$f":"VLOOKUP($A55,[8]CHD06!$E$15:$O$225,10,0)","v":12649},{"$f":"VLOOKUP($A55,[8]CHD08!$E$15:$O$225,5,0)","v":9735},{"$f":"VLOOKUP($A55,[8]CHD08!$E$15:$O$225,10,0)","v":12649},{"$f":"VLOOKUP($A55,[9]BP05!$E$14:$O$225,5,0)","v":37752},{"$f":"VLOOKUP($A55,[9]BP05!$E$14:$O$225,10,0)","v":46893},{"$f":"VLOOKUP($A55,[10]CKD03!$E$14:$O$225,5,0)","v":12161},{"$f":"VLOOKUP($A55,[10]CKD03!$E$14:$O$225,10,0)","v":15891},{"$f":"VLOOKUP($A55,[11]PAD03!$E$14:$O$225,5,0)","v":2357},{"$f":"VLOOKUP($A55,[11]PAD03!$E$14:$O$225,10,0)","v":2698},{"$f":"VLOOKUP($A55,[11]PAD04!$E$14:$O$225,5,0)","v":2015},{"$f":"VLOOKUP($A55,[11]PAD04!$E$14:$O$225,10,0)","v":2698},{"$f":"VLOOKUP($A55,[12]STROKE06!$E$14:$O$225,5,0)","v":5525},{"$f":"VLOOKUP($A55,[12]STROKE06!$E$14:$O$225,10,0)","v":6314},{"$f":"VLOOKUP($A55,[12]STROKE08!$E$14:$O$225,5,0)","v":4658},{"$f":"VLOOKUP($A55,[12]STROKE08!$E$14:$O$225,10,0)","v":6314},null,null,null,null,null,null,null,null,null,null,null,null,null,null,{"$f":"VLOOKUP($A55,[3]CHD!$E$14:$BS$226,29,0)","v":11018},{"$f":"VLOOKUP($A55,[3]CHD!$E$14:$BS$226,34,0)","v":12204},{"$f":"VLOOKUP($A55,[3]CHD!$E$14:$BS$226,37,0)","v":9081},{"$f":"VLOOKUP($A55,[3]CHD!$E$14:$BS$226,42,0)","v":12204},{"$f":"VLOOKUP($A55,[3]HYP!$E$14:$BK$226,29,0)","v":38454},{"$f":"VLOOKUP($A55,[3]HYP!$E$14:$BK$226,34,0)","v":47314},{"$f":"VLOOKUP($A55,[3]CKD!$E$14:$BG$230,33,0)","v":11800},{"$f":"VLOOKUP($A55,[3]CKD!$E$14:$BG$230,38,0)","v":14852},{"$f":"VLOOKUP(A55,[3]PAD!$E$14:$BC$226,29,0)","v":2349},{"$f":"VLOOKUP($A55,[3]PAD!$E$14:$BC$226,34,0)","v":2668},{"$f":"VLOOKUP($A55,[3]PAD!$E$14:$BC$226,37,0)","v":1952},{"$f":"VLOOKUP($A55,[3]PAD!$E$14:$BC$226,42,0)","v":2672},{"$f":"VLOOKUP($A55,[3]STIA!$E$14:$CA$230,37,0)","v":5498},{"$f":"VLOOKUP($A55,[3]STIA!$E$14:$CA$230,42,0)","v":6275},{"$f":"VLOOKUP($A55,[3]STIA!$E$14:$CA$230,53,0)","v":3432},{"$f":"VLOOKUP($A55,[3]STIA!$E$14:$CA$230,58,0)","v":4679}]
["02Y","NHS East Riding Of Yorkshire",{"$f":"VLOOKUP($A56,'[6]201314'!$C$19:$J$256,8,0)","v":207},{"$f":"VLOOKUP($A56,'[6]201314'!$C$19:$J$256,7,0)","v":270065},{"$f":"VLOOKUP($A56,[7]Data!$A$6:$H$228,4,0)","v":529},{"$f":"VLOOKUP(A56,[3]CHD!$E$15:$H$226,4,0)","v":300944},{"$f":"VLOOKUP($A56,[7]Data!$A$6:$H$228,3,0)","v":2195},300944,{"$f":"VLOOKUP($A56,[7]Data!$A$6:$H$228,5,0)","v":368},300944,{"$f":"VLOOKUP($A56,[7]Data!$A$6:$H$228,6,0)","v":1162},300944,{"$f":"VLOOKUP($A56,[7]Data!$A$6:$H$228,7,0)","v":537},300944,{"$f":"VLOOKUP($A56,[7]Data!$A$6:$H$228,8,0)","v":104},300944,{"$f":"VLOOKUP($A56,[8]CHD06!$E$15:$O$225,5,0)","v":12749},{"$f":"VLOOKUP($A56,[8]CHD06!$E$15:$O$225,10,0)","v":14447},{"$f":"VLOOKUP($A56,[8]CHD08!$E$15:$O$225,5,0)","v":10421},{"$f":"VLOOKUP($A56,[8]CHD08!$E$15:$O$225,10,0)","v":14447},{"$f":"VLOOKUP($A56,[9]BP05!$E$14:$O$225,5,0)","v":38013},{"$f":"VLOOKUP($A56,[9]BP05!$E$14:$O$225,10,0)","v":49095},{"$f":"VLOOKUP($A56,[10]CKD03!$E$14:$O$225,5,0)","v":8911},{"$f":"VLOOKUP($A56,[10]CKD03!$E$14:$O$225,10,0)","v":12452},{"$f":"VLOOKUP($A56,[11]PAD03!$E$14:$O$225,5,0)","v":1904},{"$f":"VLOOKUP($A56,[11]PAD03!$E$14:$O$225,10,0)","v":2244},{"$f":"VLOOKUP($A56,[11]PAD04!$E$14:$O$225,5,0)","v":1498},{"$f":"VLOOKUP($A56,[11]PAD04!$E$14:$O$225,10,0)","v":2244},{"$f":"VLOOKUP($A56,[12]STROKE06!$E$14:$O$225,5,0)","v":5375},{"$f":"VLOOKUP($A56,[12]STROKE06!$E$14:$O$225,10,0)","v":6230},{"$f":"VLOOKUP($A56,[12]STROKE08!$E$14:$O$225,5,0)","v":4185},{"$f":"VLOOKUP($A56,[12]STROKE08!$E$14:$O$225,10,0)","v":6230},null,null,null,null,null,null,null,null,null,null,null,null,null,null,{"$f":"VLOOKUP($A56,[3]CHD!$E$14:$BS$226,29,0)","v":12748},{"$f":"VLOOKUP($A56,[3]CHD!$E$14:$BS$226,34,0)","v":14456},{"$f":"VLOOKUP($A56,[3]CHD!$E$14:$BS$226,37,0)","v":10019},{"$f":"VLOOKUP($A56,[3]CHD!$E$14:$BS$226,42,0)","v":14456},{"$f":"VLOOKUP($A56,[3]HYP!$E$14:$BK$226,29,0)","v":39863},{"$f":"VLOOKUP($A56,[3]HYP!$E$14:$BK$226,34,0)","v":50113},{"$f":"VLOOKUP($A56,[3]CKD!$E$14:$BG$230,33,0)","v":8804},{"$f":"VLOOKUP($A56,[3]CKD!$E$14:$BG$230,38,0)","v":11816},{"$f":"VLOOKUP(A56,[3]PAD!$E$14:$BC$226,29,0)","v":1932},{"$f":"VLOOKUP($A56,[3]PAD!$E$14:$BC$226,34,0)","v":2312},{"$f":"VLOOKUP($A56,[3]PAD!$E$14:$BC$226,37,0)","v":1452},{"$f":"VLOOKUP($A56,[3]PAD!$E$14:$BC$226,42,0)","v":2312},{"$f":"VLOOKUP($A56,[3]STIA!$E$14:$CA$230,37,0)","v":5382},{"$f":"VLOOKUP($A56,[3]STIA!$E$14:$CA$230,42,0)","v":6342},{"$f":"VLOOKUP($A56,[3]STIA!$E$14:$CA$230,53,0)","v":2602},{"$f":"VLOOKUP($A56,[3]STIA!$E$14:$CA$230,58,0)","v":4068}]
["03A","NHS Greater Huddersfield",{"$f":"VLOOKUP($A57,'[6]201314'!$C$19:$J$256,8,0)","v":135},{"$f":"VLOOKUP($A57,'[6]201314'!$C$19:$J$256,7,0)","v":223216},{"$f":"VLOOKUP($A57,[7]Data!$A$6:$H$228,4,0)","v":342},{"$f":"VLOOKUP(A57,[3]CHD!$E$15:$H$226,4,0)","v":240650},{"$f":"VLOOKUP($A57,[7]Data!$A$6:$H$228,3,0)","v":970},240650,{"$f":"VLOOKUP($A57,[7]Data!$A$6:$H$228,5,0)","v":294},240650,{"$f":"VLOOKUP($A57,[7]Data!$A$6:$H$228,6,0)","v":535},240650,{"$f":"VLOOKUP($A57,[7]Data!$A$6:$H$228,7,0)","v":296},240650,{"$f":"VLOOKUP($A57,[7]Data!$A$6:$H$228,8,0)","v":59},240650,{"$f":"VLOOKUP($A57,[8]CHD06!$E$15:$O$225,5,0)","v":7620},{"$f":"VLOOKUP($A57,[8]CHD06!$E$15:$O$225,10,0)","v":8749},{"$f":"VLOOKUP($A57,[8]CHD08!$E$15:$O$225,5,0)","v":6234},{"$f":"VLOOKUP($A57,[8]CHD08!$E$15:$O$225,10,0)","v":8735},{"$f":"VLOOKUP($A57,[9]BP05!$E$14:$O$225,5,0)","v":23747},{"$f":"VLOOKUP($A57,[9]BP05!$E$14:$O$225,10,0)","v":30912},{"$f":"VLOOKUP($A57,[10]CKD03!$E$14:$O$225,5,0)","v":5060},{"$f":"VLOOKUP($A57,[10]CKD03!$E$14:$O$225,10,0)","v":7315},{"$f":"VLOOKUP($A57,[11]PAD03!$E$14:$O$225,5,0)","v":1512},{"$f":"VLOOKUP($A57,[11]PAD03!$E$14:$O$225,10,0)","v":1813},{"$f":"VLOOKUP($A57,[11]PAD04!$E$14:$O$225,5,0)","v":1205},{"$f":"VLOOKUP($A57,[11]PAD04!$E$14:$O$225,10,0)","v":1812},{"$f":"VLOOKUP($A57,[12]STROKE06!$E$14:$O$225,5,0)","v":3517},{"$f":"VLOOKUP($A57,[12]STROKE06!$E$14:$O$225,10,0)","v":4164},{"$f":"VLOOKUP($A57,[12]STROKE08!$E$14:$O$225,5,0)","v":2808},{"$f":"VLOOKUP($A57,[12]STROKE08!$E$14:$O$225,10,0)","v":4155},null,null,null,null,null,null,null,null,null,null,null,null,null,null,{"$f":"VLOOKUP($A57,[3]CHD!$E$14:$BS$226,29,0)","v":7630},{"$f":"VLOOKUP($A57,[3]CHD!$E$14:$BS$226,34,0)","v":8639},{"$f":"VLOOKUP($A57,[3]CHD!$E$14:$BS$226,37,0)","v":6331},{"$f":"VLOOKUP($A57,[3]CHD!$E$14:$BS$226,42,0)","v":8639},{"$f":"VLOOKUP($A57,[3]HYP!$E$14:$BK$226,29,0)","v":25029},{"$f":"VLOOKUP($A57,[3]HYP!$E$14:$BK$226,34,0)","v":31293},{"$f":"VLOOKUP($A57,[3]CKD!$E$14:$BG$230,33,0)","v":5193},{"$f":"VLOOKUP($A57,[3]CKD!$E$14:$BG$230,38,0)","v":6907},{"$f":"VLOOKUP(A57,[3]PAD!$E$14:$BC$226,29,0)","v":1542},{"$f":"VLOOKUP($A57,[3]PAD!$E$14:$BC$226,34,0)","v":1797},{"$f":"VLOOKUP($A57,[3]PAD!$E$14:$BC$226,37,0)","v":1241},{"$f":"VLOOKUP($A57,[3]PAD!$E$14:$BC$226,42,0)","v":1797},{"$f":"VLOOKUP($A57,[3]STIA!$E$14:$CA$230,37,0)","v":3715},{"$f":"VLOOKUP($A57,[3]STIA!$E$14:$CA$230,42,0)","v":4266},{"$f":"VLOOKUP($A57,[3]STIA!$E$14:$CA$230,53,0)","v":1902},{"$f":"VLOOKUP($A57,[3]STIA!$E$14:$CA$230,58,0)","v":2727}]
["03C","NHS Leeds West",{"$f":"VLOOKUP($A58,'[6]201314'!$C$19:$J$256,8,0)","v":192},{"$f":"VLOOKUP($A58,'[6]201314'!$C$19:$J$256,7,0)","v":337601},{"$f":"VLOOKUP($A58,[7]Data!$A$6:$H$228,4,0)","v":456},{"$f":"VLOOKUP(A58,[3]CHD!$E$15:$H$226,4,0)","v":360907},{"$f":"VLOOKUP($A58,[7]Data!$A$6:$H$228,3,0)","v":1056},360907,{"$f":"VLOOKUP($A58,[7]Data!$A$6:$H$228,5,0)","v":385},360907,{"$f":"VLOOKUP($A58,[7]Data!$A$6:$H$228,6,0)","v":624},360907,{"$f":"VLOOKUP($A58,[7]Data!$A$6:$H$228,7,0)","v":333},360907,{"$f":"VLOOKUP($A58,[7]Data!$A$6:$H$228,8,0)","v":84},360907,{"$f":"VLOOKUP($A58,[8]CHD06!$E$15:$O$225,5,0)","v":9821},{"$f":"VLOOKUP($A58,[8]CHD06!$E$15:$O$225,10,0)","v":11063},{"$f":"VLOOKUP($A58,[8]CHD08!$E$15:$O$225,5,0)","v":8223},{"$f":"VLOOKUP($A58,[8]CHD08!$E$15:$O$225,10,0)","v":11063},{"$f":"VLOOKUP($A58,[9]BP05!$E$14:$O$225,5,0)","v":30618},{"$f":"VLOOKUP($A58,[9]BP05!$E$14:$O$225,10,0)","v":39439},{"$f":"VLOOKUP($A58,[10]CKD03!$E$14:$O$225,5,0)","v":6820},{"$f":"VLOOKUP($A58,[10]CKD03!$E$14:$O$225,10,0)","v":9587},{"$f":"VLOOKUP($A58,[11]PAD03!$E$14:$O$225,5,0)","v":2145},{"$f":"VLOOKUP($A58,[11]PAD03!$E$14:$O$225,10,0)","v":2514},{"$f":"VLOOKUP($A58,[11]PAD04!$E$14:$O$225,5,0)","v":1743},{"$f":"VLOOKUP($A58,[11]PAD04!$E$14:$O$225,10,0)","v":2514},{"$f":"VLOOKUP($A58,[12]STROKE06!$E$14:$O$225,5,0)","v":4639},{"$f":"VLOOKUP($A58,[12]STROKE06!$E$14:$O$225,10,0)","v":5368},{"$f":"VLOOKUP($A58,[12]STROKE08!$E$14:$O$225,5,0)","v":3742},{"$f":"VLOOKUP($A58,[12]STROKE08!$E$14:$O$225,10,0)","v":5368},null,null,null,null,null,null,null,null,null,null,null,null,null,null,{"$f":"VLOOKUP($A58,[3]CHD!$E$14:$BS$226,29,0)","v":9773},{"$f":"VLOOKUP($A58,[3]CHD!$E$14:$BS$226,34,0)","v":10873},{"$f":"VLOOKUP($A58,[3]CHD!$E$14:$BS$226,37,0)","v":8106},{"$f":"VLOOKUP($A58,[3]CHD!$E$14:$BS$226,42,0)","v":10873},{"$f":"VLOOKUP($A58,[3]HYP!$E$14:$BK$226,29,0)","v":31923},{"$f":"VLOOKUP($A58,[3]HYP!$E$14:$BK$226,34,0)","v":39723},{"$f":"VLOOKUP($A58,[3]CKD!$E$14:$BG$230,33,0)","v":5940},{"$f":"VLOOKUP($A58,[3]CKD!$E$14:$BG$230,38,0)","v":7694},{"$f":"VLOOKUP(A58,[3]PAD!$E$14:$BC$226,29,0)","v":2077},{"$f":"VLOOKUP($A58,[3]PAD!$E$14:$BC$226,34,0)","v":2414},{"$f":"VLOOKUP($A58,[3]PAD!$E$14:$BC$226,37,0)","v":1729},{"$f":"VLOOKUP($A58,[3]PAD!$E$14:$BC$226,42,0)","v":2414},{"$f":"VLOOKUP($A58,[3]STIA!$E$14:$CA$230,37,0)","v":4785},{"$f":"VLOOKUP($A58,[3]STIA!$E$14:$CA$230,42,0)","v":5514},{"$f":"VLOOKUP($A58,[3]STIA!$E$14:$CA$230,53,0)","v":2576},{"$f":"VLOOKUP($A58,[3]STIA!$E$14:$CA$230,58,0)","v":3601}]
["03D","NHS Hambleton, Richmondshire and Whitby",{"$f":"VLOOKUP($A59,'[6]201314'!$C$19:$J$256,8,0)","v":80},{"$f":"VLOOKUP($A59,'[6]201314'!$C$19:$J$256,7,0)","v":127653},{"$f":"VLOOKUP($A59,[7]Data!$A$6:$H$228,4,0)","v":366},{"$f":"VLOOKUP(A59,[3]CHD!$E$15:$H$226,4,0)","v":142072},{"$f":"VLOOKUP($A59,[7]Data!$A$6:$H$228,3,0)","v":612},142072,{"$f":"VLOOKUP($A59,[7]Data!$A$6:$H$228,5,0)","v":151},142072,{"$f":"VLOOKUP($A59,[7]Data!$A$6:$H$228,6,0)","v":507},142072,{"$f":"VLOOKUP($A59,[7]Data!$A$6:$H$228,7,0)","v":174},142072,{"$f":"VLOOKUP($A59,[7]Data!$A$6:$H$228,8,0)","v":67},142072,{"$f":"VLOOKUP($A59,[8]CHD06!$E$15:$O$225,5,0)","v":5356},{"$f":"VLOOKUP($A59,[8]CHD06!$E$15:$O$225,10,0)","v":5994},{"$f":"VLOOKUP($A59,[8]CHD08!$E$15:$O$225,5,0)","v":4493},{"$f":"VLOOKUP($A59,[8]CHD08!$E$15:$O$225,10,0)","v":5994},{"$f":"VLOOKUP($A59,[9]BP05!$E$14:$O$225,5,0)","v":17812},{"$f":"VLOOKUP($A59,[9]BP05!$E$14:$O$225,10,0)","v":22162},{"$f":"VLOOKUP($A59,[10]CKD03!$E$14:$O$225,5,0)","v":3037},{"$f":"VLOOKUP($A59,[10]CKD03!$E$14:$O$225,10,0)","v":4256},{"$f":"VLOOKUP($A59,[11]PAD03!$E$14:$O$225,5,0)","v":964},{"$f":"VLOOKUP($A59,[11]PAD03!$E$14:$O$225,10,0)","v":1137},{"$f":"VLOOKUP($A59,[11]PAD04!$E$14:$O$225,5,0)","v":774},{"$f":"VLOOKUP($A59,[11]PAD04!$E$14:$O$225,10,0)","v":1137},{"$f":"VLOOKUP($A59,[12]STROKE06!$E$14:$O$225,5,0)","v":2858},{"$f":"VLOOKUP($A59,[12]STROKE06!$E$14:$O$225,10,0)","v":3279},{"$f":"VLOOKUP($A59,[12]STROKE08!$E$14:$O$225,5,0)","v":2270},{"$f":"VLOOKUP($A59,[12]STROKE08!$E$14:$O$225,10,0)","v":3279},null,null,null,null,null,null,null,null,null,null,null,null,null,null,{"$f":"VLOOKUP($A59,[3]CHD!$E$14:$BS$226,29,0)","v":5504},{"$f":"VLOOKUP($A59,[3]CHD!$E$14:$BS$226,34,0)","v":6004},{"$f":"VLOOKUP($A59,[3]CHD!$E$14:$BS$226,37,0)","v":4596},{"$f":"VLOOKUP($A59,[3]CHD!$E$14:$BS$226,42,0)","v":6004},{"$f":"VLOOKUP($A59,[3]HYP!$E$14:$BK$226,29,0)","v":18539},{"$f":"VLOOKUP($A59,[3]HYP!$E$14:$BK$226,34,0)","v":22505},{"$f":"VLOOKUP($A59,[3]CKD!$E$14:$BG$230,33,0)","v":3488},{"$f":"VLOOKUP($A59,[3]CKD!$E$14:$BG$230,38,0)","v":4393},{"$f":"VLOOKUP(A59,[3]PAD!$E$14:$BC$226,29,0)","v":961},{"$f":"VLOOKUP($A59,[3]PAD!$E$14:$BC$226,34,0)","v":1100},{"$f":"VLOOKUP($A59,[3]PAD!$E$14:$BC$226,37,0)","v":787},{"$f":"VLOOKUP($A59,[3]PAD!$E$14:$BC$226,42,0)","v":1100},{"$f":"VLOOKUP($A59,[3]STIA!$E$14:$CA$230,37,0)","v":2968},{"$f":"VLOOKUP($A59,[3]STIA!$E$14:$CA$230,42,0)","v":3366},{"$f":"VLOOKUP($A59,[3]STIA!$E$14:$CA$230,53,0)","v":1747},{"$f":"VLOOKUP($A59,[3]STIA!$E$14:$CA$230,58,0)","v":2398}]
["03E","NHS Harrogate and Rural District",{"$f":"VLOOKUP($A60,'[6]201314'!$C$19:$J$256,8,0)","v":78},{"$f":"VLOOKUP($A60,'[6]201314'!$C$19:$J$256,7,0)","v":144343},{"$f":"VLOOKUP($A60,[7]Data!$A$6:$H$228,4,0)","v":287},{"$f":"VLOOKUP(A60,[3]CHD!$E$15:$H$226,4,0)","v":159805},{"$f":"VLOOKUP($A60,[7]Data!$A$6:$H$228,3,0)","v":1022},159805,{"$f":"VLOOKUP($A60,[7]Data!$A$6:$H$228,5,0)","v":148},159805,{"$f":"VLOOKUP($A60,[7]Data!$A$6:$H$228,6,0)","v":550},159805,{"$f":"VLOOKUP($A60,[7]Data!$A$6:$H$228,7,0)","v":227},159805,{"$f":"VLOOKUP($A60,[7]Data!$A$6:$H$228,8,0)","v":28},159805,{"$f":"VLOOKUP($A60,[8]CHD06!$E$15:$O$225,5,0)","v":5775},{"$f":"VLOOKUP($A60,[8]CHD06!$E$15:$O$225,10,0)","v":6399},{"$f":"VLOOKUP($A60,[8]CHD08!$E$15:$O$225,5,0)","v":4549},{"$f":"VLOOKUP($A60,[8]CHD08!$E$15:$O$225,10,0)","v":6399},{"$f":"VLOOKUP($A60,[9]BP05!$E$14:$O$225,5,0)","v":18611},{"$f":"VLOOKUP($A60,[9]BP05!$E$14:$O$225,10,0)","v":23586},{"$f":"VLOOKUP($A60,[10]CKD03!$E$14:$O$225,5,0)","v":3945},{"$f":"VLOOKUP($A60,[10]CKD03!$E$14:$O$225,10,0)","v":5382},{"$f":"VLOOKUP($A60,[11]PAD03!$E$14:$O$225,5,0)","v":1080},{"$f":"VLOOKUP($A60,[11]PAD03!$E$14:$O$225,10,0)","v":1236},{"$f":"VLOOKUP($A60,[11]PAD04!$E$14:$O$225,5,0)","v":823},{"$f":"VLOOKUP($A60,[11]PAD04!$E$14:$O$225,10,0)","v":1236},{"$f":"VLOOKUP($A60,[12]STROKE06!$E$14:$O$225,5,0)","v":2898},{"$f":"VLOOKUP($A60,[12]STROKE06!$E$14:$O$225,10,0)","v":3335},{"$f":"VLOOKUP($A60,[12]STROKE08!$E$14:$O$225,5,0)","v":2191},{"$f":"VLOOKUP($A60,[12]STROKE08!$E$14:$O$225,10,0)","v":3335},null,null,null,null,null,null,null,null,null,null,null,null,null,null,{"$f":"VLOOKUP($A60,[3]CHD!$E$14:$BS$226,29,0)","v":5901},{"$f":"VLOOKUP($A60,[3]CHD!$E$14:$BS$226,34,0)","v":6483},{"$f":"VLOOKUP($A60,[3]CHD!$E$14:$BS$226,37,0)","v":4496},{"$f":"VLOOKUP($A60,[3]CHD!$E$14:$BS$226,42,0)","v":6483},{"$f":"VLOOKUP($A60,[3]HYP!$E$14:$BK$226,29,0)","v":19590},{"$f":"VLOOKUP($A60,[3]HYP!$E$14:$BK$226,34,0)","v":23763},{"$f":"VLOOKUP($A60,[3]CKD!$E$14:$BG$230,33,0)","v":3988},{"$f":"VLOOKUP($A60,[3]CKD!$E$14:$BG$230,38,0)","v":5085},{"$f":"VLOOKUP(A60,[3]PAD!$E$14:$BC$226,29,0)","v":1054},{"$f":"VLOOKUP($A60,[3]PAD!$E$14:$BC$226,34,0)","v":1195},{"$f":"VLOOKUP($A60,[3]PAD!$E$14:$BC$226,37,0)","v":801},{"$f":"VLOOKUP($A60,[3]PAD!$E$14:$BC$226,42,0)","v":1195},{"$f":"VLOOKUP($A60,[3]STIA!$E$14:$CA$230,37,0)","v":3018},{"$f":"VLOOKUP($A60,[3]STIA!$E$14:$CA$230,42,0)","v":3420},{"$f":"VLOOKUP($A60,[3]STIA!$E$14:$CA$230,53,0)","v":1627},{"$f":"VLOOKUP($A60,[3]STIA!$E$14:$CA$230,58,0)","v":2528}]
["03F","NHS Hull",{"$f":"VLOOKUP($A61,'[6]201314'!$C$19:$J$256,8,0)","v":199},{"$f":"VLOOKUP($A61,'[6]201314'!$C$19:$J$256,7,0)","v":269479},{"$f":"VLOOKUP($A61,[7]Data!$A$6:$H$228,4,0)","v":353},{"$f":"VLOOKUP(A61,[3]CHD!$E$15:$H$226,4,0)","v":290383},{"$f":"VLOOKUP($A61,[7]Data!$A$6:$H$228,3,0)","v":1952},290383,{"$f":"VLOOKUP($A61,[7]Data!$A$6:$H$228,5,0)","v":321},290383,{"$f":"VLOOKUP($A61,[7]Data!$A$6:$H$228,6,0)","v":1013},290383,{"$f":"VLOOKUP($A61,[7]Data!$A$6:$H$228,7,0)","v":483},290383,{"$f":"VLOOKUP($A61,[7]Data!$A$6:$H$228,8,0)","v":70},290383,{"$f":"VLOOKUP($A61,[8]CHD06!$E$15:$O$225,5,0)","v":9888},{"$f":"VLOOKUP($A61,[8]CHD06!$E$15:$O$225,10,0)","v":11368},{"$f":"VLOOKUP($A61,[8]CHD08!$E$15:$O$225,5,0)","v":7856},{"$f":"VLOOKUP($A61,[8]CHD08!$E$15:$O$225,10,0)","v":11368},{"$f":"VLOOKUP($A61,[9]BP05!$E$14:$O$225,5,0)","v":31092},{"$f":"VLOOKUP($A61,[9]BP05!$E$14:$O$225,10,0)","v":40119},{"$f":"VLOOKUP($A61,[10]CKD03!$E$14:$O$225,5,0)","v":6806},{"$f":"VLOOKUP($A61,[10]CKD03!$E$14:$O$225,10,0)","v":9684},{"$f":"VLOOKUP($A61,[11]PAD03!$E$14:$O$225,5,0)","v":1488},{"$f":"VLOOKUP($A61,[11]PAD03!$E$14:$O$225,10,0)","v":1752},{"$f":"VLOOKUP($A61,[11]PAD04!$E$14:$O$225,5,0)","v":1153},{"$f":"VLOOKUP($A61,[11]PAD04!$E$14:$O$225,10,0)","v":1752},{"$f":"VLOOKUP($A61,[12]STROKE06!$E$14:$O$225,5,0)","v":3885},{"$f":"VLOOKUP($A61,[12]STROKE06!$E$14:$O$225,10,0)","v":4593},{"$f":"VLOOKUP($A61,[12]STROKE08!$E$14:$O$225,5,0)","v":2951},{"$f":"VLOOKUP($A61,[12]STROKE08!$E$14:$O$225,10,0)","v":4593},null,null,null,null,null,null,null,null,null,null,null,null,null,null,{"$f":"VLOOKUP($A61,[3]CHD!$E$14:$BS$226,29,0)","v":9884},{"$f":"VLOOKUP($A61,[3]CHD!$E$14:$BS$226,34,0)","v":11346},{"$f":"VLOOKUP($A61,[3]CHD!$E$14:$BS$226,37,0)","v":7655},{"$f":"VLOOKUP($A61,[3]CHD!$E$14:$BS$226,42,0)","v":11346},{"$f":"VLOOKUP($A61,[3]HYP!$E$14:$BK$226,29,0)","v":31540},{"$f":"VLOOKUP($A61,[3]HYP!$E$14:$BK$226,34,0)","v":40546},{"$f":"VLOOKUP($A61,[3]CKD!$E$14:$BG$230,33,0)","v":5467},{"$f":"VLOOKUP($A61,[3]CKD!$E$14:$BG$230,38,0)","v":7436},{"$f":"VLOOKUP(A61,[3]PAD!$E$14:$BC$226,29,0)","v":1433},{"$f":"VLOOKUP($A61,[3]PAD!$E$14:$BC$226,34,0)","v":1760},{"$f":"VLOOKUP($A61,[3]PAD!$E$14:$BC$226,37,0)","v":1092},{"$f":"VLOOKUP($A61,[3]PAD!$E$14:$BC$226,42,0)","v":1760},{"$f":"VLOOKUP($A61,[3]STIA!$E$14:$CA$230,37,0)","v":3767},{"$f":"VLOOKUP($A61,[3]STIA!$E$14:$CA$230,42,0)","v":4535},{"$f":"VLOOKUP($A61,[3]STIA!$E$14:$CA$230,53,0)","v":1811},{"$f":"VLOOKUP($A61,[3]STIA!$E$14:$CA$230,58,0)","v":2908}]
["03G","NHS Leeds South and East",{"$f":"VLOOKUP($A62,'[6]201314'!$C$19:$J$256,8,0)","v":179},{"$f":"VLOOKUP($A62,'[6]201314'!$C$19:$J$256,7,0)","v":245335},{"$f":"VLOOKUP($A62,[7]Data!$A$6:$H$228,4,0)","v":390},{"$f":"VLOOKUP(A62,[3]CHD!$E$15:$H$226,4,0)","v":263271},{"$f":"VLOOKUP($A62,[7]Data!$A$6:$H$228,3,0)","v":885},263271,{"$f":"VLOOKUP($A62,[7]Data!$A$6:$H$228,5,0)","v":371},263271,{"$f":"VLOOKUP($A62,[7]Data!$A$6:$H$228,6,0)","v":516},263271,{"$f":"VLOOKUP($A62,[7]Data!$A$6:$H$228,7,0)","v":295},263271,{"$f":"VLOOKUP($A62,[7]Data!$A$6:$H$228,8,0)","v":59},263271,{"$f":"VLOOKUP($A62,[8]CHD06!$E$15:$O$225,5,0)","v":8964},{"$f":"VLOOKUP($A62,[8]CHD06!$E$15:$O$225,10,0)","v":10009},{"$f":"VLOOKUP($A62,[8]CHD08!$E$15:$O$225,5,0)","v":7324},{"$f":"VLOOKUP($A62,[8]CHD08!$E$15:$O$225,10,0)","v":10009},{"$f":"VLOOKUP($A62,[9]BP05!$E$14:$O$225,5,0)","v":26794},{"$f":"VLOOKUP($A62,[9]BP05!$E$14:$O$225,10,0)","v":34505},{"$f":"VLOOKUP($A62,[10]CKD03!$E$14:$O$225,5,0)","v":6246},{"$f":"VLOOKUP($A62,[10]CKD03!$E$14:$O$225,10,0)","v":8350},{"$f":"VLOOKUP($A62,[11]PAD03!$E$14:$O$225,5,0)","v":1949},{"$f":"VLOOKUP($A62,[11]PAD03!$E$14:$O$225,10,0)","v":2272},{"$f":"VLOOKUP($A62,[11]PAD04!$E$14:$O$225,5,0)","v":1588},{"$f":"VLOOKUP($A62,[11]PAD04!$E$14:$O$225,10,0)","v":2272},{"$f":"VLOOKUP($A62,[12]STROKE06!$E$14:$O$225,5,0)","v":4229},{"$f":"VLOOKUP($A62,[12]STROKE06!$E$14:$O$225,10,0)","v":4864},{"$f":"VLOOKUP($A62,[12]STROKE08!$E$14:$O$225,5,0)","v":3306},{"$f":"VLOOKUP($A62,[12]STROKE08!$E$14:$O$225,10,0)","v":4864},null,null,null,null,null,null,null,null,null,null,null,null,null,null,{"$f":"VLOOKUP($A62,[3]CHD!$E$14:$BS$226,29,0)","v":8743},{"$f":"VLOOKUP($A62,[3]CHD!$E$14:$BS$226,34,0)","v":9797},{"$f":"VLOOKUP($A62,[3]CHD!$E$14:$BS$226,37,0)","v":7014},{"$f":"VLOOKUP($A62,[3]CHD!$E$14:$BS$226,42,0)","v":9797},{"$f":"VLOOKUP($A62,[3]HYP!$E$14:$BK$226,29,0)","v":27347},{"$f":"VLOOKUP($A62,[3]HYP!$E$14:$BK$226,34,0)","v":34600},{"$f":"VLOOKUP($A62,[3]CKD!$E$14:$BG$230,33,0)","v":4835},{"$f":"VLOOKUP($A62,[3]CKD!$E$14:$BG$230,38,0)","v":6296},{"$f":"VLOOKUP(A62,[3]PAD!$E$14:$BC$226,29,0)","v":1879},{"$f":"VLOOKUP($A62,[3]PAD!$E$14:$BC$226,34,0)","v":2205},{"$f":"VLOOKUP($A62,[3]PAD!$E$14:$BC$226,37,0)","v":1526},{"$f":"VLOOKUP($A62,[3]PAD!$E$14:$BC$226,42,0)","v":2205},{"$f":"VLOOKUP($A62,[3]STIA!$E$14:$CA$230,37,0)","v":4208},{"$f":"VLOOKUP($A62,[3]STIA!$E$14:$CA$230,42,0)","v":4892},{"$f":"VLOOKUP($A62,[3]STIA!$E$14:$CA$230,53,0)","v":2258},{"$f":"VLOOKUP($A62,[3]STIA!$E$14:$CA$230,58,0)","v":3296}]
["03H","NHS North East Lincolnshire",{"$f":"VLOOKUP($A63,'[6]201314'!$C$19:$J$256,8,0)","v":122},{"$f":"VLOOKUP($A63,'[6]201314'!$C$19:$J$256,7,0)","v":153818},{"$f":"VLOOKUP($A63,[7]Data!$A$6:$H$228,4,0)","v":220},{"$f":"VLOOKUP(A63,[3]CHD!$E$15:$H$226,4,0)","v":168197},{"$f":"VLOOKUP($A63,[7]Data!$A$6:$H$228,3,0)","v":1060},168197,{"$f":"VLOOKUP($A63,[7]Data!$A$6:$H$228,5,0)","v":199},168197,{"$f":"VLOOKUP($A63,[7]Data!$A$6:$H$228,6,0)","v":632},168197,{"$f":"VLOOKUP($A63,[7]Data!$A$6:$H$228,7,0)","v":218},168197,{"$f":"VLOOKUP($A63,[7]Data!$A$6:$H$228,8,0)","v":42},168197,{"$f":"VLOOKUP($A63,[8]CHD06!$E$15:$O$225,5,0)","v":6263},{"$f":"VLOOKUP($A63,[8]CHD06!$E$15:$O$225,10,0)","v":6866},{"$f":"VLOOKUP($A63,[8]CHD08!$E$15:$O$225,5,0)","v":5303},{"$f":"VLOOKUP($A63,[8]CHD08!$E$15:$O$225,10,0)","v":6866},{"$f":"VLOOKUP($A63,[9]BP05!$E$14:$O$225,5,0)","v":21727},{"$f":"VLOOKUP($A63,[9]BP05!$E$14:$O$225,10,0)","v":26881},{"$f":"VLOOKUP($A63,[10]CKD03!$E$14:$O$225,5,0)","v":5559},{"$f":"VLOOKUP($A63,[10]CKD03!$E$14:$O$225,10,0)","v":7312},{"$f":"VLOOKUP($A63,[11]PAD03!$E$14:$O$225,5,0)","v":1263},{"$f":"VLOOKUP($A63,[11]PAD03!$E$14:$O$225,10,0)","v":1413},{"$f":"VLOOKUP($A63,[11]PAD04!$E$14:$O$225,5,0)","v":1088},{"$f":"VLOOKUP($A63,[11]PAD04!$E$14:$O$225,10,0)","v":1413},{"$f":"VLOOKUP($A63,[12]STROKE06!$E$14:$O$225,5,0)","v":3134},{"$f":"VLOOKUP($A63,[12]STROKE06!$E$14:$O$225,10,0)","v":3536},{"$f":"VLOOKUP($A63,[12]STROKE08!$E$14:$O$225,5,0)","v":2552},{"$f":"VLOOKUP($A63,[12]STROKE08!$E$14:$O$225,10,0)","v":3536},null,null,null,null,null,null,null,null,null,null,null,null,null,null,{"$f":"VLOOKUP($A63,[3]CHD!$E$14:$BS$226,29,0)","v":6257},{"$f":"VLOOKUP($A63,[3]CHD!$E$14:$BS$226,34,0)","v":6770},{"$f":"VLOOKUP($A63,[3]CHD!$E$14:$BS$226,37,0)","v":5144},{"$f":"VLOOKUP($A63,[3]CHD!$E$14:$BS$226,42,0)","v":6770},{"$f":"VLOOKUP($A63,[3]HYP!$E$14:$BK$226,29,0)","v":22400},{"$f":"VLOOKUP($A63,[3]HYP!$E$14:$BK$226,34,0)","v":26974},{"$f":"VLOOKUP($A63,[3]CKD!$E$14:$BG$230,33,0)","v":4754},{"$f":"VLOOKUP($A63,[3]CKD!$E$14:$BG$230,38,0)","v":5876},{"$f":"VLOOKUP(A63,[3]PAD!$E$14:$BC$226,29,0)","v":1200},{"$f":"VLOOKUP($A63,[3]PAD!$E$14:$BC$226,34,0)","v":1334},{"$f":"VLOOKUP($A63,[3]PAD!$E$14:$BC$226,37,0)","v":998},{"$f":"VLOOKUP($A63,[3]PAD!$E$14:$BC$226,42,0)","v":1334},{"$f":"VLOOKUP($A63,[3]STIA!$E$14:$CA$230,37,0)","v":3268},{"$f":"VLOOKUP($A63,[3]STIA!$E$14:$CA$230,42,0)","v":3640},{"$f":"VLOOKUP($A63,[3]STIA!$E$14:$CA$230,53,0)","v":1854},{"$f":"VLOOKUP($A63,[3]STIA!$E$14:$CA$230,58,0)","v":2615}]
["03J","NHS North Kirklees",{"$f":"VLOOKUP($A64,'[6]201314'!$C$19:$J$256,8,0)","v":127},{"$f":"VLOOKUP($A64,'[6]201314'!$C$19:$J$256,7,0)","v":174635},{"$f":"VLOOKUP($A64,[7]Data!$A$6:$H$228,4,0)","v":268},{"$f":"VLOOKUP(A64,[3]CHD!$E$15:$H$226,4,0)","v":186789},{"$f":"VLOOKUP($A64,[7]Data!$A$6:$H$228,3,0)","v":984},186789,{"$f":"VLOOKUP($A64,[7]Data!$A$6:$H$228,5,0)","v":227},186789,{"$f":"VLOOKUP($A64,[7]Data!$A$6:$H$228,6,0)","v":469},186789,{"$f":"VLOOKUP($A64,[7]Data!$A$6:$H$228,7,0)","v":198},186789,{"$f":"VLOOKUP($A64,[7]Data!$A$6:$H$228,8,0)","v":66},186789,{"$f":"VLOOKUP($A64,[8]CHD06!$E$15:$O$225,5,0)","v":6532},{"$f":"VLOOKUP($A64,[8]CHD06!$E$15:$O$225,10,0)","v":7395},{"$f":"VLOOKUP($A64,[8]CHD08!$E$15:$O$225,5,0)","v":5519},{"$f":"VLOOKUP($A64,[8]CHD08!$E$15:$O$225,10,0)","v":7395},{"$f":"VLOOKUP($A64,[9]BP05!$E$14:$O$225,5,0)","v":20754},{"$f":"VLOOKUP($A64,[9]BP05!$E$14:$O$225,10,0)","v":26892},{"$f":"VLOOKUP($A64,[10]CKD03!$E$14:$O$225,5,0)","v":4807},{"$f":"VLOOKUP($A64,[10]CKD03!$E$14:$O$225,10,0)","v":6835},{"$f":"VLOOKUP($A64,[11]PAD03!$E$14:$O$225,5,0)","v":1118},{"$f":"VLOOKUP($A64,[11]PAD03!$E$14:$O$225,10,0)","v":1289},{"$f":"VLOOKUP($A64,[11]PAD04!$E$14:$O$225,5,0)","v":892},{"$f":"VLOOKUP($A64,[11]PAD04!$E$14:$O$225,10,0)","v":1289},{"$f":"VLOOKUP($A64,[12]STROKE06!$E$14:$O$225,5,0)","v":2535},{"$f":"VLOOKUP($A64,[12]STROKE06!$E$14:$O$225,10,0)","v":2969},{"$f":"VLOOKUP($A64,[12]STROKE08!$E$14:$O$225,5,0)","v":2079},{"$f":"VLOOKUP($A64,[12]STROKE08!$E$14:$O$225,10,0)","v":2969},null,null,null,null,null,null,null,null,null,null,null,null,null,null,{"$f":"VLOOKUP($A64,[3]CHD!$E$14:$BS$226,29,0)","v":6570},{"$f":"VLOOKUP($A64,[3]CHD!$E$14:$BS$226,34,0)","v":7386},{"$f":"VLOOKUP($A64,[3]CHD!$E$14:$BS$226,37,0)","v":5318},{"$f":"VLOOKUP($A64,[3]CHD!$E$14:$BS$226,42,0)","v":7386},{"$f":"VLOOKUP($A64,[3]HYP!$E$14:$BK$226,29,0)","v":21617},{"$f":"VLOOKUP($A64,[3]HYP!$E$14:$BK$226,34,0)","v":27383},{"$f":"VLOOKUP($A64,[3]CKD!$E$14:$BG$230,33,0)","v":3220},{"$f":"VLOOKUP($A64,[3]CKD!$E$14:$BG$230,38,0)","v":4383},{"$f":"VLOOKUP(A64,[3]PAD!$E$14:$BC$226,29,0)","v":1122},{"$f":"VLOOKUP($A64,[3]PAD!$E$14:$BC$226,34,0)","v":1298},{"$f":"VLOOKUP($A64,[3]PAD!$E$14:$BC$226,37,0)","v":863},{"$f":"VLOOKUP($A64,[3]PAD!$E$14:$BC$226,42,0)","v":1298},{"$f":"VLOOKUP($A64,[3]STIA!$E$14:$CA$230,37,0)","v":2623},{"$f":"VLOOKUP($A64,[3]STIA!$E$14:$CA$230,42,0)","v":3059},{"$f":"VLOOKUP($A64,[3]STIA!$E$14:$CA$230,53,0)","v":1346},{"$f":"VLOOKUP($A64,[3]STIA!$E$14:$CA$230,58,0)","v":2007}]
["03K","NHS North Lincolnshire",{"$f":"VLOOKUP($A65,'[6]201314'!$C$19:$J$256,8,0)","v":126},{"$f":"VLOOKUP($A65,'[6]201314'!$C$19:$J$256,7,0)","v":155265},{"$f":"VLOOKUP($A65,[7]Data!$A$6:$H$228,4,0)","v":186},{"$f":"VLOOKUP(A65,[3]CHD!$E$15:$H$226,4,0)","v":169743},{"$f":"VLOOKUP($A65,[7]Data!$A$6:$H$228,3,0)","v":1353},169743,{"$f":"VLOOKUP($A65,[7]Data!$A$6:$H$228,5,0)","v":197},169743,{"$f":"VLOOKUP($A65,[7]Data!$A$6:$H$228,6,0)","v":758},169743,{"$f":"VLOOKUP($A65,[7]Data!$A$6:$H$228,7,0)","v":310},169743,{"$f":"VLOOKUP($A65,[7]Data!$A$6:$H$228,8,0)","v":61},169743,{"$f":"VLOOKUP($A65,[8]CHD06!$E$15:$O$225,5,0)","v":6955},{"$f":"VLOOKUP($A65,[8]CHD06!$E$15:$O$225,10,0)","v":7766},{"$f":"VLOOKUP($A65,[8]CHD08!$E$15:$O$225,5,0)","v":5555},{"$f":"VLOOKUP($A65,[8]CHD08!$E$15:$O$225,10,0)","v":7766},{"$f":"VLOOKUP($A65,[9]BP05!$E$14:$O$225,5,0)","v":22257},{"$f":"VLOOKUP($A65,[9]BP05!$E$14:$O$225,10,0)","v":28337},{"$f":"VLOOKUP($A65,[10]CKD03!$E$14:$O$225,5,0)","v":4781},{"$f":"VLOOKUP($A65,[10]CKD03!$E$14:$O$225,10,0)","v":6470},{"$f":"VLOOKUP($A65,[11]PAD03!$E$14:$O$225,5,0)","v":950},{"$f":"VLOOKUP($A65,[11]PAD03!$E$14:$O$225,10,0)","v":1103},{"$f":"VLOOKUP($A65,[11]PAD04!$E$14:$O$225,5,0)","v":742},{"$f":"VLOOKUP($A65,[11]PAD04!$E$14:$O$225,10,0)","v":1103},{"$f":"VLOOKUP($A65,[12]STROKE06!$E$14:$O$225,5,0)","v":2929},{"$f":"VLOOKUP($A65,[12]STROKE06!$E$14:$O$225,10,0)","v":3362},{"$f":"VLOOKUP($A65,[12]STROKE08!$E$14:$O$225,5,0)","v":2337},{"$f":"VLOOKUP($A65,[12]STROKE08!$E$14:$O$225,10,0)","v":3362},null,null,null,null,null,null,null,null,null,null,null,null,null,null,{"$f":"VLOOKUP($A65,[3]CHD!$E$14:$BS$226,29,0)","v":6809},{"$f":"VLOOKUP($A65,[3]CHD!$E$14:$BS$226,34,0)","v":7762},{"$f":"VLOOKUP($A65,[3]CHD!$E$14:$BS$226,37,0)","v":5450},{"$f":"VLOOKUP($A65,[3]CHD!$E$14:$BS$226,42,0)","v":7762},{"$f":"VLOOKUP($A65,[3]HYP!$E$14:$BK$226,29,0)","v":22799},{"$f":"VLOOKUP($A65,[3]HYP!$E$14:$BK$226,34,0)","v":28739},{"$f":"VLOOKUP($A65,[3]CKD!$E$14:$BG$230,33,0)","v":3876},{"$f":"VLOOKUP($A65,[3]CKD!$E$14:$BG$230,38,0)","v":5241},{"$f":"VLOOKUP(A65,[3]PAD!$E$14:$BC$226,29,0)","v":943},{"$f":"VLOOKUP($A65,[3]PAD!$E$14:$BC$226,34,0)","v":1118},{"$f":"VLOOKUP($A65,[3]PAD!$E$14:$BC$226,37,0)","v":728},{"$f":"VLOOKUP($A65,[3]PAD!$E$14:$BC$226,42,0)","v":1118},{"$f":"VLOOKUP($A65,[3]STIA!$E$14:$CA$230,37,0)","v":2907},{"$f":"VLOOKUP($A65,[3]STIA!$E$14:$CA$230,42,0)","v":3417},{"$f":"VLOOKUP($A65,[3]STIA!$E$14:$CA$230,53,0)","v":1710},{"$f":"VLOOKUP($A65,[3]STIA!$E$14:$CA$230,58,0)","v":2482}]
["03L","NHS Rotherham",{"$f":"VLOOKUP($A66,'[6]201314'!$C$19:$J$256,8,0)","v":177},{"$f":"VLOOKUP($A66,'[6]201314'!$C$19:$J$256,7,0)","v":236637},{"$f":"VLOOKUP($A66,[7]Data!$A$6:$H$228,4,0)","v":392},{"$f":"VLOOKUP(A66,[3]CHD!$E$15:$H$226,4,0)","v":256641},{"$f":"VLOOKUP($A66,[7]Data!$A$6:$H$228,3,0)","v":1303},256641,{"$f":"VLOOKUP($A66,[7]Data!$A$6:$H$228,5,0)","v":297},256641,{"$f":"VLOOKUP($A66,[7]Data!$A$6:$H$228,6,0)","v":647},256641,{"$f":"VLOOKUP($A66,[7]Data!$A$6:$H$228,7,0)","v":193},256641,{"$f":"VLOOKUP($A66,[7]Data!$A$6:$H$228,8,0)","v":90},256641,{"$f":"VLOOKUP($A66,[8]CHD06!$E$15:$O$225,5,0)","v":10206},{"$f":"VLOOKUP($A66,[8]CHD06!$E$15:$O$225,10,0)","v":11393},{"$f":"VLOOKUP($A66,[8]CHD08!$E$15:$O$225,5,0)","v":8589},{"$f":"VLOOKUP($A66,[8]CHD08!$E$15:$O$225,10,0)","v":11393},{"$f":"VLOOKUP($A66,[9]BP05!$E$14:$O$225,5,0)","v":31919},{"$f":"VLOOKUP($A66,[9]BP05!$E$14:$O$225,10,0)","v":40453},{"$f":"VLOOKUP($A66,[10]CKD03!$E$14:$O$225,5,0)","v":7375},{"$f":"VLOOKUP($A66,[10]CKD03!$E$14:$O$225,10,0)","v":10297},{"$f":"VLOOKUP($A66,[11]PAD03!$E$14:$O$225,5,0)","v":1908},{"$f":"VLOOKUP($A66,[11]PAD03!$E$14:$O$225,10,0)","v":2196},{"$f":"VLOOKUP($A66,[11]PAD04!$E$14:$O$225,5,0)","v":1622},{"$f":"VLOOKUP($A66,[11]PAD04!$E$14:$O$225,10,0)","v":2196},{"$f":"VLOOKUP($A66,[12]STROKE06!$E$14:$O$225,5,0)","v":4682},{"$f":"VLOOKUP($A66,[12]STROKE06!$E$14:$O$225,10,0)","v":5369},{"$f":"VLOOKUP($A66,[12]STROKE08!$E$14:$O$225,5,0)","v":3879},{"$f":"VLOOKUP($A66,[12]STROKE08!$E$14:$O$225,10,0)","v":5369},null,null,null,null,null,null,null,null,null,null,null,null,null,null,{"$f":"VLOOKUP($A66,[3]CHD!$E$14:$BS$226,29,0)","v":9971},{"$f":"VLOOKUP($A66,[3]CHD!$E$14:$BS$226,34,0)","v":11121},{"$f":"VLOOKUP($A66,[3]CHD!$E$14:$BS$226,37,0)","v":8302},{"$f":"VLOOKUP($A66,[3]CHD!$E$14:$BS$226,42,0)","v":11121},{"$f":"VLOOKUP($A66,[3]HYP!$E$14:$BK$226,29,0)","v":32894},{"$f":"VLOOKUP($A66,[3]HYP!$E$14:$BK$226,34,0)","v":40734},{"$f":"VLOOKUP($A66,[3]CKD!$E$14:$BG$230,33,0)","v":7109},{"$f":"VLOOKUP($A66,[3]CKD!$E$14:$BG$230,38,0)","v":9320},{"$f":"VLOOKUP(A66,[3]PAD!$E$14:$BC$226,29,0)","v":1896},{"$f":"VLOOKUP($A66,[3]PAD!$E$14:$BC$226,34,0)","v":2181},{"$f":"VLOOKUP($A66,[3]PAD!$E$14:$BC$226,37,0)","v":1585},{"$f":"VLOOKUP($A66,[3]PAD!$E$14:$BC$226,42,0)","v":2181},{"$f":"VLOOKUP($A66,[3]STIA!$E$14:$CA$230,37,0)","v":4663},{"$f":"VLOOKUP($A66,[3]STIA!$E$14:$CA$230,42,0)","v":5340},{"$f":"VLOOKUP($A66,[3]STIA!$E$14:$CA$230,53,0)","v":2526},{"$f":"VLOOKUP($A66,[3]STIA!$E$14:$CA$230,58,0)","v":3556}]
["03M","NHS Scarborough and Ryedale",{"$f":"VLOOKUP($A67,'[6]201314'!$C$19:$J$256,8,0)","v":114},{"$f":"VLOOKUP($A67,'[6]201314'!$C$19:$J$256,7,0)","v":105607},{"$f":"VLOOKUP($A67,[7]Data!$A$6:$H$228,4,0)","v":233},{"$f":"VLOOKUP(A67,[3]CHD!$E$15:$H$226,4,0)","v":118176},{"$f":"VLOOKUP($A67,[7]Data!$A$6:$H$228,3,0)","v":898},118176,{"$f":"VLOOKUP($A67,[7]Data!$A$6:$H$228,5,0)","v":158},118176,{"$f":"VLOOKUP($A67,[7]Data!$A$6:$H$228,6,0)","v":421},118176,{"$f":"VLOOKUP($A67,[7]Data!$A$6:$H$228,7,0)","v":171},118176,{"$f":"VLOOKUP($A67,[7]Data!$A$6:$H$228,8,0)","v":40},118176,{"$f":"VLOOKUP($A67,[8]CHD06!$E$15:$O$225,5,0)","v":5067},{"$f":"VLOOKUP($A67,[8]CHD06!$E$15:$O$225,10,0)","v":5777},{"$f":"VLOOKUP($A67,[8]CHD08!$E$15:$O$225,5,0)","v":4213},{"$f":"VLOOKUP($A67,[8]CHD08!$E$15:$O$225,10,0)","v":5777},{"$f":"VLOOKUP($A67,[9]BP05!$E$14:$O$225,5,0)","v":14318},{"$f":"VLOOKUP($A67,[9]BP05!$E$14:$O$225,10,0)","v":18649},{"$f":"VLOOKUP($A67,[10]CKD03!$E$14:$O$225,5,0)","v":2746},{"$f":"VLOOKUP($A67,[10]CKD03!$E$14:$O$225,10,0)","v":4052},{"$f":"VLOOKUP($A67,[11]PAD03!$E$14:$O$225,5,0)","v":916},{"$f":"VLOOKUP($A67,[11]PAD03!$E$14:$O$225,10,0)","v":1081},{"$f":"VLOOKUP($A67,[11]PAD04!$E$14:$O$225,5,0)","v":703},{"$f":"VLOOKUP($A67,[11]PAD04!$E$14:$O$225,10,0)","v":1081},{"$f":"VLOOKUP($A67,[12]STROKE06!$E$14:$O$225,5,0)","v":2253},{"$f":"VLOOKUP($A67,[12]STROKE06!$E$14:$O$225,10,0)","v":2704},{"$f":"VLOOKUP($A67,[12]STROKE08!$E$14:$O$225,5,0)","v":1815},{"$f":"VLOOKUP($A67,[12]STROKE08!$E$14:$O$225,10,0)","v":2704},null,null,null,null,null,null,null,null,null,null,null,null,null,null,{"$f":"VLOOKUP($A67,[3]CHD!$E$14:$BS$226,29,0)","v":5033},{"$f":"VLOOKUP($A67,[3]CHD!$E$14:$BS$226,34,0)","v":5781},{"$f":"VLOOKUP($A67,[3]CHD!$E$14:$BS$226,37,0)","v":4150},{"$f":"VLOOKUP($A67,[3]CHD!$E$14:$BS$226,42,0)","v":5781},{"$f":"VLOOKUP($A67,[3]HYP!$E$14:$BK$226,29,0)","v":14988},{"$f":"VLOOKUP($A67,[3]HYP!$E$14:$BK$226,34,0)","v":19179},{"$f":"VLOOKUP($A67,[3]CKD!$E$14:$BG$230,33,0)","v":2943},{"$f":"VLOOKUP($A67,[3]CKD!$E$14:$BG$230,38,0)","v":4001},{"$f":"VLOOKUP(A67,[3]PAD!$E$14:$BC$226,29,0)","v":974},{"$f":"VLOOKUP($A67,[3]PAD!$E$14:$BC$226,34,0)","v":1150},{"$f":"VLOOKUP($A67,[3]PAD!$E$14:$BC$226,37,0)","v":747},{"$f":"VLOOKUP($A67,[3]PAD!$E$14:$BC$226,42,0)","v":1150},{"$f":"VLOOKUP($A67,[3]STIA!$E$14:$CA$230,37,0)","v":2295},{"$f":"VLOOKUP($A67,[3]STIA!$E$14:$CA$230,42,0)","v":2728},{"$f":"VLOOKUP($A67,[3]STIA!$E$14:$CA$230,53,0)","v":1204},{"$f":"VLOOKUP($A67,[3]STIA!$E$14:$CA$230,58,0)","v":1786}]
["03N","NHS Sheffield",{"$f":"VLOOKUP($A68,'[6]201314'!$C$19:$J$256,8,0)","v":368},{"$f":"VLOOKUP($A68,'[6]201314'!$C$19:$J$256,7,0)","v":533963},{"$f":"VLOOKUP($A68,[7]Data!$A$6:$H$228,4,0)","v":870},{"$f":"VLOOKUP(A68,[3]CHD!$E$15:$H$226,4,0)","v":578294},{"$f":"VLOOKUP($A68,[7]Data!$A$6:$H$228,3,0)","v":3359},578294,{"$f":"VLOOKUP($A68,[7]Data!$A$6:$H$228,5,0)","v":823},578294,{"$f":"VLOOKUP($A68,[7]Data!$A$6:$H$228,6,0)","v":1119},578294,{"$f":"VLOOKUP($A68,[7]Data!$A$6:$H$228,7,0)","v":547},578294,{"$f":"VLOOKUP($A68,[7]Data!$A$6:$H$228,8,0)","v":157},578294,{"$f":"VLOOKUP($A68,[8]CHD06!$E$15:$O$225,5,0)","v":19363},{"$f":"VLOOKUP($A68,[8]CHD06!$E$15:$O$225,10,0)","v":21862},{"$f":"VLOOKUP($A68,[8]CHD08!$E$15:$O$225,5,0)","v":15851},{"$f":"VLOOKUP($A68,[8]CHD08!$E$15:$O$225,10,0)","v":21862},{"$f":"VLOOKUP($A68,[9]BP05!$E$14:$O$225,5,0)","v":58549},{"$f":"VLOOKUP($A68,[9]BP05!$E$14:$O$225,10,0)","v":75968},{"$f":"VLOOKUP($A68,[10]CKD03!$E$14:$O$225,5,0)","v":15335},{"$f":"VLOOKUP($A68,[10]CKD03!$E$14:$O$225,10,0)","v":21757},{"$f":"VLOOKUP($A68,[11]PAD03!$E$14:$O$225,5,0)","v":3575},{"$f":"VLOOKUP($A68,[11]PAD03!$E$14:$O$225,10,0)","v":4206},{"$f":"VLOOKUP($A68,[11]PAD04!$E$14:$O$225,5,0)","v":2988},{"$f":"VLOOKUP($A68,[11]PAD04!$E$14:$O$225,10,0)","v":4206},{"$f":"VLOOKUP($A68,[12]STROKE06!$E$14:$O$225,5,0)","v":10327},{"$f":"VLOOKUP($A68,[12]STROKE06!$E$14:$O$225,10,0)","v":11977},{"$f":"VLOOKUP($A68,[12]STROKE08!$E$14:$O$225,5,0)","v":8148},{"$f":"VLOOKUP($A68,[12]STROKE08!$E$14:$O$225,10,0)","v":11977},null,null,null,null,null,null,null,null,null,null,null,null,null,null,{"$f":"VLOOKUP($A68,[3]CHD!$E$14:$BS$226,29,0)","v":19191},{"$f":"VLOOKUP($A68,[3]CHD!$E$14:$BS$226,34,0)","v":21431},{"$f":"VLOOKUP($A68,[3]CHD!$E$14:$BS$226,37,0)","v":15877},{"$f":"VLOOKUP($A68,[3]CHD!$E$14:$BS$226,42,0)","v":21431},{"$f":"VLOOKUP($A68,[3]HYP!$E$14:$BK$226,29,0)","v":60827},{"$f":"VLOOKUP($A68,[3]HYP!$E$14:$BK$226,34,0)","v":76226},{"$f":"VLOOKUP($A68,[3]CKD!$E$14:$BG$230,33,0)","v":14001},{"$f":"VLOOKUP($A68,[3]CKD!$E$14:$BG$230,38,0)","v":18676},{"$f":"VLOOKUP(A68,[3]PAD!$E$14:$BC$226,29,0)","v":3589},{"$f":"VLOOKUP($A68,[3]PAD!$E$14:$BC$226,34,0)","v":4187},{"$f":"VLOOKUP($A68,[3]PAD!$E$14:$BC$226,37,0)","v":3013},{"$f":"VLOOKUP($A68,[3]PAD!$E$14:$BC$226,42,0)","v":4187},{"$f":"VLOOKUP($A68,[3]STIA!$E$14:$CA$230,37,0)","v":10380},{"$f":"VLOOKUP($A68,[3]STIA!$E$14:$CA$230,42,0)","v":11921},{"$f":"VLOOKUP($A68,[3]STIA!$E$14:$CA$230,53,0)","v":5749},{"$f":"VLOOKUP($A68,[3]STIA!$E$14:$CA$230,58,0)","v":8177}]
["03Q","NHS Vale Of York",{"$f":"VLOOKUP($A69,'[6]201314'!$C$19:$J$256,8,0)","v":220},{"$f":"VLOOKUP($A69,'[6]201314'!$C$19:$J$256,7,0)","v":313724},{"$f":"VLOOKUP($A69,[7]Data!$A$6:$H$228,4,0)","v":456},{"$f":"VLOOKUP(A69,[3]CHD!$E$15:$H$226,4,0)","v":331817},{"$f":"VLOOKUP($A69,[7]Data!$A$6:$H$228,3,0)","v":1607},331817,{"$f":"VLOOKUP($A69,[7]Data!$A$6:$H$228,5,0)","v":356},331817,{"$f":"VLOOKUP($A69,[7]Data!$A$6:$H$228,6,0)","v":916},331817,{"$f":"VLOOKUP($A69,[7]Data!$A$6:$H$228,7,0)","v":407},331817,{"$f":"VLOOKUP($A69,[7]Data!$A$6:$H$228,8,0)","v":123},331817,{"$f":"VLOOKUP($A69,[8]CHD06!$E$15:$O$225,5,0)","v":10769},{"$f":"VLOOKUP($A69,[8]CHD06!$E$15:$O$225,10,0)","v":12230},{"$f":"VLOOKUP($A69,[8]CHD08!$E$15:$O$225,5,0)","v":8862},{"$f":"VLOOKUP($A69,[8]CHD08!$E$15:$O$225,10,0)","v":12230},{"$f":"VLOOKUP($A69,[9]BP05!$E$14:$O$225,5,0)","v":34879},{"$f":"VLOOKUP($A69,[9]BP05!$E$14:$O$225,10,0)","v":45326},{"$f":"VLOOKUP($A69,[10]CKD03!$E$14:$O$225,5,0)","v":7216},{"$f":"VLOOKUP($A69,[10]CKD03!$E$14:$O$225,10,0)","v":10444},{"$f":"VLOOKUP($A69,[11]PAD03!$E$14:$O$225,5,0)","v":2288},{"$f":"VLOOKUP($A69,[11]PAD03!$E$14:$O$225,10,0)","v":2643},{"$f":"VLOOKUP($A69,[11]PAD04!$E$14:$O$225,5,0)","v":1849},{"$f":"VLOOKUP($A69,[11]PAD04!$E$14:$O$225,10,0)","v":2643},{"$f":"VLOOKUP($A69,[12]STROKE06!$E$14:$O$225,5,0)","v":5561},{"$f":"VLOOKUP($A69,[12]STROKE06!$E$14:$O$225,10,0)","v":6556},{"$f":"VLOOKUP($A69,[12]STROKE08!$E$14:$O$225,5,0)","v":4286},{"$f":"VLOOKUP($A69,[12]STROKE08!$E$14:$O$225,10,0)","v":6556},null,null,null,null,null,null,null,null,null,null,null,null,null,null,{"$f":"VLOOKUP($A69,[3]CHD!$E$14:$BS$226,29,0)","v":10738},{"$f":"VLOOKUP($A69,[3]CHD!$E$14:$BS$226,34,0)","v":12116},{"$f":"VLOOKUP($A69,[3]CHD!$E$14:$BS$226,37,0)","v":8664},{"$f":"VLOOKUP($A69,[3]CHD!$E$14:$BS$226,42,0)","v":12116},{"$f":"VLOOKUP($A69,[3]HYP!$E$14:$BK$226,29,0)","v":36539},{"$f":"VLOOKUP($A69,[3]HYP!$E$14:$BK$226,34,0)","v":45719},{"$f":"VLOOKUP($A69,[3]CKD!$E$14:$BG$230,33,0)","v":7582},{"$f":"VLOOKUP($A69,[3]CKD!$E$14:$BG$230,38,0)","v":10214},{"$f":"VLOOKUP(A69,[3]PAD!$E$14:$BC$226,29,0)","v":2204},{"$f":"VLOOKUP($A69,[3]PAD!$E$14:$BC$226,34,0)","v":2571},{"$f":"VLOOKUP($A69,[3]PAD!$E$14:$BC$226,37,0)","v":1748},{"$f":"VLOOKUP($A69,[3]PAD!$E$14:$BC$226,42,0)","v":2571},{"$f":"VLOOKUP($A69,[3]STIA!$E$14:$CA$230,37,0)","v":5644},{"$f":"VLOOKUP($A69,[3]STIA!$E$14:$CA$230,42,0)","v":6595},{"$f":"VLOOKUP($A69,[3]STIA!$E$14:$CA$230,53,0)","v":2737},{"$f":"VLOOKUP($A69,[3]STIA!$E$14:$CA$230,58,0)","v":4227}]
["03R","NHS Wakefield",{"$f":"VLOOKUP($A70,'[6]201314'!$C$19:$J$256,8,0)","v":246},{"$f":"VLOOKUP($A70,'[6]201314'!$C$19:$J$256,7,0)","v":329976},{"$f":"VLOOKUP($A70,[7]Data!$A$6:$H$228,4,0)","v":599},{"$f":"VLOOKUP(A70,[3]CHD!$E$15:$H$226,4,0)","v":356302},{"$f":"VLOOKUP($A70,[7]Data!$A$6:$H$228,3,0)","v":1869},356302,{"$f":"VLOOKUP($A70,[7]Data!$A$6:$H$228,5,0)","v":498},356302,{"$f":"VLOOKUP($A70,[7]Data!$A$6:$H$228,6,0)","v":801},356302,{"$f":"VLOOKUP($A70,[7]Data!$A$6:$H$228,7,0)","v":420},356302,{"$f":"VLOOKUP($A70,[7]Data!$A$6:$H$228,8,0)","v":150},356302,{"$f":"VLOOKUP($A70,[8]CHD06!$E$15:$O$225,5,0)","v":14003},{"$f":"VLOOKUP($A70,[8]CHD06!$E$15:$O$225,10,0)","v":15612},{"$f":"VLOOKUP($A70,[8]CHD08!$E$15:$O$225,5,0)","v":11462},{"$f":"VLOOKUP($A70,[8]CHD08!$E$15:$O$225,10,0)","v":15612},{"$f":"VLOOKUP($A70,[9]BP05!$E$14:$O$225,5,0)","v":42216},{"$f":"VLOOKUP($A70,[9]BP05!$E$14:$O$225,10,0)","v":53858},{"$f":"VLOOKUP($A70,[10]CKD03!$E$14:$O$225,5,0)","v":9081},{"$f":"VLOOKUP($A70,[10]CKD03!$E$14:$O$225,10,0)","v":12075},{"$f":"VLOOKUP($A70,[11]PAD03!$E$14:$O$225,5,0)","v":2600},{"$f":"VLOOKUP($A70,[11]PAD03!$E$14:$O$225,10,0)","v":2988},{"$f":"VLOOKUP($A70,[11]PAD04!$E$14:$O$225,5,0)","v":2129},{"$f":"VLOOKUP($A70,[11]PAD04!$E$14:$O$225,10,0)","v":2988},{"$f":"VLOOKUP($A70,[12]STROKE06!$E$14:$O$225,5,0)","v":6535},{"$f":"VLOOKUP($A70,[12]STROKE06!$E$14:$O$225,10,0)","v":7433},{"$f":"VLOOKUP($A70,[12]STROKE08!$E$14:$O$225,5,0)","v":5231},{"$f":"VLOOKUP($A70,[12]STROKE08!$E$14:$O$225,10,0)","v":7433},null,null,null,null,null,null,null,null,null,null,null,null,null,null,{"$f":"VLOOKUP($A70,[3]CHD!$E$14:$BS$226,29,0)","v":13886},{"$f":"VLOOKUP($A70,[3]CHD!$E$14:$BS$226,34,0)","v":15408},{"$f":"VLOOKUP($A70,[3]CHD!$E$14:$BS$226,37,0)","v":11065},{"$f":"VLOOKUP($A70,[3]CHD!$E$14:$BS$226,42,0)","v":15408},{"$f":"VLOOKUP($A70,[3]HYP!$E$14:$BK$226,29,0)","v":44188},{"$f":"VLOOKUP($A70,[3]HYP!$E$14:$BK$226,34,0)","v":54645},{"$f":"VLOOKUP($A70,[3]CKD!$E$14:$BG$230,33,0)","v":8928},{"$f":"VLOOKUP($A70,[3]CKD!$E$14:$BG$230,38,0)","v":11202},{"$f":"VLOOKUP(A70,[3]PAD!$E$14:$BC$226,29,0)","v":2536},{"$f":"VLOOKUP($A70,[3]PAD!$E$14:$BC$226,34,0)","v":2935},{"$f":"VLOOKUP($A70,[3]PAD!$E$14:$BC$226,37,0)","v":1997},{"$f":"VLOOKUP($A70,[3]PAD!$E$14:$BC$226,42,0)","v":2935},{"$f":"VLOOKUP($A70,[3]STIA!$E$14:$CA$230,37,0)","v":6600},{"$f":"VLOOKUP($A70,[3]STIA!$E$14:$CA$230,42,0)","v":7510},{"$f":"VLOOKUP($A70,[3]STIA!$E$14:$CA$230,53,0)","v":3391},{"$f":"VLOOKUP($A70,[3]STIA!$E$14:$CA$230,58,0)","v":4845}]
["03T","NHS Lincolnshire East",{"$f":"VLOOKUP($A71,'[6]201314'!$C$19:$J$256,8,0)","v":240},{"$f":"VLOOKUP($A71,'[6]201314'!$C$19:$J$256,7,0)","v":216597},{"$f":"VLOOKUP($A71,[7]Data!$A$6:$H$228,4,0)","v":497},{"$f":"VLOOKUP(A71,[3]CHD!$E$15:$H$226,4,0)","v":242313},{"$f":"VLOOKUP($A71,[7]Data!$A$6:$H$228,3,0)","v":1897},{"$f":"F71","v":242313},{"$f":"VLOOKUP($A71,[7]Data!$A$6:$H$228,5,0)","v":440},{"$f":"F71","v":242313},{"$f":"VLOOKUP($A71,[7]Data!$A$6:$H$228,6,0)","v":1014},{"$f":"F71","v":242313},{"$f":"VLOOKUP($A71,[7]Data!$A$6:$H$228,7,0)","v":433},{"$f":"F71","v":242313},{"$f":"VLOOKUP($A71,[7]Data!$A$6:$H$228,8,0)","v":116},{"$f":"F71","v":242313},{"$f":"VLOOKUP($A71,[8]CHD06!$E$15:$O$225,5,0)","v":11153},{"$f":"VLOOKUP($A71,[8]CHD06!$E$15:$O$225,10,0)","v":12702},{"$f":"VLOOKUP($A71,[8]CHD08!$E$15:$O$225,5,0)","v":9038},{"$f":"VLOOKUP($A71,[8]CHD08!$E$15:$O$225,10,0)","v":12702},{"$f":"VLOOKUP($A71,[9]BP05!$E$14:$O$225,5,0)","v":32837},{"$f":"VLOOKUP($A71,[9]BP05!$E$14:$O$225,10,0)","v":41992},{"$f":"VLOOKUP($A71,[10]CKD03!$E$14:$O$225,5,0)","v":10728},{"$f":"VLOOKUP($A71,[10]CKD03!$E$14:$O$225,10,0)","v":14754},{"$f":"VLOOKUP($A71,[11]PAD03!$E$14:$O$225,5,0)","v":1843},{"$f":"VLOOKUP($A71,[11]PAD03!$E$14:$O$225,10,0)","v":2166},{"$f":"VLOOKUP($A71,[11]PAD04!$E$14:$O$225,5,0)","v":1428},{"$f":"VLOOKUP($A71,[11]PAD04!$E$14:$O$225,10,0)","v":2166},{"$f":"VLOOKUP($A71,[12]STROKE06!$E$14:$O$225,5,0)","v":5195},{"$f":"VLOOKUP($A71,[12]STROKE06!$E$14:$O$225,10,0)","v":6052},{"$f":"VLOOKUP($A71,[12]STROKE08!$E$14:$O$225,5,0)","v":4043},{"$f":"VLOOKUP($A71,[12]STROKE08!$E$14:$O$225,10,0)","v":6052},null,null,null,null,null,null,null,null,null,null,null,null,null,null,{"$f":"VLOOKUP($A71,[3]CHD!$E$14:$BS$226,29,0)","v":10988},{"$f":"VLOOKUP($A71,[3]CHD!$E$14:$BS$226,34,0)","v":12549},{"$f":"VLOOKUP($A71,[3]CHD!$E$14:$BS$226,37,0)","v":10692},{"$f":"VLOOKUP($A71,[3]CHD!$E$14:$BS$226,42,0)","v":12549},{"$f":"VLOOKUP($A71,[3]HYP!$E$14:$BK$226,29,0)","v":33087},{"$f":"VLOOKUP($A71,[3]HYP!$E$14:$BK$226,34,0)","v":42583},{"$f":"VLOOKUP($A71,[3]CKD!$E$14:$BG$230,33,0)","v":9577},{"$f":"VLOOKUP($A71,[3]CKD!$E$14:$BG$230,38,0)","v":12670},{"$f":"VLOOKUP(A71,[3]PAD!$E$14:$BC$226,29,0)","v":1768},{"$f":"VLOOKUP($A71,[3]PAD!$E$14:$BC$226,34,0)","v":2101},{"$f":"VLOOKUP($A71,[3]PAD!$E$14:$BC$226,37,0)","v":1761},{"$f":"VLOOKUP($A71,[3]PAD!$E$14:$BC$226,42,0)","v":2101},{"$f":"VLOOKUP($A71,[3]STIA!$E$14:$CA$230,37,0)","v":5313},{"$f":"VLOOKUP($A71,[3]STIA!$E$14:$CA$230,42,0)","v":6296},{"$f":"VLOOKUP($A71,[3]STIA!$E$14:$CA$230,53,0)","v":3366},{"$f":"VLOOKUP($A71,[3]STIA!$E$14:$CA$230,58,0)","v":4062}]
["03V","NHS Corby",{"$f":"VLOOKUP($A72,'[6]201314'!$C$19:$J$256,8,0)","v":60},{"$f":"VLOOKUP($A72,'[6]201314'!$C$19:$J$256,7,0)","v":66498},{"$f":"VLOOKUP($A72,[7]Data!$A$6:$H$228,4,0)","v":150},{"$f":"VLOOKUP(A72,[3]CHD!$E$15:$H$226,4,0)","v":70502},{"$f":"VLOOKUP($A72,[7]Data!$A$6:$H$228,3,0)","v":589},70502,{"$f":"VLOOKUP($A72,[7]Data!$A$6:$H$228,5,0)","v":75},70502,{"$f":"VLOOKUP($A72,[7]Data!$A$6:$H$228,6,0)","v":502},70502,{"$f":"VLOOKUP($A72,[7]Data!$A$6:$H$228,7,0)","v":286},70502,{"$f":"VLOOKUP($A72,[7]Data!$A$6:$H$228,8,0)","v":10},70502,{"$f":"VLOOKUP($A72,[8]CHD06!$E$15:$O$225,5,0)","v":2131},{"$f":"VLOOKUP($A72,[8]CHD06!$E$15:$O$225,10,0)","v":2369},{"$f":"VLOOKUP($A72,[8]CHD08!$E$15:$O$225,5,0)","v":1747},{"$f":"VLOOKUP($A72,[8]CHD08!$E$15:$O$225,10,0)","v":2369},{"$f":"VLOOKUP($A72,[9]BP05!$E$14:$O$225,5,0)","v":6786},{"$f":"VLOOKUP($A72,[9]BP05!$E$14:$O$225,10,0)","v":8387},{"$f":"VLOOKUP($A72,[10]CKD03!$E$14:$O$225,5,0)","v":1782},{"$f":"VLOOKUP($A72,[10]CKD03!$E$14:$O$225,10,0)","v":2278},{"$f":"VLOOKUP($A72,[11]PAD03!$E$14:$O$225,5,0)","v":463},{"$f":"VLOOKUP($A72,[11]PAD03!$E$14:$O$225,10,0)","v":542},{"$f":"VLOOKUP($A72,[11]PAD04!$E$14:$O$225,5,0)","v":387},{"$f":"VLOOKUP($A72,[11]PAD04!$E$14:$O$225,10,0)","v":542},{"$f":"VLOOKUP($A72,[12]STROKE06!$E$14:$O$225,5,0)","v":1098},{"$f":"VLOOKUP($A72,[12]STROKE06!$E$14:$O$225,10,0)","v":1248},{"$f":"VLOOKUP($A72,[12]STROKE08!$E$14:$O$225,5,0)","v":886},{"$f":"VLOOKUP($A72,[12]STROKE08!$E$14:$O$225,10,0)","v":1248},null,null,null,null,null,null,null,null,null,null,null,null,null,null,{"$f":"VLOOKUP($A72,[3]CHD!$E$14:$BS$226,29,0)","v":2226},{"$f":"VLOOKUP($A72,[3]CHD!$E$14:$BS$226,34,0)","v":2448},{"$f":"VLOOKUP($A72,[3]CHD!$E$14:$BS$226,37,0)","v":1875},{"$f":"VLOOKUP($A72,[3]CHD!$E$14:$BS$226,42,0)","v":2448},{"$f":"VLOOKUP($A72,[3]HYP!$E$14:$BK$226,29,0)","v":7269},{"$f":"VLOOKUP($A72,[3]HYP!$E$14:$BK$226,34,0)","v":8594},{"$f":"VLOOKUP($A72,[3]CKD!$E$14:$BG$230,33,0)","v":1628},{"$f":"VLOOKUP($A72,[3]CKD!$E$14:$BG$230,38,0)","v":1986},{"$f":"VLOOKUP(A72,[3]PAD!$E$14:$BC$226,29,0)","v":482},{"$f":"VLOOKUP($A72,[3]PAD!$E$14:$BC$226,34,0)","v":544},{"$f":"VLOOKUP($A72,[3]PAD!$E$14:$BC$226,37,0)","v":415},{"$f":"VLOOKUP($A72,[3]PAD!$E$14:$BC$226,42,0)","v":544},{"$f":"VLOOKUP($A72,[3]STIA!$E$14:$CA$230,37,0)","v":1163},{"$f":"VLOOKUP($A72,[3]STIA!$E$14:$CA$230,42,0)","v":1322},{"$f":"VLOOKUP($A72,[3]STIA!$E$14:$CA$230,53,0)","v":694},{"$f":"VLOOKUP($A72,[3]STIA!$E$14:$CA$230,58,0)","v":930}]
["03W","NHS East Leicestershire and Rutland",{"$f":"VLOOKUP($A73,'[6]201314'!$C$19:$J$256,8,0)","v":163},{"$f":"VLOOKUP($A73,'[6]201314'!$C$19:$J$256,7,0)","v":290534},{"$f":"VLOOKUP($A73,[7]Data!$A$6:$H$228,4,0)","v":565},{"$f":"VLOOKUP(A73,[3]CHD!$E$15:$H$226,4,0)","v":317643},{"$f":"VLOOKUP($A73,[7]Data!$A$6:$H$228,3,0)","v":1315},317643,{"$f":"VLOOKUP($A73,[7]Data!$A$6:$H$228,5,0)","v":412},317643,{"$f":"VLOOKUP($A73,[7]Data!$A$6:$H$228,6,0)","v":1115},317643,{"$f":"VLOOKUP($A73,[7]Data!$A$6:$H$228,7,0)","v":517},317643,{"$f":"VLOOKUP($A73,[7]Data!$A$6:$H$228,8,0)","v":83},317643,{"$f":"VLOOKUP($A73,[8]CHD06!$E$15:$O$225,5,0)","v":9487},{"$f":"VLOOKUP($A73,[8]CHD06!$E$15:$O$225,10,0)","v":10837},{"$f":"VLOOKUP($A73,[8]CHD08!$E$15:$O$225,5,0)","v":8084},{"$f":"VLOOKUP($A73,[8]CHD08!$E$15:$O$225,10,0)","v":10837},{"$f":"VLOOKUP($A73,[9]BP05!$E$14:$O$225,5,0)","v":35607},{"$f":"VLOOKUP($A73,[9]BP05!$E$14:$O$225,10,0)","v":46917},{"$f":"VLOOKUP($A73,[10]CKD03!$E$14:$O$225,5,0)","v":7895},{"$f":"VLOOKUP($A73,[10]CKD03!$E$14:$O$225,10,0)","v":10999},{"$f":"VLOOKUP($A73,[11]PAD03!$E$14:$O$225,5,0)","v":1431},{"$f":"VLOOKUP($A73,[11]PAD03!$E$14:$O$225,10,0)","v":1685},{"$f":"VLOOKUP($A73,[11]PAD04!$E$14:$O$225,5,0)","v":1186},{"$f":"VLOOKUP($A73,[11]PAD04!$E$14:$O$225,10,0)","v":1685},{"$f":"VLOOKUP($A73,[12]STROKE06!$E$14:$O$225,5,0)","v":4764},{"$f":"VLOOKUP($A73,[12]STROKE06!$E$14:$O$225,10,0)","v":5587},{"$f":"VLOOKUP($A73,[12]STROKE08!$E$14:$O$225,5,0)","v":3992},{"$f":"VLOOKUP($A73,[12]STROKE08!$E$14:$O$225,10,0)","v":5587},null,null,null,null,null,null,null,null,null,null,null,null,null,null,{"$f":"VLOOKUP($A73,[3]CHD!$E$14:$BS$226,29,0)","v":9484},{"$f":"VLOOKUP($A73,[3]CHD!$E$14:$BS$226,34,0)","v":10739},{"$f":"VLOOKUP($A73,[3]CHD!$E$14:$BS$226,37,0)","v":9352},{"$f":"VLOOKUP($A73,[3]CHD!$E$14:$BS$226,42,0)","v":10739},{"$f":"VLOOKUP($A73,[3]HYP!$E$14:$BK$226,29,0)","v":37694},{"$f":"VLOOKUP($A73,[3]HYP!$E$14:$BK$226,34,0)","v":47770},{"$f":"VLOOKUP($A73,[3]CKD!$E$14:$BG$230,33,0)","v":7890},{"$f":"VLOOKUP($A73,[3]CKD!$E$14:$BG$230,38,0)","v":10344},{"$f":"VLOOKUP(A73,[3]PAD!$E$14:$BC$226,29,0)","v":1475},{"$f":"VLOOKUP($A73,[3]PAD!$E$14:$BC$226,34,0)","v":1698},{"$f":"VLOOKUP($A73,[3]PAD!$E$14:$BC$226,37,0)","v":1406},{"$f":"VLOOKUP($A73,[3]PAD!$E$14:$BC$226,42,0)","v":1698},{"$f":"VLOOKUP($A73,[3]STIA!$E$14:$CA$230,37,0)","v":4873},{"$f":"VLOOKUP($A73,[3]STIA!$E$14:$CA$230,42,0)","v":5738},{"$f":"VLOOKUP($A73,[3]STIA!$E$14:$CA$230,53,0)","v":3464},{"$f":"VLOOKUP($A73,[3]STIA!$E$14:$CA$230,58,0)","v":4061}]
["03X","NHS Erewash",{"$f":"VLOOKUP($A74,'[6]201314'!$C$19:$J$256,8,0)","v":62},{"$f":"VLOOKUP($A74,'[6]201314'!$C$19:$J$256,7,0)","v":88748},{"$f":"VLOOKUP($A74,[7]Data!$A$6:$H$228,4,0)","v":162},{"$f":"VLOOKUP(A74,[3]CHD!$E$15:$H$226,4,0)","v":95875},{"$f":"VLOOKUP($A74,[7]Data!$A$6:$H$228,3,0)","v":455},95875,{"$f":"VLOOKUP($A74,[7]Data!$A$6:$H$228,5,0)","v":122},95875,{"$f":"VLOOKUP($A74,[7]Data!$A$6:$H$228,6,0)","v":252},95875,{"$f":"VLOOKUP($A74,[7]Data!$A$6:$H$228,7,0)","v":125},95875,{"$f":"VLOOKUP($A74,[7]Data!$A$6:$H$228,8,0)","v":25},95875,{"$f":"VLOOKUP($A74,[8]CHD06!$E$15:$O$225,5,0)","v":3162},{"$f":"VLOOKUP($A74,[8]CHD06!$E$15:$O$225,10,0)","v":3570},{"$f":"VLOOKUP($A74,[8]CHD08!$E$15:$O$225,5,0)","v":2536},{"$f":"VLOOKUP($A74,[8]CHD08!$E$15:$O$225,10,0)","v":3639},{"$f":"VLOOKUP($A74,[9]BP05!$E$14:$O$225,5,0)","v":11876},{"$f":"VLOOKUP($A74,[9]BP05!$E$14:$O$225,10,0)","v":15146},{"$f":"VLOOKUP($A74,[10]CKD03!$E$14:$O$225,5,0)","v":3783},{"$f":"VLOOKUP($A74,[10]CKD03!$E$14:$O$225,10,0)","v":5449},{"$f":"VLOOKUP($A74,[11]PAD03!$E$14:$O$225,5,0)","v":619},{"$f":"VLOOKUP($A74,[11]PAD03!$E$14:$O$225,10,0)","v":723},{"$f":"VLOOKUP($A74,[11]PAD04!$E$14:$O$225,5,0)","v":511},{"$f":"VLOOKUP($A74,[11]PAD04!$E$14:$O$225,10,0)","v":743},{"$f":"VLOOKUP($A74,[12]STROKE06!$E$14:$O$225,5,0)","v":1630},{"$f":"VLOOKUP($A74,[12]STROKE06!$E$14:$O$225,10,0)","v":1906},{"$f":"VLOOKUP($A74,[12]STROKE08!$E$14:$O$225,5,0)","v":1249},{"$f":"VLOOKUP($A74,[12]STROKE08!$E$14:$O$225,10,0)","v":1934},null,null,null,null,null,null,null,null,null,null,null,null,null,null,{"$f":"VLOOKUP($A74,[3]CHD!$E$14:$BS$226,29,0)","v":3169},{"$f":"VLOOKUP($A74,[3]CHD!$E$14:$BS$226,34,0)","v":3518},{"$f":"VLOOKUP($A74,[3]CHD!$E$14:$BS$226,37,0)","v":2355},{"$f":"VLOOKUP($A74,[3]CHD!$E$14:$BS$226,42,0)","v":3518},{"$f":"VLOOKUP($A74,[3]HYP!$E$14:$BK$226,29,0)","v":12342},{"$f":"VLOOKUP($A74,[3]HYP!$E$14:$BK$226,34,0)","v":15317},{"$f":"VLOOKUP($A74,[3]CKD!$E$14:$BG$230,33,0)","v":3934},{"$f":"VLOOKUP($A74,[3]CKD!$E$14:$BG$230,38,0)","v":5281},{"$f":"VLOOKUP(A74,[3]PAD!$E$14:$BC$226,29,0)","v":607},{"$f":"VLOOKUP($A74,[3]PAD!$E$14:$BC$226,34,0)","v":711},{"$f":"VLOOKUP($A74,[3]PAD!$E$14:$BC$226,37,0)","v":429},{"$f":"VLOOKUP($A74,[3]PAD!$E$14:$BC$226,42,0)","v":711},{"$f":"VLOOKUP($A74,[3]STIA!$E$14:$CA$230,37,0)","v":1645},{"$f":"VLOOKUP($A74,[3]STIA!$E$14:$CA$230,42,0)","v":1917},{"$f":"VLOOKUP($A74,[3]STIA!$E$14:$CA$230,53,0)","v":790},{"$f":"VLOOKUP($A74,[3]STIA!$E$14:$CA$230,58,0)","v":1242}]
["03Y","NHS Hardwick",{"$f":"VLOOKUP($A75,'[6]201314'!$C$19:$J$256,8,0)","v":81},{"$f":"VLOOKUP($A75,'[6]201314'!$C$19:$J$256,7,0)","v":93198},{"$f":"VLOOKUP($A75,[7]Data!$A$6:$H$228,4,0)","v":183},{"$f":"VLOOKUP(A75,[3]CHD!$E$15:$H$226,4,0)","v":102355},{"$f":"VLOOKUP($A75,[7]Data!$A$6:$H$228,3,0)","v":611},102355,{"$f":"VLOOKUP($A75,[7]Data!$A$6:$H$228,5,0)","v":157},102355,{"$f":"VLOOKUP($A75,[7]Data!$A$6:$H$228,6,0)","v":270},102355,{"$f":"VLOOKUP($A75,[7]Data!$A$6:$H$228,7,0)","v":135},102355,{"$f":"VLOOKUP($A75,[7]Data!$A$6:$H$228,8,0)","v":24},102355,{"$f":"VLOOKUP($A75,[8]CHD06!$E$15:$O$225,5,0)","v":4259},{"$f":"VLOOKUP($A75,[8]CHD06!$E$15:$O$225,10,0)","v":4860},{"$f":"VLOOKUP($A75,[8]CHD08!$E$15:$O$225,5,0)","v":3430},{"$f":"VLOOKUP($A75,[8]CHD08!$E$15:$O$225,10,0)","v":4860},{"$f":"VLOOKUP($A75,[9]BP05!$E$14:$O$225,5,0)","v":13554},{"$f":"VLOOKUP($A75,[9]BP05!$E$14:$O$225,10,0)","v":17906},{"$f":"VLOOKUP($A75,[10]CKD03!$E$14:$O$225,5,0)","v":3092},{"$f":"VLOOKUP($A75,[10]CKD03!$E$14:$O$225,10,0)","v":4556},{"$f":"VLOOKUP($A75,[11]PAD03!$E$14:$O$225,5,0)","v":792},{"$f":"VLOOKUP($A75,[11]PAD03!$E$14:$O$225,10,0)","v":914},{"$f":"VLOOKUP($A75,[11]PAD04!$E$14:$O$225,5,0)","v":749},{"$f":"VLOOKUP($A75,[11]PAD04!$E$14:$O$225,10,0)","v":932},{"$f":"VLOOKUP($A75,[12]STROKE06!$E$14:$O$225,5,0)","v":1915},{"$f":"VLOOKUP($A75,[12]STROKE06!$E$14:$O$225,10,0)","v":2251},{"$f":"VLOOKUP($A75,[12]STROKE08!$E$14:$O$225,5,0)","v":1645},{"$f":"VLOOKUP($A75,[12]STROKE08!$E$14:$O$225,10,0)","v":2251},null,null,null,null,null,null,null,null,null,null,null,null,null,null,{"$f":"VLOOKUP($A75,[3]CHD!$E$14:$BS$226,29,0)","v":4267},{"$f":"VLOOKUP($A75,[3]CHD!$E$14:$BS$226,34,0)","v":4834},{"$f":"VLOOKUP($A75,[3]CHD!$E$14:$BS$226,37,0)","v":3226},{"$f":"VLOOKUP($A75,[3]CHD!$E$14:$BS$226,42,0)","v":4834},{"$f":"VLOOKUP($A75,[3]HYP!$E$14:$BK$226,29,0)","v":14278},{"$f":"VLOOKUP($A75,[3]HYP!$E$14:$BK$226,34,0)","v":18156},{"$f":"VLOOKUP($A75,[3]CKD!$E$14:$BG$230,33,0)","v":2362},{"$f":"VLOOKUP($A75,[3]CKD!$E$14:$BG$230,38,0)","v":3191},{"$f":"VLOOKUP(A75,[3]PAD!$E$14:$BC$226,29,0)","v":774},{"$f":"VLOOKUP($A75,[3]PAD!$E$14:$BC$226,34,0)","v":899},{"$f":"VLOOKUP($A75,[3]PAD!$E$14:$BC$226,37,0)","v":569},{"$f":"VLOOKUP($A75,[3]PAD!$E$14:$BC$226,42,0)","v":899},{"$f":"VLOOKUP($A75,[3]STIA!$E$14:$CA$230,37,0)","v":1979},{"$f":"VLOOKUP($A75,[3]STIA!$E$14:$CA$230,42,0)","v":2294},{"$f":"VLOOKUP($A75,[3]STIA!$E$14:$CA$230,53,0)","v":944},{"$f":"VLOOKUP($A75,[3]STIA!$E$14:$CA$230,58,0)","v":1523}]
["04C","NHS Leicester City",{"$f":"VLOOKUP($A76,'[6]201314'!$C$19:$J$256,8,0)","v":228},{"$f":"VLOOKUP($A76,'[6]201314'!$C$19:$J$256,7,0)","v":355505},{"$f":"VLOOKUP($A76,[7]Data!$A$6:$H$228,4,0)","v":321},{"$f":"VLOOKUP(A76,[3]CHD!$E$15:$H$226,4,0)","v":378433},{"$f":"VLOOKUP($A76,[7]Data!$A$6:$H$228,3,0)","v":1232},378433,{"$f":"VLOOKUP($A76,[7]Data!$A$6:$H$228,5,0)","v":461},378433,{"$f":"VLOOKUP($A76,[7]Data!$A$6:$H$228,6,0)","v":1096},378433,{"$f":"VLOOKUP($A76,[7]Data!$A$6:$H$228,7,0)","v":506},378433,{"$f":"VLOOKUP($A76,[7]Data!$A$6:$H$228,8,0)","v":88},378433,{"$f":"VLOOKUP($A76,[8]CHD06!$E$15:$O$225,5,0)","v":8698},{"$f":"VLOOKUP($A76,[8]CHD06!$E$15:$O$225,10,0)","v":10022},{"$f":"VLOOKUP($A76,[8]CHD08!$E$15:$O$225,5,0)","v":7399},{"$f":"VLOOKUP($A76,[8]CHD08!$E$15:$O$225,10,0)","v":10022},{"$f":"VLOOKUP($A76,[9]BP05!$E$14:$O$225,5,0)","v":33197},{"$f":"VLOOKUP($A76,[9]BP05!$E$14:$O$225,10,0)","v":43233},{"$f":"VLOOKUP($A76,[10]CKD03!$E$14:$O$225,5,0)","v":6194},{"$f":"VLOOKUP($A76,[10]CKD03!$E$14:$O$225,10,0)","v":8602},{"$f":"VLOOKUP($A76,[11]PAD03!$E$14:$O$225,5,0)","v":1211},{"$f":"VLOOKUP($A76,[11]PAD03!$E$14:$O$225,10,0)","v":1440},{"$f":"VLOOKUP($A76,[11]PAD04!$E$14:$O$225,5,0)","v":1002},{"$f":"VLOOKUP($A76,[11]PAD04!$E$14:$O$225,10,0)","v":1440},{"$f":"VLOOKUP($A76,[12]STROKE06!$E$14:$O$225,5,0)","v":3763},{"$f":"VLOOKUP($A76,[12]STROKE06!$E$14:$O$225,10,0)","v":4442},{"$f":"VLOOKUP($A76,[12]STROKE08!$E$14:$O$225,5,0)","v":3173},{"$f":"VLOOKUP($A76,[12]STROKE08!$E$14:$O$225,10,0)","v":4442},null,null,null,null,null,null,null,null,null,null,null,null,null,null,{"$f":"VLOOKUP($A76,[3]CHD!$E$14:$BS$226,29,0)","v":8735},{"$f":"VLOOKUP($A76,[3]CHD!$E$14:$BS$226,34,0)","v":9987},{"$f":"VLOOKUP($A76,[3]CHD!$E$14:$BS$226,37,0)","v":9016},{"$f":"VLOOKUP($A76,[3]CHD!$E$14:$BS$226,42,0)","v":9987},{"$f":"VLOOKUP($A76,[3]HYP!$E$14:$BK$226,29,0)","v":34382},{"$f":"VLOOKUP($A76,[3]HYP!$E$14:$BK$226,34,0)","v":44217},{"$f":"VLOOKUP($A76,[3]CKD!$E$14:$BG$230,33,0)","v":5826},{"$f":"VLOOKUP($A76,[3]CKD!$E$14:$BG$230,38,0)","v":7770},{"$f":"VLOOKUP(A76,[3]PAD!$E$14:$BC$226,29,0)","v":1226},{"$f":"VLOOKUP($A76,[3]PAD!$E$14:$BC$226,34,0)","v":1426},{"$f":"VLOOKUP($A76,[3]PAD!$E$14:$BC$226,37,0)","v":1244},{"$f":"VLOOKUP($A76,[3]PAD!$E$14:$BC$226,42,0)","v":1426},{"$f":"VLOOKUP($A76,[3]STIA!$E$14:$CA$230,37,0)","v":3887},{"$f":"VLOOKUP($A76,[3]STIA!$E$14:$CA$230,42,0)","v":4588},{"$f":"VLOOKUP($A76,[3]STIA!$E$14:$CA$230,53,0)","v":2305},{"$f":"VLOOKUP($A76,[3]STIA!$E$14:$CA$230,58,0)","v":2621}]
["04D","NHS Lincolnshire West",{"$f":"VLOOKUP($A77,'[6]201314'!$C$19:$J$256,8,0)","v":160},{"$f":"VLOOKUP($A77,'[6]201314'!$C$19:$J$256,7,0)","v":207991},{"$f":"VLOOKUP($A77,[7]Data!$A$6:$H$228,4,0)","v":279},{"$f":"VLOOKUP(A77,[3]CHD!$E$15:$H$226,4,0)","v":226858},{"$f":"VLOOKUP($A77,[7]Data!$A$6:$H$228,3,0)","v":1162},226858,{"$f":"VLOOKUP($A77,[7]Data!$A$6:$H$228,5,0)","v":246},226858,{"$f":"VLOOKUP($A77,[7]Data!$A$6:$H$228,6,0)","v":703},226858,{"$f":"VLOOKUP($A77,[7]Data!$A$6:$H$228,7,0)","v":385},226858,{"$f":"VLOOKUP($A77,[7]Data!$A$6:$H$228,8,0)","v":77},226858,{"$f":"VLOOKUP($A77,[8]CHD06!$E$15:$O$225,5,0)","v":8143},{"$f":"VLOOKUP($A77,[8]CHD06!$E$15:$O$225,10,0)","v":9141},{"$f":"VLOOKUP($A77,[8]CHD08!$E$15:$O$225,5,0)","v":6766},{"$f":"VLOOKUP($A77,[8]CHD08!$E$15:$O$225,10,0)","v":9141},{"$f":"VLOOKUP($A77,[9]BP05!$E$14:$O$225,5,0)","v":24577},{"$f":"VLOOKUP($A77,[9]BP05!$E$14:$O$225,10,0)","v":31541},{"$f":"VLOOKUP($A77,[10]CKD03!$E$14:$O$225,5,0)","v":7893},{"$f":"VLOOKUP($A77,[10]CKD03!$E$14:$O$225,10,0)","v":10854},{"$f":"VLOOKUP($A77,[11]PAD03!$E$14:$O$225,5,0)","v":1353},{"$f":"VLOOKUP($A77,[11]PAD03!$E$14:$O$225,10,0)","v":1594},{"$f":"VLOOKUP($A77,[11]PAD04!$E$14:$O$225,5,0)","v":1113},{"$f":"VLOOKUP($A77,[11]PAD04!$E$14:$O$225,10,0)","v":1594},{"$f":"VLOOKUP($A77,[12]STROKE06!$E$14:$O$225,5,0)","v":3681},{"$f":"VLOOKUP($A77,[12]STROKE06!$E$14:$O$225,10,0)","v":4300},{"$f":"VLOOKUP($A77,[12]STROKE08!$E$14:$O$225,5,0)","v":2990},{"$f":"VLOOKUP($A77,[12]STROKE08!$E$14:$O$225,10,0)","v":4300},null,null,null,null,null,null,null,null,null,null,null,null,null,null,{"$f":"VLOOKUP($A77,[3]CHD!$E$14:$BS$226,29,0)","v":8131},{"$f":"VLOOKUP($A77,[3]CHD!$E$14:$BS$226,34,0)","v":9109},{"$f":"VLOOKUP($A77,[3]CHD!$E$14:$BS$226,37,0)","v":8015},{"$f":"VLOOKUP($A77,[3]CHD!$E$14:$BS$226,42,0)","v":9109},{"$f":"VLOOKUP($A77,[3]HYP!$E$14:$BK$226,29,0)","v":25792},{"$f":"VLOOKUP($A77,[3]HYP!$E$14:$BK$226,34,0)","v":32037},{"$f":"VLOOKUP($A77,[3]CKD!$E$14:$BG$230,33,0)","v":7145},{"$f":"VLOOKUP($A77,[3]CKD!$E$14:$BG$230,38,0)","v":9259},{"$f":"VLOOKUP(A77,[3]PAD!$E$14:$BC$226,29,0)","v":1346},{"$f":"VLOOKUP($A77,[3]PAD!$E$14:$BC$226,34,0)","v":1567},{"$f":"VLOOKUP($A77,[3]PAD!$E$14:$BC$226,37,0)","v":1361},{"$f":"VLOOKUP($A77,[3]PAD!$E$14:$BC$226,42,0)","v":1567},{"$f":"VLOOKUP($A77,[3]STIA!$E$14:$CA$230,37,0)","v":3855},{"$f":"VLOOKUP($A77,[3]STIA!$E$14:$CA$230,42,0)","v":4419},{"$f":"VLOOKUP($A77,[3]STIA!$E$14:$CA$230,53,0)","v":2548},{"$f":"VLOOKUP($A77,[3]STIA!$E$14:$CA$230,58,0)","v":2923}]
["04E","NHS Mansfield and Ashfield",{"$f":"VLOOKUP($A78,'[6]201314'!$C$19:$J$256,8,0)","v":138},{"$f":"VLOOKUP($A78,'[6]201314'!$C$19:$J$256,7,0)","v":170357},{"$f":"VLOOKUP($A78,[7]Data!$A$6:$H$228,4,0)","v":294},{"$f":"VLOOKUP(A78,[3]CHD!$E$15:$H$226,4,0)","v":184622},{"$f":"VLOOKUP($A78,[7]Data!$A$6:$H$228,3,0)","v":957},184622,{"$f":"VLOOKUP($A78,[7]Data!$A$6:$H$228,5,0)","v":231},184622,{"$f":"VLOOKUP($A78,[7]Data!$A$6:$H$228,6,0)","v":588},184622,{"$f":"VLOOKUP($A78,[7]Data!$A$6:$H$228,7,0)","v":347},184622,{"$f":"VLOOKUP($A78,[7]Data!$A$6:$H$228,8,0)","v":64},184622,{"$f":"VLOOKUP($A78,[8]CHD06!$E$15:$O$225,5,0)","v":7013},{"$f":"VLOOKUP($A78,[8]CHD06!$E$15:$O$225,10,0)","v":7856},{"$f":"VLOOKUP($A78,[8]CHD08!$E$15:$O$225,5,0)","v":5553},{"$f":"VLOOKUP($A78,[8]CHD08!$E$15:$O$225,10,0)","v":7856},{"$f":"VLOOKUP($A78,[9]BP05!$E$14:$O$225,5,0)","v":23044},{"$f":"VLOOKUP($A78,[9]BP05!$E$14:$O$225,10,0)","v":28747},{"$f":"VLOOKUP($A78,[10]CKD03!$E$14:$O$225,5,0)","v":5563},{"$f":"VLOOKUP($A78,[10]CKD03!$E$14:$O$225,10,0)","v":7413},{"$f":"VLOOKUP($A78,[11]PAD03!$E$14:$O$225,5,0)","v":963},{"$f":"VLOOKUP($A78,[11]PAD03!$E$14:$O$225,10,0)","v":1124},{"$f":"VLOOKUP($A78,[11]PAD04!$E$14:$O$225,5,0)","v":778},{"$f":"VLOOKUP($A78,[11]PAD04!$E$14:$O$225,10,0)","v":1124},{"$f":"VLOOKUP($A78,[12]STROKE06!$E$14:$O$225,5,0)","v":3001},{"$f":"VLOOKUP($A78,[12]STROKE06!$E$14:$O$225,10,0)","v":3401},{"$f":"VLOOKUP($A78,[12]STROKE08!$E$14:$O$225,5,0)","v":2370},{"$f":"VLOOKUP($A78,[12]STROKE08!$E$14:$O$225,10,0)","v":3401},null,null,null,null,null,null,null,null,null,null,null,null,null,null,{"$f":"VLOOKUP($A78,[3]CHD!$E$14:$BS$226,29,0)","v":7162},{"$f":"VLOOKUP($A78,[3]CHD!$E$14:$BS$226,34,0)","v":8031},{"$f":"VLOOKUP($A78,[3]CHD!$E$14:$BS$226,37,0)","v":5789},{"$f":"VLOOKUP($A78,[3]CHD!$E$14:$BS$226,42,0)","v":8031},{"$f":"VLOOKUP($A78,[3]HYP!$E$14:$BK$226,29,0)","v":23771},{"$f":"VLOOKUP($A78,[3]HYP!$E$14:$BK$226,34,0)","v":29006},{"$f":"VLOOKUP($A78,[3]CKD!$E$14:$BG$230,33,0)","v":4395},{"$f":"VLOOKUP($A78,[3]CKD!$E$14:$BG$230,38,0)","v":5546},{"$f":"VLOOKUP(A78,[3]PAD!$E$14:$BC$226,29,0)","v":987},{"$f":"VLOOKUP($A78,[3]PAD!$E$14:$BC$226,34,0)","v":1129},{"$f":"VLOOKUP($A78,[3]PAD!$E$14:$BC$226,37,0)","v":793},{"$f":"VLOOKUP($A78,[3]PAD!$E$14:$BC$226,42,0)","v":1129},{"$f":"VLOOKUP($A78,[3]STIA!$E$14:$CA$230,37,0)","v":3148},{"$f":"VLOOKUP($A78,[3]STIA!$E$14:$CA$230,42,0)","v":3558},{"$f":"VLOOKUP($A78,[3]STIA!$E$14:$CA$230,53,0)","v":1725},{"$f":"VLOOKUP($A78,[3]STIA!$E$14:$CA$230,58,0)","v":2436}]
["04F","NHS Milton Keynes",{"$f":"VLOOKUP($A79,'[6]201314'!$C$19:$J$256,8,0)","v":118},{"$f":"VLOOKUP($A79,'[6]201314'!$C$19:$J$256,7,0)","v":258291},{"$f":"VLOOKUP($A79,[7]Data!$A$6:$H$228,4,0)","v":261},{"$f":"VLOOKUP(A79,[3]CHD!$E$15:$H$226,4,0)","v":269964},{"$f":"VLOOKUP($A79,[7]Data!$A$6:$H$228,3,0)","v":1365},269964,{"$f":"VLOOKUP($A79,[7]Data!$A$6:$H$228,5,0)","v":234},269964,{"$f":"VLOOKUP($A79,[7]Data!$A$6:$H$228,6,0)","v":612},269964,{"$f":"VLOOKUP($A79,[7]Data!$A$6:$H$228,7,0)","v":294},269964,{"$f":"VLOOKUP($A79,[7]Data!$A$6:$H$228,8,0)","v":53},269964,{"$f":"VLOOKUP($A79,[8]CHD06!$E$15:$O$225,5,0)","v":5428},{"$f":"VLOOKUP($A79,[8]CHD06!$E$15:$O$225,10,0)","v":6393},{"$f":"VLOOKUP($A79,[8]CHD08!$E$15:$O$225,5,0)","v":4540},{"$f":"VLOOKUP($A79,[8]CHD08!$E$15:$O$225,10,0)","v":6393},{"$f":"VLOOKUP($A79,[9]BP05!$E$14:$O$225,5,0)","v":23259},{"$f":"VLOOKUP($A79,[9]BP05!$E$14:$O$225,10,0)","v":31964},{"$f":"VLOOKUP($A79,[10]CKD03!$E$14:$O$225,5,0)","v":3498},{"$f":"VLOOKUP($A79,[10]CKD03!$E$14:$O$225,10,0)","v":5263},{"$f":"VLOOKUP($A79,[11]PAD03!$E$14:$O$225,5,0)","v":1038},{"$f":"VLOOKUP($A79,[11]PAD03!$E$14:$O$225,10,0)","v":1235},{"$f":"VLOOKUP($A79,[11]PAD04!$E$14:$O$225,5,0)","v":814},{"$f":"VLOOKUP($A79,[11]PAD04!$E$14:$O$225,10,0)","v":1235},{"$f":"VLOOKUP($A79,[12]STROKE06!$E$14:$O$225,5,0)","v":2308},{"$f":"VLOOKUP($A79,[12]STROKE06!$E$14:$O$225,10,0)","v":2827},{"$f":"VLOOKUP($A79,[12]STROKE08!$E$14:$O$225,5,0)","v":1864},{"$f":"VLOOKUP($A79,[12]STROKE08!$E$14:$O$225,10,0)","v":2827},null,null,null,null,null,null,null,null,null,null,null,null,null,null,{"$f":"VLOOKUP($A79,[3]CHD!$E$14:$BS$226,29,0)","v":5739},{"$f":"VLOOKUP($A79,[3]CHD!$E$14:$BS$226,34,0)","v":6522},{"$f":"VLOOKUP($A79,[3]CHD!$E$14:$BS$226,37,0)","v":4624},{"$f":"VLOOKUP($A79,[3]CHD!$E$14:$BS$226,42,0)","v":6522},{"$f":"VLOOKUP($A79,[3]HYP!$E$14:$BK$226,29,0)","v":24982},{"$f":"VLOOKUP($A79,[3]HYP!$E$14:$BK$226,34,0)","v":32993},{"$f":"VLOOKUP($A79,[3]CKD!$E$14:$BG$230,33,0)","v":3493},{"$f":"VLOOKUP($A79,[3]CKD!$E$14:$BG$230,38,0)","v":4907},{"$f":"VLOOKUP(A79,[3]PAD!$E$14:$BC$226,29,0)","v":955},{"$f":"VLOOKUP($A79,[3]PAD!$E$14:$BC$226,34,0)","v":1137},{"$f":"VLOOKUP($A79,[3]PAD!$E$14:$BC$226,37,0)","v":767},{"$f":"VLOOKUP($A79,[3]PAD!$E$14:$BC$226,42,0)","v":1137},{"$f":"VLOOKUP($A79,[3]STIA!$E$14:$CA$230,37,0)","v":2442},{"$f":"VLOOKUP($A79,[3]STIA!$E$14:$CA$230,42,0)","v":2920},{"$f":"VLOOKUP($A79,[3]STIA!$E$14:$CA$230,53,0)","v":1223},{"$f":"VLOOKUP($A79,[3]STIA!$E$14:$CA$230,58,0)","v":1779}]
["04G","NHS Nene",{"$f":"VLOOKUP($A80,'[6]201314'!$C$19:$J$256,8,0)","v":349},{"$f":"VLOOKUP($A80,'[6]201314'!$C$19:$J$256,7,0)","v":591939},{"$f":"VLOOKUP($A80,[7]Data!$A$6:$H$228,4,0)","v":918},{"$f":"VLOOKUP(A80,[3]CHD!$E$15:$H$226,4,0)","v":631954},{"$f":"VLOOKUP($A80,[7]Data!$A$6:$H$228,3,0)","v":3434},631954,{"$f":"VLOOKUP($A80,[7]Data!$A$6:$H$228,5,0)","v":647},631954,{"$f":"VLOOKUP($A80,[7]Data!$A$6:$H$228,6,0)","v":2658},631954,{"$f":"VLOOKUP($A80,[7]Data!$A$6:$H$228,7,0)","v":1385},631954,{"$f":"VLOOKUP($A80,[7]Data!$A$6:$H$228,8,0)","v":177},631954,{"$f":"VLOOKUP($A80,[8]CHD06!$E$15:$O$225,5,0)","v":17385},{"$f":"VLOOKUP($A80,[8]CHD06!$E$15:$O$225,10,0)","v":19746},{"$f":"VLOOKUP($A80,[8]CHD08!$E$15:$O$225,5,0)","v":14161},{"$f":"VLOOKUP($A80,[8]CHD08!$E$15:$O$225,10,0)","v":19746},{"$f":"VLOOKUP($A80,[9]BP05!$E$14:$O$225,5,0)","v":67986},{"$f":"VLOOKUP($A80,[9]BP05!$E$14:$O$225,10,0)","v":88525},{"$f":"VLOOKUP($A80,[10]CKD03!$E$14:$O$225,5,0)","v":15299},{"$f":"VLOOKUP($A80,[10]CKD03!$E$14:$O$225,10,0)","v":20989},{"$f":"VLOOKUP($A80,[11]PAD03!$E$14:$O$225,5,0)","v":3325},{"$f":"VLOOKUP($A80,[11]PAD03!$E$14:$O$225,10,0)","v":3882},{"$f":"VLOOKUP($A80,[11]PAD04!$E$14:$O$225,5,0)","v":2654},{"$f":"VLOOKUP($A80,[11]PAD04!$E$14:$O$225,10,0)","v":3882},{"$f":"VLOOKUP($A80,[12]STROKE06!$E$14:$O$225,5,0)","v":8679},{"$f":"VLOOKUP($A80,[12]STROKE06!$E$14:$O$225,10,0)","v":10167},{"$f":"VLOOKUP($A80,[12]STROKE08!$E$14:$O$225,5,0)","v":6821},{"$f":"VLOOKUP($A80,[12]STROKE08!$E$14:$O$225,10,0)","v":10167},null,null,null,null,null,null,null,null,null,null,null,null,null,null,{"$f":"VLOOKUP($A80,[3]CHD!$E$14:$BS$226,29,0)","v":17792},{"$f":"VLOOKUP($A80,[3]CHD!$E$14:$BS$226,34,0)","v":20067},{"$f":"VLOOKUP($A80,[3]CHD!$E$14:$BS$226,37,0)","v":14647},{"$f":"VLOOKUP($A80,[3]CHD!$E$14:$BS$226,42,0)","v":20067},{"$f":"VLOOKUP($A80,[3]HYP!$E$14:$BK$226,29,0)","v":71367},{"$f":"VLOOKUP($A80,[3]HYP!$E$14:$BK$226,34,0)","v":90516},{"$f":"VLOOKUP($A80,[3]CKD!$E$14:$BG$230,33,0)","v":14285},{"$f":"VLOOKUP($A80,[3]CKD!$E$14:$BG$230,38,0)","v":18515},{"$f":"VLOOKUP(A80,[3]PAD!$E$14:$BC$226,29,0)","v":3314},{"$f":"VLOOKUP($A80,[3]PAD!$E$14:$BC$226,34,0)","v":3870},{"$f":"VLOOKUP($A80,[3]PAD!$E$14:$BC$226,37,0)","v":2751},{"$f":"VLOOKUP($A80,[3]PAD!$E$14:$BC$226,42,0)","v":3870},{"$f":"VLOOKUP($A80,[3]STIA!$E$14:$CA$230,37,0)","v":8988},{"$f":"VLOOKUP($A80,[3]STIA!$E$14:$CA$230,42,0)","v":10529},{"$f":"VLOOKUP($A80,[3]STIA!$E$14:$CA$230,53,0)","v":4535},{"$f":"VLOOKUP($A80,[3]STIA!$E$14:$CA$230,58,0)","v":6666}]
["04H","NHS Newark & Sherwood",{"$f":"VLOOKUP($A81,'[6]201314'!$C$19:$J$256,8,0)","v":77},{"$f":"VLOOKUP($A81,'[6]201314'!$C$19:$J$256,7,0)","v":117184},{"$f":"VLOOKUP($A81,[7]Data!$A$6:$H$228,4,0)","v":223},{"$f":"VLOOKUP(A81,[3]CHD!$E$15:$H$226,4,0)","v":128220},{"$f":"VLOOKUP($A81,[7]Data!$A$6:$H$228,3,0)","v":657},128220,{"$f":"VLOOKUP($A81,[7]Data!$A$6:$H$228,5,0)","v":121},128220,{"$f":"VLOOKUP($A81,[7]Data!$A$6:$H$228,6,0)","v":401},128220,{"$f":"VLOOKUP($A81,[7]Data!$A$6:$H$228,7,0)","v":213},128220,{"$f":"VLOOKUP($A81,[7]Data!$A$6:$H$228,8,0)","v":54},128220,{"$f":"VLOOKUP($A81,[8]CHD06!$E$15:$O$225,5,0)","v":4547},{"$f":"VLOOKUP($A81,[8]CHD06!$E$15:$O$225,10,0)","v":5180},{"$f":"VLOOKUP($A81,[8]CHD08!$E$15:$O$225,5,0)","v":3745},{"$f":"VLOOKUP($A81,[8]CHD08!$E$15:$O$225,10,0)","v":5180},{"$f":"VLOOKUP($A81,[9]BP05!$E$14:$O$225,5,0)","v":14239},{"$f":"VLOOKUP($A81,[9]BP05!$E$14:$O$225,10,0)","v":18794},{"$f":"VLOOKUP($A81,[10]CKD03!$E$14:$O$225,5,0)","v":3886},{"$f":"VLOOKUP($A81,[10]CKD03!$E$14:$O$225,10,0)","v":5518},{"$f":"VLOOKUP($A81,[11]PAD03!$E$14:$O$225,5,0)","v":869},{"$f":"VLOOKUP($A81,[11]PAD03!$E$14:$O$225,10,0)","v":1036},{"$f":"VLOOKUP($A81,[11]PAD04!$E$14:$O$225,5,0)","v":717},{"$f":"VLOOKUP($A81,[11]PAD04!$E$14:$O$225,10,0)","v":1036},{"$f":"VLOOKUP($A81,[12]STROKE06!$E$14:$O$225,5,0)","v":2061},{"$f":"VLOOKUP($A81,[12]STROKE06!$E$14:$O$225,10,0)","v":2439},{"$f":"VLOOKUP($A81,[12]STROKE08!$E$14:$O$225,5,0)","v":1604},{"$f":"VLOOKUP($A81,[12]STROKE08!$E$14:$O$225,10,0)","v":2439},null,null,null,null,null,null,null,null,null,null,null,null,null,null,{"$f":"VLOOKUP($A81,[3]CHD!$E$14:$BS$226,29,0)","v":4580},{"$f":"VLOOKUP($A81,[3]CHD!$E$14:$BS$226,34,0)","v":5189},{"$f":"VLOOKUP($A81,[3]CHD!$E$14:$BS$226,37,0)","v":3850},{"$f":"VLOOKUP($A81,[3]CHD!$E$14:$BS$226,42,0)","v":5189},{"$f":"VLOOKUP($A81,[3]HYP!$E$14:$BK$226,29,0)","v":15082},{"$f":"VLOOKUP($A81,[3]HYP!$E$14:$BK$226,34,0)","v":19037},{"$f":"VLOOKUP($A81,[3]CKD!$E$14:$BG$230,33,0)","v":3637},{"$f":"VLOOKUP($A81,[3]CKD!$E$14:$BG$230,38,0)","v":4939},{"$f":"VLOOKUP(A81,[3]PAD!$E$14:$BC$226,29,0)","v":864},{"$f":"VLOOKUP($A81,[3]PAD!$E$14:$BC$226,34,0)","v":1020},{"$f":"VLOOKUP($A81,[3]PAD!$E$14:$BC$226,37,0)","v":731},{"$f":"VLOOKUP($A81,[3]PAD!$E$14:$BC$226,42,0)","v":1020},{"$f":"VLOOKUP($A81,[3]STIA!$E$14:$CA$230,37,0)","v":2140},{"$f":"VLOOKUP($A81,[3]STIA!$E$14:$CA$230,42,0)","v":2498},{"$f":"VLOOKUP($A81,[3]STIA!$E$14:$CA$230,53,0)","v":1303},{"$f":"VLOOKUP($A81,[3]STIA!$E$14:$CA$230,58,0)","v":1809}]
["04J","NHS North Derbyshire",{"$f":"VLOOKUP($A82,'[6]201314'!$C$19:$J$256,8,0)","v":219},{"$f":"VLOOKUP($A82,'[6]201314'!$C$19:$J$256,7,0)","v":262569},{"$f":"VLOOKUP($A82,[7]Data!$A$6:$H$228,4,0)","v":465},{"$f":"VLOOKUP(A82,[3]CHD!$E$15:$H$226,4,0)","v":289357},{"$f":"VLOOKUP($A82,[7]Data!$A$6:$H$228,3,0)","v":1685},289357,{"$f":"VLOOKUP($A82,[7]Data!$A$6:$H$228,5,0)","v":337},289357,{"$f":"VLOOKUP($A82,[7]Data!$A$6:$H$228,6,0)","v":676},289357,{"$f":"VLOOKUP($A82,[7]Data!$A$6:$H$228,7,0)","v":281},289357,{"$f":"VLOOKUP($A82,[7]Data!$A$6:$H$228,8,0)","v":72},289357,{"$f":"VLOOKUP($A82,[8]CHD06!$E$15:$O$225,5,0)","v":10684},{"$f":"VLOOKUP($A82,[8]CHD06!$E$15:$O$225,10,0)","v":12161},{"$f":"VLOOKUP($A82,[8]CHD08!$E$15:$O$225,5,0)","v":8941},{"$f":"VLOOKUP($A82,[8]CHD08!$E$15:$O$225,10,0)","v":12210},{"$f":"VLOOKUP($A82,[9]BP05!$E$14:$O$225,5,0)","v":35009},{"$f":"VLOOKUP($A82,[9]BP05!$E$14:$O$225,10,0)","v":46401},{"$f":"VLOOKUP($A82,[10]CKD03!$E$14:$O$225,5,0)","v":10010},{"$f":"VLOOKUP($A82,[10]CKD03!$E$14:$O$225,10,0)","v":14539},{"$f":"VLOOKUP($A82,[11]PAD03!$E$14:$O$225,5,0)","v":1931},{"$f":"VLOOKUP($A82,[11]PAD03!$E$14:$O$225,10,0)","v":2296},{"$f":"VLOOKUP($A82,[11]PAD04!$E$14:$O$225,5,0)","v":1725},{"$f":"VLOOKUP($A82,[11]PAD04!$E$14:$O$225,10,0)","v":2359},{"$f":"VLOOKUP($A82,[12]STROKE06!$E$14:$O$225,5,0)","v":5557},{"$f":"VLOOKUP($A82,[12]STROKE06!$E$14:$O$225,10,0)","v":6532},{"$f":"VLOOKUP($A82,[12]STROKE08!$E$14:$O$225,5,0)","v":4457},{"$f":"VLOOKUP($A82,[12]STROKE08!$E$14:$O$225,10,0)","v":6579},null,null,null,null,null,null,null,null,null,null,null,null,null,null,{"$f":"VLOOKUP($A82,[3]CHD!$E$14:$BS$226,29,0)","v":10807},{"$f":"VLOOKUP($A82,[3]CHD!$E$14:$BS$226,34,0)","v":12100},{"$f":"VLOOKUP($A82,[3]CHD!$E$14:$BS$226,37,0)","v":8659},{"$f":"VLOOKUP($A82,[3]CHD!$E$14:$BS$226,42,0)","v":12100},{"$f":"VLOOKUP($A82,[3]HYP!$E$14:$BK$226,29,0)","v":37284},{"$f":"VLOOKUP($A82,[3]HYP!$E$14:$BK$226,34,0)","v":47117},{"$f":"VLOOKUP($A82,[3]CKD!$E$14:$BG$230,33,0)","v":9405},{"$f":"VLOOKUP($A82,[3]CKD!$E$14:$BG$230,38,0)","v":12881},{"$f":"VLOOKUP(A82,[3]PAD!$E$14:$BC$226,29,0)","v":1976},{"$f":"VLOOKUP($A82,[3]PAD!$E$14:$BC$226,34,0)","v":2320},{"$f":"VLOOKUP($A82,[3]PAD!$E$14:$BC$226,37,0)","v":1610},{"$f":"VLOOKUP($A82,[3]PAD!$E$14:$BC$226,42,0)","v":2320},{"$f":"VLOOKUP($A82,[3]STIA!$E$14:$CA$230,37,0)","v":5674},{"$f":"VLOOKUP($A82,[3]STIA!$E$14:$CA$230,42,0)","v":6652},{"$f":"VLOOKUP($A82,[3]STIA!$E$14:$CA$230,53,0)","v":3018},{"$f":"VLOOKUP($A82,[3]STIA!$E$14:$CA$230,58,0)","v":4365}]
["04K","NHS Nottingham City",{"$f":"VLOOKUP($A83,'[6]201314'!$C$19:$J$256,8,0)","v":185},{"$f":"VLOOKUP($A83,'[6]201314'!$C$19:$J$256,7,0)","v":331829},{"$f":"VLOOKUP($A83,[7]Data!$A$6:$H$228,4,0)","v":381},{"$f":"VLOOKUP(A83,[3]CHD!$E$15:$H$226,4,0)","v":352150},{"$f":"VLOOKUP($A83,[7]Data!$A$6:$H$228,3,0)","v":1137},352150,{"$f":"VLOOKUP($A83,[7]Data!$A$6:$H$228,5,0)","v":376},352150,{"$f":"VLOOKUP($A83,[7]Data!$A$6:$H$228,6,0)","v":561},352150,{"$f":"VLOOKUP($A83,[7]Data!$A$6:$H$228,7,0)","v":328},352150,{"$f":"VLOOKUP($A83,[7]Data!$A$6:$H$228,8,0)","v":35},352150,{"$f":"VLOOKUP($A83,[8]CHD06!$E$15:$O$225,5,0)","v":8389},{"$f":"VLOOKUP($A83,[8]CHD06!$E$15:$O$225,10,0)","v":9509},{"$f":"VLOOKUP($A83,[8]CHD08!$E$15:$O$225,5,0)","v":6574},{"$f":"VLOOKUP($A83,[8]CHD08!$E$15:$O$225,10,0)","v":9509},{"$f":"VLOOKUP($A83,[9]BP05!$E$14:$O$225,5,0)","v":28175},{"$f":"VLOOKUP($A83,[9]BP05!$E$14:$O$225,10,0)","v":36580},{"$f":"VLOOKUP($A83,[10]CKD03!$E$14:$O$225,5,0)","v":8347},{"$f":"VLOOKUP($A83,[10]CKD03!$E$14:$O$225,10,0)","v":11623},{"$f":"VLOOKUP($A83,[11]PAD03!$E$14:$O$225,5,0)","v":1523},{"$f":"VLOOKUP($A83,[11]PAD03!$E$14:$O$225,10,0)","v":1781},{"$f":"VLOOKUP($A83,[11]PAD04!$E$14:$O$225,5,0)","v":1139},{"$f":"VLOOKUP($A83,[11]PAD04!$E$14:$O$225,10,0)","v":1781},{"$f":"VLOOKUP($A83,[12]STROKE06!$E$14:$O$225,5,0)","v":4013},{"$f":"VLOOKUP($A83,[12]STROKE06!$E$14:$O$225,10,0)","v":4705},{"$f":"VLOOKUP($A83,[12]STROKE08!$E$14:$O$225,5,0)","v":3075},{"$f":"VLOOKUP($A83,[12]STROKE08!$E$14:$O$225,10,0)","v":4705},null,null,null,null,null,null,null,null,null,null,null,null,null,null,{"$f":"VLOOKUP($A83,[3]CHD!$E$14:$BS$226,29,0)","v":8449},{"$f":"VLOOKUP($A83,[3]CHD!$E$14:$BS$226,34,0)","v":9454},{"$f":"VLOOKUP($A83,[3]CHD!$E$14:$BS$226,37,0)","v":6500},{"$f":"VLOOKUP($A83,[3]CHD!$E$14:$BS$226,42,0)","v":9454},{"$f":"VLOOKUP($A83,[3]HYP!$E$14:$BK$226,29,0)","v":29455},{"$f":"VLOOKUP($A83,[3]HYP!$E$14:$BK$226,34,0)","v":37151},{"$f":"VLOOKUP($A83,[3]CKD!$E$14:$BG$230,33,0)","v":8028},{"$f":"VLOOKUP($A83,[3]CKD!$E$14:$BG$230,38,0)","v":10467},{"$f":"VLOOKUP(A83,[3]PAD!$E$14:$BC$226,29,0)","v":1524},{"$f":"VLOOKUP($A83,[3]PAD!$E$14:$BC$226,34,0)","v":1730},{"$f":"VLOOKUP($A83,[3]PAD!$E$14:$BC$226,37,0)","v":1113},{"$f":"VLOOKUP($A83,[3]PAD!$E$14:$BC$226,42,0)","v":1730},{"$f":"VLOOKUP($A83,[3]STIA!$E$14:$CA$230,37,0)","v":4178},{"$f":"VLOOKUP($A83,[3]STIA!$E$14:$CA$230,42,0)","v":4818},{"$f":"VLOOKUP($A83,[3]STIA!$E$14:$CA$230,53,0)","v":1926},{"$f":"VLOOKUP($A83,[3]STIA!$E$14:$CA$230,58,0)","v":2983}]
["04L","NHS Nottingham North and East",{"$f":"VLOOKUP($A84,'[6]201314'!$C$19:$J$256,8,0)","v":98},{"$f":"VLOOKUP($A84,'[6]201314'!$C$19:$J$256,7,0)","v":133229},{"$f":"VLOOKUP($A84,[7]Data!$A$6:$H$228,4,0)","v":217},{"$f":"VLOOKUP(A84,[3]CHD!$E$15:$H$226,4,0)","v":145292},{"$f":"VLOOKUP($A84,[7]Data!$A$6:$H$228,3,0)","v":649},145292,{"$f":"VLOOKUP($A84,[7]Data!$A$6:$H$228,5,0)","v":155},145292,{"$f":"VLOOKUP($A84,[7]Data!$A$6:$H$228,6,0)","v":302},145292,{"$f":"VLOOKUP($A84,[7]Data!$A$6:$H$228,7,0)","v":190},145292,{"$f":"VLOOKUP($A84,[7]Data!$A$6:$H$228,8,0)","v":37},145292,{"$f":"VLOOKUP($A84,[8]CHD06!$E$15:$O$225,5,0)","v":4988},{"$f":"VLOOKUP($A84,[8]CHD06!$E$15:$O$225,10,0)","v":5582},{"$f":"VLOOKUP($A84,[8]CHD08!$E$15:$O$225,5,0)","v":3982},{"$f":"VLOOKUP($A84,[8]CHD08!$E$15:$O$225,10,0)","v":5582},{"$f":"VLOOKUP($A84,[9]BP05!$E$14:$O$225,5,0)","v":16829},{"$f":"VLOOKUP($A84,[9]BP05!$E$14:$O$225,10,0)","v":21695},{"$f":"VLOOKUP($A84,[10]CKD03!$E$14:$O$225,5,0)","v":7049},{"$f":"VLOOKUP($A84,[10]CKD03!$E$14:$O$225,10,0)","v":9960},{"$f":"VLOOKUP($A84,[11]PAD03!$E$14:$O$225,5,0)","v":746},{"$f":"VLOOKUP($A84,[11]PAD03!$E$14:$O$225,10,0)","v":872},{"$f":"VLOOKUP($A84,[11]PAD04!$E$14:$O$225,5,0)","v":616},{"$f":"VLOOKUP($A84,[11]PAD04!$E$14:$O$225,10,0)","v":872},{"$f":"VLOOKUP($A84,[12]STROKE06!$E$14:$O$225,5,0)","v":2505},{"$f":"VLOOKUP($A84,[12]STROKE06!$E$14:$O$225,10,0)","v":2885},{"$f":"VLOOKUP($A84,[12]STROKE08!$E$14:$O$225,5,0)","v":1967},{"$f":"VLOOKUP($A84,[12]STROKE08!$E$14:$O$225,10,0)","v":2885},null,null,null,null,null,null,null,null,null,null,null,null,null,null,{"$f":"VLOOKUP($A84,[3]CHD!$E$14:$BS$226,29,0)","v":4919},{"$f":"VLOOKUP($A84,[3]CHD!$E$14:$BS$226,34,0)","v":5561},{"$f":"VLOOKUP($A84,[3]CHD!$E$14:$BS$226,37,0)","v":3862},{"$f":"VLOOKUP($A84,[3]CHD!$E$14:$BS$226,42,0)","v":5561},{"$f":"VLOOKUP($A84,[3]HYP!$E$14:$BK$226,29,0)","v":17191},{"$f":"VLOOKUP($A84,[3]HYP!$E$14:$BK$226,34,0)","v":21888},{"$f":"VLOOKUP($A84,[3]CKD!$E$14:$BG$230,33,0)","v":6096},{"$f":"VLOOKUP($A84,[3]CKD!$E$14:$BG$230,38,0)","v":8386},{"$f":"VLOOKUP(A84,[3]PAD!$E$14:$BC$226,29,0)","v":729},{"$f":"VLOOKUP($A84,[3]PAD!$E$14:$BC$226,34,0)","v":859},{"$f":"VLOOKUP($A84,[3]PAD!$E$14:$BC$226,37,0)","v":581},{"$f":"VLOOKUP($A84,[3]PAD!$E$14:$BC$226,42,0)","v":859},{"$f":"VLOOKUP($A84,[3]STIA!$E$14:$CA$230,37,0)","v":2545},{"$f":"VLOOKUP($A84,[3]STIA!$E$14:$CA$230,42,0)","v":2955},{"$f":"VLOOKUP($A84,[3]STIA!$E$14:$CA$230,53,0)","v":1234},{"$f":"VLOOKUP($A84,[3]STIA!$E$14:$CA$230,58,0)","v":1888}]
["04M","NHS Nottingham West",{"$f":"VLOOKUP($A85,'[6]201314'!$C$19:$J$256,8,0)","v":67},{"$f":"VLOOKUP($A85,'[6]201314'!$C$19:$J$256,7,0)","v":85218},{"$f":"VLOOKUP($A85,[7]Data!$A$6:$H$228,4,0)","v":153},{"$f":"VLOOKUP(A85,[3]CHD!$E$15:$H$226,4,0)","v":93642},{"$f":"VLOOKUP($A85,[7]Data!$A$6:$H$228,3,0)","v":361},93642,{"$f":"VLOOKUP($A85,[7]Data!$A$6:$H$228,5,0)","v":113},93642,{"$f":"VLOOKUP($A85,[7]Data!$A$6:$H$228,6,0)","v":174},93642,{"$f":"VLOOKUP($A85,[7]Data!$A$6:$H$228,7,0)","v":110},93642,{"$f":"VLOOKUP($A85,[7]Data!$A$6:$H$228,8,0)","v":17},93642,{"$f":"VLOOKUP($A85,[8]CHD06!$E$15:$O$225,5,0)","v":3279},{"$f":"VLOOKUP($A85,[8]CHD06!$E$15:$O$225,10,0)","v":3728},{"$f":"VLOOKUP($A85,[8]CHD08!$E$15:$O$225,5,0)","v":2652},{"$f":"VLOOKUP($A85,[8]CHD08!$E$15:$O$225,10,0)","v":3728},{"$f":"VLOOKUP($A85,[9]BP05!$E$14:$O$225,5,0)","v":11045},{"$f":"VLOOKUP($A85,[9]BP05!$E$14:$O$225,10,0)","v":13994},{"$f":"VLOOKUP($A85,[10]CKD03!$E$14:$O$225,5,0)","v":3658},{"$f":"VLOOKUP($A85,[10]CKD03!$E$14:$O$225,10,0)","v":5161},{"$f":"VLOOKUP($A85,[11]PAD03!$E$14:$O$225,5,0)","v":486},{"$f":"VLOOKUP($A85,[11]PAD03!$E$14:$O$225,10,0)","v":564},{"$f":"VLOOKUP($A85,[11]PAD04!$E$14:$O$225,5,0)","v":400},{"$f":"VLOOKUP($A85,[11]PAD04!$E$14:$O$225,10,0)","v":564},{"$f":"VLOOKUP($A85,[12]STROKE06!$E$14:$O$225,5,0)","v":1644},{"$f":"VLOOKUP($A85,[12]STROKE06!$E$14:$O$225,10,0)","v":1906},{"$f":"VLOOKUP($A85,[12]STROKE08!$E$14:$O$225,5,0)","v":1273},{"$f":"VLOOKUP($A85,[12]STROKE08!$E$14:$O$225,10,0)","v":1906},null,null,null,null,null,null,null,null,null,null,null,null,null,null,{"$f":"VLOOKUP($A85,[3]CHD!$E$14:$BS$226,29,0)","v":3321},{"$f":"VLOOKUP($A85,[3]CHD!$E$14:$BS$226,34,0)","v":3661},{"$f":"VLOOKUP($A85,[3]CHD!$E$14:$BS$226,37,0)","v":2641},{"$f":"VLOOKUP($A85,[3]CHD!$E$14:$BS$226,42,0)","v":3661},{"$f":"VLOOKUP($A85,[3]HYP!$E$14:$BK$226,29,0)","v":11480},{"$f":"VLOOKUP($A85,[3]HYP!$E$14:$BK$226,34,0)","v":14156},{"$f":"VLOOKUP($A85,[3]CKD!$E$14:$BG$230,33,0)","v":3870},{"$f":"VLOOKUP($A85,[3]CKD!$E$14:$BG$230,38,0)","v":4976},{"$f":"VLOOKUP(A85,[3]PAD!$E$14:$BC$226,29,0)","v":535},{"$f":"VLOOKUP($A85,[3]PAD!$E$14:$BC$226,34,0)","v":598},{"$f":"VLOOKUP($A85,[3]PAD!$E$14:$BC$226,37,0)","v":408},{"$f":"VLOOKUP($A85,[3]PAD!$E$14:$BC$226,42,0)","v":598},{"$f":"VLOOKUP($A85,[3]STIA!$E$14:$CA$230,37,0)","v":1729},{"$f":"VLOOKUP($A85,[3]STIA!$E$14:$CA$230,42,0)","v":1949},{"$f":"VLOOKUP($A85,[3]STIA!$E$14:$CA$230,53,0)","v":964},{"$f":"VLOOKUP($A85,[3]STIA!$E$14:$CA$230,58,0)","v":1381}]
["04N","NHS Rushcliffe",{"$f":"VLOOKUP($A86,'[6]201314'!$C$19:$J$256,8,0)","v":49},{"$f":"VLOOKUP($A86,'[6]201314'!$C$19:$J$256,7,0)","v":110870},{"$f":"VLOOKUP($A86,[7]Data!$A$6:$H$228,4,0)","v":173},{"$f":"VLOOKUP(A86,[3]CHD!$E$15:$H$226,4,0)","v":121809},{"$f":"VLOOKUP($A86,[7]Data!$A$6:$H$228,3,0)","v":536},121809,{"$f":"VLOOKUP($A86,[7]Data!$A$6:$H$228,5,0)","v":114},121809,{"$f":"VLOOKUP($A86,[7]Data!$A$6:$H$228,6,0)","v":232},121809,{"$f":"VLOOKUP($A86,[7]Data!$A$6:$H$228,7,0)","v":157},121809,{"$f":"VLOOKUP($A86,[7]Data!$A$6:$H$228,8,0)","v":22},121809,{"$f":"VLOOKUP($A86,[8]CHD06!$E$15:$O$225,5,0)","v":3974},{"$f":"VLOOKUP($A86,[8]CHD06!$E$15:$O$225,10,0)","v":4397},{"$f":"VLOOKUP($A86,[8]CHD08!$E$15:$O$225,5,0)","v":3190},{"$f":"VLOOKUP($A86,[8]CHD08!$E$15:$O$225,10,0)","v":4397},{"$f":"VLOOKUP($A86,[9]BP05!$E$14:$O$225,5,0)","v":13683},{"$f":"VLOOKUP($A86,[9]BP05!$E$14:$O$225,10,0)","v":17211},{"$f":"VLOOKUP($A86,[10]CKD03!$E$14:$O$225,5,0)","v":4919},{"$f":"VLOOKUP($A86,[10]CKD03!$E$14:$O$225,10,0)","v":6874},{"$f":"VLOOKUP($A86,[11]PAD03!$E$14:$O$225,5,0)","v":620},{"$f":"VLOOKUP($A86,[11]PAD03!$E$14:$O$225,10,0)","v":716},{"$f":"VLOOKUP($A86,[11]PAD04!$E$14:$O$225,5,0)","v":501},{"$f":"VLOOKUP($A86,[11]PAD04!$E$14:$O$225,10,0)","v":716},{"$f":"VLOOKUP($A86,[12]STROKE06!$E$14:$O$225,5,0)","v":2062},{"$f":"VLOOKUP($A86,[12]STROKE06!$E$14:$O$225,10,0)","v":2379},{"$f":"VLOOKUP($A86,[12]STROKE08!$E$14:$O$225,5,0)","v":1553},{"$f":"VLOOKUP($A86,[12]STROKE08!$E$14:$O$225,10,0)","v":2379},null,null,null,null,null,null,null,null,null,null,null,null,null,null,{"$f":"VLOOKUP($A86,[3]CHD!$E$14:$BS$226,29,0)","v":3927},{"$f":"VLOOKUP($A86,[3]CHD!$E$14:$BS$226,34,0)","v":4327},{"$f":"VLOOKUP($A86,[3]CHD!$E$14:$BS$226,37,0)","v":3055},{"$f":"VLOOKUP($A86,[3]CHD!$E$14:$BS$226,42,0)","v":4327},{"$f":"VLOOKUP($A86,[3]HYP!$E$14:$BK$226,29,0)","v":14122},{"$f":"VLOOKUP($A86,[3]HYP!$E$14:$BK$226,34,0)","v":17279},{"$f":"VLOOKUP($A86,[3]CKD!$E$14:$BG$230,33,0)","v":4307},{"$f":"VLOOKUP($A86,[3]CKD!$E$14:$BG$230,38,0)","v":5773},{"$f":"VLOOKUP(A86,[3]PAD!$E$14:$BC$226,29,0)","v":604},{"$f":"VLOOKUP($A86,[3]PAD!$E$14:$BC$226,34,0)","v":694},{"$f":"VLOOKUP($A86,[3]PAD!$E$14:$BC$226,37,0)","v":475},{"$f":"VLOOKUP($A86,[3]PAD!$E$14:$BC$226,42,0)","v":694},{"$f":"VLOOKUP($A86,[3]STIA!$E$14:$CA$230,37,0)","v":2114},{"$f":"VLOOKUP($A86,[3]STIA!$E$14:$CA$230,42,0)","v":2408},{"$f":"VLOOKUP($A86,[3]STIA!$E$14:$CA$230,53,0)","v":1139},{"$f":"VLOOKUP($A86,[3]STIA!$E$14:$CA$230,58,0)","v":1698}]
["04Q","NHS South West Lincolnshire",{"$f":"VLOOKUP($A87,'[6]201314'!$C$19:$J$256,8,0)","v":86},{"$f":"VLOOKUP($A87,'[6]201314'!$C$19:$J$256,7,0)","v":117314},{"$f":"VLOOKUP($A87,[7]Data!$A$6:$H$228,4,0)","v":209},{"$f":"VLOOKUP(A87,[3]CHD!$E$15:$H$226,4,0)","v":129102},{"$f":"VLOOKUP($A87,[7]Data!$A$6:$H$228,3,0)","v":888},129102,{"$f":"VLOOKUP($A87,[7]Data!$A$6:$H$228,5,0)","v":159},129102,{"$f":"VLOOKUP($A87,[7]Data!$A$6:$H$228,6,0)","v":532},129102,{"$f":"VLOOKUP($A87,[7]Data!$A$6:$H$228,7,0)","v":198},129102,{"$f":"VLOOKUP($A87,[7]Data!$A$6:$H$228,8,0)","v":56},129102,{"$f":"VLOOKUP($A87,[8]CHD06!$E$15:$O$225,5,0)","v":4924},{"$f":"VLOOKUP($A87,[8]CHD06!$E$15:$O$225,10,0)","v":5602},{"$f":"VLOOKUP($A87,[8]CHD08!$E$15:$O$225,5,0)","v":4068},{"$f":"VLOOKUP($A87,[8]CHD08!$E$15:$O$225,10,0)","v":5591},{"$f":"VLOOKUP($A87,[9]BP05!$E$14:$O$225,5,0)","v":16560},{"$f":"VLOOKUP($A87,[9]BP05!$E$14:$O$225,10,0)","v":21246},{"$f":"VLOOKUP($A87,[10]CKD03!$E$14:$O$225,5,0)","v":4429},{"$f":"VLOOKUP($A87,[10]CKD03!$E$14:$O$225,10,0)","v":6335},{"$f":"VLOOKUP($A87,[11]PAD03!$E$14:$O$225,5,0)","v":947},{"$f":"VLOOKUP($A87,[11]PAD03!$E$14:$O$225,10,0)","v":1148},{"$f":"VLOOKUP($A87,[11]PAD04!$E$14:$O$225,5,0)","v":753},{"$f":"VLOOKUP($A87,[11]PAD04!$E$14:$O$225,10,0)","v":1148},{"$f":"VLOOKUP($A87,[12]STROKE06!$E$14:$O$225,5,0)","v":2232},{"$f":"VLOOKUP($A87,[12]STROKE06!$E$14:$O$225,10,0)","v":2648},{"$f":"VLOOKUP($A87,[12]STROKE08!$E$14:$O$225,5,0)","v":1799},{"$f":"VLOOKUP($A87,[12]STROKE08!$E$14:$O$225,10,0)","v":2643},null,null,null,null,null,null,null,null,null,null,null,null,null,null,{"$f":"VLOOKUP($A87,[3]CHD!$E$14:$BS$226,29,0)","v":5041},{"$f":"VLOOKUP($A87,[3]CHD!$E$14:$BS$226,34,0)","v":5687},{"$f":"VLOOKUP($A87,[3]CHD!$E$14:$BS$226,37,0)","v":5029},{"$f":"VLOOKUP($A87,[3]CHD!$E$14:$BS$226,42,0)","v":5687},{"$f":"VLOOKUP($A87,[3]HYP!$E$14:$BK$226,29,0)","v":17059},{"$f":"VLOOKUP($A87,[3]HYP!$E$14:$BK$226,34,0)","v":21650},{"$f":"VLOOKUP($A87,[3]CKD!$E$14:$BG$230,33,0)","v":4819},{"$f":"VLOOKUP($A87,[3]CKD!$E$14:$BG$230,38,0)","v":6506},{"$f":"VLOOKUP(A87,[3]PAD!$E$14:$BC$226,29,0)","v":905},{"$f":"VLOOKUP($A87,[3]PAD!$E$14:$BC$226,34,0)","v":1077},{"$f":"VLOOKUP($A87,[3]PAD!$E$14:$BC$226,37,0)","v":938},{"$f":"VLOOKUP($A87,[3]PAD!$E$14:$BC$226,42,0)","v":1077},{"$f":"VLOOKUP($A87,[3]STIA!$E$14:$CA$230,37,0)","v":2271},{"$f":"VLOOKUP($A87,[3]STIA!$E$14:$CA$230,42,0)","v":2669},{"$f":"VLOOKUP($A87,[3]STIA!$E$14:$CA$230,53,0)","v":1586},{"$f":"VLOOKUP($A87,[3]STIA!$E$14:$CA$230,58,0)","v":1796}]
["04R","NHS Southern Derbyshire",{"$f":"VLOOKUP($A88,'[6]201314'!$C$19:$J$256,8,0)","v":359},{"$f":"VLOOKUP($A88,'[6]201314'!$C$19:$J$256,7,0)","v":492729},{"$f":"VLOOKUP($A88,[7]Data!$A$6:$H$228,4,0)","v":792},{"$f":"VLOOKUP(A88,[3]CHD!$E$15:$H$226,4,0)","v":533700},{"$f":"VLOOKUP($A88,[7]Data!$A$6:$H$228,3,0)","v":2405},533700,{"$f":"VLOOKUP($A88,[7]Data!$A$6:$H$228,5,0)","v":611},533700,{"$f":"VLOOKUP($A88,[7]Data!$A$6:$H$228,6,0)","v":1593},533700,{"$f":"VLOOKUP($A88,[7]Data!$A$6:$H$228,7,0)","v":691},533700,{"$f":"VLOOKUP($A88,[7]Data!$A$6:$H$228,8,0)","v":164},533700,{"$f":"VLOOKUP($A88,[8]CHD06!$E$15:$O$225,5,0)","v":16467},{"$f":"VLOOKUP($A88,[8]CHD06!$E$15:$O$225,10,0)","v":18674},{"$f":"VLOOKUP($A88,[8]CHD08!$E$15:$O$225,5,0)","v":13176},{"$f":"VLOOKUP($A88,[8]CHD08!$E$15:$O$225,10,0)","v":18755},{"$f":"VLOOKUP($A88,[9]BP05!$E$14:$O$225,5,0)","v":57780},{"$f":"VLOOKUP($A88,[9]BP05!$E$14:$O$225,10,0)","v":74895},{"$f":"VLOOKUP($A88,[10]CKD03!$E$14:$O$225,5,0)","v":13579},{"$f":"VLOOKUP($A88,[10]CKD03!$E$14:$O$225,10,0)","v":19526},{"$f":"VLOOKUP($A88,[11]PAD03!$E$14:$O$225,5,0)","v":2795},{"$f":"VLOOKUP($A88,[11]PAD03!$E$14:$O$225,10,0)","v":3300},{"$f":"VLOOKUP($A88,[11]PAD04!$E$14:$O$225,5,0)","v":2343},{"$f":"VLOOKUP($A88,[11]PAD04!$E$14:$O$225,10,0)","v":3371},{"$f":"VLOOKUP($A88,[12]STROKE06!$E$14:$O$225,5,0)","v":8014},{"$f":"VLOOKUP($A88,[12]STROKE06!$E$14:$O$225,10,0)","v":9349},{"$f":"VLOOKUP($A88,[12]STROKE08!$E$14:$O$225,5,0)","v":6262},{"$f":"VLOOKUP($A88,[12]STROKE08!$E$14:$O$225,10,0)","v":9470},null,null,null,null,null,null,null,null,null,null,null,null,null,null,{"$f":"VLOOKUP($A88,[3]CHD!$E$14:$BS$226,29,0)","v":16415},{"$f":"VLOOKUP($A88,[3]CHD!$E$14:$BS$226,34,0)","v":18510},{"$f":"VLOOKUP($A88,[3]CHD!$E$14:$BS$226,37,0)","v":12804},{"$f":"VLOOKUP($A88,[3]CHD!$E$14:$BS$226,42,0)","v":18668},{"$f":"VLOOKUP($A88,[3]HYP!$E$14:$BK$226,29,0)","v":59998},{"$f":"VLOOKUP($A88,[3]HYP!$E$14:$BK$226,34,0)","v":75416},{"$f":"VLOOKUP($A88,[3]CKD!$E$14:$BG$230,33,0)","v":12010},{"$f":"VLOOKUP($A88,[3]CKD!$E$14:$BG$230,38,0)","v":16240},{"$f":"VLOOKUP(A88,[3]PAD!$E$14:$BC$226,29,0)","v":2934},{"$f":"VLOOKUP($A88,[3]PAD!$E$14:$BC$226,34,0)","v":3392},{"$f":"VLOOKUP($A88,[3]PAD!$E$14:$BC$226,37,0)","v":2264},{"$f":"VLOOKUP($A88,[3]PAD!$E$14:$BC$226,42,0)","v":3409},{"$f":"VLOOKUP($A88,[3]STIA!$E$14:$CA$230,37,0)","v":8164},{"$f":"VLOOKUP($A88,[3]STIA!$E$14:$CA$230,42,0)","v":9562},{"$f":"VLOOKUP($A88,[3]STIA!$E$14:$CA$230,53,0)","v":4072},{"$f":"VLOOKUP($A88,[3]STIA!$E$14:$CA$230,58,0)","v":6294}]
["04V","NHS West Leicestershire",{"$f":"VLOOKUP($A89,'[6]201314'!$C$19:$J$256,8,0)","v":213},{"$f":"VLOOKUP($A89,'[6]201314'!$C$19:$J$256,7,0)","v":342411},{"$f":"VLOOKUP($A89,[7]Data!$A$6:$H$228,4,0)","v":597},{"$f":"VLOOKUP(A89,[3]CHD!$E$15:$H$226,4,0)","v":370972},{"$f":"VLOOKUP($A89,[7]Data!$A$6:$H$228,3,0)","v":1420},370972,{"$f":"VLOOKUP($A89,[7]Data!$A$6:$H$228,5,0)","v":532},370972,{"$f":"VLOOKUP($A89,[7]Data!$A$6:$H$228,6,0)","v":1132},370972,{"$f":"VLOOKUP($A89,[7]Data!$A$6:$H$228,7,0)","v":491},370972,{"$f":"VLOOKUP($A89,[7]Data!$A$6:$H$228,8,0)","v":104},370972,{"$f":"VLOOKUP($A89,[8]CHD06!$E$15:$O$225,5,0)","v":10348},{"$f":"VLOOKUP($A89,[8]CHD06!$E$15:$O$225,10,0)","v":11749},{"$f":"VLOOKUP($A89,[8]CHD08!$E$15:$O$225,5,0)","v":8897},{"$f":"VLOOKUP($A89,[8]CHD08!$E$15:$O$225,10,0)","v":11749},{"$f":"VLOOKUP($A89,[9]BP05!$E$14:$O$225,5,0)","v":41108},{"$f":"VLOOKUP($A89,[9]BP05!$E$14:$O$225,10,0)","v":52767},{"$f":"VLOOKUP($A89,[10]CKD03!$E$14:$O$225,5,0)","v":9100},{"$f":"VLOOKUP($A89,[10]CKD03!$E$14:$O$225,10,0)","v":12835},{"$f":"VLOOKUP($A89,[11]PAD03!$E$14:$O$225,5,0)","v":1968},{"$f":"VLOOKUP($A89,[11]PAD03!$E$14:$O$225,10,0)","v":2279},{"$f":"VLOOKUP($A89,[11]PAD04!$E$14:$O$225,5,0)","v":1630},{"$f":"VLOOKUP($A89,[11]PAD04!$E$14:$O$225,10,0)","v":2279},{"$f":"VLOOKUP($A89,[12]STROKE06!$E$14:$O$225,5,0)","v":5074},{"$f":"VLOOKUP($A89,[12]STROKE06!$E$14:$O$225,10,0)","v":5968},{"$f":"VLOOKUP($A89,[12]STROKE08!$E$14:$O$225,5,0)","v":4292},{"$f":"VLOOKUP($A89,[12]STROKE08!$E$14:$O$225,10,0)","v":5968},null,null,null,null,null,null,null,null,null,null,null,null,null,null,{"$f":"VLOOKUP($A89,[3]CHD!$E$14:$BS$226,29,0)","v":10461},{"$f":"VLOOKUP($A89,[3]CHD!$E$14:$BS$226,34,0)","v":11739},{"$f":"VLOOKUP($A89,[3]CHD!$E$14:$BS$226,37,0)","v":10343},{"$f":"VLOOKUP($A89,[3]CHD!$E$14:$BS$226,42,0)","v":11739},{"$f":"VLOOKUP($A89,[3]HYP!$E$14:$BK$226,29,0)","v":42421},{"$f":"VLOOKUP($A89,[3]HYP!$E$14:$BK$226,34,0)","v":53515},{"$f":"VLOOKUP($A89,[3]CKD!$E$14:$BG$230,33,0)","v":9493},{"$f":"VLOOKUP($A89,[3]CKD!$E$14:$BG$230,38,0)","v":12614},{"$f":"VLOOKUP(A89,[3]PAD!$E$14:$BC$226,29,0)","v":1934},{"$f":"VLOOKUP($A89,[3]PAD!$E$14:$BC$226,34,0)","v":2235},{"$f":"VLOOKUP($A89,[3]PAD!$E$14:$BC$226,37,0)","v":1943},{"$f":"VLOOKUP($A89,[3]PAD!$E$14:$BC$226,42,0)","v":2235},{"$f":"VLOOKUP($A89,[3]STIA!$E$14:$CA$230,37,0)","v":5258},{"$f":"VLOOKUP($A89,[3]STIA!$E$14:$CA$230,42,0)","v":6170},{"$f":"VLOOKUP($A89,[3]STIA!$E$14:$CA$230,53,0)","v":3696},{"$f":"VLOOKUP($A89,[3]STIA!$E$14:$CA$230,58,0)","v":4279}]
["04X","NHS Birmingham South and Central",{"$f":"VLOOKUP($A90,'[6]201314'!$C$19:$J$256,8,0)","v":131},{"$f":"VLOOKUP($A90,'[6]201314'!$C$19:$J$256,7,0)","v":231985},{"$f":"VLOOKUP($A90,[7]Data!$A$6:$H$228,4,0)","v":268},{"$f":"VLOOKUP(A90,[3]CHD!$E$15:$H$226,4,0)","v":242896},{"$f":"VLOOKUP($A90,[7]Data!$A$6:$H$228,3,0)","v":826},242896,{"$f":"VLOOKUP($A90,[7]Data!$A$6:$H$228,5,0)","v":303},242896,{"$f":"VLOOKUP($A90,[7]Data!$A$6:$H$228,6,0)","v":535},242896,{"$f":"VLOOKUP($A90,[7]Data!$A$6:$H$228,7,0)","v":301},242896,{"$f":"VLOOKUP($A90,[7]Data!$A$6:$H$228,8,0)","v":74},242896,{"$f":"VLOOKUP($A90,[8]CHD06!$E$15:$O$225,5,0)","v":5825},{"$f":"VLOOKUP($A90,[8]CHD06!$E$15:$O$225,10,0)","v":6617},{"$f":"VLOOKUP($A90,[8]CHD08!$E$15:$O$225,5,0)","v":4789},{"$f":"VLOOKUP($A90,[8]CHD08!$E$15:$O$225,10,0)","v":6617},{"$f":"VLOOKUP($A90,[9]BP05!$E$14:$O$225,5,0)","v":21952},{"$f":"VLOOKUP($A90,[9]BP05!$E$14:$O$225,10,0)","v":28314},{"$f":"VLOOKUP($A90,[10]CKD03!$E$14:$O$225,5,0)","v":5446},{"$f":"VLOOKUP($A90,[10]CKD03!$E$14:$O$225,10,0)","v":7632},{"$f":"VLOOKUP($A90,[11]PAD03!$E$14:$O$225,5,0)","v":1203},{"$f":"VLOOKUP($A90,[11]PAD03!$E$14:$O$225,10,0)","v":1422},{"$f":"VLOOKUP($A90,[11]PAD04!$E$14:$O$225,5,0)","v":941},{"$f":"VLOOKUP($A90,[11]PAD04!$E$14:$O$225,10,0)","v":1422},{"$f":"VLOOKUP($A90,[12]STROKE06!$E$14:$O$225,5,0)","v":2816},{"$f":"VLOOKUP($A90,[12]STROKE06!$E$14:$O$225,10,0)","v":3322},{"$f":"VLOOKUP($A90,[12]STROKE08!$E$14:$O$225,5,0)","v":2272},{"$f":"VLOOKUP($A90,[12]STROKE08!$E$14:$O$225,10,0)","v":3322},null,null,null,null,null,null,null,null,null,null,null,null,null,null,{"$f":"VLOOKUP($A90,[3]CHD!$E$14:$BS$226,29,0)","v":5963},{"$f":"VLOOKUP($A90,[3]CHD!$E$14:$BS$226,34,0)","v":6651},{"$f":"VLOOKUP($A90,[3]CHD!$E$14:$BS$226,37,0)","v":4933},{"$f":"VLOOKUP($A90,[3]CHD!$E$14:$BS$226,42,0)","v":6651},{"$f":"VLOOKUP($A90,[3]HYP!$E$14:$BK$226,29,0)","v":22939},{"$f":"VLOOKUP($A90,[3]HYP!$E$14:$BK$226,34,0)","v":28587},{"$f":"VLOOKUP($A90,[3]CKD!$E$14:$BG$230,33,0)","v":5716},{"$f":"VLOOKUP($A90,[3]CKD!$E$14:$BG$230,38,0)","v":7413},{"$f":"VLOOKUP(A90,[3]PAD!$E$14:$BC$226,29,0)","v":1188},{"$f":"VLOOKUP($A90,[3]PAD!$E$14:$BC$226,34,0)","v":1381},{"$f":"VLOOKUP($A90,[3]PAD!$E$14:$BC$226,37,0)","v":975},{"$f":"VLOOKUP($A90,[3]PAD!$E$14:$BC$226,42,0)","v":1381},{"$f":"VLOOKUP($A90,[3]STIA!$E$14:$CA$230,37,0)","v":2937},{"$f":"VLOOKUP($A90,[3]STIA!$E$14:$CA$230,42,0)","v":3369},{"$f":"VLOOKUP($A90,[3]STIA!$E$14:$CA$230,53,0)","v":1352},{"$f":"VLOOKUP($A90,[3]STIA!$E$14:$CA$230,58,0)","v":1913}]
["04Y","NHS Cannock Chase",{"$f":"VLOOKUP($A91,'[6]201314'!$C$19:$J$256,8,0)","v":101},{"$f":"VLOOKUP($A91,'[6]201314'!$C$19:$J$256,7,0)","v":122432},{"$f":"VLOOKUP($A91,[7]Data!$A$6:$H$228,4,0)","v":252},{"$f":"VLOOKUP(A91,[3]CHD!$E$15:$H$226,4,0)","v":132514},{"$f":"VLOOKUP($A91,[7]Data!$A$6:$H$228,3,0)","v":792},132514,{"$f":"VLOOKUP($A91,[7]Data!$A$6:$H$228,5,0)","v":161},132514,{"$f":"VLOOKUP($A91,[7]Data!$A$6:$H$228,6,0)","v":453},132514,{"$f":"VLOOKUP($A91,[7]Data!$A$6:$H$228,7,0)","v":203},132514,{"$f":"VLOOKUP($A91,[7]Data!$A$6:$H$228,8,0)","v":56},132514,{"$f":"VLOOKUP($A91,[8]CHD06!$E$15:$O$225,5,0)","v":4749},{"$f":"VLOOKUP($A91,[8]CHD06!$E$15:$O$225,10,0)","v":5439},{"$f":"VLOOKUP($A91,[8]CHD08!$E$15:$O$225,5,0)","v":3932},{"$f":"VLOOKUP($A91,[8]CHD08!$E$15:$O$225,10,0)","v":5439},{"$f":"VLOOKUP($A91,[9]BP05!$E$14:$O$225,5,0)","v":16233},{"$f":"VLOOKUP($A91,[9]BP05!$E$14:$O$225,10,0)","v":20882},{"$f":"VLOOKUP($A91,[10]CKD03!$E$14:$O$225,5,0)","v":3137},{"$f":"VLOOKUP($A91,[10]CKD03!$E$14:$O$225,10,0)","v":4261},{"$f":"VLOOKUP($A91,[11]PAD03!$E$14:$O$225,5,0)","v":800},{"$f":"VLOOKUP($A91,[11]PAD03!$E$14:$O$225,10,0)","v":933},{"$f":"VLOOKUP($A91,[11]PAD04!$E$14:$O$225,5,0)","v":635},{"$f":"VLOOKUP($A91,[11]PAD04!$E$14:$O$225,10,0)","v":933},{"$f":"VLOOKUP($A91,[12]STROKE06!$E$14:$O$225,5,0)","v":2110},{"$f":"VLOOKUP($A91,[12]STROKE06!$E$14:$O$225,10,0)","v":2497},{"$f":"VLOOKUP($A91,[12]STROKE08!$E$14:$O$225,5,0)","v":1718},{"$f":"VLOOKUP($A91,[12]STROKE08!$E$14:$O$225,10,0)","v":2497},null,null,null,null,null,null,null,null,null,null,null,null,null,null,{"$f":"VLOOKUP($A91,[3]CHD!$E$14:$BS$226,29,0)","v":4809},{"$f":"VLOOKUP($A91,[3]CHD!$E$14:$BS$226,34,0)","v":5451},{"$f":"VLOOKUP($A91,[3]CHD!$E$14:$BS$226,37,0)","v":3901},{"$f":"VLOOKUP($A91,[3]CHD!$E$14:$BS$226,42,0)","v":5451},{"$f":"VLOOKUP($A91,[3]HYP!$E$14:$BK$226,29,0)","v":16653},{"$f":"VLOOKUP($A91,[3]HYP!$E$14:$BK$226,34,0)","v":21044},{"$f":"VLOOKUP($A91,[3]CKD!$E$14:$BG$230,33,0)","v":3324},{"$f":"VLOOKUP($A91,[3]CKD!$E$14:$BG$230,38,0)","v":4187},{"$f":"VLOOKUP(A91,[3]PAD!$E$14:$BC$226,29,0)","v":803},{"$f":"VLOOKUP($A91,[3]PAD!$E$14:$BC$226,34,0)","v":947},{"$f":"VLOOKUP($A91,[3]PAD!$E$14:$BC$226,37,0)","v":614},{"$f":"VLOOKUP($A91,[3]PAD!$E$14:$BC$226,42,0)","v":947},{"$f":"VLOOKUP($A91,[3]STIA!$E$14:$CA$230,37,0)","v":2179},{"$f":"VLOOKUP($A91,[3]STIA!$E$14:$CA$230,42,0)","v":2575},{"$f":"VLOOKUP($A91,[3]STIA!$E$14:$CA$230,53,0)","v":1089},{"$f":"VLOOKUP($A91,[3]STIA!$E$14:$CA$230,58,0)","v":1629}]
["05A","NHS Coventry and Rugby",{"$f":"VLOOKUP($A92,'[6]201314'!$C$19:$J$256,8,0)","v":255},{"$f":"VLOOKUP($A92,'[6]201314'!$C$19:$J$256,7,0)","v":438013},{"$f":"VLOOKUP($A92,[7]Data!$A$6:$H$228,4,0)","v":469},{"$f":"VLOOKUP(A92,[3]CHD!$E$15:$H$226,4,0)","v":471692},{"$f":"VLOOKUP($A92,[7]Data!$A$6:$H$228,3,0)","v":1253},471692,{"$f":"VLOOKUP($A92,[7]Data!$A$6:$H$228,5,0)","v":601},471692,{"$f":"VLOOKUP($A92,[7]Data!$A$6:$H$228,6,0)","v":780},471692,{"$f":"VLOOKUP($A92,[7]Data!$A$6:$H$228,7,0)","v":506},471692,{"$f":"VLOOKUP($A92,[7]Data!$A$6:$H$228,8,0)","v":110},471692,{"$f":"VLOOKUP($A92,[8]CHD06!$E$15:$O$225,5,0)","v":11686},{"$f":"VLOOKUP($A92,[8]CHD06!$E$15:$O$225,10,0)","v":13088},{"$f":"VLOOKUP($A92,[8]CHD08!$E$15:$O$225,5,0)","v":9871},{"$f":"VLOOKUP($A92,[8]CHD08!$E$15:$O$225,10,0)","v":13088},{"$f":"VLOOKUP($A92,[9]BP05!$E$14:$O$225,5,0)","v":51693},{"$f":"VLOOKUP($A92,[9]BP05!$E$14:$O$225,10,0)","v":65226},{"$f":"VLOOKUP($A92,[10]CKD03!$E$14:$O$225,5,0)","v":10242},{"$f":"VLOOKUP($A92,[10]CKD03!$E$14:$O$225,10,0)","v":14096},{"$f":"VLOOKUP($A92,[11]PAD03!$E$14:$O$225,5,0)","v":2646},{"$f":"VLOOKUP($A92,[11]PAD03!$E$14:$O$225,10,0)","v":2986},{"$f":"VLOOKUP($A92,[11]PAD04!$E$14:$O$225,5,0)","v":2229},{"$f":"VLOOKUP($A92,[11]PAD04!$E$14:$O$225,10,0)","v":2986},{"$f":"VLOOKUP($A92,[12]STROKE06!$E$14:$O$225,5,0)","v":6357},{"$f":"VLOOKUP($A92,[12]STROKE06!$E$14:$O$225,10,0)","v":7328},{"$f":"VLOOKUP($A92,[12]STROKE08!$E$14:$O$225,5,0)","v":5308},{"$f":"VLOOKUP($A92,[12]STROKE08!$E$14:$O$225,10,0)","v":7328},null,null,null,null,null,null,null,null,null,null,null,null,null,null,{"$f":"VLOOKUP($A92,[3]CHD!$E$14:$BS$226,29,0)","v":11707},{"$f":"VLOOKUP($A92,[3]CHD!$E$14:$BS$226,34,0)","v":12814},{"$f":"VLOOKUP($A92,[3]CHD!$E$14:$BS$226,37,0)","v":10160},{"$f":"VLOOKUP($A92,[3]CHD!$E$14:$BS$226,42,0)","v":12814},{"$f":"VLOOKUP($A92,[3]HYP!$E$14:$BK$226,29,0)","v":53340},{"$f":"VLOOKUP($A92,[3]HYP!$E$14:$BK$226,34,0)","v":65418},{"$f":"VLOOKUP($A92,[3]CKD!$E$14:$BG$230,33,0)","v":10902},{"$f":"VLOOKUP($A92,[3]CKD!$E$14:$BG$230,38,0)","v":13944},{"$f":"VLOOKUP(A92,[3]PAD!$E$14:$BC$226,29,0)","v":2528},{"$f":"VLOOKUP($A92,[3]PAD!$E$14:$BC$226,34,0)","v":2853},{"$f":"VLOOKUP($A92,[3]PAD!$E$14:$BC$226,37,0)","v":2206},{"$f":"VLOOKUP($A92,[3]PAD!$E$14:$BC$226,42,0)","v":2852},{"$f":"VLOOKUP($A92,[3]STIA!$E$14:$CA$230,37,0)","v":6392},{"$f":"VLOOKUP($A92,[3]STIA!$E$14:$CA$230,42,0)","v":7304},{"$f":"VLOOKUP($A92,[3]STIA!$E$14:$CA$230,53,0)","v":3647},{"$f":"VLOOKUP($A92,[3]STIA!$E$14:$CA$230,58,0)","v":4812}]
["05C","NHS Dudley",{"$f":"VLOOKUP($A93,'[6]201314'!$C$19:$J$256,8,0)","v":212},{"$f":"VLOOKUP($A93,'[6]201314'!$C$19:$J$256,7,0)","v":286691},{"$f":"VLOOKUP($A93,[7]Data!$A$6:$H$228,4,0)","v":507},{"$f":"VLOOKUP(A93,[3]CHD!$E$15:$H$226,4,0)","v":314852},{"$f":"VLOOKUP($A93,[7]Data!$A$6:$H$228,3,0)","v":1572},314852,{"$f":"VLOOKUP($A93,[7]Data!$A$6:$H$228,5,0)","v":429},314852,{"$f":"VLOOKUP($A93,[7]Data!$A$6:$H$228,6,0)","v":975},314852,{"$f":"VLOOKUP($A93,[7]Data!$A$6:$H$228,7,0)","v":322},314852,{"$f":"VLOOKUP($A93,[7]Data!$A$6:$H$228,8,0)","v":110},314852,{"$f":"VLOOKUP($A93,[8]CHD06!$E$15:$O$225,5,0)","v":11587},{"$f":"VLOOKUP($A93,[8]CHD06!$E$15:$O$225,10,0)","v":12968},{"$f":"VLOOKUP($A93,[8]CHD08!$E$15:$O$225,5,0)","v":9645},{"$f":"VLOOKUP($A93,[8]CHD08!$E$15:$O$225,10,0)","v":12968},{"$f":"VLOOKUP($A93,[9]BP05!$E$14:$O$225,5,0)","v":43486},{"$f":"VLOOKUP($A93,[9]BP05!$E$14:$O$225,10,0)","v":54606},{"$f":"VLOOKUP($A93,[10]CKD03!$E$14:$O$225,5,0)","v":11029},{"$f":"VLOOKUP($A93,[10]CKD03!$E$14:$O$225,10,0)","v":15172},{"$f":"VLOOKUP($A93,[11]PAD03!$E$14:$O$225,5,0)","v":2065},{"$f":"VLOOKUP($A93,[11]PAD03!$E$14:$O$225,10,0)","v":2345},{"$f":"VLOOKUP($A93,[11]PAD04!$E$14:$O$225,5,0)","v":1620},{"$f":"VLOOKUP($A93,[11]PAD04!$E$14:$O$225,10,0)","v":2345},{"$f":"VLOOKUP($A93,[12]STROKE06!$E$14:$O$225,5,0)","v":5419},{"$f":"VLOOKUP($A93,[12]STROKE06!$E$14:$O$225,10,0)","v":6251},{"$f":"VLOOKUP($A93,[12]STROKE08!$E$14:$O$225,5,0)","v":4429},{"$f":"VLOOKUP($A93,[12]STROKE08!$E$14:$O$225,10,0)","v":6251},null,null,null,null,null,null,null,null,null,null,null,null,null,null,{"$f":"VLOOKUP($A93,[3]CHD!$E$14:$BS$226,29,0)","v":11317},{"$f":"VLOOKUP($A93,[3]CHD!$E$14:$BS$226,34,0)","v":12772},{"$f":"VLOOKUP($A93,[3]CHD!$E$14:$BS$226,37,0)","v":9627},{"$f":"VLOOKUP($A93,[3]CHD!$E$14:$BS$226,42,0)","v":12772},{"$f":"VLOOKUP($A93,[3]HYP!$E$14:$BK$226,29,0)","v":43058},{"$f":"VLOOKUP($A93,[3]HYP!$E$14:$BK$226,34,0)","v":55172},{"$f":"VLOOKUP($A93,[3]CKD!$E$14:$BG$230,33,0)","v":11357},{"$f":"VLOOKUP($A93,[3]CKD!$E$14:$BG$230,38,0)","v":15393},{"$f":"VLOOKUP(A93,[3]PAD!$E$14:$BC$226,29,0)","v":1971},{"$f":"VLOOKUP($A93,[3]PAD!$E$14:$BC$226,34,0)","v":2301},{"$f":"VLOOKUP($A93,[3]PAD!$E$14:$BC$226,37,0)","v":1621},{"$f":"VLOOKUP($A93,[3]PAD!$E$14:$BC$226,42,0)","v":2301},{"$f":"VLOOKUP($A93,[3]STIA!$E$14:$CA$230,37,0)","v":5357},{"$f":"VLOOKUP($A93,[3]STIA!$E$14:$CA$230,42,0)","v":6332},{"$f":"VLOOKUP($A93,[3]STIA!$E$14:$CA$230,53,0)","v":3776},{"$f":"VLOOKUP($A93,[3]STIA!$E$14:$CA$230,58,0)","v":5334}]
["05D","NHS East Staffordshire",{"$f":"VLOOKUP($A94,'[6]201314'!$C$19:$J$256,8,0)","v":88},{"$f":"VLOOKUP($A94,'[6]201314'!$C$19:$J$256,7,0)","v":124521},{"$f":"VLOOKUP($A94,[7]Data!$A$6:$H$228,4,0)","v":206},{"$f":"VLOOKUP(A94,[3]CHD!$E$15:$H$226,4,0)","v":135146},{"$f":"VLOOKUP($A94,[7]Data!$A$6:$H$228,3,0)","v":851},135146,{"$f":"VLOOKUP($A94,[7]Data!$A$6:$H$228,5,0)","v":151},135146,{"$f":"VLOOKUP($A94,[7]Data!$A$6:$H$228,6,0)","v":523},135146,{"$f":"VLOOKUP($A94,[7]Data!$A$6:$H$228,7,0)","v":228},135146,{"$f":"VLOOKUP($A94,[7]Data!$A$6:$H$228,8,0)","v":32},135146,{"$f":"VLOOKUP($A94,[8]CHD06!$E$15:$O$225,5,0)","v":4062},{"$f":"VLOOKUP($A94,[8]CHD06!$E$15:$O$225,10,0)","v":4613},{"$f":"VLOOKUP($A94,[8]CHD08!$E$15:$O$225,5,0)","v":3420},{"$f":"VLOOKUP($A94,[8]CHD08!$E$15:$O$225,10,0)","v":4613},{"$f":"VLOOKUP($A94,[9]BP05!$E$14:$O$225,5,0)","v":14394},{"$f":"VLOOKUP($A94,[9]BP05!$E$14:$O$225,10,0)","v":18629},{"$f":"VLOOKUP($A94,[10]CKD03!$E$14:$O$225,5,0)","v":3091},{"$f":"VLOOKUP($A94,[10]CKD03!$E$14:$O$225,10,0)","v":4427},{"$f":"VLOOKUP($A94,[11]PAD03!$E$14:$O$225,5,0)","v":667},{"$f":"VLOOKUP($A94,[11]PAD03!$E$14:$O$225,10,0)","v":775},{"$f":"VLOOKUP($A94,[11]PAD04!$E$14:$O$225,5,0)","v":540},{"$f":"VLOOKUP($A94,[11]PAD04!$E$14:$O$225,10,0)","v":775},{"$f":"VLOOKUP($A94,[12]STROKE06!$E$14:$O$225,5,0)","v":1948},{"$f":"VLOOKUP($A94,[12]STROKE06!$E$14:$O$225,10,0)","v":2301},{"$f":"VLOOKUP($A94,[12]STROKE08!$E$14:$O$225,5,0)","v":1538},{"$f":"VLOOKUP($A94,[12]STROKE08!$E$14:$O$225,10,0)","v":2301},null,null,null,null,null,null,null,null,null,null,null,null,null,null,{"$f":"VLOOKUP($A94,[3]CHD!$E$14:$BS$226,29,0)","v":3904},{"$f":"VLOOKUP($A94,[3]CHD!$E$14:$BS$226,34,0)","v":4516},{"$f":"VLOOKUP($A94,[3]CHD!$E$14:$BS$226,37,0)","v":3323},{"$f":"VLOOKUP($A94,[3]CHD!$E$14:$BS$226,42,0)","v":4516},{"$f":"VLOOKUP($A94,[3]HYP!$E$14:$BK$226,29,0)","v":14510},{"$f":"VLOOKUP($A94,[3]HYP!$E$14:$BK$226,34,0)","v":18939},{"$f":"VLOOKUP($A94,[3]CKD!$E$14:$BG$230,33,0)","v":3432},{"$f":"VLOOKUP($A94,[3]CKD!$E$14:$BG$230,38,0)","v":4859},{"$f":"VLOOKUP(A94,[3]PAD!$E$14:$BC$226,29,0)","v":630},{"$f":"VLOOKUP($A94,[3]PAD!$E$14:$BC$226,34,0)","v":766},{"$f":"VLOOKUP($A94,[3]PAD!$E$14:$BC$226,37,0)","v":528},{"$f":"VLOOKUP($A94,[3]PAD!$E$14:$BC$226,42,0)","v":766},{"$f":"VLOOKUP($A94,[3]STIA!$E$14:$CA$230,37,0)","v":1935},{"$f":"VLOOKUP($A94,[3]STIA!$E$14:$CA$230,42,0)","v":2334},{"$f":"VLOOKUP($A94,[3]STIA!$E$14:$CA$230,53,0)","v":984},{"$f":"VLOOKUP($A94,[3]STIA!$E$14:$CA$230,58,0)","v":1486}]
["05F","NHS Herefordshire",{"$f":"VLOOKUP($A95,'[6]201314'!$C$19:$J$256,8,0)","v":137},{"$f":"VLOOKUP($A95,'[6]201314'!$C$19:$J$256,7,0)","v":163108},{"$f":"VLOOKUP($A95,[7]Data!$A$6:$H$228,4,0)","v":310},{"$f":"VLOOKUP(A95,[3]CHD!$E$15:$H$226,4,0)","v":182621},{"$f":"VLOOKUP($A95,[7]Data!$A$6:$H$228,3,0)","v":1071},182621,{"$f":"VLOOKUP($A95,[7]Data!$A$6:$H$228,5,0)","v":180},182621,{"$f":"VLOOKUP($A95,[7]Data!$A$6:$H$228,6,0)","v":484},182621,{"$f":"VLOOKUP($A95,[7]Data!$A$6:$H$228,7,0)","v":233},182621,{"$f":"VLOOKUP($A95,[7]Data!$A$6:$H$228,8,0)","v":64},182621,{"$f":"VLOOKUP($A95,[8]CHD06!$E$15:$O$225,5,0)","v":5583},{"$f":"VLOOKUP($A95,[8]CHD06!$E$15:$O$225,10,0)","v":6388},{"$f":"VLOOKUP($A95,[8]CHD08!$E$15:$O$225,5,0)","v":4392},{"$f":"VLOOKUP($A95,[8]CHD08!$E$15:$O$225,10,0)","v":6388},{"$f":"VLOOKUP($A95,[9]BP05!$E$14:$O$225,5,0)","v":22089},{"$f":"VLOOKUP($A95,[9]BP05!$E$14:$O$225,10,0)","v":29000},{"$f":"VLOOKUP($A95,[10]CKD03!$E$14:$O$225,5,0)","v":5298},{"$f":"VLOOKUP($A95,[10]CKD03!$E$14:$O$225,10,0)","v":7841},{"$f":"VLOOKUP($A95,[11]PAD03!$E$14:$O$225,5,0)","v":1090},{"$f":"VLOOKUP($A95,[11]PAD03!$E$14:$O$225,10,0)","v":1300},{"$f":"VLOOKUP($A95,[11]PAD04!$E$14:$O$225,5,0)","v":806},{"$f":"VLOOKUP($A95,[11]PAD04!$E$14:$O$225,10,0)","v":1300},{"$f":"VLOOKUP($A95,[12]STROKE06!$E$14:$O$225,5,0)","v":3388},{"$f":"VLOOKUP($A95,[12]STROKE06!$E$14:$O$225,10,0)","v":4028},{"$f":"VLOOKUP($A95,[12]STROKE08!$E$14:$O$225,5,0)","v":2493},{"$f":"VLOOKUP($A95,[12]STROKE08!$E$14:$O$225,10,0)","v":4028},null,null,null,null,null,null,null,null,null,null,null,null,null,null,{"$f":"VLOOKUP($A95,[3]CHD!$E$14:$BS$226,29,0)","v":5724},{"$f":"VLOOKUP($A95,[3]CHD!$E$14:$BS$226,34,0)","v":6397},{"$f":"VLOOKUP($A95,[3]CHD!$E$14:$BS$226,37,0)","v":4464},{"$f":"VLOOKUP($A95,[3]CHD!$E$14:$BS$226,42,0)","v":6397},{"$f":"VLOOKUP($A95,[3]HYP!$E$14:$BK$226,29,0)","v":23292},{"$f":"VLOOKUP($A95,[3]HYP!$E$14:$BK$226,34,0)","v":29116},{"$f":"VLOOKUP($A95,[3]CKD!$E$14:$BG$230,33,0)","v":5649},{"$f":"VLOOKUP($A95,[3]CKD!$E$14:$BG$230,38,0)","v":7714},{"$f":"VLOOKUP(A95,[3]PAD!$E$14:$BC$226,29,0)","v":1114},{"$f":"VLOOKUP($A95,[3]PAD!$E$14:$BC$226,34,0)","v":1295},{"$f":"VLOOKUP($A95,[3]PAD!$E$14:$BC$226,37,0)","v":853},{"$f":"VLOOKUP($A95,[3]PAD!$E$14:$BC$226,42,0)","v":1295},{"$f":"VLOOKUP($A95,[3]STIA!$E$14:$CA$230,37,0)","v":3479},{"$f":"VLOOKUP($A95,[3]STIA!$E$14:$CA$230,42,0)","v":4065},{"$f":"VLOOKUP($A95,[3]STIA!$E$14:$CA$230,53,0)","v":1766},{"$f":"VLOOKUP($A95,[3]STIA!$E$14:$CA$230,58,0)","v":2829}]
["05G","NHS North Staffordshire",{"$f":"VLOOKUP($A96,'[6]201314'!$C$19:$J$256,8,0)","v":153},{"$f":"VLOOKUP($A96,'[6]201314'!$C$19:$J$256,7,0)","v":194081},{"$f":"VLOOKUP($A96,[7]Data!$A$6:$H$228,4,0)","v":504},{"$f":"VLOOKUP(A96,[3]CHD!$E$15:$H$226,4,0)","v":213490},{"$f":"VLOOKUP($A96,[7]Data!$A$6:$H$228,3,0)","v":1012},213490,{"$f":"VLOOKUP($A96,[7]Data!$A$6:$H$228,5,0)","v":392},213490,{"$f":"VLOOKUP($A96,[7]Data!$A$6:$H$228,6,0)","v":582},213490,{"$f":"VLOOKUP($A96,[7]Data!$A$6:$H$228,7,0)","v":327},213490,{"$f":"VLOOKUP($A96,[7]Data!$A$6:$H$228,8,0)","v":78},213490,{"$f":"VLOOKUP($A96,[8]CHD06!$E$15:$O$225,5,0)","v":7613},{"$f":"VLOOKUP($A96,[8]CHD06!$E$15:$O$225,10,0)","v":8710},{"$f":"VLOOKUP($A96,[8]CHD08!$E$15:$O$225,5,0)","v":6436},{"$f":"VLOOKUP($A96,[8]CHD08!$E$15:$O$225,10,0)","v":8710},{"$f":"VLOOKUP($A96,[9]BP05!$E$14:$O$225,5,0)","v":27512},{"$f":"VLOOKUP($A96,[9]BP05!$E$14:$O$225,10,0)","v":35700},{"$f":"VLOOKUP($A96,[10]CKD03!$E$14:$O$225,5,0)","v":5370},{"$f":"VLOOKUP($A96,[10]CKD03!$E$14:$O$225,10,0)","v":7649},{"$f":"VLOOKUP($A96,[11]PAD03!$E$14:$O$225,5,0)","v":1319},{"$f":"VLOOKUP($A96,[11]PAD03!$E$14:$O$225,10,0)","v":1608},{"$f":"VLOOKUP($A96,[11]PAD04!$E$14:$O$225,5,0)","v":1148},{"$f":"VLOOKUP($A96,[11]PAD04!$E$14:$O$225,10,0)","v":1608},{"$f":"VLOOKUP($A96,[12]STROKE06!$E$14:$O$225,5,0)","v":4243},{"$f":"VLOOKUP($A96,[12]STROKE06!$E$14:$O$225,10,0)","v":4970},{"$f":"VLOOKUP($A96,[12]STROKE08!$E$14:$O$225,5,0)","v":3548},{"$f":"VLOOKUP($A96,[12]STROKE08!$E$14:$O$225,10,0)","v":4970},null,null,null,null,null,null,null,null,null,null,null,null,null,null,{"$f":"VLOOKUP($A96,[3]CHD!$E$14:$BS$226,29,0)","v":7072},{"$f":"VLOOKUP($A96,[3]CHD!$E$14:$BS$226,34,0)","v":8125},{"$f":"VLOOKUP($A96,[3]CHD!$E$14:$BS$226,37,0)","v":5808},{"$f":"VLOOKUP($A96,[3]CHD!$E$14:$BS$226,42,0)","v":8125},{"$f":"VLOOKUP($A96,[3]HYP!$E$14:$BK$226,29,0)","v":26323},{"$f":"VLOOKUP($A96,[3]HYP!$E$14:$BK$226,34,0)","v":34207},{"$f":"VLOOKUP($A96,[3]CKD!$E$14:$BG$230,33,0)","v":5073},{"$f":"VLOOKUP($A96,[3]CKD!$E$14:$BG$230,38,0)","v":6911},{"$f":"VLOOKUP(A96,[3]PAD!$E$14:$BC$226,29,0)","v":1200},{"$f":"VLOOKUP($A96,[3]PAD!$E$14:$BC$226,34,0)","v":1455},{"$f":"VLOOKUP($A96,[3]PAD!$E$14:$BC$226,37,0)","v":936},{"$f":"VLOOKUP($A96,[3]PAD!$E$14:$BC$226,42,0)","v":1454},{"$f":"VLOOKUP($A96,[3]STIA!$E$14:$CA$230,37,0)","v":4023},{"$f":"VLOOKUP($A96,[3]STIA!$E$14:$CA$230,42,0)","v":4787},{"$f":"VLOOKUP($A96,[3]STIA!$E$14:$CA$230,53,0)","v":2112},{"$f":"VLOOKUP($A96,[3]STIA!$E$14:$CA$230,58,0)","v":3053}]
["05H","NHS Warwickshire North",{"$f":"VLOOKUP($A97,'[6]201314'!$C$19:$J$256,8,0)","v":129},{"$f":"VLOOKUP($A97,'[6]201314'!$C$19:$J$256,7,0)","v":170027},{"$f":"VLOOKUP($A97,[7]Data!$A$6:$H$228,4,0)","v":312},{"$f":"VLOOKUP(A97,[3]CHD!$E$15:$H$226,4,0)","v":184452},{"$f":"VLOOKUP($A97,[7]Data!$A$6:$H$228,3,0)","v":840},184452,{"$f":"VLOOKUP($A97,[7]Data!$A$6:$H$228,5,0)","v":271},184452,{"$f":"VLOOKUP($A97,[7]Data!$A$6:$H$228,6,0)","v":419},184452,{"$f":"VLOOKUP($A97,[7]Data!$A$6:$H$228,7,0)","v":221},184452,{"$f":"VLOOKUP($A97,[7]Data!$A$6:$H$228,8,0)","v":43},184452,{"$f":"VLOOKUP($A97,[8]CHD06!$E$15:$O$225,5,0)","v":5270},{"$f":"VLOOKUP($A97,[8]CHD06!$E$15:$O$225,10,0)","v":6063},{"$f":"VLOOKUP($A97,[8]CHD08!$E$15:$O$225,5,0)","v":4272},{"$f":"VLOOKUP($A97,[8]CHD08!$E$15:$O$225,10,0)","v":6063},{"$f":"VLOOKUP($A97,[9]BP05!$E$14:$O$225,5,0)","v":22605},{"$f":"VLOOKUP($A97,[9]BP05!$E$14:$O$225,10,0)","v":28729},{"$f":"VLOOKUP($A97,[10]CKD03!$E$14:$O$225,5,0)","v":5927},{"$f":"VLOOKUP($A97,[10]CKD03!$E$14:$O$225,10,0)","v":8256},{"$f":"VLOOKUP($A97,[11]PAD03!$E$14:$O$225,5,0)","v":1008},{"$f":"VLOOKUP($A97,[11]PAD03!$E$14:$O$225,10,0)","v":1176},{"$f":"VLOOKUP($A97,[11]PAD04!$E$14:$O$225,5,0)","v":771},{"$f":"VLOOKUP($A97,[11]PAD04!$E$14:$O$225,10,0)","v":1176},{"$f":"VLOOKUP($A97,[12]STROKE06!$E$14:$O$225,5,0)","v":2604},{"$f":"VLOOKUP($A97,[12]STROKE06!$E$14:$O$225,10,0)","v":3057},{"$f":"VLOOKUP($A97,[12]STROKE08!$E$14:$O$225,5,0)","v":2074},{"$f":"VLOOKUP($A97,[12]STROKE08!$E$14:$O$225,10,0)","v":3057},null,null,null,null,null,null,null,null,null,null,null,null,null,null,{"$f":"VLOOKUP($A97,[3]CHD!$E$14:$BS$226,29,0)","v":5384},{"$f":"VLOOKUP($A97,[3]CHD!$E$14:$BS$226,34,0)","v":6051},{"$f":"VLOOKUP($A97,[3]CHD!$E$14:$BS$226,37,0)","v":4518},{"$f":"VLOOKUP($A97,[3]CHD!$E$14:$BS$226,42,0)","v":6051},{"$f":"VLOOKUP($A97,[3]HYP!$E$14:$BK$226,29,0)","v":23535},{"$f":"VLOOKUP($A97,[3]HYP!$E$14:$BK$226,34,0)","v":28999},{"$f":"VLOOKUP($A97,[3]CKD!$E$14:$BG$230,33,0)","v":6600},{"$f":"VLOOKUP($A97,[3]CKD!$E$14:$BG$230,38,0)","v":8662},{"$f":"VLOOKUP(A97,[3]PAD!$E$14:$BC$226,29,0)","v":1046},{"$f":"VLOOKUP($A97,[3]PAD!$E$14:$BC$226,34,0)","v":1180},{"$f":"VLOOKUP($A97,[3]PAD!$E$14:$BC$226,37,0)","v":849},{"$f":"VLOOKUP($A97,[3]PAD!$E$14:$BC$226,42,0)","v":1180},{"$f":"VLOOKUP($A97,[3]STIA!$E$14:$CA$230,37,0)","v":2737},{"$f":"VLOOKUP($A97,[3]STIA!$E$14:$CA$230,42,0)","v":3190},{"$f":"VLOOKUP($A97,[3]STIA!$E$14:$CA$230,53,0)","v":1599},{"$f":"VLOOKUP($A97,[3]STIA!$E$14:$CA$230,58,0)","v":2294}]
["05J","NHS Redditch and Bromsgrove",{"$f":"VLOOKUP($A98,'[6]201314'!$C$19:$J$256,8,0)","v":91},{"$f":"VLOOKUP($A98,'[6]201314'!$C$19:$J$256,7,0)","v":158689},{"$f":"VLOOKUP($A98,[7]Data!$A$6:$H$228,4,0)","v":310},{"$f":"VLOOKUP(A98,[3]CHD!$E$15:$H$226,4,0)","v":171964},{"$f":"VLOOKUP($A98,[7]Data!$A$6:$H$228,3,0)","v":965},171964,{"$f":"VLOOKUP($A98,[7]Data!$A$6:$H$228,5,0)","v":214},171964,{"$f":"VLOOKUP($A98,[7]Data!$A$6:$H$228,6,0)","v":429},171964,{"$f":"VLOOKUP($A98,[7]Data!$A$6:$H$228,7,0)","v":227},171964,{"$f":"VLOOKUP($A98,[7]Data!$A$6:$H$228,8,0)","v":43},171964,{"$f":"VLOOKUP($A98,[8]CHD06!$E$15:$O$225,5,0)","v":5413},{"$f":"VLOOKUP($A98,[8]CHD06!$E$15:$O$225,10,0)","v":6093},{"$f":"VLOOKUP($A98,[8]CHD08!$E$15:$O$225,5,0)","v":4325},{"$f":"VLOOKUP($A98,[8]CHD08!$E$15:$O$225,10,0)","v":6093},{"$f":"VLOOKUP($A98,[9]BP05!$E$14:$O$225,5,0)","v":19075},{"$f":"VLOOKUP($A98,[9]BP05!$E$14:$O$225,10,0)","v":24678},{"$f":"VLOOKUP($A98,[10]CKD03!$E$14:$O$225,5,0)","v":5015},{"$f":"VLOOKUP($A98,[10]CKD03!$E$14:$O$225,10,0)","v":7059},{"$f":"VLOOKUP($A98,[11]PAD03!$E$14:$O$225,5,0)","v":879},{"$f":"VLOOKUP($A98,[11]PAD03!$E$14:$O$225,10,0)","v":1031},{"$f":"VLOOKUP($A98,[11]PAD04!$E$14:$O$225,5,0)","v":705},{"$f":"VLOOKUP($A98,[11]PAD04!$E$14:$O$225,10,0)","v":1031},{"$f":"VLOOKUP($A98,[12]STROKE06!$E$14:$O$225,5,0)","v":2781},{"$f":"VLOOKUP($A98,[12]STROKE06!$E$14:$O$225,10,0)","v":3256},{"$f":"VLOOKUP($A98,[12]STROKE08!$E$14:$O$225,5,0)","v":2147},{"$f":"VLOOKUP($A98,[12]STROKE08!$E$14:$O$225,10,0)","v":3256},null,null,null,null,null,null,null,null,null,null,null,null,null,null,{"$f":"VLOOKUP($A98,[3]CHD!$E$14:$BS$226,29,0)","v":5439},{"$f":"VLOOKUP($A98,[3]CHD!$E$14:$BS$226,34,0)","v":6060},{"$f":"VLOOKUP($A98,[3]CHD!$E$14:$BS$226,37,0)","v":4508},{"$f":"VLOOKUP($A98,[3]CHD!$E$14:$BS$226,42,0)","v":6060},{"$f":"VLOOKUP($A98,[3]HYP!$E$14:$BK$226,29,0)","v":20187},{"$f":"VLOOKUP($A98,[3]HYP!$E$14:$BK$226,34,0)","v":25395},{"$f":"VLOOKUP($A98,[3]CKD!$E$14:$BG$230,33,0)","v":5255},{"$f":"VLOOKUP($A98,[3]CKD!$E$14:$BG$230,38,0)","v":7027},{"$f":"VLOOKUP(A98,[3]PAD!$E$14:$BC$226,29,0)","v":955},{"$f":"VLOOKUP($A98,[3]PAD!$E$14:$BC$226,34,0)","v":1104},{"$f":"VLOOKUP($A98,[3]PAD!$E$14:$BC$226,37,0)","v":762},{"$f":"VLOOKUP($A98,[3]PAD!$E$14:$BC$226,42,0)","v":1104},{"$f":"VLOOKUP($A98,[3]STIA!$E$14:$CA$230,37,0)","v":2890},{"$f":"VLOOKUP($A98,[3]STIA!$E$14:$CA$230,42,0)","v":3348},{"$f":"VLOOKUP($A98,[3]STIA!$E$14:$CA$230,53,0)","v":2086},{"$f":"VLOOKUP($A98,[3]STIA!$E$14:$CA$230,58,0)","v":2988}]
["05L","NHS Sandwell and West Birmingham",{"$f":"VLOOKUP($A99,'[6]201314'!$C$19:$J$256,8,0)","v":357},{"$f":"VLOOKUP($A99,'[6]201314'!$C$19:$J$256,7,0)","v":508998},{"$f":"VLOOKUP($A99,[7]Data!$A$6:$H$228,4,0)","v":592},{"$f":"VLOOKUP(A99,[3]CHD!$E$15:$H$226,4,0)","v":539982},{"$f":"VLOOKUP($A99,[7]Data!$A$6:$H$228,3,0)","v":2413},539982,{"$f":"VLOOKUP($A99,[7]Data!$A$6:$H$228,5,0)","v":798},539982,{"$f":"VLOOKUP($A99,[7]Data!$A$6:$H$228,6,0)","v":1690},539982,{"$f":"VLOOKUP($A99,[7]Data!$A$6:$H$228,7,0)","v":739},539982,{"$f":"VLOOKUP($A99,[7]Data!$A$6:$H$228,8,0)","v":216},539982,{"$f":"VLOOKUP($A99,[8]CHD06!$E$15:$O$225,5,0)","v":14346},{"$f":"VLOOKUP($A99,[8]CHD06!$E$15:$O$225,10,0)","v":16466},{"$f":"VLOOKUP($A99,[8]CHD08!$E$15:$O$225,5,0)","v":11934},{"$f":"VLOOKUP($A99,[8]CHD08!$E$15:$O$225,10,0)","v":16462},{"$f":"VLOOKUP($A99,[9]BP05!$E$14:$O$225,5,0)","v":58480},{"$f":"VLOOKUP($A99,[9]BP05!$E$14:$O$225,10,0)","v":75421},{"$f":"VLOOKUP($A99,[10]CKD03!$E$14:$O$225,5,0)","v":13198},{"$f":"VLOOKUP($A99,[10]CKD03!$E$14:$O$225,10,0)","v":18153},{"$f":"VLOOKUP($A99,[11]PAD03!$E$14:$O$225,5,0)","v":2413},{"$f":"VLOOKUP($A99,[11]PAD03!$E$14:$O$225,10,0)","v":2794},{"$f":"VLOOKUP($A99,[11]PAD04!$E$14:$O$225,5,0)","v":1941},{"$f":"VLOOKUP($A99,[11]PAD04!$E$14:$O$225,10,0)","v":2794},{"$f":"VLOOKUP($A99,[12]STROKE06!$E$14:$O$225,5,0)","v":6471},{"$f":"VLOOKUP($A99,[12]STROKE06!$E$14:$O$225,10,0)","v":7550},{"$f":"VLOOKUP($A99,[12]STROKE08!$E$14:$O$225,5,0)","v":5182},{"$f":"VLOOKUP($A99,[12]STROKE08!$E$14:$O$225,10,0)","v":7550},null,null,null,null,null,null,null,null,null,null,null,null,null,null,{"$f":"VLOOKUP($A99,[3]CHD!$E$14:$BS$226,29,0)","v":14711},{"$f":"VLOOKUP($A99,[3]CHD!$E$14:$BS$226,34,0)","v":16563},{"$f":"VLOOKUP($A99,[3]CHD!$E$14:$BS$226,37,0)","v":12085},{"$f":"VLOOKUP($A99,[3]CHD!$E$14:$BS$226,42,0)","v":16563},{"$f":"VLOOKUP($A99,[3]HYP!$E$14:$BK$226,29,0)","v":60875},{"$f":"VLOOKUP($A99,[3]HYP!$E$14:$BK$226,34,0)","v":75729},{"$f":"VLOOKUP($A99,[3]CKD!$E$14:$BG$230,33,0)","v":13102},{"$f":"VLOOKUP($A99,[3]CKD!$E$14:$BG$230,38,0)","v":16927},{"$f":"VLOOKUP(A99,[3]PAD!$E$14:$BC$226,29,0)","v":2381},{"$f":"VLOOKUP($A99,[3]PAD!$E$14:$BC$226,34,0)","v":2723},{"$f":"VLOOKUP($A99,[3]PAD!$E$14:$BC$226,37,0)","v":1890},{"$f":"VLOOKUP($A99,[3]PAD!$E$14:$BC$226,42,0)","v":2723},{"$f":"VLOOKUP($A99,[3]STIA!$E$14:$CA$230,37,0)","v":6492},{"$f":"VLOOKUP($A99,[3]STIA!$E$14:$CA$230,42,0)","v":7588},{"$f":"VLOOKUP($A99,[3]STIA!$E$14:$CA$230,53,0)","v":3377},{"$f":"VLOOKUP($A99,[3]STIA!$E$14:$CA$230,58,0)","v":4779}]
["05N","NHS Shropshire",{"$f":"VLOOKUP($A100,'[6]201314'!$C$19:$J$256,8,0)","v":209},{"$f":"VLOOKUP($A100,'[6]201314'!$C$19:$J$256,7,0)","v":268500},{"$f":"VLOOKUP($A100,[7]Data!$A$6:$H$228,4,0)","v":613},{"$f":"VLOOKUP(A100,[3]CHD!$E$15:$H$226,4,0)","v":298888},{"$f":"VLOOKUP($A100,[7]Data!$A$6:$H$228,3,0)","v":1655},298888,{"$f":"VLOOKUP($A100,[7]Data!$A$6:$H$228,5,0)","v":382},298888,{"$f":"VLOOKUP($A100,[7]Data!$A$6:$H$228,6,0)","v":931},298888,{"$f":"VLOOKUP($A100,[7]Data!$A$6:$H$228,7,0)","v":351},298888,{"$f":"VLOOKUP($A100,[7]Data!$A$6:$H$228,8,0)","v":113},298888,{"$f":"VLOOKUP($A100,[8]CHD06!$E$15:$O$225,5,0)","v":9792},{"$f":"VLOOKUP($A100,[8]CHD06!$E$15:$O$225,10,0)","v":11295},{"$f":"VLOOKUP($A100,[8]CHD08!$E$15:$O$225,5,0)","v":8209},{"$f":"VLOOKUP($A100,[8]CHD08!$E$15:$O$225,10,0)","v":11295},{"$f":"VLOOKUP($A100,[9]BP05!$E$14:$O$225,5,0)","v":35144},{"$f":"VLOOKUP($A100,[9]BP05!$E$14:$O$225,10,0)","v":46332},{"$f":"VLOOKUP($A100,[10]CKD03!$E$14:$O$225,5,0)","v":10106},{"$f":"VLOOKUP($A100,[10]CKD03!$E$14:$O$225,10,0)","v":14615},{"$f":"VLOOKUP($A100,[11]PAD03!$E$14:$O$225,5,0)","v":2759},{"$f":"VLOOKUP($A100,[11]PAD03!$E$14:$O$225,10,0)","v":3268},{"$f":"VLOOKUP($A100,[11]PAD04!$E$14:$O$225,5,0)","v":2395},{"$f":"VLOOKUP($A100,[11]PAD04!$E$14:$O$225,10,0)","v":3268},{"$f":"VLOOKUP($A100,[12]STROKE06!$E$14:$O$225,5,0)","v":5678},{"$f":"VLOOKUP($A100,[12]STROKE06!$E$14:$O$225,10,0)","v":6689},{"$f":"VLOOKUP($A100,[12]STROKE08!$E$14:$O$225,5,0)","v":4618},{"$f":"VLOOKUP($A100,[12]STROKE08!$E$14:$O$225,10,0)","v":6689},null,null,null,null,null,null,null,null,null,null,null,null,null,null,{"$f":"VLOOKUP($A100,[3]CHD!$E$14:$BS$226,29,0)","v":10018},{"$f":"VLOOKUP($A100,[3]CHD!$E$14:$BS$226,34,0)","v":11295},{"$f":"VLOOKUP($A100,[3]CHD!$E$14:$BS$226,37,0)","v":8461},{"$f":"VLOOKUP($A100,[3]CHD!$E$14:$BS$226,42,0)","v":11295},{"$f":"VLOOKUP($A100,[3]HYP!$E$14:$BK$226,29,0)","v":36604},{"$f":"VLOOKUP($A100,[3]HYP!$E$14:$BK$226,34,0)","v":47051},{"$f":"VLOOKUP($A100,[3]CKD!$E$14:$BG$230,33,0)","v":10312},{"$f":"VLOOKUP($A100,[3]CKD!$E$14:$BG$230,38,0)","v":14316},{"$f":"VLOOKUP(A100,[3]PAD!$E$14:$BC$226,29,0)","v":2703},{"$f":"VLOOKUP($A100,[3]PAD!$E$14:$BC$226,34,0)","v":3183},{"$f":"VLOOKUP($A100,[3]PAD!$E$14:$BC$226,37,0)","v":2318},{"$f":"VLOOKUP($A100,[3]PAD!$E$14:$BC$226,42,0)","v":3183},{"$f":"VLOOKUP($A100,[3]STIA!$E$14:$CA$230,37,0)","v":5840},{"$f":"VLOOKUP($A100,[3]STIA!$E$14:$CA$230,42,0)","v":6871},{"$f":"VLOOKUP($A100,[3]STIA!$E$14:$CA$230,53,0)","v":2955},{"$f":"VLOOKUP($A100,[3]STIA!$E$14:$CA$230,58,0)","v":4268}]
["05P","NHS Solihull",{"$f":"VLOOKUP($A101,'[6]201314'!$C$19:$J$256,8,0)","v":131},{"$f":"VLOOKUP($A101,'[6]201314'!$C$19:$J$256,7,0)","v":216222},{"$f":"VLOOKUP($A101,[7]Data!$A$6:$H$228,4,0)","v":292},{"$f":"VLOOKUP(A101,[3]CHD!$E$15:$H$226,4,0)","v":237485},{"$f":"VLOOKUP($A101,[7]Data!$A$6:$H$228,3,0)","v":1193},237485,{"$f":"VLOOKUP($A101,[7]Data!$A$6:$H$228,5,0)","v":308},237485,{"$f":"VLOOKUP($A101,[7]Data!$A$6:$H$228,6,0)","v":912},237485,{"$f":"VLOOKUP($A101,[7]Data!$A$6:$H$228,7,0)","v":431},237485,{"$f":"VLOOKUP($A101,[7]Data!$A$6:$H$228,8,0)","v":142},237485,{"$f":"VLOOKUP($A101,[8]CHD06!$E$15:$O$225,5,0)","v":7299},{"$f":"VLOOKUP($A101,[8]CHD06!$E$15:$O$225,10,0)","v":8462},{"$f":"VLOOKUP($A101,[8]CHD08!$E$15:$O$225,5,0)","v":6329},{"$f":"VLOOKUP($A101,[8]CHD08!$E$15:$O$225,10,0)","v":8462},{"$f":"VLOOKUP($A101,[9]BP05!$E$14:$O$225,5,0)","v":27692},{"$f":"VLOOKUP($A101,[9]BP05!$E$14:$O$225,10,0)","v":36371},{"$f":"VLOOKUP($A101,[10]CKD03!$E$14:$O$225,5,0)","v":5191},{"$f":"VLOOKUP($A101,[10]CKD03!$E$14:$O$225,10,0)","v":7598},{"$f":"VLOOKUP($A101,[11]PAD03!$E$14:$O$225,5,0)","v":1176},{"$f":"VLOOKUP($A101,[11]PAD03!$E$14:$O$225,10,0)","v":1405},{"$f":"VLOOKUP($A101,[11]PAD04!$E$14:$O$225,5,0)","v":1029},{"$f":"VLOOKUP($A101,[11]PAD04!$E$14:$O$225,10,0)","v":1405},{"$f":"VLOOKUP($A101,[12]STROKE06!$E$14:$O$225,5,0)","v":3724},{"$f":"VLOOKUP($A101,[12]STROKE06!$E$14:$O$225,10,0)","v":4392},{"$f":"VLOOKUP($A101,[12]STROKE08!$E$14:$O$225,5,0)","v":3055},{"$f":"VLOOKUP($A101,[12]STROKE08!$E$14:$O$225,10,0)","v":4392},null,null,null,null,null,null,null,null,null,null,null,null,null,null,{"$f":"VLOOKUP($A101,[3]CHD!$E$14:$BS$226,29,0)","v":7368},{"$f":"VLOOKUP($A101,[3]CHD!$E$14:$BS$226,34,0)","v":8448},{"$f":"VLOOKUP($A101,[3]CHD!$E$14:$BS$226,37,0)","v":6185},{"$f":"VLOOKUP($A101,[3]CHD!$E$14:$BS$226,42,0)","v":8448},{"$f":"VLOOKUP($A101,[3]HYP!$E$14:$BK$226,29,0)","v":28903},{"$f":"VLOOKUP($A101,[3]HYP!$E$14:$BK$226,34,0)","v":36735},{"$f":"VLOOKUP($A101,[3]CKD!$E$14:$BG$230,33,0)","v":5138},{"$f":"VLOOKUP($A101,[3]CKD!$E$14:$BG$230,38,0)","v":7093},{"$f":"VLOOKUP(A101,[3]PAD!$E$14:$BC$226,29,0)","v":1220},{"$f":"VLOOKUP($A101,[3]PAD!$E$14:$BC$226,34,0)","v":1396},{"$f":"VLOOKUP($A101,[3]PAD!$E$14:$BC$226,37,0)","v":1009},{"$f":"VLOOKUP($A101,[3]PAD!$E$14:$BC$226,42,0)","v":1396},{"$f":"VLOOKUP($A101,[3]STIA!$E$14:$CA$230,37,0)","v":3801},{"$f":"VLOOKUP($A101,[3]STIA!$E$14:$CA$230,42,0)","v":4502},{"$f":"VLOOKUP($A101,[3]STIA!$E$14:$CA$230,53,0)","v":2204},{"$f":"VLOOKUP($A101,[3]STIA!$E$14:$CA$230,58,0)","v":3194}]
["05Q","NHS South East Staffs and Seisdon Peninsular",{"$f":"VLOOKUP($A102,'[6]201314'!$C$19:$J$256,8,0)","v":133},{"$f":"VLOOKUP($A102,'[6]201314'!$C$19:$J$256,7,0)","v":194998},{"$f":"VLOOKUP($A102,[7]Data!$A$6:$H$228,4,0)","v":392},{"$f":"VLOOKUP(A102,[3]CHD!$E$15:$H$226,4,0)","v":212023},{"$f":"VLOOKUP($A102,[7]Data!$A$6:$H$228,3,0)","v":1112},212023,{"$f":"VLOOKUP($A102,[7]Data!$A$6:$H$228,5,0)","v":270},212023,{"$f":"VLOOKUP($A102,[7]Data!$A$6:$H$228,6,0)","v":717},212023,{"$f":"VLOOKUP($A102,[7]Data!$A$6:$H$228,7,0)","v":358},212023,{"$f":"VLOOKUP($A102,[7]Data!$A$6:$H$228,8,0)","v":83},212023,{"$f":"VLOOKUP($A102,[8]CHD06!$E$15:$O$225,5,0)","v":6841},{"$f":"VLOOKUP($A102,[8]CHD06!$E$15:$O$225,10,0)","v":7724},{"$f":"VLOOKUP($A102,[8]CHD08!$E$15:$O$225,5,0)","v":5592},{"$f":"VLOOKUP($A102,[8]CHD08!$E$15:$O$225,10,0)","v":7724},{"$f":"VLOOKUP($A102,[9]BP05!$E$14:$O$225,5,0)","v":23562},{"$f":"VLOOKUP($A102,[9]BP05!$E$14:$O$225,10,0)","v":31149},{"$f":"VLOOKUP($A102,[10]CKD03!$E$14:$O$225,5,0)","v":5002},{"$f":"VLOOKUP($A102,[10]CKD03!$E$14:$O$225,10,0)","v":7109},{"$f":"VLOOKUP($A102,[11]PAD03!$E$14:$O$225,5,0)","v":1090},{"$f":"VLOOKUP($A102,[11]PAD03!$E$14:$O$225,10,0)","v":1276},{"$f":"VLOOKUP($A102,[11]PAD04!$E$14:$O$225,5,0)","v":835},{"$f":"VLOOKUP($A102,[11]PAD04!$E$14:$O$225,10,0)","v":1276},{"$f":"VLOOKUP($A102,[12]STROKE06!$E$14:$O$225,5,0)","v":3348},{"$f":"VLOOKUP($A102,[12]STROKE06!$E$14:$O$225,10,0)","v":3903},{"$f":"VLOOKUP($A102,[12]STROKE08!$E$14:$O$225,5,0)","v":2653},{"$f":"VLOOKUP($A102,[12]STROKE08!$E$14:$O$225,10,0)","v":3903},null,null,null,null,null,null,null,null,null,null,null,null,null,null,{"$f":"VLOOKUP($A102,[3]CHD!$E$14:$BS$226,29,0)","v":6712},{"$f":"VLOOKUP($A102,[3]CHD!$E$14:$BS$226,34,0)","v":7695},{"$f":"VLOOKUP($A102,[3]CHD!$E$14:$BS$226,37,0)","v":5329},{"$f":"VLOOKUP($A102,[3]CHD!$E$14:$BS$226,42,0)","v":7695},{"$f":"VLOOKUP($A102,[3]HYP!$E$14:$BK$226,29,0)","v":23700},{"$f":"VLOOKUP($A102,[3]HYP!$E$14:$BK$226,34,0)","v":31336},{"$f":"VLOOKUP($A102,[3]CKD!$E$14:$BG$230,33,0)","v":5006},{"$f":"VLOOKUP($A102,[3]CKD!$E$14:$BG$230,38,0)","v":6980},{"$f":"VLOOKUP(A102,[3]PAD!$E$14:$BC$226,29,0)","v":1053},{"$f":"VLOOKUP($A102,[3]PAD!$E$14:$BC$226,34,0)","v":1274},{"$f":"VLOOKUP($A102,[3]PAD!$E$14:$BC$226,37,0)","v":790},{"$f":"VLOOKUP($A102,[3]PAD!$E$14:$BC$226,42,0)","v":1274},{"$f":"VLOOKUP($A102,[3]STIA!$E$14:$CA$230,37,0)","v":3250},{"$f":"VLOOKUP($A102,[3]STIA!$E$14:$CA$230,42,0)","v":3947},{"$f":"VLOOKUP($A102,[3]STIA!$E$14:$CA$230,53,0)","v":1664},{"$f":"VLOOKUP($A102,[3]STIA!$E$14:$CA$230,58,0)","v":2538}]
["05R","NHS South Warwickshire",{"$f":"VLOOKUP($A103,'[6]201314'!$C$19:$J$256,8,0)","v":158},{"$f":"VLOOKUP($A103,'[6]201314'!$C$19:$J$256,7,0)","v":248644},{"$f":"VLOOKUP($A103,[7]Data!$A$6:$H$228,4,0)","v":377},{"$f":"VLOOKUP(A103,[3]CHD!$E$15:$H$226,4,0)","v":273506},{"$f":"VLOOKUP($A103,[7]Data!$A$6:$H$228,3,0)","v":1072},273506,{"$f":"VLOOKUP($A103,[7]Data!$A$6:$H$228,5,0)","v":231},273506,{"$f":"VLOOKUP($A103,[7]Data!$A$6:$H$228,6,0)","v":583},273506,{"$f":"VLOOKUP($A103,[7]Data!$A$6:$H$228,7,0)","v":283},273506,{"$f":"VLOOKUP($A103,[7]Data!$A$6:$H$228,8,0)","v":74},273506,{"$f":"VLOOKUP($A103,[8]CHD06!$E$15:$O$225,5,0)","v":7797},{"$f":"VLOOKUP($A103,[8]CHD06!$E$15:$O$225,10,0)","v":8659},{"$f":"VLOOKUP($A103,[8]CHD08!$E$15:$O$225,5,0)","v":6159},{"$f":"VLOOKUP($A103,[8]CHD08!$E$15:$O$225,10,0)","v":8659},{"$f":"VLOOKUP($A103,[9]BP05!$E$14:$O$225,5,0)","v":31702},{"$f":"VLOOKUP($A103,[9]BP05!$E$14:$O$225,10,0)","v":39654},{"$f":"VLOOKUP($A103,[10]CKD03!$E$14:$O$225,5,0)","v":8061},{"$f":"VLOOKUP($A103,[10]CKD03!$E$14:$O$225,10,0)","v":11507},{"$f":"VLOOKUP($A103,[11]PAD03!$E$14:$O$225,5,0)","v":1347},{"$f":"VLOOKUP($A103,[11]PAD03!$E$14:$O$225,10,0)","v":1539},{"$f":"VLOOKUP($A103,[11]PAD04!$E$14:$O$225,5,0)","v":1043},{"$f":"VLOOKUP($A103,[11]PAD04!$E$14:$O$225,10,0)","v":1539},{"$f":"VLOOKUP($A103,[12]STROKE06!$E$14:$O$225,5,0)","v":4263},{"$f":"VLOOKUP($A103,[12]STROKE06!$E$14:$O$225,10,0)","v":4903},{"$f":"VLOOKUP($A103,[12]STROKE08!$E$14:$O$225,5,0)","v":3205},{"$f":"VLOOKUP($A103,[12]STROKE08!$E$14:$O$225,10,0)","v":4903},null,null,null,null,null,null,null,null,null,null,null,null,null,null,{"$f":"VLOOKUP($A103,[3]CHD!$E$14:$BS$226,29,0)","v":7812},{"$f":"VLOOKUP($A103,[3]CHD!$E$14:$BS$226,34,0)","v":8511},{"$f":"VLOOKUP($A103,[3]CHD!$E$14:$BS$226,37,0)","v":6438},{"$f":"VLOOKUP($A103,[3]CHD!$E$14:$BS$226,42,0)","v":8511},{"$f":"VLOOKUP($A103,[3]HYP!$E$14:$BK$226,29,0)","v":33321},{"$f":"VLOOKUP($A103,[3]HYP!$E$14:$BK$226,34,0)","v":40140},{"$f":"VLOOKUP($A103,[3]CKD!$E$14:$BG$230,33,0)","v":9091},{"$f":"VLOOKUP($A103,[3]CKD!$E$14:$BG$230,38,0)","v":11540},{"$f":"VLOOKUP(A103,[3]PAD!$E$14:$BC$226,29,0)","v":1339},{"$f":"VLOOKUP($A103,[3]PAD!$E$14:$BC$226,34,0)","v":1494},{"$f":"VLOOKUP($A103,[3]PAD!$E$14:$BC$226,37,0)","v":1070},{"$f":"VLOOKUP($A103,[3]PAD!$E$14:$BC$226,42,0)","v":1494},{"$f":"VLOOKUP($A103,[3]STIA!$E$14:$CA$230,37,0)","v":4473},{"$f":"VLOOKUP($A103,[3]STIA!$E$14:$CA$230,42,0)","v":5062},{"$f":"VLOOKUP($A103,[3]STIA!$E$14:$CA$230,53,0)","v":2314},{"$f":"VLOOKUP($A103,[3]STIA!$E$14:$CA$230,58,0)","v":3357}]
["05T","NHS South Worcestershire",{"$f":"VLOOKUP($A104,'[6]201314'!$C$19:$J$256,8,0)","v":173},{"$f":"VLOOKUP($A104,'[6]201314'!$C$19:$J$256,7,0)","v":266891},{"$f":"VLOOKUP($A104,[7]Data!$A$6:$H$228,4,0)","v":555},{"$f":"VLOOKUP(A104,[3]CHD!$E$15:$H$226,4,0)","v":294796},{"$f":"VLOOKUP($A104,[7]Data!$A$6:$H$228,3,0)","v":1233},294796,{"$f":"VLOOKUP($A104,[7]Data!$A$6:$H$228,5,0)","v":310},294796,{"$f":"VLOOKUP($A104,[7]Data!$A$6:$H$228,6,0)","v":635},294796,{"$f":"VLOOKUP($A104,[7]Data!$A$6:$H$228,7,0)","v":362},294796,{"$f":"VLOOKUP($A104,[7]Data!$A$6:$H$228,8,0)","v":67},294796,{"$f":"VLOOKUP($A104,[8]CHD06!$E$15:$O$225,5,0)","v":8610},{"$f":"VLOOKUP($A104,[8]CHD06!$E$15:$O$225,10,0)","v":9839},{"$f":"VLOOKUP($A104,[8]CHD08!$E$15:$O$225,5,0)","v":7195},{"$f":"VLOOKUP($A104,[8]CHD08!$E$15:$O$225,10,0)","v":9839},{"$f":"VLOOKUP($A104,[9]BP05!$E$14:$O$225,5,0)","v":32810},{"$f":"VLOOKUP($A104,[9]BP05!$E$14:$O$225,10,0)","v":42418},{"$f":"VLOOKUP($A104,[10]CKD03!$E$14:$O$225,5,0)","v":8754},{"$f":"VLOOKUP($A104,[10]CKD03!$E$14:$O$225,10,0)","v":12359},{"$f":"VLOOKUP($A104,[11]PAD03!$E$14:$O$225,5,0)","v":1501},{"$f":"VLOOKUP($A104,[11]PAD03!$E$14:$O$225,10,0)","v":1770},{"$f":"VLOOKUP($A104,[11]PAD04!$E$14:$O$225,5,0)","v":1239},{"$f":"VLOOKUP($A104,[11]PAD04!$E$14:$O$225,10,0)","v":1770},{"$f":"VLOOKUP($A104,[12]STROKE06!$E$14:$O$225,5,0)","v":4541},{"$f":"VLOOKUP($A104,[12]STROKE06!$E$14:$O$225,10,0)","v":5368},{"$f":"VLOOKUP($A104,[12]STROKE08!$E$14:$O$225,5,0)","v":3579},{"$f":"VLOOKUP($A104,[12]STROKE08!$E$14:$O$225,10,0)","v":5368},null,null,null,null,null,null,null,null,null,null,null,null,null,null,{"$f":"VLOOKUP($A104,[3]CHD!$E$14:$BS$226,29,0)","v":8870},{"$f":"VLOOKUP($A104,[3]CHD!$E$14:$BS$226,34,0)","v":9818},{"$f":"VLOOKUP($A104,[3]CHD!$E$14:$BS$226,37,0)","v":7524},{"$f":"VLOOKUP($A104,[3]CHD!$E$14:$BS$226,42,0)","v":9818},{"$f":"VLOOKUP($A104,[3]HYP!$E$14:$BK$226,29,0)","v":35333},{"$f":"VLOOKUP($A104,[3]HYP!$E$14:$BK$226,34,0)","v":43671},{"$f":"VLOOKUP($A104,[3]CKD!$E$14:$BG$230,33,0)","v":9581},{"$f":"VLOOKUP($A104,[3]CKD!$E$14:$BG$230,38,0)","v":12511},{"$f":"VLOOKUP(A104,[3]PAD!$E$14:$BC$226,29,0)","v":1535},{"$f":"VLOOKUP($A104,[3]PAD!$E$14:$BC$226,34,0)","v":1785},{"$f":"VLOOKUP($A104,[3]PAD!$E$14:$BC$226,37,0)","v":1301},{"$f":"VLOOKUP($A104,[3]PAD!$E$14:$BC$226,42,0)","v":1785},{"$f":"VLOOKUP($A104,[3]STIA!$E$14:$CA$230,37,0)","v":4860},{"$f":"VLOOKUP($A104,[3]STIA!$E$14:$CA$230,42,0)","v":5517},{"$f":"VLOOKUP($A104,[3]STIA!$E$14:$CA$230,53,0)","v":3486},{"$f":"VLOOKUP($A104,[3]STIA!$E$14:$CA$230,58,0)","v":4871}]
["05V","NHS Stafford and Surrounds",{"$f":"VLOOKUP($A105,'[6]201314'!$C$19:$J$256,8,0)","v":87},{"$f":"VLOOKUP($A105,'[6]201314'!$C$19:$J$256,7,0)","v":131720},{"$f":"VLOOKUP($A105,[7]Data!$A$6:$H$228,4,0)","v":369},{"$f":"VLOOKUP(A105,[3]CHD!$E$15:$H$226,4,0)","v":144927},{"$f":"VLOOKUP($A105,[7]Data!$A$6:$H$228,3,0)","v":724},144927,{"$f":"VLOOKUP($A105,[7]Data!$A$6:$H$228,5,0)","v":179},144927,{"$f":"VLOOKUP($A105,[7]Data!$A$6:$H$228,6,0)","v":464},144927,{"$f":"VLOOKUP($A105,[7]Data!$A$6:$H$228,7,0)","v":172},144927,{"$f":"VLOOKUP($A105,[7]Data!$A$6:$H$228,8,0)","v":49},144927,{"$f":"VLOOKUP($A105,[8]CHD06!$E$15:$O$225,5,0)","v":4817},{"$f":"VLOOKUP($A105,[8]CHD06!$E$15:$O$225,10,0)","v":5496},{"$f":"VLOOKUP($A105,[8]CHD08!$E$15:$O$225,5,0)","v":4026},{"$f":"VLOOKUP($A105,[8]CHD08!$E$15:$O$225,10,0)","v":5496},{"$f":"VLOOKUP($A105,[9]BP05!$E$14:$O$225,5,0)","v":16595},{"$f":"VLOOKUP($A105,[9]BP05!$E$14:$O$225,10,0)","v":21888},{"$f":"VLOOKUP($A105,[10]CKD03!$E$14:$O$225,5,0)","v":3242},{"$f":"VLOOKUP($A105,[10]CKD03!$E$14:$O$225,10,0)","v":4849},{"$f":"VLOOKUP($A105,[11]PAD03!$E$14:$O$225,5,0)","v":862},{"$f":"VLOOKUP($A105,[11]PAD03!$E$14:$O$225,10,0)","v":996},{"$f":"VLOOKUP($A105,[11]PAD04!$E$14:$O$225,5,0)","v":671},{"$f":"VLOOKUP($A105,[11]PAD04!$E$14:$O$225,10,0)","v":996},{"$f":"VLOOKUP($A105,[12]STROKE06!$E$14:$O$225,5,0)","v":2456},{"$f":"VLOOKUP($A105,[12]STROKE06!$E$14:$O$225,10,0)","v":2917},{"$f":"VLOOKUP($A105,[12]STROKE08!$E$14:$O$225,5,0)","v":1973},{"$f":"VLOOKUP($A105,[12]STROKE08!$E$14:$O$225,10,0)","v":2917},null,null,null,null,null,null,null,null,null,null,null,null,null,null,{"$f":"VLOOKUP($A105,[3]CHD!$E$14:$BS$226,29,0)","v":4691},{"$f":"VLOOKUP($A105,[3]CHD!$E$14:$BS$226,34,0)","v":5427},{"$f":"VLOOKUP($A105,[3]CHD!$E$14:$BS$226,37,0)","v":3842},{"$f":"VLOOKUP($A105,[3]CHD!$E$14:$BS$226,42,0)","v":5427},{"$f":"VLOOKUP($A105,[3]HYP!$E$14:$BK$226,29,0)","v":17040},{"$f":"VLOOKUP($A105,[3]HYP!$E$14:$BK$226,34,0)","v":22335},{"$f":"VLOOKUP($A105,[3]CKD!$E$14:$BG$230,33,0)","v":3231},{"$f":"VLOOKUP($A105,[3]CKD!$E$14:$BG$230,38,0)","v":4595},{"$f":"VLOOKUP(A105,[3]PAD!$E$14:$BC$226,29,0)","v":829},{"$f":"VLOOKUP($A105,[3]PAD!$E$14:$BC$226,34,0)","v":985},{"$f":"VLOOKUP($A105,[3]PAD!$E$14:$BC$226,37,0)","v":634},{"$f":"VLOOKUP($A105,[3]PAD!$E$14:$BC$226,42,0)","v":985},{"$f":"VLOOKUP($A105,[3]STIA!$E$14:$CA$230,37,0)","v":2465},{"$f":"VLOOKUP($A105,[3]STIA!$E$14:$CA$230,42,0)","v":2965},{"$f":"VLOOKUP($A105,[3]STIA!$E$14:$CA$230,53,0)","v":1286},{"$f":"VLOOKUP($A105,[3]STIA!$E$14:$CA$230,58,0)","v":1927}]
["05W","NHS Stoke On Trent",{"$f":"VLOOKUP($A106,'[6]201314'!$C$19:$J$256,8,0)","v":176},{"$f":"VLOOKUP($A106,'[6]201314'!$C$19:$J$256,7,0)","v":259485},{"$f":"VLOOKUP($A106,[7]Data!$A$6:$H$228,4,0)","v":583},{"$f":"VLOOKUP(A106,[3]CHD!$E$15:$H$226,4,0)","v":280303},{"$f":"VLOOKUP($A106,[7]Data!$A$6:$H$228,3,0)","v":1068},280303,{"$f":"VLOOKUP($A106,[7]Data!$A$6:$H$228,5,0)","v":399},280303,{"$f":"VLOOKUP($A106,[7]Data!$A$6:$H$228,6,0)","v":653},280303,{"$f":"VLOOKUP($A106,[7]Data!$A$6:$H$228,7,0)","v":349},280303,{"$f":"VLOOKUP($A106,[7]Data!$A$6:$H$228,8,0)","v":72},280303,{"$f":"VLOOKUP($A106,[8]CHD06!$E$15:$O$225,5,0)","v":9898},{"$f":"VLOOKUP($A106,[8]CHD06!$E$15:$O$225,10,0)","v":11133},{"$f":"VLOOKUP($A106,[8]CHD08!$E$15:$O$225,5,0)","v":8464},{"$f":"VLOOKUP($A106,[8]CHD08!$E$15:$O$225,10,0)","v":11133},{"$f":"VLOOKUP($A106,[9]BP05!$E$14:$O$225,5,0)","v":36369},{"$f":"VLOOKUP($A106,[9]BP05!$E$14:$O$225,10,0)","v":46291},{"$f":"VLOOKUP($A106,[10]CKD03!$E$14:$O$225,5,0)","v":6365},{"$f":"VLOOKUP($A106,[10]CKD03!$E$14:$O$225,10,0)","v":8505},{"$f":"VLOOKUP($A106,[11]PAD03!$E$14:$O$225,5,0)","v":2248},{"$f":"VLOOKUP($A106,[11]PAD03!$E$14:$O$225,10,0)","v":2591},{"$f":"VLOOKUP($A106,[11]PAD04!$E$14:$O$225,5,0)","v":1862},{"$f":"VLOOKUP($A106,[11]PAD04!$E$14:$O$225,10,0)","v":2591},{"$f":"VLOOKUP($A106,[12]STROKE06!$E$14:$O$225,5,0)","v":4992},{"$f":"VLOOKUP($A106,[12]STROKE06!$E$14:$O$225,10,0)","v":5714},{"$f":"VLOOKUP($A106,[12]STROKE08!$E$14:$O$225,5,0)","v":4159},{"$f":"VLOOKUP($A106,[12]STROKE08!$E$14:$O$225,10,0)","v":5714},null,null,null,null,null,null,null,null,null,null,null,null,null,null,{"$f":"VLOOKUP($A106,[3]CHD!$E$14:$BS$226,29,0)","v":9600},{"$f":"VLOOKUP($A106,[3]CHD!$E$14:$BS$226,34,0)","v":10730},{"$f":"VLOOKUP($A106,[3]CHD!$E$14:$BS$226,37,0)","v":8101},{"$f":"VLOOKUP($A106,[3]CHD!$E$14:$BS$226,42,0)","v":10730},{"$f":"VLOOKUP($A106,[3]HYP!$E$14:$BK$226,29,0)","v":36102},{"$f":"VLOOKUP($A106,[3]HYP!$E$14:$BK$226,34,0)","v":45602},{"$f":"VLOOKUP($A106,[3]CKD!$E$14:$BG$230,33,0)","v":6360},{"$f":"VLOOKUP($A106,[3]CKD!$E$14:$BG$230,38,0)","v":8185},{"$f":"VLOOKUP(A106,[3]PAD!$E$14:$BC$226,29,0)","v":2169},{"$f":"VLOOKUP($A106,[3]PAD!$E$14:$BC$226,34,0)","v":2489},{"$f":"VLOOKUP($A106,[3]PAD!$E$14:$BC$226,37,0)","v":1751},{"$f":"VLOOKUP($A106,[3]PAD!$E$14:$BC$226,42,0)","v":2489},{"$f":"VLOOKUP($A106,[3]STIA!$E$14:$CA$230,37,0)","v":4844},{"$f":"VLOOKUP($A106,[3]STIA!$E$14:$CA$230,42,0)","v":5627},{"$f":"VLOOKUP($A106,[3]STIA!$E$14:$CA$230,53,0)","v":2577},{"$f":"VLOOKUP($A106,[3]STIA!$E$14:$CA$230,58,0)","v":3540}]
["05X","NHS Telford and Wrekin",{"$f":"VLOOKUP($A107,'[6]201314'!$C$19:$J$256,8,0)","v":108},{"$f":"VLOOKUP($A107,'[6]201314'!$C$19:$J$256,7,0)","v":162753},{"$f":"VLOOKUP($A107,[7]Data!$A$6:$H$228,4,0)","v":292},{"$f":"VLOOKUP(A107,[3]CHD!$E$15:$H$226,4,0)","v":173644},{"$f":"VLOOKUP($A107,[7]Data!$A$6:$H$228,3,0)","v":934},173644,{"$f":"VLOOKUP($A107,[7]Data!$A$6:$H$228,5,0)","v":177},173644,{"$f":"VLOOKUP($A107,[7]Data!$A$6:$H$228,6,0)","v":572},173644,{"$f":"VLOOKUP($A107,[7]Data!$A$6:$H$228,7,0)","v":230},173644,{"$f":"VLOOKUP($A107,[7]Data!$A$6:$H$228,8,0)","v":70},173644,{"$f":"VLOOKUP($A107,[8]CHD06!$E$15:$O$225,5,0)","v":4698},{"$f":"VLOOKUP($A107,[8]CHD06!$E$15:$O$225,10,0)","v":5444},{"$f":"VLOOKUP($A107,[8]CHD08!$E$15:$O$225,5,0)","v":3978},{"$f":"VLOOKUP($A107,[8]CHD08!$E$15:$O$225,10,0)","v":5444},{"$f":"VLOOKUP($A107,[9]BP05!$E$14:$O$225,5,0)","v":18370},{"$f":"VLOOKUP($A107,[9]BP05!$E$14:$O$225,10,0)","v":23947},{"$f":"VLOOKUP($A107,[10]CKD03!$E$14:$O$225,5,0)","v":4172},{"$f":"VLOOKUP($A107,[10]CKD03!$E$14:$O$225,10,0)","v":6031},{"$f":"VLOOKUP($A107,[11]PAD03!$E$14:$O$225,5,0)","v":1229},{"$f":"VLOOKUP($A107,[11]PAD03!$E$14:$O$225,10,0)","v":1481},{"$f":"VLOOKUP($A107,[11]PAD04!$E$14:$O$225,5,0)","v":1012},{"$f":"VLOOKUP($A107,[11]PAD04!$E$14:$O$225,10,0)","v":1481},{"$f":"VLOOKUP($A107,[12]STROKE06!$E$14:$O$225,5,0)","v":2273},{"$f":"VLOOKUP($A107,[12]STROKE06!$E$14:$O$225,10,0)","v":2733},{"$f":"VLOOKUP($A107,[12]STROKE08!$E$14:$O$225,5,0)","v":1854},{"$f":"VLOOKUP($A107,[12]STROKE08!$E$14:$O$225,10,0)","v":2733},null,null,null,null,null,null,null,null,null,null,null,null,null,null,{"$f":"VLOOKUP($A107,[3]CHD!$E$14:$BS$226,29,0)","v":4783},{"$f":"VLOOKUP($A107,[3]CHD!$E$14:$BS$226,34,0)","v":5444},{"$f":"VLOOKUP($A107,[3]CHD!$E$14:$BS$226,37,0)","v":4008},{"$f":"VLOOKUP($A107,[3]CHD!$E$14:$BS$226,42,0)","v":5444},{"$f":"VLOOKUP($A107,[3]HYP!$E$14:$BK$226,29,0)","v":19024},{"$f":"VLOOKUP($A107,[3]HYP!$E$14:$BK$226,34,0)","v":24001},{"$f":"VLOOKUP($A107,[3]CKD!$E$14:$BG$230,33,0)","v":4466},{"$f":"VLOOKUP($A107,[3]CKD!$E$14:$BG$230,38,0)","v":6007},{"$f":"VLOOKUP(A107,[3]PAD!$E$14:$BC$226,29,0)","v":1251},{"$f":"VLOOKUP($A107,[3]PAD!$E$14:$BC$226,34,0)","v":1474},{"$f":"VLOOKUP($A107,[3]PAD!$E$14:$BC$226,37,0)","v":1021},{"$f":"VLOOKUP($A107,[3]PAD!$E$14:$BC$226,42,0)","v":1472},{"$f":"VLOOKUP($A107,[3]STIA!$E$14:$CA$230,37,0)","v":2364},{"$f":"VLOOKUP($A107,[3]STIA!$E$14:$CA$230,42,0)","v":2838},{"$f":"VLOOKUP($A107,[3]STIA!$E$14:$CA$230,53,0)","v":1142},{"$f":"VLOOKUP($A107,[3]STIA!$E$14:$CA$230,58,0)","v":1640}]
["05Y","NHS Walsall",{"$f":"VLOOKUP($A108,'[6]201314'!$C$19:$J$256,8,0)","v":207},{"$f":"VLOOKUP($A108,'[6]201314'!$C$19:$J$256,7,0)","v":250474},{"$f":"VLOOKUP($A108,[7]Data!$A$6:$H$228,4,0)","v":438},{"$f":"VLOOKUP(A108,[3]CHD!$E$15:$H$226,4,0)","v":271415},{"$f":"VLOOKUP($A108,[7]Data!$A$6:$H$228,3,0)","v":1698},271415,{"$f":"VLOOKUP($A108,[7]Data!$A$6:$H$228,5,0)","v":363},271415,{"$f":"VLOOKUP($A108,[7]Data!$A$6:$H$228,6,0)","v":1117},271415,{"$f":"VLOOKUP($A108,[7]Data!$A$6:$H$228,7,0)","v":376},271415,{"$f":"VLOOKUP($A108,[7]Data!$A$6:$H$228,8,0)","v":127},271415,{"$f":"VLOOKUP($A108,[8]CHD06!$E$15:$O$225,5,0)","v":9652},{"$f":"VLOOKUP($A108,[8]CHD06!$E$15:$O$225,10,0)","v":10807},{"$f":"VLOOKUP($A108,[8]CHD08!$E$15:$O$225,5,0)","v":7705},{"$f":"VLOOKUP($A108,[8]CHD08!$E$15:$O$225,10,0)","v":10807},{"$f":"VLOOKUP($A108,[9]BP05!$E$14:$O$225,5,0)","v":33567},{"$f":"VLOOKUP($A108,[9]BP05!$E$14:$O$225,10,0)","v":42007},{"$f":"VLOOKUP($A108,[10]CKD03!$E$14:$O$225,5,0)","v":7979},{"$f":"VLOOKUP($A108,[10]CKD03!$E$14:$O$225,10,0)","v":10608},{"$f":"VLOOKUP($A108,[11]PAD03!$E$14:$O$225,5,0)","v":1550},{"$f":"VLOOKUP($A108,[11]PAD03!$E$14:$O$225,10,0)","v":1760},{"$f":"VLOOKUP($A108,[11]PAD04!$E$14:$O$225,5,0)","v":1188},{"$f":"VLOOKUP($A108,[11]PAD04!$E$14:$O$225,10,0)","v":1760},{"$f":"VLOOKUP($A108,[12]STROKE06!$E$14:$O$225,5,0)","v":4177},{"$f":"VLOOKUP($A108,[12]STROKE06!$E$14:$O$225,10,0)","v":4784},{"$f":"VLOOKUP($A108,[12]STROKE08!$E$14:$O$225,5,0)","v":3237},{"$f":"VLOOKUP($A108,[12]STROKE08!$E$14:$O$225,10,0)","v":4784},null,null,null,null,null,null,null,null,null,null,null,null,null,null,{"$f":"VLOOKUP($A108,[3]CHD!$E$14:$BS$226,29,0)","v":10073},{"$f":"VLOOKUP($A108,[3]CHD!$E$14:$BS$226,34,0)","v":11067},{"$f":"VLOOKUP($A108,[3]CHD!$E$14:$BS$226,37,0)","v":8362},{"$f":"VLOOKUP($A108,[3]CHD!$E$14:$BS$226,42,0)","v":11067},{"$f":"VLOOKUP($A108,[3]HYP!$E$14:$BK$226,29,0)","v":35376},{"$f":"VLOOKUP($A108,[3]HYP!$E$14:$BK$226,34,0)","v":42816},{"$f":"VLOOKUP($A108,[3]CKD!$E$14:$BG$230,33,0)","v":8868},{"$f":"VLOOKUP($A108,[3]CKD!$E$14:$BG$230,38,0)","v":10994},{"$f":"VLOOKUP(A108,[3]PAD!$E$14:$BC$226,29,0)","v":1607},{"$f":"VLOOKUP($A108,[3]PAD!$E$14:$BC$226,34,0)","v":1811},{"$f":"VLOOKUP($A108,[3]PAD!$E$14:$BC$226,37,0)","v":1310},{"$f":"VLOOKUP($A108,[3]PAD!$E$14:$BC$226,42,0)","v":1811},{"$f":"VLOOKUP($A108,[3]STIA!$E$14:$CA$230,37,0)","v":4325},{"$f":"VLOOKUP($A108,[3]STIA!$E$14:$CA$230,42,0)","v":4869},{"$f":"VLOOKUP($A108,[3]STIA!$E$14:$CA$230,53,0)","v":2087},{"$f":"VLOOKUP($A108,[3]STIA!$E$14:$CA$230,58,0)","v":2878}]
["06A","NHS Wolverhampton",{"$f":"VLOOKUP($A109,'[6]201314'!$C$19:$J$256,8,0)","v":174},{"$f":"VLOOKUP($A109,'[6]201314'!$C$19:$J$256,7,0)","v":241836},{"$f":"VLOOKUP($A109,[7]Data!$A$6:$H$228,4,0)","v":528},{"$f":"VLOOKUP(A109,[3]CHD!$E$15:$H$226,4,0)","v":263038},{"$f":"VLOOKUP($A109,[7]Data!$A$6:$H$228,3,0)","v":993},263038,{"$f":"VLOOKUP($A109,[7]Data!$A$6:$H$228,5,0)","v":410},263038,{"$f":"VLOOKUP($A109,[7]Data!$A$6:$H$228,6,0)","v":630},263038,{"$f":"VLOOKUP($A109,[7]Data!$A$6:$H$228,7,0)","v":272},263038,{"$f":"VLOOKUP($A109,[7]Data!$A$6:$H$228,8,0)","v":90},263038,{"$f":"VLOOKUP($A109,[8]CHD06!$E$15:$O$225,5,0)","v":8457},{"$f":"VLOOKUP($A109,[8]CHD06!$E$15:$O$225,10,0)","v":9754},{"$f":"VLOOKUP($A109,[8]CHD08!$E$15:$O$225,5,0)","v":6726},{"$f":"VLOOKUP($A109,[8]CHD08!$E$15:$O$225,10,0)","v":9754},{"$f":"VLOOKUP($A109,[9]BP05!$E$14:$O$225,5,0)","v":31493},{"$f":"VLOOKUP($A109,[9]BP05!$E$14:$O$225,10,0)","v":41019},{"$f":"VLOOKUP($A109,[10]CKD03!$E$14:$O$225,5,0)","v":7082},{"$f":"VLOOKUP($A109,[10]CKD03!$E$14:$O$225,10,0)","v":10186},{"$f":"VLOOKUP($A109,[11]PAD03!$E$14:$O$225,5,0)","v":1546},{"$f":"VLOOKUP($A109,[11]PAD03!$E$14:$O$225,10,0)","v":1830},{"$f":"VLOOKUP($A109,[11]PAD04!$E$14:$O$225,5,0)","v":1217},{"$f":"VLOOKUP($A109,[11]PAD04!$E$14:$O$225,10,0)","v":1830},{"$f":"VLOOKUP($A109,[12]STROKE06!$E$14:$O$225,5,0)","v":3922},{"$f":"VLOOKUP($A109,[12]STROKE06!$E$14:$O$225,10,0)","v":4689},{"$f":"VLOOKUP($A109,[12]STROKE08!$E$14:$O$225,5,0)","v":3115},{"$f":"VLOOKUP($A109,[12]STROKE08!$E$14:$O$225,10,0)","v":4689},null,null,null,null,null,null,null,null,null,null,null,null,null,null,{"$f":"VLOOKUP($A109,[3]CHD!$E$14:$BS$226,29,0)","v":8231},{"$f":"VLOOKUP($A109,[3]CHD!$E$14:$BS$226,34,0)","v":9439},{"$f":"VLOOKUP($A109,[3]CHD!$E$14:$BS$226,37,0)","v":6686},{"$f":"VLOOKUP($A109,[3]CHD!$E$14:$BS$226,42,0)","v":9435},{"$f":"VLOOKUP($A109,[3]HYP!$E$14:$BK$226,29,0)","v":31505},{"$f":"VLOOKUP($A109,[3]HYP!$E$14:$BK$226,34,0)","v":40182},{"$f":"VLOOKUP($A109,[3]CKD!$E$14:$BG$230,33,0)","v":6945},{"$f":"VLOOKUP($A109,[3]CKD!$E$14:$BG$230,38,0)","v":9360},{"$f":"VLOOKUP(A109,[3]PAD!$E$14:$BC$226,29,0)","v":1486},{"$f":"VLOOKUP($A109,[3]PAD!$E$14:$BC$226,34,0)","v":1768},{"$f":"VLOOKUP($A109,[3]PAD!$E$14:$BC$226,37,0)","v":1202},{"$f":"VLOOKUP($A109,[3]PAD!$E$14:$BC$226,42,0)","v":1767},{"$f":"VLOOKUP($A109,[3]STIA!$E$14:$CA$230,37,0)","v":3953},{"$f":"VLOOKUP($A109,[3]STIA!$E$14:$CA$230,42,0)","v":4698},{"$f":"VLOOKUP($A109,[3]STIA!$E$14:$CA$230,53,0)","v":2138},{"$f":"VLOOKUP($A109,[3]STIA!$E$14:$CA$230,58,0)","v":3165}]
["06D","NHS Wyre Forest",{"$f":"VLOOKUP($A110,'[6]201314'!$C$19:$J$256,8,0)","v":104},{"$f":"VLOOKUP($A110,'[6]201314'!$C$19:$J$256,7,0)","v":101691},{"$f":"VLOOKUP($A110,[7]Data!$A$6:$H$228,4,0)","v":191},{"$f":"VLOOKUP(A110,[3]CHD!$E$15:$H$226,4,0)","v":112506},{"$f":"VLOOKUP($A110,[7]Data!$A$6:$H$228,3,0)","v":433},112506,{"$f":"VLOOKUP($A110,[7]Data!$A$6:$H$228,5,0)","v":103},112506,{"$f":"VLOOKUP($A110,[7]Data!$A$6:$H$228,6,0)","v":254},112506,{"$f":"VLOOKUP($A110,[7]Data!$A$6:$H$228,7,0)","v":148},112506,{"$f":"VLOOKUP($A110,[7]Data!$A$6:$H$228,8,0)","v":23},112506,{"$f":"VLOOKUP($A110,[8]CHD06!$E$15:$O$225,5,0)","v":3792},{"$f":"VLOOKUP($A110,[8]CHD06!$E$15:$O$225,10,0)","v":4356},{"$f":"VLOOKUP($A110,[8]CHD08!$E$15:$O$225,5,0)","v":3186},{"$f":"VLOOKUP($A110,[8]CHD08!$E$15:$O$225,10,0)","v":4356},{"$f":"VLOOKUP($A110,[9]BP05!$E$14:$O$225,5,0)","v":14787},{"$f":"VLOOKUP($A110,[9]BP05!$E$14:$O$225,10,0)","v":19303},{"$f":"VLOOKUP($A110,[10]CKD03!$E$14:$O$225,5,0)","v":3869},{"$f":"VLOOKUP($A110,[10]CKD03!$E$14:$O$225,10,0)","v":5577},{"$f":"VLOOKUP($A110,[11]PAD03!$E$14:$O$225,5,0)","v":743},{"$f":"VLOOKUP($A110,[11]PAD03!$E$14:$O$225,10,0)","v":931},{"$f":"VLOOKUP($A110,[11]PAD04!$E$14:$O$225,5,0)","v":627},{"$f":"VLOOKUP($A110,[11]PAD04!$E$14:$O$225,10,0)","v":931},{"$f":"VLOOKUP($A110,[12]STROKE06!$E$14:$O$225,5,0)","v":2420},{"$f":"VLOOKUP($A110,[12]STROKE06!$E$14:$O$225,10,0)","v":2837},{"$f":"VLOOKUP($A110,[12]STROKE08!$E$14:$O$225,5,0)","v":1887},{"$f":"VLOOKUP($A110,[12]STROKE08!$E$14:$O$225,10,0)","v":2837},null,null,null,null,null,null,null,null,null,null,null,null,null,null,{"$f":"VLOOKUP($A110,[3]CHD!$E$14:$BS$226,29,0)","v":3834},{"$f":"VLOOKUP($A110,[3]CHD!$E$14:$BS$226,34,0)","v":4337},{"$f":"VLOOKUP($A110,[3]CHD!$E$14:$BS$226,37,0)","v":3302},{"$f":"VLOOKUP($A110,[3]CHD!$E$14:$BS$226,42,0)","v":4337},{"$f":"VLOOKUP($A110,[3]HYP!$E$14:$BK$226,29,0)","v":15267},{"$f":"VLOOKUP($A110,[3]HYP!$E$14:$BK$226,34,0)","v":19486},{"$f":"VLOOKUP($A110,[3]CKD!$E$14:$BG$230,33,0)","v":3940},{"$f":"VLOOKUP($A110,[3]CKD!$E$14:$BG$230,38,0)","v":5414},{"$f":"VLOOKUP(A110,[3]PAD!$E$14:$BC$226,29,0)","v":787},{"$f":"VLOOKUP($A110,[3]PAD!$E$14:$BC$226,34,0)","v":932},{"$f":"VLOOKUP($A110,[3]PAD!$E$14:$BC$226,37,0)","v":662},{"$f":"VLOOKUP($A110,[3]PAD!$E$14:$BC$226,42,0)","v":932},{"$f":"VLOOKUP($A110,[3]STIA!$E$14:$CA$230,37,0)","v":2460},{"$f":"VLOOKUP($A110,[3]STIA!$E$14:$CA$230,42,0)","v":2901},{"$f":"VLOOKUP($A110,[3]STIA!$E$14:$CA$230,53,0)","v":1766},{"$f":"VLOOKUP($A110,[3]STIA!$E$14:$CA$230,58,0)","v":2563}]
["06F","NHS Bedfordshire",{"$f":"VLOOKUP($A111,'[6]201314'!$C$19:$J$256,8,0)","v":243},{"$f":"VLOOKUP($A111,'[6]201314'!$C$19:$J$256,7,0)","v":412167},{"$f":"VLOOKUP($A111,[7]Data!$A$6:$H$228,4,0)","v":576},{"$f":"VLOOKUP(A111,[3]CHD!$E$15:$H$226,4,0)","v":443678},{"$f":"VLOOKUP($A111,[7]Data!$A$6:$H$228,3,0)","v":2249},443678,{"$f":"VLOOKUP($A111,[7]Data!$A$6:$H$228,5,0)","v":476},443678,{"$f":"VLOOKUP($A111,[7]Data!$A$6:$H$228,6,0)","v":1380},443678,{"$f":"VLOOKUP($A111,[7]Data!$A$6:$H$228,7,0)","v":563},443678,{"$f":"VLOOKUP($A111,[7]Data!$A$6:$H$228,8,0)","v":187},443678,{"$f":"VLOOKUP($A111,[8]CHD06!$E$15:$O$225,5,0)","v":12072},{"$f":"VLOOKUP($A111,[8]CHD06!$E$15:$O$225,10,0)","v":13659},{"$f":"VLOOKUP($A111,[8]CHD08!$E$15:$O$225,5,0)","v":9812},{"$f":"VLOOKUP($A111,[8]CHD08!$E$15:$O$225,10,0)","v":13659},{"$f":"VLOOKUP($A111,[9]BP05!$E$14:$O$225,5,0)","v":46952},{"$f":"VLOOKUP($A111,[9]BP05!$E$14:$O$225,10,0)","v":60155},{"$f":"VLOOKUP($A111,[10]CKD03!$E$14:$O$225,5,0)","v":8677},{"$f":"VLOOKUP($A111,[10]CKD03!$E$14:$O$225,10,0)","v":12568},{"$f":"VLOOKUP($A111,[11]PAD03!$E$14:$O$225,5,0)","v":1852},{"$f":"VLOOKUP($A111,[11]PAD03!$E$14:$O$225,10,0)","v":2185},{"$f":"VLOOKUP($A111,[11]PAD04!$E$14:$O$225,5,0)","v":1490},{"$f":"VLOOKUP($A111,[11]PAD04!$E$14:$O$225,10,0)","v":2185},{"$f":"VLOOKUP($A111,[12]STROKE06!$E$14:$O$225,5,0)","v":5550},{"$f":"VLOOKUP($A111,[12]STROKE06!$E$14:$O$225,10,0)","v":6543},{"$f":"VLOOKUP($A111,[12]STROKE08!$E$14:$O$225,5,0)","v":4361},{"$f":"VLOOKUP($A111,[12]STROKE08!$E$14:$O$225,10,0)","v":6543},null,null,null,null,null,null,null,null,null,null,null,null,null,null,{"$f":"VLOOKUP($A111,[3]CHD!$E$14:$BS$226,29,0)","v":12211},{"$f":"VLOOKUP($A111,[3]CHD!$E$14:$BS$226,34,0)","v":13658},{"$f":"VLOOKUP($A111,[3]CHD!$E$14:$BS$226,37,0)","v":9858},{"$f":"VLOOKUP($A111,[3]CHD!$E$14:$BS$226,42,0)","v":13658},{"$f":"VLOOKUP($A111,[3]HYP!$E$14:$BK$226,29,0)","v":49449},{"$f":"VLOOKUP($A111,[3]HYP!$E$14:$BK$226,34,0)","v":61666},{"$f":"VLOOKUP($A111,[3]CKD!$E$14:$BG$230,33,0)","v":8847},{"$f":"VLOOKUP($A111,[3]CKD!$E$14:$BG$230,38,0)","v":12064},{"$f":"VLOOKUP(A111,[3]PAD!$E$14:$BC$226,29,0)","v":1865},{"$f":"VLOOKUP($A111,[3]PAD!$E$14:$BC$226,34,0)","v":2174},{"$f":"VLOOKUP($A111,[3]PAD!$E$14:$BC$226,37,0)","v":1504},{"$f":"VLOOKUP($A111,[3]PAD!$E$14:$BC$226,42,0)","v":2174},{"$f":"VLOOKUP($A111,[3]STIA!$E$14:$CA$230,37,0)","v":5782},{"$f":"VLOOKUP($A111,[3]STIA!$E$14:$CA$230,42,0)","v":6736},{"$f":"VLOOKUP($A111,[3]STIA!$E$14:$CA$230,53,0)","v":2969},{"$f":"VLOOKUP($A111,[3]STIA!$E$14:$CA$230,58,0)","v":4509}]
["06H","NHS Cambridgeshire and Peterborough",{"$f":"VLOOKUP($A112,'[6]201314'!$C$19:$J$256,8,0)","v":432},{"$f":"VLOOKUP($A112,'[6]201314'!$C$19:$J$256,7,0)","v":814696},{"$f":"VLOOKUP($A112,[7]Data!$A$6:$H$228,4,0)","v":1036},{"$f":"VLOOKUP(A112,[3]CHD!$E$15:$H$226,4,0)","v":875984},{"$f":"VLOOKUP($A112,[7]Data!$A$6:$H$228,3,0)","v":4356},875984,{"$f":"VLOOKUP($A112,[7]Data!$A$6:$H$228,5,0)","v":906},875984,{"$f":"VLOOKUP($A112,[7]Data!$A$6:$H$228,6,0)","v":2239},875984,{"$f":"VLOOKUP($A112,[7]Data!$A$6:$H$228,7,0)","v":906},875984,{"$f":"VLOOKUP($A112,[7]Data!$A$6:$H$228,8,0)","v":339},875984,{"$f":"VLOOKUP($A112,[8]CHD06!$E$15:$O$225,5,0)","v":22673},{"$f":"VLOOKUP($A112,[8]CHD06!$E$15:$O$225,10,0)","v":25888},{"$f":"VLOOKUP($A112,[8]CHD08!$E$15:$O$225,5,0)","v":18151},{"$f":"VLOOKUP($A112,[8]CHD08!$E$15:$O$225,10,0)","v":25888},{"$f":"VLOOKUP($A112,[9]BP05!$E$14:$O$225,5,0)","v":87550},{"$f":"VLOOKUP($A112,[9]BP05!$E$14:$O$225,10,0)","v":112990},{"$f":"VLOOKUP($A112,[10]CKD03!$E$14:$O$225,5,0)","v":17478},{"$f":"VLOOKUP($A112,[10]CKD03!$E$14:$O$225,10,0)","v":24792},{"$f":"VLOOKUP($A112,[11]PAD03!$E$14:$O$225,5,0)","v":4501},{"$f":"VLOOKUP($A112,[11]PAD03!$E$14:$O$225,10,0)","v":5229},{"$f":"VLOOKUP($A112,[11]PAD04!$E$14:$O$225,5,0)","v":3455},{"$f":"VLOOKUP($A112,[11]PAD04!$E$14:$O$225,10,0)","v":5229},{"$f":"VLOOKUP($A112,[12]STROKE06!$E$14:$O$225,5,0)","v":10813},{"$f":"VLOOKUP($A112,[12]STROKE06!$E$14:$O$225,10,0)","v":12794},{"$f":"VLOOKUP($A112,[12]STROKE08!$E$14:$O$225,5,0)","v":8367},{"$f":"VLOOKUP($A112,[12]STROKE08!$E$14:$O$225,10,0)","v":12794},null,null,null,null,null,null,null,null,null,null,null,null,null,null,{"$f":"VLOOKUP($A112,[3]CHD!$E$14:$BS$226,29,0)","v":22569},{"$f":"VLOOKUP($A112,[3]CHD!$E$14:$BS$226,34,0)","v":25976},{"$f":"VLOOKUP($A112,[3]CHD!$E$14:$BS$226,37,0)","v":17821},{"$f":"VLOOKUP($A112,[3]CHD!$E$14:$BS$226,42,0)","v":25976},{"$f":"VLOOKUP($A112,[3]HYP!$E$14:$BK$226,29,0)","v":87140},{"$f":"VLOOKUP($A112,[3]HYP!$E$14:$BK$226,34,0)","v":114214},{"$f":"VLOOKUP($A112,[3]CKD!$E$14:$BG$230,33,0)","v":16413},{"$f":"VLOOKUP($A112,[3]CKD!$E$14:$BG$230,38,0)","v":23282},{"$f":"VLOOKUP(A112,[3]PAD!$E$14:$BC$226,29,0)","v":4265},{"$f":"VLOOKUP($A112,[3]PAD!$E$14:$BC$226,34,0)","v":5119},{"$f":"VLOOKUP($A112,[3]PAD!$E$14:$BC$226,37,0)","v":3279},{"$f":"VLOOKUP($A112,[3]PAD!$E$14:$BC$226,42,0)","v":5119},{"$f":"VLOOKUP($A112,[3]STIA!$E$14:$CA$230,37,0)","v":10630},{"$f":"VLOOKUP($A112,[3]STIA!$E$14:$CA$230,42,0)","v":12941},{"$f":"VLOOKUP($A112,[3]STIA!$E$14:$CA$230,53,0)","v":5027},{"$f":"VLOOKUP($A112,[3]STIA!$E$14:$CA$230,58,0)","v":8009}]
["06K","NHS East and North Hertfordshire",{"$f":"VLOOKUP($A113,'[6]201314'!$C$19:$J$256,8,0)","v":318},{"$f":"VLOOKUP($A113,'[6]201314'!$C$19:$J$256,7,0)","v":529320},{"$f":"VLOOKUP($A113,[7]Data!$A$6:$H$228,4,0)","v":632},{"$f":"VLOOKUP(A113,[3]CHD!$E$15:$H$226,4,0)","v":573048},{"$f":"VLOOKUP($A113,[7]Data!$A$6:$H$228,3,0)","v":2955},573048,{"$f":"VLOOKUP($A113,[7]Data!$A$6:$H$228,5,0)","v":485},573048,{"$f":"VLOOKUP($A113,[7]Data!$A$6:$H$228,6,0)","v":2167},573048,{"$f":"VLOOKUP($A113,[7]Data!$A$6:$H$228,7,0)","v":754},573048,{"$f":"VLOOKUP($A113,[7]Data!$A$6:$H$228,8,0)","v":180},573048,{"$f":"VLOOKUP($A113,[8]CHD06!$E$15:$O$225,5,0)","v":15001},{"$f":"VLOOKUP($A113,[8]CHD06!$E$15:$O$225,10,0)","v":17003},{"$f":"VLOOKUP($A113,[8]CHD08!$E$15:$O$225,5,0)","v":12353},{"$f":"VLOOKUP($A113,[8]CHD08!$E$15:$O$225,10,0)","v":17003},{"$f":"VLOOKUP($A113,[9]BP05!$E$14:$O$225,5,0)","v":58882},{"$f":"VLOOKUP($A113,[9]BP05!$E$14:$O$225,10,0)","v":75531},{"$f":"VLOOKUP($A113,[10]CKD03!$E$14:$O$225,5,0)","v":11411},{"$f":"VLOOKUP($A113,[10]CKD03!$E$14:$O$225,10,0)","v":15689},{"$f":"VLOOKUP($A113,[11]PAD03!$E$14:$O$225,5,0)","v":2498},{"$f":"VLOOKUP($A113,[11]PAD03!$E$14:$O$225,10,0)","v":2910},{"$f":"VLOOKUP($A113,[11]PAD04!$E$14:$O$225,5,0)","v":2015},{"$f":"VLOOKUP($A113,[11]PAD04!$E$14:$O$225,10,0)","v":2910},{"$f":"VLOOKUP($A113,[12]STROKE06!$E$14:$O$225,5,0)","v":7428},{"$f":"VLOOKUP($A113,[12]STROKE06!$E$14:$O$225,10,0)","v":8694},{"$f":"VLOOKUP($A113,[12]STROKE08!$E$14:$O$225,5,0)","v":5768},{"$f":"VLOOKUP($A113,[12]STROKE08!$E$14:$O$225,10,0)","v":8694},null,null,null,null,null,null,null,null,null,null,null,null,null,null,{"$f":"VLOOKUP($A113,[3]CHD!$E$14:$BS$226,29,0)","v":14930},{"$f":"VLOOKUP($A113,[3]CHD!$E$14:$BS$226,34,0)","v":16970},{"$f":"VLOOKUP($A113,[3]CHD!$E$14:$BS$226,37,0)","v":12185},{"$f":"VLOOKUP($A113,[3]CHD!$E$14:$BS$226,42,0)","v":16970},{"$f":"VLOOKUP($A113,[3]HYP!$E$14:$BK$226,29,0)","v":60126},{"$f":"VLOOKUP($A113,[3]HYP!$E$14:$BK$226,34,0)","v":76504},{"$f":"VLOOKUP($A113,[3]CKD!$E$14:$BG$230,33,0)","v":11008},{"$f":"VLOOKUP($A113,[3]CKD!$E$14:$BG$230,38,0)","v":14637},{"$f":"VLOOKUP(A113,[3]PAD!$E$14:$BC$226,29,0)","v":2460},{"$f":"VLOOKUP($A113,[3]PAD!$E$14:$BC$226,34,0)","v":2878},{"$f":"VLOOKUP($A113,[3]PAD!$E$14:$BC$226,37,0)","v":1966},{"$f":"VLOOKUP($A113,[3]PAD!$E$14:$BC$226,42,0)","v":2878},{"$f":"VLOOKUP($A113,[3]STIA!$E$14:$CA$230,37,0)","v":7564},{"$f":"VLOOKUP($A113,[3]STIA!$E$14:$CA$230,42,0)","v":9005},{"$f":"VLOOKUP($A113,[3]STIA!$E$14:$CA$230,53,0)","v":3786},{"$f":"VLOOKUP($A113,[3]STIA!$E$14:$CA$230,58,0)","v":5900}]
["06L","NHS Ipswich and East Suffolk",{"$f":"VLOOKUP($A114,'[6]201314'!$C$19:$J$256,8,0)","v":229},{"$f":"VLOOKUP($A114,'[6]201314'!$C$19:$J$256,7,0)","v":353681},{"$f":"VLOOKUP($A114,[7]Data!$A$6:$H$228,4,0)","v":702},{"$f":"VLOOKUP(A114,[3]CHD!$E$15:$H$226,4,0)","v":390245},{"$f":"VLOOKUP($A114,[7]Data!$A$6:$H$228,3,0)","v":2303},390245,{"$f":"VLOOKUP($A114,[7]Data!$A$6:$H$228,5,0)","v":449},390245,{"$f":"VLOOKUP($A114,[7]Data!$A$6:$H$228,6,0)","v":1174},390245,{"$f":"VLOOKUP($A114,[7]Data!$A$6:$H$228,7,0)","v":432},390245,{"$f":"VLOOKUP($A114,[7]Data!$A$6:$H$228,8,0)","v":191},390245,{"$f":"VLOOKUP($A114,[8]CHD06!$E$15:$O$225,5,0)","v":12991},{"$f":"VLOOKUP($A114,[8]CHD06!$E$15:$O$225,10,0)","v":14793},{"$f":"VLOOKUP($A114,[8]CHD08!$E$15:$O$225,5,0)","v":10385},{"$f":"VLOOKUP($A114,[8]CHD08!$E$15:$O$225,10,0)","v":14793},{"$f":"VLOOKUP($A114,[9]BP05!$E$14:$O$225,5,0)","v":42725},{"$f":"VLOOKUP($A114,[9]BP05!$E$14:$O$225,10,0)","v":55149},{"$f":"VLOOKUP($A114,[10]CKD03!$E$14:$O$225,5,0)","v":10094},{"$f":"VLOOKUP($A114,[10]CKD03!$E$14:$O$225,10,0)","v":14446},{"$f":"VLOOKUP($A114,[11]PAD03!$E$14:$O$225,5,0)","v":1798},{"$f":"VLOOKUP($A114,[11]PAD03!$E$14:$O$225,10,0)","v":2187},{"$f":"VLOOKUP($A114,[11]PAD04!$E$14:$O$225,5,0)","v":1400},{"$f":"VLOOKUP($A114,[11]PAD04!$E$14:$O$225,10,0)","v":2187},{"$f":"VLOOKUP($A114,[12]STROKE06!$E$14:$O$225,5,0)","v":6555},{"$f":"VLOOKUP($A114,[12]STROKE06!$E$14:$O$225,10,0)","v":7646},{"$f":"VLOOKUP($A114,[12]STROKE08!$E$14:$O$225,5,0)","v":4978},{"$f":"VLOOKUP($A114,[12]STROKE08!$E$14:$O$225,10,0)","v":7646},null,null,null,null,null,null,null,null,null,null,null,null,null,null,{"$f":"VLOOKUP($A114,[3]CHD!$E$14:$BS$226,29,0)","v":12885},{"$f":"VLOOKUP($A114,[3]CHD!$E$14:$BS$226,34,0)","v":14768},{"$f":"VLOOKUP($A114,[3]CHD!$E$14:$BS$226,37,0)","v":9906},{"$f":"VLOOKUP($A114,[3]CHD!$E$14:$BS$226,42,0)","v":14768},{"$f":"VLOOKUP($A114,[3]HYP!$E$14:$BK$226,29,0)","v":43297},{"$f":"VLOOKUP($A114,[3]HYP!$E$14:$BK$226,34,0)","v":56531},{"$f":"VLOOKUP($A114,[3]CKD!$E$14:$BG$230,33,0)","v":10308},{"$f":"VLOOKUP($A114,[3]CKD!$E$14:$BG$230,38,0)","v":14437},{"$f":"VLOOKUP(A114,[3]PAD!$E$14:$BC$226,29,0)","v":1732},{"$f":"VLOOKUP($A114,[3]PAD!$E$14:$BC$226,34,0)","v":2123},{"$f":"VLOOKUP($A114,[3]PAD!$E$14:$BC$226,37,0)","v":1274},{"$f":"VLOOKUP($A114,[3]PAD!$E$14:$BC$226,42,0)","v":2123},{"$f":"VLOOKUP($A114,[3]STIA!$E$14:$CA$230,37,0)","v":6597},{"$f":"VLOOKUP($A114,[3]STIA!$E$14:$CA$230,42,0)","v":7840},{"$f":"VLOOKUP($A114,[3]STIA!$E$14:$CA$230,53,0)","v":3418},{"$f":"VLOOKUP($A114,[3]STIA!$E$14:$CA$230,58,0)","v":5503}]
["06M","NHS Great Yarmouth and Waveney",{"$f":"VLOOKUP($A115,'[6]201314'!$C$19:$J$256,8,0)","v":175},{"$f":"VLOOKUP($A115,'[6]201314'!$C$19:$J$256,7,0)","v":207253},{"$f":"VLOOKUP($A115,[7]Data!$A$6:$H$228,4,0)","v":441},{"$f":"VLOOKUP(A115,[3]CHD!$E$15:$H$226,4,0)","v":231986},{"$f":"VLOOKUP($A115,[7]Data!$A$6:$H$228,3,0)","v":1586},231986,{"$f":"VLOOKUP($A115,[7]Data!$A$6:$H$228,5,0)","v":348},231986,{"$f":"VLOOKUP($A115,[7]Data!$A$6:$H$228,6,0)","v":666},231986,{"$f":"VLOOKUP($A115,[7]Data!$A$6:$H$228,7,0)","v":349},231986,{"$f":"VLOOKUP($A115,[7]Data!$A$6:$H$228,8,0)","v":103},231986,{"$f":"VLOOKUP($A115,[8]CHD06!$E$15:$O$225,5,0)","v":8506},{"$f":"VLOOKUP($A115,[8]CHD06!$E$15:$O$225,10,0)","v":9723},{"$f":"VLOOKUP($A115,[8]CHD08!$E$15:$O$225,5,0)","v":6937},{"$f":"VLOOKUP($A115,[8]CHD08!$E$15:$O$225,10,0)","v":9723},{"$f":"VLOOKUP($A115,[9]BP05!$E$14:$O$225,5,0)","v":29866},{"$f":"VLOOKUP($A115,[9]BP05!$E$14:$O$225,10,0)","v":38978},{"$f":"VLOOKUP($A115,[10]CKD03!$E$14:$O$225,5,0)","v":7974},{"$f":"VLOOKUP($A115,[10]CKD03!$E$14:$O$225,10,0)","v":11119},{"$f":"VLOOKUP($A115,[11]PAD03!$E$14:$O$225,5,0)","v":1764},{"$f":"VLOOKUP($A115,[11]PAD03!$E$14:$O$225,10,0)","v":2102},{"$f":"VLOOKUP($A115,[11]PAD04!$E$14:$O$225,5,0)","v":1351},{"$f":"VLOOKUP($A115,[11]PAD04!$E$14:$O$225,10,0)","v":2102},{"$f":"VLOOKUP($A115,[12]STROKE06!$E$14:$O$225,5,0)","v":4237},{"$f":"VLOOKUP($A115,[12]STROKE06!$E$14:$O$225,10,0)","v":4931},{"$f":"VLOOKUP($A115,[12]STROKE08!$E$14:$O$225,5,0)","v":3332},{"$f":"VLOOKUP($A115,[12]STROKE08!$E$14:$O$225,10,0)","v":4931},null,null,null,null,null,null,null,null,null,null,null,null,null,null,{"$f":"VLOOKUP($A115,[3]CHD!$E$14:$BS$226,29,0)","v":8480},{"$f":"VLOOKUP($A115,[3]CHD!$E$14:$BS$226,34,0)","v":9647},{"$f":"VLOOKUP($A115,[3]CHD!$E$14:$BS$226,37,0)","v":6542},{"$f":"VLOOKUP($A115,[3]CHD!$E$14:$BS$226,42,0)","v":9647},{"$f":"VLOOKUP($A115,[3]HYP!$E$14:$BK$226,29,0)","v":30322},{"$f":"VLOOKUP($A115,[3]HYP!$E$14:$BK$226,34,0)","v":39378},{"$f":"VLOOKUP($A115,[3]CKD!$E$14:$BG$230,33,0)","v":7893},{"$f":"VLOOKUP($A115,[3]CKD!$E$14:$BG$230,38,0)","v":10800},{"$f":"VLOOKUP(A115,[3]PAD!$E$14:$BC$226,29,0)","v":1765},{"$f":"VLOOKUP($A115,[3]PAD!$E$14:$BC$226,34,0)","v":2090},{"$f":"VLOOKUP($A115,[3]PAD!$E$14:$BC$226,37,0)","v":1312},{"$f":"VLOOKUP($A115,[3]PAD!$E$14:$BC$226,42,0)","v":2090},{"$f":"VLOOKUP($A115,[3]STIA!$E$14:$CA$230,37,0)","v":4208},{"$f":"VLOOKUP($A115,[3]STIA!$E$14:$CA$230,42,0)","v":4957},{"$f":"VLOOKUP($A115,[3]STIA!$E$14:$CA$230,53,0)","v":2022},{"$f":"VLOOKUP($A115,[3]STIA!$E$14:$CA$230,58,0)","v":3105}]
["06N","NHS Herts Valleys",{"$f":"VLOOKUP($A116,'[6]201314'!$C$19:$J$256,8,0)","v":280},{"$f":"VLOOKUP($A116,'[6]201314'!$C$19:$J$256,7,0)","v":564646},{"$f":"VLOOKUP($A116,[7]Data!$A$6:$H$228,4,0)","v":793},{"$f":"VLOOKUP(A116,[3]CHD!$E$15:$H$226,4,0)","v":609319},{"$f":"VLOOKUP($A116,[7]Data!$A$6:$H$228,3,0)","v":2313},609319,{"$f":"VLOOKUP($A116,[7]Data!$A$6:$H$228,5,0)","v":522},609319,{"$f":"VLOOKUP($A116,[7]Data!$A$6:$H$228,6,0)","v":1921},609319,{"$f":"VLOOKUP($A116,[7]Data!$A$6:$H$228,7,0)","v":628},609319,{"$f":"VLOOKUP($A116,[7]Data!$A$6:$H$228,8,0)","v":210},609319,{"$f":"VLOOKUP($A116,[8]CHD06!$E$15:$O$225,5,0)","v":14221},{"$f":"VLOOKUP($A116,[8]CHD06!$E$15:$O$225,10,0)","v":16026},{"$f":"VLOOKUP($A116,[8]CHD08!$E$15:$O$225,5,0)","v":11749},{"$f":"VLOOKUP($A116,[8]CHD08!$E$15:$O$225,10,0)","v":16026},{"$f":"VLOOKUP($A116,[9]BP05!$E$14:$O$225,5,0)","v":59038},{"$f":"VLOOKUP($A116,[9]BP05!$E$14:$O$225,10,0)","v":75499},{"$f":"VLOOKUP($A116,[10]CKD03!$E$14:$O$225,5,0)","v":12422},{"$f":"VLOOKUP($A116,[10]CKD03!$E$14:$O$225,10,0)","v":17411},{"$f":"VLOOKUP($A116,[11]PAD03!$E$14:$O$225,5,0)","v":3019},{"$f":"VLOOKUP($A116,[11]PAD03!$E$14:$O$225,10,0)","v":3442},{"$f":"VLOOKUP($A116,[11]PAD04!$E$14:$O$225,5,0)","v":2390},{"$f":"VLOOKUP($A116,[11]PAD04!$E$14:$O$225,10,0)","v":3442},{"$f":"VLOOKUP($A116,[12]STROKE06!$E$14:$O$225,5,0)","v":8066},{"$f":"VLOOKUP($A116,[12]STROKE06!$E$14:$O$225,10,0)","v":9377},{"$f":"VLOOKUP($A116,[12]STROKE08!$E$14:$O$225,5,0)","v":6396},{"$f":"VLOOKUP($A116,[12]STROKE08!$E$14:$O$225,10,0)","v":9377},null,null,null,null,null,null,null,null,null,null,null,null,null,null,{"$f":"VLOOKUP($A116,[3]CHD!$E$14:$BS$226,29,0)","v":14485},{"$f":"VLOOKUP($A116,[3]CHD!$E$14:$BS$226,34,0)","v":15984},{"$f":"VLOOKUP($A116,[3]CHD!$E$14:$BS$226,37,0)","v":12299},{"$f":"VLOOKUP($A116,[3]CHD!$E$14:$BS$226,42,0)","v":15978},{"$f":"VLOOKUP($A116,[3]HYP!$E$14:$BK$226,29,0)","v":61808},{"$f":"VLOOKUP($A116,[3]HYP!$E$14:$BK$226,34,0)","v":76049},{"$f":"VLOOKUP($A116,[3]CKD!$E$14:$BG$230,33,0)","v":12951},{"$f":"VLOOKUP($A116,[3]CKD!$E$14:$BG$230,38,0)","v":16961},{"$f":"VLOOKUP(A116,[3]PAD!$E$14:$BC$226,29,0)","v":2867},{"$f":"VLOOKUP($A116,[3]PAD!$E$14:$BC$226,34,0)","v":3277},{"$f":"VLOOKUP($A116,[3]PAD!$E$14:$BC$226,37,0)","v":2368},{"$f":"VLOOKUP($A116,[3]PAD!$E$14:$BC$226,42,0)","v":3276},{"$f":"VLOOKUP($A116,[3]STIA!$E$14:$CA$230,37,0)","v":8229},{"$f":"VLOOKUP($A116,[3]STIA!$E$14:$CA$230,42,0)","v":9434},{"$f":"VLOOKUP($A116,[3]STIA!$E$14:$CA$230,53,0)","v":4265},{"$f":"VLOOKUP($A116,[3]STIA!$E$14:$CA$230,58,0)","v":6008}]
["06P","NHS Luton",{"$f":"VLOOKUP($A117,'[6]201314'!$C$19:$J$256,8,0)","v":139},{"$f":"VLOOKUP($A117,'[6]201314'!$C$19:$J$256,7,0)","v":206139},{"$f":"VLOOKUP($A117,[7]Data!$A$6:$H$228,4,0)","v":178},{"$f":"VLOOKUP(A117,[3]CHD!$E$15:$H$226,4,0)","v":216957},{"$f":"VLOOKUP($A117,[7]Data!$A$6:$H$228,3,0)","v":1381},216957,{"$f":"VLOOKUP($A117,[7]Data!$A$6:$H$228,5,0)","v":226},216957,{"$f":"VLOOKUP($A117,[7]Data!$A$6:$H$228,6,0)","v":686},216957,{"$f":"VLOOKUP($A117,[7]Data!$A$6:$H$228,7,0)","v":270},216957,{"$f":"VLOOKUP($A117,[7]Data!$A$6:$H$228,8,0)","v":93},216957,{"$f":"VLOOKUP($A117,[8]CHD06!$E$15:$O$225,5,0)","v":4608},{"$f":"VLOOKUP($A117,[8]CHD06!$E$15:$O$225,10,0)","v":5505},{"$f":"VLOOKUP($A117,[8]CHD08!$E$15:$O$225,5,0)","v":3862},{"$f":"VLOOKUP($A117,[8]CHD08!$E$15:$O$225,10,0)","v":5505},{"$f":"VLOOKUP($A117,[9]BP05!$E$14:$O$225,5,0)","v":18870},{"$f":"VLOOKUP($A117,[9]BP05!$E$14:$O$225,10,0)","v":25688},{"$f":"VLOOKUP($A117,[10]CKD03!$E$14:$O$225,5,0)","v":2627},{"$f":"VLOOKUP($A117,[10]CKD03!$E$14:$O$225,10,0)","v":4034},{"$f":"VLOOKUP($A117,[11]PAD03!$E$14:$O$225,5,0)","v":727},{"$f":"VLOOKUP($A117,[11]PAD03!$E$14:$O$225,10,0)","v":906},{"$f":"VLOOKUP($A117,[11]PAD04!$E$14:$O$225,5,0)","v":583},{"$f":"VLOOKUP($A117,[11]PAD04!$E$14:$O$225,10,0)","v":906},{"$f":"VLOOKUP($A117,[12]STROKE06!$E$14:$O$225,5,0)","v":2071},{"$f":"VLOOKUP($A117,[12]STROKE06!$E$14:$O$225,10,0)","v":2520},{"$f":"VLOOKUP($A117,[12]STROKE08!$E$14:$O$225,5,0)","v":1662},{"$f":"VLOOKUP($A117,[12]STROKE08!$E$14:$O$225,10,0)","v":2520},null,null,null,null,null,null,null,null,null,null,null,null,null,null,{"$f":"VLOOKUP($A117,[3]CHD!$E$14:$BS$226,29,0)","v":4736},{"$f":"VLOOKUP($A117,[3]CHD!$E$14:$BS$226,34,0)","v":5615},{"$f":"VLOOKUP($A117,[3]CHD!$E$14:$BS$226,37,0)","v":3771},{"$f":"VLOOKUP($A117,[3]CHD!$E$14:$BS$226,42,0)","v":5602},{"$f":"VLOOKUP($A117,[3]HYP!$E$14:$BK$226,29,0)","v":19797},{"$f":"VLOOKUP($A117,[3]HYP!$E$14:$BK$226,34,0)","v":26333},{"$f":"VLOOKUP($A117,[3]CKD!$E$14:$BG$230,33,0)","v":2638},{"$f":"VLOOKUP($A117,[3]CKD!$E$14:$BG$230,38,0)","v":3730},{"$f":"VLOOKUP(A117,[3]PAD!$E$14:$BC$226,29,0)","v":704},{"$f":"VLOOKUP($A117,[3]PAD!$E$14:$BC$226,34,0)","v":866},{"$f":"VLOOKUP($A117,[3]PAD!$E$14:$BC$226,37,0)","v":559},{"$f":"VLOOKUP($A117,[3]PAD!$E$14:$BC$226,42,0)","v":863},{"$f":"VLOOKUP($A117,[3]STIA!$E$14:$CA$230,37,0)","v":2129},{"$f":"VLOOKUP($A117,[3]STIA!$E$14:$CA$230,42,0)","v":2595},{"$f":"VLOOKUP($A117,[3]STIA!$E$14:$CA$230,53,0)","v":987},{"$f":"VLOOKUP($A117,[3]STIA!$E$14:$CA$230,58,0)","v":1617}]
["06Q","NHS Mid Essex",{"$f":"VLOOKUP($A118,'[6]201314'!$C$19:$J$256,8,0)","v":212},{"$f":"VLOOKUP($A118,'[6]201314'!$C$19:$J$256,7,0)","v":351360},{"$f":"VLOOKUP($A118,[7]Data!$A$6:$H$228,4,0)","v":480},{"$f":"VLOOKUP(A118,[3]CHD!$E$15:$H$226,4,0)","v":381712},{"$f":"VLOOKUP($A118,[7]Data!$A$6:$H$228,3,0)","v":2043},381712,{"$f":"VLOOKUP($A118,[7]Data!$A$6:$H$228,5,0)","v":417},381712,{"$f":"VLOOKUP($A118,[7]Data!$A$6:$H$228,6,0)","v":1086},381712,{"$f":"VLOOKUP($A118,[7]Data!$A$6:$H$228,7,0)","v":413},381712,{"$f":"VLOOKUP($A118,[7]Data!$A$6:$H$228,8,0)","v":135},381712,{"$f":"VLOOKUP($A118,[8]CHD06!$E$15:$O$225,5,0)","v":10561},{"$f":"VLOOKUP($A118,[8]CHD06!$E$15:$O$225,10,0)","v":12075},{"$f":"VLOOKUP($A118,[8]CHD08!$E$15:$O$225,5,0)","v":8473},{"$f":"VLOOKUP($A118,[8]CHD08!$E$15:$O$225,10,0)","v":12075},{"$f":"VLOOKUP($A118,[9]BP05!$E$14:$O$225,5,0)","v":39767},{"$f":"VLOOKUP($A118,[9]BP05!$E$14:$O$225,10,0)","v":51929},{"$f":"VLOOKUP($A118,[10]CKD03!$E$14:$O$225,5,0)","v":9410},{"$f":"VLOOKUP($A118,[10]CKD03!$E$14:$O$225,10,0)","v":13871},{"$f":"VLOOKUP($A118,[11]PAD03!$E$14:$O$225,5,0)","v":1473},{"$f":"VLOOKUP($A118,[11]PAD03!$E$14:$O$225,10,0)","v":1746},{"$f":"VLOOKUP($A118,[11]PAD04!$E$14:$O$225,5,0)","v":1079},{"$f":"VLOOKUP($A118,[11]PAD04!$E$14:$O$225,10,0)","v":1746},{"$f":"VLOOKUP($A118,[12]STROKE06!$E$14:$O$225,5,0)","v":5004},{"$f":"VLOOKUP($A118,[12]STROKE06!$E$14:$O$225,10,0)","v":5994},{"$f":"VLOOKUP($A118,[12]STROKE08!$E$14:$O$225,5,0)","v":3736},{"$f":"VLOOKUP($A118,[12]STROKE08!$E$14:$O$225,10,0)","v":5994},null,null,null,null,null,null,null,null,null,null,null,null,null,null,{"$f":"VLOOKUP($A118,[3]CHD!$E$14:$BS$226,29,0)","v":10597},{"$f":"VLOOKUP($A118,[3]CHD!$E$14:$BS$226,34,0)","v":12023},{"$f":"VLOOKUP($A118,[3]CHD!$E$14:$BS$226,37,0)","v":8255},{"$f":"VLOOKUP($A118,[3]CHD!$E$14:$BS$226,42,0)","v":12023},{"$f":"VLOOKUP($A118,[3]HYP!$E$14:$BK$226,29,0)","v":41068},{"$f":"VLOOKUP($A118,[3]HYP!$E$14:$BK$226,34,0)","v":52470},{"$f":"VLOOKUP($A118,[3]CKD!$E$14:$BG$230,33,0)","v":7928},{"$f":"VLOOKUP($A118,[3]CKD!$E$14:$BG$230,38,0)","v":10854},{"$f":"VLOOKUP(A118,[3]PAD!$E$14:$BC$226,29,0)","v":1447},{"$f":"VLOOKUP($A118,[3]PAD!$E$14:$BC$226,34,0)","v":1717},{"$f":"VLOOKUP($A118,[3]PAD!$E$14:$BC$226,37,0)","v":1036},{"$f":"VLOOKUP($A118,[3]PAD!$E$14:$BC$226,42,0)","v":1717},{"$f":"VLOOKUP($A118,[3]STIA!$E$14:$CA$230,37,0)","v":5125},{"$f":"VLOOKUP($A118,[3]STIA!$E$14:$CA$230,42,0)","v":6107},{"$f":"VLOOKUP($A118,[3]STIA!$E$14:$CA$230,53,0)","v":2517},{"$f":"VLOOKUP($A118,[3]STIA!$E$14:$CA$230,58,0)","v":4154}]
["06T","NHS North East Essex",{"$f":"VLOOKUP($A119,'[6]201314'!$C$19:$J$256,8,0)","v":207},{"$f":"VLOOKUP($A119,'[6]201314'!$C$19:$J$256,7,0)","v":298709},{"$f":"VLOOKUP($A119,[7]Data!$A$6:$H$228,4,0)","v":484},{"$f":"VLOOKUP(A119,[3]CHD!$E$15:$H$226,4,0)","v":332062},{"$f":"VLOOKUP($A119,[7]Data!$A$6:$H$228,3,0)","v":1718},332062,{"$f":"VLOOKUP($A119,[7]Data!$A$6:$H$228,5,0)","v":467},332062,{"$f":"VLOOKUP($A119,[7]Data!$A$6:$H$228,6,0)","v":1023},332062,{"$f":"VLOOKUP($A119,[7]Data!$A$6:$H$228,7,0)","v":415},332062,{"$f":"VLOOKUP($A119,[7]Data!$A$6:$H$228,8,0)","v":118},332062,{"$f":"VLOOKUP($A119,[8]CHD06!$E$15:$O$225,5,0)","v":11088},{"$f":"VLOOKUP($A119,[8]CHD06!$E$15:$O$225,10,0)","v":12485},{"$f":"VLOOKUP($A119,[8]CHD08!$E$15:$O$225,5,0)","v":9118},{"$f":"VLOOKUP($A119,[8]CHD08!$E$15:$O$225,10,0)","v":12485},{"$f":"VLOOKUP($A119,[9]BP05!$E$14:$O$225,5,0)","v":40855},{"$f":"VLOOKUP($A119,[9]BP05!$E$14:$O$225,10,0)","v":52500},{"$f":"VLOOKUP($A119,[10]CKD03!$E$14:$O$225,5,0)","v":10631},{"$f":"VLOOKUP($A119,[10]CKD03!$E$14:$O$225,10,0)","v":14820},{"$f":"VLOOKUP($A119,[11]PAD03!$E$14:$O$225,5,0)","v":1812},{"$f":"VLOOKUP($A119,[11]PAD03!$E$14:$O$225,10,0)","v":2132},{"$f":"VLOOKUP($A119,[11]PAD04!$E$14:$O$225,5,0)","v":1476},{"$f":"VLOOKUP($A119,[11]PAD04!$E$14:$O$225,10,0)","v":2132},{"$f":"VLOOKUP($A119,[12]STROKE06!$E$14:$O$225,5,0)","v":5361},{"$f":"VLOOKUP($A119,[12]STROKE06!$E$14:$O$225,10,0)","v":6206},{"$f":"VLOOKUP($A119,[12]STROKE08!$E$14:$O$225,5,0)","v":4144},{"$f":"VLOOKUP($A119,[12]STROKE08!$E$14:$O$225,10,0)","v":6206},null,null,null,null,null,null,null,null,null,null,null,null,null,null,{"$f":"VLOOKUP($A119,[3]CHD!$E$14:$BS$226,29,0)","v":11048},{"$f":"VLOOKUP($A119,[3]CHD!$E$14:$BS$226,34,0)","v":12347},{"$f":"VLOOKUP($A119,[3]CHD!$E$14:$BS$226,37,0)","v":8983},{"$f":"VLOOKUP($A119,[3]CHD!$E$14:$BS$226,42,0)","v":12347},{"$f":"VLOOKUP($A119,[3]HYP!$E$14:$BK$226,29,0)","v":42936},{"$f":"VLOOKUP($A119,[3]HYP!$E$14:$BK$226,34,0)","v":53237},{"$f":"VLOOKUP($A119,[3]CKD!$E$14:$BG$230,33,0)","v":9458},{"$f":"VLOOKUP($A119,[3]CKD!$E$14:$BG$230,38,0)","v":12548},{"$f":"VLOOKUP(A119,[3]PAD!$E$14:$BC$226,29,0)","v":1877},{"$f":"VLOOKUP($A119,[3]PAD!$E$14:$BC$226,34,0)","v":2184},{"$f":"VLOOKUP($A119,[3]PAD!$E$14:$BC$226,37,0)","v":1510},{"$f":"VLOOKUP($A119,[3]PAD!$E$14:$BC$226,42,0)","v":2184},{"$f":"VLOOKUP($A119,[3]STIA!$E$14:$CA$230,37,0)","v":5484},{"$f":"VLOOKUP($A119,[3]STIA!$E$14:$CA$230,42,0)","v":6314},{"$f":"VLOOKUP($A119,[3]STIA!$E$14:$CA$230,53,0)","v":2777},{"$f":"VLOOKUP($A119,[3]STIA!$E$14:$CA$230,58,0)","v":4043}]
["06V","NHS North Norfolk",{"$f":"VLOOKUP($A120,'[6]201314'!$C$19:$J$256,8,0)","v":122},{"$f":"VLOOKUP($A120,'[6]201314'!$C$19:$J$256,7,0)","v":146392},{"$f":"VLOOKUP($A120,[7]Data!$A$6:$H$228,4,0)","v":477},{"$f":"VLOOKUP(A120,[3]CHD!$E$15:$H$226,4,0)","v":168310},{"$f":"VLOOKUP($A120,[7]Data!$A$6:$H$228,3,0)","v":1104},168310,{"$f":"VLOOKUP($A120,[7]Data!$A$6:$H$228,5,0)","v":287},168310,{"$f":"VLOOKUP($A120,[7]Data!$A$6:$H$228,6,0)","v":531},168310,{"$f":"VLOOKUP($A120,[7]Data!$A$6:$H$228,7,0)","v":290},168310,{"$f":"VLOOKUP($A120,[7]Data!$A$6:$H$228,8,0)","v":91},168310,{"$f":"VLOOKUP($A120,[8]CHD06!$E$15:$O$225,5,0)","v":6748},{"$f":"VLOOKUP($A120,[8]CHD06!$E$15:$O$225,10,0)","v":7638},{"$f":"VLOOKUP($A120,[8]CHD08!$E$15:$O$225,5,0)","v":5381},{"$f":"VLOOKUP($A120,[8]CHD08!$E$15:$O$225,10,0)","v":7638},{"$f":"VLOOKUP($A120,[9]BP05!$E$14:$O$225,5,0)","v":22399},{"$f":"VLOOKUP($A120,[9]BP05!$E$14:$O$225,10,0)","v":28710},{"$f":"VLOOKUP($A120,[10]CKD03!$E$14:$O$225,5,0)","v":5968},{"$f":"VLOOKUP($A120,[10]CKD03!$E$14:$O$225,10,0)","v":8556},{"$f":"VLOOKUP($A120,[11]PAD03!$E$14:$O$225,5,0)","v":1046},{"$f":"VLOOKUP($A120,[11]PAD03!$E$14:$O$225,10,0)","v":1237},{"$f":"VLOOKUP($A120,[11]PAD04!$E$14:$O$225,5,0)","v":851},{"$f":"VLOOKUP($A120,[11]PAD04!$E$14:$O$225,10,0)","v":1237},{"$f":"VLOOKUP($A120,[12]STROKE06!$E$14:$O$225,5,0)","v":3540},{"$f":"VLOOKUP($A120,[12]STROKE06!$E$14:$O$225,10,0)","v":4183},{"$f":"VLOOKUP($A120,[12]STROKE08!$E$14:$O$225,5,0)","v":2646},{"$f":"VLOOKUP($A120,[12]STROKE08!$E$14:$O$225,10,0)","v":4183},null,null,null,null,null,null,null,null,null,null,null,null,null,null,{"$f":"VLOOKUP($A120,[3]CHD!$E$14:$BS$226,29,0)","v":6826},{"$f":"VLOOKUP($A120,[3]CHD!$E$14:$BS$226,34,0)","v":7732},{"$f":"VLOOKUP($A120,[3]CHD!$E$14:$BS$226,37,0)","v":5238},{"$f":"VLOOKUP($A120,[3]CHD!$E$14:$BS$226,42,0)","v":7732},{"$f":"VLOOKUP($A120,[3]HYP!$E$14:$BK$226,29,0)","v":23161},{"$f":"VLOOKUP($A120,[3]HYP!$E$14:$BK$226,34,0)","v":29401},{"$f":"VLOOKUP($A120,[3]CKD!$E$14:$BG$230,33,0)","v":6110},{"$f":"VLOOKUP($A120,[3]CKD!$E$14:$BG$230,38,0)","v":8396},{"$f":"VLOOKUP(A120,[3]PAD!$E$14:$BC$226,29,0)","v":1415},{"$f":"VLOOKUP($A120,[3]PAD!$E$14:$BC$226,34,0)","v":1667},{"$f":"VLOOKUP($A120,[3]PAD!$E$14:$BC$226,37,0)","v":1124},{"$f":"VLOOKUP($A120,[3]PAD!$E$14:$BC$226,42,0)","v":1667},{"$f":"VLOOKUP($A120,[3]STIA!$E$14:$CA$230,37,0)","v":3619},{"$f":"VLOOKUP($A120,[3]STIA!$E$14:$CA$230,42,0)","v":4307},{"$f":"VLOOKUP($A120,[3]STIA!$E$14:$CA$230,53,0)","v":1842},{"$f":"VLOOKUP($A120,[3]STIA!$E$14:$CA$230,58,0)","v":3005}]
["06W","NHS Norwich",{"$f":"VLOOKUP($A121,'[6]201314'!$C$19:$J$256,8,0)","v":95},{"$f":"VLOOKUP($A121,'[6]201314'!$C$19:$J$256,7,0)","v":193153},{"$f":"VLOOKUP($A121,[7]Data!$A$6:$H$228,4,0)","v":403},{"$f":"VLOOKUP(A121,[3]CHD!$E$15:$H$226,4,0)","v":210587},{"$f":"VLOOKUP($A121,[7]Data!$A$6:$H$228,3,0)","v":864},210587,{"$f":"VLOOKUP($A121,[7]Data!$A$6:$H$228,5,0)","v":191},210587,{"$f":"VLOOKUP($A121,[7]Data!$A$6:$H$228,6,0)","v":416},210587,{"$f":"VLOOKUP($A121,[7]Data!$A$6:$H$228,7,0)","v":244},210587,{"$f":"VLOOKUP($A121,[7]Data!$A$6:$H$228,8,0)","v":48},210587,{"$f":"VLOOKUP($A121,[8]CHD06!$E$15:$O$225,5,0)","v":5533},{"$f":"VLOOKUP($A121,[8]CHD06!$E$15:$O$225,10,0)","v":6320},{"$f":"VLOOKUP($A121,[8]CHD08!$E$15:$O$225,5,0)","v":4558},{"$f":"VLOOKUP($A121,[8]CHD08!$E$15:$O$225,10,0)","v":6320},{"$f":"VLOOKUP($A121,[9]BP05!$E$14:$O$225,5,0)","v":19996},{"$f":"VLOOKUP($A121,[9]BP05!$E$14:$O$225,10,0)","v":25247},{"$f":"VLOOKUP($A121,[10]CKD03!$E$14:$O$225,5,0)","v":4269},{"$f":"VLOOKUP($A121,[10]CKD03!$E$14:$O$225,10,0)","v":6094},{"$f":"VLOOKUP($A121,[11]PAD03!$E$14:$O$225,5,0)","v":1075},{"$f":"VLOOKUP($A121,[11]PAD03!$E$14:$O$225,10,0)","v":1279},{"$f":"VLOOKUP($A121,[11]PAD04!$E$14:$O$225,5,0)","v":862},{"$f":"VLOOKUP($A121,[11]PAD04!$E$14:$O$225,10,0)","v":1279},{"$f":"VLOOKUP($A121,[12]STROKE06!$E$14:$O$225,5,0)","v":2972},{"$f":"VLOOKUP($A121,[12]STROKE06!$E$14:$O$225,10,0)","v":3501},{"$f":"VLOOKUP($A121,[12]STROKE08!$E$14:$O$225,5,0)","v":2337},{"$f":"VLOOKUP($A121,[12]STROKE08!$E$14:$O$225,10,0)","v":3501},null,null,null,null,null,null,null,null,null,null,null,null,null,null,{"$f":"VLOOKUP($A121,[3]CHD!$E$14:$BS$226,29,0)","v":5551},{"$f":"VLOOKUP($A121,[3]CHD!$E$14:$BS$226,34,0)","v":6305},{"$f":"VLOOKUP($A121,[3]CHD!$E$14:$BS$226,37,0)","v":4435},{"$f":"VLOOKUP($A121,[3]CHD!$E$14:$BS$226,42,0)","v":6305},{"$f":"VLOOKUP($A121,[3]HYP!$E$14:$BK$226,29,0)","v":20165},{"$f":"VLOOKUP($A121,[3]HYP!$E$14:$BK$226,34,0)","v":25382},{"$f":"VLOOKUP($A121,[3]CKD!$E$14:$BG$230,33,0)","v":3449},{"$f":"VLOOKUP($A121,[3]CKD!$E$14:$BG$230,38,0)","v":4898},{"$f":"VLOOKUP(A121,[3]PAD!$E$14:$BC$226,29,0)","v":1072},{"$f":"VLOOKUP($A121,[3]PAD!$E$14:$BC$226,34,0)","v":1273},{"$f":"VLOOKUP($A121,[3]PAD!$E$14:$BC$226,37,0)","v":854},{"$f":"VLOOKUP($A121,[3]PAD!$E$14:$BC$226,42,0)","v":1273},{"$f":"VLOOKUP($A121,[3]STIA!$E$14:$CA$230,37,0)","v":3016},{"$f":"VLOOKUP($A121,[3]STIA!$E$14:$CA$230,42,0)","v":3590},{"$f":"VLOOKUP($A121,[3]STIA!$E$14:$CA$230,53,0)","v":1660},{"$f":"VLOOKUP($A121,[3]STIA!$E$14:$CA$230,58,0)","v":2569}]
["06Y","NHS South Norfolk",{"$f":"VLOOKUP($A122,'[6]201314'!$C$19:$J$256,8,0)","v":139},{"$f":"VLOOKUP($A122,'[6]201314'!$C$19:$J$256,7,0)","v":203227},{"$f":"VLOOKUP($A122,[7]Data!$A$6:$H$228,4,0)","v":456},{"$f":"VLOOKUP(A122,[3]CHD!$E$15:$H$226,4,0)","v":222990},{"$f":"VLOOKUP($A122,[7]Data!$A$6:$H$228,3,0)","v":1127},222990,{"$f":"VLOOKUP($A122,[7]Data!$A$6:$H$228,5,0)","v":283},222990,{"$f":"VLOOKUP($A122,[7]Data!$A$6:$H$228,6,0)","v":566},222990,{"$f":"VLOOKUP($A122,[7]Data!$A$6:$H$228,7,0)","v":316},222990,{"$f":"VLOOKUP($A122,[7]Data!$A$6:$H$228,8,0)","v":79},222990,{"$f":"VLOOKUP($A122,[8]CHD06!$E$15:$O$225,5,0)","v":7314},{"$f":"VLOOKUP($A122,[8]CHD06!$E$15:$O$225,10,0)","v":8131},{"$f":"VLOOKUP($A122,[8]CHD08!$E$15:$O$225,5,0)","v":6063},{"$f":"VLOOKUP($A122,[8]CHD08!$E$15:$O$225,10,0)","v":8107},{"$f":"VLOOKUP($A122,[9]BP05!$E$14:$O$225,5,0)","v":27154},{"$f":"VLOOKUP($A122,[9]BP05!$E$14:$O$225,10,0)","v":34486},{"$f":"VLOOKUP($A122,[10]CKD03!$E$14:$O$225,5,0)","v":5791},{"$f":"VLOOKUP($A122,[10]CKD03!$E$14:$O$225,10,0)","v":8168},{"$f":"VLOOKUP($A122,[11]PAD03!$E$14:$O$225,5,0)","v":1185},{"$f":"VLOOKUP($A122,[11]PAD03!$E$14:$O$225,10,0)","v":1386},{"$f":"VLOOKUP($A122,[11]PAD04!$E$14:$O$225,5,0)","v":981},{"$f":"VLOOKUP($A122,[11]PAD04!$E$14:$O$225,10,0)","v":1385},{"$f":"VLOOKUP($A122,[12]STROKE06!$E$14:$O$225,5,0)","v":3708},{"$f":"VLOOKUP($A122,[12]STROKE06!$E$14:$O$225,10,0)","v":4331},{"$f":"VLOOKUP($A122,[12]STROKE08!$E$14:$O$225,5,0)","v":2932},{"$f":"VLOOKUP($A122,[12]STROKE08!$E$14:$O$225,10,0)","v":4321},null,null,null,null,null,null,null,null,null,null,null,null,null,null,{"$f":"VLOOKUP($A122,[3]CHD!$E$14:$BS$226,29,0)","v":7320},{"$f":"VLOOKUP($A122,[3]CHD!$E$14:$BS$226,34,0)","v":8233},{"$f":"VLOOKUP($A122,[3]CHD!$E$14:$BS$226,37,0)","v":5819},{"$f":"VLOOKUP($A122,[3]CHD!$E$14:$BS$226,42,0)","v":8233},{"$f":"VLOOKUP($A122,[3]HYP!$E$14:$BK$226,29,0)","v":28020},{"$f":"VLOOKUP($A122,[3]HYP!$E$14:$BK$226,34,0)","v":35426},{"$f":"VLOOKUP($A122,[3]CKD!$E$14:$BG$230,33,0)","v":5668},{"$f":"VLOOKUP($A122,[3]CKD!$E$14:$BG$230,38,0)","v":7722},{"$f":"VLOOKUP(A122,[3]PAD!$E$14:$BC$226,29,0)","v":1182},{"$f":"VLOOKUP($A122,[3]PAD!$E$14:$BC$226,34,0)","v":1400},{"$f":"VLOOKUP($A122,[3]PAD!$E$14:$BC$226,37,0)","v":932},{"$f":"VLOOKUP($A122,[3]PAD!$E$14:$BC$226,42,0)","v":1400},{"$f":"VLOOKUP($A122,[3]STIA!$E$14:$CA$230,37,0)","v":3750},{"$f":"VLOOKUP($A122,[3]STIA!$E$14:$CA$230,42,0)","v":4439},{"$f":"VLOOKUP($A122,[3]STIA!$E$14:$CA$230,53,0)","v":1905},{"$f":"VLOOKUP($A122,[3]STIA!$E$14:$CA$230,58,0)","v":2938}]
["07G","NHS Thurrock",{"$f":"VLOOKUP($A123,'[6]201314'!$C$19:$J$256,8,0)","v":102},{"$f":"VLOOKUP($A123,'[6]201314'!$C$19:$J$256,7,0)","v":154581},{"$f":"VLOOKUP($A123,[7]Data!$A$6:$H$228,4,0)","v":229},{"$f":"VLOOKUP(A123,[3]CHD!$E$15:$H$226,4,0)","v":164031},{"$f":"VLOOKUP($A123,[7]Data!$A$6:$H$228,3,0)","v":564},164031,{"$f":"VLOOKUP($A123,[7]Data!$A$6:$H$228,5,0)","v":125},164031,{"$f":"VLOOKUP($A123,[7]Data!$A$6:$H$228,6,0)","v":380},164031,{"$f":"VLOOKUP($A123,[7]Data!$A$6:$H$228,7,0)","v":128},164031,{"$f":"VLOOKUP($A123,[7]Data!$A$6:$H$228,8,0)","v":54},164031,{"$f":"VLOOKUP($A123,[8]CHD06!$E$15:$O$225,5,0)","v":4001},{"$f":"VLOOKUP($A123,[8]CHD06!$E$15:$O$225,10,0)","v":4524},{"$f":"VLOOKUP($A123,[8]CHD08!$E$15:$O$225,5,0)","v":3107},{"$f":"VLOOKUP($A123,[8]CHD08!$E$15:$O$225,10,0)","v":4524},{"$f":"VLOOKUP($A123,[9]BP05!$E$14:$O$225,5,0)","v":18380},{"$f":"VLOOKUP($A123,[9]BP05!$E$14:$O$225,10,0)","v":23350},{"$f":"VLOOKUP($A123,[10]CKD03!$E$14:$O$225,5,0)","v":4293},{"$f":"VLOOKUP($A123,[10]CKD03!$E$14:$O$225,10,0)","v":5804},{"$f":"VLOOKUP($A123,[11]PAD03!$E$14:$O$225,5,0)","v":699},{"$f":"VLOOKUP($A123,[11]PAD03!$E$14:$O$225,10,0)","v":814},{"$f":"VLOOKUP($A123,[11]PAD04!$E$14:$O$225,5,0)","v":494},{"$f":"VLOOKUP($A123,[11]PAD04!$E$14:$O$225,10,0)","v":814},{"$f":"VLOOKUP($A123,[12]STROKE06!$E$14:$O$225,5,0)","v":2045},{"$f":"VLOOKUP($A123,[12]STROKE06!$E$14:$O$225,10,0)","v":2384},{"$f":"VLOOKUP($A123,[12]STROKE08!$E$14:$O$225,5,0)","v":1534},{"$f":"VLOOKUP($A123,[12]STROKE08!$E$14:$O$225,10,0)","v":2384},null,null,null,null,null,null,null,null,null,null,null,null,null,null,{"$f":"VLOOKUP($A123,[3]CHD!$E$14:$BS$226,29,0)","v":3979},{"$f":"VLOOKUP($A123,[3]CHD!$E$14:$BS$226,34,0)","v":4497},{"$f":"VLOOKUP($A123,[3]CHD!$E$14:$BS$226,37,0)","v":3141},{"$f":"VLOOKUP($A123,[3]CHD!$E$14:$BS$226,42,0)","v":4497},{"$f":"VLOOKUP($A123,[3]HYP!$E$14:$BK$226,29,0)","v":18719},{"$f":"VLOOKUP($A123,[3]HYP!$E$14:$BK$226,34,0)","v":23456},{"$f":"VLOOKUP($A123,[3]CKD!$E$14:$BG$230,33,0)","v":4110},{"$f":"VLOOKUP($A123,[3]CKD!$E$14:$BG$230,38,0)","v":5304},{"$f":"VLOOKUP(A123,[3]PAD!$E$14:$BC$226,29,0)","v":690},{"$f":"VLOOKUP($A123,[3]PAD!$E$14:$BC$226,34,0)","v":796},{"$f":"VLOOKUP($A123,[3]PAD!$E$14:$BC$226,37,0)","v":515},{"$f":"VLOOKUP($A123,[3]PAD!$E$14:$BC$226,42,0)","v":796},{"$f":"VLOOKUP($A123,[3]STIA!$E$14:$CA$230,37,0)","v":2105},{"$f":"VLOOKUP($A123,[3]STIA!$E$14:$CA$230,42,0)","v":2469},{"$f":"VLOOKUP($A123,[3]STIA!$E$14:$CA$230,53,0)","v":1092},{"$f":"VLOOKUP($A123,[3]STIA!$E$14:$CA$230,58,0)","v":1714}]
["07H","NHS West Essex",{"$f":"VLOOKUP($A124,'[6]201314'!$C$19:$J$256,8,0)","v":139},{"$f":"VLOOKUP($A124,'[6]201314'!$C$19:$J$256,7,0)","v":272314},{"$f":"VLOOKUP($A124,[7]Data!$A$6:$H$228,4,0)","v":379},{"$f":"VLOOKUP(A124,[3]CHD!$E$15:$H$226,4,0)","v":295444},{"$f":"VLOOKUP($A124,[7]Data!$A$6:$H$228,3,0)","v":1647},295444,{"$f":"VLOOKUP($A124,[7]Data!$A$6:$H$228,5,0)","v":258},295444,{"$f":"VLOOKUP($A124,[7]Data!$A$6:$H$228,6,0)","v":967},295444,{"$f":"VLOOKUP($A124,[7]Data!$A$6:$H$228,7,0)","v":355},295444,{"$f":"VLOOKUP($A124,[7]Data!$A$6:$H$228,8,0)","v":84},295444,{"$f":"VLOOKUP($A124,[8]CHD06!$E$15:$O$225,5,0)","v":7818},{"$f":"VLOOKUP($A124,[8]CHD06!$E$15:$O$225,10,0)","v":8947},{"$f":"VLOOKUP($A124,[8]CHD08!$E$15:$O$225,5,0)","v":6346},{"$f":"VLOOKUP($A124,[8]CHD08!$E$15:$O$225,10,0)","v":8947},{"$f":"VLOOKUP($A124,[9]BP05!$E$14:$O$225,5,0)","v":30886},{"$f":"VLOOKUP($A124,[9]BP05!$E$14:$O$225,10,0)","v":40773},{"$f":"VLOOKUP($A124,[10]CKD03!$E$14:$O$225,5,0)","v":5712},{"$f":"VLOOKUP($A124,[10]CKD03!$E$14:$O$225,10,0)","v":7953},{"$f":"VLOOKUP($A124,[11]PAD03!$E$14:$O$225,5,0)","v":1358},{"$f":"VLOOKUP($A124,[11]PAD03!$E$14:$O$225,10,0)","v":1609},{"$f":"VLOOKUP($A124,[11]PAD04!$E$14:$O$225,5,0)","v":1063},{"$f":"VLOOKUP($A124,[11]PAD04!$E$14:$O$225,10,0)","v":1609},{"$f":"VLOOKUP($A124,[12]STROKE06!$E$14:$O$225,5,0)","v":3846},{"$f":"VLOOKUP($A124,[12]STROKE06!$E$14:$O$225,10,0)","v":4563},{"$f":"VLOOKUP($A124,[12]STROKE08!$E$14:$O$225,5,0)","v":2975},{"$f":"VLOOKUP($A124,[12]STROKE08!$E$14:$O$225,10,0)","v":4563},null,null,null,null,null,null,null,null,null,null,null,null,null,null,{"$f":"VLOOKUP($A124,[3]CHD!$E$14:$BS$226,29,0)","v":7794},{"$f":"VLOOKUP($A124,[3]CHD!$E$14:$BS$226,34,0)","v":8893},{"$f":"VLOOKUP($A124,[3]CHD!$E$14:$BS$226,37,0)","v":6146},{"$f":"VLOOKUP($A124,[3]CHD!$E$14:$BS$226,42,0)","v":8893},{"$f":"VLOOKUP($A124,[3]HYP!$E$14:$BK$226,29,0)","v":31962},{"$f":"VLOOKUP($A124,[3]HYP!$E$14:$BK$226,34,0)","v":41455},{"$f":"VLOOKUP($A124,[3]CKD!$E$14:$BG$230,33,0)","v":5554},{"$f":"VLOOKUP($A124,[3]CKD!$E$14:$BG$230,38,0)","v":7439},{"$f":"VLOOKUP(A124,[3]PAD!$E$14:$BC$226,29,0)","v":1343},{"$f":"VLOOKUP($A124,[3]PAD!$E$14:$BC$226,34,0)","v":1546},{"$f":"VLOOKUP($A124,[3]PAD!$E$14:$BC$226,37,0)","v":1021},{"$f":"VLOOKUP($A124,[3]PAD!$E$14:$BC$226,42,0)","v":1546},{"$f":"VLOOKUP($A124,[3]STIA!$E$14:$CA$230,37,0)","v":3840},{"$f":"VLOOKUP($A124,[3]STIA!$E$14:$CA$230,42,0)","v":4630},{"$f":"VLOOKUP($A124,[3]STIA!$E$14:$CA$230,53,0)","v":1910},{"$f":"VLOOKUP($A124,[3]STIA!$E$14:$CA$230,58,0)","v":2989}]
["07J","NHS West Norfolk",{"$f":"VLOOKUP($A125,'[6]201314'!$C$19:$J$256,8,0)","v":96},{"$f":"VLOOKUP($A125,'[6]201314'!$C$19:$J$256,7,0)","v":146855},{"$f":"VLOOKUP($A125,[7]Data!$A$6:$H$228,4,0)","v":325},{"$f":"VLOOKUP(A125,[3]CHD!$E$15:$H$226,4,0)","v":165867},{"$f":"VLOOKUP($A125,[7]Data!$A$6:$H$228,3,0)","v":1373},165867,{"$f":"VLOOKUP($A125,[7]Data!$A$6:$H$228,5,0)","v":238},165867,{"$f":"VLOOKUP($A125,[7]Data!$A$6:$H$228,6,0)","v":468},165867,{"$f":"VLOOKUP($A125,[7]Data!$A$6:$H$228,7,0)","v":266},165867,{"$f":"VLOOKUP($A125,[7]Data!$A$6:$H$228,8,0)","v":111},165867,{"$f":"VLOOKUP($A125,[8]CHD06!$E$15:$O$225,5,0)","v":6784},{"$f":"VLOOKUP($A125,[8]CHD06!$E$15:$O$225,10,0)","v":7857},{"$f":"VLOOKUP($A125,[8]CHD08!$E$15:$O$225,5,0)","v":5673},{"$f":"VLOOKUP($A125,[8]CHD08!$E$15:$O$225,10,0)","v":7857},{"$f":"VLOOKUP($A125,[9]BP05!$E$14:$O$225,5,0)","v":23274},{"$f":"VLOOKUP($A125,[9]BP05!$E$14:$O$225,10,0)","v":30431},{"$f":"VLOOKUP($A125,[10]CKD03!$E$14:$O$225,5,0)","v":5024},{"$f":"VLOOKUP($A125,[10]CKD03!$E$14:$O$225,10,0)","v":7208},{"$f":"VLOOKUP($A125,[11]PAD03!$E$14:$O$225,5,0)","v":1013},{"$f":"VLOOKUP($A125,[11]PAD03!$E$14:$O$225,10,0)","v":1180},{"$f":"VLOOKUP($A125,[11]PAD04!$E$14:$O$225,5,0)","v":815},{"$f":"VLOOKUP($A125,[11]PAD04!$E$14:$O$225,10,0)","v":1180},{"$f":"VLOOKUP($A125,[12]STROKE06!$E$14:$O$225,5,0)","v":3369},{"$f":"VLOOKUP($A125,[12]STROKE06!$E$14:$O$225,10,0)","v":4005},{"$f":"VLOOKUP($A125,[12]STROKE08!$E$14:$O$225,5,0)","v":2752},{"$f":"VLOOKUP($A125,[12]STROKE08!$E$14:$O$225,10,0)","v":4005},null,null,null,null,null,null,null,null,null,null,null,null,null,null,{"$f":"VLOOKUP($A125,[3]CHD!$E$14:$BS$226,29,0)","v":6686},{"$f":"VLOOKUP($A125,[3]CHD!$E$14:$BS$226,34,0)","v":7642},{"$f":"VLOOKUP($A125,[3]CHD!$E$14:$BS$226,37,0)","v":5484},{"$f":"VLOOKUP($A125,[3]CHD!$E$14:$BS$226,42,0)","v":7642},{"$f":"VLOOKUP($A125,[3]HYP!$E$14:$BK$226,29,0)","v":23533},{"$f":"VLOOKUP($A125,[3]HYP!$E$14:$BK$226,34,0)","v":30042},{"$f":"VLOOKUP($A125,[3]CKD!$E$14:$BG$230,33,0)","v":4456},{"$f":"VLOOKUP($A125,[3]CKD!$E$14:$BG$230,38,0)","v":6276},{"$f":"VLOOKUP(A125,[3]PAD!$E$14:$BC$226,29,0)","v":958},{"$f":"VLOOKUP($A125,[3]PAD!$E$14:$BC$226,34,0)","v":1146},{"$f":"VLOOKUP($A125,[3]PAD!$E$14:$BC$226,37,0)","v":766},{"$f":"VLOOKUP($A125,[3]PAD!$E$14:$BC$226,42,0)","v":1146},{"$f":"VLOOKUP($A125,[3]STIA!$E$14:$CA$230,37,0)","v":3469},{"$f":"VLOOKUP($A125,[3]STIA!$E$14:$CA$230,42,0)","v":4148},{"$f":"VLOOKUP($A125,[3]STIA!$E$14:$CA$230,53,0)","v":1916},{"$f":"VLOOKUP($A125,[3]STIA!$E$14:$CA$230,58,0)","v":2831}]
["07K","NHS West Suffolk",{"$f":"VLOOKUP($A126,'[6]201314'!$C$19:$J$256,8,0)","v":138},{"$f":"VLOOKUP($A126,'[6]201314'!$C$19:$J$256,7,0)","v":216423},{"$f":"VLOOKUP($A126,[7]Data!$A$6:$H$228,4,0)","v":379},{"$f":"VLOOKUP(A126,[3]CHD!$E$15:$H$226,4,0)","v":238410},{"$f":"VLOOKUP($A126,[7]Data!$A$6:$H$228,3,0)","v":1426},238410,{"$f":"VLOOKUP($A126,[7]Data!$A$6:$H$228,5,0)","v":326},238410,{"$f":"VLOOKUP($A126,[7]Data!$A$6:$H$228,6,0)","v":665},238410,{"$f":"VLOOKUP($A126,[7]Data!$A$6:$H$228,7,0)","v":323},238410,{"$f":"VLOOKUP($A126,[7]Data!$A$6:$H$228,8,0)","v":109},238410,{"$f":"VLOOKUP($A126,[8]CHD06!$E$15:$O$225,5,0)","v":7305},{"$f":"VLOOKUP($A126,[8]CHD06!$E$15:$O$225,10,0)","v":8267},{"$f":"VLOOKUP($A126,[8]CHD08!$E$15:$O$225,5,0)","v":5828},{"$f":"VLOOKUP($A126,[8]CHD08!$E$15:$O$225,10,0)","v":8267},{"$f":"VLOOKUP($A126,[9]BP05!$E$14:$O$225,5,0)","v":27116},{"$f":"VLOOKUP($A126,[9]BP05!$E$14:$O$225,10,0)","v":34794},{"$f":"VLOOKUP($A126,[10]CKD03!$E$14:$O$225,5,0)","v":4591},{"$f":"VLOOKUP($A126,[10]CKD03!$E$14:$O$225,10,0)","v":6515},{"$f":"VLOOKUP($A126,[11]PAD03!$E$14:$O$225,5,0)","v":1259},{"$f":"VLOOKUP($A126,[11]PAD03!$E$14:$O$225,10,0)","v":1468},{"$f":"VLOOKUP($A126,[11]PAD04!$E$14:$O$225,5,0)","v":970},{"$f":"VLOOKUP($A126,[11]PAD04!$E$14:$O$225,10,0)","v":1468},{"$f":"VLOOKUP($A126,[12]STROKE06!$E$14:$O$225,5,0)","v":3619},{"$f":"VLOOKUP($A126,[12]STROKE06!$E$14:$O$225,10,0)","v":4234},{"$f":"VLOOKUP($A126,[12]STROKE08!$E$14:$O$225,5,0)","v":2796},{"$f":"VLOOKUP($A126,[12]STROKE08!$E$14:$O$225,10,0)","v":4234},null,null,null,null,null,null,null,null,null,null,null,null,null,null,{"$f":"VLOOKUP($A126,[3]CHD!$E$14:$BS$226,29,0)","v":7199},{"$f":"VLOOKUP($A126,[3]CHD!$E$14:$BS$226,34,0)","v":8203},{"$f":"VLOOKUP($A126,[3]CHD!$E$14:$BS$226,37,0)","v":5854},{"$f":"VLOOKUP($A126,[3]CHD!$E$14:$BS$226,42,0)","v":8203},{"$f":"VLOOKUP($A126,[3]HYP!$E$14:$BK$226,29,0)","v":27786},{"$f":"VLOOKUP($A126,[3]HYP!$E$14:$BK$226,34,0)","v":35372},{"$f":"VLOOKUP($A126,[3]CKD!$E$14:$BG$230,33,0)","v":4599},{"$f":"VLOOKUP($A126,[3]CKD!$E$14:$BG$230,38,0)","v":6373},{"$f":"VLOOKUP(A126,[3]PAD!$E$14:$BC$226,29,0)","v":1213},{"$f":"VLOOKUP($A126,[3]PAD!$E$14:$BC$226,34,0)","v":1446},{"$f":"VLOOKUP($A126,[3]PAD!$E$14:$BC$226,37,0)","v":954},{"$f":"VLOOKUP($A126,[3]PAD!$E$14:$BC$226,42,0)","v":1446},{"$f":"VLOOKUP($A126,[3]STIA!$E$14:$CA$230,37,0)","v":3584},{"$f":"VLOOKUP($A126,[3]STIA!$E$14:$CA$230,42,0)","v":4212},{"$f":"VLOOKUP($A126,[3]STIA!$E$14:$CA$230,53,0)","v":1647},{"$f":"VLOOKUP($A126,[3]STIA!$E$14:$CA$230,58,0)","v":2511}]
["07L","NHS Barking and Dagenham",{"$f":"VLOOKUP($A127,'[6]201314'!$C$19:$J$256,8,0)","v":93},{"$f":"VLOOKUP($A127,'[6]201314'!$C$19:$J$256,7,0)","v":195905},{"$f":"VLOOKUP($A127,[7]Data!$A$6:$H$228,4,0)","v":189},{"$f":"VLOOKUP(A127,[3]CHD!$E$15:$H$226,4,0)","v":204754},{"$f":"VLOOKUP($A127,[7]Data!$A$6:$H$228,3,0)","v":872},204754,{"$f":"VLOOKUP($A127,[7]Data!$A$6:$H$228,5,0)","v":225},204754,{"$f":"VLOOKUP($A127,[7]Data!$A$6:$H$228,6,0)","v":521},204754,{"$f":"VLOOKUP($A127,[7]Data!$A$6:$H$228,7,0)","v":191},204754,{"$f":"VLOOKUP($A127,[7]Data!$A$6:$H$228,8,0)","v":66},204754,{"$f":"VLOOKUP($A127,[8]CHD06!$E$15:$O$225,5,0)","v":3941},{"$f":"VLOOKUP($A127,[8]CHD06!$E$15:$O$225,10,0)","v":4463},{"$f":"VLOOKUP($A127,[8]CHD08!$E$15:$O$225,5,0)","v":3334},{"$f":"VLOOKUP($A127,[8]CHD08!$E$15:$O$225,10,0)","v":4463},{"$f":"VLOOKUP($A127,[9]BP05!$E$14:$O$225,5,0)","v":19046},{"$f":"VLOOKUP($A127,[9]BP05!$E$14:$O$225,10,0)","v":24626},{"$f":"VLOOKUP($A127,[10]CKD03!$E$14:$O$225,5,0)","v":3074},{"$f":"VLOOKUP($A127,[10]CKD03!$E$14:$O$225,10,0)","v":4188},{"$f":"VLOOKUP($A127,[11]PAD03!$E$14:$O$225,5,0)","v":679},{"$f":"VLOOKUP($A127,[11]PAD03!$E$14:$O$225,10,0)","v":759},{"$f":"VLOOKUP($A127,[11]PAD04!$E$14:$O$225,5,0)","v":533},{"$f":"VLOOKUP($A127,[11]PAD04!$E$14:$O$225,10,0)","v":759},{"$f":"VLOOKUP($A127,[12]STROKE06!$E$14:$O$225,5,0)","v":1636},{"$f":"VLOOKUP($A127,[12]STROKE06!$E$14:$O$225,10,0)","v":1911},{"$f":"VLOOKUP($A127,[12]STROKE08!$E$14:$O$225,5,0)","v":1379},{"$f":"VLOOKUP($A127,[12]STROKE08!$E$14:$O$225,10,0)","v":1911},null,null,null,null,null,null,null,null,null,null,null,null,null,null,{"$f":"VLOOKUP($A127,[3]CHD!$E$14:$BS$226,29,0)","v":3928},{"$f":"VLOOKUP($A127,[3]CHD!$E$14:$BS$226,34,0)","v":4394},{"$f":"VLOOKUP($A127,[3]CHD!$E$14:$BS$226,37,0)","v":3276},{"$f":"VLOOKUP($A127,[3]CHD!$E$14:$BS$226,42,0)","v":4394},{"$f":"VLOOKUP($A127,[3]HYP!$E$14:$BK$226,29,0)","v":19633},{"$f":"VLOOKUP($A127,[3]HYP!$E$14:$BK$226,34,0)","v":24938},{"$f":"VLOOKUP($A127,[3]CKD!$E$14:$BG$230,33,0)","v":3095},{"$f":"VLOOKUP($A127,[3]CKD!$E$14:$BG$230,38,0)","v":4018},{"$f":"VLOOKUP(A127,[3]PAD!$E$14:$BC$226,29,0)","v":639},{"$f":"VLOOKUP($A127,[3]PAD!$E$14:$BC$226,34,0)","v":724},{"$f":"VLOOKUP($A127,[3]PAD!$E$14:$BC$226,37,0)","v":521},{"$f":"VLOOKUP($A127,[3]PAD!$E$14:$BC$226,42,0)","v":724},{"$f":"VLOOKUP($A127,[3]STIA!$E$14:$CA$230,37,0)","v":1687},{"$f":"VLOOKUP($A127,[3]STIA!$E$14:$CA$230,42,0)","v":1943},{"$f":"VLOOKUP($A127,[3]STIA!$E$14:$CA$230,53,0)","v":856},{"$f":"VLOOKUP($A127,[3]STIA!$E$14:$CA$230,58,0)","v":1212}]
["07M","NHS Barnet",{"$f":"VLOOKUP($A128,'[6]201314'!$C$19:$J$256,8,0)","v":154},{"$f":"VLOOKUP($A128,'[6]201314'!$C$19:$J$256,7,0)","v":361656},{"$f":"VLOOKUP($A128,[7]Data!$A$6:$H$228,4,0)","v":587},{"$f":"VLOOKUP(A128,[3]CHD!$E$15:$H$226,4,0)","v":386604},{"$f":"VLOOKUP($A128,[7]Data!$A$6:$H$228,3,0)","v":1553},386604,{"$f":"VLOOKUP($A128,[7]Data!$A$6:$H$228,5,0)","v":418},386604,{"$f":"VLOOKUP($A128,[7]Data!$A$6:$H$228,6,0)","v":961},386604,{"$f":"VLOOKUP($A128,[7]Data!$A$6:$H$228,7,0)","v":402},386604,{"$f":"VLOOKUP($A128,[7]Data!$A$6:$H$228,8,0)","v":90},386604,{"$f":"VLOOKUP($A128,[8]CHD06!$E$15:$O$225,5,0)","v":9133},{"$f":"VLOOKUP($A128,[8]CHD06!$E$15:$O$225,10,0)","v":10441},{"$f":"VLOOKUP($A128,[8]CHD08!$E$15:$O$225,5,0)","v":7597},{"$f":"VLOOKUP($A128,[8]CHD08!$E$15:$O$225,10,0)","v":10441},{"$f":"VLOOKUP($A128,[9]BP05!$E$14:$O$225,5,0)","v":34679},{"$f":"VLOOKUP($A128,[9]BP05!$E$14:$O$225,10,0)","v":45575},{"$f":"VLOOKUP($A128,[10]CKD03!$E$14:$O$225,5,0)","v":6346},{"$f":"VLOOKUP($A128,[10]CKD03!$E$14:$O$225,10,0)","v":8804},{"$f":"VLOOKUP($A128,[11]PAD03!$E$14:$O$225,5,0)","v":1453},{"$f":"VLOOKUP($A128,[11]PAD03!$E$14:$O$225,10,0)","v":1666},{"$f":"VLOOKUP($A128,[11]PAD04!$E$14:$O$225,5,0)","v":1132},{"$f":"VLOOKUP($A128,[11]PAD04!$E$14:$O$225,10,0)","v":1666},{"$f":"VLOOKUP($A128,[12]STROKE06!$E$14:$O$225,5,0)","v":4189},{"$f":"VLOOKUP($A128,[12]STROKE06!$E$14:$O$225,10,0)","v":4925},{"$f":"VLOOKUP($A128,[12]STROKE08!$E$14:$O$225,5,0)","v":3344},{"$f":"VLOOKUP($A128,[12]STROKE08!$E$14:$O$225,10,0)","v":4925},null,null,null,null,null,null,null,null,null,null,null,null,null,null,{"$f":"VLOOKUP($A128,[3]CHD!$E$14:$BS$226,29,0)","v":9085},{"$f":"VLOOKUP($A128,[3]CHD!$E$14:$BS$226,34,0)","v":10261},{"$f":"VLOOKUP($A128,[3]CHD!$E$14:$BS$226,37,0)","v":7440},{"$f":"VLOOKUP($A128,[3]CHD!$E$14:$BS$226,42,0)","v":10232},{"$f":"VLOOKUP($A128,[3]HYP!$E$14:$BK$226,29,0)","v":35987},{"$f":"VLOOKUP($A128,[3]HYP!$E$14:$BK$226,34,0)","v":45855},{"$f":"VLOOKUP($A128,[3]CKD!$E$14:$BG$230,33,0)","v":6753},{"$f":"VLOOKUP($A128,[3]CKD!$E$14:$BG$230,38,0)","v":8993},{"$f":"VLOOKUP(A128,[3]PAD!$E$14:$BC$226,29,0)","v":1429},{"$f":"VLOOKUP($A128,[3]PAD!$E$14:$BC$226,34,0)","v":1626},{"$f":"VLOOKUP($A128,[3]PAD!$E$14:$BC$226,37,0)","v":1123},{"$f":"VLOOKUP($A128,[3]PAD!$E$14:$BC$226,42,0)","v":1618},{"$f":"VLOOKUP($A128,[3]STIA!$E$14:$CA$230,37,0)","v":4274},{"$f":"VLOOKUP($A128,[3]STIA!$E$14:$CA$230,42,0)","v":4952},{"$f":"VLOOKUP($A128,[3]STIA!$E$14:$CA$230,53,0)","v":2151},{"$f":"VLOOKUP($A128,[3]STIA!$E$14:$CA$230,58,0)","v":3190}]
["07N","NHS Bexley",{"$f":"VLOOKUP($A129,'[6]201314'!$C$19:$J$256,8,0)","v":109},{"$f":"VLOOKUP($A129,'[6]201314'!$C$19:$J$256,7,0)","v":207718},{"$f":"VLOOKUP($A129,[7]Data!$A$6:$H$228,4,0)","v":330},{"$f":"VLOOKUP(A129,[3]CHD!$E$15:$H$226,4,0)","v":226921},{"$f":"VLOOKUP($A129,[7]Data!$A$6:$H$228,3,0)","v":956},226921,{"$f":"VLOOKUP($A129,[7]Data!$A$6:$H$228,5,0)","v":217},226921,{"$f":"VLOOKUP($A129,[7]Data!$A$6:$H$228,6,0)","v":588},226921,{"$f":"VLOOKUP($A129,[7]Data!$A$6:$H$228,7,0)","v":295},226921,{"$f":"VLOOKUP($A129,[7]Data!$A$6:$H$228,8,0)","v":72},226921,{"$f":"VLOOKUP($A129,[8]CHD06!$E$15:$O$225,5,0)","v":5866},{"$f":"VLOOKUP($A129,[8]CHD06!$E$15:$O$225,10,0)","v":6707},{"$f":"VLOOKUP($A129,[8]CHD08!$E$15:$O$225,5,0)","v":4780},{"$f":"VLOOKUP($A129,[8]CHD08!$E$15:$O$225,10,0)","v":6707},{"$f":"VLOOKUP($A129,[9]BP05!$E$14:$O$225,5,0)","v":25175},{"$f":"VLOOKUP($A129,[9]BP05!$E$14:$O$225,10,0)","v":32034},{"$f":"VLOOKUP($A129,[10]CKD03!$E$14:$O$225,5,0)","v":4582},{"$f":"VLOOKUP($A129,[10]CKD03!$E$14:$O$225,10,0)","v":6429},{"$f":"VLOOKUP($A129,[11]PAD03!$E$14:$O$225,5,0)","v":985},{"$f":"VLOOKUP($A129,[11]PAD03!$E$14:$O$225,10,0)","v":1151},{"$f":"VLOOKUP($A129,[11]PAD04!$E$14:$O$225,5,0)","v":783},{"$f":"VLOOKUP($A129,[11]PAD04!$E$14:$O$225,10,0)","v":1151},{"$f":"VLOOKUP($A129,[12]STROKE06!$E$14:$O$225,5,0)","v":2984},{"$f":"VLOOKUP($A129,[12]STROKE06!$E$14:$O$225,10,0)","v":3470},{"$f":"VLOOKUP($A129,[12]STROKE08!$E$14:$O$225,5,0)","v":2325},{"$f":"VLOOKUP($A129,[12]STROKE08!$E$14:$O$225,10,0)","v":3470},null,null,null,null,null,null,null,null,null,null,null,null,null,null,{"$f":"VLOOKUP($A129,[3]CHD!$E$14:$BS$226,29,0)","v":5850},{"$f":"VLOOKUP($A129,[3]CHD!$E$14:$BS$226,34,0)","v":6607},{"$f":"VLOOKUP($A129,[3]CHD!$E$14:$BS$226,37,0)","v":4772},{"$f":"VLOOKUP($A129,[3]CHD!$E$14:$BS$226,42,0)","v":6591},{"$f":"VLOOKUP($A129,[3]HYP!$E$14:$BK$226,29,0)","v":25634},{"$f":"VLOOKUP($A129,[3]HYP!$E$14:$BK$226,34,0)","v":32391},{"$f":"VLOOKUP($A129,[3]CKD!$E$14:$BG$230,33,0)","v":4716},{"$f":"VLOOKUP($A129,[3]CKD!$E$14:$BG$230,38,0)","v":6246},{"$f":"VLOOKUP(A129,[3]PAD!$E$14:$BC$226,29,0)","v":967},{"$f":"VLOOKUP($A129,[3]PAD!$E$14:$BC$226,34,0)","v":1134},{"$f":"VLOOKUP($A129,[3]PAD!$E$14:$BC$226,37,0)","v":771},{"$f":"VLOOKUP($A129,[3]PAD!$E$14:$BC$226,42,0)","v":1133},{"$f":"VLOOKUP($A129,[3]STIA!$E$14:$CA$230,37,0)","v":2964},{"$f":"VLOOKUP($A129,[3]STIA!$E$14:$CA$230,42,0)","v":3534},{"$f":"VLOOKUP($A129,[3]STIA!$E$14:$CA$230,53,0)","v":1760},{"$f":"VLOOKUP($A129,[3]STIA!$E$14:$CA$230,58,0)","v":2564}]
["07P","NHS Brent",{"$f":"VLOOKUP($A130,'[6]201314'!$C$19:$J$256,8,0)","v":165},{"$f":"VLOOKUP($A130,'[6]201314'!$C$19:$J$256,7,0)","v":331963},{"$f":"VLOOKUP($A130,[7]Data!$A$6:$H$228,4,0)","v":415},{"$f":"VLOOKUP(A130,[3]CHD!$E$15:$H$226,4,0)","v":345315},{"$f":"VLOOKUP($A130,[7]Data!$A$6:$H$228,3,0)","v":1508},345315,{"$f":"VLOOKUP($A130,[7]Data!$A$6:$H$228,5,0)","v":372},345315,{"$f":"VLOOKUP($A130,[7]Data!$A$6:$H$228,6,0)","v":1157},345315,{"$f":"VLOOKUP($A130,[7]Data!$A$6:$H$228,7,0)","v":414},345315,{"$f":"VLOOKUP($A130,[7]Data!$A$6:$H$228,8,0)","v":94},345315,{"$f":"VLOOKUP($A130,[8]CHD06!$E$15:$O$225,5,0)","v":6687},{"$f":"VLOOKUP($A130,[8]CHD06!$E$15:$O$225,10,0)","v":7601},{"$f":"VLOOKUP($A130,[8]CHD08!$E$15:$O$225,5,0)","v":5598},{"$f":"VLOOKUP($A130,[8]CHD08!$E$15:$O$225,10,0)","v":7601},{"$f":"VLOOKUP($A130,[9]BP05!$E$14:$O$225,5,0)","v":32558},{"$f":"VLOOKUP($A130,[9]BP05!$E$14:$O$225,10,0)","v":42762},{"$f":"VLOOKUP($A130,[10]CKD03!$E$14:$O$225,5,0)","v":4373},{"$f":"VLOOKUP($A130,[10]CKD03!$E$14:$O$225,10,0)","v":6031},{"$f":"VLOOKUP($A130,[11]PAD03!$E$14:$O$225,5,0)","v":1050},{"$f":"VLOOKUP($A130,[11]PAD03!$E$14:$O$225,10,0)","v":1221},{"$f":"VLOOKUP($A130,[11]PAD04!$E$14:$O$225,5,0)","v":840},{"$f":"VLOOKUP($A130,[11]PAD04!$E$14:$O$225,10,0)","v":1221},{"$f":"VLOOKUP($A130,[12]STROKE06!$E$14:$O$225,5,0)","v":3065},{"$f":"VLOOKUP($A130,[12]STROKE06!$E$14:$O$225,10,0)","v":3645},{"$f":"VLOOKUP($A130,[12]STROKE08!$E$14:$O$225,5,0)","v":2531},{"$f":"VLOOKUP($A130,[12]STROKE08!$E$14:$O$225,10,0)","v":3645},null,null,null,null,null,null,null,null,null,null,null,null,null,null,{"$f":"VLOOKUP($A130,[3]CHD!$E$14:$BS$226,29,0)","v":7069},{"$f":"VLOOKUP($A130,[3]CHD!$E$14:$BS$226,34,0)","v":7889},{"$f":"VLOOKUP($A130,[3]CHD!$E$14:$BS$226,37,0)","v":5896},{"$f":"VLOOKUP($A130,[3]CHD!$E$14:$BS$226,42,0)","v":7889},{"$f":"VLOOKUP($A130,[3]HYP!$E$14:$BK$226,29,0)","v":34093},{"$f":"VLOOKUP($A130,[3]HYP!$E$14:$BK$226,34,0)","v":43220},{"$f":"VLOOKUP($A130,[3]CKD!$E$14:$BG$230,33,0)","v":4455},{"$f":"VLOOKUP($A130,[3]CKD!$E$14:$BG$230,38,0)","v":5775},{"$f":"VLOOKUP(A130,[3]PAD!$E$14:$BC$226,29,0)","v":1050},{"$f":"VLOOKUP($A130,[3]PAD!$E$14:$BC$226,34,0)","v":1220},{"$f":"VLOOKUP($A130,[3]PAD!$E$14:$BC$226,37,0)","v":866},{"$f":"VLOOKUP($A130,[3]PAD!$E$14:$BC$226,42,0)","v":1220},{"$f":"VLOOKUP($A130,[3]STIA!$E$14:$CA$230,37,0)","v":3208},{"$f":"VLOOKUP($A130,[3]STIA!$E$14:$CA$230,42,0)","v":3759},{"$f":"VLOOKUP($A130,[3]STIA!$E$14:$CA$230,53,0)","v":1399},{"$f":"VLOOKUP($A130,[3]STIA!$E$14:$CA$230,58,0)","v":2022}]
["07Q","NHS Bromley",{"$f":"VLOOKUP($A131,'[6]201314'!$C$19:$J$256,8,0)","v":152},{"$f":"VLOOKUP($A131,'[6]201314'!$C$19:$J$256,7,0)","v":304588},{"$f":"VLOOKUP($A131,[7]Data!$A$6:$H$228,4,0)","v":473},{"$f":"VLOOKUP(A131,[3]CHD!$E$15:$H$226,4,0)","v":331498},{"$f":"VLOOKUP($A131,[7]Data!$A$6:$H$228,3,0)","v":1811},331498,{"$f":"VLOOKUP($A131,[7]Data!$A$6:$H$228,5,0)","v":376},331498,{"$f":"VLOOKUP($A131,[7]Data!$A$6:$H$228,6,0)","v":1278},331498,{"$f":"VLOOKUP($A131,[7]Data!$A$6:$H$228,7,0)","v":431},331498,{"$f":"VLOOKUP($A131,[7]Data!$A$6:$H$228,8,0)","v":130},331498,{"$f":"VLOOKUP($A131,[8]CHD06!$E$15:$O$225,5,0)","v":8815},{"$f":"VLOOKUP($A131,[8]CHD06!$E$15:$O$225,10,0)","v":10165},{"$f":"VLOOKUP($A131,[8]CHD08!$E$15:$O$225,5,0)","v":7401},{"$f":"VLOOKUP($A131,[8]CHD08!$E$15:$O$225,10,0)","v":10165},{"$f":"VLOOKUP($A131,[9]BP05!$E$14:$O$225,5,0)","v":34045},{"$f":"VLOOKUP($A131,[9]BP05!$E$14:$O$225,10,0)","v":46028},{"$f":"VLOOKUP($A131,[10]CKD03!$E$14:$O$225,5,0)","v":6878},{"$f":"VLOOKUP($A131,[10]CKD03!$E$14:$O$225,10,0)","v":10183},{"$f":"VLOOKUP($A131,[11]PAD03!$E$14:$O$225,5,0)","v":1371},{"$f":"VLOOKUP($A131,[11]PAD03!$E$14:$O$225,10,0)","v":1642},{"$f":"VLOOKUP($A131,[11]PAD04!$E$14:$O$225,5,0)","v":1096},{"$f":"VLOOKUP($A131,[11]PAD04!$E$14:$O$225,10,0)","v":1642},{"$f":"VLOOKUP($A131,[12]STROKE06!$E$14:$O$225,5,0)","v":4260},{"$f":"VLOOKUP($A131,[12]STROKE06!$E$14:$O$225,10,0)","v":5122},{"$f":"VLOOKUP($A131,[12]STROKE08!$E$14:$O$225,5,0)","v":3438},{"$f":"VLOOKUP($A131,[12]STROKE08!$E$14:$O$225,10,0)","v":5122},null,null,null,null,null,null,null,null,null,null,null,null,null,null,{"$f":"VLOOKUP($A131,[3]CHD!$E$14:$BS$226,29,0)","v":8851},{"$f":"VLOOKUP($A131,[3]CHD!$E$14:$BS$226,34,0)","v":10072},{"$f":"VLOOKUP($A131,[3]CHD!$E$14:$BS$226,37,0)","v":7340},{"$f":"VLOOKUP($A131,[3]CHD!$E$14:$BS$226,42,0)","v":10067},{"$f":"VLOOKUP($A131,[3]HYP!$E$14:$BK$226,29,0)","v":35535},{"$f":"VLOOKUP($A131,[3]HYP!$E$14:$BK$226,34,0)","v":46396},{"$f":"VLOOKUP($A131,[3]CKD!$E$14:$BG$230,33,0)","v":7192},{"$f":"VLOOKUP($A131,[3]CKD!$E$14:$BG$230,38,0)","v":10048},{"$f":"VLOOKUP(A131,[3]PAD!$E$14:$BC$226,29,0)","v":1329},{"$f":"VLOOKUP($A131,[3]PAD!$E$14:$BC$226,34,0)","v":1551},{"$f":"VLOOKUP($A131,[3]PAD!$E$14:$BC$226,37,0)","v":1062},{"$f":"VLOOKUP($A131,[3]PAD!$E$14:$BC$226,42,0)","v":1547},{"$f":"VLOOKUP($A131,[3]STIA!$E$14:$CA$230,37,0)","v":4291},{"$f":"VLOOKUP($A131,[3]STIA!$E$14:$CA$230,42,0)","v":5121},{"$f":"VLOOKUP($A131,[3]STIA!$E$14:$CA$230,53,0)","v":2016},{"$f":"VLOOKUP($A131,[3]STIA!$E$14:$CA$230,58,0)","v":2976}]
["07R","NHS Camden",{"$f":"VLOOKUP($A132,'[6]201314'!$C$19:$J$256,8,0)","v":89},{"$f":"VLOOKUP($A132,'[6]201314'!$C$19:$J$256,7,0)","v":244964},{"$f":"VLOOKUP($A132,[7]Data!$A$6:$H$228,4,0)","v":256},{"$f":"VLOOKUP(A132,[3]CHD!$E$15:$H$226,4,0)","v":253701},{"$f":"VLOOKUP($A132,[7]Data!$A$6:$H$228,3,0)","v":537},253701,{"$f":"VLOOKUP($A132,[7]Data!$A$6:$H$228,5,0)","v":203},253701,{"$f":"VLOOKUP($A132,[7]Data!$A$6:$H$228,6,0)","v":388},253701,{"$f":"VLOOKUP($A132,[7]Data!$A$6:$H$228,7,0)","v":185},253701,{"$f":"VLOOKUP($A132,[7]Data!$A$6:$H$228,8,0)","v":40},253701,{"$f":"VLOOKUP($A132,[8]CHD06!$E$15:$O$225,5,0)","v":3664},{"$f":"VLOOKUP($A132,[8]CHD06!$E$15:$O$225,10,0)","v":4153},{"$f":"VLOOKUP($A132,[8]CHD08!$E$15:$O$225,5,0)","v":2946},{"$f":"VLOOKUP($A132,[8]CHD08!$E$15:$O$225,10,0)","v":4153},{"$f":"VLOOKUP($A132,[9]BP05!$E$14:$O$225,5,0)","v":15986},{"$f":"VLOOKUP($A132,[9]BP05!$E$14:$O$225,10,0)","v":20885},{"$f":"VLOOKUP($A132,[10]CKD03!$E$14:$O$225,5,0)","v":3323},{"$f":"VLOOKUP($A132,[10]CKD03!$E$14:$O$225,10,0)","v":4527},{"$f":"VLOOKUP($A132,[11]PAD03!$E$14:$O$225,5,0)","v":911},{"$f":"VLOOKUP($A132,[11]PAD03!$E$14:$O$225,10,0)","v":1045},{"$f":"VLOOKUP($A132,[11]PAD04!$E$14:$O$225,5,0)","v":742},{"$f":"VLOOKUP($A132,[11]PAD04!$E$14:$O$225,10,0)","v":1045},{"$f":"VLOOKUP($A132,[12]STROKE06!$E$14:$O$225,5,0)","v":2020},{"$f":"VLOOKUP($A132,[12]STROKE06!$E$14:$O$225,10,0)","v":2349},{"$f":"VLOOKUP($A132,[12]STROKE08!$E$14:$O$225,5,0)","v":1499},{"$f":"VLOOKUP($A132,[12]STROKE08!$E$14:$O$225,10,0)","v":2349},null,null,null,null,null,null,null,null,null,null,null,null,null,null,{"$f":"VLOOKUP($A132,[3]CHD!$E$14:$BS$226,29,0)","v":3563},{"$f":"VLOOKUP($A132,[3]CHD!$E$14:$BS$226,34,0)","v":3984},{"$f":"VLOOKUP($A132,[3]CHD!$E$14:$BS$226,37,0)","v":2914},{"$f":"VLOOKUP($A132,[3]CHD!$E$14:$BS$226,42,0)","v":3984},{"$f":"VLOOKUP($A132,[3]HYP!$E$14:$BK$226,29,0)","v":16379},{"$f":"VLOOKUP($A132,[3]HYP!$E$14:$BK$226,34,0)","v":20708},{"$f":"VLOOKUP($A132,[3]CKD!$E$14:$BG$230,33,0)","v":3705},{"$f":"VLOOKUP($A132,[3]CKD!$E$14:$BG$230,38,0)","v":4768},{"$f":"VLOOKUP(A132,[3]PAD!$E$14:$BC$226,29,0)","v":912},{"$f":"VLOOKUP($A132,[3]PAD!$E$14:$BC$226,34,0)","v":1021},{"$f":"VLOOKUP($A132,[3]PAD!$E$14:$BC$226,37,0)","v":720},{"$f":"VLOOKUP($A132,[3]PAD!$E$14:$BC$226,42,0)","v":1021},{"$f":"VLOOKUP($A132,[3]STIA!$E$14:$CA$230,37,0)","v":1956},{"$f":"VLOOKUP($A132,[3]STIA!$E$14:$CA$230,42,0)","v":2272},{"$f":"VLOOKUP($A132,[3]STIA!$E$14:$CA$230,53,0)","v":790},{"$f":"VLOOKUP($A132,[3]STIA!$E$14:$CA$230,58,0)","v":1164}]
["07T","NHS City and Hackney",{"$f":"VLOOKUP($A133,'[6]201314'!$C$19:$J$256,8,0)","v":129},{"$f":"VLOOKUP($A133,'[6]201314'!$C$19:$J$256,7,0)","v":271782},{"$f":"VLOOKUP($A133,[7]Data!$A$6:$H$228,4,0)","v":348},{"$f":"VLOOKUP(A133,[3]CHD!$E$15:$H$226,4,0)","v":291870},{"$f":"VLOOKUP($A133,[7]Data!$A$6:$H$228,3,0)","v":849},291870,{"$f":"VLOOKUP($A133,[7]Data!$A$6:$H$228,5,0)","v":310},291870,{"$f":"VLOOKUP($A133,[7]Data!$A$6:$H$228,6,0)","v":460},291870,{"$f":"VLOOKUP($A133,[7]Data!$A$6:$H$228,7,0)","v":210},291870,{"$f":"VLOOKUP($A133,[7]Data!$A$6:$H$228,8,0)","v":48},291870,{"$f":"VLOOKUP($A133,[8]CHD06!$E$15:$O$225,5,0)","v":4094},{"$f":"VLOOKUP($A133,[8]CHD06!$E$15:$O$225,10,0)","v":4583},{"$f":"VLOOKUP($A133,[8]CHD08!$E$15:$O$225,5,0)","v":3402},{"$f":"VLOOKUP($A133,[8]CHD08!$E$15:$O$225,10,0)","v":4583},{"$f":"VLOOKUP($A133,[9]BP05!$E$14:$O$225,5,0)","v":20929},{"$f":"VLOOKUP($A133,[9]BP05!$E$14:$O$225,10,0)","v":27185},{"$f":"VLOOKUP($A133,[10]CKD03!$E$14:$O$225,5,0)","v":2974},{"$f":"VLOOKUP($A133,[10]CKD03!$E$14:$O$225,10,0)","v":4078},{"$f":"VLOOKUP($A133,[11]PAD03!$E$14:$O$225,5,0)","v":861},{"$f":"VLOOKUP($A133,[11]PAD03!$E$14:$O$225,10,0)","v":980},{"$f":"VLOOKUP($A133,[11]PAD04!$E$14:$O$225,5,0)","v":691},{"$f":"VLOOKUP($A133,[11]PAD04!$E$14:$O$225,10,0)","v":980},{"$f":"VLOOKUP($A133,[12]STROKE06!$E$14:$O$225,5,0)","v":2120},{"$f":"VLOOKUP($A133,[12]STROKE06!$E$14:$O$225,10,0)","v":2449},{"$f":"VLOOKUP($A133,[12]STROKE08!$E$14:$O$225,5,0)","v":1742},{"$f":"VLOOKUP($A133,[12]STROKE08!$E$14:$O$225,10,0)","v":2449},null,null,null,null,null,null,null,null,null,null,null,null,null,null,{"$f":"VLOOKUP($A133,[3]CHD!$E$14:$BS$226,29,0)","v":4188},{"$f":"VLOOKUP($A133,[3]CHD!$E$14:$BS$226,34,0)","v":4505},{"$f":"VLOOKUP($A133,[3]CHD!$E$14:$BS$226,37,0)","v":3456},{"$f":"VLOOKUP($A133,[3]CHD!$E$14:$BS$226,42,0)","v":4505},{"$f":"VLOOKUP($A133,[3]HYP!$E$14:$BK$226,29,0)","v":22558},{"$f":"VLOOKUP($A133,[3]HYP!$E$14:$BK$226,34,0)","v":27379},{"$f":"VLOOKUP($A133,[3]CKD!$E$14:$BG$230,33,0)","v":3268},{"$f":"VLOOKUP($A133,[3]CKD!$E$14:$BG$230,38,0)","v":3992},{"$f":"VLOOKUP(A133,[3]PAD!$E$14:$BC$226,29,0)","v":843},{"$f":"VLOOKUP($A133,[3]PAD!$E$14:$BC$226,34,0)","v":934},{"$f":"VLOOKUP($A133,[3]PAD!$E$14:$BC$226,37,0)","v":684},{"$f":"VLOOKUP($A133,[3]PAD!$E$14:$BC$226,42,0)","v":934},{"$f":"VLOOKUP($A133,[3]STIA!$E$14:$CA$230,37,0)","v":2215},{"$f":"VLOOKUP($A133,[3]STIA!$E$14:$CA$230,42,0)","v":2471},{"$f":"VLOOKUP($A133,[3]STIA!$E$14:$CA$230,53,0)","v":1003},{"$f":"VLOOKUP($A133,[3]STIA!$E$14:$CA$230,58,0)","v":1365}]
["07V","NHS Croydon",{"$f":"VLOOKUP($A134,'[6]201314'!$C$19:$J$256,8,0)","v":193},{"$f":"VLOOKUP($A134,'[6]201314'!$C$19:$J$256,7,0)","v":364234},{"$f":"VLOOKUP($A134,[7]Data!$A$6:$H$228,4,0)","v":613},{"$f":"VLOOKUP(A134,[3]CHD!$E$15:$H$226,4,0)","v":384954},{"$f":"VLOOKUP($A134,[7]Data!$A$6:$H$228,3,0)","v":1969},384954,{"$f":"VLOOKUP($A134,[7]Data!$A$6:$H$228,5,0)","v":356},384954,{"$f":"VLOOKUP($A134,[7]Data!$A$6:$H$228,6,0)","v":1693},384954,{"$f":"VLOOKUP($A134,[7]Data!$A$6:$H$228,7,0)","v":580},384954,{"$f":"VLOOKUP($A134,[7]Data!$A$6:$H$228,8,0)","v":149},384954,{"$f":"VLOOKUP($A134,[8]CHD06!$E$15:$O$225,5,0)","v":7782},{"$f":"VLOOKUP($A134,[8]CHD06!$E$15:$O$225,10,0)","v":8845},{"$f":"VLOOKUP($A134,[8]CHD08!$E$15:$O$225,5,0)","v":6263},{"$f":"VLOOKUP($A134,[8]CHD08!$E$15:$O$225,10,0)","v":8845},{"$f":"VLOOKUP($A134,[9]BP05!$E$14:$O$225,5,0)","v":36386},{"$f":"VLOOKUP($A134,[9]BP05!$E$14:$O$225,10,0)","v":47026},{"$f":"VLOOKUP($A134,[10]CKD03!$E$14:$O$225,5,0)","v":7185},{"$f":"VLOOKUP($A134,[10]CKD03!$E$14:$O$225,10,0)","v":10040},{"$f":"VLOOKUP($A134,[11]PAD03!$E$14:$O$225,5,0)","v":1302},{"$f":"VLOOKUP($A134,[11]PAD03!$E$14:$O$225,10,0)","v":1503},{"$f":"VLOOKUP($A134,[11]PAD04!$E$14:$O$225,5,0)","v":1000},{"$f":"VLOOKUP($A134,[11]PAD04!$E$14:$O$225,10,0)","v":1503},{"$f":"VLOOKUP($A134,[12]STROKE06!$E$14:$O$225,5,0)","v":3874},{"$f":"VLOOKUP($A134,[12]STROKE06!$E$14:$O$225,10,0)","v":4562},{"$f":"VLOOKUP($A134,[12]STROKE08!$E$14:$O$225,5,0)","v":3079},{"$f":"VLOOKUP($A134,[12]STROKE08!$E$14:$O$225,10,0)","v":4562},null,null,null,null,null,null,null,null,null,null,null,null,null,null,{"$f":"VLOOKUP($A134,[3]CHD!$E$14:$BS$226,29,0)","v":7982},{"$f":"VLOOKUP($A134,[3]CHD!$E$14:$BS$226,34,0)","v":8943},{"$f":"VLOOKUP($A134,[3]CHD!$E$14:$BS$226,37,0)","v":6540},{"$f":"VLOOKUP($A134,[3]CHD!$E$14:$BS$226,42,0)","v":8934},{"$f":"VLOOKUP($A134,[3]HYP!$E$14:$BK$226,29,0)","v":37561},{"$f":"VLOOKUP($A134,[3]HYP!$E$14:$BK$226,34,0)","v":47323},{"$f":"VLOOKUP($A134,[3]CKD!$E$14:$BG$230,33,0)","v":7727},{"$f":"VLOOKUP($A134,[3]CKD!$E$14:$BG$230,38,0)","v":10245},{"$f":"VLOOKUP(A134,[3]PAD!$E$14:$BC$226,29,0)","v":1334},{"$f":"VLOOKUP($A134,[3]PAD!$E$14:$BC$226,34,0)","v":1538},{"$f":"VLOOKUP($A134,[3]PAD!$E$14:$BC$226,37,0)","v":1027},{"$f":"VLOOKUP($A134,[3]PAD!$E$14:$BC$226,42,0)","v":1534},{"$f":"VLOOKUP($A134,[3]STIA!$E$14:$CA$230,37,0)","v":3984},{"$f":"VLOOKUP($A134,[3]STIA!$E$14:$CA$230,42,0)","v":4645},{"$f":"VLOOKUP($A134,[3]STIA!$E$14:$CA$230,53,0)","v":1975},{"$f":"VLOOKUP($A134,[3]STIA!$E$14:$CA$230,58,0)","v":2879}]
["07W","NHS Ealing",{"$f":"VLOOKUP($A135,'[6]201314'!$C$19:$J$256,8,0)","v":188},{"$f":"VLOOKUP($A135,'[6]201314'!$C$19:$J$256,7,0)","v":391033},{"$f":"VLOOKUP($A135,[7]Data!$A$6:$H$228,4,0)","v":443},{"$f":"VLOOKUP(A135,[3]CHD!$E$15:$H$226,4,0)","v":407669},{"$f":"VLOOKUP($A135,[7]Data!$A$6:$H$228,3,0)","v":2203},{"$f":"F135","v":407669},{"$f":"VLOOKUP($A135,[7]Data!$A$6:$H$228,5,0)","v":431},{"$f":"F135","v":407669},{"$f":"VLOOKUP($A135,[7]Data!$A$6:$H$228,6,0)","v":1635},{"$f":"F135","v":407669},{"$f":"VLOOKUP($A135,[7]Data!$A$6:$H$228,7,0)","v":560},{"$f":"F135","v":407669},{"$f":"VLOOKUP($A135,[7]Data!$A$6:$H$228,8,0)","v":149},{"$f":"F135","v":407669},{"$f":"VLOOKUP($A135,[8]CHD06!$E$15:$O$225,5,0)","v":8794},{"$f":"VLOOKUP($A135,[8]CHD06!$E$15:$O$225,10,0)","v":10090},{"$f":"VLOOKUP($A135,[8]CHD08!$E$15:$O$225,5,0)","v":7421},{"$f":"VLOOKUP($A135,[8]CHD08!$E$15:$O$225,10,0)","v":10090},{"$f":"VLOOKUP($A135,[9]BP05!$E$14:$O$225,5,0)","v":35971},{"$f":"VLOOKUP($A135,[9]BP05!$E$14:$O$225,10,0)","v":46743},{"$f":"VLOOKUP($A135,[10]CKD03!$E$14:$O$225,5,0)","v":5334},{"$f":"VLOOKUP($A135,[10]CKD03!$E$14:$O$225,10,0)","v":7502},{"$f":"VLOOKUP($A135,[11]PAD03!$E$14:$O$225,5,0)","v":1206},{"$f":"VLOOKUP($A135,[11]PAD03!$E$14:$O$225,10,0)","v":1369},{"$f":"VLOOKUP($A135,[11]PAD04!$E$14:$O$225,5,0)","v":1021},{"$f":"VLOOKUP($A135,[11]PAD04!$E$14:$O$225,10,0)","v":1369},{"$f":"VLOOKUP($A135,[12]STROKE06!$E$14:$O$225,5,0)","v":3312},{"$f":"VLOOKUP($A135,[12]STROKE06!$E$14:$O$225,10,0)","v":3872},{"$f":"VLOOKUP($A135,[12]STROKE08!$E$14:$O$225,5,0)","v":2761},{"$f":"VLOOKUP($A135,[12]STROKE08!$E$14:$O$225,10,0)","v":3872},null,null,null,null,null,null,null,null,null,null,null,null,null,null,{"$f":"VLOOKUP($A135,[3]CHD!$E$14:$BS$226,29,0)","v":8747},{"$f":"VLOOKUP($A135,[3]CHD!$E$14:$BS$226,34,0)","v":9796},{"$f":"VLOOKUP($A135,[3]CHD!$E$14:$BS$226,37,0)","v":7325},{"$f":"VLOOKUP($A135,[3]CHD!$E$14:$BS$226,42,0)","v":9795},{"$f":"VLOOKUP($A135,[3]HYP!$E$14:$BK$226,29,0)","v":36198},{"$f":"VLOOKUP($A135,[3]HYP!$E$14:$BK$226,34,0)","v":45608},{"$f":"VLOOKUP($A135,[3]CKD!$E$14:$BG$230,33,0)","v":5251},{"$f":"VLOOKUP($A135,[3]CKD!$E$14:$BG$230,38,0)","v":6790},{"$f":"VLOOKUP(A135,[3]PAD!$E$14:$BC$226,29,0)","v":1152},{"$f":"VLOOKUP($A135,[3]PAD!$E$14:$BC$226,34,0)","v":1305},{"$f":"VLOOKUP($A135,[3]PAD!$E$14:$BC$226,37,0)","v":966},{"$f":"VLOOKUP($A135,[3]PAD!$E$14:$BC$226,42,0)","v":1305},{"$f":"VLOOKUP($A135,[3]STIA!$E$14:$CA$230,37,0)","v":3139},{"$f":"VLOOKUP($A135,[3]STIA!$E$14:$CA$230,42,0)","v":3679},{"$f":"VLOOKUP($A135,[3]STIA!$E$14:$CA$230,53,0)","v":1512},{"$f":"VLOOKUP($A135,[3]STIA!$E$14:$CA$230,58,0)","v":2120}]
["07X","NHS Enfield",{"$f":"VLOOKUP($A136,'[6]201314'!$C$19:$J$256,8,0)","v":140},{"$f":"VLOOKUP($A136,'[6]201314'!$C$19:$J$256,7,0)","v":291610},{"$f":"VLOOKUP($A136,[7]Data!$A$6:$H$228,4,0)","v":559},{"$f":"VLOOKUP(A136,[3]CHD!$E$15:$H$226,4,0)","v":307950},{"$f":"VLOOKUP($A136,[7]Data!$A$6:$H$228,3,0)","v":1634},307950,{"$f":"VLOOKUP($A136,[7]Data!$A$6:$H$228,5,0)","v":346},307950,{"$f":"VLOOKUP($A136,[7]Data!$A$6:$H$228,6,0)","v":1073},307950,{"$f":"VLOOKUP($A136,[7]Data!$A$6:$H$228,7,0)","v":365},307950,{"$f":"VLOOKUP($A136,[7]Data!$A$6:$H$228,8,0)","v":101},307950,{"$f":"VLOOKUP($A136,[8]CHD06!$E$15:$O$225,5,0)","v":6709},{"$f":"VLOOKUP($A136,[8]CHD06!$E$15:$O$225,10,0)","v":7702},{"$f":"VLOOKUP($A136,[8]CHD08!$E$15:$O$225,5,0)","v":5608},{"$f":"VLOOKUP($A136,[8]CHD08!$E$15:$O$225,10,0)","v":7702},{"$f":"VLOOKUP($A136,[9]BP05!$E$14:$O$225,5,0)","v":31565},{"$f":"VLOOKUP($A136,[9]BP05!$E$14:$O$225,10,0)","v":41041},{"$f":"VLOOKUP($A136,[10]CKD03!$E$14:$O$225,5,0)","v":4774},{"$f":"VLOOKUP($A136,[10]CKD03!$E$14:$O$225,10,0)","v":6585},{"$f":"VLOOKUP($A136,[11]PAD03!$E$14:$O$225,5,0)","v":1087},{"$f":"VLOOKUP($A136,[11]PAD03!$E$14:$O$225,10,0)","v":1279},{"$f":"VLOOKUP($A136,[11]PAD04!$E$14:$O$225,5,0)","v":891},{"$f":"VLOOKUP($A136,[11]PAD04!$E$14:$O$225,10,0)","v":1279},{"$f":"VLOOKUP($A136,[12]STROKE06!$E$14:$O$225,5,0)","v":3170},{"$f":"VLOOKUP($A136,[12]STROKE06!$E$14:$O$225,10,0)","v":3740},{"$f":"VLOOKUP($A136,[12]STROKE08!$E$14:$O$225,5,0)","v":2538},{"$f":"VLOOKUP($A136,[12]STROKE08!$E$14:$O$225,10,0)","v":3740},null,null,null,null,null,null,null,null,null,null,null,null,null,null,{"$f":"VLOOKUP($A136,[3]CHD!$E$14:$BS$226,29,0)","v":6827},{"$f":"VLOOKUP($A136,[3]CHD!$E$14:$BS$226,34,0)","v":7700},{"$f":"VLOOKUP($A136,[3]CHD!$E$14:$BS$226,37,0)","v":5671},{"$f":"VLOOKUP($A136,[3]CHD!$E$14:$BS$226,42,0)","v":7672},{"$f":"VLOOKUP($A136,[3]HYP!$E$14:$BK$226,29,0)","v":32814},{"$f":"VLOOKUP($A136,[3]HYP!$E$14:$BK$226,34,0)","v":41835},{"$f":"VLOOKUP($A136,[3]CKD!$E$14:$BG$230,33,0)","v":5038},{"$f":"VLOOKUP($A136,[3]CKD!$E$14:$BG$230,38,0)","v":6587},{"$f":"VLOOKUP(A136,[3]PAD!$E$14:$BC$226,29,0)","v":1108},{"$f":"VLOOKUP($A136,[3]PAD!$E$14:$BC$226,34,0)","v":1270},{"$f":"VLOOKUP($A136,[3]PAD!$E$14:$BC$226,37,0)","v":884},{"$f":"VLOOKUP($A136,[3]PAD!$E$14:$BC$226,42,0)","v":1267},{"$f":"VLOOKUP($A136,[3]STIA!$E$14:$CA$230,37,0)","v":3200},{"$f":"VLOOKUP($A136,[3]STIA!$E$14:$CA$230,42,0)","v":3742},{"$f":"VLOOKUP($A136,[3]STIA!$E$14:$CA$230,53,0)","v":1589},{"$f":"VLOOKUP($A136,[3]STIA!$E$14:$CA$230,58,0)","v":2301}]
["07Y","NHS Hounslow",{"$f":"VLOOKUP($A137,'[6]201314'!$C$19:$J$256,8,0)","v":145},{"$f":"VLOOKUP($A137,'[6]201314'!$C$19:$J$256,7,0)","v":278565},{"$f":"VLOOKUP($A137,[7]Data!$A$6:$H$228,4,0)","v":334},{"$f":"VLOOKUP(A137,[3]CHD!$E$15:$H$226,4,0)","v":289992},{"$f":"VLOOKUP($A137,[7]Data!$A$6:$H$228,3,0)","v":1267},289992,{"$f":"VLOOKUP($A137,[7]Data!$A$6:$H$228,5,0)","v":216},289992,{"$f":"VLOOKUP($A137,[7]Data!$A$6:$H$228,6,0)","v":720},289992,{"$f":"VLOOKUP($A137,[7]Data!$A$6:$H$228,7,0)","v":356},289992,{"$f":"VLOOKUP($A137,[7]Data!$A$6:$H$228,8,0)","v":88},289992,{"$f":"VLOOKUP($A137,[8]CHD06!$E$15:$O$225,5,0)","v":5785},{"$f":"VLOOKUP($A137,[8]CHD06!$E$15:$O$225,10,0)","v":6580},{"$f":"VLOOKUP($A137,[8]CHD08!$E$15:$O$225,5,0)","v":4796},{"$f":"VLOOKUP($A137,[8]CHD08!$E$15:$O$225,10,0)","v":6580},{"$f":"VLOOKUP($A137,[9]BP05!$E$14:$O$225,5,0)","v":25054},{"$f":"VLOOKUP($A137,[9]BP05!$E$14:$O$225,10,0)","v":32090},{"$f":"VLOOKUP($A137,[10]CKD03!$E$14:$O$225,5,0)","v":5332},{"$f":"VLOOKUP($A137,[10]CKD03!$E$14:$O$225,10,0)","v":7171},{"$f":"VLOOKUP($A137,[11]PAD03!$E$14:$O$225,5,0)","v":779},{"$f":"VLOOKUP($A137,[11]PAD03!$E$14:$O$225,10,0)","v":881},{"$f":"VLOOKUP($A137,[11]PAD04!$E$14:$O$225,5,0)","v":610},{"$f":"VLOOKUP($A137,[11]PAD04!$E$14:$O$225,10,0)","v":881},{"$f":"VLOOKUP($A137,[12]STROKE06!$E$14:$O$225,5,0)","v":2418},{"$f":"VLOOKUP($A137,[12]STROKE06!$E$14:$O$225,10,0)","v":2814},{"$f":"VLOOKUP($A137,[12]STROKE08!$E$14:$O$225,5,0)","v":1947},{"$f":"VLOOKUP($A137,[12]STROKE08!$E$14:$O$225,10,0)","v":2814},null,null,null,null,null,null,null,null,null,null,null,null,null,null,{"$f":"VLOOKUP($A137,[3]CHD!$E$14:$BS$226,29,0)","v":5846},{"$f":"VLOOKUP($A137,[3]CHD!$E$14:$BS$226,34,0)","v":6602},{"$f":"VLOOKUP($A137,[3]CHD!$E$14:$BS$226,37,0)","v":4745},{"$f":"VLOOKUP($A137,[3]CHD!$E$14:$BS$226,42,0)","v":6602},{"$f":"VLOOKUP($A137,[3]HYP!$E$14:$BK$226,29,0)","v":25644},{"$f":"VLOOKUP($A137,[3]HYP!$E$14:$BK$226,34,0)","v":32221},{"$f":"VLOOKUP($A137,[3]CKD!$E$14:$BG$230,33,0)","v":4540},{"$f":"VLOOKUP($A137,[3]CKD!$E$14:$BG$230,38,0)","v":5927},{"$f":"VLOOKUP(A137,[3]PAD!$E$14:$BC$226,29,0)","v":742},{"$f":"VLOOKUP($A137,[3]PAD!$E$14:$BC$226,34,0)","v":860},{"$f":"VLOOKUP($A137,[3]PAD!$E$14:$BC$226,37,0)","v":606},{"$f":"VLOOKUP($A137,[3]PAD!$E$14:$BC$226,42,0)","v":860},{"$f":"VLOOKUP($A137,[3]STIA!$E$14:$CA$230,37,0)","v":2435},{"$f":"VLOOKUP($A137,[3]STIA!$E$14:$CA$230,42,0)","v":2825},{"$f":"VLOOKUP($A137,[3]STIA!$E$14:$CA$230,53,0)","v":1111},{"$f":"VLOOKUP($A137,[3]STIA!$E$14:$CA$230,58,0)","v":1637}]
["08A","NHS Greenwich",{"$f":"VLOOKUP($A138,'[6]201314'!$C$19:$J$256,8,0)","v":110},{"$f":"VLOOKUP($A138,'[6]201314'!$C$19:$J$256,7,0)","v":257294},{"$f":"VLOOKUP($A138,[7]Data!$A$6:$H$228,4,0)","v":330},{"$f":"VLOOKUP(A138,[3]CHD!$E$15:$H$226,4,0)","v":268811},{"$f":"VLOOKUP($A138,[7]Data!$A$6:$H$228,3,0)","v":956},268811,{"$f":"VLOOKUP($A138,[7]Data!$A$6:$H$228,5,0)","v":245},268811,{"$f":"VLOOKUP($A138,[7]Data!$A$6:$H$228,6,0)","v":662},268811,{"$f":"VLOOKUP($A138,[7]Data!$A$6:$H$228,7,0)","v":281},268811,{"$f":"VLOOKUP($A138,[7]Data!$A$6:$H$228,8,0)","v":54},268811,{"$f":"VLOOKUP($A138,[8]CHD06!$E$15:$O$225,5,0)","v":5172},{"$f":"VLOOKUP($A138,[8]CHD06!$E$15:$O$225,10,0)","v":5814},{"$f":"VLOOKUP($A138,[8]CHD08!$E$15:$O$225,5,0)","v":4105},{"$f":"VLOOKUP($A138,[8]CHD08!$E$15:$O$225,10,0)","v":5814},{"$f":"VLOOKUP($A138,[9]BP05!$E$14:$O$225,5,0)","v":24954},{"$f":"VLOOKUP($A138,[9]BP05!$E$14:$O$225,10,0)","v":32523},{"$f":"VLOOKUP($A138,[10]CKD03!$E$14:$O$225,5,0)","v":4924},{"$f":"VLOOKUP($A138,[10]CKD03!$E$14:$O$225,10,0)","v":6821},{"$f":"VLOOKUP($A138,[11]PAD03!$E$14:$O$225,5,0)","v":1095},{"$f":"VLOOKUP($A138,[11]PAD03!$E$14:$O$225,10,0)","v":1215},{"$f":"VLOOKUP($A138,[11]PAD04!$E$14:$O$225,5,0)","v":812},{"$f":"VLOOKUP($A138,[11]PAD04!$E$14:$O$225,10,0)","v":1215},{"$f":"VLOOKUP($A138,[12]STROKE06!$E$14:$O$225,5,0)","v":2382},{"$f":"VLOOKUP($A138,[12]STROKE06!$E$14:$O$225,10,0)","v":2770},{"$f":"VLOOKUP($A138,[12]STROKE08!$E$14:$O$225,5,0)","v":1848},{"$f":"VLOOKUP($A138,[12]STROKE08!$E$14:$O$225,10,0)","v":2770},null,null,null,null,null,null,null,null,null,null,null,null,null,null,{"$f":"VLOOKUP($A138,[3]CHD!$E$14:$BS$226,29,0)","v":5367},{"$f":"VLOOKUP($A138,[3]CHD!$E$14:$BS$226,34,0)","v":5974},{"$f":"VLOOKUP($A138,[3]CHD!$E$14:$BS$226,37,0)","v":4298},{"$f":"VLOOKUP($A138,[3]CHD!$E$14:$BS$226,42,0)","v":5974},{"$f":"VLOOKUP($A138,[3]HYP!$E$14:$BK$226,29,0)","v":27036},{"$f":"VLOOKUP($A138,[3]HYP!$E$14:$BK$226,34,0)","v":34357},{"$f":"VLOOKUP($A138,[3]CKD!$E$14:$BG$230,33,0)","v":5079},{"$f":"VLOOKUP($A138,[3]CKD!$E$14:$BG$230,38,0)","v":6559},{"$f":"VLOOKUP(A138,[3]PAD!$E$14:$BC$226,29,0)","v":1105},{"$f":"VLOOKUP($A138,[3]PAD!$E$14:$BC$226,34,0)","v":1263},{"$f":"VLOOKUP($A138,[3]PAD!$E$14:$BC$226,37,0)","v":874},{"$f":"VLOOKUP($A138,[3]PAD!$E$14:$BC$226,42,0)","v":1263},{"$f":"VLOOKUP($A138,[3]STIA!$E$14:$CA$230,37,0)","v":2545},{"$f":"VLOOKUP($A138,[3]STIA!$E$14:$CA$230,42,0)","v":2907},{"$f":"VLOOKUP($A138,[3]STIA!$E$14:$CA$230,53,0)","v":1223},{"$f":"VLOOKUP($A138,[3]STIA!$E$14:$CA$230,58,0)","v":1783}]
["08C","NHS Hammersmith and Fulham",{"$f":"VLOOKUP($A139,'[6]201314'!$C$19:$J$256,8,0)","v":77},{"$f":"VLOOKUP($A139,'[6]201314'!$C$19:$J$256,7,0)","v":195923},{"$f":"VLOOKUP($A139,[7]Data!$A$6:$H$228,4,0)","v":153},{"$f":"VLOOKUP(A139,[3]CHD!$E$15:$H$226,4,0)","v":203574},{"$f":"VLOOKUP($A139,[7]Data!$A$6:$H$228,3,0)","v":563},203574,{"$f":"VLOOKUP($A139,[7]Data!$A$6:$H$228,5,0)","v":182},203574,{"$f":"VLOOKUP($A139,[7]Data!$A$6:$H$228,6,0)","v":417},203574,{"$f":"VLOOKUP($A139,[7]Data!$A$6:$H$228,7,0)","v":157},203574,{"$f":"VLOOKUP($A139,[7]Data!$A$6:$H$228,8,0)","v":55},203574,{"$f":"VLOOKUP($A139,[8]CHD06!$E$15:$O$225,5,0)","v":2978},{"$f":"VLOOKUP($A139,[8]CHD06!$E$15:$O$225,10,0)","v":3467},{"$f":"VLOOKUP($A139,[8]CHD08!$E$15:$O$225,5,0)","v":2419},{"$f":"VLOOKUP($A139,[8]CHD08!$E$15:$O$225,10,0)","v":3465},{"$f":"VLOOKUP($A139,[9]BP05!$E$14:$O$225,5,0)","v":13806},{"$f":"VLOOKUP($A139,[9]BP05!$E$14:$O$225,10,0)","v":18564},{"$f":"VLOOKUP($A139,[10]CKD03!$E$14:$O$225,5,0)","v":2157},{"$f":"VLOOKUP($A139,[10]CKD03!$E$14:$O$225,10,0)","v":3134},{"$f":"VLOOKUP($A139,[11]PAD03!$E$14:$O$225,5,0)","v":631},{"$f":"VLOOKUP($A139,[11]PAD03!$E$14:$O$225,10,0)","v":733},{"$f":"VLOOKUP($A139,[11]PAD04!$E$14:$O$225,5,0)","v":488},{"$f":"VLOOKUP($A139,[11]PAD04!$E$14:$O$225,10,0)","v":732},{"$f":"VLOOKUP($A139,[12]STROKE06!$E$14:$O$225,5,0)","v":1573},{"$f":"VLOOKUP($A139,[12]STROKE06!$E$14:$O$225,10,0)","v":1872},{"$f":"VLOOKUP($A139,[12]STROKE08!$E$14:$O$225,5,0)","v":1275},{"$f":"VLOOKUP($A139,[12]STROKE08!$E$14:$O$225,10,0)","v":1873},null,null,null,null,null,null,null,null,null,null,null,null,null,null,{"$f":"VLOOKUP($A139,[3]CHD!$E$14:$BS$226,29,0)","v":2980},{"$f":"VLOOKUP($A139,[3]CHD!$E$14:$BS$226,34,0)","v":3514},{"$f":"VLOOKUP($A139,[3]CHD!$E$14:$BS$226,37,0)","v":2376},{"$f":"VLOOKUP($A139,[3]CHD!$E$14:$BS$226,42,0)","v":3514},{"$f":"VLOOKUP($A139,[3]HYP!$E$14:$BK$226,29,0)","v":13703},{"$f":"VLOOKUP($A139,[3]HYP!$E$14:$BK$226,34,0)","v":18492},{"$f":"VLOOKUP($A139,[3]CKD!$E$14:$BG$230,33,0)","v":2082},{"$f":"VLOOKUP($A139,[3]CKD!$E$14:$BG$230,38,0)","v":2954},{"$f":"VLOOKUP(A139,[3]PAD!$E$14:$BC$226,29,0)","v":612},{"$f":"VLOOKUP($A139,[3]PAD!$E$14:$BC$226,34,0)","v":701},{"$f":"VLOOKUP($A139,[3]PAD!$E$14:$BC$226,37,0)","v":470},{"$f":"VLOOKUP($A139,[3]PAD!$E$14:$BC$226,42,0)","v":701},{"$f":"VLOOKUP($A139,[3]STIA!$E$14:$CA$230,37,0)","v":1587},{"$f":"VLOOKUP($A139,[3]STIA!$E$14:$CA$230,42,0)","v":1922},{"$f":"VLOOKUP($A139,[3]STIA!$E$14:$CA$230,53,0)","v":761},{"$f":"VLOOKUP($A139,[3]STIA!$E$14:$CA$230,58,0)","v":1199}]
["08D","NHS Haringey",{"$f":"VLOOKUP($A140,'[6]201314'!$C$19:$J$256,8,0)","v":131},{"$f":"VLOOKUP($A140,'[6]201314'!$C$19:$J$256,7,0)","v":281041},{"$f":"VLOOKUP($A140,[7]Data!$A$6:$H$228,4,0)","v":423},{"$f":"VLOOKUP(A140,[3]CHD!$E$15:$H$226,4,0)","v":290671},{"$f":"VLOOKUP($A140,[7]Data!$A$6:$H$228,3,0)","v":1110},290671,{"$f":"VLOOKUP($A140,[7]Data!$A$6:$H$228,5,0)","v":328},290671,{"$f":"VLOOKUP($A140,[7]Data!$A$6:$H$228,6,0)","v":636},290671,{"$f":"VLOOKUP($A140,[7]Data!$A$6:$H$228,7,0)","v":235},290671,{"$f":"VLOOKUP($A140,[7]Data!$A$6:$H$228,8,0)","v":67},290671,{"$f":"VLOOKUP($A140,[8]CHD06!$E$15:$O$225,5,0)","v":4118},{"$f":"VLOOKUP($A140,[8]CHD06!$E$15:$O$225,10,0)","v":4761},{"$f":"VLOOKUP($A140,[8]CHD08!$E$15:$O$225,5,0)","v":3366},{"$f":"VLOOKUP($A140,[8]CHD08!$E$15:$O$225,10,0)","v":4761},{"$f":"VLOOKUP($A140,[9]BP05!$E$14:$O$225,5,0)","v":22933},{"$f":"VLOOKUP($A140,[9]BP05!$E$14:$O$225,10,0)","v":30759},{"$f":"VLOOKUP($A140,[10]CKD03!$E$14:$O$225,5,0)","v":2992},{"$f":"VLOOKUP($A140,[10]CKD03!$E$14:$O$225,10,0)","v":4239},{"$f":"VLOOKUP($A140,[11]PAD03!$E$14:$O$225,5,0)","v":810},{"$f":"VLOOKUP($A140,[11]PAD03!$E$14:$O$225,10,0)","v":961},{"$f":"VLOOKUP($A140,[11]PAD04!$E$14:$O$225,5,0)","v":663},{"$f":"VLOOKUP($A140,[11]PAD04!$E$14:$O$225,10,0)","v":961},{"$f":"VLOOKUP($A140,[12]STROKE06!$E$14:$O$225,5,0)","v":2079},{"$f":"VLOOKUP($A140,[12]STROKE06!$E$14:$O$225,10,0)","v":2463},{"$f":"VLOOKUP($A140,[12]STROKE08!$E$14:$O$225,5,0)","v":1609},{"$f":"VLOOKUP($A140,[12]STROKE08!$E$14:$O$225,10,0)","v":2463},null,null,null,null,null,null,null,null,null,null,null,null,null,null,{"$f":"VLOOKUP($A140,[3]CHD!$E$14:$BS$226,29,0)","v":4170},{"$f":"VLOOKUP($A140,[3]CHD!$E$14:$BS$226,34,0)","v":4726},{"$f":"VLOOKUP($A140,[3]CHD!$E$14:$BS$226,37,0)","v":3422},{"$f":"VLOOKUP($A140,[3]CHD!$E$14:$BS$226,42,0)","v":4726},{"$f":"VLOOKUP($A140,[3]HYP!$E$14:$BK$226,29,0)","v":23293},{"$f":"VLOOKUP($A140,[3]HYP!$E$14:$BK$226,34,0)","v":30289},{"$f":"VLOOKUP($A140,[3]CKD!$E$14:$BG$230,33,0)","v":3066},{"$f":"VLOOKUP($A140,[3]CKD!$E$14:$BG$230,38,0)","v":4182},{"$f":"VLOOKUP(A140,[3]PAD!$E$14:$BC$226,29,0)","v":803},{"$f":"VLOOKUP($A140,[3]PAD!$E$14:$BC$226,34,0)","v":933},{"$f":"VLOOKUP($A140,[3]PAD!$E$14:$BC$226,37,0)","v":641},{"$f":"VLOOKUP($A140,[3]PAD!$E$14:$BC$226,42,0)","v":933},{"$f":"VLOOKUP($A140,[3]STIA!$E$14:$CA$230,37,0)","v":2071},{"$f":"VLOOKUP($A140,[3]STIA!$E$14:$CA$230,42,0)","v":2457},{"$f":"VLOOKUP($A140,[3]STIA!$E$14:$CA$230,53,0)","v":932},{"$f":"VLOOKUP($A140,[3]STIA!$E$14:$CA$230,58,0)","v":1347}]
["08E","NHS Harrow",{"$f":"VLOOKUP($A141,'[6]201314'!$C$19:$J$256,8,0)","v":116},{"$f":"VLOOKUP($A141,'[6]201314'!$C$19:$J$256,7,0)","v":229868},{"$f":"VLOOKUP($A141,[7]Data!$A$6:$H$228,4,0)","v":310},{"$f":"VLOOKUP(A141,[3]CHD!$E$15:$H$226,4,0)","v":244997},{"$f":"VLOOKUP($A141,[7]Data!$A$6:$H$228,3,0)","v":1472},244997,{"$f":"VLOOKUP($A141,[7]Data!$A$6:$H$228,5,0)","v":254},244997,{"$f":"VLOOKUP($A141,[7]Data!$A$6:$H$228,6,0)","v":1010},244997,{"$f":"VLOOKUP($A141,[7]Data!$A$6:$H$228,7,0)","v":456},244997,{"$f":"VLOOKUP($A141,[7]Data!$A$6:$H$228,8,0)","v":96},244997,{"$f":"VLOOKUP($A141,[8]CHD06!$E$15:$O$225,5,0)","v":6308},{"$f":"VLOOKUP($A141,[8]CHD06!$E$15:$O$225,10,0)","v":7119},{"$f":"VLOOKUP($A141,[8]CHD08!$E$15:$O$225,5,0)","v":5397},{"$f":"VLOOKUP($A141,[8]CHD08!$E$15:$O$225,10,0)","v":7119},{"$f":"VLOOKUP($A141,[9]BP05!$E$14:$O$225,5,0)","v":25558},{"$f":"VLOOKUP($A141,[9]BP05!$E$14:$O$225,10,0)","v":32598},{"$f":"VLOOKUP($A141,[10]CKD03!$E$14:$O$225,5,0)","v":4104},{"$f":"VLOOKUP($A141,[10]CKD03!$E$14:$O$225,10,0)","v":5597},{"$f":"VLOOKUP($A141,[11]PAD03!$E$14:$O$225,5,0)","v":1119},{"$f":"VLOOKUP($A141,[11]PAD03!$E$14:$O$225,10,0)","v":1280},{"$f":"VLOOKUP($A141,[11]PAD04!$E$14:$O$225,5,0)","v":919},{"$f":"VLOOKUP($A141,[11]PAD04!$E$14:$O$225,10,0)","v":1280},{"$f":"VLOOKUP($A141,[12]STROKE06!$E$14:$O$225,5,0)","v":2651},{"$f":"VLOOKUP($A141,[12]STROKE06!$E$14:$O$225,10,0)","v":3095},{"$f":"VLOOKUP($A141,[12]STROKE08!$E$14:$O$225,5,0)","v":2132},{"$f":"VLOOKUP($A141,[12]STROKE08!$E$14:$O$225,10,0)","v":3095},null,null,null,null,null,null,null,null,null,null,null,null,null,null,{"$f":"VLOOKUP($A141,[3]CHD!$E$14:$BS$226,29,0)","v":6359},{"$f":"VLOOKUP($A141,[3]CHD!$E$14:$BS$226,34,0)","v":7090},{"$f":"VLOOKUP($A141,[3]CHD!$E$14:$BS$226,37,0)","v":5458},{"$f":"VLOOKUP($A141,[3]CHD!$E$14:$BS$226,42,0)","v":7090},{"$f":"VLOOKUP($A141,[3]HYP!$E$14:$BK$226,29,0)","v":26345},{"$f":"VLOOKUP($A141,[3]HYP!$E$14:$BK$226,34,0)","v":32715},{"$f":"VLOOKUP($A141,[3]CKD!$E$14:$BG$230,33,0)","v":4173},{"$f":"VLOOKUP($A141,[3]CKD!$E$14:$BG$230,38,0)","v":5360},{"$f":"VLOOKUP(A141,[3]PAD!$E$14:$BC$226,29,0)","v":1086},{"$f":"VLOOKUP($A141,[3]PAD!$E$14:$BC$226,34,0)","v":1242},{"$f":"VLOOKUP($A141,[3]PAD!$E$14:$BC$226,37,0)","v":896},{"$f":"VLOOKUP($A141,[3]PAD!$E$14:$BC$226,42,0)","v":1242},{"$f":"VLOOKUP($A141,[3]STIA!$E$14:$CA$230,37,0)","v":2726},{"$f":"VLOOKUP($A141,[3]STIA!$E$14:$CA$230,42,0)","v":3158},{"$f":"VLOOKUP($A141,[3]STIA!$E$14:$CA$230,53,0)","v":1348},{"$f":"VLOOKUP($A141,[3]STIA!$E$14:$CA$230,58,0)","v":1896}]
["08F","NHS Havering",{"$f":"VLOOKUP($A142,'[6]201314'!$C$19:$J$256,8,0)","v":133},{"$f":"VLOOKUP($A142,'[6]201314'!$C$19:$J$256,7,0)","v":234166},{"$f":"VLOOKUP($A142,[7]Data!$A$6:$H$228,4,0)","v":347},{"$f":"VLOOKUP(A142,[3]CHD!$E$15:$H$226,4,0)","v":257864},{"$f":"VLOOKUP($A142,[7]Data!$A$6:$H$228,3,0)","v":1282},257864,{"$f":"VLOOKUP($A142,[7]Data!$A$6:$H$228,5,0)","v":339},257864,{"$f":"VLOOKUP($A142,[7]Data!$A$6:$H$228,6,0)","v":707},257864,{"$f":"VLOOKUP($A142,[7]Data!$A$6:$H$228,7,0)","v":301},257864,{"$f":"VLOOKUP($A142,[7]Data!$A$6:$H$228,8,0)","v":104},257864,{"$f":"VLOOKUP($A142,[8]CHD06!$E$15:$O$225,5,0)","v":7098},{"$f":"VLOOKUP($A142,[8]CHD06!$E$15:$O$225,10,0)","v":7969},{"$f":"VLOOKUP($A142,[8]CHD08!$E$15:$O$225,5,0)","v":5846},{"$f":"VLOOKUP($A142,[8]CHD08!$E$15:$O$225,10,0)","v":7969},{"$f":"VLOOKUP($A142,[9]BP05!$E$14:$O$225,5,0)","v":28850},{"$f":"VLOOKUP($A142,[9]BP05!$E$14:$O$225,10,0)","v":36024},{"$f":"VLOOKUP($A142,[10]CKD03!$E$14:$O$225,5,0)","v":5861},{"$f":"VLOOKUP($A142,[10]CKD03!$E$14:$O$225,10,0)","v":7715},{"$f":"VLOOKUP($A142,[11]PAD03!$E$14:$O$225,5,0)","v":1212},{"$f":"VLOOKUP($A142,[11]PAD03!$E$14:$O$225,10,0)","v":1399},{"$f":"VLOOKUP($A142,[11]PAD04!$E$14:$O$225,5,0)","v":957},{"$f":"VLOOKUP($A142,[11]PAD04!$E$14:$O$225,10,0)","v":1399},{"$f":"VLOOKUP($A142,[12]STROKE06!$E$14:$O$225,5,0)","v":3385},{"$f":"VLOOKUP($A142,[12]STROKE06!$E$14:$O$225,10,0)","v":3901},{"$f":"VLOOKUP($A142,[12]STROKE08!$E$14:$O$225,5,0)","v":2711},{"$f":"VLOOKUP($A142,[12]STROKE08!$E$14:$O$225,10,0)","v":3901},null,null,null,null,null,null,null,null,null,null,null,null,null,null,{"$f":"VLOOKUP($A142,[3]CHD!$E$14:$BS$226,29,0)","v":6661},{"$f":"VLOOKUP($A142,[3]CHD!$E$14:$BS$226,34,0)","v":7428},{"$f":"VLOOKUP($A142,[3]CHD!$E$14:$BS$226,37,0)","v":5461},{"$f":"VLOOKUP($A142,[3]CHD!$E$14:$BS$226,42,0)","v":7424},{"$f":"VLOOKUP($A142,[3]HYP!$E$14:$BK$226,29,0)","v":28058},{"$f":"VLOOKUP($A142,[3]HYP!$E$14:$BK$226,34,0)","v":34472},{"$f":"VLOOKUP($A142,[3]CKD!$E$14:$BG$230,33,0)","v":5336},{"$f":"VLOOKUP($A142,[3]CKD!$E$14:$BG$230,38,0)","v":6790},{"$f":"VLOOKUP(A142,[3]PAD!$E$14:$BC$226,29,0)","v":1119},{"$f":"VLOOKUP($A142,[3]PAD!$E$14:$BC$226,34,0)","v":1279},{"$f":"VLOOKUP($A142,[3]PAD!$E$14:$BC$226,37,0)","v":868},{"$f":"VLOOKUP($A142,[3]PAD!$E$14:$BC$226,42,0)","v":1278},{"$f":"VLOOKUP($A142,[3]STIA!$E$14:$CA$230,37,0)","v":3297},{"$f":"VLOOKUP($A142,[3]STIA!$E$14:$CA$230,42,0)","v":3819},{"$f":"VLOOKUP($A142,[3]STIA!$E$14:$CA$230,53,0)","v":1941},{"$f":"VLOOKUP($A142,[3]STIA!$E$14:$CA$230,58,0)","v":2811}]
["08G","NHS Hillingdon",{"$f":"VLOOKUP($A143,'[6]201314'!$C$19:$J$256,8,0)","v":139},{"$f":"VLOOKUP($A143,'[6]201314'!$C$19:$J$256,7,0)","v":270852},{"$f":"VLOOKUP($A143,[7]Data!$A$6:$H$228,4,0)","v":498},{"$f":"VLOOKUP(A143,[3]CHD!$E$15:$H$226,4,0)","v":287801},{"$f":"VLOOKUP($A143,[7]Data!$A$6:$H$228,3,0)","v":1260},287801,{"$f":"VLOOKUP($A143,[7]Data!$A$6:$H$228,5,0)","v":291},287801,{"$f":"VLOOKUP($A143,[7]Data!$A$6:$H$228,6,0)","v":712},287801,{"$f":"VLOOKUP($A143,[7]Data!$A$6:$H$228,7,0)","v":352},287801,{"$f":"VLOOKUP($A143,[7]Data!$A$6:$H$228,8,0)","v":85},287801,{"$f":"VLOOKUP($A143,[8]CHD06!$E$15:$O$225,5,0)","v":5987},{"$f":"VLOOKUP($A143,[8]CHD06!$E$15:$O$225,10,0)","v":6932},{"$f":"VLOOKUP($A143,[8]CHD08!$E$15:$O$225,5,0)","v":4957},{"$f":"VLOOKUP($A143,[8]CHD08!$E$15:$O$225,10,0)","v":6932},{"$f":"VLOOKUP($A143,[9]BP05!$E$14:$O$225,5,0)","v":28039},{"$f":"VLOOKUP($A143,[9]BP05!$E$14:$O$225,10,0)","v":36455},{"$f":"VLOOKUP($A143,[10]CKD03!$E$14:$O$225,5,0)","v":5080},{"$f":"VLOOKUP($A143,[10]CKD03!$E$14:$O$225,10,0)","v":7090},{"$f":"VLOOKUP($A143,[11]PAD03!$E$14:$O$225,5,0)","v":1210},{"$f":"VLOOKUP($A143,[11]PAD03!$E$14:$O$225,10,0)","v":1387},{"$f":"VLOOKUP($A143,[11]PAD04!$E$14:$O$225,5,0)","v":995},{"$f":"VLOOKUP($A143,[11]PAD04!$E$14:$O$225,10,0)","v":1387},{"$f":"VLOOKUP($A143,[12]STROKE06!$E$14:$O$225,5,0)","v":2726},{"$f":"VLOOKUP($A143,[12]STROKE06!$E$14:$O$225,10,0)","v":3260},{"$f":"VLOOKUP($A143,[12]STROKE08!$E$14:$O$225,5,0)","v":2229},{"$f":"VLOOKUP($A143,[12]STROKE08!$E$14:$O$225,10,0)","v":3260},null,null,null,null,null,null,null,null,null,null,null,null,null,null,{"$f":"VLOOKUP($A143,[3]CHD!$E$14:$BS$226,29,0)","v":6043},{"$f":"VLOOKUP($A143,[3]CHD!$E$14:$BS$226,34,0)","v":6792},{"$f":"VLOOKUP($A143,[3]CHD!$E$14:$BS$226,37,0)","v":4974},{"$f":"VLOOKUP($A143,[3]CHD!$E$14:$BS$226,42,0)","v":6792},{"$f":"VLOOKUP($A143,[3]HYP!$E$14:$BK$226,29,0)","v":28742},{"$f":"VLOOKUP($A143,[3]HYP!$E$14:$BK$226,34,0)","v":35937},{"$f":"VLOOKUP($A143,[3]CKD!$E$14:$BG$230,33,0)","v":5329},{"$f":"VLOOKUP($A143,[3]CKD!$E$14:$BG$230,38,0)","v":6781},{"$f":"VLOOKUP(A143,[3]PAD!$E$14:$BC$226,29,0)","v":1201},{"$f":"VLOOKUP($A143,[3]PAD!$E$14:$BC$226,34,0)","v":1377},{"$f":"VLOOKUP($A143,[3]PAD!$E$14:$BC$226,37,0)","v":952},{"$f":"VLOOKUP($A143,[3]PAD!$E$14:$BC$226,42,0)","v":1377},{"$f":"VLOOKUP($A143,[3]STIA!$E$14:$CA$230,37,0)","v":2770},{"$f":"VLOOKUP($A143,[3]STIA!$E$14:$CA$230,42,0)","v":3246},{"$f":"VLOOKUP($A143,[3]STIA!$E$14:$CA$230,53,0)","v":1180},{"$f":"VLOOKUP($A143,[3]STIA!$E$14:$CA$230,58,0)","v":1787}]
["08H","NHS Islington",{"$f":"VLOOKUP($A144,'[6]201314'!$C$19:$J$256,8,0)","v":124},{"$f":"VLOOKUP($A144,'[6]201314'!$C$19:$J$256,7,0)","v":221125},{"$f":"VLOOKUP($A144,[7]Data!$A$6:$H$228,4,0)","v":245},{"$f":"VLOOKUP(A144,[3]CHD!$E$15:$H$226,4,0)","v":229211},{"$f":"VLOOKUP($A144,[7]Data!$A$6:$H$228,3,0)","v":551},229211,{"$f":"VLOOKUP($A144,[7]Data!$A$6:$H$228,5,0)","v":198},229211,{"$f":"VLOOKUP($A144,[7]Data!$A$6:$H$228,6,0)","v":286},229211,{"$f":"VLOOKUP($A144,[7]Data!$A$6:$H$228,7,0)","v":170},229211,{"$f":"VLOOKUP($A144,[7]Data!$A$6:$H$228,8,0)","v":42},229211,{"$f":"VLOOKUP($A144,[8]CHD06!$E$15:$O$225,5,0)","v":3368},{"$f":"VLOOKUP($A144,[8]CHD06!$E$15:$O$225,10,0)","v":3892},{"$f":"VLOOKUP($A144,[8]CHD08!$E$15:$O$225,5,0)","v":2716},{"$f":"VLOOKUP($A144,[8]CHD08!$E$15:$O$225,10,0)","v":3892},{"$f":"VLOOKUP($A144,[9]BP05!$E$14:$O$225,5,0)","v":15690},{"$f":"VLOOKUP($A144,[9]BP05!$E$14:$O$225,10,0)","v":20982},{"$f":"VLOOKUP($A144,[10]CKD03!$E$14:$O$225,5,0)","v":2402},{"$f":"VLOOKUP($A144,[10]CKD03!$E$14:$O$225,10,0)","v":3363},{"$f":"VLOOKUP($A144,[11]PAD03!$E$14:$O$225,5,0)","v":851},{"$f":"VLOOKUP($A144,[11]PAD03!$E$14:$O$225,10,0)","v":1014},{"$f":"VLOOKUP($A144,[11]PAD04!$E$14:$O$225,5,0)","v":689},{"$f":"VLOOKUP($A144,[11]PAD04!$E$14:$O$225,10,0)","v":1014},{"$f":"VLOOKUP($A144,[12]STROKE06!$E$14:$O$225,5,0)","v":1926},{"$f":"VLOOKUP($A144,[12]STROKE06!$E$14:$O$225,10,0)","v":2317},{"$f":"VLOOKUP($A144,[12]STROKE08!$E$14:$O$225,5,0)","v":1528},{"$f":"VLOOKUP($A144,[12]STROKE08!$E$14:$O$225,10,0)","v":2317},null,null,null,null,null,null,null,null,null,null,null,null,null,null,{"$f":"VLOOKUP($A144,[3]CHD!$E$14:$BS$226,29,0)","v":3407},{"$f":"VLOOKUP($A144,[3]CHD!$E$14:$BS$226,34,0)","v":3838},{"$f":"VLOOKUP($A144,[3]CHD!$E$14:$BS$226,37,0)","v":2779},{"$f":"VLOOKUP($A144,[3]CHD!$E$14:$BS$226,42,0)","v":3838},{"$f":"VLOOKUP($A144,[3]HYP!$E$14:$BK$226,29,0)","v":16262},{"$f":"VLOOKUP($A144,[3]HYP!$E$14:$BK$226,34,0)","v":20840},{"$f":"VLOOKUP($A144,[3]CKD!$E$14:$BG$230,33,0)","v":2546},{"$f":"VLOOKUP($A144,[3]CKD!$E$14:$BG$230,38,0)","v":3354},{"$f":"VLOOKUP(A144,[3]PAD!$E$14:$BC$226,29,0)","v":853},{"$f":"VLOOKUP($A144,[3]PAD!$E$14:$BC$226,34,0)","v":1003},{"$f":"VLOOKUP($A144,[3]PAD!$E$14:$BC$226,37,0)","v":688},{"$f":"VLOOKUP($A144,[3]PAD!$E$14:$BC$226,42,0)","v":1003},{"$f":"VLOOKUP($A144,[3]STIA!$E$14:$CA$230,37,0)","v":1971},{"$f":"VLOOKUP($A144,[3]STIA!$E$14:$CA$230,42,0)","v":2326},{"$f":"VLOOKUP($A144,[3]STIA!$E$14:$CA$230,53,0)","v":729},{"$f":"VLOOKUP($A144,[3]STIA!$E$14:$CA$230,58,0)","v":1071}]
["08J","NHS Kingston",{"$f":"VLOOKUP($A145,'[6]201314'!$C$19:$J$256,8,0)","v":72},{"$f":"VLOOKUP($A145,'[6]201314'!$C$19:$J$256,7,0)","v":182901},{"$f":"VLOOKUP($A145,[7]Data!$A$6:$H$228,4,0)","v":288},{"$f":"VLOOKUP(A145,[3]CHD!$E$15:$H$226,4,0)","v":194245},{"$f":"VLOOKUP($A145,[7]Data!$A$6:$H$228,3,0)","v":820},194245,{"$f":"VLOOKUP($A145,[7]Data!$A$6:$H$228,5,0)","v":173},194245,{"$f":"VLOOKUP($A145,[7]Data!$A$6:$H$228,6,0)","v":591},194245,{"$f":"VLOOKUP($A145,[7]Data!$A$6:$H$228,7,0)","v":194},194245,{"$f":"VLOOKUP($A145,[7]Data!$A$6:$H$228,8,0)","v":61},194245,{"$f":"VLOOKUP($A145,[8]CHD06!$E$15:$O$225,5,0)","v":3876},{"$f":"VLOOKUP($A145,[8]CHD06!$E$15:$O$225,10,0)","v":4428},{"$f":"VLOOKUP($A145,[8]CHD08!$E$15:$O$225,5,0)","v":3185},{"$f":"VLOOKUP($A145,[8]CHD08!$E$15:$O$225,10,0)","v":4428},{"$f":"VLOOKUP($A145,[9]BP05!$E$14:$O$225,5,0)","v":16167},{"$f":"VLOOKUP($A145,[9]BP05!$E$14:$O$225,10,0)","v":20733},{"$f":"VLOOKUP($A145,[10]CKD03!$E$14:$O$225,5,0)","v":2801},{"$f":"VLOOKUP($A145,[10]CKD03!$E$14:$O$225,10,0)","v":3948},{"$f":"VLOOKUP($A145,[11]PAD03!$E$14:$O$225,5,0)","v":560},{"$f":"VLOOKUP($A145,[11]PAD03!$E$14:$O$225,10,0)","v":661},{"$f":"VLOOKUP($A145,[11]PAD04!$E$14:$O$225,5,0)","v":429},{"$f":"VLOOKUP($A145,[11]PAD04!$E$14:$O$225,10,0)","v":661},{"$f":"VLOOKUP($A145,[12]STROKE06!$E$14:$O$225,5,0)","v":1697},{"$f":"VLOOKUP($A145,[12]STROKE06!$E$14:$O$225,10,0)","v":1968},{"$f":"VLOOKUP($A145,[12]STROKE08!$E$14:$O$225,5,0)","v":1259},{"$f":"VLOOKUP($A145,[12]STROKE08!$E$14:$O$225,10,0)","v":1968},null,null,null,null,null,null,null,null,null,null,null,null,null,null,{"$f":"VLOOKUP($A145,[3]CHD!$E$14:$BS$226,29,0)","v":3867},{"$f":"VLOOKUP($A145,[3]CHD!$E$14:$BS$226,34,0)","v":4345},{"$f":"VLOOKUP($A145,[3]CHD!$E$14:$BS$226,37,0)","v":3113},{"$f":"VLOOKUP($A145,[3]CHD!$E$14:$BS$226,42,0)","v":4339},{"$f":"VLOOKUP($A145,[3]HYP!$E$14:$BK$226,29,0)","v":16745},{"$f":"VLOOKUP($A145,[3]HYP!$E$14:$BK$226,34,0)","v":20738},{"$f":"VLOOKUP($A145,[3]CKD!$E$14:$BG$230,33,0)","v":3020},{"$f":"VLOOKUP($A145,[3]CKD!$E$14:$BG$230,38,0)","v":3823},{"$f":"VLOOKUP(A145,[3]PAD!$E$14:$BC$226,29,0)","v":585},{"$f":"VLOOKUP($A145,[3]PAD!$E$14:$BC$226,34,0)","v":664},{"$f":"VLOOKUP($A145,[3]PAD!$E$14:$BC$226,37,0)","v":434},{"$f":"VLOOKUP($A145,[3]PAD!$E$14:$BC$226,42,0)","v":663},{"$f":"VLOOKUP($A145,[3]STIA!$E$14:$CA$230,37,0)","v":1736},{"$f":"VLOOKUP($A145,[3]STIA!$E$14:$CA$230,42,0)","v":2036},{"$f":"VLOOKUP($A145,[3]STIA!$E$14:$CA$230,53,0)","v":830},{"$f":"VLOOKUP($A145,[3]STIA!$E$14:$CA$230,58,0)","v":1325}]
["08K","NHS Lambeth",{"$f":"VLOOKUP($A146,'[6]201314'!$C$19:$J$256,8,0)","v":135},{"$f":"VLOOKUP($A146,'[6]201314'!$C$19:$J$256,7,0)","v":362478},{"$f":"VLOOKUP($A146,[7]Data!$A$6:$H$228,4,0)","v":447},{"$f":"VLOOKUP(A146,[3]CHD!$E$15:$H$226,4,0)","v":378733},{"$f":"VLOOKUP($A146,[7]Data!$A$6:$H$228,3,0)","v":861},378733,{"$f":"VLOOKUP($A146,[7]Data!$A$6:$H$228,5,0)","v":315},378733,{"$f":"VLOOKUP($A146,[7]Data!$A$6:$H$228,6,0)","v":703},378733,{"$f":"VLOOKUP($A146,[7]Data!$A$6:$H$228,7,0)","v":288},378733,{"$f":"VLOOKUP($A146,[7]Data!$A$6:$H$228,8,0)","v":54},378733,{"$f":"VLOOKUP($A146,[8]CHD06!$E$15:$O$225,5,0)","v":4441},{"$f":"VLOOKUP($A146,[8]CHD06!$E$15:$O$225,10,0)","v":5064},{"$f":"VLOOKUP($A146,[8]CHD08!$E$15:$O$225,5,0)","v":3668},{"$f":"VLOOKUP($A146,[8]CHD08!$E$15:$O$225,10,0)","v":5064},{"$f":"VLOOKUP($A146,[9]BP05!$E$14:$O$225,5,0)","v":26144},{"$f":"VLOOKUP($A146,[9]BP05!$E$14:$O$225,10,0)","v":34805},{"$f":"VLOOKUP($A146,[10]CKD03!$E$14:$O$225,5,0)","v":4147},{"$f":"VLOOKUP($A146,[10]CKD03!$E$14:$O$225,10,0)","v":5867},{"$f":"VLOOKUP($A146,[11]PAD03!$E$14:$O$225,5,0)","v":1098},{"$f":"VLOOKUP($A146,[11]PAD03!$E$14:$O$225,10,0)","v":1262},{"$f":"VLOOKUP($A146,[11]PAD04!$E$14:$O$225,5,0)","v":872},{"$f":"VLOOKUP($A146,[11]PAD04!$E$14:$O$225,10,0)","v":1262},{"$f":"VLOOKUP($A146,[12]STROKE06!$E$14:$O$225,5,0)","v":2835},{"$f":"VLOOKUP($A146,[12]STROKE06!$E$14:$O$225,10,0)","v":3355},{"$f":"VLOOKUP($A146,[12]STROKE08!$E$14:$O$225,5,0)","v":2241},{"$f":"VLOOKUP($A146,[12]STROKE08!$E$14:$O$225,10,0)","v":3355},null,null,null,null,null,null,null,null,null,null,null,null,null,null,{"$f":"VLOOKUP($A146,[3]CHD!$E$14:$BS$226,29,0)","v":4490},{"$f":"VLOOKUP($A146,[3]CHD!$E$14:$BS$226,34,0)","v":5041},{"$f":"VLOOKUP($A146,[3]CHD!$E$14:$BS$226,37,0)","v":3761},{"$f":"VLOOKUP($A146,[3]CHD!$E$14:$BS$226,42,0)","v":5041},{"$f":"VLOOKUP($A146,[3]HYP!$E$14:$BK$226,29,0)","v":27495},{"$f":"VLOOKUP($A146,[3]HYP!$E$14:$BK$226,34,0)","v":35080},{"$f":"VLOOKUP($A146,[3]CKD!$E$14:$BG$230,33,0)","v":4286},{"$f":"VLOOKUP($A146,[3]CKD!$E$14:$BG$230,38,0)","v":5765},{"$f":"VLOOKUP(A146,[3]PAD!$E$14:$BC$226,29,0)","v":1133},{"$f":"VLOOKUP($A146,[3]PAD!$E$14:$BC$226,34,0)","v":1275},{"$f":"VLOOKUP($A146,[3]PAD!$E$14:$BC$226,37,0)","v":936},{"$f":"VLOOKUP($A146,[3]PAD!$E$14:$BC$226,42,0)","v":1275},{"$f":"VLOOKUP($A146,[3]STIA!$E$14:$CA$230,37,0)","v":2894},{"$f":"VLOOKUP($A146,[3]STIA!$E$14:$CA$230,42,0)","v":3396},{"$f":"VLOOKUP($A146,[3]STIA!$E$14:$CA$230,53,0)","v":1187},{"$f":"VLOOKUP($A146,[3]STIA!$E$14:$CA$230,58,0)","v":1671}]
["08L","NHS Lewisham",{"$f":"VLOOKUP($A147,'[6]201314'!$C$19:$J$256,8,0)","v":123},{"$f":"VLOOKUP($A147,'[6]201314'!$C$19:$J$256,7,0)","v":290423},{"$f":"VLOOKUP($A147,[7]Data!$A$6:$H$228,4,0)","v":419},{"$f":"VLOOKUP(A147,[3]CHD!$E$15:$H$226,4,0)","v":298522},{"$f":"VLOOKUP($A147,[7]Data!$A$6:$H$228,3,0)","v":885},298522,{"$f":"VLOOKUP($A147,[7]Data!$A$6:$H$228,5,0)","v":300},298522,{"$f":"VLOOKUP($A147,[7]Data!$A$6:$H$228,6,0)","v":573},298522,{"$f":"VLOOKUP($A147,[7]Data!$A$6:$H$228,7,0)","v":228},298522,{"$f":"VLOOKUP($A147,[7]Data!$A$6:$H$228,8,0)","v":59},298522,{"$f":"VLOOKUP($A147,[8]CHD06!$E$15:$O$225,5,0)","v":4521},{"$f":"VLOOKUP($A147,[8]CHD06!$E$15:$O$225,10,0)","v":5223},{"$f":"VLOOKUP($A147,[8]CHD08!$E$15:$O$225,5,0)","v":3612},{"$f":"VLOOKUP($A147,[8]CHD08!$E$15:$O$225,10,0)","v":5223},{"$f":"VLOOKUP($A147,[9]BP05!$E$14:$O$225,5,0)","v":23534},{"$f":"VLOOKUP($A147,[9]BP05!$E$14:$O$225,10,0)","v":32709},{"$f":"VLOOKUP($A147,[10]CKD03!$E$14:$O$225,5,0)","v":3293},{"$f":"VLOOKUP($A147,[10]CKD03!$E$14:$O$225,10,0)","v":4756},{"$f":"VLOOKUP($A147,[11]PAD03!$E$14:$O$225,5,0)","v":1278},{"$f":"VLOOKUP($A147,[11]PAD03!$E$14:$O$225,10,0)","v":1533},{"$f":"VLOOKUP($A147,[11]PAD04!$E$14:$O$225,5,0)","v":996},{"$f":"VLOOKUP($A147,[11]PAD04!$E$14:$O$225,10,0)","v":1533},{"$f":"VLOOKUP($A147,[12]STROKE06!$E$14:$O$225,5,0)","v":2616},{"$f":"VLOOKUP($A147,[12]STROKE06!$E$14:$O$225,10,0)","v":3208},{"$f":"VLOOKUP($A147,[12]STROKE08!$E$14:$O$225,5,0)","v":2086},{"$f":"VLOOKUP($A147,[12]STROKE08!$E$14:$O$225,10,0)","v":3208},null,null,null,null,null,null,null,null,null,null,null,null,null,null,{"$f":"VLOOKUP($A147,[3]CHD!$E$14:$BS$226,29,0)","v":4722},{"$f":"VLOOKUP($A147,[3]CHD!$E$14:$BS$226,34,0)","v":5336},{"$f":"VLOOKUP($A147,[3]CHD!$E$14:$BS$226,37,0)","v":3741},{"$f":"VLOOKUP($A147,[3]CHD!$E$14:$BS$226,42,0)","v":5336},{"$f":"VLOOKUP($A147,[3]HYP!$E$14:$BK$226,29,0)","v":25736},{"$f":"VLOOKUP($A147,[3]HYP!$E$14:$BK$226,34,0)","v":34166},{"$f":"VLOOKUP($A147,[3]CKD!$E$14:$BG$230,33,0)","v":3616},{"$f":"VLOOKUP($A147,[3]CKD!$E$14:$BG$230,38,0)","v":4809},{"$f":"VLOOKUP(A147,[3]PAD!$E$14:$BC$226,29,0)","v":1385},{"$f":"VLOOKUP($A147,[3]PAD!$E$14:$BC$226,34,0)","v":1598},{"$f":"VLOOKUP($A147,[3]PAD!$E$14:$BC$226,37,0)","v":1040},{"$f":"VLOOKUP($A147,[3]PAD!$E$14:$BC$226,42,0)","v":1598},{"$f":"VLOOKUP($A147,[3]STIA!$E$14:$CA$230,37,0)","v":2852},{"$f":"VLOOKUP($A147,[3]STIA!$E$14:$CA$230,42,0)","v":3398},{"$f":"VLOOKUP($A147,[3]STIA!$E$14:$CA$230,53,0)","v":1094},{"$f":"VLOOKUP($A147,[3]STIA!$E$14:$CA$230,58,0)","v":1685}]
["08M","NHS Newham",{"$f":"VLOOKUP($A148,'[6]201314'!$C$19:$J$256,8,0)","v":157},{"$f":"VLOOKUP($A148,'[6]201314'!$C$19:$J$256,7,0)","v":351062},{"$f":"VLOOKUP($A148,[7]Data!$A$6:$H$228,4,0)","v":386},{"$f":"VLOOKUP(A148,[3]CHD!$E$15:$H$226,4,0)","v":375864},{"$f":"VLOOKUP($A148,[7]Data!$A$6:$H$228,3,0)","v":1429},375864,{"$f":"VLOOKUP($A148,[7]Data!$A$6:$H$228,5,0)","v":341},375864,{"$f":"VLOOKUP($A148,[7]Data!$A$6:$H$228,6,0)","v":920},375864,{"$f":"VLOOKUP($A148,[7]Data!$A$6:$H$228,7,0)","v":315},375864,{"$f":"VLOOKUP($A148,[7]Data!$A$6:$H$228,8,0)","v":91},375864,{"$f":"VLOOKUP($A148,[8]CHD06!$E$15:$O$225,5,0)","v":6081},{"$f":"VLOOKUP($A148,[8]CHD06!$E$15:$O$225,10,0)","v":6747},{"$f":"VLOOKUP($A148,[8]CHD08!$E$15:$O$225,5,0)","v":5012},{"$f":"VLOOKUP($A148,[8]CHD08!$E$15:$O$225,10,0)","v":6747},{"$f":"VLOOKUP($A148,[9]BP05!$E$14:$O$225,5,0)","v":29521},{"$f":"VLOOKUP($A148,[9]BP05!$E$14:$O$225,10,0)","v":37647},{"$f":"VLOOKUP($A148,[10]CKD03!$E$14:$O$225,5,0)","v":4333},{"$f":"VLOOKUP($A148,[10]CKD03!$E$14:$O$225,10,0)","v":5795},{"$f":"VLOOKUP($A148,[11]PAD03!$E$14:$O$225,5,0)","v":820},{"$f":"VLOOKUP($A148,[11]PAD03!$E$14:$O$225,10,0)","v":936},{"$f":"VLOOKUP($A148,[11]PAD04!$E$14:$O$225,5,0)","v":655},{"$f":"VLOOKUP($A148,[11]PAD04!$E$14:$O$225,10,0)","v":936},{"$f":"VLOOKUP($A148,[12]STROKE06!$E$14:$O$225,5,0)","v":2387},{"$f":"VLOOKUP($A148,[12]STROKE06!$E$14:$O$225,10,0)","v":2765},{"$f":"VLOOKUP($A148,[12]STROKE08!$E$14:$O$225,5,0)","v":1914},{"$f":"VLOOKUP($A148,[12]STROKE08!$E$14:$O$225,10,0)","v":2765},null,null,null,null,null,null,null,null,null,null,null,null,null,null,{"$f":"VLOOKUP($A148,[3]CHD!$E$14:$BS$226,29,0)","v":6212},{"$f":"VLOOKUP($A148,[3]CHD!$E$14:$BS$226,34,0)","v":6724},{"$f":"VLOOKUP($A148,[3]CHD!$E$14:$BS$226,37,0)","v":5147},{"$f":"VLOOKUP($A148,[3]CHD!$E$14:$BS$226,42,0)","v":6724},{"$f":"VLOOKUP($A148,[3]HYP!$E$14:$BK$226,29,0)","v":30587},{"$f":"VLOOKUP($A148,[3]HYP!$E$14:$BK$226,34,0)","v":37587},{"$f":"VLOOKUP($A148,[3]CKD!$E$14:$BG$230,33,0)","v":4888},{"$f":"VLOOKUP($A148,[3]CKD!$E$14:$BG$230,38,0)","v":6182},{"$f":"VLOOKUP(A148,[3]PAD!$E$14:$BC$226,29,0)","v":820},{"$f":"VLOOKUP($A148,[3]PAD!$E$14:$BC$226,34,0)","v":907},{"$f":"VLOOKUP($A148,[3]PAD!$E$14:$BC$226,37,0)","v":664},{"$f":"VLOOKUP($A148,[3]PAD!$E$14:$BC$226,42,0)","v":907},{"$f":"VLOOKUP($A148,[3]STIA!$E$14:$CA$230,37,0)","v":2414},{"$f":"VLOOKUP($A148,[3]STIA!$E$14:$CA$230,42,0)","v":2767},{"$f":"VLOOKUP($A148,[3]STIA!$E$14:$CA$230,53,0)","v":959},{"$f":"VLOOKUP($A148,[3]STIA!$E$14:$CA$230,58,0)","v":1360}]
["08N","NHS Redbridge",{"$f":"VLOOKUP($A149,'[6]201314'!$C$19:$J$256,8,0)","v":135},{"$f":"VLOOKUP($A149,'[6]201314'!$C$19:$J$256,7,0)","v":273541},{"$f":"VLOOKUP($A149,[7]Data!$A$6:$H$228,4,0)","v":310},{"$f":"VLOOKUP(A149,[3]CHD!$E$15:$H$226,4,0)","v":289944},{"$f":"VLOOKUP($A149,[7]Data!$A$6:$H$228,3,0)","v":1570},289944,{"$f":"VLOOKUP($A149,[7]Data!$A$6:$H$228,5,0)","v":337},289944,{"$f":"VLOOKUP($A149,[7]Data!$A$6:$H$228,6,0)","v":980},289944,{"$f":"VLOOKUP($A149,[7]Data!$A$6:$H$228,7,0)","v":338},289944,{"$f":"VLOOKUP($A149,[7]Data!$A$6:$H$228,8,0)","v":110},289944,{"$f":"VLOOKUP($A149,[8]CHD06!$E$15:$O$225,5,0)","v":6839},{"$f":"VLOOKUP($A149,[8]CHD06!$E$15:$O$225,10,0)","v":7851},{"$f":"VLOOKUP($A149,[8]CHD08!$E$15:$O$225,5,0)","v":5738},{"$f":"VLOOKUP($A149,[8]CHD08!$E$15:$O$225,10,0)","v":7851},{"$f":"VLOOKUP($A149,[9]BP05!$E$14:$O$225,5,0)","v":27294},{"$f":"VLOOKUP($A149,[9]BP05!$E$14:$O$225,10,0)","v":35023},{"$f":"VLOOKUP($A149,[10]CKD03!$E$14:$O$225,5,0)","v":5034},{"$f":"VLOOKUP($A149,[10]CKD03!$E$14:$O$225,10,0)","v":7047},{"$f":"VLOOKUP($A149,[11]PAD03!$E$14:$O$225,5,0)","v":780},{"$f":"VLOOKUP($A149,[11]PAD03!$E$14:$O$225,10,0)","v":907},{"$f":"VLOOKUP($A149,[11]PAD04!$E$14:$O$225,5,0)","v":656},{"$f":"VLOOKUP($A149,[11]PAD04!$E$14:$O$225,10,0)","v":907},{"$f":"VLOOKUP($A149,[12]STROKE06!$E$14:$O$225,5,0)","v":2728},{"$f":"VLOOKUP($A149,[12]STROKE06!$E$14:$O$225,10,0)","v":3164},{"$f":"VLOOKUP($A149,[12]STROKE08!$E$14:$O$225,5,0)","v":2153},{"$f":"VLOOKUP($A149,[12]STROKE08!$E$14:$O$225,10,0)","v":3164},null,null,null,null,null,null,null,null,null,null,null,null,null,null,{"$f":"VLOOKUP($A149,[3]CHD!$E$14:$BS$226,29,0)","v":6970},{"$f":"VLOOKUP($A149,[3]CHD!$E$14:$BS$226,34,0)","v":7745},{"$f":"VLOOKUP($A149,[3]CHD!$E$14:$BS$226,37,0)","v":5713},{"$f":"VLOOKUP($A149,[3]CHD!$E$14:$BS$226,42,0)","v":7745},{"$f":"VLOOKUP($A149,[3]HYP!$E$14:$BK$226,29,0)","v":28411},{"$f":"VLOOKUP($A149,[3]HYP!$E$14:$BK$226,34,0)","v":35258},{"$f":"VLOOKUP($A149,[3]CKD!$E$14:$BG$230,33,0)","v":5013},{"$f":"VLOOKUP($A149,[3]CKD!$E$14:$BG$230,38,0)","v":6453},{"$f":"VLOOKUP(A149,[3]PAD!$E$14:$BC$226,29,0)","v":794},{"$f":"VLOOKUP($A149,[3]PAD!$E$14:$BC$226,34,0)","v":890},{"$f":"VLOOKUP($A149,[3]PAD!$E$14:$BC$226,37,0)","v":649},{"$f":"VLOOKUP($A149,[3]PAD!$E$14:$BC$226,42,0)","v":890},{"$f":"VLOOKUP($A149,[3]STIA!$E$14:$CA$230,37,0)","v":2761},{"$f":"VLOOKUP($A149,[3]STIA!$E$14:$CA$230,42,0)","v":3181},{"$f":"VLOOKUP($A149,[3]STIA!$E$14:$CA$230,53,0)","v":1412},{"$f":"VLOOKUP($A149,[3]STIA!$E$14:$CA$230,58,0)","v":2049}]
["08P","NHS Richmond",{"$f":"VLOOKUP($A150,'[6]201314'!$C$19:$J$256,8,0)","v":74},{"$f":"VLOOKUP($A150,'[6]201314'!$C$19:$J$256,7,0)","v":191362},{"$f":"VLOOKUP($A150,[7]Data!$A$6:$H$228,4,0)","v":262},{"$f":"VLOOKUP(A150,[3]CHD!$E$15:$H$226,4,0)","v":202374},{"$f":"VLOOKUP($A150,[7]Data!$A$6:$H$228,3,0)","v":697},202374,{"$f":"VLOOKUP($A150,[7]Data!$A$6:$H$228,5,0)","v":126},202374,{"$f":"VLOOKUP($A150,[7]Data!$A$6:$H$228,6,0)","v":428},202374,{"$f":"VLOOKUP($A150,[7]Data!$A$6:$H$228,7,0)","v":166},202374,{"$f":"VLOOKUP($A150,[7]Data!$A$6:$H$228,8,0)","v":46},202374,{"$f":"VLOOKUP($A150,[8]CHD06!$E$15:$O$225,5,0)","v":3462},{"$f":"VLOOKUP($A150,[8]CHD06!$E$15:$O$225,10,0)","v":3936},{"$f":"VLOOKUP($A150,[8]CHD08!$E$15:$O$225,5,0)","v":2811},{"$f":"VLOOKUP($A150,[8]CHD08!$E$15:$O$225,10,0)","v":3936},{"$f":"VLOOKUP($A150,[9]BP05!$E$14:$O$225,5,0)","v":16374},{"$f":"VLOOKUP($A150,[9]BP05!$E$14:$O$225,10,0)","v":20928},{"$f":"VLOOKUP($A150,[10]CKD03!$E$14:$O$225,5,0)","v":3015},{"$f":"VLOOKUP($A150,[10]CKD03!$E$14:$O$225,10,0)","v":4178},{"$f":"VLOOKUP($A150,[11]PAD03!$E$14:$O$225,5,0)","v":628},{"$f":"VLOOKUP($A150,[11]PAD03!$E$14:$O$225,10,0)","v":714},{"$f":"VLOOKUP($A150,[11]PAD04!$E$14:$O$225,5,0)","v":497},{"$f":"VLOOKUP($A150,[11]PAD04!$E$14:$O$225,10,0)","v":714},{"$f":"VLOOKUP($A150,[12]STROKE06!$E$14:$O$225,5,0)","v":1939},{"$f":"VLOOKUP($A150,[12]STROKE06!$E$14:$O$225,10,0)","v":2254},{"$f":"VLOOKUP($A150,[12]STROKE08!$E$14:$O$225,5,0)","v":1500},{"$f":"VLOOKUP($A150,[12]STROKE08!$E$14:$O$225,10,0)","v":2254},null,null,null,null,null,null,null,null,null,null,null,null,null,null,{"$f":"VLOOKUP($A150,[3]CHD!$E$14:$BS$226,29,0)","v":3524},{"$f":"VLOOKUP($A150,[3]CHD!$E$14:$BS$226,34,0)","v":3893},{"$f":"VLOOKUP($A150,[3]CHD!$E$14:$BS$226,37,0)","v":2920},{"$f":"VLOOKUP($A150,[3]CHD!$E$14:$BS$226,42,0)","v":3893},{"$f":"VLOOKUP($A150,[3]HYP!$E$14:$BK$226,29,0)","v":16639},{"$f":"VLOOKUP($A150,[3]HYP!$E$14:$BK$226,34,0)","v":20902},{"$f":"VLOOKUP($A150,[3]CKD!$E$14:$BG$230,33,0)","v":3124},{"$f":"VLOOKUP($A150,[3]CKD!$E$14:$BG$230,38,0)","v":4101},{"$f":"VLOOKUP(A150,[3]PAD!$E$14:$BC$226,29,0)","v":626},{"$f":"VLOOKUP($A150,[3]PAD!$E$14:$BC$226,34,0)","v":702},{"$f":"VLOOKUP($A150,[3]PAD!$E$14:$BC$226,37,0)","v":484},{"$f":"VLOOKUP($A150,[3]PAD!$E$14:$BC$226,42,0)","v":702},{"$f":"VLOOKUP($A150,[3]STIA!$E$14:$CA$230,37,0)","v":1963},{"$f":"VLOOKUP($A150,[3]STIA!$E$14:$CA$230,42,0)","v":2261},{"$f":"VLOOKUP($A150,[3]STIA!$E$14:$CA$230,53,0)","v":995},{"$f":"VLOOKUP($A150,[3]STIA!$E$14:$CA$230,58,0)","v":1490}]
["08Q","NHS Southwark",{"$f":"VLOOKUP($A151,'[6]201314'!$C$19:$J$256,8,0)","v":115},{"$f":"VLOOKUP($A151,'[6]201314'!$C$19:$J$256,7,0)","v":300400},{"$f":"VLOOKUP($A151,[7]Data!$A$6:$H$228,4,0)","v":352},{"$f":"VLOOKUP(A151,[3]CHD!$E$15:$H$226,4,0)","v":325112},{"$f":"VLOOKUP($A151,[7]Data!$A$6:$H$228,3,0)","v":780},325112,{"$f":"VLOOKUP($A151,[7]Data!$A$6:$H$228,5,0)","v":292},325112,{"$f":"VLOOKUP($A151,[7]Data!$A$6:$H$228,6,0)","v":639},325112,{"$f":"VLOOKUP($A151,[7]Data!$A$6:$H$228,7,0)","v":233},325112,{"$f":"VLOOKUP($A151,[7]Data!$A$6:$H$228,8,0)","v":51},325112,{"$f":"VLOOKUP($A151,[8]CHD06!$E$15:$O$225,5,0)","v":4115},{"$f":"VLOOKUP($A151,[8]CHD06!$E$15:$O$225,10,0)","v":4687},{"$f":"VLOOKUP($A151,[8]CHD08!$E$15:$O$225,5,0)","v":3458},{"$f":"VLOOKUP($A151,[8]CHD08!$E$15:$O$225,10,0)","v":4687},{"$f":"VLOOKUP($A151,[9]BP05!$E$14:$O$225,5,0)","v":24180},{"$f":"VLOOKUP($A151,[9]BP05!$E$14:$O$225,10,0)","v":32346},{"$f":"VLOOKUP($A151,[10]CKD03!$E$14:$O$225,5,0)","v":3728},{"$f":"VLOOKUP($A151,[10]CKD03!$E$14:$O$225,10,0)","v":5222},{"$f":"VLOOKUP($A151,[11]PAD03!$E$14:$O$225,5,0)","v":1073},{"$f":"VLOOKUP($A151,[11]PAD03!$E$14:$O$225,10,0)","v":1255},{"$f":"VLOOKUP($A151,[11]PAD04!$E$14:$O$225,5,0)","v":903},{"$f":"VLOOKUP($A151,[11]PAD04!$E$14:$O$225,10,0)","v":1255},{"$f":"VLOOKUP($A151,[12]STROKE06!$E$14:$O$225,5,0)","v":2309},{"$f":"VLOOKUP($A151,[12]STROKE06!$E$14:$O$225,10,0)","v":2759},{"$f":"VLOOKUP($A151,[12]STROKE08!$E$14:$O$225,5,0)","v":1887},{"$f":"VLOOKUP($A151,[12]STROKE08!$E$14:$O$225,10,0)","v":2759},null,null,null,null,null,null,null,null,null,null,null,null,null,null,{"$f":"VLOOKUP($A151,[3]CHD!$E$14:$BS$226,29,0)","v":4091},{"$f":"VLOOKUP($A151,[3]CHD!$E$14:$BS$226,34,0)","v":4546},{"$f":"VLOOKUP($A151,[3]CHD!$E$14:$BS$226,37,0)","v":3473},{"$f":"VLOOKUP($A151,[3]CHD!$E$14:$BS$226,42,0)","v":4546},{"$f":"VLOOKUP($A151,[3]HYP!$E$14:$BK$226,29,0)","v":25339},{"$f":"VLOOKUP($A151,[3]HYP!$E$14:$BK$226,34,0)","v":32613},{"$f":"VLOOKUP($A151,[3]CKD!$E$14:$BG$230,33,0)","v":3819},{"$f":"VLOOKUP($A151,[3]CKD!$E$14:$BG$230,38,0)","v":4987},{"$f":"VLOOKUP(A151,[3]PAD!$E$14:$BC$226,29,0)","v":1056},{"$f":"VLOOKUP($A151,[3]PAD!$E$14:$BC$226,34,0)","v":1228},{"$f":"VLOOKUP($A151,[3]PAD!$E$14:$BC$226,37,0)","v":900},{"$f":"VLOOKUP($A151,[3]PAD!$E$14:$BC$226,42,0)","v":1227},{"$f":"VLOOKUP($A151,[3]STIA!$E$14:$CA$230,37,0)","v":2365},{"$f":"VLOOKUP($A151,[3]STIA!$E$14:$CA$230,42,0)","v":2783},{"$f":"VLOOKUP($A151,[3]STIA!$E$14:$CA$230,53,0)","v":1039},{"$f":"VLOOKUP($A151,[3]STIA!$E$14:$CA$230,58,0)","v":1450}]
["08R","NHS Merton",{"$f":"VLOOKUP($A152,'[6]201314'!$C$19:$J$256,8,0)","v":86},{"$f":"VLOOKUP($A152,'[6]201314'!$C$19:$J$256,7,0)","v":202697},{"$f":"VLOOKUP($A152,[7]Data!$A$6:$H$228,4,0)","v":299},{"$f":"VLOOKUP(A152,[3]CHD!$E$15:$H$226,4,0)","v":217803},{"$f":"VLOOKUP($A152,[7]Data!$A$6:$H$228,3,0)","v":721},217803,{"$f":"VLOOKUP($A152,[7]Data!$A$6:$H$228,5,0)","v":175},217803,{"$f":"VLOOKUP($A152,[7]Data!$A$6:$H$228,6,0)","v":580},217803,{"$f":"VLOOKUP($A152,[7]Data!$A$6:$H$228,7,0)","v":245},217803,{"$f":"VLOOKUP($A152,[7]Data!$A$6:$H$228,8,0)","v":55},217803,{"$f":"VLOOKUP($A152,[8]CHD06!$E$15:$O$225,5,0)","v":4038},{"$f":"VLOOKUP($A152,[8]CHD06!$E$15:$O$225,10,0)","v":4631},{"$f":"VLOOKUP($A152,[8]CHD08!$E$15:$O$225,5,0)","v":3357},{"$f":"VLOOKUP($A152,[8]CHD08!$E$15:$O$225,10,0)","v":4631},{"$f":"VLOOKUP($A152,[9]BP05!$E$14:$O$225,5,0)","v":17560},{"$f":"VLOOKUP($A152,[9]BP05!$E$14:$O$225,10,0)","v":23021},{"$f":"VLOOKUP($A152,[10]CKD03!$E$14:$O$225,5,0)","v":3523},{"$f":"VLOOKUP($A152,[10]CKD03!$E$14:$O$225,10,0)","v":4796},{"$f":"VLOOKUP($A152,[11]PAD03!$E$14:$O$225,5,0)","v":768},{"$f":"VLOOKUP($A152,[11]PAD03!$E$14:$O$225,10,0)","v":890},{"$f":"VLOOKUP($A152,[11]PAD04!$E$14:$O$225,5,0)","v":620},{"$f":"VLOOKUP($A152,[11]PAD04!$E$14:$O$225,10,0)","v":890},{"$f":"VLOOKUP($A152,[12]STROKE06!$E$14:$O$225,5,0)","v":1898},{"$f":"VLOOKUP($A152,[12]STROKE06!$E$14:$O$225,10,0)","v":2221},{"$f":"VLOOKUP($A152,[12]STROKE08!$E$14:$O$225,5,0)","v":1560},{"$f":"VLOOKUP($A152,[12]STROKE08!$E$14:$O$225,10,0)","v":2221},null,null,null,null,null,null,null,null,null,null,null,null,null,null,{"$f":"VLOOKUP($A152,[3]CHD!$E$14:$BS$226,29,0)","v":4045},{"$f":"VLOOKUP($A152,[3]CHD!$E$14:$BS$226,34,0)","v":4555},{"$f":"VLOOKUP($A152,[3]CHD!$E$14:$BS$226,37,0)","v":3349},{"$f":"VLOOKUP($A152,[3]CHD!$E$14:$BS$226,42,0)","v":4558},{"$f":"VLOOKUP($A152,[3]HYP!$E$14:$BK$226,29,0)","v":17811},{"$f":"VLOOKUP($A152,[3]HYP!$E$14:$BK$226,34,0)","v":23094},{"$f":"VLOOKUP($A152,[3]CKD!$E$14:$BG$230,33,0)","v":3609},{"$f":"VLOOKUP($A152,[3]CKD!$E$14:$BG$230,38,0)","v":4706},{"$f":"VLOOKUP(A152,[3]PAD!$E$14:$BC$226,29,0)","v":752},{"$f":"VLOOKUP($A152,[3]PAD!$E$14:$BC$226,34,0)","v":861},{"$f":"VLOOKUP($A152,[3]PAD!$E$14:$BC$226,37,0)","v":590},{"$f":"VLOOKUP($A152,[3]PAD!$E$14:$BC$226,42,0)","v":872},{"$f":"VLOOKUP($A152,[3]STIA!$E$14:$CA$230,37,0)","v":1925},{"$f":"VLOOKUP($A152,[3]STIA!$E$14:$CA$230,42,0)","v":2267},{"$f":"VLOOKUP($A152,[3]STIA!$E$14:$CA$230,53,0)","v":985},{"$f":"VLOOKUP($A152,[3]STIA!$E$14:$CA$230,58,0)","v":1432}]
["08T","NHS Sutton",{"$f":"VLOOKUP($A153,'[6]201314'!$C$19:$J$256,8,0)","v":86},{"$f":"VLOOKUP($A153,'[6]201314'!$C$19:$J$256,7,0)","v":172542},{"$f":"VLOOKUP($A153,[7]Data!$A$6:$H$228,4,0)","v":329},{"$f":"VLOOKUP(A153,[3]CHD!$E$15:$H$226,4,0)","v":186778},{"$f":"VLOOKUP($A153,[7]Data!$A$6:$H$228,3,0)","v":864},186778,{"$f":"VLOOKUP($A153,[7]Data!$A$6:$H$228,5,0)","v":165},186778,{"$f":"VLOOKUP($A153,[7]Data!$A$6:$H$228,6,0)","v":547},186778,{"$f":"VLOOKUP($A153,[7]Data!$A$6:$H$228,7,0)","v":238},186778,{"$f":"VLOOKUP($A153,[7]Data!$A$6:$H$228,8,0)","v":68},186778,{"$f":"VLOOKUP($A153,[8]CHD06!$E$15:$O$225,5,0)","v":4255},{"$f":"VLOOKUP($A153,[8]CHD06!$E$15:$O$225,10,0)","v":4876},{"$f":"VLOOKUP($A153,[8]CHD08!$E$15:$O$225,5,0)","v":3399},{"$f":"VLOOKUP($A153,[8]CHD08!$E$15:$O$225,10,0)","v":4876},{"$f":"VLOOKUP($A153,[9]BP05!$E$14:$O$225,5,0)","v":17476},{"$f":"VLOOKUP($A153,[9]BP05!$E$14:$O$225,10,0)","v":22904},{"$f":"VLOOKUP($A153,[10]CKD03!$E$14:$O$225,5,0)","v":3720},{"$f":"VLOOKUP($A153,[10]CKD03!$E$14:$O$225,10,0)","v":5213},{"$f":"VLOOKUP($A153,[11]PAD03!$E$14:$O$225,5,0)","v":723},{"$f":"VLOOKUP($A153,[11]PAD03!$E$14:$O$225,10,0)","v":842},{"$f":"VLOOKUP($A153,[11]PAD04!$E$14:$O$225,5,0)","v":563},{"$f":"VLOOKUP($A153,[11]PAD04!$E$14:$O$225,10,0)","v":842},{"$f":"VLOOKUP($A153,[12]STROKE06!$E$14:$O$225,5,0)","v":1996},{"$f":"VLOOKUP($A153,[12]STROKE06!$E$14:$O$225,10,0)","v":2363},{"$f":"VLOOKUP($A153,[12]STROKE08!$E$14:$O$225,5,0)","v":1571},{"$f":"VLOOKUP($A153,[12]STROKE08!$E$14:$O$225,10,0)","v":2363},null,null,null,null,null,null,null,null,null,null,null,null,null,null,{"$f":"VLOOKUP($A153,[3]CHD!$E$14:$BS$226,29,0)","v":4261},{"$f":"VLOOKUP($A153,[3]CHD!$E$14:$BS$226,34,0)","v":4815},{"$f":"VLOOKUP($A153,[3]CHD!$E$14:$BS$226,37,0)","v":3407},{"$f":"VLOOKUP($A153,[3]CHD!$E$14:$BS$226,42,0)","v":4775},{"$f":"VLOOKUP($A153,[3]HYP!$E$14:$BK$226,29,0)","v":18020},{"$f":"VLOOKUP($A153,[3]HYP!$E$14:$BK$226,34,0)","v":22896},{"$f":"VLOOKUP($A153,[3]CKD!$E$14:$BG$230,33,0)","v":3916},{"$f":"VLOOKUP($A153,[3]CKD!$E$14:$BG$230,38,0)","v":5096},{"$f":"VLOOKUP(A153,[3]PAD!$E$14:$BC$226,29,0)","v":737},{"$f":"VLOOKUP($A153,[3]PAD!$E$14:$BC$226,34,0)","v":847},{"$f":"VLOOKUP($A153,[3]PAD!$E$14:$BC$226,37,0)","v":560},{"$f":"VLOOKUP($A153,[3]PAD!$E$14:$BC$226,42,0)","v":840},{"$f":"VLOOKUP($A153,[3]STIA!$E$14:$CA$230,37,0)","v":2006},{"$f":"VLOOKUP($A153,[3]STIA!$E$14:$CA$230,42,0)","v":2378},{"$f":"VLOOKUP($A153,[3]STIA!$E$14:$CA$230,53,0)","v":997},{"$f":"VLOOKUP($A153,[3]STIA!$E$14:$CA$230,58,0)","v":1518}]
["08V","NHS Tower Hamlets",{"$f":"VLOOKUP($A154,'[6]201314'!$C$19:$J$256,8,0)","v":99},{"$f":"VLOOKUP($A154,'[6]201314'!$C$19:$J$256,7,0)","v":266123},{"$f":"VLOOKUP($A154,[7]Data!$A$6:$H$228,4,0)","v":281},{"$f":"VLOOKUP(A154,[3]CHD!$E$15:$H$226,4,0)","v":285429},{"$f":"VLOOKUP($A154,[7]Data!$A$6:$H$228,3,0)","v":997},285429,{"$f":"VLOOKUP($A154,[7]Data!$A$6:$H$228,5,0)","v":231},285429,{"$f":"VLOOKUP($A154,[7]Data!$A$6:$H$228,6,0)","v":674},285429,{"$f":"VLOOKUP($A154,[7]Data!$A$6:$H$228,7,0)","v":281},285429,{"$f":"VLOOKUP($A154,[7]Data!$A$6:$H$228,8,0)","v":60},285429,{"$f":"VLOOKUP($A154,[8]CHD06!$E$15:$O$225,5,0)","v":4509},{"$f":"VLOOKUP($A154,[8]CHD06!$E$15:$O$225,10,0)","v":4907},{"$f":"VLOOKUP($A154,[8]CHD08!$E$15:$O$225,5,0)","v":3994},{"$f":"VLOOKUP($A154,[8]CHD08!$E$15:$O$225,10,0)","v":4907},{"$f":"VLOOKUP($A154,[9]BP05!$E$14:$O$225,5,0)","v":18054},{"$f":"VLOOKUP($A154,[9]BP05!$E$14:$O$225,10,0)","v":22350},{"$f":"VLOOKUP($A154,[10]CKD03!$E$14:$O$225,5,0)","v":3432},{"$f":"VLOOKUP($A154,[10]CKD03!$E$14:$O$225,10,0)","v":4389},{"$f":"VLOOKUP($A154,[11]PAD03!$E$14:$O$225,5,0)","v":945},{"$f":"VLOOKUP($A154,[11]PAD03!$E$14:$O$225,10,0)","v":1050},{"$f":"VLOOKUP($A154,[11]PAD04!$E$14:$O$225,5,0)","v":806},{"$f":"VLOOKUP($A154,[11]PAD04!$E$14:$O$225,10,0)","v":1050},{"$f":"VLOOKUP($A154,[12]STROKE06!$E$14:$O$225,5,0)","v":1898},{"$f":"VLOOKUP($A154,[12]STROKE06!$E$14:$O$225,10,0)","v":2145},{"$f":"VLOOKUP($A154,[12]STROKE08!$E$14:$O$225,5,0)","v":1604},{"$f":"VLOOKUP($A154,[12]STROKE08!$E$14:$O$225,10,0)","v":2145},null,null,null,null,null,null,null,null,null,null,null,null,null,null,{"$f":"VLOOKUP($A154,[3]CHD!$E$14:$BS$226,29,0)","v":4514},{"$f":"VLOOKUP($A154,[3]CHD!$E$14:$BS$226,34,0)","v":4853},{"$f":"VLOOKUP($A154,[3]CHD!$E$14:$BS$226,37,0)","v":3992},{"$f":"VLOOKUP($A154,[3]CHD!$E$14:$BS$226,42,0)","v":4853},{"$f":"VLOOKUP($A154,[3]HYP!$E$14:$BK$226,29,0)","v":18574},{"$f":"VLOOKUP($A154,[3]HYP!$E$14:$BK$226,34,0)","v":22407},{"$f":"VLOOKUP($A154,[3]CKD!$E$14:$BG$230,33,0)","v":3619},{"$f":"VLOOKUP($A154,[3]CKD!$E$14:$BG$230,38,0)","v":4473},{"$f":"VLOOKUP(A154,[3]PAD!$E$14:$BC$226,29,0)","v":906},{"$f":"VLOOKUP($A154,[3]PAD!$E$14:$BC$226,34,0)","v":1018},{"$f":"VLOOKUP($A154,[3]PAD!$E$14:$BC$226,37,0)","v":776},{"$f":"VLOOKUP($A154,[3]PAD!$E$14:$BC$226,42,0)","v":1018},{"$f":"VLOOKUP($A154,[3]STIA!$E$14:$CA$230,37,0)","v":1890},{"$f":"VLOOKUP($A154,[3]STIA!$E$14:$CA$230,42,0)","v":2141},{"$f":"VLOOKUP($A154,[3]STIA!$E$14:$CA$230,53,0)","v":819},{"$f":"VLOOKUP($A154,[3]STIA!$E$14:$CA$230,58,0)","v":1074}]
["08W","NHS Waltham Forest",{"$f":"VLOOKUP($A155,'[6]201314'!$C$19:$J$256,8,0)","v":130},{"$f":"VLOOKUP($A155,'[6]201314'!$C$19:$J$256,7,0)","v":281356},{"$f":"VLOOKUP($A155,[7]Data!$A$6:$H$228,4,0)","v":431},{"$f":"VLOOKUP(A155,[3]CHD!$E$15:$H$226,4,0)","v":296070},{"$f":"VLOOKUP($A155,[7]Data!$A$6:$H$228,3,0)","v":1177},296070,{"$f":"VLOOKUP($A155,[7]Data!$A$6:$H$228,5,0)","v":233},296070,{"$f":"VLOOKUP($A155,[7]Data!$A$6:$H$228,6,0)","v":778},296070,{"$f":"VLOOKUP($A155,[7]Data!$A$6:$H$228,7,0)","v":251},296070,{"$f":"VLOOKUP($A155,[7]Data!$A$6:$H$228,8,0)","v":103},296070,{"$f":"VLOOKUP($A155,[8]CHD06!$E$15:$O$225,5,0)","v":5143},{"$f":"VLOOKUP($A155,[8]CHD06!$E$15:$O$225,10,0)","v":5932},{"$f":"VLOOKUP($A155,[8]CHD08!$E$15:$O$225,5,0)","v":4385},{"$f":"VLOOKUP($A155,[8]CHD08!$E$15:$O$225,10,0)","v":5925},{"$f":"VLOOKUP($A155,[9]BP05!$E$14:$O$225,5,0)","v":25050},{"$f":"VLOOKUP($A155,[9]BP05!$E$14:$O$225,10,0)","v":32459},{"$f":"VLOOKUP($A155,[10]CKD03!$E$14:$O$225,5,0)","v":4588},{"$f":"VLOOKUP($A155,[10]CKD03!$E$14:$O$225,10,0)","v":6239},{"$f":"VLOOKUP($A155,[11]PAD03!$E$14:$O$225,5,0)","v":750},{"$f":"VLOOKUP($A155,[11]PAD03!$E$14:$O$225,10,0)","v":886},{"$f":"VLOOKUP($A155,[11]PAD04!$E$14:$O$225,5,0)","v":616},{"$f":"VLOOKUP($A155,[11]PAD04!$E$14:$O$225,10,0)","v":885},{"$f":"VLOOKUP($A155,[12]STROKE06!$E$14:$O$225,5,0)","v":2282},{"$f":"VLOOKUP($A155,[12]STROKE06!$E$14:$O$225,10,0)","v":2691},{"$f":"VLOOKUP($A155,[12]STROKE08!$E$14:$O$225,5,0)","v":1818},{"$f":"VLOOKUP($A155,[12]STROKE08!$E$14:$O$225,10,0)","v":2687},null,null,null,null,null,null,null,null,null,null,null,null,null,null,{"$f":"VLOOKUP($A155,[3]CHD!$E$14:$BS$226,29,0)","v":5302},{"$f":"VLOOKUP($A155,[3]CHD!$E$14:$BS$226,34,0)","v":5876},{"$f":"VLOOKUP($A155,[3]CHD!$E$14:$BS$226,37,0)","v":4356},{"$f":"VLOOKUP($A155,[3]CHD!$E$14:$BS$226,42,0)","v":5876},{"$f":"VLOOKUP($A155,[3]HYP!$E$14:$BK$226,29,0)","v":25669},{"$f":"VLOOKUP($A155,[3]HYP!$E$14:$BK$226,34,0)","v":32612},{"$f":"VLOOKUP($A155,[3]CKD!$E$14:$BG$230,33,0)","v":4088},{"$f":"VLOOKUP($A155,[3]CKD!$E$14:$BG$230,38,0)","v":5158},{"$f":"VLOOKUP(A155,[3]PAD!$E$14:$BC$226,29,0)","v":759},{"$f":"VLOOKUP($A155,[3]PAD!$E$14:$BC$226,34,0)","v":868},{"$f":"VLOOKUP($A155,[3]PAD!$E$14:$BC$226,37,0)","v":609},{"$f":"VLOOKUP($A155,[3]PAD!$E$14:$BC$226,42,0)","v":868},{"$f":"VLOOKUP($A155,[3]STIA!$E$14:$CA$230,37,0)","v":2294},{"$f":"VLOOKUP($A155,[3]STIA!$E$14:$CA$230,42,0)","v":2695},{"$f":"VLOOKUP($A155,[3]STIA!$E$14:$CA$230,53,0)","v":1137},{"$f":"VLOOKUP($A155,[3]STIA!$E$14:$CA$230,58,0)","v":1607}]
["08X","NHS Wandsworth",{"$f":"VLOOKUP($A156,'[6]201314'!$C$19:$J$256,8,0)","v":140},{"$f":"VLOOKUP($A156,'[6]201314'!$C$19:$J$256,7,0)","v":352542},{"$f":"VLOOKUP($A156,[7]Data!$A$6:$H$228,4,0)","v":317},{"$f":"VLOOKUP(A156,[3]CHD!$E$15:$H$226,4,0)","v":363670},{"$f":"VLOOKUP($A156,[7]Data!$A$6:$H$228,3,0)","v":959},363670,{"$f":"VLOOKUP($A156,[7]Data!$A$6:$H$228,5,0)","v":343},363670,{"$f":"VLOOKUP($A156,[7]Data!$A$6:$H$228,6,0)","v":782},363670,{"$f":"VLOOKUP($A156,[7]Data!$A$6:$H$228,7,0)","v":316},363670,{"$f":"VLOOKUP($A156,[7]Data!$A$6:$H$228,8,0)","v":54},363670,{"$f":"VLOOKUP($A156,[8]CHD06!$E$15:$O$225,5,0)","v":4785},{"$f":"VLOOKUP($A156,[8]CHD06!$E$15:$O$225,10,0)","v":5444},{"$f":"VLOOKUP($A156,[8]CHD08!$E$15:$O$225,5,0)","v":4056},{"$f":"VLOOKUP($A156,[8]CHD08!$E$15:$O$225,10,0)","v":5443},{"$f":"VLOOKUP($A156,[9]BP05!$E$14:$O$225,5,0)","v":23730},{"$f":"VLOOKUP($A156,[9]BP05!$E$14:$O$225,10,0)","v":31267},{"$f":"VLOOKUP($A156,[10]CKD03!$E$14:$O$225,5,0)","v":3413},{"$f":"VLOOKUP($A156,[10]CKD03!$E$14:$O$225,10,0)","v":4821},{"$f":"VLOOKUP($A156,[11]PAD03!$E$14:$O$225,5,0)","v":964},{"$f":"VLOOKUP($A156,[11]PAD03!$E$14:$O$225,10,0)","v":1122},{"$f":"VLOOKUP($A156,[11]PAD04!$E$14:$O$225,5,0)","v":802},{"$f":"VLOOKUP($A156,[11]PAD04!$E$14:$O$225,10,0)","v":1123},{"$f":"VLOOKUP($A156,[12]STROKE06!$E$14:$O$225,5,0)","v":2420},{"$f":"VLOOKUP($A156,[12]STROKE06!$E$14:$O$225,10,0)","v":2864},{"$f":"VLOOKUP($A156,[12]STROKE08!$E$14:$O$225,5,0)","v":2020},{"$f":"VLOOKUP($A156,[12]STROKE08!$E$14:$O$225,10,0)","v":2863},null,null,null,null,null,null,null,null,null,null,null,null,null,null,{"$f":"VLOOKUP($A156,[3]CHD!$E$14:$BS$226,29,0)","v":4827},{"$f":"VLOOKUP($A156,[3]CHD!$E$14:$BS$226,34,0)","v":5409},{"$f":"VLOOKUP($A156,[3]CHD!$E$14:$BS$226,37,0)","v":4014},{"$f":"VLOOKUP($A156,[3]CHD!$E$14:$BS$226,42,0)","v":5409},{"$f":"VLOOKUP($A156,[3]HYP!$E$14:$BK$226,29,0)","v":24463},{"$f":"VLOOKUP($A156,[3]HYP!$E$14:$BK$226,34,0)","v":31172},{"$f":"VLOOKUP($A156,[3]CKD!$E$14:$BG$230,33,0)","v":3840},{"$f":"VLOOKUP($A156,[3]CKD!$E$14:$BG$230,38,0)","v":4965},{"$f":"VLOOKUP(A156,[3]PAD!$E$14:$BC$226,29,0)","v":947},{"$f":"VLOOKUP($A156,[3]PAD!$E$14:$BC$226,34,0)","v":1075},{"$f":"VLOOKUP($A156,[3]PAD!$E$14:$BC$226,37,0)","v":793},{"$f":"VLOOKUP($A156,[3]PAD!$E$14:$BC$226,42,0)","v":1075},{"$f":"VLOOKUP($A156,[3]STIA!$E$14:$CA$230,37,0)","v":2560},{"$f":"VLOOKUP($A156,[3]STIA!$E$14:$CA$230,42,0)","v":2973},{"$f":"VLOOKUP($A156,[3]STIA!$E$14:$CA$230,53,0)","v":1291},{"$f":"VLOOKUP($A156,[3]STIA!$E$14:$CA$230,58,0)","v":1881}]
["08Y","NHS West London (K&C & Qpp)",{"$f":"VLOOKUP($A157,'[6]201314'!$C$19:$J$256,8,0)","v":94},{"$f":"VLOOKUP($A157,'[6]201314'!$C$19:$J$256,7,0)","v":214787},{"$f":"VLOOKUP($A157,[7]Data!$A$6:$H$228,4,0)","v":292},{"$f":"VLOOKUP(A157,[3]CHD!$E$15:$H$226,4,0)","v":229080},{"$f":"VLOOKUP($A157,[7]Data!$A$6:$H$228,3,0)","v":809},229080,{"$f":"VLOOKUP($A157,[7]Data!$A$6:$H$228,5,0)","v":212},229080,{"$f":"VLOOKUP($A157,[7]Data!$A$6:$H$228,6,0)","v":588},229080,{"$f":"VLOOKUP($A157,[7]Data!$A$6:$H$228,7,0)","v":227},229080,{"$f":"VLOOKUP($A157,[7]Data!$A$6:$H$228,8,0)","v":47},229080,{"$f":"VLOOKUP($A157,[8]CHD06!$E$15:$O$225,5,0)","v":3928},{"$f":"VLOOKUP($A157,[8]CHD06!$E$15:$O$225,10,0)","v":4492},{"$f":"VLOOKUP($A157,[8]CHD08!$E$15:$O$225,5,0)","v":3197},{"$f":"VLOOKUP($A157,[8]CHD08!$E$15:$O$225,10,0)","v":4493},{"$f":"VLOOKUP($A157,[9]BP05!$E$14:$O$225,5,0)","v":16907},{"$f":"VLOOKUP($A157,[9]BP05!$E$14:$O$225,10,0)","v":22030},{"$f":"VLOOKUP($A157,[10]CKD03!$E$14:$O$225,5,0)","v":2581},{"$f":"VLOOKUP($A157,[10]CKD03!$E$14:$O$225,10,0)","v":3566},{"$f":"VLOOKUP($A157,[11]PAD03!$E$14:$O$225,5,0)","v":759},{"$f":"VLOOKUP($A157,[11]PAD03!$E$14:$O$225,10,0)","v":872},{"$f":"VLOOKUP($A157,[11]PAD04!$E$14:$O$225,5,0)","v":613},{"$f":"VLOOKUP($A157,[11]PAD04!$E$14:$O$225,10,0)","v":871},{"$f":"VLOOKUP($A157,[12]STROKE06!$E$14:$O$225,5,0)","v":2122},{"$f":"VLOOKUP($A157,[12]STROKE06!$E$14:$O$225,10,0)","v":2535},{"$f":"VLOOKUP($A157,[12]STROKE08!$E$14:$O$225,5,0)","v":1665},{"$f":"VLOOKUP($A157,[12]STROKE08!$E$14:$O$225,10,0)","v":2537},null,null,null,null,null,null,null,null,null,null,null,null,null,null,{"$f":"VLOOKUP($A157,[3]CHD!$E$14:$BS$226,29,0)","v":3879},{"$f":"VLOOKUP($A157,[3]CHD!$E$14:$BS$226,34,0)","v":4413},{"$f":"VLOOKUP($A157,[3]CHD!$E$14:$BS$226,37,0)","v":3105},{"$f":"VLOOKUP($A157,[3]CHD!$E$14:$BS$226,42,0)","v":4413},{"$f":"VLOOKUP($A157,[3]HYP!$E$14:$BK$226,29,0)","v":17003},{"$f":"VLOOKUP($A157,[3]HYP!$E$14:$BK$226,34,0)","v":22032},{"$f":"VLOOKUP($A157,[3]CKD!$E$14:$BG$230,33,0)","v":2545},{"$f":"VLOOKUP($A157,[3]CKD!$E$14:$BG$230,38,0)","v":3299},{"$f":"VLOOKUP(A157,[3]PAD!$E$14:$BC$226,29,0)","v":707},{"$f":"VLOOKUP($A157,[3]PAD!$E$14:$BC$226,34,0)","v":822},{"$f":"VLOOKUP($A157,[3]PAD!$E$14:$BC$226,37,0)","v":567},{"$f":"VLOOKUP($A157,[3]PAD!$E$14:$BC$226,42,0)","v":822},{"$f":"VLOOKUP($A157,[3]STIA!$E$14:$CA$230,37,0)","v":2103},{"$f":"VLOOKUP($A157,[3]STIA!$E$14:$CA$230,42,0)","v":2521},{"$f":"VLOOKUP($A157,[3]STIA!$E$14:$CA$230,53,0)","v":960},{"$f":"VLOOKUP($A157,[3]STIA!$E$14:$CA$230,58,0)","v":1424}]
["09A","NHS Central London (Westminster)",{"$f":"VLOOKUP($A158,'[6]201314'!$C$19:$J$256,8,0)","v":59},{"$f":"VLOOKUP($A158,'[6]201314'!$C$19:$J$256,7,0)","v":189431},{"$f":"VLOOKUP($A158,[7]Data!$A$6:$H$228,4,0)","v":231},{"$f":"VLOOKUP(A158,[3]CHD!$E$15:$H$226,4,0)","v":190367},{"$f":"VLOOKUP($A158,[7]Data!$A$6:$H$228,3,0)","v":565},190367,{"$f":"VLOOKUP($A158,[7]Data!$A$6:$H$228,5,0)","v":148},190367,{"$f":"VLOOKUP($A158,[7]Data!$A$6:$H$228,6,0)","v":419},190367,{"$f":"VLOOKUP($A158,[7]Data!$A$6:$H$228,7,0)","v":185},190367,{"$f":"VLOOKUP($A158,[7]Data!$A$6:$H$228,8,0)","v":25},190367,{"$f":"VLOOKUP($A158,[8]CHD06!$E$15:$O$225,5,0)","v":3300},{"$f":"VLOOKUP($A158,[8]CHD06!$E$15:$O$225,10,0)","v":3781},{"$f":"VLOOKUP($A158,[8]CHD08!$E$15:$O$225,5,0)","v":2630},{"$f":"VLOOKUP($A158,[8]CHD08!$E$15:$O$225,10,0)","v":3781},{"$f":"VLOOKUP($A158,[9]BP05!$E$14:$O$225,5,0)","v":12157},{"$f":"VLOOKUP($A158,[9]BP05!$E$14:$O$225,10,0)","v":16015},{"$f":"VLOOKUP($A158,[10]CKD03!$E$14:$O$225,5,0)","v":1812},{"$f":"VLOOKUP($A158,[10]CKD03!$E$14:$O$225,10,0)","v":2519},{"$f":"VLOOKUP($A158,[11]PAD03!$E$14:$O$225,5,0)","v":593},{"$f":"VLOOKUP($A158,[11]PAD03!$E$14:$O$225,10,0)","v":680},{"$f":"VLOOKUP($A158,[11]PAD04!$E$14:$O$225,5,0)","v":464},{"$f":"VLOOKUP($A158,[11]PAD04!$E$14:$O$225,10,0)","v":681},{"$f":"VLOOKUP($A158,[12]STROKE06!$E$14:$O$225,5,0)","v":1673},{"$f":"VLOOKUP($A158,[12]STROKE06!$E$14:$O$225,10,0)","v":1957},{"$f":"VLOOKUP($A158,[12]STROKE08!$E$14:$O$225,5,0)","v":1313},{"$f":"VLOOKUP($A158,[12]STROKE08!$E$14:$O$225,10,0)","v":1957},null,null,null,null,null,null,null,null,null,null,null,null,null,null,{"$f":"VLOOKUP($A158,[3]CHD!$E$14:$BS$226,29,0)","v":3297},{"$f":"VLOOKUP($A158,[3]CHD!$E$14:$BS$226,34,0)","v":3738},{"$f":"VLOOKUP($A158,[3]CHD!$E$14:$BS$226,37,0)","v":2633},{"$f":"VLOOKUP($A158,[3]CHD!$E$14:$BS$226,42,0)","v":3736},{"$f":"VLOOKUP($A158,[3]HYP!$E$14:$BK$226,29,0)","v":12460},{"$f":"VLOOKUP($A158,[3]HYP!$E$14:$BK$226,34,0)","v":16153},{"$f":"VLOOKUP($A158,[3]CKD!$E$14:$BG$230,33,0)","v":2056},{"$f":"VLOOKUP($A158,[3]CKD!$E$14:$BG$230,38,0)","v":2643},{"$f":"VLOOKUP(A158,[3]PAD!$E$14:$BC$226,29,0)","v":613},{"$f":"VLOOKUP($A158,[3]PAD!$E$14:$BC$226,34,0)","v":693},{"$f":"VLOOKUP($A158,[3]PAD!$E$14:$BC$226,37,0)","v":468},{"$f":"VLOOKUP($A158,[3]PAD!$E$14:$BC$226,42,0)","v":692},{"$f":"VLOOKUP($A158,[3]STIA!$E$14:$CA$230,37,0)","v":1721},{"$f":"VLOOKUP($A158,[3]STIA!$E$14:$CA$230,42,0)","v":2009},{"$f":"VLOOKUP($A158,[3]STIA!$E$14:$CA$230,53,0)","v":745},{"$f":"VLOOKUP($A158,[3]STIA!$E$14:$CA$230,58,0)","v":1094}]
["09C","NHS Ashford",{"$f":"VLOOKUP($A159,'[6]201314'!$C$19:$J$256,8,0)","v":54},{"$f":"VLOOKUP($A159,'[6]201314'!$C$19:$J$256,7,0)","v":114405},{"$f":"VLOOKUP($A159,[7]Data!$A$6:$H$228,4,0)","v":209},{"$f":"VLOOKUP(A159,[3]CHD!$E$15:$H$226,4,0)","v":122614},{"$f":"VLOOKUP($A159,[7]Data!$A$6:$H$228,3,0)","v":583},122614,{"$f":"VLOOKUP($A159,[7]Data!$A$6:$H$228,5,0)","v":124},122614,{"$f":"VLOOKUP($A159,[7]Data!$A$6:$H$228,6,0)","v":407},122614,{"$f":"VLOOKUP($A159,[7]Data!$A$6:$H$228,7,0)","v":124},122614,{"$f":"VLOOKUP($A159,[7]Data!$A$6:$H$228,8,0)","v":56},122614,{"$f":"VLOOKUP($A159,[8]CHD06!$E$15:$O$225,5,0)","v":3469},{"$f":"VLOOKUP($A159,[8]CHD06!$E$15:$O$225,10,0)","v":3864},{"$f":"VLOOKUP($A159,[8]CHD08!$E$15:$O$225,5,0)","v":2798},{"$f":"VLOOKUP($A159,[8]CHD08!$E$15:$O$225,10,0)","v":3864},{"$f":"VLOOKUP($A159,[9]BP05!$E$14:$O$225,5,0)","v":13766},{"$f":"VLOOKUP($A159,[9]BP05!$E$14:$O$225,10,0)","v":17367},{"$f":"VLOOKUP($A159,[10]CKD03!$E$14:$O$225,5,0)","v":3307},{"$f":"VLOOKUP($A159,[10]CKD03!$E$14:$O$225,10,0)","v":4517},{"$f":"VLOOKUP($A159,[11]PAD03!$E$14:$O$225,5,0)","v":666},{"$f":"VLOOKUP($A159,[11]PAD03!$E$14:$O$225,10,0)","v":761},{"$f":"VLOOKUP($A159,[11]PAD04!$E$14:$O$225,5,0)","v":537},{"$f":"VLOOKUP($A159,[11]PAD04!$E$14:$O$225,10,0)","v":761},{"$f":"VLOOKUP($A159,[12]STROKE06!$E$14:$O$225,5,0)","v":1927},{"$f":"VLOOKUP($A159,[12]STROKE06!$E$14:$O$225,10,0)","v":2202},{"$f":"VLOOKUP($A159,[12]STROKE08!$E$14:$O$225,5,0)","v":1551},{"$f":"VLOOKUP($A159,[12]STROKE08!$E$14:$O$225,10,0)","v":2202},null,null,null,null,null,null,null,null,null,null,null,null,null,null,{"$f":"VLOOKUP($A159,[3]CHD!$E$14:$BS$226,29,0)","v":3483},{"$f":"VLOOKUP($A159,[3]CHD!$E$14:$BS$226,34,0)","v":3920},{"$f":"VLOOKUP($A159,[3]CHD!$E$14:$BS$226,37,0)","v":2770},{"$f":"VLOOKUP($A159,[3]CHD!$E$14:$BS$226,42,0)","v":3921},{"$f":"VLOOKUP($A159,[3]HYP!$E$14:$BK$226,29,0)","v":13944},{"$f":"VLOOKUP($A159,[3]HYP!$E$14:$BK$226,34,0)","v":17718},{"$f":"VLOOKUP($A159,[3]CKD!$E$14:$BG$230,33,0)","v":3634},{"$f":"VLOOKUP($A159,[3]CKD!$E$14:$BG$230,38,0)","v":4894},{"$f":"VLOOKUP(A159,[3]PAD!$E$14:$BC$226,29,0)","v":654},{"$f":"VLOOKUP($A159,[3]PAD!$E$14:$BC$226,34,0)","v":746},{"$f":"VLOOKUP($A159,[3]PAD!$E$14:$BC$226,37,0)","v":505},{"$f":"VLOOKUP($A159,[3]PAD!$E$14:$BC$226,42,0)","v":746},{"$f":"VLOOKUP($A159,[3]STIA!$E$14:$CA$230,37,0)","v":1937},{"$f":"VLOOKUP($A159,[3]STIA!$E$14:$CA$230,42,0)","v":2258},{"$f":"VLOOKUP($A159,[3]STIA!$E$14:$CA$230,53,0)","v":1127},{"$f":"VLOOKUP($A159,[3]STIA!$E$14:$CA$230,58,0)","v":1730}]
["09D","NHS Brighton and Hove",{"$f":"VLOOKUP($A160,'[6]201314'!$C$19:$J$256,8,0)","v":131},{"$f":"VLOOKUP($A160,'[6]201314'!$C$19:$J$256,7,0)","v":282489},{"$f":"VLOOKUP($A160,[7]Data!$A$6:$H$228,4,0)","v":378},{"$f":"VLOOKUP(A160,[3]CHD!$E$15:$H$226,4,0)","v":300503},{"$f":"VLOOKUP($A160,[7]Data!$A$6:$H$228,3,0)","v":1158},300503,{"$f":"VLOOKUP($A160,[7]Data!$A$6:$H$228,5,0)","v":272},300503,{"$f":"VLOOKUP($A160,[7]Data!$A$6:$H$228,6,0)","v":1039},300503,{"$f":"VLOOKUP($A160,[7]Data!$A$6:$H$228,7,0)","v":358},300503,{"$f":"VLOOKUP($A160,[7]Data!$A$6:$H$228,8,0)","v":61},300503,{"$f":"VLOOKUP($A160,[8]CHD06!$E$15:$O$225,5,0)","v":6003},{"$f":"VLOOKUP($A160,[8]CHD06!$E$15:$O$225,10,0)","v":6956},{"$f":"VLOOKUP($A160,[8]CHD08!$E$15:$O$225,5,0)","v":4510},{"$f":"VLOOKUP($A160,[8]CHD08!$E$15:$O$225,10,0)","v":6956},{"$f":"VLOOKUP($A160,[9]BP05!$E$14:$O$225,5,0)","v":22603},{"$f":"VLOOKUP($A160,[9]BP05!$E$14:$O$225,10,0)","v":30121},{"$f":"VLOOKUP($A160,[10]CKD03!$E$14:$O$225,5,0)","v":6588},{"$f":"VLOOKUP($A160,[10]CKD03!$E$14:$O$225,10,0)","v":9155},{"$f":"VLOOKUP($A160,[11]PAD03!$E$14:$O$225,5,0)","v":1265},{"$f":"VLOOKUP($A160,[11]PAD03!$E$14:$O$225,10,0)","v":1523},{"$f":"VLOOKUP($A160,[11]PAD04!$E$14:$O$225,5,0)","v":956},{"$f":"VLOOKUP($A160,[11]PAD04!$E$14:$O$225,10,0)","v":1523},{"$f":"VLOOKUP($A160,[12]STROKE06!$E$14:$O$225,5,0)","v":3113},{"$f":"VLOOKUP($A160,[12]STROKE06!$E$14:$O$225,10,0)","v":3815},{"$f":"VLOOKUP($A160,[12]STROKE08!$E$14:$O$225,5,0)","v":2359},{"$f":"VLOOKUP($A160,[12]STROKE08!$E$14:$O$225,10,0)","v":3815},null,null,null,null,null,null,null,null,null,null,null,null,null,null,{"$f":"VLOOKUP($A160,[3]CHD!$E$14:$BS$226,29,0)","v":5977},{"$f":"VLOOKUP($A160,[3]CHD!$E$14:$BS$226,34,0)","v":6884},{"$f":"VLOOKUP($A160,[3]CHD!$E$14:$BS$226,37,0)","v":4809},{"$f":"VLOOKUP($A160,[3]CHD!$E$14:$BS$226,42,0)","v":6884},{"$f":"VLOOKUP($A160,[3]HYP!$E$14:$BK$226,29,0)","v":23089},{"$f":"VLOOKUP($A160,[3]HYP!$E$14:$BK$226,34,0)","v":30240},{"$f":"VLOOKUP($A160,[3]CKD!$E$14:$BG$230,33,0)","v":6350},{"$f":"VLOOKUP($A160,[3]CKD!$E$14:$BG$230,38,0)","v":8523},{"$f":"VLOOKUP(A160,[3]PAD!$E$14:$BC$226,29,0)","v":1230},{"$f":"VLOOKUP($A160,[3]PAD!$E$14:$BC$226,34,0)","v":1465},{"$f":"VLOOKUP($A160,[3]PAD!$E$14:$BC$226,37,0)","v":1007},{"$f":"VLOOKUP($A160,[3]PAD!$E$14:$BC$226,42,0)","v":1465},{"$f":"VLOOKUP($A160,[3]STIA!$E$14:$CA$230,37,0)","v":3244},{"$f":"VLOOKUP($A160,[3]STIA!$E$14:$CA$230,42,0)","v":3874},{"$f":"VLOOKUP($A160,[3]STIA!$E$14:$CA$230,53,0)","v":1705},{"$f":"VLOOKUP($A160,[3]STIA!$E$14:$CA$230,58,0)","v":2563}]
["09E","NHS Canterbury and Coastal",{"$f":"VLOOKUP($A161,'[6]201314'!$C$19:$J$256,8,0)","v":128},{"$f":"VLOOKUP($A161,'[6]201314'!$C$19:$J$256,7,0)","v":193591},{"$f":"VLOOKUP($A161,[7]Data!$A$6:$H$228,4,0)","v":335},{"$f":"VLOOKUP(A161,[3]CHD!$E$15:$H$226,4,0)","v":214771},{"$f":"VLOOKUP($A161,[7]Data!$A$6:$H$228,3,0)","v":1171},214771,{"$f":"VLOOKUP($A161,[7]Data!$A$6:$H$228,5,0)","v":259},214771,{"$f":"VLOOKUP($A161,[7]Data!$A$6:$H$228,6,0)","v":693},214771,{"$f":"VLOOKUP($A161,[7]Data!$A$6:$H$228,7,0)","v":189},214771,{"$f":"VLOOKUP($A161,[7]Data!$A$6:$H$228,8,0)","v":88},214771,{"$f":"VLOOKUP($A161,[8]CHD06!$E$15:$O$225,5,0)","v":6251},{"$f":"VLOOKUP($A161,[8]CHD06!$E$15:$O$225,10,0)","v":7160},{"$f":"VLOOKUP($A161,[8]CHD08!$E$15:$O$225,5,0)","v":5254},{"$f":"VLOOKUP($A161,[8]CHD08!$E$15:$O$225,10,0)","v":7160},{"$f":"VLOOKUP($A161,[9]BP05!$E$14:$O$225,5,0)","v":22952},{"$f":"VLOOKUP($A161,[9]BP05!$E$14:$O$225,10,0)","v":28902},{"$f":"VLOOKUP($A161,[10]CKD03!$E$14:$O$225,5,0)","v":5634},{"$f":"VLOOKUP($A161,[10]CKD03!$E$14:$O$225,10,0)","v":7847},{"$f":"VLOOKUP($A161,[11]PAD03!$E$14:$O$225,5,0)","v":1080},{"$f":"VLOOKUP($A161,[11]PAD03!$E$14:$O$225,10,0)","v":1246},{"$f":"VLOOKUP($A161,[11]PAD04!$E$14:$O$225,5,0)","v":919},{"$f":"VLOOKUP($A161,[11]PAD04!$E$14:$O$225,10,0)","v":1246},{"$f":"VLOOKUP($A161,[12]STROKE06!$E$14:$O$225,5,0)","v":3399},{"$f":"VLOOKUP($A161,[12]STROKE06!$E$14:$O$225,10,0)","v":3990},{"$f":"VLOOKUP($A161,[12]STROKE08!$E$14:$O$225,5,0)","v":2816},{"$f":"VLOOKUP($A161,[12]STROKE08!$E$14:$O$225,10,0)","v":3990},null,null,null,null,null,null,null,null,null,null,null,null,null,null,{"$f":"VLOOKUP($A161,[3]CHD!$E$14:$BS$226,29,0)","v":6315},{"$f":"VLOOKUP($A161,[3]CHD!$E$14:$BS$226,34,0)","v":7086},{"$f":"VLOOKUP($A161,[3]CHD!$E$14:$BS$226,37,0)","v":5292},{"$f":"VLOOKUP($A161,[3]CHD!$E$14:$BS$226,42,0)","v":7089},{"$f":"VLOOKUP($A161,[3]HYP!$E$14:$BK$226,29,0)","v":24287},{"$f":"VLOOKUP($A161,[3]HYP!$E$14:$BK$226,34,0)","v":29838},{"$f":"VLOOKUP($A161,[3]CKD!$E$14:$BG$230,33,0)","v":6441},{"$f":"VLOOKUP($A161,[3]CKD!$E$14:$BG$230,38,0)","v":8374},{"$f":"VLOOKUP(A161,[3]PAD!$E$14:$BC$226,29,0)","v":1035},{"$f":"VLOOKUP($A161,[3]PAD!$E$14:$BC$226,34,0)","v":1219},{"$f":"VLOOKUP($A161,[3]PAD!$E$14:$BC$226,37,0)","v":832},{"$f":"VLOOKUP($A161,[3]PAD!$E$14:$BC$226,42,0)","v":1219},{"$f":"VLOOKUP($A161,[3]STIA!$E$14:$CA$230,37,0)","v":3480},{"$f":"VLOOKUP($A161,[3]STIA!$E$14:$CA$230,42,0)","v":4041},{"$f":"VLOOKUP($A161,[3]STIA!$E$14:$CA$230,53,0)","v":2404},{"$f":"VLOOKUP($A161,[3]STIA!$E$14:$CA$230,58,0)","v":3448}]
["09F","NHS Eastbourne, Hailsham and Seaford",{"$f":"VLOOKUP($A162,'[6]201314'!$C$19:$J$256,8,0)","v":122},{"$f":"VLOOKUP($A162,'[6]201314'!$C$19:$J$256,7,0)","v":162587},{"$f":"VLOOKUP($A162,[7]Data!$A$6:$H$228,4,0)","v":377},{"$f":"VLOOKUP(A162,[3]CHD!$E$15:$H$226,4,0)","v":187058},{"$f":"VLOOKUP($A162,[7]Data!$A$6:$H$228,3,0)","v":1197},187058,{"$f":"VLOOKUP($A162,[7]Data!$A$6:$H$228,5,0)","v":212},187058,{"$f":"VLOOKUP($A162,[7]Data!$A$6:$H$228,6,0)","v":866},187058,{"$f":"VLOOKUP($A162,[7]Data!$A$6:$H$228,7,0)","v":320},187058,{"$f":"VLOOKUP($A162,[7]Data!$A$6:$H$228,8,0)","v":82},187058,{"$f":"VLOOKUP($A162,[8]CHD06!$E$15:$O$225,5,0)","v":7142},{"$f":"VLOOKUP($A162,[8]CHD06!$E$15:$O$225,10,0)","v":8284},{"$f":"VLOOKUP($A162,[8]CHD08!$E$15:$O$225,5,0)","v":6008},{"$f":"VLOOKUP($A162,[8]CHD08!$E$15:$O$225,10,0)","v":8284},{"$f":"VLOOKUP($A162,[9]BP05!$E$14:$O$225,5,0)","v":25083},{"$f":"VLOOKUP($A162,[9]BP05!$E$14:$O$225,10,0)","v":32838},{"$f":"VLOOKUP($A162,[10]CKD03!$E$14:$O$225,5,0)","v":6926},{"$f":"VLOOKUP($A162,[10]CKD03!$E$14:$O$225,10,0)","v":9839},{"$f":"VLOOKUP($A162,[11]PAD03!$E$14:$O$225,5,0)","v":1324},{"$f":"VLOOKUP($A162,[11]PAD03!$E$14:$O$225,10,0)","v":1569},{"$f":"VLOOKUP($A162,[11]PAD04!$E$14:$O$225,5,0)","v":1028},{"$f":"VLOOKUP($A162,[11]PAD04!$E$14:$O$225,10,0)","v":1569},{"$f":"VLOOKUP($A162,[12]STROKE06!$E$14:$O$225,5,0)","v":4042},{"$f":"VLOOKUP($A162,[12]STROKE06!$E$14:$O$225,10,0)","v":4780},{"$f":"VLOOKUP($A162,[12]STROKE08!$E$14:$O$225,5,0)","v":3192},{"$f":"VLOOKUP($A162,[12]STROKE08!$E$14:$O$225,10,0)","v":4780},null,null,null,null,null,null,null,null,null,null,null,null,null,null,{"$f":"VLOOKUP($A162,[3]CHD!$E$14:$BS$226,29,0)","v":7115},{"$f":"VLOOKUP($A162,[3]CHD!$E$14:$BS$226,34,0)","v":8156},{"$f":"VLOOKUP($A162,[3]CHD!$E$14:$BS$226,37,0)","v":5952},{"$f":"VLOOKUP($A162,[3]CHD!$E$14:$BS$226,42,0)","v":8156},{"$f":"VLOOKUP($A162,[3]HYP!$E$14:$BK$226,29,0)","v":26053},{"$f":"VLOOKUP($A162,[3]HYP!$E$14:$BK$226,34,0)","v":33167},{"$f":"VLOOKUP($A162,[3]CKD!$E$14:$BG$230,33,0)","v":7208},{"$f":"VLOOKUP($A162,[3]CKD!$E$14:$BG$230,38,0)","v":9641},{"$f":"VLOOKUP(A162,[3]PAD!$E$14:$BC$226,29,0)","v":1282},{"$f":"VLOOKUP($A162,[3]PAD!$E$14:$BC$226,34,0)","v":1547},{"$f":"VLOOKUP($A162,[3]PAD!$E$14:$BC$226,37,0)","v":1045},{"$f":"VLOOKUP($A162,[3]PAD!$E$14:$BC$226,42,0)","v":1547},{"$f":"VLOOKUP($A162,[3]STIA!$E$14:$CA$230,37,0)","v":4112},{"$f":"VLOOKUP($A162,[3]STIA!$E$14:$CA$230,42,0)","v":4841},{"$f":"VLOOKUP($A162,[3]STIA!$E$14:$CA$230,53,0)","v":2310},{"$f":"VLOOKUP($A162,[3]STIA!$E$14:$CA$230,58,0)","v":3447}]
["09G","NHS Coastal West Sussex",{"$f":"VLOOKUP($A163,'[6]201314'!$C$19:$J$256,8,0)","v":310},{"$f":"VLOOKUP($A163,'[6]201314'!$C$19:$J$256,7,0)","v":432060},{"$f":"VLOOKUP($A163,[7]Data!$A$6:$H$228,4,0)","v":967},{"$f":"VLOOKUP(A163,[3]CHD!$E$15:$H$226,4,0)","v":491884},{"$f":"VLOOKUP($A163,[7]Data!$A$6:$H$228,3,0)","v":3038},491884,{"$f":"VLOOKUP($A163,[7]Data!$A$6:$H$228,5,0)","v":800},491884,{"$f":"VLOOKUP($A163,[7]Data!$A$6:$H$228,6,0)","v":2470},491884,{"$f":"VLOOKUP($A163,[7]Data!$A$6:$H$228,7,0)","v":797},491884,{"$f":"VLOOKUP($A163,[7]Data!$A$6:$H$228,8,0)","v":230},491884,{"$f":"VLOOKUP($A163,[8]CHD06!$E$15:$O$225,5,0)","v":18160},{"$f":"VLOOKUP($A163,[8]CHD06!$E$15:$O$225,10,0)","v":21147},{"$f":"VLOOKUP($A163,[8]CHD08!$E$15:$O$225,5,0)","v":14317},{"$f":"VLOOKUP($A163,[8]CHD08!$E$15:$O$225,10,0)","v":21147},{"$f":"VLOOKUP($A163,[9]BP05!$E$14:$O$225,5,0)","v":57708},{"$f":"VLOOKUP($A163,[9]BP05!$E$14:$O$225,10,0)","v":77857},{"$f":"VLOOKUP($A163,[10]CKD03!$E$14:$O$225,5,0)","v":12405},{"$f":"VLOOKUP($A163,[10]CKD03!$E$14:$O$225,10,0)","v":18679},{"$f":"VLOOKUP($A163,[11]PAD03!$E$14:$O$225,5,0)","v":2923},{"$f":"VLOOKUP($A163,[11]PAD03!$E$14:$O$225,10,0)","v":3544},{"$f":"VLOOKUP($A163,[11]PAD04!$E$14:$O$225,5,0)","v":2249},{"$f":"VLOOKUP($A163,[11]PAD04!$E$14:$O$225,10,0)","v":3544},{"$f":"VLOOKUP($A163,[12]STROKE06!$E$14:$O$225,5,0)","v":8853},{"$f":"VLOOKUP($A163,[12]STROKE06!$E$14:$O$225,10,0)","v":10710},{"$f":"VLOOKUP($A163,[12]STROKE08!$E$14:$O$225,5,0)","v":6674},{"$f":"VLOOKUP($A163,[12]STROKE08!$E$14:$O$225,10,0)","v":10710},null,null,null,null,null,null,null,null,null,null,null,null,null,null,{"$f":"VLOOKUP($A163,[3]CHD!$E$14:$BS$226,29,0)","v":18162},{"$f":"VLOOKUP($A163,[3]CHD!$E$14:$BS$226,34,0)","v":21018},{"$f":"VLOOKUP($A163,[3]CHD!$E$14:$BS$226,37,0)","v":14153},{"$f":"VLOOKUP($A163,[3]CHD!$E$14:$BS$226,42,0)","v":21018},{"$f":"VLOOKUP($A163,[3]HYP!$E$14:$BK$226,29,0)","v":60442},{"$f":"VLOOKUP($A163,[3]HYP!$E$14:$BK$226,34,0)","v":79061},{"$f":"VLOOKUP($A163,[3]CKD!$E$14:$BG$230,33,0)","v":13685},{"$f":"VLOOKUP($A163,[3]CKD!$E$14:$BG$230,38,0)","v":19435},{"$f":"VLOOKUP(A163,[3]PAD!$E$14:$BC$226,29,0)","v":2933},{"$f":"VLOOKUP($A163,[3]PAD!$E$14:$BC$226,34,0)","v":3546},{"$f":"VLOOKUP($A163,[3]PAD!$E$14:$BC$226,37,0)","v":2258},{"$f":"VLOOKUP($A163,[3]PAD!$E$14:$BC$226,42,0)","v":3546},{"$f":"VLOOKUP($A163,[3]STIA!$E$14:$CA$230,37,0)","v":9084},{"$f":"VLOOKUP($A163,[3]STIA!$E$14:$CA$230,42,0)","v":10982},{"$f":"VLOOKUP($A163,[3]STIA!$E$14:$CA$230,53,0)","v":4287},{"$f":"VLOOKUP($A163,[3]STIA!$E$14:$CA$230,58,0)","v":7027}]
["09H","NHS Crawley",{"$f":"VLOOKUP($A164,'[6]201314'!$C$19:$J$256,8,0)","v":53},{"$f":"VLOOKUP($A164,'[6]201314'!$C$19:$J$256,7,0)","v":118812},{"$f":"VLOOKUP($A164,[7]Data!$A$6:$H$228,4,0)","v":151},{"$f":"VLOOKUP(A164,[3]CHD!$E$15:$H$226,4,0)","v":127278},{"$f":"VLOOKUP($A164,[7]Data!$A$6:$H$228,3,0)","v":505},127278,{"$f":"VLOOKUP($A164,[7]Data!$A$6:$H$228,5,0)","v":96},127278,{"$f":"VLOOKUP($A164,[7]Data!$A$6:$H$228,6,0)","v":349},127278,{"$f":"VLOOKUP($A164,[7]Data!$A$6:$H$228,7,0)","v":168},127278,{"$f":"VLOOKUP($A164,[7]Data!$A$6:$H$228,8,0)","v":48},127278,{"$f":"VLOOKUP($A164,[8]CHD06!$E$15:$O$225,5,0)","v":3248},{"$f":"VLOOKUP($A164,[8]CHD06!$E$15:$O$225,10,0)","v":3668},{"$f":"VLOOKUP($A164,[8]CHD08!$E$15:$O$225,5,0)","v":2570},{"$f":"VLOOKUP($A164,[8]CHD08!$E$15:$O$225,10,0)","v":3668},{"$f":"VLOOKUP($A164,[9]BP05!$E$14:$O$225,5,0)","v":11663},{"$f":"VLOOKUP($A164,[9]BP05!$E$14:$O$225,10,0)","v":14914},{"$f":"VLOOKUP($A164,[10]CKD03!$E$14:$O$225,5,0)","v":3196},{"$f":"VLOOKUP($A164,[10]CKD03!$E$14:$O$225,10,0)","v":4497},{"$f":"VLOOKUP($A164,[11]PAD03!$E$14:$O$225,5,0)","v":485},{"$f":"VLOOKUP($A164,[11]PAD03!$E$14:$O$225,10,0)","v":562},{"$f":"VLOOKUP($A164,[11]PAD04!$E$14:$O$225,5,0)","v":364},{"$f":"VLOOKUP($A164,[11]PAD04!$E$14:$O$225,10,0)","v":562},{"$f":"VLOOKUP($A164,[12]STROKE06!$E$14:$O$225,5,0)","v":1540},{"$f":"VLOOKUP($A164,[12]STROKE06!$E$14:$O$225,10,0)","v":1805},{"$f":"VLOOKUP($A164,[12]STROKE08!$E$14:$O$225,5,0)","v":1181},{"$f":"VLOOKUP($A164,[12]STROKE08!$E$14:$O$225,10,0)","v":1805},null,null,null,null,null,null,null,null,null,null,null,null,null,null,{"$f":"VLOOKUP($A164,[3]CHD!$E$14:$BS$226,29,0)","v":3207},{"$f":"VLOOKUP($A164,[3]CHD!$E$14:$BS$226,34,0)","v":3638},{"$f":"VLOOKUP($A164,[3]CHD!$E$14:$BS$226,37,0)","v":2729},{"$f":"VLOOKUP($A164,[3]CHD!$E$14:$BS$226,42,0)","v":3622},{"$f":"VLOOKUP($A164,[3]HYP!$E$14:$BK$226,29,0)","v":12021},{"$f":"VLOOKUP($A164,[3]HYP!$E$14:$BK$226,34,0)","v":15136},{"$f":"VLOOKUP($A164,[3]CKD!$E$14:$BG$230,33,0)","v":3322},{"$f":"VLOOKUP($A164,[3]CKD!$E$14:$BG$230,38,0)","v":4545},{"$f":"VLOOKUP(A164,[3]PAD!$E$14:$BC$226,29,0)","v":465},{"$f":"VLOOKUP($A164,[3]PAD!$E$14:$BC$226,34,0)","v":546},{"$f":"VLOOKUP($A164,[3]PAD!$E$14:$BC$226,37,0)","v":389},{"$f":"VLOOKUP($A164,[3]PAD!$E$14:$BC$226,42,0)","v":546},{"$f":"VLOOKUP($A164,[3]STIA!$E$14:$CA$230,37,0)","v":1492},{"$f":"VLOOKUP($A164,[3]STIA!$E$14:$CA$230,42,0)","v":1762},{"$f":"VLOOKUP($A164,[3]STIA!$E$14:$CA$230,53,0)","v":810},{"$f":"VLOOKUP($A164,[3]STIA!$E$14:$CA$230,58,0)","v":1137}]
["09J","NHS Dartford, Gravesham and Swanley",{"$f":"VLOOKUP($A165,'[6]201314'!$C$19:$J$256,8,0)","v":168},{"$f":"VLOOKUP($A165,'[6]201314'!$C$19:$J$256,7,0)","v":228938},{"$f":"VLOOKUP($A165,[7]Data!$A$6:$H$228,4,0)","v":275},{"$f":"VLOOKUP(A165,[3]CHD!$E$15:$H$226,4,0)","v":250681},{"$f":"VLOOKUP($A165,[7]Data!$A$6:$H$228,3,0)","v":1066},250681,{"$f":"VLOOKUP($A165,[7]Data!$A$6:$H$228,5,0)","v":171},250681,{"$f":"VLOOKUP($A165,[7]Data!$A$6:$H$228,6,0)","v":686},250681,{"$f":"VLOOKUP($A165,[7]Data!$A$6:$H$228,7,0)","v":340},250681,{"$f":"VLOOKUP($A165,[7]Data!$A$6:$H$228,8,0)","v":63},250681,{"$f":"VLOOKUP($A165,[8]CHD06!$E$15:$O$225,5,0)","v":6528},{"$f":"VLOOKUP($A165,[8]CHD06!$E$15:$O$225,10,0)","v":7510},{"$f":"VLOOKUP($A165,[8]CHD08!$E$15:$O$225,5,0)","v":5428},{"$f":"VLOOKUP($A165,[8]CHD08!$E$15:$O$225,10,0)","v":7510},{"$f":"VLOOKUP($A165,[9]BP05!$E$14:$O$225,5,0)","v":28599},{"$f":"VLOOKUP($A165,[9]BP05!$E$14:$O$225,10,0)","v":37005},{"$f":"VLOOKUP($A165,[10]CKD03!$E$14:$O$225,5,0)","v":10552},{"$f":"VLOOKUP($A165,[10]CKD03!$E$14:$O$225,10,0)","v":15272},{"$f":"VLOOKUP($A165,[11]PAD03!$E$14:$O$225,5,0)","v":1162},{"$f":"VLOOKUP($A165,[11]PAD03!$E$14:$O$225,10,0)","v":1360},{"$f":"VLOOKUP($A165,[11]PAD04!$E$14:$O$225,5,0)","v":918},{"$f":"VLOOKUP($A165,[11]PAD04!$E$14:$O$225,10,0)","v":1360},{"$f":"VLOOKUP($A165,[12]STROKE06!$E$14:$O$225,5,0)","v":3269},{"$f":"VLOOKUP($A165,[12]STROKE06!$E$14:$O$225,10,0)","v":3890},{"$f":"VLOOKUP($A165,[12]STROKE08!$E$14:$O$225,5,0)","v":2553},{"$f":"VLOOKUP($A165,[12]STROKE08!$E$14:$O$225,10,0)","v":3890},null,null,null,null,null,null,null,null,null,null,null,null,null,null,{"$f":"VLOOKUP($A165,[3]CHD!$E$14:$BS$226,29,0)","v":6582},{"$f":"VLOOKUP($A165,[3]CHD!$E$14:$BS$226,34,0)","v":7442},{"$f":"VLOOKUP($A165,[3]CHD!$E$14:$BS$226,37,0)","v":5448},{"$f":"VLOOKUP($A165,[3]CHD!$E$14:$BS$226,42,0)","v":7442},{"$f":"VLOOKUP($A165,[3]HYP!$E$14:$BK$226,29,0)","v":29718},{"$f":"VLOOKUP($A165,[3]HYP!$E$14:$BK$226,34,0)","v":37305},{"$f":"VLOOKUP($A165,[3]CKD!$E$14:$BG$230,33,0)","v":9077},{"$f":"VLOOKUP($A165,[3]CKD!$E$14:$BG$230,38,0)","v":12132},{"$f":"VLOOKUP(A165,[3]PAD!$E$14:$BC$226,29,0)","v":1121},{"$f":"VLOOKUP($A165,[3]PAD!$E$14:$BC$226,34,0)","v":1301},{"$f":"VLOOKUP($A165,[3]PAD!$E$14:$BC$226,37,0)","v":901},{"$f":"VLOOKUP($A165,[3]PAD!$E$14:$BC$226,42,0)","v":1301},{"$f":"VLOOKUP($A165,[3]STIA!$E$14:$CA$230,37,0)","v":3350},{"$f":"VLOOKUP($A165,[3]STIA!$E$14:$CA$230,42,0)","v":3931},{"$f":"VLOOKUP($A165,[3]STIA!$E$14:$CA$230,53,0)","v":2057},{"$f":"VLOOKUP($A165,[3]STIA!$E$14:$CA$230,58,0)","v":3049}]
["09L","NHS East Surrey",{"$f":"VLOOKUP($A166,'[6]201314'!$C$19:$J$256,8,0)","v":76},{"$f":"VLOOKUP($A166,'[6]201314'!$C$19:$J$256,7,0)","v":158889},{"$f":"VLOOKUP($A166,[7]Data!$A$6:$H$228,4,0)","v":212},{"$f":"VLOOKUP(A166,[3]CHD!$E$15:$H$226,4,0)","v":172367},{"$f":"VLOOKUP($A166,[7]Data!$A$6:$H$228,3,0)","v":729},172367,{"$f":"VLOOKUP($A166,[7]Data!$A$6:$H$228,5,0)","v":178},172367,{"$f":"VLOOKUP($A166,[7]Data!$A$6:$H$228,6,0)","v":534},172367,{"$f":"VLOOKUP($A166,[7]Data!$A$6:$H$228,7,0)","v":245},172367,{"$f":"VLOOKUP($A166,[7]Data!$A$6:$H$228,8,0)","v":76},172367,{"$f":"VLOOKUP($A166,[8]CHD06!$E$15:$O$225,5,0)","v":4358},{"$f":"VLOOKUP($A166,[8]CHD06!$E$15:$O$225,10,0)","v":5035},{"$f":"VLOOKUP($A166,[8]CHD08!$E$15:$O$225,5,0)","v":3432},{"$f":"VLOOKUP($A166,[8]CHD08!$E$15:$O$225,10,0)","v":5035},{"$f":"VLOOKUP($A166,[9]BP05!$E$14:$O$225,5,0)","v":16023},{"$f":"VLOOKUP($A166,[9]BP05!$E$14:$O$225,10,0)","v":21321},{"$f":"VLOOKUP($A166,[10]CKD03!$E$14:$O$225,5,0)","v":3684},{"$f":"VLOOKUP($A166,[10]CKD03!$E$14:$O$225,10,0)","v":5308},{"$f":"VLOOKUP($A166,[11]PAD03!$E$14:$O$225,5,0)","v":752},{"$f":"VLOOKUP($A166,[11]PAD03!$E$14:$O$225,10,0)","v":907},{"$f":"VLOOKUP($A166,[11]PAD04!$E$14:$O$225,5,0)","v":565},{"$f":"VLOOKUP($A166,[11]PAD04!$E$14:$O$225,10,0)","v":907},{"$f":"VLOOKUP($A166,[12]STROKE06!$E$14:$O$225,5,0)","v":2313},{"$f":"VLOOKUP($A166,[12]STROKE06!$E$14:$O$225,10,0)","v":2769},{"$f":"VLOOKUP($A166,[12]STROKE08!$E$14:$O$225,5,0)","v":1673},{"$f":"VLOOKUP($A166,[12]STROKE08!$E$14:$O$225,10,0)","v":2769},null,null,null,null,null,null,null,null,null,null,null,null,null,null,{"$f":"VLOOKUP($A166,[3]CHD!$E$14:$BS$226,29,0)","v":4393},{"$f":"VLOOKUP($A166,[3]CHD!$E$14:$BS$226,34,0)","v":4996},{"$f":"VLOOKUP($A166,[3]CHD!$E$14:$BS$226,37,0)","v":3591},{"$f":"VLOOKUP($A166,[3]CHD!$E$14:$BS$226,42,0)","v":4996},{"$f":"VLOOKUP($A166,[3]HYP!$E$14:$BK$226,29,0)","v":16924},{"$f":"VLOOKUP($A166,[3]HYP!$E$14:$BK$226,34,0)","v":21477},{"$f":"VLOOKUP($A166,[3]CKD!$E$14:$BG$230,33,0)","v":3878},{"$f":"VLOOKUP($A166,[3]CKD!$E$14:$BG$230,38,0)","v":5137},{"$f":"VLOOKUP(A166,[3]PAD!$E$14:$BC$226,29,0)","v":769},{"$f":"VLOOKUP($A166,[3]PAD!$E$14:$BC$226,34,0)","v":880},{"$f":"VLOOKUP($A166,[3]PAD!$E$14:$BC$226,37,0)","v":577},{"$f":"VLOOKUP($A166,[3]PAD!$E$14:$BC$226,42,0)","v":880},{"$f":"VLOOKUP($A166,[3]STIA!$E$14:$CA$230,37,0)","v":2382},{"$f":"VLOOKUP($A166,[3]STIA!$E$14:$CA$230,42,0)","v":2792},{"$f":"VLOOKUP($A166,[3]STIA!$E$14:$CA$230,53,0)","v":1209},{"$f":"VLOOKUP($A166,[3]STIA!$E$14:$CA$230,58,0)","v":1825}]
["09N","NHS Guildford and Waverley",{"$f":"VLOOKUP($A167,'[6]201314'!$C$19:$J$256,8,0)","v":83},{"$f":"VLOOKUP($A167,'[6]201314'!$C$19:$J$256,7,0)","v":197585},{"$f":"VLOOKUP($A167,[7]Data!$A$6:$H$228,4,0)","v":296},{"$f":"VLOOKUP(A167,[3]CHD!$E$15:$H$226,4,0)","v":216037},{"$f":"VLOOKUP($A167,[7]Data!$A$6:$H$228,3,0)","v":824},216037,{"$f":"VLOOKUP($A167,[7]Data!$A$6:$H$228,5,0)","v":137},216037,{"$f":"VLOOKUP($A167,[7]Data!$A$6:$H$228,6,0)","v":615},216037,{"$f":"VLOOKUP($A167,[7]Data!$A$6:$H$228,7,0)","v":241},216037,{"$f":"VLOOKUP($A167,[7]Data!$A$6:$H$228,8,0)","v":44},216037,{"$f":"VLOOKUP($A167,[8]CHD06!$E$15:$O$225,5,0)","v":4997},{"$f":"VLOOKUP($A167,[8]CHD06!$E$15:$O$225,10,0)","v":5728},{"$f":"VLOOKUP($A167,[8]CHD08!$E$15:$O$225,5,0)","v":4157},{"$f":"VLOOKUP($A167,[8]CHD08!$E$15:$O$225,10,0)","v":5728},{"$f":"VLOOKUP($A167,[9]BP05!$E$14:$O$225,5,0)","v":20892},{"$f":"VLOOKUP($A167,[9]BP05!$E$14:$O$225,10,0)","v":27072},{"$f":"VLOOKUP($A167,[10]CKD03!$E$14:$O$225,5,0)","v":4811},{"$f":"VLOOKUP($A167,[10]CKD03!$E$14:$O$225,10,0)","v":6720},{"$f":"VLOOKUP($A167,[11]PAD03!$E$14:$O$225,5,0)","v":790},{"$f":"VLOOKUP($A167,[11]PAD03!$E$14:$O$225,10,0)","v":935},{"$f":"VLOOKUP($A167,[11]PAD04!$E$14:$O$225,5,0)","v":617},{"$f":"VLOOKUP($A167,[11]PAD04!$E$14:$O$225,10,0)","v":935},{"$f":"VLOOKUP($A167,[12]STROKE06!$E$14:$O$225,5,0)","v":2687},{"$f":"VLOOKUP($A167,[12]STROKE06!$E$14:$O$225,10,0)","v":3151},{"$f":"VLOOKUP($A167,[12]STROKE08!$E$14:$O$225,5,0)","v":2100},{"$f":"VLOOKUP($A167,[12]STROKE08!$E$14:$O$225,10,0)","v":3151},null,null,null,null,null,null,null,null,null,null,null,null,null,null,{"$f":"VLOOKUP($A167,[3]CHD!$E$14:$BS$226,29,0)","v":4949},{"$f":"VLOOKUP($A167,[3]CHD!$E$14:$BS$226,34,0)","v":5591},{"$f":"VLOOKUP($A167,[3]CHD!$E$14:$BS$226,37,0)","v":4080},{"$f":"VLOOKUP($A167,[3]CHD!$E$14:$BS$226,42,0)","v":5591},{"$f":"VLOOKUP($A167,[3]HYP!$E$14:$BK$226,29,0)","v":21112},{"$f":"VLOOKUP($A167,[3]HYP!$E$14:$BK$226,34,0)","v":27136},{"$f":"VLOOKUP($A167,[3]CKD!$E$14:$BG$230,33,0)","v":4610},{"$f":"VLOOKUP($A167,[3]CKD!$E$14:$BG$230,38,0)","v":6238},{"$f":"VLOOKUP(A167,[3]PAD!$E$14:$BC$226,29,0)","v":768},{"$f":"VLOOKUP($A167,[3]PAD!$E$14:$BC$226,34,0)","v":906},{"$f":"VLOOKUP($A167,[3]PAD!$E$14:$BC$226,37,0)","v":605},{"$f":"VLOOKUP($A167,[3]PAD!$E$14:$BC$226,42,0)","v":906},{"$f":"VLOOKUP($A167,[3]STIA!$E$14:$CA$230,37,0)","v":2608},{"$f":"VLOOKUP($A167,[3]STIA!$E$14:$CA$230,42,0)","v":3088},{"$f":"VLOOKUP($A167,[3]STIA!$E$14:$CA$230,53,0)","v":1190},{"$f":"VLOOKUP($A167,[3]STIA!$E$14:$CA$230,58,0)","v":1813}]
["09P","NHS Hastings and Rother",{"$f":"VLOOKUP($A168,'[6]201314'!$C$19:$J$256,8,0)","v":136},{"$f":"VLOOKUP($A168,'[6]201314'!$C$19:$J$256,7,0)","v":162484},{"$f":"VLOOKUP($A168,[7]Data!$A$6:$H$228,4,0)","v":416},{"$f":"VLOOKUP(A168,[3]CHD!$E$15:$H$226,4,0)","v":183555},{"$f":"VLOOKUP($A168,[7]Data!$A$6:$H$228,3,0)","v":1160},183555,{"$f":"VLOOKUP($A168,[7]Data!$A$6:$H$228,5,0)","v":286},183555,{"$f":"VLOOKUP($A168,[7]Data!$A$6:$H$228,6,0)","v":901},183555,{"$f":"VLOOKUP($A168,[7]Data!$A$6:$H$228,7,0)","v":424},183555,{"$f":"VLOOKUP($A168,[7]Data!$A$6:$H$228,8,0)","v":80},183555,{"$f":"VLOOKUP($A168,[8]CHD06!$E$15:$O$225,5,0)","v":6761},{"$f":"VLOOKUP($A168,[8]CHD06!$E$15:$O$225,10,0)","v":7586},{"$f":"VLOOKUP($A168,[8]CHD08!$E$15:$O$225,5,0)","v":5651},{"$f":"VLOOKUP($A168,[8]CHD08!$E$15:$O$225,10,0)","v":7586},{"$f":"VLOOKUP($A168,[9]BP05!$E$14:$O$225,5,0)","v":24658},{"$f":"VLOOKUP($A168,[9]BP05!$E$14:$O$225,10,0)","v":31585},{"$f":"VLOOKUP($A168,[10]CKD03!$E$14:$O$225,5,0)","v":4865},{"$f":"VLOOKUP($A168,[10]CKD03!$E$14:$O$225,10,0)","v":6762},{"$f":"VLOOKUP($A168,[11]PAD03!$E$14:$O$225,5,0)","v":1218},{"$f":"VLOOKUP($A168,[11]PAD03!$E$14:$O$225,10,0)","v":1400},{"$f":"VLOOKUP($A168,[11]PAD04!$E$14:$O$225,5,0)","v":968},{"$f":"VLOOKUP($A168,[11]PAD04!$E$14:$O$225,10,0)","v":1400},{"$f":"VLOOKUP($A168,[12]STROKE06!$E$14:$O$225,5,0)","v":3837},{"$f":"VLOOKUP($A168,[12]STROKE06!$E$14:$O$225,10,0)","v":4483},{"$f":"VLOOKUP($A168,[12]STROKE08!$E$14:$O$225,5,0)","v":3057},{"$f":"VLOOKUP($A168,[12]STROKE08!$E$14:$O$225,10,0)","v":4483},null,null,null,null,null,null,null,null,null,null,null,null,null,null,{"$f":"VLOOKUP($A168,[3]CHD!$E$14:$BS$226,29,0)","v":6776},{"$f":"VLOOKUP($A168,[3]CHD!$E$14:$BS$226,34,0)","v":7444},{"$f":"VLOOKUP($A168,[3]CHD!$E$14:$BS$226,37,0)","v":5770},{"$f":"VLOOKUP($A168,[3]CHD!$E$14:$BS$226,42,0)","v":7412},{"$f":"VLOOKUP($A168,[3]HYP!$E$14:$BK$226,29,0)","v":25941},{"$f":"VLOOKUP($A168,[3]HYP!$E$14:$BK$226,34,0)","v":31813},{"$f":"VLOOKUP($A168,[3]CKD!$E$14:$BG$230,33,0)","v":5076},{"$f":"VLOOKUP($A168,[3]CKD!$E$14:$BG$230,38,0)","v":6459},{"$f":"VLOOKUP(A168,[3]PAD!$E$14:$BC$226,29,0)","v":1288},{"$f":"VLOOKUP($A168,[3]PAD!$E$14:$BC$226,34,0)","v":1437},{"$f":"VLOOKUP($A168,[3]PAD!$E$14:$BC$226,37,0)","v":1019},{"$f":"VLOOKUP($A168,[3]PAD!$E$14:$BC$226,42,0)","v":1436},{"$f":"VLOOKUP($A168,[3]STIA!$E$14:$CA$230,37,0)","v":3931},{"$f":"VLOOKUP($A168,[3]STIA!$E$14:$CA$230,42,0)","v":4472},{"$f":"VLOOKUP($A168,[3]STIA!$E$14:$CA$230,53,0)","v":2293},{"$f":"VLOOKUP($A168,[3]STIA!$E$14:$CA$230,58,0)","v":3185}]
["09W","NHS Medway",{"$f":"VLOOKUP($A169,'[6]201314'!$C$19:$J$256,8,0)","v":147},{"$f":"VLOOKUP($A169,'[6]201314'!$C$19:$J$256,7,0)","v":268718},{"$f":"VLOOKUP($A169,[7]Data!$A$6:$H$228,4,0)","v":273},{"$f":"VLOOKUP(A169,[3]CHD!$E$15:$H$226,4,0)","v":284552},{"$f":"VLOOKUP($A169,[7]Data!$A$6:$H$228,3,0)","v":1087},284552,{"$f":"VLOOKUP($A169,[7]Data!$A$6:$H$228,5,0)","v":237},284552,{"$f":"VLOOKUP($A169,[7]Data!$A$6:$H$228,6,0)","v":677},284552,{"$f":"VLOOKUP($A169,[7]Data!$A$6:$H$228,7,0)","v":242},284552,{"$f":"VLOOKUP($A169,[7]Data!$A$6:$H$228,8,0)","v":78},284552,{"$f":"VLOOKUP($A169,[8]CHD06!$E$15:$O$225,5,0)","v":7078},{"$f":"VLOOKUP($A169,[8]CHD06!$E$15:$O$225,10,0)","v":7993},{"$f":"VLOOKUP($A169,[8]CHD08!$E$15:$O$225,5,0)","v":6138},{"$f":"VLOOKUP($A169,[8]CHD08!$E$15:$O$225,10,0)","v":7993},{"$f":"VLOOKUP($A169,[9]BP05!$E$14:$O$225,5,0)","v":32336},{"$f":"VLOOKUP($A169,[9]BP05!$E$14:$O$225,10,0)","v":40826},{"$f":"VLOOKUP($A169,[10]CKD03!$E$14:$O$225,5,0)","v":6475},{"$f":"VLOOKUP($A169,[10]CKD03!$E$14:$O$225,10,0)","v":8692},{"$f":"VLOOKUP($A169,[11]PAD03!$E$14:$O$225,5,0)","v":1229},{"$f":"VLOOKUP($A169,[11]PAD03!$E$14:$O$225,10,0)","v":1421},{"$f":"VLOOKUP($A169,[11]PAD04!$E$14:$O$225,5,0)","v":1008},{"$f":"VLOOKUP($A169,[11]PAD04!$E$14:$O$225,10,0)","v":1421},{"$f":"VLOOKUP($A169,[12]STROKE06!$E$14:$O$225,5,0)","v":3195},{"$f":"VLOOKUP($A169,[12]STROKE06!$E$14:$O$225,10,0)","v":3725},{"$f":"VLOOKUP($A169,[12]STROKE08!$E$14:$O$225,5,0)","v":2736},{"$f":"VLOOKUP($A169,[12]STROKE08!$E$14:$O$225,10,0)","v":3725},null,null,null,null,null,null,null,null,null,null,null,null,null,null,{"$f":"VLOOKUP($A169,[3]CHD!$E$14:$BS$226,29,0)","v":6887},{"$f":"VLOOKUP($A169,[3]CHD!$E$14:$BS$226,34,0)","v":7833},{"$f":"VLOOKUP($A169,[3]CHD!$E$14:$BS$226,37,0)","v":5885},{"$f":"VLOOKUP($A169,[3]CHD!$E$14:$BS$226,42,0)","v":7833},{"$f":"VLOOKUP($A169,[3]HYP!$E$14:$BK$226,29,0)","v":31854},{"$f":"VLOOKUP($A169,[3]HYP!$E$14:$BK$226,34,0)","v":40524},{"$f":"VLOOKUP($A169,[3]CKD!$E$14:$BG$230,33,0)","v":7015},{"$f":"VLOOKUP($A169,[3]CKD!$E$14:$BG$230,38,0)","v":9231},{"$f":"VLOOKUP(A169,[3]PAD!$E$14:$BC$226,29,0)","v":1143},{"$f":"VLOOKUP($A169,[3]PAD!$E$14:$BC$226,34,0)","v":1372},{"$f":"VLOOKUP($A169,[3]PAD!$E$14:$BC$226,37,0)","v":978},{"$f":"VLOOKUP($A169,[3]PAD!$E$14:$BC$226,42,0)","v":1372},{"$f":"VLOOKUP($A169,[3]STIA!$E$14:$CA$230,37,0)","v":3109},{"$f":"VLOOKUP($A169,[3]STIA!$E$14:$CA$230,42,0)","v":3678},{"$f":"VLOOKUP($A169,[3]STIA!$E$14:$CA$230,53,0)","v":1869},{"$f":"VLOOKUP($A169,[3]STIA!$E$14:$CA$230,58,0)","v":2630}]
["09X","NHS Horsham and Mid Sussex",{"$f":"VLOOKUP($A170,'[6]201314'!$C$19:$J$256,8,0)","v":101},{"$f":"VLOOKUP($A170,'[6]201314'!$C$19:$J$256,7,0)","v":206883},{"$f":"VLOOKUP($A170,[7]Data!$A$6:$H$228,4,0)","v":347},{"$f":"VLOOKUP(A170,[3]CHD!$E$15:$H$226,4,0)","v":227353},{"$f":"VLOOKUP($A170,[7]Data!$A$6:$H$228,3,0)","v":1094},227353,{"$f":"VLOOKUP($A170,[7]Data!$A$6:$H$228,5,0)","v":209},227353,{"$f":"VLOOKUP($A170,[7]Data!$A$6:$H$228,6,0)","v":858},227353,{"$f":"VLOOKUP($A170,[7]Data!$A$6:$H$228,7,0)","v":325},227353,{"$f":"VLOOKUP($A170,[7]Data!$A$6:$H$228,8,0)","v":89},227353,{"$f":"VLOOKUP($A170,[8]CHD06!$E$15:$O$225,5,0)","v":5917},{"$f":"VLOOKUP($A170,[8]CHD06!$E$15:$O$225,10,0)","v":6826},{"$f":"VLOOKUP($A170,[8]CHD08!$E$15:$O$225,5,0)","v":4664},{"$f":"VLOOKUP($A170,[8]CHD08!$E$15:$O$225,10,0)","v":6826},{"$f":"VLOOKUP($A170,[9]BP05!$E$14:$O$225,5,0)","v":23998},{"$f":"VLOOKUP($A170,[9]BP05!$E$14:$O$225,10,0)","v":31330},{"$f":"VLOOKUP($A170,[10]CKD03!$E$14:$O$225,5,0)","v":5146},{"$f":"VLOOKUP($A170,[10]CKD03!$E$14:$O$225,10,0)","v":7514},{"$f":"VLOOKUP($A170,[11]PAD03!$E$14:$O$225,5,0)","v":922},{"$f":"VLOOKUP($A170,[11]PAD03!$E$14:$O$225,10,0)","v":1073},{"$f":"VLOOKUP($A170,[11]PAD04!$E$14:$O$225,5,0)","v":661},{"$f":"VLOOKUP($A170,[11]PAD04!$E$14:$O$225,10,0)","v":1073},{"$f":"VLOOKUP($A170,[12]STROKE06!$E$14:$O$225,5,0)","v":3377},{"$f":"VLOOKUP($A170,[12]STROKE06!$E$14:$O$225,10,0)","v":4023},{"$f":"VLOOKUP($A170,[12]STROKE08!$E$14:$O$225,5,0)","v":2436},{"$f":"VLOOKUP($A170,[12]STROKE08!$E$14:$O$225,10,0)","v":4023},null,null,null,null,null,null,null,null,null,null,null,null,null,null,{"$f":"VLOOKUP($A170,[3]CHD!$E$14:$BS$226,29,0)","v":6048},{"$f":"VLOOKUP($A170,[3]CHD!$E$14:$BS$226,34,0)","v":6842},{"$f":"VLOOKUP($A170,[3]CHD!$E$14:$BS$226,37,0)","v":4774},{"$f":"VLOOKUP($A170,[3]CHD!$E$14:$BS$226,42,0)","v":6842},{"$f":"VLOOKUP($A170,[3]HYP!$E$14:$BK$226,29,0)","v":25399},{"$f":"VLOOKUP($A170,[3]HYP!$E$14:$BK$226,34,0)","v":32099},{"$f":"VLOOKUP($A170,[3]CKD!$E$14:$BG$230,33,0)","v":5781},{"$f":"VLOOKUP($A170,[3]CKD!$E$14:$BG$230,38,0)","v":7881},{"$f":"VLOOKUP(A170,[3]PAD!$E$14:$BC$226,29,0)","v":924},{"$f":"VLOOKUP($A170,[3]PAD!$E$14:$BC$226,34,0)","v":1073},{"$f":"VLOOKUP($A170,[3]PAD!$E$14:$BC$226,37,0)","v":698},{"$f":"VLOOKUP($A170,[3]PAD!$E$14:$BC$226,42,0)","v":1073},{"$f":"VLOOKUP($A170,[3]STIA!$E$14:$CA$230,37,0)","v":3499},{"$f":"VLOOKUP($A170,[3]STIA!$E$14:$CA$230,42,0)","v":4127},{"$f":"VLOOKUP($A170,[3]STIA!$E$14:$CA$230,53,0)","v":1823},{"$f":"VLOOKUP($A170,[3]STIA!$E$14:$CA$230,58,0)","v":2974}]
["09Y","NHS North West Surrey",{"$f":"VLOOKUP($A171,'[6]201314'!$C$19:$J$256,8,0)","v":148},{"$f":"VLOOKUP($A171,'[6]201314'!$C$19:$J$256,7,0)","v":325474},{"$f":"VLOOKUP($A171,[7]Data!$A$6:$H$228,4,0)","v":536},{"$f":"VLOOKUP(A171,[3]CHD!$E$15:$H$226,4,0)","v":353222},{"$f":"VLOOKUP($A171,[7]Data!$A$6:$H$228,3,0)","v":1558},353222,{"$f":"VLOOKUP($A171,[7]Data!$A$6:$H$228,5,0)","v":368},353222,{"$f":"VLOOKUP($A171,[7]Data!$A$6:$H$228,6,0)","v":1218},353222,{"$f":"VLOOKUP($A171,[7]Data!$A$6:$H$228,7,0)","v":497},353222,{"$f":"VLOOKUP($A171,[7]Data!$A$6:$H$228,8,0)","v":138},353222,{"$f":"VLOOKUP($A171,[8]CHD06!$E$15:$O$225,5,0)","v":8087},{"$f":"VLOOKUP($A171,[8]CHD06!$E$15:$O$225,10,0)","v":9302},{"$f":"VLOOKUP($A171,[8]CHD08!$E$15:$O$225,5,0)","v":6729},{"$f":"VLOOKUP($A171,[8]CHD08!$E$15:$O$225,10,0)","v":9302},{"$f":"VLOOKUP($A171,[9]BP05!$E$14:$O$225,5,0)","v":34420},{"$f":"VLOOKUP($A171,[9]BP05!$E$14:$O$225,10,0)","v":44859},{"$f":"VLOOKUP($A171,[10]CKD03!$E$14:$O$225,5,0)","v":8525},{"$f":"VLOOKUP($A171,[10]CKD03!$E$14:$O$225,10,0)","v":11716},{"$f":"VLOOKUP($A171,[11]PAD03!$E$14:$O$225,5,0)","v":1416},{"$f":"VLOOKUP($A171,[11]PAD03!$E$14:$O$225,10,0)","v":1675},{"$f":"VLOOKUP($A171,[11]PAD04!$E$14:$O$225,5,0)","v":1132},{"$f":"VLOOKUP($A171,[11]PAD04!$E$14:$O$225,10,0)","v":1675},{"$f":"VLOOKUP($A171,[12]STROKE06!$E$14:$O$225,5,0)","v":4549},{"$f":"VLOOKUP($A171,[12]STROKE06!$E$14:$O$225,10,0)","v":5333},{"$f":"VLOOKUP($A171,[12]STROKE08!$E$14:$O$225,5,0)","v":3584},{"$f":"VLOOKUP($A171,[12]STROKE08!$E$14:$O$225,10,0)","v":5333},null,null,null,null,null,null,null,null,null,null,null,null,null,null,{"$f":"VLOOKUP($A171,[3]CHD!$E$14:$BS$226,29,0)","v":8202},{"$f":"VLOOKUP($A171,[3]CHD!$E$14:$BS$226,34,0)","v":9240},{"$f":"VLOOKUP($A171,[3]CHD!$E$14:$BS$226,37,0)","v":6775},{"$f":"VLOOKUP($A171,[3]CHD!$E$14:$BS$226,42,0)","v":9240},{"$f":"VLOOKUP($A171,[3]HYP!$E$14:$BK$226,29,0)","v":35772},{"$f":"VLOOKUP($A171,[3]HYP!$E$14:$BK$226,34,0)","v":45204},{"$f":"VLOOKUP($A171,[3]CKD!$E$14:$BG$230,33,0)","v":8451},{"$f":"VLOOKUP($A171,[3]CKD!$E$14:$BG$230,38,0)","v":10848},{"$f":"VLOOKUP(A171,[3]PAD!$E$14:$BC$226,29,0)","v":1405},{"$f":"VLOOKUP($A171,[3]PAD!$E$14:$BC$226,34,0)","v":1647},{"$f":"VLOOKUP($A171,[3]PAD!$E$14:$BC$226,37,0)","v":1115},{"$f":"VLOOKUP($A171,[3]PAD!$E$14:$BC$226,42,0)","v":1647},{"$f":"VLOOKUP($A171,[3]STIA!$E$14:$CA$230,37,0)","v":4649},{"$f":"VLOOKUP($A171,[3]STIA!$E$14:$CA$230,42,0)","v":5417},{"$f":"VLOOKUP($A171,[3]STIA!$E$14:$CA$230,53,0)","v":2311},{"$f":"VLOOKUP($A171,[3]STIA!$E$14:$CA$230,58,0)","v":3401}]
["10A","NHS South Kent Coast",{"$f":"VLOOKUP($A172,'[6]201314'!$C$19:$J$256,8,0)","v":144},{"$f":"VLOOKUP($A172,'[6]201314'!$C$19:$J$256,7,0)","v":180510},{"$f":"VLOOKUP($A172,[7]Data!$A$6:$H$228,4,0)","v":414},{"$f":"VLOOKUP(A172,[3]CHD!$E$15:$H$226,4,0)","v":201092},{"$f":"VLOOKUP($A172,[7]Data!$A$6:$H$228,3,0)","v":1157},201092,{"$f":"VLOOKUP($A172,[7]Data!$A$6:$H$228,5,0)","v":231},201092,{"$f":"VLOOKUP($A172,[7]Data!$A$6:$H$228,6,0)","v":767},201092,{"$f":"VLOOKUP($A172,[7]Data!$A$6:$H$228,7,0)","v":240},201092,{"$f":"VLOOKUP($A172,[7]Data!$A$6:$H$228,8,0)","v":114},201092,{"$f":"VLOOKUP($A172,[8]CHD06!$E$15:$O$225,5,0)","v":6633},{"$f":"VLOOKUP($A172,[8]CHD06!$E$15:$O$225,10,0)","v":7638},{"$f":"VLOOKUP($A172,[8]CHD08!$E$15:$O$225,5,0)","v":5648},{"$f":"VLOOKUP($A172,[8]CHD08!$E$15:$O$225,10,0)","v":7638},{"$f":"VLOOKUP($A172,[9]BP05!$E$14:$O$225,5,0)","v":24825},{"$f":"VLOOKUP($A172,[9]BP05!$E$14:$O$225,10,0)","v":31968},{"$f":"VLOOKUP($A172,[10]CKD03!$E$14:$O$225,5,0)","v":5879},{"$f":"VLOOKUP($A172,[10]CKD03!$E$14:$O$225,10,0)","v":8330},{"$f":"VLOOKUP($A172,[11]PAD03!$E$14:$O$225,5,0)","v":1143},{"$f":"VLOOKUP($A172,[11]PAD03!$E$14:$O$225,10,0)","v":1349},{"$f":"VLOOKUP($A172,[11]PAD04!$E$14:$O$225,5,0)","v":923},{"$f":"VLOOKUP($A172,[11]PAD04!$E$14:$O$225,10,0)","v":1349},{"$f":"VLOOKUP($A172,[12]STROKE06!$E$14:$O$225,5,0)","v":3519},{"$f":"VLOOKUP($A172,[12]STROKE06!$E$14:$O$225,10,0)","v":4124},{"$f":"VLOOKUP($A172,[12]STROKE08!$E$14:$O$225,5,0)","v":2904},{"$f":"VLOOKUP($A172,[12]STROKE08!$E$14:$O$225,10,0)","v":4124},null,null,null,null,null,null,null,null,null,null,null,null,null,null,{"$f":"VLOOKUP($A172,[3]CHD!$E$14:$BS$226,29,0)","v":6707},{"$f":"VLOOKUP($A172,[3]CHD!$E$14:$BS$226,34,0)","v":7555},{"$f":"VLOOKUP($A172,[3]CHD!$E$14:$BS$226,37,0)","v":5585},{"$f":"VLOOKUP($A172,[3]CHD!$E$14:$BS$226,42,0)","v":7555},{"$f":"VLOOKUP($A172,[3]HYP!$E$14:$BK$226,29,0)","v":25715},{"$f":"VLOOKUP($A172,[3]HYP!$E$14:$BK$226,34,0)","v":32115},{"$f":"VLOOKUP($A172,[3]CKD!$E$14:$BG$230,33,0)","v":6446},{"$f":"VLOOKUP($A172,[3]CKD!$E$14:$BG$230,38,0)","v":8592},{"$f":"VLOOKUP(A172,[3]PAD!$E$14:$BC$226,29,0)","v":1124},{"$f":"VLOOKUP($A172,[3]PAD!$E$14:$BC$226,34,0)","v":1320},{"$f":"VLOOKUP($A172,[3]PAD!$E$14:$BC$226,37,0)","v":908},{"$f":"VLOOKUP($A172,[3]PAD!$E$14:$BC$226,42,0)","v":1320},{"$f":"VLOOKUP($A172,[3]STIA!$E$14:$CA$230,37,0)","v":3516},{"$f":"VLOOKUP($A172,[3]STIA!$E$14:$CA$230,42,0)","v":4157},{"$f":"VLOOKUP($A172,[3]STIA!$E$14:$CA$230,53,0)","v":2276},{"$f":"VLOOKUP($A172,[3]STIA!$E$14:$CA$230,58,0)","v":3331}]
["10C","NHS Surrey Heath",{"$f":"VLOOKUP($A173,'[6]201314'!$C$19:$J$256,8,0)","v":51},{"$f":"VLOOKUP($A173,'[6]201314'!$C$19:$J$256,7,0)","v":84420},{"$f":"VLOOKUP($A173,[7]Data!$A$6:$H$228,4,0)","v":129},{"$f":"VLOOKUP(A173,[3]CHD!$E$15:$H$226,4,0)","v":91427},{"$f":"VLOOKUP($A173,[7]Data!$A$6:$H$228,3,0)","v":580},91427,{"$f":"VLOOKUP($A173,[7]Data!$A$6:$H$228,5,0)","v":80},91427,{"$f":"VLOOKUP($A173,[7]Data!$A$6:$H$228,6,0)","v":443},91427,{"$f":"VLOOKUP($A173,[7]Data!$A$6:$H$228,7,0)","v":168},91427,{"$f":"VLOOKUP($A173,[7]Data!$A$6:$H$228,8,0)","v":47},91427,{"$f":"VLOOKUP($A173,[8]CHD06!$E$15:$O$225,5,0)","v":2302},{"$f":"VLOOKUP($A173,[8]CHD06!$E$15:$O$225,10,0)","v":2633},{"$f":"VLOOKUP($A173,[8]CHD08!$E$15:$O$225,5,0)","v":2057},{"$f":"VLOOKUP($A173,[8]CHD08!$E$15:$O$225,10,0)","v":2587},{"$f":"VLOOKUP($A173,[9]BP05!$E$14:$O$225,5,0)","v":9162},{"$f":"VLOOKUP($A173,[9]BP05!$E$14:$O$225,10,0)","v":11948},{"$f":"VLOOKUP($A173,[10]CKD03!$E$14:$O$225,5,0)","v":2219},{"$f":"VLOOKUP($A173,[10]CKD03!$E$14:$O$225,10,0)","v":3102},{"$f":"VLOOKUP($A173,[11]PAD03!$E$14:$O$225,5,0)","v":374},{"$f":"VLOOKUP($A173,[11]PAD03!$E$14:$O$225,10,0)","v":451},{"$f":"VLOOKUP($A173,[11]PAD04!$E$14:$O$225,5,0)","v":325},{"$f":"VLOOKUP($A173,[11]PAD04!$E$14:$O$225,10,0)","v":439},{"$f":"VLOOKUP($A173,[12]STROKE06!$E$14:$O$225,5,0)","v":1181},{"$f":"VLOOKUP($A173,[12]STROKE06!$E$14:$O$225,10,0)","v":1399},{"$f":"VLOOKUP($A173,[12]STROKE08!$E$14:$O$225,5,0)","v":1009},{"$f":"VLOOKUP($A173,[12]STROKE08!$E$14:$O$225,10,0)","v":1363},null,null,null,null,null,null,null,null,null,null,null,null,null,null,{"$f":"VLOOKUP($A173,[3]CHD!$E$14:$BS$226,29,0)","v":2340},{"$f":"VLOOKUP($A173,[3]CHD!$E$14:$BS$226,34,0)","v":2611},{"$f":"VLOOKUP($A173,[3]CHD!$E$14:$BS$226,37,0)","v":1981},{"$f":"VLOOKUP($A173,[3]CHD!$E$14:$BS$226,42,0)","v":2551},{"$f":"VLOOKUP($A173,[3]HYP!$E$14:$BK$226,29,0)","v":9669},{"$f":"VLOOKUP($A173,[3]HYP!$E$14:$BK$226,34,0)","v":12123},{"$f":"VLOOKUP($A173,[3]CKD!$E$14:$BG$230,33,0)","v":2103},{"$f":"VLOOKUP($A173,[3]CKD!$E$14:$BG$230,38,0)","v":2757},{"$f":"VLOOKUP(A173,[3]PAD!$E$14:$BC$226,29,0)","v":377},{"$f":"VLOOKUP($A173,[3]PAD!$E$14:$BC$226,34,0)","v":419},{"$f":"VLOOKUP($A173,[3]PAD!$E$14:$BC$226,37,0)","v":304},{"$f":"VLOOKUP($A173,[3]PAD!$E$14:$BC$226,42,0)","v":407},{"$f":"VLOOKUP($A173,[3]STIA!$E$14:$CA$230,37,0)","v":1215},{"$f":"VLOOKUP($A173,[3]STIA!$E$14:$CA$230,42,0)","v":1406},{"$f":"VLOOKUP($A173,[3]STIA!$E$14:$CA$230,53,0)","v":585},{"$f":"VLOOKUP($A173,[3]STIA!$E$14:$CA$230,58,0)","v":817}]
["10D","NHS Swale",{"$f":"VLOOKUP($A174,'[6]201314'!$C$19:$J$256,8,0)","v":75},{"$f":"VLOOKUP($A174,'[6]201314'!$C$19:$J$256,7,0)","v":98849},{"$f":"VLOOKUP($A174,[7]Data!$A$6:$H$228,4,0)","v":169},{"$f":"VLOOKUP(A174,[3]CHD!$E$15:$H$226,4,0)","v":107556},{"$f":"VLOOKUP($A174,[7]Data!$A$6:$H$228,3,0)","v":445},107556,{"$f":"VLOOKUP($A174,[7]Data!$A$6:$H$228,5,0)","v":106},107556,{"$f":"VLOOKUP($A174,[7]Data!$A$6:$H$228,6,0)","v":262},107556,{"$f":"VLOOKUP($A174,[7]Data!$A$6:$H$228,7,0)","v":93},107556,{"$f":"VLOOKUP($A174,[7]Data!$A$6:$H$228,8,0)","v":35},107556,{"$f":"VLOOKUP($A174,[8]CHD06!$E$15:$O$225,5,0)","v":2957},{"$f":"VLOOKUP($A174,[8]CHD06!$E$15:$O$225,10,0)","v":3284},{"$f":"VLOOKUP($A174,[8]CHD08!$E$15:$O$225,5,0)","v":2464},{"$f":"VLOOKUP($A174,[8]CHD08!$E$15:$O$225,10,0)","v":3284},{"$f":"VLOOKUP($A174,[9]BP05!$E$14:$O$225,5,0)","v":12338},{"$f":"VLOOKUP($A174,[9]BP05!$E$14:$O$225,10,0)","v":15718},{"$f":"VLOOKUP($A174,[10]CKD03!$E$14:$O$225,5,0)","v":2744},{"$f":"VLOOKUP($A174,[10]CKD03!$E$14:$O$225,10,0)","v":3631},{"$f":"VLOOKUP($A174,[11]PAD03!$E$14:$O$225,5,0)","v":543},{"$f":"VLOOKUP($A174,[11]PAD03!$E$14:$O$225,10,0)","v":626},{"$f":"VLOOKUP($A174,[11]PAD04!$E$14:$O$225,5,0)","v":432},{"$f":"VLOOKUP($A174,[11]PAD04!$E$14:$O$225,10,0)","v":626},{"$f":"VLOOKUP($A174,[12]STROKE06!$E$14:$O$225,5,0)","v":1337},{"$f":"VLOOKUP($A174,[12]STROKE06!$E$14:$O$225,10,0)","v":1527},{"$f":"VLOOKUP($A174,[12]STROKE08!$E$14:$O$225,5,0)","v":1091},{"$f":"VLOOKUP($A174,[12]STROKE08!$E$14:$O$225,10,0)","v":1527},null,null,null,null,null,null,null,null,null,null,null,null,null,null,{"$f":"VLOOKUP($A174,[3]CHD!$E$14:$BS$226,29,0)","v":2905},{"$f":"VLOOKUP($A174,[3]CHD!$E$14:$BS$226,34,0)","v":3214},{"$f":"VLOOKUP($A174,[3]CHD!$E$14:$BS$226,37,0)","v":2489},{"$f":"VLOOKUP($A174,[3]CHD!$E$14:$BS$226,42,0)","v":3214},{"$f":"VLOOKUP($A174,[3]HYP!$E$14:$BK$226,29,0)","v":12873},{"$f":"VLOOKUP($A174,[3]HYP!$E$14:$BK$226,34,0)","v":15837},{"$f":"VLOOKUP($A174,[3]CKD!$E$14:$BG$230,33,0)","v":2889},{"$f":"VLOOKUP($A174,[3]CKD!$E$14:$BG$230,38,0)","v":3673},{"$f":"VLOOKUP(A174,[3]PAD!$E$14:$BC$226,29,0)","v":559},{"$f":"VLOOKUP($A174,[3]PAD!$E$14:$BC$226,34,0)","v":621},{"$f":"VLOOKUP($A174,[3]PAD!$E$14:$BC$226,37,0)","v":437},{"$f":"VLOOKUP($A174,[3]PAD!$E$14:$BC$226,42,0)","v":621},{"$f":"VLOOKUP($A174,[3]STIA!$E$14:$CA$230,37,0)","v":1346},{"$f":"VLOOKUP($A174,[3]STIA!$E$14:$CA$230,42,0)","v":1532},{"$f":"VLOOKUP($A174,[3]STIA!$E$14:$CA$230,53,0)","v":894},{"$f":"VLOOKUP($A174,[3]STIA!$E$14:$CA$230,58,0)","v":1192}]
["10E","NHS Thanet",{"$f":"VLOOKUP($A175,'[6]201314'!$C$19:$J$256,8,0)","v":115},{"$f":"VLOOKUP($A175,'[6]201314'!$C$19:$J$256,7,0)","v":126347},{"$f":"VLOOKUP($A175,[7]Data!$A$6:$H$228,4,0)","v":243},{"$f":"VLOOKUP(A175,[3]CHD!$E$15:$H$226,4,0)","v":141762},{"$f":"VLOOKUP($A175,[7]Data!$A$6:$H$228,3,0)","v":897},141762,{"$f":"VLOOKUP($A175,[7]Data!$A$6:$H$228,5,0)","v":205},141762,{"$f":"VLOOKUP($A175,[7]Data!$A$6:$H$228,6,0)","v":580},141762,{"$f":"VLOOKUP($A175,[7]Data!$A$6:$H$228,7,0)","v":179},141762,{"$f":"VLOOKUP($A175,[7]Data!$A$6:$H$228,8,0)","v":80},141762,{"$f":"VLOOKUP($A175,[8]CHD06!$E$15:$O$225,5,0)","v":4556},{"$f":"VLOOKUP($A175,[8]CHD06!$E$15:$O$225,10,0)","v":5349},{"$f":"VLOOKUP($A175,[8]CHD08!$E$15:$O$225,5,0)","v":3864},{"$f":"VLOOKUP($A175,[8]CHD08!$E$15:$O$225,10,0)","v":5349},{"$f":"VLOOKUP($A175,[9]BP05!$E$14:$O$225,5,0)","v":16855},{"$f":"VLOOKUP($A175,[9]BP05!$E$14:$O$225,10,0)","v":22657},{"$f":"VLOOKUP($A175,[10]CKD03!$E$14:$O$225,5,0)","v":4211},{"$f":"VLOOKUP($A175,[10]CKD03!$E$14:$O$225,10,0)","v":6110},{"$f":"VLOOKUP($A175,[11]PAD03!$E$14:$O$225,5,0)","v":957},{"$f":"VLOOKUP($A175,[11]PAD03!$E$14:$O$225,10,0)","v":1143},{"$f":"VLOOKUP($A175,[11]PAD04!$E$14:$O$225,5,0)","v":800},{"$f":"VLOOKUP($A175,[11]PAD04!$E$14:$O$225,10,0)","v":1143},{"$f":"VLOOKUP($A175,[12]STROKE06!$E$14:$O$225,5,0)","v":2288},{"$f":"VLOOKUP($A175,[12]STROKE06!$E$14:$O$225,10,0)","v":2790},{"$f":"VLOOKUP($A175,[12]STROKE08!$E$14:$O$225,5,0)","v":1927},{"$f":"VLOOKUP($A175,[12]STROKE08!$E$14:$O$225,10,0)","v":2790},null,null,null,null,null,null,null,null,null,null,null,null,null,null,{"$f":"VLOOKUP($A175,[3]CHD!$E$14:$BS$226,29,0)","v":4750},{"$f":"VLOOKUP($A175,[3]CHD!$E$14:$BS$226,34,0)","v":5319},{"$f":"VLOOKUP($A175,[3]CHD!$E$14:$BS$226,37,0)","v":3853},{"$f":"VLOOKUP($A175,[3]CHD!$E$14:$BS$226,42,0)","v":5319},{"$f":"VLOOKUP($A175,[3]HYP!$E$14:$BK$226,29,0)","v":18246},{"$f":"VLOOKUP($A175,[3]HYP!$E$14:$BK$226,34,0)","v":23143},{"$f":"VLOOKUP($A175,[3]CKD!$E$14:$BG$230,33,0)","v":5003},{"$f":"VLOOKUP($A175,[3]CKD!$E$14:$BG$230,38,0)","v":6575},{"$f":"VLOOKUP(A175,[3]PAD!$E$14:$BC$226,29,0)","v":972},{"$f":"VLOOKUP($A175,[3]PAD!$E$14:$BC$226,34,0)","v":1128},{"$f":"VLOOKUP($A175,[3]PAD!$E$14:$BC$226,37,0)","v":761},{"$f":"VLOOKUP($A175,[3]PAD!$E$14:$BC$226,42,0)","v":1128},{"$f":"VLOOKUP($A175,[3]STIA!$E$14:$CA$230,37,0)","v":2445},{"$f":"VLOOKUP($A175,[3]STIA!$E$14:$CA$230,42,0)","v":2880},{"$f":"VLOOKUP($A175,[3]STIA!$E$14:$CA$230,53,0)","v":1597},{"$f":"VLOOKUP($A175,[3]STIA!$E$14:$CA$230,58,0)","v":2374}]
["10G","NHS Bracknell and Ascot",{"$f":"VLOOKUP($A176,'[6]201314'!$C$19:$J$256,8,0)","v":56},{"$f":"VLOOKUP($A176,'[6]201314'!$C$19:$J$256,7,0)","v":128357},{"$f":"VLOOKUP($A176,[7]Data!$A$6:$H$228,4,0)","v":184},{"$f":"VLOOKUP(A176,[3]CHD!$E$15:$H$226,4,0)","v":136865},{"$f":"VLOOKUP($A176,[7]Data!$A$6:$H$228,3,0)","v":540},136865,{"$f":"VLOOKUP($A176,[7]Data!$A$6:$H$228,5,0)","v":117},136865,{"$f":"VLOOKUP($A176,[7]Data!$A$6:$H$228,6,0)","v":399},136865,{"$f":"VLOOKUP($A176,[7]Data!$A$6:$H$228,7,0)","v":159},136865,{"$f":"VLOOKUP($A176,[7]Data!$A$6:$H$228,8,0)","v":43},136865,{"$f":"VLOOKUP($A176,[8]CHD06!$E$15:$O$225,5,0)","v":2977},{"$f":"VLOOKUP($A176,[8]CHD06!$E$15:$O$225,10,0)","v":3411},{"$f":"VLOOKUP($A176,[8]CHD08!$E$15:$O$225,5,0)","v":2411},{"$f":"VLOOKUP($A176,[8]CHD08!$E$15:$O$225,10,0)","v":3411},{"$f":"VLOOKUP($A176,[9]BP05!$E$14:$O$225,5,0)","v":11965},{"$f":"VLOOKUP($A176,[9]BP05!$E$14:$O$225,10,0)","v":15450},{"$f":"VLOOKUP($A176,[10]CKD03!$E$14:$O$225,5,0)","v":2168},{"$f":"VLOOKUP($A176,[10]CKD03!$E$14:$O$225,10,0)","v":3029},{"$f":"VLOOKUP($A176,[11]PAD03!$E$14:$O$225,5,0)","v":523},{"$f":"VLOOKUP($A176,[11]PAD03!$E$14:$O$225,10,0)","v":603},{"$f":"VLOOKUP($A176,[11]PAD04!$E$14:$O$225,5,0)","v":421},{"$f":"VLOOKUP($A176,[11]PAD04!$E$14:$O$225,10,0)","v":603},{"$f":"VLOOKUP($A176,[12]STROKE06!$E$14:$O$225,5,0)","v":1489},{"$f":"VLOOKUP($A176,[12]STROKE06!$E$14:$O$225,10,0)","v":1782},{"$f":"VLOOKUP($A176,[12]STROKE08!$E$14:$O$225,5,0)","v":1182},{"$f":"VLOOKUP($A176,[12]STROKE08!$E$14:$O$225,10,0)","v":1782},null,null,null,null,null,null,null,null,null,null,null,null,null,null,{"$f":"VLOOKUP($A176,[3]CHD!$E$14:$BS$226,29,0)","v":3038},{"$f":"VLOOKUP($A176,[3]CHD!$E$14:$BS$226,34,0)","v":3345},{"$f":"VLOOKUP($A176,[3]CHD!$E$14:$BS$226,37,0)","v":2536},{"$f":"VLOOKUP($A176,[3]CHD!$E$14:$BS$226,42,0)","v":3345},{"$f":"VLOOKUP($A176,[3]HYP!$E$14:$BK$226,29,0)","v":12564},{"$f":"VLOOKUP($A176,[3]HYP!$E$14:$BK$226,34,0)","v":15622},{"$f":"VLOOKUP($A176,[3]CKD!$E$14:$BG$230,33,0)","v":2447},{"$f":"VLOOKUP($A176,[3]CKD!$E$14:$BG$230,38,0)","v":3047},{"$f":"VLOOKUP(A176,[3]PAD!$E$14:$BC$226,29,0)","v":528},{"$f":"VLOOKUP($A176,[3]PAD!$E$14:$BC$226,34,0)","v":596},{"$f":"VLOOKUP($A176,[3]PAD!$E$14:$BC$226,37,0)","v":430},{"$f":"VLOOKUP($A176,[3]PAD!$E$14:$BC$226,42,0)","v":596},{"$f":"VLOOKUP($A176,[3]STIA!$E$14:$CA$230,37,0)","v":1560},{"$f":"VLOOKUP($A176,[3]STIA!$E$14:$CA$230,42,0)","v":1783},{"$f":"VLOOKUP($A176,[3]STIA!$E$14:$CA$230,53,0)","v":756},{"$f":"VLOOKUP($A176,[3]STIA!$E$14:$CA$230,58,0)","v":1084}]
["10H","NHS Chiltern",{"$f":"VLOOKUP($A177,'[6]201314'!$C$19:$J$256,8,0)","v":146},{"$f":"VLOOKUP($A177,'[6]201314'!$C$19:$J$256,7,0)","v":301514},{"$f":"VLOOKUP($A177,[7]Data!$A$6:$H$228,4,0)","v":461},{"$f":"VLOOKUP(A177,[3]CHD!$E$15:$H$226,4,0)","v":327820},{"$f":"VLOOKUP($A177,[7]Data!$A$6:$H$228,3,0)","v":1244},327820,{"$f":"VLOOKUP($A177,[7]Data!$A$6:$H$228,5,0)","v":279},327820,{"$f":"VLOOKUP($A177,[7]Data!$A$6:$H$228,6,0)","v":921},327820,{"$f":"VLOOKUP($A177,[7]Data!$A$6:$H$228,7,0)","v":430},327820,{"$f":"VLOOKUP($A177,[7]Data!$A$6:$H$228,8,0)","v":107},327820,{"$f":"VLOOKUP($A177,[8]CHD06!$E$15:$O$225,5,0)","v":8330},{"$f":"VLOOKUP($A177,[8]CHD06!$E$15:$O$225,10,0)","v":9464},{"$f":"VLOOKUP($A177,[8]CHD08!$E$15:$O$225,5,0)","v":6916},{"$f":"VLOOKUP($A177,[8]CHD08!$E$15:$O$225,10,0)","v":9464},{"$f":"VLOOKUP($A177,[9]BP05!$E$14:$O$225,5,0)","v":33265},{"$f":"VLOOKUP($A177,[9]BP05!$E$14:$O$225,10,0)","v":42758},{"$f":"VLOOKUP($A177,[10]CKD03!$E$14:$O$225,5,0)","v":6306},{"$f":"VLOOKUP($A177,[10]CKD03!$E$14:$O$225,10,0)","v":8884},{"$f":"VLOOKUP($A177,[11]PAD03!$E$14:$O$225,5,0)","v":1536},{"$f":"VLOOKUP($A177,[11]PAD03!$E$14:$O$225,10,0)","v":1757},{"$f":"VLOOKUP($A177,[11]PAD04!$E$14:$O$225,5,0)","v":1173},{"$f":"VLOOKUP($A177,[11]PAD04!$E$14:$O$225,10,0)","v":1757},{"$f":"VLOOKUP($A177,[12]STROKE06!$E$14:$O$225,5,0)","v":4584},{"$f":"VLOOKUP($A177,[12]STROKE06!$E$14:$O$225,10,0)","v":5312},{"$f":"VLOOKUP($A177,[12]STROKE08!$E$14:$O$225,5,0)","v":3478},{"$f":"VLOOKUP($A177,[12]STROKE08!$E$14:$O$225,10,0)","v":5312},null,null,null,null,null,null,null,null,null,null,null,null,null,null,{"$f":"VLOOKUP($A177,[3]CHD!$E$14:$BS$226,29,0)","v":8537},{"$f":"VLOOKUP($A177,[3]CHD!$E$14:$BS$226,34,0)","v":9418},{"$f":"VLOOKUP($A177,[3]CHD!$E$14:$BS$226,37,0)","v":7046},{"$f":"VLOOKUP($A177,[3]CHD!$E$14:$BS$226,42,0)","v":9375},{"$f":"VLOOKUP($A177,[3]HYP!$E$14:$BK$226,29,0)","v":35334},{"$f":"VLOOKUP($A177,[3]HYP!$E$14:$BK$226,34,0)","v":43310},{"$f":"VLOOKUP($A177,[3]CKD!$E$14:$BG$230,33,0)","v":6685},{"$f":"VLOOKUP($A177,[3]CKD!$E$14:$BG$230,38,0)","v":8595},{"$f":"VLOOKUP(A177,[3]PAD!$E$14:$BC$226,29,0)","v":1576},{"$f":"VLOOKUP($A177,[3]PAD!$E$14:$BC$226,34,0)","v":1787},{"$f":"VLOOKUP($A177,[3]PAD!$E$14:$BC$226,37,0)","v":1215},{"$f":"VLOOKUP($A177,[3]PAD!$E$14:$BC$226,42,0)","v":1776},{"$f":"VLOOKUP($A177,[3]STIA!$E$14:$CA$230,37,0)","v":4761},{"$f":"VLOOKUP($A177,[3]STIA!$E$14:$CA$230,42,0)","v":5383},{"$f":"VLOOKUP($A177,[3]STIA!$E$14:$CA$230,53,0)","v":2584},{"$f":"VLOOKUP($A177,[3]STIA!$E$14:$CA$230,58,0)","v":3754}]
["10J","NHS North Hampshire",{"$f":"VLOOKUP($A178,'[6]201314'!$C$19:$J$256,8,0)","v":120},{"$f":"VLOOKUP($A178,'[6]201314'!$C$19:$J$256,7,0)","v":202739},{"$f":"VLOOKUP($A178,[7]Data!$A$6:$H$228,4,0)","v":328},{"$f":"VLOOKUP(A178,[3]CHD!$E$15:$H$226,4,0)","v":217387},{"$f":"VLOOKUP($A178,[7]Data!$A$6:$H$228,3,0)","v":735},217387,{"$f":"VLOOKUP($A178,[7]Data!$A$6:$H$228,5,0)","v":166},217387,{"$f":"VLOOKUP($A178,[7]Data!$A$6:$H$228,6,0)","v":597},217387,{"$f":"VLOOKUP($A178,[7]Data!$A$6:$H$228,7,0)","v":209},217387,{"$f":"VLOOKUP($A178,[7]Data!$A$6:$H$228,8,0)","v":44},217387,{"$f":"VLOOKUP($A178,[8]CHD06!$E$15:$O$225,5,0)","v":4990},{"$f":"VLOOKUP($A178,[8]CHD06!$E$15:$O$225,10,0)","v":5689},{"$f":"VLOOKUP($A178,[8]CHD08!$E$15:$O$225,5,0)","v":4175},{"$f":"VLOOKUP($A178,[8]CHD08!$E$15:$O$225,10,0)","v":5689},{"$f":"VLOOKUP($A178,[9]BP05!$E$14:$O$225,5,0)","v":20598},{"$f":"VLOOKUP($A178,[9]BP05!$E$14:$O$225,10,0)","v":26267},{"$f":"VLOOKUP($A178,[10]CKD03!$E$14:$O$225,5,0)","v":4956},{"$f":"VLOOKUP($A178,[10]CKD03!$E$14:$O$225,10,0)","v":7213},{"$f":"VLOOKUP($A178,[11]PAD03!$E$14:$O$225,5,0)","v":1000},{"$f":"VLOOKUP($A178,[11]PAD03!$E$14:$O$225,10,0)","v":1174},{"$f":"VLOOKUP($A178,[11]PAD04!$E$14:$O$225,5,0)","v":805},{"$f":"VLOOKUP($A178,[11]PAD04!$E$14:$O$225,10,0)","v":1174},{"$f":"VLOOKUP($A178,[12]STROKE06!$E$14:$O$225,5,0)","v":2522},{"$f":"VLOOKUP($A178,[12]STROKE06!$E$14:$O$225,10,0)","v":2958},{"$f":"VLOOKUP($A178,[12]STROKE08!$E$14:$O$225,5,0)","v":1959},{"$f":"VLOOKUP($A178,[12]STROKE08!$E$14:$O$225,10,0)","v":2958},null,null,null,null,null,null,null,null,null,null,null,null,null,null,{"$f":"VLOOKUP($A178,[3]CHD!$E$14:$BS$226,29,0)","v":5079},{"$f":"VLOOKUP($A178,[3]CHD!$E$14:$BS$226,34,0)","v":5713},{"$f":"VLOOKUP($A178,[3]CHD!$E$14:$BS$226,37,0)","v":4271},{"$f":"VLOOKUP($A178,[3]CHD!$E$14:$BS$226,42,0)","v":5713},{"$f":"VLOOKUP($A178,[3]HYP!$E$14:$BK$226,29,0)","v":21524},{"$f":"VLOOKUP($A178,[3]HYP!$E$14:$BK$226,34,0)","v":26826},{"$f":"VLOOKUP($A178,[3]CKD!$E$14:$BG$230,33,0)","v":4800},{"$f":"VLOOKUP($A178,[3]CKD!$E$14:$BG$230,38,0)","v":6521},{"$f":"VLOOKUP(A178,[3]PAD!$E$14:$BC$226,29,0)","v":1022},{"$f":"VLOOKUP($A178,[3]PAD!$E$14:$BC$226,34,0)","v":1187},{"$f":"VLOOKUP($A178,[3]PAD!$E$14:$BC$226,37,0)","v":789},{"$f":"VLOOKUP($A178,[3]PAD!$E$14:$BC$226,42,0)","v":1187},{"$f":"VLOOKUP($A178,[3]STIA!$E$14:$CA$230,37,0)","v":2619},{"$f":"VLOOKUP($A178,[3]STIA!$E$14:$CA$230,42,0)","v":3087},{"$f":"VLOOKUP($A178,[3]STIA!$E$14:$CA$230,53,0)","v":1218},{"$f":"VLOOKUP($A178,[3]STIA!$E$14:$CA$230,58,0)","v":1819}]
["10K","NHS Fareham and Gosport",{"$f":"VLOOKUP($A179,'[6]201314'!$C$19:$J$256,8,0)","v":123},{"$f":"VLOOKUP($A179,'[6]201314'!$C$19:$J$256,7,0)","v":181865},{"$f":"VLOOKUP($A179,[7]Data!$A$6:$H$228,4,0)","v":436},{"$f":"VLOOKUP(A179,[3]CHD!$E$15:$H$226,4,0)","v":200959},{"$f":"VLOOKUP($A179,[7]Data!$A$6:$H$228,3,0)","v":733},200959,{"$f":"VLOOKUP($A179,[7]Data!$A$6:$H$228,5,0)","v":183},200959,{"$f":"VLOOKUP($A179,[7]Data!$A$6:$H$228,6,0)","v":529},200959,{"$f":"VLOOKUP($A179,[7]Data!$A$6:$H$228,7,0)","v":276},200959,{"$f":"VLOOKUP($A179,[7]Data!$A$6:$H$228,8,0)","v":63},200959,{"$f":"VLOOKUP($A179,[8]CHD06!$E$15:$O$225,5,0)","v":6375},{"$f":"VLOOKUP($A179,[8]CHD06!$E$15:$O$225,10,0)","v":7186},{"$f":"VLOOKUP($A179,[8]CHD08!$E$15:$O$225,5,0)","v":5278},{"$f":"VLOOKUP($A179,[8]CHD08!$E$15:$O$225,10,0)","v":7186},{"$f":"VLOOKUP($A179,[9]BP05!$E$14:$O$225,5,0)","v":23701},{"$f":"VLOOKUP($A179,[9]BP05!$E$14:$O$225,10,0)","v":30282},{"$f":"VLOOKUP($A179,[10]CKD03!$E$14:$O$225,5,0)","v":4426},{"$f":"VLOOKUP($A179,[10]CKD03!$E$14:$O$225,10,0)","v":6287},{"$f":"VLOOKUP($A179,[11]PAD03!$E$14:$O$225,5,0)","v":1113},{"$f":"VLOOKUP($A179,[11]PAD03!$E$14:$O$225,10,0)","v":1325},{"$f":"VLOOKUP($A179,[11]PAD04!$E$14:$O$225,5,0)","v":892},{"$f":"VLOOKUP($A179,[11]PAD04!$E$14:$O$225,10,0)","v":1325},{"$f":"VLOOKUP($A179,[12]STROKE06!$E$14:$O$225,5,0)","v":3123},{"$f":"VLOOKUP($A179,[12]STROKE06!$E$14:$O$225,10,0)","v":3629},{"$f":"VLOOKUP($A179,[12]STROKE08!$E$14:$O$225,5,0)","v":2383},{"$f":"VLOOKUP($A179,[12]STROKE08!$E$14:$O$225,10,0)","v":3629},null,null,null,null,null,null,null,null,null,null,null,null,null,null,{"$f":"VLOOKUP($A179,[3]CHD!$E$14:$BS$226,29,0)","v":6510},{"$f":"VLOOKUP($A179,[3]CHD!$E$14:$BS$226,34,0)","v":7302},{"$f":"VLOOKUP($A179,[3]CHD!$E$14:$BS$226,37,0)","v":5342},{"$f":"VLOOKUP($A179,[3]CHD!$E$14:$BS$226,42,0)","v":7302},{"$f":"VLOOKUP($A179,[3]HYP!$E$14:$BK$226,29,0)","v":24444},{"$f":"VLOOKUP($A179,[3]HYP!$E$14:$BK$226,34,0)","v":31266},{"$f":"VLOOKUP($A179,[3]CKD!$E$14:$BG$230,33,0)","v":4804},{"$f":"VLOOKUP($A179,[3]CKD!$E$14:$BG$230,38,0)","v":6373},{"$f":"VLOOKUP(A179,[3]PAD!$E$14:$BC$226,29,0)","v":1085},{"$f":"VLOOKUP($A179,[3]PAD!$E$14:$BC$226,34,0)","v":1308},{"$f":"VLOOKUP($A179,[3]PAD!$E$14:$BC$226,37,0)","v":897},{"$f":"VLOOKUP($A179,[3]PAD!$E$14:$BC$226,42,0)","v":1308},{"$f":"VLOOKUP($A179,[3]STIA!$E$14:$CA$230,37,0)","v":3256},{"$f":"VLOOKUP($A179,[3]STIA!$E$14:$CA$230,42,0)","v":3833},{"$f":"VLOOKUP($A179,[3]STIA!$E$14:$CA$230,53,0)","v":1726},{"$f":"VLOOKUP($A179,[3]STIA!$E$14:$CA$230,58,0)","v":2603}]
["10L","NHS Isle Of Wight",{"$f":"VLOOKUP($A180,'[6]201314'!$C$19:$J$256,8,0)","v":97},{"$f":"VLOOKUP($A180,'[6]201314'!$C$19:$J$256,7,0)","v":125022},{"$f":"VLOOKUP($A180,[7]Data!$A$6:$H$228,4,0)","v":358},{"$f":"VLOOKUP(A180,[3]CHD!$E$15:$H$226,4,0)","v":141517},{"$f":"VLOOKUP($A180,[7]Data!$A$6:$H$228,3,0)","v":715},141517,{"$f":"VLOOKUP($A180,[7]Data!$A$6:$H$228,5,0)","v":195},141517,{"$f":"VLOOKUP($A180,[7]Data!$A$6:$H$228,6,0)","v":254},141517,{"$f":"VLOOKUP($A180,[7]Data!$A$6:$H$228,7,0)","v":161},141517,{"$f":"VLOOKUP($A180,[7]Data!$A$6:$H$228,8,0)","v":43},141517,{"$f":"VLOOKUP($A180,[8]CHD06!$E$15:$O$225,5,0)","v":5020},{"$f":"VLOOKUP($A180,[8]CHD06!$E$15:$O$225,10,0)","v":5660},{"$f":"VLOOKUP($A180,[8]CHD08!$E$15:$O$225,5,0)","v":3891},{"$f":"VLOOKUP($A180,[8]CHD08!$E$15:$O$225,10,0)","v":5660},{"$f":"VLOOKUP($A180,[9]BP05!$E$14:$O$225,5,0)","v":19332},{"$f":"VLOOKUP($A180,[9]BP05!$E$14:$O$225,10,0)","v":23836},{"$f":"VLOOKUP($A180,[10]CKD03!$E$14:$O$225,5,0)","v":3722},{"$f":"VLOOKUP($A180,[10]CKD03!$E$14:$O$225,10,0)","v":5101},{"$f":"VLOOKUP($A180,[11]PAD03!$E$14:$O$225,5,0)","v":1054},{"$f":"VLOOKUP($A180,[11]PAD03!$E$14:$O$225,10,0)","v":1215},{"$f":"VLOOKUP($A180,[11]PAD04!$E$14:$O$225,5,0)","v":814},{"$f":"VLOOKUP($A180,[11]PAD04!$E$14:$O$225,10,0)","v":1215},{"$f":"VLOOKUP($A180,[12]STROKE06!$E$14:$O$225,5,0)","v":2816},{"$f":"VLOOKUP($A180,[12]STROKE06!$E$14:$O$225,10,0)","v":3281},{"$f":"VLOOKUP($A180,[12]STROKE08!$E$14:$O$225,5,0)","v":2111},{"$f":"VLOOKUP($A180,[12]STROKE08!$E$14:$O$225,10,0)","v":3281},null,null,null,null,null,null,null,null,null,null,null,null,null,null,{"$f":"VLOOKUP($A180,[3]CHD!$E$14:$BS$226,29,0)","v":4957},{"$f":"VLOOKUP($A180,[3]CHD!$E$14:$BS$226,34,0)","v":5607},{"$f":"VLOOKUP($A180,[3]CHD!$E$14:$BS$226,37,0)","v":3921},{"$f":"VLOOKUP($A180,[3]CHD!$E$14:$BS$226,42,0)","v":5579},{"$f":"VLOOKUP($A180,[3]HYP!$E$14:$BK$226,29,0)","v":19916},{"$f":"VLOOKUP($A180,[3]HYP!$E$14:$BK$226,34,0)","v":24099},{"$f":"VLOOKUP($A180,[3]CKD!$E$14:$BG$230,33,0)","v":4041},{"$f":"VLOOKUP($A180,[3]CKD!$E$14:$BG$230,38,0)","v":5224},{"$f":"VLOOKUP(A180,[3]PAD!$E$14:$BC$226,29,0)","v":1050},{"$f":"VLOOKUP($A180,[3]PAD!$E$14:$BC$226,34,0)","v":1211},{"$f":"VLOOKUP($A180,[3]PAD!$E$14:$BC$226,37,0)","v":817},{"$f":"VLOOKUP($A180,[3]PAD!$E$14:$BC$226,42,0)","v":1207},{"$f":"VLOOKUP($A180,[3]STIA!$E$14:$CA$230,37,0)","v":2823},{"$f":"VLOOKUP($A180,[3]STIA!$E$14:$CA$230,42,0)","v":3361},{"$f":"VLOOKUP($A180,[3]STIA!$E$14:$CA$230,53,0)","v":1425},{"$f":"VLOOKUP($A180,[3]STIA!$E$14:$CA$230,58,0)","v":2203}]
["10M","NHS Newbury and District",{"$f":"VLOOKUP($A181,'[6]201314'!$C$19:$J$256,8,0)","v":62},{"$f":"VLOOKUP($A181,'[6]201314'!$C$19:$J$256,7,0)","v":106837},{"$f":"VLOOKUP($A181,[7]Data!$A$6:$H$228,4,0)","v":126},{"$f":"VLOOKUP(A181,[3]CHD!$E$15:$H$226,4,0)","v":114847},{"$f":"VLOOKUP($A181,[7]Data!$A$6:$H$228,3,0)","v":401},114847,{"$f":"VLOOKUP($A181,[7]Data!$A$6:$H$228,5,0)","v":94},114847,{"$f":"VLOOKUP($A181,[7]Data!$A$6:$H$228,6,0)","v":292},114847,{"$f":"VLOOKUP($A181,[7]Data!$A$6:$H$228,7,0)","v":120},114847,{"$f":"VLOOKUP($A181,[7]Data!$A$6:$H$228,8,0)","v":32},114847,{"$f":"VLOOKUP($A181,[8]CHD06!$E$15:$O$225,5,0)","v":2568},{"$f":"VLOOKUP($A181,[8]CHD06!$E$15:$O$225,10,0)","v":2845},{"$f":"VLOOKUP($A181,[8]CHD08!$E$15:$O$225,5,0)","v":2137},{"$f":"VLOOKUP($A181,[8]CHD08!$E$15:$O$225,10,0)","v":2845},{"$f":"VLOOKUP($A181,[9]BP05!$E$14:$O$225,5,0)","v":11270},{"$f":"VLOOKUP($A181,[9]BP05!$E$14:$O$225,10,0)","v":14136},{"$f":"VLOOKUP($A181,[10]CKD03!$E$14:$O$225,5,0)","v":2394},{"$f":"VLOOKUP($A181,[10]CKD03!$E$14:$O$225,10,0)","v":3310},{"$f":"VLOOKUP($A181,[11]PAD03!$E$14:$O$225,5,0)","v":482},{"$f":"VLOOKUP($A181,[11]PAD03!$E$14:$O$225,10,0)","v":557},{"$f":"VLOOKUP($A181,[11]PAD04!$E$14:$O$225,5,0)","v":377},{"$f":"VLOOKUP($A181,[11]PAD04!$E$14:$O$225,10,0)","v":557},{"$f":"VLOOKUP($A181,[12]STROKE06!$E$14:$O$225,5,0)","v":1349},{"$f":"VLOOKUP($A181,[12]STROKE06!$E$14:$O$225,10,0)","v":1559},{"$f":"VLOOKUP($A181,[12]STROKE08!$E$14:$O$225,5,0)","v":1063},{"$f":"VLOOKUP($A181,[12]STROKE08!$E$14:$O$225,10,0)","v":1559},null,null,null,null,null,null,null,null,null,null,null,null,null,null,{"$f":"VLOOKUP($A181,[3]CHD!$E$14:$BS$226,29,0)","v":2579},{"$f":"VLOOKUP($A181,[3]CHD!$E$14:$BS$226,34,0)","v":2861},{"$f":"VLOOKUP($A181,[3]CHD!$E$14:$BS$226,37,0)","v":2177},{"$f":"VLOOKUP($A181,[3]CHD!$E$14:$BS$226,42,0)","v":2861},{"$f":"VLOOKUP($A181,[3]HYP!$E$14:$BK$226,29,0)","v":11827},{"$f":"VLOOKUP($A181,[3]HYP!$E$14:$BK$226,34,0)","v":14503},{"$f":"VLOOKUP($A181,[3]CKD!$E$14:$BG$230,33,0)","v":2508},{"$f":"VLOOKUP($A181,[3]CKD!$E$14:$BG$230,38,0)","v":3312},{"$f":"VLOOKUP(A181,[3]PAD!$E$14:$BC$226,29,0)","v":483},{"$f":"VLOOKUP($A181,[3]PAD!$E$14:$BC$226,34,0)","v":557},{"$f":"VLOOKUP($A181,[3]PAD!$E$14:$BC$226,37,0)","v":396},{"$f":"VLOOKUP($A181,[3]PAD!$E$14:$BC$226,42,0)","v":557},{"$f":"VLOOKUP($A181,[3]STIA!$E$14:$CA$230,37,0)","v":1429},{"$f":"VLOOKUP($A181,[3]STIA!$E$14:$CA$230,42,0)","v":1640},{"$f":"VLOOKUP($A181,[3]STIA!$E$14:$CA$230,53,0)","v":685},{"$f":"VLOOKUP($A181,[3]STIA!$E$14:$CA$230,58,0)","v":959}]
["10N","NHS North & West Reading",{"$f":"VLOOKUP($A182,'[6]201314'!$C$19:$J$256,8,0)","v":45},{"$f":"VLOOKUP($A182,'[6]201314'!$C$19:$J$256,7,0)","v":100177},{"$f":"VLOOKUP($A182,[7]Data!$A$6:$H$228,4,0)","v":143},{"$f":"VLOOKUP(A182,[3]CHD!$E$15:$H$226,4,0)","v":107951},{"$f":"VLOOKUP($A182,[7]Data!$A$6:$H$228,3,0)","v":374},107951,{"$f":"VLOOKUP($A182,[7]Data!$A$6:$H$228,5,0)","v":83},107951,{"$f":"VLOOKUP($A182,[7]Data!$A$6:$H$228,6,0)","v":283},107951,{"$f":"VLOOKUP($A182,[7]Data!$A$6:$H$228,7,0)","v":117},107951,{"$f":"VLOOKUP($A182,[7]Data!$A$6:$H$228,8,0)","v":21},107951,{"$f":"VLOOKUP($A182,[8]CHD06!$E$15:$O$225,5,0)","v":2400},{"$f":"VLOOKUP($A182,[8]CHD06!$E$15:$O$225,10,0)","v":2690},{"$f":"VLOOKUP($A182,[8]CHD08!$E$15:$O$225,5,0)","v":2030},{"$f":"VLOOKUP($A182,[8]CHD08!$E$15:$O$225,10,0)","v":2690},{"$f":"VLOOKUP($A182,[9]BP05!$E$14:$O$225,5,0)","v":11339},{"$f":"VLOOKUP($A182,[9]BP05!$E$14:$O$225,10,0)","v":14239},{"$f":"VLOOKUP($A182,[10]CKD03!$E$14:$O$225,5,0)","v":2547},{"$f":"VLOOKUP($A182,[10]CKD03!$E$14:$O$225,10,0)","v":3495},{"$f":"VLOOKUP($A182,[11]PAD03!$E$14:$O$225,5,0)","v":407},{"$f":"VLOOKUP($A182,[11]PAD03!$E$14:$O$225,10,0)","v":471},{"$f":"VLOOKUP($A182,[11]PAD04!$E$14:$O$225,5,0)","v":356},{"$f":"VLOOKUP($A182,[11]PAD04!$E$14:$O$225,10,0)","v":471},{"$f":"VLOOKUP($A182,[12]STROKE06!$E$14:$O$225,5,0)","v":1296},{"$f":"VLOOKUP($A182,[12]STROKE06!$E$14:$O$225,10,0)","v":1464},{"$f":"VLOOKUP($A182,[12]STROKE08!$E$14:$O$225,5,0)","v":1036},{"$f":"VLOOKUP($A182,[12]STROKE08!$E$14:$O$225,10,0)","v":1464},null,null,null,null,null,null,null,null,null,null,null,null,null,null,{"$f":"VLOOKUP($A182,[3]CHD!$E$14:$BS$226,29,0)","v":2416},{"$f":"VLOOKUP($A182,[3]CHD!$E$14:$BS$226,34,0)","v":2638},{"$f":"VLOOKUP($A182,[3]CHD!$E$14:$BS$226,37,0)","v":2163},{"$f":"VLOOKUP($A182,[3]CHD!$E$14:$BS$226,42,0)","v":2638},{"$f":"VLOOKUP($A182,[3]HYP!$E$14:$BK$226,29,0)","v":11744},{"$f":"VLOOKUP($A182,[3]HYP!$E$14:$BK$226,34,0)","v":14357},{"$f":"VLOOKUP($A182,[3]CKD!$E$14:$BG$230,33,0)","v":2671},{"$f":"VLOOKUP($A182,[3]CKD!$E$14:$BG$230,38,0)","v":3480},{"$f":"VLOOKUP(A182,[3]PAD!$E$14:$BC$226,29,0)","v":406},{"$f":"VLOOKUP($A182,[3]PAD!$E$14:$BC$226,34,0)","v":475},{"$f":"VLOOKUP($A182,[3]PAD!$E$14:$BC$226,37,0)","v":365},{"$f":"VLOOKUP($A182,[3]PAD!$E$14:$BC$226,42,0)","v":475},{"$f":"VLOOKUP($A182,[3]STIA!$E$14:$CA$230,37,0)","v":1268},{"$f":"VLOOKUP($A182,[3]STIA!$E$14:$CA$230,42,0)","v":1462},{"$f":"VLOOKUP($A182,[3]STIA!$E$14:$CA$230,53,0)","v":807},{"$f":"VLOOKUP($A182,[3]STIA!$E$14:$CA$230,58,0)","v":1048}]
["10Q","NHS Oxfordshire",{"$f":"VLOOKUP($A183,'[6]201314'!$C$19:$J$256,8,0)","v":318},{"$f":"VLOOKUP($A183,'[6]201314'!$C$19:$J$256,7,0)","v":641912},{"$f":"VLOOKUP($A183,[7]Data!$A$6:$H$228,4,0)","v":981},{"$f":"VLOOKUP(A183,[3]CHD!$E$15:$H$226,4,0)","v":693515},{"$f":"VLOOKUP($A183,[7]Data!$A$6:$H$228,3,0)","v":2281},693515,{"$f":"VLOOKUP($A183,[7]Data!$A$6:$H$228,5,0)","v":552},693515,{"$f":"VLOOKUP($A183,[7]Data!$A$6:$H$228,6,0)","v":1207},693515,{"$f":"VLOOKUP($A183,[7]Data!$A$6:$H$228,7,0)","v":847},693515,{"$f":"VLOOKUP($A183,[7]Data!$A$6:$H$228,8,0)","v":147},693515,{"$f":"VLOOKUP($A183,[8]CHD06!$E$15:$O$225,5,0)","v":16088},{"$f":"VLOOKUP($A183,[8]CHD06!$E$15:$O$225,10,0)","v":18109},{"$f":"VLOOKUP($A183,[8]CHD08!$E$15:$O$225,5,0)","v":13776},{"$f":"VLOOKUP($A183,[8]CHD08!$E$15:$O$225,10,0)","v":18109},{"$f":"VLOOKUP($A183,[9]BP05!$E$14:$O$225,5,0)","v":64990},{"$f":"VLOOKUP($A183,[9]BP05!$E$14:$O$225,10,0)","v":83175},{"$f":"VLOOKUP($A183,[10]CKD03!$E$14:$O$225,5,0)","v":15576},{"$f":"VLOOKUP($A183,[10]CKD03!$E$14:$O$225,10,0)","v":21462},{"$f":"VLOOKUP($A183,[11]PAD03!$E$14:$O$225,5,0)","v":3128},{"$f":"VLOOKUP($A183,[11]PAD03!$E$14:$O$225,10,0)","v":3621},{"$f":"VLOOKUP($A183,[11]PAD04!$E$14:$O$225,5,0)","v":2629},{"$f":"VLOOKUP($A183,[11]PAD04!$E$14:$O$225,10,0)","v":3621},{"$f":"VLOOKUP($A183,[12]STROKE06!$E$14:$O$225,5,0)","v":9735},{"$f":"VLOOKUP($A183,[12]STROKE06!$E$14:$O$225,10,0)","v":11283},{"$f":"VLOOKUP($A183,[12]STROKE08!$E$14:$O$225,5,0)","v":7952},{"$f":"VLOOKUP($A183,[12]STROKE08!$E$14:$O$225,10,0)","v":11283},null,null,null,null,null,null,null,null,null,null,null,null,null,null,{"$f":"VLOOKUP($A183,[3]CHD!$E$14:$BS$226,29,0)","v":16024},{"$f":"VLOOKUP($A183,[3]CHD!$E$14:$BS$226,34,0)","v":17849},{"$f":"VLOOKUP($A183,[3]CHD!$E$14:$BS$226,37,0)","v":13764},{"$f":"VLOOKUP($A183,[3]CHD!$E$14:$BS$226,42,0)","v":17825},{"$f":"VLOOKUP($A183,[3]HYP!$E$14:$BK$226,29,0)","v":67778},{"$f":"VLOOKUP($A183,[3]HYP!$E$14:$BK$226,34,0)","v":84037},{"$f":"VLOOKUP($A183,[3]CKD!$E$14:$BG$230,33,0)","v":15776},{"$f":"VLOOKUP($A183,[3]CKD!$E$14:$BG$230,38,0)","v":20523},{"$f":"VLOOKUP(A183,[3]PAD!$E$14:$BC$226,29,0)","v":3155},{"$f":"VLOOKUP($A183,[3]PAD!$E$14:$BC$226,34,0)","v":3622},{"$f":"VLOOKUP($A183,[3]PAD!$E$14:$BC$226,37,0)","v":2664},{"$f":"VLOOKUP($A183,[3]PAD!$E$14:$BC$226,42,0)","v":3616},{"$f":"VLOOKUP($A183,[3]STIA!$E$14:$CA$230,37,0)","v":9923},{"$f":"VLOOKUP($A183,[3]STIA!$E$14:$CA$230,42,0)","v":11427},{"$f":"VLOOKUP($A183,[3]STIA!$E$14:$CA$230,53,0)","v":5202},{"$f":"VLOOKUP($A183,[3]STIA!$E$14:$CA$230,58,0)","v":7369}]
["10R","NHS Portsmouth",{"$f":"VLOOKUP($A184,'[6]201314'!$C$19:$J$256,8,0)","v":163},{"$f":"VLOOKUP($A184,'[6]201314'!$C$19:$J$256,7,0)","v":202952},{"$f":"VLOOKUP($A184,[7]Data!$A$6:$H$228,4,0)","v":353},{"$f":"VLOOKUP(A184,[3]CHD!$E$15:$H$226,4,0)","v":217685},{"$f":"VLOOKUP($A184,[7]Data!$A$6:$H$228,3,0)","v":657},217685,{"$f":"VLOOKUP($A184,[7]Data!$A$6:$H$228,5,0)","v":157},217685,{"$f":"VLOOKUP($A184,[7]Data!$A$6:$H$228,6,0)","v":488},217685,{"$f":"VLOOKUP($A184,[7]Data!$A$6:$H$228,7,0)","v":249},217685,{"$f":"VLOOKUP($A184,[7]Data!$A$6:$H$228,8,0)","v":49},217685,{"$f":"VLOOKUP($A184,[8]CHD06!$E$15:$O$225,5,0)","v":5854},{"$f":"VLOOKUP($A184,[8]CHD06!$E$15:$O$225,10,0)","v":6495},{"$f":"VLOOKUP($A184,[8]CHD08!$E$15:$O$225,5,0)","v":4751},{"$f":"VLOOKUP($A184,[8]CHD08!$E$15:$O$225,10,0)","v":6495},{"$f":"VLOOKUP($A184,[9]BP05!$E$14:$O$225,5,0)","v":21090},{"$f":"VLOOKUP($A184,[9]BP05!$E$14:$O$225,10,0)","v":25989},{"$f":"VLOOKUP($A184,[10]CKD03!$E$14:$O$225,5,0)","v":4362},{"$f":"VLOOKUP($A184,[10]CKD03!$E$14:$O$225,10,0)","v":5686},{"$f":"VLOOKUP($A184,[11]PAD03!$E$14:$O$225,5,0)","v":1216},{"$f":"VLOOKUP($A184,[11]PAD03!$E$14:$O$225,10,0)","v":1372},{"$f":"VLOOKUP($A184,[11]PAD04!$E$14:$O$225,5,0)","v":966},{"$f":"VLOOKUP($A184,[11]PAD04!$E$14:$O$225,10,0)","v":1372},{"$f":"VLOOKUP($A184,[12]STROKE06!$E$14:$O$225,5,0)","v":2837},{"$f":"VLOOKUP($A184,[12]STROKE06!$E$14:$O$225,10,0)","v":3234},{"$f":"VLOOKUP($A184,[12]STROKE08!$E$14:$O$225,5,0)","v":2224},{"$f":"VLOOKUP($A184,[12]STROKE08!$E$14:$O$225,10,0)","v":3234},null,null,null,null,null,null,null,null,null,null,null,null,null,null,{"$f":"VLOOKUP($A184,[3]CHD!$E$14:$BS$226,29,0)","v":5779},{"$f":"VLOOKUP($A184,[3]CHD!$E$14:$BS$226,34,0)","v":6321},{"$f":"VLOOKUP($A184,[3]CHD!$E$14:$BS$226,37,0)","v":4663},{"$f":"VLOOKUP($A184,[3]CHD!$E$14:$BS$226,42,0)","v":6321},{"$f":"VLOOKUP($A184,[3]HYP!$E$14:$BK$226,29,0)","v":21684},{"$f":"VLOOKUP($A184,[3]HYP!$E$14:$BK$226,34,0)","v":26119},{"$f":"VLOOKUP($A184,[3]CKD!$E$14:$BG$230,33,0)","v":4366},{"$f":"VLOOKUP($A184,[3]CKD!$E$14:$BG$230,38,0)","v":5335},{"$f":"VLOOKUP(A184,[3]PAD!$E$14:$BC$226,29,0)","v":1210},{"$f":"VLOOKUP($A184,[3]PAD!$E$14:$BC$226,34,0)","v":1352},{"$f":"VLOOKUP($A184,[3]PAD!$E$14:$BC$226,37,0)","v":959},{"$f":"VLOOKUP($A184,[3]PAD!$E$14:$BC$226,42,0)","v":1352},{"$f":"VLOOKUP($A184,[3]STIA!$E$14:$CA$230,37,0)","v":2904},{"$f":"VLOOKUP($A184,[3]STIA!$E$14:$CA$230,42,0)","v":3281},{"$f":"VLOOKUP($A184,[3]STIA!$E$14:$CA$230,53,0)","v":1519},{"$f":"VLOOKUP($A184,[3]STIA!$E$14:$CA$230,58,0)","v":2255}]
["10T","NHS Slough",{"$f":"VLOOKUP($A185,'[6]201314'!$C$19:$J$256,8,0)","v":86},{"$f":"VLOOKUP($A185,'[6]201314'!$C$19:$J$256,7,0)","v":140531},{"$f":"VLOOKUP($A185,[7]Data!$A$6:$H$228,4,0)","v":178},{"$f":"VLOOKUP(A185,[3]CHD!$E$15:$H$226,4,0)","v":146685},{"$f":"VLOOKUP($A185,[7]Data!$A$6:$H$228,3,0)","v":700},146685,{"$f":"VLOOKUP($A185,[7]Data!$A$6:$H$228,5,0)","v":149},146685,{"$f":"VLOOKUP($A185,[7]Data!$A$6:$H$228,6,0)","v":477},146685,{"$f":"VLOOKUP($A185,[7]Data!$A$6:$H$228,7,0)","v":209},146685,{"$f":"VLOOKUP($A185,[7]Data!$A$6:$H$228,8,0)","v":67},146685,{"$f":"VLOOKUP($A185,[8]CHD06!$E$15:$O$225,5,0)","v":3397},{"$f":"VLOOKUP($A185,[8]CHD06!$E$15:$O$225,10,0)","v":3809},{"$f":"VLOOKUP($A185,[8]CHD08!$E$15:$O$225,5,0)","v":2772},{"$f":"VLOOKUP($A185,[8]CHD08!$E$15:$O$225,10,0)","v":3809},{"$f":"VLOOKUP($A185,[9]BP05!$E$14:$O$225,5,0)","v":12439},{"$f":"VLOOKUP($A185,[9]BP05!$E$14:$O$225,10,0)","v":15671},{"$f":"VLOOKUP($A185,[10]CKD03!$E$14:$O$225,5,0)","v":2562},{"$f":"VLOOKUP($A185,[10]CKD03!$E$14:$O$225,10,0)","v":3389},{"$f":"VLOOKUP($A185,[11]PAD03!$E$14:$O$225,5,0)","v":739},{"$f":"VLOOKUP($A185,[11]PAD03!$E$14:$O$225,10,0)","v":822},{"$f":"VLOOKUP($A185,[11]PAD04!$E$14:$O$225,5,0)","v":619},{"$f":"VLOOKUP($A185,[11]PAD04!$E$14:$O$225,10,0)","v":822},{"$f":"VLOOKUP($A185,[12]STROKE06!$E$14:$O$225,5,0)","v":1391},{"$f":"VLOOKUP($A185,[12]STROKE06!$E$14:$O$225,10,0)","v":1588},{"$f":"VLOOKUP($A185,[12]STROKE08!$E$14:$O$225,5,0)","v":1128},{"$f":"VLOOKUP($A185,[12]STROKE08!$E$14:$O$225,10,0)","v":1588},null,null,null,null,null,null,null,null,null,null,null,null,null,null,{"$f":"VLOOKUP($A185,[3]CHD!$E$14:$BS$226,29,0)","v":3513},{"$f":"VLOOKUP($A185,[3]CHD!$E$14:$BS$226,34,0)","v":3806},{"$f":"VLOOKUP($A185,[3]CHD!$E$14:$BS$226,37,0)","v":2974},{"$f":"VLOOKUP($A185,[3]CHD!$E$14:$BS$226,42,0)","v":3763},{"$f":"VLOOKUP($A185,[3]HYP!$E$14:$BK$226,29,0)","v":13109},{"$f":"VLOOKUP($A185,[3]HYP!$E$14:$BK$226,34,0)","v":15872},{"$f":"VLOOKUP($A185,[3]CKD!$E$14:$BG$230,33,0)","v":2663},{"$f":"VLOOKUP($A185,[3]CKD!$E$14:$BG$230,38,0)","v":3246},{"$f":"VLOOKUP(A185,[3]PAD!$E$14:$BC$226,29,0)","v":700},{"$f":"VLOOKUP($A185,[3]PAD!$E$14:$BC$226,34,0)","v":762},{"$f":"VLOOKUP($A185,[3]PAD!$E$14:$BC$226,37,0)","v":618},{"$f":"VLOOKUP($A185,[3]PAD!$E$14:$BC$226,42,0)","v":752},{"$f":"VLOOKUP($A185,[3]STIA!$E$14:$CA$230,37,0)","v":1413},{"$f":"VLOOKUP($A185,[3]STIA!$E$14:$CA$230,42,0)","v":1580},{"$f":"VLOOKUP($A185,[3]STIA!$E$14:$CA$230,53,0)","v":698},{"$f":"VLOOKUP($A185,[3]STIA!$E$14:$CA$230,58,0)","v":912}]
["10V","NHS South Eastern Hampshire",{"$f":"VLOOKUP($A186,'[6]201314'!$C$19:$J$256,8,0)","v":115},{"$f":"VLOOKUP($A186,'[6]201314'!$C$19:$J$256,7,0)","v":188463},{"$f":"VLOOKUP($A186,[7]Data!$A$6:$H$228,4,0)","v":436},{"$f":"VLOOKUP(A186,[3]CHD!$E$15:$H$226,4,0)","v":208977},{"$f":"VLOOKUP($A186,[7]Data!$A$6:$H$228,3,0)","v":877},208977,{"$f":"VLOOKUP($A186,[7]Data!$A$6:$H$228,5,0)","v":203},208977,{"$f":"VLOOKUP($A186,[7]Data!$A$6:$H$228,6,0)","v":608},208977,{"$f":"VLOOKUP($A186,[7]Data!$A$6:$H$228,7,0)","v":310},208977,{"$f":"VLOOKUP($A186,[7]Data!$A$6:$H$228,8,0)","v":53},208977,{"$f":"VLOOKUP($A186,[8]CHD06!$E$15:$O$225,5,0)","v":7040},{"$f":"VLOOKUP($A186,[8]CHD06!$E$15:$O$225,10,0)","v":7961},{"$f":"VLOOKUP($A186,[8]CHD08!$E$15:$O$225,5,0)","v":5714},{"$f":"VLOOKUP($A186,[8]CHD08!$E$15:$O$225,10,0)","v":7960},{"$f":"VLOOKUP($A186,[9]BP05!$E$14:$O$225,5,0)","v":24484},{"$f":"VLOOKUP($A186,[9]BP05!$E$14:$O$225,10,0)","v":31710},{"$f":"VLOOKUP($A186,[10]CKD03!$E$14:$O$225,5,0)","v":4748},{"$f":"VLOOKUP($A186,[10]CKD03!$E$14:$O$225,10,0)","v":6582},{"$f":"VLOOKUP($A186,[11]PAD03!$E$14:$O$225,5,0)","v":1433},{"$f":"VLOOKUP($A186,[11]PAD03!$E$14:$O$225,10,0)","v":1686},{"$f":"VLOOKUP($A186,[11]PAD04!$E$14:$O$225,5,0)","v":1120},{"$f":"VLOOKUP($A186,[11]PAD04!$E$14:$O$225,10,0)","v":1688},{"$f":"VLOOKUP($A186,[12]STROKE06!$E$14:$O$225,5,0)","v":3398},{"$f":"VLOOKUP($A186,[12]STROKE06!$E$14:$O$225,10,0)","v":3959},{"$f":"VLOOKUP($A186,[12]STROKE08!$E$14:$O$225,5,0)","v":2603},{"$f":"VLOOKUP($A186,[12]STROKE08!$E$14:$O$225,10,0)","v":3959},null,null,null,null,null,null,null,null,null,null,null,null,null,null,{"$f":"VLOOKUP($A186,[3]CHD!$E$14:$BS$226,29,0)","v":7122},{"$f":"VLOOKUP($A186,[3]CHD!$E$14:$BS$226,34,0)","v":7914},{"$f":"VLOOKUP($A186,[3]CHD!$E$14:$BS$226,37,0)","v":5642},{"$f":"VLOOKUP($A186,[3]CHD!$E$14:$BS$226,42,0)","v":7914},{"$f":"VLOOKUP($A186,[3]HYP!$E$14:$BK$226,29,0)","v":26097},{"$f":"VLOOKUP($A186,[3]HYP!$E$14:$BK$226,34,0)","v":32213},{"$f":"VLOOKUP($A186,[3]CKD!$E$14:$BG$230,33,0)","v":6392},{"$f":"VLOOKUP($A186,[3]CKD!$E$14:$BG$230,38,0)","v":8300},{"$f":"VLOOKUP(A186,[3]PAD!$E$14:$BC$226,29,0)","v":1430},{"$f":"VLOOKUP($A186,[3]PAD!$E$14:$BC$226,34,0)","v":1641},{"$f":"VLOOKUP($A186,[3]PAD!$E$14:$BC$226,37,0)","v":1089},{"$f":"VLOOKUP($A186,[3]PAD!$E$14:$BC$226,42,0)","v":1641},{"$f":"VLOOKUP($A186,[3]STIA!$E$14:$CA$230,37,0)","v":3516},{"$f":"VLOOKUP($A186,[3]STIA!$E$14:$CA$230,42,0)","v":4021},{"$f":"VLOOKUP($A186,[3]STIA!$E$14:$CA$230,53,0)","v":1819},{"$f":"VLOOKUP($A186,[3]STIA!$E$14:$CA$230,58,0)","v":2798}]
["10W","NHS South Reading",{"$f":"VLOOKUP($A187,'[6]201314'!$C$19:$J$256,8,0)","v":60},{"$f":"VLOOKUP($A187,'[6]201314'!$C$19:$J$256,7,0)","v":125233},{"$f":"VLOOKUP($A187,[7]Data!$A$6:$H$228,4,0)","v":123},{"$f":"VLOOKUP(A187,[3]CHD!$E$15:$H$226,4,0)","v":132560},{"$f":"VLOOKUP($A187,[7]Data!$A$6:$H$228,3,0)","v":315},132560,{"$f":"VLOOKUP($A187,[7]Data!$A$6:$H$228,5,0)","v":71},132560,{"$f":"VLOOKUP($A187,[7]Data!$A$6:$H$228,6,0)","v":218},132560,{"$f":"VLOOKUP($A187,[7]Data!$A$6:$H$228,7,0)","v":113},132560,{"$f":"VLOOKUP($A187,[7]Data!$A$6:$H$228,8,0)","v":22},132560,{"$f":"VLOOKUP($A187,[8]CHD06!$E$15:$O$225,5,0)","v":2046},{"$f":"VLOOKUP($A187,[8]CHD06!$E$15:$O$225,10,0)","v":2299},{"$f":"VLOOKUP($A187,[8]CHD08!$E$15:$O$225,5,0)","v":1723},{"$f":"VLOOKUP($A187,[8]CHD08!$E$15:$O$225,10,0)","v":2299},{"$f":"VLOOKUP($A187,[9]BP05!$E$14:$O$225,5,0)","v":10475},{"$f":"VLOOKUP($A187,[9]BP05!$E$14:$O$225,10,0)","v":13479},{"$f":"VLOOKUP($A187,[10]CKD03!$E$14:$O$225,5,0)","v":2422},{"$f":"VLOOKUP($A187,[10]CKD03!$E$14:$O$225,10,0)","v":3289},{"$f":"VLOOKUP($A187,[11]PAD03!$E$14:$O$225,5,0)","v":341},{"$f":"VLOOKUP($A187,[11]PAD03!$E$14:$O$225,10,0)","v":391},{"$f":"VLOOKUP($A187,[11]PAD04!$E$14:$O$225,5,0)","v":275},{"$f":"VLOOKUP($A187,[11]PAD04!$E$14:$O$225,10,0)","v":387},{"$f":"VLOOKUP($A187,[12]STROKE06!$E$14:$O$225,5,0)","v":951},{"$f":"VLOOKUP($A187,[12]STROKE06!$E$14:$O$225,10,0)","v":1119},{"$f":"VLOOKUP($A187,[12]STROKE08!$E$14:$O$225,5,0)","v":791},{"$f":"VLOOKUP($A187,[12]STROKE08!$E$14:$O$225,10,0)","v":1119},null,null,null,null,null,null,null,null,null,null,null,null,null,null,{"$f":"VLOOKUP($A187,[3]CHD!$E$14:$BS$226,29,0)","v":2071},{"$f":"VLOOKUP($A187,[3]CHD!$E$14:$BS$226,34,0)","v":2254},{"$f":"VLOOKUP($A187,[3]CHD!$E$14:$BS$226,37,0)","v":1868},{"$f":"VLOOKUP($A187,[3]CHD!$E$14:$BS$226,42,0)","v":2248},{"$f":"VLOOKUP($A187,[3]HYP!$E$14:$BK$226,29,0)","v":10773},{"$f":"VLOOKUP($A187,[3]HYP!$E$14:$BK$226,34,0)","v":13575},{"$f":"VLOOKUP($A187,[3]CKD!$E$14:$BG$230,33,0)","v":2482},{"$f":"VLOOKUP($A187,[3]CKD!$E$14:$BG$230,38,0)","v":3229},{"$f":"VLOOKUP(A187,[3]PAD!$E$14:$BC$226,29,0)","v":355},{"$f":"VLOOKUP($A187,[3]PAD!$E$14:$BC$226,34,0)","v":393},{"$f":"VLOOKUP($A187,[3]PAD!$E$14:$BC$226,37,0)","v":309},{"$f":"VLOOKUP($A187,[3]PAD!$E$14:$BC$226,42,0)","v":393},{"$f":"VLOOKUP($A187,[3]STIA!$E$14:$CA$230,37,0)","v":1048},{"$f":"VLOOKUP($A187,[3]STIA!$E$14:$CA$230,42,0)","v":1176},{"$f":"VLOOKUP($A187,[3]STIA!$E$14:$CA$230,53,0)","v":511},{"$f":"VLOOKUP($A187,[3]STIA!$E$14:$CA$230,58,0)","v":655}]
["10X","NHS Southampton",{"$f":"VLOOKUP($A188,'[6]201314'!$C$19:$J$256,8,0)","v":142},{"$f":"VLOOKUP($A188,'[6]201314'!$C$19:$J$256,7,0)","v":250604},{"$f":"VLOOKUP($A188,[7]Data!$A$6:$H$228,4,0)","v":332},{"$f":"VLOOKUP(A188,[3]CHD!$E$15:$H$226,4,0)","v":267765},{"$f":"VLOOKUP($A188,[7]Data!$A$6:$H$228,3,0)","v":748},267765,{"$f":"VLOOKUP($A188,[7]Data!$A$6:$H$228,5,0)","v":256},267765,{"$f":"VLOOKUP($A188,[7]Data!$A$6:$H$228,6,0)","v":377},267765,{"$f":"VLOOKUP($A188,[7]Data!$A$6:$H$228,7,0)","v":244},267765,{"$f":"VLOOKUP($A188,[7]Data!$A$6:$H$228,8,0)","v":86},267765,{"$f":"VLOOKUP($A188,[8]CHD06!$E$15:$O$225,5,0)","v":6224},{"$f":"VLOOKUP($A188,[8]CHD06!$E$15:$O$225,10,0)","v":7057},{"$f":"VLOOKUP($A188,[8]CHD08!$E$15:$O$225,5,0)","v":5169},{"$f":"VLOOKUP($A188,[8]CHD08!$E$15:$O$225,10,0)","v":7057},{"$f":"VLOOKUP($A188,[9]BP05!$E$14:$O$225,5,0)","v":22194},{"$f":"VLOOKUP($A188,[9]BP05!$E$14:$O$225,10,0)","v":29011},{"$f":"VLOOKUP($A188,[10]CKD03!$E$14:$O$225,5,0)","v":5585},{"$f":"VLOOKUP($A188,[10]CKD03!$E$14:$O$225,10,0)","v":7845},{"$f":"VLOOKUP($A188,[11]PAD03!$E$14:$O$225,5,0)","v":1392},{"$f":"VLOOKUP($A188,[11]PAD03!$E$14:$O$225,10,0)","v":1651},{"$f":"VLOOKUP($A188,[11]PAD04!$E$14:$O$225,5,0)","v":1078},{"$f":"VLOOKUP($A188,[11]PAD04!$E$14:$O$225,10,0)","v":1651},{"$f":"VLOOKUP($A188,[12]STROKE06!$E$14:$O$225,5,0)","v":3374},{"$f":"VLOOKUP($A188,[12]STROKE06!$E$14:$O$225,10,0)","v":3962},{"$f":"VLOOKUP($A188,[12]STROKE08!$E$14:$O$225,5,0)","v":2665},{"$f":"VLOOKUP($A188,[12]STROKE08!$E$14:$O$225,10,0)","v":3962},null,null,null,null,null,null,null,null,null,null,null,null,null,null,{"$f":"VLOOKUP($A188,[3]CHD!$E$14:$BS$226,29,0)","v":6128},{"$f":"VLOOKUP($A188,[3]CHD!$E$14:$BS$226,34,0)","v":6885},{"$f":"VLOOKUP($A188,[3]CHD!$E$14:$BS$226,37,0)","v":5026},{"$f":"VLOOKUP($A188,[3]CHD!$E$14:$BS$226,42,0)","v":6855},{"$f":"VLOOKUP($A188,[3]HYP!$E$14:$BK$226,29,0)","v":22910},{"$f":"VLOOKUP($A188,[3]HYP!$E$14:$BK$226,34,0)","v":29105},{"$f":"VLOOKUP($A188,[3]CKD!$E$14:$BG$230,33,0)","v":5050},{"$f":"VLOOKUP($A188,[3]CKD!$E$14:$BG$230,38,0)","v":6816},{"$f":"VLOOKUP(A188,[3]PAD!$E$14:$BC$226,29,0)","v":1407},{"$f":"VLOOKUP($A188,[3]PAD!$E$14:$BC$226,34,0)","v":1641},{"$f":"VLOOKUP($A188,[3]PAD!$E$14:$BC$226,37,0)","v":1097},{"$f":"VLOOKUP($A188,[3]PAD!$E$14:$BC$226,42,0)","v":1636},{"$f":"VLOOKUP($A188,[3]STIA!$E$14:$CA$230,37,0)","v":3361},{"$f":"VLOOKUP($A188,[3]STIA!$E$14:$CA$230,42,0)","v":3968},{"$f":"VLOOKUP($A188,[3]STIA!$E$14:$CA$230,53,0)","v":1844},{"$f":"VLOOKUP($A188,[3]STIA!$E$14:$CA$230,58,0)","v":2714}]
["10Y","NHS Aylesbury Vale",{"$f":"VLOOKUP($A189,'[6]201314'!$C$19:$J$256,8,0)","v":81},{"$f":"VLOOKUP($A189,'[6]201314'!$C$19:$J$256,7,0)","v":186294},{"$f":"VLOOKUP($A189,[7]Data!$A$6:$H$228,4,0)","v":244},{"$f":"VLOOKUP(A189,[3]CHD!$E$15:$H$226,4,0)","v":200597},{"$f":"VLOOKUP($A189,[7]Data!$A$6:$H$228,3,0)","v":834},200597,{"$f":"VLOOKUP($A189,[7]Data!$A$6:$H$228,5,0)","v":176},200597,{"$f":"VLOOKUP($A189,[7]Data!$A$6:$H$228,6,0)","v":595},200597,{"$f":"VLOOKUP($A189,[7]Data!$A$6:$H$228,7,0)","v":302},200597,{"$f":"VLOOKUP($A189,[7]Data!$A$6:$H$228,8,0)","v":39},200597,{"$f":"VLOOKUP($A189,[8]CHD06!$E$15:$O$225,5,0)","v":5714},{"$f":"VLOOKUP($A189,[8]CHD06!$E$15:$O$225,10,0)","v":6425},{"$f":"VLOOKUP($A189,[8]CHD08!$E$15:$O$225,5,0)","v":4656},{"$f":"VLOOKUP($A189,[8]CHD08!$E$15:$O$225,10,0)","v":6425},{"$f":"VLOOKUP($A189,[9]BP05!$E$14:$O$225,5,0)","v":20370},{"$f":"VLOOKUP($A189,[9]BP05!$E$14:$O$225,10,0)","v":26550},{"$f":"VLOOKUP($A189,[10]CKD03!$E$14:$O$225,5,0)","v":3523},{"$f":"VLOOKUP($A189,[10]CKD03!$E$14:$O$225,10,0)","v":4866},{"$f":"VLOOKUP($A189,[11]PAD03!$E$14:$O$225,5,0)","v":990},{"$f":"VLOOKUP($A189,[11]PAD03!$E$14:$O$225,10,0)","v":1192},{"$f":"VLOOKUP($A189,[11]PAD04!$E$14:$O$225,5,0)","v":739},{"$f":"VLOOKUP($A189,[11]PAD04!$E$14:$O$225,10,0)","v":1192},{"$f":"VLOOKUP($A189,[12]STROKE06!$E$14:$O$225,5,0)","v":2548},{"$f":"VLOOKUP($A189,[12]STROKE06!$E$14:$O$225,10,0)","v":3003},{"$f":"VLOOKUP($A189,[12]STROKE08!$E$14:$O$225,5,0)","v":1961},{"$f":"VLOOKUP($A189,[12]STROKE08!$E$14:$O$225,10,0)","v":3003},null,null,null,null,null,null,null,null,null,null,null,null,null,null,{"$f":"VLOOKUP($A189,[3]CHD!$E$14:$BS$226,29,0)","v":5741},{"$f":"VLOOKUP($A189,[3]CHD!$E$14:$BS$226,34,0)","v":6388},{"$f":"VLOOKUP($A189,[3]CHD!$E$14:$BS$226,37,0)","v":4541},{"$f":"VLOOKUP($A189,[3]CHD!$E$14:$BS$226,42,0)","v":6388},{"$f":"VLOOKUP($A189,[3]HYP!$E$14:$BK$226,29,0)","v":21637},{"$f":"VLOOKUP($A189,[3]HYP!$E$14:$BK$226,34,0)","v":26955},{"$f":"VLOOKUP($A189,[3]CKD!$E$14:$BG$230,33,0)","v":3863},{"$f":"VLOOKUP($A189,[3]CKD!$E$14:$BG$230,38,0)","v":4863},{"$f":"VLOOKUP(A189,[3]PAD!$E$14:$BC$226,29,0)","v":1012},{"$f":"VLOOKUP($A189,[3]PAD!$E$14:$BC$226,34,0)","v":1160},{"$f":"VLOOKUP($A189,[3]PAD!$E$14:$BC$226,37,0)","v":741},{"$f":"VLOOKUP($A189,[3]PAD!$E$14:$BC$226,42,0)","v":1160},{"$f":"VLOOKUP($A189,[3]STIA!$E$14:$CA$230,37,0)","v":2684},{"$f":"VLOOKUP($A189,[3]STIA!$E$14:$CA$230,42,0)","v":3058},{"$f":"VLOOKUP($A189,[3]STIA!$E$14:$CA$230,53,0)","v":1317},{"$f":"VLOOKUP($A189,[3]STIA!$E$14:$CA$230,58,0)","v":2030}]
["11A","NHS West Hampshire",{"$f":"VLOOKUP($A190,'[6]201314'!$C$19:$J$256,8,0)","v":279},{"$f":"VLOOKUP($A190,'[6]201314'!$C$19:$J$256,7,0)","v":488689},{"$f":"VLOOKUP($A190,[7]Data!$A$6:$H$228,4,0)","v":944},{"$f":"VLOOKUP(A190,[3]CHD!$E$15:$H$226,4,0)","v":543354},{"$f":"VLOOKUP($A190,[7]Data!$A$6:$H$228,3,0)","v":2425},543354,{"$f":"VLOOKUP($A190,[7]Data!$A$6:$H$228,5,0)","v":610},543354,{"$f":"VLOOKUP($A190,[7]Data!$A$6:$H$228,6,0)","v":1472},543354,{"$f":"VLOOKUP($A190,[7]Data!$A$6:$H$228,7,0)","v":742},543354,{"$f":"VLOOKUP($A190,[7]Data!$A$6:$H$228,8,0)","v":235},543354,{"$f":"VLOOKUP($A190,[8]CHD06!$E$15:$O$225,5,0)","v":16221},{"$f":"VLOOKUP($A190,[8]CHD06!$E$15:$O$225,10,0)","v":18573},{"$f":"VLOOKUP($A190,[8]CHD08!$E$15:$O$225,5,0)","v":13270},{"$f":"VLOOKUP($A190,[8]CHD08!$E$15:$O$225,10,0)","v":18573},{"$f":"VLOOKUP($A190,[9]BP05!$E$14:$O$225,5,0)","v":59452},{"$f":"VLOOKUP($A190,[9]BP05!$E$14:$O$225,10,0)","v":78123},{"$f":"VLOOKUP($A190,[10]CKD03!$E$14:$O$225,5,0)","v":12658},{"$f":"VLOOKUP($A190,[10]CKD03!$E$14:$O$225,10,0)","v":18531},{"$f":"VLOOKUP($A190,[11]PAD03!$E$14:$O$225,5,0)","v":2805},{"$f":"VLOOKUP($A190,[11]PAD03!$E$14:$O$225,10,0)","v":3302},{"$f":"VLOOKUP($A190,[11]PAD04!$E$14:$O$225,5,0)","v":2220},{"$f":"VLOOKUP($A190,[11]PAD04!$E$14:$O$225,10,0)","v":3302},{"$f":"VLOOKUP($A190,[12]STROKE06!$E$14:$O$225,5,0)","v":9317},{"$f":"VLOOKUP($A190,[12]STROKE06!$E$14:$O$225,10,0)","v":11065},{"$f":"VLOOKUP($A190,[12]STROKE08!$E$14:$O$225,5,0)","v":6966},{"$f":"VLOOKUP($A190,[12]STROKE08!$E$14:$O$225,10,0)","v":11065},null,null,null,null,null,null,null,null,null,null,null,null,null,null,{"$f":"VLOOKUP($A190,[3]CHD!$E$14:$BS$226,29,0)","v":15966},{"$f":"VLOOKUP($A190,[3]CHD!$E$14:$BS$226,34,0)","v":18066},{"$f":"VLOOKUP($A190,[3]CHD!$E$14:$BS$226,37,0)","v":12897},{"$f":"VLOOKUP($A190,[3]CHD!$E$14:$BS$226,42,0)","v":18005},{"$f":"VLOOKUP($A190,[3]HYP!$E$14:$BK$226,29,0)","v":60868},{"$f":"VLOOKUP($A190,[3]HYP!$E$14:$BK$226,34,0)","v":77518},{"$f":"VLOOKUP($A190,[3]CKD!$E$14:$BG$230,33,0)","v":12233},{"$f":"VLOOKUP($A190,[3]CKD!$E$14:$BG$230,38,0)","v":16891},{"$f":"VLOOKUP(A190,[3]PAD!$E$14:$BC$226,29,0)","v":2584},{"$f":"VLOOKUP($A190,[3]PAD!$E$14:$BC$226,34,0)","v":3104},{"$f":"VLOOKUP($A190,[3]PAD!$E$14:$BC$226,37,0)","v":2016},{"$f":"VLOOKUP($A190,[3]PAD!$E$14:$BC$226,42,0)","v":3095},{"$f":"VLOOKUP($A190,[3]STIA!$E$14:$CA$230,37,0)","v":9274},{"$f":"VLOOKUP($A190,[3]STIA!$E$14:$CA$230,42,0)","v":11000},{"$f":"VLOOKUP($A190,[3]STIA!$E$14:$CA$230,53,0)","v":4620},{"$f":"VLOOKUP($A190,[3]STIA!$E$14:$CA$230,58,0)","v":7215}]
["11C","NHS Windsor, Ascot and Maidenhead",{"$f":"VLOOKUP($A191,'[6]201314'!$C$19:$J$256,8,0)","v":75},{"$f":"VLOOKUP($A191,'[6]201314'!$C$19:$J$256,7,0)","v":141411},{"$f":"VLOOKUP($A191,[7]Data!$A$6:$H$228,4,0)","v":198},{"$f":"VLOOKUP(A191,[3]CHD!$E$15:$H$226,4,0)","v":152712},{"$f":"VLOOKUP($A191,[7]Data!$A$6:$H$228,3,0)","v":528},152712,{"$f":"VLOOKUP($A191,[7]Data!$A$6:$H$228,5,0)","v":131},152712,{"$f":"VLOOKUP($A191,[7]Data!$A$6:$H$228,6,0)","v":404},152712,{"$f":"VLOOKUP($A191,[7]Data!$A$6:$H$228,7,0)","v":163},152712,{"$f":"VLOOKUP($A191,[7]Data!$A$6:$H$228,8,0)","v":44},152712,{"$f":"VLOOKUP($A191,[8]CHD06!$E$15:$O$225,5,0)","v":3532},{"$f":"VLOOKUP($A191,[8]CHD06!$E$15:$O$225,10,0)","v":3978},{"$f":"VLOOKUP($A191,[8]CHD08!$E$15:$O$225,5,0)","v":2824},{"$f":"VLOOKUP($A191,[8]CHD08!$E$15:$O$225,10,0)","v":3978},{"$f":"VLOOKUP($A191,[9]BP05!$E$14:$O$225,5,0)","v":13152},{"$f":"VLOOKUP($A191,[9]BP05!$E$14:$O$225,10,0)","v":16686},{"$f":"VLOOKUP($A191,[10]CKD03!$E$14:$O$225,5,0)","v":3093},{"$f":"VLOOKUP($A191,[10]CKD03!$E$14:$O$225,10,0)","v":4187},{"$f":"VLOOKUP($A191,[11]PAD03!$E$14:$O$225,5,0)","v":637},{"$f":"VLOOKUP($A191,[11]PAD03!$E$14:$O$225,10,0)","v":719},{"$f":"VLOOKUP($A191,[11]PAD04!$E$14:$O$225,5,0)","v":469},{"$f":"VLOOKUP($A191,[11]PAD04!$E$14:$O$225,10,0)","v":719},{"$f":"VLOOKUP($A191,[12]STROKE06!$E$14:$O$225,5,0)","v":1954},{"$f":"VLOOKUP($A191,[12]STROKE06!$E$14:$O$225,10,0)","v":2239},{"$f":"VLOOKUP($A191,[12]STROKE08!$E$14:$O$225,5,0)","v":1476},{"$f":"VLOOKUP($A191,[12]STROKE08!$E$14:$O$225,10,0)","v":2239},null,null,null,null,null,null,null,null,null,null,null,null,null,null,{"$f":"VLOOKUP($A191,[3]CHD!$E$14:$BS$226,29,0)","v":3590},{"$f":"VLOOKUP($A191,[3]CHD!$E$14:$BS$226,34,0)","v":3912},{"$f":"VLOOKUP($A191,[3]CHD!$E$14:$BS$226,37,0)","v":2899},{"$f":"VLOOKUP($A191,[3]CHD!$E$14:$BS$226,42,0)","v":3853},{"$f":"VLOOKUP($A191,[3]HYP!$E$14:$BK$226,29,0)","v":13726},{"$f":"VLOOKUP($A191,[3]HYP!$E$14:$BK$226,34,0)","v":16854},{"$f":"VLOOKUP($A191,[3]CKD!$E$14:$BG$230,33,0)","v":3355},{"$f":"VLOOKUP($A191,[3]CKD!$E$14:$BG$230,38,0)","v":4211},{"$f":"VLOOKUP(A191,[3]PAD!$E$14:$BC$226,29,0)","v":622},{"$f":"VLOOKUP($A191,[3]PAD!$E$14:$BC$226,34,0)","v":701},{"$f":"VLOOKUP($A191,[3]PAD!$E$14:$BC$226,37,0)","v":484},{"$f":"VLOOKUP($A191,[3]PAD!$E$14:$BC$226,42,0)","v":686},{"$f":"VLOOKUP($A191,[3]STIA!$E$14:$CA$230,37,0)","v":2036},{"$f":"VLOOKUP($A191,[3]STIA!$E$14:$CA$230,42,0)","v":2301},{"$f":"VLOOKUP($A191,[3]STIA!$E$14:$CA$230,53,0)","v":935},{"$f":"VLOOKUP($A191,[3]STIA!$E$14:$CA$230,58,0)","v":1404}]
["11D","NHS Wokingham",{"$f":"VLOOKUP($A192,'[6]201314'!$C$19:$J$256,8,0)","v":74},{"$f":"VLOOKUP($A192,'[6]201314'!$C$19:$J$256,7,0)","v":144377},{"$f":"VLOOKUP($A192,[7]Data!$A$6:$H$228,4,0)","v":207},{"$f":"VLOOKUP(A192,[3]CHD!$E$15:$H$226,4,0)","v":155927},{"$f":"VLOOKUP($A192,[7]Data!$A$6:$H$228,3,0)","v":568},155927,{"$f":"VLOOKUP($A192,[7]Data!$A$6:$H$228,5,0)","v":117},155927,{"$f":"VLOOKUP($A192,[7]Data!$A$6:$H$228,6,0)","v":402},155927,{"$f":"VLOOKUP($A192,[7]Data!$A$6:$H$228,7,0)","v":186},155927,{"$f":"VLOOKUP($A192,[7]Data!$A$6:$H$228,8,0)","v":39},155927,{"$f":"VLOOKUP($A192,[8]CHD06!$E$15:$O$225,5,0)","v":3530},{"$f":"VLOOKUP($A192,[8]CHD06!$E$15:$O$225,10,0)","v":3908},{"$f":"VLOOKUP($A192,[8]CHD08!$E$15:$O$225,5,0)","v":2881},{"$f":"VLOOKUP($A192,[8]CHD08!$E$15:$O$225,10,0)","v":3908},{"$f":"VLOOKUP($A192,[9]BP05!$E$14:$O$225,5,0)","v":15046},{"$f":"VLOOKUP($A192,[9]BP05!$E$14:$O$225,10,0)","v":18811},{"$f":"VLOOKUP($A192,[10]CKD03!$E$14:$O$225,5,0)","v":3472},{"$f":"VLOOKUP($A192,[10]CKD03!$E$14:$O$225,10,0)","v":4690},{"$f":"VLOOKUP($A192,[11]PAD03!$E$14:$O$225,5,0)","v":554},{"$f":"VLOOKUP($A192,[11]PAD03!$E$14:$O$225,10,0)","v":646},{"$f":"VLOOKUP($A192,[11]PAD04!$E$14:$O$225,5,0)","v":441},{"$f":"VLOOKUP($A192,[11]PAD04!$E$14:$O$225,10,0)","v":646},{"$f":"VLOOKUP($A192,[12]STROKE06!$E$14:$O$225,5,0)","v":1805},{"$f":"VLOOKUP($A192,[12]STROKE06!$E$14:$O$225,10,0)","v":2108},{"$f":"VLOOKUP($A192,[12]STROKE08!$E$14:$O$225,5,0)","v":1446},{"$f":"VLOOKUP($A192,[12]STROKE08!$E$14:$O$225,10,0)","v":2108},null,null,null,null,null,null,null,null,null,null,null,null,null,null,{"$f":"VLOOKUP($A192,[3]CHD!$E$14:$BS$226,29,0)","v":3467},{"$f":"VLOOKUP($A192,[3]CHD!$E$14:$BS$226,34,0)","v":3882},{"$f":"VLOOKUP($A192,[3]CHD!$E$14:$BS$226,37,0)","v":3022},{"$f":"VLOOKUP($A192,[3]CHD!$E$14:$BS$226,42,0)","v":3882},{"$f":"VLOOKUP($A192,[3]HYP!$E$14:$BK$226,29,0)","v":15233},{"$f":"VLOOKUP($A192,[3]HYP!$E$14:$BK$226,34,0)","v":19028},{"$f":"VLOOKUP($A192,[3]CKD!$E$14:$BG$230,33,0)","v":3525},{"$f":"VLOOKUP($A192,[3]CKD!$E$14:$BG$230,38,0)","v":4682},{"$f":"VLOOKUP(A192,[3]PAD!$E$14:$BC$226,29,0)","v":531},{"$f":"VLOOKUP($A192,[3]PAD!$E$14:$BC$226,34,0)","v":605},{"$f":"VLOOKUP($A192,[3]PAD!$E$14:$BC$226,37,0)","v":446},{"$f":"VLOOKUP($A192,[3]PAD!$E$14:$BC$226,42,0)","v":605},{"$f":"VLOOKUP($A192,[3]STIA!$E$14:$CA$230,37,0)","v":1852},{"$f":"VLOOKUP($A192,[3]STIA!$E$14:$CA$230,42,0)","v":2156},{"$f":"VLOOKUP($A192,[3]STIA!$E$14:$CA$230,53,0)","v":1051},{"$f":"VLOOKUP($A192,[3]STIA!$E$14:$CA$230,58,0)","v":1425}]
["11E","NHS Bath and North East Somerset",{"$f":"VLOOKUP($A193,'[6]201314'!$C$19:$J$256,8,0)","v":84},{"$f":"VLOOKUP($A193,'[6]201314'!$C$19:$J$256,7,0)","v":180799},{"$f":"VLOOKUP($A193,[7]Data!$A$6:$H$228,4,0)","v":354},{"$f":"VLOOKUP(A193,[3]CHD!$E$15:$H$226,4,0)","v":198254},{"$f":"VLOOKUP($A193,[7]Data!$A$6:$H$228,3,0)","v":808},198254,{"$f":"VLOOKUP($A193,[7]Data!$A$6:$H$228,5,0)","v":206},198254,{"$f":"VLOOKUP($A193,[7]Data!$A$6:$H$228,6,0)","v":564},198254,{"$f":"VLOOKUP($A193,[7]Data!$A$6:$H$228,7,0)","v":220},198254,{"$f":"VLOOKUP($A193,[7]Data!$A$6:$H$228,8,0)","v":44},198254,{"$f":"VLOOKUP($A193,[8]CHD06!$E$15:$O$225,5,0)","v":5136},{"$f":"VLOOKUP($A193,[8]CHD06!$E$15:$O$225,10,0)","v":5824},{"$f":"VLOOKUP($A193,[8]CHD08!$E$15:$O$225,5,0)","v":4247},{"$f":"VLOOKUP($A193,[8]CHD08!$E$15:$O$225,10,0)","v":5824},{"$f":"VLOOKUP($A193,[9]BP05!$E$14:$O$225,5,0)","v":19702},{"$f":"VLOOKUP($A193,[9]BP05!$E$14:$O$225,10,0)","v":25395},{"$f":"VLOOKUP($A193,[10]CKD03!$E$14:$O$225,5,0)","v":3655},{"$f":"VLOOKUP($A193,[10]CKD03!$E$14:$O$225,10,0)","v":5232},{"$f":"VLOOKUP($A193,[11]PAD03!$E$14:$O$225,5,0)","v":972},{"$f":"VLOOKUP($A193,[11]PAD03!$E$14:$O$225,10,0)","v":1134},{"$f":"VLOOKUP($A193,[11]PAD04!$E$14:$O$225,5,0)","v":791},{"$f":"VLOOKUP($A193,[11]PAD04!$E$14:$O$225,10,0)","v":1134},{"$f":"VLOOKUP($A193,[12]STROKE06!$E$14:$O$225,5,0)","v":2964},{"$f":"VLOOKUP($A193,[12]STROKE06!$E$14:$O$225,10,0)","v":3488},{"$f":"VLOOKUP($A193,[12]STROKE08!$E$14:$O$225,5,0)","v":2273},{"$f":"VLOOKUP($A193,[12]STROKE08!$E$14:$O$225,10,0)","v":3488},null,null,null,null,null,null,null,null,null,null,null,null,null,null,{"$f":"VLOOKUP($A193,[3]CHD!$E$14:$BS$226,29,0)","v":5147},{"$f":"VLOOKUP($A193,[3]CHD!$E$14:$BS$226,34,0)","v":5793},{"$f":"VLOOKUP($A193,[3]CHD!$E$14:$BS$226,37,0)","v":4206},{"$f":"VLOOKUP($A193,[3]CHD!$E$14:$BS$226,42,0)","v":5793},{"$f":"VLOOKUP($A193,[3]HYP!$E$14:$BK$226,29,0)","v":20336},{"$f":"VLOOKUP($A193,[3]HYP!$E$14:$BK$226,34,0)","v":25520},{"$f":"VLOOKUP($A193,[3]CKD!$E$14:$BG$230,33,0)","v":3562},{"$f":"VLOOKUP($A193,[3]CKD!$E$14:$BG$230,38,0)","v":4798},{"$f":"VLOOKUP(A193,[3]PAD!$E$14:$BC$226,29,0)","v":957},{"$f":"VLOOKUP($A193,[3]PAD!$E$14:$BC$226,34,0)","v":1105},{"$f":"VLOOKUP($A193,[3]PAD!$E$14:$BC$226,37,0)","v":728},{"$f":"VLOOKUP($A193,[3]PAD!$E$14:$BC$226,42,0)","v":1105},{"$f":"VLOOKUP($A193,[3]STIA!$E$14:$CA$230,37,0)","v":3010},{"$f":"VLOOKUP($A193,[3]STIA!$E$14:$CA$230,42,0)","v":3541},{"$f":"VLOOKUP($A193,[3]STIA!$E$14:$CA$230,53,0)","v":1488},{"$f":"VLOOKUP($A193,[3]STIA!$E$14:$CA$230,58,0)","v":2261}]
["11H","NHS Bristol",{"$f":"VLOOKUP($A194,'[6]201314'!$C$19:$J$256,8,0)","v":283},{"$f":"VLOOKUP($A194,'[6]201314'!$C$19:$J$256,7,0)","v":455898},{"$f":"VLOOKUP($A194,[7]Data!$A$6:$H$228,4,0)","v":554},{"$f":"VLOOKUP(A194,[3]CHD!$E$15:$H$226,4,0)","v":483412},{"$f":"VLOOKUP($A194,[7]Data!$A$6:$H$228,3,0)","v":1690},483412,{"$f":"VLOOKUP($A194,[7]Data!$A$6:$H$228,5,0)","v":441},483412,{"$f":"VLOOKUP($A194,[7]Data!$A$6:$H$228,6,0)","v":1118},483412,{"$f":"VLOOKUP($A194,[7]Data!$A$6:$H$228,7,0)","v":545},483412,{"$f":"VLOOKUP($A194,[7]Data!$A$6:$H$228,8,0)","v":126},483412,{"$f":"VLOOKUP($A194,[8]CHD06!$E$15:$O$225,5,0)","v":10258},{"$f":"VLOOKUP($A194,[8]CHD06!$E$15:$O$225,10,0)","v":11774},{"$f":"VLOOKUP($A194,[8]CHD08!$E$15:$O$225,5,0)","v":8380},{"$f":"VLOOKUP($A194,[8]CHD08!$E$15:$O$225,10,0)","v":11774},{"$f":"VLOOKUP($A194,[9]BP05!$E$14:$O$225,5,0)","v":39349},{"$f":"VLOOKUP($A194,[9]BP05!$E$14:$O$225,10,0)","v":52724},{"$f":"VLOOKUP($A194,[10]CKD03!$E$14:$O$225,5,0)","v":11480},{"$f":"VLOOKUP($A194,[10]CKD03!$E$14:$O$225,10,0)","v":16541},{"$f":"VLOOKUP($A194,[11]PAD03!$E$14:$O$225,5,0)","v":2411},{"$f":"VLOOKUP($A194,[11]PAD03!$E$14:$O$225,10,0)","v":2895},{"$f":"VLOOKUP($A194,[11]PAD04!$E$14:$O$225,5,0)","v":1968},{"$f":"VLOOKUP($A194,[11]PAD04!$E$14:$O$225,10,0)","v":2895},{"$f":"VLOOKUP($A194,[12]STROKE06!$E$14:$O$225,5,0)","v":6402},{"$f":"VLOOKUP($A194,[12]STROKE06!$E$14:$O$225,10,0)","v":7500},{"$f":"VLOOKUP($A194,[12]STROKE08!$E$14:$O$225,5,0)","v":5035},{"$f":"VLOOKUP($A194,[12]STROKE08!$E$14:$O$225,10,0)","v":7500},null,null,null,null,null,null,null,null,null,null,null,null,null,null,{"$f":"VLOOKUP($A194,[3]CHD!$E$14:$BS$226,29,0)","v":10140},{"$f":"VLOOKUP($A194,[3]CHD!$E$14:$BS$226,34,0)","v":11559},{"$f":"VLOOKUP($A194,[3]CHD!$E$14:$BS$226,37,0)","v":8384},{"$f":"VLOOKUP($A194,[3]CHD!$E$14:$BS$226,42,0)","v":11459},{"$f":"VLOOKUP($A194,[3]HYP!$E$14:$BK$226,29,0)","v":40163},{"$f":"VLOOKUP($A194,[3]HYP!$E$14:$BK$226,34,0)","v":52444},{"$f":"VLOOKUP($A194,[3]CKD!$E$14:$BG$230,33,0)","v":12338},{"$f":"VLOOKUP($A194,[3]CKD!$E$14:$BG$230,38,0)","v":16827},{"$f":"VLOOKUP(A194,[3]PAD!$E$14:$BC$226,29,0)","v":2404},{"$f":"VLOOKUP($A194,[3]PAD!$E$14:$BC$226,34,0)","v":2880},{"$f":"VLOOKUP($A194,[3]PAD!$E$14:$BC$226,37,0)","v":1911},{"$f":"VLOOKUP($A194,[3]PAD!$E$14:$BC$226,42,0)","v":2849},{"$f":"VLOOKUP($A194,[3]STIA!$E$14:$CA$230,37,0)","v":6343},{"$f":"VLOOKUP($A194,[3]STIA!$E$14:$CA$230,42,0)","v":7510},{"$f":"VLOOKUP($A194,[3]STIA!$E$14:$CA$230,53,0)","v":3179},{"$f":"VLOOKUP($A194,[3]STIA!$E$14:$CA$230,58,0)","v":4671}]
["11J","NHS Dorset",{"$f":"VLOOKUP($A195,'[6]201314'!$C$19:$J$256,8,0)","v":446},{"$f":"VLOOKUP($A195,'[6]201314'!$C$19:$J$256,7,0)","v":683941},{"$f":"VLOOKUP($A195,[7]Data!$A$6:$H$228,4,0)","v":1366},{"$f":"VLOOKUP(A195,[3]CHD!$E$15:$H$226,4,0)","v":771726},{"$f":"VLOOKUP($A195,[7]Data!$A$6:$H$228,3,0)","v":5754},771726,{"$f":"VLOOKUP($A195,[7]Data!$A$6:$H$228,5,0)","v":950},771726,{"$f":"VLOOKUP($A195,[7]Data!$A$6:$H$228,6,0)","v":3768},771726,{"$f":"VLOOKUP($A195,[7]Data!$A$6:$H$228,7,0)","v":1978},771726,{"$f":"VLOOKUP($A195,[7]Data!$A$6:$H$228,8,0)","v":142},771726,{"$f":"VLOOKUP($A195,[8]CHD06!$E$15:$O$225,5,0)","v":28034},{"$f":"VLOOKUP($A195,[8]CHD06!$E$15:$O$225,10,0)","v":32100},{"$f":"VLOOKUP($A195,[8]CHD08!$E$15:$O$225,5,0)","v":21942},{"$f":"VLOOKUP($A195,[8]CHD08!$E$15:$O$225,10,0)","v":32100},{"$f":"VLOOKUP($A195,[9]BP05!$E$14:$O$225,5,0)","v":91185},{"$f":"VLOOKUP($A195,[9]BP05!$E$14:$O$225,10,0)","v":118080},{"$f":"VLOOKUP($A195,[10]CKD03!$E$14:$O$225,5,0)","v":24098},{"$f":"VLOOKUP($A195,[10]CKD03!$E$14:$O$225,10,0)","v":34563},{"$f":"VLOOKUP($A195,[11]PAD03!$E$14:$O$225,5,0)","v":4559},{"$f":"VLOOKUP($A195,[11]PAD03!$E$14:$O$225,10,0)","v":5348},{"$f":"VLOOKUP($A195,[11]PAD04!$E$14:$O$225,5,0)","v":3472},{"$f":"VLOOKUP($A195,[11]PAD04!$E$14:$O$225,10,0)","v":5348},{"$f":"VLOOKUP($A195,[12]STROKE06!$E$14:$O$225,5,0)","v":14531},{"$f":"VLOOKUP($A195,[12]STROKE06!$E$14:$O$225,10,0)","v":17242},{"$f":"VLOOKUP($A195,[12]STROKE08!$E$14:$O$225,5,0)","v":10827},{"$f":"VLOOKUP($A195,[12]STROKE08!$E$14:$O$225,10,0)","v":17242},null,null,null,null,null,null,null,null,null,null,null,null,null,null,{"$f":"VLOOKUP($A195,[3]CHD!$E$14:$BS$226,29,0)","v":28294},{"$f":"VLOOKUP($A195,[3]CHD!$E$14:$BS$226,34,0)","v":32263},{"$f":"VLOOKUP($A195,[3]CHD!$E$14:$BS$226,37,0)","v":21920},{"$f":"VLOOKUP($A195,[3]CHD!$E$14:$BS$226,42,0)","v":32263},{"$f":"VLOOKUP($A195,[3]HYP!$E$14:$BK$226,29,0)","v":94820},{"$f":"VLOOKUP($A195,[3]HYP!$E$14:$BK$226,34,0)","v":119445},{"$f":"VLOOKUP($A195,[3]CKD!$E$14:$BG$230,33,0)","v":24613},{"$f":"VLOOKUP($A195,[3]CKD!$E$14:$BG$230,38,0)","v":33254},{"$f":"VLOOKUP(A195,[3]PAD!$E$14:$BC$226,29,0)","v":4510},{"$f":"VLOOKUP($A195,[3]PAD!$E$14:$BC$226,34,0)","v":5333},{"$f":"VLOOKUP($A195,[3]PAD!$E$14:$BC$226,37,0)","v":3388},{"$f":"VLOOKUP($A195,[3]PAD!$E$14:$BC$226,42,0)","v":5333},{"$f":"VLOOKUP($A195,[3]STIA!$E$14:$CA$230,37,0)","v":14998},{"$f":"VLOOKUP($A195,[3]STIA!$E$14:$CA$230,42,0)","v":17787},{"$f":"VLOOKUP($A195,[3]STIA!$E$14:$CA$230,53,0)","v":7453},{"$f":"VLOOKUP($A195,[3]STIA!$E$14:$CA$230,58,0)","v":11765}]
["11M","NHS Gloucestershire",{"$f":"VLOOKUP($A196,'[6]201314'!$C$19:$J$256,8,0)","v":364},{"$f":"VLOOKUP($A196,'[6]201314'!$C$19:$J$256,7,0)","v":564889},{"$f":"VLOOKUP($A196,[7]Data!$A$6:$H$228,4,0)","v":1021},{"$f":"VLOOKUP(A196,[3]CHD!$E$15:$H$226,4,0)","v":620440},{"$f":"VLOOKUP($A196,[7]Data!$A$6:$H$228,3,0)","v":2823},620440,{"$f":"VLOOKUP($A196,[7]Data!$A$6:$H$228,5,0)","v":647},620440,{"$f":"VLOOKUP($A196,[7]Data!$A$6:$H$228,6,0)","v":2413},620440,{"$f":"VLOOKUP($A196,[7]Data!$A$6:$H$228,7,0)","v":770},620440,{"$f":"VLOOKUP($A196,[7]Data!$A$6:$H$228,8,0)","v":270},620440,{"$f":"VLOOKUP($A196,[8]CHD06!$E$15:$O$225,5,0)","v":17745},{"$f":"VLOOKUP($A196,[8]CHD06!$E$15:$O$225,10,0)","v":19963},{"$f":"VLOOKUP($A196,[8]CHD08!$E$15:$O$225,5,0)","v":14352},{"$f":"VLOOKUP($A196,[8]CHD08!$E$15:$O$225,10,0)","v":19963},{"$f":"VLOOKUP($A196,[9]BP05!$E$14:$O$225,5,0)","v":66807},{"$f":"VLOOKUP($A196,[9]BP05!$E$14:$O$225,10,0)","v":85553},{"$f":"VLOOKUP($A196,[10]CKD03!$E$14:$O$225,5,0)","v":21320},{"$f":"VLOOKUP($A196,[10]CKD03!$E$14:$O$225,10,0)","v":29811},{"$f":"VLOOKUP($A196,[11]PAD03!$E$14:$O$225,5,0)","v":3154},{"$f":"VLOOKUP($A196,[11]PAD03!$E$14:$O$225,10,0)","v":3643},{"$f":"VLOOKUP($A196,[11]PAD04!$E$14:$O$225,5,0)","v":2491},{"$f":"VLOOKUP($A196,[11]PAD04!$E$14:$O$225,10,0)","v":3643},{"$f":"VLOOKUP($A196,[12]STROKE06!$E$14:$O$225,5,0)","v":9878},{"$f":"VLOOKUP($A196,[12]STROKE06!$E$14:$O$225,10,0)","v":11559},{"$f":"VLOOKUP($A196,[12]STROKE08!$E$14:$O$225,5,0)","v":7563},{"$f":"VLOOKUP($A196,[12]STROKE08!$E$14:$O$225,10,0)","v":11559},null,null,null,null,null,null,null,null,null,null,null,null,null,null,{"$f":"VLOOKUP($A196,[3]CHD!$E$14:$BS$226,29,0)","v":17862},{"$f":"VLOOKUP($A196,[3]CHD!$E$14:$BS$226,34,0)","v":19929},{"$f":"VLOOKUP($A196,[3]CHD!$E$14:$BS$226,37,0)","v":14580},{"$f":"VLOOKUP($A196,[3]CHD!$E$14:$BS$226,42,0)","v":19908},{"$f":"VLOOKUP($A196,[3]HYP!$E$14:$BK$226,29,0)","v":69896},{"$f":"VLOOKUP($A196,[3]HYP!$E$14:$BK$226,34,0)","v":87051},{"$f":"VLOOKUP($A196,[3]CKD!$E$14:$BG$230,33,0)","v":23868},{"$f":"VLOOKUP($A196,[3]CKD!$E$14:$BG$230,38,0)","v":31368},{"$f":"VLOOKUP(A196,[3]PAD!$E$14:$BC$226,29,0)","v":3033},{"$f":"VLOOKUP($A196,[3]PAD!$E$14:$BC$226,34,0)","v":3503},{"$f":"VLOOKUP($A196,[3]PAD!$E$14:$BC$226,37,0)","v":2371},{"$f":"VLOOKUP($A196,[3]PAD!$E$14:$BC$226,42,0)","v":3498},{"$f":"VLOOKUP($A196,[3]STIA!$E$14:$CA$230,37,0)","v":10137},{"$f":"VLOOKUP($A196,[3]STIA!$E$14:$CA$230,42,0)","v":11674},{"$f":"VLOOKUP($A196,[3]STIA!$E$14:$CA$230,53,0)","v":5540},{"$f":"VLOOKUP($A196,[3]STIA!$E$14:$CA$230,58,0)","v":8295}]
["11N","NHS Kernow",{"$f":"VLOOKUP($A197,'[6]201314'!$C$19:$J$256,8,0)","v":401},{"$f":"VLOOKUP($A197,'[6]201314'!$C$19:$J$256,7,0)","v":502695},{"$f":"VLOOKUP($A197,[7]Data!$A$6:$H$228,4,0)","v":1406},{"$f":"VLOOKUP(A197,[3]CHD!$E$15:$H$226,4,0)","v":558443},{"$f":"VLOOKUP($A197,[7]Data!$A$6:$H$228,3,0)","v":3171},558443,{"$f":"VLOOKUP($A197,[7]Data!$A$6:$H$228,5,0)","v":712},558443,{"$f":"VLOOKUP($A197,[7]Data!$A$6:$H$228,6,0)","v":2246},558443,{"$f":"VLOOKUP($A197,[7]Data!$A$6:$H$228,7,0)","v":952},558443,{"$f":"VLOOKUP($A197,[7]Data!$A$6:$H$228,8,0)","v":261},558443,{"$f":"VLOOKUP($A197,[8]CHD06!$E$15:$O$225,5,0)","v":19771},{"$f":"VLOOKUP($A197,[8]CHD06!$E$15:$O$225,10,0)","v":22394},{"$f":"VLOOKUP($A197,[8]CHD08!$E$15:$O$225,5,0)","v":16278},{"$f":"VLOOKUP($A197,[8]CHD08!$E$15:$O$225,10,0)","v":22394},{"$f":"VLOOKUP($A197,[9]BP05!$E$14:$O$225,5,0)","v":65949},{"$f":"VLOOKUP($A197,[9]BP05!$E$14:$O$225,10,0)","v":83403},{"$f":"VLOOKUP($A197,[10]CKD03!$E$14:$O$225,5,0)","v":16406},{"$f":"VLOOKUP($A197,[10]CKD03!$E$14:$O$225,10,0)","v":23474},{"$f":"VLOOKUP($A197,[11]PAD03!$E$14:$O$225,5,0)","v":3618},{"$f":"VLOOKUP($A197,[11]PAD03!$E$14:$O$225,10,0)","v":4174},{"$f":"VLOOKUP($A197,[11]PAD04!$E$14:$O$225,5,0)","v":2904},{"$f":"VLOOKUP($A197,[11]PAD04!$E$14:$O$225,10,0)","v":4174},{"$f":"VLOOKUP($A197,[12]STROKE06!$E$14:$O$225,5,0)","v":11070},{"$f":"VLOOKUP($A197,[12]STROKE06!$E$14:$O$225,10,0)","v":13055},{"$f":"VLOOKUP($A197,[12]STROKE08!$E$14:$O$225,5,0)","v":8635},{"$f":"VLOOKUP($A197,[12]STROKE08!$E$14:$O$225,10,0)","v":13055},null,null,null,null,null,null,null,null,null,null,null,null,null,null,{"$f":"VLOOKUP($A197,[3]CHD!$E$14:$BS$226,29,0)","v":19336},{"$f":"VLOOKUP($A197,[3]CHD!$E$14:$BS$226,34,0)","v":21961},{"$f":"VLOOKUP($A197,[3]CHD!$E$14:$BS$226,37,0)","v":15716},{"$f":"VLOOKUP($A197,[3]CHD!$E$14:$BS$226,42,0)","v":21961},{"$f":"VLOOKUP($A197,[3]HYP!$E$14:$BK$226,29,0)","v":64905},{"$f":"VLOOKUP($A197,[3]HYP!$E$14:$BK$226,34,0)","v":82494},{"$f":"VLOOKUP($A197,[3]CKD!$E$14:$BG$230,33,0)","v":17335},{"$f":"VLOOKUP($A197,[3]CKD!$E$14:$BG$230,38,0)","v":24162},{"$f":"VLOOKUP(A197,[3]PAD!$E$14:$BC$226,29,0)","v":3354},{"$f":"VLOOKUP($A197,[3]PAD!$E$14:$BC$226,34,0)","v":3923},{"$f":"VLOOKUP($A197,[3]PAD!$E$14:$BC$226,37,0)","v":2581},{"$f":"VLOOKUP($A197,[3]PAD!$E$14:$BC$226,42,0)","v":3923},{"$f":"VLOOKUP($A197,[3]STIA!$E$14:$CA$230,37,0)","v":10988},{"$f":"VLOOKUP($A197,[3]STIA!$E$14:$CA$230,42,0)","v":13084},{"$f":"VLOOKUP($A197,[3]STIA!$E$14:$CA$230,53,0)","v":6000},{"$f":"VLOOKUP($A197,[3]STIA!$E$14:$CA$230,58,0)","v":9479}]
["11T","NHS North Somerset",{"$f":"VLOOKUP($A198,'[6]201314'!$C$19:$J$256,8,0)","v":134},{"$f":"VLOOKUP($A198,'[6]201314'!$C$19:$J$256,7,0)","v":191791},{"$f":"VLOOKUP($A198,[7]Data!$A$6:$H$228,4,0)","v":398},{"$f":"VLOOKUP(A198,[3]CHD!$E$15:$H$226,4,0)","v":212746},{"$f":"VLOOKUP($A198,[7]Data!$A$6:$H$228,3,0)","v":1274},212746,{"$f":"VLOOKUP($A198,[7]Data!$A$6:$H$228,5,0)","v":257},212746,{"$f":"VLOOKUP($A198,[7]Data!$A$6:$H$228,6,0)","v":748},212746,{"$f":"VLOOKUP($A198,[7]Data!$A$6:$H$228,7,0)","v":361},212746,{"$f":"VLOOKUP($A198,[7]Data!$A$6:$H$228,8,0)","v":94},212746,{"$f":"VLOOKUP($A198,[8]CHD06!$E$15:$O$225,5,0)","v":6973},{"$f":"VLOOKUP($A198,[8]CHD06!$E$15:$O$225,10,0)","v":7961},{"$f":"VLOOKUP($A198,[8]CHD08!$E$15:$O$225,5,0)","v":5469},{"$f":"VLOOKUP($A198,[8]CHD08!$E$15:$O$225,10,0)","v":7961},{"$f":"VLOOKUP($A198,[9]BP05!$E$14:$O$225,5,0)","v":24976},{"$f":"VLOOKUP($A198,[9]BP05!$E$14:$O$225,10,0)","v":32927},{"$f":"VLOOKUP($A198,[10]CKD03!$E$14:$O$225,5,0)","v":6051},{"$f":"VLOOKUP($A198,[10]CKD03!$E$14:$O$225,10,0)","v":8419},{"$f":"VLOOKUP($A198,[11]PAD03!$E$14:$O$225,5,0)","v":1343},{"$f":"VLOOKUP($A198,[11]PAD03!$E$14:$O$225,10,0)","v":1581},{"$f":"VLOOKUP($A198,[11]PAD04!$E$14:$O$225,5,0)","v":1058},{"$f":"VLOOKUP($A198,[11]PAD04!$E$14:$O$225,10,0)","v":1581},{"$f":"VLOOKUP($A198,[12]STROKE06!$E$14:$O$225,5,0)","v":4106},{"$f":"VLOOKUP($A198,[12]STROKE06!$E$14:$O$225,10,0)","v":4801},{"$f":"VLOOKUP($A198,[12]STROKE08!$E$14:$O$225,5,0)","v":3105},{"$f":"VLOOKUP($A198,[12]STROKE08!$E$14:$O$225,10,0)","v":4801},null,null,null,null,null,null,null,null,null,null,null,null,null,null,{"$f":"VLOOKUP($A198,[3]CHD!$E$14:$BS$226,29,0)","v":6960},{"$f":"VLOOKUP($A198,[3]CHD!$E$14:$BS$226,34,0)","v":7833},{"$f":"VLOOKUP($A198,[3]CHD!$E$14:$BS$226,37,0)","v":5588},{"$f":"VLOOKUP($A198,[3]CHD!$E$14:$BS$226,42,0)","v":7833},{"$f":"VLOOKUP($A198,[3]HYP!$E$14:$BK$226,29,0)","v":25991},{"$f":"VLOOKUP($A198,[3]HYP!$E$14:$BK$226,34,0)","v":33172},{"$f":"VLOOKUP($A198,[3]CKD!$E$14:$BG$230,33,0)","v":6735},{"$f":"VLOOKUP($A198,[3]CKD!$E$14:$BG$230,38,0)","v":8790},{"$f":"VLOOKUP(A198,[3]PAD!$E$14:$BC$226,29,0)","v":1364},{"$f":"VLOOKUP($A198,[3]PAD!$E$14:$BC$226,34,0)","v":1584},{"$f":"VLOOKUP($A198,[3]PAD!$E$14:$BC$226,37,0)","v":1073},{"$f":"VLOOKUP($A198,[3]PAD!$E$14:$BC$226,42,0)","v":1584},{"$f":"VLOOKUP($A198,[3]STIA!$E$14:$CA$230,37,0)","v":4141},{"$f":"VLOOKUP($A198,[3]STIA!$E$14:$CA$230,42,0)","v":4855},{"$f":"VLOOKUP($A198,[3]STIA!$E$14:$CA$230,53,0)","v":2088},{"$f":"VLOOKUP($A198,[3]STIA!$E$14:$CA$230,58,0)","v":3150}]
["11X","NHS Somerset",{"$f":"VLOOKUP($A199,'[6]201314'!$C$19:$J$256,8,0)","v":344},{"$f":"VLOOKUP($A199,'[6]201314'!$C$19:$J$256,7,0)","v":492394},{"$f":"VLOOKUP($A199,[7]Data!$A$6:$H$228,4,0)","v":1214},{"$f":"VLOOKUP(A199,[3]CHD!$E$15:$H$226,4,0)","v":548327},{"$f":"VLOOKUP($A199,[7]Data!$A$6:$H$228,3,0)","v":2744},{"$f":"F199","v":548327},{"$f":"VLOOKUP($A199,[7]Data!$A$6:$H$228,5,0)","v":805},{"$f":"F199","v":548327},{"$f":"VLOOKUP($A199,[7]Data!$A$6:$H$228,6,0)","v":1881},{"$f":"F199","v":548327},{"$f":"VLOOKUP($A199,[7]Data!$A$6:$H$228,7,0)","v":654},{"$f":"F199","v":548327},{"$f":"VLOOKUP($A199,[7]Data!$A$6:$H$228,8,0)","v":212},{"$f":"F199","v":548327},{"$f":"VLOOKUP($A199,[8]CHD06!$E$15:$O$225,5,0)","v":18671},{"$f":"VLOOKUP($A199,[8]CHD06!$E$15:$O$225,10,0)","v":21160},{"$f":"VLOOKUP($A199,[8]CHD08!$E$15:$O$225,5,0)","v":15625},{"$f":"VLOOKUP($A199,[8]CHD08!$E$15:$O$225,10,0)","v":21160},{"$f":"VLOOKUP($A199,[9]BP05!$E$14:$O$225,5,0)","v":69069},{"$f":"VLOOKUP($A199,[9]BP05!$E$14:$O$225,10,0)","v":87354},{"$f":"VLOOKUP($A199,[10]CKD03!$E$14:$O$225,5,0)","v":17246},{"$f":"VLOOKUP($A199,[10]CKD03!$E$14:$O$225,10,0)","v":23672},{"$f":"VLOOKUP($A199,[11]PAD03!$E$14:$O$225,5,0)","v":3798},{"$f":"VLOOKUP($A199,[11]PAD03!$E$14:$O$225,10,0)","v":4376},{"$f":"VLOOKUP($A199,[11]PAD04!$E$14:$O$225,5,0)","v":3171},{"$f":"VLOOKUP($A199,[11]PAD04!$E$14:$O$225,10,0)","v":4376},{"$f":"VLOOKUP($A199,[12]STROKE06!$E$14:$O$225,5,0)","v":10343},{"$f":"VLOOKUP($A199,[12]STROKE06!$E$14:$O$225,10,0)","v":12016},{"$f":"VLOOKUP($A199,[12]STROKE08!$E$14:$O$225,5,0)","v":8495},{"$f":"VLOOKUP($A199,[12]STROKE08!$E$14:$O$225,10,0)","v":12016},null,null,null,null,null,null,null,null,null,null,null,null,null,null,{"$f":"VLOOKUP($A199,[3]CHD!$E$14:$BS$226,29,0)","v":17963},{"$f":"VLOOKUP($A199,[3]CHD!$E$14:$BS$226,34,0)","v":21265},{"$f":"VLOOKUP($A199,[3]CHD!$E$14:$BS$226,37,0)","v":14576},{"$f":"VLOOKUP($A199,[3]CHD!$E$14:$BS$226,42,0)","v":21220},{"$f":"VLOOKUP($A199,[3]HYP!$E$14:$BK$226,29,0)","v":65364},{"$f":"VLOOKUP($A199,[3]HYP!$E$14:$BK$226,34,0)","v":88680},{"$f":"VLOOKUP($A199,[3]CKD!$E$14:$BG$230,33,0)","v":15758},{"$f":"VLOOKUP($A199,[3]CKD!$E$14:$BG$230,38,0)","v":22707},{"$f":"VLOOKUP(A199,[3]PAD!$E$14:$BC$226,29,0)","v":3559},{"$f":"VLOOKUP($A199,[3]PAD!$E$14:$BC$226,34,0)","v":4452},{"$f":"VLOOKUP($A199,[3]PAD!$E$14:$BC$226,37,0)","v":2805},{"$f":"VLOOKUP($A199,[3]PAD!$E$14:$BC$226,42,0)","v":4447},{"$f":"VLOOKUP($A199,[3]STIA!$E$14:$CA$230,37,0)","v":10060},{"$f":"VLOOKUP($A199,[3]STIA!$E$14:$CA$230,42,0)","v":12362},{"$f":"VLOOKUP($A199,[3]STIA!$E$14:$CA$230,53,0)","v":5000},{"$f":"VLOOKUP($A199,[3]STIA!$E$14:$CA$230,58,0)","v":7779}]
["12A","NHS South Gloucestershire",{"$f":"VLOOKUP($A200,'[6]201314'!$C$19:$J$256,8,0)","v":128},{"$f":"VLOOKUP($A200,'[6]201314'!$C$19:$J$256,7,0)","v":238740},{"$f":"VLOOKUP($A200,[7]Data!$A$6:$H$228,4,0)","v":315},{"$f":"VLOOKUP(A200,[3]CHD!$E$15:$H$226,4,0)","v":258991},{"$f":"VLOOKUP($A200,[7]Data!$A$6:$H$228,3,0)","v":955},258991,{"$f":"VLOOKUP($A200,[7]Data!$A$6:$H$228,5,0)","v":254},258991,{"$f":"VLOOKUP($A200,[7]Data!$A$6:$H$228,6,0)","v":597},258991,{"$f":"VLOOKUP($A200,[7]Data!$A$6:$H$228,7,0)","v":231},258991,{"$f":"VLOOKUP($A200,[7]Data!$A$6:$H$228,8,0)","v":68},258991,{"$f":"VLOOKUP($A200,[8]CHD06!$E$15:$O$225,5,0)","v":7005},{"$f":"VLOOKUP($A200,[8]CHD06!$E$15:$O$225,10,0)","v":7816},{"$f":"VLOOKUP($A200,[8]CHD08!$E$15:$O$225,5,0)","v":5806},{"$f":"VLOOKUP($A200,[8]CHD08!$E$15:$O$225,10,0)","v":7816},{"$f":"VLOOKUP($A200,[9]BP05!$E$14:$O$225,5,0)","v":27969},{"$f":"VLOOKUP($A200,[9]BP05!$E$14:$O$225,10,0)","v":36122},{"$f":"VLOOKUP($A200,[10]CKD03!$E$14:$O$225,5,0)","v":7579},{"$f":"VLOOKUP($A200,[10]CKD03!$E$14:$O$225,10,0)","v":10372},{"$f":"VLOOKUP($A200,[11]PAD03!$E$14:$O$225,5,0)","v":1441},{"$f":"VLOOKUP($A200,[11]PAD03!$E$14:$O$225,10,0)","v":1658},{"$f":"VLOOKUP($A200,[11]PAD04!$E$14:$O$225,5,0)","v":1180},{"$f":"VLOOKUP($A200,[11]PAD04!$E$14:$O$225,10,0)","v":1658},{"$f":"VLOOKUP($A200,[12]STROKE06!$E$14:$O$225,5,0)","v":3854},{"$f":"VLOOKUP($A200,[12]STROKE06!$E$14:$O$225,10,0)","v":4392},{"$f":"VLOOKUP($A200,[12]STROKE08!$E$14:$O$225,5,0)","v":3074},{"$f":"VLOOKUP($A200,[12]STROKE08!$E$14:$O$225,10,0)","v":4392},null,null,null,null,null,null,null,null,null,null,null,null,null,null,{"$f":"VLOOKUP($A200,[3]CHD!$E$14:$BS$226,29,0)","v":6998},{"$f":"VLOOKUP($A200,[3]CHD!$E$14:$BS$226,34,0)","v":7795},{"$f":"VLOOKUP($A200,[3]CHD!$E$14:$BS$226,37,0)","v":5922},{"$f":"VLOOKUP($A200,[3]CHD!$E$14:$BS$226,42,0)","v":7788},{"$f":"VLOOKUP($A200,[3]HYP!$E$14:$BK$226,29,0)","v":29039},{"$f":"VLOOKUP($A200,[3]HYP!$E$14:$BK$226,34,0)","v":36472},{"$f":"VLOOKUP($A200,[3]CKD!$E$14:$BG$230,33,0)","v":8440},{"$f":"VLOOKUP($A200,[3]CKD!$E$14:$BG$230,38,0)","v":11040},{"$f":"VLOOKUP(A200,[3]PAD!$E$14:$BC$226,29,0)","v":1422},{"$f":"VLOOKUP($A200,[3]PAD!$E$14:$BC$226,34,0)","v":1629},{"$f":"VLOOKUP($A200,[3]PAD!$E$14:$BC$226,37,0)","v":1217},{"$f":"VLOOKUP($A200,[3]PAD!$E$14:$BC$226,42,0)","v":1626},{"$f":"VLOOKUP($A200,[3]STIA!$E$14:$CA$230,37,0)","v":3905},{"$f":"VLOOKUP($A200,[3]STIA!$E$14:$CA$230,42,0)","v":4511},{"$f":"VLOOKUP($A200,[3]STIA!$E$14:$CA$230,53,0)","v":2190},{"$f":"VLOOKUP($A200,[3]STIA!$E$14:$CA$230,58,0)","v":3036}]
["12D","NHS Swindon",{"$f":"VLOOKUP($A201,'[6]201314'!$C$19:$J$256,8,0)","v":128},{"$f":"VLOOKUP($A201,'[6]201314'!$C$19:$J$256,7,0)","v":208993},{"$f":"VLOOKUP($A201,[7]Data!$A$6:$H$228,4,0)","v":283},{"$f":"VLOOKUP(A201,[3]CHD!$E$15:$H$226,4,0)","v":223041},{"$f":"VLOOKUP($A201,[7]Data!$A$6:$H$228,3,0)","v":872},223041,{"$f":"VLOOKUP($A201,[7]Data!$A$6:$H$228,5,0)","v":207},223041,{"$f":"VLOOKUP($A201,[7]Data!$A$6:$H$228,6,0)","v":684},223041,{"$f":"VLOOKUP($A201,[7]Data!$A$6:$H$228,7,0)","v":281},223041,{"$f":"VLOOKUP($A201,[7]Data!$A$6:$H$228,8,0)","v":47},223041,{"$f":"VLOOKUP($A201,[8]CHD06!$E$15:$O$225,5,0)","v":5612},{"$f":"VLOOKUP($A201,[8]CHD06!$E$15:$O$225,10,0)","v":6301},{"$f":"VLOOKUP($A201,[8]CHD08!$E$15:$O$225,5,0)","v":4491},{"$f":"VLOOKUP($A201,[8]CHD08!$E$15:$O$225,10,0)","v":6301},{"$f":"VLOOKUP($A201,[9]BP05!$E$14:$O$225,5,0)","v":23713},{"$f":"VLOOKUP($A201,[9]BP05!$E$14:$O$225,10,0)","v":30346},{"$f":"VLOOKUP($A201,[10]CKD03!$E$14:$O$225,5,0)","v":2935},{"$f":"VLOOKUP($A201,[10]CKD03!$E$14:$O$225,10,0)","v":4118},{"$f":"VLOOKUP($A201,[11]PAD03!$E$14:$O$225,5,0)","v":1127},{"$f":"VLOOKUP($A201,[11]PAD03!$E$14:$O$225,10,0)","v":1326},{"$f":"VLOOKUP($A201,[11]PAD04!$E$14:$O$225,5,0)","v":889},{"$f":"VLOOKUP($A201,[11]PAD04!$E$14:$O$225,10,0)","v":1326},{"$f":"VLOOKUP($A201,[12]STROKE06!$E$14:$O$225,5,0)","v":2859},{"$f":"VLOOKUP($A201,[12]STROKE06!$E$14:$O$225,10,0)","v":3307},{"$f":"VLOOKUP($A201,[12]STROKE08!$E$14:$O$225,5,0)","v":2257},{"$f":"VLOOKUP($A201,[12]STROKE08!$E$14:$O$225,10,0)","v":3307},null,null,null,null,null,null,null,null,null,null,null,null,null,null,{"$f":"VLOOKUP($A201,[3]CHD!$E$14:$BS$226,29,0)","v":5649},{"$f":"VLOOKUP($A201,[3]CHD!$E$14:$BS$226,34,0)","v":6294},{"$f":"VLOOKUP($A201,[3]CHD!$E$14:$BS$226,37,0)","v":4444},{"$f":"VLOOKUP($A201,[3]CHD!$E$14:$BS$226,42,0)","v":6294},{"$f":"VLOOKUP($A201,[3]HYP!$E$14:$BK$226,29,0)","v":24817},{"$f":"VLOOKUP($A201,[3]HYP!$E$14:$BK$226,34,0)","v":30611},{"$f":"VLOOKUP($A201,[3]CKD!$E$14:$BG$230,33,0)","v":3190},{"$f":"VLOOKUP($A201,[3]CKD!$E$14:$BG$230,38,0)","v":4223},{"$f":"VLOOKUP(A201,[3]PAD!$E$14:$BC$226,29,0)","v":1198},{"$f":"VLOOKUP($A201,[3]PAD!$E$14:$BC$226,34,0)","v":1350},{"$f":"VLOOKUP($A201,[3]PAD!$E$14:$BC$226,37,0)","v":876},{"$f":"VLOOKUP($A201,[3]PAD!$E$14:$BC$226,42,0)","v":1350},{"$f":"VLOOKUP($A201,[3]STIA!$E$14:$CA$230,37,0)","v":2897},{"$f":"VLOOKUP($A201,[3]STIA!$E$14:$CA$230,42,0)","v":3321},{"$f":"VLOOKUP($A201,[3]STIA!$E$14:$CA$230,53,0)","v":1447},{"$f":"VLOOKUP($A201,[3]STIA!$E$14:$CA$230,58,0)","v":2170}]
["12F","NHS Wirral",{"$f":"VLOOKUP($A202,'[6]201314'!$C$19:$J$256,8,0)","v":234},{"$f":"VLOOKUP($A202,'[6]201314'!$C$19:$J$256,7,0)","v":301039},{"$f":"VLOOKUP($A202,[7]Data!$A$6:$H$228,4,0)","v":617},{"$f":"VLOOKUP(A202,[3]CHD!$E$15:$H$226,4,0)","v":331149},{"$f":"VLOOKUP($A202,[7]Data!$A$6:$H$228,3,0)","v":1951},331149,{"$f":"VLOOKUP($A202,[7]Data!$A$6:$H$228,5,0)","v":446},331149,{"$f":"VLOOKUP($A202,[7]Data!$A$6:$H$228,6,0)","v":1578},331149,{"$f":"VLOOKUP($A202,[7]Data!$A$6:$H$228,7,0)","v":338},331149,{"$f":"VLOOKUP($A202,[7]Data!$A$6:$H$228,8,0)","v":141},331149,{"$f":"VLOOKUP($A202,[8]CHD06!$E$15:$O$225,5,0)","v":11800},{"$f":"VLOOKUP($A202,[8]CHD06!$E$15:$O$225,10,0)","v":13458},{"$f":"VLOOKUP($A202,[8]CHD08!$E$15:$O$225,5,0)","v":9287},{"$f":"VLOOKUP($A202,[8]CHD08!$E$15:$O$225,10,0)","v":13427},{"$f":"VLOOKUP($A202,[9]BP05!$E$14:$O$225,5,0)","v":38633},{"$f":"VLOOKUP($A202,[9]BP05!$E$14:$O$225,10,0)","v":50226},{"$f":"VLOOKUP($A202,[10]CKD03!$E$14:$O$225,5,0)","v":9753},{"$f":"VLOOKUP($A202,[10]CKD03!$E$14:$O$225,10,0)","v":13369},{"$f":"VLOOKUP($A202,[11]PAD03!$E$14:$O$225,5,0)","v":2547},{"$f":"VLOOKUP($A202,[11]PAD03!$E$14:$O$225,10,0)","v":2988},{"$f":"VLOOKUP($A202,[11]PAD04!$E$14:$O$225,5,0)","v":1914},{"$f":"VLOOKUP($A202,[11]PAD04!$E$14:$O$225,10,0)","v":2982},{"$f":"VLOOKUP($A202,[12]STROKE06!$E$14:$O$225,5,0)","v":6152},{"$f":"VLOOKUP($A202,[12]STROKE06!$E$14:$O$225,10,0)","v":7239},{"$f":"VLOOKUP($A202,[12]STROKE08!$E$14:$O$225,5,0)","v":4849},{"$f":"VLOOKUP($A202,[12]STROKE08!$E$14:$O$225,10,0)","v":7234},null,null,null,null,null,null,null,null,null,null,null,null,null,null,{"$f":"VLOOKUP($A202,[3]CHD!$E$14:$BS$226,29,0)","v":11322},{"$f":"VLOOKUP($A202,[3]CHD!$E$14:$BS$226,34,0)","v":12832},{"$f":"VLOOKUP($A202,[3]CHD!$E$14:$BS$226,37,0)","v":8923},{"$f":"VLOOKUP($A202,[3]CHD!$E$14:$BS$226,42,0)","v":12829},{"$f":"VLOOKUP($A202,[3]HYP!$E$14:$BK$226,29,0)","v":38376},{"$f":"VLOOKUP($A202,[3]HYP!$E$14:$BK$226,34,0)","v":48844},{"$f":"VLOOKUP($A202,[3]CKD!$E$14:$BG$230,33,0)","v":9849},{"$f":"VLOOKUP($A202,[3]CKD!$E$14:$BG$230,38,0)","v":12911},{"$f":"VLOOKUP(A202,[3]PAD!$E$14:$BC$226,29,0)","v":2423},{"$f":"VLOOKUP($A202,[3]PAD!$E$14:$BC$226,34,0)","v":2804},{"$f":"VLOOKUP($A202,[3]PAD!$E$14:$BC$226,37,0)","v":1842},{"$f":"VLOOKUP($A202,[3]PAD!$E$14:$BC$226,42,0)","v":2804},{"$f":"VLOOKUP($A202,[3]STIA!$E$14:$CA$230,37,0)","v":6031},{"$f":"VLOOKUP($A202,[3]STIA!$E$14:$CA$230,42,0)","v":7080},{"$f":"VLOOKUP($A202,[3]STIA!$E$14:$CA$230,53,0)","v":2887},{"$f":"VLOOKUP($A202,[3]STIA!$E$14:$CA$230,58,0)","v":4334}]
["13P","NHS Birmingham Crosscity",{"$f":"VLOOKUP($A203,'[6]201314'!$C$19:$J$256,8,0)","v":452},{"$f":"VLOOKUP($A203,'[6]201314'!$C$19:$J$256,7,0)","v":685411},{"$f":"VLOOKUP($A203,[7]Data!$A$6:$H$228,4,0)","v":974},{"$f":"VLOOKUP(A203,[3]CHD!$E$15:$H$226,4,0)","v":736916},{"$f":"VLOOKUP($A203,[7]Data!$A$6:$H$228,3,0)","v":3192},736916,{"$f":"VLOOKUP($A203,[7]Data!$A$6:$H$228,5,0)","v":921},736916,{"$f":"VLOOKUP($A203,[7]Data!$A$6:$H$228,6,0)","v":2115},736916,{"$f":"VLOOKUP($A203,[7]Data!$A$6:$H$228,7,0)","v":1190},736916,{"$f":"VLOOKUP($A203,[7]Data!$A$6:$H$228,8,0)","v":276},736916,{"$f":"VLOOKUP($A203,[8]CHD06!$E$15:$O$225,5,0)","v":20218},{"$f":"VLOOKUP($A203,[8]CHD06!$E$15:$O$225,10,0)","v":23191},{"$f":"VLOOKUP($A203,[8]CHD08!$E$15:$O$225,5,0)","v":17182},{"$f":"VLOOKUP($A203,[8]CHD08!$E$15:$O$225,10,0)","v":23186},{"$f":"VLOOKUP($A203,[9]BP05!$E$14:$O$225,5,0)","v":72657},{"$f":"VLOOKUP($A203,[9]BP05!$E$14:$O$225,10,0)","v":94715},{"$f":"VLOOKUP($A203,[10]CKD03!$E$14:$O$225,5,0)","v":16350},{"$f":"VLOOKUP($A203,[10]CKD03!$E$14:$O$225,10,0)","v":23569},{"$f":"VLOOKUP($A203,[11]PAD03!$E$14:$O$225,5,0)","v":4016},{"$f":"VLOOKUP($A203,[11]PAD03!$E$14:$O$225,10,0)","v":4680},{"$f":"VLOOKUP($A203,[11]PAD04!$E$14:$O$225,5,0)","v":3341},{"$f":"VLOOKUP($A203,[11]PAD04!$E$14:$O$225,10,0)","v":4678},{"$f":"VLOOKUP($A203,[12]STROKE06!$E$14:$O$225,5,0)","v":9626},{"$f":"VLOOKUP($A203,[12]STROKE06!$E$14:$O$225,10,0)","v":11405},{"$f":"VLOOKUP($A203,[12]STROKE08!$E$14:$O$225,5,0)","v":8056},{"$f":"VLOOKUP($A203,[12]STROKE08!$E$14:$O$225,10,0)","v":11404},null,null,null,null,null,null,null,null,null,null,null,null,null,null,{"$f":"VLOOKUP($A203,[3]CHD!$E$14:$BS$226,29,0)","v":20247},{"$f":"VLOOKUP($A203,[3]CHD!$E$14:$BS$226,34,0)","v":22884},{"$f":"VLOOKUP($A203,[3]CHD!$E$14:$BS$226,37,0)","v":17091},{"$f":"VLOOKUP($A203,[3]CHD!$E$14:$BS$226,42,0)","v":22883},{"$f":"VLOOKUP($A203,[3]HYP!$E$14:$BK$226,29,0)","v":74574},{"$f":"VLOOKUP($A203,[3]HYP!$E$14:$BK$226,34,0)","v":94950},{"$f":"VLOOKUP($A203,[3]CKD!$E$14:$BG$230,33,0)","v":16733},{"$f":"VLOOKUP($A203,[3]CKD!$E$14:$BG$230,38,0)","v":22661},{"$f":"VLOOKUP(A203,[3]PAD!$E$14:$BC$226,29,0)","v":3885},{"$f":"VLOOKUP($A203,[3]PAD!$E$14:$BC$226,34,0)","v":4566},{"$f":"VLOOKUP($A203,[3]PAD!$E$14:$BC$226,37,0)","v":3248},{"$f":"VLOOKUP($A203,[3]PAD!$E$14:$BC$226,42,0)","v":4565},{"$f":"VLOOKUP($A203,[3]STIA!$E$14:$CA$230,37,0)","v":9762},{"$f":"VLOOKUP($A203,[3]STIA!$E$14:$CA$230,42,0)","v":11454},{"$f":"VLOOKUP($A203,[3]STIA!$E$14:$CA$230,53,0)","v":5500},{"$f":"VLOOKUP($A203,[3]STIA!$E$14:$CA$230,58,0)","v":7764}]
["99A","NHS Liverpool",{"$f":"VLOOKUP($A204,'[6]201314'!$C$19:$J$256,8,0)","v":347},{"$f":"VLOOKUP($A204,'[6]201314'!$C$19:$J$256,7,0)","v":463694},{"$f":"VLOOKUP($A204,[7]Data!$A$6:$H$228,4,0)","v":632},{"$f":"VLOOKUP(A204,[3]CHD!$E$15:$H$226,4,0)","v":496221},{"$f":"VLOOKUP($A204,[7]Data!$A$6:$H$228,3,0)","v":2439},496221,{"$f":"VLOOKUP($A204,[7]Data!$A$6:$H$228,5,0)","v":430},496221,{"$f":"VLOOKUP($A204,[7]Data!$A$6:$H$228,6,0)","v":1626},496221,{"$f":"VLOOKUP($A204,[7]Data!$A$6:$H$228,7,0)","v":509},496221,{"$f":"VLOOKUP($A204,[7]Data!$A$6:$H$228,8,0)","v":188},496221,{"$f":"VLOOKUP($A204,[8]CHD06!$E$15:$O$225,5,0)","v":16354},{"$f":"VLOOKUP($A204,[8]CHD06!$E$15:$O$225,10,0)","v":18775},{"$f":"VLOOKUP($A204,[8]CHD08!$E$15:$O$225,5,0)","v":13546},{"$f":"VLOOKUP($A204,[8]CHD08!$E$15:$O$225,10,0)","v":18775},{"$f":"VLOOKUP($A204,[9]BP05!$E$14:$O$225,5,0)","v":51195},{"$f":"VLOOKUP($A204,[9]BP05!$E$14:$O$225,10,0)","v":66803},{"$f":"VLOOKUP($A204,[10]CKD03!$E$14:$O$225,5,0)","v":14079},{"$f":"VLOOKUP($A204,[10]CKD03!$E$14:$O$225,10,0)","v":19357},{"$f":"VLOOKUP($A204,[11]PAD03!$E$14:$O$225,5,0)","v":3692},{"$f":"VLOOKUP($A204,[11]PAD03!$E$14:$O$225,10,0)","v":4318},{"$f":"VLOOKUP($A204,[11]PAD04!$E$14:$O$225,5,0)","v":2988},{"$f":"VLOOKUP($A204,[11]PAD04!$E$14:$O$225,10,0)","v":4318},{"$f":"VLOOKUP($A204,[12]STROKE06!$E$14:$O$225,5,0)","v":7269},{"$f":"VLOOKUP($A204,[12]STROKE06!$E$14:$O$225,10,0)","v":8615},{"$f":"VLOOKUP($A204,[12]STROKE08!$E$14:$O$225,5,0)","v":6007},{"$f":"VLOOKUP($A204,[12]STROKE08!$E$14:$O$225,10,0)","v":8615},null,null,null,null,null,null,null,null,null,null,null,null,null,null,{"$f":"VLOOKUP($A204,[3]CHD!$E$14:$BS$226,29,0)","v":16432},{"$f":"VLOOKUP($A204,[3]CHD!$E$14:$BS$226,34,0)","v":18447},{"$f":"VLOOKUP($A204,[3]CHD!$E$14:$BS$226,37,0)","v":13462},{"$f":"VLOOKUP($A204,[3]CHD!$E$14:$BS$226,42,0)","v":18446},{"$f":"VLOOKUP($A204,[3]HYP!$E$14:$BK$226,29,0)","v":53417},{"$f":"VLOOKUP($A204,[3]HYP!$E$14:$BK$226,34,0)","v":67386},{"$f":"VLOOKUP($A204,[3]CKD!$E$14:$BG$230,33,0)","v":15595},{"$f":"VLOOKUP($A204,[3]CKD!$E$14:$BG$230,38,0)","v":20107},{"$f":"VLOOKUP(A204,[3]PAD!$E$14:$BC$226,29,0)","v":3705},{"$f":"VLOOKUP($A204,[3]PAD!$E$14:$BC$226,34,0)","v":4309},{"$f":"VLOOKUP($A204,[3]PAD!$E$14:$BC$226,37,0)","v":3030},{"$f":"VLOOKUP($A204,[3]PAD!$E$14:$BC$226,42,0)","v":4309},{"$f":"VLOOKUP($A204,[3]STIA!$E$14:$CA$230,37,0)","v":7432},{"$f":"VLOOKUP($A204,[3]STIA!$E$14:$CA$230,42,0)","v":8665},{"$f":"VLOOKUP($A204,[3]STIA!$E$14:$CA$230,53,0)","v":3428},{"$f":"VLOOKUP($A204,[3]STIA!$E$14:$CA$230,58,0)","v":4937}]
["99C","NHS North Tyneside",{"$f":"VLOOKUP($A205,'[6]201314'!$C$19:$J$256,8,0)","v":144},{"$f":"VLOOKUP($A205,'[6]201314'!$C$19:$J$256,7,0)","v":196530},{"$f":"VLOOKUP($A205,[7]Data!$A$6:$H$228,4,0)","v":452},{"$f":"VLOOKUP(A205,[3]CHD!$E$15:$H$226,4,0)","v":215344},{"$f":"VLOOKUP($A205,[7]Data!$A$6:$H$228,3,0)","v":1276},215344,{"$f":"VLOOKUP($A205,[7]Data!$A$6:$H$228,5,0)","v":279},215344,{"$f":"VLOOKUP($A205,[7]Data!$A$6:$H$228,6,0)","v":709},215344,{"$f":"VLOOKUP($A205,[7]Data!$A$6:$H$228,7,0)","v":387},215344,{"$f":"VLOOKUP($A205,[7]Data!$A$6:$H$228,8,0)","v":37},215344,{"$f":"VLOOKUP($A205,[8]CHD06!$E$15:$O$225,5,0)","v":8546},{"$f":"VLOOKUP($A205,[8]CHD06!$E$15:$O$225,10,0)","v":9698},{"$f":"VLOOKUP($A205,[8]CHD08!$E$15:$O$225,5,0)","v":7134},{"$f":"VLOOKUP($A205,[8]CHD08!$E$15:$O$225,10,0)","v":9698},{"$f":"VLOOKUP($A205,[9]BP05!$E$14:$O$225,5,0)","v":25513},{"$f":"VLOOKUP($A205,[9]BP05!$E$14:$O$225,10,0)","v":33122},{"$f":"VLOOKUP($A205,[10]CKD03!$E$14:$O$225,5,0)","v":7210},{"$f":"VLOOKUP($A205,[10]CKD03!$E$14:$O$225,10,0)","v":10164},{"$f":"VLOOKUP($A205,[11]PAD03!$E$14:$O$225,5,0)","v":1769},{"$f":"VLOOKUP($A205,[11]PAD03!$E$14:$O$225,10,0)","v":2094},{"$f":"VLOOKUP($A205,[11]PAD04!$E$14:$O$225,5,0)","v":1457},{"$f":"VLOOKUP($A205,[11]PAD04!$E$14:$O$225,10,0)","v":2094},{"$f":"VLOOKUP($A205,[12]STROKE06!$E$14:$O$225,5,0)","v":4337},{"$f":"VLOOKUP($A205,[12]STROKE06!$E$14:$O$225,10,0)","v":5129},{"$f":"VLOOKUP($A205,[12]STROKE08!$E$14:$O$225,5,0)","v":3579},{"$f":"VLOOKUP($A205,[12]STROKE08!$E$14:$O$225,10,0)","v":5129},null,null,null,null,null,null,null,null,null,null,null,null,null,null,{"$f":"VLOOKUP($A205,[3]CHD!$E$14:$BS$226,29,0)","v":8430},{"$f":"VLOOKUP($A205,[3]CHD!$E$14:$BS$226,34,0)","v":9603},{"$f":"VLOOKUP($A205,[3]CHD!$E$14:$BS$226,37,0)","v":6939},{"$f":"VLOOKUP($A205,[3]CHD!$E$14:$BS$226,42,0)","v":9603},{"$f":"VLOOKUP($A205,[3]HYP!$E$14:$BK$226,29,0)","v":25878},{"$f":"VLOOKUP($A205,[3]HYP!$E$14:$BK$226,34,0)","v":33078},{"$f":"VLOOKUP($A205,[3]CKD!$E$14:$BG$230,33,0)","v":6847},{"$f":"VLOOKUP($A205,[3]CKD!$E$14:$BG$230,38,0)","v":9163},{"$f":"VLOOKUP(A205,[3]PAD!$E$14:$BC$226,29,0)","v":1824},{"$f":"VLOOKUP($A205,[3]PAD!$E$14:$BC$226,34,0)","v":2187},{"$f":"VLOOKUP($A205,[3]PAD!$E$14:$BC$226,37,0)","v":1482},{"$f":"VLOOKUP($A205,[3]PAD!$E$14:$BC$226,42,0)","v":2187},{"$f":"VLOOKUP($A205,[3]STIA!$E$14:$CA$230,37,0)","v":4376},{"$f":"VLOOKUP($A205,[3]STIA!$E$14:$CA$230,42,0)","v":5173},{"$f":"VLOOKUP($A205,[3]STIA!$E$14:$CA$230,53,0)","v":2856},{"$f":"VLOOKUP($A205,[3]STIA!$E$14:$CA$230,58,0)","v":4222}]
["99D","NHS South Lincolnshire",{"$f":"VLOOKUP($A206,'[6]201314'!$C$19:$J$256,8,0)","v":115},{"$f":"VLOOKUP($A206,'[6]201314'!$C$19:$J$256,7,0)","v":142162},{"$f":"VLOOKUP($A206,[7]Data!$A$6:$H$228,4,0)","v":269},{"$f":"VLOOKUP(A206,[3]CHD!$E$15:$H$226,4,0)","v":157441},{"$f":"VLOOKUP($A206,[7]Data!$A$6:$H$228,3,0)","v":1071},157441,{"$f":"VLOOKUP($A206,[7]Data!$A$6:$H$228,5,0)","v":212},157441,{"$f":"VLOOKUP($A206,[7]Data!$A$6:$H$228,6,0)","v":523},157441,{"$f":"VLOOKUP($A206,[7]Data!$A$6:$H$228,7,0)","v":193},157441,{"$f":"VLOOKUP($A206,[7]Data!$A$6:$H$228,8,0)","v":84},157441,{"$f":"VLOOKUP($A206,[8]CHD06!$E$15:$O$225,5,0)","v":5734},{"$f":"VLOOKUP($A206,[8]CHD06!$E$15:$O$225,10,0)","v":6455},{"$f":"VLOOKUP($A206,[8]CHD08!$E$15:$O$225,5,0)","v":4758},{"$f":"VLOOKUP($A206,[8]CHD08!$E$15:$O$225,10,0)","v":6455},{"$f":"VLOOKUP($A206,[9]BP05!$E$14:$O$225,5,0)","v":21591},{"$f":"VLOOKUP($A206,[9]BP05!$E$14:$O$225,10,0)","v":26655},{"$f":"VLOOKUP($A206,[10]CKD03!$E$14:$O$225,5,0)","v":5127},{"$f":"VLOOKUP($A206,[10]CKD03!$E$14:$O$225,10,0)","v":6986},{"$f":"VLOOKUP($A206,[11]PAD03!$E$14:$O$225,5,0)","v":917},{"$f":"VLOOKUP($A206,[11]PAD03!$E$14:$O$225,10,0)","v":1047},{"$f":"VLOOKUP($A206,[11]PAD04!$E$14:$O$225,5,0)","v":725},{"$f":"VLOOKUP($A206,[11]PAD04!$E$14:$O$225,10,0)","v":1047},{"$f":"VLOOKUP($A206,[12]STROKE06!$E$14:$O$225,5,0)","v":2712},{"$f":"VLOOKUP($A206,[12]STROKE06!$E$14:$O$225,10,0)","v":3140},{"$f":"VLOOKUP($A206,[12]STROKE08!$E$14:$O$225,5,0)","v":2202},{"$f":"VLOOKUP($A206,[12]STROKE08!$E$14:$O$225,10,0)","v":3140},null,null,null,null,null,null,null,null,null,null,null,null,null,null,{"$f":"VLOOKUP($A206,[3]CHD!$E$14:$BS$226,29,0)","v":5968},{"$f":"VLOOKUP($A206,[3]CHD!$E$14:$BS$226,34,0)","v":6578},{"$f":"VLOOKUP($A206,[3]CHD!$E$14:$BS$226,37,0)","v":5594},{"$f":"VLOOKUP($A206,[3]CHD!$E$14:$BS$226,42,0)","v":6578},{"$f":"VLOOKUP($A206,[3]HYP!$E$14:$BK$226,29,0)","v":22342},{"$f":"VLOOKUP($A206,[3]HYP!$E$14:$BK$226,34,0)","v":26967},{"$f":"VLOOKUP($A206,[3]CKD!$E$14:$BG$230,33,0)","v":5388},{"$f":"VLOOKUP($A206,[3]CKD!$E$14:$BG$230,38,0)","v":6995},{"$f":"VLOOKUP(A206,[3]PAD!$E$14:$BC$226,29,0)","v":951},{"$f":"VLOOKUP($A206,[3]PAD!$E$14:$BC$226,34,0)","v":1078},{"$f":"VLOOKUP($A206,[3]PAD!$E$14:$BC$226,37,0)","v":854},{"$f":"VLOOKUP($A206,[3]PAD!$E$14:$BC$226,42,0)","v":1078},{"$f":"VLOOKUP($A206,[3]STIA!$E$14:$CA$230,37,0)","v":2850},{"$f":"VLOOKUP($A206,[3]STIA!$E$14:$CA$230,42,0)","v":3245},{"$f":"VLOOKUP($A206,[3]STIA!$E$14:$CA$230,53,0)","v":1666},{"$f":"VLOOKUP($A206,[3]STIA!$E$14:$CA$230,58,0)","v":1959}]
["99E","NHS Basildon and Brentwood",{"$f":"VLOOKUP($A207,'[6]201314'!$C$19:$J$256,8,0)","v":145},{"$f":"VLOOKUP($A207,'[6]201314'!$C$19:$J$256,7,0)","v":243432},{"$f":"VLOOKUP($A207,[7]Data!$A$6:$H$228,4,0)","v":404},{"$f":"VLOOKUP(A207,[3]CHD!$E$15:$H$226,4,0)","v":264618},{"$f":"VLOOKUP($A207,[7]Data!$A$6:$H$228,3,0)","v":1092},264618,{"$f":"VLOOKUP($A207,[7]Data!$A$6:$H$228,5,0)","v":267},264618,{"$f":"VLOOKUP($A207,[7]Data!$A$6:$H$228,6,0)","v":665},264618,{"$f":"VLOOKUP($A207,[7]Data!$A$6:$H$228,7,0)","v":310},264618,{"$f":"VLOOKUP($A207,[7]Data!$A$6:$H$228,8,0)","v":83},264618,{"$f":"VLOOKUP($A207,[8]CHD06!$E$15:$O$225,5,0)","v":7675},{"$f":"VLOOKUP($A207,[8]CHD06!$E$15:$O$225,10,0)","v":8602},{"$f":"VLOOKUP($A207,[8]CHD08!$E$15:$O$225,5,0)","v":6165},{"$f":"VLOOKUP($A207,[8]CHD08!$E$15:$O$225,10,0)","v":8595},{"$f":"VLOOKUP($A207,[9]BP05!$E$14:$O$225,5,0)","v":31179},{"$f":"VLOOKUP($A207,[9]BP05!$E$14:$O$225,10,0)","v":39733},{"$f":"VLOOKUP($A207,[10]CKD03!$E$14:$O$225,5,0)","v":7722},{"$f":"VLOOKUP($A207,[10]CKD03!$E$14:$O$225,10,0)","v":10554},{"$f":"VLOOKUP($A207,[11]PAD03!$E$14:$O$225,5,0)","v":1134},{"$f":"VLOOKUP($A207,[11]PAD03!$E$14:$O$225,10,0)","v":1306},{"$f":"VLOOKUP($A207,[11]PAD04!$E$14:$O$225,5,0)","v":852},{"$f":"VLOOKUP($A207,[11]PAD04!$E$14:$O$225,10,0)","v":1305},{"$f":"VLOOKUP($A207,[12]STROKE06!$E$14:$O$225,5,0)","v":4002},{"$f":"VLOOKUP($A207,[12]STROKE06!$E$14:$O$225,10,0)","v":4643},{"$f":"VLOOKUP($A207,[12]STROKE08!$E$14:$O$225,5,0)","v":2960},{"$f":"VLOOKUP($A207,[12]STROKE08!$E$14:$O$225,10,0)","v":4639},null,null,null,null,null,null,null,null,null,null,null,null,null,null,{"$f":"VLOOKUP($A207,[3]CHD!$E$14:$BS$226,29,0)","v":7635},{"$f":"VLOOKUP($A207,[3]CHD!$E$14:$BS$226,34,0)","v":8533},{"$f":"VLOOKUP($A207,[3]CHD!$E$14:$BS$226,37,0)","v":6180},{"$f":"VLOOKUP($A207,[3]CHD!$E$14:$BS$226,42,0)","v":8533},{"$f":"VLOOKUP($A207,[3]HYP!$E$14:$BK$226,29,0)","v":32343},{"$f":"VLOOKUP($A207,[3]HYP!$E$14:$BK$226,34,0)","v":40337},{"$f":"VLOOKUP($A207,[3]CKD!$E$14:$BG$230,33,0)","v":6686},{"$f":"VLOOKUP($A207,[3]CKD!$E$14:$BG$230,38,0)","v":8691},{"$f":"VLOOKUP(A207,[3]PAD!$E$14:$BC$226,29,0)","v":1119},{"$f":"VLOOKUP($A207,[3]PAD!$E$14:$BC$226,34,0)","v":1273},{"$f":"VLOOKUP($A207,[3]PAD!$E$14:$BC$226,37,0)","v":843},{"$f":"VLOOKUP($A207,[3]PAD!$E$14:$BC$226,42,0)","v":1273},{"$f":"VLOOKUP($A207,[3]STIA!$E$14:$CA$230,37,0)","v":4051},{"$f":"VLOOKUP($A207,[3]STIA!$E$14:$CA$230,42,0)","v":4747},{"$f":"VLOOKUP($A207,[3]STIA!$E$14:$CA$230,53,0)","v":2245},{"$f":"VLOOKUP($A207,[3]STIA!$E$14:$CA$230,58,0)","v":3479}]
["99F","NHS Castle Point and Rochford",{"$f":"VLOOKUP($A208,'[6]201314'!$C$19:$J$256,8,0)","v":104},{"$f":"VLOOKUP($A208,'[6]201314'!$C$19:$J$256,7,0)","v":162846},{"$f":"VLOOKUP($A208,[7]Data!$A$6:$H$228,4,0)","v":309},{"$f":"VLOOKUP(A208,[3]CHD!$E$15:$H$226,4,0)","v":180715},{"$f":"VLOOKUP($A208,[7]Data!$A$6:$H$228,3,0)","v":1172},180715,{"$f":"VLOOKUP($A208,[7]Data!$A$6:$H$228,5,0)","v":247},180715,{"$f":"VLOOKUP($A208,[7]Data!$A$6:$H$228,6,0)","v":774},180715,{"$f":"VLOOKUP($A208,[7]Data!$A$6:$H$228,7,0)","v":238},180715,{"$f":"VLOOKUP($A208,[7]Data!$A$6:$H$228,8,0)","v":65},180715,{"$f":"VLOOKUP($A208,[8]CHD06!$E$15:$O$225,5,0)","v":5752},{"$f":"VLOOKUP($A208,[8]CHD06!$E$15:$O$225,10,0)","v":6716},{"$f":"VLOOKUP($A208,[8]CHD08!$E$15:$O$225,5,0)","v":4773},{"$f":"VLOOKUP($A208,[8]CHD08!$E$15:$O$225,10,0)","v":6716},{"$f":"VLOOKUP($A208,[9]BP05!$E$14:$O$225,5,0)","v":23485},{"$f":"VLOOKUP($A208,[9]BP05!$E$14:$O$225,10,0)","v":30729},{"$f":"VLOOKUP($A208,[10]CKD03!$E$14:$O$225,5,0)","v":4099},{"$f":"VLOOKUP($A208,[10]CKD03!$E$14:$O$225,10,0)","v":5913},{"$f":"VLOOKUP($A208,[11]PAD03!$E$14:$O$225,5,0)","v":878},{"$f":"VLOOKUP($A208,[11]PAD03!$E$14:$O$225,10,0)","v":1062},{"$f":"VLOOKUP($A208,[11]PAD04!$E$14:$O$225,5,0)","v":688},{"$f":"VLOOKUP($A208,[11]PAD04!$E$14:$O$225,10,0)","v":1062},{"$f":"VLOOKUP($A208,[12]STROKE06!$E$14:$O$225,5,0)","v":2534},{"$f":"VLOOKUP($A208,[12]STROKE06!$E$14:$O$225,10,0)","v":3059},{"$f":"VLOOKUP($A208,[12]STROKE08!$E$14:$O$225,5,0)","v":2097},{"$f":"VLOOKUP($A208,[12]STROKE08!$E$14:$O$225,10,0)","v":3059},null,null,null,null,null,null,null,null,null,null,null,null,null,null,{"$f":"VLOOKUP($A208,[3]CHD!$E$14:$BS$226,29,0)","v":5725},{"$f":"VLOOKUP($A208,[3]CHD!$E$14:$BS$226,34,0)","v":6718},{"$f":"VLOOKUP($A208,[3]CHD!$E$14:$BS$226,37,0)","v":4734},{"$f":"VLOOKUP($A208,[3]CHD!$E$14:$BS$226,42,0)","v":6718},{"$f":"VLOOKUP($A208,[3]HYP!$E$14:$BK$226,29,0)","v":23701},{"$f":"VLOOKUP($A208,[3]HYP!$E$14:$BK$226,34,0)","v":31064},{"$f":"VLOOKUP($A208,[3]CKD!$E$14:$BG$230,33,0)","v":3141},{"$f":"VLOOKUP($A208,[3]CKD!$E$14:$BG$230,38,0)","v":4303},{"$f":"VLOOKUP(A208,[3]PAD!$E$14:$BC$226,29,0)","v":878},{"$f":"VLOOKUP($A208,[3]PAD!$E$14:$BC$226,34,0)","v":1021},{"$f":"VLOOKUP($A208,[3]PAD!$E$14:$BC$226,37,0)","v":682},{"$f":"VLOOKUP($A208,[3]PAD!$E$14:$BC$226,42,0)","v":1021},{"$f":"VLOOKUP($A208,[3]STIA!$E$14:$CA$230,37,0)","v":2565},{"$f":"VLOOKUP($A208,[3]STIA!$E$14:$CA$230,42,0)","v":3109},{"$f":"VLOOKUP($A208,[3]STIA!$E$14:$CA$230,53,0)","v":1495},{"$f":"VLOOKUP($A208,[3]STIA!$E$14:$CA$230,58,0)","v":2242}]
["99G","NHS Southend",{"$f":"VLOOKUP($A209,'[6]201314'!$C$19:$J$256,8,0)","v":136},{"$f":"VLOOKUP($A209,'[6]201314'!$C$19:$J$256,7,0)","v":168658},{"$f":"VLOOKUP($A209,[7]Data!$A$6:$H$228,4,0)","v":308},{"$f":"VLOOKUP(A209,[3]CHD!$E$15:$H$226,4,0)","v":184741},{"$f":"VLOOKUP($A209,[7]Data!$A$6:$H$228,3,0)","v":1095},184741,{"$f":"VLOOKUP($A209,[7]Data!$A$6:$H$228,5,0)","v":225},184741,{"$f":"VLOOKUP($A209,[7]Data!$A$6:$H$228,6,0)","v":711},184741,{"$f":"VLOOKUP($A209,[7]Data!$A$6:$H$228,7,0)","v":239},184741,{"$f":"VLOOKUP($A209,[7]Data!$A$6:$H$228,8,0)","v":48},184741,{"$f":"VLOOKUP($A209,[8]CHD06!$E$15:$O$225,5,0)","v":5381},{"$f":"VLOOKUP($A209,[8]CHD06!$E$15:$O$225,10,0)","v":6190},{"$f":"VLOOKUP($A209,[8]CHD08!$E$15:$O$225,5,0)","v":4188},{"$f":"VLOOKUP($A209,[8]CHD08!$E$15:$O$225,10,0)","v":6190},{"$f":"VLOOKUP($A209,[9]BP05!$E$14:$O$225,5,0)","v":21343},{"$f":"VLOOKUP($A209,[9]BP05!$E$14:$O$225,10,0)","v":28077},{"$f":"VLOOKUP($A209,[10]CKD03!$E$14:$O$225,5,0)","v":4111},{"$f":"VLOOKUP($A209,[10]CKD03!$E$14:$O$225,10,0)","v":5592},{"$f":"VLOOKUP($A209,[11]PAD03!$E$14:$O$225,5,0)","v":807},{"$f":"VLOOKUP($A209,[11]PAD03!$E$14:$O$225,10,0)","v":966},{"$f":"VLOOKUP($A209,[11]PAD04!$E$14:$O$225,5,0)","v":614},{"$f":"VLOOKUP($A209,[11]PAD04!$E$14:$O$225,10,0)","v":966},{"$f":"VLOOKUP($A209,[12]STROKE06!$E$14:$O$225,5,0)","v":2620},{"$f":"VLOOKUP($A209,[12]STROKE06!$E$14:$O$225,10,0)","v":3071},{"$f":"VLOOKUP($A209,[12]STROKE08!$E$14:$O$225,5,0)","v":1992},{"$f":"VLOOKUP($A209,[12]STROKE08!$E$14:$O$225,10,0)","v":3071},null,null,null,null,null,null,null,null,null,null,null,null,null,null,{"$f":"VLOOKUP($A209,[3]CHD!$E$14:$BS$226,29,0)","v":5296},{"$f":"VLOOKUP($A209,[3]CHD!$E$14:$BS$226,34,0)","v":6151},{"$f":"VLOOKUP($A209,[3]CHD!$E$14:$BS$226,37,0)","v":4207},{"$f":"VLOOKUP($A209,[3]CHD!$E$14:$BS$226,42,0)","v":6151},{"$f":"VLOOKUP($A209,[3]HYP!$E$14:$BK$226,29,0)","v":22045},{"$f":"VLOOKUP($A209,[3]HYP!$E$14:$BK$226,34,0)","v":28186},{"$f":"VLOOKUP($A209,[3]CKD!$E$14:$BG$230,33,0)","v":3423},{"$f":"VLOOKUP($A209,[3]CKD!$E$14:$BG$230,38,0)","v":4429},{"$f":"VLOOKUP(A209,[3]PAD!$E$14:$BC$226,29,0)","v":763},{"$f":"VLOOKUP($A209,[3]PAD!$E$14:$BC$226,34,0)","v":907},{"$f":"VLOOKUP($A209,[3]PAD!$E$14:$BC$226,37,0)","v":622},{"$f":"VLOOKUP($A209,[3]PAD!$E$14:$BC$226,42,0)","v":907},{"$f":"VLOOKUP($A209,[3]STIA!$E$14:$CA$230,37,0)","v":2688},{"$f":"VLOOKUP($A209,[3]STIA!$E$14:$CA$230,42,0)","v":3126},{"$f":"VLOOKUP($A209,[3]STIA!$E$14:$CA$230,53,0)","v":1451},{"$f":"VLOOKUP($A209,[3]STIA!$E$14:$CA$230,58,0)","v":2197}]
["99H","NHS Surrey Downs",{"$f":"VLOOKUP($A210,'[6]201314'!$C$19:$J$256,8,0)","v":125},{"$f":"VLOOKUP($A210,'[6]201314'!$C$19:$J$256,7,0)","v":266909},{"$f":"VLOOKUP($A210,[7]Data!$A$6:$H$228,4,0)","v":386},{"$f":"VLOOKUP(A210,[3]CHD!$E$15:$H$226,4,0)","v":293020},{"$f":"VLOOKUP($A210,[7]Data!$A$6:$H$228,3,0)","v":1199},293020,{"$f":"VLOOKUP($A210,[7]Data!$A$6:$H$228,5,0)","v":247},293020,{"$f":"VLOOKUP($A210,[7]Data!$A$6:$H$228,6,0)","v":824},293020,{"$f":"VLOOKUP($A210,[7]Data!$A$6:$H$228,7,0)","v":341},293020,{"$f":"VLOOKUP($A210,[7]Data!$A$6:$H$228,8,0)","v":80},293020,{"$f":"VLOOKUP($A210,[8]CHD06!$E$15:$O$225,5,0)","v":7578},{"$f":"VLOOKUP($A210,[8]CHD06!$E$15:$O$225,10,0)","v":8846},{"$f":"VLOOKUP($A210,[8]CHD08!$E$15:$O$225,5,0)","v":6172},{"$f":"VLOOKUP($A210,[8]CHD08!$E$15:$O$225,10,0)","v":8846},{"$f":"VLOOKUP($A210,[9]BP05!$E$14:$O$225,5,0)","v":30377},{"$f":"VLOOKUP($A210,[9]BP05!$E$14:$O$225,10,0)","v":40511},{"$f":"VLOOKUP($A210,[10]CKD03!$E$14:$O$225,5,0)","v":6300},{"$f":"VLOOKUP($A210,[10]CKD03!$E$14:$O$225,10,0)","v":9118},{"$f":"VLOOKUP($A210,[11]PAD03!$E$14:$O$225,5,0)","v":1141},{"$f":"VLOOKUP($A210,[11]PAD03!$E$14:$O$225,10,0)","v":1356},{"$f":"VLOOKUP($A210,[11]PAD04!$E$14:$O$225,5,0)","v":923},{"$f":"VLOOKUP($A210,[11]PAD04!$E$14:$O$225,10,0)","v":1356},{"$f":"VLOOKUP($A210,[12]STROKE06!$E$14:$O$225,5,0)","v":4106},{"$f":"VLOOKUP($A210,[12]STROKE06!$E$14:$O$225,10,0)","v":4924},{"$f":"VLOOKUP($A210,[12]STROKE08!$E$14:$O$225,5,0)","v":3202},{"$f":"VLOOKUP($A210,[12]STROKE08!$E$14:$O$225,10,0)","v":4924},null,null,null,null,null,null,null,null,null,null,null,null,null,null,{"$f":"VLOOKUP($A210,[3]CHD!$E$14:$BS$226,29,0)","v":7607},{"$f":"VLOOKUP($A210,[3]CHD!$E$14:$BS$226,34,0)","v":8680},{"$f":"VLOOKUP($A210,[3]CHD!$E$14:$BS$226,37,0)","v":6043},{"$f":"VLOOKUP($A210,[3]CHD!$E$14:$BS$226,42,0)","v":8680},{"$f":"VLOOKUP($A210,[3]HYP!$E$14:$BK$226,29,0)","v":31336},{"$f":"VLOOKUP($A210,[3]HYP!$E$14:$BK$226,34,0)","v":40662},{"$f":"VLOOKUP($A210,[3]CKD!$E$14:$BG$230,33,0)","v":6539},{"$f":"VLOOKUP($A210,[3]CKD!$E$14:$BG$230,38,0)","v":8869},{"$f":"VLOOKUP(A210,[3]PAD!$E$14:$BC$226,29,0)","v":1182},{"$f":"VLOOKUP($A210,[3]PAD!$E$14:$BC$226,34,0)","v":1374},{"$f":"VLOOKUP($A210,[3]PAD!$E$14:$BC$226,37,0)","v":922},{"$f":"VLOOKUP($A210,[3]PAD!$E$14:$BC$226,42,0)","v":1374},{"$f":"VLOOKUP($A210,[3]STIA!$E$14:$CA$230,37,0)","v":4204},{"$f":"VLOOKUP($A210,[3]STIA!$E$14:$CA$230,42,0)","v":4986},{"$f":"VLOOKUP($A210,[3]STIA!$E$14:$CA$230,53,0)","v":2083},{"$f":"VLOOKUP($A210,[3]STIA!$E$14:$CA$230,58,0)","v":3214}]
["99J","NHS West Kent",{"$f":"VLOOKUP($A211,'[6]201314'!$C$19:$J$256,8,0)","v":229},{"$f":"VLOOKUP($A211,'[6]201314'!$C$19:$J$256,7,0)","v":424928},{"$f":"VLOOKUP($A211,[7]Data!$A$6:$H$228,4,0)","v":612},{"$f":"VLOOKUP(A211,[3]CHD!$E$15:$H$226,4,0)","v":467773},{"$f":"VLOOKUP($A211,[7]Data!$A$6:$H$228,3,0)","v":1748},467773,{"$f":"VLOOKUP($A211,[7]Data!$A$6:$H$228,5,0)","v":435},467773,{"$f":"VLOOKUP($A211,[7]Data!$A$6:$H$228,6,0)","v":1366},467773,{"$f":"VLOOKUP($A211,[7]Data!$A$6:$H$228,7,0)","v":474},467773,{"$f":"VLOOKUP($A211,[7]Data!$A$6:$H$228,8,0)","v":121},467773,{"$f":"VLOOKUP($A211,[8]CHD06!$E$15:$O$225,5,0)","v":11679},{"$f":"VLOOKUP($A211,[8]CHD06!$E$15:$O$225,10,0)","v":13396},{"$f":"VLOOKUP($A211,[8]CHD08!$E$15:$O$225,5,0)","v":9640},{"$f":"VLOOKUP($A211,[8]CHD08!$E$15:$O$225,10,0)","v":13396},{"$f":"VLOOKUP($A211,[9]BP05!$E$14:$O$225,5,0)","v":48020},{"$f":"VLOOKUP($A211,[9]BP05!$E$14:$O$225,10,0)","v":62061},{"$f":"VLOOKUP($A211,[10]CKD03!$E$14:$O$225,5,0)","v":11553},{"$f":"VLOOKUP($A211,[10]CKD03!$E$14:$O$225,10,0)","v":16405},{"$f":"VLOOKUP($A211,[11]PAD03!$E$14:$O$225,5,0)","v":2133},{"$f":"VLOOKUP($A211,[11]PAD03!$E$14:$O$225,10,0)","v":2501},{"$f":"VLOOKUP($A211,[11]PAD04!$E$14:$O$225,5,0)","v":1676},{"$f":"VLOOKUP($A211,[11]PAD04!$E$14:$O$225,10,0)","v":2501},{"$f":"VLOOKUP($A211,[12]STROKE06!$E$14:$O$225,5,0)","v":7008},{"$f":"VLOOKUP($A211,[12]STROKE06!$E$14:$O$225,10,0)","v":8263},{"$f":"VLOOKUP($A211,[12]STROKE08!$E$14:$O$225,5,0)","v":5488},{"$f":"VLOOKUP($A211,[12]STROKE08!$E$14:$O$225,10,0)","v":8263},null,null,null,null,null,null,null,null,null,null,null,null,null,null,{"$f":"VLOOKUP($A211,[3]CHD!$E$14:$BS$226,29,0)","v":11810},{"$f":"VLOOKUP($A211,[3]CHD!$E$14:$BS$226,34,0)","v":13288},{"$f":"VLOOKUP($A211,[3]CHD!$E$14:$BS$226,37,0)","v":9912},{"$f":"VLOOKUP($A211,[3]CHD!$E$14:$BS$226,42,0)","v":13287},{"$f":"VLOOKUP($A211,[3]HYP!$E$14:$BK$226,29,0)","v":50622},{"$f":"VLOOKUP($A211,[3]HYP!$E$14:$BK$226,34,0)","v":63529},{"$f":"VLOOKUP($A211,[3]CKD!$E$14:$BG$230,33,0)","v":12873},{"$f":"VLOOKUP($A211,[3]CKD!$E$14:$BG$230,38,0)","v":17093},{"$f":"VLOOKUP(A211,[3]PAD!$E$14:$BC$226,29,0)","v":2119},{"$f":"VLOOKUP($A211,[3]PAD!$E$14:$BC$226,34,0)","v":2467},{"$f":"VLOOKUP($A211,[3]PAD!$E$14:$BC$226,37,0)","v":1739},{"$f":"VLOOKUP($A211,[3]PAD!$E$14:$BC$226,42,0)","v":2467},{"$f":"VLOOKUP($A211,[3]STIA!$E$14:$CA$230,37,0)","v":7184},{"$f":"VLOOKUP($A211,[3]STIA!$E$14:$CA$230,42,0)","v":8455},{"$f":"VLOOKUP($A211,[3]STIA!$E$14:$CA$230,53,0)","v":4246},{"$f":"VLOOKUP($A211,[3]STIA!$E$14:$CA$230,58,0)","v":6148}]
["99K","NHS High Weald Lewes Havens",{"$f":"VLOOKUP($A212,'[6]201314'!$C$19:$J$256,8,0)","v":77},{"$f":"VLOOKUP($A212,'[6]201314'!$C$19:$J$256,7,0)","v":150461},{"$f":"VLOOKUP($A212,[7]Data!$A$6:$H$228,4,0)","v":305},{"$f":"VLOOKUP(A212,[3]CHD!$E$15:$H$226,4,0)","v":166603},{"$f":"VLOOKUP($A212,[7]Data!$A$6:$H$228,3,0)","v":815},166603,{"$f":"VLOOKUP($A212,[7]Data!$A$6:$H$228,5,0)","v":171},166603,{"$f":"VLOOKUP($A212,[7]Data!$A$6:$H$228,6,0)","v":707},166603,{"$f":"VLOOKUP($A212,[7]Data!$A$6:$H$228,7,0)","v":259},166603,{"$f":"VLOOKUP($A212,[7]Data!$A$6:$H$228,8,0)","v":52},166603,{"$f":"VLOOKUP($A212,[8]CHD06!$E$15:$O$225,5,0)","v":4712},{"$f":"VLOOKUP($A212,[8]CHD06!$E$15:$O$225,10,0)","v":5410},{"$f":"VLOOKUP($A212,[8]CHD08!$E$15:$O$225,5,0)","v":3715},{"$f":"VLOOKUP($A212,[8]CHD08!$E$15:$O$225,10,0)","v":5410},{"$f":"VLOOKUP($A212,[9]BP05!$E$14:$O$225,5,0)","v":18155},{"$f":"VLOOKUP($A212,[9]BP05!$E$14:$O$225,10,0)","v":24305},{"$f":"VLOOKUP($A212,[10]CKD03!$E$14:$O$225,5,0)","v":4719},{"$f":"VLOOKUP($A212,[10]CKD03!$E$14:$O$225,10,0)","v":6763},{"$f":"VLOOKUP($A212,[11]PAD03!$E$14:$O$225,5,0)","v":928},{"$f":"VLOOKUP($A212,[11]PAD03!$E$14:$O$225,10,0)","v":1082},{"$f":"VLOOKUP($A212,[11]PAD04!$E$14:$O$225,5,0)","v":659},{"$f":"VLOOKUP($A212,[11]PAD04!$E$14:$O$225,10,0)","v":1082},{"$f":"VLOOKUP($A212,[12]STROKE06!$E$14:$O$225,5,0)","v":2826},{"$f":"VLOOKUP($A212,[12]STROKE06!$E$14:$O$225,10,0)","v":3342},{"$f":"VLOOKUP($A212,[12]STROKE08!$E$14:$O$225,5,0)","v":2091},{"$f":"VLOOKUP($A212,[12]STROKE08!$E$14:$O$225,10,0)","v":3342},null,null,null,null,null,null,null,null,null,null,null,null,null,null,{"$f":"VLOOKUP($A212,[3]CHD!$E$14:$BS$226,29,0)","v":4678},{"$f":"VLOOKUP($A212,[3]CHD!$E$14:$BS$226,34,0)","v":5325},{"$f":"VLOOKUP($A212,[3]CHD!$E$14:$BS$226,37,0)","v":3761},{"$f":"VLOOKUP($A212,[3]CHD!$E$14:$BS$226,42,0)","v":5318},{"$f":"VLOOKUP($A212,[3]HYP!$E$14:$BK$226,29,0)","v":18859},{"$f":"VLOOKUP($A212,[3]HYP!$E$14:$BK$226,34,0)","v":24269},{"$f":"VLOOKUP($A212,[3]CKD!$E$14:$BG$230,33,0)","v":4801},{"$f":"VLOOKUP($A212,[3]CKD!$E$14:$BG$230,38,0)","v":6506},{"$f":"VLOOKUP(A212,[3]PAD!$E$14:$BC$226,29,0)","v":886},{"$f":"VLOOKUP($A212,[3]PAD!$E$14:$BC$226,34,0)","v":1090},{"$f":"VLOOKUP($A212,[3]PAD!$E$14:$BC$226,37,0)","v":665},{"$f":"VLOOKUP($A212,[3]PAD!$E$14:$BC$226,42,0)","v":1046},{"$f":"VLOOKUP($A212,[3]STIA!$E$14:$CA$230,37,0)","v":2839},{"$f":"VLOOKUP($A212,[3]STIA!$E$14:$CA$230,42,0)","v":3338},{"$f":"VLOOKUP($A212,[3]STIA!$E$14:$CA$230,53,0)","v":1481},{"$f":"VLOOKUP($A212,[3]STIA!$E$14:$CA$230,58,0)","v":2479}]
["99M","NHS North East Hampshire and Farnham",{"$f":"VLOOKUP($A213,'[6]201314'!$C$19:$J$256,8,0)","v":84},{"$f":"VLOOKUP($A213,'[6]201314'!$C$19:$J$256,7,0)","v":203518},{"$f":"VLOOKUP($A213,[7]Data!$A$6:$H$228,4,0)","v":275},{"$f":"VLOOKUP(A213,[3]CHD!$E$15:$H$226,4,0)","v":218868},{"$f":"VLOOKUP($A213,[7]Data!$A$6:$H$228,3,0)","v":1293},218868,{"$f":"VLOOKUP($A213,[7]Data!$A$6:$H$228,5,0)","v":185},218868,{"$f":"VLOOKUP($A213,[7]Data!$A$6:$H$228,6,0)","v":922},218868,{"$f":"VLOOKUP($A213,[7]Data!$A$6:$H$228,7,0)","v":380},218868,{"$f":"VLOOKUP($A213,[7]Data!$A$6:$H$228,8,0)","v":83},218868,{"$f":"VLOOKUP($A213,[8]CHD06!$E$15:$O$225,5,0)","v":5038},{"$f":"VLOOKUP($A213,[8]CHD06!$E$15:$O$225,10,0)","v":5733},{"$f":"VLOOKUP($A213,[8]CHD08!$E$15:$O$225,5,0)","v":4416},{"$f":"VLOOKUP($A213,[8]CHD08!$E$15:$O$225,10,0)","v":5733},{"$f":"VLOOKUP($A213,[9]BP05!$E$14:$O$225,5,0)","v":21637},{"$f":"VLOOKUP($A213,[9]BP05!$E$14:$O$225,10,0)","v":27900},{"$f":"VLOOKUP($A213,[10]CKD03!$E$14:$O$225,5,0)","v":4635},{"$f":"VLOOKUP($A213,[10]CKD03!$E$14:$O$225,10,0)","v":6395},{"$f":"VLOOKUP($A213,[11]PAD03!$E$14:$O$225,5,0)","v":948},{"$f":"VLOOKUP($A213,[11]PAD03!$E$14:$O$225,10,0)","v":1097},{"$f":"VLOOKUP($A213,[11]PAD04!$E$14:$O$225,5,0)","v":777},{"$f":"VLOOKUP($A213,[11]PAD04!$E$14:$O$225,10,0)","v":1097},{"$f":"VLOOKUP($A213,[12]STROKE06!$E$14:$O$225,5,0)","v":2636},{"$f":"VLOOKUP($A213,[12]STROKE06!$E$14:$O$225,10,0)","v":3085},{"$f":"VLOOKUP($A213,[12]STROKE08!$E$14:$O$225,5,0)","v":2204},{"$f":"VLOOKUP($A213,[12]STROKE08!$E$14:$O$225,10,0)","v":3085},null,null,null,null,null,null,null,null,null,null,null,null,null,null,{"$f":"VLOOKUP($A213,[3]CHD!$E$14:$BS$226,29,0)","v":5208},{"$f":"VLOOKUP($A213,[3]CHD!$E$14:$BS$226,34,0)","v":5822},{"$f":"VLOOKUP($A213,[3]CHD!$E$14:$BS$226,37,0)","v":4486},{"$f":"VLOOKUP($A213,[3]CHD!$E$14:$BS$226,42,0)","v":5798},{"$f":"VLOOKUP($A213,[3]HYP!$E$14:$BK$226,29,0)","v":22131},{"$f":"VLOOKUP($A213,[3]HYP!$E$14:$BK$226,34,0)","v":28214},{"$f":"VLOOKUP($A213,[3]CKD!$E$14:$BG$230,33,0)","v":4657},{"$f":"VLOOKUP($A213,[3]CKD!$E$14:$BG$230,38,0)","v":6065},{"$f":"VLOOKUP(A213,[3]PAD!$E$14:$BC$226,29,0)","v":935},{"$f":"VLOOKUP($A213,[3]PAD!$E$14:$BC$226,34,0)","v":1091},{"$f":"VLOOKUP($A213,[3]PAD!$E$14:$BC$226,37,0)","v":744},{"$f":"VLOOKUP($A213,[3]PAD!$E$14:$BC$226,42,0)","v":1081},{"$f":"VLOOKUP($A213,[3]STIA!$E$14:$CA$230,37,0)","v":2667},{"$f":"VLOOKUP($A213,[3]STIA!$E$14:$CA$230,42,0)","v":3162},{"$f":"VLOOKUP($A213,[3]STIA!$E$14:$CA$230,53,0)","v":1558},{"$f":"VLOOKUP($A213,[3]STIA!$E$14:$CA$230,58,0)","v":2194}]
["99N","NHS Wiltshire",{"$f":"VLOOKUP($A214,'[6]201314'!$C$19:$J$256,8,0)","v":249},{"$f":"VLOOKUP($A214,'[6]201314'!$C$19:$J$256,7,0)","v":431541},{"$f":"VLOOKUP($A214,[7]Data!$A$6:$H$228,4,0)","v":917},{"$f":"VLOOKUP(A214,[3]CHD!$E$15:$H$226,4,0)","v":474987},{"$f":"VLOOKUP($A214,[7]Data!$A$6:$H$228,3,0)","v":2410},474987,{"$f":"VLOOKUP($A214,[7]Data!$A$6:$H$228,5,0)","v":502},474987,{"$f":"VLOOKUP($A214,[7]Data!$A$6:$H$228,6,0)","v":1647},474987,{"$f":"VLOOKUP($A214,[7]Data!$A$6:$H$228,7,0)","v":757},474987,{"$f":"VLOOKUP($A214,[7]Data!$A$6:$H$228,8,0)","v":166},474987,{"$f":"VLOOKUP($A214,[8]CHD06!$E$15:$O$225,5,0)","v":13815},{"$f":"VLOOKUP($A214,[8]CHD06!$E$15:$O$225,10,0)","v":15612},{"$f":"VLOOKUP($A214,[8]CHD08!$E$15:$O$225,5,0)","v":11303},{"$f":"VLOOKUP($A214,[8]CHD08!$E$15:$O$225,10,0)","v":15612},{"$f":"VLOOKUP($A214,[9]BP05!$E$14:$O$225,5,0)","v":53705},{"$f":"VLOOKUP($A214,[9]BP05!$E$14:$O$225,10,0)","v":69405},{"$f":"VLOOKUP($A214,[10]CKD03!$E$14:$O$225,5,0)","v":9019},{"$f":"VLOOKUP($A214,[10]CKD03!$E$14:$O$225,10,0)","v":12708},{"$f":"VLOOKUP($A214,[11]PAD03!$E$14:$O$225,5,0)","v":2368},{"$f":"VLOOKUP($A214,[11]PAD03!$E$14:$O$225,10,0)","v":2747},{"$f":"VLOOKUP($A214,[11]PAD04!$E$14:$O$225,5,0)","v":1861},{"$f":"VLOOKUP($A214,[11]PAD04!$E$14:$O$225,10,0)","v":2747},{"$f":"VLOOKUP($A214,[12]STROKE06!$E$14:$O$225,5,0)","v":7987},{"$f":"VLOOKUP($A214,[12]STROKE06!$E$14:$O$225,10,0)","v":9305},{"$f":"VLOOKUP($A214,[12]STROKE08!$E$14:$O$225,5,0)","v":6156},{"$f":"VLOOKUP($A214,[12]STROKE08!$E$14:$O$225,10,0)","v":9305},null,null,null,null,null,null,null,null,null,null,null,null,null,null,{"$f":"VLOOKUP($A214,[3]CHD!$E$14:$BS$226,29,0)","v":14019},{"$f":"VLOOKUP($A214,[3]CHD!$E$14:$BS$226,34,0)","v":15751},{"$f":"VLOOKUP($A214,[3]CHD!$E$14:$BS$226,37,0)","v":11427},{"$f":"VLOOKUP($A214,[3]CHD!$E$14:$BS$226,42,0)","v":15730},{"$f":"VLOOKUP($A214,[3]HYP!$E$14:$BK$226,29,0)","v":55757},{"$f":"VLOOKUP($A214,[3]HYP!$E$14:$BK$226,34,0)","v":70828},{"$f":"VLOOKUP($A214,[3]CKD!$E$14:$BG$230,33,0)","v":9239},{"$f":"VLOOKUP($A214,[3]CKD!$E$14:$BG$230,38,0)","v":12435},{"$f":"VLOOKUP(A214,[3]PAD!$E$14:$BC$226,29,0)","v":2430},{"$f":"VLOOKUP($A214,[3]PAD!$E$14:$BC$226,34,0)","v":2819},{"$f":"VLOOKUP($A214,[3]PAD!$E$14:$BC$226,37,0)","v":1915},{"$f":"VLOOKUP($A214,[3]PAD!$E$14:$BC$226,42,0)","v":2818},{"$f":"VLOOKUP($A214,[3]STIA!$E$14:$CA$230,37,0)","v":8138},{"$f":"VLOOKUP($A214,[3]STIA!$E$14:$CA$230,42,0)","v":9598},{"$f":"VLOOKUP($A214,[3]STIA!$E$14:$CA$230,53,0)","v":4370},{"$f":"VLOOKUP($A214,[3]STIA!$E$14:$CA$230,58,0)","v":6634}]
["99P","NHS Northern, Eastern and Western Devon",{"$f":"VLOOKUP($A215,'[6]201314'!$C$19:$J$256,8,0)","v":576},{"$f":"VLOOKUP($A215,'[6]201314'!$C$19:$J$256,7,0)","v":813815},{"$f":"VLOOKUP($A215,[7]Data!$A$6:$H$228,4,0)","v":1923},{"$f":"VLOOKUP(A215,[3]CHD!$E$15:$H$226,4,0)","v":902363},{"$f":"VLOOKUP($A215,[7]Data!$A$6:$H$228,3,0)","v":5050},902363,{"$f":"VLOOKUP($A215,[7]Data!$A$6:$H$228,5,0)","v":1227},902363,{"$f":"VLOOKUP($A215,[7]Data!$A$6:$H$228,6,0)","v":3367},902363,{"$f":"VLOOKUP($A215,[7]Data!$A$6:$H$228,7,0)","v":1379},902363,{"$f":"VLOOKUP($A215,[7]Data!$A$6:$H$228,8,0)","v":483},902363,{"$f":"VLOOKUP($A215,[8]CHD06!$E$15:$O$225,5,0)","v":30049},{"$f":"VLOOKUP($A215,[8]CHD06!$E$15:$O$225,10,0)","v":34166},{"$f":"VLOOKUP($A215,[8]CHD08!$E$15:$O$225,5,0)","v":24747},{"$f":"VLOOKUP($A215,[8]CHD08!$E$15:$O$225,10,0)","v":34166},{"$f":"VLOOKUP($A215,[9]BP05!$E$14:$O$225,5,0)","v":104163},{"$f":"VLOOKUP($A215,[9]BP05!$E$14:$O$225,10,0)","v":133424},{"$f":"VLOOKUP($A215,[10]CKD03!$E$14:$O$225,5,0)","v":25629},{"$f":"VLOOKUP($A215,[10]CKD03!$E$14:$O$225,10,0)","v":36752},{"$f":"VLOOKUP($A215,[11]PAD03!$E$14:$O$225,5,0)","v":5612},{"$f":"VLOOKUP($A215,[11]PAD03!$E$14:$O$225,10,0)","v":6559},{"$f":"VLOOKUP($A215,[11]PAD04!$E$14:$O$225,5,0)","v":4495},{"$f":"VLOOKUP($A215,[11]PAD04!$E$14:$O$225,10,0)","v":6559},{"$f":"VLOOKUP($A215,[12]STROKE06!$E$14:$O$225,5,0)","v":15815},{"$f":"VLOOKUP($A215,[12]STROKE06!$E$14:$O$225,10,0)","v":18460},{"$f":"VLOOKUP($A215,[12]STROKE08!$E$14:$O$225,5,0)","v":12311},{"$f":"VLOOKUP($A215,[12]STROKE08!$E$14:$O$225,10,0)","v":18460},null,null,null,null,null,null,null,null,null,null,null,null,null,null,{"$f":"VLOOKUP($A215,[3]CHD!$E$14:$BS$226,29,0)","v":29828},{"$f":"VLOOKUP($A215,[3]CHD!$E$14:$BS$226,34,0)","v":34388},{"$f":"VLOOKUP($A215,[3]CHD!$E$14:$BS$226,37,0)","v":24189},{"$f":"VLOOKUP($A215,[3]CHD!$E$14:$BS$226,42,0)","v":34388},{"$f":"VLOOKUP($A215,[3]HYP!$E$14:$BK$226,29,0)","v":103888},{"$f":"VLOOKUP($A215,[3]HYP!$E$14:$BK$226,34,0)","v":135086},{"$f":"VLOOKUP($A215,[3]CKD!$E$14:$BG$230,33,0)","v":24987},{"$f":"VLOOKUP($A215,[3]CKD!$E$14:$BG$230,38,0)","v":35454},{"$f":"VLOOKUP(A215,[3]PAD!$E$14:$BC$226,29,0)","v":5431},{"$f":"VLOOKUP($A215,[3]PAD!$E$14:$BC$226,34,0)","v":6559},{"$f":"VLOOKUP($A215,[3]PAD!$E$14:$BC$226,37,0)","v":4335},{"$f":"VLOOKUP($A215,[3]PAD!$E$14:$BC$226,42,0)","v":6559},{"$f":"VLOOKUP($A215,[3]STIA!$E$14:$CA$230,37,0)","v":15706},{"$f":"VLOOKUP($A215,[3]STIA!$E$14:$CA$230,42,0)","v":18894},{"$f":"VLOOKUP($A215,[3]STIA!$E$14:$CA$230,53,0)","v":9434},{"$f":"VLOOKUP($A215,[3]STIA!$E$14:$CA$230,58,0)","v":14660}]
["99Q","NHS South Devon and Torbay",{"$f":"VLOOKUP($A216,'[6]201314'!$C$19:$J$256,8,0)","v":227},{"$f":"VLOOKUP($A216,'[6]201314'!$C$19:$J$256,7,0)","v":253816},{"$f":"VLOOKUP($A216,[7]Data!$A$6:$H$228,4,0)","v":779},{"$f":"VLOOKUP(A216,[3]CHD!$E$15:$H$226,4,0)","v":286200},{"$f":"VLOOKUP($A216,[7]Data!$A$6:$H$228,3,0)","v":1321},286200,{"$f":"VLOOKUP($A216,[7]Data!$A$6:$H$228,5,0)","v":509},286200,{"$f":"VLOOKUP($A216,[7]Data!$A$6:$H$228,6,0)","v":874},286200,{"$f":"VLOOKUP($A216,[7]Data!$A$6:$H$228,7,0)","v":435},286200,{"$f":"VLOOKUP($A216,[7]Data!$A$6:$H$228,8,0)","v":115},286200,{"$f":"VLOOKUP($A216,[8]CHD06!$E$15:$O$225,5,0)","v":9866},{"$f":"VLOOKUP($A216,[8]CHD06!$E$15:$O$225,10,0)","v":11361},{"$f":"VLOOKUP($A216,[8]CHD08!$E$15:$O$225,5,0)","v":8123},{"$f":"VLOOKUP($A216,[8]CHD08!$E$15:$O$225,10,0)","v":11361},{"$f":"VLOOKUP($A216,[9]BP05!$E$14:$O$225,5,0)","v":35806},{"$f":"VLOOKUP($A216,[9]BP05!$E$14:$O$225,10,0)","v":46892},{"$f":"VLOOKUP($A216,[10]CKD03!$E$14:$O$225,5,0)","v":8244},{"$f":"VLOOKUP($A216,[10]CKD03!$E$14:$O$225,10,0)","v":12422},{"$f":"VLOOKUP($A216,[11]PAD03!$E$14:$O$225,5,0)","v":2083},{"$f":"VLOOKUP($A216,[11]PAD03!$E$14:$O$225,10,0)","v":2465},{"$f":"VLOOKUP($A216,[11]PAD04!$E$14:$O$225,5,0)","v":1683},{"$f":"VLOOKUP($A216,[11]PAD04!$E$14:$O$225,10,0)","v":2465},{"$f":"VLOOKUP($A216,[12]STROKE06!$E$14:$O$225,5,0)","v":5842},{"$f":"VLOOKUP($A216,[12]STROKE06!$E$14:$O$225,10,0)","v":6957},{"$f":"VLOOKUP($A216,[12]STROKE08!$E$14:$O$225,5,0)","v":4592},{"$f":"VLOOKUP($A216,[12]STROKE08!$E$14:$O$225,10,0)","v":6957},null,null,null,null,null,null,null,null,null,null,null,null,null,null,{"$f":"VLOOKUP($A216,[3]CHD!$E$14:$BS$226,29,0)","v":9614},{"$f":"VLOOKUP($A216,[3]CHD!$E$14:$BS$226,34,0)","v":11268},{"$f":"VLOOKUP($A216,[3]CHD!$E$14:$BS$226,37,0)","v":7807},{"$f":"VLOOKUP($A216,[3]CHD!$E$14:$BS$226,42,0)","v":11268},{"$f":"VLOOKUP($A216,[3]HYP!$E$14:$BK$226,29,0)","v":35304},{"$f":"VLOOKUP($A216,[3]HYP!$E$14:$BK$226,34,0)","v":47547},{"$f":"VLOOKUP($A216,[3]CKD!$E$14:$BG$230,33,0)","v":8218},{"$f":"VLOOKUP($A216,[3]CKD!$E$14:$BG$230,38,0)","v":12223},{"$f":"VLOOKUP(A216,[3]PAD!$E$14:$BC$226,29,0)","v":2010},{"$f":"VLOOKUP($A216,[3]PAD!$E$14:$BC$226,34,0)","v":2474},{"$f":"VLOOKUP($A216,[3]PAD!$E$14:$BC$226,37,0)","v":1626},{"$f":"VLOOKUP($A216,[3]PAD!$E$14:$BC$226,42,0)","v":2474},{"$f":"VLOOKUP($A216,[3]STIA!$E$14:$CA$230,37,0)","v":5794},{"$f":"VLOOKUP($A216,[3]STIA!$E$14:$CA$230,42,0)","v":7106},{"$f":"VLOOKUP($A216,[3]STIA!$E$14:$CA$230,53,0)","v":3422},{"$f":"VLOOKUP($A216,[3]STIA!$E$14:$CA$230,58,0)","v":5357}]

{"sheet":"Closest CCG (codes)","index":20,"n_rows":212,"n_cols":213,"rows_kept":212,"cut":false,"hidden":true,"merged":[[0,0,1,0],[0,212,1,212]]}
["Closeness rank","00C","00D","00F","00G","00H","00J","00K","00L","00M","00N","00P","00Q","00R","00T","00V","00W","00X","00Y","01A","01C","01D","01E","01F","01G","01H","01J","01K","01M","01N","01R","01T","01V","01W","01X","01Y","02A","02D","02E","02F","02G","02H","02M","02N","02P","02Q","02R","02T","02V","02W","02X","02Y","03A","03C","03D","03E","03F","03G","03H","03J","03K","03L","03M","03N","03Q","03R","03T","03V","03W","03X","03Y","04C","04D","04E","04F","04G","04H","04J","04K","04L","04M","04N","04Q","04R","04V","04X","04Y","05A","05C","05D","05F","05G","05H","05J","05L","05N","05P","05Q","05R","05T","05V","05W","05X","05Y","06A","06D","06F","06H","06K","06L","06M","06N","06P","06Q","06T","06V","06W","06Y","07G","07H","07J","07K","07L","07M","07N","07P","07Q","07R","07T","07V","07W","07X","07Y","08A","08C","08D","08E","08F","08G","08H","08J","08K","08L","08M","08N","08P","08Q","08R","08T","08V","08W","08X","08Y","09A","09C","09D","09E","09F","09G","09H","09J","09L","09N","09P","09W","09X","09Y","10A","10C","10D","10E","10G","10H","10J","10K","10L","10M","10N","10Q","10R","10T","10V","10W","10X","10Y","11A","11C","11D","11E","11H","11J","11M","11N","11T","11X","12A","12D","12F","13P","99A","99C","99D","99E","99F","99G","99H","99J","99K","99M","99N","99P","99Q","Closeness rank"]
[null,"NHS Darlington CCG","NHS Durham Dales, Easington and Sedgefield CCG","NHS Gateshead CCG","NHS Newcastle North and East CCG","NHS Newcastle West CCG","NHS North Durham CCG","NHS Hartlepool and Stockton-on-Tees CCG","NHS Northumberland CCG","NHS South Tees CCG","NHS South Tyneside CCG","NHS Sunderland CCG","NHS Blackburn with Darwen CCG","NHS Blackpool CCG","NHS Bolton CCG","NHS Bury CCG","NHS Central Manchester CCG","NHS Chorley and South Ribble CCG","NHS Oldham CCG","NHS East Lancashire CCG","NHS Eastern Cheshire CCG","NHS Heywood, Middleton & Rochdale CCG","NHS Greater Preston CCG","NHS Halton CCG","NHS Salford CCG","NHS Cumbria CCG","NHS Knowsley CCG","NHS Lancashire North CCG","NHS North Manchester CCG","NHS South Manchester CCG","NHS South Cheshire CCG","NHS South Sefton CCG","NHS Southport and Formby CCG","NHS Stockport CCG","NHS St Helens CCG","NHS Tameside and Glossop CCG","NHS Trafford CCG","NHS Vale Royal CCG","NHS Warrington CCG","NHS West Cheshire CCG","NHS West Lancashire CCG","NHS Wigan Borough CCG","NHS Fylde & Wyre CCG","NHS Airedale, Wharfedale and Craven CCG","NHS Barnsley CCG","NHS Bassetlaw CCG","NHS Bradford Districts CCG","NHS Calderdale CCG","NHS Leeds North CCG","NHS Bradford City CCG","NHS Doncaster CCG","NHS East Riding of Yorkshire CCG","NHS Greater Huddersfield CCG","NHS Leeds West CCG","NHS Hambleton, Richmondshire and Whitby CCG","NHS Harrogate and Rural District CCG","NHS Hull CCG","NHS Leeds South and East CCG","NHS North East Lincolnshire CCG","NHS North Kirklees CCG","NHS North Lincolnshire CCG","NHS Rotherham CCG","NHS Scarborough and Ryedale CCG","NHS Sheffield CCG","NHS Vale of York CCG","NHS Wakefield CCG ","NHS Lincolnshire East CCG","NHS Corby CCG","NHS East Leicestershire and Rutland CCG","NHS Erewash CCG","NHS Hardwick CCG","NHS Leicester City CCG","NHS Lincolnshire West CCG","NHS Mansfield & Ashfield CCG","NHS Milton Keynes CCG","NHS Nene CCG","NHS Newark & Sherwood CCG","NHS North Derbyshire CCG","NHS Nottingham City CCG","NHS Nottingham North & East CCG","NHS Nottingham West CCG","NHS Rushcliffe CCG","NHS South West Lincolnshire CCG ","NHS Southern Derbyshire CCG","NHS West Leicestershire CCG","NHS Birmingham South and Central CCG","NHS Cannock Chase CCG","NHS Coventry and Rugby CCG","NHS Dudley CCG","NHS East Staffordshire CCG","NHS Herefordshire CCG","NHS North Staffordshire CCG","NHS Warwickshire North CCG","NHS Redditch and Bromsgrove CCG","NHS Sandwell and West Birmingham CCG","NHS Shropshire CCG","NHS Solihull CCG","NHS South East Staffs and Seisdon Peninsular CCG","NHS South Warwickshire CCG","NHS South Worcestershire CCG","NHS Stafford and Surrounds CCG","NHS Stoke on Trent CCG","NHS Telford & Wrekin CCG","NHS Walsall CCG","NHS Wolverhampton CCG","NHS Wyre Forest CCG","NHS Bedfordshire CCG","NHS Cambridgeshire and Peterborough CCG","NHS East and North Hertfordshire CCG","NHS Ipswich and East Suffolk CCG","NHS Great Yarmouth & Waveney CCG","NHS Herts Valleys CCG","NHS Luton CCG","NHS Mid Essex CCG","NHS North East Essex CCG","NHS North Norfolk CCG","NHS Norwich CCG","NHS South Norfolk CCG","NHS Thurrock CCG","NHS West Essex CCG","NHS West Norfolk CCG","NHS West Suffolk CCG","NHS Barking & Dagenham CCG","NHS Barnet CCG","NHS Bexley CCG","NHS Brent CCG","NHS Bromley CCG","NHS Camden CCG","NHS City and Hackney CCG","NHS Croydon CCG","NHS Ealing CCG","NHS Enfield CCG","NHS Hounslow CCG","NHS Greenwich CCG","NHS Hammersmith and Fulham CCG","NHS Haringey CCG","NHS Harrow CCG","NHS Havering CCG","NHS Hillingdon CCG","NHS Islington CCG","NHS Kingston CCG","NHS Lambeth CCG","NHS Lewisham CCG","NHS Newham CCG","NHS Redbridge CCG","NHS Richmond CCG","NHS Southwark CCG","NHS Merton CCG","NHS Sutton CCG","NHS Tower Hamlets CCG","NHS Waltham Forest CCG","NHS Wandsworth CCG","NHS West London (Kensington and Chelsea, Queen's Park and Paddington) CCG","NHS Central London (Westminster) CCG","NHS Ashford CCG","NHS Brighton & Hove CCG","NHS Canterbury and Coastal CCG","NHS Eastbourne, Hailsham and Seaford CCG","NHS Coastal West Sussex CCG","NHS Crawley CCG","NHS Dartford, Gravesham and Swanley CCG","NHS East Surrey CCG","NHS Guildford and Waverley CCG","NHS Hastings & Rother CCG","NHS Medway CCG","NHS Horsham and Mid Sussex CCG","NHS North West Surrey CCG","NHS South Kent Coast CCG","NHS Surrey Heath CCG","NHS Swale CCG","NHS Thanet CCG","NHS Bracknell and Ascot CCG","NHS Chiltern CCG","NHS North Hampshire CCG","NHS Fareham and Gosport CCG","NHS Isle of Wight CCG","NHS Newbury and District CCG","NHS North & West Reading CCG","NHS Oxfordshire CCG","NHS Portsmouth CCG","NHS Slough CCG","NHS South Eastern Hampshire CCG","NHS South Reading CCG","NHS Southampton CCG","NHS Aylesbury Vale CCG","NHS West Hampshire CCG","NHS Windsor, Ascot and Maidenhead CCG","NHS Wokingham CCG","NHS Bath and North East Somerset CCG","NHS Bristol CCG","NHS Dorset CCG","NHS Gloucestershire CCG","NHS Kernow CCG","NHS North Somerset CCG","NHS Somerset CCG","NHS South Gloucestershire CCG","NHS Swindon CCG","NHS Wirral CCG","NHS B'ham xcity","NHS Liverpool CCG","NHS North Tyneside CCG","NHS South Lincolnshire CCG","NHS Basildon and Brentwood CCG","NHS Castle Point and Rochford CCG","NHS Southend CCG","NHS Surrey Downs CCG","NHS West Kent CCG","NHS High Weald Lewes Havens CCG","NHS North East Hampshire and Farnham CCG","NHS Wiltshire CCG","NHS North, East, West Devon CCG","NHS South Devon and Torbay CCG"]
[1,"02Q","02X","00D","03C","05W","04D","02H","04J","05W","01T","01T","00Y","01J","01D","01Y","04K","05J","02R","02T","11T","00T","01A","01Y","05W","11N","00M","09E","04X","10X","05H","00N","02M","99G","02P","03L","05P","02G","05J","06T","05H","00K","99Q","02T","00K","03Y","00Y","05D","03G","10T","00K","05T","05X","10X","05F","05R","05W","05W","02P","00Y","04H","01Y","09P","05A","04V","02P","06M","01F","06Q","04L","02Q","04X","10A","02P","07G","04R","02Q","00L","03C","03X","04L","99D","99K","06F","06T","04C","03X","11H","08F","03K","03D","04J","05J","05H","13P","00L","02A","05J","05T","05R","99D","01Y","02E","00H","05Y","04H","06Q","10Q","06F","99N","10A","06K","10T","99N","02F","09F","00J","07K","04F","99E","10L","06Y","08A","08T","08T","08W","99E","09A","08L","08A","07Y","07V","07W","08W","08X","08A","08N","05C","07M","08Y","08T","08Q","07T","08W","10T","99M","08K","07Y","07N","00W","08A","08C","08H","07R","10M","01E","11E","02M","11N","12D","99E","09X","03W","07J","09J","99H","99H","06M","11D","05D","03H","11D","99H","99M","99F","07J","09C","02D","06H","10X","06P","11T","10X","10R","10M","11M","99M","10G","09E","05A","11N","11A","11X","01C","11N","05Q","09H","03R","05L","01G","04L","99K","12A","10V","01W","09X","99N","04Q","10J","06L","11J","03T",1]
[2,"03Y","02P","03Y","04K","01G","05G","02X","02Y","00P","01X","12F","02R","00P","02R","02A","04C","05H","01D","03G","99D","00Y","02V","03L","03F","11X","00R","11E","01D","01G","04H","01X","04M","02A","01T","05W","01W","01R","05H","05T","02D","02P","09F","10A","02X","04H","00T","10D","07H","04X","02P","00L","09J","00G","99D","99K","01G","01A","10E","02R","05D","00K","06M","04R","04D","12F","99Q","00V","05T","04Y","04H","05L","03H","01X","09H","06K","01R","05G","10X","05Q","03X","09X","06Y","04G","03W","06P","04L","03A","01W","10D","07K","05V","02E","02E","04X","07K","01W","04L","02Y","02Y","05G","00M","00K","06A","00H","01C","04R","04G","04R","05T","03T","04G","08N","03W","05T","10L","00N","99K","09W","10J","09P","03D","08W","07N","08F","07W","08F","08H","08Q","07X","07P","08A","08N","07V","08H","07V","08G","07Q","06P","08X","11C","07T","08D","07P","08E","10N","07T","07W","09H","07P","07P","08R","08X","08Y","10Y","10R","00J","03T","11X","08T","09W","10J","04N","06M","03A","09L","07Q","03K","10G","02T","02G","12A","10J","10M","05Q","09P","10Y","07H","04G","06W","08N","99F","11H","03C","09C","99N","10J","10C","03Q","10X","09G","11X","01H","10V","11M","99E","99E","01X","05A","11H","04E","06Y","12D","10K","02A","10H","06L","99D","11C","99J","06H","02M",2]
[3,"03H","00F","02P","10X","01Y","06W","02P","05N","01Y","00P","00N","01D","01T","00Y","03L","04X","02E","00T","00T","06D","02R","00M","01X","00H","00L","01F","01E","03G","03F","05J","00P","99F","12F","03L","00V","99G","05H","00X","01R","03H","03R","06D","05D","04E","00C","01D","09C","02T","06P","00D","05R","05H","04K","07K","04Q","01Y","02V","02Q","05Y","02Q","02P","07J","11H","02Y","03L","04J","01Y","09N","99C","00X","00W","05G","99C","12D","06F","03K","05T","01N","99C","99F","06Y","99D","06K","03Q","05L","05Q","03N","99C","04H","07J","04H","00X","00X","04C","03D","10V","04Y","03E","04J","03D","01G","01Y","02R","05W","11T","06K","99P","06N","07K","07J","06F","04X","06F","04J","02M","09E","99D","09J","06F","06M","05F","07X","08G","07Q","07V","09Y","10X","08W","08D","08W","07M","08G","08D","07T","08L","07Y","05P","08N","08C","09H","08L","08A","07W","06P","11C","08L","08T","02A","07W","07W","08H","09A","09D","05D","00J","01K","10L","11A","10G","12D","09J","06Y","10A","05X","04N","06Q","09P","12A","09C","00C","99M","06F","09L","12A","03T","10J","99M","11M","03F","07Y","01C","01E","06W","10J","11X","11D","99M","02F","09D","11X","99N","09G","99D","99N","12D","12A","00P","02R","09D","03X","01C","09J","05Q","00N","09Y","06F","06Y","11D","06Q","10Q","02F",3]
[4,"00X","03R","04E","10R","05Y","09E","03L","05T","03L","99C","00M","04X","00M","00V","99G","01M","02Q","00Q","01E","10V","05W","03G","03V","01Y","02Y","00P","09D","01G","10R","05Q","12F","04L","99C","04E","03R","00V","05J","02P","02G","04H","04E","03T","09C","01X","00X","05Y","03A","03A","00Q","02H","04J","09W","09E","06Y","05T","00P","00T","00C","09H","10A","01X","10A","04V","11E","02H","07J","05X","09X","05Q","00C","00Q","00J","02H","10G","06N","05H","02Y","00G","04Y","06D","09N","07K","11M","09N","01M","05J","04R","05P","09C","05N","00L","01R","05Q","06P","05F","08F","12A","03W","06T","04N","03L","03A","03J","00T","10V","99J","11M","04G","06Y","09P","10H","08G","09X","10V","99D","10R","04Q","07N","06Q","05F","04Q","06P","04F","09H","08A","99H","10R","08D","08W","08R","07G","08R","07L","08R","08W","07M","07N","06A","08D","99M","08C","08W","07T","08G","10C","08C","08G","08F","04C","08D","08Y","08D","10R","10D","11H","04D","99Q","99Q","09J","09L","10M","09X","10L","12D","03W","12A","04H","99M","03H","02Q","12D","06Q","99E","10V","06M","09L","02V","04R","00J","08G","01R","01N","11H","09L","06Q","10C","99H","01K","10R","99P","04R","11M","05T","11A","10K","09J","03L","00T","03N","01X","11T","10J","04M","01X","12A","06Q","07K","10H","11A","11N","09F",4]
[5,"02P","03H","02Q","09E","01F","04V","04E","10A","00T","00F","01X","00T","00N","00M","02E","10W","04H","03J","05W","04J","00M","05W","01T","00M","09G","01T","03C","00H","99A","00X","00F","06D","05P","00N","00K","02E","02E","05X","05R","02Q","02X","01C","03E","02H","03H","03J","02N","01E","04C","03L","06M","02T","01K","05N","99D","00M","01D","05H","01D","00X","03R","10L","99A","05T","01Y","10L","02D","05R","03Y","04E","07Y","03K","00K","07M","11M","06D","06T","00W","05J","10K","99K","03D","99N","04R","00Q","00X","05W","04L","02T","06Y","03K","04H","01R","01M","02Y","99E","01R","01C","03W","04J","03F","03L","03L","08G","03Y","10H","04R","06Q","02Y","02Y","09Y","03J","06L","05G","03D","10X","03D","09H","10H","10A","99K","07V","07Q","07M","08D","12D","00W","08K","07P","08N","07N","08E","07X","08K","07X","10T","02A","05A","07R","12D","08W","08Q","08V","07Y","11D","08W","08P","07Q","07R","07V","08D","07R","08H","02T","10X","03Q","07J","06T","02A","03A","12D","06Q","03M","02E","12A","10H","00L","10K","00C","01T","10C","99M","09X","09X","09F","07H","10J","99P","09D","08E","06D","04K","01N","09N","03W","09N","10J","04D","03N","11M","11N","11J","01R","01H","09X","05J","01W","06A","03F","00X","04Q","05J","05P","00V","06Q","06K","03D","10G","11M","11M","06T",5]
[6,"03K","00C","99C","01N","03L","06T","03R","05G","01G","99G","03R","03J","99G","05W","05X","01N","03Y","05Y","01D","05R","00V","02T","00K","01F","11M","05W","06W","00T","04K","10V","10E","99C","03R","12F","02P","08F","00V","01R","99Q","01R","03L","01V","07H","03R","03K","00Q","07H","10N","08N","03R","07K","00K","09D","04Q","02Y","00K","02T","02G","00H","03Y","02H","03T","00J","09N","00K","09F","01X","11T","05J","05H","07W","04H","03Y","08T","06H","03Y","03T","10W","00X","99C","05V","04H","04V","01R","00Y","02E","08G","02H","04Q","02Y","06D","02Q","04L","06A","06Y","99G","03X","11T","00L","01C","00H","05H","01Y","01Y","01R","07H","06K","11M","99J","05T","04R","02R","99E","04V","01C","06T","02Y","12D","05T","03T","99D","08D","08J","09J","07Y","10H","11H","08A","08L","08G","07L","06P","08L","08Q","07P","07W","10K","07Y","09A","07M","08X","07V","07Y","07W","08T","07P","08X","08J","07Y","07L","07W","08C","10X","07H","04D","06W","06M","02Y","05X","06F","99E","99K","03T","99E","11T","99E","07J","11C","03K","01X","10J","99E","10H","11T","03D","05D","11C","11X","01G","03J","10K","10R","09D","05D","09G","10H","09X","06W","03F","11A","06K","11A","06D","06L","99H","10J","02P","08G","00P","00N","03D","01R","01C","05P","03W","11M","05T","99E","11X","11X","06M",6]
[7,"04H","02Q","01X","09D","01D","00F","01Y","06M","01T","12F","05W","01A","01X","01Y","00T","05L","02P","01A","00Y","05T","01Y","04D","05W","00P","06L","03F","00J","00Y","05W","11T","03H","09F","01X","01Y","01X","05C","10V","02H","04J","02F","02E","10V","04Q","03L","05H","01A","05H","00V","05L","04E","06Y","02E","10R","05V","11T","03L","00V","03Y","00Q","01R","12F","05F","10R","02F","01X","00L","03L","99N","00X","03X","08G","02F","00F","07N","10Q","00X","01C","10R","03Y","10V","04Q","05D","06Q","05T","02R","04E","00T","02A","10A","10L","01R","02P","04H","08G","04J","05C","10K","99K","11T","06Y","03R","05J","00T","01D","04J","99N","06N","99N","06Q","10L","06Q","00Y","10J","01R","07J","02F","04N","10G","01R","03D","05N","10T","09H","07G","08R","12A","09D","08C","07M","05L","08D","10T","07P","08W","07T","08J","99E","08T","07T","08G","07P","07P","04C","07M","09Y","08A","08J","07M","04X","08L","07P","08R","08X","04Q","00P","04V","06V","04J","03A","05D","04N","01R","05F","00K","10J","12D","05T","99F","05X","03Y","09L","07H","07H","04L","05F","09X","00V","06N","11H","04X","06T","02V","03F","09J","06L","12D","09L","06T","99A","01H","06L","00L","05R","09G","10G","02E","01T","04X","00M","01W","05V","07H","04L","12F","99E","03W","04N","12D","03W","01H","04J",7]
[8,"05H","03L","00N","01K","00K","03H","02E","03T","03R","03Y","01Y","06P","12F","03G","05H","07R","01R","03G","00M","05V","00H","03H","04E","03L","05T","01D","02F","06A","00M","05T","02P","00N","05C","99C","01F","05J","07H","05Q","10V","10E","01X","11T","06M","03H","02P","03G","03H","02N","03J","03H","06L","05J","06W","99K","02F","01F","01Y","04H","00T","00C","05W","02N","03A","06T","02X","09P","02E","06L","05H","00F","06P","01R","00X","07Q","11X","05J","06D","99A","05H","01V","09L","05T","11X","04D","01D","03Y","03F","05Q","01R","04Q","02Q","02G","04Y","02R","06L","99F","05H","99D","02F","06D","00P","00V","05W","02A","04L","09J","11J","99J","03W","00L","07Q","05L","99H","99Q","05V","04V","05F","09L","02T","02Y","02Y","01M","09J","02A","08L","07N","01N","07P","07L","08E","04F","04X","01M","07W","08H","06P","04L","09H","08V","08F","08D","08K","05L","04X","08J","08D","10N","12D","08W","08R","08W","08T","11H","10J","01K","02F","04J","11J","05J","12A","10Y","04Q","00L","10D","06Q","09X","05D","99H","04H","00N","09H","09Y","12D","99E","10A","04Q","02A","06K","09E","07M","05Q","05A","04K","10H","06K","12A","12A","04V","06W","06H","06Q","02Y","09X","05T","09Y","09L","02H","05Y","05W","03Y","04N","06Q","11T","99C","10J","04R","11T","99H","06F","04G","06D",8]
[9,"00D","12F","01T","00J","03A","02F","05X","03K","00V","04E","03L","03G","05W","01A","02D","08W","04L","00V","02R","03W","03G","02G","02P","00K","06M","03V","04D","02R","01J","02D","03L","99Q","03L","03R","00M","99E","04H","00K","05H","01X","99C","10L","05T","00D","00F","00V","01A","05H","08V","00C","05N","01Y","11H","10L","01C","03R","01G","02X","03A","05H","02X","04D","04D","05R","01W","06D","02A","06Y","04M","02P","10W","06T","03L","99M","99N","10A","04H","11H","04M","05Q","07K","04N","03R","06Q","08G","99C","01E","03X","09J","10A","03Y","03H","03X","08W","99D","05H","00X","07K","06L","04H","00K","10D","01D","03L","05H","04G","11X","11A","11X","04J","11M","07Y","09N","02Y","04J","00P","06L","05X","09C","09F","06L","04X","09Y","12D","05L","02A","08Y","08H","08R","04C","06P","08W","05L","07R","08X","08T","12A","02R","08L","10C","08A","07L","08Q","05L","10J","08X","08W","99G","05L","05L","11H","08J","03C","01R","99A","01E","06D","00L","02E","10Y","99H","99D","09F","05J","99E","10J","04D","09X","05H","04H","99E","03W","06Q","03X","02Y","01R","10M","11N","03A","02R","05T","08G","09E","04Q","11N","99E","11C","03E","00P","99N","04G","06T","99K","02Y","10J","10G","00D","00Y","01N","00F","07K","09X","03X","01T","09L","10Y","05R","12A","05T","11A","05T",9]
[10,"01X","00K","00C","06W","00C","02P","01X","06L","03F","10E","01W","05Y","01W","05Y","03V","08A","99C","02T","01Y","01R","05Y","01Y","05X","03G","03T","01Y","10X","05L","00P","02E","02G","03X","02E","05H","05X","12D","10J","04Y","03T","01T","01Y","04J","04H","05H","02G","05W","00V","02F","00Y","00F","99D","02X","00J","02Y","06Y","02P","00M","00D","06P","05G","01F","03E","03F","09E","05H","10A","04E","99H","04E","04L","00Y","05T","02X","09J","06Q","05G","05V","03N","06D","05P","03W","01R","06L","05G","00T","05H","03R","04E","05H","06M","06T","03Y","99E","08N","05V","05J","02E","06Y","01R","01R","00V","09W","00Y","05A","99D","99E","11A","09Y","00L","06T","07H","00Q","10H","06M","06D","11E","05T","03A","02D","00L","05T","05L","12D","99E","08N","09J","04K","08X","08G","04X","08T","07P","08R","07P","07L","08R","05Q","08J","07P","09Y","08M","08X","04X","03J","07Q","08H","07M","05P","08N","07T","07Y","07M","08C","02N","06W","06T","05G","03T","99E","05J","12A","10Y","02Y","06F","09N","09L","02Q","12D","02Q","10A","09X","09X","10Y","99H","00L","09N","99G","06F","01E","00Y","05P","03C","00J","06Q","05T","02D","10H","05T","01G","04R","99J","06L","03W","04R","09L","99M","00N","01D","10X","02P","05T","05Q","12A","10E","11D","11A","03E","10C","06K","04R","10V",10]
[11,"04E","01X","02X","99A","00V","05H","00D","04H","12F","02P","03F","04C","10E","03L","01W","10X","00C","00H","03R","99K","01A","00V","00V","02P","11J","00T","02G","05W","00H","06D","01F","10V","05H","00P","02H","08T","99E","03L","04D","00X","00X","06V","99K","00X","05J","00H","02E","02D","02R","01Y","05F","02P","03N","07J","07K","02H","01E","01X","05X","05J","04E","02Y","09D","06L","00D","02M","05W","99D","06D","03H","08N","06M","03X","09W","07H","04Q","11T","05A","04E","02M","03D","05F","99J","02F","08N","02H","03G","04Y","99K","99K","05T","05Q","02Q","07W","03K","05Q","10V","02F","99K","07K","02P","02P","03A","03A","05G","06L","11N","10H","05R","05F","99H","07M","99J","11T","02Y","05G","05N","99E","10M","05N","05R","08L","10H","09W","08E","05P","10W","07L","07N","06P","08G","04C","07T","08D","08R","06A","99F","03A","08A","07N","08H","07X","00W","02R","12D","08M","02V","99M","08H","07Y","07R","07N","08J","09L","09E","05G","09P","05T","12A","06Q","09Y","05T","10E","02X","99D","03W","03H","05Q","02E","12F","99H","10Y","99H","10C","05G","99M","05P","11A","04D","07W","99E","01K","01E","09X","02Y","10K","12D","05R","05W","06T","06F","05T","04J","06T","99M","05Q","99C","04C","10R","02H","04H","07Q","06D","05H","99M","09J","02Y","09Y","04R","09G","09G",11]
[12,"02X","02H","00X","03N","06A","02Q","03H","07K","01F","03X","02P","01E","01F","00H","05W","08V","04Y","05W","02N","04H","00Q","01G","00H","03R","99N","01G","03M","00Q","11H","99E","03Y","01W","02H","03Y","02E","05H","10N","12D","06D","05J","12F","02F","03M","02E","01X","01Y","05X","02G","07L","03K","03D","12D","11E","04N","06M","01T","00Y","10D","08G","03H","00V","02F","03R","05G","00P","05G","99G","01C","01R","06D","02R","03Q","04Y","99E","99J","05D","01R","01G","02E","01C","11T","03E","06T","00J","03G","01R","01Y","05J","10Y","99D","03T","01X","03Y","05A","05T","02D","99E","04Q","06M","04Q","01F","12D","00K","00V","02Q","09Y","06F","99E","05N","99Q","11A","05Y","05T","03T","03T","03F","09N","10D","05R","07K","04N","07P","08F","04F","07T","08T","08X","08M","05L","13P","07Q","07M","06P","08Y","01M","07P","01W","02V","08W","10G","07W","08R","08L","06A","02A","07V","07Q","10C","08C","04X","08A","10R","06W","09J","02F","03C","06T","01H","07N","09N","10G","05R","04H","07G","99K","99M","03T","10J","01R","05H","09J","09J","12A","08F","04J","99E","08P","04V","05W","05L","99D","04C","10W","99K","99J","09Y","09Y","00J","03R","10Q","11J","99N","04H","00L","05J","09Y","00K","07W","05A","05H","02Y","10V","10C","03L","10K","07K","03W","09X","02Y","03N","01C",12]
[13,"10E","03Y","12F","01E","05X","00N","00X","07J","01D","01W","99G","00H","01Y","01E","01X","07P","05Q","01Y","00V","09X","03L","00T","00M","01T","04J","01X","03Q","08A","10W","02F","99G","01C","00V","00F","04E","03L","00X","03R","06M","02E","05H","04M","02V","01Y","06D","02T","01R","01A","01M","12F","99K","03H","99A","00L","07H","01X","03A","03K","02T","00L","02E","05T","02X","03W","02E","02Y","05H","99K","10K","01X","05A","05D","04L","10J","11A","02G","99D","09D","01R","99G","01C","11T","11A","04J","07Y","02Q","02V","10K","05J","00L","02Y","02D","12D","00T","10L","02E","11T","06L","01C","05Q","01X","03V","00V","02R","02M","03W","99N","07Q","99K","04H","99N","06A","09Y","05H","11T","03X","03W","07Q","11T","99D","05V","08N","07G","05C","08X","99M","08C","07W","06P","08A","08W","08J","04X","08L","07N","09H","08T","05Y","08R","08P","08R","08C","08K","04C","08R","07W","02A","99E","01M","01M","09A","11H","10W","99K","01G","10R","01C","09F","04F","10J","11D","10J","04D","05D","10K","06F","05F","09L","03A","02P","10M","09L","11D","01C","05N","99K","99E","05A","01N","07L","05H","03G","05A","06F","04R","99H","99E","02G","03G","06L","09G","04J","06Y","06Q","09J","05X","99G","04G","12F","05J","05R","99H","01R","02D","11T","06Y","04H","07H","06Y","99N","11T",13]
[14,"03L","04E","03H","10W","00T","03R","12F","10L","01J","03H","00F","01M","00V","06A","03R","99A","04E","04X","02V","05Q","01G","03A","00C","03H","10A","03L","00P","05Y","06A","02G","04E","05P","01Y","00X","00P","07Q","02F","01X","05G","03Y","01W","99F","10E","00C","05G","08G","03K","03H","00W","02E","07J","05D","01E","04H","01R","04E","02R","04D","09W","04J","00D","04Q","10X","06M","05W","06T","02P","02Y","02E","99C","13P","04V","00C","10H","10H","04J","10V","01E","10K","00N","01R","05R","07H","05H","03J","02P","00M","00K","02N","09P","00X","04L","02P","00Y","99K","04L","09X","04J","99D","02Y","12F","01F","05X","03F","05V","10J","03N","04V","06F","03M","99E","04F","07H","04D","05N","04M","05R","10Y","02F","04J","00L","07W","03A","03A","08G","07H","03C","07V","07W","10T","06A","02R","07W","07Y","08Y","03J","99G","00Y","08Q","10K","07V","07W","08A","00Y","10G","08R","07P","04F","08D","06P","08L","99G","00G","99E","03C","10X","09G","11M","09L","01R","09N","07K","03K","02H","05Q","09J","04Q","09H","09W","99G","11C","07Q","10G","01R","99D","02D","01R","03Q","00N","00Q","05J","00W","01G","07H","06T","08J","10M","09N","02V","02Y","01H","04R","05Q","11J","06Q","09W","00F","06P","01E","12F","06D","09L","08F","01Y","10V","11X","09N","02D","07K","06K","02Y",14]
[15,"02E","00X","02H","07R","03F","01T","05H","06T","01X","05H","99C","02T","03L","02T","02T","11H","03K","03A","04R","04N","01F","09D","01G","02X","06T","00V","10R","06P","01E","03K","01Y","03Y","05J","02H","05H","09H","06D","99E","04H","00C","05J","05G","09P","00F","00D","06A","10A","01R","07Y","01X","04Q","03R","10W","04J","02N","12F","03H","10A","00V","04Q","00C","04H","01G","00J","03H","05T","02G","10V","00N","03K","00T","02G","02E","02A","03R","03H","06M","04C","10V","01W","05Q","02Y","11N","03A","06A","04H","06A","02E","10M","06L","04D","03R","03K","07P","07J","10K","99F","01R","06Y","99K","00T","02H","02A","99G","03X","10Y","05A","03W","11M","02F","99M","07L","11A","03W","06Y","01T","11T","07M","99M","03M","03W","08G","06F","12A","04X","06F","08V","08R","04F","07V","09W","05L","08G","08A","07W","07N","05J","08E","11H","12A","07R","08H","07L","07P","99H","07R","07V","10G","08E","08G","08T","07P","01N","02D","11E","09D","11T","06L","09W","09X","05J","05V","05T","09H","01C","10K","10L","05P","05J","03L","10H","11C","09Y","05J","06D","04N","10H","99N","00P","04F","04J","06W","03N","04N","05R","01R","04N","01R","01E","00L","10Q","06M","04Q","05R","10C","05H","01Y","11H","01T","05C","04J","02E","09X","00P","07Q","09X","09X","09L","05R","03Q","05R",15]
[16,"00F","10E","00K","01G","02X","00X","00C","05F","01E","02Q","00D","00V","03F","01G","02G","10R","01X","05X","03H","02Y","01E","00P","02H","01E","05R","00N","06T","00M","01T","05G","99C","01X","00P","01W","03H","01Y","05P","04E","02Y","06D","00F","06T","05R","02Q","01R","03A","09J","06T","01D","00X","03W","03L","01N","01C","04H","02X","00H","01T","01Y","10D","05H","00L","01E","06Y","00X","02F","05J","04N","02Q","05J","01M","02Q","02Q","05X","06L","05T","05N","09E","04H","05J","10K","09N","99E","05Q","10T","12A","04V","99G","02Q","05V","05H","06D","02D","01D","10A","00V","12D","06Q","04Q","11T","03G","03H","09H","01G","03T","06N","01H","09J","11A","04D","06H","01M","06K","00L","05F","04D","05V","12A","03W","06Y","09N","07T","08N","10G","06P","06Q","99A","01M","06A","08X","09H","08T","00W","09A","06A","05Y","03X","04F","07W","07Q","07Y","05L","08C","08T","10H","07L","08E","05C","10T","08N","07T","07Q","99A","09N","01T","02G","02Y","06M","99M","05Q","10H","09J","02N","03K","09Y","11T","02Y","99E","02G","00D","05Q","11D","01R","04M","06V","09J","02G","06Q","04V","05Y","03W","09D","99A","06Y","04V","05P","10K","02Y","00M","04G","03W","03T","10K","03W","03W","03A","02X","03G","03R","04Y","01R","99M","05J","02E","09N","05T","01C","10M","00L","06L","00L",16]
[17,"05J","01Y","05G","11H","04E","02G","05W","03D","03G","02G","01G","08G","02G","05A","00M","06P","03X","08G","03L","02M","06A","01D","03F","01D","09P","12F","02V","08W","01F","04J","02Q","99G","00N","03H","12F","02D","99G","04L","11T","00V","00D","06M","10D","03Y","10A","04X","05J","99G","08G","02Q","05G","09H","05A","05T","03W","03H","03R","00K","06A","04D","01W","05R","09E","07K","04E","04H","00K","01R","01X","05G","01D","05H","05H","08G","11N","99D","02F","01K","05G","11T","99H","10A","06N","06F","00W","00K","01A","03L","04D","05T","10A","03K","99C","05Y","05G","12A","01C","09N","04H","03K","01D","00X","02X","00M","00X","11M","04V","12A","04Q","05G","10Q","01D","12A","05R","05G","99C","09X","08T","05H","04Q","10A","04F","06N","05P","08V","10K","00G","08V","08N","06A","05Y","06A","03G","08V","07M","05L","10V","00T","01N","02A","11H","01M","08N","08R","02D","00W","99G","08G","06P","07X","08P","09D","08R","04H","03N","03H","10A","99N","08F","10H","06Q","04V","02Q","02T","10V","07H","04J","04M","10A","06M","10K","12D","11C","04N","04H","10H","05H","01H","03N","06A","02F","07Y","01K","99E","06F","10V","10Y","03M","10Q","04J","06H","99Q","06T","99J","01R","01R","10E","05W","01Y","02E","03W","10H","99H","03R","04N","05N","01R","05P","05N","06T","10L",17]
[18,"10D","03K","03L","03F","03H","04J","03A","99D","02P","06D","03H","05W","01V","03R","01F","07W","02H","01E","03A","06Y","02T","05A","03H","01X","04R","99G","01T","01N","06W","99D","00M","03T","02P","02Q","02X","01X","99M","00C","02D","02P","05C","99D","01A","12F","10E","03L","04H","05D","13P","05H","06T","99E","03Q","05G","06D","00N","03L","03L","12D","02P","05X","99Q","10Q","04J","00V","01C","00M","04J","04H","04Y","01E","00L","01Y","06F","04V","00C","05R","03F","99F","08F","05R","05V","03A","99E","08W","03K","01G","12F","07K","03K","00J","03X","10V","07Y","04Q","07Q","05V","06T","07K","05T","02X","02T","02H","05C","05J","04V","99J","06L","10A","05R","10J","00T","05R","03R","99Q","05H","01C","09C","10Y","05T","11T","08R","09W","10K","08M","09L","08D","00W","08T","07M","09J","00T","06A","11H","08T","02A","99C","03J","00W","09J","10W","00W","08R","05Y","99E","08Y","07N","09Y","08M","06A","07V","99C","04K","03K","00N","01R","10V","05R","10C","03W","11T","99E","04J","12A","06Y","06K","05G","09Y","04D","06D","04F","12A","09N","03W","05V","06Q","09C","11H","03H","08W","04H","01G","00G","03W","04J","09X","09N","06M","04R","06K","05T","02F","99E","04J","10V","02A","05W","01A","03C","05Q","09X","05H","99E","05J","10C","10H","05F","06Q","09X","04V","07J",18]
[19,"00K","01T","03R","11E","02P","03Y","01F","05R","03H","03R","02H","00M","03R","00Q","05P","01G","05G","06P","00D","99F","03V","03R","00P","02H","05N","00H","00M","00W","01Y","04Q","03R","05C","00X","00K","03F","03R","11T","02D","07H","00N","05X","07J","02G","99C","04E","05A","00C","01Y","07W","03A","10A","10D","03F","03K","09N","05X","05A","01R","09J","02X","03H","03D","03Q","06Q","99C","02Q","01T","07K","10V","00N","04K","02Y","05J","09L","99E","99K","03W","07R","02Q","05H","10Y","03K","03W","05J","13P","10K","04G","01X","03H","04H","02F","00C","00C","08A","03W","01R","04H","06M","10A","05N","03H","02X","01F","01W","02F","09W","06Q","99H","04J","04Q","99J","07X","09J","04H","09G","01R","06Q","10M","06T","04H","04J","07M","07X","05J","04C","10J","07P","05L","07Q","10W","05L","00Y","07M","10W","05L","08F","12D","02A","10R","11D","00W","08M","06P","08W","12A","07Y","08A","09J","08A","00W","08J","08P","00W","05H","03Q","06M","99D","01C","05P","02E","01R","09L","99Q","09L","01R","05Q","10E","08F","02P","01R","10Y","09N","02D","99D","02M","12D","12D","11J","01T","04C","04L","04X","00P","07K","99H","10G","06Q","05G","04V","99Q","04V","05R","05J","04G","11D","07Q","03H","04R","00J","99G","10V","05P","02M","02P","05Q","09N","06L","07Q","11N","99J","05G",19]
[20,"02G","10A","05H","04D","00M","01R","05J","06Y","00K","03L","01F","01Y","99Q","01F","05J","06A","06D","03L","07H","04Q","03J","02F","02E","00V","02F","01N","03H","01Y","01D","05D","05H","01T","04L","02E","01G","99C","03H","04H","03E","04D","04Y","05T","04D","05J","02E","06P","02V","10E","08M","03Y","03T","03K","04V","10A","03D","00H","10D","00X","04F","05V","01T","99K","00K","01R","06T","11T","00C","99E","05G","10E","03G","04J","00N","12A","05A","11T","03K","06W","01C","01R","10J","01C","05T","09J","07W","05G","00V","03R","05T","05R","99D","99C","06D","07V","06M","99M","04J","00L","10V","09N","01T","00C","05C","03G","05Q","12D","06L","11X","05F","09F","03W","08E","11T","10A","10V","02G","00L","06F","06L","99K","03K","06A","06K","99G","00W","09X","06W","07X","05A","00T","08N","10W","11H","00R","08C","02R","09H","00V","07V","03A","08Y","06A","01M","04F","05P","10W","08N","01W","07T","08X","99G","08F","11E","05J","03H","05T","00L","11T","05H","09Y","99M","11T","05G","05H","10H","11C","02N","10V","09J","03T","09Y","10M","09J","05P","04Q","10G","02T","07H","03C","08T","09X","08R","05W","06L","09Y","99F","07Q","01E","01Y","05T","06T","03Q","04N","06M","09N","09X","04E","08N","03G","02Q","09N","09Y","99D","02G","01C","09L","05D","02A","09N","06F","10E",20]
[21,"10A","05H","00P","00W","01X","00P","00F","01C","00D","04L","00V","02V","03V","02A","02P","08G","00K","00M","02X","04L","05X","00J","03R","00T","11A","03R","10W","01F","05A","01C","00D","04J","04E","01F","00H","99M","10M","01Y","04V","10V","03H","02Y","03H","01T","99C","05X","01Y","03R","08E","05W","05V","01R","04D","05R","10V","10R","10E","03R","05W","05N","00M","10E","05W","11X","05J","03Y","03H","06T","99F","01R","06A","10D","03R","03A","09Y","05V","10A","00J","05C","02D","12A","03W","09J","03R","05Y","05C","05Y","05H","00C","04J","04L","10V","11T","00W","99N","12D","99C","07H","06Q","03W","02H","09H","03F","08T","05T","07Q","11H","07H","06M","99K","12A","04C","06Y","01C","07K","03H","04J","10J","10V","05G","07J","07Y","99E","08J","07L","06K","08J","07Y","07G","02R","03A","02V","07Y","01M","08G","07V","04M","07N","01M","99E","07L","07Y","10T","13P","10K","08V","11C","11C","08X","04C","07M","08A","00N","10H","03R","09N","05T","03W","05Q","09H","05Q","12A","03D","05Q","11D","06N","99K","04L","00X","06T","05J","06N","09C","09Y","05T","10D","03V","03N","05A","09H","02D","08J","04V","99J","11J","07H","09J","99Q","03C","04V","02Y","05N","02Y","06F","02E","11C","05H","01M","00D","01T","05F","11T","03W","04L","10G","09Y","05V","10N","99K","02Y","11N",21]
[22,"01Y","00L","03K","03Q","01T","03Q","99C","05V","01A","00X","04E","06A","01G","00P","01D","05A","03H","06A","05A","05J","01J","01K","12F","12F","03Q","10E","00N","01J","01M","06T","05W","11T","00K","00C","03V","05X","01X","00V","01C","03R","01F","00N","01R","03K","04J","00M","02G","05W","05Y","05X","11T","04V","01G","06M","10A","03A","07H","01Y","08T","02E","00P","09F","06T","00L","01T","09G","00X","09Y","02P","02E","08W","09E","03H","11D","07Q","00L","05H","04X","01X","10C","10M","09X","02X","12A","05A","05X","03L","02P","03A","05D","05Q","99E","12A","00Q","04H","06T","06D","10V","05G","04L","04E","04E","02P","08F","02G","05T","09G","12D","09N","06D","12D","07W","10Y","09G","06M","01X","01R","02E","09Y","06D","05D","02R","02A","02E","08C","05Q","08R","04X","02V","05A","08F","01D","07N","08T","11H","04F","09J","08R","08K","05P","01M","11H","08D","00Q","04M","11H","04F","12A","09A","10T","08G","08V","08V","10A","02V","03N","10E","05N","11C","03K","05D","10M","05N","04Y","04Q","11D","07K","05J","02X","00F","07Q","06K","06F","09N","07K","02T","03E","06T","01Y","07X","03X","11E","03A","01R","06Y","03W","05Q","10V","10W","03T","06N","04V","05V","02F","99F","10H","00M","06N","04K","03R","05N","10K","05H","05C","12D","99E","10A","10K","07H","06N","10A",22]
[23,"05D","04H","04H","00P","03G","00K","03F","99K","00N","01Y","00K","02N","99C","05X","03H","08D","00F","05A","12F","10K","01M","09E","02X","03A","04D","03G","04V","03F","03C","02Q","00C","05G","01T","99G","01W","04L","05Q","02Q","11E","03L","05W","05V","03K","05X","04L","02A","02D","04D","00T","05J","10L","02H","00P","11T","06L","00V","05X","02E","03L","05T","00X","05G","01A","05V","00F","10E","01W","11A","05V","01T","01A","04Q","01T","09Y","01A","02E","00X","05W","11T","04Y","10V","10Y","09Y","99N","00H","01X","00K","99E","00X","05G","06M","03L","05X","03G","05R","11T","03W","05V","03E","05R","03A","03R","03R","05P","99C","02T","06T","09W","99D","11T","11X","08W","01R","06D","00L","04L","99N","05D","09X","05V","01C","07N","05Y","09Y","10T","11T","01G","07R","07Y","11H","08R","05A","08X","07V","06P","05A","04Y","01D","08T","10J","05L","08G","13P","07V","09H","01M","06A","00V","08Y","08C","07Q","00N","08D","05T","00F","03M","04H","02M","04Y","05H","03W","99H","03H","02P","10M","05J","01R","02A","10M","00V","09N","99N","03W","04Y","99K","05J","07Q","02F","00H","08R","99K","00T","11E","02T","11T","09L","09H","09D","03A","03W","05R","03W","05H","07H","07Q","02D","06T","00M","01A","00K","05G","03W","11C","04E","07H","99H","10V","01R","04J","05T","00N",23]
[24,"05X","00P","04J","09A","00Y","04H","02Q","02Q","10E","04M","02G","03A","00T","02V","00K","07Y","04J","02V","10D","05G","03F","02N","00N","04E","99Q","02G","06M","00V","09D","09N","01W","10K","08F","00D","01T","03V","03V","99C","03H","10D","00C","04H","02F","04H","02X","01G","03G","05A","08W","99C","01C","00X","02F","06D","10M","06W","02P","04E","02A","07K","99C","07K","04G","11M","00M","05R","09H","05Q","05C","02G","10T","02T","01F","02E","06T","10V","05Q","01M","04J","00X","05D","06L","10H","02Y","10W","12D","00P","12A","06Y","03M","10L","04E","04E","10T","01C","04M","05G","06D","99N","00L","05Y","04Y","09W","00K","99Q","09L","03R","09X","11T","07K","09J","09H","11M","03H","99K","01W","04H","05J","09J","03K","06M","07G","08E","09L","06A","05J","07W","08Y","04X","08C","10T","00Q","10W","99G","00W","11C","05H","03G","06A","10H","08V","07N","07V","08J","07H","05L","11H","10K","08R","08M","06A","07V","00J","06F","05W","04H","03Y","02F","07Q","07Q","09C","06L","00D","00X","10Y","09N","05N","04N","10E","02D","04N","10G","05J","05V","01C","99H","02F","06L","00K","01D","05R","03F","00N","99H","00L","10N","03W","11C","12F","03Q","03Q","06Q","99H","06K","08F","10K","02E","07M","00F","06D","05Q","06F","06T","10V","99F","09W","05N","09H","99H","00L","04H",24]
[25,"01F","05W","10E","05A","00F","99C","03Y","04Q","00H","05G","10E","05L","00F","03A","12F","01E","02G","01G","10E","03D","00P","01T","00D","00D","07J","06A","11H","01A","00N","99K","03F","06V","10V","10E","03A","02H","12D","01W","10A","06T","03Y","04L","06L","05W","03X","02V","99E","09C","00H","09W","02F","00V","10Q","03W","04N","05A","03F","00F","00K","99D","05J","02G","11N","99N","03A","00F","03R","10H","02D","04J","07P","00X","00D","08F","05T","01C","02Q","00M","05V","03Y","04H","09C","05A","10V","01A","00C","02R","99F","09L","04N","05J","03A","01X","03J","04N","99C","99D","99N","07H","10V","00D","99E","02E","00P","04M","99H","07H","10J","07H","06Y","09X","08T","04V","99E","04N","03R","06M","07X","03E","05R","99N","13P","99M","05Q","07M","03W","04C","06A","11H","08D","03G","03J","02V","01N","07Y","04X","09Y","12D","99A","04M","09A","06P","10W","09H","99G","09A","99M","03A","08G","13P","02A","07Y","02V","09X","06T","02Y","05V","10V","10J","09C","99K","10V","04Q","04R","09J","10V","00C","03X","02D","03R","02E","09C","05Q","12D","03M","11D","05J","05T","99A","01M","12A","01D","04D","99M","09N","10M","99F","02V","01W","05N","00L","10A","99F","04V","04L","05P","00X","03N","00N","05G","00L","02D","02D","08F","11C","07H","10Y","09N","06T","06Q","09P",25]
[26,"99C","02E","04L","04V","02H","00D","04Y","03W","01W","02H","05H","05X","05P","03V","03A","00H","03R","10D","02P","00L","03R","05H","05H","05X","07K","02P","99Q","01E","00T","05V","00K","05Q","06T","02G","00C","00X","02A","02A","00L","05G","05Q","05R","10Y","00N","01T","00K","02P","99E","07P","10E","99N","05W","06T","06V","07J","00J","99G","05J","07M","05Q","00F","03Q","11M","11N","04R","10V","03F","04V","00F","00D","11H","02P","12F","07H","03W","05Q","99Q","03G","02P","05C","05T","06M","02T","11A","01E","05V","01D","10V","02E","03T","03X","05G","02G","07M","11T","03X","03Y","04N","09N","05J","05X","01X","01G","07N","06M","09N","03Q","06H","06T","99D","06L","07V","09L","07H","05T","99G","03K","08F","02V","11T","04H","00Y","10G","05X","07X","10V","03N","06P","03G","01M","01M","08P","08N","08P","03G","07Q","02E","07Q","01G","04V","04X","07M","08E","00T","09L","07X","10W","08P","10W","10W","01W","04M","03Q","02G","03M","01T","01V","07J","00V","02T","99D","02Y","06D","01R","99M","01C","06L","07Q","00K","05J","09W","05R","11T","09L","06Y","03E","11T","10H","02P","07P","05G","05W","01T","05T","09X","05Q","08P","02D","06T","06Q","04J","99P","07K","99Q","04Y","10C","00V","07Y","00H","03L","03K","08F","05C","03X","09J","99K","06M","05J","99E","02F","12F",26]
[27,"01R","99C","03X","01T","10E","03K","01W","11T","99G","00C","02F","05A","02P","12F","10E","03G","03L","01F","01G","07K","03A","00H","00F","10R","99P","01W","10E","04C","00W","04L","00X","12F","05Q","05J","00T","05Q","05X","03H","03R","99G","04L","03Y","05H","10E","05D","01E","03R","05T","06A","04H","03E","02V","00M","06L","05F","01W","00P","02T","10D","99K","99G","11E","06H","11A","00N","99D","12D","04Q","04J","05Q","02V","03A","01W","06N","02T","04D","05J","00P","01W","11C","06Q","05N","09W","02E","08A","06D","06F","12D","09N","03E","01C","04Y","09J","07L","05D","01X","09J","03D","03T","03X","99G","02D","99G","00Y","02D","09X","01A","06T","04R","06L","02A","03G","04R","12F","05R","10V","10A","02T","10N","01C","06Q","08T","06P","04L","01M","05C","08A","11H","08E","08T","12D","10N","08T","00W","04X","03A","10C","04X","10X","05Q","06A","04X","08G","05A","06N","04X","00V","02E","01N","03G","02V","08E","09E","02E","00M","05H","02F","05G","04L","07H","06Y","10K","07K","10Y","05J","01R","06T","02D","03Y","01Y","06Q","06L","04N","11C","99Q","11T","10V","99J","03R","00T","99Q","00V","00M","05R","10V","09H","11T","07H","00J","99J","07H","03R","06Q","05N","05P","04Y","03Y","06H","01J","04J","03E","09N","04J","00X","99D","00L","04J","09J","11T","11H","03E",27]
[28,"01T","04J","03T","00N","02R","02X","09W","01R","02G","06W","00R","01G","01D","99G","00P","03C","02X","01M","00K","05H","05A","03L","02Q","00F","05F","03H","05G","05A","00R","03W","02H","00X","03X","00V","99G","12F","03X","03X","03W","10A","03A","09G","10M","01F","04Y","03R","06F","00T","07M","10D","03Q","00C","05W","05D","03M","00F","05Y","00N","01A","03D","10E","03H","01H","04Q","99G","00D","02H","05V","05P","02X","03J","03T","05X","00V","09J","06M","03Y","05L","08F","02A","09J","10M","02H","06K","01G","99E","10X","07Q","99D","04D","99C","05X","05D","11H","03T","03L","03K","04H","06D","05F","00N","09J","04E","01F","99F","03A","10H","09N","11N","03K","05P","00H","99K","06L","99F","09D","05D","10H","05J","99Q","01R","05Y","03J","05Y","08Q","06N","05A","10W","01M","08V","02R","03G","04F","08M","08N","04C","03A","10H","07Y","09N","07X","08T","08X","07X","04F","04C","08F","05Y","06A","07M","07N","07W","03N","04D","03F","10A","03D","10L","08J","10M","04Q","05Q","06T","09C","05T","99N","05H","08T","04Q","02X","01R","05P","02E","05C","03K","06Y","02E","01A","08J","07V","02M","09E","01Y","12D","01C","11T","10V","04H","99G","05R","99P","05G","04L","03Q","11T","99H","02Q","03J","03L","04M","07J","02A","05V","04M","99N","04G","03K","05Q","04V","05A","99D",28]
[29,"02H","03T","01Y","00F","02T","01X","00V","11N","03V","02F","02X","03L","03H","00K","01T","01D","01W","02A","10A","02F","00K","10E","02G","99A","00D","00K","03T","08G","00J","03H","00V","00F","99E","02X","00D","12A","11C","03Y","02M","02T","03F","99C","07J","01R","00N","13P","10M","05P","08A","10A","04H","04D","01T","09N","09C","03V","02X","12F","02E","09J","02Q","06D","03C","05F","02Q","01R","05P","12A","01W","10A","01N","09N","05C","10M","01H","04L","10L","06A","05P","01X","05J","00L","00L","05R","05W","10V","06T","00X","07H","11T","00F","04J","02H","05W","99J","03R","04N","09X","05H","10L","01W","01R","01W","03R","04Q","12A","09Y","05T","05D","10E","04V","05A","07K","11X","04Q","11H","03E","04Y","05D","06V","03E","03G","06A","04Y","13P","09H","07Y","08N","08F","08M","03J","13P","01G","09D","01G","08W","99H","05P","99G","99G","00R","10W","06A","07N","08F","08G","08D","05J","00Q","11H","08K","01W","00P","06Q","02G","03A","02Q","06V","07G","10D","10K","05D","03Y","99J","05R","05R","03Y","11T","99E","00X","08T","99J","05H","99C","02Q","04H","09Y","11E","02H","08J","99H","00M","08J","99N","07K","04N","05P","03T","04G","06M","09Y","04G","02F","07K","04N","00X","00C","00Q","00K","01R","10L","05T","04Y","03H","99K","02Y","00L","10V","10H","05R","01R",29]
[30,"02T","02G","00J","05G","03V","03A","01T","04D","02H","06T","06T","10T","04E","03F","00X","00G","02D","00K","04D","03E","02V","03F","00X","00N","03M","04E","02D","03J","03L","03Y","03X","06T","02D","05W","02A","03A","10E","02X","05J","05T","02Q","01R","07K","01W","03L","01M","04D","11C","03G","02T","11X","04E","03A","01R","09X","99G","01F","05X","03G","06Y","02A","05D","02H","99K","05X","03H","00H","06F","02H","00K","10X","00D","05Q","06K","10J","10E","07K","00H","12A","05V","02Y","06D","00K","06L","02V","00F","05X","00N","04N","01C","05N","00K","03H","00H","01R","11C","05P","10A","04D","00X","10E","05W","02T","09H","10L","11A","03W","99M","10Y","03D","07M","08A","05Q","05J","10K","03Q","07J","00K","09L","02M","09X","00W","08R","99M","10W","01W","03F","13P","13P","00Y","02A","00V","05A","06A","07R","02V","01R","11C","09D","06W","08G","08N","00Q","01D","09X","06A","09H","09L","02R","08E","09D","09Y","01G","03E","12F","00N","00N","99D","09Y","10G","07H","11C","99K","04V","12D","04N","03D","10H","02N","03K","02D","11T","10V","06D","03Y","11C","09L","03R","05X","00H","05V","10N","03R","10D","04G","04M","05J","03W","01N","02F","10H","04D","07H","06Y","11C","06F","05C","01Y","00T","02X","06M","06T","01V","05W","05P","10J","06Q","10Y","09Y","01A","02G",30]
[31,"03R","05G","05J","03A","00P","03X","03K","99N","02X","05W","00J","10D","06W","01W","03G","07V","00D","09H","05H","06T","02A","10D","03Y","01N","05G","01E","01R","99A","03V","07H","02E","05H","01R","03X","00X","00K","09C","02G","00X","01Y","00P","03X","02Q","03A","10D","09H","10E","02A","01A","00L","09G","04R","00N","03E","04J","99C","05H","05D","07G","06D","00H","01H","00D","10A","02G","04D","03X","09J","11T","03L","08V","10E","03K","10Y","03A","02P","04L","03A","00N","06W","99E","04J","05H","11M","07L","02X","01W","04M","99E","03W","10V","01Y","05P","07X","09N","99H","05C","05G","05V","10K","01A","02A","12F","12F","06T","01R","05T","10Q","03D","05N","04F","13P","10V","11N","04L","02P","10Y","05Q","99H","03E","10Y","03J","05A","06A","08H","99G","08W","08G","03A","01D","04X","02A","13P","08J","04F","00Y","06T","08F","07N","05C","13P","08Y","07R","07L","10M","03G","03G","10H","00Y","00T","10W","03X","01K","03H","04V","00P","99C","06Y","03X","04N","07Q","03Q","05D","06Q","10G","05P","06Y","01R","10Y","10V","05X","04R","07Q","07Q","11T","99D","01W","05R","99C","08A","04M","03A","03H","10G","06N","05J","07H","04Q","02F","06F","06Y","07K","03E","10A","10H","04L","02G","99A","02X","04H","10K","10G","99C","99E","06F","05R","10M","02E","09G","06M","11X",31]
[32,"12F","00N","02E","03H","03R","10R","05C","01H","05X","05J","06W","08N","02F","03J","00C","00T","05X","03V","06F","99Q","01X","05X","99G","00C","10L","05X","05T","03V","00V","03X","02X","05J","04M","04L","05J","02P","02Q","03A","03Q","03K","03X","10E","11T","04L","00L","01F","02X","10A","07X","01F","01R","00H","02V","03T","99Q","00D","00K","03A","08N","06M","03A","02Q","12F","05N","01R","05V","00N","00L","08F","10V","08E","03Y","05W","05Y","09W","02F","06Y","08G","02H","05G","03K","07J","04J","00L","00V","04J","10Q","02X","06L","09N","04V","01W","00K","01G","09P","07H","09L","03T","11X","03Y","01E","02G","00M","02V","05R","11X","02F","05Q","09X","03H","09L","03A","02Y","06Q","03W","03A","09L","99M","07Q","02Q","10L","01D","04R","10C","11H","11C","01E","04C","10T","02V","05A","05Y","10T","03G","07Q","05P","11T","10T","08J","10R","03G","07R","08H","03A","99F","01N","08C","06A","13P","08T","08Q","02A","01E","12D","05G","04J","05F","10A","05C","99H","02E","10H","01H","10G","07K","08F","99D","04Y","00V","02F","04Y","05T","10C","05H","05R","12A","03G","03W","99G","07G","09N","01M","00H","99D","05N","06Q","01R","06D","00V","03N","07K","12F","09N","03T","05H","06Q","05J","03F","02H","00C","10A","10M","02F","01R","10Y","05D","06D","03W","04G","03R","99F",32]
[33,"04Y","04D","06D","05W","00D","04E","00P","06D","05H","03T","00X","07Y","02A","01X","07H","08N","05D","09W","04G","03T","03H","10R","10E","03V","03R","02A","03F","03L","01X","05R","04H","02Q","05W","04H","01D","10V","02T","03K","10E","05X","01T","00L","00C","00P","00K","02X","10Y","05J","10W","04J","11N","04H","03R","09X","05D","05H","03V","06T","10T","00D","03Y","06T","06F","01H","02F","00N","00P","07H","99G","02H","05Y","02X","99G","10C","12D","02D","03D","01D","03K","04E","06D","10V","06H","00X","00M","99F","02A","01Y","03W","01R","03D","05D","01W","01A","04D","02G","08F","99Q","03K","05H","05H","02Q","03G","01X","03K","09C","99E","09L","03K","01R","01W","07G","06T","05Q","01V","06D","10V","03K","02E","06L","05G","00T","09L","02H","07R","02E","00P","03G","02A","08J","06F","11H","02R","08G","08Q","10H","02H","99M","00N","05J","04C","13P","01N","02A","01W","02V","05P","11D","10R","02R","10N","06A","99G","06Y","06M","03T","04L","07K","05Y","05X","09H","09C","02F","03H","10C","04R","00D","01C","07H","99C","08F","01R","05R","99M","06T","06F","05R","09G","05H","07N","04Q","07W","02V","09W","03Q","05H","02D","04J","00N","06N","05N","07J","06M","11T","09H","07H","03F","08W","02P","10V","05J","03A","01W","02H","01R","04Q","09C","06F","99D","04J","05H",33]
[34,"04L","01F","10A","00H","12F","03F","00H","09P","00R","00D","02Q","01F","02M","01J","02H","09D","01C","03R","00H","00X","99G","02P","01J","05Y","04V","02H","05A","02V","03G","10J","06D","04E","02G","00M","00N","09Y","04L","12A","02Q","12F","09W","03E","00L","02G","04D","09W","09W","04H","05A","04Y","09N","05Y","05G","09P","06Q","02E","12F","05G","04X","04Y","00N","04J","00P","03E","03F","03K","01D","10K","03K","03T","05W","05J","04H","05J","02F","03X","99C","00T","99E","02E","05N","05G","02P","05V","03A","03H","12F","03Y","05V","06D","11T","02F","04J","08E","06T","12F","06Q","05F","05N","07J","00F","05Q","08T","05X","00N","99M","05R","03R","01R","03E","06T","07N","99M","02P","04H","04E","05G","05Y","09N","06T","99J","00Q","12A","01W","08T","01R","08G","08T","05Y","03G","99E","04F","00T","10N","05Y","12D","99M","07W","00P","03X","01N","03G","00T","02V","11T","08N","06P","10J","07M","08Q","00P","02V","04V","05X","03T","02Q","05N","04R","00X","99J","06F","06T","00C","10J","07H","10C","06D","02E","01Y","04E","05P","10V","99K","06Q","04D","03W","02N","04D","00F","13P","02G","06A","06T","03E","10H","09J","99D","05H","06A","03R","09N","11T","00L","10Q","03X","10M","04J","01G","01F","03H","06L","09W","99M","03Y","05R","04V","07J","99F","09J","99Q","01V",34]
[35,"00V","05J","00L","00M","99G","02H","01G","00D","04E","04H","03Y","03V","02D","08G","02V","00Y","01Y","02N","00P","99H","01T","00Y","99C","05A","03W","00D","02N","03A","00G","04D","01G","08F","02F","06D","02T","07H","01W","09J","00N","00P","00N","02G","02Y","04Y","03T","04R","03L","05R","04F","03F","04D","06F","03H","10V","10Y","05C","01X","05W","05D","05F","03F","03K","06K","99D","00C","05H","01G","10J","12A","05V","00H","06L","00P","11C","02H","10D","07J","02V","99D","12A","05F","09L","10Q","07H","07P","09J","10R","06T","11T","09F","03H","02H","01C","08D","09G","10C","09N","11X","04V","02Q","00C","05D","05P","02H","99K","05D","07Q","08F","09J","02Q","11C","08R","99D","02G","06T","03Y","10L","09X","12D","04D","09L","04C","11C","99C","05A","10C","06A","01N","09H","00W","02V","09H","07G","02V","08F","00T","11C","09J","00H","01W","02V","08E","01D","08A","00V","13P","09Y","04L","01D","01D","03G","00F","08T","09W","01H","10E","05R","06Q","02D","04V","10C","01C","99D","07N","99F","05T","03M","08P","03L","10D","09C","02T","05D","10J","01R","05H","10C","09Y","12F","03A","06Q","01Y","03Q","12A","99E","07Q","08T","99K","02H","12F","99E","99J","09L","99K","04V","11D","01F","00V","06W","00P","05D","04H","05G","06D","10M","12A","09L","11T","04Q","03W","01W",35]
[36,"06D","00M","04Y","02G","00N","04Y","04L","02F","05A","01F","02E","09C","00D","02P","99E","00Q","11T","03H","02G","09N","12F","00D","01D","06A","99J","05Y","05H","13P","99G","09X","05J","04Y","10E","02D","05Y","01R","02P","02T","99K","05D","02A","02Q","02D","03X","03R","05L","00X","10D","01E","01R","99Q","02Q","02G","02Q","02D","05Y","02G","02D","01F","02T","02G","06Y","11X","03D","04J","03M","10D","05J","01C","12F","01G","00C","10E","03J","01W","03D","99K","11E","00F","04J","04J","10L","02E","06W","01Y","08F","02T","03A","00L","06V","04Y","00V","03A","99A","06Q","00X","05T","11A","99Q","09X","03V","00H","01X","01T","00L","10M","00L","03A","99E","10V","08F","02V","04N","10E","05Q","02D","99J","02A","02N","03Y","06D","08E","99H","03X","02V","05H","00N","07M","08X","07L","07P","01M","00H","10R","00H","08P","00X","01Y","10W","05H","10N","04F","02R","01M","10V","06P","01W","05X","07L","05A","08F","05C","03F","03A","01A","02V","00F","04V","03V","06L","07K","07H","00F","06K","99N","11A","11T","09J","00D","00P","02A","04N","10K","09J","03E","05R","09H","02V","06T","03G","00X","03V","02F","11D","01H","04V","08F","02M","00T","05G","02F","06F","05G","04D","05C","08F","05P","03R","01X","06T","09L","10Y","04N","06T","06Y","03K","05G","08P","10Y","04D","03Y",36]
[37,"00N","06T","01W","02F","01E","05J","10D","11X","00F","02E","01E","13P","04M","03H","00H","03N","10V","02E","05D","06Q","04X","06T","01W","01A","04G","02D","10A","07L","00K","10A","02F","10E","00F","01R","02G","03X","10D","05P","99D","03X","00V","05H","05F","00V","05Q","02E","02Q","08G","05W","04D","10V","05Q","07R","09F","05V","03G","02N","02H","02X","00F","05Y","99D","02P","04H","10E","11N","03A","09L","02G","03R","00M","05V","03F","05P","02E","06T","06L","01Y","99G","06T","09Y","05J","01A","04H","01N","03L","00Y","09H","09W","99N","02P","06T","05G","03N","06V","06D","02P","07J","03D","05D","06A","03F","08G","03J","10A","05R","02Y","10Y","01H","01C","03R","00V","12D","05P","03Y","00F","06D","09Y","99K","05D","09J","00H","05C","08G","08K","04L","01K","07N","02R","00Q","05X","08X","01D","10X","07G","05C","09X","05W","07X","02E","99A","07Q","11H","00H","06Q","08T","10H","05Q","03J","02V","08E","08W","07P","06L","00D","05V","99K","06D","01R","04H","01C","04H","06L","03R","05V","02A","02F","10M","12D","09P","07G","99K","05T","02E","02F","02E","11D","02Y","04E","05A","07H","00P","00K","09Y","07H","05R","01C","05V","01T","09F","99H","10Q","02D","10V","01C","04F","02F","02A","01D","05P","04L","00X","05T","03V","05T","04N","10L","05H","01R","03T","99C",37]
[38,"03A","06M","02G","00K","10D","12F","05Q","00X","00C","00K","01J","03H","06A","01T","01R","05W","05V","09C","05X","06M","02P","06W","05J","99G","06Q","05P","01A","10W","12F","02P","00J","02F","03Y","05X","99C","04E","03Y","09W","04Q","00D","99G","10K","06Y","05Q","02H","99G","05T","10H","01N","05G","06D","06T","01Y","05Q","06T","10X","06A","02F","99E","03A","03V","01R","09W","04R","03Y","05F","00T","05G","01T","11T","10R","09P","03A","03V","05R","03T","09G","04D","12D","02F","03E","06Q","07Q","03K","02T","03A","05P","09Y","05G","03Q","03W","05T","03R","00M","11X","01C","10J","10J","05D","04Y","02E","03K","12D","04E","01X","02E","12F","02E","09G","05V","05T","05X","04Q","01W","09P","05P","09J","02X","99N","02F","04D","09H","11D","10H","03G","10G","02V","10T","09J","02A","00H","11C","04C","00P","99G","09Y","03W","02T","03F","02D","08T","02V","00Y","10H","05Q","08E","07H","05H","00T","08V","10R","07X","04D","99M","10A","10V","01R","09P","10K","10K","10V","99N","06Y","03L","06L","02E","02T","09N","09L","02T","07N","05J","04Q","06T","10V","07K","06D","99E","01X","02A","02E","11C","03G","11T","99D","08F","99K","03H","08G","11T","11T","09P","06L","01C","00X","03X","02A","03L","03H","01Y","06Q","11C","09N","11T","05J","11T","99N","09C","01C","07H","03W",38]
[39,"03X","02T","01F","01Y","05H","09D","05Y","09G","02E","03F","00C","02A","01N","02E","12D","03F","12F","07H","00C","04M","10E","01X","10D","10E","06Y","99A","01G","11H","05Y","10K","02D","02G","11T","04Y","10E","05Y","01Y","10D","00J","05P","03K","10A","01E","04J","06M","12D","12D","06F","02T","01T","06Q","02A","04R","04D","10J","01J","00D","06M","05H","11T","01G","02M","06W","03T","02A","03D","03Y","05N","03H","00L","99A","03R","01R","99H","99H","02Y","04Q","04V","02D","04H","11D","05H","12F","12D","07M","04M","06K","07N","02G","02Q","07J","11T","10K","03A","02Q","02F","02Q","03Q","05J","10A","02T","03Y","05A","03V","10E","06T","04J","11N","01C","02N","11D","02A","10M","09F","10A","12F","06T","05H","04R","01R","10V","05A","10J","05H","02R","11D","09E","08E","08J","05Y","08L","07V","05Y","04X","02A","99M","04E","05L","00R","01R","99G","05A","04K","00V","07M","04K","12D","09W","11H","00Y","05W","02H","01T","07K","03G","03K","06Y","12F","11D","06Y","09W","05J","05R","00C","07Q","99J","05R","03W","03R","02E","03W","04V","10N","04J","10E","05T","04M","09N","02G","00V","03Y","00Y","12F","03K","12A","02A","08J","10A","02P","01C","03R","00D","09Y","03R","06F","02T","03T","10Q","06A","10K","05H","04L","04H","00K","11A","10M","07H","08T","01H","05N","06V",39]
[40,"05G","10D","05W","06T","02E","00L","01R","05H","02A","01R","05P","10E","03Y","05H","05Y","13P","00N","02X","02F","99E","08G","11E","05Y","11H","06F","00F","03E","05X","03A","06Q","04L","04H","06D","03V","00F","04M","01C","99G","09N","07H","01R","99K","06T","05G","02D","04F","10J","09J","01G","06T","03K","05A","03G","03Y","03T","06A","01M","00V","05J","04L","05C","05N","03H","06W","02T","05N","10E","99J","00C","05D","03N","03M","05G","10N","02X","06Y","09F","01T","00C","99D","06L","04D","01R","10K","11H","09H","02X","01R","03Y","02N","04Q","02T","02A","02V","05Q","09Y","02D","05N","99E","06T","05A","05Y","05H","00N","02Y","05J","03A","01R","04H","02M","05A","02T","11X","04R","04M","01E","05Q","11D","00V","10E","06T","10W","07V","00K","00T","04R","01M","01G","06F","08L","00Y","08A","00Y","02A","08E","10C","04V","05X","07M","99H","09D","08F","05A","03G","05J","07M","00T","99C","00H","04F","00N","10K","99C","04N","02P","03F","03K","05V","01Y","00X","05H","03D","02M","01Y","04H","10G","10D","05H","04E","05W","99F","10K","02T","00X","09G","10N","99H","01E","02X","02V","02Y","00H","99G","05J","02F","02F","04F","11T","01A","07K","06M","06Y","99Q","03E","09W","08T","04H","03A","00R","02A","06V","05X","00X","00C","06K","99D","99E","08F","10J","09D","01X",40]
[41,"00H","01R","04D","02P","03J","03T","10E","03Y","03A","10V","02A","01J","05H","10E","10N","07L","00L","05H","09C","10L","00C","04V","00T","01J","03E","00C","03R","00P","03R","12A","05G","00P","04J","02A","03G","07N","05T","05D","01W","01W","12D","03D","03W","99G","05V","10D","00K","02E","09H","04R","11A","07H","12F","05J","00L","10E","00C","99C","03V","02Y","05P","06L","01Y","03M","04V","02G","02Q","04H","99E","02D","03A","05R","06D","02T","12F","07K","02M","01A","02A","99E","05G","02N","12D","09Y","07V","09W","02H","04J","05F","06T","09F","05P","03L","01Y","06D","03W","02H","05H","09X","06M","99C","04H","00C","02P","09F","05H","09J","10K","03E","05D","05R","05W","01C","99C","03X","04J","99H","07H","04H","09G","05Q","02A","02R","99H","08Y","03A","00J","00T","07T","00V","06K","05W","05W","00T","02V","13P","03R","00H","05W","09L","08N","01N","03G","07Q","01R","99A","05A","99H","10X","07N","00V","04L","03A","11T","01Y","03R","04Q","99K","00K","04R","11C","05G","03E","04H","11C","06L","00X","05C","99K","11T","05H","05Q","01C","05T","00F","02N","01C","10J","00M","12D","99C","02D","00V","04H","99K","01C","06F","02N","04D","09Y","09J","06K","00X","99P","02A","00V","04L","06K","04D","10E","06T","09C","02E","02F","06L","01R","05J","00V","10V","12F","02Q",41]
[42,"02D","09P","01R","03R","02Q","01E","00N","99Q","05Y","05P","00H","09H","03T","05P","04E","02R","99E","12D","02E","03X","01W","02D","02A","00J","12F","05H","04H","02T","04E","09J","06T","01R","99F","05P","02Q","10K","05D","10V","01X","04J","99E","09P","99D","03F","12F","03F","01E","07Q","03A","05D","01H","04Y","01A","06T","02G","11H","02D","01F","05A","04E","00T","05V","00M","03K","01F","99C","04Y","05H","12D","06T","00V","99K","03V","08J","99M","04Y","02P","01J","06T","02G","11C","02Q","01H","02P","03F","01W","06W","00F","03D","02F","02G","10E","09L","01N","09X","01Y","04E","05D","07J","03T","02A","03X","03V","01M","07J","03R","01W","05J","04V","11N","10Y","07P","07Q","09N","09X","99F","10M","01R","04Q","02N","10M","01G","05P","06F","07N","07M","05W","09A","06N","07T","08J","03A","08C","00V","05A","09J","01C","99E","05L","04F","05A","10T","07X","12D","02E","07N","06N","03X","07V","05Y","01G","03A","00F","03W","01X","05A","04M","05F","10H","11T","04H","06F","11T","04E","06F","05H","02G","08J","01X","04D","10V","05D","99D","11D","06L","05Q","09X","02T","05G","05X","01W","02G","02P","02N","10K","10Y","09C","99F","03L","06Y","09X","07H","02M","01R","99D","05D","99Q","00H","09E","08F","03T","09H","99G","01F","08F","04J","05Q","08J","12A","10A","03R",42]
[43,"04D","03A","06T","01F","03Y","05V","00M","05D","02T","00V","00T","10N","06D","02H","00N","02V","05T","03F","06T","07J","02X","12F","02D","05H","07H","02E","05W","08D","00F","04V","01R","02A","02X","03F","02D","10C","99F","12F","12F","11T","04J","05P","03T","06T","05T","03V","05W","06M","00V","01W","09P","01X","00F","00X","10L","01E","01T","06D","09C","00K","02T","11T","03G","05D","05P","12F","04L","10Y","00K","99D","08A","01E","02G","09C","03N","10L","04V","03R","00K","99Q","04L","07H","03N","11T","08R","05P","02P","05X","10J","03Y","05R","02X","09X","03F","11A","00N","09Y","04V","05F","06V","02G","05P","03H","02X","03H","07K","02H","11T","04D","03Y","11T","09W","04J","99D","01R","11C","99E","03J","05P","10V","03T","02V","02V","10J","08J","99F","99G","01D","00T","10N","10G","99G","07Q","01G","08J","00V","02P","10N","01T","04L","08E","02A","02W","08F","07N","05A","02D","04M","04K","01G","04M","08G","02F","05R","05H","99Q","03H","03D","02T","99M","03K","03E","02G","09N","05H","04V","02P","99D","01F","00K","07H","02A","06Y","04H","05D","09Y","10Y","07Q","03X","02T","06Y","99G","05X","11C","05Q","08P","02A","06Q","00K","10V","10V","01C","03T","05G","06K","02H","01R","07V","03A","00D","99F","05D","99Q","02Q","99J","09C","10J","04N","09L","11E","99G",43]
[44,"05W","01W","99G","02Q","99C","02E","04H","02P","06A","05C","05C","07H","01E","02X","10D","00M","03A","00C","05Y","09F","02E","00K","04Y","02E","03K","99C","03G","99G","05X","04N","00H","05V","10K","05C","03Y","10N","00C","10J","05V","99C","04H","05Q","00V","10D","02F","07H","04R","02P","04K","09J","04N","03Y","02P","99N","02M","00T","10N","00P","00C","07J","04L","09E","03L","06F","05C","00X","10N","02F","99D","01C","08R","07K","00V","06Q","12A","05R","04D","03H","03H","12D","99F","05Q","01W","02H","05X","00N","07H","01T","06M","10Y","99K","12D","05T","08R","11N","09H","06T","99H","05Q","02F","02R","09C","07N","99C","03D","11T","02X","05P","03Q","05H","10V","01Y","10K","00X","03K","05J","10K","02H","02G","03H","03Q","00V","07H","09X","00Y","06T","01T","99A","09W","08P","10H","99M","03A","99A","05W","99G","01X","06F","99C","99F","08P","01G","07M","09J","05H","09D","10J","08R","05Y","01N","99C","09J","05G","99D","03A","03Y","04D","01R","99G","04Q","99J","09Y","01R","04F","02E","09H","05V","06Q","10J","99Q","06F","11A","05P","10G","03H","03K","01Y","99M","00V","09W","04N","08W","02G","05H","01R","04L","10N","99D","09E","10A","01R","10V","10J","99E","02D","10V","10V","12F","01M","03K","99H","04V","02A","07Q","04Q","06N","99H","04F","03Q","00D","99K",44]
[45,"99G","00J","03A","02V","00X","05T","02T","10V","02V","00J","03T","05D","00H","02G","01A","10T","10A","05D","01X","03K","05H","00C","03A","02T","01A","01M","09P","00K","01K","04Y","03V","10L","03H","05Q","05P","10J","03R","09H","02P","04L","04R","99G","06D","10A","10V","01W","04Q","03L","05X","04L","09F","05P","05H","02M","04D","99A","02A","05T","02H","10E","04Y","02T","05G","07H","99E","02P","01J","03D","06T","06M","02T","09C","04J","02D","11J","01X","00F","00K","02G","02Q","05H","02F","02F","00K","08E","02D","05H","08T","05R","10V","06Y","99G","10J","00V","00X","10H","04V","09Y","11A","99F","02V","01W","05J","05H","02E","06Y","13P","05R","04N","09G","09N","08J","05J","03Q","03E","00X","10J","06K","01C","03W","07H","07Q","06Q","00X","01D","01C","00H","99G","10H","04F","09L","01E","08Q","05L","10R","07X","10G","99G","08G","00V","00T","08V","02V","02T","09J","10N","99E","02D","08J","08H","00R","10X","05A","00C","05A","00L","05H","03Q","05D","05T","02D","04D","05V","10M","05D","01W","02X","06D","02H","01W","08J","05H","09H","05G","00X","10V","10E","04J","01R","09J","06M","07R","05H","05Q","07Q","03X","02E","01C","02A","07J","04D","05F","10A","09N","07H","09N","05G","01W","04R","11T","00X","99F","05R","04H","06N","12D","02F","06N","10A","00J","01T",45]
[46,"04J","05X","05Q","00D","01A","04L","03X","05J","02D","00M","05J","00K","03G","01M","01E","05Y","12D","99G","05T","06V","02G","10X","03X","10D","10Q","02X","02M","01T","03H","06Y","03T","99D","12D","06T","10D","05W","06T","11T","05Q","05Q","05G","00X","05J","02T","01Y","12F","00D","10J","08T","00H","04V","99C","00K","05H","05H","01N","02E","04J","07N","06L","04H","03Y","99P","10V","04H","01X","01R","05D","02A","01Y","01Y","05F","00H","09X","00K","99C","03R","00Y","03R","01T","10C","10J","05J","09W","04F","02G","13P","09J","02D","06Q","07K","00N","02X","01E","09F","09X","99H","99E","03Q","04D","00X","04L","09J","05L","10K","05Q","04D","10V","10H","01H","02E","12D","05H","02M","99C","05Q","07H","00X","03R","04N","09C","08M","08P","06K","05Y","04F","08T","02V","04G","05W","10D","01Y","00V","01J","01N","00H","00K","01E","08E","08R","01J","99G","08T","07G","01C","10X","04M","10N","99A","05W","05A","06W","07Y","00X","05T","05D","99F","03R","01W","06K","06L","99M","01C","07Q","99J","10Y","05J","01W","05T","05T","04L","10C","04H","99K","03W","06L","08T","09D","11E","10W","03T","05X","01X","02E","99Q","06T","06Y","06Y","01X","04D","99K","10L","12A","99D","10M","03W","00L","06F","01W","01C","99E","02T","10J","00M","07K","05Q","05H","01W","05Q","07K","05P",46]
[47,"05Q","05T","06M","01X","02A","10A","02A","02X","05P","99Q","99Q","00C","02Q","07H","09H","09A","01T","04F","02H","03Y","02H","00N","02T","01W","02N","03Y","02Q","10R","02P","12D","05P","02P","07Q","05G","01A","99F","04M","05C","02E","06M","05P","01W","03A","06D","04Q","06F","00Y","01W","07V","05Q","05D","02G","01R","06Q","05G","01D","09C","99G","05P","03X","01R","01C","00F","11T","05Q","01H","99C","03E","05X","99G","07M","02N","02A","02R","05H","07J","03X","00N","03L","09F","12D","99E","04D","03H","10R","03R","00H","00P","05Q","09X","02M","12F","05V","10W","01H","02P","04M","09G","00X","04V","02Q","12A","01A","02E","02P","99K","02T","02H","06K","02G","05C","01A","00L","11A","06L","01Y","04D","06Q","11C","05H","05J","03A","07Y","00V","04F","09N","03G","02R","99E","03J","01G","00H","08H","08E","03A","01W","10H","07H","01W","02V","07M","00T","05Y","99M","04L","99G","03A","07G","08T","02A","10X","00P","04M","02V","10E","05R","03M","09Y","04E","99K","05T","04J","09G","07H","04J","06T","01C","00X","03G","05D","03X","04G","03E","02D","05H","01C","04H","01R","01F","01Y","99G","01A","01W","02D","05G","02E","04Q","09C","08F","00D","07Q","09F","03D","06H","05V","05C","10A","02V","04E","02G","02F","01C","99K","08T","02E","06T","06T","01C","04N","05G","03H",47]
[48,"00L","01G","03F","04E","01W","05Q","12D","03H","02F","04J","02D","02G","02H","00D","02Q","03A","10D","10E","00Q","10A","00D","10A","03G","09D","04H","01A","00V","07Y","02H","10M","05X","02D","04Y","10V","01E","02G","12A","07H","06Q","00F","06T","03W","01C","04D","11T","02P","02F","04V","01Y","00P","02M","04L","11N","02F","99N","03Y","11H","03X","10H","02G","02D","02V","00L","07J","05T","04Q","99E","99F","03L","04D","09D","06Y","12D","05Q","00L","99E","02E","05X","09X","09Y","09C","09J","05R","11X","08T","11T","99E","05Y","04J","01H","05D","01C","03W","08T","10V","03A","01W","04D","09G","02M","01J","99C","99E","10E","04Y","00L","99H","05C","07J","11X","11N","09J","02F","03K","02Q","08F","05J","99J","10A","01H","02F","05W","10Y","01R","07Q","05T","04X","05A","10W","99G","13P","07Q","02A","00N","13P","01D","09L","09Y","03G","09W","00P","04C","01J","11C","06F","00R","10C","01Y","01G","00H","01Y","12F","08G","02Q","11N","02P","03X","99C","03J","08F","00X","02F","11N","10H","04L","99D","00F","99G","04Y","02N","11T","03A","99N","06Y","04N","02G","05T","00L","02F","05W","10E","00J","02H","03D","06M","05T","05R","00N","11E","01W","12A","01R","03K","04Q","05T","00K","05T","04F","00V","99F","03Y","99K","03Y","07H","06T","02T","02N","04V","06M","02X","05V",48]
[49,"01W","02F","01G","02X","05J","11E","99E","00F","02Q","02M","03X","03R","99A","00C","02X","08R","10E","02P","03K","99C","10D","05D","04L","10X","99K","02Q","01X","03R","01W","09C","06W","02E","00M","02F","01R","04Y","10K","06D","99E","03T","01G","05J","10L","02D","06T","02H","10H","00M","07G","01G","11M","03F","01X","09L","03Q","02G","04R","00J","03H","06T","01D","09D","02T","09G","07H","07K","03G","03K","03R","10D","03F","02E","02D","05H","00V","03W","06Q","13P","01V","02P","10H","10D","02Y","05P","07X","01C","00J","11T","12D","99J","00N","10D","99D","04F","03Y","10E","10C","10Y","04N","99C","03Y","99G","08F","07Q","00C","03K","09W","04J","10V","03W","10G","01G","06N","00J","09N","05W","09C","09N","03A","00C","99E","03V","04G","11C","01N","09W","11E","01J","06K","07X","02T","10H","01N","04C","08V","11D","00N","01W","08F","05X","07N","05Y","03J","05P","03V","01G","03V","02H","03G","08K","09Y","04E","03X","00V","09P","02D","12F","04H","09X","04Y","05V","03K","05H","05Y","09C","04L","09F","10N","05Q","05G","05D","06Y","00X","01W","00C","09W","05D","03A","03L","10H","10J","02T","99C","03A","10Q","02V","04L","10R","07H","07H","01C","02X","05P","05F","10Y","10Y","06D","00P","01K","03T","02M","01W","07Q","05Q","05H","11N","09J","05X","02F","99A","00P",49]
[50,"03V","06D","00H","03Y","09H","01Y","02G","05Q","99C","02D","03V","03F","06T","02D","99C","07X","06T","09J","03F","09Y","02D","02Q","04H","99C","11T","00Y","03N","07W","09E","00L","00R","03L","01C","04J","05C","00N","00N","01F","05P","04Q","09J","01X","09N","05C","05X","03H","06L","03E","09W","00N","09X","01W","08J","10Y","11E","00C","04D","03T","02P","99C","03X","09C","02F","05H","05G","99K","02T","04R","10E","10L","03C","11E","05P","01Y","99P","00F","05F","01F","03W","07Q","10G","00X","03L","05D","04K","99D","09W","00V","09X","09C","02E","01T","00V","07N","03Q","10J","99K","05Q","11N","06L","05J","00D","10E","07M","03E","04J","09N","05H","02F","03Q","09W","10W","02E","05V","02F","10K","11A","02P","12A","00F","05H","05X","10C","07X","02A","99N","03A","05W","00Y","07N","08E","05P","99G","01W","03F","10G","03L","11H","02A","03W","06P","05W","10X","10W","05C","00T","02R","04Y","05A","00Q","03R","09H","07W","10V","02Q","06D","03W","07H","08G","07G","04L","05H","02P","09X","05P","10M","03E","07N","05G","00M","03A","02D","02A","04V","04L","00X","05X","09E","02E","10N","08F","02F","00F","10A","05V","03A","05H","05D","03H","02M","05G","06H","02E","07J","06T","11T","01G","00K","10E","05V","02Q","99D","09Y","00F","02D","10A","04D","05R","03K","09E","04L",50]
[51,"03T","00V","02F","03M","02G","03L","99G","03R","06T","04Y","05G","05H","05C","04X","00Y","01Y","02F","04R","02Q","02Q","05P","01R","05C","02G","03D","05C","12F","03H","03N","02Y","04Y","09G","03A","03K","12D","09J","09X","04J","03Y","04E","04V","04Q","04J","00L","10L","08T","00T","05X","02V","99E","05H","03G","05T","04L","09P","00X","05D","00L","10G","10L","10D","05H","06L","04N","04L","03E","12F","06D","03A","05T","08J","07J","10V","10D","01R","02T","99N","00V","05T","09X","03X","06T","12A","11C","03L","02A","03H","04V","05X","09G","09N","10A","06T","04K","05J","04Y","01X","05J","02G","12A","00Y","01T","99C","01J","00F","02Y","10J","05A","05G","00D","05Q","01E","04G","99N","11A","03T","03Q","00C","02A","00X","09P","09W","02T","04E","09A","02D","05L","05Y","99G","07Q","04R","12D","01Y","05W","09H","06N","12F","09W","12F","04Y","07Q","08J","01G","06N","03X","07Q","01Y","07H","05W","00V","01M","01G","11C","02F","04J","09F","07K","01W","02H","99N","05R","12D","02X","03W","02D","06Y","10V","05V","00H","09F","00X","09H","06L","02A","02G","05X","00X","01W","02V","07Q","02Q","99A","06A","02Y","04N","99D","04M","10E","05H","02X","10A","02P","03X","12F","04H","02P","03X","01E","99G","99E","09F","06K","06Q","10K","02A","05F","10K","02T","06N","06Y","04M",51]
[52,"00P","05D","05C","99C","02V","00C","09J","06Q","00X","02X","03A","02E","03X","04R","01G","07T","00V","06F","06M","05N","04E","07H","05P","02Q","02X","02R","99A","10D","99C","09L","01J","06W","02Q","03A","04L","11C","03L","00D","99F","01F","02G","01T","10V","99E","99D","05P","09L","04R","00M","05C","03M","08F","06M","03M","99H","02A","02H","10V","01G","03W","03K","00D","02V","01C","00L","06V","05Y","11X","02F","05X","07V","00F","01G","08P","03G","00D","11N","03Q","02M","04N","00X","02G","09G","10J","01F","05D","08F","03F","06D","03H","99Q","00F","99G","04R","09J","05X","04Q","02N","10L","09F","10D","10E","01T","03H","03W","04Q","00K","01W","05V","07H","10K","03V","05D","04L","05J","01K","02F","99H","04V","00D","10J","01Y","05X","03L","00H","99C","08E","02A","04R","01N","09Y","01A","10R","01D","10W","99E","02D","04R","00F","06Q","04K","10N","99A","05W","02V","10R","07X","03V","08L","10N","06W","01T","06T","10E","02T","00F","00X","03E","03L","07K","02T","99J","12F","09Y","03D","99F","03W","07H","09N","04J","99K","02E","04V","99G","00D","99J","10G","12F","03Q","08V","00L","06P","03L","05V","09J","09C","03X","06L","07Q","10L","10J","99D","03Y","10H","05X","01W","03A","08T","06T","00L","03X","03R","02G","03A","04L","07Q","02Q","99G","03D","09P","01H",52]
[53,"11T","01A","10L","05H","09W","06D","06T","09F","99A","01V","09D","99G","00C","10D","03F","01A","99G","02D","01H","02D","00N","01F","01R","01M","01C","05A","02Y","01X","02G","99C","10V","03R","05X","03T","99E","11T","04Q","03V","01T","00K","10E","02D","03D","00M","02T","05H","06T","00P","08R","00V","05Q","05G","03M","10K","99E","03X","99E","04L","02V","01C","99E","10D","09J","99J","02D","03R","02X","11M","10C","01W","00P","05N","04M","00Y","02V","04N","03H","03L","02X","03T","99N","99N","01Y","01W","02A","01Y","09J","05G","02P","11X","05F","02A","10D","03L","04V","02H","00K","10H","02Q","06Q","05P","01G","10D","01N","04N","10V","12A","06Y","09Y","02P","03A","10H","09C","00N","00X","02M","03T","03V","10D","11N","06F","11H","10K","11D","03A","03R","07N","00H","12D","06N","05W","02T","09H","00M","10T","10N","04J","10W","06W","99C","02A","07G","05W","08V","05R","08P","05W","09X","07X","99G","08V","05H","05W","10G","00L","00X","02G","05Q","07M","10V","10D","05N","00X","04D","06D","05C","07H","99C","05W","05P","99D","04Q","07K","05R","99C","10K","06Q","99Q","03G","99M","11C","04D","01F","01C","99F","06D","05V","00L","08J","09P","99Q","04H","05D","06N","04J","09C","04R","07Q","99C","02F","12A","02P","12D","05X","04J","05J","00X","05T","05F","09Y","03M",53]
[54,"06M","03F","09P","03X","03K","06M","00J","04V","02R","05Q","01R","02D","00K","00N","04H","08H","99D","99E","01T","12A","09H","02X","03K","00X","04Q","06W","05R","02A","02V","10D","04D","05T","09Y","01G","03X","01F","01T","05G","00P","09C","08F","12F","99E","02F","01C","09J","01X","10V","08J","02G","06V","09C","02H","03Q","10H","06T","01W","00M","06F","09W","06T","01E","05T","10Y","03K","06Y","05Q","06K","02X","02F","04R","06D","06T","06P","02A","05N","00D","10Q","04N","99M","00L","02D","05Q","09E","09H","09X","05C","06D","05N","05H","00D","07H","01Y","02A","05H","04H","03R","10L","06F","03E","05C","12F","00P","00F","06Y","02F","02V","09G","99H","00X","08P","07Q","04H","02Q","05H","99Q","05H","04N","03H","02G","11A","08F","99G","02P","05W","04V","07V","04F","00W","01Y","00V","07N","10N","07M","00T","10W","06D","06N","01Y","09X","01G","01D","00M","01Y","03W","08J","11D","01R","09D","08J","12F","00H","07M","11C","01R","03W","10K","99J","10M","07N","99N","99F","02T","00V","02Y","04J","09C","99K","03V","01F","04Q","06T","09W","04Q","02N","10C","03A","03G","09W","10G","04Y","04V","05G","10V","10J","08T","04Y","11X","06F","05F","99D","99K","07J","09Y","01W","04V","05X","05C","05Y","03A","99N","05C","04V","99F","04V","03D","03T","06K","05D","10H","07H",54]
[55,"05T","04L","09F","05X","01M","02Y","04R","99C","00Y","02A","06D","09W","09D","10N","02R","08L","04D","05P","01W","06L","05J","02E","01E","04D","01R","00X","00G","02P","08G","02T","02A","00C","00C","00H","04H","10H","09L","09L","06W","99E","00M","06Y","06F","10V","03A","07M","06Q","02Q","01F","03X","07H","01E","05X","09J","03K","05J","10A","03F","03R","03T","05Q","11N","10A","99Q","04D","01T","04H","11C","12F","03A","01K","07H","00J","04R","09G","09C","12F","05Y","01T","05T","99M","03Y","00D","10H","10X","01T","99G","05W","10E","99Q","00C","09J","02T","04G","03E","09J","06Y","03K","03H","09J","06T","10J","00D","11H","99G","02X","12D","00L","09L","09N","02T","03L","11C","03Y","99H","04H","12A","04L","06Y","09N","11X","10N","02E","10V","00Q","06L","00M","00Y","00V","01E","00K","08V","03F","01T","01Y","00Q","03Y","05H","05Y","10N","10X","00H","00H","09W","08G","02A","01D","00X","01E","07Q","01N","00X","07N","10N","99G","05J","03E","10K","10D","02X","04Y","11A","10V","02Q","03E","08T","99Q","10Y","06M","04L","10D","01C","99F","03Y","05J","09H","12A","99H","10D","03V","09Y","01T","04E","04V","04Q","05V","05D","09F","99C","99D","05Q","03K","99C","09P","03A","01Y","03K","05P","04V","02D","10J","04R","00N","12D","05V","02E","02G","04L","03E","00P","04D",55]
[56,"04Q","00H","05V","12F","10R","10X","05G","00C","03Y","09F","04L","04F","02V","05J","02F","08E","02A","02H","01R","07H","02N","04H","06A","02V","09F","02V","06D","02X","04X","07K","05C","00L","04H","04M","06A","00P","99C","00F","02V","00J","05Y","00F","10H","00J","01F","99E","99K","01X","10D","00J","02Q","02D","02X","99Q","05J","02Q","06F","99E","09L","04N","12D","00C","04J","10L","01G","04L","05C","07Q","09H","01F","10Q","03W","99E","07X","10Y","09N","10K","12F","12F","09H","04Y","02T","03K","04L","01J","04V","02E","10C","02Y","00X","04E","04D","09H","08V","02F","05T","02A","02M","02N","04M","02D","07H","00X","06P","04E","04D","99M","02A","09C","00F","01R","00W","03E","99K","04Y","04Y","09Y","00V","04G","05J","00X","99G","03W","07H","01G","00X","04V","00R","07H","03A","99G","06N","08F","07N","02R","01Y","06Q","03L","02H","06F","00M","00V","08J","09Y","04N","01D","05Y","03L","02V","01Y","00T","12D","08F","99H","99Q","04Q","05J","04D","99H","99D","03A","05F","11X","02A","00X","00X","02E","04H","02V","03X","05C","08F","02F","10H","00N","10A","06F","00J","01W","08D","03H","02A","08G","07Q","03E","99K","06K","10X","03Q","00J","10Y","05H","02Q","04H","06Y","10D","99E","02H","02V","01V","10M","99G","11D","02V","03E","01C","02D","03A","04H","09N","04Q",56]
[57,"10V","04Y","05T","02H","05D","05X","03V","12F","00J","10A","05X","02X","10V","04E","99M","03J","02T","02G","11X","09L","07H","99G","09W","03Y","03H","03A","02T","10E","02A","00C","04J","02H","07H","99E","04Y","01T","04Y","10E","99G","02N","02T","03H","03G","05D","07J","10E","02H","12D","03F","05Y","99J","03X","00D","03X","05N","05P","08G","04Y","01E","99E","03G","07H","05H","03H","10V","06L","04M","12D","06W","04M","07R","99D","10D","04G","02P","04E","02G","08J","09J","03W","07H","03H","10J","02X","03V","09L","04D","03W","02X","09J","01X","00D","07H","03R","02X","00K","07Q","06F","02E","09L","04R","00M","04R","05J","05P","10D","02P","02X","10J","99N","08T","10N","05V","02E","99N","05C","06V","04E","05Q","11X","99H","08V","00V","01Y","08F","05R","01Y","10R","10N","00H","06N","01W","08E","08N","00V","04M","05X","05C","01F","07H","01D","03F","00V","10N","09N","10T","10T","99F","01A","00M","05C","06D","05V","12A","04H","10D","01T","06K","99C","04L","05P","02D","00N","08F","03K","07K","03R","05X","01A","07H","06K","10N","99J","02F","03X","05V","99F","09J","00X","11C","03E","08A","03X","04D","03T","06F","06N","99E","06H","06V","03T","03E","04M","09X","99N","03K","05Q","99G","11N","00V","09J","99N","04Q","03F","09C","04H","99J","02F","05G","05F","00F",57]
[58,"99E","99G","05X","03L","05A","03N","05P","02E","05J","03K","04J","00P","00X","09H","00D","08M","09J","12F","01F","02E","02Q","09C","12D","03N","99D","02F","01Y","12F","00Y","99F","99Q","03H","00D","10A","02V","00T","03E","05T","03K","01E","12A","04N","10J","01G","09P","02N","03W","06D","10R","04V","05J","00D","09N","02N","09L","04V","02F","05Q","03F","10V","09W","10V","99N","09J","00J","00C","99M","10A","01V","09F","05X","00K","08F","02V","01Y","02X","09N","02R","10C","10E","10A","03T","09N","09X","08V","04N","06N","01C","06Q","11N","03R","04V","05C","02T","11M","03Y","05D","10M","10J","02E","04D","05C","04F","01E","05D","05X","05W","02Y","02T","00C","05J","06F","05N","10K","11N","10E","06F","10C","99D","04L","02Q","12D","05J","02X","99G","10Y","07M","00V","01G","09H","07H","09Y","03V","06W","01D","12A","08J","01A","01X","10V","00V","02R","01E","08D","10Y","05W","00Y","10V","03F","03J","01X","01X","03G","99J","02Y","12F","01X","99F","02P","00K","05X","06D","10D","06L","06T","03A","12F","04Q","06F","00L","04H","09W","05X","09H","05Q","99N","01X","06M","10E","00W","04V","08T","00T","05F","06H","99G","05T","10J","02X","99C","03N","06D","99N","99H","99K","03R","02D","02T","02F","05T","10Y","04N","01X","10N","02Y","03Q","10H","99K","05V","11T","06L",58]
[59,"09W","04R","00M","03K","05C","10E","04V","11A","04D","06M","04D","02P","11H","02N","03Y","00P","12A","01X","04H","05P","10N","11H","05Q","06W","02P","03X","01N","07X","10E","06M","10A","00R","01F","00J","03K","06A","05R","06T","06L","01C","00L","03K","09J","02A","00J","00C","03Y","00X","03V","00M","00X","10A","01W","10M","02T","04Y","00N","01W","99G","09C","01A","11X","11J","02G","01A","05J","02V","05P","01Y","04Q","03L","10L","00M","00K","05P","05F","02X","06T","03A","05R","02E","09P","03H","02G","99A","00J","12D","03H","06F","05J","02X","03W","99F","10X","04L","04E","00L","11N","04R","99E","00J","04D","07M","12D","01T","02V","01R","00K","02N","05J","00V","10D","03Q","99F","00F","02V","04V","03H","04J","03Q","02N","08J","01W","06Q","00V","04N","00R","04K","05W","00M","01Y","07H","00M","07Q","02H","99H","10J","13P","02V","05A","05W","99A","00R","06F","06D","00P","04X","02V","02W","03A","03F","03G","00H","05Q","99C","03X","05Q","09X","07H","06T","02A","11D","01T","04L","11A","02D","03A","00V","00L","03A","08P","99D","10D","02M","01H","02F","06T","10V","02T","08P","03K","03N","01R","05N","03D","03E","07N","07K","05P","02H","04Q","03H","09F","03K","99C","04E","04D","07N","01H","02M","07H","06L","09L","02X","04H","04D","12A","04M","07Q","99E","00D",59]
[60,"06T","03X","05D","00X","04Y","10V","04D","04R","11H","04D","03G","10W","04L","99E","10V","01J","05P","01W","04V","10J","00X","00X","09H","00Y","09D","05J","00R","00C","02X","03R","03A","06M","12A","02T","06T","10E","02V","10K","99C","03V","00J","07K","00X","12D","99K","10H","11T","11T","03L","05T","99E","10E","01H","09G","10N","04D","06T","07H","08J","02H","06A","00J","03K","10Q","10A","03W","07H","02E","02M","00J","08T","10V","09W","02H","04J","03E","99E","09A","09H","00F","02D","99H","10A","99C","10D","10D","02F","02Q","01C","02M","03Q","00L","09W","10R","00D","01T","99M","02D","02D","03Q","10R","00T","00N","02T","07K","00X","03G","10G","03T","02T","10N","99M","03K","06Y","06Q","05V","11X","01Y","02Y","99C","04V","09J","09X","99F","03J","02H","00F","07Q","00H","01A","11H","03V","01E","05A","99A","11H","00V","04C","04X","04N","08J","08P","04F","05X","99C","08F","06F","06F","00V","03F","99A","05V","01W","06M","02X","09P","00D","04Q","09C","11C","03D","10A","06V","05C","04Y","99K","09N","04F","11T","99E","01C","03E","03A","03K","09N","03A","10D","11C","05J","01A","09F","01J","02X","06K","03R","05D","09W","01T","04K","05C","05H","02M","09J","05H","04M","04N","11T","02X","02G","00J","99Q","04Y","02Y","01C","09H","01H","03Y","00X","05J","03E","00X",60]
[61,"09P","05Q","00V","01R","03X","05W","04J","03E","10D","11T","04H","12D","02E","12D","05D","00V","10K","10H","06L","09G","00F","00F","00J","02R","00J","02T","07H","07V","07R","05P","03K","10C","05T","11T","09H","02T","99K","01T","11X","03A","00H","05F","02E","05T","99G","01X","06M","00N","08D","12D","03Y","99G","00V","09C","11X","03N","02Q","11T","05C","09N","10V","01K","05X","06D","03X","11X","00D","00X","00J","07J","01J","11T","10A","05C","03L","07H","05D","02P","02F","12F","06T","10K","05P","04Y","99G","99G","07Q","04R","10V","10D","10K","05V","04Q","00K","10Y","04V","05X","10K","03R","02G","01R","04V","07Q","00C","01W","04H","05H","07K","05H","00N","09G","99E","11D","01X","10E","05T","00X","02D","04D","02P","09Y","03F","04V","03R","10N","00V","99C","00M","05P","01G","02H","08F","08J","03F","01W","06F","05G","00Q","00V","10M","08F","03V","10N","01A","02F","01J","09J","04E","03A","07R","02H","05W","06A","99N","00X","02T","00C","05H","04M","02P","08F","10G","01X","99N","04V","11M","01X","05R","09H","02H","02T","02V","06K","07H","11N","06D","03R","06W","10W","01G","05C","02R","07R","00X","05J","04H","99N","00P","11N","99E","02X","00J","10E","02N","02H","04H","00J","08A","05H","01F","02D","03K","06Y","02T","06D","02X","10D","06T","04D","10V","02P",61]
[62,"09C","99Q","99Q","04Y","04H","01W","05D","10E","06W","99F","11H","05P","09F","00X","04L","01K","04Q","05J","02D","02G","12D","03N","99E","02A","00F","11H","03A","02H","05H","03A","01E","07J","04V","10D","09W","99H","03K","04V","04L","00M","10D","06W","05G","05P","00V","04G","04V","01D","01J","99G","03H","05C","03L","99J","11C","09W","01R","01E","99M","03R","04J","09N","00H","09D","12D","02X","00F","06M","04N","02M","02N","02D","11T","03G","11H","09X","01X","02X","10E","03R","07J","02E","05D","06Y","03N","10C","99A","99H","06T","05Q","10E","12A","02F","05X","09L","08T","02F","09L","02T","03H","11H","10G","00F","99E","99E","05P","02E","02T","05Q","12F","10M","08F","09W","02X","00N","02Q","10H","10K","99G","99N","10K","01F","00Y","09N","10X","10N","07T","03F","09Y","01W","00T","00M","05X","01Y","05C","05W","09W","02E","05C","00X","10R","10R","02A","99G","06K","00V","05H","03J","07N","03V","05P","05J","05H","06T","00V","10L","02P","09N","00C","05V","03X","00L","03R","03Y","08F","09W","01H","06Y","06D","07J","04V","11M","00V","02Y","02P","07Q","09J","03E","03Y","08F","01X","00N","02E","10K","09L","04Q","07K","05J","06K","09N","03E","05V","02G","00D","03K","07N","06M","05X","05X","05W","02E","04Q","07H","04Y","05D","05H","02T","05D","05H","07J","02D",62]
[63,"02N","10L","10V","10A","01J","01G","02D","04L","05C","01G","01D","01X","10N","13P","10J","06W","05C","08T","00L","05D","06P","05J","06D","05J","05H","00J","10V","10X","00D","01X","04M","00D","03V","99Q","05A","00C","03A","09X","11N","04Y","03V","03M","00D","09W","01W","00P","99G","00C","02A","03T","10K","12A","03T","99E","02V","10D","05J","09C","04E","09P","05G","00F","11A","05Q","04Y","00J","10V","99M","09J","05C","02A","09J","09H","01R","05J","03R","11X","02G","05X","99H","99J","10E","11T","01C","00P","01F","01X","01V","03E","09L","04N","99D","10E","00P","03H","03H","03A","00X","09J","00J","02F","09L","02V","04X","09X","11C","01Y","04F","05J","03R","05H","05P","02T","02D","12A","02E","02Q","03L","00X","05Q","06V","01N","05Q","03W","09H","04M","01W","08J","01D","05P","02X","01G","01A","08F","09W","08D","07H","10J","07Q","01Y","01W","03A","01A","08P","09C","00M","10G","00K","01Y","09H","01T","03R","03M","09H","02H","00D","99G","99H","06F","03H","06D","02E","99C","99M","05N","05V","99C","05T","00F","05X","10N","04F","04L","07K","03Q","04D","03H","05H","09J","05P","99M","09H","04R","04R","05P","01W","03E","05P","05C","02P","03K","03D","10L","03D","06D","99C","02T","07P","02T","12D","04D","03X","09F","99Q","05C","05V","99F","09W","10K","01W","06Y",63]
[64,"09J","07J","07J","03G","12D","05D","10A","99J","01R","00R","10V","10H","01K","05C","09C","01F","04V","10N","99G","01W","01N","01W","01A","09W","03N","10D","04J","10T","00C","10E","05Q","03W","05G","00L","05Q","06T","99D","00N","09F","99K","02D","04D","10N","03T","00P","08N","05R","03K","07N","01A","02N","12F","99C","04Y","10E","02D","09J","00H","01W","01X","02F","00N","01T","99E","06D","03X","08F","04L","05T","00P","03R","03D","00L","05A","09X","09J","04Y","04R","09L","00V","04V","03M","00X","11N","09W","06T","10H","09W","02F","10E","06L","10J","08F","09H","99E","04J","10G","02G","11M","10J","06W","03G","04Y","01A","01V","10A","05P","07M","10M","02X","02F","00K","02D","03A","03M","00K","09P","04H","06M","00N","09G","02T","99J","04V","10R","04J","12F","10N","01Y","07R","02E","10X","02T","00H","01F","02T","09N","03R","04E","02T","00N","09H","99G","10G","03E","04F","02T","02T","99G","08F","07X","99E","06M","04V","01W","99K","06L","06F","10V","05P","07G","06M","03W","99C","03X","05D","09J","03Y","02F","02M","00V","07K","06T","04E","11X","03H","05Q","05P","04Y","09Y","02P","03H","08F","00L","05H","00V","06D","11N","01K","07Q","12F","04Q","05N","02X","04Q","99G","00H","08F","00C","05X","04Y","00V","10G","04J","04R","10V","02E","03X","10M","02P","05J",64]
[65,"02F","10V","10D","10D","04L","09N","09H","02G","07H","03A","01A","01T","00J","09W","05C","07M","01F","05L","03N","99N","09W","05T","00Y","03K","02T","10R","99G","00D","05C","03E","06M","05R","03F","04D","07H","03H","09N","01C","05D","02V","10V","05N","06Q","03V","03D","09C","00L","03W","09C","06M","02G","01G","04J","03H","02Q","02T","04E","01G","04R","05X","06D","03W","06M","03A","03T","00P","10J","09G","09X","99E","04G","06W","10K","03L","09N","00N","99F","02H","00L","03H","06V","00C","10V","03X","07N","03W","06H","06A","07J","00C","09P","04Q","04V","99G","00F","06Q","02G","11C","99H","99Q","03K","99M","03Y","13P","04D","04N","00P","11C","10L","06Q","02V","08D","05P","06W","11X","02H","09G","03X","11X","07H","03Y","03L","09N","04M","01E","11A","04D","10X","05X","10X","10Y","08D","09W","03V","09A","09W","04H","04V","00M","10Y","03F","01Y","03F","99E","02T","03F","05C","01X","00M","01J","08N","02P","05R","02Y","03L","02M","11N","03K","03K","02H","04J","00X","05J","03X","00L","99C","99N","09C","03X","10L","06Y","02F","06D","11A","00J","00V","09N","00P","01K","06F","09L","00Q","11C","09H","10A","02G","99J","02T","99E","01R","05F","99E","07Q","10L","05D","03L","04Y","10H","02Q","10A","09Y","11D","02Q","00H","01W","03A","09P","02G","09C","02H","11A",65]
[66,"02A","05N","01C","08J","05P","02D","00L","09N","04R","03V","02V","12F","02X","02Q","06T","08J","03W","00P","05J","05F","00R","03K","04D","02D","05D","06T","09F","08T","02R","05X","02M","99E","99Q","05T","02F","10G","04E","02F","02T","99Q","06D","09X","99Q","00H","99E","05D","02A","01T","10X","10V","04R","00F","00H","00C","99F","04L","09W","09P","00M","09L","10A","02D","99J","09C","06F","05Q","06D","10M","04V","05P","99G","01T","05D","05D","02Y","09P","11A","08A","03T","00P","10L","04L","03Q","02T","00K","12F","09H","04H","04V","10M","99F","10K","99K","09W","99Q","00P","05R","99F","02M","02D","12D","00F","02Q","04L","06V","02A","00J","07N","09P","04V","09H","99G","99F","99G","05D","05A","02N","08G","07K","02X","02T","08X","05H","11T","08P","03X","00T","08P","04C","08F","05C","10R","99A","01E","03L","05H","06K","03V","00T","10X","01E","09A","01Y","05C","00X","01E","02E","11T","03N","01E","06N","11C","12F","01C","04R","11H","01W","99E","10Y","04J","99F","03A","03Q","05T","05G","04M","99E","05D","01T","02V","05V","99F","02G","10M","01X","03D","04L","10Y","02Q","01E","10A","07H","02D","05X","05F","02T","04H","03C","02E","05V","10K","03N","10M","02T","99J","06K","04V","01J","13P","12A","02G","04J","06V","09H","02F","09G","03H","99D","02E","03M","05Q",66]
[67,"12D","02Y","11T","10E","02D","00M","08F","03Q","04H","00H","99A","09J","05J","04G","03X","08C","04M","00D","00X","04Y","04R","02R","05D","06T","02Q","04L","00D","04E","02E","06L","10D","12A","04R","01C","02R","02V","10C","03W","06Y","02X","04D","02P","09L","11T","02Y","05J","12F","99M","02N","06D","06F","00J","02T","99H","09F","01R","12D","04Q","07H","05R","04R","01T","01W","11C","03G","05D","06A","03Q","05D","10K","09H","05Q","03T","01W","11T","03A","04N","02F","09Y","10J","06M","99J","05C","11E","03R","10G","01T","10E","04Y","07H","12F","05C","09N","12F","06F","03V","09H","11M","01H","00F","99E","10M","04L","00D","03R","02H","00D","03Q","04G","06V","01C","09C","05G","04Q","99E","01G","09F","04R","10E","09X","12A","00M","02H","02D","01Y","02V","03R","00P","03J","10H","04G","00W","03J","12F","03V","10J","01Y","05J","05A","06T","01T","10X","10R","00W","05T","02R","05J","03R","08Q","10R","11C","02E","03H","02P","00K","01X","05P","00D","09N","10A","03E","04L","07H","10K","06K","03R","11X","02G","07K","04Q","03K","00V","03K","03D","12F","02Q","03W","11T","03K","03L","12D","05H","00X","02F","04D","00X","04V","07J","02T","99H","05V","00F","12D","09F","05G","02X","07H","09W","02R","09F","09C","10C","10H","05T","00X","06M","04L","04H","09W","01E","03D",67]
[68,"01C","01H","02M","00C","10A","10D","10V","07H","09D","08F","04V","06F","99F","06F","05Q","09E","03T","04C","99E","11A","99E","03V","05G","01R","06D","10N","02P","08N","01A","11C","02T","00J","01V","12D","00Y","09L","09J","99M","03X","03E","09H","00P","03Y","09J","05N","00D","00H","12F","12D","02A","09J","03W","10E","99F","05Q","08F","05P","02N","00X","02F","08F","09G","02E","09P","11T","04E","08T","05F","03W","99K","10N","01X","09J","00T","04D","02N","09X","00F","07Q","02H","03Y","12A","99H","99J","10N","00D","05J","02D","04L","02T","01T","05R","04N","06N","10K","02Q","03H","09C","10K","02P","04H","01D","05D","09J","12F","00K","10V","02F","12A","99C","08G","03F","10G","00D","09L","00M","04L","11C","01W","03X","10H","10D","10T","04R","04K","99D","08F","01Y","05C","11C","12A","06F","03L","04M","00Y","10K","05V","07V","01J","11T","06W","01W","07N","04R","05X","01W","03R","00H","00P","01A","05L","05Q","03R","05F","03K","00K","00J","04L","00H","02A","06K","07Q","00J","00D","02F","04G","05Q","03A","06T","00H","04M","08T","05V","02P","02X","02Y","00T","12A","08F","99E","00N","03R","10E","04J","10Y","06Y","00X","02Q","00F","05Q","02T","01W","01W","09J","05R","07G","08F","08E","03T","04V","99C","03H","03T","00D","11M","10D","06F","04Q","03R","01R","03X",68]
[69,"01G","11T","02T","04H","09J","99Q","12A","11M","01N","05T","05A","04R","04H","11H","09J","05X","00J","13P","09W","04V","05D","04R","02F","03X","05V","10X","00F","00N","03X","01W","01V","02Y","03W","08F","04R","03Y","04D","08F","02N","02H","05T","09N","03R","04V","09F","02D","09N","10M","09J","06F","10Y","05T","02Y","04V","00X","99E","04G","09J","10J","04V","05D","00X","02Y","09X","10D","01W","12A","04D","03T","03D","08M","03E","04D","99G","10V","06L","01W","02T","01Y","09N","02F","03Q","05G","10A","02N","09N","07M","09X","02V","04V","02H","99K","10A","01J","02P","10N","11C","99J","10E","99N","07H","00N","03K","09W","09N","02P","01E","01C","06D","04N","02H","00M","00X","03X","04D","09N","03Y","05P","99J","02T","11M","99E","03G","05D","99A","10M","00V","08F","03N","99M","03L","02D","10X","07L","00P","05J","05T","10G","07L","08E","01Y","04K","09A","01E","01Y","06W","06W","02P","02A","08P","03A","03F","01R","06D","05R","00M","04N","10E","04H","02D","10A","09W","02V","10A","09W","99G","02D","03V","06L","01C","99J","02N","04J","02H","01T","04V","08F","00V","00C","99G","07Q","99M","02T","06T","04H","06W","05C","10L","02G","99K","05J","09N","99G","05D","11A","04R","01A","07H","05G","99D","04M","02H","09J","02M","03X","10K","03Q","03E","02T","02T","07K",69]
[70,"99D","11N","06W","06M","04D","09F","00T","02M","10A","01C","10R","00D","01A","02F","06A","01T","09W","01T","09J","07Q","99C","05G","00R","04H","06H","01R","04K","08R","04C","10Y","05T","00V","99M","99F","04D","02X","04J","06Q","07J","00L","10K","03R","02P","04R","07K","10N","09H","11E","00K","02F","04L","07Q","99G","02G","99M","04R","00X","03G","03K","03L","07H","02P","06Q","10J","00T","02N","01E","09C","11C","99F","07H","12F","02T","03R","03Q","00K","09P","01X","05D","10N","02Q","10H","05W","99D","03H","00L","09E","00C","00K","11A","03A","00P","09Y","07Q","04R","99Q","09W","01H","03Y","99H","09W","06F","01E","00X","07H","10G","99Q","11D","03H","10D","07N","07H","11N","11M","08F","06M","99F","05C","06K","10D","11N","01A","01Y","10D","01A","04G","03Q","03V","02T","00P","07Y","05X","09J","01X","09J","03G","06F","03F","04K","06K","04F","00M","08P","01W","03A","00H","99H","05W","02T","10X","00M","04J","03T","03D","01N","03E","04E","05J","01X","04D","06T","02T","09C","02D","09H","02T","00K","04V","01E","03G","03V","04H","04R","00N","10K","05P","04Q","00M","02D","09L","02A","01F","01D","03Q","01W","04Y","05X","03A","00H","00P","09W","03M","10H","03H","07N","03V","00T","08R","05C","99Q","04V","02F","03E","99M","04M","00X","99Q","05C","12D","02V","10K",70]
[71,"00M","02D","04V","03T","01N","03W","05T","02H","99E","05X","02T","01W","01R","08T","08T","08T","99K","99M","00F","11C","03Y","06M","10A","04R","10V","06D","09N","00R","04D","03T","00L","00K","09H","06M","05D","09X","09H","09Y","07K","02A","02F","00C","05N","06M","99Q","07Y","02R","03T","03N","11T","99H","01A","09A","11A","03H","12D","04H","04V","02D","12D","09H","01A","00T","05J","03V","99G","09W","03A","03V","09P","09E","99E","05Y","04Y","05W","01T","00N","99G","04V","04V","07Q","04V","05X","08F","08J","05T","00D","01F","00D","02G","00K","99F","04M","01W","99C","05G","02X","09J","09P","00C","03X","00P","06P","03X","09P","01C","06M","02P","00X","99E","02D","10G","04D","07K","05P","03L","99Q","03G","03K","06Q","10D","00K","05D","02V","01W","99J","02F","01F","99M","04G","09C","10J","07R","02D","10X","05X","06A","01G","03R","02H","03V","00P","03V","11H","06T","01Y","00P","10M","09H","99A","09H","01Y","06D","05V","03Y","02E","11X","05P","03Y","05G","04V","03X","99N","05G","02A","08J","04N","04J","06Y","02A","01W","11X","04F","08T","09X","02V","04F","12D","04K","10J","09J","05P","01A","02G","99M","11E","06L","10Q","05X","03D","03A","02H","09G","01A","02P","03H","01C","10T","04G","03F","03H","05R","04E","03G","04Y","05G","04V","04Y","00X","03H","05N",71]
[72,"05V","04V","04M","01A","01R","04R","02F","99E","03T","10K","10A","08T","06M","99C","00F","07N","09X","07M","09D","10E","09C","03M","02R","05C","10E","04H","01H","09H","03Y","99M","09F","01Y","08T","01V","00J","04H","06Q","09C","09G","05R","05D","04E","99N","07H","02M","04E","10V","00H","10H","06L","99F","09N","10A","07H","10K","01A","00Q","02V","10E","09X","04D","04N","04E","02T","09W","04V","02F","08F","09N","99Q","06W","02V","12A","06A","05X","10M","02H","03V","09F","08T","06F","03X","00V","99F","08D","03V","02G","00D","10H","99E","99E","03T","00F","06F","00C","09L","00C","02T","10Y","09Y","04L","08F","00Q","03Y","05F","99D","05C","10M","02X","01X","99G","02E","03R","00P","09Y","09F","11M","00H","06D","12F","04L","06F","00K","01X","00M","02P","02H","09D","01W","10R","99M","01N","00Q","05P","03R","04R","02X","07G","04M","05D","05P","05P","00P","07H","99D","03V","01M","00N","01F","00P","07H","01R","08E","09Y","00C","02X","05D","00X","02X","03X","05N","06K","04E","04Q","10A","04H","00N","06T","99D","99K","05T","02Y","03X","02Q","99F","06T","10K","02E","04H","02E","03R","00G","03V","02V","08F","05X","03A","03R","01D","05A","04H","99C","05F","02P","04R","08J","05Y","07X","00G","06W","09P","06Y","06W","05Y","09W","99M","10E","02V","03T","00K","03K",72]
[73,"00J","01E","05N","05V","00J","01K","01A","04N","99Q","00L","04M","99E","04J","06T","09W","03L","09L","08N","11N","99G","05C","03Q","10V","10A","06K","10V","03Y","04K","05P","03D","11T","03K","02T","06W","01J","06D","05G","05W","10L","99D","10A","08F","09X","01C","09J","07Q","05P","09N","05D","05P","10E","10J","11C","99C","06F","02F","03K","05P","02N","02D","01E","05J","01R","02N","05A","07H","09C","02D","00V","00V","06F","00N","05V","00X","09C","10K","10E","00D","04Q","03V","04M","06F","02V","99K","07H","04Q","01R","03K","09P","00D","06W","04M","06Q","02X","04Y","02V","07H","09F","99J","10Y","10A","10V","07G","10R","00D","11N","11T","99K","07Q","02D","10C","01F","10A","07J","03Q","00V","02E","04Q","06N","01X","03M","10G","10M","03K","05P","08J","01X","00Q","03R","03F","07W","08C","07H","13P","05X","10R","99D","02D","08N","11H","12F","00Y","08Y","03L","03R","00Y","10K","06Q","01J","01W","00H","04Y","02Y","00L","02N","05Q","09N","02P","04N","11D","02Q","02G","01A","05P","02T","02F","04V","09W","10V","99D","07M","07M","04Y","99N","99N","00C","99K","05W","05D","02W","06L","01W","05P","03H","06D","05G","07G","10K","11M","00F","02H","00P","11C","05Q","06L","99F","09F","99E","02E","09J","11A","10D","02P","05G","03D","03R","02M","06D","02X","01C","04V",73]
[74,"10L","03G","02D","06A","08T","01F","06D","09X","10R","99E","06A","05J","05Y","00F","02N","08X","07H","00X","09P","09J","08T","02H","06T","02F","00X","04Y","10Q","04F","00X","04E","00T","09X","03T","05D","09J","01C","03W","04D","00V","04V","11T","02E","04N","08F","02N","05C","05Q","10Y","99A","07H","02P","04J","02D","02E","04V","05Q","09D","03V","01X","02N","00J","04V","99C","03N","09J","01V","11C","02T","01F","02T","04V","04R","02F","10K","00T","09L","00J","05H","09N","03L","04D","99F","02A","07K","10E","10J","09D","99M","99J","04L","04M","09X","12F","01F","02E","10G","07K","12A","09Y","12D","99A","07G","06F","04R","05N","01A","10Y","05N","02E","05Q","04J","04R","03A","06F","05C","03C","03H","03W","00L","09C","01H","07H","00T","06T","06N","04Y","01D","01W","03L","07H","05J","03F","03R","03R","08K","04V","11D","00K","03L","00N","10Q","01J","03A","10J","01X","00N","00N","03W","01W","07G","12D","07T","04J","03Y","06D","05X","06W","02X","03R","03R","02Y","04Y","04L","06T","04M","04Q","04L","04E","04L","05Q","99G","01W","08F","05D","01V","04J","03L","05G","05C","11D","07K","05L","05C","06M","03K","05C","02T","10M","01R","05H","02E","09Y","03H","05V","00K","01X","11N","02P","10Q","04D","09G","00K","11A","00T","03K","03E","09F","99N","11J","03A","05F",74]
[75,"99K","05C","02Y","01J","08G","10L","07H","01X","04V","05V","05T","10M","08F","01R","06D","00J","00P","10J","02A","01V","13P","03Y","08F","04Y","02G","01V","10D","07N","08J","99G","03G","10A","02M","07H","04V","00M","10A","10A","00D","05W","07Q","04Y","11X","12A","05P","02G","01D","06W","06F","05N","00J","09L","00W","10J","09Y","05G","00F","01A","10Y","10Y","09J","06V","01X","06K","02V","03Q","04F","03T","04Q","02Y","07L","06Q","01C","09N","05Q","03L","04E","00Q","99K","00C","11A","09F","09X","05X","04R","10E","11M","06Q","03X","00F","01W","09C","00L","02H","02M","02T","02Y","02Q","09C","11C","04V","04F","03X","04F","12A","02D","03L","00X","99Q","01T","99F","11C","06M","05D","04V","99E","02T","02Q","02P","10K","02E","05P","03R","10Y","03F","04H","08L","03A","03F","02T","10J","99E","01F","99C","12D","03W","02F","06K","03A","04R","03R","05C","09H","11D","07Y","01T","09L","12F","03L","03L","99M","00V","08A","01A","00H","07H","02X","07Q","03H","05R","08T","05P","03L","99H","05F","03X","11N","06F","99G","09C","02H","04J","06N","01X","04Y","04L","08R","01Y","00D","09C","10C","03L","05J","07G","05C","04J","07M","05Q","04E","10H","05D","10E","99M","01W","03R","01C","02M","01N","03Y","03W","10E","02G","10E","06A","11X","02F","09Y","07N","99M","99K","99E",75]
[76,"05P","99E","05P","04J","99E","05N","06F","02T","10V","04V","04Y","02H","05X","05D","08F","02T","10J","04G","10H","10M","01R","10W","10R","04V","02M","99Q","09C","09D","02Q","09Y","99E","99K","05Y","02M","06D","09W","12F","06F","03M","02M","06F","99E","02X","05V","05W","06N","01W","09H","02X","02D","99C","02F","00T","12A","11A","02V","01J","09W","09Y","06Q","00L","12F","99E","02V","01E","02D","05D","99Q","00P","09J","04F","05X","04V","02P","00D","05X","00C","09W","10A","09L","05P","99Q","10Y","05A","09C","00V","00N","05T","03R","10K","09J","06M","00N","08F","03M","01V","99G","02E","09F","04E","09H","01E","02D","08J","10J","00V","00M","05X","03R","00J","12F","05D","03D","00K","03H","11T","10D","02V","05X","02D","09F","10H","10N","02T","10H","06D","03H","01T","02H","03V","05D","03R","06F","01F","00K","07G","04R","12A","01D","02F","02R","03L","09D","01G","04Y","03C","10R","06N","00N","04K","05H","05R","05T","05G","04E","99C","03R","00F","10N","02Q","04F","10D","00P","01X","03Y","02Y","03Q","02F","04J","03V","06D","05X","01W","02G","04E","02A","03X","02N","99E","06N","12F","10D","02A","10N","12D","99C","11A","99M","00D","03K","01W","05Q","11A","06D","09C","05T","09G","01F","10A","06M","11C","06D","03R","06W","00L","02H","11X","04R","99Q","09F","11E",76]
[77,"07J","09W","99D","02T","08F","02T","03G","09J","03X","10L","06M","99M","05G","09C","04Y","99G","99F","04E","03T","02P","05L","05P","02V","05D","09N","04M","05D","01W","04V","99H","02V","03D","06W","10K","10V","02Q","00K","10M","10J","99F","07H","11E","99G","05Y","06Y","01T","04J","05G","10N","03G","09Y","10H","03X","10D","09G","09D","07Q","99K","10M","00J","04V","01X","04K","03R","99Q","04M","03K","11D","09L","05N","03H","99C","06W","99J","09L","02M","06V","06P","00V","03K","03Q","04Y","04H","02D","09J","04D","07N","02G","12A","02X","09G","09N","99M","05P","12A","02M","03L","04R","02P","10M","05D","06T","05Q","02G","03L","03Q","03F","04N","09W","09C","09C","11H","06D","05N","02G","08J","02M","03Y","04N","00J","03H","99M","09C","12F","09D","99K","02A","03L","10R","04R","05P","07L","08V","06P","99C","02E","06W","00M","08P","06A","07H","03R","05P","06K","02G","07H","12A","05D","01T","05P","04F","05G","01X","04J","05D","09C","04V","05C","03W","01C","07N","11E","03A","08T","99C","06D","02M","01X","12F","01E","02G","08J","02V","07N","02E","04Y","99D","02D","04R","10D","05D","01R","03Y","05G","02E","07K","01W","03D","06N","06D","02P","00X","02P","05J","08T","03Y","03G","11M","00Y","07Q","12D","99C","12F","03T","08T","02N","11A","03R","07J","02N","06Q",77]
[78,"07H","09F","02A","00V","07N","05C","05A","02N","04L","02V","05Q","07W","10R","09J","07Q","03V","05R","10M","03J","01X","11H","04E","09J","04L","00P","09D","11C","02E","02D","00K","10R","02X","09J","04V","10A","04F","99H","00L","10K","05V","09Y","00J","05V","03G","09C","99M","99M","04J","03H","03W","03R","10V","99Q","10E","02E","03K","06M","12D","12A","07H","02V","03R","07H","00X","05D","02E","10G","11N","00L","12D","10H","01H","05T","03W","04F","02H","03E","10D","00D","01Y","08F","02M","06M","06M","02X","99K","08J","06K","00V","02P","02D","06Q","10M","08J","02N","09N","03D","04L","04L","03A","04Y","00Y","02G","06T","02H","10Q","07K","05D","03A","04L","01A","05H","09G","09J","04E","05X","12D","08J","01A","99E","99Q","08P","01R","00H","00P","06Y","06T","12F","11C","03R","01D","04R","03N","02R","04E","09L","04N","10R","03X","05Y","04G","00R","01W","02E","04V","03A","05L","09N","04F","01F","03V","11T","01Y","11D","10D","02N","02N","03Y","11T","05C","03Y","10C","09N","05W","01W","08P","06Q","05G","06Q","03F","99N","03R","02Y","06L","04M","05F","02P","09C","06A","07H","10H","06T","00D","06D","02M","03Q","99G","04M","02D","03E","09L","01A","06V","07Q","03Y","06T","10D","09H","00X","05D","00C","99J","00L","09Y","02T","10G","06V","06Y","06D","07Q","02N",78]
[79,"03F","06L","01V","02E","00Q","05R","11T","00K","06D","10R","00L","02Q","05A","00R","03K","00K","04N","01J","05P","10C","04H","03T","06W","05G","02H","99E","00X","09W","08F","02H","99F","07Q","00T","05Y","05G","02F","02H","07Q","04M","10M","06Q","05C","01Y","10K","05R","04C","04E","00Y","04R","12A","11E","07N","02Q","11X","10D","04H","10R","02Y","04Y","10M","05T","10M","03W","10K","06Q","99F","09J","03X","04D","05W","01F","01C","99F","04L","03H","12F","07H","01W","10J","06V","10D","12D","07K","05C","07G","02F","04E","02F","10L","06F","06Q","09W","04D","05C","07H","99D","00N","09P","10H","09P","09J","00J","07H","06W","06Q","04F","09X","09H","10D","02V","08J","06N","04L","00F","02P","02X","02D","03R","10K","02E","04R","06N","05W","03Y","03N","05X","01F","00N","10J","12D","03F","03L","04K","11C","12F","08A","03H","04G","02P","05V","06N","01F","07Q","10C","00N","05Y","00H","02R","03C","05X","02D","03Y","09N","02X","02D","11N","00P","04G","04V","00L","00C","04R","02E","01W","02Q","02H","01T","03K","99C","01A","05R","00X","03R","00L","04V","06M","01E","10A","04L","00K","03D","12D","04Y","10C","09F","02Y","06T","03K","05T","09X","12D","02Q","04Y","10Y","07K","00C","03V","04V","06M","09Y","10H","02X","03D","01V","99G","02P","03M","03V","03A","00M","99N",79]
[80,"09H","07H","99E","05D","02N","99G","01D","06F","05G","01E","02M","10Y","11T","10H","05A","03R","09H","01R","00N","12D","02F","02A","04J","05P","11E","08F","03L","00F","05L","00V","08F","99H","00L","00T","08F","06F","10G","00P","11C","10J","03W","07H","01H","01A","05F","00X","10N","01G","02E","03V","10J","09Y","00X","00F","09J","09H","03Y","99D","07Q","12F","11T","99N","05Y","10H","06M","03L","00Y","01W","10A","06Y","05P","09D","06M","04V","05D","99Q","01H","10E","11C","08J","02M","09Y","05N","05N","05P","10A","06Q","03V","99N","03X","06V","09L","09C","09J","03X","05R","10M","03M","99F","07H","08F","04R","01R","02Q","04V","02N","00T","03K","10K","02E","11J","10J","08F","10L","00C","02A","03X","06L","03G","04V","12D","10R","11H","03V","02T","02T","05H","01E","02E","09Y","03V","09J","10D","00Y","00N","04L","10E","08P","03V","03R","00H","06N","01F","03V","02H","04G","01R","00T","12F","02T","02E","08L","10A","05P","02E","01Y","04Y","04N","02V","00C","00L","03H","99G","04N","02G","03K","04E","02H","04V","02Y","00K","03K","99G","03A","10D","99F","02Q","02H","12D","10C","99N","01X","09W","02Q","11C","04D","00V","05F","08T","10K","03D","05J","04V","10J","04E","04M","06W","12D","10W","09H","02N","03L","01T","11C","10N","00K","03X","10D","02N","05H","06W",80]
[81,"05C","02N","08F","04C","06T","99E","01E","00J","03K","02T","04R","04D","10X","06P","11T","00N","03V","07Y","05R","08F","99A","10N","07H","12D","02V","01K","11N","05H","08T","02X","04V","04N","03K","03G","04J","03W","01F","99D","09E","02Y","01C","11N","03L","99Q","03W","07N","06D","06A","11H","09P","00D","01F","04E","02P","01H","09J","04X","05V","08F","01Y","05A","10Y","00N","02Q","00H","99N","10C","04Y","00D","02A","00K","01Y","99D","02X","08F","09F","03Q","00R","99H","03A","09H","02P","08F","04Q","01T","09Y","01F","06W","09H","11M","09X","05W","00D","03V","99H","02X","00F","99M","10M","00N","05G","05G","01M","04Y","02X","01W","05N","11J","02Q","11E","06Y","03R","01W","01T","01X","03K","11N","04V","11A","03R","00C","02E","04L","05A","04R","02F","03X","09H","10G","03L","02P","00P","12D","07X","02P","07H","07M","02H","00K","06N","10T","99E","08F","09L","99K","05P","05X","06K","05X","03R","04L","05Y","02H","03G","07H","04R","09X","02Q","99F","03Y","10N","11M","04N","04J","06M","04Y","03L","02Q","09X","04Y","06N","07N","03H","99Q","03R","03X","00C","09X","10A","05D","04D","09C","04M","11A","04L","03K","03K","09P","08R","04H","04N","02T","10Y","10E","02F","99D","11X","09J","00L","03V","99J","03Y","03K","10A","05G","03H","00C","06L","02P","06W","03Q",81]
[82,"05Y","01C","03V","09W","05G","02M","10K","03M","05T","09P","03K","10A","10A","99M","05T","03H","06M","02Q","04J","10H","04D","05Y","04M","09H","05J","04D","01W","07P","02F","04M","01D","03V","06Q","02V","06W","00H","10H","05V","99N","04M","03T","04V","04R","99D","07H","09Y","05Y","08F","99G","08F","02E","00N","01F","02D","03Y","10V","05T","07J","12F","12A","03T","02X","10D","09F","08F","02H","10M","03R","99K","01V","01W","02H","01V","05W","00X","04V","04R","04E","05R","07H","99C","11C","99C","12F","12F","06Q","09Y","11C","03T","02E","12A","01F","07Q","06K","10D","05W","05N","11E","09L","09G","09D","02V","12A","02D","09L","09H","09D","99D","02P","11A","02Y","01W","02P","03E","01W","02Y","11C","11T","11M","09J","02M","01J","00H","04H","11C","08P","04M","07G","00K","06F","03R","05H","04G","07H","00M","06K","02Q","09C","09H","03F","01X","02H","03L","05H","04R","10Q","99C","10Y","03R","07H","03L","09W","04L","03R","10W","01G","01H","00N","06A","05N","05G","08F","02D","00L","04R","07N","00J","03E","07G","03M","99C","99G","08P","03H","02D","10E","04N","02P","07N","01F","11A","03Q","02Q","05P","07J","03H","04J","04N","07N","00K","05P","01X","08F","02E","99G","02Q","01E","02E","04J","10L","05P","07N","03H","12A","05N","11D","11C","01Y","10Q","09J","00J",82]
[83,"09L","05P","09W","09N","06W","05P","06A","04E","04J","10D","08F","07M","02T","03Y","11C","09H","08F","10Y","06Q","03H","09J","99A","09C","00R","03Y","07H","01J","02G","09H","00N","09P","01F","10J","01J","05T","03F","02N","99F","09P","03W","04M","00D","12F","03W","04V","10T","07K","11H","00C","06Q","09C","06Q","11M","11N","05P","09E","09H","99Q","01R","00N","02R","00P","00X","01E","04G","05P","06W","99C","10J","03W","12F","11X","07Q","04E","10M","10J","12A","08W","00J","99K","09W","06V","06Y","06D","06F","07Q","05L","05V","03L","10J","03E","00J","99H","02P","09W","00C","06F","02V","12A","08F","00R","03J","04H","04M","05C","10K","05Q","09C","12D","03X","01Y","05J","05F","02H","09J","05R","03M","06Y","01Y","01T","02G","01E","99N","04N","04G","05D","05G","03R","05H","08H","05H","04G","00P","02F","99E","03L","01T","05D","04L","09C","01K","12F","06N","04G","04G","03R","10M","09C","00R","08Y","04E","99A","00X","07Q","11X","11C","99E","03H","02Q","04F","02P","02Q","00K","03J","05C","00L","02V","01V","05V","05R","07K","10D","02N","03R","06Q","00L","08G","02G","09H","03F","04E","02E","01J","11M","00X","06K","02F","00X","10E","11H","05A","00K","09C","00X","02Q","10N","04M","01X","05L","02Y","03Q","02Q","02H","09J","03A","05X","12D","05V","05P","03K","02E",83]
[84,"01E","04Q","09J","99G","05Q","11T","03T","06V","02N","99D","05Y","10J","07H","04H","06F","02A","02Y","03K","04E","99M","10R","09P","01N","99E","99C","03T","00L","03N","02T","06F","01C","04V","02V","01E","06F","04R","09Y","04Q","00F","09N","06K","06L","04V","04M","04M","10J","05G","04Q","10G","02Y","09L","01T","04H","02T","11N","00R","03J","02A","11C","99N","01J","06Q","09G","10M","03W","06W","99F","02Q","09F","03V","01T","03L","09F","10V","05C","06Q","00K","05G","06Y","00J","02T","03A","11J","99M","12D","06Y","10E","09L","04E","99C","03L","08F","01T","07G","09Y","07N","10H","05P","99C","11A","03N","01A","09Y","08N","11C","05N","00V","12F","00D","09X","00K","09Y","02H","09X","02E","01C","02G","99K","02Q","04E","02D","09C","03L","03H","07H","12F","02P","01A","08P","05C","10N","07X","99E","05Y","01X","08V","02G","09L","06P","03V","03C","00N","03C","10R","04H","12F","01E","04V","02H","06N","05Y","01C","02G","04R","07J","07J","05C","01V","06Q","08T","03H","02N","01E","99K","03A","09C","09G","02P","01G","01G","02P","05V","02P","08J","07H","03Y","00N","07K","02A","05J","09G","10Q","10D","04F","12F","06L","03D","11A","01F","05P","99M","02N","01X","02M","02G","06D","10K","06T","99Q","00H","02P","10E","06M","03K","99C","07J","99M","99J","02H","05W","00C",84]
[85,"01A","05V","03D","05J","09C","04M","03W","03X","06M","05D","99E","01N","03A","04F","04R","04D","09N","04D","99N","00C","06T","99C","05A","09J","01W","00Q","10L","10N","04Y","03L","05D","04Q","99H","05V","11T","06Q","10Y","04R","04R","06W","05V","99H","03Q","09H","12D","01J","01F","02X","99M","05V","02T","00T","02E","09Y","04L","04J","10J","10L","01M","10K","12A","06W","05D","12A","11N","99E","07Q","07J","10D","08F","03V","99N","04R","08R","02D","99G","09J","07W","99Q","09J","02G","11X","09L","99H","05H","03D","11C","00L","09Y","99H","05P","09H","05R","12D","09C","04R","99N","03H","05P","09C","05Q","02F","10H","00R","06L","08F","02A","04D","10E","09J","05X","02X","03H","12A","01H","10A","04Y","99G","09W","11A","03X","02H","02X","03F","06F","00K","02G","05P","03V","01J","10M","05C","01W","10E","01T","99C","03K","01R","10E","05R","00Y","07H","02T","05J","05D","06N","01G","10D","06W","12D","01D","05P","10K","10K","01F","99E","02D","08F","05W","99C","99C","11X","03X","06Y","10D","10N","10Y","02M","12A","03E","03Y","05C","11A","09F","99E","05G","08J","06Y","05Q","05C","10L","05Y","04L","00C","06V","03R","10D","03X","05G","01A","00X","02G","04D","02G","02X","02G","09P","10X","10D","09X","07Q","05G","09H","01G","09G","02Q","04Y","99C","03H","10L","02V",85]
[86,"03G","09J","04Q","09P","06D","00V","07Q","04Y","10N","01J","01V","04G","05T","04D","04D","10D","07K","10A","12D","04D","10A","99E","03J","07H","00K","12D","05P","07M","06T","02A","09D","11C","11C","12A","12A","04V","04V","10G","03A","10N","00T","11A","01X","02Y","03V","07G","00M","06Q","07T","99N","03X","11C","06H","01H","06V","02R","99C","01C","02Q","10J","00Y","03A","11E","02D","05Y","09N","06T","02G","07Q","07K","09W","99Q","07H","01D","10A","99F","05P","07Y","03D","04Q","03A","99M","99M","02Q","01W","05N","99C","07H","99C","00J","99N","02V","11C","07H","00J","06F","06L","07Q","12F","01X","04J","10A","06T","07H","02A","03H","06Y","05G","09F","99G","03L","10R","02A","08F","12F","12A","07Q","01F","12F","09L","02P","08C","06L","05W","03R","03L","05Y","03J","01A","99A","10R","02E","08Y","99M","08P","08X","05Y","10C","00X","04E","02F","04G","03N","00K","02P","03N","02F","01F","09W","00R","02P","03K","07Q","00K","05J","06L","03Q","12A","01F","00V","02N","03Y","04V","00H","11X","00V","03X","07K","04N","05C","04E","04L","08T","06V","02T","02P","05W","03T","09N","10Y","10M","04F","05Y","04Y","99C","07N","02G","10N","00X","99F","01A","05D","03R","03M","06N","05V","01V","09Y","02A","02T","10D","01X","07K","07N","07N","06H","05P","04J","99F","99H","03L",86]
[87,"05N","02A","01E","01W","07H","05A","06Q","03A","03N","07J","07H","01R","04D","04V","10M","12F","06Q","07G","03Y","03R","03K","06F","04V","09E","99E","05Q","00C","07G","05J","05N","05Y","09P","09X","09F","04M","08G","04N","09N","01E","11E","07N","11X","05X","02V","00H","01R","03E","03Y","10Y","09H","12A","10Y","03Y","00D","99J","00Y","04V","06W","02G","06F","07Q","99C","05C","09Y","01C","00K","11T","10L","09Y","04N","04D","03X","99Q","03X","00M","05P","02D","08F","02Y","00K","03T","09W","01X","04N","02P","02T","03V","10G","01Y","03A","11N","03V","06Y","10H","02T","11D","12F","03R","00D","05P","01N","07N","01J","05Q","08F","05A","05G","99F","02G","03A","02P","09L","10C","03L","02D","12D","04R","00Y","03L","99F","04Y","08Q","99C","00C","05C","07G","11C","01X","05J","10Q","04E","10C","00K","03L","10N","05Q","01V","07X","05H","07Y","02D","09D","04G","03F","06W","01A","01X","03F","00K","04G","04G","07K","02P","01Y","10Q","05W","11A","01X","02G","02Y","04R","07J","05Q","10V","05X","11X","09X","02T","03W","00J","06L","06D","04D","10Y","99G","07G","99Q","02X","08T","01W","01V","10E","09H","00V","05D","08G","02Y","01H","11X","00X","00D","06N","06F","05P","02Y","04J","03W","10R","03V","09W","10C","05V","09G","10D","08P","04Y","09G","11A","12F","03G","09N",87]
[88,"02V","11X","10K","04L","04R","01C","06W","10D","10X","09D","11T","10R","01C","07Q","10H","09W","05N","04H","03W","00N","04F","04J","08T","08F","01X","09H","07J","02D","10D","00J","06A","03E","05R","09J","07Q","08J","05V","04M","09X","12D","99F","11C","09F","04Q","09W","06K","09X","99Q","05P","01C","02D","06A","11X","02X","12A","07H","10H","06L","05Q","01T","06F","99G","06A","02M","12A","02T","02R","09W","03D","12A","10D","06F","09L","11T","99G","12D","04M","07N","06Q","02Y","02N","99C","03G","04G","09D","99M","05T","00J","01X","04Y","10D","02Y","10C","06H","10E","05Y","10A","03Y","01W","10E","03T","10Y","04V","07Y","12D","03E","11E","04L","03Y","04R","00L","10Y","10D","09Y","07Q","03W","10E","07K","99Q","10Y","03A","01W","06T","10M","03L","09C","04E","02H","09L","99E","01W","06W","02H","02G","02E","03X","02V","06T","02E","00K","04M","12D","03R","03R","04E","01K","04L","04N","08P","99E","03X","06T","04C","02A","10L","05P","02E","99G","06D","04E","00V","09H","99E","02G","11M","02P","02H","00N","02A","09J","06T","00L","02Q","06F","11A","04F","00M","03H","05Y","05H","07J","08F","12D","11X","99P","09W","99C","99G","05J","12A","00K","03Y","10C","12A","04F","04Q","02Y","00D","03Q","05R","06F","07K","10M","10J","04G","00D","02P","02P","10L","04Q","09X",88]
[89,"09F","99D","09D","01D","02F","11N","09Y","00N","12D","02Y","10X","00X","09P","05L","10A","02P","05W","10T","10Q","02A","06F","06A","12A","04J","02E","99F","04Q","02Q","04L","12F","10L","09Y","00J","09H","09C","05T","00P","99K","01H","09P","10J","05D","05P","06Q","02A","03K","09Y","09Y","03R","04Q","00F","00P","10D","06F","99G","10A","10M","04R","99C","99J","04M","02E","00V","01K","07Q","10K","10K","02N","99Q","04V","11C","04E","02M","01F","07K","00J","09Y","99C","06W","06M","09F","11A","01C","07Q","02E","99H","02D","10H","00F","02D","05C","10M","10G","10Q","03R","99K","11D","06V","03A","10D","10V","06D","09L","10D","02T","11D","10A","03N","03M","11M","99K","02H","04Y","05C","10C","00D","99C","99C","01X","04M","09W","04G","04N","09C","09J","05V","08N","05X","10Y","00R","99J","10G","09D","04K","05P","10X","00F","11D","04C","05T","05Y","01T","05X","10Y","04Q","02D","04G","05A","08F","99M","02F","05T","04E","01E","00T","00C","08F","02H","01C","10C","05F","10L","09D","07K","02P","07M","10M","06K","05F","04M","02Q","02G","10A","01V","09J","99G","06N","09W","05P","10M","01T","02P","09J","04L","10L","06N","04R","10Y","12D","08F","03H","02E","00C","02H","08J","99K","99F","03V","11X","10D","02T","01Y","00V","05D","03R","04L","07Q","02H","01W","99D","04E",89]
[90,"03D","03V","04R","05T","04V","09J","09C","01W","04Y","07H","10D","03K","04Y","08F","04V","02H","06Y","07Q","11M","10Y","04C","06D","03T","03T","00C","05G","00T","07H","04M","10H","07H","00M","06F","00R","00L","04J","07Q","99H","00C","10K","06W","06Q","99J","06W","10K","08F","06Y","03V","07H","09C","10M","03V","03K","00J","04M","04M","03N","05R","03Y","09F","01C","03G","05J","02P","06W","06Q","09L","03Y","06Y","05F","05H","11N","09Y","04N","02R","01W","05C","02E","00P","11D","03H","05P","09C","10Y","10H","07N","08T","10J","02H","09Y","00P","09Y","03V","99E","03A","00M","04D","10E","02X","02X","06D","07Q","99M","01R","00J","05G","07M","04Q","02D","10K","02X","04G","02G","02T","00D","01V","02P","10V","05G","04Y","02X","03R","11T","00N","12D","03K","03L","05C","12A","05X","06Q","11D","04R","03A","03J","01E","00P","99H","03N","03J","01A","05X","10Q","12A","06Y","01X","08L","10E","07Q","12F","00F","02T","09J","03Q","03E","99D","07H","00J","05V","03L","02G","00J","09J","11T","99G","05G","04R","03L","09P","05V","03H","10A","05G","09W","09C","05N","01T","00T","11C","04R","00C","00R","99E","04G","02H","04R","05G","10H","09J","09J","07J","00N","02A","10K","00V","99J","05D","11X","09P","00M","11X","04E","99N","06M","02G","10Q","99C","04G","04L","04H","05C",90]
[91,"07K","00T","03W","00L","99A","09W","06M","03L","05D","12D","09F","04H","11E","10A","12A","02X","09C","00N","00J","11X","04G","00Q","11T","03J","01E","10A","03K","05P","07N","99N","10K","04D","06A","01D","10J","01D","08F","10H","03L","10L","09L","02A","11E","06F","04N","02Q","01T","00K","10E","99D","02X","08G","08G","04M","00C","06D","04F","09F","04H","04R","06M","99E","03T","02E","11X","02V","04D","02M","99M","00H","11E","09W","03W","00H","00P","12A","03A","02A","03V","05X","00C","02X","10D","03Y","04G","11C","99M","99Q","04R","04R","09E","11C","06F","03H","02H","03K","10D","12D","03M","03R","05T","10K","10V","04V","00P","01Y","08F","03L","12F","04E","07K","05C","02X","02V","99G","03V","09W","02R","02X","02V","10E","05C","10V","06N","07G","02X","01A","07H","02X","12F","03N","04M","02P","05H","02X","99F","03F","02P","01E","01C","03L","01X","01T","99H","05V","01F","03L","01C","04R","10H","04R","05D","03Y","07G","05V","99F","03L","04M","10E","02V","99G","03T","06Q","12F","04D","09G","01A","03R","00N","10K","04R","08P","04M","05N","01W","04R","99C","00K","01A","00M","02H","99E","10Q","02P","02X","03Y","02V","03Y","04J","04Q","00J","09X","02T","09C","02T","05Y","12D","05H","03K","07H","99M","08T","03L","00R","10A","05P","03A","03H","02Q","00F","02X",91]
[92,"10M","05Y","12D","02Y","10X","99D","09L","10K","08F","05R","99F","04E","05Q","99A","09Y","00R","03D","07N","10Y","12F","99M","01N","00L","05Q","03A","08T","05J","12D","05G","09W","01A","06Y","10A","99D","10N","05D","06M","03F","01Y","03M","05A","02N","11C","01E","05C","99C","99J","06L","02H","01E","10H","11T","05J","03A","07Q","07N","08T","03W","00D","03E","99Q","03X","02Q","10D","09Y","11A","07N","10C","06M","05R","02G","04L","06A","03H","06Y","10Y","01T","05P","04D","06Y","02P","00D","00J","03N","05D","03F","10W","99D","10K","12A","07H","99M","07K","01X","02G","05D","10Y","01W","03X","02H","03J","08T","09C","10V","00V","03L","05J","04H","06N","00P","02R","02N","03X","11E","00J","07H","03A","05W","00C","99G","99C","02X","04Y","10E","99M","01X","05C","04G","04V","09D","11D","05J","02E","05C","05H","06W","04F","01M","13P","06D","01F","09J","11C","00M","03L","11C","00M","04R","03V","05C","99E","04R","02T","05N","03X","11X","99N","02E","06T","06D","01W","04M","11E","01F","03H","03E","06F","00K","00J","99F","01Y","08G","00L","10E","09L","06K","10A","02A","00G","02D","00V","07M","09N","02A","02P","04F","03Y","99N","11C","05J","09C","11E","11X","02Q","01X","06Y","02V","08J","11E","05N","08F","10A","10L","10C","00V","06D","11D","03K","10D","03L","11M",92]
[93,"02Y","02V","05R","04R","04J","10K","01C","01T","05Q","06A","09E","00N","99E","10J","04M","01X","09Y","04V","10N","05C","04V","09J","05T","08G","05Q","03K","10N","02N","11E","01Y","05V","12D","00H","09W","10R","03G","99Q","10Y","11A","09J","03G","03Q","01T","06L","99F","06T","99N","00D","99E","11N","12F","00L","01J","10H","03X","12A","99A","05C","04V","01W","10K","04L","10E","99F","06L","04N","00J","05C","05R","03F","10E","00P","04Q","03K","06M","00V","11M","04G","10L","06Q","99Q","02V","00P","01Y","02G","00P","00X","06F","99H","99F","99G","04N","10Y","01T","00K","06W","01Y","99C","00C","10C","10X","06Q","10A","08R","10D","06M","03T","01H","04L","99F","00X","02D","05X","09P","07H","00C","00C","99D","99F","10M","07Q","04R","02P","02Q","09Y","01Y","01J","02T","06Q","02D","05Q","02N","02X","01A","09D","03R","03V","10X","05P","02P","03A","06W","99M","05D","09W","03L","10V","06T","10N","01T","00X","06F","04H","04Y","06L","06Y","00K","10H","04R","01Y","02F","05X","01Y","03F","02M","04F","99G","03D","04R","03W","04J","04D","08J","12F","03A","03R","01A","03F","03V","10R","03L","07N","04H","06N","03A","10D","03V","11H","05Y","03H","08F","09J","12F","04N","03H","05R","07Q","07L","09W","04Q","11D","12F","05D","04V","99Q","02D","09W","01X","00D","03F","04R",93]
[94,"03W","03W","05F","00T","10V","99F","05V","02D","00L","03G","01N","11C","09E","03K","01J","00F","10M","05C","03V","09P","08F","05R","04R","06D","03L","02M","05X","00X","03J","00F","09E","05N","10C","04R","03T","00F","05W","00J","09C","09E","01A","12A","12D","09C","09N","00N","99D","01C","05H","00T","00C","00M","07H","12D","11M","05D","10V","09N","04L","00V","09C","05Q","02G","10R","05R","04Y","01A","10G","09W","09X","09J","09F","10L","01X","03K","01Y","03L","01R","99M","10L","10E","07Q","99K","03T","01X","06W","04F","02M","11C","11E","02T","06F","01F","02E","10M","05V","00V","03X","10D","01W","06M","05T","08J","10X","09J","05V","03H","99C","00C","06F","04N","01N","05C","01H","11C","00L","99M","99N","04L","03A","99F","02P","00X","01C","03V","11M","00K","10E","10D","06W","99H","00N","12F","02H","04C","02H","02M","03W","03H","05W","99M","03N","06W","09C","11A","02F","08Y","03G","09J","06F","05J","10C","00V","99G","02M","11T","11E","03M","03F","01W","04M","99C","04R","05V","06N","05X","09L","01Y","05R","06L","03R","03Q","04G","06K","11E","03Q","03Y","05J","05T","12A","03A","00K","00C","99F","10M","99N","02H","02E","03V","06W","05C","03A","02N","03A","00L","05G","09J","01T","06H","99K","03M","00L","03A","03W","06M","11C","10G","07K","00K","03C","05D",94]
[95,"06Y","05R","07K","09F","09D","04Q","02V","09Y","04G","03W","11N","02F","00L","01N","09L","04F","10L","09L","10J","04E","03X","08G","10N","06M","00N","09E","11X","99C","01R","99Q","12D","07H","10N","01A","08T","10D","02X","05R","03D","11C","09X","03L","00T","07Q","06L","10A","03V","99K","10M","99J","03A","99M","05P","04E","03R","08T","09P","06Y","07Y","99G","03W","09X","05N","03Y","02Y","01Y","00R","03H","02Y","09W","09C","04Y","03G","00C","02N","04M","99G","03J","07H","03E","06K","11D","99G","09G","00C","07K","03W","00M","03Q","03R","08F","06Y","10H","08L","10J","01F","03T","04M","01X","06W","06F","11T","10R","99A","02N","12F","99A","05V","02V","01W","00T","03H","99C","04E","02X","01F","01H","04D","08F","99J","11C","09L","10D","05V","99E","07K","02T","06N","02P","05H","03H","01X","03H","09H","03N","02D","00C","08W","02R","05G","11C","01E","07H","02H","03G","99M","99F","04H","01X","09J","13P","04H","05D","03L","09F","04Y","06Q","09J","00Y","03D","02X","02V","02H","05N","02N","00K","01Y","00C","05P","06Y","03L","03H","02H","06W","05P","03V","00P","05Q","00T","02H","05N","10J","05Q","03Y","09W","03V","02Q","11M","06Q","04L","99F","10H","00N","99C","10D","99N","05A","03H","00W","04R","01X","02Y","06L","04D","05X","08F","11M","03L","02D","10E","99H",95]
[96,"04V","99K","11N","06D","04X","09P","10J","10Y","09E","04Q","01C","07G","10K","10R","04J","02G","02M","10R","03M","00F","04L","00L","10K","07N","09E","03J","02E","05J","09W","00D","07J","05W","01G","03W","03J","11D","03T","11C","06F","03F","06L","09Y","99H","09P","09X","04V","00F","09D","04G","07K","10D","08T","00L","11M","12D","03T","03T","07K","10N","03Q","06W","09J","09N","99H","99N","03A","05A","02P","03F","06W","07N","01A","07N","04H","01C","09W","06F","00C","06M","10G","09G","03R","04E","03L","02H","03T","03J","00H","99M","10H","03M","04R","02Y","05H","12F","06A","10E","02P","02V","99J","01M","02R","04X","08E","99H","01H","11C","04Y","99M","10Y","05D","10M","99Q","07Q","11M","09J","11D","10N","03T","11E","00D","10J","02D","05G","06W","04Q","10E","99E","01E","09J","01F","04V","05P","02T","00F","03F","05R","06W","02X","02G","11E","99C","12F","04V","04J","09H","04R","03H","05C","04R","06F","04V","03K","04L","00R","04L","02H","00P","06K","02G","02H","02P","09E","04G","10N","02X","99J","03H","02Y","00T","00C","05G","03D","05X","00K","08F","12F","01C","04J","11H","06V","05J","08T","02X","11D","02M","02P","09G","09Y","11E","06D","06V","05C","00K","03L","02F","00R","10W","05T","06Q","00F","11A","10N","09F","02M","03T","04R","00K","06H","03D","08F",96]
[97,"04M","07K","05Y","00R","03T","02V","07N","09L","09W","05Y","09P","08J","02N","10V","03J","04V","06L","11C","11H","02N","00J","09W","07N","00L","09J","04J","01F","04R","00Q","01T","02Y","09N","10H","07Q","99M","05A","02M","04N","02X","09F","99N","02V","02M","10J","03E","09L","99C","04L","02P","09L","00N","06D","05R","11C","11D","05T","06W","03M","01T","09Y","99F","00V","04H","04G","06K","11E","05G","09F","10G","09N","06N","10Y","09X","99N","10D","03M","99H","05C","07K","02V","05X","10G","03T","01X","99E","10M","10D","08J","03M","09W","11X","07Q","03T","09D","04E","09W","02T","03A","12D","07Q","02N","05A","13P","10N","03A","06H","06W","00V","02H","00K","03G","02P","02N","04M","01T","03N","06K","05V","11D","01V","06K","02D","05L","03J","12F","04E","04R","02P","00M","04K","00C","12F","05H","02E","02T","09N","05D","10Y","03Y","01X","02G","06F","10H","02N","12F","11E","11T","03Y","12D","01X","06T","10N","02M","03X","05X","01H","03A","02G","02R","99G","05C","03R","05W","00F","03R","02V","04Y","06N","03D","08F","05G","06M","03Y","00K","02H","01W","01D","99K","10K","03R","09C","02N","03K","07J","02T","11A","03R","09X","01H","01X","10M","09D","04E","11E","05N","02V","01D","99M","05P","01G","03A","00C","05X","05R","08J","00C","11N","08G","08F","09X","04N",97]
[98,"05F","09G","10R","02D","04M","07J","06K","09C","01M","12A","12D","03Y","03M","05T","01C","01W","07Q","06T","05G","06F","07Y","01J","10J","08T","09Y","10W","03X","05D","12D","02N","02N","03A","04D","06A","02N","03K","11D","10C","02H","09X","06A","07Q","05Q","99F","09L","10M","02Y","02Y","11C","07Q","04Y","02N","10V","00N","00V","10K","99M","10M","05L","05P","02N","03L","08F","03X","10J","04R","04V","02A","10L","07H","02X","10M","10J","03F","04H","99N","02T","09J","09W","00L","02A","05X","10K","02V","02D","01V","03Q","03T","01A","00N","04R","99Q","06L","00D","99F","04N","00J","10N","07Q","02T","08G","09X","10G","00Q","00K","07M","02R","02D","99C","05P","03E","00C","02Q","99H","10J","04R","02X","10A","00K","01W","03R","05J","13P","10R","00N","05G","07Q","02D","09C","00N","03K","09W","01X","11E","06F","03V","05W","00P","05J","04H","10E","99M","00N","02D","99N","04M","03F","02X","03H","02H","10K","10A","10E","07J","10V","05F","09E","05D","00N","02F","00K","99Q","01W","99D","07J","05N","00V","10D","03F","12D","02F","02P","99C","03E","03L","01Y","04J","01K","06M","02N","02T","08N","05T","03R","02D","00N","02N","10D","09W","00N","02N","03L","99J","03N","01Y","06L","05R","10E","01R","07J","01W","04D","10A","09X","04F","01A","02X","07M","99C","05V","00V",98]
[99,"99Q","05F","99F","03V","07G","08F","06L","12A","01K","09E","03N","06T","10L","04L","08G","10E","99Q","09Y","06A","09C","10H","10V","99F","05T","01T","04V","05V","09J","04H","08F","99D","05X","99D","05R","09Y","10M","06F","05Y","12A","07J","06M","99N","00Y","00T","00M","10Y","11C","99C","00P","02V","05P","06L","04G","09W","01W","07Q","06L","05N","03X","99Q","10J","10J","00C","02X","01D","09X","03J","04M","99H","09L","00N","05W","05N","02G","01X","02V","08F","02Q","05N","05D","05C","09G","03F","04E","07Q","02Y","11X","05A","05P","04E","11A","02N","06M","04V","06K","00F","02M","99G","00J","00D","00L","11C","06K","03N","01Y","02G","01C","01Y","00K","03L","99D","06K","03T","01Y","02N","99D","05P","06A","10G","00K","00F","05H","03X","04J","05X","02Y","00X","06W","12F","08Y","11C","01F","10H","01K","04R","09X","99K","10D","00C","07G","05C","02P","01K","10X","10E","99E","03X","00C","99C","09D","01F","10E","04R","01X","01D","03L","99H","03X","99D","07M","04D","02M","03G","99G","09G","10A","01W","07G","03E","06W","01X","04Y","01Y","06M","10Y","00K","11E","10N","04M","01N","00K","09J","04J","10E","00J","01Y","03H","04R","99Q","03A","99C","99H","09P","00J","03D","06N","09W","00W","05J","09L","04E","06N","00K","99D","03Y","12F","10C","05G","11C","05Q","02H",99]
[100,"05R","02M","99K","10L","06M","12A","10R","99F","11T","00T","05D","04V","04V","03N","05G","05H","06F","03Y","99J","02T","09D","99Q","06M","09C","10D","06M","99C","03Y","07Y","07Q","04Q","99M","05A","09P","06M","00D","06Y","00H","04N","99M","08T","02H","05W","05N","02V","11H","12A","02R","01W","05A","06K","05V","04C","01X","02P","06M","10Y","10J","10C","03M","09Y","04R","03Y","04L","10K","10D","01C","06N","06Q","09C","12D","00V","02V","99C","11C","02A","99J","09H","01F","10A","01W","01X","02Q","09L","00N","09C","01N","09N","99G","12F","01Y","07K","00J","10E","10H","03F","04R","06K","11C","05C","07Q","09N","10J","09Y","10M","09G","05X","08T","05P","10M","11H","12A","00K","00C","99J","05D","10G","01X","05V","11M","99M","08H","11M","01F","05H","00L","10Q","03N","05D","10J","04Y","02H","06N","02P","05J","00K","11A","03H","10N","03L","03N","09W","04R","10D","05W","10E","06Q","02G","05P","11C","02R","09L","99Q","03M","09N","09J","02V","06N","00T","10E","11A","09G","09X","10E","00C","12F","05X","99N","05N","05Y","03E","03X","00C","03T","00P","02X","04V","10M","08G","02X","02X","04M","07N","03X","11E","02N","00L","06F","13P","02E","11E","07Q","11D","02V","04D","07M","06A","11N","04H","04N","99G","02V","00J","01D","02P","01W","03R","02N","02G","01Y","02A",100]
[101,"12A","06F","02V","04M","09P","06L","04M","10J","04M","09J","10K","11H","10D","06N","03W","04R","07J","08J","10M","11N","04Y","11C","02N","06F","10Y","08G","00K","09C","13P","02M","05R","03F","09W","04Q","11H","06N","05C","00M","00K","03G","99D","02X","01W","99K","03M","04H","01C","00L","06N","10K","01X","10R","05V","03R","99C","06F","00J","06Q","08E","09H","08T","06F","01K","10E","04M","05C","09Y","02X","07H","09H","02F","04N","02Y","99F","99K","99H","09L","02D","10D","03D","04E","11E","02G","09C","08F","07H","12A","11A","10G","02V","05X","06L","03D","10D","12D","03T","09C","12F","99G","06F","08T","04J","02N","04H","09Y","05C","00X","10A","99F","99J","04L","10E","01H","03D","03R","02T","03R","01W","02H","99H","02V","06K","10R","99D","09W","03H","02E","99C","06T","02E","00X","09C","10E","04F","07H","00N","05A","06Q","00J","03H","99C","00K","05C","03W","00T","00Q","12F","06D","00G","00N","01E","07H","02Q","00D","05F","06Q","09J","02N","08P","99F","04E","10E","10Y","07M","99Q","04E","09W","10E","99M","04V","02X","05N","00K","10A","09E","01X","04D","10X","10V","06K","06F","12F","10V","08F","03X","02P","05N","00V","10N","10E","11C","05P","02X","09L","00C","05W","06L","04E","03X","09G","02X","10N","04D","99H","02H","99C","99G","10E","09P","05D","09Y",101]
[102,"10K","99N","09G","05Q","03N","03D","02R","99H","09H","99K","02Y","03N","02R","11C","10K","08F","04R","02F","02Y","02H","10J","12D","99M","02N","09X","04R","99K","04D","04R","07J","09J","09H","05D","10L","10K","08P","00M","06L","10D","01A","04G","00V","00K","05R","12A","00F","04L","05Q","02D","09Y","01W","00Y","06A","05P","04R","00L","08F","10K","99H","05C","06Q","04E","05Q","09W","99F","05W","04J","06V","02T","00M","06T","10R","08T","07V","02G","06F","10J","00X","10G","08P","99G","00F","02D","00D","00D","05W","00F","02T","00J","01X","12D","99H","04R","08M","01X","10M","06M","10D","11E","09W","11T","10H","10K","00J","09G","07N","03K","03H","01A","09E","01H","08P","09H","10J","06W","99M","04M","06P","09H","09Y","11D","03H","07W","05T","02H","10E","01R","00K","99H","03N","04L","00K","01T","03X","04L","05D","99Q","05Q","05X","00J","99E","02E","01X","10M","06L","02T","06T","00Y","10E","00K","10J","03H","05C","03V","04L","05N","12A","99P","05G","02N","10E","06W","00V","00J","02H","01Y","01E","07M","10H","05F","02V","02H","01X","04D","02V","08T","06M","03L","01D","00C","11X","07P","07H","00K","03H","01X","08G","01W","07M","03L","02V","02V","03A","99F","07G","12F","06Q","04K","99P","08T","00N","04M","08T","09L","02N","07G","04M","02Y","05C","02M","01Y",102]
[103,"06L","12D","06L","01H","07Q","99K","09X","09W","06F","11C","05R","00F","03K","09Y","06Q","04E","99M","99C","99C","11D","07Q","03C","07Q","10V","09C","02N","11T","99E","03K","05F","09W","10N","09G","02Y","01C","02R","00D","02V","05N","12A","05N","01H","99M","09L","10M","03N","01G","03M","05J","07J","07Q","10M","01D","07Q","00N","99F","11T","05F","03W","02V","07N","01Y","02R","99C","01H","11M","07G","02H","07K","02N","05D","10J","06Q","06L","07M","00P","00P","06H","06V","04D","04R","04R","10E","00N","99M","02M","11N","09F","01E","12D","11E","10H","05N","04E","07Q","04Q","00D","00C","00F","00K","99Q","09Y","04G","03K","06W","03G","05D","07G","11J","02H","05Y","04E","02V","04Y","02H","06Q","08F","10E","03Q","04R","00J","10E","11A","03G","00R","08G","05P","12D","00P","06K","01R","06K","08K","00F","03X","10V","08G","01X","04Y","99D","99Q","04R","02D","01N","07G","02G","02G","01T","05H","02D","06D","02F","00R","09P","00G","03D","09Y","00K","12F","06M","03R","09E","04Y","05A","10E","03L","10J","11A","10G","07K","08G","03D","05C","09C","99H","07J","02M","08F","07H","02P","11D","05D","10A","07N","00K","02Q","04E","01X","00R","09D","10L","10K","10D","02D","11M","07K","06F","06Q","07R","09N","03R","04F","00F","00L","02Q","11J","11E","02Q","11D","09W","02T",103]
[104,"09X","03M","01A","05C","00L","06Q","03N","05P","09C","07Q","11E","09L","09G","07Y","99F","11E","09F","00F","99Q","00D","10V","09N","01C","10W","10H","11T","04M","08F","99E","03Q","05A","11A","07N","10J","03W","09C","06W","06Y","05F","06Q","02Y","10C","09Y","09Y","03F","04D","00P","03Q","12F","99K","11C","06W","00R","11E","01X","11T","06D","06F","06K","05W","99M","11M","99G","09L","11M","00V","10A","04G","05W","06L","00J","01W","00T","06T","01E","03Q","12D","05J","02T","02X","11X","99G","04Q","00F","04D","08T","10V","09G","07Q","00K","01H","10Y","00P","10N","02D","06K","11A","01X","00N","03M","04G","03W","04D","11C","03M","04L","08G","02V","01W","10J","99C","01X","03Y","00V","10Y","09H","00D","02G","03Y","10J","02H","09Y","05T","10N","01J","03Y","08Q","02E","10X","01X","99C","09D","09C","99E","10D","10Y","06N","02X","00D","03K","06T","04E","12D","01F","02M","06F","07G","03K","02P","09W","10H","10J","05J","02H","09G","00V","02T","10Q","05T","11A","06M","09F","11A","03V","06V","01X","00P","02Y","99J","03D","03J","05A","06M","09G","10M","02H","03K","05D","05V","04G","00F","04R","00W","01A","09C","10E","11M","04L","10V","03M","09P","04L","02H","03L","12F","10E","01H","99P","11M","06Y","10G","03E","00C","10H","10D","05C","02V","03Y","03Y","02E","00M",104]
[105,"10J","01D","07H","08G","11H","03C","99F","00P","09P","09H","09G","99A","08T","05Q","09X","00D","00H","06N","11T","99J","10X","03E","01V","09P","01Y","05T","03V","05C","05Q","10L","04R","07K","05V","99K","06Q","06K","00L","08T","04E","06Y","99M","10J","00F","09F","10J","08J","03J","09P","10J","11X","02V","03J","99P","04R","03A","08J","06Q","12A","09X","01F","09L","11A","01D","00D","09G","09J","05T","10E","08T","06V","06H","99G","07J","01A","10N","09Y","07Q","06F","07J","07J","09P","04M","02N","00P","05J","05R","05G","05D","12F","02H","01V","02M","05W","00N","00N","00T","01T","11D","02H","10H","10N","04Q","05L","06F","09C","07G","09E","99G","11C","06W","03Q","03N","12F","11C","12D","01N","10C","03F","99C","03L","05P","00C","03F","06D","01T","02G","05X","99M","99C","01F","09X","10Q","01J","09Y","09Y","04Y","00L","12F","03C","04D","05H","05H","10E","02X","03H","10H","03J","08E","08K","03N","01R","04N","02A","10C","04Q","01W","07Q","04E","04Q","01X","06N","01W","99J","11C","03T","03Y","10K","06L","01C","01V","03D","01Y","03V","02X","06W","03L","06Y","00D","06D","04E","10Y","07Q","00R","02H","02A","06M","01X","02P","03T","02Q","04L","01T","04R","01X","10A","04D","10L","08D","04X","05Y","11N","06M","00P","01E","05F","09H","00D","04D","04Y","05P","07Q",105]
[106,"02M","03D","06Y","09J","05T","11H","99N","99G","09J","09G","01K","05T","11N","00J","04F","00C","03F","10G","10V","03Q","06W","03X","10M","07Q","06V","99M","03W","07Q","06D","02V","99K","05D","09F","09Y","99Q","05G","00F","99N","99M","01G","10R","00K","00N","10L","01E","11C","00N","09L","01T","03N","04M","10K","06F","12F","12F","08G","00L","00T","11D","02M","03J","00M","12D","12D","09H","09D","09X","02V","07N","10J","02P","03F","10R","05T","99Q","11C","02N","03Y","07N","07N","02X","10C","04L","02A","11C","06M","05Q","99N","02A","09E","09L","03E","99N","06T","01W","09C","06K","00N","06K","02N","04M","06A","11T","12A","02V","99G","09C","10C","02M","01A","05W","11D","00V","10H","10H","07Q","00F","05T","11N","06F","04E","04E","03K","02G","06K","11X","09H","04E","01R","02H","01A","01J","02D","04E","03H","01M","06Y","02G","12D","10D","04R","04M","06F","12F","99Q","04R","05R","10R","00F","02E","00W","06Q","00L","04F","11M","99G","09L","03L","05A","05Y","02V","02A","10M","03G","10L","03D","05W","02V","01W","10N","05Y","00K","11M","00V","99J","99C","00Y","99G","09C","99H","05X","06F","05D","08T","04Y","99Q","10A","12F","03X","99G","09F","05C","00V","00P","03E","08P","12A","00N","08F","03D","00D","04G","05N","06Q","03H","03Y","01X","07G","10E","99C","00K",106]
[107,"00T","09C","01H","08F","00R","01H","99D","01Y","11N","11E","01H","10X","00Y","03X","06W","09J","99H","08F","06K","02X","10W","03W","01M","04G","05W","09W","99F","06W","08R","09H","03M","06Q","09L","07J","11C","01V","02Y","07K","02A","00H","99Q","09L","09W","07J","01G","03Y","04Y","03F","02G","06Y","02H","06K","05D","02H","10C","99Q","07N","05Y","10A","99F","01V","10N","09P","00N","05V","09E","08G","12F","05N","02V","02E","12D","99K","08N","03F","08F","10D","03X","08T","07K","10N","04E","99D","00V","04E","00H","05D","04N","01W","11C","09W","00M","02V","09Y","05C","00L","99Q","00D","04Y","99G","09C","10N","03W","10H","10C","10N","10K","10D","06V","09L","99Q","10X","99G","12D","10M","00H","11E","06N","00D","05P","00K","01X","04E","99J","10Q","05Y","00Y","05H","02D","01T","10K","10M","04E","03H","00X","01R","99N","09N","00Y","11E","02H","10H","99E","02P","07K","07G","10X","00P","02E","05H","02T","00L","02D","06K","06F","07K","02A","06W","99K","08J","03L","00C","06F","01A","00V","03H","05P","06W","05Y","01D","11A","03L","10E","00C","12A","04M","04E","03C","06F","03H","06W","10H","10K","99G","02G","10A","04G","05A","01J","09E","02G","99F","10N","10M","10N","10A","09Y","99C","07H","07N","05C","11M","11E","04R","10E","10L","01H","04E","09F","10Y","11J",107]
[108,"04N","06Y","03G","10Q","06F","03M","05N","05C","08G","02N","02N","09D","05R","07N","10G","02E","10Y","05T","04Q","03A","03N","02Y","99A","04M","00M","05D","01D","10A","06P","04R","09H","09L","06M","10N","07N","09N","01E","03T","10M","03D","01D","09E","02A","09X","08F","06Q","07Q","00J","01X","06K","09E","04Q","08F","08F","00D","04G","04J","02M","10R","99H","05V","05W","05P","99M","11H","00M","10R","10D","10M","06Q","02D","99J","09P","02Q","03E","05C","01V","08T","05W","10H","11M","11N","00F","99Q","04V","10L","10J","10A","00N","07Q","02N","03F","02M","02N","08F","08J","99J","04Y","99M","99M","07N","10C","05G","02F","07Q","02Q","99C","01A","04Y","04Y","04Q","04V","10Q","05F","11E","09Y","00J","05A","03X","02H","04M","11C","12F","00F","01X","09G","02D","03H","04L","08Q","10C","02F","99M","06T","01J","06Q","02T","00X","02Q","03Q","10H","02D","00K","06Q","03Y","05C","05Q","02Q","10D","02P","05R","02Q","11N","11E","03W","01C","01Y","01T","03G","05F","01X","02X","11M","01G","03Q","06M","12D","12F","00M","10M","04D","01A","03L","03L","09Y","11A","01F","10R","12A","00X","04R","03J","06M","10L","00D","04E","00K","09J","06M","03Y","02D","06W","11N","03Y","03V","01F","99D","10N","02D","10C","12F","03V","06F","09C","03Q","02A","08F","12F","10G","01K","04Y",108]
[109,"01D","06Q","02N","99Q","11T","06Y","04Q","06K","07Q","04R","07Q","07Q","01M","09D","05R","07G","02N","03N","03E","03L","05T","04Q","99Q","01K","04N","04X","02X","03K","11C","05C","03W","11N","06K","02N","04G","05R","03G","06M","10N","07K","99J","10N","11N","07K","06Q","10R","09P","00F","07Q","02N","11J","07G","09W","00K","02A","11C","11C","03D","00P","08F","09X","00K","08G","00F","99D","09Y","06F","99G","07J","01G","01X","09X","01E","01G","05G","01F","01Y","07V","10M","09G","02H","00J","11H","01E","05C","10Y","11E","05R","01T","04M","10J","06W","03E","00C","03L","10A","07N","00J","00K","11E","09Y","00L","11C","05D","05X","00D","03E","06M","08F","04M","04H","12F","07J","02A","11J","10D","02V","04G","01E","00P","01X","04K","04M","01T","01F","10D","04L","09W","08Y","04V","04V","01R","08P","12D","06W","06T","06L","10M","02G","04J","09H","09Y","02H","03N","10D","99C","09C","05T","02X","10E","09J","99M","08W","01W","11T","10K","10D","03A","04J","11M","08J","08J","00M","02V","07N","02Q","06V","99J","00Y","09N","10E","07G","03Q","99J","05C","04E","04R","04H","03T","01X","05F","00X","03T","01W","02Q","03D","01Y","12A","02R","02T","03L","99G","00F","00F","10E","00N","01J","05J","04C","07K","09W","00N","01Y","02N","04D","03L","01W","00C","02A","10J","11C",109]
[110,"08F","09D","03M","11N","10N","07K","09N","12D","02M","01D","03W","08E","07Q","06W","00J","05P","11C","11H","08G","00V","06D","10M","09L","10N","03G","09C","04R","06F","10N","10G","12A","02V","10D","06Q","08G","01G","09W","02Y","09Y","05C","02V","01Y","04L","06Y","01V","12A","03T","02H","09L","10L","12D","02R","03W","01W","01T","03J","05C","09L","00F","02A","99D","99F","01F","12F","02N","08F","10H","01H","06V","03E","99M","02M","09N","04Q","10K","99M","03M","07H","06L","05W","02V","00N","05Y","10D","06N","06F","04J","02Y","03G","01T","09Y","03D","02N","05J","05P","00D","03E","08F","06V","11N","09P","99F","04J","99M","99M","99C","02N","08J","00F","01Y","02N","00X","10N","04N","11D","09G","04E","01G","05W","12A","12F","12F","99F","06L","02E","03E","02X","04R","03W","00K","12F","99H","00N","99Q","04G","01A","10N","04L","10K","03Y","02P","11C","05H","99C","00P","05H","06K","01D","02N","06W","00K","03T","09P","04E","07K","01A","04R","09L","01T","04G","07J","99G","05P","11D","08T","99Q","03G","99Q","07J","09X","02Y","10E","07G","04R","11M","08P","03T","04Q","00L","10X","10G","08P","00Y","08J","04M","07M","02M","99C","99M","04N","02Q","12A","00D","99G","00N","00L","99N","99N","06F","10J","02H","11X","10Y","99K","02V","02G","05X","11M","01A","02G","12A",110]
[111,"09N","06W","12A","11C","09L","12D","00Y","10M","00Q","09N","11X","07N","11C","04Y","07N","10N","02V","06Q","99A","04R","05Q","10J","09D","04X","02D","07Q","01C","04G","10A","10C","99A","10J","03G","09C","09L","07M","07K","07N","09J","04N","09N","03A","99C","02N","06W","02F","03X","08T","04E","99Q","99G","01D","06D","99G","04Y","99M","05R","09E","00N","11X","04Q","01W","05R","11J","09C","01E","08J","00K","09C","10M","07X","03N","04N","04M","99C","04R","06W","10A","03F","10M","03R","01H","99Q","10Q","06W","11D","04X","04D","00H","99G","09C","05N","99Q","99C","11J","05A","10L","00V","03L","01V","12A","02N","06D","07G","10N","04Y","09L","04E","03X","01E","01X","01R","10E","06K","03A","10L","02H","06T","09G","06W","10G","10M","01D","99K","00K","02Q","09J","09J","05Q","04M","08P","02G","05J","03C","10E","00X","09F","99C","02D","00H","06F","02T","07G","00P","05Y","02H","00X","06W","11C","03H","04V","03W","10L","99F","09C","04E","11C","10J","00F","12F","01Y","11N","10K","00Y","02X","02G","11A","01T","03T","05N","10A","02X","07N","10L","08F","11E","06L","10K","07Q","01R","10D","09N","06D","01Y","03Y","02H","00C","05N","04L","04E","10E","04E","03L","09W","04G","03F","02N","00R","11J","99H","11M","07G","07J","05V","00K","99F","12F","06W","00C","05C","10J",111]
[112,"04R","03N","06A","01M","06P","00H","04G","10H","11X","03M","10N","08R","03E","06D","99H","99C","99N","06K","03Q","01T","07N","01H","04Q","99Q","06N","11E","00H","00J","03T","09F","11E","08T","02Y","09X","99F","99D","11E","10N","11M","08F","11N","02T","00M","09N","09H","05T","04G","03X","05C","09F","04E","09X","04Y","10C","00J","06Q","05G","03E","06Q","00H","10N","99J","07Q","04Y","99M","09C","01V","09H","00H","07Q","99E","11M","09C","99K","05N","10H","02A","11C","11D","01F","01X","00K","01E","03F","10J","09F","09N","06N","05W","05P","06F","01E","08T","00F","05X","10D","06W","02A","00V","11X","10J","10R","05T","06D","99N","00C","99K","03X","00J","99H","03K","02G","01X","09E","00K","11N","01W","05G","10C","09E","08F","10X","05R","08P","99C","10A","05J","06F","03H","05J","06L","01T","00C","06D","00C","07L","04Q","01F","06D","00P","02T","10E","02G","01R","00K","06T","02H","99D","04E","09Y","04X","02X","02E","11X","04K","02H","00V","11E","01D","06N","08P","00K","09L","02F","00K","04D","09Y","00L","99N","09L","00L","99C","02X","01T","10J","06N","05V","08G","02Y","10E","01Y","03X","06F","11E","99G","03L","10E","99H","04M","02V","02A","01Y","00K","04L","03Q","04G","07J","02F","99E","11C","04R","02N","08J","00J","06V","09P","00F","00N","03X","00X","03A",112]
[113,"10Y","08F","09H","02M","08J","07H","02Y","07Q","11E","03E","05V","05C","07J","04C","10C","05D","03E","12A","99K","10N","11C","09H","05V","00Q","99G","09F","99E","01R","08W","06W","09C","11E","09N","99M","00R","00Y","00J","01G","10H","06L","04Q","99M","00H","02M","10Y","03W","04N","04E","08F","01D","00K","06M","99E","11D","01E","06K","10W","04M","04D","04M","06L","04M","06N","05P","06A","06F","02N","00C","08J","03M","02H","10K","01D","12F","04Q","07Q","10Y","07M","10H","03F","07N","11M","00M","10R","06T","04R","00C","01G","10N","06K","11C","00H","11D","07T","04M","09F","09F","04G","04M","12F","99M","05V","10N","05G","03Q","06D","99G","00D","10Q","09Y","03H","00P","03L","02N","04R","10J","00K","00D","03D","07Q","11E","05D","01A","01G","04V","05A","03Y","02G","11D","09W","09N","99C","05C","10T","01E","01G","00J","02N","99E","01E","09Y","06K","02E","01X","99J","02P","10Y","02F","06F","10D","05Q","06M","05Q","00Y","05Q","00G","11M","00C","04D","03Q","11M","05C","06W","01C","01X","11N","11M","06V","10N","10J","01F","04M","04E","00F","04R","03G","06W","00X","03W","04V","00D","07V","05V","99C","02N","00K","03L","00M","05R","05D","02M","10J","01V","12D","08P","03J","05V","99J","08G","06L","00J","05N","07N","09W","12F","10E","06K","10A","03L","12A","05W",113]
[114,"06F","05A","09E","05P","12A","05F","99J","02V","09F","01A","09J","06N","12D","10M","10Y","02N","06W","05Q","06D","00K","10M","04L","06F","11T","04E","10K","04E","04H","10V","10N","11H","09J","01D","09L","10H","06W","06L","02N","04Y","09L","01E","09J","00P","99N","04R","10G","99H","05Y","00D","09N","06W","10G","05Q","99M","09E","09C","09Y","10R","13P","07Q","09F","09L","01N","05A","10H","01A","04R","05X","11D","09Y","00R","01G","06F","01C","05Y","06V","10H","99E","06F","00D","00K","00V","00T","99G","10Y","05Y","06L","11D","09F","01W","02V","10N","10N","99M","01T","06M","01V","02X","04E","01T","06Q","99K","03N","10K","10Y","08T","01X","01X","03L","00V","04D","10C","04M","05W","06F","03G","01X","04J","05N","10H","01W","10Y","03H","99N","02D","00N","02Q","10D","01X","02F","02D","09L","06K","06N","06N","00P","02Y","10V","09W","12F","00Q","01A","02N","05Q","11H","09Y","01T","05V","10H","04E","10C","02Y","01H","03T","05N","04M","05W","02D","02F","00D","07M","02H","04M","02R","04E","10D","12A","04R","00P","04R","04G","10Q","11X","00J","06F","11X","02H","05N","06Q","04L","10N","02H","99M","03T","09P","00J","03Q","01A","05Q","02N","11H","09E","03Q","05C","00J","08G","04G","11A","04L","09P","01V","00D","09C","04Q","03T","07N","00N","11E","05X","01X","09E",114]
[115,"99F","12A","09N","05Y","04F","09G","99M","05X","99F","08T","10L","10G","04R","11T","99Q","12D","10C","03W","06N","10D","05G","11T","10G","03C","04L","11C","06L","08J","09J","99J","10X","05F","01A","11C","10M","99Q","08T","06K","99H","10Y","05R","12D","09G","11N","01A","05Q","05A","04M","07R","09X","01T","04F","04M","01T","01A","01M","04L","08F","10V","10H","04G","05P","00Y","00K","03N","02A","06Q","01X","02V","11C","08D","03G","06Y","03Y","10E","09H","09C","05D","09C","02T","08J","12F","00C","10M","00R","06L","99N","06L","11X","03L","99H","10L","07N","06W","99G","06N","03V","00F","01T","10G","03W","06W","99H","07V","11E","05F","02D","03E","01X","10H","02G","99H","00C","10D","09C","04Q","99G","01C","07J","01Y","99G","00P","03V","06W","02P","99Q","13P","10H","00X","06T","10E","02P","05D","00X","99M","12F","07G","10K","09J","01T","02E","05J","03H","10K","01T","05X","04V","01G","07H","02X","11T","99D","03E","99C","01C","10Q","09C","02T","06W","03E","03V","10N","01V","02Y","09F","03T","10H","02X","10K","09W","05N","09G","05N","02T","01Y","08J","00K","05X","00Y","04Y","00P","09W","09A","03L","10E","99J","04D","01Y","10H","05W","10D","05A","10G","99M","06M","00D","99K","07G","03M","99M","02A","03D","06K","06F","01X","03X","00V","02X","02M","05J","10N",115]
[116,"03E","99J","06Q","10V","10K","11X","08T","01A","99M","10N","09W","08W","99M","07M","03T","06T","05F","10V","09Y","11M","06M","06L","09P","04K","10J","00L","04L","08V","01V","00P","10N","06A","01E","06F","09D","04G","03F","99J","00M","00T","09C","00R","01D","01D","03G","10V","05V","09W","03K","05R","08F","99K","09J","02V","10G","09Y","03X","09H","09N","00P","09P","10K","04Y","02H","09X","12A","08P","00J","03E","04R","07Q","09G","05R","10T","03T","05W","06K","03K","03E","11E","00J","01W","05V","01H","01R","10H","03K","10D","99F","05X","00V","07J","10L","08X","11C","04D","08T","10C","08F","05X","10K","04M","06Q","99F","11N","03D","04H","00J","05X","09D","07G","03K","00D","09C","02A","07J","12F","05N","05F","12D","05X","03N","06Y","04Q","10J","00C","02R","00F","04E","99C","01X","12A","09Y","05J","04Y","01X","03T","04M","02T","99K","00F","04L","02P","08X","02N","12D","10E","04J","05D","05J","10E","02D","04Y","12F","04G","11M","11J","02V","06Y","00F","11X","06V","00H","11M","03L","03Q","11E","10A","00T","07Q","02N","02Q","05F","10D","07Q","07N","07N","05C","99M","05Q","02N","10M","12A","09P","10C","00L","06M","00F","11A","02G","01X","04N","02V","06V","06W","00F","05N","09D","04Y","02V","00K","99Q","03V","01J","02X","00V","10N","03Q","02V","06D","06F",116]
[117,"06Q","10K","00T","07J","10J","02A","99K","11J","03J","11N","12A","99C","02Y","04J","00L","02F","00M","04Y","10R","02V","09Y","04G","10X","12A","05A","09P","99D","06T","07W","11E","01N","11X","04G","10R","05R","10A","00T","00T","12D","09W","99H","10H","07Q","05A","06F","06L","03F","99D","09Y","10J","09W","05R","05C","01V","00F","10J","05Q","99F","06N","11N","02M","11C","10V","01W","04Q","10J","04Q","00V","06L","01E","08F","12A","07K","10E","00Y","99J","09W","12D","09G","10D","00F","02H","11C","03D","02Q","99N","03C","00T","08F","08F","10Y","99N","07J","00R","09E","02Y","05F","02H","09W","11D","11N","99H","04M","07W","03V","10E","01G","06D","99G","12A","10A","01T","01Y","05X","03L","00R","05X","06D","11E","11C","00N","12A","03N","06Y","04M","06M","09W","11C","10Q","02P","03X","05D","10J","04L","01A","04E","04D","04E","06T","10W","03H","03J","06H","03H","03K","03H","09X","07Y","07G","10J","06P","00K","09Y","10L","99E","09G","12D","02A","10A","11X","10L","00V","99F","06D","12F","10E","99F","08G","03M","06Q","12F","12F","12F","03Q","00V","03T","07K","99F","11T","99C","02V","04E","99F","03G","01X","03T","05F","08F","10A","10J","99G","05W","11M","10D","11X","02Y","09D","11J","09G","06V","05X","01T","03Q","08J","03L","99Q","00K","00L","06V","00N","10H",117]
[118,"03M","04M","06V","02N","09Y","06F","99Q","00V","01V","03D","09H","09Y","09H","06Q","04Q","05C","09P","06L","07K","10G","11T","05Q","11H","07G","99H","03N","05F","02F","05D","11A","07Q","06L","99N","08T","04F","10Y","04R","05N","09D","03Q","99K","10M","02R","10M","99N","99J","05F","04G","06K","04G","99M","08J","04L","10G","08F","11N","99Q","09X","06T","09G","05R","04Y","99Q","07Q","11A","07Q","03T","11E","05F","05Y","00D","05P","10C","05R","08G","11X","05X","04Y","04R","11A","11E","08F","10M","03E","00X","99Q","09C","99K","07G","01A","02A","10C","09F","05D","02V","99N","07J","06W","02A","04R","11C","01C","00J","04J","10H","99F","04F","05Y","11E","05W","06M","01J","04E","99J","99M","99K","00N","02N","04E","08F","10C","01T","01C","07V","05J","06A","06P","02X","01F","06H","03W","10E","99C","01R","02D","01N","10M","02F","02F","04Q","10J","02X","09J","00X","06A","02E","03W","05R","04G","02G","99Q","10H","07J","08F","06Q","99N","10J","04Y","01G","05W","03T","04E","05X","05R","02V","00C","99H","05Y","07Q","09G","00N","99Q","99Q","05F","12D","04G","04Y","03K","10J","09X","00J","99C","99Q","03M","06W","05A","02X","05X","03W","01T","01Y","00C","01T","05A","02M","00H","04Q","10D","06D","06F","02V","05W","02X","03E","09F","02V","04E","05A","00J","10R","00R",118]
[119,"07Q","04G","07Q","05N","11C","99N","03J","08F","01C","09Y","06F","00W","05D","06K","06M","02D","01V","04L","09N","00J","03T","10H","04F","08J","00V","07N","05Q","03X","04J","03V","03E","00H","11A","05A","05V","99K","03D","03G","05X","01V","11X","09C","03X","11X","03Q","04L","11X","05V","04V","01H","04G","99D","06Q","05C","02X","03W","07G","01D","04G","01A","10R","10H","10H","01A","09N","99H","99H","03L","10H","09G","06K","00M","03D","99D","09H","03V","00V","04H","02V","05N","00N","10N","04Y","09H","10A","07G","10N","06M","99Q","06W","11M","09F","99J","02G","04G","11A","06V","06N","04G","09H","09E","99D","02F","04D","01F","01X","02G","05W","04E","07Q","06D","08V","11E","99M","10D","03E","05C","00T","03V","01A","04G","10C","04H","08R","10E","05W","00D","04M","10M","10E","06T","06T","08M","10J","04M","04G","10A","10E","09Y","06Y","12D","03H","09Y","09X","05A","09J","01A","06P","04V","99C","01J","10V","03W","05W","04M","06F","00M","06H","05R","04M","12F","01X","10J","10C","04G","02N","09E","09F","01D","12A","03Q","11N","03T","07J","11C","01A","05C","01X","99F","12F","03Q","09A","04C","01X","10G","00C","99Q","09Y","02Q","01Y","00P","02D","06K","08F","99Q","01T","10R","12A","02Y","10R","01H","03T","04R","01A","07M","04E","02A","99Q","01X","13P","09J",119]
[120,"09Y","11M","11X","09C","10M","03V","02N","04G","10J","11H","07J","00R","99D","10X","04G","08Q","10G","10W","99M","03M","08J","10Y","99D","10J","07Q","12A","02H","04L","07H","09P","11N","07N","99K","06L","04Q","03J","01A","01A","08F","09H","10H","10D","04E","03D","09Y","99H","05N","07K","04D","06W","05C","03N","00C","05X","06W","03Q","09L","03Q","10K","01H","10H","02H","02A","00P","99K","09L","09N","00D","10R","10C","00C","09L","06L","02F","99D","09G","10M","06M","99N","09C","08T","03L","03Y","04M","10M","07J","10A","02V","01F","99M","99J","10G","06W","04D","11E","03E","00P","09W","01Y","03L","01C","06K","06N","10A","11A","05W","10M","02G","05C","11C","99P","99C","10L","09L","00P","06Y","09H","99F","00N","00V","03L","11D","01X","04D","06T","03G","03V","05J","10E","02N","04H","03H","02G","05X","06K","04N","10D","00N","04F","00T","06H","03X","09W","04L","02Y","10J","07L","00F","00C","06K","01C","03L","00M","04G","05P","09W","06F","12D","06N","00J","04G","09P","01G","02N","04F","02M","07Q","04D","11C","11X","11M","03G","11E","01Y","09D","10L","04G","99D","05R","03X","09H","04H","07Q","00D","02V","01E","11X","03F","09H","01V","03Y","10Y","05X","00C","09G","11A","11H","03W","05D","99N","09H","08J","02V","10M","11N","04F","02H","11X","99G","99G","01E",120]
[121,"06W","03Q","04N","09H","04Q","01A","10M","04M","01H","10X","06Q","10V","10W","03W","09N","02Q","01G","11T","07Q","01H","04J","99M","07G","11N","06W","09J","09G","04Y","08A","11D","11C","02T","11X","09N","09X","01A","99N","01E","05W","06F","07K","04R","02H","06A","06V","04Y","00J","09E","08P","09G","03L","01C","03V","09E","06K","11E","04Q","10Y","99J","06V","00R","05X","13P","06V","02M","11J","11D","09P","10N","99H","05J","11A","99M","00M","07N","06W","02V","08R","05F","06L","03M","01T","09H","01T","00F","05F","02Q","06Y","11D","01Y","10M","01A","03F","09C","01Y","06L","09G","01T","05X","02V","06L","04N","09X","08W","09H","04E","10R","99Q","00V","12D","05G","04Y","00J","01E","02T","04N","02A","00L","05C","05C","05C","99A","01G","02F","02N","03V","03T","09Y","01N","08K","99N","07G","06W","10H","10H","11T","01F","03N","05G","03G","05X","00F","02F","09N","02Q","00F","13P","05G","99M","09C","01A","12A","07K","01T","09J","08F","01E","11C","99J","03G","03Q","03M","01F","08J","08J","00N","00H","05N","10L","09H","06W","01X","03G","10N","10H","11M","05G","99A","04Q","03K","11N","00C","03W","07M","03L","01T","06V","12D","00L","00M","00F","00M","09H","00V","00F","03G","11A","00F","10V","06A","11E","05Y","11X","09N","04E","01Y","00J","06M","00V","01T","01A",121]
[122,"01V","03E","03Q","05F","05V","11C","10H","05W","05R","09W","04G","06M","01H","12A","99K","07H","10H","03X","05Q","06K","07M","11X","11C","04F","05P","10J","06Q","04V","99Q","11X","01K","09E","06L","05N","03N","04N","08P","99Q","07Q","04R","10G","00M","00J","10R","07Q","11T","07J","09X","00X","06A","00P","04N","09F","03L","05X","03C","10X","04N","11T","11C","99K","10R","02N","11H","09P","12D","05V","04E","10Y","99N","05C","01K","11C","06Y","10G","01E","11C","09C","10Y","00M","00V","09H","06D","10E","02F","08J","04L","05N","04M","01E","07Q","03G","00H","02D","99M","06Y","03Q","04E","05C","02A","10H","06L","10C","11T","11X","03Y","04Q","11H","11D","03G","04M","06Q","02M","04G","02V","10N","03L","00F","00T","01E","09H","00X","07K","02R","03H","04D","04J","00C","06L","10C","00M","10Y","00X","04G","04K","02P","09G","03X","01R","02X","03E","10J","10J","04E","02R","99Q","02P","99K","09Y","00C","02G","99F","08P","01F","99K","11A","10H","10Y","00P","05A","00D","07N","09W","01T","07G","07G","04M","01F","09Y","00R","01T","05F","00N","08P","05X","03M","02Y","10E","09Y","02G","09P","02Q","02R","04E","03N","12F","00N","00D","10D","02A","00V","03X","01Y","00N","02V","05A","11M","06W","09J","11N","01T","00F","02T","10R","00C","10C","03L","03G","00F","02Q","09D",122]
[123,"10N","09N","09Y","05R","09F","09C","05R","02A","03W","06Y","02R","03W","11X","08J","08J","07Q","01E","99H","09H","09H","00L","06Q","02M","03Q","09W","01C","06Y","07T","07Q","05W","10J","01J","06N","11N","06L","02M","07J","06W","10Y","10H","03N","11M","11M","99M","09G","07W","10G","06Y","09D","05F","00V","07K","09P","06K","03L","09N","03M","99N","05T","01E","02Y","01G","09Y","01X","05N","05X","99D","00N","00M","10Y","00G","11C","01A","02N","04E","11N","11E","05T","00H","06F","07G","02A","02R","00C","01K","01G","04H","07M","06K","00V","05W","09P","05Y","00X","06W","00J","01F","03L","00P","11M","09F","08G","00L","07X","05W","03N","99D","02Q","02A","05X","10D","05Q","07N","03M","06K","06A","04G","12F","04M","09D","02A","02G","04X","00P","02X","05N","10A","00X","10C","02G","02Q","00R","11C","10K","10G","00M","10Y","09X","05Q","02Q","99F","00X","11E","10E","05G","06K","06D","08N","99E","10G","10Q","00C","07V","00J","02A","03G","10M","01Y","00D","10N","02M","06N","09Y","10R","11N","05F","02A","06M","99H","04N","05W","03Y","07M","11M","09W","00D","02R","09L","02N","03W","11E","08E","09C","11N","05A","11M","11E","03N","04H","09W","06W","11H","09W","01Y","03T","02N","09X","02D","02N","11A","03L","03Q","09W","05A","07J","03N","09H","00T","04E","10K","09C",123]
[124,"99N","01V","09X","03W","99M","04N","11N","11E","06Q","09X","03Q","04Q","05V","06M","03E","00X","99J","99J","07J","05X","12A","99K","03W","11E","11H","13P","10M","99M","99F","01F","09N","02N","00R","09G","06K","05V","09F","03D","01A","05F","06Y","05W","12A","04N","11C","03X","06K","08J","02Q","03D","01A","06Y","02M","06W","04G","05V","03E","09D","04Q","11A","06K","01V","07N","01T","09L","11C","10Y","00F","04R","06F","03Q","01F","01J","06D","00J","01V","99M","09N","10N","03Q","11N","06K","04N","05W","03K","06K","11A","04Q","03V","05C","01E","05Y","06K","11C","02A","10Y","08J","00K","06W","09E","06K","08J","08N","04G","06F","03X","05Y","08G","01Y","08F","00Y","04L","04F","03F","09E","09W","10N","03D","04Y","09W","00V","99C","04J","04G","02F","03T","06M","10J","09N","09A","03Y","06Q","00F","00Q","05Q","00W","00D","01T","04R","10E","04E","02G","04M","04M","03F","04E","04C","07X","02D","10Q","06K","06Y","09F","08T","04Y","12A","05X","01A","02N","03J","00F","04G","99H","06N","00N","08G","00M","03T","08F","06F","06M","05Y","01A","11X","01E","01E","09W","08J","06L","06Q","06K","04G","02Y","01E","00F","02X","03J","03G","00Y","03X","09E","08F","03M","09E","07M","06W","06K","02G","09F","05F","06K","03G","08P","02Y","10L","00J","01T","05Y","11E","09C","99M",124]
[125,"00Y","09X","09C","10K","07M","11M","07G","06W","12A","10J","11C","06Q","03W","99Q","10R","06F","05Y","09N","09E","01Y","04M","04Y","99K","10K","10K","04G","02A","01K","10K","06K","09G","03M","11N","10M","09N","00L","01V","11D","05C","05N","11M","05X","10K","09G","05Y","99N","03Q","01F","00N","11M","01Y","99N","06K","09H","00P","01K","11X","11N","04C","99M","10M","99H","07K","00C","09D","99J","03W","10N","06F","99M","01R","99F","10G","04D","02Q","10N","05W","07P","11A","09W","00D","01Y","00N","06N","09E","06V","02N","04G","02M","09D","03F","01G","05F","07R","01A","09G","11M","05C","01A","01H","00Q","06M","11H","01V","04R","10C","10X","03D","10G","05C","05N","03W","08T","00M","10G","03M","00V","05R","01H","05X","10N","02N","08A","10A","04E","02M","10N","03X","10K","10G","11T","00X","00D","10V","00D","10M","06M","04Y","01A","00Y","06D","06T","10D","06T","00C","00K","01C","11H","02G","04M","04J","09N","10Q","00N","06Y","04N","99J","99M","06L","00N","99Q","00N","07Q","03N","01Y","05A","06W","00F","03Q","11N","03F","00C","02M","00P","02A","12F","05A","99C","01J","00P","11M","05G","06Q","01H","04E","00P","12F","00C","06L","12D","05X","01E","00J","02A","01T","03E","09H","10J","06K","09C","00V","00P","05F","11H","01Y","01X","05C","05W","01Y","00V","10D",125]
[126,"99M","99F","99N","04Q","03W","11A","06Y","09E","08T","05A","99D","08F","12A","05G","99D","05J","10N","01N","01J","00P","09L","03J","09Y","09Y","10M","06F","10J","10H","06M","09G","06Q","99N","08J","06Y","99D","04D","00H","03E","09L","99H","11A","06F","09H","06K","09E","09X","03M","10R","11D","07N","05X","02Y","11A","02A","01Y","09F","03W","11X","06L","03F","99N","00H","05V","08F","09F","10M","01N","01Y","01G","03G","10A","10H","10M","04J","04L","10C","09E","08D","09P","04R","06W","09E","03X","08J","99C","99J","03X","11M","10C","11D","10H","05F","01V","00J","00P","08G","11X","10G","09E","01Y","05R","99J","10M","06K","11D","03T","99F","03T","00N","00M","00P","02Q","08J","09W","09W","11A","06W","01A","00P","05W","01T","00N","99K","00T","02G","03D","06D","02F","06W","07G","10W","03W","01R","99F","11C","09C","07K","08A","01V","11A","10V","10D","04V","00C","01V","01R","09N","04Q","05J","02N","10V","06L","05P","07N","99D","10Y","03F","03N","07K","01A","09F","12F","05C","00T","08P","05Y","01F","02N","03J","11C","00J","02R","00D","06N","05W","99Q","99N","13P","09P","09N","09W","05T","05R","05C","00N","09E","06W","04Y","01M","04M","04Y","09W","06W","11C","00D","00T","10J","06L","05Q","03E","10N","03F","00D","10G","07G","07M","01Y","02M","03M","08F","09L",126]
[127,"06A","10J","00R","99E","09E","01V","07K","01V","11C","06Q","09Y","01K","10J","00L","00R","10Q","07N","04Q","11E","06W","99Q","10Q","06Q","05V","12A","08J","07K","09P","03Q","01E","08T","10H","04Q","03E","09P","01E","08J","04F","01V","01D","09G","01E","09E","05F","11N","99A","03D","07J","10A","10R","01V","99J","06L","00V","01V","10N","00R","07Q","04N","10G","11C","09Y","12A","05X","99J","03F","99Q","06W","05Y","03Q","10J","05A","05A","07Y","01G","11E","11J","03M","08J","00R","03L","05C","03E","05F","10Q","10R","04C","04F","05C","11J","01F","03Q","00M","11M","10G","02N","02V","01A","10N","06K","11X","05R","10Y","05T","09W","05Y","08J","03F","06H","09W","03N","09N","01A","05A","09H","09P","01T","04M","05A","02A","01Y","01R","99D","11H","05D","00P","04Y","00D","99J","03H","10A","10D","02N","02M","03Y","02N","09C","07P","04V","06L","01R","10G","99C","00N","01F","04V","09W","00M","06N","06T","99F","08N","05F","00T","99N","99A","10Y","09E","00J","07J","00N","03L","10H","03D","00D","07J","09D","00P","10R","01J","05F","00T","07J","03V","01A","09P","02X","10D","99Q","04M","99J","02X","00L","04M","00P","05W","05Y","08J","09G","03F","03X","09C","00P","01T","05F","00J","03N","02N","06L","11X","06W","09G","10D","08P","00N","00F","09E","01T","99P","01G","12D",127]
[128,"99H","07Q","03N","00Y","01C","02N","11X","01E","02Y","05N","00Y","00J","08G","03T","06L","09C","08T","09X","06H","11E","10Y","11N","10C","06L","03X","04F","03D","10J","05T","03M","99M","10D","11H","10C","99A","04Q","10L","02M","01K","07Q","10M","10Y","04G","01V","99H","08R","10K","12A","01R","02R","09D","99H","02N","01Y","04E","01C","06K","11C","99K","06W","99H","01F","09C","04M","07K","01F","99K","07N","09P","11N","10Y","09Y","99H","07K","13P","10G","04G","11N","05Y","05F","12F","01A","07N","10G","06K","00M","03Y","11N","05Y","00P","09D","00T","11A","02F","01V","00H","05W","01Y","01E","00V","99F","11D","06W","03W","10G","01E","10D","03Y","03N","01V","04Y","04D","09F","10Y","01Y","09X","09E","01D","04F","11J","01A","04L","05V","07K","04L","11N","05T","04L","00N","11D","00D","07R","10Y","10C","00R","01C","08P","00C","11C","02R","05R","00Q","06K","03X","11M","05J","03E","04G","00X","09A","03H","01N","10V","11M","09W","10J","10C","00V","10R","03T","09G","08T","12D","00N","00F","05W","05C","10L","07N","09Y","00Y","11E","01T","02V","11J","00N","00L","05V","07R","10K","03V","10V","11N","12F","00V","09F","03T","05W","03Y","09L","04E","10D","01H","01E","05Y","05N","99A","00X","07N","10H","01Y","01F","11M","06L","01V","99G","01V","03D","10C","00T","10M",128]
[129,"11C","09L","06F","12D","99Q","99A","09P","11C","10K","99M","03M","09P","08P","10W","11H","08Y","09G","00J","01C","09W","07G","07J","09X","01H","99F","10C","99M","08L","08D","11N","05N","04R","10G","07K","10G","02N","03Q","07G","03F","09D","11C","03V","11A","99J","01H","00L","05C","99H","12A","10Y","02A","03Q","09G","10N","09W","02Y","06N","11E","05G","03V","09N","09W","04L","10X","10R","10Y","06M","08J","03Q","09E","09Y","00H","02N","05V","00C","01H","10C","06K","06K","00H","01V","06W","01T","02M","00J","02V","00L","11X","11A","10G","09H","08T","09P","03C","00V","03G","03F","00P","06N","00P","09L","04G","99F","02N","01H","08J","00Y","99P","03G","02A","05V","00N","00N","10M","00V","06F","06N","10R","01T","10N","09E","04Y","08D","05R","10G","00F","03M","10Q","09X","99H","00W","04E","04D","10Q","01R","05R","00H","05T","04J","99N","05J","02F","04E","04Y","11E","02N","05D","06Y","00D","00X","05T","05A","09H","00F","11C","01F","09D","05W","01E","00H","05Y","01H","03F","06M","09P","06W","08F","00J","02R","06A","05A","00Y","05W","00D","01F","05C","05Y","01G","03M","00N","05W","00F","01M","99Q","09E","04G","09G","02A","10J","10Y","06V","00V","11E","05W","03F","00P","09C","00C","12D","10G","00P","02M","11N","09P","11E","09F","01A","00P","03N","10X","03F",129]
[130,"07N","09Y","01D","99F","10H","03E","10G","09D","10H","07K","99M","06L","10C","09L","06K","04G","03Q","06M","09L","08T","08N","00R","09F","06Q","09L","03M","01V","08E","99M","11M","03D","11D","09C","09D","10X","03T","01G","04G","03G","09Y","04N","01F","99F","07N","99M","04J","08F","02M","04Y","04M","01E","03T","99F","00P","03G","06L","11N","05A","06D","11M","11X","12D","03X","99G","99H","03G","02M","03M","99N","10G","00F","04M","09G","11M","99F","11A","09H","02N","00M","06A","01Y","01E","01G","01A","04H","03Q","04Y","99J","01H","01V","10R","01V","01E","10J","09H","04F","10N","05X","11D","07N","02Y","06Y","06L","10C","00M","08G","05V","03G","09H","10N","13P","00D","06H","01A","05X","08T","01Y","08P","08T","03G","06W","99H","04Q","00L","10D","01T","10K","06T","00Q","01R","10V","04L","06T","05R","10J","02X","99J","04D","03T","01G","04L","01R","06T","02G","06M","06H","05T","06L","04D","02F","06Q","07G","07H","11A","01J","10M","01F","09C","00M","03V","06V","00F","02A","11A","01V","09F","11C","05W","05C","99N","00F","03T","06W","11E","10C","02M","06K","06D","02R","01T","08T","04L","04G","00J","10D","03G","07J","03L","09N","04Y","11D","12D","06N","04E","09F","06M","06Y","05T","07Q","01E","07N","00J","99J","04N","03V","05A","06W","01F","09H","99F","04G",130]
[131,"99J","09E","09L","04X","07J","10J","09F","99M","09Y","03Q","06L","11T","09Y","10Y","02M","11C","01A","06D","05C","06N","03W","05V","09E","99M","05C","11N","06F","08X","02M","09E","06L","05Y","02N","99H","99K","99N","01D","01D","04G","99N","01V","09D","04Y","99H","11X","11X","99Q","11X","00F","10M","10Q","07M","09C","07N","02H","01V","07M","99M","01J","06K","11N","03N","06Y","03C","11C","10H","00L","08T","09G","01A","05T","08F","99N","01E","08T","01A","03F","03T","02N","09P","01T","00P","99F","02N","09Y","03E","05R","10R","11E","10C","99M","99J","03Q","01R","11D","08P","11N","09E","05W","10N","08J","99N","01N","10J","01E","02R","10E","02N","01T","06K","10E","06T","00F","06V","07N","06L","07N","07V","02M","99M","06N","00D","10E","00D","00F","06W","10D","06K","08C","06Q","04D","10V","04V","03E","12A","01T","05N","11T","10T","08N","02M","10C","02X","10V","00Y","03X","01F","99J","09C","04V","05X","02M","99E","00H","03D","12D","99M","10M","99N","08G","09P","01Y","08F","03Q","00J","00F","01G","05F","04F","99M","03G","03J","00J","11N","00M","01T","00H","00N","09F","01J","07N","05R","06K","09G","01A","10R","01V","07Q","02Y","00C","05W","09L","08T","03X","01F","03D","07K","11C","02M","08J","09E","05A","06N","10L","00D","06V","04G","01E","05A","12D","99J",131]
[132,"10H","06A","03E","02A","10L","09X","99H","00M","06L","04N","08T","09N","04Q","05R","06N","99E","11X","10X","09G","03V","06N","01C","09N","09F","04Y","10M","04Y","06M","09A","03F","09X","10G","04N","03D","02Y","07G","09P","10L","06K","01K","09F","03F","01F","11C","10N","06M","04F","07N","04H","99F","11D","04M","02A","01E","00K","04F","06P","09Y","02F","03G","10L","03F","11T","04E","10N","10N","05R","01T","09E","07N","04E","06K","05F","11H","01D","09E","01A","04J","03Q","10Y","06N","01V","07M","11H","03Y","11A","06M","08G","11M","09H","06K","11X","03G","06Q","10C","11X","02N","01E","10C","08J","04F","07K","01C","03T","09E","00T","00F","10E","10N","99M","03X","04H","06W","01V","10N","10C","01A","02F","09P","06K","11J","03X","00C","00J","00X","02N","12D","03C","11M","12A","04N","10K","09L","00K","02Q","08Y","04G","99F","10D","07K","03X","00C","05J","06W","03J","03E","04E","10A","00J","01R","12A","01F","00K","99Q","03V","05C","00H","09W","00L","03F","03J","00D","01K","99F","11E","00D","03F","09G","09E","09E","00H","04E","09G","03F","00H","01F","00D","02R","06K","03N","03M","03Y","10J","03V","05X","11X","10L","09L","12A","99A","03M","04Y","07N","06W","01V","02R","09N","99H","99N","06K","08T","06W","01F","07J","06W","08T","01E","01A","00N","99M","06K",132]
[133,"10G","01J","05A","07N","10Y","03G","10Y","01F","03M","09C","10J","04Y","08R","04M","05V","03Y","06K","00L","06Y","07N","09P","05C","08G","11C","12D","05R","11M","10M","09F","06V","03Q","03Q","03E","07N","01N","06L","07N","05A","99J","11X","10C","11D","09D","04G","10H","01N","08T","99F","99J","10H","10C","04G","12D","01A","06N","02M","09N","10N","03N","01G","05N","12A","05F","06H","03Q","01G","11H","01A","11E","10R","00X","02A","11N","11A","06D","00H","01F","04L","99J","99N","08P","04G","99P","09F","03C","04F","01J","07K","00P","04G","00M","06K","07G","02Q","03N","04G","07G","10Q","10G","08T","02M","03T","99J","06N","03F","99Q","04E","05F","09E","11J","00M","09X","05A","11J","08T","07N","01V","05F","00M","00M","07N","05Q","02N","11A","01R","00D","04H","09C","10V","04E","00F","08M","10M","04R","10K","10E","11M","04H","08M","00C","04V","12A","09C","01T","02X","09E","02N","99N","01K","00F","03T","04F","12D","03J","10N","00H","10N","05A","01A","01T","03G","07G","11J","01E","01T","03V","10N","03J","99F","10Y","00T","05W","11N","02N","99M","00J","06A","03M","07M","02Q","01F","10Y","10N","00Y","01Y","05F","09F","00K","10K","02D","00N","03F","03V","03G","05W","11M","99H","01H","06Q","10M","04G","05F","09E","09G","05Y","03G","07N","03F","07N","02D","05X",133]
[134,"10R","99A","99A","03D","99D","09H","01J","03N","09G","06L","04Q","05Q","99K","06L","00Q","01R","03G","99K","05N","04G","06Q","09F","10L","06K","03F","10H","10K","09E","07M","01V","06Y","10M","10M","04N","08J","00J","04F","07J","03V","10C","02R","11J","05Y","01H","00T","09N","07G","05C","10C","04N","10N","05N","10K","11J","09H","09P","01H","01H","07X","05Y","03N","99M","07M","01Y","06Y","09W","04N","09E","11A","10N","99C","99M","10N","00D","11D","00M","00M","08N","01G","10R","01H","03G","06W","10L","10G","09P","06P","06V","11N","02A","10C","07N","11X","10A","05W","01E","06N","01V","09H","01E","10M","01J","06M","99Q","99J","00J","04L","00C","04M","03F","04E","03X","09P","03G","05W","10W","07G","01T","10Q","00H","07G","02Q","02F","00Y","10C","03F","07H","01R","08Q","09C","00Q","03X","10G","11T","05D","02F","00M","03K","04H","04G","01V","04V","10G","03K","00M","10D","00R","04D","03X","05D","02X","03D","11T","09E","05C","09X","01A","00M","06P","10L","05W","01E","12A","08G","03V","10Q","99M","11E","08T","99H","02M","02M","08G","01F","10N","05W","03F","07M","10M","08X","03F","13P","09Y","03J","00C","05N","01T","02X","00C","01E","00C","03G","04G","00M","06V","00Y","99M","04D","05R","02N","03V","07M","02N","06Y","01T","03M","00P","00Y","04M","10D","03G",134]
[135,"02R","10R","01J","07H","09N","09Y","11C","03F","06K","06V","03E","06D","08J","11X","99N","10A","11N","99A","06W","05W","10G","04M","05R","03W","01G","06Q","09J","06D","02N","00M","07K","01E","06Y","11X","02M","03E","03M","11A","06V","10R","11H","09H","03V","10Y","99J","06D","10L","04N","99C","11A","06N","99F","11J","04G","09D","02N","04Y","10H","99N","09E","07J","07Q","03M","99P","02R","00H","01M","00P","02N","11X","03W","05C","06K","10A","04N","03F","01E","01H","11N","02N","04F","07N","05F","07J","08M","09G","99J","10L","07N","10N","00H","09G","08J","03K","07N","01D","05Y","09H","01V","05W","05V","02Y","09N","10W","11M","00Y","10N","10N","01E","04G","00D","03Y","06V","03N","08J","07K","11J","02Y","03M","01F","00P","03K","06W","05N","09C","09F","99E","10G","03X","02X","01E","05R","02Q","01V","02G","06D","10R","01N","00G","01F","06K","10Q","09E","99J","10A","04L","03H","02N","06T","04L","00Y","04D","02X","05Y","06A","99M","09W","10D","04G","01F","01T","01T","10N","05F","06W","06V","06K","07J","06W","10H","00D","01E","01E","05W","06K","00Y","07M","01T","99K","04H","06N","06D","11T","08P","03M","07G","08R","10W","06D","11C","03G","02A","05W","09D","00P","01A","08T","10V","10L","03G","06N","11N","03F","02R","00F","05W","06N","03J","10N","02A","10Y",135]
[136,"08T","11A","10J","06L","99K","06K","10L","03G","04Q","10C","09C","03E","09C","01C","02Y","03Q","11A","05R","01M","01F","06K","08F","10Y","02Y","05X","03C","08F","11C","12A","01A","07N","01G","11M","99N","10Y","06M","05F","11X","05A","01J","02M","01K","04M","10H","10C","05R","01H","10K","03Y","00Y","05W","10N","03E","09D","05C","11X","99K","09G","04J","07G","11H","02A","10Y","00V","06N","99M","03E","10Q","06A","10H","02Q","99H","07G","05G","00F","03G","09D","07Q","06A","09E","09E","07G","04F","09D","09L","02N","04K","10N","09E","05W","01G","11A","09G","11X","01E","07K","04F","11J","11J","10R","01H","09E","03T","09L","00H","07J","07N","00P","00P","01F","03F","10A","07G","10N","06N","99A","00P","00N","07N","10C","01E","02W","05G","02Y","06H","08R","00C","02Q","00C","00X","02N","05Q","04L","02N","09L","05T","03D","05R","07H","03E","00K","10K","10C","11T","03T","00X","09D","07K","10Q","00D","02M","07J","99F","02R","08J","10W","00R","09D","03D","06W","01F","10R","03N","11X","01H","00P","09H","03Q","06K","11E","02R","03V","01F","04F","09H","00F","01G","04N","10Y","03Y","00M","05C","03M","00F","07N","03F","05A","04G","99N","00V","10G","04M","08P","05X","02N","06A","02R","01R","00Q","00T","08J","01A","05W","08G","00J","99P","08T","03T","00P","04E","01K",136]
[137,"07G","09H","07N","06F","06L","07Q","11M","09H","10Q","07N","99K","09E","07N","99H","11D","03K","00T","05G","04L","08J","09E","10L","10H","03M","01K","03W","10Y","05Q","09C","03G","11X","01H","01J","10H","99H","01J","05Y","08J","01F","10G","10Y","99J","05A","03Q","11E","00J","11M","99N","08L","03Q","10G","09E","99N","05W","10Q","10H","11E","00Y","00J","00M","10G","08F","02D","03L","07J","00R","10X","01V","01E","08T","07G","07Q","00R","00P","05V","11D","10G","11M","11X","05Y","03V","03V","03D","00M","05T","09E","11T","03G","00Y","03G","01A","11N","01G","12A","06N","01A","09P","09D","10Q","01F","04Q","05N","99N","10G","08T","00F","00N","06W","05W","01K","03T","99J","11J","09D","01F","11X","08T","00J","10L","09H","01V","06Q","04D","06P","03X","03Q","05D","02N","01T","03W","05T","02X","02F","03T","06T","01F","11H","10Q","03J","99J","03T","05Q","00C","05T","01D","05R","00K","01E","02F","03X","03N","04Q","01C","04M","08F","10H","09H","03F","02Y","09G","00J","04F","11C","00P","07M","10L","04G","03F","11X","01H","11X","07J","00F","07G","03F","09F","07J","05F","11N","08M","09E","09Y","09F","02M","09H","01V","00J","06K","03K","99M","01E","10M","01F","04Y","11N","00M","10H","00J","07J","03Q","05W","07J","09P","00Y","08G","10N","03G","00J","01T","03Y","01F",137]
[138,"03J","10M","11H","07K","10G","10M","04N","01G","07N","05F","09N","99K","06Q","10Q","04N","03X","06V","99N","04X","08P","05R","02M","02Y","10M","02A","04Q","99N","05G","04F","08T","09Y","09C","10R","09E","01V","06Y","05N","09F","10Q","11N","10L","06K","01G","03E","09D","08E","08G","09F","03C","07G","03N","11H","12A","01F","01K","09L","02Y","99J","04M","10C","09G","11J","09F","03F","10M","06K","04G","11J","06K","99J","10M","04G","10H","01T","04Y","11M","10N","05Q","10R","01E","04G","01F","10G","10C","11E","10N","01M","03D","08T","10R","03V","11D","01A","03W","09D","11M","04G","03G","03G","03V","09N","03E","99A","08A","03G","00P","05F","04M","10C","01G","06A","10V","08P","10Q","03F","09C","08J","06M","00F","03F","03G","04V","00N","00M","03C","11H","05V","03Y","05T","10V","08X","03N","03K","06F","04V","02G","11X","02Q","04D","02Y","00X","00D","00F","10Q","11X","04D","10D","01V","10A","10C","03Y","09X","10N","06N","11A","02A","06K","01E","03E","11N","01A","10Q","10R","00M","03M","01A","01V","06A","99Q","10R","11E","00N","10L","09P","03G","06W","00F","02Q","99D","10V","01H","10A","02M","09F","01V","07J","01F","02H","11T","03G","09D","11C","01A","11H","05A","03T","03E","09G","04M","10N","01F","09F","00M","07K","10Q","05Y","07G","05N","09E","06V","10C",138]
[139,"11X","06K","11A","11X","99F","99M","07J","06N","10M","09L","99N","05R","04G","10G","08P","05G","11D","09D","11C","09E","08R","01M","03N","04Q","99A","09Y","11A","03T","00L","07N","01H","08J","02R","11H","99N","11A","09E","01V","09W","05Y","07G","08T","06K","08T","10G","05G","11N","04F","09E","99H","09H","10C","99M","07G","08P","07G","09E","99H","00L","07N","04F","04G","09H","06N","10L","04G","06K","05A","99J","11E","03K","10X","10Y","00N","01T","01G","11D","10V","07G","06K","07M","05W","09P","10X","07R","06A","01H","10M","09G","03N","03N","11E","04F","05T","07G","11E","11E","05W","00M","03F","07J","03Q","04Q","09C","01A","03F","06D","00F","05A","00H","03V","06W","00P","06N","09D","03D","01E","11M","09F","04G","05W","03Y","10A","01D","10Y","00T","07X","10C","08H","04L","02G","11T","10A","00C","03K","03H","03E","03Y","07G","00F","05T","04Y","00D","04H","04D","10V","01N","00D","01R","12A","04C","10L","01A","00M","09A","01N","10R","05X","06M","01E","11N","05A","00T","06A","00P","00J","03V","11M","05A","09D","06A","00D","05A","07M","10R","03J","03M","02M","10H","06W","04G","03E","02N","08G","01T","09G","03G","04E","05L","09C","03F","99M","08J","04M","10L","01G","07N","09C","08T","05A","01A","08P","04G","99N","01H","02M","03V","02R","05W","04N","03V",139]
[140,"10C","04N","10M","99K","06Q","10Y","04F","00H","03E","11X","11M","06K","09J","08R","01V","04H","10R","04J","11A","01A","01C","04X","08J","01C","08F","03E","05N","05T","09P","01H","00Y","06F","10L","02R","09F","11H","06K","05F","10R","00R","04F","10G","08F","10N","10R","11M","10R","11N","10Q","02M","03G","03D","10L","08T","03V","05R","99N","06A","99D","10R","10C","00T","04Q","05C","01J","03V","09E","01E","07G","01H","06Q","09H","99J","03E","11E","06K","03V","04M","11E","11N","00P","08T","08G","07N","06Q","01E","10K","01D","06W","07N","10G","05A","00T","06L","01F","03D","00M","08J","09D","09D","99N","03N","99K","09D","07N","11E","04N","02R","07N","10R","08R","10K","01T","09H","04G","10H","05W","01E","08P","01G","09D","00F","10Q","11M","03W","07J","05R","04V","99A","10D","00N","09N","03X","04V","10C","03N","03G","00J","03K","09E","02N","10V","01R","99F","00L","09C","04H","01A","09E","10M","04Y","99H","03D","01D","12D","03V","01K","10C","05N","10R","08G","01A","04G","01D","05Y","01H","10R","00D","04M","03Q","99Q","01H","00P","10R","01K","00T","07G","04F","06Y","06T","08J","05Q","07M","00N","10N","05Y","05W","06V","05D","10D","01T","05X","03G","10N","07J","03Q","09L","05Q","03W","99J","01E","00M","05Y","10Y","09P","11E","05W","00M","06W","11C","10Q",140]
[141,"09G","02R","11C","99D","01V","09L","09G","10C","03Q","08J","07N","12A","03N","08N","09P","04Y","01H","08R","05F","01E","01K","99D","07J","09N","00T","10L","10H","10V","06F","04G","06F","00T","07K","00Y","10C","02Y","11X","06A","11H","05A","09P","01A","03J","09D","01D","10Q","06N","10W","09N","99M","00M","09P","11T","08J","05W","10W","01N","01J","01C","11E","10Y","10Q","07J","08J","03E","01K","11E","05W","11N","06A","09N","03V","08J","00L","00N","07N","06N","10N","01E","01G","01E","06N","00Y","11D","08P","11X","99Q","09C","01G","00H","07N","01D","11M","03Y","03F","10L","00H","08T","05A","07G","99D","03D","99D","04C","09D","11H","01D","00T","06W","03N","03J","00F","07M","10R","03V","99H","03G","03E","00J","11D","08T","06T","03Y","06M","06Q","01V","03K","10K","99N","05D","01T","05T","10Q","05T","09C","05V","06V","05G","10A","10A","09J","09L","00X","02F","10Q","06D","11E","03E","04M","09L","00D","10D","10D","08J","07R","06K","03G","11H","08R","00Y","00H","00P","06K","06W","05W","03G","05Y","04G","09F","00Y","00P","06H","00T","05Y","01G","07M","11X","09P","03J","99J","01E","10G","11M","05Y","08J","10L","00F","01V","04Y","05X","07N","01V","00M","03F","11E","01E","09E","05D","11T","00R","07G","10L","03M","11X","05A","08J","01F","10Q","03G","04L","06N",141]
[142,"01H","10Y","99J","01V","02M","99J","02M","10N","07J","99H","11A","03X","03C","99F","09D","10H","03M","06W","99D","00M","04Q","08J","06L","05R","11C","05L","04G","07R","04G","08J","10M","09W","05N","10G","11N","09F","99J","00Y","10C","01H","03D","00H","10G","01J","07N","04Q","99F","06K","99H","03J","03F","11M","04Q","10R","00M","11M","12A","03N","08P","10N","06Y","03V","06D","05W","00Y","10R","09F","07M","03G","00T","04H","11H","06V","10R","03Y","05Y","07N","04F","11M","11X","05W","08J","07J","06H","03X","05A","01K","11H","03J","07G","05A","09E","11N","10Y","10R","02R","09E","08P","03F","00H","01V","07M","10X","01C","06K","00M","01T","00N","99P","05A","06W","04K","05W","11H","00M","11M","10Q","11A","06W","10R","08J","10K","01E","03D","12A","05F","09N","10V","02F","09L","00P","00C","04H","03Y","04H","04H","01G","06L","99Q","01D","11N","03Y","00G","05R","08E","09W","10Q","00L","02Q","10Y","05G","01M","06F","05C","10J","04K","03V","10N","03T","09P","06W","03V","03V","04M","01A","01T","03N","11X","10C","05A","03T","06W","05Y","04G","11D","11N","11H","00Y","07K","04N","01A","08X","04X","05W","11H","00F","11N","99J","07R","10R","00M","01G","01E","00T","08G","11X","10N","10A","11A","01A","03G","00T","05A","11D","00P","00N","08J","09G","01E","09L","05A",142]
[143,"11N","00Y","08T","12A","05R","01N","11H","10G","99K","99A","05N","04L","10H","09P","06Y","04L","11M","07W","09X","11J","06L","07K","00Q","11X","10R","02Y","08J","03C","05V","00H","05F","11M","07J","03M","09E","99J","11A","03Q","01G","09G","01H","09W","06W","11M","11A","10K","11E","04Y","06W","08T","10R","11X","00Y","00H","08T","10G","10Q","01V","99F","11D","08G","05A","99K","03G","08T","03N","00Q","04F","11X","11A","08X","10N","09D","08E","07G","08T","03G","09P","09E","03G","01F","00H","08T","09P","10V","11N","03T","07G","00T","01F","10N","03M","06V","09E","00H","99J","08P","05A","01F","04G","09G","99Q","11D","00L","01G","11J","03C","08P","07G","09H","02Q","02F","03G","01F","01E","05N","03V","00M","00Y","01K","10Q","04H","11X","02N","11D","01F","08P","05D","03K","10Y","04Q","99F","03Y","02Q","06Q","03K","00T","06D","02M","02N","00D","99F","05D","04N","08X","00J","04Y","11A","10J","02Q","03W","05N","06Q","09F","10K","08J","01G","03G","11A","02R","11E","05W","05Y","03T","01F","01V","00T","00H","04G","06V","10R","09F","10Q","09E","03V","05Y","01V","04L","01C","11T","03G","00D","10H","09E","05W","00T","00Y","01G","11J","10M","04M","99A","03F","11D","00M","01D","03Q","04J","08J","09D","08P","08G","04F","06K","01A","04M","00M","08R","07G","00C","11H",143]
[144,"09E","00R","11E","11M","09X","00T","11A","05A","99N","01N","06K","03M","03Q","09X","11X","99M","09E","10C","01K","03F","10K","99N","04G","07J","04M","10G","12D","04M","11T","10R","09L","06K","08G","05F","11X","08R","05A","09P","09H","00Y","07J","07N","11D","03N","06A","10X","11D","06N","06Q","09D","05A","05F","07J","03G","08J","04Q","01C","02R","06Y","01V","07K","11H","08J","10N","01V","05A","06Y","05Y","03M","09D","11M","06V","11X","00Q","06W","09D","03N","99Q","03G","05A","01A","00M","00H","01G","03W","11M","99H","03J","03F","03F","03G","10R","04G","04L","03G","11N","05A","00M","03V","01A","99K","06N","05V","99H","08J","09P","02Q","00M","09D","03V","01E","05T","03M","01G","00H","01A","10R","03Q","02R","03V","03N","08Y","06D","03N","09L","01A","99Q","10M","04Y","10K","07K","99A","06Q","09J","00Q","03Y","10L","10A","99F","11M","11T","09C","00J","06L","09G","05T","04N","02M","03K","10V","01V","10Y","09W","02M","99F","01V","07N","11D","01V","99Q","00Y","07M","99M","10N","03G","03F","05A","08R","11E","02R","01V","10L","09F","05A","10G","09G","03Q","00F","09L","04D","08P","12A","11X","05A","08T","08R","00T","09W","99F","01G","07M","10R","09E","01V","10R","99Q","99J","08P","03J","10Y","11J","00H","10R","09D","05W","01E","00H","00D","04F","10M","00T",144]
[145,"03Q","10H","11M","06Y","02Y","06V","09E","10Q","10L","06F","09X","06W","09X","10K","07G","04M","07G","11D","12A","03G","07W","09Y","99H","09L","99M","11X","00Y","09Y","09N","01G","03N","08P","08P","01H","07G","10R","04G","10R","00T","08T","02N","03G","01K","11A","08T","99K","07N","10L","00J","09E","99P","07J","10J","03V","01F","99N","03Q","07N","05R","04G","99J","00R","10K","10G","07N","10C","06L","07G","08P","01D","02W","00T","02R","00F","09D","10R","01G","08V","04F","03M","10R","09D","10R","11J","12A","03G","00Q","10Y","04G","06N","04G","08J","05A","11N","10Q","01G","10R","07N","03N","06N","06N","11H","00R","06M","00R","00N","09H","11E","08T","10Q","00N","11T","09E","10C","10R","00T","09D","03N","01F","10G","10R","06W","06H","09F","00C","02R","05Q","01K","02G","10M","06Y","11E","00R","01C","02F","05G","03Q","00F","99M","00M","09E","02Q","03X","02Q","10R","99F","00Q","07V","03Y","06Q","02Q","99Q","03L","00P","00Y","00T","05Y","07N","02M","09F","02R","08P","05A","03E","09E","00T","10G","00T","11D","08T","01E","00P","00Y","00M","07N","09E","03D","07J","02M","00D","05Y","10T","06L","01T","07M","01A","00D","05C","07Y","00T","09H","00T","05Y","10G","00H","10R","03D","04L","05N","11M","03F","11E","01E","11E","03G","00P","04F","00F","08T","05X","01G",145]
[146,"01J","99H","10X","06Q","05N","04G","03D","11D","10W","01H","10H","99H","99H","99N","11E","03M","11E","09P","03X","05Y","99F","07Q","05N","05L","10N","99D","04N","10Y","10J","05A","04N","10R","11D","04G","01M","07K","00Y","11M","06N","11A","01J","10R","00Q","10G","11M","10C","06W","01K","00R","11C","07N","99Q","09H","06N","11J","99D","05L","11M","06W","09D","09D","05C","10J","11D","10Y","09H","02Y","03G","05A","11D","06M","10Q","03E","06W","08J","00T","05A","11X","05A","11H","05Y","10R","01F","03G","06M","00T","10Y","02R","00M","00M","11D","04G","11E","99J","05Y","05N","01H","03V","07N","00M","03Q","10X","99Q","10T","10R","04M","09P","07J","00M","10C","00C","06L","01E","03V","01A","06K","01F","06W","05Y","03N","01F","09X","08W","01V","99H","00M","06F","05Q","04M","05R","11M","09X","12A","04H","10V","10D","11N","01C","10V","02M","10K","06Q","11D","04D","03Q","02X","99Q","00J","06K","05Q","00C","11D","04Q","01H","07Q","04G","05A","09H","09F","00P","00P","03G","01D","11N","05A","06H","01D","05A","01H","07N","01A","00J","03F","00H","03N","00P","09F","11D","04G","00F","05A","03K","01H","10Q","03F","06V","02R","10C","99P","07N","10N","10N","00H","01G","03G","05F","11C","00L","09C","01H","00H","01E","06A","04G","00T","01T","03F","05F","07M","02R","09W",146]
[147,"09D","11H","99H","11T","05L","08J","01V","05Y","11M","01K","08J","00L","06V","07G","07K","06M","04G","11X","10L","00H","09X","06Y","04N","10L","01V","05V","05C","09L","03M","06N","02R","09D","99J","10Y","07K","00R","10R","02R","10G","99J","00Y","08J","06V","09E","06K","06W","06A","01H","03W","10G","01K","10X","05Y","03F","07N","10M","08R","10G","05V","08T","04N","01D","10L","02A","09E","00T","09D","08P","00T","00R","11X","10G","03J","04X","03V","04G","00H","00L","08P","08G","03G","03F","11E","08T","02W","11E","02Y","07J","10R","01G","11J","11M","06A","05Q","10N","07M","01E","03F","08T","11J","09X","09P","07X","09F","05Y","03V","10G","01E","03F","00T","01D","04M","03F","07N","08P","02N","03F","00P","08J","07N","03V","08K","02Q","03T","10V","00J","11N","04Y","02N","03X","99K","06D","09A","00J","06D","00C","07J","04J","11T","09D","10C","06D","04D","03Y","01A","00D","00C","02Y","04L","04D","11N","10W","06Y","05A","11J","99J","08T","08T","03Q","00T","01V","03F","09H","07J","01E","11E","07N","00M","09D","10C","07J","01T","00M","01H","04G","00H","11A","01D","10L","10A","00H","06Q","03J","02R","01E","01F","00P","03V","04F","05Y","10C","01K","11J","09H","03J","02M","00Y","99Q","09H","09E","00M","09P","01H","11N","11J","02R","09D","01D","03F","03X","00H",147]
[148,"05A","06V","10Y","03E","03M","05Y","03Q","03V","09N","10M","07K","09X","06F","11N","09F","06K","01D","10K","04Y","09D","99K","12A","06Y","99F","01F","99K","06A","06N","10Q","05Y","10C","11J","09P","11E","06N","09G","06N","06N","11D","11D","06N","01G","05C","02R","05A","07X","00Q","08R","06T","03E","01F","03E","05N","00M","00T","09X","13P","04G","06M","03N","99A","10X","11C","00M","99A","11H","10W","03V","04F","06K","09A","05Y","09E","13P","03X","07G","10R","99M","00T","00T","00H","04F","09D","01F","04L","03J","09G","08P","06V","10Q","08J","06A","10R","10G","00M","07J","01G","10R","10R","03G","11E","11X","07Y","06Q","00T","03J","11D","09F","05Y","11D","03Y","99A","03V","10G","05Y","09L","04F","07J","03F","05Y","03F","04D","02G","08E","05R","00H","09Y","12A","11T","11E","04J","04D","05Q","10D","00J","04J","02N","04N","05D","00L","07G","05D","10V","01J","03D","06Q","07R","99Q","10Y","11D","99H","00J","00D","06W","09Y","09H","06A","10G","99Q","01G","03F","01V","00R","09E","03F","02R","10C","03G","02M","99J","10L","06A","03J","06A","05Y","08G","99J","09F","05N","08L","00T","04Y","09P","06V","00M","00M","03F","11D","08X","01K","08J","01F","07G","07N","09E","07J","03M","02Q","05V","11H","05Y","06A","00R","06N","01F","03F","05Y","01V","08J","04Y","09H",148]
[149,"06V","10N","06K","09G","04G","10H","01H","10R","13P","99N","06Y","99J","06L","04Q","99J","05T","08J","03E","99H","05A","99H","11M","03E","02M","00H","04K","12A","04J","09Y","07G","99N","05A","10Y","06K","07J","11X","01J","03J","03N","06A","08J","04G","06N","00Y","07G","10W","04M","07M","06H","03M","06H","06N","99K","03N","05A","09G","08J","06K","07K","00T","01H","06K","00G","09H","04N","05Y","06N","03F","09D","01J","08C","01D","03Q","10Q","06A","05A","08T","99P","03M","06N","03F","05Y","06A","10N","04Y","01A","99F","01A","04F","01K","01K","01H","06N","04Y","05A","00Y","03G","01F","08J","01G","11M","11E","05R","08D","08P","06W","08T","01T","07M","11H","11E","00J","03N","00T","00R","99N","03N","11X","07G","08T","00H","04M","00L","02M","05Q","10L","02Y","04D","04D","05T","04M","04H","04Y","03N","04D","00F","11E","00D","06F","06M","00J","11D","04L","99N","01E","03T","01J","06M","11E","03Y","04H","03E","99D","03F","10Y","99H","11D","05Y","11H","06A","03M","03N","11H","09P","10Q","11J","00Y","10R","11M","11A","01D","00M","09P","03M","08T","01H","09P","10G","10Q","05T","10R","03M","01C","00T","08P","11H","01A","10G","07W","10X","10R","05Y","04F","10C","01A","09G","05F","03K","10K","01D","10R","02R","00H","03D","03J","09E","11J","11N","00M","05Y","11D",149]
[150,"06K","11E","99M","01C","07K","99H","10C","07N","05V","10H","08G","05G","09N","09E","07M","09P","05A","01C","08F","00T","09N","05F","07K","10H","05Y","08P","09W","00L","08X","00T","99H","10Y","00Y","03Q","06Y","11M","09G","11N","11J","04G","03J","08P","10C","10C","01J","08P","09D","05F","03X","11H","08J","11A","06Y","05Y","10R","99K","07J","11A","10X","05A","07G","09H","99D","01G","00R","10Q","07K","03N","11M","07G","05R","07N","11A","11X","01F","01D","05Y","07G","06N","11M","08G","01G","10N","03M","09N","01D","07Y","01E","08J","08T","05Y","06V","01D","10V","08T","03Q","01A","01K","00T","05A","10L","05F","10T","02M","04G","01T","04Y","02M","04F","06N","02M","10Q","05Y","00H","03G","10M","08P","11H","08G","05A","04F","10V","00P","03E","10K","10Q","99M","06D","06H","05Q","10X","06H","04M","00D","10Y","07R","09E","99N","06M","06P","06Q","11T","10M","10A","00H","10K","03Y","10X","04Y","99H","09W","05F","06L","11N","10M","07Q","03N","10R","05F","02M","01E","08G","00Y","10L","08G","03J","11J","01E","11N","11M","00M","09P","02R","08G","00R","02R","00R","04E","04N","02F","04F","06M","08R","06W","09D","10Q","10Q","09H","09C","07M","00T","00H","05A","10R","06A","09F","10M","10G","01V","11D","09D","01V","00T","11A","03F","06W","10R","06A","05Y","07M","10R",150]
[151,"11E","99M","10N","08T","10C","10Q","09D","00T","99D","11A","99H","11E","00Q","09N","09E","09N","09D","03T","13P","04F","11X","09L","06K","13P","01D","07J","08G","06K","08N","09D","10H","03G","01H","11A","03E","05N","07G","09G","00H","07N","03Q","06A","03F","03M","11D","01C","11A","03N","01K","01V","11H","11D","01C","01G","03F","01H","11M","08T","01N","01D","03E","00Y","01C","10C","03D","06N","09P","06H","00R","11M","06L","01V","00Y","08A","05F","08J","10Q","02Y","01H","09D","05A","00T","09E","03V","06L","04G","04M","01J","02R","03V","08T","00Y","09E","99N","01G","00R","06A","11H","01G","03N","07G","07J","09P","09X","06A","10L","07J","03V","08J","10G","03D","04Q","00M","05Y","03N","01J","05A","03T","01D","00T","05A","07R","01F","01E","05T","06V","01H","04H","09D","99F","05G","04K","00J","05Q","10A","02Q","01E","99J","10C","01A","06M","99H","12A","00F","00F","03J","04J","03T","10G","10K","00J","10G","01M","01G","99P","09Y","04G","01G","08E","03N","00T","09D","06A","01H","03J","09P","01K","00Y","06A","10G","06V","00F","01H","01E","05A","00M","00J","03D","00R","06L","01G","99F","04Q","01F","03G","06A","06A","01F","02N","10N","04F","07N","00T","05Y","00T","11N","06N","10Y","06N","11E","04F","00Y","03G","04F","03M","03J","10Q","10R","11H","10N","03N",151]
[152,"04G","07N","10H","02R","10W","06A","05F","06H","06N","03N","10Q","08A","09W","03E","07J","10J","06A","10Q","09F","07G","10T","99F","99N","07M","02R","08R","09X","08C","07G","04F","06V","01K","03D","06V","10L","03D","11N","09E","00R","11M","09D","05A","08T","11H","00Y","11D","10C","11M","05Q","99A","01G","09D","07K","01K","00H","10Q","01K","11H","11H","03J","09E","99A","05L","07N","10Q","06A","07M","00M","10X","05A","05G","08J","11H","02Y","09P","00Y","08J","03W","01A","04F","03J","05A","09F","05Y","05Q","07M","06D","03N","05A","08J","10X","09D","03M","04H","99P","03J","07M","06H","00H","05Y","10Y","11M","04N","09N","05A","08P","06A","06A","10R","05Y","00J","04N","01F","11D","07G","05F","07M","08R","07M","06N","00M","00R","02Y","01A","00D","01G","02M","09L","04H","11T","04C","08Y","05T","04D","05G","99D","05F","11E","05V","99Q","04D","00J","10Y","08M","07W","00C","02Q","03D","04H","04H","09L","06K","02N","10R","05Y","09L","10G","01F","11M","11E","05A","01F","07N","09G","00M","06A","11D","02R","03N","04G","09F","01D","03M","03G","00T","06V","10W","09H","11M","99F","06A","08C","10M","00H","04F","11N","01E","00T","01C","06A","08T","09H","10R","01F","01E","10L","11E","11T","01C","04G","05A","01G","07G","05N","02R","00Y","08P","09F","00T","01D","06A",152]
[153,"00R","11C","10C","04N","06Y","07N","10N","99P","09X","10G","10M","10Q","10M","99K","10X","05Q","04F","00R","10X","10Q","03E","04C","03M","10Y","10X","09X","07Q","11T","03W","08P","08J","01D","04F","08J","99J","11N","11M","11E","08J","06V","10N","06N","08G","07G","00R","09D","09E","10Q","04L","04F","08T","11N","10H","10Q","11H","10C","07K","10C","08R","00Y","11M","03C","03J","01V","11E","07N","99N","08G","01A","08J","10V","00Y","03N","00J","08P","06A","11H","06Q","04G","10X","11J","08P","01D","00T","06H","03M","09L","00R","01D","05Y","11H","04F","03J","09L","08J","06V","03M","00T","05Y","08P","04X","02M","09F","09E","06N","01G","00C","10R","00T","07N","01T","99N","11H","08T","01K","08G","00H","09P","00H","10Q","07M","99J","00F","99Q","04D","03J","10V","06Q","00F","00C","99D","04Y","06L","06M","11T","06L","03J","11M","05T","03D","02X","04H","99H","00D","09F","11T","08H","09F","10M","04Y","03E","00D","04N","08G","06K","10N","00T","00T","07J","00M","01H","05Y","99A","11H","00T","01F","08T","11N","08J","01K","09G","03F","06V","01G","08J","03F","03J","03X","10N","06D","11J","03W","11A","10R","10R","03J","00H","06N","08A","11D","05Y","11D","10Q","01K","10Q","01V","04N","09L","09N","03M","01G","03J","08G","07M","01E","00T","05A","00H","09D","04M","08T",153]
[154,"11A","11J","04G","03J","04N","01D","99A","08T","04X","10Y","09L","04J","11A","07W","11N","10Y","00Y","08E","05V","10R","11E","10K","03D","99D","00Y","09L","09H","12A","08H","01D","10Y","01A","03Q","99A","05N","10L","00R","01H","10X","06K","05F","00T","10R","00R","04G","03T","08J","03D","06L","01J","03V","10L","10N","05A","04F","07M","99J","01K","05N","08J","03D","10C","10W","01F","05F","01D","08R","01F","01J","00Y","01H","03C","04F","01M","03D","06N","00T","07X","01D","99J","10Q","10Q","08J","00H","05G","06N","07G","03Q","09D","05A","00T","07G","01H","03X","06H","01J","00T","03N","11H","04F","03M","10L","11X","05V","01K","00H","09F","00Y","01F","00R","00F","05R","00T","01K","06A","10Q","05Y","01M","01G","00R","05Y","10A","00M","11X","11E","01H","04G","00J","05R","00F","05V","01C","10V","02X","04J","11A","08R","09E","01C","03N","01C","04D","06Q","01C","00R","06M","07T","11M","06H","05T","07L","02G","01F","09G","06H","06V","11H","00H","08N","01H","00M","00M","10Q","99Q","00H","11H","07G","01D","11A","06K","01G","06V","00H","11H","06A","05A","07Y","08P","10G","05R","07G","10K","06H","00P","05Y","00D","10R","11J","04C","10C","01G","10X","01G","02R","09P","11E","11J","10K","09Y","01J","10Q","06V","07M","09E","06H","01F","00T","07J","01V","00Y","01J",154]
[155,"04F","03J","02R","10Y","06K","01J","06N","11H","09L","11M","03D","03T","10Q","11M","10L","06H","06N","09E","04F","01G","10C","06K","11E","99K","09H","01H","09Y","10G","01C","11H","11A","11H","09D","11M","04N","07J","02R","08G","08T","11H","99A","11H","10Q","11E","03N","00R","09F","10G","09X","06N","00H","09F","05F","04F","01G","06N","04M","00R","02Y","04F","06N","99P","03D","00H","10G","11D","07J","10R","01D","03N","08P","10C","04G","03N","10C","04F","06A","06D","07M","01J","00M","01K","10L","08G","09P","08P","09X","03E","06N","99P","06A","02R","00Y","08P","03V","09E","08G","04F","01K","01K","07M","09F","08E","05R","01D","01F","03D","09E","11H","01D","05F","09D","08G","08J","05A","01H","00M","10L","09E","07G","08P","09N","03Q","03Q","10M","10R","00L","99F","00D","03C","08Y","03E","11T","04J","10M","00J","02R","09D","00L","10Q","04J","03C","02Q","06H","01G","10C","02X","10T","05T","11T","11D","03N","00C","07M","10H","01D","08J","08J","07X","09E","10R","00H","02R","09F","11J","01E","02R","09E","08G","03J","09E","01F","09E","01A","06N","01D","10L","07N","07J","04Q","10Q","07G","07Y","03F","07G","00H","09P","00R","05V","09H","07G","10C","09D","08T","01H","11H","10Y","03Y","99F","03N","07M","01H","11H","03J","00M","00M","01G","11H","01F","08G","05Y",155]
[156,"11M","08T","01N","06K","05F","10G","10X","07G","04F","00Y","03C","99N","06Y","11E","03Q","03T","02R","08P","08T","06A","03M","05N","11N","99N","03V","09G","99H","03M","11N","00Y","10G","99J","11E","99J","00Q","11E","06A","08P","01D","02R","09E","05Y","03N","03J","02R","09P","03N","10X","08C","10N","05Y","11E","07Q","08P","07G","99H","09X","10X","11M","06A","11A","11D","99M","03V","10C","08T","10L","00T","11H","04G","03M","11J","01H","05N","07J","03N","01K","10H","00R","07M","09D","00Y","11D","06V","11T","01H","10M","02N","08G","00T","06N","06N","02R","99H","07M","10R","03J","00H","06H","07M","01K","11A","06Y","08P","01J","09F","03Y","10L","00H","08T","09F","99K","10R","06A","01G","05Y","01G","10T","11H","08J","01G","11T","05N","09G","02Q","00Y","02N","11T","02Q","11M","06W","00F","09N","09C","08M","99K","01D","99K","04G","03T","02Q","10M","99Q","08L","11N","02Q","02M","05N","10K","03C","09G","99K","00T","08P","08G","06A","06N","06A","10L","08P","06A","11J","10C","11E","10R","00M","06N","09P","09G","11H","08R","00H","01D","00T","11H","10R","01J","04M","11X","04K","00R","08D","99D","00M","00T","00Y","09E","08G","04X","08J","02R","10G","07M","00H","01G","09P","10C","04Y","12A","10X","00T","10R","01A","03M","09E","10R","07M","09E","10R","07N","10G",156]
[157,"11D","07G","00Y","10J","99H","11J","08G","01D","99H","02R","05F","11X","03D","01H","01M","04J","03J","11M","03D","07M","99N","08T","11X","05N","00R","99H","06K","08H","08E","03N","04G","06N","09E","10X","03Q","09P","08G","07M","07N","08J","03E","01J","06A","04F","03J","06H","02M","09G","02F","10C","00T","02M","99D","07M","00Y","04K","99D","07G","09P","02R","08J","05Y","09X","08T","03M","10G","03D","00H","01H","03J","11N","07G","11M","03Q","10R","01K","07G","12A","08G","08R","00T","11J","07G","01K","07T","03N","10G","09P","03N","11H","10Q","03J","08P","04J","00T","09P","03N","01G","07G","11H","99H","09D","01V","06L","11H","01D","03X","03J","01V","08J","01G","06D","01V","10X","10Q","06V","06H","08A","06H","11H","06H","03W","10X","08D","00J","11E","09P","10A","10A","00D","00L","02Q","10K","03J","05T","99N","03N","03Q","12A","01V","01H","10Y","99F","06D","10W","02M","99D","07W","05G","06H","05V","03Q","05N","09D","99M","07N","10X","01K","10X","06V","01G","11H","08T","10Q","00Y","00H","06A","01A","00Q","03N","11N","09E","10R","11J","10Q","10Q","05F","03Y","99N","99K","09D","06N","09G","01D","08G","10X","00M","00H","02M","03C","08G","00R","06A","07M","02R","09E","10X","04H","99J","06N","03N","09E","01G","03Q","00Y","00H","03N","10L","08P","06A","07N",157]
[158,"03N","10X","10G","04G","03D","00R","08J","01K","08J","06K","10C","07L","99N","10C","11M","06D","03N","04M","00R","00R","11N","04K","01K","01V","03C","09N","99P","99Q","05R","06A","11M","04G","07M","03N","01H","03Q","09D","01J","05Y","10X","10X","10Q","07N","06V","01K","04M","09G","03J","00G","06V","07G","09G","09Y","00T","01D","11A","06Y","03J","03T","06N","05F","10G","03V","00T","10X","01J","01K","09D","08G","02R","03Y","99A","10X","06M","09E","02R","06H","08E","09D","01D","01G","03N","04M","01V","05R","10X","01C","00Y","07M","07M","07G","08G","08G","01H","04F","11H","11H","05Y","08P","10X","13P","01V","05N","09P","07G","09E","02M","01G","01G","99P","01F","05G","02R","06H","07M","10G","00T","08N","09D","01D","00T","02F","07P","10X","06D","09P","99F","10Y","04J","04D","07T","03Y","03W","10M","99F","99J","09P","04Q","09F","05N","10D","05T","05T","11M","00D","10M","04D","09G","09L","10A","11E","05X","99M","10Q","99J","11J","10Q","00R","11E","01D","09E","01K","10G","10X","02R","00Y","11H","01G","01J","11D","10Q","11H","01V","10Q","07G","01G","11M","08T","05F","01C","11H","99Q","10Y","03N","03V","03M","01D","08T","07V","01F","01V","03V","11H","08J","00Y","06V","06V","05R","09A","07G","01K","01D","11J","08R","06A","08G","01K","01G","03V","08J","01D",158]
[159,"08J","01K","08J","11A","99N","10C","03E","08J","11A","04G","06N","11D","03J","01K","11A","09Y","11H","99D","02M","11H","10Q","09X","99J","11M","07N","06N","02R","08P","06K","10Q","06K","10X","06V","03J","09G","10X","06V","11H","08P","03N","11D","10X","07G","99A","08J","11N","07M","99J","05T","10X","08P","01H","07N","11H","05Y","10L","10K","06V","03E","07M","03Q","01J","09L","99A","04F","99A","99J","11H","04G","10X","10G","11D","11D","05L","00H","03J","00R","06L","11H","07G","00Y","03J","02M","04F","06D","08G","08R","05F","06A","00Y","01D","11H","07M","05G","11H","07G","01D","07M","04F","10Q","07K","00Q","11M","10M","11J","02M","08P","01F","03V","06A","07J","99F","09D","01D","11H","01D","11H","09F","06A","06A","11H","09D","01T","08N","11T","01E","03W","11E","07R","09N","99F","08L","06D","10A","11D","04D","01A","05V","09P","00D","00C","04J","03Y","04K","07J","11N","00F","11X","05Q","00J","06M","11N","05X","06V","02R","10G","01D","03V","09E","03M","01D","10X","99P","07X","06A","10R","10Q","08E","06N","07G","09P","03M","01G","03J","01D","01V","09G","00C","09X","99N","01D","11T","99K","01G","01F","02R","03M","06H","08P","08T","08P","06A","08G","00Y","11H","03N","10Q","06M","10N","08P","06A","10Q","10Q","10X","00H","03V","00Y","06V","02R","01F","99P",159]
[160,"08G","10G","01K","99N","99J","10N","07M","06A","10Y","08G","04N","10C","06N","99J","09G","06N","01J","07K","10K","08G","02M","09G","05F","07K","11D","06L","05Y","06Q","10C","08G","03J","08G","03N","01N","11M","09E","11H","03M","06A","04F","07M","01D","01V","06N","11H","99Q","11H","10C","04Q","08G","10X","03M","10Y","03J","08G","05N","99H","99A","10W","11H","01N","02R","08T","08G","08G","10X","03Q","02R","03J","11H","12A","08T","03M","06H","03J","11H","01D","05V","03J","01A","03N","07M","03V","07M","99H","09D","05V","09E","01V","06H","00R","03N","09D","00L","01K","05F","09D","08G","01D","06A","05N","11N","02Y","99D","04F","10R","03M","09P","02R","10X","00H","08L","00Y","00R","99P","10Y","01K","09E","10R","99P","99P","06L","00D","05F","09N","01D","03J","99Q","03Y","06D","01C","03K","06M","06Q","99H","01V","10X","01J","05R","01N","11X","99Q","10K","99K","00J","04H","06L","08D","03W","06D","11M","09P","10J","00Q","04N","01J","01J","07M","11X","11H","10Q","01G","06N","09D","06H","08R","03J","11H","07M","08J","11H","08R","11H","10X","10X","09D","10Q","05Y","01M","05G","08G","10C","03E","09D","01G","09P","01H","07N","03E","13P","01F","01D","01D","03V","03N","10Q","10G","03X","04Q","02R","08G","11H","09D","05F","10R","08P","03J","09P","01G","01V","08J",160]
[161,"11H","06N","11J","99M","03E","00G","00R","02R","03C","99J","01M","08P","09L","02Y","03M","10M","00R","99Q","04N","01D","01H","03D","03Q","06P","06A","06K","11J","06L","02Y","01K","08G","01N","03J","11D","11E","05F","01K","09D","01J","08G","08G","03N","08J","08J","04F","03E","10Q","11A","10V","11E","07M","10Q","02R","06A","03N","07J","10G","08J","11X","11J","10X","08J","07G","07G","08J","08J","05N","06A","06N","04F","09P","06N","99A","03D","04M","00R","10X","10K","01J","04G","06A","01D","03J","06A","99J","00Y","11J","10X","08P","04F","99A","01J","11H","06M","06A","01H","11J","07G","99P","00T","99J","08P","07K","10Y","00Y","03M","01K","06V","00Y","00Y","07Y","04J","99P","08G","00T","04G","03J","00Q","03J","00Y","00Y","10Q","06M","10L","99F","07X","08K","05T","04K","99Q","05R","10A","05G","05G","03W","10A","00Y","11A","10J","11X","03Y","02N","09L","05G","08N","10A","05V","03Q","06M","03K","10G","06N","99K","03N","12A","00R","99A","08P","07Y","10Q","03N","00T","10X","02M","01G","01G","08J","03M","11H","10X","06P","03N","06A","09D","00Y","06A","11N","10W","01H","00J","07M","03T","99N","06H","06A","01D","08E","99A","99J","00H","00Y","02R","02R","99A","01D","01H","08J","09E","08A","04F","03J","03M","01J","11M","01D","01G","02R","01H","00Y","00H","08P",161]
[162,"10X","10C","03J","10M","03Q","08T","11D","00Y","06Y","11D","11J","99Q","11M","08P","01N","10V","08G","06Y","07M","03N","09F","04N","01H","10Q","10G","07Y","09L","11E","10H","02R","99J","03N","10X","04F","07M","09D","03J","03N","06H","03J","00R","08G","04F","10X","10X","08W","01J","05N","10K","11J","04F","01V","01M","00Y","00R","06Y","07Y","11D","07W","08G","03M","07N","99H","07M","11J","99P","03M","03J","07M","01K","03X","02R","11E","07L","02M","01J","04F","09F","10X","01H","02R","02R","10C","07G","04Q","01J","99K","01H","10Q","03J","08G","08P","03N","10M","03J","10Q","02R","99P","00Y","08G","03E","01N","11N","09G","03N","06A","10L","00H","08G","02R","10R","01C","01G","99P","04F","11D","08G","11N","03N","02R","01K","05T","03E","07J","10A","06H","09F","11D","99F","01K","02F","00D","99H","05D","06L","04Q","00R","99D","09E","09F","05Q","03W","03W","04Q","06V","03Y","99K","01J","06Q","03W","04D","00R","09G","01K","01V","08G","08P","99A","09G","01V","11H","06H","01J","06H","01D","03N","10X","10Q","10X","99A","07X","10R","08R","03N","99P","11H","09D","04Y","07G","10Q","01K","04J","10G","11H","02R","01G","11H","01D","09F","02R","10X","08J","00Y","01D","06H","08R","03J","05G","11C","08G","11H","03N","01K","99J","11H","11H","01D","06H","00H","00R","06H",162]
[163,"01K","10Q","07G","99P","11N","08G","11E","99A","05N","08P","10Y","01C","07K","02M","05N","00L","08P","04N","07N","01K","02Y","99J","11D","09G","10C","03Q","06V","10Q","10G","03J","01M","04F","05F","08G","11A","10Q","01H","06V","00Y","07G","06V","99A","11H","11D","06N","99F","08P","11D","99K","08J","06A","00Q","04X","01D","02R","10Y","05V","04F","03D","10X","11E","06N","99F","05Y","03J","06H","06P","00Y","03N","08G","99Q","06A","01N","10W","99A","08P","08P","05R","03N","01K","11H","08G","03M","03C","03Q","02R","04Q","11J","11H","01D","04F","00R","01J","08C","00Y","03M","10Q","00Y","02R","03J","06Y","03M","08P","04Q","10X","99P","04M","01D","08P","06H","09P","09E","00H","02R","10X","08P","00Y","04X","06V","10X","03J","99F","09G","08A","03Y","03N","10H","06H","05G","09X","06D","00J","10C","09E","09X","10Q","01H","03E","11E","07W","09C","05G","05Q","04J","05N","03Q","05G","11E","10C","99F","00L","10M","11M","06A","09H","05Y","99P","10X","00Q","09D","08R","03J","11D","08P","03N","01D","00R","00R","01K","08G","10X","11J","06H","02R","99A","01K","10R","10L","09A","05V","03N","06K","01V","06A","01K","09D","01G","08P","09P","00R","03V","08T","00R","04F","11J","10X","08G","09X","07M","07M","00Y","06H","10X","06V","08R","09D","08G","03M","08G","11D","10X",163]
[164,"99A","04F","08G","06H","11E","00Y","01N","04F","07K","03J","03J","04K","05N","99D","03D","12A","10X","02Y","99F","02R","99D","99H","09G","99J","08T","10Q","06H","04Q","06Q","10X","11D","02R","10Q","06N","03D","03N","10X","10X","08G","06N","11E","02R","07M","08G","08G","99D","10X","07G","99N","07M","01D","06P","10M","08G","06H","99J","09F","08G","09E","01K","01M","06A","03E","04F","06H","02R","11X","01G","00Y","06N","03E","08G","08G","07W","09F","08G","99P","10J","02R","03J","01D","06A","99A","01D","08X","11H","08N","11E","01K","02R","00Y","10X","10X","09N","02R","10X","00Y","01D","06A","01D","10G","09G","08R","11N","08G","09D","01F","13P","03J","99A","10L","11M","03J","00Y","06H","06N","99P","09G","01V","08P","08G","06D","00J","09E","04H","11J","06Q","99H","11A","00J","01N","06L","05R","04Y","09N","11M","10Q","06M","10H","09G","04H","03K","05R","09D","05F","05D","04Q","10W","03Q","11E","05D","00T","10H","11H","08T","10C","02R","02R","09P","06H","06H","00Y","07G","03M","11H","03M","04F","01J","06V","06N","03M","01V","09D","01D","02R","03N","09E","06A","03E","99D","02R","09L","10L","01V","00H","10W","06H","99P","99H","10G","99A","03C","03N","06A","03M","03M","01N","03C","10H","03J","01D","09D","01D","01H","03N","01D","06A","10X","03J","09H","99A",164]
[165,"06N","01N","11D","07Q","13P","10W","03M","00R","99J","06N","99J","07X","13P","09F","03N","03W","07M","99F","04C","00Y","08P","11A","06N","06Y","08J","04C","00Q","03W","10L","07M","03C","99A","11J","07G","03M","06V","10Q","00R","02R","10Q","10Q","00Y","08P","07M","99A","01H","01K","00Q","08X","11D","00Y","99A","03D","10X","07M","07K","08A","06N","05F","10Q","11D","08T","10M","10W","07G","00Y","99A","01D","02R","99A","03T","06H","06N","08W","10L","10X","07M","99F","00Y","02R","01K","11H","10X","00Y","08L","00R","00R","09D","10X","10X","01J","07M","00R","01K","01D","08R","10X","02R","07M","00Y","10W","01M","11A","07P","02R","06V","00H","09D","01D","07G","01V","02W","06A","04F","08G","99J","02R","99Q","11J","06H","02R","99N","11N","11N","11M","07V","09C","03K","11X","04H","11A","99Q","04J","12A","02N","11E","01J","00L","06N","05F","11M","05R","06D","99A","10X","10G","10A","07J","06D","01K","10A","09F","04X","01V","01M","00Y","07G","01D","03N","10X","11J","02R","03J","06P","09D","09E","99A","10X","01V","04F","03N","01G","03N","00R","01J","08R","05N","03V","03D","04J","00Y","05V","06Y","11J","10X","01K","07Y","01J","03M","08G","00H","00Y","03J","08G","10X","09D","01K","09N","05F","00Y","02R","11J","03N","07G","01G","01V","11H","07Y","01D","08T","02R",165]
[166,"00Q","06H","06N","05L","11X","06H","10Q","10X","10G","11J","10W","04M","05F","03M","01H","10G","01K","07X","07G","06H","99J","07N","08P","09X","08G","06P","04C","10K","07V","11J","07G","00Y","03M","01K","11D","01H","07M","10Q","99A","08P","01N","07M","00R","01N","11J","07K","01V","08P","11T","00R","08G","01J","08T","06H","99P","13P","05F","01N","11A","01J","07M","06H","02M","00Y","11D","08P","03N","99P","01K","08P","09L","03J","07M","03T","03M","11J","02R","06N","11J","00Y","10X","10X","13P","02R","04M","01N","99P","10Q","00Q","08P","03C","01K","10Q","11T","10X","03N","01J","06A","08G","00R","10Q","01H","02M","11D","10Q","10X","07G","01V","06A","01J","09E","06H","01D","07M","01D","00G","06A","10X","01K","99A","01D","00J","00Q","09P","04Y","09E","10J","06M","01C","02Q","05N","04J","99J","11D","00L","06Y","09D","08D","01K","11N","99H","06H","04H","00J","01J","05Q","03K","01M","12A","05R","10T","09G","05Y","10X","09X","06H","08G","08G","10T","07X","09D","06A","08J","06V","08R","09D","08G","01H","01M","00Q","01H","09D","10X","00Y","08P","00Q","01K","10C","99J","09D","01J","04Q","07K","00Q","00Y","01H","06P","00Y","10Y","01D","01K","07M","01K","07G","09D","06H","06H","08X","07K","99A","06H","10X","03J","01N","09D","06A","06H","09D","06A","10G","00Y",166]
[167,"01N","08G","04F","00Q","01K","07G","06V","07M","10C","03C","06V","03Q","04N","06H","08R","01H","10Q","11E","99P","03J","01V","06N","07M","10G","07M","07G","99J","05R","10M","00R","04F","07M","07G","08P","05F","07Y","08R","01K","03C","99A","11J","07G","11J","10Q","08P","02Y","06H","00R","11E","10Q","02R","01N","01V","99P","06A","03M","99F","10Q","03Q","08P","00Q","07G","04F","08P","07M","08G","05F","01K","01N","07M","05Q","04F","08P","99Q","10X","10Q","08G","09Y","01K","01N","06H","06H","06V","99P","03M","01K","06Y","99A","11J","06A","07M","10Q","01K","10K","08G","09D","00R","10X","10X","02R","11A","00R","09G","99K","03J","01V","05L","10X","01K","08P","06V","06M","10X","99A","03J","11J","01D","11E","08R","03J","06A","04Q","01M","06V","06L","03M","11T","03T","06D","03E","00J","11M","11D","10G","01C","02M","11J","11X","06K","10T","09G","10A","10A","11A","10L","04J","06M","10L","09N","09N","06H","99N","09C","06H","07N","08T","00Y","04F","01J","11J","07X","01D","06H","00Q","10X","10X","01J","07Y","08P","01N","08E","06P","11J","08R","03J","06H","00Q","01F","11A","06Y","03J","11D","07J","01K","01D","07Y","08N","01N","10M","03V","06A","08G","06H","08P","08R","06P","04F","03T","10J","11J","00R","01J","02R","99A","99P","10X","10X","03N","01K","04F","08G",167]
[168,"07M","08J","07M","11J","01H","06N","11J","03J","06H","07G","10G","99D","07Y","01V","05F","08K","11J","03Q","11J","10X","08W","04F","11M","03E","01J","99N","10C","01H","07P","01J","06N","07G","99A","07M","08P","06P","03N","99A","04F","01N","03M","04F","01J","11J","01N","06Y","01M","07Y","08H","06H","00R","08P","99J","02R","10X","04N","10L","00Q","07J","99A","06V","08G","04N","01D","06V","07G","11N","10X","11J","11J","99N","01J","01K","10X","08R","07M","00Y","10Y","10Q","11J","08R","00R","08P","03J","11X","11J","09F","01N","01J","08G","02R","11J","11J","11A","08P","11J","06H","00R","00R","06H","10C","06P","09D","99N","07M","08R","03V","03M","10X","08G","09D","00L","01K","08P","01J","04K","10X","07L","10X","07M","10X","04N","03D","11E","03K","09D","03E","05R","04N","01C","06M","04N","09E","03M","05V","09D","07X","06H","11N","07J","03M","01C","11T","05V","06P","10Y","99N","04X","05R","99Q","11A","99J","10Y","01J","09L","99P","07M","07G","06V","06P","06P","99P","08G","01V","01K","07Y","07M","09D","10Q","08P","06H","07Y","01K","06H","07M","10X","01H","00H","10C","07K","10X","02Y","04N","08R","03J","03N","07X","06A","08W","08P","01D","08P","01J","10X","01J","01J","11D","99F","99K","01N","10X","08R","00Y","03N","10X","07X","99P","10W","10X","03V","07M",168]
[169,"01M","11D","10Q","10N","07Y","11D","06H","08G","05L","04F","06H","01H","06K","03Q","10Q","06Q","99A","03M","04M","01J","05V","10G","10W","05F","07G","10Y","08T","09N","01H","06H","08P","10Q","01N","10Q","01K","01N","10W","06H","99P","10W","08P","99P","10X","01K","07M","11A","06V","01J","06M","01N","99A","01K","04N","00R","08R","03E","04C","07M","99Q","00R","10Q","10W","04M","06A","01K","03C","11A","08R","99A","01N","04J","00R","11J","11E","05L","99A","99A","99N","01N","03N","00R","01J","01V","99A","00L","99A","03E","06H","06H","00R","03J","99A","06H","04M","99A","01K","01K","03J","03J","03C","04N","99A","07J","11X","99A","13P","03J","07X","99A","03J","06P","99D","08R","07G","02R","07M","00R","02M","01J","08G","00R","99K","10W","07Y","04J","10X","06K","04J","00J","11X","11X","09A","03C","99H","06M","03E","08E","06Y","06Q","10L","12A","11E","04Y","99D","06H","03M","03T","05F","10V","09E","09X","04G","11X","10W","06N","11D","06H","00Y","11N","08R","10X","03C","03C","99A","00R","99P","06H","06P","99A","10Q","08N","00Q","01J","01J","08G","01J","06V","08R","09G","99A","06H","02M","09L","10X","99A","08E","11J","00G","00W","00Y","03J","04F","10X","00R","00R","07X","07M","03Q","03E","01K","99P","00R","08R","01K","00R","01K","00R","01J","99A","04K","03C",169]
[170,"08P","01M","03C","09Y","09G","02R","01M","08P","05F","10Q","04F","10K","11J","09G","01K","05R","01N","11N","08J","08R","07J","01V","11A","06N","04F","11M","10G","11N","04Q","99A","10Q","03J","08R","11J","10Q","00Q","00Q","11J","07G","00Q","06H","06H","06H","08P","10Q","04N","06P","04X","09P","01M","03C","01M","06N","99A","03J","00Q","02M","11J","09D","06H","01K","03J","01M","02R","01N","04F","09G","00R","10Q","10Q","04L","99P","01M","01J","00Q","06H","01J","02M","08R","10Q","99P","99P","01K","08P","04J","10Q","99D","08R","00R","99A","06H","01N","08R","05R","00R","06H","08R","08R","01J","01J","05F","10Q","10L","02Y","08R","07X","10C","08R","00R","04F","08N","03E","00R","01J","00Y","00Y","08R","08D","00R","01J","99A","06H","07L","01M","99Q","08E","11M","03E","00L","04Y","99A","05G","06H","09W","05R","99Q","03M","07L","09L","07X","10A","01V","11M","03E","09D","11M","11A","03N","09P","09X","03K","01E","12A","06P","99H","06N","03J","01J","10W","00Q","00Q","08R","07M","01J","99P","08E","99P","08N","00R","11J","01J","08E","00Q","01K","06H","10W","10X","07G","99H","03E","08R","01C","04F","06P","00R","06H","10X","05Y","07K","04F","13P","01J","08R","03J","01K","00Q","07G","10M","99M","10Q","01J","01K","06H","10Q","08E","99A","01J","01K","00R","10C","04F",170]
[171,"11J","99P","01M","10H","08N","04K","00Q","01J","03D","07M","08P","07K","04X","05V","99A","06L","06H","01H","10G","99P","11M","06H","04X","00W","03J","06Y","06N","11X","07J","08R","10W","08R","06H","01M","10W","03M","01N","01N","07M","03C","01M","08R","04X","06H","00Q","08A","04X","01M","05G","01K","03J","10W","09X","01J","01J","04X","09G","01M","99A","00Q","08P","00Q","01J","00G","08P","03J","11M","01J","08R","01M","00L","01N","10Q","11N","01K","00Q","03J","11T","99A","10W","01J","00Q","01J","10W","03T","06H","07K","03M","99A","03C","08P","06H","99A","99Q","03C","01N","99A","01J","99A","99P","05L","01K","09E","11M","06H","00Q","08R","99A","03C","07M","07V","06Y","01J","03C","99A","02R","99A","10Q","00Q","04F","08R","05G","03T","09D","05G","06P","12A","09E","07K","03Y","10Q","07T","09X","03W","03T","03Q","07V","99Q","03W","03C","05G","09X","03E","07R","09P","12A","01V","01N","06L","06L","02Y","11A","01D","08R","06V","02R","03C","03C","01N","01K","01J","10W","04F","11J","01J","07X","08P","03N","01N","07M","07Y","08N","10W","08E","04F","06P","06P","03J","04F","07T","99P","07X","05L","07X","03C","00R","03N","04F","09X","07G","03C","07G","99P","03C","07X","07Y","08P","04M","99D","08R","08R","07X","01N","01M","01K","13P","08R","06P","13P","08P","07G",171]
[172,"10Q","00Q","08P","99J","04C","03J","01K","03C","04N","10W","00Q","02Y","08X","11D","10W","99Q","08R","05V","05L","99A","03Q","07G","06P","03D","08P","08W","07N","99K","08C","10W","11J","03C","01K","00Q","04X","13P","99A","00Q","10W","07M","01K","03C","99A","01M","01M","07V","99A","01V","04N","00Q","01J","06V","13P","03C","10W","05F","05N","08P","09F","01N","11J","08P","04C","03J","99P","07M","04X","99A","03C","00Q","04M","07M","00Q","05F","01J","01N","03C","10M","06H","99A","07X","08R","00Q","01J","03E","08R","07W","13P","06P","01J","99P","00Q","01N","03T","01J","00Q","01N","03C","03C","99A","03D","10W","03D","04N","01N","06P","06V","07V","08R","03C","07X","07K","99A","03J","08R","04F","01J","01H","99P","03C","03C","04J","99Q","01N","09E","07Y","10L","05G","99K","06L","02Y","99N","11M","11N","99J","09A","06H","02Y","10G","06V","09W","03T","09N","06Y","01H","01H","09A","00R","04J","04J","07G","09C","11A","11J","08R","07G","04F","03J","09D","01J","01K","00R","00Q","01M","07X","00R","00Q","11J","06P","01M","00Q","10X","00R","01N","03C","11J","01M","00R","01V","11M","99A","99K","09X","99P","08R","01J","09D","02R","09L","01J","00R","03J","99A","01J","08E","11J","01M","08V","06Y","06H","99A","00Q","03C","10W","01J","00Q","00Q","00R","08R","01J","03J",172]
[173,"06P","07M","06H","09X","08R","04F","08P","01N","07G","01M","07M","06Y","10G","11A","06P","11N","00Q","08W","06P","03C","07K","10C","06V","04C","13P","11A","01M","01C","08P","03C","00Q","06H","13P","08R","13P","01M","06H","08R","03J","11J","13P","03J","10W","00Q","03C","09E","00R","06P","04M","08P","08R","06H","07M","08R","00Q","06H","04N","03C","10L","99P","13P","01N","04X","00R","01M","01N","07Y","03C","10W","03C","99J","10W","06H","08D","01V","03C","01N","11A","10W","08E","08E","99A","03C","01N","10C","03C","09P","08E","10W","00Q","01N","08R","00Q","03Q","00Q","99A","99P","99A","08R","08R","06P","04X","03E","00W","03C","01K","10W","06P","01J","00Q","10X","05V","03C","01N","03C","08R","03C","06V","10W","00Q","01J","05R","05F","10Q","01K","00R","01C","01V","04Q","10A","06H","03Q","11E","09L","10Q","07K","01N","07K","10L","08X","10M","09N","11X","08Y","07X","01C","11M","08A","11T","06M","10M","03V","06K","04X","04C","03J","01N","08R","01M","08N","08E","01J","08P","01N","00Q","06P","03C","07X","10W","10W","09D","99P","06P","99A","01N","00R","04X","06V","04X","06H","03C","06L","05N","10W","13P","11J","00Q","04K","04Q","03J","08R","13P","00Q","13P","06P","00R","99P","02Y","08D","03C","03C","06P","99A","00Q","07X","08R","99A","00Q","01J","05L","08R",173]
[174,"10W","03C","00Q","07G","06N","99P","13P","00Q","07M","08R","11D","11M","10Y","07K","04X","10K","03C","06H","10W","10W","10L","07M","08R","04N","00Q","07K","04X","03E","09L","01N","07M","10W","00Q","06H","06P","08E","11J","01M","01N","01M","00Q","01N","99P","03C","06H","09G","10W","99A","05R","99P","10W","04X","05L","00Q","03C","03D","08P","10W","07V","03C","06H","04F","10G","01N","13P","08R","01H","00Q","06H","06H","99H","08P","08R","09G","06V","08R","08R","04Q","03C","03C","10W","03C","00R","00R","99N","10W","07V","01K","08R","08R","10W","10W","10W","08H","07X","07Y","03C","10W","00Q","01N","03C","06V","04C","10L","10W","99A","07Y","01K","00Q","01N","08E","08X","07X","10W","01N","06H","00Q","03M","99A","08R","00Q","01C","04C","13P","01C","13P","00Q","03W","05V","04J","03Q","01K","99N","06K","99N","02Y","99A","00W","02N","07V","03Q","06L","06M","07K","07V","11X","06Y","09D","03T","05G","06L","11M","10M","00R","04X","04F","08R","13P","04X","07V","08N","99A","01N","13P","08E","08N","01N","06H","04X","08R","10W","07X","07Y","99P","00Q","07X","07W","07Y","00W","00L","01N","99H","10C","07Y","01J","06P","10W","07M","06Y","08R","01J","01N","10W","08R","99P","08E","13P","10C","07W","01M","00Q","99A","10W","11J","07Y","06P","03C","08E","03C","07G","01N",174]
[175,"06H","08P","99P","07M","07X","07M","03C","08R","11J","00Q","13P","04N","11D","07J","07Y","08P","01M","01K","01N","00Q","11D","06P","10Q","08A","01N","11D","07R","09F","99D","00Q","08R","99P","07Y","10W","08R","08N","01M","10W","08R","08R","08R","10W","08R","10W","10W","05V","08R","01N","11M","13P","01N","08R","99H","10W","99A","08P","11A","06H","11N","01M","04X","07M","10N","01J","00Q","10W","10Q","08E","01M","08R","11T","00Q","03C","02M","07V","10W","10W","09G","08E","07Y","00Q","10W","08R","08R","11M","07X","10C","07X","01M","10W","08R","03C","06P","11E","08R","08E","10W","00Q","10W","10W","06H","06H","01H","11E","99P","07V","01V","03C","07X","10W","03M","11E","00Q","08R","08Y","07G","07X","08E","07Y","01N","07X","11M","08X","05L","06M","08N","06L","01C","06M","99N","03E","06M","00L","03Q","11M","00L","06P","03T","02Y","06H","03W","11M","03T","11X","03M","01V","07K","13P","11D","03E","09N","02N","03V","01M","00Q","07M","10W","01N","10Q","08E","00R","00Q","01M","04X","06P","01J","01M","01K","07X","06H","10T","13P","07X","03C","08R","07Y","06H","01V","08R","06M","10W","09X","06N","08N","10W","08N","01J","08R","99D","01N","10W","08R","03C","00Q","10W","10W","00Q","01C","03D","10W","10W","10W","99P","07Y","06P","03C","10W","11J","00Q","03J","10W",175]
[176,"04X","13P","10W","06V","11M","08P","06P","10W","04K","06H","08R","07J","07W","06Y","13P","05V","10W","05N","11D","01N","06Y","07Y","13P","99H","10W","07M","11D","07J","11X","99P","06H","08E","01M","03C","06H","10W","07Y","06P","00Q","06H","03C","00Q","01M","99P","08R","05N","11J","06V","06D","03C","00Q","07X","09L","01N","07Y","11D","06H","04X","10Q","10W","06P","00G","00Q","04K","03C","00Q","06V","10W","00Q","10W","06D","00G","10W","09E","06P","99P","00Q","10L","07X","06H","03C","07X","05L","13P","11D","00Q","05N","06P","07X","07X","00G","01M","01M","99P","01N","10W","07X","07Y","01N","07X","08P","08R","05F","11A","00Q","07Y","04C","08N","13P","08R","05L","11X","10W","00Q","08E","03J","10W","01V","06P","10W","10W","06M","11E","01J","03E","01J","06H","06L","03Q","09E","03D","99J","03E","09N","99Q","00D","07Y","99A","03Q","01K","11D","06M","01V","00L","09E","05G","02Y","00Q","00L","11M","10D","01H","99N","07X","07M","00Q","00Q","10W","03M","99A","07Y","07X","10W","08R","07Y","13P","10W","10W","06H","03C","07V","01K","99P","10W","10W","04X","03N","04C","06N","08Y","00Q","00L","99H","01J","07X","00Q","01K","07G","99K","05L","00Q","10W","01N","10W","99A","08N","03C","06D","08R","99P","07X","99P","08E","06H","00Q","01J","07X","08N","07X","10W","00Q",176]
[177,"08R","10W","08R","10G","11D","01M","04X","01M","08P","07Y","07G","99F","04F","10T","06H","02W","99P","07J","07Y","08E","08A","00G","03C","08R","08R","04N","08R","99J","09G","01M","04X","07Y","10W","13P","06V","06H","03C","07X","01M","04X","99P","07Y","06P","08R","99P","03Q","01N","06H","03Q","06P","13P","00R","10G","07X","01N","05L","03D","99P","11E","07X","08R","01M","00R","08R","10W","01M","07X","07Y","08E","99P","04Y","04K","06P","07J","07X","01M","13P","11J","01M","08X","06P","01N","06P","00Q","09X","01M","02M","07Y","01N","01N","00Q","06P","07X","06D","10W","13P","00Q","01N","13P","08E","08R","07X","03Q","07J","01M","10W","01J","01J","10W","01M","07W","03Q","13P","13P","10W","99P","06P","05L","13P","01M","06P","03E","09F","04X","09X","10W","11X","11M","06Y","11A","05F","09E","04Q","09F","04Q","09E","01K","11N","07J","04X","10G","09E","03K","11E","10T","99H","03Q","11N","03M","01C","01H","06V","04G","99A","00W","08P","01M","00Q","07V","10W","07V","06P","08R","08N","10W","01K","08R","00Q","11J","04X","01K","10W","08E","07X","00G","01M","08N","01J","11D","00R","07Y","09P","13P","07V","08E","03C","00R","03J","08D","10W","07X","00Q","07Y","01N","07Y","01K","08R","11D","07Y","00Q","01N","13P","07Y","13P","08N","07V","06P","07X","07V","04C","13P",177]
[178,"03C","04X","00G","09L","10T","00Q","10W","13P","08R","00G","99P","07V","04K","04N","06V","09L","06P","08A","10C","07Y","04N","13P","05L","11A","01M","07W","03J","10C","06L","06P","04K","01M","03C","04X","07Y","99A","06P","03C","07Y","99P","07X","08E","07Y","13P","06P","07J","07Y","07V","00L","07X","07X","03C","08R","08Y","06P","11J","10C","08R","02M","08R","10W","08R","01V","09A","08R","13P","13P","06P","07X","06P","02Y","01M","07X","01V","07Y","06P","01M","03E","00Q","01M","07Y","06P","07X","04K","10K","06P","04N","01M","04X","01M","01M","99P","03C","09P","13P","06P","08E","08E","07Y","00Q","07Y","13P","07V","99J","07Y","01J","00Q","07Y","06P","04X","00Q","00R","06P","01M","07X","09A","01N","06H","01M","07X","01N","99D","02M","10W","03T","99P","01V","11N","03E","11N","09D","04Q","03T","09P","04N","06M","08N","02M","09G","09P","03J","03E","03Q","06M","08Y","11D","00J","08X","99H","03T","11X","01V","08N","07Y","03J","04C","00G","07Y","00R","07Y","10W","08E","04X","07V","08N","00Q","04X","01N","08R","99P","11J","07V","08N","07Y","01M","99P","08E","04K","04C","09E","08E","04N","05F","04X","07V","01N","07V","00Q","09A","07V","07V","01M","07X","05L","01N","01N","10W","11E","08W","13P","08E","07Y","00Q","06P","13P","00R","01N","13P","06P","01N","01M",178]
[179,"07X","08R","13P","10C","08P","08R","07X","07X","04C","99P","04K","11N","08C","08W","05L","11M","07X","11A","03C","07X","09G","05L","07Y","10C","04K","05N","09A","99F","99K","07Y","13P","00Q","99P","06P","05L","07X","04X","13P","13P","06P","06P","01M","03C","06P","04X","09F","13P","04C","11X","04X","00G","11J","03J","08E","01M","08R","07X","06P","00R","06P","05L","04X","00W","00Q","04X","00G","03C","13P","07Y","07X","04Q","08R","13P","09F","00R","07X","07X","08X","06P","00Q","99A","01M","10W","00G","99K","08E","11D","08N","03C","00G","04K","07Y","07Y","09G","01M","08N","06P","13P","01M","00G","11D","03C","10Q","06Y","08E","08N","07V","05L","07V","13P","99A","11A","07Y","07Y","09A","07R","08E","10W","07X","00G","07V","00L","09D","10T","03Q","08A","04F","09X","99D","03K","09P","11A","09P","10Y","99D","09F","10W","04K","09C","01J","05D","02M","11N","03Q","00Q","03W","00D","09E","11M","11X","02N","00M","01V","03C","10G","01M","08E","08E","01H","99P","99P","01N","00G","01K","99A","07V","06P","07V","03C","06P","00R","01J","07V","06P","09A","08N","01N","05L","08P","08C","13P","06H","07G","08E","07Y","07X","10T","09A","07J","04K","05L","05L","08E","07X","00Q","01M","04X","01K","08X","07Y","06P","01N","07X","04X","07V","08N","08E","07V","10W","00Q","07Y",179]
[180,"13P","05L","04X","07Y","04K","13P","99P","06P","06P","04X","04X","06H","05L","10L","08N","04Q","07Y","05F","01V","06P","04K","11D","04K","06H","05L","03D","08P","03Q","08V","07X","00G","08X","08E","99P","03C","11J","07X","07Y","04K","07Y","10W","08X","01N","04X","07X","11E","08N","03C","03E","05L","01M","13P","07Y","06P","04X","06P","11D","13P","07L","04X","03C","09A","06P","13P","06P","07Y","05L","07X","06P","04X","99P","04X","04X","09P","03C","04X","07Y","10T","07Y","06P","08N","07Y","01N","07Y","08C","99P","08P","00Q","99P","08Y","07X","04X","99P","09X","07V","01M","07Y","06P","07X","08Y","11J","07Y","07W","04K","06P","04X","00R","08E","01M","00G","01J","09P","07V","04K","00Q","07Y","07V","09D","04X","08Y","08E","09E","07J","01H","11N","99A","07J","09N","11N","05G","03T","99K","11X","03K","07K","01J","13P","00R","01H","00R","09P","01K","05G","09E","08W","00G","00W","08W","01H","99N","03Q","02R","05L","99P","10C","04X","13P","07V","13P","04X","10T","07Y","13P","10W","07V","10W","07X","10T","07Y","13P","04X","04X","99A","00Q","08Y","03C","07V","00Q","06H","11E","06P","11M","00Q","00R","00Q","07W","07W","07Y","05N","08X","07Y","04K","06P","07V","08N","13P","05L","09P","10Y","08E","07Y","07V","06P","08E","10W","07Y","07Y","01N","07Y","08R","08X",180]
[181,"99P","06P","04K","06P","11A","04X","05L","07V","11D","04K","07Y","05V","07M","05N","11J","11X","04X","09F","08P","07V","08E","08R","07X","00G","00G","05F","00W","09X","03E","04X","99P","13P","06P","07Y","11J","04X","99P","04X","04X","04K","05L","00G","04C","07X","00G","03M","99P","08N","03M","10W","07Y","08N","00Q","00G","08E","00G","07V","04K","09G","13P","07Y","04K","06V","07Y","05L","04X","08N","08N","99P","00G","10K","06P","07Y","01H","10W","07Y","08E","07J","99P","08Y","07V","04X","04X","06P","99Q","07Y","08E","03C","07Y","09A","08E","13P","08E","10C","06P","04X","01M","07X","06P","09A","04K","08N","10W","05N","07X","05L","04K","00Q","07Y","07X","00R","02Y","08E","04X","07V","01M","07Y","07Y","03C","09A","07Y","06Y","01H","08W","11X","08D","09G","02M","02Y","03Q","11N","11X","03Q","02Y","11N","09G","01M","09G","99D","08Y","09F","00L","04J","02W","11J","09L","11X","09P","11N","99J","99D","01A","10C","01N","08X","09A","07Y","07X","06H","01M","01M","08N","07X","05L","03C","99A","13P","07W","99P","07Y","01N","00R","03C","08N","07X","08E","07X","01N","00Q","03Q","07X","99D","99J","03C","01N","04X","13P","04C","10G","00Q","01N","07Y","01M","07Y","03C","99A","07Y","99K","04F","07X","07V","08E","13P","08X","99A","08E","01M","04X","08E","07V","08E",181]
[182,"07Y","07X","06P","99H","08A","09A","08R","04X","07Y","13P","05L","07P","99J","08E","07W","02Y","13P","10L","08R","01M","05N","11J","06H","07Y","04X","00W","04F","99N","07X","08E","07Y","00G","04X","05L","08N","01K","08E","99P","00G","13P","04X","09A","08N","05L","13P","07L","07X","07W","04J","08R","09A","07Y","10C","07V","07X","06V","08W","07X","01V","07Y","07X","04C","07V","04C","07Y","04K","08A","01N","00G","07Y","99K","13P","99P","10L","04X","08E","07V","10G","07V","08N","01N","08E","07Y","08E","01H","08N","03M","99P","08N","06P","06P","07X","04X","99F","00G","03C","13P","07V","04X","07Y","04C","05L","06H","07K","08X","03C","04X","10W","01N","07Y","10W","03T","08N","06P","00G","00Q","01M","01J","07V","04X","08Y","07K","08Y","06H","99N","07W","04Q","09P","01J","06M","01J","03T","01C","05V","99K","03T","08D","09F","09N","00Q","11A","11N","09X","08C","13P","09N","99J","06V","99J","00L","99N","00W","09L","08N","08P","07R","07X","08X","05L","13P","04X","07V","06P","03C","13P","07W","07Y","13P","13P","07X","13P","10T","04X","07V","08E","99A","08A","04X","07Y","11A","01M","11X","03D","99A","06P","07V","99P","04X","07G","07Y","06P","07V","13P","01M","13P","07V","06P","09F","10M","06P","01M","01M","07V","03C","03C","10W","07V","07W","01N","00G","04X",182]
[183,"05L","04K","07X","13P","03C","07R","04K","00G","06V","08X","00G","05F","06H","08A","04C","11T","08E","07V","08N","13P","00W","08P","11J","07X","04C","99J","07Y","02Y","06N","13P","06P","06P","05L","07X","07X","07V","13P","08N","06P","00G","07Y","13P","13P","07Y","07Y","02M","03C","05L","07K","04K","07V","05L","04F","09A","07V","07Y","07W","00G","03M","07V","99P","07Y","07X","04X","07X","09A","10T","07V","07V","13P","11A","07X","05L","09D","01M","13P","06P","99K","08N","07X","08Y","07V","01M","04X","11N","07V","07J","05L","08E","07V","13P","08E","13P","11D","08E","07X","07V","01M","08E","06P","06V","11J","11E","03Q","04X","00R","07W","00R","04X","06P","04X","99Q","01N","07X","08X","08E","08N","13P","01N","07Y","01M","11X","09E","99A","00L","01M","07K","11X","03T","03T","07J","03C","99K","00L","09P","08C","03C","01K","00Q","03M","02Y","05V","06L","00R","01K","06L","00L","05L","99Q","11N","10Y","01D","06V","07V","07Y","08R","04K","01M","01K","00R","99A","04X","04K","99P","01N","08X","00G","08X","07V","05L","01M","07W","13P","13P","04X","07V","08X","07W","06P","07R","07V","11N","08P","01M","08N","99A","04X","07R","01V","07X","08E","04X","07V","04X","07V","04X","04K","08L","09X","08X","08Y","08N","08N","07X","04X","04X","04X","10T","08N","04X","00G",183]
[184,"08N","00G","05L","08R","08E","04C","07Y","07Y","99P","06P","04C","09F","04C","05F","03C","09F","07V","03D","06V","08X","06H","99P","08A","08P","07V","08A","07G","05V","11M","07V","05L","08Y","08N","04K","04C","07W","08N","08E","08E","04C","07V","08Y","05L","04K","04K","05F","05L","13P","06Y","07V","08E","08E","06V","01M","13P","04C","03C","07Y","01H","00G","08N","06P","10C","07R","04K","08X","06H","04X","08Y","08E","07T","04C","08E","01N","08N","07V","00G","99J","13P","07V","01M","08N","07V","07X","99F","13P","07X","10W","07V","04X","09A","08N","08N","11J","08Y","07V","08N","08N","07V","07V","07X","10T","08A","03E","08Y","08E","06P","04X","08E","04K","01K","05N","04X","08E","07Y","04X","08Y","01N","08N","06P","13P","05V","10L","00R","11A","01K","10Y","00L","11E","99J","09G","08H","99F","07G","02Y","00R","05L","01V","03M","09A","06L","99N","02M","02Y","03N","09P","03N","10Q","11X","04Q","09C","11X","00Y","13P","04F","13P","09A","05L","07W","01N","13P","13P","09A","08E","04X","01N","07V","04X","08A","04K","03C","05L","01M","08Y","06P","01N","08W","07V","05L","11X","08N","09F","06P","13P","05L","10T","01N","01M","03J","08E","04X","07X","08N","06P","01M","10T","07X","04Q","06P","08Y","08N","04X","01M","07W","01N","05L","08N","03C","04X","07Y","07V",184]
[185,"07V","07Y","07Y","08A","00W","06P","08N","08E","07W","08E","06P","10L","08W","03D","08E","99F","08N","02M","04K","08N","11A","00W","04C","08D","07Y","06H","07M","99H","10Y","08N","04C","07V","08X","08E","04K","05L","07V","07V","04C","07X","08E","07V","07X","07V","07V","10L","04C","11J","99F","07Y","06P","07V","07G","07Y","08N","07X","08N","05L","08W","08E","07V","07R","11D","01M","07V","07X","07V","01M","08N","04K","09X","07Y","04K","04C","07W","00G","04X","05N","08X","99P","04X","13P","08N","01M","01C","00G","10L","07V","13P","08E","07Y","07V","07V","02Y","04X","99P","04X","04X","08N","01M","08A","07V","03M","10Q","07V","01M","01N","01N","08N","09A","10T","08M","01M","07V","01M","13P","13P","08W","08E","07V","08N","09P","09P","03M","99J","08X","06N","99N","08V","02M","08H","05V","01K","09X","03C","06H","08A","05N","06L","01H","10Y","11X","01C","99Q","08D","04Y","09G","08Y","03E","03Q","03C","11E","09X","08E","07G","00W","04X","08Y","99A","03C","01N","01M","07Y","00R","01M","03C","04K","01M","05L","04C","99A","99A","01N","08X","07Y","10T","11J","06P","06V","02Y","04X","06Y","07W","10T","08X","99P","03C","13P","00G","00G","08N","00G","04X","04C","04X","03C","07V","03E","07G","04X","13P","03C","08X","08N","10T","01M","13P","99P","05L","01M","04K",185]
[186,"08A","07V","08Y","04F","06V","07Y","07V","05L","08A","09A","08X","05N","07R","07V","07X","03E","05L","09G","07W","08Y","05F","06V","08N","11J","09A","06V","13P","02M","09X","00G","08X","08N","07W","08X","08E","10T","07W","05L","07V","05L","08N","04X","08E","08A","08E","03D","08E","08A","99D","08N","08Y","04C","07W","08N","08X","99P","01V","04C","06H","08N","08E","13P","07R","07V","08N","07V","08W","05L","04X","07V","11D","05L","07V","03M","04C","08N","08Y","08H","04X","07W","10T","08Y","08E","08N","02Y","04X","01V","04X","10T","07Y","04X","05L","05L","01C","09A","05L","08X","08X","05L","08N","08N","08E","08W","07L","13P","01N","07X","01M","05L","07V","08X","01K","05L","00G","13P","04C","04X","99A","05L","08E","04X","11E","11J","07W","05V","05L","99D","01H","09G","09G","09E","99D","07K","01H","01V","11X","00Q","03C","03E","99A","00L","11A","01H","03T","08A","09G","99A","01H","04Q","99K","03J","03J","01J","10T","11D","06P","06P","06P","08A","10T","03C","00G","07V","07Y","10T","10T","05L","03C","08N","07V","07W","01M","10T","01M","07V","13P","10T","01M","11J","03T","05L","07L","11J","01N","04X","13P","08X","08E","10L","01M","01M","08X","08X","04K","10T","05L","08X","05N","09L","07V","04X","05L","07W","07V","07W","01N","08Y","01M","01M","07W","09A",186]
[187,"08E","04C","08X","08H","10Q","05L","08E","08Y","08W","05L","07W","02M","07G","04K","10T","99K","00G","00W","08A","04X","07X","08N","08D","08W","07X","00G","05L","11M","10T","04K","07X","07X","07X","07V","07W","08A","08A","08A","08X","08E","04K","06P","07V","08N","05L","01K","10T","08E","09A","08A","04X","04K","11D","04X","09A","00W","04K","07V","08A","05L","04K","07X","08A","07X","04C","08Y","07W","07W","08X","08N","99F","07V","08D","06V","01N","04K","08X","01C","08Y","09A","13P","00G","04C","07V","07K","04K","08A","08D","05L","13P","07V","04K","10T","04Q","07Y","07W","08Y","08Y","04K","08X","07W","04K","08D","01H","00G","08A","08N","07W","08A","05L","01M","07T","07W","05L","06P","08X","09A","11J","07W","13P","09A","03T","01V","07L","01H","00Q","11A","04Q","99Q","00L","04K","02M","99Q","11X","09E","08L","07W","09P","07K","04C","04Y","09G","03M","07T","08C","02Y","09F","06H","99F","09P","07K","03M","99H","04C","13P","07Y","07V","04X","08D","05L","08A","04K","05L","10T","08Y","04X","04C","99A","04K","08N","08A","03C","07W","04X","13P","08A","13P","08N","13P","09P","08X","07K","11D","08A","07W","01M","01M","06P","10C","09A","04K","04C","08Y","08E","05L","99P","08E","06Y","99H","08N","09A","08A","04X","05L","01M","08A","00G","99A","04C","08X","05L",187]
[188,"04K","08A","07V","08E","07V","07X","08A","04K","08N","07R","07R","08V","99P","03C","07V","07J","08X","07L","07X","07W","03C","07W","00G","11D","08X","11J","06P","99D","99H","05L","08E","07W","07V","08N","99P","08X","08X","10T","09A","08N","08D","07X","10T","00G","08N","01V","07V","07X","08Y","08E","04K","10T","08P","13P","08Y","08A","08D","08A","00W","04K","04C","08Y","07Y","06P","08E","06P","08E","04C","13P","05L","10C","09A","08N","00R","08A","05L","04K","07K","08D","13P","09A","09A","07W","05L","06Y","08D","05F","07W","04C","08N","08Y","04C","08A","99K","08N","10T","05L","09A","00G","04X","99P","08A","06V","01K","08N","04C","01M","08A","04C","08E","08A","11N","08X","08N","08N","06P","00G","01K","08A","04K","00G","11A","01N","00Q","02M","04X","99K","03M","09E","01V","09F","00L","11N","09G","06Y","03D","04X","08X","99H","13P","09N","03Q","99N","09G","04X","00L","11N","03M","05V","02M","09F","05L","11J","08A","05L","05L","08Y","08N","11J","08A","05L","09A","04C","08A","05L","05L","08E","08Y","04C","08A","05L","04C","08A","08D","04K","04C","99A","07X","08A","05N","07W","01H","99P","05L","01M","04C","08Y","07W","04N","04C","04C","09A","07W","08N","07W","07W","04C","07K","07V","05L","08X","10T","08Y","08A","05L","10T","08A","05L","08A","09A","06P",188]
[189,"00G","08N","08D","08D","08D","08E","04C","09A","00W","08Y","08A","03D","00G","07X","08A","02M","04K","04K","07V","09A","03D","08A","07V","07V","06P","08D","07W","10L","05N","08A","07R","04X","08D","08A","08A","08W","04C","07W","05L","07V","08A","04K","07W","08E","08A","00W","08A","08W","01C","00G","08X","99P","06P","08X","04C","08D","11J","08N","01K","08A","08A","07V","08R","08E","08A","08E","04K","08Y","04K","08Y","01C","08A","00G","07P","08E","08A","09A","06Y","05L","04X","08X","08A","04K","04C","99D","05L","03D","08X","08A","04K","08N","08A","08X","09F","05L","04C","08D","07W","04C","04K","07V","04C","11J","03D","09A","07W","08E","04C","08Y","08Y","04C","03C","08A","04C","08D","05L","08X","07W","04C","08X","08X","99Q","99A","11J","02Y","01N","10C","03Q","01H","01H","99Q","02Y","05V","99D","11X","04K","08X","03D","04Q","07R","09L","99J","09P","11N","01N","03K","06H","99A","99N","01V","04N","00Y","02R","05L","08Y","08E","08X","09A","08W","08D","07W","04C","08Y","08D","07W","01M","08N","08D","10T","08E","08D","01N","05L","07W","08X","07W","04C","08E","07X","99Q","04K","99N","08E","04C","08Y","08X","08A","07V","06P","07W","07W","06P","05L","08X","08A","08A","08N","02M","08H","08D","00G","07W","00G","08D","08X","04C","05L","08X","08Y","07X","07W",189]
[190,"04C","08D","09A","06N","08W","00W","00G","08N","00G","07X","08E","03C","08A","00W","08W","99N","08A","01V","10T","05L","07V","08E","08W","07W","08Y","08N","08A","07K","06H","08X","08A","09A","08A","00G","07V","08D","05L","08D","07X","08A","08X","08N","08A","08D","04C","07P","07W","99P","05V","04C","08N","08A","08A","04K","07W","07V","00W","08E","08D","08Y","07W","08A","08N","05L","07W","05L","08D","08X","08D","08D","08L","08E","08A","99A","08X","08Y","08N","07L","00G","08D","08A","05L","08A","09A","04N","08Y","00W","10T","04K","08A","05L","07W","08D","03E","04K","08X","00G","04C","08X","13P","08W","99P","01K","03M","04K","10T","08X","10T","04K","04C","03C","03D","04C","07W","04X","07W","08A","00R","10T","08N","08A","03Q","06V","08Y","09G","08W","10T","99K","05N","02Y","01H","11N","01H","04Q","06H","99A","99P","01H","10Q","05L","99P","99D","11A","05N","01M","09F","08V","07P","01C","05V","04Q","06P","07X","04K","08A","07V","08N","04K","03C","04C","08Y","05L","08A","04K","08X","08Y","08A","99P","08E","00G","99P","08A","08X","09A","08N","05L","03C","08X","08E","03D","08Y","08V","08A","07W","04K","05L","99A","08X","05F","08Y","08X","08E","08A","07W","08X","08D","07W","99D","04N","00G","08A","08D","05L","08W","08A","08Y","09A","08A","07W","07R","07X",190]
[191,"10T","08E","08E","08Y","07W","07V","08D","08X","07V","08D","07V","11A","08D","11J","99P","99J","08D","03C","08E","08A","07L","07R","10T","07R","08A","08X","08E","06H","99N","04C","08D","04K","04C","08D","10T","03C","10T","04K","07W","07W","00G","07W","04K","04C","08D","04K","04K","04K","03T","08D","05L","07W","08X","08A","08A","08N","10T","08D","04K","04C","08D","05L","09A","08N","08X","04C","04C","10T","09A","08A","09G","08N","08X","11J","04K","04C","05L","01V","08A","00G","00G","04C","10T","07W","05V","10T","08W","08Y","00G","05L","07R","00G","07W","07K","08A","08A","10T","05L","09A","07R","08E","07W","07L","06H","07W","08D","08A","08D","08X","08X","08W","05F","08Y","08X","07R","07V","05L","04C","08X","08A","05L","02Y","01J","08X","04N","10T","10M","99J","08K","99K","10L","07K","02Y","06L","03E","05N","08W","07J","10M","08D","09X","04Q","99P","02M","07P","11A","09E","07L","09X","11A","04K","04X","10G","07W","07W","07X","05L","00G","04C","07W","08D","10T","08E","04C","08A","08A","09A","08A","00G","07W","08W","08W","04C","05L","07R","08X","05L","08A","08D","05F","08A","01V","08X","08Y","04C","08A","05L","08N","07X","04X","08A","08Y","08D","08A","08D","08X","08A","01V","10G","04K","05L","04C","04K","99P","08Y","07W","04C","04C","08X","06P","08Y",191]
[192,"08D","08X","08A","07W","06H","08N","10T","08A","07X","07W","08D","09G","06P","99P","04K","10C","08Y","07P","08W","08D","08D","07V","08E","08N","07R","07V","07V","01V","04N","07W","07V","05L","04K","07W","08W","04C","04K","08X","08N","08X","07W","07R","08W","08X","08Y","08D","08W","10T","02Y","10T","04C","08D","07V","08D","00G","07W","99P","07W","06V","10T","10T","08X","08P","08Y","08D","08A","11J","04K","05L","08X","09F","07R","08Y","08X","08W","08X","08A","05F","04K","08A","07W","04K","08X","07R","07J","08A","10T","08A","07W","08X","08X","08X","04K","02W","08X","08W","08A","00G","08Y","08D","00W","08D","04K","03C","08A","08X","08W","08X","07W","08N","01N","09F","10T","08A","04K","00W","04K","03C","08W","05L","08D","03C","03M","07P","04Q","08Y","05F","09F","09P","04N","11E","06Y","04N","99K","03Q","11N","10T","05F","09X","01M","99N","09F","00L","09F","05L","09X","01K","04C","02Y","04N","06Y","09E","99J","08W","08D","08N","04C","07W","07L","04K","08X","08Y","08N","07W","08D","08D","08Y","05L","08D","08D","08X","08X","08D","10T","05L","08D","08D","00G","08Y","09F","00G","11A","08N","08D","09A","04K","08D","05L","11D","08N","08Y","07W","09A","00G","08Y","04C","08D","05V","07X","09A","08D","08X","09A","08Y","04C","08D","08X","08W","04K","08A","04C",192]
[193,"08X","07W","07R","11D","00G","08A","07W","04C","08E","07V","08W","02W","08E","08D","08X","10L","10T","08D","00W","00G","07P","08W","07W","06V","07W","08E","08X","00G","06Y","08Y","07W","08D","08W","04C","08D","99P","08W","04C","08A","08W","04C","05L","00G","07W","08X","11J","08D","08X","05N","07W","08A","00G","08E","05L","05L","07R","06V","10T","07P","08D","08W","08E","07W","08X","00G","08N","08X","08A","08A","09A","07K","00W","10T","01K","08D","09A","08D","99D","07W","07R","08D","10T","08D","08A","09F","08X","00G","04K","08Y","04C","04C","10T","04C","08Y","08D","08D","04K","08A","07W","08A","08D","08W","00W","08X","08D","04K","00G","04K","09A","08A","08D","07J","04K","09A","05L","08N","04C","04K","08D","04C","04K","01K","99P","01K","99K","03C","06Y","02Y","09A","04Q","02M","01V","99D","11M","02M","08H","08Y","10L","04N","08W","11J","09P","09G","01V","99A","99N","07J","11J","99K","99D","99K","08Q","06H","08D","06P","08A","07R","04C","08X","08Y","04C","08A","08X","08W","04C","04C","08X","08W","08W","08X","04C","08D","08W","08A","08A","08Y","99P","08W","99P","01V","04C","07J","08W","04K","00G","08W","08W","00W","03D","06P","00G","08N","10T","08Y","04K","08W","00G","04N","06V","08A","04K","08W","08D","04C","08D","04K","04K","08D","08D","08N","08N",193]
[194,"07W","08Y","08N","08V","11J","08X","08W","08D","08D","04C","08N","01V","00W","07P","08D","01C","07W","11J","00G","10T","11J","10T","00W","99P","08E","07X","08W","06Y","07K","09A","08N","07R","08Y","08W","08X","07P","08D","00G","07R","08D","08Y","04C","08X","10T","09A","03C","00G","08D","01H","08X","07R","08W","08W","07R","04K","08W","08E","00W","03C","09A","08X","08N","08E","08A","08W","07R","07L","09A","07W","04C","05V","07W","07W","03C","10T","08D","04C","09L","10T","04K","05L","08X","08W","08X","00G","09A","07P","08W","08D","07R","08A","08D","00G","05V","04C","04K","07W","04K","08A","05L","10T","00G","03C","05F","05L","08W","08D","08W","00G","07R","07P","03M","08D","08Y","08A","07X","08D","08Y","04K","07R","04C","11N","00R","03C","09P","07P","07G","05V","00R","05V","07R","09G","06Y","06H","11A","10L","04K","03M","10Y","08A","05V","99K","99J","09P","03C","05V","09P","01K","07K","02Y","09P","10Q","08L","00G","07V","07W","08A","08A","04K","08W","08W","07W","07R","00G","08W","08W","08D","04C","07W","08W","08Y","07P","08Y","00G","04C","08W","07P","07R","08N","07J","08D","99J","07V","08W","08A","09A","04C","08A","07P","07R","09A","08A","04C","09A","04C","08Y","08W","08M","07P","07W","10T","04K","08A","04K","08W","08X","10T","08Y","10T","08E","08A",194]
[195,"08Y","00W","04C","07V","07L","08D","08X","07W","08X","08N","00W","08D","08H","07L","00W","07K","04C","99P","08D","04C","06V","07X","08X","08X","08N","08C","08N","11D","11A","10T","09A","08A","10T","08Y","00G","08Y","00G","08W","08Y","09A","10T","08A","09A","08Y","10T","99P","08X","07P","05F","08W","07W","00W","08N","04C","07R","08E","07L","08X","11J","08X","00G","00W","08D","07W","10T","07W","00W","00G","07R","10T","06Y","08Y","04C","99P","07P","10T","07W","08C","09A","10T","04C","08D","00G","10T","11A","07W","08D","04C","09A","08D","08D","08Y","08Y","06Y","07R","08Y","09A","07R","08D","04C","00G","00W","07P","06V","04C","08Y","07P","08Y","08D","07W","08Y","07R","09A","07R","07W","08A","10T","07P","08Y","08D","10T","01V","00W","04C","07K","04C","04N","09G","09F","99D","08V","09F","03M","07J","11E","07J","07P","11J","11M","11J","03K","02Y","04Q","03D","04C","04Q","03D","03C","04N","01H","07J","10T","07T","08X","08C","08X","07W","08D","08Y","08X","07L","08X","08D","07L","09A","09A","07W","09A","00W","10T","07L","08Y","04K","04K","08D","04K","08C","09A","07V","02M","09A","10L","06V","08X","08D","08Y","07L","07X","00Q","08A","08D","07R","04K","08D","08W","04K","08Y","07R","10C","07R","07W","08Y","10T","10T","04K","09A","07W","04K","00G","08Y","07R",195]
[196,"08W","08W","07W","08X","07R","08Y","00W","07R","10T","08A","07X","99P","09A","06V","07L","99D","09A","06V","08X","04K","08X","09A","99P","10T","08D","07R","08C","05N","03D","08D","00W","08W","07R","10T","00W","04K","08Y","08Y","08D","07R","08W","08D","08Y","08W","07W","06V","00W","00W","11N","08Y","08D","08X","08D","10T","08D","08X","08X","08W","08V","07W","00W","07W","08W","00W","08Y","08D","00G","08D","10T","07W","02M","08X","08W","04K","08Y","07W","07R","09X","08W","05L","04K","07W","08Y","08Y","02M","04C","06V","00G","08X","10T","07W","08W","08W","05N","10T","07P","04C","08D","07R","07W","08X","07L","99P","11J","07R","07P","07R","07P","10T","08D","04K","01H","08W","08D","04C","08Y","07W","99P","07P","07W","07W","09F","03C","04K","01V","07L","05N","99D","02M","07K","01V","01H","11A","11A","09F","03C","04C","07R","99K","04K","99K","04N","09F","03C","99P","99K","03M","07R","09F","07K","11J","03C","06N","07L","08W","08W","08D","07R","07P","00G","04K","08D","07W","08Y","04K","07P","10T","07P","07L","08Y","04K","04K","09A","07R","07W","09A","07L","07P","08X","08H","10T","05F","08D","09A","07R","08D","07P","08Y","08N","08D","07R","08D","00G","07R","00G","07L","07R","07J","08Y","04C","04C","07L","04C","07R","09A","00G","08D","07P","09A","08W","08D",196]
[197,"00W","09A","00W","08N","08X","07W","08Y","10T","07R","08W","09A","11J","08N","08X","07P","09X","08W","08V","07P","08W","99P","08X","07R","08E","08W","99P","07X","05F","05F","08W","08W","04C","00G","07R","07R","07L","09A","09A","08W","10T","07R","08W","08D","09A","07R","08X","08Y","09A","07J","00W","10T","07R","07P","07W","10T","10T","07P","09A","99P","07R","08Y","08D","08X","08D","07R","08W","99P","08W","04C","07R","07J","08D","09A","00W","07L","07R","10T","04N","07R","08W","07R","07R","07P","08D","05F","07R","07R","07R","08W","07W","10T","09A","09A","99D","07W","00G","08W","10T","10T","10T","07R","08X","08X","07R","10T","07L","10T","07L","08W","08W","07L","09G","00G","08W","10T","08D","07R","08X","09A","10T","07R","05N","04K","08L","99D","04K","99N","00G","03D","09F","03M","09P","07J","04N","09G","05F","09A","06V","11X","07P","04Q","01H","99K","08H","09A","99P","01H","08C","02M","09G","99J","11J","11D","08Y","08H","08D","08W","08W","99P","07L","09A","07R","00W","00W","00G","04K","07R","07L","08Y","09A","07P","07L","07L","04C","10T","07L","08Y","00W","07W","11N","08W","09G","07X","00G","10T","00G","09A","08W","08E","08W","08W","08W","08W","08W","09A","07P","09A","07T","08P","10T","07R","00G","08W","08C","07P","08W","07R","07L","08W","08D","08W",197]
[198,"09A","07R","08W","08W","07P","08W","07R","08W","07P","00W","08Y","00G","07V","07R","00G","99H","07R","08X","07R","07R","00G","08D","07L","09A","00W","10T","07P","04N","11D","07R","08Y","08C","09A","09A","07L","08C","07R","07R","00W","00W","09A","08C","00W","07R","08W","08V","07L","07R","11A","07R","08W","07P","07X","08W","08W","09A","07R","07R","08X","08W","07L","08W","07P","08W","00W","00W","07P","07R","08W","08W","99D","10T","07R","08Y","00W","08W","08W","99H","04C","04C","08W","08W","09A","00W","05N","08W","08X","09A","00W","08W","00W","07R","07R","03M","08W","07R","07R","08W","08W","08W","07P","07R","08Y","08L","08W","09A","09A","00G","07R","10T","09A","02M","07R","10T","08W","08W","08W","00W","07L","08W","08W","07J","07R","99P","09F","09A","10G","11A","07J","06Y","08C","03M","09F","10L","05N","09P","07R","08V","11D","00W","99D","07K","02Y","07J","07L","99D","10L","09A","07J","09F","01K","01J","03J","09A","08E","08Y","10T","07P","00W","09A","07P","08W","08W","08X","07P","07R","08W","04K","08X","00W","09A","09A","07P","08W","08W","00G","04K","08D","08W","09G","07R","03D","08Y","07L","08W","07R","04K","08D","08C","07P","10T","07P","07R","10T","07L","00G","00W","03M","08N","08W","08W","07P","07R","09A","07L","07R","08W","09A","07R","00W","08C",198]
[199,"07R","10T","10T","07X","08Y","10T","07L","00W","07L","08H","08C","08X","08Y","00G","07R","01V","00W","07R","07L","07P","08V","07P","08Y","07L","07P","07L","08D","09G","99J","00W","10T","08H","07P","00W","07P","00W","00W","00W","10T","08Y","00W","10T","07R","00W","00W","07R","09A","00G","99Q","09A","07P","09A","08Y","07P","08C","08Y","00G","08Y","08Y","00W","07R","10T","10T","10T","09A","10T","07R","07P","00W","00W","04N","08W","00W","08L","07R","00W","00W","03D","07P","08C","07P","00W","07R","08W","10L","00W","07L","07P","07R","00W","08W","00W","00W","09A","00W","09A","07P","07P","07P","00W","07L","08Y","07R","08Y","08C","00G","00W","09A","07P","00W","07R","01V","07P","00W","08H","08C","07P","08L","00G","00W","07P","02M","08L","07R","06Y","07R","03D","07K","05F","09P","00R","07J","09G","07K","01H","06V","07L","08Y","05N","00G","00G","06Y","05V","01H","07R","07K","08Q","08H","99D","03M","10L","13P","07G","00W","07X","10T","00W","10T","00G","07P","00G","00W","10T","09A","07R","07L","00W","07R","09A","07R","00G","07R","00G","07P","00W","07P","09A","10T","08H","03C","07P","08L","07P","07P","07P","07P","07R","08C","08Y","00W","07P","00W","07P","07P","07R","09A","10T","10L","08C","08H","07P","09A","07P","07P","00G","07L","07P","07R","07P","07P","07P",199]
[200,"07L","07P","08H","08P","99P","07P","09A","07P","08C","08C","08H","07R","07P","08C","08Y","06Y","07P","00G","09A","08C","07R","07L","09A","07P","10T","07P","08Y","08M","07L","07P","08H","10T","08C","08C","08Y","07R","08C","07L","08C","08C","07P","07P","07P","07L","07P","08Y","07P","08Y","03D","07L","00W","08Y","08C","00W","07P","07P","08C","07L","00G","07P","07P","08C","08Y","07P","07P","07P","08C","00W","08H","08H","11J","07P","08H","07R","00G","07P","07P","10C","00W","07P","07L","07P","00W","07P","09G","07L","09A","00W","07L","07P","07P","07P","07P","04N","07P","07L","00W","08C","00W","07P","09A","07P","00G","08H","07P","00W","08Y","07R","00W","07P","08C","10L","07L","07P","07P","10T","00W","00G","07R","07P","00W","09A","09A","00W","03M","08L","09L","04N","08M","11J","11J","03D","02M","99N","07J","08M","00G","99P","06Y","99P","07J","07J","04N","09A","08H","07J","05F","04K","06Y","06Y","09E","06H","99P","07R","08N","07P","07P","08C","07R","00W","07R","07P","07P","07R","07L","00G","07P","08C","07R","07P","07R","00W","07R","08C","08H","07R","00W","08Y","10T","01K","08C","05N","08H","07R","00W","00W","08C","07P","06V","10T","00W","10T","08C","00W","07P","07R","07P","08C","08V","00W","00W","07R","08C","00G","07R","07P","00W","00G","00W","10T","10T",200]
[201,"07P","07L","07P","07P","09A","08H","07P","08H","09A","10T","07P","06V","07X","08V","08C","05N","07L","08Y","08Y","08H","08C","08C","08H","08Y","08C","08H","10T","08Y","08Y","07L","08C","07P","00W","07P","09A","09A","07P","07P","07P","07P","07L","08H","07L","07P","07L","00G","07R","07L","09F","07P","08C","07L","08H","08H","00W","07L","08Y","07P","07R","07L","09A","07P","07L","08C","07L","08C","08Y","07L","07P","07P","08H","07L","07L","08C","09A","07L","08H","08L","08H","08H","00W","07L","07L","07L","08H","08H","08Y","07L","07P","08H","08H","07L","07L","02M","08H","00W","07L","00W","08C","08H","08Y","09A","08V","99P","00W","07R","07L","00W","07L","08C","00W","08C","00W","08C","08C","07P","07L","09A","00W","08H","07L","09G","01K","09A","07J","08C","11J","07J","03C","03M","06V","10L","05N","06Y","10L","01K","00W","08L","99N","08C","07K","03M","99D","05F","08L","11J","03C","00W","11A","07J","03M","04C","04F","07P","07P","08C","08H","00W","09A","07R","00W","07L","08H","07P","08C","08C","07L","00G","07P","07L","00W","00G","00W","08H","07P","00W","07R","08C","07P","10L","00W","08H","08C","00W","08C","08C","00G","10T","08H","08C","07L","08C","07L","08C","00W","00W","08H","05F","08E","07P","08C","00W","08H","08H","08C","00W","07L","08C","07L","08C","00W",201]
[202,"08H","08H","08C","08C","08V","08C","08H","08C","08Y","07P","10T","08C","10T","08Y","09A","05F","08H","08C","08V","00W","08Y","08Y","07P","08H","08H","09A","08H","03D","11J","08C","07P","00W","08H","08H","08C","00G","07L","08C","08H","07L","08H","00W","08C","08H","08H","08C","08C","08C","10L","08H","08H","08H","08V","08C","07L","08H","09A","08C","02W","08H","08H","08H","08H","08H","08C","08H","09A","08C","08C","07L","10L","08C","07P","09A","08C","08C","08C","08P","07L","00W","08C","08C","08C","08C","09A","07P","08V","08H","08C","08C","08C","08C","08C","07J","07L","08C","08H","08H","07L","08C","08C","08C","08H","00G","08H","08C","08C","08L","08C","08H","08L","08Y","08C","07L","00W","08H","08C","07R","08C","08C","08C","05F","08V","08H","11J","00W","99P","06Y","01V","99P","03C","05N","05F","00G","03D","01H","08H","09A","03D","08H","10L","10L","11J","01K","04K","06Y","05N","08L","10L","10L","05N","07L","06P","08C","08V","08H","08C","08H","08C","08H","08C","08C","08C","08H","00W","00W","08C","08H","08C","08C","08C","08C","08C","07L","08C","08C","08L","07L","08C","03M","07L","08Y","10T","08C","07L","07L","00W","08H","08L","08H","08C","08H","00W","07L","08C","08C","08C","03D","11D","08C","07L","08C","00W","00W","00W","08H","08C","00W","08C","08H","08H",202]
[203,"08C","08C","07L","10T","08H","07L","08C","07L","08H","07L","07L","08M","08L","09A","08H","04N","08C","09A","08C","07L","09A","08V","08C","08C","07L","08Y","08V","09A","06V","08H","07L","08L","07L","07L","08H","08H","08H","08H","07L","08H","08C","07L","08V","08C","08C","08L","08V","08L","09G","08C","07L","08V","10T","07L","08H","08C","08L","08H","09A","08C","08C","07L","08V","07L","08H","07L","08H","08H","07L","08C","05F","08H","08C","08H","08L","08H","07L","11D","08C","07L","08H","08H","08H","08H","03D","08C","08C","08C","08H","07L","07L","08H","08H","01V","08C","08H","08C","07L","08H","07L","08H","08H","09A","08V","07L","08L","08L","08C","08H","07L","00G","08H","08H","08H","07L","07L","08H","08H","08L","07L","08H","03M","08H","08C","10L","08H","09X","10L","11J","07J","09A","05F","10L","03D","05F","11J","08L","08C","11A","07L","06Y","11J","07K","10L","00W","04N","04K","99P","09G","05N","03D","08K","08Q","08H","10T","07L","07L","07L","08H","08C","08H","08H","07L","08L","08H","08H","08H","00W","08H","08H","08L","08L","08H","00W","07L","08H","00G","08L","08V","01H","08H","07T","08V","08H","08H","08H","08L","07L","10T","08L","08H","07L","08H","08H","08H","08H","07L","08H","10T","07L","08H","08H","07L","07L","08H","08C","08H","08L","08H","07L","07L",203]
[204,"08L","08L","08V","08L","08C","08V","08L","08L","08V","08L","08V","09A","07T","08H","08V","09G","08L","02W","08H","08L","08H","08H","08V","08V","08V","08L","07L","11A","08L","08L","08V","07L","08L","08L","08V","08L","08L","08L","08L","08L","08L","08L","08H","08L","08L","09A","08H","08H","02M","08L","08L","08C","08L","08L","08L","08V","08V","08V","08H","08V","08L","08V","08C","08V","08L","08L","08L","08L","08L","08L","05N","08V","08L","07T","08H","08L","08L","08Y","08L","08L","08L","08L","08L","08V","01V","08L","08L","08L","08V","08V","08L","08L","08L","00G","08L","08L","08L","08L","08L","08L","08V","08L","08C","08C","08L","08H","08H","08H","08L","08L","08H","11J","08L","08L","08L","08L","08L","08C","08H","08L","08L","01H","08C","00G","05N","00G","99H","11J","10L","10L","01K","11J","03D","99J","03M","03M","08C","00G","05F","08V","04N","05N","06Y","03M","08V","99J","08K","08V","05N","05F","00Q","04K","13P","08V","08L","08V","08L","08L","08L","08L","08L","08L","08V","08V","08L","08L","08V","08L","08V","08L","08H","08H","08L","08L","08L","08L","08H","08H","07L","09A","08L","99P","07L","08L","08L","08L","08H","08L","07L","07L","08L","08L","08L","08L","08L","08L","08L","08Y","07L","08L","08L","08L","08L","08L","08L","08L","08L","08H","08L","08L","08L",204]
[205,"08V","08V","08L","07L","08L","08L","08V","08V","08L","08V","08L","08Y","07L","08L","08L","99P","08V","08L","08L","08V","08L","08L","08L","08L","08L","07T","08L","11J","99P","08V","08L","08V","08V","08V","08L","08V","08V","08V","08V","08V","08V","08V","08L","08V","08V","08H","08L","08V","01V","08V","08V","08L","07L","08V","08V","08L","08H","08L","08C","08L","08V","08L","08L","08L","08V","08V","08V","08V","08V","08V","08Y","08L","08V","00G","08V","08V","08V","07T","08V","08V","08V","08V","08V","08L","08Y","08V","08H","08V","08L","08L","08V","08V","08V","10L","08V","08V","08V","08V","08V","08V","08L","08V","08L","09A","08V","08V","08V","08V","08V","08V","08V","09A","08V","08V","08V","08V","08V","08V","08V","08V","08V","03D","07T","07T","00G","07T","99J","99P","03M","05N","99P","99P","01V","05F","01K","07T","08V","08H","99J","08L","99J","03D","07J","11J","07T","10L","06V","00G","05F","03D","08M","01K","00Q","08L","07L","08L","08V","08V","08V","08V","08V","08V","08L","08C","08V","08V","08L","08V","08L","08V","08V","08V","08V","08V","08V","08V","07T","08V","08L","06V","08V","11J","08L","08V","08V","08V","08V","08V","08V","08V","08V","08V","08V","08V","08V","08V","08V","06V","08L","08V","08V","08V","08V","08V","08V","08V","08V","08V","08V","08V","08V",205]
[206,"07T","07T","07T","07T","07T","07T","07T","07T","07T","07T","07T","07T","08V","07T","07T","11D","07T","08H","07T","07T","07T","07T","07T","07T","07T","08V","07T","99P","07T","07T","07T","07T","07T","07T","07T","07T","07T","07T","07T","07T","07T","07T","07T","07T","07T","02W","07T","07T","99P","07T","07T","07T","07T","07T","07T","07T","07T","07T","08L","07T","07T","07T","07T","07T","07T","07T","07T","07T","07T","07T","01V","07T","07T","08V","07T","07T","07T","06V","07T","07T","07T","07T","07T","07T","99P","07T","07T","07T","07T","07T","07T","07T","07T","05F","07T","07T","07T","07T","07T","07T","07T","07T","07T","07T","07T","07T","07T","07T","07T","07T","07T","00G","07T","07T","07T","07T","07T","07T","07T","07T","07T","10L","00G","08V","99P","08V","07L","05N","01K","03D","08Q","08Q","00G","11J","11J","00G","07T","07T","06H","07T","03D","00G","10L","06V","00G","05F","11J","07T","01V","11J","05F","00G","08K","07T","07T","07T","07T","07T","07T","07T","07T","07T","07T","07T","07T","07T","07T","07T","07T","07T","07T","07T","07T","07T","07T","07T","08V","07T","07T","11J","07T","08M","07T","07T","07T","07T","07T","07T","07T","07T","07T","07T","07T","07T","07T","07T","07T","00G","07T","07T","07T","07T","07T","07T","07T","07T","07T","07T","07T","07T","07T",206]
[207,"08Q","08Q","08Q","08Q","02W","08Q","08Q","08Q","08M","08K","08K","08L","08K","08M","08M","11A","08Q","07T","08M","08K","08M","08M","08M","08M","08K","08M","08Q","08Q","08M","08Q","08K","08K","08K","08K","08M","08Q","08Q","08Q","08K","08Q","08Q","08K","08Q","08Q","08Q","07T","02W","08Q","08Q","08Q","08Q","08M","08Q","08Q","08Q","08M","08M","08Q","07T","08Q","08M","08Q","08Q","08Q","08K","08K","08M","08Q","08Q","08Q","03D","08Q","08Q","08M","08Q","08Q","08Q","08M","08Q","08K","08Q","08Q","08Q","08Q","11J","08Q","08M","08K","02W","08Q","08Q","08Q","08Q","03D","08Q","08K","08Q","08Q","08Q","08Q","08M","02W","02W","08M","08K","08Q","08Q","08Q","08Q","08Q","08Q","06V","08Q","08Q","08K","08Q","08Q","02W","08Q","08Q","08Q","11J","08M","08Q","03D","08Q","08M","05F","99P","05F","00G","06V","11J","05N","00G","99P","08Q","08M","06V","08M","05F","05F","05N","99P","08K","03D","08M","08Q","03D","00G","06V","00Q","10T","02W","08Q","08Q","08K","08K","08M","08Q","08Q","08Q","08Q","02W","08Q","08Q","08Q","08Q","02W","08Q","08Q","08Q","08Q","08Q","08Q","08Q","08K","08K","08Q","00G","08K","06V","08Q","08Q","08K","08Q","08Q","08Q","08Q","08K","08Q","08K","08Q","08K","08Q","08Q","08K","09A","08Q","08Q","08Q","08Q","08K","08K","08Q","08Q","08Q","08Q","08Q","08K","08K",207]
[208,"08K","08K","08K","08M","08M","08K","08M","08K","08K","08Q","08Q","08H","08Q","02W","08Q","03D","08K","08M","02W","08Q","02W","08Q","08Q","08Q","08Q","08K","08K","02W","08Q","08K","08Q","08Q","08Q","08Q","08Q","08K","08K","08K","08Q","08K","08K","08Q","02W","08K","08K","08M","08M","08K","11J","08K","08K","08Q","08K","08K","08K","08Q","08Q","08K","08M","08K","08Q","08K","08M","08K","08Q","08Q","08Q","08K","08K","08K","08Q","08K","08K","08Q","08K","08K","08K","08Q","08K","08Q","08K","08K","08K","08K","08Q","08K","08Q","08Q","08Q","08K","08K","08K","08K","08Q","08K","08Q","08K","08K","08K","08K","08Q","08M","08M","08Q","08Q","08K","08K","08K","08K","08K","08K","99P","08K","08K","08Q","08K","08K","08Q","08K","08K","08K","00G","08Q","08K","05F","08K","11D","03D","06V","00G","08M","08K","99P","06V","06V","02W","08K","02W","11J","08Q","05N","99P","05F","00G","08Q","05N","99P","08M","99P","99P","99P","99P","07L","08Q","08K","08K","08Q","08Q","02W","02W","08K","08K","08K","08Q","08K","08K","08K","08K","08Q","08K","08M","08M","08K","08K","08K","08K","08Q","08Q","08M","99P","08Q","08Q","08M","02W","08Q","08K","08K","08K","08K","08Q","08K","08Q","08K","08Q","08K","08M","08Q","02W","08K","08K","08K","08K","08Q","08Q","08K","08K","08K","08K","08K","08Q","08Q",208]
[209,"02W","08M","08M","08K","08Q","08M","02W","08M","08Q","08M","08M","08Q","08M","08Q","08K","11J","08M","08Q","08Q","08M","08Q","02W","08K","08K","08M","08Q","08M","06V","08K","08M","08M","08M","08M","08M","08K","08M","08M","08M","08M","08M","08M","08M","08M","08M","08M","08Q","08Q","08M","06V","08M","08M","02W","08M","08M","08M","08K","08K","08M","08Q","02W","08K","08M","08K","08M","08M","08M","08K","08M","08M","08M","06V","08M","08M","02W","08M","08M","08M","08K","08M","08M","08M","08M","08M","08M","06V","08M","08K","08M","08K","08M","08M","08M","08M","08K","08M","08M","08M","08M","08M","08M","08K","08Q","08Q","08K","08M","08M","08M","08M","08M","08M","08M","08Q","08M","08M","08M","08M","08M","08M","08M","08M","08M","99P","08K","08M","06V","08M","06V","02W","00G","06V","08K","00G","06V","99P","99P","08Q","08M","08Q","99P","08K","06V","06V","03D","08Q","08M","06V","00G","08K","11J","02W","00G","08M","08M","08M","08M","08M","08M","08M","08Q","08M","02W","08M","08M","08M","08M","08M","08M","08M","08M","08M","02W","08K","08M","08M","08M","02W","08M","08M","08K","08Q","08M","08K","08K","08K","08M","08M","08M","08M","08M","08M","08M","08M","08M","08M","08M","08K","08M","08Q","08M","08M","08M","08M","08M","08M","08M","02W","08M","08M","08M","08M","08M",209]
[210,"08M","02W","02W","02W","08K","02W","08K","02W","02W","02W","02W","08K","02W","08K","02W","06V","02W","08K","08K","02W","08K","08K","02W","02W","02W","02W","02W","08K","02W","02W","02W","02W","02W","02W","02W","02W","02W","02W","02W","02W","02W","02W","08K","02W","02W","08K","08K","02W","08K","02W","02W","08K","02W","02W","02W","02W","02W","02W","08K","08M","02W","02W","02W","02W","02W","02W","02W","02W","02W","02W","08K","02W","02W","08K","02W","02W","02W","02W","02W","02W","02W","02W","02W","02W","08K","02W","02W","02W","08M","02W","02W","02W","02W","06V","02W","02W","02W","02W","02W","02W","02W","08K","08K","02W","02W","02W","02W","02W","02W","02W","02W","08K","02W","02W","02W","02W","02W","08K","02W","02W","02W","06V","02W","02W","02W","02W","02W","06V","02W","02W","02W","02W","02W","02W","02W","08K","02W","08K","02W","02W","02W","02W","06V","08K","02W","02W","02W","02W","06V","06V","02W","02W","02W","08K","02W","02W","02W","02W","08K","08K","08M","02W","02W","08K","02W","02W","02W","02W","08K","02W","08K","02W","02W","02W","02W","08M","02W","02W","02W","08K","02W","02W","02W","08M","02W","02W","02W","02W","02W","02W","02W","02W","02W","02W","02W","02W","02W","08K","02W","02W","02W","02W","02W","02W","02W","08M","02W","02W","02W","02W","02W",210]

{"sheet":"Control Log","index":21,"n_rows":16,"n_cols":4,"rows_kept":16,"cut":false,"hidden":true,"merged":[]}
[]
["Red","Calculations"]
["Teal","Lookups and IF statements"]
["Grey","Inputted data"]
["Black","Text and fixed values"]
[]
[]
["Date","Version","Comments","Name"]
["2013-10-25",1,"Creation of file","SPO"]
["2013-10-31",2,"Changed layout of data and graph calc sheets. Deleted old ones","SPO"]
["2013-11-04",2,"Added 1213 prescribing and QOF data","SPO"]
["2013-11-13",2,"Changed layout of summary sheets. Deleted old ones","SPO"]
["2013-11-20",3,"Text layout and additonal functionality","SPO"]
[]
[]
["R:\\Completed_Work\\Diabetes\\CCG classification\\Final classification"]

{"sheet":"Sheet1","index":22,"n_rows":0,"n_cols":0,"rows_kept":0,"cut":false,"hidden":true,"merged":[]}

{"sheet":"Sheet2","index":23,"n_rows":0,"n_cols":0,"rows_kept":0,"cut":false,"hidden":true,"merged":[]}

{"sheet":"Sheet3","index":24,"n_rows":0,"n_cols":0,"rows_kept":0,"cut":false,"hidden":true,"merged":[]}

{"sheet":"Sheet4","index":25,"n_rows":211,"n_cols":12,"rows_kept":211,"cut":false,"hidden":true,"merged":[]}
[null,null,367891,343506,null,null,null,null,"NHS Fareham and Gosport","Wessex",174,4.6482161506923827]
["under 75",298,{"$f":"(B2/$C$1)*100000","v":81.002253384834091},{"$f":"B2/D1*100000","v":86.752487583914103},null,null,null,null,"NHS Lewisham","London",142,4.5926061680738339]
["stroke",598,{"$f":"(B3/$C$1)*100000","v":162.54814605413017},null,null,null,null,null,"NHS Barnet","London",123,4.5648887021527722]
["CHD",2370,644.21255208743901,null,null,null,null,null,"NHS Surrey Heath","South East coast",168,4.4356150207262663]
["HF",439,119.32882293940324,null,null,null,null,null,"NHS Southend","East of England",204,4.3785819350981816]
["Angiography",1427,387.88662946361831,null,null,null,null,null,"NHS West London (K&C & Qpp)","London",152,4.3689703176641368]
["Angioplasty",583,158.47085142066535,null,null,null,null,null,"NHS Camden","London",127,4.3623776016324305]
["CABG",149,40.501126692417046,null,null,null,null,null,"NHS Bromley","London",126,4.362271705306866]
[null,null,null,null,null,null,null,null,"NHS Islington","London",139,4.3015163488255155]
[null,null,36814.870409286501,null,37186.830781547083,null,null,null,"NHS South Eastern Hampshire","Wessex",181,4.2095433371382827]
["Spend on anti-arrhythmic drugs",53837.36,{"$f":"B11/$C$10","v":1.4623808097507143},62403,{"$f":"D11/$E$10","v":1.6780940641751523},null,null,null,"NHS South Kent Coast","South East coast",167,4.1962250057111197]
["Spend on anticoagulants and protamine",411553.34,{"$f":"B12/$C$10","v":11.178997384062127},546175.47,{"$f":"D12/$E$10","v":14.687335772399948},null,null,null,"NHS Horsham and Mid Sussex","South East coast",165,4.1951889395063873]
["Spend on antifibrinolytic drugs and haemostatics",21672,0.58867516737294467,18724.64,0.50352879249101201,null,null,null,"NHS Redditch and Bromsgrove","West Midlands",93,4.1887691339205722]
["Spend on antiplatelet drugs",538456.94999999995,14.626072128293433,590557.54,15.880824678747498,null,null,null,"NHS Southampton","Wessex",183,4.1744355583235642]
["Spend on beta-adrenoceptor blocking drugs",583187.54,15.84108631964359,688050,18.502517841381241,null,null,null,"NHS Dudley","West Midlands",88,4.1558023897935641]
["Spend on diuretics",455112.37,12.362188565118473,594753.07999999996,15.99364795278896,null,null,null,"NHS Milton Keynes","East Midlands",74,4.1444159473978388]
["Spend on hypertension and heart failure prescriptions",1805312.61,49.037592416585348,1260252,33.889739284407227,null,null,null,"NHS Hastings and Rother","South East coast",163,4.142109116769519]
["Spend on lipid regulators",1976826.33,53.696408761535345,1529127.36,41.12013118253644,null,null,null,"NHS North West Surrey","South East coast",166,4.1420820611849436]
["Spend on nitrates, calcium-channel blockers, and other antianginal drugs",1517790,41.227633918742235,1725794.05,46.408742388888292,null,null,null,"NHS Portsmouth","Wessex",179,4.1385468579250224]
["Spend on positive inotropic drugs",32588.37,0.88519583629390219,27944.15,0.75145285071903734,null,null,null,"NHS South Gloucestershire","South West",195,4.059916352301487]
["Spend on prescribing problems of circulation programme budget category",null,null,null,null,null,null,null,"NHS Surrey Downs","South East coast",205,4.0101630228404659]
["Spend on sympathomimetics",13034,0.35404171887868963,15615.8,0.41992822920927425,null,null,null,"NHS Castle Point and Rochford","East of England",203,4.0083071860844051]
["Total spend on prescribing for cardiovascular disease",7409371.5800000001,201.26029231196196,7059398,189.83596750877268,null,null,null,"NHS Waltham Forest","London",150,3.9849730446407339]
["Average spend per cardiovascular item",7409371.5800000001,201.26029231196196,7059398,189.83596750877268,null,null,null,"NHS Guildford and Waverley","South East coast",162,3.9528589175166871]
[null,2330977,{"$f":"B24/B25","v":3.1786549502633443},2394487,{"$f":"D24/D25","v":2.9481880670055842},null,null,null,"NHS Birmingham Crosscity","West Midlands",198,3.9412605332838222]
[null,null,null,null,null,null,null,null,"NHS Erewash","East Midlands",69,3.9195357559581709]
[null,null,null,null,null,null,null,null,"NHS Wyre Forest","West Midlands",105,3.9071421219816105]
[null,null,null,null,null,null,null,null,"NHS Wigan Borough","Greater Manchester Lancashire and South Cumbria",41,3.902803036130845]
[null,null,null,null,null,null,null,null,"NHS Warrington","Cheshire and Merseyside",38,3.8870491749397362]
[null,null,null,null,null,null,null,null,"NHS Telford and Wrekin","West Midlands",102,3.8810671432031811]
[null,null,null,null,null,null,null,null,"NHS Walsall","West Midlands",103,3.874344197430688]
[null,null,null,null,null,null,null,null,"NHS Bolton","Greater Manchester Lancashire and South Cumbria",14,3.8670475761690182]
[null,null,null,null,null,null,null,null,"NHS Central London (Westminster)","London",153,3.8547667557336682]
[null,null,null,null,null,null,null,null,"NHS North East Hampshire and Farnham","Wessex",208,3.8162741310404273]
[null,null,null,null,null,null,null,null,"NHS West Hampshire","Wessex",185,3.8131459851338807]
[null,null,null,null,null,null,null,null,"NHS Redbridge","London",144,3.8117285161335337]
[null,null,null,null,null,null,null,null,"NHS Swale","South East coast",169,3.7938595996747653]
[null,null,null,null,null,null,null,null,"NHS Eastbourne, Hailsham and Seaford","South East coast",157,3.7919854653507836]
[null,null,null,null,null,null,null,null,"NHS Canterbury and Coastal","South East coast",156,3.7705246513979573]
[null,null,null,null,null,null,null,null,"NHS Luton","East of England",112,3.7681218509773666]
[null,null,null,null,null,null,null,null,"NHS Bracknell and Ascot","Thames",171,3.7668841816371179]
[null,null,null,null,null,null,null,null,"NHS Nottingham West","East Midlands",80,3.7667347448034736]
[null,null,null,null,null,null,null,null,"NHS Basildon and Brentwood","East of England",202,3.7577180943368838]
[null,null,null,null,null,null,null,null,"NHS East Surrey","South East coast",161,3.7556591275468185]
[null,null,null,null,null,null,null,null,"NHS Hammersmith and Fulham","London",134,3.7544084540796772]
[null,null,null,null,null,null,null,null,"NHS Bexley","London",124,3.7451803325366346]
[null,null,null,null,null,null,null,null,"NHS Shropshire","West Midlands",95,3.7327699544869102]
[null,null,null,null,null,null,null,null,"NHS Wokingham","Thames",187,3.7305954170874358]
[null,null,null,null,null,null,null,null,"NHS Birmingham South and Central","West Midlands",85,3.7195049183260056]
[null,null,null,null,null,null,null,null,"NHS Southern Derbyshire","East Midlands",83,3.7162983959266693]
[null,null,null,null,null,null,null,null,"NHS Sandwell and West Birmingham","West Midlands",94,3.7137676062320453]
[null,null,null,null,null,null,null,null,"NHS Coastal West Sussex","South East coast",158,3.6643182118128221]
[null,null,null,null,null,null,null,null,"NHS West Cheshire","Cheshire and Merseyside",39,3.6574486547501959]
[null,null,null,null,null,null,null,null,"NHS Tameside and Glossop","East Midlands",35,3.6382698342339252]
[null,null,null,null,null,null,null,null,"NHS Thanet","South East coast",170,3.6177844518740083]
[null,null,null,null,null,null,null,null,"NHS Medway","South East coast",164,3.616097029147685]
[null,null,null,null,null,null,null,null,"NHS South Devon and Torbay","South West",211,3.6149407673410381]
[null,null,null,null,null,null,null,null,"NHS Dartford, Gravesham and Swanley","South East coast",160,3.6088316309179937]
[null,null,null,null,null,null,null,null,"NHS Herts Valleys","East of England",111,3.581160430003218]
[null,null,null,null,null,null,null,null,"NHS Heywood, Middleton and Rochdale","Greater Manchester Lancashire and South Cumbria",21,3.5757869480523299]
[null,null,null,null,null,null,null,null,"NHS Airedale, Wharfedale and Craven","Yorkshire and Northern",43,3.5717574559451477]
[null,null,null,null,null,null,null,null,"NHS Oldham","Greater Manchester Lancashire and South Cumbria",18,3.5702640241826105]
[null,null,null,null,null,null,null,null,"NHS High Weald Lewes Havens","South East coast",207,3.560190862269923]
[null,null,null,null,null,null,null,null,"NHS Somerset","South West",194,3.5313425796008584]
[null,null,null,null,null,null,null,null,"NHS Wirral","Cheshire and Merseyside",197,3.5294743612417867]
[null,null,null,null,null,null,null,null,"NHS Windsor, Ascot and Maidenhead","Thames",186,3.5230127266266922]
[null,null,null,null,null,null,null,null,"NHS Leeds West","Yorkshire and Northern",53,3.5203997417134762]
[null,null,null,null,null,null,null,null,"NHS North Kirklees","Yorkshire and Northern",59,3.4990757711817477]
[null,null,null,null,null,null,null,null,"NHS South Manchester","Greater Manchester Lancashire and South Cumbria",29,3.4784533352428788]
[null,null,null,null,null,null,null,null,"NHS Ashford","South East coast",154,3.4774328149885703]
[null,null,null,null,null,null,null,null,"NHS West Lancashire","Greater Manchester Lancashire and South Cumbria",40,3.4606656328163918]
[null,null,null,null,null,null,null,null,"NHS Nottingham North and East","East Midlands",79,3.4588574841696986]
[null,null,null,null,null,null,null,null,"NHS South Worcestershire","West Midlands",99,3.4570179606389484]
[null,null,null,null,null,null,null,null,"NHS Halton","Cheshire and Merseyside",23,3.4441580612611902]
[null,null,null,null,null,null,null,null,"NHS Greater Huddersfield","Yorkshire and Northern",52,3.4409102081034839]
[null,null,null,null,null,null,null,null,"NHS Brighton and Hove","South East coast",155,3.4393492635616059]
[null,null,null,null,null,null,null,null,"NHS Harrogate and Rural District","Yorkshire and Northern",55,3.4238957353678101]
[null,null,null,null,null,null,null,null,"NHS North Somerset","South West",193,3.4116540291766597]
[null,null,null,null,null,null,null,null,"NHS Liverpool","Cheshire and Merseyside",199,3.3896859958898529]
[null,null,null,null,null,null,null,null,"NHS Norwich","East of England",116,3.3868635007882872]
[null,null,null,null,null,null,null,null,"NHS Southwark","London",146,3.3847064788769181]
[null,null,null,null,null,null,null,null,"NHS South Reading","Thames",182,3.376041106849716]
[null,null,null,null,null,null,null,null,"NHS Bury","Greater Manchester Lancashire and South Cumbria",15,3.3671493549038876]
[null,null,null,null,null,null,null,null,"NHS Solihull","West Midlands",96,3.3658631704815796]
[null,null,null,null,null,null,null,null,"NHS Hartlepool and Stockton-On-Tees","Northern England",7,3.3543927167387193]
[null,null,null,null,null,null,null,null,"NHS Chiltern","Thames",172,3.3539466623019325]
[null,null,null,null,null,null,null,null,"NHS Stafford and Surrounds","West Midlands",100,3.3498274442945437]
[null,null,null,null,null,null,null,null,"NHS Vale Of York","Yorkshire and Northern",64,3.3492322753835917]
[null,null,null,null,null,null,null,null,"NHS North Staffordshire","West Midlands",91,3.3472803369486095]
[null,null,null,null,null,null,null,null,"NHS Calderdale","Yorkshire and Northern",47,3.3307120841242477]
[null,null,null,null,null,null,null,null,"NHS South Sefton","Cheshire and Merseyside",31,3.3260662981696827]
[null,null,null,null,null,null,null,null,"NHS Dorset","Wessex",190,3.3093265304639576]
[null,null,null,null,null,null,null,null,"NHS Ipswich and East Suffolk","East of England",109,3.2978489207210919]
[null,null,null,null,null,null,null,null,"NHS Merton","London",147,3.2926866621851554]
[null,null,null,null,null,null,null,null,"NHS Nottingham City","East Midlands",78,3.2916526745324624]
[null,null,null,null,null,null,null,null,"NHS City and Hackney","London",128,3.2912562365419515]
[null,null,null,null,null,null,null,null,"NHS Wiltshire","South West",209,3.251499211301236]
[null,null,null,null,null,null,null,null,"NHS Wakefield","Yorkshire and Northern",65,3.2456901482905804]
[null,null,null,null,null,null,null,null,"NHS North Manchester","Greater Manchester Lancashire and South Cumbria",28,3.2433830207158252]
[null,null,null,null,null,null,null,null,"NHS St Helens","Cheshire and Merseyside",34,3.2419953793280976]
[null,null,null,null,null,null,null,null,"NHS Leeds North","Yorkshire and Northern",48,3.2239635621067273]
[null,null,null,null,null,null,null,null,"NHS Bristol","South West",189,3.221367306253768]
[null,null,null,null,null,null,null,null,"NHS North Hampshire","Wessex",173,3.1940968301628931]
[null,null,null,null,null,null,null,null,"NHS South Warwickshire","West Midlands",98,3.1940739556553139]
[null,null,null,null,null,null,null,null,"NHS Rushcliffe","East Midlands",81,3.1935226119567175]
[null,null,null,null,null,null,null,null,"NHS East Staffordshire","West Midlands",89,3.1890712093181088]
[null,null,null,null,null,null,null,null,"NHS South Cheshire","Cheshire and Merseyside",30,3.1863790133125991]
[null,null,null,null,null,null,null,null,"NHS Greater Preston","Greater Manchester Lancashire and South Cumbria",22,3.1723379181408364]
[null,null,null,null,null,null,null,null,"NHS Stockport","Greater Manchester Lancashire and South Cumbria",33,3.1635435420689402]
[null,null,null,null,null,null,null,null,"NHS Greenwich","London",133,3.1477631339380578]
[null,null,null,null,null,null,null,null,"NHS Trafford","Greater Manchester Lancashire and South Cumbria",36,3.1445605125441549]
[null,null,null,null,null,null,null,null,"NHS Cannock Chase","West Midlands",86,3.1430740037892959]
[null,null,null,null,null,null,null,null,"NHS Haringey","London",135,3.1415925020930251]
[null,null,null,null,null,null,null,null,"NHS East Leicestershire and Rutland","East Midlands",68,3.1354510396298028]
[null,null,null,null,null,null,null,null,"NHS Ealing","London",130,3.1321496456061002]
[null,null,null,null,null,null,null,null,"NHS Crawley","South East coast",159,3.1290867089250689]
[null,null,null,null,null,null,null,null,"NHS East Riding Of Yorkshire","Yorkshire and Northern",51,3.1244715157962797]
[null,null,null,null,null,null,null,null,"NHS Rotherham","Yorkshire and Northern",61,3.1210241408238595]
[null,null,null,null,null,null,null,null,"NHS Brent","London",125,3.1194810855790434]
[null,null,null,null,null,null,null,null,"NHS Bradford Districts","Yorkshire and Northern",46,3.1165003567893037]
[null,null,null,null,null,null,null,null,"NHS Wandsworth","London",151,3.1150824441187908]
[null,null,null,null,null,null,null,null,"NHS Chorley and South Ribble","Greater Manchester Lancashire and South Cumbria",17,3.1137259058225726]
[null,null,null,null,null,null,null,null,"NHS Great Yarmouth and Waveney","East of England",110,3.0929996952543055]
[null,null,null,null,null,null,null,null,"NHS Gloucestershire","South West",191,3.0882035971113431]
[null,null,null,null,null,null,null,null,"NHS Wolverhampton","West Midlands",104,3.0841577140515648]
[null,null,null,null,null,null,null,null,"NHS Northumberland","Northern England",8,3.0830093788164428]
[null,null,null,null,null,null,null,null,"NHS Herefordshire","West Midlands",90,3.0798965782908323]
[null,null,null,null,null,null,null,null,"NHS Hounslow","London",132,3.0778690906763524]
[null,null,null,null,null,null,null,null,"NHS Leeds South and East","Yorkshire and Northern",57,3.075784182082911]
[null,null,null,null,null,null,null,null,"NHS Knowsley","Cheshire and Merseyside",26,3.0722454288980892]
[null,null,null,null,null,null,null,null,"NHS Doncaster","Yorkshire and Northern",50,3.0668624144362582]
[null,null,null,null,null,null,null,null,"NHS Scarborough and Ryedale","Yorkshire and Northern",62,3.0630555867692002]
[null,null,null,null,null,null,null,null,"NHS Kingston","London",140,3.0534930090487502]
[null,null,null,null,null,null,null,null,"NHS North East Lincolnshire","Yorkshire and Northern",58,3.0412334739217197]
[null,null,null,null,null,null,null,null,"NHS Enfield","London",131,3.0366047177037743]
[null,null,null,null,null,null,null,null,"NHS Havering","London",137,3.0316089750931763]
[null,null,null,null,null,null,null,null,"NHS Sutton","London",148,3.0246592884170989]
[null,null,null,null,null,null,null,null,"NHS Stoke On Trent","West Midlands",101,3.0230309837138991]
[null,null,null,null,null,null,null,null,"NHS South East Staffs and Seisdon Peninsular","West Midlands",97,3.0131171473687774]
[null,null,null,null,null,null,null,null,"NHS Lancashire North","Greater Manchester Lancashire and South Cumbria",27,3.0053972595590213]
[null,null,null,null,null,null,null,null,"NHS North Lincolnshire","Yorkshire and Northern",60,3.0045724904634499]
[null,null,null,null,null,null,null,null,"NHS Lambeth","London",141,3.0021638248178038]
[null,null,null,null,null,null,null,null,"NHS Coventry and Rugby","West Midlands",87,2.9998807982040265]
[null,null,null,null,null,null,null,null,"NHS Croydon","London",129,2.9992506642708197]
[null,null,null,null,null,null,null,null,"NHS West Suffolk","East of England",121,2.9931945931081394]
[null,null,null,null,null,null,null,null,"NHS Northern, Eastern and Western Devon","South West",210,2.9879420247591719]
[null,null,null,null,null,null,null,null,"NHS Oxfordshire","Thames",178,2.9838723953365536]
[null,null,null,null,null,null,null,null,"NHS Blackburn with Darwen","Greater Manchester Lancashire and South Cumbria",12,2.9774693302839745]
[null,null,null,null,null,null,null,null,"NHS Eastern Cheshire","Cheshire and Merseyside",20,2.9713290572544238]
[null,null,null,null,null,null,null,null,"NHS Hambleton, Richmondshire and Whitby","Northern England",54,2.9681349838774911]
[null,null,null,null,null,null,null,null,"NHS North Tyneside","Northern England",200,2.9647165693511477]
[null,null,null,null,null,null,null,null,"NHS Bassetlaw","Yorkshire and Northern",45,2.9602187458153884]
[null,null,null,null,null,null,null,null,"NHS West Kent","South East coast",206,2.9557943829609283]
[null,null,null,null,null,null,null,null,"NHS South Tees","Northern England",9,2.954099095743826]
[null,null,null,null,null,null,null,null,"NHS East Lancashire","Greater Manchester Lancashire and South Cumbria",19,2.9481884441465249]
[null,null,null,null,null,null,null,null,"NHS Cumbria","Northern England",25,2.9470451529690909]
[null,null,null,null,null,null,null,null,"NHS South Tyneside","Northern England",10,2.925574505035502]
[null,null,null,null,null,null,null,null,"NHS Central Manchester","Greater Manchester Lancashire and South Cumbria",16,2.9176121108487165]
[null,null,null,null,null,null,null,null,"NHS Southport and Formby","Cheshire and Merseyside",32,2.9139814126754429]
[null,null,null,null,null,null,null,null,"NHS Bedfordshire","East of England",106,2.9026901250321502]
[null,null,null,null,null,null,null,null,"NHS Hull","Yorkshire and Northern",56,2.8904140024842397]
[null,null,null,null,null,null,null,null,"NHS North Durham","Northern England",6,2.8815023820248058]
[null,null,null,null,null,null,null,null,"NHS Aylesbury Vale","Thames",184,2.8806880074617327]
[null,null,null,null,null,null,null,null,"NHS North Derbyshire","East Midlands",77,2.8800669697760415]
[null,null,null,null,null,null,null,null,"NHS Newark & Sherwood","East Midlands",76,2.8781500341446034]
[null,null,null,null,null,null,null,null,"NHS South Lincolnshire","East Midlands",201,2.8718876851275397]
[null,null,null,null,null,null,null,null,"NHS Barking and Dagenham","London",122,2.8663036739101018]
[null,null,null,null,null,null,null,null,"NHS Kernow","South West",192,2.8626178950536678]
[null,null,null,null,null,null,null,null,"NHS North & West Reading","Thames",177,2.8577345875324225]
[null,null,null,null,null,null,null,null,"NHS South Norfolk","East of England",117,2.8562263256887181]
[null,null,null,null,null,null,null,null,"NHS West Norfolk","East of England",120,2.8560871131544769]
[null,null,null,null,null,null,null,null,"NHS Barnsley","Yorkshire and Northern",44,2.8502898267571459]
[null,null,null,null,null,null,null,null,"NHS Hillingdon","London",138,2.8423844088565362]
[null,null,null,null,null,null,null,null,"NHS Newcastle North and East","Northern England",4,2.8243000106119047]
[null,null,null,null,null,null,null,null,"NHS Warwickshire North","West Midlands",92,2.8212202757872165]
[null,null,null,null,null,null,null,null,"NHS West Leicestershire","East Midlands",84,2.8117854880921604]
[null,null,null,null,null,null,null,null,"NHS Newbury and District","Thames",176,2.8102302858665129]
[null,null,null,null,null,null,null,null,"NHS Gateshead","Northern England",3,2.8069904484555166]
[null,null,null,null,null,null,null,null,"NHS Mid Essex","East of England",113,2.8041781177298062]
[null,null,null,null,null,null,null,null,"NHS Lincolnshire East","East Midlands",66,2.8033020629095562]
[null,null,null,null,null,null,null,null,"NHS Harrow","London",136,2.8008256450154021]
[null,null,null,null,null,null,null,null,"NHS Darlington","Northern England",1,2.7731009518702745]
[null,null,null,null,null,null,null,null,"NHS Thurrock","East of England",118,2.7687157751869966]
[null,null,null,null,null,null,null,null,"NHS Isle Of Wight","Wessex",175,2.7606260028923777]
[null,null,null,null,null,null,null,null,"NHS North Norfolk","East of England",115,2.7575803750982777]
[null,null,null,null,null,null,null,null,"NHS West Essex","East of England",119,2.723443863851402]
[null,null,null,null,null,null,null,null,"NHS Lincolnshire West","East Midlands",72,2.7045344718131834]
[null,null,null,null,null,null,null,null,"NHS Leicester City","East Midlands",71,2.6753931744994639]
[null,null,null,null,null,null,null,null,"NHS East and North Hertfordshire","East of England",108,2.6667792888815138]
[null,null,null,null,null,null,null,null,"NHS Fylde & Wyre","Greater Manchester Lancashire and South Cumbria",42,2.6579013697437657]
[null,null,null,null,null,null,null,null,"NHS North East Essex","East of England",114,2.6525262822504594]
[null,null,null,null,null,null,null,null,"NHS Swindon","South West",196,2.648618345990128]
[null,null,null,null,null,null,null,null,"NHS Sunderland","Northern England",11,2.6449926286508876]
[null,null,null,null,null,null,null,null,"NHS Slough","Thames",180,2.6287313793600964]
[null,null,null,null,null,null,null,null,"NHS Bath and North East Somerset","South West",188,2.6203669043349986]
[null,null,null,null,null,null,null,null,"NHS Durham Dales, Easington and Sedgefield","Northern England",2,2.6146445098427535]
[null,null,null,null,null,null,null,null,"NHS Newcastle West","Northern England",5,2.6110608559071973]
[null,null,null,null,null,null,null,null,"NHS Sheffield","Yorkshire and Northern",63,2.6045908173139805]
[null,null,null,null,null,null,null,null,"NHS South West Lincolnshire","East Midlands",82,2.5878599927450869]
[null,null,null,null,null,null,null,null,"NHS Cambridgeshire and Peterborough","East of England",107,2.5742593410536947]
[null,null,null,null,null,null,null,null,"NHS Richmond","London",145,2.5552262512771584]
[null,null,null,null,null,null,null,null,"NHS Vale Royal","Cheshire and Merseyside",37,2.5391285877358896]
[null,null,null,null,null,null,null,null,"NHS Salford","Greater Manchester Lancashire and South Cumbria",24,2.53024719337713]
[null,null,null,null,null,null,null,null,"NHS Corby","East Midlands",67,2.524671784594648]
[null,null,null,null,null,null,null,null,"NHS Blackpool","Greater Manchester Lancashire and South Cumbria",13,2.5070631352491373]
[null,null,null,null,null,null,null,null,"NHS Hardwick","East Midlands",70,2.4757900777495965]
[null,null,null,null,null,null,null,null,"NHS Bradford City","Yorkshire and Northern",49,2.3652699137722988]
[null,null,null,null,null,null,null,null,"NHS Nene","East Midlands",75,2.3146444089203264]
[null,null,null,null,null,null,null,null,"NHS Mansfield and Ashfield","East Midlands",73,2.279732194858993]
[null,null,null,null,null,null,null,null,"NHS Tower Hamlets","London",149,2.1785689703009621]
[null,null,null,null,null,null,null,null,"NHS Newham","London",143,2.1427117288819266]

{"sheet":"Sheet5","index":26,"n_rows":211,"n_cols":13,"rows_kept":211,"cut":false,"hidden":true,"merged":[]}
["NHS Tower Hamlets","London","No","No",1,149,267193.42,44591.313857209811,5.9920508477414698,149,4509,4907,0.91889137966170775]
["NHS North East Lincolnshire","Yorkshire and Northern","No","No",3,58,464911.69999999902,16168.124579448235,28.75483162660446,58,6263,6866,0.91217593941159336]
["NHS Knowsley","Cheshire and Merseyside","No","No",1,26,212351.35,15544.296467863347,13.661046058856398,26,6646,7290,0.91165980795610424]
["NHS Newcastle North and East","Northern England","No","No",4,4,210584.32000000001,18564.917291443529,11.343132678380268,4,4155,4585,0.90621592148309704]
["NHS Rushcliffe","East Midlands","No","No",10,81,138170.01999999999,12413.023540201772,11.131052765066622,81,3974,4397,0.90379804412099163]
["NHS Wigan Borough","Greater Manchester Lancashire and South Cumbria","No","No",3,41,378834.13999999902,32732.680338740945,11.573575279493008,41,12785,14152,0.90340587902769931]
["NHS Wokingham","Thames","No","No",10,187,131255.09,18028.326974216674,7.2804919828509487,187,3530,3908,0.90327533265097237]
["NHS Newbury and District","Thames","No","No",10,176,141907.65,12876.667787868595,11.020525833064859,176,2568,2845,0.90263620386643229]
["NHS Harrogate and Rural District","Yorkshire and Northern","No","No",10,55,229336.22,15245.659225338677,15.042722430712429,55,5775,6399,0.90248476324425686]
["NHS Southport and Formby","Cheshire and Merseyside","No","No",7,32,123034.32,10444.871794871795,11.77939972996195,32,4854,5379,0.90239821528165087]
["NHS Salford","Greater Manchester Lancashire and South Cumbria","No","No",1,24,217283.69999999899,27141.260713898231,8.0056598066844575,24,8651,9587,0.90236778971523934]
["NHS St Helens","Cheshire and Merseyside","No","No",3,34,276033.989999999,18652.681327160491,14.798622522868127,34,8214,9110,0.9016465422612514]
["NHS Newcastle West","Northern England","No","No",2,5,218699.5,13433.462007314101,16.280203858165894,5,4684,5195,0.90163618864292594]
["NHS West Cheshire","Cheshire and Merseyside","No","No",7,39,399614.05000000098,25154.263183834402,15.886533709197106,39,8334,9244,0.90155776720034619]
["NHS Portsmouth","Wessex","No","No",4,179,380423.36999999802,25186.277912761772,15.1043902285871,179,5854,6495,0.90130869899923016]
["NHS Newham","London","No","No",1,143,186435.87,57639.012421407759,3.2345431014143413,143,6081,6747,0.90128946198310356]
["NHS South Warwickshire","West Midlands","No","No",10,98,564326.57999999903,26733.066171439743,21.109684028796405,98,7797,8659,0.90045039842937979]
["NHS Swale","South East coast","No","No",4,169,140436.69,11060.880296174413,12.696701007475177,169,2957,3284,0.9004263093788063]
["NHS Corby","East Midlands","No","No",3,67,119342.93,8169.4090382387012,14.608514452072283,67,2131,2369,0.89953566905867455]
["NHS South Norfolk","East of England","No","No",9,117,398093.56000000099,20647.222222222223,19.280732086640704,117,7314,8131,0.89952035419997545]
["NHS Ashford","South East coast","No","No",8,154,266019.93999999901,13182.883560907429,20.179192114603477,154,3469,3864,0.89777432712215322]
["NHS Stockport","Greater Manchester Lancashire and South Cumbria","No","No",6,33,211051.02999999901,30593.941248470011,6.8984583674897912,33,10677,11895,0.89760403530895339]
["NHS Wakefield","Yorkshire and Northern","No","No",4,65,504867.99,36633.970799917741,13.781415963817214,65,14003,15612,0.89693825262618498]
["NHS Northumberland","Northern England","Closest 10 CCGs","No",6,8,829229.77000000596,29405.995795631112,28.199343282338553,8,14154,15786,0.89661725579627516]
["NHS South Gloucestershire","South West","No","No",10,195,525201.549999999,27866.472993329029,18.847076561347656,195,7005,7816,0.8962384851586489]
["NHS Rotherham","Yorkshire and Northern","No","No",3,61,381446.00000000099,25257.454974904045,15.102313371596939,61,10206,11393,0.89581321864302643]
["NHS Leeds South and East","Yorkshire and Northern","No","No",1,57,457815.18,26999.384678494516,16.956504211174035,57,8964,10009,0.89559396543111203]
["NHS North Lincolnshire","Yorkshire and Northern","No","No",5,60,254916.15999999901,16557.062036675768,15.396219415940511,60,6955,7766,0.89557043523049185]
["NHS Doncaster","Yorkshire and Northern","No","No",2,50,260895.81999999899,29641.082011087747,8.8018318596604033,50,11328,12649,0.89556486678788838]
["NHS Bolton","Greater Manchester Lancashire and South Cumbria","No","No",2,14,263219.109999999,31304.05973916702,8.4084656173417809,14,9323,10419,0.89480756310586429]
["NHS North Durham","Northern England","No","No",6,6,381947.21,25705.864229228715,14.858368759518655,6,10237,11449,0.89413922613328678]
["NHS Nottingham North and East","East Midlands","No","No",7,79,170501.15,14435.370094386488,11.81134594299755,79,4988,5582,0.89358652812611972]
["NHS Hambleton, Richmondshire and Whitby","Northern England","No","No",9,54,281392.609999999,12490.944258835942,22.527729222788366,54,5356,5994,0.89356022689356018]
["NHS Dudley","West Midlands","No","No",4,88,223995.56999999899,30259.682844786163,7.4024427535794253,88,11587,12968,0.89350709438618137]
["NHS City and Hackney","London","No","No",1,128,222048.640000001,42621.20327102804,5.2098163110974296,128,4094,4583,0.89330133100589137]
["NHS Walsall","West Midlands","No","No",2,103,281502.8,26614.53226122769,10.577033525781552,103,9652,10807,0.89312482650134173]
["NHS Coventry and Rugby","West Midlands","No","No",4,87,538794.66999999795,52573.785109228716,10.248352270634188,87,11686,13088,0.89287897310513442]
["NHS Mansfield and Ashfield","East Midlands","No","No",3,73,255797.21,18279.405940594061,13.99373758815309,73,7013,7856,0.89269348268839099]
["NHS Basildon and Brentwood","East of England","No","No",7,202,353244.53,28085.119932073867,12.577640076109715,202,7675,8602,0.8922343641013718]
["NHS North & West Reading","Thames","No","No",9,177,105018.23,12110.275970383667,8.6718279795462738,177,2400,2690,0.89219330855018586]
["NHS Bury","Greater Manchester Lancashire and South Cumbria","No","No",5,15,180912.76,19739.121183104588,9.1651881723513426,15,6107,6845,0.89218407596785976]
["NHS West Lancashire","Greater Manchester Lancashire and South Cumbria","No","No",6,40,135468.28,10989.007753459613,12.327617109684104,40,3924,4399,0.89202091384405546]
["NHS Slough","Thames","No","Comparator Closest 10 CCGs",4,180,34879.4,21828.125,1.597910952040086,180,3397,3809,0.89183512733000792]
["NHS Sunderland","Northern England","No","No",3,11,386045.37999999902,27647.287954036419,13.963227808883062,11,12738,14286,0.8916421671566569]
["NHS Hastings and Rother","South East coast","Closest 10 CCGs","No",3,163,315151.28999999899,15022.096734593666,20.979181240009737,163,6761,7586,0.89124703401001848]
["NHS Tameside and Glossop","East Midlands","No","No",3,35,236639.80999999901,25016.274489478594,9.4594345013093601,35,8944,10038,0.89101414624427178]
["NHS Lincolnshire West","East Midlands","No","No",6,72,273425.68,22731.262525050101,12.028618282802457,72,8143,9141,0.89082157313204247]
["NHS Havering","London","No","No",7,137,336833.53000000102,26732.738959154052,12.6000381223436,137,7098,7969,0.89070146818923324]
["NHS Swindon","South West","No","No",8,196,300837.28999999998,25977.288609364081,11.580780986186396,196,5612,6301,0.89065227741628317]
["NHS Leeds North","Yorkshire and Northern","No","No",5,48,265631.58,21868.164794007491,12.14695345961499,48,6093,6842,0.89052908506284711]
["NHS Chorley and South Ribble","Greater Manchester Lancashire and South Cumbria","No","No",6,17,177618.02,18013.824409367586,9.860095000572711,17,6317,7095,0.89034531360112756]
["NHS South Reading","Thames","No","No",5,182,109213.49,19374.45191464484,5.6369847509052509,182,2046,2299,0.88995215311004783]
["NHS Heywood, Middleton and Rochdale","Greater Manchester Lancashire and South Cumbria","No","No",2,21,156046.43999999901,23403.96018636171,6.6675228789242524,21,7855,8827,0.88988331256372488]
["NHS Greenwich","London","No","No",2,133,280409.73,36498.438560760354,7.6827870193184049,133,5172,5814,0.8895768833849329]
["NHS Aylesbury Vale","Thames","No","No",10,184,197922.25,22839.234885574406,8.6658879332691914,184,5714,6425,0.88933852140077818]
["NHS Bassetlaw","Yorkshire and Northern","No","No",4,45,115321.01,10835.430784123912,10.642955716072544,45,3917,4405,0.88921679909194096]
["NHS Halton","Cheshire and Merseyside","No","No",2,23,192257.58,13257.060399917544,14.502278348312858,23,4995,5618,0.88910644357422575]
["NHS Stoke On Trent","West Midlands","No","No",1,101,241140.889999999,27780.2775024777,8.6802908998476287,101,9898,11133,0.88906853498607741]
["NHS Gloucestershire","South West","No","No",8,191,1108382.54000001,61582.133995037228,17.998443186287311,191,17745,19963,0.88889445474127138]
["NHS Oxfordshire","Thames","No","No",9,178,843720.31000000401,78054.586381541929,10.809362384879973,178,16088,18109,0.88839803412667739]
["NHS Redditch and Bromsgrove","West Midlands","No","No",8,93,233916.68999999901,17697.231655860862,13.21769949948821,93,5413,6093,0.88839652059740681]
["NHS South Lincolnshire","East Midlands","No","No",9,201,402358.09,14588.676797627873,27.580163409023061,201,5734,6455,0.88830364058869093]
["NHS North East Essex","East of England","No","No",6,114,389757.17000000097,30556.915432041958,12.755121532695735,114,11088,12485,0.88810572687224665]
["NHS Windsor, Ascot and Maidenhead","Thames","No","No",10,186,78741.790000000095,17009.578970817554,4.6292615552150504,186,3532,3978,0.88788335847159372]
["NHS Leeds West","Yorkshire and Northern","No","No",5,53,487078.58000000298,42939.559785841768,11.343352899500493,53,9821,11063,0.88773388773388773]
["NHS Warrington","Cheshire and Merseyside","No","No",6,38,285734.46999999997,22761.115954664343,12.553623054736276,38,6996,7882,0.88759198173052523]
["NHS Herts Valleys","East of England","No","No",10,111,667689.58000000205,69280.159181353039,9.6375295306727971,111,14221,16026,0.88737052290028706]
["NHS Vale Royal","Cheshire and Merseyside","No","No",7,37,134963.94,10709.886887306242,12.601808162882122,37,3365,3793,0.88716055892433432]
["NHS Fareham and Gosport","Wessex","No","No",9,174,397074.5,19838.005923000987,20.015847436541783,174,6375,7186,0.8871416643473421]
["NHS Isle Of Wight","Wessex","Closest 10 CCGs","No",5,175,188520.55,11703.357591796228,16.108244879413782,175,5020,5660,0.88692579505300351]
["NHS Darlington","Northern England","No","No",4,1,150952.48000000001,10439.230316120165,14.460115873380104,1,3799,4286,0.8863742417172189]
["NHS Harrow","London","No","Comparator Closest 10 CCGs",8,136,175620.3,31114.681229362461,5.6442905104960461,136,6308,7119,0.8860795055485321]
["NHS Erewash","East Midlands","No","No",5,69,135880.99,9587.5,14.172723859191654,69,3162,3570,0.88571428571428568]
["NHS Sheffield","Yorkshire and Northern","No","No",3,63,707245.51,61803.355776424069,11.443480715812372,63,19363,21862,0.88569206842923798]
["NHS South East Staffs and Seisdon Peninsular","West Midlands","No","No",8,97,269175.34999999899,21637.207878354937,12.440392102036052,97,6841,7724,0.88568099430346969]
["NHS Medway","South East coast","No","No",5,164,375938.91,32767.388300322436,11.472959228682278,164,7078,7993,0.88552483422995121]
["NHS Crawley","South East coast","No","No",7,159,135350.64000000001,15548.253115074518,8.7051991627775429,159,3248,3668,0.8854961832061069]
["NHS Cumbria","Northern England","No","No",5,25,906584.65000000305,47254.327443202303,19.185219620143346,25,22058,24925,0.88497492477432294]
["NHS Wiltshire","South West","No","No",9,209,765150.80000000098,46231.944714814097,16.550262047592902,209,13815,15612,0.88489623366641046]
["NHS Thurrock","East of England","No","No",6,118,198981.06000000099,19836.86056355061,10.030874561150076,118,4001,4524,0.884394341290893]
["NHS South Eastern Hampshire","Wessex","No","No",7,181,430790.04999999801,19133.583592748579,22.514864918627307,181,7040,7961,0.88431101620399444]
["NHS Durham Dales, Easington and Sedgefield","Northern England","No","No",2,2,465059.429999999,26268.090154211153,17.70434878477236,2,13399,15153,0.88424734376031144]
["NHS East Lancashire","Greater Manchester Lancashire and South Cumbria","No","No",3,19,411553.34,36814.870409286501,11.178997384062127,19,13671,15467,0.88388181289196355]
["NHS Bedfordshire","East of England","No","No",9,106,592506.42000000202,49645.07105292604,11.934848866835898,106,12072,13659,0.88381287063474634]
["NHS West Suffolk","East of England","No","No",9,121,455353.97000000102,22619.544592030361,20.130996366763185,121,7305,8267,0.88363372444659494]
["NHS North Norfolk","East of England","No","No",8,115,260659.41,12992.897946580206,20.06168378076169,115,6748,7638,0.88347735009164707]
["NHS South Cheshire","Cheshire and Merseyside","No","No",8,30,244691.38,17581.630608974359,13.917445170023072,30,5941,6725,0.88342007434944236]
["NHS North Kirklees","Yorkshire and Northern","No","Comparator Closest 10 CCGs",3,59,207185.49,20961.620469083158,9.8840397528227015,59,6532,7395,0.88329952670723466]
["NHS Barking and Dagenham","London","No","No",2,122,163985.53,27816.057600869448,5.895354846938277,122,3941,4463,0.88303831503472996]
["NHS Kernow","South West","No","No",5,192,946320.33000000298,49472.271438695956,19.128297579233752,192,19771,22394,0.88287041171742431]
["NHS Fylde & Wyre","Greater Manchester Lancashire and South Cumbria","No","No",8,42,187070.16,12706.357214934411,14.72256421219822,42,6984,7914,0.8824867323730099]
["NHS East Riding Of Yorkshire","Yorkshire and Northern","No","No",8,51,538663.17000000097,26662.886506600513,20.202732733631542,51,12749,14447,0.88246694815532634]
["NHS Somerset","South West","No","No",7,194,1546829.99000001,50034.400948991701,30.915329466559385,194,18671,21160,0.88237240075614365]
["NHS Barnsley","Yorkshire and Northern","No","No",3,44,276322.93,24249.491525423731,11.394998930608363,44,10665,12087,0.88235294117647056]
["NHS East and North Hertfordshire","East of England","No","No",9,108,660796.23000000301,65483.716146726096,10.091000769097921,108,15001,17003,0.88225607245780158]
["NHS Camden","London","No","No",4,127,214848.61,37145.095168374814,5.7840371393884933,127,3664,4153,0.88225379243920055]
["NHS Nottingham City","East Midlands","No","No",2,78,351310.30999999901,43187.392690703949,8.1345570573334989,78,8389,9509,0.88221684719739191]
["NHS South Tees","Northern England","No","No",2,9,775756.09000000404,28326.808842146263,27.385933033366939,9,11121,12606,0.88219895287958117]
["NHS Bradford Districts","Yorkshire and Northern","No","Comparator Closest 10 CCGs",2,46,228533.75,36061.102669850225,6.3374032705625298,46,10485,11886,0.88213023725391215]
["NHS Southampton","Wessex","No","No",4,183,267012.859999999,32183.29326923077,8.296629489290952,183,6224,7057,0.88196117330310331]
["NHS Bath and North East Somerset","South West","No","No",9,188,180083.42,20319.155478118275,8.8627413769205159,188,5136,5824,0.88186813186813184]
["NHS Southern Derbyshire","East Midlands","No","No",6,83,910661.37000000104,56315.28964862298,16.170765979932565,83,16467,18674,0.88181428724429689]
["NHS Blackburn with Darwen","Greater Manchester Lancashire and South Cumbria","No","No",1,12,149560.18,19294.88785153137,7.7512852705246438,12,5824,6605,0.88175624526873586]
["NHS Airedale, Wharfedale and Craven","Yorkshire and Northern","No","No",6,43,275304,15164.887422360249,18.15404178959292,43,5662,6423,0.88151953915615755]
["NHS Eastern Cheshire","Cheshire and Merseyside","No","No",9,20,258917.92,19423.389798066801,13.330212835751768,20,6470,7342,0.88123127213293384]
["NHS North Tyneside","Northern England","No","No",5,200,399155.45,21266.442820462176,18.769262606341481,200,8546,9698,0.8812126211590019]
["NHS West Leicestershire","East Midlands","No","No",9,84,473247.59,39377.136185118354,12.018334390169608,84,10348,11749,0.88075580900502171]
["NHS East Staffordshire","West Midlands","No","No",6,89,172625.47,14017.84047297998,12.314697854690484,89,4062,4613,0.88055495339258616]
["NHS Vale Of York","Yorkshire and Northern","No","No",9,64,532731.80000000098,34098.962079950674,15.623108960059339,64,10769,12230,0.88053965658217503]
["NHS Hartlepool and Stockton-On-Tees","Northern England","No","No",3,7,542360.68000000005,29453.966005665723,18.413842125562049,7,10868,12343,0.88049906829782065]
["NHS Nene","East Midlands","No","No",7,75,896157.74,70974.168912848152,12.626533761887734,75,17385,19746,0.88043147979337588]
["NHS Birmingham South and Central","West Midlands","No","Comparator Closest 10 CCGs",1,85,151649.71,30135.980148883373,5.0321811087872996,85,5825,6617,0.88030829681124378]
["NHS Chiltern","Thames","No","No",10,172,287413.78999999899,35945.175438596496,7.9958933707522126,172,8330,9464,0.88017751479289941]
["NHS Calderdale","Yorkshire and Northern","No","No",5,47,180780.359999999,23011.710356682423,7.856015793606657,47,7352,8353,0.88016281575481858]
["NHS South Tyneside","Northern England","No","No",3,10,273316.109999999,15038.450306629027,18.174486361770921,10,6615,7516,0.88012240553485899]
["NHS Croydon","London","No","No",5,129,111149.63,49220.560030686618,2.2581951511868947,129,7782,8845,0.87981910684002262]
["NHS Brent","London","No","No",2,125,175396.11,48670.190274841436,3.6037687341992091,125,6687,7601,0.87975266412314168]
["NHS Richmond","London","No","No",10,145,84473.17,24123.733460483971,3.5016623831618681,145,3462,3936,0.87957317073170727]
["NHS Nottingham West","East Midlands","No","No",9,80,118182.1,9196.8179139658223,12.850325091305184,80,3279,3728,0.87956008583690992]
["NHS Northern, Eastern and Western Devon","South West","No","No",6,210,1399876.73,83420.819081076086,16.780903681123892,210,30049,34166,0.87950008780659139]
["NHS Hounslow","London","No","Comparator Closest 10 CCGs",5,132,195469.43,40855.452240067629,4.7844147912356201,132,5785,6580,0.87917933130699089]
["NHS South West Lincolnshire","East Midlands","No","No",8,82,190662.04,12187.482299631833,15.644087541014082,82,4924,5602,0.87897179578721885]
["NHS Wandsworth","London","No","No",5,151,213179.139999999,55692.189892802446,3.8278103340940786,151,4785,5444,0.87894930198383536]
["NHS North East Hampshire and Farnham","Wessex","No","No",10,208,168099.13,25402.506963788303,6.6174228488403966,208,5038,5733,0.87877202162916446]
["NHS North Derbyshire","East Midlands","Closest 10 CCGs","No",7,77,484857.89,26678.683385579938,18.173981189119324,77,10684,12161,0.87854617218978703]
["NHS Ipswich and East Suffolk","East of England","No","No",8,109,612966.72000000102,37412.041031540604,16.384209551230661,109,12991,14793,0.87818562833772729]
["NHS Lincolnshire East","East Midlands","Closest 10 CCGs","No",4,66,439516.53,19598.269168553867,22.426293170073418,66,11153,12702,0.8780507006770587]
["NHS Southwark","London","No","No",2,146,325509.21999999898,49848.51272615762,6.5299685426560492,146,4115,4687,0.87796031576701516]
["NHS Newark & Sherwood","East Midlands","No","No",6,76,187897.3,12430.441105186623,15.115899621743875,76,4547,5180,0.87779922779922781]
["NHS Trafford","Greater Manchester Lancashire and South Cumbria","No","No",7,36,243134.06,24262.692921766899,10.020901669240352,36,7286,8301,0.87772557523189976]
["NHS North Hampshire","Wessex","No","No",10,173,248574.46999999901,24918.271435121504,9.9755904275784264,173,4990,5689,0.8771313060291791]
["NHS Scarborough and Ryedale","Yorkshire and Northern","No","No",4,62,258956.61999999901,10261.896491837444,25.234772169645176,62,5067,5777,0.87709884022849227]
["NHS Lambeth","London","No","No",2,141,330071.49,58582.05723124517,5.6343444665503135,141,4441,5064,0.87697472353870454]
["NHS Wirral","Cheshire and Merseyside","No","No",3,197,648842.93999999994,30422.508038585209,21.327726799416574,197,11800,13458,0.87680190221429632]
["NHS Gateshead","Northern England","No","No",2,3,468855.23000000097,19309.031352363127,24.281654602141415,3,7804,8904,0.87646001796945194]
["NHS Stafford and Surrounds","West Midlands","No","No",9,100,227819.78,13847.410663099561,16.452157413594428,100,4817,5496,0.87645560407569145]
["NHS Hardwick","East Midlands","No","No",4,70,173155.20000000001,9439.7307018352858,18.343235148258511,70,4259,4860,0.87633744855967077]
["NHS North Somerset","South West","No","No",8,193,381257.49999999901,19726.101066295781,19.327564971844307,193,6973,7961,0.87589498806682575]
["NHS Cambridgeshire and Peterborough","East of England","No","No",8,107,1370451.89,98248.541947061458,13.948826749392683,107,22673,25888,0.87581118665018542]
["NHS Norwich","East of England","No","No",6,116,278671.48,22062.545835515975,12.630975685108767,116,5533,6320,0.8754746835443038]
["NHS East Leicestershire and Rutland","East Midlands","No","No",10,68,451589.69999999902,31421.80235433772,14.371858587470808,68,9487,10837,0.87542677862877183]
["NHS Kingston","London","No","No",9,140,83840.89,24625.38032454361,3.4046536092048703,140,3876,4428,0.87533875338753386]
["NHS Greater Preston","Greater Manchester Lancashire and South Cumbria","No","No",4,22,262665.30999999901,22881.982861481723,11.47913236322519,22,6633,7579,0.87518142235123364]
["NHS South Worcestershire","West Midlands","No","No",8,99,540774.18999999994,28313.100268920472,19.099787196162772,99,8610,9839,0.87508893180201242]
["NHS South Sefton","Cheshire and Merseyside","No","No",2,31,175661.51,14439.199255121042,12.165599137202809,31,5956,6808,0.87485311398354881]
["NHS Great Yarmouth and Waveney","East of England","Closest 10 CCGs","No",4,110,263846.17,20081.890581717453,13.138512478511633,110,8506,9723,0.87483287051321612]
["NHS Barnet","London","No","Comparator Closest 10 CCGs",7,123,428800.44999999797,48623.317821657656,8.8188233384806765,123,9133,10441,0.87472464323340671]
["NHS Mid Essex","East of England","No","No",9,113,488832.299999999,40316.011829319817,12.125016285576535,113,10561,12075,0.87461697722567289]
["NHS Bexley","London","No","No",7,124,302648.62999999902,24889.87605572008,12.159507316246586,124,5866,6707,0.87460861786193533]
["NHS West London (K&C & Qpp)","London","No","No",3,152,151897.97,28735.574510787756,5.2860599652523144,152,3928,4492,0.87444345503116649]
["NHS Surrey Heath","South East coast","No","No",10,168,95953.429999999906,9964.7956403269745,9.6292421303334823,168,2302,2633,0.87428788454234718]
["NHS North Staffordshire","West Midlands","No","No",7,91,205745.53,20647.001934235977,9.9649106759098789,91,7613,8710,0.874052812858783]
["NHS Herefordshire","West Midlands","No","No",7,90,300380.38,16218.561278863233,18.520778436214894,90,5583,6388,0.87398246712586103]
["NHS West Essex","East of England","No","No",8,119,383592.69000000099,31615.195291599783,12.133174774407365,119,7818,8947,0.87381245110092765]
["NHS West Hampshire","Wessex","No","No",10,185,756739.340000008,51541.832669322714,14.682041767024966,185,16221,18573,0.87336456146018415]
["NHS Dorset","Wessex","No","No",7,190,925610.97000000603,67440.880887879059,13.724775800880193,190,28034,32100,0.87333333333333329]
["NHS Cannock Chase","West Midlands","No","No",6,86,181335.53999999899,13970.901423299949,12.979516103204116,86,4749,5439,0.87313844456701595]
["NHS Canterbury and Coastal","South East coast","No","No",7,156,336569.44999999902,21648.12014917851,15.54728298257209,156,6251,7160,0.87304469273743013]
["NHS Oldham","Greater Manchester Lancashire and South Cumbria","No","No",2,18,212197.27,26391.499616606419,8.0403642491947789,18,7151,8192,0.8729248046875]
["NHS Central London (Westminster)","London","No","No",5,153,168103.25,25528.630816682311,6.5848909487988996,153,3300,3781,0.87278497751917483]
["NHS Bracknell and Ascot","Thames","No","No",10,171,67584.600000000093,16836.634272358224,4.0141395784166933,171,2977,3411,0.87276458516564059]
["NHS Sutton","London","No","No",8,148,76552.22,21751.251892395481,3.5194397259848591,148,4255,4876,0.87264150943396224]
["NHS Guildford and Waverley","South East coast","No","No",10,162,284718.39,23167.506702412869,12.289556820128034,162,4997,5728,0.87238128491620115]
["NHS Merton","London","No","No",8,147,79939.879999999903,29568.693999456966,2.7035309710150881,147,4038,4631,0.87194990282876272]
["NHS West Kent","South East coast","No","No",9,206,660141.75000000198,48574.558670820348,13.590277875165988,206,11679,13396,0.87182741116751272]
["NHS Birmingham Crosscity","West Midlands","No","No",1,198,581962.94000000099,80926.422139248854,7.1912599694402193,198,20218,23191,0.87180371695916514]
["NHS Ealing","London","No","No",4,130,224671.9,57891.082078954845,3.8809414495583425,130,8794,10090,0.8715559960356789]
["NHS Blackpool","Greater Manchester Lancashire and South Cumbria","No","No",1,13,240181.24,14943.954333160355,16.072134232038056,13,7128,8179,0.87150018339650326]
["NHS Sandwell and West Birmingham","West Midlands","No","No",1,94,441954.46999999898,61501.366742596816,7.1860918449133315,94,14346,16466,0.8712498481719908]
["NHS Bristol","South West","No","No",4,189,907879.41000000201,57073.43565525383,15.90721496921884,189,10258,11774,0.87124171904195691]
["NHS Redbridge","London","No","Comparator Closest 10 CCGs",6,144,218679.56999999899,39507.289821501567,5.5351701164017619,144,6839,7851,0.87109922302891352]
["NHS Enfield","London","No","No",3,131,303551.27,37651.302115173006,8.0621719023542777,131,6709,7702,0.87107244871461953]
["NHS Liverpool","Cheshire and Merseyside","No","No",1,199,687579.34999999905,50541.963740069259,13.604128116907569,199,16354,18775,0.87105193075898801]
["NHS High Weald Lewes Havens","South East coast","No","No",9,207,287607.81,15490.748489074847,18.566424353403001,207,4712,5410,0.87097966728280962]
["NHS Greater Huddersfield","Yorkshire and Northern","No","No",5,52,158868.43,25652.915467434173,6.1929970572615831,52,7620,8749,0.87095668076351584]
["NHS Wyre Forest","West Midlands","Closest 10 CCGs","No",5,105,210921.16,10266.082671776623,20.545437509466161,105,3792,4356,0.87052341597796146]
["NHS Hull","Yorkshire and Northern","No","No",1,56,454150.46999999898,29552.513739059636,15.367574955214288,56,9888,11368,0.86980999296270234]
["NHS North West Surrey","South East coast","No","No",10,166,362458.75,38662.653239929954,9.3749062629168041,166,8087,9302,0.86938292840249409]
["NHS Southend","East of England","No","No",4,204,308657.49,18371.221161495625,16.801141703465934,204,5381,6190,0.86930533117932152]
["NHS Dartford, Gravesham and Swanley","South East coast","No","No",7,160,410280.67999999702,27197.678203319952,15.08513619923318,160,6528,7510,0.86924101198402126]
["NHS Warwickshire North","West Midlands","No","No",5,92,222706.37999999899,18848.559166155734,11.815565213063508,92,5270,6063,0.8692066633679697]
["NHS South Kent Coast","South East coast","No","No",5,167,365119.820000001,18204.961071881226,20.056061562468972,167,6633,7638,0.86842105263157898]
["NHS South Devon and Torbay","South West","Closest 10 CCGs","No",5,211,412017.33999999898,24036.281179138321,17.141476126415053,211,9866,11361,0.86840947099727139]
["NHS Leicester City","East Midlands","No","No",2,71,313551.24999999901,48616.778006166496,6.4494452915046843,71,8698,10022,0.86789064059070042]
["NHS Bromley","London","No","No",8,126,354707.26,34813.904641881956,10.188666386282874,126,8815,10165,0.86719134284308907]
["NHS Wolverhampton","West Midlands","No","No",2,104,339894.30999999901,26196.394781396273,12.974850655456589,104,8457,9754,0.86702891121591141]
["NHS Waltham Forest","London","No","No",1,150,275119.59999999899,38869.633714060656,7.0780085560846837,150,5143,5932,0.86699258260283207]
["NHS Shropshire","West Midlands","No","No",7,95,418676.55,26876.000359679885,15.578082467512914,95,9792,11295,0.86693227091633462]
["NHS Horsham and Mid Sussex","South East coast","No","No",10,165,337754.63,23525.765728476821,14.356796454500271,165,5917,6826,0.86683269850571343]
["NHS Lewisham","London","No","No",2,142,400284.67,43188.946759259263,9.2682202284588726,142,4521,5223,0.86559448592762778]
["NHS East Surrey","South East coast","No","No",10,161,188332.35,18574.030172413793,10.139552280889033,161,4358,5035,0.86554121151936447]
["NHS Islington","London","No","No",1,139,226183.3,30195.099459886707,7.490728762144923,139,3368,3892,0.86536485097636173]
["NHS Lancashire North","Greater Manchester Lancashire and South Cumbria","No","No",6,27,219320.07,16327.406808768565,13.432633397865429,27,5616,6491,0.86519796641503621]
["NHS Haringey","London","No","No",1,135,257546.84,39058.183284063423,6.5939277852967786,135,4118,4761,0.86494433942449067]
["NHS Hillingdon","London","No","Comparator Closest 10 CCGs",6,138,199845.16999999899,35943.674285000627,5.5599538437670191,138,5987,6932,0.86367570686670514]
["NHS West Norfolk","East of England","Closest 10 CCGs","No",6,120,297007.09999999899,13753.482587064676,21.595046790500749,120,6784,7857,0.86343388061601123]
["NHS Brighton and Hove","South East coast","No","No",4,155,400575.950000001,34600.230282095567,11.5772625423041,155,6003,6956,0.86299597469810241]
["NHS Telford and Wrekin","West Midlands","No","No",4,102,181974.75,19170.236255243984,9.4925668926078632,102,4698,5444,0.86296840558412935]
["NHS Solihull","West Midlands","No","No",8,96,224163.18999999901,23303.40496516534,9.6193320390340027,96,7299,8462,0.86256204207043252]
["NHS Eastbourne, Hailsham and Seaford","South East coast","Closest 10 CCGs","No",6,157,361466.94999999902,15256.34124459669,23.692898854633256,157,7142,8284,0.86214389183969098]
["NHS North Manchester","Greater Manchester Lancashire and South Cumbria","No","No",1,28,101841.57,21458.201892744481,4.7460439839758903,28,5178,6015,0.86084788029925186]
["NHS Bradford City","Yorkshire and Northern","No","No",1,49,44649.16,19663.095434316794,2.2707086048149145,49,2404,2797,0.85949231319270647]
["NHS Hammersmith and Fulham","London","No","No",3,134,187680.94,29580.645161290326,6.3447209814612862,134,2978,3467,0.85895586962792037]
["NHS Coastal West Sussex","South East coast","No","No",7,158,791794.57000000204,41428.788006401082,19.112182810601734,158,18160,21147,0.85875065021043173]
["NHS Surrey Downs","South East coast","No","No",10,205,340102.15999999898,30440.473717016415,11.172696034946386,205,7578,8846,0.85665837666742028]
["NHS Castle Point and Rochford","East of England","No","No",9,203,340481.57999999903,16903.470208586659,20.142702995213401,203,5752,6716,0.85646217986896966]
["NHS Thanet","South East coast","No","No",3,170,283382.21999999799,12414.572204221035,22.826579550090838,170,4556,5349,0.85174799027855674]
["NHS Milton Keynes","East Midlands","No","No",8,74,246905.55,36043.257676902533,6.8502562174956667,74,5428,6393,0.84905365243234787]
["NHS Central Manchester","Greater Manchester Lancashire and South Cumbria","No","No",1,16,92769.029999999897,30451.303735024667,3.0464715339362711,16,3790,4477,0.84654902836721013]
["NHS South Manchester","Greater Manchester Lancashire and South Cumbria","No","No",1,29,147079.9,20015.990453460618,7.3481200114466958,29,4410,5224,0.84418070444104132]
["NHS Luton","East of England","No","Comparator Closest 10 CCGs",3,112,204914.23,29521.975779017554,6.9410743892568574,112,4608,5505,0.8370572207084469]